{"text_format":"1","workbook":"xlsx","n_sheets":74,"sheets":["ACS_Notes","StartInstruction","ACS_Table_B08303","PopulationCharacteristics","SchoolEnrolEduAttain","HousingCharacteristics","CntyDataLink","CntyQuery","BuildingPermitsSince2000","EmploymentAndWages","EmpVsHUxCounty","HHIncome-10YearComparison","HHIncomeByAge","HHIncomeByTenure","Housing_EmploymentComparison","Updates","CntyDataLinkPrior5YearEstimates","CntyDataLinkPrior10YearEstimate","StatisticallySignificantCalcs","OwnerHousingCost","OwnerHousingCostPrior5Year","ACS_Source_Table_List","ACS_Table_B01001","ACS_Table_B01002","ACS_Tbl_B11001_B11002_B25010","ACS_Table_B19001","ACS_Table_B19037","DisabilityByAge","DisabilityByAgePrior5YearEst","ACS_Table_B18101","ACS_Table_B18102","ACS_Table_B18103","ACS_Table_B18104","ACS_Table_B18105","ACS_Table_B18106","ACS_Table_B18107","ACS_Table_C18108","ACS_TableB19201_ACS_Tbl_B19202","ACS_Table_B19049","ACS_Table_B25118","ACS_Table_B25119","ACS_Table_B25001","ACS_Table_B25003","ACS_Table_B25004","ACS_Table_B25008","ACS_Table_B25024","ACS_Table_B25032","ACS_Table_B25034","ACS_Table_B25041","PovertyCharacteristics","ACS_Table_ B17001","ACS_Table_B17010","ACS_Table_B17017","ACS_Table_B03002","RentalHousingCost","RentalHousingCost-Prior5Yr","ACS_Table_B25063_&_B25064","ACS_Table_B25070","ACS_Table_B25074","PlaceOfBirthAndPriorRes","ACS_Table_B05002","ACS_Table_B07003","ACS_Table_B14001","ACS_Table_B15002","ACS_TableB19101_ACS_Tbl_B19113","ACS_Table_B25091","ACS_Table_B25075_&_B25077","ACS_Table_B25088","ACS_Table_B25106","PopComparison","HousingComparison","DropDownList","CntyQryCensus","SmallTownEmploymentandWages"],"not_rendered":{"charts":66,"images":159,"macros":1,"external_links":0,"defined_names":67,"comments":0,"pivot_tables":0},"unopened":[],"bounds":{"document_bytes":16777216,"sheet_cells":100000,"rows_first":2000,"rows_last":500,"rows_between":2000,"halvings":0,"cell_chars":16384,"cell_head_chars":4096},"cells_cut":0,"cells_raw":0,"read":"row_number_cap","date_system":"1900"}

{"sheet":"ACS_Notes","index":0,"n_rows":28,"n_cols":1,"rows_kept":28,"cut":false,"hidden":true,"merged":[[31,150,31,164],[31,165,31,179],[31,240,31,254],[31,180,31,194],[31,195,31,209],[31,210,31,224],[31,225,31,239],[31,75,31,89],[31,90,31,104],[31,105,31,119],[31,120,31,134],[31,135,31,149],[20,0,21,14],[22,0,22,14],[23,0,23,14],[24,0,24,14],[31,60,31,74],[29,0,29,14],[31,15,31,29],[31,30,31,44],[31,45,31,59],[25,0,25,14],[10,0,12,14],[14,0,14,14],[18,0,19,14],[3,0,5,14],[7,0,8,14]]}
["NOTES:"]
[]
[]
["Data are based on a sample and are subject to sampling variability. The degree of uncertainty for an estimate arising from sampling variability is represented through the use of a margin of error. The value shown here is the 90 percent margin of error. The margin of error can be interpreted roughly as providing a 90 percent probability that the interval defined by the estimate minus the margin of error and the estimate plus the margin of error (the lower and upper confidence bounds) contains the true value. In addition to sampling variability, the ACS estimates are subject to noncamping error (for a discussion of noncamping variability, see Accuracy of the Data). The effect of noncamping error is not represented in these tables."]
[]
[]
[]
["In addition to sampling variability, the ACS estimates are subject to noncamping error (for a discussion of noncamping variability, see Accuracy of the Data. The link is located at the end of this worksheet.).  The effect of noncamping error is not represented in these tables."]
[]
[]
["While the 2005-2009 American Community Survey (ACS) data generally reflect the November 2008 Office of Management and Budget (OMB) definitions of metropolitan and micropolitan statistical areas; in certain instances the names, codes, and boundaries of the principal cities shown in ACS tables may differ from the OMB definitions due to differences in the effective dates of the geographic entities."]
[]
[]
[]
["Estimates of urban and rural population, housing units, and characteristics reflect boundaries of urban areas defined based on Census 2000 data.  Boundaries for urban areas have not been updated since Census 2000.  As a result, data for urban and rural areas from the ACS do not necessarily reflect the results of ongoing urbanization."]
[]
["Explanation of Symbols:"]
[]
["1. An '**' entry in the margin of error column indicates that either no sample observations or too few sample observations were available to compute a standard error and thus the margin of error. A statistical test is not appropriate."]
[]
["2. An '-' entry in the estimate column indicates that either no sample observations or too few sample observations were available to compute an estimate, or a ratio of medians cannot be calculated because one or both of the median estimates falls in the lowest interval or upper interval of an open-ended distribution."]
[]
["3. An '-' following a median estimate means the median falls in the lowest interval of an open-ended distribution."]
["4. An '+' following a median estimate means the median falls in the upper interval of an open-ended distribution."]
["5. An '***' entry in the margin of error column indicates that the median falls in the lowest interval or upper interval of an open-ended distribution. A statistical test is not appropriate."]
["6. An '*****' entry in the margin of error column indicates that the estimate is controlled. A statistical test for sampling variability is not appropriate."]
[]
["Accuracy of Data "]

{"sheet":"StartInstruction","index":1,"n_rows":35,"n_cols":17,"rows_kept":35,"cut":false,"hidden":false,"merged":[[28,1,31,3],[31,16,33,19]]}
["Demographic Profiles for Municipalities in Coos County"]
[]
["To view or print a Demographic Profile follow the steps below"]
[]
[]
[]
["Step 1. ",null,"Select the municipality you wish to"]
[null,null,"Profile from the drop down box below. "]
[]
[]
[]
[]
["Step 2. ",null,"Click one of the profile topic buttons below to review or print"]
[null,null,"the information for the selected geography."]
[null,null,"Don't forget to adjust the axis on charts as necessary. "]
[]
[]
[]
[]
[]
[]
[]
[]
[]
[]
[]
[]
[]
[]
[null,null,null,null,null,null,null,null,null,null,null,null,null,null,"Updated:",null,"2020-12-18"]
[]
[null,null,null,null,null,null,null,null,null,null,null,null,null,null,"Next Update:",null,"Fall 2021 - Annual Employment and Wage Data"]
[]
[]
[null,null,null,null,null,null,null,null,null,null," "]

{"sheet":"ACS_Table_B08303","index":2,"n_rows":40,"n_cols":88,"rows_kept":40,"cut":false,"hidden":true,"merged":[]}
[null,"B08303: TRAVEL TIME TO WORK"]
[null,"Universe: Workers 16 years and over who did not work at home"]
[null,"Data Set: 2006-2010 American Community Survey 3-Year Estimates"]
[]
[null,null,"Atkinson and Gilmanton Grant",null,"Bean's Grant",null,"Bean's Purchase",null,"Berlin",null,"Cambridge",null,"Carroll",null,"Chandler's Purchase",null,"Clarksville",null,"Colebrook",null,"Columbia",null,"Crawford's Purchase",null,"Cutt's Grant",null,"Dalton",null,"Dix's Grant",null,"Dixville Township",null,"Dummer",null,"Errol",null,"Erving's Location",null,"Gorham",null,"Greens Grant",null,"Hadley's Purchase",null,"Jefferson",null,"Kilkenny Township",null,"Lancaster",null,"Low and Burbank's Grant",null,"Martin's Location",null,"Milan",null,"Millsfield Township",null,"Northumberland",null,"Odell Township",null,"Pinkham's Grant",null,"Pittsburg",null,"Randolph",null,"Sargent's Purchase",null,"Second College Grant",null,"Shelburne",null,"Stark",null,"Stewartstown",null,"Stratford",null,"Success Township",null,"Thompson and Meserves Purchase",null,"Wentworth's Location",null,"Whitefield"]
[null,null,"Esitimate","Margin Of Error","Esitimate","Margin Of Error","Esitimate","Margin Of Error","Esitimate","Margin Of Error","Esitimate","Margin Of Error","Esitimate","Margin Of Error","Esitimate","Margin Of Error","Esitimate","Margin Of Error","Esitimate","Margin Of Error","Esitimate","Margin Of Error","Esitimate","Margin Of Error","Esitimate","Margin Of Error","Esitimate","Margin Of Error","Esitimate","Margin Of Error","Esitimate","Margin Of Error","Esitimate","Margin Of Error","Esitimate","Margin Of Error","Esitimate","Margin Of Error","Esitimate","Margin Of Error","Esitimate","Margin Of Error","Esitimate","Margin Of Error","Esitimate","Margin Of Error","Esitimate","Margin Of Error","Esitimate","Margin Of Error","Esitimate","Margin Of Error","Esitimate","Margin Of Error","Esitimate","Margin Of Error","Esitimate","Margin Of Error","Esitimate","Margin Of Error","Esitimate","Margin Of Error","Esitimate","Margin Of Error","Esitimate","Margin Of Error","Esitimate","Margin Of Error","Esitimate","Margin Of Error","Esitimate","Margin Of Error","Esitimate","Margin Of Error","Esitimate","Margin Of Error","Esitimate","Margin Of Error","Esitimate","Margin Of Error","Esitimate","Margin Of Error","Esitimate","Margin Of Error","Esitimate","Margin Of Error","Esitimate","Margin Of Error"]
[null,"Population Older than 16 not working at hom",0,11,0,11,0,11,3602,280,0,11,320,78,0,11,122,43,850,121,278,61,0,11,0,11,421,88,0,11,2,5,116,26,69,26,0,11,1358,136,5,6,0,11,443,81,0,11,1446,183,0,11,0,11,685,90,4,6,970,117,5,11,11,14,278,68,179,47,0,11,0,11,164,36,192,50,334,99,213,56,0,11,0,11,5,5,879,128]
[null,"Less than 5 minutes",0,11,0,11,0,11,249,105,0,11,51,31,0,11,0,11,172,47,28,14,0,11,0,11,24,24,0,11,0,11,3,4,11,10,0,11,127,63,0,11,0,11,7,6,0,11,150,75,0,11,0,11,39,35,0,11,64,38,0,11,4,8,16,16,17,13,0,11,0,11,5,6,9,7,9,14,2,3,0,11,0,11,0,11,68,34]
[null,"5 to 9 minutes",0,11,0,11,0,11,1080,226,0,11,45,28,0,11,25,18,247,77,41,35,0,11,0,11,22,16,0,11,1,4,9,8,30,15,0,11,276,86,2,6,0,11,38,22,0,11,286,116,0,11,0,11,61,33,0,11,117,59,0,11,4,8,40,23,23,23,0,11,0,11,40,18,3,4,39,26,14,10,0,11,0,11,0,11,138,73]
[null,"10 to 14 minutes",0,11,0,11,0,11,789,166,0,11,31,19,0,11,12,8,189,90,58,24,0,11,0,11,35,25,0,11,0,11,3,3,13,9,0,11,223,76,3,6,0,11,86,42,0,11,278,93,0,11,0,11,103,34,0,11,127,59,0,11,0,11,29,20,12,10,0,11,0,11,14,7,6,5,149,65,53,40,0,11,0,11,3,4,61,35]
[null,"15 to 19 minutes",0,11,0,11,0,11,641,211,0,11,52,24,0,11,21,17,60,35,42,18,0,11,0,11,53,27,0,11,0,11,18,10,4,6,0,11,189,72,0,11,0,11,59,26,0,11,138,54,0,11,0,11,157,54,0,11,227,67,0,11,0,11,89,62,26,15,0,11,0,11,25,21,17,15,23,19,15,14,0,11,0,11,2,3,109,41]
[null,"20 to 24 minutes",0,11,0,11,0,11,226,86,0,11,54,34,0,11,49,28,56,32,32,14,0,11,0,11,95,37,0,11,0,11,23,10,0,11,0,11,202,90,0,11,0,11,65,30,0,11,117,62,0,11,0,11,151,41,0,11,134,62,0,11,0,11,38,20,32,14,0,11,0,11,12,12,35,14,42,33,22,14,0,11,0,11,0,11,110,42]
[null,"25 to 29 minutes",0,11,0,11,0,11,93,57,0,11,25,21,0,11,0,11,0,11,18,17,0,11,0,11,18,11,0,11,0,11,16,11,0,11,0,11,67,37,0,11,0,11,13,10,0,11,35,25,0,11,0,11,42,29,0,11,17,13,0,11,0,11,22,12,15,12,0,11,0,11,14,11,16,10,30,26,13,13,0,11,0,11,0,11,106,50]
[null,"30 to 34 minutes",0,11,0,11,0,11,53,46,0,11,24,18,0,11,6,8,38,27,15,11,0,11,0,11,80,36,0,11,0,11,12,6,2,3,0,11,65,48,0,11,0,11,69,29,0,11,79,52,0,11,0,11,29,15,0,11,33,19,5,11,3,7,4,7,9,7,0,11,0,11,18,13,30,14,26,21,47,26,0,11,0,11,0,11,92,45]
[null,"35 to 39 minutes",0,11,0,11,0,11,14,16,0,11,3,5,0,11,0,11,0,11,0,11,0,11,0,11,13,12,0,11,0,11,0,11,0,11,0,11,10,15,0,11,0,11,3,5,0,11,31,40,0,11,0,11,0,11,0,11,10,7,0,11,0,11,19,15,8,8,0,11,0,11,7,7,2,3,0,11,4,5,0,11,0,11,0,11,19,20]
[null,"40 to 44 minutes",0,11,0,11,0,11,75,54,0,11,6,9,0,11,0,11,4,7,5,7,0,11,0,11,30,30,0,11,0,11,4,4,5,6,0,11,40,29,0,11,0,11,26,18,0,11,105,65,0,11,0,11,26,13,0,11,37,21,0,11,0,11,15,20,8,7,0,11,0,11,5,4,9,8,0,11,0,11,0,11,0,11,0,11,28,36]
[null,"45 to 59 minutes",0,11,0,11,0,11,181,97,0,11,18,15,0,11,1,3,11,11,8,10,0,11,0,11,28,19,0,11,0,11,10,8,3,4,0,11,83,58,0,11,0,11,30,14,0,11,121,55,0,11,0,11,26,13,4,6,170,53,0,11,0,11,3,5,7,6,0,11,0,11,13,8,34,31,6,10,14,10,0,11,0,11,0,11,77,48]
[null,"60 to 89 minutes",0,11,0,11,0,11,145,88,0,11,6,5,0,11,7,7,61,45,19,11,0,11,0,11,10,11,0,11,0,11,10,7,1,2,0,11,29,25,0,11,0,11,24,20,0,11,59,47,0,11,0,11,36,14,0,11,5,9,0,11,0,11,0,11,14,12,0,11,0,11,5,5,9,7,3,4,10,7,0,11,0,11,0,11,37,26]
[null,"90 or more minutes",0,11,0,11,0,11,56,40,0,11,5,5,0,11,1,4,12,15,12,10,0,11,0,11,13,15,0,11,1,3,8,6,0,11,0,11,47,39,0,11,0,11,23,13,0,11,47,44,0,11,0,11,15,10,0,11,29,19,0,11,0,11,3,6,8,8,0,11,0,11,6,5,22,16,7,8,19,18,0,11,0,11,0,11,34,29]
[]
[]
[]
[]
[]
[]
[]
[]
[]
[]
[]
[]
[]
[]
[]
[]
[]
[]
[]
[null,null,642668,3466,28483,1018,21150,846,36744,934,14089,645,42727,1151,197866,2634,70876,1467,148355,1823,61589,1595,20789,620]
[null,null,"Estimate"]

{"sheet":"PopulationCharacteristics","index":3,"n_rows":64,"n_cols":23,"rows_kept":64,"cut":false,"hidden":true,"merged":[[62,1,62,8],[63,1,63,3],[2,8,2,12],[19,18,19,20],[45,1,45,8],[48,3,48,4],[48,6,48,7],[48,9,48,10],[3,1,3,3],[19,15,19,17],[18,2,18,12],[18,15,18,21],[19,11,19,13],[33,11,33,12]]}
[]
[null,{"$f":"CntyDataLink!A35","v":"Berlin"}]
[null,null,null,null,null,null,"Land Area:",null,{"$f":"((CntyDataLink!F35*10.764)/43560)/640","v":61.726958087551644},null,"Water Area:",{"$f":"((CntyDataLink!G35*10.764)/43560)/640","v":0.73434037060950419}]
[null,"POPULATION CHARACTERISTICS"]
[]
[]
[]
[]
[]
[]
[]
[]
[]
[]
[]
[]
[]
[]
[null,"Population ",{"$f":"\"Source:  US Census; New Hampshire Office of Strategic Initiatives; \"& L20&\", \"&P20&\", and \"&S20&\" American Community Survey Table B01001\"","v":"Source:  US Census; New Hampshire Office of Strategic Initiatives; 2005-2009, 2010-2014, and 2015-2019 American Community Survey Table B01001"},null,null,null,null,null,null,null,null,null,null,"Population by Age ",null,{"$f":"\"Source: \"& L20&\", \"&P20&\", and \"&S20&\"  American Community Survey Tables B01001 and B01002\"","v":"Source: 2005-2009, 2010-2014, and 2015-2019  American Community Survey Tables B01001 and B01002"}]
[null,null,null,null,null,null,null,null,null,null,null,"2005-2009",null,null,null,"2010-2014",null,null,"2015-2019"]
[null,null,1980,1990,2000,"2015-2019",2025,2030,null,null,null,"Estimate",null,"Margin of Error","Percent Change","Estimate","Margin of Error","Percent Change","Estimate","Margin of Error",null,"Percent Change","Statistically Significant Change"]
[null,null,{"$f":"CntyDataLink!$E$20","v":13084},{"$f":"CntyDataLink!$F$20","v":11824},{"$f":"CntyDataLink!$G$20","v":10331},{"$f":"CntyDataLink!$B$132","v":10221},{"$f":"CntyDataLink!$I$20","v":9251},{"$f":"CntyDataLink!$K$20","v":8356},null,null,"Under 15 yrs.",{"$f":"CntyDataLinkPrior10YearEstimate!$D$132","v":1425},null,{"$f":"CntyDataLinkPrior10YearEstimate!$E$132","v":179.09773867919159},{"$f":"L22/SUM($L$22:$L$29)","v":0.14731727488886592},{"$f":"CntyDataLinkPrior5YearEstimates!$D$132","v":1319},{"$f":"CntyDataLinkPrior5YearEstimates!$E$132","v":193.37011144434913},{"$f":"P22/SUM($P$22:$P$29)","v":0.13583934088568486},{"$f":"CntyDataLink!$D$132","v":1198},{"$f":"CntyDataLink!$E$132","v":199.6772395642528},{"$f":"S22/SUM($S$22:$S$29)","v":0.11720966637315332},{"$f":"(S22-P22)/P22","v":-9.1736163760424566E-2},{"$f":"StatisticallySignificantCalcs!$A3","v":"Y"}]
[null,null,null,null,null,null,null,null,null,null,"15 to 24 yrs.",{"$f":"CntyDataLinkPrior10YearEstimate!$F$132","v":1160},null,{"$f":"CntyDataLinkPrior10YearEstimate!$G$132","v":196.11221277625725},{"$f":"L23/SUM($L$22:$L$29)","v":0.11992143078672594},{"$f":"CntyDataLinkPrior5YearEstimates!$F$132","v":1058},{"$f":"CntyDataLinkPrior5YearEstimates!$G$132","v":167.49626861515452},0.10895983522142122,{"$f":"CntyDataLink!$F$132","v":1142},{"$f":"CntyDataLink!$G$132","v":186.53954004446351},0.11173075041581058,7.9395085066162566E-2,{"$f":"StatisticallySignificantCalcs!$A4","v":"Y"}]
[null,"Percent Change",null,null,null,null,null,null,null,null,"25 to 34 yrs.",{"$f":"CntyDataLinkPrior10YearEstimate!$H$132","v":968},null,{"$f":"CntyDataLinkPrior10YearEstimate!$I$132","v":120.7890723534211},{"$f":"L24/SUM($L$22:$L$29)","v":0.10007236638064716},{"$f":"CntyDataLinkPrior5YearEstimates!$H$132","v":1193},{"$f":"CntyDataLinkPrior5YearEstimates!$I$132","v":180.98066195038629},0.12286302780638517,{"$f":"CntyDataLink!$H$132","v":1683},{"$f":"CntyDataLink!$I$132","v":198.34817871611526},0.16466099207513943,0.41072925398155907,{"$f":"StatisticallySignificantCalcs!$A5","v":"Y"}]
[null,null,null,{"$f":"C21&\"-\"&(D21-1900)","v":"1980-90"},"1990-2000",{"$f":"E21&\"-19\"","v":"2000-19"},{"$f":"2019&\"-\"&(G21)","v":"2019-2025"},{"$f":"G21&\"-\"&(H21)","v":"2025-2030"},null,null,"35 to 44 yrs.",{"$f":"CntyDataLinkPrior10YearEstimate!$J$132","v":1203},null,{"$f":"CntyDataLinkPrior10YearEstimate!$K$132","v":190.98167451355116},0.12436679416933732,{"$f":"CntyDataLinkPrior5YearEstimates!$J$132","v":1394},{"$f":"CntyDataLinkPrior5YearEstimates!$K$132","v":295.33201655086435},0.14356333676622038,{"$f":"CntyDataLink!$J$132","v":1445},{"$f":"CntyDataLink!$K$132","v":209.28927349484493},0.14137559925643284,3.6585365853658534E-2,{"$f":"StatisticallySignificantCalcs!$A6","v":"Y"}]
[null,null,null,{"$f":"(D22-C22)/C22","v":-9.6300825435646595E-2},{"$f":"(E22-D22)/D22","v":-0.12626860622462788},{"$f":"(F22-E22)/E22","v":-1.0647565579324364E-2},{"$f":"(G22-F22)/F22","v":-9.4902651403972207E-2},{"$f":"(H22-G22)/G22","v":-9.674629769754621E-2},null,null,"45 to 54 yrs.",{"$f":"CntyDataLinkPrior10YearEstimate!$L$132","v":1653},null,{"$f":"CntyDataLinkPrior10YearEstimate!$M$132","v":179.85827754095723},0.17088803887108447,{"$f":"CntyDataLinkPrior5YearEstimates!$L$132","v":1309},{"$f":"CntyDataLinkPrior5YearEstimates!$M$132","v":167.76769653303344},0.13480947476828012,{"$f":"CntyDataLink!$L$132","v":1535},{"$f":"CntyDataLink!$M$132","v":175.83799361912659},0.15018099990216222,0.17265087853323147,{"$f":"StatisticallySignificantCalcs!$A7","v":"Y"}]
[null,null,null,null,null,null,null,null,null,null,"55 to 64 yrs.",{"$f":"CntyDataLinkPrior10YearEstimate!$N$132","v":1092},null,{"$f":"CntyDataLinkPrior10YearEstimate!$O$132","v":175.71567943698139},0.11289155380957304,{"$f":"CntyDataLinkPrior5YearEstimates!$N$132","v":1440},{"$f":"CntyDataLinkPrior5YearEstimates!$O$132","v":186.74849396983097},0.14830072090628219,{"$f":"CntyDataLink!$N$132","v":1306},{"$f":"CntyDataLink!$O$132","v":179.22890391898289},0.12777614714802857,-9.3055555555555558E-2,{"$f":"StatisticallySignificantCalcs!$A8","v":"Y"}]
[null,null,null,null,null,null,null,null,null,null,"65 to 74 yrs.",{"$f":"CntyDataLinkPrior10YearEstimate!$P$132","v":850},null,{"$f":"CntyDataLinkPrior10YearEstimate!$Q$132","v":145.26871652217486},8.7873462214411252E-2,{"$f":"CntyDataLinkPrior5YearEstimates!$P$132","v":802},{"$f":"CntyDataLinkPrior5YearEstimates!$Q$132","v":123.8587905640936},8.2595262615859935E-2,{"$f":"CntyDataLink!$P$132","v":973},{"$f":"CntyDataLink!$Q$132","v":158.71357849913159},9.519616475882986E-2,0.21321695760598502,{"$f":"StatisticallySignificantCalcs!$A9","v":"Y"}]
[null,null,null,null,null,null,null,null,null,null,"Over 74 yrs. ",{"$f":"CntyDataLinkPrior10YearEstimate!$R$132","v":1322},null,{"$f":"CntyDataLinkPrior10YearEstimate!$S$132","v":225.12218904408334},0.13666907887935489,{"$f":"CntyDataLinkPrior5YearEstimates!$R$132","v":1195},{"$f":"CntyDataLinkPrior5YearEstimates!$S$132","v":162.82813024781683},0.12306900102986612,{"$f":"CntyDataLink!$R$132","v":939},{"$f":"CntyDataLink!$S$132","v":141.82030884185804},9.1869680070443202E-2,-0.21422594142259413,{"$f":"StatisticallySignificantCalcs!$A10","v":"Y"}]
[null,null,null,null,null,null,null,null,null,null,"Median Age (years)",{"$f":"CntyDataLinkPrior10YearEstimate!$AX$132","v":45.3},null,{"$f":"CntyDataLinkPrior10YearEstimate!$AY$132","v":1.9},null,{"$f":"CntyDataLinkPrior5YearEstimates!$AX132","v":44.1},{"$f":"CntyDataLinkPrior5YearEstimates!$AY$132","v":3.4},null,{"$f":"CntyDataLink!$AX$132","v":42.3},{"$f":"CntyDataLink!$AY$132","v":1.2}]
[]
[null,"Population By Race",null,null,null,null,null,null,null,null,null,null,"Statistically Significant Change"]
[null,null,null,null,null,null,null,null,null,null,null,null,{"$f":"IF(L36=\"\",\"-\",StatisticallySignificantCalcs!A20)","v":"Y"}]
[null,null,"2005-2009",null,null,"2010-2014",null,null,"2015-2019",null,null,"Statistically Significant Change"]
[null,null,"Estimate","Margin of Error",null,"Estimate","Margin of Error",null,"Estimate","Margin of Error",null,"2009-2019","2014-2019"]
[null,"White",{"$f":"CntyDataLinkPrior10YearEstimate!$AL$132","v":9449},{"$f":"CntyDataLinkPrior10YearEstimate!$AM$132","v":127},{"$f":"IF(C$36=\"-\",\"-\",VALUE(C36/$C$41))","v":0.97684275819290811},{"$f":"CntyDataLinkPrior5YearEstimates!$AL$132","v":8994},{"$f":"CntyDataLinkPrior5YearEstimates!$AM$132","v":329},{"$f":"IF(F$36=\"-\",\"-\",VALUE(F36/$F$41))","v":0.9262615859938208},{"$f":"CntyDataLink!$AL$132","v":8745},{"$f":"CntyDataLink!$AM$132","v":243},{"$f":"IF(I$36=\"-\",\"-\",VALUE(I36/$I$41))","v":0.85559142941003818},{"$f":"StatisticallySignificantCalcs!A20","v":"Y"},{"$f":"StatisticallySignificantCalcs!J20","v":"N"}]
[null,"Black",{"$f":"CntyDataLinkPrior10YearEstimate!$AN132","v":29},{"$f":"CntyDataLinkPrior10YearEstimate!$AO$132","v":28},{"$f":"IF(C$37=\"-\",\"-\",VALUE(C37/$C$41))","v":2.9980357696681482E-3},{"$f":"CntyDataLinkPrior5YearEstimates!$AN132","v":280},{"$f":"CntyDataLinkPrior5YearEstimates!$AO$132","v":386},{"$f":"IF(F$37=\"-\",\"-\",VALUE(F37/$F$41))","v":2.8836251287332648E-2},{"$f":"CntyDataLink!$AN$132","v":630},{"$f":"CntyDataLink!$AO$132","v":186},{"$f":"IF(I$37=\"-\",\"-\",VALUE(I37/$I$41))","v":6.1637804520105664E-2},{"$f":"StatisticallySignificantCalcs!A21","v":"Y"},{"$f":"StatisticallySignificantCalcs!J21","v":"N"}]
[null,"American Indian",{"$f":"CntyDataLinkPrior10YearEstimate!$AP$132","v":24},{"$f":"CntyDataLinkPrior10YearEstimate!$AQ$132","v":29},{"$f":"IF(C$38=\"-\",\"-\",VALUE(C38/$C$41))","v":2.4811330507598468E-3},{"$f":"CntyDataLinkPrior5YearEstimates!$AP$132","v":47},{"$f":"CntyDataLinkPrior5YearEstimates!$AQ$132","v":72},{"$f":"IF(F$38=\"-\",\"-\",VALUE(F38/$F$41))","v":4.8403707518022655E-3},{"$f":"CntyDataLink!$AP$132","v":25},{"$f":"CntyDataLink!$AQ$132","v":31},{"$f":"IF(I$38=\"-\",\"-\",VALUE(I38/$I$41))","v":2.4459446238137171E-3},{"$f":"StatisticallySignificantCalcs!A22","v":"N"},{"$f":"StatisticallySignificantCalcs!J22","v":"N"}]
[null,"Asian &Pacific Is.",{"$f":"CntyDataLinkPrior10YearEstimate!$AR$132","v":20},{"$f":"CntyDataLinkPrior10YearEstimate!$AS$132","v":118.96217886370441},{"$f":"IF(C$39=\"-\",\"-\",VALUE(C39/$C$41))","v":2.0676108756332058E-3},{"$f":"CntyDataLinkPrior5YearEstimates!$AR$132","v":24},{"$f":"CntyDataLinkPrior5YearEstimates!$AS$132","v":39.924929555354261},{"$f":"IF(F$39=\"-\",\"-\",VALUE(F39/$F$41))","v":2.4716786817713696E-3},{"$f":"CntyDataLink!$AR$132","v":74},{"$f":"CntyDataLink!$AS$132","v":51.224993899462788},{"$f":"IF(I$39=\"-\",\"-\",VALUE(I39/$I$41))","v":7.2399960864886021E-3},{"$f":"StatisticallySignificantCalcs!A23","v":"N"},{"$f":"StatisticallySignificantCalcs!J23","v":"N"}]
[null,"Other*",{"$f":"CntyDataLinkPrior10YearEstimate!$AT$132","v":39},{"$f":"CntyDataLinkPrior10YearEstimate!$AU$132","v":33.286633954186478},{"$f":"IF(C$40=\"-\",\"-\",VALUE(C40/$C$41))","v":4.0318412074847512E-3},{"$f":"CntyDataLinkPrior5YearEstimates!$AT$132","v":135},{"$f":"CntyDataLinkPrior5YearEstimates!$AU$132","v":80.361682411457764},{"$f":"IF(F$40=\"-\",\"-\",VALUE(F40/$F$41))","v":1.3903192584963954E-2},{"$f":"CntyDataLink!$AT$132","v":165},{"$f":"CntyDataLink!$AU$132","v":72.801098892805186},{"$f":"IF(I$40=\"-\",\"-\",VALUE(I40/$I$41))","v":1.6143234517170531E-2},{"$f":"StatisticallySignificantCalcs!A24","v":"Y"},{"$f":"StatisticallySignificantCalcs!J24","v":"N"}]
[null,"Total Population",{"$f":"CntyDataLinkPrior10YearEstimate!$B$132","v":9673},{"$f":"CntyDataLinkPrior10YearEstimate!$C$132","v":21},null,{"$f":"CntyDataLinkPrior5YearEstimates!$B$132","v":9710},{"$f":"CntyDataLinkPrior5YearEstimates!$C$132","v":27},null,{"$f":"CntyDataLink!$B$132","v":10221},{"$f":"CntyDataLink!$C$132","v":22}]
[null,"Hispanic",{"$f":"CntyDataLinkPrior10YearEstimate!$AV$132","v":112},{"$f":"CntyDataLinkPrior10YearEstimate!$AW$132","v":99},{"$f":"IF(C$42=\"-\",\"-\",VALUE(C42/$C$41))","v":1.1578620903545953E-2},{"$f":"CntyDataLinkPrior5YearEstimates!$AV132","v":230},{"$f":"CntyDataLinkPrior5YearEstimates!$AW$132","v":62},{"$f":"IF(F$42=\"-\",\"-\",VALUE(F42/$F$41))","v":2.368692070030896E-2},{"$f":"CntyDataLink!$AV$132","v":582},{"$f":"CntyDataLink!$AW$132","v":159},{"$f":"IF(I$42=\"-\",\"-\",VALUE(I42/$I$41))","v":5.694159084238333E-2},{"$f":"StatisticallySignificantCalcs!A26","v":"Y"},{"$f":"StatisticallySignificantCalcs!J26","v":"Y"}]
[]
[null,"*","Other includes population of 2 or more races"]
[]
[null,{"$f":"\"Source: \"& L20&\", \"&P20&\", and \"&S20&\" American Community Survey Table B03002\"","v":"Source: 2005-2009, 2010-2014, and 2015-2019 American Community Survey Table B03002"}]
[]
[null,null,"Households and Families"]
[null,null,null,"2010-2014",null,null,"2010-2014",null,null,"2015-2019",null,null,null,"Percent Change 2009-2019",null,"Percent Change 2010-2019"]
[null,null,null,"Estimate","Margin of Error",null,"Estimate","Margin of Error",null,"Estimate","Margin of Error"]
[null,null,"Total Households",{"$f":"CntyDataLinkPrior10YearEstimate!$T$132","v":4227},{"$f":"CntyDataLinkPrior10YearEstimate!$U$132","v":382},null,{"$f":"CntyDataLinkPrior5YearEstimates!$T$132","v":2536},{"$f":"CntyDataLinkPrior5YearEstimates!$U$132","v":223},null,{"$f":"CntyDataLink!$T$132","v":3977},{"$f":"CntyDataLink!$U$132","v":201},null,null,{"$f":"(J51-D51)/D51","v":-5.9143600662408327E-2},null,{"$f":"(J51-G51)/G51","v":0.56821766561514198}]
[null,null,"Persons per Household",{"$f":"CntyDataLinkPrior10YearEstimate!$BD$132","v":2.059380175065058},{"$f":"CntyDataLinkPrior10YearEstimate!$BE$132","v":0.22387820825063684},null,{"$f":"CntyDataLinkPrior5YearEstimates!$BD$132","v":2.6821766561514195},{"$f":"CntyDataLinkPrior5YearEstimates!$BE$132","v":0.31538716374067555},null,{"$f":"CntyDataLink!$BD$132","v":2.1171737490570783},{"$f":"CntyDataLink!$BE$132","v":0.12474333992413805},null,null,2.8063576940180354E-2,null,-0.21065089273614368]
[null,null,"Family Households",{"$f":"CntyDataLinkPrior10YearEstimate!$V$132","v":2417},{"$f":"CntyDataLinkPrior10YearEstimate!$U$132","v":382},null,{"$f":"CntyDataLinkPrior5YearEstimates!$V$132","v":1762},{"$f":"CntyDataLinkPrior5YearEstimates!$U$132","v":223},null,{"$f":"CntyDataLink!$V$132","v":2236},{"$f":"CntyDataLink!$U$132","v":201},null,null,-7.4886222589987589E-2,null,0.26901248581157777]
[null,null,"Persons per Family Household",{"$f":"CntyDataLinkPrior10YearEstimate!$BF$132","v":2.739346297062474},{"$f":"CntyDataLinkPrior10YearEstimate!$BG$132","v":0.30461334990409478},null,{"$f":"CntyDataLinkPrior5YearEstimates!$BF$132","v":1.1237113402061856},{"$f":"CntyDataLinkPrior5YearEstimates!$BG$132","v":0.25499638605309993},null,{"$f":"CntyDataLink!$BF$132","v":2.8743291592128801},{"$f":"CntyDataLink!$BG$132","v":0.28933252405634319},null,null,4.9275574356975015E-2,null,1.5578892517765996]
[null,null,"Married-Couple Family Hh",{"$f":"CntyDataLinkPrior10YearEstimate!$X$132","v":1871},{"$f":"CntyDataLinkPrior10YearEstimate!$Y$132","v":227},null,{"$f":"CntyDataLinkPrior5YearEstimates!$X$132","v":774},{"$f":"CntyDataLinkPrior5YearEstimates!$Y$132","v":164},null,{"$f":"CntyDataLink!$X$132","v":1586},{"$f":"CntyDataLink!$Y$132","v":177},null,null,-0.15232495991448422,null,1.0490956072351421]
[null,null,"Single-Parent Family Hh",{"$f":"CntyDataLinkPrior10YearEstimate!$Z$132","v":546},{"$f":"CntyDataLinkPrior10YearEstimate!$AA$132","v":134},null,{"$f":"CntyDataLinkPrior5YearEstimates!$Z$132","v":264},{"$f":"CntyDataLinkPrior5YearEstimates!$AA$132","v":108},null,{"$f":"CntyDataLink!$Z$132","v":650},{"$f":"CntyDataLink!$AA$132","v":145},null,null,0.19047619047619047,null,1.4621212121212122]
[null,null,"Non-Family Households*",{"$f":"CntyDataLinkPrior10YearEstimate!$AF$132","v":1810},{"$f":"CntyDataLinkPrior10YearEstimate!$AG$132","v":280},null,{"$f":"CntyDataLinkPrior5YearEstimates!$AF$132","v":1473},{"$f":"CntyDataLinkPrior5YearEstimates!$AG$132","v":245},null,{"$f":"CntyDataLink!$AF$132","v":1741},{"$f":"CntyDataLink!$AG$132","v":261},null,null,-3.8121546961325969E-2,null,0.18194161575016973]
[null,null,"Persons per Non-Family Hh",{"$f":"CntyDataLinkPrior10YearEstimate!$BH$132","v":1.1513812154696133},{"$f":"CntyDataLinkPrior10YearEstimate!$BI$132","v":0.25766371402393257},null,{"$f":"CntyDataLinkPrior5YearEstimates!$BH$132","v":0},{"$f":"CntyDataLinkPrior5YearEstimates!$BI$132","v":0},null,{"$f":"CntyDataLink!$BH$132","v":1.1447443997702469},{"$f":"CntyDataLink!$BI$132","v":0.26871556647948497},null,null,-5.7642209289122427E-3,null,{"$error":"#DIV/0!"}]
[]
[]
[null,"As a result of changes in the American Community Survey, direct comparisons between the data should be made with caution."]
[]
[null,"Source: 2005-2009, 2010-2014, and 2015-2019 American Community Survey Table B11001"]
[null,"POPULATION CHARACTERISTICS"]

{"sheet":"SchoolEnrolEduAttain","index":4,"n_rows":67,"n_cols":17,"rows_kept":67,"cut":false,"hidden":true,"merged":[[20,15,20,16],[49,15,49,16],[49,5,49,7],[20,5,20,7],[20,8,20,10],[20,11,20,13],[49,8,49,10]]}
[]
[null,null,{"$f":"CntyDataLink!A50","v":"Berlin"}]
[null,null,"SOCIAL CHARACTERISTICS"]
[]
[]
[]
[]
[]
[]
[]
[]
[]
[]
[]
[]
[]
[]
[]
[]
[]
[null,null,"School Enrollment",null,null,"2005-2009",null,null,"2010-2014",null,null,"2015-2019",null,null,null,"Statistically Significant Change"]
[null,null,null,null,null,"Estimate"," Margin of Error","Percent of Population","Estimate"," Margin of Error","Percent of Population","Estimate"," Margin of Error","Percent of Population",null,"2009-2019","2014-2019"]
[null,null,"Population 3 years and over",null,null,{"$f":"CntyDataLinkPrior10YearEstimate!$B$140","v":9392},{"$f":"CntyDataLinkPrior10YearEstimate!$C$140","v":91},null,{"$f":"CntyDataLinkPrior5YearEstimates!$B$140","v":9491},{"$f":"CntyDataLinkPrior5YearEstimates!$C$140","v":95},null,{"$f":"CntyDataLink!$B$140","v":9947},{"$f":"CntyDataLink!$C$140","v":88},null,null,{"$f":"StatisticallySignificantCalcs!$A$45","v":"Y"},{"$f":"StatisticallySignificantCalcs!$J$45","v":"Y"}]
[null,null,"Population 3 years & over enrolled in school",null,null,{"$f":"CntyDataLinkPrior10YearEstimate!$D$140","v":1812},{"$f":"CntyDataLinkPrior10YearEstimate!$E$140","v":223},{"$f":"F24/$F$23","v":0.19293015332197616},{"$f":"CntyDataLinkPrior5YearEstimates!$D$140","v":1772},{"$f":"CntyDataLinkPrior5YearEstimates!$E$140","v":202},{"$f":"I24/$I$23","v":0.18670319249815615},{"$f":"CntyDataLink!$D$140","v":1692},{"$f":"CntyDataLink!$E$140","v":242},{"$f":"L24/$L$23","v":0.17010153815220669},null,{"$f":"StatisticallySignificantCalcs!$A$46","v":"N"},{"$f":"StatisticallySignificantCalcs!$J$46","v":"N"}]
[null,null,"Preprimary (Nursery, Preschool, Kindergarten)",null,null,{"$f":"CntyDataLinkPrior10YearEstimate!$F$140","v":253},{"$f":"CntyDataLinkPrior10YearEstimate!$G$140","v":82.734515167492219},2.6937819420783646E-2,{"$f":"CntyDataLinkPrior5YearEstimates!$F$140","v":207},{"$f":"CntyDataLinkPrior5YearEstimates!$G$140","v":102.7861858422619},{"$f":"I25/$I$23","v":2.181013591823833E-2},{"$f":"CntyDataLink!$F$140","v":192},{"$f":"CntyDataLink!$G$140","v":97.836598469080073},1.9302302201668845E-2,null,{"$f":"StatisticallySignificantCalcs!$A$47","v":"N"},{"$f":"StatisticallySignificantCalcs!$J$47","v":"N"}]
[null,null,"        Nursery school and Preschool",null,null,{"$f":"CntyDataLinkPrior10YearEstimate!$H$140","v":134},{"$f":"CntyDataLinkPrior10YearEstimate!$I$140","v":59},1.4267461669505963E-2,{"$f":"CntyDataLinkPrior5YearEstimates!$H$140","v":167},{"$f":"CntyDataLinkPrior5YearEstimates!$I$140","v":97},1.7595616900221264E-2,{"$f":"CntyDataLink!$H$140","v":10},{"$f":"CntyDataLink!$I$140","v":12},1.0053282396702524E-3,null,{"$f":"StatisticallySignificantCalcs!$A$48","v":"Y"},{"$f":"StatisticallySignificantCalcs!$J$48","v":"Y"}]
[null,null,"        Kindergarten",null,null,{"$f":"CntyDataLinkPrior10YearEstimate!$J$140","v":119},{"$f":"CntyDataLinkPrior10YearEstimate!$K$140","v":58},1.2670357751277683E-2,{"$f":"CntyDataLinkPrior5YearEstimates!$J$140","v":40},{"$f":"CntyDataLinkPrior5YearEstimates!$K$140","v":34},4.2145190180170686E-3,{"$f":"CntyDataLink!$J$140","v":4},{"$f":"CntyDataLink!$K$140","v":6},4.0213129586810092E-4,null,{"$f":"StatisticallySignificantCalcs!$A$49","v":"Y"},{"$f":"StatisticallySignificantCalcs!$J$49","v":"Y"}]
[null,null,"Elementary through High school",null,null,{"$f":"CntyDataLinkPrior10YearEstimate!$P$140","v":1234},{"$f":"CntyDataLinkPrior10YearEstimate!$Q$140","v":203.91419764204747},0.13138841567291312,{"$f":"CntyDataLinkPrior5YearEstimates!$P$140","v":1181},{"$f":"CntyDataLinkPrior5YearEstimates!$Q$140","v":185.73906428104993},0.12443367400695396,{"$f":"CntyDataLink!$P$140","v":1154},{"$f":"CntyDataLink!$Q$140","v":212.1956644231922},0.11601487885794712,null,{"$f":"StatisticallySignificantCalcs!$A$50","v":"N"},{"$f":"StatisticallySignificantCalcs!$J$50","v":"N"}]
[null,null,"        Elementary school (grades 1-8)",null,null,{"$f":"CntyDataLinkPrior10YearEstimate!$L$140","v":740},{"$f":"CntyDataLinkPrior10YearEstimate!$M$140","v":160.3277892319357},7.8790459965928455E-2,{"$f":"CntyDataLinkPrior5YearEstimates!$L$140","v":822},{"$f":"CntyDataLinkPrior5YearEstimates!$M$140","v":163.02760502442524},8.6608365820250763E-2,{"$f":"CntyDataLink!$L$140","v":694},{"$f":"CntyDataLink!$M$140","v":178.33115263464205},6.9769779833115511E-2,null,{"$f":"StatisticallySignificantCalcs!$A$51","v":"N"},{"$f":"StatisticallySignificantCalcs!$J$51","v":"N"}]
[null,null,"        High school (grades 9-12)",null,null,{"$f":"CntyDataLinkPrior10YearEstimate!$N$140","v":494},{"$f":"CntyDataLinkPrior10YearEstimate!$O$140","v":126},5.2597955706984667E-2,{"$f":"CntyDataLinkPrior5YearEstimates!$N$140","v":359},{"$f":"CntyDataLinkPrior5YearEstimates!$O$140","v":89},3.782530818670319E-2,{"$f":"CntyDataLink!$N$140","v":460},{"$f":"CntyDataLink!$O$140","v":115},4.6245099024831607E-2,null,{"$f":"StatisticallySignificantCalcs!$A$52","v":"N"},{"$f":"StatisticallySignificantCalcs!$J$52","v":"N"}]
[null,null,"College or Graduate School",null,null,{"$f":"CntyDataLinkPrior10YearEstimate!$R$140","v":325},{"$f":"CntyDataLinkPrior10YearEstimate!$S$140","v":111.66467659918243},3.4603918228279386E-2,{"$f":"CntyDataLinkPrior5YearEstimates!$R$140","v":384},{"$f":"CntyDataLinkPrior5YearEstimates!$S$140","v":103.36827366266692},4.0459382572963859E-2,{"$f":"CntyDataLink!$R$140","v":346},{"$f":"CntyDataLink!$S$140","v":147.13938969562162},3.4784357092590729E-2,null,{"$f":"StatisticallySignificantCalcs!$A$53","v":"N"},{"$f":"StatisticallySignificantCalcs!$J$53","v":"N"}]
[]
[null,null,{"$f":"\"Source: \"&F21&\", \"& I21&\" and \"&L21&\" American Community Survey Table B14001\"","v":"Source: 2005-2009, 2010-2014 and 2015-2019 American Community Survey Table B14001"}]
[]
[]
[]
[]
[]
[]
[]
[]
[]
[]
[]
[]
[]
[]
[]
[]
[null,null,"Educational Attainment",null,null,"2005-2009",null,null,"2010-2014",null,null,"2015.-2019",null,null,null,"Statistically Significant Change"]
[null,null,null,null,null,"Estimate"," Margin of Error","Percent of Population","Estimate"," Margin of Error","Percent of Population","Estimate"," Margin of Error","Percent of Population",null,"2009-2019","2014-2019"]
[null,null,"Population 25 years and over",null,null,{"$f":"CntyDataLinkPrior10YearEstimate!$V$140","v":7088},{"$f":"CntyDataLinkPrior10YearEstimate!$W$140","v":234},null,{"$f":"CntyDataLinkPrior5YearEstimates!$V$140","v":7333},{"$f":"CntyDataLinkPrior5YearEstimates!$W$140","v":233},null,{"$f":"CntyDataLink!$V$140","v":7881},{"$f":"CntyDataLink!$W$140","v":164},null,null,{"$f":"StatisticallySignificantCalcs!A54","v":"Y"},{"$f":"StatisticallySignificantCalcs!$J$54","v":"Y"}]
[null,null,"Less than 9th Grade",null,null,{"$f":"CntyDataLinkPrior10YearEstimate!$X$140","v":439},{"$f":"CntyDataLinkPrior10YearEstimate!$Y$140","v":117.46914488494414},{"$f":"F53/$F$52","v":6.193566591422122E-2},{"$f":"CntyDataLinkPrior5YearEstimates!$X$140","v":282},{"$f":"CntyDataLinkPrior5YearEstimates!$Y$140","v":90.901045098502578},{"$f":"I53/$I$52","v":3.8456293467884907E-2},{"$f":"CntyDataLink!$X$140","v":369},{"$f":"CntyDataLink!$Y$140","v":132.94359706281458},{"$f":"L53/$L$52","v":4.6821469356680627E-2},null,{"$f":"StatisticallySignificantCalcs!A55","v":"N"},{"$f":"StatisticallySignificantCalcs!$J$55","v":"N"}]
[null,null,"9th to 12th Grade, no Diploma",null,null,{"$f":"CntyDataLinkPrior10YearEstimate!$Z$140","v":896},{"$f":"CntyDataLinkPrior10YearEstimate!$AA$140","v":188.194048790072},{"$f":"F54/$F$52","v":0.12641083521444696},{"$f":"CntyDataLinkPrior5YearEstimates!$Z$140","v":806},{"$f":"CntyDataLinkPrior5YearEstimates!$AA$140","v":155.3415591527264},0.10991408700395472,{"$f":"CntyDataLink!$Z$140","v":735},{"$f":"CntyDataLink!$AA$140","v":168.21117679868956},9.326227636086791E-2,null,{"$f":"StatisticallySignificantCalcs!A56","v":"N"},{"$f":"StatisticallySignificantCalcs!$J$56","v":"N"}]
[null,null,"High School Graduate ",null,null,{"$f":"CntyDataLinkPrior10YearEstimate!$AB$140","v":2984},{"$f":"CntyDataLinkPrior10YearEstimate!$AC$140","v":305.67957079268479},0.42099322799097066,{"$f":"CntyDataLinkPrior5YearEstimates!$AB$140","v":3178},{"$f":"CntyDataLinkPrior5YearEstimates!$AC$140","v":411.64669317267692},0.43338333560616393,{"$f":"CntyDataLink!$AB$140","v":3544},{"$f":"CntyDataLink!$AC$140","v":321.80894953372569},0.44968912574546377,null,{"$f":"StatisticallySignificantCalcs!A57","v":"N"},{"$f":"StatisticallySignificantCalcs!$J$57","v":"N"}]
[null,null,"Some College, No Degree",null,null,{"$f":"CntyDataLinkPrior10YearEstimate!$AD$140","v":1247},{"$f":"CntyDataLinkPrior10YearEstimate!$AE$140","v":188.7299658241902},0.17593115124153499,{"$f":"CntyDataLinkPrior5YearEstimates!$AD$140","v":1383},{"$f":"CntyDataLinkPrior5YearEstimates!$AE$140","v":228.0394702677587},0.18859948179462702,{"$f":"CntyDataLink!$AD$140","v":1425},{"$f":"CntyDataLink!$AE$140","v":249.49749497740453},0.18081461743433574,null,{"$f":"StatisticallySignificantCalcs!A58","v":"N"},{"$f":"StatisticallySignificantCalcs!$J$58","v":"N"}]
[null,null,"Associate Degree",null,null,{"$f":"CntyDataLinkPrior10YearEstimate!$AF$140","v":637},{"$f":"CntyDataLinkPrior10YearEstimate!$AG$140","v":131.89389675038038},8.9870203160270876E-2,{"$f":"CntyDataLinkPrior5YearEstimates!$AF$140","v":792},{"$f":"CntyDataLinkPrior5YearEstimates!$AG$140","v":129.07362240210043},0.10800490931405973,{"$f":"CntyDataLink!$AF$140","v":725},{"$f":"CntyDataLink!$AG$140","v":163.37992532744039},9.1993401852556778E-2,null,{"$f":"StatisticallySignificantCalcs!A59","v":"N"},{"$f":"StatisticallySignificantCalcs!$J$59","v":"N"}]
[null,null,"Bachelor's Degree",null,null,{"$f":"CntyDataLinkPrior10YearEstimate!$AH$140","v":532},{"$f":"CntyDataLinkPrior10YearEstimate!$AI$140","v":118.86967653695369},7.5056433408577872E-2,{"$f":"CntyDataLinkPrior5YearEstimates!$AH$140","v":622},{"$f":"CntyDataLinkPrior5YearEstimates!$AI$140","v":155.86211855354719},8.4822037365334793E-2,{"$f":"CntyDataLink!$AH$140","v":732},{"$f":"CntyDataLink!$AI$140","v":163.51758315239374},9.2881614008374566E-2,null,{"$f":"StatisticallySignificantCalcs!A60","v":"N"},{"$f":"StatisticallySignificantCalcs!$J$60","v":"N"}]
[null,null,"Graduate or Professional Degree",null,null,{"$f":"CntyDataLinkPrior10YearEstimate!$AJ$140","v":160},{"$f":"CntyDataLinkPrior10YearEstimate!$AK$140","v":135.88598161694236},2.2573363431151242E-2,{"$f":"CntyDataLinkPrior5YearEstimates!$AJ$140","v":169},{"$f":"CntyDataLinkPrior5YearEstimates!$AK$140","v":70.908391604943347},2.3046502113732444E-2,{"$f":"CntyDataLink!$AJ$140","v":246},{"$f":"CntyDataLink!$AK$140","v":82.861329943466387},3.1214312904453749E-2,null,{"$f":"StatisticallySignificantCalcs!A61","v":"N"},{"$f":"StatisticallySignificantCalcs!$J$61","v":"N"}]
[]
[null,null,"Percent of High School Graduate or Higher",null,null,null,null,{"$f":"SUM(F55:F59)/F52","v":0.78442437923250563},null,null,{"$f":"SUM(I55:I59)/I52","v":0.83785626619391795},null,null,{"$f":"SUM(L55:L59)/L52","v":0.84659307194518463}]
[null,null,"Percent of Bachelor's Degree or Higher",null,null,null,null,{"$f":"SUM(F58:F59)/F52","v":9.7629796839729124E-2},null,null,{"$f":"SUM(I58:I59)/I52","v":0.10786853947906723},null,null,{"$f":"SUM(L58:L59)/L52","v":0.12409592691282832}]
[]
[null,null,{"$f":"\"Source: \"&F21&\", \"&I21&\" and \"&L21&\" American Community Survey Table B15002\"","v":"Source: 2005-2009, 2010-2014 and 2015-2019 American Community Survey Table B15002"},null,null,null,null,"Data from the American Community Survey are estimates"]
[]
[null,null,"As a result of changes in the American Community Survey, direct comparisons between the data should be made with caution."]
[null,null,"be made with caution."]

{"sheet":"HousingCharacteristics","index":5,"n_rows":112,"n_cols":16,"rows_kept":112,"cut":false,"hidden":true,"merged":[[85,2,85,4],[85,6,85,8],[85,10,85,12],[29,2,29,4],[29,5,29,7],[29,8,29,10],[68,3,68,5],[68,6,68,8],[29,11,29,12],[29,14,29,15],[68,9,68,11],[68,12,68,13],[68,14,68,15],[85,14,85,15]],"read":"row_number_cap"}
[]
[null,{"$f":"CntyDataLink!$A35","v":"Berlin"}]
[]
[null,"HOUSING CHARACTERISTICS"]
[]
[]
[]
[]
[]
[]
[]
[]
[]
[]
[]
[]
[]
[]
[]
[]
[]
[]
[]
[]
[]
[]
[null,null,null,{"$f":"\"Source:  \"& \" \"&D69&\", \"&G69&\" and \"&J69& \" American Community Survey Table B25024; B25032\"","v":"Source:   2005-2009, 2010-2014 and 2015-2019 American Community Survey Table B25024; B25032"}]
[null,"Units by Tenure & Vacancy"]
[]
[null,null,"2005-2009",null,null,"2010-2014",null,null,"2015-2019",null,null,"Percent Change",null,null,"Statistically Significant Change"]
[null,null,"Estimate","Margin of Error","%","Estimate","Margin of Error","%","Estimate","Margin of Error","%","2009-2019","2014-2019",null,"2009-2019","2014-2019"]
[null,"Total Units",{"$f":"CntyDataLinkPrior10YearEstimate!$B$108","v":4839},{"$f":"CntyDataLinkPrior5YearEstimates!$C$108","v":326},null,{"$f":"CntyDataLinkPrior5YearEstimates!$B$108","v":4854},{"$f":"CntyDataLinkPrior5YearEstimates!$C$108","v":326},null,{"$f":"CntyDataLink!$B$108","v":4784},{"$f":"CntyDataLink!$C$108","v":216},null,{"$f":"IF(I32=\"-\",\"-\",(I32-C32)/C32)","v":-1.1365984707584211E-2},{"$f":"IF(I32=\"-\",\"-\",(I32-F32)/F32)","v":-1.442109600329625E-2},null,{"$f":"StatisticallySignificantCalcs!$A62","v":"N"},{"$f":"StatisticallySignificantCalcs!$J62","v":"N"}]
[null,"Occupied Units",{"$f":"CntyDataLinkPrior10YearEstimate!$D$108","v":4227},{"$f":"CntyDataLinkPrior5YearEstimates!$E$108","v":303},{"$f":"ROUND(C33/C32,2)*100&\"% of Total\"","v":"87% of Total"},{"$f":"CntyDataLinkPrior5YearEstimates!$D$108","v":4185},{"$f":"CntyDataLinkPrior5YearEstimates!$E$108","v":303},{"$f":"ROUND(F33/F32,2)*100&\"% of Total\"","v":"86% of Total"},{"$f":"CntyDataLink!$D$108","v":3977},{"$f":"CntyDataLink!$E$108","v":201},{"$f":"ROUND(I33/I32,2)*100&\"% of Total\"","v":"83% of Total"},{"$f":"IF(I33=\"-\",\"-\",(I33-C33)/C33)","v":-5.9143600662408327E-2},-4.9701314217443247E-2,null,{"$f":"StatisticallySignificantCalcs!$A63","v":"N"},{"$f":"StatisticallySignificantCalcs!$J63","v":"N"}]
[null,"Owner Occupied",{"$f":"CntyDataLinkPrior10YearEstimate!$F$108","v":2703},{"$f":"CntyDataLinkPrior5YearEstimates!$G$108","v":234},{"$f":"ROUND(C34/C33,2)*100&\"% of Occ.\"","v":"64% of Occ."},{"$f":"CntyDataLinkPrior5YearEstimates!$F$108","v":2534},{"$f":"CntyDataLinkPrior5YearEstimates!$G$108","v":234},{"$f":"ROUND(F34/F33,2)*100&\"% of Occ.\"","v":"61% of Occ."},{"$f":"CntyDataLink!$F$108","v":2228},{"$f":"CntyDataLink!$G$108","v":192},{"$f":"ROUND(I34/I33,2)*100&\"% of Occ.\"","v":"56% of Occ."},{"$f":"IF(I34=\"-\",\"-\",(I34-C34)/C34)","v":-0.1757306696263411},-0.12075769534333071,null,{"$f":"StatisticallySignificantCalcs!$A64","v":"Y"},{"$f":"StatisticallySignificantCalcs!$J64","v":"Y"}]
[null,"Renter Occupied",{"$f":"CntyDataLinkPrior10YearEstimate!$H$108","v":1524},{"$f":"CntyDataLinkPrior5YearEstimates!$I$108","v":226},{"$f":"ROUND(C35/C33,2)*100&\"% of Occ.\"","v":"36% of Occ."},{"$f":"CntyDataLinkPrior5YearEstimates!$H$108","v":1651},{"$f":"CntyDataLinkPrior5YearEstimates!$I$108","v":226},{"$f":"ROUND(F35/F33,2)*100&\"% of Occ.\"","v":"39% of Occ."},{"$f":"CntyDataLink!$H$108","v":1749},{"$f":"CntyDataLink!$I$108","v":196},{"$f":"ROUND(I35/I33,2)*100&\"% of Occ.\"","v":"44% of Occ."},{"$f":"IF(I35=\"-\",\"-\",(I35-C35)/C35)","v":0.14763779527559054},5.9357964869775896E-2,null,{"$f":"StatisticallySignificantCalcs!$A65","v":"N"},{"$f":"StatisticallySignificantCalcs!$J65","v":"N"}]
[null,"Vacant Units",{"$f":"CntyDataLinkPrior10YearEstimate!$J$108","v":612},{"$f":"CntyDataLinkPrior5YearEstimates!$K$108","v":152},{"$f":"ROUND(C36/C32,2)*100&\"% of Total\"","v":"13% of Total"},{"$f":"CntyDataLinkPrior5YearEstimates!$J$108","v":669},{"$f":"CntyDataLinkPrior5YearEstimates!$K$108","v":152},{"$f":"ROUND(F36/F32,2)*100&\"% of Total\"","v":"14% of Total"},{"$f":"CntyDataLink!$J$108","v":807},{"$f":"CntyDataLink!$K$108","v":192},{"$f":"ROUND(I36/I32,2)*100&\"% of Total\"","v":"17% of Total"},{"$f":"IF(I36=\"-\",I36,VALUE((I36-C36)/C36))","v":0.31862745098039214},0.20627802690582961,null,{"$f":"StatisticallySignificantCalcs!$A66","v":"N"},{"$f":"StatisticallySignificantCalcs!$J66","v":"N"}]
[null,"Vacant For Sale",{"$f":"CntyDataLinkPrior10YearEstimate!$P$108","v":119},{"$f":"CntyDataLinkPrior5YearEstimates!$Q$108","v":64},{"$f":"ROUND(C37/(C34+C37),3)*100&\"% Vac.\"","v":"4.2% Vac."},{"$f":"CntyDataLinkPrior5YearEstimates!$P$108","v":71},{"$f":"CntyDataLinkPrior5YearEstimates!$Q$108","v":64},{"$f":"ROUND(F37/(F34+F37),3)*100&\"% Vac.\"","v":"2.7% Vac."},{"$f":"CntyDataLink!$P$108","v":73},{"$f":"CntyDataLink!$Q$108","v":62},{"$f":"ROUND(I37/(I34+I37),3)*100&\"% Vac.\"","v":"3.2% Vac."},{"$f":"IF(I37=\"-\",I37,VALUE((I37-C37)/C37))","v":-0.38655462184873951},2.8169014084507043E-2,null,{"$f":"StatisticallySignificantCalcs!$A67","v":"N"},{"$f":"StatisticallySignificantCalcs!$J67","v":"N"}]
[null,"Vacant For Rent",{"$f":"CntyDataLinkPrior10YearEstimate!$L$108","v":91},{"$f":"CntyDataLinkPrior5YearEstimates!$M$108","v":41},{"$f":"ROUND(C38/(C35+C38),3)*100&\"% Vac.\"","v":"5.6% Vac."},{"$f":"CntyDataLinkPrior5YearEstimates!$L$108","v":26},{"$f":"CntyDataLinkPrior5YearEstimates!$M$108","v":41},{"$f":"ROUND(F38/(F35+F38),3)*100&\"% Vac.\"","v":"1.6% Vac."},{"$f":"CntyDataLink!$L$108","v":100},{"$f":"CntyDataLink!$M$108","v":72},{"$f":"ROUND(I38/(I35+I38),3)*100&\"% Vac.\"","v":"5.4% Vac."},{"$f":"IF(I38=\"-\",I38,VALUE((I38-C38)/C38))","v":9.8901098901098897E-2},2.8461538461538463,null,{"$f":"StatisticallySignificantCalcs!$A68","v":"N"},{"$f":"StatisticallySignificantCalcs!$J68","v":"N"}]
[null,"Vacant Seasonal",{"$f":"CntyDataLinkPrior10YearEstimate!$T$108","v":96},{"$f":"CntyDataLinkPrior5YearEstimates!$U$108","v":96},{"$f":"ROUND(C39/C32,2)*100&\"% of Total\"","v":"2% of Total"},{"$f":"CntyDataLinkPrior5YearEstimates!$T$108","v":165},{"$f":"CntyDataLinkPrior5YearEstimates!$U$108","v":96},{"$f":"ROUND(F39/F32,2)*100&\"% of Total\"","v":"3% of Total"},{"$f":"CntyDataLink!$T$108","v":144},{"$f":"CntyDataLink!$U$108","v":82},{"$f":"ROUND(I39/I32,2)*100&\"% of Total\"","v":"3% of Total"},{"$f":"IF(I39=\"-\",I39,VALUE((I39-C39)/C39))","v":0.5},-0.12727272727272726,null,{"$f":"StatisticallySignificantCalcs!$A69","v":"N"},{"$f":"StatisticallySignificantCalcs!$J69","v":"N"}]
[]
[null,"Data from the American Community Survey are estimates"]
[]
[]
[null,"HOUSING CHARACTERISTICS"]
[]
[]
[]
[]
[]
[]
[]
[]
[]
[]
[]
[]
[]
[]
[]
[]
[]
[]
[]
[]
[null,null,null,{"$f":"\"Source: \"& \" \"&D69&\", \"&G69&\" and \"&J69& \"  American Community Survey Table B25024; B25032\"","v":"Source:  2005-2009, 2010-2014 and 2015-2019  American Community Survey Table B25024; B25032"}]
[]
[null,null,"Units by Type"]
[]
[null,null,null,"2005-2009",null,null,"2010-2014",null,null,"2015-2019",null,null,"Percent Change",null,"Statistically Significant Change"]
[null,null,null,"Estimate","Margin of Error","% of Total","Estimate","Margin of Error","% of Total","Estimate","Margin of Error","% of Total","2009-2019","2014-2019","2009-2019","2014-2019"]
[null,null,"Total Units",{"$f":"CntyDataLinkPrior10YearEstimate!$B$108","v":4839},{"$f":"CntyDataLinkPrior10YearEstimate!$C$108","v":334},null,{"$f":"CntyDataLinkPrior5YearEstimates!$B$108","v":4854},{"$f":"CntyDataLinkPrior5YearEstimates!$C$108","v":326},null,{"$f":"CntyDataLink!$B$108","v":4784},{"$f":"CntyDataLink!$C$108","v":216},null,null,null,{"$f":"StatisticallySignificantCalcs!$A70","v":"N"},{"$f":"StatisticallySignificantCalcs!$J70","v":"N"}]
[null,null,"Single Family Units",{"$f":"CntyDataLinkPrior10YearEstimate!$AT$108","v":2644},{"$f":"CntyDataLinkPrior10YearEstimate!$AU$108","v":221},{"$f":"IF(D72=\"-\",\"-\",($D$72/$D$71))","v":0.54639388303368464},{"$f":"CntyDataLinkPrior5YearEstimates!$AT$108","v":2632},{"$f":"CntyDataLinkPrior5YearEstimates!$AU$108","v":250},{"$f":"IF(G72=\"-\",\"-\",($G$72/$G$71))","v":0.54223320972393907},{"$f":"CntyDataLink!$AT$108","v":2812},{"$f":"CntyDataLink!$AU$108","v":253},{"$f":"IF(J72=\"-\",\"-\",($J$72/$J$71))","v":0.58779264214046822},{"$f":"IF(J72=\"-\",\"-\",($J72-$D72)/$D72)","v":6.3540090771558241E-2},{"$f":"IF(J72=\"-\",\"-\",($J72-$G72)/$G72)","v":6.8389057750759874E-2},{"$f":"StatisticallySignificantCalcs!$A71","v":"N"},{"$f":"StatisticallySignificantCalcs!$J71","v":"N"}]
[null,null,"SF Owner Occ.",{"$f":"CntyDataLinkPrior10YearEstimate!$AF$108","v":2322},{"$f":"CntyDataLinkPrior10YearEstimate!$AG$108","v":237},null,{"$f":"CntyDataLinkPrior5YearEstimates!$AF$108","v":2135},{"$f":"CntyDataLinkPrior5YearEstimates!$AG$108","v":207},null,{"$f":"CntyDataLink!$AF$108","v":2482},{"$f":"CntyDataLink!$AG$108","v":197},null,null,null,{"$f":"StatisticallySignificantCalcs!$A72","v":"N"},{"$f":"StatisticallySignificantCalcs!$J72","v":"Y"}]
[null,null,"SF Renter Occ.",{"$f":"CntyDataLinkPrior10YearEstimate!$AN$108","v":117},{"$f":"CntyDataLinkPrior10YearEstimate!$AO$108","v":81},null,{"$f":"CntyDataLinkPrior5YearEstimates!$AN$108","v":225},{"$f":"CntyDataLinkPrior5YearEstimates!$AO$108","v":105},null,{"$f":"CntyDataLink!$AN$108","v":139},{"$f":"CntyDataLink!$AO$108","v":72},null,null,null,{"$f":"StatisticallySignificantCalcs!$A73","v":"N"},{"$f":"StatisticallySignificantCalcs!$J73","v":"N"}]
[null,null,"Multi-family Units",{"$f":"CntyDataLinkPrior10YearEstimate!$AV$108","v":2151},{"$f":"CntyDataLinkPrior10YearEstimate!$AW$108","v":289.2611277029805},{"$f":"IF(D75=\"-\",\"-\",$D$75/$D$71)","v":0.444513329200248},{"$f":"CntyDataLinkPrior5YearEstimates!$AV$108","v":2175},{"$f":"CntyDataLinkPrior5YearEstimates!$AW$108","v":282.19319623265193},{"$f":"IF(G75=\"-\",\"-\",$G$75/$G$71)","v":0.44808405438813348},{"$f":"CntyDataLink!$AV$108","v":2295},{"$f":"CntyDataLink!$AW$108","v":317.61612049768507},{"$f":"IF(J75=\"-\",\"-\",$J$75/$J$71)","v":0.47972408026755853},{"$f":"IF(J75=\"-\",\"-\",($J75-$D75)/$D75)","v":6.6945606694560664E-2},{"$f":"IF(J75=\"-\",\"-\",($J75-$G75)/$G75)","v":5.5172413793103448E-2},{"$f":"StatisticallySignificantCalcs!$A74","v":"N"},{"$f":"StatisticallySignificantCalcs!$J74","v":"N"}]
[null,null,"MF Owner Occ.",{"$f":"CntyDataLinkPrior10YearEstimate!$AH$108","v":348},{"$f":"CntyDataLinkPrior10YearEstimate!$AI$108","v":278.46723326093502},null,{"$f":"CntyDataLinkPrior5YearEstimates!$AH$108","v":352},{"$f":"CntyDataLinkPrior5YearEstimates!$AI$108","v":91.131772724994221},null,{"$f":"CntyDataLink!$AH$108","v":372},{"$f":"CntyDataLink!$AI$108","v":120.61509026651682},null,null,null,{"$f":"StatisticallySignificantCalcs!$A75","v":"N"},{"$f":"StatisticallySignificantCalcs!$J75","v":"N"}]
[null,null,"MF Renter Occ.",{"$f":"CntyDataLinkPrior10YearEstimate!$AP$108","v":1396},{"$f":"CntyDataLinkPrior10YearEstimate!$AQ$108","v":231.79516819813134},null,{"$f":"CntyDataLinkPrior5YearEstimates!$AP$108","v":1426},{"$f":"CntyDataLinkPrior5YearEstimates!$AQ$108","v":220.76231562474607},null,{"$f":"CntyDataLink!$AP$108","v":1451},{"$f":"CntyDataLink!$AQ$108","v":233.14373249135392},null,null,null,{"$f":"StatisticallySignificantCalcs!$A76","v":"N"},{"$f":"StatisticallySignificantCalcs!$J76","v":"N"}]
[null,null,"Mobile Home & Other",{"$f":"CntyDataLinkPrior10YearEstimate!$AX$108","v":44},{"$f":"CntyDataLinkPrior10YearEstimate!$AY$108","v":118.96217886370441},{"$f":"IF(D78=\"-\",\"-\",($D$78/$D$71))","v":9.092787766067369E-3},{"$f":"CntyDataLinkPrior5YearEstimates!$AX$108","v":47},{"$f":"CntyDataLinkPrior5YearEstimates!$AY$108","v":47.434164902525687},{"$f":"IF(G78=\"-\",\"-\",($G$78/$G$71))","v":9.6827358879274829E-3},{"$f":"CntyDataLink!$AX$108","v":34},{"$f":"CntyDataLink!$AY$108","v":32.249030993194197},{"$f":"IF(J78=\"-\",\"-\",($J$78/$J$71))","v":7.1070234113712371E-3},{"$f":"IF(J78=\"-\",\"-\",($J78-$D78)/$D78)","v":-0.22727272727272727},{"$f":"IF(J78=\"-\",\"-\",($J78-$G78)/$G78)","v":-0.27659574468085107},{"$f":"StatisticallySignificantCalcs!$A77","v":"N"},{"$f":"StatisticallySignificantCalcs!$J77","v":"N"}]
[]
[null,"Data from the American Community Survey are estimates"]
[]
[]
[null,"Units by Number of Bedrooms "]
[null,null,null,{"$f":"\"Source: \"& \" \"&D69&\", \"&G69&\" and \"&J69& \" American Community Survey Table B25041\"","v":"Source:  2005-2009, 2010-2014 and 2015-2019 American Community Survey Table B25041"}]
[]
[null,null,"2005-2009",null,null,null,"2010-2014",null,null,null,"2015-2019",null,null,null,"Statistically Significant Change"]
[null,"Bedrooms","Estimate","Margin of Error","% of Total",null,"Estimate","Margin of Error","% of Total",null,"Estimate","Margin of Error","% of Total",null,"2009-2019","2014-2019"]
[null,"No Bedrooms",{"$f":"CntyDataLinkPrior10YearEstimate!$BR$108","v":41},{"$f":"CntyDataLinkPrior10YearEstimate!$BS$108","v":39},{"$f":"C88/SUM($C$88:$C$92)","v":8.4728249638355031E-3},null,{"$f":"CntyDataLinkPrior5YearEstimates!$BR$108","v":79},{"$f":"CntyDataLinkPrior5YearEstimates!$BS$108","v":66},{"$f":"G88/SUM($G$88:$G$92)","v":1.6275236918005767E-2},null,{"$f":"CntyDataLink!$BT$108","v":90},{"$f":"CntyDataLink!$BU$108","v":72},{"$f":"K88/SUM($K$88:$K$92)","v":1.750632172729041E-2},null,{"$f":"StatisticallySignificantCalcs!$A78","v":"N"},{"$f":"StatisticallySignificantCalcs!$J78","v":"N"}]
[null,"1 Bedroom",{"$f":"CntyDataLinkPrior10YearEstimate!$BT$108","v":614},{"$f":"CntyDataLinkPrior10YearEstimate!$BU$108","v":173},{"$f":"C89/SUM($C$88:$C$92)","v":0.12688572019012193},null,{"$f":"CntyDataLinkPrior5YearEstimates!$BT$108","v":568},{"$f":"CntyDataLinkPrior5YearEstimates!$BU$108","v":137},{"$f":"G89/SUM($G$88:$G$92)","v":0.11701689328388958},null,{"$f":"CntyDataLink!$BV$108","v":703},{"$f":"CntyDataLink!$BW$108","v":156},{"$f":"K89/SUM($K$88:$K$92)","v":0.13674382415872399},null,{"$f":"StatisticallySignificantCalcs!$A79","v":"Y"},{"$f":"StatisticallySignificantCalcs!$J79","v":"N"}]
[null,"2 Bedrooms",{"$f":"CntyDataLinkPrior10YearEstimate!$BV$108","v":1512},{"$f":"CntyDataLinkPrior10YearEstimate!$BW$108","v":222},{"$f":"C90/SUM($C$88:$C$92)","v":0.31246125232486049},null,{"$f":"CntyDataLinkPrior5YearEstimates!$BV$108","v":1507},{"$f":"CntyDataLinkPrior5YearEstimates!$BW$108","v":232},{"$f":"G90/SUM($G$88:$G$92)","v":0.31046559538524926},null,{"$f":"CntyDataLink!$BX$108","v":1652},{"$f":"CntyDataLink!$BY$108","v":224},{"$f":"K90/SUM($K$88:$K$92)","v":0.32133826103870844},null,{"$f":"StatisticallySignificantCalcs!$A80","v":"Y"},{"$f":"StatisticallySignificantCalcs!$J80","v":"N"}]
[null,"3 Bedrooms",{"$f":"CntyDataLinkPrior10YearEstimate!$BX$108","v":1800},{"$f":"CntyDataLinkPrior10YearEstimate!$BY$108","v":216},{"$f":"C91/SUM($C$88:$C$92)","v":0.37197768133911963},null,{"$f":"CntyDataLinkPrior5YearEstimates!$BX$108","v":1997},{"$f":"CntyDataLinkPrior5YearEstimates!$BY$108","v":253},{"$f":"G91/SUM($G$88:$G$92)","v":0.41141326740832301},null,{"$f":"CntyDataLink!$BZ$108","v":1908},{"$f":"CntyDataLink!$CA$108","v":209},{"$f":"K91/SUM($K$88:$K$92)","v":0.37113402061855671},null,{"$f":"StatisticallySignificantCalcs!$A81","v":"Y"},{"$f":"StatisticallySignificantCalcs!$J81","v":"N"}]
[null,"4+ Bedrooms",{"$f":"CntyDataLinkPrior10YearEstimate!$BZ$108","v":872},{"$f":"CntyDataLinkPrior10YearEstimate!$CA$108","v":171.73234989366446},{"$f":"C92/SUM($C$88:$C$92)","v":0.1802025211820624},null,{"$f":"CntyDataLinkPrior5YearEstimates!$BZ$108","v":703},{"$f":"CntyDataLinkPrior5YearEstimates!$CA$108","v":135.20355024924456},{"$f":"G92/SUM($G$88:$G$92)","v":0.14482900700453236},null,{"$f":"CntyDataLink!$CB$108","v":788},{"$f":"CntyDataLink!$CC$108","v":155.41557193537591},{"$f":"K92/SUM($K$88:$K$92)","v":0.1532775724567205},null,{"$f":"StatisticallySignificantCalcs!$A82","v":"Y"},{"$f":"StatisticallySignificantCalcs!$J82","v":"N"}]
[]
[null,"As a result of changes in the American Community Survey, direct comparisons between the 2009-2013 and 2015-2019 data should be made with caution."]
[null,"Data from the American Community Survey are estimates"]
[]
[null,"Units by Year Built   "]
[null,{"$f":"\"Source: \"&K86& \" American Community Survey Table B25034\"","v":"Source: 2015-2019 American Community Survey Table B25034"}]
[]
[null,null,null,"Year Built",null,null,"Units  ",null,"% of Total",null,"Margin of Error"]
[null,null,null,null,null,"2014 or later",{"$f":"CntyDataLink!$AZ$108","v":0},null,{"$f":"G101/SUM($G$101:$G$110)","v":0},null,{"$f":"CntyDataLink!$BA$108","v":18}]
[null,null,null,null,null,"2010 through 2013",{"$f":"CntyDataLink!$BB$108","v":19},null,{"$f":"G102/SUM($G$101:$G$110)","v":3.971571906354515E-3},null,{"$f":"CntyDataLink!$BC$108","v":15}]
[null,null,null,null,null,"2000 through 2009",{"$f":"CntyDataLink!$BD$108","v":74},null,1.5468227424749164E-2,null,{"$f":"CntyDataLink!$BE$108","v":48}]
[null,null,null,null,null,"1990 through 1999",{"$f":"CntyDataLink!$BF$108","v":104},null,2.1739130434782608E-2,null,{"$f":"CntyDataLink!$BG$108","v":61}]
[null,null,null,null,null,"1980 through 1989",{"$f":"CntyDataLink!$BH$108","v":299},null,6.25E-2,null,{"$f":"CntyDataLink!$BI$108","v":107}]
[null,null,null,null,null,"1970 through 1979",{"$f":"CntyDataLink!$BJ$108","v":465},null,9.7198996655518399E-2,null,{"$f":"CntyDataLink!$BK$108","v":131}]
[null,null,null,null,null,"1960 through 1969",{"$f":"CntyDataLink!$BL$108","v":429},null,8.9673913043478257E-2,null,{"$f":"CntyDataLink!$BM$108","v":139}]
[null,null,null,null,null,"1950 through 1959",{"$f":"CntyDataLink!$BN$108","v":623},null,0.13022575250836121,null,{"$f":"CntyDataLink!$BO$108","v":127}]
[null,null,null,null,null,"1940 through 1949",{"$f":"CntyDataLink!$BP$108","v":336},null,7.0234113712374577E-2,null,{"$f":"CntyDataLink!$BQ$108","v":96}]
[null,null,null,null,null,"1939 and earlier",{"$f":"CntyDataLink!$BR$108","v":2435},null,0.50898829431438131,null,{"$f":"CntyDataLink!$BS$108","v":240}]
[]
[null,"Data from the American Community Survey are estimates"]

{"sheet":"CntyDataLink","index":6,"n_rows":167,"n_cols":255,"rows_kept":167,"cut":false,"hidden":true,"merged":[]}
[1,{"$f":"A1+1","v":2},{"$f":"B1+1","v":3},4,5,6,7,8,9,10,11,12,13,14,15,{"$f":"O1+1","v":16},17,18,19,20,21,22,23,24,25,26,27,28,29,30,31,32,33,34,35,36,37,38,39,40,41,42,43,44,45,46,47,48,49,50,51,52,53,54,55,56,57,58,59,60,61,62,63,64,65,66,{"$f":"BN1+1","v":67},68,69,70,71,72,73,74,75,76,77,78,79,80,81,82,83,84,85,86,87,88,89,90,91,92,93,94,95,96,97,98,99,100,101,102,103,104,105,106,107,108,109,110,111,112,113,114,115,116,117,118,119,120,121,122,123,124,125,126,127,128,129,130,{"$f":"DZ1+1","v":131},132,133,134,135,136,137,138,139,140,141,142,143,144,145,146,147,148,149,150,151,152,153,154,155,156,157,158,159,160,161,162,163,164,165,166,167,168,169,170,171,172,173,174,175,176,177,178,179,180,181,182,183,184,185,186,187,188,189,190,191,192,193,194,{"$f":"GL1+1","v":195},196,197,198,199,200,201,202,203,204,205,206,207,208,209,210,211,212,213,214,215,216,217,218,219,220,221,222,223,224,225,226,227,228,229,230,231,232,233,234,235,236,237,238,239,240,241,242,243,244,245,246,247,248,249,250,251,252,253,254,255]
[]
["Census 1990 Data -           Query Name:  DPCnty90Census"]
["TownName","Cnty_Code","Census_Cnty_Code","LandAcres","WaterAcres","HousingUnits90Cen","Persons90Cen","Families90Cen","Households90cen","MalePop90cen","FemalePop90cen","WhitePop","BlackPop","AmerIndianPop","AsianPIPop","OtherRacePop","HispanicOrPop","AgeUnder15_90cen","Age15to24_90cen","Age25to34_90cen","Age35to44_90cen","Age45to54_90cen","Age55to64_90cen","Age65to74_90cen","Age75andOver_90cen","PersonsInHH90cen","PersonsInFamHH90cen","PersonsInGC","PersonsPerHH90cen","PersonsPerFam90Cen","SinglePersonHH90cen","MarriedCoupleHH90cen","SingleParentHH90cen","NonFamilyHH90cen","TotalHousingUnits","OccupiedHousingUnits","VacantHousingUnits","OwnerOccHU","RenterOccHU","VacantForRent90","VacantForSale90","VacantSeasonalRec","SingFamHU90cen","MultiFamHU90cen","MobileHom90cen","SingFamOwnHU90cen","MultiFamOwnHU90cen","MobileHomOwnHU90cen","SingFamRntrHU90cen","MultiFamRntrHU90cen","MobileHomRntrHU90cen","HU<5yrs90cen","HU5to20yrs90cen","HU20to50yrs90cen","HU>50yrs90cen","Units0Bedroom90cen","Units1Bedroom90cen","Units2Bedroom90cen","Units3Bedroom90cen","Units4+Bedroom90cen","HI<5K","HI5Kto10K","HI10Kto15K","HI15Kto25K","HI25Kto35K","HI35Kto50K","HI50Kto75K","HI75Kto100K","HI>100K","MedHI","HH<25HI<5K","HH<25HI5Kto10K","HH<25HI10Kto15K","HH<25HI15Kto25K","HH<25HI25Kto35K","HH<25HI35Kto50K","HH<25HI50Kto75K","HH<25HI75Kto100K","HH<25HI>100K","HH25to34HI<5K","HH25to34HI5Kto10K","HH25to34HI10Kto15K","HH25to34HI15Kto25K","HH25to34HI25Kto35K","HH25to34HI35Kto50K","HH25to34HI50Kto75K","HH25to34HI75Kto100K","HH25to34HI>100K","HH35to44HI<5K","HH35to44HI5Kto10K","HH35to44HI10Kto15K","HH35to44HI15Kto25K","HH35to44HI25Kto35K","HH35to44HI35Kto50K","HH35to44HI50Kto75K","HH35to44HI75Kto100K","HH35to44HI>100K","HH45to54HI<5K","HH45to54HI5Kto10K","HH45to54HI10Kto15K","HH45to54HI15Kto25K","HH45to54HI25Kto35K","HH45to54HI35Kto50K","HH45to54HI50Kto75K","HH45to54HI75Kto100K","HH45to54HI>100K","HH55to64HI<5K","HH55to64HI5Kto10K","HH55to64HI10Kto15K","HH55to64HI15Kto25K","HH55to64HI25Kto35K","HH55to64HI35Kto50K","HH55to64HI50Kto75K","HH55to64HI75Kto100K","HH55to64HI>100K","HH65to74HI<5K","HH65to74HI5Kto10K","HH65to74HI10Kto15K","HH65to74HI15Kto25K","HH65to74HI25Kto35K","HH65to74HI35Kto50K","HH65to74HI50Kto75K","HH65to74HI75Kto100K","HH65to74HI>100K","HH>75HI<5K","HH>75HI5Kto10K","HH>75HI10Kto15K","HH>75HI15Kto25K","HH>75HI25Kto35K","HH>75HI35Kto50K","HH>75HI50Kto75K","HH>75HI75Kto100K","HH>75HI>100K","SchoolEnrollment1thru12","Pop25andOver","HSGradorHigher","CollGradorHigher","NativePop","ForeignBornPop","BornStateOfRes","NativePop2","ForeignBornPop2","DroveAlone","CarPooled","PublicTranspt","Walked","OtherMeans","WorkedAtHome","HHInc<10K","HHInc10to15K","HHInc15to25K","HHInc25to35K","HHInc35to50K","HHInc50to75K","HHInc75to100K","HHInc100to150K","HHInc>150K"]
[{"$f":"VLOOKUP(DropDownList!$A$47,CntyQuery!$A$4:$FI$46,A1)","v":"Berlin"},{"$f":"VLOOKUP(DropDownList!$A$47,CntyQuery!$A$4:$FA$46,B1)","v":7020},{"$f":"VLOOKUP(DropDownList!$A$47,CntyQuery!$A$4:$FA$46,C1)","v":"05140"},{"$f":"VLOOKUP(DropDownList!$A$47,CntyQuery!$A$4:$FA$46,D1)","v":39338.14},{"$f":"VLOOKUP(DropDownList!$A$47,CntyQuery!$A$4:$FA$46,E1)","v":467.59},{"$f":"VLOOKUP(DropDownList!$A$47,CntyQuery!$A$4:$FA$46,F1)","v":5416},{"$f":"VLOOKUP(DropDownList!$A$47,CntyQuery!$A$4:$FA$46,G1)","v":11824},{"$f":"VLOOKUP(DropDownList!$A$47,CntyQuery!$A$4:$FA$46,H1)","v":3287},{"$f":"VLOOKUP(DropDownList!$A$47,CntyQuery!$A$4:$FA$46,I1)","v":4943},{"$f":"VLOOKUP(DropDownList!$A$47,CntyQuery!$A$4:$FA$46,J1)","v":5617},{"$f":"VLOOKUP(DropDownList!$A$47,CntyQuery!$A$4:$FA$46,K1)","v":6207},{"$f":"VLOOKUP(DropDownList!$A$47,CntyQuery!$A$4:$FA$46,L1)","v":11712},{"$f":"VLOOKUP(DropDownList!$A$47,CntyQuery!$A$4:$FA$46,M1)","v":15},{"$f":"VLOOKUP(DropDownList!$A$47,CntyQuery!$A$4:$FA$46,N1)","v":21},{"$f":"VLOOKUP(DropDownList!$A$47,CntyQuery!$A$4:$FA$46,O1)","v":57},{"$f":"VLOOKUP(DropDownList!$A$47,CntyQuery!$A$4:$FA$46,P1)","v":19},{"$f":"VLOOKUP(DropDownList!$A$47,CntyQuery!$A$4:$FA$46,Q1)","v":61},{"$f":"VLOOKUP(DropDownList!$A$47,CntyQuery!$A$4:$FA$46,R1)","v":2180},{"$f":"VLOOKUP(DropDownList!$A$47,CntyQuery!$A$4:$FA$46,S1)","v":1478},{"$f":"VLOOKUP(DropDownList!$A$47,CntyQuery!$A$4:$FA$46,T1)","v":1847},{"$f":"VLOOKUP(DropDownList!$A$47,CntyQuery!$A$4:$FA$46,U1)","v":1491},{"$f":"VLOOKUP(DropDownList!$A$47,CntyQuery!$A$4:$FA$46,V1)","v":1086},{"$f":"VLOOKUP(DropDownList!$A$47,CntyQuery!$A$4:$FA$46,W1)","v":1368},{"$f":"VLOOKUP(DropDownList!$A$47,CntyQuery!$A$4:$FA$46,X1)","v":1312},{"$f":"VLOOKUP(DropDownList!$A$47,CntyQuery!$A$4:$FA$46,Y1)","v":1062},{"$f":"VLOOKUP(DropDownList!$A$47,CntyQuery!$A$4:$FA$46,Z1)","v":11607},{"$f":"VLOOKUP(DropDownList!$A$47,CntyQuery!$A$4:$FA$46,AA1)","v":9688},{"$f":"VLOOKUP(DropDownList!$A$47,CntyQuery!$A$4:$FA$46,AB1)","v":217},{"$f":"VLOOKUP(DropDownList!$A$47,CntyQuery!$A$4:$FA$46,AC1)","v":2.3481691280598826},{"$f":"VLOOKUP(DropDownList!$A$47,CntyQuery!$A$4:$FA$46,AD1)","v":2.9473684210526314},{"$f":"VLOOKUP(DropDownList!$A$47,CntyQuery!$A$4:$FA$46,AE1)","v":1453},{"$f":"VLOOKUP(DropDownList!$A$47,CntyQuery!$A$4:$FA$46,AF1)","v":2698},{"$f":"VLOOKUP(DropDownList!$A$47,CntyQuery!$A$4:$FA$46,AG1)","v":589},{"$f":"VLOOKUP(DropDownList!$A$47,CntyQuery!$A$4:$FA$46,AH1)","v":203},{"$f":"VLOOKUP(DropDownList!$A$47,CntyQuery!$A$4:$FA$46,AI1)","v":5416},{"$f":"VLOOKUP(DropDownList!$A$47,CntyQuery!$A$4:$FA$46,AJ1)","v":4943},{"$f":"VLOOKUP(DropDownList!$A$47,CntyQuery!$A$4:$FA$46,AK1)","v":473},{"$f":"VLOOKUP(DropDownList!$A$47,CntyQuery!$A$4:$FA$46,AL1)","v":2998},{"$f":"VLOOKUP(DropDownList!$A$47,CntyQuery!$A$4:$FA$46,AM1)","v":1945},{"$f":"VLOOKUP(DropDownList!$A$47,CntyQuery!$A$4:$FA$46,AN1)","v":221},{"$f":"VLOOKUP(DropDownList!$A$47,CntyQuery!$A$4:$FA$46,AO1)","v":53},{"$f":"VLOOKUP(DropDownList!$A$47,CntyQuery!$A$4:$FA$46,AP1)","v":22},{"$f":"VLOOKUP(DropDownList!$A$47,CntyQuery!$A$4:$FA$46,AQ1)","v":2507},{"$f":"VLOOKUP(DropDownList!$A$47,CntyQuery!$A$4:$FA$46,AR1)","v":2792},{"$f":"VLOOKUP(DropDownList!$A$47,CntyQuery!$A$4:$FA$46,AS1)","v":117},{"$f":"VLOOKUP(DropDownList!$A$47,CntyQuery!$A$4:$FA$46,AT1)","v":2321},{"$f":"VLOOKUP(DropDownList!$A$47,CntyQuery!$A$4:$FA$46,AU1)","v":605},{"$f":"VLOOKUP(DropDownList!$A$47,CntyQuery!$A$4:$FA$46,AV1)","v":117},{"$f":"VLOOKUP(DropDownList!$A$47,CntyQuery!$A$4:$FA$46,AW1)","v":102},{"$f":"VLOOKUP(DropDownList!$A$47,CntyQuery!$A$4:$FA$46,AX1)","v":1809},{"$f":"VLOOKUP(DropDownList!$A$47,CntyQuery!$A$4:$FA$46,AY1)","v":34},{"$f":"VLOOKUP(DropDownList!$A$47,CntyQuery!$A$4:$FA$46,AZ1)","v":96},{"$f":"VLOOKUP(DropDownList!$A$47,CntyQuery!$A$4:$FA$46,BA1)","v":451},{"$f":"VLOOKUP(DropDownList!$A$47,CntyQuery!$A$4:$FA$46,BB1)","v":1437},{"$f":"VLOOKUP(DropDownList!$A$47,CntyQuery!$A$4:$FA$46,BC1)","v":3441},{"$f":"VLOOKUP(DropDownList!$A$47,CntyQuery!$A$4:$FA$46,BD1)","v":71},{"$f":"VLOOKUP(DropDownList!$A$47,CntyQuery!$A$4:$FA$46,BE1)","v":640},{"$f":"VLOOKUP(DropDownList!$A$47,CntyQuery!$A$4:$FA$46,BF1)","v":2021},{"$f":"VLOOKUP(DropDownList!$A$47,CntyQuery!$A$4:$FA$46,BG1)","v":2093},{"$f":"VLOOKUP(DropDownList!$A$47,CntyQuery!$A$4:$FA$46,BH1)","v":600},{"$f":"VLOOKUP(DropDownList!$A$47,CntyQuery!$A$4:$FA$46,BI1)","v":379},{"$f":"VLOOKUP(DropDownList!$A$47,CntyQuery!$A$4:$FA$46,BJ1)","v":708},{"$f":"VLOOKUP(DropDownList!$A$47,CntyQuery!$A$4:$FA$46,BK1)","v":531},{"$f":"VLOOKUP(DropDownList!$A$47,CntyQuery!$A$4:$FA$46,BL1)","v":871},{"$f":"VLOOKUP(DropDownList!$A$47,CntyQuery!$A$4:$FA$46,BM1)","v":753},{"$f":"VLOOKUP(DropDownList!$A$47,CntyQuery!$A$4:$FA$46,BN1)","v":1063},{"$f":"VLOOKUP(DropDownList!$A$47,CntyQuery!$A$4:$FA$46,BO1)","v":547},{"$f":"VLOOKUP(DropDownList!$A$47,CntyQuery!$A$4:$FA$46,BP1)","v":94},{"$f":"VLOOKUP(DropDownList!$A$47,CntyQuery!$A$4:$FA$46,BQ1)","v":40},{"$f":"VLOOKUP(DropDownList!$A$47,CntyQuery!$A$4:$FA$46,BR1)","v":25040},{"$f":"VLOOKUP(DropDownList!$A$47,CntyQuery!$A$4:$FA$46,BS1)","v":60},{"$f":"VLOOKUP(DropDownList!$A$47,CntyQuery!$A$4:$FA$46,BT1)","v":30},{"$f":"VLOOKUP(DropDownList!$A$47,CntyQuery!$A$4:$FA$46,BU1)","v":60},{"$f":"VLOOKUP(DropDownList!$A$47,CntyQuery!$A$4:$FA$46,BV1)","v":67},{"$f":"VLOOKUP(DropDownList!$A$47,CntyQuery!$A$4:$FA$46,BW1)","v":74},{"$f":"VLOOKUP(DropDownList!$A$47,CntyQuery!$A$4:$FA$46,BX1)","v":21},{"$f":"VLOOKUP(DropDownList!$A$47,CntyQuery!$A$4:$FA$46,BY1)","v":8},{"$f":"VLOOKUP(DropDownList!$A$47,CntyQuery!$A$4:$FA$46,BZ1)","v":0},{"$f":"VLOOKUP(DropDownList!$A$47,CntyQuery!$A$4:$FA$46,CA1)","v":7},{"$f":"VLOOKUP(DropDownList!$A$47,CntyQuery!$A$4:$FA$46,CB1)","v":22},{"$f":"VLOOKUP(DropDownList!$A$47,CntyQuery!$A$4:$FA$46,CC1)","v":83},{"$f":"VLOOKUP(DropDownList!$A$47,CntyQuery!$A$4:$FA$46,CD1)","v":38},{"$f":"VLOOKUP(DropDownList!$A$47,CntyQuery!$A$4:$FA$46,CE1)","v":197},{"$f":"VLOOKUP(DropDownList!$A$47,CntyQuery!$A$4:$FA$46,CF1)","v":176},{"$f":"VLOOKUP(DropDownList!$A$47,CntyQuery!$A$4:$FA$46,CG1)","v":363},{"$f":"VLOOKUP(DropDownList!$A$47,CntyQuery!$A$4:$FA$46,CH1)","v":62},{"$f":"VLOOKUP(DropDownList!$A$47,CntyQuery!$A$4:$FA$46,CI1)","v":0},{"$f":"VLOOKUP(DropDownList!$A$47,CntyQuery!$A$4:$FA$46,CJ1)","v":0},{"$f":"VLOOKUP(DropDownList!$A$47,CntyQuery!$A$4:$FA$46,CK1)","v":33},{"$f":"VLOOKUP(DropDownList!$A$47,CntyQuery!$A$4:$FA$46,CL1)","v":30},{"$f":"VLOOKUP(DropDownList!$A$47,CntyQuery!$A$4:$FA$46,CM1)","v":62},{"$f":"VLOOKUP(DropDownList!$A$47,CntyQuery!$A$4:$FA$46,CN1)","v":99},{"$f":"VLOOKUP(DropDownList!$A$47,CntyQuery!$A$4:$FA$46,CO1)","v":109},{"$f":"VLOOKUP(DropDownList!$A$47,CntyQuery!$A$4:$FA$46,CP1)","v":266},{"$f":"VLOOKUP(DropDownList!$A$47,CntyQuery!$A$4:$FA$46,CQ1)","v":244},{"$f":"VLOOKUP(DropDownList!$A$47,CntyQuery!$A$4:$FA$46,CR1)","v":20},{"$f":"VLOOKUP(DropDownList!$A$47,CntyQuery!$A$4:$FA$46,CS1)","v":18},{"$f":"VLOOKUP(DropDownList!$A$47,CntyQuery!$A$4:$FA$46,CT1)","v":41},{"$f":"VLOOKUP(DropDownList!$A$47,CntyQuery!$A$4:$FA$46,CU1)","v":46},{"$f":"VLOOKUP(DropDownList!$A$47,CntyQuery!$A$4:$FA$46,CV1)","v":31},{"$f":"VLOOKUP(DropDownList!$A$47,CntyQuery!$A$4:$FA$46,CW1)","v":62},{"$f":"VLOOKUP(DropDownList!$A$47,CntyQuery!$A$4:$FA$46,CX1)","v":94},{"$f":"VLOOKUP(DropDownList!$A$47,CntyQuery!$A$4:$FA$46,CY1)","v":138},{"$f":"VLOOKUP(DropDownList!$A$47,CntyQuery!$A$4:$FA$46,CZ1)","v":118},{"$f":"VLOOKUP(DropDownList!$A$47,CntyQuery!$A$4:$FA$46,DA1)","v":36},{"$f":"VLOOKUP(DropDownList!$A$47,CntyQuery!$A$4:$FA$46,DB1)","v":9},{"$f":"VLOOKUP(DropDownList!$A$47,CntyQuery!$A$4:$FA$46,DC1)","v":48},{"$f":"VLOOKUP(DropDownList!$A$47,CntyQuery!$A$4:$FA$46,DD1)","v":37},{"$f":"VLOOKUP(DropDownList!$A$47,CntyQuery!$A$4:$FA$46,DE1)","v":30},{"$f":"VLOOKUP(DropDownList!$A$47,CntyQuery!$A$4:$FA$46,DF1)","v":165},{"$f":"VLOOKUP(DropDownList!$A$47,CntyQuery!$A$4:$FA$46,DG1)","v":129},{"$f":"VLOOKUP(DropDownList!$A$47,CntyQuery!$A$4:$FA$46,DH1)","v":220},{"$f":"VLOOKUP(DropDownList!$A$47,CntyQuery!$A$4:$FA$46,DI1)","v":94},{"$f":"VLOOKUP(DropDownList!$A$47,CntyQuery!$A$4:$FA$46,DJ1)","v":38},{"$f":"VLOOKUP(DropDownList!$A$47,CntyQuery!$A$4:$FA$46,DK1)","v":6},{"$f":"VLOOKUP(DropDownList!$A$47,CntyQuery!$A$4:$FA$46,DL1)","v":72},{"$f":"VLOOKUP(DropDownList!$A$47,CntyQuery!$A$4:$FA$46,DM1)","v":183},{"$f":"VLOOKUP(DropDownList!$A$47,CntyQuery!$A$4:$FA$46,DN1)","v":151},{"$f":"VLOOKUP(DropDownList!$A$47,CntyQuery!$A$4:$FA$46,DO1)","v":219},{"$f":"VLOOKUP(DropDownList!$A$47,CntyQuery!$A$4:$FA$46,DP1)","v":116},{"$f":"VLOOKUP(DropDownList!$A$47,CntyQuery!$A$4:$FA$46,DQ1)","v":40},{"$f":"VLOOKUP(DropDownList!$A$47,CntyQuery!$A$4:$FA$46,DR1)","v":21},{"$f":"VLOOKUP(DropDownList!$A$47,CntyQuery!$A$4:$FA$46,DS1)","v":0},{"$f":"VLOOKUP(DropDownList!$A$47,CntyQuery!$A$4:$FA$46,DT1)","v":0},{"$f":"VLOOKUP(DropDownList!$A$47,CntyQuery!$A$4:$FA$46,DU1)","v":103},{"$f":"VLOOKUP(DropDownList!$A$47,CntyQuery!$A$4:$FA$46,DV1)","v":299},{"$f":"VLOOKUP(DropDownList!$A$47,CntyQuery!$A$4:$FA$46,DW1)","v":159},{"$f":"VLOOKUP(DropDownList!$A$47,CntyQuery!$A$4:$FA$46,DX1)","v":62},{"$f":"VLOOKUP(DropDownList!$A$47,CntyQuery!$A$4:$FA$46,DY1)","v":55},{"$f":"VLOOKUP(DropDownList!$A$47,CntyQuery!$A$4:$FA$46,DZ1)","v":15},{"$f":"VLOOKUP(DropDownList!$A$47,CntyQuery!$A$4:$FA$46,EA1)","v":0},{"$f":"VLOOKUP(DropDownList!$A$47,CntyQuery!$A$4:$FA$46,EB1)","v":0},{"$f":"VLOOKUP(DropDownList!$A$47,CntyQuery!$A$4:$FA$46,EC1)","v":0},{"$f":"VLOOKUP(DropDownList!$A$47,CntyQuery!$A$4:$FA$46,ED1)","v":1768},{"$f":"VLOOKUP(DropDownList!$A$47,CntyQuery!$A$4:$FA$46,EE1)","v":8174},{"$f":"VLOOKUP(DropDownList!$A$47,CntyQuery!$A$4:$FA$46,EF1)","v":5270},{"$f":"VLOOKUP(DropDownList!$A$47,CntyQuery!$A$4:$FA$46,EG1)","v":583},{"$f":"VLOOKUP(DropDownList!$A$47,CntyQuery!$A$4:$FA$46,EH1)","v":11040},{"$f":"VLOOKUP(DropDownList!$A$47,CntyQuery!$A$4:$FA$46,EI1)","v":780},{"$f":"VLOOKUP(DropDownList!$A$47,CntyQuery!$A$4:$FA$46,EJ1)","v":9187},{"$f":"VLOOKUP(DropDownList!$A$47,CntyQuery!$A$4:$FA$46,EK1)","v":11040},{"$f":"VLOOKUP(DropDownList!$A$47,CntyQuery!$A$4:$FA$46,EL1)","v":780},{"$f":"VLOOKUP(DropDownList!$A$47,CntyQuery!$A$4:$FA$46,EM1)","v":3644},{"$f":"VLOOKUP(DropDownList!$A$47,CntyQuery!$A$4:$FA$46,EN1)","v":711},{"$f":"VLOOKUP(DropDownList!$A$47,CntyQuery!$A$4:$FA$46,EO1)","v":10},{"$f":"VLOOKUP(DropDownList!$A$47,CntyQuery!$A$4:$FA$46,EP1)","v":421},{"$f":"VLOOKUP(DropDownList!$A$47,CntyQuery!$A$4:$FA$46,EQ1)","v":72},{"$f":"VLOOKUP(DropDownList!$A$47,CntyQuery!$A$4:$FA$46,ER1)","v":76},{"$f":"VLOOKUP(DropDownList!$A$47,CntyQuery!$A$4:$FA$46,ES1)","v":1087},{"$f":"VLOOKUP(DropDownList!$A$47,CntyQuery!$A$4:$FA$46,ET1)","v":531},{"$f":"VLOOKUP(DropDownList!$A$47,CntyQuery!$A$4:$FA$46,EU1)","v":871},{"$f":"VLOOKUP(DropDownList!$A$47,CntyQuery!$A$4:$FA$46,EV1)","v":753},{"$f":"VLOOKUP(DropDownList!$A$47,CntyQuery!$A$4:$FA$46,EW1)","v":1063},{"$f":"VLOOKUP(DropDownList!$A$47,CntyQuery!$A$4:$FA$46,EX1)","v":547},{"$f":"VLOOKUP(DropDownList!$A$47,CntyQuery!$A$4:$FA$46,EY1)","v":94},{"$f":"VLOOKUP(DropDownList!$A$47,CntyQuery!$A$4:$FA$46,EZ1)","v":27},{"$f":"VLOOKUP(DropDownList!$A$47,CntyQuery!$A$4:$FA$46,FA1)","v":13}]
[]
[]
["Census 1990 Data -    Query Name:  TownSTF1Qry1"]
["NAME","COUSUBFP","Census_Cnty_Code","FIPS","LandAcres","WaterAcres","HousingUnits90Cen","P01Persons90Cen","P02Families90Cen","P03Households90cen","P05MalePop90cen","P05FemalePop90cen","P06WhitePop","P06BlackPop","P06AmerIndianPop","P06AsianPIPop","P06OtherRacePop","P08HispanicOrPop","P11AgeUnder15_90cen","P11Age15to24_90cen","P11Age25to34_90cen","P11Age35to44_90cen","P11Age45to54_90cen","P11Age55to64_90cen","P11Age65to74_90cen","P11Age75andOver_90cen","P15PersonsInHH90cen","P15PersonsInFamHH90cen","P15PersonsInGC","PersonsPerHH90cen","PersonsPerFam90Cen","P16SinglePersonHH90cen","P16MarriedCoupleHH90cen","P16SingleParentHH90cen","P16NonFamilyHH90cen","H01TotalHousingUnits","H02OccupiedHousingUnits","H02VacantHousingUnits","H03OwnerOccHU","H03RenterOccHU","H05VacantForRent90","H05VacantForSale90","H05VacantSeasonalRec","H23OOHUVal<15k","H23OOHUVal15to19k","H23OOHUVal20to24k","H23OOHUVal25to29k","H23OOHUVal30to34k","H23OOHUVal35to39k","H23OOHUVal40to44k","H23OOHUVal45to49k","H23OOHUVal50to59k","H23OOHUVal60to74k","H23OOHUVal75to99k","H23OOHUVal100to124k","H23OOHUVal125to149k","H23OOHUVal150to174k","H23OOHUVal175to199k","H23OOHUVal200to249k","H23OOHUVal250to299k","H23OOHUVal300to399k","H23OOHUVal400to499k","H23OOHUVal500kOrMore","H23BOOHUMedVal","H41SingFamHU90cen","H41MultiFamHU90cen","H41MobileHom90cen","H43SingFamOwnHU90cen","H43MultiFamOwnHU90cen","H43MobileHomOwnHU90cen","H43SingFamRntrHU90cen","H43MultiFamRntrHU90cen","H43MobileHomRntrHU90cen","H41HU1UnitDet","H41HU1UnitAtt","H41HU2Unit","H41HU3to4Unit","H41HU5to9Unit","H41HU10to19Unit","H41HU20to49Unit","H41HU50PlusUnit","H41HUMobilH","H41HUOther"]
[{"$f":"VLOOKUP(DropDownList!$B$47,CntyQuery!$A$51:$CE$93,A$1)","v":"Berlin"},{"$f":"VLOOKUP(DropDownList!$B$47,CntyQuery!$A$51:$CE$93,B$1)","v":401},{"$f":"VLOOKUP(DropDownList!$B$47,CntyQuery!$A$51:$CE$93,C$1)","v":7020},{"$f":"VLOOKUP(DropDownList!$B$47,CntyQuery!$A$51:$CE$93,D$1)","v":"05140"},{"$f":"VLOOKUP(DropDownList!$B$47,CntyQuery!$A$51:$CE$93,E$1)","v":39338.14},{"$f":"VLOOKUP(DropDownList!$B$47,CntyQuery!$A$51:$CE$93,F$1)","v":467.59},{"$f":"VLOOKUP(DropDownList!$B$47,CntyQuery!$A$51:$CE$93,G$1)","v":5416},{"$f":"VLOOKUP(DropDownList!$B$47,CntyQuery!$A$51:$CE$93,H$1)","v":11824},{"$f":"VLOOKUP(DropDownList!$B$47,CntyQuery!$A$51:$CE$93,I$1)","v":3287},{"$f":"VLOOKUP(DropDownList!$B$47,CntyQuery!$A$51:$CE$93,J$1)","v":4943},{"$f":"VLOOKUP(DropDownList!$B$47,CntyQuery!$A$51:$CE$93,K$1)","v":5617},{"$f":"VLOOKUP(DropDownList!$B$47,CntyQuery!$A$51:$CE$93,L$1)","v":6207},{"$f":"VLOOKUP(DropDownList!$B$47,CntyQuery!$A$51:$CE$93,M$1)","v":11712},{"$f":"VLOOKUP(DropDownList!$B$47,CntyQuery!$A$51:$CE$93,N$1)","v":15},{"$f":"VLOOKUP(DropDownList!$B$47,CntyQuery!$A$51:$CE$93,O$1)","v":21},{"$f":"VLOOKUP(DropDownList!$B$47,CntyQuery!$A$51:$CE$93,P$1)","v":57},{"$f":"VLOOKUP(DropDownList!$B$47,CntyQuery!$A$51:$CE$93,Q$1)","v":19},{"$f":"VLOOKUP(DropDownList!$B$47,CntyQuery!$A$51:$CE$93,R$1)","v":61},{"$f":"VLOOKUP(DropDownList!$B$47,CntyQuery!$A$51:$CE$93,S$1)","v":2180},{"$f":"VLOOKUP(DropDownList!$B$47,CntyQuery!$A$51:$CE$93,T$1)","v":1478},{"$f":"VLOOKUP(DropDownList!$B$47,CntyQuery!$A$51:$CE$93,U$1)","v":1847},{"$f":"VLOOKUP(DropDownList!$B$47,CntyQuery!$A$51:$CE$93,V$1)","v":1491},{"$f":"VLOOKUP(DropDownList!$B$47,CntyQuery!$A$51:$CE$93,W$1)","v":1086},{"$f":"VLOOKUP(DropDownList!$B$47,CntyQuery!$A$51:$CE$93,X$1)","v":1368},{"$f":"VLOOKUP(DropDownList!$B$47,CntyQuery!$A$51:$CE$93,Y$1)","v":1312},{"$f":"VLOOKUP(DropDownList!$B$47,CntyQuery!$A$51:$CE$93,Z$1)","v":1062},{"$f":"VLOOKUP(DropDownList!$B$47,CntyQuery!$A$51:$CE$93,AA$1)","v":11607},{"$f":"VLOOKUP(DropDownList!$B$47,CntyQuery!$A$51:$CE$93,AB$1)","v":9688},{"$f":"VLOOKUP(DropDownList!$B$47,CntyQuery!$A$51:$CE$93,AC$1)","v":217},{"$f":"VLOOKUP(DropDownList!$B$47,CntyQuery!$A$51:$CE$93,AD$1)","v":2.3481691280598826},{"$f":"VLOOKUP(DropDownList!$B$47,CntyQuery!$A$51:$CE$93,AE$1)","v":2.9473684210526314},{"$f":"VLOOKUP(DropDownList!$B$47,CntyQuery!$A$51:$CE$93,AF$1)","v":1453},{"$f":"VLOOKUP(DropDownList!$B$47,CntyQuery!$A$51:$CE$93,AG$1)","v":2698},{"$f":"VLOOKUP(DropDownList!$B$47,CntyQuery!$A$51:$CE$93,AH$1)","v":589},{"$f":"VLOOKUP(DropDownList!$B$47,CntyQuery!$A$51:$CE$93,AI$1)","v":203},{"$f":"VLOOKUP(DropDownList!$B$47,CntyQuery!$A$51:$CE$93,AJ$1)","v":5416},{"$f":"VLOOKUP(DropDownList!$B$47,CntyQuery!$A$51:$CE$93,AK$1)","v":4943},{"$f":"VLOOKUP(DropDownList!$B$47,CntyQuery!$A$51:$CE$93,AL$1)","v":473},{"$f":"VLOOKUP(DropDownList!$B$47,CntyQuery!$A$51:$CE$93,AM$1)","v":2998},{"$f":"VLOOKUP(DropDownList!$B$47,CntyQuery!$A$51:$CE$93,AN$1)","v":1945},{"$f":"VLOOKUP(DropDownList!$B$47,CntyQuery!$A$51:$CE$93,AO$1)","v":221},{"$f":"VLOOKUP(DropDownList!$B$47,CntyQuery!$A$51:$CE$93,AP$1)","v":53},{"$f":"VLOOKUP(DropDownList!$B$47,CntyQuery!$A$51:$CE$93,AQ$1)","v":22},{"$f":"VLOOKUP(DropDownList!$B$47,CntyQuery!$A$51:$CE$93,AR$1)","v":6},{"$f":"VLOOKUP(DropDownList!$B$47,CntyQuery!$A$51:$CE$93,AS$1)","v":14},{"$f":"VLOOKUP(DropDownList!$B$47,CntyQuery!$A$51:$CE$93,AT$1)","v":34},{"$f":"VLOOKUP(DropDownList!$B$47,CntyQuery!$A$51:$CE$93,AU$1)","v":73},{"$f":"VLOOKUP(DropDownList!$B$47,CntyQuery!$A$51:$CE$93,AV$1)","v":80},{"$f":"VLOOKUP(DropDownList!$B$47,CntyQuery!$A$51:$CE$93,AW$1)","v":85},{"$f":"VLOOKUP(DropDownList!$B$47,CntyQuery!$A$51:$CE$93,AX$1)","v":145},{"$f":"VLOOKUP(DropDownList!$B$47,CntyQuery!$A$51:$CE$93,AY$1)","v":100},{"$f":"VLOOKUP(DropDownList!$B$47,CntyQuery!$A$51:$CE$93,AZ$1)","v":279},{"$f":"VLOOKUP(DropDownList!$B$47,CntyQuery!$A$51:$CE$93,BA$1)","v":516},{"$f":"VLOOKUP(DropDownList!$B$47,CntyQuery!$A$51:$CE$93,BB$1)","v":599},{"$f":"VLOOKUP(DropDownList!$B$47,CntyQuery!$A$51:$CE$93,BC$1)","v":147},{"$f":"VLOOKUP(DropDownList!$B$47,CntyQuery!$A$51:$CE$93,BD$1)","v":54},{"$f":"VLOOKUP(DropDownList!$B$47,CntyQuery!$A$51:$CE$93,BE$1)","v":30},{"$f":"VLOOKUP(DropDownList!$B$47,CntyQuery!$A$51:$CE$93,BF$1)","v":6},{"$f":"VLOOKUP(DropDownList!$B$47,CntyQuery!$A$51:$CE$93,BG$1)","v":10},{"$f":"VLOOKUP(DropDownList!$B$47,CntyQuery!$A$51:$CE$93,BH$1)","v":1},{"$f":"VLOOKUP(DropDownList!$B$47,CntyQuery!$A$51:$CE$93,BI$1)","v":0},{"$f":"VLOOKUP(DropDownList!$B$47,CntyQuery!$A$51:$CE$93,BJ$1)","v":0},{"$f":"VLOOKUP(DropDownList!$B$47,CntyQuery!$A$51:$CE$93,BK$1)","v":0},{"$f":"VLOOKUP(DropDownList!$B$47,CntyQuery!$A$51:$CE$93,BL$1)","v":68000},{"$f":"VLOOKUP(DropDownList!$B$47,CntyQuery!$A$51:$CE$93,BM$1)","v":2507},{"$f":"VLOOKUP(DropDownList!$B$47,CntyQuery!$A$51:$CE$93,BN$1)","v":2792},{"$f":"VLOOKUP(DropDownList!$B$47,CntyQuery!$A$51:$CE$93,BO$1)","v":117},{"$f":"VLOOKUP(DropDownList!$B$47,CntyQuery!$A$51:$CE$93,BP$1)","v":2321},{"$f":"VLOOKUP(DropDownList!$B$47,CntyQuery!$A$51:$CE$93,BQ$1)","v":605},{"$f":"VLOOKUP(DropDownList!$B$47,CntyQuery!$A$51:$CE$93,BR$1)","v":72},{"$f":"VLOOKUP(DropDownList!$B$47,CntyQuery!$A$51:$CE$93,BS$1)","v":102},{"$f":"VLOOKUP(DropDownList!$B$47,CntyQuery!$A$51:$CE$93,BT$1)","v":1809},{"$f":"VLOOKUP(DropDownList!$B$47,CntyQuery!$A$51:$CE$93,BU$1)","v":34},{"$f":"VLOOKUP(DropDownList!$B$47,CntyQuery!$A$51:$CE$93,BV$1)","v":2507},{"$f":"VLOOKUP(DropDownList!$B$47,CntyQuery!$A$51:$CE$93,BW$1)","v":29},{"$f":"VLOOKUP(DropDownList!$B$47,CntyQuery!$A$51:$CE$93,BX$1)","v":1049},{"$f":"VLOOKUP(DropDownList!$B$47,CntyQuery!$A$51:$CE$93,BY$1)","v":994},{"$f":"VLOOKUP(DropDownList!$B$47,CntyQuery!$A$51:$CE$93,BZ$1)","v":466},{"$f":"VLOOKUP(DropDownList!$B$47,CntyQuery!$A$51:$CE$93,CA$1)","v":150},{"$f":"VLOOKUP(DropDownList!$B$47,CntyQuery!$A$51:$CE$93,CB$1)","v":43},{"$f":"VLOOKUP(DropDownList!$B$47,CntyQuery!$A$51:$CE$93,CC$1)","v":61},{"$f":"VLOOKUP(DropDownList!$B$47,CntyQuery!$A$51:$CE$93,CD$1)","v":69},{"$f":"VLOOKUP(DropDownList!$B$47,CntyQuery!$A$51:$CE$93,CE$1)","v":48}]
[]
[]
["Census 1990 Data -          Query Name: TownSTF3Qry1"]
["NAME","FIPS","COUSUBFP","LandAcres","WaterAcres","HousingUnits90Cen","P01Persons90Cen","P02Families90Cen","P03Households90cen","H25HU<5yrs90cen","H25HU5to20yrs90cen","H25HU20to50yrs90cen","H25HU>50yrs90cen","H31Units0Bedroom90cen","H31Units1Bedroom90cen","H31Units2Bedroom90cen","H31Units3Bedroom90cen","H31Units4Bedroom90cen","H31Units5+Bedroom90cen","P80HI<5K","P80HI5Kto10K","P80HI10Kto15K","P80HI15Kto25K","P80HI25Kto35K","P80HI35Kto50K","P80HI50Kto75K","P80HI75Kto100K","P80HI>100K","P80AMedHI","P86HH<25HI<5K","P86HH<25HI5Kto10K","P86HH<25HI10Kto15K","P86HH<25HI15Kto25K","P86HH<25HI25Kto35K","P86HH<25HI35Kto50K","P86HH<25HI50Kto75K","P86HH<25HI75Kto100K","P86HH<25HI>100K","P86HH25to34HI<5K","P86HH25to34HI5Kto10K","P86HH25to34HI10Kto15K","P86HH25to34HI15Kto25K","P86HH25to34HI25Kto35K","P86HH25to34HI35Kto50K","P86HH25to34HI50Kto75K","P86HH25to34HI75Kto100K","P86HH25to34HI>100K","P86HH35to44HI<5K","P86HH35to44HI5Kto10K","P86HH35to44HI10Kto15K","P86HH35to44HI15Kto25K","P86HH35to44HI25Kto35K","P86HH35to44HI35Kto50K","P86HH35to44HI50Kto75K","P86HH35to44HI75Kto100K","P86HH35to44HI>100K","P86HH45to54HI<5K","P86HH45to54HI5Kto10K","P86HH45to54HI10Kto15K","P86HH45to54HI15Kto25K","P86HH45to54HI25Kto35K","P86HH45to54HI35Kto50K","P86HH45to54HI50Kto75K","P86HH45to54HI75Kto100K","P86HH45to54HI>100K","P86HH55to64HI<5K","P86HH55to64HI5Kto10K","P86HH55to64HI10Kto15K","P86HH55to64HI15Kto25K","P86HH55to64HI25Kto35K","P86HH55to64HI35Kto50K","P86HH55to64HI50Kto75K","P86HH55to64HI75Kto100K","P86HH55to64HI>100K","P86HH65to74HI<5K","P86HH65to74HI5Kto10K","P86HH65to74HI10Kto15K","P86HH65to74HI15Kto25K","P86HH65to74HI25Kto35K","P86HH65to74HI35Kto50K","P86HH65to74HI50Kto75K","P86HH65to74HI75Kto100K","P86HH65to74HI>100K","P86HH>75HI<5K","P86HH>75HI5Kto10K","P86HH>75HI10Kto15K","P86HH>75HI15Kto25K","P86HH>75HI25Kto35K","P86HH>75HI35Kto50K","P86HH>75HI50Kto75K","P86HH>75HI75Kto100K","P86HH>75HI>100K","P54SchlEnrlPrePrim","P54SchlEnrlElemThrHS","P54SchlEnrlCollege","P54NotEnrlInSch","P57Pop25andOver","P57LessThan9thGrade","P579thto12thNoDip","P57HSGrad","P57SomeCollege","P57AssocDeg","P57BachelDeg","P57GradorProfDeg","P57HSGradorHigher","P57CollGradorHigher","P42NativePop","P42ForeignBornPop","P42BornStateOfRes","P37NativePop2","P37ForeignBornPop2","P49DroveAlone","P49CarPooled","P49PublicTranspt","P49Walked","P49OtherMeans","P49WorkedAtHome","P80HHInc<10K","P80HHInc10to15K","P80HHInc15to25K","P80HHInc25to35K","P80HHInc35to50K","P80HHInc50to75K","P80HHInc75to100K","P80HHInc100to150K","P80HHInc>150K","H25YearStBlt89to90","H25YearStBlt85to88","H25YearStBlt80to84","H25YearStBlt70to79","H25YearStBlt60to69","H25YearStBlt50to59","H25YearStBlt40to49","H25YearStBlt39earlier","P107FamInc<10K","P107FamInc10to15K","P107FamInc15to25K","P107FamInc25to35K","P107FamInc35to50K","P107FamInc50to75K","P107FamInc75to100K","P107FamInc100to150K","P107FamInc>150K","P107AMedFamInc","P110NonFamInc<10K","P110NonFamInc10to15K","P110NonFamInc15to25K","P110NonFamInc25to35K","P110NonFamInc35to50K","P110NonFamInc50to75K","P110NonFamInc75to100K","P110NonFamInc100to150K","P110NonFamInc>150K","P110AMedNonFamInc","H16HU1Room","H16HU2Room","H16HU3Room","H16HU4Room","H16HU5Room","H16HU6Room","H16HU7Room","H16HU8Room","H16HU9+Room","H43GrossRnt<100","H43GrossRnt100to149","H43GrossRnt150to199","H43GrossRnt200to249","H43GrossRnt250to299","H43GrossRnt300to349","H43GrossRnt350to399","H43GrossRnt400to449","H43GrossRnt450to499","H43GrossRnt500to549","H43GrossRnt550to599","H43GrossRnt600to649","H43GrossRnt650to699","H43GrossRnt700to749","H43GrossRnt750to999","H43GrossRnt1000Plus","H43NoCashRent","H43MedGrossRent","H51GrossRnt<20PctHHInc","H51GrossRnt20to24PctHHInc","H51GrossRnt25to29PctHHInc","H51GrossRnt30to34PctHHInc","H51GrossRnt35PctOrMoreHHInc","H51GrossRntAsPctHHIncNotComp","H52HUwMtgMoOwnCst<200","H52HUwMtgMoOwnCst200to299","H52HUwMtgMoOwnCst300to399","H52HUwMtgMoOwnCst400to499","H52HUwMtgMoOwnCst500to599","H52HUwMtgMoOwnCst600to699","H52HUwMtgMoOwnCst700to799","H52HUwMtgMoOwnCst800to899","H52HUwMtgMoOwnCst900to999","H52HUwMtgMoOwnCst1000to1249","H52HUwMtgMoOwnCst1250to1499","H52HUwMtgMoOwnCst1500to1999","H52HUwMtgMoOwnCst2000More","H52HUwNoMtgMoOwnCst<100","H52HUwNoMtgMoOwnCst100to149","H52HUwNoMtgMoOwnCst150to199","H52HUwNoMtgMoOwnCst200to249","H52HUwNoMtgMoOwnCst250to299","H52HUwNoMtgMoOwnCst300to349","H52HUwNoMtgMoOwnCst350to399","H52HUwNoMtgMoOwnCst400More","H52AMedMoOwnCstWMortg","H52AMedMoOwnCstWNoMortg","H58HUwMtgMOC<20pHHInc","H58HUwMtgMOC20to24pHHInc","H58HUwMtgMOC25to29pHHInc","H58HUwMtgMOC30to34pHHInc","H58wMtgMOC>35pHHInc","H58HUwMtgMOCNotComp","H58HUwNoMtgMOC<20pHHInc","H58HUwNoMtgMOC20to24pHHInc","H58HUwNoMtgMOC25to29pHHInc","H58HUwNoMtgMOC30to34pHHInc","H58wNoMtgMOC>35pHHInc","H58HUwNoMtgMOCNotComp","H61OOHUVal<15k","H61OOHUVal15to19k","H61OOHUVal20to24k","H61OOHUVal25to29k","H61OOHUVal30to34k","H61OOHUVal35to39k","H61OOHUVal40to44k","H61OOHUVal45to49k","H61OOHUVal50to59k","H61OOHUVal60to74k","H61OOHUVal75to99k","H61OOHUVal100to124k","H61OOHUVal125to149k","H61OOHUVal150to174k","H61OOHUVal175to199k","H61OOHUVal200to249k","H61OOHUVal250to299k","H61OOHUVal300to399k","H61OOHUVal400to499k","H61OOHUVal500kOrMore","H61aOOHUMedVal"]
[]
[]
[]
["Other Demo Data -             Query Name: QryAllTowns-ACSDemographicSheet"]
["TOWN_NAME","FIPS","TOWNCNTY","COUSUB","POP80","POP90CDCEN","POP2000CEN","POP2010CEN","POP2025-Proj","POP2030-Proj","POP2040-Proj","SF80","MF80","MH80","SF81","MF81","MH81","SF82","MF82","MH82","SF83","MF83","MH83","SF84_OSP","MF84_OSP","MH84_OSP","SF85_OSP","MF85_OSP","MH85_OSP","SF86_OSP","MF86_OSP","MH86_OSP","SF87_OSP","MF87_OSP","MH87_OSP","SF88_OSP","MF88_OSP","MH88_OSP","SF89_OSP","MF89_OSP","MH89_OSP","SF90_OSP","MF90_OSP","MH90_OSP","SF91_OSP","MF91_OSP","MH91_OSP","SF92_OSP","MF92_OSP","MH92_OSP","SF93_OSP","MF93_OSP","MH93_OSP","SF94_OSP","MF94_OSP","MH94_OSP","SF95_OSP","MF95_OSP","MH95_OSP","SF96_OSP","MF96_OSP","MH96_OSP","SF97_OSP","MF97_OSP","MH97_OSP","SF98_OSP","MF98_OSP","MH98_OSP","SF99_OSP","MF99_OSP","MH99_OSP","SF00_OSP","MF00_OSP","MH00_OSP","SF01_OSP","MF01_OSP","MH01_OSP","SF02_OSP","MF02_OSP","MH02_OSP","SF03_OSP","MF03_OSP","MH03_OSP","SF04_OSP","MF04_OSP","MH04_OSP","SF05_OSP","MF05_OSP","MH05_OSP","SF06_OSP","MF06_OSP","MH06_OSP","SF07_OSP","MF07_OSP","MH07_OSP","SF08_OSP","MF08_OSP","MH08_OSP","SF09_OSP","MF09_OSP","MH09_OSP","SF10_OSP","MF10_OSP","MH10_OSP","SF11_OSP","MF11_OSP","MH11_OSP","SF12_OSP","MF12_OSP","MH12_OSP","SF13_OSP","MF13_OSP","MH13_OSP","SF14_OSP","MF14_OSP","MH14_OSP","SF15_OSP","MF15_OSP","MH15_OSP","SF16_OSP","MF16_OSP","MH16_OSP","SF17_OSP","MF17_OSP","MH17_OSP","SF18_OSP","MF18_OSP","MH18_OSP","SF19_OSP","MF19_OSP","MH19_OSP","COMMENTS","CNTY_CODE"]
[{"$f":"VLOOKUP(DropDownList!$B$47,CntyQuery!$A$118:$FZ$160,A$1)","v":"Berlin"},{"$f":"VLOOKUP(DropDownList!$B$47,CntyQuery!$A$118:$FZ$160,B$1)","v":7020},{"$f":"VLOOKUP(DropDownList!$B$47,CntyQuery!$A$118:$FZ$160,C$1)","v":401},{"$f":"VLOOKUP(DropDownList!$B$47,CntyQuery!$A$118:$FZ$160,D$1)","v":"05140"},{"$f":"VLOOKUP(DropDownList!$B$47,CntyQuery!$A$118:$FZ$160,E$1)","v":13084},{"$f":"VLOOKUP(DropDownList!$B$47,CntyQuery!$A$118:$FZ$160,F$1)","v":11824},{"$f":"VLOOKUP(DropDownList!$B$47,CntyQuery!$A$118:$FZ$160,G$1)","v":10331},{"$f":"VLOOKUP(DropDownList!$B$47,CntyQuery!$A$118:$FZ$160,H$1)","v":10051},{"$f":"VLOOKUP(DropDownList!$B$47,CntyQuery!$A$118:$FZ$160,I$1)","v":9251},{"$f":"VLOOKUP(DropDownList!$B$47,CntyQuery!$A$118:$FZ$160,J$1)","v":9017},{"$f":"VLOOKUP(DropDownList!$B$47,CntyQuery!$A$118:$FZ$160,K$1)","v":8356},{"$f":"VLOOKUP(DropDownList!$B$47,CntyQuery!$A$118:$FZ$160,L$1)","v":0},{"$f":"VLOOKUP(DropDownList!$B$47,CntyQuery!$A$118:$FZ$160,M$1)","v":-18},{"$f":"VLOOKUP(DropDownList!$B$47,CntyQuery!$A$118:$FZ$160,N$1)","v":0},{"$f":"VLOOKUP(DropDownList!$B$47,CntyQuery!$A$118:$FZ$160,O$1)","v":0},{"$f":"VLOOKUP(DropDownList!$B$47,CntyQuery!$A$118:$FZ$160,P$1)","v":-4},{"$f":"VLOOKUP(DropDownList!$B$47,CntyQuery!$A$118:$FZ$160,Q$1)","v":0},{"$f":"VLOOKUP(DropDownList!$B$47,CntyQuery!$A$118:$FZ$160,R$1)","v":1},{"$f":"VLOOKUP(DropDownList!$B$47,CntyQuery!$A$118:$FZ$160,S$1)","v":-14},{"$f":"VLOOKUP(DropDownList!$B$47,CntyQuery!$A$118:$FZ$160,T$1)","v":0},{"$f":"VLOOKUP(DropDownList!$B$47,CntyQuery!$A$118:$FZ$160,U$1)","v":6},{"$f":"VLOOKUP(DropDownList!$B$47,CntyQuery!$A$118:$FZ$160,V$1)","v":-33},{"$f":"VLOOKUP(DropDownList!$B$47,CntyQuery!$A$118:$FZ$160,W$1)","v":3},{"$f":"VLOOKUP(DropDownList!$B$47,CntyQuery!$A$118:$FZ$160,X$1)","v":6},{"$f":"VLOOKUP(DropDownList!$B$47,CntyQuery!$A$118:$FZ$160,Y$1)","v":-27},{"$f":"VLOOKUP(DropDownList!$B$47,CntyQuery!$A$118:$FZ$160,Z$1)","v":3},{"$f":"VLOOKUP(DropDownList!$B$47,CntyQuery!$A$118:$FZ$160,AA$1)","v":4},{"$f":"VLOOKUP(DropDownList!$B$47,CntyQuery!$A$118:$FZ$160,AB$1)","v":-17},{"$f":"VLOOKUP(DropDownList!$B$47,CntyQuery!$A$118:$FZ$160,AC$1)","v":0},{"$f":"VLOOKUP(DropDownList!$B$47,CntyQuery!$A$118:$FZ$160,AD$1)","v":8},{"$f":"VLOOKUP(DropDownList!$B$47,CntyQuery!$A$118:$FZ$160,AE$1)","v":-16},{"$f":"VLOOKUP(DropDownList!$B$47,CntyQuery!$A$118:$FZ$160,AF$1)","v":1},{"$f":"VLOOKUP(DropDownList!$B$47,CntyQuery!$A$118:$FZ$160,AG$1)","v":18},{"$f":"VLOOKUP(DropDownList!$B$47,CntyQuery!$A$118:$FZ$160,AH$1)","v":-20},{"$f":"VLOOKUP(DropDownList!$B$47,CntyQuery!$A$118:$FZ$160,AI$1)","v":5},{"$f":"VLOOKUP(DropDownList!$B$47,CntyQuery!$A$118:$FZ$160,AJ$1)","v":28},{"$f":"VLOOKUP(DropDownList!$B$47,CntyQuery!$A$118:$FZ$160,AK$1)","v":2},{"$f":"VLOOKUP(DropDownList!$B$47,CntyQuery!$A$118:$FZ$160,AL$1)","v":2},{"$f":"VLOOKUP(DropDownList!$B$47,CntyQuery!$A$118:$FZ$160,AM$1)","v":12},{"$f":"VLOOKUP(DropDownList!$B$47,CntyQuery!$A$118:$FZ$160,AN$1)","v":-5},{"$f":"VLOOKUP(DropDownList!$B$47,CntyQuery!$A$118:$FZ$160,AO$1)","v":3},{"$f":"VLOOKUP(DropDownList!$B$47,CntyQuery!$A$118:$FZ$160,AP$1)","v":4},{"$f":"VLOOKUP(DropDownList!$B$47,CntyQuery!$A$118:$FZ$160,AQ$1)","v":-4},{"$f":"VLOOKUP(DropDownList!$B$47,CntyQuery!$A$118:$FZ$160,AR$1)","v":0},{"$f":"VLOOKUP(DropDownList!$B$47,CntyQuery!$A$118:$FZ$160,AS$1)","v":2},{"$f":"VLOOKUP(DropDownList!$B$47,CntyQuery!$A$118:$FZ$160,AT$1)","v":-15},{"$f":"VLOOKUP(DropDownList!$B$47,CntyQuery!$A$118:$FZ$160,AU$1)","v":0},{"$f":"VLOOKUP(DropDownList!$B$47,CntyQuery!$A$118:$FZ$160,AV$1)","v":2},{"$f":"VLOOKUP(DropDownList!$B$47,CntyQuery!$A$118:$FZ$160,AW$1)","v":0},{"$f":"VLOOKUP(DropDownList!$B$47,CntyQuery!$A$118:$FZ$160,AX$1)","v":0},{"$f":"VLOOKUP(DropDownList!$B$47,CntyQuery!$A$118:$FZ$160,AY$1)","v":2},{"$f":"VLOOKUP(DropDownList!$B$47,CntyQuery!$A$118:$FZ$160,AZ$1)","v":-6},{"$f":"VLOOKUP(DropDownList!$B$47,CntyQuery!$A$118:$FZ$160,BA$1)","v":1},{"$f":"VLOOKUP(DropDownList!$B$47,CntyQuery!$A$118:$FZ$160,BB$1)","v":1},{"$f":"VLOOKUP(DropDownList!$B$47,CntyQuery!$A$118:$FZ$160,BC$1)","v":0},{"$f":"VLOOKUP(DropDownList!$B$47,CntyQuery!$A$118:$FZ$160,BD$1)","v":-1},{"$f":"VLOOKUP(DropDownList!$B$47,CntyQuery!$A$118:$FZ$160,BE$1)","v":-2},{"$f":"VLOOKUP(DropDownList!$B$47,CntyQuery!$A$118:$FZ$160,BF$1)","v":-6},{"$f":"VLOOKUP(DropDownList!$B$47,CntyQuery!$A$118:$FZ$160,BG$1)","v":1},{"$f":"VLOOKUP(DropDownList!$B$47,CntyQuery!$A$118:$FZ$160,BH$1)","v":-1},{"$f":"VLOOKUP(DropDownList!$B$47,CntyQuery!$A$118:$FZ$160,BI$1)","v":-1},{"$f":"VLOOKUP(DropDownList!$B$47,CntyQuery!$A$118:$FZ$160,BJ$1)","v":0},{"$f":"VLOOKUP(DropDownList!$B$47,CntyQuery!$A$118:$FZ$160,BK$1)","v":-5},{"$f":"VLOOKUP(DropDownList!$B$47,CntyQuery!$A$118:$FZ$160,BL$1)","v":-3},{"$f":"VLOOKUP(DropDownList!$B$47,CntyQuery!$A$118:$FZ$160,BM$1)","v":0},{"$f":"VLOOKUP(DropDownList!$B$47,CntyQuery!$A$118:$FZ$160,BN$1)","v":1},{"$f":"VLOOKUP(DropDownList!$B$47,CntyQuery!$A$118:$FZ$160,BO$1)","v":-1},{"$f":"VLOOKUP(DropDownList!$B$47,CntyQuery!$A$118:$FZ$160,BP$1)","v":1},{"$f":"VLOOKUP(DropDownList!$B$47,CntyQuery!$A$118:$FZ$160,BQ$1)","v":-5},{"$f":"VLOOKUP(DropDownList!$B$47,CntyQuery!$A$118:$FZ$160,BR$1)","v":-13},{"$f":"VLOOKUP(DropDownList!$B$47,CntyQuery!$A$118:$FZ$160,BS$1)","v":0},{"$f":"VLOOKUP(DropDownList!$B$47,CntyQuery!$A$118:$FZ$160,BT$1)","v":-1},{"$f":"VLOOKUP(DropDownList!$B$47,CntyQuery!$A$118:$FZ$160,BU$1)","v":-21},{"$f":"VLOOKUP(DropDownList!$B$47,CntyQuery!$A$118:$FZ$160,BV$1)","v":0},{"$f":"VLOOKUP(DropDownList!$B$47,CntyQuery!$A$118:$FZ$160,BW$1)","v":0},{"$f":"VLOOKUP(DropDownList!$B$47,CntyQuery!$A$118:$FZ$160,BX$1)","v":-9},{"$f":"VLOOKUP(DropDownList!$B$47,CntyQuery!$A$118:$FZ$160,BY$1)","v":-1},{"$f":"VLOOKUP(DropDownList!$B$47,CntyQuery!$A$118:$FZ$160,BZ$1)","v":0},{"$f":"VLOOKUP(DropDownList!$B$47,CntyQuery!$A$118:$FZ$160,CA$1)","v":0},{"$f":"VLOOKUP(DropDownList!$B$47,CntyQuery!$A$118:$FZ$160,CB$1)","v":0},{"$f":"VLOOKUP(DropDownList!$B$47,CntyQuery!$A$118:$FZ$160,CC$1)","v":-1},{"$f":"VLOOKUP(DropDownList!$B$47,CntyQuery!$A$118:$FZ$160,CD$1)","v":-10},{"$f":"VLOOKUP(DropDownList!$B$47,CntyQuery!$A$118:$FZ$160,CE$1)","v":2},{"$f":"VLOOKUP(DropDownList!$B$47,CntyQuery!$A$118:$FZ$160,CF$1)","v":-1},{"$f":"VLOOKUP(DropDownList!$B$47,CntyQuery!$A$118:$FZ$160,CG$1)","v":0},{"$f":"VLOOKUP(DropDownList!$B$47,CntyQuery!$A$118:$FZ$160,CH$1)","v":2},{"$f":"VLOOKUP(DropDownList!$B$47,CntyQuery!$A$118:$FZ$160,CI$1)","v":3},{"$f":"VLOOKUP(DropDownList!$B$47,CntyQuery!$A$118:$FZ$160,CJ$1)","v":-6},{"$f":"VLOOKUP(DropDownList!$B$47,CntyQuery!$A$118:$FZ$160,CK$1)","v":1},{"$f":"VLOOKUP(DropDownList!$B$47,CntyQuery!$A$118:$FZ$160,CL$1)","v":-4},{"$f":"VLOOKUP(DropDownList!$B$47,CntyQuery!$A$118:$FZ$160,CM$1)","v":-3},{"$f":"VLOOKUP(DropDownList!$B$47,CntyQuery!$A$118:$FZ$160,CN$1)","v":0},{"$f":"VLOOKUP(DropDownList!$B$47,CntyQuery!$A$118:$FZ$160,CO$1)","v":-3},{"$f":"VLOOKUP(DropDownList!$B$47,CntyQuery!$A$118:$FZ$160,CP$1)","v":-32},{"$f":"VLOOKUP(DropDownList!$B$47,CntyQuery!$A$118:$FZ$160,CQ$1)","v":0},{"$f":"VLOOKUP(DropDownList!$B$47,CntyQuery!$A$118:$FZ$160,CR$1)","v":-1},{"$f":"VLOOKUP(DropDownList!$B$47,CntyQuery!$A$118:$FZ$160,CS$1)","v":-14},{"$f":"VLOOKUP(DropDownList!$B$47,CntyQuery!$A$118:$FZ$160,CT$1)","v":0},{"$f":"VLOOKUP(DropDownList!$B$47,CntyQuery!$A$118:$FZ$160,CU$1)","v":-5},{"$f":"VLOOKUP(DropDownList!$B$47,CntyQuery!$A$118:$FZ$160,CV$1)","v":-16},{"$f":"VLOOKUP(DropDownList!$B$47,CntyQuery!$A$118:$FZ$160,CW$1)","v":2},{"$f":"VLOOKUP(DropDownList!$B$47,CntyQuery!$A$118:$FZ$160,CX$1)","v":-3},{"$f":"VLOOKUP(DropDownList!$B$47,CntyQuery!$A$118:$FZ$160,CY$1)","v":-31},{"$f":"VLOOKUP(DropDownList!$B$47,CntyQuery!$A$118:$FZ$160,CZ$1)","v":0},{"$f":"VLOOKUP(DropDownList!$B$47,CntyQuery!$A$118:$FZ$160,DA$1)","v":-9},{"$f":"VLOOKUP(DropDownList!$B$47,CntyQuery!$A$118:$FZ$160,DB$1)","v":-24},{"$f":"VLOOKUP(DropDownList!$B$47,CntyQuery!$A$118:$FZ$160,DC$1)","v":0},{"$f":"VLOOKUP(DropDownList!$B$47,CntyQuery!$A$118:$FZ$160,DD$1)","v":-12},{"$f":"VLOOKUP(DropDownList!$B$47,CntyQuery!$A$118:$FZ$160,DE$1)","v":-61},{"$f":"VLOOKUP(DropDownList!$B$47,CntyQuery!$A$118:$FZ$160,DF$1)","v":2},{"$f":"VLOOKUP(DropDownList!$B$47,CntyQuery!$A$118:$FZ$160,DG$1)","v":-9},{"$f":"VLOOKUP(DropDownList!$B$47,CntyQuery!$A$118:$FZ$160,DH$1)","v":-64},{"$f":"VLOOKUP(DropDownList!$B$47,CntyQuery!$A$118:$FZ$160,DI$1)","v":1},{"$f":"VLOOKUP(DropDownList!$B$47,CntyQuery!$A$118:$FZ$160,DJ$1)","v":-2},{"$f":"VLOOKUP(DropDownList!$B$47,CntyQuery!$A$118:$FZ$160,DK$1)","v":-22},{"$f":"VLOOKUP(DropDownList!$B$47,CntyQuery!$A$118:$FZ$160,DL$1)","v":0},{"$f":"VLOOKUP(DropDownList!$B$47,CntyQuery!$A$118:$FZ$160,DM$1)","v":-3},{"$f":"VLOOKUP(DropDownList!$B$47,CntyQuery!$A$118:$FZ$160,DN$1)","v":-3},{"$f":"VLOOKUP(DropDownList!$B$47,CntyQuery!$A$118:$FZ$160,DO$1)","v":0},{"$f":"VLOOKUP(DropDownList!$B$47,CntyQuery!$A$118:$FZ$160,DP$1)","v":-1},{"$f":"VLOOKUP(DropDownList!$B$47,CntyQuery!$A$118:$FZ$160,DQ$1)","v":-14},{"$f":"VLOOKUP(DropDownList!$B$47,CntyQuery!$A$118:$FZ$160,DR$1)","v":1},{"$f":"VLOOKUP(DropDownList!$B$47,CntyQuery!$A$118:$FZ$160,DS$1)","v":0},{"$f":"VLOOKUP(DropDownList!$B$47,CntyQuery!$A$118:$FZ$160,DT$1)","v":6},{"$f":"VLOOKUP(DropDownList!$B$47,CntyQuery!$A$118:$FZ$160,DU$1)","v":2},{"$f":"VLOOKUP(DropDownList!$B$47,CntyQuery!$A$118:$FZ$160,DV$1)","v":1},{"$f":"VLOOKUP(DropDownList!$B$47,CntyQuery!$A$118:$FZ$160,DW$1)","v":2},{"$f":"VLOOKUP(DropDownList!$B$47,CntyQuery!$A$118:$FZ$160,DX$1)","v":0},{"$f":"VLOOKUP(DropDownList!$B$47,CntyQuery!$A$118:$FZ$160,DY$1)","v":1},{"$f":"VLOOKUP(DropDownList!$B$47,CntyQuery!$A$118:$FZ$160,DZ$1)","v":0},{"$f":"VLOOKUP(DropDownList!$B$47,CntyQuery!$A$118:$FZ$160,EA$1)","v":-4},{"$f":"VLOOKUP(DropDownList!$B$47,CntyQuery!$A$118:$FZ$160,EB$1)","v":"2002 Did not submit data to OEP. Used Census Data"},{"$f":"VLOOKUP(DropDownList!$B$47,CntyQuery!$A$118:$FZ$160,EC$1)","v":4}]
[]
[]
["NH Employment Data","Query Name: DPQryEmploymentByCnty"]
["AreaName","COUNTYCODE","TOTP & G2001","TOT2001","GOODPRO2001","SERVICEPROMAN2001","WAGEP & G2001","WAGETOT2001","WAGEGOODPRO2001","WAGESERVICEPRO2001","TOTP & G2002","TOT2002","GOODPRO2002","SERVICEPROMAN2002","WAGEP & G2002","WAGETOT2002","WAGEGOODPRO2002","WAGESERVICEPRO2002","TOTP & G2003","TOT2003","GOODPRO2003","SERVICEPROMAN2003","WAGEP & G2003","WAGETOT2003","WAGEGOODPRO2003","WAGESERVICEPRO2003","TOTP & G2004","TOT2004","GOODPRO2004","SERVICEPROMAN2004","WAGEP & G2004","WAGETOT2004","WAGEGOODPRO2004","WAGESERVICEPRO2004","TOTP & G2005","TOT2005","GOODPRO2005","SERVICEPROMAN2005","WAGEP & G2005","WAGETOT2005","WAGEGOODPRO2005","WAGESERVICEPRO2005","TOTP & G2006","TOT2006","GOODPRO2006","SERVICEPROMAN2006","WAGEP & G2006","WAGETOT2006","WAGEGOODPRO2006","WAGESERVICEPRO2006","TOTP & G2007","TOT2007","GOODPRO2007","SERVICEPROMAN2007","WAGEP & G2007","WAGETOT2007","WAGEGOODPRO2007","WAGESERVICEPRO2007","TOTP & G2008","TOT2008","GOODPRO2008","SERVICEPROMAN2008","WAGEP & G2008","WAGETOT2008","WAGEGOODPRO2008","WAGESERVICEPRO2008","TOTP & G2009","TOT2009","GOODPRO2009","SERVICEPROMAN2009","WAGEP & G2009","WAGETOT2009","WAGEGOODPRO2009","WAGESERVICEPRO2009","TOTP & G2010","TOT2010","GOODPRO2010","SERVICEPROMAN2010","WAGEP & G2010","WAGETOT2010","WAGEGOODPRO2010","WAGESERVICEPRO2010","TOTP & G2011","TOT2011","GOODPRO2011","SERVICEPROMAN2011","WAGEP & G2011","WAGETOT2011","WAGEGOODPRO2011","WAGESERVICEPRO2011","TOTP & G2012","TOT2012","GOODPRO2012","SERVICEPROMAN2012","WAGEP & G2012","WAGETOT2012","WAGEGOODPRO2012","WAGESERVICEPRO2012","TOTP & G2013","TOT2013","GOODPRO2013","SERVICEPROMAN2013","WAGEP & G2013","WAGETOT2013","WAGEGOODPRO2013","WAGESERVICEPRO2013","TOTP & G2014","TOT2014","GOODPRO2014","SERVICEPROMAN2014","WAGEP & G2014","WAGETOT2014","WAGEGOODPRO2014","WAGESERVICEPRO2014","TOTP & G2015","TOT2015","GOODPRO2015","SERVICEPROMAN2015","WAGEP & G2015","WAGETOT2015","WAGEGOODPRO2015","WAGESERVICEPRO2015","TOTP & G2016","TOT2016","GOODPRO2016","SERVICEPROMAN2016","WAGEP & G2016","WAGETOT2016","WAGEGOODPRO2016","WAGESERVICEPRO2016","TOTP & G2017","TOT2017","GOODPRO2017","SERVICEPROMAN2017","WAGEP & G2017","WAGETOT2017","WAGEGOODPRO2017","WAGESERVICEPRO2017","TOTP & G2018","TOT2018","GOODPRO2018","SERVICEPROMAN2018","WAGEP & G2018","WAGETOT2018","WAGEGOODPRO2018","WAGESERVICEPRO2018","TOTP & G2019","TOT2019","TOTGov2019","GOODPRO2019","SERVICEPROMAN2019","WAGEP & G2019","WAGETOT2019","WAGEGov2019","WAGEGOODPRO2019","WAGESERVICEPRO2019","SummaryLevel","WAGESERVICEPRO2019"]
[{"$f":"VLOOKUP(DropDownList!$B$47,CntyQuery!$A$171:$GE$213,A$1)","v":"Berlin"},{"$f":"VLOOKUP(DropDownList!$B$47,CntyQuery!$A$171:$GE$213,B$1)","v":4},{"$f":"VLOOKUP(DropDownList!$B$47,CntyQuery!$A$171:$GE$213,C$1)","v":4415},{"$f":"VLOOKUP(DropDownList!$B$47,CntyQuery!$A$171:$GE$213,D$1)","v":3186},{"$f":"VLOOKUP(DropDownList!$B$47,CntyQuery!$A$171:$GE$213,E$1)","v":1043},{"$f":"VLOOKUP(DropDownList!$B$47,CntyQuery!$A$171:$GE$213,F$1)","v":2143},{"$f":"VLOOKUP(DropDownList!$B$47,CntyQuery!$A$171:$GE$213,G$1)","v":567.58000000000004},{"$f":"VLOOKUP(DropDownList!$B$47,CntyQuery!$A$171:$GE$213,H$1)","v":578.29999999999995},{"$f":"VLOOKUP(DropDownList!$B$47,CntyQuery!$A$171:$GE$213,I$1)","v":804.81},{"$f":"VLOOKUP(DropDownList!$B$47,CntyQuery!$A$171:$GE$213,J$1)","v":468.09},{"$f":"VLOOKUP(DropDownList!$B$47,CntyQuery!$A$171:$GE$213,K$1)","v":4053},{"$f":"VLOOKUP(DropDownList!$B$47,CntyQuery!$A$171:$GE$213,L$1)","v":2774},{"$f":"VLOOKUP(DropDownList!$B$47,CntyQuery!$A$171:$GE$213,M$1)","v":748},{"$f":"VLOOKUP(DropDownList!$B$47,CntyQuery!$A$171:$GE$213,N$1)","v":2026},{"$f":"VLOOKUP(DropDownList!$B$47,CntyQuery!$A$171:$GE$213,O$1)","v":556.28},{"$f":"VLOOKUP(DropDownList!$B$47,CntyQuery!$A$171:$GE$213,P$1)","v":555.58000000000004},{"$f":"VLOOKUP(DropDownList!$B$47,CntyQuery!$A$171:$GE$213,Q$1)","v":695.15},{"$f":"VLOOKUP(DropDownList!$B$47,CntyQuery!$A$171:$GE$213,R$1)","v":504.09},{"$f":"VLOOKUP(DropDownList!$B$47,CntyQuery!$A$171:$GE$213,S$1)","v":4301},{"$f":"VLOOKUP(DropDownList!$B$47,CntyQuery!$A$171:$GE$213,T$1)","v":3006},{"$f":"VLOOKUP(DropDownList!$B$47,CntyQuery!$A$171:$GE$213,U$1)","v":1057},{"$f":"VLOOKUP(DropDownList!$B$47,CntyQuery!$A$171:$GE$213,V$1)","v":1949},{"$f":"VLOOKUP(DropDownList!$B$47,CntyQuery!$A$171:$GE$213,W$1)","v":605.79},{"$f":"VLOOKUP(DropDownList!$B$47,CntyQuery!$A$171:$GE$213,X$1)","v":612.32000000000005},{"$f":"VLOOKUP(DropDownList!$B$47,CntyQuery!$A$171:$GE$213,Y$1)","v":776.38},{"$f":"VLOOKUP(DropDownList!$B$47,CntyQuery!$A$171:$GE$213,Z$1)","v":523.41},{"$f":"VLOOKUP(DropDownList!$B$47,CntyQuery!$A$171:$GE$213,AA$1)","v":4324},{"$f":"VLOOKUP(DropDownList!$B$47,CntyQuery!$A$171:$GE$213,AB$1)","v":3024},{"$f":"VLOOKUP(DropDownList!$B$47,CntyQuery!$A$171:$GE$213,AC$1)","v":1102},{"$f":"VLOOKUP(DropDownList!$B$47,CntyQuery!$A$171:$GE$213,AD$1)","v":1922},{"$f":"VLOOKUP(DropDownList!$B$47,CntyQuery!$A$171:$GE$213,AE$1)","v":629.91999999999996},{"$f":"VLOOKUP(DropDownList!$B$47,CntyQuery!$A$171:$GE$213,AF$1)","v":644.21},{"$f":"VLOOKUP(DropDownList!$B$47,CntyQuery!$A$171:$GE$213,AG$1)","v":803.6},{"$f":"VLOOKUP(DropDownList!$B$47,CntyQuery!$A$171:$GE$213,AH$1)","v":552.82000000000005},{"$f":"VLOOKUP(DropDownList!$B$47,CntyQuery!$A$171:$GE$213,AI$1)","v":4423},{"$f":"VLOOKUP(DropDownList!$B$47,CntyQuery!$A$171:$GE$213,AJ$1)","v":3106},{"$f":"VLOOKUP(DropDownList!$B$47,CntyQuery!$A$171:$GE$213,AK$1)","v":1130},{"$f":"VLOOKUP(DropDownList!$B$47,CntyQuery!$A$171:$GE$213,AL$1)","v":1977},{"$f":"VLOOKUP(DropDownList!$B$47,CntyQuery!$A$171:$GE$213,AM$1)","v":639.91999999999996},{"$f":"VLOOKUP(DropDownList!$B$47,CntyQuery!$A$171:$GE$213,AN$1)","v":651.49},{"$f":"VLOOKUP(DropDownList!$B$47,CntyQuery!$A$171:$GE$213,AO$1)","v":823.13},{"$f":"VLOOKUP(DropDownList!$B$47,CntyQuery!$A$171:$GE$213,AP$1)","v":553.39},{"$f":"VLOOKUP(DropDownList!$B$47,CntyQuery!$A$171:$GE$213,AQ$1)","v":3868},{"$f":"VLOOKUP(DropDownList!$B$47,CntyQuery!$A$171:$GE$213,AR$1)","v":2482},{"$f":"VLOOKUP(DropDownList!$B$47,CntyQuery!$A$171:$GE$213,AS$1)","v":509},{"$f":"VLOOKUP(DropDownList!$B$47,CntyQuery!$A$171:$GE$213,AT$1)","v":1973},{"$f":"VLOOKUP(DropDownList!$B$47,CntyQuery!$A$171:$GE$213,AU$1)","v":611.12},{"$f":"VLOOKUP(DropDownList!$B$47,CntyQuery!$A$171:$GE$213,AV$1)","v":606.6},{"$f":"VLOOKUP(DropDownList!$B$47,CntyQuery!$A$171:$GE$213,AW$1)","v":684.56},{"$f":"VLOOKUP(DropDownList!$B$47,CntyQuery!$A$171:$GE$213,AX$1)","v":586.51},{"$f":"VLOOKUP(DropDownList!$B$47,CntyQuery!$A$171:$GE$213,AY$1)","v":3910},{"$f":"VLOOKUP(DropDownList!$B$47,CntyQuery!$A$171:$GE$213,AZ$1)","v":2599},{"$f":"VLOOKUP(DropDownList!$B$47,CntyQuery!$A$171:$GE$213,BA$1)","v":519},{"$f":"VLOOKUP(DropDownList!$B$47,CntyQuery!$A$171:$GE$213,BB$1)","v":2080},{"$f":"VLOOKUP(DropDownList!$B$47,CntyQuery!$A$171:$GE$213,BC$1)","v":633.49},{"$f":"VLOOKUP(DropDownList!$B$47,CntyQuery!$A$171:$GE$213,BD$1)","v":611.59},{"$f":"VLOOKUP(DropDownList!$B$47,CntyQuery!$A$171:$GE$213,BE$1)","v":740.71},{"$f":"VLOOKUP(DropDownList!$B$47,CntyQuery!$A$171:$GE$213,BF$1)","v":579.36},{"$f":"VLOOKUP(DropDownList!$B$47,CntyQuery!$A$171:$GE$213,BG$1)","v":3907},{"$f":"VLOOKUP(DropDownList!$B$47,CntyQuery!$A$171:$GE$213,BH$1)","v":2606},{"$f":"VLOOKUP(DropDownList!$B$47,CntyQuery!$A$171:$GE$213,BI$1)","v":559},{"$f":"VLOOKUP(DropDownList!$B$47,CntyQuery!$A$171:$GE$213,BJ$1)","v":2048},{"$f":"VLOOKUP(DropDownList!$B$47,CntyQuery!$A$171:$GE$213,BK$1)","v":674.64},{"$f":"VLOOKUP(DropDownList!$B$47,CntyQuery!$A$171:$GE$213,BL$1)","v":651.79},{"$f":"VLOOKUP(DropDownList!$B$47,CntyQuery!$A$171:$GE$213,BM$1)","v":733.47},{"$f":"VLOOKUP(DropDownList!$B$47,CntyQuery!$A$171:$GE$213,BN$1)","v":629.51},{"$f":"VLOOKUP(DropDownList!$B$47,CntyQuery!$A$171:$GE$213,BO$1)","v":3669},{"$f":"VLOOKUP(DropDownList!$B$47,CntyQuery!$A$171:$GE$213,BP$1)","v":2567},{"$f":"VLOOKUP(DropDownList!$B$47,CntyQuery!$A$171:$GE$213,BQ$1)","v":556},{"$f":"VLOOKUP(DropDownList!$B$47,CntyQuery!$A$171:$GE$213,BR$1)","v":2011},{"$f":"VLOOKUP(DropDownList!$B$47,CntyQuery!$A$171:$GE$213,BS$1)","v":685.08},{"$f":"VLOOKUP(DropDownList!$B$47,CntyQuery!$A$171:$GE$213,BT$1)","v":649.29999999999995},{"$f":"VLOOKUP(DropDownList!$B$47,CntyQuery!$A$171:$GE$213,BU$1)","v":743.56},{"$f":"VLOOKUP(DropDownList!$B$47,CntyQuery!$A$171:$GE$213,BV$1)","v":623.24},{"$f":"VLOOKUP(DropDownList!$B$47,CntyQuery!$A$171:$GE$213,BW$1)","v":3558},{"$f":"VLOOKUP(DropDownList!$B$47,CntyQuery!$A$171:$GE$213,BX$1)","v":2466},{"$f":"VLOOKUP(DropDownList!$B$47,CntyQuery!$A$171:$GE$213,BY$1)","v":516},{"$f":"VLOOKUP(DropDownList!$B$47,CntyQuery!$A$171:$GE$213,BZ$1)","v":1950},{"$f":"VLOOKUP(DropDownList!$B$47,CntyQuery!$A$171:$GE$213,CA$1)","v":712.18},{"$f":"VLOOKUP(DropDownList!$B$47,CntyQuery!$A$171:$GE$213,CB$1)","v":687.88},{"$f":"VLOOKUP(DropDownList!$B$47,CntyQuery!$A$171:$GE$213,CC$1)","v":801.07},{"$f":"VLOOKUP(DropDownList!$B$47,CntyQuery!$A$171:$GE$213,CD$1)","v":657.92},{"$f":"VLOOKUP(DropDownList!$B$47,CntyQuery!$A$171:$GE$213,CE$1)","v":3510},{"$f":"VLOOKUP(DropDownList!$B$47,CntyQuery!$A$171:$GE$213,CF$1)","v":2442},{"$f":"VLOOKUP(DropDownList!$B$47,CntyQuery!$A$171:$GE$213,CG$1)","v":525},{"$f":"VLOOKUP(DropDownList!$B$47,CntyQuery!$A$171:$GE$213,CH$1)","v":1917},{"$f":"VLOOKUP(DropDownList!$B$47,CntyQuery!$A$171:$GE$213,CI$1)","v":723.18},{"$f":"VLOOKUP(DropDownList!$B$47,CntyQuery!$A$171:$GE$213,CJ$1)","v":696.92},{"$f":"VLOOKUP(DropDownList!$B$47,CntyQuery!$A$171:$GE$213,CK$1)","v":780.07},{"$f":"VLOOKUP(DropDownList!$B$47,CntyQuery!$A$171:$GE$213,CL$1)","v":674.15},{"$f":"VLOOKUP(DropDownList!$B$47,CntyQuery!$A$171:$GE$213,CM$1)","v":3572},{"$f":"VLOOKUP(DropDownList!$B$47,CntyQuery!$A$171:$GE$213,CN$1)","v":2455},{"$f":"VLOOKUP(DropDownList!$B$47,CntyQuery!$A$171:$GE$213,CO$1)","v":573},{"$f":"VLOOKUP(DropDownList!$B$47,CntyQuery!$A$171:$GE$213,CP$1)","v":1882},{"$f":"VLOOKUP(DropDownList!$B$47,CntyQuery!$A$171:$GE$213,CQ$1)","v":766.7},{"$f":"VLOOKUP(DropDownList!$B$47,CntyQuery!$A$171:$GE$213,CR$1)","v":745.79},{"$f":"VLOOKUP(DropDownList!$B$47,CntyQuery!$A$171:$GE$213,CS$1)","v":926.41},{"$f":"VLOOKUP(DropDownList!$B$47,CntyQuery!$A$171:$GE$213,CT$1)","v":690.85},{"$f":"VLOOKUP(DropDownList!$B$47,CntyQuery!$A$171:$GE$213,CU$1)","v":3752},{"$f":"VLOOKUP(DropDownList!$B$47,CntyQuery!$A$171:$GE$213,CV$1)","v":2480},{"$f":"VLOOKUP(DropDownList!$B$47,CntyQuery!$A$171:$GE$213,CW$1)","v":652},{"$f":"VLOOKUP(DropDownList!$B$47,CntyQuery!$A$171:$GE$213,CX$1)","v":1828},{"$f":"VLOOKUP(DropDownList!$B$47,CntyQuery!$A$171:$GE$213,CY$1)","v":813.38},{"$f":"VLOOKUP(DropDownList!$B$47,CntyQuery!$A$171:$GE$213,CZ$1)","v":791.54},{"$f":"VLOOKUP(DropDownList!$B$47,CntyQuery!$A$171:$GE$213,DA$1)","v":953.98},{"$f":"VLOOKUP(DropDownList!$B$47,CntyQuery!$A$171:$GE$213,DB$1)","v":733.58},{"$f":"VLOOKUP(DropDownList!$B$47,CntyQuery!$A$171:$GE$213,DC$1)","v":3379},{"$f":"VLOOKUP(DropDownList!$B$47,CntyQuery!$A$171:$GE$213,DD$1)","v":2112},{"$f":"VLOOKUP(DropDownList!$B$47,CntyQuery!$A$171:$GE$213,DE$1)","v":336},{"$f":"VLOOKUP(DropDownList!$B$47,CntyQuery!$A$171:$GE$213,DF$1)","v":1775},{"$f":"VLOOKUP(DropDownList!$B$47,CntyQuery!$A$171:$GE$213,DG$1)","v":823.91},{"$f":"VLOOKUP(DropDownList!$B$47,CntyQuery!$A$171:$GE$213,DH$1)","v":783.07},{"$f":"VLOOKUP(DropDownList!$B$47,CntyQuery!$A$171:$GE$213,DI$1)","v":863.87},{"$f":"VLOOKUP(DropDownList!$B$47,CntyQuery!$A$171:$GE$213,DJ$1)","v":767.76},{"$f":"VLOOKUP(DropDownList!$B$47,CntyQuery!$A$171:$GE$213,DK$1)","v":3262},{"$f":"VLOOKUP(DropDownList!$B$47,CntyQuery!$A$171:$GE$213,DL$1)","v":1997},{"$f":"VLOOKUP(DropDownList!$B$47,CntyQuery!$A$171:$GE$213,DM$1)","v":273},{"$f":"VLOOKUP(DropDownList!$B$47,CntyQuery!$A$171:$GE$213,DN$1)","v":1724},{"$f":"VLOOKUP(DropDownList!$B$47,CntyQuery!$A$171:$GE$213,DO$1)","v":840.6},{"$f":"VLOOKUP(DropDownList!$B$47,CntyQuery!$A$171:$GE$213,DP$1)","v":788.12},{"$f":"VLOOKUP(DropDownList!$B$47,CntyQuery!$A$171:$GE$213,DQ$1)","v":843.39},{"$f":"VLOOKUP(DropDownList!$B$47,CntyQuery!$A$171:$GE$213,DR$1)","v":779.38},{"$f":"VLOOKUP(DropDownList!$B$47,CntyQuery!$A$171:$GE$213,DS$1)","v":3221},{"$f":"VLOOKUP(DropDownList!$B$47,CntyQuery!$A$171:$GE$213,DT$1)","v":1934},{"$f":"VLOOKUP(DropDownList!$B$47,CntyQuery!$A$171:$GE$213,DU$1)","v":231},{"$f":"VLOOKUP(DropDownList!$B$47,CntyQuery!$A$171:$GE$213,DV$1)","v":1703},{"$f":"VLOOKUP(DropDownList!$B$47,CntyQuery!$A$171:$GE$213,DW$1)","v":845.12},{"$f":"VLOOKUP(DropDownList!$B$47,CntyQuery!$A$171:$GE$213,DX$1)","v":797.71},{"$f":"VLOOKUP(DropDownList!$B$47,CntyQuery!$A$171:$GE$213,DY$1)","v":869.34},{"$f":"VLOOKUP(DropDownList!$B$47,CntyQuery!$A$171:$GE$213,DZ$1)","v":787.99},{"$f":"VLOOKUP(DropDownList!$B$47,CntyQuery!$A$171:$GE$213,EA$1)","v":3173},{"$f":"VLOOKUP(DropDownList!$B$47,CntyQuery!$A$171:$GE$213,EB$1)","v":1923},{"$f":"VLOOKUP(DropDownList!$B$47,CntyQuery!$A$171:$GE$213,EC$1)","v":213},{"$f":"VLOOKUP(DropDownList!$B$47,CntyQuery!$A$171:$GE$213,ED$1)","v":1710},{"$f":"VLOOKUP(DropDownList!$B$47,CntyQuery!$A$171:$GE$213,EE$1)","v":874.17},{"$f":"VLOOKUP(DropDownList!$B$47,CntyQuery!$A$171:$GE$213,EF$1)","v":823.39},{"$f":"VLOOKUP(DropDownList!$B$47,CntyQuery!$A$171:$GE$213,EG$1)","v":928.37},{"$f":"VLOOKUP(DropDownList!$B$47,CntyQuery!$A$171:$GE$213,EH$1)","v":810.29},{"$f":"VLOOKUP(DropDownList!$B$47,CntyQuery!$A$171:$GE$213,EI$1)","v":3157},{"$f":"VLOOKUP(DropDownList!$B$47,CntyQuery!$A$171:$GE$213,EJ$1)","v":1945},{"$f":"VLOOKUP(DropDownList!$B$47,CntyQuery!$A$171:$GE$213,EK$1)","v":216},{"$f":"VLOOKUP(DropDownList!$B$47,CntyQuery!$A$171:$GE$213,EL$1)","v":"n"},{"$f":"VLOOKUP(DropDownList!$B$47,CntyQuery!$A$171:$GE$213,EM$1)","v":905.49},{"$f":"VLOOKUP(DropDownList!$B$47,CntyQuery!$A$171:$GE$213,EN$1)","v":841.61},{"$f":"VLOOKUP(DropDownList!$B$47,CntyQuery!$A$171:$GE$213,EO$1)","v":880.87},{"$f":"VLOOKUP(DropDownList!$B$47,CntyQuery!$A$171:$GE$213,EP$1)","v":"n"},{"$f":"VLOOKUP(DropDownList!$B$47,CntyQuery!$A$171:$GE$213,EQ$1)","v":3127},{"$f":"VLOOKUP(DropDownList!$B$47,CntyQuery!$A$171:$GE$213,ER$1)","v":1962},{"$f":"VLOOKUP(DropDownList!$B$47,CntyQuery!$A$171:$GE$213,ES$1)","v":1164},{"$f":"VLOOKUP(DropDownList!$B$47,CntyQuery!$A$171:$GE$213,ET$1)","v":222},{"$f":"VLOOKUP(DropDownList!$B$47,CntyQuery!$A$171:$GE$213,EU$1)","v":1740},{"$f":"VLOOKUP(DropDownList!$B$47,CntyQuery!$A$171:$GE$213,EV$1)","v":936.05},{"$f":"VLOOKUP(DropDownList!$B$47,CntyQuery!$A$171:$GE$213,EW$1)","v":855.6},{"$f":"VLOOKUP(DropDownList!$B$47,CntyQuery!$A$171:$GE$213,EX$1)","v":1071.6300000000001},{"$f":"VLOOKUP(DropDownList!$B$47,CntyQuery!$A$171:$GE$213,EY$1)","v":945.04},{"$f":"VLOOKUP(DropDownList!$B$47,CntyQuery!$A$171:$GE$213,EZ$1)","v":844.19},{"$f":"VLOOKUP(DropDownList!$B$47,CntyQuery!$A$171:$GE$213,FA$1)","v":60},{"$f":"VLOOKUP(DropDownList!$B$47,CntyQuery!$A$171:$GE$213,FB$1)","v":844.19},{"$f":"VLOOKUP(DropDownList!$B$47,CntyQuery!$A$171:$GE$213,FC$1)","v":60},{"$f":"VLOOKUP(DropDownList!$B$47,CntyQuery!$A$171:$GE$213,FD$1)","v":0},{"$f":"VLOOKUP(DropDownList!$B$47,CntyQuery!$A$171:$GE$213,FE$1)","v":0},{"$f":"VLOOKUP(DropDownList!$B$47,CntyQuery!$A$171:$GE$213,FF$1)","v":0},{"$f":"VLOOKUP(DropDownList!$B$47,CntyQuery!$A$171:$GE$213,FG$1)","v":0},{"$f":"VLOOKUP(DropDownList!$B$47,CntyQuery!$A$171:$GE$213,FH$1)","v":0},{"$f":"VLOOKUP(DropDownList!$B$47,CntyQuery!$A$171:$GE$213,FI$1)","v":0},{"$f":"VLOOKUP(DropDownList!$B$47,CntyQuery!$A$171:$GE$213,FJ$1)","v":0},{"$f":"VLOOKUP(DropDownList!$B$47,CntyQuery!$A$171:$GE$213,FK$1)","v":0},{"$f":"VLOOKUP(DropDownList!$B$47,CntyQuery!$A$171:$GE$213,FL$1)","v":0},{"$f":"VLOOKUP(DropDownList!$B$47,CntyQuery!$A$171:$GE$213,FM$1)","v":0},{"$f":"VLOOKUP(DropDownList!$B$47,CntyQuery!$A$171:$GE$213,FN$1)","v":0},{"$f":"VLOOKUP(DropDownList!$B$47,CntyQuery!$A$171:$GE$213,FO$1)","v":0},{"$f":"VLOOKUP(DropDownList!$B$47,CntyQuery!$A$171:$GE$213,FP$1)","v":0},{"$f":"VLOOKUP(DropDownList!$B$47,CntyQuery!$A$171:$GE$213,FQ$1)","v":0},{"$f":"VLOOKUP(DropDownList!$B$47,CntyQuery!$A$171:$GE$213,FR$1)","v":0},{"$f":"VLOOKUP(DropDownList!$B$47,CntyQuery!$A$171:$GE$213,FS$1)","v":0},{"$f":"VLOOKUP(DropDownList!$B$47,CntyQuery!$A$171:$GE$213,FT$1)","v":0},{"$f":"VLOOKUP(DropDownList!$B$47,CntyQuery!$A$171:$GE$213,FU$1)","v":0},{"$f":"VLOOKUP(DropDownList!$B$47,CntyQuery!$A$171:$GE$213,FV$1)","v":0},{"$f":"VLOOKUP(DropDownList!$B$47,CntyQuery!$A$171:$GE$213,FW$1)","v":0},{"$f":"VLOOKUP(DropDownList!$B$47,CntyQuery!$A$171:$GE$213,FX$1)","v":0},{"$f":"VLOOKUP(DropDownList!$B$47,CntyQuery!$A$171:$GE$213,FY$1)","v":0}]
[]
[]
[]
[]
[]
[]
[null,null,null,null,null,null,null,null,null,null,null,null,{"$f":"IF((CntyDataLink!$BL$25)=\"n\",NA(),IF(VALUE(CntyDataLink!$BL$25)=\"\",NA(),VALUE(CntyDataLink!$BL$25)))","v":651.79}]
["Census 2000   -           Query Name:  TownAllQuery3",2,{"$f":"B33+1","v":3},{"$f":"C33+1","v":4},5,6,7,8,9,10,11,12,13,14,15,16,17,18,19,20,21,22,23,24,25,26,27,28,29,30,31,32,33,34,35,36,37,38,39,40,41,42,43,44,45,46,47,48,49,50,51,52,53,54,55,56,57,58,59,60,61,62,63,64,65,66,67,{"$f":"BO33+1","v":68},69,70,71,72,73,74,75,76,77,78,79,80,81,82,83,84,85,86,87,88,89,90,91,92,93,94,95,96,97,98,99,100,101,102]
["NAME","COUNTY","LOGRECNO","COUSUB","TRACT","AREALAND","AREAWATR","POP100","HU100","2000Population","PopOfOneRace","PopWhite","PopBlack","PopAmIndian","PopAsian","PopHawaiian","PopOtherRace","Pop2orMoreRaces","PopHispanicLatino","PopNotHispanicLatino","PopMale","PopMale<15","PopMale15to24","PopMale25to34","PopMale35to44","PopMale45to54","PopMale55to64","PopMale65to74","PopMale75to84","PopMale85andOver","PopFemale","PopFemale<15","PopFemale15to24","PopFemale25to34","PopFemale35t44","PopFemale45to54","PopFemale55to64","PopFemale65to74","PopFemale75to84","PopFemale85andOver","Households2000","PopInHH","AvgHHSize","HHs1Person","HHs2orMorePerson","HHsFamily","HHMarriedCoupleFam","HHSingleParentFam","HHsNonFamily","Families","PopInFam","AvgFamSize","TotHsUnits","OccHsUnits","OwnerOccHU","RenterOccHU","VctHsUnits","VctHUForRent","VctHUForSale","VctHUSeasonal","PopInOccHU","PopInOwnOccHU","PopInRntOccHU","AvgHHSize2","AvgHHSizOwnOcc","AvgHHSizRntOcc","OwnOccWhtHsHldr","OwnOccBlkHsHldr","OwnOccAmIHsHldr","OwnOccAsnHsHldr","OwnOccPIsHsHldr","OwnOccORHsHldr","OwnOcc2RcHsHldr","RntOccWhtHsHldr","RntOccBlkHsHldr","RntOccAmIHsHldr","RntOccAsnHsHldr","RntOccPIsHsHldr","RntOccORHsHldr","RntOcc2RcHsHldr","OwnOccHH15to24","OwnOccHH25to34","OwnOccHH35to44","OwnOccHH45to54","OwnOccHH55to64","OwnOccHH65to74","OwnOccHH75to84","OwnOccHH85Over","RntOccHH15to24","RntOccHH25to34","RntOccHH35to44","RntOccHH45to54","RntOccHH55to64","RntOccHH65to74","RntOccHH75to84","RntOccHH85Over","P27TotalPop","P27PopInHseHlds","P27PopInGrpQtrs","Median Age Total","Median Age (Male)","Median Age (Female)"]
[{"$f":"VLOOKUP(DropDownList!$B$47,CntyQryCensus!$A$4:$CX$46,A$1)","v":"Berlin"},{"$f":"VLOOKUP(DropDownList!$B$47,CntyQryCensus!$A$4:$CX$46,B$1)","v":"007"},{"$f":"VLOOKUP(DropDownList!$B$47,CntyQryCensus!$A$4:$CX$46,C$1)","v":"0007959"},{"$f":"VLOOKUP(DropDownList!$B$47,CntyQryCensus!$A$4:$CX$46,D$1)","v":"05140"},{"$f":"VLOOKUP(DropDownList!$B$47,CntyQryCensus!$A$4:$CX$46,E$1)","v":""},{"$f":"VLOOKUP(DropDownList!$B$47,CntyQryCensus!$A$4:$CX$46,F$1)","v":"     159870757"},{"$f":"VLOOKUP(DropDownList!$B$47,CntyQryCensus!$A$4:$CX$46,G$1)","v":"       1901917"},{"$f":"VLOOKUP(DropDownList!$B$47,CntyQryCensus!$A$4:$CX$46,H$1)","v":10331},{"$f":"VLOOKUP(DropDownList!$B$47,CntyQryCensus!$A$4:$CX$46,I$1)","v":"     5111"},{"$f":"VLOOKUP(DropDownList!$B$47,CntyQryCensus!$A$4:$CX$46,J$1)","v":10331},{"$f":"VLOOKUP(DropDownList!$B$47,CntyQryCensus!$A$4:$CX$46,K$1)","v":10248},{"$f":"VLOOKUP(DropDownList!$B$47,CntyQryCensus!$A$4:$CX$46,L$1)","v":10150},{"$f":"VLOOKUP(DropDownList!$B$47,CntyQryCensus!$A$4:$CX$46,M$1)","v":19},{"$f":"VLOOKUP(DropDownList!$B$47,CntyQryCensus!$A$4:$CX$46,N$1)","v":24},{"$f":"VLOOKUP(DropDownList!$B$47,CntyQryCensus!$A$4:$CX$46,O$1)","v":38},{"$f":"VLOOKUP(DropDownList!$B$47,CntyQryCensus!$A$4:$CX$46,P$1)","v":1},{"$f":"VLOOKUP(DropDownList!$B$47,CntyQryCensus!$A$4:$CX$46,Q$1)","v":16},{"$f":"VLOOKUP(DropDownList!$B$47,CntyQryCensus!$A$4:$CX$46,R$1)","v":83},{"$f":"VLOOKUP(DropDownList!$B$47,CntyQryCensus!$A$4:$CX$46,S$1)","v":68},{"$f":"VLOOKUP(DropDownList!$B$47,CntyQryCensus!$A$4:$CX$46,T$1)","v":10263},{"$f":"VLOOKUP(DropDownList!$B$47,CntyQryCensus!$A$4:$CX$46,U$1)","v":4922},{"$f":"VLOOKUP(DropDownList!$B$47,CntyQryCensus!$A$4:$CX$46,V$1)","v":961},{"$f":"VLOOKUP(DropDownList!$B$47,CntyQryCensus!$A$4:$CX$46,W$1)","v":544},{"$f":"VLOOKUP(DropDownList!$B$47,CntyQryCensus!$A$4:$CX$46,X$1)","v":560},{"$f":"VLOOKUP(DropDownList!$B$47,CntyQryCensus!$A$4:$CX$46,Y$1)","v":819},{"$f":"VLOOKUP(DropDownList!$B$47,CntyQryCensus!$A$4:$CX$46,Z$1)","v":690},{"$f":"VLOOKUP(DropDownList!$B$47,CntyQryCensus!$A$4:$CX$46,AA$1)","v":459},{"$f":"VLOOKUP(DropDownList!$B$47,CntyQryCensus!$A$4:$CX$46,AB$1)","v":502},{"$f":"VLOOKUP(DropDownList!$B$47,CntyQryCensus!$A$4:$CX$46,AC$1)","v":307},{"$f":"VLOOKUP(DropDownList!$B$47,CntyQryCensus!$A$4:$CX$46,AD$1)","v":80},{"$f":"VLOOKUP(DropDownList!$B$47,CntyQryCensus!$A$4:$CX$46,AE$1)","v":5409},{"$f":"VLOOKUP(DropDownList!$B$47,CntyQryCensus!$A$4:$CX$46,AF$1)","v":832},{"$f":"VLOOKUP(DropDownList!$B$47,CntyQryCensus!$A$4:$CX$46,AG$1)","v":539},{"$f":"VLOOKUP(DropDownList!$B$47,CntyQryCensus!$A$4:$CX$46,AH$1)","v":597},{"$f":"VLOOKUP(DropDownList!$B$47,CntyQryCensus!$A$4:$CX$46,AI$1)","v":766},{"$f":"VLOOKUP(DropDownList!$B$47,CntyQryCensus!$A$4:$CX$46,AJ$1)","v":690},{"$f":"VLOOKUP(DropDownList!$B$47,CntyQryCensus!$A$4:$CX$46,AK$1)","v":538},{"$f":"VLOOKUP(DropDownList!$B$47,CntyQryCensus!$A$4:$CX$46,AL$1)","v":642},{"$f":"VLOOKUP(DropDownList!$B$47,CntyQryCensus!$A$4:$CX$46,AM$1)","v":537},{"$f":"VLOOKUP(DropDownList!$B$47,CntyQryCensus!$A$4:$CX$46,AN$1)","v":268},{"$f":"VLOOKUP(DropDownList!$B$47,CntyQryCensus!$A$4:$CX$46,AO$1)","v":4555},{"$f":"VLOOKUP(DropDownList!$B$47,CntyQryCensus!$A$4:$CX$46,AP$1)","v":10133},{"$f":"VLOOKUP(DropDownList!$B$47,CntyQryCensus!$A$4:$CX$46,AQ$1)","v":2.2200000000000002},{"$f":"VLOOKUP(DropDownList!$B$47,CntyQryCensus!$A$4:$CX$46,AR$1)","v":1447},{"$f":"VLOOKUP(DropDownList!$B$47,CntyQryCensus!$A$4:$CX$46,AS$1)","v":3108},{"$f":"VLOOKUP(DropDownList!$B$47,CntyQryCensus!$A$4:$CX$46,AT$1)","v":2902},{"$f":"VLOOKUP(DropDownList!$B$47,CntyQryCensus!$A$4:$CX$46,AU$1)","v":2213},{"$f":"VLOOKUP(DropDownList!$B$47,CntyQryCensus!$A$4:$CX$46,AV$1)","v":689},{"$f":"VLOOKUP(DropDownList!$B$47,CntyQryCensus!$A$4:$CX$46,AW$1)","v":206},{"$f":"VLOOKUP(DropDownList!$B$47,CntyQryCensus!$A$4:$CX$46,AX$1)","v":2902},{"$f":"VLOOKUP(DropDownList!$B$47,CntyQryCensus!$A$4:$CX$46,AY$1)","v":7956},{"$f":"VLOOKUP(DropDownList!$B$47,CntyQryCensus!$A$4:$CX$46,AZ$1)","v":2.74},{"$f":"VLOOKUP(DropDownList!$B$47,CntyQryCensus!$A$4:$CX$46,BA$1)","v":5111},{"$f":"VLOOKUP(DropDownList!$B$47,CntyQryCensus!$A$4:$CX$46,BB$1)","v":4555},{"$f":"VLOOKUP(DropDownList!$B$47,CntyQryCensus!$A$4:$CX$46,BC$1)","v":2790},{"$f":"VLOOKUP(DropDownList!$B$47,CntyQryCensus!$A$4:$CX$46,BD$1)","v":1765},{"$f":"VLOOKUP(DropDownList!$B$47,CntyQryCensus!$A$4:$CX$46,BE$1)","v":556},{"$f":"VLOOKUP(DropDownList!$B$47,CntyQryCensus!$A$4:$CX$46,BF$1)","v":216},{"$f":"VLOOKUP(DropDownList!$B$47,CntyQryCensus!$A$4:$CX$46,BG$1)","v":87},{"$f":"VLOOKUP(DropDownList!$B$47,CntyQryCensus!$A$4:$CX$46,BH$1)","v":37},{"$f":"VLOOKUP(DropDownList!$B$47,CntyQryCensus!$A$4:$CX$46,BI$1)","v":10133},{"$f":"VLOOKUP(DropDownList!$B$47,CntyQryCensus!$A$4:$CX$46,BJ$1)","v":6680},{"$f":"VLOOKUP(DropDownList!$B$47,CntyQryCensus!$A$4:$CX$46,BK$1)","v":3453},{"$f":"VLOOKUP(DropDownList!$B$47,CntyQryCensus!$A$4:$CX$46,BL$1)","v":2.2200000000000002},{"$f":"VLOOKUP(DropDownList!$B$47,CntyQryCensus!$A$4:$CX$46,BM$1)","v":2.39},{"$f":"VLOOKUP(DropDownList!$B$47,CntyQryCensus!$A$4:$CX$46,BN$1)","v":1.96},{"$f":"VLOOKUP(DropDownList!$B$47,CntyQryCensus!$A$4:$CX$46,BO$1)","v":2768},{"$f":"VLOOKUP(DropDownList!$B$47,CntyQryCensus!$A$4:$CX$46,BP$1)","v":3},{"$f":"VLOOKUP(DropDownList!$B$47,CntyQryCensus!$A$4:$CX$46,BQ$1)","v":5},{"$f":"VLOOKUP(DropDownList!$B$47,CntyQryCensus!$A$4:$CX$46,BR$1)","v":6},{"$f":"VLOOKUP(DropDownList!$B$47,CntyQryCensus!$A$4:$CX$46,BS$1)","v":0},{"$f":"VLOOKUP(DropDownList!$B$47,CntyQryCensus!$A$4:$CX$46,BT$1)","v":1},{"$f":"VLOOKUP(DropDownList!$B$47,CntyQryCensus!$A$4:$CX$46,BU$1)","v":7},{"$f":"VLOOKUP(DropDownList!$B$47,CntyQryCensus!$A$4:$CX$46,BV$1)","v":1722},{"$f":"VLOOKUP(DropDownList!$B$47,CntyQryCensus!$A$4:$CX$46,BW$1)","v":1},{"$f":"VLOOKUP(DropDownList!$B$47,CntyQryCensus!$A$4:$CX$46,BX$1)","v":5},{"$f":"VLOOKUP(DropDownList!$B$47,CntyQryCensus!$A$4:$CX$46,BY$1)","v":11},{"$f":"VLOOKUP(DropDownList!$B$47,CntyQryCensus!$A$4:$CX$46,BZ$1)","v":0},{"$f":"VLOOKUP(DropDownList!$B$47,CntyQryCensus!$A$4:$CX$46,CA$1)","v":3},{"$f":"VLOOKUP(DropDownList!$B$47,CntyQryCensus!$A$4:$CX$46,CB$1)","v":23},{"$f":"VLOOKUP(DropDownList!$B$47,CntyQryCensus!$A$4:$CX$46,CC$1)","v":17},{"$f":"VLOOKUP(DropDownList!$B$47,CntyQryCensus!$A$4:$CX$46,CD$1)","v":227},{"$f":"VLOOKUP(DropDownList!$B$47,CntyQryCensus!$A$4:$CX$46,CE$1)","v":545},{"$f":"VLOOKUP(DropDownList!$B$47,CntyQryCensus!$A$4:$CX$46,CF$1)","v":578},{"$f":"VLOOKUP(DropDownList!$B$47,CntyQryCensus!$A$4:$CX$46,CG$1)","v":407},{"$f":"VLOOKUP(DropDownList!$B$47,CntyQryCensus!$A$4:$CX$46,CH$1)","v":542},{"$f":"VLOOKUP(DropDownList!$B$47,CntyQryCensus!$A$4:$CX$46,CI$1)","v":373},{"$f":"VLOOKUP(DropDownList!$B$47,CntyQryCensus!$A$4:$CX$46,CJ$1)","v":101},{"$f":"VLOOKUP(DropDownList!$B$47,CntyQryCensus!$A$4:$CX$46,CK$1)","v":179},{"$f":"VLOOKUP(DropDownList!$B$47,CntyQryCensus!$A$4:$CX$46,CL$1)","v":369},{"$f":"VLOOKUP(DropDownList!$B$47,CntyQryCensus!$A$4:$CX$46,CM$1)","v":336},{"$f":"VLOOKUP(DropDownList!$B$47,CntyQryCensus!$A$4:$CX$46,CN$1)","v":207},{"$f":"VLOOKUP(DropDownList!$B$47,CntyQryCensus!$A$4:$CX$46,CO$1)","v":161},{"$f":"VLOOKUP(DropDownList!$B$47,CntyQryCensus!$A$4:$CX$46,CP$1)","v":199},{"$f":"VLOOKUP(DropDownList!$B$47,CntyQryCensus!$A$4:$CX$46,CQ$1)","v":217},{"$f":"VLOOKUP(DropDownList!$B$47,CntyQryCensus!$A$4:$CX$46,CR$1)","v":97},{"$f":"VLOOKUP(DropDownList!$B$47,CntyQryCensus!$A$4:$CX$46,CS$1)","v":10331},{"$f":"VLOOKUP(DropDownList!$B$47,CntyQryCensus!$A$4:$CX$46,CT$1)","v":10133},{"$f":"VLOOKUP(DropDownList!$B$47,CntyQryCensus!$A$4:$CX$46,CU$1)","v":198},{"$f":"VLOOKUP(DropDownList!$B$47,CntyQryCensus!$A$4:$CX$46,CV$1)","v":42.5},{"$f":"VLOOKUP(DropDownList!$B$47,CntyQryCensus!$A$4:$CX$46,CW$1)","v":40.299999999999997},{"$f":"VLOOKUP(DropDownList!$B$47,CntyQryCensus!$A$4:$CX$46,CX$1)","v":44.6}]
[]
[]
["Census 2000 DemoProfile Sample Data Tables 2&3   -  DPTab23TownQry"]
["NAME","COUSUB","AREANAME","PopInSchool","Preschool","Kindergarten","Elementary","HighSchool","College","Pop25andOver","HighSchoolGrad","SomeCollege","AssocDegree","BachelDegree","GradDegree","HSGradorHigher","CollegeGradorHigher","Pop5to20yrs","Pop5to20wDis","Pop21to64","Pop21to64wDis","Pop65over","Pop65overwDis","Pop5yrsOver","SameHUin95","DiffHUinUSin95","HUinSameCountyin95","HUinSameStatein95","TotalPop","NativePop","NatPopBornUS","NatPopBornInStatRes","NatPopBornDiffState","NatPopBornOutUS","FornBornPop","FornPopEnt90to00","FornPopNatCit","FornPopNotCit","Households","HHIncLessThn10k","HHInc10to15K","HHInc15to25K","HHInc25to35K","HHInc35to50K","HHInc50to75K","HHInc75to100K","HHInc100to150K","HHInc150to200K","HHIncOver200K","MedianHHInc","HHwithPubAssistInc","MeanPubAssist","FamilyHH","FHHIncLessThn10k","FHHInc10to15K","FHHInc15to25K","FHHInc25to35K","FHHInc35to50K","FHHInc50to75K","FHHInc75to100K","FHHInc100to150K","FHHInc150to200K","FHHIncOver200K","MedianFHHInc","PerCapitaInc","PovStatFamilies","PovStatFHHwChilUnd18","PovStatFHHwChilUnd5","PovStFmalHH","DP3088","DP3089","PovStatIndiv","PovStatIndiv18yrOver","PovStatIndiv65yrOver","DP3093","DP3094","DP3095"]
[{"$f":"VLOOKUP(DropDownList!$B$47,CntyQryCensus!$A$54:$BY$96,A$1)","v":"Berlin"},{"$f":"VLOOKUP(DropDownList!$B$47,CntyQryCensus!$A$54:$BY$96,B$1)","v":"05140"},{"$f":"VLOOKUP(DropDownList!$B$47,CntyQryCensus!$A$54:$BY$96,C$1)","v":"Berlin city, New Hampshire"},{"$f":"VLOOKUP(DropDownList!$B$47,CntyQryCensus!$A$54:$BY$96,D$1)","v":2260},{"$f":"VLOOKUP(DropDownList!$B$47,CntyQryCensus!$A$54:$BY$96,E$1)","v":147},{"$f":"VLOOKUP(DropDownList!$B$47,CntyQryCensus!$A$54:$BY$96,F$1)","v":144},{"$f":"VLOOKUP(DropDownList!$B$47,CntyQryCensus!$A$54:$BY$96,G$1)","v":996},{"$f":"VLOOKUP(DropDownList!$B$47,CntyQryCensus!$A$54:$BY$96,H$1)","v":630},{"$f":"VLOOKUP(DropDownList!$B$47,CntyQryCensus!$A$54:$BY$96,I$1)","v":343},{"$f":"VLOOKUP(DropDownList!$B$47,CntyQryCensus!$A$54:$BY$96,J$1)","v":7445},{"$f":"VLOOKUP(DropDownList!$B$47,CntyQryCensus!$A$54:$BY$96,K$1)","v":2987},{"$f":"VLOOKUP(DropDownList!$B$47,CntyQryCensus!$A$54:$BY$96,L$1)","v":1316},{"$f":"VLOOKUP(DropDownList!$B$47,CntyQryCensus!$A$54:$BY$96,M$1)","v":608},{"$f":"VLOOKUP(DropDownList!$B$47,CntyQryCensus!$A$54:$BY$96,N$1)","v":339},{"$f":"VLOOKUP(DropDownList!$B$47,CntyQryCensus!$A$54:$BY$96,O$1)","v":157},{"$f":"VLOOKUP(DropDownList!$B$47,CntyQryCensus!$A$54:$BY$96,P$1)","v":5407},{"$f":"VLOOKUP(DropDownList!$B$47,CntyQryCensus!$A$54:$BY$96,Q$1)","v":496},{"$f":"VLOOKUP(DropDownList!$B$47,CntyQryCensus!$A$54:$BY$96,R$1)","v":2009},{"$f":"VLOOKUP(DropDownList!$B$47,CntyQryCensus!$A$54:$BY$96,S$1)","v":185},{"$f":"VLOOKUP(DropDownList!$B$47,CntyQryCensus!$A$54:$BY$96,T$1)","v":5434},{"$f":"VLOOKUP(DropDownList!$B$47,CntyQryCensus!$A$54:$BY$96,U$1)","v":1454},{"$f":"VLOOKUP(DropDownList!$B$47,CntyQryCensus!$A$54:$BY$96,V$1)","v":2169},{"$f":"VLOOKUP(DropDownList!$B$47,CntyQryCensus!$A$54:$BY$96,W$1)","v":1094},{"$f":"VLOOKUP(DropDownList!$B$47,CntyQryCensus!$A$54:$BY$96,X$1)","v":9800},{"$f":"VLOOKUP(DropDownList!$B$47,CntyQryCensus!$A$54:$BY$96,Y$1)","v":6457},{"$f":"VLOOKUP(DropDownList!$B$47,CntyQryCensus!$A$54:$BY$96,Z$1)","v":3316},{"$f":"VLOOKUP(DropDownList!$B$47,CntyQryCensus!$A$54:$BY$96,AA$1)","v":2519},{"$f":"VLOOKUP(DropDownList!$B$47,CntyQryCensus!$A$54:$BY$96,AB$1)","v":797},{"$f":"VLOOKUP(DropDownList!$B$47,CntyQryCensus!$A$54:$BY$96,AC$1)","v":10331},{"$f":"VLOOKUP(DropDownList!$B$47,CntyQryCensus!$A$54:$BY$96,AD$1)","v":9858},{"$f":"VLOOKUP(DropDownList!$B$47,CntyQryCensus!$A$54:$BY$96,AE$1)","v":9788},{"$f":"VLOOKUP(DropDownList!$B$47,CntyQryCensus!$A$54:$BY$96,AF$1)","v":7823},{"$f":"VLOOKUP(DropDownList!$B$47,CntyQryCensus!$A$54:$BY$96,AG$1)","v":1965},{"$f":"VLOOKUP(DropDownList!$B$47,CntyQryCensus!$A$54:$BY$96,AH$1)","v":70},{"$f":"VLOOKUP(DropDownList!$B$47,CntyQryCensus!$A$54:$BY$96,AI$1)","v":473},{"$f":"VLOOKUP(DropDownList!$B$47,CntyQryCensus!$A$54:$BY$96,AJ$1)","v":57},{"$f":"VLOOKUP(DropDownList!$B$47,CntyQryCensus!$A$54:$BY$96,AK$1)","v":345},{"$f":"VLOOKUP(DropDownList!$B$47,CntyQryCensus!$A$54:$BY$96,AL$1)","v":128},{"$f":"VLOOKUP(DropDownList!$B$47,CntyQryCensus!$A$54:$BY$96,AM$1)","v":4555},{"$f":"VLOOKUP(DropDownList!$B$47,CntyQryCensus!$A$54:$BY$96,AN$1)","v":677},{"$f":"VLOOKUP(DropDownList!$B$47,CntyQryCensus!$A$54:$BY$96,AO$1)","v":494},{"$f":"VLOOKUP(DropDownList!$B$47,CntyQryCensus!$A$54:$BY$96,AP$1)","v":770},{"$f":"VLOOKUP(DropDownList!$B$47,CntyQryCensus!$A$54:$BY$96,AQ$1)","v":671},{"$f":"VLOOKUP(DropDownList!$B$47,CntyQryCensus!$A$54:$BY$96,AR$1)","v":853},{"$f":"VLOOKUP(DropDownList!$B$47,CntyQryCensus!$A$54:$BY$96,AS$1)","v":776},{"$f":"VLOOKUP(DropDownList!$B$47,CntyQryCensus!$A$54:$BY$96,AT$1)","v":185},{"$f":"VLOOKUP(DropDownList!$B$47,CntyQryCensus!$A$54:$BY$96,AU$1)","v":107},{"$f":"VLOOKUP(DropDownList!$B$47,CntyQryCensus!$A$54:$BY$96,AV$1)","v":14},{"$f":"VLOOKUP(DropDownList!$B$47,CntyQryCensus!$A$54:$BY$96,AW$1)","v":8},{"$f":"VLOOKUP(DropDownList!$B$47,CntyQryCensus!$A$54:$BY$96,AX$1)","v":29647},{"$f":"VLOOKUP(DropDownList!$B$47,CntyQryCensus!$A$54:$BY$96,AY$1)","v":361},{"$f":"VLOOKUP(DropDownList!$B$47,CntyQryCensus!$A$54:$BY$96,AZ$1)","v":1727},{"$f":"VLOOKUP(DropDownList!$B$47,CntyQryCensus!$A$54:$BY$96,BA$1)","v":2919},{"$f":"VLOOKUP(DropDownList!$B$47,CntyQryCensus!$A$54:$BY$96,BB$1)","v":182},{"$f":"VLOOKUP(DropDownList!$B$47,CntyQryCensus!$A$54:$BY$96,BC$1)","v":190},{"$f":"VLOOKUP(DropDownList!$B$47,CntyQryCensus!$A$54:$BY$96,BD$1)","v":407},{"$f":"VLOOKUP(DropDownList!$B$47,CntyQryCensus!$A$54:$BY$96,BE$1)","v":468},{"$f":"VLOOKUP(DropDownList!$B$47,CntyQryCensus!$A$54:$BY$96,BF$1)","v":726},{"$f":"VLOOKUP(DropDownList!$B$47,CntyQryCensus!$A$54:$BY$96,BG$1)","v":696},{"$f":"VLOOKUP(DropDownList!$B$47,CntyQryCensus!$A$54:$BY$96,BH$1)","v":154},{"$f":"VLOOKUP(DropDownList!$B$47,CntyQryCensus!$A$54:$BY$96,BI$1)","v":88},{"$f":"VLOOKUP(DropDownList!$B$47,CntyQryCensus!$A$54:$BY$96,BJ$1)","v":8},{"$f":"VLOOKUP(DropDownList!$B$47,CntyQryCensus!$A$54:$BY$96,BK$1)","v":0},{"$f":"VLOOKUP(DropDownList!$B$47,CntyQryCensus!$A$54:$BY$96,BL$1)","v":38750},{"$f":"VLOOKUP(DropDownList!$B$47,CntyQryCensus!$A$54:$BY$96,BM$1)","v":15780},{"$f":"VLOOKUP(DropDownList!$B$47,CntyQryCensus!$A$54:$BY$96,BN$1)","v":265},{"$f":"VLOOKUP(DropDownList!$B$47,CntyQryCensus!$A$54:$BY$96,BO$1)","v":184},{"$f":"VLOOKUP(DropDownList!$B$47,CntyQryCensus!$A$54:$BY$96,BP$1)","v":89},{"$f":"VLOOKUP(DropDownList!$B$47,CntyQryCensus!$A$54:$BY$96,BQ$1)","v":123},{"$f":"VLOOKUP(DropDownList!$B$47,CntyQryCensus!$A$54:$BY$96,BR$1)","v":108},{"$f":"VLOOKUP(DropDownList!$B$47,CntyQryCensus!$A$54:$BY$96,BS$1)","v":58},{"$f":"VLOOKUP(DropDownList!$B$47,CntyQryCensus!$A$54:$BY$96,BT$1)","v":1249},{"$f":"VLOOKUP(DropDownList!$B$47,CntyQryCensus!$A$54:$BY$96,BU$1)","v":937},{"$f":"VLOOKUP(DropDownList!$B$47,CntyQryCensus!$A$54:$BY$96,BV$1)","v":269},{"$f":"VLOOKUP(DropDownList!$B$47,CntyQryCensus!$A$54:$BY$96,BW$1)","v":284},{"$f":"VLOOKUP(DropDownList!$B$47,CntyQryCensus!$A$54:$BY$96,BX$1)","v":168},{"$f":"VLOOKUP(DropDownList!$B$47,CntyQryCensus!$A$54:$BY$96,BY$1)","v":567}]
[]
[]
["Census 2000 DemoProfile Sample Data Table 4   -  DPTab4TownQry"]
["NAME","COUSUB","TotHousingUnits","1UnitDet","1UnitAtt","2Units","3to4Units","5to9Units","10to19Units","20orMoreUnits","MobileHomes","BoatRvVan","SingleFamilyUnits","MultiFamUnits","MobileHomeUnits","YearBuilt99to00","YearBuilt95to98","YearBUilt90to94","YearBuilt80to89","YearBuilt70to79","YearBuilt60to69","YearBuilt40to59","YearBuilt39orEarlier","Rooms1","Rooms2","Rooms3","Rooms4","Rooms5","Rooms6","Rooms7","Rooms8","Rooms9orMore","MedianRooms","OccHU1","YrHHMvdIn99to00","YrHHMvdIn95to98","YrHHMvdIn90to94","YrHHMvdIn80to89","YrHHMvdIn70to79","YrHHMvdIn69orBefore","HeatFuelNatGas","HeatFuelBotGas","HeatFuelElectric","HeatFuelOil","HeatFuelCoal","HeatFuelWood","HeatFuelSolar","HeatFuelOther","HeatFuelNone","LackCompPlumb","LackCompKit","NoTelephone","OccHU","OccPerRm1orLess","OccPerRm1to1_5","OccPerRm1_5orMore","SpecOwnOccUnits","Value<50K","Value50to100K","Value100to150K","Value150to200K","Value200to300K","Value300to500K","Value500Kto1mil","Value1MilorMore","MedianValue","WithMortg","MnthOwnCst<300","MnthOwnCst300to500","MnthOwnCst500to700","MnthOwnCst700to1000","MnthOwnCst1000to1500","MnthOwnCst1500to2000","MnthOwnCst2000orMore","MediMnthOwnCst","NotMrtg","NotMrtgMediMnthOwnCst","OwnCst%HHInc<15","OwnCst%HHInc15to20","OwnCst%HHInc20to25","OwnCst%HHInc25to30","OwnCst%HHInc30to35","OwnCst%HHInc35orMor","NotComputed","SpecRntOccUnits","Rnt<200","Rnt200to300","Rnt300to500","Rnt500to750","Rnt750to1000","Rnt1000to1500","Rnt1500orMore","NoRent","MedianRent","Rnt%HHInc<15","Rnt%HHInc15to20","Rnt%HHInc20to25","Rnt%HHInc25to30","Rnt%HHInc30to35","Rnt%HHInc35orMore","Rnt%NotCompute"]
[{"$f":"VLOOKUP(DropDownList!$B$47,CntyQryCensus!$A$104:$CX$146,A$1)","v":"Berlin"},{"$f":"VLOOKUP(DropDownList!$B$47,CntyQryCensus!$A$104:$CX$146,B$1)","v":"05140"},{"$f":"VLOOKUP(DropDownList!$B$47,CntyQryCensus!$A$104:$CX$146,C$1)","v":5111},{"$f":"VLOOKUP(DropDownList!$B$47,CntyQryCensus!$A$104:$CX$146,D$1)","v":2454},{"$f":"VLOOKUP(DropDownList!$B$47,CntyQryCensus!$A$104:$CX$146,E$1)","v":43},{"$f":"VLOOKUP(DropDownList!$B$47,CntyQryCensus!$A$104:$CX$146,F$1)","v":1072},{"$f":"VLOOKUP(DropDownList!$B$47,CntyQryCensus!$A$104:$CX$146,G$1)","v":824},{"$f":"VLOOKUP(DropDownList!$B$47,CntyQryCensus!$A$104:$CX$146,H$1)","v":415},{"$f":"VLOOKUP(DropDownList!$B$47,CntyQryCensus!$A$104:$CX$146,I$1)","v":78},{"$f":"VLOOKUP(DropDownList!$B$47,CntyQryCensus!$A$104:$CX$146,J$1)","v":135},{"$f":"VLOOKUP(DropDownList!$B$47,CntyQryCensus!$A$104:$CX$146,K$1)","v":90},{"$f":"VLOOKUP(DropDownList!$B$47,CntyQryCensus!$A$104:$CX$146,L$1)","v":0},{"$f":"VLOOKUP(DropDownList!$B$47,CntyQryCensus!$A$104:$CX$146,M$1)","v":2454},{"$f":"VLOOKUP(DropDownList!$B$47,CntyQryCensus!$A$104:$CX$146,N$1)","v":2567},{"$f":"VLOOKUP(DropDownList!$B$47,CntyQryCensus!$A$104:$CX$146,O$1)","v":90},{"$f":"VLOOKUP(DropDownList!$B$47,CntyQryCensus!$A$104:$CX$146,P$1)","v":7},{"$f":"VLOOKUP(DropDownList!$B$47,CntyQryCensus!$A$104:$CX$146,Q$1)","v":7},{"$f":"VLOOKUP(DropDownList!$B$47,CntyQryCensus!$A$104:$CX$146,R$1)","v":11},{"$f":"VLOOKUP(DropDownList!$B$47,CntyQryCensus!$A$104:$CX$146,S$1)","v":152},{"$f":"VLOOKUP(DropDownList!$B$47,CntyQryCensus!$A$104:$CX$146,T$1)","v":394},{"$f":"VLOOKUP(DropDownList!$B$47,CntyQryCensus!$A$104:$CX$146,U$1)","v":288},{"$f":"VLOOKUP(DropDownList!$B$47,CntyQryCensus!$A$104:$CX$146,V$1)","v":1201},{"$f":"VLOOKUP(DropDownList!$B$47,CntyQryCensus!$A$104:$CX$146,W$1)","v":3051},{"$f":"VLOOKUP(DropDownList!$B$47,CntyQryCensus!$A$104:$CX$146,X$1)","v":18},{"$f":"VLOOKUP(DropDownList!$B$47,CntyQryCensus!$A$104:$CX$146,Y$1)","v":99},{"$f":"VLOOKUP(DropDownList!$B$47,CntyQryCensus!$A$104:$CX$146,Z$1)","v":475},{"$f":"VLOOKUP(DropDownList!$B$47,CntyQryCensus!$A$104:$CX$146,AA$1)","v":1059},{"$f":"VLOOKUP(DropDownList!$B$47,CntyQryCensus!$A$104:$CX$146,AB$1)","v":1417},{"$f":"VLOOKUP(DropDownList!$B$47,CntyQryCensus!$A$104:$CX$146,AC$1)","v":1017},{"$f":"VLOOKUP(DropDownList!$B$47,CntyQryCensus!$A$104:$CX$146,AD$1)","v":489},{"$f":"VLOOKUP(DropDownList!$B$47,CntyQryCensus!$A$104:$CX$146,AE$1)","v":260},{"$f":"VLOOKUP(DropDownList!$B$47,CntyQryCensus!$A$104:$CX$146,AF$1)","v":277},{"$f":"VLOOKUP(DropDownList!$B$47,CntyQryCensus!$A$104:$CX$146,AG$1)","v":5.0999999999999996},{"$f":"VLOOKUP(DropDownList!$B$47,CntyQryCensus!$A$104:$CX$146,AH$1)","v":4555},{"$f":"VLOOKUP(DropDownList!$B$47,CntyQryCensus!$A$104:$CX$146,AI$1)","v":743},{"$f":"VLOOKUP(DropDownList!$B$47,CntyQryCensus!$A$104:$CX$146,AJ$1)","v":899},{"$f":"VLOOKUP(DropDownList!$B$47,CntyQryCensus!$A$104:$CX$146,AK$1)","v":493},{"$f":"VLOOKUP(DropDownList!$B$47,CntyQryCensus!$A$104:$CX$146,AL$1)","v":806},{"$f":"VLOOKUP(DropDownList!$B$47,CntyQryCensus!$A$104:$CX$146,AM$1)","v":601},{"$f":"VLOOKUP(DropDownList!$B$47,CntyQryCensus!$A$104:$CX$146,AN$1)","v":1013},{"$f":"VLOOKUP(DropDownList!$B$47,CntyQryCensus!$A$104:$CX$146,AO$1)","v":0},{"$f":"VLOOKUP(DropDownList!$B$47,CntyQryCensus!$A$104:$CX$146,AP$1)","v":45},{"$f":"VLOOKUP(DropDownList!$B$47,CntyQryCensus!$A$104:$CX$146,AQ$1)","v":104},{"$f":"VLOOKUP(DropDownList!$B$47,CntyQryCensus!$A$104:$CX$146,AR$1)","v":4315},{"$f":"VLOOKUP(DropDownList!$B$47,CntyQryCensus!$A$104:$CX$146,AS$1)","v":6},{"$f":"VLOOKUP(DropDownList!$B$47,CntyQryCensus!$A$104:$CX$146,AT$1)","v":54},{"$f":"VLOOKUP(DropDownList!$B$47,CntyQryCensus!$A$104:$CX$146,AU$1)","v":0},{"$f":"VLOOKUP(DropDownList!$B$47,CntyQryCensus!$A$104:$CX$146,AV$1)","v":22},{"$f":"VLOOKUP(DropDownList!$B$47,CntyQryCensus!$A$104:$CX$146,AW$1)","v":9},{"$f":"VLOOKUP(DropDownList!$B$47,CntyQryCensus!$A$104:$CX$146,AX$1)","v":12},{"$f":"VLOOKUP(DropDownList!$B$47,CntyQryCensus!$A$104:$CX$146,AY$1)","v":6},{"$f":"VLOOKUP(DropDownList!$B$47,CntyQryCensus!$A$104:$CX$146,AZ$1)","v":159},{"$f":"VLOOKUP(DropDownList!$B$47,CntyQryCensus!$A$104:$CX$146,BA$1)","v":4555},{"$f":"VLOOKUP(DropDownList!$B$47,CntyQryCensus!$A$104:$CX$146,BB$1)","v":4486},{"$f":"VLOOKUP(DropDownList!$B$47,CntyQryCensus!$A$104:$CX$146,BC$1)","v":57},{"$f":"VLOOKUP(DropDownList!$B$47,CntyQryCensus!$A$104:$CX$146,BD$1)","v":12},{"$f":"VLOOKUP(DropDownList!$B$47,CntyQryCensus!$A$104:$CX$146,BE$1)","v":2110},{"$f":"VLOOKUP(DropDownList!$B$47,CntyQryCensus!$A$104:$CX$146,BF$1)","v":751},{"$f":"VLOOKUP(DropDownList!$B$47,CntyQryCensus!$A$104:$CX$146,BG$1)","v":1253},{"$f":"VLOOKUP(DropDownList!$B$47,CntyQryCensus!$A$104:$CX$146,BH$1)","v":93},{"$f":"VLOOKUP(DropDownList!$B$47,CntyQryCensus!$A$104:$CX$146,BI$1)","v":8},{"$f":"VLOOKUP(DropDownList!$B$47,CntyQryCensus!$A$104:$CX$146,BJ$1)","v":5},{"$f":"VLOOKUP(DropDownList!$B$47,CntyQryCensus!$A$104:$CX$146,BK$1)","v":0},{"$f":"VLOOKUP(DropDownList!$B$47,CntyQryCensus!$A$104:$CX$146,BL$1)","v":0},{"$f":"VLOOKUP(DropDownList!$B$47,CntyQryCensus!$A$104:$CX$146,BM$1)","v":0},{"$f":"VLOOKUP(DropDownList!$B$47,CntyQryCensus!$A$104:$CX$146,BN$1)","v":59100},{"$f":"VLOOKUP(DropDownList!$B$47,CntyQryCensus!$A$104:$CX$146,BO$1)","v":1119},{"$f":"VLOOKUP(DropDownList!$B$47,CntyQryCensus!$A$104:$CX$146,BP$1)","v":0},{"$f":"VLOOKUP(DropDownList!$B$47,CntyQryCensus!$A$104:$CX$146,BQ$1)","v":103},{"$f":"VLOOKUP(DropDownList!$B$47,CntyQryCensus!$A$104:$CX$146,BR$1)","v":321},{"$f":"VLOOKUP(DropDownList!$B$47,CntyQryCensus!$A$104:$CX$146,BS$1)","v":510},{"$f":"VLOOKUP(DropDownList!$B$47,CntyQryCensus!$A$104:$CX$146,BT$1)","v":161},{"$f":"VLOOKUP(DropDownList!$B$47,CntyQryCensus!$A$104:$CX$146,BU$1)","v":24},{"$f":"VLOOKUP(DropDownList!$B$47,CntyQryCensus!$A$104:$CX$146,BV$1)","v":0},{"$f":"VLOOKUP(DropDownList!$B$47,CntyQryCensus!$A$104:$CX$146,BW$1)","v":769},{"$f":"VLOOKUP(DropDownList!$B$47,CntyQryCensus!$A$104:$CX$146,BX$1)","v":991},{"$f":"VLOOKUP(DropDownList!$B$47,CntyQryCensus!$A$104:$CX$146,BY$1)","v":384},{"$f":"VLOOKUP(DropDownList!$B$47,CntyQryCensus!$A$104:$CX$146,BZ$1)","v":768},{"$f":"VLOOKUP(DropDownList!$B$47,CntyQryCensus!$A$104:$CX$146,CA$1)","v":497},{"$f":"VLOOKUP(DropDownList!$B$47,CntyQryCensus!$A$104:$CX$146,CB$1)","v":308},{"$f":"VLOOKUP(DropDownList!$B$47,CntyQryCensus!$A$104:$CX$146,CC$1)","v":165},{"$f":"VLOOKUP(DropDownList!$B$47,CntyQryCensus!$A$104:$CX$146,CD$1)","v":93},{"$f":"VLOOKUP(DropDownList!$B$47,CntyQryCensus!$A$104:$CX$146,CE$1)","v":252},{"$f":"VLOOKUP(DropDownList!$B$47,CntyQryCensus!$A$104:$CX$146,CF$1)","v":27},{"$f":"VLOOKUP(DropDownList!$B$47,CntyQryCensus!$A$104:$CX$146,CG$1)","v":1754},{"$f":"VLOOKUP(DropDownList!$B$47,CntyQryCensus!$A$104:$CX$146,CH$1)","v":183},{"$f":"VLOOKUP(DropDownList!$B$47,CntyQryCensus!$A$104:$CX$146,CI$1)","v":220},{"$f":"VLOOKUP(DropDownList!$B$47,CntyQryCensus!$A$104:$CX$146,CJ$1)","v":1007},{"$f":"VLOOKUP(DropDownList!$B$47,CntyQryCensus!$A$104:$CX$146,CK$1)","v":208},{"$f":"VLOOKUP(DropDownList!$B$47,CntyQryCensus!$A$104:$CX$146,CL$1)","v":32},{"$f":"VLOOKUP(DropDownList!$B$47,CntyQryCensus!$A$104:$CX$146,CM$1)","v":5},{"$f":"VLOOKUP(DropDownList!$B$47,CntyQryCensus!$A$104:$CX$146,CN$1)","v":0},{"$f":"VLOOKUP(DropDownList!$B$47,CntyQryCensus!$A$104:$CX$146,CO$1)","v":99},{"$f":"VLOOKUP(DropDownList!$B$47,CntyQryCensus!$A$104:$CX$146,CP$1)","v":382},{"$f":"VLOOKUP(DropDownList!$B$47,CntyQryCensus!$A$104:$CX$146,CQ$1)","v":339},{"$f":"VLOOKUP(DropDownList!$B$47,CntyQryCensus!$A$104:$CX$146,CR$1)","v":248},{"$f":"VLOOKUP(DropDownList!$B$47,CntyQryCensus!$A$104:$CX$146,CS$1)","v":190},{"$f":"VLOOKUP(DropDownList!$B$47,CntyQryCensus!$A$104:$CX$146,CT$1)","v":152},{"$f":"VLOOKUP(DropDownList!$B$47,CntyQryCensus!$A$104:$CX$146,CU$1)","v":176},{"$f":"VLOOKUP(DropDownList!$B$47,CntyQryCensus!$A$104:$CX$146,CV$1)","v":536},{"$f":"VLOOKUP(DropDownList!$B$47,CntyQryCensus!$A$104:$CX$146,CW$1)","v":113}]
[]
[]
["Census 2000 SummaryFile3 Sample Data  -  SF3TownQry1SocialChar"]
["NAME","LOGRECNO","COUNTY","P01TotalPopulation","P02SampleCountOfPop","P03Pop100pctCount","P05UrbanPopulation","P05RuralPopulation","P06WhiteAlone","P06BlackOrAfAm","P06AmIndAlone","P06AsianAlone","P06HawaiianOrPI","P06OtherRace","P06TwoPlusRaces","P07NotHispanicOrLatino","P07HispanicOrLatino","P08MalePop","P08FemalePop","P09PopInHouseholds","P09PopInFamHH","P09PopInNonFamHH","P09PopInGroupQtr","P13TotalHH","P13FamilyHH","P13FamHHolder15to24yrs","P13FamHHolder25to34yrs","P13FamHHolder35to44yrs","P13FamHHolder45to54yrs","P13FamHHolder55to64yrs","P13FamHHolder65to74yrs","P13FamHHolder75to84yrs","P13FamHHolder85yrsOver","P13NonFamilyHH","P13NonFamHHolder15to24yrs","P13NonFamHHolder25to34yrs","P13NonFamHHolder35to44yrs","P13NonFamHHolder45to54yrs","P13NonFamHHolder55to64yrs","P13NonFamHHolder65to74yrs","P13NonFamHHolder75to84yrs","P13NonFamHHolder85yrsOver","P18Pop15yrsOver","P18MaritalStatNeverMarried","P18MaritalStatNowMarried","P18MaritalStatSeparated","P18MaritalStatWidowed","P18MaritalStatWidowFemale","P18MaritalStatDivorced","P18MaritalStatDivorcedFemale","P21NativeBornPop","P21NatPopBornInState","P21NatPopBornOtherState","P021005","P021006","P021007","P021008","P21NatPopBornOutUS","P21ForeignBornPop","P021014","P021015","P24Pop5YrsPlus","P24ResSameHouseIn95","P24ResDiffHouseIn95","P24ResDiffHouseInUSIn95","P24ResDiffHouseSameCountyIn95","P24ResDiffHouseDiffCountyIn95","P24ResDiffHouseDiffCntySamStIn95","P24ResDiffHouseDiffCntyDifStIn95","P24ResDiffHouseDiffCntyNEStIn95","P24ResDiffHouseDiffCntyMWStIn95","P24ResDiffHouseDiffCntySoStIn95","P24ResDiffHouseDiffCntyWstStIn95","P24ResDiffInPR","P24ResDiffElsewhereIn95","P26Workers16yrsOver","P26WorkedInState","P26WorkedInCnty","P26WorkedOutsideCnty","P26WorkedOutsideState","P30Workers16Over","P30TranspToWrkCar","P30TranspToWrkPublic","P30TranspToWrkOther","P30WrkdAtHome","P31WrkrsNotWrkAtHom","P31TravTim<5min","P31TravTim5to9Min","P31TravTim10to14Min","P31TravTim15to19Min","P31TravTim20to24Min","P31TravTim25to29Min","P31TravTim30to34Min","P31TravTim35to39Min","P31TravTim40to44Min","P31TravTim45to59Min","P31TravTim60to89Min","P31TravTim90MinMore","P31WorkAtHome","P36SchEnrlPop3yrOver","P36NurserSchEnrl","P36KinderSchEnrl","P36ElemSchEnrl","P36HighSchEnrl","P36CollGradSchEnrl","P37Pop25yrsOver","P37EduAtain<9grd","P37EduAtainHSnoDip","P37EduAtainHSgrad","P37EduAtainCollNoDeg","P37EduAtainAssocDeg","P37EduAtainBachDeg","P37EduAtainGradProfDeg","P42NIPop5to15","P42NIPop5to15wDisabl","P42NIPop16to20","P42NIPop16to20wDisab","P42NIPop16to20wDisEmp","P42NIPop16to21NoDis","P42NIPop16to21NoDisEmpl","P42NIPop21to64","P42NIPop21to64wDis","P42NIPop21to64wDisEmp","P42NIPop21to64NoDis","P42NIPop21to64NoDisEmp","P42NIPop65to74","P42NIPop65to74wDis","P42NIPop75Over","P42NIPop75OverwDis","P43Pop16YrsOver","P43Pop16OvrInLaborForce","P43Pop16OvrCivlLabFrc","P43Pop16OvrCivlLbrFrcEmp","P48Families","P48MarriedFam","P48MarrFamNoWorkers","P48MarrFam1Worker","P48MarrFam2Worker","P48MarrFamHusbWifeWorked","P48MarrFamOther","P48MarrFam3PlusWorker","P48MarrFam3WorkHsbWif","P48MarrFam3PlsWrkOther","P48OtherFam","P48MaleHHNoWif","P48MaleHHNoWifNoWorker","P48MaleHHNoWif1Worker","P48MaleHHNoWif2Worker","P48MaleHHNoWif3PlusWorker","P48FemaleHHNoHsb","P48FemaleHHNoHsbNoWorker","P48FemaleHHNoHsb1Worker","P48FemaleHHNoHsb2Worker","P48FemaleHHNoHsb3Worker","P49EmpCivPop16YrOver","P49IndustAgricult","P49IndustConst","P49IndustMnftg","P49IndustWhlslTrd","P49IndustRtlTrd","P49IndustTrspWrhsUtlt","P49IndustInfrm","P49IndustFinInsRE","P49IndustPrfsScntfMngmt","P49IndustEduHlthSocSrv","P49IndustArtsEntRec","P49IndustOthrSrvc","P49IndustPubAdm","P50OccupMngmtProfs","P50OccupService","P50OccupSalesOff","P50OccupFarmFishForest","P50OccupConstExtrctMaint","P50OccupPrdctTrnspMatMv"]
[{"$f":"VLOOKUP(DropDownList!$B$47,CntyQryCensus!$A$156:$FR$198,A$1)","v":"Berlin"},{"$f":"VLOOKUP(DropDownList!$B$47,CntyQryCensus!$A$156:$FR$198,B$1)","v":"0000833"},{"$f":"VLOOKUP(DropDownList!$B$47,CntyQryCensus!$A$156:$FR$198,C$1)","v":"05140"},{"$f":"VLOOKUP(DropDownList!$B$47,CntyQryCensus!$A$156:$FR$198,D$1)","v":10331},{"$f":"VLOOKUP(DropDownList!$B$47,CntyQryCensus!$A$156:$FR$198,E$1)","v":1706},{"$f":"VLOOKUP(DropDownList!$B$47,CntyQryCensus!$A$156:$FR$198,F$1)","v":10331},{"$f":"VLOOKUP(DropDownList!$B$47,CntyQryCensus!$A$156:$FR$198,G$1)","v":8964},{"$f":"VLOOKUP(DropDownList!$B$47,CntyQryCensus!$A$156:$FR$198,H$1)","v":1367},{"$f":"VLOOKUP(DropDownList!$B$47,CntyQryCensus!$A$156:$FR$198,I$1)","v":10241},{"$f":"VLOOKUP(DropDownList!$B$47,CntyQryCensus!$A$156:$FR$198,J$1)","v":12},{"$f":"VLOOKUP(DropDownList!$B$47,CntyQryCensus!$A$156:$FR$198,K$1)","v":7},{"$f":"VLOOKUP(DropDownList!$B$47,CntyQryCensus!$A$156:$FR$198,L$1)","v":0},{"$f":"VLOOKUP(DropDownList!$B$47,CntyQryCensus!$A$156:$FR$198,M$1)","v":0},{"$f":"VLOOKUP(DropDownList!$B$47,CntyQryCensus!$A$156:$FR$198,N$1)","v":0},{"$f":"VLOOKUP(DropDownList!$B$47,CntyQryCensus!$A$156:$FR$198,O$1)","v":71},{"$f":"VLOOKUP(DropDownList!$B$47,CntyQryCensus!$A$156:$FR$198,P$1)","v":10288},{"$f":"VLOOKUP(DropDownList!$B$47,CntyQryCensus!$A$156:$FR$198,Q$1)","v":43},{"$f":"VLOOKUP(DropDownList!$B$47,CntyQryCensus!$A$156:$FR$198,R$1)","v":4927},{"$f":"VLOOKUP(DropDownList!$B$47,CntyQryCensus!$A$156:$FR$198,S$1)","v":5404},{"$f":"VLOOKUP(DropDownList!$B$47,CntyQryCensus!$A$156:$FR$198,T$1)","v":10132},{"$f":"VLOOKUP(DropDownList!$B$47,CntyQryCensus!$A$156:$FR$198,U$1)","v":8277},{"$f":"VLOOKUP(DropDownList!$B$47,CntyQryCensus!$A$156:$FR$198,V$1)","v":1855},{"$f":"VLOOKUP(DropDownList!$B$47,CntyQryCensus!$A$156:$FR$198,W$1)","v":199},{"$f":"VLOOKUP(DropDownList!$B$47,CntyQryCensus!$A$156:$FR$198,X$1)","v":4555},{"$f":"VLOOKUP(DropDownList!$B$47,CntyQryCensus!$A$156:$FR$198,Y$1)","v":2919},{"$f":"VLOOKUP(DropDownList!$B$47,CntyQryCensus!$A$156:$FR$198,Z$1)","v":103},{"$f":"VLOOKUP(DropDownList!$B$47,CntyQryCensus!$A$156:$FR$198,AA$1)","v":449},{"$f":"VLOOKUP(DropDownList!$B$47,CntyQryCensus!$A$156:$FR$198,AB$1)","v":635},{"$f":"VLOOKUP(DropDownList!$B$47,CntyQryCensus!$A$156:$FR$198,AC$1)","v":635},{"$f":"VLOOKUP(DropDownList!$B$47,CntyQryCensus!$A$156:$FR$198,AD$1)","v":409},{"$f":"VLOOKUP(DropDownList!$B$47,CntyQryCensus!$A$156:$FR$198,AE$1)","v":417},{"$f":"VLOOKUP(DropDownList!$B$47,CntyQryCensus!$A$156:$FR$198,AF$1)","v":186},{"$f":"VLOOKUP(DropDownList!$B$47,CntyQryCensus!$A$156:$FR$198,AG$1)","v":85},{"$f":"VLOOKUP(DropDownList!$B$47,CntyQryCensus!$A$156:$FR$198,AH$1)","v":1636},{"$f":"VLOOKUP(DropDownList!$B$47,CntyQryCensus!$A$156:$FR$198,AI$1)","v":94},{"$f":"VLOOKUP(DropDownList!$B$47,CntyQryCensus!$A$156:$FR$198,AJ$1)","v":122},{"$f":"VLOOKUP(DropDownList!$B$47,CntyQryCensus!$A$156:$FR$198,AK$1)","v":178},{"$f":"VLOOKUP(DropDownList!$B$47,CntyQryCensus!$A$156:$FR$198,AL$1)","v":195},{"$f":"VLOOKUP(DropDownList!$B$47,CntyQryCensus!$A$156:$FR$198,AM$1)","v":144},{"$f":"VLOOKUP(DropDownList!$B$47,CntyQryCensus!$A$156:$FR$198,AN$1)","v":374},{"$f":"VLOOKUP(DropDownList!$B$47,CntyQryCensus!$A$156:$FR$198,AO$1)","v":378},{"$f":"VLOOKUP(DropDownList!$B$47,CntyQryCensus!$A$156:$FR$198,AP$1)","v":151},{"$f":"VLOOKUP(DropDownList!$B$47,CntyQryCensus!$A$156:$FR$198,AQ$1)","v":8532},{"$f":"VLOOKUP(DropDownList!$B$47,CntyQryCensus!$A$156:$FR$198,AR$1)","v":1863},{"$f":"VLOOKUP(DropDownList!$B$47,CntyQryCensus!$A$156:$FR$198,AS$1)","v":4560},{"$f":"VLOOKUP(DropDownList!$B$47,CntyQryCensus!$A$156:$FR$198,AT$1)","v":107},{"$f":"VLOOKUP(DropDownList!$B$47,CntyQryCensus!$A$156:$FR$198,AU$1)","v":1066},{"$f":"VLOOKUP(DropDownList!$B$47,CntyQryCensus!$A$156:$FR$198,AV$1)","v":893},{"$f":"VLOOKUP(DropDownList!$B$47,CntyQryCensus!$A$156:$FR$198,AW$1)","v":936},{"$f":"VLOOKUP(DropDownList!$B$47,CntyQryCensus!$A$156:$FR$198,AX$1)","v":471},{"$f":"VLOOKUP(DropDownList!$B$47,CntyQryCensus!$A$156:$FR$198,AY$1)","v":9858},{"$f":"VLOOKUP(DropDownList!$B$47,CntyQryCensus!$A$156:$FR$198,AZ$1)","v":7823},{"$f":"VLOOKUP(DropDownList!$B$47,CntyQryCensus!$A$156:$FR$198,BA$1)","v":1965},{"$f":"VLOOKUP(DropDownList!$B$47,CntyQryCensus!$A$156:$FR$198,BB$1)","v":1553},{"$f":"VLOOKUP(DropDownList!$B$47,CntyQryCensus!$A$156:$FR$198,BC$1)","v":87},{"$f":"VLOOKUP(DropDownList!$B$47,CntyQryCensus!$A$156:$FR$198,BD$1)","v":213},{"$f":"VLOOKUP(DropDownList!$B$47,CntyQryCensus!$A$156:$FR$198,BE$1)","v":112},{"$f":"VLOOKUP(DropDownList!$B$47,CntyQryCensus!$A$156:$FR$198,BF$1)","v":70},{"$f":"VLOOKUP(DropDownList!$B$47,CntyQryCensus!$A$156:$FR$198,BG$1)","v":473},{"$f":"VLOOKUP(DropDownList!$B$47,CntyQryCensus!$A$156:$FR$198,BH$1)","v":345},{"$f":"VLOOKUP(DropDownList!$B$47,CntyQryCensus!$A$156:$FR$198,BI$1)","v":128},{"$f":"VLOOKUP(DropDownList!$B$47,CntyQryCensus!$A$156:$FR$198,BJ$1)","v":9800},{"$f":"VLOOKUP(DropDownList!$B$47,CntyQryCensus!$A$156:$FR$198,BK$1)","v":6457},{"$f":"VLOOKUP(DropDownList!$B$47,CntyQryCensus!$A$156:$FR$198,BL$1)","v":3343},{"$f":"VLOOKUP(DropDownList!$B$47,CntyQryCensus!$A$156:$FR$198,BM$1)","v":3316},{"$f":"VLOOKUP(DropDownList!$B$47,CntyQryCensus!$A$156:$FR$198,BN$1)","v":2519},{"$f":"VLOOKUP(DropDownList!$B$47,CntyQryCensus!$A$156:$FR$198,BO$1)","v":797},{"$f":"VLOOKUP(DropDownList!$B$47,CntyQryCensus!$A$156:$FR$198,BP$1)","v":294},{"$f":"VLOOKUP(DropDownList!$B$47,CntyQryCensus!$A$156:$FR$198,BQ$1)","v":503},{"$f":"VLOOKUP(DropDownList!$B$47,CntyQryCensus!$A$156:$FR$198,BR$1)","v":295},{"$f":"VLOOKUP(DropDownList!$B$47,CntyQryCensus!$A$156:$FR$198,BS$1)","v":47},{"$f":"VLOOKUP(DropDownList!$B$47,CntyQryCensus!$A$156:$FR$198,BT$1)","v":156},{"$f":"VLOOKUP(DropDownList!$B$47,CntyQryCensus!$A$156:$FR$198,BU$1)","v":5},{"$f":"VLOOKUP(DropDownList!$B$47,CntyQryCensus!$A$156:$FR$198,BV$1)","v":0},{"$f":"VLOOKUP(DropDownList!$B$47,CntyQryCensus!$A$156:$FR$198,BW$1)","v":27},{"$f":"VLOOKUP(DropDownList!$B$47,CntyQryCensus!$A$156:$FR$198,BX$1)","v":4381},{"$f":"VLOOKUP(DropDownList!$B$47,CntyQryCensus!$A$156:$FR$198,BY$1)","v":4287},{"$f":"VLOOKUP(DropDownList!$B$47,CntyQryCensus!$A$156:$FR$198,BZ$1)","v":4075},{"$f":"VLOOKUP(DropDownList!$B$47,CntyQryCensus!$A$156:$FR$198,CA$1)","v":212},{"$f":"VLOOKUP(DropDownList!$B$47,CntyQryCensus!$A$156:$FR$198,CB$1)","v":94},{"$f":"VLOOKUP(DropDownList!$B$47,CntyQryCensus!$A$156:$FR$198,CC$1)","v":4381},{"$f":"VLOOKUP(DropDownList!$B$47,CntyQryCensus!$A$156:$FR$198,CD$1)","v":4096},{"$f":"VLOOKUP(DropDownList!$B$47,CntyQryCensus!$A$156:$FR$198,CE$1)","v":18},{"$f":"VLOOKUP(DropDownList!$B$47,CntyQryCensus!$A$156:$FR$198,CF$1)","v":19},{"$f":"VLOOKUP(DropDownList!$B$47,CntyQryCensus!$A$156:$FR$198,CG$1)","v":32},{"$f":"VLOOKUP(DropDownList!$B$47,CntyQryCensus!$A$156:$FR$198,CH$1)","v":4349},{"$f":"VLOOKUP(DropDownList!$B$47,CntyQryCensus!$A$156:$FR$198,CI$1)","v":398},{"$f":"VLOOKUP(DropDownList!$B$47,CntyQryCensus!$A$156:$FR$198,CJ$1)","v":1407},{"$f":"VLOOKUP(DropDownList!$B$47,CntyQryCensus!$A$156:$FR$198,CK$1)","v":1220},{"$f":"VLOOKUP(DropDownList!$B$47,CntyQryCensus!$A$156:$FR$198,CL$1)","v":609},{"$f":"VLOOKUP(DropDownList!$B$47,CntyQryCensus!$A$156:$FR$198,CM$1)","v":171},{"$f":"VLOOKUP(DropDownList!$B$47,CntyQryCensus!$A$156:$FR$198,CN$1)","v":23},{"$f":"VLOOKUP(DropDownList!$B$47,CntyQryCensus!$A$156:$FR$198,CO$1)","v":120},{"$f":"VLOOKUP(DropDownList!$B$47,CntyQryCensus!$A$156:$FR$198,CP$1)","v":18},{"$f":"VLOOKUP(DropDownList!$B$47,CntyQryCensus!$A$156:$FR$198,CQ$1)","v":50},{"$f":"VLOOKUP(DropDownList!$B$47,CntyQryCensus!$A$156:$FR$198,CR$1)","v":119},{"$f":"VLOOKUP(DropDownList!$B$47,CntyQryCensus!$A$156:$FR$198,CS$1)","v":93},{"$f":"VLOOKUP(DropDownList!$B$47,CntyQryCensus!$A$156:$FR$198,CT$1)","v":121},{"$f":"VLOOKUP(DropDownList!$B$47,CntyQryCensus!$A$156:$FR$198,CU$1)","v":32},{"$f":"VLOOKUP(DropDownList!$B$47,CntyQryCensus!$A$156:$FR$198,CV$1)","v":9972},{"$f":"VLOOKUP(DropDownList!$B$47,CntyQryCensus!$A$156:$FR$198,CW$1)","v":147},{"$f":"VLOOKUP(DropDownList!$B$47,CntyQryCensus!$A$156:$FR$198,CX$1)","v":144},{"$f":"VLOOKUP(DropDownList!$B$47,CntyQryCensus!$A$156:$FR$198,CY$1)","v":996},{"$f":"VLOOKUP(DropDownList!$B$47,CntyQryCensus!$A$156:$FR$198,CZ$1)","v":630},{"$f":"VLOOKUP(DropDownList!$B$47,CntyQryCensus!$A$156:$FR$198,DA$1)","v":343},{"$f":"VLOOKUP(DropDownList!$B$47,CntyQryCensus!$A$156:$FR$198,DB$1)","v":7445},{"$f":"VLOOKUP(DropDownList!$B$47,CntyQryCensus!$A$156:$FR$198,DC$1)","v":938},{"$f":"VLOOKUP(DropDownList!$B$47,CntyQryCensus!$A$156:$FR$198,DD$1)","v":1100},{"$f":"VLOOKUP(DropDownList!$B$47,CntyQryCensus!$A$156:$FR$198,DE$1)","v":2987},{"$f":"VLOOKUP(DropDownList!$B$47,CntyQryCensus!$A$156:$FR$198,DF$1)","v":1316},{"$f":"VLOOKUP(DropDownList!$B$47,CntyQryCensus!$A$156:$FR$198,DG$1)","v":608},{"$f":"VLOOKUP(DropDownList!$B$47,CntyQryCensus!$A$156:$FR$198,DH$1)","v":339},{"$f":"VLOOKUP(DropDownList!$B$47,CntyQryCensus!$A$156:$FR$198,DI$1)","v":157},{"$f":"VLOOKUP(DropDownList!$B$47,CntyQryCensus!$A$156:$FR$198,DJ$1)","v":1393},{"$f":"VLOOKUP(DropDownList!$B$47,CntyQryCensus!$A$156:$FR$198,DK$1)","v":115},{"$f":"VLOOKUP(DropDownList!$B$47,CntyQryCensus!$A$156:$FR$198,DL$1)","v":616},{"$f":"VLOOKUP(DropDownList!$B$47,CntyQryCensus!$A$156:$FR$198,DM$1)","v":70},{"$f":"VLOOKUP(DropDownList!$B$47,CntyQryCensus!$A$156:$FR$198,DN$1)","v":46},{"$f":"VLOOKUP(DropDownList!$B$47,CntyQryCensus!$A$156:$FR$198,DO$1)","v":546},{"$f":"VLOOKUP(DropDownList!$B$47,CntyQryCensus!$A$156:$FR$198,DP$1)","v":296},{"$f":"VLOOKUP(DropDownList!$B$47,CntyQryCensus!$A$156:$FR$198,DQ$1)","v":5434},{"$f":"VLOOKUP(DropDownList!$B$47,CntyQryCensus!$A$156:$FR$198,DR$1)","v":1454},{"$f":"VLOOKUP(DropDownList!$B$47,CntyQryCensus!$A$156:$FR$198,DS$1)","v":725},{"$f":"VLOOKUP(DropDownList!$B$47,CntyQryCensus!$A$156:$FR$198,DT$1)","v":3980},{"$f":"VLOOKUP(DropDownList!$B$47,CntyQryCensus!$A$156:$FR$198,DU$1)","v":3258},{"$f":"VLOOKUP(DropDownList!$B$47,CntyQryCensus!$A$156:$FR$198,DV$1)","v":1144},{"$f":"VLOOKUP(DropDownList!$B$47,CntyQryCensus!$A$156:$FR$198,DW$1)","v":522},{"$f":"VLOOKUP(DropDownList!$B$47,CntyQryCensus!$A$156:$FR$198,DX$1)","v":1025},{"$f":"VLOOKUP(DropDownList!$B$47,CntyQryCensus!$A$156:$FR$198,DY$1)","v":572},{"$f":"VLOOKUP(DropDownList!$B$47,CntyQryCensus!$A$156:$FR$198,DZ$1)","v":8407},{"$f":"VLOOKUP(DropDownList!$B$47,CntyQryCensus!$A$156:$FR$198,EA$1)","v":4844},{"$f":"VLOOKUP(DropDownList!$B$47,CntyQryCensus!$A$156:$FR$198,EB$1)","v":4837},{"$f":"VLOOKUP(DropDownList!$B$47,CntyQryCensus!$A$156:$FR$198,EC$1)","v":4492},{"$f":"VLOOKUP(DropDownList!$B$47,CntyQryCensus!$A$156:$FR$198,ED$1)","v":2919},{"$f":"VLOOKUP(DropDownList!$B$47,CntyQryCensus!$A$156:$FR$198,EE$1)","v":2161},{"$f":"VLOOKUP(DropDownList!$B$47,CntyQryCensus!$A$156:$FR$198,EF$1)","v":449},{"$f":"VLOOKUP(DropDownList!$B$47,CntyQryCensus!$A$156:$FR$198,EG$1)","v":432},{"$f":"VLOOKUP(DropDownList!$B$47,CntyQryCensus!$A$156:$FR$198,EH$1)","v":1009},{"$f":"VLOOKUP(DropDownList!$B$47,CntyQryCensus!$A$156:$FR$198,EI$1)","v":945},{"$f":"VLOOKUP(DropDownList!$B$47,CntyQryCensus!$A$156:$FR$198,EJ$1)","v":64},{"$f":"VLOOKUP(DropDownList!$B$47,CntyQryCensus!$A$156:$FR$198,EK$1)","v":271},{"$f":"VLOOKUP(DropDownList!$B$47,CntyQryCensus!$A$156:$FR$198,EL$1)","v":243},{"$f":"VLOOKUP(DropDownList!$B$47,CntyQryCensus!$A$156:$FR$198,EM$1)","v":28},{"$f":"VLOOKUP(DropDownList!$B$47,CntyQryCensus!$A$156:$FR$198,EN$1)","v":758},{"$f":"VLOOKUP(DropDownList!$B$47,CntyQryCensus!$A$156:$FR$198,EO$1)","v":270},{"$f":"VLOOKUP(DropDownList!$B$47,CntyQryCensus!$A$156:$FR$198,EP$1)","v":35},{"$f":"VLOOKUP(DropDownList!$B$47,CntyQryCensus!$A$156:$FR$198,EQ$1)","v":156},{"$f":"VLOOKUP(DropDownList!$B$47,CntyQryCensus!$A$156:$FR$198,ER$1)","v":79},{"$f":"VLOOKUP(DropDownList!$B$47,CntyQryCensus!$A$156:$FR$198,ES$1)","v":0},{"$f":"VLOOKUP(DropDownList!$B$47,CntyQryCensus!$A$156:$FR$198,ET$1)","v":488},{"$f":"VLOOKUP(DropDownList!$B$47,CntyQryCensus!$A$156:$FR$198,EU$1)","v":57},{"$f":"VLOOKUP(DropDownList!$B$47,CntyQryCensus!$A$156:$FR$198,EV$1)","v":268},{"$f":"VLOOKUP(DropDownList!$B$47,CntyQryCensus!$A$156:$FR$198,EW$1)","v":134},{"$f":"VLOOKUP(DropDownList!$B$47,CntyQryCensus!$A$156:$FR$198,EX$1)","v":29},{"$f":"VLOOKUP(DropDownList!$B$47,CntyQryCensus!$A$156:$FR$198,EY$1)","v":4492},{"$f":"VLOOKUP(DropDownList!$B$47,CntyQryCensus!$A$156:$FR$198,EZ$1)","v":59},{"$f":"VLOOKUP(DropDownList!$B$47,CntyQryCensus!$A$156:$FR$198,FA$1)","v":243},{"$f":"VLOOKUP(DropDownList!$B$47,CntyQryCensus!$A$156:$FR$198,FB$1)","v":997},{"$f":"VLOOKUP(DropDownList!$B$47,CntyQryCensus!$A$156:$FR$198,FC$1)","v":96},{"$f":"VLOOKUP(DropDownList!$B$47,CntyQryCensus!$A$156:$FR$198,FD$1)","v":651},{"$f":"VLOOKUP(DropDownList!$B$47,CntyQryCensus!$A$156:$FR$198,FE$1)","v":168},{"$f":"VLOOKUP(DropDownList!$B$47,CntyQryCensus!$A$156:$FR$198,FF$1)","v":39},{"$f":"VLOOKUP(DropDownList!$B$47,CntyQryCensus!$A$156:$FR$198,FG$1)","v":212},{"$f":"VLOOKUP(DropDownList!$B$47,CntyQryCensus!$A$156:$FR$198,FH$1)","v":172},{"$f":"VLOOKUP(DropDownList!$B$47,CntyQryCensus!$A$156:$FR$198,FI$1)","v":1018},{"$f":"VLOOKUP(DropDownList!$B$47,CntyQryCensus!$A$156:$FR$198,FJ$1)","v":399},{"$f":"VLOOKUP(DropDownList!$B$47,CntyQryCensus!$A$156:$FR$198,FK$1)","v":243},{"$f":"VLOOKUP(DropDownList!$B$47,CntyQryCensus!$A$156:$FR$198,FL$1)","v":195},{"$f":"VLOOKUP(DropDownList!$B$47,CntyQryCensus!$A$156:$FR$198,FM$1)","v":1036},{"$f":"VLOOKUP(DropDownList!$B$47,CntyQryCensus!$A$156:$FR$198,FN$1)","v":874},{"$f":"VLOOKUP(DropDownList!$B$47,CntyQryCensus!$A$156:$FR$198,FO$1)","v":1055},{"$f":"VLOOKUP(DropDownList!$B$47,CntyQryCensus!$A$156:$FR$198,FP$1)","v":34},{"$f":"VLOOKUP(DropDownList!$B$47,CntyQryCensus!$A$156:$FR$198,FQ$1)","v":515},{"$f":"VLOOKUP(DropDownList!$B$47,CntyQryCensus!$A$156:$FR$198,FR$1)","v":978}]
[]
[]
["Census 2000 SummaryFile3 Sample Data  -  SF3TownQry2aIncomeChar"]
["NAME","LOGRECNO","COUNTY","TotalPop","P52Households1","P52HHInc<10K","P52HHInc10to15K","P52HHInc15to20K","P52HHInc20to25K","P52HHInc25to30K","P52HHInc30to35K","P52HHInc35to40K","P52HHInc40to45K","P52HHInc45to50K","P52HHInc50to60K","P52HHInc60to75K","P52HHInc75to100K","P52HHInc100to125K","P52HHInc125to150K","P52HHInc150to200K","P52HHInc>200K","P53MedianHHInc","P54AggregHHInc","P55Households2","P55HHUnder25yrs","P55HH<25HHInc<10K","P55HH<25HHInc10to15K","P55HH<25HHInc15to20K","P55HH<25HHInc20to25K","P55HH<25HHInc25to30K","P55HH<25HHInc30to35K","P55HH<25HHInc35to40K","P55HH<25HHInc40to45K","P55HH<25HHInc45to50K","P55HH<25HHInc50to60K","P55HH<25HHInc60to75K","P55HH<25HHInc75to100K","P55HH<25HHInc100to125K","P55HH<25HHInc125to150K","P55HH<25HHInc150to200K","P55HH<25HHInc>200K","P55HH25to34yrs","P55HH25to34HHInc<10K","P55HH25to34HHInc10to15K","P55HH25to34HHInc15to20K","P55HH25to34HHInc20to25K","P55HH25to34HHInc25to30K","P55HH25to34HHInc30to35K","P55HH25to34HHInc35to40K","P55HH25to34HHInc40to45K","P55HH25to34HHInc45to50K","P55HH25to34HHInc50to60K","P55HH25to34HHInc60to75K","P55HH25to34HHInc75to100K","P55HH25to34HHInc100to125K","P55HH25to34HHInc125to150K","P55HH25to34HHInc150to200K","P55HH25to34HHInc>200K","P55HH35to44yrs","P55HH35to44HHInc<10K","P55HH35to44HHInc10to15K","P55HH35to44HHInc15to20K","P55HH35to44HHInc20to25K","P55HH35to44HHInc25to30K","P55HH35to44HHInc30to35K","P55HH35to44HHInc35to40K","P55HH35to44HHInc40to45K","P55HH35to44HHInc45to50K","P55HH35to44HHInc50to60K","P55HH35to44HHInc60to75K","P55HH35to44HHInc75to100K","P55HH35to44HHInc100to125K","P55HH35to44HHInc125to150K","P55HH35to44HHInc150to200K","P55HH35to44HHInc>200K","P55HH45to54yrs","P55HH45to55HHInc<10K","P55HH45to55HHInc10to15K","P55HH45to55HHInc15to20K","P55HH45to55HHInc20to25K","P55HH45to55HHInc25to30K","P55HH45to55HHInc30to35K","P55HH45to55HHInc35to40K","P55HH45to55HHInc40to45K","P55HH45to55HHInc45to50K","P55HH45to55HHInc50to60K","P55HH45to55HHInc60to75K","P55HH45to55HHInc75to100K","P55HH45to55HHInc100to125K","P55HH45to55HHInc125to150K","P55HH45to55HHInc150to200K","P55HH45to55HHInc>200K","P55HH55to64yrs","P55HH55to64HHInc<10K","P55HH55to64HHInc10to15K","P55HH55to64HHInc15to20K","P55HH55to64HHInc20to25K","P55HH55to64HHInc25to30K","P55HH55to64HHInc30to35K","P55HH55to64HHInc35to40K","P55HH55to64HHInc40to45K","P55HH55to64HHInc45to50K","P55HH55to64HHInc50to60K","P55HH55to64HHInc60to75K","P55HH55to64HHInc75to100K","P55HH55to64HHInc100to125K","P55HH55to64HHInc125to150K","P55HH55to64HHInc150to200K","P55HH55to64HHInc>200K","P55HH65to74yrs","P55HH65to74HHInc<10K","P55HH65to74HHInc10to15K","P55HH65to74HHInc15to20K","P55HH65to74HHInc20to25K","P55HH65to74HHInc25to30K","P55HH65to74HHInc30to35K","P55HH65to74HHInc35to40K","P55HH65to74HHInc40to45K","P55HH65to74HHInc45to50K","P55HH65to74HHInc50to60K","P55HH65to74HHInc60to75K","P55HH65to74HHInc75to100K","P55HH65to74HHInc100to125K","P55HH65to74HHInc125to150K","P55HH65to74HHInc150to200K","P55HH65to74HHInc>200K","P55HH>75yrs","P55HH>75HHInc<10K","P55HH>75HHInc10to15K","P55HH>75HHInc15to20K","P55HH>75HHInc20to25K","P55HH>75HHInc25to30K","P55HH>75HHInc30to35K","P55HH>75HHInc35to40K","P55HH>75HHInc40to45K","P55HH>75HHInc45to50K","P55HH>75HHInc50to60K","P55HH>75HHInc60to75K","P55HH>75HHInc75to100K","P55HH>75HHInc100to125K","P55HH>75HHInc125to150K","P55HH>75HHInc150to200K","P55HH>75HHInc>200K","P56MedHHInc","P56MedHHIncHH<25y","P56MedHHIncHH25to34y","P56MedHHIncHH35to44y","P56MedHHIncHH45to54y","P56MedHHIncHH55to64y","P56MedHHIncHH65to74y","P56MedHHIncHH>75y","P58Households3","P58HHwithEarnings","P58HHNoEarnings","P59HHwWageSalInc","P59HHNoWageSalInc","P60HHwSelfEmpInc","P60HHNoSelfEmpInc","P61HHwIndDivInc","P61HHNoIndDivInc","P62HHwSocSecInc","P62HHNoSocSecInc","P63HHwSSI","P63HHNoSSI","P64HHwPubAssInc","P64HHNoPubAssInc","P65HHwRetInc","P65HHNoRetInc","P66HHwOtherTypInc","P66HHNoOtherTypInc","P67AggregEarnings","P68AggregWageSalInc","P69AggregSelfEmpInc","P70AggregIntDivInc","P71AggregSocSecInc","P72AggregSSIInc","P73AggregPublicAssInc","P74AggregRetireInc","P76Families1","P76FamInc<10K","P76FamInc10to15K","P76FamInc15to20K","P76FamInc20to25K","P76FamInc25to30K","P76FamInc30to35K","P76FamInc35to40K","P76FamInc40to45K","P76FamInc45to50K","P76FamInc50to60K","P76FamInc60to75K","P76FamInc75to100K","P76FamInc100to125K","P76FamInc125to150K","P76FamInc150to200K","P76FamInc>200K","P77MedFamInc","P78AggregFamInc","P79NonFamHH","P79NonFamHHwInc<10K","P79NonFamHHwInc10to15K","P79NonFamHHwInc15to20K","P79NonFamHHwInc20to25K","P79NonFamHHwInc25to30K","P79NonFamHHwInc30to35K","P79NonFamHHwInc35to40K","P79NonFamHHwInc40to45K","P79NonFamHHwInc45to50K","P79NonFamHHwInc50to60K","P79NonFamHHwInc60to75K","P79NonFamHHwInc75to100K","P79NonFamHHwInc100to125K","P79NonFamHHwInc125to150K","P79NonFamHHwInc150to200K","P79NonFamHHwInc200KorMore","P80MedNonFamInc","P82PerCapitaInc"]
[{"$f":"VLOOKUP(DropDownList!$B$47,CntyQryCensus!$A$206:$HH$248,A$1)","v":"Berlin"},{"$f":"VLOOKUP(DropDownList!$B$47,CntyQryCensus!$A$206:$HH$248,B$1)","v":"0000833"},{"$f":"VLOOKUP(DropDownList!$B$47,CntyQryCensus!$A$206:$HH$248,C$1)","v":"05140"},{"$f":"VLOOKUP(DropDownList!$B$47,CntyQryCensus!$A$206:$HH$248,D$1)","v":10331},{"$f":"VLOOKUP(DropDownList!$B$47,CntyQryCensus!$A$206:$HH$248,E$1)","v":4555},{"$f":"VLOOKUP(DropDownList!$B$47,CntyQryCensus!$A$206:$HH$248,F$1)","v":677},{"$f":"VLOOKUP(DropDownList!$B$47,CntyQryCensus!$A$206:$HH$248,G$1)","v":494},{"$f":"VLOOKUP(DropDownList!$B$47,CntyQryCensus!$A$206:$HH$248,H$1)","v":415},{"$f":"VLOOKUP(DropDownList!$B$47,CntyQryCensus!$A$206:$HH$248,I$1)","v":355},{"$f":"VLOOKUP(DropDownList!$B$47,CntyQryCensus!$A$206:$HH$248,J$1)","v":357},{"$f":"VLOOKUP(DropDownList!$B$47,CntyQryCensus!$A$206:$HH$248,K$1)","v":314},{"$f":"VLOOKUP(DropDownList!$B$47,CntyQryCensus!$A$206:$HH$248,L$1)","v":316},{"$f":"VLOOKUP(DropDownList!$B$47,CntyQryCensus!$A$206:$HH$248,M$1)","v":254},{"$f":"VLOOKUP(DropDownList!$B$47,CntyQryCensus!$A$206:$HH$248,N$1)","v":283},{"$f":"VLOOKUP(DropDownList!$B$47,CntyQryCensus!$A$206:$HH$248,O$1)","v":407},{"$f":"VLOOKUP(DropDownList!$B$47,CntyQryCensus!$A$206:$HH$248,P$1)","v":369},{"$f":"VLOOKUP(DropDownList!$B$47,CntyQryCensus!$A$206:$HH$248,Q$1)","v":185},{"$f":"VLOOKUP(DropDownList!$B$47,CntyQryCensus!$A$206:$HH$248,R$1)","v":87},{"$f":"VLOOKUP(DropDownList!$B$47,CntyQryCensus!$A$206:$HH$248,S$1)","v":20},{"$f":"VLOOKUP(DropDownList!$B$47,CntyQryCensus!$A$206:$HH$248,T$1)","v":14},{"$f":"VLOOKUP(DropDownList!$B$47,CntyQryCensus!$A$206:$HH$248,U$1)","v":8},{"$f":"VLOOKUP(DropDownList!$B$47,CntyQryCensus!$A$206:$HH$248,V$1)","v":29647},{"$f":"VLOOKUP(DropDownList!$B$47,CntyQryCensus!$A$206:$HH$248,W$1)","v":160522700},{"$f":"VLOOKUP(DropDownList!$B$47,CntyQryCensus!$A$206:$HH$248,X$1)","v":4555},{"$f":"VLOOKUP(DropDownList!$B$47,CntyQryCensus!$A$206:$HH$248,Y$1)","v":197},{"$f":"VLOOKUP(DropDownList!$B$47,CntyQryCensus!$A$206:$HH$248,Z$1)","v":42},{"$f":"VLOOKUP(DropDownList!$B$47,CntyQryCensus!$A$206:$HH$248,AA$1)","v":23},{"$f":"VLOOKUP(DropDownList!$B$47,CntyQryCensus!$A$206:$HH$248,AB$1)","v":29},{"$f":"VLOOKUP(DropDownList!$B$47,CntyQryCensus!$A$206:$HH$248,AC$1)","v":5},{"$f":"VLOOKUP(DropDownList!$B$47,CntyQryCensus!$A$206:$HH$248,AD$1)","v":32},{"$f":"VLOOKUP(DropDownList!$B$47,CntyQryCensus!$A$206:$HH$248,AE$1)","v":17},{"$f":"VLOOKUP(DropDownList!$B$47,CntyQryCensus!$A$206:$HH$248,AF$1)","v":16},{"$f":"VLOOKUP(DropDownList!$B$47,CntyQryCensus!$A$206:$HH$248,AG$1)","v":8},{"$f":"VLOOKUP(DropDownList!$B$47,CntyQryCensus!$A$206:$HH$248,AH$1)","v":14},{"$f":"VLOOKUP(DropDownList!$B$47,CntyQryCensus!$A$206:$HH$248,AI$1)","v":11},{"$f":"VLOOKUP(DropDownList!$B$47,CntyQryCensus!$A$206:$HH$248,AJ$1)","v":0},{"$f":"VLOOKUP(DropDownList!$B$47,CntyQryCensus!$A$206:$HH$248,AK$1)","v":0},{"$f":"VLOOKUP(DropDownList!$B$47,CntyQryCensus!$A$206:$HH$248,AL$1)","v":0},{"$f":"VLOOKUP(DropDownList!$B$47,CntyQryCensus!$A$206:$HH$248,AM$1)","v":0},{"$f":"VLOOKUP(DropDownList!$B$47,CntyQryCensus!$A$206:$HH$248,AN$1)","v":0},{"$f":"VLOOKUP(DropDownList!$B$47,CntyQryCensus!$A$206:$HH$248,AO$1)","v":0},{"$f":"VLOOKUP(DropDownList!$B$47,CntyQryCensus!$A$206:$HH$248,AP$1)","v":571},{"$f":"VLOOKUP(DropDownList!$B$47,CntyQryCensus!$A$206:$HH$248,AQ$1)","v":25},{"$f":"VLOOKUP(DropDownList!$B$47,CntyQryCensus!$A$206:$HH$248,AR$1)","v":24},{"$f":"VLOOKUP(DropDownList!$B$47,CntyQryCensus!$A$206:$HH$248,AS$1)","v":41},{"$f":"VLOOKUP(DropDownList!$B$47,CntyQryCensus!$A$206:$HH$248,AT$1)","v":50},{"$f":"VLOOKUP(DropDownList!$B$47,CntyQryCensus!$A$206:$HH$248,AU$1)","v":63},{"$f":"VLOOKUP(DropDownList!$B$47,CntyQryCensus!$A$206:$HH$248,AV$1)","v":80},{"$f":"VLOOKUP(DropDownList!$B$47,CntyQryCensus!$A$206:$HH$248,AW$1)","v":89},{"$f":"VLOOKUP(DropDownList!$B$47,CntyQryCensus!$A$206:$HH$248,AX$1)","v":34},{"$f":"VLOOKUP(DropDownList!$B$47,CntyQryCensus!$A$206:$HH$248,AY$1)","v":43},{"$f":"VLOOKUP(DropDownList!$B$47,CntyQryCensus!$A$206:$HH$248,AZ$1)","v":70},{"$f":"VLOOKUP(DropDownList!$B$47,CntyQryCensus!$A$206:$HH$248,BA$1)","v":28},{"$f":"VLOOKUP(DropDownList!$B$47,CntyQryCensus!$A$206:$HH$248,BB$1)","v":5},{"$f":"VLOOKUP(DropDownList!$B$47,CntyQryCensus!$A$206:$HH$248,BC$1)","v":15},{"$f":"VLOOKUP(DropDownList!$B$47,CntyQryCensus!$A$206:$HH$248,BD$1)","v":4},{"$f":"VLOOKUP(DropDownList!$B$47,CntyQryCensus!$A$206:$HH$248,BE$1)","v":0},{"$f":"VLOOKUP(DropDownList!$B$47,CntyQryCensus!$A$206:$HH$248,BF$1)","v":0},{"$f":"VLOOKUP(DropDownList!$B$47,CntyQryCensus!$A$206:$HH$248,BG$1)","v":813},{"$f":"VLOOKUP(DropDownList!$B$47,CntyQryCensus!$A$206:$HH$248,BH$1)","v":82},{"$f":"VLOOKUP(DropDownList!$B$47,CntyQryCensus!$A$206:$HH$248,BI$1)","v":42},{"$f":"VLOOKUP(DropDownList!$B$47,CntyQryCensus!$A$206:$HH$248,BJ$1)","v":24},{"$f":"VLOOKUP(DropDownList!$B$47,CntyQryCensus!$A$206:$HH$248,BK$1)","v":38},{"$f":"VLOOKUP(DropDownList!$B$47,CntyQryCensus!$A$206:$HH$248,BL$1)","v":53},{"$f":"VLOOKUP(DropDownList!$B$47,CntyQryCensus!$A$206:$HH$248,BM$1)","v":65},{"$f":"VLOOKUP(DropDownList!$B$47,CntyQryCensus!$A$206:$HH$248,BN$1)","v":34},{"$f":"VLOOKUP(DropDownList!$B$47,CntyQryCensus!$A$206:$HH$248,BO$1)","v":80},{"$f":"VLOOKUP(DropDownList!$B$47,CntyQryCensus!$A$206:$HH$248,BP$1)","v":63},{"$f":"VLOOKUP(DropDownList!$B$47,CntyQryCensus!$A$206:$HH$248,BQ$1)","v":126},{"$f":"VLOOKUP(DropDownList!$B$47,CntyQryCensus!$A$206:$HH$248,BR$1)","v":119},{"$f":"VLOOKUP(DropDownList!$B$47,CntyQryCensus!$A$206:$HH$248,BS$1)","v":53},{"$f":"VLOOKUP(DropDownList!$B$47,CntyQryCensus!$A$206:$HH$248,BT$1)","v":12},{"$f":"VLOOKUP(DropDownList!$B$47,CntyQryCensus!$A$206:$HH$248,BU$1)","v":16},{"$f":"VLOOKUP(DropDownList!$B$47,CntyQryCensus!$A$206:$HH$248,BV$1)","v":6},{"$f":"VLOOKUP(DropDownList!$B$47,CntyQryCensus!$A$206:$HH$248,BW$1)","v":0},{"$f":"VLOOKUP(DropDownList!$B$47,CntyQryCensus!$A$206:$HH$248,BX$1)","v":830},{"$f":"VLOOKUP(DropDownList!$B$47,CntyQryCensus!$A$206:$HH$248,BY$1)","v":77},{"$f":"VLOOKUP(DropDownList!$B$47,CntyQryCensus!$A$206:$HH$248,BZ$1)","v":38},{"$f":"VLOOKUP(DropDownList!$B$47,CntyQryCensus!$A$206:$HH$248,CA$1)","v":39},{"$f":"VLOOKUP(DropDownList!$B$47,CntyQryCensus!$A$206:$HH$248,CB$1)","v":56},{"$f":"VLOOKUP(DropDownList!$B$47,CntyQryCensus!$A$206:$HH$248,CC$1)","v":32},{"$f":"VLOOKUP(DropDownList!$B$47,CntyQryCensus!$A$206:$HH$248,CD$1)","v":29},{"$f":"VLOOKUP(DropDownList!$B$47,CntyQryCensus!$A$206:$HH$248,CE$1)","v":51},{"$f":"VLOOKUP(DropDownList!$B$47,CntyQryCensus!$A$206:$HH$248,CF$1)","v":62},{"$f":"VLOOKUP(DropDownList!$B$47,CntyQryCensus!$A$206:$HH$248,CG$1)","v":70},{"$f":"VLOOKUP(DropDownList!$B$47,CntyQryCensus!$A$206:$HH$248,CH$1)","v":123},{"$f":"VLOOKUP(DropDownList!$B$47,CntyQryCensus!$A$206:$HH$248,CI$1)","v":135},{"$f":"VLOOKUP(DropDownList!$B$47,CntyQryCensus!$A$206:$HH$248,CJ$1)","v":91},{"$f":"VLOOKUP(DropDownList!$B$47,CntyQryCensus!$A$206:$HH$248,CK$1)","v":25},{"$f":"VLOOKUP(DropDownList!$B$47,CntyQryCensus!$A$206:$HH$248,CL$1)","v":0},{"$f":"VLOOKUP(DropDownList!$B$47,CntyQryCensus!$A$206:$HH$248,CM$1)","v":2},{"$f":"VLOOKUP(DropDownList!$B$47,CntyQryCensus!$A$206:$HH$248,CN$1)","v":0},{"$f":"VLOOKUP(DropDownList!$B$47,CntyQryCensus!$A$206:$HH$248,CO$1)","v":553},{"$f":"VLOOKUP(DropDownList!$B$47,CntyQryCensus!$A$206:$HH$248,CP$1)","v":85},{"$f":"VLOOKUP(DropDownList!$B$47,CntyQryCensus!$A$206:$HH$248,CQ$1)","v":32},{"$f":"VLOOKUP(DropDownList!$B$47,CntyQryCensus!$A$206:$HH$248,CR$1)","v":47},{"$f":"VLOOKUP(DropDownList!$B$47,CntyQryCensus!$A$206:$HH$248,CS$1)","v":37},{"$f":"VLOOKUP(DropDownList!$B$47,CntyQryCensus!$A$206:$HH$248,CT$1)","v":54},{"$f":"VLOOKUP(DropDownList!$B$47,CntyQryCensus!$A$206:$HH$248,CU$1)","v":34},{"$f":"VLOOKUP(DropDownList!$B$47,CntyQryCensus!$A$206:$HH$248,CV$1)","v":44},{"$f":"VLOOKUP(DropDownList!$B$47,CntyQryCensus!$A$206:$HH$248,CW$1)","v":31},{"$f":"VLOOKUP(DropDownList!$B$47,CntyQryCensus!$A$206:$HH$248,CX$1)","v":59},{"$f":"VLOOKUP(DropDownList!$B$47,CntyQryCensus!$A$206:$HH$248,CY$1)","v":37},{"$f":"VLOOKUP(DropDownList!$B$47,CntyQryCensus!$A$206:$HH$248,CZ$1)","v":43},{"$f":"VLOOKUP(DropDownList!$B$47,CntyQryCensus!$A$206:$HH$248,DA$1)","v":31},{"$f":"VLOOKUP(DropDownList!$B$47,CntyQryCensus!$A$206:$HH$248,DB$1)","v":11},{"$f":"VLOOKUP(DropDownList!$B$47,CntyQryCensus!$A$206:$HH$248,DC$1)","v":0},{"$f":"VLOOKUP(DropDownList!$B$47,CntyQryCensus!$A$206:$HH$248,DD$1)","v":0},{"$f":"VLOOKUP(DropDownList!$B$47,CntyQryCensus!$A$206:$HH$248,DE$1)","v":8},{"$f":"VLOOKUP(DropDownList!$B$47,CntyQryCensus!$A$206:$HH$248,DF$1)","v":791},{"$f":"VLOOKUP(DropDownList!$B$47,CntyQryCensus!$A$206:$HH$248,DG$1)","v":155},{"$f":"VLOOKUP(DropDownList!$B$47,CntyQryCensus!$A$206:$HH$248,DH$1)","v":169},{"$f":"VLOOKUP(DropDownList!$B$47,CntyQryCensus!$A$206:$HH$248,DI$1)","v":77},{"$f":"VLOOKUP(DropDownList!$B$47,CntyQryCensus!$A$206:$HH$248,DJ$1)","v":95},{"$f":"VLOOKUP(DropDownList!$B$47,CntyQryCensus!$A$206:$HH$248,DK$1)","v":70},{"$f":"VLOOKUP(DropDownList!$B$47,CntyQryCensus!$A$206:$HH$248,DL$1)","v":64},{"$f":"VLOOKUP(DropDownList!$B$47,CntyQryCensus!$A$206:$HH$248,DM$1)","v":55},{"$f":"VLOOKUP(DropDownList!$B$47,CntyQryCensus!$A$206:$HH$248,DN$1)","v":17},{"$f":"VLOOKUP(DropDownList!$B$47,CntyQryCensus!$A$206:$HH$248,DO$1)","v":23},{"$f":"VLOOKUP(DropDownList!$B$47,CntyQryCensus!$A$206:$HH$248,DP$1)","v":32},{"$f":"VLOOKUP(DropDownList!$B$47,CntyQryCensus!$A$206:$HH$248,DQ$1)","v":24},{"$f":"VLOOKUP(DropDownList!$B$47,CntyQryCensus!$A$206:$HH$248,DR$1)","v":0},{"$f":"VLOOKUP(DropDownList!$B$47,CntyQryCensus!$A$206:$HH$248,DS$1)","v":10},{"$f":"VLOOKUP(DropDownList!$B$47,CntyQryCensus!$A$206:$HH$248,DT$1)","v":0},{"$f":"VLOOKUP(DropDownList!$B$47,CntyQryCensus!$A$206:$HH$248,DU$1)","v":0},{"$f":"VLOOKUP(DropDownList!$B$47,CntyQryCensus!$A$206:$HH$248,DV$1)","v":0},{"$f":"VLOOKUP(DropDownList!$B$47,CntyQryCensus!$A$206:$HH$248,DW$1)","v":800},{"$f":"VLOOKUP(DropDownList!$B$47,CntyQryCensus!$A$206:$HH$248,DX$1)","v":211},{"$f":"VLOOKUP(DropDownList!$B$47,CntyQryCensus!$A$206:$HH$248,DY$1)","v":166},{"$f":"VLOOKUP(DropDownList!$B$47,CntyQryCensus!$A$206:$HH$248,DZ$1)","v":158},{"$f":"VLOOKUP(DropDownList!$B$47,CntyQryCensus!$A$206:$HH$248,EA$1)","v":74},{"$f":"VLOOKUP(DropDownList!$B$47,CntyQryCensus!$A$206:$HH$248,EB$1)","v":53},{"$f":"VLOOKUP(DropDownList!$B$47,CntyQryCensus!$A$206:$HH$248,EC$1)","v":25},{"$f":"VLOOKUP(DropDownList!$B$47,CntyQryCensus!$A$206:$HH$248,ED$1)","v":27},{"$f":"VLOOKUP(DropDownList!$B$47,CntyQryCensus!$A$206:$HH$248,EE$1)","v":22},{"$f":"VLOOKUP(DropDownList!$B$47,CntyQryCensus!$A$206:$HH$248,EF$1)","v":11},{"$f":"VLOOKUP(DropDownList!$B$47,CntyQryCensus!$A$206:$HH$248,EG$1)","v":8},{"$f":"VLOOKUP(DropDownList!$B$47,CntyQryCensus!$A$206:$HH$248,EH$1)","v":20},{"$f":"VLOOKUP(DropDownList!$B$47,CntyQryCensus!$A$206:$HH$248,EI$1)","v":5},{"$f":"VLOOKUP(DropDownList!$B$47,CntyQryCensus!$A$206:$HH$248,EJ$1)","v":14},{"$f":"VLOOKUP(DropDownList!$B$47,CntyQryCensus!$A$206:$HH$248,EK$1)","v":0},{"$f":"VLOOKUP(DropDownList!$B$47,CntyQryCensus!$A$206:$HH$248,EL$1)","v":6},{"$f":"VLOOKUP(DropDownList!$B$47,CntyQryCensus!$A$206:$HH$248,EM$1)","v":0},{"$f":"VLOOKUP(DropDownList!$B$47,CntyQryCensus!$A$206:$HH$248,EN$1)","v":29647},{"$f":"VLOOKUP(DropDownList!$B$47,CntyQryCensus!$A$206:$HH$248,EO$1)","v":24750},{"$f":"VLOOKUP(DropDownList!$B$47,CntyQryCensus!$A$206:$HH$248,EP$1)","v":35174},{"$f":"VLOOKUP(DropDownList!$B$47,CntyQryCensus!$A$206:$HH$248,EQ$1)","v":44154},{"$f":"VLOOKUP(DropDownList!$B$47,CntyQryCensus!$A$206:$HH$248,ER$1)","v":47926},{"$f":"VLOOKUP(DropDownList!$B$47,CntyQryCensus!$A$206:$HH$248,ES$1)","v":33512},{"$f":"VLOOKUP(DropDownList!$B$47,CntyQryCensus!$A$206:$HH$248,ET$1)","v":19596},{"$f":"VLOOKUP(DropDownList!$B$47,CntyQryCensus!$A$206:$HH$248,EU$1)","v":15575},{"$f":"VLOOKUP(DropDownList!$B$47,CntyQryCensus!$A$206:$HH$248,EV$1)","v":4555},{"$f":"VLOOKUP(DropDownList!$B$47,CntyQryCensus!$A$206:$HH$248,EW$1)","v":2988},{"$f":"VLOOKUP(DropDownList!$B$47,CntyQryCensus!$A$206:$HH$248,EX$1)","v":1567},{"$f":"VLOOKUP(DropDownList!$B$47,CntyQryCensus!$A$206:$HH$248,EY$1)","v":2921},{"$f":"VLOOKUP(DropDownList!$B$47,CntyQryCensus!$A$206:$HH$248,EZ$1)","v":1634},{"$f":"VLOOKUP(DropDownList!$B$47,CntyQryCensus!$A$206:$HH$248,FA$1)","v":309},{"$f":"VLOOKUP(DropDownList!$B$47,CntyQryCensus!$A$206:$HH$248,FB$1)","v":4246},{"$f":"VLOOKUP(DropDownList!$B$47,CntyQryCensus!$A$206:$HH$248,FC$1)","v":1763},{"$f":"VLOOKUP(DropDownList!$B$47,CntyQryCensus!$A$206:$HH$248,FD$1)","v":2792},{"$f":"VLOOKUP(DropDownList!$B$47,CntyQryCensus!$A$206:$HH$248,FE$1)","v":1936},{"$f":"VLOOKUP(DropDownList!$B$47,CntyQryCensus!$A$206:$HH$248,FF$1)","v":2619},{"$f":"VLOOKUP(DropDownList!$B$47,CntyQryCensus!$A$206:$HH$248,FG$1)","v":264},{"$f":"VLOOKUP(DropDownList!$B$47,CntyQryCensus!$A$206:$HH$248,FH$1)","v":4291},{"$f":"VLOOKUP(DropDownList!$B$47,CntyQryCensus!$A$206:$HH$248,FI$1)","v":361},{"$f":"VLOOKUP(DropDownList!$B$47,CntyQryCensus!$A$206:$HH$248,FJ$1)","v":4194},{"$f":"VLOOKUP(DropDownList!$B$47,CntyQryCensus!$A$206:$HH$248,FK$1)","v":978},{"$f":"VLOOKUP(DropDownList!$B$47,CntyQryCensus!$A$206:$HH$248,FL$1)","v":3577},{"$f":"VLOOKUP(DropDownList!$B$47,CntyQryCensus!$A$206:$HH$248,FM$1)","v":586},{"$f":"VLOOKUP(DropDownList!$B$47,CntyQryCensus!$A$206:$HH$248,FN$1)","v":3969},{"$f":"VLOOKUP(DropDownList!$B$47,CntyQryCensus!$A$206:$HH$248,FO$1)","v":117467500},{"$f":"VLOOKUP(DropDownList!$B$47,CntyQryCensus!$A$206:$HH$248,FP$1)","v":112269600},{"$f":"VLOOKUP(DropDownList!$B$47,CntyQryCensus!$A$206:$HH$248,FQ$1)","v":5197800},{"$f":"VLOOKUP(DropDownList!$B$47,CntyQryCensus!$A$206:$HH$248,FR$1)","v":8308100},{"$f":"VLOOKUP(DropDownList!$B$47,CntyQryCensus!$A$206:$HH$248,FS$1)","v":20131700},{"$f":"VLOOKUP(DropDownList!$B$47,CntyQryCensus!$A$206:$HH$248,FT$1)","v":1615400},{"$f":"VLOOKUP(DropDownList!$B$47,CntyQryCensus!$A$206:$HH$248,FU$1)","v":623300},{"$f":"VLOOKUP(DropDownList!$B$47,CntyQryCensus!$A$206:$HH$248,FV$1)","v":8677100},{"$f":"VLOOKUP(DropDownList!$B$47,CntyQryCensus!$A$206:$HH$248,FW$1)","v":2919},{"$f":"VLOOKUP(DropDownList!$B$47,CntyQryCensus!$A$206:$HH$248,FX$1)","v":182},{"$f":"VLOOKUP(DropDownList!$B$47,CntyQryCensus!$A$206:$HH$248,FY$1)","v":190},{"$f":"VLOOKUP(DropDownList!$B$47,CntyQryCensus!$A$206:$HH$248,FZ$1)","v":212},{"$f":"VLOOKUP(DropDownList!$B$47,CntyQryCensus!$A$206:$HH$248,GA$1)","v":195},{"$f":"VLOOKUP(DropDownList!$B$47,CntyQryCensus!$A$206:$HH$248,GB$1)","v":206},{"$f":"VLOOKUP(DropDownList!$B$47,CntyQryCensus!$A$206:$HH$248,GC$1)","v":262},{"$f":"VLOOKUP(DropDownList!$B$47,CntyQryCensus!$A$206:$HH$248,GD$1)","v":276},{"$f":"VLOOKUP(DropDownList!$B$47,CntyQryCensus!$A$206:$HH$248,GE$1)","v":217},{"$f":"VLOOKUP(DropDownList!$B$47,CntyQryCensus!$A$206:$HH$248,GF$1)","v":233},{"$f":"VLOOKUP(DropDownList!$B$47,CntyQryCensus!$A$206:$HH$248,GG$1)","v":358},{"$f":"VLOOKUP(DropDownList!$B$47,CntyQryCensus!$A$206:$HH$248,GH$1)","v":338},{"$f":"VLOOKUP(DropDownList!$B$47,CntyQryCensus!$A$206:$HH$248,GI$1)","v":154},{"$f":"VLOOKUP(DropDownList!$B$47,CntyQryCensus!$A$206:$HH$248,GJ$1)","v":72},{"$f":"VLOOKUP(DropDownList!$B$47,CntyQryCensus!$A$206:$HH$248,GK$1)","v":16},{"$f":"VLOOKUP(DropDownList!$B$47,CntyQryCensus!$A$206:$HH$248,GL$1)","v":8},{"$f":"VLOOKUP(DropDownList!$B$47,CntyQryCensus!$A$206:$HH$248,GM$1)","v":0},{"$f":"VLOOKUP(DropDownList!$B$47,CntyQryCensus!$A$206:$HH$248,GN$1)","v":38750},{"$f":"VLOOKUP(DropDownList!$B$47,CntyQryCensus!$A$206:$HH$248,GO$1)","v":122418600},{"$f":"VLOOKUP(DropDownList!$B$47,CntyQryCensus!$A$206:$HH$248,GP$1)","v":1636},{"$f":"VLOOKUP(DropDownList!$B$47,CntyQryCensus!$A$206:$HH$248,GQ$1)","v":532},{"$f":"VLOOKUP(DropDownList!$B$47,CntyQryCensus!$A$206:$HH$248,GR$1)","v":315},{"$f":"VLOOKUP(DropDownList!$B$47,CntyQryCensus!$A$206:$HH$248,GS$1)","v":197},{"$f":"VLOOKUP(DropDownList!$B$47,CntyQryCensus!$A$206:$HH$248,GT$1)","v":157},{"$f":"VLOOKUP(DropDownList!$B$47,CntyQryCensus!$A$206:$HH$248,GU$1)","v":140},{"$f":"VLOOKUP(DropDownList!$B$47,CntyQryCensus!$A$206:$HH$248,GV$1)","v":67},{"$f":"VLOOKUP(DropDownList!$B$47,CntyQryCensus!$A$206:$HH$248,GW$1)","v":66},{"$f":"VLOOKUP(DropDownList!$B$47,CntyQryCensus!$A$206:$HH$248,GX$1)","v":34},{"$f":"VLOOKUP(DropDownList!$B$47,CntyQryCensus!$A$206:$HH$248,GY$1)","v":46},{"$f":"VLOOKUP(DropDownList!$B$47,CntyQryCensus!$A$206:$HH$248,GZ$1)","v":20},{"$f":"VLOOKUP(DropDownList!$B$47,CntyQryCensus!$A$206:$HH$248,HA$1)","v":29},{"$f":"VLOOKUP(DropDownList!$B$47,CntyQryCensus!$A$206:$HH$248,HB$1)","v":9},{"$f":"VLOOKUP(DropDownList!$B$47,CntyQryCensus!$A$206:$HH$248,HC$1)","v":10},{"$f":"VLOOKUP(DropDownList!$B$47,CntyQryCensus!$A$206:$HH$248,HD$1)","v":0},{"$f":"VLOOKUP(DropDownList!$B$47,CntyQryCensus!$A$206:$HH$248,HE$1)","v":6},{"$f":"VLOOKUP(DropDownList!$B$47,CntyQryCensus!$A$206:$HH$248,HF$1)","v":8},{"$f":"VLOOKUP(DropDownList!$B$47,CntyQryCensus!$A$206:$HH$248,HG$1)","v":14520},{"$f":"VLOOKUP(DropDownList!$B$47,CntyQryCensus!$A$206:$HH$248,HH$1)","v":15780}]
[]
[]
["Census 2000 SummaryFile3 Sample Data  -  SF3TownQry2bPovertyChar"]
["NAME","LOGRECNO","COUNTY","TotalPop","P52Households1","P82PerCapitaInc","P87PopForPovStatus","P87PopWIncBelowPovStatus","P87PopUnder5yrBelowPoverty","P87Pop5yrBelowPoverty","P87Pop5to11yrBelowPoverty","P87Pop12to17yrBelowPoverty","P87Pop18to64yrBelowPoverty","P87Pop65to74yrBelowPoverty","P87PopOver75yrBelowPoverty","P87PopWIncAbovePovStatus","P87PopUnder5yrAbovePoverty","P87Pop5yrAbovePoverty","P87Pop5to11yrAbovePoverty","P87Pop12to17yrAbovePoverty","P87Pop18to64yrAbovePoverty","P87Pop65to74yrAbovePoverty","P87PopOver75yrAbovePoverty","P90Families","P90FamWIncBelowPov","P90MarCupFamWIncBelowPov","P90MCFamWRltdChld<18WIncBelowPov","P90MCFamWRltdChld<5WIncBelowPov","P90MaleHhlrWIncBelowPov","P90MaleHhlrWRltdChld<18yrWIncBelowPov","P90MaleHhlrWRltdChld<5yrWIncBelowPov","P90FemaleHhlrWIncBelowPov","P90FemaleHhlrWRltdChld<18yWIncBelowPov","P90FemaleHhlrWRltdChld<5yWIncBelowPov","P90FamWIncAbovePov","P90MarCupFamWIncAbovePov","P90MCFamWRltdChld<18WIncAbovePov","P90MCFamWRltdChld<5WIncAbovePov","P90MaleHhlrWIncAbovePov","P90MaleHhlrWRltdChld<18yrWIncAbovePov","P90MaleHhlrWRltdChld<5yrWIncAbovePov","P90FemaleHhlrWIncAbovePov","P90FemaleHhlrWRltdChld<18yWIncAbovePov","P90FemaleHhlrWRltdChld<5yWIncAbovePov","P92Households","P92HHwIncBelowPov","P92FamHHwIncBelowPov","P92MCFamHHwIncBelowPov","P92MaleFamHHwIncBelowPov","P92FemaleFamHHwIncBelowPov","P92NonFamHHwIncBelowPov","P92NonFamMaleHHwIncBelowPov","P92NonFamFemaleHHwIncBelowPov","P92HHwIncAbovePov","P92FamHHwIncAbovePov","P92MCFamHHwIncAbovePov","P92MaleFamHHwIncAbovePov","P92FemaleFamHHwIncAbovePov","P92NonFamHHwIncAbovePov","P92NonFamMaleHHwIncAbovePov","P92NonFamFemaleHHwIncAbovePov"]
[{"$f":"VLOOKUP(DropDownList!$B$47,CntyQryCensus!$A$256:$BI$298,A$1)","v":"Berlin"},{"$f":"VLOOKUP(DropDownList!$B$47,CntyQryCensus!$A$256:$BI$298,B$1)","v":"0000833"},{"$f":"VLOOKUP(DropDownList!$B$47,CntyQryCensus!$A$256:$BI$298,C$1)","v":"05140"},{"$f":"VLOOKUP(DropDownList!$B$47,CntyQryCensus!$A$256:$BI$298,D$1)","v":10331},{"$f":"VLOOKUP(DropDownList!$B$47,CntyQryCensus!$A$256:$BI$298,E$1)","v":4555},{"$f":"VLOOKUP(DropDownList!$B$47,CntyQryCensus!$A$256:$BI$298,F$1)","v":15780},{"$f":"VLOOKUP(DropDownList!$B$47,CntyQryCensus!$A$256:$BI$298,G$1)","v":10093},{"$f":"VLOOKUP(DropDownList!$B$47,CntyQryCensus!$A$256:$BI$298,H$1)","v":1249},{"$f":"VLOOKUP(DropDownList!$B$47,CntyQryCensus!$A$256:$BI$298,I$1)","v":116},{"$f":"VLOOKUP(DropDownList!$B$47,CntyQryCensus!$A$256:$BI$298,J$1)","v":19},{"$f":"VLOOKUP(DropDownList!$B$47,CntyQryCensus!$A$256:$BI$298,K$1)","v":84},{"$f":"VLOOKUP(DropDownList!$B$47,CntyQryCensus!$A$256:$BI$298,L$1)","v":93},{"$f":"VLOOKUP(DropDownList!$B$47,CntyQryCensus!$A$256:$BI$298,M$1)","v":668},{"$f":"VLOOKUP(DropDownList!$B$47,CntyQryCensus!$A$256:$BI$298,N$1)","v":119},{"$f":"VLOOKUP(DropDownList!$B$47,CntyQryCensus!$A$256:$BI$298,O$1)","v":150},{"$f":"VLOOKUP(DropDownList!$B$47,CntyQryCensus!$A$256:$BI$298,P$1)","v":8844},{"$f":"VLOOKUP(DropDownList!$B$47,CntyQryCensus!$A$256:$BI$298,Q$1)","v":402},{"$f":"VLOOKUP(DropDownList!$B$47,CntyQryCensus!$A$256:$BI$298,R$1)","v":117},{"$f":"VLOOKUP(DropDownList!$B$47,CntyQryCensus!$A$256:$BI$298,S$1)","v":621},{"$f":"VLOOKUP(DropDownList!$B$47,CntyQryCensus!$A$256:$BI$298,T$1)","v":692},{"$f":"VLOOKUP(DropDownList!$B$47,CntyQryCensus!$A$256:$BI$298,U$1)","v":5112},{"$f":"VLOOKUP(DropDownList!$B$47,CntyQryCensus!$A$256:$BI$298,V$1)","v":1025},{"$f":"VLOOKUP(DropDownList!$B$47,CntyQryCensus!$A$256:$BI$298,W$1)","v":875},{"$f":"VLOOKUP(DropDownList!$B$47,CntyQryCensus!$A$256:$BI$298,X$1)","v":2919},{"$f":"VLOOKUP(DropDownList!$B$47,CntyQryCensus!$A$256:$BI$298,Y$1)","v":265},{"$f":"VLOOKUP(DropDownList!$B$47,CntyQryCensus!$A$256:$BI$298,Z$1)","v":88},{"$f":"VLOOKUP(DropDownList!$B$47,CntyQryCensus!$A$256:$BI$298,AA$1)","v":35},{"$f":"VLOOKUP(DropDownList!$B$47,CntyQryCensus!$A$256:$BI$298,AB$1)","v":10},{"$f":"VLOOKUP(DropDownList!$B$47,CntyQryCensus!$A$256:$BI$298,AC$1)","v":54},{"$f":"VLOOKUP(DropDownList!$B$47,CntyQryCensus!$A$256:$BI$298,AD$1)","v":41},{"$f":"VLOOKUP(DropDownList!$B$47,CntyQryCensus!$A$256:$BI$298,AE$1)","v":4},{"$f":"VLOOKUP(DropDownList!$B$47,CntyQryCensus!$A$256:$BI$298,AF$1)","v":123},{"$f":"VLOOKUP(DropDownList!$B$47,CntyQryCensus!$A$256:$BI$298,AG$1)","v":108},{"$f":"VLOOKUP(DropDownList!$B$47,CntyQryCensus!$A$256:$BI$298,AH$1)","v":48},{"$f":"VLOOKUP(DropDownList!$B$47,CntyQryCensus!$A$256:$BI$298,AI$1)","v":2654},{"$f":"VLOOKUP(DropDownList!$B$47,CntyQryCensus!$A$256:$BI$298,AJ$1)","v":2073},{"$f":"VLOOKUP(DropDownList!$B$47,CntyQryCensus!$A$256:$BI$298,AK$1)","v":748},{"$f":"VLOOKUP(DropDownList!$B$47,CntyQryCensus!$A$256:$BI$298,AL$1)","v":133},{"$f":"VLOOKUP(DropDownList!$B$47,CntyQryCensus!$A$256:$BI$298,AM$1)","v":216},{"$f":"VLOOKUP(DropDownList!$B$47,CntyQryCensus!$A$256:$BI$298,AN$1)","v":138},{"$f":"VLOOKUP(DropDownList!$B$47,CntyQryCensus!$A$256:$BI$298,AO$1)","v":31},{"$f":"VLOOKUP(DropDownList!$B$47,CntyQryCensus!$A$256:$BI$298,AP$1)","v":365},{"$f":"VLOOKUP(DropDownList!$B$47,CntyQryCensus!$A$256:$BI$298,AQ$1)","v":165},{"$f":"VLOOKUP(DropDownList!$B$47,CntyQryCensus!$A$256:$BI$298,AR$1)","v":31},{"$f":"VLOOKUP(DropDownList!$B$47,CntyQryCensus!$A$256:$BI$298,AS$1)","v":4555},{"$f":"VLOOKUP(DropDownList!$B$47,CntyQryCensus!$A$256:$BI$298,AT$1)","v":673},{"$f":"VLOOKUP(DropDownList!$B$47,CntyQryCensus!$A$256:$BI$298,AU$1)","v":265},{"$f":"VLOOKUP(DropDownList!$B$47,CntyQryCensus!$A$256:$BI$298,AV$1)","v":88},{"$f":"VLOOKUP(DropDownList!$B$47,CntyQryCensus!$A$256:$BI$298,AW$1)","v":54},{"$f":"VLOOKUP(DropDownList!$B$47,CntyQryCensus!$A$256:$BI$298,AX$1)","v":123},{"$f":"VLOOKUP(DropDownList!$B$47,CntyQryCensus!$A$256:$BI$298,AY$1)","v":408},{"$f":"VLOOKUP(DropDownList!$B$47,CntyQryCensus!$A$256:$BI$298,AZ$1)","v":123},{"$f":"VLOOKUP(DropDownList!$B$47,CntyQryCensus!$A$256:$BI$298,BA$1)","v":285},{"$f":"VLOOKUP(DropDownList!$B$47,CntyQryCensus!$A$256:$BI$298,BB$1)","v":3882},{"$f":"VLOOKUP(DropDownList!$B$47,CntyQryCensus!$A$256:$BI$298,BC$1)","v":2654},{"$f":"VLOOKUP(DropDownList!$B$47,CntyQryCensus!$A$256:$BI$298,BD$1)","v":2073},{"$f":"VLOOKUP(DropDownList!$B$47,CntyQryCensus!$A$256:$BI$298,BE$1)","v":216},{"$f":"VLOOKUP(DropDownList!$B$47,CntyQryCensus!$A$256:$BI$298,BF$1)","v":365},{"$f":"VLOOKUP(DropDownList!$B$47,CntyQryCensus!$A$256:$BI$298,BG$1)","v":1228},{"$f":"VLOOKUP(DropDownList!$B$47,CntyQryCensus!$A$256:$BI$298,BH$1)","v":527},{"$f":"VLOOKUP(DropDownList!$B$47,CntyQryCensus!$A$256:$BI$298,BI$1)","v":701}]
[null,null,null,null,null,null,null,null,null,null,null,null,null,null,null,null,null,null,{"$f":"SUM(R60:T60)","v":1430}]
[]
["Census 2000 SummaryFile3 Sample Data  -  SF3TownQry7HousingA"]
["NAME","LOGRECNO","COUNTY","TotalPop","H1HousingUnitsTotal","H2SampleHU","H2SampleOccHU","H2SampleVacHU","H3HU100pctCount","H5HUTotal","H5HUUrban","H5HUUrbanInUrbanAreas","H5HUUrbanInUrbanClusters","H5HURural","H5HURuralFarm","H5HURuralNonFarm","H7HUOcc","H7HUOwnrOcc","H7HURentrOcc","H8HUVacant","H8HUVacantForRent","H8HUVacantForSale","H8HUVacRentedorSold","H8HUVacSeasonal","H8HUVacForMigrantWrkrs","H8HUOtherVacant","H14OccHUa","H14OwnerOccHU","H14OwnOccHuHh15to24","H14OwnOccHuHh25to34","H14OwnOccHuHh35to44","H14OwnOccHuHh45to54","H14OwnOccHuHh55to59","H14OwnOccHuHh60to64","H14OwnOccHuHh65to74","H14OwnOccHuHh75to84","H14OwnOccHuHh85Over","H14RenterOccHU1","H14RntrOccHuHh15to24","H14RntrOccHuHh25to34","H14RntrOccHuHh35to44","H14RntrOccHuHh45to54","H14RntrOccHuHh55to59","H14RntrOccHuHh60to64","H14RntrOccHuHh65to74","H14RntrOccHuHh75to84","H14RntrOccHuHh85Over","H15PopInOccHU","H15PopInOwnOccHU1","H15PopInRentOccHU1","H17OccupHUb","H17OwnOccHU2","H17OwnOccHU1PersonHH","H17OwnOccHU2PersonHH","H17OwnOccHU3PersonHH","H17OwnOccHU4PersonHH","H17OwnOccHU5PersonHH","H17OwnOccHU6PersonHH","H17OwnOccHU7PlusPersonHH","H17RentOccHU2","H17RntOccHU1PersonHH","H17RntOccHU2PersonHH","H17RntOccHU3PersonHH","H17RntOccHU4PersonHH","H17RntOccHU5PersonHH","H17RntOccHU6PersonHH","H17RntOccHU7PlusPersonHH","H18AvgHHSize","H18AvgHHSizeOwnOcc","H18AvgHHSizeRentOcc","H23TotHU","H23HU1Room","H23HU2Room","H23HU3Room","H23HU4Room","H23HU5Room","H23HU6Room","H23HU7Room","H23HU8Room","H23HU9orMoreRoom","H24MedianNumRooms","H25AggregNumRooms","H30TotalHU","H30Det1HU","H30Att1HU","H30Units2","H30Units3or4","H30Units5to9","H30Units10to19","H30Units20to49","H30Units50orMore","H30UnitsMobileHome","H30UnitsBoatRv","H32OccHUcTotal","H32OwnerOccHU3","H32OwnOccHU1Det","H32OwnOccHU1Att","H32OwnOccHU2Unit","H32OwnOccHU3to4Unit","H32OwnOccHU5to9Unit","H32OwnOccHU10to19Unit","H32OwnOccHU20to49Unit","H32OwnOccHU50plusUnit","H32OwnOccHUMobHom","H32OwnOccHUBoatRVOth","H32RentrOccHU3","H32RntrOccHU1Det","H32RntrOccHU1Att","H32RntrOccHU2Unit","H32RntrOccHU3to4Unit","H32RntrOccHU5to9Unit","H32RntrOccHU10to19Unit","H32RntrOccHU20to49Unit","H32RntrOccHU50PlusUnit","H32RntrOccHUMobHom","H32RntrOccHUBoatRVOth","H33TotPopInOccHU","H33PopInOwnOccHU2","H33PopInOOHU1Det","H33PopInOOHU1Att","H33PopInOOHU2unit","H33PopInOOHU3to4Unit","H33PopInOOHU5to9Unit","H33PopInOOHU10to19Unit","H33PopInOOHU20to49Unit","H33PopInOOHU50PlusUnit","H33PopInOOHUMobilHome","H33PopInOOHUOtherUnit","H33PopInRentOccHU2","H33PopInROHU1Det","H33PopInROHU1Att","H33PopInROHU2Unit","H33PopInROHU3to4Unit","H33PopInROHU5to9Unit","H33PopInROHU10to19Unit","H33PopInROHU20to49Unit","H33PopInROHU50PlusUnit","H33PopInROHUMobilHome","H33PopInROHUOtherUnit","H36OccHousingUnitsdTotal","H36OwnerOccHU4","H36OOHUBuilt99to0300","H36OOHUBuilt95to98","H36OOHUBuilt90to94","H36OOHUBuilt80to89","H36OOHUBuilt70to79","H36OOHUBuilt60to69","H36OOHUBuilt50to59","H36OOHUBuilt40to49","H36OOHUBuilt39Earlier","H36RentOccHU4","H36ROHUBuilt99to0300","H36ROHUBuilt95to98","H36ROHUBuilt90to94","H36ROHUBuilt80to89","H36ROHUBuilt70to79","H36ROHUBuilt60to69","H36ROHUBuilt50to59","H36ROHUBuilt40to49","H36ROHUBuilt39Earlier","H40OccupHousUnitse","H40HeatFuelUtilGas","H40HeatFuelBotGas","H40HeatFuelElect","H40HeatFuelOilKero","H40HeatFuelCoal","H40HeatFuelWood","H40HeatFuelSolar","H40HeatFuelOther","H40HeatFuelNone","H41TotalHU","H41HUNoBdrm","H41HU1Bdrm","H41HU2Bdrm","H41HU3Bdrm","H41HU4Bdrm","H41HU5MoreBdrm","H42OccuHousUnitf","H42OwnerOccHU5","H42OOHUNoBdrm","H42OOHU1Bdrm","H42OOHU2Bdrm","H42OOHU3Bdrm","H42OOHU4Bdrm","H42OOHU5PlusBdrm","H42RentOccHU5","H42ROHUNoBdrm","H42ROHU1Bdrm","H42ROHU2Bdrm","H42ROHU3Bdrm","H42ROHU4Bdrm","H42ROHU5PlusBdrm","H48OccupHousUnitsg","H48OwnerOccHU6","H48OOHUwCompltPlumFacil","H48OOHULackCompltPlumFacil","H48RentOccHU6","H48ROHUwCompltPlumFacil","H48ROHULackCompltPlumFacil","H51OccupHousUnitf","H51OwnerOccHU7","H51OOHUwCompleteKitFacil","H51OOHULackCompleteKitFacil","H51RenterOccHU7","H51ROHUwCompleteKitFacil","H51ROHULackCompleteKitFacil"]
[{"$f":"VLOOKUP(DropDownList!$B47,CntyQryCensus!$A$306:$GX$348,A$1)","v":"Berlin"},{"$f":"VLOOKUP(DropDownList!$B47,CntyQryCensus!$A$306:$GX$348,B$1)","v":"0000833"},{"$f":"VLOOKUP(DropDownList!$B47,CntyQryCensus!$A$306:$GX$348,C$1)","v":"05140"},{"$f":"VLOOKUP(DropDownList!$B47,CntyQryCensus!$A$306:$GX$348,D$1)","v":10331},{"$f":"VLOOKUP(DropDownList!$B47,CntyQryCensus!$A$306:$GX$348,E$1)","v":5111},{"$f":"VLOOKUP(DropDownList!$B47,CntyQryCensus!$A$306:$GX$348,F$1)","v":827},{"$f":"VLOOKUP(DropDownList!$B47,CntyQryCensus!$A$306:$GX$348,G$1)","v":732},{"$f":"VLOOKUP(DropDownList!$B47,CntyQryCensus!$A$306:$GX$348,H$1)","v":95},{"$f":"VLOOKUP(DropDownList!$B47,CntyQryCensus!$A$306:$GX$348,I$1)","v":5111},{"$f":"VLOOKUP(DropDownList!$B47,CntyQryCensus!$A$306:$GX$348,J$1)","v":5111},{"$f":"VLOOKUP(DropDownList!$B47,CntyQryCensus!$A$306:$GX$348,K$1)","v":4497},{"$f":"VLOOKUP(DropDownList!$B47,CntyQryCensus!$A$306:$GX$348,L$1)","v":0},{"$f":"VLOOKUP(DropDownList!$B47,CntyQryCensus!$A$306:$GX$348,M$1)","v":4497},{"$f":"VLOOKUP(DropDownList!$B47,CntyQryCensus!$A$306:$GX$348,N$1)","v":614},{"$f":"VLOOKUP(DropDownList!$B47,CntyQryCensus!$A$306:$GX$348,O$1)","v":0},{"$f":"VLOOKUP(DropDownList!$B47,CntyQryCensus!$A$306:$GX$348,P$1)","v":614},{"$f":"VLOOKUP(DropDownList!$B47,CntyQryCensus!$A$306:$GX$348,Q$1)","v":4555},{"$f":"VLOOKUP(DropDownList!$B47,CntyQryCensus!$A$306:$GX$348,R$1)","v":2788},{"$f":"VLOOKUP(DropDownList!$B47,CntyQryCensus!$A$306:$GX$348,S$1)","v":1767},{"$f":"VLOOKUP(DropDownList!$B47,CntyQryCensus!$A$306:$GX$348,T$1)","v":556},{"$f":"VLOOKUP(DropDownList!$B47,CntyQryCensus!$A$306:$GX$348,U$1)","v":219},{"$f":"VLOOKUP(DropDownList!$B47,CntyQryCensus!$A$306:$GX$348,V$1)","v":84},{"$f":"VLOOKUP(DropDownList!$B47,CntyQryCensus!$A$306:$GX$348,W$1)","v":22},{"$f":"VLOOKUP(DropDownList!$B47,CntyQryCensus!$A$306:$GX$348,X$1)","v":60},{"$f":"VLOOKUP(DropDownList!$B47,CntyQryCensus!$A$306:$GX$348,Y$1)","v":0},{"$f":"VLOOKUP(DropDownList!$B47,CntyQryCensus!$A$306:$GX$348,Z$1)","v":171},{"$f":"VLOOKUP(DropDownList!$B47,CntyQryCensus!$A$306:$GX$348,AA$1)","v":4555},{"$f":"VLOOKUP(DropDownList!$B47,CntyQryCensus!$A$306:$GX$348,AB$1)","v":2788},{"$f":"VLOOKUP(DropDownList!$B47,CntyQryCensus!$A$306:$GX$348,AC$1)","v":20},{"$f":"VLOOKUP(DropDownList!$B47,CntyQryCensus!$A$306:$GX$348,AD$1)","v":274},{"$f":"VLOOKUP(DropDownList!$B47,CntyQryCensus!$A$306:$GX$348,AE$1)","v":492},{"$f":"VLOOKUP(DropDownList!$B47,CntyQryCensus!$A$306:$GX$348,AF$1)","v":597},{"$f":"VLOOKUP(DropDownList!$B47,CntyQryCensus!$A$306:$GX$348,AG$1)","v":169},{"$f":"VLOOKUP(DropDownList!$B47,CntyQryCensus!$A$306:$GX$348,AH$1)","v":178},{"$f":"VLOOKUP(DropDownList!$B47,CntyQryCensus!$A$306:$GX$348,AI$1)","v":561},{"$f":"VLOOKUP(DropDownList!$B47,CntyQryCensus!$A$306:$GX$348,AJ$1)","v":344},{"$f":"VLOOKUP(DropDownList!$B47,CntyQryCensus!$A$306:$GX$348,AK$1)","v":153},{"$f":"VLOOKUP(DropDownList!$B47,CntyQryCensus!$A$306:$GX$348,AL$1)","v":1767},{"$f":"VLOOKUP(DropDownList!$B47,CntyQryCensus!$A$306:$GX$348,AM$1)","v":188},{"$f":"VLOOKUP(DropDownList!$B47,CntyQryCensus!$A$306:$GX$348,AN$1)","v":323},{"$f":"VLOOKUP(DropDownList!$B47,CntyQryCensus!$A$306:$GX$348,AO$1)","v":289},{"$f":"VLOOKUP(DropDownList!$B47,CntyQryCensus!$A$306:$GX$348,AP$1)","v":207},{"$f":"VLOOKUP(DropDownList!$B47,CntyQryCensus!$A$306:$GX$348,AQ$1)","v":62},{"$f":"VLOOKUP(DropDownList!$B47,CntyQryCensus!$A$306:$GX$348,AR$1)","v":106},{"$f":"VLOOKUP(DropDownList!$B47,CntyQryCensus!$A$306:$GX$348,AS$1)","v":242},{"$f":"VLOOKUP(DropDownList!$B47,CntyQryCensus!$A$306:$GX$348,AT$1)","v":256},{"$f":"VLOOKUP(DropDownList!$B47,CntyQryCensus!$A$306:$GX$348,AU$1)","v":94},{"$f":"VLOOKUP(DropDownList!$B47,CntyQryCensus!$A$306:$GX$348,AV$1)","v":10132},{"$f":"VLOOKUP(DropDownList!$B47,CntyQryCensus!$A$306:$GX$348,AW$1)","v":6743},{"$f":"VLOOKUP(DropDownList!$B47,CntyQryCensus!$A$306:$GX$348,AX$1)","v":3389},{"$f":"VLOOKUP(DropDownList!$B47,CntyQryCensus!$A$306:$GX$348,AY$1)","v":4555},{"$f":"VLOOKUP(DropDownList!$B47,CntyQryCensus!$A$306:$GX$348,AZ$1)","v":2788},{"$f":"VLOOKUP(DropDownList!$B47,CntyQryCensus!$A$306:$GX$348,BA$1)","v":605},{"$f":"VLOOKUP(DropDownList!$B47,CntyQryCensus!$A$306:$GX$348,BB$1)","v":1179},{"$f":"VLOOKUP(DropDownList!$B47,CntyQryCensus!$A$306:$GX$348,BC$1)","v":443},{"$f":"VLOOKUP(DropDownList!$B47,CntyQryCensus!$A$306:$GX$348,BD$1)","v":383},{"$f":"VLOOKUP(DropDownList!$B47,CntyQryCensus!$A$306:$GX$348,BE$1)","v":112},{"$f":"VLOOKUP(DropDownList!$B47,CntyQryCensus!$A$306:$GX$348,BF$1)","v":38},{"$f":"VLOOKUP(DropDownList!$B47,CntyQryCensus!$A$306:$GX$348,BG$1)","v":28},{"$f":"VLOOKUP(DropDownList!$B47,CntyQryCensus!$A$306:$GX$348,BH$1)","v":1767},{"$f":"VLOOKUP(DropDownList!$B47,CntyQryCensus!$A$306:$GX$348,BI$1)","v":848},{"$f":"VLOOKUP(DropDownList!$B47,CntyQryCensus!$A$306:$GX$348,BJ$1)","v":512},{"$f":"VLOOKUP(DropDownList!$B47,CntyQryCensus!$A$306:$GX$348,BK$1)","v":240},{"$f":"VLOOKUP(DropDownList!$B47,CntyQryCensus!$A$306:$GX$348,BL$1)","v":118},{"$f":"VLOOKUP(DropDownList!$B47,CntyQryCensus!$A$306:$GX$348,BM$1)","v":32},{"$f":"VLOOKUP(DropDownList!$B47,CntyQryCensus!$A$306:$GX$348,BN$1)","v":17},{"$f":"VLOOKUP(DropDownList!$B47,CntyQryCensus!$A$306:$GX$348,BO$1)","v":0},{"$f":"VLOOKUP(DropDownList!$B47,CntyQryCensus!$A$306:$GX$348,BP$1)","v":2},{"$f":"VLOOKUP(DropDownList!$B47,CntyQryCensus!$A$306:$GX$348,BQ$1)","v":2},{"$f":"VLOOKUP(DropDownList!$B47,CntyQryCensus!$A$306:$GX$348,BR$1)","v":2},{"$f":"VLOOKUP(DropDownList!$B47,CntyQryCensus!$A$306:$GX$348,BS$1)","v":5111},{"$f":"VLOOKUP(DropDownList!$B47,CntyQryCensus!$A$306:$GX$348,BT$1)","v":18},{"$f":"VLOOKUP(DropDownList!$B47,CntyQryCensus!$A$306:$GX$348,BU$1)","v":99},{"$f":"VLOOKUP(DropDownList!$B47,CntyQryCensus!$A$306:$GX$348,BV$1)","v":475},{"$f":"VLOOKUP(DropDownList!$B47,CntyQryCensus!$A$306:$GX$348,BW$1)","v":1059},{"$f":"VLOOKUP(DropDownList!$B47,CntyQryCensus!$A$306:$GX$348,BX$1)","v":1417},{"$f":"VLOOKUP(DropDownList!$B47,CntyQryCensus!$A$306:$GX$348,BY$1)","v":1017},{"$f":"VLOOKUP(DropDownList!$B47,CntyQryCensus!$A$306:$GX$348,BZ$1)","v":489},{"$f":"VLOOKUP(DropDownList!$B47,CntyQryCensus!$A$306:$GX$348,CA$1)","v":260},{"$f":"VLOOKUP(DropDownList!$B47,CntyQryCensus!$A$306:$GX$348,CB$1)","v":277},{"$f":"VLOOKUP(DropDownList!$B47,CntyQryCensus!$A$306:$GX$348,CC$1)","v":5},{"$f":"VLOOKUP(DropDownList!$B47,CntyQryCensus!$A$306:$GX$348,CD$1)","v":27337},{"$f":"VLOOKUP(DropDownList!$B47,CntyQryCensus!$A$306:$GX$348,CE$1)","v":5111},{"$f":"VLOOKUP(DropDownList!$B47,CntyQryCensus!$A$306:$GX$348,CF$1)","v":2454},{"$f":"VLOOKUP(DropDownList!$B47,CntyQryCensus!$A$306:$GX$348,CG$1)","v":43},{"$f":"VLOOKUP(DropDownList!$B47,CntyQryCensus!$A$306:$GX$348,CH$1)","v":1072},{"$f":"VLOOKUP(DropDownList!$B47,CntyQryCensus!$A$306:$GX$348,CI$1)","v":824},{"$f":"VLOOKUP(DropDownList!$B47,CntyQryCensus!$A$306:$GX$348,CJ$1)","v":415},{"$f":"VLOOKUP(DropDownList!$B47,CntyQryCensus!$A$306:$GX$348,CK$1)","v":78},{"$f":"VLOOKUP(DropDownList!$B47,CntyQryCensus!$A$306:$GX$348,CL$1)","v":33},{"$f":"VLOOKUP(DropDownList!$B47,CntyQryCensus!$A$306:$GX$348,CM$1)","v":102},{"$f":"VLOOKUP(DropDownList!$B47,CntyQryCensus!$A$306:$GX$348,CN$1)","v":90},{"$f":"VLOOKUP(DropDownList!$B47,CntyQryCensus!$A$306:$GX$348,CO$1)","v":0},{"$f":"VLOOKUP(DropDownList!$B47,CntyQryCensus!$A$306:$GX$348,CP$1)","v":4555},{"$f":"VLOOKUP(DropDownList!$B47,CntyQryCensus!$A$306:$GX$348,CQ$1)","v":2788},{"$f":"VLOOKUP(DropDownList!$B47,CntyQryCensus!$A$306:$GX$348,CR$1)","v":2146},{"$f":"VLOOKUP(DropDownList!$B47,CntyQryCensus!$A$306:$GX$348,CS$1)","v":19},{"$f":"VLOOKUP(DropDownList!$B47,CntyQryCensus!$A$306:$GX$348,CT$1)","v":432},{"$f":"VLOOKUP(DropDownList!$B47,CntyQryCensus!$A$306:$GX$348,CU$1)","v":107},{"$f":"VLOOKUP(DropDownList!$B47,CntyQryCensus!$A$306:$GX$348,CV$1)","v":0},{"$f":"VLOOKUP(DropDownList!$B47,CntyQryCensus!$A$306:$GX$348,CW$1)","v":0},{"$f":"VLOOKUP(DropDownList!$B47,CntyQryCensus!$A$306:$GX$348,CX$1)","v":0},{"$f":"VLOOKUP(DropDownList!$B47,CntyQryCensus!$A$306:$GX$348,CY$1)","v":0},{"$f":"VLOOKUP(DropDownList!$B47,CntyQryCensus!$A$306:$GX$348,CZ$1)","v":84},{"$f":"VLOOKUP(DropDownList!$B47,CntyQryCensus!$A$306:$GX$348,DA$1)","v":0},{"$f":"VLOOKUP(DropDownList!$B47,CntyQryCensus!$A$306:$GX$348,DB$1)","v":1767},{"$f":"VLOOKUP(DropDownList!$B47,CntyQryCensus!$A$306:$GX$348,DC$1)","v":217},{"$f":"VLOOKUP(DropDownList!$B47,CntyQryCensus!$A$306:$GX$348,DD$1)","v":24},{"$f":"VLOOKUP(DropDownList!$B47,CntyQryCensus!$A$306:$GX$348,DE$1)","v":481},{"$f":"VLOOKUP(DropDownList!$B47,CntyQryCensus!$A$306:$GX$348,DF$1)","v":537},{"$f":"VLOOKUP(DropDownList!$B47,CntyQryCensus!$A$306:$GX$348,DG$1)","v":305},{"$f":"VLOOKUP(DropDownList!$B47,CntyQryCensus!$A$306:$GX$348,DH$1)","v":70},{"$f":"VLOOKUP(DropDownList!$B47,CntyQryCensus!$A$306:$GX$348,DI$1)","v":33},{"$f":"VLOOKUP(DropDownList!$B47,CntyQryCensus!$A$306:$GX$348,DJ$1)","v":94},{"$f":"VLOOKUP(DropDownList!$B47,CntyQryCensus!$A$306:$GX$348,DK$1)","v":6},{"$f":"VLOOKUP(DropDownList!$B47,CntyQryCensus!$A$306:$GX$348,DL$1)","v":0},{"$f":"VLOOKUP(DropDownList!$B47,CntyQryCensus!$A$306:$GX$348,DM$1)","v":10132},{"$f":"VLOOKUP(DropDownList!$B47,CntyQryCensus!$A$306:$GX$348,DN$1)","v":6743},{"$f":"VLOOKUP(DropDownList!$B47,CntyQryCensus!$A$306:$GX$348,DO$1)","v":5423},{"$f":"VLOOKUP(DropDownList!$B47,CntyQryCensus!$A$306:$GX$348,DP$1)","v":46},{"$f":"VLOOKUP(DropDownList!$B47,CntyQryCensus!$A$306:$GX$348,DQ$1)","v":895},{"$f":"VLOOKUP(DropDownList!$B47,CntyQryCensus!$A$306:$GX$348,DR$1)","v":245},{"$f":"VLOOKUP(DropDownList!$B47,CntyQryCensus!$A$306:$GX$348,DS$1)","v":0},{"$f":"VLOOKUP(DropDownList!$B47,CntyQryCensus!$A$306:$GX$348,DT$1)","v":0},{"$f":"VLOOKUP(DropDownList!$B47,CntyQryCensus!$A$306:$GX$348,DU$1)","v":0},{"$f":"VLOOKUP(DropDownList!$B47,CntyQryCensus!$A$306:$GX$348,DV$1)","v":0},{"$f":"VLOOKUP(DropDownList!$B47,CntyQryCensus!$A$306:$GX$348,DW$1)","v":134},{"$f":"VLOOKUP(DropDownList!$B47,CntyQryCensus!$A$306:$GX$348,DX$1)","v":0},{"$f":"VLOOKUP(DropDownList!$B47,CntyQryCensus!$A$306:$GX$348,DY$1)","v":3389},{"$f":"VLOOKUP(DropDownList!$B47,CntyQryCensus!$A$306:$GX$348,DZ$1)","v":689},{"$f":"VLOOKUP(DropDownList!$B47,CntyQryCensus!$A$306:$GX$348,EA$1)","v":52},{"$f":"VLOOKUP(DropDownList!$B47,CntyQryCensus!$A$306:$GX$348,EB$1)","v":856},{"$f":"VLOOKUP(DropDownList!$B47,CntyQryCensus!$A$306:$GX$348,EC$1)","v":1031},{"$f":"VLOOKUP(DropDownList!$B47,CntyQryCensus!$A$306:$GX$348,ED$1)","v":444},{"$f":"VLOOKUP(DropDownList!$B47,CntyQryCensus!$A$306:$GX$348,EE$1)","v":134},{"$f":"VLOOKUP(DropDownList!$B47,CntyQryCensus!$A$306:$GX$348,EF$1)","v":33},{"$f":"VLOOKUP(DropDownList!$B47,CntyQryCensus!$A$306:$GX$348,EG$1)","v":134},{"$f":"VLOOKUP(DropDownList!$B47,CntyQryCensus!$A$306:$GX$348,EH$1)","v":16},{"$f":"VLOOKUP(DropDownList!$B47,CntyQryCensus!$A$306:$GX$348,EI$1)","v":0},{"$f":"VLOOKUP(DropDownList!$B47,CntyQryCensus!$A$306:$GX$348,EJ$1)","v":4555},{"$f":"VLOOKUP(DropDownList!$B47,CntyQryCensus!$A$306:$GX$348,EK$1)","v":2788},{"$f":"VLOOKUP(DropDownList!$B47,CntyQryCensus!$A$306:$GX$348,EL$1)","v":7},{"$f":"VLOOKUP(DropDownList!$B47,CntyQryCensus!$A$306:$GX$348,EM$1)","v":7},{"$f":"VLOOKUP(DropDownList!$B47,CntyQryCensus!$A$306:$GX$348,EN$1)","v":11},{"$f":"VLOOKUP(DropDownList!$B47,CntyQryCensus!$A$306:$GX$348,EO$1)","v":93},{"$f":"VLOOKUP(DropDownList!$B47,CntyQryCensus!$A$306:$GX$348,EP$1)","v":236},{"$f":"VLOOKUP(DropDownList!$B47,CntyQryCensus!$A$306:$GX$348,EQ$1)","v":127},{"$f":"VLOOKUP(DropDownList!$B47,CntyQryCensus!$A$306:$GX$348,ER$1)","v":499},{"$f":"VLOOKUP(DropDownList!$B47,CntyQryCensus!$A$306:$GX$348,ES$1)","v":255},{"$f":"VLOOKUP(DropDownList!$B47,CntyQryCensus!$A$306:$GX$348,ET$1)","v":1553},{"$f":"VLOOKUP(DropDownList!$B47,CntyQryCensus!$A$306:$GX$348,EU$1)","v":1767},{"$f":"VLOOKUP(DropDownList!$B47,CntyQryCensus!$A$306:$GX$348,EV$1)","v":0},{"$f":"VLOOKUP(DropDownList!$B47,CntyQryCensus!$A$306:$GX$348,EW$1)","v":0},{"$f":"VLOOKUP(DropDownList!$B47,CntyQryCensus!$A$306:$GX$348,EX$1)","v":0},{"$f":"VLOOKUP(DropDownList!$B47,CntyQryCensus!$A$306:$GX$348,EY$1)","v":45},{"$f":"VLOOKUP(DropDownList!$B47,CntyQryCensus!$A$306:$GX$348,EZ$1)","v":149},{"$f":"VLOOKUP(DropDownList!$B47,CntyQryCensus!$A$306:$GX$348,FA$1)","v":152},{"$f":"VLOOKUP(DropDownList!$B47,CntyQryCensus!$A$306:$GX$348,FB$1)","v":182},{"$f":"VLOOKUP(DropDownList!$B47,CntyQryCensus!$A$306:$GX$348,FC$1)","v":187},{"$f":"VLOOKUP(DropDownList!$B47,CntyQryCensus!$A$306:$GX$348,FD$1)","v":1052},{"$f":"VLOOKUP(DropDownList!$B47,CntyQryCensus!$A$306:$GX$348,FE$1)","v":4555},{"$f":"VLOOKUP(DropDownList!$B47,CntyQryCensus!$A$306:$GX$348,FF$1)","v":0},{"$f":"VLOOKUP(DropDownList!$B47,CntyQryCensus!$A$306:$GX$348,FG$1)","v":45},{"$f":"VLOOKUP(DropDownList!$B47,CntyQryCensus!$A$306:$GX$348,FH$1)","v":104},{"$f":"VLOOKUP(DropDownList!$B47,CntyQryCensus!$A$306:$GX$348,FI$1)","v":4315},{"$f":"VLOOKUP(DropDownList!$B47,CntyQryCensus!$A$306:$GX$348,FJ$1)","v":6},{"$f":"VLOOKUP(DropDownList!$B47,CntyQryCensus!$A$306:$GX$348,FK$1)","v":54},{"$f":"VLOOKUP(DropDownList!$B47,CntyQryCensus!$A$306:$GX$348,FL$1)","v":0},{"$f":"VLOOKUP(DropDownList!$B47,CntyQryCensus!$A$306:$GX$348,FM$1)","v":22},{"$f":"VLOOKUP(DropDownList!$B47,CntyQryCensus!$A$306:$GX$348,FN$1)","v":9},{"$f":"VLOOKUP(DropDownList!$B47,CntyQryCensus!$A$306:$GX$348,FO$1)","v":5111},{"$f":"VLOOKUP(DropDownList!$B47,CntyQryCensus!$A$306:$GX$348,FP$1)","v":25},{"$f":"VLOOKUP(DropDownList!$B47,CntyQryCensus!$A$306:$GX$348,FQ$1)","v":726},{"$f":"VLOOKUP(DropDownList!$B47,CntyQryCensus!$A$306:$GX$348,FR$1)","v":1776},{"$f":"VLOOKUP(DropDownList!$B47,CntyQryCensus!$A$306:$GX$348,FS$1)","v":1851},{"$f":"VLOOKUP(DropDownList!$B47,CntyQryCensus!$A$306:$GX$348,FT$1)","v":580},{"$f":"VLOOKUP(DropDownList!$B47,CntyQryCensus!$A$306:$GX$348,FU$1)","v":153},{"$f":"VLOOKUP(DropDownList!$B47,CntyQryCensus!$A$306:$GX$348,FV$1)","v":4555},{"$f":"VLOOKUP(DropDownList!$B47,CntyQryCensus!$A$306:$GX$348,FW$1)","v":2788},{"$f":"VLOOKUP(DropDownList!$B47,CntyQryCensus!$A$306:$GX$348,FX$1)","v":0},{"$f":"VLOOKUP(DropDownList!$B47,CntyQryCensus!$A$306:$GX$348,FY$1)","v":115},{"$f":"VLOOKUP(DropDownList!$B47,CntyQryCensus!$A$306:$GX$348,FZ$1)","v":750},{"$f":"VLOOKUP(DropDownList!$B47,CntyQryCensus!$A$306:$GX$348,GA$1)","v":1315},{"$f":"VLOOKUP(DropDownList!$B47,CntyQryCensus!$A$306:$GX$348,GB$1)","v":489},{"$f":"VLOOKUP(DropDownList!$B47,CntyQryCensus!$A$306:$GX$348,GC$1)","v":119},{"$f":"VLOOKUP(DropDownList!$B47,CntyQryCensus!$A$306:$GX$348,GD$1)","v":1767},{"$f":"VLOOKUP(DropDownList!$B47,CntyQryCensus!$A$306:$GX$348,GE$1)","v":25},{"$f":"VLOOKUP(DropDownList!$B47,CntyQryCensus!$A$306:$GX$348,GF$1)","v":475},{"$f":"VLOOKUP(DropDownList!$B47,CntyQryCensus!$A$306:$GX$348,GG$1)","v":775},{"$f":"VLOOKUP(DropDownList!$B47,CntyQryCensus!$A$306:$GX$348,GH$1)","v":421},{"$f":"VLOOKUP(DropDownList!$B47,CntyQryCensus!$A$306:$GX$348,GI$1)","v":56},{"$f":"VLOOKUP(DropDownList!$B47,CntyQryCensus!$A$306:$GX$348,GJ$1)","v":15},{"$f":"VLOOKUP(DropDownList!$B47,CntyQryCensus!$A$306:$GX$348,GK$1)","v":4555},{"$f":"VLOOKUP(DropDownList!$B47,CntyQryCensus!$A$306:$GX$348,GL$1)","v":2788},{"$f":"VLOOKUP(DropDownList!$B47,CntyQryCensus!$A$306:$GX$348,GM$1)","v":2776},{"$f":"VLOOKUP(DropDownList!$B47,CntyQryCensus!$A$306:$GX$348,GN$1)","v":12},{"$f":"VLOOKUP(DropDownList!$B47,CntyQryCensus!$A$306:$GX$348,GO$1)","v":1767},{"$f":"VLOOKUP(DropDownList!$B47,CntyQryCensus!$A$306:$GX$348,GP$1)","v":1767},{"$f":"VLOOKUP(DropDownList!$B47,CntyQryCensus!$A$306:$GX$348,GQ$1)","v":0},{"$f":"VLOOKUP(DropDownList!$B47,CntyQryCensus!$A$306:$GX$348,GR$1)","v":4555},{"$f":"VLOOKUP(DropDownList!$B47,CntyQryCensus!$A$306:$GX$348,GS$1)","v":2788},{"$f":"VLOOKUP(DropDownList!$B47,CntyQryCensus!$A$306:$GX$348,GT$1)","v":2782},{"$f":"VLOOKUP(DropDownList!$B47,CntyQryCensus!$A$306:$GX$348,GU$1)","v":6},{"$f":"VLOOKUP(DropDownList!$B47,CntyQryCensus!$A$306:$GX$348,GV$1)","v":1767},{"$f":"VLOOKUP(DropDownList!$B47,CntyQryCensus!$A$306:$GX$348,GW$1)","v":1767},{"$f":"VLOOKUP(DropDownList!$B47,CntyQryCensus!$A$306:$GX$348,GX$1)","v":0}]
[]
[]
["Census 2000 SummaryFile3 Sample Data  -  SF3TownQry8HousingCostA"]
["NAME","LOGRECNO","COUNTY","TotalPop","H62RntrOccHU","H62RntrOccHUwRent","H62ROHUGRent<100","H62ROHUGRent100to149","H62ROHUGRent150to199","H62ROHUGRent200to249","H62ROHUGRent250to299","H62ROHUGRent300to349","H62ROHUGRent350to399","H62ROHUGRent400to449","H62ROHUGRent450to499","H62ROHUGRent500to549","H62ROHUGRent550to599","H62ROHUGRent600to649","H62ROHUGRent650to699","H62ROHUGRent700to749","H62ROHUGRent750to799","H62ROHUGRent800to899","H62ROHUGRent900to999","H62ROHUGRent1000to1249","H62ROHUGRent1250to1499","H62ROHUGRent1500to1999","H62ROHUGRent2000>","H62ROHUNoGRent","H63MedianGrossRnt","H69RenterOccHsU","H69GRnt<10PctHHInc","H69GRnt10to15PctHHInc","H69GRnt15to20PctHHInc","H69GRnt20to25PctHHInc","H69GRnt25to30PctHHInc","H69GRnt30to35PctHHInc","H69GRnt35to40PctHHInc","H69GRnt40to50PctHHInc","H69GRnt>50PctHHInc","H69GRntPctNotcomputed","H73RenterOccHU","H73ROHUHhInc<10k","H73ROHUHhInc<10kRnt<20pct","H73ROHUHhInc<10kRnt20to25pct","H73ROHUHhInc<10kRnt25to30pct","H73ROHUHhInc<10kRnt30to35pct","H73ROHUHhInc<10kRnt>35pct","H73ROHUHhInc<10kPctNotComput","H73ROHUHhInc10to20k","H73ROHUHhInc10to20kRnt<20pct","H73ROHUHhInc10to20kRnt20to25pct","H73ROHUHhInc10to20kRnt25to30pct","H73ROHUHhInc10to20kRnt30to35pct","H73ROHUHhInc10to20kRnt>35pct","H73ROHUHhInc10to20kRntPctNC","H73ROHUHhInc20to35k","H73ROHUHhInc20to35kRnt<20pct","H73ROHUHhInc20to35kRnt20to25pct","H73ROHUHhInc20to35kRnt25to30pct","H73ROHUHhInc20to35kRnt30to35pct","H73ROHUHhInc20to35kRnt>35pct","H73ROHUHhInc20to35kRntPctNC","H73ROHUHhInc35to40k","H73ROHUHhInc35to40kRnt<20pct","H73ROHUHhInc35to40kRnt20to25pct","H73ROHUHhInc35to40kRnt25to30pct","H73ROHUHhInc35to40kRnt30to35pct","H73ROHUHhInc35to40kRnt>35pct","H73ROHUHhInc35to40kRntPctNC","H73ROHUHhInc50to75k","H73ROHUHhInc50to75kRnt<20pct","H73ROHUHhInc50to75kRnt20to25pct","H73ROHUHhInc50to75kRnt25to30pct","H73ROHUHhInc50to75kRnt30to35pct","H73ROHUHhInc50to75kRnt>35pct","H73ROHUHhInc50to75kRntPctNC","H73ROHUHhInc75to100k","H73ROHUHhInc75to100kRnt<20pct","H73ROHUHhInc75to100kRnt20to25pct","H73ROHUHhInc75to100kRnt25to30pct","H73ROHUHhInc75to100kRnt30to35pct","H73ROHUHhInc75to100kRnt>35pct","H73ROHUHhInc75to100kRntPctNC","H73ROHUHhInc>100k","H73ROHUHhInc>100kRnt<20pct","H73ROHUHhInc>100kRnt20to25pct","H73ROHUHhInc>100kRnt25to30pct","H73ROHUHhInc>100kRnt30to35pct","H73ROHUHhInc>100kRnt>35pct","H73ROHUHhInc>100kRntPctNC","H73ROHUHhInc>100kRntPctNC"]
[{"$f":"VLOOKUP(DropDownList!$B$47,CntyQryCensus!$A$357:$CM$399,A$1)","v":"Berlin"},{"$f":"VLOOKUP(DropDownList!$B$47,CntyQryCensus!$A$357:$CM$399,B$1)","v":"0000833"},{"$f":"VLOOKUP(DropDownList!$B$47,CntyQryCensus!$A$357:$CM$399,C$1)","v":"05140"},{"$f":"VLOOKUP(DropDownList!$B$47,CntyQryCensus!$A$357:$CM$399,D$1)","v":10331},{"$f":"VLOOKUP(DropDownList!$B$47,CntyQryCensus!$A$357:$CM$399,E$1)","v":1754},{"$f":"VLOOKUP(DropDownList!$B$47,CntyQryCensus!$A$357:$CM$399,F$1)","v":1655},{"$f":"VLOOKUP(DropDownList!$B$47,CntyQryCensus!$A$357:$CM$399,G$1)","v":31},{"$f":"VLOOKUP(DropDownList!$B$47,CntyQryCensus!$A$357:$CM$399,H$1)","v":70},{"$f":"VLOOKUP(DropDownList!$B$47,CntyQryCensus!$A$357:$CM$399,I$1)","v":82},{"$f":"VLOOKUP(DropDownList!$B$47,CntyQryCensus!$A$357:$CM$399,J$1)","v":54},{"$f":"VLOOKUP(DropDownList!$B$47,CntyQryCensus!$A$357:$CM$399,K$1)","v":166},{"$f":"VLOOKUP(DropDownList!$B$47,CntyQryCensus!$A$357:$CM$399,L$1)","v":253},{"$f":"VLOOKUP(DropDownList!$B$47,CntyQryCensus!$A$357:$CM$399,M$1)","v":268},{"$f":"VLOOKUP(DropDownList!$B$47,CntyQryCensus!$A$357:$CM$399,N$1)","v":331},{"$f":"VLOOKUP(DropDownList!$B$47,CntyQryCensus!$A$357:$CM$399,O$1)","v":155},{"$f":"VLOOKUP(DropDownList!$B$47,CntyQryCensus!$A$357:$CM$399,P$1)","v":67},{"$f":"VLOOKUP(DropDownList!$B$47,CntyQryCensus!$A$357:$CM$399,Q$1)","v":57},{"$f":"VLOOKUP(DropDownList!$B$47,CntyQryCensus!$A$357:$CM$399,R$1)","v":48},{"$f":"VLOOKUP(DropDownList!$B$47,CntyQryCensus!$A$357:$CM$399,S$1)","v":11},{"$f":"VLOOKUP(DropDownList!$B$47,CntyQryCensus!$A$357:$CM$399,T$1)","v":25},{"$f":"VLOOKUP(DropDownList!$B$47,CntyQryCensus!$A$357:$CM$399,U$1)","v":11},{"$f":"VLOOKUP(DropDownList!$B$47,CntyQryCensus!$A$357:$CM$399,V$1)","v":21},{"$f":"VLOOKUP(DropDownList!$B$47,CntyQryCensus!$A$357:$CM$399,W$1)","v":0},{"$f":"VLOOKUP(DropDownList!$B$47,CntyQryCensus!$A$357:$CM$399,X$1)","v":5},{"$f":"VLOOKUP(DropDownList!$B$47,CntyQryCensus!$A$357:$CM$399,Y$1)","v":0},{"$f":"VLOOKUP(DropDownList!$B$47,CntyQryCensus!$A$357:$CM$399,Z$1)","v":0},{"$f":"VLOOKUP(DropDownList!$B$47,CntyQryCensus!$A$357:$CM$399,AA$1)","v":0},{"$f":"VLOOKUP(DropDownList!$B$47,CntyQryCensus!$A$357:$CM$399,AB$1)","v":99},{"$f":"VLOOKUP(DropDownList!$B$47,CntyQryCensus!$A$357:$CM$399,AC$1)","v":382},{"$f":"VLOOKUP(DropDownList!$B$47,CntyQryCensus!$A$357:$CM$399,AD$1)","v":1754},{"$f":"VLOOKUP(DropDownList!$B$47,CntyQryCensus!$A$357:$CM$399,AE$1)","v":110},{"$f":"VLOOKUP(DropDownList!$B$47,CntyQryCensus!$A$357:$CM$399,AF$1)","v":229},{"$f":"VLOOKUP(DropDownList!$B$47,CntyQryCensus!$A$357:$CM$399,AG$1)","v":248},{"$f":"VLOOKUP(DropDownList!$B$47,CntyQryCensus!$A$357:$CM$399,AH$1)","v":190},{"$f":"VLOOKUP(DropDownList!$B$47,CntyQryCensus!$A$357:$CM$399,AI$1)","v":152},{"$f":"VLOOKUP(DropDownList!$B$47,CntyQryCensus!$A$357:$CM$399,AJ$1)","v":176},{"$f":"VLOOKUP(DropDownList!$B$47,CntyQryCensus!$A$357:$CM$399,AK$1)","v":111},{"$f":"VLOOKUP(DropDownList!$B$47,CntyQryCensus!$A$357:$CM$399,AL$1)","v":135},{"$f":"VLOOKUP(DropDownList!$B$47,CntyQryCensus!$A$357:$CM$399,AM$1)","v":290},{"$f":"VLOOKUP(DropDownList!$B$47,CntyQryCensus!$A$357:$CM$399,AN$1)","v":113},{"$f":"VLOOKUP(DropDownList!$B$47,CntyQryCensus!$A$357:$CM$399,AO$1)","v":1754},{"$f":"VLOOKUP(DropDownList!$B$47,CntyQryCensus!$A$357:$CM$399,AP$1)","v":494},{"$f":"VLOOKUP(DropDownList!$B$47,CntyQryCensus!$A$357:$CM$399,AQ$1)","v":34},{"$f":"VLOOKUP(DropDownList!$B$47,CntyQryCensus!$A$357:$CM$399,AR$1)","v":7},{"$f":"VLOOKUP(DropDownList!$B$47,CntyQryCensus!$A$357:$CM$399,AS$1)","v":37},{"$f":"VLOOKUP(DropDownList!$B$47,CntyQryCensus!$A$357:$CM$399,AT$1)","v":52},{"$f":"VLOOKUP(DropDownList!$B$47,CntyQryCensus!$A$357:$CM$399,AU$1)","v":350},{"$f":"VLOOKUP(DropDownList!$B$47,CntyQryCensus!$A$357:$CM$399,AV$1)","v":14},{"$f":"VLOOKUP(DropDownList!$B$47,CntyQryCensus!$A$357:$CM$399,AW$1)","v":500},{"$f":"VLOOKUP(DropDownList!$B$47,CntyQryCensus!$A$357:$CM$399,AX$1)","v":54},{"$f":"VLOOKUP(DropDownList!$B$47,CntyQryCensus!$A$357:$CM$399,AY$1)","v":62},{"$f":"VLOOKUP(DropDownList!$B$47,CntyQryCensus!$A$357:$CM$399,AZ$1)","v":101},{"$f":"VLOOKUP(DropDownList!$B$47,CntyQryCensus!$A$357:$CM$399,BA$1)","v":77},{"$f":"VLOOKUP(DropDownList!$B$47,CntyQryCensus!$A$357:$CM$399,BB$1)","v":174},{"$f":"VLOOKUP(DropDownList!$B$47,CntyQryCensus!$A$357:$CM$399,BC$1)","v":32},{"$f":"VLOOKUP(DropDownList!$B$47,CntyQryCensus!$A$357:$CM$399,BD$1)","v":450},{"$f":"VLOOKUP(DropDownList!$B$47,CntyQryCensus!$A$357:$CM$399,BE$1)","v":221},{"$f":"VLOOKUP(DropDownList!$B$47,CntyQryCensus!$A$357:$CM$399,BF$1)","v":121},{"$f":"VLOOKUP(DropDownList!$B$47,CntyQryCensus!$A$357:$CM$399,BG$1)","v":10},{"$f":"VLOOKUP(DropDownList!$B$47,CntyQryCensus!$A$357:$CM$399,BH$1)","v":47},{"$f":"VLOOKUP(DropDownList!$B$47,CntyQryCensus!$A$357:$CM$399,BI$1)","v":12},{"$f":"VLOOKUP(DropDownList!$B$47,CntyQryCensus!$A$357:$CM$399,BJ$1)","v":39},{"$f":"VLOOKUP(DropDownList!$B$47,CntyQryCensus!$A$357:$CM$399,BK$1)","v":181},{"$f":"VLOOKUP(DropDownList!$B$47,CntyQryCensus!$A$357:$CM$399,BL$1)","v":165},{"$f":"VLOOKUP(DropDownList!$B$47,CntyQryCensus!$A$357:$CM$399,BM$1)","v":0},{"$f":"VLOOKUP(DropDownList!$B$47,CntyQryCensus!$A$357:$CM$399,BN$1)","v":4},{"$f":"VLOOKUP(DropDownList!$B$47,CntyQryCensus!$A$357:$CM$399,BO$1)","v":0},{"$f":"VLOOKUP(DropDownList!$B$47,CntyQryCensus!$A$357:$CM$399,BP$1)","v":0},{"$f":"VLOOKUP(DropDownList!$B$47,CntyQryCensus!$A$357:$CM$399,BQ$1)","v":12},{"$f":"VLOOKUP(DropDownList!$B$47,CntyQryCensus!$A$357:$CM$399,BR$1)","v":86},{"$f":"VLOOKUP(DropDownList!$B$47,CntyQryCensus!$A$357:$CM$399,BS$1)","v":80},{"$f":"VLOOKUP(DropDownList!$B$47,CntyQryCensus!$A$357:$CM$399,BT$1)","v":0},{"$f":"VLOOKUP(DropDownList!$B$47,CntyQryCensus!$A$357:$CM$399,BU$1)","v":0},{"$f":"VLOOKUP(DropDownList!$B$47,CntyQryCensus!$A$357:$CM$399,BV$1)","v":0},{"$f":"VLOOKUP(DropDownList!$B$47,CntyQryCensus!$A$357:$CM$399,BW$1)","v":0},{"$f":"VLOOKUP(DropDownList!$B$47,CntyQryCensus!$A$357:$CM$399,BX$1)","v":6},{"$f":"VLOOKUP(DropDownList!$B$47,CntyQryCensus!$A$357:$CM$399,BY$1)","v":17},{"$f":"VLOOKUP(DropDownList!$B$47,CntyQryCensus!$A$357:$CM$399,BZ$1)","v":7},{"$f":"VLOOKUP(DropDownList!$B$47,CntyQryCensus!$A$357:$CM$399,CA$1)","v":0},{"$f":"VLOOKUP(DropDownList!$B$47,CntyQryCensus!$A$357:$CM$399,CB$1)","v":0},{"$f":"VLOOKUP(DropDownList!$B$47,CntyQryCensus!$A$357:$CM$399,CC$1)","v":0},{"$f":"VLOOKUP(DropDownList!$B$47,CntyQryCensus!$A$357:$CM$399,CD$1)","v":0},{"$f":"VLOOKUP(DropDownList!$B$47,CntyQryCensus!$A$357:$CM$399,CE$1)","v":10},{"$f":"VLOOKUP(DropDownList!$B$47,CntyQryCensus!$A$357:$CM$399,CF$1)","v":26},{"$f":"VLOOKUP(DropDownList!$B$47,CntyQryCensus!$A$357:$CM$399,CG$1)","v":26},{"$f":"VLOOKUP(DropDownList!$B$47,CntyQryCensus!$A$357:$CM$399,CH$1)","v":0},{"$f":"VLOOKUP(DropDownList!$B$47,CntyQryCensus!$A$357:$CM$399,CI$1)","v":0},{"$f":"VLOOKUP(DropDownList!$B$47,CntyQryCensus!$A$357:$CM$399,CJ$1)","v":0},{"$f":"VLOOKUP(DropDownList!$B$47,CntyQryCensus!$A$357:$CM$399,CK$1)","v":0},{"$f":"VLOOKUP(DropDownList!$B$47,CntyQryCensus!$A$357:$CM$399,CL$1)","v":0},{"$f":"VLOOKUP(DropDownList!$B$47,CntyQryCensus!$A$357:$CM$399,CM$1)","v":0}]
[]
[]
["Census 2000 SummaryFile3 Sample Data  -  SF3TownQry8HousingCostB"]
["NAME","LOGRECNO","COUNTY","TotalPop","H74SpecOwnerOccHU","H74OOHU<10k","H74OOHU10to15k","H74OOHU15to20k","H74OOHU20to25k","H74OOHU25to30k","H74OOHU30to35k","H74OOHU35to40k","H74OOHU40to50k","H74OOHU50to60k","H74OOHU60to70k","H74OOHU70to80k","H74OOHU80to90k","H74OOHU90to100k","H74OOHU100to125k","H74OOHU125to150k","H74OOHU150to175k","H74OOHU175to200k","H74OOHU200to250k","H74OOHU250to300k","H74OOHU300to400k","H74OOHU400to500k","H74OOHU500to750k","H74OOHU750to1000k","H74OOHU1000kmore","H76OOHUMedianVal","H84OwnerOccHU","H84AllOOHU<10k","H84AllOOHU10to15k","H84AllOOHU15to20k","H84AllOOHU20to25k","H84AllOOHU25to30k","H84AllOOHU30to35k","H84AllOOHU35to40k","H84AllOOHU40to50k","H84AllOOHU50to60k","H84AllOOHU60to70k","H84AllOOHU70to80k","H84AllOOHU80to90k","H84AllOOHU90to100k","H84AllOOHU100to125k","H84AllOOHU125to150k","H84AllOOHU150to175k","H84AllOOHU175to200k","H84AllOOHU200to250k","H84AllOOHU250to300k","H84AllOOHU300to400k","H84AllOOHU400to500k","H84AllOOHU500to750k","H84AllOOHU750to1000k","H84AllOOHU1000kmore","H85OOHUMedVal","H90SOOHU","H90HUwMorgt","H90HUwMtgHC<200","H90HUwMtgHC200to300","H90HUwMtgHC300to400","H90HUwMtgHC400to500","H90HUwMtgHC500to600","H90HUwMtgHC600to700","H90HUwMtgHC700to800","H90HUwMtgHC800to900","H90HUwMtgHC900to1000","H90HUwMtgHC1000to1250","H90HUwMtgHC1250to1500","H90HUwMtgHC1500to2000","H90HUwMtgHC2000to2500","H90HUwMtgHC2500to3000","H90HUwMtgHC3000orMore","H90HUwOutMorgt","H90HUwOutMtgHC<100","H90HUwOutMtgHC100to150","H90HUwOutMtgHC150to200","H90HUwOutMtgHC200to250","H90HUwOutMtgHC250to300","H90HUwOutMtgHC300to350","H90HUwOutMtgHC350to400","H90HUwOutMtgHC400to500","H90HUwOutMtgHC500to600","H90HUwOutMtgHC600to700","H90HUwOutMtgHC700to800","H90HUwOutMtgHC800to900","H90HUwOutMtgHC900to1000","H90HUwOutMtgHC1000orMore","H91MedianOCHUwMtg","H91MedianOCHUwOutMtg","H94SpecOOHU","H94HUwMortg","H94HUwMtgHC<10pct","H94HUwMtgHC10to15pct","H94HUwMtgHC15to20pct","H94HUwMtgHC20to25pct","H94HUwMtgHC25to30pct","H94HUwMtgHC30to35pct","H94HUwMtgHC35to40pct","H94HUwMtgHC40to50pct","H94HUwMtgHC50pctOrMore","H94HUwMtgHCpctNotComp","H94HUWOutMortg","H94HUWOutMortgHC<10pct","H94HUWOutMortgHC10to15pct","H94HUWOutMortgHC15to20pct","H94HUWOutMortgHC20to25pct","H94HUWOutMortgHC25to30pct","H94HUWOutMortgHC30to35pct","H94HUWOutMortgHC35to40pct","H94HUWOutMortgHC40to50pct","H94HUWOutMortgHC50pctOrMore","H94HUWOutMortgHCpctNotComp","H97SpecifOwnOccHU","H97SOOHUInc<10k","H97SOOHUInc<10kHC<20pct","H97SOOHUInc<10kHC20to25pct","H97SOOHUInc<10kHC25to30pct","H97SOOHUInc<10kHC30to35pct","H97SOOHUInc<10kHC>35pct","H97SOOHUInc<10kHCpctNotComput","H97SOOHUInc10to20k","H97SOOHUInc10to20kHC<20pct","H97SOOHUInc10to20kHC20to25pct","H97SOOHUInc10to20kHC25to30pct","H97SOOHUInc10to20kHC30to35pct","H97SOOHUInc10to20kHC>35pct","H97SOOHUInc10to20kHCpctNotComput","H97SOOHUInc20to35k","H97SOOHUInc20to35kRC<20pct","H97SOOHUInc20to35kRC20to25pct","H97SOOHUInc20to35kRC25to30pct","H97SOOHUInc20to35kRC30to35pct","H97SOOHUInc20to35kRC>35pct","H97SOOHUInc20to35kRCpctNotComput","H97SOOHUInc35to50k","H97SOOHUInc35to50kRC<20pct","H97SOOHUInc35to50kRC20to25pct","H97SOOHUInc35to50kRC25to30pct","H97SOOHUInc35to50kRC30to35pct","H97SOOHUInc35to50kRC>35pct","H97SOOHUInc35to50kRCpctNotCompute","H97SOOHUInc50to75k","H97SOOHUInc50to75kRC<20pct","H97SOOHUInc50to75kRC20to25pct","H97SOOHUInc50to75kRC25to30pct","H97SOOHUInc50to75kRC30to35pct","H97SOOHUInc50to75kRC>35pct","H97SOOHUInc50to75kRCpctNotComput","H97SOOHUInc75to100k","H97SOOHUInc75to100kRC<20pct","H97SOOHUInc75to100kRC20to25pct","H97SOOHUInc75to100kRC25to30pct","H97SOOHUInc75to100kRC30to35pct","H97SOOHUInc75to100kRC>35pct","H97SOOHUInc75to100kRCpctNotCompute","H97SOOHUInc100to150k","H97SOOHUInc100to150kRC<20pct","H97SOOHUInc100to150kRC20to25pct","H97SOOHUInc100to150kRC25to30pct","H97SOOHUInc100to150kRC30to35pct","H97SOOHUInc100to150kRC>35pct","H97SOOHUInc100to150kRCpctNotCompute","H97SOOHUInc>150k","H97SOOHUInc>150kRC<20pct","H97SOOHUInc>150kRC20to25pct","H97SOOHUInc>150kRC25to30pct","H97SOOHUInc>150kRC30to35pct","H97SOOHUInc>150kRC>35pct","H97SOOHUInc>150kRCpctNotCompute"]
[{"$f":"VLOOKUP(DropDownList!$B$47,CntyQryCensus!$A$408:$FN$450,A$1)","v":"Berlin"},{"$f":"VLOOKUP(DropDownList!$B$47,CntyQryCensus!$A$408:$FN$450,B$1)","v":"0000833"},{"$f":"VLOOKUP(DropDownList!$B$47,CntyQryCensus!$A$408:$FN$450,C$1)","v":"05140"},{"$f":"VLOOKUP(DropDownList!$B$47,CntyQryCensus!$A$408:$FN$450,D$1)","v":10331},{"$f":"VLOOKUP(DropDownList!$B$47,CntyQryCensus!$A$408:$FN$450,E$1)","v":2110},{"$f":"VLOOKUP(DropDownList!$B$47,CntyQryCensus!$A$408:$FN$450,F$1)","v":0},{"$f":"VLOOKUP(DropDownList!$B$47,CntyQryCensus!$A$408:$FN$450,G$1)","v":0},{"$f":"VLOOKUP(DropDownList!$B$47,CntyQryCensus!$A$408:$FN$450,H$1)","v":29},{"$f":"VLOOKUP(DropDownList!$B$47,CntyQryCensus!$A$408:$FN$450,I$1)","v":80},{"$f":"VLOOKUP(DropDownList!$B$47,CntyQryCensus!$A$408:$FN$450,J$1)","v":49},{"$f":"VLOOKUP(DropDownList!$B$47,CntyQryCensus!$A$408:$FN$450,K$1)","v":102},{"$f":"VLOOKUP(DropDownList!$B$47,CntyQryCensus!$A$408:$FN$450,L$1)","v":177},{"$f":"VLOOKUP(DropDownList!$B$47,CntyQryCensus!$A$408:$FN$450,M$1)","v":314},{"$f":"VLOOKUP(DropDownList!$B$47,CntyQryCensus!$A$408:$FN$450,N$1)","v":335},{"$f":"VLOOKUP(DropDownList!$B$47,CntyQryCensus!$A$408:$FN$450,O$1)","v":389},{"$f":"VLOOKUP(DropDownList!$B$47,CntyQryCensus!$A$408:$FN$450,P$1)","v":294},{"$f":"VLOOKUP(DropDownList!$B$47,CntyQryCensus!$A$408:$FN$450,Q$1)","v":146},{"$f":"VLOOKUP(DropDownList!$B$47,CntyQryCensus!$A$408:$FN$450,R$1)","v":89},{"$f":"VLOOKUP(DropDownList!$B$47,CntyQryCensus!$A$408:$FN$450,S$1)","v":64},{"$f":"VLOOKUP(DropDownList!$B$47,CntyQryCensus!$A$408:$FN$450,T$1)","v":29},{"$f":"VLOOKUP(DropDownList!$B$47,CntyQryCensus!$A$408:$FN$450,U$1)","v":8},{"$f":"VLOOKUP(DropDownList!$B$47,CntyQryCensus!$A$408:$FN$450,V$1)","v":0},{"$f":"VLOOKUP(DropDownList!$B$47,CntyQryCensus!$A$408:$FN$450,W$1)","v":0},{"$f":"VLOOKUP(DropDownList!$B$47,CntyQryCensus!$A$408:$FN$450,X$1)","v":5},{"$f":"VLOOKUP(DropDownList!$B$47,CntyQryCensus!$A$408:$FN$450,Y$1)","v":0},{"$f":"VLOOKUP(DropDownList!$B$47,CntyQryCensus!$A$408:$FN$450,Z$1)","v":0},{"$f":"VLOOKUP(DropDownList!$B$47,CntyQryCensus!$A$408:$FN$450,AA$1)","v":0},{"$f":"VLOOKUP(DropDownList!$B$47,CntyQryCensus!$A$408:$FN$450,AB$1)","v":0},{"$f":"VLOOKUP(DropDownList!$B$47,CntyQryCensus!$A$408:$FN$450,AC$1)","v":0},{"$f":"VLOOKUP(DropDownList!$B$47,CntyQryCensus!$A$408:$FN$450,AD$1)","v":59100},{"$f":"VLOOKUP(DropDownList!$B$47,CntyQryCensus!$A$408:$FN$450,AE$1)","v":2788},{"$f":"VLOOKUP(DropDownList!$B$47,CntyQryCensus!$A$408:$FN$450,AF$1)","v":14},{"$f":"VLOOKUP(DropDownList!$B$47,CntyQryCensus!$A$408:$FN$450,AG$1)","v":31},{"$f":"VLOOKUP(DropDownList!$B$47,CntyQryCensus!$A$408:$FN$450,AH$1)","v":43},{"$f":"VLOOKUP(DropDownList!$B$47,CntyQryCensus!$A$408:$FN$450,AI$1)","v":126},{"$f":"VLOOKUP(DropDownList!$B$47,CntyQryCensus!$A$408:$FN$450,AJ$1)","v":81},{"$f":"VLOOKUP(DropDownList!$B$47,CntyQryCensus!$A$408:$FN$450,AK$1)","v":165},{"$f":"VLOOKUP(DropDownList!$B$47,CntyQryCensus!$A$408:$FN$450,AL$1)","v":224},{"$f":"VLOOKUP(DropDownList!$B$47,CntyQryCensus!$A$408:$FN$450,AM$1)","v":387},{"$f":"VLOOKUP(DropDownList!$B$47,CntyQryCensus!$A$408:$FN$450,AN$1)","v":431},{"$f":"VLOOKUP(DropDownList!$B$47,CntyQryCensus!$A$408:$FN$450,AO$1)","v":519},{"$f":"VLOOKUP(DropDownList!$B$47,CntyQryCensus!$A$408:$FN$450,AP$1)","v":349},{"$f":"VLOOKUP(DropDownList!$B$47,CntyQryCensus!$A$408:$FN$450,AQ$1)","v":168},{"$f":"VLOOKUP(DropDownList!$B$47,CntyQryCensus!$A$408:$FN$450,AR$1)","v":101},{"$f":"VLOOKUP(DropDownList!$B$47,CntyQryCensus!$A$408:$FN$450,AS$1)","v":71},{"$f":"VLOOKUP(DropDownList!$B$47,CntyQryCensus!$A$408:$FN$450,AT$1)","v":29},{"$f":"VLOOKUP(DropDownList!$B$47,CntyQryCensus!$A$408:$FN$450,AU$1)","v":13},{"$f":"VLOOKUP(DropDownList!$B$47,CntyQryCensus!$A$408:$FN$450,AV$1)","v":6},{"$f":"VLOOKUP(DropDownList!$B$47,CntyQryCensus!$A$408:$FN$450,AW$1)","v":0},{"$f":"VLOOKUP(DropDownList!$B$47,CntyQryCensus!$A$408:$FN$450,AX$1)","v":25},{"$f":"VLOOKUP(DropDownList!$B$47,CntyQryCensus!$A$408:$FN$450,AY$1)","v":0},{"$f":"VLOOKUP(DropDownList!$B$47,CntyQryCensus!$A$408:$FN$450,AZ$1)","v":5},{"$f":"VLOOKUP(DropDownList!$B$47,CntyQryCensus!$A$408:$FN$450,BA$1)","v":0},{"$f":"VLOOKUP(DropDownList!$B$47,CntyQryCensus!$A$408:$FN$450,BB$1)","v":0},{"$f":"VLOOKUP(DropDownList!$B$47,CntyQryCensus!$A$408:$FN$450,BC$1)","v":0},{"$f":"VLOOKUP(DropDownList!$B$47,CntyQryCensus!$A$408:$FN$450,BD$1)","v":57500},{"$f":"VLOOKUP(DropDownList!$B$47,CntyQryCensus!$A$408:$FN$450,BE$1)","v":2110},{"$f":"VLOOKUP(DropDownList!$B$47,CntyQryCensus!$A$408:$FN$450,BF$1)","v":1119},{"$f":"VLOOKUP(DropDownList!$B$47,CntyQryCensus!$A$408:$FN$450,BG$1)","v":0},{"$f":"VLOOKUP(DropDownList!$B$47,CntyQryCensus!$A$408:$FN$450,BH$1)","v":0},{"$f":"VLOOKUP(DropDownList!$B$47,CntyQryCensus!$A$408:$FN$450,BI$1)","v":20},{"$f":"VLOOKUP(DropDownList!$B$47,CntyQryCensus!$A$408:$FN$450,BJ$1)","v":83},{"$f":"VLOOKUP(DropDownList!$B$47,CntyQryCensus!$A$408:$FN$450,BK$1)","v":172},{"$f":"VLOOKUP(DropDownList!$B$47,CntyQryCensus!$A$408:$FN$450,BL$1)","v":149},{"$f":"VLOOKUP(DropDownList!$B$47,CntyQryCensus!$A$408:$FN$450,BM$1)","v":197},{"$f":"VLOOKUP(DropDownList!$B$47,CntyQryCensus!$A$408:$FN$450,BN$1)","v":215},{"$f":"VLOOKUP(DropDownList!$B$47,CntyQryCensus!$A$408:$FN$450,BO$1)","v":98},{"$f":"VLOOKUP(DropDownList!$B$47,CntyQryCensus!$A$408:$FN$450,BP$1)","v":102},{"$f":"VLOOKUP(DropDownList!$B$47,CntyQryCensus!$A$408:$FN$450,BQ$1)","v":59},{"$f":"VLOOKUP(DropDownList!$B$47,CntyQryCensus!$A$408:$FN$450,BR$1)","v":24},{"$f":"VLOOKUP(DropDownList!$B$47,CntyQryCensus!$A$408:$FN$450,BS$1)","v":0},{"$f":"VLOOKUP(DropDownList!$B$47,CntyQryCensus!$A$408:$FN$450,BT$1)","v":0},{"$f":"VLOOKUP(DropDownList!$B$47,CntyQryCensus!$A$408:$FN$450,BU$1)","v":0},{"$f":"VLOOKUP(DropDownList!$B$47,CntyQryCensus!$A$408:$FN$450,BV$1)","v":991},{"$f":"VLOOKUP(DropDownList!$B$47,CntyQryCensus!$A$408:$FN$450,BW$1)","v":0},{"$f":"VLOOKUP(DropDownList!$B$47,CntyQryCensus!$A$408:$FN$450,BX$1)","v":0},{"$f":"VLOOKUP(DropDownList!$B$47,CntyQryCensus!$A$408:$FN$450,BY$1)","v":29},{"$f":"VLOOKUP(DropDownList!$B$47,CntyQryCensus!$A$408:$FN$450,BZ$1)","v":46},{"$f":"VLOOKUP(DropDownList!$B$47,CntyQryCensus!$A$408:$FN$450,CA$1)","v":74},{"$f":"VLOOKUP(DropDownList!$B$47,CntyQryCensus!$A$408:$FN$450,CB$1)","v":181},{"$f":"VLOOKUP(DropDownList!$B$47,CntyQryCensus!$A$408:$FN$450,CC$1)","v":240},{"$f":"VLOOKUP(DropDownList!$B$47,CntyQryCensus!$A$408:$FN$450,CD$1)","v":310},{"$f":"VLOOKUP(DropDownList!$B$47,CntyQryCensus!$A$408:$FN$450,CE$1)","v":99},{"$f":"VLOOKUP(DropDownList!$B$47,CntyQryCensus!$A$408:$FN$450,CF$1)","v":7},{"$f":"VLOOKUP(DropDownList!$B$47,CntyQryCensus!$A$408:$FN$450,CG$1)","v":0},{"$f":"VLOOKUP(DropDownList!$B$47,CntyQryCensus!$A$408:$FN$450,CH$1)","v":0},{"$f":"VLOOKUP(DropDownList!$B$47,CntyQryCensus!$A$408:$FN$450,CI$1)","v":0},{"$f":"VLOOKUP(DropDownList!$B$47,CntyQryCensus!$A$408:$FN$450,CJ$1)","v":5},{"$f":"VLOOKUP(DropDownList!$B$47,CntyQryCensus!$A$408:$FN$450,CK$1)","v":769},{"$f":"VLOOKUP(DropDownList!$B$47,CntyQryCensus!$A$408:$FN$450,CL$1)","v":384},{"$f":"VLOOKUP(DropDownList!$B$47,CntyQryCensus!$A$408:$FN$450,CM$1)","v":2110},{"$f":"VLOOKUP(DropDownList!$B$47,CntyQryCensus!$A$408:$FN$450,CN$1)","v":1119},{"$f":"VLOOKUP(DropDownList!$B$47,CntyQryCensus!$A$408:$FN$450,CO$1)","v":47},{"$f":"VLOOKUP(DropDownList!$B$47,CntyQryCensus!$A$408:$FN$450,CP$1)","v":236},{"$f":"VLOOKUP(DropDownList!$B$47,CntyQryCensus!$A$408:$FN$450,CQ$1)","v":366},{"$f":"VLOOKUP(DropDownList!$B$47,CntyQryCensus!$A$408:$FN$450,CR$1)","v":193},{"$f":"VLOOKUP(DropDownList!$B$47,CntyQryCensus!$A$408:$FN$450,CS$1)","v":89},{"$f":"VLOOKUP(DropDownList!$B$47,CntyQryCensus!$A$408:$FN$450,CT$1)","v":45},{"$f":"VLOOKUP(DropDownList!$B$47,CntyQryCensus!$A$408:$FN$450,CU$1)","v":34},{"$f":"VLOOKUP(DropDownList!$B$47,CntyQryCensus!$A$408:$FN$450,CV$1)","v":44},{"$f":"VLOOKUP(DropDownList!$B$47,CntyQryCensus!$A$408:$FN$450,CW$1)","v":51},{"$f":"VLOOKUP(DropDownList!$B$47,CntyQryCensus!$A$408:$FN$450,CX$1)","v":14},{"$f":"VLOOKUP(DropDownList!$B$47,CntyQryCensus!$A$408:$FN$450,CY$1)","v":991},{"$f":"VLOOKUP(DropDownList!$B$47,CntyQryCensus!$A$408:$FN$450,CZ$1)","v":213},{"$f":"VLOOKUP(DropDownList!$B$47,CntyQryCensus!$A$408:$FN$450,DA$1)","v":272},{"$f":"VLOOKUP(DropDownList!$B$47,CntyQryCensus!$A$408:$FN$450,DB$1)","v":131},{"$f":"VLOOKUP(DropDownList!$B$47,CntyQryCensus!$A$408:$FN$450,DC$1)","v":115},{"$f":"VLOOKUP(DropDownList!$B$47,CntyQryCensus!$A$408:$FN$450,DD$1)","v":76},{"$f":"VLOOKUP(DropDownList!$B$47,CntyQryCensus!$A$408:$FN$450,DE$1)","v":48},{"$f":"VLOOKUP(DropDownList!$B$47,CntyQryCensus!$A$408:$FN$450,DF$1)","v":29},{"$f":"VLOOKUP(DropDownList!$B$47,CntyQryCensus!$A$408:$FN$450,DG$1)","v":48},{"$f":"VLOOKUP(DropDownList!$B$47,CntyQryCensus!$A$408:$FN$450,DH$1)","v":46},{"$f":"VLOOKUP(DropDownList!$B$47,CntyQryCensus!$A$408:$FN$450,DI$1)","v":13},{"$f":"VLOOKUP(DropDownList!$B$47,CntyQryCensus!$A$408:$FN$450,DJ$1)","v":2110},{"$f":"VLOOKUP(DropDownList!$B$47,CntyQryCensus!$A$408:$FN$450,DK$1)","v":139},{"$f":"VLOOKUP(DropDownList!$B$47,CntyQryCensus!$A$408:$FN$450,DL$1)","v":0},{"$f":"VLOOKUP(DropDownList!$B$47,CntyQryCensus!$A$408:$FN$450,DM$1)","v":8},{"$f":"VLOOKUP(DropDownList!$B$47,CntyQryCensus!$A$408:$FN$450,DN$1)","v":0},{"$f":"VLOOKUP(DropDownList!$B$47,CntyQryCensus!$A$408:$FN$450,DO$1)","v":16},{"$f":"VLOOKUP(DropDownList!$B$47,CntyQryCensus!$A$408:$FN$450,DP$1)","v":88},{"$f":"VLOOKUP(DropDownList!$B$47,CntyQryCensus!$A$408:$FN$450,DQ$1)","v":27},{"$f":"VLOOKUP(DropDownList!$B$47,CntyQryCensus!$A$408:$FN$450,DR$1)","v":268},{"$f":"VLOOKUP(DropDownList!$B$47,CntyQryCensus!$A$408:$FN$450,DS$1)","v":37},{"$f":"VLOOKUP(DropDownList!$B$47,CntyQryCensus!$A$408:$FN$450,DT$1)","v":29},{"$f":"VLOOKUP(DropDownList!$B$47,CntyQryCensus!$A$408:$FN$450,DU$1)","v":58},{"$f":"VLOOKUP(DropDownList!$B$47,CntyQryCensus!$A$408:$FN$450,DV$1)","v":43},{"$f":"VLOOKUP(DropDownList!$B$47,CntyQryCensus!$A$408:$FN$450,DW$1)","v":101},{"$f":"VLOOKUP(DropDownList!$B$47,CntyQryCensus!$A$408:$FN$450,DX$1)","v":0},{"$f":"VLOOKUP(DropDownList!$B$47,CntyQryCensus!$A$408:$FN$450,DY$1)","v":384},{"$f":"VLOOKUP(DropDownList!$B$47,CntyQryCensus!$A$408:$FN$450,DZ$1)","v":181},{"$f":"VLOOKUP(DropDownList!$B$47,CntyQryCensus!$A$408:$FN$450,EA$1)","v":106},{"$f":"VLOOKUP(DropDownList!$B$47,CntyQryCensus!$A$408:$FN$450,EB$1)","v":63},{"$f":"VLOOKUP(DropDownList!$B$47,CntyQryCensus!$A$408:$FN$450,EC$1)","v":6},{"$f":"VLOOKUP(DropDownList!$B$47,CntyQryCensus!$A$408:$FN$450,ED$1)","v":28},{"$f":"VLOOKUP(DropDownList!$B$47,CntyQryCensus!$A$408:$FN$450,EE$1)","v":0},{"$f":"VLOOKUP(DropDownList!$B$47,CntyQryCensus!$A$408:$FN$450,EF$1)","v":528},{"$f":"VLOOKUP(DropDownList!$B$47,CntyQryCensus!$A$408:$FN$450,EG$1)","v":339},{"$f":"VLOOKUP(DropDownList!$B$47,CntyQryCensus!$A$408:$FN$450,EH$1)","v":103},{"$f":"VLOOKUP(DropDownList!$B$47,CntyQryCensus!$A$408:$FN$450,EI$1)","v":23},{"$f":"VLOOKUP(DropDownList!$B$47,CntyQryCensus!$A$408:$FN$450,EJ$1)","v":28},{"$f":"VLOOKUP(DropDownList!$B$47,CntyQryCensus!$A$408:$FN$450,EK$1)","v":35},{"$f":"VLOOKUP(DropDownList!$B$47,CntyQryCensus!$A$408:$FN$450,EL$1)","v":0},{"$f":"VLOOKUP(DropDownList!$B$47,CntyQryCensus!$A$408:$FN$450,EM$1)","v":586},{"$f":"VLOOKUP(DropDownList!$B$47,CntyQryCensus!$A$408:$FN$450,EN$1)","v":508},{"$f":"VLOOKUP(DropDownList!$B$47,CntyQryCensus!$A$408:$FN$450,EO$1)","v":57},{"$f":"VLOOKUP(DropDownList!$B$47,CntyQryCensus!$A$408:$FN$450,EP$1)","v":21},{"$f":"VLOOKUP(DropDownList!$B$47,CntyQryCensus!$A$408:$FN$450,EQ$1)","v":0},{"$f":"VLOOKUP(DropDownList!$B$47,CntyQryCensus!$A$408:$FN$450,ER$1)","v":0},{"$f":"VLOOKUP(DropDownList!$B$47,CntyQryCensus!$A$408:$FN$450,ES$1)","v":0},{"$f":"VLOOKUP(DropDownList!$B$47,CntyQryCensus!$A$408:$FN$450,ET$1)","v":135},{"$f":"VLOOKUP(DropDownList!$B$47,CntyQryCensus!$A$408:$FN$450,EU$1)","v":130},{"$f":"VLOOKUP(DropDownList!$B$47,CntyQryCensus!$A$408:$FN$450,EV$1)","v":5},{"$f":"VLOOKUP(DropDownList!$B$47,CntyQryCensus!$A$408:$FN$450,EW$1)","v":0},{"$f":"VLOOKUP(DropDownList!$B$47,CntyQryCensus!$A$408:$FN$450,EX$1)","v":0},{"$f":"VLOOKUP(DropDownList!$B$47,CntyQryCensus!$A$408:$FN$450,EY$1)","v":0},{"$f":"VLOOKUP(DropDownList!$B$47,CntyQryCensus!$A$408:$FN$450,EZ$1)","v":0},{"$f":"VLOOKUP(DropDownList!$B$47,CntyQryCensus!$A$408:$FN$450,FA$1)","v":61},{"$f":"VLOOKUP(DropDownList!$B$47,CntyQryCensus!$A$408:$FN$450,FB$1)","v":61},{"$f":"VLOOKUP(DropDownList!$B$47,CntyQryCensus!$A$408:$FN$450,FC$1)","v":0},{"$f":"VLOOKUP(DropDownList!$B$47,CntyQryCensus!$A$408:$FN$450,FD$1)","v":0},{"$f":"VLOOKUP(DropDownList!$B$47,CntyQryCensus!$A$408:$FN$450,FE$1)","v":0},{"$f":"VLOOKUP(DropDownList!$B$47,CntyQryCensus!$A$408:$FN$450,FF$1)","v":0},{"$f":"VLOOKUP(DropDownList!$B$47,CntyQryCensus!$A$408:$FN$450,FG$1)","v":0},{"$f":"VLOOKUP(DropDownList!$B$47,CntyQryCensus!$A$408:$FN$450,FH$1)","v":9},{"$f":"VLOOKUP(DropDownList!$B$47,CntyQryCensus!$A$408:$FN$450,FI$1)","v":9},{"$f":"VLOOKUP(DropDownList!$B$47,CntyQryCensus!$A$408:$FN$450,FJ$1)","v":0},{"$f":"VLOOKUP(DropDownList!$B$47,CntyQryCensus!$A$408:$FN$450,FK$1)","v":0},{"$f":"VLOOKUP(DropDownList!$B$47,CntyQryCensus!$A$408:$FN$450,FL$1)","v":0},{"$f":"VLOOKUP(DropDownList!$B$47,CntyQryCensus!$A$408:$FN$450,FM$1)","v":0},{"$f":"VLOOKUP(DropDownList!$B$47,CntyQryCensus!$A$408:$FN$450,FN$1)","v":0}]
[]
[]
["Census 2000 SummaryFile3 Sample Data  -  SF3TownQry9HHIncomeByTenure"]
["NAME","LOGRECNO","COUNTY","TotalPop","HCT11OccHU","HCT11OwnOccHU","HCT11OOHUInc<5K","HCT11OOHUInc5to10K","HCT11OOHUInc10to15K","HCT11OOHUInc15to20K","HCT11OOHUInc20to25K","HCT11OOHUInc25to35K","HCT11OOHUInc35to50K","HCT11OOHUInc50to75K","HCT11OOHUInc75to100K","HCT11OOHUInc100to150K","HCT11OOHUInc>150K","HCT11RentOccHU","HCT11ROHUInc<5K","HCT11ROHUInc5to10K","HCT11ROHUInc10to15K","HCT11ROHUInc15to20K","HCT11ROHUInc20to25K","HCT11ROHUInc25to35K","HCT11ROHUInc35to50K","HCT11ROHUInc50to75K","HCT11ROHUInc75to100K","HCT11ROHUInc100to150K","HCT11ROHUInc>150K","HCT12MedHHInc","HCT12MedOwnOccHHInc","HCT12MedRentOccHHInc","Summary Level"]
[{"$f":"VLOOKUP(DropDownList!$B$47,CntyQryCensus!$A$459:$AG$501,A$1)","v":"Berlin"},{"$f":"VLOOKUP(DropDownList!$B$47,CntyQryCensus!$A$459:$AG$501,B$1)","v":"0000833"},{"$f":"VLOOKUP(DropDownList!$B$47,CntyQryCensus!$A$459:$AG$501,C$1)","v":"05140"},{"$f":"VLOOKUP(DropDownList!$B$47,CntyQryCensus!$A$459:$AG$501,D$1)","v":10331},{"$f":"VLOOKUP(DropDownList!$B$47,CntyQryCensus!$A$459:$AG$501,E$1)","v":4555},{"$f":"VLOOKUP(DropDownList!$B$47,CntyQryCensus!$A$459:$AG$501,F$1)","v":2788},{"$f":"VLOOKUP(DropDownList!$B$47,CntyQryCensus!$A$459:$AG$501,G$1)","v":45},{"$f":"VLOOKUP(DropDownList!$B$47,CntyQryCensus!$A$459:$AG$501,H$1)","v":140},{"$f":"VLOOKUP(DropDownList!$B$47,CntyQryCensus!$A$459:$AG$501,I$1)","v":221},{"$f":"VLOOKUP(DropDownList!$B$47,CntyQryCensus!$A$459:$AG$501,J$1)","v":199},{"$f":"VLOOKUP(DropDownList!$B$47,CntyQryCensus!$A$459:$AG$501,K$1)","v":191},{"$f":"VLOOKUP(DropDownList!$B$47,CntyQryCensus!$A$459:$AG$501,L$1)","v":365},{"$f":"VLOOKUP(DropDownList!$B$47,CntyQryCensus!$A$459:$AG$501,M$1)","v":681},{"$f":"VLOOKUP(DropDownList!$B$47,CntyQryCensus!$A$459:$AG$501,N$1)","v":678},{"$f":"VLOOKUP(DropDownList!$B$47,CntyQryCensus!$A$459:$AG$501,O$1)","v":158},{"$f":"VLOOKUP(DropDownList!$B$47,CntyQryCensus!$A$459:$AG$501,P$1)","v":93},{"$f":"VLOOKUP(DropDownList!$B$47,CntyQryCensus!$A$459:$AG$501,Q$1)","v":17},{"$f":"VLOOKUP(DropDownList!$B$47,CntyQryCensus!$A$459:$AG$501,R$1)","v":1767},{"$f":"VLOOKUP(DropDownList!$B$47,CntyQryCensus!$A$459:$AG$501,S$1)","v":92},{"$f":"VLOOKUP(DropDownList!$B$47,CntyQryCensus!$A$459:$AG$501,T$1)","v":402},{"$f":"VLOOKUP(DropDownList!$B$47,CntyQryCensus!$A$459:$AG$501,U$1)","v":278},{"$f":"VLOOKUP(DropDownList!$B$47,CntyQryCensus!$A$459:$AG$501,V$1)","v":222},{"$f":"VLOOKUP(DropDownList!$B$47,CntyQryCensus!$A$459:$AG$501,W$1)","v":166},{"$f":"VLOOKUP(DropDownList!$B$47,CntyQryCensus!$A$459:$AG$501,X$1)","v":290},{"$f":"VLOOKUP(DropDownList!$B$47,CntyQryCensus!$A$459:$AG$501,Y$1)","v":181},{"$f":"VLOOKUP(DropDownList!$B$47,CntyQryCensus!$A$459:$AG$501,Z$1)","v":93},{"$f":"VLOOKUP(DropDownList!$B$47,CntyQryCensus!$A$459:$AG$501,AA$1)","v":17},{"$f":"VLOOKUP(DropDownList!$B$47,CntyQryCensus!$A$459:$AG$501,AB$1)","v":19},{"$f":"VLOOKUP(DropDownList!$B$47,CntyQryCensus!$A$459:$AG$501,AC$1)","v":7},{"$f":"VLOOKUP(DropDownList!$B$47,CntyQryCensus!$A$459:$AG$501,AD$1)","v":29566},{"$f":"VLOOKUP(DropDownList!$B$47,CntyQryCensus!$A$459:$AG$501,AE$1)","v":40000},{"$f":"VLOOKUP(DropDownList!$B$47,CntyQryCensus!$A$459:$AG$501,AF$1)","v":17080},{"$f":"VLOOKUP(DropDownList!$B$47,CntyQryCensus!$A$459:$AG$501,AG$1)","v":"060"}]
[]
[]
[]
[]
[]
[{"$f":"VLOOKUP(DropDownList!$B$47,CntyQryCensus!$A$510:$DA$552,A$1)","v":"Berlin"}]
[]
[]
[]
[]
[]
[]
[]
["Census 2000 SummaryFile3 Sample Data - SF3TownQry10Disabil"]
["NAME","LOGRECNO","COUNTY","TotalPop","PCT026001-NonInstPop5yrs+","PCT026002-MaleNonInstPop5yrs+","PCT026003","PCT026004","PCT026005","PCT026006","PCT026007","PCT026008","PCT026009","PCT026010","PCT026011","PCT026012","PCT026013","PCT026014","PCT026015","PCT026016","PCT026017","PCT026018","PCT026019","PCT026020","PCT026021","PCT026022","PCT026023","PCT026024","PCT026025","PCT026026","PCT026027","PCT026028","PCT026029","PCT026030","PCT026031","PCT026032","PCT026033","PCT026034","PCT026035","PCT026036","PCT026037","PCT026038","PCT026039","PCT026040","PCT026041","PCT026042","PCT026043","PCT026044","PCT026045","PCT026046","PCT026047","PCT026048","PCT026049","PCT026050","PCT026051","PCT026052","PCT026053","PCT026054","PCT026055","PCT026056","PCT026057","PCT026058","PCT026059","PCT026060","PCT026061","PCT026062","PCT026063","PCT026064","PCT026065","PCT026066","PCT026067","PCT026068","PCT026069","PCT026070","PCT026071","PCT026072","PCT026073","PCT026074","PCT026075","PCT026076","PCT026077","PCT026078","PCT026079","PCT026080","PCT026081","PCT026082","PCT026083","PCT026084","PCT026085","PCT026086","PCT026087","PCT026088","PCT026089","PCT026090","PCT026091","PCT026092","PCT026093","PCT026094","PCT026095","PCT026096","PCT026097","PCT026098","PCT026099","PCT026100","PCT026101"]
[{"$f":"VLOOKUP(DropDownList!$B$47,CntyQryCensus!$A$510:$DA$552,A$1)","v":"Berlin"},{"$f":"VLOOKUP(DropDownList!$B$47,CntyQryCensus!$A$510:$DA$552,B$1)","v":"0000833"},{"$f":"VLOOKUP(DropDownList!$B$47,CntyQryCensus!$A$510:$DA$552,C$1)","v":"05140"},{"$f":"VLOOKUP(DropDownList!$B$47,CntyQryCensus!$A$510:$DA$552,D$1)","v":10331},{"$f":"VLOOKUP(DropDownList!$B$47,CntyQryCensus!$A$510:$DA$552,E$1)","v":9612},{"$f":"VLOOKUP(DropDownList!$B$47,CntyQryCensus!$A$510:$DA$552,F$1)","v":4593},{"$f":"VLOOKUP(DropDownList!$B$47,CntyQryCensus!$A$510:$DA$552,G$1)","v":750},{"$f":"VLOOKUP(DropDownList!$B$47,CntyQryCensus!$A$510:$DA$552,H$1)","v":79},{"$f":"VLOOKUP(DropDownList!$B$47,CntyQryCensus!$A$510:$DA$552,I$1)","v":11},{"$f":"VLOOKUP(DropDownList!$B$47,CntyQryCensus!$A$510:$DA$552,J$1)","v":0},{"$f":"VLOOKUP(DropDownList!$B$47,CntyQryCensus!$A$510:$DA$552,K$1)","v":68},{"$f":"VLOOKUP(DropDownList!$B$47,CntyQryCensus!$A$510:$DA$552,L$1)","v":0},{"$f":"VLOOKUP(DropDownList!$B$47,CntyQryCensus!$A$510:$DA$552,M$1)","v":0},{"$f":"VLOOKUP(DropDownList!$B$47,CntyQryCensus!$A$510:$DA$552,N$1)","v":0},{"$f":"VLOOKUP(DropDownList!$B$47,CntyQryCensus!$A$510:$DA$552,O$1)","v":0},{"$f":"VLOOKUP(DropDownList!$B$47,CntyQryCensus!$A$510:$DA$552,P$1)","v":671},{"$f":"VLOOKUP(DropDownList!$B$47,CntyQryCensus!$A$510:$DA$552,Q$1)","v":291},{"$f":"VLOOKUP(DropDownList!$B$47,CntyQryCensus!$A$510:$DA$552,R$1)","v":20},{"$f":"VLOOKUP(DropDownList!$B$47,CntyQryCensus!$A$510:$DA$552,S$1)","v":5},{"$f":"VLOOKUP(DropDownList!$B$47,CntyQryCensus!$A$510:$DA$552,T$1)","v":0},{"$f":"VLOOKUP(DropDownList!$B$47,CntyQryCensus!$A$510:$DA$552,U$1)","v":0},{"$f":"VLOOKUP(DropDownList!$B$47,CntyQryCensus!$A$510:$DA$552,V$1)","v":0},{"$f":"VLOOKUP(DropDownList!$B$47,CntyQryCensus!$A$510:$DA$552,W$1)","v":5},{"$f":"VLOOKUP(DropDownList!$B$47,CntyQryCensus!$A$510:$DA$552,X$1)","v":10},{"$f":"VLOOKUP(DropDownList!$B$47,CntyQryCensus!$A$510:$DA$552,Y$1)","v":17},{"$f":"VLOOKUP(DropDownList!$B$47,CntyQryCensus!$A$510:$DA$552,Z$1)","v":0},{"$f":"VLOOKUP(DropDownList!$B$47,CntyQryCensus!$A$510:$DA$552,AA$1)","v":17},{"$f":"VLOOKUP(DropDownList!$B$47,CntyQryCensus!$A$510:$DA$552,AB$1)","v":0},{"$f":"VLOOKUP(DropDownList!$B$47,CntyQryCensus!$A$510:$DA$552,AC$1)","v":17},{"$f":"VLOOKUP(DropDownList!$B$47,CntyQryCensus!$A$510:$DA$552,AD$1)","v":254},{"$f":"VLOOKUP(DropDownList!$B$47,CntyQryCensus!$A$510:$DA$552,AE$1)","v":2687},{"$f":"VLOOKUP(DropDownList!$B$47,CntyQryCensus!$A$510:$DA$552,AF$1)","v":433},{"$f":"VLOOKUP(DropDownList!$B$47,CntyQryCensus!$A$510:$DA$552,AG$1)","v":71},{"$f":"VLOOKUP(DropDownList!$B$47,CntyQryCensus!$A$510:$DA$552,AH$1)","v":93},{"$f":"VLOOKUP(DropDownList!$B$47,CntyQryCensus!$A$510:$DA$552,AI$1)","v":16},{"$f":"VLOOKUP(DropDownList!$B$47,CntyQryCensus!$A$510:$DA$552,AJ$1)","v":0},{"$f":"VLOOKUP(DropDownList!$B$47,CntyQryCensus!$A$510:$DA$552,AK$1)","v":7},{"$f":"VLOOKUP(DropDownList!$B$47,CntyQryCensus!$A$510:$DA$552,AL$1)","v":246},{"$f":"VLOOKUP(DropDownList!$B$47,CntyQryCensus!$A$510:$DA$552,AM$1)","v":341},{"$f":"VLOOKUP(DropDownList!$B$47,CntyQryCensus!$A$510:$DA$552,AN$1)","v":50},{"$f":"VLOOKUP(DropDownList!$B$47,CntyQryCensus!$A$510:$DA$552,AO$1)","v":291},{"$f":"VLOOKUP(DropDownList!$B$47,CntyQryCensus!$A$510:$DA$552,AP$1)","v":91},{"$f":"VLOOKUP(DropDownList!$B$47,CntyQryCensus!$A$510:$DA$552,AQ$1)","v":200},{"$f":"VLOOKUP(DropDownList!$B$47,CntyQryCensus!$A$510:$DA$552,AR$1)","v":1913},{"$f":"VLOOKUP(DropDownList!$B$47,CntyQryCensus!$A$510:$DA$552,AS$1)","v":865},{"$f":"VLOOKUP(DropDownList!$B$47,CntyQryCensus!$A$510:$DA$552,AT$1)","v":206},{"$f":"VLOOKUP(DropDownList!$B$47,CntyQryCensus!$A$510:$DA$552,AU$1)","v":10},{"$f":"VLOOKUP(DropDownList!$B$47,CntyQryCensus!$A$510:$DA$552,AV$1)","v":104},{"$f":"VLOOKUP(DropDownList!$B$47,CntyQryCensus!$A$510:$DA$552,AW$1)","v":18},{"$f":"VLOOKUP(DropDownList!$B$47,CntyQryCensus!$A$510:$DA$552,AX$1)","v":0},{"$f":"VLOOKUP(DropDownList!$B$47,CntyQryCensus!$A$510:$DA$552,AY$1)","v":74},{"$f":"VLOOKUP(DropDownList!$B$47,CntyQryCensus!$A$510:$DA$552,AZ$1)","v":231},{"$f":"VLOOKUP(DropDownList!$B$47,CntyQryCensus!$A$510:$DA$552,BA$1)","v":102},{"$f":"VLOOKUP(DropDownList!$B$47,CntyQryCensus!$A$510:$DA$552,BB$1)","v":129},{"$f":"VLOOKUP(DropDownList!$B$47,CntyQryCensus!$A$510:$DA$552,BC$1)","v":428},{"$f":"VLOOKUP(DropDownList!$B$47,CntyQryCensus!$A$510:$DA$552,BD$1)","v":5019},{"$f":"VLOOKUP(DropDownList!$B$47,CntyQryCensus!$A$510:$DA$552,BE$1)","v":643},{"$f":"VLOOKUP(DropDownList!$B$47,CntyQryCensus!$A$510:$DA$552,BF$1)","v":36},{"$f":"VLOOKUP(DropDownList!$B$47,CntyQryCensus!$A$510:$DA$552,BG$1)","v":0},{"$f":"VLOOKUP(DropDownList!$B$47,CntyQryCensus!$A$510:$DA$552,BH$1)","v":5},{"$f":"VLOOKUP(DropDownList!$B$47,CntyQryCensus!$A$510:$DA$552,BI$1)","v":31},{"$f":"VLOOKUP(DropDownList!$B$47,CntyQryCensus!$A$510:$DA$552,BJ$1)","v":0},{"$f":"VLOOKUP(DropDownList!$B$47,CntyQryCensus!$A$510:$DA$552,BK$1)","v":0},{"$f":"VLOOKUP(DropDownList!$B$47,CntyQryCensus!$A$510:$DA$552,BL$1)","v":0},{"$f":"VLOOKUP(DropDownList!$B$47,CntyQryCensus!$A$510:$DA$552,BM$1)","v":0},{"$f":"VLOOKUP(DropDownList!$B$47,CntyQryCensus!$A$510:$DA$552,BN$1)","v":607},{"$f":"VLOOKUP(DropDownList!$B$47,CntyQryCensus!$A$510:$DA$552,BO$1)","v":325},{"$f":"VLOOKUP(DropDownList!$B$47,CntyQryCensus!$A$510:$DA$552,BP$1)","v":23},{"$f":"VLOOKUP(DropDownList!$B$47,CntyQryCensus!$A$510:$DA$552,BQ$1)","v":0},{"$f":"VLOOKUP(DropDownList!$B$47,CntyQryCensus!$A$510:$DA$552,BR$1)","v":6},{"$f":"VLOOKUP(DropDownList!$B$47,CntyQryCensus!$A$510:$DA$552,BS$1)","v":0},{"$f":"VLOOKUP(DropDownList!$B$47,CntyQryCensus!$A$510:$DA$552,BT$1)","v":0},{"$f":"VLOOKUP(DropDownList!$B$47,CntyQryCensus!$A$510:$DA$552,BU$1)","v":0},{"$f":"VLOOKUP(DropDownList!$B$47,CntyQryCensus!$A$510:$DA$552,BV$1)","v":17},{"$f":"VLOOKUP(DropDownList!$B$47,CntyQryCensus!$A$510:$DA$552,BW$1)","v":10},{"$f":"VLOOKUP(DropDownList!$B$47,CntyQryCensus!$A$510:$DA$552,BX$1)","v":5},{"$f":"VLOOKUP(DropDownList!$B$47,CntyQryCensus!$A$510:$DA$552,BY$1)","v":5},{"$f":"VLOOKUP(DropDownList!$B$47,CntyQryCensus!$A$510:$DA$552,BZ$1)","v":5},{"$f":"VLOOKUP(DropDownList!$B$47,CntyQryCensus!$A$510:$DA$552,CA$1)","v":0},{"$f":"VLOOKUP(DropDownList!$B$47,CntyQryCensus!$A$510:$DA$552,CB$1)","v":292},{"$f":"VLOOKUP(DropDownList!$B$47,CntyQryCensus!$A$510:$DA$552,CC$1)","v":2747},{"$f":"VLOOKUP(DropDownList!$B$47,CntyQryCensus!$A$510:$DA$552,CD$1)","v":381},{"$f":"VLOOKUP(DropDownList!$B$47,CntyQryCensus!$A$510:$DA$552,CE$1)","v":12},{"$f":"VLOOKUP(DropDownList!$B$47,CntyQryCensus!$A$510:$DA$552,CF$1)","v":64},{"$f":"VLOOKUP(DropDownList!$B$47,CntyQryCensus!$A$510:$DA$552,CG$1)","v":70},{"$f":"VLOOKUP(DropDownList!$B$47,CntyQryCensus!$A$510:$DA$552,CH$1)","v":0},{"$f":"VLOOKUP(DropDownList!$B$47,CntyQryCensus!$A$510:$DA$552,CI$1)","v":51},{"$f":"VLOOKUP(DropDownList!$B$47,CntyQryCensus!$A$510:$DA$552,CJ$1)","v":184},{"$f":"VLOOKUP(DropDownList!$B$47,CntyQryCensus!$A$510:$DA$552,CK$1)","v":299},{"$f":"VLOOKUP(DropDownList!$B$47,CntyQryCensus!$A$510:$DA$552,CL$1)","v":92},{"$f":"VLOOKUP(DropDownList!$B$47,CntyQryCensus!$A$510:$DA$552,CM$1)","v":207},{"$f":"VLOOKUP(DropDownList!$B$47,CntyQryCensus!$A$510:$DA$552,CN$1)","v":61},{"$f":"VLOOKUP(DropDownList!$B$47,CntyQryCensus!$A$510:$DA$552,CO$1)","v":146},{"$f":"VLOOKUP(DropDownList!$B$47,CntyQryCensus!$A$510:$DA$552,CP$1)","v":2067},{"$f":"VLOOKUP(DropDownList!$B$47,CntyQryCensus!$A$510:$DA$552,CQ$1)","v":1304},{"$f":"VLOOKUP(DropDownList!$B$47,CntyQryCensus!$A$510:$DA$552,CR$1)","v":333},{"$f":"VLOOKUP(DropDownList!$B$47,CntyQryCensus!$A$510:$DA$552,CS$1)","v":71},{"$f":"VLOOKUP(DropDownList!$B$47,CntyQryCensus!$A$510:$DA$552,CT$1)","v":110},{"$f":"VLOOKUP(DropDownList!$B$47,CntyQryCensus!$A$510:$DA$552,CU$1)","v":12},{"$f":"VLOOKUP(DropDownList!$B$47,CntyQryCensus!$A$510:$DA$552,CV$1)","v":11},{"$f":"VLOOKUP(DropDownList!$B$47,CntyQryCensus!$A$510:$DA$552,CW$1)","v":129},{"$f":"VLOOKUP(DropDownList!$B$47,CntyQryCensus!$A$510:$DA$552,CX$1)","v":324},{"$f":"VLOOKUP(DropDownList!$B$47,CntyQryCensus!$A$510:$DA$552,CY$1)","v":94},{"$f":"VLOOKUP(DropDownList!$B$47,CntyQryCensus!$A$510:$DA$552,CZ$1)","v":230},{"$f":"VLOOKUP(DropDownList!$B$47,CntyQryCensus!$A$510:$DA$552,DA$1)","v":647}]
[]
[]
[]
[]
[{"$f":"VLOOKUP(DropDownList!$B$47,CntyQryCensus!$A$510:$DA$552,A$1)","v":"Berlin"}]
[]
[]
[]
["ACS",2,{"$f":"B105+1","v":3},{"$f":"C105+1","v":4},5,6,7,8,9,10,11,{"$f":"K105+1","v":12},13,14,15,{"$f":"O105+1","v":16},17,18,19,20,21,22,23,24,25,26,27,28,29,30,31,32,33,34,35,36,37,38,39,40,41,42,43,44,45,46,47,48,49,50,51,52,53,54,55,56,57,58,59,60,61,62,63,64,65,66,67,{"$f":"BO105+1","v":68},69,70,71,72,73,74,75,76,77,78,79,80,81,82,83,84,85,86,87,88,89,90,91,92,93,94,95,96,97,98,99,100,101,102,103,104,105,106,107,108,109,110,111,112,113,114,115,116,117,118,119,120,121,122,123,124,125]
["Househould Data (Housing Unit Type)"]
["NAME","TotalHU",{"$f":"\"MOE \"&B107","v":"MOE TotalHU"},"TotalOccHU",{"$f":"\"MOE \"&D107","v":"MOE TotalOccHU"},"TotalOwnerOccUn",{"$f":"\"MOE \"&F107","v":"MOE TotalOwnerOccUn"},"TotalRenterOccn",{"$f":"\"MOE \"&H107","v":"MOE TotalRenterOccn"},"TotalVacantUntis",{"$f":"\"MOE \"&J107","v":"MOE TotalVacantUntis"},"VacantUnitsForRent",{"$f":"\"MOE \"&L107","v":"MOE VacantUnitsForRent"},"VacantUnitRentedNotOcc",{"$f":"\"MOE \"&N107","v":"MOE VacantUnitRentedNotOcc"},"VacantUnitForSale",{"$f":"\"MOE \"&P107","v":"MOE VacantUnitForSale"},"VacantUnitSoldNotOcc",{"$f":"\"MOE \"&R107","v":"MOE VacantUnitSoldNotOcc"},"VacantUnitSeasonalRec",{"$f":"\"MOE \"&T107","v":"MOE VacantUnitSeasonalRec"},"TotalPopInHousingUnits",{"$f":"\"MOE \"&V107","v":"MOE TotalPopInHousingUnits"},"OwnerOccPopHousingUnits",{"$f":"\"MOE \"&X107","v":"MOE OwnerOccPopHousingUnits"},"RenterOccPopHousingUnits",{"$f":"\"MOE \"&Z107","v":"MOE RenterOccPopHousingUnits"},"TotalUntis",{"$f":"\"MOE \"&AB107","v":"MOE TotalUntis"},"TotalOwnerOccUnits",{"$f":"\"MOE \"&AD107","v":"MOE TotalOwnerOccUnits"},"SigFamOwnerOcc",{"$f":"\"MOE \"&AF107","v":"MOE SigFamOwnerOcc"},"MultiFamOwnerOcc",{"$f":"\"MOE \"&AH107","v":"MOE MultiFamOwnerOcc"},"MobileOwnerOcc",{"$f":"\"MOE \"&AJ107","v":"MOE MobileOwnerOcc"},"TotalRenterOccUnits",{"$f":"\"MOE \"&AL107","v":"MOE TotalRenterOccUnits"},"SigFamRenterOcc",{"$f":"\"MOE \"&AN107","v":"MOE SigFamRenterOcc"},"MultiFamRenterOcc",{"$f":"\"MOE \"&AP107","v":"MOE MultiFamRenterOcc"},"MobileRenterOcc",{"$f":"\"MOE \"&AR107","v":"MOE MobileRenterOcc"},"TotalSigFamilyUnits",{"$f":"\"MOE \"&AT107","v":"MOE TotalSigFamilyUnits"},"TotalMultiFamilyUnits",{"$f":"\"MOE \"&AV107","v":"MOE TotalMultiFamilyUnits"},"TotalMobileUnits",{"$f":"\"MOE \"&AX107","v":"MOE TotalMobileUnits"},"YrHouseBuilt2014Later",{"$f":"\"MOE \"&AZ107","v":"MOE YrHouseBuilt2014Later"},"YrHouseBuilt2010-2013",{"$f":"\"MOE \"&BB107","v":"MOE YrHouseBuilt2010-2013"},"YrHouseBuilt2000-2009",{"$f":"\"MOE \"&BD107","v":"MOE YrHouseBuilt2000-2009"},"YrHouseBuilt1990-1999",{"$f":"\"MOE \"&BF107","v":"MOE YrHouseBuilt1990-1999"},"YrHouseBuilt1980-1989",{"$f":"\"MOE \"&BH107","v":"MOE YrHouseBuilt1980-1989"},"YrHouseBuilt1970-1979",{"$f":"\"MOE \"&BJ107","v":"MOE YrHouseBuilt1970-1979"},"YrHouseBuilt1960-1969",{"$f":"\"MOE \"&BL107","v":"MOE YrHouseBuilt1960-1969"},"YrHouseBuilt1950-1959",{"$f":"\"MOE \"&BN107","v":"MOE YrHouseBuilt1950-1959"},"YrHouseBuilt1940-1949",{"$f":"\"MOE \"&BP107","v":"MOE YrHouseBuilt1940-1949"},"YrHouseBuilt1939orEarlier",{"$f":"\"MOE \"&BR107","v":"MOE YrHouseBuilt1939orEarlier"},"NoBedrooms",{"$f":"\"MOE \"&BT107","v":"MOE NoBedrooms"},"1Bedroom",{"$f":"\"MOE \"&BV107","v":"MOE 1Bedroom"},"2Bedroom",{"$f":"\"MOE \"&BX107","v":"MOE 2Bedroom"},"3Bedroom",{"$f":"\"MOE \"&BZ107","v":"MOE 3Bedroom"},"4+Bedroom",{"$f":"\"MOE \"&CB107","v":"MOE 4+Bedroom"}]
[{"$f":"VLOOKUP(DropDownList!$B$47,CntyQryCensus!$A$510:$DA$552,A$1)","v":"Berlin"},4784,216,3977,201,2228,192,1749,196,807,192,100,72,6,11,73,62,0,18,144,82,8420,255,4999,538,3421,493,4478,193,2876,199,2482,197,372,120.61509026651682,22,28.844410203711913,1602,211,139,72,1451,233.14373249135392,12,24.083189157584592,2812,253,2295,317.61612049768507,34,32.249030993194197,0,18,19,15,74,48,104,61,299,107,465,131,429,139,623,127,336,96,2435,240,90,72,703,156,1652,224,1908,209,788,155.41557193537591,null,null,null,null,null,null,null,null,"Lancaster",null,"Estimate","Margin Of Error",1776,162]
[]
["Disability Data"]
["NAME","TotalPop",{"$f":"\"MOE \"&B111","v":"MOE TotalPop"},"PopUnder 5 years:",{"$f":"\"MOE \"&D111","v":"MOE PopUnder 5 years:"},{"$f":"D$111&\"-WithDisability\"","v":"PopUnder 5 years:-WithDisability"},{"$f":"\"MOE \"&F111","v":"MOE PopUnder 5 years:-WithDisability"},{"$f":"D111&\"-NoDisability\"","v":"PopUnder 5 years:-NoDisability"},{"$f":"\"MOE \"&H111","v":"MOE PopUnder 5 years:-NoDisability"},"PopUnder 5 to 17years:",{"$f":"\"MOE \"&J111","v":"MOE PopUnder 5 to 17years:"},{"$f":"J$111&\"-WithDisability\"","v":"PopUnder 5 to 17years:-WithDisability"},{"$f":"\"MOE \"&L111","v":"MOE PopUnder 5 to 17years:-WithDisability"},{"$f":"J111&\"-NoDisability\"","v":"PopUnder 5 to 17years:-NoDisability"},{"$f":"\"MOE \"&N111","v":"MOE PopUnder 5 to 17years:-NoDisability"},"PopUnder 18 to 34 years:",{"$f":"\"MOE \"&P111","v":"MOE PopUnder 18 to 34 years:"},{"$f":"P$111&\"-WithDisability\"","v":"PopUnder 18 to 34 years:-WithDisability"},{"$f":"\"MOE \"&R111","v":"MOE PopUnder 18 to 34 years:-WithDisability"},{"$f":"P111&\"-NoDisability\"","v":"PopUnder 18 to 34 years:-NoDisability"},{"$f":"\"MOE \"&T111","v":"MOE PopUnder 18 to 34 years:-NoDisability"},"Pop 35 years to 64:",{"$f":"\"MOE \"&V111","v":"MOE Pop 35 years to 64:"},{"$f":"$V$111&\"-WithDisability\"","v":"Pop 35 years to 64:-WithDisability"},{"$f":"\"MOE \"&X111","v":"MOE Pop 35 years to 64:-WithDisability"},{"$f":"$V$111&\"-NoDisability\"","v":"Pop 35 years to 64:-NoDisability"},{"$f":"\"MOE \"&Z111","v":"MOE Pop 35 years to 64:-NoDisability"},"Pop 65 years to 74:",{"$f":"\"MOE \"&AB111","v":"MOE Pop 65 years to 74:"},{"$f":"$AB$111&\"-WithDisability\"","v":"Pop 65 years to 74:-WithDisability"},{"$f":"\"MOE \"&AD111","v":"MOE Pop 65 years to 74:-WithDisability"},{"$f":"$AB$111&\"-NoDisability\"","v":"Pop 65 years to 74:-NoDisability"},{"$f":"\"MOE \"&AF111","v":"MOE Pop 65 years to 74:-NoDisability"},"Pop 75 and older:",{"$f":"\"MOE \"&AH111","v":"MOE Pop 75 and older:"},{"$f":"$AH$111&\"-WithDisability\"","v":"Pop 75 and older:-WithDisability"},{"$f":"\"MOE \"&AJ111","v":"MOE Pop 75 and older:-WithDisability"},{"$f":"$AH$111&\"-NoDisability\"","v":"Pop 75 and older:-NoDisability"},{"$f":"\"MOE \"&AL111","v":"MOE Pop 75 and older:-NoDisability"},"TotalPopUnder5_HearingDisability",{"$f":"\"MOE \"&AN111","v":"MOE TotalPopUnder5_HearingDisability"},"TotalPopUnder5_HearingDisability",{"$f":"\"MOE \"&AP111","v":"MOE TotalPopUnder5_HearingDisability"},"TotalPop18To34_HearingDisability",{"$f":"\"MOE \"&AR111","v":"MOE TotalPop18To34_HearingDisability"},"TotalPop35To64_HearingDisability",{"$f":"\"MOE \"&AT111","v":"MOE TotalPop35To64_HearingDisability"},"TotalPop65To74_HearingDisability",{"$f":"\"MOE \"&AV111","v":"MOE TotalPop65To74_HearingDisability"},"TotalPop75andOlder_HearingDisability",{"$f":"\"MOE \"&AX111","v":"MOE TotalPop75andOlder_HearingDisability"},"TotalPopUnder5_VisionDisability",{"$f":"\"MOE \"&AZ111","v":"MOE TotalPopUnder5_VisionDisability"},"TotalPop5To17_VisionDisability",{"$f":"\"MOE \"&BB111","v":"MOE TotalPop5To17_VisionDisability"},"TotalPop18To34_VisionDisability",{"$f":"\"MOE \"&BD111","v":"MOE TotalPop18To34_VisionDisability"},"TotalPop35To64_VisionDisability",{"$f":"\"MOE \"&BF111","v":"MOE TotalPop35To64_VisionDisability"},"TotalPop65To74_VisionDisability",{"$f":"\"MOE \"&BH111","v":"MOE TotalPop65To74_VisionDisability"},"TotalPop75andOlder_VisionDisability",{"$f":"\"MOE \"&BJ111","v":"MOE TotalPop75andOlder_VisionDisability"},"TotalPop5To17_CongnitiveDisability",{"$f":"\"MOE \"&BL111","v":"MOE TotalPop5To17_CongnitiveDisability"},"TotalPop18To34_CongnitiveDisability",{"$f":"\"MOE \"&BN111","v":"MOE TotalPop18To34_CongnitiveDisability"},"TotalPop35To64_CongnitiveDisability",{"$f":"\"MOE \"&BP111","v":"MOE TotalPop35To64_CongnitiveDisability"},"TotalPop65To74_CongnitiveDisability",{"$f":"\"MOE \"&BR111","v":"MOE TotalPop65To74_CongnitiveDisability"},"TotalPop75andOlder_CongnitiveDisability",{"$f":"\"MOE \"&BT111","v":"MOE TotalPop75andOlder_CongnitiveDisability"},"TotalPop5To17_AmbulatoryDisability",{"$f":"\"MOE \"&BV111","v":"MOE TotalPop5To17_AmbulatoryDisability"},"TotalPop18To34_AmbulatoryDisability",{"$f":"\"MOE \"&BX111","v":"MOE TotalPop18To34_AmbulatoryDisability"},"TotalPop35To64_AmbulatoryDisability",{"$f":"\"MOE \"&BZ111","v":"MOE TotalPop35To64_AmbulatoryDisability"},"TotalPop65To74_AmbulatoryDisability",{"$f":"\"MOE \"&CB111","v":"MOE TotalPop65To74_AmbulatoryDisability"},"TotalPop75andOlder_AmbulatoryDisability",{"$f":"\"MOE \"&CD111","v":"MOE TotalPop75andOlder_AmbulatoryDisability"},"TotalPop5To17_SelfCareDisability",{"$f":"\"MOE \"&CF111","v":"MOE TotalPop5To17_SelfCareDisability"},"TotalPop18To34_SelfCareDisability",{"$f":"\"MOE \"&CH111","v":"MOE TotalPop18To34_SelfCareDisability"},"TotalPop35To64_SelfCareDisability",{"$f":"\"MOE \"&CJ111","v":"MOE TotalPop35To64_SelfCareDisability"},"TotalPop65To74_SelfCareDisability",{"$f":"\"MOE \"&CL111","v":"MOE TotalPop65To74_SelfCareDisability"},"TotalPop75andOlder_SelfCareDisability",{"$f":"\"MOE \"&CN111","v":"MOE TotalPop75andOlder_SelfCareDisability"},"TotalPop18To34_IndependantLivingDisability",{"$f":"\"MOE \"&CP111","v":"MOE TotalPop18To34_IndependantLivingDisability"},"TotalPop35To64_IndependantLivingDisability",{"$f":"\"MOE \"&CR111","v":"MOE TotalPop35To64_IndependantLivingDisability"},"TotalPop65To74_IndependantLivingDisability",{"$f":"\"MOE \"&CT111","v":"MOE TotalPop65To74_IndependantLivingDisability"},"TotalPop75andOlder_IndependantLivingDisability",{"$f":"\"MOE \"&CV111","v":"MOE TotalPop75andOlder_IndependantLivingDisability"},"TotalUnder5_HearingorVisionDisability",{"$f":"\"MOE \"&CX111","v":"MOE TotalUnder5_HearingorVisionDisability"},"TotalUnder5_HearingandVisionDisability",{"$f":"\"MOE \"&CZ111","v":"MOE TotalUnder5_HearingandVisionDisability"},"5to17YearWIthOneDisability",{"$f":"\"MOE \"&DB111","v":"MOE 5to17YearWIthOneDisability"},"5to17YearWIthTwoOrMoreDisability",{"$f":"\"MOE \"&DD111","v":"MOE 5to17YearWIthTwoOrMoreDisability"},"18to34YearWIthOneDisability",{"$f":"\"MOE \"&DF111","v":"MOE 18to34YearWIthOneDisability"},"18to34YearWIthTwoOrMoreDisability",{"$f":"\"MOE \"&DH111","v":"MOE 18to34YearWIthTwoOrMoreDisability"},"35to64YearWIthOneDisability",{"$f":"\"MOE \"&DJ111","v":"MOE 35to64YearWIthOneDisability"},"35to64YearWIthTwoOrMoreDisability",{"$f":"\"MOE \"&DL111","v":"MOE 35to64YearWIthTwoOrMoreDisability"},"65to74YearWIthOneDisability",{"$f":"\"MOE \"&DN111","v":"MOE 65to74YearWIthOneDisability"},"65to74YearWIthTwoOrMoreDisability",{"$f":"\"MOE \"&DP111","v":"MOE 65to74YearWIthTwoOrMoreDisability"},"75AndOlderWIthOneDisability",{"$f":"\"MOE \"&DR111","v":"MOE 75AndOlderWIthOneDisability"},"75AndOlderWIthTwoOrMoreDisability",{"$f":"\"MOE \"&DT111","v":"MOE 75AndOlderWIthTwoOrMoreDisability"}]
[{"$f":"VLOOKUP(DropDownList!$B$47,CntyQryCensus!$A$510:$DA$552,A$1)","v":"Berlin"},8384,242,401,101.23734488813898,0,25.45584412271571,401,101.23734488813898,1184,159.96249560443849,207,116.69190203266035,977,184.91078930121952,1821,220.41097976280582,296,148.0979405663698,1525,212.80977421161839,3259,197.99494943053472,787,159.02201105507376,2472,207.96634343085421,951,128.08200498118384,228,75.166481891864535,723,116.67476162392619,768,104.63746938836012,443,100,325,72.201108024738787,0,25.45584412271571,0,25.45584412271571,101,91.782351244670124,130,83.186537372341689,69,58.309518948453004,228,71.400280111495363,0,25.45584412271571,0,25.45584412271571,6,20.124611797498108,130,82.927679335671755,38,42.953463189829058,89,55.461698495448189,174,82.565125809872058,189,84.219950130595535,348,112.48555462813881,26,23.430749027719962,198,79.202272694664515,18,31.384709652950431,69,49.365980188789933,327,101.82337649086284,79,39.395431207184416,329,99.297532698451278,28,38.483762809787713,48,45.607017003965517,46,30.610455730027933,35,31.384709652950431,122,68.029405406779802,116,59.808026217222718,223,92.962357973536797,23,26.40075756488817,282,93.23089616645332,174,101,33,38,579,167,504,135,301,93,370,114]
[]
["Househould Income By Age"]
["NAME","TotalHouseholds",{"$f":"\"MOE \"&B115","v":"MOE TotalHouseholds"},"HHInc<10K",{"$f":"\"MOE \"&D115","v":"MOE HHInc<10K"},"HHInc10to15K",{"$f":"\"MOE \"&F115","v":"MOE HHInc10to15K"},"HHInc15to20K",{"$f":"\"MOE \"&H115","v":"MOE HHInc15to20K"},"HHInc20to25K",{"$f":"\"MOE \"&J115","v":"MOE HHInc20to25K"},"HHInc25to30K",{"$f":"\"MOE \"&L115","v":"MOE HHInc25to30K"},"HHInc30to35K",{"$f":"\"MOE \"&N115","v":"MOE HHInc30to35K"},"HHInc35to40K",{"$f":"\"MOE \"&P115","v":"MOE HHInc35to40K"},"HHInc40to45K",{"$f":"\"MOE \"&R115","v":"MOE HHInc40to45K"},"HHInc45to50K",{"$f":"\"MOE \"&T115","v":"MOE HHInc45to50K"},"HHInc50to60K",{"$f":"\"MOE \"&V115","v":"MOE HHInc50to60K"},"HHInc60to75K",{"$f":"\"MOE \"&X115","v":"MOE HHInc60to75K"},"HHInc75to100K",{"$f":"\"MOE \"&Z115","v":"MOE HHInc75to100K"},"HHInc100to125K",{"$f":"\"MOE \"&AB115","v":"MOE HHInc100to125K"},"HHInc125to150K",{"$f":"\"MOE \"&AD115","v":"MOE HHInc125to150K"},"HHInc150to200K",{"$f":"\"MOE \"&AF115","v":"MOE HHInc150to200K"},"HHInc>200K",{"$f":"\"MOE \"&AH115","v":"MOE HHInc>200K"},"TotalHH",{"$f":"\"MOE \"&AJ115","v":"MOE TotalHH"},"HHAgeHHUnder25yrs",{"$f":"\"MOE \"&AL115","v":"MOE HHAgeHHUnder25yrs"},"HHAgeHH<25HHInc<10K",{"$f":"\"MOE \"&AN115","v":"MOE HHAgeHH<25HHInc<10K"},"HHAgeHH<25HHInc10to15K",{"$f":"\"MOE \"&AP115","v":"MOE HHAgeHH<25HHInc10to15K"},"HHAgeHH<25HHInc15to20K",{"$f":"\"MOE \"&AR115","v":"MOE HHAgeHH<25HHInc15to20K"},"HHAgeHH<25HHInc20to25K",{"$f":"\"MOE \"&AT115","v":"MOE HHAgeHH<25HHInc20to25K"},"HHAgeHH<25HHInc25to30K",{"$f":"\"MOE \"&AV115","v":"MOE HHAgeHH<25HHInc25to30K"},"HHAgeHH<25HHInc30to35K",{"$f":"\"MOE \"&AX115","v":"MOE HHAgeHH<25HHInc30to35K"},"HHAgeHH<25HHInc35to40K",{"$f":"\"MOE \"&AZ115","v":"MOE HHAgeHH<25HHInc35to40K"},"HHAgeHH<25HHInc40to45K",{"$f":"\"MOE \"&BB115","v":"MOE HHAgeHH<25HHInc40to45K"},"HHAgeHH<25HHInc45to50K",{"$f":"\"MOE \"&BD115","v":"MOE HHAgeHH<25HHInc45to50K"},"HHAgeHH<25HHInc50to60K",{"$f":"\"MOE \"&BF115","v":"MOE HHAgeHH<25HHInc50to60K"},"HHAgeHH<25HHInc60to75K",{"$f":"\"MOE \"&BH115","v":"MOE HHAgeHH<25HHInc60to75K"},"HHAgeHH<25HHInc75to100K",{"$f":"\"MOE \"&BJ115","v":"MOE HHAgeHH<25HHInc75to100K"},"HHAgeHH<25HHInc100to125K",{"$f":"\"MOE \"&BL115","v":"MOE HHAgeHH<25HHInc100to125K"},"HHAgeHH<25HHInc125to150K",{"$f":"\"MOE \"&BN115","v":"MOE HHAgeHH<25HHInc125to150K"},"HHAgeHH<25HHInc150to200K",{"$f":"\"MOE \"&BP115","v":"MOE HHAgeHH<25HHInc150to200K"},"HHAge<25HHInc>200K",{"$f":"\"MOE \"&BR115","v":"MOE HHAge<25HHInc>200K"},"HHAgeHH25to44yrs",{"$f":"\"MOE \"&BT115","v":"MOE HHAgeHH25to44yrs"},"HHAgeHH25To44yrsHHInc<10K",{"$f":"\"MOE \"&BV115","v":"MOE HHAgeHH25To44yrsHHInc<10K"},"HHAgeHH25To44yrsHHInc10to15K",{"$f":"\"MOE \"&BX115","v":"MOE HHAgeHH25To44yrsHHInc10to15K"},"HHAgeHH25To44yrsHHInc15to20K",{"$f":"\"MOE \"&BZ115","v":"MOE HHAgeHH25To44yrsHHInc15to20K"},"HHAgeHH25To44yrsHHInc20to25K",{"$f":"\"MOE \"&CB115","v":"MOE HHAgeHH25To44yrsHHInc20to25K"},"HHAgeHH25To44yrsHHInc25to30K",{"$f":"\"MOE \"&CD115","v":"MOE HHAgeHH25To44yrsHHInc25to30K"},"HHAgeHH25To44yrsHHInc30to35K",{"$f":"\"MOE \"&CF115","v":"MOE HHAgeHH25To44yrsHHInc30to35K"},"HHAgeHH25To44yrsHHInc35to40K",{"$f":"\"MOE \"&CH115","v":"MOE HHAgeHH25To44yrsHHInc35to40K"},"HHAgeHH25To44yrsHHInc40to45K",{"$f":"\"MOE \"&CJ115","v":"MOE HHAgeHH25To44yrsHHInc40to45K"},"HHAgeHH25To44yrsHHInc45to50K",{"$f":"\"MOE \"&CL115","v":"MOE HHAgeHH25To44yrsHHInc45to50K"},"HHAgeHH25To44yrsHHInc50to60K",{"$f":"\"MOE \"&CN115","v":"MOE HHAgeHH25To44yrsHHInc50to60K"},"HHAgeHH25To44yrsHHInc60to75K",{"$f":"\"MOE \"&CP115","v":"MOE HHAgeHH25To44yrsHHInc60to75K"},"HHAgeHH25To44yrsHHInc75to100K",{"$f":"\"MOE \"&CR115","v":"MOE HHAgeHH25To44yrsHHInc75to100K"},"HHAgeHH25To44yrsHHInc100to125K",{"$f":"\"MOE \"&CT115","v":"MOE HHAgeHH25To44yrsHHInc100to125K"},"HHAgeHH25To44yrsHHInc125to150K",{"$f":"\"MOE \"&CV115","v":"MOE HHAgeHH25To44yrsHHInc125to150K"},"HHAgeHH25To44yrsHHInc150to200K",{"$f":"\"MOE \"&CX115","v":"MOE HHAgeHH25To44yrsHHInc150to200K"},"HHAge25To44yrsHHInc>200K",{"$f":"\"MOE \"&CZ115","v":"MOE HHAge25To44yrsHHInc>200K"},"HHAgeHH45To64yrs",{"$f":"\"MOE \"&DB115","v":"MOE HHAgeHH45To64yrs"},"HHAgeHH45To64yrsHHInc<10K",{"$f":"\"MOE \"&DD115","v":"MOE HHAgeHH45To64yrsHHInc<10K"},"HHAgeHH45To64yrsHHInc10to15K",{"$f":"\"MOE \"&DF115","v":"MOE HHAgeHH45To64yrsHHInc10to15K"},"HHAgeHH45To64yrsHHInc15to20K",{"$f":"\"MOE \"&DH115","v":"MOE HHAgeHH45To64yrsHHInc15to20K"},"HHAgeHH45To64yrsHHInc20to25K",{"$f":"\"MOE \"&DJ115","v":"MOE HHAgeHH45To64yrsHHInc20to25K"},"HHAgeHH45To64yrsHHInc25to30K",{"$f":"\"MOE \"&DL115","v":"MOE HHAgeHH45To64yrsHHInc25to30K"},"HHAgeHH45To64yrsHHInc30to35K",{"$f":"\"MOE \"&DN115","v":"MOE HHAgeHH45To64yrsHHInc30to35K"},"HHAgeHH45To64yrsHHInc35to40K",{"$f":"\"MOE \"&DP115","v":"MOE HHAgeHH45To64yrsHHInc35to40K"},"HHAgeHH45To64yrsHHInc40to45K",{"$f":"\"MOE \"&DR115","v":"MOE HHAgeHH45To64yrsHHInc40to45K"},"HHAgeHH45To64yrsHHInc45to50K",{"$f":"\"MOE \"&DT115","v":"MOE HHAgeHH45To64yrsHHInc45to50K"},"HHAgeHH45To64yrsHHInc50to60K",{"$f":"\"MOE \"&DV115","v":"MOE HHAgeHH45To64yrsHHInc50to60K"},"HHAgeHH45To64yrsHHInc60to75K",{"$f":"\"MOE \"&DX115","v":"MOE HHAgeHH45To64yrsHHInc60to75K"},"HHAgeHH45To64yrsHHInc75to100K",{"$f":"\"MOE \"&DZ115","v":"MOE HHAgeHH45To64yrsHHInc75to100K"},"HHAgeHH45To64yrsHHInc100to125K",{"$f":"\"MOE \"&EB115","v":"MOE HHAgeHH45To64yrsHHInc100to125K"},"HHAgeHH45To64yrsHHInc125to150K",{"$f":"\"MOE \"&ED115","v":"MOE HHAgeHH45To64yrsHHInc125to150K"},"HHAgeHH45To64yrsHHInc150to200K",{"$f":"\"MOE \"&EF115","v":"MOE HHAgeHH45To64yrsHHInc150to200K"},"HHAge45To64yrsHHInc>200K",{"$f":"\"MOE \"&EH115","v":"MOE HHAge45To64yrsHHInc>200K"},"HHAgeHH65yrsorOlder",{"$f":"\"MOE \"&EJ115","v":"MOE HHAgeHH65yrsorOlder"},"HHAgeHH65yrsorOlderHHInc<10K",{"$f":"\"MOE \"&EL115","v":"MOE HHAgeHH65yrsorOlderHHInc<10K"},"HHAgeHH65yrsorOlderHHInc10to15K",{"$f":"\"MOE \"&EN115","v":"MOE HHAgeHH65yrsorOlderHHInc10to15K"},"HHAgeHH65yrsorOlderHHInc15to20K",{"$f":"\"MOE \"&EP115","v":"MOE HHAgeHH65yrsorOlderHHInc15to20K"},"HHAgeHH65yrsorOlderHHInc20to25K",{"$f":"\"MOE \"&ER115","v":"MOE HHAgeHH65yrsorOlderHHInc20to25K"},"HHAgeHH65yrsorOlderHHInc25to30K",{"$f":"\"MOE \"&ET115","v":"MOE HHAgeHH65yrsorOlderHHInc25to30K"},"HHAgeHH65yrsorOlderHHInc30to35K",{"$f":"\"MOE \"&EV115","v":"MOE HHAgeHH65yrsorOlderHHInc30to35K"},"HHAgeHH65yrsorOlderHHInc35to40K",{"$f":"\"MOE \"&EX115","v":"MOE HHAgeHH65yrsorOlderHHInc35to40K"},"HHAgeHH65yrsorOlderHHInc40to45K",{"$f":"\"MOE \"&EZ115","v":"MOE HHAgeHH65yrsorOlderHHInc40to45K"},"HHAgeHH65yrsorOlderHHInc45to50K",{"$f":"\"MOE \"&FB115","v":"MOE HHAgeHH65yrsorOlderHHInc45to50K"},"HHAgeHH65yrsorOlderHHInc50to60K",{"$f":"\"MOE \"&FD115","v":"MOE HHAgeHH65yrsorOlderHHInc50to60K"},"HHAgeHH65yrsorOlderHHInc60to75K",{"$f":"\"MOE \"&FF115","v":"MOE HHAgeHH65yrsorOlderHHInc60to75K"},"HHAgeHH65yrsorOlderHHInc75to100K",{"$f":"\"MOE \"&FH115","v":"MOE HHAgeHH65yrsorOlderHHInc75to100K"},"HHAgeHH65yrsorOlderHHInc100to125K",{"$f":"\"MOE \"&FJ115","v":"MOE HHAgeHH65yrsorOlderHHInc100to125K"},"HHAgeHH65yrsorOlderHHInc125to150K",{"$f":"\"MOE \"&FL115","v":"MOE HHAgeHH65yrsorOlderHHInc125to150K"},"HHAgeHH65yrsorOlderHHInc150to200K",{"$f":"\"MOE \"&FN115","v":"MOE HHAgeHH65yrsorOlderHHInc150to200K"},"HHAge65yrsorOlderHHInc>200K",{"$f":"\"MOE \"&FP115","v":"MOE HHAge65yrsorOlderHHInc>200K"},"MedianHHInc",{"$f":"\"MOE \"&FR115","v":"MOE MedianHHInc"},"HH under 25 years",{"$f":"\"MOE \"&FT115","v":"MOE HH under 25 years"},"Householder 25 to 44 years",{"$f":"\"MOE \"&FV115","v":"MOE Householder 25 to 44 years"},"Householder 45 to 64 years",{"$f":"\"MOE \"&FX115","v":"MOE Householder 45 to 64 years"},"Householder 65 years and over",{"$f":"\"MOE \"&FZ115","v":"MOE Householder 65 years and over"}]
[{"$f":"VLOOKUP(DropDownList!$B$47,CntyQryCensus!$A$510:$DA$552,A$1)","v":"Berlin"},3977,201,331,102,422,147,197,96,439,122,144,68,241,105,258,100,227,85,234,113,222,95,379,106,356,106,211,102,173,76,115,66,28,26,3977,201,163,105,46,55,6,11,0,18,0,18,19,23,45,70,29,43,18,28,0,18,0,18,0,18,0,18,0,18,0,18,0,18,0,18,1187,145,45,44,83,62,56,64,158,108,4,9,36,37,80,66,61,56,137,100,87,57,142,69,153,82,86,81,21,30,38,40,0,18,1413,121,115,43,84,57,57,51,79,51,24,24,81,50,83,47,90,52,83,46,124,67,131,61,159,59,83,59,125,72,77,56,18,21,1214,160,125,63,249,106,84,38,202,70,97,60,79,52,66,42,58,33,14,17,11,14,106,51,44,32,42,32,27,23,0,18,10,15,39130,3380,33083,13064,48250,4286,51641,8436,24140,1835]
[]
["Number of Households by Income"]
["NAME","HHIncLessThn10k",{"$f":"\"MOE \"&B119","v":"MOE HHIncLessThn10k"},"HHInc10to15K",{"$f":"\"MOE \"&D119","v":"MOE HHInc10to15K"},"HHInc15to25K",{"$f":"\"MOE \"&F119","v":"MOE HHInc15to25K"},"HHInc25to35K",{"$f":"\"MOE \"&H119","v":"MOE HHInc25to35K"},"HHInc35to50K",{"$f":"\"MOE \"&J119","v":"MOE HHInc35to50K"},"HHInc50to75K",{"$f":"\"MOE \"&L119","v":"MOE HHInc50to75K"},"HHInc75to100K",{"$f":"\"MOE \"&N119","v":"MOE HHInc75to100K"},"HHInc100to150K",{"$f":"\"MOE \"&P119","v":"MOE HHInc100to150K"},"HHInc150to200K",{"$f":"\"MOE \"&R119","v":"MOE HHInc150to200K"},"HHIncOver200K",{"$f":"\"MOE \"&T119","v":"MOE HHIncOver200K"}]
[{"$f":"VLOOKUP(DropDownList!$B$47,CntyQryCensus!$A$510:$DA$552,A$1)","v":"Berlin"},331,102,422,147,636,155.24174696260025,385,125.0959631642844,719,173.18775938270002,601,142.3411395205195,356,106,384,127.20062892926276,115,66,28,26,469,121,540,119,112,48,94,56,44,41,21,24]
[]
[]
["NAME","TotalPop",{"$f":"\"MOE \"&B123","v":"MOE TotalPop"},"Total Individuals living in Poverty",{"$f":"\"MOE \"&D123","v":"MOE Total Individuals living in Poverty"},"Under 5 yrs.",{"$f":"\"MOE \"&F123","v":"MOE Under 5 yrs."},"5 to 17 yrs.",{"$f":"\"MOE \"&H123","v":"MOE 5 to 17 yrs."},"18 to 64 yrs.",{"$f":"\"MOE \"&J123","v":"MOE 18 to 64 yrs."},"65 to 74 yrs.",{"$f":"\"MOE \"&L123","v":"MOE 65 to 74 yrs."},"75 yrs. & Over",{"$f":"\"MOE \"&N123","v":"MOE 75 yrs. & Over"},"Total Individuals  Not living Poverty",{"$f":"\"MOE \"&P123","v":"MOE Total Individuals  Not living Poverty"},"Under 5 yrs.",{"$f":"\"MOE \"&R123","v":"MOE Under 5 yrs."},"5 to 17 yrs.",{"$f":"\"MOE \"&T123","v":"MOE 5 to 17 yrs."},"18 to 64 yrs.",{"$f":"\"MOE \"&V123","v":"MOE 18 to 64 yrs."},"65 to 74 yrs.",{"$f":"\"MOE \"&X123","v":"MOE 65 to 74 yrs."},"75 yrs. & Over",{"$f":"\"MOE \"&Z123","v":"MOE 75 yrs. & Over"},"Total HH",{"$f":"\"MOE \"&AB123","v":"MOE Total HH"},"Total Households Below Poverty",{"$f":"\"MOE \"&AD123","v":"MOE Total Households Below Poverty"},"Family Households in Poverty",{"$f":"\"MOE \"&AF123","v":"MOE Family Households in Poverty"},"Married Couple Fam HH",{"$f":"\"MOE \"&AH123","v":"MOE Married Couple Fam HH"},"Other Family",{"$f":"\"MOE \"&AJ123","v":"MOE Other Family"},"Male Head of Family HH no wife",{"$f":"\"MOE \"&AL123","v":"MOE Male Head of Family HH no wife"},"Female Head of Family HH no husband",{"$f":"\"MOE \"&AN123","v":"MOE Female Head of Family HH no husband"},"Non-Family HH",{"$f":"\"MOE \"&AP123","v":"MOE Non-Family HH"},"Non-Family Male HH",{"$f":"\"MOE \"&AR123","v":"MOE Non-Family Male HH"},"Non-Family Female HH",{"$f":"\"MOE \"&AT123","v":"MOE Non-Family Female HH"},"Total Households at or Above Poverty",{"$f":"\"MOE \"&AV123","v":"MOE Total Households at or Above Poverty"},"Family Households above Poverty",{"$f":"\"MOE \"&AX123","v":"MOE Family Households above Poverty"},"Married Couple Fam HH",{"$f":"\"MOE \"&AZ123","v":"MOE Married Couple Fam HH"},"Other Family",{"$f":"\"MOE \"&BB123","v":"MOE Other Family"},"Male Head of Family HH no wife",{"$f":"\"MOE \"&BD123","v":"MOE Male Head of Family HH no wife"},"Female Head of Family HH no husband",{"$f":"\"MOE \"&BF123","v":"MOE Female Head of Family HH no husband"},"Non-Family HH",{"$f":"\"MOE \"&BH123","v":"MOE Non-Family HH"},"Non-Family Male HH",{"$f":"\"MOE \"&BJ123","v":"MOE Non-Family Male HH"},"Non-Family Female HH",{"$f":"\"MOE \"&BL123","v":"MOE Non-Family Female HH"},"Married Couple with Children Below Poverty",{"$f":"\"MOE \"&BN123","v":"MOE Married Couple with Children Below Poverty"},"Male HH with children below poverty",{"$f":"\"MOE \"&BP123","v":"MOE Male HH with children below poverty"},"Female HH with children below poverty",{"$f":"\"MOE \"&BR123","v":"MOE Female HH with children below poverty"},"Married Couple with Children At or Above Poverty",{"$f":"\"MOE \"&BT123","v":"MOE Married Couple with Children At or Above Poverty"},"Male HH with children at or above poverty",{"$f":"\"MOE \"&BV123","v":"MOE Male HH with children at or above poverty"},"Female HH with children at or above poverty",{"$f":"\"MOE \"&BX123","v":"MOE Female HH with children at or above poverty"}]
[{"$f":"VLOOKUP(DropDownList!$B$47,CntyQryCensus!$A$510:$DA$552,A$1)","v":"Berlin"},1908,171,222,125,28,24.207436873820409,37,44.57577817604534,124,52.478567053607705,18,17.464249196572979,15,10.816653826391969,1686,190,27,20.248456731316587,209,74.417739820556221,989,123.15031465652046,271,58.412327466040935,190,46.861498055439924,954,84,97,43,43,32,30,29,13,16,0,11,13,16,54,33,13,13,41,29,857,90,473,73,412,69,61,41,0,11,61,41,384,81,205,59,179,61,21,27,0,11,13,16,98,37,0,11,46,40]
[]
["Household Income By Tenure"]
["NAME","TotalOccHU",{"$f":"\"MOE \"&B127","v":"MOE TotalOccHU"},"OwnOccHU",{"$f":"\"MOE \"&D127","v":"MOE OwnOccHU"},"OOHUInc<5K",{"$f":"\"MOE \"&F127","v":"MOE OOHUInc<5K"},"OOHUInc5to10K",{"$f":"\"MOE \"&H127","v":"MOE OOHUInc5to10K"},"OOHUInc10to15K",{"$f":"\"MOE \"&J127","v":"MOE OOHUInc10to15K"},"OOHUInc15to20K",{"$f":"\"MOE \"&L127","v":"MOE OOHUInc15to20K"},"OOHUInc20to25K",{"$f":"\"MOE \"&N127","v":"MOE OOHUInc20to25K"},"OOHUInc25to35K",{"$f":"\"MOE \"&P127","v":"MOE OOHUInc25to35K"},"OOHUInc35to50K",{"$f":"\"MOE \"&R127","v":"MOE OOHUInc35to50K"},"OOHUInc50to75K",{"$f":"\"MOE \"&T127","v":"MOE OOHUInc50to75K"},"OOHUInc75to100K",{"$f":"\"MOE \"&V127","v":"MOE OOHUInc75to100K"},"OOHUInc100to150K",{"$f":"\"MOE \"&X127","v":"MOE OOHUInc100to150K"},"OOHUInc>150K",{"$f":"\"MOE \"&Z127","v":"MOE OOHUInc>150K"},"RentOccHU",{"$f":"\"MOE \"&AB127","v":"MOE RentOccHU"},"ROHUInc<5K",{"$f":"\"MOE \"&AD127","v":"MOE ROHUInc<5K"},"ROHUInc5to10K",{"$f":"\"MOE \"&AF127","v":"MOE ROHUInc5to10K"},"ROHUInc10to15K",{"$f":"\"MOE \"&AH127","v":"MOE ROHUInc10to15K"},"ROHUInc15to20K",{"$f":"\"MOE \"&AJ127","v":"MOE ROHUInc15to20K"},"ROHUInc20to25K",{"$f":"\"MOE \"&AL127","v":"MOE ROHUInc20to25K"},"ROHUInc25to35K",{"$f":"\"MOE \"&AN127","v":"MOE ROHUInc25to35K"},"ROHUInc35to50K",{"$f":"\"MOE \"&AP127","v":"MOE ROHUInc35to50K"},"ROHUInc50to75K",{"$f":"\"MOE \"&AR127","v":"MOE ROHUInc50to75K"},"ROHUInc75to100K",{"$f":"\"MOE \"&AT127","v":"MOE ROHUInc75to100K"},"ROHUInc100to150K",{"$f":"\"MOE \"&AV127","v":"MOE ROHUInc100to150K"},"ROHUInc>150K",{"$f":"\"MOE \"&AX127","v":"MOE ROHUInc>150K"},"Total OCC HUInc<5K",{"$f":"\"MOE \"&AZ127","v":"MOE Total OCC HUInc<5K"},"Total OCC HUInc5to10K",{"$f":"\"MOE \"&BB127","v":"MOE Total OCC HUInc5to10K"},"Total OCC HUInc10to15K",{"$f":"\"MOE \"&BD127","v":"MOE Total OCC HUInc10to15K"},"Total OCC HUInc15to20K",{"$f":"\"MOE \"&BF127","v":"MOE Total OCC HUInc15to20K"},"Total OCC HUInc20to25K",{"$f":"\"MOE \"&BH127","v":"MOE Total OCC HUInc20to25K"},"Total OCC HUInc25to35K",{"$f":"\"MOE \"&BJ127","v":"MOE Total OCC HUInc25to35K"},"Total OCC HUInc35to50K",{"$f":"\"MOE \"&BL127","v":"MOE Total OCC HUInc35to50K"},"Total OCC HUInc50to75K",{"$f":"\"MOE \"&BN127","v":"MOE Total OCC HUInc50to75K"},"Total OCC HUInc75to100K",{"$f":"\"MOE \"&BP127","v":"MOE Total OCC HUInc75to100K"},"Total OCC HUInc100to150K",{"$f":"\"MOE \"&BR127","v":"MOE Total OCC HUInc100to150K"},"Total OCC HUInc>150K",{"$f":"\"MOE \"&BT127","v":"MOE Total OCC HUInc>150K"},"MedHHInc",{"$f":"\"MOE \"&BV127","v":"MOE MedHHInc"},"MedOwnOccHHInc",{"$f":"\"MOE \"&BX127","v":"MOE MedOwnOccHHInc"},"MedRentOccHHInc",{"$f":"\"MOE \"&BZ127","v":"MOE MedRentOccHHInc"}]
[{"$f":"VLOOKUP(DropDownList!$B$47,CntyQryCensus!$A$510:$DA$552,A$1)","v":"Berlin"},3977,201,2228,192,42,29,41,33,111,64,55,35,182,69,191,69,342,114,459,112,314,95,354,126,137,69,1749,196,71,58,177,69,311,131,142,91,257,112,194,103,377,129,142,82,42,46,30,40,6,14,214,90.509667991878089,231,116.92732785794773,320,118.33849753989612,324,104.06248123122954,404,127.20062892926276,404,99.904954832080278,706,165.42369842317032,922,175.410946066658,507,121.56479753612885,163,66.309878600401618,32,117.63077828527702,39130,3380,61413,9918,22451,4337]
[]
["Population Data"]
["NAME","Total Population","MOE Total Population","Under 15 Years","MOE Under 15 yrs.","15 to 24 yrs.","MOE 15 to 24 yrs.","25 to 34 yrs.","MOE 25 to 34 yrs.","35 to 44 yrs.","MOE 35 to 44 yrs.","45 to 54 yrs.","MOE 45 to 54 yrs.","55 to 64 yrs.","MOE 55 to 64 yrs.","65 to 74 yrs.","MOE 65 to 74 yrs.","Over 74 yrs. ","MOE Over 74 yrs. ","TotalHH","MOE TotalHH","FamilyHH","MOE FamilyHH","MarriedFamilyHH","MOE MarriedFamilyHH","SingleFamilyHH","MOE SingleFamilyHH","Sfamily-MaleHH","MOE Sfamily-MaleHH","Sfamily-FemaleHH","MOE Sfamily-FemaleHH","NonFamilyHH","MOE NonFamilyHH","NonFamilyHH-LivingAlone","MOE NonFamilyHH-LivingAlone","NonFamilyHH-NotLivingAlone","MOE NonFamilyHH-NotLivingAlone","PopRaceWhite","MOE PopRaceWhite","PopRaceBlack","MOE PopRaceBlack","PopRaceAmerican Indian","MOE PopRaceAmerican Indian","PopRaceAsian &Pacific Is.","MOE PopRaceAsian &Pacific Is.","PopRaceOther*","MOE PopRaceOther*","PopRaceHispanic or Latino:","MOE PopRaceHispanic or Latino:","MedianAgeTotalPop","MOE MedianAgeTotalPop","MedianAgeMale","MOE MedianAgeMale","MedianAgeFemale","MOE MedianAgeFemale","AvgHHSizeTotal","MOE AvgHHSizeTotal","AvgHHSizeFamilyHH","MOE AvgHHSizeFamilyHH","AvgHHSizeNonFamilyHH","MOE AvgHHSizeNonFamilyHH"]
[{"$f":"VLOOKUP(DropDownList!$B$47,CntyQryCensus!$A$510:$DA$552,A$1)","v":"Berlin"},10221,22,1198,199.6772395642528,1142,186.53954004446351,1683,198.34817871611526,1445,209.28927349484493,1535,175.83799361912659,1306,179.22890391898289,973,158.71357849913159,939,141.82030884185804,3977,201,2236,170,1586,177,650,145,260,107,390,112,1741,261,1531,214,210,106,8745,243,630,186,25,31,74,51.224993899462788,165,72.801098892805186,582,159,42.3,1.2,39.5,1.2,47.3,2.1,2.1171737490570783,0.12474333992413805,2.8743291592128801,0.28933252405634319,1.1447443997702469,0.26871556647948497]
[]
["Nativity and Prior Place of Residence"]
["NAME","TotalPop",{"$f":"\"MOE \"&B135","v":"MOE TotalPop"},"Native:",{"$f":"\"MOE \"&D135","v":"MOE Native:"},"NatBornInStateOfResidence",{"$f":"\"MOE \"&F135","v":"MOE NatBornInStateOfResidence"},"Born in other state in the United States:",{"$f":"\"MOE \"&H135","v":"MOE Born in other state in the United States:"},"Northeast",{"$f":"\"MOE \"&J135","v":"MOE Northeast"},"Midwest",{"$f":"\"MOE \"&L135","v":"MOE Midwest"},"South",{"$f":"\"MOE \"&N135","v":"MOE South"},"West",{"$f":"\"MOE \"&P135","v":"MOE West"},"Born outside the United States:",{"$f":"\"MOE \"&R135","v":"MOE Born outside the United States:"},"Puerto Rico",{"$f":"\"MOE \"&T135","v":"MOE Puerto Rico"},"U.S. Island Areas",{"$f":"\"MOE \"&V135","v":"MOE U.S. Island Areas"},"Born abroad of American parent(s)",{"$f":"\"MOE \"&X135","v":"MOE Born abroad of American parent(s)"},"Foreign born:",{"$f":"\"MOE \"&Z135","v":"MOE Foreign born:"},"Naturalized U.S. citizen",{"$f":"\"MOE \"&AB135","v":"MOE Naturalized U.S. citizen"},"Not a U.S. citizen",{"$f":"\"MOE \"&AD135","v":"MOE Not a U.S. citizen"},"CurrentResidenceTotal:",{"$f":"\"MOE \"&AF135","v":"MOE CurrentResidenceTotal:"},"SameHouse:",{"$f":"\"MOE \"&AH135","v":"MOE SameHouse:"},"DifferentHouse:",{"$f":"\"MOE \"&AJ135","v":"MOE DifferentHouse:"},"DiffHouseInNH",{"$f":"\"MOE \"&AL135","v":"MOE DiffHouseInNH"},"DiffHouseInNHSameCnty",{"$f":"\"MOE \"&AN135","v":"MOE DiffHouseInNHSameCnty"},"DiffHouseInNHDiffCnty",{"$f":"\"MOE \"&AP135","v":"MOE DiffHouseInNHDiffCnty"},"DiffHouseInDiffState",{"$f":"\"MOE \"&AR135","v":"MOE DiffHouseInDiffState"},"DiffHouseInElsewhere",{"$f":"\"MOE \"&AT135","v":"MOE DiffHouseInElsewhere"}]
[{"$f":"VLOOKUP(DropDownList!$B$47,CntyQryCensus!$A$510:$DA$552,A$1)","v":"Berlin"},10221,22,9890,131,6219,452,3514,434,2231,346,369,131,656,279,258,130,157,104,130,102,0,18,27,28,331,132,233,104,98,66,10086,64,8085,396,2001,471.35761370746945,1512,427.28561876103436,1119,397,393,158,488,199,1,2]
[]
["School Enrollment - Education"]
["NAME","Total Pop 3 Years and Older","MOE Total Pop 3 Years and Older","SchEnrlPop3yrOver",{"$f":"\"MOE \"&D139","v":"MOE SchEnrlPop3yrOver"},"TotalEnrollNursy&Kinder",{"$f":"\"MOE \"&F139","v":"MOE TotalEnrollNursy&Kinder"},"NurserSchEnrl",{"$f":"\"MOE \"&H139","v":"MOE NurserSchEnrl"},"KinderSchEnrl",{"$f":"\"MOE \"&J139","v":"MOE KinderSchEnrl"},"ElemSchEnrl (1-8)",{"$f":"\"MOE \"&L139","v":"MOE ElemSchEnrl (1-8)"},"HighSchEnrl(9-12)",{"$f":"\"MOE \"&N139","v":"MOE HighSchEnrl(9-12)"},"TotalElementry&HSEnroll",{"$f":"\"MOE \"&P139","v":"MOE TotalElementry&HSEnroll"},"CollGradSchEnrl",{"$f":"\"MOE \"&R139","v":"MOE CollGradSchEnrl"},"PopNotEnrolled","MOE PopNotEnrolled","Pop25yrsOver",{"$f":"\"MOE \"&V139","v":"MOE Pop25yrsOver"},"EduAtain<9grd",{"$f":"\"MOE \"&X139","v":"MOE EduAtain<9grd"},"EduAtainHSnoDip",{"$f":"\"MOE \"&Z139","v":"MOE EduAtainHSnoDip"},"EduAtainHSgrad",{"$f":"\"MOE \"&AB139","v":"MOE EduAtainHSgrad"},"EduAtainCollNoDeg",{"$f":"\"MOE \"&AD139","v":"MOE EduAtainCollNoDeg"},"EduAtainAssocDeg",{"$f":"\"MOE \"&AF139","v":"MOE EduAtainAssocDeg"},"EduAtainBachDeg",{"$f":"\"MOE \"&AH139","v":"MOE EduAtainBachDeg"},"EduAtainGradProfDeg",{"$f":"\"MOE \"&AJ139","v":"MOE EduAtainGradProfDeg"}]
[{"$f":"VLOOKUP(DropDownList!$B$47,CntyQryCensus!$A$510:$DA$552,A$1)","v":"Berlin"},9947,88,1692,242,192,97.836598469080073,10,12,4,6,694,178.33115263464205,460,115,1154,212.1956644231922,346,147.13938969562162,8255,242,7881,164,369,132.94359706281458,735,168.21117679868956,3544,321.80894953372569,1425,249.49749497740453,725,163.37992532744039,732,163.51758315239374,246,82.861329943466387]
[]
["Occupied Owner Housing Value"]
["NAME","Estimate; Total:","Margin of Error; Total:","Estimate; Total: - Less than $10,000","Margin of Error; Total: - Less than $10,000","Estimate; Total: - $10,000 to $14,999","Margin of Error; Total: - $10,000 to $14,999","Estimate; Total: - $15,000 to $19,999","Margin of Error; Total: - $15,000 to $19,999","Estimate; Total: - $20,000 to $24,999","Margin of Error; Total: - $20,000 to $24,999","Estimate; Total: - $25,000 to $29,999","Margin of Error; Total: - $25,000 to $29,999","Estimate; Total: - $30,000 to $34,999","Margin of Error; Total: - $30,000 to $34,999","Estimate; Total: - $35,000 to $39,999","Margin of Error; Total: - $35,000 to $39,999","Estimate; Total: - $40,000 to $49,999","Margin of Error; Total: - $40,000 to $49,999","Estimate; Total: - $50,000 to $59,999","Margin of Error; Total: - $50,000 to $59,999","Estimate; Total: - $60,000 to $69,999","Margin of Error; Total: - $60,000 to $69,999","Estimate; Total: - $70,000 to $79,999","Margin of Error; Total: - $70,000 to $79,999","Estimate; Total: - $80,000 to $89,999","Margin of Error; Total: - $80,000 to $89,999","Estimate; Total: - $90,000 to $99,999","Margin of Error; Total: - $90,000 to $99,999","Estimate; Total: - $100,000 to $124,999","Margin of Error; Total: - $100,000 to $124,999","Estimate; Total: - $125,000 to $149,999","Margin of Error; Total: - $125,000 to $149,999","Estimate; Total: - $150,000 to $174,999","Margin of Error; Total: - $150,000 to $174,999","Estimate; Total: - $175,000 to $199,999","Margin of Error; Total: - $175,000 to $199,999","Estimate; Total: - $200,000 to $249,999","Margin of Error; Total: - $200,000 to $249,999","Estimate; Total: - $250,000 to $299,999","Margin of Error; Total: - $250,000 to $299,999","Estimate; Total: - $300,000 to $399,999","Margin of Error; Total: - $300,000 to $399,999","Estimate; Total: - $400,000 to $499,999","Margin of Error; Total: - $400,000 to $499,999","Estimate; Total: - $500,000 to $749,999","Margin of Error; Total: - $500,000 to $749,999","Estimate; Total: - $750,000 to $999,999","Margin of Error; Total: - $750,000 to $999,999","Estimate; Total: - $1,000,000 to $1,499,999","Margin of Error; Total: - $1,000,000 to $1,499,999","Estimate; Total: - $1,500,000 to $1,999,999","Margin of Error; Total: - $1,500,000 to $1,999,999","Estimate; Total: - $2,000,000 or more","Margin of Error; Total: - $2,000,000 or more","MedianOwnOCCHomeValue","MOE MedianOwnOCCHomeValue","OnwerOccHsU","MOE OnwerOccHsU","OwnerCosts>20PctHHInc","MOE OwnerCosts>20PctHHInc","OwnerCosts20to29.9PctHHInc","MOE OwnerCosts20to29.9PctHHInc","OwnerCosts<30PctHHInc","MOE OwnerCosts<30PctHHInc","OwnerCosts>30PctHHInc","MOE OwnerCosts>30PctHHInc","OwnerCosts30to34.9PctHHInc","MOE OwnerCosts30to34.9PctHHInc","OwnerCosts<35PctHHInc","MOE OwnerCosts<35PctHHInc","OwnerCosts>35PctHHInc","MOE OwnerCosts>35PctHHInc","OwnerCosts>50PctHHInc","MOE OwnerCosts>50PctHHInc","OwnerCostsPctNotcomputed","MOE OwnerCostsPctNotcomputed","OwnerOHUHhInc<20k","MOE OwnerOHUHhInc<20k","OwnerOHUHhInc<20kHCosts<20pct","MOE OwnerOHUHhInc<20kHCosts<20pct","OwnerOHUHhInc<20kHCosts20to29pct","MOE OwnerOHUHhInc<20kHCosts20to29pct","OwnerOHUHhInc>20kHCosts30pct","MOE OwnerOHUHhInc>20kHCosts30pct","OwnerOHUHhInc20kTo34999","MOE OwnerOHUHhInc20kTo34999","OwnerOHUHhInc20kTo34999HCosts<20pct","MOE OwnerOHUHhInc20kTo34999HCosts<20pct","OwnerOHUHhInc20kTo34999HCosts20to29pct","MOE OwnerOHUHhInc20kTo34999HCosts20to29pct","OwnerOHUHhInc20kTo34999HCosts30pct","MOE OwnerOHUHhInc20kTo34999HCosts30pct","OwnerOHUHhInc35kTo49999","MOE OwnerOHUHhInc35kTo49999","OwnerOHUHhInc35kTo49999HCosts<20pct","MOE OwnerOHUHhInc35kTo49999HCosts<20pct","OwnerOHUHhInc35kTo49999HCosts20to29pct","MOE OwnerOHUHhInc35kTo49999HCosts20to29pct","OwnerOHUHhInc35kTo49999HCosts30pct","MOE OwnerOHUHhInc35kTo49999HCosts30pct","OwnerOHUHhInc50kTo74999","MOE OwnerOHUHhInc50kTo74999","OwnerOHUHhInc50kTo74999HCosts<20pct","MOE OwnerOHUHhInc50kTo74999HCosts<20pct","OwnerOHUHhInc50kTo74999HCosts20to29pct","MOE OwnerOHUHhInc50kTo74999HCosts20to29pct","OwnerOHUHhInc50kTo74999HCosts30pct","MOE OwnerOHUHhInc50kTo74999HCosts30pct","OwnerOHUHhInc>75000","MOE OwnerOHUHhInc>75000","OwnerOHUHhInc>75000HCosts<20pct","MOE OwnerOHUHhInc>75000HCosts<20pct","OwnerOHUHhInc>75000HCosts20to29pct","MOE OwnerOHUHhInc>75000HCosts20to29pct","OwnerOHUHhInc>75000HCosts30pct","MOE OwnerOHUHhInc>75000HCosts30pct","ZeroOrNegativeIncome","MOE ZeroOrNegativeIncome"]
[{"$f":"VLOOKUP(DropDownList!$B$47,CntyQryCensus!$A$510:$DA$552,A$1)","v":"Berlin"},698,79,37,36,8,12,7,9,7,9,8,10,6,9,4,7,15,13,42,36,10,12,35,20,15,22,68,33,54,41,43,27,69,37,34,22,91,37,76,32,28,20,23,24,13,12,0,11,5,8,0,11,0,11,144200,27802,698,79,334,80.956778592036386,174,61.335144900782616,508,101.56771140475698,190,58.523499553598128,43,28.792360097775937,551,105.56988206870366,147,50.950956811427986,75,27.658633371878661,0,15.556349186104045,77,36,0,11,6,9,71,33,179,60,40,34,70,46,69,37,87,40,35,28,27,17,25,21,103,35,54,26,33,20,16,11,252,58,205,49,38,34,9,9,0,11]
[]
["Occupied Rental Housing Value"]
["NAME","RntrOccHU","MOE RntrOccHU","RntrOccHUwRent","MOE RntrOccHUwRent","ROHUGRent<100","MOE ROHUGRent<100","ROHUGRent100to149","MOE ROHUGRent100to149","ROHUGRent150to199","MOE ROHUGRent150to199","ROHUGRent200to249","MOE ROHUGRent200to249","ROHUGRent250to299","MOE ROHUGRent250to299","ROHUGRent300to349","MOE ROHUGRent300to349","ROHUGRent350to399","MOE ROHUGRent350to399","ROHUGRent400to449","MOE ROHUGRent400to449","ROHUGRent450to499","MOE ROHUGRent450to499","ROHUGRent500to549","MOE ROHUGRent500to549","ROHUGRent550to599","MOE ROHUGRent550to599","ROHUGRent600to649","MOE ROHUGRent600to649","ROHUGRent650to699","MOE ROHUGRent650to699","ROHUGRent700to749","MOE ROHUGRent700to749","ROHUGRent750to799","MOE ROHUGRent750to799","ROHUGRent800to899","MOE ROHUGRent800to899","ROHUGRent900to999","MOE ROHUGRent900to999","ROHUGRent1000to1249","MOE ROHUGRent1000to1249","ROHUGRent1250to1499","MOE ROHUGRent1250to1499","ROHUGRent1500to1999","MOE ROHUGRent1500to1999","ROHUGRent2000-2499","MOE ROHUGRent2000-2499","ROHUGRent2500-2999","MOE ROHUGRent2500-2999","ROHUGRent3000-3499","MOE ROHUGRent3000-3499","ROHUGRent3500<","MOE ROHUGRent3500<","ROHUNoGRent","MOE ROHUNoGRent","MedianGrossRnt","MOE MedianGrossRnt","H73RenterOccHU","MOE H73RenterOccHU","H73ROHUHhInc<10k","MOE H73ROHUHhInc<10k","H73ROHUHhInc<10kRnt<20pct","MOE H73ROHUHhInc<10kRnt<20pct","H73ROHUHhInc<10kRnt20to25pct","MOE H73ROHUHhInc<10kRnt20to25pct","H73ROHUHhInc<10kRnt25to30pct","MOE H73ROHUHhInc<10kRnt25to30pct","H73ROHUHhInc<10kRnt30to35pct","MOE H73ROHUHhInc<10kRnt30to35pct","H73ROHUHhInc<10kRnt35to39.9","MOE H73ROHUHhInc<10kRnt35to39.9","H73ROHUHhInc<10kRnt40to49.9","MOE H73ROHUHhInc<10kRnt40to49.9","H73ROHUHhInc<10kRnt>50pct","MOE H73ROHUHhInc<10kRnt>50pct","H73ROHUHhInc<10kPctNotComput","MOE H73ROHUHhInc<10kPctNotComput","H73ROHUHhInc10to20k","MOE H73ROHUHhInc10to20k","H73ROHUHhInc10to20kRnt<20pct","MOE H73ROHUHhInc10to20kRnt<20pct","H73ROHUHhInc10to20kRnt20to25pct","MOE H73ROHUHhInc10to20kRnt20to25pct","H73ROHUHhInc10to20kRnt25to30pct","MOE H73ROHUHhInc10to20kRnt25to30pct","H73ROHUHhInc10to20kRnt30to35pct","MOE H73ROHUHhInc10to20kRnt30to35pct","H73ROHUHhInc10to20kRnt35to39.9","MOE H73ROHUHhInc10to20kRnt35to39.9","H73ROHUHhInc10to20kRnt40to49.9","MOE H73ROHUHhInc10to20kRnt40to49.9","H73ROHUHhInc10to20kRnt>50pct","MOE H73ROHUHhInc10to20kRnt>50pct","H73ROHUHhInc10to20kRntPctNC","MOE H73ROHUHhInc10to20kRntPctNC","H73ROHUHhInc20to34.9k","MOE H73ROHUHhInc20to34.9k","H73ROHUHhInc20to34.9kRnt<20pct","MOE H73ROHUHhInc20to34.9kRnt<20pct","H73ROHUHhInc20to34.9kRnt20to25pct","MOE H73ROHUHhInc20to34.9kRnt20to25pct","H73ROHUHhInc20to34.9kRnt25to30pct","MOE H73ROHUHhInc20to34.9kRnt25to30pct","H73ROHUHhInc20to34.9kRnt30to35pct","MOE H73ROHUHhInc20to34.9kRnt30to35pct","H73ROHUHhInc20to34.9kRnt35to39.9","MOE H73ROHUHhInc20to34.9kRnt35to39.9","H73ROHUHhInc20to34.9kRnt40to49.9","MOE H73ROHUHhInc20to34.9kRnt40to49.9","H73ROHUHhInc20to34.9kRnt>50pct","MOE H73ROHUHhInc20to34.9kRnt>50pct","H73ROHUHhInc20to34.9kRntPctNC","MOE H73ROHUHhInc20to34.9kRntPctNC","H73ROHUHhInc35to49.9k","MOE H73ROHUHhInc35to49.9k","H73ROHUHhInc35to49.9kRnt<20pct","MOE H73ROHUHhInc35to49.9kRnt<20pct","H73ROHUHhInc35to49.9kRnt20to25pct","MOE H73ROHUHhInc35to49.9kRnt20to25pct","H73ROHUHhInc35to49.9kRnt25to30pct","MOE H73ROHUHhInc35to49.9kRnt25to30pct","H73ROHUHhInc35to49.9kRnt30to35pct","MOE H73ROHUHhInc35to49.9kRnt30to35pct","H73ROHUHhInc35to49.9kRnt35to39.9","MOE H73ROHUHhInc35to49.9kRnt35to39.9","H73ROHUHhInc35to49.9kRnt40to49.9","MOE H73ROHUHhInc35to49.9kRnt40to49.9","H73ROHUHhInc35to49.9kRnt>50pct","MOE H73ROHUHhInc35to49.9kRnt>50pct","H73ROHUHhInc35to49.9kRntPctNC","MOE H73ROHUHhInc35to49.9kRntPctNC","H73ROHUHhInc50to74.9k","MOE H73ROHUHhInc50to74.9k","H73ROHUHhInc50to74.9kRnt<20pct","MOE H73ROHUHhInc50to74.9kRnt<20pct","H73ROHUHhInc50to74.9kRnt20to25pct","MOE H73ROHUHhInc50to74.9kRnt20to25pct","H73ROHUHhInc50to74.9kRnt25to30pct","MOE H73ROHUHhInc50to74.9kRnt25to30pct","H73ROHUHhInc50to74.9kRnt30to35pct","MOE H73ROHUHhInc50to74.9kRnt30to35pct","H73ROHUHhInc50to74.9kRnt35to39.9","MOE H73ROHUHhInc50to74.9kRnt35to39.9","H73ROHUHhInc50to74.9kRnt40to49.9","MOE H73ROHUHhInc50to74.9kRnt40to49.9","H73ROHUHhInc50to74.9kRnt>50pct","MOE H73ROHUHhInc50to74.9kRnt>50pct","H73ROHUHhInc50to74.9kRntPctNC","MOE H73ROHUHhInc50to74.9kRntPctNC","H73ROHUHhInc75to99.9k","MOE H73ROHUHhInc75to99.9k","H73ROHUHhInc75to99.9kRnt<20pct","MOE H73ROHUHhInc75to99.9kRnt<20pct","H73ROHUHhInc75to99.9kRnt20to25pct","MOE H73ROHUHhInc75to99.9kRnt20to25pct","H73ROHUHhInc75to99.9kRnt25to30pct","MOE H73ROHUHhInc75to99.9kRnt25to30pct","H73ROHUHhInc75to99.9kRnt30to35pct","MOE H73ROHUHhInc75to99.9kRnt30to35pct","H73ROHUHhInc75to99.9kRnt35to39.9","MOE H73ROHUHhInc75to99.9kRnt35to39.9","H73ROHUHhInc75to99.9kRnt40to49.9","MOE H73ROHUHhInc75to99.9kRnt40to49.9","H73ROHUHhInc75to99.9kRnt>50pct","MOE H73ROHUHhInc75to99.9kRnt>50pct","H73ROHUHhInc75to99.9kRntPctNC","MOE H73ROHUHhInc75to99.9kRntPctNC","H73ROHUHhInc>100k","MOE H73ROHUHhInc>100k","H73ROHUHhInc>100kRnt<20pct","MOE H73ROHUHhInc>100kRnt<20pct","H73ROHUHhInc>100kRnt20to25pct","MOE H73ROHUHhInc>100kRnt20to25pct","H73ROHUHhInc>100kRnt25to30pct","MOE H73ROHUHhInc>100kRnt25to30pct","H73ROHUHhInc>100kRnt30to35pct","MOE H73ROHUHhInc>100kRnt30to35pct","H73ROHUHhInc>100kRnt35to39.9","MOE H73ROHUHhInc>100kRnt35to39.9","H73ROHUHhInc>100kRnt40to49.9","MOE H73ROHUHhInc>100kRnt40to49.9","H73ROHUHhInc>100kRnt>50pct","MOE H73ROHUHhInc>100kRnt>50pct","H73ROHUHhInc>100kRntPctNC","MOE H73ROHUHhInc>100kRntPctNC"]
[{"$f":"VLOOKUP(DropDownList!$B$47,CntyQryCensus!$A$510:$DA$552,A$1)","v":"Berlin"},256,55,226,60,0,11,0,11,5,7,16,18,0,11,0,11,5,7,8,13,20,22,16,16,6,8,8,13,47,31,24,27,5,9,33,25,15,12,11,12,7,11,0,11,0,11,0,11,0,11,0,11,30,29,681,31,256,55,19,17,0,11,5,7,0,11,6,8,0,11,0,11,8,13,0,11,31,26,0,11,0,11,10,16,0,11,0,11,0,11,21,22,0,11,117,48,0,11,0,11,20,17,27,22,48,41,3,5,11,13,8,9,37,23,27,21,0,11,6,8,0,11,0,11,0,11,0,11,4,6,36,31,11,16,0,11,7,11,0,11,0,11,0,11,0,11,18,27,5,9,5,9,0,11,0,11,0,11,0,11,0,11,0,11,0,11,11,12,11,12,0,11,0,11,0,11,0,11,0,11,0,11,0,11]
[]
[]
[]
[]
[]
["Occupied Rental Housing Cost Burdern All Incomes"]
["NAME","RenterOccHsU",{"$f":"\"MOE \"&B155","v":"MOE RenterOccHsU"},"GRnt<20PctHHInc",{"$f":"\"MOE \"&D155","v":"MOE GRnt<20PctHHInc"},"GRnt20to249PctHHInc",{"$f":"\"MOE \"&F155","v":"MOE GRnt20to249PctHHInc"},"GRnt25to29.9PctHHInc",{"$f":"\"MOE \"&H155","v":"MOE GRnt25to29.9PctHHInc"},"GRnt<30PctHHInc",{"$f":"\"MOE \"&J155","v":"MOE GRnt<30PctHHInc"},"GRnt>30PctHHInc",{"$f":"\"MOE \"&L155","v":"MOE GRnt>30PctHHInc"},"GRnt30to349PctHHInc",{"$f":"\"MOE \"&N155","v":"MOE GRnt30to349PctHHInc"},"GRnt<35PctHHInc",{"$f":"\"MOE \"&P155","v":"MOE GRnt<35PctHHInc"},"GRnt>35PctHHInc",{"$f":"\"MOE \"&R155","v":"MOE GRnt>35PctHHInc"},"GRnt>50PctHHInc",{"$f":"\"MOE \"&T155","v":"MOE GRnt>50PctHHInc"},"HCB Not Calculated",{"$f":"\"MOE \"&V155","v":"MOE HCB Not Calculated"}]
[{"$f":"VLOOKUP(DropDownList!$B$47,CntyQryCensus!$A$510:$DA$552,A$1)","v":"Berlin"},256,55,54,29.732137494637012,5,7,43,27,102,40.767634221279017,124,55.461698495448189,33,23,135,46.808118953873802,91,50.467811523782167,40,29,30,29]
[]
["Income By Household Type and Tenure"]
["NAME","TotalFamilyHouseholds",{"$f":"\"MOE \"&B159","v":"MOE TotalFamilyHouseholds"},"FamInc<10K",{"$f":"\"MOE \"&D159","v":"MOE FamInc<10K"},"FamInc10to15K",{"$f":"\"MOE \"&F159","v":"MOE FamInc10to15K"},"FamInc15to20K",{"$f":"\"MOE \"&H159","v":"MOE FamInc15to20K"},"FamInc20to25K",{"$f":"\"MOE \"&J159","v":"MOE FamInc20to25K"},"FamInc25to30K",{"$f":"\"MOE \"&L159","v":"MOE FamInc25to30K"},"FamInc30to35K",{"$f":"\"MOE \"&N159","v":"MOE FamInc30to35K"},"FamInc35to40K",{"$f":"\"MOE \"&P159","v":"MOE FamInc35to40K"},"FamInc40to45K",{"$f":"\"MOE \"&R159","v":"MOE FamInc40to45K"},"FamInc45to50K",{"$f":"\"MOE \"&T159","v":"MOE FamInc45to50K"},"FamInc50to60K",{"$f":"\"MOE \"&V159","v":"MOE FamInc50to60K"},"FamInc60to75K",{"$f":"\"MOE \"&X159","v":"MOE FamInc60to75K"},"FamInc75to100K",{"$f":"\"MOE \"&Z159","v":"MOE FamInc75to100K"},"FamInc100to125K",{"$f":"\"MOE \"&AB159","v":"MOE FamInc100to125K"},"FamInc125to150K",{"$f":"\"MOE \"&AD159","v":"MOE FamInc125to150K"},"FamInc150to200K",{"$f":"\"MOE \"&AF159","v":"MOE FamInc150to200K"},"FamInc>200K",{"$f":"\"MOE \"&AH159","v":"MOE FamInc>200K"},"MedFamInc",{"$f":"\"MOE \"&AJ159","v":"MOE MedFamInc"},"TotalNonNonFamilyHouseholds",{"$f":"\"MOE \"&AL159","v":"MOE TotalNonNonFamilyHouseholds"},"NonFamInc<10K",{"$f":"\"MOE \"&AN159","v":"MOE NonFamInc<10K"},"NonFamInc10to15K",{"$f":"\"MOE \"&AP159","v":"MOE NonFamInc10to15K"},"NonFamInc15to20K",{"$f":"\"MOE \"&AR159","v":"MOE NonFamInc15to20K"},"NonFamInc20to25K",{"$f":"\"MOE \"&AT159","v":"MOE NonFamInc20to25K"},"NonFamInc25to30K",{"$f":"\"MOE \"&AV159","v":"MOE NonFamInc25to30K"},"NonFamInc30to35K",{"$f":"\"MOE \"&AX159","v":"MOE NonFamInc30to35K"},"NonFamInc35to40K",{"$f":"\"MOE \"&AZ159","v":"MOE NonFamInc35to40K"},"NonFamInc40to45K",{"$f":"\"MOE \"&BB159","v":"MOE NonFamInc40to45K"},"NonFamInc45to50K",{"$f":"\"MOE \"&BD159","v":"MOE NonFamInc45to50K"},"NonFamInc50to60K",{"$f":"\"MOE \"&BF159","v":"MOE NonFamInc50to60K"},"NonFamInc60to75K",{"$f":"\"MOE \"&BH159","v":"MOE NonFamInc60to75K"},"NonFamInc75to100K",{"$f":"\"MOE \"&BJ159","v":"MOE NonFamInc75to100K"},"NonFamInc100to125K",{"$f":"\"MOE \"&BL159","v":"MOE NonFamInc100to125K"},"NonFamInc125to150K",{"$f":"\"MOE \"&BN159","v":"MOE NonFamInc125to150K"},"NonFamInc150to200K",{"$f":"\"MOE \"&BP159","v":"MOE NonFamInc150to200K"},"NonFamInc>200K",{"$f":"\"MOE \"&BR159","v":"MOE NonFamInc>200K"},"MedNonFamInc",{"$f":"\"MOE \"&BT159","v":"MOE MedNonFamInc"},"PerCapitaIncome","MOE PerCapitaIncome"]
[{"$f":"VLOOKUP(DropDownList!$B$47,CntyQryCensus!$A$510:$DA$552,A$1)","v":"Berlin"},2236,170,107,63,185,89,36,23,168,102,87,57,105,50,130,68,107,59,117,54,138,69,273,80,292,92,199,100,155,73,119,67,18,21,58218,8303,1741,261,266,91,274,103,129,75,263,104,101,62,165,89,165,94,86,50,67,80,109,75,70,42,27,27,12,16,7,12,0,18,0,18,23954,2967,21511,4331]
[]
[]
[]
["2010 Census"]
[]
["TownName","LOGRECNO","COUNTY","TotalPop","TotalPop1Race","TotalPopWhite","TotalPopAfricanAmerican","TotalPopAmericanIndAlaska","TotalPopAsian","TotalPopNativeHawaiianPIsland","TotalPopSomeOtherRace","TotalPopTwoOrMoreRaces","TotalPopHispanicLatino","TotalNonHispanicLatino","TotPopUnder15yrs","TotPop15to24yrs","TotPop25to34yrs","TotPop35to44yrs","TotPop45to54yrs","TotPop55to64yrs","TotPop65to74yrs","TotPopOver74yrs","MedianAge","MedianAgeMale","MedianAgeFemale","TotalHH","TotalPopInHouseholds","TotalPopInFamilyHH","TotalPopInNonFamilyHH","AvgHHSize","TotalFamilyHH","TotalFamilyHHSpouse","TotalSingleParentHH","TotalNonFamilyHH","AvgFamilyHHSize","AvgNonFamilyHHSize","AverageHHSizeOwnerOccupied","AverageHHSizeRentalOccupied","TotalHousingUnits","TotalOccupiedHU","TotalOwnerOccupiedHUs","TotalRentalOccupiedHU","TotalVacantHU","VacantHUForRent","VacantHURentNotOccupied","VacantHUForSale","VacantHUsSoldNotOccupied","VacantHUSeasonalRecreational","VacantHUsAllOtherVacants","HomeOwnerVacancyRate","HomeRentalVacancyRate","Total HH","Total Single Family HU","Total Multi-Family HU","Total Manufacture HU"]
[{"$f":"VLOOKUP(DropDownList!$B$47,CntyQryCensus!$A$558:$DA$577,A$1)","v":"Berlin"},{"$f":"VLOOKUP(DropDownList!$B$47,CntyQryCensus!$A$558:$DA$577,B$1)","v":"0000248"},{"$f":"VLOOKUP(DropDownList!$B$47,CntyQryCensus!$A$558:$DA$577,C$1)","v":"007"},{"$f":"VLOOKUP(DropDownList!$B$47,CntyQryCensus!$A$558:$DA$577,D$1)","v":10051},{"$f":"VLOOKUP(DropDownList!$B$47,CntyQryCensus!$A$558:$DA$577,E$1)","v":9873},{"$f":"VLOOKUP(DropDownList!$B$47,CntyQryCensus!$A$558:$DA$577,F$1)","v":9703},{"$f":"VLOOKUP(DropDownList!$B$47,CntyQryCensus!$A$558:$DA$577,G$1)","v":81},{"$f":"VLOOKUP(DropDownList!$B$47,CntyQryCensus!$A$558:$DA$577,H$1)","v":39},{"$f":"VLOOKUP(DropDownList!$B$47,CntyQryCensus!$A$558:$DA$577,I$1)","v":28},{"$f":"VLOOKUP(DropDownList!$B$47,CntyQryCensus!$A$558:$DA$577,J$1)","v":0},{"$f":"VLOOKUP(DropDownList!$B$47,CntyQryCensus!$A$558:$DA$577,K$1)","v":22},{"$f":"VLOOKUP(DropDownList!$B$47,CntyQryCensus!$A$558:$DA$577,L$1)","v":178},{"$f":"VLOOKUP(DropDownList!$B$47,CntyQryCensus!$A$558:$DA$577,M$1)","v":152},{"$f":"VLOOKUP(DropDownList!$B$47,CntyQryCensus!$A$558:$DA$577,N$1)","v":9899},{"$f":"VLOOKUP(DropDownList!$B$47,CntyQryCensus!$A$558:$DA$577,O$1)","v":1464},{"$f":"VLOOKUP(DropDownList!$B$47,CntyQryCensus!$A$558:$DA$577,P$1)","v":1160},{"$f":"VLOOKUP(DropDownList!$B$47,CntyQryCensus!$A$558:$DA$577,Q$1)","v":1178},{"$f":"VLOOKUP(DropDownList!$B$47,CntyQryCensus!$A$558:$DA$577,R$1)","v":1270},{"$f":"VLOOKUP(DropDownList!$B$47,CntyQryCensus!$A$558:$DA$577,S$1)","v":1663},{"$f":"VLOOKUP(DropDownList!$B$47,CntyQryCensus!$A$558:$DA$577,T$1)","v":1305},{"$f":"VLOOKUP(DropDownList!$B$47,CntyQryCensus!$A$558:$DA$577,U$1)","v":852},{"$f":"VLOOKUP(DropDownList!$B$47,CntyQryCensus!$A$558:$DA$577,V$1)","v":1159},{"$f":"VLOOKUP(DropDownList!$B$47,CntyQryCensus!$A$558:$DA$577,W$1)","v":44.7},{"$f":"VLOOKUP(DropDownList!$B$47,CntyQryCensus!$A$558:$DA$577,X$1)","v":42.3},{"$f":"VLOOKUP(DropDownList!$B$47,CntyQryCensus!$A$558:$DA$577,Y$1)","v":47.6},{"$f":"VLOOKUP(DropDownList!$B$47,CntyQryCensus!$A$558:$DA$577,Z$1)","v":4178},{"$f":"VLOOKUP(DropDownList!$B$47,CntyQryCensus!$A$558:$DA$577,AA$1)","v":9096},{"$f":"VLOOKUP(DropDownList!$B$47,CntyQryCensus!$A$558:$DA$577,AB$1)","v":4295},{"$f":"VLOOKUP(DropDownList!$B$47,CntyQryCensus!$A$558:$DA$577,AC$1)","v":4801},{"$f":"VLOOKUP(DropDownList!$B$47,CntyQryCensus!$A$558:$DA$577,AD$1)","v":2.1800000000000002},{"$f":"VLOOKUP(DropDownList!$B$47,CntyQryCensus!$A$558:$DA$577,AE$1)","v":2515},{"$f":"VLOOKUP(DropDownList!$B$47,CntyQryCensus!$A$558:$DA$577,AF$1)","v":1805},{"$f":"VLOOKUP(DropDownList!$B$47,CntyQryCensus!$A$558:$DA$577,AG$1)","v":710},{"$f":"VLOOKUP(DropDownList!$B$47,CntyQryCensus!$A$558:$DA$577,AH$1)","v":1663},{"$f":"VLOOKUP(DropDownList!$B$47,CntyQryCensus!$A$558:$DA$577,AI$1)","v":2.71},{"$f":"VLOOKUP(DropDownList!$B$47,CntyQryCensus!$A$558:$DA$577,AJ$1)","v":2.8869512928442576},{"$f":"VLOOKUP(DropDownList!$B$47,CntyQryCensus!$A$558:$DA$577,AK$1)","v":2.31},{"$f":"VLOOKUP(DropDownList!$B$47,CntyQryCensus!$A$558:$DA$577,AL$1)","v":1.97},{"$f":"VLOOKUP(DropDownList!$B$47,CntyQryCensus!$A$558:$DA$577,AM$1)","v":4910},{"$f":"VLOOKUP(DropDownList!$B$47,CntyQryCensus!$A$558:$DA$577,AN$1)","v":4178},{"$f":"VLOOKUP(DropDownList!$B$47,CntyQryCensus!$A$558:$DA$577,AO$1)","v":2543},{"$f":"VLOOKUP(DropDownList!$B$47,CntyQryCensus!$A$558:$DA$577,AP$1)","v":1635},{"$f":"VLOOKUP(DropDownList!$B$47,CntyQryCensus!$A$558:$DA$577,AQ$1)","v":732},{"$f":"VLOOKUP(DropDownList!$B$47,CntyQryCensus!$A$558:$DA$577,AR$1)","v":254},{"$f":"VLOOKUP(DropDownList!$B$47,CntyQryCensus!$A$558:$DA$577,AS$1)","v":8},{"$f":"VLOOKUP(DropDownList!$B$47,CntyQryCensus!$A$558:$DA$577,AT$1)","v":121},{"$f":"VLOOKUP(DropDownList!$B$47,CntyQryCensus!$A$558:$DA$577,AU$1)","v":26},{"$f":"VLOOKUP(DropDownList!$B$47,CntyQryCensus!$A$558:$DA$577,AV$1)","v":101},{"$f":"VLOOKUP(DropDownList!$B$47,CntyQryCensus!$A$558:$DA$577,AW$1)","v":222},{"$f":"VLOOKUP(DropDownList!$B$47,CntyQryCensus!$A$558:$DA$577,AX$1)","v":4.5},{"$f":"VLOOKUP(DropDownList!$B$47,CntyQryCensus!$A$558:$DA$577,AY$1)","v":13.4},{"$f":"VLOOKUP(DropDownList!$B$47,CntyQryCensus!$A$558:$DA$577,AZ$1)","v":4910},{"$f":"VLOOKUP(DropDownList!$B$47,CntyQryCensus!$A$558:$DA$577,BA$1)","v":2686},{"$f":"VLOOKUP(DropDownList!$B$47,CntyQryCensus!$A$558:$DA$577,BB$1)","v":2192},{"$f":"VLOOKUP(DropDownList!$B$47,CntyQryCensus!$A$558:$DA$577,BC$1)","v":32}]

{"sheet":"CntyQuery","index":7,"n_rows":230,"n_cols":243,"rows_kept":230,"cut":false,"hidden":true,"merged":[]}
["CountyName","Cnty_Code","Census_Cnty_Code","LandAcres","WaterAcres","HousingUnits90Cen","Persons90Cen","Families90Cen","Households90cen","MalePop90cen","FemalePop90cen","WhitePop","BlackPop","AmerIndianPop","AsianPIPop","OtherRacePop","HispanicOrPop","AgeUnder15_90cen","Age15to24_90cen","Age25to34_90cen","Age35to44_90cen","Age45to54_90cen","Age55to64_90cen","Age65to74_90cen","Age75andOver_90cen","PersonsInHH90cen","PersonsInFamHH90cen","PersonsInGC","PersonsPerHH90cen","PersonsPerFam90Cen","SinglePersonHH90cen","MarriedCoupleHH90cen","SingleParentHH90cen","NonFamilyHH90cen","TotalHousingUnits","OccupiedHousingUnits","VacantHousingUnits","OwnerOccHU","RenterOccHU","VacantForRent90","VacantForSale90","VacantSeasonalRec","SingFamHU90cen","MultiFamHU90cen","MobileHom90cen","SingFamOwnHU90cen","MultiFamOwnHU90cen","MobileHomOwnHU90cen","SingFamRntrHU90cen","MultiFamRntrHU90cen","MobileHomRntrHU90cen","HU<5yrs90cen","HU5to20yrs90cen","HU20to50yrs90cen","HU>50yrs90cen","Units0Bedroom90cen","Units1Bedroom90cen","Units2Bedroom90cen","Units3Bedroom90cen","Units4+Bedroom90cen","HI<5K","HI5Kto10K","HI10Kto15K","HI15Kto25K","HI25Kto35K","HI35Kto50K","HI50Kto75K","HI75Kto100K","HI>100K","MedHI","HH<25HI<5K","HH<25HI5Kto10K","HH<25HI10Kto15K","HH<25HI15Kto25K","HH<25HI25Kto35K","HH<25HI35Kto50K","HH<25HI50Kto75K","HH<25HI75Kto100K","HH<25HI>100K","HH25to34HI<5K","HH25to34HI5Kto10K","HH25to34HI10Kto15K","HH25to34HI15Kto25K","HH25to34HI25Kto35K","HH25to34HI35Kto50K","HH25to34HI50Kto75K","HH25to34HI75Kto100K","HH25to34HI>100K","HH35to44HI<5K","HH35to44HI5Kto10K","HH35to44HI10Kto15K","HH35to44HI15Kto25K","HH35to44HI25Kto35K","HH35to44HI35Kto50K","HH35to44HI50Kto75K","HH35to44HI75Kto100K","HH35to44HI>100K","HH45to54HI<5K","HH45to54HI5Kto10K","HH45to54HI10Kto15K","HH45to54HI15Kto25K","HH45to54HI25Kto35K","HH45to54HI35Kto50K","HH45to54HI50Kto75K","HH45to54HI75Kto100K","HH45to54HI>100K","HH55to64HI<5K","HH55to64HI5Kto10K","HH55to64HI10Kto15K","HH55to64HI15Kto25K","HH55to64HI25Kto35K","HH55to64HI35Kto50K","HH55to64HI50Kto75K","HH55to64HI75Kto100K","HH55to64HI>100K","HH65to74HI<5K","HH65to74HI5Kto10K","HH65to74HI10Kto15K","HH65to74HI15Kto25K","HH65to74HI25Kto35K","HH65to74HI35Kto50K","HH65to74HI50Kto75K","HH65to74HI75Kto100K","HH65to74HI>100K","HH>75HI<5K","HH>75HI5Kto10K","HH>75HI10Kto15K","HH>75HI15Kto25K","HH>75HI25Kto35K","HH>75HI35Kto50K","HH>75HI50Kto75K","HH>75HI75Kto100K","HH>75HI>100K","SchoolEnrollment1thru12","Pop25andOver","HSGradorHigher","CollGradorHigher","NativePop","ForeignBornPop","BornStateOfRes","NativePop2","ForeignBornPop2","DroveAlone","CarPooled","PublicTranspt","Walked","OtherMeans","WorkedAtHome","HHInc<10K","HHInc10to15K","HHInc15to25K","HHInc25to35K","HHInc35to50K","HHInc50to75K","HHInc75to100K","HHInc100to150K","HHInc>150K"]
["Census 1990 Data -           Query Name:  DPCnty90Census"]
["NAME","FIPS","COUSUBFP","LandAcres","WaterAcres","HousingUnits90Cen","Persons90Cen","Families90Cen","Households90cen","MalePop90cen","FemalePop90cen","WhitePop","BlackPop","AmerIndianPop","AsianPIPop","OtherRacePop","HispanicOrPop","AgeUnder15_90cen","Age15to24_90cen","Age25to34_90cen","Age35to44_90cen","Age45to54_90cen","Age55to64_90cen","Age65to74_90cen","Age75andOver_90cen","PersonsInHH90cen","PersonsInFamHH90cen","PersonsInGC","PersonsPerHH90cen","PersonsPerFam90Cen","SinglePersonHH90cen","MarriedCoupleHH90cen","SingleParentHH90cen","NonFamilyHH90cen","TotalHousingUnits","OccupiedHousingUnits","VacantHousingUnits","OwnerOccHU","RenterOccHU","VacantForRent90","VacantForSale90","VacantSeasonalRec","SingFamHU90cen","MultiFamHU90cen","MobileHom90cen","SingFamOwnHU90cen","MultiFamOwnHU90cen","MobileHomOwnHU90cen","SingFamRntrHU90cen","MultiFamRntrHU90cen","MobileHomRntrHU90cen","HU<5yrs90cen","HU5to20yrs90cen","HU20to50yrs90cen","HU>50yrs90cen","Units0Bedroom90cen","Units1Bedroom90cen","Units2Bedroom90cen","Units3Bedroom90cen","Units4+Bedroom90cen","HI<5K","HI5Kto10K","HI10Kto15K","HI15Kto25K","HI25Kto35K","HI35Kto50K","HI50Kto75K","HI75Kto100K","HI>100K","MedHI","HH<25HI<5K","HH<25HI5Kto10K","HH<25HI10Kto15K","HH<25HI15Kto25K","HH<25HI25Kto35K","HH<25HI35Kto50K","HH<25HI50Kto75K","HH<25HI75Kto100K","HH<25HI>100K","HH25to34HI<5K","HH25to34HI5Kto10K","HH25to34HI10Kto15K","HH25to34HI15Kto25K","HH25to34HI25Kto35K","HH25to34HI35Kto50K","HH25to34HI50Kto75K","HH25to34HI75Kto100K","HH25to34HI>100K","HH35to44HI<5K","HH35to44HI5Kto10K","HH35to44HI10Kto15K","HH35to44HI15Kto25K","HH35to44HI25Kto35K","HH35to44HI35Kto50K","HH35to44HI50Kto75K","HH35to44HI75Kto100K","HH35to44HI>100K","HH45to54HI<5K","HH45to54HI5Kto10K","HH45to54HI10Kto15K","HH45to54HI15Kto25K","HH45to54HI25Kto35K","HH45to54HI35Kto50K","HH45to54HI50Kto75K","HH45to54HI75Kto100K","HH45to54HI>100K","HH55to64HI<5K","HH55to64HI5Kto10K","HH55to64HI10Kto15K","HH55to64HI15Kto25K","HH55to64HI25Kto35K","HH55to64HI35Kto50K","HH55to64HI50Kto75K","HH55to64HI75Kto100K","HH55to64HI>100K","HH65to74HI<5K","HH65to74HI5Kto10K","HH65to74HI10Kto15K","HH65to74HI15Kto25K","HH65to74HI25Kto35K","HH65to74HI35Kto50K","HH65to74HI50Kto75K","HH65to74HI75Kto100K","HH65to74HI>100K","HH>75HI<5K","HH>75HI5Kto10K","HH>75HI10Kto15K","HH>75HI15Kto25K","HH>75HI25Kto35K","HH>75HI35Kto50K","HH>75HI50Kto75K","HH>75HI75Kto100K","HH>75HI>100K","SchoolEnrollment1thru12","Pop25andOver","HSGradorHigher","CollGradorHigher","NativePop","ForeignBornPop","BornStateOfRes","NativePop2","ForeignBornPop2","DroveAlone","CarPooled","PublicTranspt","Walked","OtherMeans","WorkedAtHome","HHInc<10K","HHInc10to15K","HHInc15to25K","HHInc25to35K","HHInc35to50K","HHInc50to75K","HHInc75to100K","HHInc100to150K","HHInc>150K"]
["Atkinson and Gilmanton Grant",7005,"02420",12351.3,0.01,0,0,0,0,0,0,0,0,0,0,0,0,0,0,0,0,0,0,0,0,0,0,0,0,0,0,0,0,0,0,0,0,0,0,0,0,0,0,0,0,0,0,0,0,0,0,0,0,0,0,0,0,0,0,0,0,0,0,0,0,0,0,0,0,0,0,0,0,0,0,0,0,0,0,0,0,0,0,0,0,0,0,0,0,0,0,0,0,0,0,0,0,0,0,0,0,0,0,0,0,0,0,0,0,0,0,0,0,0,0,0,0,0,0,0,0,0,0,0,0,0,0,0,0,0,0,0,0,0,0,0,0,0,0,0,0,0,0,0,0,0,0,0,0,0,0,0,0,0,0,0,0,null,null,null,null,null,null,null,0]
["Bean's Grant",7010,"04100",6182.58,0,0,0,0,0,0,0,0,0,0,0,0,0,0,0,0,0,0,0,0,0,0,0,0,0,0,0,0,0,0,0,0,0,0,0,0,0,0,0,0,0,0,0,0,0,0,0,0,0,0,0,0,0,0,0,0,0,0,0,0,0,0,0,0,0,0,0,0,0,0,0,0,0,0,0,0,0,0,0,0,0,0,0,0,0,0,0,0,0,0,0,0,0,0,0,0,0,0,0,0,0,0,0,0,0,0,0,0,0,0,0,0,0,0,0,0,0,0,0,0,0,0,0,0,0,0,0,0,0,0,0,0,0,0,0,0,0,0,0,0,0,0,0,0,0,0,0,0,0,0,0,0,0,null,null,null,null,null,null,null,0]
["Bean's Purchase",7015,"04260",41774.379999999997,13.27,0,0,0,0,0,0,0,0,0,0,0,0,0,0,0,0,0,0,0,0,0,0,0,0,0,0,0,0,0,0,0,0,0,0,0,0,0,0,0,0,0,0,0,0,0,0,0,0,0,0,0,0,0,0,0,0,0,0,0,0,0,0,0,0,0,0,0,0,0,0,0,0,0,0,0,0,0,0,0,0,0,0,0,0,0,0,0,0,0,0,0,0,0,0,0,0,0,0,0,0,0,0,0,0,0,0,0,0,0,0,0,0,0,0,0,0,0,0,0,0,0,0,0,0,0,0,0,0,0,0,0,0,0,0,0,0,0,0,0,0,0,0,0,0,0,0,0,0,0,0,0,0,null,null,null,null,null,null,null,0]
["Berlin",7020,"05140",39338.14,467.59,5416,11824,3287,4943,5617,6207,11712,15,21,57,19,61,2180,1478,1847,1491,1086,1368,1312,1062,11607,9688,217,2.3481691280598826,2.9473684210526314,1453,2698,589,203,5416,4943,473,2998,1945,221,53,22,2507,2792,117,2321,605,117,102,1809,34,96,451,1437,3441,71,640,2021,2093,600,379,708,531,871,753,1063,547,94,40,25040,60,30,60,67,74,21,8,0,7,22,83,38,197,176,363,62,0,0,33,30,62,99,109,266,244,20,18,41,46,31,62,94,138,118,36,9,48,37,30,165,129,220,94,38,6,72,183,151,219,116,40,21,0,0,103,299,159,62,55,15,0,0,0,1768,8174,5270,583,11040,780,9187,11040,780,3644,711,10,421,72,76,1087,531,871,753,1063,547,94,27,13,null,null,null,null,null,null,null,3441]
["Cambridge",7025,"08420",32684.05,414.68,43,0,0,0,0,0,0,0,0,0,0,0,0,0,0,0,0,0,0,0,0,0,0,0,0,0,0,0,0,43,0,43,0,0,0,0,43,34,0,9,0,0,9,0,0,0,6,15,18,0,0,11,16,12,0,0,0,0,0,0,0,0,0,0,0,0,0,0,0,0,0,0,0,0,0,0,0,0,0,0,0,0,0,0,0,0,0,0,0,0,0,0,0,0,0,0,0,0,0,0,0,0,0,0,0,0,0,0,0,0,0,0,0,0,0,0,0,0,0,0,0,0,0,0,0,0,0,0,0,0,0,0,0,0,0,0,0,0,0,0,0,0,0,0,0,0,0,0,0,0,0,0,null,null,null,null,null,null,null,0]
["Carroll",7030,"10100",32171.439999999999,16.07,611,528,140,206,262,266,522,3,1,2,0,7,110,67,71,70,83,59,39,29,528,446,0,2.563106796116505,3.1857142857142855,53,121,19,13,611,206,405,150,56,10,10,381,301,261,49,130,2,49,24,23,9,245,177,103,82,2,41,192,268,104,7,18,20,47,27,47,16,4,2,26000,0,0,0,3,0,0,0,0,0,0,2,2,11,4,15,3,1,0,1,0,0,15,4,10,3,1,0,0,3,6,4,4,8,8,2,0,0,2,7,8,6,10,0,0,2,3,6,3,2,5,2,0,0,0,3,5,2,4,4,2,2,0,0,101,340,288,38,504,13,220,504,13,157,11,0,12,0,31,25,20,47,27,47,16,4,2,0,null,null,null,null,null,null,null,82]
["Chandler's Purchase",7035,"11220",1360.68,0.04,0,0,0,0,0,0,0,0,0,0,0,0,0,0,0,0,0,0,0,0,0,0,0,0,0,0,0,0,0,0,0,0,0,0,0,0,0,0,0,0,0,0,0,0,0,0,0,0,0,0,0,0,0,0,0,0,0,0,0,0,0,0,0,0,0,0,0,0,0,0,0,0,0,0,0,0,0,0,0,0,0,0,0,0,0,0,0,0,0,0,0,0,0,0,0,0,0,0,0,0,0,0,0,0,0,0,0,0,0,0,0,0,0,0,0,0,0,0,0,0,0,0,0,0,0,0,0,0,0,0,0,0,0,0,0,0,0,0,0,0,0,0,0,0,0,0,0,0,0,0,0,0,null,null,null,null,null,null,null,0]
["Clarksville",7040,"13220",38686.04,1229.75,237,232,75,91,124,108,232,0,0,0,0,0,40,26,27,46,26,28,31,8,232,213,0,2.5494505494505493,2.84,13,65,10,3,237,91,146,82,9,0,2,138,194,0,43,78,0,43,8,0,1,33,95,43,76,14,40,88,75,30,6,11,6,18,13,28,14,2,0,30417,0,0,0,0,0,0,0,0,0,0,0,0,3,2,4,0,0,0,0,0,2,4,4,13,4,2,0,0,0,2,0,0,5,5,0,0,3,0,0,5,2,2,2,0,0,0,4,2,6,5,2,3,0,0,3,7,0,0,0,2,0,0,0,45,188,122,18,240,19,163,240,19,77,28,3,2,4,8,17,6,18,13,28,14,2,0,0,null,null,null,null,null,null,null,76]
["Colebrook",7045,"13780",26087.46,19.07,1168,2444,643,1005,1184,1260,2418,6,5,12,3,15,525,310,380,370,264,246,201,148,2403,1965,41,2.3910447761194029,3.0559875583203731,301,541,102,61,1168,1005,163,639,366,43,12,76,616,358,194,477,45,194,57,271,38,115,351,217,486,23,238,305,395,208,76,124,106,211,169,197,91,28,11,24429,4,6,15,25,21,10,2,0,0,10,6,19,37,33,49,8,3,0,7,11,12,67,32,53,36,13,0,6,9,6,15,27,41,20,5,6,9,8,20,23,26,35,20,5,5,18,34,20,24,24,7,3,2,0,22,50,14,20,6,2,2,0,0,452,1606,1107,219,2299,146,1569,2299,146,740,167,17,155,33,59,200,106,211,169,197,91,28,6,5,null,null,null,null,null,null,null,486]
["Columbia",7050,"13940",39181.08,39.01,376,661,187,248,336,325,660,0,0,1,0,0,146,97,102,116,82,68,40,10,661,586,0,2.6653225806451615,3.1336898395721926,48,160,27,13,376,248,128,205,43,2,4,99,273,19,84,163,4,84,16,10,17,57,112,100,106,4,56,105,157,53,17,22,14,64,37,68,23,2,0,26477,4,0,0,6,3,3,0,0,0,0,0,3,18,10,19,7,2,0,4,0,3,12,12,12,6,0,0,0,7,0,11,5,14,6,0,0,4,9,3,9,2,15,0,0,0,0,3,5,8,5,5,4,0,0,5,3,0,0,0,0,0,0,0,124,421,314,28,651,9,472,651,9,225,60,6,9,5,7,39,14,64,37,68,23,2,0,0,null,null,null,null,null,null,null,106]
["Crawford's Purchase",7055,"16100",5242.83,0,0,0,0,0,0,0,0,0,0,0,0,0,0,0,0,0,0,0,0,0,0,0,0,0,0,0,0,0,0,0,0,0,0,0,0,0,0,0,0,0,0,0,0,0,0,0,0,0,0,0,0,0,0,0,0,0,0,0,0,0,0,0,0,0,0,0,0,0,0,0,0,0,0,0,0,0,0,0,0,0,0,0,0,0,0,0,0,0,0,0,0,0,0,0,0,0,0,0,0,0,0,0,0,0,0,0,0,0,0,0,0,0,0,0,0,0,0,0,0,0,0,0,0,0,0,0,0,0,0,0,0,0,0,0,0,0,0,0,0,0,0,0,0,0,0,0,0,0,0,0,0,0,null,null,null,null,null,null,null,0]
["Cutt's Grant",7060,"16660",7218.74,0.01,0,0,0,0,0,0,0,0,0,0,0,0,0,0,0,0,0,0,0,0,0,0,0,0,0,0,0,0,0,0,0,0,0,0,0,0,0,0,0,0,0,0,0,0,0,0,0,0,0,0,0,0,0,0,0,0,0,0,0,0,0,0,0,0,0,0,0,0,0,0,0,0,0,0,0,0,0,0,0,0,0,0,0,0,0,0,0,0,0,0,0,0,0,0,0,0,0,0,0,0,0,0,0,0,0,0,0,0,0,0,0,0,0,0,0,0,0,0,0,0,0,0,0,0,0,0,0,0,0,0,0,0,0,0,0,0,0,0,0,0,0,0,0,0,0,0,0,0,0,0,0,0,null,null,null,null,null,null,null,0]
["Dalton",7065,"16820",17624.09,480.25,475,827,232,326,425,402,820,0,4,3,0,0,176,82,140,140,85,84,75,45,827,708,0,2.53680981595092,3.0517241379310347,74,200,32,20,475,326,149,290,36,4,10,112,325,7,143,191,2,143,20,1,15,100,148,121,106,22,42,180,171,60,26,20,51,84,62,41,32,2,5,22562,0,0,0,0,6,3,0,0,0,2,0,10,28,14,9,4,0,3,6,2,4,20,15,14,16,2,0,5,0,8,16,6,5,6,0,0,2,10,13,5,10,6,6,0,2,8,6,7,9,9,0,0,0,0,3,2,9,6,2,4,0,0,0,156,552,383,51,803,5,465,803,5,261,39,0,17,3,34,46,51,84,62,41,32,2,5,0,null,null,null,null,null,null,null,106]
["Dix's Grant",7070,"18340",12843.49,0,10,0,0,0,0,0,0,0,0,0,0,0,0,0,0,0,0,0,0,0,0,0,0,0,0,0,0,0,0,10,0,10,0,0,0,0,10,10,0,0,0,0,0,0,0,0,0,0,0,9,0,0,2,5,2,0,0,0,0,0,0,0,0,0,0,0,0,0,0,0,0,0,0,0,0,0,0,0,0,0,0,0,0,0,0,0,0,0,0,0,0,0,0,0,0,0,0,0,0,0,0,0,0,0,0,0,0,0,0,0,0,0,0,0,0,0,0,0,0,0,0,0,0,0,0,0,0,0,0,0,0,0,0,0,0,0,0,0,0,0,0,0,0,0,0,0,0,0,0,0,0,0,null,null,null,null,null,null,null,9]
["Dixville",7075,"18420",31369.88,85.4,36,50,17,20,26,24,50,0,0,0,0,4,10,3,9,7,4,12,1,4,50,47,0,2.5,2.7647058823529411,3,14,3,0,36,20,16,4,16,0,0,16,24,6,6,2,1,6,6,5,5,0,2,2,33,3,0,8,20,6,0,0,0,2,8,5,5,0,0,37500,0,0,0,0,0,0,0,0,0,0,0,0,2,3,0,0,0,0,0,0,0,0,0,5,0,0,0,0,0,0,0,0,0,0,0,0,0,0,0,0,2,0,2,0,0,0,0,0,0,0,0,3,0,0,0,0,0,0,3,0,0,0,0,6,37,27,15,40,10,11,40,10,9,3,0,11,0,0,0,0,2,8,5,5,0,0,0,null,null,null,null,null,null,null,33]
["Dummer",7080,"19300",30629.5,831.85,214,327,95,118,169,158,327,0,0,0,0,1,70,42,50,46,51,34,17,17,327,299,0,2.7711864406779663,3.1473684210526316,18,86,9,5,214,118,96,110,8,2,2,71,157,4,53,88,4,53,5,0,3,47,75,51,62,12,30,92,72,29,5,5,21,26,17,20,17,3,9,27656,0,0,3,3,2,0,0,0,0,0,0,0,2,5,8,2,0,5,2,0,2,5,2,2,3,0,2,3,0,0,6,3,8,7,0,0,0,2,8,0,3,2,5,3,2,0,0,5,7,2,0,0,0,0,0,3,3,3,0,0,0,0,0,67,222,145,17,329,7,217,329,7,115,14,0,0,5,3,10,21,26,17,20,17,3,5,4,null,null,null,null,null,null,null,62]
["Errol",7085,"25140",38930.199999999997,5512.81,369,292,83,117,148,144,292,0,0,0,0,0,63,27,54,28,48,32,31,9,292,249,0,2.4957264957264957,3,26,74,9,8,369,117,252,102,15,2,3,241,301,7,61,79,2,61,9,3,3,56,86,148,78,10,65,153,108,32,15,5,13,30,30,13,8,3,0,22361,0,0,0,4,3,0,0,0,0,0,0,2,11,8,4,0,0,0,2,0,2,6,3,4,0,0,0,5,0,2,7,0,5,6,3,0,4,0,0,2,8,0,0,0,0,4,3,3,0,1,0,2,0,0,0,2,4,0,7,0,0,0,0,24,196,166,16,275,14,156,275,14,99,6,0,20,3,0,20,13,30,30,13,8,3,0,0,null,null,null,null,null,null,null,78]
["Erving's Location",7090,"25180",2401.67,0,0,0,0,0,0,0,0,0,0,0,0,0,0,0,0,0,0,0,0,0,0,0,0,0,0,0,0,0,0,0,0,0,0,0,0,0,0,0,0,0,0,0,0,0,0,0,0,0,0,0,0,0,0,0,0,0,0,0,0,0,0,0,0,0,0,0,0,0,0,0,0,0,0,0,0,0,0,0,0,0,0,0,0,0,0,0,0,0,0,0,0,0,0,0,0,0,0,0,0,0,0,0,0,0,0,0,0,0,0,0,0,0,0,0,0,0,0,0,0,0,0,0,0,0,0,0,0,0,0,0,0,0,0,0,0,0,0,0,0,0,0,0,0,0,0,0,0,0,0,0,0,0,null,null,null,null,null,null,null,0]
["Gorham",7095,"30260",20414.68,260.8,1426,3173,922,1322,1531,1642,3153,1,2,17,0,6,560,389,494,522,313,330,360,205,3173,2706,0,2.4001512859304084,2.9349240780911061,341,779,143,59,1426,1322,104,976,346,31,13,32,718,410,298,640,96,298,38,268,40,121,480,272,546,16,185,469,550,199,64,126,185,263,227,227,179,19,20,25494,0,0,24,4,5,4,0,0,0,7,0,20,85,72,47,25,0,0,0,0,23,35,53,120,58,10,7,0,21,5,18,43,15,52,0,13,9,30,24,28,27,20,31,9,0,14,40,63,58,27,21,13,0,0,34,35,26,35,0,0,0,0,0,470,2204,1589,224,2950,202,2230,2950,202,1057,132,3,155,26,50,190,185,263,227,227,179,19,20,0,null,null,null,null,null,null,null,546]
["Greens Grant",7100,"31780",2348.38,0.02,0,0,0,0,0,0,0,0,0,0,0,0,0,0,0,0,0,0,0,0,0,0,0,0,0,0,0,0,0,0,0,0,0,0,0,0,0,0,0,0,0,0,0,0,0,0,0,0,0,0,0,0,0,0,0,0,0,0,0,0,0,0,0,0,0,0,0,0,0,0,0,0,0,0,0,0,0,0,0,0,0,0,0,0,0,0,0,0,0,0,0,0,0,0,0,0,0,0,0,0,0,0,0,0,0,0,0,0,0,0,0,0,0,0,0,0,0,0,0,0,0,0,0,0,0,0,0,0,0,0,0,0,0,0,0,0,0,0,0,0,0,0,0,0,0,0,0,0,0,0,0,0,null,null,null,null,null,null,null,0]
["Hadley's Purchase",7105,"32420",4740.42,0,0,0,0,0,0,0,0,0,0,0,0,0,0,0,0,0,0,0,0,0,0,0,0,0,0,0,0,0,0,0,0,0,0,0,0,0,0,0,0,0,0,0,0,0,0,0,0,0,0,0,0,0,0,0,0,0,0,0,0,0,0,0,0,0,0,0,0,0,0,0,0,0,0,0,0,0,0,0,0,0,0,0,0,0,0,0,0,0,0,0,0,0,0,0,0,0,0,0,0,0,0,0,0,0,0,0,0,0,0,0,0,0,0,0,0,0,0,0,0,0,0,0,0,0,0,0,0,0,0,0,0,0,0,0,0,0,0,0,0,0,0,0,0,0,0,0,0,0,0,0,0,0,null,null,null,null,null,null,null,0]
["Jefferson",7110,"38820",32061.59,145.04,543,965,264,346,487,478,955,1,0,9,0,2,195,152,129,170,119,80,57,63,947,838,18,2.7369942196531793,3.1742424242424243,59,234,30,23,543,346,197,285,61,6,9,169,406,38,99,220,10,99,38,18,5,101,145,86,211,6,77,153,191,116,12,25,31,69,75,73,42,7,7,29511,0,5,2,4,2,4,0,0,0,0,0,5,13,17,19,4,0,0,0,0,6,22,18,19,16,4,0,0,0,0,4,14,21,18,0,3,5,2,2,7,17,7,4,3,4,7,11,6,12,5,0,0,0,0,0,7,10,7,2,3,0,0,0,199,618,462,93,904,61,528,904,61,340,35,0,10,6,26,37,31,69,75,73,42,7,4,3,null,null,null,null,null,null,null,211]
["Kilkenny ",7115,"39940",16440.48,3.75,0,0,0,0,0,0,0,0,0,0,0,0,0,0,0,0,0,0,0,0,0,0,0,0,0,0,0,0,0,0,0,0,0,0,0,0,0,0,0,0,0,0,0,0,0,0,0,0,0,0,0,0,0,0,0,0,0,0,0,0,0,0,0,0,0,0,0,0,0,0,0,0,0,0,0,0,0,0,0,0,0,0,0,0,0,0,0,0,0,0,0,0,0,0,0,0,0,0,0,0,0,0,0,0,0,0,0,0,0,0,0,0,0,0,0,0,0,0,0,0,0,0,0,0,0,0,0,0,0,0,0,0,0,0,0,0,0,0,0,0,0,0,0,0,0,0,0,0,0,0,0,0,null,null,null,null,null,null,null,0]
["Lancaster",7120,"40420",32129.19,633.66999999999996,1513,3522,922,1315,1644,1878,3508,2,3,8,1,16,777,464,470,538,390,298,290,295,3410,2935,112,2.5931558935361219,3.1832971800433838,344,764,158,49,1513,1315,198,942,373,36,19,76,931,439,143,751,76,143,65,297,11,240,265,167,833,24,180,394,579,328,95,108,168,214,185,292,132,38,48,28611,6,24,6,5,16,11,0,0,0,24,0,6,53,58,30,18,7,6,7,0,28,40,27,90,63,0,29,6,22,19,27,69,84,38,11,5,0,4,0,25,8,36,7,14,0,19,26,66,43,7,35,6,6,8,33,32,43,21,0,6,0,0,0,684,2252,1738,545,3394,132,2082,3394,132,1062,216,8,117,14,74,203,168,214,185,292,132,38,33,15,null,null,null,null,null,null,null,833]
["Low and Burbank's Grant",7125,"43620",16728.18,0,0,0,0,0,0,0,0,0,0,0,0,0,0,0,0,0,0,0,0,0,0,0,0,0,0,0,0,0,0,0,0,0,0,0,0,0,0,0,0,0,0,0,0,0,0,0,0,0,0,0,0,0,0,0,0,0,0,0,0,0,0,0,0,0,0,0,0,0,0,0,0,0,0,0,0,0,0,0,0,0,0,0,0,0,0,0,0,0,0,0,0,0,0,0,0,0,0,0,0,0,0,0,0,0,0,0,0,0,0,0,0,0,0,0,0,0,0,0,0,0,0,0,0,0,0,0,0,0,0,0,0,0,0,0,0,0,0,0,0,0,0,0,0,0,0,0,0,0,0,0,0,0,null,null,null,null,null,null,null,0]
["Martin's Location",7130,"46020",2403.2399999999998,0.05,0,0,0,0,0,0,0,0,0,0,0,0,0,0,0,0,0,0,0,0,0,0,0,0,0,0,0,0,0,0,0,0,0,0,0,0,0,0,0,0,0,0,0,0,0,0,0,0,0,0,0,0,0,0,0,0,0,0,0,0,0,0,0,0,0,0,0,0,0,0,0,0,0,0,0,0,0,0,0,0,0,0,0,0,0,0,0,0,0,0,0,0,0,0,0,0,0,0,0,0,0,0,0,0,0,0,0,0,0,0,0,0,0,0,0,0,0,0,0,0,0,0,0,0,0,0,0,0,0,0,0,0,0,0,0,0,0,0,0,0,0,0,0,0,0,0,0,0,0,0,0,0,null,null,null,null,null,null,null,0]
["Milan",7135,"47860",40916.25,330.81,680,1295,377,483,651,644,1289,1,2,3,0,0,292,145,218,254,127,112,107,40,1295,1161,0,2.681159420289855,3.079575596816976,81,351,26,25,680,483,197,433,50,3,11,157,525,31,124,346,12,124,16,15,19,111,270,129,155,12,54,227,282,90,10,37,53,83,83,137,75,8,2,31875,0,0,2,5,6,2,0,0,0,2,2,4,14,16,48,26,0,2,2,8,10,17,22,42,34,8,0,0,2,4,15,10,18,11,0,0,0,0,5,12,19,18,4,0,0,4,18,19,18,8,9,0,0,0,2,7,9,2,2,0,0,0,0,213,862,640,76,1251,35,1003,1251,35,530,36,0,19,10,35,47,53,83,83,137,75,8,0,2,null,null,null,null,null,null,null,155]
["Millsfield",7140,"48260",28715.84,221.95,53,21,4,6,8,13,21,0,0,0,0,0,6,4,4,2,2,2,1,0,21,17,0,3.5,4.25,0,3,1,2,53,6,47,5,1,0,0,47,42,0,11,4,0,11,0,0,1,6,16,18,5,2,16,10,17,0,0,0,0,2,0,0,0,2,0,46250,0,0,0,2,0,0,0,0,0,0,0,0,0,0,0,0,0,0,0,0,0,0,0,0,0,0,0,0,0,0,0,0,0,0,2,0,0,0,0,0,0,0,0,0,0,0,0,0,0,0,0,0,0,0,0,0,0,0,0,0,0,0,0,8,7,5,0,19,0,7,19,0,3,0,0,4,0,2,0,0,2,0,0,0,2,0,0,null,null,null,null,null,null,null,5]
["Northumberland",7145,"56100",23505.49,53.39,1060,2492,707,973,1207,1285,2475,4,5,4,4,10,544,327,385,347,263,262,231,133,2492,2158,0,2.5611510791366907,3.0523338048090523,212,579,128,54,1060,973,87,728,245,19,15,20,666,261,133,586,43,133,40,187,18,94,216,212,537,6,130,338,423,162,51,136,81,197,214,186,93,17,8,26250,2,13,6,23,16,2,1,2,0,2,5,3,37,48,33,17,3,0,0,6,10,35,36,50,26,4,6,0,10,11,16,32,42,29,3,0,14,13,10,23,43,51,15,5,2,18,41,24,38,26,8,5,0,0,15,48,17,25,13,0,0,0,0,466,1642,1191,119,2419,73,1738,2419,73,674,179,2,186,13,12,187,81,197,214,186,93,17,5,3,null,null,null,null,null,null,null,537]
["Odell ",7150,"57860",28614.07,192.77,78,0,0,0,0,0,0,0,0,0,0,0,0,0,0,0,0,0,0,0,0,0,0,0,0,0,0,0,0,78,0,78,0,0,0,0,78,78,0,0,0,0,0,0,0,0,10,38,31,0,33,23,21,2,0,0,0,0,0,0,0,0,0,0,0,0,0,0,0,0,0,0,0,0,0,0,0,0,0,0,0,0,0,0,0,0,0,0,0,0,0,0,0,0,0,0,0,0,0,0,0,0,0,0,0,0,0,0,0,0,0,0,0,0,0,0,0,0,0,0,0,0,0,0,0,0,0,0,0,0,0,0,0,0,0,0,0,0,0,0,0,0,0,0,0,0,0,0,0,0,0,0,null,null,null,null,null,null,null,0]
["Pinkham's Grant",7155,"61620",2431.1999999999998,0,3,11,2,3,7,4,11,0,0,0,0,0,2,2,2,1,4,0,0,0,11,10,0,3.6666666666666665,5,1,2,0,0,3,3,0,0,3,0,0,0,3,0,0,0,0,0,3,0,0,0,0,2,3,0,0,3,2,0,0,0,0,0,2,3,0,0,0,40417,0,0,0,0,0,0,0,0,0,0,0,0,0,0,0,0,0,0,0,0,0,0,2,0,0,0,0,0,0,0,0,0,3,0,0,0,0,0,0,0,0,0,0,0,0,0,0,0,0,0,0,0,0,0,0,0,0,0,0,0,0,0,0,5,11,11,0,18,0,16,18,0,3,0,0,5,0,0,0,0,0,2,3,0,0,0,0,null,null,null,null,null,null,null,3]
["Pittsburg",7160,"61780",180680.09,5750.4,1224,901,273,371,456,445,900,1,0,0,0,1,176,92,117,140,103,138,85,50,901,792,0,2.4285714285714284,2.901098901098901,87,240,33,11,1224,371,853,321,50,18,16,794,956,31,237,277,4,237,32,12,6,233,356,361,264,75,192,515,301,131,20,44,49,74,82,48,29,9,3,24167,3,3,0,0,0,6,0,0,0,0,4,7,17,11,4,6,2,3,3,4,0,16,25,8,8,0,0,2,0,4,6,19,15,12,5,0,0,12,9,17,21,11,3,0,0,3,17,18,11,6,4,0,0,0,9,4,11,7,0,0,0,2,0,143,605,424,64,827,47,475,827,47,250,65,0,24,9,31,64,49,74,82,48,29,9,3,0,null,null,null,null,null,null,null,264]
["Randolph",7165,"63860",30114.28,28.03,275,371,107,150,190,181,370,0,0,1,0,2,80,25,63,69,35,37,39,23,371,319,0,2.4733333333333332,2.9813084112149535,36,100,7,7,275,150,125,126,24,0,1,118,244,13,18,112,5,18,16,6,2,40,65,62,112,5,16,59,102,97,4,11,9,27,27,32,31,5,16,36500,0,0,0,0,0,0,0,0,0,2,9,2,11,2,10,2,0,0,0,0,1,7,14,9,9,2,4,0,0,0,3,2,2,4,2,3,0,0,0,0,2,6,11,0,4,0,2,0,5,4,0,3,1,5,2,0,6,1,3,5,2,0,0,51,283,256,113,367,15,191,367,15,148,15,0,4,7,7,15,9,27,27,32,31,5,14,2,null,null,null,null,null,null,null,112]
["Sargent's Purchase",7170,"67860",16556.91,2.72,0,0,0,0,0,0,0,0,0,0,0,0,0,0,0,0,0,0,0,0,0,0,0,0,0,0,0,0,0,0,0,0,0,0,0,0,0,0,0,0,0,0,0,0,0,0,0,0,0,0,0,0,0,0,0,0,0,0,0,0,0,0,0,0,0,0,0,0,0,0,0,0,0,0,0,0,0,0,0,0,0,0,0,0,0,0,0,0,0,0,0,0,0,0,0,0,0,0,0,0,0,0,0,0,0,0,0,0,0,0,0,0,0,0,0,0,0,0,0,0,0,0,0,0,0,0,0,0,0,0,0,0,0,0,0,0,0,0,0,0,0,0,0,0,0,0,0,0,0,0,0,0,null,null,null,null,null,null,null,0]
["Second College Grant",7175,"68500",26742.31,31.59,8,0,0,0,0,0,0,0,0,0,0,0,0,0,0,0,0,0,0,0,0,0,0,0,0,0,0,0,0,8,0,8,0,0,0,0,8,8,0,0,0,0,0,0,0,0,0,0,0,6,4,0,0,2,0,0,0,0,0,0,0,0,0,0,0,0,0,0,0,0,0,0,0,0,0,0,0,0,0,0,0,0,0,0,0,0,0,0,0,0,0,0,0,0,0,0,0,0,0,0,0,0,0,0,0,0,0,0,0,0,0,0,0,0,0,0,0,0,0,0,0,0,0,0,0,0,0,0,0,0,0,0,0,0,0,0,0,0,0,0,0,0,0,0,0,0,0,0,0,0,0,0,null,null,null,null,null,null,null,6]
["Shelburne",7180,"68980",30635.01,576.87,179,437,123,142,214,223,431,0,3,2,1,0,126,37,62,97,44,37,17,17,437,413,0,3.0774647887323945,3.3577235772357725,14,117,6,5,179,142,37,128,14,2,2,26,154,7,18,118,3,18,9,3,2,39,51,37,57,3,15,45,66,55,0,5,18,19,48,17,17,20,7,32411,0,0,0,0,0,0,0,0,0,0,0,0,5,14,0,0,3,5,0,0,3,5,9,11,14,12,2,0,0,0,3,7,3,0,5,0,0,0,9,0,12,1,3,0,0,0,0,3,2,3,2,0,0,0,0,5,3,4,3,0,0,0,0,114,290,226,63,442,9,242,442,9,167,22,0,0,0,13,5,18,19,48,17,17,20,5,2,null,null,null,null,null,null,null,57]
["Stark",7185,"73060",37901.910000000003,319.89999999999998,368,518,141,185,256,262,506,0,7,5,0,0,131,55,90,80,50,51,40,21,518,465,0,2.8,3.2978723404255321,35,123,18,9,368,185,183,151,34,4,3,158,264,34,70,113,6,70,7,23,4,46,125,98,109,6,75,134,124,39,11,21,20,24,39,39,27,7,0,30417,0,0,5,0,3,4,0,0,0,0,3,2,5,15,12,3,0,0,0,0,2,4,17,4,10,5,0,4,0,0,4,2,7,5,0,0,2,0,3,6,2,9,9,2,0,0,14,4,2,0,3,0,0,0,5,4,4,3,0,0,0,0,0,113,321,246,23,505,12,353,505,12,180,11,0,3,0,5,32,20,24,39,39,27,7,0,0,null,null,null,null,null,null,null,109]
["Stewartstown",7190,"73380",29772.61,246.54,628,1048,240,348,527,521,1043,0,3,0,2,13,217,150,174,134,110,98,59,106,926,781,122,2.6609195402298851,3.2541666666666669,86,189,51,22,628,348,280,248,100,17,0,230,381,98,149,190,12,149,20,66,14,174,153,100,201,27,102,221,207,71,18,34,54,68,62,68,35,3,5,24931,4,3,6,7,7,2,0,0,0,4,9,9,13,24,14,17,0,0,0,0,9,14,10,19,8,0,0,3,6,10,17,2,17,2,3,5,3,4,9,9,16,14,6,0,0,2,4,9,7,3,2,2,0,0,2,8,2,1,0,0,0,0,0,138,681,409,44,943,105,667,943,105,268,85,3,49,13,33,52,54,68,62,68,35,3,5,0,null,null,null,null,null,null,null,201]
["Stratford",7195,"74180",51146.76,84.71,479,927,239,333,456,471,923,0,4,0,0,1,208,156,118,133,116,81,80,35,927,803,0,2.7837837837837838,3.3598326359832638,69,183,56,25,479,333,146,226,107,17,9,108,233,79,167,168,7,167,36,59,12,35,157,98,185,12,83,135,160,85,28,47,44,59,57,55,36,3,2,22440,2,0,5,11,0,2,0,0,0,4,2,7,12,12,9,3,0,0,4,3,2,7,19,20,10,0,0,6,9,6,7,15,6,16,2,0,8,7,7,6,7,9,4,0,2,0,18,12,14,0,7,3,1,0,4,8,5,2,4,2,0,0,0,185,574,347,31,895,33,595,895,33,219,99,3,22,18,2,75,44,59,57,55,36,3,2,0,null,null,null,null,null,null,null,185]
["Success ",7200,"74500",36184.85,306.75,11,0,0,0,0,0,0,0,0,0,0,0,0,0,0,0,0,0,0,0,0,0,0,0,0,0,0,0,0,11,0,11,0,0,0,0,11,0,0,11,0,0,11,0,0,0,6,7,0,0,4,5,4,0,0,0,0,0,0,0,0,0,0,0,0,0,0,0,0,0,0,0,0,0,0,0,0,0,0,0,0,0,0,0,0,0,0,0,0,0,0,0,0,0,0,0,0,0,0,0,0,0,0,0,0,0,0,0,0,0,0,0,0,0,0,0,0,0,0,0,0,0,0,0,0,0,0,0,0,0,0,0,0,0,0,0,0,0,0,0,0,0,0,0,0,0,0,0,0,0,0,0,null,null,null,null,null,null,null,0]
["Thompson and Meserves Purchase",7205,"76580",11848.89,0,0,0,0,0,0,0,0,0,0,0,0,0,0,0,0,0,0,0,0,0,0,0,0,0,0,0,0,0,0,0,0,0,0,0,0,0,0,0,0,0,0,0,0,0,0,0,0,0,0,0,0,0,0,0,0,0,0,0,0,0,0,0,0,0,0,0,0,0,0,0,0,0,0,0,0,0,0,0,0,0,0,0,0,0,0,0,0,0,0,0,0,0,0,0,0,0,0,0,0,0,0,0,0,0,0,0,0,0,0,0,0,0,0,0,0,0,0,0,0,0,0,0,0,0,0,0,0,0,0,0,0,0,0,0,0,0,0,0,0,0,0,0,0,0,0,0,0,0,0,0,0,0,null,null,null,null,null,null,null,0]
["Wentworth's Location",7210,"80430",11885.79,440.33,118,53,16,20,27,26,52,1,0,0,0,0,13,4,6,12,8,9,1,0,53,49,0,2.65,3.0625,4,12,4,0,118,20,98,18,2,2,0,92,101,0,17,17,0,17,2,0,0,11,12,70,25,6,32,56,22,2,0,2,0,9,2,2,3,0,3,21875,0,0,0,2,0,0,0,0,0,0,2,0,0,0,0,0,0,3,0,0,0,0,2,2,3,0,0,0,0,0,0,0,0,0,0,0,0,0,0,7,0,0,0,0,0,0,0,0,0,0,0,0,0,0,0,0,0,0,0,0,0,0,0,9,35,30,4,58,0,19,58,0,19,2,0,0,0,0,2,0,9,2,2,3,0,3,0,null,null,null,null,null,null,null,25]
["Whitefield",7215,"84420",21949.67,282.26,1111,1909,512,728,932,977,1893,2,2,6,6,11,407,234,273,294,186,197,155,163,1857,1603,52,2.5508241758241756,3.130859375,181,435,77,35,1111,728,383,531,197,41,20,280,756,220,135,425,29,135,45,143,9,118,305,197,491,22,168,324,367,230,44,96,98,155,116,107,87,16,17,23670,5,4,6,6,12,4,0,0,0,2,5,16,47,25,22,10,3,0,9,10,9,23,37,41,30,4,10,4,12,13,12,17,21,19,3,2,7,8,24,23,14,12,14,4,5,8,24,9,36,9,3,10,2,0,9,33,21,8,2,4,4,0,0,334,1285,982,183,1873,55,1021,1873,55,622,103,0,62,6,32,140,98,155,116,107,87,16,11,6,null,null,null,null,null,null,null,491]
[]
[]
["Census 1990 Data -    Query Name:  CountySTF1Qry1"]
["NAME","COUSUBFP","Census_Cnty_Code","FIPS","LandAcres","WaterAcres","HousingUnits90Cen","P01Persons90Cen","P02Families90Cen","P03Households90cen","P05MalePop90cen","P05FemalePop90cen","P06WhitePop","P06BlackPop","P06AmerIndianPop","P06AsianPIPop","P06OtherRacePop","P08HispanicOrPop","P11AgeUnder15_90cen","P11Age15to24_90cen","P11Age25to34_90cen","P11Age35to44_90cen","P11Age45to54_90cen","P11Age55to64_90cen","P11Age65to74_90cen","P11Age75andOver_90cen","P15PersonsInHH90cen","P15PersonsInFamHH90cen","P15PersonsInGC","PersonsPerHH90cen","PersonsPerFam90Cen","P16SinglePersonHH90cen","P16MarriedCoupleHH90cen","P16SingleParentHH90cen","P16NonFamilyHH90cen","H01TotalHousingUnits","H02OccupiedHousingUnits","H02VacantHousingUnits","H03OwnerOccHU","H03RenterOccHU","H05VacantForRent90","H05VacantForSale90","H05VacantSeasonalRec","H23OOHUVal<15k","H23OOHUVal15to19k","H23OOHUVal20to24k","H23OOHUVal25to29k","H23OOHUVal30to34k","H23OOHUVal35to39k","H23OOHUVal40to44k","H23OOHUVal45to49k","H23OOHUVal50to59k","H23OOHUVal60to74k","H23OOHUVal75to99k","H23OOHUVal100to124k","H23OOHUVal125to149k","H23OOHUVal150to174k","H23OOHUVal175to199k","H23OOHUVal200to249k","H23OOHUVal250to299k","H23OOHUVal300to399k","H23OOHUVal400to499k","H23OOHUVal500kOrMore","H23BOOHUMedVal","H41SingFamHU90cen","H41MultiFamHU90cen","H41MobileHom90cen","H43SingFamOwnHU90cen","H43MultiFamOwnHU90cen","H43MobileHomOwnHU90cen","H43SingFamRntrHU90cen","H43MultiFamRntrHU90cen","H43MobileHomRntrHU90cen","H41HU1UnitDet","H41HU1UnitAtt","H41HU2Unit","H41HU3to4Unit","H41HU5to9Unit","H41HU10to19Unit","H41HU20to49Unit","H41HU50PlusUnit","H41HUMobilH","H41HUOther"]
["Atkinson and Gilmanton Grant",421,7005,"02420",12351.3,0.01,0,0,0,0,0,0,0,0,0,0,0,0,0,0,0,0,0,0,0,0,0,0,0,0,0,0,0,0,0,0,0,0,0,0,0,0,0,0,0,0,0,0,0,0,0,0,0,0,0,0,0,0,0,0,0,0,0,0,0,0,0,0,0,0,0,0,0,0,0,0,0,0,0,0,0,0,0]
["Bean's Grant",422,7010,"04100",6182.58,0,0,0,0,0,0,0,0,0,0,0,0,0,0,0,0,0,0,0,0,0,0,0,0,0,0,0,0,0,0,0,0,0,0,0,0,0,0,0,0,0,0,0,0,0,0,0,0,0,0,0,0,0,0,0,0,0,0,0,0,0,0,0,0,0,0,0,0,0,0,0,0,0,0,0,0,0,0]
["Bean's Purchase",423,7015,"04260",41774.379999999997,13.27,0,0,0,0,0,0,0,0,0,0,0,0,0,0,0,0,0,0,0,0,0,0,0,0,0,0,0,0,0,0,0,0,0,0,0,0,0,0,0,0,0,0,0,0,0,0,0,0,0,0,0,0,0,0,0,0,0,0,0,0,0,0,0,0,0,0,0,0,0,0,0,0,0,0,0,0,0]
["Berlin",401,7020,"05140",39338.14,467.59,5416,11824,3287,4943,5617,6207,11712,15,21,57,19,61,2180,1478,1847,1491,1086,1368,1312,1062,11607,9688,217,2.3481691280598826,2.9473684210526314,1453,2698,589,203,5416,4943,473,2998,1945,221,53,22,6,14,34,73,80,85,145,100,279,516,599,147,54,30,6,10,1,0,0,0,68000,2507,2792,117,2321,605,72,102,1809,34,2507,29,1049,994,466,150,43,61,69,48]
["Cambridge",424,7025,"08420",32684.05,414.68,43,0,0,0,0,0,0,0,0,0,0,0,0,0,0,0,0,0,0,0,0,0,0,0,0,0,0,0,0,43,0,43,0,0,0,0,43,0,0,0,0,0,0,0,0,0,0,0,0,0,0,0,0,0,0,0,0,0,34,0,9,0,0,0,0,0,0,34,0,0,0,0,0,0,0,3,6]
["Carroll",402,7030,"10100",32171.439999999999,16.07,611,528,140,206,262,266,522,3,1,2,0,7,110,67,71,70,83,59,39,29,528,446,0,2.563106796116505,3.1857142857142855,53,121,19,13,611,206,405,150,56,10,10,381,0,0,0,0,0,0,2,0,2,12,30,22,12,12,5,3,2,0,1,0,106300,301,261,49,130,2,18,24,23,9,301,234,10,9,7,1,0,0,35,14]
["Chandler's Purchase",425,7035,"11220",1360.68,0.04,0,0,0,0,0,0,0,0,0,0,0,0,0,0,0,0,0,0,0,0,0,0,0,0,0,0,0,0,0,0,0,0,0,0,0,0,0,0,0,0,0,0,0,0,0,0,0,0,0,0,0,0,0,0,0,0,0,0,0,0,0,0,0,0,0,0,0,0,0,0,0,0,0,0,0,0,0]
["Clarksville",403,7040,"13220",38686.04,1229.75,237,232,75,91,124,108,232,0,0,0,0,0,40,26,27,46,26,28,31,8,232,213,0,2.5494505494505493,2.84,13,65,10,3,237,91,146,82,9,0,2,138,2,0,0,4,4,3,3,3,9,5,9,3,5,1,0,1,0,0,0,0,57800,194,0,43,78,0,4,8,0,1,194,0,0,0,0,0,0,0,43,0]
["Colebrook",404,7045,"13780",26087.46,19.07,1168,2444,643,1005,1184,1260,2418,6,5,12,3,15,525,310,380,370,264,246,201,148,2403,1965,41,2.3910447761194029,3.0559875583203731,301,541,102,61,1168,1005,163,639,366,43,12,76,5,4,7,8,11,7,6,18,28,70,108,41,19,9,5,2,1,0,0,0,77400,616,358,194,477,45,117,57,271,38,616,2,104,99,136,17,0,0,167,27]
["Columbia",405,7050,"13940",39181.08,39.01,376,661,187,248,336,325,660,0,0,1,0,0,146,97,102,116,82,68,40,10,661,586,0,2.6653225806451615,3.1336898395721926,48,160,27,13,376,248,128,205,43,2,4,99,2,1,2,4,2,2,6,5,13,31,28,8,0,3,0,1,1,0,0,0,68500,273,19,84,163,4,38,16,10,17,273,4,8,7,0,0,0,0,80,4]
["Crawford's Purchase",426,7055,"16100",5242.83,0,0,0,0,0,0,0,0,0,0,0,0,0,0,0,0,0,0,0,0,0,0,0,0,0,0,0,0,0,0,0,0,0,0,0,0,0,0,0,0,0,0,0,0,0,0,0,0,0,0,0,0,0,0,0,0,0,0,0,0,0,0,0,0,0,0,0,0,0,0,0,0,0,0,0,0,0,0]
["Cutt's Grant",427,7060,"16660",7218.74,0.01,0,0,0,0,0,0,0,0,0,0,0,0,0,0,0,0,0,0,0,0,0,0,0,0,0,0,0,0,0,0,0,0,0,0,0,0,0,0,0,0,0,0,0,0,0,0,0,0,0,0,0,0,0,0,0,0,0,0,0,0,0,0,0,0,0,0,0,0,0,0,0,0,0,0,0,0,0]
["Dalton",406,7065,"16820",17624.09,480.25,475,827,232,326,425,402,820,0,4,3,0,0,176,82,140,140,85,84,75,45,827,708,0,2.53680981595092,3.0517241379310347,74,200,32,20,475,326,149,290,36,4,10,112,2,1,2,3,6,4,4,3,17,28,17,8,7,2,2,2,0,0,0,1,66700,325,7,143,191,2,97,20,1,15,325,2,5,0,0,0,0,0,138,5]
["Dix's Grant",428,7070,"18340",12843.49,0,10,0,0,0,0,0,0,0,0,0,0,0,0,0,0,0,0,0,0,0,0,0,0,0,0,0,0,0,0,10,0,10,0,0,0,0,10,0,0,0,0,0,0,0,0,0,0,0,0,0,0,0,0,0,0,0,0,0,10,0,0,0,0,0,0,0,0,10,0,0,0,0,0,0,0,0,0]
["Dixville",429,7075,"18420",31369.88,85.4,36,50,17,20,26,24,50,0,0,0,0,4,10,3,9,7,4,12,1,4,50,47,0,2.5,2.7647058823529411,3,14,3,0,36,20,16,4,16,0,0,16,0,0,0,0,0,0,0,0,0,0,1,0,0,0,0,0,0,0,0,0,87500,24,6,6,2,1,1,6,5,5,24,0,3,3,0,0,0,0,6,0]
["Dummer",407,7080,"19300",30629.5,831.85,214,327,95,118,169,158,327,0,0,0,0,1,70,42,50,46,51,34,17,17,327,299,0,2.7711864406779663,3.1473684210526316,18,86,9,5,214,118,96,110,8,2,2,71,0,3,1,1,5,5,1,2,4,8,18,9,0,1,0,0,0,0,0,0,73100,157,4,53,88,4,18,5,0,3,157,3,1,0,0,0,0,0,41,12]
["Errol",408,7085,"25140",38930.199999999997,5512.81,369,292,83,117,148,144,292,0,0,0,0,0,63,27,54,28,48,32,31,9,292,249,0,2.4957264957264957,3,26,74,9,8,369,117,252,102,15,2,3,241,1,2,1,0,4,2,2,5,9,10,17,7,3,3,1,1,0,0,0,0,72000,301,7,61,79,2,21,9,3,3,301,2,5,0,0,0,0,0,60,1]
["Erving's Location",430,7090,"25180",2401.67,0,0,0,0,0,0,0,0,0,0,0,0,0,0,0,0,0,0,0,0,0,0,0,0,0,0,0,0,0,0,0,0,0,0,0,0,0,0,0,0,0,0,0,0,0,0,0,0,0,0,0,0,0,0,0,0,0,0,0,0,0,0,0,0,0,0,0,0,0,0,0,0,0,0,0,0,0,0]
["Gorham",409,7095,"30260",20414.68,260.8,1426,3173,922,1322,1531,1642,3153,1,2,17,0,6,560,389,494,522,313,330,360,205,3173,2706,0,2.4001512859304084,2.9349240780911061,341,779,143,59,1426,1322,104,976,346,31,13,32,10,7,4,10,11,17,25,24,55,111,179,59,37,23,11,10,2,0,0,0,78300,718,410,298,640,96,240,38,268,40,718,13,179,95,70,29,24,0,276,22]
["Greens Grant",431,7100,"31780",2348.38,0.02,0,0,0,0,0,0,0,0,0,0,0,0,0,0,0,0,0,0,0,0,0,0,0,0,0,0,0,0,0,0,0,0,0,0,0,0,0,0,0,0,0,0,0,0,0,0,0,0,0,0,0,0,0,0,0,0,0,0,0,0,0,0,0,0,0,0,0,0,0,0,0,0,0,0,0,0,0]
["Hadley's Purchase",432,7105,"32420",4740.42,0,0,0,0,0,0,0,0,0,0,0,0,0,0,0,0,0,0,0,0,0,0,0,0,0,0,0,0,0,0,0,0,0,0,0,0,0,0,0,0,0,0,0,0,0,0,0,0,0,0,0,0,0,0,0,0,0,0,0,0,0,0,0,0,0,0,0,0,0,0,0,0,0,0,0,0,0,0]
["Jefferson",410,7110,"38820",32061.59,145.04,543,965,264,346,487,478,955,1,0,9,0,2,195,152,129,170,119,80,57,63,947,838,18,2.7369942196531793,3.1742424242424243,59,234,30,23,543,346,197,285,61,6,9,169,2,3,3,3,2,2,3,7,8,22,36,15,10,5,8,2,1,0,0,0,82600,406,38,99,220,10,55,38,18,5,406,1,9,18,10,0,0,0,81,18]
["Kilkenny ",433,7115,"39940",16440.48,3.75,0,0,0,0,0,0,0,0,0,0,0,0,0,0,0,0,0,0,0,0,0,0,0,0,0,0,0,0,0,0,0,0,0,0,0,0,0,0,0,0,0,0,0,0,0,0,0,0,0,0,0,0,0,0,0,0,0,0,0,0,0,0,0,0,0,0,0,0,0,0,0,0,0,0,0,0,0]
["Lancaster",411,7120,"40420",32129.19,633.66999999999996,1513,3522,922,1315,1644,1878,3508,2,3,8,1,16,777,464,470,538,390,298,290,295,3410,2935,112,2.5931558935361219,3.1832971800433838,344,764,158,49,1513,1315,198,942,373,36,19,76,4,0,5,1,2,14,13,21,54,133,186,71,51,25,8,2,1,1,1,0,81700,931,439,143,751,76,115,65,297,11,931,23,160,97,93,33,33,0,125,18]
["Low and Burbank's Grant",434,7125,"43620",16728.18,0,0,0,0,0,0,0,0,0,0,0,0,0,0,0,0,0,0,0,0,0,0,0,0,0,0,0,0,0,0,0,0,0,0,0,0,0,0,0,0,0,0,0,0,0,0,0,0,0,0,0,0,0,0,0,0,0,0,0,0,0,0,0,0,0,0,0,0,0,0,0,0,0,0,0,0,0,0]
["Martin's Location",435,7130,"46020",2403.2399999999998,0.05,0,0,0,0,0,0,0,0,0,0,0,0,0,0,0,0,0,0,0,0,0,0,0,0,0,0,0,0,0,0,0,0,0,0,0,0,0,0,0,0,0,0,0,0,0,0,0,0,0,0,0,0,0,0,0,0,0,0,0,0,0,0,0,0,0,0,0,0,0,0,0,0,0,0,0,0,0]
["Milan",412,7135,"47860",40916.25,330.81,680,1295,377,483,651,644,1289,1,2,3,0,0,292,145,218,254,127,112,107,40,1295,1161,0,2.681159420289855,3.079575596816976,81,351,26,25,680,483,197,433,50,3,11,157,4,5,6,10,9,10,8,6,17,52,80,33,12,9,7,2,1,0,0,0,77700,525,31,124,346,12,75,16,15,19,525,6,22,3,0,0,0,0,117,7]
["Millsfield",436,7140,"48260",28715.84,221.95,53,21,4,6,8,13,21,0,0,0,0,0,6,4,4,2,2,2,1,0,21,17,0,3.5,4.25,0,3,1,2,53,6,47,5,1,0,0,47,0,0,0,0,0,0,0,0,1,0,0,0,0,0,0,0,0,0,0,0,55000,42,0,11,4,0,1,0,0,1,42,0,0,0,0,0,0,0,4,7]
["Northumberland",413,7145,"56100",23505.49,53.39,1060,2492,707,973,1207,1285,2475,4,5,4,4,10,544,327,385,347,263,262,231,133,2492,2158,0,2.5611510791366907,3.0523338048090523,212,579,128,54,1060,973,87,728,245,19,15,20,22,24,28,34,36,25,34,27,62,90,105,32,8,4,2,0,0,0,0,0,55900,666,261,133,586,43,99,40,187,18,666,6,113,65,31,22,24,0,122,11]
["Odell ",437,7150,"57860",28614.07,192.77,78,0,0,0,0,0,0,0,0,0,0,0,0,0,0,0,0,0,0,0,0,0,0,0,0,0,0,0,0,78,0,78,0,0,0,0,78,0,0,0,0,0,0,0,0,0,0,0,0,0,0,0,0,0,0,0,0,0,78,0,0,0,0,0,0,0,0,78,0,0,0,0,0,0,0,0,0]
["Pinkham's Grant",438,7155,"61620",2431.1999999999998,0,3,11,2,3,7,4,11,0,0,0,0,0,2,2,2,1,4,0,0,0,11,10,0,3.6666666666666665,5,1,2,0,0,3,3,0,0,3,0,0,0,0,0,0,0,0,0,0,0,0,0,0,0,0,0,0,0,0,0,0,0,0,3,0,0,0,0,0,3,0,0,3,0,0,0,0,0,0,0,0,0]
["Pittsburg",414,7160,"61780",180680.09,5750.4,1224,901,273,371,456,445,900,1,0,0,0,1,176,92,117,140,103,138,85,50,901,792,0,2.4285714285714284,2.901098901098901,87,240,33,11,1224,371,853,321,50,18,16,794,6,1,5,8,5,4,11,12,24,39,42,17,16,11,2,4,0,0,0,2,71000,956,31,237,277,4,40,32,12,6,956,7,5,7,12,0,0,0,186,51]
["Randolph",415,7165,"63860",30114.28,28.03,275,371,107,150,190,181,370,0,0,1,0,2,80,25,63,69,35,37,39,23,371,319,0,2.4733333333333332,2.9813084112149535,36,100,7,7,275,150,125,126,24,0,1,118,1,1,1,0,1,0,2,1,2,8,14,14,10,10,8,9,3,3,2,1,126300,244,13,18,112,5,9,16,6,2,244,7,6,0,0,0,0,0,9,9]
["Sargent's Purchase",439,7170,"67860",16556.91,2.72,0,0,0,0,0,0,0,0,0,0,0,0,0,0,0,0,0,0,0,0,0,0,0,0,0,0,0,0,0,0,0,0,0,0,0,0,0,0,0,0,0,0,0,0,0,0,0,0,0,0,0,0,0,0,0,0,0,0,0,0,0,0,0,0,0,0,0,0,0,0,0,0,0,0,0,0,0]
["Second College Grant",440,7175,"68500",26742.31,31.59,8,0,0,0,0,0,0,0,0,0,0,0,0,0,0,0,0,0,0,0,0,0,0,0,0,0,0,0,0,8,0,8,0,0,0,0,8,0,0,0,0,0,0,0,0,0,0,0,0,0,0,0,0,0,0,0,0,0,8,0,0,0,0,0,0,0,0,8,0,0,0,0,0,0,0,0,0]
["Shelburne",416,7180,"68980",30635.01,576.87,179,437,123,142,214,223,431,0,3,2,1,0,126,37,62,97,44,37,17,17,437,413,0,3.0774647887323945,3.3577235772357725,14,117,6,5,179,142,37,128,14,2,2,26,3,0,0,1,0,0,3,0,6,6,24,16,12,14,2,7,2,0,0,0,107800,154,7,18,118,3,7,9,3,2,154,2,5,0,0,0,0,0,14,4]
["Stark",417,7185,"73060",37901.910000000003,319.89999999999998,368,518,141,185,256,262,506,0,7,5,0,0,131,55,90,80,50,51,40,21,518,465,0,2.8,3.2978723404255321,35,123,18,9,368,185,183,151,34,4,3,158,3,3,1,7,6,4,5,5,7,18,18,6,4,2,2,1,0,0,0,0,64200,264,34,70,113,6,32,7,23,4,264,0,13,7,14,0,0,0,69,1]
["Stewartstown",418,7190,"73380",29772.61,246.54,628,1048,240,348,527,521,1043,0,3,0,2,13,217,150,174,134,110,98,59,106,926,781,122,2.6609195402298851,3.2541666666666669,86,189,51,22,628,348,280,248,100,17,0,230,4,0,2,10,7,8,7,12,22,27,22,7,2,1,0,0,0,0,0,0,57000,381,98,149,190,12,46,20,66,14,381,1,25,22,50,0,0,0,145,4]
["Stratford",419,7195,"74180",51146.76,84.71,479,927,239,333,456,471,923,0,4,0,0,1,208,156,118,133,116,81,80,35,927,803,0,2.7837837837837838,3.3598326359832638,69,183,56,25,479,333,146,226,107,17,9,108,9,5,3,7,16,8,10,9,17,20,16,7,1,0,0,2,0,0,0,0,48900,233,79,167,168,7,51,36,59,12,233,5,19,15,40,0,0,0,73,94]
["Success ",441,7200,"74500",36184.85,306.75,11,0,0,0,0,0,0,0,0,0,0,0,0,0,0,0,0,0,0,0,0,0,0,0,0,0,0,0,0,11,0,11,0,0,0,0,11,0,0,0,0,0,0,0,0,0,0,0,0,0,0,0,0,0,0,0,0,0,0,0,11,0,0,0,0,0,0,0,0,0,0,0,0,0,0,0,11]
["Thompson and Meserves Purchase",442,7205,"76580",11848.89,0,0,0,0,0,0,0,0,0,0,0,0,0,0,0,0,0,0,0,0,0,0,0,0,0,0,0,0,0,0,0,0,0,0,0,0,0,0,0,0,0,0,0,0,0,0,0,0,0,0,0,0,0,0,0,0,0,0,0,0,0,0,0,0,0,0,0,0,0,0,0,0,0,0,0,0,0,0]
["Wentworth's Location",443,7210,"80430",11885.79,440.33,118,53,16,20,27,26,52,1,0,0,0,0,13,4,6,12,8,9,1,0,53,49,0,2.65,3.0625,4,12,4,0,118,20,98,18,2,2,0,92,1,0,1,0,2,2,1,1,3,2,0,0,0,0,0,0,0,0,0,0,42500,101,0,17,17,0,1,2,0,0,101,0,0,0,0,0,0,0,16,1]
["Whitefield",420,7215,"84420",21949.67,282.26,1111,1909,512,728,932,977,1893,2,2,6,6,11,407,234,273,294,186,197,155,163,1857,1603,52,2.5508241758241756,3.130859375,181,435,77,35,1111,728,383,531,197,41,20,280,7,7,4,7,7,14,10,14,28,52,87,39,19,20,13,9,0,0,0,0,80300,756,220,135,425,29,77,45,143,9,756,4,92,26,53,9,36,0,110,25]
[]
[]
[]
["Census 1990 Data -          Query Name: CountySTF3Qry1"]
[]
["NAME","FIPS","COUSUBFP","LandAcres","WaterAcres","HousingUnits90Cen","P01Persons90Cen","P02Families90Cen","P03Households90cen","H25HU<5yrs90cen","H25HU5to20yrs90cen","H25HU20to50yrs90cen","H25HU>50yrs90cen","H31Units0Bedroom90cen","H31Units1Bedroom90cen","H31Units2Bedroom90cen","H31Units3Bedroom90cen","H31Units4Bedroom90cen","H31Units5+Bedroom90cen","P80HI<5K","P80HI5Kto10K","P80HI10Kto15K","P80HI15Kto25K","P80HI25Kto35K","P80HI35Kto50K","P80HI50Kto75K","P80HI75Kto100K","P80HI>100K","P80AMedHI","P86HH<25HI<5K","P86HH<25HI5Kto10K","P86HH<25HI10Kto15K","P86HH<25HI15Kto25K","P86HH<25HI25Kto35K","P86HH<25HI35Kto50K","P86HH<25HI50Kto75K","P86HH<25HI75Kto100K","P86HH<25HI>100K","P86HH25to34HI<5K","P86HH25to34HI5Kto10K","P86HH25to34HI10Kto15K","P86HH25to34HI15Kto25K","P86HH25to34HI25Kto35K","P86HH25to34HI35Kto50K","P86HH25to34HI50Kto75K","P86HH25to34HI75Kto100K","P86HH25to34HI>100K","P86HH35to44HI<5K","P86HH35to44HI5Kto10K","P86HH35to44HI10Kto15K","P86HH35to44HI15Kto25K","P86HH35to44HI25Kto35K","P86HH35to44HI35Kto50K","P86HH35to44HI50Kto75K","P86HH35to44HI75Kto100K","P86HH35to44HI>100K","P86HH45to54HI<5K","P86HH45to54HI5Kto10K","P86HH45to54HI10Kto15K","P86HH45to54HI15Kto25K","P86HH45to54HI25Kto35K","P86HH45to54HI35Kto50K","P86HH45to54HI50Kto75K","P86HH45to54HI75Kto100K","P86HH45to54HI>100K","P86HH55to64HI<5K","P86HH55to64HI5Kto10K","P86HH55to64HI10Kto15K","P86HH55to64HI15Kto25K","P86HH55to64HI25Kto35K","P86HH55to64HI35Kto50K","P86HH55to64HI50Kto75K","P86HH55to64HI75Kto100K","P86HH55to64HI>100K","P86HH65to74HI<5K","P86HH65to74HI5Kto10K","P86HH65to74HI10Kto15K","P86HH65to74HI15Kto25K","P86HH65to74HI25Kto35K","P86HH65to74HI35Kto50K","P86HH65to74HI50Kto75K","P86HH65to74HI75Kto100K","P86HH65to74HI>100K","P86HH>75HI<5K","P86HH>75HI5Kto10K","P86HH>75HI10Kto15K","P86HH>75HI15Kto25K","P86HH>75HI25Kto35K","P86HH>75HI35Kto50K","P86HH>75HI50Kto75K","P86HH>75HI75Kto100K","P86HH>75HI>100K","P54SchlEnrlPrePrim","P54SchlEnrlElemThrHS","P54SchlEnrlCollege","P54NotEnrlInSch","P57Pop25andOver","P57LessThan9thGrade","P579thto12thNoDip","P57HSGrad","P57SomeCollege","P57AssocDeg","P57BachelDeg","P57GradorProfDeg","P57HSGradorHigher","P57CollGradorHigher","P42NativePop","P42ForeignBornPop","P42BornStateOfRes","P37NativePop2","P37ForeignBornPop2","P49DroveAlone","P49CarPooled","P49PublicTranspt","P49Walked","P49OtherMeans","P49WorkedAtHome","P80HHInc<10K","P80HHInc10to15K","P80HHInc15to25K","P80HHInc25to35K","P80HHInc35to50K","P80HHInc50to75K","P80HHInc75to100K","P80HHInc100to150K","P80HHInc>150K","H25YearStBlt89to90","H25YearStBlt85to88","H25YearStBlt80to84","H25YearStBlt70to79","H25YearStBlt60to69","H25YearStBlt50to59","H25YearStBlt40to49","H25YearStBlt39earlier","P107FamInc<10K","P107FamInc10to15K","P107FamInc15to25K","P107FamInc25to35K","P107FamInc35to50K","P107FamInc50to75K","P107FamInc75to100K","P107FamInc100to150K","P107FamInc>150K","P107AMedFamInc","P110NonFamInc<10K","P110NonFamInc10to15K","P110NonFamInc15to25K","P110NonFamInc25to35K","P110NonFamInc35to50K","P110NonFamInc50to75K","P110NonFamInc75to100K","P110NonFamInc100to150K","P110NonFamInc>150K","P110AMedNonFamInc","H16HU1Room","H16HU2Room","H16HU3Room","H16HU4Room","H16HU5Room","H16HU6Room","H16HU7Room","H16HU8Room","H16HU9+Room","H43GrossRnt<100","H43GrossRnt100to149","H43GrossRnt150to199","H43GrossRnt200to249","H43GrossRnt250to299","H43GrossRnt300to349","H43GrossRnt350to399","H43GrossRnt400to449","H43GrossRnt450to499","H43GrossRnt500to549","H43GrossRnt550to599","H43GrossRnt600to649","H43GrossRnt650to699","H43GrossRnt700to749","H43GrossRnt750to999","H43GrossRnt1000Plus","H43NoCashRent","H43MedGrossRent","H51GrossRnt<20PctHHInc","H51GrossRnt20to24PctHHInc","H51GrossRnt25to29PctHHInc","H51GrossRnt30to34PctHHInc","H51GrossRnt35PctOrMoreHHInc","H51GrossRntAsPctHHIncNotComp","H52HUwMtgMoOwnCst<200","H52HUwMtgMoOwnCst200to299","H52HUwMtgMoOwnCst300to399","H52HUwMtgMoOwnCst400to499","H52HUwMtgMoOwnCst500to599","H52HUwMtgMoOwnCst600to699","H52HUwMtgMoOwnCst700to799","H52HUwMtgMoOwnCst800to899","H52HUwMtgMoOwnCst900to999","H52HUwMtgMoOwnCst1000to1249","H52HUwMtgMoOwnCst1250to1499","H52HUwMtgMoOwnCst1500to1999","H52HUwMtgMoOwnCst2000More","H52HUwNoMtgMoOwnCst<100","H52HUwNoMtgMoOwnCst100to149","H52HUwNoMtgMoOwnCst150to199","H52HUwNoMtgMoOwnCst200to249","H52HUwNoMtgMoOwnCst250to299","H52HUwNoMtgMoOwnCst300to349","H52HUwNoMtgMoOwnCst350to399","H52HUwNoMtgMoOwnCst400More","H52AMedMoOwnCstWMortg","H52AMedMoOwnCstWNoMortg","H58HUwMtgMOC<20pHHInc","H58HUwMtgMOC20to24pHHInc","H58HUwMtgMOC25to29pHHInc","H58HUwMtgMOC30to34pHHInc","H58wMtgMOC>35pHHInc","H58HUwMtgMOCNotComp","H58HUwNoMtgMOC<20pHHInc","H58HUwNoMtgMOC20to24pHHInc","H58HUwNoMtgMOC25to29pHHInc","H58HUwNoMtgMOC30to34pHHInc","H58wNoMtgMOC>35pHHInc","H58HUwNoMtgMOCNotComp","H61OOHUVal<15k","H61OOHUVal15to19k","H61OOHUVal20to24k","H61OOHUVal25to29k","H61OOHUVal30to34k","H61OOHUVal35to39k","H61OOHUVal40to44k","H61OOHUVal45to49k","H61OOHUVal50to59k","H61OOHUVal60to74k","H61OOHUVal75to99k","H61OOHUVal100to124k","H61OOHUVal125to149k","H61OOHUVal150to174k","H61OOHUVal175to199k","H61OOHUVal200to249k","H61OOHUVal250to299k","H61OOHUVal300to399k","H61OOHUVal400to499k","H61OOHUVal500kOrMore","H61aOOHUMedVal"]
[]
[]
[]
[]
[]
[]
[]
[]
[]
[]
[]
[]
[]
[]
[]
["Other Demo Data -             Query Name: QryAllTowns-ACSDemographicSheet",null,null,"2020-12-18"]
[]
["TOWN_NAME","FIPS","TOWNCNTY","COUSUB","POP80","POP90CDCEN","POP2000CEN","POP2010CEN","POP2025-Proj","POP2030-Proj","POP2040-Proj","SF80","MF80","MH80","SF81","MF81","MH81","SF82","MF82","MH82","SF83","MF83","MH83","SF84_OSP","MF84_OSP","MH84_OSP","SF85_OSP","MF85_OSP","MH85_OSP","SF86_OSP","MF86_OSP","MH86_OSP","SF87_OSP","MF87_OSP","MH87_OSP","SF88_OSP","MF88_OSP","MH88_OSP","SF89_OSP","MF89_OSP","MH89_OSP","SF90_OSP","MF90_OSP","MH90_OSP","SF91_OSP","MF91_OSP","MH91_OSP","SF92_OSP","MF92_OSP","MH92_OSP","SF93_OSP","MF93_OSP","MH93_OSP","SF94_OSP","MF94_OSP","MH94_OSP","SF95_OSP","MF95_OSP","MH95_OSP","SF96_OSP","MF96_OSP","MH96_OSP","SF97_OSP","MF97_OSP","MH97_OSP","SF98_OSP","MF98_OSP","MH98_OSP","SF99_OSP","MF99_OSP","MH99_OSP","SF00_OSP","MF00_OSP","MH00_OSP","SF01_OSP","MF01_OSP","MH01_OSP","SF02_OSP","MF02_OSP","MH02_OSP","SF03_OSP","MF03_OSP","MH03_OSP","SF04_OSP","MF04_OSP","MH04_OSP","SF05_OSP","MF05_OSP","MH05_OSP","SF06_OSP","MF06_OSP","MH06_OSP","SF07_OSP","MF07_OSP","MH07_OSP","SF08_OSP","MF08_OSP","MH08_OSP","SF09_OSP","MF09_OSP","MH09_OSP","SF10_OSP","MF10_OSP","MH10_OSP","SF11_OSP","MF11_OSP","MH11_OSP","SF12_OSP","MF12_OSP","MH12_OSP","SF13_OSP","MF13_OSP","MH13_OSP","SF14_OSP","MF14_OSP","MH14_OSP","SF15_OSP","MF15_OSP","MH15_OSP","SF16_OSP","MF16_OSP","MH16_OSP","SF17_OSP","MF17_OSP","MH17_OSP","SF18_OSP","MF18_OSP","MH18_OSP","SF19_OSP","MF19_OSP","MH19_OSP","COMMENTS","CNTY_CODE"]
["Atkinson and Gilmanton Grant",7005,421,"02420",0,0,12,0,null,null,null,null,null,null,null,null,null,null,null,null,null,null,null,null,null,null,null,null,null,null,null,null,null,null,null,null,null,null,null,null,null,null,null,null,null,null,null,null,null,null,null,null,null,null,null,null,null,null,null,null,null,null,null,null,null,null,null,null,null,null,null,null,null,null,null,null,null,null,null,null,null,null,null,null,null,null,null,null,null,null,null,null,null,null,null,null,null,null,null,null,null,null,null,null,null,null,null,null,null,null,null,null,null,null,null,null,null,null,null,null,null,null,null,null,null,null,null,null,null,null,null,"",4]
["Bean's Grant",7010,422,"04100",0,0,null,0,null,null,null,null,null,null,null,null,null,null,null,null,null,null,null,null,null,null,null,null,null,null,null,null,null,null,null,null,null,null,null,null,null,null,null,null,null,null,null,null,null,null,null,null,null,null,null,null,null,null,null,null,null,null,null,null,null,null,null,null,null,null,null,null,null,null,null,null,null,null,null,null,null,null,null,null,null,null,null,null,null,null,null,null,null,null,null,null,null,null,null,null,null,null,null,null,null,null,null,null,null,null,null,null,null,null,null,null,null,null,null,null,null,null,null,null,null,null,null,null,null,null,null,"",4]
["Bean's Purchase",7015,423,"04260",0,0,4,0,null,null,null,null,null,null,null,null,null,null,null,null,null,null,null,null,null,null,null,null,null,null,null,null,null,null,null,null,null,null,null,null,null,null,null,null,null,null,null,null,null,null,null,null,null,null,null,null,null,null,null,null,null,null,null,null,null,null,null,null,null,null,null,null,null,null,null,null,null,null,null,null,null,null,null,null,null,null,null,null,null,null,null,null,null,null,null,null,null,null,null,null,null,null,null,null,null,null,null,null,null,null,null,null,null,null,null,null,null,null,null,null,null,null,null,null,null,null,null,null,null,null,null,"",4]
["Berlin",7020,401,"05140",13084,11824,10331,10051,9251,9017,8356,0,-18,0,0,-4,0,1,-14,0,6,-33,3,6,-27,3,4,-17,0,8,-16,1,18,-20,5,28,2,2,12,-5,3,4,-4,0,2,-15,0,2,0,0,2,-6,1,1,0,-1,-2,-6,1,-1,-1,0,-5,-3,0,1,-1,1,-5,-13,0,-1,-21,0,0,-9,-1,0,0,0,-1,-10,2,-1,0,2,3,-6,1,-4,-3,0,-3,-32,0,-1,-14,0,-5,-16,2,-3,-31,0,-9,-24,0,-12,-61,2,-9,-64,1,-2,-22,0,-3,-3,0,-1,-14,1,0,6,2,1,2,0,1,0,-4,"2002 Did not submit data to OEP. Used Census Data",4]
["Cambridge",7025,424,"08420",0,0,10,8,null,null,null,null,null,null,null,null,null,null,null,null,null,null,null,null,null,null,null,null,null,null,null,null,null,null,null,null,null,null,null,null,null,null,null,null,null,null,null,null,null,null,null,null,null,null,null,null,null,null,null,null,null,null,null,null,null,null,null,null,null,null,null,null,null,null,null,null,null,null,null,null,null,null,null,null,null,null,null,null,null,null,null,null,null,null,null,null,null,null,null,null,null,null,null,null,null,null,null,null,null,null,null,null,null,null,null,null,null,null,null,null,null,null,null,null,null,null,null,null,null,null,null,"",4]
["Carroll",7030,402,"10100",647,528,663,763,817,797,738,7,0,0,4,0,-1,2,0,0,3,0,1,9,10,2,7,9,0,38,0,-2,8,0,2,41,3,0,12,1,0,3,0,0,7,0,1,2,0,0,1,0,1,1,28,1,5,6,1,4,10,1,4,10,1,8,14,2,11,23,2,12,15,0,0,7,6,25,4,0,15,2,0,26,4,-1,29,0,0,21,0,0,11,3,-1,1,0,0,3,0,0,4,0,0,9,0,0,6,1,1,4,2,0,6,0,0,5,0,0,6,10,0,11,8,0,5,9,0,17,0,0,"",4]
["Chandler's Purchase",7035,425,"11220",0,0,null,0,null,null,null,null,null,null,null,null,null,null,null,null,null,null,null,null,null,null,null,null,null,null,null,null,null,null,null,null,null,null,null,null,null,null,null,null,null,null,null,null,null,null,null,null,null,null,null,null,null,null,null,null,null,null,null,null,null,null,null,null,null,null,null,null,null,null,null,null,null,null,null,null,null,null,null,null,null,null,null,null,null,null,null,null,null,null,null,null,null,null,null,null,null,null,null,null,null,null,null,null,null,null,null,null,null,null,null,null,null,null,null,null,null,null,null,null,null,null,null,null,null,null,null,"",4]
["Clarksville",7040,403,"13220",262,232,294,265,223,218,202,5,0,0,1,0,0,0,0,0,2,0,1,2,0,0,0,0,0,2,0,0,7,0,0,1,0,1,2,0,0,3,0,0,0,0,0,0,0,0,2,0,1,3,0,0,1,0,0,1,2,0,2,0,0,3,0,1,5,0,0,2,0,1,6,0,0,12,0,0,14,1,-1,11,1,3,8,0,1,5,0,2,4,0,0,4,0,0,2,0,1,6,0,0,6,0,0,0,0,0,2,0,1,4,0,0,-1,0,0,2,0,0,3,0,-1,4,0,0,2,0,1,"",4]
["Colebrook",7045,404,"13780",2459,2444,2321,2301,2160,2105,1951,9,0,0,7,0,0,5,12,6,0,0,0,0,0,0,9,26,0,11,15,0,10,0,5,11,19,0,9,16,0,0,0,0,3,0,5,8,28,6,6,6,0,4,0,3,5,0,0,13,0,4,11,0,4,9,-2,2,14,0,5,5,0,0,10,0,5,9,0,8,10,0,11,9,0,6,9,0,0,12,4,1,8,-3,3,7,-2,1,3,-3,-2,2,1,0,2,0,2,0,0,1,2,0,-1,5,0,0,3,0,0,0,0,2,0,3,2,3,0,5,4,2,3,"",4]
["Columbia",7050,405,"13940",673,661,750,757,723,705,653,5,0,3,2,0,3,4,0,4,0,0,0,2,0,7,4,0,0,3,0,6,2,0,2,9,0,3,8,0,8,14,0,2,4,0,1,12,0,2,3,1,4,2,0,4,5,0,4,1,1,2,2,0,0,4,0,2,5,0,0,3,0,1,1,0,3,8,0,3,6,0,13,7,0,5,7,0,2,8,0,2,7,0,0,1,1,2,2,0,0,1,0,2,1,0,1,0,0,0,1,0,2,0,0,0,0,0,0,2,1,0,1,0,0,8,0,3,1,0,0,"",4]
["Crawford's Purchase",7055,426,"16100",0,0,null,0,null,null,null,null,null,null,null,null,null,null,null,null,null,null,null,null,null,null,null,null,null,null,null,null,null,null,null,null,null,null,null,null,null,null,null,null,null,null,null,null,null,null,null,null,null,null,null,null,null,null,null,null,null,null,null,null,null,null,null,null,null,null,null,null,null,null,null,null,null,null,null,null,null,null,null,null,null,null,null,null,null,null,null,null,null,null,null,null,null,null,null,null,null,null,null,null,null,null,null,null,null,null,null,null,null,null,null,null,null,null,null,null,null,null,null,null,null,null,null,null,null,null,null,"",4]
["Cutt's Grant",7060,427,"16660",0,0,null,0,null,null,null,null,null,null,null,null,null,null,null,null,null,null,null,null,null,null,null,null,null,null,null,null,null,null,null,null,null,null,null,null,null,null,null,null,null,null,null,null,null,null,null,null,null,null,null,null,null,null,null,null,null,null,null,null,null,null,null,null,null,null,null,null,null,null,null,null,null,null,null,null,null,null,null,null,null,null,null,null,null,null,null,null,null,null,null,null,null,null,null,null,null,null,null,null,null,null,null,null,null,null,null,null,null,null,null,null,null,null,null,null,null,null,null,null,null,null,null,null,null,null,null,"",4]
["Dalton",7065,406,"16820",672,827,927,979,976,952,882,4,0,0,4,0,3,4,0,3,4,0,3,4,0,3,4,0,3,4,0,6,7,0,22,7,0,17,7,0,33,7,0,1,0,0,0,6,0,10,0,0,2,1,0,3,2,0,3,0,0,2,0,0,2,1,0,2,-1,0,5,2,0,4,2,0,2,6,0,2,1,0,2,10,0,6,8,0,4,11,0,0,0,0,1,3,2,-2,2,1,-2,5,1,-2,0,0,1,-1,-2,0,0,0,1,4,0,-1,2,0,2,3,0,-1,3,0,2,2,0,2,2,0,-1,"",4]
["Dix's Grant",7070,428,"18340",0,0,null,1,null,null,null,null,null,null,null,null,null,null,null,null,null,null,null,null,null,null,null,null,null,null,null,null,null,null,null,null,null,null,null,null,null,null,null,null,null,null,null,null,null,null,null,null,null,null,null,null,null,null,null,null,null,null,null,null,null,null,null,null,null,null,null,null,null,null,null,null,null,null,null,null,null,null,null,null,null,null,null,null,null,null,null,null,null,null,null,null,null,null,null,null,null,null,null,null,null,null,null,null,null,null,null,null,null,null,null,null,null,null,null,null,null,null,null,null,null,null,null,null,null,null,null,"",4]
["Dixville Township",7075,429,"18420",0,50,75,12,null,null,null,null,null,null,null,null,null,null,null,null,null,null,null,null,null,null,null,null,null,null,null,null,null,null,null,null,null,null,null,null,null,null,null,null,null,null,null,null,null,null,null,null,null,null,null,null,null,null,null,null,null,null,null,null,null,null,null,null,null,null,null,null,null,null,null,null,null,null,null,null,null,null,null,null,null,null,null,null,null,null,null,null,null,null,null,null,null,null,null,null,null,null,null,null,null,null,null,null,null,null,null,null,null,null,null,null,null,null,null,null,null,null,null,null,null,null,null,null,null,null,null,"",4]
["Dummer",7080,407,"19300",390,327,309,304,283,276,256,3,0,0,3,0,0,2,0,0,4,0,1,1,0,0,0,0,1,2,0,1,2,0,0,0,0,0,10,0,4,1,0,0,0,0,1,0,0,1,2,0,0,1,0,0,1,0,0,0,0,0,0,0,0,4,0,0,3,0,1,2,0,0,1,0,0,6,0,0,2,0,0,2,0,1,1,0,0,-7,0,2,-2,0,1,0,0,1,1,0,0,-1,0,0,-1,0,0,1,0,0,0,0,0,1,0,0,0,0,1,0,0,0,1,0,0,1,0,0,-2,0,0,"2002, 2005 Did not submit data to OEP. Used Census Data",4]
["Errol",7085,408,"25140",313,292,298,291,269,262,243,4,0,2,0,0,0,0,0,0,3,0,2,-2,0,2,1,0,1,6,0,0,3,1,1,3,0,1,1,0,5,4,-1,3,5,0,1,4,0,0,4,0,0,0,0,0,3,0,0,0,0,0,5,0,1,2,0,0,4,0,0,5,0,0,2,0,0,4,2,0,2,0,0,7,4,0,12,3,0,6,2,-2,2,0,1,4,0,0,2,0,-1,0,0,0,0,0,0,2,0,-1,1,0,1,2,0,1,-1,1,-1,3,0,1,2,0,1,5,0,0,1,0,0,"",4]
["Erving's Location",7090,430,"25180",0,0,1,0,null,null,null,null,null,null,null,null,null,null,null,null,null,null,null,null,null,null,null,null,null,null,null,null,null,null,null,null,null,null,null,null,null,null,null,null,null,null,null,null,null,null,null,null,null,null,null,null,null,null,null,null,null,null,null,null,null,null,null,null,null,null,null,null,null,null,null,null,null,null,null,null,null,null,null,null,null,null,null,null,null,null,null,null,null,null,null,null,null,null,null,null,null,null,null,null,null,null,null,null,null,null,null,null,null,null,null,null,null,null,null,null,null,null,null,null,null,null,null,null,null,null,null,"",4]
["Gorham",7095,409,"30260",3322,3173,2895,2848,2652,2585,2395,1,0,5,2,0,0,1,0,4,3,0,4,1,1,6,5,0,5,20,1,3,13,3,15,13,1,5,5,1,2,0,-4,-1,-1,-12,2,-1,2,1,2,1,-2,2,1,1,-1,0,-1,3,1,1,0,-1,2,3,0,0,10,0,1,7,4,1,8,0,-1,5,0,1,7,-3,1,12,0,2,9,0,2,0,0,0,3,-3,0,6,0,3,0,2,1,0,-1,1,0,1,2,0,0,-6,-1,4,0,-2,-1,0,0,0,-1,-2,1,-1,3,-1,3,3,-1,3,2,0,-2,"",4]
["Greens Grant",7100,431,"31780",0,0,null,1,null,null,null,null,null,null,null,null,null,null,null,null,null,null,null,null,null,null,null,null,null,null,null,null,null,null,null,null,null,null,null,null,null,null,null,null,null,null,null,null,null,null,null,null,null,null,null,null,null,null,null,null,null,null,null,null,null,null,null,null,null,null,null,null,null,null,null,null,null,null,null,null,null,null,null,null,null,null,null,null,null,null,null,null,null,null,null,null,null,null,null,null,null,null,null,null,null,null,null,null,null,null,null,null,null,null,null,null,null,null,null,null,null,null,null,null,null,null,null,null,null,null,null,"",4]
["Hadley's Purchase",7105,432,"32420",0,0,null,0,null,null,null,null,null,null,null,null,null,null,null,null,null,null,null,null,null,null,null,null,null,null,null,null,null,null,null,null,null,null,null,null,null,null,null,null,null,null,null,null,null,null,null,null,null,null,null,null,null,null,null,null,null,null,null,null,null,null,null,null,null,null,null,null,null,null,null,null,null,null,null,null,null,null,null,null,null,null,null,null,null,null,null,null,null,null,null,null,null,null,null,null,null,null,null,null,null,null,null,null,null,null,null,null,null,null,null,null,null,null,null,null,null,null,null,null,null,null,null,null,null,null,null,"",4]
["Jefferson",7110,410,"38820",803,965,1006,1107,1144,1115,1033,3,0,0,2,0,1,4,0,2,0,0,0,3,0,1,9,3,4,13,1,4,16,4,10,12,0,3,5,0,6,5,0,14,1,0,3,3,-8,4,3,0,2,5,0,1,0,0,0,5,1,2,3,0,0,1,-1,1,2,1,1,3,0,0,3,0,1,7,0,2,14,0,0,10,0,1,8,0,1,12,0,1,11,0,-1,4,0,0,2,1,-2,1,0,0,-2,0,0,1,0,1,2,0,-1,3,0,1,3,0,0,4,0,0,4,0,0,9,0,-1,2,0,0,"",4]
["Kilkenny Township",7115,433,"39940",0,0,null,0,null,null,null,null,null,null,null,null,null,null,null,null,null,null,null,null,null,null,null,null,null,null,null,null,null,null,null,null,null,null,null,null,null,null,null,null,null,null,null,null,null,null,null,null,null,null,null,null,null,null,null,null,null,null,null,null,null,null,null,null,null,null,null,null,null,null,null,null,null,null,null,null,null,null,null,null,null,null,null,null,null,null,null,null,null,null,null,null,null,null,null,null,null,null,null,null,null,null,null,null,null,null,null,null,null,null,null,null,null,null,null,null,null,null,null,null,null,null,null,null,null,null,null,"",4]
["Lancaster",7120,411,"40420",3401,3522,3280,3507,3536,3446,3194,5,31,0,1,0,0,3,0,0,4,0,0,2,0,0,4,0,1,19,3,0,22,4,0,12,6,0,11,27,0,5,0,0,0,-1,1,-1,0,1,6,0,1,8,1,3,5,0,1,5,-3,2,3,-7,0,2,0,-1,4,-1,1,5,0,2,10,9,4,14,6,2,18,0,0,17,2,0,9,1,4,7,1,5,1,0,0,2,0,0,0,0,2,3,0,1,0,0,0,3,20,2,4,0,0,2,1,0,2,0,1,2,1,0,2,0,0,4,0,0,2,0,0,"",4]
["Low and Burbank's Grant",7125,434,"43620",0,0,null,0,null,null,null,null,null,null,null,null,null,null,null,null,null,null,null,null,null,null,null,null,null,null,null,null,null,null,null,null,null,null,null,null,null,null,null,null,null,null,null,null,null,null,null,null,null,null,null,null,null,null,null,null,null,null,null,null,null,null,null,null,null,null,null,null,null,null,null,null,null,null,null,null,null,null,null,null,null,null,null,null,null,null,null,null,null,null,null,null,null,null,null,null,null,null,null,null,null,null,null,null,null,null,null,null,null,null,null,null,null,null,null,null,null,null,null,null,null,null,null,null,null,null,null,"",4]
["Martin's Location",7130,435,"46020",0,0,null,0,null,null,null,null,null,null,null,null,null,null,null,null,null,null,null,null,null,null,null,null,null,null,null,null,null,null,null,null,null,null,null,null,null,null,null,null,null,null,null,null,null,null,null,null,null,null,null,null,null,null,null,null,null,null,null,null,null,null,null,null,null,null,null,null,null,null,null,null,null,null,null,null,null,null,null,null,null,null,null,null,null,null,null,null,null,null,null,null,null,null,null,null,null,null,null,null,null,null,null,null,null,null,null,null,null,null,null,null,null,null,null,null,null,null,null,null,null,null,null,null,null,null,null,"",4]
["Milan",7135,412,"47860",1013,1295,1331,1337,1272,1239,1149,6,0,1,11,0,2,1,0,1,5,0,2,3,0,3,6,0,3,5,0,0,23,0,3,21,0,8,19,0,4,11,0,0,2,0,0,7,2,0,7,0,5,11,-4,0,-1,0,0,5,0,2,2,0,3,3,0,1,3,0,2,7,4,1,4,0,2,8,0,0,9,0,1,3,1,0,10,2,0,4,0,0,7,0,0,3,0,0,-2,0,2,2,0,1,-1,0,1,0,0,3,1,0,1,1,0,1,0,0,2,1,0,0,0,0,1,0,0,1,0,0,0,"2002 Did not submit data to OEP. Used Census Data",4]
["Millsfield Township",7140,436,"48260",0,21,22,23,null,null,null,null,null,null,null,null,null,null,null,null,null,null,null,null,null,null,null,null,null,null,null,null,null,null,null,null,null,null,null,null,null,null,null,null,null,null,null,null,null,null,null,null,null,null,null,null,null,null,null,null,null,null,null,null,null,null,null,null,null,null,null,null,null,null,null,null,null,null,null,null,null,null,null,null,null,null,null,null,null,null,null,null,null,null,null,null,null,null,null,null,null,null,null,null,null,null,null,null,null,null,null,null,null,null,null,null,null,null,null,null,null,null,null,null,null,null,null,null,null,null,null,"",4]
["Northumberland",7145,413,"56100",2520,2492,2438,2288,2024,1973,1828,5,-2,2,1,0,3,2,0,6,5,0,1,-6,0,5,8,1,3,3,10,1,0,0,3,6,0,7,13,0,12,5,1,7,0,24,7,1,0,10,0,0,10,-3,0,7,1,0,11,-2,-2,3,-1,-2,2,0,0,5,8,-2,7,-1,0,8,3,0,9,2,0,2,-1,0,1,6,-1,2,2,4,1,4,0,0,6,5,0,3,1,1,0,0,0,2,-1,-2,3,-2,-3,3,2,-2,-1,1,-2,1,-3,-1,1,0,-1,5,0,0,0,-3,-1,3,-1,-1,-1,-1,-4,"2006  Did not submit data to OEP. Used Census Data",4]
["Odell",7150,437,"57860",0,0,5,4,null,null,null,null,null,null,null,null,null,null,null,null,null,null,null,null,null,null,null,null,null,null,null,null,null,null,null,null,null,null,null,null,null,null,null,null,null,null,null,null,null,null,null,null,null,null,null,null,null,null,null,null,null,null,null,null,null,null,null,null,null,null,null,null,null,null,null,null,null,null,null,null,null,null,null,null,null,null,null,null,null,null,null,null,null,null,null,null,null,null,null,null,null,null,null,null,null,null,null,null,null,null,null,null,null,null,null,null,null,null,null,null,null,null,null,null,null,null,null,null,null,null,null,"",4]
["Pinkham's Grant",7155,438,"61620",0,11,null,9,null,null,null,null,null,null,null,null,null,null,null,null,null,null,null,null,null,null,null,null,null,null,null,null,null,null,null,null,null,null,null,null,null,null,null,null,null,null,null,null,null,null,null,null,null,null,null,null,null,null,null,null,null,null,null,null,null,null,null,null,null,null,null,null,null,null,null,null,null,null,null,null,null,null,null,null,null,null,null,null,null,null,null,null,null,null,null,null,null,null,null,null,null,null,null,null,null,null,null,null,null,null,null,null,null,null,null,null,null,null,null,null,null,null,null,null,null,null,null,null,null,null,null,"",4]
["Pittsburg",7160,414,"61780",780,901,867,869,825,804,745,6,0,2,1,0,2,1,0,4,6,1,2,16,0,8,14,0,6,42,0,11,5,4,4,36,3,15,12,3,4,9,0,1,6,0,3,2,0,0,4,0,3,10,0,3,1,0,2,4,1,1,3,0,3,8,-1,2,3,0,1,6,0,0,8,2,2,13,0,2,9,0,5,22,0,4,11,1,0,10,0,-2,13,0,1,10,0,0,6,0,0,8,0,0,3,0,0,6,0,-2,4,0,0,4,0,0,12,0,0,7,0,0,9,0,1,8,0,0,18,0,-1,"",4]
["Randolph",7165,415,"63860",274,371,339,310,266,259,240,2,0,2,4,0,-1,1,0,1,3,0,1,1,0,1,4,0,0,9,0,0,6,0,0,2,0,0,0,0,0,3,1,1,3,0,0,3,0,0,0,0,0,1,0,0,2,0,0,0,0,0,0,0,0,0,0,0,1,0,0,1,0,0,0,0,1,4,0,0,1,0,1,3,0,1,2,0,0,1,0,0,2,0,0,1,0,0,3,0,0,1,0,0,0,0,0,0,0,0,0,0,0,0,0,0,0,0,0,0,0,0,0,0,0,0,0,0,0,0,0,"",4]
["Sargent's Purchase",7170,439,"67860",0,0,null,3,null,null,null,null,null,null,null,null,null,null,null,null,null,null,null,null,null,null,null,null,null,null,null,null,null,null,null,null,null,null,null,null,null,null,null,null,null,null,null,null,null,null,null,null,null,null,null,null,null,null,null,null,null,null,null,null,null,null,null,null,null,null,null,null,null,null,null,null,null,null,null,null,null,null,null,null,null,null,null,null,null,null,null,null,null,null,null,null,null,null,null,null,null,null,null,null,null,null,null,null,null,null,null,null,null,null,null,null,null,null,null,null,null,null,null,null,null,null,null,null,null,null,null,"",4]
["Second College Grant",7175,440,"68500",0,0,null,0,null,null,null,null,null,null,null,null,null,null,null,null,null,null,null,null,null,null,null,null,null,null,null,null,null,null,null,null,null,null,null,null,null,null,null,null,null,null,null,null,null,null,null,null,null,null,null,null,null,null,null,null,null,null,null,null,null,null,null,null,null,null,null,null,null,null,null,null,null,null,null,null,null,null,null,null,null,null,null,null,null,null,null,null,null,null,null,null,null,null,null,null,null,null,null,null,null,null,null,null,null,null,null,null,null,null,null,null,null,null,null,null,null,null,null,null,null,null,null,null,null,null,null,"",4]
["Shelburne",7180,416,"68980",318,437,379,372,346,337,312,3,0,1,0,0,0,1,0,0,1,0,1,4,0,0,2,0,1,4,0,0,4,0,2,3,0,1,5,1,1,0,0,0,0,0,0,1,0,0,0,2,0,-2,2,0,1,0,0,0,0,0,2,0,0,1,0,0,5,0,1,2,0,0,2,0,0,1,0,0,1,0,0,0,0,0,1,0,0,2,1,0,2,0,0,1,0,-1,-1,0,0,1,0,0,0,0,0,2,0,0,0,0,0,0,0,0,0,0,0,0,0,0,1,0,0,3,0,0,0,0,0,"",4]
["Stark",7185,417,"73060",470,518,516,556,564,550,510,0,0,0,1,0,1,1,0,0,0,0,0,1,0,2,2,0,0,4,0,3,6,0,2,0,0,0,2,2,1,2,0,1,0,0,-1,0,0,0,6,0,2,0,0,1,-1,0,1,1,0,1,1,0,2,1,0,1,2,0,1,1,5,0,3,0,-1,7,0,0,3,2,0,1,0,0,-1,2,0,2,0,-1,0,0,0,2,0,1,0,0,0,0,0,0,-1,2,0,8,0,0,0,0,0,2,0,0,4,0,0,1,0,0,2,0,0,1,0,0,1,0,0,"",4]
["Stewartstown",7190,418,"73380",943,1048,1012,1004,943,919,852,1,0,1,-1,0,0,0,0,0,2,20,0,1,-2,0,4,0,-1,4,10,2,1,0,5,0,0,0,0,0,0,0,0,0,0,0,0,1,0,2,0,0,0,1,0,3,0,0,5,0,0,5,2,0,8,-1,0,4,-3,0,4,6,0,1,5,0,-2,1,0,3,3,0,0,5,0,0,14,1,0,6,0,-1,7,0,3,4,0,-1,7,0,0,13,0,0,1,0,-2,4,0,-1,5,-4,-1,11,0,-1,6,0,0,1,0,0,3,0,-1,10,0,-1,4,0,3,"",4]
["Stratford",7195,419,"74180",989,927,942,746,520,507,470,0,0,0,0,0,0,0,0,1,0,0,-1,2,0,0,2,1,0,5,0,-1,8,10,9,4,4,3,5,4,5,7,0,6,0,0,0,0,0,0,-1,3,6,-1,0,0,0,-5,7,0,0,0,0,0,0,4,0,0,2,0,0,0,-11,3,1,0,3,9,0,1,9,2,0,5,0,2,3,2,0,4,0,1,3,1,2,5,0,-2,2,0,-1,2,0,0,2,0,0,2,0,0,1,0,0,2,0,-1,2,-1,1,4,0,0,4,2,1,3,0,1,3,0,0,"2002 Did not submit data to OEP. Used Census Data",4]
["Success Township",7200,441,"74500",0,0,2,0,null,null,null,null,null,null,null,null,null,null,null,null,null,null,null,null,null,null,null,null,null,null,null,null,null,null,null,null,null,null,null,null,null,null,null,null,null,null,null,null,null,null,null,null,null,null,null,null,null,null,null,null,null,null,null,null,null,null,null,null,null,null,null,null,null,null,null,null,null,null,null,null,null,null,null,null,null,null,null,null,null,null,null,null,null,null,null,null,null,null,null,null,null,null,null,null,null,null,null,null,null,null,null,null,null,null,null,null,null,null,null,null,null,null,null,null,null,null,null,null,null,null,null,"",4]
["Thompson and Meserves Purchase",7205,442,"76580",0,0,null,0,null,null,null,null,null,null,null,null,null,null,null,null,null,null,null,null,null,null,null,null,null,null,null,null,null,null,null,null,null,null,null,null,null,null,null,null,null,null,null,null,null,null,null,null,null,null,null,null,null,null,null,null,null,null,null,null,null,null,null,null,null,null,null,null,null,null,null,null,null,null,null,null,null,null,null,null,null,null,null,null,null,null,null,null,null,null,null,null,null,null,null,null,null,null,null,null,null,null,null,null,null,null,null,null,null,null,null,null,null,null,null,null,null,null,null,null,null,null,null,null,null,null,null,"",4]
["Wentworth's Location",7210,443,"80740",0,53,44,33,null,null,null,null,null,null,null,null,null,null,null,null,null,null,null,null,null,null,null,null,null,null,null,null,null,null,null,null,null,null,null,null,null,null,null,null,null,null,null,null,null,null,null,null,null,null,null,null,null,null,null,null,null,null,null,null,null,null,null,null,null,null,null,null,null,null,null,null,null,null,null,null,null,null,null,null,null,null,null,null,null,null,null,null,null,null,null,null,null,null,null,null,null,null,null,null,null,null,null,null,null,null,null,null,null,null,null,null,null,null,null,null,null,null,null,null,null,null,null,null,null,null,null,"",4]
["Whitefield",7215,420,"84420",1681,1909,2038,2306,2438,2376,2202,5,36,-2,3,0,3,2,0,7,8,0,1,4,0,4,9,0,4,9,0,7,0,0,0,14,-4,4,4,6,0,4,0,0,7,0,0,4,0,2,0,0,2,0,0,2,1,0,1,9,0,1,4,0,2,2,0,2,4,0,0,9,0,0,7,0,3,9,0,0,11,0,3,12,0,4,5,0,7,-1,0,0,0,0,1,2,0,4,1,0,0,3,0,3,1,17,-1,4,4,-1,0,1,0,5,6,2,3,0,5,5,0,3,3,0,0,4,0,1,2,10,1,"",4]
[]
[]
[]
[]
[]
[]
[]
["NH Employment Data","Query Name: DPQryEmploymentByCnty-Good-Serv-Total","Updated:","2020-09-30"]
[]
["AreaName","COUNTYCODE","TOTP & G2001","TOT2001","GOODPRO2001","SERVICEPROMAN2001","WAGEP & G2001","WAGETOT2001","WAGEGOODPRO2001","WAGESERVICEPRO2001","TOTP & G2002","TOT2002","GOODPRO2002","SERVICEPROMAN2002","WAGEP & G2002","WAGETOT2002","WAGEGOODPRO2002","WAGESERVICEPRO2002","TOTP & G2003","TOT2003","GOODPRO2003","SERVICEPROMAN2003","WAGEP & G2003","WAGETOT2003","WAGEGOODPRO2003","WAGESERVICEPRO2003","TOTP & G2004","TOT2004","GOODPRO2004","SERVICEPROMAN2004","WAGEP & G2004","WAGETOT2004","WAGEGOODPRO2004","WAGESERVICEPRO2004","TOTP & G2005","TOT2005","GOODPRO2005","SERVICEPROMAN2005","WAGEP & G2005","WAGETOT2005","WAGEGOODPRO2005","WAGESERVICEPRO2005","TOTP & G2006","TOT2006","GOODPRO2006","SERVICEPROMAN2006","WAGEP & G2006","WAGETOT2006","WAGEGOODPRO2006","WAGESERVICEPRO2006","TOTP & G2007","TOT2007","GOODPRO2007","SERVICEPROMAN2007","WAGEP & G2007","WAGETOT2007","WAGEGOODPRO2007","WAGESERVICEPRO2007","TOTP & G2008","TOT2008","GOODPRO2008","SERVICEPROMAN2008","WAGEP & G2008","WAGETOT2008","WAGEGOODPRO2008","WAGESERVICEPRO2008","TOTP & G2009","TOT2009","GOODPRO2009","SERVICEPROMAN2009","WAGEP & G2009","WAGETOT2009","WAGEGOODPRO2009","WAGESERVICEPRO2009","TOTP & G2010","TOT2010","GOODPRO2010","SERVICEPROMAN2010","WAGEP & G2010","WAGETOT2010","WAGEGOODPRO2010","WAGESERVICEPRO2010","TOTP & G2011","TOT2011","GOODPRO2011","SERVICEPROMAN2011","WAGEP & G2011","WAGETOT2011","WAGEGOODPRO2011","WAGESERVICEPRO2011","TOTP & G2012","TOT2012","GOODPRO2012","SERVICEPROMAN2012","WAGEP & G2012","WAGETOT2012","WAGEGOODPRO2012","WAGESERVICEPRO2012","TOTP & G2013","TOT2013","GOODPRO2013","SERVICEPROMAN2013","WAGEP & G2013","WAGETOT2013","WAGEGOODPRO2013","WAGESERVICEPRO2013","TOTP & G2014","TOT2014","GOODPRO2014","SERVICEPROMAN2014","WAGEP & G2014","WAGETOT2014","WAGEGOODPRO2014","WAGESERVICEPRO2014","TOTP & G2015","TOT2015","GOODPRO2015","SERVICEPROMAN2015","WAGEP & G2015","WAGETOT2015","WAGEGOODPRO2015","WAGESERVICEPRO2015","TOTP & G2016","TOT2016","GOODPRO2016","SERVICEPROMAN2016","WAGEP & G2016","WAGETOT2016","WAGEGOODPRO2016","WAGESERVICEPRO2016","TOTP & G2017","TOT2017","GOODPRO2017","SERVICEPROMAN2017","WAGEP & G2017","WAGETOT2017","WAGEGOODPRO2017","WAGESERVICEPRO2017","TOTP & G2018","TOT2018","GOODPRO2018","SERVICEPROMAN2018","WAGEP & G2018","WAGETOT2018","WAGEGOODPRO2018","WAGESERVICEPRO2018","TOTP & G2019","TOT2019","TOTGov2019","GOODPRO2019","SERVICEPROMAN2019","WAGEP & G2019","WAGETOT2019","WAGEGov2019","WAGEGOODPRO2019","WAGESERVICEPRO2019","SummaryLevel","WAGESERVICEPRO2019","SummaryLevel"]
["Atkinson and Gilmanton Academy Grant",4,0,0,0,0,0,0,0,0,0,0,0,0,0,0,0,0,0,0,0,0,0,0,0,0,0,0,0,0,0,0,0,0,"n","n",0,"n","n","n",0,"n","n","n",0,"n","n","n",0,"n","n","n",0,"n","n","n",0,"n","n","n",0,"n","n","n",0,"n","n","n",0,"n","n","n",0,"n","n","n",0,"n","n","n",0,"n",2,0,0,0,812.32,0,0,0,0,0,0,0,0,0,0,0,0,0,0,0,0,0,0,0,0,0,0,0,0,0,0,0,0,0,0,0,0,0,0,0,0,0,0,0,0,0,0,0,0,0,0,0,0,0,0,0,0,0,0,0,0,0,0,0,0,0,0,0,0,0,0,0,0,0,60,0,60]
["Bean's Grant",4,0,0,0,0,0,0,0,0,0,0,0,0,0,0,0,0,0,0,0,0,0,0,0,0,0,0,0,0,0,0,0,0,0,0,0,0,0,0,0,0,0,0,0,0,0,0,0,0,0,0,0,0,0,0,0,0,0,0,0,0,0,0,0,0,0,0,0,0,0,0,0,0,0,0,0,0,0,0,0,0,0,0,0,0,0,0,0,0,0,0,0,0,0,0,0,0,0,0,0,0,0,0,0,0,0,0,0,0,0,0,0,0,0,0,0,0,0,0,0,0,0,0,0,0,0,0,0,0,0,0,0,0,0,0,0,0,0,0,0,0,0,0,0,0,0,0,0,0,0,0,0,0,0,0,60,0,60]
["Bean's Purchase",4,0,0,0,0,0,0,0,0,0,0,0,0,0,0,0,0,0,0,0,0,0,0,0,0,0,0,0,0,0,0,0,0,0,0,0,0,0,0,0,0,0,0,0,0,0,0,0,0,0,0,0,0,0,0,0,0,0,0,0,0,0,0,0,0,0,0,0,0,0,0,0,0,0,0,0,0,0,0,0,0,0,0,0,0,0,0,0,0,0,0,0,0,0,0,0,0,0,0,0,0,0,0,0,0,0,0,0,0,0,0,0,0,0,0,0,0,0,0,0,0,0,0,0,0,0,0,0,0,0,0,0,0,0,0,0,0,0,0,0,0,0,0,0,0,0,0,0,0,0,0,0,0,0,0,60,0,60]
["Berlin",4,4415,3186,1043,2143,567.58000000000004,578.29999999999995,804.81,468.09,4053,2774,748,2026,556.28,555.58000000000004,695.15,504.09,4301,3006,1057,1949,605.79,612.32000000000005,776.38,523.41,4324,3024,1102,1922,629.91999999999996,644.21,803.6,552.82000000000005,4423,3106,1130,1977,639.91999999999996,651.49,823.13,553.39,3868,2482,509,1973,611.12,606.6,684.56,586.51,3910,2599,519,2080,633.49,611.59,740.71,579.36,3907,2606,559,2048,674.64,651.79,733.47,629.51,3669,2567,556,2011,685.08,649.29999999999995,743.56,623.24,3558,2466,516,1950,712.18,687.88,801.07,657.92,3510,2442,525,1917,723.18,696.92,780.07,674.15,3572,2455,573,1882,766.7,745.79,926.41,690.85,3752,2480,652,1828,813.38,791.54,953.98,733.58,3379,2112,336,1775,823.91,783.07,863.87,767.76,3262,1997,273,1724,840.6,788.12,843.39,779.38,3221,1934,231,1703,845.12,797.71,869.34,787.99,3173,1923,213,1710,874.17,823.39,928.37,810.29,3157,1945,216,"n",905.49,841.61,880.87,"n",3127,1962,1164,222,1740,936.05,855.6,1071.6300000000001,945.04,844.19,60,844.19,60]
["Cambridge",4,0,0,0,0,0,0,0,0,"n","n",0,"n","n","n",0,"n","n","n",0,"n","n","n",0,"n","n","n",0,"n","n","n",0,"n",0,0,0,0,0,0,0,0,"n","n",0,"n","n","n",0,"n","n","n",0,"n","n","n",0,"n","n","n",0,"n","n","n",0,"n","n","n",0,"n","n","n",0,"n","n","n",0,"n","n","n",0,"n","n","n",0,"n","n","n",0,"n","n","n",0,"n","n","n",0,"n","n","n",0,"n","n","n",0,"n","n","n",0,"n","n","n",0,"n","n","n",0,"n","n","n",0,"n",0,0,0,0,0,0,0,0,0,0,0,0,0,0,0,0,0,0,0,0,0,0,0,0,0,0,"n",0,0,0,0,"n",0,0,60,0,60]
["Carroll",4,846,768,24,744,449.45,425.69,432.83,425.46,935,853,24,828,439.39,411.81,413.42,411.77,838,757,21,736,447.51,421.92,454.59,421,808,722,19,703,476.7,453.95,495.29,452.85,809,731,22,709,494.99,463.49,470.68,463.26,811,731,17,714,566.41999999999996,535.55999999999995,505.63,536.26,838,758,"n","n",573.91,533.12,"n","n",840,757,"n","n",595.98,556.61,"n","n",824,734,"n","n",692.48,653.04,"n","n",841,749,"n","n",615.33000000000004,568.92999999999995,"n","n",981,892,"n","n",562.23,519.55999999999995,"n","n",984,898,"n","n",566.66,525.97,"n","n",995,916,0,916,591.53,558.66999999999996,0,558.66999999999996,976,897,0,897,638.02,600.34,0,600.34,984,914,0,914,699.68,664.8,0,664.8,"n","n",0,"n","n","n",0,"n","n","n",0,0,"n","n",0,0,"n","n",0,0,"n","n",0,0,"n","n",1,0,0,"n","n",1048.69,0,0,60,0,60]
["Chandler's Purchase",4,0,0,0,0,0,0,0,0,0,0,0,0,0,0,0,0,0,0,0,0,0,0,0,0,0,0,0,0,0,0,0,0,0,0,0,0,0,0,0,0,0,0,0,0,0,0,0,0,0,0,0,0,0,0,0,0,0,0,0,0,0,0,0,0,0,0,0,0,0,0,0,0,0,0,0,0,0,0,0,0,0,0,0,0,0,0,0,0,0,0,0,0,0,0,0,0,0,0,0,0,0,0,0,0,0,0,0,0,0,0,0,0,0,0,0,0,0,0,0,0,0,0,0,0,0,0,0,0,0,0,0,0,0,0,0,0,0,0,0,0,0,0,0,0,0,0,0,0,0,0,0,0,0,0,60,0,60]
["Clarksville",4,"n","n","n","n","n","n","n","n","n","n","n","n","n","n","n","n",42,40,6,33,364.37,380.16,321.04000000000002,391.1,44,40,"n","n",378.97,404.97,"n","n",41,38,"n","n",350.51,375.71,"n","n",42,37,"n","n",342.86,369.51,"n","n",40,36,"n","n",379.42,406.29,"n","n",41,36,"n","n",389.93,424.94,"n","n",42,38,"n","n",389.56,417.09,"n","n",39,35,"n","n",445.97,478.87,"n","n","n","n","n","n","n","n","n","n",45,41,6,35,462.24,498.94,504.19,498.07,46,42,7,35,511.02,547.05999999999995,569.79999999999995,542.65,46,43,6,37,499.9,526.09,484.77,532.58000000000004,43,40,5,35,566.79999999999995,592.94000000000005,518.33000000000004,604.01,40,38,5,32,610.08000000000004,640.14,558.52,653.78,35,33,4,28,635.11,668.27,652.65,670.73,33,31,4,27,626.42999999999995,656.32,629.58000000000004,660.37,31,29,2,"n","n",650.37,680.71,195.25,"n","n",60,"n",60]
["Colebrook",4,1222,1066,173,893,423.26,419.64,495.62,404.94,1217,1054,162,892,430.39,426.89,493.39,414.79,1216,1056,175,882,464.66,459.74,530.17999999999995,445.8,1231,1072,142,929,472.87,467.4,562.04,452.91,1203,1034,132,902,497.29,497.09,597.89,482.35,1237,1059,142,917,517.82000000000005,520.55999999999995,659.25,499.08,1281,1097,173,924,554.05999999999995,558.13,630.96,544.51,1259,1072,159,914,566.72,571.55999999999995,730.24,544.01,1191,1014,142,872,580.15,584.16999999999996,799.49,549.12,1184,1010,130,880,548.44000000000005,545.61,724.97,519.04999999999995,1193,1021,143,878,569.11,565.63,720.95,540.36,1170,998,137,861,566.02,563.15,711.06,539.59,1176,1011,139,872,573.86,567.77,697.26,547.12,1161,996,140,855,622.37,624.27,803.97,594.76,1209,1047,170,877,626.02,623.5,771.56,594.72,1192,1028,153,876,666.85,669.46,921.91,625.5,1215,1047,146,901,671.51,675.85,844.91,648.39,1192,1018,144,874,710.57,724.02,842.95,704.48,1226,1068,158,154,914,743.34,750.19,697.17,870.89,729.9,60,729.9,60]
["Columbia",4,20,18,"n","n",459.12,482.76,"n","n",25,22,11,11,480.3,508.77,732.61,269.06,21,19,"n","n",499.38,521.37,"n","n",58,56,46,10,579.88,588.5,656.61,276.33999999999997,50,48,41,6,628.4,640.54999999999995,696.2,266.79000000000002,54,52,45,7,618.09,629.17999999999995,687.26,254.79,58,56,47,9,671.88,685.59,770.06,238.8,65,61,56,5,1135.95,1172.48,1233.69,493.05,62,53,"n","n",963.41,1003.43,"n","n",68,60,"n","n",708.41,711.62,"n","n",55,49,"n","n",858.21,853.4,"n","n",54,48,"n","n",879.48,880.64,"n","n",57,51,"n","n",901.07,906.58,"n","n",56,50,"n","n",887.04,888,"n","n",53,47,"n","n",1121.25,1140.3800000000001,"n","n",67,61,"n","n",1270.06,1297.58,"n","n",69,63,"n","n",1131.0899999999999,1141.9100000000001,"n","n",72,65,"n","n",1148.55,1168.5,"n","n",64,58,5,"n","n",1079.68,1078.68,1090.47,"n","n",60,"n",60]
["Crawford's Purchase",4,0,0,0,0,0,0,0,0,0,0,0,0,0,0,0,0,0,0,0,0,0,0,0,0,"n","n",0,"n","n","n",0,"n","n","n",0,"n","n","n","n","n","n","n",0,"n","n","n",0,"n","n","n",0,"n","n","n",0,"n","n","n",0,"n","n","n",0,"n","n","n",0,"n","n","n",0,"n","n","n",0,"n","n","n",0,"n","n","n",0,"n","n","n",0,"n",0,0,0,0,0,0,0,0,0,0,0,0,0,0,0,0,0,0,0,0,0,0,0,0,0,0,0,0,0,0,0,0,0,0,0,0,0,0,0,0,0,0,0,0,0,0,0,0,0,0,0,0,0,0,0,0,0,0,0,0,0,0,0,0,0,0,60,0,60]
["Cutt's Grant",4,0,0,0,0,0,0,0,0,0,0,0,0,0,0,0,0,0,0,0,0,0,0,0,0,0,0,0,0,0,0,0,0,0,0,0,0,0,0,0,0,0,0,0,0,0,0,0,0,0,0,0,0,0,0,0,0,0,0,0,0,0,0,0,0,0,0,0,0,0,0,0,0,0,0,0,0,0,0,0,0,0,0,0,0,0,0,0,0,0,0,0,0,0,0,0,0,0,0,0,0,0,0,0,0,0,0,0,0,0,0,0,0,0,0,0,0,0,0,0,0,0,0,0,0,0,0,0,0,0,0,0,0,0,0,0,0,0,0,0,0,0,0,0,0,0,0,0,0,0,0,0,0,0,0,60,0,60]
["Dalton",4,39,19,"n","n",373.79,387.59,"n","n",39,20,"n","n",416,444.83,"n","n",44,28,4,23,409.98,386.93,374.55,389.27,57,39,8,31,387.07,358.97,388.3,350.95,59,37,"n","n",402.43,384.99,"n","n",77,55,13,43,412.57,410.68,417.97,408.55,80,60,11,49,476.64,471.28,389.37,490.05,73,53,13,41,601.37,642.29999999999995,559.48,667.65,60,47,11,37,718.81,788.16,646.66999999999996,828.9,53,44,12,32,660.72,717.79,619.57000000000005,753.95,47,39,10,29,783.8,852.56,688.47,908.85,48,37,7,30,655.94,732.77,940.47,680.69,54,37,9,28,595.32000000000005,724.96,837.23,689.31,54,38,10,28,650.91999999999996,797.33,732.47,820.37,50,38,"n","n",685.2,788.71,"n","n",50,41,"n","n",731.97,796.61,"n","n",46,38,"n","n",768.26,839.49,"n","n",57,47,"n","n",701.09,769.15,"n","n",49,37,11,"n","n",758.57,876.43,374,"n","n",60,"n",60]
["Dix's Grant",4,0,0,0,0,0,0,0,0,0,0,0,0,0,0,0,0,0,0,0,0,0,0,0,0,0,0,0,0,0,0,0,0,0,0,0,0,0,0,0,0,0,0,0,0,0,0,0,0,0,0,0,0,0,0,0,0,0,0,0,0,0,0,0,0,0,0,0,0,0,0,0,0,0,0,0,0,0,0,0,0,0,0,0,0,0,0,0,0,0,0,0,0,0,0,0,0,0,0,0,0,0,0,0,0,0,0,0,0,0,0,0,0,0,0,0,0,0,0,0,0,0,0,0,0,0,0,0,0,0,0,0,0,0,0,0,0,0,0,0,0,0,0,0,0,0,0,0,0,0,0,0,0,0,0,60,0,60]
["Dixville",4,494,494,"n","n",474.36,474.36,"n","n",497,497,"n","n",436.45,436.45,"n","n",409,409,"n","n",441.63,441.63,"n","n",355,355,"n","n",471.03,471.03,"n","n","n","n","n","n","n","n","n","n","n","n","n","n","n","n","n","n","n","n","n","n","n","n","n","n","n","n","n","n","n","n","n","n",244,244,"n","n",534.26,534.26,"n","n","n","n","n","n","n","n","n","n",176,176,"n","n",627.38,627.38,"n","n","n","n","n","n","n","n","n","n","n","n","n","n","n","n","n","n","n","n","n","n","n","n","n","n","n","n",0,"n","n","n",0,"n","n","n",0,"n","n","n",0,"n","n","n",0,"n","n","n",0,"n","n","n",0,"n","n","n",0,"n","n","n",0,0,"n","n","n",0,0,"n",60,"n",60]
["Dummer",4,13,11,"n","n",512.29,511.85,"n","n",15,13,"n","n",434.65,423.01,"n","n",14,12,"n","n",389.36,389.5,"n","n","n","n","n","n","n","n","n","n",14,11,"n","n",412.39,421.74,"n","n",15,11,"n","n",415.44,456.82,"n","n",9,6,"n","n",534.26,585.78,"n","n",14,7,"n","n",350.19,494.01,"n","n","n","n","n","n","n","n","n","n","n","n","n","n","n","n","n","n","n","n","n","n","n","n","n","n","n","n","n","n","n","n","n","n",13,10,"n","n",965.02,1131.3900000000001,"n","n",10,6,"n","n",1425.3,1983.46,"n","n",10,6,"n","n",1358.81,1984.22,"n","n","n","n","n","n","n","n","n","n","n","n","n","n","n","n","n","n","n","n","n","n","n","n","n","n",16,11,0,"n","n",1142.75,1439.02,0,"n","n",60,"n",60]
["Errol",4,113,77,"n","n",446.03,463.46,"n","n",116,79,8,71,461.11,467.37,341.72,481.37,115,80,12,69,478.47,486.95,415.16,499.25,125,90,"n","n",464.05,466.5,"n","n",138,103,26,77,489.46,493.04,617.83000000000004,450.32,141,105,34,70,559.76,579.41,673.38,533.26,135,100,"n","n",543.02,550.16999999999996,"n","n",127,93,"n","n",585.51,592.54999999999995,"n","n",136,101,"n","n",638.35,657.72,"n","n",142,108,"n","n",663.24,668.76,"n","n",141,114,"n","n",667.18,668.3,"n","n",147,118,"n","n",609.79999999999995,595.66,"n","n",143,112,"n","n",592.37,591.80999999999995,"n","n",140,108,"n","n",652.39,661.78,"n","n",142,113,"n","n",692.43,701.27,"n","n",134,106,"n","n",708.31,702.69,"n","n",136,107,"n","n",689.14,683.34,"n","n",136,106,"n","n",715.45,702.33,"n","n",133,102,31,"n","n",702.2,682.65,765.92,"n","n",60,"n",60]
["Erving's Location",4,0,0,0,0,0,0,0,0,0,0,0,0,0,0,0,0,0,0,0,0,0,0,0,0,0,0,0,0,0,0,0,0,0,0,0,0,0,0,0,0,0,0,0,0,0,0,0,0,0,0,0,0,0,0,0,0,0,0,0,0,0,0,0,0,0,0,0,0,0,0,0,0,0,0,0,0,0,0,0,0,0,0,0,0,0,0,0,0,0,0,0,0,0,0,0,0,0,0,0,0,0,0,0,0,0,0,0,0,0,0,0,0,0,0,0,0,0,0,0,0,0,0,0,0,0,0,0,0,0,0,0,0,0,0,0,0,0,0,0,0,0,0,0,0,0,0,0,0,0,0,0,0,0,0,60,0,60]
["Gorham",4,1984,1721,97,1624,407.9,391.55,609.44000000000005,378.53,1946,1705,84,1621,456.64,434.27,633.24,423.92,2064,1826,87,1738,493.03,475.11,656.89,465.96,2100,1858,95,1763,511.99,493.87,696.16,483.01,2007,1754,115,1639,520.29999999999995,502.43,649.98,"n",2505,2248,616,1631,618.57000000000005,614.04999999999995,910.18,502.19,2395,2150,440,1710,586.54,573.29999999999995,893.46,490.99,2333,2083,427,1656,569.16,553.42999999999995,842.54,478.94,2105,1844,338,1507,571.48,555.92999999999995,869.79,485.57,1991,1745,264,1481,553.71,530.37,822.88,478.16,1811,1560,133,1427,546.84,518.86,839.24,488.99,1833,1580,261,1319,609.01,591.70000000000005,916.4,527.44000000000005,1845,1594,269,1325,621.17999999999995,605.91999999999996,980.07,529.92999999999995,1824,1565,241,1324,605.45000000000005,587.95000000000005,818.17,546.02,1796,1546,218,1328,639.65,620.92999999999995,871.31,579.82000000000005,1888,1631,221,1410,636.19000000000005,620.62,919.43,573.71,1849,1589,214,1375,659.12,644.78,966.17,594.79,"n","n",0,"n","n","n",0,"n","n","n",0,0,"n","n","n",0,0,"n",60,"n",60]
["Green's Grant",4,"n","n",0,"n","n","n",0,"n","n","n",0,"n","n","n",0,"n","n","n",0,"n","n","n",0,"n","n","n",0,"n","n","n",0,"n","n","n",0,"n","n","n",0,"n","n","n",0,"n","n","n",0,"n","n","n",0,"n","n","n",0,"n","n","n",0,"n","n","n",0,"n","n","n",0,"n","n","n",0,"n","n","n",0,"n","n","n",0,"n","n","n",0,"n","n","n",0,"n","n","n",0,"n","n","n",0,"n","n","n",0,"n","n","n",0,"n","n","n",0,"n","n","n",0,"n","n","n",0,"n","n","n",0,"n","n","n",0,"n","n","n",0,"n","n","n",0,"n","n","n",0,"n",1849,1589,214,1375,675.39,662.48,1001.23,609.75,1832,1572,259,214,1359,653.77,640.36,735.07,992.22,585.04999999999995,60,585.04999999999995,60]
["Hadley's Purchase",4,0,0,0,0,0,0,0,0,0,0,0,0,0,0,0,0,0,0,0,0,0,0,0,0,0,0,0,0,0,0,0,0,0,0,0,0,0,0,0,0,0,0,0,0,0,0,0,0,0,0,0,0,0,0,0,0,0,0,0,0,0,0,0,0,0,0,0,0,0,0,0,0,0,0,0,0,0,0,0,0,0,0,0,0,0,0,0,0,0,0,0,0,0,0,0,0,0,0,0,0,0,0,0,0,0,0,0,0,0,0,0,0,0,0,0,0,0,0,0,0,0,0,0,0,0,0,0,0,0,0,0,0,0,0,0,0,0,0,0,0,0,0,0,0,0,0,0,0,0,0,0,0,0,0,60,0,60]
["Jefferson",4,268,228,49,178,392.93,387.53,452.07,369.72,330,287,47,239,402.65,398.04,471.33,383.6,338,291,41,249,427.06,422.46,459.29,416.34,349,308,45,263,425.96,420.26,445.81,415.95,363,323,54,269,421.79,417.44,490.9,402.73,358,315,54,262,429.87,427.87,525.26,407.95,373,332,52,281,460.53,450.62,553.30999999999995,431.79,376,333,52,281,496.77,492.71,559.84,480.23,402,361,49,312,421.46,408.13,599.35,378.42,414,374,44,330,415.34,401.03,622.51,371.56,403,365,40,325,443.84,431.52,599.85,410.97,460,422,39,383,452.21,443.43,579.63,429.52,425,388,35,352,486.68,479.18,583.98,468.72,429,395,35,359,479.73,470.33,587.88,458.83,427,395,37,358,514.4,502.74,618.28,490.84,452,420,37,383,485.85,472.11,639.88,455.92,444,412,39,372,536.39,525.32000000000005,660.51,511.04,409,384,45,339,476.44,462.6,659.27,436.6,419,400,18,40,360,443.95,436.95,595.39,728.46,404.2,60,404.2,60]
["Kilkenny ",4,0,0,0,0,0,0,0,0,0,0,0,0,0,0,0,0,0,0,0,0,0,0,0,0,0,0,0,0,0,0,0,0,0,0,0,0,0,0,0,0,0,0,0,0,0,0,0,0,0,0,0,0,0,0,0,0,0,0,0,0,0,0,0,0,0,0,0,0,0,0,0,0,0,0,0,0,0,0,0,0,0,0,0,0,0,0,0,0,0,0,0,0,0,0,0,0,0,0,0,0,0,0,0,0,0,0,0,0,0,0,0,0,0,0,0,0,0,0,0,0,0,0,0,0,0,0,0,0,0,0,0,0,0,0,0,0,0,0,0,0,0,0,0,0,0,0,0,0,0,0,0,0,0,0,60,0,60]
["Lancaster",4,1746,1533,209,1324,487.94,493.07,530.22,487.2,1779,1557,227,1331,497.2,500.57,524.62,496.47,1774,1566,239,1327,529.39,528.20000000000005,534.21,527.12,1800,1588,239,1350,564.84,567.37,564.64,567.85,1895,1680,241,1439,571.61,574.63,604.14,569.67999999999995,1853,1616,239,1377,605.12,613.47,612.21,613.69000000000005,1799,1570,256,1313,627.12,630.04999999999995,620.77,631.86,1848,1617,286,1331,648.45000000000005,650.70000000000005,641.04,0,1741,1492,237,1255,663.35,663.75,668.84,0,1781,1506,253,1254,671.63,681.56,656.43,0,1726,1486,246,1240,696.12,701.75,685.51,704.98,1695,1452,225,1227,702.93,709.28,671.67,716.19,1697,1451,240,1210,716.34,724.41,673.33,734.56,1681,1425,254,1171,728.88,735.92,641.1,756.51,1681,1429,255,1174,751.09,758.88,669.81,778.25,1393,246,83,"n",788.87,712.95,715.24,"n",1329,229,80,"n",828.95,789.93,728.23,"n",1355,264,73,"n",861.32,775.47,774.25,"n",1438,288,276,49,"n",864.65,787.48,748.47,664.43,"n",60,"n",60]
["Low and Burbank's Grant",4,0,0,0,0,0,0,0,0,0,0,0,0,0,0,0,0,0,0,0,0,0,0,0,0,0,0,0,0,0,0,0,0,0,0,0,0,0,0,0,0,0,0,0,0,0,0,0,0,0,0,0,0,0,0,0,0,0,0,0,0,0,0,0,0,0,0,0,0,0,0,0,0,0,0,0,0,0,0,0,0,0,0,0,0,0,0,0,0,0,0,0,0,0,0,0,0,0,0,0,0,0,0,0,0,0,0,0,0,0,0,0,0,0,0,0,0,0,0,0,0,0,0,0,0,0,0,0,0,0,0,0,0,0,0,0,0,0,0,0,0,0,0,0,0,0,0,0,0,0,0,0,0,0,0,60,0,60]
["Martin's Location",4,0,0,0,0,0,0,0,0,0,0,0,0,0,0,0,0,0,0,0,0,0,0,0,0,0,0,0,0,0,0,0,0,0,0,0,0,0,0,0,0,0,0,0,0,0,0,0,0,0,0,0,0,0,0,0,0,0,0,0,0,0,0,0,0,0,0,0,0,0,0,0,0,0,0,0,0,0,0,0,0,0,0,0,0,0,0,0,0,0,0,0,0,0,0,0,0,0,0,0,0,0,0,0,0,0,0,0,0,0,0,0,0,0,0,0,0,0,0,0,0,0,0,0,0,0,0,0,0,0,0,0,0,0,0,0,0,0,0,0,0,0,0,0,0,0,0,0,0,0,0,0,0,0,0,60,0,60]
["Milan",4,231,165,85,80,453.06,530.30999999999995,469.45,595.37,248,172,"n","n",451.22,537.53,"n","n",246,175,87,87,428.51,488.2,555.19000000000005,421.27,233,171,81,90,456.11,504.61,564.54,450.46,195,137,57,80,490.04,556.77,604.05999999999995,523.51,196,143,74,69,508.35,555.28,674.32,427.46,214,157,"n","n",501.44,548.34,"n","n",206,146,"n","n",502.42,544.28,"n","n",197,140,"n","n",536.11,576.94000000000005,"n","n",225,161,"n","n",565.92999999999995,617.41999999999996,"n","n",263,200,122,79,603.91999999999996,656.01,831.04,384.92,262,201,119,82,559.51,597.87,741.99,389.24,238,186,117,69,619.33000000000004,657.94,773.54,462.63,202,147,"n","n",570.01,607.78,"n","n",218,159,"n","n",529.1,555.52,"n","n",217,156,"n","n",551.19000000000005,583.07000000000005,"n","n",217,157,"n","n",587.85,613.94000000000005,"n","n",220,159,88,71,618.01,659.3,853.63,416.33,218,157,61,89,68,640.66999999999996,675.21,551.70000000000005,861.1,433.71,60,433.71,60]
["Millsfield",4,"n","n",0,"n","n","n",0,"n","n","n",0,"n","n","n",0,"n","n","n",0,"n","n","n",0,"n","n","n",0,"n","n","n",0,"n","n","n",0,"n","n","n",0,"n","n","n",0,"n","n","n",0,"n","n","n",0,"n","n","n",0,"n","n","n",0,"n","n","n",0,"n","n","n",0,"n","n","n",0,"n","n","n",0,"n","n","n",0,"n","n","n",0,"n","n","n",0,"n","n","n",0,"n","n","n",0,"n","n","n",0,"n","n","n",0,"n","n","n",0,"n","n","n",0,"n","n","n",0,"n","n","n",0,"n","n","n",0,"n","n","n",0,"n","n","n",0,"n","n","n",0,"n","n","n",0,"n","n","n",0,"n","n","n",0,0,"n","n","n",0,0,"n",60,"n",60]
["Northumberland",4,964,819,552,267,631.97,666.25,811.98,364.83,949,792,542,251,653.27,697.89,856.15,356.24,904,741,519,222,684.9,737.87,893.42,373.3,939,752,517,235,666.44,731.83,872.85,421.59,885,710,493,217,697.16,757.32,900.86,431.8,799,631,397,234,694.67,749.91,967.76,379.51,723,558,"n","n",694.07,742.04,"n","n",415,265,117,149,668.67,691.99,1049.57,411.42,335,158,25,133,519.96,515.63,678.24,484.97,310,143,25,118,565.14,559.03,635.24,542.94000000000005,291,129,18,111,616.47,633.66,638.95000000000005,632.82000000000005,271,118,5,113,609.66999999999996,575.26,590.78,574.58000000000004,276,123,6,117,620.73,600.69000000000005,496.98,606.32000000000005,324,168,10,158,582.04,545.16,443.94,551.83000000000004,317,164,12,152,542.29999999999995,472.45,440.68,474.95,321,170,11,159,577.74,538.72,606.63,533.91999999999996,417,264,100,165,618.80999999999995,612.09,760.08,522.62,451,301,"n","n",593.62,550.51,"n","n",440,293,146,"n","n",604.97,554.37,706.29,"n","n",60,"n",60]
["Odell",4,0,0,0,0,0,0,0,0,0,0,0,0,0,0,0,0,0,0,0,0,0,0,0,0,0,0,0,0,0,0,0,0,0,0,0,0,0,0,0,0,0,0,0,0,0,0,0,0,0,0,0,0,0,0,0,0,0,0,0,0,0,0,0,0,0,0,0,0,0,0,0,0,0,0,0,0,0,0,0,0,0,0,0,0,0,0,0,0,0,0,0,0,0,0,0,0,0,0,0,0,0,0,0,0,0,0,0,0,0,0,0,0,0,0,0,0,0,0,0,0,0,0,0,0,0,0,0,0,0,0,0,0,0,0,0,0,0,0,0,0,0,0,0,0,0,0,0,0,0,0,0,0,0,0,60,0,60]
["Pinkham's Grant",4,"n","n",0,"n","n","n",0,"n","n","n",0,"n","n","n",0,"n","n","n",0,"n","n","n",0,"n","n","n",0,"n","n","n",0,"n","n","n",0,"n","n","n",0,"n","n","n",0,"n","n","n",0,"n","n","n",0,"n","n","n",0,"n","n","n",0,"n","n","n",0,"n","n","n",0,"n","n","n",0,"n","n","n",0,"n","n","n",0,"n",0,0,0,0,0,0,0,0,0,0,0,0,0,0,0,0,0,0,0,0,0,0,0,0,0,0,0,0,0,0,0,0,0,0,0,0,0,0,0,0,0,0,0,0,0,0,0,0,0,0,0,0,0,0,0,0,0,0,0,0,0,0,0,0,"n","n",0,0,"n","n","n",0,0,"n",60,"n",60]
["Pittsburg",4,255,189,29,160,344.89,299.48,482.21,266.64999999999998,245,176,23,153,365.3,307.76,512.58000000000004,276.62,258,186,27,159,368.48,305.19,459.91,278.47000000000003,266,194,20,174,380.06,310.29000000000002,523.44000000000005,285.49,261,181,20,161,387.34,319.7,529.27,293.95,267,191,16,175,379.29,307.04000000000002,520.80999999999995,287.33999999999997,262,186,14,172,392.84,309.79000000000002,557.41,289.52,272,196,9,187,382.94,291.14999999999998,609.54,275.81,238,160,7,153,418.54,312.67,584.72,300.7,235,161,13,148,439.99,335.69,490.67,322.17,237,162,12,150,435.95,336.52,522.77,321.66000000000003,240,167,12,155,433.03,336.3,544.55999999999995,320.22000000000003,236,168,9,159,447.46,347.65,559.07000000000005,335.23,253,177,13,165,446.96,370.85,565.66,355.96,261,191,15,177,445.55,360.15,508.88,347.95,181,14,"n",0,386.77,469.82,"n",0,193,19,"n",0,419.34,520.25,"n",0,187,18,"n",0,468.22,635.94000000000005,"n",0,190,16,6,"n",0,479.79,653.65,1043.8599999999999,"n",0,60,0,60]
["Randolph",4,21,16,"n","n",421.05,532.58000000000004,"n","n",23,15,"n","n",406.56,549.67999999999995,"n","n",20,14,"n","n",452.95,595.53,"n","n",30,25,"n","n",490.02,572.57000000000005,"n","n",26,20,"n","n",644.84,770.11,"n","n",26,23,"n","n",510.61,550.85,"n","n",23,21,"n","n",499.39,516.95000000000005,"n","n",19,16,"n","n",382.28,378.37,"n","n",20,17,"n","n",551.88,601.92999999999995,"n","n",17,14,"n","n",496.57,537.08000000000004,"n","n",19,16,"n","n",532.83000000000004,552.19000000000005,"n","n",13,10,"n","n",251.96,262.19,"n","n","n","n",0,"n","n","n",0,"n","n","n",0,"n","n","n",0,"n","n","n",0,"n","n","n",0,"n","n","n",0,"n","n","n",0,"n",11,5,0,5,275.92,316.01,0,316.01,10,5,0,5,257.47000000000003,260.77999999999997,0,260.77999999999997,"n","n",6,0,"n","n","n",256.85000000000002,0,"n",60,"n",60]
["Sargent's Purchase",4,"n","n",0,"n","n","n",0,"n","n","n",0,"n","n","n",0,"n","n","n","n","n","n","n","n","n","n","n",0,"n","n","n",0,"n","n","n",0,"n","n","n",0,"n","n","n",0,"n","n","n",0,"n","n","n",0,"n","n","n",0,"n","n","n",0,"n","n","n",0,"n","n","n",0,"n","n","n",0,"n","n","n",0,"n","n","n",0,"n","n","n",0,"n","n","n",0,"n","n","n",0,"n","n","n",0,"n","n","n",0,"n","n","n",0,"n","n","n",0,"n","n","n",0,"n","n","n",0,"n","n","n",0,"n","n","n",0,"n","n","n",0,"n","n","n",0,"n","n","n",0,"n","n","n",0,"n","n","n",0,"n","n","n",20,0,"n","n","n",514.54999999999995,0,"n",60,"n",60]
["Second College Grant",4,0,0,0,0,0,0,0,0,0,0,0,0,0,0,0,0,0,0,0,0,0,0,0,0,0,0,0,0,0,0,0,0,0,0,0,0,0,0,0,0,0,0,0,0,0,0,0,0,0,0,0,0,0,0,0,0,0,0,0,0,0,0,0,0,0,0,0,0,0,0,0,0,0,0,0,0,0,0,0,0,0,0,0,0,0,0,0,0,0,0,0,0,0,0,0,0,0,0,0,0,0,0,0,0,0,0,0,0,0,0,0,0,0,0,0,0,0,0,0,0,0,0,0,0,0,0,0,0,0,0,0,0,0,0,0,0,0,0,0,0,0,0,0,0,0,0,0,0,0,0,0,0,0,0,60,0,60]
["Shelburne",4,"n","n","n","n","n","n","n","n","n","n","n","n","n","n","n","n",150,134,"n","n",277.87,297.31,"n","n",152,137,"n","n",256.38,272.08999999999997,"n","n",163,145,"n","n",272.45,290.92,"n",0,162,142,"n","n",280.38,300.89999999999998,"n","n",168,148,"n","n",287.89999999999998,308.02999999999997,"n","n",168,149,"n","n",326.07,348.85,"n","n",160,139,"n","n",288.14,308.89,"n","n",148,129,"n","n",311.06,329.06,"n","n",142,124,"n","n",297.47000000000003,318.85000000000002,"n","n",133,118,"n","n",328.26,351.05,"n","n",136,120,"n","n",344.02,371.13,"n","n",133,114,"n","n",335.82,370.28,"n","n",137,116,"n","n",359.31,402.24,"n","n",142,118,"n","n",374.12,431.31,"n","n",138,113,"n","n",366.32,422.66,"n","n",135,108,"n","n",354.42,403.63,"n","n",131,107,24,"n","n",398.84,444.79,195.94,"n","n",60,"n",60]
["Stark",4,12,5,"n","n",180.37,292.73,"n","n","n","n","n","n","n","n","n","n","n","n","n","n","n","n","n","n","n","n","n","n","n","n","n","n",13,6,"n","n",245.67,373.63,"n","n",24,10,"n","n",284.38,597.29,"n","n","n","n","n","n","n","n","n","n",19,4,"n","n",178.92,537.86,"n","n","n","n","n","n","n","n","n","n","n","n","n","n","n","n","n","n","n","n","n","n","n","n","n","n","n","n","n","n","n","n","n","n","n","n","n","n","n","n","n","n","n","n","n","n","n","n","n","n","n","n","n","n","n","n","n","n","n","n","n","n","n","n","n","n","n","n","n","n","n","n","n","n","n","n",0,"n","n","n",0,"n","n","n",10,0,"n","n","n",212.52,0,"n",60,"n",60]
["Stewartstown",4,133,98,19,79,310.8,332.97,706.73,243.09,127,94,15,78,262.70999999999998,261.70999999999998,408.89,233.09,122,83,16,68,301.76,316.97000000000003,694.52,229.09,123,86,12,74,282.33999999999997,277.5,579.37,227.48,124,86,11,74,293.67,276.68,586.58000000000004,229.33,121,84,10,74,300.76,280.64,615.66,237.63,120,83,11,72,327.62,301.81,685.75,243.49,114,78,12,66,345.23,320.39999999999998,632.1,262.10000000000002,345,115,11,105,519.9,416.86,607.54,397.76,345,105,10,95,509.6,402.16,575.6,383.11,339,98,9,89,526.14,399.82,441.54,395.68,319,71,11,60,517.79999999999995,319.95,444.57,296.86,328,76,13,63,519.29,317.33999999999997,431.84,294.44,332,81,15,66,528.51,311.14,508.06,266.25,323,73,14,59,535.30999999999995,308.76,461.75,272.04000000000002,326,75,22,53,565.39,375.16,575.47,291.49,318,70,19,51,595.63,380.15,526.66,324.95999999999998,315,73,17,56,598.05999999999995,407.92,572.34,356.57,313,72,241,16,55,636.49,439.92,694.75,678.54,369.74,60,369.74,60]
["Stratford",4,130,70,38,32,340.25,298.5,380.39,202.26,112,55,23,31,360.31,308.93,461.58,194.85,109,49,16,33,359.8,306.77999999999997,433.9,243.06,110,42,11,31,346.06,332.62,338.29,330.64,98,38,11,27,396.58,318,347.52,306,95,35,"n","n",381.41,261.10000000000002,"n","n",89,27,4,23,416.32,280.64,485.41,248.23,90,30,7,24,435.81,290.12,405.94,258.13,90,32,7,24,449.02,350.08,531.24,295.93,84,27,7,20,447,345.57,485.5,297.77999999999997,76,26,6,20,424.52,325.67,418.59,298.36,77,38,7,31,424.8,380.72,454.87,364.49,87,47,8,39,450.35,440.42,477.13,432.63,66,24,7,16,517.75,649.99,406.69,754.96,71,32,"n","n",488.31,493.92,"n","n",81,43,"n",0,445.79,393.24,"n",0,80,45,7,0,450.69,406.57,403.38,0,73,39,6,0,470.44,443.04,366.01,0,71,36,35,8,0,512.33000000000004,516,508.56,333.89,0,60,0,60]
["Success",4,0,0,0,0,0,0,0,0,0,0,0,0,0,0,0,0,0,0,0,0,0,0,0,0,0,0,0,0,0,0,0,0,0,0,0,0,0,0,0,0,0,0,0,0,0,0,0,0,0,0,0,0,0,0,0,0,0,0,0,0,0,0,0,0,0,0,0,0,0,0,0,0,0,0,0,0,0,0,0,0,0,0,0,0,0,0,0,0,0,0,0,0,0,0,0,0,0,0,0,0,0,0,0,0,0,0,0,0,0,0,0,0,0,0,0,0,0,0,0,0,0,0,0,0,0,0,0,0,0,0,0,0,0,0,0,0,0,0,0,0,0,0,0,0,0,0,0,0,0,0,0,0,0,0,60,0,60]
["Thompson and Meserve's Purchase",4,0,0,0,0,0,0,0,0,0,0,0,0,0,0,0,0,0,0,0,0,0,0,0,0,0,0,0,0,0,0,0,0,0,0,0,0,0,0,0,0,0,0,0,0,0,0,0,0,0,0,0,0,0,0,0,0,0,0,0,0,0,0,0,0,0,0,0,0,0,0,0,0,0,0,0,0,0,0,0,0,0,0,0,0,0,0,0,0,0,0,0,0,0,0,0,0,0,0,0,0,0,0,0,0,0,0,0,0,0,0,0,0,0,0,0,0,0,0,0,0,0,0,0,0,0,0,0,0,0,0,0,0,0,0,0,0,0,0,0,0,0,0,0,0,0,0,0,0,0,0,0,0,0,0,60,0,60]
["Wentworth's Location",4,0,0,0,0,0,0,0,0,0,0,0,0,0,0,0,0,0,0,0,0,0,0,0,0,0,0,0,0,0,0,0,0,0,0,0,0,0,0,0,0,0,0,0,0,0,0,0,0,0,0,0,0,0,0,0,0,0,0,0,0,0,0,0,0,0,0,0,0,0,0,0,0,0,0,0,0,0,0,0,0,0,0,0,0,0,0,0,0,0,0,0,0,0,0,0,0,0,0,0,0,0,0,0,0,0,0,0,0,0,0,0,0,0,0,0,0,0,0,0,0,0,0,0,0,0,0,0,0,0,0,0,0,0,0,0,0,0,0,0,0,0,0,0,0,0,0,0,0,0,0,0,0,0,0,60,0,60]
["Whitefield",4,672,479,126,353,469.57,454.19,556.30999999999995,417.75,759,560,124,436,462.77,444.14,551.07000000000005,413.86,826,626,130,496,490.17,467.09,515.29,454.48,842,636,113,522,495.72,468.16,550.64,450.3,787,576,98,478,510.18,478.39,546,464.55,777,565,98,466,540.05999999999995,523.32000000000005,577.62,511.87,890,668,114,554,559,540.63,575.78,533.42999999999995,902,681,116,565,615.4,606.20000000000005,0,602.30999999999995,917,688,126,563,593.92999999999995,584.73,0,582.49,936,707,104,603,601.58000000000004,585.77,0,579.25,964,738,70,668,589.82000000000005,575.6,746.94,557.66999999999996,932,704,60,644,575.78,561.63,769.81,542.25,910,684,42,642,596.27,578.76,874.39,559.25,893,668,40,628,623.55999999999995,608.55999999999995,888.13,590.83000000000004,892,670,35,635,628.86,603.53,956.98,584.04999999999995,875,658,32,626,653.73,630.45000000000005,1068.47,607.88,910,696,39,657,679.41,656.65,1040.73,633.84,923,701,44,657,728.2,707.99,1039.31,685.84,943,720,223,47,673,794.87,792.85,801.36,2215.9,693.82,60,693.82,60]
[]
[]
[]
["NH Employment Data","Query Name: DPQryEmploymentByCnty-Good-Serv-Total","Updated:","2020-10-04"]
[]
["AreaName","COUNTYCODE","TOTP & G2001","TOT2001","GOODPRO2001","SERVICEPROMAN2001","WAGEP & G2001","WAGETOT2001","WAGEGOODPRO2001","WAGESERVICEPRO2001","TOTP & G2002","TOT2002","GOODPRO2002","SERVICEPROMAN2002","WAGEP & G2002","WAGETOT2002","WAGEGOODPRO2002","WAGESERVICEPRO2002","TOTP & G2003","TOT2003","GOODPRO2003","SERVICEPROMAN2003","WAGEP & G2003","WAGETOT2003","WAGEGOODPRO2003","WAGESERVICEPRO2003","TOTP & G2004","TOT2004","GOODPRO2004","SERVICEPROMAN2004","WAGEP & G2004","WAGETOT2004","WAGEGOODPRO2004","WAGESERVICEPRO2004","TOTP & G2005","TOT2005","GOODPRO2005","SERVICEPROMAN2005","WAGEP & G2005","WAGETOT2005","WAGEGOODPRO2005","WAGESERVICEPRO2005","TOTP & G2006","TOT2006","GOODPRO2006","SERVICEPROMAN2006","WAGEP & G2006","WAGETOT2006","WAGEGOODPRO2006","WAGESERVICEPRO2006","TOTP & G2007","TOT2007","GOODPRO2007","SERVICEPROMAN2007","WAGEP & G2007","WAGETOT2007","WAGEGOODPRO2007","WAGESERVICEPRO2007","TOTP & G2008","TOT2008","GOODPRO2008","SERVICEPROMAN2008","WAGEP & G2008","WAGETOT2008","WAGEGOODPRO2008","WAGESERVICEPRO2008","TOTP & G2009","TOT2009","GOODPRO2009","SERVICEPROMAN2009","WAGEP & G2009","WAGETOT2009","WAGEGOODPRO2009","WAGESERVICEPRO2009","TOTP & G2010","TOT2010","GOODPRO2010","SERVICEPROMAN2010","WAGEP & G2010","WAGETOT2010","WAGEGOODPRO2010","WAGESERVICEPRO2010","TOTP & G2011","TOT2011","GOODPRO2011","SERVICEPROMAN2011","WAGEP & G2011","WAGETOT2011","WAGEGOODPRO2011","WAGESERVICEPRO2011","TOTP & G2012","TOT2012","GOODPRO2012","SERVICEPROMAN2012","WAGEP & G2012","WAGETOT2012","WAGEGOODPRO2012","WAGESERVICEPRO2012","TOTP & G2013","TOT2013","GOODPRO2013","SERVICEPROMAN2013","WAGEP & G2013","WAGETOT2013","WAGEGOODPRO2013","WAGESERVICEPRO2013","TOTP & G2014","TOT2014","GOODPRO2014","SERVICEPROMAN2014","WAGEP & G2014","WAGETOT2014","WAGEGOODPRO2014","WAGESERVICEPRO2014","TOTP & G2015","TOT2015","GOODPRO2015","SERVICEPROMAN2015","WAGEP & G2015","WAGETOT2015","WAGEGOODPRO2015","WAGESERVICEPRO2015","TOTP & G2016","TOT2016","GOODPRO2016","SERVICEPROMAN2016","WAGEP & G2016","WAGETOT2016","WAGEGOODPRO2016","WAGESERVICEPRO2016","TOTP & G2017","TOT2017","GOODPRO2017","SERVICEPROMAN2017","WAGEP & G2017","WAGETOT2017","WAGEGOODPRO2017","WAGESERVICEPRO2017","TOTP & G2018","TOT2018","GOODPRO2018","SERVICEPROMAN2018","WAGEP & G2018","WAGETOT2018","WAGEGOODPRO2018","WAGESERVICEPRO2018","TOTP & G2019","TOT2019","TOTGov2019","GOODPRO2019","SERVICEPROMAN2019","WAGEP & G2019","WAGETOT2019","WAGEGov2019"]
["Belknap County",1,26173,22708,6138,16570,541.07000000000005,538.34,689.88,482.21,26052,22334,5408,16926,561.11,555.84,731.15,499.83,26286,22376,5281,17095,579.91,573.04,754.28,517.04999999999995,26931,23030,5431,17599,610.04,602.01,777.41,547.89,26940,22891,5467,17424,636.41999999999996,634.14,819.42,576,27237,23042,5133,17909,657.93,655.07000000000005,862.32,595.66999999999996,27266,23032,4820,18212,674.29,668.31,921.91,601.17999999999995,26793,22507,4572,17935,689.74,680.53,938.61,614.74,25570,21280,3944,17337,692.98,680.87,934.72,623.12,24943,20713,3480,17234,698.61,690.71,945.91,639.19000000000005,24953,20748,3411,17337,706.01,697.17,959.24,645.61,25196,20972,3400,17572,708.66,703.81,960.55,654.13,25517,21311,3517,17794,718.36,714.81,997.67,658.89,25490,21315,3554,17761,748.41,745.98,1036.05,687.93,25584,21457,3597,17859,776.57,774.35,1066.24,715.55,25708,21577,3626,17951,797.95,796.89,1088.81,737.93,25829,21725,3676,18049,823.13,823.31,1139.79,758.85,25898,21803,3774,18029,851.06,851.82,1167.98,785.64,26080,22008,4072,3799,18209,854.12,849.87,877.08]
["Carroll County",2,19495,16938,2563,14374,467.52,460.32,627.98,430.42,19756,17153,2497,14656,481.01,472.65,645.74,443.16,20167,17534,2567,14967,492.28,481.72,647.55999999999995,453.27,20405,17701,2526,15175,519.72,511.1,687.06,481.81,20205,17448,2541,14906,533.86,524.08000000000004,703.81,493.43,20294,17504,2588,14916,575.59,568.1,737.84,538.66,20402,17510,2544,14966,573.29999999999995,562.55999999999995,760.1,528.99,20584,17636,2552,15084,584.17999999999995,570.32000000000005,770.38,536.47,19942,16904,2265,14639,587.36,570.99,765.31,540.91999999999996,19810,16754,2124,14630,600.19000000000005,586.5,775.97,558.99,19997,17005,2189,14816,617.28,603.41999999999996,798.39,574.61,20082,17083,2162,14921,627.16999999999996,615.41,800.29,588.62,19971,16958,2084,14874,645.66999999999996,633.79,805.62,609.71,20015,16952,2024,14928,640.24,627.02,843.7,597.64,19806,16828,1996,14832,667.3,653.87,884.26,622.86,19997,17053,2030,15023,686.74,674.21,909.04,642.48,20005,17047,2057,14991,692.33,677.15,941.62,640.87,20015,17037,2078,14959,710.33,694.81,905.58,665.54,20228,17268,2960,2128,15140,735.27,721.26,816.99]
["Cheshire County",3,32349,27819,"n","n",571.92999999999995,577.30999999999995,"n","n",32369,27595,7795,19800,584.33000000000004,590.97,743.2,531.04,32548,27626,7754,19873,598.89,603.04,763.11,540.59,33075,28132,7648,20484,631.09,634.67999999999995,807.42,570.17999999999995,33995,28886,8110,20776,656.03,666.98,828.9,603.78,34194,29151,7889,21262,723.95,741.43,987.42,650.15,33638,28601,7473,21128,707.44,717.07,867.3,663.94,33220,28351,7351,21000,746.75,752.8,902.94,700.24,32207,27212,6761,20451,742.41,745.7,870.79,704.34,31527,26585,6300,20286,754.45,756.21,900.6,711.38,31690,26854,6240,20614,768.13,768.69,935.64,718.15,32021,27158,6245,20914,790.24,793.9,933.87,752.11,31923,27008,6032,20975,796.52,797.61,965.3,749.39,31904,26935,6025,20910,810.83,815.88,993.69,764.64,32067,27097,6073,21024,830.63,834.25,1010.79,783.25,32005,27109,6177,20932,838.96,843.47,1028.03,789.01,31743,26953,6194,20759,867.06,873.07,1043.75,822.14,31642,26825,6445,20380,895.81,907.01,1090.07,849.12,31737,26923,4814,6652,20272,913.17,927.09,835.36]
["Coos County",4,13872,11234,"n","n",489.02,487.7,"n","n",13737,11021,2332,8689,490.8,484.33,650.88,439.63,13946,11225,2578,8647,525.08000000000004,519.66,703.37,464.89,14103,11341,2590,8751,542.98,540.59,726.42,485.6,14026,11222,2533,8689,556.04,552.64,754.89,493.68,13898,10991,2334,8657,572.86,571.41999999999996,766.73,518.76,13876,11050,2184,8866,583.63,572.30999999999995,758.88,526.34,13566,10747,1988,8759,602.53,587.51,755.51,549.38,13002,10134,1720,8414,609.67999999999995,592.77,751.35,560.36,12832,9977,1593,8384,608.57000000000005,589.54,744.88,560.02,12555,9785,1473,8312,620.23,600.46,757.95,572.54,12371,9564,1568,7995,640.94000000000005,622.74,825.56,582.97,12515,9564,1649,7915,667.37,647.75,855.89,604.39,12064,9083,1293,7789,675.59,651.58000000000004,777.89,630.61,11974,9046,1222,7824,694.46,666.94,788.97,647.89,11990,9038,1167,7870,706.62,682.98,853.55,657.68,11999,9070,1223,7846,729.45,705.37,867.99,680.02,11970,9060,1296,7764,749.69,723.06,852.68,701.43,12083,9226,2857,1304,7921,766.79,735.31,868.44]
["Grafton County",5,49352,43256,8085,35171,617.73,624.04999999999995,672.45,612.92999999999995,49690,43362,7763,35599,658.93,668.77,701.81,661.56,50615,44009,7790,36220,704.15,717.01,753.77,709.11,51355,44704,7636,37069,728.96,740.6,770.78,734.38,51541,44954,7698,37256,768.82,783.94,809.26,778.7,52267,45531,7761,37770,803.4,820.96,855.22,813.92,52729,45992,7672,38320,843.04,860.73,901.98,852.47,52901,46166,7347,38819,867.61,884.82,928.14,876.62,51401,44646,6446,38200,879.4,895.26,899.95,894.47,51256,44376,6289,38086,905.77,925.54,949.83,921.53,51663,44867,6681,38186,926.58,946.3,981.6,940.12,52026,45246,6818,38428,950.95,973.52,996.15,969.5,52153,45454,6717,38736,965.05,986.68,1028.75,979.39,52226,45565,6778,38787,1004.06,1029.1500000000001,1069.54,1022.09,52654,46056,6882,39174,1037.55,1061.83,1078.8900000000001,1058.83,53361,46686,6801,39885,1058.5999999999999,1086.92,1082.4000000000001,1087.69,53790,47161,6781,40380,1079.6300000000001,1108.6099999999999,1125.3,1105.81,54119,47417,6926,40491,1105.33,1135.81,1167.74,1130.3399999999999,54388,47685,6703,6855,40830,1142.8,1174.8,915.17]
["Hillsborough County",6,192842,173003,47169,125834,756.14,762.49,941.37,695.43,188573,168164,42086,126078,768.52,773.3,968.23,708.23,190864,169969,41006,128962,801.91,806.79,1014.82,740.64,193543,172567,40910,131656,839.56,844.4,1064.01,776.16,196190,174854,40181,134673,866.71,873.18,1101.58,805.03,196502,175094,39123,135971,897.24,904,1171.1600000000001,827.13,197183,175821,38588,137233,946.54,951.14,1248.82,867.44,195976,174253,36628,137625,973.54,979.17,1267.17,902.52,187240,165260,33003,132257,959.3,962.96,1236.24,894.76,184628,162829,32117,130712,980.99,986.25,1287.9100000000001,912.12,186437,165030,32694,132336,1013.7,1018.86,1329.81,942.03,188425,167133,31642,135492,1029.82,1035.95,1325.69,968.28,190568,169383,30861,138522,1038.74,1045.24,1365.43,973.9,193565,172574,31422,141152,1092.9000000000001,1101.22,1393.55,1036.1500000000001,196842,175848,31842,144005,1099.51,1106.52,1401.46,1041.3,199729,178867,32654,146213,1118.6300000000001,1126.21,1436.51,1056.9100000000001,201740,180839,33513,147327,1147.78,1156.08,1490.14,1080.0899999999999,203961,182874,34296,148577,1182,1189.98,1525.57,1112.51,205989,184819,21170,35047,149772,1219.73,1229.8399999999999,1131.48]
["Merrimack County",7,71543,56168,12137,44031,631.86,633.92999999999995,772.48,595.74,71850,56025,11403,44622,653.27,655.12,799.93,618.12,72840,56631,11036,45595,667.06,666.91,826.68,628.24,72381,56515,10742,45773,690.51,689.4,845.49,652.77,72963,56979,11012,45967,710.07,710.67,861.87,674.44,74077,57818,10760,47058,739.28,739.89,906.79,701.73,74070,57629,10051,47579,774.05,772.96,972.47,730.82,73959,57295,9822,47472,795.3,789.49,978.78,750.33,72134,55582,8724,46857,810.16,788.36,966.04,755.28,71882,55306,8662,46645,821.15,806.64,998.67,770.98,72140,55913,9059,46854,835.3,821.63,1012.78,784.67,72901,56946,9282,47664,850.4,842.26,1036.72,804.39,73510,57805,9457,48348,866.04,857.51,1050.8699999999999,819.69,74884,58800,9698,49103,892.44,882.46,1086.78,842.11,75670,59563,9801,49762,929.04,918.53,1114.06,880.02,76413,60219,9936,50283,946.35,937.29,1126.3800000000001,899.92,76803,60570,10042,50528,980.03,971.23,1164.72,932.78,77469,61326,10142,51184,1012.33,1004.39,1186.1199999999999,968.39,77816,61536,16281,10313,51222,1038.6300000000001,1030.98,1067.56]
["New Hampshire",1026,610446,531225,127190,404035,682.38,691.51,842.11,644.1,603100,521320,115244,406076,695.8,703.84,868.13,657.22,604198,520362,111472,408890,717.94,724.91,888.81,680.22,613327,529515,111893,417622,753.7,760.58,928.63,715.56,620909,536173,112033,424140,779.84,788.93,958.48,744.15,627301,541435,110189,431246,816.3,827.48,1013.11,780.04,630171,543800,107673,436127,843.46,852.45,1054.1600000000001,802.65,628819,541768,104441,437326,863.66,870.64,1074.5999999999999,821.93,604915,517658,92952,424706,864.05,867.37,1066.42,823.81,600540,513386,89428,423957,883.88,890.13,1119.47,841.75,605864,520338,90996,429342,909.31,916.27,1140.95,868.65,612432,527263,90404,436858,928.33,938.02,1152.07,893.72,618756,534106,90890,443216,941.75,950.79,1173.1099999999999,905.2,626567,541441,92176,449265,983.96,996.35,1200.71,954.42,636798,552276,93968,458308,1010.64,1021.89,1224.55,980.34,647375,562836,96138,466699,1030.04,1042.6300000000001,1251.03,999.7,653496,569023,97995,471029,1060.3399999999999,1073.99,1294.46,1028.1199999999999,658816,574044,100089,473955,1091.97,1106.44,1317.59,1061.8499999999999,665374,580394,84980,101907,478487,1128.27,1145.04,1013.77]
["Rockingham County",8,130960,117604,24384,93220,704.6,714.62,913.02,662.73,130242,116589,22286,94302,712.56,720.57,945.47,667.42,130329,116466,21075,95392,725.68,731.51,920.38,689.79,133803,119786,21944,97841,774.11,781.14,964.22,740.08,136154,122028,22051,99976,796.86,803.2,996.54,760.55,138063,123549,22274,101275,842.13,851.8,1013.05,816.33,138382,123679,22407,101273,849.04,856.27,1052.77,812.8,137191,122378,22407,99970,839.01,841.86,1081.82,788.07,131375,116492,19644,96848,839.06,840.45,1104.3599999999999,786.93,131892,117079,18689,98391,862.17,865.32,1199.72,801.8,133444,119079,18941,100138,880.6,883.65,1146.49,833.93,135396,121125,18942,102183,907.06,912.95,1200.98,859.56,137505,123255,19558,103698,919.22,924.42,1204.8699999999999,871.53,139972,125705,20107,105598,967.99,976.63,1214.5999999999999,931.32,143650,129571,20954,108617,999.45,1007.52,1260.8800000000001,958.65,146926,132843,21711,111132,1008.63,1016.49,1289.1199999999999,963.24,149059,134948,22384,112564,1040.5999999999999,1049.82,1335.62,992.99,149817,135525,22957,112568,1068.69,1079.1600000000001,1345.67,1024.8,151694,137342,14352,23611,113731,1110.28,1122.81,990.42]
["Strafford County",9,43645,34821,9068,25753,655.37,655.92,770.85,615.45000000000005,42874,33684,7630,26054,655.35,652.99,800.21,609.88,43046,33530,7366,26164,668.52,656.47,806.84,614.13,43436,33873,7230,26643,693.72,673.65,820.17,633.9,43773,34267,7211,27056,709.03,692.76,828.02,656.71,44557,35064,7140,27925,723.22,705.71,858.22,666.71,45570,35960,6960,29000,746.96,729.16,880.17,692.91,46580,36991,6754,30237,803.35,784.14,900.05,758.25,44375,35115,5981,29133,822.2,798.7,916.04,774.61,44144,34793,5960,28833,843.68,824.98,964.85,796.07,44154,34870,6008,28863,879.87,868.02,1098.93,819.95,45017,35667,6036,29631,875.8,864.35,1039.17,828.73,45379,36187,6365,29822,896.63,880.93,1050.44,844.76,46249,36899,6431,30469,915.86,906.58,1082.2,869.52,46826,37517,6657,30860,954.37,941.53,1121.8,902.65,47632,38313,6879,31434,967.61,953.88,1119.03,917.74,48165,38780,6935,31845,990.95,980.7,1148.01,944.26,48371,39036,6997,32039,1004.47,991.1,1131.83,960.36,48714,39366,9348,7127,32239,1034.79,1028.5999999999999,1060.8599999999999]
["Sullivan County",10,14086,11544,"n","n",536.78,549.33000000000004,"n","n",13793,11231,4452,6779,561.15,569.74,685.65,493.64,13370,10809,4059,6750,577.41,588.45000000000005,688.92,528.03,13551,11127,4066,7061,602.70000000000005,607.34,721.67,541.5,13862,11386,4086,7300,615.79,621.85,741.34,554.98,13826,11306,3928,7377,642.61,650.96,800.27,571.45000000000005,13873,11351,3958,7393,676.8,687.32,843.22,603.85,13799,11227,3909,7318,687.34,698.53,866.24,608.95000000000005,13185,10586,3466,7121,698.02,705.82,887.35,617.47,13076,10479,3303,7176,714.38,723.66,917.55,634.42999999999995,13190,10617,3204,7413,723.57,732.12,955.94,635.39,13597,11070,3448,7622,757.15,771.77,1038.8399999999999,650.94000000000005,13793,11373,3704,7670,768.35,784.88,1012.65,674.88,13873,11439,3932,7507,795.94,816.28,1039.17,699.53,14090,11709,3948,7761,803.2,815.31,1021.57,710.37,14204,11783,4061,7722,810.76,830.28,1066.2,706.22,13997,11636,4031,7605,821.95,836.22,1048.48,723.72,13966,11628,3919,7708,836.09,849.04,1063.6199999999999,739.94,13735,11390,2344,3818,7573,854.16,864.16,805.53]

{"sheet":"BuildingPermitsSince2000","index":8,"n_rows":41,"n_cols":23,"rows_kept":41,"cut":false,"hidden":true,"merged":[[3,1,3,3]]}
[]
[null,{"$f":"CntyDataLink!A35","v":"Berlin"}]
[]
[null,"HOUSING CHARACTERISTICS"]
[]
[]
[]
[]
[]
[]
[]
[]
[]
[]
[]
[]
[]
[]
[]
[]
[]
[]
[]
[]
[]
[]
[]
[]
[]
[]
[]
[]
[]
[]
[null,"Housing Units Authorized by Permit",null,null,null,"Source: New Hampshire Office of Strategic Initiatives"]
[]
[null,"Year",2000,{"$f":"C37+1","v":2001},{"$f":"D37+1","v":2002},2003,2004,2005,2006,2007,2008,2009,2010,2011,2012,2013,2014,2015,2016,2017,2018,2019,"Total"]
[null,"Single Family",{"$f":"CntyDataLink!$BT$20","v":-1},{"$f":"CntyDataLink!$BW$20","v":0},{"$f":"CntyDataLink!$BZ$20","v":0},{"$f":"CntyDataLink!$CC$20","v":-1},{"$f":"CntyDataLink!$CF$20","v":-1},{"$f":"CntyDataLink!$CI$20","v":3},{"$f":"CntyDataLink!$CL$20","v":-4},{"$f":"CntyDataLink!$CO$20","v":-3},{"$f":"CntyDataLink!$CR$20","v":-1},{"$f":"CntyDataLink!$CU$20","v":-5},{"$f":"CntyDataLink!$CX$20","v":-3},{"$f":"CntyDataLink!$DA$20","v":-9},{"$f":"CntyDataLink!$DD$20","v":-12},{"$f":"CntyDataLink!$DG$20","v":-9},{"$f":"CntyDataLink!$DJ$20","v":-2},{"$f":"CntyDataLink!$DM$20","v":-3},{"$f":"CntyDataLink!$DP$20","v":-1},{"$f":"CntyDataLink!$DS$20","v":0},{"$f":"CntyDataLink!$DV$20","v":1},{"$f":"CntyDataLink!$DY$20","v":1},{"$f":"SUM(C38:V38)","v":-50}]
[null,"Multi-family",{"$f":"CntyDataLink!$BU$20","v":-21},{"$f":"CntyDataLink!$BX$20","v":-9},{"$f":"CntyDataLink!$CA$20","v":0},{"$f":"CntyDataLink!$CD$20","v":-10},{"$f":"CntyDataLink!$CG$20","v":0},{"$f":"CntyDataLink!$CJ$20","v":-6},{"$f":"CntyDataLink!$CM$20","v":-3},{"$f":"CntyDataLink!$CP$20","v":-32},{"$f":"CntyDataLink!$CS$20","v":-14},{"$f":"CntyDataLink!$CV$20","v":-16},{"$f":"CntyDataLink!$CY$20","v":-31},{"$f":"CntyDataLink!$DB$20","v":-24},{"$f":"CntyDataLink!$DE$20","v":-61},{"$f":"CntyDataLink!$DH$20","v":-64},{"$f":"CntyDataLink!$DK$20","v":-22},{"$f":"CntyDataLink!$DN$20","v":-3},{"$f":"CntyDataLink!$DQ$20","v":-14},{"$f":"CntyDataLink!$DT$20","v":6},{"$f":"CntyDataLink!$DW$20","v":2},{"$f":"CntyDataLink!$DZ$20","v":0},{"$f":"SUM(C39:V39)","v":-322}]
[null,"Mobile Home",{"$f":"CntyDataLink!$BV$20","v":0},{"$f":"CntyDataLink!$BY$20","v":-1},{"$f":"CntyDataLink!$CB$20","v":0},{"$f":"CntyDataLink!$CE$20","v":2},{"$f":"CntyDataLink!$CH$20","v":2},{"$f":"CntyDataLink!$CK$20","v":1},{"$f":"CntyDataLink!$CN$20","v":0},{"$f":"CntyDataLink!$CQ$20","v":0},{"$f":"CntyDataLink!$CT$20","v":0},{"$f":"CntyDataLink!$CW$20","v":2},{"$f":"CntyDataLink!$CZ$20","v":0},{"$f":"CntyDataLink!$DC$20","v":0},{"$f":"CntyDataLink!$DF$20","v":2},{"$f":"CntyDataLink!$DI$20","v":1},{"$f":"CntyDataLink!$DL$20","v":0},{"$f":"CntyDataLink!$DO$20","v":0},{"$f":"CntyDataLink!$DR$20","v":1},{"$f":"CntyDataLink!$DU$20","v":2},{"$f":"CntyDataLink!$DX$20","v":0},{"$f":"CntyDataLink!$EA$20","v":-4},{"$f":"SUM(C40:V40)","v":8}]
[null,"Net Permits Issued",{"$f":"SUM(C38:C40)","v":-22},{"$f":"SUM(D38:D40)","v":-10},0,-9,1,-2,-7,-35,-15,-19,-34,-33,-71,-72,-24,{"$f":"SUM(R38:R40)","v":-6},-14,8,{"$f":"SUM(U38:U40)","v":3},-3,{"$f":"SUM(W38:W40)","v":-364}]

{"sheet":"EmploymentAndWages","index":9,"n_rows":4,"n_cols":2,"rows_kept":4,"cut":false,"hidden":true,"merged":[[3,1,3,3]]}
[]
[null,{"$f":"CntyDataLink!A35","v":"Berlin"}]
[]
[null,"EMPLOYMENT CHARACTERISTICS"]

{"sheet":"EmpVsHUxCounty","index":10,"n_rows":124,"n_cols":15,"rows_kept":124,"cut":false,"hidden":true,"merged":[[64,0,64,11],[79,0,80,9]]}
[]
[{"$f":"A45","v":"Berlin"}]
[]
[]
[]
[]
[]
[]
[]
[]
[]
[]
[]
[]
[]
[]
[]
[]
[]
[]
[]
[]
[]
[]
[]
[]
[]
[]
[]
[]
[]
[]
[]
[]
[]
[]
[]
[]
[]
[]
[]
[]
[]
["Housing Units "]
[{"$f":"CntyDataLink!A20","v":"Berlin"}]
[null,null,null,"Source: New Hampshire Office of Strategic Initiatives"]
["Units Authorized By Permit",2008,{"$f":"B47+1","v":2009},{"$f":"C47+1","v":2010},2011,2012,2013,2014,2015,2016,2017,2018,2019]
["Single Family",{"$f":"CntyDataLink!$CR$20","v":-1},{"$f":"CntyDataLink!$CU$20","v":-5},{"$f":"CntyDataLink!$CX$20","v":-3},{"$f":"CntyDataLink!$DA$20","v":-9},{"$f":"CntyDataLink!$DD$20","v":-12},{"$f":"CntyDataLink!$DG$20","v":-9},{"$f":"CntyDataLink!$DJ$20","v":-2},{"$f":"CntyDataLink!$DM$20","v":-3},{"$f":"CntyDataLink!$DP$20","v":-1},{"$f":"CntyDataLink!$DS$20","v":0},{"$f":"CntyDataLink!$DV$20","v":1},{"$f":"CntyDataLink!$DY$20","v":1}]
["Multi-family",{"$f":"CntyDataLink!$CS$20","v":-14},{"$f":"CntyDataLink!$CV$20","v":-16},{"$f":"CntyDataLink!$CY$20","v":-31},{"$f":"CntyDataLink!$DB$20","v":-24},{"$f":"CntyDataLink!$DE$20","v":-61},{"$f":"CntyDataLink!$DH$20","v":-64},{"$f":"CntyDataLink!$DK$20","v":-22},{"$f":"CntyDataLink!$DN$20","v":-3},{"$f":"CntyDataLink!$DQ$20","v":-14},{"$f":"CntyDataLink!$DT$20","v":6},{"$f":"CntyDataLink!$DW$20","v":2},{"$f":"CntyDataLink!$DZ$20","v":0}]
["Mobile Home",{"$f":"CntyDataLink!$CT$20","v":0},{"$f":"CntyDataLink!$CW$20","v":2},{"$f":"CntyDataLink!$CZ$20","v":0},{"$f":"CntyDataLink!$DC$20","v":0},{"$f":"CntyDataLink!$DF$20","v":2},{"$f":"CntyDataLink!$DI$20","v":1},{"$f":"CntyDataLink!$DL$20","v":0},{"$f":"CntyDataLink!$DO$20","v":0},{"$f":"CntyDataLink!$DR$20","v":1},{"$f":"CntyDataLink!$DU$20","v":2},{"$f":"CntyDataLink!$DX$20","v":0},{"$f":"CntyDataLink!$EA$20","v":-4}]
["Total",{"$f":"SUM(B48:B50)","v":-15},-19,-34,-33,-71,-72,-24,-6,-14,8,{"$f":"SUM(L48:L50)","v":3},{"$f":"SUM(M48:M50)","v":-3}]
[]
["Total Housing Units",2008,{"$f":"B53+1","v":2009},2010,"2010 Census",2011,{"$f":"F53+1","v":2012},2013,2014,2015,2016,2017,2018,2019,2020]
["Single Family",{"$f":"CntyDataLink!CF65+CntyDataLink!$BT$20+CntyDataLink!$BW$20+CntyDataLink!$BZ$20+CntyDataLink!$CC$20+CntyDataLink!$CF$20+CntyDataLink!$CI$20+CntyDataLink!$CO$20+CntyDataLink!$CR$20","v":2450},{"$f":"B54+B48","v":2449},{"$f":"C54+C48","v":2444},{"$f":"CntyDataLink!$BA$167","v":2686},{"$f":"D48+E54","v":2683},{"$f":"F54+E48","v":2674},2662,2653,2651,2648,2647,2647,2648,2649]
["Multi Family",{"$f":"SUM(CntyDataLink!CG65:CM65)+CntyDataLink!$BU$20+CntyDataLink!$BX$20+CntyDataLink!$CA$20+CntyDataLink!$CD$20+CntyDataLink!$CG$20+CntyDataLink!$CJ$20+CntyDataLink!$CP$20+CntyDataLink!$CS$20","v":2475},{"$f":"B55+B49","v":2461},{"$f":"C55+C49","v":2445},{"$f":"CntyDataLink!$BB$167","v":2192},{"$f":"D49+E55","v":2161},2137,2076,2012,1990,1987,1973,1979,1981,1981]
["Mobile Home",{"$f":"SUM(CntyDataLink!CN65:CO65)+CntyDataLink!$BV$20+CntyDataLink!$BY$20+CntyDataLink!$CB$20+CntyDataLink!$CE$20+CntyDataLink!$CH$20+CntyDataLink!$CK$20+CntyDataLink!$CQ$20+CntyDataLink!$CT$20","v":94},94,{"$f":"C56+C50","v":96},{"$f":"CntyDataLink!$BC$167","v":32},{"$f":"D50+E56","v":32},32,34,35,35,35,36,38,38,34]
["Total",{"$f":"SUM(B54:B56)","v":5019},{"$f":"SUM(C54:C56)","v":5004},{"$f":"C57+C51","v":4985},{"$f":"SUM(E54:E56)","v":4910},{"$f":"SUM(F54:F56)","v":4876},4843,4772,4700,4676,4670,4656,4664,4667,4664]
[]
["Percent Change",null,"08-09","09-10","2000-2010 Census"," 10-11"," 11-12","12-13","13-14","14-15","15-16","16-17","17-18","18-19","19-20"]
["Single Family",null,{"$f":"(C54-B54)/B54","v":-4.0816326530612246E-4},{"$f":"(D54-C54)/C54","v":-2.0416496529195591E-3},{"$f":"(E54-CntyDataLink!CF$65)/CntyDataLink!CF$65","v":9.4539527302363494E-2},{"$f":"(F54-E54)/E54","v":-1.1169024571854058E-3},-3.354453969437197E-3,-4.4876589379207179E-3,-3.3809166040570998E-3,-7.538635506973238E-4,-1.1316484345529989E-3,-3.7764350453172205E-4,0,3.7778617302606723E-4,3.7764350453172205E-4]
["Multi Family",null,{"$f":"(C55-B55)/B55","v":-5.6565656565656566E-3},-6.5014221861032099E-3,{"$f":"(E55-SUM(CntyDataLink!CG65:CM65))/SUM(CntyDataLink!CG65:CM65)","v":-0.1460849240358395},-1.4142335766423358E-2,-1.1105969458583989E-2,-2.8544688816097334E-2,-3.0828516377649325E-2,-1.0934393638170975E-2,-1.507537688442211E-3,-7.0457976849521891E-3,3.0410542321338066E-3,1.0106114199090451E-3,0]
["Mobile Home",null,0,2.1276595744680851E-2,{"$f":"(E56-SUM(CntyDataLink!CM65:CN65))/SUM(CntyDataLink!CM65:CN65)","v":-0.83333333333333337},0,0,6.25E-2,2.9411764705882353E-2,0,0,2.8571428571428571E-2,5.5555555555555552E-2,0,-0.10526315789473684]
["Total",null,-2.9886431560071729E-3,-3.7969624300559553E-3,{"$f":"(E57-CntyDataLink!$CE65)/CntyDataLink!$CE65","v":-3.9326941890041087E-2},-6.9246435845213847E-3,-6.7678424938474157E-3,-1.466033450340698E-2,-1.5088013411567477E-2,-5.106382978723404E-3,-1.2831479897348161E-3,-2.9978586723768737E-3,1.718213058419244E-3,6.4322469982847346E-4,-6.4281122776944509E-4]
[]
[]
[]
[]
["Private Employment"]
[{"$f":"CntyDataLink!A25","v":"Berlin"}]
[null,null,2008,{"$f":"C70+1","v":2009},2010,2011,2012,2013,2014,2015,2016,2017,2018,2019]
["Goods Producing",null,{"$f":"IF((CntyDataLink!$BI$25)=\"n\",NA(),IF(VALUE(CntyDataLink!$BI$25)=\"\",NA(),VALUE(CntyDataLink!$BI$25)))","v":559},{"$f":"IF((CntyDataLink!$BQ$25)=\"n\",NA(),IF(VALUE(CntyDataLink!$BQ$25)=\"\",NA(),VALUE(CntyDataLink!$BQ$25)))","v":556},{"$f":"IF((CntyDataLink!$BY$25)=\"n\",NA(),IF(VALUE(CntyDataLink!$BY$25)=\"\",NA(),VALUE(CntyDataLink!$BY$25)))","v":516},{"$f":"IF((CntyDataLink!$CG$25)=\"n\",NA(),IF(VALUE(CntyDataLink!$CG$25)=\"\",NA(),VALUE(CntyDataLink!$CG$25)))","v":525},{"$f":"IF((CntyDataLink!$CO$25)=\"n\",NA(),IF(VALUE(CntyDataLink!$CO$25)=\"\",NA(),VALUE(CntyDataLink!$CO$25)))","v":573},{"$f":"IF((CntyDataLink!$CW$25)=\"n\",NA(),IF(VALUE(CntyDataLink!$CW$25)=\"\",NA(),VALUE(CntyDataLink!$CW$25)))","v":652},{"$f":"IF((CntyDataLink!$DE$25)=\"n\",NA(),IF(VALUE(CntyDataLink!$DE$25)=\"\",NA(),VALUE(CntyDataLink!$DE$25)))","v":336},{"$f":"IF((CntyDataLink!$DM$25)=\"n\",NA(),IF(VALUE(CntyDataLink!$DM$25)=\"\",NA(),VALUE(CntyDataLink!$DM$25)))","v":273},{"$f":"IF((CntyDataLink!$DU$25)=\"n\",NA(),IF(VALUE(CntyDataLink!$DU$25)=\"\",NA(),VALUE(CntyDataLink!$DU$25)))","v":231},{"$f":"IF((CntyDataLink!$EC$25)=\"n\",NA(),IF(VALUE(CntyDataLink!$EC$25)=\"\",NA(),VALUE(CntyDataLink!$EC$25)))","v":213},{"$f":"IF((CntyDataLink!$EK$25)=\"n\",NA(),IF(VALUE(CntyDataLink!$EK$25)=\"\",NA(),VALUE(CntyDataLink!$EK$25)))","v":216},{"$f":"IF((CntyDataLink!$ET$25)=\"n\",NA(),IF(VALUE(CntyDataLink!$ET$25)=\"\",NA(),VALUE(CntyDataLink!$ET$25)))","v":222}]
["Service Providing",null,{"$f":"IF((CntyDataLink!$BJ$25)=\"n\",NA(),IF(VALUE(CntyDataLink!$BJ$25)=\"\",NA(),VALUE(CntyDataLink!$BJ$25)))","v":2048},{"$f":"IF((CntyDataLink!$BR$25)=\"n\",NA(),IF(VALUE(CntyDataLink!$BR$25)=\"\",NA(),VALUE(CntyDataLink!$BR$25)))","v":2011},{"$f":"IF((CntyDataLink!$BZ$25)=\"n\",NA(),IF(VALUE(CntyDataLink!$BZ$25)=\"\",NA(),VALUE(CntyDataLink!$BZ$25)))","v":1950},{"$f":"IF((CntyDataLink!$CH$25)=\"n\",NA(),IF(VALUE(CntyDataLink!$CH$25)=\"\",NA(),VALUE(CntyDataLink!$CH$25)))","v":1917},{"$f":"IF((CntyDataLink!$CP$25)=\"n\",NA(),IF(VALUE(CntyDataLink!$CP$25)=\"\",NA(),VALUE(CntyDataLink!$CP$25)))","v":1882},{"$f":"IF((CntyDataLink!$CX$25)=\"n\",NA(),IF(VALUE(CntyDataLink!$CX$25)=\"\",NA(),VALUE(CntyDataLink!$CX$25)))","v":1828},{"$f":"IF((CntyDataLink!$DF$25)=\"n\",NA(),IF(VALUE(CntyDataLink!$DF$25)=\"\",NA(),VALUE(CntyDataLink!$DF$25)))","v":1775},{"$f":"IF((CntyDataLink!$DN$25)=\"n\",NA(),IF(VALUE(CntyDataLink!$DN$25)=\"\",NA(),VALUE(CntyDataLink!$DN$25)))","v":1724},{"$f":"IF((CntyDataLink!$DV$25)=\"n\",NA(),IF(VALUE(CntyDataLink!$DV$25)=\"\",NA(),VALUE(CntyDataLink!$DV$25)))","v":1703},{"$f":"IF((CntyDataLink!$ED$25)=\"n\",NA(),IF(VALUE(CntyDataLink!$ED$25)=\"\",NA(),VALUE(CntyDataLink!$ED$25)))","v":1710},{"$f":"IF((CntyDataLink!$EL$25)=\"n\",NA(),IF(VALUE(CntyDataLink!$EL$25)=\"\",NA(),VALUE(CntyDataLink!$EL$25)))","v":{"$error":"#N/A"}},{"$f":"IF((CntyDataLink!$EU$25)=\"n\",NA(),IF(VALUE(CntyDataLink!$EU$25)=\"\",NA(),VALUE(CntyDataLink!$EU$25)))","v":1740}]
["Total Private Emp",null,{"$f":"IF((CntyDataLink!$BH$25)=\"n\",NA(),IF(VALUE(CntyDataLink!$BH$25)=\"\",NA(),VALUE(CntyDataLink!$BH$25)))","v":2606},{"$f":"IF((CntyDataLink!$BP$25)=\"n\",NA(),IF(VALUE(CntyDataLink!$BP$25)=\"\",NA(),VALUE(CntyDataLink!$BP$25)))","v":2567},{"$f":"IF((CntyDataLink!$BX$25)=\"n\",NA(),IF(VALUE(CntyDataLink!$BX$25)=\"\",NA(),VALUE(CntyDataLink!$BX$25)))","v":2466},{"$f":"IF((CntyDataLink!$CF$25)=\"n\",NA(),IF(VALUE(CntyDataLink!$CF$25)=\"\",NA(),VALUE(CntyDataLink!$CF$25)))","v":2442},{"$f":"IF((CntyDataLink!$CN$25)=\"n\",NA(),IF(VALUE(CntyDataLink!$CN$25)=\"\",NA(),VALUE(CntyDataLink!$CN$25)))","v":2455},{"$f":"IF((CntyDataLink!$CV$25)=\"n\",NA(),IF(VALUE(CntyDataLink!$CV$25)=\"\",NA(),VALUE(CntyDataLink!$CV$25)))","v":2480},{"$f":"IF((CntyDataLink!$DD$25)=\"n\",NA(),IF(VALUE(CntyDataLink!$DD$25)=\"\",NA(),VALUE(CntyDataLink!$DD$25)))","v":2112},{"$f":"IF((CntyDataLink!$DL$25)=\"n\",NA(),IF(VALUE(CntyDataLink!$DL$25)=\"\",NA(),VALUE(CntyDataLink!$DL$25)))","v":1997},{"$f":"IF((CntyDataLink!$DT$25)=\"n\",NA(),IF(VALUE(CntyDataLink!$DT$25)=\"\",NA(),VALUE(CntyDataLink!$DT$25)))","v":1934},{"$f":"IF((CntyDataLink!$EB$25)=\"n\",NA(),IF(VALUE(CntyDataLink!$EB$25)=\"\",NA(),VALUE(CntyDataLink!$EB$25)))","v":1923},{"$f":"IF((CntyDataLink!$EJ$25)=\"n\",NA(),IF(VALUE(CntyDataLink!$EJ$25)=\"\",NA(),VALUE(CntyDataLink!$EJ$25)))","v":1945},{"$f":"IF((CntyDataLink!$ER$25)=\"n\",NA(),IF(VALUE(CntyDataLink!$ER$25)=\"\",NA(),VALUE(CntyDataLink!$ER$25)))","v":1962}]
[]
["Percent Change",null,null,"08-09","09-10","10-11","11-12","12-13","13-14","14-15","15-16","16-17","17-18","18-19"]
["Goods Producing",null,null,{"$f":"(D71-C71)/C71","v":-5.3667262969588547E-3},-7.1942446043165464E-2,1.7441860465116279E-2,9.1428571428571428E-2,0.13787085514834205,-0.48466257668711654,-0.1875,-0.15384615384615385,-7.792207792207792E-2,1.4084507042253521E-2,{"$f":"(N71-M71)/M71","v":2.7777777777777776E-2}]
["Service Providing",null,null,-1.806640625E-2,-3.0333167578319244E-2,-1.6923076923076923E-2,-1.8257694314032343E-2,-2.8692879914984058E-2,-2.899343544857768E-2,-2.8732394366197182E-2,-1.2180974477958236E-2,4.1103934233705222E-3,{"$error":"#N/A"},{"$error":"#N/A"}]
["Total Private Emp",null,null,-1.4965464313123561E-2,{"$f":"(E73-D73)/D73","v":-3.9345539540319441E-2},-9.7323600973236012E-3,5.3235053235053233E-3,1.0183299389002037E-2,-0.14838709677419354,-5.4450757575757576E-2,-3.1547320981472206E-2,-5.6876938986556358E-3,1.1440457618304731E-2,{"$f":"(N73-M73)/M73","v":8.7403598971722372E-3}]
[]
["Source: New Hampshire Department of Employment Security"]
[]
[]
[]
[{"$f":"A2","v":"Berlin"}]
[]
[]
[]
[]
[]
[]
[]
[]
[]
[]
[]
[]
[]
[]
[]
[]
[]
[]
[]
[]
[]
[]
[]
[]
[]
[]
[]
[]
[]
[]
[]
[]
[]
[]
[]
[null,null,2008,{"$f":"C120+1","v":2009},2010,2011,2012,2013,2014,2015,2016,2017,2018,2019]
["Total Housing Units",null,{"$f":"B$57","v":5019},5004,{"$f":"$E$57","v":4910},{"$f":"F57","v":4876},4843,4772,4700,4676,4670,4656,4664,4667]
["Private & Government Emp.",null,{"$f":"VALUE(CntyDataLink!$BG$25)","v":3907},{"$f":"VALUE(CntyDataLink!$BO$25)","v":3669},{"$f":"VALUE(CntyDataLink!$BW$25)","v":3558},{"$f":"VALUE(CntyDataLink!$CE$25)","v":3510},{"$f":"VALUE(CntyDataLink!$CM$25)","v":3572},{"$f":"VALUE(CntyDataLink!$CU$25)","v":3752},{"$f":"VALUE(CntyDataLink!$DC$25)","v":3379},{"$f":"VALUE(CntyDataLink!$DK$25)","v":3262},{"$f":"VALUE(CntyDataLink!$DS$25)","v":3221},{"$f":"VALUE(CntyDataLink!$EA$25)","v":3173},{"$f":"VALUE(CntyDataLink!$EI$25)","v":3157},{"$f":"VALUE(CntyDataLink!$EQ$25)","v":3127}]
[]
["Source: New Hampshire Department of Employment Security and New Hampshire Office Strategic Initiatives"]

{"sheet":"HHIncome-10YearComparison","index":11,"n_rows":50,"n_cols":17,"rows_kept":50,"cut":false,"hidden":true,"merged":[[27,15,27,16],[27,11,27,13],[28,1,28,2],[3,1,3,3],[26,1,26,4],[27,4,27,7],[27,8,27,10]]}
[]
[null,{"$f":"CntyDataLink!A35","v":"Berlin"}]
[]
[null,"INCOME CHARACTERISTICS"]
[]
[]
[]
[]
[]
[]
[]
[]
[]
[]
[]
[]
[]
[]
[]
[]
[]
[]
[]
[]
[]
[]
[null,"Households By Household Income"]
[null,null,null,null,"2005-2009",null,null,null,"2010-2014",null,null,"2015-2019",null,null,null,"Statistically Significant Change"]
[null,"Household Income",null,null,"Estimate","Margin of Error",null,null,"Estimate"," Margin of Error",null,"Estimate"," Margin of Error",null,null,"2009-2019","2014-2019"]
[null,"Less than $10,000",null,null,{"$f":"CntyDataLinkPrior10YearEstimate!$B$120","v":445},{"$f":"CntyDataLinkPrior10YearEstimate!$C$120","v":143},{"$f":"E30/SUM($E$30:$E$39)","v":0.15192898600204849},null,{"$f":"CntyDataLinkPrior5YearEstimates!$B$120","v":331},{"$f":"CntyDataLinkPrior5YearEstimates!$C$120","v":102},{"$f":"I30/SUM($I$30:$I$39)","v":8.3228564244405334E-2},{"$f":"CntyDataLink!$B$120","v":331},{"$f":"CntyDataLink!$C$120","v":102},{"$f":"L30/SUM($L$30:$L$39)","v":8.3228564244405334E-2},null,{"$f":"StatisticallySignificantCalcs!$A$83","v":"N"},{"$f":"StatisticallySignificantCalcs!$J$83","v":"N"}]
[null,"$10,000 to $14,999",null,null,{"$f":"CntyDataLinkPrior10YearEstimate!$D$120","v":320},{"$f":"CntyDataLinkPrior10YearEstimate!$E$120","v":126},{"$f":"E31/SUM($E$30:$E$39)","v":0.10925230454079891},null,{"$f":"CntyDataLinkPrior5YearEstimates!$D$120","v":422},{"$f":"CntyDataLinkPrior5YearEstimates!$E$120","v":147},0.10611013326628112,{"$f":"CntyDataLink!$D$120","v":422},{"$f":"CntyDataLink!$E$120","v":147},0.10611013326628112,null,{"$f":"StatisticallySignificantCalcs!$A$84","v":"N"},{"$f":"StatisticallySignificantCalcs!$J$84","v":"N"}]
[null,"$15,000 to $24,999",null,null,{"$f":"CntyDataLinkPrior10YearEstimate!$F$120","v":324},{"$f":"CntyDataLinkPrior10YearEstimate!$G$120","v":122},0.1106179583475589,null,{"$f":"CntyDataLinkPrior5YearEstimates!$F$120","v":636},{"$f":"CntyDataLinkPrior5YearEstimates!$G$120","v":155.24174696260025},0.15991953733970329,{"$f":"CntyDataLink!$F$120","v":636},{"$f":"CntyDataLink!$G$120","v":155.24174696260025},0.15991953733970329,null,{"$f":"StatisticallySignificantCalcs!$A$85","v":"Y"},{"$f":"StatisticallySignificantCalcs!$J$85","v":"Y"}]
[null,"$25,000 to $34,999",null,null,{"$f":"CntyDataLinkPrior10YearEstimate!$H$120","v":404},{"$f":"CntyDataLinkPrior10YearEstimate!$I$120","v":136},0.13793103448275862,null,{"$f":"CntyDataLinkPrior5YearEstimates!$H$120","v":385},{"$f":"CntyDataLinkPrior5YearEstimates!$I$120","v":125.0959631642844},9.6806638169474477E-2,{"$f":"CntyDataLink!$H$120","v":385},{"$f":"CntyDataLink!$I$120","v":125.0959631642844},9.6806638169474477E-2,null,{"$f":"StatisticallySignificantCalcs!$A$86","v":"N"},{"$f":"StatisticallySignificantCalcs!$J$86","v":"N"}]
[null,"$35,000 to $49,999",null,null,{"$f":"CntyDataLinkPrior10YearEstimate!$J$120","v":188},{"$f":"CntyDataLinkPrior10YearEstimate!$K$120","v":66},6.4185728917719356E-2,null,{"$f":"CntyDataLinkPrior5YearEstimates!$J$120","v":719},{"$f":"CntyDataLinkPrior5YearEstimates!$K$120","v":173.18775938270002},0.18078953985416144,{"$f":"CntyDataLink!$J$120","v":719},{"$f":"CntyDataLink!$K$120","v":173.18775938270002},0.18078953985416144,null,{"$f":"StatisticallySignificantCalcs!$A$87","v":"Y"},{"$f":"StatisticallySignificantCalcs!$J$87","v":"Y"}]
[null,"$50,000 to $74,999",null,null,{"$f":"CntyDataLinkPrior10YearEstimate!$L$120","v":216},{"$f":"CntyDataLinkPrior10YearEstimate!$M$120","v":69},7.3745305565039262E-2,null,{"$f":"CntyDataLinkPrior5YearEstimates!$L$120","v":601},{"$f":"CntyDataLinkPrior5YearEstimates!$M$120","v":142.3411395205195},0.15111893386975106,{"$f":"CntyDataLink!$L$120","v":601},{"$f":"CntyDataLink!$M$120","v":142.3411395205195},0.15111893386975106,null,{"$f":"StatisticallySignificantCalcs!$A$88","v":"Y"},{"$f":"StatisticallySignificantCalcs!$J$88","v":"Y"}]
[null,"$75,000 to $99,999",null,null,{"$f":"CntyDataLinkPrior10YearEstimate!$N$120","v":206},{"$f":"CntyDataLinkPrior10YearEstimate!$O$120","v":94},7.0331171048139296E-2,null,{"$f":"CntyDataLinkPrior5YearEstimates!$N$120","v":356},{"$f":"CntyDataLinkPrior5YearEstimates!$O$120","v":106},8.9514709580085491E-2,{"$f":"CntyDataLink!$N$120","v":356},{"$f":"CntyDataLink!$O$120","v":106},8.9514709580085491E-2,null,{"$f":"StatisticallySignificantCalcs!$A$89","v":"Y"},{"$f":"StatisticallySignificantCalcs!$J$89","v":"Y"}]
[null,"$100,000 to $149,999",null,null,{"$f":"CntyDataLinkPrior10YearEstimate!$P$120","v":254},{"$f":"CntyDataLinkPrior10YearEstimate!$Q$120","v":95},8.6719016729259135E-2,null,{"$f":"CntyDataLinkPrior5YearEstimates!$P$120","v":384},{"$f":"CntyDataLinkPrior5YearEstimates!$Q$120","v":127.20062892926276},9.6555192356047273E-2,{"$f":"CntyDataLink!$P$120","v":384},{"$f":"CntyDataLink!$Q$120","v":127.20062892926276},9.6555192356047273E-2,null,{"$f":"StatisticallySignificantCalcs!$A$90","v":"N"},{"$f":"StatisticallySignificantCalcs!$J$90","v":"N"}]
[null,"$150,000 to $199,999",null,null,{"$f":"CntyDataLinkPrior10YearEstimate!$R$120","v":246},{"$f":"CntyDataLinkPrior10YearEstimate!$S$120","v":94},8.3987709115739162E-2,null,{"$f":"CntyDataLinkPrior5YearEstimates!$R$120","v":115},{"$f":"CntyDataLinkPrior5YearEstimates!$S$120","v":66},2.8916268544128741E-2,{"$f":"CntyDataLink!$R$120","v":115},{"$f":"CntyDataLink!$S$120","v":66},2.8916268544128741E-2,null,{"$f":"StatisticallySignificantCalcs!$A$91","v":"Y"},{"$f":"StatisticallySignificantCalcs!$J$91","v":"Y"}]
[null,"Greater than $200,000",null,null,{"$f":"CntyDataLinkPrior10YearEstimate!$T$120","v":326},{"$f":"CntyDataLinkPrior10YearEstimate!$U$120","v":94},0.11130078525093888,null,{"$f":"CntyDataLinkPrior5YearEstimates!$T$120","v":28},{"$f":"CntyDataLinkPrior5YearEstimates!$U$120","v":26},7.0404827759617799E-3,{"$f":"CntyDataLink!$T$120","v":28},{"$f":"CntyDataLink!$U$120","v":26},7.0404827759617799E-3,null,{"$f":"StatisticallySignificantCalcs!$A$92","v":"Y"},{"$f":"StatisticallySignificantCalcs!$J$92","v":"Y"}]
[null,null,null,null,491895,null,null,null,491895]
[null,null,"Median HH Income",null,{"$f":"CntyDataLinkPrior10YearEstimate!$BV$128","v":40199},{"$f":"CntyDataLinkPrior10YearEstimate!$BW$128","v":2764},null,null,{"$f":"CntyDataLinkPrior5YearEstimates!$BV$128","v":36358},{"$f":"CntyDataLinkPrior5YearEstimates!$BW$128","v":3279},null,{"$f":"CntyDataLink!$BV$128","v":39130},{"$f":"CntyDataLink!$BW$128","v":3380}]
[null,null,"HH Income in 2019 Dollars",null,{"$f":"($E$50)*E41","v":47434.82},null,null,null,{"$f":"($E$49)*I41","v":38903.060000000005}]
[]
[null,{"$f":"\"Source:  \"& \" \"&E28&\", \"&I28&\" and \"&L28& \"  American Community Survey; Tables B25119; B19001\"","v":"Source:   2005-2009, 2010-2014 and 2015-2019  American Community Survey; Tables B25119; B19001"}]
[]
[null,"Data from the American Community Survey are estimates."]
[]
[null,"CPI Adjustment Factor"]
[null,"2010-2014",null,null,1.07]
[null,"2005-2009",null,null,1.18]

{"sheet":"HHIncomeByAge","index":12,"n_rows":80,"n_cols":22,"rows_kept":80,"cut":false,"hidden":true,"merged":[[21,6,21,15]]}
[]
[null,null,{"$f":"CntyDataLink!A55","v":"Berlin"}]
[null,null,"INCOME CHARACTERISTICS"]
[]
[]
[]
[]
[]
[]
[]
[]
[]
[]
[]
[]
[]
[]
[]
[]
[]
[null,null,{"$f":"HHIncomeByAge!C2","v":"Berlin"},"Household Income in 2019"]
[null,null,null,null,null,null,"Households by Age of Householder "]
[null,null,null,"Households","Margin of Error Households",null,"Under 25","Margin of Error Under 25",null,"25 to 44","Margin of Error 25 to 44",null,"45 to 64","Margin of Error 45 to 64",null,"65 & Over","Margin of Error 65 & Over",null,"Family Households","Margin of Error Family HH","Non-Family HH","Margin of Error Non-Family HH"]
[null,null,"Less Than $10,000",{"$f":"CntyDataLink!$D$116","v":331},{"$f":"CntyDataLink!$E$116","v":102},null,{"$f":"CntyDataLink!$AN$116","v":46},{"$f":"CntyDataLink!$AO$116","v":55},null,{"$f":"CntyDataLink!$BV$116","v":45},{"$f":"CntyDataLink!$BW$116","v":44},null,{"$f":"CntyDataLink!$DD$116","v":115},{"$f":"CntyDataLink!$DE$116","v":43},null,{"$f":"CntyDataLink!$EL$116","v":125},{"$f":"CntyDataLink!$EM$116","v":63},null,{"$f":"CntyDataLink!$D$160","v":107},{"$f":"CntyDataLink!$E$160","v":63},{"$f":"CntyDataLink!$AN$160","v":266},{"$f":"CntyDataLink!$AO$160","v":91}]
[null,null,"$10,000 to $14,999",{"$f":"CntyDataLink!$F$116","v":422},{"$f":"CntyDataLink!$G$116","v":147},null,{"$f":"CntyDataLink!$AP$116","v":6},{"$f":"CntyDataLink!$AQ$116","v":11},null,{"$f":"CntyDataLink!$BX$116","v":83},{"$f":"CntyDataLink!$BY$116","v":62},null,{"$f":"CntyDataLink!$DF$116","v":84},{"$f":"CntyDataLink!$DG$116","v":57},null,{"$f":"CntyDataLink!$EN$116","v":249},{"$f":"CntyDataLink!$EO$116","v":106},null,{"$f":"CntyDataLink!$F$160","v":185},{"$f":"CntyDataLink!$G$160","v":89},{"$f":"CntyDataLink!$AP$160","v":274},{"$f":"CntyDataLink!$AQ$160","v":103}]
[null,null,"$15,000 to $19,999",{"$f":"CntyDataLink!$H$116","v":197},{"$f":"CntyDataLink!$I$116","v":96},null,{"$f":"CntyDataLink!$AR$116","v":0},{"$f":"CntyDataLink!$AS$116","v":18},null,{"$f":"CntyDataLink!$BZ$116","v":56},{"$f":"CntyDataLink!$CA$116","v":64},null,{"$f":"CntyDataLink!$DH$116","v":57},{"$f":"CntyDataLink!$DI$116","v":51},null,{"$f":"CntyDataLink!$EP$116","v":84},{"$f":"CntyDataLink!$EQ$116","v":38},null,{"$f":"CntyDataLink!$H$160","v":36},{"$f":"CntyDataLink!$I$160","v":23},{"$f":"CntyDataLink!$AR$160","v":129},{"$f":"CntyDataLink!$AS$160","v":75}]
[null,null,"$20,000 to $24,999",{"$f":"CntyDataLink!$J$116","v":439},{"$f":"CntyDataLink!$K$116","v":122},null,{"$f":"CntyDataLink!$AT$116","v":0},{"$f":"CntyDataLink!$AU$116","v":18},null,{"$f":"CntyDataLink!$CB$116","v":158},{"$f":"CntyDataLink!$CC$116","v":108},null,{"$f":"CntyDataLink!$DJ$116","v":79},{"$f":"CntyDataLink!$DK$116","v":51},null,{"$f":"CntyDataLink!$ER$116","v":202},{"$f":"CntyDataLink!$ES$116","v":70},null,{"$f":"CntyDataLink!$J$160","v":168},{"$f":"CntyDataLink!$K$160","v":102},{"$f":"CntyDataLink!$AT$160","v":263},{"$f":"CntyDataLink!$AU$160","v":104}]
[null,null,"$25,000 to $29,999",{"$f":"CntyDataLink!$L$116","v":144},{"$f":"CntyDataLink!$M$116","v":68},null,{"$f":"CntyDataLink!$AV$116","v":19},{"$f":"CntyDataLink!$AW$116","v":23},null,{"$f":"CntyDataLink!$CD$116","v":4},{"$f":"CntyDataLink!$CE$116","v":9},null,{"$f":"CntyDataLink!$DL$116","v":24},{"$f":"CntyDataLink!$DM$116","v":24},null,{"$f":"CntyDataLink!$ET$116","v":97},{"$f":"CntyDataLink!$EU$116","v":60},null,{"$f":"CntyDataLink!$L$160","v":87},{"$f":"CntyDataLink!$M$160","v":57},{"$f":"CntyDataLink!$AV$160","v":101},{"$f":"CntyDataLink!$AW$160","v":62}]
[null,null,"$30,000 to $34,999",{"$f":"CntyDataLink!$N$116","v":241},{"$f":"CntyDataLink!$O$116","v":105},null,{"$f":"CntyDataLink!$AX$116","v":45},{"$f":"CntyDataLink!$AY$116","v":70},null,{"$f":"CntyDataLink!$CF$116","v":36},{"$f":"CntyDataLink!$CG$116","v":37},null,{"$f":"CntyDataLink!$DN$116","v":81},{"$f":"CntyDataLink!$DO$116","v":50},null,{"$f":"CntyDataLink!$EV$116","v":79},{"$f":"CntyDataLink!$EW$116","v":52},null,{"$f":"CntyDataLink!$N$160","v":105},{"$f":"CntyDataLink!$O$160","v":50},{"$f":"CntyDataLink!$AX$160","v":165},{"$f":"CntyDataLink!$AY$160","v":89}]
[null,null,"$35,000 to $39,999",{"$f":"CntyDataLink!$P$116","v":258},{"$f":"CntyDataLink!$Q$116","v":100},null,{"$f":"CntyDataLink!$AZ$116","v":29},{"$f":"CntyDataLink!$BA$116","v":43},null,{"$f":"CntyDataLink!$CH$116","v":80},{"$f":"CntyDataLink!$CI$116","v":66},null,{"$f":"CntyDataLink!$DP$116","v":83},{"$f":"CntyDataLink!$DQ$116","v":47},null,{"$f":"CntyDataLink!$EX$116","v":66},{"$f":"CntyDataLink!$EY$116","v":42},null,{"$f":"CntyDataLink!$P$160","v":130},{"$f":"CntyDataLink!$Q$160","v":68},{"$f":"CntyDataLink!$AZ$160","v":165},{"$f":"CntyDataLink!$BA$160","v":94}]
[null,null,"$40,000 to $44,999",{"$f":"CntyDataLink!$R$116","v":227},{"$f":"CntyDataLink!$S$116","v":85},null,{"$f":"CntyDataLink!$BB$116","v":18},{"$f":"CntyDataLink!$BC$116","v":28},null,{"$f":"CntyDataLink!$CJ$116","v":61},{"$f":"CntyDataLink!$CK$116","v":56},null,{"$f":"CntyDataLink!$DR$116","v":90},{"$f":"CntyDataLink!$DS$116","v":52},null,{"$f":"CntyDataLink!$EZ$116","v":58},{"$f":"CntyDataLink!$FA$116","v":33},null,{"$f":"CntyDataLink!$R$160","v":107},{"$f":"CntyDataLink!$S$160","v":59},{"$f":"CntyDataLink!$BB$160","v":86},{"$f":"CntyDataLink!$BC$160","v":50}]
[null,null,"$45,000 to $49,999",{"$f":"CntyDataLink!$T$116","v":234},{"$f":"CntyDataLink!$U$116","v":113},null,{"$f":"CntyDataLink!$BD$116","v":0},{"$f":"CntyDataLink!$BE$116","v":18},null,{"$f":"CntyDataLink!$CL$116","v":137},{"$f":"CntyDataLink!$CM$116","v":100},null,{"$f":"CntyDataLink!$DT$116","v":83},{"$f":"CntyDataLink!$DU$116","v":46},null,{"$f":"CntyDataLink!$FB$116","v":14},{"$f":"CntyDataLink!$FC$116","v":17},null,{"$f":"CntyDataLink!$T$160","v":117},{"$f":"CntyDataLink!$U$160","v":54},{"$f":"CntyDataLink!$BD$160","v":67},{"$f":"CntyDataLink!$BE$160","v":80}]
[null,null,"$50,000 to $59,999",{"$f":"CntyDataLink!$V$116","v":222},{"$f":"CntyDataLink!$W$116","v":95},null,{"$f":"CntyDataLink!$BF$116","v":0},{"$f":"CntyDataLink!$BG$116","v":18},null,{"$f":"CntyDataLink!$CN$116","v":87},{"$f":"CntyDataLink!$CO$116","v":57},null,{"$f":"CntyDataLink!$DV$116","v":124},{"$f":"CntyDataLink!$DW$116","v":67},null,{"$f":"CntyDataLink!$FD$116","v":11},{"$f":"CntyDataLink!$FE$116","v":14},null,{"$f":"CntyDataLink!$V$160","v":138},{"$f":"CntyDataLink!$W$160","v":69},{"$f":"CntyDataLink!$BF$160","v":109},{"$f":"CntyDataLink!$BG$160","v":75}]
[null,null,"$60,000 to $74,999",{"$f":"CntyDataLink!$X$116","v":379},{"$f":"CntyDataLink!$Y$116","v":106},null,{"$f":"CntyDataLink!$BH$116","v":0},{"$f":"CntyDataLink!$BI$116","v":18},null,{"$f":"CntyDataLink!$CP$116","v":142},{"$f":"CntyDataLink!$CQ$116","v":69},null,{"$f":"CntyDataLink!$DX$116","v":131},{"$f":"CntyDataLink!$DY$116","v":61},null,{"$f":"CntyDataLink!$FF$116","v":106},{"$f":"CntyDataLink!$FG$116","v":51},null,{"$f":"CntyDataLink!$X$160","v":273},{"$f":"CntyDataLink!$Y$160","v":80},{"$f":"CntyDataLink!$BH$160","v":70},{"$f":"CntyDataLink!$BI$160","v":42}]
[null,null,"$75,000 to $99,999",{"$f":"CntyDataLink!$Z$116","v":356},{"$f":"CntyDataLink!$AA$116","v":106},null,{"$f":"CntyDataLink!$BJ$116","v":0},{"$f":"CntyDataLink!$BK$116","v":18},null,{"$f":"CntyDataLink!$CR$116","v":153},{"$f":"CntyDataLink!$CS$116","v":82},null,{"$f":"CntyDataLink!$DZ$116","v":159},{"$f":"CntyDataLink!$EA$116","v":59},null,{"$f":"CntyDataLink!$FH$116","v":44},{"$f":"CntyDataLink!$FI$116","v":32},null,{"$f":"CntyDataLink!$Z$160","v":292},{"$f":"CntyDataLink!$AA$160","v":92},{"$f":"CntyDataLink!$BJ$160","v":27},{"$f":"CntyDataLink!$BK$160","v":27}]
[null,null,"$100,000 to $124,999",{"$f":"CntyDataLink!$AB$116","v":211},{"$f":"CntyDataLink!$AC$116","v":102},null,{"$f":"CntyDataLink!$BL$116","v":0},{"$f":"CntyDataLink!$BM$116","v":18},null,{"$f":"CntyDataLink!$CT$116","v":86},{"$f":"CntyDataLink!$CU$116","v":81},null,{"$f":"CntyDataLink!$EB$116","v":83},{"$f":"CntyDataLink!$EC$116","v":59},null,{"$f":"CntyDataLink!$FJ$116","v":42},{"$f":"CntyDataLink!$FK$116","v":32},null,{"$f":"CntyDataLink!$AB$160","v":199},{"$f":"CntyDataLink!$AC$160","v":100},{"$f":"CntyDataLink!$BL$160","v":12},{"$f":"CntyDataLink!$BM$160","v":16}]
[null,null,"$125,000 to $149,999",{"$f":"CntyDataLink!$AD$116","v":173},{"$f":"CntyDataLink!$AE$116","v":76},null,{"$f":"CntyDataLink!$BN$116","v":0},{"$f":"CntyDataLink!$BO$116","v":18},null,{"$f":"CntyDataLink!$CV$116","v":21},{"$f":"CntyDataLink!$CW$116","v":30},null,{"$f":"CntyDataLink!$ED$116","v":125},{"$f":"CntyDataLink!$EE$116","v":72},null,{"$f":"CntyDataLink!$FL$116","v":27},{"$f":"CntyDataLink!$FM$116","v":23},null,{"$f":"CntyDataLink!$AD$160","v":155},{"$f":"CntyDataLink!$AE$160","v":73},{"$f":"CntyDataLink!$BN$160","v":7},{"$f":"CntyDataLink!$BO$160","v":12}]
[null,null,"$150,000 to $199,999",{"$f":"CntyDataLink!$AF$116","v":115},{"$f":"CntyDataLink!$AG$116","v":66},null,{"$f":"CntyDataLink!$BP$116","v":0},{"$f":"CntyDataLink!$BQ$116","v":18},null,{"$f":"CntyDataLink!$CX$116","v":38},{"$f":"CntyDataLink!$CY$116","v":40},null,{"$f":"CntyDataLink!$EF$116","v":77},{"$f":"CntyDataLink!$EG$116","v":56},null,{"$f":"CntyDataLink!$FN$116","v":0},{"$f":"CntyDataLink!$FO$116","v":18},null,{"$f":"CntyDataLink!$AF$160","v":119},{"$f":"CntyDataLink!$AG$160","v":67},{"$f":"CntyDataLink!$BP$160","v":0},{"$f":"CntyDataLink!$BQ$160","v":18}]
[null,null,"$200,000 or More",{"$f":"CntyDataLink!$AH$116","v":28},{"$f":"CntyDataLink!$AI$116","v":26},null,{"$f":"CntyDataLink!$BR$116","v":0},{"$f":"CntyDataLink!$BS$116","v":18},null,{"$f":"CntyDataLink!$CZ$116","v":0},{"$f":"CntyDataLink!$DA$116","v":18},null,{"$f":"CntyDataLink!$EH$116","v":18},{"$f":"CntyDataLink!$EI$116","v":21},null,{"$f":"CntyDataLink!$FP$116","v":10},{"$f":"CntyDataLink!$FQ$116","v":15},null,{"$f":"CntyDataLink!$AH$160","v":18},{"$f":"CntyDataLink!$AI$160","v":21},{"$f":"CntyDataLink!$BR$160","v":0},{"$f":"CntyDataLink!$BS$160","v":18}]
[]
[null,null,"Total Households",{"$f":"CntyDataLink!$B$116","v":3977},{"$f":"CntyDataLink!$C$116","v":201},null,{"$f":"CntyDataLink!$AL$116","v":163},{"$f":"CntyDataLink!$AM$116","v":105},null,{"$f":"CntyDataLink!$BT$116","v":1187},{"$f":"CntyDataLink!$BU$116","v":145},null,{"$f":"CntyDataLink!$DB$116","v":1413},{"$f":"CntyDataLink!$DC$116","v":121},null,{"$f":"CntyDataLink!$EJ$116","v":1214},{"$f":"CntyDataLink!$EK$116","v":160},null,{"$f":"CntyDataLink!$B$160","v":2236},{"$f":"CntyDataLink!$C$160","v":170},{"$f":"CntyDataLink!$AL$160","v":1741},{"$f":"CntyDataLink!$AM$160","v":261}]
[null,null,"Median Household Inc ",{"$f":"CntyDataLink!$FR$116","v":39130},{"$f":"CntyDataLink!$FS$116","v":3380},null,{"$f":"CntyDataLink!$FT$116","v":33083},{"$f":"CntyDataLink!$FU$116","v":13064},null,{"$f":"CntyDataLink!$FV$116","v":48250},{"$f":"CntyDataLink!$FW$116","v":4286},null,{"$f":"CntyDataLink!$FX$116","v":51641},{"$f":"CntyDataLink!$FY$116","v":8436},null,{"$f":"CntyDataLink!$FZ$116","v":24140},{"$f":"CntyDataLink!$GA$116","v":1835},null,{"$f":"CntyDataLink!$AJ$160","v":58218},{"$f":"CntyDataLink!$AK$160","v":8303},{"$f":"CntyDataLink!BT$160","v":23954},{"$f":"CntyDataLink!$BU$160","v":2967}]
[]
[null,null,"Source: 2015-2019 American Community Survey Tables B19001; B19037; B19101; B19102; B19112; Table B19113; B19049"]
[null,null,"Data from the American Community Survey are estimates"]
[]
[null,null,{"$f":"C2","v":"Berlin"}]
[null,null,"INCOME CHARACTERISTICS"]
[]
[]
[]
[]
[]
[]
[]
[]
[]
[]
[]
[]
[]
[]
[]
[]
[]
[]
[]
[]
[]
[]
[]
[]
[]
[]
[]
[]
[]
[]
[]
[null,null,"Source: 2015-2019 American Community Survey Tables B19001; B19102",null,null,null,null,null,null,null,null,null,null,null,null,"Data from the American Community Survey are estimates"]

{"sheet":"HHIncomeByTenure","index":13,"n_rows":64,"n_cols":17,"rows_kept":64,"cut":false,"hidden":true,"merged":[[2,3,2,5],[58,3,58,6],[58,8,58,11],[58,13,58,16],[59,3,59,6],[59,8,59,11],[59,13,59,16],[63,3,63,4],[63,8,63,9],[63,13,63,14],[61,3,61,4],[61,8,61,9],[61,13,61,14],[62,3,62,4],[62,8,62,9],[62,13,62,14]]}
[]
[null,null,null,{"$f":"CntyDataLink!A80","v":"Berlin"}]
[null,null,null,"INCOME CHARACTERISTICS"]
[]
[]
[]
[]
[]
[]
[]
[]
[]
[]
[]
[]
[]
[]
[]
[]
[]
[]
[]
[]
[]
[]
[]
[]
[null,null,null,{"$f":"D2","v":"Berlin"}]
[null,null,null,"Household Income By Tenure"]
[null,null,null,null,null,"2019 Household Income 1",null,"Occupied Housing Units","Margin of Error Occupied Housing Units","Owner Occupied Housing Units","Margin of Error Owner Occupied Housing Units","Renter Occupied Housing Units","Margin of Error Renter Occupied Housing Units"]
[]
[null,null,null,null,null,"Total",null,{"$f":"CntyDataLink!$B$128","v":3977},{"$f":"CntyDataLink!$C$128","v":201},{"$f":"CntyDataLink!$D$128","v":2228},{"$f":"CntyDataLink!$E$128","v":192},{"$f":"CntyDataLink!$AB$128","v":1749},{"$f":"CntyDataLink!$AC$128","v":196}]
[null,null,null,4999,{"$f":"VALUE(RIGHT(F33,7))","v":5000},"Less Than $5,000",null,{"$f":"CntyDataLink!$AZ$128","v":214},{"$f":"CntyDataLink!$BA$128","v":90.509667991878089},{"$f":"CntyDataLink!$F$128","v":42},{"$f":"CntyDataLink!$G$128","v":29},{"$f":"CntyDataLink!$AD$128","v":71},{"$f":"CntyDataLink!$AE$128","v":58}]
[null,null,{"$f":"VALUE(RIGHT($F33,7))","v":5000},4999,10000,"$5,000 to $10,000",null,{"$f":"CntyDataLink!$BB$128","v":231},{"$f":"CntyDataLink!$BC$128","v":116.92732785794773},{"$f":"CntyDataLink!$H$128","v":41},{"$f":"CntyDataLink!$I$128","v":33},{"$f":"CntyDataLink!$AF$128","v":177},{"$f":"CntyDataLink!$AG$128","v":69}]
[null,null,10000,4999,15000,"$10,000 to $15,000",null,{"$f":"CntyDataLink!$BD$128","v":320},{"$f":"CntyDataLink!$BE$128","v":118.33849753989612},{"$f":"CntyDataLink!$J$128","v":111},{"$f":"CntyDataLink!$K$128","v":64},{"$f":"CntyDataLink!$AH$128","v":311},{"$f":"CntyDataLink!$AI$128","v":131}]
[null,null,15000,4999,20000,"$15,000 to $20,000",null,{"$f":"CntyDataLink!$BF$128","v":324},{"$f":"CntyDataLink!$BG$128","v":104.06248123122954},{"$f":"CntyDataLink!$L$128","v":55},{"$f":"CntyDataLink!$M$128","v":35},{"$f":"CntyDataLink!$AJ$128","v":142},{"$f":"CntyDataLink!$AK$128","v":91}]
[null,null,20000,4999,25000,"$20,000 to $25,000",null,{"$f":"CntyDataLink!$BH$128","v":404},{"$f":"CntyDataLink!$BI$128","v":127.20062892926276},{"$f":"CntyDataLink!$N$128","v":182},{"$f":"CntyDataLink!$O$128","v":69},{"$f":"CntyDataLink!$AL$128","v":257},{"$f":"CntyDataLink!$AM$128","v":112}]
[null,null,25000,9999,35000,"$25,000 to $35,000",null,{"$f":"CntyDataLink!$BJ$128","v":404},{"$f":"CntyDataLink!$BK$128","v":99.904954832080278},{"$f":"CntyDataLink!$P$128","v":191},{"$f":"CntyDataLink!$Q$128","v":69},{"$f":"CntyDataLink!$AN$128","v":194},{"$f":"CntyDataLink!$AO$128","v":103}]
[null,null,35000,14999,50000,"$35,000 to $50,000",null,{"$f":"CntyDataLink!$BL$128","v":706},{"$f":"CntyDataLink!$BM$128","v":165.42369842317032},{"$f":"CntyDataLink!$R$128","v":342},{"$f":"CntyDataLink!$S$128","v":114},{"$f":"CntyDataLink!$AP$128","v":377},{"$f":"CntyDataLink!$AQ$128","v":129}]
[null,null,50000,24999,75000,"$50,000 to $75,000",null,{"$f":"CntyDataLink!$BN$128","v":922},{"$f":"CntyDataLink!$BO$128","v":175.410946066658},{"$f":"CntyDataLink!$T$128","v":459},{"$f":"CntyDataLink!$U$128","v":112},{"$f":"CntyDataLink!$AR$128","v":142},{"$f":"CntyDataLink!$AS$128","v":82}]
[null,null,75000,24999,100000,"$75,000 to $100,000",null,{"$f":"CntyDataLink!$BP$128","v":507},{"$f":"CntyDataLink!$BQ$128","v":121.56479753612885},{"$f":"CntyDataLink!$V$128","v":314},{"$f":"CntyDataLink!$W$128","v":95},{"$f":"CntyDataLink!$AT$128","v":42},{"$f":"CntyDataLink!$AU$128","v":46}]
[null,null,100000,49999,150000,"$100,000 to $150,000",null,{"$f":"CntyDataLink!$BR$128","v":163},{"$f":"CntyDataLink!$BS$128","v":66.309878600401618},{"$f":"CntyDataLink!$X$128","v":354},{"$f":"CntyDataLink!$Y$128","v":126},{"$f":"CntyDataLink!$AV$128","v":30},{"$f":"CntyDataLink!$AW$128","v":40}]
[null,null,150000,null,null,"$150,000 and More",null,{"$f":"CntyDataLink!$BT$128","v":32},{"$f":"CntyDataLink!$BU$128","v":117.63077828527702},{"$f":"CntyDataLink!$Z$128","v":137},{"$f":"CntyDataLink!$AA$128","v":69},{"$f":"CntyDataLink!$AX$128","v":6},{"$f":"CntyDataLink!$AY$128","v":14}]
[]
[]
[null,null,null,null,null,"Median Household Income 2",null,{"$f":"CntyDataLink!$BV$128","v":39130},{"$f":"CntyDataLink!$BW$128","v":3380},{"$f":"CntyDataLink!$BX$128","v":61413},{"$f":"CntyDataLink!$BY$128","v":9918},{"$f":"CntyDataLink!$BZ$128","v":22451},{"$f":"CntyDataLink!$CA$128","v":4337}]
[]
[]
[null,null,null,null,null,"Data from the American Community Survey are estimates"]
[]
[null,null,null,"Source:",1,"2015-2019 American Community Survey Table B25118;  2019 Inflation Adjusted dollars"]
[null,null,null,null,2,"2015-2019 American Community Survey Table B25119;  2019 Inflation Adjusted dollars"]
[]
[]
[]
[null,null,null,"HOUSEHOLD INCOME IN THE PAST 12 MONTHS BY PERCENT OF MEDIAN THRESHOLD"]
[]
[]
[null,null,null,"All Occupied Housing Units",null,null,null,null,"Owner Occupied Households",null,null,null,null,"Renter Occupied Households"]
[]
[null,null,null,"HOUSEHOLD INCOME",null,"Estimate","Margin Of Error",null,"HOUSEHOLD INCOME",null,"Estimate","Margin Of Error",null,"HOUSEHOLD INCOME",null,"Estimate","Margin Of Error"]
[null,null,{"$f":"$H$46*0.3","v":11739},"30% of Median Household Income",null,{"$f":"IF($C$62<$C$36,((($C$62-$C$35)/$D$35)*$H$35)+SUM($H$33:$H$34),IF($C$62<$C$37,((($C$62-$C$36)/$D$36)*$H$36)+SUM($H$33:$H$35),IF($C$62<$C$38,((($C$62-$C$37)/$D$37)*$H$37)+SUM($H$33:$H$36),IF($C$62<$C$39,((($C$62-$C$38)/$D$38)*$H$38)+SUM($H$33:$H$37),IF($C$62<$C$40,((($C$62-$C$39)/$D$39)*$H$39)+SUM($H$33:$H$38),IF($C$62<$C$41,((($C$62-$C$40)/$D$40)*$H$40)+SUM($H$33:$H$39),IF($C$62<$C$42,((($C$62-$C$41)/$D$41)*$H$41)+SUM($H$33:$H$40),\"False\")))))))","v":556.31826365273059},{"$f":"IF($C$62<$C$36,((($C$62-$C$35)/$D$35)*$I$35)+SQRT(SUM(($I$33^2),($I$34^2))),IF($C$62<$C$37,((($C$62-$C$36)/$D$36)*$I$36)+SQRT(SUM(($I$33^2),($I$34^2),($I$35^2))),IF($C$62<$C$38,((($C$62-$C$37)/$D$37)*$I$37)+SQRT(SUM(($I$33^2),($I$34^2),($I$35^2),($I$36^2))),IF($C$62<$C$39,((($C$62-$C$38)/$D$38)*$I$38)+SQRT(SUM(($I$33^2),($I$34^2),($I$35^2),($I$36^2),($I$37^2))),IF($C$62<$C$40,((($C$62-$C$39)/$D$39)*$I$39)+SQRT(SUM(($I$33^2),($I$34^2),($I$35^2),($I$36^2),($I$37^2),($I$38^2))),IF($C$62<$C$41,((($C$62-$C$40)/$D$40)*$I$40)+SQRT(SUM(($I$33^2),($I$34^2),($I$35^2),($I$36^2),($I$37^2),($I$38^2),($I$39^2))),IF($C$62<$C$42,((($C$62-$C$41)/$D$41)*$I$41)+SQRT((($I$33^2)+($I$34^2)+($I$35^2)+($I$36^2)+($I$37^2)+($I$38^2)+($I$39^2)+($I$40^2))),\"False\")))))))","v":189.03116583111543},{"$f":"$J$46*0.3","v":18423.899999999998},"30% of Median Household Income",null,{"$f":"IF($H$62<$C$36,((($H$62-$C$35)/$D$35)*$J$35)+SUM($J$33:$J$34),IF($H$62<$C$37,((($H$62-$C$36)/$D$36)*$J$36)+SUM($J$33:$J$35),IF($H$62<$C$38,((($H$62-$C$37)/$D$37)*$J$37)+SUM($J$33:$J$36),IF($H$62<$C$39,((($H$62-$C$38)/$D$38)*$J$38)+SUM($J$33:$J$37),IF($H$62<$C$40,((($H$62-$C$39)/$D$39)*$J$39)+SUM($J$33:$J$38),IF($H$62<$C$41,((($H$62-$C$40)/$D$40)*$J$40)+SUM($J$33:$J$39),IF($H$62<$C$42,((($H$62-$C$41)/$D$41)*$J$41)+SUM($J$33:$J$40),\"False\")))))))","v":231.67043408681735},{"$f":"IF($H$62<$C$36,((($H$62-$C$35)/$D$35)*$K$35)+SQRT(SUM(($K$33^2),($K$34^2))),IF($H$62<$C$37,((($H$62-$C$36)/$D$36)*$K$36)+SQRT(SUM(($K$33^2),($K$34^2),($K$35^2))),IF($H$62<$C$38,((($H$62-$C$37)/$D$37)*$K$37)+SQRT(SUM(($K$33^2),($K$34^2),($K$35^2),($K$36^2))),IF($H$62<$C$39,((($H$62-$C$38)/$D$38)*$K$38)+SQRT(SUM(($K$33^2),($K$34^2),($K$35^2),($K$36^2),($K$37^2))),IF($H$62<$C$40,((($H$62-$C$39)/$D$39)*$K$39)+SQRT(SUM(($K$33^2),($K$34^2),($K$35^2),($K$36^2),($K$37^2),($K$38^2))),IF($H$62<$C$41,((($H$62-$C$40)/$D$40)*$K$40)+SQRT(SUM(($K$33^2),($K$34^2),($K$35^2),($K$36^2),($K$37^2),($K$38^2),($K$39^2))),IF($H$62<$C$42,((($H$62-$C$41)/$D$41)*$K$41)+SQRT((($K$33^2)+($K$34^2)+($K$35^2)+($K$36^2)+($K$37^2)+($K$38^2)+($K$39^2)+($K$40^2))),\"False\")))))))","v":101.59940919918517},{"$f":"$L$46*0.3","v":6735.3},"30% of Median Household Income",null,{"$f":"IF($M$62<$C$36,((($M$62-$C$35)/$D$35)*$L$35)+SUM($L$33:$L$34),IF($M$62<$C$37,((($M$62-$C$36)/$D$36)*$L$36)+SUM($L$33:$L$35),IF($M$62<$C$38,((($M$62-$C$37)/$D$37)*$L$37)+SUM($L$33:$L$36),IF($M$62<$C$39,((($M$62-$C$38)/$D$38)*$L$38)+SUM($L$33:$L$37),IF($M$62<$C$40,((($M$62-$C$39)/$D$39)*$L$39)+SUM($L$33:$L$38),IF($M$62<$C$41,((($M$62-$C$40)/$D$40)*$L$40)+SUM($L$33:$L$39),IF($M$62<$C$42,((($M$62-$C$41)/$D$41)*$L$41)+SUM($L$33:$L$40),\"False\")))))))","v":44.895039007801586},{"$f":"IF($M$62<$C$36,((($M$62-$C$35)/$D$35)*$M$35)+SQRT(SUM(($M$33^2),($M$34^2))),IF($M$62<$C$37,((($M$62-$C$36)/$D$36)*$M$36)+SQRT(SUM(($M$33^2),($M$34^2),($M$35^2))),IF($M$62<$C$38,((($M$62-$C$37)/$D$37)*$M$37)+SQRT(SUM(($M$33^2),($M$34^2),($M$35^2),($M$36^2))),IF($M$62<$C$39,((($M$62-$C$38)/$D$38)*$M$38)+SQRT(SUM(($M$33^2),($M$34^2),($M$35^2),($M$36^2),($M$37^2))),IF($M$62<$C$40,((($M$62-$C$39)/$D$39)*$M$39)+SQRT(SUM(($M$33^2),($M$34^2),($M$35^2),($M$36^2),($M$37^2),($M$38^2))),IF($M$62<$C$41,((($M$62-$C$40)/$D$40)*$M$40)+SQRT(SUM(($M$33^2),($M$34^2),($M$35^2),($M$36^2),($M$37^2),($M$38^2),($M$39^2))),IF($M$62<$C$42,((($M$62-$C$41)/$D$41)*$M$41)+SQRT((($M$33^2)+($M$34^2)+($M$35^2)+($M$36^2)+($M$37^2)+($M$38^2)+($M$39^2)+($M$40^2))),\"False\")))))))","v":4.5865314365097163}]
[490,null,{"$f":"$H$46*0.5","v":19565},"50% of Median Household Income",null,{"$f":"IF($C$63<$C$36,((($C$63-$C$35)/$D$35)*$H$35)+SUM($H$33:$H$34),IF($C$63<$C$37,((($C$63-$C$36)/$D$36)*$H$36)+SUM($H$33:$H$35),IF($C$63<$C$38,((($C$63-$C$37)/$D$37)*$H$37)+SUM($H$33:$H$36),IF($C$63<$C$39,((($C$63-$C$38)/$D$38)*$H$38)+SUM($H$33:$H$37),IF($C$63<$C$40,((($C$63-$C$39)/$D$39)*$H$39)+SUM($H$33:$H$38),IF($C$63<$C$41,((($C$63-$C$40)/$D$40)*$H$40)+SUM($H$33:$H$39),IF($C$63<$C$42,((($C$63-$C$41)/$D$41)*$H$41)+SUM($H$33:$H$40),\"False\")))))))","v":1060.8711742348469},{"$f":"IF($C$63<$C$36,((($C$63-$C$35)/$D$35)*$I$35)+SQRT(SUM(($I$33^2),($I$34^2))),IF($C$63<$C$37,((($C$63-$C$36)/$D$36)*$I$36)+SQRT(SUM(($I$33^2),($I$34^2),($I$35^2))),IF($C$63<$C$38,((($C$63-$C$37)/$D$37)*$I$37)+SQRT(SUM(($I$33^2),($I$34^2),($I$35^2),($I$36^2))),IF($C$63<$C$39,((($C$63-$C$38)/$D$38)*$I$38)+SQRT(SUM(($I$33^2),($I$34^2),($I$35^2),($I$36^2),($I$37^2))),IF($C$63<$C$40,((($C$63-$C$39)/$D$39)*$I$39)+SQRT(SUM(($I$33^2),($I$34^2),($I$35^2),($I$36^2),($I$37^2),($I$38^2))),IF($C$63<$C$41,((($C$63-$C$40)/$D$40)*$I$40)+SQRT(SUM(($I$33^2),($I$34^2),($I$35^2),($I$36^2),($I$37^2),($I$38^2),($I$39^2))),IF($C$63<$C$42,((($C$63-$C$41)/$D$41)*$I$41)+SQRT((($I$33^2)+($I$34^2)+($I$35^2)+($I$36^2)+($I$37^2)+($I$38^2)+($I$39^2)+($I$40^2))),\"False\")))))))","v":284.41654059286896},{"$f":"$J$46*0.5","v":30706.5},"50% of Median Household Income",null,{"$f":"IF($H$63<$C$36,((($H$63-$C$35)/$D$35)*$J$35)+SUM($J$33:$J$34),IF($H$63<$C$37,((($H$63-$C$36)/$D$36)*$J$36)+SUM($J$33:$J$35),IF($H$63<$C$38,((($H$63-$C$37)/$D$37)*$J$37)+SUM($J$33:$J$36),IF($H$63<$C$39,((($H$63-$C$38)/$D$38)*$J$38)+SUM($J$33:$J$37),IF($H$63<$C$40,((($H$63-$C$39)/$D$39)*$J$39)+SUM($J$33:$J$38),IF($H$63<$C$41,((($H$63-$C$40)/$D$40)*$J$40)+SUM($J$33:$J$39),IF($H$63<$C$42,((($H$63-$C$41)/$D$41)*$J$41)+SUM($J$33:$J$40),\"False\")))))))","v":540.00505050505046},{"$f":"IF($H$63<$C$36,((($H$63-$C$35)/$D$35)*$K$35)+SQRT(SUM(($K$33^2),($K$34^2))),IF($H$63<$C$37,((($H$63-$C$36)/$D$36)*$K$36)+SQRT(SUM(($K$33^2),($K$34^2),($K$35^2))),IF($H$63<$C$38,((($H$63-$C$37)/$D$37)*$K$37)+SQRT(SUM(($K$33^2),($K$34^2),($K$35^2),($K$36^2))),IF($H$63<$C$39,((($H$63-$C$38)/$D$38)*$K$38)+SQRT(SUM(($K$33^2),($K$34^2),($K$35^2),($K$36^2),($K$37^2))),IF($H$63<$C$40,((($H$63-$C$39)/$D$39)*$K$39)+SQRT(SUM(($K$33^2),($K$34^2),($K$35^2),($K$36^2),($K$37^2),($K$38^2))),IF($H$63<$C$41,((($H$63-$C$40)/$D$40)*$K$40)+SQRT(SUM(($K$33^2),($K$34^2),($K$35^2),($K$36^2),($K$37^2),($K$38^2),($K$39^2))),IF($H$63<$C$42,((($H$63-$C$41)/$D$41)*$K$41)+SQRT((($K$33^2)+($K$34^2)+($K$35^2)+($K$36^2)+($K$37^2)+($K$38^2)+($K$39^2)+($K$40^2))),\"False\")))))))","v":148.97805794934993},{"$f":"$L$46*0.5","v":11225.5},"50% of Median Household Income",null,{"$f":"IF($M$63<$C$36,((($M$63-$C$35)/$D$35)*$L$35)+SUM($L$33:$L$34),IF($M$63<$C$37,((($M$63-$C$36)/$D$36)*$L$36)+SUM($L$33:$L$35),IF($M$63<$C$38,((($M$63-$C$37)/$D$37)*$L$37)+SUM($L$33:$L$36),IF($M$63<$C$39,((($M$63-$C$38)/$D$38)*$L$38)+SUM($L$33:$L$37),IF($M$63<$C$40,((($M$63-$C$39)/$D$39)*$L$39)+SUM($L$33:$L$38),IF($M$63<$C$41,((($M$63-$C$40)/$D$40)*$L$40)+SUM($L$33:$L$39),IF($M$63<$C$42,((($M$63-$C$41)/$D$41)*$L$41)+SUM($L$33:$L$40),\"False\")))))))","v":324.24134826965394},{"$f":"IF($M$63<$C$36,((($M$63-$C$35)/$D$35)*$M$35)+SQRT(SUM(($M$33^2),($M$34^2))),IF($M$63<$C$37,((($M$63-$C$36)/$D$36)*$M$36)+SQRT(SUM(($M$33^2),($M$34^2),($M$35^2))),IF($M$63<$C$38,((($M$63-$C$37)/$D$37)*$M$37)+SQRT(SUM(($M$33^2),($M$34^2),($M$35^2),($M$36^2))),IF($M$63<$C$39,((($M$63-$C$38)/$D$38)*$M$38)+SQRT(SUM(($M$33^2),($M$34^2),($M$35^2),($M$36^2),($M$37^2))),IF($M$63<$C$40,((($M$63-$C$39)/$D$39)*$M$39)+SQRT(SUM(($M$33^2),($M$34^2),($M$35^2),($M$36^2),($M$37^2),($M$38^2))),IF($M$63<$C$41,((($M$63-$C$40)/$D$40)*$M$40)+SQRT(SUM(($M$33^2),($M$34^2),($M$35^2),($M$36^2),($M$37^2),($M$38^2),($M$39^2))),IF($M$63<$C$42,((($M$63-$C$41)/$D$41)*$M$41)+SQRT((($M$33^2)+($M$34^2)+($M$35^2)+($M$36^2)+($M$37^2)+($M$38^2)+($M$39^2)+($M$40^2))),\"False\")))))))","v":122.25330479118065}]
[null,null,{"$f":"$H$46*0.8","v":31304},"80% of Median Household Income",null,{"$f":"IF($C$64<$C$36,((($C$64-$C$35)/$D$35)*$H$35)+SUM($H$33:$H$34),IF($C$64<$C$37,((($C$64-$C$36)/$D$36)*$H$36)+SUM($H$33:$H$35),IF($C$64<$C$38,((($C$64-$C$37)/$D$37)*$H$37)+SUM($H$33:$H$36),IF($C$64<$C$39,((($C$64-$C$38)/$D$38)*$H$38)+SUM($H$33:$H$37),IF($C$64<$C$40,((($C$64-$C$39)/$D$39)*$H$39)+SUM($H$33:$H$38),IF($C$64<$C$41,((($C$64-$C$40)/$D$40)*$H$40)+SUM($H$33:$H$39),IF($C$64<$C$42,((($C$64-$C$41)/$D$41)*$H$41)+SUM($H$33:$H$40),\"False\")))))))","v":1747.7070707070707},{"$f":"IF($C$64<$C$36,((($C$64-$C$35)/$D$35)*$I$35)+SQRT(SUM(($I$33^2),($I$34^2))),IF($C$64<$C$37,((($C$64-$C$36)/$D$36)*$I$36)+SQRT(SUM(($I$33^2),($I$34^2),($I$35^2))),IF($C$64<$C$38,((($C$64-$C$37)/$D$37)*$I$37)+SQRT(SUM(($I$33^2),($I$34^2),($I$35^2),($I$36^2))),IF($C$64<$C$39,((($C$64-$C$38)/$D$38)*$I$38)+SQRT(SUM(($I$33^2),($I$34^2),($I$35^2),($I$36^2),($I$37^2))),IF($C$64<$C$40,((($C$64-$C$39)/$D$39)*$I$39)+SQRT(SUM(($I$33^2),($I$34^2),($I$35^2),($I$36^2),($I$37^2),($I$38^2))),IF($C$64<$C$41,((($C$64-$C$40)/$D$40)*$I$40)+SQRT(SUM(($I$33^2),($I$34^2),($I$35^2),($I$36^2),($I$37^2),($I$38^2),($I$39^2))),IF($C$64<$C$42,((($C$64-$C$41)/$D$41)*$I$41)+SQRT((($I$33^2)+($I$34^2)+($I$35^2)+($I$36^2)+($I$37^2)+($I$38^2)+($I$39^2)+($I$40^2))),\"False\")))))))","v":313.7392485487743},{"$f":"$J$46*0.8","v":49130.400000000001},"80% of Median Household Income",null,{"$f":"IF($H$64<$C$36,((($H$64-$C$35)/$D$35)*$J$35)+SUM($J$33:$J$34),IF($H$64<$C$37,((($H$64-$C$36)/$D$36)*$J$36)+SUM($J$33:$J$35),IF($H$64<$C$38,((($H$64-$C$37)/$D$37)*$J$37)+SUM($J$33:$J$36),IF($H$64<$C$39,((($H$64-$C$38)/$D$38)*$J$38)+SUM($J$33:$J$37),IF($H$64<$C$40,((($H$64-$C$39)/$D$39)*$J$39)+SUM($J$33:$J$38),IF($H$64<$C$41,((($H$64-$C$40)/$D$40)*$J$40)+SUM($J$33:$J$39),IF($H$64<$C$42,((($H$64-$C$41)/$D$41)*$J$41)+SUM($J$33:$J$40),\"False\")))))))","v":944.1945996399761},{"$f":"IF($H$64<$C$36,((($H$64-$C$35)/$D$35)*$K$35)+SQRT(SUM(($K$33^2),($K$34^2))),IF($H$64<$C$37,((($H$64-$C$36)/$D$36)*$K$36)+SQRT(SUM(($K$33^2),($K$34^2),($K$35^2))),IF($H$64<$C$38,((($H$64-$C$37)/$D$37)*$K$37)+SQRT(SUM(($K$33^2),($K$34^2),($K$35^2),($K$36^2))),IF($H$64<$C$39,((($H$64-$C$38)/$D$38)*$K$38)+SQRT(SUM(($K$33^2),($K$34^2),($K$35^2),($K$36^2),($K$37^2))),IF($H$64<$C$40,((($H$64-$C$39)/$D$39)*$K$39)+SQRT(SUM(($K$33^2),($K$34^2),($K$35^2),($K$36^2),($K$37^2),($K$38^2))),IF($H$64<$C$41,((($H$64-$C$40)/$D$40)*$K$40)+SQRT(SUM(($K$33^2),($K$34^2),($K$35^2),($K$36^2),($K$37^2),($K$38^2),($K$39^2))),IF($H$64<$C$42,((($H$64-$C$41)/$D$41)*$K$41)+SQRT((($K$33^2)+($K$34^2)+($K$35^2)+($K$36^2)+($K$37^2)+($K$38^2)+($K$39^2)+($K$40^2))),\"False\")))))))","v":236.90881720536808},{"$f":"$L$46*0.8","v":17960.8},"80% of Median Household Income",null,{"$f":"IF($M$64<$C$36,((($M$64-$C$35)/$D$35)*$L$35)+SUM($L$33:$L$34),IF($M$64<$C$37,((($M$64-$C$36)/$D$36)*$L$36)+SUM($L$33:$L$35),IF($M$64<$C$38,((($M$64-$C$37)/$D$37)*$L$37)+SUM($L$33:$L$36),IF($M$64<$C$39,((($M$64-$C$38)/$D$38)*$L$38)+SUM($L$33:$L$37),IF($M$64<$C$40,((($M$64-$C$39)/$D$39)*$L$39)+SUM($L$33:$L$38),IF($M$64<$C$41,((($M$64-$C$40)/$D$40)*$L$40)+SUM($L$33:$L$39),IF($M$64<$C$42,((($M$64-$C$41)/$D$41)*$L$41)+SUM($L$33:$L$40),\"False\")))))))","v":643.10354070814162},{"$f":"IF($M$64<$C$36,((($M$64-$C$35)/$D$35)*$M$35)+SQRT(SUM(($M$33^2),($M$34^2))),IF($M$64<$C$37,((($M$64-$C$36)/$D$36)*$M$36)+SQRT(SUM(($M$33^2),($M$34^2),($M$35^2))),IF($M$64<$C$38,((($M$64-$C$37)/$D$37)*$M$37)+SQRT(SUM(($M$33^2),($M$34^2),($M$35^2),($M$36^2))),IF($M$64<$C$39,((($M$64-$C$38)/$D$38)*$M$38)+SQRT(SUM(($M$33^2),($M$34^2),($M$35^2),($M$36^2),($M$37^2))),IF($M$64<$C$40,((($M$64-$C$39)/$D$39)*$M$39)+SQRT(SUM(($M$33^2),($M$34^2),($M$35^2),($M$36^2),($M$37^2),($M$38^2))),IF($M$64<$C$41,((($M$64-$C$40)/$D$40)*$M$40)+SQRT(SUM(($M$33^2),($M$34^2),($M$35^2),($M$36^2),($M$37^2),($M$38^2),($M$39^2))),IF($M$64<$C$42,((($M$64-$C$41)/$D$41)*$M$41)+SQRT((($M$33^2)+($M$34^2)+($M$35^2)+($M$36^2)+($M$37^2)+($M$38^2)+($M$39^2)+($M$40^2))),\"False\")))))))","v":212.91306196098543}]

{"sheet":"Housing_EmploymentComparison","index":14,"n_rows":82,"n_cols":11,"rows_kept":82,"cut":false,"hidden":true,"merged":[[72,1,72,2],[73,1,73,2],[74,1,74,2],[67,1,67,2],[68,1,68,2],[69,1,69,2],[70,1,70,2],[71,1,71,2],[62,1,62,2],[63,1,63,2],[64,1,64,2],[65,1,65,2],[66,1,66,2],[57,1,57,2],[58,1,58,2],[59,1,59,2],[60,1,60,2],[61,1,61,2],[52,1,52,2],[53,1,53,2],[54,1,54,2],[55,1,55,2],[56,1,56,2],[47,1,47,2],[48,1,48,2],[49,1,49,2],[50,1,50,2],[51,1,51,2],[42,1,42,2],[43,1,43,2],[44,1,44,2],[45,1,45,2],[46,1,46,2],[37,1,37,2],[38,1,38,2],[39,1,39,2],[40,1,40,2],[41,1,41,2],[32,1,32,2],[33,1,33,2],[34,1,34,2],[35,1,35,2],[36,1,36,2],[79,4,79,15],[80,4,80,15],[81,4,81,15],[28,3,28,4],[28,5,28,10],[29,3,29,4],[29,5,29,6],[29,7,29,8],[29,9,29,10]]}
[]
[]
[]
[]
[]
[]
[]
[]
[]
[]
[]
[]
[]
[]
[]
[]
[]
[]
[]
[]
[]
[]
[]
[]
[]
[]
[]
[null,null,null,"In 2019"]
[null,null,null,"Housing",null,"Employment"]
[null,null,null,"Total Units",null,"Total Private",null,"Goods Producing",null,"Service Providing"]
[null,null,null,"#","%","#","%","#","%","#","%"]
[]
[null,"Atkinson and Gilmanton Grant",null,{"$f":"ACS_Table_B25001!$C$7","v":0},{"$f":"D33/D$77","v":0},{"$f":"CntyQuery!$ER$171","v":0},{"$f":"IF(F33=\"n\",\"n\",F33/$F$77)","v":0},{"$f":"CntyQuery!$ET$171","v":0},{"$f":"IF(H33=\"n\",\"n\",H33/$H$77)","v":0},{"$f":"CntyQuery!$EU$171","v":0},{"$f":"IF(J33=\"n\",\"n\",J33/$J$77)","v":0}]
[null,"Bean's Grant",null,{"$f":"ACS_Table_B25001!$E$7","v":0},0,{"$f":"CntyQuery!$ER$172","v":0},{"$f":"IF(F34=\"n\",\"n\",F34/$F$77)","v":0},{"$f":"CntyQuery!$ET$172","v":0},0,{"$f":"CntyQuery!$EU$172","v":0},{"$f":"IF(J34=\"n\",\"n\",J34/$J$77)","v":0}]
[null,"Bean's Purchase",null,{"$f":"ACS_Table_B25001!$G$7","v":0},0,{"$f":"CntyQuery!$ER$173","v":0},0,{"$f":"CntyQuery!$ET$173","v":0},0,{"$f":"CntyQuery!$EU$173","v":0},0]
[null,"Berlin",null,{"$f":"ACS_Table_B25001!$I$7","v":4784},0.22231516334402157,{"$f":"CntyQuery!$ER$174","v":1962},0.21265987426837199,{"$f":"CntyQuery!$ET$174","v":222},0.17024539877300612,{"$f":"CntyQuery!$EU$174","v":1740},0.21966923368261584]
[null,"Cambridge",null,{"$f":"ACS_Table_B25001!$K$7","v":29},1.3476462660904317E-3,{"$f":"CntyQuery!$ER$175","v":0},0,{"$f":"CntyQuery!$ET$175","v":0},0,{"$f":"CntyQuery!$EU$175","v":0},0]
[null,"Carroll",null,{"$f":"ACS_Table_B25001!$M$7","v":924},4.2938798271295132E-2,{"$f":"CntyQuery!$ER$176","v":"n"},"n",{"$f":"CntyQuery!$ET$176","v":0},0,{"$f":"CntyQuery!$EU$176","v":0},0]
[null,"Chandler's Purchase",null,{"$f":"ACS_Table_B25001!$O$7","v":0},0,{"$f":"CntyQuery!$ER$177","v":0},0,{"$f":"CntyQuery!$ET$177","v":0},0,{"$f":"CntyQuery!$EU$177","v":0},0]
[null,"Clarksville",null,{"$f":"ACS_Table_B25001!$Q$7","v":461},2.1422928574747896E-2,{"$f":"CntyQuery!$ER$178","v":29},3.1432907001951007E-3,{"$f":"CntyQuery!$ET$178","v":"n"},"n",{"$f":"CntyQuery!$EU$178","v":"n"},"n"]
[null,"Colebrook",null,{"$f":"ACS_Table_B25001!$S$7","v":1478},6.8683489009712342E-2,{"$f":"CntyQuery!$ER$179","v":1068},0.1157598092347713,{"$f":"CntyQuery!$ET$179","v":154},0.11809815950920245,{"$f":"CntyQuery!$EU$179","v":914},0.11538947102638555]
[null,"Columbia",null,{"$f":"ACS_Table_B25001!$U$7","v":518},2.4071750546029089E-2,{"$f":"CntyQuery!$ER$180","v":58},6.2865814003902013E-3,{"$f":"CntyQuery!$ET$180","v":"n"},"n",{"$f":"CntyQuery!$EU$180","v":"n"},"n"]
[null,"Crawford's Purchase",null,{"$f":"ACS_Table_B25001!$W$7","v":0},0,{"$f":"CntyQuery!$ER$181","v":0},0,{"$f":"CntyQuery!$ET$181","v":0},0,{"$f":"CntyQuery!$EU$181","v":0},0]
[null,"Cutt's Grant",null,{"$f":"ACS_Table_B25001!$Y$7","v":0},0,{"$f":"CntyQuery!$ER$182","v":0},0,{"$f":"CntyQuery!$ET$182","v":0},0,{"$f":"CntyQuery!$EU$182","v":0},0]
[null,"Dalton",null,{"$f":"ACS_Table_B25001!$AA$7","v":597},2.7742924857103026E-2,{"$f":"CntyQuery!$ER$183","v":37},4.0104053761109903E-3,{"$f":"CntyQuery!$ET$183","v":"n"},"n",{"$f":"CntyQuery!$EU$183","v":"n"},"n"]
[null,"Dix's Grant",null,{"$f":"ACS_Table_B25001!$AC$7","v":13},6.0411729169571082E-4,{"$f":"CntyQuery!$ER$184","v":0},0,{"$f":"CntyQuery!$ET$184","v":0},0,{"$f":"CntyQuery!$EU$184","v":0},0]
[null,"Dixville",null,{"$f":"ACS_Table_B25001!$AE$7","v":29},1.3476462660904317E-3,{"$f":"CntyQuery!$ER$185","v":"n"},"n",{"$f":"CntyQuery!$ET$185","v":0},0,{"$f":"CntyQuery!$EU$185","v":"n"},"n"]
[null,"Dummer",null,{"$f":"ACS_Table_B25001!$AG$7","v":267},1.2407639760211905E-2,{"$f":"CntyQuery!$ER$186","v":11},1.1922826793843485E-3,{"$f":"CntyQuery!$ET$186","v":"n"},"n",{"$f":"CntyQuery!$EU$186","v":"n"},"n"]
[null,"Errol",null,{"$f":"ACS_Table_B25001!$AI$7","v":473},2.198057530554394E-2,{"$f":"CntyQuery!$ER$187","v":102},1.1055712117927595E-2,{"$f":"CntyQuery!$ET$187","v":"n"},"n",{"$f":"CntyQuery!$EU$187","v":"n"},"n"]
[null,"Erving's Location",null,{"$f":"ACS_Table_B25001!$AK$7","v":0},0,{"$f":"CntyQuery!$ER$188","v":0},0,{"$f":"CntyQuery!$ET$188","v":0},0,{"$f":"CntyQuery!$EU$188","v":0},0]
[null,"Gorham",null,{"$f":"ACS_Table_B25001!$AM$7","v":1515},7.040289976300014E-2,{"$f":"CntyQuery!$ER$189","v":"n"},"n",{"$f":"CntyQuery!$ET$189","v":0},0,{"$f":"CntyQuery!$EU$189","v":"n"},"n"]
[null,"Greens Grant",null,{"$f":"ACS_Table_B25001!$AO$7","v":0},0,{"$f":"CntyQuery!$ER$190","v":1572},0.17038803381747236,{"$f":"CntyQuery!$ET$190","v":214},0.16411042944785276,{"$f":"CntyQuery!$EU$190","v":1359},0.17156924630728443]
[null,"Hadley's Purchase",null,{"$f":"ACS_Table_B25001!$AQ$7","v":0},0,{"$f":"CntyQuery!$ER$191","v":0},0,{"$f":"CntyQuery!$ET$191","v":0},0,{"$f":"CntyQuery!$EU$191","v":0},0]
[null,"Jefferson",null,{"$f":"ACS_Table_B25001!$AS$7","v":644},2.9927041219387517E-2,{"$f":"CntyQuery!$ER$192","v":400},4.3355733795794493E-2,{"$f":"CntyQuery!$ET$192","v":40},3.0674846625766871E-2,{"$f":"CntyQuery!$EU$192","v":360},4.544880696881707E-2]
[null,"Kilkenny",null,{"$f":"ACS_Table_B25001!$AU$7","v":0},0,{"$f":"CntyQuery!$ER$193","v":0},0,{"$f":"CntyQuery!$ET$193","v":0},0,{"$f":"CntyQuery!$EU$193","v":0},0]
[null,"Lancaster",null,{"$f":"ACS_Table_B25001!$AW$7","v":1610},7.4817603048468795E-2,{"$f":"CntyQuery!$ER$194","v":288},3.1216128332972035E-2,{"$f":"CntyQuery!$ET$194","v":49},3.7576687116564415E-2,{"$f":"CntyQuery!$EU$194","v":"n"},"n"]
[null,"Low and Burbank's Grant",null,{"$f":"ACS_Table_B25001!$AY$7","v":0},0,{"$f":"CntyQuery!$ER$195","v":0},0,{"$f":"CntyQuery!$ET$195","v":0},0,{"$f":"CntyQuery!$EU$195","v":0},0]
[null,"Martin's Location",null,{"$f":"ACS_Table_B25001!$BA$7","v":0},0,{"$f":"CntyQuery!$ER$196","v":0},0,{"$f":"CntyQuery!$ET$196","v":0},0,{"$f":"CntyQuery!$EU$196","v":0},0]
[null,"Milan",null,{"$f":"ACS_Table_B25001!$BC$7","v":886},4.1172916957107675E-2,{"$f":"CntyQuery!$ER$197","v":157},1.7017125514849338E-2,{"$f":"CntyQuery!$ET$197","v":89},6.8251533742331283E-2,{"$f":"CntyQuery!$EU$197","v":68},8.5847746496654463E-3]
[null,"Millsfield",null,{"$f":"ACS_Table_B25001!$BE$7","v":69},3.2064687020772341E-3,{"$f":"CntyQuery!$ER$198","v":"n"},"n",{"$f":"CntyQuery!$ET$198","v":0},0,{"$f":"CntyQuery!$EU$198","v":"n"},"n"]
[null,"Northumberland",null,{"$f":"ACS_Table_B25001!$BG$7","v":1170},5.4370556252613972E-2,{"$f":"CntyQuery!$ER$199","v":293},3.1758075005419467E-2,{"$f":"CntyQuery!$ET$199","v":"n"},"n",{"$f":"CntyQuery!$EU$199","v":"n"},"n"]
[null,"Odell Township",null,{"$f":"ACS_Table_B25001!$BI$7","v":0},0,{"$f":"CntyQuery!$ER$200","v":0},0,{"$f":"CntyQuery!$ET$200","v":0},0,{"$f":"CntyQuery!$EU$200","v":0},0]
[null,"Pinkham's Grant",null,{"$f":"ACS_Table_B25001!$BK$7","v":0},0,{"$f":"CntyQuery!$ER$201","v":"n"},"n",{"$f":"CntyQuery!$ET$201","v":0},0,{"$f":"CntyQuery!$EU$201","v":"n"},"n"]
[null,"Pittsburg",null,{"$f":"ACS_Table_B25001!$BM$7","v":1816},8.4390538593800829E-2,{"$f":"CntyQuery!$ER$202","v":16},1.7342293518317797E-3,{"$f":"CntyQuery!$ET$202","v":"n"},"n",{"$f":"CntyQuery!$EU$202","v":0},0]
[null,"Randolph",null,{"$f":"ACS_Table_B25001!$BO$7","v":354},1.6450578558483201E-2,{"$f":"CntyQuery!$ER$203","v":"n"},"n",{"$f":"CntyQuery!$ET$203","v":0},0,{"$f":"CntyQuery!$EU$203","v":"n"},"n"]
[null,"Sargent's Purchase",null,{"$f":"ACS_Table_B25001!$BQ$7","v":0},0,{"$f":"CntyQuery!$ER$204","v":"n"},"n",{"$f":"CntyQuery!$ET$204","v":0},0,{"$f":"CntyQuery!$EU$204","v":"n"},"n"]
[null,"Second College Grant",null,{"$f":"ACS_Table_B25001!$BS$7","v":28},1.3011757051907616E-3,{"$f":"CntyQuery!$ER$205","v":0},0,{"$f":"CntyQuery!$ET$205","v":0},0,{"$f":"CntyQuery!$EU$205","v":0},0]
[null,"Shelburne",null,{"$f":"ACS_Table_B25001!$BU$7","v":244},1.1338816859519494E-2,{"$f":"CntyQuery!$ER$206","v":107},1.1597658790375028E-2,{"$f":"CntyQuery!$ET$206","v":"n"},"n",{"$f":"CntyQuery!$EU$206","v":"n"},"n"]
[null,"Stark",null,{"$f":"ACS_Table_B25001!$BW$7","v":492},2.2863515962637668E-2,{"$f":"CntyQuery!$ER$207","v":"n"},"n",{"$f":"CntyQuery!$ET$207","v":0},0,{"$f":"CntyQuery!$EU$207","v":"n"},"n"]
[null,"Stewartstown",null,{"$f":"ACS_Table_B25001!$BY$7","v":943},4.3821738928388865E-2,{"$f":"CntyQuery!$ER$208","v":72},7.8040320832430086E-3,{"$f":"CntyQuery!$ET$208","v":16},1.2269938650306749E-2,{"$f":"CntyQuery!$EU$208","v":55},6.9435677313470518E-3]
[null,"Stratford",null,{"$f":"ACS_Table_B25001!$CA$7","v":557},2.5884102421116224E-2,{"$f":"CntyQuery!$ER$209","v":36},3.9020160416215043E-3,{"$f":"CntyQuery!$ET$209","v":8},6.1349693251533744E-3,{"$f":"CntyQuery!$EU$209","v":0},0]
[null,"Success",null,{"$f":"ACS_Table_B25001!$CC$7","v":59},2.7417630930805337E-3,{"$f":"CntyQuery!$ER$210","v":0},0,{"$f":"CntyQuery!$ET$210","v":0},{"$f":"IF(H72=\"n\",\"n\",H72/$H$77)","v":0},{"$f":"CntyQuery!$EU$210","v":0},0]
[null,"Thompson and Meserves Purchase",null,{"$f":"ACS_Table_B25001!$CE$7","v":0},0,{"$f":"CntyQuery!$ER$211","v":0},0,{"$f":"CntyQuery!$ET$211","v":0},{"$f":"IF(H73=\"n\",\"n\",H73/$H$77)","v":0},{"$f":"CntyQuery!$EU$211","v":0},0]
[null,"Wentworth's Location",null,{"$f":"ACS_Table_B25001!$CG$7","v":112},5.2047028207630464E-3,{"$f":"CntyQuery!$ER$212","v":0},0,{"$f":"CntyQuery!$ET$212","v":0},0,{"$f":"CntyQuery!$EU$212","v":0},0]
[null,"Whitefield",null,{"$f":"ACS_Table_B25001!$CI$7","v":1447},6.7242901621822573E-2,{"$f":"CntyQuery!$ER$213","v":720},7.8040320832430093E-2,{"$f":"CntyQuery!$ET$213","v":47},3.6042944785276074E-2,{"$f":"CntyQuery!$EU$213","v":673},8.4964019694483014E-2]
[]
[null,"Coos County",null,{"$f":"SUM(D33:D76)","v":21519},null,{"$f":"CntyQuery!$ER$223","v":9226},null,{"$f":"CntyQuery!$ET$223","v":1304},null,{"$f":"CntyQuery!$EU$223","v":7921}]
[]
[null,null,null,"Source: ","2015-2019 American Community Survey Table B25001"]
[null,null,null,null,"Employment data provided by NH Department of Employment Security 2019 Covered Private Employment."]
[null,null,null,null,"Margin of error is not displayed.  The American Community Survey data are estimates only. Total Employment "]
[null,null,null,null,"at the county level is the number provided by NH Department of Employment Security."]

{"sheet":"Updates","index":15,"n_rows":47,"n_cols":3,"rows_kept":47,"cut":false,"hidden":false,"merged":[[45,2,45,11],[46,2,46,11],[40,2,40,11],[41,2,41,11],[42,2,42,11],[43,2,43,11],[44,2,44,11],[35,2,35,11],[36,2,36,11],[37,2,37,11],[38,2,38,11],[39,2,39,11],[30,2,30,11],[31,2,31,11],[32,2,32,11],[33,2,33,11],[34,2,34,11],[11,2,11,11],[21,2,21,11],[22,2,22,11],[24,2,24,11],[29,2,29,11],[0,2,0,12],[28,2,28,11],[27,2,27,11],[26,2,26,11],[25,2,25,11],[23,2,23,11],[20,2,20,11],[19,2,19,11],[12,2,12,11],[18,2,18,11],[13,2,13,11],[14,2,14,11],[15,2,15,11],[16,2,16,11],[17,2,17,11],[10,2,10,11],[9,2,9,11],[1,2,1,11],[4,2,4,11],[6,2,6,11],[7,2,7,11],[8,2,8,11],[5,2,5,11],[3,2,3,11],[2,2,2,11]]}
["Important Notes"]
["Date",null,"Task"]
["2020-12-18",null,"Updated 2015-2019 Amreican Community Survey Data and added 2019 NH Permit data."]
["2020-10-01",null,"Updated 2019 Employment and Wage data by industry sector"]
["2020-09-09",null,"Updated historical data 2005-2009 and 2010-2014 ACS Data"]
["2019-12-31",null,"Updated Visual Basic Code changing the footer font from Gotham Medium to Verdana."]
["2019-12-26",null,"Updated with 2014-2018 ACS Data. Updated 2018 Permit data. Updated CPI Adjustment Factor (1.02437673) to the 2009-2013 and 2015-2019 Income Comparison Table. This factor was provided by Census"]
["2019-11-26",null,"Updated 2009-2013 ACS data for comparison"]
["2019-09-17",null,"Updated 2018 Annual Employment and Wage data; updated Housing and Employment worksheet."]
["2018-12-20",null,"Updated 2017 Annual Employment and Wage data; updated Housing and Employment worksheet. Updated 2017 Permit data"]
["2018-12-12",null,"Updated the 2008-2012 ACS data for comparison purposes. Updated CPI Adjustment Factor (1.0676) to the 2008-2012 and 2013-2017  Income Comparison Table. This factor was provided by Census."]
["2018-12-06",null,"Updated 2013-2017 ACS Data"]
["2018-12-05",null,"Updated labels in workbook to reflect 2013-2017 data set and 2008-2012 comparison data set. Updated footer text. "]
["2018-08-14",null,"Updated Chart layouts"]
["2018-05-09",null,"Reviewed that unemployment rate data does not need to updated. There are no cities or towns that needed this update. Only a select number of locations are updated with this data."]
["2017-12-18",null,"Updated 2016 NH Permit Data"]
["2017-12-11",null,"Updated Charts with 2012-2016 data; updated code to reflect additional data points in various tables. Updated CPI Adjustment Factor (1.06686838) to the 2007-2011 and 2012-2016 Income Comparison Table. This factor was provided by Census."]
["2017-11-17",null,"Updated 2007-2011 ACS data for comparison"]
["2017-10-12",null,"Updated 2016 Annual Employment and Wage data; updated Housing and Employment worksheet"]
["2017-05-15",null,"Reviewed that unemployment rate data does not need to updated. There are no cities or towns that needed this update. Only a select number of locations are updated with this data."]
["2017-01-04",null,"Verified Charts; Added 2015 Permit Data; Updated Housing and Permit data"]
["2016-12-28",null,"Updated the 2006-2010 ACS data for comparison purposes."]
["2016-12-23",null,"Updated Town Comparisons: Employment and Housing with 2015 data"]
["2016-12-21",null,"Updated Charts with 2011-2015 data; updated code to reflect additional data points in various tables. Updated CPI Adjustment Factor (1.08710584) to the 2006-2010 and 2011-2015 Income Comparison Table. This factor was provided by Census."]
["2016-12-15",null,"Updated 2011-2015 ACS data"]
["2016-10-31",null,"Updated 2015 Annual Employment and Wage data"]
["2016-01-14",null,"Fixed error in School Attainment worksheet - Graduate or Professional Degree data."]
["2016-01-07",null,"Fixed formula in Poverty worksheet; fixed Non-Family Persons per Household data; fixed legend of Rental Cost Charts."]
["2015-12-23",null,"Fixed Table ACS_B25074"]
["2015-12-17",null,"Updated Code to correct an error on the OwnerHousingCost worksheet; updated column names on CntyDataLink."]
["2020-12-15",null,"Updated Code to correct an error on the RentalHousingCost worksheet; updated column names on CntyDataLink."]
["2015-12-09",null,"Updated 2010-2014 ACS data"]
["2015-12-07",null,"Updated Permit Data and all appropriate charts."]
["2015-12-03",null,"Updated the CPI Adjustment Factor (1.1034264) to the 2005-2009 and 2011-2015 Income Comparison Table. This factor was provided by Census. Updated RentalHousingCost and OwnerCost worksheet to eliminate a printed page. Charts were moved and reduced in size."]
["2015-11-24",null,"Updated Color scheme on charts and added correct logo to the charts"]
["2015-10-05",null,"Added Town Employment and Housing Comparison data. Added Visual basic code to automatically update footer. Visual basic code will run when Ctrl-j is selected. "]
["2015-09-29",null,"Updated Employment and Employment vs. Housing data.\n"]
["2015-09-01",null,"Updated Code on worksheets to include Prior 5 Year Estimate data"]
["2015-08-20",null,"Updated 2005-2009 ACS Estimate data."]
["2015-08-12",null,"Updated Owner Cost Chart and data. Added Table B25106. Housing Cost burden by Income. "]
["2015-08-06",null,"Corrected the Employment vs. Housing worksheet."]
["2015-03-17",null,"Added Labor Force Data"]
["2014-12-30",null,"Corrected Rental Cost formula."]
["2014-12-17",null,"Corrected and verified household pie charts. All Permit data and employment data has been updated through 2013."]
["2011-10-14",null,"Reformatted the code in the worksheet and corrected an error in the Income Comparison Sheet"]
["2010-12-21",null,"Added Margin of Error information on all applicable ACS Sheets"]
["2010-12-07",null,"Created a calculated Table B19001 in anticipation for the 5 year data.  Table C19001 will not be provided"]

{"sheet":"CntyDataLinkPrior5YearEstimates","index":16,"n_rows":160,"n_cols":183,"rows_kept":160,"cut":false,"hidden":true,"merged":[]}
[1,{"$f":"A1+1","v":2},3,4,5,6,7,8,9,10,11,12,13,14,15,16,17,18,19,20,21,22,23,24,25,26,27,28,29,30,31,32,33,34,35,36,37,38,39,40,41,42,43,44,45,46,47,48,49,50,51,52,53,54,55,56,57,58,59,60,61,62,63,64,65,{"$f":"BM1+1","v":66},67,68,69,70,71,72,73,74,75,76,77,78,79,80,81,82,83,84,85,86,87,88,89,90,91,92,93,94,95,96,97,98,99,100,101,102,103,104,105,106,107,108,109,110,111,112,113,114,115,116,117,118,119,120,121,122,123,124,125,126,127,128,129,{"$f":"DY1+1","v":130},131,132,133,134,135,136,137,138,139,140,141,142,143,144,145,146,147,148,149,150,151,152,153,154,155,156,157,158,159,160,161,162,163,164,165,166,167,168,169,170,171,172,173,174,175,176,177,178,179,180,181,182,183]
[]
[]
[]
[]
[]
[]
[]
[]
[]
[]
[]
[]
[]
[]
[]
[]
[]
[]
[]
[]
[]
[]
[]
[]
[]
[]
[]
[]
[]
[]
[]
[]
[]
[]
[]
[]
[]
[]
[]
[]
[]
[]
[]
[]
[]
[]
[]
[]
[]
[]
[]
[]
[]
[]
[]
[]
[]
[]
[]
[]
[]
[]
[]
[]
[]
[]
[]
[]
[]
[]
[]
[]
[]
[]
[]
[]
[]
[]
[]
[]
[]
[]
[]
[]
[]
[]
[]
[]
[]
[]
[]
[]
[]
[]
[]
[]
[]
[]
[]
[]
[]
[]
[]
["ACS",2,{"$f":"B105+1","v":3},{"$f":"C105+1","v":4},5,6,7,8,9,10,11,{"$f":"K105+1","v":12},13,14,15,{"$f":"O105+1","v":16},17,18,19,20,21,22,23,24,25,26,27,28,29,30,31,32,33,34,35,36,37,38,39,40,41,42,43,44,45,46,47,48,49,50,51,52,53,54,55,56,57,58,59,60,61,62,63,64,65,66,67,{"$f":"BO105+1","v":68},69,70,71,72,73,74,75,76,77,78,79,80,81,82,83,84,85,86,87,88,89,90,91,92,93,94,95,96,97,98,99,100,101,102,103,104,105,106,107,108,109,110,111,112,113,114,115,116,117,118,119,120,121,122,123,124,125]
["Househould Data (Housing Unit Type)"]
["NAME","TotalHU",{"$f":"\"MOE \"&B107","v":"MOE TotalHU"},"TotalOccHU",{"$f":"\"MOE \"&D107","v":"MOE TotalOccHU"},"TotalOwnerOccUn",{"$f":"\"MOE \"&F107","v":"MOE TotalOwnerOccUn"},"TotalRenterOccn",{"$f":"\"MOE \"&H107","v":"MOE TotalRenterOccn"},"TotalVacantUntis",{"$f":"\"MOE \"&J107","v":"MOE TotalVacantUntis"},"VacantUnitsForRent",{"$f":"\"MOE \"&L107","v":"MOE VacantUnitsForRent"},"VacantUnitRentedNotOcc",{"$f":"\"MOE \"&N107","v":"MOE VacantUnitRentedNotOcc"},"VacantUnitForSale",{"$f":"\"MOE \"&P107","v":"MOE VacantUnitForSale"},"VacantUnitSoldNotOcc",{"$f":"\"MOE \"&R107","v":"MOE VacantUnitSoldNotOcc"},"VacantUnitSeasonalRec",{"$f":"\"MOE \"&T107","v":"MOE VacantUnitSeasonalRec"},"TotalPopInHousingUnits",{"$f":"\"MOE \"&V107","v":"MOE TotalPopInHousingUnits"},"OwnerOccPopHousingUnits",{"$f":"\"MOE \"&X107","v":"MOE OwnerOccPopHousingUnits"},"RenterOccPopHousingUnits",{"$f":"\"MOE \"&Z107","v":"MOE RenterOccPopHousingUnits"},"TotalUntis",{"$f":"\"MOE \"&AB107","v":"MOE TotalUntis"},"TotalOwnerOccUnits",{"$f":"\"MOE \"&AD107","v":"MOE TotalOwnerOccUnits"},"SigFamOwnerOcc",{"$f":"\"MOE \"&AF107","v":"MOE SigFamOwnerOcc"},"MultiFamOwnerOcc",{"$f":"\"MOE \"&AH107","v":"MOE MultiFamOwnerOcc"},"MobileOwnerOcc",{"$f":"\"MOE \"&AJ107","v":"MOE MobileOwnerOcc"},"TotalRenterOccUnits",{"$f":"\"MOE \"&AL107","v":"MOE TotalRenterOccUnits"},"SigFamRenterOcc",{"$f":"\"MOE \"&AN107","v":"MOE SigFamRenterOcc"},"MultiFamRenterOcc",{"$f":"\"MOE \"&AP107","v":"MOE MultiFamRenterOcc"},"MobileRenterOcc",{"$f":"\"MOE \"&AR107","v":"MOE MobileRenterOcc"},"TotalSigFamilyUnits",{"$f":"\"MOE \"&AT107","v":"MOE TotalSigFamilyUnits"},"TotalMultiFamilyUnits",{"$f":"\"MOE \"&AV107","v":"MOE TotalMultiFamilyUnits"},"TotalMobileUnits",{"$f":"\"MOE \"&AX107","v":"MOE TotalMobileUnits"},"YrHouseBuilt2005Later",{"$f":"\"MOE \"&AZ107","v":"MOE YrHouseBuilt2005Later"},"YrHouseBuilt2000-2004",{"$f":"\"MOE \"&BB107","v":"MOE YrHouseBuilt2000-2004"},"YrHouseBuilt1990-1999",{"$f":"\"MOE \"&BD107","v":"MOE YrHouseBuilt1990-1999"},"YrHouseBuilt1980-1989",{"$f":"\"MOE \"&BF107","v":"MOE YrHouseBuilt1980-1989"},"YrHouseBuilt1970-1979",{"$f":"\"MOE \"&BH107","v":"MOE YrHouseBuilt1970-1979"},"YrHouseBuilt1960-1969",{"$f":"\"MOE \"&BJ107","v":"MOE YrHouseBuilt1960-1969"},"YrHouseBuilt1950-1959",{"$f":"\"MOE \"&BL107","v":"MOE YrHouseBuilt1950-1959"},"YrHouseBuilt1940-1949",{"$f":"\"MOE \"&BN107","v":"MOE YrHouseBuilt1940-1949"},"YrHouseBuilt1939orEarlier",{"$f":"\"MOE \"&BP107","v":"MOE YrHouseBuilt1939orEarlier"},"NoBedrooms",{"$f":"\"MOE \"&BR107","v":"MOE NoBedrooms"},"1Bedroom",{"$f":"\"MOE \"&BT107","v":"MOE 1Bedroom"},"2Bedroom",{"$f":"\"MOE \"&BV107","v":"MOE 2Bedroom"},"3Bedroom",{"$f":"\"MOE \"&BX107","v":"MOE 3Bedroom"},"4+Bedroom",{"$f":"\"MOE \"&BZ107","v":"MOE 4+Bedroom"}]
[{"$f":"VLOOKUP(DropDownList!$A$47,CntyQuery!$A$53:$DN$64,A$1)","v":"Berlin"},4854,326,4185,303,2534,234,1651,226,669,152,26,41,27,43,71,64,37,47,165,96,8655,578,5546,552,3109,476,4185,303,2534,234,2135,207,352,91.131772724994221,47,47.434164902525687,1651,226,225,105,1426,220.76231562474607,0,21.213203435596427,2632,250,2175,282.19319623265193,47,47.434164902525687,13,20,82,52,117,64,173,80,460,139,193,66,960,162,309,99,2547,250,79,66,568,137,1507,232,1997,253,703,135.20355024924456]
[]
["Disability Data"]
["NAME","TotalPop",{"$f":"\"MOE \"&B111","v":"MOE TotalPop"},"PopUnder 5 years:",{"$f":"\"MOE \"&D111","v":"MOE PopUnder 5 years:"},{"$f":"D$111&\"-WithDisability\"","v":"PopUnder 5 years:-WithDisability"},{"$f":"\"MOE \"&F111","v":"MOE PopUnder 5 years:-WithDisability"},{"$f":"D111&\"-NoDisability\"","v":"PopUnder 5 years:-NoDisability"},{"$f":"\"MOE \"&H111","v":"MOE PopUnder 5 years:-NoDisability"},"PopUnder 5 to 17years:",{"$f":"\"MOE \"&J111","v":"MOE PopUnder 5 to 17years:"},{"$f":"J$111&\"-WithDisability\"","v":"PopUnder 5 to 17years:-WithDisability"},{"$f":"\"MOE \"&L111","v":"MOE PopUnder 5 to 17years:-WithDisability"},{"$f":"J111&\"-NoDisability\"","v":"PopUnder 5 to 17years:-NoDisability"},{"$f":"\"MOE \"&N111","v":"MOE PopUnder 5 to 17years:-NoDisability"},"PopUnder 18 to 34 years:",{"$f":"\"MOE \"&P111","v":"MOE PopUnder 18 to 34 years:"},{"$f":"P$111&\"-WithDisability\"","v":"PopUnder 18 to 34 years:-WithDisability"},{"$f":"\"MOE \"&R111","v":"MOE PopUnder 18 to 34 years:-WithDisability"},{"$f":"P111&\"-NoDisability\"","v":"PopUnder 18 to 34 years:-NoDisability"},{"$f":"\"MOE \"&T111","v":"MOE PopUnder 18 to 34 years:-NoDisability"},"Pop 35 years to 64:",{"$f":"\"MOE \"&V111","v":"MOE Pop 35 years to 64:"},{"$f":"$V$111&\"-WithDisability\"","v":"Pop 35 years to 64:-WithDisability"},{"$f":"\"MOE \"&X111","v":"MOE Pop 35 years to 64:-WithDisability"},{"$f":"$V$111&\"-NoDisability\"","v":"Pop 35 years to 64:-NoDisability"},{"$f":"\"MOE \"&Z111","v":"MOE Pop 35 years to 64:-NoDisability"},"Pop 65 years to 74:",{"$f":"\"MOE \"&AB111","v":"MOE Pop 65 years to 74:"},{"$f":"$AB$111&\"-WithDisability\"","v":"Pop 65 years to 74:-WithDisability"},{"$f":"\"MOE \"&AD111","v":"MOE Pop 65 years to 74:-WithDisability"},{"$f":"$AB$111&\"-NoDisability\"","v":"Pop 65 years to 74:-NoDisability"},{"$f":"\"MOE \"&AF111","v":"MOE Pop 65 years to 74:-NoDisability"},"Pop 75 and older:",{"$f":"\"MOE \"&AH111","v":"MOE Pop 75 and older:"},{"$f":"$AH$111&\"-WithDisability\"","v":"Pop 75 and older:-WithDisability"},{"$f":"\"MOE \"&AJ111","v":"MOE Pop 75 and older:-WithDisability"},{"$f":"$AH$111&\"-NoDisability\"","v":"Pop 75 and older:-NoDisability"},{"$f":"\"MOE \"&AL111","v":"MOE Pop 75 and older:-NoDisability"},"TotalPopUnder5_HearingDisability",{"$f":"\"MOE \"&AN111","v":"MOE TotalPopUnder5_HearingDisability"},"TotalUnder5_HearingDisability",{"$f":"\"MOE \"&AP111","v":"MOE TotalUnder5_HearingDisability"},"TotalPop18To34_HearingDisability",{"$f":"\"MOE \"&AR111","v":"MOE TotalPop18To34_HearingDisability"},"TotalPop35To64_HearingDisability",{"$f":"\"MOE \"&AT111","v":"MOE TotalPop35To64_HearingDisability"},"TotalPop65To74_HearingDisability",{"$f":"\"MOE \"&AV111","v":"MOE TotalPop65To74_HearingDisability"},"TotalPop75andOlder_HearingDisability",{"$f":"\"MOE \"&AX111","v":"MOE TotalPop75andOlder_HearingDisability"},"TotalUnder5_VisionDisability",{"$f":"\"MOE \"&AZ111","v":"MOE TotalUnder5_VisionDisability"},"Total5To17_VisionDisability",{"$f":"\"MOE \"&BB111","v":"MOE Total5To17_VisionDisability"},"Total18To34_VisionDisability",{"$f":"\"MOE \"&BD111","v":"MOE Total18To34_VisionDisability"},"Total35To64_VisionDisability",{"$f":"\"MOE \"&BF111","v":"MOE Total35To64_VisionDisability"},"Total65To74_VisionDisability",{"$f":"\"MOE \"&BH111","v":"MOE Total65To74_VisionDisability"},"Total75andOlder_VisionDisability",{"$f":"\"MOE \"&BJ111","v":"MOE Total75andOlder_VisionDisability"},"Total5To17_CongnitiveDisability",{"$f":"\"MOE \"&BL111","v":"MOE Total5To17_CongnitiveDisability"},"Total18To34_CongnitiveDisability",{"$f":"\"MOE \"&BN111","v":"MOE Total18To34_CongnitiveDisability"},"Total35To64_CongnitiveDisability",{"$f":"\"MOE \"&BP111","v":"MOE Total35To64_CongnitiveDisability"},"Total65To74_CongnitiveDisability",{"$f":"\"MOE \"&BR111","v":"MOE Total65To74_CongnitiveDisability"},"Total75andOlder_CongnitiveDisability",{"$f":"\"MOE \"&BT111","v":"MOE Total75andOlder_CongnitiveDisability"},"Total5To17_AmbulatoryDisability",{"$f":"\"MOE \"&BV111","v":"MOE Total5To17_AmbulatoryDisability"},"Total18To34_AmbulatoryDisability",{"$f":"\"MOE \"&BX111","v":"MOE Total18To34_AmbulatoryDisability"},"Total35To64_AmbulatoryDisability",{"$f":"\"MOE \"&BZ111","v":"MOE Total35To64_AmbulatoryDisability"},"Total65To74_AmbulatoryDisability",{"$f":"\"MOE \"&CB111","v":"MOE Total65To74_AmbulatoryDisability"},"Total75andOlder_AmbulatoryDisability",{"$f":"\"MOE \"&CD111","v":"MOE Total75andOlder_AmbulatoryDisability"},"Total5To17_SelfCareDisability",{"$f":"\"MOE \"&CF111","v":"MOE Total5To17_SelfCareDisability"},"Total18To34_SelfCareDisability",{"$f":"\"MOE \"&CH111","v":"MOE Total18To34_SelfCareDisability"},"Total35To64_SelfCareDisability",{"$f":"\"MOE \"&CJ111","v":"MOE Total35To64_SelfCareDisability"},"Total65To74_SelfCareDisability",{"$f":"\"MOE \"&CL111","v":"MOE Total65To74_SelfCareDisability"},"Total75andOlder_SelfCareDisability",{"$f":"\"MOE \"&CN111","v":"MOE Total75andOlder_SelfCareDisability"},"Total18To34_IndependantLivingDisability",{"$f":"\"MOE \"&CP111","v":"MOE Total18To34_IndependantLivingDisability"},"Total35To64_IndependantLivingDisability",{"$f":"\"MOE \"&CR111","v":"MOE Total35To64_IndependantLivingDisability"},"Total65To74_IndependantLivingDisability",{"$f":"\"MOE \"&CT111","v":"MOE Total65To74_IndependantLivingDisability"},"Total75andOlder_IndependantLivingDisability",{"$f":"\"MOE \"&CV111","v":"MOE Total75andOlder_IndependantLivingDisability"},"TotalUnder18_OneDisability",{"$f":"\"MOE \"&CX111","v":"MOE TotalUnder18_OneDisability"},"TotalUnder18_TwoDisability",{"$f":"\"MOE \"&CZ111","v":"MOE TotalUnder18_TwoDisability"},"18to6YearWIthOneDisability",{"$f":"\"MOE \"&DB111","v":"MOE 18to6YearWIthOneDisability"},"18to64YearWIthTwoOrMoreDisability",{"$f":"\"MOE \"&DD111","v":"MOE 18to64YearWIthTwoOrMoreDisability"},"Over64YearsWIthOneDisability",{"$f":"\"MOE \"&DF111","v":"MOE Over64YearsWIthOneDisability"},"Over64YearsWIthTwoOrMoreDisability",{"$f":"\"MOE \"&DH111","v":"MOE Over64YearsWIthTwoOrMoreDisability"}]
[{"$f":"VLOOKUP(DropDownList!$A$47,CntyQuery!$A$53:$DN$64,A$1)","v":"Berlin"},8671,580,423,104.23531071570709,0,21.213203435596427,423,104.23531071570709,1200,171.89822570346675,174,66.2872536767062,1026,159.0125781188394,1631,174.02586014727811,243,96.208107766445551,1388,174.80560631741764,3621,264.20068130116545,745,152.30561381643159,2876,260.55517649818438,750,97.616596949494195,137,53.075418038862395,613,91.60785992479029,1046,120.88010589009261,555,122.20065466273084,491,104.00480758118829,0,21.213203435596427,30,30.016662039607269,62,53.665631459994955,195,84.758480401668365,73,38.587562763149478,339,107.93516572461452,0,21.213203435596427,36,40.162171256046406,51,48.836461788299118,151,73.246160308919954,12,20.518284528683193,67,37.443290453698111,167,66.708320320631671,194,90.553851381374173,334,113.70136322841516,26,20.808652046684813,173,72.013887549555335,14,26.627053911388696,74,49.477267507411923,451,123.10970717209915,77,41.785164831552358,300,83.21658488546619,31,39.924929555354261,71,54.589376255824725,77,41.773197148410844,30,25.80697580112788,106,61.71709649683789,124,68.963758598266665,212,90.686272390037075,22,26.627053911388696,258,77.820305833374874,0,147,7,11,722,275,96,63,666,242,264,157]
[]
["Househould Income By Age"]
["NAME","TotalHouseholds",{"$f":"\"MOE \"&B115","v":"MOE TotalHouseholds"},"HHInc<10K",{"$f":"\"MOE \"&D115","v":"MOE HHInc<10K"},"HHInc10to15K",{"$f":"\"MOE \"&F115","v":"MOE HHInc10to15K"},"HHInc15to20K",{"$f":"\"MOE \"&H115","v":"MOE HHInc15to20K"},"HHInc20to25K",{"$f":"\"MOE \"&J115","v":"MOE HHInc20to25K"},"HHInc25to30K",{"$f":"\"MOE \"&L115","v":"MOE HHInc25to30K"},"HHInc30to35K",{"$f":"\"MOE \"&N115","v":"MOE HHInc30to35K"},"HHInc35to40K",{"$f":"\"MOE \"&P115","v":"MOE HHInc35to40K"},"HHInc40to45K",{"$f":"\"MOE \"&R115","v":"MOE HHInc40to45K"},"HHInc45to50K",{"$f":"\"MOE \"&T115","v":"MOE HHInc45to50K"},"HHInc50to60K",{"$f":"\"MOE \"&V115","v":"MOE HHInc50to60K"},"HHInc60to75K",{"$f":"\"MOE \"&X115","v":"MOE HHInc60to75K"},"HHInc75to100K",{"$f":"\"MOE \"&Z115","v":"MOE HHInc75to100K"},"HHInc100to125K",{"$f":"\"MOE \"&AB115","v":"MOE HHInc100to125K"},"HHInc125to150K",{"$f":"\"MOE \"&AD115","v":"MOE HHInc125to150K"},"HHInc150to200K",{"$f":"\"MOE \"&AF115","v":"MOE HHInc150to200K"},"HHInc>200K",{"$f":"\"MOE \"&AH115","v":"MOE HHInc>200K"},"TotalHH",{"$f":"\"MOE \"&AJ115","v":"MOE TotalHH"},"HHAgeHHUnder25yrs",{"$f":"\"MOE \"&AL115","v":"MOE HHAgeHHUnder25yrs"},"HHAgeHH<25HHInc<10K",{"$f":"\"MOE \"&AN115","v":"MOE HHAgeHH<25HHInc<10K"},"HHAgeHH<25HHInc10to15K",{"$f":"\"MOE \"&AP115","v":"MOE HHAgeHH<25HHInc10to15K"},"HHAgeHH<25HHInc15to20K",{"$f":"\"MOE \"&AR115","v":"MOE HHAgeHH<25HHInc15to20K"},"HHAgeHH<25HHInc20to25K",{"$f":"\"MOE \"&AT115","v":"MOE HHAgeHH<25HHInc20to25K"},"HHAgeHH<25HHInc25to30K",{"$f":"\"MOE \"&AV115","v":"MOE HHAgeHH<25HHInc25to30K"},"HHAgeHH<25HHInc30to35K",{"$f":"\"MOE \"&AX115","v":"MOE HHAgeHH<25HHInc30to35K"},"HHAgeHH<25HHInc35to40K",{"$f":"\"MOE \"&AZ115","v":"MOE HHAgeHH<25HHInc35to40K"},"HHAgeHH<25HHInc40to45K",{"$f":"\"MOE \"&BB115","v":"MOE HHAgeHH<25HHInc40to45K"},"HHAgeHH<25HHInc45to50K",{"$f":"\"MOE \"&BD115","v":"MOE HHAgeHH<25HHInc45to50K"},"HHAgeHH<25HHInc50to60K",{"$f":"\"MOE \"&BF115","v":"MOE HHAgeHH<25HHInc50to60K"},"HHAgeHH<25HHInc60to75K",{"$f":"\"MOE \"&BH115","v":"MOE HHAgeHH<25HHInc60to75K"},"HHAgeHH<25HHInc75to100K",{"$f":"\"MOE \"&BJ115","v":"MOE HHAgeHH<25HHInc75to100K"},"HHAgeHH<25HHInc100to125K",{"$f":"\"MOE \"&BL115","v":"MOE HHAgeHH<25HHInc100to125K"},"HHAgeHH<25HHInc125to150K",{"$f":"\"MOE \"&BN115","v":"MOE HHAgeHH<25HHInc125to150K"},"HHAgeHH<25HHInc150to200K",{"$f":"\"MOE \"&BP115","v":"MOE HHAgeHH<25HHInc150to200K"},"HHAge<25HHInc>200K",{"$f":"\"MOE \"&BR115","v":"MOE HHAge<25HHInc>200K"},"HHAgeHH25to44yrs",{"$f":"\"MOE \"&BT115","v":"MOE HHAgeHH25to44yrs"},"HHAgeHH25To44yrsHHInc<10K",{"$f":"\"MOE \"&BV115","v":"MOE HHAgeHH25To44yrsHHInc<10K"},"HHAgeHH25To44yrsHHInc10to15K",{"$f":"\"MOE \"&BX115","v":"MOE HHAgeHH25To44yrsHHInc10to15K"},"HHAgeHH25To44yrsHHInc15to20K",{"$f":"\"MOE \"&BZ115","v":"MOE HHAgeHH25To44yrsHHInc15to20K"},"HHAgeHH25To44yrsHHInc20to25K",{"$f":"\"MOE \"&CB115","v":"MOE HHAgeHH25To44yrsHHInc20to25K"},"HHAgeHH25To44yrsHHInc25to30K",{"$f":"\"MOE \"&CD115","v":"MOE HHAgeHH25To44yrsHHInc25to30K"},"HHAgeHH25To44yrsHHInc30to35K",{"$f":"\"MOE \"&CF115","v":"MOE HHAgeHH25To44yrsHHInc30to35K"},"HHAgeHH25To44yrsHHInc35to40K",{"$f":"\"MOE \"&CH115","v":"MOE HHAgeHH25To44yrsHHInc35to40K"},"HHAgeHH25To44yrsHHInc40to45K",{"$f":"\"MOE \"&CJ115","v":"MOE HHAgeHH25To44yrsHHInc40to45K"},"HHAgeHH25To44yrsHHInc45to50K",{"$f":"\"MOE \"&CL115","v":"MOE HHAgeHH25To44yrsHHInc45to50K"},"HHAgeHH25To44yrsHHInc50to60K",{"$f":"\"MOE \"&CN115","v":"MOE HHAgeHH25To44yrsHHInc50to60K"},"HHAgeHH25To44yrsHHInc60to75K",{"$f":"\"MOE \"&CP115","v":"MOE HHAgeHH25To44yrsHHInc60to75K"},"HHAgeHH25To44yrsHHInc75to100K",{"$f":"\"MOE \"&CR115","v":"MOE HHAgeHH25To44yrsHHInc75to100K"},"HHAgeHH25To44yrsHHInc100to125K",{"$f":"\"MOE \"&CT115","v":"MOE HHAgeHH25To44yrsHHInc100to125K"},"HHAgeHH25To44yrsHHInc125to150K",{"$f":"\"MOE \"&CV115","v":"MOE HHAgeHH25To44yrsHHInc125to150K"},"HHAgeHH25To44yrsHHInc150to200K",{"$f":"\"MOE \"&CX115","v":"MOE HHAgeHH25To44yrsHHInc150to200K"},"HHAge25To44yrsHHInc>200K",{"$f":"\"MOE \"&CZ115","v":"MOE HHAge25To44yrsHHInc>200K"},"HHAgeHH45To64yrs",{"$f":"\"MOE \"&DB115","v":"MOE HHAgeHH45To64yrs"},"HHAgeHH45To64yrsHHInc<10K",{"$f":"\"MOE \"&DD115","v":"MOE HHAgeHH45To64yrsHHInc<10K"},"HHAgeHH45To64yrsHHInc10to15K",{"$f":"\"MOE \"&DF115","v":"MOE HHAgeHH45To64yrsHHInc10to15K"},"HHAgeHH45To64yrsHHInc15to20K",{"$f":"\"MOE \"&DH115","v":"MOE HHAgeHH45To64yrsHHInc15to20K"},"HHAgeHH45To64yrsHHInc20to25K",{"$f":"\"MOE \"&DJ115","v":"MOE HHAgeHH45To64yrsHHInc20to25K"},"HHAgeHH45To64yrsHHInc25to30K",{"$f":"\"MOE \"&DL115","v":"MOE HHAgeHH45To64yrsHHInc25to30K"},"HHAgeHH45To64yrsHHInc30to35K",{"$f":"\"MOE \"&DN115","v":"MOE HHAgeHH45To64yrsHHInc30to35K"},"HHAgeHH45To64yrsHHInc35to40K",{"$f":"\"MOE \"&DP115","v":"MOE HHAgeHH45To64yrsHHInc35to40K"},"HHAgeHH45To64yrsHHInc40to45K",{"$f":"\"MOE \"&DR115","v":"MOE HHAgeHH45To64yrsHHInc40to45K"},"HHAgeHH45To64yrsHHInc45to50K",{"$f":"\"MOE \"&DT115","v":"MOE HHAgeHH45To64yrsHHInc45to50K"},"HHAgeHH45To64yrsHHInc50to60K",{"$f":"\"MOE \"&DV115","v":"MOE HHAgeHH45To64yrsHHInc50to60K"},"HHAgeHH45To64yrsHHInc60to75K",{"$f":"\"MOE \"&DX115","v":"MOE HHAgeHH45To64yrsHHInc60to75K"},"HHAgeHH45To64yrsHHInc75to100K",{"$f":"\"MOE \"&DZ115","v":"MOE HHAgeHH45To64yrsHHInc75to100K"},"HHAgeHH45To64yrsHHInc100to125K",{"$f":"\"MOE \"&EB115","v":"MOE HHAgeHH45To64yrsHHInc100to125K"},"HHAgeHH45To64yrsHHInc125to150K",{"$f":"\"MOE \"&ED115","v":"MOE HHAgeHH45To64yrsHHInc125to150K"},"HHAgeHH45To64yrsHHInc150to200K",{"$f":"\"MOE \"&EF115","v":"MOE HHAgeHH45To64yrsHHInc150to200K"},"HHAge45To64yrsHHInc>200K",{"$f":"\"MOE \"&EH115","v":"MOE HHAge45To64yrsHHInc>200K"},"HHAgeHH65yrsorOlder",{"$f":"\"MOE \"&EJ115","v":"MOE HHAgeHH65yrsorOlder"},"HHAgeHH65yrsorOlderHHInc<10K",{"$f":"\"MOE \"&EL115","v":"MOE HHAgeHH65yrsorOlderHHInc<10K"},"HHAgeHH65yrsorOlderHHInc10to15K",{"$f":"\"MOE \"&EN115","v":"MOE HHAgeHH65yrsorOlderHHInc10to15K"},"HHAgeHH65yrsorOlderHHInc15to20K",{"$f":"\"MOE \"&EP115","v":"MOE HHAgeHH65yrsorOlderHHInc15to20K"},"HHAgeHH65yrsorOlderHHInc20to25K",{"$f":"\"MOE \"&ER115","v":"MOE HHAgeHH65yrsorOlderHHInc20to25K"},"HHAgeHH65yrsorOlderHHInc25to30K",{"$f":"\"MOE \"&ET115","v":"MOE HHAgeHH65yrsorOlderHHInc25to30K"},"HHAgeHH65yrsorOlderHHInc30to35K",{"$f":"\"MOE \"&EV115","v":"MOE HHAgeHH65yrsorOlderHHInc30to35K"},"HHAgeHH65yrsorOlderHHInc35to40K",{"$f":"\"MOE \"&EX115","v":"MOE HHAgeHH65yrsorOlderHHInc35to40K"},"HHAgeHH65yrsorOlderHHInc40to45K",{"$f":"\"MOE \"&EZ115","v":"MOE HHAgeHH65yrsorOlderHHInc40to45K"},"HHAgeHH65yrsorOlderHHInc45to50K",{"$f":"\"MOE \"&FB115","v":"MOE HHAgeHH65yrsorOlderHHInc45to50K"},"HHAgeHH65yrsorOlderHHInc50to60K",{"$f":"\"MOE \"&FD115","v":"MOE HHAgeHH65yrsorOlderHHInc50to60K"},"HHAgeHH65yrsorOlderHHInc60to75K",{"$f":"\"MOE \"&FF115","v":"MOE HHAgeHH65yrsorOlderHHInc60to75K"},"HHAgeHH65yrsorOlderHHInc75to100K",{"$f":"\"MOE \"&FH115","v":"MOE HHAgeHH65yrsorOlderHHInc75to100K"},"HHAgeHH65yrsorOlderHHInc100to125K",{"$f":"\"MOE \"&FJ115","v":"MOE HHAgeHH65yrsorOlderHHInc100to125K"},"HHAgeHH65yrsorOlderHHInc125to150K",{"$f":"\"MOE \"&FL115","v":"MOE HHAgeHH65yrsorOlderHHInc125to150K"},"HHAgeHH65yrsorOlderHHInc150to200K",{"$f":"\"MOE \"&FN115","v":"MOE HHAgeHH65yrsorOlderHHInc150to200K"},"HHAge65yrsorOlderHHInc>200K",{"$f":"\"MOE \"&FP115","v":"MOE HHAge65yrsorOlderHHInc>200K"},"MedianHHInc",{"$f":"\"MOE \"&FR115","v":"MOE MedianHHInc"},"HH under 25 years",{"$f":"\"MOE \"&FT115","v":"MOE HH under 25 years"},"Householder 25 to 44 years",{"$f":"\"MOE \"&FV115","v":"MOE Householder 25 to 44 years"},"Householder 45 to 64 years",{"$f":"\"MOE \"&FX115","v":"MOE Householder 45 to 64 years"},"Householder 65 years and over",{"$f":"\"MOE \"&FZ115","v":"MOE Householder 65 years and over"}]
[{"$f":"VLOOKUP(DropDownList!$A$47,CntyQuery!$A$53:$DN$64,A$1)","v":"Berlin"},4185,303,367,111,510,122,315,102,280,97,218,92,346,103,258,112,203,62,144,64,335,101,369,84,424,92,195,69,79,51,53,39,89,53,4185,303,132,74,16,18,40,51,0,15,30,37,0,15,20,23,10,15,0,15,8,12,8,14,0,15,0,15,0,15,0,15,0,15,0,15,1141,170,143,64,90,57,99,67,35,33,53,54,74,43,60,56,72,42,47,45,133,73,102,55,161,68,15,17,31,29,16,20,10,17,1594,171,91,59,119,71,113,78,67,55,67,49,95,57,75,58,63,34,67,38,86,58,204,65,229,84,166,63,48,37,37,31,67,44,1318,150,117,72,261,88,103,47,148,61,98,45,157,68,113,52,68,37,22,20,108,49,63,31,34,24,14,22,0,15,0,15,12,18,36358,3279,21136,11227,41031,6354,57700,14961,26531,3953]
[]
["Number of Households by Income"]
["NAME","HHIncLessThn10k",{"$f":"\"MOE \"&B119","v":"MOE HHIncLessThn10k"},"HHInc10to15K",{"$f":"\"MOE \"&D119","v":"MOE HHInc10to15K"},"HHInc15to25K",{"$f":"\"MOE \"&F119","v":"MOE HHInc15to25K"},"HHInc25to35K",{"$f":"\"MOE \"&H119","v":"MOE HHInc25to35K"},"HHInc35to50K",{"$f":"\"MOE \"&J119","v":"MOE HHInc35to50K"},"HHInc50to75K",{"$f":"\"MOE \"&L119","v":"MOE HHInc50to75K"},"HHInc75to100K",{"$f":"\"MOE \"&N119","v":"MOE HHInc75to100K"},"HHInc100to150K",{"$f":"\"MOE \"&P119","v":"MOE HHInc100to150K"},"HHInc150to200K",{"$f":"\"MOE \"&R119","v":"MOE HHInc150to200K"},"HHIncOver200K",{"$f":"\"MOE \"&T119","v":"MOE HHIncOver200K"}]
[{"$f":"VLOOKUP(DropDownList!$A$47,CntyQuery!$A$53:$DN$64,A$1)","v":"Berlin"},331,102,422,147,636,155.24174696260025,385,125.0959631642844,719,173.18775938270002,601,142.3411395205195,356,106,384,127.20062892926276,115,66,28,26]
[]
["POVERTY DATA"]
["NAME","TotalPop",{"$f":"\"MOE \"&B123","v":"MOE TotalPop"},"Total Individuals living in Poverty",{"$f":"\"MOE \"&D123","v":"MOE Total Individuals living in Poverty"},"Under 5 yrs.",{"$f":"\"MOE \"&F123","v":"MOE Under 5 yrs."},"5 to 17 yrs.",{"$f":"\"MOE \"&H123","v":"MOE 5 to 17 yrs."},"18 to 64 yrs.",{"$f":"\"MOE \"&J123","v":"MOE 18 to 64 yrs."},"65 to 74 yrs.",{"$f":"\"MOE \"&L123","v":"MOE 65 to 74 yrs."},"75 yrs. & Over",{"$f":"\"MOE \"&N123","v":"MOE 75 yrs. & Over"},"Total Individuals  Not living Poverty",{"$f":"\"MOE \"&P123","v":"MOE Total Individuals  Not living Poverty"},"Under 5 yrs.",{"$f":"\"MOE \"&R123","v":"MOE Under 5 yrs."},"5 to 17 yrs.",{"$f":"\"MOE \"&T123","v":"MOE 5 to 17 yrs."},"18 to 64 yrs.",{"$f":"\"MOE \"&V123","v":"MOE 18 to 64 yrs."},"65 to 74 yrs.",{"$f":"\"MOE \"&X123","v":"MOE 65 to 74 yrs."},"75 yrs. & Over",{"$f":"\"MOE \"&Z123","v":"MOE 75 yrs. & Over"},"Total HH",{"$f":"\"MOE \"&AB123","v":"MOE Total HH"},"Total Households Below Poverty",{"$f":"\"MOE \"&AD123","v":"MOE Total Households Below Poverty"},"Family Households in Poverty",{"$f":"\"MOE \"&AF123","v":"MOE Family Households in Poverty"},"Married Couple Fam HH",{"$f":"\"MOE \"&AH123","v":"MOE Married Couple Fam HH"},"Other Family",{"$f":"\"MOE \"&AJ123","v":"MOE Other Family"},"Male Head of Family HH no wife",{"$f":"\"MOE \"&AL123","v":"MOE Male Head of Family HH no wife"},"Female Head of Family HH no husband",{"$f":"\"MOE \"&AN123","v":"MOE Female Head of Family HH no husband"},"Non-Family HH",{"$f":"\"MOE \"&AP123","v":"MOE Non-Family HH"},"Non-Family Male HH",{"$f":"\"MOE \"&AR123","v":"MOE Non-Family Male HH"},"Non-Family Female HH",{"$f":"\"MOE \"&AT123","v":"MOE Non-Family Female HH"},"Total Households at or Above Poverty",{"$f":"\"MOE \"&AV123","v":"MOE Total Households at or Above Poverty"},"Family Households above Poverty",{"$f":"\"MOE \"&AX123","v":"MOE Family Households above Poverty"},"Married Couple Fam HH",{"$f":"\"MOE \"&AZ123","v":"MOE Married Couple Fam HH"},"Other Family",{"$f":"\"MOE \"&BB123","v":"MOE Other Family"},"Male Head of Family HH no wife",{"$f":"\"MOE \"&BD123","v":"MOE Male Head of Family HH no wife"},"Female Head of Family HH no husband",{"$f":"\"MOE \"&BF123","v":"MOE Female Head of Family HH no husband"},"Non-Family HH",{"$f":"\"MOE \"&BH123","v":"MOE Non-Family HH"},"Non-Family Male HH",{"$f":"\"MOE \"&BJ123","v":"MOE Non-Family Male HH"},"Non-Family Female HH",{"$f":"\"MOE \"&BL123","v":"MOE Non-Family Female HH"},"Married Couple with Children Below Poverty",{"$f":"\"MOE \"&BN123","v":"MOE Married Couple with Children Below Poverty"},"Male HH with children below poverty",{"$f":"\"MOE \"&BP123","v":"MOE Male HH with children below poverty"},"Female HH with children below poverty",{"$f":"\"MOE \"&BR123","v":"MOE Female HH with children below poverty"},"Married Couple with Children At or Above Poverty",{"$f":"\"MOE \"&BT123","v":"MOE Married Couple with Children At or Above Poverty"},"Male HH with children at or above poverty",{"$f":"\"MOE \"&BV123","v":"MOE Male HH with children at or above poverty"},"Female HH with children at or above poverty",{"$f":"\"MOE \"&BX123","v":"MOE Female HH with children at or above poverty"}]
[{"$f":"VLOOKUP(DropDownList!$A$47,CntyQuery!$A$53:$DN$64,A$1)","v":"Berlin"},2326,211,350,113,16,24.596747752497688,93,45.044422518220834,221,74.060785845142092,20,26.40075756488817,0,15.556349186104045,1976,207,63,35.468295701936398,212,62.016126934854611,1214,134.17525852406621,368,82.419657849326214,119,36.069377593742864,171,61,64,33,4,8,0,11,60,32,5,9,55,32,107,52,47,39,60,30,930,95,631,91,502,84,129,49,32,34,97,38,299,58,299,58,133,45,0,11,5,9,55,32,94,39,26,33,54,32]
[]
["Household Income By Tenure"]
["NAME","TotalOccHU",{"$f":"\"MOE \"&B127","v":"MOE TotalOccHU"},"OwnOccHU",{"$f":"\"MOE \"&D127","v":"MOE OwnOccHU"},"OOHUInc<5K",{"$f":"\"MOE \"&F127","v":"MOE OOHUInc<5K"},"OOHUInc5to10K",{"$f":"\"MOE \"&H127","v":"MOE OOHUInc5to10K"},"OOHUInc10to15K",{"$f":"\"MOE \"&J127","v":"MOE OOHUInc10to15K"},"OOHUInc15to20K",{"$f":"\"MOE \"&L127","v":"MOE OOHUInc15to20K"},"OOHUInc20to25K",{"$f":"\"MOE \"&N127","v":"MOE OOHUInc20to25K"},"OOHUInc25to35K",{"$f":"\"MOE \"&P127","v":"MOE OOHUInc25to35K"},"OOHUInc35to50K",{"$f":"\"MOE \"&R127","v":"MOE OOHUInc35to50K"},"OOHUInc50to75K",{"$f":"\"MOE \"&T127","v":"MOE OOHUInc50to75K"},"OOHUInc75to100K",{"$f":"\"MOE \"&V127","v":"MOE OOHUInc75to100K"},"OOHUInc100to150K",{"$f":"\"MOE \"&X127","v":"MOE OOHUInc100to150K"},"OOHUInc>150K",{"$f":"\"MOE \"&Z127","v":"MOE OOHUInc>150K"},"RentOccHU",{"$f":"\"MOE \"&AB127","v":"MOE RentOccHU"},"ROHUInc<5K",{"$f":"\"MOE \"&AD127","v":"MOE ROHUInc<5K"},"ROHUInc5to10K",{"$f":"\"MOE \"&AF127","v":"MOE ROHUInc5to10K"},"ROHUInc10to15K",{"$f":"\"MOE \"&AH127","v":"MOE ROHUInc10to15K"},"ROHUInc15to20K",{"$f":"\"MOE \"&AJ127","v":"MOE ROHUInc15to20K"},"ROHUInc20to25K",{"$f":"\"MOE \"&AL127","v":"MOE ROHUInc20to25K"},"ROHUInc25to35K",{"$f":"\"MOE \"&AN127","v":"MOE ROHUInc25to35K"},"ROHUInc35to50K",{"$f":"\"MOE \"&AP127","v":"MOE ROHUInc35to50K"},"ROHUInc50to75K",{"$f":"\"MOE \"&AR127","v":"MOE ROHUInc50to75K"},"ROHUInc75to100K",{"$f":"\"MOE \"&AT127","v":"MOE ROHUInc75to100K"},"ROHUInc100to150K",{"$f":"\"MOE \"&AV127","v":"MOE ROHUInc100to150K"},"ROHUInc>150K",{"$f":"\"MOE \"&AX127","v":"MOE ROHUInc>150K"},"Total OCC HUInc<5K",{"$f":"\"MOE \"&AZ127","v":"MOE Total OCC HUInc<5K"},"Total OCC HUInc5to10K",{"$f":"\"MOE \"&BB127","v":"MOE Total OCC HUInc5to10K"},"Total OCC HUInc10to15K",{"$f":"\"MOE \"&BD127","v":"MOE Total OCC HUInc10to15K"},"Total OCC HUInc15to20K",{"$f":"\"MOE \"&BF127","v":"MOE Total OCC HUInc15to20K"},"Total OCC HUInc20to25K",{"$f":"\"MOE \"&BH127","v":"MOE Total OCC HUInc20to25K"},"Total OCC HUInc25to35K",{"$f":"\"MOE \"&BJ127","v":"MOE Total OCC HUInc25to35K"},"Total OCC HUInc35to50K",{"$f":"\"MOE \"&BL127","v":"MOE Total OCC HUInc35to50K"},"Total OCC HUInc50to75K",{"$f":"\"MOE \"&BN127","v":"MOE Total OCC HUInc50to75K"},"Total OCC HUInc75to100K",{"$f":"\"MOE \"&BP127","v":"MOE Total OCC HUInc75to100K"},"Total OCC HUInc100to150K",{"$f":"\"MOE \"&BR127","v":"MOE Total OCC HUInc100to150K"},"Total OCC HUInc>150K",{"$f":"\"MOE \"&BT127","v":"MOE Total OCC HUInc>150K"},"MedHHInc",{"$f":"\"MOE \"&BV127","v":"MOE MedHHInc"},"MedOwnOccHHInc",{"$f":"\"MOE \"&BX127","v":"MOE MedOwnOccHHInc"},"MedRentOccHHInc",{"$f":"\"MOE \"&BZ127","v":"MOE MedRentOccHHInc"}]
[{"$f":"VLOOKUP(DropDownList!$A$47,CntyQuery!$A$53:$DN$64,A$1)","v":"Berlin"},4185,303,2534,234,11,16,54,48,178,72,133,65,73,42,324,88,409,105,573,113,370,92,267,79,142,67,1651,226,107,63,195,86,332,106,182,89,207,90,240,95,196,95,131,69,54,43,7,12,0,15,20,27.459060435491963,211,100.43903623591775,162,75.643902596309772,116,53,242,111.82575731914361,385,112.04463396343441,485,122.42957159118053,278,91.782351244670124,334,100.46392387319938,433,99.40824915468535,null,null,36358,3279,52237,4912,20313,4585]
[]
["Population Data"]
["NAME","Total Population","MOE Total Population","Under 15 Years","MOE Under 15 yrs.","15 to 24 yrs.","MOE 15 to 24 yrs.","25 to 34 yrs.","MOE 25 to 34 yrs.","35 to 44 yrs.","MOE 35 to 44 yrs.","45 to 54 yrs.","MOE 45 to 54 yrs.","55 to 64 yrs.","MOE 55 to 64 yrs.","65 to 74 yrs.","MOE 65 to 74 yrs.","Over 74 yrs. ","MOE Over 74 yrs. ","TotalHH","MOE TotalHH","FamilyHH","MOE FamilyHH","MarriedFamilyHH","MOE MarriedFamilyHH","SingleFamilyHH","MOE SingleFamilyHH","Sfamily-MaleHH","MOE Sfamily-MaleHH","Sfamily-FemaleHH","MOE Sfamily-FemaleHH","NonFamilyHH","MOE NonFamilyHH","NonFamilyHH-LivingAlone","MOE NonFamilyHH-LivingAlone","NonFamilyHH-NotLivingAlone","MOE NonFamilyHH-NotLivingAlone","PopRaceWhite","MOE PopRaceWhite","PopRaceBlack","MOE PopRaceBlack","PopRaceAmerican Indian","MOE PopRaceAmerican Indian","PopRaceAsian &Pacific Is.","MOE PopRaceAsian &Pacific Is.","PopRaceOther*","MOE PopRaceOther*","PopRaceHispanic or Latino:","MOE PopRaceHispanic or Latino:","AvgAgeTotalPop","MOE AvgAgeTotalPop","AvgAgeMale","MOE AvgAgeMale","AvgAgeFemale","MOE AvgAgeFemale","AvgHHSizeTotal","MOE AvgHHSizeTotal","AvgHHSizeFamilyHH","MOE AvgHHSizeFamilyHH","AvgHHSizeNonFamilyHH","MOE AvgHHSizeNonFamilyHH"]
[{"$f":"VLOOKUP(DropDownList!$A$47,CntyQuery!$A$53:$DN$64,A$1)","v":"Berlin"},9710,27,1319,193.37011144434913,1058,167.49626861515452,1193,180.98066195038629,1394,295.33201655086435,1309,167.76769653303344,1440,186.74849396983097,802,123.8587905640936,1195,162.82813024781683,2536,223,1762,188,774,164,264,108,510,135,1649,264,1473,245,176,74,null,null,8994,329,280,386,47,72,24,39.924929555354261,135,80.361682411457764,230,62,44.1,3.4,40.700000000000003,2.8,49.5,1.6,2.6821766561514195,0.31538716374067555,1.1237113402061856,0.25499638605309993]
[]
["Nativity and Prior Place of Residence"]
["NAME","TotalPop",{"$f":"\"MOE \"&B135","v":"MOE TotalPop"},"Native:",{"$f":"\"MOE \"&D135","v":"MOE Native:"},"NatBornInStateOfResidence",{"$f":"\"MOE \"&F135","v":"MOE NatBornInStateOfResidence"},"Born in other state in the United States:",{"$f":"\"MOE \"&H135","v":"MOE Born in other state in the United States:"},"Northeast",{"$f":"\"MOE \"&J135","v":"MOE Northeast"},"Midwest",{"$f":"\"MOE \"&L135","v":"MOE Midwest"},"South",{"$f":"\"MOE \"&N135","v":"MOE South"},"West",{"$f":"\"MOE \"&P135","v":"MOE West"},"Born outside the United States:",{"$f":"\"MOE \"&R135","v":"MOE Born outside the United States:"},"Puerto Rico",{"$f":"\"MOE \"&T135","v":"MOE Puerto Rico"},"U.S. Island Areas",{"$f":"\"MOE \"&V135","v":"MOE U.S. Island Areas"},"Born abroad of American parent(s)",{"$f":"\"MOE \"&X135","v":"MOE Born abroad of American parent(s)"},"Foreign born:",{"$f":"\"MOE \"&Z135","v":"MOE Foreign born:"},"Naturalized U.S. citizen",{"$f":"\"MOE \"&AB135","v":"MOE Naturalized U.S. citizen"},"Not a U.S. citizen",{"$f":"\"MOE \"&AD135","v":"MOE Not a U.S. citizen"},"CurrentResideneTotal:",{"$f":"\"MOE \"&AF135","v":"MOE CurrentResideneTotal:"},"SameHouse:",{"$f":"\"MOE \"&AH135","v":"MOE SameHouse:"},"DifferentHouse:",{"$f":"\"MOE \"&AJ135","v":"MOE DifferentHouse:"},"DiffHouseInNH",{"$f":"\"MOE \"&AL135","v":"MOE DiffHouseInNH"},"DiffHouseInNHSameCnty",{"$f":"\"MOE \"&AN135","v":"MOE DiffHouseInNHSameCnty"},"DiffHouseInNHDiffCnty",{"$f":"\"MOE \"&AP135","v":"MOE DiffHouseInNHDiffCnty"},"DiffHouseInDiffState",{"$f":"\"MOE \"&AR135","v":"MOE DiffHouseInDiffState"},"DiffHouseInElsewhere",{"$f":"\"MOE \"&AT135","v":"MOE DiffHouseInElsewhere"}]
[{"$f":"VLOOKUP(DropDownList!$A$47,CntyQuery!$A$53:$DN$64,A$1)","v":"Berlin"},9710,27,9381,126,6894,512,2435,472,1756,296,234,288,256,123,189,113,52,42,3,6,0,15,49,42,329,126,203,103,126,82,9605,61,8004,376,1601,380.04604984133175,1499,377.02121956197635,1046,304,453,223,96,47,6,9,35,43]
[]
["School Attainment & Enrollment"]
["NAME","Total Pop 3 Years and Older","MOE Total Pop 3 Years and Older","SchEnrlPop3yrOver",{"$f":"\"MOE \"&D139","v":"MOE SchEnrlPop3yrOver"},"TotalEnrollNursy&Kinder",{"$f":"\"MOE \"&F139","v":"MOE TotalEnrollNursy&Kinder"},"NurserSchEnrl",{"$f":"\"MOE \"&H139","v":"MOE NurserSchEnrl"},"KinderSchEnrl",{"$f":"\"MOE \"&J139","v":"MOE KinderSchEnrl"},"ElemSchEnrl (1-8)",{"$f":"\"MOE \"&L139","v":"MOE ElemSchEnrl (1-8)"},"HighSchEnrl(9-12)",{"$f":"\"MOE \"&N139","v":"MOE HighSchEnrl(9-12)"},"TotalElementry&HSEnroll",{"$f":"\"MOE \"&P139","v":"MOE TotalElementry&HSEnroll"},"CollGradSchEnrl",{"$f":"\"MOE \"&R139","v":"MOE CollGradSchEnrl"},"PopNotEnrolled","MOE PopNotEnrolled","Pop25yrsOver",{"$f":"\"MOE \"&V139","v":"MOE Pop25yrsOver"},"EduAtain<9grd",{"$f":"\"MOE \"&X139","v":"MOE EduAtain<9grd"},"EduAtainHSnoDip",{"$f":"\"MOE \"&Z139","v":"MOE EduAtainHSnoDip"},"EduAtainHSgrad",{"$f":"\"MOE \"&AB139","v":"MOE EduAtainHSgrad"},"EduAtainCollNoDeg",{"$f":"\"MOE \"&AD139","v":"MOE EduAtainCollNoDeg"},"EduAtainAssocDeg",{"$f":"\"MOE \"&AF139","v":"MOE EduAtainAssocDeg"},"EduAtainBachDeg",{"$f":"\"MOE \"&AH139","v":"MOE EduAtainBachDeg"},"EduAtainGradProfDeg",{"$f":"\"MOE \"&AJ139","v":"MOE EduAtainGradProfDeg"}]
[{"$f":"VLOOKUP(DropDownList!$A$47,CntyQuery!$A$53:$DN$64,A$1)","v":"Berlin"},9491,95,1772,202,207,102.7861858422619,167,97,40,34,822,163.02760502442524,359,89,1181,185.73906428104993,384,103.36827366266692,7719,199,7333,233,282,90.901045098502578,806,155.3415591527264,3178,411.64669317267692,1383,228.0394702677587,792,129.07362240210043,622,155.86211855354719,169,70.908391604943347]
[]
["Occupied Owner Housing Value"]
["NAME","Estimate; Total:","Margin of Error; Total:","Estimate; Total: - Less than $10,000","Margin of Error; Total: - Less than $10,000","Estimate; Total: - $10,000 to $14,999","Margin of Error; Total: - $10,000 to $14,999","Estimate; Total: - $15,000 to $47,999","Margin of Error; Total: - $15,000 to $47,999","Estimate; Total: - $20,000 to $24,999","Margin of Error; Total: - $20,000 to $24,999","Estimate; Total: - $25,000 to $29,999","Margin of Error; Total: - $25,000 to $29,999","Estimate; Total: - $30,000 to $34,999","Margin of Error; Total: - $30,000 to $34,999","Estimate; Total: - $35,000 to $39,999","Margin of Error; Total: - $35,000 to $39,999","Estimate; Total: - $40,000 to $49,999","Margin of Error; Total: - $40,000 to $49,999","Estimate; Total: - $50,000 to $59,999","Margin of Error; Total: - $50,000 to $59,999","Estimate; Total: - $60,000 to $69,999","Margin of Error; Total: - $60,000 to $69,999","Estimate; Total: - $70,000 to $79,999","Margin of Error; Total: - $70,000 to $79,999","Estimate; Total: - $80,000 to $89,999","Margin of Error; Total: - $80,000 to $89,999","Estimate; Total: - $90,000 to $99,999","Margin of Error; Total: - $90,000 to $99,999","Estimate; Total: - $100,000 to $124,999","Margin of Error; Total: - $100,000 to $124,999","Estimate; Total: - $125,000 to $149,999","Margin of Error; Total: - $125,000 to $149,999","Estimate; Total: - $150,000 to $174,999","Margin of Error; Total: - $150,000 to $174,999","Estimate; Total: - $175,000 to $479,999","Margin of Error; Total: - $175,000 to $479,999","Estimate; Total: - $200,000 to $249,999","Margin of Error; Total: - $200,000 to $249,999","Estimate; Total: - $250,000 to $299,999","Margin of Error; Total: - $250,000 to $299,999","Estimate; Total: - $300,000 to $399,999","Margin of Error; Total: - $300,000 to $399,999","Estimate; Total: - $400,000 to $499,999","Margin of Error; Total: - $400,000 to $499,999","Estimate; Total: - $500,000 to $749,999","Margin of Error; Total: - $500,000 to $749,999","Estimate; Total: - $750,000 to $999,999","Margin of Error; Total: - $750,000 to $999,999","Estimate; Total: - $1,000,000 to $1,499,999","Margin of Error; Total: - $1,000,000 to $1,499,999","Estimate; Total: - $1,500,000 to $1,999,999","Margin of Error; Total: - $1,500,000 to $1,999,999","Estimate; Total: - $2,000,000 or more","Margin of Error; Total: - $2,000,000 or more","MedianOwnOCCHomeValue","MOE MedianOwnOCCHomeValue","OnwerOccHsU","MOE OnwerOccHsU","OwnerCosts>20PctHHInc","MOE OwnerCosts>20PctHHInc","OwnerCosts20to29.9PctHHInc","MOE OwnerCosts20to29.9PctHHInc","OwnerCosts<30PctHHInc","MOE OwnerCosts<30PctHHInc","OwnerCosts>30PctHHInc","MOE OwnerCosts>30PctHHInc","OwnerCosts30to34.9PctHHInc","MOE OwnerCosts30to34.9PctHHInc","OwnerCosts<35PctHHInc","MOE OwnerCosts<35PctHHInc","OwnerCosts>35PctHHInc","MOE OwnerCosts>35PctHHInc","OwnerCosts>50PctHHInc","MOE OwnerCosts>50PctHHInc","OwnerCostsPctNotcomputed","MOE OwnerCostsPctNotcomputed","OwnerOHUHhInc<20k","MOE OwnerOHUHhInc<20k","OwnerOHUHhInc<20kHCosts<20pct","MOE OwnerOHUHhInc<20kHCosts<20pct","OwnerOHUHhInc<20kHCosts20to29pct","MOE OwnerOHUHhInc<20kHCosts20to29pct","OwnerOHUHhInc>20kHCosts30pct","MOE OwnerOHUHhInc>20kHCosts30pct","OwnerOHUHhInc20kTo34999","MOE OwnerOHUHhInc20kTo34999","OwnerOHUHhInc20kTo34999HCosts<20pct","MOE OwnerOHUHhInc20kTo34999HCosts<20pct","OwnerOHUHhInc20kTo34999HCosts20to29pct","MOE OwnerOHUHhInc20kTo34999HCosts20to29pct","OwnerOHUHhInc20kTo34999HCosts30pct","MOE OwnerOHUHhInc20kTo34999HCosts30pct","OwnerOHUHhInc35kTo49999","MOE OwnerOHUHhInc35kTo49999","OwnerOHUHhInc35kTo49999HCosts<20pct","MOE OwnerOHUHhInc35kTo49999HCosts<20pct","OwnerOHUHhInc35kTo49999HCosts20to29pct","MOE OwnerOHUHhInc35kTo49999HCosts20to29pct","OwnerOHUHhInc35kTo49999HCosts30pct","MOE OwnerOHUHhInc35kTo49999HCosts30pct","OwnerOHUHhInc50kTo74999","MOE OwnerOHUHhInc50kTo74999","OwnerOHUHhInc50kTo74999HCosts<20pct","MOE OwnerOHUHhInc50kTo74999HCosts<20pct","OwnerOHUHhInc50kTo74999HCosts20to29pct","MOE OwnerOHUHhInc50kTo74999HCosts20to29pct","OwnerOHUHhInc50kTo74999HCosts30pct","MOE OwnerOHUHhInc50kTo74999HCosts30pct","OwnerOHUHhInc>75000","MOE OwnerOHUHhInc>75000","OwnerOHUHhInc>75000HCosts<20pct","MOE OwnerOHUHhInc>75000HCosts<20pct","OwnerOHUHhInc>75000HCosts20to29pct","MOE OwnerOHUHhInc>75000HCosts20to29pct","OwnerOHUHhInc>75000HCosts30pct","MOE OwnerOHUHhInc>75000HCosts30pct","ZeroOrNegativeIncome","MOE ZeroOrNegativeIncome"]
[{"$f":"VLOOKUP(DropDownList!$A$47,CntyQuery!$A$53:$DN$64,A$1)","v":"Berlin"},747,96,23,17,24,16,0,11,14,22,0,11,15,13,0,11,9,9,6,8,0,11,27,34,95,50,43,31,85,39,61,31,98,33,34,26,46,35,47,21,53,35,24,14,13,20,0,11,30,27,null,null,null,null,138300,22517,"Estimate","Margin Of Error",747,96,159,50.990195135927848,113,44.944410108488462,94,30.413812651491099,178,67.623960250786851,81,47.127486671792717,14,12.529964086141668,22,17.029386365926403,37,24.041630560342615,40,35.071355833500363,63,123.69316876852982,40,119.27279656317278,63,48,0,114,124,67,27,20.273134932713294,97,62.425956140054431,61,41.315856520227193,63,51,0,114,87,57,49,123.664869708418,38,33.241540277189323,79,127.49117616525467,8,12,0,114,52,37,46,120.91732712891069,0,161.22034611053283,46,166.1836333698358]
[]
["Occupied Rental Housing Value"]
["NAME","RntrOccHU","MOE RntrOccHU","RntrOccHUwRent","MOE RntrOccHUwRent","ROHUGRent<100","MOE ROHUGRent<100","ROHUGRent100to149","MOE ROHUGRent100to149","ROHUGRent150to199","MOE ROHUGRent150to199","ROHUGRent200to249","MOE ROHUGRent200to249","ROHUGRent250to299","MOE ROHUGRent250to299","ROHUGRent300to349","MOE ROHUGRent300to349","ROHUGRent350to399","MOE ROHUGRent350to399","ROHUGRent400to449","MOE ROHUGRent400to449","ROHUGRent450to499","MOE ROHUGRent450to499","ROHUGRent500to549","MOE ROHUGRent500to549","ROHUGRent550to599","MOE ROHUGRent550to599","ROHUGRent600to649","MOE ROHUGRent600to649","ROHUGRent650to699","MOE ROHUGRent650to699","ROHUGRent700to749","MOE ROHUGRent700to749","ROHUGRent750to799","MOE ROHUGRent750to799","ROHUGRent800to899","MOE ROHUGRent800to899","ROHUGRent900to999","MOE ROHUGRent900to999","ROHUGRent1000to1249","MOE ROHUGRent1000to1249","ROHUGRent1250to1499","MOE ROHUGRent1250to1499","ROHUGRent1500to1999","MOE ROHUGRent1500to1999","ROHUGRent2000>","MOE ROHUGRent2000>","ROHUNoGRent","MOE ROHUNoGRent","MedianGrossRnt","MOE MedianGrossRnt","H73RenterOccHU","MOE H73RenterOccHU","H73ROHUHhInc<10k","MOE H73ROHUHhInc<10k","H73ROHUHhInc<10kRnt<20pct","MOE H73ROHUHhInc<10kRnt<20pct","H73ROHUHhInc<10kRnt20to25pct","MOE H73ROHUHhInc<10kRnt20to25pct","H73ROHUHhInc<10kRnt25to30pct","MOE H73ROHUHhInc<10kRnt25to30pct","H73ROHUHhInc<10kRnt30to35pct","MOE H73ROHUHhInc<10kRnt30to35pct","H73ROHUHhInc<10kRnt35to39.9","MOE H73ROHUHhInc<10kRnt35to39.9","H73ROHUHhInc<10kRnt40to49.9","MOE H73ROHUHhInc<10kRnt40to49.9","H73ROHUHhInc<10kRnt>50pct","MOE H73ROHUHhInc<10kRnt>50pct","H73ROHUHhInc<10kPctNotComput","MOE H73ROHUHhInc<10kPctNotComput","H73ROHUHhInc10to20k","MOE H73ROHUHhInc10to20k","H73ROHUHhInc10to20kRnt<20pct","MOE H73ROHUHhInc10to20kRnt<20pct","H73ROHUHhInc10to20kRnt20to25pct","MOE H73ROHUHhInc10to20kRnt20to25pct","H73ROHUHhInc10to20kRnt25to30pct","MOE H73ROHUHhInc10to20kRnt25to30pct","H73ROHUHhInc10to20kRnt30to35pct","MOE H73ROHUHhInc10to20kRnt30to35pct","H73ROHUHhInc10to20kRnt35to39.9","MOE H73ROHUHhInc10to20kRnt35to39.9","H73ROHUHhInc10to20kRnt40to49.9","MOE H73ROHUHhInc10to20kRnt40to49.9","H73ROHUHhInc10to20kRnt>50pct","MOE H73ROHUHhInc10to20kRnt>50pct","H73ROHUHhInc10to20kRntPctNC","MOE H73ROHUHhInc10to20kRntPctNC","H73ROHUHhInc20to34.9k","MOE H73ROHUHhInc20to34.9k","H73ROHUHhInc20to34.9kRnt<20pct","MOE H73ROHUHhInc20to34.9kRnt<20pct","H73ROHUHhInc20to34.9kRnt20to25pct","MOE H73ROHUHhInc20to34.9kRnt20to25pct","H73ROHUHhInc20to34.9kRnt25to30pct","MOE H73ROHUHhInc20to34.9kRnt25to30pct","H73ROHUHhInc20to34.9kRnt30to35pct","MOE H73ROHUHhInc20to34.9kRnt30to35pct","H73ROHUHhInc20to34.9kRnt35to39.9","MOE H73ROHUHhInc20to34.9kRnt35to39.9","H73ROHUHhInc20to34.9kRnt40to49.9","MOE H73ROHUHhInc20to34.9kRnt40to49.9","H73ROHUHhInc20to34.9kRnt>50pct","MOE H73ROHUHhInc20to34.9kRnt>50pct","H73ROHUHhInc20to34.9kRntPctNC","MOE H73ROHUHhInc20to34.9kRntPctNC","H73ROHUHhInc35to49.9k","MOE H73ROHUHhInc35to49.9k","H73ROHUHhInc35to49.9kRnt<20pct","MOE H73ROHUHhInc35to49.9kRnt<20pct","H73ROHUHhInc35to49.9kRnt20to25pct","MOE H73ROHUHhInc35to49.9kRnt20to25pct","H73ROHUHhInc35to49.9kRnt25to30pct","MOE H73ROHUHhInc35to49.9kRnt25to30pct","H73ROHUHhInc35to49.9kRnt30to35pct","MOE H73ROHUHhInc35to49.9kRnt30to35pct","H73ROHUHhInc35to49.9kRnt35to39.9","MOE H73ROHUHhInc35to49.9kRnt35to39.9","H73ROHUHhInc35to49.9kRnt40to49.9","MOE H73ROHUHhInc35to49.9kRnt40to49.9","H73ROHUHhInc35to49.9kRnt>50pct","MOE H73ROHUHhInc35to49.9kRnt>50pct","H73ROHUHhInc35to49.9kRntPctNC","MOE H73ROHUHhInc35to49.9kRntPctNC","H73ROHUHhInc50to74.9k","MOE H73ROHUHhInc50to74.9k","H73ROHUHhInc50to74.9kRnt<20pct","MOE H73ROHUHhInc50to74.9kRnt<20pct","H73ROHUHhInc50to74.9kRnt20to25pct","MOE H73ROHUHhInc50to74.9kRnt20to25pct","H73ROHUHhInc50to74.9kRnt25to30pct","MOE H73ROHUHhInc50to74.9kRnt25to30pct","H73ROHUHhInc50to74.9kRnt30to35pct","MOE H73ROHUHhInc50to74.9kRnt30to35pct","H73ROHUHhInc50to74.9kRnt35to39.9","MOE H73ROHUHhInc50to74.9kRnt35to39.9","H73ROHUHhInc50to74.9kRnt40to49.9","MOE H73ROHUHhInc50to74.9kRnt40to49.9","H73ROHUHhInc50to74.9kRnt>50pct","MOE H73ROHUHhInc50to74.9kRnt>50pct","H73ROHUHhInc50to74.9kRntPctNC","MOE H73ROHUHhInc50to74.9kRntPctNC","H73ROHUHhInc75to99.9k","MOE H73ROHUHhInc75to99.9k","H73ROHUHhInc75to99.9kRnt<20pct","MOE H73ROHUHhInc75to99.9kRnt<20pct","H73ROHUHhInc75to99.9kRnt20to25pct","MOE H73ROHUHhInc75to99.9kRnt20to25pct","H73ROHUHhInc75to99.9kRnt25to30pct","MOE H73ROHUHhInc75to99.9kRnt25to30pct","H73ROHUHhInc75to99.9kRnt30to35pct","MOE H73ROHUHhInc75to99.9kRnt30to35pct","H73ROHUHhInc75to99.9kRnt35to39.9","MOE H73ROHUHhInc75to99.9kRnt35to39.9","H73ROHUHhInc75to99.9kRnt40to49.9","MOE H73ROHUHhInc75to99.9kRnt40to49.9","H73ROHUHhInc75to99.9kRnt>50pct","MOE H73ROHUHhInc75to99.9kRnt>50pct","H73ROHUHhInc75to99.9kRntPctNC","MOE H73ROHUHhInc75to99.9kRntPctNC","H73ROHUHhInc>100k","MOE H73ROHUHhInc>100k","H73ROHUHhInc>100kRnt<20pct","MOE H73ROHUHhInc>100kRnt<20pct","H73ROHUHhInc>100kRnt20to25pct","MOE H73ROHUHhInc>100kRnt20to25pct","H73ROHUHhInc>100kRnt25to30pct","MOE H73ROHUHhInc>100kRnt25to30pct","H73ROHUHhInc>100kRnt30to35pct","MOE H73ROHUHhInc>100kRnt30to35pct","H73ROHUHhInc>100kRnt35to39.9","MOE H73ROHUHhInc>100kRnt35to39.9","H73ROHUHhInc>100kRnt40to49.9","MOE H73ROHUHhInc>100kRnt40to49.9","H73ROHUHhInc>100kRnt>50pct","MOE H73ROHUHhInc>100kRnt>50pct","H73ROHUHhInc>100kRntPctNC","MOE H73ROHUHhInc>100kRntPctNC"]
[{"$f":"VLOOKUP(DropDownList!$A$47,CntyQuery!$A$53:$DN$64,A$1)","v":"Berlin"},3001,266,2901,278,13,22,28,45,28,25,95,66,66,61,12,18,89,59,31,33,74,72,43,30,0,17,95,62,151,75,140,94,202,104,529,147,301,146,579,193,291,113,103,54,31,30,100,67,602,48,354,73,29,19,0,11,6,9,0,11,0,11,0,11,0,11,23,16,0,11,132,54,4,6,17,17,23,16,35,24,0,11,13,11,22,24,18,27,60,26,7,10,0,11,6,8,6,9,6,9,9,10,15,18,11,9,55,27,28,20,12,11,12,12,3,6,0,11,0,11,0,11,0,11,31,31,31,31,0,11,0,11,0,11,0,11,0,11,0,11,0,11,35,19,29,17,0,11,0,11,0,11,0,11,0,11,0,11,6,8,12,14,12,14,0,11,0,11,0,11,0,11,0,11,0,11,0,11]
[]
[]
[]
[]
[]
["Occupied Rental Housing Cost Burdern All Incomes"]
["NAME","RntrOccHU","MOE RntrOccHU","RntrOccHUwRent","MOE RntrOccHUwRent","ROHUGRent<100","MOE ROHUGRent<100","ROHUGRent100to149","MOE ROHUGRent100to149","ROHUGRent150to199","MOE ROHUGRent150to199","ROHUGRent200to249","MOE ROHUGRent200to249","ROHUGRent250to299","MOE ROHUGRent250to299","ROHUGRent300to349","MOE ROHUGRent300to349","ROHUGRent350to399","MOE ROHUGRent350to399","ROHUGRent400to449","MOE ROHUGRent400to449","ROHUGRent450to499","MOE ROHUGRent450to499","ROHUGRent500to549","MOE ROHUGRent500to549","ROHUGRent550to599","MOE ROHUGRent550to599","ROHUGRent600to649","MOE ROHUGRent600to649","ROHUGRent650to699","MOE ROHUGRent650to699","ROHUGRent700to749","MOE ROHUGRent700to749","ROHUGRent750to799","MOE ROHUGRent750to799","ROHUGRent800to899","MOE ROHUGRent800to899","ROHUGRent900to999","MOE ROHUGRent900to999","ROHUGRent1000to1249","MOE ROHUGRent1000to1249","ROHUGRent1250to1499","MOE ROHUGRent1250to1499","ROHUGRent1500to1999","MOE ROHUGRent1500to1999","ROHUGRent2000>","MOE ROHUGRent2000>","ROHUNoGRent","MOE ROHUNoGRent","MedianGrossRnt","MOE MedianGrossRnt","H73RenterOccHU","MOE H73RenterOccHU","H73ROHUHhInc<10k","MOE H73ROHUHhInc<10k","H73ROHUHhInc<10kRnt<20pct","MOE H73ROHUHhInc<10kRnt<20pct","H73ROHUHhInc<10kRnt20to25pct","MOE H73ROHUHhInc<10kRnt20to25pct","H73ROHUHhInc<10kRnt25to30pct","MOE H73ROHUHhInc<10kRnt25to30pct","H73ROHUHhInc<10kRnt30to35pct","MOE H73ROHUHhInc<10kRnt30to35pct","H73ROHUHhInc<10kRnt35to39.9","MOE H73ROHUHhInc<10kRnt35to39.9","H73ROHUHhInc<10kRnt40to49.9","MOE H73ROHUHhInc<10kRnt40to49.9","H73ROHUHhInc<10kRnt>50pct","MOE H73ROHUHhInc<10kRnt>50pct","H73ROHUHhInc<10kPctNotComput","MOE H73ROHUHhInc<10kPctNotComput","H73ROHUHhInc10to20k","MOE H73ROHUHhInc10to20k","H73ROHUHhInc10to20kRnt<20pct","MOE H73ROHUHhInc10to20kRnt<20pct","H73ROHUHhInc10to20kRnt20to25pct","MOE H73ROHUHhInc10to20kRnt20to25pct","H73ROHUHhInc10to20kRnt25to30pct","MOE H73ROHUHhInc10to20kRnt25to30pct","H73ROHUHhInc10to20kRnt30to35pct","MOE H73ROHUHhInc10to20kRnt30to35pct","H73ROHUHhInc10to20kRnt35to39.9","MOE H73ROHUHhInc10to20kRnt35to39.9","H73ROHUHhInc10to20kRnt40to49.9","MOE H73ROHUHhInc10to20kRnt40to49.9","H73ROHUHhInc10to20kRnt>50pct","MOE H73ROHUHhInc10to20kRnt>50pct","H73ROHUHhInc10to20kRntPctNC","MOE H73ROHUHhInc10to20kRntPctNC","H73ROHUHhInc20to34.9k","MOE H73ROHUHhInc20to34.9k","H73ROHUHhInc20to34.9kRnt<20pct","MOE H73ROHUHhInc20to34.9kRnt<20pct","H73ROHUHhInc20to34.9kRnt20to25pct","MOE H73ROHUHhInc20to34.9kRnt20to25pct","H73ROHUHhInc20to34.9kRnt25to30pct","MOE H73ROHUHhInc20to34.9kRnt25to30pct","H73ROHUHhInc20to34.9kRnt30to35pct","MOE H73ROHUHhInc20to34.9kRnt30to35pct","H73ROHUHhInc20to34.9kRnt35to39.9","MOE H73ROHUHhInc20to34.9kRnt35to39.9","H73ROHUHhInc20to34.9kRnt40to49.9","MOE H73ROHUHhInc20to34.9kRnt40to49.9","H73ROHUHhInc20to34.9kRnt>50pct","MOE H73ROHUHhInc20to34.9kRnt>50pct","H73ROHUHhInc20to34.9kRntPctNC","MOE H73ROHUHhInc20to34.9kRntPctNC","H73ROHUHhInc35to49.9k","MOE H73ROHUHhInc35to49.9k","H73ROHUHhInc35to49.9kRnt<20pct","MOE H73ROHUHhInc35to49.9kRnt<20pct","H73ROHUHhInc35to49.9kRnt20to25pct","MOE H73ROHUHhInc35to49.9kRnt20to25pct","H73ROHUHhInc35to49.9kRnt25to30pct","MOE H73ROHUHhInc35to49.9kRnt25to30pct","H73ROHUHhInc35to49.9kRnt30to35pct","MOE H73ROHUHhInc35to49.9kRnt30to35pct","H73ROHUHhInc35to49.9kRnt35to39.9","MOE H73ROHUHhInc35to49.9kRnt35to39.9","H73ROHUHhInc35to49.9kRnt40to49.9","MOE H73ROHUHhInc35to49.9kRnt40to49.9","H73ROHUHhInc35to49.9kRnt>50pct","MOE H73ROHUHhInc35to49.9kRnt>50pct","H73ROHUHhInc35to49.9kRntPctNC","MOE H73ROHUHhInc35to49.9kRntPctNC","H73ROHUHhInc50to74.9k","MOE H73ROHUHhInc50to74.9k","H73ROHUHhInc50to74.9kRnt<20pct","MOE H73ROHUHhInc50to74.9kRnt<20pct","H73ROHUHhInc50to74.9kRnt20to25pct","MOE H73ROHUHhInc50to74.9kRnt20to25pct","H73ROHUHhInc50to74.9kRnt25to30pct","MOE H73ROHUHhInc50to74.9kRnt25to30pct","H73ROHUHhInc50to74.9kRnt30to35pct","MOE H73ROHUHhInc50to74.9kRnt30to35pct","H73ROHUHhInc50to74.9kRnt35to39.9","MOE H73ROHUHhInc50to74.9kRnt35to39.9","H73ROHUHhInc50to74.9kRnt40to49.9","MOE H73ROHUHhInc50to74.9kRnt40to49.9","H73ROHUHhInc50to74.9kRnt>50pct","MOE H73ROHUHhInc50to74.9kRnt>50pct","H73ROHUHhInc50to74.9kRntPctNC","MOE H73ROHUHhInc50to74.9kRntPctNC","H73ROHUHhInc75to99.9k","MOE H73ROHUHhInc75to99.9k","H73ROHUHhInc75to99.9kRnt<20pct","MOE H73ROHUHhInc75to99.9kRnt<20pct","H73ROHUHhInc75to99.9kRnt20to25pct","MOE H73ROHUHhInc75to99.9kRnt20to25pct","H73ROHUHhInc75to99.9kRnt25to30pct","MOE H73ROHUHhInc75to99.9kRnt25to30pct","H73ROHUHhInc75to99.9kRnt30to35pct","MOE H73ROHUHhInc75to99.9kRnt30to35pct","H73ROHUHhInc75to99.9kRnt35to39.9","MOE H73ROHUHhInc75to99.9kRnt35to39.9","H73ROHUHhInc75to99.9kRnt40to49.9","MOE H73ROHUHhInc75to99.9kRnt40to49.9","H73ROHUHhInc75to99.9kRnt>50pct","MOE H73ROHUHhInc75to99.9kRnt>50pct","H73ROHUHhInc75to99.9kRntPctNC","MOE H73ROHUHhInc75to99.9kRntPctNC","H73ROHUHhInc>100k","MOE H73ROHUHhInc>100k","H73ROHUHhInc>100kRnt<20pct","MOE H73ROHUHhInc>100kRnt<20pct","H73ROHUHhInc>100kRnt20to25pct","MOE H73ROHUHhInc>100kRnt20to25pct","H73ROHUHhInc>100kRnt25to30pct","MOE H73ROHUHhInc>100kRnt25to30pct","H73ROHUHhInc>100kRnt30to35pct","MOE H73ROHUHhInc>100kRnt30to35pct","H73ROHUHhInc>100kRnt35to39.9","MOE H73ROHUHhInc>100kRnt35to39.9","H73ROHUHhInc>100kRnt40to49.9","MOE H73ROHUHhInc>100kRnt40to49.9","H73ROHUHhInc>100kRnt>50pct","MOE H73ROHUHhInc>100kRnt>50pct","H73ROHUHhInc>100kRntPctNC","MOE H73ROHUHhInc>100kRntPctNC"]
[{"$f":"VLOOKUP(DropDownList!$A$47,CntyQuery!$A$53:$DN$64,A$1)","v":"Berlin"},354,73,111,44.395945760846224,35,21,41,17,187,51.97114584074513,132,50.099900199501398,44,27,231,58.566201857385288,88,42.201895692018383,60,38,35,30]
[]
["Income By Household Type and Tenure"]
["NAME","TotalFamilyHouseholds",{"$f":"\"MOE \"&B159","v":"MOE TotalFamilyHouseholds"},"FamInc<10K",{"$f":"\"MOE \"&D159","v":"MOE FamInc<10K"},"FamInc10to15K",{"$f":"\"MOE \"&F159","v":"MOE FamInc10to15K"},"FamInc15to20K",{"$f":"\"MOE \"&H159","v":"MOE FamInc15to20K"},"FamInc20to25K",{"$f":"\"MOE \"&J159","v":"MOE FamInc20to25K"},"FamInc25to30K",{"$f":"\"MOE \"&L159","v":"MOE FamInc25to30K"},"FamInc30to35K",{"$f":"\"MOE \"&N159","v":"MOE FamInc30to35K"},"FamInc35to40K",{"$f":"\"MOE \"&P159","v":"MOE FamInc35to40K"},"FamInc40to45K",{"$f":"\"MOE \"&R159","v":"MOE FamInc40to45K"},"FamInc45to50K",{"$f":"\"MOE \"&T159","v":"MOE FamInc45to50K"},"FamInc50to60K",{"$f":"\"MOE \"&V159","v":"MOE FamInc50to60K"},"FamInc60to75K",{"$f":"\"MOE \"&X159","v":"MOE FamInc60to75K"},"FamInc75to100K",{"$f":"\"MOE \"&Z159","v":"MOE FamInc75to100K"},"FamInc100to125K",{"$f":"\"MOE \"&AB159","v":"MOE FamInc100to125K"},"FamInc125to150K",{"$f":"\"MOE \"&AD159","v":"MOE FamInc125to150K"},"FamInc150to200K",{"$f":"\"MOE \"&AF159","v":"MOE FamInc150to200K"},"FamInc>200K",{"$f":"\"MOE \"&AH159","v":"MOE FamInc>200K"},"MedFamInc",{"$f":"\"MOE \"&AJ159","v":"MOE MedFamInc"},"TotalNonNonFamilyHouseholds",{"$f":"\"MOE \"&AL159","v":"MOE TotalNonNonFamilyHouseholds"},"NonFamInc<10K",{"$f":"\"MOE \"&AN159","v":"MOE NonFamInc<10K"},"NonFamInc10to15K",{"$f":"\"MOE \"&AP159","v":"MOE NonFamInc10to15K"},"NonFamInc15to20K",{"$f":"\"MOE \"&AR159","v":"MOE NonFamInc15to20K"},"NonFamInc20to25K",{"$f":"\"MOE \"&AT159","v":"MOE NonFamInc20to25K"},"NonFamInc25to30K",{"$f":"\"MOE \"&AV159","v":"MOE NonFamInc25to30K"},"NonFamInc30to35K",{"$f":"\"MOE \"&AX159","v":"MOE NonFamInc30to35K"},"NonFamInc35to40K",{"$f":"\"MOE \"&AZ159","v":"MOE NonFamInc35to40K"},"NonFamInc40to45K",{"$f":"\"MOE \"&BB159","v":"MOE NonFamInc40to45K"},"NonFamInc45to50K",{"$f":"\"MOE \"&BD159","v":"MOE NonFamInc45to50K"},"NonFamInc50to60K",{"$f":"\"MOE \"&BF159","v":"MOE NonFamInc50to60K"},"NonFamInc60to75K",{"$f":"\"MOE \"&BH159","v":"MOE NonFamInc60to75K"},"NonFamInc75to100K",{"$f":"\"MOE \"&BJ159","v":"MOE NonFamInc75to100K"},"NonFamInc100to125K",{"$f":"\"MOE \"&BL159","v":"MOE NonFamInc100to125K"},"NonFamInc125to150K",{"$f":"\"MOE \"&BN159","v":"MOE NonFamInc125to150K"},"NonFamInc150to200K",{"$f":"\"MOE \"&BP159","v":"MOE NonFamInc150to200K"},"NonFamInc>200K",{"$f":"\"MOE \"&BR159","v":"MOE NonFamInc>200K"},"MedNonFamInc",{"$f":"\"MOE \"&BT159","v":"MOE MedNonFamInc"}]
[{"$f":"VLOOKUP(DropDownList!$A$47,CntyQuery!$A$53:$DN$64,A$1)","v":"Berlin"},2536,223,157,74,140,73,124,65,167,86,133,79,191,74,110,72,149,55,114,55,227,85,314,75,333,90,200,59,58,41,30,32,89,53,49375,5428,1649,264,243,103,350,109,191,90,163,68,85,42,164,66,103,54,34,27,30,22,120,67,42,33,91,43,11,29,12,19,10,17,0,15,null,null,21511,4331]

{"sheet":"CntyDataLinkPrior10YearEstimate","index":17,"n_rows":160,"n_cols":183,"rows_kept":160,"cut":false,"hidden":true,"merged":[]}
[1,{"$f":"A1+1","v":2},3,4,5,6,7,8,9,10,11,12,13,14,15,16,17,18,19,20,21,22,23,24,25,26,27,28,29,30,31,32,33,34,35,36,37,38,39,40,41,42,43,44,45,46,47,48,49,50,51,52,53,54,55,56,57,58,59,60,61,62,63,64,65,{"$f":"BM1+1","v":66},67,68,69,70,71,72,73,74,75,76,77,78,79,80,81,82,83,84,85,86,87,88,89,90,91,92,93,94,95,96,97,98,99,100,101,102,103,104,105,106,107,108,109,110,111,112,113,114,115,116,117,118,119,120,121,122,123,124,125,126,127,128,129,{"$f":"DY1+1","v":130},131,132,133,134,135,136,137,138,139,140,141,142,143,144,145,146,147,148,149,150,151,152,153,154,155,156,157,158,159,160,161,162,163,164,165,166,167,168,169,170,171,172,173,174,175,176,177,178,179,180,181,182,183]
[]
[]
[]
[]
[]
[]
[]
[]
[]
[]
[]
[]
[]
[]
[]
[]
[]
[]
[]
[]
[]
[]
[]
[]
[]
[]
[]
[]
[]
[]
[]
[]
[]
[]
[]
[]
[]
[]
[]
[]
[]
[]
[]
[]
[]
[]
[]
[]
[]
[]
[]
[]
[]
[]
[]
[]
[]
[]
[]
[]
[]
[]
[]
[]
[]
[]
[]
[]
[]
[]
[]
[]
[]
[]
[]
[]
[]
[]
[]
[]
[]
[]
[]
[]
[]
[]
[]
[]
[]
[]
[]
[]
[]
[]
[]
[]
[]
[]
[]
[]
[]
[]
[]
["ACS",2,{"$f":"B105+1","v":3},{"$f":"C105+1","v":4},5,6,7,8,9,10,11,{"$f":"K105+1","v":12},13,14,15,{"$f":"O105+1","v":16},17,18,19,20,21,22,23,24,25,26,27,28,29,30,31,32,33,34,35,36,37,38,39,40,41,42,43,44,45,46,47,48,49,50,51,52,53,54,55,56,57,58,59,60,61,62,63,64,65,66,67,{"$f":"BO105+1","v":68},69,70,71,72,73,74,75,76,77,78,79,80,81,82,83,84,85,86,87,88,89,90,91,92,93,94,95,96,97,98,99,100,101,102,103,104,105,106,107,108,109,110,111,112,113,114,115,116,117,118,119,120,121,122,123,124,125]
["Househould Data (Housing Unit Type)"]
["NAME","TotalHU",{"$f":"\"MOE \"&B107","v":"MOE TotalHU"},"TotalOccHU",{"$f":"\"MOE \"&D107","v":"MOE TotalOccHU"},"TotalOwnerOccUn",{"$f":"\"MOE \"&F107","v":"MOE TotalOwnerOccUn"},"TotalRenterOccn",{"$f":"\"MOE \"&H107","v":"MOE TotalRenterOccn"},"TotalVacantUntis",{"$f":"\"MOE \"&J107","v":"MOE TotalVacantUntis"},"VacantUnitsForRent",{"$f":"\"MOE \"&L107","v":"MOE VacantUnitsForRent"},"VacantUnitRentedNotOcc",{"$f":"\"MOE \"&N107","v":"MOE VacantUnitRentedNotOcc"},"VacantUnitForSale",{"$f":"\"MOE \"&P107","v":"MOE VacantUnitForSale"},"VacantUnitSoldNotOcc",{"$f":"\"MOE \"&R107","v":"MOE VacantUnitSoldNotOcc"},"VacantUnitSeasonalRec",{"$f":"\"MOE \"&T107","v":"MOE VacantUnitSeasonalRec"},"TotalPopInHousingUnits",{"$f":"\"MOE \"&V107","v":"MOE TotalPopInHousingUnits"},"OwnerOccPopHousingUnits",{"$f":"\"MOE \"&X107","v":"MOE OwnerOccPopHousingUnits"},"RenterOccPopHousingUnits",{"$f":"\"MOE \"&Z107","v":"MOE RenterOccPopHousingUnits"},"TotalUntis",{"$f":"\"MOE \"&AB107","v":"MOE TotalUntis"},"TotalOwnerOccUnits",{"$f":"\"MOE \"&AD107","v":"MOE TotalOwnerOccUnits"},"SigFamOwnerOcc",{"$f":"\"MOE \"&AF107","v":"MOE SigFamOwnerOcc"},"MultiFamOwnerOcc",{"$f":"\"MOE \"&AH107","v":"MOE MultiFamOwnerOcc"},"MobileOwnerOcc",{"$f":"\"MOE \"&AJ107","v":"MOE MobileOwnerOcc"},"TotalRenterOccUnits",{"$f":"\"MOE \"&AL107","v":"MOE TotalRenterOccUnits"},"SigFamRenterOcc",{"$f":"\"MOE \"&AN107","v":"MOE SigFamRenterOcc"},"MultiFamRenterOcc",{"$f":"\"MOE \"&AP107","v":"MOE MultiFamRenterOcc"},"MobileRenterOcc",{"$f":"\"MOE \"&AR107","v":"MOE MobileRenterOcc"},"TotalSigFamilyUnits",{"$f":"\"MOE \"&AT107","v":"MOE TotalSigFamilyUnits"},"TotalMultiFamilyUnits",{"$f":"\"MOE \"&AV107","v":"MOE TotalMultiFamilyUnits"},"TotalMobileUnits",{"$f":"\"MOE \"&AX107","v":"MOE TotalMobileUnits"},"YrHouseBuilt2005Later",{"$f":"\"MOE \"&AZ107","v":"MOE YrHouseBuilt2005Later"},"YrHouseBuilt2000-2004",{"$f":"\"MOE \"&BB107","v":"MOE YrHouseBuilt2000-2004"},"YrHouseBuilt1990-1999",{"$f":"\"MOE \"&BD107","v":"MOE YrHouseBuilt1990-1999"},"YrHouseBuilt1980-1989",{"$f":"\"MOE \"&BF107","v":"MOE YrHouseBuilt1980-1989"},"YrHouseBuilt1970-1979",{"$f":"\"MOE \"&BH107","v":"MOE YrHouseBuilt1970-1979"},"YrHouseBuilt1960-1969",{"$f":"\"MOE \"&BJ107","v":"MOE YrHouseBuilt1960-1969"},"YrHouseBuilt1950-1959",{"$f":"\"MOE \"&BL107","v":"MOE YrHouseBuilt1950-1959"},"YrHouseBuilt1940-1949",{"$f":"\"MOE \"&BN107","v":"MOE YrHouseBuilt1940-1949"},"YrHouseBuilt1939orEarlier",{"$f":"\"MOE \"&BP107","v":"MOE YrHouseBuilt1939orEarlier"},"NoBedrooms",{"$f":"\"MOE \"&BR107","v":"MOE NoBedrooms"},"1Bedroom",{"$f":"\"MOE \"&BT107","v":"MOE 1Bedroom"},"2Bedroom",{"$f":"\"MOE \"&BV107","v":"MOE 2Bedroom"},"3Bedroom",{"$f":"\"MOE \"&BX107","v":"MOE 3Bedroom"},"4+Bedroom",{"$f":"\"MOE \"&BZ107","v":"MOE 4+Bedroom"}]
[{"$f":"VLOOKUP(DropDownList!$A$47,CntyQuery!$A$53:$DN$64,A$1)","v":"Berlin"},4839,334,4227,382,2703,276,1524,246,612,193,91,68,0,114,119,96,27,42,96,72,8705,526,5854,576,2851,469,4227,382,2703,276,2322,237,348,278.46723326093502,33,116.49892703368559,1524,246,117,81,1396,231.79516819813134,11,115.26057435220423,2644,221,2151,289.2611277029805,44,118.96217886370441,28,26,19,21,49,36,126,60,342,104,158,83,597,112,582,136,2938,290,41,39,614,173,1512,222,1800,216,872,171.73234989366446]
[]
["Disability Data"]
["NAME","TotalPop",{"$f":"\"MOE \"&B111","v":"MOE TotalPop"},"PopUnder 5 years:",{"$f":"\"MOE \"&D111","v":"MOE PopUnder 5 years:"},{"$f":"D$111&\"-WithDisability\"","v":"PopUnder 5 years:-WithDisability"},{"$f":"\"MOE \"&F111","v":"MOE PopUnder 5 years:-WithDisability"},{"$f":"D111&\"-NoDisability\"","v":"PopUnder 5 years:-NoDisability"},{"$f":"\"MOE \"&H111","v":"MOE PopUnder 5 years:-NoDisability"},"PopUnder 5 to 17years:",{"$f":"\"MOE \"&J111","v":"MOE PopUnder 5 to 17years:"},{"$f":"J$111&\"-WithDisability\"","v":"PopUnder 5 to 17years:-WithDisability"},{"$f":"\"MOE \"&L111","v":"MOE PopUnder 5 to 17years:-WithDisability"},{"$f":"J111&\"-NoDisability\"","v":"PopUnder 5 to 17years:-NoDisability"},{"$f":"\"MOE \"&N111","v":"MOE PopUnder 5 to 17years:-NoDisability"},"PopUnder 18 to 34 years:",{"$f":"\"MOE \"&P111","v":"MOE PopUnder 18 to 34 years:"},{"$f":"P$111&\"-WithDisability\"","v":"PopUnder 18 to 34 years:-WithDisability"},{"$f":"\"MOE \"&R111","v":"MOE PopUnder 18 to 34 years:-WithDisability"},{"$f":"P111&\"-NoDisability\"","v":"PopUnder 18 to 34 years:-NoDisability"},{"$f":"\"MOE \"&T111","v":"MOE PopUnder 18 to 34 years:-NoDisability"},"Pop 35 years to 64:",{"$f":"\"MOE \"&V111","v":"MOE Pop 35 years to 64:"},{"$f":"$V$111&\"-WithDisability\"","v":"Pop 35 years to 64:-WithDisability"},{"$f":"\"MOE \"&X111","v":"MOE Pop 35 years to 64:-WithDisability"},{"$f":"$V$111&\"-NoDisability\"","v":"Pop 35 years to 64:-NoDisability"},{"$f":"\"MOE \"&Z111","v":"MOE Pop 35 years to 64:-NoDisability"},"Pop 65 years to 74:",{"$f":"\"MOE \"&AB111","v":"MOE Pop 65 years to 74:"},{"$f":"$AB$111&\"-WithDisability\"","v":"Pop 65 years to 74:-WithDisability"},{"$f":"\"MOE \"&AD111","v":"MOE Pop 65 years to 74:-WithDisability"},{"$f":"$AB$111&\"-NoDisability\"","v":"Pop 65 years to 74:-NoDisability"},{"$f":"\"MOE \"&AF111","v":"MOE Pop 65 years to 74:-NoDisability"},"Pop 75 and older:",{"$f":"\"MOE \"&AH111","v":"MOE Pop 75 and older:"},{"$f":"$AH$111&\"-WithDisability\"","v":"Pop 75 and older:-WithDisability"},{"$f":"\"MOE \"&AJ111","v":"MOE Pop 75 and older:-WithDisability"},{"$f":"$AH$111&\"-NoDisability\"","v":"Pop 75 and older:-NoDisability"},{"$f":"\"MOE \"&AL111","v":"MOE Pop 75 and older:-NoDisability"},"TotalPopUnder5_HearingDisability",{"$f":"\"MOE \"&AN111","v":"MOE TotalPopUnder5_HearingDisability"},"TotalUnder5_HearingDisability",{"$f":"\"MOE \"&AP111","v":"MOE TotalUnder5_HearingDisability"},"TotalPop18To34_HearingDisability",{"$f":"\"MOE \"&AR111","v":"MOE TotalPop18To34_HearingDisability"},"TotalPop35To64_HearingDisability",{"$f":"\"MOE \"&AT111","v":"MOE TotalPop35To64_HearingDisability"},"TotalPop65To74_HearingDisability",{"$f":"\"MOE \"&AV111","v":"MOE TotalPop65To74_HearingDisability"},"TotalPop75andOlder_HearingDisability",{"$f":"\"MOE \"&AX111","v":"MOE TotalPop75andOlder_HearingDisability"},"TotalUnder5_VisionDisability",{"$f":"\"MOE \"&AZ111","v":"MOE TotalUnder5_VisionDisability"},"Total5To17_VisionDisability",{"$f":"\"MOE \"&BB111","v":"MOE Total5To17_VisionDisability"},"Total18To34_VisionDisability",{"$f":"\"MOE \"&BD111","v":"MOE Total18To34_VisionDisability"},"Total35To64_VisionDisability",{"$f":"\"MOE \"&BF111","v":"MOE Total35To64_VisionDisability"},"Total65To74_VisionDisability",{"$f":"\"MOE \"&BH111","v":"MOE Total65To74_VisionDisability"},"Total75andOlder_VisionDisability",{"$f":"\"MOE \"&BJ111","v":"MOE Total75andOlder_VisionDisability"},"Total5To17_CongnitiveDisability",{"$f":"\"MOE \"&BL111","v":"MOE Total5To17_CongnitiveDisability"},"Total18To34_CongnitiveDisability",{"$f":"\"MOE \"&BN111","v":"MOE Total18To34_CongnitiveDisability"},"Total35To64_CongnitiveDisability",{"$f":"\"MOE \"&BP111","v":"MOE Total35To64_CongnitiveDisability"},"Total65To74_CongnitiveDisability",{"$f":"\"MOE \"&BR111","v":"MOE Total65To74_CongnitiveDisability"},"Total75andOlder_CongnitiveDisability",{"$f":"\"MOE \"&BT111","v":"MOE Total75andOlder_CongnitiveDisability"},"Total5To17_AmbulatoryDisability",{"$f":"\"MOE \"&BV111","v":"MOE Total5To17_AmbulatoryDisability"},"Total18To34_AmbulatoryDisability",{"$f":"\"MOE \"&BX111","v":"MOE Total18To34_AmbulatoryDisability"},"Total35To64_AmbulatoryDisability",{"$f":"\"MOE \"&BZ111","v":"MOE Total35To64_AmbulatoryDisability"},"Total65To74_AmbulatoryDisability",{"$f":"\"MOE \"&CB111","v":"MOE Total65To74_AmbulatoryDisability"},"Total75andOlder_AmbulatoryDisability",{"$f":"\"MOE \"&CD111","v":"MOE Total75andOlder_AmbulatoryDisability"},"Total5To17_SelfCareDisability",{"$f":"\"MOE \"&CF111","v":"MOE Total5To17_SelfCareDisability"},"Total18To34_SelfCareDisability",{"$f":"\"MOE \"&CH111","v":"MOE Total18To34_SelfCareDisability"},"Total35To64_SelfCareDisability",{"$f":"\"MOE \"&CJ111","v":"MOE Total35To64_SelfCareDisability"},"Total65To74_SelfCareDisability",{"$f":"\"MOE \"&CL111","v":"MOE Total65To74_SelfCareDisability"},"Total75andOlder_SelfCareDisability",{"$f":"\"MOE \"&CN111","v":"MOE Total75andOlder_SelfCareDisability"},"Total18To34_IndependantLivingDisability",{"$f":"\"MOE \"&CP111","v":"MOE Total18To34_IndependantLivingDisability"},"Total35To64_IndependantLivingDisability",{"$f":"\"MOE \"&CR111","v":"MOE Total35To64_IndependantLivingDisability"},"Total65To74_IndependantLivingDisability",{"$f":"\"MOE \"&CT111","v":"MOE Total65To74_IndependantLivingDisability"},"Total75andOlder_IndependantLivingDisability",{"$f":"\"MOE \"&CV111","v":"MOE Total75andOlder_IndependantLivingDisability"},"TotalUnder18_OneDisability",{"$f":"\"MOE \"&CX111","v":"MOE TotalUnder18_OneDisability"},"TotalUnder18_TwoDisability",{"$f":"\"MOE \"&CZ111","v":"MOE TotalUnder18_TwoDisability"},"18to6YearWIthOneDisability",{"$f":"\"MOE \"&DB111","v":"MOE 18to6YearWIthOneDisability"},"18to64YearWIthTwoOrMoreDisability",{"$f":"\"MOE \"&DD111","v":"MOE 18to64YearWIthTwoOrMoreDisability"},"Over64YearsWIthOneDisability",{"$f":"\"MOE \"&DF111","v":"MOE Over64YearsWIthOneDisability"},"Over64YearsWIthTwoOrMoreDisability",{"$f":"\"MOE \"&DH111","v":"MOE Over64YearsWIthTwoOrMoreDisability"}]
[{"$f":"VLOOKUP(DropDownList!$A$47,CntyQuery!$A$53:$DN$64,A$1)","v":"Berlin"},15560,162,821,200.38463014912097,0,24.041630560342615,821,200.38463014912097,2491,337.61516553614706,219,110.78808600206071,2272,327.80024405115989,2819,239.71858501167571,204,108.40664186294121,2615,246.86838598735156,6912,291.41379514360676,1141,214.26385602802915,5771,335.08954027244715,1341,169.07099100673656,371,116,970,136.4734406395618,1176,134.97036711811967,424,99.478640923567099,752,131.36970731489052,0,24.041630560342615,8,20.808652046684813,12,25.495097567963924,128,51.894122981316485,117,65.299310869258036,208,69.656299069071991,0,24.041630560342615,9,12.727922061357855,0,24.041630560342615,160,64.202803677098089,24,27.802877548915689,141,61.057350089894989,211,110.78808600206071,106,68.410525505948286,409,120.21647141718975,101,61.032778078668514,94,50.566787519082126,0,24.041630560342615,139,93.941471140279674,610,182.03571078225283,238,85.586213843118443,247,78.447434629820748,8,20.808652046684813,67,64.140470843298303,180,99.297532698451278,34,29.529646120466801,75,43.657759905886145,97,72.346388990743691,475,153.71727293964071,68,59.033888572581766,222,76.53757247260981,229,118,8,14,492,142,794,224,342,87,464,122]
[]
["Househould Income By Age"]
["NAME","TotalHouseholds",{"$f":"\"MOE \"&B115","v":"MOE TotalHouseholds"},"HHInc<10K",{"$f":"\"MOE \"&D115","v":"MOE HHInc<10K"},"HHInc10to15K",{"$f":"\"MOE \"&F115","v":"MOE HHInc10to15K"},"HHInc15to20K",{"$f":"\"MOE \"&H115","v":"MOE HHInc15to20K"},"HHInc20to25K",{"$f":"\"MOE \"&J115","v":"MOE HHInc20to25K"},"HHInc25to30K",{"$f":"\"MOE \"&L115","v":"MOE HHInc25to30K"},"HHInc30to35K",{"$f":"\"MOE \"&N115","v":"MOE HHInc30to35K"},"HHInc35to40K",{"$f":"\"MOE \"&P115","v":"MOE HHInc35to40K"},"HHInc40to45K",{"$f":"\"MOE \"&R115","v":"MOE HHInc40to45K"},"HHInc45to50K",{"$f":"\"MOE \"&T115","v":"MOE HHInc45to50K"},"HHInc50to60K",{"$f":"\"MOE \"&V115","v":"MOE HHInc50to60K"},"HHInc60to75K",{"$f":"\"MOE \"&X115","v":"MOE HHInc60to75K"},"HHInc75to100K",{"$f":"\"MOE \"&Z115","v":"MOE HHInc75to100K"},"HHInc100to125K",{"$f":"\"MOE \"&AB115","v":"MOE HHInc100to125K"},"HHInc125to150K",{"$f":"\"MOE \"&AD115","v":"MOE HHInc125to150K"},"HHInc150to200K",{"$f":"\"MOE \"&AF115","v":"MOE HHInc150to200K"},"HHInc>200K",{"$f":"\"MOE \"&AH115","v":"MOE HHInc>200K"},"TotalHH",{"$f":"\"MOE \"&AJ115","v":"MOE TotalHH"},"HHAgeHHUnder25yrs",{"$f":"\"MOE \"&AL115","v":"MOE HHAgeHHUnder25yrs"},"HHAgeHH<25HHInc<10K",{"$f":"\"MOE \"&AN115","v":"MOE HHAgeHH<25HHInc<10K"},"HHAgeHH<25HHInc10to15K",{"$f":"\"MOE \"&AP115","v":"MOE HHAgeHH<25HHInc10to15K"},"HHAgeHH<25HHInc15to20K",{"$f":"\"MOE \"&AR115","v":"MOE HHAgeHH<25HHInc15to20K"},"HHAgeHH<25HHInc20to25K",{"$f":"\"MOE \"&AT115","v":"MOE HHAgeHH<25HHInc20to25K"},"HHAgeHH<25HHInc25to30K",{"$f":"\"MOE \"&AV115","v":"MOE HHAgeHH<25HHInc25to30K"},"HHAgeHH<25HHInc30to35K",{"$f":"\"MOE \"&AX115","v":"MOE HHAgeHH<25HHInc30to35K"},"HHAgeHH<25HHInc35to40K",{"$f":"\"MOE \"&AZ115","v":"MOE HHAgeHH<25HHInc35to40K"},"HHAgeHH<25HHInc40to45K",{"$f":"\"MOE \"&BB115","v":"MOE HHAgeHH<25HHInc40to45K"},"HHAgeHH<25HHInc45to50K",{"$f":"\"MOE \"&BD115","v":"MOE HHAgeHH<25HHInc45to50K"},"HHAgeHH<25HHInc50to60K",{"$f":"\"MOE \"&BF115","v":"MOE HHAgeHH<25HHInc50to60K"},"HHAgeHH<25HHInc60to75K",{"$f":"\"MOE \"&BH115","v":"MOE HHAgeHH<25HHInc60to75K"},"HHAgeHH<25HHInc75to100K",{"$f":"\"MOE \"&BJ115","v":"MOE HHAgeHH<25HHInc75to100K"},"HHAgeHH<25HHInc100to125K",{"$f":"\"MOE \"&BL115","v":"MOE HHAgeHH<25HHInc100to125K"},"HHAgeHH<25HHInc125to150K",{"$f":"\"MOE \"&BN115","v":"MOE HHAgeHH<25HHInc125to150K"},"HHAgeHH<25HHInc150to200K",{"$f":"\"MOE \"&BP115","v":"MOE HHAgeHH<25HHInc150to200K"},"HHAge<25HHInc>200K",{"$f":"\"MOE \"&BR115","v":"MOE HHAge<25HHInc>200K"},"HHAgeHH25to44yrs",{"$f":"\"MOE \"&BT115","v":"MOE HHAgeHH25to44yrs"},"HHAgeHH25To44yrsHHInc<10K",{"$f":"\"MOE \"&BV115","v":"MOE HHAgeHH25To44yrsHHInc<10K"},"HHAgeHH25To44yrsHHInc10to15K",{"$f":"\"MOE \"&BX115","v":"MOE HHAgeHH25To44yrsHHInc10to15K"},"HHAgeHH25To44yrsHHInc15to20K",{"$f":"\"MOE \"&BZ115","v":"MOE HHAgeHH25To44yrsHHInc15to20K"},"HHAgeHH25To44yrsHHInc20to25K",{"$f":"\"MOE \"&CB115","v":"MOE HHAgeHH25To44yrsHHInc20to25K"},"HHAgeHH25To44yrsHHInc25to30K",{"$f":"\"MOE \"&CD115","v":"MOE HHAgeHH25To44yrsHHInc25to30K"},"HHAgeHH25To44yrsHHInc30to35K",{"$f":"\"MOE \"&CF115","v":"MOE HHAgeHH25To44yrsHHInc30to35K"},"HHAgeHH25To44yrsHHInc35to40K",{"$f":"\"MOE \"&CH115","v":"MOE HHAgeHH25To44yrsHHInc35to40K"},"HHAgeHH25To44yrsHHInc40to45K",{"$f":"\"MOE \"&CJ115","v":"MOE HHAgeHH25To44yrsHHInc40to45K"},"HHAgeHH25To44yrsHHInc45to50K",{"$f":"\"MOE \"&CL115","v":"MOE HHAgeHH25To44yrsHHInc45to50K"},"HHAgeHH25To44yrsHHInc50to60K",{"$f":"\"MOE \"&CN115","v":"MOE HHAgeHH25To44yrsHHInc50to60K"},"HHAgeHH25To44yrsHHInc60to75K",{"$f":"\"MOE \"&CP115","v":"MOE HHAgeHH25To44yrsHHInc60to75K"},"HHAgeHH25To44yrsHHInc75to100K",{"$f":"\"MOE \"&CR115","v":"MOE HHAgeHH25To44yrsHHInc75to100K"},"HHAgeHH25To44yrsHHInc100to125K",{"$f":"\"MOE \"&CT115","v":"MOE HHAgeHH25To44yrsHHInc100to125K"},"HHAgeHH25To44yrsHHInc125to150K",{"$f":"\"MOE \"&CV115","v":"MOE HHAgeHH25To44yrsHHInc125to150K"},"HHAgeHH25To44yrsHHInc150to200K",{"$f":"\"MOE \"&CX115","v":"MOE HHAgeHH25To44yrsHHInc150to200K"},"HHAge25To44yrsHHInc>200K",{"$f":"\"MOE \"&CZ115","v":"MOE HHAge25To44yrsHHInc>200K"},"HHAgeHH45To64yrs",{"$f":"\"MOE \"&DB115","v":"MOE HHAgeHH45To64yrs"},"HHAgeHH45To64yrsHHInc<10K",{"$f":"\"MOE \"&DD115","v":"MOE HHAgeHH45To64yrsHHInc<10K"},"HHAgeHH45To64yrsHHInc10to15K",{"$f":"\"MOE \"&DF115","v":"MOE HHAgeHH45To64yrsHHInc10to15K"},"HHAgeHH45To64yrsHHInc15to20K",{"$f":"\"MOE \"&DH115","v":"MOE HHAgeHH45To64yrsHHInc15to20K"},"HHAgeHH45To64yrsHHInc20to25K",{"$f":"\"MOE \"&DJ115","v":"MOE HHAgeHH45To64yrsHHInc20to25K"},"HHAgeHH45To64yrsHHInc25to30K",{"$f":"\"MOE \"&DL115","v":"MOE HHAgeHH45To64yrsHHInc25to30K"},"HHAgeHH45To64yrsHHInc30to35K",{"$f":"\"MOE \"&DN115","v":"MOE HHAgeHH45To64yrsHHInc30to35K"},"HHAgeHH45To64yrsHHInc35to40K",{"$f":"\"MOE \"&DP115","v":"MOE HHAgeHH45To64yrsHHInc35to40K"},"HHAgeHH45To64yrsHHInc40to45K",{"$f":"\"MOE \"&DR115","v":"MOE HHAgeHH45To64yrsHHInc40to45K"},"HHAgeHH45To64yrsHHInc45to50K",{"$f":"\"MOE \"&DT115","v":"MOE HHAgeHH45To64yrsHHInc45to50K"},"HHAgeHH45To64yrsHHInc50to60K",{"$f":"\"MOE \"&DV115","v":"MOE HHAgeHH45To64yrsHHInc50to60K"},"HHAgeHH45To64yrsHHInc60to75K",{"$f":"\"MOE \"&DX115","v":"MOE HHAgeHH45To64yrsHHInc60to75K"},"HHAgeHH45To64yrsHHInc75to100K",{"$f":"\"MOE \"&DZ115","v":"MOE HHAgeHH45To64yrsHHInc75to100K"},"HHAgeHH45To64yrsHHInc100to125K",{"$f":"\"MOE \"&EB115","v":"MOE HHAgeHH45To64yrsHHInc100to125K"},"HHAgeHH45To64yrsHHInc125to150K",{"$f":"\"MOE \"&ED115","v":"MOE HHAgeHH45To64yrsHHInc125to150K"},"HHAgeHH45To64yrsHHInc150to200K",{"$f":"\"MOE \"&EF115","v":"MOE HHAgeHH45To64yrsHHInc150to200K"},"HHAge45To64yrsHHInc>200K",{"$f":"\"MOE \"&EH115","v":"MOE HHAge45To64yrsHHInc>200K"},"HHAgeHH65yrsorOlder",{"$f":"\"MOE \"&EJ115","v":"MOE HHAgeHH65yrsorOlder"},"HHAgeHH65yrsorOlderHHInc<10K",{"$f":"\"MOE \"&EL115","v":"MOE HHAgeHH65yrsorOlderHHInc<10K"},"HHAgeHH65yrsorOlderHHInc10to15K",{"$f":"\"MOE \"&EN115","v":"MOE HHAgeHH65yrsorOlderHHInc10to15K"},"HHAgeHH65yrsorOlderHHInc15to20K",{"$f":"\"MOE \"&EP115","v":"MOE HHAgeHH65yrsorOlderHHInc15to20K"},"HHAgeHH65yrsorOlderHHInc20to25K",{"$f":"\"MOE \"&ER115","v":"MOE HHAgeHH65yrsorOlderHHInc20to25K"},"HHAgeHH65yrsorOlderHHInc25to30K",{"$f":"\"MOE \"&ET115","v":"MOE HHAgeHH65yrsorOlderHHInc25to30K"},"HHAgeHH65yrsorOlderHHInc30to35K",{"$f":"\"MOE \"&EV115","v":"MOE HHAgeHH65yrsorOlderHHInc30to35K"},"HHAgeHH65yrsorOlderHHInc35to40K",{"$f":"\"MOE \"&EX115","v":"MOE HHAgeHH65yrsorOlderHHInc35to40K"},"HHAgeHH65yrsorOlderHHInc40to45K",{"$f":"\"MOE \"&EZ115","v":"MOE HHAgeHH65yrsorOlderHHInc40to45K"},"HHAgeHH65yrsorOlderHHInc45to50K",{"$f":"\"MOE \"&FB115","v":"MOE HHAgeHH65yrsorOlderHHInc45to50K"},"HHAgeHH65yrsorOlderHHInc50to60K",{"$f":"\"MOE \"&FD115","v":"MOE HHAgeHH65yrsorOlderHHInc50to60K"},"HHAgeHH65yrsorOlderHHInc60to75K",{"$f":"\"MOE \"&FF115","v":"MOE HHAgeHH65yrsorOlderHHInc60to75K"},"HHAgeHH65yrsorOlderHHInc75to100K",{"$f":"\"MOE \"&FH115","v":"MOE HHAgeHH65yrsorOlderHHInc75to100K"},"HHAgeHH65yrsorOlderHHInc100to125K",{"$f":"\"MOE \"&FJ115","v":"MOE HHAgeHH65yrsorOlderHHInc100to125K"},"HHAgeHH65yrsorOlderHHInc125to150K",{"$f":"\"MOE \"&FL115","v":"MOE HHAgeHH65yrsorOlderHHInc125to150K"},"HHAgeHH65yrsorOlderHHInc150to200K",{"$f":"\"MOE \"&FN115","v":"MOE HHAgeHH65yrsorOlderHHInc150to200K"},"HHAge65yrsorOlderHHInc>200K",{"$f":"\"MOE \"&FP115","v":"MOE HHAge65yrsorOlderHHInc>200K"},"MedianHHInc",{"$f":"\"MOE \"&FR115","v":"MOE MedianHHInc"},"HH under 25 years",{"$f":"\"MOE \"&FT115","v":"MOE HH under 25 years"},"Householder 25 to 44 years",{"$f":"\"MOE \"&FV115","v":"MOE Householder 25 to 44 years"},"Householder 45 to 64 years",{"$f":"\"MOE \"&FX115","v":"MOE Householder 45 to 64 years"},"Householder 65 years and over",{"$f":"\"MOE \"&FZ115","v":"MOE Householder 65 years and over"}]
[{"$f":"VLOOKUP(DropDownList!$A$47,CntyQuery!$A$53:$DN$64,A$1)","v":"Berlin"},4227,382,445,143,320,126,324,122,404,136,188,66,216,69,206,94,254,95,246,94,326,94,596,149,507,120,86,45,77,58,32,29,0,114,4227,382,332,130,70,76,30,45,37,36,44,40,11,16,13,21,76,75,0,114,18,28,0,114,33,53,0,114,0,114,0,114,0,114,0,114,1175,144,114,78,54,44,84,48,63,53,30,35,31,25,39,31,132,60,74,59,102,53,236,96,158,61,25,26,33,51,0,114,0,114,1580,172,149,72,46,40,92,60,119,75,44,29,89,48,39,29,50,38,111,49,181,81,268,102,286,90,54,36,32,28,20,23,0,114,1140,255,112,69,190,98,111,64,178,93,103,47,83,40,52,34,72,51,43,31,43,34,59,40,63,37,7,11,12,20,12,18,0,114,40199,2764,22266,13494,47957,8420,53889,5016,24318,4550]
[]
["Number of Households by Income"]
["NAME","HHIncLessThn10k",{"$f":"\"MOE \"&B119","v":"MOE HHIncLessThn10k"},"HHInc10to15K",{"$f":"\"MOE \"&D119","v":"MOE HHInc10to15K"},"HHInc15to25K",{"$f":"\"MOE \"&F119","v":"MOE HHInc15to25K"},"HHInc25to35K",{"$f":"\"MOE \"&H119","v":"MOE HHInc25to35K"},"HHInc35to50K",{"$f":"\"MOE \"&J119","v":"MOE HHInc35to50K"},"HHInc50to75K",{"$f":"\"MOE \"&L119","v":"MOE HHInc50to75K"},"HHInc75to100K",{"$f":"\"MOE \"&N119","v":"MOE HHInc75to100K"},"HHInc100to150K",{"$f":"\"MOE \"&P119","v":"MOE HHInc100to150K"},"HHInc150to200K",{"$f":"\"MOE \"&R119","v":"MOE HHInc150to200K"},"HHIncOver200K",{"$f":"\"MOE \"&T119","v":"MOE HHIncOver200K"}]
[{"$f":"VLOOKUP(DropDownList!$A$47,CntyQuery!$A$53:$DN$64,A$1)","v":"Berlin"},445,143,320,126,324,122,404,136,188,66,216,69,206,94,254,95,246,94,326,94,596,149,507,120,86,45,77,58,32,29,0,114]
[]
["POVERTY DATA"]
["NAME","TotalPop",{"$f":"\"MOE \"&B123","v":"MOE TotalPop"},"Total Individuals living in Poverty",{"$f":"\"MOE \"&D123","v":"MOE Total Individuals living in Poverty"},"Under 5 yrs.",{"$f":"\"MOE \"&F123","v":"MOE Under 5 yrs."},"5 to 17 yrs.",{"$f":"\"MOE \"&H123","v":"MOE 5 to 17 yrs."},"18 to 64 yrs.",{"$f":"\"MOE \"&J123","v":"MOE 18 to 64 yrs."},"65 to 74 yrs.",{"$f":"\"MOE \"&L123","v":"MOE 65 to 74 yrs."},"75 yrs. & Over",{"$f":"\"MOE \"&N123","v":"MOE 75 yrs. & Over"},"Total Individuals  Not living Poverty",{"$f":"\"MOE \"&P123","v":"MOE Total Individuals  Not living Poverty"},"Under 5 yrs.",{"$f":"\"MOE \"&R123","v":"MOE Under 5 yrs."},"5 to 17 yrs.",{"$f":"\"MOE \"&T123","v":"MOE 5 to 17 yrs."},"18 to 64 yrs.",{"$f":"\"MOE \"&V123","v":"MOE 18 to 64 yrs."},"65 to 74 yrs.",{"$f":"\"MOE \"&X123","v":"MOE 65 to 74 yrs."},"75 yrs. & Over",{"$f":"\"MOE \"&Z123","v":"MOE 75 yrs. & Over"},"Total HH",{"$f":"\"MOE \"&AB123","v":"MOE Total HH"},"Total Households Below Poverty",{"$f":"\"MOE \"&AD123","v":"MOE Total Households Below Poverty"},"Family Households in Poverty",{"$f":"\"MOE \"&AF123","v":"MOE Family Households in Poverty"},"Married Couple Fam HH",{"$f":"\"MOE \"&AH123","v":"MOE Married Couple Fam HH"},"Other Family",{"$f":"\"MOE \"&AJ123","v":"MOE Other Family"},"Male Head of Family HH no wife",{"$f":"\"MOE \"&AL123","v":"MOE Male Head of Family HH no wife"},"Female Head of Family HH no husband",{"$f":"\"MOE \"&AN123","v":"MOE Female Head of Family HH no husband"},"Non-Family HH",{"$f":"\"MOE \"&AP123","v":"MOE Non-Family HH"},"Non-Family Male HH",{"$f":"\"MOE \"&AR123","v":"MOE Non-Family Male HH"},"Non-Family Female HH",{"$f":"\"MOE \"&AT123","v":"MOE Non-Family Female HH"},"Total Households at or Above Poverty",{"$f":"\"MOE \"&AV123","v":"MOE Total Households at or Above Poverty"},"Family Households above Poverty",{"$f":"\"MOE \"&AX123","v":"MOE Family Households above Poverty"},"Married Couple Fam HH",{"$f":"\"MOE \"&AZ123","v":"MOE Married Couple Fam HH"},"Other Family",{"$f":"\"MOE \"&BB123","v":"MOE Other Family"},"Male Head of Family HH no wife",{"$f":"\"MOE \"&BD123","v":"MOE Male Head of Family HH no wife"},"Female Head of Family HH no husband",{"$f":"\"MOE \"&BF123","v":"MOE Female Head of Family HH no husband"},"Non-Family HH",{"$f":"\"MOE \"&BH123","v":"MOE Non-Family HH"},"Non-Family Male HH",{"$f":"\"MOE \"&BJ123","v":"MOE Non-Family Male HH"},"Non-Family Female HH",{"$f":"\"MOE \"&BL123","v":"MOE Non-Family Female HH"},"Married Couple with Children Below Poverty",{"$f":"\"MOE \"&BN123","v":"MOE Married Couple with Children Below Poverty"},"Male HH with children below poverty",{"$f":"\"MOE \"&BP123","v":"MOE Male HH with children below poverty"},"Female HH with children below poverty",{"$f":"\"MOE \"&BR123","v":"MOE Female HH with children below poverty"},"Married Couple with Children At or Above Poverty",{"$f":"\"MOE \"&BT123","v":"MOE Married Couple with Children At or Above Poverty"},"Male HH with children at or above poverty",{"$f":"\"MOE \"&BV123","v":"MOE Male HH with children at or above poverty"},"Female HH with children at or above poverty",{"$f":"\"MOE \"&BX123","v":"MOE Female HH with children at or above poverty"}]
[{"$f":"VLOOKUP(DropDownList!$A$47,CntyQuery!$A$53:$DN$64,A$1)","v":"Berlin"},2141,252,336,151,38,46.065171225124082,23,323.83020242096012,190,213.85976713725282,41,43.56604182158393,44,31.400636936215164,1805,279,62,46.957427527495582,265,188.00265955565629,1175,186.24983221468952,116,51.088159097779204,187,61.846584384264908,227,88,53,44,16,19,210,108,37,38,0,114,37,38,174,76,46,46,128,66,889,122,513,96,2761,270,376,99,14,21,57,43,177,75,376,99,199,68,0,114,0,114,37,38,94,39,14,21,57,43]
[]
["Household Income By Tenure"]
["NAME","TotalOccHU",{"$f":"\"MOE \"&B127","v":"MOE TotalOccHU"},"OwnOccHU",{"$f":"\"MOE \"&D127","v":"MOE OwnOccHU"},"OOHUInc<5K",{"$f":"\"MOE \"&F127","v":"MOE OOHUInc<5K"},"OOHUInc5to10K",{"$f":"\"MOE \"&H127","v":"MOE OOHUInc5to10K"},"OOHUInc10to15K",{"$f":"\"MOE \"&J127","v":"MOE OOHUInc10to15K"},"OOHUInc15to20K",{"$f":"\"MOE \"&L127","v":"MOE OOHUInc15to20K"},"OOHUInc20to25K",{"$f":"\"MOE \"&N127","v":"MOE OOHUInc20to25K"},"OOHUInc25to35K",{"$f":"\"MOE \"&P127","v":"MOE OOHUInc25to35K"},"OOHUInc35to50K",{"$f":"\"MOE \"&R127","v":"MOE OOHUInc35to50K"},"OOHUInc50to75K",{"$f":"\"MOE \"&T127","v":"MOE OOHUInc50to75K"},"OOHUInc75to100K",{"$f":"\"MOE \"&V127","v":"MOE OOHUInc75to100K"},"OOHUInc100to150K",{"$f":"\"MOE \"&X127","v":"MOE OOHUInc100to150K"},"OOHUInc>150K",{"$f":"\"MOE \"&Z127","v":"MOE OOHUInc>150K"},"RentOccHU",{"$f":"\"MOE \"&AB127","v":"MOE RentOccHU"},"ROHUInc<5K",{"$f":"\"MOE \"&AD127","v":"MOE ROHUInc<5K"},"ROHUInc5to10K",{"$f":"\"MOE \"&AF127","v":"MOE ROHUInc5to10K"},"ROHUInc10to15K",{"$f":"\"MOE \"&AH127","v":"MOE ROHUInc10to15K"},"ROHUInc15to20K",{"$f":"\"MOE \"&AJ127","v":"MOE ROHUInc15to20K"},"ROHUInc20to25K",{"$f":"\"MOE \"&AL127","v":"MOE ROHUInc20to25K"},"ROHUInc25to35K",{"$f":"\"MOE \"&AN127","v":"MOE ROHUInc25to35K"},"ROHUInc35to50K",{"$f":"\"MOE \"&AP127","v":"MOE ROHUInc35to50K"},"ROHUInc50to75K",{"$f":"\"MOE \"&AR127","v":"MOE ROHUInc50to75K"},"ROHUInc75to100K",{"$f":"\"MOE \"&AT127","v":"MOE ROHUInc75to100K"},"ROHUInc100to150K",{"$f":"\"MOE \"&AV127","v":"MOE ROHUInc100to150K"},"ROHUInc>150K",{"$f":"\"MOE \"&AX127","v":"MOE ROHUInc>150K"},"Total OCC HUInc<5K",{"$f":"\"MOE \"&AZ127","v":"MOE Total OCC HUInc<5K"},"Total OCC HUInc5to10K",{"$f":"\"MOE \"&BB127","v":"MOE Total OCC HUInc5to10K"},"Total OCC HUInc10to15K",{"$f":"\"MOE \"&BD127","v":"MOE Total OCC HUInc10to15K"},"Total OCC HUInc15to20K",{"$f":"\"MOE \"&BF127","v":"MOE Total OCC HUInc15to20K"},"Total OCC HUInc20to25K",{"$f":"\"MOE \"&BH127","v":"MOE Total OCC HUInc20to25K"},"Total OCC HUInc25to35K",{"$f":"\"MOE \"&BJ127","v":"MOE Total OCC HUInc25to35K"},"Total OCC HUInc35to50K",{"$f":"\"MOE \"&BL127","v":"MOE Total OCC HUInc35to50K"},"Total OCC HUInc50to75K",{"$f":"\"MOE \"&BN127","v":"MOE Total OCC HUInc50to75K"},"Total OCC HUInc75to100K",{"$f":"\"MOE \"&BP127","v":"MOE Total OCC HUInc75to100K"},"Total OCC HUInc100to150K",{"$f":"\"MOE \"&BR127","v":"MOE Total OCC HUInc100to150K"},"Total OCC HUInc>150K",{"$f":"\"MOE \"&BT127","v":"MOE Total OCC HUInc>150K"},"MedHHInc",{"$f":"\"MOE \"&BV127","v":"MOE MedHHInc"},"MedOwnOccHHInc",{"$f":"\"MOE \"&BX127","v":"MOE MedOwnOccHHInc"},"MedRentOccHHInc",{"$f":"\"MOE \"&BZ127","v":"MOE MedRentOccHHInc"}]
[{"$f":"VLOOKUP(DropDownList!$A$47,CntyQuery!$A$53:$DN$64,A$1)","v":"Berlin"},4227,382,2703,276,67,64,31,26,106,60,155,70,213,102,257,75,497,134,726,135,480,117,139,61,32,29,1524,246,147,64,200,114,214,102,169,77,191,76,147,66,209,97,196,112,27,33,24,26,0,114,20,27.459060435491963,211,100.43903623591775,162,75.643902596309772,116,53,242,111.82575731914361,385,112.04463396343441,485,122.42957159118053,278,91.782351244670124,334,100.46392387319938,433,99.40824915468535,null,null,40199,2764,52708,6513,20769,2575]
[]
["Population Data"]
["NAME","Total Population","MOE Total Population","Under 15 Years","MOE Under 15 yrs.","15 to 24 yrs.","MOE 15 to 24 yrs.","25 to 34 yrs.","MOE 25 to 34 yrs.","35 to 44 yrs.","MOE 35 to 44 yrs.","45 to 54 yrs.","MOE 45 to 54 yrs.","55 to 64 yrs.","MOE 55 to 64 yrs.","65 to 74 yrs.","MOE 65 to 74 yrs.","Over 74 yrs. ","MOE Over 74 yrs. ","TotalHH","MOE TotalHH","FamilyHH","MOE FamilyHH","MarriedFamilyHH","MOE MarriedFamilyHH","SingleFamilyHH","MOE SingleFamilyHH","Sfamily-MaleHH","MOE Sfamily-MaleHH","Sfamily-FemaleHH","MOE Sfamily-FemaleHH","NonFamilyHH","MOE NonFamilyHH","NonFamilyHH-LivingAlone","MOE NonFamilyHH-LivingAlone","NonFamilyHH-NotLivingAlone","MOE NonFamilyHH-NotLivingAlone","PopRaceWhite","MOE PopRaceWhite","PopRaceBlack","MOE PopRaceBlack","PopRaceAmerican Indian","MOE PopRaceAmerican Indian","PopRaceAsian &Pacific Is.","MOE PopRaceAsian &Pacific Is.","PopRaceOther*","MOE PopRaceOther*","PopRaceHispanic or Latino:","MOE PopRaceHispanic or Latino:","AvgAgeTotalPop","MOE AvgAgeTotalPop","AvgAgeMale","MOE AvgAgeMale","AvgAgeFemale","MOE AvgAgeFemale","AvgHHSizeTotal","MOE AvgHHSizeTotal","AvgHHSizeFamilyHH","MOE AvgHHSizeFamilyHH","AvgHHSizeNonFamilyHH","MOE AvgHHSizeNonFamilyHH"]
[{"$f":"VLOOKUP(DropDownList!$A$47,CntyQuery!$A$53:$DN$64,A$1)","v":"Berlin"},9673,21,1425,179.09773867919159,1160,196.11221277625725,968,120.7890723534211,1203,190.98167451355116,1653,179.85827754095723,1092,175.71567943698139,850,145.26871652217486,1322,225.12218904408334,4227,382,2417,221,1871,227,546,134,228,100,318,104,1810,280,1587,262,223,84,9449,127,29,28,24,29,20,118.96217886370441,39,33.286633954186478,112,99,45.3,1.9,40.6,4.5999999999999996,48.3,3.3,2.059380175065058,0.22387820825063684,2.739346297062474,0.30461334990409478,1.1513812154696133,0.25766371402393257]
[]
["Nativity and Prior Place of Residence"]
["NAME","TotalPop",{"$f":"\"MOE \"&B135","v":"MOE TotalPop"},"Native:",{"$f":"\"MOE \"&D135","v":"MOE Native:"},"NatBornInStateOfResidence",{"$f":"\"MOE \"&F135","v":"MOE NatBornInStateOfResidence"},"Born in other state in the United States:",{"$f":"\"MOE \"&H135","v":"MOE Born in other state in the United States:"},"Northeast",{"$f":"\"MOE \"&J135","v":"MOE Northeast"},"Midwest",{"$f":"\"MOE \"&L135","v":"MOE Midwest"},"South",{"$f":"\"MOE \"&N135","v":"MOE South"},"West",{"$f":"\"MOE \"&P135","v":"MOE West"},"Born outside the United States:",{"$f":"\"MOE \"&R135","v":"MOE Born outside the United States:"},"Puerto Rico",{"$f":"\"MOE \"&T135","v":"MOE Puerto Rico"},"U.S. Island Areas",{"$f":"\"MOE \"&V135","v":"MOE U.S. Island Areas"},"Born abroad of American parent(s)",{"$f":"\"MOE \"&X135","v":"MOE Born abroad of American parent(s)"},"Foreign born:",{"$f":"\"MOE \"&Z135","v":"MOE Foreign born:"},"Naturalized U.S. citizen",{"$f":"\"MOE \"&AB135","v":"MOE Naturalized U.S. citizen"},"Not a U.S. citizen",{"$f":"\"MOE \"&AD135","v":"MOE Not a U.S. citizen"},"CurrentResideneTotal:",{"$f":"\"MOE \"&AF135","v":"MOE CurrentResideneTotal:"},"SameHouse:",{"$f":"\"MOE \"&AH135","v":"MOE SameHouse:"},"DifferentHouse:",{"$f":"\"MOE \"&AJ135","v":"MOE DifferentHouse:"},"DiffHouseInNH",{"$f":"\"MOE \"&AL135","v":"MOE DiffHouseInNH"},"DiffHouseInNHSameCnty",{"$f":"\"MOE \"&AN135","v":"MOE DiffHouseInNHSameCnty"},"DiffHouseInNHDiffCnty",{"$f":"\"MOE \"&AP135","v":"MOE DiffHouseInNHDiffCnty"},"DiffHouseInDiffState",{"$f":"\"MOE \"&AR135","v":"MOE DiffHouseInDiffState"},"DiffHouseInElsewhere",{"$f":"\"MOE \"&AT135","v":"MOE DiffHouseInElsewhere"}]
[{"$f":"VLOOKUP(DropDownList!$A$47,CntyQuery!$A$53:$DN$64,A$1)","v":"Berlin"},9673,21,9313,147,6603,383,2558,369,1916,355,162,74,365,121,115,74,152,90,70,74,0,114,82,47,360,143,244,133,116,61,9546,85,7774,421,1772,438.05364968231919,1480,348.73629005310016,1240,324,240,129,288,265,4,7,35,43]
[]
["School Attainment & Enrollment"]
["NAME","Total Pop 3 Years and Older","MOE Total Pop 3 Years and Older","SchEnrlPop3yrOver",{"$f":"\"MOE \"&D139","v":"MOE SchEnrlPop3yrOver"},"TotalEnrollNursy&Kinder",{"$f":"\"MOE \"&F139","v":"MOE TotalEnrollNursy&Kinder"},"NurserSchEnrl",{"$f":"\"MOE \"&H139","v":"MOE NurserSchEnrl"},"KinderSchEnrl",{"$f":"\"MOE \"&J139","v":"MOE KinderSchEnrl"},"ElemSchEnrl (1-8)",{"$f":"\"MOE \"&L139","v":"MOE ElemSchEnrl (1-8)"},"HighSchEnrl(9-12)",{"$f":"\"MOE \"&N139","v":"MOE HighSchEnrl(9-12)"},"TotalElementry&HSEnroll",{"$f":"\"MOE \"&P139","v":"MOE TotalElementry&HSEnroll"},"CollGradSchEnrl",{"$f":"\"MOE \"&R139","v":"MOE CollGradSchEnrl"},"PopNotEnrolled","MOE PopNotEnrolled","Pop25yrsOver",{"$f":"\"MOE \"&V139","v":"MOE Pop25yrsOver"},"EduAtain<9grd",{"$f":"\"MOE \"&X139","v":"MOE EduAtain<9grd"},"EduAtainHSnoDip",{"$f":"\"MOE \"&Z139","v":"MOE EduAtainHSnoDip"},"EduAtainHSgrad",{"$f":"\"MOE \"&AB139","v":"MOE EduAtainHSgrad"},"EduAtainCollNoDeg",{"$f":"\"MOE \"&AD139","v":"MOE EduAtainCollNoDeg"},"EduAtainAssocDeg",{"$f":"\"MOE \"&AF139","v":"MOE EduAtainAssocDeg"},"EduAtainBachDeg",{"$f":"\"MOE \"&AH139","v":"MOE EduAtainBachDeg"},"EduAtainGradProfDeg",{"$f":"\"MOE \"&AJ139","v":"MOE EduAtainGradProfDeg"}]
[{"$f":"VLOOKUP(DropDownList!$A$47,CntyQuery!$A$53:$DN$64,A$1)","v":"Berlin"},9392,91,1812,223,253,82.734515167492219,134,59,119,58,740,160.3277892319357,494,126,1234,203.91419764204747,325,111.66467659918243,7580,225,7088,234,439,117.46914488494414,896,188.194048790072,2984,305.67957079268479,1247,188.7299658241902,637,131.89389675038038,532,118.86967653695369,160,135.88598161694236]
[]
["Occupied Owner Housing Value"]
["NAME","Estimate; Total:","Margin of Error; Total:","Estimate; Total: - Less than $10,000","Margin of Error; Total: - Less than $10,000","Estimate; Total: - $10,000 to $14,999","Margin of Error; Total: - $10,000 to $14,999","Estimate; Total: - $15,000 to $47,999","Margin of Error; Total: - $15,000 to $47,999","Estimate; Total: - $20,000 to $24,999","Margin of Error; Total: - $20,000 to $24,999","Estimate; Total: - $25,000 to $29,999","Margin of Error; Total: - $25,000 to $29,999","Estimate; Total: - $30,000 to $34,999","Margin of Error; Total: - $30,000 to $34,999","Estimate; Total: - $35,000 to $39,999","Margin of Error; Total: - $35,000 to $39,999","Estimate; Total: - $40,000 to $49,999","Margin of Error; Total: - $40,000 to $49,999","Estimate; Total: - $50,000 to $59,999","Margin of Error; Total: - $50,000 to $59,999","Estimate; Total: - $60,000 to $69,999","Margin of Error; Total: - $60,000 to $69,999","Estimate; Total: - $70,000 to $79,999","Margin of Error; Total: - $70,000 to $79,999","Estimate; Total: - $80,000 to $89,999","Margin of Error; Total: - $80,000 to $89,999","Estimate; Total: - $90,000 to $99,999","Margin of Error; Total: - $90,000 to $99,999","Estimate; Total: - $100,000 to $124,999","Margin of Error; Total: - $100,000 to $124,999","Estimate; Total: - $125,000 to $149,999","Margin of Error; Total: - $125,000 to $149,999","Estimate; Total: - $150,000 to $174,999","Margin of Error; Total: - $150,000 to $174,999","Estimate; Total: - $175,000 to $479,999","Margin of Error; Total: - $175,000 to $479,999","Estimate; Total: - $200,000 to $249,999","Margin of Error; Total: - $200,000 to $249,999","Estimate; Total: - $250,000 to $299,999","Margin of Error; Total: - $250,000 to $299,999","Estimate; Total: - $300,000 to $399,999","Margin of Error; Total: - $300,000 to $399,999","Estimate; Total: - $400,000 to $499,999","Margin of Error; Total: - $400,000 to $499,999","Estimate; Total: - $500,000 to $749,999","Margin of Error; Total: - $500,000 to $749,999","Estimate; Total: - $750,000 to $999,999","Margin of Error; Total: - $750,000 to $999,999","Estimate; Total: - $1,000,000 to $1,499,999","Margin of Error; Total: - $1,000,000 to $1,499,999","Estimate; Total: - $1,500,000 to $1,999,999","Margin of Error; Total: - $1,500,000 to $1,999,999","Estimate; Total: - $2,000,000 or more","Margin of Error; Total: - $2,000,000 or more","MedianOwnOCCHomeValue","MOE MedianOwnOCCHomeValue","OnwerOccHsU","MOE OnwerOccHsU","OwnerCosts>20PctHHInc","MOE OwnerCosts>20PctHHInc","OwnerCosts20to29.9PctHHInc","MOE OwnerCosts20to29.9PctHHInc","OwnerCosts<30PctHHInc","MOE OwnerCosts<30PctHHInc","OwnerCosts>30PctHHInc","MOE OwnerCosts>30PctHHInc","OwnerCosts30to34.9PctHHInc","MOE OwnerCosts30to34.9PctHHInc","OwnerCosts<35PctHHInc","MOE OwnerCosts<35PctHHInc","OwnerCosts>35PctHHInc","MOE OwnerCosts>35PctHHInc","OwnerCosts>50PctHHInc","MOE OwnerCosts>50PctHHInc","OwnerCostsPctNotcomputed","MOE OwnerCostsPctNotcomputed","OwnerOHUHhInc<20k","MOE OwnerOHUHhInc<20k","OwnerOHUHhInc<20kHCosts<20pct","MOE OwnerOHUHhInc<20kHCosts<20pct","OwnerOHUHhInc<20kHCosts20to29pct","MOE OwnerOHUHhInc<20kHCosts20to29pct","OwnerOHUHhInc>20kHCosts30pct","MOE OwnerOHUHhInc>20kHCosts30pct","OwnerOHUHhInc20kTo34999","MOE OwnerOHUHhInc20kTo34999","OwnerOHUHhInc20kTo34999HCosts<20pct","MOE OwnerOHUHhInc20kTo34999HCosts<20pct","OwnerOHUHhInc20kTo34999HCosts20to29pct","MOE OwnerOHUHhInc20kTo34999HCosts20to29pct","OwnerOHUHhInc20kTo34999HCosts30pct","MOE OwnerOHUHhInc20kTo34999HCosts30pct","OwnerOHUHhInc35kTo49999","MOE OwnerOHUHhInc35kTo49999","OwnerOHUHhInc35kTo49999HCosts<20pct","MOE OwnerOHUHhInc35kTo49999HCosts<20pct","OwnerOHUHhInc35kTo49999HCosts20to29pct","MOE OwnerOHUHhInc35kTo49999HCosts20to29pct","OwnerOHUHhInc35kTo49999HCosts30pct","MOE OwnerOHUHhInc35kTo49999HCosts30pct","OwnerOHUHhInc50kTo74999","MOE OwnerOHUHhInc50kTo74999","OwnerOHUHhInc50kTo74999HCosts<20pct","MOE OwnerOHUHhInc50kTo74999HCosts<20pct","OwnerOHUHhInc50kTo74999HCosts20to29pct","MOE OwnerOHUHhInc50kTo74999HCosts20to29pct","OwnerOHUHhInc50kTo74999HCosts30pct","MOE OwnerOHUHhInc50kTo74999HCosts30pct","OwnerOHUHhInc>75000","MOE OwnerOHUHhInc>75000","OwnerOHUHhInc>75000HCosts<20pct","MOE OwnerOHUHhInc>75000HCosts<20pct","OwnerOHUHhInc>75000HCosts20to29pct","MOE OwnerOHUHhInc>75000HCosts20to29pct","OwnerOHUHhInc>75000HCosts30pct","MOE OwnerOHUHhInc>75000HCosts30pct","ZeroOrNegativeIncome","MOE ZeroOrNegativeIncome"]
[{"$f":"VLOOKUP(DropDownList!$A$47,CntyQuery!$A$53:$DN$64,A$1)","v":"Berlin"},null,null,null,null,null,null,null,null,null,null,null,null,null,null,null,null,null,null,null,null,null,null,null,null,null,null,null,null,null,null,null,null,null,null,null,null,null,null,"Colebrook",null,"Estimate","Margin Of Error",676,110,0,114,9,13,0,114,22,18,15,17,4,6]
[]
["Occupied Rental Housing Value"]
["NAME","RntrOccHU","MOE RntrOccHU","RntrOccHUwRent","MOE RntrOccHUwRent","ROHUGRent<100","MOE ROHUGRent<100","ROHUGRent100to149","MOE ROHUGRent100to149","ROHUGRent150to199","MOE ROHUGRent150to199","ROHUGRent200to249","MOE ROHUGRent200to249","ROHUGRent250to299","MOE ROHUGRent250to299","ROHUGRent300to349","MOE ROHUGRent300to349","ROHUGRent350to399","MOE ROHUGRent350to399","ROHUGRent400to449","MOE ROHUGRent400to449","ROHUGRent450to499","MOE ROHUGRent450to499","ROHUGRent500to549","MOE ROHUGRent500to549","ROHUGRent550to599","MOE ROHUGRent550to599","ROHUGRent600to649","MOE ROHUGRent600to649","ROHUGRent650to699","MOE ROHUGRent650to699","ROHUGRent700to749","MOE ROHUGRent700to749","ROHUGRent750to799","MOE ROHUGRent750to799","ROHUGRent800to899","MOE ROHUGRent800to899","ROHUGRent900to999","MOE ROHUGRent900to999","ROHUGRent1000to1249","MOE ROHUGRent1000to1249","ROHUGRent1250to1499","MOE ROHUGRent1250to1499","ROHUGRent1500to1999","MOE ROHUGRent1500to1999","ROHUGRent2000>","MOE ROHUGRent2000>","ROHUNoGRent","MOE ROHUNoGRent","MedianGrossRnt","MOE MedianGrossRnt","H73RenterOccHU","MOE H73RenterOccHU","H73ROHUHhInc<10k","MOE H73ROHUHhInc<10k","H73ROHUHhInc<10kRnt<20pct","MOE H73ROHUHhInc<10kRnt<20pct","H73ROHUHhInc<10kRnt20to25pct","MOE H73ROHUHhInc<10kRnt20to25pct","H73ROHUHhInc<10kRnt25to30pct","MOE H73ROHUHhInc<10kRnt25to30pct","H73ROHUHhInc<10kRnt30to35pct","MOE H73ROHUHhInc<10kRnt30to35pct","H73ROHUHhInc<10kRnt35to39.9","MOE H73ROHUHhInc<10kRnt35to39.9","H73ROHUHhInc<10kRnt40to49.9","MOE H73ROHUHhInc<10kRnt40to49.9","H73ROHUHhInc<10kRnt>50pct","MOE H73ROHUHhInc<10kRnt>50pct","H73ROHUHhInc<10kPctNotComput","MOE H73ROHUHhInc<10kPctNotComput","H73ROHUHhInc10to20k","MOE H73ROHUHhInc10to20k","H73ROHUHhInc10to20kRnt<20pct","MOE H73ROHUHhInc10to20kRnt<20pct","H73ROHUHhInc10to20kRnt20to25pct","MOE H73ROHUHhInc10to20kRnt20to25pct","H73ROHUHhInc10to20kRnt25to30pct","MOE H73ROHUHhInc10to20kRnt25to30pct","H73ROHUHhInc10to20kRnt30to35pct","MOE H73ROHUHhInc10to20kRnt30to35pct","H73ROHUHhInc10to20kRnt35to39.9","MOE H73ROHUHhInc10to20kRnt35to39.9","H73ROHUHhInc10to20kRnt40to49.9","MOE H73ROHUHhInc10to20kRnt40to49.9","H73ROHUHhInc10to20kRnt>50pct","MOE H73ROHUHhInc10to20kRnt>50pct","H73ROHUHhInc10to20kRntPctNC","MOE H73ROHUHhInc10to20kRntPctNC","H73ROHUHhInc20to34.9k","MOE H73ROHUHhInc20to34.9k","H73ROHUHhInc20to34.9kRnt<20pct","MOE H73ROHUHhInc20to34.9kRnt<20pct","H73ROHUHhInc20to34.9kRnt20to25pct","MOE H73ROHUHhInc20to34.9kRnt20to25pct","H73ROHUHhInc20to34.9kRnt25to30pct","MOE H73ROHUHhInc20to34.9kRnt25to30pct","H73ROHUHhInc20to34.9kRnt30to35pct","MOE H73ROHUHhInc20to34.9kRnt30to35pct","H73ROHUHhInc20to34.9kRnt35to39.9","MOE H73ROHUHhInc20to34.9kRnt35to39.9","H73ROHUHhInc20to34.9kRnt40to49.9","MOE H73ROHUHhInc20to34.9kRnt40to49.9","H73ROHUHhInc20to34.9kRnt>50pct","MOE H73ROHUHhInc20to34.9kRnt>50pct","H73ROHUHhInc20to34.9kRntPctNC","MOE H73ROHUHhInc20to34.9kRntPctNC","H73ROHUHhInc35to49.9k","MOE H73ROHUHhInc35to49.9k","H73ROHUHhInc35to49.9kRnt<20pct","MOE H73ROHUHhInc35to49.9kRnt<20pct","H73ROHUHhInc35to49.9kRnt20to25pct","MOE H73ROHUHhInc35to49.9kRnt20to25pct","H73ROHUHhInc35to49.9kRnt25to30pct","MOE H73ROHUHhInc35to49.9kRnt25to30pct","H73ROHUHhInc35to49.9kRnt30to35pct","MOE H73ROHUHhInc35to49.9kRnt30to35pct","H73ROHUHhInc35to49.9kRnt35to39.9","MOE H73ROHUHhInc35to49.9kRnt35to39.9","H73ROHUHhInc35to49.9kRnt40to49.9","MOE H73ROHUHhInc35to49.9kRnt40to49.9","H73ROHUHhInc35to49.9kRnt>50pct","MOE H73ROHUHhInc35to49.9kRnt>50pct","H73ROHUHhInc35to49.9kRntPctNC","MOE H73ROHUHhInc35to49.9kRntPctNC","H73ROHUHhInc50to74.9k","MOE H73ROHUHhInc50to74.9k","H73ROHUHhInc50to74.9kRnt<20pct","MOE H73ROHUHhInc50to74.9kRnt<20pct","H73ROHUHhInc50to74.9kRnt20to25pct","MOE H73ROHUHhInc50to74.9kRnt20to25pct","H73ROHUHhInc50to74.9kRnt25to30pct","MOE H73ROHUHhInc50to74.9kRnt25to30pct","H73ROHUHhInc50to74.9kRnt30to35pct","MOE H73ROHUHhInc50to74.9kRnt30to35pct","H73ROHUHhInc50to74.9kRnt35to39.9","MOE H73ROHUHhInc50to74.9kRnt35to39.9","H73ROHUHhInc50to74.9kRnt40to49.9","MOE H73ROHUHhInc50to74.9kRnt40to49.9","H73ROHUHhInc50to74.9kRnt>50pct","MOE H73ROHUHhInc50to74.9kRnt>50pct","H73ROHUHhInc50to74.9kRntPctNC","MOE H73ROHUHhInc50to74.9kRntPctNC","H73ROHUHhInc75to99.9k","MOE H73ROHUHhInc75to99.9k","H73ROHUHhInc75to99.9kRnt<20pct","MOE H73ROHUHhInc75to99.9kRnt<20pct","H73ROHUHhInc75to99.9kRnt20to25pct","MOE H73ROHUHhInc75to99.9kRnt20to25pct","H73ROHUHhInc75to99.9kRnt25to30pct","MOE H73ROHUHhInc75to99.9kRnt25to30pct","H73ROHUHhInc75to99.9kRnt30to35pct","MOE H73ROHUHhInc75to99.9kRnt30to35pct","H73ROHUHhInc75to99.9kRnt35to39.9","MOE H73ROHUHhInc75to99.9kRnt35to39.9","H73ROHUHhInc75to99.9kRnt40to49.9","MOE H73ROHUHhInc75to99.9kRnt40to49.9","H73ROHUHhInc75to99.9kRnt>50pct","MOE H73ROHUHhInc75to99.9kRnt>50pct","H73ROHUHhInc75to99.9kRntPctNC","MOE H73ROHUHhInc75to99.9kRntPctNC","H73ROHUHhInc>100k","MOE H73ROHUHhInc>100k","H73ROHUHhInc>100kRnt<20pct","MOE H73ROHUHhInc>100kRnt<20pct","H73ROHUHhInc>100kRnt20to25pct","MOE H73ROHUHhInc>100kRnt20to25pct","H73ROHUHhInc>100kRnt25to30pct","MOE H73ROHUHhInc>100kRnt25to30pct","H73ROHUHhInc>100kRnt30to35pct","MOE H73ROHUHhInc>100kRnt30to35pct","H73ROHUHhInc>100kRnt35to39.9","MOE H73ROHUHhInc>100kRnt35to39.9","H73ROHUHhInc>100kRnt40to49.9","MOE H73ROHUHhInc>100kRnt40to49.9","H73ROHUHhInc>100kRnt>50pct","MOE H73ROHUHhInc>100kRnt>50pct","H73ROHUHhInc>100kRntPctNC","MOE H73ROHUHhInc>100kRntPctNC"]
[{"$f":"VLOOKUP(DropDownList!$A$47,CntyQuery!$A$53:$DN$64,A$1)","v":"Berlin"},3001,266,2901,278,13,22,28,45,28,25,95,66,66,61,12,18,89,59,31,33,74,72,43,30,0,17,95,62,151,75,140,94,202,104,529,147,301,146,579,193,291,113,103,54,31,30,100,67,22,21,null,null,null,null,null,null,null,null,"Colebrook",null,"Estimate","Margin Of Error",440,101,103,60,6,10,18,29,16,17,0,114,63,48,0,114,124,67,9,13,8,11,10,11,34,36,63,51,0,114,87,57,32,44,0,114,17,19,30,31,8,12,0,114,52,37,32,37,14,16,0,114,0,114,0,114,6,10,56,59,56,59,0,114,0,114,0,114,0,114,0,114,12,16,12,16,0,114,0,114,0,114,0,114,0,114,6,10,0,17,0,17,0,17,0,17,11,17,168,97,152,94,0,17,16,17,0,17,0,17,0,17,0,17,0,17]
[]
[]
[]
[]
[]
["Occupied Rental Housing Cost Burdern All Incomes"]
["NAME","RntrOccHU","MOE RntrOccHU","RntrOccHUwRent","MOE RntrOccHUwRent","ROHUGRent<100","MOE ROHUGRent<100","ROHUGRent100to149","MOE ROHUGRent100to149","ROHUGRent150to199","MOE ROHUGRent150to199","ROHUGRent200to249","MOE ROHUGRent200to249","ROHUGRent250to299","MOE ROHUGRent250to299","ROHUGRent300to349","MOE ROHUGRent300to349","ROHUGRent350to399","MOE ROHUGRent350to399","ROHUGRent400to449","MOE ROHUGRent400to449","ROHUGRent450to499","MOE ROHUGRent450to499","ROHUGRent500to549","MOE ROHUGRent500to549","ROHUGRent550to599","MOE ROHUGRent550to599","ROHUGRent600to649","MOE ROHUGRent600to649","ROHUGRent650to699","MOE ROHUGRent650to699","ROHUGRent700to749","MOE ROHUGRent700to749","ROHUGRent750to799","MOE ROHUGRent750to799","ROHUGRent800to899","MOE ROHUGRent800to899","ROHUGRent900to999","MOE ROHUGRent900to999","ROHUGRent1000to1249","MOE ROHUGRent1000to1249","ROHUGRent1250to1499","MOE ROHUGRent1250to1499","ROHUGRent1500to1999","MOE ROHUGRent1500to1999","ROHUGRent2000>","MOE ROHUGRent2000>","ROHUNoGRent","MOE ROHUNoGRent","MedianGrossRnt","MOE MedianGrossRnt","H73RenterOccHU","MOE H73RenterOccHU","H73ROHUHhInc<10k","MOE H73ROHUHhInc<10k","H73ROHUHhInc<10kRnt<20pct","MOE H73ROHUHhInc<10kRnt<20pct","H73ROHUHhInc<10kRnt20to25pct","MOE H73ROHUHhInc<10kRnt20to25pct","H73ROHUHhInc<10kRnt25to30pct","MOE H73ROHUHhInc<10kRnt25to30pct","H73ROHUHhInc<10kRnt30to35pct","MOE H73ROHUHhInc<10kRnt30to35pct","H73ROHUHhInc<10kRnt35to39.9","MOE H73ROHUHhInc<10kRnt35to39.9","H73ROHUHhInc<10kRnt40to49.9","MOE H73ROHUHhInc<10kRnt40to49.9","H73ROHUHhInc<10kRnt>50pct","MOE H73ROHUHhInc<10kRnt>50pct","H73ROHUHhInc<10kPctNotComput","MOE H73ROHUHhInc<10kPctNotComput","H73ROHUHhInc10to20k","MOE H73ROHUHhInc10to20k","H73ROHUHhInc10to20kRnt<20pct","MOE H73ROHUHhInc10to20kRnt<20pct","H73ROHUHhInc10to20kRnt20to25pct","MOE H73ROHUHhInc10to20kRnt20to25pct","H73ROHUHhInc10to20kRnt25to30pct","MOE H73ROHUHhInc10to20kRnt25to30pct","H73ROHUHhInc10to20kRnt30to35pct","MOE H73ROHUHhInc10to20kRnt30to35pct","H73ROHUHhInc10to20kRnt35to39.9","MOE H73ROHUHhInc10to20kRnt35to39.9","H73ROHUHhInc10to20kRnt40to49.9","MOE H73ROHUHhInc10to20kRnt40to49.9","H73ROHUHhInc10to20kRnt>50pct","MOE H73ROHUHhInc10to20kRnt>50pct","H73ROHUHhInc10to20kRntPctNC","MOE H73ROHUHhInc10to20kRntPctNC","H73ROHUHhInc20to34.9k","MOE H73ROHUHhInc20to34.9k","H73ROHUHhInc20to34.9kRnt<20pct","MOE H73ROHUHhInc20to34.9kRnt<20pct","H73ROHUHhInc20to34.9kRnt20to25pct","MOE H73ROHUHhInc20to34.9kRnt20to25pct","H73ROHUHhInc20to34.9kRnt25to30pct","MOE H73ROHUHhInc20to34.9kRnt25to30pct","H73ROHUHhInc20to34.9kRnt30to35pct","MOE H73ROHUHhInc20to34.9kRnt30to35pct","H73ROHUHhInc20to34.9kRnt35to39.9","MOE H73ROHUHhInc20to34.9kRnt35to39.9","H73ROHUHhInc20to34.9kRnt40to49.9","MOE H73ROHUHhInc20to34.9kRnt40to49.9","H73ROHUHhInc20to34.9kRnt>50pct","MOE H73ROHUHhInc20to34.9kRnt>50pct","H73ROHUHhInc20to34.9kRntPctNC","MOE H73ROHUHhInc20to34.9kRntPctNC","H73ROHUHhInc35to49.9k","MOE H73ROHUHhInc35to49.9k","H73ROHUHhInc35to49.9kRnt<20pct","MOE H73ROHUHhInc35to49.9kRnt<20pct","H73ROHUHhInc35to49.9kRnt20to25pct","MOE H73ROHUHhInc35to49.9kRnt20to25pct","H73ROHUHhInc35to49.9kRnt25to30pct","MOE H73ROHUHhInc35to49.9kRnt25to30pct","H73ROHUHhInc35to49.9kRnt30to35pct","MOE H73ROHUHhInc35to49.9kRnt30to35pct","H73ROHUHhInc35to49.9kRnt35to39.9","MOE H73ROHUHhInc35to49.9kRnt35to39.9","H73ROHUHhInc35to49.9kRnt40to49.9","MOE H73ROHUHhInc35to49.9kRnt40to49.9","H73ROHUHhInc35to49.9kRnt>50pct","MOE H73ROHUHhInc35to49.9kRnt>50pct","H73ROHUHhInc35to49.9kRntPctNC","MOE H73ROHUHhInc35to49.9kRntPctNC","H73ROHUHhInc50to74.9k","MOE H73ROHUHhInc50to74.9k","H73ROHUHhInc50to74.9kRnt<20pct","MOE H73ROHUHhInc50to74.9kRnt<20pct","H73ROHUHhInc50to74.9kRnt20to25pct","MOE H73ROHUHhInc50to74.9kRnt20to25pct","H73ROHUHhInc50to74.9kRnt25to30pct","MOE H73ROHUHhInc50to74.9kRnt25to30pct","H73ROHUHhInc50to74.9kRnt30to35pct","MOE H73ROHUHhInc50to74.9kRnt30to35pct","H73ROHUHhInc50to74.9kRnt35to39.9","MOE H73ROHUHhInc50to74.9kRnt35to39.9","H73ROHUHhInc50to74.9kRnt40to49.9","MOE H73ROHUHhInc50to74.9kRnt40to49.9","H73ROHUHhInc50to74.9kRnt>50pct","MOE H73ROHUHhInc50to74.9kRnt>50pct","H73ROHUHhInc50to74.9kRntPctNC","MOE H73ROHUHhInc50to74.9kRntPctNC","H73ROHUHhInc75to99.9k","MOE H73ROHUHhInc75to99.9k","H73ROHUHhInc75to99.9kRnt<20pct","MOE H73ROHUHhInc75to99.9kRnt<20pct","H73ROHUHhInc75to99.9kRnt20to25pct","MOE H73ROHUHhInc75to99.9kRnt20to25pct","H73ROHUHhInc75to99.9kRnt25to30pct","MOE H73ROHUHhInc75to99.9kRnt25to30pct","H73ROHUHhInc75to99.9kRnt30to35pct","MOE H73ROHUHhInc75to99.9kRnt30to35pct","H73ROHUHhInc75to99.9kRnt35to39.9","MOE H73ROHUHhInc75to99.9kRnt35to39.9","H73ROHUHhInc75to99.9kRnt40to49.9","MOE H73ROHUHhInc75to99.9kRnt40to49.9","H73ROHUHhInc75to99.9kRnt>50pct","MOE H73ROHUHhInc75to99.9kRnt>50pct","H73ROHUHhInc75to99.9kRntPctNC","MOE H73ROHUHhInc75to99.9kRntPctNC","H73ROHUHhInc>100k","MOE H73ROHUHhInc>100k","H73ROHUHhInc>100kRnt<20pct","MOE H73ROHUHhInc>100kRnt<20pct","H73ROHUHhInc>100kRnt20to25pct","MOE H73ROHUHhInc>100kRnt20to25pct","H73ROHUHhInc>100kRnt25to30pct","MOE H73ROHUHhInc>100kRnt25to30pct","H73ROHUHhInc>100kRnt30to35pct","MOE H73ROHUHhInc>100kRnt30to35pct","H73ROHUHhInc>100kRnt35to39.9","MOE H73ROHUHhInc>100kRnt35to39.9","H73ROHUHhInc>100kRnt40to49.9","MOE H73ROHUHhInc>100kRnt40to49.9","H73ROHUHhInc>100kRnt>50pct","MOE H73ROHUHhInc>100kRnt>50pct","H73ROHUHhInc>100kRntPctNC","MOE H73ROHUHhInc>100kRntPctNC"]
[{"$f":"VLOOKUP(DropDownList!$A$47,CntyQuery!$A$53:$DN$64,A$1)","v":"Berlin"},440,101,18,19,81,71,54,46,40,35,43,31,64,46,31,33,0,114,103,64,6,10]
[]
["Income By Household Type and Tenure"]
["NAME","TotalFamilyHouseholds",{"$f":"\"MOE \"&B159","v":"MOE TotalFamilyHouseholds"},"FamInc<10K",{"$f":"\"MOE \"&D159","v":"MOE FamInc<10K"},"FamInc10to15K",{"$f":"\"MOE \"&F159","v":"MOE FamInc10to15K"},"FamInc15to20K",{"$f":"\"MOE \"&H159","v":"MOE FamInc15to20K"},"FamInc20to25K",{"$f":"\"MOE \"&J159","v":"MOE FamInc20to25K"},"FamInc25to30K",{"$f":"\"MOE \"&L159","v":"MOE FamInc25to30K"},"FamInc30to35K",{"$f":"\"MOE \"&N159","v":"MOE FamInc30to35K"},"FamInc35to40K",{"$f":"\"MOE \"&P159","v":"MOE FamInc35to40K"},"FamInc40to45K",{"$f":"\"MOE \"&R159","v":"MOE FamInc40to45K"},"FamInc45to50K",{"$f":"\"MOE \"&T159","v":"MOE FamInc45to50K"},"FamInc50to60K",{"$f":"\"MOE \"&V159","v":"MOE FamInc50to60K"},"FamInc60to75K",{"$f":"\"MOE \"&X159","v":"MOE FamInc60to75K"},"FamInc75to100K",{"$f":"\"MOE \"&Z159","v":"MOE FamInc75to100K"},"FamInc100to125K",{"$f":"\"MOE \"&AB159","v":"MOE FamInc100to125K"},"FamInc125to150K",{"$f":"\"MOE \"&AD159","v":"MOE FamInc125to150K"},"FamInc150to200K",{"$f":"\"MOE \"&AF159","v":"MOE FamInc150to200K"},"FamInc>200K",{"$f":"\"MOE \"&AH159","v":"MOE FamInc>200K"},"MedFamInc",{"$f":"\"MOE \"&AJ159","v":"MOE MedFamInc"},"TotalNonNonFamilyHouseholds",{"$f":"\"MOE \"&AL159","v":"MOE TotalNonNonFamilyHouseholds"},"NonFamInc<10K",{"$f":"\"MOE \"&AN159","v":"MOE NonFamInc<10K"},"NonFamInc10to15K",{"$f":"\"MOE \"&AP159","v":"MOE NonFamInc10to15K"},"NonFamInc15to20K",{"$f":"\"MOE \"&AR159","v":"MOE NonFamInc15to20K"},"NonFamInc20to25K",{"$f":"\"MOE \"&AT159","v":"MOE NonFamInc20to25K"},"NonFamInc25to30K",{"$f":"\"MOE \"&AV159","v":"MOE NonFamInc25to30K"},"NonFamInc30to35K",{"$f":"\"MOE \"&AX159","v":"MOE NonFamInc30to35K"},"NonFamInc35to40K",{"$f":"\"MOE \"&AZ159","v":"MOE NonFamInc35to40K"},"NonFamInc40to45K",{"$f":"\"MOE \"&BB159","v":"MOE NonFamInc40to45K"},"NonFamInc45to50K",{"$f":"\"MOE \"&BD159","v":"MOE NonFamInc45to50K"},"NonFamInc50to60K",{"$f":"\"MOE \"&BF159","v":"MOE NonFamInc50to60K"},"NonFamInc60to75K",{"$f":"\"MOE \"&BH159","v":"MOE NonFamInc60to75K"},"NonFamInc75to100K",{"$f":"\"MOE \"&BJ159","v":"MOE NonFamInc75to100K"},"NonFamInc100to125K",{"$f":"\"MOE \"&BL159","v":"MOE NonFamInc100to125K"},"NonFamInc125to150K",{"$f":"\"MOE \"&BN159","v":"MOE NonFamInc125to150K"},"NonFamInc150to200K",{"$f":"\"MOE \"&BP159","v":"MOE NonFamInc150to200K"},"NonFamInc>200K",{"$f":"\"MOE \"&BR159","v":"MOE NonFamInc>200K"},"MedNonFamInc",{"$f":"\"MOE \"&BT159","v":"MOE MedNonFamInc"}]
[{"$f":"VLOOKUP(DropDownList!$A$47,CntyQuery!$A$53:$DN$64,A$1)","v":"Berlin"},2417,221,105,54,53,46,134,60,122,79,109,61,113,48,137,65,219,91,190,86,241,79,362,97,444,108,79,44,77,58,32,29,0,114,52868,7440,1810,280,373,143,273,118,167,83,266,107,110,47,103,53,78,67,75,58,50,37,92,50,169,90,54,43,0,114,0,114,0,114,0,114,21494,2204]

{"sheet":"StatisticallySignificantCalcs","index":18,"n_rows":271,"n_cols":16,"rows_kept":271,"cut":false,"hidden":true,"merged":[]}
[]
["Statistically Significant Change  10 Year","Standard Error Estimate  1","Standard Error Estimate  2","Square Root of Sum of Squared SE","Difference between the estimates","Value","Test Statistic (90%) Confidence Interval",null,null,"Statistically Significant Change  5Year","Standard Error Estimate  1","Standard Error Estimate  2","Square Root of Sum of Squared SE","Difference between the estimates","Value","Test Statistic (90%) Confidence Interval"]
[{"$f":"IF(F3>G3,\"Y\",\"N\")","v":"Y"},{"$f":"PopulationCharacteristics!Q22/1.645","v":117.5502197230086},{"$f":"PopulationCharacteristics!T22/1.645","v":121.38434016063999},{"$f":"SQRT((B3^2)+(C3^2))","v":168.97399857126408},{"$f":"(PopulationCharacteristics!M22-PopulationCharacteristics!S22)","v":-1198},{"$f":"ABS((E3/D3))","v":7.0898482022649691},1.645,"Population By Age Under 15 yrs.",null,{"$f":"IF(O3>P3,\"Y\",\"N\")","v":"N"},{"$f":"PopulationCharacteristics!P22/1.645","v":801.82370820668689},{"$f":"PopulationCharacteristics!T22/1.645","v":121.38434016063999},{"$f":"SQRT((K3^2)+(L3^2))","v":810.95956562491824},{"$f":"(PopulationCharacteristics!P22-PopulationCharacteristics!S22)","v":121},{"$f":"ABS((N3/M3))","v":0.14920595937080844},1.645]
["Y",{"$f":"PopulationCharacteristics!Q23/1.645","v":101.82143988763193},{"$f":"PopulationCharacteristics!T23/1.645","v":113.39789668356444},152.40304653466413,{"$f":"(PopulationCharacteristics!M23-PopulationCharacteristics!S23)","v":-1142},7.4932885264878983,1.645,"Population By Age 15 to 24 yrs.",null,{"$f":"IF(O4>P4,\"Y\",\"N\")","v":"N"},{"$f":"PopulationCharacteristics!P23/1.645","v":643.161094224924},{"$f":"PopulationCharacteristics!T23/1.645","v":113.39789668356444},653.08137019582625,{"$f":"(PopulationCharacteristics!P23-PopulationCharacteristics!S23)","v":-84},0.12862103228394439,1.645]
["Y",{"$f":"PopulationCharacteristics!Q24/1.645","v":110.0186394835175},{"$f":"PopulationCharacteristics!T24/1.645","v":120.57640043532842},163.22612957411221,{"$f":"(PopulationCharacteristics!M24-PopulationCharacteristics!S24)","v":-1683},10.310849153816639,1.645,"Population By Age 25 to 34 yrs.",null,"N",{"$f":"PopulationCharacteristics!P24/1.645","v":725.22796352583589},{"$f":"PopulationCharacteristics!T24/1.645","v":120.57640043532842},735.18315229728421,{"$f":"(PopulationCharacteristics!P24-PopulationCharacteristics!S24)","v":-490},0.66650058351971031,1.645]
["Y",{"$f":"PopulationCharacteristics!Q25/1.645","v":179.53314076040385},{"$f":"PopulationCharacteristics!T25/1.645","v":127.22752188136469},220.04315702917941,{"$f":"(PopulationCharacteristics!M25-PopulationCharacteristics!S25)","v":-1445},6.5668936017327812,1.645,"Population By Age 35 to 44 yrs.",null,"N",{"$f":"PopulationCharacteristics!P25/1.645","v":847.41641337386022},{"$f":"PopulationCharacteristics!T25/1.645","v":127.22752188136469},856.91389297845456,{"$f":"(PopulationCharacteristics!P25-PopulationCharacteristics!S25)","v":-51},5.9515898175876929E-2,1.645]
["Y",{"$f":"PopulationCharacteristics!Q26/1.645","v":101.98644166141851},{"$f":"PopulationCharacteristics!T26/1.645","v":106.89239733685507},147.74037664490376,{"$f":"(PopulationCharacteristics!M26-PopulationCharacteristics!S26)","v":-1535},10.389847615519459,1.645,"Population By Age 45 to 54 yrs.",null,"N",{"$f":"PopulationCharacteristics!P26/1.645","v":795.74468085106378},{"$f":"PopulationCharacteristics!T26/1.645","v":106.89239733685507},802.89201123885982,{"$f":"(PopulationCharacteristics!P26-PopulationCharacteristics!S26)","v":-226},0.28148243703568893,1.645]
["Y",{"$f":"PopulationCharacteristics!Q27/1.645","v":113.52492034640181},{"$f":"PopulationCharacteristics!T27/1.645","v":108.95374098418412},157.34937309727536,{"$f":"(PopulationCharacteristics!M27-PopulationCharacteristics!S27)","v":-1306},8.30000129198236,1.645,"Population By Age 55 to 64 yrs.",null,"N",{"$f":"PopulationCharacteristics!P27/1.645","v":875.37993920972644},{"$f":"PopulationCharacteristics!T27/1.645","v":108.95374098418412},882.13431836952873,{"$f":"(PopulationCharacteristics!P27-PopulationCharacteristics!S27)","v":134},0.15190430437813099,1.645]
["Y",{"$f":"PopulationCharacteristics!Q28/1.645","v":75.294097607351731},{"$f":"PopulationCharacteristics!T28/1.645","v":96.48241854050552},122.38487742335934,{"$f":"(PopulationCharacteristics!M28-PopulationCharacteristics!S28)","v":-973},7.9503286720152042,1.645,"Population By Age 65 to 74 yrs.",null,"N",{"$f":"PopulationCharacteristics!P28/1.645","v":487.53799392097267},{"$f":"PopulationCharacteristics!T28/1.645","v":96.48241854050552},496.99311122379919,{"$f":"(PopulationCharacteristics!P28-PopulationCharacteristics!S28)","v":-171},0.34406915536299576,1.645]
["Y",{"$f":"PopulationCharacteristics!Q29/1.645","v":98.983665804143968},{"$f":"PopulationCharacteristics!T29/1.645","v":86.21295370325717},131.26476862534906,{"$f":"(PopulationCharacteristics!M29-PopulationCharacteristics!S29)","v":-939},7.1534807841703376,1.645,"Population By Age Over 74 yrs. ",null,"N",{"$f":"PopulationCharacteristics!P29/1.645","v":726.44376899696044},{"$f":"PopulationCharacteristics!T29/1.645","v":86.21295370325717},731.54167543671031,{"$f":"(PopulationCharacteristics!P29-PopulationCharacteristics!S29)","v":256},0.34994588633268914,1.645]
["N",{"$f":"PopulationCharacteristics!Q$30/1.645","v":2.0668693009118542},{"$f":"PopulationCharacteristics!T$30/1.645","v":0.72948328267477203},2.1918244835647354,{"$f":"(PopulationCharacteristics!P30-PopulationCharacteristics!S30)","v":1.8000000000000043},0.82123364051145353,1.645,"Population By Age Median Age        ",null,"N",{"$f":"PopulationCharacteristics!P30/1.645","v":26.808510638297872},{"$f":"PopulationCharacteristics!T30/1.645","v":0.72948328267477203},{"$f":"SQRT((K11^2)+(L11^2))","v":26.818433744412296},{"$f":"(PopulationCharacteristics!P30-PopulationCharacteristics!S30)","v":1.8000000000000043},6.7118013570611285E-2,1.645]
["N",{"$f":"PopulationCharacteristics!E51/1.645","v":232.21884498480242},{"$f":"PopulationCharacteristics!K51/1.645","v":122.18844984802432},262.40352368506575,{"$f":"PopulationCharacteristics!D51-PopulationCharacteristics!J51","v":250},0.95273110851989795,1.645,"Total Households",null,"Y",{"$f":"PopulationCharacteristics!H51/1.645","v":135.56231003039514},{"$f":"PopulationCharacteristics!K51/1.645","v":122.18844984802432},182.50248539962442,{"$f":"PopulationCharacteristics!G51-PopulationCharacteristics!J51","v":-1441},7.8957828812284516,1.645]
["N",{"$f":"PopulationCharacteristics!E52/1.645","v":0.13609617522835066},{"$f":"PopulationCharacteristics!K52/1.645","v":7.583181758306265E-2},0.15579676976669579,{"$f":"PopulationCharacteristics!D52-PopulationCharacteristics!J52","v":-5.7793573992020342E-2},0.37095489257296976,1.645,"Persons per Household",null,"Y",{"$f":"PopulationCharacteristics!H52/1.645","v":0.19172471959919485},{"$f":"PopulationCharacteristics!K52/1.645","v":7.583181758306265E-2},0.20617670252320164,{"$f":"PopulationCharacteristics!G52-PopulationCharacteristics!J52","v":0.5650029070943412},2.7403819159963518,1.645]
["N",{"$f":"PopulationCharacteristics!E53/1.645","v":232.21884498480242},{"$f":"PopulationCharacteristics!K53/1.645","v":122.18844984802432},262.40352368506575,{"$f":"PopulationCharacteristics!D53-PopulationCharacteristics!J53","v":181},0.68977732256840618,1.645,"Family Households",null,"Y",{"$f":"PopulationCharacteristics!H53/1.645","v":135.56231003039514},{"$f":"PopulationCharacteristics!K53/1.645","v":122.18844984802432},182.50248539962442,{"$f":"PopulationCharacteristics!G53-PopulationCharacteristics!J53","v":-474},2.5972249033326067,1.645]
["N",{"$f":"PopulationCharacteristics!E54/1.645","v":0.18517528869549835},{"$f":"PopulationCharacteristics!K54/1.645","v":0.17588603286099891},0.25539339086797364,{"$f":"PopulationCharacteristics!D54-PopulationCharacteristics!J54","v":-0.13498286215040611},0.52852919056228009,1.645,"Persons per Family Household",null,"Y",{"$f":"PopulationCharacteristics!H54/1.645","v":0.15501300064018234},{"$f":"PopulationCharacteristics!K54/1.645","v":0.17588603286099891},0.23444600001504304,{"$f":"PopulationCharacteristics!G54-PopulationCharacteristics!J54","v":-1.7506178190066946},7.46704067842645,1.645]
["N",{"$f":"PopulationCharacteristics!E55/1.645","v":137.99392097264439},{"$f":"PopulationCharacteristics!K55/1.645","v":107.59878419452887},174.98520104724636,{"$f":"PopulationCharacteristics!D55-PopulationCharacteristics!J55","v":285},1.6287091610852817,1.645,"Married-Couple Family Hh",null,"Y",{"$f":"PopulationCharacteristics!H55/1.645","v":99.696048632218847},{"$f":"PopulationCharacteristics!K55/1.645","v":107.59878419452887},146.68606093633622,{"$f":"PopulationCharacteristics!G55-PopulationCharacteristics!J55","v":-812},5.535631639549031,1.645]
["N",{"$f":"PopulationCharacteristics!E56/1.645","v":81.458966565349542},{"$f":"PopulationCharacteristics!K56/1.645","v":88.145896656534958},120.02192437750394,{"$f":"PopulationCharacteristics!D56-PopulationCharacteristics!J56","v":-104},0.86650835286467898,1.645,"Single-Parent Family Hh",null,"Y",{"$f":"PopulationCharacteristics!H56/1.645","v":65.653495440729486},{"$f":"PopulationCharacteristics!K56/1.645","v":88.145896656534958},109.90941980089981,{"$f":"PopulationCharacteristics!G56-PopulationCharacteristics!J56","v":-386},3.5119828737085177,1.645]
["N",{"$f":"PopulationCharacteristics!E57/1.645","v":170.21276595744681},{"$f":"PopulationCharacteristics!K57/1.645","v":158.66261398176292},232.6933835982675,{"$f":"PopulationCharacteristics!D57-PopulationCharacteristics!J57","v":69},0.29652755455705071,1.645,"Non-Family Households*",null,"N",{"$f":"PopulationCharacteristics!H57/1.645","v":148.93617021276594},{"$f":"PopulationCharacteristics!K57/1.645","v":158.66261398176292},217.61389632367667,{"$f":"PopulationCharacteristics!G57-PopulationCharacteristics!J57","v":-268},1.2315389987842484,1.645]
["N",{"$f":"PopulationCharacteristics!E58/1.645","v":0.15663447661029334},{"$f":"PopulationCharacteristics!K58/1.645","v":0.16335292795105469},0.22631513058821981,{"$f":"PopulationCharacteristics!D58-PopulationCharacteristics!J58","v":6.6368156993663607E-3},2.9325550095199077E-2,1.645,"Persons per Non-Family Hh",null,"Y",{"$f":"PopulationCharacteristics!H58/1.645","v":0},{"$f":"PopulationCharacteristics!K58/1.645","v":0.16335292795105469},0.16335292795105469,{"$f":"PopulationCharacteristics!G58-PopulationCharacteristics!J58","v":-1.1447443997702469},7.0077984773755988,1.645]
["Y",{"$f":"PopulationCharacteristics!D36/1.645","v":77.203647416413375},{"$f":"PopulationCharacteristics!J36/1.645","v":147.72036474164133},166.67846091742456,{"$f":"PopulationCharacteristics!C36-PopulationCharacteristics!I36","v":704},4.2237011076600588,1.645,"Ethnicity -White",null,"N",{"$f":"PopulationCharacteristics!G36/1.645","v":200},{"$f":"PopulationCharacteristics!J36/1.645","v":147.72036474164133},248.63890717143116,{"$f":"PopulationCharacteristics!F36-PopulationCharacteristics!I36","v":249},{"$f":"ABS((N20/M20))","v":1.0014522780552597},1.645]
["Y",{"$f":"PopulationCharacteristics!D37/1.645","v":17.021276595744681},{"$f":"PopulationCharacteristics!J37/1.645","v":113.06990881458967},114.3439029257287,{"$f":"PopulationCharacteristics!C37-PopulationCharacteristics!I37","v":-601},5.2560738668363927,1.645,"Ethnicity -Black",null,"N",{"$f":"PopulationCharacteristics!G37/1.645","v":234.65045592705167},{"$f":"PopulationCharacteristics!J37/1.645","v":113.06990881458967},260.47195769624193,{"$f":"PopulationCharacteristics!F37-PopulationCharacteristics!I37","v":-350},{"$f":"ABS((N21/M21))","v":1.343714705780974},1.645]
["N",{"$f":"PopulationCharacteristics!D38/1.645","v":17.62917933130699},{"$f":"PopulationCharacteristics!J38/1.645","v":18.844984802431611},25.805453224062155,{"$f":"PopulationCharacteristics!C38-PopulationCharacteristics!I38","v":-1},3.875149920124462E-2,1.645,"Ethnicity -American Indian",null,"N",{"$f":"PopulationCharacteristics!G38/1.645","v":43.768996960486319},{"$f":"PopulationCharacteristics!J38/1.645","v":18.844984802431611},47.653526072379357,{"$f":"PopulationCharacteristics!F38-PopulationCharacteristics!I38","v":22},0.46166573207164002,1.645]
["N",{"$f":"PopulationCharacteristics!D39/1.645","v":72.317433959698732},{"$f":"PopulationCharacteristics!J39/1.645","v":31.13981392064607},78.736899008837341,{"$f":"PopulationCharacteristics!C39-PopulationCharacteristics!I39","v":-54},0.68582838135318358,1.645,"Ethnicity -Asian &Pacific Is",null,"N",{"$f":"PopulationCharacteristics!G39/1.645","v":24.270473893832378},{"$f":"PopulationCharacteristics!J39/1.645","v":31.13981392064607},39.480931017944116,{"$f":"PopulationCharacteristics!F39-PopulationCharacteristics!I39","v":-50},1.2664341673522075,1.645]
["Y",{"$f":"PopulationCharacteristics!D40/1.645","v":20.235035838411232},{"$f":"PopulationCharacteristics!J40/1.645","v":44.255987168878534},48.662604489214594,{"$f":"PopulationCharacteristics!C40-PopulationCharacteristics!I40","v":-126},2.5892572196362034,1.645,"Ethnicity -Other*",null,"N",{"$f":"PopulationCharacteristics!G40/1.645","v":48.852086572314747},{"$f":"PopulationCharacteristics!J40/1.645","v":44.255987168878534},65.917514840601171,{"$f":"PopulationCharacteristics!F40-PopulationCharacteristics!I40","v":-30},0.45511424501583042,1.645]
["Y",{"$f":"PopulationCharacteristics!D42/1.645","v":60.182370820668694},{"$f":"PopulationCharacteristics!J42/1.645","v":96.656534954407292},113.86133455650796,{"$f":"PopulationCharacteristics!C42-PopulationCharacteristics!I42","v":-470},4.1278279569676473,1.645,"Ethnicity -Hispanic",null,"Y",{"$f":"PopulationCharacteristics!G42/1.645","v":37.689969604863222},{"$f":"PopulationCharacteristics!J42/1.645","v":96.656534954407292},103.74497365274172,{"$f":"PopulationCharacteristics!F42-PopulationCharacteristics!I41","v":-9991},96.303460767575828,1.645]
["Y",{"$f":"PlaceOfBirthAndPriorRes!E8/1.645","v":89.361702127659569},{"$f":"PlaceOfBirthAndPriorRes!M8/1.645","v":79.635258358662611},119.6966506674414,{"$f":"PlaceOfBirthAndPriorRes!D8-PlaceOfBirthAndPriorRes!L8","v":-577},4.8205191772918115,1.645,"Place of Birth - United States Native",null,"Y",{"$f":"PlaceOfBirthAndPriorRes!I8/1.645","v":76.59574468085107},{"$f":"PlaceOfBirthAndPriorRes!M8/1.645","v":79.635258358662611},110.49290690838515,{"$f":"PlaceOfBirthAndPriorRes!H8-PlaceOfBirthAndPriorRes!L8","v":-509},4.6066305452714333,1.645]
["N",{"$f":"PlaceOfBirthAndPriorRes!E9/1.645","v":232.82674772036475},{"$f":"PlaceOfBirthAndPriorRes!M9/1.645","v":274.77203647416411},360.14992222989821,{"$f":"PlaceOfBirthAndPriorRes!D9-PlaceOfBirthAndPriorRes!L9","v":384},1.066222637568355,1.645,"Place of Birth - New Hampshire Native",null,"N",{"$f":"PlaceOfBirthAndPriorRes!I9/1.645","v":311.24620060790272},{"$f":"PlaceOfBirthAndPriorRes!M9/1.645","v":274.77203647416411},415.17932200558135,{"$f":"PlaceOfBirthAndPriorRes!H9-PlaceOfBirthAndPriorRes!L9","v":675},1.6258035124180048,1.645]
["Y",{"$f":"PlaceOfBirthAndPriorRes!E10/1.645","v":224.31610942249239},{"$f":"PlaceOfBirthAndPriorRes!M10/1.645","v":263.82978723404256},346.30026505679109,{"$f":"PlaceOfBirthAndPriorRes!D10-PlaceOfBirthAndPriorRes!L10","v":-956},2.7606100730047722,1.645,"Place of Birth - Born in Different State",null,"Y",{"$f":"PlaceOfBirthAndPriorRes!I10/1.645","v":286.93009118541033},{"$f":"PlaceOfBirthAndPriorRes!M10/1.645","v":263.82978723404256},389.78844757076638,{"$f":"PlaceOfBirthAndPriorRes!H10-PlaceOfBirthAndPriorRes!L10","v":-1079},2.7681682377313317,1.645]
["N",{"$f":"PlaceOfBirthAndPriorRes!E11/1.645","v":215.80547112462006},{"$f":"PlaceOfBirthAndPriorRes!M11/1.645","v":210.33434650455928},301.35118829501772,{"$f":"PlaceOfBirthAndPriorRes!D11-PlaceOfBirthAndPriorRes!L11","v":-315},1.0452920454112173,1.645,"Place of Birth - Northeast",null,"Y",{"$f":"PlaceOfBirthAndPriorRes!I11/1.645","v":179.93920972644378},{"$f":"PlaceOfBirthAndPriorRes!M11/1.645","v":210.33434650455928},276.80075237700697,{"$f":"PlaceOfBirthAndPriorRes!H11-PlaceOfBirthAndPriorRes!L11","v":-475},1.7160357980278989,1.645]
["Y",{"$f":"PlaceOfBirthAndPriorRes!E12/1.645","v":44.984802431610944},{"$f":"PlaceOfBirthAndPriorRes!M12/1.645","v":79.635258358662611},91.462597949446049,{"$f":"PlaceOfBirthAndPriorRes!D12-PlaceOfBirthAndPriorRes!L12","v":-207},2.2632202084880064,1.645,"Place of Birth - Midwest",null,"N",{"$f":"PlaceOfBirthAndPriorRes!I12/1.645","v":175.07598784194528},{"$f":"PlaceOfBirthAndPriorRes!M12/1.645","v":79.635258358662611},192.33662129891934,{"$f":"PlaceOfBirthAndPriorRes!H12-PlaceOfBirthAndPriorRes!L12","v":-135},0.7018944134938826,1.645]
["N",{"$f":"PlaceOfBirthAndPriorRes!E13/1.645","v":73.556231003039514},{"$f":"PlaceOfBirthAndPriorRes!M13/1.645","v":169.6048632218845},184.86840927504804,{"$f":"PlaceOfBirthAndPriorRes!D13-PlaceOfBirthAndPriorRes!L13","v":-291},1.5740926269725668,1.645,"Place of Birth - South",null,"Y",{"$f":"PlaceOfBirthAndPriorRes!I13/1.645","v":74.772036474164139},{"$f":"PlaceOfBirthAndPriorRes!M13/1.645","v":169.6048632218845},185.35551534013732,{"$f":"PlaceOfBirthAndPriorRes!H13-PlaceOfBirthAndPriorRes!L13","v":-400},2.1580150947544157,1.645]
["N",{"$f":"PlaceOfBirthAndPriorRes!E14/1.645","v":44.984802431610944},{"$f":"PlaceOfBirthAndPriorRes!M14/1.645","v":79.027355623100306},90.933796723721116,{"$f":"PlaceOfBirthAndPriorRes!D14-PlaceOfBirthAndPriorRes!L14","v":-143},1.5725726314328281,1.645,"Place of Birth - West",null,"N",{"$f":"PlaceOfBirthAndPriorRes!I14/1.645","v":68.693009118541028},{"$f":"PlaceOfBirthAndPriorRes!M14/1.645","v":79.027355623100306},104.70937130238116,{"$f":"PlaceOfBirthAndPriorRes!H14-PlaceOfBirthAndPriorRes!L14","v":-69},0.6589668063304559,1.645]
["N",{"$f":"PlaceOfBirthAndPriorRes!E15/1.645","v":54.711246200607903},{"$f":"PlaceOfBirthAndPriorRes!M15/1.645","v":63.221884498480243},83.608176276980885,{"$f":"PlaceOfBirthAndPriorRes!D15-PlaceOfBirthAndPriorRes!L15","v":-5},5.9802763589003279E-2,1.645,"Place of Birth - Native Born Outside US",null,"N",{"$f":"PlaceOfBirthAndPriorRes!I15/1.645","v":25.531914893617021},{"$f":"PlaceOfBirthAndPriorRes!M15/1.645","v":63.221884498480243},68.182735041021047,{"$f":"PlaceOfBirthAndPriorRes!H15-PlaceOfBirthAndPriorRes!L15","v":-105},1.5399792914852777,1.645]
["N",{"$f":"PlaceOfBirthAndPriorRes!E16/1.645","v":86.930091185410333},{"$f":"PlaceOfBirthAndPriorRes!M16/1.645","v":80.243161094224916},118.30386999543796,{"$f":"PlaceOfBirthAndPriorRes!D16-PlaceOfBirthAndPriorRes!L16","v":29},0.24513145682485535,1.645,"Place of Birth - Foreign Born",null,"N",{"$f":"PlaceOfBirthAndPriorRes!I16/1.645","v":76.59574468085107},{"$f":"PlaceOfBirthAndPriorRes!M16/1.645","v":80.243161094224916},110.93183945832619,{"$f":"PlaceOfBirthAndPriorRes!H16-PlaceOfBirthAndPriorRes!L16","v":-2},1.8029088941154181E-2,1.645]
["N",{"$f":"PlaceOfBirthAndPriorRes!E17/1.645","v":80.851063829787236},{"$f":"PlaceOfBirthAndPriorRes!M17/1.645","v":63.221884498480243},102.63479527892822,{"$f":"PlaceOfBirthAndPriorRes!D17-PlaceOfBirthAndPriorRes!L17","v":11},0.10717612842803996,1.645,"Place of Birth - Naturalized Citizen",null,"N",{"$f":"PlaceOfBirthAndPriorRes!I17/1.645","v":62.61398176291793},{"$f":"PlaceOfBirthAndPriorRes!M17/1.645","v":63.221884498480243},88.980432634069587,{"$f":"PlaceOfBirthAndPriorRes!H17-PlaceOfBirthAndPriorRes!L17","v":-30},0.337152777435624,1.645]
["N",{"$f":"PlaceOfBirthAndPriorRes!E18/1.645","v":37.08206686930091},{"$f":"PlaceOfBirthAndPriorRes!M18/1.645","v":40.121580547112458},54.633514520829948,{"$f":"PlaceOfBirthAndPriorRes!D18-PlaceOfBirthAndPriorRes!L18","v":18},0.32946809587249226,1.645,"Place of Birth - Not a Citizen",null,"N",{"$f":"PlaceOfBirthAndPriorRes!I18/1.645","v":49.848024316109424},{"$f":"PlaceOfBirthAndPriorRes!M18/1.645","v":40.121580547112458},63.988801784514365,{"$f":"PlaceOfBirthAndPriorRes!H18-PlaceOfBirthAndPriorRes!L18","v":28},0.43757656369768361,1.645]
["N",{"$f":"PlaceOfBirthAndPriorRes!E43/1.645","v":51.671732522796354},{"$f":"PlaceOfBirthAndPriorRes!I43/1.645","v":37.08206686930091},63.600688873680561,{"$f":"PlaceOfBirthAndPriorRes!D43-PlaceOfBirthAndPriorRes!H43","v":-59},0.92766290813581997,1.645,"Place of Residence for Population Total:",null,"Y",{"$f":"PlaceOfBirthAndPriorRes!I43/1.645","v":37.08206686930091},{"$f":"PlaceOfBirthAndPriorRes!M43/1.645","v":38.90577507598784},{"$f":"SQRT((K37^2)+(L37^2))","v":53.746990776811501},{"$f":"PlaceOfBirthAndPriorRes!H43-PlaceOfBirthAndPriorRes!L43","v":-481},8.9493382429053447,1.645]
["N",{"$f":"PlaceOfBirthAndPriorRes!E44/1.645","v":255.92705167173253},{"$f":"PlaceOfBirthAndPriorRes!I44/1.645","v":228.57142857142856},343.13780575239639,{"$f":"PlaceOfBirthAndPriorRes!D44-PlaceOfBirthAndPriorRes!H44","v":-230},0.67028463825395235,1.645,"Place of Residence for Population  Same house ",null,"Y",{"$f":"PlaceOfBirthAndPriorRes!I8/1.645","v":76.59574468085107},{"$f":"PlaceOfBirthAndPriorRes!M8/1.645","v":79.635258358662611},{"$f":"SQRT((K38^2)+(L38^2))","v":110.49290690838515},{"$f":"PlaceOfBirthAndPriorRes!H8-PlaceOfBirthAndPriorRes!L8","v":-509},4.6066305452714333,1.645]
["N",{"$f":"PlaceOfBirthAndPriorRes!E45/1.645","v":266.29401196493569},{"$f":"PlaceOfBirthAndPriorRes!I45/1.645","v":231.03103333819558},352.54480449113947,{"$f":"PlaceOfBirthAndPriorRes!D45-PlaceOfBirthAndPriorRes!H45","v":171},0.48504473139753151,1.645,"Place of Residence for Population  Different house",null,"N",{"$f":"PlaceOfBirthAndPriorRes!I9/1.645","v":311.24620060790272},{"$f":"PlaceOfBirthAndPriorRes!M9/1.645","v":274.77203647416411},415.17932200558135,{"$f":"PlaceOfBirthAndPriorRes!H9-PlaceOfBirthAndPriorRes!L9","v":675},1.6258035124180048,1.645]
["N",{"$f":"PlaceOfBirthAndPriorRes!E46/1.645","v":211.9977447131308},{"$f":"PlaceOfBirthAndPriorRes!I46/1.645","v":229.19223073676375},312.20525683202027,{"$f":"PlaceOfBirthAndPriorRes!D46-PlaceOfBirthAndPriorRes!H46","v":-19},6.0857399368591698E-2,1.645,"Place of Residence for Population in New Hampshire",null,"Y",{"$f":"PlaceOfBirthAndPriorRes!I10/1.645","v":286.93009118541033},{"$f":"PlaceOfBirthAndPriorRes!M10/1.645","v":263.82978723404256},389.78844757076638,{"$f":"PlaceOfBirthAndPriorRes!H10-PlaceOfBirthAndPriorRes!L10","v":-1079},2.7681682377313317,1.645]
["N",{"$f":"PlaceOfBirthAndPriorRes!E47/1.645","v":196.96048632218844},{"$f":"PlaceOfBirthAndPriorRes!I47/1.645","v":184.80243161094225},270.08400897052377,{"$f":"PlaceOfBirthAndPriorRes!D47-PlaceOfBirthAndPriorRes!H47","v":194},0.71829502509040666,1.645,"Place of Residence for Population Same county",null,"Y",{"$f":"PlaceOfBirthAndPriorRes!I11/1.645","v":179.93920972644378},{"$f":"PlaceOfBirthAndPriorRes!M11/1.645","v":210.33434650455928},276.80075237700697,{"$f":"PlaceOfBirthAndPriorRes!H11-PlaceOfBirthAndPriorRes!L11","v":-475},1.7160357980278989,1.645]
["N",{"$f":"PlaceOfBirthAndPriorRes!E48/1.645","v":78.419452887538},{"$f":"PlaceOfBirthAndPriorRes!I48/1.645","v":135.56231003039514},156.61018642463128,{"$f":"PlaceOfBirthAndPriorRes!D48-PlaceOfBirthAndPriorRes!H48","v":-213},1.3600647880111321,1.645,"Place of Residence for Population Different county",null,"N",{"$f":"PlaceOfBirthAndPriorRes!I12/1.645","v":175.07598784194528},{"$f":"PlaceOfBirthAndPriorRes!M12/1.645","v":79.635258358662611},192.33662129891934,{"$f":"PlaceOfBirthAndPriorRes!H12-PlaceOfBirthAndPriorRes!L12","v":-135},0.7018944134938826,1.645]
["N",{"$f":"PlaceOfBirthAndPriorRes!E49/1.645","v":161.09422492401217},{"$f":"PlaceOfBirthAndPriorRes!I49/1.645","v":28.571428571428569},163.60830001708493,{"$f":"PlaceOfBirthAndPriorRes!D49-PlaceOfBirthAndPriorRes!H49","v":192},1.1735345943937456,1.645,"Place of Residence for Population in Different state",null,"Y",{"$f":"PlaceOfBirthAndPriorRes!I13/1.645","v":74.772036474164139},{"$f":"PlaceOfBirthAndPriorRes!M13/1.645","v":169.6048632218845},185.35551534013732,{"$f":"PlaceOfBirthAndPriorRes!H13-PlaceOfBirthAndPriorRes!L13","v":-400},2.1580150947544157,1.645]
["N",{"$f":"PlaceOfBirthAndPriorRes!E50/1.645","v":4.2553191489361701},{"$f":"PlaceOfBirthAndPriorRes!I50/1.645","v":5.4711246200607899},6.9311575993868564,{"$f":"PlaceOfBirthAndPriorRes!D50-PlaceOfBirthAndPriorRes!H50","v":-2},0.28855208835201263,1.645,"Place of Residence for Population Elsewhere",null,"N",{"$f":"PlaceOfBirthAndPriorRes!I14/1.645","v":68.693009118541028},{"$f":"PlaceOfBirthAndPriorRes!M14/1.645","v":79.027355623100306},104.70937130238116,{"$f":"PlaceOfBirthAndPriorRes!H14-PlaceOfBirthAndPriorRes!L14","v":-69},0.6589668063304559,1.645]
["Y",{"$f":"SchoolEnrolEduAttain!G23/1.645","v":55.319148936170215},{"$f":"SchoolEnrolEduAttain!M23/1.645","v":53.495440729483285},{"$f":"SQRT((B45^2)+(C45^2))","v":76.954339824754797},{"$f":"SchoolEnrolEduAttain!F23-SchoolEnrolEduAttain!L23","v":-555},7.2120688873932322,1.645,"Total Population 3 years & over",null,"Y",{"$f":"SchoolEnrolEduAttain!J23/1.645","v":57.750759878419451},{"$f":"SchoolEnrolEduAttain!M23/1.645","v":53.495440729483285},{"$f":"SQRT((K45^2)+(L45^2))","v":78.720470307134988},{"$f":"SchoolEnrolEduAttain!I23-SchoolEnrolEduAttain!L23","v":-456},5.7926483190569753,1.645]
["N",{"$f":"SchoolEnrolEduAttain!G24/1.645","v":135.56231003039514},{"$f":"SchoolEnrolEduAttain!M24/1.645","v":147.11246200607903},{"$f":"SQRT((B46^2)+(C46^2))","v":200.04803517722189},{"$f":"SchoolEnrolEduAttain!F24-SchoolEnrolEduAttain!L24","v":120},0.5998559290706974,1.645,"Population 3 years & over enrolled in school",null,"N",{"$f":"SchoolEnrolEduAttain!J24/1.645","v":122.79635258358662},{"$f":"SchoolEnrolEduAttain!M24/1.645","v":147.11246200607903},{"$f":"SQRT((K46^2)+(L46^2))","v":191.62729629497611},{"$f":"SchoolEnrolEduAttain!I24-SchoolEnrolEduAttain!L24","v":80},0.41747705857548728,1.645]
["N",{"$f":"SchoolEnrolEduAttain!G25/1.645","v":50.294538095739952},{"$f":"SchoolEnrolEduAttain!M25/1.645","v":59.47513584746509},77.889873195032635,{"$f":"SchoolEnrolEduAttain!F25-SchoolEnrolEduAttain!L25","v":61},0.78315700742327343,1.645,"Preprimary (Nursery, Preschool, Kindergarten)",null,"N",{"$f":"SchoolEnrolEduAttain!J25/1.645","v":62.484003551526989},{"$f":"SchoolEnrolEduAttain!M25/1.645","v":59.47513584746509},86.264375520267137,{"$f":"SchoolEnrolEduAttain!I25-SchoolEnrolEduAttain!L25","v":15},0.17388406175241908,1.645]
["Y",{"$f":"SchoolEnrolEduAttain!G26/1.645","v":35.866261398176292},{"$f":"SchoolEnrolEduAttain!M26/1.645","v":7.2948328267477205},36.600591424900593,{"$f":"SchoolEnrolEduAttain!F26-SchoolEnrolEduAttain!L26","v":124},3.3879233961131758,1.645,"Nursery school and Preschool",null,"Y",{"$f":"SchoolEnrolEduAttain!J26/1.645","v":58.966565349544069},{"$f":"SchoolEnrolEduAttain!M26/1.645","v":7.2948328267477205},59.416078758971018,{"$f":"SchoolEnrolEduAttain!I26-SchoolEnrolEduAttain!L26","v":157},2.6423823867086673,1.645]
["Y",{"$f":"SchoolEnrolEduAttain!G27/1.645","v":35.258358662613979},{"$f":"SchoolEnrolEduAttain!M27/1.645","v":3.6474164133738602},35.44651607808693,{"$f":"SchoolEnrolEduAttain!F27-SchoolEnrolEduAttain!L27","v":115},3.2443244844334114,1.645,"Kindergarten",null,"Y",{"$f":"SchoolEnrolEduAttain!J27/1.645","v":20.668693009118542},{"$f":"SchoolEnrolEduAttain!M27/1.645","v":3.6474164133738602},20.988056536938686,{"$f":"SchoolEnrolEduAttain!I27-SchoolEnrolEduAttain!L27","v":36},1.7152612456823004,1.645]
["N",{"$f":"SchoolEnrolEduAttain!G28/1.645","v":123.95999856659421},{"$f":"SchoolEnrolEduAttain!M28/1.645","v":128.99432487732048},178.90113776939972,{"$f":"SchoolEnrolEduAttain!F28-SchoolEnrolEduAttain!L28","v":80},0.44717435002072781,1.645,"Elementary through High school",null,"N",{"$f":"SchoolEnrolEduAttain!J28/1.645","v":112.911285277234},{"$f":"SchoolEnrolEduAttain!M28/1.645","v":128.99432487732048},171.43072709847735,{"$f":"SchoolEnrolEduAttain!I28-SchoolEnrolEduAttain!L28","v":27},0.15749801950317818,1.645]
["N",{"$f":"SchoolEnrolEduAttain!G29/1.645","v":97.463701660751184},{"$f":"SchoolEnrolEduAttain!M29/1.645","v":108.40799552257876},145.77882779964781,{"$f":"SchoolEnrolEduAttain!F29-SchoolEnrolEduAttain!L29","v":46},0.31554650763978176,1.645,"Elementary school (grades 1-8)",null,"N",{"$f":"SchoolEnrolEduAttain!J29/1.645","v":99.104927066519906},{"$f":"SchoolEnrolEduAttain!M29/1.645","v":108.40799552257876},146.8811766772165,{"$f":"SchoolEnrolEduAttain!I29-SchoolEnrolEduAttain!L29","v":128},0.87145271365363963,1.645]
["N",{"$f":"SchoolEnrolEduAttain!G30/1.645","v":76.59574468085107},{"$f":"SchoolEnrolEduAttain!M30/1.645","v":69.908814589665653},103.70222013316,{"$f":"SchoolEnrolEduAttain!F30-SchoolEnrolEduAttain!L30","v":34},0.32786183320223927,1.645,"High school (grades 9-12)",null,"N",{"$f":"SchoolEnrolEduAttain!J30/1.645","v":54.10334346504559},{"$f":"SchoolEnrolEduAttain!M30/1.645","v":69.908814589665653},88.399174947670986,{"$f":"SchoolEnrolEduAttain!I30-SchoolEnrolEduAttain!L30","v":-101},1.1425446002158757,1.645]
["N",{"$f":"SchoolEnrolEduAttain!G31/1.645","v":67.881262370323668},{"$f":"SchoolEnrolEduAttain!M31/1.645","v":89.446437504937151},112.28771510416153,{"$f":"SchoolEnrolEduAttain!F31-SchoolEnrolEduAttain!L31","v":-21},0.18701956826283048,1.645,"College or Graduate School",null,"N",{"$f":"SchoolEnrolEduAttain!J31/1.645","v":62.837856329888709},{"$f":"SchoolEnrolEduAttain!M31/1.645","v":89.446437504937151},109.31267708029276,{"$f":"SchoolEnrolEduAttain!I31-SchoolEnrolEduAttain!L31","v":38},0.34762665241551166,1.645]
["Y",{"$f":"SchoolEnrolEduAttain!G52/1.645","v":142.24924012158056},{"$f":"SchoolEnrolEduAttain!M52/1.645","v":99.696048632218847},{"$f":"SQRT((B54^2)+(C54^2))","v":173.70707650537679},{"$f":"SchoolEnrolEduAttain!I52-SchoolEnrolEduAttain!L52","v":-548},3.1547361859091425,1.645,"Population 25 years and over",null,"Y",{"$f":"SchoolEnrolEduAttain!J52/1.645","v":141.64133738601822},{"$f":"SchoolEnrolEduAttain!M52/1.645","v":99.696048632218847},{"$f":"SQRT((K54^2)+(L54^2))","v":173.20961454081464},{"$f":"SchoolEnrolEduAttain!I52-SchoolEnrolEduAttain!L52","v":-548},3.1637966602071663,1.645]
["N",{"$f":"SchoolEnrolEduAttain!G53/1.645","v":71.409814519722886},{"$f":"SchoolEnrolEduAttain!M53/1.645","v":80.816776329978467},{"$f":"SQRT((B55^2)+(C55^2))","v":107.84578316332538},{"$f":"SchoolEnrolEduAttain!I53-SchoolEnrolEduAttain!L53","v":-87},0.806707480330911,1.645,"Less than 9th Grade",null,"N",{"$f":"SchoolEnrolEduAttain!J53/1.645","v":55.25899398085263},{"$f":"SchoolEnrolEduAttain!M53/1.645","v":80.816776329978467},{"$f":"SQRT((K55^2)+(L55^2))","v":97.90254211278517},{"$f":"SchoolEnrolEduAttain!I53-SchoolEnrolEduAttain!L53","v":-87},0.8886388251264683,1.645]
["N",{"$f":"SchoolEnrolEduAttain!G54/1.645","v":114.40367707603161},{"$f":"SchoolEnrolEduAttain!M54/1.645","v":102.25603452807876},153.44216475898844,{"$f":"SchoolEnrolEduAttain!I54-SchoolEnrolEduAttain!L54","v":71},0.46271505691750164,1.645,"9th to 12th Grade, no Diploma",null,"N",{"$f":"SchoolEnrolEduAttain!J54/1.645","v":94.432558755456782},{"$f":"SchoolEnrolEduAttain!M54/1.645","v":102.25603452807876},139.18981554162085,{"$f":"SchoolEnrolEduAttain!I54-SchoolEnrolEduAttain!L54","v":71},0.51009479194811791,1.645]
["N",{"$f":"SchoolEnrolEduAttain!G55/1.645","v":185.82344729038587},{"$f":"SchoolEnrolEduAttain!M55/1.645","v":195.62854074998523},269.81638111658725,{"$f":"SchoolEnrolEduAttain!I55-SchoolEnrolEduAttain!L55","v":-366},1.3564780555034275,1.645,"High School Graduate ",null,"N",{"$f":"SchoolEnrolEduAttain!J55/1.645","v":250.24115086484917},{"$f":"SchoolEnrolEduAttain!M55/1.645","v":195.62854074998523},317.63368766888192,{"$f":"SchoolEnrolEduAttain!I55-SchoolEnrolEduAttain!L55","v":-366},1.1522707263391334,1.645]
["N",{"$f":"SchoolEnrolEduAttain!G56/1.645","v":114.7294625071065},{"$f":"SchoolEnrolEduAttain!M56/1.645","v":151.67020971270793},190.17545078549531,{"$f":"SchoolEnrolEduAttain!I56-SchoolEnrolEduAttain!L56","v":-42},0.22084869433212534,1.645,"Some College, No Degree",null,"N",{"$f":"SchoolEnrolEduAttain!J56/1.645","v":138.62581779195057},{"$f":"SchoolEnrolEduAttain!M56/1.645","v":151.67020971270793},205.4774193744507,{"$f":"SchoolEnrolEduAttain!I56-SchoolEnrolEduAttain!L56","v":-42},0.204402022021999,1.645]
["N",{"$f":"SchoolEnrolEduAttain!G57/1.645","v":80.178660638529109},{"$f":"SchoolEnrolEduAttain!M57/1.645","v":99.319103542516956},127.64365221301692,{"$f":"SchoolEnrolEduAttain!I57-SchoolEnrolEduAttain!L57","v":67},0.52489880098532182,1.645,"Associate Degree",null,"N",{"$f":"SchoolEnrolEduAttain!J57/1.645","v":78.464208147173508},{"$f":"SchoolEnrolEduAttain!M57/1.645","v":99.319103542516956},126.57375829393774,{"$f":"SchoolEnrolEduAttain!I57-SchoolEnrolEduAttain!L57","v":67},0.52933562930483802,1.645]
["N",{"$f":"SchoolEnrolEduAttain!G58/1.645","v":72.261201542221087},{"$f":"SchoolEnrolEduAttain!M58/1.645","v":99.402786110877656},122.89261627506507,{"$f":"SchoolEnrolEduAttain!I58-SchoolEnrolEduAttain!L58","v":-110},0.89509039138520663,1.645,"Bachelor's Degree",null,"N",{"$f":"SchoolEnrolEduAttain!J58/1.645","v":94.749008239238407},{"$f":"SchoolEnrolEduAttain!M58/1.645","v":99.402786110877656},137.32548361074197,{"$f":"SchoolEnrolEduAttain!I58-SchoolEnrolEduAttain!L58","v":-110},0.80101665843611491,1.645]
["N",{"$f":"SchoolEnrolEduAttain!G59/1.645","v":82.605459949509026},{"$f":"SchoolEnrolEduAttain!M59/1.645","v":50.371629144964366},96.75206993231599,{"$f":"SchoolEnrolEduAttain!I59-SchoolEnrolEduAttain!L59","v":-77},0.79584860617314157,1.645,"Graduate or Professional Degree",null,"N",{"$f":"SchoolEnrolEduAttain!J59/1.645","v":43.1054052309686},{"$f":"SchoolEnrolEduAttain!M59/1.645","v":50.371629144964366},66.29763934593629,{"$f":"SchoolEnrolEduAttain!I59-SchoolEnrolEduAttain!L59","v":-77},1.1614289854005142,1.645]
["N",{"$f":"HousingCharacteristics!D32/1.645","v":198.17629179331306},{"$f":"HousingCharacteristics!J32/1.645","v":131.30699088145897},237.72961212960388,{"$f":"HousingCharacteristics!C32-HousingCharacteristics!I32","v":55},0.23135527588382829,1.645,"Total Housing Units",null,"N",{"$f":"HousingCharacteristics!G32/1.645","v":198.17629179331306},{"$f":"HousingCharacteristics!J32/1.645","v":131.30699088145897},{"$f":"SQRT((K62^2)+(L62^2))","v":237.72961212960388},{"$f":"HousingCharacteristics!F32-HousingCharacteristics!I32","v":70},{"$f":"ABS((N62/M62))","v":0.29445216930669055},1.645]
["N",{"$f":"HousingCharacteristics!D33/1.645","v":184.19452887537994},{"$f":"HousingCharacteristics!J33/1.645","v":122.18844984802432},221.03764779757842,{"$f":"HousingCharacteristics!C33-HousingCharacteristics!I33","v":250},1.1310290463683574,1.645,"Occupied Units",null,"N",{"$f":"HousingCharacteristics!G33/1.645","v":184.19452887537994},{"$f":"HousingCharacteristics!J33/1.645","v":122.18844984802432},{"$f":"SQRT((K63^2)+(L63^2))","v":221.03764779757842},{"$f":"HousingCharacteristics!F33-HousingCharacteristics!I33","v":208},{"$f":"ABS((N63/M63))","v":0.94101616657847342},1.645]
["Y",{"$f":"HousingCharacteristics!D34/1.645","v":142.24924012158056},{"$f":"HousingCharacteristics!J34/1.645","v":116.71732522796353},184.00483777210124,{"$f":"HousingCharacteristics!C34-HousingCharacteristics!I34","v":475},2.5814538669266409,1.645,"Owner Occupied",null,"Y",{"$f":"HousingCharacteristics!G34/1.645","v":142.24924012158056},{"$f":"HousingCharacteristics!J34/1.645","v":116.71732522796353},184.00483777210124,{"$f":"HousingCharacteristics!F34-HousingCharacteristics!I34","v":306},1.6629997542727413,1.645]
["N",{"$f":"HousingCharacteristics!D35/1.645","v":137.38601823708206},{"$f":"HousingCharacteristics!J35/1.645","v":119.14893617021276},181.85540134275166,{"$f":"HousingCharacteristics!C35-HousingCharacteristics!I35","v":-225},1.237246726457861,1.645,"Renter Occupied",null,"N",{"$f":"HousingCharacteristics!G35/1.645","v":137.38601823708206},{"$f":"HousingCharacteristics!J35/1.645","v":119.14893617021276},181.85540134275166,{"$f":"HousingCharacteristics!F35-HousingCharacteristics!I35","v":-98},0.53888968530164616,1.645]
["N",{"$f":"HousingCharacteristics!D36/1.645","v":92.401215805471125},{"$f":"HousingCharacteristics!J36/1.645","v":116.71732522796353},148.86543820074377,{"$f":"HousingCharacteristics!C36-HousingCharacteristics!I36","v":-195},1.309907809071466,1.645,"Vacant Units",null,"N",{"$f":"HousingCharacteristics!G36/1.645","v":92.401215805471125},{"$f":"HousingCharacteristics!J36/1.645","v":116.71732522796353},148.86543820074377,{"$f":"HousingCharacteristics!F36-HousingCharacteristics!I36","v":-138},0.92701168026596059,1.645]
["N",{"$f":"HousingCharacteristics!D37/1.645","v":38.90577507598784},{"$f":"HousingCharacteristics!J37/1.645","v":37.689969604863222},54.16819309409231,{"$f":"HousingCharacteristics!C37-HousingCharacteristics!I37","v":46},0.84920683841338707,1.645,"Vacant For Sale",null,"N",{"$f":"HousingCharacteristics!G37/1.645","v":38.90577507598784},{"$f":"HousingCharacteristics!J37/1.645","v":37.689969604863222},54.16819309409231,{"$f":"HousingCharacteristics!F37-HousingCharacteristics!I37","v":-2},3.6922036452755963E-2,1.645]
[{"$f":"IF(F68>G68,\"Y\",\"N\")","v":"N"},{"$f":"HousingCharacteristics!D38/1.645","v":24.924012158054712},{"$f":"HousingCharacteristics!J38/1.645","v":43.768996960486319},50.367960818182027,{"$f":"HousingCharacteristics!C38-HousingCharacteristics!I38","v":-9},{"$f":"ABS((E68/D68))","v":0.17868501828946676},1.645,"Vacant For Rent",null,"N",{"$f":"HousingCharacteristics!G38/1.645","v":24.924012158054712},{"$f":"HousingCharacteristics!J38/1.645","v":43.768996960486319},50.367960818182027,{"$f":"HousingCharacteristics!F38-HousingCharacteristics!I38","v":-74},1.4691879281578377,1.645]
["N",{"$f":"HousingCharacteristics!D39/1.645","v":58.358662613981764},{"$f":"HousingCharacteristics!J39/1.645","v":49.848024316109424},76.749977396165988,{"$f":"HousingCharacteristics!C39-HousingCharacteristics!I39","v":-48},0.62540735031405781,1.645,"Vacant Seasonal",null,{"$f":"IF(O69>P69,\"Y\",\"N\")","v":"N"},{"$f":"HousingCharacteristics!G39/1.645","v":58.358662613981764},{"$f":"HousingCharacteristics!J39/1.645","v":49.848024316109424},76.749977396165988,{"$f":"HousingCharacteristics!F39-HousingCharacteristics!I39","v":21},0.27361571576240029,1.645]
["N",{"$f":"HousingCharacteristics!E71/1.645","v":203.03951367781156},{"$f":"HousingCharacteristics!K71/1.645","v":131.30699088145897},241.79861448913593,{"$f":"HousingCharacteristics!D71-HousingCharacteristics!J71","v":55},0.22746201468607324,1.645,"Total Housing Units",null,"N",{"$f":"HousingCharacteristics!H71/1.645","v":198.17629179331306},{"$f":"HousingCharacteristics!K71/1.645","v":131.30699088145897},237.72961212960388,{"$f":"HousingCharacteristics!G71-HousingCharacteristics!J71","v":70},0.29445216930669055,1.645]
["N",{"$f":"HousingCharacteristics!E72/1.645","v":134.34650455927053},{"$f":"HousingCharacteristics!K72/1.645","v":153.79939209726444},204.2137025196453,{"$f":"HousingCharacteristics!D72-HousingCharacteristics!J72","v":-168},0.82266761694817447,1.645,"Single Family Units",null,"N",{"$f":"HousingCharacteristics!H72/1.645","v":151.9756838905775},{"$f":"HousingCharacteristics!K72/1.645","v":153.79939209726444},216.21947531038185,{"$f":"HousingCharacteristics!G72-HousingCharacteristics!J72","v":-180},0.83248745165814042,1.645]
["N",{"$f":"HousingCharacteristics!E73/1.645","v":144.07294832826747},{"$f":"HousingCharacteristics!K73/1.645","v":119.75683890577507},187.34651025493747,{"$f":"HousingCharacteristics!D73-HousingCharacteristics!J73","v":-160},0.85403245452650878,1.645,"SF Owner Occ.",null,"Y",{"$f":"HousingCharacteristics!H73/1.645","v":125.83586626139818},{"$f":"HousingCharacteristics!K73/1.645","v":119.75683890577507},173.71345861061039,{"$f":"HousingCharacteristics!G73-HousingCharacteristics!J73","v":-347},1.9975424056107378,1.645]
["N",{"$f":"HousingCharacteristics!E74/1.645","v":49.240121580547111},{"$f":"HousingCharacteristics!K74/1.645","v":43.768996960486319},65.88106456482106,{"$f":"HousingCharacteristics!D74-HousingCharacteristics!J74","v":-22},0.33393510176742774,1.645,"SF Renter Occ.",null,"N",{"$f":"HousingCharacteristics!H74/1.645","v":63.829787234042556},{"$f":"HousingCharacteristics!K74/1.645","v":43.768996960486319},77.394876014308608,{"$f":"HousingCharacteristics!G74-HousingCharacteristics!J74","v":86},1.1111846730538142,1.645]
["N",{"$f":"HousingCharacteristics!E75/1.645","v":175.84263082248054},{"$f":"HousingCharacteristics!K75/1.645","v":193.07970850923104},261.15207189027012,{"$f":"HousingCharacteristics!D75-HousingCharacteristics!J75","v":-144},0.55140286254556448,1.645,"Multi-family Units",null,"N",{"$f":"HousingCharacteristics!H75/1.645","v":171.54601594690087},{"$f":"HousingCharacteristics!K75/1.645","v":193.07970850923104},258.27855006806891,{"$f":"HousingCharacteristics!G75-HousingCharacteristics!J75","v":-120},0.4646146571922995,1.645]
["N",{"$f":"HousingCharacteristics!E76/1.645","v":169.28099286379029},{"$f":"HousingCharacteristics!K76/1.645","v":73.322243323110527},184.47819901246879,{"$f":"HousingCharacteristics!D76-HousingCharacteristics!J76","v":-24},0.13009667336560377,1.645,"MF Owner Occ.",null,"N",{"$f":"HousingCharacteristics!H76/1.645","v":55.399253936166701},{"$f":"HousingCharacteristics!K76/1.645","v":73.322243323110527},91.897925453283804,{"$f":"HousingCharacteristics!G76-HousingCharacteristics!J76","v":-20},0.21763276919854926,1.645]
["N",{"$f":"HousingCharacteristics!E77/1.645","v":140.90891683776979},{"$f":"HousingCharacteristics!K77/1.645","v":141.72871276070146},199.85582519706284,{"$f":"HousingCharacteristics!D77-HousingCharacteristics!J77","v":-55},0.27519838336345026,1.645,"MF Renter Occ.",null,"N",{"$f":"HousingCharacteristics!H77/1.645","v":134.20201557735322},{"$f":"HousingCharacteristics!K77/1.645","v":141.72871276070146},195.18506348035336,{"$f":"HousingCharacteristics!G77-HousingCharacteristics!J77","v":-25},0.12808357132571474,1.645]
["N",{"$f":"HousingCharacteristics!E78/1.645","v":72.317433959698732},{"$f":"HousingCharacteristics!K78/1.645","v":19.604274159996471},74.927557145923899,{"$f":"HousingCharacteristics!D78-HousingCharacteristics!J78","v":10},0.13346224514599708,1.645,"Mobile Home & Other",null,"N",{"$f":"HousingCharacteristics!H78/1.645","v":28.835358603359079},{"$f":"HousingCharacteristics!K78/1.645","v":19.604274159996471},34.868402187720328,{"$f":"HousingCharacteristics!G78-HousingCharacteristics!J78","v":13},0.37283039039219973,1.645]
["N",{"$f":"HousingCharacteristics!$D88/1.645","v":23.70820668693009},{"$f":"HousingCharacteristics!L88/1.645","v":43.768996960486319},49.777546737834093,{"$f":"HousingCharacteristics!$D88-HousingCharacteristics!$K88","v":-51},1.0245583268417036,1.645,"No Bedrooms",null,"N",{"$f":"HousingCharacteristics!H88/1.645","v":40.121580547112458},{"$f":"HousingCharacteristics!L88/1.645","v":43.768996960486319},59.375637432582508,{"$f":"HousingCharacteristics!G88-HousingCharacteristics!K88","v":-11},0.18526116898517248,1.645]
["Y",{"$f":"HousingCharacteristics!$D89/1.645","v":105.16717325227964},{"$f":"HousingCharacteristics!L89/1.645","v":94.832826747720361},141.61002562967832,{"$f":"HousingCharacteristics!$D89-HousingCharacteristics!$K89","v":-530},3.742672862626216,1.645,"1 Bedroom",null,"N",{"$f":"HousingCharacteristics!H89/1.645","v":83.282674772036472},{"$f":"HousingCharacteristics!L89/1.645","v":94.832826747720361},126.21120768833465,{"$f":"HousingCharacteristics!G89-HousingCharacteristics!K89","v":-135},1.0696355931667205,1.645]
["Y",{"$f":"HousingCharacteristics!$D90/1.645","v":134.95440729483283},{"$f":"HousingCharacteristics!L90/1.645","v":136.17021276595744},191.71598497002211,{"$f":"HousingCharacteristics!$D90-HousingCharacteristics!$K90","v":-1430},7.4589502811860138,1.645,"2 Bedrooms",null,"N",{"$f":"HousingCharacteristics!H90/1.645","v":141.03343465045592},{"$f":"HousingCharacteristics!L90/1.645","v":136.17021276595744},196.04274159996473,{"$f":"HousingCharacteristics!G90-HousingCharacteristics!K90","v":-145},0.73963462669727364,1.645]
["Y",{"$f":"HousingCharacteristics!$D91/1.645","v":131.30699088145897},{"$f":"HousingCharacteristics!L91/1.645","v":127.05167173252279},182.71194034428149,{"$f":"HousingCharacteristics!$D91-HousingCharacteristics!$K91","v":-1692},9.2604785259889901,1.645,"3 Bedrooms",null,"N",{"$f":"HousingCharacteristics!H91/1.645","v":153.79939209726444},{"$f":"HousingCharacteristics!L91/1.645","v":127.05167173252279},199.49030126679548,{"$f":"HousingCharacteristics!G91-HousingCharacteristics!K91","v":89},0.44613697726072743,1.645]
["Y",{"$f":"HousingCharacteristics!$D92/1.645","v":104.39656528490241},{"$f":"HousingCharacteristics!L92/1.645","v":94.477551328495991},140.80003745849459,{"$f":"HousingCharacteristics!$D92-HousingCharacteristics!$K92","v":-616.26765010633551},4.376899759618321,1.645,"4+ Bedrooms",null,"N",{"$f":"HousingCharacteristics!H92/1.645","v":82.19060805425201},{"$f":"HousingCharacteristics!L92/1.645","v":94.477551328495991},125.22501250691201,{"$f":"HousingCharacteristics!G92-HousingCharacteristics!K92","v":-85},0.67877813144804666,1.645]
["N",{"$f":"'HHIncome-10YearComparison'!$F$30/1.645","v":86.930091185410333},{"$f":"'HHIncome-10YearComparison'!$M$30/1.645","v":62.006079027355625},{"$f":"SQRT((B83^2)+(C83^2))","v":106.77824961035101},{"$f":"'HHIncome-10YearComparison'!$E$30-'HHIncome-10YearComparison'!$L$30","v":114},1.067633159524549,1.645,"Household Income Less than $10,000",null,"N",{"$f":"'HHIncome-10YearComparison'!$F$30/1.645","v":86.930091185410333},{"$f":"'HHIncome-10YearComparison'!$J$30/1.645","v":62.006079027355625},{"$f":"SQRT((K83^2)+(L83^2))","v":106.77824961035101},{"$f":"'HHIncome-10YearComparison'!$E$30-'HHIncome-10YearComparison'!$I$30","v":114},1.067633159524549,1.645]
["N",{"$f":"'HHIncome-10YearComparison'!$F$31/1.645","v":76.59574468085107},{"$f":"'HHIncome-10YearComparison'!$M$31/1.645","v":89.361702127659569},{"$f":"SQRT((B84^2)+(C84^2))","v":117.69631222076026},{"$f":"'HHIncome-10YearComparison'!$E$31-'HHIncome-10YearComparison'!$L$31","v":-102},0.86663717898553139,1.645,"Household Income $10,000 to $14,999",null,"N",{"$f":"'HHIncome-10YearComparison'!$F$31/1.645","v":76.59574468085107},{"$f":"'HHIncome-10YearComparison'!$J$31/1.645","v":89.361702127659569},{"$f":"SQRT((K84^2)+(L84^2))","v":117.69631222076026},{"$f":"'HHIncome-10YearComparison'!$E$31-'HHIncome-10YearComparison'!$I$31","v":-102},0.86663717898553139,1.645]
["Y",{"$f":"'HHIncome-10YearComparison'!$F$32/1.645","v":74.164133738601819},{"$f":"'HHIncome-10YearComparison'!$M$32/1.645","v":94.371882652036618},120.02654276653554,{"$f":"'HHIncome-10YearComparison'!$E$32-'HHIncome-10YearComparison'!$L$32","v":-312},2.599425033901654,1.645,"Household Income $15,000 to $24,999",null,"Y",{"$f":"'HHIncome-10YearComparison'!$F$32/1.645","v":74.164133738601819},{"$f":"'HHIncome-10YearComparison'!$J$32/1.645","v":94.371882652036618},120.02654276653554,{"$f":"'HHIncome-10YearComparison'!$E$32-'HHIncome-10YearComparison'!$I$32","v":-312},2.599425033901654,1.645]
["N",{"$f":"'HHIncome-10YearComparison'!$F$33/1.645","v":82.674772036474167},{"$f":"'HHIncome-10YearComparison'!$M$33/1.645","v":76.04617821537046},112.3304907513844,{"$f":"'HHIncome-10YearComparison'!$E$33-'HHIncome-10YearComparison'!$L$33","v":19},0.16914374603821303,1.645,"Household Income $25,000 to $34,999",null,"N",{"$f":"'HHIncome-10YearComparison'!$F$33/1.645","v":82.674772036474167},{"$f":"'HHIncome-10YearComparison'!$J$33/1.645","v":76.04617821537046},112.3304907513844,{"$f":"'HHIncome-10YearComparison'!$E$33-'HHIncome-10YearComparison'!$I$33","v":19},0.16914374603821303,1.645]
["Y",{"$f":"'HHIncome-10YearComparison'!$F$34/1.645","v":40.121580547112458},{"$f":"'HHIncome-10YearComparison'!$M$34/1.645","v":105.28131269465047},112.66719144590054,{"$f":"'HHIncome-10YearComparison'!$E$34-'HHIncome-10YearComparison'!$L$34","v":-531},4.7129957992693061,1.645,"Household Income $35,000 to $49,999",null,"Y",{"$f":"'HHIncome-10YearComparison'!$F$34/1.645","v":40.121580547112458},{"$f":"'HHIncome-10YearComparison'!$J$34/1.645","v":105.28131269465047},112.66719144590054,{"$f":"'HHIncome-10YearComparison'!$E$34-'HHIncome-10YearComparison'!$I$34","v":-531},4.7129957992693061,1.645]
["Y",{"$f":"'HHIncome-10YearComparison'!$F$35/1.645","v":41.945288753799389},{"$f":"'HHIncome-10YearComparison'!$M$35/1.645","v":86.529568097580238},96.160144570364423,{"$f":"'HHIncome-10YearComparison'!$E$35-'HHIncome-10YearComparison'!$L$35","v":-385},4.0037377410376012,1.645,"Household Income $50,000 to $74,999",null,"Y",{"$f":"'HHIncome-10YearComparison'!$F$35/1.645","v":41.945288753799389},{"$f":"'HHIncome-10YearComparison'!$J$35/1.645","v":86.529568097580238},96.160144570364423,{"$f":"'HHIncome-10YearComparison'!$E$35-'HHIncome-10YearComparison'!$I$35","v":-385},4.0037377410376012,1.645]
["Y",{"$f":"'HHIncome-10YearComparison'!$F$36/1.645","v":57.142857142857139},{"$f":"'HHIncome-10YearComparison'!$M$36/1.645","v":64.437689969604861},86.125037074406492,{"$f":"'HHIncome-10YearComparison'!$E$36-'HHIncome-10YearComparison'!$L$36","v":-150},1.7416538221099358,1.645,"Household Income $75,000 to $99,999",null,"Y",{"$f":"'HHIncome-10YearComparison'!$F$36/1.645","v":57.142857142857139},{"$f":"'HHIncome-10YearComparison'!$J$36/1.645","v":64.437689969604861},86.125037074406492,{"$f":"'HHIncome-10YearComparison'!$E$36-'HHIncome-10YearComparison'!$I$36","v":-150},1.7416538221099358,1.645]
["N",{"$f":"'HHIncome-10YearComparison'!$F$37/1.645","v":57.750759878419451},{"$f":"'HHIncome-10YearComparison'!$M$37/1.645","v":77.325610291345143},96.511140670203687,{"$f":"'HHIncome-10YearComparison'!$E$37-'HHIncome-10YearComparison'!$L$37","v":-130},1.3469947520798029,1.645,"Household Income $100,000 to $149,999",null,"N",{"$f":"'HHIncome-10YearComparison'!$F$37/1.645","v":57.750759878419451},{"$f":"'HHIncome-10YearComparison'!$J$37/1.645","v":77.325610291345143},96.511140670203687,{"$f":"'HHIncome-10YearComparison'!$E$37-'HHIncome-10YearComparison'!$I$37","v":-130},1.3469947520798029,1.645]
["Y",{"$f":"'HHIncome-10YearComparison'!$F$38/1.645","v":57.142857142857139},{"$f":"'HHIncome-10YearComparison'!$M$38/1.645","v":40.121580547112458},69.821539284431509,{"$f":"'HHIncome-10YearComparison'!$E$38-'HHIncome-10YearComparison'!$L$38","v":131},1.8762118587266636,1.645,"Household Income $150,000 to $199,999",null,"Y",{"$f":"'HHIncome-10YearComparison'!$F$38/1.645","v":57.142857142857139},{"$f":"'HHIncome-10YearComparison'!$J$38/1.645","v":40.121580547112458},69.821539284431509,{"$f":"'HHIncome-10YearComparison'!$E$38-'HHIncome-10YearComparison'!$I$38","v":131},1.8762118587266636,1.645]
["Y",{"$f":"'HHIncome-10YearComparison'!$F$39/1.645","v":57.142857142857139},{"$f":"'HHIncome-10YearComparison'!$M$39/1.645","v":15.805471124620061},59.288439344615725,{"$f":"'HHIncome-10YearComparison'!$E$39-'HHIncome-10YearComparison'!$L$39","v":298},5.026274992125642,1.645,"Household Income Greater than $200,000",null,"Y",{"$f":"'HHIncome-10YearComparison'!$F$39/1.645","v":57.142857142857139},{"$f":"'HHIncome-10YearComparison'!$J$39/1.645","v":15.805471124620061},59.288439344615725,{"$f":"'HHIncome-10YearComparison'!$E$39-'HHIncome-10YearComparison'!$I$39","v":298},5.026274992125642,1.645]
["N",{"$f":"'HHIncome-10YearComparison'!$F$41/1.645","v":1680.2431610942249},{"$f":"'HHIncome-10YearComparison'!$M$41/1.645","v":2054.711246200608},2654.2523214018611,{"$f":"'HHIncome-10YearComparison'!$E$41-'HHIncome-10YearComparison'!$I$41","v":3841},1.447111854825976,1.645,"Median Household Income",null,"N",{"$f":"'HHIncome-10YearComparison'!$F$41/1.645","v":1680.2431610942249},{"$f":"'HHIncome-10YearComparison'!$J$41/1.645","v":1993.3130699088147},2607.0124808050336,{"$f":"'HHIncome-10YearComparison'!$E$41-'HHIncome-10YearComparison'!$I$41","v":3841},1.4733339515175303,1.645]
["N",{"$f":"PovertyCharacteristics!$E$54/1.645","v":26.747720364741642},{"$f":"PovertyCharacteristics!$M54/1.645","v":26.13981762917933},37.39960708880735,{"$f":"PovertyCharacteristics!$D54-PovertyCharacteristics!$L54","v":-44},1.1764829479496848,1.645,"Total Households Below Poverty Level",null,"N",{"$f":"PovertyCharacteristics!$I$54/1.645","v":20.060790273556229},{"$f":"PovertyCharacteristics!$M54/1.645","v":26.13981762917933},32.950347070802799,{"$f":"PovertyCharacteristics!$H54-PovertyCharacteristics!$L54","v":-33},1.0015069015537381,1.645]
["N",{"$f":"PovertyCharacteristics!$E$55/1.645","v":11.550151975683891},{"$f":"PovertyCharacteristics!$M55/1.645","v":19.45288753799392},22.623457830915982,{"$f":"PovertyCharacteristics!$D55-PovertyCharacteristics!$L55","v":-27},1.1934515139901944,1.645,"Family Households Below Poverty Level",null,"Y",{"$f":"PovertyCharacteristics!$I$55/1.645","v":4.86322188449848},{"$f":"PovertyCharacteristics!$M55/1.645","v":19.45288753799392},20.051577510602606,{"$f":"PovertyCharacteristics!$H55-PovertyCharacteristics!$L55","v":-39},1.9449841280257427,1.645]
["Y",{"$f":"PovertyCharacteristics!$E$56/1.645","v":65.653495440729486},{"$f":"PovertyCharacteristics!$M56/1.645","v":17.62917933130699},67.979183780634415,{"$f":"PovertyCharacteristics!$D56-PovertyCharacteristics!$L56","v":180},2.647869391619226,1.645,"Married Couple Fam HH Below Poverty Level",null,"N",{"$f":"PovertyCharacteristics!$I$56/1.645","v":6.6869300911854106},{"$f":"PovertyCharacteristics!$M56/1.645","v":17.62917933130699},18.854787135891577,{"$f":"PovertyCharacteristics!$H56-PovertyCharacteristics!$L56","v":-30},1.5911078594407799,1.645]
["N",{"$f":"PovertyCharacteristics!$E$57/1.645","v":69.300911854103347},{"$f":"PovertyCharacteristics!$M57/1.645","v":16.413373860182372},71.21808215112452,{"$f":"PovertyCharacteristics!$D57-PovertyCharacteristics!$L57","v":-21},0.29486893448545937,1.645,"M C Fam HH w/Children Below Poverty Level",null,"N",{"$f":"PovertyCharacteristics!$I$57/1.645","v":6.6869300911854106},{"$f":"PovertyCharacteristics!$M57/1.645","v":16.413373860182372},17.723258039043465,{"$f":"PovertyCharacteristics!$H57-PovertyCharacteristics!$L57","v":-21},1.1848837247495936,1.645]
["N",{"$f":"PovertyCharacteristics!$E$58/1.645","v":69.300911854103347},{"$f":"PovertyCharacteristics!$M58/1.645","v":6.6869300911854106},69.6227794464901,{"$f":"PovertyCharacteristics!$D58-PovertyCharacteristics!$L58","v":0},0,1.645,"Male Head of Family HH  Below Poverty Level",null,"N",{"$f":"PovertyCharacteristics!$I$58/1.645","v":5.4711246200607899},{"$f":"PovertyCharacteristics!$M58/1.645","v":6.6869300911854106},8.6399212179646785,{"$f":"PovertyCharacteristics!$H58-PovertyCharacteristics!$L58","v":5},0.578708980540665,1.645]
["N",{"$f":"PovertyCharacteristics!$E$59/1.645","v":69.300911854103347},{"$f":"PovertyCharacteristics!$M59/1.645","v":6.6869300911854106},69.6227794464901,{"$f":"PovertyCharacteristics!$D59-PovertyCharacteristics!$L59","v":0},0,1.645,"Male Head of HH w/Children Below Poverty Level",null,"N",{"$f":"PovertyCharacteristics!$I$59/1.645","v":5.4711246200607899},{"$f":"PovertyCharacteristics!$M59/1.645","v":6.6869300911854106},8.6399212179646785,{"$f":"PovertyCharacteristics!$H59-PovertyCharacteristics!$L59","v":5},0.578708980540665,1.645]
["N",{"$f":"PovertyCharacteristics!$E$60/1.645","v":23.100303951367781},{"$f":"PovertyCharacteristics!$M60/1.645","v":9.7264437689969601},25.064471888253255,{"$f":"PovertyCharacteristics!$D60-PovertyCharacteristics!$L60","v":24},0.95753064764344265,1.645,"Female Head of Family HH  Below Poverty Level",null,"Y",{"$f":"PovertyCharacteristics!$I$60/1.645","v":19.45288753799392},{"$f":"PovertyCharacteristics!$M60/1.645","v":9.7264437689969601},21.748989446806466,{"$f":"PovertyCharacteristics!$H60-PovertyCharacteristics!$L60","v":42},1.9311242070682559,1.645]
["N",{"$f":"PovertyCharacteristics!$E$61/1.645","v":23.100303951367781},{"$f":"PovertyCharacteristics!$M61/1.645","v":9.7264437689969601},25.064471888253255,{"$f":"PovertyCharacteristics!$D61-PovertyCharacteristics!$L61","v":24},0.95753064764344265,1.645,"Female Head of HH w/Children Below Poverty Level",null,"Y",{"$f":"PovertyCharacteristics!$I$61/1.645","v":19.45288753799392},{"$f":"PovertyCharacteristics!$M61/1.645","v":9.7264437689969601},21.748989446806466,{"$f":"PovertyCharacteristics!$H61-PovertyCharacteristics!$L61","v":42},1.9311242070682559,1.645]
["Y",{"$f":"PovertyCharacteristics!$E$62/1.645","v":46.200607902735563},{"$f":"PovertyCharacteristics!$M62/1.645","v":20.060790273556229},50.367960818182027,{"$f":"PovertyCharacteristics!$D62-PovertyCharacteristics!$L62","v":120},2.3824669105262233,1.645,"Non-Family HH  Below Poverty Level",null,"N",{"$f":"PovertyCharacteristics!$I$62/1.645","v":31.610942249240122},{"$f":"PovertyCharacteristics!$M62/1.645","v":20.060790273556229},37.439110249636038,{"$f":"PovertyCharacteristics!$H62-PovertyCharacteristics!$L62","v":53},1.4156319326663283,1.645]
["N",{"$f":"PovertyCharacteristics!$E$68/1.645","v":74.164133738601819},{"$f":"PovertyCharacteristics!$M68/1.645","v":54.711246200607903},92.160941803026034,{"$f":"PovertyCharacteristics!$D68-PovertyCharacteristics!$L68","v":32},0.34721867391929478,1.645,"Total Households At or Above Poverty Level",null,"N",{"$f":"PovertyCharacteristics!$I$68/1.645","v":57.750759878419451},{"$f":"PovertyCharacteristics!$M68/1.645","v":54.711246200607903},79.551685886336784,{"$f":"PovertyCharacteristics!$H68-PovertyCharacteristics!$L68","v":73},0.91764240049295986,1.645]
["N",{"$f":"PovertyCharacteristics!$E$69/1.645","v":58.358662613981764},{"$f":"PovertyCharacteristics!$M69/1.645","v":44.376899696048632},73.31468289998746,{"$f":"PovertyCharacteristics!$D69-PovertyCharacteristics!$L69","v":40},0.54559330297542408,1.645,"Family Households At or Above Poverty Level",null,"Y",{"$f":"PovertyCharacteristics!$I$69/1.645","v":55.319148936170215},{"$f":"PovertyCharacteristics!$M69/1.645","v":44.376899696048632},70.919090981592134,{"$f":"PovertyCharacteristics!$H69-PovertyCharacteristics!$L69","v":158},2.2278909361798043,1.645]
["Y",{"$f":"PovertyCharacteristics!$E$70/1.645","v":164.13373860182369},{"$f":"PovertyCharacteristics!$M70/1.645","v":41.945288753799389},169.40865206963721,{"$f":"PovertyCharacteristics!$D70-PovertyCharacteristics!$L70","v":2349},13.865879760582823,1.645,"Married Couple Fam HH At or Above Poverty Level",null,"N",{"$f":"PovertyCharacteristics!$I$70/1.645","v":51.063829787234042},{"$f":"PovertyCharacteristics!$M70/1.645","v":41.945288753799389},66.082690329459339,{"$f":"PovertyCharacteristics!$H70-PovertyCharacteristics!$L70","v":90},1.3619300236007257,1.645]
["N",{"$f":"PovertyCharacteristics!$E$71/1.645","v":23.70820668693009},{"$f":"PovertyCharacteristics!$M71/1.645","v":22.492401215805472},32.68007308380696,{"$f":"PovertyCharacteristics!$D71-PovertyCharacteristics!$L71","v":-4},0.12239874708181139,1.645,"M C Fam HH w/Children At or Above Poverty Level",null,"N",{"$f":"PovertyCharacteristics!$I$71/1.645","v":23.70820668693009},{"$f":"PovertyCharacteristics!$M71/1.645","v":22.492401215805472},32.68007308380696,{"$f":"PovertyCharacteristics!$H71-PovertyCharacteristics!$L71","v":-4},0.12239874708181139,1.645]
["N",{"$f":"PovertyCharacteristics!$E$72/1.645","v":12.76595744680851},{"$f":"PovertyCharacteristics!$M72/1.645","v":6.6869300911854106},14.411270019610575,{"$f":"PovertyCharacteristics!$D72-PovertyCharacteristics!$L72","v":14},0.97146191702390372,1.645,"Male Head of Family HH  At or Above Poverty Level",null,"N",{"$f":"PovertyCharacteristics!$I$72/1.645","v":20.668693009118542},{"$f":"PovertyCharacteristics!$M72/1.645","v":6.6869300911854106},21.723487398426307,{"$f":"PovertyCharacteristics!$H72-PovertyCharacteristics!$L72","v":32},1.4730599840207121,1.645]
["N",{"$f":"PovertyCharacteristics!$E$73/1.645","v":12.76595744680851},{"$f":"PovertyCharacteristics!$M73/1.645","v":6.6869300911854106},14.411270019610575,{"$f":"PovertyCharacteristics!$D73-PovertyCharacteristics!$L73","v":14},0.97146191702390372,1.645,"Male Head of HH w/Children At or Above Poverty Level",null,"N",{"$f":"PovertyCharacteristics!$I$73/1.645","v":20.060790273556229},{"$f":"PovertyCharacteristics!$M73/1.645","v":6.6869300911854106},21.145929642463326,{"$f":"PovertyCharacteristics!$H73-PovertyCharacteristics!$L73","v":26},1.2295510502309235,1.645]
["N",{"$f":"PovertyCharacteristics!$E$74/1.645","v":26.13981762917933},{"$f":"PovertyCharacteristics!$M74/1.645","v":24.924012158054712},36.117813440760969,{"$f":"PovertyCharacteristics!$D74-PovertyCharacteristics!$L74","v":-4},0.11074867548559229,1.645,"Female Head of Family HH  At or Above Poverty Level",null,"N",{"$f":"PovertyCharacteristics!$I$74/1.645","v":23.100303951367781},{"$f":"PovertyCharacteristics!$M74/1.645","v":24.924012158054712},33.982796010635106,{"$f":"PovertyCharacteristics!$H74-PovertyCharacteristics!$L74","v":36},1.0593595650203003,1.645]
["N",{"$f":"PovertyCharacteristics!$E$75/1.645","v":26.13981762917933},{"$f":"PovertyCharacteristics!$M75/1.645","v":24.316109422492399},35.701025799455373,{"$f":"PovertyCharacteristics!$D75-PovertyCharacteristics!$L75","v":11},0.30811439597816281,1.645,"Female Head of HH w/Children At or Above Poverty Level",null,"N",{"$f":"PovertyCharacteristics!$I$75/1.645","v":19.45288753799392},{"$f":"PovertyCharacteristics!$M75/1.645","v":24.316109422492399},31.13981392064607,{"$f":"PovertyCharacteristics!$H75-PovertyCharacteristics!$L75","v":8},0.25690583830675701,1.645]
["Y",{"$f":"PovertyCharacteristics!$E$76/1.645","v":45.59270516717325},{"$f":"PovertyCharacteristics!$M76/1.645","v":49.240121580547111},67.106514867990626,{"$f":"PovertyCharacteristics!$D76-PovertyCharacteristics!$L76","v":-207},3.0846483446086048,1.645,"Non-Family HH  At or Above Poverty Level",null,"N",{"$f":"PovertyCharacteristics!$I$76/1.645","v":35.258358662613979},{"$f":"PovertyCharacteristics!$M76/1.645","v":49.240121580547111},60.561880988362539,{"$f":"PovertyCharacteristics!$H76-PovertyCharacteristics!$L76","v":-85},1.4035231173934879,1.645]
["N",{"$f":"PovertyCharacteristics!$E24/1.645","v":91.79331306990882},{"$f":"PovertyCharacteristics!M24/1.645","v":75.98784194528875},119.1644428839932,{"$f":"PovertyCharacteristics!H24-PovertyCharacteristics!L24","v":128},1.0741459188846141,1.645,"Total Individuals Living in Poverty",null,{"$f":"IF(O112>P112,\"Y\",\"N\")","v":"N"},{"$f":"PovertyCharacteristics!$I24/1.645","v":68.693009118541028},{"$f":"PovertyCharacteristics!$M24/1.645","v":75.98784194528875},102.434767658555,{"$f":"PovertyCharacteristics!$H24-PovertyCharacteristics!$L24","v":128},1.2495757341556275,1.645]
["N",{"$f":"PovertyCharacteristics!$E25/1.645","v":28.003143601899136},{"$f":"PovertyCharacteristics!M25/1.645","v":14.715767096547362},31.634314483301363,{"$f":"PovertyCharacteristics!H25-PovertyCharacteristics!L25","v":-12},0.37933491513888745,1.645,"Individuals Under 5 yrs. Living in Poverty",null,"N",{"$f":"PovertyCharacteristics!$I25/1.645","v":14.952430244679446},{"$f":"PovertyCharacteristics!$M25/1.645","v":14.715767096547362},20.979250974756717,{"$f":"PovertyCharacteristics!$H25-PovertyCharacteristics!$L25","v":-12},0.5719937291583479,1.645]
["N",{"$f":"PovertyCharacteristics!$E26/1.645","v":196.85726590939825},{"$f":"PovertyCharacteristics!M26/1.645","v":27.097737493036682},198.7135388406262,{"$f":"PovertyCharacteristics!H26-PovertyCharacteristics!L26","v":56},0.28181270549921394,1.645,"Individuals 5 to 17 yrs. Living in Poverty",null,"N",{"$f":"PovertyCharacteristics!$I26/1.645","v":27.382627670650962},{"$f":"PovertyCharacteristics!$M26/1.645","v":27.097737493036682},38.523962353203309,{"$f":"PovertyCharacteristics!$H26-PovertyCharacteristics!$L26","v":56},1.4536407103342406,1.645]
["N",{"$f":"PovertyCharacteristics!$E27/1.645","v":130.00593746945461},{"$f":"PovertyCharacteristics!M27/1.645","v":31.901864470278241},133.86288781432941,{"$f":"PovertyCharacteristics!H27-PovertyCharacteristics!L27","v":97},0.72462204860350099,1.645,"Individuals 18 to 64 yrs. Living in Poverty",null,"Y",{"$f":"PovertyCharacteristics!$I27/1.645","v":45.021754313156286},{"$f":"PovertyCharacteristics!$M27/1.645","v":31.901864470278241},55.178685360510428,{"$f":"PovertyCharacteristics!$H27-PovertyCharacteristics!$L27","v":97},1.7579251728497995,1.645]
["N",{"$f":"PovertyCharacteristics!$E28/1.645","v":26.483916000962875},{"$f":"PovertyCharacteristics!M28/1.645","v":10.616564861138588},28.532599884988048,{"$f":"PovertyCharacteristics!H28-PovertyCharacteristics!L28","v":2},7.0095259740149601E-2,1.645,"Individuals 65 to 74 yrs. Living in Poverty",null,"N",{"$f":"PovertyCharacteristics!$I28/1.645","v":16.049092744612871},{"$f":"PovertyCharacteristics!$M28/1.645","v":10.616564861138588},19.242786372455214,{"$f":"PovertyCharacteristics!$H28-PovertyCharacteristics!$L28","v":2},0.10393505188327969,1.645]
["N",{"$f":"PovertyCharacteristics!$E29/1.645","v":19.088533091924113},{"$f":"PovertyCharacteristics!M29/1.645","v":6.5754734506942061},20.189327544578255,{"$f":"PovertyCharacteristics!H29-PovertyCharacteristics!L29","v":-15},0.7429667960401275,1.645,"Individuals 75 yrs. & Over Living in Poverty",null,"N",{"$f":"PovertyCharacteristics!$I29/1.645","v":9.4567472255951639},{"$f":"PovertyCharacteristics!$M29/1.645","v":6.5754734506942061},11.518112657444631,{"$f":"PovertyCharacteristics!$H29-PovertyCharacteristics!$L29","v":-15},1.3022966909691478,1.645]
[null,null,null,null,null,null,null,"Under 5",null,"N",{"$f":"DisabilityByAgePrior5YearEst!$E$31/1.645","v":63.364930526265702},{"$f":"DisabilityByAge!$E$31/1.645","v":61.542458898564725},{"$f":"SQRT((K118^2)+(L118^2))","v":88.332262893463835},{"$f":"DisabilityByAge!$D$31-DisabilityByAgePrior5YearEst!$D$31","v":-22},0.24905962192470782,1.645]
[null,null,null,null,null,null,null,"5 to 17",null,"N",{"$f":"DisabilityByAgePrior5YearEst!$F$31/1.645","v":729.483282674772},{"$f":"DisabilityByAge!$F$31/1.645","v":719.75683890577511},{"$f":"SQRT((K119^2)+(L119^2))","v":1024.7905965872224},{"$f":"DisabilityByAge!$D$31-DisabilityByAgePrior5YearEst!$D$31","v":-22},2.1467800420168597E-2,1.645]
[null,null,null,null,null,null,null,"18 to 34",null,"N",{"$f":"DisabilityByAgePrior5YearEst!$I$31/1.645","v":105.79079644211436},{"$f":"DisabilityByAge!$I$31/1.645","v":133.98843754577862},170.71787840708393,{"$f":"DisabilityByAge!$D$31-DisabilityByAgePrior5YearEst!$D$31","v":-22},0.12886758086074662,1.645]
[null,null,null,null,null,null,null,"35 to 64",null,"N",{"$f":"DisabilityByAgePrior5YearEst!$K$31/1.645","v":160.60831690040453},{"$f":"DisabilityByAge!$K$31/1.645","v":120.36167138634329},200.70367061041725,{"$f":"DisabilityByAge!$D$31-DisabilityByAgePrior5YearEst!$D$31","v":-22},0.10961433805913723,1.645]
[null,null,null,null,null,null,null,"65 to 74",null,"N",{"$f":"DisabilityByAgePrior5YearEst!$M$31/1.645","v":59.341396321880971},{"$f":"DisabilityByAge!$M$31/1.645","v":77.861401204367084},97.8968800061471,{"$f":"DisabilityByAge!$D$31-DisabilityByAgePrior5YearEst!$D$31","v":-22},0.2247262629679167,1.645]
[null,null,null,null,null,null,null,"75 and Over",null,"N",{"$f":"DisabilityByAgePrior5YearEst!$O$31/1.645","v":73.483347045648998},{"$f":"DisabilityByAge!$O$31/1.645","v":63.609403883501592},97.190321305393979,{"$f":"DisabilityByAge!$D$31-DisabilityByAgePrior5YearEst!$D$31","v":-22},0.22635998836623888,1.645]
[null,null,null,null,null,null,null,"With a Disability -Under 5",null,"N",{"$f":"DisabilityByAgePrior5YearEst!$E$33/1.645","v":12.895564398538861},{"$f":"DisabilityByAge!$E$33/1.645","v":15.474677278246633},20.143515532864306,{"$f":"DisabilityByAge!$D$31-DisabilityByAgePrior5YearEst!$D$31","v":-22},1.0921628830929151,1.645]
[null,null,null,null,null,null,null,"With a Disability -5 to 17",null,"N",{"$f":"DisabilityByAgePrior5YearEst!$F$33/1.645","v":105.77507598784194},{"$f":"DisabilityByAge!$F$33/1.645","v":125.83586626139818},164.38683626735514,{"$f":"DisabilityByAge!$D$31-DisabilityByAgePrior5YearEst!$D$31","v":-22},0.13383066734260696,1.645]
[null,null,null,null,null,null,null,"With a Disability -18 to 34",null,"N",{"$f":"DisabilityByAgePrior5YearEst!$I$33/1.645","v":58.485171894495778},{"$f":"DisabilityByAge!$I$33/1.645","v":90.029143201440604},107.35810149734493,{"$f":"DisabilityByAge!$D$31-DisabilityByAgePrior5YearEst!$D$31","v":-22},0.20492165652299729,1.645]
[null,null,null,null,null,null,null,"With a Disability -35 to 64",null,"N",{"$f":"DisabilityByAgePrior5YearEst!$K$33/1.645","v":92.586999280505523},{"$f":"DisabilityByAge!$K$33/1.645","v":96.669915534999248},133.85598606454707,{"$f":"DisabilityByAge!$D$31-DisabilityByAgePrior5YearEst!$D$31","v":-22},{"$f":"ABS((N127/M127))","v":0.16435574266653505},1.645]
[null,null,null,null,null,null,null,"With a Disability -65 to 74",null,"N",{"$f":"DisabilityByAgePrior5YearEst!$M$33/1.645","v":32.264691816937628},{"$f":"DisabilityByAge!$M$33/1.645","v":45.693909964659291},55.936962251273101,{"$f":"DisabilityByAge!$D$31-DisabilityByAgePrior5YearEst!$D$31","v":-22},0.39329987032857311,1.645]
[null,null,null,null,null,null,null,"With a Disability -75 and Over",null,"N",{"$f":"DisabilityByAgePrior5YearEst!$O$33/1.645","v":74.286112256979237},{"$f":"DisabilityByAge!$O$33/1.645","v":60.790273556231},95.988977665656591,{"$f":"DisabilityByAge!$D$31-DisabilityByAgePrior5YearEst!$D$31","v":-22},0.22919298168409671,1.645]
[null,null,null,null,null,null,null,"Hearing Disability - Under 5",null,"N",{"$f":"DisabilityByAgePrior5YearEst!$E$38/1.645","v":12.895564398538861},{"$f":"DisabilityByAge!$E$38/1.645","v":15.474677278246633},20.143515532864306,{"$f":"DisabilityByAge!$D$31-DisabilityByAgePrior5YearEst!$D$31","v":-22},1.0921628830929151,1.645]
[null,null,null,null,null,null,null,"Hearing Disability - 5 to 17",null,"N",{"$f":"DisabilityByAgePrior5YearEst!$F$38/1.645","v":18.237082066869302},{"$f":"DisabilityByAge!$F$38/1.645","v":0},18.237082066869302,{"$f":"DisabilityByAge!$D$31-DisabilityByAgePrior5YearEst!$D$31","v":-22},1.2063333333333333,1.645]
[null,null,null,null,null,null,null,"Hearing Disability - 18 to 34",null,"N",{"$f":"DisabilityByAgePrior5YearEst!$I$38/1.645","v":32.6234841702097},{"$f":"DisabilityByAge!$I$38/1.645","v":55.79474239797576},64.6323835136876,{"$f":"DisabilityByAge!$D$31-DisabilityByAgePrior5YearEst!$D$31","v":-22},0.34038664217514003,1.645]
[null,null,null,null,null,null,null,"Hearing Disability - 35 to 64",null,"N",{"$f":"DisabilityByAgePrior5YearEst!$K$38/1.645","v":51.524912098278641},{"$f":"DisabilityByAge!$K$38/1.645","v":50.569323630602852},72.194688580199511,{"$f":"DisabilityByAge!$D$31-DisabilityByAgePrior5YearEst!$D$31","v":-22},0.30473155896448917,1.645]
[null,null,null,null,null,null,null,"Hearing Disability - 65 to 74",null,"N",{"$f":"DisabilityByAgePrior5YearEst!$M$38/1.645","v":23.457484962400898},{"$f":"DisabilityByAge!$M$38/1.645","v":35.44651607808693},42.505400866658569,{"$f":"DisabilityByAge!$D$31-DisabilityByAgePrior5YearEst!$D$31","v":-22},0.51758128499987632,1.645]
[null,null,null,null,null,null,null,"Hearing Disability - 75 and Over",null,"N",{"$f":"DisabilityByAgePrior5YearEst!$O$38/1.645","v":65.614082507364444},{"$f":"DisabilityByAge!$O$38/1.645","v":43.404425599693226},78.671163617443298,{"$f":"DisabilityByAge!$D$31-DisabilityByAgePrior5YearEst!$D$31","v":-22},0.27964503114483064,1.645]
[null,null,null,null,null,null,null,"Visual Disability - Under 5",null,"N",{"$f":"DisabilityByAgePrior5YearEst!$E$39/1.645","v":12.895564398538861},{"$f":"DisabilityByAge!$E$39/1.645","v":15.474677278246633},20.143515532864306,{"$f":"DisabilityByAge!$D$31-DisabilityByAgePrior5YearEst!$D$31","v":-22},1.0921628830929151,1.645]
[null,null,null,null,null,null,null,"Visual Disability - 5 to 17",null,"N",{"$f":"DisabilityByAgePrior5YearEst!$F$39/1.645","v":21.88449848024316},{"$f":"DisabilityByAge!$F$39/1.645","v":0},21.88449848024316,{"$f":"DisabilityByAge!$D$31-DisabilityByAgePrior5YearEst!$D$31","v":-22},1.0052777777777779,1.645]
[null,null,null,null,null,null,null,"Visual Disability - 18 to 34",null,"N",{"$f":"DisabilityByAgePrior5YearEst!$I$39/1.645","v":29.687818716291257},{"$f":"DisabilityByAge!$I$39/1.645","v":12.233806563828637},32.109696404241355,{"$f":"DisabilityByAge!$D$31-DisabilityByAgePrior5YearEst!$D$31","v":-22},0.68515129271337583,1.645]
[null,null,null,null,null,null,null,"Visual Disability - 35 to 64",null,"N",{"$f":"DisabilityByAgePrior5YearEst!$K$39/1.645","v":44.526541221227937},{"$f":"DisabilityByAge!$K$39/1.645","v":50.411963121988911},{"$f":"SQRT((K140^2)+(L140^2))","v":28.937702700089737},{"$f":"DisabilityByAge!$D$31-DisabilityByAgePrior5YearEst!$D$31","v":-22},{"$f":"ABS((N140/M140))","v":0.76025385387388666},1.645]
[null,null,null,null,null,null,null,"Visual Disability - 65 to 74",null,"N",{"$f":"DisabilityByAgePrior5YearEst!$M$39/1.645","v":12.473121294032335},{"$f":"DisabilityByAge!$M$39/1.645","v":26.111527774972071},28.937702700089737,{"$f":"DisabilityByAge!$D$31-DisabilityByAgePrior5YearEst!$D$31","v":-22},0.76025385387388666,1.645]
[null,null,null,null,null,null,null,"Visual Disability - 75 and Over",null,"N",{"$f":"DisabilityByAgePrior5YearEst!$O$39/1.645","v":22.761878695257209},{"$f":"DisabilityByAge!$O$39/1.645","v":33.715318234315006},40.679550211116371,{"$f":"DisabilityByAge!$D$31-DisabilityByAgePrior5YearEst!$D$31","v":-22},0.54081227264868159,1.645]
[null,null,null,null,null,null,null,"Cognative Disability - 5 to 17",null,"N",{"$f":"DisabilityByAgePrior5YearEst!$F$40/1.645","v":101.51975683890578},{"$f":"DisabilityByAge!$F$40/1.645","v":105.77507598784194},146.61046254911105,{"$f":"DisabilityByAge!$D$31-DisabilityByAgePrior5YearEst!$D$31","v":-22},0.15005750351978134,1.645]
[null,null,null,null,null,null,null,"Cognative Disability - 18 to 34",null,"N",{"$f":"DisabilityByAgePrior5YearEst!$I$40/1.645","v":55.047933970440226},{"$f":"DisabilityByAge!$I$40/1.645","v":51.197538073310355},75.176212588703947,{"$f":"DisabilityByAge!$D$31-DisabilityByAgePrior5YearEst!$D$31","v":-22},0.29264576176993706,1.645]
[null,null,null,null,null,null,null,"Cognative Disability - 35 to 64",null,{"$f":"IF(O144>P144,\"Y\",\"N\")","v":"N"},{"$f":"DisabilityByAgePrior5YearEst!$K$40/1.645","v":69.119369743717428},{"$f":"DisabilityByAge!$K$40/1.645","v":68.380276369689241},{"$f":"SQRT((K145^2)+(L145^2))","v":19.049774609109299},{"$f":"DisabilityByAge!$D$31-DisabilityByAgePrior5YearEst!$D$31","v":-22},{"$f":"ABS((N145/M145))","v":1.1548693069302747},1.645]
[null,null,null,null,null,null,null,"Cognative Disability - 65 to 74",null,"N",{"$f":"DisabilityByAgePrior5YearEst!$M$40/1.645","v":12.649636502543959},{"$f":"DisabilityByAge!$M$40/1.645","v":14.2436164302249},{"$f":"SQRT((K145^2)+(L145^2))","v":19.049774609109299},{"$f":"DisabilityByAge!$D$31-DisabilityByAgePrior5YearEst!$D$31","v":-22},{"$f":"ABS((N145/M145))","v":1.1548693069302747},1.645]
[null,null,null,null,null,null,null,"Cognative Disability - 75 and Over",null,"N",{"$f":"DisabilityByAgePrior5YearEst!$O$40/1.645","v":43.777439239851269},{"$f":"DisabilityByAge!$O$40/1.645","v":48.147278233838612},{"$f":"SQRT((K146^2)+(L146^2))","v":65.073993174889296},{"$f":"DisabilityByAge!$D$31-DisabilityByAgePrior5YearEst!$D$31","v":-22},{"$f":"ABS((N146/M146))","v":0.33807668665535873},1.645]
[null,null,null,null,null,null,null,"Amblatory Disability - 5 to 17",null,"N",{"$f":"DisabilityByAgePrior5YearEst!$F$41/1.645","v":8.5106382978723403},{"$f":"DisabilityByAge!$F$41/1.645","v":10.94224924012158},{"$f":"SQRT((K147^2)+(L147^2))","v":13.862315198773713},{"$f":"DisabilityByAge!$D$31-DisabilityByAgePrior5YearEst!$D$31","v":-22},{"$f":"ABS((N147/M147))","v":1.5870364859360695},1.645]
[null,null,null,null,null,null,null,"Amblatory Disability - 18 to 34",null,"N",{"$f":"DisabilityByAgePrior5YearEst!$I$41/1.645","v":30.077366265903905},{"$f":"DisabilityByAge!$I$41/1.645","v":30.009714400480203},{"$f":"SQRT((K148^2)+(L148^2))","v":42.488009130715021},{"$f":"DisabilityByAge!$D$31-DisabilityByAgePrior5YearEst!$D$31","v":-22},{"$f":"ABS((N148/M148))","v":0.51779314799892506},1.645]
[null,null,null,null,null,null,null,"Amblatory Disability - 35 to 64",null,"N",{"$f":"DisabilityByAgePrior5YearEst!$K$41/1.645","v":74.838727764194005},{"$f":"DisabilityByAge!$K$41/1.645","v":61.898709112986531},{"$f":"SQRT((K150^2)+(L150^2))","v":34.910769642215755},{"$f":"DisabilityByAge!$D$31-DisabilityByAgePrior5YearEst!$D$31","v":-22},{"$f":"ABS((N150/M150))","v":0.63017802888529162},1.645]
[null,null,null,null,null,null,null,"Amblatory Disability - 65 to 74",null,"N",{"$f":"DisabilityByAgePrior5YearEst!$M$41/1.645","v":25.401316007022711},{"$f":"DisabilityByAge!$M$41/1.645","v":23.948590399504205},{"$f":"SQRT((K150^2)+(L150^2))","v":34.910769642215755},{"$f":"DisabilityByAge!$D$31-DisabilityByAgePrior5YearEst!$D$31","v":-22},{"$f":"ABS((N150/M150))","v":0.63017802888529162},1.645]
[null,null,null,null,null,null,null,"Amblatory Disability - 75 and Over",null,"N",{"$f":"DisabilityByAgePrior5YearEst!$O$41/1.645","v":50.587589596028081},{"$f":"DisabilityByAge!$O$41/1.645","v":60.363241761976461},{"$f":"SQRT((K151^2)+(L151^2))","v":78.758016589747783},{"$f":"DisabilityByAge!$D$31-DisabilityByAgePrior5YearEst!$D$31","v":-22},{"$f":"ABS((N151/M151))","v":0.27933664346321058},1.645]
[null,null,null,null,null,null,null,"Self Care Disability - 5 to 17",null,"N",{"$f":"DisabilityByAgePrior5YearEst!$F$42/1.645","v":18.844984802431611},{"$f":"DisabilityByAge!$F$42/1.645","v":17.021276595744681},{"$f":"SQRT((K152^2)+(L152^2))","v":25.394040819702639},{"$f":"DisabilityByAge!$D$31-DisabilityByAgePrior5YearEst!$D$31","v":-22},{"$f":"ABS((N152/M152))","v":0.86634498842463536},1.645]
[null,null,null,null,null,null,null,"Self Care Disability - 18 to 34",null,"N",{"$f":"DisabilityByAgePrior5YearEst!$I$42/1.645","v":33.185031158556065},{"$f":"DisabilityByAge!$I$42/1.645","v":27.724630397547426},{"$f":"SQRT((K153^2)+(L153^2))","v":43.242356823778088},{"$f":"DisabilityByAge!$D$31-DisabilityByAgePrior5YearEst!$D$31","v":-22},{"$f":"ABS((N153/M153))","v":0.50876042880027872},1.645]
[null,null,null,null,null,null,null,"Self Care Disability - 35 to 64",null,"N",{"$f":"DisabilityByAgePrior5YearEst!$K$42/1.645","v":25.394040819702642},{"$f":"DisabilityByAge!$K$42/1.645","v":18.608179775092967},{"$f":"SQRT((K155^2)+(L155^2))","v":24.700607481957501},{"$f":"DisabilityByAge!$D$31-DisabilityByAgePrior5YearEst!$D$31","v":-22},{"$f":"ABS((N155/M155))","v":0.8906663536947359},1.645]
[null,null,null,null,null,null,null,"Self Care Disability - 65 to 74",null,"N",{"$f":"DisabilityByAgePrior5YearEst!$M$42/1.645","v":15.688131186095976},{"$f":"DisabilityByAge!$M$42/1.645","v":19.078850852857403},{"$f":"SQRT((K155^2)+(L155^2))","v":24.700607481957501},{"$f":"DisabilityByAge!$D$31-DisabilityByAgePrior5YearEst!$D$31","v":-22},{"$f":"ABS((N155/M155))","v":0.8906663536947359},1.645]
[null,null,null,null,null,null,null,"Self Care Disability - 75 and Over",null,"N",{"$f":"DisabilityByAgePrior5YearEst!$O$42/1.645","v":37.517991791390813},{"$f":"DisabilityByAge!$O$42/1.645","v":41.355261645458846},{"$f":"SQRT((K156^2)+(L156^2))","v":55.837777300168639},{"$f":"DisabilityByAge!$D$31-DisabilityByAgePrior5YearEst!$D$31","v":-22},{"$f":"ABS((N156/M156))","v":0.39399849105264362},1.645]
[null,null,null,null,null,null,null,"Independant Living Disability - 18 to 34",null,"N",{"$f":"DisabilityByAgePrior5YearEst!$I$43/1.645","v":41.923257506545085},{"$f":"DisabilityByAge!$I$43/1.645","v":36.357462746032049},{"$f":"SQRT((K157^2)+(L157^2))","v":55.492563621526777},{"$f":"DisabilityByAge!$D$31-DisabilityByAgePrior5YearEst!$D$31","v":-22},{"$f":"ABS((N157/M157))","v":0.39644951619185459},1.645]
[null,null,null,null,null,null,null,"Independant Living Disability - 35 to 64",null,"N",{"$f":"DisabilityByAgePrior5YearEst!$K$43/1.645","v":55.128433063852327},{"$f":"DisabilityByAge!$K$43/1.645","v":56.512071716435742},{"$f":"SQRT((K159^2)+(L159^2))","v":22.794326151067082},{"$f":"DisabilityByAge!$D$31-DisabilityByAgePrior5YearEst!$D$31","v":-22},{"$f":"ABS((N159/M159))","v":0.96515246180989223},1.645]
[null,null,null,null,null,null,null,"Independant Living Disability - 65 to 74",null,"N",{"$f":"DisabilityByAgePrior5YearEst!$M$43/1.645","v":16.186658912698295},{"$f":"DisabilityByAge!$M$43/1.645","v":16.049092744612871},{"$f":"SQRT((K159^2)+(L159^2))","v":22.794326151067082},{"$f":"DisabilityByAge!$D$31-DisabilityByAgePrior5YearEst!$D$31","v":-22},{"$f":"ABS((N159/M159))","v":0.96515246180989223},1.645]
[null,null,null,null,null,null,null,"Independant Living Disability - 75 and Over",null,"N",{"$f":"DisabilityByAgePrior5YearEst!$O$43/1.645","v":47.307176798404178},{"$f":"DisabilityByAge!$O$43/1.645","v":56.675316818512655},{"$f":"SQRT((K160^2)+(L160^2))","v":73.824525146554478},{"$f":"DisabilityByAge!$D$31-DisabilityByAgePrior5YearEst!$D$31","v":-22},0.29800394863801949,1.645]
[null,null,null,null,null,null,null,"No Disability - Under 5",null,"N",{"$f":"DisabilityByAgePrior5YearEst!$E$47/1.645","v":63.364930526265702},{"$f":"DisabilityByAge!$E$47/1.645","v":61.542458898564725},{"$f":"SQRT((K161^2)+(L161^2))","v":88.332262893463835},{"$f":"DisabilityByAge!$D$47-DisabilityByAgePrior5YearEst!$D$47","v":-22},0.24905962192470782,1.645]
[null,null,null,null,null,null,null,"No Disability - 5 to 17",null,"N",{"$f":"DisabilityByAgePrior5YearEst!$F$47/1.645","v":623.70820668693011},{"$f":"DisabilityByAge!$F$47/1.645","v":593.92097264437689},{"$f":"SQRT((K162^2)+(L162^2))","v":861.25144344463592},{"$f":"DisabilityByAge!$D$47-DisabilityByAgePrior5YearEst!$D$47","v":-22},2.5544224241888579E-2,1.645]
[null,null,null,null,null,null,null,"No Disability - 18 to 34",null,"N",{"$f":"DisabilityByAgePrior5YearEst!$I$47/1.645","v":106.2648062719864},{"$f":"DisabilityByAge!$I$47/1.645","v":129.36764389764036},167.41623678618956,{"$f":"DisabilityByAge!$D$47-DisabilityByAgePrior5YearEst!$D$47","v":-22},0.13140899844796186,1.645]
[null,null,null,null,null,null,null,"No Disability - 35 to 64",null,"N",{"$f":"DisabilityByAgePrior5YearEst!$K$47/1.645","v":158.39220455816678},{"$f":"DisabilityByAge!$K$47/1.645","v":126.42330907650711},202.65967418963791,{"$f":"DisabilityByAge!$D$47-DisabilityByAgePrior5YearEst!$D$47","v":-22},0.10855637702947057,1.645]
[null,null,null,null,null,null,null,"No Disability - 65 to 74",null,{"$f":"IF(O165>P165,\"Y\",\"N\")","v":"N"},{"$f":"DisabilityByAgePrior5YearEst!$M$47/1.645","v":55.688668647288928},{"$f":"DisabilityByAge!$M$47/1.645","v":70.926906762265162},90.176792571983825,{"$f":"DisabilityByAge!$D$47-DisabilityByAgePrior5YearEst!$D$47","v":-22},0.24396520848131131,1.645]
[null,null,null,null,null,null,null,"No Disability - 75 and Over",null,"N",{"$f":"DisabilityByAgePrior5YearEst!$O$47/1.645","v":63.224807040236044},{"$f":"DisabilityByAge!$O$47/1.645","v":43.891251078868564},76.966344245672488,{"$f":"DisabilityByAge!$D$47-DisabilityByAgePrior5YearEst!$D$47","v":-22},{"$f":"ABS((N166/M166))","v":0.28583922252792943},1.645]
[{"$f":"IF(F167>G167,\"Y\",\"N\")","v":"N"},null,null,null,null,null,null,"Renter Total:",null,"Y",{"$f":"'RentalHousingCost-Prior5Yr'!$F$52/1.645","v":44.376899696048632},{"$f":"RentalHousingCost!$F$52/1.645","v":33.434650455927049},55.562443050528145,{"$f":"'RentalHousingCost-Prior5Yr'!$E$52-RentalHousingCost!$E$52","v":98},{"$f":"ABS((N167/M167))","v":1.7637813353685583},1.645]
["N",null,null,null,null,null,null,"Renter Less than 20.0 percent",null,"Y",{"$f":"'RentalHousingCost-Prior5Yr'!$F$53/1.645","v":26.988416875894362},{"$f":"RentalHousingCost!$F$53/1.645","v":18.074247717104566},32.481580565088258,{"$f":"'RentalHousingCost-Prior5Yr'!$E$53-RentalHousingCost!$E$53","v":57},1.7548407130552184,1.645]
["N",null,null,null,null,null,null,"Renter 20.0 to 24.9 percent",null,"Y",{"$f":"'RentalHousingCost-Prior5Yr'!$F$54/1.645","v":12.76595744680851},{"$f":"RentalHousingCost!$F$54/1.645","v":4.2553191489361701},13.456500681567571,{"$f":"'RentalHousingCost-Prior5Yr'!$E$54-RentalHousingCost!$E$54","v":30},2.2294057504187075,1.645]
["N",null,null,null,null,null,null,"Renter 25.0 to 29.9 percent",null,"N",{"$f":"'RentalHousingCost-Prior5Yr'!$F$55/1.645","v":10.334346504559271},{"$f":"RentalHousingCost!$F$55/1.645","v":16.413373860182372},19.395812928320751,{"$f":"'RentalHousingCost-Prior5Yr'!$E$55-RentalHousingCost!$E$55","v":-2},0.10311503866278812,1.645]
["N",null,null,null,null,null,null,"Renter 30.0 to 34.9 percent",null,"Y",{"$f":"'RentalHousingCost-Prior5Yr'!$F$56/1.645","v":31.593401726896737},{"$f":"RentalHousingCost!$F$56/1.645","v":24.782756365519159},40.153804872636442,{"$f":"'RentalHousingCost-Prior5Yr'!$E$56-RentalHousingCost!$E$56","v":85},2.1168604138414997,1.645]
["N",null,null,null,null,null,null,"Renter 35.0 to 39.9 percent",null,"N",{"$f":"'RentalHousingCost-Prior5Yr'!$F$57/1.645","v":30.455866382675623},{"$f":"RentalHousingCost!$F$57/1.645","v":33.715318234315006},45.434375540558776,{"$f":"'RentalHousingCost-Prior5Yr'!$E$57-RentalHousingCost!$E$57","v":8},0.17607813257735844,1.645]
["N",null,null,null,null,null,null,"Renter 40.0 to 49.9 percent",null,"N",{"$f":"'RentalHousingCost-Prior5Yr'!$F$58/1.645","v":16.413373860182372},{"$f":"RentalHousingCost!$F$58/1.645","v":13.98176291793313},21.561273982940062,{"$f":"'RentalHousingCost-Prior5Yr'!$E$58-RentalHousingCost!$E$58","v":11},0.51017393539470512,1.645]
["N",null,null,null,null,null,null,"Renter 50.0 percent or more",null,"Y",{"$f":"'RentalHousingCost-Prior5Yr'!$F$59/1.645","v":35.602554320598962},{"$f":"RentalHousingCost!$F$59/1.645","v":28.454783558585898},45.576491544623863,{"$f":"'RentalHousingCost-Prior5Yr'!$E$59-RentalHousingCost!$E$59","v":96},2.106349057298686,1.645]
["N",null,null,null,null,null,null,"Renter Not computed",null,"N",{"$f":"'RentalHousingCost-Prior5Yr'!$F$60/1.645","v":25.65464783709324},{"$f":"RentalHousingCost!$F$60/1.645","v":30.679520683150255},{"$f":"SQRT((K175^2)+(L175^2))","v":39.992423594890035},{"$f":"'RentalHousingCost-Prior5Yr'!$E$60-RentalHousingCost!$E$60","v":-3},7.5014208450805669E-2,1.645]
["N",null,null,null,null,null,null,"Renter Less than $10,000:",null,"N",{"$f":"'RentalHousingCost-Prior5Yr'!$I$52/1.645","v":11.550151975683891},{"$f":"RentalHousingCost!$I$52/1.645","v":10.334346504559271},{"$f":"SQRT((K176^2)+(L176^2))","v":15.498539554993267},{"$f":"'RentalHousingCost-Prior5Yr'!$H$52-RentalHousingCost!$H$52","v":10},0.64522208460462549,1.645]
["N",null,null,null,null,null,null,"Renter Less than 20.0 percent",null,"N",{"$f":"'RentalHousingCost-Prior5Yr'!$I$53/1.645","v":6.6869300911854106},{"$f":"RentalHousingCost!$I$53/1.645","v":6.6869300911854106},9.4567472255951639,{"$f":"'RentalHousingCost-Prior5Yr'!$H$53-RentalHousingCost!$H$53","v":0},0,1.645]
["N",null,null,null,null,null,null,"Renter 20.0 to 24.9 percent",null,"N",{"$f":"'RentalHousingCost-Prior5Yr'!$I$54/1.645","v":5.4711246200607899},{"$f":"RentalHousingCost!$I$54/1.645","v":4.2553191489361701},6.9311575993868564,{"$f":"'RentalHousingCost-Prior5Yr'!$H$54-RentalHousingCost!$H$54","v":1},0.14427604417600631,1.645]
["N",null,null,null,null,null,null,"Renter 25.0 to 29.9 percent",null,"N",{"$f":"'RentalHousingCost-Prior5Yr'!$I$55/1.645","v":6.6869300911854106},{"$f":"RentalHousingCost!$I$55/1.645","v":6.6869300911854106},9.4567472255951639,{"$f":"'RentalHousingCost-Prior5Yr'!$H$55-RentalHousingCost!$H$55","v":0},0,1.645]
["N",null,null,null,null,null,null,"Renter 30.0 to 34.9 percent",null,"N",{"$f":"'RentalHousingCost-Prior5Yr'!$I$56/1.645","v":10.925350003411202},{"$f":"RentalHousingCost!$I$56/1.645","v":10.370043835399379},15.063236101354244,{"$f":"'RentalHousingCost-Prior5Yr'!$H$56-RentalHousingCost!$H$56","v":1},6.6386797184311286E-2,1.645]
["N",null,null,null,null,null,null,"Renter 35.0 to 39.9 percent",null,"N",{"$f":"'RentalHousingCost-Prior5Yr'!$I$57/1.645","v":15.124444139361373},{"$f":"RentalHousingCost!$I$57/1.645","v":13.248932959090194},20.106790770262894,{"$f":"'RentalHousingCost-Prior5Yr'!$H$57-RentalHousingCost!$H$57","v":9},0.4476099693298955,1.645]
["N",null,null,null,null,null,null,"Renter 40.0 to 49.9 percent",null,"N",{"$f":"'RentalHousingCost-Prior5Yr'!$I$58/1.645","v":6.6869300911854106},{"$f":"RentalHousingCost!$I$58/1.645","v":4.86322188449848},8.2683711299303617,{"$f":"'RentalHousingCost-Prior5Yr'!$H$58-RentalHousingCost!$H$58","v":-6},0.72565683200658815,1.645]
["N",null,null,null,null,null,null,"Renter 50.0 percent or more",null,"N",{"$f":"'RentalHousingCost-Prior5Yr'!$I$59/1.645","v":12.809305474592994},{"$f":"RentalHousingCost!$I$59/1.645","v":11.453765155876455},17.183336200732604,{"$f":"'RentalHousingCost-Prior5Yr'!$H$59-RentalHousingCost!$H$59","v":-5},0.29097958286975883,1.645]
["N",null,null,null,null,null,null,"Renter Not computed",null,"N",{"$f":"'RentalHousingCost-Prior5Yr'!$I$60/1.645","v":13.565904926699938},{"$f":"RentalHousingCost!$I$60/1.645","v":12.32409418402024},{"$f":"SQRT((K184^2)+(L184^2))","v":18.32804064642108},{"$f":"'RentalHousingCost-Prior5Yr'!$H$60-RentalHousingCost!$H$60","v":15},0.81841808894771595,1.645]
["N",null,null,null,null,null,null,"Renter $10,000 to $19,999:",null,"Y",{"$f":"'RentalHousingCost-Prior5Yr'!$K$52/1.645","v":32.826747720364743},{"$f":"RentalHousingCost!$K$52/1.645","v":15.805471124620061},{"$f":"SQRT((K185^2)+(L185^2))","v":36.43361474473361},{"$f":"'RentalHousingCost-Prior5Yr'!$J$52-RentalHousingCost!$J$52","v":101},2.7721652300393638,1.645]
["N",null,null,null,null,null,null,"Renter Less than 20.0 percent",null,"N",{"$f":"'RentalHousingCost-Prior5Yr'!$K$53/1.645","v":3.6474164133738602},{"$f":"RentalHousingCost!$K$53/1.645","v":6.6869300911854106},7.61699944446302,{"$f":"'RentalHousingCost-Prior5Yr'!$J$53-RentalHousingCost!$J$53","v":4},0.5251411699796954,1.645]
["N",null,null,null,null,null,null,"Renter 20.0 to 24.9 percent",null,"N",{"$f":"'RentalHousingCost-Prior5Yr'!$K$54/1.645","v":10.334346504559271},{"$f":"RentalHousingCost!$K$54/1.645","v":6.6869300911854106},12.309092237882425,{"$f":"'RentalHousingCost-Prior5Yr'!$J$54-RentalHousingCost!$J$54","v":17},1.3810929085152885,1.645]
["N",null,null,null,null,null,null,"Renter 25.0 to 29.9 percent",null,"N",{"$f":"'RentalHousingCost-Prior5Yr'!$K$55/1.645","v":9.7264437689969601},{"$f":"RentalHousingCost!$K$55/1.645","v":9.7264437689969601},13.755268691774784,{"$f":"'RentalHousingCost-Prior5Yr'!$J$55-RentalHousingCost!$J$55","v":13},0.94509240722964494,1.645]
["N",null,null,null,null,null,null,"Renter 30.0 to 34.9 percent",null,"Y",{"$f":"'RentalHousingCost-Prior5Yr'!$K$56/1.645","v":14.652852028199332},{"$f":"RentalHousingCost!$K$56/1.645","v":13.565904926699938},19.968471374658776,{"$f":"'RentalHousingCost-Prior5Yr'!$J$56-RentalHousingCost!$J$56","v":34},1.7026841645549344,1.645]
["N",null,null,null,null,null,null,"Renter 35.0 to 39.9 percent",null,"Y",{"$f":"'RentalHousingCost-Prior5Yr'!$K$57/1.645","v":22.696844623215163},{"$f":"RentalHousingCost!$K$57/1.645","v":17.691954055751062},28.777630099804561,{"$f":"'RentalHousingCost-Prior5Yr'!$J$57-RentalHousingCost!$J$57","v":49},1.7027114404508512,1.645]
["N",null,null,null,null,null,null,"Renter 40.0 to 49.9 percent",null,"Y",{"$f":"'RentalHousingCost-Prior5Yr'!$K$58/1.645","v":14.589665653495441},{"$f":"RentalHousingCost!$K$58/1.645","v":6.6869300911854106},16.049092744612871,{"$f":"'RentalHousingCost-Prior5Yr'!$J$58-RentalHousingCost!$J$58","v":35},2.1808086324224338,1.645]
["N",null,null,null,null,null,null,"Renter 50.0 percent or more",null,"Y",{"$f":"'RentalHousingCost-Prior5Yr'!$K$59/1.645","v":20.677630822729423},{"$f":"RentalHousingCost!$K$59/1.645","v":15.124444139361373},25.618610949185992,{"$f":"'RentalHousingCost-Prior5Yr'!$J$59-RentalHousingCost!$J$59","v":69},2.6933544576971848,1.645]
["N",null,null,null,null,null,null,"Renter Not computed",null,"N",{"$f":"'RentalHousingCost-Prior5Yr'!$K$60/1.645","v":17.38644333869312},{"$f":"RentalHousingCost!$K$60/1.645","v":16.379566669066843},{"$f":"SQRT((K193^2)+(L193^2))","v":23.886787482539209},{"$f":"'RentalHousingCost-Prior5Yr'!$J$60-RentalHousingCost!$J$60","v":14},0.58609806824101973,1.645]
["N",null,null,null,null,null,null,"Renter $20,000 to $34,999:",null,"Y",{"$f":"'RentalHousingCost-Prior5Yr'!$M$52/1.645","v":15.805471124620061},{"$f":"RentalHousingCost!$M$52/1.645","v":29.179331306990882},{"$f":"SQRT((K194^2)+(L194^2))","v":33.185031158556065},{"$f":"'RentalHousingCost-Prior5Yr'!$L$52-RentalHousingCost!$L$52","v":-57},1.7176419008816795,1.645]
["N",null,null,null,null,null,null,"Renter Less than 20.0 percent",null,"N",{"$f":"'RentalHousingCost-Prior5Yr'!$M$53/1.645","v":6.0790273556230998},{"$f":"RentalHousingCost!$M$53/1.645","v":6.6869300911854106},9.0371238585522828,{"$f":"'RentalHousingCost-Prior5Yr'!$L$53-RentalHousingCost!$L$53","v":7},0.77458272228675384,1.645]
["N",null,null,null,null,null,null,"Renter 20.0 to 24.9 percent",null,"N",{"$f":"'RentalHousingCost-Prior5Yr'!$M$54/1.645","v":6.6869300911854106},{"$f":"RentalHousingCost!$M$54/1.645","v":6.6869300911854106},9.4567472255951639,{"$f":"'RentalHousingCost-Prior5Yr'!$L$54-RentalHousingCost!$L$54","v":0},0,1.645]
["N",null,null,null,null,null,null,"Renter 25.0 to 29.9 percent",null,"N",{"$f":"'RentalHousingCost-Prior5Yr'!$M$55/1.645","v":4.86322188449848},{"$f":"RentalHousingCost!$M$55/1.645","v":10.334346504559271},11.421455457784763,{"$f":"'RentalHousingCost-Prior5Yr'!$L$55-RentalHousingCost!$L$55","v":-14},1.225763218334641,1.645]
["N",null,null,null,null,null,null,"Renter 30.0 to 34.9 percent",null,"N",{"$f":"'RentalHousingCost-Prior5Yr'!$M$56/1.645","v":10.262579341114975},{"$f":"RentalHousingCost!$M$56/1.645","v":14.008168537146398},17.365175510134591,{"$f":"'RentalHousingCost-Prior5Yr'!$L$56-RentalHousingCost!$L$56","v":-7},0.40310562918956327,1.645]
["N",null,null,null,null,null,null,"Renter 35.0 to 39.9 percent",null,"N",{"$f":"'RentalHousingCost-Prior5Yr'!$M$57/1.645","v":14.715767096547362},{"$f":"RentalHousingCost!$M$57/1.645","v":29.525554880439856},32.98957702423133,{"$f":"'RentalHousingCost-Prior5Yr'!$L$57-RentalHousingCost!$L$57","v":-53},1.606568036961211,1.645]
["N",null,null,null,null,null,null,"Renter 40.0 to 49.9 percent",null,"N",{"$f":"'RentalHousingCost-Prior5Yr'!$M$58/1.645","v":5.4711246200607899},{"$f":"RentalHousingCost!$M$58/1.645","v":13.373860182370821},14.449683068698739,{"$f":"'RentalHousingCost-Prior5Yr'!$L$58-RentalHousingCost!$L$58","v":-21},1.4533190728238683,1.645]
["N",null,null,null,null,null,null,"Renter 50.0 percent or more",null,"N",{"$f":"'RentalHousingCost-Prior5Yr'!$M$59/1.645","v":11.629864115324615},{"$f":"RentalHousingCost!$M$59/1.645","v":19.367212549634033},22.590764955698539,{"$f":"'RentalHousingCost-Prior5Yr'!$L$59-RentalHousingCost!$L$59","v":-28},1.2394445276602719,1.645]
["N",null,null,null,null,null,null,"Renter Not computed",null,"N",{"$f":"'RentalHousingCost-Prior5Yr'!$M$60/1.645","v":13.660914926592238},{"$f":"RentalHousingCost!$M$60/1.645","v":26.322960601350719},29.65668308243275,{"$f":"'RentalHousingCost-Prior5Yr'!$L$60-RentalHousingCost!$L$60","v":-32},1.0790148011850766,1.645]
["N",null,null,null,null,null,null,"Renter $35,000 to $49,999:",null,"N",{"$f":"'RentalHousingCost-Prior5Yr'!$O$52/1.645","v":16.413373860182372},{"$f":"RentalHousingCost!$O$52/1.645","v":13.98176291793313},21.561273982940062,{"$f":"'RentalHousingCost-Prior5Yr'!$N$52-RentalHousingCost!$N$52","v":18},0.83483007610042659,1.645]
["N",null,null,null,null,null,null,"Renter Less than 20.0 percent",null,"N",{"$f":"'RentalHousingCost-Prior5Yr'!$O$53/1.645","v":12.1580547112462},{"$f":"RentalHousingCost!$O$53/1.645","v":12.76595744680851},17.62917933130699,{"$f":"'RentalHousingCost-Prior5Yr'!$N$53-RentalHousingCost!$N$53","v":1},5.6724137931034486E-2,1.645]
["N",null,null,null,null,null,null,"Renter 20.0 to 24.9 percent",null,"N",{"$f":"'RentalHousingCost-Prior5Yr'!$O$54/1.645","v":6.6869300911854106},{"$f":"RentalHousingCost!$O$54/1.645","v":6.6869300911854106},9.4567472255951639,{"$f":"'RentalHousingCost-Prior5Yr'!$N$54-RentalHousingCost!$N$54","v":12},1.2689352600565862,1.645]
["N",null,null,null,null,null,null,"Renter 25.0 to 29.9 percent",null,"N",{"$f":"'RentalHousingCost-Prior5Yr'!$O$55/1.645","v":7.2948328267477205},{"$f":"RentalHousingCost!$O$55/1.645","v":4.86322188449848},8.7672979342589414,{"$f":"'RentalHousingCost-Prior5Yr'!$N$55-RentalHousingCost!$N$55","v":6},0.68436136709287632,1.645]
["N",null,null,null,null,null,null,"Renter 30.0 to 34.9 percent",null,"N",{"$f":"'RentalHousingCost-Prior5Yr'!$O$56/1.645","v":15.676348885383133},{"$f":"RentalHousingCost!$O$56/1.645","v":15.209721584433805},21.842242216682894,{"$f":"'RentalHousingCost-Prior5Yr'!$N$56-RentalHousingCost!$N$56","v":19},0.86987406382152388,1.645]
["N",null,null,null,null,null,null,"Renter 35.0 to 39.9 percent",null,{"$f":"IF(O208>P208,\"Y\",\"N\")","v":"N"},{"$f":"'RentalHousingCost-Prior5Yr'!$O$57/1.645","v":12.142847632485214},{"$f":"RentalHousingCost!$O$57/1.645","v":13.373860182370821},18.064021833560638,{"$f":"'RentalHousingCost-Prior5Yr'!$N$57-RentalHousingCost!$N$57","v":3},0.16607597287257395,1.645]
["N",null,null,null,null,null,null,"Renter 40.0 to 49.9 percent",null,"N",{"$f":"'RentalHousingCost-Prior5Yr'!$O$58/1.645","v":3.6474164133738602},{"$f":"RentalHousingCost!$O$58/1.645","v":6.6869300911854106},7.61699944446302,{"$f":"'RentalHousingCost-Prior5Yr'!$N$58-RentalHousingCost!$N$58","v":3},0.39385587748477152,1.645]
["N",null,null,null,null,null,null,"Renter 50.0 percent or more",null,"N",{"$f":"'RentalHousingCost-Prior5Yr'!$O$59/1.645","v":19.323765298756992},{"$f":"RentalHousingCost!$O$59/1.645","v":21.896651675619214},29.20395966174523,{"$f":"'RentalHousingCost-Prior5Yr'!$N$59-RentalHousingCost!$N$59","v":22},0.75332250334594797,1.645]
["N",null,null,null,null,null,null,"Renter Not computed",null,"N",{"$f":"'RentalHousingCost-Prior5Yr'!$O$60/1.645","v":11.582102664594316},{"$f":"RentalHousingCost!$O$60/1.645","v":11.582102664594316},16.379566669066843,{"$f":"'RentalHousingCost-Prior5Yr'!$N$60-RentalHousingCost!$N$60","v":0},0,1.645]
["N",null,null,null,null,null,null,"Renter $50,000 to $74,999:",null,"N",{"$f":"'RentalHousingCost-Prior5Yr'!$Q$52/1.645","v":18.844984802431611},{"$f":"RentalHousingCost!$Q$52/1.645","v":18.844984802431611},26.650833090313647,{"$f":"'RentalHousingCost-Prior5Yr'!$P$52-RentalHousingCost!$P$52","v":-5},0.18761139597610815,1.645]
["N",null,null,null,null,null,null,"Renter Less than 20.0 percent",null,"N",{"$f":"'RentalHousingCost-Prior5Yr'!$Q$53/1.645","v":18.844984802431611},{"$f":"RentalHousingCost!$Q$53/1.645","v":9.7264437689969601},21.207007346519646,{"$f":"'RentalHousingCost-Prior5Yr'!$P$53-RentalHousingCost!$P$53","v":20},0.94308450377758124,1.645]
["N",null,null,null,null,null,null,"Renter 20.0 to 24.9 percent",null,"N",{"$f":"'RentalHousingCost-Prior5Yr'!$Q$54/1.645","v":6.6869300911854106},{"$f":"RentalHousingCost!$Q$54/1.645","v":6.6869300911854106},9.4567472255951639,{"$f":"'RentalHousingCost-Prior5Yr'!$P$54-RentalHousingCost!$P$54","v":0},0,1.645]
["N",null,null,null,null,null,null,"Renter 25.0 to 29.9 percent",null,"N",{"$f":"'RentalHousingCost-Prior5Yr'!$Q$55/1.645","v":6.6869300911854106},{"$f":"RentalHousingCost!$Q$55/1.645","v":6.6869300911854106},9.4567472255951639,{"$f":"'RentalHousingCost-Prior5Yr'!$P$55-RentalHousingCost!$P$55","v":-7},0.7402122350330087,1.645]
["N",null,null,null,null,null,null,"Renter 30.0 to 34.9 percent",null,"N",{"$f":"'RentalHousingCost-Prior5Yr'!$Q$56/1.645","v":21.084675010364286},{"$f":"RentalHousingCost!$Q$56/1.645","v":13.565904926699938},25.071842707965082,{"$f":"'RentalHousingCost-Prior5Yr'!$P$56-RentalHousingCost!$P$56","v":13},0.51850995363296637,1.645]
["N",null,null,null,null,null,null,"Renter 35.0 to 39.9 percent",null,"N",{"$f":"'RentalHousingCost-Prior5Yr'!$Q$57/1.645","v":13.373860182370821},{"$f":"RentalHousingCost!$Q$57/1.645","v":13.373860182370821},18.913494451190328,{"$f":"'RentalHousingCost-Prior5Yr'!$P$57-RentalHousingCost!$P$57","v":0},0,1.645]
["N",null,null,null,null,null,null,"Renter 40.0 to 49.9 percent",null,"N",{"$f":"'RentalHousingCost-Prior5Yr'!$Q$58/1.645","v":6.6869300911854106},{"$f":"RentalHousingCost!$Q$58/1.645","v":6.6869300911854106},9.4567472255951639,{"$f":"'RentalHousingCost-Prior5Yr'!$P$58-RentalHousingCost!$P$58","v":0},0,1.645]
["N",null,null,null,null,null,null,"Renter 50.0 percent or more",null,"N",{"$f":"'RentalHousingCost-Prior5Yr'!$Q$59/1.645","v":22.11964182207933},{"$f":"RentalHousingCost!$Q$59/1.645","v":15.124444139361373},26.796032632868314,{"$f":"'RentalHousingCost-Prior5Yr'!$P$59-RentalHousingCost!$P$59","v":13},0.48514644604716795,1.645]
["N",null,null,null,null,null,null,"Renter Not computed",null,"N",{"$f":"'RentalHousingCost-Prior5Yr'!$Q$60/1.645","v":11.582102664594316},{"$f":"RentalHousingCost!$Q$60/1.645","v":11.582102664594316},16.379566669066843,{"$f":"'RentalHousingCost-Prior5Yr'!$P$60-RentalHousingCost!$P$60","v":0},0,1.645]
["N",null,null,null,null,null,null,"Renter $75,000 to $99,999:",null,"Y",{"$f":"'RentalHousingCost-Prior5Yr'!$S$52/1.645","v":11.550151975683891},{"$f":"RentalHousingCost!$S$52/1.645","v":5.4711246200607899},12.780423125610113,{"$f":"'RentalHousingCost-Prior5Yr'!$R$52-RentalHousingCost!$R$52","v":30},2.3473401236524283,1.645]
["N",null,null,null,null,null,null,"Renter Less than 20.0 percent",null,"Y",{"$f":"'RentalHousingCost-Prior5Yr'!$S$53/1.645","v":10.334346504559271},{"$f":"RentalHousingCost!$S$53/1.645","v":5.4711246200607899},11.693242590681669,{"$f":"'RentalHousingCost-Prior5Yr'!$R$53-RentalHousingCost!$R$53","v":24},2.0524674669048233,1.645]
["N",null,null,null,null,null,null,"Renter 20.0 to 24.9 percent",null,"N",{"$f":"'RentalHousingCost-Prior5Yr'!$S$54/1.645","v":6.6869300911854106},{"$f":"RentalHousingCost!$S$54/1.645","v":6.6869300911854106},9.4567472255951639,{"$f":"'RentalHousingCost-Prior5Yr'!$R$54-RentalHousingCost!$R$54","v":0},0,1.645]
["N",null,null,null,null,null,null,"Renter 25.0 to 29.9 percent",null,"N",{"$f":"'RentalHousingCost-Prior5Yr'!$S$55/1.645","v":6.6869300911854106},{"$f":"RentalHousingCost!$S$55/1.645","v":6.6869300911854106},9.4567472255951639,{"$f":"'RentalHousingCost-Prior5Yr'!$R$55-RentalHousingCost!$R$55","v":0},0,1.645]
["N",null,null,null,null,null,null,"Renter 30.0 to 34.9 percent",null,"N",{"$f":"'RentalHousingCost-Prior5Yr'!$S$56/1.645","v":14.008168537146398},{"$f":"RentalHousingCost!$S$56/1.645","v":10.925350003411202},17.764910876841892,{"$f":"'RentalHousingCost-Prior5Yr'!$R$56-RentalHousingCost!$R$56","v":24},1.3509777879767519,1.645]
["N",null,null,null,null,null,null,"Renter 35.0 to 39.9 percent",null,"N",{"$f":"'RentalHousingCost-Prior5Yr'!$S$57/1.645","v":13.373860182370821},{"$f":"RentalHousingCost!$S$57/1.645","v":13.373860182370821},18.913494451190328,{"$f":"'RentalHousingCost-Prior5Yr'!$R$57-RentalHousingCost!$R$57","v":0},0,1.645]
["N",null,null,null,null,null,null,"Renter 40.0 to 49.9 percent",null,"N",{"$f":"'RentalHousingCost-Prior5Yr'!$S$58/1.645","v":6.6869300911854106},{"$f":"RentalHousingCost!$S$58/1.645","v":6.6869300911854106},9.4567472255951639,{"$f":"'RentalHousingCost-Prior5Yr'!$R$58-RentalHousingCost!$R$58","v":0},0,1.645]
["N",null,null,null,null,null,null,"Renter 50.0 percent or more",null,"N",{"$f":"'RentalHousingCost-Prior5Yr'!$S$59/1.645","v":15.522365148697515},{"$f":"RentalHousingCost!$S$59/1.645","v":12.809305474592994},20.125161528567599,{"$f":"'RentalHousingCost-Prior5Yr'!$R$59-RentalHousingCost!$R$59","v":24},1.1925370122337693,1.645]
["N",null,null,null,null,null,null,"Renter Not computed",null,"N",{"$f":"'RentalHousingCost-Prior5Yr'!$S$60/1.645","v":11.582102664594316},{"$f":"RentalHousingCost!$S$60/1.645","v":11.582102664594316},16.379566669066843,{"$f":"'RentalHousingCost-Prior5Yr'!$R$60-RentalHousingCost!$R$60","v":0},0,1.645]
["N",null,null,null,null,null,null,"Renter $100,000 or more:",null,"N",{"$f":"'RentalHousingCost-Prior5Yr'!$U$52/1.645","v":8.5106382978723403},{"$f":"RentalHousingCost!$U$52/1.645","v":7.2948328267477205},11.209172592453358,{"$f":"'RentalHousingCost-Prior5Yr'!$T$52-RentalHousingCost!$T$52","v":1},8.9212650777922356E-2,1.645]
[{"$f":"IF(F231>G231,\"Y\",\"N\")","v":"N"},null,null,null,null,null,null,"Renter Less than 20.0 percent",null,"N",{"$f":"'RentalHousingCost-Prior5Yr'!$U$53/1.645","v":8.5106382978723403},{"$f":"RentalHousingCost!$U$53/1.645","v":7.2948328267477205},11.209172592453358,{"$f":"'RentalHousingCost-Prior5Yr'!$T$53-RentalHousingCost!$T$53","v":1},{"$f":"ABS((N231/M231))","v":8.9212650777922356E-2},1.645]
["N",null,null,null,null,null,null,"Renter 20.0 to 24.9 percent",null,"N",{"$f":"'RentalHousingCost-Prior5Yr'!$U$54/1.645","v":6.6869300911854106},{"$f":"RentalHousingCost!$U$54/1.645","v":6.6869300911854106},9.4567472255951639,{"$f":"'RentalHousingCost-Prior5Yr'!$T$54-RentalHousingCost!$T$54","v":0},0,1.645]
["N",null,null,null,null,null,null,"Renter 25.0 to 29.9 percent",null,"N",{"$f":"'RentalHousingCost-Prior5Yr'!$U$55/1.645","v":6.6869300911854106},{"$f":"RentalHousingCost!$U$55/1.645","v":6.6869300911854106},9.4567472255951639,{"$f":"'RentalHousingCost-Prior5Yr'!$T$55-RentalHousingCost!$T$55","v":0},0,1.645]
["N",null,null,null,null,null,null,"Renter 30.0 to 34.9 percent",null,"N",{"$f":"'RentalHousingCost-Prior5Yr'!$U$56/1.645","v":12.722461724289573},{"$f":"RentalHousingCost!$U$56/1.645","v":11.943393741269604},17.450091300191275,{"$f":"'RentalHousingCost-Prior5Yr'!$T$56-RentalHousingCost!$T$56","v":1},5.7306290425485552E-2,1.645]
["N",null,null,null,null,null,null,"Renter 35.0 to 39.9 percent",null,"N",{"$f":"'RentalHousingCost-Prior5Yr'!$U$57/1.645","v":13.373860182370821},{"$f":"RentalHousingCost!$U$57/1.645","v":13.373860182370821},18.913494451190328,{"$f":"'RentalHousingCost-Prior5Yr'!$T$57-RentalHousingCost!$T$57","v":0},0,1.645]
["N",null,null,null,null,null,null,"Renter 40.0 to 49.9 percent",null,"N",{"$f":"'RentalHousingCost-Prior5Yr'!$U$58/1.645","v":6.6869300911854106},{"$f":"RentalHousingCost!$U$58/1.645","v":6.6869300911854106},9.4567472255951639,{"$f":"'RentalHousingCost-Prior5Yr'!$T$58-RentalHousingCost!$T$58","v":0},0,1.645]
["N",null,null,null,null,null,null,"Renter 50.0 percent or more",null,"N",{"$f":"'RentalHousingCost-Prior5Yr'!$U$59/1.645","v":14.372754307035731},{"$f":"RentalHousingCost!$U$59/1.645","v":13.687939512702373},19.847814853877818,{"$f":"'RentalHousingCost-Prior5Yr'!$T$59-RentalHousingCost!$T$59","v":1},5.0383380103156412E-2,1.645]
["N",null,null,null,null,null,null,"Renter Not computed",null,"N",{"$f":"'RentalHousingCost-Prior5Yr'!$U$60/1.645","v":11.582102664594316},{"$f":"RentalHousingCost!$U$60/1.645","v":11.582102664594316},16.379566669066843,{"$f":"'RentalHousingCost-Prior5Yr'!$T$60-RentalHousingCost!$T$60","v":0},0,1.645]
[null,null,null,null,null,null,null,"Total Owner Housing",null,{"$error":"#VALUE!"},{"$f":"OwnerHousingCostPrior5Year!$F$50/1.645","v":{"$error":"#VALUE!"}},{"$f":"OwnerHousingCost!$F$50/1.645","v":48.024316109422493},{"$error":"#VALUE!"},{"$f":"OwnerHousingCostPrior5Year!$E$50-OwnerHousingCost!$E$50","v":{"$error":"#VALUE!"}},{"$error":"#VALUE!"},1.645]
[null,null,null,null,null,null,null,"Monthly Costs Less than 20% of HH Income",null,"Y",{"$f":"OwnerHousingCostPrior5Year!$F$51/1.645","v":58.358662613981764},{"$f":"OwnerHousingCost!$F$51/1.645","v":49.213847168411178},76.339611311613879,{"$f":"OwnerHousingCostPrior5Year!$E$51-OwnerHousingCost!$E$51","v":413},5.4100354050030184,1.645]
[null,null,null,null,null,null,null,"Monthly Costs 20% to 29.9% of HH Income",null,"N",{"$f":"OwnerHousingCostPrior5Year!$F$52/1.645","v":30.997079109986533},{"$f":"OwnerHousingCost!$F$52/1.645","v":37.28580237129642},48.48762699722618,{"$f":"OwnerHousingCostPrior5Year!$E$52-OwnerHousingCost!$E$52","v":-15},0.30935727171919758,1.645]
[null,null,null,null,null,null,null,"Monthly Costs Less Than 30% of HH Income",null,"Y",{"$f":"OwnerHousingCostPrior5Year!$F$53/1.645","v":27.321829853184475},{"$f":"OwnerHousingCost!$F$53/1.645","v":61.743289607755003},67.518265662807636,{"$f":"OwnerHousingCostPrior5Year!$E$53-OwnerHousingCost!$E$53","v":-395},5.850268755016101,1.645]
[null,null,null,null,null,null,null,"Monthly Costs 30% or More of HH Income",null,"Y",{"$f":"OwnerHousingCostPrior5Year!$F$54/1.645","v":18.488639909721034},{"$f":"OwnerHousingCost!$F$54/1.645","v":35.576595473311933},40.093939082896412,{"$f":"OwnerHousingCostPrior5Year!$E$54-OwnerHousingCost!$E$54","v":-96},2.3943768608396083,1.645]
[null,null,null,null,null,null,null,"Monthly Costs 35% or More of HH Income",null,"Y",{"$f":"OwnerHousingCostPrior5Year!$F$56/1.645","v":7.61699944446302},{"$f":"OwnerHousingCost!$F$56/1.645","v":30.973226025184186},31.896072030018004,{"$f":"OwnerHousingCostPrior5Year!$E$56-OwnerHousingCost!$E$56","v":-133},4.1697924394838068,1.645]
[null,null,null,null,null,null,null,"Monthly Costs 50% or More of HH Income",null,"Y",{"$f":"OwnerHousingCostPrior5Year!$F$57/1.645","v":10.352210556794166},{"$f":"OwnerHousingCost!$F$57/1.645","v":16.813758888680038},19.745145007795401,{"$f":"OwnerHousingCostPrior5Year!$E$57-OwnerHousingCost!$E$57","v":-53},2.6842041412750097,1.645]
[null,null,null,null,null,null,null,"Percent not computed",null,"Y",{"$f":"OwnerHousingCostPrior5Year!$F$58/1.645","v":14.614972985010708},{"$f":"OwnerHousingCost!$F$58/1.645","v":9.4567472255951639},17.407685183314715,{"$f":"OwnerHousingCostPrior5Year!$E$58-OwnerHousingCost!$E$58","v":37},2.1254979976007689,1.645]
[null,null,null,null,null,null,null,"Owner Less than $20,000:",null,"N",{"$f":"OwnerHousingCostPrior5Year!$I$50/1.645","v":21.319973151064051},{"$f":"OwnerHousingCost!$I$50/1.645","v":21.88449848024316},30.552782670222644,{"$f":"OwnerHousingCostPrior5Year!$H$50-OwnerHousingCost!$H$50","v":-37},1.2110189896405392,1.645]
[null,null,null,null,null,null,null,"Owner Less than 20.0 percent",null,"N",{"$f":"OwnerHousingCostPrior5Year!$I$51/1.645","v":75.193415664759769},{"$f":"OwnerHousingCost!$I$51/1.645","v":6.6869300911854106},75.49016355378852,{"$f":"OwnerHousingCostPrior5Year!$H$51-OwnerHousingCost!$H$51","v":63},0.83454581410611217,1.645]
[null,null,null,null,null,null,null,"Owner 20.0 to 24.9 percent",null,"N",{"$f":"OwnerHousingCostPrior5Year!$I$52/1.645","v":72.506259308919624},{"$f":"OwnerHousingCost!$I$52/1.645","v":5.4711246200607899},72.712384389322082,{"$f":"OwnerHousingCostPrior5Year!$H$52-OwnerHousingCost!$H$52","v":34},0.46759572369343111,1.645]
[null,null,null,null,null,null,null,"Owner 25.0 to 29.9 percent",null,"N",{"$f":"OwnerHousingCostPrior5Year!$I$53/1.645","v":104.45672500277631},{"$f":"OwnerHousingCost!$I$53/1.645","v":8.6399212179646785},104.81343252159176,{"$f":"OwnerHousingCostPrior5Year!$H$53-OwnerHousingCost!$H$53","v":97},0.92545390095890445,1.645]
[null,null,null,null,null,null,null,"Owner 30.0 or more",null,"N",{"$f":"OwnerHousingCostPrior5Year!$I$54/1.645","v":29.179331306990882},{"$f":"OwnerHousingCost!$I$54/1.645","v":20.060790273556229},35.410008216925711,{"$f":"OwnerHousingCostPrior5Year!$H$54-OwnerHousingCost!$H$54","v":-8},0.22592482755132662,1.645]
[null,null,null,null,null,null,null,"Owner $20,000 to $34,999:",null,"N",{"$f":"OwnerHousingCostPrior5Year!$J$50/1.645","v":0},{"$f":"OwnerHousingCost!$J$50/1.645","v":108.8145896656535},108.8145896656535,{"$f":"OwnerHousingCostPrior5Year!$K$50-OwnerHousingCost!$K$50","v":54},0.49625698324022344,1.645]
[null,null,null,null,null,null,null,"Owner Less than 20.0 percent",null,"N",{"$f":"OwnerHousingCostPrior5Year!$J$51/1.645","v":75.379939209726444},{"$f":"OwnerHousingCost!$J$51/1.645","v":24.316109422492399},79.204850941774254,{"$f":"OwnerHousingCostPrior5Year!$K$51-OwnerHousingCost!$K$51","v":33},0.41664114770267341,1.645]
[null,null,null,null,null,null,null,"Owner 20.0 to 24.9 percent",null,"N",{"$f":"OwnerHousingCostPrior5Year!$J$52/1.645","v":16.413373860182372},{"$f":"OwnerHousingCost!$J$52/1.645","v":42.553191489361701},45.608913025903206,{"$f":"OwnerHousingCostPrior5Year!$K$52-OwnerHousingCost!$K$52","v":-25.726865067286706},0.564075382648899,1.645]
[null,null,null,null,null,null,null,"Owner 25.0 to 29.9 percent",null,"N",{"$f":"OwnerHousingCostPrior5Year!$J$53/1.645","v":91.79331306990882},{"$f":"OwnerHousingCost!$J$53/1.645","v":66.869300911854097},113.56722999523403,{"$f":"OwnerHousingCostPrior5Year!$K$53-OwnerHousingCost!$K$53","v":12.798601415699636},0.1126962541592037,1.645]
[null,null,null,null,null,null,null,"Owner 30.0 or more",null,"N",{"$f":"OwnerHousingCostPrior5Year!$J$54/1.645","v":58.966565349544069},{"$f":"OwnerHousingCost!$J$54/1.645","v":41.945288753799389},72.363409799163421,{"$f":"OwnerHousingCostPrior5Year!$K$54-OwnerHousingCost!$K$54","v":25.425956140054431},0.35136481559701704,1.645]
[null,null,null,null,null,null,null,"Owner $35,000 to $49,999:",null,"N",{"$f":"OwnerHousingCostPrior5Year!$M$50/1.645","v":25.116022200746013},{"$f":"OwnerHousingCost!$M$50/1.645","v":24.316109422492399},34.958371653081755,{"$f":"OwnerHousingCostPrior5Year!$L$50-OwnerHousingCost!$L$50","v":-26},0.74374173539939381,1.645]
[null,null,null,null,null,null,null,"Owner Less than 20.0 percent",null,"N",{"$f":"OwnerHousingCostPrior5Year!$M$51/1.645","v":31.003039513677813},{"$f":"OwnerHousingCost!$M$51/1.645","v":17.021276595744681},{"$f":"SQRT((K258^2)+(L258^2))","v":35.368238803133998},{"$f":"OwnerHousingCostPrior5Year!$L$51-OwnerHousingCost!$L$51","v":28},0.79167074605702181,1.645]
[null,null,null,null,null,null,null,"Owner 20.0 to 24.9 percent",null,"N",{"$f":"OwnerHousingCostPrior5Year!$M$52/1.645","v":69.300911854103347},{"$f":"OwnerHousingCost!$M$52/1.645","v":10.334346504559271},70.067218451187983,{"$f":"OwnerHousingCostPrior5Year!$L$52-OwnerHousingCost!$L$52","v":-27},0.38534425365849839,1.645]
[null,null,null,null,null,null,null,"Owner 25.0 to 29.9 percent",null,"N",{"$f":"OwnerHousingCostPrior5Year!$M$53/1.645","v":75.919726309417555},{"$f":"OwnerHousingCost!$M$53/1.645","v":19.912874594722428},78.487753296434789,{"$f":"OwnerHousingCostPrior5Year!$L$53-OwnerHousingCost!$L$53","v":1},1.2740841188601379E-2,1.645]
[null,null,null,null,null,null,null,"Owner 30.0 or more",null,"Y",{"$f":"OwnerHousingCostPrior5Year!$M$54/1.645","v":34.650455927051674},{"$f":"OwnerHousingCost!$M$54/1.645","v":12.76595744680851},36.927276713647274,{"$f":"OwnerHousingCostPrior5Year!$L$54-OwnerHousingCost!$L$54","v":62},1.6789756927048607,1.645]
[null,null,null,null,null,null,null,"Owner $50,000 to $74,999:",null,"N",{"$f":"OwnerHousingCostPrior5Year!$O$50/1.645","v":75.176212588703947},{"$f":"OwnerHousingCost!$O$50/1.645","v":21.276595744680851},78.129101272602526,{"$f":"OwnerHousingCostPrior5Year!$N$50-OwnerHousingCost!$N$50","v":-54},0.69116371646957808,1.645]
[null,null,null,null,null,null,null,"Owner Less than 20.0 percent",null,"N",{"$f":"OwnerHousingCostPrior5Year!$O$51/1.645","v":20.207623268808099},{"$f":"OwnerHousingCost!$O$51/1.645","v":15.805471124620061},25.654647837093243,{"$f":"OwnerHousingCostPrior5Year!$N$51-OwnerHousingCost!$N$51","v":-16},0.62366866626273099,1.645]
[null,null,null,null,null,null,null,"Owner 20.0 to 24.9 percent",null,"N",{"$f":"OwnerHousingCostPrior5Year!$O$52/1.645","v":77.502234750914695},{"$f":"OwnerHousingCost!$O$52/1.645","v":12.1580547112462},78.450077665656551,{"$f":"OwnerHousingCostPrior5Year!$N$52-OwnerHousingCost!$N$52","v":46},0.58636015882668313,1.645]
[null,null,null,null,null,null,null,"Owner 25.0 to 29.9 percent",null,"N",{"$f":"OwnerHousingCostPrior5Year!$O$53/1.645","v":80.093348222932732},{"$f":"OwnerHousingCost!$O$53/1.645","v":19.940692360920032},82.538328317169203,{"$f":"OwnerHousingCostPrior5Year!$N$53-OwnerHousingCost!$N$53","v":30},0.36346750184616416,1.645]
[null,null,null,null,null,null,null,"Owner 30.0 or more",null,"N",{"$f":"OwnerHousingCostPrior5Year!$O$54/1.645","v":7.2948328267477205},{"$f":"OwnerHousingCost!$O$54/1.645","v":6.6869300911854106},9.8959395720970864,{"$f":"OwnerHousingCostPrior5Year!$N$54-OwnerHousingCost!$N$54","v":-8},0.80841237375347974,1.645]
[null,null,null,null,null,null,null,"Owner $75,000 or more",null,"Y",{"$f":"OwnerHousingCostPrior5Year!$Q$50/1.645","v":69.300911854103347},{"$f":"OwnerHousingCost!$Q$50/1.645","v":35.258358662613979},77.754538384532438,{"$f":"OwnerHousingCostPrior5Year!$P$50-OwnerHousingCost!$P$50","v":-252},3.2409683760675492,1.645]
[null,null,null,null,null,null,null,"Owner Less than 20.0 percent",null,"Y",{"$f":"OwnerHousingCostPrior5Year!$Q$51/1.645","v":22.492401215805472},{"$f":"OwnerHousingCost!$Q$51/1.645","v":29.787234042553191},37.325425976920975,{"$f":"OwnerHousingCostPrior5Year!$P$51-OwnerHousingCost!$P$51","v":-153},4.0990824885589472,1.645]
[null,null,null,null,null,null,null,"Owner 20.0 to 24.9 percent",null,"N",{"$f":"OwnerHousingCostPrior5Year!$Q$52/1.645","v":73.505973938547527},{"$f":"OwnerHousingCost!$Q$52/1.645","v":20.668693009118542},76.356552275227926,{"$f":"OwnerHousingCostPrior5Year!$P$52-OwnerHousingCost!$P$52","v":8},0.10477162419754002,1.645]
[null,null,null,null,null,null,null,"Owner 25.0 to 29.9 percent",null,"Y",{"$f":"OwnerHousingCostPrior5Year!$Q$53/1.645","v":76.870256387676989},{"$f":"OwnerHousingCost!$Q$53/1.645","v":36.255677936166428},84.99123778201033,{"$f":"OwnerHousingCostPrior5Year!$P$53-OwnerHousingCost!$P$53","v":-145},1.7060582218122657,1.645]
[null,null,null,null,null,null,null,"Owner 30.0 or more",null,"N",{"$f":"OwnerHousingCostPrior5Year!$Q$54/1.645","v":98.006289428895343},{"$f":"OwnerHousingCost!$Q$54/1.645","v":5.4711246200607899},98.158881270258149,{"$f":"OwnerHousingCostPrior5Year!$P$54-OwnerHousingCost!$P$54","v":-9},9.1688086534121624E-2,1.645]

{"sheet":"OwnerHousingCost","index":19,"n_rows":112,"n_cols":17,"rows_kept":112,"cut":false,"hidden":true,"merged":[]}
[]
[null,null,"HIDE THIS COLUMN",{"$f":"CntyDataLink!A35","v":"Berlin"}]
[null,null,null,"OWNER HOUSING COST CHARACTERISTICS"]
[]
[]
[]
[]
[]
[]
[]
[]
[]
[]
[]
[]
[]
[]
[]
[]
[]
[]
[]
[]
[]
[]
[]
[]
[]
[]
[]
[]
[]
[]
[]
[]
[]
[null,null,null,"Income in 2019 Inflation Adjusted Dollars"]
[null,null,null,"Source: 2015-2019 American Community Survey Table B25106"]
[null,null,null,"Data from the American Community Survey are estimates."]
[]
[]
[null,null,null,{"$f":"CntyDataLink!A$35","v":"Berlin"}]
[]
[null,null,null,{"$f":"D3","v":"OWNER HOUSING COST CHARACTERISTICS"}]
[]
[null,null,null,"Owner Households by "]
[null,null,null,"Selected Monthly Housing Costs as a Percent of 2019 Household Income",null,null,null,"By Household Income"]
[null,null,"H73RenterOccHU",null,"Specified Owner Occ Housing Units","Margin of Error Owner Occ Housing Units",null,"Less than $20,000",{"$f":"\"Margin of Error \"&H48","v":"Margin of Error Less than $20,000"},"$20,000 to $34,999",{"$f":"\"Margin of Error \"&J48","v":"Margin of Error $20,000 to $34,999"},"$35,000 to $49,999",{"$f":"\"Margin of Error \"&L48","v":"Margin of Error $35,000 to $49,999"},"$50,000 to $74,999",{"$f":"\"Margin of Error \"&N48","v":"Margin of Error $50,000 to $74,999"},"$75,000 or More",{"$f":"\"Margin of Error \"&P48","v":"Margin of Error $75,000 or More"}]
[]
[null,null,null,"Total Households",{"$f":"CntyDataLink!$BF144","v":698},{"$f":"CntyDataLink!$BG$144","v":79},null,{"$f":"CntyDataLink!$BZ$144","v":77},{"$f":"CntyDataLink!$CA$144","v":36},{"$f":"CntyDataLink!$CH$144","v":179},{"$f":"CntyDataLink!$CI$144","v":60},{"$f":"CntyDataLink!$CP$144","v":87},{"$f":"CntyDataLink!$CQ$144","v":40},{"$f":"CntyDataLink!$CX$144","v":103},{"$f":"CntyDataLink!$CY$144","v":35},{"$f":"CntyDataLink!$DF$144","v":252},{"$f":"CntyDataLink!$DG$144","v":58}]
[null,null,null,"Monthly Costs Less than 20% of HH Income",{"$f":"CntyDataLink!$BH$144","v":334},{"$f":"CntyDataLink!$BI$144","v":80.956778592036386},null,{"$f":"CntyDataLink!$CB$144","v":0},{"$f":"CntyDataLink!$CC$144","v":11},{"$f":"CntyDataLink!CJ$144","v":40},{"$f":"CntyDataLink!CK$144","v":34},{"$f":"CntyDataLink!CR$144","v":35},{"$f":"CntyDataLink!CS$144","v":28},{"$f":"CntyDataLink!CZ$144","v":54},{"$f":"CntyDataLink!DA$144","v":26},{"$f":"CntyDataLink!DH$144","v":205},{"$f":"CntyDataLink!DI$144","v":49}]
[null,null,null,"Monthly Costs 20% to 29.9% of HH Income",{"$f":"CntyDataLink!$BJ$144","v":174},{"$f":"CntyDataLink!$BK$144","v":61.335144900782616},null,{"$f":"CntyDataLink!$CD$144","v":6},{"$f":"CntyDataLink!$CE$144","v":9},{"$f":"CntyDataLink!CL$144","v":70},{"$f":"CntyDataLink!CM$144","v":46},{"$f":"CntyDataLink!CT$144","v":27},{"$f":"CntyDataLink!CU$144","v":17},{"$f":"CntyDataLink!DB$144","v":33},{"$f":"CntyDataLink!DC$144","v":20},{"$f":"CntyDataLink!DJ$144","v":38},{"$f":"CntyDataLink!DK$144","v":34}]
[null,null,null,"Monthly Costs Less Than 30% of HH Income",{"$f":"CntyDataLink!$BL$144","v":508},{"$f":"CntyDataLink!$BM$144","v":101.56771140475698},null,{"$f":"H52+H51","v":6},{"$f":"SQRT((I52^2)+(I51^2))","v":14.212670403551895},{"$f":"J52+J51","v":110},{"$f":"SQRT((K52^2)+(K51^2))","v":57.201398584300364},{"$f":"L52+L51","v":62},{"$f":"SQRT((M52^2)+(M51^2))","v":32.756678708318397},{"$f":"N52+N51","v":87},{"$f":"SQRT((O52^2)+(O51^2))","v":32.802438933713454},{"$f":"P52+P51","v":243},{"$f":"SQRT((Q52^2)+(Q51^2))","v":59.640590204993778}]
[null,null,null,"Monthly Costs 30% or More of HH Income",{"$f":"CntyDataLink!$BN$144","v":190},{"$f":"CntyDataLink!$BO$144","v":58.523499553598128},null,{"$f":"CntyDataLink!$CF$144","v":71},{"$f":"CntyDataLink!$CG$144","v":33},{"$f":"CntyDataLink!CN$144","v":69},{"$f":"CntyDataLink!CO$144","v":37},{"$f":"CntyDataLink!CV$144","v":25},{"$f":"CntyDataLink!CW$144","v":21},{"$f":"CntyDataLink!DD$144","v":16},{"$f":"CntyDataLink!DE$144","v":11},{"$f":"CntyDataLink!$DL$144","v":9},{"$f":"CntyDataLink!$DM$144","v":9}]
[]
[null,null,null,"Monthly Costs 35% or More of HH Income",{"$f":"CntyDataLink!$BT$144","v":147},{"$f":"CntyDataLink!$BU$144","v":50.950956811427986},null,"NA","NA","NA","NA","NA","NA","NA","NA","NA","NA"]
[null,null,null,"Monthly Costs 50% or More of HH Income",{"$f":"CntyDataLink!$BV$144","v":75},{"$f":"CntyDataLink!$BW$144","v":27.658633371878661},null,"NA","NA","NA","NA","NA","NA","NA","NA","NA","NA"]
[null,null,null,"Percent not computed",{"$f":"CntyDataLink!$BX$144","v":0},{"$f":"CntyDataLink!$BY$144","v":15.556349186104045},null,"NA","NA","NA","NA","NA","NA","NA","NA","NA","NA"]
[]
[null,null,null,"Percent of Owner Households Paying ",null,null,null,"By Household Income"]
[null,null,null,{"$f":"D53","v":"Monthly Costs Less Than 30% of HH Income"},{"$f":"E53/E$50","v":0.72779369627507162},null,null,{"$f":"H53/H$50","v":7.792207792207792E-2},null,{"$f":"J53/J$50","v":0.61452513966480449},null,{"$f":"L53/L$50","v":0.71264367816091956},null,{"$f":"N53/N$50","v":0.84466019417475724},null,{"$f":"P53/P$50","v":0.9642857142857143}]
[null,null,null,{"$f":"D54","v":"Monthly Costs 30% or More of HH Income"},{"$f":"E54/E$50","v":0.27220630372492838},null,null,{"$f":"H54/H50","v":0.92207792207792205},null,{"$f":"J54/J50","v":0.38547486033519551},null,{"$f":"L54/L50","v":0.28735632183908044},null,{"$f":"N54/N50","v":0.1553398058252427},null,{"$f":"P54/P50","v":3.5714285714285712E-2}]
[]
[null,null,null,"Monthly Costs 35% or More of HH Income",{"$f":"E56/E$50","v":0.21060171919770773},null,null,"NA","NA","NA","NA","NA","NA","NA","NA","NA","NA"]
[null,null,null,"Monthly Costs 50% or More of HH Income",{"$f":"E57/E$50","v":0.10744985673352435},null,null,"NA","NA","NA","NA","NA","NA","NA","NA","NA","NA"]
[null,null,null,"Percent not computed",{"$f":"E58/$E$50","v":0},null,null,"NA","NA","NA","NA","NA","NA","NA","NA","NA","NA"]
[]
[null,null,null,{"$f":"D37","v":"Income in 2019 Inflation Adjusted Dollars"}]
[null,null,null,"Source: 2015-2019 American Community Survey Table B25091; B25106",null,null,null,"NA indicates that the American Community Survey does not provide that data."]
[null,null,null,"Data from the American Community Survey are estimates."]
[]
[null,null,null,{"$f":"D2","v":"Berlin"}]
[null,null,"H62ROHUGRent250to299",{"$f":"D3","v":"OWNER HOUSING COST CHARACTERISTICS"}]
[null,null,"H62ROHUGRent300to349"]
[null,null,"H62ROHUGRent350to399","Value of Owner Occupied Housing Units"]
[null,null,"H62ROHUGRent400to449"]
[null,null,"H62ROHUGRent450to499","Owner Occupied Housing Units",{"$f":"CntyDataLink!$B$144","v":698},{"$f":"CntyDataLink!$C$144","v":79}]
[null,null,"H62ROHUGRent500to549"]
[null,null,"H62ROHUGRent550to599","Value","Housing Units","Margin of Error"]
[null,null,"H62ROHUGRent600to649","Less than $10,000",{"$f":"CntyDataLink!$D$144","v":37},{"$f":"CntyDataLink!$E$144","v":36}]
[null,null,"H62ROHUGRent650to699","$10,000 to $14,999",{"$f":"CntyDataLink!$F$144","v":8},{"$f":"CntyDataLink!$G$144","v":12}]
[null,null,"H62ROHUGRent700to749","$15,000 to $19,999",{"$f":"CntyDataLink!$H$144","v":7},{"$f":"CntyDataLink!$I$144","v":9}]
[null,null,"H62ROHUGRent750to799","$20,000 to $24,999",{"$f":"CntyDataLink!$J$144","v":7},{"$f":"CntyDataLink!$K$144","v":9}]
[null,null,"H62ROHUGRent800to899","$25,000 to $29,999",{"$f":"CntyDataLink!$L$144","v":8},{"$f":"CntyDataLink!$M$144","v":10}]
[null,null,"H62ROHUGRent900to999","$30,000 to $34,999",{"$f":"CntyDataLink!$N$144","v":6},{"$f":"CntyDataLink!$O$144","v":9}]
[null,null,"H62ROHUGRent1000to1249","$35,000 to $39,999",{"$f":"CntyDataLink!$P$144","v":4},{"$f":"CntyDataLink!$Q$144","v":7}]
[null,null,"H62ROHUGRent1250to1499","$40,000 to $49,999",{"$f":"CntyDataLink!$R$144","v":15},{"$f":"CntyDataLink!$S$144","v":13}]
[null,null,"H62ROHUGRent1500to1999","$50,000 to $59,999",{"$f":"CntyDataLink!$T$144","v":42},{"$f":"CntyDataLink!$U$144","v":36}]
[null,null,"H62ROHUGRent2000>","$60,000 to $69,999",{"$f":"CntyDataLink!$V$144","v":10},{"$f":"CntyDataLink!$W$144","v":12}]
[null,null,"H62ROHUNoGRent","$70,000 to $79,999",{"$f":"CntyDataLink!$X$144","v":35},{"$f":"CntyDataLink!$Y$144","v":20}]
[null,null,"H63MedianGrossRnt","$80,000 to $89,999",{"$f":"CntyDataLink!$Z$144","v":15},{"$f":"CntyDataLink!$AA$144","v":22}]
[null,null,null,"$90,000 to $99,999",{"$f":"CntyDataLink!$AB$144","v":68},{"$f":"CntyDataLink!$AC$144","v":33}]
[null,null,null,"$100,000 to $124,999",{"$f":"CntyDataLink!$AD$144","v":54},{"$f":"CntyDataLink!$AE$144","v":41}]
[null,null,null,"$125,000 to $149,999",{"$f":"CntyDataLink!$AF$144","v":43},{"$f":"CntyDataLink!$AG$144","v":27}]
[null,null,null,"$150,000 to $174,999",{"$f":"CntyDataLink!$AH$144","v":69},{"$f":"CntyDataLink!$AI$144","v":37}]
[null,null,null,"$175,000 to $199,999",{"$f":"CntyDataLink!$AJ$144","v":34},{"$f":"CntyDataLink!$AK$144","v":22}]
[null,null,null,"$200,000 to $249,999",{"$f":"CntyDataLink!$AL$144","v":91},{"$f":"CntyDataLink!$AM$144","v":37}]
[null,null,null,"$250,000 to $299,999",{"$f":"CntyDataLink!$AN$144","v":76},{"$f":"CntyDataLink!$AO$144","v":32}]
[null,null,null,"$300,000 to $399,999",{"$f":"CntyDataLink!$AP$144","v":28},{"$f":"CntyDataLink!$AQ$144","v":20}]
[null,null,null,"$400,000 to $499,999",{"$f":"CntyDataLink!$AR$144","v":23},{"$f":"CntyDataLink!$AS$144","v":24}]
[null,null,null,"$500,000 to $749,999",{"$f":"CntyDataLink!$AT$144","v":13},{"$f":"CntyDataLink!$AU$144","v":12}]
[null,null,null,"$750,000 to $999,999",{"$f":"CntyDataLink!$AV$144","v":0},{"$f":"CntyDataLink!$AW$144","v":11}]
[null,null,null,"$1,000,000 to $1,499,999",{"$f":"CntyDataLink!$AX$144","v":5},{"$f":"CntyDataLink!$AY$144","v":8}]
[null,null,null,"$1,500,000 to $1,999,999",{"$f":"CntyDataLink!$AZ$144","v":0},{"$f":"CntyDataLink!$BA$144","v":11}]
[null,null,null,"$2,000,000 or more",{"$f":"CntyDataLink!$BB$144","v":0},{"$f":"CntyDataLink!$BC$144","v":11}]
[]
[null,null,null,"Median Value",{"$f":"CntyDataLink!$BD$144","v":144200},{"$f":"CntyDataLink!$BE$144","v":27802}]
[]
[]
[]
[null,null,null,"Source: 2015-2019 American Community Survey Tables B25075 and B25077"]
[null,null,null,"Data from the American Community Survey are estimates."]

{"sheet":"OwnerHousingCostPrior5Year","index":20,"n_rows":70,"n_cols":17,"rows_kept":70,"cut":false,"hidden":true,"merged":[]}
[]
[null,null,"HIDE THIS COLUMN",{"$f":"CntyDataLink!A35","v":"Berlin"}]
[null,null,null,"OWNER HOUSING COST CHARACTERISTICS"]
[]
[]
[]
[]
[]
[]
[]
[]
[]
[]
[]
[]
[]
[]
[]
[]
[]
[]
[]
[]
[]
[]
[]
[]
[]
[]
[]
[]
[]
[]
[]
[]
[]
[null,null,null,"Income in 2014 Inflation Adjusted Dollars"]
[null,null,null,"Source: 2010-2014 American Community Survey Table B25106"]
[null,null,null,"Data from the American Community Survey are estimates."]
[]
[]
[null,null,null,{"$f":"CntyDataLink!A$35","v":"Berlin"}]
[]
[null,null,null,{"$f":"D3","v":"OWNER HOUSING COST CHARACTERISTICS"}]
[]
[null,null,null,"Owner Households by "]
[null,null,null,"Selected Monthly Housing Costs as a Percent of 2014 Household Income",null,null,null,"By Household Income"]
[null,null,"H73RenterOccHU",null,"Specified Owner Occ Housing Units","Margin of Error Owner Occ Housing Units",null,"Less than $20,000",{"$f":"\"Margin of Error \"&H48","v":"Margin of Error Less than $20,000"},"$20,000 to $34,999",{"$f":"\"Margin of Error \"&J48","v":"Margin of Error $20,000 to $34,999"},"$35,000 to $49,999",{"$f":"\"Margin of Error \"&L48","v":"Margin of Error $35,000 to $49,999"},"$50,000 to $74,999",{"$f":"\"Margin of Error \"&N48","v":"Margin of Error $50,000 to $74,999"},"$75,000 or More",{"$f":"\"Margin of Error \"&P48","v":"Margin of Error $75,000 or More"}]
[]
[null,null,null,"Total Households",{"$f":"CntyDataLinkPrior5YearEstimates!$BF144","v":"Estimate"},{"$f":"CntyDataLinkPrior5YearEstimates!$BG$144","v":"Margin Of Error"},null,{"$f":"CntyDataLinkPrior5YearEstimates!$BZ$144","v":40},{"$f":"CntyDataLinkPrior5YearEstimates!$CA$144","v":35.071355833500363},{"$f":"CntyDataLinkPrior5YearEstimates!$CH$144","v":0},{"$f":"CntyDataLinkPrior5YearEstimates!$CI$144","v":114},{"$f":"CntyDataLinkPrior5YearEstimates!$CP$144","v":61},{"$f":"CntyDataLinkPrior5YearEstimates!$CQ$144","v":41.315856520227193},{"$f":"CntyDataLinkPrior5YearEstimates!$CX$144","v":49},{"$f":"CntyDataLinkPrior5YearEstimates!$CY$144","v":123.664869708418},{"$f":"CntyDataLinkPrior5YearEstimates!$DF$144","v":0},{"$f":"CntyDataLinkPrior5YearEstimates!$DG$144","v":114}]
[null,null,null,"Monthly Costs Less than 20% of HH Income",{"$f":"CntyDataLinkPrior5YearEstimates!$BH$144","v":747},{"$f":"CntyDataLinkPrior5YearEstimates!$BI$144","v":96},null,{"$f":"CntyDataLinkPrior5YearEstimates!$CB$144","v":63},{"$f":"CntyDataLinkPrior5YearEstimates!$CC$144","v":123.69316876852982},{"$f":"CntyDataLinkPrior5YearEstimates!CJ$144","v":124},{"$f":"CntyDataLinkPrior5YearEstimates!CK$144","v":67},{"$f":"CntyDataLinkPrior5YearEstimates!CR$144","v":63},{"$f":"CntyDataLinkPrior5YearEstimates!CS$144","v":51},{"$f":"CntyDataLinkPrior5YearEstimates!CZ$144","v":38},{"$f":"CntyDataLinkPrior5YearEstimates!DA$144","v":33.241540277189323},{"$f":"CntyDataLinkPrior5YearEstimates!DH$144","v":52},{"$f":"CntyDataLinkPrior5YearEstimates!DI$144","v":37}]
[null,null,null,"Monthly Costs 20% to 29.9% of HH Income",{"$f":"CntyDataLinkPrior5YearEstimates!$BJ$144","v":159},{"$f":"CntyDataLinkPrior5YearEstimates!$BK$144","v":50.990195135927848},null,{"$f":"CntyDataLinkPrior5YearEstimates!$CD$144","v":40},{"$f":"CntyDataLinkPrior5YearEstimates!$CE$144","v":119.27279656317278},{"$f":"CntyDataLinkPrior5YearEstimates!CL$144","v":27},{"$f":"CntyDataLinkPrior5YearEstimates!CM$144","v":20.273134932713294},{"$f":"CntyDataLinkPrior5YearEstimates!CT$144","v":0},{"$f":"CntyDataLinkPrior5YearEstimates!CU$144","v":114},{"$f":"CntyDataLinkPrior5YearEstimates!DB$144","v":79},{"$f":"CntyDataLinkPrior5YearEstimates!DC$144","v":127.49117616525467},{"$f":"CntyDataLinkPrior5YearEstimates!DJ$144","v":46},{"$f":"CntyDataLinkPrior5YearEstimates!DK$144","v":120.91732712891069}]
[null,null,null,"Monthly Costs Less Than 30% of HH Income",{"$f":"CntyDataLinkPrior5YearEstimates!$BL$144","v":113},{"$f":"CntyDataLinkPrior5YearEstimates!$BM$144","v":44.944410108488462},null,{"$f":"H52+H51","v":103},{"$f":"SQRT((I52^2)+(I51^2))","v":171.83131262956704},{"$f":"J52+J51","v":151},{"$f":"SQRT((K52^2)+(K51^2))","v":70},{"$f":"L52+L51","v":63},{"$f":"SQRT((M52^2)+(M51^2))","v":124.88794977899188},{"$f":"N52+N51","v":117},{"$f":"SQRT((O52^2)+(O51^2))","v":131.75355782672435},{"$f":"P52+P51","v":98},{"$f":"SQRT((Q52^2)+(Q51^2))","v":126.45157175772866}]
[null,null,null,"Monthly Costs 30% or More of HH Income",{"$f":"CntyDataLinkPrior5YearEstimates!$BN$144","v":94},{"$f":"CntyDataLinkPrior5YearEstimates!$BO$144","v":30.413812651491099},null,{"$f":"CntyDataLinkPrior5YearEstimates!$CF$144","v":63},{"$f":"CntyDataLinkPrior5YearEstimates!$CG$144","v":48},{"$f":"CntyDataLinkPrior5YearEstimates!CN$144","v":97},{"$f":"CntyDataLinkPrior5YearEstimates!CO$144","v":62.425956140054431},{"$f":"CntyDataLinkPrior5YearEstimates!CV$144","v":87},{"$f":"CntyDataLinkPrior5YearEstimates!CW$144","v":57},{"$f":"CntyDataLinkPrior5YearEstimates!DD$144","v":8},{"$f":"CntyDataLinkPrior5YearEstimates!DE$144","v":12},{"$f":"CntyDataLinkPrior5YearEstimates!$DL$144","v":0},{"$f":"CntyDataLinkPrior5YearEstimates!$DM$144","v":161.22034611053283}]
[]
[null,null,null,"Monthly Costs 35% or More of HH Income",{"$f":"CntyDataLinkPrior5YearEstimates!$BT$144","v":14},{"$f":"CntyDataLinkPrior5YearEstimates!$BU$144","v":12.529964086141668},null,"NA","NA","NA","NA","NA","NA","NA","NA","NA","NA"]
[null,null,null,"Monthly Costs 50% or More of HH Income",{"$f":"CntyDataLinkPrior5YearEstimates!$BV$144","v":22},{"$f":"CntyDataLinkPrior5YearEstimates!$BW$144","v":17.029386365926403},null,"NA","NA","NA","NA","NA","NA","NA","NA","NA","NA"]
[null,null,null,"Percent not computed",{"$f":"CntyDataLinkPrior5YearEstimates!$BX$144","v":37},{"$f":"CntyDataLinkPrior5YearEstimates!$BY$144","v":24.041630560342615},null,"NA","NA","NA","NA","NA","NA","NA","NA","NA","NA"]
[]
[null,null,null,"Percent of Owner Households Paying ",null,null,null,"By Household Income"]
[null,null,null,{"$f":"D53","v":"Monthly Costs Less Than 30% of HH Income"},{"$f":"E53/E$50","v":{"$error":"#VALUE!"}},null,null,{"$f":"H53/H$50","v":2.5750000000000002},null,{"$f":"J53/J$50","v":{"$error":"#DIV/0!"}},null,{"$f":"L53/L$50","v":1.0327868852459017},null,{"$f":"N53/N$50","v":2.3877551020408165},null,{"$f":"P53/P$50","v":{"$error":"#DIV/0!"}}]
[null,null,null,{"$f":"D54","v":"Monthly Costs 30% or More of HH Income"},{"$f":"E54/E$50","v":{"$error":"#VALUE!"}},null,null,{"$f":"H54/H50","v":1.575},null,{"$f":"J54/J50","v":{"$error":"#DIV/0!"}},null,{"$f":"L54/L50","v":1.4262295081967213},null,{"$f":"N54/N50","v":0.16326530612244897},null,{"$f":"P54/P50","v":{"$error":"#DIV/0!"}}]
[]
[null,null,null,"Monthly Costs 35% or More of HH Income",{"$f":"E56/E$50","v":{"$error":"#VALUE!"}},null,null,"NA","NA","NA","NA","NA","NA","NA","NA","NA","NA"]
[null,null,null,"Monthly Costs 50% or More of HH Income",{"$f":"E57/E$50","v":{"$error":"#VALUE!"}},null,null,"NA","NA","NA","NA","NA","NA","NA","NA","NA","NA"]
[null,null,null,"Percent not computed",{"$f":"E58/$E$50","v":{"$error":"#VALUE!"}},null,null,"NA","NA","NA","NA","NA","NA","NA","NA","NA","NA"]
[]
[null,null,"H62ROHUGRent200to249",{"$f":"D37","v":"Income in 2014 Inflation Adjusted Dollars"}]
[null,null,null,"Source: 2010-2014 American Community Survey Table B25091; B25106",null,null,null,null,"NA indicates that the American Community Survey does not provide that data."]
[null,null,null,"Data from the American Community Survey are estimates."]

{"sheet":"ACS_Source_Table_List","index":21,"n_rows":49,"n_cols":4,"rows_kept":49,"cut":false,"hidden":true,"merged":[]}
[]
["ACS Table B01001","x"]
["ACS Table B01002","x"]
["ACS Table B03002","x"]
["ACS Table B05002 ","x"]
["ACS Table B07003","x","Replaces C07001"]
["ACS Table B11001","x"]
["ACS Table B11002","x"]
["ACS Table B14001 & B15002","x","Replaces C15002"]
["ACS Table B17001 ","x"]
["ACS Table B17010 ","x","Replaces C17010","Poverty Status by family type"]
["ACS Table B17017","x","Replaces C17017","Poverty Status by HH type"]
["ACS Table B18001 ",null,"Removed Disability Tables"]
["ACS Table C18001 ",null,"Removed Disability Tables"]
["ACS Table B18003",null,"Removed Disability Tables"]
["ACS Table B18004",null,"Removed Disability Tables"]
["ACS Table B18005",null,"Removed Disability Tables"]
["ACS Table B18006",null,"Removed Disability Tables"]
["ACS Table B18007",null,"Removed Disability Tables"]
["ACS Table B18008",null,"Removed Disability Tables"]
["ACS Table B19001","x"]
["ACS Table B19037 ","x"]
["ACS Table B19049 ","x"]
["ACS Table B19101& B19113 ","s"]
["ACS Table B19201 & B19202","s"]
["ACS Table B25001, B25003 & B25004 ","x"]
["ACS Table B25008","x"]
["ACS Table B25010","x"]
["ACS Table B25024","x"]
["ACS Table B25032","x"]
["ACS Table B25034 & B25041 ","x"]
["ACS Table B25063 & B25064","x"]
["ACS Table B25070 & B25074","x"]
["ACS Table B25075 & B25077","x"]
["ACS Table B25088","x"]
["ACS Table B25091","x"]
["ACS Table B25118 & B25119","x"]
[]
[]
[]
[]
[]
[]
["Tables Removed from 5 Year Estimates"]
["ACS Table C19001 ","x","May have to consolidate this table from Table B19001. This has already been done. For 5 year estimates remove worksheet."]
["ACS Table B25094","x","No Comparison Table for B25094 Removed"]
["ACS Table B25101",null,"No Comparison Table for B25101 Removed"]
["ACS Table B25104 & B25105",null,"No Comparison Table for B25104 & B25105 Removed"]
["ACS Table B25106","x","No Comparison Table for  B25106 Removed"]

{"sheet":"ACS_Table_B01001","index":22,"n_rows":265,"n_cols":88,"rows_kept":265,"cut":false,"hidden":true,"merged":[[65084,24,65084,25],[65084,26,65084,27],[65084,28,65084,29],[65084,30,65084,31],[65084,32,65084,33],[65084,34,65084,35],[65084,36,65084,37],[65084,38,65084,39],[65084,40,65084,41],[65084,42,65084,43],[65084,44,65084,45],[65084,46,65084,47],[65084,48,65084,49],[65084,50,65084,51],[65084,52,65084,53],[65084,54,65084,55],[65084,56,65084,57],[65084,58,65084,59],[65084,60,65084,61],[65084,62,65084,63],[65084,64,65084,65],[65084,66,65084,67],[65084,68,65084,69],[65084,70,65084,71],[65084,84,65084,85],[65084,86,65084,87],[65084,72,65084,73],[65084,74,65084,75],[65084,76,65084,77],[65084,78,65084,79],[65084,80,65084,81],[65084,82,65084,83],[65002,24,65002,25],[65002,26,65002,27],[65002,28,65002,29],[65002,30,65002,31],[65002,32,65002,33],[65002,34,65002,35],[65002,36,65002,37],[65002,38,65002,39],[65002,40,65002,41],[65002,42,65002,43],[65002,44,65002,45],[65002,46,65002,47],[65002,48,65002,49],[65002,50,65002,51],[65002,52,65002,53],[65002,54,65002,55],[65002,56,65002,57],[65002,58,65002,59],[65002,60,65002,61],[65002,62,65002,63],[65002,64,65002,65],[65002,66,65002,67],[65002,68,65002,69],[65002,70,65002,71],[65002,72,65002,73],[65002,74,65002,75],[65002,76,65002,77],[65002,78,65002,79],[65002,80,65002,81],[65002,82,65002,83],[65002,84,65002,85],[65002,86,65002,87],[65064,24,65064,25],[65064,26,65064,27],[65064,28,65064,29],[65064,30,65064,31],[65064,32,65064,33],[65064,34,65064,35],[65064,36,65064,37],[65064,38,65064,39],[65064,40,65064,41],[65064,42,65064,43],[65064,44,65064,45],[65064,46,65064,47],[65064,48,65064,49],[65064,50,65064,51],[65064,52,65064,53],[65064,54,65064,55],[65064,56,65064,57],[65064,58,65064,59],[65064,60,65064,61],[65064,62,65064,63],[65064,64,65064,65],[65064,66,65064,67],[65064,68,65064,69],[65064,70,65064,71],[65064,72,65064,73],[65064,74,65064,75],[65064,76,65064,77],[65064,78,65064,79],[65064,80,65064,81],[65064,82,65064,83],[65064,84,65064,85],[65064,86,65064,87],[64920,24,64920,25],[64920,26,64920,27],[64920,28,64920,29],[64920,30,64920,31],[64920,32,64920,33],[64920,34,64920,35],[64920,36,64920,37],[64920,38,64920,39],[64920,40,64920,41],[64920,42,64920,43],[64920,44,64920,45],[64920,46,64920,47],[64920,48,64920,49],[64920,50,64920,51],[64920,52,64920,53],[64920,54,64920,55],[64920,56,64920,57],[64920,58,64920,59],[64920,60,64920,61],[64920,62,64920,63],[64920,64,64920,65],[64920,66,64920,67],[64920,68,64920,69],[64920,70,64920,71],[64920,72,64920,73],[64920,74,64920,75],[64920,76,64920,77],[64920,78,64920,79],[64920,80,64920,81],[64920,82,64920,83],[64920,84,64920,85],[64920,86,64920,87],[64982,24,64982,25],[64982,26,64982,27],[64982,28,64982,29],[64982,30,64982,31],[64982,32,64982,33],[64982,34,64982,35],[64982,36,64982,37],[64982,38,64982,39],[64982,40,64982,41],[64982,42,64982,43],[64982,44,64982,45],[64982,46,64982,47],[64982,48,64982,49],[64982,50,64982,51],[64982,52,64982,53],[64982,54,64982,55],[64982,56,64982,57],[64982,58,64982,59],[64982,60,64982,61],[64982,62,64982,63],[64982,64,64982,65],[64982,66,64982,67],[64982,68,64982,69],[64982,70,64982,71],[64982,72,64982,73],[64982,74,64982,75],[64982,76,64982,77],[64982,78,64982,79],[64982,80,64982,81],[64982,82,64982,83],[64982,84,64982,85],[64982,86,64982,87],[64838,24,64838,25],[64838,26,64838,27],[64838,28,64838,29],[64838,30,64838,31],[64838,32,64838,33],[64838,34,64838,35],[64838,36,64838,37],[64838,38,64838,39],[64838,40,64838,41],[64838,42,64838,43],[64838,44,64838,45],[64838,46,64838,47],[64838,48,64838,49],[64838,50,64838,51],[64838,52,64838,53],[64838,54,64838,55],[64838,56,64838,57],[64838,58,64838,59],[64838,60,64838,61],[64838,62,64838,63],[64838,64,64838,65],[64838,66,64838,67],[64838,68,64838,69],[64838,70,64838,71],[64838,72,64838,73],[64838,74,64838,75],[64838,76,64838,77],[64838,78,64838,79],[64838,80,64838,81],[64838,82,64838,83],[64838,84,64838,85],[64838,86,64838,87],[64900,24,64900,25],[64900,26,64900,27],[64900,28,64900,29],[64900,30,64900,31],[64900,32,64900,33],[64900,34,64900,35],[64900,36,64900,37],[64900,38,64900,39],[64900,40,64900,41],[64900,42,64900,43],[64900,44,64900,45],[64900,46,64900,47],[64900,48,64900,49],[64900,50,64900,51],[64900,52,64900,53],[64900,54,64900,55],[64900,56,64900,57],[64900,58,64900,59],[64900,60,64900,61],[64900,62,64900,63],[64900,64,64900,65],[64900,66,64900,67],[64900,68,64900,69],[64900,70,64900,71],[64900,72,64900,73],[64900,74,64900,75],[64900,76,64900,77],[64900,78,64900,79],[64900,80,64900,81],[64900,82,64900,83],[64900,84,64900,85],[64900,86,64900,87],[64756,24,64756,25],[64756,26,64756,27],[64756,28,64756,29],[64756,30,64756,31],[64756,32,64756,33],[64756,34,64756,35],[64756,36,64756,37],[64756,38,64756,39],[64756,40,64756,41],[64756,42,64756,43],[64756,44,64756,45],[64756,46,64756,47],[64756,48,64756,49],[64756,50,64756,51],[64756,52,64756,53],[64756,54,64756,55],[64756,56,64756,57],[64756,58,64756,59],[64756,60,64756,61],[64756,62,64756,63],[64756,64,64756,65],[64756,66,64756,67],[64756,68,64756,69],[64756,70,64756,71],[64756,72,64756,73],[64756,74,64756,75],[64756,76,64756,77],[64756,78,64756,79],[64756,80,64756,81],[64756,82,64756,83],[64756,84,64756,85],[64756,86,64756,87],[64818,24,64818,25],[64818,26,64818,27],[64818,28,64818,29],[64818,30,64818,31],[64818,32,64818,33],[64818,34,64818,35],[64818,36,64818,37],[64818,38,64818,39],[64818,40,64818,41],[64818,42,64818,43],[64818,44,64818,45],[64818,46,64818,47],[64818,48,64818,49],[64818,50,64818,51],[64818,52,64818,53],[64818,54,64818,55],[64818,56,64818,57],[64818,58,64818,59],[64818,60,64818,61],[64818,62,64818,63],[64818,64,64818,65],[64818,66,64818,67],[64818,68,64818,69],[64818,70,64818,71],[64818,72,64818,73],[64818,74,64818,75],[64818,76,64818,77],[64818,78,64818,79],[64818,80,64818,81],[64818,82,64818,83],[64818,84,64818,85],[64818,86,64818,87],[64674,24,64674,25],[64674,26,64674,27],[64674,28,64674,29],[64674,30,64674,31],[64674,32,64674,33],[64674,34,64674,35],[64674,36,64674,37],[64674,38,64674,39],[64674,40,64674,41],[64674,42,64674,43],[64674,44,64674,45],[64674,46,64674,47],[64674,48,64674,49],[64674,50,64674,51],[64674,52,64674,53],[64674,54,64674,55],[64674,56,64674,57],[64674,58,64674,59],[64674,60,64674,61],[64674,62,64674,63],[64674,64,64674,65],[64674,66,64674,67],[64674,68,64674,69],[64674,70,64674,71],[64674,72,64674,73],[64674,74,64674,75],[64674,76,64674,77],[64674,78,64674,79],[64674,80,64674,81],[64674,82,64674,83],[64674,84,64674,85],[64674,86,64674,87],[64736,24,64736,25],[64736,26,64736,27],[64736,28,64736,29],[64736,30,64736,31],[64736,32,64736,33],[64736,34,64736,35],[64736,36,64736,37],[64736,38,64736,39],[64736,40,64736,41],[64736,42,64736,43],[64736,44,64736,45],[64736,46,64736,47],[64736,48,64736,49],[64736,50,64736,51],[64736,52,64736,53],[64736,54,64736,55],[64736,56,64736,57],[64736,58,64736,59],[64736,60,64736,61],[64736,62,64736,63],[64736,64,64736,65],[64736,66,64736,67],[64736,68,64736,69],[64736,70,64736,71],[64736,72,64736,73],[64736,74,64736,75],[64736,76,64736,77],[64736,78,64736,79],[64736,80,64736,81],[64736,82,64736,83],[64736,84,64736,85],[64736,86,64736,87],[64592,24,64592,25],[64592,26,64592,27],[64592,28,64592,29],[64592,30,64592,31],[64592,32,64592,33],[64592,34,64592,35],[64592,36,64592,37],[64592,38,64592,39],[64592,40,64592,41],[64592,42,64592,43],[64592,44,64592,45],[64592,46,64592,47],[64592,48,64592,49],[64592,50,64592,51],[64592,52,64592,53],[64592,54,64592,55],[64592,56,64592,57],[64592,58,64592,59],[64592,60,64592,61],[64592,62,64592,63],[64592,64,64592,65],[64592,66,64592,67],[64592,68,64592,69],[64592,70,64592,71],[64592,72,64592,73],[64592,74,64592,75],[64592,76,64592,77],[64592,78,64592,79],[64592,80,64592,81],[64592,82,64592,83],[64592,84,64592,85],[64592,86,64592,87],[64654,24,64654,25],[64654,26,64654,27],[64654,28,64654,29],[64654,30,64654,31],[64654,32,64654,33],[64654,34,64654,35],[64654,36,64654,37],[64654,38,64654,39],[64654,40,64654,41],[64654,42,64654,43],[64654,44,64654,45],[64654,46,64654,47],[64654,48,64654,49],[64654,50,64654,51],[64654,52,64654,53],[64654,54,64654,55],[64654,56,64654,57],[64654,58,64654,59],[64654,60,64654,61],[64654,62,64654,63],[64654,64,64654,65],[64654,66,64654,67],[64654,68,64654,69],[64654,70,64654,71],[64654,72,64654,73],[64654,74,64654,75],[64654,76,64654,77],[64654,78,64654,79],[64654,80,64654,81],[64654,82,64654,83],[64654,84,64654,85],[64654,86,64654,87],[64510,24,64510,25],[64510,26,64510,27],[64510,28,64510,29],[64510,30,64510,31],[64510,32,64510,33],[64510,34,64510,35],[64510,36,64510,37],[64510,38,64510,39],[64510,40,64510,41],[64510,42,64510,43],[64510,44,64510,45],[64510,46,64510,47],[64510,48,64510,49],[64510,50,64510,51],[64510,52,64510,53],[64510,54,64510,55],[64510,56,64510,57],[64510,58,64510,59],[64510,60,64510,61],[64510,62,64510,63],[64510,64,64510,65],[64510,66,64510,67],[64510,68,64510,69],[64510,70,64510,71],[64510,72,64510,73],[64510,74,64510,75],[64510,76,64510,77],[64510,78,64510,79],[64510,80,64510,81],[64510,82,64510,83],[64510,84,64510,85],[64510,86,64510,87],[64572,24,64572,25],[64572,26,64572,27],[64572,28,64572,29],[64572,30,64572,31],[64572,32,64572,33],[64572,34,64572,35],[64572,36,64572,37],[64572,38,64572,39],[64572,40,64572,41],[64572,42,64572,43],[64572,44,64572,45],[64572,46,64572,47],[64572,48,64572,49],[64572,50,64572,51],[64572,52,64572,53],[64572,54,64572,55],[64572,56,64572,57],[64572,58,64572,59],[64572,60,64572,61],[64572,62,64572,63],[64572,64,64572,65],[64572,66,64572,67],[64572,68,64572,69],[64572,70,64572,71],[64572,72,64572,73],[64572,74,64572,75],[64572,76,64572,77],[64572,78,64572,79],[64572,80,64572,81],[64572,82,64572,83],[64572,84,64572,85],[64572,86,64572,87],[64428,24,64428,25],[64428,26,64428,27],[64428,28,64428,29],[64428,30,64428,31],[64428,32,64428,33],[64428,34,64428,35],[64428,36,64428,37],[64428,38,64428,39],[64428,40,64428,41],[64428,42,64428,43],[64428,44,64428,45],[64428,46,64428,47],[64428,48,64428,49],[64428,50,64428,51],[64428,52,64428,53],[64428,54,64428,55],[64428,56,64428,57],[64428,58,64428,59],[64428,60,64428,61],[64428,62,64428,63],[64428,64,64428,65],[64428,66,64428,67],[64428,68,64428,69],[64428,70,64428,71],[64428,72,64428,73],[64428,74,64428,75],[64428,76,64428,77],[64428,78,64428,79],[64428,80,64428,81],[64428,82,64428,83],[64428,84,64428,85],[64428,86,64428,87],[64490,24,64490,25],[64490,26,64490,27],[64490,28,64490,29],[64490,30,64490,31],[64490,32,64490,33],[64490,34,64490,35],[64490,36,64490,37],[64490,38,64490,39],[64490,40,64490,41],[64490,42,64490,43],[64490,44,64490,45],[64490,46,64490,47],[64490,48,64490,49],[64490,50,64490,51],[64490,52,64490,53],[64490,54,64490,55],[64490,56,64490,57],[64490,58,64490,59],[64490,60,64490,61],[64490,62,64490,63],[64490,64,64490,65],[64490,66,64490,67],[64490,68,64490,69],[64490,70,64490,71],[64490,72,64490,73],[64490,74,64490,75],[64490,76,64490,77],[64490,78,64490,79],[64490,80,64490,81],[64490,82,64490,83],[64490,84,64490,85],[64490,86,64490,87],[64346,24,64346,25],[64346,26,64346,27],[64346,28,64346,29],[64346,30,64346,31],[64346,32,64346,33],[64346,34,64346,35],[64346,36,64346,37],[64346,38,64346,39],[64346,40,64346,41],[64346,42,64346,43],[64346,44,64346,45],[64346,46,64346,47],[64346,48,64346,49],[64346,50,64346,51],[64346,52,64346,53],[64346,54,64346,55],[64346,56,64346,57],[64346,58,64346,59],[64346,60,64346,61],[64346,62,64346,63],[64346,64,64346,65],[64346,66,64346,67],[64346,68,64346,69],[64346,70,64346,71],[64346,72,64346,73],[64346,74,64346,75],[64346,76,64346,77],[64346,78,64346,79],[64346,80,64346,81],[64346,82,64346,83],[64346,84,64346,85],[64346,86,64346,87],[64408,24,64408,25],[64408,26,64408,27],[64408,28,64408,29],[64408,30,64408,31],[64408,32,64408,33],[64408,34,64408,35],[64408,36,64408,37],[64408,38,64408,39],[64408,40,64408,41],[64408,42,64408,43],[64408,44,64408,45],[64408,46,64408,47],[64408,48,64408,49],[64408,50,64408,51],[64408,52,64408,53],[64408,54,64408,55],[64408,56,64408,57],[64408,58,64408,59],[64408,60,64408,61],[64408,62,64408,63],[64408,64,64408,65],[64408,66,64408,67],[64408,68,64408,69],[64408,70,64408,71],[64408,72,64408,73],[64408,74,64408,75],[64408,76,64408,77],[64408,78,64408,79],[64408,80,64408,81],[64408,82,64408,83],[64408,84,64408,85],[64408,86,64408,87],[64264,24,64264,25],[64264,26,64264,27],[64264,28,64264,29],[64264,30,64264,31],[64264,32,64264,33],[64264,34,64264,35],[64264,36,64264,37],[64264,38,64264,39],[64264,40,64264,41],[64264,42,64264,43],[64264,44,64264,45],[64264,46,64264,47],[64264,48,64264,49],[64264,50,64264,51],[64264,52,64264,53],[64264,54,64264,55],[64264,56,64264,57],[64264,58,64264,59],[64264,60,64264,61],[64264,62,64264,63],[64264,64,64264,65],[64264,66,64264,67],[64264,68,64264,69],[64264,70,64264,71],[64264,72,64264,73],[64264,74,64264,75],[64264,76,64264,77],[64264,78,64264,79],[64264,80,64264,81],[64264,82,64264,83],[64264,84,64264,85],[64264,86,64264,87],[64326,24,64326,25],[64326,26,64326,27],[64326,28,64326,29],[64326,30,64326,31],[64326,32,64326,33],[64326,34,64326,35],[64326,36,64326,37],[64326,38,64326,39],[64326,40,64326,41],[64326,42,64326,43],[64326,44,64326,45],[64326,46,64326,47],[64326,48,64326,49],[64326,50,64326,51],[64326,52,64326,53],[64326,54,64326,55],[64326,56,64326,57],[64326,58,64326,59],[64326,60,64326,61],[64326,62,64326,63],[64326,64,64326,65],[64326,66,64326,67],[64326,68,64326,69],[64326,70,64326,71],[64326,72,64326,73],[64326,74,64326,75],[64326,76,64326,77],[64326,78,64326,79],[64326,80,64326,81],[64326,82,64326,83],[64326,84,64326,85],[64326,86,64326,87],[64182,24,64182,25],[64182,26,64182,27],[64182,28,64182,29],[64182,30,64182,31],[64182,32,64182,33],[64182,34,64182,35],[64182,36,64182,37],[64182,38,64182,39],[64182,40,64182,41],[64182,42,64182,43],[64182,44,64182,45],[64182,46,64182,47],[64182,48,64182,49],[64182,50,64182,51],[64182,52,64182,53],[64182,54,64182,55],[64182,56,64182,57],[64182,58,64182,59],[64182,60,64182,61],[64182,62,64182,63],[64182,64,64182,65],[64182,66,64182,67],[64182,68,64182,69],[64182,70,64182,71],[64182,72,64182,73],[64182,74,64182,75],[64182,76,64182,77],[64182,78,64182,79],[64182,80,64182,81],[64182,82,64182,83],[64182,84,64182,85],[64182,86,64182,87],[64244,24,64244,25],[64244,26,64244,27],[64244,28,64244,29],[64244,30,64244,31],[64244,32,64244,33],[64244,34,64244,35],[64244,36,64244,37],[64244,38,64244,39],[64244,40,64244,41],[64244,42,64244,43],[64244,44,64244,45],[64244,46,64244,47],[64244,48,64244,49],[64244,50,64244,51],[64244,52,64244,53],[64244,54,64244,55],[64244,56,64244,57],[64244,58,64244,59],[64244,60,64244,61],[64244,62,64244,63],[64244,64,64244,65],[64244,66,64244,67],[64244,68,64244,69],[64244,70,64244,71],[64244,72,64244,73],[64244,74,64244,75],[64244,76,64244,77],[64244,78,64244,79],[64244,80,64244,81],[64244,82,64244,83],[64244,84,64244,85],[64244,86,64244,87],[64100,24,64100,25],[64100,26,64100,27],[64100,28,64100,29],[64100,30,64100,31],[64100,32,64100,33],[64100,34,64100,35],[64100,36,64100,37],[64100,38,64100,39],[64100,40,64100,41],[64100,42,64100,43],[64100,44,64100,45],[64100,46,64100,47],[64100,48,64100,49],[64100,50,64100,51],[64100,52,64100,53],[64100,54,64100,55],[64100,56,64100,57],[64100,58,64100,59],[64100,60,64100,61],[64100,62,64100,63],[64100,64,64100,65],[64100,66,64100,67],[64100,68,64100,69],[64100,70,64100,71],[64100,72,64100,73],[64100,74,64100,75],[64100,76,64100,77],[64100,78,64100,79],[64100,80,64100,81],[64100,82,64100,83],[64100,84,64100,85],[64100,86,64100,87],[64162,24,64162,25],[64162,26,64162,27],[64162,28,64162,29],[64162,30,64162,31],[64162,32,64162,33],[64162,34,64162,35],[64162,36,64162,37],[64162,38,64162,39],[64162,40,64162,41],[64162,42,64162,43],[64162,44,64162,45],[64162,46,64162,47],[64162,48,64162,49],[64162,50,64162,51],[64162,52,64162,53],[64162,54,64162,55],[64162,56,64162,57],[64162,58,64162,59],[64162,60,64162,61],[64162,62,64162,63],[64162,64,64162,65],[64162,66,64162,67],[64162,68,64162,69],[64162,70,64162,71],[64162,72,64162,73],[64162,74,64162,75],[64162,76,64162,77],[64162,78,64162,79],[64162,80,64162,81],[64162,82,64162,83],[64162,84,64162,85],[64162,86,64162,87],[64018,24,64018,25],[64018,26,64018,27],[64018,28,64018,29],[64018,30,64018,31],[64018,32,64018,33],[64018,34,64018,35],[64018,36,64018,37],[64018,38,64018,39],[64018,40,64018,41],[64018,42,64018,43],[64018,44,64018,45],[64018,46,64018,47],[64018,48,64018,49],[64018,50,64018,51],[64018,52,64018,53],[64018,54,64018,55],[64018,56,64018,57],[64018,58,64018,59],[64018,60,64018,61],[64018,62,64018,63],[64018,64,64018,65],[64018,66,64018,67],[64018,68,64018,69],[64018,70,64018,71],[64018,72,64018,73],[64018,74,64018,75],[64018,76,64018,77],[64018,78,64018,79],[64018,80,64018,81],[64018,82,64018,83],[64018,84,64018,85],[64018,86,64018,87],[64080,24,64080,25],[64080,26,64080,27],[64080,28,64080,29],[64080,30,64080,31],[64080,32,64080,33],[64080,34,64080,35],[64080,36,64080,37],[64080,38,64080,39],[64080,40,64080,41],[64080,42,64080,43],[64080,44,64080,45],[64080,46,64080,47],[64080,48,64080,49],[64080,50,64080,51],[64080,52,64080,53],[64080,54,64080,55],[64080,56,64080,57],[64080,58,64080,59],[64080,60,64080,61],[64080,62,64080,63],[64080,64,64080,65],[64080,66,64080,67],[64080,68,64080,69],[64080,70,64080,71],[64080,72,64080,73],[64080,74,64080,75],[64080,76,64080,77],[64080,78,64080,79],[64080,80,64080,81],[64080,82,64080,83],[64080,84,64080,85],[64080,86,64080,87],[63936,24,63936,25],[63936,26,63936,27],[63936,28,63936,29],[63936,30,63936,31],[63936,32,63936,33],[63936,34,63936,35],[63936,36,63936,37],[63936,38,63936,39],[63936,40,63936,41],[63936,42,63936,43],[63936,44,63936,45],[63936,46,63936,47],[63936,48,63936,49],[63936,50,63936,51],[63936,52,63936,53],[63936,54,63936,55],[63936,56,63936,57],[63936,58,63936,59],[63936,60,63936,61],[63936,62,63936,63],[63936,64,63936,65],[63936,66,63936,67],[63936,68,63936,69],[63936,70,63936,71],[63936,72,63936,73],[63936,74,63936,75],[63936,76,63936,77],[63936,78,63936,79],[63936,80,63936,81],[63936,82,63936,83],[63936,84,63936,85],[63936,86,63936,87],[63998,24,63998,25],[63998,26,63998,27],[63998,28,63998,29],[63998,30,63998,31],[63998,32,63998,33],[63998,34,63998,35],[63998,36,63998,37],[63998,38,63998,39],[63998,40,63998,41],[63998,42,63998,43],[63998,44,63998,45],[63998,46,63998,47],[63998,48,63998,49],[63998,50,63998,51],[63998,52,63998,53],[63998,54,63998,55],[63998,56,63998,57],[63998,58,63998,59],[63998,60,63998,61],[63998,62,63998,63],[63998,64,63998,65],[63998,66,63998,67],[63998,68,63998,69],[63998,70,63998,71],[63998,72,63998,73],[63998,74,63998,75],[63998,76,63998,77],[63998,78,63998,79],[63998,80,63998,81],[63998,82,63998,83],[63998,84,63998,85],[63998,86,63998,87],[63854,24,63854,25],[63854,26,63854,27],[63854,28,63854,29],[63854,30,63854,31],[63854,32,63854,33],[63854,34,63854,35],[63854,36,63854,37],[63854,38,63854,39],[63854,40,63854,41],[63854,42,63854,43],[63854,44,63854,45],[63854,46,63854,47],[63854,48,63854,49],[63854,50,63854,51],[63854,52,63854,53],[63854,54,63854,55],[63854,56,63854,57],[63854,58,63854,59],[63854,60,63854,61],[63854,62,63854,63],[63854,64,63854,65],[63854,66,63854,67],[63854,68,63854,69],[63854,70,63854,71],[63854,72,63854,73],[63854,74,63854,75],[63854,76,63854,77],[63854,78,63854,79],[63854,80,63854,81],[63854,82,63854,83],[63854,84,63854,85],[63854,86,63854,87],[63916,24,63916,25],[63916,26,63916,27],[63916,28,63916,29],[63916,30,63916,31],[63916,32,63916,33],[63916,34,63916,35],[63916,36,63916,37],[63916,38,63916,39],[63916,40,63916,41],[63916,42,63916,43],[63916,44,63916,45],[63916,46,63916,47],[63916,48,63916,49],[63916,50,63916,51],[63916,52,63916,53],[63916,54,63916,55],[63916,56,63916,57],[63916,58,63916,59],[63916,60,63916,61],[63916,62,63916,63],[63916,64,63916,65],[63916,66,63916,67],[63916,68,63916,69],[63916,70,63916,71],[63916,72,63916,73],[63916,74,63916,75],[63916,76,63916,77],[63916,78,63916,79],[63916,80,63916,81],[63916,82,63916,83],[63916,84,63916,85],[63916,86,63916,87],[63772,24,63772,25],[63772,26,63772,27],[63772,28,63772,29],[63772,30,63772,31],[63772,32,63772,33],[63772,34,63772,35],[63772,36,63772,37],[63772,38,63772,39]],"merged_total":68134,"flags":["merged_cut"]}
[null,"B01001. GENDER BY AGE"]
[null,"Universe:  TOTAL POPULATION"]
[null,"Data Set: 2015-2019 American Community Survey 5-Year Estimates"]
[]
[null,null,"Atkinson and Gilmanton Grant",null,"Bean's Grant",null,"Bean's Purchase",null,"Berlin",null,"Cambridge",null,"Carroll",null,"Chandler's Purchase",null,"Clarksville",null,"Colebrook",null,"Columbia",null,"Crawford's Purchase",null,"Cutt's Grant",null,"Dalton",null,"Dix's Grant",null,"Dixville",null,"Dummer",null,"Errol",null,"Erving's Location",null,"Gorham",null,"Greens Grant",null,"Hadley's Purchase",null,"Jefferson",null,"Kilkenny",null,"Lancaster",null,"Low and Burbank's Grant",null,"Martin's Location",null,"Milan",null,"Millsfield ",null,"Northumberland",null,"Odell",null,"Pinkham's Grant",null,"Pittsburg",null,"Randolph",null,"Sargent's Purchase",null,"Second College Grant",null,"Shelburne",null,"Stark",null,"Stewartstown",null,"Stratford",null,"Success",null,"Thompson and Meserves Purchase",null,"Wentworth's Location",null,"Whitefield"]
[null," ","Estimate","Margin of Error","Estimate","Margin of Error","Estimate","Margin of Error","Estimate","Margin of Error","Estimate","Margin of Error","Estimate","Margin of Error","Estimate",null,"Estimate","Margin of Error","Estimate","Margin of Error","Estimate","Margin of Error","Estimate","Margin of Error","Estimate","Margin of Error","Estimate","Margin of Error","Estimate","Margin of Error","Estimate","Margin of Error","Estimate","Margin of Error","Estimate","Margin of Error","Estimate","Margin of Error","Estimate","Margin of Error","Estimate","Margin of Error","Estimate","Margin of Error","Estimate","Margin of Error","Estimate","Margin of Error","Estimate","Margin of Error","Estimate","Margin of Error","Estimate","Margin of Error","Estimate","Margin of Error","Estimate","Margin of Error","Estimate","Margin of Error","Estimate","Margin of Error","Estimate","Margin of Error","Estimate","Margin of Error","Estimate","Margin of Error","Estimate","Margin of Error","Estimate","Margin of Error","Estimate","Margin of Error","Estimate","Margin of Error","Estimate","Margin of Error","Estimate","Margin of Error","Estimate","Margin of Error","Estimate","Margin of Error","Estimate","Margin of Error","Estimate","Margin of Error"]
[null,"Total:",0,11,0,11,0,11,10221,22,0,11,772,141,0,11,324,88,1908,171,633,119,0,11,0,11,906,140,0,11,11,12,306,71,205,55,0,11,2623,17,13,10,0,11,850,129,0,11,3275,20,0,11,0,11,1332,107,8,12,2322,266,10,12,11,14,740,104,365,68,11,24,0,11,408,65,606,144,976,176,630,114,0,11,0,11,26,16,2260,214]
[null,"Male:",0,11,0,11,0,11,5741,176,0,11,452,93,0,11,176,51,925,109,335,71,0,11,0,11,432,77,0,11,9,10,171,48,109,35,0,11,1421,77,13,10,0,11,393,68,0,11,1613,133,0,11,0,11,710,73,4,6,1171,151,5,11,11,14,407,63,186,38,0,11,0,11,214,42,291,67,489,94,349,73,0,11,0,11,19,12,1088,163]
[null,"Under 5 years",0,11,0,11,0,11,195,75,0,11,11,12,0,11,4,6,26,21,3,5,0,11,0,11,10,9,0,11,0,11,5,7,0,11,0,11,54,37,0,11,0,11,5,5,0,11,116,72,0,11,0,11,26,21,0,11,68,33,0,11,0,11,0,11,4,4,0,11,0,11,13,15,11,14,16,20,1,4,0,11,0,11,0,11,62,34]
[null,"5 to 9 years",0,11,0,11,0,11,192,91,0,11,29,30,0,11,18,13,53,29,13,11,0,11,0,11,6,7,0,11,0,11,16,16,4,4,0,11,56,42,0,11,0,11,21,14,0,11,33,32,0,11,0,11,41,21,0,11,91,50,0,11,0,11,24,21,2,3,0,11,0,11,10,10,30,22,6,9,26,18,0,11,0,11,0,11,62,35]
[null,"10 to 14 years",0,11,0,11,0,11,120,70,0,11,17,18,0,11,0,11,88,49,9,9,0,11,0,11,38,25,0,11,2,4,17,14,9,10,0,11,107,49,0,11,0,11,25,16,0,11,101,68,0,11,0,11,41,21,0,11,46,28,0,11,0,11,12,17,2,3,0,11,0,11,5,6,3,6,38,28,18,16,0,11,0,11,0,11,70,39]
[null,"15 to 17 years",0,11,0,11,0,11,232,74,0,11,33,60,0,11,1,3,5,8,7,6,0,11,0,11,3,4,0,11,0,11,4,6,5,7,0,11,48,32,0,11,0,11,11,8,0,11,77,41,0,11,0,11,3,4,0,11,77,50,0,11,0,11,4,6,0,11,0,11,0,11,3,4,0,11,3,4,30,17,0,11,0,11,0,11,29,23]
[null,"18 and 19 years",0,11,0,11,0,11,146,68,0,11,19,21,0,11,4,6,5,9,7,9,0,11,0,11,14,19,0,11,2,4,0,11,0,11,0,11,19,20,0,11,0,11,7,7,0,11,47,39,0,11,0,11,8,8,0,11,11,17,0,11,0,11,7,9,2,3,0,11,0,11,5,6,0,11,2,4,10,8,0,11,0,11,0,11,3,6]
[null,"20 years",0,11,0,11,0,11,7,16,0,11,0,11,0,11,6,9,7,11,0,11,0,11,0,11,14,21,0,11,1,4,3,4,0,11,0,11,0,11,0,11,0,11,24,29,0,11,74,62,0,11,0,11,9,8,0,11,0,11,5,11,3,7,0,11,8,12,0,11,0,11,0,11,9,14,17,25,14,21,0,11,0,11,0,11,0,11]
[null,"21 years",0,11,0,11,0,11,82,66,0,11,0,11,0,11,2,3,0,11,3,6,0,11,0,11,0,11,0,11,0,11,0,11,0,11,0,11,0,11,0,11,0,11,0,11,0,11,0,11,0,11,0,11,0,11,0,11,24,26,0,11,0,11,4,6,0,11,0,11,0,11,0,11,0,11,3,5,6,8,0,11,0,11,0,11,11,16]
[null,"22 to 24 years",0,11,0,11,0,11,245,82,0,11,44,62,0,11,7,6,10,14,30,23,0,11,0,11,23,26,0,11,1,4,4,5,0,11,0,11,43,34,3,6,0,11,6,8,0,11,63,55,0,11,0,11,51,44,0,11,32,48,0,11,4,8,0,11,9,9,0,11,0,11,2,4,6,5,0,11,0,11,0,11,0,11,0,11,58,49]
[null,"25 to 29 years",0,11,0,11,0,11,615,116,0,11,30,19,0,11,6,5,21,15,7,9,0,11,0,11,36,20,0,11,1,4,13,9,0,11,0,11,58,52,0,11,0,11,13,10,0,11,64,51,0,11,0,11,30,18,0,11,66,35,0,11,0,11,12,10,6,5,0,11,0,11,2,4,17,11,16,20,0,11,0,11,0,11,0,11,74,39]
[null,"30 to 34 years",0,11,0,11,0,11,524,106,0,11,5,6,0,11,9,10,48,33,11,14,0,11,0,11,15,17,0,11,0,11,0,11,0,11,0,11,61,44,2,4,0,11,16,12,0,11,87,51,0,11,0,11,46,22,0,11,66,45,0,11,0,11,12,16,4,5,0,11,0,11,6,7,19,16,20,20,9,13,0,11,0,11,3,4,11,16]
[null,"35 to 39 years",0,11,0,11,0,11,590,124,0,11,17,16,0,11,1,2,53,27,7,7,0,11,0,11,20,17,0,11,0,11,3,3,7,5,0,11,87,45,2,6,0,11,7,7,0,11,87,48,0,11,0,11,22,12,0,11,56,27,0,11,0,11,0,11,9,9,0,11,0,11,12,7,10,10,13,14,8,7,0,11,0,11,0,11,46,28]
[null,"40 to 44 years",0,11,0,11,0,11,379,97,0,11,9,10,0,11,4,7,62,23,11,9,0,11,0,11,22,15,0,11,0,11,7,5,5,7,0,11,29,24,0,11,0,11,3,4,0,11,117,58,0,11,0,11,27,14,0,11,41,27,0,11,0,11,32,22,3,4,0,11,0,11,14,11,22,16,2,3,34,17,0,11,0,11,0,11,40,25]
[null,"45 to 49 years",0,11,0,11,0,11,480,105,0,11,15,13,0,11,10,10,40,24,44,27,0,11,0,11,21,22,0,11,0,11,5,4,6,9,0,11,124,54,0,11,0,11,24,15,0,11,70,37,0,11,0,11,59,22,0,11,100,39,0,11,0,11,36,26,11,12,0,11,0,11,4,5,14,13,57,36,29,17,0,11,0,11,0,11,51,32]
[null,"50 to 54 years",0,11,0,11,0,11,489,87,0,11,21,14,0,11,6,9,66,32,32,18,0,11,0,11,25,24,0,11,0,11,11,9,9,9,0,11,103,52,6,7,0,11,35,20,0,11,114,67,0,11,0,11,40,19,0,11,63,33,0,11,4,8,16,14,14,10,0,11,0,11,9,7,11,10,52,33,46,26,0,11,0,11,0,11,130,54]
[null,"55 to 59 years",0,11,0,11,0,11,379,98,0,11,38,16,0,11,34,24,88,44,20,12,0,11,0,11,79,28,0,11,0,11,9,6,10,9,0,11,120,45,0,11,0,11,46,24,0,11,168,113,0,11,0,11,61,24,4,6,105,44,0,11,0,11,64,30,13,9,0,11,0,11,16,8,9,8,20,16,27,17,0,11,0,11,0,11,19,13]
[null,"60 and 61 years",0,11,0,11,0,11,138,60,0,11,20,13,0,11,4,4,37,22,14,12,0,11,0,11,17,12,0,11,0,11,10,6,9,7,0,11,64,37,0,11,0,11,10,10,0,11,39,27,0,11,0,11,36,12,0,11,36,20,0,11,0,11,3,4,10,8,0,11,0,11,20,13,31,16,8,8,10,12,0,11,0,11,4,4,25,18]
[null,"62 to 64 years",0,11,0,11,0,11,178,63,0,11,37,23,0,11,10,10,50,21,29,19,0,11,0,11,30,17,0,11,0,11,5,4,6,7,0,11,121,54,0,11,0,11,38,14,0,11,48,35,0,11,0,11,57,24,0,11,100,40,0,11,0,11,33,20,23,9,0,11,0,11,13,8,17,12,30,20,19,14,0,11,0,11,0,11,42,31]
[null,"65 and 66 years",0,11,0,11,0,11,128,52,0,11,15,14,0,11,7,5,38,31,2,3,0,11,0,11,10,9,0,11,1,3,7,5,0,11,0,11,63,40,0,11,0,11,7,6,0,11,12,15,0,11,0,11,28,12,0,11,29,19,0,11,0,11,30,19,8,8,0,11,0,11,2,5,15,9,4,5,6,7,0,11,0,11,0,11,18,15]
[null,"67 to 69 years",0,11,0,11,0,11,216,74,0,11,29,18,0,11,14,11,47,30,26,13,0,11,0,11,9,10,0,11,0,11,12,10,6,8,0,11,53,37,0,11,0,11,33,17,0,11,58,32,0,11,0,11,48,26,0,11,35,21,0,11,0,11,26,20,19,10,0,11,0,11,14,9,29,17,72,36,3,4,0,11,0,11,2,3,116,44]
[null,"70 to 74 years",0,11,0,11,0,11,111,54,0,11,32,17,0,11,19,13,84,39,21,12,0,11,0,11,22,20,0,11,1,4,17,9,12,11,0,11,59,34,0,11,0,11,43,20,0,11,67,38,0,11,0,11,43,19,0,11,55,27,0,11,0,11,71,24,22,11,0,11,0,11,36,18,8,8,55,32,22,10,0,11,0,11,2,3,86,41]
[null,"75 to 79 years",0,11,0,11,0,11,162,61,0,11,16,8,0,11,5,7,38,21,11,8,0,11,0,11,8,9,0,11,0,11,17,10,11,8,0,11,89,54,0,11,0,11,7,6,0,11,58,34,0,11,0,11,19,10,0,11,32,23,0,11,0,11,18,10,10,7,0,11,0,11,13,11,16,11,15,15,10,10,0,11,0,11,7,8,71,40]
[null,"80 to 84 years",0,11,0,11,0,11,80,45,0,11,4,4,0,11,3,3,35,22,15,12,0,11,0,11,10,12,0,11,0,11,2,3,10,10,0,11,47,26,0,11,0,11,4,5,0,11,77,49,0,11,0,11,11,8,0,11,27,24,0,11,0,11,3,5,7,5,0,11,0,11,3,7,6,6,24,37,16,14,0,11,0,11,0,11,48,35]
[null,"85 years and over",0,11,0,11,0,11,53,33,0,11,11,11,0,11,2,3,24,19,13,9,0,11,0,11,0,11,0,11,0,11,4,4,0,11,0,11,16,18,0,11,0,11,8,7,0,11,36,27,0,11,0,11,4,5,0,11,11,9,0,11,0,11,0,11,0,11,0,11,0,11,12,10,8,6,16,15,5,5,0,11,0,11,1,2,16,12]
[null,"Female:",0,11,0,11,0,11,4480,176,0,11,320,67,0,11,148,44,983,116,298,61,0,11,0,11,474,81,0,11,2,6,135,29,96,33,0,11,1202,78,0,11,0,11,457,75,0,11,1662,135,0,11,0,11,622,55,4,6,1151,148,5,11,0,11,333,53,179,40,11,24,0,11,194,34,315,84,487,108,281,61,0,11,0,11,7,6,1172,135]
[null,"Under 5 years",0,11,0,11,0,11,206,68,0,11,18,17,0,11,2,4,29,22,4,6,0,11,0,11,23,20,0,11,0,11,4,5,0,11,0,11,0,11,0,11,0,11,37,23,0,11,34,52,0,11,0,11,15,10,0,11,111,48,0,11,0,11,0,11,12,12,0,11,0,11,4,6,29,23,16,20,13,18,0,11,0,11,0,11,82,46]
[null,"5 to 9 years",0,11,0,11,0,11,242,104,0,11,13,14,0,11,0,11,53,24,7,6,0,11,0,11,10,13,0,11,0,11,7,5,1,2,0,11,39,30,0,11,0,11,13,9,0,11,80,38,0,11,0,11,29,14,0,11,18,14,0,11,0,11,15,13,0,11,0,11,0,11,4,6,22,16,15,16,0,11,0,11,0,11,0,11,16,15]
[null,"10 to 14 years",0,11,0,11,0,11,243,75,0,11,19,21,0,11,6,9,34,27,23,17,0,11,0,11,25,17,0,11,0,11,8,8,8,12,0,11,79,39,0,11,0,11,5,6,0,11,131,44,0,11,0,11,22,10,0,11,73,48,0,11,0,11,2,5,1,2,0,11,0,11,8,8,29,19,42,34,19,15,0,11,0,11,0,11,61,41]
[null,"15 to 17 years",0,11,0,11,0,11,155,54,0,11,0,11,0,11,0,11,13,10,13,13,0,11,0,11,17,15,0,11,0,11,2,3,0,11,0,11,25,17,0,11,0,11,5,8,0,11,108,48,0,11,0,11,43,19,0,11,38,24,0,11,0,11,0,11,2,3,0,11,0,11,6,6,21,24,4,6,5,5,0,11,0,11,0,11,22,21]
[null,"18 and 19 years",0,11,0,11,0,11,96,38,0,11,2,3,0,11,8,9,25,23,0,11,0,11,0,11,7,12,0,11,0,11,0,11,0,11,0,11,5,8,0,11,0,11,5,8,0,11,9,14,0,11,0,11,4,5,0,11,33,26,0,11,0,11,0,11,3,4,11,24,0,11,2,3,2,5,10,11,9,8,0,11,0,11,0,11,10,11]
[null,"20 years",0,11,0,11,0,11,58,63,0,11,0,11,0,11,0,11,29,27,0,11,0,11,0,11,0,11,0,11,0,11,7,6,0,11,0,11,40,32,0,11,0,11,0,11,0,11,0,11,0,11,0,11,0,11,0,11,6,9,0,11,0,11,0,11,5,7,0,11,0,11,0,11,0,11,0,11,3,4,0,11,0,11,0,11,0,11]
[null,"21 years",0,11,0,11,0,11,49,46,0,11,0,11,0,11,2,3,0,11,0,11,0,11,0,11,14,21,0,11,0,11,3,5,0,11,0,11,19,18,0,11,0,11,13,18,0,11,21,25,0,11,0,11,21,28,0,11,0,11,0,11,0,11,11,16,0,11,0,11,0,11,1,5,0,11,0,11,0,11,0,11,0,11,0,11,0,11]
[null,"22 to 24 years",0,11,0,11,0,11,72,54,0,11,14,16,0,11,0,11,48,33,12,17,0,11,0,11,12,14,0,11,0,11,0,11,0,11,0,11,12,19,0,11,0,11,10,10,0,11,81,45,0,11,0,11,15,22,0,11,49,27,0,11,0,11,0,11,5,5,0,11,0,11,2,3,7,8,21,22,0,11,0,11,0,11,0,11,0,11]
[null,"25 to 29 years",0,11,0,11,0,11,298,95,0,11,17,18,0,11,3,5,23,18,15,11,0,11,0,11,15,13,0,11,0,11,10,6,0,11,0,11,26,20,0,11,0,11,21,14,0,11,46,44,0,11,0,11,51,29,0,11,42,24,5,11,0,11,19,20,4,5,0,11,0,11,4,4,0,11,32,25,14,18,0,11,0,11,0,11,59,39]
[null,"30 to 34 years",0,11,0,11,0,11,246,75,0,11,4,5,0,11,7,8,58,31,6,7,0,11,0,11,6,7,0,11,0,11,2,3,0,11,0,11,31,29,0,11,0,11,9,8,0,11,87,49,0,11,0,11,33,15,0,11,118,50,0,11,0,11,24,21,6,6,0,11,0,11,11,8,9,13,4,6,11,11,0,11,0,11,0,11,28,20]
[null,"35 to 39 years",0,11,0,11,0,11,226,96,0,11,20,11,0,11,5,8,57,29,9,8,0,11,0,11,35,19,0,11,0,11,6,7,12,11,0,11,96,47,0,11,0,11,6,5,0,11,116,51,0,11,0,11,38,20,0,11,62,30,0,11,0,11,3,4,15,11,0,11,0,11,2,3,18,16,14,16,10,11,0,11,0,11,0,11,106,45]
[null,"40 to 44 years",0,11,0,11,0,11,250,99,0,11,5,4,0,11,5,5,46,30,14,12,0,11,0,11,19,18,0,11,0,11,9,6,2,3,0,11,71,37,0,11,0,11,25,16,0,11,92,56,0,11,0,11,28,12,0,11,10,10,0,11,0,11,15,13,8,9,0,11,0,11,7,6,15,10,7,8,38,18,0,11,0,11,0,11,57,30]
[null,"45 to 49 years",0,11,0,11,0,11,245,78,0,11,13,12,0,11,9,9,73,47,31,24,0,11,0,11,29,23,0,11,0,11,11,9,11,11,0,11,47,33,0,11,0,11,34,16,0,11,149,61,0,11,0,11,38,15,0,11,121,41,0,11,0,11,8,8,6,5,0,11,0,11,17,9,8,7,19,17,19,10,0,11,0,11,0,11,74,39]
[null,"50 to 54 years",0,11,0,11,0,11,321,79,0,11,19,14,0,11,28,27,34,22,23,14,0,11,0,11,28,23,0,11,2,6,5,8,5,5,0,11,56,35,0,11,0,11,53,22,0,11,112,47,0,11,0,11,70,23,0,11,85,35,0,11,0,11,27,21,14,11,0,11,0,11,22,15,22,15,27,21,48,28,0,11,0,11,0,11,126,52]
[null,"55 to 59 years",0,11,0,11,0,11,283,87,0,11,38,19,0,11,24,15,116,37,45,20,0,11,0,11,66,32,0,11,0,11,19,8,18,13,0,11,166,55,0,11,0,11,54,28,0,11,99,43,0,11,0,11,79,23,0,11,97,50,0,11,0,11,46,24,13,8,0,11,0,11,24,12,30,14,43,30,13,9,0,11,0,11,0,11,88,27]
[null,"60 and 61 years",0,11,0,11,0,11,173,66,0,11,24,13,0,11,0,11,45,30,15,10,0,11,0,11,26,13,0,11,0,11,8,5,6,6,0,11,52,34,0,11,0,11,13,9,0,11,39,32,0,11,0,11,8,5,0,11,48,19,0,11,0,11,9,8,7,5,0,11,0,11,10,7,11,7,15,16,2,3,0,11,0,11,0,11,47,35]
[null,"62 to 64 years",0,11,0,11,0,11,155,55,0,11,27,19,0,11,26,12,72,36,13,9,0,11,0,11,39,28,0,11,0,11,6,9,6,7,0,11,105,43,0,11,0,11,56,20,0,11,29,31,0,11,0,11,29,12,0,11,22,14,0,11,0,11,49,21,19,11,0,11,0,11,20,13,17,9,9,8,9,6,0,11,0,11,0,11,46,22]
[null,"65 and 66 years",0,11,0,11,0,11,196,69,0,11,11,7,0,11,9,7,22,13,4,5,0,11,0,11,23,15,0,11,0,11,4,3,1,2,0,11,85,51,0,11,0,11,12,9,0,11,20,20,0,11,0,11,38,19,0,11,9,9,0,11,0,11,22,15,7,6,0,11,0,11,3,4,16,11,30,21,13,13,0,11,0,11,0,11,83,36]
[null,"67 to 69 years",0,11,0,11,0,11,104,57,0,11,14,8,0,11,8,8,27,13,13,8,0,11,0,11,14,9,0,11,0,11,5,4,9,9,0,11,42,32,0,11,0,11,30,20,0,11,55,28,0,11,0,11,14,10,0,11,53,23,0,11,0,11,14,11,11,8,0,11,0,11,12,7,6,5,33,22,17,9,0,11,0,11,4,5,77,46]
[null,"70 to 74 years",0,11,0,11,0,11,218,78,0,11,32,13,0,11,1,3,71,36,12,7,0,11,0,11,29,19,0,11,0,11,4,4,8,7,0,11,32,25,0,11,0,11,31,12,0,11,132,53,0,11,0,11,23,12,0,11,72,26,0,11,0,11,36,19,20,9,0,11,0,11,15,11,16,11,50,25,8,6,0,11,0,11,3,3,50,30]
[null,"75 to 79 years",0,11,0,11,0,11,161,55,0,11,13,10,0,11,2,4,42,20,22,13,0,11,0,11,23,14,0,11,0,11,9,7,2,3,0,11,79,37,0,11,0,11,18,11,0,11,89,45,0,11,0,11,15,9,4,6,38,27,0,11,0,11,20,17,8,8,0,11,0,11,7,7,18,10,12,8,9,8,0,11,0,11,0,11,72,47]
[null,"80 to 84 years",0,11,0,11,0,11,180,58,0,11,2,3,0,11,3,6,22,23,9,7,0,11,0,11,0,11,0,11,0,11,3,5,7,8,0,11,26,21,0,11,0,11,4,8,0,11,62,40,0,11,0,11,6,6,0,11,28,22,0,11,0,11,3,4,12,10,0,11,0,11,5,5,13,12,14,19,11,11,0,11,0,11,0,11,15,13]
[null,"85 years and over",0,11,0,11,0,11,303,83,0,11,15,13,0,11,0,11,44,23,8,9,0,11,0,11,14,12,0,11,0,11,3,3,0,11,0,11,69,38,0,11,0,11,3,5,0,11,71,41,0,11,0,11,3,4,0,11,18,12,0,11,0,11,10,9,1,3,0,11,0,11,8,7,6,7,70,36,10,8,0,11,0,11,0,11,53,40]
[]
[]
[]
[]
[]
[]
[]
[]
[]
[]
[]
[]
[]
[null,"Calculated B01001. GENDER BY AGE"]
[null,"Universe:  TOTAL POPULATION"]
[null,"Data Set: 2015-2019 American Community Survey 5-Year Estimates"]
[]
[null,null,"Atkinson and Gilmanton Grant",null,"Bean's Grant",null,"Bean's Purchase",null,"Berlin",null,"Cambridge",null,"Carroll",null,"Chandler's Purchase",null,"Clarksville",null,"Colebrook",null,"Columbia",null,"Crawford's Purchase",null,"Cutt's Grant",null,"Dalton",null,"Dix's Grant",null,"Dixville",null,"Dummer",null,"Errol",null,"Erving's Location",null,"Gorham",null,"Greens Grant",null,"Hadley's Purchase",null,"Jefferson",null,"Kilkenny",null,"Lancaster",null,"Low and Burbank's Grant",null,"Martin's Location",null,"Milan",null,"Millsfield ",null,"Northumberland",null,"Odell",null,"Pinkham's Grant",null,"Pittsburg",null,"Randolph",null,"Sargent's Purchase",null,"Second College Grant",null,"Shelburne",null,"Stark",null,"Stewartstown",null,"Stratford",null,"Success",null,"Thompson and Meserves Purchase",null,"Wentworth's Location",null,"Whitefield"]
[null,null,"Estimate","Margin Of Error","Estimate","Margin Of Error","Estimate","Margin Of Error","Estimate","Margin Of Error","Estimate","Margin Of Error","Estimate","Margin Of Error","Estimate","Margin Of Error","Estimate","Margin Of Error","Estimate","Margin Of Error","Estimate","Margin Of Error","Estimate","Margin Of Error","Estimate","Margin Of Error","Estimate","Margin Of Error","Estimate","Margin Of Error","Estimate","Margin Of Error","Estimate","Margin Of Error","Estimate","Margin Of Error","Estimate","Margin Of Error","Estimate","Margin Of Error","Estimate","Margin Of Error","Estimate","Margin Of Error","Estimate","Margin Of Error","Estimate","Margin Of Error","Estimate","Margin Of Error","Estimate","Margin Of Error","Estimate","Margin Of Error","Estimate","Margin Of Error","Estimate","Margin Of Error","Estimate","Margin Of Error","Estimate","Margin Of Error","Estimate","Margin Of Error","Estimate","Margin Of Error","Estimate","Margin Of Error","Estimate","Margin Of Error","Estimate","Margin Of Error","Estimate","Margin Of Error","Estimate","Margin Of Error","Estimate","Margin Of Error","Estimate","Margin Of Error","Estimate","Margin Of Error","Estimate","Margin Of Error","Estimate","Margin Of Error","Estimate","Margin Of Error"]
[null,"Total",{"$f":"C7","v":0},11,0,11,0,11,10221,22,0,11,772,141,0,11,324,88,1908,171,633,119,0,11,{"$f":"Y7","v":0},11,906,140,0,11,11,12,306,71,205,55,0,11,2623,17,13,10,0,11,850,129,0,11,3275,20,0,11,0,11,1332,107,8,12,2322,266,10,12,11,14,740,104,365,68,11,24,0,11,408,65,606,144,976,176,630,114,0,11,0,11,26,16,2260,214]
[null,"Under 15 yrs.",{"$f":"C9+C10+C11+C33+C34+C35","v":0},{"$f":"SQRT((D9^2)+(D10^2)+(D11^2)+(D33^2)+(D34^2)+(D35^2))","v":26.944387170614959},{"$f":"E9+E10+E11+E33+E34+E35","v":0},{"$f":"SQRT((F9^2)+(F10^2)+(F11^2)+(F33^2)+(F34^2)+(F35^2))","v":26.944387170614959},{"$f":"G9+G10+G11+G33+G34+G35","v":0},{"$f":"SQRT((H9^2)+(H10^2)+(H11^2)+(H33^2)+(H34^2)+(H35^2))","v":26.944387170614959},{"$f":"I9+I10+I11+I33+I34+I35","v":1198},{"$f":"SQRT((J9^2)+(J10^2)+(J11^2)+(J33^2)+(J34^2)+(J35^2))","v":199.6772395642528},{"$f":"K9+K10+K11+K33+K34+K35","v":0},{"$f":"SQRT((L9^2)+(L10^2)+(L11^2)+(L33^2)+(L34^2)+(L35^2))","v":26.944387170614959},{"$f":"M9+M10+M11+M33+M34+M35","v":107},{"$f":"SQRT((N9^2)+(N10^2)+(N11^2)+(N33^2)+(N34^2)+(N35^2))","v":47.89572005931219},{"$f":"O9+O10+O11+O33+O34+O35","v":0},{"$f":"SQRT((P9^2)+(P10^2)+(P11^2)+(P33^2)+(P34^2)+(P35^2))","v":26.944387170614959},{"$f":"Q9+Q10+Q11+Q33+Q34+Q35","v":30},{"$f":"SQRT((R9^2)+(R10^2)+(R11^2)+(R33^2)+(R34^2)+(R35^2))","v":23.323807579381203},{"$f":"S9+S10+S11+S33+S34+S35","v":283},{"$f":"SQRT((T9^2)+(T10^2)+(T11^2)+(T33^2)+(T34^2)+(T35^2))","v":73.972968035627716},{"$f":"U9+U10+U11+U33+U34+U35","v":59},{"$f":"SQRT((V9^2)+(V10^2)+(V11^2)+(V33^2)+(V34^2)+(V35^2))","v":24.248711305964282},{"$f":"W9+W10+W11+W33+W34+W35","v":0},{"$f":"SQRT((X9^2)+(X10^2)+(X11^2)+(X33^2)+(X34^2)+(X35^2))","v":26.944387170614959},{"$f":"Y9+Y10+Y11+Y33+Y34+Y35","v":0},{"$f":"SQRT((Z9^2)+(Z10^2)+(Z11^2)+(Z33^2)+(Z34^2)+(Z35^2))","v":26.944387170614959},{"$f":"AA9+AA10+AA11+AA33+AA34+AA35","v":112},{"$f":"SQRT((AB9^2)+(AB10^2)+(AB11^2)+(AB33^2)+(AB34^2)+(AB35^2))","v":40.162171256046406},{"$f":"AC9+AC10+AC11+AC33+AC34+AC35","v":0},{"$f":"SQRT((AD9^2)+(AD10^2)+(AD11^2)+(AD33^2)+(AD34^2)+(AD35^2))","v":26.944387170614959},{"$f":"AE9+AE10+AE11+AE33+AE34+AE35","v":2},{"$f":"SQRT((AF9^2)+(AF10^2)+(AF11^2)+(AF33^2)+(AF34^2)+(AF35^2))","v":24.919871588754223},{"$f":"AG9+AG10+AG11+AG33+AG34+AG35","v":57},{"$f":"SQRT((AH9^2)+(AH10^2)+(AH11^2)+(AH33^2)+(AH34^2)+(AH35^2))","v":24.79919353527449},{"$f":"AI9+AI10+AI11+AI33+AI34+AI35","v":22},{"$f":"SQRT((AJ9^2)+(AJ10^2)+(AJ11^2)+(AJ33^2)+(AJ34^2)+(AJ35^2))","v":22.494443758403985},{"$f":"AK9+AK10+AK11+AK33+AK34+AK35","v":0},{"$f":"SQRT((AL9^2)+(AL10^2)+(AL11^2)+(AL33^2)+(AL34^2)+(AL35^2))","v":26.944387170614959},{"$f":"AM9+AM10+AM11+AM33+AM34+AM35","v":335},{"$f":"SQRT((AN9^2)+(AN10^2)+(AN11^2)+(AN33^2)+(AN34^2)+(AN35^2))","v":89.866567754643881},{"$f":"AO9+AO10+AO11+AO33+AO34+AO35","v":0},{"$f":"SQRT((AP9^2)+(AP10^2)+(AP11^2)+(AP33^2)+(AP34^2)+(AP35^2))","v":26.944387170614959},{"$f":"AQ9+AQ10+AQ11+AQ33+AQ34+AQ35","v":0},{"$f":"SQRT((AR9^2)+(AR10^2)+(AR11^2)+(AR33^2)+(AR34^2)+(AR35^2))","v":26.944387170614959},{"$f":"AS9+AS10+AS11+AS33+AS34+AS35","v":106},{"$f":"SQRT((AT9^2)+(AT10^2)+(AT11^2)+(AT33^2)+(AT34^2)+(AT35^2))","v":33.511192160232078},{"$f":"AU9+AU10+AU11+AU33+AU34+AU35","v":0},{"$f":"SQRT((AV9^2)+(AV10^2)+(AV11^2)+(AV33^2)+(AV34^2)+(AV35^2))","v":26.944387170614959},{"$f":"AW9+AW10+AW11+AW33+AW34+AW35","v":495},{"$f":"SQRT((AX9^2)+(AX10^2)+(AX11^2)+(AX33^2)+(AX34^2)+(AX35^2))","v":130.06152390311286},{"$f":"AY9+AY10+AY11+AY33+AY34+AY35","v":0},{"$f":"SQRT((AZ9^2)+(AZ10^2)+(AZ11^2)+(AZ33^2)+(AZ34^2)+(AZ35^2))","v":26.944387170614959},{"$f":"BA9+BA10+BA11+BA33+BA34+BA35","v":0},{"$f":"SQRT((BB9^2)+(BB10^2)+(BB11^2)+(BB33^2)+(BB34^2)+(BB35^2))","v":26.944387170614959},{"$f":"BC9+BC10+BC11+BC33+BC34+BC35","v":174},{"$f":"SQRT((BD9^2)+(BD10^2)+(BD11^2)+(BD33^2)+(BD34^2)+(BD35^2))","v":41.460824883255761},{"$f":"BE9+BE10+BE11+BE33+BE34+BE35","v":0},{"$f":"SQRT((BF9^2)+(BF10^2)+(BF11^2)+(BF33^2)+(BF34^2)+(BF35^2))","v":26.944387170614959},{"$f":"BG9+BG10+BG11+BG33+BG34+BG35","v":407},{"$f":"SQRT((BH9^2)+(BH10^2)+(BH11^2)+(BH33^2)+(BH34^2)+(BH35^2))","v":95.796659649488817},{"$f":"BI9+BI10+BI11+BI33+BI34+BI35","v":0},{"$f":"SQRT((BJ9^2)+(BJ10^2)+(BJ11^2)+(BJ33^2)+(BJ34^2)+(BJ35^2))","v":26.944387170614959},{"$f":"BK9+BK10+BK11+BK33+BK34+BK35","v":0},{"$f":"SQRT((BL9^2)+(BL10^2)+(BL11^2)+(BL33^2)+(BL34^2)+(BL35^2))","v":26.944387170614959},{"$f":"BM9+BM10+BM11+BM33+BM34+BM35","v":53},{"$f":"SQRT((BN9^2)+(BN10^2)+(BN11^2)+(BN33^2)+(BN34^2)+(BN35^2))","v":34.146742157927747},{"$f":"BO9+BO10+BO11+BO33+BO34+BO35","v":21},{"$f":"SQRT((BP9^2)+(BP10^2)+(BP11^2)+(BP33^2)+(BP34^2)+(BP35^2))","v":17.406895185529212},{"$f":"BQ9+BQ10+BQ11+BQ33+BQ34+BQ35","v":0},{"$f":"SQRT((BR9^2)+(BR10^2)+(BR11^2)+(BR33^2)+(BR34^2)+(BR35^2))","v":26.944387170614959},{"$f":"BS9+BS10+BS11+BS33+BS34+BS35","v":0},{"$f":"SQRT((BT9^2)+(BT10^2)+(BT11^2)+(BT33^2)+(BT34^2)+(BT35^2))","v":26.944387170614959},{"$f":"BU9+BU10+BU11+BU33+BU34+BU35","v":44},{"$f":"SQRT((BV9^2)+(BV10^2)+(BV11^2)+(BV33^2)+(BV34^2)+(BV35^2))","v":22.293496809607955},{"$f":"BW9+BW10+BW11+BW33+BW34+BW35","v":124},{"$f":"SQRT((BX9^2)+(BX10^2)+(BX11^2)+(BX33^2)+(BX34^2)+(BX35^2))","v":43.150898020782833},{"$f":"BY9+BY10+BY11+BY33+BY34+BY35","v":133},{"$f":"SQRT((BZ9^2)+(BZ10^2)+(BZ11^2)+(BZ33^2)+(BZ34^2)+(BZ35^2))","v":55.470712993434653},{"$f":"CA9+CA10+CA11+CA33+CA34+CA35","v":77},{"$f":"SQRT((CB9^2)+(CB10^2)+(CB11^2)+(CB33^2)+(CB34^2)+(CB35^2))","v":35.580893749314392},{"$f":"CC9+CC10+CC11+CC33+CC34+CC35","v":0},{"$f":"SQRT((CD9^2)+(CD10^2)+(CD11^2)+(CD33^2)+(CD34^2)+(CD35^2))","v":26.944387170614959},{"$f":"CE9+CE10+CE11+CE33+CE34+CE35","v":0},{"$f":"SQRT((CF9^2)+(CF10^2)+(CF11^2)+(CF33^2)+(CF34^2)+(CF35^2))","v":26.944387170614959},{"$f":"CG9+CG10+CG11+CG33+CG34+CG35","v":0},{"$f":"SQRT((CH9^2)+(CH10^2)+(CH11^2)+(CH33^2)+(CH34^2)+(CH35^2))","v":26.944387170614959},{"$f":"CI9+CI10+CI11+CI33+CI34+CI35","v":353},{"$f":"SQRT((CJ9^2)+(CJ10^2)+(CJ11^2)+(CJ33^2)+(CJ34^2)+(CJ35^2))","v":89.016852337071541}]
[null,"15 to 24 yrs.",{"$f":"C12+C13+C14+C15+C16+C36+C37+C38+C39+C40","v":0},{"$f":"SQRT((D12^2)+(D13^2)+(D14^2)+(D15^2)+(D16^2)+(D36^2)+(D37^2)+(D38^2)+(D39^2)+(D40^2))","v":34.785054261852174},{"$f":"E12+E13+E14+E15+E16+E36+E37+E38+E39+E40","v":0},{"$f":"SQRT((F12^2)+(F13^2)+(F14^2)+(F15^2)+(F16^2)+(F36^2)+(F37^2)+(F38^2)+(F39^2)+(F40^2))","v":34.785054261852174},{"$f":"G12+G13+G14+G15+G16+G36+G37+G38+G39+G40","v":0},{"$f":"SQRT((H12^2)+(H13^2)+(H14^2)+(H15^2)+(H16^2)+(H36^2)+(H37^2)+(H38^2)+(H39^2)+(H40^2))","v":34.785054261852174},{"$f":"I12+I13+I14+I15+I16+I36+I37+I38+I39+I40","v":1142},{"$f":"SQRT((J12^2)+(J13^2)+(J14^2)+(J15^2)+(J16^2)+(J36^2)+(J37^2)+(J38^2)+(J39^2)+(J40^2))","v":186.53954004446351},{"$f":"K12+K13+K14+K15+K16+K36+K37+K38+K39+K40","v":0},{"$f":"SQRT((L12^2)+(L13^2)+(L14^2)+(L15^2)+(L16^2)+(L36^2)+(L37^2)+(L38^2)+(L39^2)+(L40^2))","v":34.785054261852174},{"$f":"M12+M13+M14+M15+M16+M36+M37+M38+M39+M40","v":112},{"$f":"SQRT((N12^2)+(N13^2)+(N14^2)+(N15^2)+(N16^2)+(N36^2)+(N37^2)+(N38^2)+(N39^2)+(N40^2))","v":93.568156976612514},{"$f":"O12+O13+O14+O15+O16+O36+O37+O38+O39+O40","v":0},{"$f":"SQRT((P12^2)+(P13^2)+(P14^2)+(P15^2)+(P16^2)+(P36^2)+(P37^2)+(P38^2)+(P39^2)+(P40^2))","v":34.785054261852174},{"$f":"Q12+Q13+Q14+Q15+Q16+Q36+Q37+Q38+Q39+Q40","v":30},{"$f":"SQRT((R12^2)+(R13^2)+(R14^2)+(R15^2)+(R16^2)+(R36^2)+(R37^2)+(R38^2)+(R39^2)+(R40^2))","v":24.979991993593593},{"$f":"S12+S13+S14+S15+S16+S36+S37+S38+S39+S40","v":142},{"$f":"SQRT((T12^2)+(T13^2)+(T14^2)+(T15^2)+(T16^2)+(T36^2)+(T37^2)+(T38^2)+(T39^2)+(T40^2))","v":56.133768802744754},{"$f":"U12+U13+U14+U15+U16+U36+U37+U38+U39+U40","v":72},{"$f":"SQRT((V12^2)+(V13^2)+(V14^2)+(V15^2)+(V16^2)+(V36^2)+(V37^2)+(V38^2)+(V39^2)+(V40^2))","v":40.298883359219772},{"$f":"W12+W13+W14+W15+W16+W36+W37+W38+W39+W40","v":0},{"$f":"SQRT((X12^2)+(X13^2)+(X14^2)+(X15^2)+(X16^2)+(X36^2)+(X37^2)+(X38^2)+(X39^2)+(X40^2))","v":34.785054261852174},{"$f":"Y12+Y13+Y14+Y15+Y16+Y36+Y37+Y38+Y39+Y40","v":0},{"$f":"SQRT((Z12^2)+(Z13^2)+(Z14^2)+(Z15^2)+(Z16^2)+(Z36^2)+(Z37^2)+(Z38^2)+(Z39^2)+(Z40^2))","v":34.785054261852174},{"$f":"AA12+AA13+AA14+AA15+AA16+AA36+AA37+AA38+AA39+AA40","v":104},{"$f":"SQRT((AB12^2)+(AB13^2)+(AB14^2)+(AB15^2)+(AB16^2)+(AB36^2)+(AB37^2)+(AB38^2)+(AB39^2)+(AB40^2))","v":52.364109846344185},{"$f":"AC12+AC13+AC14+AC15+AC16+AC36+AC37+AC38+AC39+AC40","v":0},{"$f":"SQRT((AD12^2)+(AD13^2)+(AD14^2)+(AD15^2)+(AD16^2)+(AD36^2)+(AD37^2)+(AD38^2)+(AD39^2)+(AD40^2))","v":34.785054261852174},{"$f":"AE12+AE13+AE14+AE15+AE16+AE36+AE37+AE38+AE39+AE40","v":4},{"$f":"SQRT((AF12^2)+(AF13^2)+(AF14^2)+(AF15^2)+(AF16^2)+(AF36^2)+(AF37^2)+(AF38^2)+(AF39^2)+(AF40^2))","v":29.916550603303182},{"$f":"AG12+AG13+AG14+AG15+AG16+AG36+AG37+AG38+AG39+AG40","v":23},{"$f":"SQRT((AH12^2)+(AH13^2)+(AH14^2)+(AH15^2)+(AH16^2)+(AH36^2)+(AH37^2)+(AH38^2)+(AH39^2)+(AH40^2))","v":25.119713374160941},{"$f":"AI12+AI13+AI14+AI15+AI16+AI36+AI37+AI38+AI39+AI40","v":5},{"$f":"SQRT((AJ12^2)+(AJ13^2)+(AJ14^2)+(AJ15^2)+(AJ16^2)+(AJ36^2)+(AJ37^2)+(AJ38^2)+(AJ39^2)+(AJ40^2))","v":33.734255586865999},{"$f":"AK12+AK13+AK14+AK15+AK16+AK36+AK37+AK38+AK39+AK40","v":0},{"$f":"SQRT((AL12^2)+(AL13^2)+(AL14^2)+(AL15^2)+(AL16^2)+(AL36^2)+(AL37^2)+(AL38^2)+(AL39^2)+(AL40^2))","v":34.785054261852174},{"$f":"AM12+AM13+AM14+AM15+AM16+AM36+AM37+AM38+AM39+AM40","v":211},{"$f":"SQRT((AN12^2)+(AN13^2)+(AN14^2)+(AN15^2)+(AN16^2)+(AN36^2)+(AN37^2)+(AN38^2)+(AN39^2)+(AN40^2))","v":69.88562083862459},{"$f":"AO12+AO13+AO14+AO15+AO16+AO36+AO37+AO38+AO39+AO40","v":3},{"$f":"SQRT((AP12^2)+(AP13^2)+(AP14^2)+(AP15^2)+(AP16^2)+(AP36^2)+(AP37^2)+(AP38^2)+(AP39^2)+(AP40^2))","v":33.541019662496844},{"$f":"AQ12+AQ13+AQ14+AQ15+AQ16+AQ36+AQ37+AQ38+AQ39+AQ40","v":0},{"$f":"SQRT((AR12^2)+(AR13^2)+(AR14^2)+(AR15^2)+(AR16^2)+(AR36^2)+(AR37^2)+(AR38^2)+(AR39^2)+(AR40^2))","v":34.785054261852174},{"$f":"AS12+AS13+AS14+AS15+AS16+AS36+AS37+AS38+AS39+AS40","v":81},{"$f":"SQRT((AT12^2)+(AT13^2)+(AT14^2)+(AT15^2)+(AT16^2)+(AT36^2)+(AT37^2)+(AT38^2)+(AT39^2)+(AT40^2))","v":42.567593307585526},{"$f":"AU12+AU13+AU14+AU15+AU16+AU36+AU37+AU38+AU39+AU40","v":0},{"$f":"SQRT((AV12^2)+(AV13^2)+(AV14^2)+(AV15^2)+(AV16^2)+(AV36^2)+(AV37^2)+(AV38^2)+(AV39^2)+(AV40^2))","v":34.785054261852174},{"$f":"AW12+AW13+AW14+AW15+AW16+AW36+AW37+AW38+AW39+AW40","v":480},{"$f":"SQRT((AX12^2)+(AX13^2)+(AX14^2)+(AX15^2)+(AX16^2)+(AX36^2)+(AX37^2)+(AX38^2)+(AX39^2)+(AX40^2))","v":124.35031162003575},{"$f":"AY12+AY13+AY14+AY15+AY16+AY36+AY37+AY38+AY39+AY40","v":0},{"$f":"SQRT((AZ12^2)+(AZ13^2)+(AZ14^2)+(AZ15^2)+(AZ16^2)+(AZ36^2)+(AZ37^2)+(AZ38^2)+(AZ39^2)+(AZ40^2))","v":34.785054261852174},{"$f":"BA12+BA13+BA14+BA15+BA16+BA36+BA37+BA38+BA39+BA40","v":0},{"$f":"SQRT((BB12^2)+(BB13^2)+(BB14^2)+(BB15^2)+(BB16^2)+(BB36^2)+(BB37^2)+(BB38^2)+(BB39^2)+(BB40^2))","v":34.785054261852174},{"$f":"BC12+BC13+BC14+BC15+BC16+BC36+BC37+BC38+BC39+BC40","v":154},{"$f":"SQRT((BD12^2)+(BD13^2)+(BD14^2)+(BD15^2)+(BD16^2)+(BD36^2)+(BD37^2)+(BD38^2)+(BD39^2)+(BD40^2))","v":63.055531081737783},{"$f":"BE12+BE13+BE14+BE15+BE16+BE36+BE37+BE38+BE39+BE40","v":0},{"$f":"SQRT((BF12^2)+(BF13^2)+(BF14^2)+(BF15^2)+(BF16^2)+(BF36^2)+(BF37^2)+(BF38^2)+(BF39^2)+(BF40^2))","v":34.785054261852174},{"$f":"BG12+BG13+BG14+BG15+BG16+BG36+BG37+BG38+BG39+BG40","v":270},{"$f":"SQRT((BH12^2)+(BH13^2)+(BH14^2)+(BH15^2)+(BH16^2)+(BH36^2)+(BH37^2)+(BH38^2)+(BH39^2)+(BH40^2))","v":89.849874791231628},{"$f":"BI12+BI13+BI14+BI15+BI16+BI36+BI37+BI38+BI39+BI40","v":5},{"$f":"SQRT((BJ12^2)+(BJ13^2)+(BJ14^2)+(BJ15^2)+(BJ16^2)+(BJ36^2)+(BJ37^2)+(BJ38^2)+(BJ39^2)+(BJ40^2))","v":34.785054261852174},{"$f":"BK12+BK13+BK14+BK15+BK16+BK36+BK37+BK38+BK39+BK40","v":7},{"$f":"SQRT((BL12^2)+(BL13^2)+(BL14^2)+(BL15^2)+(BL16^2)+(BL36^2)+(BL37^2)+(BL38^2)+(BL39^2)+(BL40^2))","v":32.878564445547191},{"$f":"BM12+BM13+BM14+BM15+BM16+BM36+BM37+BM38+BM39+BM40","v":26},{"$f":"SQRT((BN12^2)+(BN13^2)+(BN14^2)+(BN15^2)+(BN16^2)+(BN36^2)+(BN37^2)+(BN38^2)+(BN39^2)+(BN40^2))","v":33.689761055846034},{"$f":"BO12+BO13+BO14+BO15+BO16+BO36+BO37+BO38+BO39+BO40","v":34},{"$f":"SQRT((BP12^2)+(BP13^2)+(BP14^2)+(BP15^2)+(BP16^2)+(BP36^2)+(BP37^2)+(BP38^2)+(BP39^2)+(BP40^2))","v":26.381811916545839},{"$f":"BQ12+BQ13+BQ14+BQ15+BQ16+BQ36+BQ37+BQ38+BQ39+BQ40","v":11},{"$f":"SQRT((BR12^2)+(BR13^2)+(BR14^2)+(BR15^2)+(BR16^2)+(BR36^2)+(BR37^2)+(BR38^2)+(BR39^2)+(BR40^2))","v":40.80441152620633},{"$f":"BS12+BS13+BS14+BS15+BS16+BS36+BS37+BS38+BS39+BS40","v":0},{"$f":"SQRT((BT12^2)+(BT13^2)+(BT14^2)+(BT15^2)+(BT16^2)+(BT36^2)+(BT37^2)+(BT38^2)+(BT39^2)+(BT40^2))","v":34.785054261852174},{"$f":"BU12+BU13+BU14+BU15+BU16+BU36+BU37+BU38+BU39+BU40","v":21},{"$f":"SQRT((BV12^2)+(BV13^2)+(BV14^2)+(BV15^2)+(BV16^2)+(BV36^2)+(BV37^2)+(BV38^2)+(BV39^2)+(BV40^2))","v":22.583179581272429},{"$f":"BW12+BW13+BW14+BW15+BW16+BW36+BW37+BW38+BW39+BW40","v":45},{"$f":"SQRT((BX12^2)+(BX13^2)+(BX14^2)+(BX15^2)+(BX16^2)+(BX36^2)+(BX37^2)+(BX38^2)+(BX39^2)+(BX40^2))","v":38.613469152615643},{"$f":"BY12+BY13+BY14+BY15+BY16+BY36+BY37+BY38+BY39+BY40","v":60},{"$f":"SQRT((BZ12^2)+(BZ13^2)+(BZ14^2)+(BZ15^2)+(BZ16^2)+(BZ36^2)+(BZ37^2)+(BZ38^2)+(BZ39^2)+(BZ40^2))","v":41.060930335295616},{"$f":"CA12+CA13+CA14+CA15+CA16+CA36+CA37+CA38+CA39+CA40","v":77},{"$f":"SQRT((CB12^2)+(CB13^2)+(CB14^2)+(CB15^2)+(CB16^2)+(CB36^2)+(CB37^2)+(CB38^2)+(CB39^2)+(CB40^2))","v":36.414282912066248},{"$f":"CC12+CC13+CC14+CC15+CC16+CC36+CC37+CC38+CC39+CC40","v":0},{"$f":"SQRT((CD12^2)+(CD13^2)+(CD14^2)+(CD15^2)+(CD16^2)+(CD36^2)+(CD37^2)+(CD38^2)+(CD39^2)+(CD40^2))","v":34.785054261852174},{"$f":"CE12+CE13+CE14+CE15+CE16+CE36+CE37+CE38+CE39+CE40","v":0},{"$f":"SQRT((CF12^2)+(CF13^2)+(CF14^2)+(CF15^2)+(CF16^2)+(CF36^2)+(CF37^2)+(CF38^2)+(CF39^2)+(CF40^2))","v":34.785054261852174},{"$f":"CG12+CG13+CG14+CG15+CG16+CG36+CG37+CG38+CG39+CG40","v":0},{"$f":"SQRT((CH12^2)+(CH13^2)+(CH14^2)+(CH15^2)+(CH16^2)+(CH36^2)+(CH37^2)+(CH38^2)+(CH39^2)+(CH40^2))","v":34.785054261852174},{"$f":"CI12+CI13+CI14+CI15+CI16+CI36+CI37+CI38+CI39+CI40","v":133},{"$f":"SQRT((CJ12^2)+(CJ13^2)+(CJ14^2)+(CJ15^2)+(CJ16^2)+(CJ36^2)+(CJ37^2)+(CJ38^2)+(CJ39^2)+(CJ40^2))","v":65.329931884244303}]
[null,"25 to 34 yrs.",{"$f":"C17+C18+C41+C42","v":0},{"$f":"SQRT((D17^2)+(D18^2)+(D41^2)+(D42^2))","v":22},{"$f":"E17+E18+E41+E42","v":0},{"$f":"SQRT((F17^2)+(F18^2)+(F41^2)+(F42^2))","v":22},{"$f":"G17+G18+G41+G42","v":0},{"$f":"SQRT((H17^2)+(H18^2)+(H41^2)+(H42^2))","v":22},{"$f":"I17+I18+I41+I42","v":1683},{"$f":"SQRT((J17^2)+(J18^2)+(J41^2)+(J42^2))","v":198.34817871611526},{"$f":"K17+K18+K41+K42","v":0},{"$f":"SQRT((L17^2)+(L18^2)+(L41^2)+(L42^2))","v":22},{"$f":"M17+M18+M41+M42","v":56},{"$f":"SQRT((N17^2)+(N18^2)+(N41^2)+(N42^2))","v":27.313000567495326},{"$f":"O17+O18+O41+O42","v":0},{"$f":"SQRT((P17^2)+(P18^2)+(P41^2)+(P42^2))","v":22},{"$f":"Q17+Q18+Q41+Q42","v":25},{"$f":"SQRT((R17^2)+(R18^2)+(R41^2)+(R42^2))","v":14.628738838327793},{"$f":"S17+S18+S41+S42","v":150},{"$f":"SQRT((T17^2)+(T18^2)+(T41^2)+(T42^2))","v":50.980388386123543},{"$f":"U17+U18+U41+U42","v":39},{"$f":"SQRT((V17^2)+(V18^2)+(V41^2)+(V42^2))","v":21.142374511865974},{"$f":"W17+W18+W41+W42","v":0},{"$f":"SQRT((X17^2)+(X18^2)+(X41^2)+(X42^2))","v":22},{"$f":"Y17+Y18+Y41+Y42","v":0},{"$f":"SQRT((Z17^2)+(Z18^2)+(Z41^2)+(Z42^2))","v":22},{"$f":"AA17+AA18+AA41+AA42","v":72},{"$f":"SQRT((AB17^2)+(AB18^2)+(AB41^2)+(AB42^2))","v":30.116440692751194},{"$f":"AC17+AC18+AC41+AC42","v":0},{"$f":"SQRT((AD17^2)+(AD18^2)+(AD41^2)+(AD42^2))","v":22},{"$f":"AE17+AE18+AE41+AE42","v":1},{"$f":"SQRT((AF17^2)+(AF18^2)+(AF41^2)+(AF42^2))","v":19.467922333931785},{"$f":"AG17+AG18+AG41+AG42","v":25},{"$f":"SQRT((AH17^2)+(AH18^2)+(AH41^2)+(AH42^2))","v":15.716233645501712},{"$f":"AI17+AI18+AI41+AI42","v":0},{"$f":"SQRT((AJ17^2)+(AJ18^2)+(AJ41^2)+(AJ42^2))","v":22},{"$f":"AK17+AK18+AK41+AK42","v":0},{"$f":"SQRT((AL17^2)+(AL18^2)+(AL41^2)+(AL42^2))","v":22},{"$f":"AM17+AM18+AM41+AM42","v":176},{"$f":"SQRT((AN17^2)+(AN18^2)+(AN41^2)+(AN42^2))","v":76.687678280151374},{"$f":"AO17+AO18+AO41+AO42","v":2},{"$f":"SQRT((AP17^2)+(AP18^2)+(AP41^2)+(AP42^2))","v":19.467922333931785},{"$f":"AQ17+AQ18+AQ41+AQ42","v":0},{"$f":"SQRT((AR17^2)+(AR18^2)+(AR41^2)+(AR42^2))","v":22},{"$f":"AS17+AS18+AS41+AS42","v":59},{"$f":"SQRT((AT17^2)+(AT18^2)+(AT41^2)+(AT42^2))","v":22.449944320643649},{"$f":"AU17+AU18+AU41+AU42","v":0},{"$f":"SQRT((AV17^2)+(AV18^2)+(AV41^2)+(AV42^2))","v":22},{"$f":"AW17+AW18+AW41+AW42","v":284},{"$f":"SQRT((AX17^2)+(AX18^2)+(AX41^2)+(AX42^2))","v":97.66780431646859},{"$f":"AY17+AY18+AY41+AY42","v":0},{"$f":"SQRT((AZ17^2)+(AZ18^2)+(AZ41^2)+(AZ42^2))","v":22},{"$f":"BA17+BA18+BA41+BA42","v":0},{"$f":"SQRT((BB17^2)+(BB18^2)+(BB41^2)+(BB42^2))","v":22},{"$f":"BC17+BC18+BC41+BC42","v":160},{"$f":"SQRT((BD17^2)+(BD18^2)+(BD41^2)+(BD42^2))","v":43.289721643826724},{"$f":"BE17+BE18+BE41+BE42","v":0},{"$f":"SQRT((BF17^2)+(BF18^2)+(BF41^2)+(BF42^2))","v":22},{"$f":"BG17+BG18+BG41+BG42","v":292},{"$f":"SQRT((BH17^2)+(BH18^2)+(BH41^2)+(BH42^2))","v":79.536155300592696},{"$f":"BI17+BI18+BI41+BI42","v":5},{"$f":"SQRT((BJ17^2)+(BJ18^2)+(BJ41^2)+(BJ42^2))","v":22},{"$f":"BK17+BK18+BK41+BK42","v":0},{"$f":"SQRT((BL17^2)+(BL18^2)+(BL41^2)+(BL42^2))","v":22},{"$f":"BM17+BM18+BM41+BM42","v":67},{"$f":"SQRT((BN17^2)+(BN18^2)+(BN41^2)+(BN42^2))","v":34.597687784012386},{"$f":"BO17+BO18+BO41+BO42","v":20},{"$f":"SQRT((BP17^2)+(BP18^2)+(BP41^2)+(BP42^2))","v":10.535653752852738},{"$f":"BQ17+BQ18+BQ41+BQ42","v":0},{"$f":"SQRT((BR17^2)+(BR18^2)+(BR41^2)+(BR42^2))","v":22},{"$f":"BS17+BS18+BS41+BS42","v":0},{"$f":"SQRT((BT17^2)+(BT18^2)+(BT41^2)+(BT42^2))","v":22},{"$f":"BU17+BU18+BU41+BU42","v":23},{"$f":"SQRT((BV17^2)+(BV18^2)+(BV41^2)+(BV42^2))","v":12.041594578792296},{"$f":"BW17+BW18+BW41+BW42","v":45},{"$f":"SQRT((BX17^2)+(BX18^2)+(BX41^2)+(BX42^2))","v":25.826343140289914},{"$f":"BY17+BY18+BY41+BY42","v":72},{"$f":"SQRT((BZ17^2)+(BZ18^2)+(BZ41^2)+(BZ42^2))","v":38.223029707232783},{"$f":"CA17+CA18+CA41+CA42","v":34},{"$f":"SQRT((CB17^2)+(CB18^2)+(CB41^2)+(CB42^2))","v":27.110883423451916},{"$f":"CC17+CC18+CC41+CC42","v":0},{"$f":"SQRT((CD17^2)+(CD18^2)+(CD41^2)+(CD42^2))","v":22},{"$f":"CE17+CE18+CE41+CE42","v":0},{"$f":"SQRT((CF17^2)+(CF18^2)+(CF41^2)+(CF42^2))","v":22},{"$f":"CG17+CG18+CG41+CG42","v":3},{"$f":"SQRT((CH17^2)+(CH18^2)+(CH41^2)+(CH42^2))","v":19.467922333931785},{"$f":"CI17+CI18+CI41+CI42","v":172},{"$f":"SQRT((CJ17^2)+(CJ18^2)+(CJ41^2)+(CJ42^2))","v":60.811183182043088}]
[null,"35 to 44 yrs.",{"$f":"C19+C20+C43+C44","v":0},{"$f":"SQRT((D19^2)+(D20^2)+(D43^2)+(D44^2))","v":22},{"$f":"E19+E20+E43+E44","v":0},{"$f":"SQRT((F19^2)+(F20^2)+(F43^2)+(F44^2))","v":22},{"$f":"G19+G20+G43+G44","v":0},{"$f":"SQRT((H19^2)+(H20^2)+(H43^2)+(H44^2))","v":22},{"$f":"I19+I20+I43+I44","v":1445},{"$f":"SQRT((J19^2)+(J20^2)+(J43^2)+(J44^2))","v":209.28927349484493},{"$f":"K19+K20+K43+K44","v":0},{"$f":"SQRT((L19^2)+(L20^2)+(L43^2)+(L44^2))","v":22},{"$f":"M19+M20+M43+M44","v":51},{"$f":"SQRT((N19^2)+(N20^2)+(N43^2)+(N44^2))","v":22.203603311174518},{"$f":"O19+O20+O43+O44","v":0},{"$f":"SQRT((P19^2)+(P20^2)+(P43^2)+(P44^2))","v":22},{"$f":"Q19+Q20+Q43+Q44","v":15},{"$f":"SQRT((R19^2)+(R20^2)+(R43^2)+(R44^2))","v":11.916375287812984},{"$f":"S19+S20+S43+S44","v":218},{"$f":"SQRT((T19^2)+(T20^2)+(T43^2)+(T44^2))","v":54.763126280372269},{"$f":"U19+U20+U43+U44","v":41},{"$f":"SQRT((V19^2)+(V20^2)+(V43^2)+(V44^2))","v":18.384776310850235},{"$f":"W19+W20+W43+W44","v":0},{"$f":"SQRT((X19^2)+(X20^2)+(X43^2)+(X44^2))","v":22},{"$f":"Y19+Y20+Y43+Y44","v":0},{"$f":"SQRT((Z19^2)+(Z20^2)+(Z43^2)+(Z44^2))","v":22},{"$f":"AA19+AA20+AA43+AA44","v":96},{"$f":"SQRT((AB19^2)+(AB20^2)+(AB43^2)+(AB44^2))","v":34.62657938636157},{"$f":"AC19+AC20+AC43+AC44","v":0},{"$f":"SQRT((AD19^2)+(AD20^2)+(AD43^2)+(AD44^2))","v":22},{"$f":"AE19+AE20+AE43+AE44","v":0},{"$f":"SQRT((AF19^2)+(AF20^2)+(AF43^2)+(AF44^2))","v":22},{"$f":"AG19+AG20+AG43+AG44","v":25},{"$f":"SQRT((AH19^2)+(AH20^2)+(AH43^2)+(AH44^2))","v":10.908712114635714},{"$f":"AI19+AI20+AI43+AI44","v":26},{"$f":"SQRT((AJ19^2)+(AJ20^2)+(AJ43^2)+(AJ44^2))","v":14.282856857085701},{"$f":"AK19+AK20+AK43+AK44","v":0},{"$f":"SQRT((AL19^2)+(AL20^2)+(AL43^2)+(AL44^2))","v":22},{"$f":"AM19+AM20+AM43+AM44","v":283},{"$f":"SQRT((AN19^2)+(AN20^2)+(AN43^2)+(AN44^2))","v":78.606615497679329},{"$f":"AO19+AO20+AO43+AO44","v":2},{"$f":"SQRT((AP19^2)+(AP20^2)+(AP43^2)+(AP44^2))","v":19.974984355438178},{"$f":"AQ19+AQ20+AQ43+AQ44","v":0},{"$f":"SQRT((AR19^2)+(AR20^2)+(AR43^2)+(AR44^2))","v":22},{"$f":"AS19+AS20+AS43+AS44","v":41},{"$f":"SQRT((AT19^2)+(AT20^2)+(AT43^2)+(AT44^2))","v":18.601075237738275},{"$f":"AU19+AU20+AU43+AU44","v":0},{"$f":"SQRT((AV19^2)+(AV20^2)+(AV43^2)+(AV44^2))","v":22},{"$f":"AW19+AW20+AW43+AW44","v":412},{"$f":"SQRT((AX19^2)+(AX20^2)+(AX43^2)+(AX44^2))","v":106.7941945987702},{"$f":"AY19+AY20+AY43+AY44","v":0},{"$f":"SQRT((AZ19^2)+(AZ20^2)+(AZ43^2)+(AZ44^2))","v":22},{"$f":"BA19+BA20+BA43+BA44","v":0},{"$f":"SQRT((BB19^2)+(BB20^2)+(BB43^2)+(BB44^2))","v":22},{"$f":"BC19+BC20+BC43+BC44","v":115},{"$f":"SQRT((BD19^2)+(BD20^2)+(BD43^2)+(BD44^2))","v":29.732137494637012},{"$f":"BE19+BE20+BE43+BE44","v":0},{"$f":"SQRT((BF19^2)+(BF20^2)+(BF43^2)+(BF44^2))","v":22},{"$f":"BG19+BG20+BG43+BG44","v":169},{"$f":"SQRT((BH19^2)+(BH20^2)+(BH43^2)+(BH44^2))","v":49.578221024962161},{"$f":"BI19+BI20+BI43+BI44","v":0},{"$f":"SQRT((BJ19^2)+(BJ20^2)+(BJ43^2)+(BJ44^2))","v":22},{"$f":"BK19+BK20+BK43+BK44","v":0},{"$f":"SQRT((BL19^2)+(BL20^2)+(BL43^2)+(BL44^2))","v":22},{"$f":"BM19+BM20+BM43+BM44","v":50},{"$f":"SQRT((BN19^2)+(BN20^2)+(BN43^2)+(BN44^2))","v":28.106938645110393},{"$f":"BO19+BO20+BO43+BO44","v":35},{"$f":"SQRT((BP19^2)+(BP20^2)+(BP43^2)+(BP44^2))","v":17.291616465790582},{"$f":"BQ19+BQ20+BQ43+BQ44","v":0},{"$f":"SQRT((BR19^2)+(BR20^2)+(BR43^2)+(BR44^2))","v":22},{"$f":"BS19+BS20+BS43+BS44","v":0},{"$f":"SQRT((BT19^2)+(BT20^2)+(BT43^2)+(BT44^2))","v":22},{"$f":"BU19+BU20+BU43+BU44","v":35},{"$f":"SQRT((BV19^2)+(BV20^2)+(BV43^2)+(BV44^2))","v":14.66287829861518},{"$f":"BW19+BW20+BW43+BW44","v":65},{"$f":"SQRT((BX19^2)+(BX20^2)+(BX43^2)+(BX44^2))","v":26.683328128252668},{"$f":"BY19+BY20+BY43+BY44","v":36},{"$f":"SQRT((BZ19^2)+(BZ20^2)+(BZ43^2)+(BZ44^2))","v":22.912878474779198},{"$f":"CA19+CA20+CA43+CA44","v":90},{"$f":"SQRT((CB19^2)+(CB20^2)+(CB43^2)+(CB44^2))","v":27.982137159266443},{"$f":"CC19+CC20+CC43+CC44","v":0},{"$f":"SQRT((CD19^2)+(CD20^2)+(CD43^2)+(CD44^2))","v":22},{"$f":"CE19+CE20+CE43+CE44","v":0},{"$f":"SQRT((CF19^2)+(CF20^2)+(CF43^2)+(CF44^2))","v":22},{"$f":"CG19+CG20+CG43+CG44","v":0},{"$f":"SQRT((CH19^2)+(CH20^2)+(CH43^2)+(CH44^2))","v":22},{"$f":"CI19+CI20+CI43+CI44","v":249},{"$f":"SQRT((CJ19^2)+(CJ20^2)+(CJ43^2)+(CJ44^2))","v":65.833122362531157}]
[null,"45 to 54 yrs.",{"$f":"C21+C22+C45+C46","v":0},{"$f":"SQRT((D21^2)+(D22^2)+(D45^2)+(D46^2))","v":22},{"$f":"E21+E22+E45+E46","v":0},{"$f":"SQRT((F21^2)+(F22^2)+(F45^2)+(F46^2))","v":22},{"$f":"G21+G22+G45+G46","v":0},{"$f":"SQRT((H21^2)+(H22^2)+(H45^2)+(H46^2))","v":22},{"$f":"I21+I22+I45+I46","v":1535},{"$f":"SQRT((J21^2)+(J22^2)+(J45^2)+(J46^2))","v":175.83799361912659},{"$f":"K21+K22+K45+K46","v":0},{"$f":"SQRT((L21^2)+(L22^2)+(L45^2)+(L46^2))","v":22},{"$f":"M21+M22+M45+M46","v":68},{"$f":"SQRT((N21^2)+(N22^2)+(N45^2)+(N46^2))","v":26.551836094703507},{"$f":"O21+O22+O45+O46","v":0},{"$f":"SQRT((P21^2)+(P22^2)+(P45^2)+(P46^2))","v":22},{"$f":"Q21+Q22+Q45+Q46","v":53},{"$f":"SQRT((R21^2)+(R22^2)+(R45^2)+(R46^2))","v":31.480152477394387},{"$f":"S21+S22+S45+S46","v":213},{"$f":"SQRT((T21^2)+(T22^2)+(T45^2)+(T46^2))","v":65.520989003524662},{"$f":"U21+U22+U45+U46","v":130},{"$f":"SQRT((V21^2)+(V22^2)+(V45^2)+(V46^2))","v":42.720018726587654},{"$f":"W21+W22+W45+W46","v":0},{"$f":"SQRT((X21^2)+(X22^2)+(X45^2)+(X46^2))","v":22},{"$f":"Y21+Y22+Y45+Y46","v":0},{"$f":"SQRT((Z21^2)+(Z22^2)+(Z45^2)+(Z46^2))","v":22},{"$f":"AA21+AA22+AA45+AA46","v":103},{"$f":"SQRT((AB21^2)+(AB22^2)+(AB45^2)+(AB46^2))","v":46.021733996015406},{"$f":"AC21+AC22+AC45+AC46","v":0},{"$f":"SQRT((AD21^2)+(AD22^2)+(AD45^2)+(AD46^2))","v":22},{"$f":"AE21+AE22+AE45+AE46","v":2},{"$f":"SQRT((AF21^2)+(AF22^2)+(AF45^2)+(AF46^2))","v":19.974984355438178},{"$f":"AG21+AG22+AG45+AG46","v":32},{"$f":"SQRT((AH21^2)+(AH22^2)+(AH45^2)+(AH46^2))","v":15.556349186104045},{"$f":"AI21+AI22+AI45+AI46","v":31},{"$f":"SQRT((AJ21^2)+(AJ22^2)+(AJ45^2)+(AJ46^2))","v":17.549928774784245},{"$f":"AK21+AK22+AK45+AK46","v":0},{"$f":"SQRT((AL21^2)+(AL22^2)+(AL45^2)+(AL46^2))","v":22},{"$f":"AM21+AM22+AM45+AM46","v":330},{"$f":"SQRT((AN21^2)+(AN22^2)+(AN45^2)+(AN46^2))","v":89.073003766573407},{"$f":"AO21+AO22+AO45+AO46","v":6},{"$f":"SQRT((AP21^2)+(AP22^2)+(AP45^2)+(AP46^2))","v":20.297783130184438},{"$f":"AQ21+AQ22+AQ45+AQ46","v":0},{"$f":"SQRT((AR21^2)+(AR22^2)+(AR45^2)+(AR46^2))","v":22},{"$f":"AS21+AS22+AS45+AS46","v":146},{"$f":"SQRT((AT21^2)+(AT22^2)+(AT45^2)+(AT46^2))","v":36.945906403822335},{"$f":"AU21+AU22+AU45+AU46","v":0},{"$f":"SQRT((AV21^2)+(AV22^2)+(AV45^2)+(AV46^2))","v":22},{"$f":"AW21+AW22+AW45+AW46","v":445},{"$f":"SQRT((AX21^2)+(AX22^2)+(AX45^2)+(AX46^2))","v":108.57255638511971},{"$f":"AY21+AY22+AY45+AY46","v":0},{"$f":"SQRT((AZ21^2)+(AZ22^2)+(AZ45^2)+(AZ46^2))","v":22},{"$f":"BA21+BA22+BA45+BA46","v":0},{"$f":"SQRT((BB21^2)+(BB22^2)+(BB45^2)+(BB46^2))","v":22},{"$f":"BC21+BC22+BC45+BC46","v":207},{"$f":"SQRT((BD21^2)+(BD22^2)+(BD45^2)+(BD46^2))","v":39.987498046264413},{"$f":"BE21+BE22+BE45+BE46","v":0},{"$f":"SQRT((BF21^2)+(BF22^2)+(BF45^2)+(BF46^2))","v":22},{"$f":"BG21+BG22+BG45+BG46","v":369},{"$f":"SQRT((BH21^2)+(BH22^2)+(BH45^2)+(BH46^2))","v":74.269778510508573},{"$f":"BI21+BI22+BI45+BI46","v":0},{"$f":"SQRT((BJ21^2)+(BJ22^2)+(BJ45^2)+(BJ46^2))","v":22},{"$f":"BK21+BK22+BK45+BK46","v":4},{"$f":"SQRT((BL21^2)+(BL22^2)+(BL45^2)+(BL46^2))","v":20.663978319771825},{"$f":"BM21+BM22+BM45+BM46","v":87},{"$f":"SQRT((BN21^2)+(BN22^2)+(BN45^2)+(BN46^2))","v":37.107950630558946},{"$f":"BO21+BO22+BO45+BO46","v":45},{"$f":"SQRT((BP21^2)+(BP22^2)+(BP45^2)+(BP46^2))","v":19.748417658131498},{"$f":"BQ21+BQ22+BQ45+BQ46","v":0},{"$f":"SQRT((BR21^2)+(BR22^2)+(BR45^2)+(BR46^2))","v":22},{"$f":"BS21+BS22+BS45+BS46","v":0},{"$f":"SQRT((BT21^2)+(BT22^2)+(BT45^2)+(BT46^2))","v":22},{"$f":"BU21+BU22+BU45+BU46","v":52},{"$f":"SQRT((BV21^2)+(BV22^2)+(BV45^2)+(BV46^2))","v":19.493588689617926},{"$f":"BW21+BW22+BW45+BW46","v":55},{"$f":"SQRT((BX21^2)+(BX22^2)+(BX45^2)+(BX46^2))","v":23.302360395462088},{"$f":"BY21+BY22+BY45+BY46","v":155},{"$f":"SQRT((BZ21^2)+(BZ22^2)+(BZ45^2)+(BZ46^2))","v":55.812185049503306},{"$f":"CA21+CA22+CA45+CA46","v":142},{"$f":"SQRT((CB21^2)+(CB22^2)+(CB45^2)+(CB46^2))","v":43},{"$f":"CC21+CC22+CC45+CC46","v":0},{"$f":"SQRT((CD21^2)+(CD22^2)+(CD45^2)+(CD46^2))","v":22},{"$f":"CE21+CE22+CE45+CE46","v":0},{"$f":"SQRT((CF21^2)+(CF22^2)+(CF45^2)+(CF46^2))","v":22},{"$f":"CG21+CG22+CG45+CG46","v":0},{"$f":"SQRT((CH21^2)+(CH22^2)+(CH45^2)+(CH46^2))","v":22},{"$f":"CI21+CI22+CI45+CI46","v":381},{"$f":"SQRT((CJ21^2)+(CJ22^2)+(CJ45^2)+(CJ46^2))","v":90.360389552059814}]
[null,"55 to 64 yrs.",{"$f":"C23+C24+C25+C47+C48+C49","v":0},{"$f":"SQRT((D23^2)+(D24^2)+(D25^2)+(D47^2)+(D48^2)+(D49^2))","v":26.944387170614959},{"$f":"E23+E24+E25+E47+E48+E49","v":0},{"$f":"SQRT((F23^2)+(F24^2)+(F25^2)+(F47^2)+(F48^2)+(F49^2))","v":26.944387170614959},{"$f":"G23+G24+G25+G47+G48+G49","v":0},{"$f":"SQRT((H23^2)+(H24^2)+(H25^2)+(H47^2)+(H48^2)+(H49^2))","v":26.944387170614959},{"$f":"I23+I24+I25+I47+I48+I49","v":1306},{"$f":"SQRT((J23^2)+(J24^2)+(J25^2)+(J47^2)+(J48^2)+(J49^2))","v":179.22890391898289},{"$f":"K23+K24+K25+K47+K48+K49","v":0},{"$f":"SQRT((L23^2)+(L24^2)+(L25^2)+(L47^2)+(L48^2)+(L49^2))","v":26.944387170614959},{"$f":"M23+M24+M25+M47+M48+M49","v":184},{"$f":"SQRT((N23^2)+(N24^2)+(N25^2)+(N47^2)+(N48^2)+(N49^2))","v":42.953463189829058},{"$f":"O23+O24+O25+O47+O48+O49","v":0},{"$f":"SQRT((P23^2)+(P24^2)+(P25^2)+(P47^2)+(P48^2)+(P49^2))","v":26.944387170614959},{"$f":"Q23+Q24+Q25+Q47+Q48+Q49","v":98},{"$f":"SQRT((R23^2)+(R24^2)+(R25^2)+(R47^2)+(R48^2)+(R49^2))","v":34.380226875342167},{"$f":"S23+S24+S25+S47+S48+S49","v":408},{"$f":"SQRT((T23^2)+(T24^2)+(T25^2)+(T47^2)+(T48^2)+(T49^2))","v":80.162335295324326},{"$f":"U23+U24+U25+U47+U48+U49","v":136},{"$f":"SQRT((V23^2)+(V24^2)+(V25^2)+(V47^2)+(V48^2)+(V49^2))","v":35.071355833500363},{"$f":"W23+W24+W25+W47+W48+W49","v":0},{"$f":"SQRT((X23^2)+(X24^2)+(X25^2)+(X47^2)+(X48^2)+(X49^2))","v":26.944387170614959},{"$f":"Y23+Y24+Y25+Y47+Y48+Y49","v":0},{"$f":"SQRT((Z23^2)+(Z24^2)+(Z25^2)+(Z47^2)+(Z48^2)+(Z49^2))","v":26.944387170614959},{"$f":"AA23+AA24+AA25+AA47+AA48+AA49","v":257},{"$f":"SQRT((AB23^2)+(AB24^2)+(AB25^2)+(AB47^2)+(AB48^2)+(AB49^2))","v":56.515484603779164},{"$f":"AC23+AC24+AC25+AC47+AC48+AC49","v":0},{"$f":"SQRT((AD23^2)+(AD24^2)+(AD25^2)+(AD47^2)+(AD48^2)+(AD49^2))","v":26.944387170614959},{"$f":"AE23+AE24+AE25+AE47+AE48+AE49","v":0},{"$f":"SQRT((AF23^2)+(AF24^2)+(AF25^2)+(AF47^2)+(AF48^2)+(AF49^2))","v":26.944387170614959},{"$f":"AG23+AG24+AG25+AG47+AG48+AG49","v":57},{"$f":"SQRT((AH23^2)+(AH24^2)+(AH25^2)+(AH47^2)+(AH48^2)+(AH49^2))","v":16.06237840420901},{"$f":"AI23+AI24+AI25+AI47+AI48+AI49","v":55},{"$f":"SQRT((AJ23^2)+(AJ24^2)+(AJ25^2)+(AJ47^2)+(AJ48^2)+(AJ49^2))","v":20.808652046684813},{"$f":"AK23+AK24+AK25+AK47+AK48+AK49","v":0},{"$f":"SQRT((AL23^2)+(AL24^2)+(AL25^2)+(AL47^2)+(AL48^2)+(AL49^2))","v":26.944387170614959},{"$f":"AM23+AM24+AM25+AM47+AM48+AM49","v":628},{"$f":"SQRT((AN23^2)+(AN24^2)+(AN25^2)+(AN47^2)+(AN48^2)+(AN49^2))","v":111.08555261599052},{"$f":"AO23+AO24+AO25+AO47+AO48+AO49","v":0},{"$f":"SQRT((AP23^2)+(AP24^2)+(AP25^2)+(AP47^2)+(AP48^2)+(AP49^2))","v":26.944387170614959},{"$f":"AQ23+AQ24+AQ25+AQ47+AQ48+AQ49","v":0},{"$f":"SQRT((AR23^2)+(AR24^2)+(AR25^2)+(AR47^2)+(AR48^2)+(AR49^2))","v":26.944387170614959},{"$f":"AS23+AS24+AS25+AS47+AS48+AS49","v":217},{"$f":"SQRT((AT23^2)+(AT24^2)+(AT25^2)+(AT47^2)+(AT48^2)+(AT49^2))","v":46.227697325304881},{"$f":"AU23+AU24+AU25+AU47+AU48+AU49","v":0},{"$f":"SQRT((AV23^2)+(AV24^2)+(AV25^2)+(AV47^2)+(AV48^2)+(AV49^2))","v":26.944387170614959},{"$f":"AW23+AW24+AW25+AW47+AW48+AW49","v":422},{"$f":"SQRT((AX23^2)+(AX24^2)+(AX25^2)+(AX47^2)+(AX48^2)+(AX49^2))","v":136.22408010333561},{"$f":"AY23+AY24+AY25+AY47+AY48+AY49","v":0},{"$f":"SQRT((AZ23^2)+(AZ24^2)+(AZ25^2)+(AZ47^2)+(AZ48^2)+(AZ49^2))","v":26.944387170614959},{"$f":"BA23+BA24+BA25+BA47+BA48+BA49","v":0},{"$f":"SQRT((BB23^2)+(BB24^2)+(BB25^2)+(BB47^2)+(BB48^2)+(BB49^2))","v":26.944387170614959},{"$f":"BC23+BC24+BC25+BC47+BC48+BC49","v":270},{"$f":"SQRT((BD23^2)+(BD24^2)+(BD25^2)+(BD47^2)+(BD48^2)+(BD49^2))","v":44.654227123532216},{"$f":"BE23+BE24+BE25+BE47+BE48+BE49","v":4},{"$f":"SQRT((BF23^2)+(BF24^2)+(BF25^2)+(BF47^2)+(BF48^2)+(BF49^2))","v":25.317977802344327},{"$f":"BG23+BG24+BG25+BG47+BG48+BG49","v":408},{"$f":"SQRT((BH23^2)+(BH24^2)+(BH25^2)+(BH47^2)+(BH48^2)+(BH49^2))","v":83.624159188598128},{"$f":"BI23+BI24+BI25+BI47+BI48+BI49","v":0},{"$f":"SQRT((BJ23^2)+(BJ24^2)+(BJ25^2)+(BJ47^2)+(BJ48^2)+(BJ49^2))","v":26.944387170614959},{"$f":"BK23+BK24+BK25+BK47+BK48+BK49","v":0},{"$f":"SQRT((BL23^2)+(BL24^2)+(BL25^2)+(BL47^2)+(BL48^2)+(BL49^2))","v":26.944387170614959},{"$f":"BM23+BM24+BM25+BM47+BM48+BM49","v":204},{"$f":"SQRT((BN23^2)+(BN24^2)+(BN25^2)+(BN47^2)+(BN48^2)+(BN49^2))","v":48.959166659574592},{"$f":"BO23+BO24+BO25+BO47+BO48+BO49","v":85},{"$f":"SQRT((BP23^2)+(BP24^2)+(BP25^2)+(BP47^2)+(BP48^2)+(BP49^2))","v":20.880613017821101},{"$f":"BQ23+BQ24+BQ25+BQ47+BQ48+BQ49","v":0},{"$f":"SQRT((BR23^2)+(BR24^2)+(BR25^2)+(BR47^2)+(BR48^2)+(BR49^2))","v":26.944387170614959},{"$f":"BS23+BS24+BS25+BS47+BS48+BS49","v":0},{"$f":"SQRT((BT23^2)+(BT24^2)+(BT25^2)+(BT47^2)+(BT48^2)+(BT49^2))","v":26.944387170614959},{"$f":"BU23+BU24+BU25+BU47+BU48+BU49","v":103},{"$f":"SQRT((BV23^2)+(BV24^2)+(BV25^2)+(BV47^2)+(BV48^2)+(BV49^2))","v":25.670995305986871},{"$f":"BW23+BW24+BW25+BW47+BW48+BW49","v":115},{"$f":"SQRT((BX23^2)+(BX24^2)+(BX25^2)+(BX47^2)+(BX48^2)+(BX49^2))","v":28.106938645110393},{"$f":"BY23+BY24+BY25+BY47+BY48+BY49","v":125},{"$f":"SQRT((BZ23^2)+(BZ24^2)+(BZ25^2)+(BZ47^2)+(BZ48^2)+(BZ49^2))","v":44.045431091090478},{"$f":"CA23+CA24+CA25+CA47+CA48+CA49","v":80},{"$f":"SQRT((CB23^2)+(CB24^2)+(CB25^2)+(CB47^2)+(CB48^2)+(CB49^2))","v":27.477263328068172},{"$f":"CC23+CC24+CC25+CC47+CC48+CC49","v":0},{"$f":"SQRT((CD23^2)+(CD24^2)+(CD25^2)+(CD47^2)+(CD48^2)+(CD49^2))","v":26.944387170614959},{"$f":"CE23+CE24+CE25+CE47+CE48+CE49","v":0},{"$f":"SQRT((CF23^2)+(CF24^2)+(CF25^2)+(CF47^2)+(CF48^2)+(CF49^2))","v":26.944387170614959},{"$f":"CG23+CG24+CG25+CG47+CG48+CG49","v":4},{"$f":"SQRT((CH23^2)+(CH24^2)+(CH25^2)+(CH47^2)+(CH48^2)+(CH49^2))","v":24.919871588754223},{"$f":"CI23+CI24+CI25+CI47+CI48+CI49","v":267},{"$f":"SQRT((CJ23^2)+(CJ24^2)+(CJ25^2)+(CJ47^2)+(CJ48^2)+(CJ49^2))","v":62.385895841928885}]
[null,"65 to 74 yrs.",{"$f":"C26+C27+C28+C50+C51+C52","v":0},{"$f":"SQRT((D26^2)+(D27^2)+(D28^2)+(D50^2)+(D51^2)+(D52^2))","v":26.944387170614959},{"$f":"E26+E27+E28+E50+E51+E52","v":0},{"$f":"SQRT((F26^2)+(F27^2)+(F28^2)+(F50^2)+(F51^2)+(F52^2))","v":26.944387170614959},{"$f":"G26+G27+G28+G50+G51+G52","v":0},{"$f":"SQRT((H26^2)+(H27^2)+(H28^2)+(H50^2)+(H51^2)+(H52^2))","v":26.944387170614959},{"$f":"I26+I27+I28+I50+I51+I52","v":973},{"$f":"SQRT((J26^2)+(J27^2)+(J28^2)+(J50^2)+(J51^2)+(J52^2))","v":158.71357849913159},{"$f":"K26+K27+K28+K50+K51+K52","v":0},{"$f":"SQRT((L26^2)+(L27^2)+(L28^2)+(L50^2)+(L51^2)+(L52^2))","v":26.944387170614959},{"$f":"M26+M27+M28+M50+M51+M52","v":133},{"$f":"SQRT((N26^2)+(N27^2)+(N28^2)+(N50^2)+(N51^2)+(N52^2))","v":33.030289129827487},{"$f":"O26+O27+O28+O50+O51+O52","v":0},{"$f":"SQRT((P26^2)+(P27^2)+(P28^2)+(P50^2)+(P51^2)+(P52^2))","v":26.944387170614959},{"$f":"Q26+Q27+Q28+Q50+Q51+Q52","v":58},{"$f":"SQRT((R26^2)+(R27^2)+(R28^2)+(R50^2)+(R51^2)+(R52^2))","v":20.904544960366874},{"$f":"S26+S27+S28+S50+S51+S52","v":289},{"$f":"SQRT((T26^2)+(T27^2)+(T28^2)+(T50^2)+(T51^2)+(T52^2))","v":70.823724838503097},{"$f":"U26+U27+U28+U50+U51+U52","v":78},{"$f":"SQRT((V26^2)+(V27^2)+(V28^2)+(V50^2)+(V51^2)+(V52^2))","v":21.447610589527216},{"$f":"W26+W27+W28+W50+W51+W52","v":0},{"$f":"SQRT((X26^2)+(X27^2)+(X28^2)+(X50^2)+(X51^2)+(X52^2))","v":26.944387170614959},{"$f":"Y26+Y27+Y28+Y50+Y51+Y52","v":0},{"$f":"SQRT((Z26^2)+(Z27^2)+(Z28^2)+(Z50^2)+(Z51^2)+(Z52^2))","v":26.944387170614959},{"$f":"AA26+AA27+AA28+AA50+AA51+AA52","v":107},{"$f":"SQRT((AB26^2)+(AB27^2)+(AB28^2)+(AB50^2)+(AB51^2)+(AB52^2))","v":35.327043465311391},{"$f":"AC26+AC27+AC28+AC50+AC51+AC52","v":0},{"$f":"SQRT((AD26^2)+(AD27^2)+(AD28^2)+(AD50^2)+(AD51^2)+(AD52^2))","v":26.944387170614959},{"$f":"AE26+AE27+AE28+AE50+AE51+AE52","v":2},{"$f":"SQRT((AF26^2)+(AF27^2)+(AF28^2)+(AF50^2)+(AF51^2)+(AF52^2))","v":22.561028345356956},{"$f":"AG26+AG27+AG28+AG50+AG51+AG52","v":49},{"$f":"SQRT((AH26^2)+(AH27^2)+(AH28^2)+(AH50^2)+(AH51^2)+(AH52^2))","v":15.716233645501712},{"$f":"AI26+AI27+AI28+AI50+AI51+AI52","v":36},{"$f":"SQRT((AJ26^2)+(AJ27^2)+(AJ28^2)+(AJ50^2)+(AJ51^2)+(AJ52^2))","v":20.976176963403031},{"$f":"AK26+AK27+AK28+AK50+AK51+AK52","v":0},{"$f":"SQRT((AL26^2)+(AL27^2)+(AL28^2)+(AL50^2)+(AL51^2)+(AL52^2))","v":26.944387170614959},{"$f":"AM26+AM27+AM28+AM50+AM51+AM52","v":334},{"$f":"SQRT((AN26^2)+(AN27^2)+(AN28^2)+(AN50^2)+(AN51^2)+(AN52^2))","v":91.515026088615627},{"$f":"AO26+AO27+AO28+AO50+AO51+AO52","v":0},{"$f":"SQRT((AP26^2)+(AP27^2)+(AP28^2)+(AP50^2)+(AP51^2)+(AP52^2))","v":26.944387170614959},{"$f":"AQ26+AQ27+AQ28+AQ50+AQ51+AQ52","v":0},{"$f":"SQRT((AR26^2)+(AR27^2)+(AR28^2)+(AR50^2)+(AR51^2)+(AR52^2))","v":26.944387170614959},{"$f":"AS26+AS27+AS28+AS50+AS51+AS52","v":156},{"$f":"SQRT((AT26^2)+(AT27^2)+(AT28^2)+(AT50^2)+(AT51^2)+(AT52^2))","v":36.742346141747674},{"$f":"AU26+AU27+AU28+AU50+AU51+AU52","v":0},{"$f":"SQRT((AV26^2)+(AV27^2)+(AV28^2)+(AV50^2)+(AV51^2)+(AV52^2))","v":26.944387170614959},{"$f":"AW26+AW27+AW28+AW50+AW51+AW52","v":344},{"$f":"SQRT((AX26^2)+(AX27^2)+(AX28^2)+(AX50^2)+(AX51^2)+(AX52^2))","v":81.767964387038518},{"$f":"AY26+AY27+AY28+AY50+AY51+AY52","v":0},{"$f":"SQRT((AZ26^2)+(AZ27^2)+(AZ28^2)+(AZ50^2)+(AZ51^2)+(AZ52^2))","v":26.944387170614959},{"$f":"BA26+BA27+BA28+BA50+BA51+BA52","v":0},{"$f":"SQRT((BB26^2)+(BB27^2)+(BB28^2)+(BB50^2)+(BB51^2)+(BB52^2))","v":26.944387170614959},{"$f":"BC26+BC27+BC28+BC50+BC51+BC52","v":194},{"$f":"SQRT((BD26^2)+(BD27^2)+(BD28^2)+(BD50^2)+(BD51^2)+(BD52^2))","v":42.261093218230876},{"$f":"BE26+BE27+BE28+BE50+BE51+BE52","v":0},{"$f":"SQRT((BF26^2)+(BF27^2)+(BF28^2)+(BF50^2)+(BF51^2)+(BF52^2))","v":26.944387170614959},{"$f":"BG26+BG27+BG28+BG50+BG51+BG52","v":253},{"$f":"SQRT((BH26^2)+(BH27^2)+(BH28^2)+(BH50^2)+(BH51^2)+(BH52^2))","v":53.075418038862395},{"$f":"BI26+BI27+BI28+BI50+BI51+BI52","v":0},{"$f":"SQRT((BJ26^2)+(BJ27^2)+(BJ28^2)+(BJ50^2)+(BJ51^2)+(BJ52^2))","v":26.944387170614959},{"$f":"BK26+BK27+BK28+BK50+BK51+BK52","v":0},{"$f":"SQRT((BL26^2)+(BL27^2)+(BL28^2)+(BL50^2)+(BL51^2)+(BL52^2))","v":26.944387170614959},{"$f":"BM26+BM27+BM28+BM50+BM51+BM52","v":199},{"$f":"SQRT((BN26^2)+(BN27^2)+(BN28^2)+(BN50^2)+(BN51^2)+(BN52^2))","v":45.210618221829257},{"$f":"BO26+BO27+BO28+BO50+BO51+BO52","v":87},{"$f":"SQRT((BP26^2)+(BP27^2)+(BP28^2)+(BP50^2)+(BP51^2)+(BP52^2))","v":21.587033144922902},{"$f":"BQ26+BQ27+BQ28+BQ50+BQ51+BQ52","v":0},{"$f":"SQRT((BR26^2)+(BR27^2)+(BR28^2)+(BR50^2)+(BR51^2)+(BR52^2))","v":26.944387170614959},{"$f":"BS26+BS27+BS28+BS50+BS51+BS52","v":0},{"$f":"SQRT((BT26^2)+(BT27^2)+(BT28^2)+(BT50^2)+(BT51^2)+(BT52^2))","v":26.944387170614959},{"$f":"BU26+BU27+BU28+BU50+BU51+BU52","v":82},{"$f":"SQRT((BV26^2)+(BV27^2)+(BV28^2)+(BV50^2)+(BV51^2)+(BV52^2))","v":24.819347291981714},{"$f":"BW26+BW27+BW28+BW50+BW51+BW52","v":90},{"$f":"SQRT((BX26^2)+(BX27^2)+(BX28^2)+(BX50^2)+(BX51^2)+(BX52^2))","v":26.476404589747453},{"$f":"BY26+BY27+BY28+BY50+BY51+BY52","v":244},{"$f":"SQRT((BZ26^2)+(BZ27^2)+(BZ28^2)+(BZ50^2)+(BZ51^2)+(BZ52^2))","v":62.409935106519697},{"$f":"CA26+CA27+CA28+CA50+CA51+CA52","v":69},{"$f":"SQRT((CB26^2)+(CB27^2)+(CB28^2)+(CB50^2)+(CB51^2)+(CB52^2))","v":21.236760581595302},{"$f":"CC26+CC27+CC28+CC50+CC51+CC52","v":0},{"$f":"SQRT((CD26^2)+(CD27^2)+(CD28^2)+(CD50^2)+(CD51^2)+(CD52^2))","v":26.944387170614959},{"$f":"CE26+CE27+CE28+CE50+CE51+CE52","v":0},{"$f":"SQRT((CF26^2)+(CF27^2)+(CF28^2)+(CF50^2)+(CF51^2)+(CF52^2))","v":26.944387170614959},{"$f":"CG26+CG27+CG28+CG50+CG51+CG52","v":11},{"$f":"SQRT((CH26^2)+(CH27^2)+(CH28^2)+(CH50^2)+(CH51^2)+(CH52^2))","v":17.146428199482248},{"$f":"CI26+CI27+CI28+CI50+CI51+CI52","v":430},{"$f":"SQRT((CJ26^2)+(CJ27^2)+(CJ28^2)+(CJ50^2)+(CJ51^2)+(CJ52^2))","v":90.299501659754469}]
[null,"Over 74 yrs. ",{"$f":"C29+C30+C31+C53+C54+C55","v":0},{"$f":"SQRT((D29^2)+(D30^2)+(D31^2)+(D53^2)+(D54^2)+(D55^2))","v":26.944387170614959},{"$f":"E29+E30+E31+E53+E54+E55","v":0},{"$f":"SQRT((F29^2)+(F30^2)+(F31^2)+(F53^2)+(F54^2)+(F55^2))","v":26.944387170614959},{"$f":"G29+G30+G31+G53+G54+G55","v":0},{"$f":"SQRT((H29^2)+(H30^2)+(H31^2)+(H53^2)+(H54^2)+(H55^2))","v":26.944387170614959},{"$f":"I29+I30+I31+I53+I54+I55","v":939},{"$f":"SQRT((J29^2)+(J30^2)+(J31^2)+(J53^2)+(J54^2)+(J55^2))","v":141.82030884185804},{"$f":"K29+K30+K31+K53+K54+K55","v":0},{"$f":"SQRT((L29^2)+(L30^2)+(L31^2)+(L53^2)+(L54^2)+(L55^2))","v":26.944387170614959},{"$f":"M29+M30+M31+M53+M54+M55","v":61},{"$f":"SQRT((N29^2)+(N30^2)+(N31^2)+(N53^2)+(N54^2)+(N55^2))","v":21.88606862823929},{"$f":"O29+O30+O31+O53+O54+O55","v":0},{"$f":"SQRT((P29^2)+(P30^2)+(P31^2)+(P53^2)+(P54^2)+(P55^2))","v":26.944387170614959},{"$f":"Q29+Q30+Q31+Q53+Q54+Q55","v":15},{"$f":"SQRT((R29^2)+(R30^2)+(R31^2)+(R53^2)+(R54^2)+(R55^2))","v":15.491933384829668},{"$f":"S29+S30+S31+S53+S54+S55","v":205},{"$f":"SQRT((T29^2)+(T30^2)+(T31^2)+(T53^2)+(T54^2)+(T55^2))","v":52.38320341483518},{"$f":"U29+U30+U31+U53+U54+U55","v":78},{"$f":"SQRT((V29^2)+(V30^2)+(V31^2)+(V53^2)+(V54^2)+(V55^2))","v":24.248711305964282},{"$f":"W29+W30+W31+W53+W54+W55","v":0},{"$f":"SQRT((X29^2)+(X30^2)+(X31^2)+(X53^2)+(X54^2)+(X55^2))","v":26.944387170614959},{"$f":"Y29+Y30+Y31+Y53+Y54+Y55","v":0},{"$f":"SQRT((Z29^2)+(Z30^2)+(Z31^2)+(Z53^2)+(Z54^2)+(Z55^2))","v":26.944387170614959},{"$f":"AA29+AA30+AA31+AA53+AA54+AA55","v":55},{"$f":"SQRT((AB29^2)+(AB30^2)+(AB31^2)+(AB53^2)+(AB54^2)+(AB55^2))","v":28.407745422683583},{"$f":"AC29+AC30+AC31+AC53+AC54+AC55","v":0},{"$f":"SQRT((AD29^2)+(AD30^2)+(AD31^2)+(AD53^2)+(AD54^2)+(AD55^2))","v":26.944387170614959},{"$f":"AE29+AE30+AE31+AE53+AE54+AE55","v":0},{"$f":"SQRT((AF29^2)+(AF30^2)+(AF31^2)+(AF53^2)+(AF54^2)+(AF55^2))","v":26.944387170614959},{"$f":"AG29+AG30+AG31+AG53+AG54+AG55","v":38},{"$f":"SQRT((AH29^2)+(AH30^2)+(AH31^2)+(AH53^2)+(AH54^2)+(AH55^2))","v":14.422205101855956},{"$f":"AI29+AI30+AI31+AI53+AI54+AI55","v":30},{"$f":"SQRT((AJ29^2)+(AJ30^2)+(AJ31^2)+(AJ53^2)+(AJ54^2)+(AJ55^2))","v":21.88606862823929},{"$f":"AK29+AK30+AK31+AK53+AK54+AK55","v":0},{"$f":"SQRT((AL29^2)+(AL30^2)+(AL31^2)+(AL53^2)+(AL54^2)+(AL55^2))","v":26.944387170614959},{"$f":"AM29+AM30+AM31+AM53+AM54+AM55","v":326},{"$f":"SQRT((AN29^2)+(AN30^2)+(AN31^2)+(AN53^2)+(AN54^2)+(AN55^2))","v":84.675852520066186},{"$f":"AO29+AO30+AO31+AO53+AO54+AO55","v":0},{"$f":"SQRT((AP29^2)+(AP30^2)+(AP31^2)+(AP53^2)+(AP54^2)+(AP55^2))","v":26.944387170614959},{"$f":"AQ29+AQ30+AQ31+AQ53+AQ54+AQ55","v":0},{"$f":"SQRT((AR29^2)+(AR30^2)+(AR31^2)+(AR53^2)+(AR54^2)+(AR55^2))","v":26.944387170614959},{"$f":"AS29+AS30+AS31+AS53+AS54+AS55","v":44},{"$f":"SQRT((AT29^2)+(AT30^2)+(AT31^2)+(AT53^2)+(AT54^2)+(AT55^2))","v":17.888543819998318},{"$f":"AU29+AU30+AU31+AU53+AU54+AU55","v":0},{"$f":"SQRT((AV29^2)+(AV30^2)+(AV31^2)+(AV53^2)+(AV54^2)+(AV55^2))","v":26.944387170614959},{"$f":"AW29+AW30+AW31+AW53+AW54+AW55","v":393},{"$f":"SQRT((AX29^2)+(AX30^2)+(AX31^2)+(AX53^2)+(AX54^2)+(AX55^2))","v":97.938756373562356},{"$f":"AY29+AY30+AY31+AY53+AY54+AY55","v":0},{"$f":"SQRT((AZ29^2)+(AZ30^2)+(AZ31^2)+(AZ53^2)+(AZ54^2)+(AZ55^2))","v":26.944387170614959},{"$f":"BA29+BA30+BA31+BA53+BA54+BA55","v":0},{"$f":"SQRT((BB29^2)+(BB30^2)+(BB31^2)+(BB53^2)+(BB54^2)+(BB55^2))","v":26.944387170614959},{"$f":"BC29+BC30+BC31+BC53+BC54+BC55","v":58},{"$f":"SQRT((BD29^2)+(BD30^2)+(BD31^2)+(BD53^2)+(BD54^2)+(BD55^2))","v":17.944358444926362},{"$f":"BE29+BE30+BE31+BE53+BE54+BE55","v":4},{"$f":"SQRT((BF29^2)+(BF30^2)+(BF31^2)+(BF53^2)+(BF54^2)+(BF55^2))","v":25.317977802344327},{"$f":"BG29+BG30+BG31+BG53+BG54+BG55","v":154},{"$f":"SQRT((BH29^2)+(BH30^2)+(BH31^2)+(BH53^2)+(BH54^2)+(BH55^2))","v":50.428166732491874},{"$f":"BI29+BI30+BI31+BI53+BI54+BI55","v":0},{"$f":"SQRT((BJ29^2)+(BJ30^2)+(BJ31^2)+(BJ53^2)+(BJ54^2)+(BJ55^2))","v":26.944387170614959},{"$f":"BK29+BK30+BK31+BK53+BK54+BK55","v":0},{"$f":"SQRT((BL29^2)+(BL30^2)+(BL31^2)+(BL53^2)+(BL54^2)+(BL55^2))","v":26.944387170614959},{"$f":"BM29+BM30+BM31+BM53+BM54+BM55","v":54},{"$f":"SQRT((BN29^2)+(BN30^2)+(BN31^2)+(BN53^2)+(BN54^2)+(BN55^2))","v":25.13961017995307},{"$f":"BO29+BO30+BO31+BO53+BO54+BO55","v":38},{"$f":"SQRT((BP29^2)+(BP30^2)+(BP31^2)+(BP53^2)+(BP54^2)+(BP55^2))","v":19.183326093250876},{"$f":"BQ29+BQ30+BQ31+BQ53+BQ54+BQ55","v":0},{"$f":"SQRT((BR29^2)+(BR30^2)+(BR31^2)+(BR53^2)+(BR54^2)+(BR55^2))","v":26.944387170614959},{"$f":"BS29+BS30+BS31+BS53+BS54+BS55","v":0},{"$f":"SQRT((BT29^2)+(BT30^2)+(BT31^2)+(BT53^2)+(BT54^2)+(BT55^2))","v":26.944387170614959},{"$f":"BU29+BU30+BU31+BU53+BU54+BU55","v":48},{"$f":"SQRT((BV29^2)+(BV30^2)+(BV31^2)+(BV53^2)+(BV54^2)+(BV55^2))","v":19.824227601599009},{"$f":"BW29+BW30+BW31+BW53+BW54+BW55","v":67},{"$f":"SQRT((BX29^2)+(BX30^2)+(BX31^2)+(BX53^2)+(BX54^2)+(BX55^2))","v":22.045407685048602},{"$f":"BY29+BY30+BY31+BY53+BY54+BY55","v":151},{"$f":"SQRT((BZ29^2)+(BZ30^2)+(BZ31^2)+(BZ53^2)+(BZ54^2)+(BZ55^2))","v":59.497899122574069},{"$f":"CA29+CA30+CA31+CA53+CA54+CA55","v":61},{"$f":"SQRT((CB29^2)+(CB30^2)+(CB31^2)+(CB53^2)+(CB54^2)+(CB55^2))","v":23.874672772626646},{"$f":"CC29+CC30+CC31+CC53+CC54+CC55","v":0},{"$f":"SQRT((CD29^2)+(CD30^2)+(CD31^2)+(CD53^2)+(CD54^2)+(CD55^2))","v":26.944387170614959},{"$f":"CE29+CE30+CE31+CE53+CE54+CE55","v":0},{"$f":"SQRT((CF29^2)+(CF30^2)+(CF31^2)+(CF53^2)+(CF54^2)+(CF55^2))","v":26.944387170614959},{"$f":"CG29+CG30+CG31+CG53+CG54+CG55","v":8},{"$f":"SQRT((CH29^2)+(CH30^2)+(CH31^2)+(CH53^2)+(CH54^2)+(CH55^2))","v":23.49468024894146},{"$f":"CI29+CI30+CI31+CI53+CI54+CI55","v":275},{"$f":"SQRT((CJ29^2)+(CJ30^2)+(CJ31^2)+(CJ53^2)+(CJ54^2)+(CJ55^2))","v":83.348665256259508}]
[]
[]
[]
[]
[]
[]
[]
[]
[]
[]
[]
[]
[]
[]
[]
[]
[]
[]
[]
[]
[]
[]
[]
[]
[]
[]
[]
[]
[]
[]
[]
[]
[]
[]
[]
[]
[]
[]
[]
[]
[]
[]
[]
[]
[]
[]
[]
[]
[]
[]
[]
[]
[]
[]
[]
[]
[]
[]
[]
[]
[]
[]
[]
[]
[]
[]
[]
[]
[]
[]
[]
[]
[]
[]
[]
[]
[null,"Calculated B01001. GENDER BY AGE"]
[null,"Universe:  TOTAL POPULATION"]
[null,"Data Set: 2010-2014 American Community Survey 5-Year Estimates"]
[]
[null,null,"Atkinson and Gilmanton Grant",null,"Bean's Grant",null,"Bean's Purchase",null,"Berlin",null,"Cambridge",null,"Carroll",null,"Chandler's Purchase",null,"Clarksville",null,"Colebrook",null,"Columbia",null,"Crawford's Purchase",null,"Cutt's Grant",null,"Dalton",null,"Dix's Grant",null,"Dixville",null,"Dummer",null,"Errol",null,"Erving's Location",null,"Gorham",null,"Greens Grant",null,"Hadley's Purchase",null,"Jefferson",null,"Kilkenny",null,"Lancaster",null,"Low and Burbank's Grant",null,"Martin's Location",null,"Milan",null,"Millsfield ",null,"Northumberland",null,"Odell",null,"Pinkham's Grant",null,"Pittsburg",null,"Randolph",null,"Sargent's Purchase",null,"Second College Grant",null,"Shelburne",null,"Stark",null,"Stewartstown",null,"Stratford",null,"Success",null,"Thompson and Meserves Purchase",null,"Wentworth's Location",null,"Whitefield"]
[null,null,"Estimate","Margin Of Error","Estimate","Margin Of Error","Estimate","Margin Of Error","Estimate","Margin Of Error","Estimate","Margin Of Error","Estimate","Margin Of Error","Estimate","Margin Of Error","Estimate","Margin Of Error","Estimate","Margin Of Error","Estimate","Margin Of Error","Estimate","Margin Of Error","Estimate","Margin Of Error","Estimate","Margin Of Error","Estimate","Margin Of Error","Estimate","Margin Of Error","Estimate","Margin Of Error","Estimate","Margin Of Error","Estimate","Margin Of Error","Estimate","Margin Of Error","Estimate","Margin Of Error","Estimate","Margin Of Error","Estimate","Margin Of Error","Estimate","Margin Of Error","Estimate","Margin Of Error","Estimate","Margin Of Error","Estimate","Margin Of Error","Estimate","Margin Of Error","Estimate","Margin Of Error","Estimate","Margin Of Error","Estimate","Margin Of Error","Estimate","Margin Of Error","Estimate","Margin Of Error","Estimate","Margin Of Error","Estimate","Margin Of Error","Estimate","Margin Of Error","Estimate","Margin Of Error","Estimate","Margin Of Error","Estimate","Margin Of Error","Estimate","Margin Of Error","Estimate","Margin Of Error","Estimate","Margin Of Error","Estimate","Margin Of Error","Estimate","Margin Of Error"]
[null,"Total",0,11,0,11,0,11,9710,27,17,16,991,165,0,11,315,75,2340,210,726,132,0,11,0,11,933,154,22,22,30,37,348,76,301,70,0,11,2765,15,8,17,0,11,0,11,0,11,3437,22,0,11,0,11,20,16,21,19,0,11,0,11,8,6,875,130,424,74,9,12,0,11,358,66,490,94,811,129,0,11,0,11,0,11,62,33,2134,217]
[null,"Under 15 yrs.",0,26.944387170614959,0,26.944387170614959,0,26.944387170614959,1319,193.37011144434913,0,26.944387170614959,160,58.770741019660456,0,26.944387170614959,49,20.199009876724155,364,79.189645787817483,90,28.809720581775867,0,26.944387170614959,0,26.944387170614959,105,38.691084244306204,0,26.944387170614959,0,26.944387170614959,60,32.634337744161442,15,18.973665961010276,0,26.944387170614959,431,105.51777101512333,0,26.944387170614959,0,26.944387170614959,0,26.944387170614959,0,26.944387170614959,576,131.79529581893277,0,26.944387170614959,0,26.944387170614959,5,20.09975124224178,7,20.09975124224178,0,26.944387170614959,0,26.944387170614959,0,26.944387170614959,49,30.066592756745816,41,25.03996805109783,0,26.944387170614959,0,26.944387170614959,45,22.338307903688676,68,26.589471600616662,80,39.102429592034305,0,26.944387170614959,0,26.944387170614959,0,26.944387170614959,0,26.944387170614959,330,75.299402388066795]
[null,"15 to 24 yrs.",0,34.785054261852174,0,34.785054261852174,0,34.785054261852174,1058,167.49626861515452,0,34.785054261852174,163,84.899941107164494,0,34.785054261852174,9,29.597297173897484,162,68.447059834590405,82,35.383612025908263,0,34.785054261852174,0,34.785054261852174,81,37.629775444453557,1,33.136083051561783,1,33.136083051561783,31,24.979991993593593,22,33.660065359413672,0,34.785054261852174,310,101.0099005048515,0,34.785054261852174,0,34.785054261852174,0,34.785054261852174,0,34.785054261852174,389,94.466925428956344,0,34.785054261852174,0,34.785054261852174,2,33.136083051561783,2,33.241540277189323,0,34.785054261852174,0,34.785054261852174,4,31.937438845342623,56,35.213633723318019,39,23.53720459187964,0,34.785054261852174,0,34.785054261852174,31,23.622023622035432,63,26.720778431774775,85,48.031239834091309,0,34.785054261852174,0,34.785054261852174,0,34.785054261852174,18,33.391615714128001,113,39.370039370059054]
[null,"25 to 34 yrs.",0,22,0,22,0,22,1193,180.98066195038629,0,22,88,41.460824883255761,0,22,18,13.076696830622021,168,57.148928248918196,38,16.431676725154983,0,22,0,22,95,44.609416046390926,5,16.941074346097416,4,17.146428199482248,7,13.038404810405298,22,16.763054614240211,0,22,270,85.404917891184695,4,21.071307505705477,0,22,0,22,0,22,256,95.613806534412177,0,22,0,22,4,16.552945357246848,4,16.552945357246848,0,22,0,22,0,22,45,30.14962686336267,20,11.916375287812984,0,22,0,22,24,15.716233645501712,23,18.220867158288598,68,34.727510708370673,0,22,0,22,0,22,1,19.28730152198591,337,78.217645068104673]
[null,"35 to 44 yrs.",0,22,0,22,0,22,1394,295.33201655086435,6,17.406895185529212,152,61.878914017619927,0,22,20,14.66287829861518,285,63.26136261573884,114,35.846896657869841,0,22,0,22,88,35.042830935870462,3,16.340134638368191,2,19.467922333931785,57,26.172504656604801,28,17.916472867168917,0,22,327,91.831367190083796,0,22,0,22,0,22,0,22,409,113.76730637577739,0,22,0,22,2,19.28730152198591,2,19.28730152198591,0,22,0,22,0,22,77,31.080540535840107,61,24.79919353527449,0,22,0,22,41,20.322401432901575,52,22.158519806160339,32,20.149441679609886,0,22,0,22,0,22,5,20.297783130184438,234,62.521996129362343]
[null,"45 to 54 yrs.",0,22,0,22,0,22,1309,167.76769653303344,0,22,59,27.694764848252458,0,22,72,22.869193252058544,370,70.774289116881988,138,52.725705305856273,0,22,0,22,170,45.232731511594565,3,19.974984355438178,3,20.297783130184438,43,16.06237840420901,58,21.517434791350013,0,22,500,93.584186698394717,0,22,0,22,0,22,0,22,585,127.251719045363,0,22,0,22,0,22,4,19.974984355438178,0,22,0,22,4,16.340134638368191,157,47.455242070818692,50,17.233687939614086,0,22,0,22,34,13.19090595827292,102,31.432467291003423,118,41.400483088968905,0,22,0,22,0,22,12,15.394804318340652,376,75.8814865431615]
[null,"55 to 64 yrs.",0,26.944387170614959,0,26.944387170614959,0,26.944387170614959,1440,186.74849396983097,6,23.280893453645632,167,71.63099887618489,0,26.944387170614959,66,25.238858928247925,484,89.66604708583958,100,26.739483914241877,0,26.944387170614959,0,26.944387170614959,149,39.937451095431719,1,24.677925358506133,1,24.779023386727733,68,19.544820285692065,61,21.563858652847824,0,26.944387170614959,454,88.713020464867498,4,26.19160170741759,0,26.944387170614959,0,26.944387170614959,0,26.944387170614959,590,120.65239326262865,0,26.944387170614959,0,26.944387170614959,7,23.280893453645632,2,24.779023386727733,0,26.944387170614959,0,26.944387170614959,0,26.944387170614959,252,56.480084985771754,86,21.236760581595302,9,23.853720883753127,0,26.944387170614959,95,22.045407685048602,72,22.405356502408079,130,41.085277168348277,0,26.944387170614959,0,26.944387170614959,0,26.944387170614959,12,21.377558326431949,355,72.656727148970859]
[null,"65 to 74 yrs.",0,26.944387170614959,0,26.944387170614959,0,26.944387170614959,802,123.8587905640936,0,26.944387170614959,162,41.048751503547585,0,26.944387170614959,45,21.77154105707724,388,93.669632218771952,109,30.380915061926625,0,26.944387170614959,0,26.944387170614959,154,33.911649915626342,9,31.701734968294716,2,24.919871588754223,57,17.320508075688775,61,21.166010488516726,0,26.944387170614959,203,62.497999967998979,0,26.944387170614959,0,26.944387170614959,0,26.944387170614959,0,26.944387170614959,386,93.573500522316678,0,26.944387170614959,0,26.944387170614959,0,26.944387170614959,0,26.944387170614959,0,26.944387170614959,0,26.944387170614959,0,26.944387170614959,159,38.052595180880893,69,17.549928774784245,0,26.944387170614959,0,26.944387170614959,41,13.964240043768941,61,22.561028345356956,193,54.506880299646575,0,26.944387170614959,0,26.944387170614959,0,26.944387170614959,14,19.974984355438178,179,56.595052787324086]
[null,"Over 74 yrs. ",0,26.944387170614959,0,26.944387170614959,0,26.944387170614959,1195,162.82813024781683,5,25.573423705088842,40,24.289915602982237,0,26.944387170614959,36,19.078784028338912,119,37.735924528226413,55,23.57965224510319,0,26.944387170614959,0,26.944387170614959,91,25.709920264364882,0,26.944387170614959,17,18.601075237738275,25,21.447610589527216,34,22.248595461286989,0,26.944387170614959,270,87.4414089547967,0,26.944387170614959,0,26.944387170614959,0,26.944387170614959,0,26.944387170614959,246,113.19893992436502,0,26.944387170614959,0,26.944387170614959,0,26.944387170614959,0,26.944387170614959,0,26.944387170614959,0,26.944387170614959,0,26.944387170614959,80,31.874754901018456,58,16.093476939431081,0,26.944387170614959,0,26.944387170614959,47,15.684387141358123,49,20.73644135332772,105,45.519226706964169,0,26.944387170614959,0,26.944387170614959,0,26.944387170614959,0,26.944387170614959,210,80.386566041845569]
[]
[]
[]
[]
[]
[]
[]
[]
[]
[]
[]
[]
[]
[]
[]
[]
[]
[]
[]
[]
[]
[]
[]
[]
[]
[]
[]
[]
[]
[]
[]
[]
[]
[]
[]
[]
[]
[]
[]
[]
[]
[]
[]
[]
[]
[]
[]
[]
[]
[]
[]
[]
[]
[]
[]
[]
[]
[]
[]
[]
[]
[]
[]
[]
[]
[]
[]
[]
[]
[]
[]
[]
[]
[]
[]
[]
[null,"Calculated B01001. GENDER BY AGE"]
[null,"Universe:  TOTAL POPULATION"]
[null,"Data Set: 2005-2009 American Community Survey 5-Year Estimates"]
[]
[null,null,"Atkinson and Gilmanton Grant",null,"Bean's Grant",null,"Bean's Purchase",null,"Berlin",null,"Cambridge",null,"Carroll",null,"Chandler's Purchase",null,"Clarksville",null,"Colebrook",null,"Columbia",null,"Crawford's Purchase",null,"Cutt's Grant",null,"Dalton",null,"Dix's Grant",null,"Dixville",null,"Dummer",null,"Errol",null,"Erving's Location",null,"Gorham",null,"Greens Grant",null,"Hadley's Purchase",null,"Jefferson",null,"Kilkenny",null,"Lancaster",null,"Low and Burbank's Grant",null,"Martin's Location",null,"Milan",null,"Millsfield ",null,"Northumberland",null,"Odell",null,"Pinkham's Grant",null,"Pittsburg",null,"Randolph",null,"Sargent's Purchase",null,"Second College Grant",null,"Shelburne",null,"Stark",null,"Stewartstown",null,"Stratford",null,"Success",null,"Thompson and Meserves Purchase",null,"Wentworth's Location",null,"Whitefield"]
[null,null,"Estimate","Margin Of Error","Estimate","Margin Of Error","Estimate","Margin Of Error","Estimate","Margin Of Error","Estimate","Margin Of Error","Estimate","Margin Of Error","Estimate","Margin Of Error","Estimate","Margin Of Error","Estimate","Margin Of Error","Estimate","Margin Of Error","Estimate","Margin Of Error","Estimate","Margin Of Error","Estimate","Margin Of Error","Estimate","Margin Of Error","Estimate","Margin Of Error","Estimate","Margin Of Error","Estimate","Margin Of Error","Estimate","Margin Of Error","Estimate","Margin Of Error","Estimate","Margin Of Error","Estimate","Margin Of Error","Estimate","Margin Of Error","Estimate","Margin Of Error","Estimate","Margin Of Error","Estimate","Margin Of Error","Estimate","Margin Of Error","Estimate","Margin Of Error","Estimate","Margin Of Error","Estimate","Margin Of Error","Estimate","Margin Of Error","Estimate","Margin Of Error","Estimate","Margin Of Error","Estimate","Margin Of Error","Estimate","Margin Of Error","Estimate","Margin Of Error","Estimate","Margin Of Error","Estimate","Margin Of Error","Estimate","Margin Of Error","Estimate","Margin Of Error","Estimate","Margin Of Error","Estimate","Margin Of Error","Estimate","Margin Of Error","Estimate","Margin Of Error"]
[null,"Total",0,114,0,114,0,114,9673,21,0,114,568,113,0,114,330,79,2141,252,841,189,0,114,0,114,1158,145,0,114,125,169,351,127,253,71,0,114,2816,26,0,114,0,114,937,108,0,114,3264,17,0,114,0,114,1271,112,4,5,2249,245,0,114,0,114,773,138,346,83,0,114,0,114,427,81,540,139,969,185,1013,190,0,114,0,114,43,25,2125,235]
[null,"Under 15 yrs.",0,279.24183067728228,0,279.24183067728228,0,279.24183067728228,1425,179.09773867919159,0,279.24183067728228,12,197.64867821465441,0,279.24183067728228,43,116.62761251093156,308,90.316111519484721,153,63.198101237299845,0,279.24183067728228,0,279.24183067728228,204,48.785243670601872,0,279.24183067728228,6,255.00784301664135,52,37.242448899072144,35,163.88105442667862,0,279.24183067728228,550,140.05713120009278,0,279.24183067728228,0,279.24183067728228,146,42.023802778901391,0,279.24183067728228,736,141.96126232180384,0,279.24183067728228,0,279.24183067728228,183,38.587562763149478,0,279.24183067728228,335,99.362970970075168,0,279.24183067728228,0,279.24183067728228,90,39.799497484264798,20,161.98148042291749,0,279.24183067728228,0,279.24183067728228,49,21.283796653792763,49,28.442925306655784,204,59.715994507334464,200,56.017854296643669,0,279.24183067728228,0,279.24183067728228,6,228.08989455914087,309,75.729782780620724]
[null,"15 to 24 yrs.",0,360.49965325919527,0,360.49965325919527,0,360.49965325919527,1160,196.11221277625725,0,360.49965325919527,77,200.60408769514146,0,360.49965325919527,19,301.88408371426277,293,161.13038198924497,75,281.60433235303748,0,360.49965325919527,0,360.49965325919527,164,58.068924563831899,0,360.49965325919527,0,360.49965325919527,21,228.19290085364182,4,322.479456710036,0,360.49965325919527,297,173.1040149736568,0,360.49965325919527,0,360.49965325919527,52,198.7058126980688,0,360.49965325919527,522,142.59032225224823,0,360.49965325919527,0,360.49965325919527,121,117.74548823628021,0,360.49965325919527,347,155.94870951694341,0,360.49965325919527,0,360.49965325919527,28,279.89105023205013,34,198.39606850943392,0,360.49965325919527,0,360.49965325919527,26,228.38126017692431,68,200.0524931111832,78,199.90497742677644,80,200.97761069333072,0,360.49965325919527,0,360.49965325919527,0,360.49965325919527,174,170.2233826476257]
[null,"25 to 34 yrs.",0,228,0,228,0,228,968,120.7890723534211,0,228,35,115.91807451816995,0,228,14,10.816653826391969,212,63.694583757176716,68,33.25657829663178,0,228,0,228,67,26.362852652928137,0,228,0,228,17,9.5916630466254382,22,12.206555615733702,0,228,268,105.72606112023658,0,228,0,228,82,31.32091952673165,0,228,238,83.594258176025463,0,228,0,228,101,25.099800796022265,0,228,239,65.878676368002417,0,228,0,228,42,23.2379000772445,20,115.16509887982556,0,228,0,228,26,14.832396974191326,24,16.552945357246848,112,40.01249804748511,119,44.743714642394188,0,228,0,228,3,197.49430371532239,243,60.786511661716531]
[null,"35 to 44 yrs.",0,228,0,228,0,228,1203,190.98167451355116,0,228,66,31.432467291003423,0,228,61,23.043437243605826,242,83.438600180012614,101,47.339201514178498,0,228,0,228,208,55.991070716677676,0,228,15,114.54693361238441,23,11.135528725660043,41,21.213203435596427,0,228,500,125.0799744163709,0,228,0,228,169,44.35087372307337,0,228,528,118.38496526164123,0,228,0,228,198,36.932370625238775,0,228,247,70.014284256857181,0,228,0,228,79,31.128764832546761,10,114.24972647669665,0,228,0,228,72,33.25657829663178,61,32.969683043669072,107,39.11521443121589,128,49.527769988159172,0,228,0,228,6,161.44348856488452,275,78.064076245094967]
[null,"45 to 54 yrs.",0,228,0,228,0,228,1653,179.85827754095723,0,228,117,34.770677301427419,0,228,50,20.952326839756964,280,91.755108849589405,180,54.359911699707531,0,228,0,228,191,53.207142377692115,0,228,0,228,92,49.889878733065686,36,19.974984355438178,0,228,465,101.31633629380802,0,228,0,228,163,40.902322672435119,0,228,486,108.1387996974259,0,228,0,228,283,46.281745861624536,4,197.51708786836647,413,86.046499057195817,0,228,0,228,153,44.158804331639232,59,22.315913604421397,0,228,0,228,124,35.071355833500363,122,37.17526059088221,167,43.554563480765133,105,37.416573867739416,0,228,0,228,16,114.66908912169835,351,79.818544211229508]
[null,"55 to 64 yrs.",0,279.24183067728228,0,279.24183067728228,0,279.24183067728228,1092,175.71567943698139,0,279.24183067728228,173,50.941142507800116,0,279.24183067728228,70,116.98717878468563,418,114.44212511134175,134,48.723710860319329,0,279.24183067728228,0,279.24183067728228,174,43.439613257946945,0,279.24183067728228,0,279.24183067728228,70,45.71651780264984,48,18.841443681416774,0,279.24183067728228,347,82.794927380848634,0,279.24183067728228,0,279.24183067728228,160,41.388404173149752,0,279.24183067728228,343,86.694867206772969,0,279.24183067728228,0,279.24183067728228,206,35.707142142714247,0,279.24183067728228,291,73.939164182454761,0,279.24183067728228,0,279.24183067728228,163,46.679760067935227,93,30.28200785945344,0,279.24183067728228,0,279.24183067728228,70,21.88606862823929,98,35.057096285916209,118,35.440090293338699,205,58.625932828399414,0,279.24183067728228,0,279.24183067728228,0,279.24183067728228,267,68.912988616080199]
[null,"65 to 74 yrs.",0,279.24183067728228,0,279.24183067728228,0,279.24183067728228,850,145.26871652217486,0,279.24183067728228,68,27.073972741361768,0,279.24183067728228,49,116.98717878468563,157,69.339743293438858,105,41.267420563926699,0,279.24183067728228,0,279.24183067728228,99,29.32575659723036,0,279.24183067728228,0,279.24183067728228,54,15.620499351813308,64,20.420577856662138,0,279.24183067728228,115,126.21806526801146,0,279.24183067728228,0,279.24183067728228,125,32.726136343907143,0,279.24183067728228,249,80.386566041845569,0,279.24183067728228,0,279.24183067728228,115,33,0,279.24183067728228,192,128.29263423907079,0,279.24183067728228,0,279.24183067728228,166,45.299006611624499,75,29.8496231131986,0,279.24183067728228,0,279.24183067728228,38,18.841443681416774,89,29.966648127543394,109,39.698866482558415,123,48.145612468842891,0,279.24183067728228,0,279.24183067728228,4,254.98235233050934,205,67.845412519933873]
[null,"Over 74 yrs. ",0,279.24183067728228,0,279.24183067728228,0,279.24183067728228,1322,225.12218904408334,0,279.24183067728228,20,114.72575996697516,0,279.24183067728228,24,114.84772527133482,231,70.880180586677398,25,162.00617272190587,0,279.24183067728228,0,279.24183067728228,51,19.339079605813716,0,279.24183067728228,104,75.359140122482813,22,161.72198366332265,3,254.94313091354314,0,279.24183067728228,274,76.439518575145414,0,279.24183067728228,0,279.24183067728228,40,16.093476939431081,0,279.24183067728228,162,61.424750711744856,0,279.24183067728228,0,279.24183067728228,64,20.199009876724155,0,279.24183067728228,185,52.354560450833695,0,279.24183067728228,0,279.24183067728228,52,116.38728452885221,35,16.733200530681511,0,279.24183067728228,0,279.24183067728228,22,114.54256850621083,29,197.9747458642137,74,117.38824472663352,53,117.6817742898194,0,279.24183067728228,0,279.24183067728228,8,255.10782034269354,301,86.706401147781477]

{"sheet":"ACS_Table_B01002","index":23,"n_rows":49,"n_cols":88,"rows_kept":49,"cut":false,"hidden":true,"merged":[[64918,24,64918,25],[64918,26,64918,27],[64918,28,64918,29],[64918,30,64918,31],[64918,32,64918,33],[64918,34,64918,35],[64918,36,64918,37],[64918,38,64918,39],[64918,40,64918,41],[64918,42,64918,43],[64918,44,64918,45],[64918,46,64918,47],[64918,48,64918,49],[64918,50,64918,51],[64918,52,64918,53],[64918,54,64918,55],[64918,56,64918,57],[64918,58,64918,59],[64918,60,64918,61],[64918,62,64918,63],[64918,64,64918,65],[64918,66,64918,67],[64918,68,64918,69],[64918,70,64918,71],[64918,72,64918,73],[64918,74,64918,75],[64918,76,64918,77],[64918,78,64918,79],[64918,80,64918,81],[64918,82,64918,83],[64918,84,64918,85],[64918,86,64918,87],[64938,24,64938,25],[64938,26,64938,27],[64938,28,64938,29],[64938,30,64938,31],[64938,32,64938,33],[64938,34,64938,35],[64938,36,64938,37],[64938,38,64938,39],[64938,40,64938,41],[64938,42,64938,43],[64938,44,64938,45],[64938,46,64938,47],[64938,48,64938,49],[64938,50,64938,51],[64938,52,64938,53],[64938,54,64938,55],[64938,56,64938,57],[64938,58,64938,59],[64938,60,64938,61],[64938,62,64938,63],[64938,64,64938,65],[64938,66,64938,67],[64938,68,64938,69],[64938,70,64938,71],[64938,84,64938,85],[64938,86,64938,87],[64938,72,64938,73],[64938,74,64938,75],[64938,76,64938,77],[64938,78,64938,79],[64938,80,64938,81],[64938,82,64938,83],[64836,24,64836,25],[64836,26,64836,27],[64836,28,64836,29],[64836,30,64836,31],[64836,32,64836,33],[64836,34,64836,35],[64836,36,64836,37],[64836,38,64836,39],[64836,40,64836,41],[64836,42,64836,43],[64836,44,64836,45],[64836,46,64836,47],[64836,48,64836,49],[64836,50,64836,51],[64836,52,64836,53],[64836,54,64836,55],[64836,56,64836,57],[64836,58,64836,59],[64836,60,64836,61],[64836,62,64836,63],[64836,64,64836,65],[64836,66,64836,67],[64836,68,64836,69],[64836,70,64836,71],[64836,72,64836,73],[64836,74,64836,75],[64836,76,64836,77],[64836,78,64836,79],[64836,80,64836,81],[64836,82,64836,83],[64836,84,64836,85],[64836,86,64836,87],[64856,24,64856,25],[64856,26,64856,27],[64856,28,64856,29],[64856,30,64856,31],[64856,32,64856,33],[64856,34,64856,35],[64856,36,64856,37],[64856,38,64856,39],[64856,40,64856,41],[64856,42,64856,43],[64856,44,64856,45],[64856,46,64856,47],[64856,48,64856,49],[64856,50,64856,51],[64856,52,64856,53],[64856,54,64856,55],[64856,56,64856,57],[64856,58,64856,59],[64856,60,64856,61],[64856,62,64856,63],[64856,64,64856,65],[64856,66,64856,67],[64856,68,64856,69],[64856,70,64856,71],[64856,72,64856,73],[64856,74,64856,75],[64856,76,64856,77],[64856,78,64856,79],[64856,80,64856,81],[64856,82,64856,83],[64856,84,64856,85],[64856,86,64856,87],[64754,24,64754,25],[64754,26,64754,27],[64754,28,64754,29],[64754,30,64754,31],[64754,32,64754,33],[64754,34,64754,35],[64754,36,64754,37],[64754,38,64754,39],[64754,40,64754,41],[64754,42,64754,43],[64754,44,64754,45],[64754,46,64754,47],[64754,48,64754,49],[64754,50,64754,51],[64754,52,64754,53],[64754,54,64754,55],[64754,56,64754,57],[64754,58,64754,59],[64754,60,64754,61],[64754,62,64754,63],[64754,64,64754,65],[64754,66,64754,67],[64754,68,64754,69],[64754,70,64754,71],[64754,72,64754,73],[64754,74,64754,75],[64754,76,64754,77],[64754,78,64754,79],[64754,80,64754,81],[64754,82,64754,83],[64754,84,64754,85],[64754,86,64754,87],[64774,24,64774,25],[64774,26,64774,27],[64774,28,64774,29],[64774,30,64774,31],[64774,32,64774,33],[64774,34,64774,35],[64774,36,64774,37],[64774,38,64774,39],[64774,40,64774,41],[64774,42,64774,43],[64774,44,64774,45],[64774,46,64774,47],[64774,48,64774,49],[64774,50,64774,51],[64774,52,64774,53],[64774,54,64774,55],[64774,56,64774,57],[64774,58,64774,59],[64774,60,64774,61],[64774,62,64774,63],[64774,64,64774,65],[64774,66,64774,67],[64774,68,64774,69],[64774,70,64774,71],[64774,72,64774,73],[64774,74,64774,75],[64774,76,64774,77],[64774,78,64774,79],[64774,80,64774,81],[64774,82,64774,83],[64774,84,64774,85],[64774,86,64774,87],[64672,24,64672,25],[64672,26,64672,27],[64672,28,64672,29],[64672,30,64672,31],[64672,32,64672,33],[64672,34,64672,35],[64672,36,64672,37],[64672,38,64672,39],[64672,40,64672,41],[64672,42,64672,43],[64672,44,64672,45],[64672,46,64672,47],[64672,48,64672,49],[64672,50,64672,51],[64672,52,64672,53],[64672,54,64672,55],[64672,56,64672,57],[64672,58,64672,59],[64672,60,64672,61],[64672,62,64672,63],[64672,64,64672,65],[64672,66,64672,67],[64672,68,64672,69],[64672,70,64672,71],[64672,72,64672,73],[64672,74,64672,75],[64672,76,64672,77],[64672,78,64672,79],[64672,80,64672,81],[64672,82,64672,83],[64672,84,64672,85],[64672,86,64672,87],[64692,24,64692,25],[64692,26,64692,27],[64692,28,64692,29],[64692,30,64692,31],[64692,32,64692,33],[64692,34,64692,35],[64692,36,64692,37],[64692,38,64692,39],[64692,40,64692,41],[64692,42,64692,43],[64692,44,64692,45],[64692,46,64692,47],[64692,48,64692,49],[64692,50,64692,51],[64692,52,64692,53],[64692,54,64692,55],[64692,56,64692,57],[64692,58,64692,59],[64692,60,64692,61],[64692,62,64692,63],[64692,64,64692,65],[64692,66,64692,67],[64692,68,64692,69],[64692,70,64692,71],[64692,72,64692,73],[64692,74,64692,75],[64692,76,64692,77],[64692,78,64692,79],[64692,80,64692,81],[64692,82,64692,83],[64692,84,64692,85],[64692,86,64692,87],[64590,24,64590,25],[64590,26,64590,27],[64590,28,64590,29],[64590,30,64590,31],[64590,32,64590,33],[64590,34,64590,35],[64590,36,64590,37],[64590,38,64590,39],[64590,40,64590,41],[64590,42,64590,43],[64590,44,64590,45],[64590,46,64590,47],[64590,48,64590,49],[64590,50,64590,51],[64590,52,64590,53],[64590,54,64590,55],[64590,56,64590,57],[64590,58,64590,59],[64590,60,64590,61],[64590,62,64590,63],[64590,64,64590,65],[64590,66,64590,67],[64590,68,64590,69],[64590,70,64590,71],[64590,72,64590,73],[64590,74,64590,75],[64590,76,64590,77],[64590,78,64590,79],[64590,80,64590,81],[64590,82,64590,83],[64590,84,64590,85],[64590,86,64590,87],[64610,24,64610,25],[64610,26,64610,27],[64610,28,64610,29],[64610,30,64610,31],[64610,32,64610,33],[64610,34,64610,35],[64610,36,64610,37],[64610,38,64610,39],[64610,40,64610,41],[64610,42,64610,43],[64610,44,64610,45],[64610,46,64610,47],[64610,48,64610,49],[64610,50,64610,51],[64610,52,64610,53],[64610,54,64610,55],[64610,56,64610,57],[64610,58,64610,59],[64610,60,64610,61],[64610,62,64610,63],[64610,64,64610,65],[64610,66,64610,67],[64610,68,64610,69],[64610,70,64610,71],[64610,72,64610,73],[64610,74,64610,75],[64610,76,64610,77],[64610,78,64610,79],[64610,80,64610,81],[64610,82,64610,83],[64610,84,64610,85],[64610,86,64610,87],[64508,24,64508,25],[64508,26,64508,27],[64508,28,64508,29],[64508,30,64508,31],[64508,32,64508,33],[64508,34,64508,35],[64508,36,64508,37],[64508,38,64508,39],[64508,40,64508,41],[64508,42,64508,43],[64508,44,64508,45],[64508,46,64508,47],[64508,48,64508,49],[64508,50,64508,51],[64508,52,64508,53],[64508,54,64508,55],[64508,56,64508,57],[64508,58,64508,59],[64508,60,64508,61],[64508,62,64508,63],[64508,64,64508,65],[64508,66,64508,67],[64508,68,64508,69],[64508,70,64508,71],[64508,72,64508,73],[64508,74,64508,75],[64508,76,64508,77],[64508,78,64508,79],[64508,80,64508,81],[64508,82,64508,83],[64508,84,64508,85],[64508,86,64508,87],[64528,24,64528,25],[64528,26,64528,27],[64528,28,64528,29],[64528,30,64528,31],[64528,32,64528,33],[64528,34,64528,35],[64528,36,64528,37],[64528,38,64528,39],[64528,40,64528,41],[64528,42,64528,43],[64528,44,64528,45],[64528,46,64528,47],[64528,48,64528,49],[64528,50,64528,51],[64528,52,64528,53],[64528,54,64528,55],[64528,56,64528,57],[64528,58,64528,59],[64528,60,64528,61],[64528,62,64528,63],[64528,64,64528,65],[64528,66,64528,67],[64528,68,64528,69],[64528,70,64528,71],[64528,72,64528,73],[64528,74,64528,75],[64528,76,64528,77],[64528,78,64528,79],[64528,80,64528,81],[64528,82,64528,83],[64528,84,64528,85],[64528,86,64528,87],[64426,24,64426,25],[64426,26,64426,27],[64426,28,64426,29],[64426,30,64426,31],[64426,32,64426,33],[64426,34,64426,35],[64426,36,64426,37],[64426,38,64426,39],[64426,40,64426,41],[64426,42,64426,43],[64426,44,64426,45],[64426,46,64426,47],[64426,48,64426,49],[64426,50,64426,51],[64426,52,64426,53],[64426,54,64426,55],[64426,56,64426,57],[64426,58,64426,59],[64426,60,64426,61],[64426,62,64426,63],[64426,64,64426,65],[64426,66,64426,67],[64426,68,64426,69],[64426,70,64426,71],[64426,72,64426,73],[64426,74,64426,75],[64426,76,64426,77],[64426,78,64426,79],[64426,80,64426,81],[64426,82,64426,83],[64426,84,64426,85],[64426,86,64426,87],[64446,24,64446,25],[64446,26,64446,27],[64446,28,64446,29],[64446,30,64446,31],[64446,32,64446,33],[64446,34,64446,35],[64446,36,64446,37],[64446,38,64446,39],[64446,40,64446,41],[64446,42,64446,43],[64446,44,64446,45],[64446,46,64446,47],[64446,48,64446,49],[64446,50,64446,51],[64446,52,64446,53],[64446,54,64446,55],[64446,56,64446,57],[64446,58,64446,59],[64446,60,64446,61],[64446,62,64446,63],[64446,64,64446,65],[64446,66,64446,67],[64446,68,64446,69],[64446,70,64446,71],[64446,72,64446,73],[64446,74,64446,75],[64446,76,64446,77],[64446,78,64446,79],[64446,80,64446,81],[64446,82,64446,83],[64446,84,64446,85],[64446,86,64446,87],[64344,24,64344,25],[64344,26,64344,27],[64344,28,64344,29],[64344,30,64344,31],[64344,32,64344,33],[64344,34,64344,35],[64344,36,64344,37],[64344,38,64344,39],[64344,40,64344,41],[64344,42,64344,43],[64344,44,64344,45],[64344,46,64344,47],[64344,48,64344,49],[64344,50,64344,51],[64344,52,64344,53],[64344,54,64344,55],[64344,56,64344,57],[64344,58,64344,59],[64344,60,64344,61],[64344,62,64344,63],[64344,64,64344,65],[64344,66,64344,67],[64344,68,64344,69],[64344,70,64344,71],[64344,72,64344,73],[64344,74,64344,75],[64344,76,64344,77],[64344,78,64344,79],[64344,80,64344,81],[64344,82,64344,83],[64344,84,64344,85],[64344,86,64344,87],[64364,24,64364,25],[64364,26,64364,27],[64364,28,64364,29],[64364,30,64364,31],[64364,32,64364,33],[64364,34,64364,35],[64364,36,64364,37],[64364,38,64364,39],[64364,40,64364,41],[64364,42,64364,43],[64364,44,64364,45],[64364,46,64364,47],[64364,48,64364,49],[64364,50,64364,51],[64364,52,64364,53],[64364,54,64364,55],[64364,56,64364,57],[64364,58,64364,59],[64364,60,64364,61],[64364,62,64364,63],[64364,64,64364,65],[64364,66,64364,67],[64364,68,64364,69],[64364,70,64364,71],[64364,72,64364,73],[64364,74,64364,75],[64364,76,64364,77],[64364,78,64364,79],[64364,80,64364,81],[64364,82,64364,83],[64364,84,64364,85],[64364,86,64364,87],[64262,24,64262,25],[64262,26,64262,27],[64262,28,64262,29],[64262,30,64262,31],[64262,32,64262,33],[64262,34,64262,35],[64262,36,64262,37],[64262,38,64262,39],[64262,40,64262,41],[64262,42,64262,43],[64262,44,64262,45],[64262,46,64262,47],[64262,48,64262,49],[64262,50,64262,51],[64262,52,64262,53],[64262,54,64262,55],[64262,56,64262,57],[64262,58,64262,59],[64262,60,64262,61],[64262,62,64262,63],[64262,64,64262,65],[64262,66,64262,67],[64262,68,64262,69],[64262,70,64262,71],[64262,72,64262,73],[64262,74,64262,75],[64262,76,64262,77],[64262,78,64262,79],[64262,80,64262,81],[64262,82,64262,83],[64262,84,64262,85],[64262,86,64262,87],[64282,24,64282,25],[64282,26,64282,27],[64282,28,64282,29],[64282,30,64282,31],[64282,32,64282,33],[64282,34,64282,35],[64282,36,64282,37],[64282,38,64282,39],[64282,40,64282,41],[64282,42,64282,43],[64282,44,64282,45],[64282,46,64282,47],[64282,48,64282,49],[64282,50,64282,51],[64282,52,64282,53],[64282,54,64282,55],[64282,56,64282,57],[64282,58,64282,59],[64282,60,64282,61],[64282,62,64282,63],[64282,64,64282,65],[64282,66,64282,67],[64282,68,64282,69],[64282,70,64282,71],[64282,72,64282,73],[64282,74,64282,75],[64282,76,64282,77],[64282,78,64282,79],[64282,80,64282,81],[64282,82,64282,83],[64282,84,64282,85],[64282,86,64282,87],[64180,24,64180,25],[64180,26,64180,27],[64180,28,64180,29],[64180,30,64180,31],[64180,32,64180,33],[64180,34,64180,35],[64180,36,64180,37],[64180,38,64180,39],[64180,40,64180,41],[64180,42,64180,43],[64180,44,64180,45],[64180,46,64180,47],[64180,48,64180,49],[64180,50,64180,51],[64180,52,64180,53],[64180,54,64180,55],[64180,56,64180,57],[64180,58,64180,59],[64180,60,64180,61],[64180,62,64180,63],[64180,64,64180,65],[64180,66,64180,67],[64180,68,64180,69],[64180,70,64180,71],[64180,72,64180,73],[64180,74,64180,75],[64180,76,64180,77],[64180,78,64180,79],[64180,80,64180,81],[64180,82,64180,83],[64180,84,64180,85],[64180,86,64180,87],[64200,24,64200,25],[64200,26,64200,27],[64200,28,64200,29],[64200,30,64200,31],[64200,32,64200,33],[64200,34,64200,35],[64200,36,64200,37],[64200,38,64200,39],[64200,40,64200,41],[64200,42,64200,43],[64200,44,64200,45],[64200,46,64200,47],[64200,48,64200,49],[64200,50,64200,51],[64200,52,64200,53],[64200,54,64200,55],[64200,56,64200,57],[64200,58,64200,59],[64200,60,64200,61],[64200,62,64200,63],[64200,64,64200,65],[64200,66,64200,67],[64200,68,64200,69],[64200,70,64200,71],[64200,72,64200,73],[64200,74,64200,75],[64200,76,64200,77],[64200,78,64200,79],[64200,80,64200,81],[64200,82,64200,83],[64200,84,64200,85],[64200,86,64200,87],[64098,24,64098,25],[64098,26,64098,27],[64098,28,64098,29],[64098,30,64098,31],[64098,32,64098,33],[64098,34,64098,35],[64098,36,64098,37],[64098,38,64098,39],[64098,40,64098,41],[64098,42,64098,43],[64098,44,64098,45],[64098,46,64098,47],[64098,48,64098,49],[64098,50,64098,51],[64098,52,64098,53],[64098,54,64098,55],[64098,56,64098,57],[64098,58,64098,59],[64098,60,64098,61],[64098,62,64098,63],[64098,64,64098,65],[64098,66,64098,67],[64098,68,64098,69],[64098,70,64098,71],[64098,72,64098,73],[64098,74,64098,75],[64098,76,64098,77],[64098,78,64098,79],[64098,80,64098,81],[64098,82,64098,83],[64098,84,64098,85],[64098,86,64098,87],[64118,24,64118,25],[64118,26,64118,27],[64118,28,64118,29],[64118,30,64118,31],[64118,32,64118,33],[64118,34,64118,35],[64118,36,64118,37],[64118,38,64118,39],[64118,40,64118,41],[64118,42,64118,43],[64118,44,64118,45],[64118,46,64118,47],[64118,48,64118,49],[64118,50,64118,51],[64118,52,64118,53],[64118,54,64118,55],[64118,56,64118,57],[64118,58,64118,59],[64118,60,64118,61],[64118,62,64118,63],[64118,64,64118,65],[64118,66,64118,67],[64118,68,64118,69],[64118,70,64118,71],[64118,72,64118,73],[64118,74,64118,75],[64118,76,64118,77],[64118,78,64118,79],[64118,80,64118,81],[64118,82,64118,83],[64118,84,64118,85],[64118,86,64118,87],[64016,24,64016,25],[64016,26,64016,27],[64016,28,64016,29],[64016,30,64016,31],[64016,32,64016,33],[64016,34,64016,35],[64016,36,64016,37],[64016,38,64016,39],[64016,40,64016,41],[64016,42,64016,43],[64016,44,64016,45],[64016,46,64016,47],[64016,48,64016,49],[64016,50,64016,51],[64016,52,64016,53],[64016,54,64016,55],[64016,56,64016,57],[64016,58,64016,59],[64016,60,64016,61],[64016,62,64016,63],[64016,64,64016,65],[64016,66,64016,67],[64016,68,64016,69],[64016,70,64016,71],[64016,72,64016,73],[64016,74,64016,75],[64016,76,64016,77],[64016,78,64016,79],[64016,80,64016,81],[64016,82,64016,83],[64016,84,64016,85],[64016,86,64016,87],[64036,24,64036,25],[64036,26,64036,27],[64036,28,64036,29],[64036,30,64036,31],[64036,32,64036,33],[64036,34,64036,35],[64036,36,64036,37],[64036,38,64036,39],[64036,40,64036,41],[64036,42,64036,43],[64036,44,64036,45],[64036,46,64036,47],[64036,48,64036,49],[64036,50,64036,51],[64036,52,64036,53],[64036,54,64036,55],[64036,56,64036,57],[64036,58,64036,59],[64036,60,64036,61],[64036,62,64036,63],[64036,64,64036,65],[64036,66,64036,67],[64036,68,64036,69],[64036,70,64036,71],[64036,72,64036,73],[64036,74,64036,75],[64036,76,64036,77],[64036,78,64036,79],[64036,80,64036,81],[64036,82,64036,83],[64036,84,64036,85],[64036,86,64036,87],[63934,24,63934,25],[63934,26,63934,27],[63934,28,63934,29],[63934,30,63934,31],[63934,32,63934,33],[63934,34,63934,35],[63934,36,63934,37],[63934,38,63934,39],[63934,40,63934,41],[63934,42,63934,43],[63934,44,63934,45],[63934,46,63934,47],[63934,48,63934,49],[63934,50,63934,51],[63934,52,63934,53],[63934,54,63934,55],[63934,56,63934,57],[63934,58,63934,59],[63934,60,63934,61],[63934,62,63934,63],[63934,64,63934,65],[63934,66,63934,67],[63934,68,63934,69],[63934,70,63934,71],[63934,72,63934,73],[63934,74,63934,75],[63934,76,63934,77],[63934,78,63934,79],[63934,80,63934,81],[63934,82,63934,83],[63934,84,63934,85],[63934,86,63934,87],[63954,24,63954,25],[63954,26,63954,27],[63954,28,63954,29],[63954,30,63954,31],[63954,32,63954,33],[63954,34,63954,35],[63954,36,63954,37],[63954,38,63954,39],[63954,40,63954,41],[63954,42,63954,43],[63954,44,63954,45],[63954,46,63954,47],[63954,48,63954,49],[63954,50,63954,51],[63954,52,63954,53],[63954,54,63954,55],[63954,56,63954,57],[63954,58,63954,59],[63954,60,63954,61],[63954,62,63954,63],[63954,64,63954,65],[63954,66,63954,67],[63954,68,63954,69],[63954,70,63954,71],[63954,72,63954,73],[63954,74,63954,75],[63954,76,63954,77],[63954,78,63954,79],[63954,80,63954,81],[63954,82,63954,83],[63954,84,63954,85],[63954,86,63954,87],[63852,24,63852,25],[63852,26,63852,27],[63852,28,63852,29],[63852,30,63852,31],[63852,32,63852,33],[63852,34,63852,35],[63852,36,63852,37],[63852,38,63852,39],[63852,40,63852,41],[63852,42,63852,43],[63852,44,63852,45],[63852,46,63852,47],[63852,48,63852,49],[63852,50,63852,51],[63852,52,63852,53],[63852,54,63852,55],[63852,56,63852,57],[63852,58,63852,59],[63852,60,63852,61],[63852,62,63852,63],[63852,64,63852,65],[63852,66,63852,67],[63852,68,63852,69],[63852,70,63852,71],[63852,72,63852,73],[63852,74,63852,75],[63852,76,63852,77],[63852,78,63852,79],[63852,80,63852,81],[63852,82,63852,83],[63852,84,63852,85],[63852,86,63852,87],[63872,24,63872,25],[63872,26,63872,27],[63872,28,63872,29],[63872,30,63872,31],[63872,32,63872,33],[63872,34,63872,35],[63872,36,63872,37],[63872,38,63872,39],[63872,40,63872,41],[63872,42,63872,43],[63872,44,63872,45],[63872,46,63872,47],[63872,48,63872,49],[63872,50,63872,51],[63872,52,63872,53],[63872,54,63872,55],[63872,56,63872,57],[63872,58,63872,59],[63872,60,63872,61],[63872,62,63872,63],[63872,64,63872,65],[63872,66,63872,67],[63872,68,63872,69],[63872,70,63872,71],[63872,72,63872,73],[63872,74,63872,75],[63872,76,63872,77],[63872,78,63872,79],[63872,80,63872,81],[63872,82,63872,83],[63872,84,63872,85],[63872,86,63872,87],[63770,24,63770,25],[63770,26,63770,27],[63770,28,63770,29],[63770,30,63770,31],[63770,32,63770,33],[63770,34,63770,35],[63770,36,63770,37],[63770,38,63770,39],[63770,40,63770,41],[63770,42,63770,43],[63770,44,63770,45],[63770,46,63770,47],[63770,48,63770,49],[63770,50,63770,51],[63770,52,63770,53],[63770,54,63770,55],[63770,56,63770,57],[63770,58,63770,59],[63770,60,63770,61],[63770,62,63770,63],[63770,64,63770,65],[63770,66,63770,67],[63770,68,63770,69],[63770,70,63770,71],[63770,72,63770,73],[63770,74,63770,75],[63770,76,63770,77],[63770,78,63770,79],[63770,80,63770,81],[63770,82,63770,83],[63770,84,63770,85],[63770,86,63770,87],[63790,24,63790,25],[63790,26,63790,27],[63790,28,63790,29],[63790,30,63790,31],[63790,32,63790,33],[63790,34,63790,35],[63790,36,63790,37],[63790,38,63790,39],[63790,40,63790,41],[63790,42,63790,43],[63790,44,63790,45],[63790,46,63790,47],[63790,48,63790,49],[63790,50,63790,51],[63790,52,63790,53],[63790,54,63790,55],[63790,56,63790,57],[63790,58,63790,59],[63790,60,63790,61],[63790,62,63790,63],[63790,64,63790,65],[63790,66,63790,67],[63790,68,63790,69],[63790,70,63790,71],[63790,72,63790,73],[63790,74,63790,75],[63790,76,63790,77],[63790,78,63790,79],[63790,80,63790,81],[63790,82,63790,83],[63790,84,63790,85],[63790,86,63790,87],[63688,24,63688,25],[63688,26,63688,27],[63688,28,63688,29],[63688,30,63688,31],[63688,32,63688,33],[63688,34,63688,35],[63688,36,63688,37],[63688,38,63688,39],[63688,40,63688,41],[63688,42,63688,43],[63688,44,63688,45],[63688,46,63688,47],[63688,48,63688,49],[63688,50,63688,51],[63688,52,63688,53],[63688,54,63688,55],[63688,56,63688,57],[63688,58,63688,59],[63688,60,63688,61],[63688,62,63688,63],[63688,64,63688,65],[63688,66,63688,67],[63688,68,63688,69],[63688,70,63688,71],[63688,72,63688,73],[63688,74,63688,75],[63688,76,63688,77],[63688,78,63688,79],[63688,80,63688,81],[63688,82,63688,83],[63688,84,63688,85],[63688,86,63688,87],[63708,24,63708,25],[63708,26,63708,27],[63708,28,63708,29],[63708,30,63708,31],[63708,32,63708,33],[63708,34,63708,35],[63708,36,63708,37],[63708,38,63708,39]],"merged_total":68112,"flags":["merged_cut"]}
[null,"B01001. GENDER BY AGE"]
[null,"Universe:  TOTAL POPULATION, Median Age"]
[null,"Data Set: 2015-2019 American Community Survey 5-Year Estimates"]
[]
[null,null,"Atkinson and Gilmanton Grant",null,"Bean's Grant",null,"Bean's Purchase",null,"Berlin",null,"Cambridge",null,"Carroll",null,"Chandler's Purchase",null,"Clarksville",null,"Colebrook",null,"Columbia",null,"Crawford's Purchase",null,"Cutt's Grant",null,"Dalton",null,"Dix's Grant",null,"Dixville",null,"Dummer",null,"Errol",null,"Erving's Location",null,"Gorham",null,"Greens Grant",null,"Hadley's Purchase",null,"Jefferson",null,"Kilkenny",null,"Lancaster",null,"Low and Burbank's Grant",null,"Martin's Location",null,"Milan",null,"Millsfield ",null,"Northumberland",null,"Odell",null,"Pinkham's Grant",null,"Pittsburg",null,"Randolph",null,"Sargent's Purchase",null,"Second College Grant",null,"Shelburne",null,"Stark",null,"Stewartstown",null,"Stratford",null,"Success",null,"Thompson and Meserves Purchase",null,"Wentworth's Location",null,"Whitefield"]
[null,null,"Estimate","Margin Of Error","Estimate","Margin Of Error","Estimate","Margin Of Error","Estimate","Margin Of Error","Estimate","Margin Of Error","Estimate","Margin Of Error","Estimate","Margin Of Error","Estimate","Margin Of Error","Estimate","Margin Of Error","Estimate","Margin Of Error","Estimate","Margin Of Error","Estimate","Margin Of Error","Estimate","Margin Of Error","Estimate","Margin Of Error","Estimate","Margin Of Error","Estimate","Margin Of Error","Estimate","Margin Of Error","Estimate","Margin Of Error","Estimate","Margin Of Error","Estimate","Margin Of Error","Estimate","Margin Of Error","Estimate","Margin Of Error","Estimate","Margin Of Error","Estimate","Margin Of Error","Estimate","Margin Of Error","Estimate","Margin Of Error","Estimate","Margin Of Error","Estimate","Margin Of Error","Estimate","Margin Of Error","Estimate","Margin Of Error","Estimate","Margin Of Error","Estimate","Margin Of Error","Estimate","Margin Of Error","Estimate","Margin Of Error","Estimate","Margin Of Error","Estimate","Margin Of Error","Estimate","Margin Of Error","Estimate","Margin Of Error","Estimate","Margin Of Error","Estimate","Margin Of Error","Estimate","Margin Of Error","Estimate","Margin Of Error","Estimate","Margin Of Error"]
[null,"Total:","-","**","-","**","-","**",42.3,1.2,"-","**",54.3,9.5,"-","**",56.3,3.6,52.3,5.7,52.9,5.0999999999999996,"-","**","-","**",53.3,8.3000000000000007,"-","**",23.5,43.1,52.6,6.8,56.6,6.3,"-","**",54.2,3.1,38.799999999999997,15.6,"-","**",54.8,3,"-","**",44.5,3.4,"-","**","-","**",48.4,2.7,"-","**",45.5,6.3,"-","**",24.6,29.6,59,4.0999999999999996,60.3,2.8,"-","**","-","**",58,5.7,51,12.7,59.1,7.8,48,5.3,"-","**","-","**",70,4.9000000000000004,51.5,2.2000000000000002]
[null,"Male:","-","**","-","**","-","**",39.5,1.2,"-","**",47.8,16.8,"-","**",58.1,8.5,54.4,4.5,52.2,4.8,"-","**","-","**",48.8,9.9,"-","**",20.5,18.2,52.9,10.4,59.9,8,"-","**",51.5,3.2,38.799999999999997,15.6,"-","**",54.9,4.8,"-","**",44,6.1,"-","**","-","**",49.2,3.8,"-","**",45.6,6.4,"-","**",24.6,29.6,59,3.5,61.6,2.5,"-","**","-","**",61.2,5.4,53.5,14,54.9,10.3,47.4,6,"-","**","-","**",73.3,13.4,50.8,3.7]
[null,"Female:","-","**","-","**","-","**",47.3,2.1,"-","**",57.7,6,"-","**",54.9,3.9,50.2,6.1,53.7,6.9,"-","**","-","**",53.9,6,"-","**","-","**",49.3,9.4,56.1,3.8,"-","**",56.9,2.5,"-","**","-","**",54.7,3.1,"-","**",45.7,3.8,"-","**","-","**",47.5,3.8,"-","**",45.5,9.8000000000000007,"-","**","-","**",59.1,5.8,59.3,4.8,"-","**","-","**",56.5,4.4000000000000004,49.6,16.600000000000001,59.7,7.4,48.9,5.4,"-","**","-","**",69.900000000000006,3,51.7,2.7]
[]
[]
[]
[]
[]
[]
[]
[]
[]
[]
[]
[null,"B01001. GENDER BY AGE"]
[null,"Universe:  TOTAL POPULATION, Median Age"]
[null,"Data Set: 2010-2014 American Community Survey 5-Year Estimates"]
[]
[null,null,"Atkinson and Gilmanton Grant",null,"Bean's Grant",null,"Bean's Purchase",null,"Berlin",null,"Cambridge",null,"Carroll",null,"Chandler's Purchase",null,"Clarksville",null,"Colebrook",null,"Columbia",null,"Crawford's Purchase",null,"Cutt's Grant",null,"Dalton",null,"Dix's Grant",null,"Dixville",null,"Dummer",null,"Errol",null,"Erving's Location",null,"Gorham",null,"Greens Grant",null,"Hadley's Purchase",null,"Jefferson",null,"Kilkenny",null,"Lancaster",null,"Low and Burbank's Grant",null,"Martin's Location",null,"Milan",null,"Millsfield ",null,"Northumberland",null,"Odell",null,"Pinkham's Grant",null,"Pittsburg",null,"Randolph",null,"Sargent's Purchase",null,"Second College Grant",null,"Shelburne",null,"Stark",null,"Stewartstown",null,"Stratford",null,"Success",null,"Thompson and Meserves Purchase",null,"Wentworth's Location",null,"Whitefield"]
[null,null,"Estimate","Margin Of Error","Estimate","Margin Of Error","Estimate","Margin Of Error","Estimate","Margin Of Error","Estimate","Margin Of Error","Estimate","Margin Of Error","Estimate","Margin Of Error","Estimate","Margin Of Error","Estimate","Margin Of Error","Estimate","Margin Of Error","Estimate","Margin Of Error","Estimate","Margin Of Error","Estimate","Margin Of Error","Estimate","Margin Of Error","Estimate","Margin Of Error","Estimate","Margin Of Error","Estimate","Margin Of Error","Estimate","Margin Of Error","Estimate","Margin Of Error","Estimate","Margin Of Error","Estimate","Margin Of Error","Estimate","Margin Of Error","Estimate","Margin Of Error","Estimate","Margin Of Error","Estimate","Margin Of Error","Estimate","Margin Of Error","Estimate","Margin Of Error","Estimate","Margin Of Error","Estimate","Margin Of Error","Estimate","Margin Of Error","Estimate","Margin Of Error","Estimate","Margin Of Error","Estimate","Margin Of Error","Estimate","Margin Of Error","Estimate","Margin Of Error","Estimate","Margin Of Error","Estimate","Margin Of Error","Estimate","Margin Of Error","Estimate","Margin Of Error","Estimate","Margin Of Error","Estimate","Margin Of Error","Estimate","Margin Of Error","Estimate","Margin Of Error"]
[null,"Total:","-","**","-","**","-","**",44.1,3.4,60.6,26.2,39.6,7.3,"-","**",53.4,4.5999999999999996,50.2,1.9,48.7,4.2,"-","**","-","**",50.8,4.3,46.5,53.6,77,58.5,49.7,9.1999999999999993,56.1,5.9,"-","**",46.1,2.8,"-","**","-","**","-","**","-","**",46.6,3.2,"-","**","-","**",29.5,29.2,28.8,15.4,"-","**","-","**",35,37.799999999999997,57.6,3.3,55.1,6.2,"-","**","-","**",55.5,7.9,49.9,3.6,56.5,6.8,"-","**","-","**","-","**",51.5,19.100000000000001,47.5,4.3]
[null,"Male:","-","**","-","**","-","**",40.700000000000003,2.8,60.3,18,42.4,7.2,"-","**",51,2.8,49.6,3.8,47.3,5.7,"-","**","-","**",51.3,5.4,35,9.5,46.5,76.7,50.8,12,55,8.4,"-","**",46.4,3.1,"-","**","-","**","-","**","-","**",45.5,6.5,"-","**","-","**",56.5,58.7,29.8,43.2,"-","**","-","**",48.5,23.3,60.3,6.3,52,9.6,"-","**","-","**",54,14.6,50.3,4.3,55.7,7.8,"-","**","-","**","-","**",62.5,8.1999999999999993,45.4,6]
[null,"Female:","-","**","-","**","-","**",49.5,1.6,"-","**",36.5,9.4,"-","**",56.8,5,50.6,2.1,50.1,5.9,"-","**","-","**",50,4.0999999999999996,73.3,53.1,81.099999999999994,44.6,49.2,8.1,56.4,5.5,"-","**",45.7,3.8,"-","**","-","**","-","**","-","**",47.5,3.1,"-","**","-","**",21.5,18.5,21.5,16.3,"-","**","-","**","-","**",56.6,2.2000000000000002,56.7,2.5,"-","**","-","**",55.6,5.0999999999999996,49.3,5.9,58.4,9.3000000000000007,"-","**","-","**","-","**",46.3,38,48.7,4.3]
[]
[]
[]
[]
[]
[]
[]
[]
[]
[]
[]
[null,"B01001. GENDER BY AGE"]
[null,"Universe:  TOTAL POPULATION, Median Age"]
[null,"Data Set: 2005-2009 American Community Survey 5-Year Estimates"]
[]
[null,null,"Atkinson and Gilmanton Grant",null,"Bean's Grant",null,"Bean's Purchase",null,"Berlin",null,"Cambridge",null,"Carroll",null,"Chandler's Purchase",null,"Clarksville",null,"Colebrook",null,"Columbia",null,"Crawford's Purchase",null,"Cutt's Grant",null,"Dalton",null,"Dix's Grant",null,"Dixville",null,"Dummer",null,"Errol",null,"Erving's Location",null,"Gorham",null,"Greens Grant",null,"Hadley's Purchase",null,"Jefferson",null,"Kilkenny",null,"Lancaster",null,"Low and Burbank's Grant",null,"Martin's Location",null,"Milan",null,"Millsfield ",null,"Northumberland",null,"Odell",null,"Pinkham's Grant",null,"Pittsburg",null,"Randolph",null,"Sargent's Purchase",null,"Second College Grant",null,"Shelburne",null,"Stark",null,"Stewartstown",null,"Stratford",null,"Success",null,"Thompson and Meserves Purchase",null,"Wentworth's Location",null,"Whitefield"]
[null,null,"Estimate","Margin Of Error","Estimate","Margin Of Error","Estimate","Margin Of Error","Estimate","Margin Of Error","Estimate","Margin Of Error","Estimate","Margin Of Error","Estimate","Margin Of Error","Estimate","Margin Of Error","Estimate","Margin Of Error","Estimate","Margin Of Error","Estimate","Margin Of Error","Estimate","Margin Of Error","Estimate","Margin Of Error","Estimate","Margin Of Error","Estimate","Margin Of Error","Estimate","Margin Of Error","Estimate","Margin Of Error","Estimate","Margin Of Error","Estimate","Margin Of Error","Estimate","Margin Of Error","Estimate","Margin Of Error","Estimate","Margin Of Error","Estimate","Margin Of Error","Estimate","Margin Of Error","Estimate","Margin Of Error","Estimate","Margin Of Error","Estimate","Margin Of Error","Estimate","Margin Of Error","Estimate","Margin Of Error","Estimate","Margin Of Error","Estimate","Margin Of Error","Estimate","Margin Of Error","Estimate","Margin Of Error","Estimate","Margin Of Error","Estimate","Margin Of Error","Estimate","Margin Of Error","Estimate","Margin Of Error","Estimate","Margin Of Error","Estimate","Margin Of Error","Estimate","Margin Of Error","Estimate","Margin Of Error","Estimate","Margin Of Error","Estimate","Margin Of Error"]
[null,"Total:","**","**","**","**","**","**",45.3,1.9,"**","**",53.7,4,"**","**",50,8.5,45.4,6.8,45.8,6.4,"**","**","**","**",41.3,4.2,"**","**",83,17.3,49.1,4.2,48,14.3,"**","**",42,2.8,"**","**","**","**",45.9,4.5,"**","**",37.1,3.3,"**","**","**","**",46.2,2.5,"**","**",44.2,4,"**","**","**","**",54.1,5.8,59.2,4.0999999999999996,"**","**","**","**",49.5,2.8,51.2,3.6,44.2,6,42.5,12.1,"**","**","**","**",52.4,11.1,47.5,5.9]
[null,"Male:","**","**","**","**","**","**",40.6,4.5999999999999996,"**","**",54.9,2.9,"**","**",46.9,10.1,45.3,7.4,49,9,"**","**","**","**",41.8,7.2,"**","**",83.6,12.8,56.8,10.8,60.2,18.399999999999999,"**","**",42.3,2.8,"**","**","**","**",45.3,5.7,"**","**",34.700000000000003,7.4,"**","**","**","**",45,2.7,"**","**",45,5,"**","**","**","**",52.5,5.7,59.1,5,"**","**","**","**",49.9,3.2,51.3,5.5,43.3,8.3000000000000007,43,12,"**","**","**","**",54.3,4.3,45.1,6.6]
[null,"Female:","**","**","**","**","**","**",48.3,3.3,"**","**",51.2,3.8,"**","**",53.1,5.8,46.1,7.4,45.1,6.1,"**","**","**","**",41.1,3.4,"**","**",81.7,17.899999999999999,47.6,3.2,44.5,13.1,"**","**",41.8,4,"**","**","**","**",47.5,4.9000000000000004,"**","**",39.200000000000003,4,"**","**","**","**",47.8,2,"**","**",43.6,4.8,"**","**","**","**",55.9,5.4,59.4,4.2,"**","**","**","**",48.4,6.3,51.1,3.6,44.4,5.6,42.2,14,"**","**","**","**",43.3,19.3,49.2,5.0999999999999996]

{"sheet":"ACS_Tbl_B11001_B11002_B25010","index":24,"n_rows":202,"n_cols":88,"rows_kept":202,"cut":false,"hidden":true,"merged":[]}
[null,"B11001. HOUSEHOLD TYPE (INCLUDING LIVING ALONE)"]
[null,"Universe:  HOUSEHOLDS"]
[null,"Data Set: 2015-2019 American Community Survey 5-Year Estimates"]
[]
[null,null,"Atkinson and Gilmanton Grant",null,"Bean's Grant",null,"Bean's Purchase",null,"Berlin",null,"Cambridge",null,"Carroll",null,"Chandler's Purchase",null,"Clarksville",null,"Colebrook",null,"Columbia",null,"Crawford's Purchase",null,"Cutt's Grant",null,"Dalton",null,"Dix's Grant",null,"Dixville",null,"Dummer",null,"Errol",null,"Erving's Location",null,"Gorham",null,"Greens Grant",null,"Hadley's Purchase",null,"Jefferson",null,"Kilkenny",null,"Lancaster",null,"Low and Burbank's Grant",null,"Martin's Location",null,"Milan",null,"Millsfield ",null,"Northumberland",null,"Odell",null,"Pinkham's Grant",null,"Pittsburg",null,"Randolph",null,"Sargent's Purchase",null,"Second College Grant",null,"Shelburne",null,"Stark",null,"Stewartstown",null,"Stratford",null,"Success",null,"Thompson and Meserves Purchase",null,"Wentworth's Location",null,"Whitefield"]
[null,null,"Estimate","Margin Of Error","Estimate","Margin Of Error","Estimate","Margin Of Error","Estimate","Margin Of Error","Estimate","Margin Of Error","Estimate","Margin Of Error","Estimate","Margin Of Error","Estimate","Margin Of Error","Estimate","Margin Of Error","Estimate","Margin Of Error","Estimate","Margin Of Error","Estimate","Margin Of Error","Estimate","Margin Of Error","Estimate","Margin Of Error","Estimate","Margin Of Error","Estimate","Margin Of Error","Estimate","Margin Of Error","Estimate","Margin Of Error","Estimate","Margin Of Error","Estimate","Margin Of Error","Estimate","Margin Of Error","Estimate","Margin Of Error","Estimate","Margin Of Error","Estimate","Margin Of Error","Estimate","Margin Of Error","Estimate","Margin Of Error","Estimate","Margin Of Error","Estimate","Margin Of Error","Estimate","Margin Of Error","Estimate","Margin Of Error","Estimate","Margin Of Error","Estimate","Margin Of Error","Estimate","Margin Of Error","Estimate","Margin Of Error","Estimate","Margin Of Error","Estimate","Margin Of Error","Estimate","Margin Of Error","Estimate","Margin Of Error","Estimate","Margin Of Error","Estimate","Margin Of Error","Estimate","Margin Of Error","Estimate","Margin Of Error","Estimate","Margin Of Error"]
[null,"Total:",0,11,0,11,0,11,3977,201,0,11,324,49,0,11,141,40,954,84,316,51,0,11,0,11,424,64,0,11,1,4,127,25,113,29,0,11,1243,99,0,11,0,11,396,58,0,11,1366,149,0,11,0,11,589,53,4,6,984,88,0,11,0,11,423,57,196,39,0,11,0,11,200,30,233,40,418,64,277,49,0,11,0,11,16,9,1046,111]
[null,"Family households:",0,11,0,11,0,11,2236,170,0,11,225,42,0,11,93,25,516,70,176,39,0,11,0,11,272,59,0,11,0,11,90,20,61,21,0,11,798,63,0,11,0,11,265,50,0,11,836,80,0,11,0,11,419,39,4,6,590,83,0,11,0,11,222,49,124,29,0,11,0,11,132,25,155,35,246,52,171,39,0,11,0,11,9,7,611,78]
[null,"Married-couple family",0,11,0,11,0,11,1586,177,0,11,204,42,0,11,82,26,442,65,142,37,0,11,0,11,235,56,0,11,0,11,76,17,47,18,0,11,678,63,0,11,0,11,230,44,0,11,647,96,0,11,0,11,349,39,4,6,444,72,0,11,0,11,215,49,111,28,0,11,0,11,113,25,130,31,196,47,115,31,0,11,0,11,7,6,503,76]
[null,"Other family:",0,11,0,11,0,11,650,145,0,11,21,13,0,11,11,10,74,44,34,14,0,11,0,11,37,26,0,11,0,11,14,10,14,11,0,11,120,48,0,11,0,11,35,20,0,11,189,73,0,11,0,11,70,33,0,11,146,58,0,11,0,11,7,7,13,11,0,11,0,11,19,12,25,18,50,30,56,29,0,11,0,11,2,3,108,52]
[null,"Male householder, no spouse present",0,11,0,11,0,11,260,107,0,11,6,5,0,11,2,3,0,11,5,5,0,11,0,11,10,10,0,11,0,11,7,8,4,6,0,11,56,34,0,11,0,11,13,13,0,11,66,49,0,11,0,11,7,8,0,11,51,39,0,11,0,11,7,7,0,11,0,11,0,11,6,5,18,17,16,18,35,23,0,11,0,11,2,3,9,13]
[null,"Female householder, no spouse present",0,11,0,11,0,11,390,112,0,11,15,11,0,11,9,10,74,44,29,14,0,11,0,11,27,24,0,11,0,11,7,5,10,10,0,11,64,38,0,11,0,11,22,15,0,11,123,62,0,11,0,11,63,31,0,11,95,42,0,11,0,11,0,11,13,11,0,11,0,11,13,10,7,9,34,25,21,17,0,11,0,11,0,11,99,49]
[null,"Nonfamily households:",0,11,0,11,0,11,1741,261,0,11,99,36,0,11,48,27,438,85,140,34,0,11,0,11,152,48,0,11,1,4,37,15,52,21,0,11,445,111,0,11,0,11,131,39,0,11,530,142,0,11,0,11,170,45,0,11,394,68,0,11,0,11,201,58,72,22,0,11,0,11,68,21,78,27,172,49,106,33,0,11,0,11,7,6,435,101]
[null,"Householder living alone",0,11,0,11,0,11,1531,214,0,11,83,33,0,11,19,9,367,79,112,34,0,11,0,11,122,45,0,11,1,4,33,13,43,19,0,11,434,112,0,11,0,11,117,38,0,11,441,127,0,11,0,11,103,26,0,11,272,63,0,11,0,11,181,56,58,21,0,11,0,11,63,20,54,24,133,46,86,29,0,11,0,11,7,6,358,95]
[null,"Householder not living alone",0,11,0,11,0,11,210,106,0,11,16,9,0,11,29,23,71,42,28,19,0,11,0,11,30,17,0,11,0,11,4,7,9,9,0,11,11,15,0,11,0,11,14,10,0,11,89,50,0,11,0,11,67,38,0,11,122,47,0,11,0,11,20,13,14,9,0,11,0,11,5,6,24,13,39,29,20,14,0,11,0,11,0,11,77,44]
[]
[]
[]
[]
[]
[]
[]
[]
[]
[]
[]
[]
[]
[]
[]
[]
[]
[null,"B11002. HOUSEHOLD TYPE BY RELATIVES AND NONRELATIVES FOR POPULATION IN HOUSEHOLDS "]
[null,"Universe:  POPULATION IN HOUSEHOLDS"]
[null,"Data Set: 2015-2019 American Community Survey 5-Year Estimates"]
[]
[null,null,"Atkinson and Gilmanton Grant",null,"Bean's Grant",null,"Bean's Purchase",null,"Berlin",null,"Cambridge",null,"Carroll",null,"Chandler's Purchase",null,"Clarksville",null,"Colebrook",null,"Columbia",null,"Crawford's Purchase",null,"Cutt's Grant",null,"Dalton",null,"Dix's Grant",null,"Dixville",null,"Dummer",null,"Errol",null,"Erving's Location",null,"Gorham",null,"Greens Grant",null,"Hadley's Purchase",null,"Jefferson",null,"Kilkenny",null,"Lancaster",null,"Low and Burbank's Grant",null,"Martin's Location",null,"Milan",null,"Millsfield ",null,"Northumberland",null,"Odell",null,"Pinkham's Grant",null,"Pittsburg",null,"Randolph",null,"Sargent's Purchase",null,"Second College Grant",null,"Shelburne",null,"Stark",null,"Stewartstown",null,"Stratford",null,"Success",null,"Thompson and Meserves Purchase",null,"Wentworth's Location",null,"Whitefield"]
[null,null,"Estimate","Margin Of Error","Estimate","Margin Of Error","Estimate","Margin Of Error","Estimate","Margin Of Error","Estimate","Margin Of Error","Estimate","Margin Of Error","Estimate","Margin Of Error","Estimate","Margin Of Error","Estimate","Margin Of Error","Estimate","Margin Of Error","Estimate","Margin Of Error","Estimate","Margin Of Error","Estimate","Margin Of Error","Estimate","Margin Of Error","Estimate","Margin Of Error","Estimate","Margin Of Error","Estimate","Margin Of Error","Estimate","Margin Of Error","Estimate","Margin Of Error","Estimate","Margin Of Error","Estimate","Margin Of Error","Estimate","Margin Of Error","Estimate","Margin Of Error","Estimate","Margin Of Error","Estimate","Margin Of Error","Estimate","Margin Of Error","Estimate","Margin Of Error","Estimate","Margin Of Error","Estimate","Margin Of Error","Estimate","Margin Of Error","Estimate","Margin Of Error","Estimate","Margin Of Error","Estimate","Margin Of Error","Estimate","Margin Of Error","Estimate","Margin Of Error","Estimate","Margin Of Error","Estimate","Margin Of Error","Estimate","Margin Of Error","Estimate","Margin Of Error","Estimate","Margin Of Error","Estimate","Margin Of Error","Estimate","Margin Of Error","Estimate","Margin Of Error"]
[null,"Total:",0,11,0,11,0,11,8420,255,0,11,715,135,0,11,324,88,1908,171,616,119,0,11,0,11,906,140,0,11,1,4,306,71,205,55,0,11,2623,17,0,11,0,11,846,129,0,11,3153,83,0,11,0,11,1332,107,8,12,2318,266,0,11,0,11,740,104,365,68,0,11,0,11,408,65,606,144,844,170,630,114,0,11,0,11,26,16,2196,216]
[null,"In family households:",0,11,0,11,0,11,6427,424,0,11,601,141,0,11,246,68,1412,188,451,113,0,11,0,11,726,141,0,11,0,11,264,70,145,53,0,11,2157,112,0,11,0,11,704,127,0,11,2539,173,0,11,0,11,1081,90,8,12,1759,256,0,11,0,11,524,110,283,62,0,11,0,11,334,65,491,145,634,159,501,111,0,11,0,11,19,14,1679,225]
[null,"In married-couple family:",0,11,0,11,0,11,4410,588,0,11,559,142,0,11,207,74,1233,177,368,105,0,11,0,11,639,141,0,11,0,11,214,54,109,46,0,11,1849,156,0,11,0,11,583,112,0,11,1839,250,0,11,0,11,875,96,8,12,1301,229,0,11,0,11,505,112,246,62,0,11,0,11,287,65,410,139,466,127,324,88,0,11,0,11,16,14,1337,223]
[null,"Relatives",0,11,0,11,0,11,4389,590,0,11,554,141,0,11,207,74,1204,172,366,104,0,11,0,11,639,141,0,11,0,11,214,54,109,46,0,11,1831,156,0,11,0,11,583,112,0,11,1839,250,0,11,0,11,868,96,8,12,1282,224,0,11,0,11,505,112,246,62,0,11,0,11,284,64,403,138,459,125,320,87,0,11,0,11,16,14,1337,223]
[null,"Nonrelatives",0,11,0,11,0,11,21,33,0,11,5,6,0,11,0,11,29,34,2,3,0,11,0,11,0,11,0,11,0,11,0,11,0,11,0,11,18,26,0,11,0,11,0,11,0,11,0,11,0,11,0,11,7,8,0,11,19,18,0,11,0,11,0,11,0,11,0,11,0,11,3,4,7,7,7,11,4,6,0,11,0,11,0,11,0,11]
[null,"In male householder, no spouse present, family:",0,11,0,11,0,11,648,245,0,11,10,8,0,11,5,7,0,11,11,12,0,11,0,11,24,28,0,11,0,11,26,28,16,24,0,11,157,93,0,11,0,11,44,37,0,11,332,289,0,11,0,11,24,22,0,11,161,141,0,11,0,11,19,18,0,11,0,11,0,11,17,17,66,69,55,67,121,86,0,11,0,11,3,4,17,25]
[null,"Relatives",0,11,0,11,0,11,505,190,0,11,10,8,0,11,4,5,0,11,10,11,0,11,0,11,18,19,0,11,0,11,20,22,12,18,0,11,124,74,0,11,0,11,32,26,0,11,308,280,0,11,0,11,20,19,0,11,132,113,0,11,0,11,15,14,0,11,0,11,0,11,15,15,56,57,46,54,92,64,0,11,0,11,3,4,17,25]
[null,"Nonrelatives",0,11,0,11,0,11,143,86,0,11,0,11,0,11,1,2,0,11,1,3,0,11,0,11,6,11,0,11,0,11,6,7,4,6,0,11,33,34,0,11,0,11,12,12,0,11,24,38,0,11,0,11,4,5,0,11,29,32,0,11,0,11,4,6,0,11,0,11,0,11,2,3,10,12,9,14,29,24,0,11,0,11,0,11,0,11]
[null,"In female householder, no spouse present, family:",0,11,0,11,0,11,1369,518,0,11,32,24,0,11,34,36,179,100,72,40,0,11,0,11,63,54,0,11,0,11,24,18,20,17,0,11,151,95,0,11,0,11,77,54,0,11,368,206,0,11,0,11,182,91,0,11,297,151,0,11,0,11,0,11,37,28,0,11,0,11,30,23,15,14,113,90,56,47,0,11,0,11,0,11,325,161]
[null,"Relatives",0,11,0,11,0,11,924,265,0,11,32,24,0,11,34,36,165,95,63,32,0,11,0,11,63,54,0,11,0,11,20,14,20,17,0,11,151,95,0,11,0,11,72,53,0,11,357,204,0,11,0,11,148,73,0,11,254,124,0,11,0,11,0,11,37,28,0,11,0,11,29,24,15,14,102,75,47,38,0,11,0,11,0,11,279,132]
[null,"Nonrelatives",0,11,0,11,0,11,445,280,0,11,0,11,0,11,0,11,14,15,9,11,0,11,0,11,0,11,0,11,0,11,4,5,0,11,0,11,0,11,0,11,0,11,5,6,0,11,11,20,0,11,0,11,34,26,0,11,43,36,0,11,0,11,0,11,0,11,0,11,0,11,1,2,0,11,11,17,9,13,0,11,0,11,0,11,46,39]
[null,"In nonfamily households",0,11,0,11,0,11,1993,360,0,11,114,40,0,11,78,52,496,102,165,43,0,11,0,11,180,55,0,11,1,4,42,18,60,25,0,11,466,115,0,11,0,11,142,41,0,11,614,168,0,11,0,11,251,84,0,11,559,121,0,11,0,11,216,61,82,25,0,11,0,11,74,23,115,37,210,68,129,42,0,11,0,11,7,6,517,116]
[]
[]
[]
[null,"Calculated Average  Household Size by Household Type"]
[null,"Universe:  POPULATION IN HOUSEHOLDS"]
[null,"Data Set: 2015-2019 American Community Survey 5-Year Estimates"]
[]
[null,null,"Atkinson and Gilmanton Grant",null,"Bean's Grant",null,"Bean's Purchase",null,"Berlin",null,"Cambridge",null,"Carroll",null,"Chandler's Purchase",null,"Clarksville",null,"Colebrook",null,"Columbia",null,"Crawford's Purchase",null,"Cutt's Grant",null,"Dalton",null,"Dix's Grant",null,"Dixville",null,"Dummer",null,"Errol",null,"Erving's Location",null,"Gorham",null,"Greens Grant",null,"Hadley's Purchase",null,"Jefferson",null,"Kilkenny",null,"Lancaster",null,"Low and Burbank's Grant",null,"Martin's Location",null,"Milan",null,"Millsfield ",null,"Northumberland",null,"Odell",null,"Pinkham's Grant",null,"Pittsburg",null,"Randolph",null,"Sargent's Purchase",null,"Second College Grant",null,"Shelburne",null,"Stark",null,"Stewartstown",null,"Stratford",null,"Success",null,"Thompson and Meserves Purchase",null,"Wentworth's Location",null,"Whitefield"]
[null,null,"Estimate","Margin Of Error","Estimate","Margin Of Error","Estimate","Margin Of Error","Estimate","Margin Of Error","Estimate","Margin Of Error","Estimate","Margin Of Error","Estimate","Margin Of Error","Estimate","Margin Of Error","Estimate","Margin Of Error","Estimate","Margin Of Error","Estimate","Margin Of Error","Estimate","Margin Of Error","Estimate","Margin Of Error","Estimate","Margin Of Error","Estimate","Margin Of Error","Estimate","Margin Of Error","Estimate","Margin Of Error","Estimate","Margin Of Error","Estimate","Margin Of Error","Estimate","Margin Of Error","Estimate","Margin Of Error","Estimate","Margin Of Error","Estimate","Margin Of Error","Estimate","Margin Of Error","Estimate","Margin Of Error","Estimate","Margin Of Error","Estimate","Margin Of Error","Estimate","Margin Of Error","Estimate","Margin Of Error","Estimate","Margin Of Error","Estimate","Margin Of Error","Estimate","Margin Of Error","Estimate","Margin Of Error","Estimate","Margin Of Error","Estimate","Margin Of Error","Estimate","Margin Of Error","Estimate","Margin Of Error","Estimate","Margin Of Error","Estimate","Margin Of Error","Estimate","Margin Of Error","Estimate","Margin Of Error","Estimate","Margin Of Error","Estimate","Margin Of Error"]
[null,"Total:",{"$f":"C39/C7","v":{"$error":"#DIV/0!"}},{"$f":"D72","v":"**"},{"$f":"E39/E7","v":{"$error":"#DIV/0!"}},{"$f":"(SQRT((F$39^2)+((E$39^2)/(E$7^2))*(F$7^2)))/E$7","v":{"$error":"#DIV/0!"}},{"$f":"G39/G7","v":{"$error":"#DIV/0!"}},{"$f":"(SQRT((H$39^2)+((G$39^2)/(G$7^2))*(H$7^2)))/G$7","v":{"$error":"#DIV/0!"}},{"$f":"I39/I7","v":2.1171737490570783},{"$f":"(SQRT((J$39^2)+((I$39^2)/(I$7^2))*(J$7^2)))/I$7","v":0.12474333992413805},{"$f":"K39/K7","v":{"$error":"#DIV/0!"}},{"$f":"(SQRT((L$39^2)+((K$39^2)/(K$7^2))*(L$7^2)))/K$7","v":{"$error":"#DIV/0!"}},{"$f":"M39/M7","v":2.2067901234567899},{"$f":"(SQRT((N$39^2)+((M$39^2)/(M$7^2))*(N$7^2)))/M$7","v":0.53384966825837521},{"$f":"O39/O7","v":{"$error":"#DIV/0!"}},{"$f":"(SQRT((P$39^2)+((O$39^2)/(O$7^2))*(P$7^2)))/O$7","v":{"$error":"#DIV/0!"}},{"$f":"Q39/Q7","v":2.2978723404255321},{"$f":"(SQRT((R$39^2)+((Q$39^2)/(Q$7^2))*(R$7^2)))/Q$7","v":0.90247628273811187},{"$f":"S39/S7","v":2},{"$f":"(SQRT((T$39^2)+((S$39^2)/(S$7^2))*(T$7^2)))/S$7","v":0.25127734277953429},{"$f":"U39/U7","v":1.9493670886075949},{"$f":"(SQRT((V$39^2)+((U$39^2)/(U$7^2))*(V$7^2)))/U$7","v":0.49070926132920223},{"$f":"W39/W7","v":{"$error":"#DIV/0!"}},{"$f":"(SQRT((X$39^2)+((W$39^2)/(W$7^2))*(X$7^2)))/W$7","v":{"$error":"#DIV/0!"}},{"$f":"Y39/Y7","v":{"$error":"#DIV/0!"}},{"$f":"(SQRT((Z$39^2)+((Y$39^2)/(Y$7^2))*(Z$7^2)))/Y$7","v":{"$error":"#DIV/0!"}},{"$f":"AA39/AA7","v":2.1367924528301887},{"$f":"(SQRT((AB$39^2)+((AA$39^2)/(AA$7^2))*(AB$7^2)))/AA$7","v":0.46157686571899093},{"$f":"AC39/AC7","v":{"$error":"#DIV/0!"}},{"$f":"(SQRT((AD$39^2)+((AC$39^2)/(AC$7^2))*(AD$7^2)))/AC$7","v":{"$error":"#DIV/0!"}},{"$f":"AE39/AE7","v":1},{"$f":"(SQRT((AF$39^2)+((AE$39^2)/(AE$7^2))*(AF$7^2)))/AE$7","v":5.6568542494923806},{"$f":"AG39/AG7","v":2.409448818897638},{"$f":"(SQRT((AH$39^2)+((AG$39^2)/(AG$7^2))*(AH$7^2)))/AG$7","v":0.73314665308511762},{"$f":"AI39/AI7","v":1.8141592920353982},{"$f":"(SQRT((AJ$39^2)+((AI$39^2)/(AI$7^2))*(AJ$7^2)))/AI$7","v":0.67354826328480522},{"$f":"AK39/AK7","v":{"$error":"#DIV/0!"}},{"$f":"(SQRT((AL$39^2)+((AK$39^2)/(AK$7^2))*(AL$7^2)))/AK$7","v":{"$error":"#DIV/0!"}},{"$f":"AM39/AM7","v":2.1102172164119066},{"$f":"(SQRT((AN$39^2)+((AM$39^2)/(AM$7^2))*(AN$7^2)))/AM$7","v":0.16862594014428905},{"$f":"AO39/AO7","v":{"$error":"#DIV/0!"}},{"$f":"(SQRT((AP$39^2)+((AO$39^2)/(AO$7^2))*(AP$7^2)))/AO$7","v":{"$error":"#DIV/0!"}},{"$f":"AQ39/AQ7","v":{"$error":"#DIV/0!"}},{"$f":"(SQRT((AR$39^2)+((AQ$39^2)/(AQ$7^2))*(AR$7^2)))/AQ$7","v":{"$error":"#DIV/0!"}},{"$f":"AS39/AS7","v":2.1363636363636362},{"$f":"(SQRT((AT$39^2)+((AS$39^2)/(AS$7^2))*(AT$7^2)))/AS$7","v":0.4516918197313593},{"$f":"AU39/AU7","v":{"$error":"#DIV/0!"}},{"$f":"(SQRT((AV$39^2)+((AU$39^2)/(AU$7^2))*(AV$7^2)))/AU$7","v":{"$error":"#DIV/0!"}},{"$f":"AW39/AW7","v":2.3081991215226938},{"$f":"(SQRT((AX$39^2)+((AW$39^2)/(AW$7^2))*(AX$7^2)))/AW$7","v":0.25900095186911853},{"$f":"AY39/AY7","v":{"$error":"#DIV/0!"}},{"$f":"(SQRT((AZ$39^2)+((AY$39^2)/(AY$7^2))*(AZ$7^2)))/AY$7","v":{"$error":"#DIV/0!"}},{"$f":"BA39/BA7","v":{"$error":"#DIV/0!"}},{"$f":"(SQRT((BB$39^2)+((BA$39^2)/(BA$7^2))*(BB$7^2)))/BA$7","v":{"$error":"#DIV/0!"}},{"$f":"BC39/BC7","v":2.2614601018675722},{"$f":"(SQRT((BD$39^2)+((BC$39^2)/(BC$7^2))*(BD$7^2)))/BC$7","v":0.27278408408554827},{"$f":"BE39/BE7","v":2},{"$f":"(SQRT((BF$39^2)+((BE$39^2)/(BE$7^2))*(BF$7^2)))/BE$7","v":4.2426406871192848},{"$f":"BG39/BG7","v":2.3556910569105689},{"$f":"(SQRT((BH$39^2)+((BG$39^2)/(BG$7^2))*(BH$7^2)))/BG$7","v":0.34272178342797432},{"$f":"BI39/BI7","v":{"$error":"#DIV/0!"}},{"$f":"(SQRT((BJ$39^2)+((BI$39^2)/(BI$7^2))*(BJ$7^2)))/BI$7","v":{"$error":"#DIV/0!"}},{"$f":"BK39/BK7","v":{"$error":"#DIV/0!"}},{"$f":"(SQRT((BL$39^2)+((BK$39^2)/(BK$7^2))*(BL$7^2)))/BK$7","v":{"$error":"#DIV/0!"}},{"$f":"BM39/BM7","v":1.7494089834515367},{"$f":"(SQRT((BN$39^2)+((BM$39^2)/(BM$7^2))*(BN$7^2)))/BM$7","v":0.34061708960888898},{"$f":"BO39/BO7","v":1.8622448979591837},{"$f":"(SQRT((BP$39^2)+((BO$39^2)/(BO$7^2))*(BP$7^2)))/BO$7","v":0.5076148885048678},{"$f":"BQ39/BQ7","v":{"$error":"#DIV/0!"}},{"$f":"(SQRT((BR$39^2)+((BQ$39^2)/(BQ$7^2))*(BR$7^2)))/BQ$7","v":{"$error":"#DIV/0!"}},{"$f":"BS39/BS7","v":{"$error":"#DIV/0!"}},{"$f":"(SQRT((BT$39^2)+((BS$39^2)/(BS$7^2))*(BT$7^2)))/BS$7","v":{"$error":"#DIV/0!"}},{"$f":"BU39/BU7","v":2.04},{"$f":"(SQRT((BV$39^2)+((BU$39^2)/(BU$7^2))*(BV$7^2)))/BU$7","v":0.44638660374164457},{"$f":"BW39/BW7","v":2.6008583690987126},{"$f":"(SQRT((BX$39^2)+((BW$39^2)/(BW$7^2))*(BX$7^2)))/BW$7","v":0.76244176545040565},{"$f":"BY39/BY7","v":2.0191387559808613},{"$f":"(SQRT((BZ$39^2)+((BY$39^2)/(BY$7^2))*(BZ$7^2)))/BY$7","v":0.5108597770056108},{"$f":"CA39/CA7","v":2.2743682310469313},{"$f":"(SQRT((CB$39^2)+((CA$39^2)/(CA$7^2))*(CB$7^2)))/CA$7","v":0.57553522291312909},{"$f":"CC39/CC7","v":{"$error":"#DIV/0!"}},{"$f":"(SQRT((CD$39^2)+((CC$39^2)/(CC$7^2))*(CD$7^2)))/CC$7","v":{"$error":"#DIV/0!"}},{"$f":"CE39/CE7","v":{"$error":"#DIV/0!"}},{"$f":"(SQRT((CF$39^2)+((CE$39^2)/(CE$7^2))*(CF$7^2)))/CE$7","v":{"$error":"#DIV/0!"}},{"$f":"CG39/CG7","v":1.625},{"$f":"(SQRT((CH$39^2)+((CG$39^2)/(CG$7^2))*(CH$7^2)))/CG$7","v":1.3548100434770367},{"$f":"CI39/CI7","v":2.0994263862332696},{"$f":"(SQRT((CJ$39^2)+((CI$39^2)/(CI$7^2))*(CJ$7^2)))/CI$7","v":0.3037715790397057}]
[null,"In family households:",{"$f":"C40/C8","v":{"$error":"#DIV/0!"}},{"$f":"(SQRT((D$40^2)+((C$40^2)/(C$8^2))*(D$8^2)))/C$8","v":{"$error":"#DIV/0!"}},{"$f":"E40/E8","v":{"$error":"#DIV/0!"}},{"$f":"(SQRT((F$40^2)+((E$40^2)/(E$8^2))*(F$8^2)))/E$8","v":{"$error":"#DIV/0!"}},{"$f":"G40/G8","v":{"$error":"#DIV/0!"}},{"$f":"(SQRT((H$40^2)+((G$40^2)/(G$8^2))*(H$8^2)))/G$8","v":{"$error":"#DIV/0!"}},{"$f":"I40/I8","v":2.8743291592128801},{"$f":"(SQRT((J$40^2)+((I$40^2)/(I$8^2))*(J$8^2)))/I$8","v":0.28933252405634319},{"$f":"K40/K8","v":{"$error":"#DIV/0!"}},{"$f":"(SQRT((L$40^2)+((K$40^2)/(K$8^2))*(L$8^2)))/K$8","v":{"$error":"#DIV/0!"}},{"$f":"M40/M8","v":2.6711111111111112},{"$f":"(SQRT((N$40^2)+((M$40^2)/(M$8^2))*(N$8^2)))/M$8","v":0.80082486089821625},{"$f":"O40/O8","v":{"$error":"#DIV/0!"}},{"$f":"(SQRT((P$40^2)+((O$40^2)/(O$8^2))*(P$8^2)))/O$8","v":{"$error":"#DIV/0!"}},{"$f":"Q40/Q8","v":2.6451612903225805},{"$f":"(SQRT((R$40^2)+((Q$40^2)/(Q$8^2))*(R$8^2)))/Q$8","v":1.0199223108183284},{"$f":"S40/S8","v":2.7364341085271318},{"$f":"(SQRT((T$40^2)+((S$40^2)/(S$8^2))*(T$8^2)))/S$8","v":0.52014417534969104},{"$f":"U40/U8","v":2.5625},{"$f":"(SQRT((V$40^2)+((U$40^2)/(U$8^2))*(V$8^2)))/U$8","v":0.85711698857123941},{"$f":"W40/W8","v":{"$error":"#DIV/0!"}},{"$f":"(SQRT((X$40^2)+((W$40^2)/(W$8^2))*(X$8^2)))/W$8","v":{"$error":"#DIV/0!"}},{"$f":"Y40/Y8","v":{"$error":"#DIV/0!"}},{"$f":"(SQRT((Z$40^2)+((Y$40^2)/(Y$8^2))*(Z$8^2)))/Y$8","v":{"$error":"#DIV/0!"}},{"$f":"AA40/AA8","v":2.6691176470588234},{"$f":"(SQRT((AB$40^2)+((AA$40^2)/(AA$8^2))*(AB$8^2)))/AA$8","v":0.77712189600247705},{"$f":"AC40/AC8","v":{"$error":"#DIV/0!"}},{"$f":"(SQRT((AD$40^2)+((AC$40^2)/(AC$8^2))*(AD$8^2)))/AC$8","v":{"$error":"#DIV/0!"}},{"$f":"AE40/AE8","v":{"$error":"#DIV/0!"}},{"$f":"(SQRT((AF$40^2)+((AE$40^2)/(AE$8^2))*(AF$8^2)))/AE$8","v":{"$error":"#DIV/0!"}},{"$f":"AG40/AG8","v":2.9333333333333331},{"$f":"(SQRT((AH$40^2)+((AG$40^2)/(AG$8^2))*(AH$8^2)))/AG$8","v":1.0148148148148148},{"$f":"AI40/AI8","v":2.377049180327869},{"$f":"(SQRT((AJ$40^2)+((AI$40^2)/(AI$8^2))*(AJ$8^2)))/AI$8","v":1.1935518322074223},{"$f":"AK40/AK8","v":{"$error":"#DIV/0!"}},{"$f":"(SQRT((AL$40^2)+((AK$40^2)/(AK$8^2))*(AL$8^2)))/AK$8","v":{"$error":"#DIV/0!"}},{"$f":"AM40/AM8","v":2.7030075187969924},{"$f":"(SQRT((AN$40^2)+((AM$40^2)/(AM$8^2))*(AN$8^2)))/AM$8","v":0.25541326468831071},{"$f":"AO40/AO8","v":{"$error":"#DIV/0!"}},{"$f":"(SQRT((AP$40^2)+((AO$40^2)/(AO$8^2))*(AP$8^2)))/AO$8","v":{"$error":"#DIV/0!"}},{"$f":"AQ40/AQ8","v":{"$error":"#DIV/0!"}},{"$f":"(SQRT((AR$40^2)+((AQ$40^2)/(AQ$8^2))*(AR$8^2)))/AQ$8","v":{"$error":"#DIV/0!"}},{"$f":"AS40/AS8","v":2.6566037735849055},{"$f":"(SQRT((AT$40^2)+((AS$40^2)/(AS$8^2))*(AT$8^2)))/AS$8","v":0.69348654551868183},{"$f":"AU40/AU8","v":{"$error":"#DIV/0!"}},{"$f":"(SQRT((AV$40^2)+((AU$40^2)/(AU$8^2))*(AV$8^2)))/AU$8","v":{"$error":"#DIV/0!"}},{"$f":"AW40/AW8","v":3.0370813397129188},{"$f":"(SQRT((AX$40^2)+((AW$40^2)/(AW$8^2))*(AX$8^2)))/AW$8","v":0.3567757410632813},{"$f":"AY40/AY8","v":{"$error":"#DIV/0!"}},{"$f":"(SQRT((AZ$40^2)+((AY$40^2)/(AY$8^2))*(AZ$8^2)))/AY$8","v":{"$error":"#DIV/0!"}},{"$f":"BA40/BA8","v":{"$error":"#DIV/0!"}},{"$f":"(SQRT((BB$40^2)+((BA$40^2)/(BA$8^2))*(BB$8^2)))/BA$8","v":{"$error":"#DIV/0!"}},{"$f":"BC40/BC8","v":2.5799522673031028},{"$f":"(SQRT((BD$40^2)+((BC$40^2)/(BC$8^2))*(BD$8^2)))/BC$8","v":0.32218695099996164},{"$f":"BE40/BE8","v":2},{"$f":"(SQRT((BF$40^2)+((BE$40^2)/(BE$8^2))*(BF$8^2)))/BE$8","v":4.2426406871192848},{"$f":"BG40/BG8","v":2.9813559322033898},{"$f":"(SQRT((BH$40^2)+((BG$40^2)/(BG$8^2))*(BH$8^2)))/BG$8","v":0.6034678123451449},{"$f":"BI40/BI8","v":{"$error":"#DIV/0!"}},{"$f":"(SQRT((BJ$40^2)+((BI$40^2)/(BI$8^2))*(BJ$8^2)))/BI$8","v":{"$error":"#DIV/0!"}},{"$f":"BK40/BK8","v":{"$error":"#DIV/0!"}},{"$f":"(SQRT((BL$40^2)+((BK$40^2)/(BK$8^2))*(BL$8^2)))/BK$8","v":{"$error":"#DIV/0!"}},{"$f":"BM40/BM8","v":2.3603603603603602},{"$f":"(SQRT((BN$40^2)+((BM$40^2)/(BM$8^2))*(BN$8^2)))/BM$8","v":0.71898289605112031},{"$f":"BO40/BO8","v":2.282258064516129},{"$f":"(SQRT((BP$40^2)+((BO$40^2)/(BO$8^2))*(BP$8^2)))/BO$8","v":0.73136395050477665},{"$f":"BQ40/BQ8","v":{"$error":"#DIV/0!"}},{"$f":"(SQRT((BR$40^2)+((BQ$40^2)/(BQ$8^2))*(BR$8^2)))/BQ$8","v":{"$error":"#DIV/0!"}},{"$f":"BS40/BS8","v":{"$error":"#DIV/0!"}},{"$f":"(SQRT((BT$40^2)+((BS$40^2)/(BS$8^2))*(BT$8^2)))/BS$8","v":{"$error":"#DIV/0!"}},{"$f":"BU40/BU8","v":2.5303030303030303},{"$f":"(SQRT((BV$40^2)+((BU$40^2)/(BU$8^2))*(BV$8^2)))/BU$8","v":0.68712250220074655},{"$f":"BW40/BW8","v":3.1677419354838712},{"$f":"(SQRT((BX$40^2)+((BW$40^2)/(BW$8^2))*(BX$8^2)))/BW$8","v":1.1776159179810466},{"$f":"BY40/BY8","v":2.5772357723577235},{"$f":"(SQRT((BZ$40^2)+((BY$40^2)/(BY$8^2))*(BZ$8^2)))/BY$8","v":0.8453071746481875},{"$f":"CA40/CA8","v":2.9298245614035086},{"$f":"(SQRT((CB$40^2)+((CA$40^2)/(CA$8^2))*(CB$8^2)))/CA$8","v":0.93158957957093069},{"$f":"CC40/CC8","v":{"$error":"#DIV/0!"}},{"$f":"(SQRT((CD$40^2)+((CC$40^2)/(CC$8^2))*(CD$8^2)))/CC$8","v":{"$error":"#DIV/0!"}},{"$f":"CE40/CE8","v":{"$error":"#DIV/0!"}},{"$f":"(SQRT((CF$40^2)+((CE$40^2)/(CE$8^2))*(CF$8^2)))/CE$8","v":{"$error":"#DIV/0!"}},{"$f":"CG40/CG8","v":2.1111111111111112},{"$f":"(SQRT((CH$40^2)+((CG$40^2)/(CG$8^2))*(CH$8^2)))/CG$8","v":2.2618213900769581},{"$f":"CI40/CI8","v":2.7479541734860882},{"$f":"(SQRT((CJ$40^2)+((CI$40^2)/(CI$8^2))*(CJ$8^2)))/CI$8","v":0.50859577763296759}]
[null,"In nonfamily households",{"$f":"C50/C13","v":{"$error":"#DIV/0!"}},{"$f":"(SQRT((D$50^2)+((C$50^2)/(C$13^2))*(D$13^2)))/C$13","v":{"$error":"#DIV/0!"}},{"$f":"E50/E13","v":{"$error":"#DIV/0!"}},{"$f":"(SQRT((F$50^2)+((E$50^2)/(E$13^2))*(F$13^2)))/E$13","v":{"$error":"#DIV/0!"}},{"$f":"G50/G13","v":{"$error":"#DIV/0!"}},{"$f":"(SQRT((H$50^2)+((G$50^2)/(G$13^2))*(H$13^2)))/G$13","v":{"$error":"#DIV/0!"}},{"$f":"I50/I13","v":1.1447443997702469},{"$f":"(SQRT((J$50^2)+((I$50^2)/(I$13^2))*(J$13^2)))/I$13","v":0.26871556647948497},{"$f":"K50/K13","v":{"$error":"#DIV/0!"}},{"$f":"(SQRT((L$50^2)+((K$50^2)/(K$13^2))*(L$13^2)))/K$13","v":{"$error":"#DIV/0!"}},{"$f":"M50/M13","v":1.1515151515151516},{"$f":"(SQRT((N$50^2)+((M$50^2)/(M$13^2))*(N$13^2)))/M$13","v":0.5818812517410572},{"$f":"O50/O13","v":{"$error":"#DIV/0!"}},{"$f":"(SQRT((P$50^2)+((O$50^2)/(O$13^2))*(P$13^2)))/O$13","v":{"$error":"#DIV/0!"}},{"$f":"Q50/Q13","v":1.625},{"$f":"(SQRT((R$50^2)+((Q$50^2)/(Q$13^2))*(R$13^2)))/Q$13","v":1.4174347833383238},{"$f":"S50/S13","v":1.1324200913242009},{"$f":"(SQRT((T$50^2)+((S$50^2)/(S$13^2))*(T$13^2)))/S$13","v":0.32019814394181723},{"$f":"U50/U13","v":1.1785714285714286},{"$f":"(SQRT((V$50^2)+((U$50^2)/(U$13^2))*(V$13^2)))/U$13","v":0.41983472135211891},{"$f":"W50/W13","v":{"$error":"#DIV/0!"}},{"$f":"(SQRT((X$50^2)+((W$50^2)/(W$13^2))*(X$13^2)))/W$13","v":{"$error":"#DIV/0!"}},{"$f":"Y50/Y13","v":{"$error":"#DIV/0!"}},{"$f":"(SQRT((Z$50^2)+((Y$50^2)/(Y$13^2))*(Z$13^2)))/Y$13","v":{"$error":"#DIV/0!"}},{"$f":"AA50/AA13","v":1.1842105263157894},{"$f":"(SQRT((AB$50^2)+((AA$50^2)/(AA$13^2))*(AB$13^2)))/AA$13","v":0.52036208771873793},{"$f":"AC50/AC13","v":{"$error":"#DIV/0!"}},{"$f":"(SQRT((AD$50^2)+((AC$50^2)/(AC$13^2))*(AD$13^2)))/AC$13","v":{"$error":"#DIV/0!"}},{"$f":"AE50/AE13","v":1},{"$f":"(SQRT((AF$50^2)+((AE$50^2)/(AE$13^2))*(AF$13^2)))/AE$13","v":5.6568542494923806},{"$f":"AG50/AG13","v":1.1351351351351351},{"$f":"(SQRT((AH$50^2)+((AG$50^2)/(AG$13^2))*(AH$13^2)))/AG$13","v":0.66965951324599904},{"$f":"AI50/AI13","v":1.1538461538461537},{"$f":"(SQRT((AJ$50^2)+((AI$50^2)/(AI$13^2))*(AJ$13^2)))/AI$13","v":0.669531922049311},{"$f":"AK50/AK13","v":{"$error":"#DIV/0!"}},{"$f":"(SQRT((AL$50^2)+((AK$50^2)/(AK$13^2))*(AL$13^2)))/AK$13","v":{"$error":"#DIV/0!"}},{"$f":"AM50/AM13","v":1.047191011235955},{"$f":"(SQRT((AN$50^2)+((AM$50^2)/(AM$13^2))*(AN$13^2)))/AM$13","v":0.36744369657273468},{"$f":"AO50/AO13","v":{"$error":"#DIV/0!"}},{"$f":"(SQRT((AP$50^2)+((AO$50^2)/(AO$13^2))*(AP$13^2)))/AO$13","v":{"$error":"#DIV/0!"}},{"$f":"AQ50/AQ13","v":{"$error":"#DIV/0!"}},{"$f":"(SQRT((AR$50^2)+((AQ$50^2)/(AQ$13^2))*(AR$13^2)))/AQ$13","v":{"$error":"#DIV/0!"}},{"$f":"AS50/AS13","v":1.083969465648855},{"$f":"(SQRT((AT$50^2)+((AS$50^2)/(AS$13^2))*(AT$13^2)))/AS$13","v":0.44955024106079677},{"$f":"AU50/AU13","v":{"$error":"#DIV/0!"}},{"$f":"(SQRT((AV$50^2)+((AU$50^2)/(AU$13^2))*(AV$13^2)))/AU$13","v":{"$error":"#DIV/0!"}},{"$f":"AW50/AW13","v":1.1584905660377358},{"$f":"(SQRT((AX$50^2)+((AW$50^2)/(AW$13^2))*(AX$13^2)))/AW$13","v":0.44364149096240907},{"$f":"AY50/AY13","v":{"$error":"#DIV/0!"}},{"$f":"(SQRT((AZ$50^2)+((AY$50^2)/(AY$13^2))*(AZ$13^2)))/AY$13","v":{"$error":"#DIV/0!"}},{"$f":"BA50/BA13","v":{"$error":"#DIV/0!"}},{"$f":"(SQRT((BB$50^2)+((BA$50^2)/(BA$13^2))*(BB$13^2)))/BA$13","v":{"$error":"#DIV/0!"}},{"$f":"BC50/BC13","v":1.4764705882352942},{"$f":"(SQRT((BD$50^2)+((BC$50^2)/(BC$13^2))*(BD$13^2)))/BC$13","v":0.63000054733858379},{"$f":"BE50/BE13","v":{"$error":"#DIV/0!"}},{"$f":"(SQRT((BF$50^2)+((BE$50^2)/(BE$13^2))*(BF$13^2)))/BE$13","v":{"$error":"#DIV/0!"}},{"$f":"BG50/BG13","v":1.4187817258883249},{"$f":"(SQRT((BH$50^2)+((BG$50^2)/(BG$13^2))*(BH$13^2)))/BG$13","v":0.39277698904617087},{"$f":"BI50/BI13","v":{"$error":"#DIV/0!"}},{"$f":"(SQRT((BJ$50^2)+((BI$50^2)/(BI$13^2))*(BJ$13^2)))/BI$13","v":{"$error":"#DIV/0!"}},{"$f":"BK50/BK13","v":{"$error":"#DIV/0!"}},{"$f":"(SQRT((BL$50^2)+((BK$50^2)/(BK$13^2))*(BL$13^2)))/BK$13","v":{"$error":"#DIV/0!"}},{"$f":"BM50/BM13","v":1.0746268656716418},{"$f":"(SQRT((BN$50^2)+((BM$50^2)/(BM$13^2))*(BN$13^2)))/BM$13","v":0.43388744658568063},{"$f":"BO50/BO13","v":1.1388888888888888},{"$f":"(SQRT((BP$50^2)+((BO$50^2)/(BO$13^2))*(BP$13^2)))/BO$13","v":0.49159228568677299},{"$f":"BQ50/BQ13","v":{"$error":"#DIV/0!"}},{"$f":"(SQRT((BR$50^2)+((BQ$50^2)/(BQ$13^2))*(BR$13^2)))/BQ$13","v":{"$error":"#DIV/0!"}},{"$f":"BS50/BS13","v":{"$error":"#DIV/0!"}},{"$f":"(SQRT((BT$50^2)+((BS$50^2)/(BS$13^2))*(BT$13^2)))/BS$13","v":{"$error":"#DIV/0!"}},{"$f":"BU50/BU13","v":1.088235294117647},{"$f":"(SQRT((BV$50^2)+((BU$50^2)/(BU$13^2))*(BV$13^2)))/BU$13","v":0.47681018227045807},{"$f":"BW50/BW13","v":1.4743589743589745},{"$f":"(SQRT((BX$50^2)+((BW$50^2)/(BW$13^2))*(BX$13^2)))/BW$13","v":0.69676301048377975},{"$f":"BY50/BY13","v":1.2209302325581395},{"$f":"(SQRT((BZ$50^2)+((BY$50^2)/(BY$13^2))*(BZ$13^2)))/BY$13","v":0.52657539357823813},{"$f":"CA50/CA13","v":1.2169811320754718},{"$f":"(SQRT((CB$50^2)+((CA$50^2)/(CA$13^2))*(CB$13^2)))/CA$13","v":0.54821435022844944},{"$f":"CC50/CC13","v":{"$error":"#DIV/0!"}},{"$f":"(SQRT((CD$50^2)+((CC$50^2)/(CC$13^2))*(CD$13^2)))/CC$13","v":{"$error":"#DIV/0!"}},{"$f":"CE50/CE13","v":{"$error":"#DIV/0!"}},{"$f":"(SQRT((CF$50^2)+((CE$50^2)/(CE$13^2))*(CF$13^2)))/CE$13","v":{"$error":"#DIV/0!"}},{"$f":"CG50/CG13","v":1},{"$f":"(SQRT((CH$50^2)+((CG$50^2)/(CG$13^2))*(CH$13^2)))/CG$13","v":1.2121830534626528},{"$f":"CI50/CI13","v":1.1885057471264369},{"$f":"(SQRT((CJ$50^2)+((CI$50^2)/(CI$13^2))*(CJ$13^2)))/CI$13","v":0.38374544589956666}]
[]
[]
[]
[null,"B25010. AVERAGE HOUSEHOLD SIZE OF OCCUPIED HOUSING UNITS BY TENURE"]
[null,"Universe:  OCCUPIED HOUSING UNITS"]
[null,"Data Set: 2015-2019 American Community Survey 5-Year Estimates"]
[]
[null,null,"Atkinson and Gilmanton Grant",null,"Bean's Grant",null,"Bean's Purchase",null,"Berlin",null,"Cambridge",null,"Carroll",null,"Chandler's Purchase",null,"Clarksville",null,"Colebrook",null,"Columbia",null,"Crawford's Purchase",null,"Cutt's Grant",null,"Dalton",null,"Dix's Grant",null,"Dixville",null,"Dummer",null,"Errol",null,"Erving's Location",null,"Gorham",null,"Greens Grant",null,"Hadley's Purchase",null,"Jefferson",null,"Kilkenny",null,"Lancaster",null,"Low and Burbank's Grant",null,"Martin's Location",null,"Milan",null,"Millsfield ",null,"Northumberland",null,"Odell",null,"Pinkham's Grant",null,"Pittsburg",null,"Randolph",null,"Sargent's Purchase",null,"Second College Grant",null,"Shelburne",null,"Stark",null,"Stewartstown",null,"Stratford",null,"Success",null,"Thompson and Meserves Purchase",null,"Wentworth's Location",null,"Whitefield"]
[null,null,"Estimate","Margin Of Error","Estimate","Margin Of Error","Estimate","Margin Of Error","Estimate","Margin Of Error","Estimate","Margin Of Error","Estimate","Margin Of Error","Estimate","Margin Of Error","Estimate","Margin Of Error","Estimate","Margin Of Error","Estimate","Margin Of Error","Estimate","Margin Of Error","Estimate","Margin Of Error","Estimate","Margin Of Error","Estimate","Margin Of Error","Estimate","Margin Of Error","Estimate","Margin Of Error","Estimate","Margin Of Error","Estimate","Margin Of Error","Estimate","Margin Of Error","Estimate","Margin Of Error","Estimate","Margin Of Error","Estimate","Margin Of Error","Estimate","Margin Of Error","Estimate","Margin Of Error","Estimate","Margin Of Error","Estimate","Margin Of Error","Estimate","Margin Of Error","Estimate","Margin Of Error","Estimate","Margin Of Error","Estimate","Margin Of Error","Estimate","Margin Of Error","Estimate","Margin Of Error","Estimate","Margin Of Error","Estimate","Margin Of Error","Estimate","Margin Of Error","Estimate","Margin Of Error","Estimate","Margin Of Error","Estimate","Margin Of Error","Estimate","Margin Of Error","Estimate","Margin Of Error","Estimate","Margin Of Error","Estimate","Margin Of Error","Estimate","Margin Of Error"]
[null,"Average household size --","-","**",null,null,null,null,2.17,0.09,"-","**","-","**",null,null,2.25,0.25,2.13,0.16,"-","**",null,null,null,null,"-","**",null,null,"-","**",2.15,0.39,"-","**",null,null,"-","**",null,null,null,null,2.1800000000000002,0.16,"-","**","-","**",null,null,null,null,2.25,0.12,1.63,0.76,2.36,0.16,"-","**",null,null,1.81,0.15,"-","**",null,null,"-","**",2.0299999999999998,0.24,2.42,0.34,1.95,0.22,2.2999999999999998,0.28000000000000003,"-","**",null,null,1.65,0.44,2.08,0.16]
[null,"Total:","-","**","-","**","-","**",2.12,0.1,"-","**","-","**","-","**",2.2999999999999998,0.34,2,0.14000000000000001,"-","**","-","**","-","**","-","**","-","**","-","**",2.41,0.37,"-","**","-","**","-","**","-","**","-","**",2.14,0.17,"-","**","-","**","-","**","-","**",2.2599999999999998,0.11,2,0.97,2.36,0.18,"-","**","-","**",1.75,0.16,"-","**",2,0.95,"-","**",2.04,0.22,2.6,0.46,2.02,0.21,2.27,0.22,"-","**","-","**",1.63,0.39,2.1,0.19]
[null,"Owner occupied","-","**","-","**","-","**",2.2400000000000002,0.13,"-","**","-","**","-","**",2.3199999999999998,0.37,2.06,0.17,"-","**","-","**","-","**","-","**","-","**","-","**",2.46,0.4,"-","**","-","**","-","**","-","**","-","**",2.16,0.16,"-","**","-","**","-","**","-","**",2.2400000000000002,0.12,2,0.97,2.41,0.22,"-","**","-","**",1.86,0.18,"-","**","-","**","-","**",2.1,0.22,2.62,0.52,1.97,0.21,2.39,0.25,"-","**","-","**",1.71,0.44,2.25,0.22]
[null,"Renter occupied","-","**","-","**","-","**",1.96,0.23,"-","**","-","**","-","**",2,0.74,1.83,0.32,"-","**","-","**","-","**","-","**","-","**","-","**",1.92,0.61,"-","**","-","**","-","**","-","**","-","**",2,0.77,"-","**","-","**","-","**","-","**",2.36,0.31,"-","**",2.25,0.35,"-","**","-","**",1.32,0.25,"-","**",2,0.95,"-","**",1.78,1.0900000000000001,2.4900000000000002,0.98,2.38,0.95,1.94,0.39,"-","**","-","**","-","**",1.86,0.28999999999999998]
[]
[]
[]
[]
[]
[]
[null,"B11001. HOUSEHOLD TYPE (INCLUDING LIVING ALONE)"]
[null,"Universe:  HOUSEHOLDS"]
[null,"Data Set: 2010-2014 American Community Survey 5-Year Estimates"]
[]
[null,null,"Estimate","Margin Of Error","Estimate","Margin Of Error","Estimate","Margin Of Error","Estimate","Margin Of Error","Estimate","Margin Of Error","Estimate","Margin Of Error","Estimate","Margin Of Error","Estimate","Margin Of Error","Estimate","Margin Of Error","Estimate","Margin Of Error","Estimate","Margin Of Error","Estimate","Margin Of Error","Estimate","Margin Of Error","Estimate","Margin Of Error","Estimate","Margin Of Error","Estimate","Margin Of Error","Estimate","Margin Of Error","Estimate","Margin Of Error","Estimate","Margin Of Error","Estimate","Margin Of Error","Estimate","Margin Of Error","Estimate","Margin Of Error","Estimate","Margin Of Error","Estimate","Margin Of Error","Estimate","Margin Of Error","Estimate","Margin Of Error","Estimate","Margin Of Error","Estimate","Margin Of Error","Estimate","Margin Of Error","Estimate","Margin Of Error","Estimate","Margin Of Error","Estimate","Margin Of Error","Estimate","Margin Of Error","Estimate","Margin Of Error","Estimate","Margin Of Error","Estimate","Margin Of Error","Estimate","Margin Of Error","Estimate","Margin Of Error","Estimate","Margin Of Error","Estimate","Margin Of Error","Estimate","Margin Of Error","Estimate","Margin Of Error","Estimate","Margin Of Error"]
[null,"Total:",0,11,0,11,0,11,4185,303,8,10,362,57,0,11,152,33,1101,105,315,52,0,11,0,11,414,58,4,6,3,6,141,32,186,38,0,11,1240,77,0,11,0,11,0,11,0,11,1537,96,0,11,0,11,9,7,8,8,0,11,0,11,0,11,452,68,197,34,5,6,0,11,165,26,217,35,373,58,0,11,0,11,0,11,37,21,1047,106]
[null,"Family households:",0,11,0,11,0,11,2536,223,6,9,223,47,0,11,106,30,695,94,227,47,0,11,0,11,302,48,0,11,0,11,109,31,80,28,0,11,858,60,0,11,0,11,0,11,0,11,916,80,0,11,0,11,2,4,2,4,0,11,0,11,0,11,276,51,147,25,5,6,0,11,118,22,126,26,228,50,0,11,0,11,0,11,16,11,578,82]
[null,"Married-couple family",0,11,0,11,0,11,1762,188,2,5,184,44,0,11,77,28,506,83,180,41,0,11,0,11,225,38,0,11,0,11,104,31,67,26,0,11,696,73,0,11,0,11,0,11,0,11,674,93,0,11,0,11,2,4,2,4,0,11,0,11,0,11,250,50,128,23,5,6,0,11,100,24,107,24,176,45,0,11,0,11,0,11,16,11,475,78]
[null,"Other family:",0,11,0,11,0,11,774,164,4,7,39,25,0,11,29,18,189,56,47,22,0,11,0,11,77,39,0,11,0,11,5,5,13,11,0,11,162,61,0,11,0,11,0,11,0,11,242,90,0,11,0,11,0,11,0,11,0,11,0,11,0,11,26,15,19,13,0,11,0,11,18,10,19,10,52,33,0,11,0,11,0,11,0,11,103,34]
[null,"Male householder, no spouse present",0,11,0,11,0,11,264,108,4,7,13,14,0,11,8,9,37,34,15,15,0,11,0,11,30,22,0,11,0,11,2,3,4,7,0,11,42,39,0,11,0,11,0,11,0,11,48,34,0,11,0,11,0,11,0,11,0,11,0,11,0,11,4,6,11,9,0,11,0,11,9,9,6,6,19,18,0,11,0,11,0,11,0,11,31,18]
[null,"Female householder, no spouse present",0,11,0,11,0,11,510,135,0,11,26,21,0,11,21,16,152,48,32,16,0,11,0,11,47,25,0,11,0,11,3,4,9,9,0,11,120,57,0,11,0,11,0,11,0,11,194,87,0,11,0,11,0,11,0,11,0,11,0,11,0,11,22,14,8,9,0,11,0,11,9,8,13,9,33,27,0,11,0,11,0,11,0,11,72,28]
[null,"Nonfamily households:",0,11,0,11,0,11,1649,264,2,3,139,49,0,11,46,17,406,75,88,26,0,11,0,11,112,39,4,6,3,6,32,12,106,26,0,11,382,93,0,11,0,11,0,11,0,11,621,135,0,11,0,11,7,8,6,7,0,11,0,11,0,11,176,49,50,24,0,11,0,11,47,19,91,28,145,43,0,11,0,11,0,11,21,19,469,94]
[null,"Householder living alone",0,11,0,11,0,11,1473,245,2,3,104,44,0,11,30,14,315,71,75,23,0,11,0,11,87,35,4,6,3,6,29,12,91,24,0,11,333,87,0,11,0,11,0,11,0,11,516,131,0,11,0,11,5,7,4,6,0,11,0,11,0,11,132,43,46,22,0,11,0,11,41,15,80,28,139,42,0,11,0,11,0,11,10,12,405,91]
[null,"Householder not living alone",0,11,0,11,0,11,176,74,0,11,35,25,0,11,16,12,91,44,13,11,0,11,0,11,25,17,0,11,0,11,3,3,15,10,0,11,49,32,0,11,0,11,0,11,0,11,105,64,0,11,0,11,2,3,2,3,0,11,0,11,0,11,44,24,4,5,0,11,0,11,6,9,11,11,6,6,0,11,0,11,0,11,11,15,64,39]
[]
[]
[]
[]
[]
[]
[]
[]
[]
[]
[]
[]
[]
[]
[]
[]
[]
[null,"B11002. HOUSEHOLD TYPE BY RELATIVES AND NONRELATIVES FOR POPULATION IN HOUSEHOLDS "]
[null,"Universe:  POPULATION IN HOUSEHOLDS"]
[null,"Data Set: 2010-2014 American Community Survey 5-Year Estimates"]
[]
[null,null,"Atkinson and Gilmanton Grant",null,"Bean's Grant",null,"Bean's Purchase",null,"Berlin",null,"Cambridge",null,"Carroll",null,"Chandler's Purchase",null,"Clarksville",null,"Colebrook",null,"Columbia",null,"Crawford's Purchase",null,"Cutt's Grant",null,"Dalton",null,"Dix's Grant",null,"Dixville",null,"Dummer",null,"Errol",null,"Erving's Location",null,"Gorham",null,"Greens Grant",null,"Hadley's Purchase",null,"Jefferson",null,"Kilkenny",null,"Lancaster",null,"Low and Burbank's Grant",null,"Martin's Location",null,"Milan",null,"Millsfield ",null,"Northumberland",null,"Odell",null,"Pinkham's Grant",null,"Pittsburg",null,"Randolph",null,"Sargent's Purchase",null,"Second College Grant",null,"Shelburne",null,"Stark",null,"Stewartstown",null,"Stratford",null,"Success",null,"Thompson and Meserves Purchase",null,"Wentworth's Location",null,"Whitefield"]
[null,null,"Estimate","Margin Of Error","Estimate","Margin Of Error","Estimate","Margin Of Error","Estimate","Margin Of Error","Estimate","Margin Of Error","Estimate","Margin Of Error","Estimate","Margin Of Error","Estimate","Margin Of Error","Estimate","Margin Of Error","Estimate","Margin Of Error","Estimate","Margin Of Error","Estimate","Margin Of Error","Estimate","Margin Of Error","Estimate","Margin Of Error","Estimate","Margin Of Error","Estimate","Margin Of Error","Estimate","Margin Of Error","Estimate","Margin Of Error","Estimate","Margin Of Error","Estimate","Margin Of Error","Estimate","Margin Of Error","Estimate","Margin Of Error","Estimate","Margin Of Error","Estimate","Margin Of Error","Estimate","Margin Of Error","Estimate","Margin Of Error","Estimate","Margin Of Error","Estimate","Margin Of Error","Estimate","Margin Of Error","Estimate","Margin Of Error","Estimate","Margin Of Error","Estimate","Margin Of Error","Estimate","Margin Of Error","Estimate","Margin Of Error","Estimate","Margin Of Error","Estimate","Margin Of Error","Estimate","Margin Of Error","Estimate","Margin Of Error","Estimate","Margin Of Error","Estimate","Margin Of Error","Estimate","Margin Of Error","Estimate","Margin Of Error","Estimate","Margin Of Error"]
[null,"Total:",0,11,0,11,0,11,8655,578,17,16,902,160,0,11,315,75,2340,210,706,128,0,11,0,11,933,154,4,6,3,6,348,76,301,70,0,11,2764,16,0,11,0,11,0,11,0,11,3330,90,0,11,0,11,20,16,21,19,0,11,0,11,0,11,875,130,424,74,9,12,0,11,358,66,489,94,711,123,0,11,0,11,0,11,62,33,2076,219]
[null,"In family households:",0,11,0,11,0,11,6802,531,15,16,715,162,0,11,255,75,1826,229,604,125,0,11,0,11,797,146,0,11,0,11,314,78,181,65,0,11,2334,106,0,11,0,11,0,11,0,11,2602,180,0,11,0,11,7,14,9,14,0,11,0,11,0,11,659,123,368,68,9,12,0,11,303,67,387,93,555,123,0,11,0,11,0,11,35,25,1532,214]
[null,"In married-couple family:",0,11,0,11,0,11,4798,537,6,9,566,165,0,11,165,50,1286,219,483,112,0,11,0,11,549,107,0,11,0,11,301,79,153,59,0,11,1864,181,0,11,0,11,0,11,0,11,1909,266,0,11,0,11,7,14,9,14,0,11,0,11,0,11,588,120,324,64,9,12,0,11,248,73,336,87,438,114,0,11,0,11,0,11,35,25,1278,212]
[null,"Relatives",0,11,0,11,0,11,4723,534,6,9,564,165,0,11,165,50,1269,219,483,112,0,11,0,11,549,107,0,11,0,11,301,79,153,59,0,11,1864,181,0,11,0,11,0,11,0,11,1909,266,0,11,0,11,7,14,9,14,0,11,0,11,0,11,588,120,324,64,9,12,0,11,246,72,330,87,438,114,0,11,0,11,0,11,35,25,1264,212]
[null,"Nonrelatives",0,11,0,11,0,11,75,45,0,11,2,3,0,11,0,11,17,19,0,11,0,11,0,11,0,11,0,11,0,11,0,11,0,11,0,11,0,11,0,11,0,11,0,11,0,11,0,11,0,11,0,11,0,11,0,11,0,11,0,11,0,11,0,11,0,11,0,11,0,11,2,3,6,6,0,11,0,11,0,11,0,11,0,11,14,14]
[null,"In male householder, no spouse present, family:",0,11,0,11,0,11,639,258,9,12,48,52,0,11,41,37,110,97,41,41,0,11,0,11,91,73,0,11,0,11,7,9,8,13,0,11,122,131,0,11,0,11,0,11,0,11,173,130,0,11,0,11,0,11,0,11,0,11,0,11,0,11,11,18,25,20,0,11,0,11,30,19,14,14,37,35,0,11,0,11,0,11,0,11,67,34]
[null,"Relatives",0,11,0,11,0,11,554,225,9,12,35,38,0,11,34,30,84,72,34,33,0,11,0,11,69,51,0,11,0,11,6,8,8,13,0,11,104,105,0,11,0,11,0,11,0,11,94,65,0,11,0,11,0,11,0,11,0,11,0,11,0,11,7,13,20,15,0,11,0,11,27,17,14,14,37,35,0,11,0,11,0,11,0,11,67,34]
[null,"Nonrelatives",0,11,0,11,0,11,85,49,0,11,13,14,0,11,7,8,26,27,7,11,0,11,0,11,22,26,0,11,0,11,1,3,0,11,0,11,18,28,0,11,0,11,0,11,0,11,79,72,0,11,0,11,0,11,0,11,0,11,0,11,0,11,4,5,5,6,0,11,0,11,3,4,0,11,0,11,0,11,0,11,0,11,0,11,0,11]
[null,"In female householder, no spouse present, family:",0,11,0,11,0,11,1365,368,0,11,101,85,0,11,49,33,430,127,80,39,0,11,0,11,157,91,0,11,0,11,6,8,20,19,0,11,348,165,0,11,0,11,0,11,0,11,520,225,0,11,0,11,0,11,0,11,0,11,0,11,0,11,60,32,19,19,0,11,0,11,25,20,37,25,80,62,0,11,0,11,0,11,0,11,187,89]
[null,"Relatives",0,11,0,11,0,11,1275,330,0,11,94,82,0,11,49,33,381,111,75,37,0,11,0,11,147,88,0,11,0,11,6,8,18,17,0,11,292,128,0,11,0,11,0,11,0,11,469,204,0,11,0,11,0,11,0,11,0,11,0,11,0,11,57,31,19,19,0,11,0,11,24,19,37,25,80,62,0,11,0,11,0,11,0,11,171,78]
[null,"Nonrelatives",0,11,0,11,0,11,90,80,0,11,7,10,0,11,0,11,49,25,5,5,0,11,0,11,10,9,0,11,0,11,0,11,2,4,0,11,56,48,0,11,0,11,0,11,0,11,51,47,0,11,0,11,0,11,0,11,0,11,0,11,0,11,3,5,0,11,0,11,0,11,1,2,0,11,0,11,0,11,0,11,0,11,0,11,16,16]
[null,"In nonfamily households",0,11,0,11,0,11,1853,298,2,3,187,73,0,11,60,25,514,106,102,33,0,11,0,11,136,52,4,6,3,6,34,13,120,29,0,11,430,105,0,11,0,11,0,11,0,11,728,166,0,11,0,11,13,14,12,13,0,11,0,11,0,11,216,62,56,22,0,11,0,11,55,20,102,30,156,47,0,11,0,11,0,11,27,23,544,114]
[]
[]
[]
[null,"Calculated Average  Household Size by Household Type"]
[null,"Universe:  POPULATION IN HOUSEHOLDS"]
[null,"Data Set: 2010-2014 American Community Survey 5-Year Estimates"]
[]
[null,null,"Atkinson and Gilmanton Grant",null,"Bean's Grant",null,"Bean's Purchase",null,"Berlin",null,"Cambridge",null,"Carroll",null,"Chandler's Purchase",null,"Clarksville",null,"Colebrook",null,"Columbia",null,"Crawford's Purchase",null,"Cutt's Grant",null,"Dalton",null,"Dix's Grant",null,"Dixville",null,"Dummer",null,"Errol",null,"Erving's Location",null,"Gorham",null,"Greens Grant",null,"Hadley's Purchase",null,"Jefferson",null,"Kilkenny",null,"Lancaster",null,"Low and Burbank's Grant",null,"Martin's Location",null,"Milan",null,"Millsfield ",null,"Northumberland",null,"Odell",null,"Pinkham's Grant",null,"Pittsburg",null,"Randolph",null,"Sargent's Purchase",null,"Second College Grant",null,"Shelburne",null,"Stark",null,"Stewartstown",null,"Stratford",null,"Success",null,"Thompson and Meserves Purchase",null,"Wentworth's Location",null,"Whitefield"]
[null,null,"Estimate","Margin Of Error","Estimate","Margin Of Error","Estimate","Margin Of Error","Estimate","Margin Of Error","Estimate","Margin Of Error","Estimate","Margin Of Error","Estimate","Margin Of Error","Estimate","Margin Of Error","Estimate","Margin Of Error","Estimate","Margin Of Error","Estimate","Margin Of Error","Estimate","Margin Of Error","Estimate","Margin Of Error","Estimate","Margin Of Error","Estimate","Margin Of Error","Estimate","Margin Of Error","Estimate","Margin Of Error","Estimate","Margin Of Error","Estimate","Margin Of Error","Estimate","Margin Of Error","Estimate","Margin Of Error","Estimate","Margin Of Error","Estimate","Margin Of Error","Estimate","Margin Of Error","Estimate","Margin Of Error","Estimate","Margin Of Error","Estimate","Margin Of Error","Estimate","Margin Of Error","Estimate","Margin Of Error","Estimate","Margin Of Error","Estimate","Margin Of Error","Estimate","Margin Of Error","Estimate","Margin Of Error","Estimate","Margin Of Error","Estimate","Margin Of Error","Estimate","Margin Of Error","Estimate","Margin Of Error","Estimate","Margin Of Error","Estimate","Margin Of Error","Estimate","Margin Of Error","Estimate","Margin Of Error","Estimate","Margin Of Error","Estimate","Margin Of Error"]
[null,"Total:","-","**","-","**","-","**",2.0681003584229392,0.20370348396112653,2.125,3.3250058740549617,2.4917127071823204,0.59100430423714057,{"$error":"#DIV/0!"},{"$error":"#DIV/0!"},2.0723684210526314,0.66775311569566742,2.1253405994550407,0.27832175632658473,2.2412698412698413,0.54955468828125986,{"$error":"#DIV/0!"},{"$error":"#DIV/0!"},{"$error":"#DIV/0!"},{"$error":"#DIV/0!"},2.2536231884057969,0.48790561735860122,1,2.1213203435596424,1,2.8284271247461898,2.4680851063829787,0.77735280792367045,1.618279569892473,0.5009410942982363,{"$error":"#DIV/0!"},{"$error":"#DIV/0!"},2.2290322580645161,0.13901583645726812,{"$error":"#DIV/0!"},{"$error":"#DIV/0!"},{"$error":"#DIV/0!"},{"$error":"#DIV/0!"},{"$error":"#DIV/0!"},{"$error":"#DIV/0!"},{"$error":"#DIV/0!"},{"$error":"#DIV/0!"},2.1665582303188029,0.14744744217580444,{"$error":"#DIV/0!"},{"$error":"#DIV/0!"},{"$error":"#DIV/0!"},{"$error":"#DIV/0!"},2.2222222222222223,2.479484486051001,2.625,3.5399505646265741,{"$error":"#DIV/0!"},{"$error":"#DIV/0!"},{"$error":"#DIV/0!"},{"$error":"#DIV/0!"},{"$error":"#DIV/0!"},{"$error":"#DIV/0!"},1.9358407079646018,0.40931203034356439,2.1522842639593907,0.52828400708761225,1.8,3.2288697712976906,{"$error":"#DIV/0!"},{"$error":"#DIV/0!"},2.1696969696969699,0.52620328394889959,2.2534562211981566,0.56546294252502083,1.906166219839142,0.44338974882772336,{"$error":"#DIV/0!"},{"$error":"#DIV/0!"},{"$error":"#DIV/0!"},{"$error":"#DIV/0!"},{"$error":"#DIV/0!"},{"$error":"#DIV/0!"},1.6756756756756757,1.3038346085608574,1.9828080229226361,0.2899126448280504]
[null,"In family households:","-","**","-","**","-","**",2.6821766561514195,0.31538716374067555,2.5,4.6014792307595078,3.2062780269058297,0.99216706733827709,{"$error":"#DIV/0!"},{"$error":"#DIV/0!"},2.4056603773584904,0.98192464658775136,2.6273381294964029,0.48460609864479304,2.66079295154185,0.77893037460698844,{"$error":"#DIV/0!"},{"$error":"#DIV/0!"},{"$error":"#DIV/0!"},{"$error":"#DIV/0!"},2.6390728476821192,0.64004730858514591,{"$error":"#DIV/0!"},{"$error":"#DIV/0!"},{"$error":"#DIV/0!"},{"$error":"#DIV/0!"},2.8807339449541285,1.0878034524132769,2.2625000000000002,1.134558180802113,{"$error":"#DIV/0!"},{"$error":"#DIV/0!"},2.7202797202797204,0.22682616556018984,{"$error":"#DIV/0!"},{"$error":"#DIV/0!"},{"$error":"#DIV/0!"},{"$error":"#DIV/0!"},{"$error":"#DIV/0!"},{"$error":"#DIV/0!"},{"$error":"#DIV/0!"},{"$error":"#DIV/0!"},2.8406113537117905,0.31648482220593888,{"$error":"#DIV/0!"},{"$error":"#DIV/0!"},{"$error":"#DIV/0!"},{"$error":"#DIV/0!"},3.5,9.8994949366116654,4.5,11.401754250991379,{"$error":"#DIV/0!"},{"$error":"#DIV/0!"},{"$error":"#DIV/0!"},{"$error":"#DIV/0!"},{"$error":"#DIV/0!"},{"$error":"#DIV/0!"},2.38768115942029,0.62710846252616581,2.5034013605442178,0.62868650780071911,1.8,3.2288697712976906,{"$error":"#DIV/0!"},{"$error":"#DIV/0!"},2.5677966101694913,0.74268879416608702,3.0714285714285716,0.97286707688595342,2.4342105263157894,0.75894243363770164,{"$error":"#DIV/0!"},{"$error":"#DIV/0!"},{"$error":"#DIV/0!"},{"$error":"#DIV/0!"},{"$error":"#DIV/0!"},{"$error":"#DIV/0!"},2.1875,2.1686724646172513,2.6505190311418687,0.52770658693187644]
[null,"In nonfamily households","-","**","-","**","-","**",1.1237113402061856,0.25499638605309993,1,2.1213203435596424,1.3453237410071943,0.70762116769032946,{"$error":"#DIV/0!"},{"$error":"#DIV/0!"},1.3043478260869565,0.7264521405465062,1.2660098522167487,0.35051297259659081,1.1590909090909092,0.50784145746719977,{"$error":"#DIV/0!"},{"$error":"#DIV/0!"},{"$error":"#DIV/0!"},{"$error":"#DIV/0!"},1.2142857142857142,0.62797118887879655,1,2.1213203435596424,1,2.8284271247461898,1.0625,0.56902680420719198,1.1320754716981132,0.38981311696688636,{"$error":"#DIV/0!"},{"$error":"#DIV/0!"},1.12565445026178,0.38814257238813971,{"$error":"#DIV/0!"},{"$error":"#DIV/0!"},{"$error":"#DIV/0!"},{"$error":"#DIV/0!"},{"$error":"#DIV/0!"},{"$error":"#DIV/0!"},{"$error":"#DIV/0!"},{"$error":"#DIV/0!"},1.1723027375201289,0.36932746408930572,{"$error":"#DIV/0!"},{"$error":"#DIV/0!"},{"$error":"#DIV/0!"},{"$error":"#DIV/0!"},1.8571428571428572,2.9162972535340819,2,3.1841621957571333,{"$error":"#DIV/0!"},{"$error":"#DIV/0!"},{"$error":"#DIV/0!"},{"$error":"#DIV/0!"},{"$error":"#DIV/0!"},{"$error":"#DIV/0!"},1.2272727272727273,0.49075854670989361,1.1200000000000001,0.69470408088624325,{"$error":"#DIV/0!"},{"$error":"#DIV/0!"},{"$error":"#DIV/0!"},{"$error":"#DIV/0!"},1.1702127659574468,0.63629211393710261,1.1208791208791209,0.47710459943001521,1.0758620689655172,0.45481590139340816,{"$error":"#DIV/0!"},{"$error":"#DIV/0!"},{"$error":"#DIV/0!"},{"$error":"#DIV/0!"},{"$error":"#DIV/0!"},{"$error":"#DIV/0!"},1.2857142857142858,1.5977273414725448,1.159914712153518,0.3363465835353906]
[]
[]
[]
[]
[null,"B25010. AVERAGE HOUSEHOLD SIZE OF OCCUPIED HOUSING UNITS BY TENURE"]
[null,"Universe:  OCCUPIED HOUSING UNITS"]
[null,"Data Set: 2010-2014 American Community Survey 5-Year Estimates"]
[]
[null,null,"Atkinson and Gilmanton Grant",null,"Bean's Grant",null,"Bean's Purchase",null,"Berlin",null,"Cambridge",null,"Carroll",null,"Chandler's Purchase",null,"Clarksville",null,"Colebrook",null,"Columbia",null,"Crawford's Purchase",null,"Cutt's Grant",null,"Dalton",null,"Dix's Grant",null,"Dixville",null,"Dummer",null,"Errol",null,"Erving's Location",null,"Gorham",null,"Greens Grant",null,"Hadley's Purchase",null,"Jefferson",null,"Kilkenny",null,"Lancaster",null,"Low and Burbank's Grant",null,"Martin's Location",null,"Milan",null,"Millsfield ",null,"Northumberland",null,"Odell",null,"Pinkham's Grant",null,"Pittsburg",null,"Randolph",null,"Sargent's Purchase",null,"Second College Grant",null,"Shelburne",null,"Stark",null,"Stewartstown",null,"Stratford",null,"Success",null,"Thompson and Meserves Purchase",null,"Wentworth's Location",null,"Whitefield"]
[null,null,"Estimate","Margin Of Error","Estimate","Margin Of Error","Estimate","Margin Of Error","Estimate","Margin Of Error","Estimate","Margin Of Error","Estimate","Margin Of Error","Estimate","Margin Of Error","Estimate","Margin Of Error","Estimate","Margin Of Error","Estimate","Margin Of Error","Estimate","Margin Of Error","Estimate","Margin Of Error","Estimate","Margin Of Error","Estimate","Margin Of Error","Estimate","Margin Of Error","Estimate","Margin Of Error","Estimate","Margin Of Error","Estimate","Margin Of Error","Estimate","Margin Of Error","Estimate","Margin Of Error","Estimate","Margin Of Error","Estimate","Margin Of Error","Estimate","Margin Of Error","Estimate","Margin Of Error","Estimate","Margin Of Error","Estimate","Margin Of Error","Estimate","Margin Of Error","Estimate","Margin Of Error","Estimate","Margin Of Error","Estimate","Margin Of Error","Estimate","Margin Of Error","Estimate","Margin Of Error","Estimate","Margin Of Error","Estimate","Margin Of Error","Estimate","Margin Of Error","Estimate","Margin Of Error","Estimate","Margin Of Error","Estimate","Margin Of Error","Estimate","Margin Of Error","Estimate","Margin Of Error","Estimate","Margin Of Error","Estimate","Margin Of Error","Estimate","Margin Of Error"]
[null,"Average household size --"]
[null,"Total:","-","**","-","**","-","**",2.0699999999999998,0.08,2.13,1.1499999999999999,2.4900000000000002,0.31,"-","**",2.0699999999999998,0.22,2.13,0.14000000000000001,2.2400000000000002,0.19,"-","**","-","**",2.25,0.22,"-","**","-","**",2.4700000000000002,0.41,1.62,0.17,"-","**",2.23,0.14000000000000001,"-","**","-","**","-","**","-","**",2.17,0.13,"-","**","-","**",2.2200000000000002,1.98,2.63,1.84,"-","**","-","**","-","**",1.94,0.15,2.15,0.2,1.8,0.91,"-","**",2.17,0.24,2.25,0.33,1.91,0.2,"-","**","-","**","-","**",1.68,0.34,1.98,0.12]
[null,"Owner occupied","-","**","-","**","-","**",2.19,0.11,2.13,1.1499999999999999,2.2599999999999998,0.28000000000000003,"-","**",2.02,0.2,2.33,0.17,2.37,0.21,"-","**","-","**",2.3199999999999998,0.21,"-","**","-","**",2.52,0.41,1.64,0.22,"-","**",2.36,0.14000000000000001,"-","**","-","**","-","**","-","**",2.2400000000000002,0.16,"-","**","-","**",2.2200000000000002,1.98,2.63,1.84,"-","**","-","**","-","**",1.98,0.16,2.2400000000000002,0.22,"-","**","-","**",2.23,0.25,2.2400000000000002,0.35,2.02,0.24,"-","**","-","**","-","**",1.6,0.39,2.08,0.14000000000000001]
[null,"Renter occupied","-","**","-","**","-","**",1.88,0.17,"-","**",3.14,1.03,"-","**",2.4700000000000002,1.1000000000000001,1.7,0.17,1.72,0.41,"-","**","-","**",1.96,0.66,"-","**","-","**",1.92,0.5,1.51,0.22,"-","**",1.91,0.32,"-","**","-","**","-","**","-","**",2,0.33,"-","**","-","**","-","**","-","**","-","**","-","**","-","**",1.77,0.39,1.45,0.41,1.8,0.91,"-","**",1.83,0.83,2.31,0.63,1.59,0.34,"-","**","-","**","-","**",1.76,0.62,1.82,0.32]
[]
[]
[]
[]
[]
[]
[null,"B11001. HOUSEHOLD TYPE (INCLUDING LIVING ALONE)"]
[null,"Universe:  HOUSEHOLDS"]
[null,"Data Set: 2005-2009 American Community Survey 5-Year Estimates"]
[]
[null,null,"Atkinson and Gilmanton Grant",null,"Bean's Grant",null,"Bean's Purchase",null,"Berlin",null,"Cambridge",null,"Carroll",null,"Chandler's Purchase",null,"Clarksville",null,"Colebrook",null,"Columbia",null,"Crawford's Purchase",null,"Cutt's Grant",null,"Dalton",null,"Dix's Grant",null,"Dixville",null,"Dummer",null,"Errol",null,"Erving's Location",null,"Gorham",null,"Greens Grant",null,"Hadley's Purchase",null,"Jefferson",null,"Kilkenny",null,"Lancaster",null,"Low and Burbank's Grant",null,"Martin's Location",null,"Milan",null,"Millsfield ",null,"Northumberland",null,"Odell",null,"Pinkham's Grant",null,"Pittsburg",null,"Randolph",null,"Sargent's Purchase",null,"Second College Grant",null,"Shelburne",null,"Stark",null,"Stewartstown",null,"Stratford",null,"Success",null,"Thompson and Meserves Purchase",null,"Wentworth's Location",null,"Whitefield"]
[null,null,"Esitimate","Margin Of Error","Esitimate","Margin Of Error","Esitimate","Margin Of Error","Esitimate","Margin Of Error","Esitimate","Margin Of Error","Esitimate","Margin Of Error","Esitimate","Margin Of Error","Esitimate","Margin Of Error","Esitimate","Margin Of Error","Esitimate","Margin Of Error","Esitimate","Margin Of Error","Esitimate","Margin Of Error","Esitimate","Margin Of Error","Esitimate","Margin Of Error","Esitimate","Margin Of Error","Esitimate","Margin Of Error","Esitimate","Margin Of Error","Esitimate","Margin Of Error","Esitimate","Margin Of Error","Esitimate","Margin Of Error","Esitimate","Margin Of Error","Esitimate","Margin Of Error","Esitimate","Margin Of Error","Esitimate","Margin Of Error","Esitimate","Margin Of Error","Esitimate","Margin Of Error","Esitimate","Margin Of Error","Esitimate","Margin Of Error","Esitimate","Margin Of Error","Esitimate","Margin Of Error","Esitimate","Margin Of Error","Esitimate","Margin Of Error","Esitimate","Margin Of Error","Esitimate","Margin Of Error","Esitimate","Margin Of Error","Esitimate","Margin Of Error","Esitimate","Margin Of Error","Esitimate","Margin Of Error","Esitimate","Margin Of Error","Esitimate","Margin Of Error","Esitimate","Margin Of Error","Esitimate","Margin Of Error","Esitimate","Margin Of Error"]
[null,"Total:",0,114,0,114,0,114,4227,382,0,114,296,59,0,114,167,40,1116,126,344,64,0,114,0,114,469,55,0,114,8,8,151,49,119,32,0,114,1332,83,0,114,0,114,395,47,0,114,1248,119,0,114,0,114,567,44,4,5,1018,106,0,114,0,114,398,61,170,37,0,114,0,114,194,42,250,59,398,76,503,85,0,114,0,114,26,13,922,94]
[null,"Family households:",0,114,0,114,0,114,2417,221,0,114,207,52,0,114,102,26,566,97,242,50,0,114,0,114,352,48,0,114,8,8,124,51,88,25,0,114,859,83,0,114,0,114,311,39,0,114,967,93,0,114,0,114,424,41,0,114,762,104,0,114,0,114,275,58,131,32,0,114,0,114,157,40,174,48,280,63,285,73,0,114,0,114,11,12,564,75]
[null,"Married-couple family",0,114,0,114,0,114,1871,227,0,114,181,46,0,114,80,22,458,87,199,47,0,114,0,114,301,53,0,114,8,8,118,50,77,21,0,114,635,109,0,114,0,114,281,40,0,114,659,79,0,114,0,114,349,43,0,114,585,88,0,114,0,114,264,56,127,32,0,114,0,114,151,39,136,36,238,54,199,57,0,114,0,114,3,6,408,72]
[null,"Other family:",0,114,0,114,0,114,546,134,0,114,26,21,0,114,22,15,108,56,43,32,0,114,0,114,51,19,0,114,0,114,6,6,11,12,0,114,224,94,0,114,0,114,30,17,0,114,308,100,0,114,0,114,75,27,0,114,177,62,0,114,0,114,11,12,4,5,0,114,0,114,6,7,38,27,42,24,86,41,0,114,0,114,8,10,156,69]
[null,"Male householder, no spouse present",0,114,0,114,0,114,228,100,0,114,15,18,0,114,8,9,14,21,17,22,0,114,0,114,7,8,0,114,0,114,0,114,8,11,0,114,65,55,0,114,0,114,7,10,0,114,72,64,0,114,0,114,16,11,0,114,65,41,0,114,0,114,7,10,0,114,0,114,0,114,0,114,25,21,21,16,6,8,0,114,0,114,8,10,16,15]
[null,"Female householder, no spouse present",0,114,0,114,0,114,318,104,0,114,11,11,0,114,14,13,94,57,26,22,0,114,0,114,44,19,0,114,0,114,6,6,3,4,0,114,159,86,0,114,0,114,23,15,0,114,236,90,0,114,0,114,59,26,0,114,112,59,0,114,0,114,4,6,4,5,0,114,0,114,6,7,13,15,21,15,80,38,0,114,0,114,0,114,140,66]
[null,"Nonfamily households:",0,114,0,114,0,114,1810,280,0,114,89,38,0,114,65,29,550,120,102,43,0,114,0,114,117,43,0,114,0,114,27,14,31,15,0,114,473,103,0,114,0,114,84,39,0,114,281,90,0,114,0,114,143,34,4,5,256,61,0,114,0,114,123,37,39,21,0,114,0,114,37,16,76,39,118,39,218,56,0,114,0,114,15,10,358,78]
[null,"Householder living alone",0,114,0,114,0,114,1587,262,0,114,81,37,0,114,50,27,431,96,57,30,0,114,0,114,97,35,0,114,0,114,22,13,24,14,0,114,429,101,0,114,0,114,60,31,0,114,232,80,0,114,0,114,109,31,4,5,228,58,0,114,0,114,109,33,37,21,0,114,0,114,26,13,62,36,80,30,190,58,0,114,0,114,11,9,270,67]
[null,"Householder not living alone",0,114,0,114,0,114,223,84,0,114,8,9,0,114,15,11,119,72,45,34,0,114,0,114,20,23,0,114,0,114,5,5,7,6,0,114,44,30,0,114,0,114,24,19,0,114,49,49,0,114,0,114,34,14,0,114,28,22,0,114,0,114,14,11,2,3,0,114,0,114,11,10,14,13,38,23,28,23,0,114,0,114,4,6,88,50]
[]
[]
[]
[null,"Calculated Average  Household Size by Household Type"]
[null,"Universe:  POPULATION IN HOUSEHOLDS"]
[null,"Data Set: 2005-2009 American Community Survey 5-Year Estimates"]
[]
[null,null,"Atkinson and Gilmanton Grant",null,"Bean's Grant",null,"Bean's Purchase",null,"Berlin",null,"Cambridge",null,"Carroll",null,"Chandler's Purchase",null,"Clarksville",null,"Colebrook",null,"Columbia",null,"Crawford's Purchase",null,"Cutt's Grant",null,"Dalton",null,"Dix's Grant",null,"Dixville",null,"Dummer",null,"Errol",null,"Erving's Location",null,"Gorham",null,"Greens Grant",null,"Hadley's Purchase",null,"Jefferson",null,"Kilkenny",null,"Lancaster",null,"Low and Burbank's Grant",null,"Martin's Location",null,"Milan",null,"Millsfield ",null,"Northumberland",null,"Odell",null,"Pinkham's Grant",null,"Pittsburg",null,"Randolph",null,"Sargent's Purchase",null,"Second College Grant",null,"Shelburne",null,"Stark",null,"Stewartstown",null,"Stratford",null,"Success",null,"Thompson and Meserves Purchase",null,"Wentworth's Location",null,"Whitefield"]
[null,null,"Estimate","Margin Of Error","Estimate","Margin Of Error","Estimate","Margin Of Error","Estimate","Margin Of Error","Estimate","Margin Of Error","Estimate","Margin Of Error","Estimate","Margin Of Error","Estimate","Margin Of Error","Estimate","Margin Of Error","Estimate","Margin Of Error","Estimate","Margin Of Error","Estimate","Margin Of Error","Estimate","Margin Of Error","Estimate","Margin Of Error","Estimate","Margin Of Error","Estimate","Margin Of Error","Estimate","Margin Of Error","Estimate","Margin Of Error","Estimate","Margin Of Error","Estimate","Margin Of Error","Estimate","Margin Of Error","Estimate","Margin Of Error","Estimate","Margin Of Error","Estimate","Margin Of Error","Estimate","Margin Of Error","Estimate","Margin Of Error","Estimate","Margin Of Error","Estimate","Margin Of Error","Estimate","Margin Of Error","Estimate","Margin Of Error","Estimate","Margin Of Error","Estimate","Margin Of Error","Estimate","Margin Of Error","Estimate","Margin Of Error","Estimate","Margin Of Error","Estimate","Margin Of Error","Estimate","Margin Of Error","Estimate","Margin Of Error","Estimate","Margin Of Error","Estimate","Margin Of Error","Estimate","Margin Of Error","Estimate","Margin Of Error","Estimate","Margin Of Error"]
[null,"Total:","-","-","-","-","-","-",2.059380175065058,0.22387820825063684,"-","-",1.9189189189189189,0.54040234312690705,"-","-",1.9760479041916168,0.6691767339182868,1.9184587813620071,0.31289645847914133,2.4447674418604652,0.71326057090260975,"-","-","-","-",2.4690831556503197,0.42358599941529235,"-","-",2.625,3.8017265814363874,2.3245033112582782,1.1297625215840281,2.1260504201680672,0.82633600637182292,"-","-",2.114114114114114,0.133173612884011,"-","-","-","-",2.3721518987341774,0.39297039007296325,"-","-",2.6153846153846154,0.24975537592645289,"-","-","-","-",2.2416225749559082,0.26320736021876484,1,1.7677669529663689,2.2092337917485265,0.33292431658965682,"-","-","-","-",1.9422110552763818,0.45698465840181096,2.0352941176470587,0.65924293155195191,"-","-","-","-",2.2010309278350517,0.633554508162126,2.16,0.7543150917222855,2.4346733668341707,0.65742307367866404,2.0139165009940356,0.50843190538357996,"-","-","-","-",1.6538461538461537,1.2682105456767343,2.0835140997830801,0.30438089053079381]
[null,"In family households:","-","-","-","-","-","-",2.739346297062474,0.30461334990409478,"-","-",2.2753623188405796,0.79709190502450056,"-","-",2.4901960784313726,0.94930759081086635,2.6802120141342756,0.64712057902451103,2.8719008264462809,0.93542380139189041,"-","-","-","-",2.9147727272727271,0.57038319087396161,"-","-",2.625,3.8017265814363874,2.5725806451612905,1.4895111782845558,2.4772727272727271,1.0536088919634288,"-","-",2.6682188591385332,0.29050123300870334,"-","-","-","-",2.630225080385852,0.48362529148362671,"-","-",3.0031023784901758,0.32638286182348109,{"$error":"#DIV/0!"},"-","-","-",2.5849056603773586,0.36366670588101713,"-","-",2.5734908136482941,0.48242726324667018,"-","-","-","-",2.3199999999999998,0.70349675476646101,2.3129770992366412,0.86037205100031955,"-","-","-","-",2.4140127388535033,0.79869492735045033,2.5862068965517242,1.0625071544919644,2.9321428571428569,0.91123462463583116,2.7333333333333334,0.95952275450805591,"-","-","-","-",2.2727272727272729,3.3633926851445675,2.604609929078014,0.4662006715287525]
[null,"In nonfamily households","-","-","-","-","-","-",1.1513812154696133,0.25766371402393257,"-","-",1.0898876404494382,0.65480295752762374,"-","-",1.1692307692307693,0.72792671417866195,1.1345454545454545,0.3696618280071417,1.4313725490196079,0.91383287546873293,"-","-","-","-",1.1282051282051282,0.62043828012345847,"-","-","-","-",1.1851851851851851,0.85371304642092616,1.1290322580645162,0.79724461360799426,"-","-",1.1078224101479917,0.34250197480199696,"-","-","-","-",1.4166666666666667,1.0338353578071096,"-","-",1.2811387900355873,0.66485844965533181,{"$error":"#DIV/0!"},"-","-","-",1.2237762237762237,0.41343153262620758,1,1.7677669529663689,1.125,0.39999295466894169,"-","-","-","-",1.0975609756097562,0.47497715488257652,1.1025641025641026,0.83681740774750546,"-","-","-","-",1.2972972972972974,0.85758888358580043,1.1842105263157894,0.85768698060941839,1.2542372881355932,0.61121039375932051,1.073394495412844,0.3928443990354325,"-","-","-","-",1.2,1.131370849898476,1.2625698324022345,0.44231557741909211]
[]
[]
[]
[null,"B25010. AVERAGE HOUSEHOLD SIZE OF OCCUPIED HOUSING UNITS BY TENURE"]
[null,"Universe:  OCCUPIED HOUSING UNITS"]
[null,"Data Set: 2005-2009 American Community Survey 5-Year Estimates"]
[]
[null,null,"Atkinson and Gilmanton Grant",null,"Bean's Grant",null,"Bean's Purchase",null,"Berlin",null,"Cambridge",null,"Carroll",null,"Chandler's Purchase",null,"Clarksville",null,"Colebrook",null,"Columbia",null,"Crawford's Purchase",null,"Cutt's Grant",null,"Dalton",null,"Dix's Grant",null,"Dixville",null,"Dummer",null,"Errol",null,"Erving's Location",null,"Gorham",null,"Greens Grant",null,"Hadley's Purchase",null,"Jefferson",null,"Kilkenny",null,"Lancaster",null,"Low and Burbank's Grant",null,"Martin's Location",null,"Milan",null,"Millsfield ",null,"Northumberland",null,"Odell",null,"Pinkham's Grant",null,"Pittsburg",null,"Randolph",null,"Sargent's Purchase",null,"Second College Grant",null,"Shelburne",null,"Stark",null,"Stewartstown",null,"Stratford",null,"Success",null,"Thompson and Meserves Purchase",null,"Wentworth's Location",null,"Whitefield"]
[null,null,"Estimate","Margin Of Error","Estimate","Margin Of Error","Estimate","Margin Of Error","Estimate","Margin Of Error","Estimate","Margin Of Error","Estimate","Margin Of Error","Estimate","Margin Of Error","Estimate","Margin Of Error","Estimate","Margin Of Error","Estimate","Margin Of Error","Estimate","Margin Of Error","Estimate","Margin Of Error","Estimate","Margin Of Error","Estimate","Margin Of Error","Estimate","Margin Of Error","Estimate","Margin Of Error","Estimate","Margin Of Error","Estimate","Margin Of Error","Estimate","Margin Of Error","Estimate","Margin Of Error","Estimate","Margin Of Error","Estimate","Margin Of Error","Estimate","Margin Of Error","Estimate","Margin Of Error","Estimate","Margin Of Error","Estimate","Margin Of Error","Estimate","Margin Of Error","Estimate","Margin Of Error","Estimate","Margin Of Error","Estimate","Margin Of Error","Estimate","Margin Of Error","Estimate","Margin Of Error","Estimate","Margin Of Error","Estimate","Margin Of Error","Estimate","Margin Of Error","Estimate","Margin Of Error","Estimate","Margin Of Error","Estimate","Margin Of Error","Estimate","Margin Of Error","Estimate","Margin Of Error","Estimate","Margin Of Error","Estimate","Margin Of Error","Estimate","Margin Of Error"]
[null,"Average household size --"]
[null,"Total:","-","-","-","-","-","-",2.06,0.09,"-","-",1.92,0.22,"-","-",1.98,0.26,1.92,0.17,2.44,0.3,"-","-","-","-",2.4700000000000002,0.2,"-","-","-","-",2.3199999999999998,0.25,2.13,0.36,"-","-",2.11,0.13,"-","-","-","-",2.37,0.19,"-","-",2.62,0.25,"-","-","-","-",2.2400000000000002,0.13,"-","-",2.21,0.15,"-","-","-","-",1.94,0.16,2.04,0.33,"-","-","-","-",2.2000000000000002,0.25,2.16,0.31,2.4300000000000002,0.24,2.0099999999999998,0.24,"-","-","-","-","-","-",2.08,0.14000000000000001]
[null,"Owner occupied","-","-","-","-","-","-",2.17,0.11,"-","-",2.02,0.23,"-","-",2.0699999999999998,0.27,2.11,0.23,2.33,0.23,"-","-","-","-",2.5099999999999998,0.2,"-","-","-","-",2.36,0.24,2.1800000000000002,0.39,"-","-",2.2799999999999998,0.18,"-","-","-","-",2.3199999999999998,0.2,"-","-",2.62,0.31,"-","-","-","-",2.2200000000000002,0.13,"-","-",2.2799999999999998,0.16,"-","-","-","-",1.97,0.16,2.0299999999999998,0.36,"-","-","-","-",2.25,0.27,2.14,0.3,2.4700000000000002,0.27,2.0299999999999998,0.28000000000000003,"-","-","-","-","-","-",2.2400000000000002,0.18]
[null,"Renter occupied","-","-","-","-","-","-",1.87,0.22,"-","-",1.23,0.32,"-","-",1.36,0.63,1.62,0.23,4.5,2.2000000000000002,"-","-","-","-",2.2799999999999998,0.75,"-","-","-","-",1.82,1.34,1.29,0.69,"-","-",1.78,0.27,"-","-","-","-",2.83,0.53,"-","-",2.6,0.37,"-","-","-","-",2.41,0.37,"-","-",2.09,0.32,"-","-","-","-",1.68,0.33,2.06,0.82,"-","-","-","-",1.81,0.68,2.2400000000000002,1.01,2.25,0.79,1.98,0.48,"-","-","-","-","-","-",1.67,0.21]

{"sheet":"ACS_Table_B19001","index":25,"n_rows":162,"n_cols":88,"rows_kept":162,"cut":false,"hidden":true,"merged":[]}
[null,"B19001. HOUSEHOLD INCOME IN THE PAST 12 MONTHS (IN 2019 INFLATION-ADJUSTED DOLLARS)",null,null,null,null,null,null,null,null,null,null,null,null,{"$f":"$B$1","v":"B19001. HOUSEHOLD INCOME IN THE PAST 12 MONTHS (IN 2019 INFLATION-ADJUSTED DOLLARS)"}]
[null,"Universe:  HOUSEHOLDS",null,null,null,null,null,null,null,null,null,null,null,null,"Data Set: 2015-2019 American Community Survey 5-Year Estimates"]
[]
[]
[null,null,"Atkinson and Gilmanton Grant",null,"Bean's Grant",null,"Bean's Purchase",null,"Berlin",null,"Cambridge",null,"Carroll",null,"Chandler's Purchase",null,"Clarksville",null,"Colebrook",null,"Columbia",null,"Crawford's Purchase",null,"Cutt's Grant",null,"Dalton",null,"Dix's Grant",null,"Dixville",null,"Dummer",null,"Errol",null,"Erving's Location",null,"Gorham",null,"Greens Grant",null,"Hadley's Purchase",null,"Jefferson",null,"Kilkenny",null,"Lancaster",null,"Low and Burbank's Grant",null,"Martin's Location",null,"Milan",null,"Millsfield",null,"Northumberland",null,"Odell",null,"Pinkham's Grant",null,"Pittsburg",null,"Randolph",null,"Sargent's Purchase",null,"Second College Grant",null,"Shelburne",null,"Stark",null,"Stewartstown",null,"Stratford",null,"Success",null,"Thompson and Meserves Purchase",null,"Wentworth's Location",null,"Whitefield"]
[null,null,"Estimate","Margin Of Error","Estimate","Margin Of Error","Estimate","Margin Of Error","Estimate","Margin Of Error","Estimate","Margin Of Error","Estimate","Margin Of Error","Estimate","Margin Of Error","Estimate","Margin Of Error","Estimate","Margin Of Error","Estimate","Margin Of Error","Estimate","Margin Of Error","Estimate","Margin Of Error","Estimate","Margin Of Error","Estimate","Margin Of Error","Estimate","Margin Of Error","Estimate","Margin Of Error","Estimate","Margin Of Error","Estimate","Margin Of Error","Estimate","Margin Of Error","Estimate","Margin Of Error","Estimate","Margin Of Error","Estimate","Margin Of Error","Estimate","Margin Of Error","Estimate","Margin Of Error","Estimate","Margin Of Error","Estimate","Margin Of Error","Estimate","Margin Of Error","Estimate","Margin Of Error","Estimate","Margin Of Error","Estimate","Margin Of Error","Estimate","Margin Of Error","Estimate","Margin Of Error","Estimate","Margin Of Error","Estimate","Margin Of Error","Estimate","Margin Of Error","Estimate","Margin Of Error","Estimate","Margin Of Error","Estimate","Margin Of Error","Estimate","Margin Of Error","Estimate","Margin Of Error","Estimate","Margin Of Error","Estimate","Margin Of Error","Estimate","Margin Of Error"]
[null,"Total Households",0,11,0,11,0,11,3977,201,0,11,324,49,0,11,141,40,954,84,316,51,0,11,0,11,424,64,0,11,1,4,127,25,113,29,0,11,1243,99,0,11,0,11,396,58,0,11,1366,149,0,11,0,11,589,53,4,6,984,88,0,11,0,11,423,57,196,39,0,11,0,11,200,30,233,40,418,64,277,49,0,11,0,11,16,9,1046,111]
[null,"Households With"]
[null,"Income Less than $10,000 ",0,11,0,11,0,11,331,102,0,11,10,7,0,11,2,4,30,20,18,14,0,11,0,11,25,19,0,11,0,11,1,3,2,3,0,11,38,29,0,11,0,11,11,8,0,11,34,30,0,11,0,11,19,14,0,11,35,26,0,11,0,11,12,19,2,3,0,11,0,11,9,9,21,14,9,7,39,24,0,11,0,11,0,11,53,41]
[null,"Income $10,000 to $14,999 ",0,11,0,11,0,11,422,147,0,11,7,10,0,11,3,4,51,29,24,15,0,11,0,11,9,8,0,11,0,11,8,10,23,15,0,11,18,20,0,11,0,11,6,6,0,11,93,63,0,11,0,11,10,7,0,11,40,24,0,11,0,11,46,30,5,5,0,11,0,11,1,2,6,6,18,18,35,20,0,11,0,11,0,11,97,59]
[null,"Income $15,000 to $19,999 ",0,11,0,11,0,11,197,96,0,11,4,6,0,11,2,3,46,30,13,10,0,11,0,11,8,8,0,11,0,11,2,4,2,4,0,11,121,62,0,11,0,11,5,6,0,11,56,39,0,11,0,11,9,7,0,11,74,34,0,11,0,11,13,10,4,3,0,11,0,11,6,6,10,9,24,17,20,16,0,11,0,11,4,4,55,32]
[null,"Income $20,000 to $24,999 ",0,11,0,11,0,11,439,122,0,11,14,12,0,11,10,8,121,56,17,10,0,11,0,11,34,21,0,11,0,11,8,5,6,8,0,11,21,19,0,11,0,11,22,11,0,11,86,56,0,11,0,11,22,11,0,11,67,33,0,11,0,11,12,9,0,11,0,11,0,11,6,7,2,4,27,17,21,12,0,11,0,11,4,5,77,51]
[null,"Income $25,000 to $29,999 ",0,11,0,11,0,11,144,68,0,11,9,8,0,11,16,11,97,45,13,8,0,11,0,11,10,9,0,11,0,11,10,13,10,9,0,11,22,22,0,11,0,11,40,27,0,11,43,34,0,11,0,11,34,21,0,11,42,23,0,11,0,11,43,26,10,11,0,11,0,11,10,9,21,13,40,30,12,11,0,11,0,11,2,3,47,42]
[null,"Income $30,000 to $34,999 ",0,11,0,11,0,11,241,105,0,11,31,17,0,11,9,9,78,47,45,25,0,11,0,11,10,9,0,11,0,11,2,3,2,3,0,11,47,34,0,11,0,11,55,37,0,11,122,72,0,11,0,11,20,12,0,11,66,24,0,11,0,11,9,9,8,9,0,11,0,11,6,7,16,14,34,22,14,14,0,11,0,11,0,11,86,62]
[null,"Income $35,000 to $39,999 ",0,11,0,11,0,11,258,100,0,11,10,10,0,11,18,17,47,27,13,8,0,11,0,11,26,17,0,11,0,11,10,8,4,6,0,11,109,54,0,11,0,11,7,7,0,11,46,28,0,11,0,11,23,12,0,11,87,39,0,11,0,11,27,17,15,10,0,11,0,11,7,6,10,8,28,26,10,6,0,11,0,11,0,11,42,20]
[null,"Income $40,000 to $44,999 ",0,11,0,11,0,11,227,85,0,11,22,14,0,11,8,8,47,30,18,15,0,11,0,11,15,15,0,11,0,11,11,8,0,11,0,11,119,52,0,11,0,11,27,13,0,11,94,60,0,11,0,11,85,38,0,11,81,46,0,11,0,11,59,27,8,9,0,11,0,11,14,10,19,15,25,13,32,18,0,11,0,11,3,4,51,28]
[null,"Income $45,000 to $49,999 ",0,11,0,11,0,11,234,113,0,11,8,7,0,11,2,3,30,19,19,17,0,11,0,11,41,30,0,11,0,11,4,6,0,11,0,11,41,32,0,11,0,11,7,7,0,11,64,41,0,11,0,11,31,14,0,11,48,30,0,11,0,11,9,8,7,6,0,11,0,11,9,6,25,16,11,9,15,15,0,11,0,11,2,3,28,20]
[null,"Income $50,000 to $59,999 ",0,11,0,11,0,11,222,95,0,11,36,21,0,11,11,7,71,30,30,24,0,11,0,11,80,41,0,11,1,4,14,9,14,11,0,11,122,57,0,11,0,11,29,15,0,11,177,77,0,11,0,11,35,14,0,11,73,28,0,11,0,11,73,32,4,4,0,11,0,11,8,7,21,10,41,32,9,6,0,11,0,11,1,3,116,56]
[null,"Income $60,000 to $74,999 ",0,11,0,11,0,11,379,106,0,11,59,27,0,11,10,12,68,38,28,14,0,11,0,11,74,38,0,11,0,11,17,11,13,11,0,11,149,68,0,11,0,11,44,20,0,11,131,61,0,11,0,11,92,32,0,11,116,53,0,11,0,11,53,26,26,12,0,11,0,11,34,16,18,15,26,18,39,22,0,11,0,11,0,11,104,44]
[null,"Income $75,000 to $99,999 ",0,11,0,11,0,11,356,106,0,11,50,26,0,11,18,14,86,47,31,15,0,11,0,11,39,22,0,11,0,11,20,15,20,13,0,11,124,62,0,11,0,11,51,25,0,11,113,59,0,11,0,11,111,41,0,11,148,56,0,11,0,11,24,16,25,11,0,11,0,11,36,20,30,19,48,28,12,9,0,11,0,11,0,11,97,40]
[null,"Income $100,000 to $124,999 ",0,11,0,11,0,11,211,102,0,11,33,20,0,11,8,6,68,32,28,12,0,11,0,11,14,11,0,11,0,11,10,7,7,6,0,11,75,43,0,11,0,11,38,20,0,11,127,58,0,11,0,11,50,16,0,11,44,26,0,11,0,11,19,16,19,10,0,11,0,11,16,15,6,6,36,23,5,5,0,11,0,11,0,11,80,40]
[null,"Income $125,000 to $149,999 ",0,11,0,11,0,11,173,76,0,11,10,6,0,11,12,12,42,28,6,7,0,11,0,11,6,7,0,11,0,11,4,4,0,11,0,11,131,62,0,11,0,11,20,12,0,11,83,61,0,11,0,11,29,14,0,11,49,30,0,11,0,11,8,12,19,12,0,11,0,11,13,11,18,11,18,19,6,6,0,11,0,11,0,11,34,20]
[null,"Income $150,000 to $199,999 ",0,11,0,11,0,11,115,66,0,11,11,8,0,11,4,7,35,20,2,5,0,11,0,11,26,23,0,11,0,11,3,5,5,6,0,11,37,26,0,11,0,11,31,12,0,11,35,32,0,11,0,11,13,8,4,6,5,6,0,11,0,11,16,16,22,12,0,11,0,11,8,6,8,9,20,16,3,5,0,11,0,11,0,11,61,35]
[null,"Income $200,000 or more ",0,11,0,11,0,11,28,26,0,11,10,11,0,11,8,10,37,23,11,9,0,11,0,11,7,7,0,11,0,11,3,3,5,7,0,11,69,37,0,11,0,11,3,5,0,11,62,41,0,11,0,11,6,6,0,11,9,14,0,11,0,11,0,11,22,15,0,11,0,11,17,13,2,3,13,15,5,5,0,11,0,11,0,11,18,16]
[]
[]
[]
[null,null,null,null,null,null,null,null,null,null,null,null,null,null,{"$f":"O1","v":"B19001. HOUSEHOLD INCOME IN THE PAST 12 MONTHS (IN 2019 INFLATION-ADJUSTED DOLLARS)"}]
[null,"Calculated B19001. HOUSEHOLD INCOME IN THE PAST 12 MONTHS (IN 2019 INFLATION-ADJUSTED DOLLARS)",null,null,null,null,null,null,null,null,null,null,null,null,"Data Set: 2015-2019 American Community Survey 5-Year Estimates"]
[null,"Universe:  HOUSEHOLDS"]
[]
[null,null,"Atkinson and Gilmanton Grant",null,"Bean's Grant",null,"Bean's Purchase",null,"Berlin",null,"Cambridge",null,"Carroll",null,"Chandler's Purchase",null,"Clarksville",null,"Colebrook",null,"Columbia",null,"Crawford's Purchase",null,"Cutt's Grant",null,"Dalton",null,"Dix's Grant",null,"Dixville",null,"Dummer",null,"Errol",null,"Erving's Location",null,"Gorham",null,"Greens Grant",null,"Hadley's Purchase",null,"Jefferson",null,"Kilkenny",null,"Lancaster",null,"Low and Burbank's Grant",null,"Martin's Location",null,"Milan",null,"Millsfield",null,"Northumberland",null,"Odell",null,"Pinkham's Grant",null,"Pittsburg",null,"Randolph",null,"Sargent's Purchase",null,"Second College Grant",null,"Shelburne",null,"Stark",null,"Stewartstown",null,"Stratford",null,"Success",null,"Thompson and Meserves Purchase",null,"Wentworth's Location",null,"Whitefield"]
[null,null,"Estimate","Margin Of Error","Estimate","Margin Of Error","Estimate","Margin Of Error","Estimate","Margin Of Error","Estimate","Margin Of Error","Estimate","Margin Of Error","Estimate","Margin Of Error","Estimate","Margin Of Error","Estimate","Margin Of Error","Estimate","Margin Of Error","Estimate","Margin Of Error","Estimate","Margin Of Error","Estimate","Margin Of Error","Estimate","Margin Of Error","Estimate","Margin Of Error","Estimate","Margin Of Error","Estimate","Margin Of Error","Estimate","Margin Of Error","Estimate","Margin Of Error","Estimate","Margin Of Error","Estimate","Margin Of Error","Estimate","Margin Of Error","Estimate","Margin Of Error","Estimate","Margin Of Error","Estimate","Margin Of Error","Estimate","Margin Of Error","Estimate","Margin Of Error","Estimate","Margin Of Error","Estimate","Margin Of Error","Estimate","Margin Of Error","Estimate","Margin Of Error","Estimate","Margin Of Error","Estimate","Margin Of Error","Estimate","Margin Of Error","Estimate","Margin Of Error","Estimate","Margin Of Error","Estimate","Margin Of Error","Estimate","Margin Of Error","Estimate","Margin Of Error","Estimate","Margin Of Error","Estimate","Margin Of Error","Estimate","Margin Of Error","Estimate","Margin Of Error"]
[null,"Total Households",{"$f":"$C$7","v":0},{"$f":"$D$7","v":11},{"$f":"$E$7","v":0},{"$f":"$F$7","v":11},{"$f":"$G$7","v":0},{"$f":"$H$7","v":11},{"$f":"$I$7","v":3977},{"$f":"$J$7","v":201},{"$f":"$K$7","v":0},{"$f":"$L$7","v":11},{"$f":"$M$7","v":324},{"$f":"$N$7","v":49},{"$f":"$O$7","v":0},{"$f":"$P$7","v":11},{"$f":"$Q$7","v":141},{"$f":"R7","v":40},954,84,316,51,0,11,{"$f":"Y7","v":0},11,424,64,0,11,1,4,127,25,113,29,0,11,1243,99,{"$f":"AO7","v":0},11,0,11,396,58,0,11,1366,149,0,11,0,11,589,53,4,6,984,88,0,11,0,11,423,57,196,39,0,11,0,11,200,30,233,40,418,64,277,49,0,11,0,11,16,9,1046,111]
[null,"Households With"]
[null,"Income Less than $10,000 ",{"$f":"$C$9","v":0},{"$f":"$D$9","v":11},{"$f":"$E$9","v":0},{"$f":"$F$9","v":11},{"$f":"$G$9","v":0},{"$f":"$H$9","v":11},{"$f":"$I$9","v":331},{"$f":"$J$9","v":102},{"$f":"$K$9","v":0},{"$f":"$L$9","v":11},{"$f":"$M$9","v":10},{"$f":"$N$9","v":7},{"$f":"$O$9","v":0},{"$f":"$P$9","v":11},{"$f":"$Q$9","v":2},{"$f":"R9","v":4},30,20,18,14,0,11,{"$f":"Y9","v":0},11,25,19,0,11,0,11,1,3,2,3,0,11,38,29,{"$f":"AO9","v":0},11,0,11,11,8,0,11,34,30,0,11,0,11,19,14,0,11,35,26,0,11,0,11,12,19,2,3,0,11,0,11,9,9,21,14,9,7,39,24,0,11,0,11,0,11,53,41]
[null,"Income $10,000 to $14,999 ",{"$f":"$C$10","v":0},{"$f":"$D$10","v":11},{"$f":"$E$10","v":0},{"$f":"$F$10","v":11},{"$f":"$G$10","v":0},{"$f":"$H$10","v":11},{"$f":"$I$10","v":422},{"$f":"$J$10","v":147},{"$f":"$K$10","v":0},{"$f":"$L$10","v":11},{"$f":"$M$10","v":7},{"$f":"$N$10","v":10},{"$f":"$O$10","v":0},{"$f":"$P$10","v":11},{"$f":"$Q$10","v":3},4,51,29,24,15,0,11,{"$f":"Y10","v":0},11,9,8,0,11,0,11,8,10,23,15,0,11,18,20,{"$f":"AO10","v":0},11,0,11,6,6,0,11,93,63,0,11,0,11,10,7,0,11,40,24,0,11,0,11,46,30,5,5,0,11,0,11,1,2,6,6,18,18,35,20,0,11,0,11,0,11,97,59]
[null,"Income $15,000 to $24,999 ",{"$f":"$C$11+$C$12","v":0},{"$f":"SQRT(($D$11^2)+($D$12^2))","v":15.556349186104045},{"$f":"$E$11+$E$12","v":0},{"$f":"SQRT(($F$11^2)+($F$12^2))","v":15.556349186104045},{"$f":"$G$11+$G$12","v":0},{"$f":"SQRT(($H$11^2)+($H$12^2))","v":15.556349186104045},{"$f":"$I$11+$I$12","v":636},{"$f":"SQRT(($J$11^2)+($J$12^2))","v":155.24174696260025},{"$f":"$K$11+$K$12","v":0},{"$f":"SQRT(($L$11^2)+($L$12^2))","v":15.556349186104045},{"$f":"$M$11+$M$12","v":18},{"$f":"SQRT(($N$11^2)+($N$12^2))","v":13.416407864998739},{"$f":"$O$11+$O$12","v":0},{"$f":"SQRT(($P$11^2)+($P$12^2))","v":15.556349186104045},{"$f":"Q11+Q12","v":12},{"$f":"SQRT((R11^2)+(R12^2))","v":8.5440037453175304},{"$f":"S11+S12","v":167},{"$f":"SQRT((T11^2)+(T12^2))","v":63.529520697074361},{"$f":"U11+U12","v":30},{"$f":"SQRT((V11^2)+(V12^2))","v":14.142135623730951},{"$f":"W11+W12","v":0},{"$f":"SQRT((X11^2)+(X12^2))","v":15.556349186104045},{"$f":"Y11+Y12","v":0},{"$f":"SQRT((Z11^2)+(Z12^2))","v":15.556349186104045},{"$f":"AA11+AA12","v":42},{"$f":"SQRT((AB11^2)+(AB12^2))","v":22.472205054244231},{"$f":"AC11+AC12","v":0},{"$f":"SQRT((AD11^2)+(AD12^2))","v":15.556349186104045},{"$f":"AE11+AE12","v":0},{"$f":"SQRT((AF11^2)+(AF12^2))","v":15.556349186104045},{"$f":"AG11+AG12","v":10},{"$f":"SQRT((AH11^2)+(AH12^2))","v":6.4031242374328485},{"$f":"AI11+AI12","v":8},{"$f":"SQRT((AJ11^2)+(AJ12^2))","v":8.9442719099991592},{"$f":"AK11+AK12","v":0},{"$f":"SQRT((AL11^2)+(AL12^2))","v":15.556349186104045},{"$f":"AM11+AM12","v":142},{"$f":"SQRT((AN11^2)+(AN12^2))","v":64.845971347493901},{"$f":"AO11+AO12","v":0},{"$f":"SQRT((AP11^2)+(AP12^2))","v":15.556349186104045},{"$f":"AQ11+AQ12","v":0},{"$f":"SQRT((AR11^2)+(AR12^2))","v":15.556349186104045},{"$f":"AS11+AS12","v":27},{"$f":"SQRT((AT11^2)+(AT12^2))","v":12.529964086141668},{"$f":"AU11+AU12","v":0},{"$f":"SQRT((AV11^2)+(AV12^2))","v":15.556349186104045},{"$f":"AW11+AW12","v":142},{"$f":"SQRT((AX11^2)+(AX12^2))","v":68.24221567329127},{"$f":"AY11+AY12","v":0},{"$f":"SQRT((AZ11^2)+(AZ12^2))","v":15.556349186104045},{"$f":"BA11+BA12","v":0},{"$f":"SQRT((BB11^2)+(BB12^2))","v":15.556349186104045},{"$f":"BC11+BC12","v":31},{"$f":"SQRT((BD11^2)+(BD12^2))","v":13.038404810405298},{"$f":"BE11+BE12","v":0},{"$f":"SQRT((BF11^2)+(BF12^2))","v":15.556349186104045},{"$f":"BG11+BG12","v":141},{"$f":"SQRT((BH11^2)+(BH12^2))","v":47.381430961928537},{"$f":"BI11+BI12","v":0},{"$f":"SQRT((BJ11^2)+(BJ12^2))","v":15.556349186104045},{"$f":"BK11+BK12","v":0},{"$f":"SQRT((BL11^2)+(BL12^2))","v":15.556349186104045},{"$f":"BM11+BM12","v":25},{"$f":"SQRT((BN11^2)+(BN12^2))","v":13.45362404707371},{"$f":"BO11+BO12","v":4},{"$f":"SQRT((BP11^2)+(BP12^2))","v":11.401754250991379},{"$f":"BQ11+BQ12","v":0},{"$f":"SQRT((BR11^2)+(BR12^2))","v":15.556349186104045},{"$f":"BS11+BS12","v":0},{"$f":"SQRT((BT11^2)+(BT12^2))","v":15.556349186104045},{"$f":"BU11+BU12","v":12},{"$f":"SQRT((BV11^2)+(BV12^2))","v":9.2195444572928871},{"$f":"BW11+BW12","v":12},{"$f":"SQRT((BX11^2)+(BX12^2))","v":9.8488578017961039},{"$f":"BY11+BY12","v":51},{"$f":"SQRT((BZ11^2)+(BZ12^2))","v":24.041630560342615},{"$f":"CA11+CA12","v":41},{"$f":"SQRT((CB11^2)+(CB12^2))","v":20},{"$f":"CC11+CC12","v":0},{"$f":"SQRT((CD11^2)+(CD12^2))","v":15.556349186104045},{"$f":"CE11+CE12","v":0},{"$f":"SQRT((CF11^2)+(CF12^2))","v":15.556349186104045},{"$f":"CG11+CG12","v":8},{"$f":"SQRT((CH11^2)+(CH12^2))","v":6.4031242374328485},{"$f":"CI11+CI12","v":132},{"$f":"SQRT((CJ11^2)+(CJ12^2))","v":60.207972893961475}]
[null,"Income $25,000 to $34,999 ",{"$f":"$C$13+$C$14","v":0},{"$f":"SQRT(($D$13^2)+($D$14^2))","v":15.556349186104045},{"$f":"$E$13+$E$14","v":0},{"$f":"SQRT(($F$13^2)+($F$14^2))","v":15.556349186104045},{"$f":"$G$13+$G$14","v":0},{"$f":"SQRT(($H$13^2)+($H$14^2))","v":15.556349186104045},{"$f":"$I$13+$I$14","v":385},{"$f":"SQRT(($J$13^2)+($J$14^2))","v":125.0959631642844},{"$f":"$K$13+$K$14","v":0},{"$f":"SQRT(($L$13^2)+($L$14^2))","v":15.556349186104045},{"$f":"$M$13+$M$14","v":40},{"$f":"SQRT(($N$13^2)+($N$14^2))","v":18.788294228055936},{"$f":"$O$13+$O$14","v":0},{"$f":"SQRT(($P$13^2)+($P$14^2))","v":15.556349186104045},{"$f":"Q13+Q14","v":25},{"$f":"SQRT((R13^2)+(R14^2))","v":14.212670403551895},{"$f":"S13+S14","v":175},{"$f":"SQRT((T13^2)+(T14^2))","v":65.069193939989759},{"$f":"U13+U14","v":58},{"$f":"SQRT((V13^2)+(V14^2))","v":26.248809496813376},{"$f":"W13+W14","v":0},{"$f":"SQRT((X13^2)+(X14^2))","v":15.556349186104045},{"$f":"Y13+Y14","v":0},{"$f":"SQRT((Z13^2)+(Z14^2))","v":15.556349186104045},{"$f":"AA13+AA14","v":20},{"$f":"SQRT((AB13^2)+(AB14^2))","v":12.727922061357855},{"$f":"AC13+AC14","v":0},{"$f":"SQRT((AD13^2)+(AD14^2))","v":15.556349186104045},{"$f":"AE13+AE14","v":0},{"$f":"SQRT((AF13^2)+(AF14^2))","v":15.556349186104045},{"$f":"AG13+AG14","v":12},{"$f":"SQRT((AH13^2)+(AH14^2))","v":13.341664064126334},{"$f":"AI13+AI14","v":12},{"$f":"SQRT((AJ13^2)+(AJ14^2))","v":9.4868329805051381},{"$f":"AK13+AK14","v":0},{"$f":"SQRT((AL13^2)+(AL14^2))","v":15.556349186104045},{"$f":"AM13+AM14","v":69},{"$f":"SQRT((AN13^2)+(AN14^2))","v":40.496913462633174},{"$f":"AO13+AO14","v":0},{"$f":"SQRT((AP13^2)+(AP14^2))","v":15.556349186104045},{"$f":"AQ13+AQ14","v":0},{"$f":"SQRT((AR13^2)+(AR14^2))","v":15.556349186104045},{"$f":"AS13+AS14","v":95},{"$f":"SQRT((AT13^2)+(AT14^2))","v":45.803929962395145},{"$f":"AU13+AU14","v":0},{"$f":"SQRT((AV13^2)+(AV14^2))","v":15.556349186104045},{"$f":"AW13+AW14","v":165},{"$f":"SQRT((AX13^2)+(AX14^2))","v":79.624116949577527},{"$f":"AY13+AY14","v":0},{"$f":"SQRT((AZ13^2)+(AZ14^2))","v":15.556349186104045},{"$f":"BA13+BA14","v":0},{"$f":"SQRT((BB13^2)+(BB14^2))","v":15.556349186104045},{"$f":"BC13+BC14","v":54},{"$f":"SQRT((BD13^2)+(BD14^2))","v":24.186773244895647},{"$f":"BE13+BE14","v":0},{"$f":"SQRT((BF13^2)+(BF14^2))","v":15.556349186104045},{"$f":"BG13+BG14","v":108},{"$f":"SQRT((BH13^2)+(BH14^2))","v":33.241540277189323},{"$f":"BI13+BI14","v":0},{"$f":"SQRT((BJ13^2)+(BJ14^2))","v":15.556349186104045},{"$f":"BK13+BK14","v":0},{"$f":"SQRT((BL13^2)+(BL14^2))","v":15.556349186104045},{"$f":"BM13+BM14","v":52},{"$f":"SQRT((BN13^2)+(BN14^2))","v":27.513632984395208},{"$f":"BO13+BO14","v":18},{"$f":"SQRT((BP13^2)+(BP14^2))","v":14.212670403551895},{"$f":"BQ13+BQ14","v":0},{"$f":"SQRT((BR13^2)+(BR14^2))","v":15.556349186104045},{"$f":"BS13+BS14","v":0},{"$f":"SQRT((BT13^2)+(BT14^2))","v":15.556349186104045},{"$f":"BU13+BU14","v":16},{"$f":"SQRT((BV13^2)+(BV14^2))","v":11.401754250991379},{"$f":"BW13+BW14","v":37},{"$f":"SQRT((BX13^2)+(BX14^2))","v":19.104973174542799},{"$f":"BY13+BY14","v":74},{"$f":"SQRT((BZ13^2)+(BZ14^2))","v":37.20215047547655},{"$f":"CA13+CA14","v":26},{"$f":"SQRT((CB13^2)+(CB14^2))","v":17.804493814764857},{"$f":"CC13+CC14","v":0},{"$f":"SQRT((CD13^2)+(CD14^2))","v":15.556349186104045},{"$f":"CE13+CE14","v":0},{"$f":"SQRT((CF13^2)+(CF14^2))","v":15.556349186104045},{"$f":"CG13+CG14","v":2},{"$f":"SQRT((CH13^2)+(CH14^2))","v":11.401754250991379},{"$f":"CI13+CI14","v":133},{"$f":"SQRT((CJ13^2)+(CJ14^2))","v":74.886580907396223}]
[null,"Income $35,000 to $49,999 ",{"$f":"$C$15+$C$16+$C$17","v":0},{"$f":"SQRT(($D$15^2)+($D$16^2)+($D$17^2))","v":19.05255888325765},{"$f":"$E$15+$E$16+$E$17","v":0},{"$f":"SQRT(($F$15^2)+($F$16^2)+($F$17^2))","v":19.05255888325765},{"$f":"$G$15+$G$16+$G$17","v":0},{"$f":"SQRT(($H$15^2)+($H$16^2)+($H$17^2))","v":19.05255888325765},{"$f":"$I$15+$I$16+$I$17","v":719},{"$f":"SQRT(($J$15^2)+($J$16^2)+($J$17^2))","v":173.18775938270002},{"$f":"$K$15+$K$16+$K$17","v":0},{"$f":"SQRT(($L$15^2)+($L$16^2)+($L$17^2))","v":19.05255888325765},{"$f":"$M$15+$M$16+$M$17","v":40},{"$f":"SQRT(($N$15^2)+($N$16^2)+($N$17^2))","v":18.574175621006709},{"$f":"$O$15+$O$16+$O$17","v":0},{"$f":"SQRT(($P$15^2)+($P$16^2)+($P$17^2))","v":19.05255888325765},{"$f":"Q15+Q16+Q17","v":28},{"$f":"SQRT((R15^2)+(R16^2)+(R17^2))","v":19.026297590440446},{"$f":"S15+S16+S17","v":124},{"$f":"SQRT((T15^2)+(T16^2)+(T17^2))","v":44.609416046390926},{"$f":"U15+U16+U17","v":50},{"$f":"SQRT((V15^2)+(V16^2)+(V17^2))","v":24.041630560342615},{"$f":"W15+W16+W17","v":0},{"$f":"SQRT((X15^2)+(X16^2)+(X17^2))","v":19.05255888325765},{"$f":"Y15+Y16+Y17","v":0},{"$f":"SQRT((Z15^2)+(Z16^2)+(Z17^2))","v":19.05255888325765},{"$f":"AA15+AA16+AA17","v":82},{"$f":"SQRT((AB15^2)+(AB16^2)+(AB17^2))","v":37.603191353926334},{"$f":"AC15+AC16+AC17","v":0},{"$f":"SQRT((AD15^2)+(AD16^2)+(AD17^2))","v":19.05255888325765},{"$f":"AE15+AE16+AE17","v":0},{"$f":"SQRT((AF15^2)+(AF16^2)+(AF17^2))","v":19.05255888325765},{"$f":"AG15+AG16+AG17","v":25},{"$f":"SQRT((AH15^2)+(AH16^2)+(AH17^2))","v":12.806248474865697},{"$f":"AI15+AI16+AI17","v":4},{"$f":"SQRT((AJ15^2)+(AJ16^2)+(AJ17^2))","v":16.673332000533065},{"$f":"AK15+AK16+AK17","v":0},{"$f":"SQRT((AL15^2)+(AL16^2)+(AL17^2))","v":19.05255888325765},{"$f":"AM15+AM16+AM17","v":269},{"$f":"SQRT((AN15^2)+(AN16^2)+(AN17^2))","v":81.510735489259332},{"$f":"AO15+AO16+AO17","v":0},{"$f":"SQRT((AP15^2)+(AP16^2)+(AP17^2))","v":19.05255888325765},{"$f":"AQ15+AQ16+AQ17","v":0},{"$f":"SQRT((AR15^2)+(AR16^2)+(AR17^2))","v":19.05255888325765},{"$f":"AS15+AS16+AS17","v":41},{"$f":"SQRT((AT15^2)+(AT16^2)+(AT17^2))","v":16.340134638368191},{"$f":"AU15+AU16+AU17","v":0},{"$f":"SQRT((AV15^2)+(AV16^2)+(AV17^2))","v":19.05255888325765},{"$f":"AW15+AW16+AW17","v":204},{"$f":"SQRT((AX15^2)+(AX16^2)+(AX17^2))","v":77.878109889750149},{"$f":"AY15+AY16+AY17","v":0},{"$f":"SQRT((AZ15^2)+(AZ16^2)+(AZ17^2))","v":19.05255888325765},{"$f":"BA15+BA16+BA17","v":0},{"$f":"SQRT((BB15^2)+(BB16^2)+(BB17^2))","v":19.05255888325765},{"$f":"BC15+BC16+BC17","v":139},{"$f":"SQRT((BD15^2)+(BD16^2)+(BD17^2))","v":42.237424163885748},{"$f":"BE15+BE16+BE17","v":0},{"$f":"SQRT((BF15^2)+(BF16^2)+(BF17^2))","v":19.05255888325765},{"$f":"BG15+BG16+BG17","v":216},{"$f":"SQRT((BH15^2)+(BH16^2)+(BH17^2))","v":67.357256476195644},{"$f":"BI15+BI16+BI17","v":0},{"$f":"SQRT((BJ15^2)+(BJ16^2)+(BJ17^2))","v":19.05255888325765},{"$f":"BK15+BK16+BK17","v":0},{"$f":"SQRT((BL15^2)+(BL16^2)+(BL17^2))","v":19.05255888325765},{"$f":"BM15+BM16+BM17","v":95},{"$f":"SQRT((BN15^2)+(BN16^2)+(BN17^2))","v":32.893768406797051},{"$f":"BO15+BO16+BO17","v":30},{"$f":"SQRT((BP15^2)+(BP16^2)+(BP17^2))","v":14.730919862656235},{"$f":"BQ15+BQ16+BQ17","v":0},{"$f":"SQRT((BR15^2)+(BR16^2)+(BR17^2))","v":19.05255888325765},{"$f":"BS15+BS16+BS17","v":0},{"$f":"SQRT((BT15^2)+(BT16^2)+(BT17^2))","v":19.05255888325765},{"$f":"BU15+BU16+BU17","v":30},{"$f":"SQRT((BV15^2)+(BV16^2)+(BV17^2))","v":13.114877048604001},{"$f":"BW15+BW16+BW17","v":54},{"$f":"SQRT((BX15^2)+(BX16^2)+(BX17^2))","v":23.345235059857504},{"$f":"BY15+BY16+BY17","v":64},{"$f":"SQRT((BZ15^2)+(BZ16^2)+(BZ17^2))","v":30.430248109405877},{"$f":"CA15+CA16+CA17","v":57},{"$f":"SQRT((CB15^2)+(CB16^2)+(CB17^2))","v":24.186773244895647},{"$f":"CC15+CC16+CC17","v":0},{"$f":"SQRT((CD15^2)+(CD16^2)+(CD17^2))","v":19.05255888325765},{"$f":"CE15+CE16+CE17","v":0},{"$f":"SQRT((CF15^2)+(CF16^2)+(CF17^2))","v":19.05255888325765},{"$f":"CG15+CG16+CG17","v":5},{"$f":"SQRT((CH15^2)+(CH16^2)+(CH17^2))","v":12.083045973594572},{"$f":"CI15+CI16+CI17","v":121},{"$f":"SQRT((CJ15^2)+(CJ16^2)+(CJ17^2))","v":39.799497484264798}]
[null,"Income $50,000 to $74,999 ",{"$f":"$C$18+$C$19","v":0},{"$f":"SQRT(($D$18^2)+($D$19^2))","v":15.556349186104045},{"$f":"$E$18+$E$19","v":0},{"$f":"SQRT(($F$18^2)+($F$19^2))","v":15.556349186104045},{"$f":"$G$18+$G$19","v":0},{"$f":"SQRT(($H$18^2)+($H$19^2))","v":15.556349186104045},{"$f":"$I$18+$I$19","v":601},{"$f":"SQRT(($J$18^2)+($J$19^2))","v":142.3411395205195},{"$f":"$K$18+$K$19","v":0},{"$f":"SQRT(($L$18^2)+($L$19^2))","v":15.556349186104045},{"$f":"$M$18+$M$19","v":95},{"$f":"SQRT(($N$18^2)+($N$19^2))","v":34.205262752974143},{"$f":"$O$18+$O$19","v":0},{"$f":"SQRT(($P$18^2)+($P$19^2))","v":15.556349186104045},{"$f":"Q18+Q19","v":21},{"$f":"SQRT((R18^2)+(R19^2))","v":13.892443989449804},{"$f":"S18+S19","v":139},{"$f":"SQRT((T18^2)+(T19^2))","v":48.414873747640819},{"$f":"U18+U19","v":58},{"$f":"SQRT((V18^2)+(V19^2))","v":27.784887978899608},{"$f":"W18+W19","v":0},{"$f":"SQRT((X18^2)+(X19^2))","v":15.556349186104045},{"$f":"Y18+Y19","v":0},{"$f":"SQRT((Z18^2)+(Z19^2))","v":15.556349186104045},{"$f":"AA18+AA19","v":154},{"$f":"SQRT((AB18^2)+(AB19^2))","v":55.901699437494742},{"$f":"AC18+AC19","v":0},{"$f":"SQRT((AD18^2)+(AD19^2))","v":15.556349186104045},{"$f":"AE18+AE19","v":1},{"$f":"SQRT((AF18^2)+(AF19^2))","v":11.704699910719626},{"$f":"AG18+AG19","v":31},{"$f":"SQRT((AH18^2)+(AH19^2))","v":14.212670403551895},{"$f":"AI18+AI19","v":27},{"$f":"SQRT((AJ18^2)+(AJ19^2))","v":15.556349186104045},{"$f":"AK18+AK19","v":0},{"$f":"SQRT((AL18^2)+(AL19^2))","v":15.556349186104045},{"$f":"AM18+AM19","v":271},{"$f":"SQRT((AN18^2)+(AN19^2))","v":88.729927307532492},{"$f":"AO18+AO19","v":0},{"$f":"SQRT((AP18^2)+(AP19^2))","v":15.556349186104045},{"$f":"AQ18+AQ19","v":0},{"$f":"SQRT((AR18^2)+(AR19^2))","v":15.556349186104045},{"$f":"AS18+AS19","v":73},{"$f":"SQRT((AT18^2)+(AT19^2))","v":25},{"$f":"AU18+AU19","v":0},{"$f":"SQRT((AV18^2)+(AV19^2))","v":15.556349186104045},{"$f":"AW18+AW19","v":308},{"$f":"SQRT((AX18^2)+(AX19^2))","v":98.2344135219425},{"$f":"AY18+AY19","v":0},{"$f":"SQRT((AZ18^2)+(AZ19^2))","v":15.556349186104045},{"$f":"BA18+BA19","v":0},{"$f":"SQRT((BB18^2)+(BB19^2))","v":15.556349186104045},{"$f":"BC18+BC19","v":127},{"$f":"SQRT((BD18^2)+(BD19^2))","v":34.928498393145958},{"$f":"BE18+BE19","v":0},{"$f":"SQRT((BF18^2)+(BF19^2))","v":15.556349186104045},{"$f":"BG18+BG19","v":189},{"$f":"SQRT((BH18^2)+(BH19^2))","v":59.941638282582836},{"$f":"BI18+BI19","v":0},{"$f":"SQRT((BJ18^2)+(BJ19^2))","v":15.556349186104045},{"$f":"BK18+BK19","v":0},{"$f":"SQRT((BL18^2)+(BL19^2))","v":15.556349186104045},{"$f":"BM18+BM19","v":126},{"$f":"SQRT((BN18^2)+(BN19^2))","v":41.231056256176608},{"$f":"BO18+BO19","v":30},{"$f":"SQRT((BP18^2)+(BP19^2))","v":12.649110640673518},{"$f":"BQ18+BQ19","v":0},{"$f":"SQRT((BR18^2)+(BR19^2))","v":15.556349186104045},{"$f":"BS18+BS19","v":0},{"$f":"SQRT((BT18^2)+(BT19^2))","v":15.556349186104045},{"$f":"BU18+BU19","v":42},{"$f":"SQRT((BV18^2)+(BV19^2))","v":17.464249196572979},{"$f":"BW18+BW19","v":39},{"$f":"SQRT((BX18^2)+(BX19^2))","v":18.027756377319946},{"$f":"BY18+BY19","v":67},{"$f":"SQRT((BZ18^2)+(BZ19^2))","v":36.715119501371639},{"$f":"CA18+CA19","v":48},{"$f":"SQRT((CB18^2)+(CB19^2))","v":22.803508501982758},{"$f":"CC18+CC19","v":0},{"$f":"SQRT((CD18^2)+(CD19^2))","v":15.556349186104045},{"$f":"CE18+CE19","v":0},{"$f":"SQRT((CF18^2)+(CF19^2))","v":15.556349186104045},{"$f":"CG18+CG19","v":1},{"$f":"SQRT((CH18^2)+(CH19^2))","v":11.401754250991379},{"$f":"CI18+CI19","v":220},{"$f":"SQRT((CJ18^2)+(CJ19^2))","v":71.217975259059429}]
[null,"Income $75,000 to $99,999 ",{"$f":"$C$20","v":0},{"$f":"$D$20","v":11},{"$f":"$E$20","v":0},{"$f":"$F$20","v":11},{"$f":"$G$20","v":0},{"$f":"$H$20","v":11},{"$f":"$I$20","v":356},{"$f":"$J$20","v":106},{"$f":"$K$20","v":0},{"$f":"$L$20","v":11},{"$f":"$M$20","v":50},{"$f":"$N$20","v":26},{"$f":"$O$20","v":0},{"$f":"$P$20","v":11},{"$f":"Q20","v":18},14,86,47,31,15,0,11,{"$f":"Y20","v":0},11,39,22,0,11,0,11,20,15,20,13,0,11,124,62,{"$f":"AO20","v":0},11,0,11,51,25,0,11,113,59,0,11,0,11,111,41,0,11,148,56,0,11,0,11,24,16,25,11,0,11,0,11,36,20,30,19,48,28,12,9,0,11,0,11,0,11,97,40]
[null,"Income $100,000 to $149,999 ",{"$f":"$C$21+$C$22","v":0},{"$f":"SQRT(($D$21^2)+($D$22^2))","v":15.556349186104045},{"$f":"$E$21+$E$22","v":0},{"$f":"SQRT(($F$21^2)+($F$22^2))","v":15.556349186104045},{"$f":"$G$21+$G$22","v":0},{"$f":"SQRT(($H$21^2)+($H$22^2))","v":15.556349186104045},{"$f":"$I$21+$I$22","v":384},{"$f":"SQRT(($J$21^2)+($J$22^2))","v":127.20062892926276},{"$f":"$K$21+$K$22","v":0},{"$f":"SQRT(($L$21^2)+($L$22^2))","v":15.556349186104045},{"$f":"$M$21+$M$22","v":43},{"$f":"SQRT(($N$21^2)+($N$22^2))","v":20.880613017821101},{"$f":"$O$21+$O$22","v":0},{"$f":"SQRT(($P$21^2)+($P$22^2))","v":15.556349186104045},{"$f":"Q21+Q22","v":20},{"$f":"SQRT((R21^2)+(R22^2))","v":13.416407864998739},{"$f":"S21+S22","v":110},{"$f":"SQRT((T21^2)+(T22^2))","v":42.5205832509386},{"$f":"U21+U22","v":34},{"$f":"SQRT((V21^2)+(V22^2))","v":13.892443989449804},{"$f":"W21+W22","v":0},{"$f":"SQRT((X21^2)+(X22^2))","v":15.556349186104045},{"$f":"Y21+Y22","v":0},{"$f":"SQRT((Z21^2)+(Z22^2))","v":15.556349186104045},{"$f":"AA21+AA22","v":20},{"$f":"SQRT((AB21^2)+(AB22^2))","v":13.038404810405298},{"$f":"AC21+AC22","v":0},{"$f":"SQRT((AD21^2)+(AD22^2))","v":15.556349186104045},{"$f":"AE21+AE22","v":0},{"$f":"SQRT((AF21^2)+(AF22^2))","v":15.556349186104045},{"$f":"AG21+AG22","v":14},{"$f":"SQRT((AH21^2)+(AH22^2))","v":8.0622577482985491},{"$f":"AI21+AI22","v":7},{"$f":"SQRT((AJ21^2)+(AJ22^2))","v":12.529964086141668},{"$f":"AK21+AK22","v":0},{"$f":"SQRT((AL21^2)+(AL22^2))","v":15.556349186104045},{"$f":"AM21+AM22","v":206},{"$f":"SQRT((AN21^2)+(AN22^2))","v":75.451971478550519},{"$f":"AO21+AO22","v":0},{"$f":"SQRT((AP21^2)+(AP22^2))","v":15.556349186104045},{"$f":"AQ21+AQ22","v":0},{"$f":"SQRT((AR21^2)+(AR22^2))","v":15.556349186104045},{"$f":"AS21+AS22","v":58},{"$f":"SQRT((AT21^2)+(AT22^2))","v":23.323807579381203},{"$f":"AU21+AU22","v":0},{"$f":"SQRT((AV21^2)+(AV22^2))","v":15.556349186104045},{"$f":"AW21+AW22","v":210},{"$f":"SQRT((AX21^2)+(AX22^2))","v":84.172442046075858},{"$f":"AY21+AY22","v":0},{"$f":"SQRT((AZ21^2)+(AZ22^2))","v":15.556349186104045},{"$f":"BA21+BA22","v":0},{"$f":"SQRT((BB21^2)+(BB22^2))","v":15.556349186104045},{"$f":"BC21+BC22","v":79},{"$f":"SQRT((BD21^2)+(BD22^2))","v":21.2602916254693},{"$f":"BE21+BE22","v":0},{"$f":"SQRT((BF21^2)+(BF22^2))","v":15.556349186104045},{"$f":"BG21+BG22","v":93},{"$f":"SQRT((BH21^2)+(BH22^2))","v":39.698866482558415},{"$f":"BI21+BI22","v":0},{"$f":"SQRT((BJ21^2)+(BJ22^2))","v":15.556349186104045},{"$f":"BK21+BK22","v":0},{"$f":"SQRT((BL21^2)+(BL22^2))","v":15.556349186104045},{"$f":"BM21+BM22","v":27},{"$f":"SQRT((BN21^2)+(BN22^2))","v":20},{"$f":"BO21+BO22","v":38},{"$f":"SQRT((BP21^2)+(BP22^2))","v":15.620499351813308},{"$f":"BQ21+BQ22","v":0},{"$f":"SQRT((BR21^2)+(BR22^2))","v":15.556349186104045},{"$f":"BS21+BS22","v":0},{"$f":"SQRT((BT21^2)+(BT22^2))","v":15.556349186104045},{"$f":"BU21+BU22","v":29},{"$f":"SQRT((BV21^2)+(BV22^2))","v":18.601075237738275},{"$f":"BW21+BW22","v":24},{"$f":"SQRT((BX21^2)+(BX22^2))","v":12.529964086141668},{"$f":"BY21+BY22","v":54},{"$f":"SQRT((BZ21^2)+(BZ22^2))","v":29.832867780352597},{"$f":"CA21+CA22","v":11},{"$f":"SQRT((CB21^2)+(CB22^2))","v":7.810249675906654},{"$f":"CC21+CC22","v":0},{"$f":"SQRT((CD21^2)+(CD22^2))","v":15.556349186104045},{"$f":"CE21+CE22","v":0},{"$f":"SQRT((CF21^2)+(CF22^2))","v":15.556349186104045},{"$f":"CG21+CG22","v":0},{"$f":"SQRT((CH21^2)+(CH22^2))","v":15.556349186104045},{"$f":"CI21+CI22","v":114},{"$f":"SQRT((CJ21^2)+(CJ22^2))","v":44.721359549995796}]
[null,"Income $150,000 to $199,999 ",{"$f":"$C$23","v":0},{"$f":"$D$23","v":11},{"$f":"$E$23","v":0},{"$f":"$F$23","v":11},{"$f":"$G$23","v":0},{"$f":"$H$23","v":11},{"$f":"$I$23","v":115},{"$f":"$J$23","v":66},{"$f":"$K$23","v":0},{"$f":"$L$23","v":11},{"$f":"$M$23","v":11},{"$f":"$N$23","v":8},{"$f":"$O$23","v":0},{"$f":"$P$23","v":11},{"$f":"Q23","v":4},7,35,20,2,5,0,11,{"$f":"Y23","v":0},11,26,23,0,11,0,11,3,5,5,6,0,11,37,26,{"$f":"AO23","v":0},11,0,11,31,12,0,11,35,32,0,11,0,11,13,8,4,6,5,6,0,11,0,11,16,16,22,12,0,11,0,11,8,6,8,9,20,16,3,5,0,11,0,11,0,11,61,35]
[null,"Income $200,000 or more ",{"$f":"$C$24","v":0},{"$f":"$D$24","v":11},{"$f":"$E$24","v":0},{"$f":"$F$24","v":11},{"$f":"$G$24","v":0},{"$f":"$H$24","v":11},{"$f":"$I$24","v":28},{"$f":"$J$24","v":26},{"$f":"$K$24","v":0},{"$f":"$L$24","v":11},{"$f":"$M$24","v":10},{"$f":"$N$24","v":11},{"$f":"$O$24","v":0},{"$f":"$P$24","v":11},8,10,37,23,11,9,0,11,{"$f":"Y24","v":0},11,7,7,0,11,0,11,3,3,5,7,0,11,69,37,{"$f":"AO24","v":0},11,0,11,3,5,0,11,62,41,0,11,0,11,6,6,0,11,9,14,0,11,0,11,0,11,22,15,0,11,0,11,17,13,2,3,13,15,5,5,0,11,0,11,0,11,18,16]
[]
[]
[]
[]
[]
[]
[]
[]
[]
[]
[]
[]
[]
[]
[]
[]
[]
[]
[]
[]
[]
[]
[]
[]
[null,"B19001. HOUSEHOLD INCOME IN THE PAST 12 MONTHS (IN 2014 INFLATION-ADJUSTED DOLLARS)",null,null,null,null,null,null,null,null,null,null,null,null,{"$f":"B70","v":"B19001. HOUSEHOLD INCOME IN THE PAST 12 MONTHS (IN 2014 INFLATION-ADJUSTED DOLLARS)"}]
[null,"Universe:  HOUSEHOLDS",null,null,null,null,null,null,null,null,null,null,null,null,{"$f":"B72","v":"Data Set: 2010-2014 American Community Survey 5-Year Estimates"}]
[null,"Data Set: 2010-2014 American Community Survey 5-Year Estimates"]
[]
[null,null,"Atkinson and Gilmanton Grant",null,"Bean's Grant",null,"Bean's Purchase",null,"Berlin",null,"Cambridge",null,"Carroll",null,"Chandler's Purchase",null,"Clarksville",null,"Colebrook",null,"Columbia",null,"Crawford's Purchase",null,"Cutt's Grant",null,"Dalton",null,"Dix's Grant",null,"Dixville",null,"Dummer",null,"Errol",null,"Erving's Location",null,"Gorham",null,"Greens Grant",null,"Hadley's Purchase",null,"Jefferson",null,"Kilkenny",null,"Lancaster",null,"Low and Burbank's Grant",null,"Martin's Location",null,"Milan",null,"Millsfield",null,"Northumberland",null,"Odell",null,"Pinkham's Grant",null,"Pittsburg",null,"Randolph",null,"Sargent's Purchase",null,"Second College Grant",null,"Shelburne",null,"Stark",null,"Stewartstown",null,"Stratford",null,"Success",null,"Thompson and Meserves Purchase",null,"Wentworth's Location",null,"Whitefield"]
[null,null,"Estimate","Margin Of Error","Estimate","Margin Of Error","Estimate","Margin Of Error","Estimate","Margin Of Error","Estimate","Margin Of Error","Estimate","Margin Of Error","Estimate","Margin Of Error","Estimate","Margin Of Error","Estimate","Margin Of Error","Estimate","Margin Of Error","Estimate","Margin Of Error","Estimate","Margin Of Error","Estimate","Margin Of Error","Estimate","Margin Of Error","Estimate","Margin Of Error","Estimate","Margin Of Error","Estimate","Margin Of Error","Estimate","Margin Of Error","Estimate","Margin Of Error","Estimate","Margin Of Error","Estimate","Margin Of Error","Estimate","Margin Of Error","Estimate","Margin Of Error","Estimate","Margin Of Error","Estimate","Margin Of Error","Estimate","Margin Of Error","Estimate","Margin Of Error","Estimate","Margin Of Error","Estimate","Margin Of Error","Estimate","Margin Of Error","Estimate","Margin Of Error","Estimate","Margin Of Error","Estimate","Margin Of Error","Estimate","Margin Of Error","Estimate","Margin Of Error","Estimate","Margin Of Error","Estimate","Margin Of Error","Estimate","Margin Of Error","Estimate","Margin Of Error","Estimate","Margin Of Error","Estimate","Margin Of Error","Estimate","Margin Of Error","Estimate","Margin Of Error"]
[null,"Total Households",0,11,0,11,0,11,4185,303,8,10,362,57,0,11,152,33,1101,105,315,52,0,11,0,11,414,58,4,6,3,6,141,32,186,38,0,11,1240,77,0,11,0,11,0,11,0,11,1537,96,0,11,0,11,9,7,8,8,0,11,0,11,0,11,452,68,197,34,5,6,0,11,165,26,217,35,373,58,0,11,0,11,0,11,37,21,1047,106]
[null,"Households With"]
[null,"Income Less than $10,000 ",0,11,0,11,0,11,367,111,0,11,6,6,0,11,1,3,67,34,32,20,0,11,0,11,29,21,0,11,0,11,2,3,5,6,0,11,58,48,0,11,0,11,0,11,0,11,93,53,0,11,0,11,0,11,0,11,0,11,0,11,0,11,35,20,6,7,0,11,0,11,3,4,23,11,50,28,0,11,0,11,0,11,12,15,34,30]
[null,"Income $10,000 to $14,999 ",0,11,0,11,0,11,510,122,0,11,30,24,0,11,19,17,107,51,22,14,0,11,0,11,12,9,0,11,0,11,1,2,29,17,0,11,49,43,0,11,0,11,0,11,0,11,77,47,0,11,0,11,0,11,0,11,0,11,0,11,0,11,29,16,13,10,0,11,0,11,7,6,4,4,34,24,0,11,0,11,0,11,0,11,117,43]
[null,"Income $15,000 to $19,999 ",0,11,0,11,0,11,315,102,0,11,20,17,0,11,23,13,86,46,26,16,0,11,0,11,21,13,0,11,0,11,14,14,20,12,0,11,61,34,0,11,0,11,0,11,0,11,101,64,0,11,0,11,0,11,0,11,0,11,0,11,0,11,27,16,11,9,0,11,0,11,9,7,11,7,36,20,0,11,0,11,0,11,0,11,124,53]
[null,"Income $20,000 to $24,999 ",0,11,0,11,0,11,280,97,4,7,28,24,0,11,15,12,61,31,26,16,0,11,0,11,31,22,0,11,0,11,12,9,20,15,0,11,93,58,0,11,0,11,0,11,0,11,142,77,0,11,0,11,0,11,0,11,0,11,0,11,0,11,40,25,4,4,0,11,0,11,4,6,24,16,26,20,0,11,0,11,0,11,1,3,77,40]
[null,"Income $25,000 to $29,999 ",0,11,0,11,0,11,218,92,2,3,21,16,0,11,23,15,61,34,11,12,0,11,0,11,33,21,0,11,0,11,11,7,8,9,0,11,83,52,0,11,0,11,0,11,0,11,73,55,0,11,0,11,2,3,2,3,0,11,0,11,0,11,35,25,5,4,0,11,0,11,7,7,4,5,48,28,0,11,0,11,0,11,0,11,46,31]
[null,"Income $30,000 to $34,999 ",0,11,0,11,0,11,346,103,0,11,4,4,0,11,9,9,59,29,4,5,0,11,0,11,20,12,0,11,0,11,19,13,14,11,0,11,44,30,0,11,0,11,0,11,0,11,185,92,0,11,0,11,0,11,4,6,0,11,0,11,0,11,39,31,13,8,0,11,0,11,9,6,21,14,20,19,0,11,0,11,0,11,0,11,73,42]
[null,"Income $35,000 to $39,999 ",0,11,0,11,0,11,258,112,0,11,17,11,0,11,20,11,39,20,9,10,0,11,0,11,21,14,4,6,3,6,15,8,0,11,0,11,47,30,0,11,0,11,0,11,0,11,36,35,0,11,0,11,0,11,0,11,0,11,0,11,0,11,29,20,7,6,0,11,0,11,21,12,27,20,21,15,0,11,0,11,0,11,0,11,23,17]
[null,"Income $40,000 to $44,999 ",0,11,0,11,0,11,203,62,0,11,9,11,0,11,2,3,56,32,14,10,0,11,0,11,31,19,0,11,0,11,8,6,10,7,0,11,88,53,0,11,0,11,0,11,0,11,34,36,0,11,0,11,2,4,2,4,0,11,0,11,0,11,25,15,5,6,0,11,0,11,7,7,15,9,20,15,0,11,0,11,0,11,11,12,41,28]
[null,"Income $45,000 to $49,999 ",0,11,0,11,0,11,144,64,0,11,30,22,0,11,6,8,81,40,9,8,0,11,0,11,24,17,0,11,0,11,1,2,11,15,0,11,72,35,0,11,0,11,0,11,0,11,41,47,0,11,0,11,5,7,0,11,0,11,0,11,0,11,26,15,10,10,0,11,0,11,8,7,7,9,8,7,0,11,0,11,0,11,0,11,89,45]
[null,"Income $50,000 to $59,999 ",0,11,0,11,0,11,335,101,0,11,40,24,0,11,14,9,99,45,32,15,0,11,0,11,49,26,0,11,0,11,5,6,23,16,0,11,127,41,0,11,0,11,0,11,0,11,111,55,0,11,0,11,0,11,0,11,0,11,0,11,0,11,39,26,7,5,0,11,0,11,20,13,25,13,18,13,0,11,0,11,0,11,3,4,105,38]
[null,"Income $60,000 to $74,999 ",0,11,0,11,0,11,369,84,2,5,40,24,0,11,2,3,101,34,34,20,0,11,0,11,67,29,0,11,0,11,4,4,16,14,0,11,166,64,0,11,0,11,0,11,0,11,214,69,0,11,0,11,0,11,0,11,0,11,0,11,0,11,30,18,31,15,0,11,0,11,16,8,13,9,45,29,0,11,0,11,0,11,10,10,105,33]
[null,"Income $75,000 to $99,999 ",0,11,0,11,0,11,424,92,0,11,71,36,0,11,9,7,175,57,31,12,0,11,0,11,46,21,0,11,0,11,19,14,17,12,0,11,177,57,0,11,0,11,0,11,0,11,190,78,0,11,0,11,0,11,0,11,0,11,0,11,0,11,50,26,35,12,0,11,0,11,24,15,16,10,14,10,0,11,0,11,0,11,0,11,107,35]
[null,"Income $100,000 to $124,999 ",0,11,0,11,0,11,195,69,0,11,22,17,0,11,7,7,50,25,27,17,0,11,0,11,10,8,0,11,0,11,25,13,4,4,0,11,103,58,0,11,0,11,0,11,0,11,110,46,0,11,0,11,0,11,0,11,0,11,0,11,0,11,9,8,13,9,0,11,0,11,17,11,13,12,28,24,0,11,0,11,0,11,0,11,51,40]
[null,"Income $125,000 to $149,999 ",0,11,0,11,0,11,79,51,0,11,4,4,0,11,2,3,17,15,11,8,0,11,0,11,15,10,0,11,0,11,0,11,1,3,0,11,14,15,0,11,0,11,0,11,0,11,64,46,0,11,0,11,0,11,0,11,0,11,0,11,0,11,7,7,6,7,5,6,0,11,5,5,1,4,0,11,0,11,0,11,0,11,0,11,29,34]
[null,"Income $150,000 to $199,999 ",0,11,0,11,0,11,53,39,0,11,7,11,0,11,0,11,34,22,13,12,0,11,0,11,3,5,0,11,0,11,1,2,8,10,0,11,19,23,0,11,0,11,0,11,0,11,24,27,0,11,0,11,0,11,0,11,0,11,0,11,0,11,8,8,16,10,0,11,0,11,4,6,11,11,5,5,0,11,0,11,0,11,0,11,21,15]
[null,"Income $200,000 or more ",0,11,0,11,0,11,89,53,0,11,13,12,0,11,0,11,8,8,14,12,0,11,0,11,2,5,0,11,0,11,4,4,0,11,0,11,39,38,0,11,0,11,0,11,0,11,42,34,0,11,0,11,0,11,0,11,0,11,0,11,0,11,24,23,15,10,0,11,0,11,4,4,2,3,0,11,0,11,0,11,0,11,0,11,5,7]
[]
[]
[]
[]
[null,"Calculated B19001. HOUSEHOLD INCOME IN THE PAST 12 MONTHS (IN 2014 INFLATION-ADJUSTED DOLLARS)"]
[null,"Universe:  HOUSEHOLDS"]
[null,"Data Set: 2010-2014 American Community Survey 5-Year Estimates"]
[null,null,"Atkinson and Gilmanton Grant",null,"Bean's Grant",null,"Bean's Purchase",null,"Berlin",null,"Cambridge",null,"Carroll",null,"Chandler's Purchase",null,"Clarksville",null,"Colebrook",null,"Columbia",null,"Crawford's Purchase",null,"Cutt's Grant",null,"Dalton",null,"Dix's Grant",null,"Dixville",null,"Dummer",null,"Errol",null,"Erving's Location",null,"Gorham",null,"Greens Grant",null,"Hadley's Purchase",null,"Jefferson",null,"Kilkenny",null,"Lancaster",null,"Low and Burbank's Grant",null,"Martin's Location",null,"Milan",null,"Millsfield",null,"Northumberland",null,"Odell",null,"Pinkham's Grant",null,"Pittsburg",null,"Randolph",null,"Sargent's Purchase",null,"Second College Grant",null,"Shelburne",null,"Stark",null,"Stewartstown",null,"Stratford",null,"Success",null,"Thompson and Meserves Purchase",null,"Wentworth's Location",null,"Whitefield"]
[null,null,"Estimate","Margin Of Error","Estimate","Margin Of Error","Estimate","Margin Of Error","Estimate","Margin Of Error","Estimate","Margin Of Error","Estimate","Margin Of Error","Estimate","Margin Of Error","Estimate","Margin Of Error","Estimate","Margin Of Error","Estimate","Margin Of Error","Estimate","Margin Of Error","Estimate","Margin Of Error","Estimate","Margin Of Error","Estimate","Margin Of Error","Estimate","Margin Of Error","Estimate","Margin Of Error","Estimate","Margin Of Error","Estimate","Margin Of Error","Estimate","Margin Of Error","Estimate","Margin Of Error","Estimate","Margin Of Error","Estimate","Margin Of Error","Estimate","Margin Of Error","Estimate","Margin Of Error","Estimate","Margin Of Error","Estimate","Margin Of Error","Estimate","Margin Of Error","Estimate","Margin Of Error","Estimate","Margin Of Error","Estimate","Margin Of Error","Estimate","Margin Of Error","Estimate","Margin Of Error","Estimate","Margin Of Error","Estimate","Margin Of Error","Estimate","Margin Of Error","Estimate","Margin Of Error","Estimate","Margin Of Error","Estimate","Margin Of Error","Estimate","Margin Of Error","Estimate","Margin Of Error","Estimate","Margin Of Error","Estimate","Margin Of Error","Estimate","Margin Of Error"]
[null,"Total Households",{"$f":"$C$7","v":0},{"$f":"$D$7","v":11},{"$f":"$E$7","v":0},{"$f":"$F$7","v":11},{"$f":"$G$7","v":0},{"$f":"$H$7","v":11},{"$f":"$I$7","v":3977},{"$f":"$J$7","v":201},{"$f":"$K$7","v":0},{"$f":"$L$7","v":11},{"$f":"$M$7","v":324},{"$f":"$N$7","v":49},{"$f":"$O$7","v":0},{"$f":"$P$7","v":11},{"$f":"$Q$7","v":141},{"$f":"R76","v":33},1101,105,315,52,0,11,0,11,414,58,4,6,3,6,141,32,186,38,0,11,1240,77,0,11,0,11,0,11,0,11,1537,96,0,11,0,11,9,7,8,8,0,11,0,11,0,11,452,68,197,34,5,6,0,11,165,26,217,35,373,58,0,11,0,{"$f":"CD76","v":11},0,11,37,21,1047,106]
[null,"Households With"]
[null,"Income Less than $10,000 ",{"$f":"$C$9","v":0},{"$f":"$D$9","v":11},{"$f":"$E$9","v":0},{"$f":"$F$9","v":11},{"$f":"$G$9","v":0},{"$f":"$H$9","v":11},{"$f":"$I$9","v":331},{"$f":"$J$9","v":102},{"$f":"$K$9","v":0},{"$f":"$L$9","v":11},{"$f":"$M$9","v":10},{"$f":"$N$9","v":7},{"$f":"$O$9","v":0},{"$f":"$P$9","v":11},{"$f":"$Q$9","v":2},{"$f":"R78","v":3},67,34,32,20,0,11,0,11,29,21,0,11,0,11,2,3,5,6,0,11,58,48,0,11,0,11,0,11,0,11,93,53,0,11,0,11,0,11,0,11,0,11,0,11,0,11,35,20,6,7,0,11,0,11,3,4,23,11,50,28,0,11,0,{"$f":"CD78","v":11},0,11,12,15,34,30]
[null,"Income $10,000 to $14,999 ",{"$f":"$C$10","v":0},{"$f":"$D$10","v":11},{"$f":"$E$10","v":0},{"$f":"$F$10","v":11},{"$f":"$G$10","v":0},{"$f":"$H$10","v":11},{"$f":"$I$10","v":422},{"$f":"$J$10","v":147},{"$f":"$K$10","v":0},{"$f":"$L$10","v":11},{"$f":"$M$10","v":7},{"$f":"$N$10","v":10},{"$f":"$O$10","v":0},{"$f":"$P$10","v":11},{"$f":"$Q$10","v":3},17,107,51,22,14,0,11,0,11,12,9,0,11,0,11,1,2,29,17,0,11,49,43,0,11,0,11,0,11,0,11,77,47,0,11,0,11,0,11,0,11,0,11,0,11,0,11,29,16,13,10,0,11,0,11,7,6,4,4,34,24,0,11,0,11,0,11,0,11,117,43]
[null,"Income $15,000 to $24,999 ",{"$f":"$C$11+$C$12","v":0},{"$f":"SQRT(($D$11^2)+($D$12^2))","v":15.556349186104045},{"$f":"$E$11+$E$12","v":0},{"$f":"SQRT(($F$11^2)+($F$12^2))","v":15.556349186104045},{"$f":"$G$11+$G$12","v":0},{"$f":"SQRT(($H$11^2)+($H$12^2))","v":15.556349186104045},{"$f":"$I$11+$I$12","v":636},{"$f":"SQRT(($J$11^2)+($J$12^2))","v":155.24174696260025},{"$f":"$K$11+$K$12","v":0},{"$f":"SQRT(($L$11^2)+($L$12^2))","v":15.556349186104045},{"$f":"$M$11+$M$12","v":18},{"$f":"SQRT(($N$11^2)+($N$12^2))","v":13.416407864998739},{"$f":"$O$11+$O$12","v":0},{"$f":"SQRT(($P$11^2)+($P$12^2))","v":15.556349186104045},{"$f":"Q80+Q81","v":38},{"$f":"SQRT((R80^2)+(R81^2))","v":17.691806012954132},{"$f":"S80+S81","v":147},{"$f":"SQRT((T80^2)+(T81^2))","v":55.470712993434653},{"$f":"U80+U81","v":52},{"$f":"SQRT((V80^2)+(V81^2))","v":22.627416997969522},{"$f":"W80+W81","v":0},{"$f":"SQRT((X80^2)+(X81^2))","v":15.556349186104045},{"$f":"Y80+Y81","v":0},{"$f":"SQRT((Z80^2)+(Z81^2))","v":15.556349186104045},{"$f":"AA80+AA81","v":52},{"$f":"SQRT((AB80^2)+(AB81^2))","v":25.553864678361276},{"$f":"AC80+AC81","v":0},{"$f":"SQRT((AD80^2)+(AD81^2))","v":15.556349186104045},{"$f":"AE80+AE81","v":0},{"$f":"SQRT((AF80^2)+(AF81^2))","v":15.556349186104045},{"$f":"AG80+AG81","v":26},{"$f":"SQRT((AH80^2)+(AH81^2))","v":16.643316977093239},{"$f":"AI80+AI81","v":40},{"$f":"SQRT((AJ80^2)+(AJ81^2))","v":19.209372712298546},{"$f":"AK80+AK81","v":0},{"$f":"SQRT((AL80^2)+(AL81^2))","v":15.556349186104045},{"$f":"AM80+AM81","v":154},{"$f":"SQRT((AN80^2)+(AN81^2))","v":67.230945255886439},{"$f":"AO80+AO81","v":0},{"$f":"SQRT((AP80^2)+(AP81^2))","v":15.556349186104045},{"$f":"AQ80+AQ81","v":0},{"$f":"SQRT((AR80^2)+(AR81^2))","v":15.556349186104045},{"$f":"AS80+AS81","v":0},{"$f":"SQRT((AT80^2)+(AT81^2))","v":15.556349186104045},{"$f":"AU80+AU81","v":0},{"$f":"SQRT((AV80^2)+(AV81^2))","v":15.556349186104045},{"$f":"AW80+AW81","v":243},{"$f":"SQRT((AX80^2)+(AX81^2))","v":100.12492197250393},{"$f":"AY80+AY81","v":0},{"$f":"SQRT((AZ80^2)+(AZ81^2))","v":15.556349186104045},{"$f":"BA80+BA81","v":0},{"$f":"SQRT((BB80^2)+(BB81^2))","v":15.556349186104045},{"$f":"BC80+BC81","v":0},{"$f":"SQRT((BD80^2)+(BD81^2))","v":15.556349186104045},{"$f":"BE80+BE81","v":0},{"$f":"SQRT((BF80^2)+(BF81^2))","v":15.556349186104045},{"$f":"BG80+BG81","v":0},{"$f":"SQRT((BH80^2)+(BH81^2))","v":15.556349186104045},{"$f":"BI80+BI81","v":0},{"$f":"SQRT((BJ80^2)+(BJ81^2))","v":15.556349186104045},{"$f":"BK80+BK81","v":0},{"$f":"SQRT((BL80^2)+(BL81^2))","v":15.556349186104045},{"$f":"BM80+BM81","v":67},{"$f":"SQRT((BN80^2)+(BN81^2))","v":29.681644159311659},{"$f":"BO80+BO81","v":15},{"$f":"SQRT((BP80^2)+(BP81^2))","v":9.8488578017961039},{"$f":"BQ80+BQ81","v":0},{"$f":"SQRT((BR80^2)+(BR81^2))","v":15.556349186104045},{"$f":"BS80+BS81","v":0},{"$f":"SQRT((BT80^2)+(BT81^2))","v":15.556349186104045},{"$f":"BU80+BU81","v":13},{"$f":"SQRT((BV80^2)+(BV81^2))","v":9.2195444572928871},{"$f":"BW80+BW81","v":35},{"$f":"SQRT((BX80^2)+(BX81^2))","v":17.464249196572979},{"$f":"BY80+BY81","v":62},{"$f":"SQRT((BZ80^2)+(BZ81^2))","v":28.284271247461902},{"$f":"CA80+CA81","v":0},{"$f":"SQRT((CB80^2)+(CB81^2))","v":15.556349186104045},{"$f":"CC80+CC81","v":0},{"$f":"SQRT((CD80^2)+(CD81^2))","v":15.556349186104045},{"$f":"CE80+CE81","v":0},{"$f":"SQRT((CF80^2)+(CF81^2))","v":15.556349186104045},{"$f":"CG80+CG81","v":1},{"$f":"SQRT((CH80^2)+(CH81^2))","v":11.401754250991379},{"$f":"CI80+CI81","v":201},{"$f":"SQRT((CJ80^2)+(CJ81^2))","v":66.400301204136113}]
[null,"Income $25,000 to $34,999 ",{"$f":"$C$13+$C$14","v":0},{"$f":"SQRT(($D$13^2)+($D$14^2))","v":15.556349186104045},{"$f":"$E$13+$E$14","v":0},{"$f":"SQRT(($F$13^2)+($F$14^2))","v":15.556349186104045},{"$f":"$G$13+$G$14","v":0},{"$f":"SQRT(($H$13^2)+($H$14^2))","v":15.556349186104045},{"$f":"$I$13+$I$14","v":385},{"$f":"SQRT(($J$13^2)+($J$14^2))","v":125.0959631642844},{"$f":"$K$13+$K$14","v":0},{"$f":"SQRT(($L$13^2)+($L$14^2))","v":15.556349186104045},{"$f":"$M$13+$M$14","v":40},{"$f":"SQRT(($N$13^2)+($N$14^2))","v":18.788294228055936},{"$f":"$O$13+$O$14","v":0},{"$f":"SQRT(($P$13^2)+($P$14^2))","v":15.556349186104045},{"$f":"Q82+Q83","v":32},{"$f":"SQRT((R82^2)+(R83^2))","v":17.4928556845359},{"$f":"S82+S83","v":120},{"$f":"SQRT((T82^2)+(T83^2))","v":44.687805943008662},{"$f":"U82+U83","v":15},{"$f":"SQRT((V82^2)+(V83^2))","v":13},{"$f":"W82+W83","v":0},{"$f":"SQRT((X82^2)+(X83^2))","v":15.556349186104045},{"$f":"Y82+Y83","v":0},{"$f":"SQRT((Z82^2)+(Z83^2))","v":15.556349186104045},{"$f":"AA82+AA83","v":53},{"$f":"SQRT((AB82^2)+(AB83^2))","v":24.186773244895647},{"$f":"AC82+AC83","v":0},{"$f":"SQRT((AD82^2)+(AD83^2))","v":15.556349186104045},{"$f":"AE82+AE83","v":0},{"$f":"SQRT((AF82^2)+(AF83^2))","v":15.556349186104045},{"$f":"AG82+AG83","v":30},{"$f":"SQRT((AH82^2)+(AH83^2))","v":14.7648230602334},{"$f":"AI82+AI83","v":22},{"$f":"SQRT((AJ82^2)+(AJ83^2))","v":14.212670403551895},{"$f":"AK82+AK83","v":0},{"$f":"SQRT((AL82^2)+(AL83^2))","v":15.556349186104045},{"$f":"AM82+AM83","v":127},{"$f":"SQRT((AN82^2)+(AN83^2))","v":60.033324079214538},{"$f":"AO82+AO83","v":0},{"$f":"SQRT((AP82^2)+(AP83^2))","v":15.556349186104045},{"$f":"AQ82+AQ83","v":0},{"$f":"SQRT((AR82^2)+(AR83^2))","v":15.556349186104045},{"$f":"AS82+AS83","v":0},{"$f":"SQRT((AT82^2)+(AT83^2))","v":15.556349186104045},{"$f":"AU82+AU83","v":0},{"$f":"SQRT((AV82^2)+(AV83^2))","v":15.556349186104045},{"$f":"AW82+AW83","v":258},{"$f":"SQRT((AX82^2)+(AX83^2))","v":107.18675291284833},{"$f":"AY82+AY83","v":0},{"$f":"SQRT((AZ82^2)+(AZ83^2))","v":15.556349186104045},{"$f":"BA82+BA83","v":0},{"$f":"SQRT((BB82^2)+(BB83^2))","v":15.556349186104045},{"$f":"BC82+BC83","v":2},{"$f":"SQRT((BD82^2)+(BD83^2))","v":11.401754250991379},{"$f":"BE82+BE83","v":6},{"$f":"SQRT((BF82^2)+(BF83^2))","v":6.7082039324993694},{"$f":"BG82+BG83","v":0},{"$f":"SQRT((BH82^2)+(BH83^2))","v":15.556349186104045},{"$f":"BI82+BI83","v":0},{"$f":"SQRT((BJ82^2)+(BJ83^2))","v":15.556349186104045},{"$f":"BK82+BK83","v":0},{"$f":"SQRT((BL82^2)+(BL83^2))","v":15.556349186104045},{"$f":"BM82+BM83","v":74},{"$f":"SQRT((BN82^2)+(BN83^2))","v":39.824615503479755},{"$f":"BO82+BO83","v":18},{"$f":"SQRT((BP82^2)+(BP83^2))","v":8.9442719099991592},{"$f":"BQ82+BQ83","v":0},{"$f":"SQRT((BR82^2)+(BR83^2))","v":15.556349186104045},{"$f":"BS82+BS83","v":0},{"$f":"SQRT((BT82^2)+(BT83^2))","v":15.556349186104045},{"$f":"BU82+BU83","v":16},{"$f":"SQRT((BV82^2)+(BV83^2))","v":9.2195444572928871},{"$f":"BW82+BW83","v":25},{"$f":"SQRT((BX82^2)+(BX83^2))","v":14.866068747318506},{"$f":"BY82+BY83","v":68},{"$f":"SQRT((BZ82^2)+(BZ83^2))","v":33.837848631377263},{"$f":"CA82+CA83","v":0},{"$f":"SQRT((CB82^2)+(CB83^2))","v":15.556349186104045},{"$f":"CC82+CC83","v":0},{"$f":"SQRT((CD82^2)+(CD83^2))","v":15.556349186104045},{"$f":"CE82+CE83","v":0},{"$f":"SQRT((CF82^2)+(CF83^2))","v":15.556349186104045},{"$f":"CG82+CG83","v":0},{"$f":"SQRT((CH82^2)+(CH83^2))","v":15.556349186104045},{"$f":"CI82+CI83","v":119},{"$f":"SQRT((CJ82^2)+(CJ83^2))","v":52.201532544552748}]
[null,"Income $35,000 to $49,999 ",{"$f":"$C$15+$C$16+$C$17","v":0},{"$f":"SQRT(($D$15^2)+($D$16^2)+($D$17^2))","v":19.05255888325765},{"$f":"$E$15+$E$16+$E$17","v":0},{"$f":"SQRT(($F$15^2)+($F$16^2)+($F$17^2))","v":19.05255888325765},{"$f":"$G$15+$G$16+$G$17","v":0},{"$f":"SQRT(($H$15^2)+($H$16^2)+($H$17^2))","v":19.05255888325765},{"$f":"$I$15+$I$16+$I$17","v":719},{"$f":"SQRT(($J$15^2)+($J$16^2)+($J$17^2))","v":173.18775938270002},{"$f":"$K$15+$K$16+$K$17","v":0},{"$f":"SQRT(($L$15^2)+($L$16^2)+($L$17^2))","v":19.05255888325765},{"$f":"$M$15+$M$16+$M$17","v":40},{"$f":"SQRT(($N$15^2)+($N$16^2)+($N$17^2))","v":18.574175621006709},{"$f":"$O$15+$O$16+$O$17","v":0},{"$f":"SQRT(($P$15^2)+($P$16^2)+($P$17^2))","v":19.05255888325765},{"$f":"Q84+Q85+Q86","v":28},{"$f":"SQRT((R84^2)+(R85^2)+(R86^2))","v":13.928388277184119},{"$f":"S84+S85+S86","v":176},{"$f":"SQRT((T84^2)+(T85^2)+(T86^2))","v":54.990908339470082},{"$f":"U84+U85+U86","v":32},{"$f":"SQRT((V84^2)+(V85^2)+(V86^2))","v":16.248076809271922},{"$f":"W84+W85+W86","v":0},{"$f":"SQRT((X84^2)+(X85^2)+(X86^2))","v":19.05255888325765},{"$f":"Y84+Y85+Y86","v":0},{"$f":"SQRT((Z84^2)+(Z85^2)+(Z86^2))","v":19.05255888325765},{"$f":"AA84+AA85+AA86","v":76},{"$f":"SQRT((AB84^2)+(AB85^2)+(AB86^2))","v":29.086079144497972},{"$f":"AC84+AC85+AC86","v":4},{"$f":"SQRT((AD84^2)+(AD85^2)+(AD86^2))","v":16.673332000533065},{"$f":"AE84+AE85+AE86","v":3},{"$f":"SQRT((AF84^2)+(AF85^2)+(AF86^2))","v":16.673332000533065},{"$f":"AG84+AG85+AG86","v":24},{"$f":"SQRT((AH84^2)+(AH85^2)+(AH86^2))","v":10.198039027185569},{"$f":"AI84+AI85+AI86","v":21},{"$f":"SQRT((AJ84^2)+(AJ85^2)+(AJ86^2))","v":19.874606914351791},{"$f":"AK84+AK85+AK86","v":0},{"$f":"SQRT((AL84^2)+(AL85^2)+(AL86^2))","v":19.05255888325765},{"$f":"AM84+AM85+AM86","v":207},{"$f":"SQRT((AN84^2)+(AN85^2)+(AN86^2))","v":70.242437315343778},{"$f":"AO84+AO85+AO86","v":0},{"$f":"SQRT((AP84^2)+(AP85^2)+(AP86^2))","v":19.05255888325765},{"$f":"AQ84+AQ85+AQ86","v":0},{"$f":"SQRT((AR84^2)+(AR85^2)+(AR86^2))","v":19.05255888325765},{"$f":"AS84+AS85+AS86","v":0},{"$f":"SQRT((AT84^2)+(AT85^2)+(AT86^2))","v":19.05255888325765},{"$f":"AU84+AU85+AU86","v":0},{"$f":"SQRT((AV84^2)+(AV85^2)+(AV86^2))","v":19.05255888325765},{"$f":"AW84+AW85+AW86","v":111},{"$f":"SQRT((AX84^2)+(AX85^2)+(AX86^2))","v":68.774995456197601},{"$f":"AY84+AY85+AY86","v":0},{"$f":"SQRT((AZ84^2)+(AZ85^2)+(AZ86^2))","v":19.05255888325765},{"$f":"BA84+BA85+BA86","v":0},{"$f":"SQRT((BB84^2)+(BB85^2)+(BB86^2))","v":19.05255888325765},{"$f":"BC84+BC85+BC86","v":7},{"$f":"SQRT((BD84^2)+(BD85^2)+(BD86^2))","v":13.638181696985855},{"$f":"BE84+BE85+BE86","v":2},{"$f":"SQRT((BF84^2)+(BF85^2)+(BF86^2))","v":16.06237840420901},{"$f":"BG84+BG85+BG86","v":0},{"$f":"SQRT((BH84^2)+(BH85^2)+(BH86^2))","v":19.05255888325765},{"$f":"BI84+BI85+BI86","v":0},{"$f":"SQRT((BJ84^2)+(BJ85^2)+(BJ86^2))","v":19.05255888325765},{"$f":"BK84+BK85+BK86","v":0},{"$f":"SQRT((BL84^2)+(BL85^2)+(BL86^2))","v":19.05255888325765},{"$f":"BM84+BM85+BM86","v":80},{"$f":"SQRT((BN84^2)+(BN85^2)+(BN86^2))","v":29.154759474226502},{"$f":"BO84+BO85+BO86","v":22},{"$f":"SQRT((BP84^2)+(BP85^2)+(BP86^2))","v":13.114877048604001},{"$f":"BQ84+BQ85+BQ86","v":0},{"$f":"SQRT((BR84^2)+(BR85^2)+(BR86^2))","v":19.05255888325765},{"$f":"BS84+BS85+BS86","v":0},{"$f":"SQRT((BT84^2)+(BT85^2)+(BT86^2))","v":19.05255888325765},{"$f":"BU84+BU85+BU86","v":36},{"$f":"SQRT((BV84^2)+(BV85^2)+(BV86^2))","v":15.556349186104045},{"$f":"BW84+BW85+BW86","v":49},{"$f":"SQRT((BX84^2)+(BX85^2)+(BX86^2))","v":23.706539182259394},{"$f":"BY84+BY85+BY86","v":49},{"$f":"SQRT((BZ84^2)+(BZ85^2)+(BZ86^2))","v":22.338307903688676},{"$f":"CA84+CA85+CA86","v":0},{"$f":"SQRT((CB84^2)+(CB85^2)+(CB86^2))","v":19.05255888325765},{"$f":"CC84+CC85+CC86","v":0},{"$f":"SQRT((CD84^2)+(CD85^2)+(CD86^2))","v":19.05255888325765},{"$f":"CE84+CE85+CE86","v":0},{"$f":"SQRT((CF84^2)+(CF85^2)+(CF86^2))","v":19.05255888325765},{"$f":"CG84+CG85+CG86","v":11},{"$f":"SQRT((CH84^2)+(CH85^2)+(CH86^2))","v":19.646882704388499},{"$f":"CI84+CI85+CI86","v":153},{"$f":"SQRT((CJ84^2)+(CJ85^2)+(CJ86^2))","v":55.659680200302986}]
[null,"Income $50,000 to $74,999 ",{"$f":"$C$18+$C$19","v":0},{"$f":"SQRT(($D$18^2)+($D$19^2))","v":15.556349186104045},{"$f":"$E$18+$E$19","v":0},{"$f":"SQRT(($F$18^2)+($F$19^2))","v":15.556349186104045},{"$f":"$G$18+$G$19","v":0},{"$f":"SQRT(($H$18^2)+($H$19^2))","v":15.556349186104045},{"$f":"$I$18+$I$19","v":601},{"$f":"SQRT(($J$18^2)+($J$19^2))","v":142.3411395205195},{"$f":"$K$18+$K$19","v":0},{"$f":"SQRT(($L$18^2)+($L$19^2))","v":15.556349186104045},{"$f":"$M$18+$M$19","v":95},{"$f":"SQRT(($N$18^2)+($N$19^2))","v":34.205262752974143},{"$f":"$O$18+$O$19","v":0},{"$f":"SQRT(($P$18^2)+($P$19^2))","v":15.556349186104045},{"$f":"Q87+Q88","v":16},{"$f":"SQRT((R87^2)+(R88^2))","v":9.4868329805051381},{"$f":"S87+S88","v":200},{"$f":"SQRT((T87^2)+(T88^2))","v":56.400354608814297},{"$f":"U87+U88","v":66},{"$f":"SQRT((V87^2)+(V88^2))","v":25},{"$f":"W87+W88","v":0},{"$f":"SQRT((X87^2)+(X88^2))","v":15.556349186104045},{"$f":"Y87+Y88","v":0},{"$f":"SQRT((Z87^2)+(Z88^2))","v":15.556349186104045},{"$f":"AA87+AA88","v":116},{"$f":"SQRT((AB87^2)+(AB88^2))","v":38.948684188300895},{"$f":"AC87+AC88","v":0},{"$f":"SQRT((AD87^2)+(AD88^2))","v":15.556349186104045},{"$f":"AE87+AE88","v":0},{"$f":"SQRT((AF87^2)+(AF88^2))","v":15.556349186104045},{"$f":"AG87+AG88","v":9},{"$f":"SQRT((AH87^2)+(AH88^2))","v":7.2111025509279782},{"$f":"AI87+AI88","v":39},{"$f":"SQRT((AJ87^2)+(AJ88^2))","v":21.2602916254693},{"$f":"AK87+AK88","v":0},{"$f":"SQRT((AL87^2)+(AL88^2))","v":15.556349186104045},{"$f":"AM87+AM88","v":293},{"$f":"SQRT((AN87^2)+(AN88^2))","v":76.006578662639456},{"$f":"AO87+AO88","v":0},{"$f":"SQRT((AP87^2)+(AP88^2))","v":15.556349186104045},{"$f":"AQ87+AQ88","v":0},{"$f":"SQRT((AR87^2)+(AR88^2))","v":15.556349186104045},{"$f":"AS87+AS88","v":0},{"$f":"SQRT((AT87^2)+(AT88^2))","v":15.556349186104045},{"$f":"AU87+AU88","v":0},{"$f":"SQRT((AV87^2)+(AV88^2))","v":15.556349186104045},{"$f":"AW87+AW88","v":325},{"$f":"SQRT((AX87^2)+(AX88^2))","v":88.238313673823114},{"$f":"AY87+AY88","v":0},{"$f":"SQRT((AZ87^2)+(AZ88^2))","v":15.556349186104045},{"$f":"BA87+BA88","v":0},{"$f":"SQRT((BB87^2)+(BB88^2))","v":15.556349186104045},{"$f":"BC87+BC88","v":0},{"$f":"SQRT((BD87^2)+(BD88^2))","v":15.556349186104045},{"$f":"BE87+BE88","v":0},{"$f":"SQRT((BF87^2)+(BF88^2))","v":15.556349186104045},{"$f":"BG87+BG88","v":0},{"$f":"SQRT((BH87^2)+(BH88^2))","v":15.556349186104045},{"$f":"BI87+BI88","v":0},{"$f":"SQRT((BJ87^2)+(BJ88^2))","v":15.556349186104045},{"$f":"BK87+BK88","v":0},{"$f":"SQRT((BL87^2)+(BL88^2))","v":15.556349186104045},{"$f":"BM87+BM88","v":69},{"$f":"SQRT((BN87^2)+(BN88^2))","v":31.622776601683793},{"$f":"BO87+BO88","v":38},{"$f":"SQRT((BP87^2)+(BP88^2))","v":15.811388300841896},{"$f":"BQ87+BQ88","v":0},{"$f":"SQRT((BR87^2)+(BR88^2))","v":15.556349186104045},{"$f":"BS87+BS88","v":0},{"$f":"SQRT((BT87^2)+(BT88^2))","v":15.556349186104045},{"$f":"BU87+BU88","v":36},{"$f":"SQRT((BV87^2)+(BV88^2))","v":15.264337522473747},{"$f":"BW87+BW88","v":38},{"$f":"SQRT((BX87^2)+(BX88^2))","v":15.811388300841896},{"$f":"BY87+BY88","v":63},{"$f":"SQRT((BZ87^2)+(BZ88^2))","v":31.780497164141408},{"$f":"CA87+CA88","v":0},{"$f":"SQRT((CB87^2)+(CB88^2))","v":15.556349186104045},{"$f":"CC87+CC88","v":0},{"$f":"SQRT((CD87^2)+(CD88^2))","v":15.556349186104045},{"$f":"CE87+CE88","v":0},{"$f":"SQRT((CF87^2)+(CF88^2))","v":15.556349186104045},{"$f":"CG87+CG88","v":13},{"$f":"SQRT((CH87^2)+(CH88^2))","v":10.770329614269007},{"$f":"CI87+CI88","v":210},{"$f":"SQRT((CJ87^2)+(CJ88^2))","v":50.328918128646478}]
[null,"Income $75,000 to $99,999 ",{"$f":"$C$20","v":0},{"$f":"$D$20","v":11},{"$f":"$E$20","v":0},{"$f":"$F$20","v":11},{"$f":"$G$20","v":0},{"$f":"$H$20","v":11},{"$f":"$I$20","v":356},{"$f":"$J$20","v":106},{"$f":"$K$20","v":0},{"$f":"$L$20","v":11},{"$f":"$M$20","v":50},{"$f":"$N$20","v":26},{"$f":"$O$20","v":0},{"$f":"$P$20","v":11},{"$f":"Q89","v":9},7,175,57,31,12,0,11,0,11,46,21,0,11,0,11,19,14,17,12,0,11,177,57,0,11,0,11,0,11,0,11,190,78,0,11,0,11,0,11,0,11,0,11,0,11,0,11,50,26,35,12,0,11,0,11,24,15,16,10,14,10,0,11,{"$f":"CC89","v":0},11,0,11,0,11,107,35]
[null,"Income $100,000 to $149,999 ",{"$f":"$C$21+$C$22","v":0},{"$f":"SQRT(($D$21^2)+($D$22^2))","v":15.556349186104045},{"$f":"$E$21+$E$22","v":0},{"$f":"SQRT(($F$21^2)+($F$22^2))","v":15.556349186104045},{"$f":"$G$21+$G$22","v":0},{"$f":"SQRT(($H$21^2)+($H$22^2))","v":15.556349186104045},{"$f":"$I$21+$I$22","v":384},{"$f":"SQRT(($J$21^2)+($J$22^2))","v":127.20062892926276},{"$f":"$K$21+$K$22","v":0},{"$f":"SQRT(($L$21^2)+($L$22^2))","v":15.556349186104045},{"$f":"$M$21+$M$22","v":43},{"$f":"SQRT(($N$21^2)+($N$22^2))","v":20.880613017821101},{"$f":"$O$21+$O$22","v":0},{"$f":"SQRT(($P$21^2)+($P$22^2))","v":15.556349186104045},{"$f":"Q90+Q91","v":9},{"$f":"SQRT((R90^2)+(R91^2))","v":7.6157731058639087},{"$f":"S90+S91","v":67},{"$f":"SQRT((T90^2)+(T91^2))","v":29.154759474226502},{"$f":"U90+U91","v":38},{"$f":"SQRT((V90^2)+(V91^2))","v":18.788294228055936},{"$f":"W90+W91","v":0},{"$f":"SQRT((X90^2)+(X91^2))","v":15.556349186104045},{"$f":"Y90+Y91","v":0},{"$f":"SQRT((Z90^2)+(Z91^2))","v":15.556349186104045},{"$f":"AA90+AA91","v":25},{"$f":"SQRT((AB90^2)+(AB91^2))","v":12.806248474865697},{"$f":"AC90+AC91","v":0},{"$f":"SQRT((AD90^2)+(AD91^2))","v":15.556349186104045},{"$f":"AE90+AE91","v":0},{"$f":"SQRT((AF90^2)+(AF91^2))","v":15.556349186104045},{"$f":"AG90+AG91","v":25},{"$f":"SQRT((AH90^2)+(AH91^2))","v":17.029386365926403},{"$f":"AI90+AI91","v":5},{"$f":"SQRT((AJ90^2)+(AJ91^2))","v":5},{"$f":"AK90+AK91","v":0},{"$f":"SQRT((AL90^2)+(AL91^2))","v":15.556349186104045},{"$f":"AM90+AM91","v":117},{"$f":"SQRT((AN90^2)+(AN91^2))","v":59.908263203000637},{"$f":"AO90+AO91","v":0},{"$f":"SQRT((AP90^2)+(AP91^2))","v":15.556349186104045},{"$f":"AQ90+AQ91","v":0},{"$f":"SQRT((AR90^2)+(AR91^2))","v":15.556349186104045},{"$f":"AS90+AS91","v":0},{"$f":"SQRT((AT90^2)+(AT91^2))","v":15.556349186104045},{"$f":"AU90+AU91","v":0},{"$f":"SQRT((AV90^2)+(AV91^2))","v":15.556349186104045},{"$f":"AW90+AW91","v":174},{"$f":"SQRT((AX90^2)+(AX91^2))","v":65.053823869162372},{"$f":"AY90+AY91","v":0},{"$f":"SQRT((AZ90^2)+(AZ91^2))","v":15.556349186104045},{"$f":"BA90+BA91","v":0},{"$f":"SQRT((BB90^2)+(BB91^2))","v":15.556349186104045},{"$f":"BC90+BC91","v":0},{"$f":"SQRT((BD90^2)+(BD91^2))","v":15.556349186104045},{"$f":"BE90+BE91","v":0},{"$f":"SQRT((BF90^2)+(BF91^2))","v":15.556349186104045},{"$f":"BG90+BG91","v":0},{"$f":"SQRT((BH90^2)+(BH91^2))","v":15.556349186104045},{"$f":"BI90+BI91","v":0},{"$f":"SQRT((BJ90^2)+(BJ91^2))","v":15.556349186104045},{"$f":"BK90+BK91","v":0},{"$f":"SQRT((BL90^2)+(BL91^2))","v":15.556349186104045},{"$f":"BM90+BM91","v":16},{"$f":"SQRT((BN90^2)+(BN91^2))","v":10.63014581273465},{"$f":"BO90+BO91","v":19},{"$f":"SQRT((BP90^2)+(BP91^2))","v":11.401754250991379},{"$f":"BQ90+BQ91","v":5},{"$f":"SQRT((BR90^2)+(BR91^2))","v":12.529964086141668},{"$f":"BS90+BS91","v":0},{"$f":"SQRT((BT90^2)+(BT91^2))","v":15.556349186104045},{"$f":"BU90+BU91","v":22},{"$f":"SQRT((BV90^2)+(BV91^2))","v":12.083045973594572},{"$f":"BW90+BW91","v":14},{"$f":"SQRT((BX90^2)+(BX91^2))","v":12.649110640673518},{"$f":"BY90+BY91","v":28},{"$f":"SQRT((BZ90^2)+(BZ91^2))","v":26.40075756488817},{"$f":"CA90+CA91","v":0},{"$f":"SQRT((CB90^2)+(CB91^2))","v":15.556349186104045},{"$f":"CC90+CC91","v":0},{"$f":"SQRT((CD90^2)+(CD91^2))","v":15.556349186104045},{"$f":"CE90+CE91","v":0},{"$f":"SQRT((CF90^2)+(CF91^2))","v":15.556349186104045},{"$f":"CG90+CG91","v":0},{"$f":"SQRT((CH90^2)+(CH91^2))","v":15.556349186104045},{"$f":"CI90+CI91","v":80},{"$f":"SQRT((CJ90^2)+(CJ91^2))","v":52.497618993626752}]
[null,"Income $150,000 to $199,999 ",{"$f":"$C$23","v":0},{"$f":"$D$23","v":11},{"$f":"$E$23","v":0},{"$f":"$F$23","v":11},{"$f":"$G$23","v":0},{"$f":"$H$23","v":11},{"$f":"$I$23","v":115},{"$f":"$J$23","v":66},{"$f":"$K$23","v":0},{"$f":"$L$23","v":11},{"$f":"$M$23","v":11},{"$f":"$N$23","v":8},{"$f":"$O$23","v":0},{"$f":"$P$23","v":11},{"$f":"Q92","v":0},11,34,22,13,12,0,11,0,11,3,5,0,11,0,11,1,2,8,10,0,11,19,23,0,11,0,11,0,11,0,11,24,27,0,11,0,11,0,11,0,11,0,11,0,11,0,11,8,8,16,10,0,11,0,11,4,6,11,11,5,5,0,11,{"$f":"CC92","v":0},11,0,11,0,11,21,15]
[null,"Income $200,000 or more ",{"$f":"$C$24","v":0},{"$f":"$D$24","v":11},{"$f":"$E$24","v":0},{"$f":"$F$24","v":11},{"$f":"$G$24","v":0},{"$f":"$H$24","v":11},{"$f":"$I$24","v":28},{"$f":"$J$24","v":26},{"$f":"$K$24","v":0},{"$f":"$L$24","v":11},{"$f":"$M$24","v":10},{"$f":"$N$24","v":11},{"$f":"$O$24","v":0},{"$f":"$P$24","v":11},0,11,8,8,14,12,0,11,0,11,2,5,0,11,0,11,4,4,0,11,0,11,39,38,0,11,0,11,0,11,0,11,42,34,0,11,0,11,0,11,0,11,0,11,0,11,0,11,24,23,15,10,0,11,0,11,4,4,2,3,0,11,0,11,0,11,0,11,0,11,5,7]
[]
[]
[]
[null,"B19001. HOUSEHOLD INCOME IN THE PAST 12 MONTHS (IN 2009 INFLATION-ADJUSTED DOLLARS)",null,null,null,null,null,null,null,null,null,null,null,null,"B19001. HOUSEHOLD INCOME IN THE PAST 12 MONTHS (IN 2008 INFLATION-ADJUSTED DOLLARS) - Universe:  HOUSEHOLDS"]
[null,"Universe:  HOUSEHOLDS",null,null,null,null,null,null,null,null,null,null,null,null,{"$f":"B120","v":"Data Set: 2005-2009 American Community Survey 5-Year Estimates"}]
[null,"Data Set: 2005-2009 American Community Survey 5-Year Estimates"]
[]
[null,null,"Atkinson and Gilmanton Grant",null,"Bean's Grant",null,"Bean's Purchase",null,"Berlin",null,"Cambridge",null,"Carroll",null,"Chandler's Purchase",null,"Clarksville",null,"Colebrook",null,"Columbia",null,"Crawford's Purchase",null,"Cutt's Grant",null,"Dalton",null,"Dix's Grant",null,"Dixville",null,"Dummer",null,"Errol",null,"Erving's Location",null,"Gorham",null,"Greens Grant",null,"Hadley's Purchase",null,"Jefferson",null,"Kilkenny",null,"Lancaster",null,"Low and Burbank's Grant",null,"Martin's Location",null,"Milan",null,"Millsfield",null,"Northumberland",null,"Odell",null,"Pinkham's Grant",null,"Pittsburg",null,"Randolph",null,"Sargent's Purchase",null,"Second College Grant",null,"Shelburne",null,"Stark",null,"Stewartstown",null,"Stratford",null,"Success",null,"Thompson and Meserves Purchase",null,"Wentworth's Location",null,"Whitefield"]
[null,null,"Estimate","Margin Of Error","Estimate","Margin Of Error","Estimate","Margin Of Error","Estimate","Margin Of Error","Estimate","Margin Of Error","Estimate","Margin Of Error","Estimate","Margin Of Error","Estimate","Margin Of Error","Estimate","Margin Of Error","Estimate","Margin Of Error","Estimate","Margin Of Error","Estimate","Margin Of Error","Estimate","Margin Of Error","Estimate","Margin Of Error","Estimate","Margin Of Error","Estimate","Margin Of Error","Estimate","Margin Of Error","Estimate","Margin Of Error","Estimate","Margin Of Error","Estimate","Margin Of Error","Estimate","Margin Of Error","Estimate","Margin Of Error","Estimate","Margin Of Error","Estimate","Margin Of Error","Estimate","Margin Of Error","Estimate","Margin Of Error","Estimate","Margin Of Error","Estimate","Margin Of Error","Estimate","Margin Of Error","Estimate","Margin Of Error","Estimate","Margin Of Error","Estimate","Margin Of Error","Estimate","Margin Of Error","Estimate","Margin Of Error","Estimate","Margin Of Error","Estimate","Margin Of Error","Estimate","Margin Of Error","Estimate","Margin Of Error","Estimate","Margin Of Error","Estimate","Margin Of Error","Estimate","Margin Of Error","Estimate","Margin Of Error","Estimate","Margin Of Error"]
[null,"Total Households",0,114,0,114,0,114,4227,382,0,114,296,59,0,114,167,40,1116,126,344,64,0,114,0,114,469,55,0,114,8,8,151,49,119,32,0,114,1332,83,0,114,0,114,395,47,0,114,1248,119,0,114,0,114,567,44,4,5,1018,106,0,114,0,114,398,61,170,37,0,114,0,114,194,42,250,59,398,76,503,85,0,114,0,114,26,13,922,94]
[null,"Households With"]
[null,"Income Less than $10,000 ",0,114,0,114,0,114,445,143,0,114,18,19,0,114,2,3,114,56,12,14,0,114,0,114,40,21,0,114,0,114,1,4,0,114,0,114,33,26,0,114,0,114,29,20,0,114,87,50,0,114,0,114,26,23,0,114,54,41,0,114,0,114,19,15,0,114,0,114,0,114,8,8,4,7,35,25,75,39,0,114,0,114,0,114,136,63]
[null,"Income $10,000 to $14,999 ",0,114,0,114,0,114,320,126,0,114,6,7,0,114,13,10,164,71,22,17,0,114,0,114,16,11,0,114,0,114,11,9,5,7,0,114,86,46,0,114,0,114,10,12,0,114,51,39,0,114,0,114,19,11,0,114,89,48,0,114,0,114,49,21,6,5,0,114,0,114,4,6,9,9,14,10,56,32,0,114,0,114,4,6,96,50]
[null,"Income $15,000 to $19,999 ",0,114,0,114,0,114,324,122,0,114,4,6,0,114,11,10,117,70,13,13,0,114,0,114,6,7,0,114,0,114,6,8,8,7,0,114,85,69,0,114,0,114,0,114,0,114,64,49,0,114,0,114,13,10,0,114,60,33,0,114,0,114,13,11,7,9,0,114,0,114,11,8,16,12,29,20,40,27,0,114,0,114,4,6,21,16]
[null,"Income $20,000 to $24,999 ",0,114,0,114,0,114,404,136,0,114,4,6,0,114,17,11,88,49,16,14,0,114,0,114,19,11,0,114,0,114,13,9,12,9,0,114,95,44,0,114,0,114,21,12,0,114,66,49,0,114,0,114,39,16,0,114,115,65,0,114,0,114,38,23,0,114,0,114,0,114,8,7,16,13,54,26,34,27,0,114,0,114,3,5,39,23]
[null,"Income $25,000 to $29,999 ",0,114,0,114,0,114,188,66,0,114,13,10,0,114,22,16,81,53,28,19,0,114,0,114,23,14,0,114,0,114,15,10,15,12,0,114,116,69,0,114,0,114,33,21,0,114,64,43,0,114,0,114,23,13,0,114,78,43,0,114,0,114,24,16,14,10,0,114,0,114,3,5,22,20,25,16,24,19,0,114,0,114,8,10,53,32]
[null,"Income $30,000 to $34,999 ",0,114,0,114,0,114,216,69,0,114,42,26,0,114,23,21,44,37,24,17,0,114,0,114,45,23,0,114,0,114,8,7,13,10,0,114,36,20,0,114,0,114,5,8,0,114,76,69,0,114,0,114,41,22,4,5,61,39,0,114,0,114,12,11,11,12,0,114,0,114,3,5,32,26,7,10,50,33,0,114,0,114,0,114,61,24]
[null,"Income $35,000 to $39,999 ",0,114,0,114,0,114,206,94,0,114,11,12,0,114,13,10,55,35,23,17,0,114,0,114,20,11,0,114,0,114,3,4,8,8,0,114,104,93,0,114,0,114,21,14,0,114,64,42,0,114,0,114,42,16,0,114,58,40,0,114,0,114,22,17,4,4,0,114,0,114,6,6,19,18,36,18,57,31,0,114,0,114,0,114,61,40]
[null,"Income $40,000 to $44,999 ",0,114,0,114,0,114,254,95,0,114,40,25,0,114,13,12,8,11,4,6,0,114,0,114,43,28,0,114,0,114,2,3,0,114,0,114,231,100,0,114,0,114,8,9,0,114,34,27,0,114,0,114,20,13,0,114,93,52,0,114,0,114,23,18,6,7,0,114,0,114,7,7,27,23,17,15,31,18,0,114,0,114,0,114,12,9]
[null,"Income $45,000 to $49,999 ",0,114,0,114,0,114,246,94,0,114,7,7,0,114,8,9,95,45,0,114,0,114,0,114,28,17,0,114,0,114,6,5,6,7,0,114,53,36,0,114,0,114,19,18,0,114,35,33,0,114,0,114,27,17,0,114,32,26,0,114,0,114,27,15,4,6,0,114,0,114,12,9,18,15,33,21,24,20,0,114,0,114,0,114,42,21]
[null,"Income $50,000 to $59,999 ",0,114,0,114,0,114,326,94,0,114,18,14,0,114,0,114,105,64,51,28,0,114,0,114,52,25,0,114,4,6,40,47,6,7,0,114,75,40,0,114,0,114,37,22,0,114,183,88,0,114,0,114,62,21,0,114,117,47,0,114,0,114,58,30,19,16,0,114,0,114,23,13,14,12,53,27,26,20,0,114,0,114,3,6,94,46]
[null,"Income $60,000 to $74,999 ",0,114,0,114,0,114,596,149,0,114,52,26,0,114,11,9,55,38,22,18,0,114,0,114,93,46,0,114,4,6,18,10,13,13,0,114,97,44,0,114,0,114,62,26,0,114,159,54,0,114,0,114,107,25,0,114,117,45,0,114,0,114,47,26,12,7,0,114,0,114,20,13,18,13,46,23,41,27,0,114,0,114,4,6,109,37]
[null,"Income $75,000 to $99,999 ",0,114,0,114,0,114,507,120,0,114,42,26,0,114,25,14,84,43,63,38,0,114,0,114,43,21,0,114,0,114,22,12,20,13,0,114,125,54,0,114,0,114,68,24,0,114,188,57,0,114,0,114,66,22,0,114,92,44,0,114,0,114,37,22,59,25,0,114,0,114,33,17,32,19,22,19,29,17,0,114,0,114,0,114,98,41]
[null,"Income $100,000 to $124,999 ",0,114,0,114,0,114,86,45,0,114,26,15,0,114,6,8,65,49,24,20,0,114,0,114,20,11,0,114,0,114,4,5,8,7,0,114,44,39,0,114,0,114,32,14,0,114,106,54,0,114,0,114,58,22,0,114,44,31,0,114,0,114,16,13,11,12,0,114,0,114,26,19,17,14,5,7,0,114,0,114,0,114,0,114,53,42]
[null,"Income $125,000 to $149,999 ",0,114,0,114,0,114,77,58,0,114,10,11,0,114,0,114,22,33,18,25,0,114,0,114,18,15,0,114,0,114,0,114,3,5,0,114,63,36,0,114,0,114,5,7,0,114,4,7,0,114,0,114,13,9,0,114,8,12,0,114,0,114,3,6,9,10,0,114,0,114,5,5,0,114,17,13,4,6,0,114,0,114,0,114,26,26]
[null,"Income $150,000 to $199,999 ",0,114,0,114,0,114,32,29,0,114,0,114,0,114,3,4,13,18,9,10,0,114,0,114,3,6,0,114,0,114,2,3,2,3,0,114,29,27,0,114,0,114,10,10,0,114,28,27,0,114,0,114,3,4,0,114,0,114,0,114,0,114,5,7,5,5,0,114,0,114,20,23,6,6,0,114,7,10,0,114,0,114,0,114,15,13]
[null,"Income $200,000 or more ",0,114,0,114,0,114,0,114,0,114,3,5,0,114,0,114,6,10,15,23,0,114,0,114,0,114,0,114,0,114,0,114,0,114,0,114,60,50,0,114,0,114,35,28,0,114,39,40,0,114,0,114,8,7,0,114,0,114,0,114,0,114,5,8,3,4,0,114,0,114,5,7,0,114,5,7,5,8,0,114,0,114,0,114,6,8]
[]
[]
[]
[]
[null,"Calculated B19001. HOUSEHOLD INCOME IN THE PAST 12 MONTHS (IN 2009 INFLATION-ADJUSTED DOLLARS)"]
[null,"Universe:  HOUSEHOLDS"]
[null,"Data Set: 2005-2009 American Community Survey 5-Year Estimates"]
[null,null,"Atkinson and Gilmanton Grant",null,"Bean's Grant",null,"Bean's Purchase",null,"Berlin",null,"Cambridge",null,"Carroll",null,"Chandler's Purchase",null,"Clarksville",null,"Colebrook",null,"Columbia",null,"Crawford's Purchase",null,"Cutt's Grant",null,"Dalton",null,"Dix's Grant",null,"Dixville",null,"Dummer",null,"Errol",null,"Erving's Location",null,"Gorham",null,"Greens Grant",null,"Hadley's Purchase",null,"Jefferson",null,"Kilkenny",null,"Lancaster",null,"Low and Burbank's Grant",null,"Martin's Location",null,"Milan",null,"Millsfield",null,"Northumberland",null,"Odell",null,"Pinkham's Grant",null,"Pittsburg",null,"Randolph",null,"Sargent's Purchase",null,"Second College Grant",null,"Shelburne",null,"Stark",null,"Stewartstown",null,"Stratford",null,"Success",null,"Thompson and Meserves Purchase",null,"Wentworth's Location",null,"Whitefield"]
[null,null,"Estimate","Margin Of Error","Estimate","Margin Of Error","Estimate","Margin Of Error","Estimate","Margin Of Error","Estimate","Margin Of Error","Estimate","Margin Of Error","Estimate","Margin Of Error","Estimate","Margin Of Error","Estimate","Margin Of Error","Estimate","Margin Of Error","Estimate","Margin Of Error","Estimate","Margin Of Error","Estimate","Margin Of Error","Estimate","Margin Of Error","Estimate","Margin Of Error","Estimate","Margin Of Error","Estimate","Margin Of Error","Estimate","Margin Of Error","Estimate","Margin Of Error","Estimate","Margin Of Error","Estimate","Margin Of Error","Estimate","Margin Of Error","Estimate","Margin Of Error","Estimate","Margin Of Error","Estimate","Margin Of Error","Estimate","Margin Of Error","Estimate","Margin Of Error","Estimate","Margin Of Error","Estimate","Margin Of Error","Estimate","Margin Of Error","Estimate","Margin Of Error","Estimate","Margin Of Error","Estimate","Margin Of Error","Estimate","Margin Of Error","Estimate","Margin Of Error","Estimate","Margin Of Error","Estimate","Margin Of Error","Estimate","Margin Of Error","Estimate","Margin Of Error","Estimate","Margin Of Error","Estimate","Margin Of Error","Estimate","Margin Of Error","Estimate","Margin Of Error"]
[null,"Total Households",0,114,0,114,0,114,4227,382,0,114,296,59,0,114,167,40,1116,126,344,64,0,114,0,114,469,55,0,114,8,8,151,49,119,32,0,114,1332,83,0,114,0,114,395,47,0,114,1248,119,0,114,0,114,567,44,4,5,1018,106,0,114,0,114,398,61,170,37,0,114,0,114,194,42,250,59,398,76,503,85,0,114,0,114,26,13,922,94]
[null,"Households With"]
[null,"Income Less than $10,000 ",0,114,0,114,0,114,445,143,0,114,18,19,0,114,2,3,114,56,12,14,0,114,0,114,40,21,0,114,0,114,1,4,0,114,0,114,33,26,0,114,0,114,29,20,0,114,87,50,0,114,0,114,26,23,0,114,54,41,0,114,0,114,19,15,0,114,0,114,0,114,8,8,4,7,35,25,75,39,0,114,0,114,0,114,136,63]
[null,"Income $10,000 to $14,999 ",0,114,0,114,0,114,320,126,0,114,6,7,0,114,13,10,164,71,22,17,0,114,0,114,16,11,0,114,0,114,11,9,5,7,0,114,86,46,0,114,0,114,10,12,0,114,51,39,0,114,0,114,19,11,0,114,89,48,0,114,0,114,49,21,6,5,0,114,0,114,4,6,9,9,14,10,56,32,0,114,0,114,4,6,96,50]
[null,"Income $15,000 to $24,999 ",0,161.22034611053283,0,161.22034611053283,0,161.22034611053283,728,182.70194306574848,0,161.22034611053283,8,8.4852813742385695,0,161.22034611053283,28,14.866068747318506,205,85.445889310135925,29,19.104973174542799,0,161.22034611053283,0,161.22034611053283,25,13.038404810405298,0,161.22034611053283,0,161.22034611053283,19,12.041594578792296,20,11.401754250991379,0,161.22034611053283,180,81.835200250259064,0,161.22034611053283,0,161.22034611053283,21,114.62983904725679,0,161.22034611053283,130,69.296464556281663,0,161.22034611053283,0,161.22034611053283,52,18.867962264113206,0,161.22034611053283,175,72.897187874430387,0,161.22034611053283,0,161.22034611053283,51,25.495097567963924,7,114.35471131527551,0,161.22034611053283,0,161.22034611053283,19,10.63014581273465,32,17.691806012954132,83,32.802438933713454,74,38.183766184073569,0,161.22034611053283,0,161.22034611053283,7,7.810249675906654,60,28.0178514522438]
[null,"Income $25,000 to $34,999 ",0,161.22034611053283,0,161.22034611053283,0,161.22034611053283,404,95.482982777037293,0,161.22034611053283,55,27.856776554368238,0,161.22034611053283,45,26.40075756488817,125,64.637450444769243,52,25.495097567963924,0,161.22034611053283,0,161.22034611053283,68,26.92582403567252,0,161.22034611053283,0,161.22034611053283,23,12.206555615733702,28,15.620499351813308,0,161.22034611053283,152,71.840100222647237,0,161.22034611053283,0,161.22034611053283,38,22.472205054244231,0,161.22034611053283,140,81.301906496711382,0,161.22034611053283,0,161.22034611053283,64,25.553864678361276,4,114.10959644131601,139,58.051701094799967,0,161.22034611053283,0,161.22034611053283,36,19.416487838947599,25,15.620499351813308,0,161.22034611053283,0,161.22034611053283,6,7.0710678118654755,54,32.802438933713454,32,18.867962264113206,74,38.078865529319543,0,161.22034611053283,0,161.22034611053283,8,114.43775600735974,114,40]
[null,"Income $35,000 to $49,999 ",0,197.45379206285202,0,197.45379206285202,0,197.45379206285202,706,163.39216627488602,0,197.45379206285202,58,28.600699292150182,0,197.45379206285202,34,18.027756377319946,158,58.060313467979142,27,115.41663658242689,0,197.45379206285202,0,197.45379206285202,91,34.554305086341991,0,197.45379206285202,0,197.45379206285202,11,7.0710678118654755,14,114.49454135459908,0,197.45379206285202,388,141.22676800097071,0,197.45379206285202,0,197.45379206285202,48,24.515301344262525,0,197.45379206285202,133,59.849812029780011,0,197.45379206285202,0,197.45379206285202,89,26.720778431774775,0,197.45379206285202,183,70.569115057509407,0,197.45379206285202,0,197.45379206285202,72,28.948229652260256,14,10.04987562112089,0,197.45379206285202,0,197.45379206285202,25,12.884098726725126,64,32.832910318764007,86,31.464265445104548,112,41.048751503547585,0,197.45379206285202,0,197.45379206285202,0,197.45379206285202,115,46.065171225124082]
[null,"Income $50,000 to $74,999 ",0,161.22034611053283,0,161.22034611053283,0,161.22034611053283,922,176.17321022221284,0,161.22034611053283,70,29.529646120466801,0,161.22034611053283,11,114.35471131527551,160,74.431176263713581,73,33.286633954186478,0,161.22034611053283,0,161.22034611053283,145,52.354560450833695,0,161.22034611053283,8,8.4852813742385695,58,48.052055106935853,19,14.7648230602334,0,161.22034611053283,172,59.464274989274024,0,161.22034611053283,0,161.22034611053283,99,34.058772731852805,0,161.22034611053283,342,103.24727599312246,0,161.22034611053283,0,161.22034611053283,169,32.649655434629018,0,161.22034611053283,234,65.069193939989759,0,161.22034611053283,0,161.22034611053283,105,39.698866482558415,31,17.464249196572979,0,161.22034611053283,0,161.22034611053283,43,18.384776310850235,32,17.691806012954132,99,35.468295701936398,67,33.600595232822883,0,161.22034611053283,0,161.22034611053283,7,8.4852813742385695,203,59.033888572581766]
[null,"Income $75,000 to $99,999 ",0,114,0,114,0,114,507,120,0,114,42,26,0,114,25,14,84,43,63,38,0,114,0,114,43,21,0,114,0,114,22,12,20,13,0,114,125,54,0,114,0,114,68,24,0,114,188,57,0,114,0,114,66,22,0,114,92,44,0,114,0,114,37,22,59,25,0,114,0,114,33,17,32,19,22,19,29,17,0,114,0,114,0,114,98,41]
[null,"Income $100,000 to $149,999 ",0,161.22034611053283,0,161.22034611053283,0,161.22034611053283,163,73.409808608931812,0,161.22034611053283,36,18.601075237738275,0,161.22034611053283,6,114.28035701729323,87,59.076221950967721,42,32.015621187164243,0,161.22034611053283,0,161.22034611053283,38,18.601075237738275,0,161.22034611053283,0,161.22034611053283,4,114.10959644131601,11,8.6023252670426267,0,161.22034611053283,107,53.075418038862395,0,161.22034611053283,0,161.22034611053283,37,15.652475842498529,0,161.22034611053283,110,54.451813560247928,0,161.22034611053283,0,161.22034611053283,71,23.769728648009426,0,161.22034611053283,52,33.241540277189323,0,161.22034611053283,0,161.22034611053283,19,14.317821063276353,20,15.620499351813308,0,161.22034611053283,0,161.22034611053283,31,19.646882704388499,17,114.85643212288984,22,14.7648230602334,4,114.15778554264269,0,161.22034611053283,0,161.22034611053283,0,161.22034611053283,79,49.396356140913873]
[null,"Income $150,000 to $199,999 ",0,114,0,114,0,114,32,29,0,114,0,114,0,114,3,4,13,18,9,10,0,114,0,114,3,6,0,114,0,114,2,3,2,3,0,114,29,27,0,114,0,114,10,10,0,114,28,27,0,114,0,114,3,4,0,114,0,114,0,114,0,114,5,7,5,5,0,114,0,114,20,23,6,6,0,114,7,10,0,114,0,114,0,114,15,13]
[null,"Income $200,000 or more ",0,114,0,114,0,114,0,114,0,114,3,5,0,114,0,114,6,10,15,23,0,114,0,114,0,114,0,114,0,114,0,114,0,114,0,114,60,50,0,114,0,114,35,28,0,114,39,40,0,114,0,114,8,7,0,114,0,114,0,114,0,114,5,8,3,4,0,114,0,114,5,7,0,114,5,7,5,8,0,114,0,114,0,114,6,8]

{"sheet":"ACS_Table_B19037","index":26,"n_rows":253,"n_cols":88,"rows_kept":253,"cut":false,"hidden":true,"merged":[]}
[null,"B19037. AGE OF HOUSEHOLDER BY HOUSEHOLD INCOME IN THE PAST 12 MONTHS (IN 2019 INFLATION-ADJUSTED DOLLARS)"]
[null,"Universe:  HOUSEHOLDS"]
[null,"Data Set: 2015-2019 American Community Survey 5-Year Estimates"]
[]
[null,null,"Atkinson and Gilmanton Grant",null,"Bean's Grant",null,"Bean's Purchase",null,"Berlin",null,"Cambridge",null,"Carroll",null,"Chandler's Purchase",null,"Clarksville",null,"Colebrook",null,"Columbia",null,"Crawford's Purchase",null,"Cutt's Grant",null,"Dalton",null,"Dix's Grant",null,"Dixville",null,"Dummer",null,"Errol",null,"Erving's Location",null,"Gorham",null,"Greens Grant",null,"Hadley's Purchase",null,"Jefferson",null,"Kilkenny",null,"Lancaster",null,"Low and Burbank's Grant",null,"Martin's Location",null,"Milan",null,"Millsfield",null,"Northumberland",null,"Odell",null,"Pinkham's Grant",null,"Pittsburg",null,"Randolph",null,"Sargent's Purchase",null,"Second College Grant",null,"Shelburne",null,"Stark",null,"Stewartstown",null,"Stratford",null,"Success",null,"Thompson and Meserves Purchase",null,"Wentworth's Location",null,"Whitefield"]
[null,null,"Estimate","Margin Of Error","Estimate","Margin Of Error","Estimate","Margin Of Error","Estimate","Margin Of Error","Estimate","Margin Of Error","Estimate","Margin Of Error","Estimate","Margin Of Error","Estimate","Margin Of Error","Estimate","Margin Of Error","Estimate","Margin Of Error","Estimate","Margin Of Error","Estimate","Margin Of Error","Estimate","Margin Of Error","Estimate","Margin Of Error","Estimate","Margin Of Error","Estimate","Margin Of Error","Estimate","Margin Of Error","Estimate","Margin Of Error","Estimate","Margin Of Error","Estimate","Margin Of Error","Estimate","Margin Of Error","Estimate","Margin Of Error","Estimate","Margin Of Error","Estimate","Margin Of Error","Estimate","Margin Of Error","Estimate","Margin Of Error","Estimate","Margin Of Error","Estimate","Margin Of Error","Estimate","Margin Of Error","Estimate","Margin Of Error","Estimate","Margin Of Error","Estimate","Margin Of Error","Estimate","Margin Of Error","Estimate","Margin Of Error","Estimate","Margin Of Error","Estimate","Margin Of Error","Estimate","Margin Of Error","Estimate","Margin Of Error","Estimate","Margin Of Error","Estimate","Margin Of Error","Estimate","Margin Of Error","Estimate","Margin Of Error","Estimate","Margin Of Error"]
[null,"Total:",0,11,0,11,0,11,3977,201,0,11,324,49,0,11,141,40,954,84,316,51,0,11,0,11,424,64,0,11,1,4,127,25,113,29,0,11,1243,99,0,11,0,11,396,58,0,11,1366,149,0,11,0,11,589,53,4,6,984,88,0,11,0,11,423,57,196,39,0,11,0,11,200,30,233,40,418,64,277,49,0,11,0,11,16,9,1046,111]
[null,"Householder under 25 years:",0,11,0,11,0,11,163,105,0,11,15,17,0,11,3,4,28,26,9,10,0,11,0,11,22,26,0,11,0,11,0,11,0,11,0,11,0,11,0,11,0,11,24,29,0,11,67,59,0,11,0,11,36,36,0,11,38,34,0,11,0,11,0,11,6,7,0,11,0,11,2,3,4,5,19,21,6,8,0,11,0,11,0,11,36,49]
[null,"Less than $10,000",0,11,0,11,0,11,46,55,0,11,0,11,0,11,0,11,8,13,0,11,0,11,0,11,0,11,0,11,0,11,0,11,0,11,0,11,0,11,0,11,0,11,0,11,0,11,12,20,0,11,0,11,0,11,0,11,0,11,0,11,0,11,0,11,0,11,0,11,0,11,0,11,4,5,0,11,6,8,0,11,0,11,0,11,0,11]
[null,"$10,000 to $14,999",0,11,0,11,0,11,6,11,0,11,0,11,0,11,0,11,0,11,0,11,0,11,0,11,0,11,0,11,0,11,0,11,0,11,0,11,0,11,0,11,0,11,0,11,0,11,25,39,0,11,0,11,0,11,0,11,0,11,0,11,0,11,0,11,0,11,0,11,0,11,0,11,0,11,0,11,0,11,0,11,0,11,0,11,36,49]
[null,"$15,000 to $19,999",0,11,0,11,0,11,0,18,0,11,0,11,0,11,0,11,0,11,0,11,0,11,0,11,0,11,0,11,0,11,0,11,0,11,0,11,0,11,0,11,0,11,0,11,0,11,0,11,0,11,0,11,0,11,0,11,0,11,0,11,0,11,0,11,0,11,0,11,0,11,0,11,0,11,0,11,0,11,0,11,0,11,0,11,0,11]
[null,"$20,000 to $24,999",0,11,0,11,0,11,0,18,0,11,0,11,0,11,0,11,0,11,0,11,0,11,0,11,0,11,0,11,0,11,0,11,0,11,0,11,0,11,0,11,0,11,0,11,0,11,0,11,0,11,0,11,0,11,0,11,0,11,0,11,0,11,0,11,0,11,0,11,0,11,0,11,0,11,0,11,0,11,0,11,0,11,0,11,0,11]
[null,"$25,000 to $29,999",0,11,0,11,0,11,19,23,0,11,0,11,0,11,3,4,12,18,0,11,0,11,0,11,0,11,0,11,0,11,0,11,0,11,0,11,0,11,0,11,0,11,0,11,0,11,0,11,0,11,0,11,0,11,0,11,11,17,0,11,0,11,0,11,0,11,0,11,0,11,2,3,0,11,15,21,0,11,0,11,0,11,0,11,0,11]
[null,"$30,000 to $34,999",0,11,0,11,0,11,45,70,0,11,0,11,0,11,0,11,0,11,0,11,0,11,0,11,0,11,0,11,0,11,0,11,0,11,0,11,0,11,0,11,0,11,19,28,0,11,0,11,0,11,0,11,0,11,0,11,0,11,0,11,0,11,0,11,0,11,0,11,0,11,0,11,0,11,4,6,0,11,0,11,0,11,0,11,0,11]
[null,"$35,000 to $39,999",0,11,0,11,0,11,29,43,0,11,0,11,0,11,0,11,0,11,3,4,0,11,0,11,6,9,0,11,0,11,0,11,0,11,0,11,0,11,0,11,0,11,0,11,0,11,0,11,0,11,0,11,0,11,0,11,0,11,0,11,0,11,0,11,0,11,0,11,0,11,0,11,0,11,0,11,0,11,0,11,0,11,0,11,0,11]
[null,"$40,000 to $44,999",0,11,0,11,0,11,18,28,0,11,0,11,0,11,0,11,8,13,0,11,0,11,0,11,0,11,0,11,0,11,0,11,0,11,0,11,0,11,0,11,0,11,5,6,0,11,0,11,0,11,0,11,15,22,0,11,10,14,0,11,0,11,0,11,0,11,0,11,0,11,0,11,0,11,0,11,0,11,0,11,0,11,0,11,0,11]
[null,"$45,000 to $49,999",0,11,0,11,0,11,0,18,0,11,4,5,0,11,0,11,0,11,0,11,0,11,0,11,16,24,0,11,0,11,0,11,0,11,0,11,0,11,0,11,0,11,0,11,0,11,18,28,0,11,0,11,0,11,0,11,0,11,0,11,0,11,0,11,0,11,0,11,0,11,0,11,0,11,0,11,0,11,0,11,0,11,0,11,0,11]
[null,"$50,000 to $59,999",0,11,0,11,0,11,0,18,0,11,0,11,0,11,0,11,0,11,0,11,0,11,0,11,0,11,0,11,0,11,0,11,0,11,0,11,0,11,0,11,0,11,0,11,0,11,12,20,0,11,0,11,0,11,0,11,0,11,0,11,0,11,0,11,0,11,0,11,0,11,0,11,0,11,0,11,0,11,0,11,0,11,0,11,0,11]
[null,"$60,000 to $74,999",0,11,0,11,0,11,0,18,0,11,0,11,0,11,0,11,0,11,0,11,0,11,0,11,0,11,0,11,0,11,0,11,0,11,0,11,0,11,0,11,0,11,0,11,0,11,0,11,0,11,0,11,0,11,0,11,17,24,0,11,0,11,0,11,6,7,0,11,0,11,0,11,0,11,0,11,0,11,0,11,0,11,0,11,0,11]
[null,"$75,000 to $99,999",0,11,0,11,0,11,0,18,0,11,11,17,0,11,0,11,0,11,6,9,0,11,0,11,0,11,0,11,0,11,0,11,0,11,0,11,0,11,0,11,0,11,0,11,0,11,0,11,0,11,0,11,21,28,0,11,0,11,0,11,0,11,0,11,0,11,0,11,0,11,0,11,0,11,0,11,0,11,0,11,0,11,0,11,0,11]
[null,"$100,000 to $124,999",0,11,0,11,0,11,0,18,0,11,0,11,0,11,0,11,0,11,0,11,0,11,0,11,0,11,0,11,0,11,0,11,0,11,0,11,0,11,0,11,0,11,0,11,0,11,0,11,0,11,0,11,0,11,0,11,0,11,0,11,0,11,0,11,0,11,0,11,0,11,0,11,0,11,0,11,0,11,0,11,0,11,0,11,0,11]
[null,"$125,000 to $149,999",0,11,0,11,0,11,0,18,0,11,0,11,0,11,0,11,0,11,0,11,0,11,0,11,0,11,0,11,0,11,0,11,0,11,0,11,0,11,0,11,0,11,0,11,0,11,0,11,0,11,0,11,0,11,0,11,0,11,0,11,0,11,0,11,0,11,0,11,0,11,0,11,0,11,0,11,0,11,0,11,0,11,0,11,0,11]
[null,"$150,000 to $199,999",0,11,0,11,0,11,0,18,0,11,0,11,0,11,0,11,0,11,0,11,0,11,0,11,0,11,0,11,0,11,0,11,0,11,0,11,0,11,0,11,0,11,0,11,0,11,0,11,0,11,0,11,0,11,0,11,0,11,0,11,0,11,0,11,0,11,0,11,0,11,0,11,0,11,0,11,0,11,0,11,0,11,0,11,0,11]
[null,"$200,000 or more",0,11,0,11,0,11,0,18,0,11,0,11,0,11,0,11,0,11,0,11,0,11,0,11,0,11,0,11,0,11,0,11,0,11,0,11,0,11,0,11,0,11,0,11,0,11,0,11,0,11,0,11,0,11,0,11,0,11,0,11,0,11,0,11,0,11,0,11,0,11,0,11,0,11,0,11,0,11,0,11,0,11,0,11,0,11]
[null,"Householder 25 to 44 years:",0,11,0,11,0,11,1187,145,0,11,54,24,0,11,15,10,173,34,44,26,0,11,0,11,83,38,0,11,0,11,23,10,14,10,0,11,197,66,0,11,0,11,47,24,0,11,374,87,0,11,0,11,143,34,0,11,232,58,0,11,0,11,78,36,26,15,0,11,0,11,33,17,46,23,41,27,62,23,0,11,0,11,3,4,207,64]
[null,"Less than $10,000",0,11,0,11,0,11,45,44,0,11,0,11,0,11,0,11,0,11,0,11,0,11,0,11,12,14,0,11,0,11,0,11,0,11,0,11,9,14,0,11,0,11,0,11,0,11,9,15,0,11,0,11,0,11,0,11,5,7,0,11,0,11,12,19,0,11,0,11,0,11,0,11,0,11,0,11,10,12,0,11,0,11,0,11,0,11]
[null,"$10,000 to $14,999",0,11,0,11,0,11,83,62,0,11,0,11,0,11,0,11,0,11,5,7,0,11,0,11,0,11,0,11,0,11,0,11,0,11,0,11,8,12,0,11,0,11,0,11,0,11,29,44,0,11,0,11,0,11,0,11,0,11,0,11,0,11,24,24,0,11,0,11,0,11,0,11,2,3,0,11,0,11,0,11,0,11,0,11,4,6]
[null,"$15,000 to $19,999",0,11,0,11,0,11,56,64,0,11,0,11,0,11,0,11,0,11,4,6,0,11,0,11,0,11,0,11,0,11,0,11,1,2,0,11,0,11,0,11,0,11,0,11,0,11,0,11,0,11,0,11,0,11,0,11,0,11,0,11,0,11,0,11,0,11,0,11,0,11,0,11,0,11,0,11,14,15,0,11,0,11,0,11,0,11]
[null,"$20,000 to $24,999",0,11,0,11,0,11,158,108,0,11,2,3,0,11,4,6,27,27,3,5,0,11,0,11,0,11,0,11,0,11,1,3,0,11,0,11,9,12,0,11,0,11,0,11,0,11,15,23,0,11,0,11,0,11,0,11,15,22,0,11,0,11,0,11,0,11,0,11,0,11,0,11,0,11,3,4,3,4,0,11,0,11,0,11,15,25]
[null,"$25,000 to $29,999",0,11,0,11,0,11,4,9,0,11,0,11,0,11,0,11,24,17,0,11,0,11,0,11,0,11,0,11,0,11,1,3,0,11,0,11,0,11,0,11,0,11,0,11,0,11,0,11,0,11,0,11,14,19,0,11,4,7,0,11,0,11,0,11,0,11,0,11,0,11,0,11,2,3,0,11,0,11,0,11,0,11,0,11,10,14]
[null,"$30,000 to $34,999",0,11,0,11,0,11,36,37,0,11,3,4,0,11,0,11,0,11,0,11,0,11,0,11,0,11,0,11,0,11,0,11,0,11,0,11,0,11,0,11,0,11,0,11,0,11,0,11,0,11,0,11,6,7,0,11,15,15,0,11,0,11,0,11,0,11,0,11,0,11,4,6,0,11,8,8,0,11,0,11,0,11,0,11,15,23]
[null,"$35,000 to $39,999",0,11,0,11,0,11,80,66,0,11,6,9,0,11,0,11,0,11,0,11,0,11,0,11,0,11,0,11,0,11,2,3,0,11,0,11,0,11,0,11,0,11,0,11,0,11,19,25,0,11,0,11,3,4,0,11,15,13,0,11,0,11,12,16,6,8,0,11,0,11,2,3,0,11,0,11,0,11,0,11,0,11,0,11,11,11]
[null,"$40,000 to $44,999",0,11,0,11,0,11,61,56,0,11,3,4,0,11,1,2,4,7,6,8,0,11,0,11,8,13,0,11,0,11,3,4,0,11,0,11,0,11,0,11,0,11,0,11,0,11,30,32,0,11,0,11,42,29,0,11,39,41,0,11,0,11,5,6,0,11,0,11,0,11,4,6,4,5,0,11,20,16,0,11,0,11,3,4,17,16]
[null,"$45,000 to $49,999",0,11,0,11,0,11,137,100,0,11,2,3,0,11,0,11,0,11,3,5,0,11,0,11,0,11,0,11,0,11,3,5,0,11,0,11,6,11,0,11,0,11,0,11,0,11,20,22,0,11,0,11,5,8,0,11,17,24,0,11,0,11,0,11,0,11,0,11,0,11,1,5,7,11,0,11,2,4,0,11,0,11,0,11,0,11]
[null,"$50,000 to $59,999",0,11,0,11,0,11,87,57,0,11,12,14,0,11,2,3,5,7,6,8,0,11,0,11,13,13,0,11,0,11,0,11,4,6,0,11,7,10,0,11,0,11,9,10,0,11,95,68,0,11,0,11,11,8,0,11,18,14,0,11,0,11,0,11,0,11,0,11,0,11,2,5,0,11,14,20,0,11,0,11,0,11,0,11,3,5]
[null,"$60,000 to $74,999",0,11,0,11,0,11,142,69,0,11,20,16,0,11,0,11,18,19,9,9,0,11,0,11,25,21,0,11,0,11,4,5,5,7,0,11,49,49,0,11,0,11,25,18,0,11,46,35,0,11,0,11,25,14,0,11,5,7,0,11,0,11,2,4,2,4,0,11,0,11,8,7,0,11,0,11,4,5,0,11,0,11,0,11,20,25]
[null,"$75,000 to $99,999",0,11,0,11,0,11,153,82,0,11,2,3,0,11,0,11,34,27,0,11,0,11,0,11,13,12,0,11,0,11,4,4,2,3,0,11,66,41,0,11,0,11,5,7,0,11,38,43,0,11,0,11,26,13,0,11,66,32,0,11,0,11,15,14,6,5,0,11,0,11,4,4,19,16,5,7,6,7,0,11,0,11,0,11,33,29]
[null,"$100,000 to $124,999",0,11,0,11,0,11,86,81,0,11,2,3,0,11,3,4,31,25,8,7,0,11,0,11,0,11,0,11,0,11,3,4,0,11,0,11,0,11,0,11,0,11,0,11,0,11,36,32,0,11,0,11,8,7,0,11,6,9,0,11,0,11,8,11,4,5,0,11,0,11,2,3,0,11,11,15,0,11,0,11,0,11,0,11,34,30]
[null,"$125,000 to $149,999",0,11,0,11,0,11,21,30,0,11,0,11,0,11,5,8,6,9,0,11,0,11,0,11,2,4,0,11,0,11,2,3,0,11,0,11,27,31,0,11,0,11,8,7,0,11,13,18,0,11,0,11,3,4,0,11,27,27,0,11,0,11,0,11,2,3,0,11,0,11,1,2,10,11,0,11,3,4,0,11,0,11,0,11,3,9]
[null,"$150,000 to $199,999",0,11,0,11,0,11,38,40,0,11,2,3,0,11,0,11,10,11,0,11,0,11,0,11,10,14,0,11,0,11,0,11,2,3,0,11,7,10,0,11,0,11,0,11,0,11,11,18,0,11,0,11,0,11,0,11,0,11,0,11,0,11,0,11,0,11,0,11,0,11,4,5,2,3,0,11,0,11,0,11,0,11,0,11,42,31]
[null,"$200,000 or more",0,11,0,11,0,11,0,18,0,11,0,11,0,11,0,11,14,14,0,11,0,11,0,11,0,11,0,11,0,11,0,11,0,11,0,11,9,16,0,11,0,11,0,11,0,11,13,22,0,11,0,11,0,11,0,11,0,11,0,11,0,11,0,11,6,9,0,11,0,11,1,2,0,11,0,11,0,11,0,11,0,11,0,11,0,11]
[null,"Householder 45 to 64 years:",0,11,0,11,0,11,1413,121,0,11,138,35,0,11,68,31,414,66,157,42,0,11,0,11,224,43,0,11,0,11,54,17,54,20,0,11,590,89,0,11,0,11,217,44,0,11,468,84,0,11,0,11,269,27,0,11,424,70,0,11,0,11,169,41,73,21,0,11,0,11,80,22,86,26,153,44,117,36,0,11,0,11,4,4,352,77]
[null,"Less than $10,000",0,11,0,11,0,11,115,43,0,11,8,7,0,11,0,11,13,12,14,14,0,11,0,11,6,7,0,11,0,11,0,11,2,3,0,11,0,11,0,11,0,11,4,5,0,11,0,11,0,11,0,11,16,13,0,11,30,25,0,11,0,11,0,11,2,3,0,11,0,11,6,9,4,6,3,5,17,15,0,11,0,11,0,11,32,34]
[null,"$10,000 to $14,999",0,11,0,11,0,11,84,57,0,11,5,9,0,11,1,2,30,24,10,13,0,11,0,11,0,11,0,11,0,11,4,6,13,11,0,11,0,11,0,11,0,11,3,4,0,11,8,12,0,11,0,11,6,5,0,11,4,6,0,11,0,11,4,8,5,5,0,11,0,11,0,11,2,3,5,8,12,12,0,11,0,11,0,11,22,18]
[null,"$15,000 to $19,999",0,11,0,11,0,11,57,51,0,11,0,11,0,11,0,11,10,11,3,4,0,11,0,11,3,5,0,11,0,11,1,3,0,11,0,11,20,21,0,11,0,11,5,6,0,11,25,27,0,11,0,11,3,4,0,11,24,21,0,11,0,11,0,11,0,11,0,11,0,11,2,4,4,7,3,4,0,11,0,11,0,11,2,3,14,15]
[null,"$20,000 to $24,999",0,11,0,11,0,11,79,51,0,11,8,10,0,11,4,4,57,39,5,6,0,11,0,11,20,19,0,11,0,11,1,3,1,3,0,11,0,11,0,11,0,11,4,5,0,11,13,21,0,11,0,11,16,10,0,11,21,14,0,11,0,11,3,5,0,11,0,11,0,11,2,3,0,11,15,14,7,8,0,11,0,11,0,11,0,11]
[null,"$25,000 to $29,999",0,11,0,11,0,11,24,24,0,11,9,8,0,11,8,9,15,15,9,8,0,11,0,11,3,4,0,11,0,11,5,8,0,11,0,11,13,18,0,11,0,11,34,26,0,11,28,27,0,11,0,11,14,10,0,11,6,8,0,11,0,11,18,19,9,11,0,11,0,11,3,4,6,6,0,11,2,4,0,11,0,11,0,11,0,11]
[null,"$30,000 to $34,999",0,11,0,11,0,11,81,50,0,11,5,5,0,11,0,11,42,37,26,23,0,11,0,11,3,5,0,11,0,11,2,3,0,11,0,11,0,11,0,11,0,11,27,23,0,11,57,53,0,11,0,11,7,6,0,11,27,16,0,11,0,11,6,8,2,3,0,11,0,11,2,4,9,12,11,16,12,13,0,11,0,11,0,11,37,32]
[null,"$35,000 to $39,999",0,11,0,11,0,11,83,47,0,11,2,3,0,11,16,16,33,23,0,11,0,11,0,11,17,14,0,11,0,11,2,3,3,5,0,11,60,42,0,11,0,11,0,11,0,11,15,17,0,11,0,11,11,9,0,11,47,33,0,11,0,11,8,8,3,4,0,11,0,11,3,4,6,6,9,13,0,11,0,11,0,11,0,11,7,9]
[null,"$40,000 to $44,999",0,11,0,11,0,11,90,52,0,11,0,11,0,11,5,7,0,11,4,5,0,11,0,11,7,7,0,11,0,11,2,3,0,11,0,11,46,31,0,11,0,11,10,9,0,11,31,30,0,11,0,11,18,15,0,11,23,15,0,11,0,11,26,16,3,4,0,11,0,11,2,3,0,11,0,11,12,11,0,11,0,11,0,11,4,6]
[null,"$45,000 to $49,999",0,11,0,11,0,11,83,46,0,11,0,11,0,11,2,3,26,18,15,16,0,11,0,11,14,11,0,11,0,11,0,11,0,11,0,11,35,30,0,11,0,11,0,11,0,11,7,12,0,11,0,11,11,9,0,11,12,12,0,11,0,11,0,11,0,11,0,11,0,11,3,4,2,3,0,11,7,11,0,11,0,11,2,3,23,15]
[null,"$50,000 to $59,999",0,11,0,11,0,11,124,67,0,11,14,13,0,11,5,5,38,24,16,19,0,11,0,11,58,35,0,11,0,11,5,5,4,6,0,11,90,48,0,11,0,11,16,11,0,11,16,18,0,11,0,11,16,10,0,11,30,19,0,11,0,11,55,29,0,11,0,11,0,11,6,5,10,7,10,16,5,5,0,11,0,11,0,11,45,41]
[null,"$60,000 to $74,999",0,11,0,11,0,11,131,61,0,11,16,12,0,11,5,8,31,28,13,10,0,11,0,11,32,26,0,11,0,11,12,10,5,8,0,11,75,43,0,11,0,11,8,7,0,11,42,39,0,11,0,11,39,23,0,11,85,45,0,11,0,11,24,16,7,6,0,11,0,11,12,11,15,14,12,15,26,20,0,11,0,11,0,11,44,24]
[null,"$75,000 to $99,999",0,11,0,11,0,11,159,59,0,11,20,15,0,11,13,13,23,26,16,10,0,11,0,11,23,14,0,11,0,11,9,8,11,9,0,11,52,43,0,11,0,11,32,22,0,11,46,33,0,11,0,11,38,20,0,11,57,34,0,11,0,11,6,6,9,8,0,11,0,11,10,7,6,6,25,22,4,5,0,11,0,11,0,11,55,26]
[null,"$100,000 to $124,999",0,11,0,11,0,11,83,59,0,11,27,20,0,11,3,6,25,17,13,10,0,11,0,11,11,11,0,11,0,11,5,5,7,6,0,11,67,42,0,11,0,11,32,20,0,11,43,38,0,11,0,11,39,15,0,11,32,22,0,11,0,11,3,5,7,7,0,11,0,11,5,8,6,6,16,12,5,5,0,11,0,11,0,11,21,14]
[null,"$125,000 to $149,999",0,11,0,11,0,11,125,72,0,11,5,4,0,11,2,5,31,26,5,6,0,11,0,11,4,6,0,11,0,11,2,3,0,11,0,11,65,41,0,11,0,11,12,9,0,11,70,52,0,11,0,11,26,14,0,11,17,21,0,11,0,11,3,6,8,9,0,11,0,11,7,7,8,6,18,19,0,11,0,11,0,11,0,11,31,18]
[null,"$150,000 to $199,999",0,11,0,11,0,11,77,56,0,11,9,7,0,11,4,7,21,15,2,5,0,11,0,11,16,18,0,11,0,11,3,5,3,7,0,11,30,25,0,11,0,11,27,11,0,11,24,28,0,11,0,11,9,7,0,11,0,11,0,11,0,11,13,15,13,7,0,11,0,11,4,6,6,9,17,15,3,5,0,11,0,11,0,11,6,9]
[null,"$200,000 or more",0,11,0,11,0,11,18,21,0,11,10,11,0,11,0,11,19,15,6,6,0,11,0,11,7,7,0,11,0,11,1,2,5,7,0,11,37,28,0,11,0,11,3,5,0,11,43,33,0,11,0,11,0,11,0,11,9,14,0,11,0,11,0,11,5,4,0,11,0,11,13,11,2,3,9,13,5,5,0,11,0,11,0,11,11,12]
[null,"Householder 65 years and over:",0,11,0,11,0,11,1214,160,0,11,117,28,0,11,55,23,339,47,106,23,0,11,0,11,95,29,0,11,1,4,50,17,45,22,0,11,456,72,0,11,0,11,108,24,0,11,457,71,0,11,0,11,141,28,4,6,290,54,0,11,0,11,176,40,91,24,0,11,0,11,85,28,97,28,205,42,92,27,0,11,0,11,9,7,451,70]
[null,"Less than $10,000",0,11,0,11,0,11,125,63,0,11,2,3,0,11,2,4,9,9,4,4,0,11,0,11,7,7,0,11,0,11,1,3,0,11,0,11,29,24,0,11,0,11,7,6,0,11,13,15,0,11,0,11,3,5,0,11,0,11,0,11,0,11,0,11,0,11,0,11,0,11,3,4,13,12,6,6,6,6,0,11,0,11,0,11,21,20]
[null,"$10,000 to $14,999",0,11,0,11,0,11,249,106,0,11,2,3,0,11,2,3,21,19,9,7,0,11,0,11,9,8,0,11,0,11,4,7,10,11,0,11,10,15,0,11,0,11,3,5,0,11,31,25,0,11,0,11,4,5,0,11,36,23,0,11,0,11,18,16,0,11,0,11,0,11,1,2,2,3,13,16,23,16,0,11,0,11,0,11,35,20]
[null,"$15,000 to $19,999",0,11,0,11,0,11,84,38,0,11,4,6,0,11,2,3,36,26,6,9,0,11,0,11,5,6,0,11,0,11,1,2,1,3,0,11,101,55,0,11,0,11,0,11,0,11,31,24,0,11,0,11,6,6,0,11,50,26,0,11,0,11,13,10,4,3,0,11,0,11,4,4,6,5,21,16,6,6,0,11,0,11,2,3,41,33]
[null,"$20,000 to $24,999",0,11,0,11,0,11,202,70,0,11,4,4,0,11,2,3,37,28,9,6,0,11,0,11,14,11,0,11,0,11,6,5,5,7,0,11,12,15,0,11,0,11,18,10,0,11,58,48,0,11,0,11,6,7,0,11,31,23,0,11,0,11,9,6,0,11,0,11,0,11,4,6,2,4,9,8,11,7,0,11,0,11,4,5,62,44]
[null,"$25,000 to $29,999",0,11,0,11,0,11,97,60,0,11,0,11,0,11,5,5,46,35,4,5,0,11,0,11,7,8,0,11,0,11,4,7,10,9,0,11,9,14,0,11,0,11,6,6,0,11,15,18,0,11,0,11,6,6,0,11,21,15,0,11,0,11,25,17,1,3,0,11,0,11,5,8,13,10,25,22,10,11,0,11,0,11,2,3,37,35]
[null,"$30,000 to $34,999",0,11,0,11,0,11,79,52,0,11,23,16,0,11,9,9,36,28,19,11,0,11,0,11,7,7,0,11,0,11,0,11,2,3,0,11,47,34,0,11,0,11,9,8,0,11,65,45,0,11,0,11,7,6,0,11,24,15,0,11,0,11,3,4,6,8,0,11,0,11,0,11,7,6,11,13,2,4,0,11,0,11,0,11,34,38]
[null,"$35,000 to $39,999",0,11,0,11,0,11,66,42,0,11,2,3,0,11,2,3,14,12,10,7,0,11,0,11,3,5,0,11,0,11,6,8,1,3,0,11,49,35,0,11,0,11,7,7,0,11,12,13,0,11,0,11,9,6,0,11,25,16,0,11,0,11,7,7,6,5,0,11,0,11,2,4,4,5,19,20,10,6,0,11,0,11,0,11,24,16]
[null,"$40,000 to $44,999",0,11,0,11,0,11,58,33,0,11,19,13,0,11,2,3,35,26,8,8,0,11,0,11,0,11,0,11,0,11,6,7,0,11,0,11,73,44,0,11,0,11,12,9,0,11,33,36,0,11,0,11,10,7,0,11,9,9,0,11,0,11,28,22,5,7,0,11,0,11,8,9,15,12,25,13,0,11,0,11,0,11,0,11,30,20]
[null,"$45,000 to $49,999",0,11,0,11,0,11,14,17,0,11,2,4,0,11,0,11,4,6,1,2,0,11,0,11,11,12,0,11,0,11,1,2,0,11,0,11,0,11,0,11,0,11,7,7,0,11,19,16,0,11,0,11,15,10,0,11,19,21,0,11,0,11,9,8,7,6,0,11,0,11,5,5,16,11,11,9,6,9,0,11,0,11,0,11,5,8]
[null,"$50,000 to $59,999",0,11,0,11,0,11,11,14,0,11,10,7,0,11,4,4,28,16,8,7,0,11,0,11,9,10,0,11,1,4,9,7,6,7,0,11,25,25,0,11,0,11,4,5,0,11,54,35,0,11,0,11,8,7,0,11,25,15,0,11,0,11,18,12,4,4,0,11,0,11,0,11,11,8,17,18,4,5,0,11,0,11,1,3,68,39]
[null,"$60,000 to $74,999",0,11,0,11,0,11,106,51,0,11,23,18,0,11,5,8,19,19,6,6,0,11,0,11,17,19,0,11,0,11,1,3,3,3,0,11,25,26,0,11,0,11,11,9,0,11,43,28,0,11,0,11,28,21,0,11,9,9,0,11,0,11,27,21,11,8,0,11,0,11,14,9,3,6,14,11,9,11,0,11,0,11,0,11,40,32]
[null,"$75,000 to $99,999",0,11,0,11,0,11,44,32,0,11,17,12,0,11,5,7,29,23,9,7,0,11,0,11,3,6,0,11,0,11,7,7,7,8,0,11,6,10,0,11,0,11,14,9,0,11,29,25,0,11,0,11,26,19,0,11,25,17,0,11,0,11,3,5,10,6,0,11,0,11,22,18,5,5,18,14,2,3,0,11,0,11,0,11,9,9]
[null,"$100,000 to $124,999",0,11,0,11,0,11,42,32,0,11,4,4,0,11,2,3,12,13,7,6,0,11,0,11,3,4,0,11,0,11,2,5,0,11,0,11,8,13,0,11,0,11,6,6,0,11,48,40,0,11,0,11,3,5,0,11,6,9,0,11,0,11,8,9,8,7,0,11,0,11,9,10,0,11,9,13,0,11,0,11,0,11,0,11,25,26]
[null,"$125,000 to $149,999",0,11,0,11,0,11,27,23,0,11,5,5,0,11,5,8,5,8,1,3,0,11,0,11,0,11,0,11,0,11,0,11,0,11,0,11,39,33,0,11,0,11,0,11,0,11,0,11,0,11,0,11,0,11,0,11,5,6,0,11,0,11,5,8,9,8,0,11,0,11,5,7,0,11,0,11,3,4,0,11,0,11,0,11,0,11]
[null,"$150,000 to $199,999",0,11,0,11,0,11,0,18,0,11,0,11,0,11,0,11,4,6,0,11,0,11,0,11,0,11,0,11,0,11,0,11,0,11,0,11,0,11,0,11,0,11,4,5,0,11,0,11,0,11,0,11,4,5,4,6,5,6,0,11,0,11,3,5,9,9,0,11,0,11,0,11,0,11,3,5,0,11,0,11,0,11,0,11,13,12]
[null,"$200,000 or more",0,11,0,11,0,11,10,15,0,11,0,11,0,11,8,10,4,5,5,7,0,11,0,11,0,11,0,11,0,11,2,3,0,11,0,11,23,26,0,11,0,11,0,11,0,11,6,9,0,11,0,11,6,6,0,11,0,11,0,11,0,11,0,11,11,10,0,11,0,11,3,4,0,11,4,5,0,11,0,11,0,11,0,11,7,10]
[]
[]
[]
[]
[]
[]
[]
[]
[]
[]
[]
[]
[]
[]
[null,"B19037. AGE OF HOUSEHOLDER BY HOUSEHOLD INCOME IN THE PAST 12 MONTHS (IN 2014 INFLATION-ADJUSTED DOLLARS)"]
[null,"Universe:  HOUSEHOLDS"]
[null,"Data Set: 2010-2014 American Community Survey 5-Year Estimates"]
[]
[null,null,"Atkinson and Gilmanton Grant",null,"Bean's Grant",null,"Bean's Purchase",null,"Berlin",null,"Cambridge",null,"Carroll",null,"Chandler's Purchase",null,"Clarksville",null,"Colebrook",null,"Columbia",null,"Crawford's Purchase",null,"Cutt's Grant",null,"Dalton",null,"Dix's Grant",null,"Dixville",null,"Dummer",null,"Errol",null,"Erving's Location",null,"Gorham",null,"Greens Grant",null,"Hadley's Purchase",null,"Jefferson",null,"Kilkenny",null,"Lancaster",null,"Low and Burbank's Grant",null,"Martin's Location",null,"Milan",null,"Millsfield",null,"Northumberland",null,"Odell",null,"Pinkham's Grant",null,"Pittsburg",null,"Randolph",null,"Sargent's Purchase",null,"Second College Grant",null,"Shelburne",null,"Stark",null,"Stewartstown",null,"Stratford",null,"Success",null,"Thompson and Meserves Purchase",null,"Wentworth's Location",null,"Whitefield"]
[null,null,"Estimate","Margin Of Error","Estimate","Margin Of Error","Estimate","Margin Of Error","Estimate","Margin Of Error","Estimate","Margin Of Error","Estimate","Margin Of Error","Estimate","Margin Of Error","Estimate","Margin Of Error","Estimate","Margin Of Error","Estimate","Margin Of Error","Estimate","Margin Of Error","Estimate","Margin Of Error","Estimate","Margin Of Error","Estimate","Margin Of Error","Estimate","Margin Of Error","Estimate","Margin Of Error","Estimate","Margin Of Error","Estimate","Margin Of Error","Estimate","Margin Of Error","Estimate","Margin Of Error","Estimate","Margin Of Error","Estimate","Margin Of Error","Estimate","Margin Of Error","Estimate","Margin Of Error","Estimate","Margin Of Error","Estimate","Margin Of Error","Estimate","Margin Of Error","Estimate","Margin Of Error","Estimate","Margin Of Error","Estimate","Margin Of Error","Estimate","Margin Of Error","Estimate","Margin Of Error","Estimate","Margin Of Error","Estimate","Margin Of Error","Estimate","Margin Of Error","Estimate","Margin Of Error","Estimate","Margin Of Error","Estimate","Margin Of Error","Estimate","Margin Of Error","Estimate","Margin Of Error","Estimate","Margin Of Error","Estimate","Margin Of Error","Estimate","Margin Of Error"]
[null,"Total:",0,11,0,11,0,11,4185,303,8,10,362,57,0,11,152,33,1101,105,315,52,0,11,0,11,414,58,4,6,3,6,141,32,186,38,0,11,1240,77,0,11,0,11,0,11,0,11,1537,96,0,11,0,11,9,7,8,8,0,11,0,11,0,11,452,68,197,34,5,6,0,11,165,26,217,35,373,58,0,11,0,11,0,11,37,21,1047,106]
[null,"Householder under 25 years:",0,11,0,11,0,11,132,74,0,11,23,18,0,11,0,11,25,27,15,16,0,11,0,11,10,14,0,11,0,11,0,11,2,4,0,11,83,60,0,11,0,11,0,11,0,11,43,44,0,11,0,11,0,11,0,11,0,11,0,11,0,11,13,18,0,11,0,11,0,11,2,4,0,11,17,23,0,11,0,11,0,11,10,14,15,12]
[null,"Less than $10,000",0,11,0,11,0,11,16,18,0,11,0,11,0,11,0,11,0,11,12,15,0,11,0,11,0,11,0,11,0,11,0,11,0,11,0,11,6,9,0,11,0,11,0,11,0,11,11,18,0,11,0,11,0,11,0,11,0,11,0,11,0,11,0,11,0,11,0,11,0,11,0,11,0,11,0,11,0,11,0,11,0,11,10,14,0,11]
[null,"$10,000 to $14,999",0,11,0,11,0,11,40,51,0,11,0,11,0,11,0,11,20,25,0,11,0,11,0,11,0,11,0,11,0,11,0,11,0,11,0,11,0,11,0,11,0,11,0,11,0,11,0,11,0,11,0,11,0,11,0,11,0,11,0,11,0,11,0,11,0,11,0,11,0,11,0,11,0,11,0,11,0,11,0,11,0,11,0,11,0,11]
[null,"$15,000 to $19,999",0,11,0,11,0,11,0,15,0,11,0,11,0,11,0,11,0,11,0,11,0,11,0,11,0,11,0,11,0,11,0,11,0,11,0,11,0,11,0,11,0,11,0,11,0,11,0,11,0,11,0,11,0,11,0,11,0,11,0,11,0,11,0,11,0,11,0,11,0,11,0,11,0,11,0,11,0,11,0,11,0,11,0,11,0,11]
[null,"$20,000 to $24,999",0,11,0,11,0,11,30,37,0,11,0,11,0,11,0,11,0,11,0,11,0,11,0,11,0,11,0,11,0,11,0,11,0,11,0,11,32,48,0,11,0,11,0,11,0,11,0,11,0,11,0,11,0,11,0,11,0,11,0,11,0,11,0,11,0,11,0,11,0,11,0,11,0,11,0,11,0,11,0,11,0,11,0,11,0,11]
[null,"$25,000 to $29,999",0,11,0,11,0,11,0,15,0,11,8,11,0,11,0,11,0,11,0,11,0,11,0,11,0,11,0,11,0,11,0,11,2,4,0,11,0,11,0,11,0,11,0,11,0,11,0,11,0,11,0,11,0,11,0,11,0,11,0,11,0,11,0,11,0,11,0,11,0,11,0,11,0,11,12,18,0,11,0,11,0,11,0,11,0,11]
[null,"$30,000 to $34,999",0,11,0,11,0,11,20,23,0,11,0,11,0,11,0,11,0,11,0,11,0,11,0,11,0,11,0,11,0,11,0,11,0,11,0,11,10,15,0,11,0,11,0,11,0,11,25,39,0,11,0,11,0,11,0,11,0,11,0,11,0,11,13,18,0,11,0,11,0,11,0,11,0,11,0,11,0,11,0,11,0,11,0,11,5,7]
[null,"$35,000 to $39,999",0,11,0,11,0,11,10,15,0,11,0,11,0,11,0,11,0,11,0,11,0,11,0,11,0,11,0,11,0,11,0,11,0,11,0,11,0,11,0,11,0,11,0,11,0,11,0,11,0,11,0,11,0,11,0,11,0,11,0,11,0,11,0,11,0,11,0,11,0,11,0,11,0,11,0,11,0,11,0,11,0,11,0,11,0,11]
[null,"$40,000 to $44,999",0,11,0,11,0,11,0,15,0,11,0,11,0,11,0,11,0,11,0,11,0,11,0,11,0,11,0,11,0,11,0,11,0,11,0,11,9,13,0,11,0,11,0,11,0,11,0,11,0,11,0,11,0,11,0,11,0,11,0,11,0,11,0,11,0,11,0,11,0,11,0,11,0,11,0,11,0,11,0,11,0,11,0,11,0,11]
[null,"$45,000 to $49,999",0,11,0,11,0,11,8,12,0,11,10,15,0,11,0,11,5,9,0,11,0,11,0,11,0,11,0,11,0,11,0,11,0,11,0,11,0,11,0,11,0,11,0,11,0,11,0,11,0,11,0,11,0,11,0,11,0,11,0,11,0,11,0,11,0,11,0,11,0,11,0,11,0,11,0,11,0,11,0,11,0,11,0,11,6,9]
[null,"$50,000 to $59,999",0,11,0,11,0,11,8,14,0,11,5,8,0,11,0,11,0,11,0,11,0,11,0,11,0,11,0,11,0,11,0,11,0,11,0,11,0,11,0,11,0,11,0,11,0,11,0,11,0,11,0,11,0,11,0,11,0,11,0,11,0,11,0,11,0,11,0,11,0,11,0,11,0,11,5,8,0,11,0,11,0,11,0,11,0,11]
[null,"$60,000 to $74,999",0,11,0,11,0,11,0,15,0,11,0,11,0,11,0,11,0,11,0,11,0,11,0,11,10,14,0,11,0,11,0,11,0,11,0,11,26,40,0,11,0,11,0,11,0,11,7,11,0,11,0,11,0,11,0,11,0,11,0,11,0,11,0,11,0,11,0,11,0,11,0,11,0,11,0,11,0,11,0,11,0,11,0,11,0,11]
[null,"$75,000 to $99,999",0,11,0,11,0,11,0,15,0,11,0,11,0,11,0,11,0,11,3,4,0,11,0,11,0,11,0,11,0,11,0,11,0,11,0,11,0,11,0,11,0,11,0,11,0,11,0,11,0,11,0,11,0,11,0,11,0,11,0,11,0,11,0,11,0,11,0,11,0,11,2,4,0,11,0,11,0,11,0,11,0,11,0,11,4,7]
[null,"$100,000 to $124,999",0,11,0,11,0,11,0,15,0,11,0,11,0,11,0,11,0,11,0,11,0,11,0,11,0,11,0,11,0,11,0,11,0,11,0,11,0,11,0,11,0,11,0,11,0,11,0,11,0,11,0,11,0,11,0,11,0,11,0,11,0,11,0,11,0,11,0,11,0,11,0,11,0,11,0,11,0,11,0,11,0,11,0,11,0,11]
[null,"$125,000 to $149,999",0,11,0,11,0,11,0,15,0,11,0,11,0,11,0,11,0,11,0,11,0,11,0,11,0,11,0,11,0,11,0,11,0,11,0,11,0,11,0,11,0,11,0,11,0,11,0,11,0,11,0,11,0,11,0,11,0,11,0,11,0,11,0,11,0,11,0,11,0,11,0,11,0,11,0,11,0,11,0,11,0,11,0,11,0,11]
[null,"$150,000 to $199,999",0,11,0,11,0,11,0,15,0,11,0,11,0,11,0,11,0,11,0,11,0,11,0,11,0,11,0,11,0,11,0,11,0,11,0,11,0,11,0,11,0,11,0,11,0,11,0,11,0,11,0,11,0,11,0,11,0,11,0,11,0,11,0,11,0,11,0,11,0,11,0,11,0,11,0,11,0,11,0,11,0,11,0,11,0,11]
[null,"$200,000 or more",0,11,0,11,0,11,0,15,0,11,0,11,0,11,0,11,0,11,0,11,0,11,0,11,0,11,0,11,0,11,0,11,0,11,0,11,0,11,0,11,0,11,0,11,0,11,0,11,0,11,0,11,0,11,0,11,0,11,0,11,0,11,0,11,0,11,0,11,0,11,0,11,0,11,0,11,0,11,0,11,0,11,0,11,0,11]
[null,"Householder 25 to 44 years:",0,11,0,11,0,11,1141,170,2,5,96,34,0,11,17,10,243,52,72,28,0,11,0,11,82,34,4,6,3,6,31,16,33,18,0,11,276,69,0,11,0,11,0,11,0,11,371,84,0,11,0,11,2,4,2,4,0,11,0,11,0,11,65,30,42,18,0,11,0,11,35,20,36,18,48,26,0,11,0,11,0,11,1,3,346,73]
[null,"Less than $10,000",0,11,0,11,0,11,143,64,0,11,0,11,0,11,1,3,18,19,9,13,0,11,0,11,11,17,0,11,0,11,0,11,0,11,0,11,0,11,0,11,0,11,0,11,0,11,28,37,0,11,0,11,0,11,0,11,0,11,0,11,0,11,17,18,0,11,0,11,0,11,2,3,3,5,0,11,0,11,0,11,0,11,1,3,13,14]
[null,"$10,000 to $14,999",0,11,0,11,0,11,90,57,0,11,8,12,0,11,0,11,6,8,2,3,0,11,0,11,0,11,0,11,0,11,0,11,6,10,0,11,0,11,0,11,0,11,0,11,0,11,13,36,0,11,0,11,0,11,0,11,0,11,0,11,0,11,3,4,0,11,0,11,0,11,0,11,0,11,0,11,0,11,0,11,0,11,0,11,20,15]
[null,"$15,000 to $19,999",0,11,0,11,0,11,99,67,0,11,8,12,0,11,5,5,9,10,2,3,0,11,0,11,0,11,0,11,0,11,0,11,0,11,0,11,6,9,0,11,0,11,0,11,0,11,23,29,0,11,0,11,0,11,0,11,0,11,0,11,0,11,0,11,4,7,0,11,0,11,2,3,0,11,7,10,0,11,0,11,0,11,0,11,44,36]
[null,"$20,000 to $24,999",0,11,0,11,0,11,35,33,0,11,6,9,0,11,0,11,30,25,5,6,0,11,0,11,0,11,0,11,0,11,0,11,0,11,0,11,17,18,0,11,0,11,0,11,0,11,33,29,0,11,0,11,0,11,0,11,0,11,0,11,0,11,12,17,0,11,0,11,0,11,0,11,0,11,0,11,0,11,0,11,0,11,0,11,27,29]
[null,"$25,000 to $29,999",0,11,0,11,0,11,53,54,0,11,0,11,0,11,0,11,11,12,0,11,0,11,0,11,6,11,0,11,0,11,0,11,0,11,0,11,0,11,0,11,0,11,0,11,0,11,6,10,0,11,0,11,0,11,0,11,0,11,0,11,0,11,5,7,0,11,0,11,0,11,0,11,0,11,0,11,0,11,0,11,0,11,0,11,17,26]
[null,"$30,000 to $34,999",0,11,0,11,0,11,74,43,0,11,2,4,0,11,0,11,0,11,2,3,0,11,0,11,12,10,0,11,0,11,11,12,2,3,0,11,0,11,0,11,0,11,0,11,0,11,24,36,0,11,0,11,0,11,0,11,0,11,0,11,0,11,14,17,1,3,0,11,0,11,2,3,8,9,12,17,0,11,0,11,0,11,0,11,36,29]
[null,"$35,000 to $39,999",0,11,0,11,0,11,60,56,0,11,0,11,0,11,7,8,13,13,6,9,0,11,0,11,4,7,4,6,3,6,5,6,0,11,0,11,11,16,0,11,0,11,0,11,0,11,17,24,0,11,0,11,0,11,0,11,0,11,0,11,0,11,0,11,2,3,0,11,0,11,4,4,4,5,0,11,0,11,0,11,0,11,0,11,4,7]
[null,"$40,000 to $44,999",0,11,0,11,0,11,72,42,0,11,0,11,0,11,0,11,20,17,2,4,0,11,0,11,0,11,0,11,0,11,0,11,0,11,0,11,0,11,0,11,0,11,0,11,0,11,0,11,0,11,0,11,2,4,2,4,0,11,0,11,0,11,3,5,2,3,0,11,0,11,1,4,0,11,10,14,0,11,0,11,0,11,0,11,0,11]
[null,"$45,000 to $49,999",0,11,0,11,0,11,47,45,0,11,12,12,0,11,0,11,9,11,2,3,0,11,0,11,4,6,0,11,0,11,0,11,6,10,0,11,29,25,0,11,0,11,0,11,0,11,11,12,0,11,0,11,0,11,0,11,0,11,0,11,0,11,0,11,7,9,0,11,0,11,5,7,0,11,3,4,0,11,0,11,0,11,0,11,36,35]
[null,"$50,000 to $59,999",0,11,0,11,0,11,133,73,0,11,15,14,0,11,2,3,26,33,9,9,0,11,0,11,12,14,0,11,0,11,2,3,10,10,0,11,13,19,0,11,0,11,0,11,0,11,29,29,0,11,0,11,0,11,0,11,0,11,0,11,0,11,3,4,0,11,0,11,0,11,6,9,7,7,0,11,0,11,0,11,0,11,0,11,33,26]
[null,"$60,000 to $74,999",0,11,0,11,0,11,102,55,2,5,22,19,0,11,2,3,37,32,10,10,0,11,0,11,28,22,0,11,0,11,0,11,0,11,0,11,71,56,0,11,0,11,0,11,0,11,87,47,0,11,0,11,0,11,0,11,0,11,0,11,0,11,0,11,19,14,0,11,0,11,0,11,2,4,13,13,0,11,0,11,0,11,0,11,44,20]
[null,"$75,000 to $99,999",0,11,0,11,0,11,161,68,0,11,13,13,0,11,0,11,26,15,1,3,0,11,0,11,2,3,0,11,0,11,9,7,8,9,0,11,58,41,0,11,0,11,0,11,0,11,47,47,0,11,0,11,0,11,0,11,0,11,0,11,0,11,5,5,3,4,0,11,0,11,8,11,5,8,3,5,0,11,0,11,0,11,0,11,37,22]
[null,"$100,000 to $124,999",0,11,0,11,0,11,15,17,0,11,10,13,0,11,0,11,24,18,3,4,0,11,0,11,3,4,0,11,0,11,4,5,1,3,0,11,48,45,0,11,0,11,0,11,0,11,19,24,0,11,0,11,0,11,0,11,0,11,0,11,0,11,3,4,0,11,0,11,0,11,0,11,7,9,0,11,0,11,0,11,0,11,0,11,28,36]
[null,"$125,000 to $149,999",0,11,0,11,0,11,31,29,0,11,0,11,0,11,0,11,0,11,6,7,0,11,0,11,0,11,0,11,0,11,0,11,0,11,0,11,0,11,0,11,0,11,0,11,0,11,34,30,0,11,0,11,0,11,0,11,0,11,0,11,0,11,0,11,2,3,0,11,0,11,4,5,0,11,0,11,0,11,0,11,0,11,0,11,7,11]
[null,"$150,000 to $199,999",0,11,0,11,0,11,16,20,0,11,0,11,0,11,0,11,14,12,4,6,0,11,0,11,0,11,0,11,0,11,0,11,0,11,0,11,0,11,0,11,0,11,0,11,0,11,0,11,0,11,0,11,0,11,0,11,0,11,0,11,0,11,0,11,2,3,0,11,0,11,1,5,0,11,0,11,0,11,0,11,0,11,0,11,0,11]
[null,"$200,000 or more",0,11,0,11,0,11,10,17,0,11,0,11,0,11,0,11,0,11,9,10,0,11,0,11,0,11,0,11,0,11,0,11,0,11,0,11,23,34,0,11,0,11,0,11,0,11,0,11,0,11,0,11,0,11,0,11,0,11,0,11,0,11,0,11,0,11,0,11,0,11,0,11,0,11,0,11,0,11,0,11,0,11,0,11,0,11]
[null,"Householder 45 to 64 years:",0,11,0,11,0,11,1594,171,6,8,127,48,0,11,92,29,485,79,120,33,0,11,0,11,178,42,0,11,0,11,65,23,84,27,0,11,544,79,0,11,0,11,0,11,0,11,757,117,0,11,0,11,7,8,6,7,0,11,0,11,0,11,234,52,73,20,5,6,0,11,73,17,106,32,149,45,0,11,0,11,0,11,17,11,433,75]
[null,"Less than $10,000",0,11,0,11,0,11,91,59,0,11,3,4,0,11,0,11,29,18,4,6,0,11,0,11,12,8,0,11,0,11,0,11,5,6,0,11,28,28,0,11,0,11,0,11,0,11,20,24,0,11,0,11,0,11,0,11,0,11,0,11,0,11,13,8,6,7,0,11,0,11,1,3,9,9,35,23,0,11,0,11,0,11,0,11,21,27]
[null,"$10,000 to $14,999",0,11,0,11,0,11,119,71,0,11,14,15,0,11,17,17,57,41,6,7,0,11,0,11,6,6,0,11,0,11,1,2,8,7,0,11,11,16,0,11,0,11,0,11,0,11,27,31,0,11,0,11,0,11,0,11,0,11,0,11,0,11,10,8,5,9,0,11,0,11,4,6,2,4,13,15,0,11,0,11,0,11,0,11,24,20]
[null,"$15,000 to $19,999",0,11,0,11,0,11,113,78,0,11,6,9,0,11,9,7,31,30,4,5,0,11,0,11,9,8,0,11,0,11,1,3,4,6,0,11,0,11,0,11,0,11,0,11,0,11,50,37,0,11,0,11,0,11,0,11,0,11,0,11,0,11,16,15,0,11,0,11,0,11,3,4,2,3,21,12,0,11,0,11,0,11,0,11,63,42]
[null,"$20,000 to $24,999",0,11,0,11,0,11,67,55,4,7,10,15,0,11,14,12,9,10,9,8,0,11,0,11,9,10,0,11,0,11,7,7,9,11,0,11,5,8,0,11,0,11,0,11,0,11,92,70,0,11,0,11,0,11,0,11,0,11,0,11,0,11,24,18,0,11,0,11,0,11,1,3,4,5,12,16,0,11,0,11,0,11,1,3,35,23]
[null,"$25,000 to $29,999",0,11,0,11,0,11,67,49,2,3,6,10,0,11,12,11,29,26,0,11,0,11,0,11,17,16,0,11,0,11,7,6,4,8,0,11,6,8,0,11,0,11,0,11,0,11,56,52,0,11,0,11,2,3,2,3,0,11,0,11,0,11,24,22,2,3,0,11,0,11,1,3,4,5,17,13,0,11,0,11,0,11,0,11,19,14]
[null,"$30,000 to $34,999",0,11,0,11,0,11,95,57,0,11,0,11,0,11,9,9,17,15,0,11,0,11,0,11,5,8,0,11,0,11,2,3,8,8,0,11,28,24,0,11,0,11,0,11,0,11,46,53,0,11,0,11,0,11,4,6,0,11,0,11,0,11,3,4,3,4,0,11,0,11,2,3,11,11,2,4,0,11,0,11,0,11,0,11,20,24]
[null,"$35,000 to $39,999",0,11,0,11,0,11,75,58,0,11,5,7,0,11,12,8,11,11,3,4,0,11,0,11,5,6,0,11,0,11,4,5,0,11,0,11,6,9,0,11,0,11,0,11,0,11,19,21,0,11,0,11,0,11,0,11,0,11,0,11,0,11,6,7,4,5,0,11,0,11,10,9,18,18,9,11,0,11,0,11,0,11,0,11,19,14]
[null,"$40,000 to $44,999",0,11,0,11,0,11,63,34,0,11,0,11,0,11,2,3,30,27,6,6,0,11,0,11,17,15,0,11,0,11,6,5,6,7,0,11,72,51,0,11,0,11,0,11,0,11,12,19,0,11,0,11,0,11,0,11,0,11,0,11,0,11,18,12,1,3,0,11,0,11,2,3,7,7,10,11,0,11,0,11,0,11,4,6,25,24]
[null,"$45,000 to $49,999",0,11,0,11,0,11,67,38,0,11,8,11,0,11,1,3,11,11,7,8,0,11,0,11,12,14,0,11,0,11,0,11,1,3,0,11,34,23,0,11,0,11,0,11,0,11,30,45,0,11,0,11,5,7,0,11,0,11,0,11,0,11,19,13,2,2,0,11,0,11,2,4,4,6,0,11,0,11,0,11,0,11,0,11,31,23]
[null,"$50,000 to $59,999",0,11,0,11,0,11,86,58,0,11,12,14,0,11,1,2,45,28,12,9,0,11,0,11,19,19,0,11,0,11,1,3,10,11,0,11,82,30,0,11,0,11,0,11,0,11,49,32,0,11,0,11,0,11,0,11,0,11,0,11,0,11,27,23,1,3,0,11,0,11,10,8,12,9,4,5,0,11,0,11,0,11,3,4,39,20]
[null,"$60,000 to $74,999",0,11,0,11,0,11,204,65,0,11,10,13,0,11,0,11,50,33,16,16,0,11,0,11,15,10,0,11,0,11,4,4,10,11,0,11,57,31,0,11,0,11,0,11,0,11,109,64,0,11,0,11,0,11,0,11,0,11,0,11,0,11,26,18,5,5,0,11,0,11,5,4,8,7,14,17,0,11,0,11,0,11,9,10,35,22]
[null,"$75,000 to $99,999",0,11,0,11,0,11,229,84,0,11,45,33,0,11,7,6,120,47,24,13,0,11,0,11,32,18,0,11,0,11,9,11,7,6,0,11,111,47,0,11,0,11,0,11,0,11,101,54,0,11,0,11,0,11,0,11,0,11,0,11,0,11,10,12,19,9,0,11,0,11,11,8,5,5,3,4,0,11,0,11,0,11,0,11,61,28]
[null,"$100,000 to $124,999",0,11,0,11,0,11,166,63,0,11,0,11,0,11,6,7,26,18,18,14,0,11,0,11,7,6,0,11,0,11,19,12,3,4,0,11,55,30,0,11,0,11,0,11,0,11,50,36,0,11,0,11,0,11,0,11,0,11,0,11,0,11,6,6,8,7,0,11,0,11,14,11,6,7,4,6,0,11,0,11,0,11,0,11,23,16]
[null,"$125,000 to $149,999",0,11,0,11,0,11,48,37,0,11,2,3,0,11,2,3,7,11,3,5,0,11,0,11,8,11,0,11,0,11,0,11,1,3,0,11,14,15,0,11,0,11,0,11,0,11,30,32,0,11,0,11,0,11,0,11,0,11,0,11,0,11,0,11,3,4,5,6,0,11,0,11,1,4,0,11,0,11,0,11,0,11,0,11,3,5]
[null,"$150,000 to $199,999",0,11,0,11,0,11,37,31,0,11,0,11,0,11,0,11,10,10,5,7,0,11,0,11,3,5,0,11,0,11,0,11,8,10,0,11,19,23,0,11,0,11,0,11,0,11,24,27,0,11,0,11,0,11,0,11,0,11,0,11,0,11,8,8,6,6,0,11,0,11,3,3,11,11,5,5,0,11,0,11,0,11,0,11,10,10]
[null,"$200,000 or more",0,11,0,11,0,11,67,44,0,11,6,6,0,11,0,11,3,5,3,5,0,11,0,11,2,5,0,11,0,11,4,4,0,11,0,11,16,17,0,11,0,11,0,11,0,11,42,34,0,11,0,11,0,11,0,11,0,11,0,11,0,11,24,23,8,7,0,11,0,11,4,4,2,3,0,11,0,11,0,11,0,11,0,11,5,7]
[null,"Householder 65 years and over:",0,11,0,11,0,11,1318,150,0,11,116,30,0,11,43,15,348,52,108,28,0,11,0,11,144,30,0,11,0,11,45,16,67,21,0,11,337,71,0,11,0,11,0,11,0,11,366,71,0,11,0,11,0,11,0,11,0,11,0,11,0,11,140,37,82,22,0,11,0,11,55,17,75,21,159,44,0,11,0,11,0,11,9,10,253,60]
[null,"Less than $10,000",0,11,0,11,0,11,117,72,0,11,3,4,0,11,0,11,20,24,7,6,0,11,0,11,6,7,0,11,0,11,2,3,0,11,0,11,24,38,0,11,0,11,0,11,0,11,34,26,0,11,0,11,0,11,0,11,0,11,0,11,0,11,5,6,0,11,0,11,0,11,0,11,11,8,15,16,0,11,0,11,0,11,1,3,0,11]
[null,"$10,000 to $14,999",0,11,0,11,0,11,261,88,0,11,8,9,0,11,2,3,24,14,14,11,0,11,0,11,6,7,0,11,0,11,0,11,15,13,0,11,38,40,0,11,0,11,0,11,0,11,37,32,0,11,0,11,0,11,0,11,0,11,0,11,0,11,16,15,8,6,0,11,0,11,3,3,2,3,21,17,0,11,0,11,0,11,0,11,73,35]
[null,"$15,000 to $19,999",0,11,0,11,0,11,103,47,0,11,6,8,0,11,9,9,46,33,20,16,0,11,0,11,12,11,0,11,0,11,13,14,16,11,0,11,55,32,0,11,0,11,0,11,0,11,28,43,0,11,0,11,0,11,0,11,0,11,0,11,0,11,11,9,7,5,0,11,0,11,4,4,9,7,8,10,0,11,0,11,0,11,0,11,17,15]
[null,"$20,000 to $24,999",0,11,0,11,0,11,148,61,0,11,12,11,0,11,1,3,22,16,12,11,0,11,0,11,22,20,0,11,0,11,5,6,11,9,0,11,39,27,0,11,0,11,0,11,0,11,17,21,0,11,0,11,0,11,0,11,0,11,0,11,0,11,4,6,4,4,0,11,0,11,3,5,20,15,14,10,0,11,0,11,0,11,0,11,15,14]
[null,"$25,000 to $29,999",0,11,0,11,0,11,98,45,0,11,7,6,0,11,11,9,21,14,11,12,0,11,0,11,10,10,0,11,0,11,4,4,2,3,0,11,77,52,0,11,0,11,0,11,0,11,11,17,0,11,0,11,0,11,0,11,0,11,0,11,0,11,6,8,3,4,0,11,0,11,6,6,0,11,19,18,0,11,0,11,0,11,0,11,10,10]
[null,"$30,000 to $34,999",0,11,0,11,0,11,157,68,0,11,2,2,0,11,0,11,42,25,2,4,0,11,0,11,3,4,0,11,0,11,6,5,4,6,0,11,6,9,0,11,0,11,0,11,0,11,90,45,0,11,0,11,0,11,0,11,0,11,0,11,0,11,9,9,9,6,0,11,0,11,5,5,2,3,6,8,0,11,0,11,0,11,0,11,12,13]
[null,"$35,000 to $39,999",0,11,0,11,0,11,113,52,0,11,12,9,0,11,1,2,15,13,0,11,0,11,0,11,12,10,0,11,0,11,6,5,0,11,0,11,30,24,0,11,0,11,0,11,0,11,0,11,0,11,0,11,0,11,0,11,0,11,0,11,0,11,23,17,1,3,0,11,0,11,7,6,5,6,12,11,0,11,0,11,0,11,0,11,0,11]
[null,"$40,000 to $44,999",0,11,0,11,0,11,68,37,0,11,9,11,0,11,0,11,6,8,6,7,0,11,0,11,14,11,0,11,0,11,2,3,4,5,0,11,7,11,0,11,0,11,0,11,0,11,22,31,0,11,0,11,0,11,0,11,0,11,0,11,0,11,4,6,2,5,0,11,0,11,4,4,8,7,0,11,0,11,0,11,0,11,7,10,16,26]
[null,"$45,000 to $49,999",0,11,0,11,0,11,22,20,0,11,0,11,0,11,5,8,56,35,0,11,0,11,0,11,8,8,0,11,0,11,1,2,4,7,0,11,9,12,0,11,0,11,0,11,0,11,0,11,0,11,0,11,0,11,0,11,0,11,0,11,0,11,7,7,1,3,0,11,0,11,1,2,3,5,5,6,0,11,0,11,0,11,0,11,16,14]
[null,"$50,000 to $59,999",0,11,0,11,0,11,108,49,0,11,8,10,0,11,11,8,28,19,11,8,0,11,0,11,18,11,0,11,0,11,2,3,3,4,0,11,32,22,0,11,0,11,0,11,0,11,33,28,0,11,0,11,0,11,0,11,0,11,0,11,0,11,9,10,6,4,0,11,0,11,4,5,6,6,9,9,0,11,0,11,0,11,0,11,33,21]
[null,"$60,000 to $74,999",0,11,0,11,0,11,63,31,0,11,8,6,0,11,0,11,14,11,8,7,0,11,0,11,14,10,0,11,0,11,0,11,6,7,0,11,12,14,0,11,0,11,0,11,0,11,11,18,0,11,0,11,0,11,0,11,0,11,0,11,0,11,4,7,7,6,0,11,0,11,11,8,3,4,18,20,0,11,0,11,0,11,1,2,26,17]
[null,"$75,000 to $99,999",0,11,0,11,0,11,34,24,0,11,13,12,0,11,2,3,29,24,3,4,0,11,0,11,12,11,0,11,0,11,1,2,2,3,0,11,8,11,0,11,0,11,0,11,0,11,42,31,0,11,0,11,0,11,0,11,0,11,0,11,0,11,35,23,13,8,0,11,0,11,3,5,6,5,8,7,0,11,0,11,0,11,0,11,5,7]
[null,"$100,000 to $124,999",0,11,0,11,0,11,14,22,0,11,12,11,0,11,1,2,0,11,6,10,0,11,0,11,0,11,0,11,0,11,2,3,0,11,0,11,0,11,0,11,0,11,0,11,0,11,41,28,0,11,0,11,0,11,0,11,0,11,0,11,0,11,0,11,5,5,0,11,0,11,3,4,0,11,24,23,0,11,0,11,0,11,0,11,0,11]
[null,"$125,000 to $149,999",0,11,0,11,0,11,0,15,0,11,2,3,0,11,0,11,10,10,2,3,0,11,0,11,7,7,0,11,0,11,0,11,0,11,0,11,0,11,0,11,0,11,0,11,0,11,0,11,0,11,0,11,0,11,0,11,0,11,0,11,0,11,7,7,1,3,0,11,0,11,1,2,0,11,0,11,0,11,0,11,0,11,0,11,19,31]
[null,"$150,000 to $199,999",0,11,0,11,0,11,0,15,0,11,7,11,0,11,0,11,10,10,4,7,0,11,0,11,0,11,0,11,0,11,1,2,0,11,0,11,0,11,0,11,0,11,0,11,0,11,0,11,0,11,0,11,0,11,0,11,0,11,0,11,0,11,0,11,8,7,0,11,0,11,0,11,0,11,0,11,0,11,0,11,0,11,0,11,11,12]
[null,"$200,000 or more",0,11,0,11,0,11,12,18,0,11,7,11,0,11,0,11,5,7,2,3,0,11,0,11,0,11,0,11,0,11,0,11,0,11,0,11,0,11,0,11,0,11,0,11,0,11,0,11,0,11,0,11,0,11,0,11,0,11,0,11,0,11,0,11,7,5,0,11,0,11,0,11,0,11,0,11,0,11,0,11,0,11,0,11,0,11]
[]
[]
[]
[]
[]
[]
[]
[]
[]
[]
[]
[]
[]
[]
[null,"B19037. AGE OF HOUSEHOLDER BY HOUSEHOLD INCOME IN THE PAST 12 MONTHS (IN 2009 INFLATION-ADJUSTED DOLLARS)"]
[null,"Universe:  HOUSEHOLDS"]
[null,"Data Set: 2005-2009 American Community Survey 5-Year Estimates"]
[]
[null,null,"Atkinson and Gilmanton Grant",null,"Bean's Grant",null,"Bean's Purchase",null,"Berlin",null,"Cambridge",null,"Carroll",null,"Chandler's Purchase",null,"Clarksville",null,"Colebrook",null,"Columbia",null,"Crawford's Purchase",null,"Cutt's Grant",null,"Dalton",null,"Dix's Grant",null,"Dixville",null,"Dummer",null,"Errol",null,"Erving's Location",null,"Gorham",null,"Greens Grant",null,"Hadley's Purchase",null,"Jefferson",null,"Kilkenny",null,"Lancaster",null,"Low and Burbank's Grant",null,"Martin's Location",null,"Milan",null,"Millsfield",null,"Northumberland",null,"Odell",null,"Pinkham's Grant",null,"Pittsburg",null,"Randolph",null,"Sargent's Purchase",null,"Second College Grant",null,"Shelburne",null,"Stark",null,"Stewartstown",null,"Stratford",null,"Success",null,"Thompson and Meserves Purchase",null,"Wentworth's Location",null,"Whitefield"]
[null,null,"Estimate","Margin Of Error","Estimate","Margin Of Error","Estimate","Margin Of Error","Estimate","Margin Of Error","Estimate","Margin Of Error","Estimate","Margin Of Error","Estimate","Margin Of Error","Estimate","Margin Of Error","Estimate","Margin Of Error","Estimate","Margin Of Error","Estimate","Margin Of Error","Estimate","Margin Of Error","Estimate","Margin Of Error","Estimate","Margin Of Error","Estimate","Margin Of Error","Estimate","Margin Of Error","Estimate","Margin Of Error","Estimate","Margin Of Error","Estimate","Margin Of Error","Estimate","Margin Of Error","Estimate","Margin Of Error","Estimate","Margin Of Error","Estimate","Margin Of Error","Estimate","Margin Of Error","Estimate","Margin Of Error","Estimate","Margin Of Error","Estimate","Margin Of Error","Estimate","Margin Of Error","Estimate","Margin Of Error","Estimate","Margin Of Error","Estimate","Margin Of Error","Estimate","Margin Of Error","Estimate","Margin Of Error","Estimate","Margin Of Error","Estimate","Margin Of Error","Estimate","Margin Of Error","Estimate","Margin Of Error","Estimate","Margin Of Error","Estimate","Margin Of Error","Estimate","Margin Of Error","Estimate","Margin Of Error","Estimate","Margin Of Error","Estimate","Margin Of Error"]
[null,"Total:",0,114,0,114,0,114,4227,382,0,114,296,59,0,114,167,40,1116,126,344,64,0,114,0,114,469,55,0,114,8,8,151,49,119,32,0,114,1332,83,0,114,0,114,395,47,0,114,1248,119,0,114,0,114,567,44,4,5,1018,106,0,114,0,114,398,61,170,37,0,114,0,114,194,42,250,59,398,76,503,85,0,114,0,114,26,13,922,94]
[null,"Householder under 25 years:",0,114,0,114,0,114,332,130,0,114,12,17,0,114,0,114,111,76,0,114,0,114,0,114,23,24,0,114,0,114,0,114,0,114,0,114,59,89,0,114,0,114,0,114,0,114,25,41,0,114,0,114,16,15,0,114,100,69,0,114,0,114,0,114,0,114,0,114,0,114,3,5,9,13,9,14,27,24,0,114,0,114,0,114,22,20]
[null,"Less than $10,000",0,114,0,114,0,114,70,76,0,114,0,114,0,114,0,114,0,114,0,114,0,114,0,114,0,114,0,114,0,114,0,114,0,114,0,114,0,114,0,114,0,114,0,114,0,114,0,114,0,114,0,114,0,114,0,114,27,33,0,114,0,114,0,114,0,114,0,114,0,114,3,5,0,114,9,14,0,114,0,114,0,114,0,114,0,114]
[null,"$10,000 to $14,999",0,114,0,114,0,114,30,45,0,114,0,114,0,114,0,114,0,114,0,114,0,114,0,114,0,114,0,114,0,114,0,114,0,114,0,114,0,114,0,114,0,114,0,114,0,114,0,114,0,114,0,114,0,114,0,114,7,13,0,114,0,114,0,114,0,114,0,114,0,114,0,114,0,114,0,114,0,114,0,114,0,114,0,114,8,13]
[null,"$15,000 to $19,999",0,114,0,114,0,114,37,36,0,114,0,114,0,114,0,114,39,43,0,114,0,114,0,114,0,114,0,114,0,114,0,114,0,114,0,114,0,114,0,114,0,114,0,114,0,114,20,40,0,114,0,114,0,114,0,114,14,21,0,114,0,114,0,114,0,114,0,114,0,114,0,114,2,4,0,114,18,20,0,114,0,114,0,114,0,114]
[null,"$20,000 to $24,999",0,114,0,114,0,114,44,40,0,114,0,114,0,114,0,114,0,114,0,114,0,114,0,114,0,114,0,114,0,114,0,114,0,114,0,114,0,114,0,114,0,114,0,114,0,114,0,114,0,114,0,114,0,114,0,114,43,54,0,114,0,114,0,114,0,114,0,114,0,114,0,114,0,114,0,114,0,114,0,114,0,114,0,114,0,114]
[null,"$25,000 to $29,999",0,114,0,114,0,114,11,16,0,114,0,114,0,114,0,114,28,43,0,114,0,114,0,114,0,114,0,114,0,114,0,114,0,114,0,114,0,114,0,114,0,114,0,114,0,114,0,114,0,114,0,114,0,114,0,114,0,114,0,114,0,114,0,114,0,114,0,114,0,114,0,114,0,114,0,114,0,114,0,114,0,114,0,114,0,114]
[null,"$30,000 to $34,999",0,114,0,114,0,114,13,21,0,114,12,17,0,114,0,114,0,114,0,114,0,114,0,114,4,6,0,114,0,114,0,114,0,114,0,114,0,114,0,114,0,114,0,114,0,114,0,114,0,114,0,114,9,13,0,114,0,114,0,114,0,114,0,114,0,114,0,114,0,114,0,114,0,114,0,114,0,114,0,114,0,114,0,114,0,114]
[null,"$35,000 to $39,999",0,114,0,114,0,114,76,75,0,114,0,114,0,114,0,114,0,114,0,114,0,114,0,114,0,114,0,114,0,114,0,114,0,114,0,114,59,89,0,114,0,114,0,114,0,114,5,8,0,114,0,114,0,114,0,114,0,114,0,114,0,114,0,114,0,114,0,114,0,114,0,114,7,12,0,114,0,114,0,114,0,114,0,114,5,8]
[null,"$40,000 to $44,999",0,114,0,114,0,114,0,114,0,114,0,114,0,114,0,114,0,114,0,114,0,114,0,114,14,21,0,114,0,114,0,114,0,114,0,114,0,114,0,114,0,114,0,114,0,114,0,114,0,114,0,114,0,114,0,114,0,114,0,114,0,114,0,114,0,114,0,114,0,114,0,114,0,114,0,114,0,114,0,114,0,114,0,114,0,114]
[null,"$45,000 to $49,999",0,114,0,114,0,114,18,28,0,114,0,114,0,114,0,114,0,114,0,114,0,114,0,114,5,8,0,114,0,114,0,114,0,114,0,114,0,114,0,114,0,114,0,114,0,114,0,114,0,114,0,114,4,5,0,114,9,13,0,114,0,114,0,114,0,114,0,114,0,114,0,114,0,114,0,114,0,114,0,114,0,114,0,114,9,13]
[null,"$50,000 to $59,999",0,114,0,114,0,114,0,114,0,114,0,114,0,114,0,114,44,57,0,114,0,114,0,114,0,114,0,114,0,114,0,114,0,114,0,114,0,114,0,114,0,114,0,114,0,114,0,114,0,114,0,114,0,114,0,114,0,114,0,114,0,114,0,114,0,114,0,114,0,114,0,114,0,114,0,114,0,114,0,114,0,114,0,114,0,114]
[null,"$60,000 to $74,999",0,114,0,114,0,114,33,53,0,114,0,114,0,114,0,114,0,114,0,114,0,114,0,114,0,114,0,114,0,114,0,114,0,114,0,114,0,114,0,114,0,114,0,114,0,114,0,114,0,114,0,114,3,5,0,114,0,114,0,114,0,114,0,114,0,114,0,114,0,114,0,114,0,114,0,114,9,14,0,114,0,114,0,114,0,114]
[null,"$75,000 to $99,999",0,114,0,114,0,114,0,114,0,114,0,114,0,114,0,114,0,114,0,114,0,114,0,114,0,114,0,114,0,114,0,114,0,114,0,114,0,114,0,114,0,114,0,114,0,114,0,114,0,114,0,114,0,114,0,114,0,114,0,114,0,114,0,114,0,114,0,114,0,114,0,114,0,114,0,114,0,114,0,114,0,114,0,114,0,114]
[null,"$100,000 to $124,999",0,114,0,114,0,114,0,114,0,114,0,114,0,114,0,114,0,114,0,114,0,114,0,114,0,114,0,114,0,114,0,114,0,114,0,114,0,114,0,114,0,114,0,114,0,114,0,114,0,114,0,114,0,114,0,114,0,114,0,114,0,114,0,114,0,114,0,114,0,114,0,114,0,114,0,114,0,114,0,114,0,114,0,114,0,114]
[null,"$125,000 to $149,999",0,114,0,114,0,114,0,114,0,114,0,114,0,114,0,114,0,114,0,114,0,114,0,114,0,114,0,114,0,114,0,114,0,114,0,114,0,114,0,114,0,114,0,114,0,114,0,114,0,114,0,114,0,114,0,114,0,114,0,114,0,114,0,114,0,114,0,114,0,114,0,114,0,114,0,114,0,114,0,114,0,114,0,114,0,114]
[null,"$150,000 to $199,999",0,114,0,114,0,114,0,114,0,114,0,114,0,114,0,114,0,114,0,114,0,114,0,114,0,114,0,114,0,114,0,114,0,114,0,114,0,114,0,114,0,114,0,114,0,114,0,114,0,114,0,114,0,114,0,114,0,114,0,114,0,114,0,114,0,114,0,114,0,114,0,114,0,114,0,114,0,114,0,114,0,114,0,114,0,114]
[null,"$200,000 or more",0,114,0,114,0,114,0,114,0,114,0,114,0,114,0,114,0,114,0,114,0,114,0,114,0,114,0,114,0,114,0,114,0,114,0,114,0,114,0,114,0,114,0,114,0,114,0,114,0,114,0,114,0,114,0,114,0,114,0,114,0,114,0,114,0,114,0,114,0,114,0,114,0,114,0,114,0,114,0,114,0,114,0,114,0,114]
[null,"Householder 25 to 44 years:",0,114,0,114,0,114,1175,144,0,114,48,24,0,114,43,20,276,73,86,39,0,114,0,114,151,44,0,114,8,8,17,10,33,18,0,114,503,84,0,114,0,114,111,31,0,114,456,76,0,114,0,114,161,33,0,114,276,58,0,114,0,114,75,27,14,11,0,114,0,114,53,32,47,30,96,37,130,54,0,114,0,114,3,6,267,66]
[null,"Less than $10,000",0,114,0,114,0,114,114,78,0,114,0,114,0,114,0,114,30,26,0,114,0,114,0,114,0,114,0,114,0,114,0,114,0,114,0,114,8,12,0,114,0,114,8,12,0,114,11,17,0,114,0,114,17,20,0,114,0,114,0,114,0,114,5,9,0,114,0,114,0,114,0,114,0,114,3,6,16,22,0,114,0,114,0,114,16,18]
[null,"$10,000 to $14,999",0,114,0,114,0,114,54,44,0,114,0,114,0,114,0,114,9,13,9,11,0,114,0,114,0,114,0,114,0,114,0,114,3,6,0,114,0,114,0,114,0,114,0,114,0,114,14,23,0,114,0,114,4,5,0,114,36,42,0,114,0,114,4,6,0,114,0,114,0,114,2,3,0,114,5,7,10,11,0,114,0,114,0,114,24,31]
[null,"$15,000 to $19,999",0,114,0,114,0,114,84,48,0,114,0,114,0,114,0,114,22,30,4,6,0,114,0,114,0,114,0,114,0,114,0,114,0,114,0,114,37,54,0,114,0,114,0,114,0,114,6,11,0,114,0,114,4,5,0,114,7,9,0,114,0,114,0,114,0,114,0,114,0,114,0,114,0,114,3,5,0,114,0,114,0,114,0,114,5,8]
[null,"$20,000 to $24,999",0,114,0,114,0,114,63,53,0,114,0,114,0,114,6,7,38,33,0,114,0,114,0,114,0,114,0,114,0,114,0,114,0,114,0,114,7,13,0,114,0,114,6,8,0,114,43,46,0,114,0,114,5,5,0,114,17,17,0,114,0,114,0,114,0,114,0,114,0,114,3,4,4,6,11,12,0,114,0,114,0,114,0,114,8,11]
[null,"$25,000 to $29,999",0,114,0,114,0,114,30,35,0,114,0,114,0,114,3,4,0,114,4,6,0,114,0,114,13,13,0,114,0,114,3,5,0,114,0,114,59,59,0,114,0,114,0,114,0,114,31,31,0,114,0,114,0,114,0,114,43,33,0,114,0,114,0,114,0,114,0,114,0,114,0,114,0,114,0,114,12,13,0,114,0,114,0,114,6,9]
[null,"$30,000 to $34,999",0,114,0,114,0,114,31,25,0,114,0,114,0,114,2,4,9,13,4,7,0,114,0,114,9,8,0,114,0,114,3,4,0,114,0,114,13,15,0,114,0,114,5,8,0,114,31,45,0,114,0,114,6,7,0,114,41,37,0,114,0,114,0,114,7,10,0,114,0,114,0,114,23,24,2,6,28,26,0,114,0,114,0,114,13,13]
[null,"$35,000 to $39,999",0,114,0,114,0,114,39,31,0,114,0,114,0,114,4,6,44,36,15,15,0,114,0,114,10,8,0,114,0,114,0,114,2,3,0,114,38,28,0,114,0,114,4,6,0,114,15,23,0,114,0,114,6,6,0,114,8,12,0,114,0,114,2,6,2,3,0,114,0,114,0,114,6,10,4,7,13,14,0,114,0,114,0,114,25,30]
[null,"$40,000 to $44,999",0,114,0,114,0,114,132,60,0,114,8,8,0,114,9,9,8,11,0,114,0,114,0,114,11,11,0,114,0,114,2,3,0,114,0,114,167,86,0,114,0,114,0,114,0,114,0,114,0,114,0,114,7,8,0,114,22,32,0,114,0,114,9,10,0,114,0,114,0,114,4,6,0,114,4,7,11,9,0,114,0,114,0,114,5,8]
[null,"$45,000 to $49,999",0,114,0,114,0,114,74,59,0,114,0,114,0,114,6,9,27,24,0,114,0,114,0,114,17,13,0,114,0,114,0,114,2,4,0,114,0,114,0,114,0,114,0,114,0,114,10,18,0,114,0,114,7,9,0,114,4,7,0,114,0,114,4,5,0,114,0,114,0,114,0,114,5,7,4,8,5,7,0,114,0,114,0,114,16,14]
[null,"$50,000 to $59,999",0,114,0,114,0,114,102,53,0,114,4,8,0,114,0,114,20,19,17,19,0,114,0,114,18,16,0,114,4,6,0,114,4,6,0,114,26,29,0,114,0,114,15,13,0,114,67,60,0,114,0,114,30,15,0,114,47,32,0,114,0,114,24,18,0,114,0,114,0,114,4,7,5,7,22,18,16,20,0,114,0,114,3,6,63,39]
[null,"$60,000 to $74,999",0,114,0,114,0,114,236,96,0,114,13,15,0,114,4,6,18,22,12,14,0,114,0,114,50,43,0,114,4,6,5,5,3,5,0,114,0,114,0,114,0,114,23,18,0,114,85,44,0,114,0,114,45,17,0,114,23,22,0,114,0,114,24,19,3,4,0,114,0,114,6,8,0,114,23,18,0,114,0,114,0,114,0,114,13,21]
[null,"$75,000 to $99,999",0,114,0,114,0,114,158,61,0,114,18,16,0,114,7,8,28,24,0,114,0,114,0,114,18,14,0,114,0,114,4,6,11,12,0,114,79,41,0,114,0,114,11,10,0,114,53,38,0,114,0,114,22,12,0,114,20,22,0,114,0,114,3,4,2,3,0,114,0,114,3,6,0,114,15,14,19,16,0,114,0,114,0,114,42,25]
[null,"$100,000 to $124,999",0,114,0,114,0,114,25,26,0,114,5,8,0,114,2,5,23,35,6,11,0,114,0,114,5,6,0,114,0,114,0,114,8,7,0,114,14,22,0,114,0,114,8,10,0,114,60,49,0,114,0,114,6,7,0,114,0,114,0,114,0,114,0,114,0,114,0,114,0,114,11,15,4,8,0,114,0,114,0,114,0,114,0,114,7,9]
[null,"$125,000 to $149,999",0,114,0,114,0,114,33,51,0,114,0,114,0,114,0,114,0,114,0,114,0,114,0,114,0,114,0,114,0,114,0,114,0,114,0,114,0,114,0,114,0,114,0,114,0,114,4,7,0,114,0,114,0,114,0,114,8,12,0,114,0,114,0,114,0,114,0,114,0,114,5,5,0,114,0,114,0,114,0,114,0,114,0,114,19,23]
[null,"$150,000 to $199,999",0,114,0,114,0,114,0,114,0,114,0,114,0,114,0,114,0,114,0,114,0,114,0,114,0,114,0,114,0,114,0,114,0,114,0,114,18,24,0,114,0,114,4,6,0,114,11,18,0,114,0,114,0,114,0,114,0,114,0,114,0,114,0,114,0,114,0,114,0,114,15,23,0,114,0,114,0,114,0,114,0,114,0,114,5,8]
[null,"$200,000 or more",0,114,0,114,0,114,0,114,0,114,0,114,0,114,0,114,0,114,15,23,0,114,0,114,0,114,0,114,0,114,0,114,0,114,0,114,37,49,0,114,0,114,27,25,0,114,15,25,0,114,0,114,2,3,0,114,0,114,0,114,0,114,0,114,0,114,0,114,0,114,0,114,0,114,0,114,0,114,0,114,0,114,0,114,0,114]
[null,"Householder 45 to 64 years:",0,114,0,114,0,114,1580,172,0,114,184,49,0,114,75,26,416,103,172,51,0,114,0,114,189,47,0,114,0,114,87,49,43,22,0,114,462,70,0,114,0,114,191,43,0,114,485,85,0,114,0,114,259,31,4,5,397,70,0,114,0,114,181,50,88,28,0,114,0,114,99,24,121,41,176,41,234,60,0,114,0,114,11,7,390,71]
[null,"Less than $10,000",0,114,0,114,0,114,149,72,0,114,18,19,0,114,0,114,18,20,12,14,0,114,0,114,28,19,0,114,0,114,0,114,0,114,0,114,10,15,0,114,0,114,21,15,0,114,9,15,0,114,0,114,3,4,0,114,12,17,0,114,0,114,9,9,0,114,0,114,0,114,0,114,0,114,13,12,34,25,0,114,0,114,0,114,44,44]
[null,"$10,000 to $14,999",0,114,0,114,0,114,46,40,0,114,3,4,0,114,10,8,80,59,0,114,0,114,0,114,0,114,0,114,0,114,2,4,2,3,0,114,23,26,0,114,0,114,7,11,0,114,30,29,0,114,0,114,12,8,0,114,17,17,0,114,0,114,16,13,2,4,0,114,0,114,2,5,9,9,3,5,28,22,0,114,0,114,4,6,19,29]
[null,"$15,000 to $19,999",0,114,0,114,0,114,92,60,0,114,0,114,0,114,5,8,23,36,6,10,0,114,0,114,3,5,0,114,0,114,0,114,3,4,0,114,17,25,0,114,0,114,0,114,0,114,17,19,0,114,0,114,6,6,0,114,13,14,0,114,0,114,10,11,4,6,0,114,0,114,2,3,7,7,18,17,12,13,0,114,0,114,0,114,11,12]
[null,"$20,000 to $24,999",0,114,0,114,0,114,119,75,0,114,4,6,0,114,11,9,20,27,11,12,0,114,0,114,3,6,0,114,0,114,5,5,5,5,0,114,19,21,0,114,0,114,5,6,0,114,7,12,0,114,0,114,7,7,0,114,10,16,0,114,0,114,13,12,0,114,0,114,0,114,3,4,2,6,8,9,30,27,0,114,0,114,3,5,26,19]
[null,"$25,000 to $29,999",0,114,0,114,0,114,44,29,0,114,7,7,0,114,14,15,28,25,5,8,0,114,0,114,3,4,0,114,0,114,3,4,9,10,0,114,34,31,0,114,0,114,23,18,0,114,16,18,0,114,0,114,11,9,0,114,16,23,0,114,0,114,0,114,7,8,0,114,0,114,3,5,11,18,13,13,6,9,0,114,0,114,0,114,37,31]
[null,"$30,000 to $34,999",0,114,0,114,0,114,89,48,0,114,22,20,0,114,1,5,0,114,8,13,0,114,0,114,15,12,0,114,0,114,2,3,5,5,0,114,18,18,0,114,0,114,0,114,0,114,45,63,0,114,0,114,9,8,4,5,20,20,0,114,0,114,8,9,0,114,0,114,0,114,3,5,4,6,0,114,11,12,0,114,0,114,0,114,20,16]
[null,"$35,000 to $39,999",0,114,0,114,0,114,39,29,0,114,8,11,0,114,6,7,0,114,5,7,0,114,0,114,7,6,0,114,0,114,0,114,0,114,0,114,0,114,0,114,0,114,10,9,0,114,15,22,0,114,0,114,16,10,0,114,36,33,0,114,0,114,14,14,2,3,0,114,0,114,2,3,6,7,15,14,38,27,0,114,0,114,0,114,26,22]
[null,"$40,000 to $44,999",0,114,0,114,0,114,50,38,0,114,29,24,0,114,4,6,0,114,0,114,0,114,0,114,15,16,0,114,0,114,0,114,0,114,0,114,46,33,0,114,0,114,3,5,0,114,27,23,0,114,0,114,9,8,0,114,39,33,0,114,0,114,14,15,0,114,0,114,0,114,3,4,25,22,6,7,9,10,0,114,0,114,0,114,7,10]
[null,"$45,000 to $49,999",0,114,0,114,0,114,111,49,0,114,4,5,0,114,2,3,39,40,0,114,0,114,0,114,3,6,0,114,0,114,2,3,0,114,0,114,53,36,0,114,0,114,16,18,0,114,2,7,0,114,0,114,11,10,0,114,7,11,0,114,0,114,13,11,4,6,0,114,0,114,10,8,0,114,20,17,11,14,0,114,0,114,0,114,12,12]
[null,"$50,000 to $59,999",0,114,0,114,0,114,181,81,0,114,10,11,0,114,0,114,38,28,28,20,0,114,0,114,27,18,0,114,0,114,38,47,0,114,0,114,27,17,0,114,0,114,17,15,0,114,85,60,0,114,0,114,28,15,0,114,49,29,0,114,0,114,29,22,7,9,0,114,0,114,13,11,5,8,23,15,10,10,0,114,0,114,0,114,12,12]
[null,"$60,000 to $74,999",0,114,0,114,0,114,268,102,0,114,21,18,0,114,3,5,34,31,4,7,0,114,0,114,30,19,0,114,0,114,13,8,10,12,0,114,75,40,0,114,0,114,17,12,0,114,27,26,0,114,0,114,52,18,0,114,67,33,0,114,0,114,23,19,8,6,0,114,0,114,14,10,5,8,23,15,26,24,0,114,0,114,4,6,85,40]
[null,"$75,000 to $99,999",0,114,0,114,0,114,286,90,0,114,24,19,0,114,12,10,56,33,61,39,0,114,0,114,25,16,0,114,0,114,16,9,7,8,0,114,46,33,0,114,0,114,34,17,0,114,118,37,0,114,0,114,44,20,0,114,72,37,0,114,0,114,17,15,33,16,0,114,0,114,21,13,28,19,7,9,10,8,0,114,0,114,0,114,35,23]
[null,"$100,000 to $124,999",0,114,0,114,0,114,54,36,0,114,21,17,0,114,4,6,42,37,14,14,0,114,0,114,13,10,0,114,0,114,4,5,0,114,0,114,21,23,0,114,0,114,24,15,0,114,46,30,0,114,0,114,29,14,0,114,39,29,0,114,0,114,10,11,8,11,0,114,0,114,13,10,13,12,5,7,0,114,0,114,0,114,0,114,46,41]
[null,"$125,000 to $149,999",0,114,0,114,0,114,32,28,0,114,10,11,0,114,0,114,22,33,18,25,0,114,0,114,14,14,0,114,0,114,0,114,0,114,0,114,47,34,0,114,0,114,0,114,0,114,0,114,0,114,0,114,13,9,0,114,0,114,0,114,0,114,0,114,9,10,0,114,0,114,0,114,0,114,17,13,4,6,0,114,0,114,0,114,0,114]
[null,"$150,000 to $199,999",0,114,0,114,0,114,20,23,0,114,0,114,0,114,3,4,10,16,0,114,0,114,0,114,3,6,0,114,0,114,2,3,2,3,0,114,11,17,0,114,0,114,6,6,0,114,17,19,0,114,0,114,3,4,0,114,0,114,0,114,0,114,0,114,3,4,0,114,0,114,5,7,6,6,0,114,0,114,0,114,0,114,0,114,10,11]
[null,"$200,000 or more",0,114,0,114,0,114,0,114,0,114,3,5,0,114,0,114,6,10,0,114,0,114,0,114,0,114,0,114,0,114,0,114,0,114,0,114,15,23,0,114,0,114,8,10,0,114,24,23,0,114,0,114,6,7,0,114,0,114,0,114,0,114,5,8,1,3,0,114,0,114,5,7,0,114,5,7,5,8,0,114,0,114,0,114,0,114]
[null,"Householder 65 years and over:",0,114,0,114,0,114,1140,255,0,114,52,21,0,114,49,26,313,76,86,33,0,114,0,114,106,25,0,114,0,114,47,16,43,18,0,114,308,80,0,114,0,114,93,26,0,114,282,75,0,114,0,114,131,24,0,114,245,57,0,114,0,114,142,34,68,26,0,114,0,114,39,21,73,26,117,37,112,45,0,114,0,114,12,11,243,47]
[null,"Less than $10,000",0,114,0,114,0,114,112,69,0,114,0,114,0,114,2,3,66,46,0,114,0,114,0,114,12,8,0,114,0,114,1,4,0,114,0,114,15,17,0,114,0,114,0,114,0,114,67,43,0,114,0,114,6,6,0,114,15,21,0,114,0,114,5,8,0,114,0,114,0,114,5,6,4,7,10,11,25,24,0,114,0,114,0,114,76,43]
[null,"$10,000 to $14,999",0,114,0,114,0,114,190,98,0,114,3,6,0,114,3,4,75,42,13,14,0,114,0,114,16,11,0,114,0,114,9,9,0,114,0,114,63,40,0,114,0,114,3,6,0,114,7,12,0,114,0,114,3,4,0,114,29,22,0,114,0,114,29,18,4,4,0,114,0,114,0,114,0,114,6,8,18,20,0,114,0,114,0,114,45,19]
[null,"$15,000 to $19,999",0,114,0,114,0,114,111,64,0,114,4,6,0,114,6,6,33,35,3,4,0,114,0,114,3,5,0,114,0,114,6,8,5,5,0,114,31,30,0,114,0,114,0,114,0,114,21,20,0,114,0,114,3,4,0,114,26,17,0,114,0,114,3,6,3,5,0,114,0,114,9,7,7,8,8,9,10,12,0,114,0,114,4,6,5,7]
[null,"$20,000 to $24,999",0,114,0,114,0,114,178,93,0,114,0,114,0,114,0,114,30,28,5,8,0,114,0,114,16,10,0,114,0,114,8,6,7,7,0,114,69,48,0,114,0,114,10,8,0,114,16,18,0,114,0,114,27,13,0,114,45,29,0,114,0,114,25,21,0,114,0,114,0,114,2,3,10,9,35,23,4,6,0,114,0,114,0,114,5,7]
[null,"$25,000 to $29,999",0,114,0,114,0,114,103,47,0,114,6,6,0,114,5,6,25,21,19,17,0,114,0,114,7,7,0,114,0,114,9,8,6,8,0,114,23,21,0,114,0,114,10,8,0,114,17,20,0,114,0,114,12,10,0,114,19,16,0,114,0,114,24,16,7,7,0,114,0,114,0,114,11,9,12,10,6,10,0,114,0,114,8,10,10,12]
[null,"$30,000 to $34,999",0,114,0,114,0,114,83,40,0,114,8,8,0,114,20,20,35,35,12,11,0,114,0,114,17,16,0,114,0,114,3,4,8,9,0,114,5,10,0,114,0,114,0,114,0,114,0,114,0,114,0,114,17,16,0,114,0,114,0,114,0,114,4,6,4,6,0,114,0,114,0,114,5,9,5,8,11,15,0,114,0,114,0,114,28,18]
[null,"$35,000 to $39,999",0,114,0,114,0,114,52,34,0,114,3,4,0,114,3,6,11,16,3,5,0,114,0,114,3,5,0,114,0,114,3,4,6,6,0,114,7,10,0,114,0,114,7,9,0,114,29,28,0,114,0,114,20,13,0,114,14,21,0,114,0,114,6,8,0,114,0,114,0,114,4,5,0,114,17,12,6,9,0,114,0,114,0,114,5,7]
[null,"$40,000 to $44,999",0,114,0,114,0,114,72,51,0,114,3,5,0,114,0,114,0,114,4,6,0,114,0,114,3,4,0,114,0,114,0,114,0,114,0,114,18,21,0,114,0,114,5,7,0,114,7,12,0,114,0,114,4,5,0,114,32,19,0,114,0,114,0,114,6,7,0,114,0,114,0,114,2,5,7,11,11,9,0,114,0,114,0,114,0,114]
[null,"$45,000 to $49,999",0,114,0,114,0,114,43,31,0,114,3,4,0,114,0,114,29,26,0,114,0,114,0,114,3,4,0,114,0,114,4,4,4,5,0,114,0,114,0,114,0,114,3,4,0,114,23,25,0,114,0,114,5,8,0,114,12,18,0,114,0,114,10,11,0,114,0,114,0,114,2,3,13,13,9,8,8,13,0,114,0,114,0,114,5,7]
[null,"$50,000 to $59,999",0,114,0,114,0,114,43,34,0,114,4,5,0,114,0,114,3,5,6,10,0,114,0,114,7,8,0,114,0,114,2,3,2,3,0,114,22,22,0,114,0,114,5,5,0,114,31,25,0,114,0,114,4,5,0,114,21,20,0,114,0,114,5,8,12,13,0,114,0,114,6,7,4,6,8,10,0,114,0,114,0,114,0,114,19,17]
[null,"$60,000 to $74,999",0,114,0,114,0,114,59,40,0,114,18,16,0,114,4,6,3,6,6,8,0,114,0,114,13,9,0,114,0,114,0,114,0,114,0,114,22,24,0,114,0,114,22,15,0,114,47,30,0,114,0,114,7,7,0,114,27,21,0,114,0,114,0,114,1,3,0,114,0,114,0,114,13,11,0,114,6,10,0,114,0,114,0,114,11,12]
[null,"$75,000 to $99,999",0,114,0,114,0,114,63,37,0,114,0,114,0,114,6,9,0,114,2,3,0,114,0,114,0,114,0,114,0,114,2,3,2,4,0,114,0,114,0,114,0,114,23,17,0,114,17,19,0,114,0,114,0,114,0,114,0,114,0,114,0,114,17,15,24,21,0,114,0,114,9,12,4,6,0,114,0,114,0,114,0,114,0,114,21,14]
[null,"$100,000 to $124,999",0,114,0,114,0,114,7,11,0,114,0,114,0,114,0,114,0,114,4,7,0,114,0,114,2,4,0,114,0,114,0,114,0,114,0,114,9,14,0,114,0,114,0,114,0,114,0,114,0,114,0,114,23,18,0,114,5,9,0,114,0,114,6,8,3,4,0,114,0,114,2,3,0,114,0,114,0,114,0,114,0,114,0,114,0,114]
[null,"$125,000 to $149,999",0,114,0,114,0,114,12,20,0,114,0,114,0,114,0,114,0,114,0,114,0,114,0,114,4,5,0,114,0,114,0,114,3,5,0,114,16,17,0,114,0,114,5,7,0,114,0,114,0,114,0,114,0,114,0,114,0,114,0,114,0,114,3,6,0,114,0,114,0,114,0,114,0,114,0,114,0,114,0,114,0,114,0,114,7,10]
[null,"$150,000 to $199,999",0,114,0,114,0,114,12,18,0,114,0,114,0,114,0,114,3,5,9,10,0,114,0,114,0,114,0,114,0,114,0,114,0,114,0,114,0,114,0,114,0,114,0,114,0,114,0,114,0,114,0,114,0,114,0,114,0,114,0,114,0,114,5,7,2,4,0,114,0,114,0,114,0,114,0,114,7,10,0,114,0,114,0,114,0,114]
[null,"$200,000 or more",0,114,0,114,0,114,0,114,0,114,0,114,0,114,0,114,0,114,0,114,0,114,0,114,0,114,0,114,0,114,0,114,0,114,0,114,8,13,0,114,0,114,0,114,0,114,0,114,0,114,0,114,0,114,0,114,0,114,0,114,0,114,0,114,2,3,0,114,0,114,0,114,0,114,0,114,0,114,0,114,0,114,0,114,6,8]

{"sheet":"DisabilityByAge","index":27,"n_rows":89,"n_cols":15,"rows_kept":89,"cut":false,"hidden":true,"merged":[[51,13,51,14],[28,3,28,4],[28,5,28,6],[28,7,28,8],[28,9,28,10],[28,11,28,12],[28,13,28,14],[51,3,51,4],[51,5,51,6],[51,7,51,8],[51,9,51,10],[51,11,51,12]]}
[]
[]
[]
[]
[null,{"$f":"CntyDataLink!A20","v":"Berlin"}]
[null,"SOCIAL CHARACTERISTICS"]
[]
[null,"Disabilities By Age"]
[null,null,"Universe: Civilian Non-institutionalized Population"]
[]
[]
[]
[]
[]
[]
[]
[]
[]
[]
[]
[]
[]
[]
[]
[]
[]
[]
[]
[null,null,null,"Under 5",null,"5 to 17 years",null,"18 to 34 years",null,"35 to 64 years",null,"65 to 74 years",null,"75 years and older"]
[null,null,null,"Estimate","Margin of Error","Estimate","Margin of Error","Estimate","Margin of Error","Estimate","Margin of Error","Estimate","Margin of Error","Estimate","Margin of Error"]
[null,"Total ",null,{"$f":"CntyDataLink!D112","v":401},{"$f":"CntyDataLink!E112","v":101.23734488813898},{"$f":"CntyDataLink!J112","v":1184},{"$f":"CntyDataLink!K112","v":159.96249560443849},{"$f":"CntyDataLink!P112","v":1821},{"$f":"CntyDataLink!Q112","v":220.41097976280582},{"$f":"CntyDataLink!V112","v":3259},{"$f":"CntyDataLink!W112","v":197.99494943053472},{"$f":"CntyDataLink!AB112","v":951},{"$f":"CntyDataLink!AC112","v":128.08200498118384},{"$f":"CntyDataLink!AH112","v":768},{"$f":"CntyDataLink!AI112","v":104.63746938836012}]
[]
[null,"With a disability:",null,{"$f":"CntyDataLink!F112","v":0},{"$f":"CntyDataLink!G112","v":25.45584412271571},{"$f":"CntyDataLink!L112","v":207},{"$f":"CntyDataLink!M112","v":116.69190203266035},{"$f":"CntyDataLink!R112","v":296},{"$f":"CntyDataLink!S112","v":148.0979405663698},{"$f":"CntyDataLink!X112","v":787},{"$f":"CntyDataLink!Y112","v":159.02201105507376},{"$f":"CntyDataLink!AD112","v":228},{"$f":"CntyDataLink!AE112","v":75.166481891864535},{"$f":"CntyDataLink!AJ112","v":443},{"$f":"CntyDataLink!AK112","v":100}]
[]
[null,"With one disability:",null,{"$f":"CntyDataLink!CX112","v":174},{"$f":"CntyDataLink!CY112","v":101},{"$f":"CntyDataLink!DB112","v":579},{"$f":"CntyDataLink!DC112","v":167},{"$f":"CntyDataLink!DF112","v":301},{"$f":"CntyDataLink!DG112","v":93},{"$f":"CntyDataLink!DJ112","v":0},{"$f":"CntyDataLink!DK112","v":0},{"$f":"CntyDataLink!DN112","v":0},{"$f":"CntyDataLink!DO112","v":0},{"$f":"CntyDataLink!DR112","v":0},{"$f":"CntyDataLink!DS112","v":0}]
[]
[null,"Type of disability"]
[null,null,"Hearing disability",{"$f":"CntyDataLink!AN112","v":0},{"$f":"CntyDataLink!AO112","v":25.45584412271571},{"$f":"CntyDataLink!AP112","v":0},{"$f":"CntyDataLink!AQ112","v":25.45584412271571},{"$f":"CntyDataLink!AR112","v":101},{"$f":"CntyDataLink!AS112","v":91.782351244670124},{"$f":"CntyDataLink!AT112","v":130},{"$f":"CntyDataLink!AU112","v":83.186537372341689},{"$f":"CntyDataLink!AV112","v":69},{"$f":"CntyDataLink!AW112","v":58.309518948453004},{"$f":"CntyDataLink!AX112","v":228},{"$f":"CntyDataLink!AY112","v":71.400280111495363}]
[null,null,"Visual disability",{"$f":"CntyDataLink!AZ112","v":0},{"$f":"CntyDataLink!BA112","v":25.45584412271571},{"$f":"CntyDataLink!BB112","v":0},{"$f":"CntyDataLink!BC112","v":25.45584412271571},{"$f":"CntyDataLink!BD112","v":6},{"$f":"CntyDataLink!BE112","v":20.124611797498108},{"$f":"CntyDataLink!BF112","v":130},{"$f":"CntyDataLink!BG112","v":82.927679335671755},{"$f":"CntyDataLink!BH112","v":38},{"$f":"CntyDataLink!BI112","v":42.953463189829058},{"$f":"CntyDataLink!BJ112","v":89},{"$f":"CntyDataLink!BK112","v":55.461698495448189}]
[null,null,"Cognitive disability","NA","NA",{"$f":"CntyDataLink!BL112","v":174},{"$f":"CntyDataLink!BM112","v":82.565125809872058},{"$f":"CntyDataLink!BN112","v":189},{"$f":"CntyDataLink!BO112","v":84.219950130595535},{"$f":"CntyDataLink!BP112","v":348},{"$f":"CntyDataLink!BQ112","v":112.48555462813881},{"$f":"CntyDataLink!BR112","v":26},{"$f":"CntyDataLink!BS112","v":23.430749027719962},{"$f":"CntyDataLink!BT112","v":198},{"$f":"CntyDataLink!BU112","v":79.202272694664515}]
[null,null,"Ambulatory disability","NA","NA",{"$f":"CntyDataLink!BV112","v":18},{"$f":"CntyDataLink!BW112","v":31.384709652950431},{"$f":"CntyDataLink!BX112","v":69},{"$f":"CntyDataLink!BY112","v":49.365980188789933},{"$f":"CntyDataLink!BZ112","v":327},{"$f":"CntyDataLink!CA112","v":101.82337649086284},{"$f":"CntyDataLink!CB112","v":79},{"$f":"CntyDataLink!CC112","v":39.395431207184416},{"$f":"CntyDataLink!CD112","v":329},{"$f":"CntyDataLink!CE112","v":99.297532698451278}]
[null,null,"Self-care disability","NA","NA",{"$f":"CntyDataLink!CF112","v":28},{"$f":"CntyDataLink!CG112","v":38.483762809787713},{"$f":"CntyDataLink!CH112","v":48},{"$f":"CntyDataLink!CI112","v":45.607017003965517},{"$f":"CntyDataLink!CJ112","v":46},{"$f":"CntyDataLink!CK112","v":30.610455730027933},{"$f":"CntyDataLink!CL112","v":35},{"$f":"CntyDataLink!CM112","v":31.384709652950431},{"$f":"CntyDataLink!CN112","v":122},{"$f":"CntyDataLink!CO112","v":68.029405406779802}]
[null,null,"Independent living disability","NA","NA","NA","NA",{"$f":"CntyDataLink!CP112","v":116},{"$f":"CntyDataLink!CQ112","v":59.808026217222718},{"$f":"CntyDataLink!CR112","v":223},{"$f":"CntyDataLink!CS112","v":92.962357973536797},{"$f":"CntyDataLink!CT112","v":23},{"$f":"CntyDataLink!CU112","v":26.40075756488817},{"$f":"CntyDataLink!CV112","v":282},{"$f":"CntyDataLink!CW112","v":93.23089616645332}]
[]
[]
[]
[null,"No disability",null,{"$f":"CntyDataLink!H112","v":401},{"$f":"CntyDataLink!I112","v":101.23734488813898},{"$f":"CntyDataLink!N112","v":977},{"$f":"CntyDataLink!O112","v":184.91078930121952},{"$f":"CntyDataLink!T112","v":1525},{"$f":"CntyDataLink!U112","v":212.80977421161839},{"$f":"CntyDataLink!Z112","v":2472},{"$f":"CntyDataLink!AA112","v":207.96634343085421},{"$f":"CntyDataLink!AF112","v":723},{"$f":"CntyDataLink!AG112","v":116.67476162392619},{"$f":"CntyDataLink!AL112","v":325},{"$f":"CntyDataLink!AM112","v":72.201108024738787}]
[null,"Source: 2015-2019 American Community Survey Tables B18101;  B18102; B18103; B18104; B18105; B18106; and B18107"]
[null,"NA indicates that the American Community Survey does not calculate the number for that disability."]
[null,"Percent of Population with Disabilities"]
[]
[null,null,null,"Under 5",null,"5 to 17 years",null,"18 to 34 years",null,"35 to 64 years",null,"65 to 74 years",null,"75 years and older"]
[]
[null,"With a disability:",null,{"$f":"D33/D$31","v":0},null,{"$f":"F33/F$31","v":0.17483108108108109},null,{"$f":"H33/H$31","v":0.16254805052169138},null,{"$f":"J33/J$31","v":0.24148511813439705},null,{"$f":"L33/L$31","v":0.23974763406940064},null,{"$f":"N33/N$31","v":0.57682291666666663}]
[]
[null,"Type of disability"]
[null,null,"Hearing disability",{"$f":"D38/D$31","v":0},null,{"$f":"F38/F$31","v":0},null,{"$f":"H38/H$31","v":5.546403075233388E-2},null,3.9889536667689476E-2,null,{"$f":"L38/L$31","v":7.2555205047318619E-2},null,{"$f":"N38/N$31","v":0.296875}]
[null,null,"Visual disability",{"$f":"D39/D$31","v":0},null,{"$f":"F39/F$31","v":0},null,3.2948929159802307E-3,null,3.9889536667689476E-2,null,3.9957939011566773E-2,null,0.11588541666666667]
[null,null,"Cognitive disability","NA",null,{"$f":"F40/F$31","v":0.14695945945945946},null,0.10378912685337727,null,0.10678122123350721,null,2.7339642481598318E-2,null,0.2578125]
[null,null,"Ambulatory disability","NA",null,{"$f":"F41/F$31","v":1.5202702702702704E-2},null,3.789126853377265E-2,null,0.1003375268487266,null,8.3070452155625654E-2,null,0.42838541666666669]
[null,null,"Self-care disability","NA",null,{"$f":"F42/F$31","v":2.364864864864865E-2},null,2.6359143327841845E-2,null,1.4114759128567045E-2,null,3.6803364879074658E-2,null,0.15885416666666666]
[null,null,"Independent living disability","NA",null,"NA",null,6.3701263042284462E-2,null,6.8425897514575021E-2,null,2.4185068349106203E-2,null,0.3671875]
[]
[]
[]
[null,"No disability",null,{"$f":"D47/D$31","v":1},null,{"$f":"F47/F$31","v":0.82516891891891897},null,{"$f":"H47/H$31","v":0.83745194947830859},null,{"$f":"J47/J$31","v":0.7585148818656029},null,{"$f":"L47/L$31","v":0.76025236593059942},null,{"$f":"N47/N$31","v":0.42317708333333331}]
[]
[]
[null,"Source: 2015-2019 American Community Survey Tables B18101;  B18102; B18103; B18104; B18105; B18106; and B18107"]
[null,"NA indicates that the American Community Survey does not calculate the number for that disability."]
[]
[null,"Data from the American Community Survey are estimates."]
[]
[]
[]
[]
[]
[]
[]
[]
[]
[]
[]
[]
[]
[]
[]
[null,"Source: 2015-2019 American Community Survey Tables B18101;  B18102; B18103; B18104; B18105; B18106; and B18107",null,null,null,null,null,null,null,null,"Data from the American Community Survey are estimates."]
[null,"NA indicates that the American Community Survey does not calculate the number for that disability."]

{"sheet":"DisabilityByAgePrior5YearEst","index":28,"n_rows":89,"n_cols":15,"rows_kept":89,"cut":false,"hidden":true,"merged":[[51,13,51,14],[28,3,28,4],[28,5,28,6],[28,7,28,8],[28,9,28,10],[28,11,28,12],[28,13,28,14],[51,3,51,4],[51,5,51,6],[51,7,51,8],[51,9,51,10],[51,11,51,12]]}
[]
[]
[]
[]
[null,{"$f":"CntyDataLink!A20","v":"Berlin"}]
[null,"SOCIAL CHARACTERISTICS"]
[]
[null,"Disabilities By Age"]
[null,null,"Universe: Civilian Non-institutionalized Population"]
[]
[]
[]
[]
[]
[]
[]
[]
[]
[]
[]
[]
[]
[]
[]
[]
[]
[]
[]
[null,null,null,"Under 5",null,"5 to 17 years",null,"18 to 34 years",null,"35 to 64 years",null,"65 to 74 years",null,"75 years and older"]
[null,null,null,"Estimate","Margin of Error","Estimate","Margin of Error","Estimate","Margin of Error","Estimate","Margin of Error","Estimate","Margin of Error","Estimate","Margin of Error"]
[null,"Total ",null,{"$f":"CntyDataLinkPrior5YearEstimates!D112","v":423},{"$f":"CntyDataLinkPrior5YearEstimates!E112","v":104.23531071570709},{"$f":"CntyDataLinkPrior5YearEstimates!J112","v":1200},{"$f":"CntyDataLinkPrior5YearEstimates!K112","v":171.89822570346675},{"$f":"CntyDataLinkPrior5YearEstimates!P112","v":1631},{"$f":"CntyDataLinkPrior5YearEstimates!Q112","v":174.02586014727811},{"$f":"CntyDataLinkPrior5YearEstimates!V112","v":3621},{"$f":"CntyDataLinkPrior5YearEstimates!W112","v":264.20068130116545},{"$f":"CntyDataLinkPrior5YearEstimates!AB112","v":750},{"$f":"CntyDataLinkPrior5YearEstimates!AC112","v":97.616596949494195},{"$f":"CntyDataLinkPrior5YearEstimates!AH112","v":1046},{"$f":"CntyDataLinkPrior5YearEstimates!AI112","v":120.88010589009261}]
[]
[null,"With a disability:",null,{"$f":"CntyDataLinkPrior5YearEstimates!F112","v":0},{"$f":"CntyDataLinkPrior5YearEstimates!G112","v":21.213203435596427},{"$f":"CntyDataLinkPrior5YearEstimates!L112","v":174},{"$f":"CntyDataLinkPrior5YearEstimates!M112","v":66.2872536767062},{"$f":"CntyDataLinkPrior5YearEstimates!R112","v":243},{"$f":"CntyDataLinkPrior5YearEstimates!S112","v":96.208107766445551},{"$f":"CntyDataLinkPrior5YearEstimates!X112","v":745},{"$f":"CntyDataLinkPrior5YearEstimates!Y112","v":152.30561381643159},{"$f":"CntyDataLinkPrior5YearEstimates!AD112","v":137},{"$f":"CntyDataLinkPrior5YearEstimates!AE112","v":53.075418038862395},{"$f":"CntyDataLinkPrior5YearEstimates!AJ112","v":555},{"$f":"CntyDataLinkPrior5YearEstimates!AK112","v":122.20065466273084}]
[]
[null,"With one disability:",null,{"$f":"CntyDataLinkPrior5YearEstimates!CX112","v":0},{"$f":"CntyDataLinkPrior5YearEstimates!CY112","v":147},{"$f":"CntyDataLinkPrior5YearEstimates!DB112","v":722},{"$f":"CntyDataLinkPrior5YearEstimates!DC112","v":275},{"$f":"CntyDataLinkPrior5YearEstimates!DF112","v":666},{"$f":"CntyDataLinkPrior5YearEstimates!DG112","v":242},{"$f":"CntyDataLinkPrior5YearEstimates!DJ112","v":0},{"$f":"CntyDataLinkPrior5YearEstimates!DK112","v":0},{"$f":"CntyDataLinkPrior5YearEstimates!DN112","v":0},{"$f":"CntyDataLinkPrior5YearEstimates!DO112","v":0},{"$f":"CntyDataLinkPrior5YearEstimates!DR112","v":0},{"$f":"CntyDataLinkPrior5YearEstimates!DS112","v":0}]
[]
[null,"Type of disability"]
[null,null,"Hearing disability",{"$f":"CntyDataLinkPrior5YearEstimates!AN112","v":0},{"$f":"CntyDataLinkPrior5YearEstimates!AO112","v":21.213203435596427},{"$f":"CntyDataLinkPrior5YearEstimates!AP112","v":30},{"$f":"CntyDataLinkPrior5YearEstimates!AQ112","v":30.016662039607269},{"$f":"CntyDataLinkPrior5YearEstimates!AR112","v":62},{"$f":"CntyDataLinkPrior5YearEstimates!AS112","v":53.665631459994955},{"$f":"CntyDataLinkPrior5YearEstimates!AT112","v":195},{"$f":"CntyDataLinkPrior5YearEstimates!AU112","v":84.758480401668365},{"$f":"CntyDataLinkPrior5YearEstimates!AV112","v":73},{"$f":"CntyDataLinkPrior5YearEstimates!AW112","v":38.587562763149478},{"$f":"CntyDataLinkPrior5YearEstimates!AX112","v":339},{"$f":"CntyDataLinkPrior5YearEstimates!AY112","v":107.93516572461452}]
[null,null,"Visual disability",{"$f":"CntyDataLinkPrior5YearEstimates!AZ112","v":0},{"$f":"CntyDataLinkPrior5YearEstimates!BA112","v":21.213203435596427},{"$f":"CntyDataLinkPrior5YearEstimates!BB112","v":36},{"$f":"CntyDataLinkPrior5YearEstimates!BC112","v":40.162171256046406},{"$f":"CntyDataLinkPrior5YearEstimates!BD112","v":51},{"$f":"CntyDataLinkPrior5YearEstimates!BE112","v":48.836461788299118},{"$f":"CntyDataLinkPrior5YearEstimates!BF112","v":151},{"$f":"CntyDataLinkPrior5YearEstimates!BG112","v":73.246160308919954},{"$f":"CntyDataLinkPrior5YearEstimates!BH112","v":12},{"$f":"CntyDataLinkPrior5YearEstimates!BI112","v":20.518284528683193},{"$f":"CntyDataLinkPrior5YearEstimates!BJ112","v":67},{"$f":"CntyDataLinkPrior5YearEstimates!BK112","v":37.443290453698111}]
[null,null,"Cognitive disability","NA","NA",{"$f":"CntyDataLinkPrior5YearEstimates!BL112","v":167},{"$f":"CntyDataLinkPrior5YearEstimates!BM112","v":66.708320320631671},{"$f":"CntyDataLinkPrior5YearEstimates!BN112","v":194},{"$f":"CntyDataLinkPrior5YearEstimates!BO112","v":90.553851381374173},{"$f":"CntyDataLinkPrior5YearEstimates!BP112","v":334},{"$f":"CntyDataLinkPrior5YearEstimates!BQ112","v":113.70136322841516},{"$f":"CntyDataLinkPrior5YearEstimates!BR112","v":26},{"$f":"CntyDataLinkPrior5YearEstimates!BS112","v":20.808652046684813},{"$f":"CntyDataLinkPrior5YearEstimates!BT112","v":173},{"$f":"CntyDataLinkPrior5YearEstimates!BU112","v":72.013887549555335}]
[null,null,"Ambulatory disability","NA","NA",{"$f":"CntyDataLinkPrior5YearEstimates!BV112","v":14},{"$f":"CntyDataLinkPrior5YearEstimates!BW112","v":26.627053911388696},{"$f":"CntyDataLinkPrior5YearEstimates!BX112","v":74},{"$f":"CntyDataLinkPrior5YearEstimates!BY112","v":49.477267507411923},{"$f":"CntyDataLinkPrior5YearEstimates!BZ112","v":451},{"$f":"CntyDataLinkPrior5YearEstimates!CA112","v":123.10970717209915},{"$f":"CntyDataLinkPrior5YearEstimates!CB112","v":77},{"$f":"CntyDataLinkPrior5YearEstimates!CC112","v":41.785164831552358},{"$f":"CntyDataLinkPrior5YearEstimates!CD112","v":300},{"$f":"CntyDataLinkPrior5YearEstimates!CE112","v":83.21658488546619}]
[null,null,"Self-care disability","NA","NA",{"$f":"CntyDataLinkPrior5YearEstimates!CF112","v":31},{"$f":"CntyDataLinkPrior5YearEstimates!CG112","v":39.924929555354261},{"$f":"CntyDataLinkPrior5YearEstimates!CH112","v":71},{"$f":"CntyDataLinkPrior5YearEstimates!CI112","v":54.589376255824725},{"$f":"CntyDataLinkPrior5YearEstimates!CJ112","v":77},{"$f":"CntyDataLinkPrior5YearEstimates!CK112","v":41.773197148410844},{"$f":"CntyDataLinkPrior5YearEstimates!CL112","v":30},{"$f":"CntyDataLinkPrior5YearEstimates!CM112","v":25.80697580112788},{"$f":"CntyDataLinkPrior5YearEstimates!CN112","v":106},{"$f":"CntyDataLinkPrior5YearEstimates!CO112","v":61.71709649683789}]
[null,null,"Independent living disability","NA","NA","NA","NA",{"$f":"CntyDataLinkPrior5YearEstimates!CP112","v":124},{"$f":"CntyDataLinkPrior5YearEstimates!CQ112","v":68.963758598266665},{"$f":"CntyDataLinkPrior5YearEstimates!CR112","v":212},{"$f":"CntyDataLinkPrior5YearEstimates!CS112","v":90.686272390037075},{"$f":"CntyDataLinkPrior5YearEstimates!CT112","v":22},{"$f":"CntyDataLinkPrior5YearEstimates!CU112","v":26.627053911388696},{"$f":"CntyDataLinkPrior5YearEstimates!CV112","v":258},{"$f":"CntyDataLinkPrior5YearEstimates!CW112","v":77.820305833374874}]
[]
[null,"With two or more types of disability:",null,{"$f":"CntyDataLinkPrior5YearEstimates!CZ112","v":7},{"$f":"CntyDataLinkPrior5YearEstimates!DA112","v":11},{"$f":"CntyDataLinkPrior5YearEstimates!DD112","v":96},{"$f":"CntyDataLinkPrior5YearEstimates!DE112","v":63},{"$f":"CntyDataLinkPrior5YearEstimates!DH112","v":264},{"$f":"CntyDataLinkPrior5YearEstimates!DI112","v":157},{"$f":"CntyDataLinkPrior5YearEstimates!DL112","v":0},{"$f":"CntyDataLinkPrior5YearEstimates!DM112","v":0},{"$f":"CntyDataLinkPrior5YearEstimates!DP112","v":0},{"$f":"CntyDataLinkPrior5YearEstimates!DQ112","v":0},{"$f":"CntyDataLinkPrior5YearEstimates!DT112","v":0},{"$f":"CntyDataLinkPrior5YearEstimates!DU112","v":0}]
[]
[null,"No disability",null,{"$f":"CntyDataLinkPrior5YearEstimates!H112","v":423},{"$f":"CntyDataLinkPrior5YearEstimates!I112","v":104.23531071570709},{"$f":"CntyDataLinkPrior5YearEstimates!N112","v":1026},{"$f":"CntyDataLinkPrior5YearEstimates!O112","v":159.0125781188394},{"$f":"CntyDataLinkPrior5YearEstimates!T112","v":1388},{"$f":"CntyDataLinkPrior5YearEstimates!U112","v":174.80560631741764},{"$f":"CntyDataLinkPrior5YearEstimates!Z112","v":2876},{"$f":"CntyDataLinkPrior5YearEstimates!AA112","v":260.55517649818438},{"$f":"CntyDataLinkPrior5YearEstimates!AF112","v":613},{"$f":"CntyDataLinkPrior5YearEstimates!AG112","v":91.60785992479029},{"$f":"CntyDataLinkPrior5YearEstimates!AL112","v":491},{"$f":"CntyDataLinkPrior5YearEstimates!AM112","v":104.00480758118829}]
[null,"Source: 2010-2014 American Community Survey Tables B18101;  B18102; B18103; B18104; B18105; B18106;  and B18107"]
[null,"NA indicates that the American Community Survey does not calculate the number for that disability."]
[null,"Percent of Population with Disabilities"]
[]
[null,null,null,"Under 5",null,"5 to 17 years",null,"18 to 34 years",null,"35 to 64 years",null,"65 to 74 years",null,"75 years and older"]
[]
[null,"With one disability:",null,{"$f":"D33/D$31","v":0},null,{"$f":"F33/F$31","v":0.14499999999999999},null,{"$f":"H33/H$31","v":0.1489883507050889},null,{"$f":"J33/J$31","v":0.20574426953880143},null,{"$f":"L33/L$31","v":0.18266666666666667},null,{"$f":"N33/N$31","v":0.53059273422562137}]
[]
[null,"Type of disability"]
[null,null,"Hearing disability",{"$f":"D38/D$31","v":0},null,{"$f":"F38/F$31","v":2.5000000000000001E-2},null,{"$f":"H38/H$31","v":3.8013488657265483E-2},null,{"$f":"J38/J$31","v":5.3852526926263466E-2},null,{"$f":"L38/L$31","v":9.7333333333333327E-2},null,{"$f":"N38/N$31","v":0.32409177820267687}]
[null,null,"Visual disability",{"$f":"D39/D$31","v":0},null,{"$f":"F39/F$31","v":0.03},null,3.1269160024524831E-2,null,4.1701187517260423E-2,null,1.6E-2,null,6.4053537284894838E-2]
[null,null,"Cognitive disability","NA",null,{"$f":"F40/F$31","v":0.13916666666666666},null,0.11894543225015328,null,9.2239712786523056E-2,null,3.4666666666666665E-2,null,0.16539196940726578]
[null,null,"Ambulatory disability","NA",null,{"$f":"F41/F$31","v":1.1666666666666667E-2},null,4.5370938074800735E-2,null,0.12455122894228114,null,0.10266666666666667,null,0.28680688336520077]
[null,null,"Self-care disability","NA",null,{"$f":"F42/F$31","v":2.5833333333333333E-2},null,4.3531575720416923E-2,null,2.1264843965755315E-2,null,0.04,null,0.10133843212237094]
[null,null,"Independent living disability","NA",null,"NA",null,7.6026977314530966E-2,null,5.8547362607014639E-2,null,2.9333333333333333E-2,null,0.24665391969407266]
[]
[]
[]
[null,"No disability",null,{"$f":"D47/D$31","v":1},null,{"$f":"F47/F$31","v":0.85499999999999998},null,{"$f":"H47/H$31","v":0.85101164929491113},null,{"$f":"J47/J$31","v":0.79425573046119857},null,{"$f":"L47/L$31","v":0.81733333333333336},null,{"$f":"N47/N$31","v":0.46940726577437858}]
[]
[]
[null,"Source: 2010-2014 American Community Survey Tables B18101;  B18102; B18103; B18104; B18105; B18106;  and B18107"]
[null,"NA indicates that the American Community Survey does not calculate the number for that disability."]
[]
[null,"Data from the American Community Survey are estimates."]
[]
[]
[]
[]
[]
[]
[]
[]
[]
[]
[]
[]
[]
[]
[]
[null,"Source: 2015-2019 American Community Survey Tables B18101;  B18102; B18103; B18104; B18105; B18106; and B18107",null,null,null,null,null,null,null,null,"Data from the American Community Survey are estimates."]
[null,"NA indicates that the American Community Survey does not calculate the number for that disability."]

{"sheet":"ACS_Table_B18101","index":29,"n_rows":125,"n_cols":88,"rows_kept":125,"cut":false,"hidden":true,"merged":[]}
["B18101. SEX BY AGE BY DISABILITY STATUS\n"]
["Universe:  Civilian non-institutionalized population"]
["Data Set: 2015-2019 American Community Survey 5-Year Estimates"]
[]
[null,null,"Atkinson and Gilmanton Grant",null,"Bean's Grant",null,"Bean's Purchase",null,"Berlin",null,"Cambridge",null,"Carroll",null,"Chandler's Purchase",null,"Clarksville",null,"Colebrook",null,"Columbia",null,"Crawford's Purchase",null,"Cutt's Grant",null,"Dalton",null,"Dix's Grant",null,"Dixville",null,"Dummer",null,"Errol",null,"Erving's Location",null,"Gorham",null,"Greens Grant",null,"Hadley's Purchase",null,"Jefferson",null,"Kilkenny",null,"Lancaster",null,"Low and Burbank's Grant",null,"Martin's Location",null,"Milan",null,"Millsfield",null,"Northumberland",null,"Odell",null,"Pinkham's Grant",null,"Pittsburg",null,"Randolph",null,"Sargent's Purchase",null,"Second College Grant",null,"Shelburne",null,"Stark",null,"Stewartstown",null,"Stratford",null,"Success",null,"Thompson and Meserves Purchase",null,"Wentworth's Location",null,"Whitefield"]
[null,null,"Estimate","Margin Of Error","Estimate","Margin Of Error","Estimate","Margin Of Error","Estimate","Margin Of Error","Estimate","Margin Of Error","Estimate","Margin Of Error","Estimate","Margin Of Error","Estimate","Margin Of Error","Estimate","Margin Of Error","Estimate","Margin Of Error","Estimate","Margin Of Error","Estimate","Margin Of Error","Estimate","Margin Of Error","Estimate","Margin Of Error","Estimate","Margin Of Error","Estimate","Margin Of Error","Estimate","Margin Of Error","Estimate","Margin Of Error","Estimate","Margin Of Error","Estimate","Margin Of Error","Estimate","Margin Of Error","Estimate","Margin Of Error","Estimate","Margin Of Error","Estimate","Margin Of Error","Estimate","Margin Of Error","Estimate","Margin Of Error","Estimate","Margin Of Error","Estimate","Margin Of Error","Estimate","Margin Of Error","Estimate","Margin Of Error","Estimate","Margin Of Error","Estimate","Margin Of Error","Estimate","Margin Of Error","Estimate","Margin Of Error","Estimate","Margin Of Error","Estimate","Margin Of Error","Estimate","Margin Of Error","Estimate","Margin Of Error","Estimate","Margin Of Error","Estimate","Margin Of Error","Estimate","Margin Of Error","Estimate","Margin Of Error","Estimate","Margin Of Error"]
[null,"Total",0,11,0,11,0,11,8384,242,0,11,772,141,0,11,324,88,1908,171,633,119,0,11,0,11,906,140,0,11,11,12,306,71,205,55,0,11,2623,17,13,10,0,11,850,129,0,11,3162,83,0,11,0,11,1332,107,8,12,2322,266,10,12,11,14,740,104,365,68,11,24,0,11,408,65,606,144,857,171,630,114,0,11,0,11,26,16,2202,215]
[null,"Male:",0,11,0,11,0,11,4054,207,0,11,452,93,0,11,176,51,925,109,335,71,0,11,0,11,432,77,0,11,9,10,171,48,109,35,0,11,1421,77,13,10,0,11,393,68,0,11,1562,135,0,11,0,11,710,73,4,6,1171,151,5,11,11,14,407,63,186,38,0,11,0,11,214,42,291,67,431,85,349,73,0,11,0,11,19,12,1065,158]
[null,"Under 5 years:",0,11,0,11,0,11,195,75,0,11,11,12,0,11,4,6,26,21,3,5,0,11,0,11,10,9,0,11,0,11,5,7,0,11,0,11,54,37,0,11,0,11,5,5,0,11,116,72,0,11,0,11,26,21,0,11,68,33,0,11,0,11,0,11,4,4,0,11,0,11,13,15,11,14,16,20,1,4,0,11,0,11,0,11,62,34]
[null,"With a disability",0,11,0,11,0,11,0,18,0,11,0,11,0,11,0,11,0,11,0,11,0,11,0,11,0,11,0,11,0,11,0,11,0,11,0,11,0,11,0,11,0,11,0,11,0,11,0,11,0,11,0,11,0,11,0,11,0,11,0,11,0,11,0,11,0,11,0,11,0,11,0,11,0,11,0,11,0,11,0,11,0,11,0,11,0,11]
[null,"No disability",0,11,0,11,0,11,195,75,0,11,11,12,0,11,4,6,26,21,3,5,0,11,0,11,10,9,0,11,0,11,5,7,0,11,0,11,54,37,0,11,0,11,5,5,0,11,116,72,0,11,0,11,26,21,0,11,68,33,0,11,0,11,0,11,4,4,0,11,0,11,13,15,11,14,16,20,1,4,0,11,0,11,0,11,62,34]
[null,"5 to 17 years:",0,11,0,11,0,11,544,118,0,11,79,71,0,11,19,13,146,63,29,15,0,11,0,11,47,25,0,11,2,4,37,34,18,18,0,11,211,67,0,11,0,11,57,21,0,11,199,73,0,11,0,11,85,34,0,11,214,67,0,11,0,11,40,24,4,4,0,11,0,11,18,14,33,23,47,29,74,28,0,11,0,11,0,11,161,70]
[null,"With a disability",0,11,0,11,0,11,115,84,0,11,0,11,0,11,6,9,0,11,10,8,0,11,0,11,10,16,0,11,0,11,13,13,0,11,0,11,22,22,0,11,0,11,0,11,0,11,41,52,0,11,0,11,14,18,0,11,41,41,0,11,0,11,0,11,0,11,0,11,0,11,5,8,16,20,0,11,5,6,0,11,0,11,0,11,11,14]
[null,"No disability",0,11,0,11,0,11,429,116,0,11,79,71,0,11,13,12,146,63,19,14,0,11,0,11,37,21,0,11,2,4,24,22,18,18,0,11,189,59,0,11,0,11,57,21,0,11,158,67,0,11,0,11,71,23,0,11,173,71,0,11,0,11,40,24,4,4,0,11,0,11,13,12,17,13,47,29,69,26,0,11,0,11,0,11,150,66]
[null,"18 to 34 years:",0,11,0,11,0,11,1002,175,0,11,98,65,0,11,34,16,91,43,58,32,0,11,0,11,102,42,0,11,5,6,20,11,0,11,0,11,181,71,5,8,0,11,66,34,0,11,334,79,0,11,0,11,144,48,0,11,199,77,5,11,7,8,35,21,29,16,0,11,0,11,15,12,51,25,39,30,39,25,0,11,0,11,3,4,157,68]
[null,"With a disability",0,11,0,11,0,11,285,147,0,11,8,10,0,11,8,10,16,16,8,8,0,11,0,11,5,9,0,11,0,11,0,11,0,11,0,11,25,26,0,11,0,11,0,11,0,11,25,29,0,11,0,11,35,36,0,11,15,16,0,11,0,11,3,4,0,11,0,11,0,11,1,2,12,13,3,4,17,21,0,11,0,11,0,11,16,16]
[null,"No disability",0,11,0,11,0,11,717,162,0,11,90,65,0,11,26,13,75,36,50,30,0,11,0,11,97,41,0,11,5,6,20,11,0,11,0,11,156,71,5,8,0,11,66,34,0,11,309,78,0,11,0,11,109,39,0,11,184,74,5,11,7,8,32,21,29,16,0,11,0,11,14,11,39,20,36,30,22,17,0,11,0,11,3,4,141,69]
[null,"35 to 64 years:",0,11,0,11,0,11,1624,139,0,11,157,36,0,11,69,29,396,64,157,46,0,11,0,11,214,44,0,11,0,11,50,13,52,17,0,11,648,71,8,10,0,11,163,38,0,11,636,100,0,11,0,11,302,33,4,6,501,80,0,11,4,8,184,44,83,22,0,11,0,11,88,24,114,31,168,45,173,41,0,11,0,11,4,4,342,62]
[null,"With a disability",0,11,0,11,0,11,432,122,0,11,22,11,0,11,23,18,63,26,56,29,0,11,0,11,43,22,0,11,0,11,8,7,10,9,0,11,93,38,3,6,0,11,12,14,0,11,142,67,0,11,0,11,44,17,0,11,138,48,0,11,0,11,46,27,13,8,0,11,0,11,10,7,42,19,38,24,71,30,0,11,0,11,0,11,59,33]
[null,"No disability",0,11,0,11,0,11,1192,143,0,11,135,37,0,11,46,18,333,61,101,34,0,11,0,11,171,42,0,11,0,11,42,12,42,15,0,11,555,73,5,6,0,11,151,36,0,11,494,93,0,11,0,11,258,32,4,6,363,66,0,11,4,8,138,43,70,22,0,11,0,11,78,23,72,26,130,48,102,26,0,11,0,11,4,4,283,61]
[null,"65 to 74 years:",0,11,0,11,0,11,436,94,0,11,76,27,0,11,40,19,169,46,49,16,0,11,0,11,41,22,0,11,2,6,36,16,18,14,0,11,175,58,0,11,0,11,83,27,0,11,129,50,0,11,0,11,119,28,0,11,119,39,0,11,0,11,127,36,49,16,0,11,0,11,52,20,52,22,123,42,31,12,0,11,0,11,4,4,220,54]
[null,"With a disability",0,11,0,11,0,11,74,49,0,11,31,21,0,11,13,8,39,35,16,11,0,11,0,11,0,11,0,11,1,3,11,6,0,11,0,11,42,30,0,11,0,11,48,21,0,11,41,31,0,11,0,11,29,19,0,11,50,27,0,11,0,11,38,23,8,9,0,11,0,11,21,16,6,7,55,33,8,7,0,11,0,11,4,4,83,51]
[null,"No disability",0,11,0,11,0,11,362,83,0,11,45,20,0,11,27,16,130,37,33,13,0,11,0,11,41,22,0,11,1,4,25,15,18,14,0,11,133,53,0,11,0,11,35,18,0,11,88,36,0,11,0,11,90,29,0,11,69,30,0,11,0,11,89,29,41,14,0,11,0,11,31,14,46,20,68,32,23,11,0,11,0,11,0,11,137,42]
[null,"75 years and over:",0,11,0,11,0,11,253,65,0,11,31,15,0,11,10,9,97,31,39,17,0,11,0,11,18,16,0,11,0,11,23,12,21,13,0,11,152,58,0,11,0,11,19,11,0,11,148,57,0,11,0,11,34,14,0,11,70,32,0,11,0,11,21,11,17,9,0,11,0,11,28,18,30,14,38,14,31,17,0,11,0,11,8,8,123,43]
[null,"With a disability",0,11,0,11,0,11,153,60,0,11,16,13,0,11,3,3,70,28,29,14,0,11,0,11,9,13,0,11,0,11,6,4,10,10,0,11,61,41,0,11,0,11,12,11,0,11,60,45,0,11,0,11,23,12,0,11,45,26,0,11,0,11,3,5,0,11,0,11,0,11,13,13,20,12,9,8,17,10,0,11,0,11,6,7,54,31]
[null,"No disability",0,11,0,11,0,11,100,43,0,11,15,9,0,11,7,8,27,15,10,9,0,11,0,11,9,9,0,11,0,11,17,10,11,8,0,11,91,50,0,11,0,11,7,6,0,11,88,40,0,11,0,11,11,8,0,11,25,23,0,11,0,11,18,10,17,9,0,11,0,11,15,12,10,7,29,12,14,15,0,11,0,11,2,3,69,32]
[null,"Female:",0,11,0,11,0,11,4330,191,0,11,320,67,0,11,148,44,983,116,298,61,0,11,0,11,474,81,0,11,2,6,135,29,96,33,0,11,1202,78,0,11,0,11,457,75,0,11,1600,141,0,11,0,11,622,55,4,6,1151,148,5,11,0,11,333,53,179,40,11,24,0,11,194,34,315,84,426,101,281,61,0,11,0,11,7,6,1137,133]
[null,"Under 5 years:",0,11,0,11,0,11,206,68,0,11,18,17,0,11,2,4,29,22,4,6,0,11,0,11,23,20,0,11,0,11,4,5,0,11,0,11,0,11,0,11,0,11,37,23,0,11,34,52,0,11,0,11,15,10,0,11,111,48,0,11,0,11,0,11,12,12,0,11,0,11,4,6,29,23,16,20,13,18,0,11,0,11,0,11,82,46]
[null,"With a disability",0,11,0,11,0,11,0,18,0,11,0,11,0,11,0,11,0,11,0,11,0,11,0,11,0,11,0,11,0,11,0,11,0,11,0,11,0,11,0,11,0,11,0,11,0,11,0,11,0,11,0,11,0,11,0,11,0,11,0,11,0,11,0,11,0,11,0,11,0,11,0,11,0,11,0,11,0,11,0,11,0,11,0,11,0,11]
[null,"No disability",0,11,0,11,0,11,206,68,0,11,18,17,0,11,2,4,29,22,4,6,0,11,0,11,23,20,0,11,0,11,4,5,0,11,0,11,0,11,0,11,0,11,37,23,0,11,34,52,0,11,0,11,15,10,0,11,111,48,0,11,0,11,0,11,12,12,0,11,0,11,4,6,29,23,16,20,13,18,0,11,0,11,0,11,82,46]
[null,"5 to 17 years:",0,11,0,11,0,11,640,108,0,11,32,34,0,11,6,9,100,46,43,24,0,11,0,11,52,31,0,11,0,11,17,10,9,13,0,11,143,48,0,11,0,11,23,16,0,11,319,63,0,11,0,11,94,25,0,11,129,63,0,11,0,11,17,14,3,4,0,11,0,11,18,15,72,42,61,47,24,17,0,11,0,11,0,11,99,50]
[null,"With a disability",0,11,0,11,0,11,92,81,0,11,0,11,0,11,0,11,0,11,0,11,0,11,0,11,10,15,0,11,0,11,4,6,0,11,0,11,0,11,0,11,0,11,3,5,0,11,28,29,0,11,0,11,12,11,0,11,5,7,0,11,0,11,0,11,0,11,0,11,0,11,2,3,0,11,0,11,12,13,0,11,0,11,0,11,0,11]
[null,"No disability",0,11,0,11,0,11,548,144,0,11,32,34,0,11,6,9,100,46,43,24,0,11,0,11,42,22,0,11,0,11,13,8,9,13,0,11,143,48,0,11,0,11,20,14,0,11,291,62,0,11,0,11,82,24,0,11,124,63,0,11,0,11,17,14,3,4,0,11,0,11,16,14,72,42,61,47,12,11,0,11,0,11,0,11,99,50]
[null,"18 to 34 years:",0,11,0,11,0,11,819,134,0,11,37,26,0,11,20,12,183,57,33,20,0,11,0,11,54,29,0,11,0,11,22,10,0,11,0,11,133,52,0,11,0,11,58,27,0,11,244,73,0,11,0,11,124,45,0,11,248,69,5,11,0,11,54,31,23,11,11,24,0,11,20,10,18,16,67,41,37,25,0,11,0,11,0,11,97,43]
[null,"With a disability",0,11,0,11,0,11,11,18,0,11,0,11,0,11,8,9,19,18,0,11,0,11,0,11,15,16,0,11,0,11,0,11,0,11,0,11,0,11,0,11,0,11,3,6,0,11,48,45,0,11,0,11,3,4,0,11,46,36,0,11,0,11,5,6,0,11,11,24,0,11,3,4,5,10,20,21,19,21,0,11,0,11,0,11,34,30]
[null,"No disability",0,11,0,11,0,11,808,138,0,11,37,26,0,11,12,10,164,58,33,20,0,11,0,11,39,28,0,11,0,11,22,10,0,11,0,11,133,52,0,11,0,11,55,27,0,11,196,63,0,11,0,11,121,45,0,11,202,65,5,11,0,11,49,31,23,11,0,11,0,11,17,10,13,11,47,29,18,11,0,11,0,11,0,11,63,28]
[null,"35 to 64 years:",0,11,0,11,0,11,1635,141,0,11,146,35,0,11,97,35,443,65,150,37,0,11,0,11,242,45,0,11,2,6,64,18,60,22,0,11,593,67,0,11,0,11,241,39,0,11,622,95,0,11,0,11,290,39,0,11,445,63,0,11,0,11,157,37,82,23,0,11,0,11,102,25,121,31,125,46,139,35,0,11,0,11,0,11,532,84]
[null,"With a disability",0,11,0,11,0,11,355,102,0,11,9,8,0,11,24,17,50,27,22,16,0,11,0,11,35,19,0,11,1,4,13,9,21,16,0,11,87,39,0,11,0,11,20,10,0,11,79,56,0,11,0,11,31,15,0,11,73,33,0,11,0,11,21,12,4,6,0,11,0,11,15,11,12,9,26,20,16,11,0,11,0,11,0,11,82,44]
[null,"No disability",0,11,0,11,0,11,1280,151,0,11,137,36,0,11,73,28,393,67,128,32,0,11,0,11,207,42,0,11,1,3,51,15,39,19,0,11,506,67,0,11,0,11,221,41,0,11,543,91,0,11,0,11,259,36,0,11,372,52,0,11,0,11,136,36,78,24,0,11,0,11,87,23,109,28,99,41,123,35,0,11,0,11,0,11,450,73]
[null,"65 to 74 years:",0,11,0,11,0,11,515,87,0,11,57,14,0,11,18,11,120,36,29,13,0,11,0,11,66,23,0,11,0,11,13,7,18,13,0,11,159,51,0,11,0,11,73,22,0,11,207,52,0,11,0,11,75,23,0,11,134,34,0,11,0,11,72,26,38,12,0,11,0,11,30,14,38,16,113,34,38,16,0,11,0,11,7,6,210,59]
[null,"With a disability",0,11,0,11,0,11,154,57,0,11,13,11,0,11,1,3,63,31,4,6,0,11,0,11,20,18,0,11,0,11,1,2,7,7,0,11,12,16,0,11,0,11,9,7,0,11,51,42,0,11,0,11,14,14,0,11,29,22,0,11,0,11,18,15,9,8,0,11,0,11,5,8,6,8,23,20,15,10,0,11,0,11,1,3,71,44]
[null,"No disability",0,11,0,11,0,11,361,82,0,11,44,14,0,11,17,11,57,26,25,11,0,11,0,11,46,20,0,11,0,11,12,7,11,9,0,11,147,51,0,11,0,11,64,21,0,11,156,51,0,11,0,11,61,21,0,11,105,30,0,11,0,11,54,23,29,13,0,11,0,11,25,12,32,13,90,34,23,13,0,11,0,11,6,6,139,44]
[null,"75 years and over:",0,11,0,11,0,11,515,82,0,11,30,16,0,11,5,8,108,37,39,17,0,11,0,11,37,17,0,11,0,11,15,10,9,8,0,11,174,52,0,11,0,11,25,15,0,11,174,56,0,11,0,11,24,12,4,6,84,34,0,11,0,11,33,20,21,12,0,11,0,11,20,12,37,16,44,20,30,14,0,11,0,11,0,11,117,45]
[null,"With a disability",0,11,0,11,0,11,290,80,0,11,17,13,0,11,1,3,63,32,22,15,0,11,0,11,21,15,0,11,0,11,3,5,9,8,0,11,121,41,0,11,0,11,4,8,0,11,81,49,0,11,0,11,15,9,0,11,48,27,0,11,0,11,10,9,6,6,0,11,0,11,12,11,19,13,21,16,24,14,0,11,0,11,0,11,49,26]
[null,"No disability",0,11,0,11,0,11,225,58,0,11,13,9,0,11,4,7,45,21,17,10,0,11,0,11,16,10,0,11,0,11,12,8,0,11,0,11,53,31,0,11,0,11,21,12,0,11,93,42,0,11,0,11,9,7,4,6,36,23,0,11,0,11,23,18,15,9,0,11,0,11,8,8,18,9,23,14,6,5,0,11,0,11,0,11,68,42]
[]
[]
[{"$f":"A1& \"-Calculated\"","v":"B18101. SEX BY AGE BY DISABILITY STATUS\n-Calculated"}]
[{"$f":"A2","v":"Universe:  Civilian non-institutionalized population"}]
[{"$f":"A3","v":"Data Set: 2015-2019 American Community Survey 5-Year Estimates"}]
[]
[]
[null,null,"Atkinson and Gilmanton Grant",null,"Bean's Grant",null,"Bean's Purchase",null,"Berlin",null,"Cambridge",null,"Carroll",null,"Chandler's Purchase",null,"Clarksville",null,"Colebrook",null,"Columbia",null,"Crawford's Purchase",null,"Cutt's Grant",null,"Dalton",null,"Dix's Grant",null,"Dixville",null,"Dummer",null,"Errol",null,"Erving's Location",null,"Gorham",null,"Greens Grant",null,"Hadley's Purchase",null,"Jefferson",null,"Kilkenny",null,"Lancaster",null,"Low and Burbank's Grant",null,"Martin's Location",null,"Milan",null,"Millsfield",null,"Northumberland",null,"Odell",null,"Pinkham's Grant",null,"Pittsburg",null,"Randolph",null,"Sargent's Purchase",null,"Second College Grant",null,"Shelburne",null,"Stark",null,"Stewartstown",null,"Stratford",null,"Success",null,"Thompson and Meserves Purchase",null,"Wentworth's Location",null,"Whitefield"]
[null,null,"Estimate","Margin Of Error","Estimate","Margin Of Error","Estimate","Margin Of Error","Estimate","Margin Of Error","Estimate","Margin Of Error","Estimate","Margin Of Error","Estimate","Margin Of Error","Estimate","Margin Of Error","Estimate","Margin Of Error","Estimate","Margin Of Error","Estimate","Margin Of Error","Estimate","Margin Of Error","Estimate","Margin Of Error","Estimate","Margin Of Error","Estimate","Margin Of Error","Estimate","Margin Of Error","Estimate","Margin Of Error","Estimate","Margin Of Error","Estimate","Margin Of Error","Estimate","Margin Of Error","Estimate","Margin Of Error","Estimate","Margin Of Error","Estimate","Margin Of Error","Estimate","Margin Of Error","Estimate","Margin Of Error","Estimate","Margin Of Error","Estimate","Margin Of Error","Estimate","Margin Of Error","Estimate","Margin Of Error","Estimate","Margin Of Error","Estimate","Margin Of Error","Estimate","Margin Of Error","Estimate","Margin Of Error","Estimate","Margin Of Error","Estimate","Margin Of Error","Estimate","Margin Of Error","Estimate","Margin Of Error","Estimate","Margin Of Error","Estimate","Margin Of Error","Estimate","Margin Of Error","Estimate","Margin Of Error","Estimate","Margin Of Error","Estimate","Margin Of Error"]
[null,"Total",{"$f":"C7","v":0},11,0,11,0,11,8384,242,0,11,772,141,0,11,324,88,1908,171,633,119,{"$f":"W7","v":0},11,0,11,906,140,0,11,11,12,306,71,205,55,0,11,2623,17,13,10,0,11,850,129,0,11,3162,83,0,11,0,11,1332,107,8,12,2322,266,10,12,11,14,740,104,365,68,11,24,0,11,408,65,606,144,857,171,630,114,0,11,0,11,26,16,{"$f":"CI7","v":2202},{"$f":"CJ7","v":215}]
[null,"Under 5 years:",{"$f":"C28+C9","v":0},{"$f":"SQRT((D28^2)+(D9^2))","v":15.556349186104045},{"$f":"E28+E9","v":0},{"$f":"SQRT((F28^2)+(F9^2))","v":15.556349186104045},{"$f":"G28+G9","v":0},{"$f":"SQRT((H28^2)+(H9^2))","v":15.556349186104045},{"$f":"I28+I9","v":401},{"$f":"SQRT((J28^2)+(J9^2))","v":101.23734488813898},{"$f":"K28+K9","v":0},{"$f":"SQRT((L28^2)+(L9^2))","v":15.556349186104045},{"$f":"M28+M9","v":29},{"$f":"SQRT((N28^2)+(N9^2))","v":20.808652046684813},{"$f":"O28+O9","v":0},{"$f":"SQRT((P28^2)+(P9^2))","v":15.556349186104045},{"$f":"Q28+Q9","v":6},{"$f":"SQRT((R28^2)+(R9^2))","v":7.2111025509279782},{"$f":"S28+S9","v":55},{"$f":"SQRT((T28^2)+(T9^2))","v":30.413812651491099},{"$f":"U28+U9","v":7},{"$f":"SQRT((V28^2)+(V9^2))","v":7.810249675906654},{"$f":"W28+W9","v":0},{"$f":"SQRT((X28^2)+(X9^2))","v":15.556349186104045},{"$f":"Y28+Y9","v":0},{"$f":"SQRT((Z28^2)+(Z9^2))","v":15.556349186104045},{"$f":"AA28+AA9","v":33},{"$f":"SQRT((AB28^2)+(AB9^2))","v":21.931712199461309},{"$f":"AC28+AC9","v":0},{"$f":"SQRT((AD28^2)+(AD9^2))","v":15.556349186104045},{"$f":"AE28+AE9","v":0},{"$f":"SQRT((AF28^2)+(AF9^2))","v":15.556349186104045},{"$f":"AG28+AG9","v":9},{"$f":"SQRT((AH28^2)+(AH9^2))","v":8.6023252670426267},{"$f":"AI28+AI9","v":0},{"$f":"SQRT((AJ28^2)+(AJ9^2))","v":15.556349186104045},{"$f":"AK28+AK9","v":0},{"$f":"SQRT((AL28^2)+(AL9^2))","v":15.556349186104045},{"$f":"AM28+AM9","v":54},{"$f":"SQRT((AN28^2)+(AN9^2))","v":38.600518131237564},{"$f":"AO28+AO9","v":0},{"$f":"SQRT((AP28^2)+(AP9^2))","v":15.556349186104045},{"$f":"AQ28+AQ9","v":0},{"$f":"SQRT((AR28^2)+(AR9^2))","v":15.556349186104045},{"$f":"AS28+AS9","v":42},{"$f":"SQRT((AT28^2)+(AT9^2))","v":23.53720459187964},{"$f":"AU28+AU9","v":0},{"$f":"SQRT((AV28^2)+(AV9^2))","v":15.556349186104045},{"$f":"AW28+AW9","v":150},{"$f":"SQRT((AX28^2)+(AX9^2))","v":88.814413244698073},{"$f":"AY28+AY9","v":0},{"$f":"SQRT((AZ28^2)+(AZ9^2))","v":15.556349186104045},{"$f":"BA28+BA9","v":0},{"$f":"SQRT((BB28^2)+(BB9^2))","v":15.556349186104045},{"$f":"BC28+BC9","v":41},{"$f":"SQRT((BD28^2)+(BD9^2))","v":23.259406699226016},{"$f":"BE28+BE9","v":0},{"$f":"SQRT((BF28^2)+(BF9^2))","v":15.556349186104045},{"$f":"BG28+BG9","v":179},{"$f":"SQRT((BH28^2)+(BH9^2))","v":58.249463516842795},{"$f":"BI28+BI9","v":0},{"$f":"SQRT((BJ28^2)+(BJ9^2))","v":15.556349186104045},{"$f":"BK28+BK9","v":0},{"$f":"SQRT((BL28^2)+(BL9^2))","v":15.556349186104045},{"$f":"BM28+BM9","v":0},{"$f":"SQRT((BN28^2)+(BN9^2))","v":15.556349186104045},{"$f":"BO28+BO9","v":16},{"$f":"SQRT((BP28^2)+(BP9^2))","v":12.649110640673518},{"$f":"BQ28+BQ9","v":0},{"$f":"SQRT((BR28^2)+(BR9^2))","v":15.556349186104045},{"$f":"BS28+BS9","v":0},{"$f":"SQRT((BT28^2)+(BT9^2))","v":15.556349186104045},{"$f":"BU28+BU9","v":17},{"$f":"SQRT((BV28^2)+(BV9^2))","v":16.15549442140351},{"$f":"BW28+BW9","v":40},{"$f":"SQRT((BX28^2)+(BX9^2))","v":26.92582403567252},{"$f":"BY28+BY9","v":32},{"$f":"SQRT((BZ28^2)+(BZ9^2))","v":28.284271247461902},{"$f":"CA28+CA9","v":14},{"$f":"SQRT((CB28^2)+(CB9^2))","v":18.439088914585774},{"$f":"CC28+CC9","v":0},{"$f":"SQRT((CD28^2)+(CD9^2))","v":15.556349186104045},{"$f":"CE28+CE9","v":0},{"$f":"SQRT((CF28^2)+(CF9^2))","v":15.556349186104045},{"$f":"CG28+CG9","v":0},{"$f":"SQRT((CH28^2)+(CH9^2))","v":15.556349186104045},{"$f":"CI28+CI9","v":144},{"$f":"SQRT((CJ28^2)+(CJ9^2))","v":57.201398584300364}]
[null,"With a disability",{"$f":"C29+C10","v":0},{"$f":"SQRT((D29^2)+(D10^2))","v":15.556349186104045},{"$f":"E29+E10","v":0},{"$f":"SQRT((F29^2)+(F10^2))","v":15.556349186104045},{"$f":"G29+G10","v":0},{"$f":"SQRT((H29^2)+(H10^2))","v":15.556349186104045},{"$f":"I29+I10","v":0},{"$f":"SQRT((J29^2)+(J10^2))","v":25.45584412271571},{"$f":"K29+K10","v":0},{"$f":"SQRT((L29^2)+(L10^2))","v":15.556349186104045},{"$f":"M29+M10","v":0},{"$f":"SQRT((N29^2)+(N10^2))","v":15.556349186104045},{"$f":"O29+O10","v":0},{"$f":"SQRT((P29^2)+(P10^2))","v":15.556349186104045},{"$f":"Q29+Q10","v":0},{"$f":"SQRT((R29^2)+(R10^2))","v":15.556349186104045},{"$f":"S29+S10","v":0},{"$f":"SQRT((T29^2)+(T10^2))","v":15.556349186104045},0,15.556349186104045,0,15.556349186104045,0,15.556349186104045,0,15.556349186104045,0,15.556349186104045,0,15.556349186104045,0,15.556349186104045,0,15.556349186104045,0,15.556349186104045,0,15.556349186104045,0,15.556349186104045,0,15.556349186104045,0,15.556349186104045,0,15.556349186104045,0,15.556349186104045,0,15.556349186104045,0,15.556349186104045,0,15.556349186104045,0,15.556349186104045,0,15.556349186104045,0,15.556349186104045,0,15.556349186104045,0,15.556349186104045,0,15.556349186104045,0,15.556349186104045,0,15.556349186104045,0,15.556349186104045,0,15.556349186104045,0,15.556349186104045,0,15.556349186104045,0,15.556349186104045,0,15.556349186104045,0,15.556349186104045,0,15.556349186104045]
[null,"No disability",{"$f":"C30+C11","v":0},15.556349186104045,0,15.556349186104045,0,15.556349186104045,401,101.23734488813898,0,15.556349186104045,29,20.808652046684813,0,15.556349186104045,6,7.2111025509279782,55,30.413812651491099,7,7.810249675906654,0,15.556349186104045,0,15.556349186104045,33,21.931712199461309,0,15.556349186104045,0,15.556349186104045,9,8.6023252670426267,0,15.556349186104045,0,15.556349186104045,54,38.600518131237564,0,15.556349186104045,0,15.556349186104045,42,23.53720459187964,0,15.556349186104045,150,88.814413244698073,0,15.556349186104045,0,15.556349186104045,41,23.259406699226016,0,15.556349186104045,179,58.249463516842795,0,15.556349186104045,0,15.556349186104045,0,15.556349186104045,16,12.649110640673518,0,15.556349186104045,0,15.556349186104045,17,16.15549442140351,40,26.92582403567252,32,28.284271247461902,14,18.439088914585774,0,15.556349186104045,0,15.556349186104045,0,15.556349186104045,144,57.201398584300364]
[null,"5 to 17 years:",0,15.556349186104045,0,15.556349186104045,0,15.556349186104045,1184,159.96249560443849,0,15.556349186104045,111,78.721026416072604,0,15.556349186104045,25,15.811388300841896,246,78.006409993025571,72,28.301943396169811,0,15.556349186104045,0,15.556349186104045,99,39.824615503479755,0,15.556349186104045,2,11.704699910719626,54,35.440090293338699,27,22.203603311174518,0,15.556349186104045,354,82.419657849326214,0,15.556349186104045,0,15.556349186104045,80,26.40075756488817,0,15.556349186104045,518,96.426137535421375,0,15.556349186104045,0,15.556349186104045,179,42.201895692018383,0,15.556349186104045,343,91.967385523347346,0,15.556349186104045,0,15.556349186104045,57,27.784887978899608,7,5.6568542494923806,0,15.556349186104045,0,15.556349186104045,36,20.518284528683193,105,47.885279575251516,108,55.226805085936306,98,32.756678708318397,0,15.556349186104045,0,15.556349186104045,0,15.556349186104045,260,86.023252670426274]
[null,"With a disability",0,15.556349186104045,0,15.556349186104045,0,15.556349186104045,207,116.69190203266035,0,15.556349186104045,0,15.556349186104045,0,15.556349186104045,6,14.212670403551895,0,15.556349186104045,10,13.601470508735444,0,15.556349186104045,0,15.556349186104045,20,21.931712199461309,0,15.556349186104045,0,15.556349186104045,17,14.317821063276353,0,15.556349186104045,0,15.556349186104045,22,24.596747752497688,0,15.556349186104045,0,15.556349186104045,3,12.083045973594572,0,15.556349186104045,69,59.539902586416787,0,15.556349186104045,0,15.556349186104045,26,21.095023109728988,0,15.556349186104045,46,41.593268686170845,0,15.556349186104045,0,15.556349186104045,0,15.556349186104045,0,15.556349186104045,0,15.556349186104045,0,15.556349186104045,7,8.5440037453175304,16,22.825424421026653,0,15.556349186104045,17,14.317821063276353,0,15.556349186104045,0,15.556349186104045,0,15.556349186104045,11,17.804493814764857]
[null,"No disability",0,15.556349186104045,0,15.556349186104045,0,15.556349186104045,977,184.91078930121952,0,15.556349186104045,111,78.721026416072604,0,15.556349186104045,19,15,246,78.006409993025571,62,27.784887978899608,0,15.556349186104045,0,15.556349186104045,79,30.413812651491099,0,15.556349186104045,2,11.704699910719626,37,23.409399821439251,27,22.203603311174518,0,15.556349186104045,332,76.05918747922567,0,15.556349186104045,0,15.556349186104045,77,25.238858928247925,0,15.556349186104045,449,91.285267157411553,0,15.556349186104045,0,15.556349186104045,153,33.241540277189323,0,15.556349186104045,297,94.921019800674287,0,15.556349186104045,0,15.556349186104045,57,27.784887978899608,7,5.6568542494923806,0,15.556349186104045,0,15.556349186104045,29,18.439088914585774,89,43.965895873961216,108,55.226805085936306,81,28.231188426986208,0,15.556349186104045,0,15.556349186104045,0,15.556349186104045,249,82.800966177937809]
[null,"18 to 34 years:",0,15.556349186104045,0,15.556349186104045,0,15.556349186104045,1821,220.41097976280582,0,15.556349186104045,135,70.007142492748557,0,15.556349186104045,54,20,274,71.400280111495363,91,37.735924528226413,0,15.556349186104045,0,15.556349186104045,156,51.039200620699383,0,15.556349186104045,5,12.529964086141668,42,14.866068747318506,0,15.556349186104045,0,15.556349186104045,314,88.0056816347672,5,13.601470508735444,0,15.556349186104045,124,43.416586692184822,0,15.556349186104045,578,107.56393447619885,0,15.556349186104045,0,15.556349186104045,268,65.79513659838392,0,15.556349186104045,447,103.39245620450265,10,15.556349186104045,7,13.601470508735444,89,37.443290453698111,52,19.416487838947599,11,26.40075756488817,0,15.556349186104045,35,15.620499351813308,69,29.681644159311659,106,50.803543183522152,76,35.355339059327378,0,15.556349186104045,0,15.556349186104045,3,11.704699910719626,254,80.454956342042721]
[null,"With a disability",0,15.556349186104045,0,15.556349186104045,0,15.556349186104045,296,148.0979405663698,0,15.556349186104045,8,14.866068747318506,0,15.556349186104045,16,13.45362404707371,35,24.083189157584592,8,13.601470508735444,0,15.556349186104045,0,15.556349186104045,20,18.357559750685819,0,15.556349186104045,0,15.556349186104045,0,15.556349186104045,0,15.556349186104045,0,15.556349186104045,25,28.231188426986208,0,15.556349186104045,0,15.556349186104045,3,12.529964086141668,0,15.556349186104045,73,53.535035257296691,0,15.556349186104045,0,15.556349186104045,38,36.221540552549669,0,15.556349186104045,61,39.395431207184416,0,15.556349186104045,0,15.556349186104045,8,7.2111025509279782,0,15.556349186104045,11,26.40075756488817,0,15.556349186104045,4,4.4721359549995796,17,16.401219466856727,23,21.377558326431949,36,29.698484809834994,0,15.556349186104045,0,15.556349186104045,0,15.556349186104045,50,34]
[null,"No disability",0,15.556349186104045,0,15.556349186104045,0,15.556349186104045,1525,212.80977421161839,0,15.556349186104045,127,70.007142492748557,0,15.556349186104045,38,16.401219466856727,239,68.264192663504048,83,36.055512754639892,0,15.556349186104045,0,15.556349186104045,136,49.648766349225639,0,15.556349186104045,5,12.529964086141668,42,14.866068747318506,0,15.556349186104045,0,15.556349186104045,289,88.0056816347672,5,13.601470508735444,0,15.556349186104045,121,43.416586692184822,0,15.556349186104045,505,100.26464980241042,0,15.556349186104045,0,15.556349186104045,230,59.548299723837623,0,15.556349186104045,386,98.493654617949886,10,15.556349186104045,7,13.601470508735444,81,37.443290453698111,52,19.416487838947599,0,15.556349186104045,0,15.556349186104045,31,14.866068747318506,52,22.825424421026653,83,41.725292090050132,40,20.248456731316587,0,15.556349186104045,0,15.556349186104045,3,11.704699910719626,204,74.464756764525859]
[null,"35 to 64 years:",0,15.556349186104045,0,15.556349186104045,0,15.556349186104045,3259,197.99494943053472,0,15.556349186104045,303,50.209560842532767,0,15.556349186104045,166,45.453272709454048,839,91.219515455849688,307,59.033888572581766,0,15.556349186104045,0,15.556349186104045,456,62.936475910238251,0,15.556349186104045,2,12.529964086141668,114,22.203603311174518,112,27.802877548915689,0,15.556349186104045,1241,97.621718894926246,8,14.866068747318506,0,15.556349186104045,404,54.451813560247928,0,15.556349186104045,1258,137.93114224133723,0,15.556349186104045,0,15.556349186104045,592,51.088159097779204,4,12.529964086141668,946,101.82828683622247,0,15.556349186104045,4,13.601470508735444,341,57.489129407219238,165,31.827660925679098,0,15.556349186104045,0,15.556349186104045,190,34.655446902326915,235,43.840620433565945,293,64.350602172784676,312,53.907327887774215,0,15.556349186104045,0,15.556349186104045,4,11.704699910719626,874,104.4030650891055]
[null,"With a disability",0,15.556349186104045,0,15.556349186104045,0,15.556349186104045,787,159.02201105507376,0,15.556349186104045,31,13.601470508735444,0,15.556349186104045,47,24.758836806279895,113,37.483329627982627,78,33.120990323358392,0,15.556349186104045,0,15.556349186104045,78,29.068883707497267,0,15.556349186104045,1,11.704699910719626,21,11.401754250991379,31,18.357559750685819,0,15.556349186104045,180,54.451813560247928,3,12.529964086141668,0,15.556349186104045,32,17.204650534085253,0,15.556349186104045,221,87.321245982864909,0,15.556349186104045,0,15.556349186104045,75,22.671568097509269,0,15.556349186104045,211,58.249463516842795,0,15.556349186104045,0,15.556349186104045,67,29.546573405388315,17,10,0,15.556349186104045,0,15.556349186104045,25,13.038404810405298,54,21.023796041628639,64,31.240998703626616,87,31.953090617340916,0,15.556349186104045,0,15.556349186104045,0,15.556349186104045,141,55]
[null,"No disability",0,15.556349186104045,0,15.556349186104045,0,15.556349186104045,2472,207.96634343085421,0,15.556349186104045,272,51.623637996561229,0,15.556349186104045,119,33.286633954186478,726,90.609050320594349,229,46.690470119715009,0,15.556349186104045,0,15.556349186104045,378,59.396969619669989,0,15.556349186104045,1,11.401754250991379,93,19.209372712298546,81,24.207436873820409,0,15.556349186104045,1061,99.085821387320593,5,12.529964086141668,0,15.556349186104045,372,54.561891462814962,0,15.556349186104045,1037,130.11533345459327,0,15.556349186104045,0,15.556349186104045,517,48.166378315169183,4,12.529964086141668,735,84.02380615040002,0,15.556349186104045,4,13.601470508735444,274,56.080299571239813,148,32.557641192199412,0,15.556349186104045,0,15.556349186104045,165,32.526911934581186,181,38.209946349085598,229,63.126856408346519,225,43.600458713183279,0,15.556349186104045,0,15.556349186104045,4,11.704699910719626,733,95.131487952202235]
[null,"65 to 74 years:",0,15.556349186104045,0,15.556349186104045,0,15.556349186104045,951,128.08200498118384,0,15.556349186104045,133,30.413812651491099,0,15.556349186104045,58,21.95449840010015,289,58.412327466040935,78,20.615528128088304,0,15.556349186104045,0,15.556349186104045,107,31.827660925679098,0,15.556349186104045,2,12.529964086141668,49,17.464249196572979,36,19.104973174542799,0,15.556349186104045,334,77.233412458598508,0,15.556349186104045,0,15.556349186104045,156,34.828149534535996,0,15.556349186104045,336,72.138755187485728,0,15.556349186104045,0,15.556349186104045,194,36.235341863986875,0,15.556349186104045,253,51.739733281106119,0,15.556349186104045,0,15.556349186104045,199,44.407206622349037,87,20,0,15.556349186104045,0,15.556349186104045,82,24.413111231467404,90,27.202941017470888,236,54.037024344425184,69,20,0,15.556349186104045,0,15.556349186104045,11,7.2111025509279782,430,79.981247802219244]
[null,"With a disability",0,15.556349186104045,0,15.556349186104045,0,15.556349186104045,228,75.166481891864535,0,15.556349186104045,44,23.706539182259394,0,15.556349186104045,14,8.5440037453175304,102,46.75467891024384,20,12.529964086141668,0,15.556349186104045,0,15.556349186104045,20,21.095023109728988,0,15.556349186104045,1,11.401754250991379,12,6.324555320336759,7,13.038404810405298,0,15.556349186104045,54,34,0,15.556349186104045,0,15.556349186104045,57,22.135943621178654,0,15.556349186104045,92,52.201532544552748,0,15.556349186104045,0,15.556349186104045,43,23.600847442411894,0,15.556349186104045,79,34.828149534535996,0,15.556349186104045,0,15.556349186104045,56,27.459060435491963,17,12.041594578792296,0,15.556349186104045,0,15.556349186104045,26,17.888543819998318,12,10.63014581273465,78,38.587562763149478,23,12.206555615733702,0,15.556349186104045,0,15.556349186104045,5,5,154,67.357256476195644]
[null,"No disability",0,15.556349186104045,0,15.556349186104045,0,15.556349186104045,723,116.67476162392619,0,15.556349186104045,89,24.413111231467404,0,15.556349186104045,44,19.416487838947599,187,45.221676218380054,58,17.029386365926403,0,15.556349186104045,0,15.556349186104045,87,29.732137494637012,0,15.556349186104045,1,11.704699910719626,37,16.552945357246848,29,16.643316977093239,0,15.556349186104045,280,73.552702193733168,0,15.556349186104045,0,15.556349186104045,99,27.658633371878661,0,15.556349186104045,244,62.425956140054431,0,15.556349186104045,0,15.556349186104045,151,35.805027579936315,0,15.556349186104045,174,42.426406871192853,0,15.556349186104045,0,15.556349186104045,143,37.013511046643494,70,19.104973174542799,0,15.556349186104045,0,15.556349186104045,56,18.439088914585774,78,23.853720883753127,158,46.690470119715009,46,17.029386365926403,0,15.556349186104045,0,15.556349186104045,6,12.529964086141668,276,60.827625302982199]
[null,"75 years and over:",0,15.556349186104045,0,15.556349186104045,0,15.556349186104045,768,104.63746938836012,0,15.556349186104045,61,21.931712199461309,0,15.556349186104045,15,12.041594578792296,205,48.270073544588683,78,24.041630560342615,0,15.556349186104045,0,15.556349186104045,55,23.345235059857504,0,15.556349186104045,0,15.556349186104045,38,15.620499351813308,30,15.264337522473747,0,15.556349186104045,326,77.89736837660179,0,15.556349186104045,0,15.556349186104045,44,18.601075237738275,0,15.556349186104045,322,79.906195003891909,0,15.556349186104045,0,15.556349186104045,58,18.439088914585774,4,12.529964086141668,154,46.690470119715009,0,15.556349186104045,0,15.556349186104045,54,22.825424421026653,38,15,0,15.556349186104045,0,15.556349186104045,48,21.633307652783937,67,21.2602916254693,82,24.413111231467404,61,22.022715545545239,0,15.556349186104045,0,15.556349186104045,8,13.601470508735444,240,62.241465278381739]
[null,"With a disability",0,15.556349186104045,0,15.556349186104045,0,15.556349186104045,443,100,0,15.556349186104045,33,18.384776310850235,0,15.556349186104045,4,4.2426406871192848,133,42.5205832509386,51,20.518284528683193,0,15.556349186104045,0,15.556349186104045,30,19.849433241279208,0,15.556349186104045,0,15.556349186104045,9,6.4031242374328485,19,12.806248474865697,0,15.556349186104045,182,57.982756057296896,0,15.556349186104045,0,15.556349186104045,16,13.601470508735444,0,15.556349186104045,141,66.528189513919585,0,15.556349186104045,0,15.556349186104045,38,15,0,15.556349186104045,93,37.483329627982627,0,15.556349186104045,0,15.556349186104045,13,10.295630140987001,6,12.529964086141668,0,15.556349186104045,0,15.556349186104045,25,17.029386365926403,39,17.691806012954132,30,17.888543819998318,41,17.204650534085253,0,15.556349186104045,0,15.556349186104045,6,13.038404810405298,103,40.459856648287818]
[null,"No disability",0,15.556349186104045,0,15.556349186104045,0,15.556349186104045,325,72.201108024738787,0,15.556349186104045,28,12.727922061357855,0,15.556349186104045,11,10.63014581273465,72,25.80697580112788,27,13.45362404707371,0,15.556349186104045,0,15.556349186104045,25,13.45362404707371,0,15.556349186104045,0,15.556349186104045,29,12.806248474865697,11,13.601470508735444,0,15.556349186104045,144,58.830264320330912,0,15.556349186104045,0,15.556349186104045,28,13.416407864998739,0,15.556349186104045,181,58,0,15.556349186104045,0,15.556349186104045,20,10.63014581273465,4,12.529964086141668,61,32.526911934581186,0,15.556349186104045,0,15.556349186104045,41,20.591260281974002,32,12.727922061357855,0,15.556349186104045,0,15.556349186104045,23,14.422205101855956,28,11.401754250991379,52,18.439088914585774,20,15.811388300841896,0,15.556349186104045,0,15.556349186104045,2,11.401754250991379,137,52.801515129776341]
[]
[]
[]
[]
[]
[]
[]
[]
[]
[]
[]
[]
[]
[]
[]
[]
[]
[]
[]
[]
[]
[]
[]
[]
[]
[]
["B18101. SEX BY AGE BY DISABILITY STATUS\n-Calculated"]
["Universe:  Civilian non-institutionalized population"]
["Data Set: 2010-2014 American Community Survey 5-Year Estimates"]
[]
[]
[null,null,"Atkinson and Gilmanton Grant",null,"Bean's Grant",null,"Bean's Purchase",null,"Berlin",null,"Cambridge",null,"Carroll",null,"Chandler's Purchase",null,"Clarksville",null,"Colebrook",null,"Columbia",null,"Crawford's Purchase",null,"Cutt's Grant",null,"Dalton",null,"Dix's Grant",null,"Dixville",null,"Dummer",null,"Errol",null,"Erving's Location",null,"Gorham",null,"Greens Grant",null,"Hadley's Purchase",null,"Jefferson",null,"Kilkenny",null,"Lancaster",null,"Low and Burbank's Grant",null,"Martin's Location",null,"Milan",null,"Millsfield",null,"Northumberland",null,"Odell",null,"Pinkham's Grant",null,"Pittsburg",null,"Randolph",null,"Sargent's Purchase",null,"Second College Grant",null,"Shelburne",null,"Stark",null,"Stewartstown",null,"Stratford",null,"Success",null,"Thompson and Meserves Purchase",null,"Wentworth's Location",null,"Whitefield"]
[null,null,"Estimate","Margin Of Error","Estimate","Margin Of Error","Estimate","Margin Of Error","Estimate","Margin Of Error","Estimate","Margin Of Error","Estimate","Margin Of Error","Estimate","Margin Of Error","Estimate","Margin Of Error","Estimate","Margin Of Error","Estimate","Margin Of Error","Estimate","Margin Of Error","Estimate","Margin Of Error","Estimate","Margin Of Error","Estimate","Margin Of Error","Estimate","Margin Of Error","Estimate","Margin Of Error","Estimate","Margin Of Error","Estimate","Margin Of Error","Estimate","Margin Of Error","Estimate","Margin Of Error","Estimate","Margin Of Error","Estimate","Margin Of Error","Estimate","Margin Of Error","Estimate","Margin Of Error","Estimate","Margin Of Error","Estimate","Margin Of Error","Estimate","Margin Of Error","Estimate","Margin Of Error","Estimate","Margin Of Error","Estimate","Margin Of Error","Estimate","Margin Of Error","Estimate","Margin Of Error","Estimate","Margin Of Error","Estimate","Margin Of Error","Estimate","Margin Of Error","Estimate","Margin Of Error","Estimate","Margin Of Error","Estimate","Margin Of Error","Estimate","Margin Of Error","Estimate","Margin Of Error","Estimate","Margin Of Error","Estimate","Margin Of Error","Estimate","Margin Of Error"]
[null,"Total",0,11,0,11,0,11,8671,580,17,16,991,165,0,11,315,75,2340,210,726,132,0,11,0,11,933,154,13,9,11,9,301,70,0,0,0,11,2765,15,8,17,0,11,0,11,0,11,3338,89,0,11,0,11,20,16,21,19,0,11,0,11,8,6,875,130,424,74,9,12,0,11,358,66,490,94,712,123,0,11,0,11,0,11,62,33,2081,219]
[null,"Under 5 years:",0,15.556349186104045,0,15.556349186104045,0,15.556349186104045,423,104.23531071570709,0,15.556349186104045,27,18.601075237738275,0,15.556349186104045,11,10.440306508910551,93,41.617304093369626,29,17.029386365926403,0,15.556349186104045,0,15.556349186104045,10,8.6023252670426267,0,15.556349186104045,0,15.556349186104045,5,4.4721359549995796,0,0,0,15.556349186104045,162,75.604232685743199,0,15.556349186104045,0,15.556349186104045,0,15.556349186104045,0,15.556349186104045,135,57.801384066473702,0,15.556349186104045,0,15.556349186104045,3,5.6568542494923806,5,5.6568542494923806,0,15.556349186104045,0,15.556349186104045,0,15.556349186104045,2,12.083045973594572,2,3.6055512754639891,0,15.556349186104045,0,15.556349186104045,13,12.649110640673518,31,19.209372712298546,26,20.248456731316587,0,15.556349186104045,0,15.556349186104045,0,15.556349186104045,0,15.556349186104045,97,39.597979746446661]
[null,"With a disability",0,15.556349186104045,0,15.556349186104045,0,15.556349186104045,0,21.213203435596427,0,15.556349186104045,0,15.556349186104045,0,15.556349186104045,0,15.556349186104045,0,15.556349186104045,0,15.556349186104045,0,15.556349186104045,0,15.556349186104045,0,15.556349186104045,0,15.556349186104045,0,15.556349186104045,0,15.556349186104045,0,0,0,15.556349186104045,0,15.556349186104045,0,15.556349186104045,0,15.556349186104045,0,15.556349186104045,0,15.556349186104045,0,15.556349186104045,0,15.556349186104045,0,15.556349186104045,0,15.556349186104045,0,15.556349186104045,0,15.556349186104045,0,15.556349186104045,0,15.556349186104045,0,15.556349186104045,0,15.556349186104045,0,15.556349186104045,0,15.556349186104045,0,15.556349186104045,0,15.556349186104045,0,15.556349186104045,0,15.556349186104045,0,15.556349186104045,0,15.556349186104045,0,15.556349186104045,0,15.556349186104045]
[null,"No disability",0,15.556349186104045,0,15.556349186104045,0,15.556349186104045,423,104.23531071570709,0,15.556349186104045,27,18.601075237738275,0,15.556349186104045,11,10.440306508910551,93,41.617304093369626,29,17.029386365926403,0,15.556349186104045,0,15.556349186104045,10,8.6023252670426267,0,15.556349186104045,0,15.556349186104045,5,4.4721359549995796,0,0,0,15.556349186104045,162,75.604232685743199,0,15.556349186104045,0,15.556349186104045,0,15.556349186104045,0,15.556349186104045,135,57.801384066473702,0,15.556349186104045,0,15.556349186104045,3,5.6568542494923806,5,5.6568542494923806,0,15.556349186104045,0,15.556349186104045,0,15.556349186104045,2,12.083045973594572,2,3.6055512754639891,0,15.556349186104045,0,15.556349186104045,13,12.649110640673518,31,19.209372712298546,26,20.248456731316587,0,15.556349186104045,0,15.556349186104045,0,15.556349186104045,0,15.556349186104045,97,39.597979746446661]
[null,"5 to 17 years:",0,15.556349186104045,0,15.556349186104045,0,15.556349186104045,1200,171.89822570346675,0,15.556349186104045,187,76.661594035083823,0,15.556349186104045,42,19.104973174542799,305,69.31089380465383,102,38.418745424597091,0,15.556349186104045,0,15.556349186104045,128,46.669047558312137,0,15.556349186104045,0,15.556349186104045,15,16.643316977093239,0,0,0,15.556349186104045,406,84.219950130595535,0,15.556349186104045,0,15.556349186104045,0,15.556349186104045,0,15.556349186104045,612,119.88744721612851,0,15.556349186104045,0,15.556349186104045,4,4.2426406871192848,4,5,0,15.556349186104045,0,15.556349186104045,0,15.556349186104045,80,37.20215047547655,57,26.832815729997478,0,15.556349186104045,0,15.556349186104045,42,21.95449840010015,63,28.42534080710379,48,30.805843601498726,0,15.556349186104045,0,15.556349186104045,0,15.556349186104045,4,12.529964086141668,272,67.208630398186216]
[null,"With a disability",0,15.556349186104045,0,15.556349186104045,0,15.556349186104045,174,66.2872536767062,0,15.556349186104045,40,39.395431207184416,0,15.556349186104045,3,4.2426406871192848,26,20.615528128088304,11,8.5440037453175304,0,15.556349186104045,0,15.556349186104045,12,17.029386365926403,0,15.556349186104045,0,15.556349186104045,0,15.556349186104045,0,0,0,15.556349186104045,72,41.109609582188931,0,15.556349186104045,0,15.556349186104045,0,15.556349186104045,0,15.556349186104045,35,40.521599178709621,0,15.556349186104045,0,15.556349186104045,0,15.556349186104045,0,15.556349186104045,0,15.556349186104045,0,15.556349186104045,0,15.556349186104045,6,13.601470508735444,2,11.401754250991379,0,15.556349186104045,0,15.556349186104045,2,11.401754250991379,4,12.083045973594572,0,15.556349186104045,0,15.556349186104045,0,15.556349186104045,0,15.556349186104045,0,15.556349186104045,30,22.022715545545239]
[null,"No disability",0,15.556349186104045,0,15.556349186104045,0,15.556349186104045,1026,159.0125781188394,0,15.556349186104045,147,55.226805085936306,0,15.556349186104045,39,18.439088914585774,279,65.855903304107827,91,37.013511046643494,0,15.556349186104045,0,15.556349186104045,116,43.278170016764804,0,15.556349186104045,0,15.556349186104045,15,16.643316977093239,0,0,0,15.556349186104045,334,76.367532368147138,0,15.556349186104045,0,15.556349186104045,0,15.556349186104045,0,15.556349186104045,577,119.36498649101419,0,15.556349186104045,0,15.556349186104045,4,4.2426406871192848,4,5,0,15.556349186104045,0,15.556349186104045,0,15.556349186104045,74,34.481879299133332,55,26.832815729997478,0,15.556349186104045,0,15.556349186104045,40,21.095023109728988,59,26.90724809414742,48,30.805843601498726,0,15.556349186104045,0,15.556349186104045,0,15.556349186104045,4,12.529964086141668,242,60.811183182043088]
[null,"18 to 34 years:",0,15.556349186104045,0,15.556349186104045,0,15.556349186104045,1631,174.02586014727811,0,15.556349186104045,197,85.632937588290176,0,15.556349186104045,23,13.45362404707371,296,75.451971478550519,79,28.319604517012593,0,15.556349186104045,0,15.556349186104045,143,51.662365412357957,6,6.7082039324993694,5,7.2111025509279782,39,21.931712199461309,0,0,0,15.556349186104045,443,102.00490184299969,4,14.212670403551895,0,15.556349186104045,0,15.556349186104045,0,15.556349186104045,463,103.47946656221224,0,15.556349186104045,0,15.556349186104045,4,5.6568542494923806,4,5.6568542494923806,0,15.556349186104045,0,15.556349186104045,4,7.2111025509279782,68,35,41,17.204650534085253,0,15.556349186104045,0,15.556349186104045,45,19.209372712298546,60,23.430749027719962,134,46.669047558312137,0,15.556349186104045,0,15.556349186104045,0,15.556349186104045,15,15.231546211727817,411,83.486525858967212]
[null,"With a disability",0,15.556349186104045,0,15.556349186104045,0,15.556349186104045,243,96.208107766445551,0,15.556349186104045,1,11.401754250991379,0,15.556349186104045,0,15.556349186104045,13,13.601470508735444,1,11.180339887498949,0,15.556349186104045,0,15.556349186104045,25,21.587033144922902,0,15.556349186104045,1,11.401754250991379,6,13.601470508735444,0,0,0,15.556349186104045,50,41.593268686170845,4,14.212670403551895,0,15.556349186104045,0,15.556349186104045,0,15.556349186104045,63,46.690470119715009,0,15.556349186104045,0,15.556349186104045,0,15.556349186104045,0,15.556349186104045,0,15.556349186104045,0,15.556349186104045,0,15.556349186104045,3,11.704699910719626,12,10.295630140987001,0,15.556349186104045,0,15.556349186104045,6,5.8309518948453007,7,5.8309518948453007,8,14.212670403551895,0,15.556349186104045,0,15.556349186104045,0,15.556349186104045,0,15.556349186104045,40,30.594117081556711]
[null,"No disability",0,15.556349186104045,0,15.556349186104045,0,15.556349186104045,1388,174.80560631741764,0,15.556349186104045,196,85.632937588290176,0,15.556349186104045,23,13.45362404707371,283,75.451971478550519,78,27.586228448267445,0,15.556349186104045,0,15.556349186104045,118,48.795491595023407,6,6.7082039324993694,4,7.2111025509279782,33,21.2602916254693,0,0,0,15.556349186104045,393,100.60318086422517,0,15.556349186104045,0,15.556349186104045,0,15.556349186104045,0,15.556349186104045,400,103.47946656221224,0,15.556349186104045,0,15.556349186104045,4,5.6568542494923806,4,5.6568542494923806,0,15.556349186104045,0,15.556349186104045,4,7.2111025509279782,65,34.409301068170507,29,12.806248474865697,0,15.556349186104045,0,15.556349186104045,39,17.691806012954132,53,22.022715545545239,126,45.967379738244816,0,15.556349186104045,0,15.556349186104045,0,15.556349186104045,15,15.231546211727817,371,78.746428490440124]
[null,"35 to 64 years:",0,15.556349186104045,0,15.556349186104045,0,15.556349186104045,3621,264.20068130116545,12,10.295630140987001,378,90.520715861066847,0,15.556349186104045,158,35.468295701936398,1139,119.60351165413162,352,65.73431371817918,0,15.556349186104045,0,15.556349186104045,407,62.936475910238251,7,8.5440037453175304,6,8.6023252670426267,147,35.608987629529715,0,0,0,15.556349186104045,1281,107.48953437428223,4,14.212670403551895,0,15.556349186104045,0,15.556349186104045,0,15.556349186104045,1580,137.90576492663388,0,15.556349186104045,0,15.556349186104045,9,8.5440037453175304,8,7.6157731058639087,0,15.556349186104045,0,15.556349186104045,4,12.083045973594572,486,71.589105316381762,197,35.468295701936398,9,9.2195444572928871,0,15.556349186104045,170,31.622776601683793,226,41.231056256176608,267,53.814496188294839,0,15.556349186104045,0,15.556349186104045,0,15.556349186104045,29,15.556349186104045,965,110.39021695784459]
[null,"With a disability",0,15.556349186104045,0,15.556349186104045,0,15.556349186104045,745,152.30561381643159,0,15.556349186104045,85,58.180752831155424,0,15.556349186104045,46,24.839484696748443,167,49.193495504995376,64,27.459060435491963,0,15.556349186104045,0,15.556349186104045,62,32.557641192199412,5,6.7082039324993694,6,8.6023252670426267,21,11.401754250991379,0,0,0,15.556349186104045,151,58.258046654518033,4,14.212670403551895,0,15.556349186104045,0,15.556349186104045,0,15.556349186104045,298,95.482982777037293,0,15.556349186104045,0,15.556349186104045,0,15.556349186104045,0,15.556349186104045,0,15.556349186104045,0,15.556349186104045,3,12.529964086141668,64,26.248809496813376,11,8.6023252670426267,0,15.556349186104045,0,15.556349186104045,20,11.401754250991379,28,15,111,37.483329627982627,0,15.556349186104045,0,15.556349186104045,0,15.556349186104045,3,11.401754250991379,167,61.032778078668514]
[null,"No disability",0,15.556349186104045,0,15.556349186104045,0,15.556349186104045,2876,260.55517649818438,12,10.295630140987001,293,71.693793315739683,0,15.556349186104045,112,24.207436873820409,972,111.03603018840326,288,63.529520697074361,0,15.556349186104045,0,15.556349186104045,345,57.280013966478741,2,11.704699910719626,0,15.556349186104045,126,33.421549934136806,0,0,0,15.556349186104045,1130,111.75866856758807,0,15.556349186104045,0,15.556349186104045,0,15.556349186104045,0,15.556349186104045,1282,136.74063039199433,0,15.556349186104045,0,15.556349186104045,9,8.5440037453175304,8,7.6157731058639087,0,15.556349186104045,0,15.556349186104045,1,11.401754250991379,422,65.946948375190189,186,34.058772731852805,9,9.2195444572928871,0,15.556349186104045,150,29.206163733020468,198,40.459856648287818,156,40.496913462633174,0,15.556349186104045,0,15.556349186104045,0,15.556349186104045,26,15.556349186104045,798,92.956979296876895]
[null,"65 to 74 years:",0,15.556349186104045,0,15.556349186104045,0,15.556349186104045,750,97.616596949494195,0,15.556349186104045,162,41.231056256176608,0,15.556349186104045,45,19.104973174542799,388,83.234608186739251,109,29.154759474226502,0,15.556349186104045,0,15.556349186104045,154,31.89043743820395,0,15.556349186104045,0,15.556349186104045,61,22.203603311174518,0,0,0,15.556349186104045,203,62.481997407253232,0,15.556349186104045,0,15.556349186104045,0,15.556349186104045,0,15.556349186104045,376,77.833154889160184,0,15.556349186104045,0,15.556349186104045,0,15.556349186104045,0,15.556349186104045,0,15.556349186104045,0,15.556349186104045,0,15.556349186104045,159,34.655446902326915,69,18.439088914585774,0,15.556349186104045,0,15.556349186104045,41,14.422205101855956,61,17.691806012954132,171,53.009433122794285,0,15.556349186104045,0,15.556349186104045,0,15.556349186104045,14,12.165525060596439,179,52.478567053607705]
[null,"With a disability",0,15.556349186104045,0,15.556349186104045,0,15.556349186104045,137,53.075418038862395,0,15.556349186104045,24,15.811388300841896,0,15.556349186104045,14,10,119,49.819674828324601,15,8.9442719099991592,0,15.556349186104045,0,15.556349186104045,40,16.278820596099706,0,15.556349186104045,0,15.556349186104045,15,7.6157731058639087,0,0,0,15.556349186104045,69,41.880783182743848,0,15.556349186104045,0,15.556349186104045,0,15.556349186104045,0,15.556349186104045,113,62.008063991709982,0,15.556349186104045,0,15.556349186104045,0,15.556349186104045,0,15.556349186104045,0,15.556349186104045,0,15.556349186104045,0,15.556349186104045,41,20.248456731316587,8,7.0710678118654755,0,15.556349186104045,0,15.556349186104045,9,6.324555320336759,21,15,64,32.202484376209235,0,15.556349186104045,0,15.556349186104045,0,15.556349186104045,11,16.278820596099706,76,45.650848842053307]
[null,"No disability",0,15.556349186104045,0,15.556349186104045,0,15.556349186104045,613,91.60785992479029,0,15.556349186104045,138,38.288379438153292,0,15.556349186104045,31,16.278820596099706,269,75.716576784743779,94,29.681644159311659,0,15.556349186104045,0,15.556349186104045,114,29.832867780352597,0,15.556349186104045,0,15.556349186104045,46,20.615528128088304,0,0,0,15.556349186104045,134,56.612719418872643,0,15.556349186104045,0,15.556349186104045,0,15.556349186104045,0,15.556349186104045,263,63.890531379853151,0,15.556349186104045,0,15.556349186104045,0,15.556349186104045,0,15.556349186104045,0,15.556349186104045,0,15.556349186104045,0,15.556349186104045,118,32.015621187164243,61,17.029386365926403,0,15.556349186104045,0,15.556349186104045,32,13.601470508735444,40,16.401219466856727,107,41.617304093369626,0,15.556349186104045,0,15.556349186104045,0,15.556349186104045,3,4.4721359549995796,103,33.600595232822883]
[null,"75 years and over:",0,15.556349186104045,0,15.556349186104045,0,15.556349186104045,1046,120.88010589009261,5,13.038404810405298,40,18.439088914585774,0,15.556349186104045,36,16.401219466856727,119,36.069377593742864,55,21.633307652783937,0,15.556349186104045,0,15.556349186104045,91,25.612496949731394,0,15.556349186104045,0,15.556349186104045,34,20,0,0,0,15.556349186104045,270,71.700767080973407,0,15.556349186104045,0,15.556349186104045,0,15.556349186104045,0,15.556349186104045,172,65.76473218982953,0,15.556349186104045,0,15.556349186104045,0,15.556349186104045,0,15.556349186104045,0,15.556349186104045,0,15.556349186104045,0,15.556349186104045,80,28.600699292150182,58,17.029386365926403,0,15.556349186104045,0,15.556349186104045,47,15.620499351813308,49,17.691806012954132,66,29.681644159311659,0,15.556349186104045,0,15.556349186104045,0,15.556349186104045,0,15.556349186104045,157,54.561891462814962]
[null,"With a disability",0,15.556349186104045,0,15.556349186104045,0,15.556349186104045,555,122.20065466273084,5,13.038404810405298,20,14.7648230602334,0,15.556349186104045,29,14.866068747318506,39,22.803508501982758,20,11.313708498984761,0,15.556349186104045,0,15.556349186104045,57,21.2602916254693,0,15.556349186104045,0,15.556349186104045,26,16.401219466856727,0,0,0,15.556349186104045,194,73.498299300051841,0,15.556349186104045,0,15.556349186104045,0,15.556349186104045,0,15.556349186104045,66,45.967379738244816,0,15.556349186104045,0,15.556349186104045,0,15.556349186104045,0,15.556349186104045,0,15.556349186104045,0,15.556349186104045,0,15.556349186104045,48,22.472205054244231,22,10.63014581273465,0,15.556349186104045,0,15.556349186104045,27,12.806248474865697,23,11.313708498984761,36,24.596747752497688,0,15.556349186104045,0,15.556349186104045,0,15.556349186104045,0,15.556349186104045,115,53.009433122794285]
[null,"No disability",0,15.556349186104045,0,15.556349186104045,0,15.556349186104045,491,104.00480758118829,0,15.556349186104045,20,10.816653826391969,0,15.556349186104045,7,5.8309518948453007,80,31.144823004794873,35,18.788294228055936,0,15.556349186104045,0,15.556349186104045,34,16.970562748477139,0,15.556349186104045,0,15.556349186104045,8,9.8994949366116654,0,0,0,15.556349186104045,76,36.796738985948195,0,15.556349186104045,0,15.556349186104045,0,15.556349186104045,0,15.556349186104045,106,48.795491595023407,0,15.556349186104045,0,15.556349186104045,0,15.556349186104045,0,15.556349186104045,0,15.556349186104045,0,15.556349186104045,0,15.556349186104045,32,18.384776310850235,36,12.727922061357855,0,15.556349186104045,0,15.556349186104045,20,8.6023252670426267,26,13.601470508735444,30,16.124515496597098,0,15.556349186104045,0,15.556349186104045,0,15.556349186104045,0,15.556349186104045,42,21.931712199461309]

{"sheet":"ACS_Table_B18102","index":30,"n_rows":125,"n_cols":88,"rows_kept":125,"cut":false,"hidden":true,"merged":[]}
["B18102. SEX BY AGE BY HEARING DIFFICULTY\n\n"]
["Universe:  Civilian non-institutionalized population"]
["Data Set: 2015-2019 American Community Survey 5-Year Estimates"]
[]
[null,null,"Atkinson and Gilmanton Grant",null,"Bean's Grant",null,"Bean's Purchase",null,"Berlin",null,"Cambridge",null,"Carroll",null,"Chandler's Purchase",null,"Clarksville",null,"Colebrook",null,"Columbia",null,"Crawford's Purchase",null,"Cutt's Grant",null,"Dalton",null,"Dix's Grant",null,"Dixville",null,"Dummer",null,"Errol",null,"Erving's Location",null,"Gorham",null,"Greens Grant",null,"Hadley's Purchase",null,"Jefferson",null,"Kilkenny",null,"Lancaster",null,"Low and Burbank's Grant",null,"Martin's Location",null,"Milan",null,"Millsfield",null,"Northumberland",null,"Odell",null,"Pinkham's Grant",null,"Pittsburg",null,"Randolph",null,"Sargent's Purchase",null,"Second College Grant",null,"Shelburne",null,"Stark",null,"Stewartstown",null,"Stratford",null,"Success",null,"Thompson and Meserves Purchase",null,"Wentworth's Location",null,"Whitefield"]
[null," ","Estimate","Margin of Error","Estimate","Margin of Error","Estimate","Margin of Error","Estimate","Margin of Error","Estimate","Margin of Error","Estimate","Margin of Error","Estimate",null,"Estimate","Margin of Error","Estimate","Margin of Error","Estimate","Margin of Error","Estimate","Margin of Error","Estimate","Margin of Error","Estimate","Margin of Error","Estimate","Margin of Error","Estimate","Margin of Error","Estimate","Margin of Error","Estimate","Margin of Error","Estimate","Margin of Error","Estimate","Margin of Error","Estimate","Margin of Error","Estimate","Margin of Error","Estimate","Margin of Error","Estimate","Margin of Error","Estimate","Margin of Error","Estimate","Margin of Error","Estimate","Margin of Error","Estimate","Margin of Error","Estimate","Margin of Error","Estimate","Margin of Error","Estimate","Margin of Error","Estimate","Margin of Error","Estimate","Margin of Error","Estimate","Margin of Error","Estimate","Margin of Error","Estimate","Margin of Error","Estimate","Margin of Error","Estimate","Margin of Error","Estimate","Margin of Error","Estimate","Margin of Error","Estimate","Margin of Error","Estimate","Margin of Error","Estimate","Margin of Error","Estimate","Margin of Error"]
[null,"Total:",0,11,0,11,0,11,8384,242,0,11,772,141,0,11,324,88,1908,171,633,119,0,11,0,11,906,140,0,11,11,12,306,71,205,55,0,11,2623,17,13,10,0,11,850,129,0,11,3162,83,0,11,0,11,1332,107,8,12,2322,266,10,12,11,14,740,104,365,68,11,24,0,11,408,65,606,144,857,171,630,114,0,11,0,11,26,16,2202,215]
[null,"Male:",0,11,0,11,0,11,4054,207,0,11,452,93,0,11,176,51,925,109,335,71,0,11,0,11,432,77,0,11,9,10,171,48,109,35,0,11,1421,77,13,10,0,11,393,68,0,11,1562,135,0,11,0,11,710,73,4,6,1171,151,5,11,11,14,407,63,186,38,0,11,0,11,214,42,291,67,431,85,349,73,0,11,0,11,19,12,1065,158]
[null,"Under 5 years:",0,11,0,11,0,11,195,75,0,11,11,12,0,11,4,6,26,21,3,5,0,11,0,11,10,9,0,11,0,11,5,7,0,11,0,11,54,37,0,11,0,11,5,5,0,11,116,72,0,11,0,11,26,21,0,11,68,33,0,11,0,11,0,11,4,4,0,11,0,11,13,15,11,14,16,20,1,4,0,11,0,11,0,11,62,34]
[null,"With hearing difficulty",0,11,0,11,0,11,0,18,0,11,0,11,0,11,0,11,0,11,0,11,0,11,0,11,0,11,0,11,0,11,0,11,0,11,0,11,0,11,0,11,0,11,0,11,0,11,0,11,0,11,0,11,0,11,0,11,0,11,0,11,0,11,0,11,0,11,0,11,0,11,0,11,0,11,0,11,0,11,0,11,0,11,0,11,0,11]
[null,"With no hearing difficulty",0,11,0,11,0,11,195,75,0,11,11,12,0,11,4,6,26,21,3,5,0,11,0,11,10,9,0,11,0,11,5,7,0,11,0,11,54,37,0,11,0,11,5,5,0,11,116,72,0,11,0,11,26,21,0,11,68,33,0,11,0,11,0,11,4,4,0,11,0,11,13,15,11,14,16,20,1,4,0,11,0,11,0,11,62,34]
[null,"5 to 17  years:",0,11,0,11,0,11,544,118,0,11,79,71,0,11,19,13,146,63,29,15,0,11,0,11,47,25,0,11,2,4,37,34,18,18,0,11,211,67,0,11,0,11,57,21,0,11,199,73,0,11,0,11,85,34,0,11,214,67,0,11,0,11,40,24,4,4,0,11,0,11,18,14,33,23,47,29,74,28,0,11,0,11,0,11,161,70]
[null,"With hearing difficulty",0,11,0,11,0,11,0,18,0,11,0,11,0,11,6,9,0,11,4,6,0,11,0,11,0,11,0,11,0,11,0,11,0,11,0,11,0,11,0,11,0,11,0,11,0,11,0,11,0,11,0,11,0,11,0,11,0,11,0,11,0,11,0,11,0,11,0,11,0,11,5,8,0,11,0,11,0,11,0,11,0,11,0,11,0,11]
[null,"With no hearing difficulty",0,11,0,11,0,11,544,118,0,11,79,71,0,11,13,12,146,63,25,15,0,11,0,11,47,25,0,11,2,4,37,34,18,18,0,11,211,67,0,11,0,11,57,21,0,11,199,73,0,11,0,11,85,34,0,11,214,67,0,11,0,11,40,24,4,4,0,11,0,11,13,12,33,23,47,29,74,28,0,11,0,11,0,11,161,70]
[null,"18 to 34  years:",0,11,0,11,0,11,1002,175,0,11,98,65,0,11,34,16,91,43,58,32,0,11,0,11,102,42,0,11,5,6,20,11,0,11,0,11,181,71,5,8,0,11,66,34,0,11,334,79,0,11,0,11,144,48,0,11,199,77,5,11,7,8,35,21,29,16,0,11,0,11,15,12,51,25,39,30,39,25,0,11,0,11,3,4,157,68]
[null,"With hearing difficulty",0,11,0,11,0,11,101,90,0,11,0,11,0,11,0,11,0,11,0,11,0,11,0,11,0,11,0,11,0,11,0,11,0,11,0,11,0,11,0,11,0,11,0,11,0,11,0,11,0,11,0,11,25,34,0,11,8,14,0,11,0,11,0,11,0,11,0,11,0,11,0,11,0,11,3,4,14,21,0,11,0,11,0,11,0,11]
[null,"With no hearing difficulty",0,11,0,11,0,11,901,171,0,11,98,65,0,11,34,16,91,43,58,32,0,11,0,11,102,42,0,11,5,6,20,11,0,11,0,11,181,71,5,8,0,11,66,34,0,11,334,79,0,11,0,11,119,41,0,11,191,74,5,11,7,8,35,21,29,16,0,11,0,11,15,12,51,25,36,30,25,18,0,11,0,11,3,4,157,68]
[null,"35 to 64  years:",0,11,0,11,0,11,1624,139,0,11,157,36,0,11,69,29,396,64,157,46,0,11,0,11,214,44,0,11,0,11,50,13,52,17,0,11,648,71,8,10,0,11,163,38,0,11,636,100,0,11,0,11,302,33,4,6,501,80,0,11,4,8,184,44,83,22,0,11,0,11,88,24,114,31,168,45,173,41,0,11,0,11,4,4,342,62]
[null,"With hearing difficulty",0,11,0,11,0,11,122,82,0,11,11,7,0,11,4,4,27,19,26,19,0,11,0,11,21,18,0,11,0,11,5,5,6,6,0,11,23,25,0,11,0,11,8,13,0,11,62,45,0,11,0,11,9,6,0,11,45,29,0,11,0,11,31,26,6,6,0,11,0,11,4,4,20,13,29,22,10,11,0,11,0,11,0,11,15,15]
[null,"With no hearing difficulty",0,11,0,11,0,11,1502,153,0,11,146,36,0,11,65,29,369,62,131,41,0,11,0,11,193,45,0,11,0,11,45,13,46,16,0,11,625,73,8,10,0,11,155,35,0,11,574,83,0,11,0,11,293,33,4,6,456,74,0,11,4,8,153,42,77,22,0,11,0,11,84,23,94,29,139,48,163,39,0,11,0,11,4,4,327,61]
[null,"65 to 74  years:",0,11,0,11,0,11,436,94,0,11,76,27,0,11,40,19,169,46,49,16,0,11,0,11,41,22,0,11,2,6,36,16,18,14,0,11,175,58,0,11,0,11,83,27,0,11,129,50,0,11,0,11,119,28,0,11,119,39,0,11,0,11,127,36,49,16,0,11,0,11,52,20,52,22,123,42,31,12,0,11,0,11,4,4,220,54]
[null,"With hearing difficulty",0,11,0,11,0,11,19,22,0,11,23,17,0,11,9,6,21,29,10,7,0,11,0,11,0,11,0,11,0,11,8,6,0,11,0,11,34,28,0,11,0,11,24,14,0,11,9,13,0,11,0,11,25,19,0,11,50,27,0,11,0,11,19,11,2,3,0,11,0,11,21,16,4,5,41,29,3,4,0,11,0,11,4,4,64,48]
[null,"With no hearing difficulty",0,11,0,11,0,11,417,91,0,11,53,23,0,11,31,17,148,38,39,16,0,11,0,11,41,22,0,11,2,6,28,16,18,14,0,11,141,54,0,11,0,11,59,25,0,11,120,49,0,11,0,11,94,30,0,11,69,30,0,11,0,11,108,37,47,16,0,11,0,11,31,14,48,20,82,34,28,12,0,11,0,11,0,11,156,45]
[null,"75  years and Older:",0,11,0,11,0,11,253,65,0,11,31,15,0,11,10,9,97,31,39,17,0,11,0,11,18,16,0,11,0,11,23,12,21,13,0,11,152,58,0,11,0,11,19,11,0,11,148,57,0,11,0,11,34,14,0,11,70,32,0,11,0,11,21,11,17,9,0,11,0,11,28,18,30,14,38,14,31,17,0,11,0,11,8,8,123,43]
[null,"With hearing difficulty",0,11,0,11,0,11,134,57,0,11,16,13,0,11,2,3,65,27,13,8,0,11,0,11,2,4,0,11,0,11,4,4,9,10,0,11,14,16,0,11,0,11,12,11,0,11,40,32,0,11,0,11,20,10,0,11,33,19,0,11,0,11,3,5,0,11,0,11,0,11,11,12,12,7,7,7,10,9,0,11,0,11,5,7,34,19]
[null,"With no hearing difficulty",0,11,0,11,0,11,119,43,0,11,15,9,0,11,8,8,32,18,26,16,0,11,0,11,16,15,0,11,0,11,19,11,12,8,0,11,138,58,0,11,0,11,7,6,0,11,108,52,0,11,0,11,14,9,0,11,37,29,0,11,0,11,18,10,17,9,0,11,0,11,17,13,18,11,31,13,21,16,0,11,0,11,3,3,89,42]
[null,"Female:",0,11,0,11,0,11,4330,191,0,11,320,67,0,11,148,44,983,116,298,61,0,11,0,11,474,81,0,11,2,6,135,29,96,33,0,11,1202,78,0,11,0,11,457,75,0,11,1600,141,0,11,0,11,622,55,4,6,1151,148,5,11,0,11,333,53,179,40,11,24,0,11,194,34,315,84,426,101,281,61,0,11,0,11,7,6,1137,133]
[null,"Under 5 years:",0,11,0,11,0,11,206,68,0,11,18,17,0,11,2,4,29,22,4,6,0,11,0,11,23,20,0,11,0,11,4,5,0,11,0,11,0,11,0,11,0,11,37,23,0,11,34,52,0,11,0,11,15,10,0,11,111,48,0,11,0,11,0,11,12,12,0,11,0,11,4,6,29,23,16,20,13,18,0,11,0,11,0,11,82,46]
[null,"With hearing difficulty",0,11,0,11,0,11,0,18,0,11,0,11,0,11,0,11,0,11,0,11,0,11,0,11,0,11,0,11,0,11,0,11,0,11,0,11,0,11,0,11,0,11,0,11,0,11,0,11,0,11,0,11,0,11,0,11,0,11,0,11,0,11,0,11,0,11,0,11,0,11,0,11,0,11,0,11,0,11,0,11,0,11,0,11,0,11]
[null,"With no hearing difficulty",0,11,0,11,0,11,206,68,0,11,18,17,0,11,2,4,29,22,4,6,0,11,0,11,23,20,0,11,0,11,4,5,0,11,0,11,0,11,0,11,0,11,37,23,0,11,34,52,0,11,0,11,15,10,0,11,111,48,0,11,0,11,0,11,12,12,0,11,0,11,4,6,29,23,16,20,13,18,0,11,0,11,0,11,82,46]
[null,"5 to 17  years:",0,11,0,11,0,11,640,108,0,11,32,34,0,11,6,9,100,46,43,24,0,11,0,11,52,31,0,11,0,11,17,10,9,13,0,11,143,48,0,11,0,11,23,16,0,11,319,63,0,11,0,11,94,25,0,11,129,63,0,11,0,11,17,14,3,4,0,11,0,11,18,15,72,42,61,47,24,17,0,11,0,11,0,11,99,50]
[null,"With hearing difficulty",0,11,0,11,0,11,0,18,0,11,0,11,0,11,0,11,0,11,0,11,0,11,0,11,0,11,0,11,0,11,0,11,0,11,0,11,0,11,0,11,0,11,0,11,0,11,16,23,0,11,0,11,3,4,0,11,0,11,0,11,0,11,0,11,0,11,0,11,0,11,0,11,0,11,0,11,0,11,0,11,0,11,0,11,0,11]
[null,"With no hearing difficulty",0,11,0,11,0,11,640,108,0,11,32,34,0,11,6,9,100,46,43,24,0,11,0,11,52,31,0,11,0,11,17,10,9,13,0,11,143,48,0,11,0,11,23,16,0,11,303,62,0,11,0,11,91,25,0,11,129,63,0,11,0,11,17,14,3,4,0,11,0,11,18,15,72,42,61,47,24,17,0,11,0,11,0,11,99,50]
[null,"18 to 34  years:",0,11,0,11,0,11,819,134,0,11,37,26,0,11,20,12,183,57,33,20,0,11,0,11,54,29,0,11,0,11,22,10,0,11,0,11,133,52,0,11,0,11,58,27,0,11,244,73,0,11,0,11,124,45,0,11,248,69,5,11,0,11,54,31,23,11,11,24,0,11,20,10,18,16,67,41,37,25,0,11,0,11,0,11,97,43]
[null,"With hearing difficulty",0,11,0,11,0,11,0,18,0,11,0,11,0,11,4,7,0,11,0,11,0,11,0,11,0,11,0,11,0,11,0,11,0,11,0,11,0,11,0,11,0,11,0,11,0,11,38,44,0,11,0,11,0,11,0,11,0,11,0,11,0,11,0,11,0,11,0,11,0,11,0,11,0,11,14,20,0,11,0,11,0,11,0,11,0,11]
[null,"With no hearing difficulty",0,11,0,11,0,11,819,134,0,11,37,26,0,11,16,11,183,57,33,20,0,11,0,11,54,29,0,11,0,11,22,10,0,11,0,11,133,52,0,11,0,11,58,27,0,11,206,62,0,11,0,11,124,45,0,11,248,69,5,11,0,11,54,31,23,11,11,24,0,11,20,10,18,16,53,31,37,25,0,11,0,11,0,11,97,43]
[null,"35 to 64  years:",0,11,0,11,0,11,1635,141,0,11,146,35,0,11,97,35,443,65,150,37,0,11,0,11,242,45,0,11,2,6,64,18,60,22,0,11,593,67,0,11,0,11,241,39,0,11,622,95,0,11,0,11,290,39,0,11,445,63,0,11,0,11,157,37,82,23,0,11,0,11,102,25,121,31,125,46,139,35,0,11,0,11,0,11,532,84]
[null,"With hearing difficulty",0,11,0,11,0,11,8,14,0,11,0,11,0,11,0,11,0,11,10,12,0,11,0,11,0,11,0,11,1,4,1,2,0,11,0,11,32,24,0,11,0,11,10,8,0,11,8,14,0,11,0,11,7,7,0,11,11,12,0,11,0,11,3,4,2,4,0,11,0,11,3,3,5,5,14,18,5,8,0,11,0,11,0,11,10,10]
[null,"With no hearing difficulty",0,11,0,11,0,11,1627,142,0,11,146,35,0,11,97,35,443,65,140,35,0,11,0,11,242,45,0,11,1,3,63,18,60,22,0,11,561,67,0,11,0,11,231,40,0,11,614,97,0,11,0,11,283,38,0,11,434,61,0,11,0,11,154,36,80,23,0,11,0,11,99,25,116,29,111,42,134,35,0,11,0,11,0,11,522,85]
[null,"65 to 74  years:",0,11,0,11,0,11,515,87,0,11,57,14,0,11,18,11,120,36,29,13,0,11,0,11,66,23,0,11,0,11,13,7,18,13,0,11,159,51,0,11,0,11,73,22,0,11,207,52,0,11,0,11,75,23,0,11,134,34,0,11,0,11,72,26,38,12,0,11,0,11,30,14,38,16,113,34,38,16,0,11,0,11,7,6,210,59]
[null,"With hearing difficulty",0,11,0,11,0,11,50,54,0,11,8,10,0,11,1,3,39,23,0,11,0,11,0,11,0,11,0,11,0,11,0,11,6,7,0,11,9,14,0,11,0,11,0,11,0,11,25,32,0,11,0,11,5,4,0,11,10,9,0,11,0,11,3,4,1,2,0,11,0,11,1,2,0,11,5,8,9,8,0,11,0,11,1,3,3,8]
[null,"With no hearing difficulty",0,11,0,11,0,11,465,98,0,11,49,14,0,11,17,11,81,34,29,13,0,11,0,11,66,23,0,11,0,11,13,7,12,10,0,11,150,51,0,11,0,11,73,22,0,11,182,48,0,11,0,11,70,22,0,11,124,34,0,11,0,11,69,26,37,12,0,11,0,11,29,14,38,16,108,33,29,15,0,11,0,11,6,6,207,56]
[null,"75  years and Older:",0,11,0,11,0,11,515,82,0,11,30,16,0,11,5,8,108,37,39,17,0,11,0,11,37,17,0,11,0,11,15,10,9,8,0,11,174,52,0,11,0,11,25,15,0,11,174,56,0,11,0,11,24,12,4,6,84,34,0,11,0,11,33,20,21,12,0,11,0,11,20,12,37,16,44,20,30,14,0,11,0,11,0,11,117,45]
[null,"With hearing difficulty",0,11,0,11,0,11,94,43,0,11,15,13,0,11,0,11,24,19,8,11,0,11,0,11,15,12,0,11,0,11,2,4,2,3,0,11,35,27,0,11,0,11,0,11,0,11,36,36,0,11,0,11,15,9,0,11,14,12,0,11,0,11,7,8,2,3,0,11,0,11,5,5,6,7,12,15,15,11,0,11,0,11,0,11,27,21]
[null,"With no hearing difficulty",0,11,0,11,0,11,421,73,0,11,15,10,0,11,5,8,84,33,31,16,0,11,0,11,22,13,0,11,0,11,13,9,7,8,0,11,139,47,0,11,0,11,25,15,0,11,138,52,0,11,0,11,9,7,4,6,70,34,0,11,0,11,26,18,19,11,0,11,0,11,15,10,31,16,32,14,15,9,0,11,0,11,0,11,90,45]
[]
[]
[{"$f":"A1& \"-Calculated\"","v":"B18102. SEX BY AGE BY HEARING DIFFICULTY\n\n-Calculated"}]
[{"$f":"A2","v":"Universe:  Civilian non-institutionalized population"}]
[{"$f":"A3","v":"Data Set: 2015-2019 American Community Survey 5-Year Estimates"}]
[]
[]
[null,null,"Atkinson and Gilmanton Grant",null,"Bean's Grant",null,"Bean's Purchase",null,"Berlin",null,"Cambridge",null,"Carroll",null,"Chandler's Purchase",null,"Clarksville",null,"Colebrook",null,"Columbia",null,"Crawford's Purchase",null,"Cutt's Grant",null,"Dalton",null,"Dix's Grant",null,"Dixville",null,"Dummer",null,"Errol",null,"Erving's Location",null,"Gorham",null,"Greens Grant",null,"Hadley's Purchase",null,"Jefferson",null,"Kilkenny",null,"Lancaster",null,"Low and Burbank's Grant",null,"Martin's Location",null,"Milan",null,"Millsfield",null,"Northumberland",null,"Odell",null,"Pinkham's Grant",null,"Pittsburg",null,"Randolph",null,"Sargent's Purchase",null,"Second College Grant",null,"Shelburne",null,"Stark",null,"Stewartstown",null,"Stratford",null,"Success",null,"Thompson and Meserves Purchase",null,"Wentworth's Location",null,"Whitefield"]
[null,null,"Estimate","Margin Of Error","Estimate","Margin Of Error","Estimate","Margin Of Error","Estimate","Margin Of Error","Estimate","Margin Of Error","Estimate","Margin Of Error","Estimate","Margin Of Error","Estimate","Margin Of Error","Estimate","Margin Of Error","Estimate","Margin Of Error","Estimate","Margin Of Error","Estimate","Margin Of Error","Estimate","Margin Of Error","Estimate","Margin Of Error","Estimate","Margin Of Error","Estimate","Margin Of Error","Estimate","Margin Of Error","Estimate","Margin Of Error","Estimate","Margin Of Error","Estimate","Margin Of Error","Estimate","Margin Of Error","Estimate","Margin Of Error","Estimate","Margin Of Error","Estimate","Margin Of Error","Estimate","Margin Of Error","Estimate","Margin Of Error","Estimate","Margin Of Error","Estimate","Margin Of Error","Estimate","Margin Of Error","Estimate","Margin Of Error","Estimate","Margin Of Error","Estimate","Margin Of Error","Estimate","Margin Of Error","Estimate","Margin Of Error","Estimate","Margin Of Error","Estimate","Margin Of Error","Estimate","Margin Of Error","Estimate","Margin Of Error","Estimate","Margin Of Error","Estimate","Margin Of Error","Estimate","Margin Of Error","Estimate","Margin Of Error","Estimate","Margin Of Error"]
[null,"Total",{"$f":"C7","v":0},11,0,11,0,11,8384,242,0,11,772,141,0,11,324,88,1908,171,633,119,0,11,{"$f":"Y7","v":0},11,906,140,0,11,11,12,306,71,205,55,0,11,2623,17,13,10,0,11,850,129,0,11,3162,83,0,11,0,11,1332,107,8,12,2322,266,10,12,11,14,740,104,365,68,11,24,0,11,408,65,606,144,857,171,630,114,0,11,0,11,26,16,2202,215]
[null,"Under 5 years:",{"$f":"C28+C9","v":0},{"$f":"SQRT((D28^2)+(D9^2))","v":15.556349186104045},{"$f":"E28+E9","v":0},{"$f":"SQRT((F28^2)+(F9^2))","v":15.556349186104045},{"$f":"G28+G9","v":0},{"$f":"SQRT((H28^2)+(H9^2))","v":15.556349186104045},{"$f":"I28+I9","v":401},{"$f":"SQRT((J28^2)+(J9^2))","v":101.23734488813898},{"$f":"K28+K9","v":0},{"$f":"SQRT((L28^2)+(L9^2))","v":15.556349186104045},{"$f":"M28+M9","v":29},{"$f":"SQRT((N28^2)+(N9^2))","v":20.808652046684813},{"$f":"O28+O9","v":0},{"$f":"SQRT((P28^2)+(P9^2))","v":15.556349186104045},{"$f":"Q28+Q9","v":6},{"$f":"SQRT((R28^2)+(R9^2))","v":7.2111025509279782},{"$f":"S28+S9","v":55},{"$f":"SQRT((T28^2)+(T9^2))","v":30.413812651491099},{"$f":"U28+U9","v":7},{"$f":"SQRT((V28^2)+(V9^2))","v":7.810249675906654},{"$f":"W28+W9","v":0},{"$f":"SQRT((X28^2)+(X9^2))","v":15.556349186104045},{"$f":"Y28+Y9","v":0},{"$f":"SQRT((Z28^2)+(Z9^2))","v":15.556349186104045},{"$f":"AA28+AA9","v":33},{"$f":"SQRT((AB28^2)+(AB9^2))","v":21.931712199461309},{"$f":"AC28+AC9","v":0},{"$f":"SQRT((AD28^2)+(AD9^2))","v":15.556349186104045},{"$f":"AE28+AE9","v":0},{"$f":"SQRT((AF28^2)+(AF9^2))","v":15.556349186104045},{"$f":"AG28+AG9","v":9},{"$f":"SQRT((AH28^2)+(AH9^2))","v":8.6023252670426267},{"$f":"AI28+AI9","v":0},{"$f":"SQRT((AJ28^2)+(AJ9^2))","v":15.556349186104045},{"$f":"AK28+AK9","v":0},{"$f":"SQRT((AL28^2)+(AL9^2))","v":15.556349186104045},{"$f":"AM28+AM9","v":54},{"$f":"SQRT((AN28^2)+(AN9^2))","v":38.600518131237564},{"$f":"AO28+AO9","v":0},{"$f":"SQRT((AP28^2)+(AP9^2))","v":15.556349186104045},{"$f":"AQ28+AQ9","v":0},{"$f":"SQRT((AR28^2)+(AR9^2))","v":15.556349186104045},{"$f":"AS28+AS9","v":42},{"$f":"SQRT((AT28^2)+(AT9^2))","v":23.53720459187964},{"$f":"AU28+AU9","v":0},{"$f":"SQRT((AV28^2)+(AV9^2))","v":15.556349186104045},{"$f":"AW28+AW9","v":150},{"$f":"SQRT((AX28^2)+(AX9^2))","v":88.814413244698073},{"$f":"AY28+AY9","v":0},{"$f":"SQRT((AZ28^2)+(AZ9^2))","v":15.556349186104045},{"$f":"BA28+BA9","v":0},{"$f":"SQRT((BB28^2)+(BB9^2))","v":15.556349186104045},{"$f":"BC28+BC9","v":41},{"$f":"SQRT((BD28^2)+(BD9^2))","v":23.259406699226016},{"$f":"BE28+BE9","v":0},{"$f":"SQRT((BF28^2)+(BF9^2))","v":15.556349186104045},{"$f":"BG28+BG9","v":179},{"$f":"SQRT((BH28^2)+(BH9^2))","v":58.249463516842795},{"$f":"BI28+BI9","v":0},{"$f":"SQRT((BJ28^2)+(BJ9^2))","v":15.556349186104045},{"$f":"BK28+BK9","v":0},{"$f":"SQRT((BL28^2)+(BL9^2))","v":15.556349186104045},{"$f":"BM28+BM9","v":0},{"$f":"SQRT((BN28^2)+(BN9^2))","v":15.556349186104045},{"$f":"BO28+BO9","v":16},{"$f":"SQRT((BP28^2)+(BP9^2))","v":12.649110640673518},{"$f":"BQ28+BQ9","v":0},{"$f":"SQRT((BR28^2)+(BR9^2))","v":15.556349186104045},{"$f":"BS28+BS9","v":0},{"$f":"SQRT((BT28^2)+(BT9^2))","v":15.556349186104045},{"$f":"BU28+BU9","v":17},{"$f":"SQRT((BV28^2)+(BV9^2))","v":16.15549442140351},{"$f":"BW28+BW9","v":40},{"$f":"SQRT((BX28^2)+(BX9^2))","v":26.92582403567252},{"$f":"BY28+BY9","v":32},{"$f":"SQRT((BZ28^2)+(BZ9^2))","v":28.284271247461902},{"$f":"CA28+CA9","v":14},{"$f":"SQRT((CB28^2)+(CB9^2))","v":18.439088914585774},{"$f":"CC28+CC9","v":0},{"$f":"SQRT((CD28^2)+(CD9^2))","v":15.556349186104045},{"$f":"CE28+CE9","v":0},{"$f":"SQRT((CF28^2)+(CF9^2))","v":15.556349186104045},{"$f":"CG28+CG9","v":0},{"$f":"SQRT((CH28^2)+(CH9^2))","v":15.556349186104045},{"$f":"CI28+CI9","v":144},{"$f":"SQRT((CJ28^2)+(CJ9^2))","v":57.201398584300364}]
[null,"With hearing difficulty",{"$f":"C29+C10","v":0},{"$f":"SQRT((D29^2)+(D10^2))","v":15.556349186104045},{"$f":"E29+E10","v":0},{"$f":"SQRT((F29^2)+(F10^2))","v":15.556349186104045},{"$f":"G29+G10","v":0},{"$f":"SQRT((H29^2)+(H10^2))","v":15.556349186104045},{"$f":"I29+I10","v":0},{"$f":"SQRT((J29^2)+(J10^2))","v":25.45584412271571},{"$f":"K29+K10","v":0},{"$f":"SQRT((L29^2)+(L10^2))","v":15.556349186104045},{"$f":"M29+M10","v":0},{"$f":"SQRT((N29^2)+(N10^2))","v":15.556349186104045},{"$f":"O29+O10","v":0},{"$f":"SQRT((P29^2)+(P10^2))","v":15.556349186104045},{"$f":"Q29+Q10","v":0},{"$f":"SQRT((R29^2)+(R10^2))","v":15.556349186104045},{"$f":"S29+S10","v":0},{"$f":"SQRT((T29^2)+(T10^2))","v":15.556349186104045},{"$f":"U29+U10","v":0},{"$f":"SQRT((V29^2)+(V10^2))","v":15.556349186104045},0,15.556349186104045,0,{"$f":"SQRT((Z29^2)+(Z10^2))","v":15.556349186104045},0,{"$f":"SQRT((AB29^2)+(AB10^2))","v":15.556349186104045},0,{"$f":"SQRT((AD29^2)+(AD10^2))","v":15.556349186104045},0,{"$f":"SQRT((AF29^2)+(AF10^2))","v":15.556349186104045},0,{"$f":"SQRT((AH29^2)+(AH10^2))","v":15.556349186104045},0,{"$f":"SQRT((AJ29^2)+(AJ10^2))","v":15.556349186104045},0,{"$f":"SQRT((AL29^2)+(AL10^2))","v":15.556349186104045},0,{"$f":"SQRT((AN29^2)+(AN10^2))","v":15.556349186104045},0,{"$f":"SQRT((AP29^2)+(AP10^2))","v":15.556349186104045},0,{"$f":"SQRT((AR29^2)+(AR10^2))","v":15.556349186104045},0,{"$f":"SQRT((AT29^2)+(AT10^2))","v":15.556349186104045},0,{"$f":"SQRT((AV29^2)+(AV10^2))","v":15.556349186104045},0,{"$f":"SQRT((AX29^2)+(AX10^2))","v":15.556349186104045},0,{"$f":"SQRT((AZ29^2)+(AZ10^2))","v":15.556349186104045},0,{"$f":"SQRT((BB29^2)+(BB10^2))","v":15.556349186104045},0,{"$f":"SQRT((BD29^2)+(BD10^2))","v":15.556349186104045},0,{"$f":"SQRT((BF29^2)+(BF10^2))","v":15.556349186104045},0,{"$f":"SQRT((BH29^2)+(BH10^2))","v":15.556349186104045},0,{"$f":"SQRT((BJ29^2)+(BJ10^2))","v":15.556349186104045},0,{"$f":"SQRT((BL29^2)+(BL10^2))","v":15.556349186104045},0,{"$f":"SQRT((BN29^2)+(BN10^2))","v":15.556349186104045},0,{"$f":"SQRT((BP29^2)+(BP10^2))","v":15.556349186104045},0,{"$f":"SQRT((BR29^2)+(BR10^2))","v":15.556349186104045},0,{"$f":"SQRT((BT29^2)+(BT10^2))","v":15.556349186104045},0,{"$f":"SQRT((BV29^2)+(BV10^2))","v":15.556349186104045},0,{"$f":"SQRT((BX29^2)+(BX10^2))","v":15.556349186104045},0,{"$f":"SQRT((BZ29^2)+(BZ10^2))","v":15.556349186104045},0,{"$f":"SQRT((CB29^2)+(CB10^2))","v":15.556349186104045},0,{"$f":"SQRT((CD29^2)+(CD10^2))","v":15.556349186104045},0,{"$f":"SQRT((CF29^2)+(CF10^2))","v":15.556349186104045},0,{"$f":"SQRT((CH29^2)+(CH10^2))","v":15.556349186104045},0,{"$f":"SQRT((CJ29^2)+(CJ10^2))","v":15.556349186104045}]
[null,"With no hearing difficulty",0,15.556349186104045,0,15.556349186104045,0,15.556349186104045,401,101.23734488813898,0,15.556349186104045,29,20.808652046684813,0,15.556349186104045,6,7.2111025509279782,55,30.413812651491099,7,7.810249675906654,0,15.556349186104045,0,{"$f":"SQRT((Z30^2)+(Z11^2))","v":15.556349186104045},33,21.931712199461309,0,15.556349186104045,0,15.556349186104045,9,8.6023252670426267,0,15.556349186104045,0,15.556349186104045,54,38.600518131237564,0,15.556349186104045,0,15.556349186104045,42,23.53720459187964,0,15.556349186104045,150,88.814413244698073,0,15.556349186104045,0,15.556349186104045,41,23.259406699226016,0,15.556349186104045,179,58.249463516842795,0,15.556349186104045,0,15.556349186104045,0,15.556349186104045,16,12.649110640673518,0,15.556349186104045,0,15.556349186104045,17,16.15549442140351,40,26.92582403567252,32,28.284271247461902,14,18.439088914585774,0,15.556349186104045,0,15.556349186104045,0,15.556349186104045,144,57.201398584300364]
[null,"5 to 17 years:",0,15.556349186104045,0,15.556349186104045,0,15.556349186104045,1184,159.96249560443849,0,15.556349186104045,111,78.721026416072604,0,15.556349186104045,25,15.811388300841896,246,78.006409993025571,72,28.301943396169811,0,15.556349186104045,0,15.556349186104045,99,39.824615503479755,0,15.556349186104045,2,11.704699910719626,54,35.440090293338699,27,22.203603311174518,0,15.556349186104045,354,82.419657849326214,0,15.556349186104045,0,15.556349186104045,80,26.40075756488817,0,15.556349186104045,518,96.426137535421375,0,15.556349186104045,0,15.556349186104045,179,42.201895692018383,0,15.556349186104045,343,91.967385523347346,0,15.556349186104045,0,15.556349186104045,57,27.784887978899608,7,5.6568542494923806,0,15.556349186104045,0,15.556349186104045,36,20.518284528683193,105,47.885279575251516,108,55.226805085936306,98,32.756678708318397,0,15.556349186104045,0,15.556349186104045,0,15.556349186104045,260,86.023252670426274]
[null,"With hearing difficulty",0,15.556349186104045,0,15.556349186104045,0,15.556349186104045,0,25.45584412271571,0,15.556349186104045,0,15.556349186104045,0,15.556349186104045,6,14.212670403551895,0,15.556349186104045,4,12.529964086141668,0,15.556349186104045,0,15.556349186104045,0,15.556349186104045,0,15.556349186104045,0,15.556349186104045,0,15.556349186104045,0,15.556349186104045,0,15.556349186104045,0,15.556349186104045,0,15.556349186104045,0,15.556349186104045,0,15.556349186104045,0,15.556349186104045,16,25.495097567963924,0,15.556349186104045,0,15.556349186104045,3,11.704699910719626,0,15.556349186104045,0,15.556349186104045,0,15.556349186104045,0,15.556349186104045,0,15.556349186104045,0,15.556349186104045,0,15.556349186104045,0,15.556349186104045,5,13.601470508735444,0,15.556349186104045,0,15.556349186104045,0,15.556349186104045,0,15.556349186104045,0,15.556349186104045,0,15.556349186104045,0,15.556349186104045]
[null,"With no hearing difficulty",0,15.556349186104045,0,15.556349186104045,0,15.556349186104045,1184,159.96249560443849,0,15.556349186104045,111,78.721026416072604,0,15.556349186104045,19,15,246,78.006409993025571,68,28.301943396169811,0,15.556349186104045,0,15.556349186104045,99,39.824615503479755,0,15.556349186104045,2,11.704699910719626,54,35.440090293338699,27,22.203603311174518,0,15.556349186104045,354,82.419657849326214,0,15.556349186104045,0,15.556349186104045,80,26.40075756488817,0,15.556349186104045,502,95.775779819325933,0,15.556349186104045,0,15.556349186104045,176,42.201895692018383,0,15.556349186104045,343,91.967385523347346,0,15.556349186104045,0,15.556349186104045,57,27.784887978899608,7,5.6568542494923806,0,15.556349186104045,0,15.556349186104045,31,19.209372712298546,105,47.885279575251516,108,55.226805085936306,98,32.756678708318397,0,15.556349186104045,0,15.556349186104045,0,15.556349186104045,260,86.023252670426274]
[null,"18 to 34 years:",0,15.556349186104045,0,15.556349186104045,0,15.556349186104045,1821,220.41097976280582,0,15.556349186104045,135,70.007142492748557,0,15.556349186104045,54,20,274,71.400280111495363,91,37.735924528226413,0,15.556349186104045,0,15.556349186104045,156,51.039200620699383,0,15.556349186104045,5,12.529964086141668,42,14.866068747318506,0,15.556349186104045,0,15.556349186104045,314,88.0056816347672,5,13.601470508735444,0,15.556349186104045,124,43.416586692184822,0,15.556349186104045,578,107.56393447619885,0,15.556349186104045,0,15.556349186104045,268,65.79513659838392,0,15.556349186104045,447,103.39245620450265,10,15.556349186104045,7,13.601470508735444,89,37.443290453698111,52,19.416487838947599,11,26.40075756488817,0,15.556349186104045,35,15.620499351813308,69,29.681644159311659,106,50.803543183522152,76,35.355339059327378,0,15.556349186104045,0,15.556349186104045,3,11.704699910719626,254,80.454956342042721]
[null,"With hearing difficulty",0,15.556349186104045,0,15.556349186104045,0,15.556349186104045,101,91.782351244670124,0,15.556349186104045,0,15.556349186104045,0,15.556349186104045,4,13.038404810405298,0,15.556349186104045,0,15.556349186104045,0,15.556349186104045,0,15.556349186104045,0,15.556349186104045,0,15.556349186104045,0,15.556349186104045,0,15.556349186104045,0,15.556349186104045,0,15.556349186104045,0,15.556349186104045,0,15.556349186104045,0,15.556349186104045,0,15.556349186104045,0,15.556349186104045,38,45.354161881794269,0,15.556349186104045,0,15.556349186104045,25,35.735136770411273,0,15.556349186104045,8,17.804493814764857,0,15.556349186104045,0,15.556349186104045,0,15.556349186104045,0,15.556349186104045,0,15.556349186104045,0,15.556349186104045,0,15.556349186104045,0,15.556349186104045,17,20.396078054371138,14,23.706539182259394,0,15.556349186104045,0,15.556349186104045,0,15.556349186104045,0,15.556349186104045]
[null,"With no hearing difficulty",0,15.556349186104045,0,15.556349186104045,0,15.556349186104045,1720,217.24870540465827,0,15.556349186104045,135,70.007142492748557,0,15.556349186104045,50,19.416487838947599,274,71.400280111495363,91,37.735924528226413,0,15.556349186104045,0,15.556349186104045,156,51.039200620699383,0,15.556349186104045,5,12.529964086141668,42,14.866068747318506,0,15.556349186104045,0,15.556349186104045,314,88.0056816347672,5,13.601470508735444,0,15.556349186104045,124,43.416586692184822,0,15.556349186104045,540,100.42410069301094,0,15.556349186104045,0,15.556349186104045,243,60.876925020897694,0,15.556349186104045,439,101.17806086301516,10,15.556349186104045,7,13.601470508735444,89,37.443290453698111,52,19.416487838947599,11,26.40075756488817,0,15.556349186104045,35,15.620499351813308,69,29.681644159311659,89,43.139309220245984,62,30.805843601498726,0,15.556349186104045,0,15.556349186104045,3,11.704699910719626,254,80.454956342042721]
[null,"35 to 64 years:",0,15.556349186104045,0,15.556349186104045,0,15.556349186104045,3259,197.99494943053472,0,15.556349186104045,303,50.209560842532767,0,15.556349186104045,166,45.453272709454048,839,91.219515455849688,307,59.033888572581766,0,15.556349186104045,0,15.556349186104045,456,62.936475910238251,0,15.556349186104045,2,12.529964086141668,114,22.203603311174518,112,27.802877548915689,0,15.556349186104045,1241,97.621718894926246,8,14.866068747318506,0,15.556349186104045,404,54.451813560247928,0,15.556349186104045,1258,137.93114224133723,0,15.556349186104045,0,15.556349186104045,592,51.088159097779204,4,12.529964086141668,946,101.82828683622247,0,15.556349186104045,4,13.601470508735444,341,57.489129407219238,165,31.827660925679098,0,15.556349186104045,0,15.556349186104045,190,34.655446902326915,235,43.840620433565945,293,64.350602172784676,312,53.907327887774215,0,15.556349186104045,0,15.556349186104045,4,11.704699910719626,874,{"$f":"SQRT((CJ37^2)+(CJ18^2))","v":104.4030650891055}]
[null,"With hearing difficulty",0,15.556349186104045,0,15.556349186104045,0,15.556349186104045,130,83.186537372341689,0,15.556349186104045,11,13.038404810405298,0,15.556349186104045,4,11.704699910719626,27,21.95449840010015,36,22.472205054244231,0,15.556349186104045,0,{"$f":"SQRT((Z38^2)+(Z19^2))","v":15.556349186104045},21,{"$f":"SQRT((AB38^2)+(AB19^2))","v":21.095023109728988},0,{"$f":"SQRT((AD38^2)+(AD19^2))","v":15.556349186104045},1,{"$f":"SQRT((AF38^2)+(AF19^2))","v":11.704699910719626},6,{"$f":"SQRT((AH38^2)+(AH19^2))","v":5.3851648071345037},6,{"$f":"SQRT((AJ38^2)+(AJ19^2))","v":12.529964086141668},0,{"$f":"SQRT((AL38^2)+(AL19^2))","v":15.556349186104045},55,{"$f":"SQRT((AN38^2)+(AN19^2))","v":34.655446902326915},0,{"$f":"SQRT((AP38^2)+(AP19^2))","v":15.556349186104045},0,{"$f":"SQRT((AR38^2)+(AR19^2))","v":15.556349186104045},18,{"$f":"SQRT((AT38^2)+(AT19^2))","v":15.264337522473747},0,{"$f":"SQRT((AV38^2)+(AV19^2))","v":15.556349186104045},70,{"$f":"SQRT((AX38^2)+(AX19^2))","v":47.127486671792717},0,{"$f":"SQRT((AZ38^2)+(AZ19^2))","v":15.556349186104045},0,{"$f":"SQRT((BB38^2)+(BB19^2))","v":15.556349186104045},16,{"$f":"SQRT((BD38^2)+(BD19^2))","v":9.2195444572928871},0,{"$f":"SQRT((BF38^2)+(BF19^2))","v":15.556349186104045},56,{"$f":"SQRT((BH38^2)+(BH19^2))","v":31.384709652950431},0,{"$f":"SQRT((BJ38^2)+(BJ19^2))","v":15.556349186104045},0,{"$f":"SQRT((BL38^2)+(BL19^2))","v":15.556349186104045},34,{"$f":"SQRT((BN38^2)+(BN19^2))","v":26.305892875931811},8,{"$f":"SQRT((BP38^2)+(BP19^2))","v":7.2111025509279782},0,{"$f":"SQRT((BR38^2)+(BR19^2))","v":15.556349186104045},0,{"$f":"SQRT((BT38^2)+(BT19^2))","v":15.556349186104045},7,{"$f":"SQRT((BV38^2)+(BV19^2))","v":5},25,{"$f":"SQRT((BX38^2)+(BX19^2))","v":13.928388277184119},43,{"$f":"SQRT((BZ38^2)+(BZ19^2))","v":28.42534080710379},15,{"$f":"SQRT((CB38^2)+(CB19^2))","v":13.601470508735444},0,{"$f":"SQRT((CD38^2)+(CD19^2))","v":15.556349186104045},0,{"$f":"SQRT((CF38^2)+(CF19^2))","v":15.556349186104045},0,{"$f":"SQRT((CH38^2)+(CH19^2))","v":15.556349186104045},25,18.027756377319946]
[null,"With no hearing difficulty",0,15.556349186104045,0,15.556349186104045,0,15.556349186104045,3129,208.7414668914636,0,15.556349186104045,292,50.209560842532767,0,15.556349186104045,162,45.453272709454048,812,89.827612681179502,271,53.907327887774215,0,15.556349186104045,0,15.556349186104045,435,63.63961030678928,0,15.556349186104045,1,11.401754250991379,108,22.203603311174518,106,27.202941017470888,0,15.556349186104045,1186,99.085821387320593,8,14.866068747318506,0,15.556349186104045,386,53.150729063673246,0,15.556349186104045,1188,127.66362050325849,0,15.556349186104045,0,15.556349186104045,576,50.328918128646478,4,12.529964086141668,890,95.900990610107883,0,15.556349186104045,4,13.601470508735444,307,55.317266743757322,157,31.827660925679098,0,15.556349186104045,0,15.556349186104045,183,33.97057550292606,210,41.012193308819754,250,63.7808748764079,297,52.40229002629561,0,15.556349186104045,0,15.556349186104045,4,11.704699910719626,849,104.62313319720452]
[null,"65 to 74 years:",0,15.556349186104045,0,15.556349186104045,0,15.556349186104045,951,128.08200498118384,0,15.556349186104045,133,30.413812651491099,0,15.556349186104045,58,21.95449840010015,289,58.412327466040935,78,20.615528128088304,0,15.556349186104045,0,15.556349186104045,107,31.827660925679098,0,15.556349186104045,2,12.529964086141668,49,17.464249196572979,36,19.104973174542799,0,15.556349186104045,334,77.233412458598508,0,15.556349186104045,0,15.556349186104045,156,34.828149534535996,0,15.556349186104045,336,72.138755187485728,0,15.556349186104045,0,15.556349186104045,194,36.235341863986875,0,15.556349186104045,253,51.739733281106119,0,15.556349186104045,0,15.556349186104045,199,44.407206622349037,87,20,0,15.556349186104045,0,15.556349186104045,82,24.413111231467404,90,27.202941017470888,236,54.037024344425184,69,20,0,15.556349186104045,0,15.556349186104045,11,7.2111025509279782,430,79.981247802219244]
[null,"With hearing difficulty",0,15.556349186104045,0,15.556349186104045,0,15.556349186104045,69,58.309518948453004,0,15.556349186104045,31,19.723082923316021,0,15.556349186104045,10,6.7082039324993694,60,37.013511046643494,10,13.038404810405298,0,15.556349186104045,0,15.556349186104045,0,15.556349186104045,0,15.556349186104045,0,15.556349186104045,8,12.529964086141668,6,13.038404810405298,0,15.556349186104045,43,31.304951684997057,0,15.556349186104045,0,15.556349186104045,24,17.804493814764857,0,15.556349186104045,34,34.539832078341085,0,15.556349186104045,0,15.556349186104045,30,19.416487838947599,0,15.556349186104045,60,28.460498941515414,0,15.556349186104045,0,15.556349186104045,22,11.704699910719626,3,3.6055512754639891,0,15.556349186104045,0,15.556349186104045,22,16.124515496597098,4,12.083045973594572,46,30.083217912982647,12,8.9442719099991592,0,15.556349186104045,0,15.556349186104045,5,5,67,48.662100242385755]
[null,"With no hearing difficulty",0,15.556349186104045,0,15.556349186104045,0,15.556349186104045,882,133.73481222179961,0,15.556349186104045,102,26.92582403567252,0,15.556349186104045,48,20.248456731316587,229,50.990195135927848,68,20.615528128088304,0,15.556349186104045,0,15.556349186104045,107,31.827660925679098,0,15.556349186104045,2,12.529964086141668,41,17.464249196572979,30,17.204650534085253,0,15.556349186104045,291,74.276510418839678,0,15.556349186104045,0,15.556349186104045,132,33.301651610693426,0,15.556349186104045,302,68.593002558570063,0,15.556349186104045,0,15.556349186104045,164,37.20215047547655,0,15.556349186104045,193,45.343136195018538,0,15.556349186104045,0,15.556349186104045,177,45.221676218380054,84,20,0,15.556349186104045,0,15.556349186104045,60,19.798989873223331,86,25.612496949731394,190,47.381430961928537,57,19.209372712298546,0,15.556349186104045,0,15.556349186104045,6,12.529964086141668,363,71.840100222647237]
[null,"75 years and over:",0,15.556349186104045,0,15.556349186104045,0,15.556349186104045,768,104.63746938836012,0,15.556349186104045,61,21.931712199461309,0,15.556349186104045,15,12.041594578792296,205,48.270073544588683,78,24.041630560342615,0,15.556349186104045,0,15.556349186104045,55,23.345235059857504,0,15.556349186104045,0,15.556349186104045,38,15.620499351813308,30,15.264337522473747,0,15.556349186104045,326,77.89736837660179,0,15.556349186104045,0,15.556349186104045,44,18.601075237738275,0,15.556349186104045,322,79.906195003891909,0,15.556349186104045,0,15.556349186104045,58,18.439088914585774,4,12.529964086141668,154,46.690470119715009,0,15.556349186104045,0,15.556349186104045,54,22.825424421026653,38,15,0,15.556349186104045,0,15.556349186104045,48,21.633307652783937,67,21.2602916254693,82,24.413111231467404,61,22.022715545545239,0,15.556349186104045,0,15.556349186104045,8,13.601470508735444,240,62.241465278381739]
[null,"With hearing difficulty",0,15.556349186104045,0,15.556349186104045,0,15.556349186104045,228,71.400280111495363,0,15.556349186104045,31,18.384776310850235,0,15.556349186104045,2,11.401754250991379,89,33.015148038438355,21,13.601470508735444,0,15.556349186104045,0,15.556349186104045,17,12.649110640673518,0,15.556349186104045,0,15.556349186104045,6,5.6568542494923806,11,10.440306508910551,0,15.556349186104045,49,31.384709652950431,0,15.556349186104045,0,15.556349186104045,12,15.556349186104045,0,15.556349186104045,76,48.166378315169183,0,15.556349186104045,0,15.556349186104045,35,13.45362404707371,0,15.556349186104045,47,22.472205054244231,0,15.556349186104045,0,15.556349186104045,10,9.4339811320566032,2,11.401754250991379,0,15.556349186104045,0,15.556349186104045,16,13,18,9.8994949366116654,19,16.552945357246848,25,14.212670403551895,0,15.556349186104045,0,15.556349186104045,5,13.038404810405298,61,28.319604517012593]
[null,"With no hearing difficulty",0,15.556349186104045,0,15.556349186104045,0,15.556349186104045,540,84.723078319900537,0,15.556349186104045,30,13.45362404707371,0,15.556349186104045,13,11.313708498984761,116,37.589892258425003,57,22.627416997969522,0,15.556349186104045,0,15.556349186104045,38,19.849433241279208,0,15.556349186104045,0,15.556349186104045,32,14.212670403551895,19,11.313708498984761,0,15.556349186104045,277,74.652528423356159,0,15.556349186104045,0,15.556349186104045,32,16.15549442140351,0,15.556349186104045,246,73.53910524340094,0,15.556349186104045,0,15.556349186104045,23,11.401754250991379,4,12.529964086141668,107,44.687805943008662,0,15.556349186104045,0,15.556349186104045,44,20.591260281974002,36,14.212670403551895,0,15.556349186104045,0,15.556349186104045,32,16.401219466856727,49,19.416487838947599,63,19.104973174542799,36,18.357559750685819,0,15.556349186104045,0,15.556349186104045,3,11.401754250991379,179,61.554853586049575]
[]
[]
[]
[]
[]
[]
[]
[]
[]
[]
[]
[]
[]
[]
[]
[]
[]
[]
[]
[]
[]
[]
[]
[]
[]
[]
["B18102. SEX BY AGE BY HEARING DIFFICULTY\n\n-Calculated"]
["Universe:  Civilian non-institutionalized population"]
["Data Set: 2010-2014 American Community Survey 5-Year Estimates"]
[]
[]
[null,null,"Atkinson and Gilmanton Grant",null,"Bean's Grant",null,"Bean's Purchase",null,"Berlin",null,"Cambridge",null,"Carroll",null,"Chandler's Purchase",null,"Clarksville",null,"Colebrook",null,"Columbia",null,"Crawford's Purchase",null,"Cutt's Grant",null,"Dalton",null,"Dix's Grant",null,"Dixville",null,"Dummer",null,"Errol",null,"Erving's Location",null,"Gorham",null,"Greens Grant",null,"Hadley's Purchase",null,"Jefferson",null,"Kilkenny",null,"Lancaster",null,"Low and Burbank's Grant",null,"Martin's Location",null,"Milan",null,"Millsfield",null,"Northumberland",null,"Odell",null,"Pinkham's Grant",null,"Pittsburg",null,"Randolph",null,"Sargent's Purchase",null,"Second College Grant",null,"Shelburne",null,"Stark",null,"Stewartstown",null,"Stratford",null,"Success",null,"Thompson and Meserves Purchase",null,"Wentworth's Location",null,"Whitefield"]
[null,null,"Estimate","Margin Of Error","Estimate","Margin Of Error","Estimate","Margin Of Error","Estimate","Margin Of Error","Estimate","Margin Of Error","Estimate","Margin Of Error","Estimate","Margin Of Error","Estimate","Margin Of Error","Estimate","Margin Of Error","Estimate","Margin Of Error","Estimate","Margin Of Error","Estimate","Margin Of Error","Estimate","Margin Of Error","Estimate","Margin Of Error","Estimate","Margin Of Error","Estimate","Margin Of Error","Estimate","Margin Of Error","Estimate","Margin Of Error","Estimate","Margin Of Error","Estimate","Margin Of Error","Estimate","Margin Of Error","Estimate","Margin Of Error","Estimate","Margin Of Error","Estimate","Margin Of Error","Estimate","Margin Of Error","Estimate","Margin Of Error","Estimate","Margin Of Error","Estimate","Margin Of Error","Estimate","Margin Of Error","Estimate","Margin Of Error","Estimate","Margin Of Error","Estimate","Margin Of Error","Estimate","Margin Of Error","Estimate","Margin Of Error","Estimate","Margin Of Error","Estimate","Margin Of Error","Estimate","Margin Of Error","Estimate","Margin Of Error","Estimate","Margin Of Error","Estimate","Margin Of Error","Estimate","Margin Of Error","Estimate","Margin Of Error","Estimate","Margin Of Error"]
[null,"Total",0,11,0,11,0,11,8671,580,17,16,991,165,0,11,315,75,2340,210,726,132,0,11,0,11,933,154,13,9,11,9,348,76,301,70,0,11,2765,15,8,17,0,11,0,11,0,11,3338,89,0,11,0,11,20,16,21,19,0,11,0,11,8,6,875,130,424,74,9,12,0,11,358,66,490,94,712,123,0,11,0,11,0,11,62,33,2081,219]
[null,"Under 5 years:",0,15.556349186104045,0,15.556349186104045,0,15.556349186104045,423,104.23531071570709,0,15.556349186104045,27,18.601075237738275,0,15.556349186104045,11,10.440306508910551,93,41.617304093369626,29,17.029386365926403,0,15.556349186104045,0,15.556349186104045,10,8.6023252670426267,0,15.556349186104045,0,15.556349186104045,4,12.083045973594572,5,4.4721359549995796,0,15.556349186104045,162,75.604232685743199,0,15.556349186104045,0,15.556349186104045,0,15.556349186104045,0,15.556349186104045,135,57.801384066473702,0,15.556349186104045,0,15.556349186104045,3,5.6568542494923806,5,5.6568542494923806,0,15.556349186104045,0,15.556349186104045,0,15.556349186104045,2,12.083045973594572,2,3.6055512754639891,0,15.556349186104045,0,15.556349186104045,13,12.649110640673518,31,19.209372712298546,26,20.248456731316587,0,15.556349186104045,0,15.556349186104045,0,15.556349186104045,0,15.556349186104045,97,39.597979746446661]
[null,"With hearing difficulty",0,15.556349186104045,0,15.556349186104045,0,15.556349186104045,0,21.213203435596427,0,15.556349186104045,0,15.556349186104045,0,15.556349186104045,0,15.556349186104045,0,15.556349186104045,0,15.556349186104045,0,15.556349186104045,0,15.556349186104045,0,15.556349186104045,0,15.556349186104045,0,15.556349186104045,0,15.556349186104045,0,15.556349186104045,0,15.556349186104045,0,15.556349186104045,0,15.556349186104045,0,15.556349186104045,0,15.556349186104045,0,15.556349186104045,0,15.556349186104045,0,15.556349186104045,0,15.556349186104045,0,15.556349186104045,0,15.556349186104045,0,15.556349186104045,0,15.556349186104045,0,15.556349186104045,0,15.556349186104045,0,15.556349186104045,0,15.556349186104045,0,15.556349186104045,0,15.556349186104045,0,15.556349186104045,0,15.556349186104045,0,15.556349186104045,0,15.556349186104045,0,15.556349186104045,0,15.556349186104045,0,15.556349186104045]
[null,"With no hearing difficulty",0,15.556349186104045,0,15.556349186104045,0,15.556349186104045,423,104.23531071570709,0,15.556349186104045,27,18.601075237738275,0,15.556349186104045,11,10.440306508910551,93,41.617304093369626,29,17.029386365926403,0,15.556349186104045,0,15.556349186104045,10,8.6023252670426267,0,15.556349186104045,0,15.556349186104045,4,12.083045973594572,5,4.4721359549995796,0,15.556349186104045,162,75.604232685743199,0,15.556349186104045,0,15.556349186104045,0,15.556349186104045,0,15.556349186104045,135,57.801384066473702,0,15.556349186104045,0,15.556349186104045,3,5.6568542494923806,5,5.6568542494923806,0,15.556349186104045,0,15.556349186104045,0,15.556349186104045,2,12.083045973594572,2,3.6055512754639891,0,15.556349186104045,0,15.556349186104045,13,12.649110640673518,31,19.209372712298546,26,20.248456731316587,0,15.556349186104045,0,15.556349186104045,0,15.556349186104045,0,15.556349186104045,97,39.597979746446661]
[null,"5 to 17 years:",0,15.556349186104045,0,15.556349186104045,0,15.556349186104045,1200,171.89822570346675,0,15.556349186104045,187,76.661594035083823,0,15.556349186104045,42,19.104973174542799,305,69.31089380465383,102,38.418745424597091,0,15.556349186104045,0,15.556349186104045,128,46.669047558312137,0,15.556349186104045,0,15.556349186104045,71,31.906112267087632,15,16.643316977093239,0,15.556349186104045,406,84.219950130595535,0,15.556349186104045,0,15.556349186104045,0,15.556349186104045,0,15.556349186104045,612,119.88744721612851,0,15.556349186104045,0,15.556349186104045,4,4.2426406871192848,4,5,0,15.556349186104045,0,15.556349186104045,0,15.556349186104045,80,37.20215047547655,57,26.832815729997478,0,15.556349186104045,0,15.556349186104045,42,21.95449840010015,63,28.42534080710379,48,30.805843601498726,0,15.556349186104045,0,15.556349186104045,0,15.556349186104045,4,12.529964086141668,272,67.208630398186216]
[null,"With hearing difficulty",0,15.556349186104045,0,15.556349186104045,0,15.556349186104045,30,30.016662039607269,0,15.556349186104045,0,15.556349186104045,0,15.556349186104045,2,11.401754250991379,12,21.095023109728988,2,11.401754250991379,0,15.556349186104045,0,15.556349186104045,0,15.556349186104045,0,15.556349186104045,0,15.556349186104045,0,15.556349186104045,0,15.556349186104045,0,15.556349186104045,22,19.849433241279208,0,15.556349186104045,0,15.556349186104045,0,15.556349186104045,0,15.556349186104045,35,40.521599178709621,0,15.556349186104045,0,15.556349186104045,0,15.556349186104045,0,15.556349186104045,0,15.556349186104045,0,15.556349186104045,0,15.556349186104045,0,15.556349186104045,0,15.556349186104045,0,15.556349186104045,0,15.556349186104045,0,15.556349186104045,0,15.556349186104045,0,15.556349186104045,0,15.556349186104045,0,15.556349186104045,0,15.556349186104045,0,15.556349186104045,0,15.556349186104045]
[null,"With no hearing difficulty",0,15.556349186104045,0,15.556349186104045,0,15.556349186104045,1170,171.21331723905124,0,15.556349186104045,187,76.661594035083823,0,15.556349186104045,40,18.439088914585774,293,65.79513659838392,100,37.802116342871599,0,15.556349186104045,0,15.556349186104045,128,46.669047558312137,0,15.556349186104045,0,15.556349186104045,71,31.906112267087632,15,16.643316977093239,0,15.556349186104045,384,81.467785044151043,0,15.556349186104045,0,15.556349186104045,0,15.556349186104045,0,15.556349186104045,577,119.36498649101419,0,15.556349186104045,0,15.556349186104045,4,4.2426406871192848,4,5,0,15.556349186104045,0,15.556349186104045,0,15.556349186104045,80,37.20215047547655,57,26.832815729997478,0,15.556349186104045,0,15.556349186104045,42,21.95449840010015,63,28.42534080710379,48,30.805843601498726,0,15.556349186104045,0,15.556349186104045,0,15.556349186104045,4,12.529964086141668,272,67.208630398186216]
[null,"18 to 34 years:",0,15.556349186104045,0,15.556349186104045,0,15.556349186104045,1631,174.02586014727811,0,15.556349186104045,197,85.632937588290176,0,15.556349186104045,23,13.45362404707371,296,75.451971478550519,79,28.319604517012593,0,15.556349186104045,0,15.556349186104045,143,51.662365412357957,6,6.7082039324993694,5,7.2111025509279782,23,11.401754250991379,39,21.931712199461309,0,15.556349186104045,443,102.00490184299969,4,14.212670403551895,0,15.556349186104045,0,15.556349186104045,0,15.556349186104045,463,103.47946656221224,0,15.556349186104045,0,15.556349186104045,4,5.6568542494923806,4,5.6568542494923806,0,15.556349186104045,0,15.556349186104045,4,7.2111025509279782,68,35,41,17.204650534085253,0,15.556349186104045,0,15.556349186104045,45,19.209372712298546,60,23.430749027719962,134,46.669047558312137,0,15.556349186104045,0,15.556349186104045,0,15.556349186104045,15,15.231546211727817,411,83.486525858967212]
[null,"With hearing difficulty",0,15.556349186104045,0,15.556349186104045,0,15.556349186104045,62,53.665631459994955,0,15.556349186104045,0,15.556349186104045,0,15.556349186104045,0,15.556349186104045,0,15.556349186104045,1,11.180339887498949,0,15.556349186104045,0,15.556349186104045,3,12.083045973594572,0,15.556349186104045,0,15.556349186104045,0,15.556349186104045,0,15.556349186104045,0,15.556349186104045,0,15.556349186104045,0,15.556349186104045,0,15.556349186104045,0,15.556349186104045,0,15.556349186104045,12,14.866068747318506,0,15.556349186104045,0,15.556349186104045,0,15.556349186104045,0,15.556349186104045,0,15.556349186104045,0,15.556349186104045,0,15.556349186104045,0,15.556349186104045,0,15.556349186104045,0,15.556349186104045,0,15.556349186104045,0,15.556349186104045,0,15.556349186104045,8,14.212670403551895,0,15.556349186104045,0,15.556349186104045,0,15.556349186104045,0,15.556349186104045,0,15.556349186104045]
[null,"With no hearing difficulty",0,15.556349186104045,0,15.556349186104045,0,15.556349186104045,1569,179.44915714485816,0,15.556349186104045,197,85.632937588290176,0,15.556349186104045,23,13.45362404707371,296,75.451971478550519,78,27.586228448267445,0,15.556349186104045,0,15.556349186104045,140,50.931326312987373,6,6.7082039324993694,5,7.2111025509279782,23,11.401754250991379,39,21.931712199461309,0,15.556349186104045,443,102.00490184299969,4,14.212670403551895,0,15.556349186104045,0,15.556349186104045,0,15.556349186104045,451,104.23531071570709,0,15.556349186104045,0,15.556349186104045,4,5.6568542494923806,4,5.6568542494923806,0,15.556349186104045,0,15.556349186104045,4,7.2111025509279782,68,35,41,17.204650534085253,0,15.556349186104045,0,15.556349186104045,45,19.209372712298546,60,23.430749027719962,126,45.967379738244816,0,15.556349186104045,0,15.556349186104045,0,15.556349186104045,15,15.231546211727817,411,83.486525858967212]
[null,"35 to 64 years:",0,15.556349186104045,0,15.556349186104045,0,15.556349186104045,3621,264.20068130116545,12,10.295630140987001,378,90.520715861066847,0,15.556349186104045,158,35.468295701936398,1139,119.60351165413162,352,65.73431371817918,0,15.556349186104045,0,15.556349186104045,407,62.936475910238251,7,8.5440037453175304,6,8.6023252670426267,168,33.421549934136806,147,35.608987629529715,0,15.556349186104045,1281,107.48953437428223,4,14.212670403551895,0,15.556349186104045,0,15.556349186104045,0,15.556349186104045,1580,137.90576492663388,0,15.556349186104045,0,15.556349186104045,9,8.5440037453175304,8,7.6157731058639087,0,15.556349186104045,0,15.556349186104045,4,12.083045973594572,486,71.589105316381762,197,35.468295701936398,9,9.2195444572928871,0,15.556349186104045,170,31.622776601683793,226,41.231056256176608,267,53.814496188294839,0,15.556349186104045,0,15.556349186104045,0,15.556349186104045,29,15.556349186104045,965,110.39021695784459]
[null,"With hearing difficulty",0,15.556349186104045,0,15.556349186104045,0,15.556349186104045,195,84.758480401668365,0,15.556349186104045,6,14.212670403551895,0,15.556349186104045,20,16.124515496597098,27,21.95449840010015,12,15.556349186104045,0,15.556349186104045,0,15.556349186104045,20,18.384776310850235,2,11.704699910719626,1,11.704699910719626,10,16.278820596099706,11,13.038404810405298,0,15.556349186104045,56,36.249137920783717,4,14.212670403551895,0,15.556349186104045,0,15.556349186104045,0,15.556349186104045,72,49.040799340956916,0,15.556349186104045,0,15.556349186104045,0,15.556349186104045,0,15.556349186104045,0,15.556349186104045,0,15.556349186104045,0,15.556349186104045,21,18.601075237738275,2,11.704699910719626,0,15.556349186104045,0,15.556349186104045,6,6.7082039324993694,12,9.2195444572928871,19,19.416487838947599,0,15.556349186104045,0,15.556349186104045,0,15.556349186104045,3,11.401754250991379,98,50.209560842532767]
[null,"With no hearing difficulty",0,15.556349186104045,0,15.556349186104045,0,15.556349186104045,3426,249.09837414162303,12,10.295630140987001,372,91.241437954473298,0,15.556349186104045,138,29.068883707497267,1112,120.34118164618461,340,67.416615162732697,0,15.556349186104045,0,15.556349186104045,387,62.22539674441618,5,5.8309518948453007,5,6.4031242374328485,158,29.698484809834994,136,34.058772731852805,0,15.556349186104045,1225,108.93117092916977,0,15.556349186104045,0,15.556349186104045,0,15.556349186104045,0,15.556349186104045,1508,144.40221604947757,0,15.556349186104045,0,15.556349186104045,9,8.5440037453175304,8,7.6157731058639087,0,15.556349186104045,0,15.556349186104045,4,12.083045973594572,465,69.656299069071991,195,34.828149534535996,9,9.2195444572928871,0,15.556349186104045,164,30.805843601498726,214,41.231056256176608,248,51.855568649856693,0,15.556349186104045,0,15.556349186104045,0,15.556349186104045,26,15.556349186104045,867,100.00499987500625]
[null,"65 to 74 years:",0,15.556349186104045,0,15.556349186104045,0,15.556349186104045,750,97.616596949494195,0,15.556349186104045,162,41.231056256176608,0,15.556349186104045,45,19.104973174542799,388,83.234608186739251,109,29.154759474226502,0,15.556349186104045,0,15.556349186104045,154,31.89043743820395,0,15.556349186104045,0,15.556349186104045,57,17.029386365926403,61,22.203603311174518,0,15.556349186104045,203,62.481997407253232,0,15.556349186104045,0,15.556349186104045,0,15.556349186104045,0,15.556349186104045,376,77.833154889160184,0,15.556349186104045,0,15.556349186104045,0,15.556349186104045,0,15.556349186104045,0,15.556349186104045,0,15.556349186104045,0,15.556349186104045,159,34.655446902326915,69,18.439088914585774,0,15.556349186104045,0,15.556349186104045,41,14.422205101855956,61,17.691806012954132,171,53.009433122794285,0,15.556349186104045,0,15.556349186104045,0,15.556349186104045,14,12.165525060596439,179,52.478567053607705]
[null,"With hearing difficulty",0,15.556349186104045,0,15.556349186104045,0,15.556349186104045,73,38.587562763149478,0,15.556349186104045,12,16.278820596099706,0,15.556349186104045,9,13.601470508735444,38,31.016124838541646,7,5,0,15.556349186104045,0,15.556349186104045,16,10.63014581273465,0,15.556349186104045,0,15.556349186104045,7,13.601470508735444,7,5.8309518948453007,0,15.556349186104045,35,26.419689627245813,0,15.556349186104045,0,15.556349186104045,0,15.556349186104045,0,15.556349186104045,35,27.658633371878661,0,15.556349186104045,0,15.556349186104045,0,15.556349186104045,0,15.556349186104045,0,15.556349186104045,0,15.556349186104045,0,15.556349186104045,16,13.601470508735444,5,4.4721359549995796,0,15.556349186104045,0,15.556349186104045,4,11.704699910719626,12,12.083045973594572,50,30.016662039607269,0,15.556349186104045,0,15.556349186104045,0,15.556349186104045,11,16.278820596099706,20,26.92582403567252]
[null,"With no hearing difficulty",0,15.556349186104045,0,15.556349186104045,0,15.556349186104045,677,97.452552557642122,0,15.556349186104045,150,38.948684188300895,0,15.556349186104045,36,17.691806012954132,350,81.541400527584756,102,28.844410203711913,0,15.556349186104045,0,15.556349186104045,138,30.479501308256342,0,15.556349186104045,0,15.556349186104045,50,14.7648230602334,54,22.203603311174518,0,15.556349186104045,168,60.307545133258408,0,15.556349186104045,0,15.556349186104045,0,15.556349186104045,0,15.556349186104045,341,75.006666370396701,0,15.556349186104045,0,15.556349186104045,0,15.556349186104045,0,15.556349186104045,0,15.556349186104045,0,15.556349186104045,0,15.556349186104045,143,33.97057550292606,64,18.384776310850235,0,15.556349186104045,0,15.556349186104045,37,13.601470508735444,49,16.970562748477139,121,44.045431091090478,0,15.556349186104045,0,15.556349186104045,0,15.556349186104045,3,4.4721359549995796,159,45.486261662176638]
[null,"75 years and over:",0,15.556349186104045,0,15.556349186104045,0,15.556349186104045,1046,120.88010589009261,5,13.038404810405298,40,18.439088914585774,0,15.556349186104045,36,16.401219466856727,119,36.069377593742864,55,21.633307652783937,0,15.556349186104045,0,15.556349186104045,91,25.612496949731394,0,15.556349186104045,0,15.556349186104045,25,14.7648230602334,34,20,0,15.556349186104045,270,71.700767080973407,0,15.556349186104045,0,15.556349186104045,0,15.556349186104045,0,15.556349186104045,172,65.76473218982953,0,15.556349186104045,0,15.556349186104045,0,15.556349186104045,0,15.556349186104045,0,15.556349186104045,0,15.556349186104045,0,15.556349186104045,80,28.600699292150182,58,17.029386365926403,0,15.556349186104045,0,15.556349186104045,47,15.620499351813308,49,17.691806012954132,66,29.681644159311659,0,15.556349186104045,0,15.556349186104045,0,15.556349186104045,0,15.556349186104045,157,54.561891462814962]
[null,"With hearing difficulty",0,15.556349186104045,0,15.556349186104045,0,15.556349186104045,339,107.93516572461452,5,13.038404810405298,6,13.601470508735444,0,15.556349186104045,15,11.180339887498949,25,16.643316977093239,12,8.5440037453175304,0,15.556349186104045,0,15.556349186104045,20,12.529964086141668,0,15.556349186104045,0,15.556349186104045,5,12.083045973594572,12,10.816653826391969,0,15.556349186104045,92,60.016664352494629,0,15.556349186104045,0,15.556349186104045,0,15.556349186104045,0,15.556349186104045,36,32.202484376209235,0,15.556349186104045,0,15.556349186104045,0,15.556349186104045,0,15.556349186104045,0,15.556349186104045,0,15.556349186104045,0,15.556349186104045,40,21.633307652783937,18,9.4339811320566032,0,15.556349186104045,0,15.556349186104045,16,10.770329614269007,15,9.2195444572928871,15,16.15549442140351,0,15.556349186104045,0,15.556349186104045,0,15.556349186104045,0,15.556349186104045,68,42.059481689626182]
[null,"With no hearing difficulty",0,15.556349186104045,0,15.556349186104045,0,15.556349186104045,707,111.28791488746656,0,15.556349186104045,34,17.691806012954132,0,15.556349186104045,21,11.180339887498949,94,33.97057550292606,43,20.248456731316587,0,15.556349186104045,0,15.556349186104045,71,23.430749027719962,0,15.556349186104045,0,15.556349186104045,20,14.7648230602334,22,16.124515496597098,0,15.556349186104045,178,59.548299723837623,0,15.556349186104045,0,15.556349186104045,0,15.556349186104045,0,15.556349186104045,136,55.172456896534889,0,15.556349186104045,0,15.556349186104045,0,15.556349186104045,0,15.556349186104045,0,15.556349186104045,0,15.556349186104045,0,15.556349186104045,40,19.104973174542799,40,13.45362404707371,0,15.556349186104045,0,15.556349186104045,31,12.727922061357855,34,14.212670403551895,51,25.612496949731394,0,15.556349186104045,0,15.556349186104045,0,15.556349186104045,0,15.556349186104045,89,36.235341863986875]

{"sheet":"ACS_Table_B18103","index":31,"n_rows":125,"n_cols":88,"rows_kept":125,"cut":false,"hidden":true,"merged":[]}
["B18103. SEX BY AGE BY VISION DIFFICULTY\n\n\n"]
["Universe:  Civilian non-institutionalized population"]
["Data Set: 2015-2019 American Community Survey 5-Year Estimates"]
[]
[null,null,"Atkinson and Gilmanton Grant",null,"Bean's Grant",null,"Bean's Purchase",null,"Berlin",null,"Cambridge",null,"Carroll",null,"Chandler's Purchase",null,"Clarksville",null,"Colebrook",null,"Columbia",null,"Crawford's Purchase",null,"Cutt's Grant",null,"Dalton",null,"Dix's Grant",null,"Dixville",null,"Dummer",null,"Errol",null,"Erving's Location",null,"Gorham",null,"Greens Grant",null,"Hadley's Purchase",null,"Jefferson",null,"Kilkenny",null,"Lancaster",null,"Low and Burbank's Grant",null,"Martin's Location",null,"Milan",null,"Millsfield",null,"Northumberland",null,"Odell",null,"Pinkham's Grant",null,"Pittsburg",null,"Randolph",null,"Sargent's Purchase",null,"Second College Grant",null,"Shelburne",null,"Stark",null,"Stewartstown",null,"Stratford",null,"Success",null,"Thompson and Meserves Purchase",null,"Wentworth's Location",null,"Whitefield"]
[null," ","Estimate","Margin of Error","Estimate","Margin of Error","Estimate","Margin of Error","Estimate","Margin of Error","Estimate","Margin of Error","Estimate","Margin of Error","Estimate",null,"Estimate","Margin of Error","Estimate","Margin of Error","Estimate","Margin of Error","Estimate","Margin of Error","Estimate","Margin of Error","Estimate","Margin of Error","Estimate","Margin of Error","Estimate","Margin of Error","Estimate","Margin of Error","Estimate","Margin of Error","Estimate","Margin of Error","Estimate","Margin of Error","Estimate","Margin of Error","Estimate","Margin of Error","Estimate","Margin of Error","Estimate","Margin of Error","Estimate","Margin of Error","Estimate","Margin of Error","Estimate","Margin of Error","Estimate","Margin of Error","Estimate","Margin of Error","Estimate","Margin of Error","Estimate","Margin of Error","Estimate","Margin of Error","Estimate","Margin of Error","Estimate","Margin of Error","Estimate","Margin of Error","Estimate","Margin of Error","Estimate","Margin of Error","Estimate","Margin of Error","Estimate","Margin of Error","Estimate","Margin of Error","Estimate","Margin of Error","Estimate","Margin of Error","Estimate","Margin of Error","Estimate","Margin of Error"]
[null,"Total:",0,11,0,11,0,11,8384,242,0,11,772,141,0,11,324,88,1908,171,633,119,0,11,0,11,906,140,0,11,11,12,306,71,205,55,0,11,2623,17,13,10,0,11,850,129,0,11,3162,83,0,11,0,11,1332,107,8,12,2322,266,10,12,11,14,740,104,365,68,11,24,0,11,408,65,606,144,857,171,630,114,0,11,0,11,26,16,2202,215]
[null,"Male:",0,11,0,11,0,11,4054,207,0,11,452,93,0,11,176,51,925,109,335,71,0,11,0,11,432,77,0,11,9,10,171,48,109,35,0,11,1421,77,13,10,0,11,393,68,0,11,1562,135,0,11,0,11,710,73,4,6,1171,151,5,11,11,14,407,63,186,38,0,11,0,11,214,42,291,67,431,85,349,73,0,11,0,11,19,12,1065,158]
[null,"Under 5 years:",0,11,0,11,0,11,195,75,0,11,11,12,0,11,4,6,26,21,3,5,0,11,0,11,10,9,0,11,0,11,5,7,0,11,0,11,54,37,0,11,0,11,5,5,0,11,116,72,0,11,0,11,26,21,0,11,68,33,0,11,0,11,0,11,4,4,0,11,0,11,13,15,11,14,16,20,1,4,0,11,0,11,0,11,62,34]
[null,"With vision difficulty",0,11,0,11,0,11,0,18,0,11,0,11,0,11,0,11,0,11,0,11,0,11,0,11,0,11,0,11,0,11,0,11,0,11,0,11,0,11,0,11,0,11,0,11,0,11,0,11,0,11,0,11,0,11,0,11,0,11,0,11,0,11,0,11,0,11,0,11,0,11,0,11,0,11,0,11,0,11,0,11,0,11,0,11,0,11]
[null,"With no vision difficulty",0,11,0,11,0,11,195,75,0,11,11,12,0,11,4,6,26,21,3,5,0,11,0,11,10,9,0,11,0,11,5,7,0,11,0,11,54,37,0,11,0,11,5,5,0,11,116,72,0,11,0,11,26,21,0,11,68,33,0,11,0,11,0,11,4,4,0,11,0,11,13,15,11,14,16,20,1,4,0,11,0,11,0,11,62,34]
[null,"5 to 17  years:",0,11,0,11,0,11,544,118,0,11,79,71,0,11,19,13,146,63,29,15,0,11,0,11,47,25,0,11,2,4,37,34,18,18,0,11,211,67,0,11,0,11,57,21,0,11,199,73,0,11,0,11,85,34,0,11,214,67,0,11,0,11,40,24,4,4,0,11,0,11,18,14,33,23,47,29,74,28,0,11,0,11,0,11,161,70]
[null,"With vision difficulty",0,11,0,11,0,11,0,18,0,11,0,11,0,11,0,11,0,11,0,11,0,11,0,11,0,11,0,11,0,11,0,11,0,11,0,11,0,11,0,11,0,11,0,11,0,11,0,11,0,11,0,11,0,11,0,11,12,14,0,11,0,11,0,11,0,11,0,11,0,11,0,11,0,11,0,11,0,11,0,11,0,11,0,11,0,11]
[null,"With no vision difficulty",0,11,0,11,0,11,544,118,0,11,79,71,0,11,19,13,146,63,29,15,0,11,0,11,47,25,0,11,2,4,37,34,18,18,0,11,211,67,0,11,0,11,57,21,0,11,199,73,0,11,0,11,85,34,0,11,202,66,0,11,0,11,40,24,4,4,0,11,0,11,18,14,33,23,47,29,74,28,0,11,0,11,0,11,161,70]
[null,"18 to 34  years:",0,11,0,11,0,11,1002,175,0,11,98,65,0,11,34,16,91,43,58,32,0,11,0,11,102,42,0,11,5,6,20,11,0,11,0,11,181,71,5,8,0,11,66,34,0,11,334,79,0,11,0,11,144,48,0,11,199,77,5,11,7,8,35,21,29,16,0,11,0,11,15,12,51,25,39,30,39,25,0,11,0,11,3,4,157,68]
[null,"With vision difficulty",0,11,0,11,0,11,6,9,0,11,0,11,0,11,2,4,0,11,3,5,0,11,0,11,0,11,0,11,0,11,0,11,0,11,0,11,0,11,0,11,0,11,0,11,0,11,0,11,0,11,0,11,5,6,0,11,0,11,0,11,0,11,0,11,0,11,0,11,0,11,0,11,0,11,0,11,0,11,0,11,0,11,0,11,0,11]
[null,"With no vision difficulty",0,11,0,11,0,11,996,174,0,11,98,65,0,11,32,15,91,43,55,31,0,11,0,11,102,42,0,11,5,6,20,11,0,11,0,11,181,71,5,8,0,11,66,34,0,11,334,79,0,11,0,11,139,47,0,11,199,77,5,11,7,8,35,21,29,16,0,11,0,11,15,12,51,25,39,30,39,25,0,11,0,11,3,4,157,68]
[null,"35 to 64  years:",0,11,0,11,0,11,1624,139,0,11,157,36,0,11,69,29,396,64,157,46,0,11,0,11,214,44,0,11,0,11,50,13,52,17,0,11,648,71,8,10,0,11,163,38,0,11,636,100,0,11,0,11,302,33,4,6,501,80,0,11,4,8,184,44,83,22,0,11,0,11,88,24,114,31,168,45,173,41,0,11,0,11,4,4,342,62]
[null,"With vision difficulty",0,11,0,11,0,11,101,69,0,11,9,9,0,11,1,2,6,8,17,18,0,11,0,11,4,6,0,11,0,11,0,11,0,11,0,11,20,15,3,6,0,11,0,11,0,11,35,38,0,11,0,11,6,6,0,11,15,13,0,11,0,11,4,6,3,4,0,11,0,11,2,4,5,5,8,10,22,17,0,11,0,11,0,11,0,11]
[null,"With no vision difficulty",0,11,0,11,0,11,1523,146,0,11,148,38,0,11,68,29,390,63,140,40,0,11,0,11,210,45,0,11,0,11,50,13,52,17,0,11,628,71,5,6,0,11,163,38,0,11,601,81,0,11,0,11,296,33,4,6,486,78,0,11,4,8,180,45,80,23,0,11,0,11,86,24,109,31,160,45,151,35,0,11,0,11,4,4,342,62]
[null,"65 to 74  years:",0,11,0,11,0,11,436,94,0,11,76,27,0,11,40,19,169,46,49,16,0,11,0,11,41,22,0,11,2,6,36,16,18,14,0,11,175,58,0,11,0,11,83,27,0,11,129,50,0,11,0,11,119,28,0,11,119,39,0,11,0,11,127,36,49,16,0,11,0,11,52,20,52,22,123,42,31,12,0,11,0,11,4,4,220,54]
[null,"With vision difficulty",0,11,0,11,0,11,0,18,0,11,18,17,0,11,0,11,30,33,0,11,0,11,0,11,0,11,0,11,0,11,2,3,0,11,0,11,0,11,0,11,0,11,6,8,0,11,9,13,0,11,0,11,0,11,0,11,19,18,0,11,0,11,19,24,6,9,0,11,0,11,0,11,0,11,3,5,0,11,0,11,0,11,0,11,0,11]
[null,"With no vision difficulty",0,11,0,11,0,11,436,94,0,11,58,23,0,11,40,19,139,37,49,16,0,11,0,11,41,22,0,11,2,6,34,16,18,14,0,11,175,58,0,11,0,11,77,26,0,11,120,49,0,11,0,11,119,28,0,11,100,37,0,11,0,11,108,30,43,14,0,11,0,11,52,20,52,22,120,42,31,12,0,11,0,11,4,4,220,54]
[null,"75  years and Older:",0,11,0,11,0,11,253,65,0,11,31,15,0,11,10,9,97,31,39,17,0,11,0,11,18,16,0,11,0,11,23,12,21,13,0,11,152,58,0,11,0,11,19,11,0,11,148,57,0,11,0,11,34,14,0,11,70,32,0,11,0,11,21,11,17,9,0,11,0,11,28,18,30,14,38,14,31,17,0,11,0,11,8,8,123,43]
[null,"With vision difficulty",0,11,0,11,0,11,50,50,0,11,6,9,0,11,0,11,3,5,5,6,0,11,0,11,0,11,0,11,0,11,0,11,4,7,0,11,15,16,0,11,0,11,8,10,0,11,20,33,0,11,0,11,9,7,0,11,16,19,0,11,0,11,3,5,0,11,0,11,0,11,4,7,2,3,2,4,2,3,0,11,0,11,0,11,4,5]
[null,"With no vision difficulty",0,11,0,11,0,11,203,57,0,11,25,11,0,11,10,9,94,31,34,15,0,11,0,11,18,16,0,11,0,11,23,12,17,11,0,11,137,59,0,11,0,11,11,7,0,11,128,47,0,11,0,11,25,12,0,11,54,26,0,11,0,11,18,10,17,9,0,11,0,11,24,16,28,14,36,14,29,18,0,11,0,11,8,8,119,42]
[null,"Female:",0,11,0,11,0,11,4330,191,0,11,320,67,0,11,148,44,983,116,298,61,0,11,0,11,474,81,0,11,2,6,135,29,96,33,0,11,1202,78,0,11,0,11,457,75,0,11,1600,141,0,11,0,11,622,55,4,6,1151,148,5,11,0,11,333,53,179,40,11,24,0,11,194,34,315,84,426,101,281,61,0,11,0,11,7,6,1137,133]
[null,"Under 5 years:",0,11,0,11,0,11,206,68,0,11,18,17,0,11,2,4,29,22,4,6,0,11,0,11,23,20,0,11,0,11,4,5,0,11,0,11,0,11,0,11,0,11,37,23,0,11,34,52,0,11,0,11,15,10,0,11,111,48,0,11,0,11,0,11,12,12,0,11,0,11,4,6,29,23,16,20,13,18,0,11,0,11,0,11,82,46]
[null,"With vision difficulty",0,11,0,11,0,11,0,18,0,11,0,11,0,11,0,11,0,11,0,11,0,11,0,11,0,11,0,11,0,11,0,11,0,11,0,11,0,11,0,11,0,11,0,11,0,11,0,11,0,11,0,11,0,11,0,11,0,11,0,11,0,11,0,11,0,11,0,11,0,11,0,11,0,11,0,11,0,11,0,11,0,11,0,11,0,11]
[null,"With no vision difficulty",0,11,0,11,0,11,206,68,0,11,18,17,0,11,2,4,29,22,4,6,0,11,0,11,23,20,0,11,0,11,4,5,0,11,0,11,0,11,0,11,0,11,37,23,0,11,34,52,0,11,0,11,15,10,0,11,111,48,0,11,0,11,0,11,12,12,0,11,0,11,4,6,29,23,16,20,13,18,0,11,0,11,0,11,82,46]
[null,"5 to 17  years:",0,11,0,11,0,11,640,108,0,11,32,34,0,11,6,9,100,46,43,24,0,11,0,11,52,31,0,11,0,11,17,10,9,13,0,11,143,48,0,11,0,11,23,16,0,11,319,63,0,11,0,11,94,25,0,11,129,63,0,11,0,11,17,14,3,4,0,11,0,11,18,15,72,42,61,47,24,17,0,11,0,11,0,11,99,50]
[null,"With vision difficulty",0,11,0,11,0,11,0,18,0,11,0,11,0,11,0,11,0,11,0,11,0,11,0,11,0,11,0,11,0,11,4,6,0,11,0,11,0,11,0,11,0,11,0,11,0,11,0,11,0,11,0,11,3,4,0,11,0,11,0,11,0,11,0,11,0,11,0,11,0,11,0,11,0,11,0,11,2,3,0,11,0,11,0,11,0,11]
[null,"With no vision difficulty",0,11,0,11,0,11,640,108,0,11,32,34,0,11,6,9,100,46,43,24,0,11,0,11,52,31,0,11,0,11,13,8,9,13,0,11,143,48,0,11,0,11,23,16,0,11,319,63,0,11,0,11,91,25,0,11,129,63,0,11,0,11,17,14,3,4,0,11,0,11,18,15,72,42,61,47,22,16,0,11,0,11,0,11,99,50]
[null,"18 to 34  years:",0,11,0,11,0,11,819,134,0,11,37,26,0,11,20,12,183,57,33,20,0,11,0,11,54,29,0,11,0,11,22,10,0,11,0,11,133,52,0,11,0,11,58,27,0,11,244,73,0,11,0,11,124,45,0,11,248,69,5,11,0,11,54,31,23,11,11,24,0,11,20,10,18,16,67,41,37,25,0,11,0,11,0,11,97,43]
[null,"With vision difficulty",0,11,0,11,0,11,0,18,0,11,0,11,0,11,0,11,0,11,0,11,0,11,0,11,0,11,0,11,0,11,0,11,0,11,0,11,0,11,0,11,0,11,0,11,0,11,25,39,0,11,0,11,0,11,0,11,7,11,0,11,0,11,0,11,0,11,0,11,0,11,0,11,0,11,0,11,10,16,0,11,0,11,0,11,0,11]
[null,"With no vision difficulty",0,11,0,11,0,11,819,134,0,11,37,26,0,11,20,12,183,57,33,20,0,11,0,11,54,29,0,11,0,11,22,10,0,11,0,11,133,52,0,11,0,11,58,27,0,11,219,67,0,11,0,11,124,45,0,11,241,67,5,11,0,11,54,31,23,11,11,24,0,11,20,10,18,16,67,41,27,17,0,11,0,11,0,11,97,43]
[null,"35 to 64  years:",0,11,0,11,0,11,1635,141,0,11,146,35,0,11,97,35,443,65,150,37,0,11,0,11,242,45,0,11,2,6,64,18,60,22,0,11,593,67,0,11,0,11,241,39,0,11,622,95,0,11,0,11,290,39,0,11,445,63,0,11,0,11,157,37,82,23,0,11,0,11,102,25,121,31,125,46,139,35,0,11,0,11,0,11,532,84]
[null,"With vision difficulty",0,11,0,11,0,11,29,46,0,11,2,3,0,11,1,3,13,20,0,11,0,11,0,11,9,10,0,11,1,4,4,6,0,11,0,11,20,16,0,11,0,11,3,4,0,11,16,15,0,11,0,11,3,4,0,11,9,10,0,11,0,11,0,11,0,11,0,11,0,11,6,9,2,3,0,11,7,8,0,11,0,11,0,11,42,40]
[null,"With no vision difficulty",0,11,0,11,0,11,1606,139,0,11,144,35,0,11,96,35,430,65,150,37,0,11,0,11,233,44,0,11,1,3,60,15,60,22,0,11,573,67,0,11,0,11,238,39,0,11,606,95,0,11,0,11,287,38,0,11,436,64,0,11,0,11,157,37,82,23,0,11,0,11,96,22,119,30,125,46,132,35,0,11,0,11,0,11,490,72]
[null,"65 to 74  years:",0,11,0,11,0,11,515,87,0,11,57,14,0,11,18,11,120,36,29,13,0,11,0,11,66,23,0,11,0,11,13,7,18,13,0,11,159,51,0,11,0,11,73,22,0,11,207,52,0,11,0,11,75,23,0,11,134,34,0,11,0,11,72,26,38,12,0,11,0,11,30,14,38,16,113,34,38,16,0,11,0,11,7,6,210,59]
[null,"With vision difficulty",0,11,0,11,0,11,38,39,0,11,3,4,0,11,0,11,12,10,2,3,0,11,0,11,0,11,0,11,0,11,1,2,0,11,0,11,3,6,0,11,0,11,0,11,0,11,6,10,0,11,0,11,0,11,0,11,0,11,0,11,0,11,0,11,0,11,0,11,0,11,1,4,0,11,11,14,3,6,0,11,0,11,0,11,11,14]
[null,"With no vision difficulty",0,11,0,11,0,11,477,89,0,11,54,14,0,11,18,11,108,36,27,13,0,11,0,11,66,23,0,11,0,11,12,7,18,13,0,11,156,51,0,11,0,11,73,22,0,11,201,52,0,11,0,11,75,23,0,11,134,34,0,11,0,11,72,26,38,12,0,11,0,11,29,13,38,16,102,34,35,15,0,11,0,11,7,6,199,55]
[null,"75  years and Older:",0,11,0,11,0,11,515,82,0,11,30,16,0,11,5,8,108,37,39,17,0,11,0,11,37,17,0,11,0,11,15,10,9,8,0,11,174,52,0,11,0,11,25,15,0,11,174,56,0,11,0,11,24,12,4,6,84,34,0,11,0,11,33,20,21,12,0,11,0,11,20,12,37,16,44,20,30,14,0,11,0,11,0,11,117,45]
[null,"With vision difficulty",0,11,0,11,0,11,39,24,0,11,15,13,0,11,0,11,7,8,4,8,0,11,0,11,6,11,0,11,0,11,0,11,0,11,0,11,18,19,0,11,0,11,0,11,0,11,19,30,0,11,0,11,0,11,0,11,4,6,0,11,0,11,4,7,2,3,0,11,0,11,0,11,2,3,3,4,4,4,0,11,0,11,0,11,20,15]
[null,"With no vision difficulty",0,11,0,11,0,11,476,75,0,11,15,10,0,11,5,8,101,36,35,16,0,11,0,11,31,15,0,11,0,11,15,10,9,8,0,11,156,48,0,11,0,11,25,15,0,11,155,51,0,11,0,11,24,12,4,6,80,33,0,11,0,11,29,19,19,11,0,11,0,11,20,12,35,16,41,20,26,14,0,11,0,11,0,11,97,45]
[]
[]
[{"$f":"A1& \"-Calculated\"","v":"B18103. SEX BY AGE BY VISION DIFFICULTY\n\n\n-Calculated"}]
[{"$f":"A2","v":"Universe:  Civilian non-institutionalized population"}]
[{"$f":"A3","v":"Data Set: 2015-2019 American Community Survey 5-Year Estimates"}]
[]
[]
[null,null,"Atkinson and Gilmanton Grant",null,"Bean's Grant",null,"Bean's Purchase",null,"Berlin",null,"Cambridge",null,"Carroll",null,"Chandler's Purchase",null,"Clarksville",null,"Colebrook",null,"Columbia",null,"Crawford's Purchase",null,"Cutt's Grant",null,"Dalton",null,"Dix's Grant",null,"Dixville",null,"Dummer",null,"Errol",null,"Erving's Location",null,"Gorham",null,"Greens Grant",null,"Hadley's Purchase",null,"Jefferson",null,"Kilkenny",null,"Lancaster",null,"Low and Burbank's Grant",null,"Martin's Location",null,"Milan",null,"Millsfield",null,"Northumberland",null,"Odell",null,"Pinkham's Grant",null,"Pittsburg",null,"Randolph",null,"Sargent's Purchase",null,"Second College Grant",null,"Shelburne",null,"Stark",null,"Stewartstown",null,"Stratford",null,"Success",null,"Thompson and Meserves Purchase",null,"Wentworth's Location",null,"Whitefield"]
[null,null,"Estimate","Margin Of Error","Estimate","Margin Of Error","Estimate","Margin Of Error","Estimate","Margin Of Error","Estimate","Margin Of Error","Estimate","Margin Of Error","Estimate","Margin Of Error","Estimate","Margin Of Error","Estimate","Margin Of Error","Estimate","Margin Of Error","Estimate","Margin Of Error","Estimate","Margin Of Error","Estimate","Margin Of Error","Estimate","Margin Of Error","Estimate","Margin Of Error","Estimate","Margin Of Error","Estimate","Margin Of Error","Estimate","Margin Of Error","Estimate","Margin Of Error","Estimate","Margin Of Error","Estimate","Margin Of Error","Estimate","Margin Of Error","Estimate","Margin Of Error","Estimate","Margin Of Error","Estimate","Margin Of Error","Estimate","Margin Of Error","Estimate","Margin Of Error","Estimate","Margin Of Error","Estimate","Margin Of Error","Estimate","Margin Of Error","Estimate","Margin Of Error","Estimate","Margin Of Error","Estimate","Margin Of Error","Estimate","Margin Of Error","Estimate","Margin Of Error","Estimate","Margin Of Error","Estimate","Margin Of Error","Estimate","Margin Of Error","Estimate","Margin Of Error","Estimate","Margin Of Error","Estimate","Margin Of Error","Estimate","Margin Of Error","Estimate","Margin Of Error"]
[null,"Total",{"$f":"C7","v":0},11,0,11,0,11,8384,242,0,11,772,141,0,11,324,88,1908,171,633,119,0,11,{"$f":"Y7","v":0},11,906,140,0,11,11,12,306,71,205,55,0,11,2623,17,13,10,0,11,850,129,0,11,3162,83,0,11,0,11,1332,107,8,12,2322,266,10,12,11,14,740,104,365,68,11,24,0,11,408,65,606,144,857,171,630,114,0,11,0,11,26,16,2202,215]
[null,"Under 5 years:",{"$f":"C28+C9","v":0},{"$f":"SQRT((D28^2)+(D9^2))","v":15.556349186104045},{"$f":"E28+E9","v":0},{"$f":"SQRT((F28^2)+(F9^2))","v":15.556349186104045},{"$f":"G28+G9","v":0},{"$f":"SQRT((H28^2)+(H9^2))","v":15.556349186104045},{"$f":"I28+I9","v":401},{"$f":"SQRT((J28^2)+(J9^2))","v":101.23734488813898},{"$f":"K28+K9","v":0},{"$f":"SQRT((L28^2)+(L9^2))","v":15.556349186104045},{"$f":"M28+M9","v":29},{"$f":"SQRT((N28^2)+(N9^2))","v":20.808652046684813},{"$f":"O28+O9","v":0},{"$f":"SQRT((P28^2)+(P9^2))","v":15.556349186104045},{"$f":"Q28+Q9","v":6},{"$f":"SQRT((R28^2)+(R9^2))","v":7.2111025509279782},{"$f":"S28+S9","v":55},{"$f":"SQRT((T28^2)+(T9^2))","v":30.413812651491099},{"$f":"U28+U9","v":7},{"$f":"SQRT((V28^2)+(V9^2))","v":7.810249675906654},{"$f":"W28+W9","v":0},{"$f":"SQRT((X28^2)+(X9^2))","v":15.556349186104045},{"$f":"Y28+Y9","v":0},{"$f":"SQRT((Z28^2)+(Z9^2))","v":15.556349186104045},{"$f":"AA28+AA9","v":33},{"$f":"SQRT((AB28^2)+(AB9^2))","v":21.931712199461309},{"$f":"AC28+AC9","v":0},{"$f":"SQRT((AD28^2)+(AD9^2))","v":15.556349186104045},{"$f":"AE28+AE9","v":0},{"$f":"SQRT((AF28^2)+(AF9^2))","v":15.556349186104045},{"$f":"AG28+AG9","v":9},{"$f":"SQRT((AH28^2)+(AH9^2))","v":8.6023252670426267},{"$f":"AI28+AI9","v":0},{"$f":"SQRT((AJ28^2)+(AJ9^2))","v":15.556349186104045},{"$f":"AK28+AK9","v":0},{"$f":"SQRT((AL28^2)+(AL9^2))","v":15.556349186104045},{"$f":"AM28+AM9","v":54},{"$f":"SQRT((AN28^2)+(AN9^2))","v":38.600518131237564},{"$f":"AO28+AO9","v":0},{"$f":"SQRT((AP28^2)+(AP9^2))","v":15.556349186104045},{"$f":"AQ28+AQ9","v":0},{"$f":"SQRT((AR28^2)+(AR9^2))","v":15.556349186104045},{"$f":"AS28+AS9","v":42},{"$f":"SQRT((AT28^2)+(AT9^2))","v":23.53720459187964},{"$f":"AU28+AU9","v":0},{"$f":"SQRT((AV28^2)+(AV9^2))","v":15.556349186104045},{"$f":"AW28+AW9","v":150},{"$f":"SQRT((AX28^2)+(AX9^2))","v":88.814413244698073},{"$f":"AY28+AY9","v":0},{"$f":"SQRT((AZ28^2)+(AZ9^2))","v":15.556349186104045},{"$f":"BA28+BA9","v":0},{"$f":"SQRT((BB28^2)+(BB9^2))","v":15.556349186104045},{"$f":"BC28+BC9","v":41},{"$f":"SQRT((BD28^2)+(BD9^2))","v":23.259406699226016},{"$f":"BE28+BE9","v":0},{"$f":"SQRT((BF28^2)+(BF9^2))","v":15.556349186104045},{"$f":"BG28+BG9","v":179},{"$f":"SQRT((BH28^2)+(BH9^2))","v":58.249463516842795},{"$f":"BI28+BI9","v":0},{"$f":"SQRT((BJ28^2)+(BJ9^2))","v":15.556349186104045},{"$f":"BK28+BK9","v":0},{"$f":"SQRT((BL28^2)+(BL9^2))","v":15.556349186104045},{"$f":"BM28+BM9","v":0},{"$f":"SQRT((BN28^2)+(BN9^2))","v":15.556349186104045},{"$f":"BO28+BO9","v":16},{"$f":"SQRT((BP28^2)+(BP9^2))","v":12.649110640673518},{"$f":"BQ28+BQ9","v":0},{"$f":"SQRT((BR28^2)+(BR9^2))","v":15.556349186104045},{"$f":"BS28+BS9","v":0},{"$f":"SQRT((BT28^2)+(BT9^2))","v":15.556349186104045},{"$f":"BU28+BU9","v":17},{"$f":"SQRT((BV28^2)+(BV9^2))","v":16.15549442140351},{"$f":"BW28+BW9","v":40},{"$f":"SQRT((BX28^2)+(BX9^2))","v":26.92582403567252},{"$f":"BY28+BY9","v":32},{"$f":"SQRT((BZ28^2)+(BZ9^2))","v":28.284271247461902},{"$f":"CA28+CA9","v":14},{"$f":"SQRT((CB28^2)+(CB9^2))","v":18.439088914585774},{"$f":"CC28+CC9","v":0},{"$f":"SQRT((CD28^2)+(CD9^2))","v":15.556349186104045},{"$f":"CE28+CE9","v":0},{"$f":"SQRT((CF28^2)+(CF9^2))","v":15.556349186104045},{"$f":"CG28+CG9","v":0},{"$f":"SQRT((CH28^2)+(CH9^2))","v":15.556349186104045},{"$f":"CI28+CI9","v":144},{"$f":"SQRT((CJ28^2)+(CJ9^2))","v":57.201398584300364}]
[null,"With vision difficulty",{"$f":"C29+C10","v":0},{"$f":"SQRT((D29^2)+(D10^2))","v":15.556349186104045},{"$f":"E29+E10","v":0},{"$f":"SQRT((F29^2)+(F10^2))","v":15.556349186104045},{"$f":"G29+G10","v":0},{"$f":"SQRT((H29^2)+(H10^2))","v":15.556349186104045},{"$f":"I29+I10","v":0},{"$f":"SQRT((J29^2)+(J10^2))","v":25.45584412271571},{"$f":"K29+K10","v":0},{"$f":"SQRT((L29^2)+(L10^2))","v":15.556349186104045},{"$f":"M29+M10","v":0},{"$f":"SQRT((N29^2)+(N10^2))","v":15.556349186104045},{"$f":"O29+O10","v":0},{"$f":"SQRT((P29^2)+(P10^2))","v":15.556349186104045},{"$f":"Q29+Q10","v":0},{"$f":"SQRT((R29^2)+(R10^2))","v":15.556349186104045},{"$f":"S29+S10","v":0},{"$f":"SQRT((T29^2)+(T10^2))","v":15.556349186104045},{"$f":"U29+U10","v":0},{"$f":"SQRT((V29^2)+(V10^2))","v":15.556349186104045},{"$f":"W29+W10","v":0},{"$f":"SQRT((X29^2)+(X10^2))","v":15.556349186104045},0,15.556349186104045,0,15.556349186104045,0,15.556349186104045,0,15.556349186104045,0,15.556349186104045,0,15.556349186104045,0,15.556349186104045,0,15.556349186104045,0,15.556349186104045,0,15.556349186104045,0,15.556349186104045,0,15.556349186104045,0,15.556349186104045,0,15.556349186104045,0,15.556349186104045,0,15.556349186104045,0,15.556349186104045,0,15.556349186104045,0,15.556349186104045,0,15.556349186104045,0,15.556349186104045,0,15.556349186104045,0,15.556349186104045,0,15.556349186104045,0,15.556349186104045,0,15.556349186104045,0,15.556349186104045,0,15.556349186104045,0,15.556349186104045,0,15.556349186104045,0,15.556349186104045,0,15.556349186104045]
[null,"With no vision difficulty",0,15.556349186104045,0,15.556349186104045,0,15.556349186104045,401,101.23734488813898,0,15.556349186104045,29,20.808652046684813,0,15.556349186104045,6,7.2111025509279782,55,30.413812651491099,7,7.810249675906654,0,15.556349186104045,0,15.556349186104045,33,21.931712199461309,0,15.556349186104045,0,15.556349186104045,9,8.6023252670426267,0,15.556349186104045,0,15.556349186104045,54,38.600518131237564,0,15.556349186104045,0,15.556349186104045,42,23.53720459187964,0,15.556349186104045,150,88.814413244698073,0,15.556349186104045,0,15.556349186104045,41,23.259406699226016,0,15.556349186104045,179,58.249463516842795,0,15.556349186104045,0,15.556349186104045,0,15.556349186104045,16,12.649110640673518,0,15.556349186104045,0,15.556349186104045,17,16.15549442140351,40,26.92582403567252,32,28.284271247461902,14,18.439088914585774,0,15.556349186104045,0,15.556349186104045,0,15.556349186104045,144,57.201398584300364]
[null,"5 to 17 years:",0,15.556349186104045,0,15.556349186104045,0,15.556349186104045,1184,159.96249560443849,0,15.556349186104045,111,78.721026416072604,0,15.556349186104045,25,15.811388300841896,246,78.006409993025571,72,28.301943396169811,0,15.556349186104045,0,15.556349186104045,99,39.824615503479755,0,15.556349186104045,2,11.704699910719626,54,35.440090293338699,27,22.203603311174518,0,15.556349186104045,354,82.419657849326214,0,15.556349186104045,0,15.556349186104045,80,26.40075756488817,0,15.556349186104045,518,96.426137535421375,0,15.556349186104045,0,15.556349186104045,179,42.201895692018383,0,15.556349186104045,343,91.967385523347346,0,15.556349186104045,0,15.556349186104045,57,27.784887978899608,7,5.6568542494923806,0,15.556349186104045,0,15.556349186104045,36,20.518284528683193,105,47.885279575251516,108,55.226805085936306,98,32.756678708318397,0,15.556349186104045,0,15.556349186104045,0,15.556349186104045,260,86.023252670426274]
[null,"With vision difficulty",0,15.556349186104045,0,15.556349186104045,0,15.556349186104045,0,25.45584412271571,0,15.556349186104045,0,15.556349186104045,0,15.556349186104045,0,15.556349186104045,0,15.556349186104045,0,15.556349186104045,0,15.556349186104045,0,15.556349186104045,0,15.556349186104045,0,15.556349186104045,0,15.556349186104045,4,12.529964086141668,0,15.556349186104045,0,15.556349186104045,0,15.556349186104045,0,15.556349186104045,0,15.556349186104045,0,15.556349186104045,0,15.556349186104045,0,15.556349186104045,0,15.556349186104045,0,15.556349186104045,3,11.704699910719626,0,15.556349186104045,12,17.804493814764857,0,15.556349186104045,0,15.556349186104045,0,15.556349186104045,0,15.556349186104045,0,15.556349186104045,0,15.556349186104045,0,15.556349186104045,0,15.556349186104045,0,15.556349186104045,2,11.401754250991379,0,15.556349186104045,0,15.556349186104045,0,15.556349186104045,0,15.556349186104045]
[null,"With no vision difficulty",0,15.556349186104045,0,15.556349186104045,0,15.556349186104045,1184,159.96249560443849,0,15.556349186104045,111,78.721026416072604,0,15.556349186104045,25,15.811388300841896,246,78.006409993025571,72,28.301943396169811,0,15.556349186104045,0,15.556349186104045,99,39.824615503479755,0,15.556349186104045,2,11.704699910719626,50,34.928498393145958,27,22.203603311174518,0,15.556349186104045,354,82.419657849326214,0,15.556349186104045,0,15.556349186104045,80,26.40075756488817,0,15.556349186104045,518,96.426137535421375,0,15.556349186104045,0,15.556349186104045,176,42.201895692018383,0,15.556349186104045,331,91.241437954473298,0,15.556349186104045,0,15.556349186104045,57,27.784887978899608,7,5.6568542494923806,0,15.556349186104045,0,15.556349186104045,36,20.518284528683193,105,47.885279575251516,108,55.226805085936306,96,32.249030993194197,0,15.556349186104045,0,15.556349186104045,0,15.556349186104045,260,86.023252670426274]
[null,"18 to 34 years:",0,15.556349186104045,0,15.556349186104045,0,15.556349186104045,1821,220.41097976280582,0,15.556349186104045,135,70.007142492748557,0,15.556349186104045,54,20,274,71.400280111495363,91,37.735924528226413,0,15.556349186104045,0,15.556349186104045,156,51.039200620699383,0,15.556349186104045,5,12.529964086141668,42,14.866068747318506,0,15.556349186104045,0,15.556349186104045,314,88.0056816347672,5,13.601470508735444,0,15.556349186104045,124,43.416586692184822,0,15.556349186104045,578,107.56393447619885,0,15.556349186104045,0,15.556349186104045,268,65.79513659838392,0,15.556349186104045,447,103.39245620450265,10,15.556349186104045,7,13.601470508735444,89,37.443290453698111,52,19.416487838947599,11,26.40075756488817,0,15.556349186104045,35,15.620499351813308,69,29.681644159311659,106,50.803543183522152,76,35.355339059327378,0,15.556349186104045,0,15.556349186104045,3,11.704699910719626,254,80.454956342042721]
[null,"With vision difficulty",0,15.556349186104045,0,15.556349186104045,0,15.556349186104045,6,20.124611797498108,0,15.556349186104045,0,15.556349186104045,0,15.556349186104045,2,11.704699910719626,0,15.556349186104045,3,12.083045973594572,0,15.556349186104045,0,15.556349186104045,0,15.556349186104045,0,15.556349186104045,0,15.556349186104045,0,15.556349186104045,0,15.556349186104045,0,15.556349186104045,0,15.556349186104045,0,15.556349186104045,0,15.556349186104045,0,15.556349186104045,0,15.556349186104045,25,40.521599178709621,0,15.556349186104045,0,15.556349186104045,5,12.529964086141668,0,15.556349186104045,7,15.556349186104045,0,15.556349186104045,0,15.556349186104045,0,15.556349186104045,0,15.556349186104045,0,15.556349186104045,0,15.556349186104045,0,15.556349186104045,0,15.556349186104045,0,15.556349186104045,10,19.416487838947599,0,15.556349186104045,0,15.556349186104045,0,15.556349186104045,0,15.556349186104045]
[null,"With no vision difficulty",0,15.556349186104045,0,15.556349186104045,0,15.556349186104045,1815,219.61784991206886,0,15.556349186104045,135,70.007142492748557,0,15.556349186104045,52,19.209372712298546,274,71.400280111495363,88,36.891733491393431,0,15.556349186104045,0,15.556349186104045,156,51.039200620699383,0,15.556349186104045,5,12.529964086141668,42,14.866068747318506,0,15.556349186104045,0,15.556349186104045,314,88.0056816347672,5,13.601470508735444,0,15.556349186104045,124,43.416586692184822,0,15.556349186104045,553,103.58571330062848,0,15.556349186104045,0,15.556349186104045,263,65.069193939989759,0,15.556349186104045,440,102.06860437960343,10,15.556349186104045,7,13.601470508735444,89,37.443290453698111,52,19.416487838947599,11,26.40075756488817,0,15.556349186104045,35,15.620499351813308,69,29.681644159311659,106,50.803543183522152,66,30.232432915661949,0,15.556349186104045,0,15.556349186104045,3,11.704699910719626,254,80.454956342042721]
[null,"35 to 64 years:",0,15.556349186104045,0,15.556349186104045,0,15.556349186104045,3259,197.99494943053472,0,15.556349186104045,303,50.209560842532767,0,15.556349186104045,166,45.453272709454048,839,91.219515455849688,307,59.033888572581766,0,15.556349186104045,0,15.556349186104045,456,62.936475910238251,0,15.556349186104045,2,12.529964086141668,114,22.203603311174518,112,27.802877548915689,0,15.556349186104045,1241,97.621718894926246,8,14.866068747318506,0,15.556349186104045,404,54.451813560247928,0,15.556349186104045,1258,137.93114224133723,0,15.556349186104045,0,15.556349186104045,592,51.088159097779204,4,12.529964086141668,946,101.82828683622247,0,15.556349186104045,4,13.601470508735444,341,57.489129407219238,165,31.827660925679098,0,15.556349186104045,0,15.556349186104045,190,34.655446902326915,235,43.840620433565945,293,64.350602172784676,312,53.907327887774215,0,15.556349186104045,0,15.556349186104045,4,11.704699910719626,874,104.4030650891055]
[null,"With vision difficulty",0,15.556349186104045,0,15.556349186104045,0,15.556349186104045,130,82.927679335671755,0,15.556349186104045,11,9.4868329805051381,0,15.556349186104045,2,3.6055512754639891,19,21.540659228538015,17,21.095023109728988,0,15.556349186104045,0,15.556349186104045,13,11.661903789690601,0,15.556349186104045,1,11.704699910719626,4,12.529964086141668,0,15.556349186104045,0,15.556349186104045,40,21.931712199461309,3,12.529964086141668,0,15.556349186104045,3,11.704699910719626,0,15.556349186104045,51,40.853396431630991,0,15.556349186104045,0,15.556349186104045,9,7.2111025509279782,0,15.556349186104045,24,16.401219466856727,0,15.556349186104045,0,15.556349186104045,4,12.529964086141668,3,11.704699910719626,0,15.556349186104045,0,15.556349186104045,8,9.8488578017961039,7,5.8309518948453007,8,14.866068747318506,29,18.788294228055936,0,15.556349186104045,0,15.556349186104045,0,15.556349186104045,42,41.484937025383083]
[null,"With no vision difficulty",0,15.556349186104045,0,15.556349186104045,0,15.556349186104045,3129,201.58620984581262,0,15.556349186104045,292,51.662365412357957,0,15.556349186104045,164,45.453272709454048,820,90.520715861066847,290,54.488530903301111,0,15.556349186104045,0,15.556349186104045,443,62.936475910238251,0,15.556349186104045,1,11.401754250991379,110,19.849433241279208,112,27.802877548915689,0,15.556349186104045,1201,97.621718894926246,5,12.529964086141668,0,15.556349186104045,401,54.451813560247928,0,15.556349186104045,1207,124.84390253432484,0,15.556349186104045,0,15.556349186104045,583,50.328918128646478,4,12.529964086141668,922,100.89598604503551,0,15.556349186104045,4,13.601470508735444,337,58.258046654518033,162,32.526911934581186,0,15.556349186104045,0,15.556349186104045,182,32.557641192199412,228,43.139309220245984,285,64.350602172784676,283,49.497474683058329,0,15.556349186104045,0,15.556349186104045,4,11.704699910719626,832,95.015788161757627]
[null,"65 to 74 years:",0,15.556349186104045,0,15.556349186104045,0,15.556349186104045,951,128.08200498118384,0,15.556349186104045,133,30.413812651491099,0,15.556349186104045,58,21.95449840010015,289,58.412327466040935,78,20.615528128088304,0,15.556349186104045,0,15.556349186104045,107,31.827660925679098,0,15.556349186104045,2,12.529964086141668,49,17.464249196572979,36,19.104973174542799,0,15.556349186104045,334,77.233412458598508,0,15.556349186104045,0,15.556349186104045,156,34.828149534535996,0,15.556349186104045,336,72.138755187485728,0,15.556349186104045,0,15.556349186104045,194,36.235341863986875,0,15.556349186104045,253,51.739733281106119,0,15.556349186104045,0,15.556349186104045,199,44.407206622349037,87,20,0,15.556349186104045,0,15.556349186104045,82,24.413111231467404,90,27.202941017470888,236,54.037024344425184,69,20,0,15.556349186104045,0,15.556349186104045,11,7.2111025509279782,430,79.981247802219244]
[null,"With vision difficulty",0,15.556349186104045,0,15.556349186104045,0,15.556349186104045,38,42.953463189829058,0,15.556349186104045,21,17.464249196572979,0,15.556349186104045,0,15.556349186104045,42,34.481879299133332,2,11.401754250991379,0,15.556349186104045,0,15.556349186104045,0,15.556349186104045,0,15.556349186104045,0,15.556349186104045,3,3.6055512754639891,0,15.556349186104045,0,15.556349186104045,3,12.529964086141668,0,15.556349186104045,0,15.556349186104045,6,13.601470508735444,0,15.556349186104045,15,16.401219466856727,0,15.556349186104045,0,15.556349186104045,0,15.556349186104045,0,15.556349186104045,19,21.095023109728988,0,15.556349186104045,0,15.556349186104045,19,26.40075756488817,6,14.212670403551895,0,15.556349186104045,0,15.556349186104045,1,11.704699910719626,0,15.556349186104045,14,14.866068747318506,3,12.529964086141668,0,15.556349186104045,0,15.556349186104045,0,15.556349186104045,11,17.804493814764857]
[null,"With no vision difficulty",0,15.556349186104045,0,15.556349186104045,0,15.556349186104045,913,129.4488315899375,0,15.556349186104045,112,26.92582403567252,0,15.556349186104045,58,21.95449840010015,247,51.623637996561229,76,20.615528128088304,0,15.556349186104045,0,15.556349186104045,107,31.827660925679098,0,15.556349186104045,2,12.529964086141668,46,17.464249196572979,36,19.104973174542799,0,15.556349186104045,331,77.233412458598508,0,15.556349186104045,0,15.556349186104045,150,34.058772731852805,0,15.556349186104045,321,71.449282711584999,0,15.556349186104045,0,15.556349186104045,194,36.235341863986875,0,15.556349186104045,234,50.24937810560445,0,15.556349186104045,0,15.556349186104045,180,39.698866482558415,81,18.439088914585774,0,15.556349186104045,0,15.556349186104045,81,23.853720883753127,90,27.202941017470888,222,54.037024344425184,66,19.209372712298546,0,15.556349186104045,0,15.556349186104045,11,7.2111025509279782,419,77.077882690172544]
[null,"75 years and over:",0,15.556349186104045,0,15.556349186104045,0,15.556349186104045,768,104.63746938836012,0,15.556349186104045,61,21.931712199461309,0,15.556349186104045,15,12.041594578792296,205,48.270073544588683,78,24.041630560342615,0,15.556349186104045,0,15.556349186104045,55,23.345235059857504,0,15.556349186104045,0,15.556349186104045,38,15.620499351813308,30,15.264337522473747,0,15.556349186104045,326,77.89736837660179,0,15.556349186104045,0,15.556349186104045,44,18.601075237738275,0,15.556349186104045,322,79.906195003891909,0,15.556349186104045,0,15.556349186104045,58,18.439088914585774,4,12.529964086141668,154,46.690470119715009,0,15.556349186104045,0,15.556349186104045,54,22.825424421026653,38,15,0,15.556349186104045,0,15.556349186104045,48,21.633307652783937,67,21.2602916254693,82,24.413111231467404,61,22.022715545545239,0,15.556349186104045,0,15.556349186104045,8,13.601470508735444,240,62.241465278381739]
[null,"With vision difficulty",0,15.556349186104045,0,15.556349186104045,0,15.556349186104045,89,55.461698495448189,0,15.556349186104045,21,15.811388300841896,0,15.556349186104045,0,15.556349186104045,10,9.4339811320566032,9,10,0,15.556349186104045,0,15.556349186104045,6,15.556349186104045,0,15.556349186104045,0,15.556349186104045,0,15.556349186104045,4,13.038404810405298,0,15.556349186104045,33,24.839484696748443,0,15.556349186104045,0,15.556349186104045,8,14.866068747318506,0,15.556349186104045,39,44.598206241955516,0,15.556349186104045,0,15.556349186104045,9,13.038404810405298,0,15.556349186104045,20,19.924858845171276,0,15.556349186104045,0,15.556349186104045,7,8.6023252670426267,2,11.401754250991379,0,15.556349186104045,0,15.556349186104045,4,13.038404810405298,4,4.2426406871192848,5,5.6568542494923806,6,5,0,15.556349186104045,0,15.556349186104045,0,15.556349186104045,24,15.811388300841896]
[null,"With no vision difficulty",0,15.556349186104045,0,15.556349186104045,0,15.556349186104045,679,94.201910808645493,0,15.556349186104045,40,14.866068747318506,0,15.556349186104045,15,12.041594578792296,195,47.507894080878813,69,21.931712199461309,0,15.556349186104045,0,15.556349186104045,49,21.931712199461309,0,15.556349186104045,0,15.556349186104045,38,15.620499351813308,26,13.601470508735444,0,15.556349186104045,293,76.05918747922567,0,15.556349186104045,0,15.556349186104045,36,16.552945357246848,0,15.556349186104045,283,69.354163537598808,0,15.556349186104045,0,15.556349186104045,49,16.970562748477139,4,12.529964086141668,134,42.01190307520001,0,15.556349186104045,0,15.556349186104045,47,21.470910553583888,36,14.212670403551895,0,15.556349186104045,0,15.556349186104045,44,20,63,21.2602916254693,77,24.413111231467404,55,22.803508501982758,0,15.556349186104045,0,15.556349186104045,8,13.601470508735444,216,61.554853586049575]
[]
[]
[]
[]
[]
[]
[]
[]
[]
[]
[]
[]
[]
[]
[]
[]
[]
[]
[]
[]
[]
[]
[]
[]
[]
[]
["B18103. SEX BY AGE BY VISION DIFFICULTY\n\n\n-Calculated"]
["Universe:  Civilian non-institutionalized population"]
["Data Set: 2010-2014 American Community Survey 5-Year Estimates"]
[]
[]
[null,null,"Atkinson and Gilmanton Grant",null,"Bean's Grant",null,"Bean's Purchase",null,"Berlin",null,"Cambridge",null,"Carroll",null,"Chandler's Purchase",null,"Clarksville",null,"Colebrook",null,"Columbia",null,"Crawford's Purchase",null,"Cutt's Grant",null,"Dalton",null,"Dix's Grant",null,"Dixville",null,"Dummer",null,"Errol",null,"Erving's Location",null,"Gorham",null,"Greens Grant",null,"Hadley's Purchase",null,"Jefferson",null,"Kilkenny",null,"Lancaster",null,"Low and Burbank's Grant",null,"Martin's Location",null,"Milan",null,"Millsfield",null,"Northumberland",null,"Odell",null,"Pinkham's Grant",null,"Pittsburg",null,"Randolph",null,"Sargent's Purchase",null,"Second College Grant",null,"Shelburne",null,"Stark",null,"Stewartstown",null,"Stratford",null,"Success",null,"Thompson and Meserves Purchase",null,"Wentworth's Location",null,"Whitefield"]
[null,null,"Estimate","Margin Of Error","Estimate","Margin Of Error","Estimate","Margin Of Error","Estimate","Margin Of Error","Estimate","Margin Of Error","Estimate","Margin Of Error","Estimate","Margin Of Error","Estimate","Margin Of Error","Estimate","Margin Of Error","Estimate","Margin Of Error","Estimate","Margin Of Error","Estimate","Margin Of Error","Estimate","Margin Of Error","Estimate","Margin Of Error","Estimate","Margin Of Error","Estimate","Margin Of Error","Estimate","Margin Of Error","Estimate","Margin Of Error","Estimate","Margin Of Error","Estimate","Margin Of Error","Estimate","Margin Of Error","Estimate","Margin Of Error","Estimate","Margin Of Error","Estimate","Margin Of Error","Estimate","Margin Of Error","Estimate","Margin Of Error","Estimate","Margin Of Error","Estimate","Margin Of Error","Estimate","Margin Of Error","Estimate","Margin Of Error","Estimate","Margin Of Error","Estimate","Margin Of Error","Estimate","Margin Of Error","Estimate","Margin Of Error","Estimate","Margin Of Error","Estimate","Margin Of Error","Estimate","Margin Of Error","Estimate","Margin Of Error","Estimate","Margin Of Error","Estimate","Margin Of Error","Estimate","Margin Of Error","Estimate","Margin Of Error","Estimate","Margin Of Error"]
[null,"Total",0,11,0,11,0,11,8671,580,17,16,991,165,0,11,315,75,2340,210,726,132,0,11,0,11,933,154,13,9,11,9,348,76,301,70,0,11,2765,15,8,17,0,11,0,11,0,11,3338,89,0,11,0,11,20,16,21,19,0,11,0,11,8,6,875,130,424,74,9,12,0,11,358,66,490,94,712,123,0,11,0,11,0,11,62,33,2081,219]
[null,"Under 5 years:",0,15.556349186104045,0,15.556349186104045,0,15.556349186104045,423,104.23531071570709,0,15.556349186104045,27,18.601075237738275,0,15.556349186104045,11,10.440306508910551,93,41.617304093369626,29,17.029386365926403,0,15.556349186104045,0,15.556349186104045,10,8.6023252670426267,0,15.556349186104045,0,15.556349186104045,4,12.083045973594572,5,4.4721359549995796,0,15.556349186104045,162,75.604232685743199,0,15.556349186104045,0,15.556349186104045,0,15.556349186104045,0,15.556349186104045,135,57.801384066473702,0,15.556349186104045,0,15.556349186104045,3,5.6568542494923806,5,5.6568542494923806,0,15.556349186104045,0,15.556349186104045,0,15.556349186104045,2,12.083045973594572,2,3.6055512754639891,0,15.556349186104045,0,15.556349186104045,13,12.649110640673518,31,19.209372712298546,26,20.248456731316587,0,15.556349186104045,0,15.556349186104045,0,15.556349186104045,0,15.556349186104045,97,39.597979746446661]
[null,"With vision difficulty",0,15.556349186104045,0,15.556349186104045,0,15.556349186104045,0,21.213203435596427,0,15.556349186104045,0,15.556349186104045,0,15.556349186104045,0,15.556349186104045,0,15.556349186104045,0,15.556349186104045,0,15.556349186104045,0,15.556349186104045,0,15.556349186104045,0,15.556349186104045,0,15.556349186104045,0,15.556349186104045,0,15.556349186104045,0,15.556349186104045,0,15.556349186104045,0,15.556349186104045,0,15.556349186104045,0,15.556349186104045,0,15.556349186104045,0,15.556349186104045,0,15.556349186104045,0,15.556349186104045,0,15.556349186104045,0,15.556349186104045,0,15.556349186104045,0,15.556349186104045,0,15.556349186104045,0,15.556349186104045,0,15.556349186104045,0,15.556349186104045,0,15.556349186104045,0,15.556349186104045,0,15.556349186104045,0,15.556349186104045,0,15.556349186104045,0,15.556349186104045,0,15.556349186104045,0,15.556349186104045,0,15.556349186104045]
[null,"With no vision difficulty",0,15.556349186104045,0,15.556349186104045,0,15.556349186104045,423,104.23531071570709,0,15.556349186104045,27,18.601075237738275,0,15.556349186104045,11,10.440306508910551,93,41.617304093369626,29,17.029386365926403,0,15.556349186104045,0,15.556349186104045,10,8.6023252670426267,0,15.556349186104045,0,15.556349186104045,4,12.083045973594572,5,4.4721359549995796,0,15.556349186104045,162,75.604232685743199,0,15.556349186104045,0,15.556349186104045,0,15.556349186104045,0,15.556349186104045,135,57.801384066473702,0,15.556349186104045,0,15.556349186104045,3,5.6568542494923806,5,5.6568542494923806,0,15.556349186104045,0,15.556349186104045,0,15.556349186104045,2,12.083045973594572,2,3.6055512754639891,0,15.556349186104045,0,15.556349186104045,13,12.649110640673518,31,19.209372712298546,26,20.248456731316587,0,15.556349186104045,0,15.556349186104045,0,15.556349186104045,0,15.556349186104045,97,39.597979746446661]
[null,"5 to 17 years:",0,15.556349186104045,0,15.556349186104045,0,15.556349186104045,1200,171.89822570346675,0,15.556349186104045,187,76.661594035083823,0,15.556349186104045,42,19.104973174542799,305,69.31089380465383,102,38.418745424597091,0,15.556349186104045,0,15.556349186104045,128,46.669047558312137,0,15.556349186104045,0,15.556349186104045,71,31.906112267087632,15,16.643316977093239,0,15.556349186104045,406,84.219950130595535,0,15.556349186104045,0,15.556349186104045,0,15.556349186104045,0,15.556349186104045,612,119.88744721612851,0,15.556349186104045,0,15.556349186104045,4,4.2426406871192848,4,5,0,15.556349186104045,0,15.556349186104045,0,15.556349186104045,80,37.20215047547655,57,26.832815729997478,0,15.556349186104045,0,15.556349186104045,42,21.95449840010015,63,28.42534080710379,48,30.805843601498726,0,15.556349186104045,0,15.556349186104045,0,15.556349186104045,4,12.529964086141668,272,67.208630398186216]
[null,"With vision difficulty",0,15.556349186104045,0,15.556349186104045,0,15.556349186104045,36,40.162171256046406,0,15.556349186104045,17,27.313000567495326,0,15.556349186104045,0,15.556349186104045,0,15.556349186104045,2,11.704699910719626,0,15.556349186104045,0,15.556349186104045,0,15.556349186104045,0,15.556349186104045,0,15.556349186104045,0,15.556349186104045,0,15.556349186104045,0,15.556349186104045,11,17.029386365926403,0,15.556349186104045,0,15.556349186104045,0,15.556349186104045,0,15.556349186104045,0,15.556349186104045,0,15.556349186104045,0,15.556349186104045,0,15.556349186104045,0,15.556349186104045,0,15.556349186104045,0,15.556349186104045,0,15.556349186104045,0,15.556349186104045,0,15.556349186104045,0,15.556349186104045,0,15.556349186104045,0,15.556349186104045,0,15.556349186104045,0,15.556349186104045,0,15.556349186104045,0,15.556349186104045,0,15.556349186104045,0,15.556349186104045,0,15.556349186104045]
[null,"With no vision difficulty",0,15.556349186104045,0,15.556349186104045,0,15.556349186104045,1164,174,0,15.556349186104045,170,61.073725938409879,0,15.556349186104045,42,19.104973174542799,305,69.31089380465383,100,38.418745424597091,0,15.556349186104045,0,15.556349186104045,128,46.669047558312137,0,15.556349186104045,0,15.556349186104045,71,31.906112267087632,15,16.643316977093239,0,15.556349186104045,395,82.219219164377861,0,15.556349186104045,0,15.556349186104045,0,15.556349186104045,0,15.556349186104045,612,119.88744721612851,0,15.556349186104045,0,15.556349186104045,4,4.2426406871192848,4,5,0,15.556349186104045,0,15.556349186104045,0,15.556349186104045,80,37.20215047547655,57,26.832815729997478,0,15.556349186104045,0,15.556349186104045,42,21.95449840010015,63,28.42534080710379,48,30.805843601498726,0,15.556349186104045,0,15.556349186104045,0,15.556349186104045,4,12.529964086141668,272,67.208630398186216]
[null,"18 to 34 years:",0,15.556349186104045,0,15.556349186104045,0,15.556349186104045,1631,174.02586014727811,0,15.556349186104045,197,85.632937588290176,0,15.556349186104045,23,13.45362404707371,296,75.451971478550519,79,28.319604517012593,0,15.556349186104045,0,15.556349186104045,143,51.662365412357957,6,6.7082039324993694,5,7.2111025509279782,23,11.401754250991379,39,21.931712199461309,0,15.556349186104045,443,102.00490184299969,4,14.212670403551895,0,15.556349186104045,0,15.556349186104045,0,15.556349186104045,463,103.47946656221224,0,15.556349186104045,0,15.556349186104045,4,5.6568542494923806,4,5.6568542494923806,0,15.556349186104045,0,15.556349186104045,4,7.2111025509279782,68,35,41,17.204650534085253,0,15.556349186104045,0,15.556349186104045,45,19.209372712298546,60,23.430749027719962,134,46.669047558312137,0,15.556349186104045,0,15.556349186104045,0,15.556349186104045,15,15.231546211727817,411,83.486525858967212]
[null,"With vision difficulty",0,15.556349186104045,0,15.556349186104045,0,15.556349186104045,51,48.836461788299118,0,15.556349186104045,0,15.556349186104045,0,15.556349186104045,0,15.556349186104045,0,15.556349186104045,0,15.556349186104045,0,15.556349186104045,0,15.556349186104045,0,15.556349186104045,0,15.556349186104045,0,15.556349186104045,0,15.556349186104045,0,15.556349186104045,0,15.556349186104045,0,15.556349186104045,0,15.556349186104045,0,15.556349186104045,0,15.556349186104045,0,15.556349186104045,0,15.556349186104045,0,15.556349186104045,0,15.556349186104045,0,15.556349186104045,0,15.556349186104045,0,15.556349186104045,0,15.556349186104045,0,15.556349186104045,0,15.556349186104045,4,13.038404810405298,0,15.556349186104045,0,15.556349186104045,0,15.556349186104045,0,15.556349186104045,5,13.601470508735444,0,15.556349186104045,0,15.556349186104045,0,15.556349186104045,0,15.556349186104045,4,12.529964086141668]
[null,"With no vision difficulty",0,15.556349186104045,0,15.556349186104045,0,15.556349186104045,1580,179.44915714485816,0,15.556349186104045,197,85.632937588290176,0,15.556349186104045,23,13.45362404707371,296,75.451971478550519,79,28.319604517012593,0,15.556349186104045,0,15.556349186104045,143,51.662365412357957,6,6.7082039324993694,5,7.2111025509279782,23,11.401754250991379,39,21.931712199461309,0,15.556349186104045,443,102.00490184299969,4,14.212670403551895,0,15.556349186104045,0,15.556349186104045,0,15.556349186104045,463,103.47946656221224,0,15.556349186104045,0,15.556349186104045,4,5.6568542494923806,4,5.6568542494923806,0,15.556349186104045,0,15.556349186104045,4,7.2111025509279782,68,35,37,15.620499351813308,0,15.556349186104045,0,15.556349186104045,45,19.209372712298546,60,23.430749027719962,129,45.967379738244816,0,15.556349186104045,0,15.556349186104045,0,15.556349186104045,15,15.231546211727817,407,82.758685344802331]
[null,"35 to 64 years:",0,15.556349186104045,0,15.556349186104045,0,15.556349186104045,3621,264.20068130116545,12,10.295630140987001,378,90.520715861066847,0,15.556349186104045,158,35.468295701936398,1139,119.60351165413162,352,65.73431371817918,0,15.556349186104045,0,15.556349186104045,407,62.936475910238251,7,8.5440037453175304,6,8.6023252670426267,168,33.421549934136806,147,35.608987629529715,0,15.556349186104045,1281,107.48953437428223,4,14.212670403551895,0,15.556349186104045,0,15.556349186104045,0,15.556349186104045,1580,137.90576492663388,0,15.556349186104045,0,15.556349186104045,9,8.5440037453175304,8,7.6157731058639087,0,15.556349186104045,0,15.556349186104045,4,12.083045973594572,486,71.589105316381762,197,35.468295701936398,9,9.2195444572928871,0,15.556349186104045,170,31.622776601683793,226,41.231056256176608,267,53.814496188294839,0,15.556349186104045,0,15.556349186104045,0,15.556349186104045,29,15.556349186104045,965,110.39021695784459]
[null,"With vision difficulty",0,15.556349186104045,0,15.556349186104045,0,15.556349186104045,151,73.246160308919954,0,15.556349186104045,15,15.524174696260024,0,15.556349186104045,0,15.556349186104045,54,33.541019662496844,16,12.727922061357855,0,15.556349186104045,0,15.556349186104045,6,13.038404810405298,0,15.556349186104045,0,15.556349186104045,0,15.556349186104045,8,8.4852813742385695,0,15.556349186104045,15,19.416487838947599,4,14.212670403551895,0,15.556349186104045,0,15.556349186104045,0,15.556349186104045,83,59.033888572581766,0,15.556349186104045,0,15.556349186104045,0,15.556349186104045,0,15.556349186104045,0,15.556349186104045,0,15.556349186104045,0,15.556349186104045,10,17.804493814764857,0,15.556349186104045,0,15.556349186104045,0,15.556349186104045,1,11.180339887498949,4,5,11,16.278820596099706,0,15.556349186104045,0,15.556349186104045,0,15.556349186104045,0,15.556349186104045,31,29.546573405388315]
[null,"With no vision difficulty",0,15.556349186104045,0,15.556349186104045,0,15.556349186104045,3470,254.03149411047443,12,10.295630140987001,363,90.520715861066847,0,15.556349186104045,158,35.468295701936398,1085,114.5512985522207,336,64.350602172784676,0,15.556349186104045,0,15.556349186104045,401,62.241465278381739,7,8.5440037453175304,6,8.6023252670426267,168,33.421549934136806,139,35.608987629529715,0,15.556349186104045,1266,108.89444430272832,0,15.556349186104045,0,15.556349186104045,0,15.556349186104045,0,15.556349186104045,1497,146.23952953972466,0,15.556349186104045,0,15.556349186104045,9,8.5440037453175304,8,7.6157731058639087,0,15.556349186104045,0,15.556349186104045,4,12.083045973594572,476,69.028979421689272,197,35.468295701936398,9,9.2195444572928871,0,15.556349186104045,169,31.622776601683793,222,41.231056256176608,256,52.497618993626752,0,15.556349186104045,0,15.556349186104045,0,15.556349186104045,29,15.556349186104045,934,107.5174404457249]
[null,"65 to 74 years:",0,15.556349186104045,0,15.556349186104045,0,15.556349186104045,750,97.616596949494195,0,15.556349186104045,162,41.231056256176608,0,15.556349186104045,45,19.104973174542799,388,83.234608186739251,109,29.154759474226502,0,15.556349186104045,0,15.556349186104045,154,31.89043743820395,0,15.556349186104045,0,15.556349186104045,57,17.029386365926403,61,22.203603311174518,0,15.556349186104045,203,62.481997407253232,0,15.556349186104045,0,15.556349186104045,0,15.556349186104045,0,15.556349186104045,376,77.833154889160184,0,15.556349186104045,0,15.556349186104045,0,15.556349186104045,0,15.556349186104045,0,15.556349186104045,0,15.556349186104045,0,15.556349186104045,159,34.655446902326915,69,18.439088914585774,0,15.556349186104045,0,15.556349186104045,41,14.422205101855956,61,17.691806012954132,171,53.009433122794285,0,15.556349186104045,0,15.556349186104045,0,15.556349186104045,14,12.165525060596439,179,52.478567053607705]
[null,"With vision difficulty",0,15.556349186104045,0,15.556349186104045,0,15.556349186104045,12,20.518284528683193,0,15.556349186104045,3,11.704699910719626,0,15.556349186104045,4,12.529964086141668,17,15,0,15.556349186104045,0,15.556349186104045,0,15.556349186104045,7,13.038404810405298,0,15.556349186104045,0,15.556349186104045,0,15.556349186104045,0,15.556349186104045,0,15.556349186104045,0,15.556349186104045,0,15.556349186104045,0,15.556349186104045,0,15.556349186104045,0,15.556349186104045,39,46.238512086787566,0,15.556349186104045,0,15.556349186104045,0,15.556349186104045,0,15.556349186104045,0,15.556349186104045,0,15.556349186104045,0,15.556349186104045,12,10.295630140987001,0,15.556349186104045,0,15.556349186104045,0,15.556349186104045,0,15.556349186104045,6,13.038404810405298,0,15.556349186104045,0,15.556349186104045,0,15.556349186104045,0,15.556349186104045,0,15.556349186104045,19,14.7648230602334]
[null,"With no vision difficulty",0,15.556349186104045,0,15.556349186104045,0,15.556349186104045,738,98.2344135219425,0,15.556349186104045,159,41.231056256176608,0,15.556349186104045,41,18.439088914585774,371,83.006023877788536,109,29.154759474226502,0,15.556349186104045,0,15.556349186104045,147,31.89043743820395,0,15.556349186104045,0,15.556349186104045,57,17.029386365926403,61,22.203603311174518,0,15.556349186104045,203,62.481997407253232,0,15.556349186104045,0,15.556349186104045,0,15.556349186104045,0,15.556349186104045,337,68.410525505948286,0,15.556349186104045,0,15.556349186104045,0,15.556349186104045,0,15.556349186104045,0,15.556349186104045,0,15.556349186104045,0,15.556349186104045,147,34.655446902326915,69,18.439088914585774,0,15.556349186104045,0,15.556349186104045,41,14.422205101855956,55,16.278820596099706,171,53.009433122794285,0,15.556349186104045,0,15.556349186104045,0,15.556349186104045,14,12.165525060596439,160,50.119856344566671]
[null,"75 years and over:",0,15.556349186104045,0,15.556349186104045,0,15.556349186104045,1046,120.88010589009261,5,13.038404810405298,40,18.439088914585774,0,15.556349186104045,36,16.401219466856727,119,36.069377593742864,55,21.633307652783937,0,15.556349186104045,0,15.556349186104045,91,25.612496949731394,0,15.556349186104045,0,15.556349186104045,25,14.7648230602334,34,20,0,15.556349186104045,270,71.700767080973407,0,15.556349186104045,0,15.556349186104045,0,15.556349186104045,0,15.556349186104045,172,65.76473218982953,0,15.556349186104045,0,15.556349186104045,0,15.556349186104045,0,15.556349186104045,0,15.556349186104045,0,15.556349186104045,0,15.556349186104045,80,28.600699292150182,58,17.029386365926403,0,15.556349186104045,0,15.556349186104045,47,15.620499351813308,49,17.691806012954132,66,29.681644159311659,0,15.556349186104045,0,15.556349186104045,0,15.556349186104045,0,15.556349186104045,157,54.561891462814962]
[null,"With vision difficulty",0,15.556349186104045,0,15.556349186104045,0,15.556349186104045,67,37.443290453698111,0,15.556349186104045,6,13.601470508735444,0,15.556349186104045,10,15.556349186104045,8,13.601470508735444,2,11.401754250991379,0,15.556349186104045,0,15.556349186104045,15,17.804493814764857,0,15.556349186104045,0,15.556349186104045,0,15.556349186104045,0,15.556349186104045,0,15.556349186104045,39,27.313000567495326,0,15.556349186104045,0,15.556349186104045,0,15.556349186104045,0,15.556349186104045,37,33.120990323358392,0,15.556349186104045,0,15.556349186104045,0,15.556349186104045,0,15.556349186104045,0,15.556349186104045,0,15.556349186104045,0,15.556349186104045,20,17.464249196572979,2,11.401754250991379,0,15.556349186104045,0,15.556349186104045,1,11.401754250991379,8,7.0710678118654755,0,15.556349186104045,0,15.556349186104045,0,15.556349186104045,0,15.556349186104045,0,15.556349186104045,16,13.892443989449804]
[null,"With no vision difficulty",0,15.556349186104045,0,15.556349186104045,0,15.556349186104045,979,120.7393887677091,5,13.038404810405298,34,17.691806012954132,0,15.556349186104045,26,12.206555615733702,111,35.355339059327378,53,21.095023109728988,0,15.556349186104045,0,15.556349186104045,76,22.627416997969522,0,15.556349186104045,0,15.556349186104045,25,14.7648230602334,34,20,0,15.556349186104045,231,69.426219830839131,0,15.556349186104045,0,15.556349186104045,0,15.556349186104045,0,15.556349186104045,135,57.384666941614292,0,15.556349186104045,0,15.556349186104045,0,15.556349186104045,0,15.556349186104045,0,15.556349186104045,0,15.556349186104045,0,15.556349186104045,60,24.083189157584592,56,16.401219466856727,0,15.556349186104045,0,15.556349186104045,46,14.866068747318506,41,16.278820596099706,66,29.681644159311659,0,15.556349186104045,0,15.556349186104045,0,15.556349186104045,0,15.556349186104045,141,50.931326312987373]

{"sheet":"ACS_Table_B18104","index":32,"n_rows":122,"n_cols":88,"rows_kept":122,"cut":false,"hidden":true,"merged":[]}
["B18104. SEX BY AGE BY COGNITIVE DIFFICULTY\n\n"]
["Universe:  Civilian non-institutionalized population 5 years and over"]
["Data Set: 2015-2019 American Community Survey 5-Year Estimates"]
[]
[null,null,"Atkinson and Gilmanton Grant",null,"Bean's Grant",null,"Bean's Purchase",null,"Berlin",null,"Cambridge",null,"Carroll",null,"Chandler's Purchase",null,"Clarksville",null,"Colebrook",null,"Columbia",null,"Crawford's Purchase",null,"Cutt's Grant",null,"Dalton",null,"Dix's Grant",null,"Dixville",null,"Dummer",null,"Errol",null,"Erving's Location",null,"Gorham",null,"Greens Grant",null,"Hadley's Purchase",null,"Jefferson",null,"Kilkenny",null,"Lancaster",null,"Low and Burbank's Grant",null,"Martin's Location",null,"Milan",null,"Millsfield",null,"Northumberland",null,"Odell",null,"Pinkham's Grant",null,"Pittsburg",null,"Randolph",null,"Sargent's Purchase",null,"Second College Grant",null,"Shelburne",null,"Stark",null,"Stewartstown",null,"Stratford",null,"Success",null,"Thompson and Meserves Purchase",null,"Wentworth's Location",null,"Whitefield"]
[null," ","Estimate","Margin of Error","Estimate","Margin of Error","Estimate","Margin of Error","Estimate","Margin of Error","Estimate","Margin of Error","Estimate","Margin of Error","Estimate",null,"Estimate","Margin of Error","Estimate","Margin of Error","Estimate","Margin of Error","Estimate","Margin of Error","Estimate","Margin of Error","Estimate","Margin of Error","Estimate","Margin of Error","Estimate","Margin of Error","Estimate","Margin of Error","Estimate","Margin of Error","Estimate","Margin of Error","Estimate","Margin of Error","Estimate","Margin of Error","Estimate","Margin of Error","Estimate","Margin of Error","Estimate","Margin of Error","Estimate","Margin of Error","Estimate","Margin of Error","Estimate","Margin of Error","Estimate","Margin of Error","Estimate","Margin of Error","Estimate","Margin of Error","Estimate","Margin of Error","Estimate","Margin of Error","Estimate","Margin of Error","Estimate","Margin of Error","Estimate","Margin of Error","Estimate","Margin of Error","Estimate","Margin of Error","Estimate","Margin of Error","Estimate","Margin of Error","Estimate","Margin of Error","Estimate","Margin of Error","Estimate","Margin of Error","Estimate","Margin of Error","Estimate","Margin of Error"]
[null,"Total:",0,11,0,11,0,11,7983,244,0,11,743,134,0,11,318,87,1853,166,626,118,0,11,0,11,873,135,0,11,11,12,297,69,205,55,0,11,2569,42,13,10,0,11,808,118,0,11,3012,115,0,11,0,11,1291,99,8,12,2143,256,10,12,11,14,740,104,349,65,11,24,0,11,391,58,566,118,825,161,616,108,0,11,0,11,26,16,2058,188]
[null,"Male:",0,11,0,11,0,11,3859,194,0,11,441,90,0,11,172,51,899,103,332,70,0,11,0,11,422,75,0,11,9,10,166,48,109,35,0,11,1367,84,13,10,0,11,388,67,0,11,1446,111,0,11,0,11,684,63,4,6,1103,146,5,11,11,14,407,63,182,37,0,11,0,11,201,34,280,60,415,81,348,72,0,11,0,11,19,12,1003,143]
[null,"5 to 17  years:",0,11,0,11,0,11,544,118,0,11,79,71,0,11,19,13,146,63,29,15,0,11,0,11,47,25,0,11,2,4,37,34,18,18,0,11,211,67,0,11,0,11,57,21,0,11,199,73,0,11,0,11,85,34,0,11,214,67,0,11,0,11,40,24,4,4,0,11,0,11,18,14,33,23,47,29,74,28,0,11,0,11,0,11,161,70]
[null,"With cognitive difficulty",0,11,0,11,0,11,115,84,0,11,0,11,0,11,6,9,0,11,10,8,0,11,0,11,10,16,0,11,0,11,13,13,0,11,0,11,22,22,0,11,0,11,0,11,0,11,41,52,0,11,0,11,14,18,0,11,29,28,0,11,0,11,0,11,0,11,0,11,0,11,5,8,16,20,0,11,5,6,0,11,0,11,0,11,11,14]
[null,"With no cognitive difficulty",0,11,0,11,0,11,429,116,0,11,79,71,0,11,13,12,146,63,19,14,0,11,0,11,37,21,0,11,2,4,24,22,18,18,0,11,189,59,0,11,0,11,57,21,0,11,158,67,0,11,0,11,71,23,0,11,185,67,0,11,0,11,40,24,4,4,0,11,0,11,13,12,17,13,47,29,69,26,0,11,0,11,0,11,150,66]
[null,"18 to 34  years:",0,11,0,11,0,11,1002,175,0,11,98,65,0,11,34,16,91,43,58,32,0,11,0,11,102,42,0,11,5,6,20,11,0,11,0,11,181,71,5,8,0,11,66,34,0,11,334,79,0,11,0,11,144,48,0,11,199,77,5,11,7,8,35,21,29,16,0,11,0,11,15,12,51,25,39,30,39,25,0,11,0,11,3,4,157,68]
[null,"With cognitive difficulty",0,11,0,11,0,11,186,115,0,11,8,10,0,11,6,9,8,11,8,8,0,11,0,11,5,9,0,11,0,11,0,11,0,11,0,11,25,26,0,11,0,11,0,11,0,11,25,29,0,11,0,11,10,12,0,11,7,9,0,11,0,11,3,4,0,11,0,11,0,11,1,2,12,13,3,4,0,11,0,11,0,11,0,11,9,12]
[null,"With no cognitive difficulty",0,11,0,11,0,11,816,165,0,11,90,65,0,11,28,15,83,39,50,30,0,11,0,11,97,41,0,11,5,6,20,11,0,11,0,11,156,71,5,8,0,11,66,34,0,11,309,78,0,11,0,11,134,47,0,11,192,77,5,11,7,8,32,21,29,16,0,11,0,11,14,11,39,20,36,30,39,25,0,11,0,11,3,4,148,67]
[null,"35 to 64  years:",0,11,0,11,0,11,1624,139,0,11,157,36,0,11,69,29,396,64,157,46,0,11,0,11,214,44,0,11,0,11,50,13,52,17,0,11,648,71,8,10,0,11,163,38,0,11,636,100,0,11,0,11,302,33,4,6,501,80,0,11,4,8,184,44,83,22,0,11,0,11,88,24,114,31,168,45,173,41,0,11,0,11,4,4,342,62]
[null,"With cognitive difficulty",0,11,0,11,0,11,232,102,0,11,2,3,0,11,4,7,6,8,21,17,0,11,0,11,10,9,0,11,0,11,3,3,4,7,0,11,24,22,0,11,0,11,0,11,0,11,42,35,0,11,0,11,10,8,0,11,49,30,0,11,0,11,10,10,4,4,0,11,0,11,5,5,7,9,26,18,28,21,0,11,0,11,0,11,26,20]
[null,"With no cognitive difficulty",0,11,0,11,0,11,1392,138,0,11,155,37,0,11,65,28,390,63,136,42,0,11,0,11,204,43,0,11,0,11,47,12,48,15,0,11,624,73,8,10,0,11,163,38,0,11,594,95,0,11,0,11,292,32,4,6,452,72,0,11,4,8,174,45,79,22,0,11,0,11,83,23,107,29,142,48,145,34,0,11,0,11,4,4,316,62]
[null,"65 to 74  years:",0,11,0,11,0,11,436,94,0,11,76,27,0,11,40,19,169,46,49,16,0,11,0,11,41,22,0,11,2,6,36,16,18,14,0,11,175,58,0,11,0,11,83,27,0,11,129,50,0,11,0,11,119,28,0,11,119,39,0,11,0,11,127,36,49,16,0,11,0,11,52,20,52,22,123,42,31,12,0,11,0,11,4,4,220,54]
[null,"With cognitive difficulty",0,11,0,11,0,11,30,27,0,11,3,4,0,11,0,11,3,4,8,10,0,11,0,11,0,11,0,11,0,11,0,11,0,11,0,11,0,11,0,11,0,11,10,9,0,11,23,24,0,11,0,11,0,11,0,11,9,14,0,11,0,11,0,11,0,11,0,11,0,11,3,4,0,11,0,11,3,4,0,11,0,11,0,11,7,10]
[null,"With no cognitive difficulty",0,11,0,11,0,11,406,92,0,11,73,27,0,11,40,19,166,46,41,14,0,11,0,11,41,22,0,11,2,6,36,16,18,14,0,11,175,58,0,11,0,11,73,26,0,11,106,43,0,11,0,11,119,28,0,11,110,38,0,11,0,11,127,36,49,16,0,11,0,11,49,20,52,22,123,42,28,12,0,11,0,11,4,4,213,55]
[null,"75  years and Older:",0,11,0,11,0,11,253,65,0,11,31,15,0,11,10,9,97,31,39,17,0,11,0,11,18,16,0,11,0,11,23,12,21,13,0,11,152,58,0,11,0,11,19,11,0,11,148,57,0,11,0,11,34,14,0,11,70,32,0,11,0,11,21,11,17,9,0,11,0,11,28,18,30,14,38,14,31,17,0,11,0,11,8,8,123,43]
[null,"With cognitive difficulty",0,11,0,11,0,11,31,25,0,11,0,11,0,11,1,2,22,23,4,6,0,11,0,11,9,13,0,11,0,11,0,11,5,7,0,11,8,12,0,11,0,11,12,11,0,11,7,11,0,11,0,11,0,11,0,11,17,19,0,11,0,11,0,11,0,11,0,11,0,11,4,5,6,7,3,5,0,11,0,11,0,11,1,2,13,11]
[null,"With no cognitive difficulty",0,11,0,11,0,11,222,63,0,11,31,15,0,11,9,9,75,29,35,16,0,11,0,11,9,9,0,11,0,11,23,12,16,11,0,11,144,57,0,11,0,11,7,6,0,11,141,57,0,11,0,11,34,14,0,11,53,25,0,11,0,11,21,11,17,9,0,11,0,11,24,18,24,11,35,13,31,17,0,11,0,11,7,8,110,43]
[null,"Female:",0,11,0,11,0,11,4124,190,0,11,302,62,0,11,146,44,954,114,294,60,0,11,0,11,451,76,0,11,2,6,131,27,96,33,0,11,1202,78,0,11,0,11,420,65,0,11,1566,141,0,11,0,11,607,54,4,6,1040,137,5,11,0,11,333,53,167,36,11,24,0,11,190,33,286,67,410,95,268,54,0,11,0,11,7,6,1055,122]
[null,"5 to 17  years:",0,11,0,11,0,11,640,108,0,11,32,34,0,11,6,9,100,46,43,24,0,11,0,11,52,31,0,11,0,11,17,10,9,13,0,11,143,48,0,11,0,11,23,16,0,11,319,63,0,11,0,11,94,25,0,11,129,63,0,11,0,11,17,14,3,4,0,11,0,11,18,15,72,42,61,47,24,17,0,11,0,11,0,11,99,50]
[null,"With cognitive difficulty",0,11,0,11,0,11,75,79,0,11,0,11,0,11,0,11,0,11,0,11,0,11,0,11,10,15,0,11,0,11,0,11,0,11,0,11,0,11,0,11,0,11,3,5,0,11,12,18,0,11,0,11,12,11,0,11,5,7,0,11,0,11,0,11,0,11,0,11,0,11,2,3,0,11,0,11,10,12,0,11,0,11,0,11,0,11]
[null,"With no cognitive difficulty",0,11,0,11,0,11,565,140,0,11,32,34,0,11,6,9,100,46,43,24,0,11,0,11,42,22,0,11,0,11,17,10,9,13,0,11,143,48,0,11,0,11,20,14,0,11,307,64,0,11,0,11,82,24,0,11,124,63,0,11,0,11,17,14,3,4,0,11,0,11,16,14,72,42,61,47,14,12,0,11,0,11,0,11,99,50]
[null,"18 to 34  years:",0,11,0,11,0,11,819,134,0,11,37,26,0,11,20,12,183,57,33,20,0,11,0,11,54,29,0,11,0,11,22,10,0,11,0,11,133,52,0,11,0,11,58,27,0,11,244,73,0,11,0,11,124,45,0,11,248,69,5,11,0,11,54,31,23,11,11,24,0,11,20,10,18,16,67,41,37,25,0,11,0,11,0,11,97,43]
[null,"With cognitive difficulty",0,11,0,11,0,11,11,18,0,11,0,11,0,11,4,6,19,18,0,11,0,11,0,11,12,15,0,11,0,11,0,11,0,11,0,11,0,11,0,11,0,11,3,6,0,11,38,44,0,11,0,11,3,4,0,11,11,12,0,11,0,11,5,6,0,11,11,24,0,11,3,4,5,10,17,21,9,12,0,11,0,11,0,11,19,19]
[null,"With no cognitive difficulty",0,11,0,11,0,11,808,138,0,11,37,26,0,11,16,11,164,58,33,20,0,11,0,11,42,27,0,11,0,11,22,10,0,11,0,11,133,52,0,11,0,11,55,27,0,11,206,62,0,11,0,11,121,45,0,11,237,68,5,11,0,11,49,31,23,11,0,11,0,11,17,10,13,11,50,30,28,21,0,11,0,11,0,11,78,37]
[null,"35 to 64  years:",0,11,0,11,0,11,1635,141,0,11,146,35,0,11,97,35,443,65,150,37,0,11,0,11,242,45,0,11,2,6,64,18,60,22,0,11,593,67,0,11,0,11,241,39,0,11,622,95,0,11,0,11,290,39,0,11,445,63,0,11,0,11,157,37,82,23,0,11,0,11,102,25,121,31,125,46,139,35,0,11,0,11,0,11,532,84]
[null,"With cognitive difficulty",0,11,0,11,0,11,170,87,0,11,1,3,0,11,4,4,22,22,13,13,0,11,0,11,20,13,0,11,1,4,1,3,0,11,0,11,9,14,0,11,0,11,4,5,0,11,63,54,0,11,0,11,10,9,0,11,36,21,0,11,0,11,9,8,0,11,0,11,0,11,10,10,3,4,3,5,12,11,0,11,0,11,0,11,49,41]
[null,"With no cognitive difficulty",0,11,0,11,0,11,1465,150,0,11,145,35,0,11,93,34,421,66,137,34,0,11,0,11,222,43,0,11,1,3,63,17,60,22,0,11,584,69,0,11,0,11,237,40,0,11,559,90,0,11,0,11,280,38,0,11,409,59,0,11,0,11,148,36,82,23,0,11,0,11,92,23,118,30,122,44,127,36,0,11,0,11,0,11,483,70]
[null,"65 to 74  years:",0,11,0,11,0,11,515,87,0,11,57,14,0,11,18,11,120,36,29,13,0,11,0,11,66,23,0,11,0,11,13,7,18,13,0,11,159,51,0,11,0,11,73,22,0,11,207,52,0,11,0,11,75,23,0,11,134,34,0,11,0,11,72,26,38,12,0,11,0,11,30,14,38,16,113,34,38,16,0,11,0,11,7,6,210,59]
[null,"With cognitive difficulty",0,11,0,11,0,11,73,62,0,11,2,3,0,11,0,11,27,21,2,3,0,11,0,11,9,10,0,11,0,11,0,11,0,11,0,11,0,11,0,11,0,11,0,11,0,11,0,11,0,11,0,11,0,11,0,11,0,11,0,11,0,11,12,14,1,2,0,11,0,11,1,3,0,11,0,11,2,3,0,11,0,11,0,11,16,14]
[null,"With no cognitive difficulty",0,11,0,11,0,11,442,96,0,11,55,14,0,11,18,11,93,34,27,13,0,11,0,11,57,20,0,11,0,11,13,7,18,13,0,11,159,51,0,11,0,11,73,22,0,11,207,52,0,11,0,11,75,23,0,11,134,34,0,11,0,11,60,23,37,12,0,11,0,11,29,14,38,16,113,34,36,15,0,11,0,11,7,6,194,57]
[null,"75  years and Older:",0,11,0,11,0,11,515,82,0,11,30,16,0,11,5,8,108,37,39,17,0,11,0,11,37,17,0,11,0,11,15,10,9,8,0,11,174,52,0,11,0,11,25,15,0,11,174,56,0,11,0,11,24,12,4,6,84,34,0,11,0,11,33,20,21,12,0,11,0,11,20,12,37,16,44,20,30,14,0,11,0,11,0,11,117,45]
[null,"With cognitive difficulty",0,11,0,11,0,11,41,32,0,11,15,13,0,11,0,11,26,23,12,11,0,11,0,11,3,5,0,11,0,11,0,11,0,11,0,11,30,27,0,11,0,11,4,8,0,11,7,12,0,11,0,11,0,11,0,11,0,11,0,11,0,11,2,4,0,11,0,11,0,11,1,2,0,11,3,4,6,7,0,11,0,11,0,11,8,9]
[null,"With no cognitive difficulty",0,11,0,11,0,11,474,79,0,11,15,10,0,11,5,8,82,29,27,15,0,11,0,11,34,16,0,11,0,11,15,10,9,8,0,11,144,43,0,11,0,11,21,12,0,11,167,57,0,11,0,11,24,12,4,6,84,34,0,11,0,11,31,20,21,12,0,11,0,11,19,12,37,16,41,20,24,13,0,11,0,11,0,11,109,47]
[]
[]
[{"$f":"A1& \"-Calculated\"","v":"B18104. SEX BY AGE BY COGNITIVE DIFFICULTY\n\n-Calculated"}]
[{"$f":"A2","v":"Universe:  Civilian non-institutionalized population 5 years and over"}]
[{"$f":"A3","v":"Data Set: 2015-2019 American Community Survey 5-Year Estimates"}]
[]
[]
[null,null,"Atkinson and Gilmanton Grant",null,"Bean's Grant",null,"Bean's Purchase",null,"Berlin",null,"Cambridge",null,"Carroll",null,"Chandler's Purchase",null,"Clarksville",null,"Colebrook",null,"Columbia",null,"Crawford's Purchase",null,"Cutt's Grant",null,"Dalton",null,"Dix's Grant",null,"Dixville",null,"Dummer",null,"Errol",null,"Erving's Location",null,"Gorham",null,"Greens Grant",null,"Hadley's Purchase",null,"Jefferson",null,"Kilkenny",null,"Lancaster",null,"Low and Burbank's Grant",null,"Martin's Location",null,"Milan",null,"Millsfield",null,"Northumberland",null,"Odell",null,"Pinkham's Grant",null,"Pittsburg",null,"Randolph",null,"Sargent's Purchase",null,"Second College Grant",null,"Shelburne",null,"Stark",null,"Stewartstown",null,"Stratford",null,"Success",null,"Thompson and Meserves Purchase",null,"Wentworth's Location",null,"Whitefield"]
[null,null,"Estimate","Margin Of Error","Estimate","Margin Of Error","Estimate","Margin Of Error","Estimate","Margin Of Error","Estimate","Margin Of Error","Estimate","Margin Of Error","Estimate","Margin Of Error","Estimate","Margin Of Error","Estimate","Margin Of Error","Estimate","Margin Of Error","Estimate","Margin Of Error","Estimate","Margin Of Error","Estimate","Margin Of Error","Estimate","Margin Of Error","Estimate","Margin Of Error","Estimate","Margin Of Error","Estimate","Margin Of Error","Estimate","Margin Of Error","Estimate","Margin Of Error","Estimate","Margin Of Error","Estimate","Margin Of Error","Estimate","Margin Of Error","Estimate","Margin Of Error","Estimate","Margin Of Error","Estimate","Margin Of Error","Estimate","Margin Of Error","Estimate","Margin Of Error","Estimate","Margin Of Error","Estimate","Margin Of Error","Estimate","Margin Of Error","Estimate","Margin Of Error","Estimate","Margin Of Error","Estimate","Margin Of Error","Estimate","Margin Of Error","Estimate","Margin Of Error","Estimate","Margin Of Error","Estimate","Margin Of Error","Estimate","Margin Of Error","Estimate","Margin Of Error","Estimate","Margin Of Error","Estimate","Margin Of Error","Estimate","Margin Of Error","Estimate","Margin Of Error"]
[null,"Total:",0,11,0,11,0,11,8511,217,19,17,935,179,0,11,321,86,2248,197,678,117,0,11,0,11,964,160,11,9,11,9,350,78,244,55,0,11,2635,71,6,14,0,11,0,11,0,11,3217,79,0,11,0,11,16,15,16,15,0,11,0,11,7,7,972,131,449,84,8,12,0,11,363,69,512,95,690,106,0,11,0,11,0,11,54,34,2005,227]
[null,"5 to 17  years:",0,15.556349186104045,0,15.556349186104045,0,15.556349186104045,1242,153.52198539622916,0,15.556349186104045,180,73,0,15.556349186104045,52,28.231188426986208,309,77.103826104804938,117,43.931765272977593,0,15.556349186104045,0,15.556349186104045,173,55.758407437802596,0,15.556349186104045,0,15.556349186104045,69,32.756678708318397,6,13.038404810405298,0,15.556349186104045,434,86.313382508160345,0,15.556349186104045,0,15.556349186104045,0,15.556349186104045,0,15.556349186104045,586,105.47511554864494,0,15.556349186104045,0,15.556349186104045,4,5,4,5,0,15.556349186104045,0,15.556349186104045,0,15.556349186104045,105,45.453272709454048,54,30.016662039607269,0,15.556349186104045,0,15.556349186104045,44,20.248456731316587,92,35.510561809129406,55,28.301943396169811,0,15.556349186104045,0,15.556349186104045,0,15.556349186104045,3,12.083045973594572,269,76.576758876306585]
[null,"With cognitive difficulty",0,15.556349186104045,0,15.556349186104045,0,15.556349186104045,174,82.565125809872058,0,15.556349186104045,25,26.627053911388696,0,15.556349186104045,1,11.401754250991379,16,17.088007490635061,0,15.556349186104045,0,15.556349186104045,0,15.556349186104045,12,14.212670403551895,0,15.556349186104045,0,15.556349186104045,0,15.556349186104045,0,15.556349186104045,0,15.556349186104045,96,59.506302187247357,0,15.556349186104045,0,15.556349186104045,0,15.556349186104045,0,15.556349186104045,11,21.095023109728988,0,15.556349186104045,0,15.556349186104045,0,15.556349186104045,0,15.556349186104045,0,15.556349186104045,0,15.556349186104045,0,15.556349186104045,12,20.248456731316587,1,11.180339887498949,0,15.556349186104045,0,15.556349186104045,3,11.704699910719626,5,13.038404810405298,5,13.601470508735444,0,15.556349186104045,0,15.556349186104045,0,15.556349186104045,0,15.556349186104045,26,20.518284528683193]
[null,"With no cognitive difficulty",0,15.556349186104045,0,15.556349186104045,0,15.556349186104045,1068,145.69145479402695,0,15.556349186104045,155,57.314919523628397,0,15.556349186104045,51,28.231188426986208,293,77.833154889160184,117,43.931765272977593,0,15.556349186104045,0,15.556349186104045,161,53.254107822777392,0,15.556349186104045,0,15.556349186104045,69,32.756678708318397,6,13.038404810405298,0,15.556349186104045,338,72.138755187485728,0,15.556349186104045,0,15.556349186104045,0,15.556349186104045,0,15.556349186104045,575,99.005050376230813,0,15.556349186104045,0,15.556349186104045,4,5,4,5,0,15.556349186104045,0,15.556349186104045,0,15.556349186104045,93,35.805027579936315,53,29.529646120466801,0,15.556349186104045,0,15.556349186104045,41,19.416487838947599,87,33.837848631377263,50,27.294688127912362,0,15.556349186104045,0,15.556349186104045,0,15.556349186104045,3,12.083045973594572,243,74.411020689142546]
[null,"18 to 34  years:",0,15.556349186104045,0,15.556349186104045,0,15.556349186104045,1663,174.83706700811473,0,15.556349186104045,206,80.808415403347695,0,15.556349186104045,21,18.027756377319946,275,63.7808748764079,66,26.90724809414742,0,15.556349186104045,0,15.556349186104045,153,55,5,7.2111025509279782,5,7.2111025509279782,31,12.041594578792296,42,21.2602916254693,0,15.556349186104045,455,108.23123393919151,3,13.038404810405298,0,15.556349186104045,0,15.556349186104045,0,15.556349186104045,422,93.434469014384618,0,15.556349186104045,0,15.556349186104045,4,5.6568542494923806,4,5.6568542494923806,0,15.556349186104045,0,15.556349186104045,3,13.038404810405298,64,30,36,14.212670403551895,0,15.556349186104045,0,15.556349186104045,46,23.345235059857504,73,25.495097567963924,129,41.109609582188931,0,15.556349186104045,0,15.556349186104045,0,15.556349186104045,15,17.464249196572979,442,97.20082304178294]
[null,"With cognitive difficulty",0,15.556349186104045,0,15.556349186104045,0,15.556349186104045,189,84.219950130595535,0,15.556349186104045,0,15.556349186104045,0,15.556349186104045,0,15.556349186104045,9,10,0,15.556349186104045,0,15.556349186104045,0,15.556349186104045,21,22.203603311174518,1,11.401754250991379,1,11.401754250991379,2,11.401754250991379,0,15.556349186104045,0,15.556349186104045,13,15.811388300841896,3,13.038404810405298,0,15.556349186104045,0,15.556349186104045,0,15.556349186104045,34,33.241540277189323,0,15.556349186104045,0,15.556349186104045,0,15.556349186104045,0,15.556349186104045,0,15.556349186104045,0,15.556349186104045,0,15.556349186104045,0,15.556349186104045,14,10.816653826391969,0,15.556349186104045,0,15.556349186104045,5,6.4031242374328485,7,5.8309518948453007,4,12.083045973594572,0,15.556349186104045,0,15.556349186104045,0,15.556349186104045,0,15.556349186104045,10,11.401754250991379]
[null,"With no cognitive difficulty",0,15.556349186104045,0,15.556349186104045,0,15.556349186104045,1474,180,0,15.556349186104045,206,80.808415403347695,0,15.556349186104045,21,18.027756377319946,266,63.890531379853151,66,26.90724809414742,0,15.556349186104045,0,15.556349186104045,132,51.224993899462788,4,7.2111025509279782,4,7.2111025509279782,29,12.041594578792296,42,21.2602916254693,0,15.556349186104045,442,105.60303025955268,0,15.556349186104045,0,15.556349186104045,0,15.556349186104045,0,15.556349186104045,388,94.260277954183863,0,15.556349186104045,0,15.556349186104045,4,5.6568542494923806,4,5.6568542494923806,0,15.556349186104045,0,15.556349186104045,3,13.038404810405298,64,30,22,10.63014581273465,0,15.556349186104045,0,15.556349186104045,41,21.213203435596427,66,24.758836806279895,125,41.109609582188931,0,15.556349186104045,0,15.556349186104045,0,15.556349186104045,15,17.464249196572979,432,97.20082304178294]
[null,"35 to 64  years:",0,15.556349186104045,0,15.556349186104045,0,15.556349186104045,3703,194.61757371830529,14,11.180339887498949,376,84.403791384036765,0,15.556349186104045,172,37.536648758246919,1203,121.69634341261039,328,63.7808748764079,0,15.556349186104045,0,15.556349186104045,455,63.702433234531945,6,8.6023252670426267,6,8.6023252670426267,181,36.124783736376884,122,33.941125496954278,0,15.556349186104045,1250,124.48293055676348,3,13.038404810405298,0,15.556349186104045,0,15.556349186104045,0,15.556349186104045,1654,135.14806694880988,0,15.556349186104045,0,15.556349186104045,8,7.6157731058639087,8,7.6157731058639087,0,15.556349186104045,0,15.556349186104045,4,13.038404810405298,538,78.568441501661468,248,38.209946349085598,8,8.4852813742385695,0,15.556349186104045,187,33.301651610693426,258,47.010637094172637,311,58.137767414994535,0,15.556349186104045,0,15.556349186104045,0,15.556349186104045,20,15,954,109.34349546269316]
[null,"With cognitive difficulty",0,15.556349186104045,0,15.556349186104045,0,15.556349186104045,348,112.48555462813881,0,15.556349186104045,39,23.600847442411894,0,15.556349186104045,27,15.556349186104045,48,23.600847442411894,68,32.449961479175904,0,15.556349186104045,0,15.556349186104045,10,12.649110640673518,5,8.0622577482985491,5,8.0622577482985491,3,11.704699910719626,5,12.529964086141668,0,15.556349186104045,50,36.400549446402593,3,13.038404810405298,0,15.556349186104045,0,15.556349186104045,0,15.556349186104045,102,64.815121692395209,0,15.556349186104045,0,15.556349186104045,0,15.556349186104045,0,15.556349186104045,0,15.556349186104045,0,15.556349186104045,4,13.038404810405298,20,14.7648230602334,0,15.556349186104045,0,15.556349186104045,0,15.556349186104045,2,3.6055512754639891,11,9.4339811320566032,52,25.80697580112788,0,15.556349186104045,0,15.556349186104045,0,15.556349186104045,3,12.083045973594572,48,32.893768406797051]
[null,"With no cognitive difficulty",0,15.556349186104045,0,15.556349186104045,0,15.556349186104045,3355,209.44211610848473,14,11.180339887498949,337,83.096329642168911,0,15.556349186104045,145,33.97057550292606,1155,121.01652779682617,260,53.009433122794285,0,15.556349186104045,0,15.556349186104045,445,60.959002616512684,1,11.401754250991379,1,11.401754250991379,178,36.124783736376884,117,33.241540277189323,0,15.556349186104045,1200,124.48293055676348,0,15.556349186104045,0,15.556349186104045,0,15.556349186104045,0,15.556349186104045,1552,128.81770064707723,0,15.556349186104045,0,15.556349186104045,8,7.6157731058639087,8,7.6157731058639087,0,15.556349186104045,0,15.556349186104045,0,15.556349186104045,518,79.246451024635803,248,38.209946349085598,8,8.4852813742385695,0,15.556349186104045,185,33.301651610693426,247,46.227697325304881,259,50.24937810560445,0,15.556349186104045,0,15.556349186104045,0,15.556349186104045,17,14.212670403551895,906,104.80458005259122]
[null,"65 to 74  years:",0,15.556349186104045,0,15.556349186104045,0,15.556349186104045,858,107.07007051459338,0,15.556349186104045,133,38.832975677895199,0,15.556349186104045,36,18.439088914585774,278,56.639209034025185,118,33.837848631377263,0,15.556349186104045,0,15.556349186104045,113,29.698484809834994,0,15.556349186104045,0,15.556349186104045,49,15.620499351813308,48,19.235384061671343,0,15.556349186104045,197,67.268120235368556,0,15.556349186104045,0,15.556349186104045,0,15.556349186104045,0,15.556349186104045,347,83.737685661833282,0,15.556349186104045,0,15.556349186104045,0,15.556349186104045,0,15.556349186104045,0,15.556349186104045,0,15.556349186104045,0,15.556349186104045,164,37.483329627982627,61,20.518284528683193,0,15.556349186104045,0,15.556349186104045,39,15.620499351813308,53,17.804493814764857,139,43.266615305567875,0,15.556349186104045,0,15.556349186104045,0,15.556349186104045,16,12.649110640673518,190,55.901699437494742]
[null,"With cognitive difficulty",0,15.556349186104045,0,15.556349186104045,0,15.556349186104045,26,23.430749027719962,0,15.556349186104045,0,15.556349186104045,0,15.556349186104045,0,15.556349186104045,42,31.780497164141408,0,15.556349186104045,0,15.556349186104045,0,15.556349186104045,4,12.529964086141668,0,15.556349186104045,0,15.556349186104045,1,11.180339887498949,6,13.601470508735444,0,15.556349186104045,10,18.601075237738275,0,15.556349186104045,0,15.556349186104045,0,15.556349186104045,0,15.556349186104045,44,42.154477816715982,0,15.556349186104045,0,15.556349186104045,0,15.556349186104045,0,15.556349186104045,0,15.556349186104045,0,15.556349186104045,0,15.556349186104045,14,12.529964086141668,0,15.556349186104045,0,15.556349186104045,0,15.556349186104045,2,11.401754250991379,0,15.556349186104045,0,15.556349186104045,0,15.556349186104045,0,15.556349186104045,0,15.556349186104045,0,15.556349186104045,28,33.837848631377263]
[null,"With no cognitive difficulty",0,15.556349186104045,0,15.556349186104045,0,15.556349186104045,832,105.47511554864494,0,15.556349186104045,133,38.832975677895199,0,15.556349186104045,36,18.439088914585774,236,53.075418038862395,118,33.837848631377263,0,15.556349186104045,0,15.556349186104045,109,29.698484809834994,0,15.556349186104045,0,15.556349186104045,48,15.620499351813308,42,18.357559750685819,0,15.556349186104045,187,66.528189513919585,0,15.556349186104045,0,15.556349186104045,0,15.556349186104045,0,15.556349186104045,303,82.97590011563598,0,15.556349186104045,0,15.556349186104045,0,15.556349186104045,0,15.556349186104045,0,15.556349186104045,0,15.556349186104045,0,15.556349186104045,150,36.124783736376884,61,20.518284528683193,0,15.556349186104045,0,15.556349186104045,37,14.422205101855956,53,17.804493814764857,139,43.266615305567875,0,15.556349186104045,0,15.556349186104045,0,15.556349186104045,16,12.649110640673518,162,47.010637094172637]
[null,"75  years and Older:",0,15.556349186104045,0,15.556349186104045,0,15.556349186104045,1045,130.29965464267354,5,13.038404810405298,40,18.027756377319946,0,15.556349186104045,40,18.867962264113206,183,73.878278269055514,49,20.591260281974002,0,15.556349186104045,0,15.556349186104045,70,21.931712199461309,0,15.556349186104045,0,15.556349186104045,20,11.704699910719626,26,17.4928556845359,0,15.556349186104045,299,85.702975444263316,0,15.556349186104045,0,15.556349186104045,0,15.556349186104045,0,15.556349186104045,208,71.840100222647237,0,15.556349186104045,0,15.556349186104045,0,15.556349186104045,0,15.556349186104045,0,15.556349186104045,0,15.556349186104045,0,15.556349186104045,101,34.713109915419565,50,16.401219466856727,0,15.556349186104045,0,15.556349186104045,47,15,36,13.601470508735444,56,27.459060435491963,0,15.556349186104045,0,15.556349186104045,0,15.556349186104045,0,15.556349186104045,150,49.678969393496885]
[null,"With cognitive difficulty",0,15.556349186104045,0,15.556349186104045,0,15.556349186104045,198,79.202272694664515,5,13.038404810405298,0,15.556349186104045,0,15.556349186104045,14,13.45362404707371,61,57.584720195551874,0,15.556349186104045,0,15.556349186104045,0,15.556349186104045,7,7.2111025509279782,0,15.556349186104045,0,15.556349186104045,0,15.556349186104045,6,13.038404810405298,0,15.556349186104045,34,26.172504656604801,0,15.556349186104045,0,15.556349186104045,0,15.556349186104045,0,15.556349186104045,19,25.495097567963924,0,15.556349186104045,0,15.556349186104045,0,15.556349186104045,0,15.556349186104045,0,15.556349186104045,0,15.556349186104045,0,15.556349186104045,23,18.027756377319946,13,11.704699910719626,0,15.556349186104045,0,15.556349186104045,4,12.083045973594572,4,5,10,19.416487838947599,0,15.556349186104045,0,15.556349186104045,0,15.556349186104045,0,15.556349186104045,42,32.310988842807021]
[null,"With no cognitive difficulty",0,15.556349186104045,0,15.556349186104045,0,15.556349186104045,847,129.41792766073794,0,15.556349186104045,40,18.027756377319946,0,15.556349186104045,26,15.811388300841896,122,50.990195135927848,49,20.591260281974002,0,15.556349186104045,0,15.556349186104045,63,20.518284528683193,0,15.556349186104045,0,15.556349186104045,20,11.704699910719626,20,15.811388300841896,0,15.556349186104045,265,83.096329642168911,0,15.556349186104045,0,15.556349186104045,0,15.556349186104045,0,15.556349186104045,189,67.268120235368556,0,15.556349186104045,0,15.556349186104045,0,15.556349186104045,0,15.556349186104045,0,15.556349186104045,0,15.556349186104045,0,15.556349186104045,78,29.529646120466801,37,16.643316977093239,0,15.556349186104045,0,15.556349186104045,43,14.422205101855956,32,13.601470508735444,46,22.671568097509269,0,15.556349186104045,0,15.556349186104045,0,15.556349186104045,0,15.556349186104045,108,37.20215047547655]
[]
[]
[]
[]
[]
[]
[]
[]
[]
[]
[]
[]
[]
[]
[]
[]
[]
[]
[]
[]
[]
[]
[]
[]
[]
[]
[]
[]
[]
[]
[]
[]
[]
[]
[]
["B18104. SEX BY AGE BY COGNITIVE DIFFICULTY\n\n-Calculated"]
["Universe:  Civilian non-institutionalized population 5 years and over"]
["Data Set: 2010-2014 American Community Survey 5-Year Estimates"]
[]
[]
[null,null,"Atkinson and Gilmanton Grant",null,"Bean's Grant",null,"Bean's Purchase",null,"Berlin",null,"Cambridge",null,"Carroll",null,"Chandler's Purchase",null,"Clarksville",null,"Colebrook",null,"Columbia",null,"Crawford's Purchase",null,"Cutt's Grant",null,"Dalton",null,"Dix's Grant",null,"Dixville",null,"Dummer",null,"Errol",null,"Erving's Location",null,"Gorham",null,"Greens Grant",null,"Hadley's Purchase",null,"Jefferson",null,"Kilkenny",null,"Lancaster",null,"Low and Burbank's Grant",null,"Martin's Location",null,"Milan",null,"Millsfield",null,"Northumberland",null,"Odell",null,"Pinkham's Grant",null,"Pittsburg",null,"Randolph",null,"Sargent's Purchase",null,"Second College Grant",null,"Shelburne",null,"Stark",null,"Stewartstown",null,"Stratford",null,"Success",null,"Thompson and Meserves Purchase",null,"Wentworth's Location",null,"Whitefield"]
[null,null,"Estimate","Margin Of Error","Estimate","Margin Of Error","Estimate","Margin Of Error","Estimate","Margin Of Error","Estimate","Margin Of Error","Estimate","Margin Of Error","Estimate","Margin Of Error","Estimate","Margin Of Error","Estimate","Margin Of Error","Estimate","Margin Of Error","Estimate","Margin Of Error","Estimate","Margin Of Error","Estimate","Margin Of Error","Estimate","Margin Of Error","Estimate","Margin Of Error","Estimate","Margin Of Error","Estimate","Margin Of Error","Estimate","Margin Of Error","Estimate","Margin Of Error","Estimate","Margin Of Error","Estimate","Margin Of Error","Estimate","Margin Of Error","Estimate","Margin Of Error","Estimate","Margin Of Error","Estimate","Margin Of Error","Estimate","Margin Of Error","Estimate","Margin Of Error","Estimate","Margin Of Error","Estimate","Margin Of Error","Estimate","Margin Of Error","Estimate","Margin Of Error","Estimate","Margin Of Error","Estimate","Margin Of Error","Estimate","Margin Of Error","Estimate","Margin Of Error","Estimate","Margin Of Error","Estimate","Margin Of Error","Estimate","Margin Of Error","Estimate","Margin Of Error","Estimate","Margin Of Error","Estimate","Margin Of Error","Estimate","Margin Of Error","Estimate","Margin Of Error"]
[null,"Total:",0,11,0,11,0,11,8248,533,17,16,964,160,0,11,304,68,2247,197,697,126,0,11,0,11,923,152,13,9,11,9,344,75,296,69,0,11,2603,69,8,17,0,11,0,11,0,11,3203,102,0,11,0,11,17,13,16,15,0,11,0,11,8,6,873,130,422,73,9,12,0,11,345,59,459,85,686,117,0,11,0,11,0,11,62,33,1984,198]
[null,"5 to 17  years:",0,15.556349186104045,0,15.556349186104045,0,15.556349186104045,1200,171.89822570346675,0,15.556349186104045,187,76.661594035083823,0,15.556349186104045,42,19.104973174542799,305,69.31089380465383,102,38.418745424597091,0,15.556349186104045,0,15.556349186104045,128,46.669047558312137,0,15.556349186104045,0,15.556349186104045,71,31.906112267087632,15,16.643316977093239,0,15.556349186104045,406,84.219950130595535,0,15.556349186104045,0,15.556349186104045,0,15.556349186104045,0,15.556349186104045,612,119.88744721612851,0,15.556349186104045,0,15.556349186104045,4,4.2426406871192848,4,5,0,15.556349186104045,0,15.556349186104045,0,15.556349186104045,80,37.20215047547655,57,26.832815729997478,0,15.556349186104045,0,15.556349186104045,42,21.95449840010015,63,28.42534080710379,48,30.805843601498726,0,15.556349186104045,0,15.556349186104045,0,15.556349186104045,4,12.529964086141668,272,67.208630398186216]
[null,"With cognitive difficulty",0,15.556349186104045,0,15.556349186104045,0,15.556349186104045,167,66.708320320631671,0,15.556349186104045,31,28.844410203711913,0,15.556349186104045,1,11.401754250991379,14,13,7,13.601470508735444,0,15.556349186104045,0,15.556349186104045,12,17.029386365926403,0,15.556349186104045,0,15.556349186104045,0,15.556349186104045,0,15.556349186104045,0,15.556349186104045,61,39.217343102255157,0,15.556349186104045,0,15.556349186104045,0,15.556349186104045,0,15.556349186104045,35,40.521599178709621,0,15.556349186104045,0,15.556349186104045,0,15.556349186104045,0,15.556349186104045,0,15.556349186104045,0,15.556349186104045,0,15.556349186104045,6,13.601470508735444,2,11.401754250991379,0,15.556349186104045,0,15.556349186104045,2,11.401754250991379,4,12.083045973594572,0,15.556349186104045,0,15.556349186104045,0,15.556349186104045,0,15.556349186104045,0,15.556349186104045,30,22.022715545545239]
[null,"With no cognitive difficulty",0,15.556349186104045,0,15.556349186104045,0,15.556349186104045,1033,158.22136391777187,0,15.556349186104045,156,60.605280298007038,0,15.556349186104045,41,19.104973174542799,291,70.007142492748557,95,37.643060449437421,0,15.556349186104045,0,15.556349186104045,116,43.278170016764804,0,15.556349186104045,0,15.556349186104045,71,31.906112267087632,15,16.643316977093239,0,15.556349186104045,345,78.517513969814402,0,15.556349186104045,0,15.556349186104045,0,15.556349186104045,0,15.556349186104045,577,119.36498649101419,0,15.556349186104045,0,15.556349186104045,4,4.2426406871192848,4,5,0,15.556349186104045,0,15.556349186104045,0,15.556349186104045,74,34.481879299133332,55,26.832815729997478,0,15.556349186104045,0,15.556349186104045,40,21.095023109728988,59,26.90724809414742,48,30.805843601498726,0,15.556349186104045,0,15.556349186104045,0,15.556349186104045,4,12.529964086141668,242,60.811183182043088]
[null,"18 to 34  years:",0,15.556349186104045,0,15.556349186104045,0,15.556349186104045,1631,174.02586014727811,0,15.556349186104045,197,85.632937588290176,0,15.556349186104045,23,13.45362404707371,296,75.451971478550519,79,28.319604517012593,0,15.556349186104045,0,15.556349186104045,143,51.662365412357957,6,6.7082039324993694,5,7.2111025509279782,23,11.401754250991379,39,21.931712199461309,0,15.556349186104045,443,102.00490184299969,4,14.212670403551895,0,15.556349186104045,0,15.556349186104045,0,15.556349186104045,463,103.47946656221224,0,15.556349186104045,0,15.556349186104045,4,5.6568542494923806,4,5.6568542494923806,0,15.556349186104045,0,15.556349186104045,4,7.2111025509279782,68,35,41,17.204650534085253,0,15.556349186104045,0,15.556349186104045,45,19.209372712298546,60,23.430749027719962,134,46.669047558312137,0,15.556349186104045,0,15.556349186104045,0,15.556349186104045,15,15.231546211727817,411,83.486525858967212]
[null,"With cognitive difficulty",0,15.556349186104045,0,15.556349186104045,0,15.556349186104045,194,90.553851381374173,0,15.556349186104045,1,11.401754250991379,0,15.556349186104045,0,15.556349186104045,13,13.601470508735444,0,15.556349186104045,0,15.556349186104045,0,15.556349186104045,20,20.615528128088304,0,15.556349186104045,1,11.401754250991379,1,11.704699910719626,6,13.601470508735444,0,15.556349186104045,50,41.593268686170845,4,14.212670403551895,0,15.556349186104045,0,15.556349186104045,0,15.556349186104045,37,37.12142238654117,0,15.556349186104045,0,15.556349186104045,0,15.556349186104045,0,15.556349186104045,0,15.556349186104045,0,15.556349186104045,0,15.556349186104045,0,15.556349186104045,12,10.295630140987001,0,15.556349186104045,0,15.556349186104045,6,5.8309518948453007,7,5.8309518948453007,3,11.704699910719626,0,15.556349186104045,0,15.556349186104045,0,15.556349186104045,0,15.556349186104045,23,29.154759474226502]
[null,"With no cognitive difficulty",0,15.556349186104045,0,15.556349186104045,0,15.556349186104045,1437,172.2614292289484,0,15.556349186104045,196,85.632937588290176,0,15.556349186104045,23,13.45362404707371,283,75.451971478550519,79,28.319604517012593,0,15.556349186104045,0,15.556349186104045,123,49.497474683058329,6,6.7082039324993694,4,7.2111025509279782,22,10.295630140987001,33,21.2602916254693,0,15.556349186104045,393,100.60318086422517,0,15.556349186104045,0,15.556349186104045,0,15.556349186104045,0,15.556349186104045,426,102.06860437960343,0,15.556349186104045,0,15.556349186104045,4,5.6568542494923806,4,5.6568542494923806,0,15.556349186104045,0,15.556349186104045,4,7.2111025509279782,68,35,29,12.806248474865697,0,15.556349186104045,0,15.556349186104045,39,17.691806012954132,53,22.022715545545239,131,46.669047558312137,0,15.556349186104045,0,15.556349186104045,0,15.556349186104045,15,15.231546211727817,388,81.467785044151043]
[null,"35 to 64  years:",0,15.556349186104045,0,15.556349186104045,0,15.556349186104045,3621,264.20068130116545,12,10.295630140987001,378,90.520715861066847,0,15.556349186104045,158,35.468295701936398,1139,119.60351165413162,352,65.73431371817918,0,15.556349186104045,0,15.556349186104045,407,62.936475910238251,7,8.5440037453175304,6,8.6023252670426267,168,33.421549934136806,147,35.608987629529715,0,15.556349186104045,1281,107.48953437428223,4,14.212670403551895,0,15.556349186104045,0,15.556349186104045,0,15.556349186104045,1580,137.90576492663388,0,15.556349186104045,0,15.556349186104045,9,8.5440037453175304,8,7.6157731058639087,0,15.556349186104045,0,15.556349186104045,4,12.083045973594572,486,71.589105316381762,197,35.468295701936398,9,9.2195444572928871,0,15.556349186104045,170,31.622776601683793,226,41.231056256176608,267,53.814496188294839,0,15.556349186104045,0,15.556349186104045,0,15.556349186104045,29,15.556349186104045,965,110.39021695784459]
[null,"With cognitive difficulty",0,15.556349186104045,0,15.556349186104045,0,15.556349186104045,334,113.70136322841516,0,15.556349186104045,30,19.723082923316021,0,15.556349186104045,34,22.022715545545239,50,21.095023109728988,51,25.553864678361276,0,15.556349186104045,0,15.556349186104045,12,14.422205101855956,4,6.7082039324993694,5,8.0622577482985491,4,4.2426406871192848,10,9.2195444572928871,0,15.556349186104045,42,34.176014981270121,4,14.212670403551895,0,15.556349186104045,0,15.556349186104045,0,15.556349186104045,104,66.400301204136113,0,15.556349186104045,0,15.556349186104045,0,15.556349186104045,0,15.556349186104045,0,15.556349186104045,0,15.556349186104045,3,12.529964086141668,12,9.2195444572928871,0,15.556349186104045,0,15.556349186104045,0,15.556349186104045,4,4.2426406871192848,6,8.9442719099991592,56,26.90724809414742,0,15.556349186104045,0,15.556349186104045,0,15.556349186104045,0,15.556349186104045,51,35.735136770411273]
[null,"With no cognitive difficulty",0,15.556349186104045,0,15.556349186104045,0,15.556349186104045,3287,255.50146770615623,12,10.295630140987001,348,87.681240867131891,0,15.556349186104045,124,27.018512172212592,1089,117.38824472663352,301,64.41273166075166,0,15.556349186104045,0,15.556349186104045,395,59.413803110051795,3,4.4721359549995796,1,11.401754250991379,164,33.421549934136806,137,35,0,15.556349186104045,1239,106.7941945987702,0,15.556349186104045,0,15.556349186104045,0,15.556349186104045,0,15.556349186104045,1476,129.46814279968643,0,15.556349186104045,0,15.556349186104045,9,8.5440037453175304,8,7.6157731058639087,0,15.556349186104045,0,15.556349186104045,1,11.401754250991379,474,70.936591403872796,197,35.468295701936398,9,9.2195444572928871,0,15.556349186104045,166,30.805843601498726,220,40.459856648287818,211,47.801673610868477,0,15.556349186104045,0,15.556349186104045,0,15.556349186104045,29,15.556349186104045,914,108.2081327812286]
[null,"65 to 74  years:",0,15.556349186104045,0,15.556349186104045,0,15.556349186104045,750,97.616596949494195,0,15.556349186104045,162,41.231056256176608,0,15.556349186104045,45,19.104973174542799,388,83.234608186739251,109,29.154759474226502,0,15.556349186104045,0,15.556349186104045,154,31.89043743820395,0,15.556349186104045,0,15.556349186104045,57,17.029386365926403,61,22.203603311174518,0,15.556349186104045,203,62.481997407253232,0,15.556349186104045,0,15.556349186104045,0,15.556349186104045,0,15.556349186104045,376,77.833154889160184,0,15.556349186104045,0,15.556349186104045,0,15.556349186104045,0,15.556349186104045,0,15.556349186104045,0,15.556349186104045,0,15.556349186104045,159,34.655446902326915,69,18.439088914585774,0,15.556349186104045,0,15.556349186104045,41,14.422205101855956,61,17.691806012954132,171,53.009433122794285,0,15.556349186104045,0,15.556349186104045,0,15.556349186104045,14,12.165525060596439,179,52.478567053607705]
[null,"With cognitive difficulty",0,15.556349186104045,0,15.556349186104045,0,15.556349186104045,26,20.808652046684813,0,15.556349186104045,0,15.556349186104045,0,15.556349186104045,0,15.556349186104045,54,38.600518131237564,0,15.556349186104045,0,15.556349186104045,0,15.556349186104045,4,12.529964086141668,0,15.556349186104045,0,15.556349186104045,1,11.180339887498949,4,12.529964086141668,0,15.556349186104045,10,19.416487838947599,0,15.556349186104045,0,15.556349186104045,0,15.556349186104045,0,15.556349186104045,44,47.127486671792717,0,15.556349186104045,0,15.556349186104045,0,15.556349186104045,0,15.556349186104045,0,15.556349186104045,0,15.556349186104045,0,15.556349186104045,13,11.180339887498949,0,15.556349186104045,0,15.556349186104045,0,15.556349186104045,1,11.180339887498949,0,15.556349186104045,0,15.556349186104045,0,15.556349186104045,0,15.556349186104045,0,15.556349186104045,0,15.556349186104045,11,21.095023109728988]
[null,"With no cognitive difficulty",0,15.556349186104045,0,15.556349186104045,0,15.556349186104045,724,95.268042910516428,0,15.556349186104045,162,41.231056256176608,0,15.556349186104045,45,19.104973174542799,334,81.400245699874887,109,29.154759474226502,0,15.556349186104045,0,15.556349186104045,150,31.144823004794873,0,15.556349186104045,0,15.556349186104045,56,17.029386365926403,57,21.400934559032695,0,15.556349186104045,193,60.207972893961475,0,15.556349186104045,0,15.556349186104045,0,15.556349186104045,0,15.556349186104045,332,68.8839603971781,0,15.556349186104045,0,15.556349186104045,0,15.556349186104045,0,15.556349186104045,0,15.556349186104045,0,15.556349186104045,0,15.556349186104045,146,33.97057550292606,69,18.439088914585774,0,15.556349186104045,0,15.556349186104045,40,14.422205101855956,61,17.691806012954132,171,53.009433122794285,0,15.556349186104045,0,15.556349186104045,0,15.556349186104045,14,12.165525060596439,168,50.537115073973112]
[null,"75  years and Older:",0,15.556349186104045,0,15.556349186104045,0,15.556349186104045,1046,120.88010589009261,5,13.038404810405298,40,18.439088914585774,0,15.556349186104045,36,16.401219466856727,119,36.069377593742864,55,21.633307652783937,0,15.556349186104045,0,15.556349186104045,91,25.612496949731394,0,15.556349186104045,0,15.556349186104045,25,14.7648230602334,34,20,0,15.556349186104045,270,71.700767080973407,0,15.556349186104045,0,15.556349186104045,0,15.556349186104045,0,15.556349186104045,172,65.76473218982953,0,15.556349186104045,0,15.556349186104045,0,15.556349186104045,0,15.556349186104045,0,15.556349186104045,0,15.556349186104045,0,15.556349186104045,80,28.600699292150182,58,17.029386365926403,0,15.556349186104045,0,15.556349186104045,47,15.620499351813308,49,17.691806012954132,66,29.681644159311659,0,15.556349186104045,0,15.556349186104045,0,15.556349186104045,0,15.556349186104045,157,54.561891462814962]
[null,"With cognitive difficulty",0,15.556349186104045,0,15.556349186104045,0,15.556349186104045,173,72.013887549555335,5,13.038404810405298,0,15.556349186104045,0,15.556349186104045,13,12.041594578792296,22,14.866068747318506,0,15.556349186104045,0,15.556349186104045,0,15.556349186104045,15,11.661903789690601,0,15.556349186104045,0,15.556349186104045,0,15.556349186104045,6,13.038404810405298,0,15.556349186104045,30,26.40075756488817,0,15.556349186104045,0,15.556349186104045,0,15.556349186104045,0,15.556349186104045,8,17.804493814764857,0,15.556349186104045,0,15.556349186104045,0,15.556349186104045,0,15.556349186104045,0,15.556349186104045,0,15.556349186104045,0,15.556349186104045,23,18.973665961010276,9,6.7082039324993694,0,15.556349186104045,0,15.556349186104045,5,12.529964086141668,2,11.704699910719626,12,19.416487838947599,0,15.556349186104045,0,15.556349186104045,0,15.556349186104045,0,15.556349186104045,48,36.055512754639892]
[null,"With no cognitive difficulty",0,15.556349186104045,0,15.556349186104045,0,15.556349186104045,873,122.80065146407001,0,15.556349186104045,40,18.439088914585774,0,15.556349186104045,23,11.661903789690601,97,33.241540277189323,55,21.633307652783937,0,15.556349186104045,0,15.556349186104045,76,21.931712199461309,0,15.556349186104045,0,15.556349186104045,25,14.7648230602334,28,18.439088914585774,0,15.556349186104045,240,71.700767080973407,0,15.556349186104045,0,15.556349186104045,0,15.556349186104045,0,15.556349186104045,164,60.959002616512684,0,15.556349186104045,0,15.556349186104045,0,15.556349186104045,0,15.556349186104045,0,15.556349186104045,0,15.556349186104045,0,15.556349186104045,57,24.041630560342615,49,14.866068747318506,0,15.556349186104045,0,15.556349186104045,42,14.422205101855956,47,17.691806012954132,54,23.345235059857504,0,15.556349186104045,0,15.556349186104045,0,15.556349186104045,0,15.556349186104045,109,41.868842830916641]

{"sheet":"ACS_Table_B18105","index":33,"n_rows":122,"n_cols":88,"rows_kept":122,"cut":false,"hidden":true,"merged":[]}
["B18105. SEX BY AGE BY AMBULATORY DIFFICULTY\n\n"]
["Universe:  Civilian non-institutionalized population 5 years and over"]
["Data Set: 2015-2019 American Community Survey 5-Year Estimates"]
[]
[null,null,"Atkinson and Gilmanton Grant",null,"Bean's Grant",null,"Bean's Purchase",null,"Berlin",null,"Cambridge",null,"Carroll",null,"Chandler's Purchase",null,"Clarksville",null,"Colebrook",null,"Columbia",null,"Crawford's Purchase",null,"Cutt's Grant",null,"Dalton",null,"Dix's Grant",null,"Dixville",null,"Dummer",null,"Errol",null,"Erving's Location",null,"Gorham",null,"Greens Grant",null,"Hadley's Purchase",null,"Jefferson",null,"Kilkenny",null,"Lancaster",null,"Low and Burbank's Grant",null,"Martin's Location",null,"Milan",null,"Millsfield",null,"Northumberland",null,"Odell",null,"Pinkham's Grant",null,"Pittsburg",null,"Randolph",null,"Sargent's Purchase",null,"Second College Grant",null,"Shelburne",null,"Stark",null,"Stewartstown",null,"Stratford",null,"Success",null,"Thompson and Meserves Purchase",null,"Wentworth's Location",null,"Whitefield"]
[null," ","Estimate","Margin of Error","Estimate","Margin of Error","Estimate","Margin of Error","Estimate","Margin of Error","Estimate","Margin of Error","Estimate","Margin of Error","Estimate",null,"Estimate","Margin of Error","Estimate","Margin of Error","Estimate","Margin of Error","Estimate","Margin of Error","Estimate","Margin of Error","Estimate","Margin of Error","Estimate","Margin of Error","Estimate","Margin of Error","Estimate","Margin of Error","Estimate","Margin of Error","Estimate","Margin of Error","Estimate","Margin of Error","Estimate","Margin of Error","Estimate","Margin of Error","Estimate","Margin of Error","Estimate","Margin of Error","Estimate","Margin of Error","Estimate","Margin of Error","Estimate","Margin of Error","Estimate","Margin of Error","Estimate","Margin of Error","Estimate","Margin of Error","Estimate","Margin of Error","Estimate","Margin of Error","Estimate","Margin of Error","Estimate","Margin of Error","Estimate","Margin of Error","Estimate","Margin of Error","Estimate","Margin of Error","Estimate","Margin of Error","Estimate","Margin of Error","Estimate","Margin of Error","Estimate","Margin of Error","Estimate","Margin of Error","Estimate","Margin of Error","Estimate","Margin of Error"]
[null,"Total:",0,11,0,11,0,11,7983,244,0,11,743,134,0,11,318,87,1853,166,626,118,0,11,0,11,873,135,0,11,11,12,297,69,205,55,0,11,2569,42,13,10,0,11,808,118,0,11,3012,115,0,11,0,11,1291,99,8,12,2143,256,10,12,11,14,740,104,349,65,11,24,0,11,391,58,566,118,825,161,616,108,0,11,0,11,26,16,2058,188]
[null,"Male:",0,11,0,11,0,11,3859,194,0,11,441,90,0,11,172,51,899,103,332,70,0,11,0,11,422,75,0,11,9,10,166,48,109,35,0,11,1367,84,13,10,0,11,388,67,0,11,1446,111,0,11,0,11,684,63,4,6,1103,146,5,11,11,14,407,63,182,37,0,11,0,11,201,34,280,60,415,81,348,72,0,11,0,11,19,12,1003,143]
[null,"5 to 17  years:",0,11,0,11,0,11,544,118,0,11,79,71,0,11,19,13,146,63,29,15,0,11,0,11,47,25,0,11,2,4,37,34,18,18,0,11,211,67,0,11,0,11,57,21,0,11,199,73,0,11,0,11,85,34,0,11,214,67,0,11,0,11,40,24,4,4,0,11,0,11,18,14,33,23,47,29,74,28,0,11,0,11,0,11,161,70]
[null,"With ambulatory difficulty",0,11,0,11,0,11,0,18,0,11,0,11,0,11,0,11,0,11,4,7,0,11,0,11,0,11,0,11,0,11,0,11,0,11,0,11,0,11,0,11,0,11,0,11,0,11,0,11,0,11,0,11,0,11,0,11,0,11,0,11,0,11,0,11,0,11,0,11,0,11,0,11,0,11,0,11,0,11,0,11,0,11,0,11,0,11]
[null,"With no ambulatory difficulty",0,11,0,11,0,11,544,118,0,11,79,71,0,11,19,13,146,63,25,16,0,11,0,11,47,25,0,11,2,4,37,34,18,18,0,11,211,67,0,11,0,11,57,21,0,11,199,73,0,11,0,11,85,34,0,11,214,67,0,11,0,11,40,24,4,4,0,11,0,11,18,14,33,23,47,29,74,28,0,11,0,11,0,11,161,70]
[null,"18 to 34  years:",0,11,0,11,0,11,1002,175,0,11,98,65,0,11,34,16,91,43,58,32,0,11,0,11,102,42,0,11,5,6,20,11,0,11,0,11,181,71,5,8,0,11,66,34,0,11,334,79,0,11,0,11,144,48,0,11,199,77,5,11,7,8,35,21,29,16,0,11,0,11,15,12,51,25,39,30,39,25,0,11,0,11,3,4,157,68]
[null,"With ambulatory difficulty",0,11,0,11,0,11,0,18,0,11,0,11,0,11,0,11,0,11,0,11,0,11,0,11,0,11,0,11,0,11,0,11,0,11,0,11,0,11,0,11,0,11,0,11,0,11,0,11,0,11,0,11,10,12,0,11,0,11,0,11,0,11,0,11,0,11,0,11,0,11,0,11,0,11,0,11,3,4,0,11,0,11,0,11,0,11]
[null,"With no ambulatory difficulty",0,11,0,11,0,11,1002,175,0,11,98,65,0,11,34,16,91,43,58,32,0,11,0,11,102,42,0,11,5,6,20,11,0,11,0,11,181,71,5,8,0,11,66,34,0,11,334,79,0,11,0,11,134,47,0,11,199,77,5,11,7,8,35,21,29,16,0,11,0,11,15,12,51,25,39,30,36,25,0,11,0,11,3,4,157,68]
[null,"35 to 64  years:",0,11,0,11,0,11,1624,139,0,11,157,36,0,11,69,29,396,64,157,46,0,11,0,11,214,44,0,11,0,11,50,13,52,17,0,11,648,71,8,10,0,11,163,38,0,11,636,100,0,11,0,11,302,33,4,6,501,80,0,11,4,8,184,44,83,22,0,11,0,11,88,24,114,31,168,45,173,41,0,11,0,11,4,4,342,62]
[null,"With ambulatory difficulty",0,11,0,11,0,11,210,84,0,11,9,9,0,11,15,16,42,22,14,12,0,11,0,11,17,13,0,11,0,11,0,11,2,3,0,11,30,26,0,11,0,11,4,5,0,11,92,55,0,11,0,11,26,15,0,11,77,39,0,11,0,11,7,7,8,7,0,11,0,11,6,5,30,18,9,7,36,22,0,11,0,11,0,11,26,26]
[null,"With no ambulatory difficulty",0,11,0,11,0,11,1414,139,0,11,148,37,0,11,54,20,354,63,143,44,0,11,0,11,197,43,0,11,0,11,50,13,50,17,0,11,618,74,8,10,0,11,159,39,0,11,544,101,0,11,0,11,276,33,4,6,424,77,0,11,4,8,177,45,75,22,0,11,0,11,82,24,84,26,159,45,137,36,0,11,0,11,4,4,316,62]
[null,"65 to 74  years:",0,11,0,11,0,11,436,94,0,11,76,27,0,11,40,19,169,46,49,16,0,11,0,11,41,22,0,11,2,6,36,16,18,14,0,11,175,58,0,11,0,11,83,27,0,11,129,50,0,11,0,11,119,28,0,11,119,39,0,11,0,11,127,36,49,16,0,11,0,11,52,20,52,22,123,42,31,12,0,11,0,11,4,4,220,54]
[null,"With ambulatory difficulty",0,11,0,11,0,11,55,42,0,11,26,21,0,11,4,4,21,29,0,11,0,11,0,11,0,11,0,11,1,3,3,3,0,11,0,11,23,23,0,11,0,11,17,15,0,11,32,28,0,11,0,11,4,5,0,11,6,8,0,11,0,11,9,14,6,9,0,11,0,11,11,14,2,4,28,24,5,5,0,11,0,11,2,3,47,36]
[null,"With no ambulatory difficulty",0,11,0,11,0,11,381,86,0,11,50,20,0,11,36,18,148,39,49,16,0,11,0,11,41,22,0,11,1,4,33,15,18,14,0,11,152,55,0,11,0,11,66,23,0,11,97,37,0,11,0,11,115,28,0,11,113,38,0,11,0,11,118,31,43,14,0,11,0,11,41,15,50,21,95,36,26,11,0,11,0,11,2,3,173,44]
[null,"75  years and Older:",0,11,0,11,0,11,253,65,0,11,31,15,0,11,10,9,97,31,39,17,0,11,0,11,18,16,0,11,0,11,23,12,21,13,0,11,152,58,0,11,0,11,19,11,0,11,148,57,0,11,0,11,34,14,0,11,70,32,0,11,0,11,21,11,17,9,0,11,0,11,28,18,30,14,38,14,31,17,0,11,0,11,8,8,123,43]
[null,"With ambulatory difficulty",0,11,0,11,0,11,87,44,0,11,9,10,0,11,1,2,44,23,13,11,0,11,0,11,7,12,0,11,0,11,2,2,6,8,0,11,53,40,0,11,0,11,4,5,0,11,37,37,0,11,0,11,7,6,0,11,22,21,0,11,0,11,0,11,0,11,0,11,0,11,7,7,14,10,2,4,11,8,0,11,0,11,1,2,31,26]
[null,"With no ambulatory difficulty",0,11,0,11,0,11,166,60,0,11,22,11,0,11,9,9,53,22,26,14,0,11,0,11,11,10,0,11,0,11,21,12,15,11,0,11,99,51,0,11,0,11,15,8,0,11,111,42,0,11,0,11,27,12,0,11,48,26,0,11,0,11,21,11,17,9,0,11,0,11,21,17,16,9,36,14,20,14,0,11,0,11,7,8,92,33]
[null,"Female:",0,11,0,11,0,11,4124,190,0,11,302,62,0,11,146,44,954,114,294,60,0,11,0,11,451,76,0,11,2,6,131,27,96,33,0,11,1202,78,0,11,0,11,420,65,0,11,1566,141,0,11,0,11,607,54,4,6,1040,137,5,11,0,11,333,53,167,36,11,24,0,11,190,33,286,67,410,95,268,54,0,11,0,11,7,6,1055,122]
[null,"5 to 17  years:",0,11,0,11,0,11,640,108,0,11,32,34,0,11,6,9,100,46,43,24,0,11,0,11,52,31,0,11,0,11,17,10,9,13,0,11,143,48,0,11,0,11,23,16,0,11,319,63,0,11,0,11,94,25,0,11,129,63,0,11,0,11,17,14,3,4,0,11,0,11,18,15,72,42,61,47,24,17,0,11,0,11,0,11,99,50]
[null,"With ambulatory difficulty",0,11,0,11,0,11,8,14,0,11,0,11,0,11,0,11,0,11,0,11,0,11,0,11,0,11,0,11,0,11,0,11,0,11,0,11,0,11,0,11,0,11,0,11,0,11,0,11,0,11,0,11,0,11,0,11,0,11,0,11,0,11,0,11,0,11,0,11,0,11,0,11,0,11,0,11,8,11,0,11,0,11,0,11,0,11]
[null,"With no ambulatory difficulty",0,11,0,11,0,11,632,109,0,11,32,34,0,11,6,9,100,46,43,24,0,11,0,11,52,31,0,11,0,11,17,10,9,13,0,11,143,48,0,11,0,11,23,16,0,11,319,63,0,11,0,11,94,25,0,11,129,63,0,11,0,11,17,14,3,4,0,11,0,11,18,15,72,42,61,47,16,12,0,11,0,11,0,11,99,50]
[null,"18 to 34  years:",0,11,0,11,0,11,819,134,0,11,37,26,0,11,20,12,183,57,33,20,0,11,0,11,54,29,0,11,0,11,22,10,0,11,0,11,133,52,0,11,0,11,58,27,0,11,244,73,0,11,0,11,124,45,0,11,248,69,5,11,0,11,54,31,23,11,11,24,0,11,20,10,18,16,67,41,37,25,0,11,0,11,0,11,97,43]
[null,"With ambulatory difficulty",0,11,0,11,0,11,11,18,0,11,0,11,0,11,0,11,5,7,0,11,0,11,0,11,3,4,0,11,0,11,0,11,0,11,0,11,0,11,0,11,0,11,0,11,0,11,38,44,0,11,0,11,0,11,0,11,35,33,0,11,0,11,5,6,0,11,0,11,0,11,0,11,5,10,3,6,0,11,0,11,0,11,0,11,15,23]
[null,"With no ambulatory difficulty",0,11,0,11,0,11,808,138,0,11,37,26,0,11,20,12,178,57,33,20,0,11,0,11,51,30,0,11,0,11,22,10,0,11,0,11,133,52,0,11,0,11,58,27,0,11,206,62,0,11,0,11,124,45,0,11,213,66,5,11,0,11,49,31,23,11,11,24,0,11,20,10,13,11,64,41,37,25,0,11,0,11,0,11,82,36]
[null,"35 to 64  years:",0,11,0,11,0,11,1635,141,0,11,146,35,0,11,97,35,443,65,150,37,0,11,0,11,242,45,0,11,2,6,64,18,60,22,0,11,593,67,0,11,0,11,241,39,0,11,622,95,0,11,0,11,290,39,0,11,445,63,0,11,0,11,157,37,82,23,0,11,0,11,102,25,121,31,125,46,139,35,0,11,0,11,0,11,532,84]
[null,"With ambulatory difficulty",0,11,0,11,0,11,244,91,0,11,7,7,0,11,18,15,44,26,19,15,0,11,0,11,28,15,0,11,1,4,7,5,21,16,0,11,16,18,0,11,0,11,7,7,0,11,32,30,0,11,0,11,6,6,0,11,45,27,0,11,0,11,13,8,2,3,0,11,0,11,6,5,10,8,10,11,4,5,0,11,0,11,0,11,15,16]
[null,"With no ambulatory difficulty",0,11,0,11,0,11,1391,144,0,11,139,36,0,11,79,29,399,66,131,33,0,11,0,11,214,43,0,11,1,3,57,19,39,19,0,11,577,68,0,11,0,11,234,40,0,11,590,96,0,11,0,11,284,39,0,11,400,60,0,11,0,11,144,37,80,23,0,11,0,11,96,25,111,28,115,46,135,35,0,11,0,11,0,11,517,87]
[null,"65 to 74  years:",0,11,0,11,0,11,515,87,0,11,57,14,0,11,18,11,120,36,29,13,0,11,0,11,66,23,0,11,0,11,13,7,18,13,0,11,159,51,0,11,0,11,73,22,0,11,207,52,0,11,0,11,75,23,0,11,134,34,0,11,0,11,72,26,38,12,0,11,0,11,30,14,38,16,113,34,38,16,0,11,0,11,7,6,210,59]
[null,"With ambulatory difficulty",0,11,0,11,0,11,129,56,0,11,0,11,0,11,0,11,41,29,4,6,0,11,0,11,11,14,0,11,0,11,0,11,1,2,0,11,12,16,0,11,0,11,6,6,0,11,20,30,0,11,0,11,11,13,0,11,24,21,0,11,0,11,3,4,7,6,0,11,0,11,3,5,6,8,13,13,9,8,0,11,0,11,1,3,71,44]
[null,"With no ambulatory difficulty",0,11,0,11,0,11,386,80,0,11,57,14,0,11,18,11,79,30,25,11,0,11,0,11,55,23,0,11,0,11,13,7,17,13,0,11,147,51,0,11,0,11,67,22,0,11,187,57,0,11,0,11,64,22,0,11,110,31,0,11,0,11,69,26,31,12,0,11,0,11,27,13,32,13,100,32,29,13,0,11,0,11,6,6,139,44]
[null,"75  years and Older:",0,11,0,11,0,11,515,82,0,11,30,16,0,11,5,8,108,37,39,17,0,11,0,11,37,17,0,11,0,11,15,10,9,8,0,11,174,52,0,11,0,11,25,15,0,11,174,56,0,11,0,11,24,12,4,6,84,34,0,11,0,11,33,20,21,12,0,11,0,11,20,12,37,16,44,20,30,14,0,11,0,11,0,11,117,45]
[null,"With ambulatory difficulty",0,11,0,11,0,11,177,60,0,11,17,13,0,11,1,3,53,31,14,11,0,11,0,11,9,12,0,11,0,11,1,2,9,8,0,11,61,35,0,11,0,11,0,11,0,11,56,38,0,11,0,11,0,11,0,11,39,25,0,11,0,11,5,6,2,3,0,11,0,11,10,9,16,12,21,16,7,7,0,11,0,11,0,11,26,17]
[null,"With no ambulatory difficulty",0,11,0,11,0,11,338,87,0,11,13,9,0,11,4,7,55,22,25,12,0,11,0,11,28,14,0,11,0,11,14,9,0,11,0,11,113,50,0,11,0,11,25,15,0,11,118,48,0,11,0,11,24,12,4,6,45,25,0,11,0,11,28,19,19,11,0,11,0,11,10,8,21,10,23,14,23,12,0,11,0,11,0,11,91,45]
[]
[]
[{"$f":"A1& \"-Calculated\"","v":"B18105. SEX BY AGE BY AMBULATORY DIFFICULTY\n\n-Calculated"}]
[{"$f":"A2","v":"Universe:  Civilian non-institutionalized population 5 years and over"}]
[{"$f":"A3","v":"Data Set: 2015-2019 American Community Survey 5-Year Estimates"}]
[]
[]
[null,null,"Atkinson and Gilmanton Grant",null,"Bean's Grant",null,"Bean's Purchase",null,"Berlin",null,"Cambridge",null,"Carroll",null,"Chandler's Purchase",null,"Clarksville",null,"Colebrook",null,"Columbia",null,"Crawford's Purchase",null,"Cutt's Grant",null,"Dalton",null,"Dix's Grant",null,"Dixville",null,"Dummer",null,"Errol",null,"Erving's Location",null,"Gorham",null,"Greens Grant",null,"Hadley's Purchase",null,"Jefferson",null,"Kilkenny",null,"Lancaster",null,"Low and Burbank's Grant",null,"Martin's Location",null,"Milan",null,"Millsfield",null,"Northumberland",null,"Odell",null,"Pinkham's Grant",null,"Pittsburg",null,"Randolph",null,"Sargent's Purchase",null,"Second College Grant",null,"Shelburne",null,"Stark",null,"Stewartstown",null,"Stratford",null,"Success",null,"Thompson and Meserves Purchase",null,"Wentworth's Location",null,"Whitefield"]
[null," ","Estimate","Margin of Error","Estimate","Margin of Error","Estimate","Margin of Error","Estimate","Margin of Error","Estimate","Margin of Error","Estimate","Margin of Error","Estimate",null,"Estimate","Margin of Error","Estimate","Margin of Error","Estimate","Margin of Error","Estimate","Margin of Error","Estimate","Margin of Error","Estimate","Margin of Error","Estimate","Margin of Error","Estimate","Margin of Error","Estimate","Margin of Error","Estimate","Margin of Error","Estimate","Margin of Error","Estimate","Margin of Error","Estimate","Margin of Error","Estimate","Margin of Error","Estimate","Margin of Error","Estimate","Margin of Error","Estimate","Margin of Error","Estimate","Margin of Error","Estimate","Margin of Error","Estimate","Margin of Error","Estimate","Margin of Error","Estimate","Margin of Error","Estimate","Margin of Error","Estimate","Margin of Error","Estimate","Margin of Error","Estimate","Margin of Error","Estimate","Margin of Error","Estimate","Margin of Error","Estimate","Margin of Error","Estimate","Margin of Error","Estimate","Margin of Error","Estimate","Margin of Error","Estimate","Margin of Error","Estimate","Margin of Error","Estimate","Margin of Error","Estimate","Margin of Error"]
[null,"Total:",0,11,0,11,0,11,8511,217,19,17,935,179,0,11,321,86,2248,197,678,117,0,11,0,11,964,160,11,9,11,9,350,78,244,55,0,11,2635,71,6,14,0,11,0,11,0,11,3217,79,0,11,0,11,16,15,16,15,0,11,0,11,7,7,972,131,449,84,8,12,0,11,363,69,512,95,690,106,0,11,0,11,0,11,54,34,2005,227]
[null,"5 to 17  years:",0,15.556349186104045,0,15.556349186104045,0,15.556349186104045,1242,153.52198539622916,0,15.556349186104045,180,73,0,15.556349186104045,52,28.231188426986208,309,77.103826104804938,117,43.931765272977593,0,15.556349186104045,0,15.556349186104045,173,55.758407437802596,0,15.556349186104045,0,15.556349186104045,69,32.756678708318397,6,13.038404810405298,0,15.556349186104045,434,86.313382508160345,0,15.556349186104045,0,15.556349186104045,0,15.556349186104045,0,15.556349186104045,586,105.47511554864494,0,15.556349186104045,0,15.556349186104045,4,5,4,5,0,15.556349186104045,0,15.556349186104045,0,15.556349186104045,105,45.453272709454048,54,30.016662039607269,0,15.556349186104045,0,15.556349186104045,44,20.248456731316587,92,35.510561809129406,55,28.301943396169811,0,15.556349186104045,0,15.556349186104045,0,15.556349186104045,3,12.083045973594572,269,76.576758876306585]
[null,"With ambulatory difficulty",0,15.556349186104045,0,15.556349186104045,0,15.556349186104045,18,31.384709652950431,0,15.556349186104045,8,16.278820596099706,0,15.556349186104045,0,15.556349186104045,0,15.556349186104045,0,15.556349186104045,0,15.556349186104045,0,15.556349186104045,2,11.401754250991379,0,15.556349186104045,0,15.556349186104045,0,15.556349186104045,0,15.556349186104045,0,15.556349186104045,20,27.313000567495326,0,15.556349186104045,0,15.556349186104045,0,15.556349186104045,0,15.556349186104045,0,15.556349186104045,0,15.556349186104045,0,15.556349186104045,0,15.556349186104045,0,15.556349186104045,0,15.556349186104045,0,15.556349186104045,0,15.556349186104045,0,15.556349186104045,0,15.556349186104045,0,15.556349186104045,0,15.556349186104045,0,15.556349186104045,0,15.556349186104045,6,14.212670403551895,0,15.556349186104045,0,15.556349186104045,0,15.556349186104045,0,15.556349186104045,0,15.556349186104045]
[null,"With no ambulatory difficulty",0,15.556349186104045,0,15.556349186104045,0,15.556349186104045,1224,152.79397893896211,0,15.556349186104045,172,66.483080554378645,0,15.556349186104045,52,28.231188426986208,309,77.103826104804938,117,43.931765272977593,0,15.556349186104045,0,15.556349186104045,171,54.918120870983927,0,15.556349186104045,0,15.556349186104045,69,32.756678708318397,6,13.038404810405298,0,15.556349186104045,414,78.644770964127048,0,15.556349186104045,0,15.556349186104045,0,15.556349186104045,0,15.556349186104045,586,105.47511554864494,0,15.556349186104045,0,15.556349186104045,4,5,4,5,0,15.556349186104045,0,15.556349186104045,0,15.556349186104045,105,45.453272709454048,54,30.016662039607269,0,15.556349186104045,0,15.556349186104045,44,20.248456731316587,92,35.510561809129406,49,26.40075756488817,0,15.556349186104045,0,15.556349186104045,0,15.556349186104045,3,12.083045973594572,269,76.576758876306585]
[null,"18 to 34  years:",0,15.556349186104045,0,15.556349186104045,0,15.556349186104045,1663,174.83706700811473,0,15.556349186104045,206,80.808415403347695,0,15.556349186104045,21,18.027756377319946,275,63.7808748764079,66,26.90724809414742,0,15.556349186104045,0,15.556349186104045,153,55,5,7.2111025509279782,5,7.2111025509279782,31,12.041594578792296,42,21.2602916254693,0,15.556349186104045,455,108.23123393919151,3,13.038404810405298,0,15.556349186104045,0,15.556349186104045,0,15.556349186104045,422,93.434469014384618,0,15.556349186104045,0,15.556349186104045,4,5.6568542494923806,4,5.6568542494923806,0,15.556349186104045,0,15.556349186104045,3,13.038404810405298,64,30,36,14.212670403551895,0,15.556349186104045,0,15.556349186104045,46,23.345235059857504,73,25.495097567963924,129,41.109609582188931,0,15.556349186104045,0,15.556349186104045,0,15.556349186104045,15,17.464249196572979,442,97.20082304178294]
[null,"With ambulatory difficulty",0,15.556349186104045,0,15.556349186104045,0,15.556349186104045,69,49.365980188789933,0,15.556349186104045,0,15.556349186104045,0,15.556349186104045,0,15.556349186104045,0,15.556349186104045,0,15.556349186104045,0,15.556349186104045,0,15.556349186104045,8,7.810249675906654,0,15.556349186104045,0,15.556349186104045,0,15.556349186104045,0,15.556349186104045,0,15.556349186104045,0,15.556349186104045,0,15.556349186104045,0,15.556349186104045,0,15.556349186104045,0,15.556349186104045,28,30.805843601498726,0,15.556349186104045,0,15.556349186104045,0,15.556349186104045,0,15.556349186104045,0,15.556349186104045,0,15.556349186104045,0,15.556349186104045,0,15.556349186104045,4,12.529964086141668,0,15.556349186104045,0,15.556349186104045,0,15.556349186104045,0,15.556349186104045,0,15.556349186104045,0,15.556349186104045,0,15.556349186104045,0,15.556349186104045,0,15.556349186104045,0,15.556349186104045]
[null,"With no ambulatory difficulty",0,15.556349186104045,0,15.556349186104045,0,15.556349186104045,1594,177.80044994318772,0,15.556349186104045,206,80.808415403347695,0,15.556349186104045,21,18.027756377319946,275,63.7808748764079,66,26.90724809414742,0,15.556349186104045,0,15.556349186104045,145,53.600373133029585,5,7.2111025509279782,5,7.2111025509279782,31,12.041594578792296,42,21.2602916254693,0,15.556349186104045,455,108.23123393919151,3,13.038404810405298,0,15.556349186104045,0,15.556349186104045,0,15.556349186104045,394,92.69843580125827,0,15.556349186104045,0,15.556349186104045,4,5.6568542494923806,4,5.6568542494923806,0,15.556349186104045,0,15.556349186104045,3,13.038404810405298,64,30,32,13.601470508735444,0,15.556349186104045,0,15.556349186104045,46,23.345235059857504,73,25.495097567963924,129,41.109609582188931,0,15.556349186104045,0,15.556349186104045,0,15.556349186104045,15,17.464249196572979,442,97.20082304178294]
[null,"35 to 64  years:",0,15.556349186104045,0,15.556349186104045,0,15.556349186104045,3703,194.61757371830529,14,11.180339887498949,376,84.403791384036765,0,15.556349186104045,172,37.536648758246919,1203,121.69634341261039,328,63.7808748764079,0,15.556349186104045,0,15.556349186104045,455,63.702433234531945,6,8.6023252670426267,6,8.6023252670426267,181,36.124783736376884,122,33.941125496954278,0,15.556349186104045,1250,124.48293055676348,3,13.038404810405298,0,15.556349186104045,0,15.556349186104045,0,15.556349186104045,1654,135.14806694880988,0,15.556349186104045,0,15.556349186104045,8,7.6157731058639087,8,7.6157731058639087,0,15.556349186104045,0,15.556349186104045,4,13.038404810405298,538,78.568441501661468,248,38.209946349085598,8,8.4852813742385695,0,15.556349186104045,187,33.301651610693426,258,47.010637094172637,311,58.137767414994535,0,15.556349186104045,0,15.556349186104045,0,15.556349186104045,20,15,954,109.34349546269316]
[null,"With ambulatory difficulty",0,15.556349186104045,0,15.556349186104045,0,15.556349186104045,327,101.82337649086284,0,15.556349186104045,41,54.817880294662984,0,15.556349186104045,35,19.849433241279208,138,58.309518948453004,24,17.691806012954132,0,15.556349186104045,0,15.556349186104045,44,23.323807579381203,0,15.556349186104045,0,15.556349186104045,7,12.083045973594572,6,7.2111025509279782,0,15.556349186104045,72,35.355339059327378,3,13.038404810405298,0,15.556349186104045,0,15.556349186104045,0,15.556349186104045,125,68.767724987816777,0,15.556349186104045,0,15.556349186104045,0,15.556349186104045,0,15.556349186104045,0,15.556349186104045,0,15.556349186104045,2,11.704699910719626,45,27.202941017470888,22,14.422205101855956,0,15.556349186104045,0,15.556349186104045,11,8.6023252670426267,19,10,80,31.906112267087632,0,15.556349186104045,0,15.556349186104045,0,15.556349186104045,3,12.083045973594572,96,53.823786563191554]
[null,"With no ambulatory difficulty",0,15.556349186104045,0,15.556349186104045,0,15.556349186104045,3376,203.49447166937975,14,11.180339887498949,335,60.802960454241045,0,15.556349186104045,137,33.241540277189323,1065,115.43396380615195,304,60.307545133258408,0,15.556349186104045,0,15.556349186104045,411,60.108235708594876,6,8.6023252670426267,6,8.6023252670426267,174,35.383612025908263,116,32.526911934581186,0,15.556349186104045,1178,125.89678312014172,0,15.556349186104045,0,15.556349186104045,0,15.556349186104045,0,15.556349186104045,1529,149.96666296213968,0,15.556349186104045,0,15.556349186104045,8,7.6157731058639087,8,7.6157731058639087,0,15.556349186104045,0,15.556349186104045,2,11.704699910719626,493,74.966659255965254,226,36.124783736376884,8,8.4852813742385695,0,15.556349186104045,176,33.301651610693426,239,47.010637094172637,231,50.219518117958877,0,15.556349186104045,0,15.556349186104045,0,15.556349186104045,17,14.212670403551895,858,103.32473082471591]
[null,"65 to 74  years:",0,15.556349186104045,0,15.556349186104045,0,15.556349186104045,858,107.07007051459338,0,15.556349186104045,133,38.832975677895199,0,15.556349186104045,36,18.439088914585774,278,56.639209034025185,118,33.837848631377263,0,15.556349186104045,0,15.556349186104045,113,29.698484809834994,0,15.556349186104045,0,15.556349186104045,49,15.620499351813308,48,19.235384061671343,0,15.556349186104045,197,67.268120235368556,0,15.556349186104045,0,15.556349186104045,0,15.556349186104045,0,15.556349186104045,347,83.737685661833282,0,15.556349186104045,0,15.556349186104045,0,15.556349186104045,0,15.556349186104045,0,15.556349186104045,0,15.556349186104045,0,15.556349186104045,164,37.483329627982627,61,20.518284528683193,0,15.556349186104045,0,15.556349186104045,39,15.620499351813308,53,17.804493814764857,139,43.266615305567875,0,15.556349186104045,0,15.556349186104045,0,15.556349186104045,16,12.649110640673518,190,55.901699437494742]
[null,"With ambulatory difficulty",0,15.556349186104045,0,15.556349186104045,0,15.556349186104045,79,39.395431207184416,0,15.556349186104045,8,9.4868329805051381,0,15.556349186104045,5,12.083045973594572,53,24.839484696748443,10,7.6157731058639087,0,15.556349186104045,0,15.556349186104045,8,7.810249675906654,0,15.556349186104045,0,15.556349186104045,7,5.6568542494923806,14,14.212670403551895,0,15.556349186104045,39,33.837848631377263,0,15.556349186104045,0,15.556349186104045,0,15.556349186104045,0,15.556349186104045,128,76.485292703891773,0,15.556349186104045,0,15.556349186104045,0,15.556349186104045,0,15.556349186104045,0,15.556349186104045,0,15.556349186104045,0,15.556349186104045,17,12.806248474865697,4,4.2426406871192848,0,15.556349186104045,0,15.556349186104045,8,8.5440037453175304,17,13.601470508735444,10,14.866068747318506,0,15.556349186104045,0,15.556349186104045,0,15.556349186104045,10,11.704699910719626,58,41.593268686170845]
[null,"With no ambulatory difficulty",0,15.556349186104045,0,15.556349186104045,0,15.556349186104045,779,105.47511554864494,0,15.556349186104045,125,36.359317925395686,0,15.556349186104045,31,17.691806012954132,225,56.080299571239813,108,33.015148038438355,0,15.556349186104045,0,15.556349186104045,105,29,0,15.556349186104045,0,15.556349186104045,42,16.278820596099706,34,16.643316977093239,0,15.556349186104045,158,60.464865831323898,0,15.556349186104045,0,15.556349186104045,0,15.556349186104045,0,15.556349186104045,219,71.449282711584999,0,15.556349186104045,0,15.556349186104045,0,15.556349186104045,0,15.556349186104045,0,15.556349186104045,0,15.556349186104045,0,15.556349186104045,147,35.468295701936398,57,20.518284528683193,0,15.556349186104045,0,15.556349186104045,31,12.806248474865697,36,15,129,42.720018726587654,0,15.556349186104045,0,15.556349186104045,0,15.556349186104045,6,13.038404810405298,132,43.278170016764804]
[null,"75  years and Older:",0,15.556349186104045,0,15.556349186104045,0,15.556349186104045,1045,130.29965464267354,5,13.038404810405298,40,18.027756377319946,0,15.556349186104045,40,18.867962264113206,183,73.878278269055514,49,20.591260281974002,0,15.556349186104045,0,15.556349186104045,70,21.931712199461309,0,15.556349186104045,0,15.556349186104045,20,11.704699910719626,26,17.4928556845359,0,15.556349186104045,299,85.702975444263316,0,15.556349186104045,0,15.556349186104045,0,15.556349186104045,0,15.556349186104045,208,71.840100222647237,0,15.556349186104045,0,15.556349186104045,0,15.556349186104045,0,15.556349186104045,0,15.556349186104045,0,15.556349186104045,0,15.556349186104045,101,34.713109915419565,50,16.401219466856727,0,15.556349186104045,0,15.556349186104045,47,15,36,13.601470508735444,56,27.459060435491963,0,15.556349186104045,0,15.556349186104045,0,15.556349186104045,0,15.556349186104045,150,49.678969393496885]
[null,"With ambulatory difficulty",0,15.556349186104045,0,15.556349186104045,0,15.556349186104045,329,99.297532698451278,5,13.038404810405298,17,16.124515496597098,0,15.556349186104045,22,14.866068747318506,64,57.9396237474839,8,13.601470508735444,0,15.556349186104045,0,15.556349186104045,29,14.142135623730951,0,15.556349186104045,0,15.556349186104045,1,11.180339887498949,15,12.649110640673518,0,15.556349186104045,138,62.769419305900861,0,15.556349186104045,0,15.556349186104045,0,15.556349186104045,0,15.556349186104045,42,34.058772731852805,0,15.556349186104045,0,15.556349186104045,0,15.556349186104045,0,15.556349186104045,0,15.556349186104045,0,15.556349186104045,0,15.556349186104045,26,18.788294228055936,9,6.4031242374328485,0,15.556349186104045,0,15.556349186104045,13,8.4852813742385695,8,7.2111025509279782,31,24.186773244895647,0,15.556349186104045,0,15.556349186104045,0,15.556349186104045,0,15.556349186104045,59,40]
[null,"With no ambulatory difficulty",0,15.556349186104045,0,15.556349186104045,0,15.556349186104045,716,121.62236636408618,0,15.556349186104045,23,10.63014581273465,0,15.556349186104045,18,11.401754250991379,119,50.990195135927848,41,19.313207915827967,0,15.556349186104045,0,15.556349186104045,41,17.029386365926403,0,15.556349186104045,0,15.556349186104045,19,11.704699910719626,11,11.313708498984761,0,15.556349186104045,161,63.529520697074361,0,15.556349186104045,0,15.556349186104045,0,15.556349186104045,0,15.556349186104045,166,65,0,15.556349186104045,0,15.556349186104045,0,15.556349186104045,0,15.556349186104045,0,15.556349186104045,0,15.556349186104045,0,15.556349186104045,75,28.178005607210743,41,16.124515496597098,0,15.556349186104045,0,15.556349186104045,34,14.212670403551895,28,12.206555615733702,25,13.45362404707371,0,15.556349186104045,0,15.556349186104045,0,15.556349186104045,0,15.556349186104045,91,31.144823004794873]
[]
[]
[]
[]
[]
[]
[]
[]
[]
[]
[]
[]
[]
[]
[]
[]
[]
[]
[]
[]
[]
[]
[]
[]
[]
[]
[]
[]
[]
[]
[]
[]
[]
[]
[]
["B18105. SEX BY AGE BY AMBULATORY DIFFICULTY\n\n-Calculated"]
["Universe:  Civilian non-institutionalized population 5 years and over"]
["Data Set: 2010-2014 American Community Survey 5-Year Estimates"]
[]
[]
[null,null,"Atkinson and Gilmanton Grant",null,"Bean's Grant",null,"Bean's Purchase",null,"Berlin",null,"Cambridge",null,"Carroll",null,"Chandler's Purchase",null,"Clarksville",null,"Colebrook",null,"Columbia",null,"Crawford's Purchase",null,"Cutt's Grant",null,"Dalton",null,"Dix's Grant",null,"Dixville",null,"Dummer",null,"Errol",null,"Erving's Location",null,"Gorham",null,"Greens Grant",null,"Hadley's Purchase",null,"Jefferson",null,"Kilkenny",null,"Lancaster",null,"Low and Burbank's Grant",null,"Martin's Location",null,"Milan",null,"Millsfield",null,"Northumberland",null,"Odell",null,"Pinkham's Grant",null,"Pittsburg",null,"Randolph",null,"Sargent's Purchase",null,"Second College Grant",null,"Shelburne",null,"Stark",null,"Stewartstown",null,"Stratford",null,"Success",null,"Thompson and Meserves Purchase",null,"Wentworth's Location",null,"Whitefield"]
[null," ","Estimate","Margin of Error","Estimate","Margin of Error","Estimate","Margin of Error","Estimate","Margin of Error","Estimate","Margin of Error","Estimate","Margin of Error","Estimate",null,"Estimate","Margin of Error","Estimate","Margin of Error","Estimate","Margin of Error","Estimate","Margin of Error","Estimate","Margin of Error","Estimate","Margin of Error","Estimate","Margin of Error","Estimate","Margin of Error","Estimate","Margin of Error","Estimate","Margin of Error","Estimate","Margin of Error","Estimate","Margin of Error","Estimate","Margin of Error","Estimate","Margin of Error","Estimate","Margin of Error","Estimate","Margin of Error","Estimate","Margin of Error","Estimate","Margin of Error","Estimate","Margin of Error","Estimate","Margin of Error","Estimate","Margin of Error","Estimate","Margin of Error","Estimate","Margin of Error","Estimate","Margin of Error","Estimate","Margin of Error","Estimate","Margin of Error","Estimate","Margin of Error","Estimate","Margin of Error","Estimate","Margin of Error","Estimate","Margin of Error","Estimate","Margin of Error","Estimate","Margin of Error","Estimate","Margin of Error","Estimate","Margin of Error","Estimate","Margin of Error","Estimate","Margin of Error"]
[null,"Total:",0,11,0,11,0,11,8248,533,17,16,964,160,0,11,304,68,2247,197,697,126,0,11,0,11,923,152,13,9,11,9,344,75,296,69,0,11,2603,69,8,17,0,11,0,11,0,11,3203,102,0,11,0,11,17,13,16,15,0,11,0,11,8,6,873,130,422,73,9,12,0,11,345,59,459,85,686,117,0,11,0,11,0,11,62,33,1984,198]
[null,"5 to 17  years:",0,15.556349186104045,0,15.556349186104045,0,15.556349186104045,1200,171.89822570346675,0,15.556349186104045,187,76.661594035083823,0,15.556349186104045,42,19.104973174542799,305,69.31089380465383,102,38.418745424597091,0,15.556349186104045,0,15.556349186104045,128,46.669047558312137,0,15.556349186104045,0,15.556349186104045,71,31.906112267087632,15,16.643316977093239,0,15.556349186104045,406,84.219950130595535,0,15.556349186104045,0,15.556349186104045,0,15.556349186104045,0,15.556349186104045,612,119.88744721612851,0,15.556349186104045,0,15.556349186104045,4,4.2426406871192848,4,5,0,15.556349186104045,0,15.556349186104045,0,15.556349186104045,80,37.20215047547655,57,26.832815729997478,0,15.556349186104045,0,15.556349186104045,42,21.95449840010015,63,28.42534080710379,48,30.805843601498726,0,15.556349186104045,0,15.556349186104045,0,15.556349186104045,4,12.529964086141668,272,67.208630398186216]
[null,"With ambulatory difficulty",0,15.556349186104045,0,15.556349186104045,0,15.556349186104045,14,26.627053911388696,0,15.556349186104045,8,17.029386365926403,0,15.556349186104045,0,15.556349186104045,0,15.556349186104045,3,11.704699910719626,0,15.556349186104045,0,15.556349186104045,2,11.401754250991379,0,15.556349186104045,0,15.556349186104045,0,15.556349186104045,0,15.556349186104045,0,15.556349186104045,11,17.029386365926403,0,15.556349186104045,0,15.556349186104045,0,15.556349186104045,0,15.556349186104045,0,15.556349186104045,0,15.556349186104045,0,15.556349186104045,0,15.556349186104045,0,15.556349186104045,0,15.556349186104045,0,15.556349186104045,0,15.556349186104045,0,15.556349186104045,0,15.556349186104045,0,15.556349186104045,0,15.556349186104045,0,15.556349186104045,0,15.556349186104045,0,15.556349186104045,0,15.556349186104045,0,15.556349186104045,0,15.556349186104045,0,15.556349186104045,0,15.556349186104045]
[null,"With no ambulatory difficulty",0,15.556349186104045,0,15.556349186104045,0,15.556349186104045,1186,171.21331723905124,0,15.556349186104045,179,68.24221567329127,0,15.556349186104045,42,19.104973174542799,305,69.31089380465383,99,38.418745424597091,0,15.556349186104045,0,15.556349186104045,126,46.669047558312137,0,15.556349186104045,0,15.556349186104045,71,31.906112267087632,15,16.643316977093239,0,15.556349186104045,395,82.219219164377861,0,15.556349186104045,0,15.556349186104045,0,15.556349186104045,0,15.556349186104045,612,119.88744721612851,0,15.556349186104045,0,15.556349186104045,4,4.2426406871192848,4,5,0,15.556349186104045,0,15.556349186104045,0,15.556349186104045,80,37.20215047547655,57,26.832815729997478,0,15.556349186104045,0,15.556349186104045,42,21.95449840010015,63,28.42534080710379,48,30.805843601498726,0,15.556349186104045,0,15.556349186104045,0,15.556349186104045,4,12.529964086141668,272,67.208630398186216]
[null,"18 to 34  years:",0,15.556349186104045,0,15.556349186104045,0,15.556349186104045,1631,174.02586014727811,0,15.556349186104045,197,85.632937588290176,0,15.556349186104045,23,13.45362404707371,296,75.451971478550519,79,28.319604517012593,0,15.556349186104045,0,15.556349186104045,143,51.662365412357957,6,6.7082039324993694,5,7.2111025509279782,23,11.401754250991379,39,21.931712199461309,0,15.556349186104045,443,102.00490184299969,4,14.212670403551895,0,15.556349186104045,0,15.556349186104045,0,15.556349186104045,463,103.47946656221224,0,15.556349186104045,0,15.556349186104045,4,5.6568542494923806,4,5.6568542494923806,0,15.556349186104045,0,15.556349186104045,4,7.2111025509279782,68,35,41,17.204650534085253,0,15.556349186104045,0,15.556349186104045,45,19.209372712298546,60,23.430749027719962,134,46.669047558312137,0,15.556349186104045,0,15.556349186104045,0,15.556349186104045,15,15.231546211727817,411,83.486525858967212]
[null,"With ambulatory difficulty",0,15.556349186104045,0,15.556349186104045,0,15.556349186104045,74,49.477267507411923,0,15.556349186104045,0,15.556349186104045,0,15.556349186104045,0,15.556349186104045,0,15.556349186104045,0,15.556349186104045,0,15.556349186104045,0,15.556349186104045,5,12.083045973594572,0,15.556349186104045,0,15.556349186104045,0,15.556349186104045,0,15.556349186104045,0,15.556349186104045,0,15.556349186104045,0,15.556349186104045,0,15.556349186104045,0,15.556349186104045,0,15.556349186104045,25,35,0,15.556349186104045,0,15.556349186104045,0,15.556349186104045,0,15.556349186104045,0,15.556349186104045,0,15.556349186104045,0,15.556349186104045,3,11.704699910719626,3,12.083045973594572,0,15.556349186104045,0,15.556349186104045,0,15.556349186104045,0,15.556349186104045,0,15.556349186104045,0,15.556349186104045,0,15.556349186104045,0,15.556349186104045,0,15.556349186104045,0,15.556349186104045]
[null,"With no ambulatory difficulty",0,15.556349186104045,0,15.556349186104045,0,15.556349186104045,1557,180.23595645708434,0,15.556349186104045,197,85.632937588290176,0,15.556349186104045,23,13.45362404707371,296,75.451971478550519,79,28.319604517012593,0,15.556349186104045,0,15.556349186104045,138,50.931326312987373,6,6.7082039324993694,5,7.2111025509279782,23,11.401754250991379,39,21.931712199461309,0,15.556349186104045,443,102.00490184299969,4,14.212670403551895,0,15.556349186104045,0,15.556349186104045,0,15.556349186104045,438,99.824846606443629,0,15.556349186104045,0,15.556349186104045,4,5.6568542494923806,4,5.6568542494923806,0,15.556349186104045,0,15.556349186104045,4,7.2111025509279782,65,34.409301068170507,38,16.643316977093239,0,15.556349186104045,0,15.556349186104045,45,19.209372712298546,60,23.430749027719962,134,46.669047558312137,0,15.556349186104045,0,15.556349186104045,0,15.556349186104045,15,15.231546211727817,411,83.486525858967212]
[null,"35 to 64  years:",0,15.556349186104045,0,15.556349186104045,0,15.556349186104045,3621,264.20068130116545,12,10.295630140987001,378,90.520715861066847,0,15.556349186104045,158,35.468295701936398,1139,119.60351165413162,352,65.73431371817918,0,15.556349186104045,0,15.556349186104045,407,62.936475910238251,7,8.5440037453175304,6,8.6023252670426267,168,33.421549934136806,147,35.608987629529715,0,15.556349186104045,1281,107.48953437428223,4,14.212670403551895,0,15.556349186104045,0,15.556349186104045,0,15.556349186104045,1580,137.90576492663388,0,15.556349186104045,0,15.556349186104045,9,8.5440037453175304,8,7.6157731058639087,0,15.556349186104045,0,15.556349186104045,4,12.083045973594572,486,71.589105316381762,197,35.468295701936398,9,9.2195444572928871,0,15.556349186104045,170,31.622776601683793,226,41.231056256176608,267,53.814496188294839,0,15.556349186104045,0,15.556349186104045,0,15.556349186104045,29,15.556349186104045,965,110.39021695784459]
[null,"With ambulatory difficulty",0,15.556349186104045,0,15.556349186104045,0,15.556349186104045,451,123.10970717209915,0,15.556349186104045,32,51.788029504896208,0,15.556349186104045,32,22.671568097509269,88,37.12142238654117,17,12.806248474865697,0,15.556349186104045,0,15.556349186104045,35,20.591260281974002,0,15.556349186104045,0,15.556349186104045,5,12.529964086141668,11,9.2195444572928871,0,15.556349186104045,61,30.805843601498726,4,14.212670403551895,0,15.556349186104045,0,15.556349186104045,0,15.556349186104045,124,75.451971478550519,0,15.556349186104045,0,15.556349186104045,0,15.556349186104045,0,15.556349186104045,0,15.556349186104045,0,15.556349186104045,2,11.704699910719626,40,25.612496949731394,6,13.038404810405298,0,15.556349186104045,0,15.556349186104045,13,8.6023252670426267,13,10.816653826391969,86,32.557641192199412,0,15.556349186104045,0,15.556349186104045,0,15.556349186104045,0,15.556349186104045,63,42.449970553582247]
[null,"With no ambulatory difficulty",0,15.556349186104045,0,15.556349186104045,0,15.556349186104045,3170,273.23982140237172,12,10.295630140987001,346,76.550636836018555,0,15.556349186104045,126,28.284271247461902,1051,111.75866856758807,335,64.660652641308843,0,15.556349186104045,0,15.556349186104045,372,60.108235708594876,7,8.5440037453175304,6,8.6023252670426267,163,31.89043743820395,136,36.400549446402593,0,15.556349186104045,1220,109.62207806824317,0,15.556349186104045,0,15.556349186104045,0,15.556349186104045,0,15.556349186104045,1456,140.08925726121899,0,15.556349186104045,0,15.556349186104045,9,8.5440037453175304,8,7.6157731058639087,0,15.556349186104045,0,15.556349186104045,2,11.704699910719626,446,67.475921631349351,191,34.713109915419565,9,9.2195444572928871,0,15.556349186104045,157,30.805843601498726,213,41.400483088968905,181,42.638011210655684,0,15.556349186104045,0,15.556349186104045,0,15.556349186104045,29,15.556349186104045,902,102.6498904042279]
[null,"65 to 74  years:",0,15.556349186104045,0,15.556349186104045,0,15.556349186104045,750,97.616596949494195,0,15.556349186104045,162,41.231056256176608,0,15.556349186104045,45,19.104973174542799,388,83.234608186739251,109,29.154759474226502,0,15.556349186104045,0,15.556349186104045,154,31.89043743820395,0,15.556349186104045,0,15.556349186104045,57,17.029386365926403,61,22.203603311174518,0,15.556349186104045,203,62.481997407253232,0,15.556349186104045,0,15.556349186104045,0,15.556349186104045,0,15.556349186104045,376,77.833154889160184,0,15.556349186104045,0,15.556349186104045,0,15.556349186104045,0,15.556349186104045,0,15.556349186104045,0,15.556349186104045,0,15.556349186104045,159,34.655446902326915,69,18.439088914585774,0,15.556349186104045,0,15.556349186104045,41,14.422205101855956,61,17.691806012954132,171,53.009433122794285,0,15.556349186104045,0,15.556349186104045,0,15.556349186104045,14,12.165525060596439,179,52.478567053607705]
[null,"With ambulatory difficulty",0,15.556349186104045,0,15.556349186104045,0,15.556349186104045,77,41.785164831552358,0,15.556349186104045,15,10.816653826391969,0,15.556349186104045,3,13.038404810405298,50,20.808652046684813,12,8.5440037453175304,0,15.556349186104045,0,15.556349186104045,20,12.041594578792296,0,15.556349186104045,0,15.556349186104045,2,3.6055512754639891,12,13.038404810405298,0,15.556349186104045,47,34.785054261852174,0,15.556349186104045,0,15.556349186104045,0,15.556349186104045,0,15.556349186104045,92,55.946402922797461,0,15.556349186104045,0,15.556349186104045,0,15.556349186104045,0,15.556349186104045,0,15.556349186104045,0,15.556349186104045,0,15.556349186104045,16,12.041594578792296,5,6.4031242374328485,0,15.556349186104045,0,15.556349186104045,7,6.324555320336759,20,14.422205101855956,14,15.556349186104045,0,15.556349186104045,0,15.556349186104045,0,15.556349186104045,7,14.866068747318506,58,41.182520563948003]
[null,"With no ambulatory difficulty",0,15.556349186104045,0,15.556349186104045,0,15.556349186104045,673,94.047860156411858,0,15.556349186104045,147,40.607881008493905,0,15.556349186104045,42,17.691806012954132,338,81.024687595818591,97,29.681644159311659,0,15.556349186104045,0,15.556349186104045,134,29.832867780352597,0,15.556349186104045,0,15.556349186104045,55,17.029386365926403,49,20.615528128088304,0,15.556349186104045,156,56.400354608814297,0,15.556349186104045,0,15.556349186104045,0,15.556349186104045,0,15.556349186104045,284,66.219332524573218,0,15.556349186104045,0,15.556349186104045,0,15.556349186104045,0,15.556349186104045,0,15.556349186104045,0,15.556349186104045,0,15.556349186104045,143,31.89043743820395,64,17.804493814764857,0,15.556349186104045,0,15.556349186104045,34,14.422205101855956,41,16.401219466856727,157,51.312766442669997,0,15.556349186104045,0,15.556349186104045,0,15.556349186104045,7,7.2801098892805181,121,36.235341863986875]
[null,"75  years and Older:",0,15.556349186104045,0,15.556349186104045,0,15.556349186104045,1046,120.88010589009261,5,13.038404810405298,40,18.439088914585774,0,15.556349186104045,36,16.401219466856727,119,36.069377593742864,55,21.633307652783937,0,15.556349186104045,0,15.556349186104045,91,25.612496949731394,0,15.556349186104045,0,15.556349186104045,25,14.7648230602334,34,20,0,15.556349186104045,270,71.700767080973407,0,15.556349186104045,0,15.556349186104045,0,15.556349186104045,0,15.556349186104045,172,65.76473218982953,0,15.556349186104045,0,15.556349186104045,0,15.556349186104045,0,15.556349186104045,0,15.556349186104045,0,15.556349186104045,0,15.556349186104045,80,28.600699292150182,58,17.029386365926403,0,15.556349186104045,0,15.556349186104045,47,15.620499351813308,49,17.691806012954132,66,29.681644159311659,0,15.556349186104045,0,15.556349186104045,0,15.556349186104045,0,15.556349186104045,157,54.561891462814962]
[null,"With ambulatory difficulty",0,15.556349186104045,0,15.556349186104045,0,15.556349186104045,300,83.21658488546619,5,13.038404810405298,17,13.892443989449804,0,15.556349186104045,14,10,24,17.204650534085253,8,13.601470508735444,0,15.556349186104045,0,15.556349186104045,49,20.518284528683193,0,15.556349186104045,0,15.556349186104045,1,11.401754250991379,18,13.601470508735444,0,15.556349186104045,100,52.497618993626752,0,15.556349186104045,0,15.556349186104045,0,15.556349186104045,0,15.556349186104045,58,40.80441152620633,0,15.556349186104045,0,15.556349186104045,0,15.556349186104045,0,15.556349186104045,0,15.556349186104045,0,15.556349186104045,0,15.556349186104045,27,17.888543819998318,13,7.810249675906654,0,15.556349186104045,0,15.556349186104045,16,9.2195444572928871,9,7.0710678118654755,31,23.769728648009426,0,15.556349186104045,0,15.556349186104045,0,15.556349186104045,0,15.556349186104045,73,45.803929962395145]
[null,"With no ambulatory difficulty",0,15.556349186104045,0,15.556349186104045,0,15.556349186104045,746,123.43419299367578,0,15.556349186104045,23,12.041594578792296,0,15.556349186104045,22,13.45362404707371,95,33.241540277189323,47,20.124611797498108,0,15.556349186104045,0,15.556349186104045,42,17.691806012954132,0,15.556349186104045,0,15.556349186104045,24,15.652475842498529,16,13.038404810405298,0,15.556349186104045,170,56.356011214421486,0,15.556349186104045,0,15.556349186104045,0,15.556349186104045,0,15.556349186104045,114,51.739733281106119,0,15.556349186104045,0,15.556349186104045,0,15.556349186104045,0,15.556349186104045,0,15.556349186104045,0,15.556349186104045,0,15.556349186104045,53,23.430749027719962,45,14.212670403551895,0,15.556349186104045,0,15.556349186104045,31,12.206555615733702,40,16.278820596099706,35,17,0,15.556349186104045,0,15.556349186104045,0,15.556349186104045,0,15.556349186104045,84,34.655446902326915]

{"sheet":"ACS_Table_B18106","index":34,"n_rows":122,"n_cols":88,"rows_kept":122,"cut":false,"hidden":true,"merged":[]}
["B18106. SEX BY AGE BY SELF-CARE DIFFICULTY\n\n\n\n"]
["Universe:  Civilian non-institutionalized population 5 years and over"]
["Data Set: 2015-2019 American Community Survey 5-Year Estimates"]
[]
[null,null,"Atkinson and Gilmanton Grant",null,"Bean's Grant",null,"Bean's Purchase",null,"Berlin",null,"Cambridge",null,"Carroll",null,"Chandler's Purchase",null,"Clarksville",null,"Colebrook",null,"Columbia",null,"Crawford's Purchase",null,"Cutt's Grant",null,"Dalton",null,"Dix's Grant",null,"Dixville",null,"Dummer",null,"Errol",null,"Erving's Location",null,"Gorham",null,"Greens Grant",null,"Hadley's Purchase",null,"Jefferson",null,"Kilkenny",null,"Lancaster",null,"Low and Burbank's Grant",null,"Martin's Location",null,"Milan",null,"Millsfield",null,"Northumberland",null,"Odell",null,"Pinkham's Grant",null,"Pittsburg",null,"Randolph",null,"Sargent's Purchase",null,"Second College Grant",null,"Shelburne",null,"Stark",null,"Stewartstown",null,"Stratford",null,"Success",null,"Thompson and Meserves Purchase",null,"Wentworth's Location",null,"Whitefield"]
[null," ","Estimate","Margin of Error","Estimate","Margin of Error","Estimate","Margin of Error","Estimate","Margin of Error","Estimate","Margin of Error","Estimate","Margin of Error","Estimate",null,"Estimate","Margin of Error","Estimate","Margin of Error","Estimate","Margin of Error","Estimate","Margin of Error","Estimate","Margin of Error","Estimate","Margin of Error","Estimate","Margin of Error","Estimate","Margin of Error","Estimate","Margin of Error","Estimate","Margin of Error","Estimate","Margin of Error","Estimate","Margin of Error","Estimate","Margin of Error","Estimate","Margin of Error","Estimate","Margin of Error","Estimate","Margin of Error","Estimate","Margin of Error","Estimate","Margin of Error","Estimate","Margin of Error","Estimate","Margin of Error","Estimate","Margin of Error","Estimate","Margin of Error","Estimate","Margin of Error","Estimate","Margin of Error","Estimate","Margin of Error","Estimate","Margin of Error","Estimate","Margin of Error","Estimate","Margin of Error","Estimate","Margin of Error","Estimate","Margin of Error","Estimate","Margin of Error","Estimate","Margin of Error","Estimate","Margin of Error","Estimate","Margin of Error","Estimate","Margin of Error","Estimate","Margin of Error"]
[null,"Total:",0,11,0,11,0,11,7983,244,0,11,743,134,0,11,318,87,1853,166,626,118,0,11,0,11,873,135,0,11,11,12,297,69,205,55,0,11,2569,42,13,10,0,11,808,118,0,11,3012,115,0,11,0,11,1291,99,8,12,2143,256,10,12,11,14,740,104,349,65,11,24,0,11,391,58,566,118,825,161,616,108,0,11,0,11,26,16,2058,188]
[null,"Male:",0,11,0,11,0,11,3859,194,0,11,441,90,0,11,172,51,899,103,332,70,0,11,0,11,422,75,0,11,9,10,166,48,109,35,0,11,1367,84,13,10,0,11,388,67,0,11,1446,111,0,11,0,11,684,63,4,6,1103,146,5,11,11,14,407,63,182,37,0,11,0,11,201,34,280,60,415,81,348,72,0,11,0,11,19,12,1003,143]
[null,"5 to 17  years:",0,11,0,11,0,11,544,118,0,11,79,71,0,11,19,13,146,63,29,15,0,11,0,11,47,25,0,11,2,4,37,34,18,18,0,11,211,67,0,11,0,11,57,21,0,11,199,73,0,11,0,11,85,34,0,11,214,67,0,11,0,11,40,24,4,4,0,11,0,11,18,14,33,23,47,29,74,28,0,11,0,11,0,11,161,70]
[null,"With self care difficulty",0,11,0,11,0,11,0,18,0,11,0,11,0,11,0,11,0,11,4,7,0,11,0,11,0,11,0,11,0,11,0,11,0,11,0,11,11,16,0,11,0,11,0,11,0,11,0,11,0,11,0,11,0,11,0,11,0,11,0,11,0,11,0,11,0,11,0,11,0,11,0,11,0,11,0,11,0,11,0,11,0,11,0,11,4,12]
[null,"With no self care difficulty",0,11,0,11,0,11,544,118,0,11,79,71,0,11,19,13,146,63,25,16,0,11,0,11,47,25,0,11,2,4,37,34,18,18,0,11,200,65,0,11,0,11,57,21,0,11,199,73,0,11,0,11,85,34,0,11,214,67,0,11,0,11,40,24,4,4,0,11,0,11,18,14,33,23,47,29,74,28,0,11,0,11,0,11,157,67]
[null,"18 to 34  years:",0,11,0,11,0,11,1002,175,0,11,98,65,0,11,34,16,91,43,58,32,0,11,0,11,102,42,0,11,5,6,20,11,0,11,0,11,181,71,5,8,0,11,66,34,0,11,334,79,0,11,0,11,144,48,0,11,199,77,5,11,7,8,35,21,29,16,0,11,0,11,15,12,51,25,39,30,39,25,0,11,0,11,3,4,157,68]
[null,"With self care difficulty",0,11,0,11,0,11,0,18,0,11,0,11,0,11,0,11,8,11,0,11,0,11,0,11,0,11,0,11,0,11,0,11,0,11,0,11,0,11,0,11,0,11,0,11,0,11,0,11,0,11,0,11,10,12,0,11,0,11,0,11,0,11,0,11,0,11,0,11,0,11,0,11,0,11,0,11,0,11,0,11,0,11,0,11,0,11]
[null,"With no self care difficulty",0,11,0,11,0,11,1002,175,0,11,98,65,0,11,34,16,83,39,58,32,0,11,0,11,102,42,0,11,5,6,20,11,0,11,0,11,181,71,5,8,0,11,66,34,0,11,334,79,0,11,0,11,134,47,0,11,199,77,5,11,7,8,35,21,29,16,0,11,0,11,15,12,51,25,39,30,39,25,0,11,0,11,3,4,157,68]
[null,"35 to 64  years:",0,11,0,11,0,11,1624,139,0,11,157,36,0,11,69,29,396,64,157,46,0,11,0,11,214,44,0,11,0,11,50,13,52,17,0,11,648,71,8,10,0,11,163,38,0,11,636,100,0,11,0,11,302,33,4,6,501,80,0,11,4,8,184,44,83,22,0,11,0,11,88,24,114,31,168,45,173,41,0,11,0,11,4,4,342,62]
[null,"With self care difficulty",0,11,0,11,0,11,87,62,0,11,0,11,0,11,0,11,7,10,8,9,0,11,0,11,0,11,0,11,0,11,2,4,0,11,0,11,7,11,0,11,0,11,0,11,0,11,15,23,0,11,0,11,10,7,0,11,39,28,0,11,0,11,0,11,0,11,0,11,0,11,0,11,15,12,6,7,15,14,0,11,0,11,0,11,8,10]
[null,"With no self care difficulty",0,11,0,11,0,11,1537,135,0,11,157,36,0,11,69,29,389,63,149,45,0,11,0,11,214,44,0,11,0,11,48,13,52,17,0,11,641,73,8,10,0,11,163,38,0,11,621,100,0,11,0,11,292,31,4,6,462,75,0,11,4,8,184,44,83,22,0,11,0,11,88,24,99,28,162,45,158,39,0,11,0,11,4,4,334,62]
[null,"65 to 74  years:",0,11,0,11,0,11,436,94,0,11,76,27,0,11,40,19,169,46,49,16,0,11,0,11,41,22,0,11,2,6,36,16,18,14,0,11,175,58,0,11,0,11,83,27,0,11,129,50,0,11,0,11,119,28,0,11,119,39,0,11,0,11,127,36,49,16,0,11,0,11,52,20,52,22,123,42,31,12,0,11,0,11,4,4,220,54]
[null,"With self care difficulty",0,11,0,11,0,11,9,14,0,11,3,4,0,11,0,11,0,11,0,11,0,11,0,11,0,11,0,11,0,11,0,11,0,11,0,11,19,20,0,11,0,11,4,5,0,11,8,12,0,11,0,11,0,11,0,11,6,9,0,11,0,11,9,14,0,11,0,11,0,11,9,14,0,11,0,11,5,5,0,11,0,11,0,11,0,11]
[null,"With no self care difficulty",0,11,0,11,0,11,427,92,0,11,73,27,0,11,40,19,169,46,49,16,0,11,0,11,41,22,0,11,2,6,36,16,18,14,0,11,156,57,0,11,0,11,79,27,0,11,121,48,0,11,0,11,119,28,0,11,113,38,0,11,0,11,118,31,49,16,0,11,0,11,43,15,52,22,123,42,26,11,0,11,0,11,4,4,220,54]
[null,"75  years and Older:",0,11,0,11,0,11,253,65,0,11,31,15,0,11,10,9,97,31,39,17,0,11,0,11,18,16,0,11,0,11,23,12,21,13,0,11,152,58,0,11,0,11,19,11,0,11,148,57,0,11,0,11,34,14,0,11,70,32,0,11,0,11,21,11,17,9,0,11,0,11,28,18,30,14,38,14,31,17,0,11,0,11,8,8,123,43]
[null,"With self care difficulty",0,11,0,11,0,11,31,28,0,11,3,4,0,11,1,2,0,11,9,8,0,11,0,11,0,11,0,11,0,11,0,11,0,11,0,11,6,10,0,11,0,11,0,11,0,11,7,11,0,11,0,11,0,11,0,11,12,18,0,11,0,11,0,11,0,11,0,11,0,11,5,7,4,7,0,11,6,7,0,11,0,11,0,11,11,9]
[null,"With no self care difficulty",0,11,0,11,0,11,222,61,0,11,28,15,0,11,9,9,97,31,30,14,0,11,0,11,18,16,0,11,0,11,23,12,21,13,0,11,146,59,0,11,0,11,19,11,0,11,141,57,0,11,0,11,34,14,0,11,58,28,0,11,0,11,21,11,17,9,0,11,0,11,23,16,26,11,38,14,25,15,0,11,0,11,8,8,112,43]
[null,"Female:",0,11,0,11,0,11,4124,190,0,11,302,62,0,11,146,44,954,114,294,60,0,11,0,11,451,76,0,11,2,6,131,27,96,33,0,11,1202,78,0,11,0,11,420,65,0,11,1566,141,0,11,0,11,607,54,4,6,1040,137,5,11,0,11,333,53,167,36,11,24,0,11,190,33,286,67,410,95,268,54,0,11,0,11,7,6,1055,122]
[null,"5 to 17  years:",0,11,0,11,0,11,640,108,0,11,32,34,0,11,6,9,100,46,43,24,0,11,0,11,52,31,0,11,0,11,17,10,9,13,0,11,143,48,0,11,0,11,23,16,0,11,319,63,0,11,0,11,94,25,0,11,129,63,0,11,0,11,17,14,3,4,0,11,0,11,18,15,72,42,61,47,24,17,0,11,0,11,0,11,99,50]
[null,"With self care difficulty",0,11,0,11,0,11,9,16,0,11,0,11,0,11,0,11,0,11,0,11,0,11,0,11,10,15,0,11,0,11,0,11,0,11,0,11,0,11,0,11,0,11,0,11,0,11,0,11,0,11,0,11,3,4,0,11,5,7,0,11,0,11,0,11,0,11,0,11,0,11,0,11,0,11,0,11,2,4,0,11,0,11,0,11,0,11]
[null,"With no self care difficulty",0,11,0,11,0,11,631,113,0,11,32,34,0,11,6,9,100,46,43,24,0,11,0,11,42,22,0,11,0,11,17,10,9,13,0,11,143,48,0,11,0,11,23,16,0,11,319,63,0,11,0,11,91,25,0,11,124,63,0,11,0,11,17,14,3,4,0,11,0,11,18,15,72,42,61,47,22,16,0,11,0,11,0,11,99,50]
[null,"18 to 34  years:",0,11,0,11,0,11,819,134,0,11,37,26,0,11,20,12,183,57,33,20,0,11,0,11,54,29,0,11,0,11,22,10,0,11,0,11,133,52,0,11,0,11,58,27,0,11,244,73,0,11,0,11,124,45,0,11,248,69,5,11,0,11,54,31,23,11,11,24,0,11,20,10,18,16,67,41,37,25,0,11,0,11,0,11,97,43]
[null,"With self care difficulty",0,11,0,11,0,11,0,18,0,11,0,11,0,11,0,11,5,7,0,11,0,11,0,11,3,4,0,11,0,11,0,11,0,11,0,11,0,11,0,11,0,11,0,11,0,11,38,44,0,11,0,11,0,11,0,11,25,28,0,11,0,11,0,11,0,11,0,11,0,11,0,11,0,11,0,11,0,11,0,11,0,11,0,11,0,11]
[null,"With no self care difficulty",0,11,0,11,0,11,819,134,0,11,37,26,0,11,20,12,178,57,33,20,0,11,0,11,51,30,0,11,0,11,22,10,0,11,0,11,133,52,0,11,0,11,58,27,0,11,206,62,0,11,0,11,124,45,0,11,223,66,5,11,0,11,54,31,23,11,11,24,0,11,20,10,18,16,67,41,37,25,0,11,0,11,0,11,97,43]
[null,"35 to 64  years:",0,11,0,11,0,11,1635,141,0,11,146,35,0,11,97,35,443,65,150,37,0,11,0,11,242,45,0,11,2,6,64,18,60,22,0,11,593,67,0,11,0,11,241,39,0,11,622,95,0,11,0,11,290,39,0,11,445,63,0,11,0,11,157,37,82,23,0,11,0,11,102,25,121,31,125,46,139,35,0,11,0,11,0,11,532,84]
[null,"With self care difficulty",0,11,0,11,0,11,73,41,0,11,1,3,0,11,7,11,3,5,3,5,0,11,0,11,12,12,0,11,0,11,4,5,0,11,0,11,0,11,0,11,0,11,3,5,0,11,8,14,0,11,0,11,0,11,0,11,13,9,0,11,0,11,3,5,2,3,0,11,0,11,7,9,0,11,0,11,2,3,0,11,0,11,0,11,6,9]
[null,"With no self care difficulty",0,11,0,11,0,11,1562,149,0,11,145,35,0,11,90,30,440,65,147,37,0,11,0,11,230,42,0,11,2,6,60,19,60,22,0,11,593,67,0,11,0,11,238,39,0,11,614,94,0,11,0,11,290,39,0,11,432,64,0,11,0,11,154,37,80,23,0,11,0,11,95,23,121,31,125,46,137,35,0,11,0,11,0,11,526,85]
[null,"65 to 74  years:",0,11,0,11,0,11,515,87,0,11,57,14,0,11,18,11,120,36,29,13,0,11,0,11,66,23,0,11,0,11,13,7,18,13,0,11,159,51,0,11,0,11,73,22,0,11,207,52,0,11,0,11,75,23,0,11,134,34,0,11,0,11,72,26,38,12,0,11,0,11,30,14,38,16,113,34,38,16,0,11,0,11,7,6,210,59]
[null,"With self care difficulty",0,11,0,11,0,11,10,14,0,11,0,11,0,11,0,11,0,11,0,11,0,11,0,11,11,14,0,11,0,11,0,11,1,2,0,11,0,11,0,11,0,11,3,4,0,11,0,11,0,11,0,11,0,11,0,11,0,11,0,11,0,11,0,11,0,11,0,11,0,11,1,3,0,11,0,11,7,7,0,11,0,11,0,11,25,23]
[null,"With no self care difficulty",0,11,0,11,0,11,505,87,0,11,57,14,0,11,18,11,120,36,29,13,0,11,0,11,55,23,0,11,0,11,13,7,17,13,0,11,159,51,0,11,0,11,70,21,0,11,207,52,0,11,0,11,75,23,0,11,134,34,0,11,0,11,72,26,38,12,0,11,0,11,29,14,38,16,113,34,31,14,0,11,0,11,7,6,185,57]
[null,"75  years and Older:",0,11,0,11,0,11,515,82,0,11,30,16,0,11,5,8,108,37,39,17,0,11,0,11,37,17,0,11,0,11,15,10,9,8,0,11,174,52,0,11,0,11,25,15,0,11,174,56,0,11,0,11,24,12,4,6,84,34,0,11,0,11,33,20,21,12,0,11,0,11,20,12,37,16,44,20,30,14,0,11,0,11,0,11,117,45]
[null,"With self care difficulty",0,11,0,11,0,11,59,36,0,11,0,11,0,11,0,11,4,6,4,5,0,11,0,11,3,5,0,11,0,11,1,2,0,11,0,11,26,27,0,11,0,11,0,11,0,11,0,11,0,11,0,11,0,11,0,11,0,11,0,11,0,11,2,4,2,3,0,11,0,11,8,10,4,4,15,15,5,6,0,11,0,11,0,11,2,4]
[null,"With no self care difficulty",0,11,0,11,0,11,456,82,0,11,30,16,0,11,5,8,104,37,35,17,0,11,0,11,34,16,0,11,0,11,14,9,9,8,0,11,148,50,0,11,0,11,25,15,0,11,174,56,0,11,0,11,24,12,4,6,84,34,0,11,0,11,31,20,19,11,0,11,0,11,12,9,33,15,29,14,25,12,0,11,0,11,0,11,115,46]
[]
[]
[{"$f":"A1& \"-Calculated\"","v":"B18106. SEX BY AGE BY SELF-CARE DIFFICULTY\n\n\n\n-Calculated"}]
[{"$f":"A2","v":"Universe:  Civilian non-institutionalized population 5 years and over"}]
[{"$f":"A3","v":"Data Set: 2015-2019 American Community Survey 5-Year Estimates"}]
[]
[]
[null,null,"Atkinson and Gilmanton Grant",null,"Bean's Grant",null,"Bean's Purchase",null,"Berlin",null,"Cambridge",null,"Carroll",null,"Chandler's Purchase",null,"Clarksville",null,"Colebrook",null,"Columbia",null,"Crawford's Purchase",null,"Cutt's Grant",null,"Dalton",null,"Dix's Grant",null,"Dixville",null,"Dummer",null,"Errol",null,"Erving's Location",null,"Gorham",null,"Greens Grant",null,"Hadley's Purchase",null,"Jefferson",null,"Kilkenny",null,"Lancaster",null,"Low and Burbank's Grant",null,"Martin's Location",null,"Milan",null,"Millsfield",null,"Northumberland",null,"Odell",null,"Pinkham's Grant",null,"Pittsburg",null,"Randolph",null,"Sargent's Purchase",null,"Second College Grant",null,"Shelburne",null,"Stark",null,"Stewartstown",null,"Stratford",null,"Success",null,"Thompson and Meserves Purchase",null,"Wentworth's Location",null,"Whitefield"]
[null," ","Estimate","Margin of Error","Estimate","Margin of Error","Estimate","Margin of Error","Estimate","Margin of Error","Estimate","Margin of Error","Estimate","Margin of Error","Estimate",null,"Estimate","Margin of Error","Estimate","Margin of Error","Estimate","Margin of Error","Estimate","Margin of Error","Estimate","Margin of Error","Estimate","Margin of Error","Estimate","Margin of Error","Estimate","Margin of Error","Estimate","Margin of Error","Estimate","Margin of Error","Estimate","Margin of Error","Estimate","Margin of Error","Estimate","Margin of Error","Estimate","Margin of Error","Estimate","Margin of Error","Estimate","Margin of Error","Estimate","Margin of Error","Estimate","Margin of Error","Estimate","Margin of Error","Estimate","Margin of Error","Estimate","Margin of Error","Estimate","Margin of Error","Estimate","Margin of Error","Estimate","Margin of Error","Estimate","Margin of Error","Estimate","Margin of Error","Estimate","Margin of Error","Estimate","Margin of Error","Estimate","Margin of Error","Estimate","Margin of Error","Estimate","Margin of Error","Estimate","Margin of Error","Estimate","Margin of Error","Estimate","Margin of Error","Estimate","Margin of Error","Estimate","Margin of Error"]
[null,"Total:",0,11,0,11,0,11,8511,217,19,17,935,179,0,11,321,86,2248,197,678,117,0,11,0,11,964,160,11,9,11,9,350,78,244,55,0,11,2635,71,6,14,0,11,0,11,0,11,3217,79,0,11,0,11,16,15,16,15,0,11,0,11,7,7,972,131,449,84,8,12,0,11,363,69,512,95,690,106,0,11,0,11,0,11,54,34,2005,227]
[null,"5 to 17  years:",0,15.556349186104045,0,15.556349186104045,0,15.556349186104045,1242,153.52198539622916,0,15.556349186104045,180,73,0,15.556349186104045,52,28.231188426986208,309,77.103826104804938,117,43.931765272977593,0,15.556349186104045,0,15.556349186104045,173,55.758407437802596,0,15.556349186104045,0,15.556349186104045,69,32.756678708318397,6,13.038404810405298,0,15.556349186104045,434,86.313382508160345,0,15.556349186104045,0,15.556349186104045,0,15.556349186104045,0,15.556349186104045,586,105.47511554864494,0,15.556349186104045,0,15.556349186104045,4,5,4,5,0,15.556349186104045,0,15.556349186104045,0,15.556349186104045,105,45.453272709454048,54,30.016662039607269,0,15.556349186104045,0,15.556349186104045,44,20.248456731316587,92,35.510561809129406,55,28.301943396169811,0,15.556349186104045,0,15.556349186104045,0,15.556349186104045,3,12.083045973594572,269,76.576758876306585]
[null,"With self care difficulty",0,15.556349186104045,0,15.556349186104045,0,15.556349186104045,28,38.483762809787713,0,15.556349186104045,8,16.278820596099706,0,15.556349186104045,0,15.556349186104045,0,15.556349186104045,0,15.556349186104045,0,15.556349186104045,0,15.556349186104045,2,11.401754250991379,0,15.556349186104045,0,15.556349186104045,0,15.556349186104045,0,15.556349186104045,0,15.556349186104045,20,27.313000567495326,0,15.556349186104045,0,15.556349186104045,0,15.556349186104045,0,15.556349186104045,0,15.556349186104045,0,15.556349186104045,0,15.556349186104045,0,15.556349186104045,0,15.556349186104045,0,15.556349186104045,0,15.556349186104045,0,15.556349186104045,0,15.556349186104045,0,15.556349186104045,0,15.556349186104045,0,15.556349186104045,0,15.556349186104045,0,15.556349186104045,0,15.556349186104045,0,15.556349186104045,0,15.556349186104045,0,15.556349186104045,0,15.556349186104045,0,15.556349186104045]
[null,"With no self care difficulty",0,15.556349186104045,0,15.556349186104045,0,15.556349186104045,1214,153.52198539622916,0,15.556349186104045,172,66.483080554378645,0,15.556349186104045,52,28.231188426986208,309,77.103826104804938,117,43.931765272977593,0,15.556349186104045,0,15.556349186104045,171,54.918120870983927,0,15.556349186104045,0,15.556349186104045,69,32.756678708318397,6,13.038404810405298,0,15.556349186104045,414,78.644770964127048,0,15.556349186104045,0,15.556349186104045,0,15.556349186104045,0,15.556349186104045,586,105.47511554864494,0,15.556349186104045,0,15.556349186104045,4,5,4,5,0,15.556349186104045,0,15.556349186104045,0,15.556349186104045,105,45.453272709454048,54,30.016662039607269,0,15.556349186104045,0,15.556349186104045,44,20.248456731316587,92,35.510561809129406,55,28.301943396169811,0,15.556349186104045,0,15.556349186104045,0,15.556349186104045,3,12.083045973594572,269,76.576758876306585]
[null,"18 to 34  years:",0,15.556349186104045,0,15.556349186104045,0,15.556349186104045,1663,174.83706700811473,0,15.556349186104045,206,80.808415403347695,0,15.556349186104045,21,18.027756377319946,275,63.7808748764079,66,26.90724809414742,0,15.556349186104045,0,15.556349186104045,153,55,5,7.2111025509279782,5,7.2111025509279782,31,12.041594578792296,42,21.2602916254693,0,15.556349186104045,455,108.23123393919151,3,13.038404810405298,0,15.556349186104045,0,15.556349186104045,0,15.556349186104045,422,93.434469014384618,0,15.556349186104045,0,15.556349186104045,4,5.6568542494923806,4,5.6568542494923806,0,15.556349186104045,0,15.556349186104045,3,13.038404810405298,64,30,36,14.212670403551895,0,15.556349186104045,0,15.556349186104045,46,23.345235059857504,73,25.495097567963924,129,41.109609582188931,0,15.556349186104045,0,15.556349186104045,0,15.556349186104045,15,17.464249196572979,442,97.20082304178294]
[null,"With self care difficulty",0,15.556349186104045,0,15.556349186104045,0,15.556349186104045,48,45.607017003965517,0,15.556349186104045,0,15.556349186104045,0,15.556349186104045,0,15.556349186104045,0,15.556349186104045,0,15.556349186104045,0,15.556349186104045,0,15.556349186104045,0,15.556349186104045,0,15.556349186104045,0,15.556349186104045,0,15.556349186104045,0,15.556349186104045,0,15.556349186104045,0,15.556349186104045,0,15.556349186104045,0,15.556349186104045,0,15.556349186104045,0,15.556349186104045,13,21.95449840010015,0,15.556349186104045,0,15.556349186104045,0,15.556349186104045,0,15.556349186104045,0,15.556349186104045,0,15.556349186104045,0,15.556349186104045,0,15.556349186104045,4,12.529964086141668,0,15.556349186104045,0,15.556349186104045,0,15.556349186104045,0,15.556349186104045,0,15.556349186104045,0,15.556349186104045,0,15.556349186104045,0,15.556349186104045,0,15.556349186104045,0,15.556349186104045]
[null,"With no self care difficulty",0,15.556349186104045,0,15.556349186104045,0,15.556349186104045,1615,177.40913167027227,0,15.556349186104045,206,80.808415403347695,0,15.556349186104045,21,18.027756377319946,275,63.7808748764079,66,26.90724809414742,0,15.556349186104045,0,15.556349186104045,153,55,5,7.2111025509279782,5,7.2111025509279782,31,12.041594578792296,42,21.2602916254693,0,15.556349186104045,455,108.23123393919151,3,13.038404810405298,0,15.556349186104045,0,15.556349186104045,0,15.556349186104045,409,94.921019800674287,0,15.556349186104045,0,15.556349186104045,4,5.6568542494923806,4,5.6568542494923806,0,15.556349186104045,0,15.556349186104045,3,13.038404810405298,64,30,32,13.601470508735444,0,15.556349186104045,0,15.556349186104045,46,23.345235059857504,73,25.495097567963924,129,41.109609582188931,0,15.556349186104045,0,15.556349186104045,0,15.556349186104045,15,17.464249196572979,442,97.20082304178294]
[null,"35 to 64  years:",0,15.556349186104045,0,15.556349186104045,0,15.556349186104045,3703,194.61757371830529,14,11.180339887498949,376,84.403791384036765,0,15.556349186104045,172,37.536648758246919,1203,121.69634341261039,328,63.7808748764079,0,15.556349186104045,0,15.556349186104045,455,63.702433234531945,6,8.6023252670426267,6,8.6023252670426267,181,36.124783736376884,122,33.941125496954278,0,15.556349186104045,1250,124.48293055676348,3,13.038404810405298,0,15.556349186104045,0,15.556349186104045,0,15.556349186104045,1654,135.14806694880988,0,15.556349186104045,0,15.556349186104045,8,7.6157731058639087,8,7.6157731058639087,0,15.556349186104045,0,15.556349186104045,4,13.038404810405298,538,78.568441501661468,248,38.209946349085598,8,8.4852813742385695,0,15.556349186104045,187,33.301651610693426,258,47.010637094172637,311,58.137767414994535,0,15.556349186104045,0,15.556349186104045,0,15.556349186104045,20,15,954,109.34349546269316]
[null,"With self care difficulty",0,15.556349186104045,0,15.556349186104045,0,15.556349186104045,46,30.610455730027933,0,15.556349186104045,6,6.7082039324993694,0,15.556349186104045,6,14.866068747318506,4,12.529964086141668,5,13.601470508735444,0,15.556349186104045,0,15.556349186104045,15,10.63014581273465,0,15.556349186104045,0,15.556349186104045,1,11.401754250991379,0,15.556349186104045,0,15.556349186104045,16,19.416487838947599,0,15.556349186104045,0,15.556349186104045,0,15.556349186104045,0,15.556349186104045,40,33.301651610693426,0,15.556349186104045,0,15.556349186104045,0,15.556349186104045,0,15.556349186104045,0,15.556349186104045,0,15.556349186104045,2,11.704699910719626,16,20.248456731316587,2,11.401754250991379,0,15.556349186104045,0,15.556349186104045,1,11.180339887498949,3,12.083045973594572,11,14.212670403551895,0,15.556349186104045,0,15.556349186104045,0,15.556349186104045,3,12.083045973594572,6,14.866068747318506]
[null,"With no self care difficulty",0,15.556349186104045,0,15.556349186104045,0,15.556349186104045,3657,196.16319736382766,14,11.180339887498949,370,83.815273071201048,0,15.556349186104045,166,36.235341863986875,1199,121.69634341261039,323,63.126856408346519,0,15.556349186104045,0,15.556349186104045,440,63.031738037277698,6,8.6023252670426267,6,8.6023252670426267,180,36.878177829171548,122,33.941125496954278,0,15.556349186104045,1234,124.48293055676348,3,13.038404810405298,0,15.556349186104045,0,15.556349186104045,0,15.556349186104045,1614,133.00375934536586,0,15.556349186104045,0,15.556349186104045,8,7.6157731058639087,8,7.6157731058639087,0,15.556349186104045,0,15.556349186104045,2,11.704699910719626,522,76.380625815713245,246,38.209946349085598,8,8.4852813742385695,0,15.556349186104045,186,33.301651610693426,255,47.801673610868477,300,55.901699437494742,0,15.556349186104045,0,15.556349186104045,0,15.556349186104045,17,14.212670403551895,948,110.11357772772621]
[null,"65 to 74  years:",0,15.556349186104045,0,15.556349186104045,0,15.556349186104045,858,107.07007051459338,0,15.556349186104045,133,38.832975677895199,0,15.556349186104045,36,18.439088914585774,278,56.639209034025185,118,33.837848631377263,0,15.556349186104045,0,15.556349186104045,113,29.698484809834994,0,15.556349186104045,0,15.556349186104045,49,15.620499351813308,48,19.235384061671343,0,15.556349186104045,197,67.268120235368556,0,15.556349186104045,0,15.556349186104045,0,15.556349186104045,0,15.556349186104045,347,83.737685661833282,0,15.556349186104045,0,15.556349186104045,0,15.556349186104045,0,15.556349186104045,0,15.556349186104045,0,15.556349186104045,0,15.556349186104045,164,37.483329627982627,61,20.518284528683193,0,15.556349186104045,0,15.556349186104045,39,15.620499351813308,53,17.804493814764857,139,43.266615305567875,0,15.556349186104045,0,15.556349186104045,0,15.556349186104045,16,12.649110640673518,190,55.901699437494742]
[null,"With self care difficulty",0,15.556349186104045,0,15.556349186104045,0,15.556349186104045,35,31.384709652950431,0,15.556349186104045,0,15.556349186104045,0,15.556349186104045,2,11.401754250991379,12,12.206555615733702,2,11.401754250991379,0,15.556349186104045,0,15.556349186104045,3,11.704699910719626,0,15.556349186104045,0,15.556349186104045,2,11.401754250991379,2,11.704699910719626,0,15.556349186104045,24,31.016124838541646,0,15.556349186104045,0,15.556349186104045,0,15.556349186104045,0,15.556349186104045,0,15.556349186104045,0,15.556349186104045,0,15.556349186104045,0,15.556349186104045,0,15.556349186104045,0,15.556349186104045,0,15.556349186104045,0,15.556349186104045,4,12.529964086141668,0,15.556349186104045,0,15.556349186104045,0,15.556349186104045,0,15.556349186104045,2,12.083045973594572,2,11.401754250991379,0,15.556349186104045,0,15.556349186104045,0,15.556349186104045,3,11.704699910719626,27,30.886890422961002]
[null,"With no self care difficulty",0,15.556349186104045,0,15.556349186104045,0,15.556349186104045,823,105.47511554864494,0,15.556349186104045,133,38.832975677895199,0,15.556349186104045,34,18.439088914585774,266,56.727418414731339,116,33.837848631377263,0,15.556349186104045,0,15.556349186104045,110,29.698484809834994,0,15.556349186104045,0,15.556349186104045,47,15.620499351813308,46,18.357559750685819,0,15.556349186104045,173,62.801273872430329,0,15.556349186104045,0,15.556349186104045,0,15.556349186104045,0,15.556349186104045,347,83.737685661833282,0,15.556349186104045,0,15.556349186104045,0,15.556349186104045,0,15.556349186104045,0,15.556349186104045,0,15.556349186104045,0,15.556349186104045,160,37.483329627982627,61,20.518284528683193,0,15.556349186104045,0,15.556349186104045,39,15.620499351813308,51,17.204650534085253,137,43.266615305567875,0,15.556349186104045,0,15.556349186104045,0,15.556349186104045,13,16.278820596099706,163,50.931326312987373]
[null,"75  years and Older:",0,15.556349186104045,0,15.556349186104045,0,15.556349186104045,1045,130.29965464267354,5,13.038404810405298,40,18.027756377319946,0,15.556349186104045,40,18.867962264113206,183,73.878278269055514,49,20.591260281974002,0,15.556349186104045,0,15.556349186104045,70,21.931712199461309,0,15.556349186104045,0,15.556349186104045,20,11.704699910719626,26,17.4928556845359,0,15.556349186104045,299,85.702975444263316,0,15.556349186104045,0,15.556349186104045,0,15.556349186104045,0,15.556349186104045,208,71.840100222647237,0,15.556349186104045,0,15.556349186104045,0,15.556349186104045,0,15.556349186104045,0,15.556349186104045,0,15.556349186104045,0,15.556349186104045,101,34.713109915419565,50,16.401219466856727,0,15.556349186104045,0,15.556349186104045,47,15,36,13.601470508735444,56,27.459060435491963,0,15.556349186104045,0,15.556349186104045,0,15.556349186104045,0,15.556349186104045,150,49.678969393496885]
[null,"With self care difficulty",0,15.556349186104045,0,15.556349186104045,0,15.556349186104045,122,68.029405406779802,5,13.038404810405298,14,15.231546211727817,0,15.556349186104045,14,13.601470508735444,35,54.12947441089743,6,12.529964086141668,0,15.556349186104045,0,15.556349186104045,6,6.4031242374328485,0,15.556349186104045,0,15.556349186104045,0,15.556349186104045,6,13.038404810405298,0,15.556349186104045,9,14.317821063276353,0,15.556349186104045,0,15.556349186104045,0,15.556349186104045,0,15.556349186104045,0,15.556349186104045,0,15.556349186104045,0,15.556349186104045,0,15.556349186104045,0,15.556349186104045,0,15.556349186104045,0,15.556349186104045,0,15.556349186104045,12,10,0,15.556349186104045,0,15.556349186104045,0,15.556349186104045,2,11.401754250991379,4,12.083045973594572,10,19.416487838947599,0,15.556349186104045,0,15.556349186104045,0,15.556349186104045,0,15.556349186104045,47,36.878177829171548]
[null,"With no self care difficulty",0,15.556349186104045,0,15.556349186104045,0,15.556349186104045,923,131.52186130069785,0,15.556349186104045,26,10.63014581273465,0,15.556349186104045,26,12.727922061357855,148,52.839379254491625,43,19.697715603592208,0,15.556349186104045,0,15.556349186104045,64,21.2602916254693,0,15.556349186104045,0,15.556349186104045,20,11.704699910719626,20,15.811388300841896,0,15.556349186104045,290,86.371291526756735,0,15.556349186104045,0,15.556349186104045,0,15.556349186104045,0,15.556349186104045,208,71.840100222647237,0,15.556349186104045,0,15.556349186104045,0,15.556349186104045,0,15.556349186104045,0,15.556349186104045,0,15.556349186104045,0,15.556349186104045,89,34.058772731852805,50,16.401219466856727,0,15.556349186104045,0,15.556349186104045,45,15,32,13.601470508735444,46,22.671568097509269,0,15.556349186104045,0,15.556349186104045,0,15.556349186104045,0,15.556349186104045,103,32.526911934581186]
[]
[]
[]
[]
[]
[]
[]
[]
[]
[]
[]
[]
[]
[]
[]
[]
[]
[]
[]
[]
[]
[]
[]
[]
[]
[]
[]
[]
[]
[]
[]
[]
[]
[]
[]
["B18106. SEX BY AGE BY SELF-CARE DIFFICULTY\n\n\n\n-Calculated"]
["Universe:  Civilian non-institutionalized population 5 years and over"]
["Data Set: 2010-2014 American Community Survey 5-Year Estimates"]
[]
[]
[null,null,"Atkinson and Gilmanton Grant",null,"Bean's Grant",null,"Bean's Purchase",null,"Berlin",null,"Cambridge",null,"Carroll",null,"Chandler's Purchase",null,"Clarksville",null,"Colebrook",null,"Columbia",null,"Crawford's Purchase",null,"Cutt's Grant",null,"Dalton",null,"Dix's Grant",null,"Dixville",null,"Dummer",null,"Errol",null,"Erving's Location",null,"Gorham",null,"Greens Grant",null,"Hadley's Purchase",null,"Jefferson",null,"Kilkenny",null,"Lancaster",null,"Low and Burbank's Grant",null,"Martin's Location",null,"Milan",null,"Millsfield",null,"Northumberland",null,"Odell",null,"Pinkham's Grant",null,"Pittsburg",null,"Randolph",null,"Sargent's Purchase",null,"Second College Grant",null,"Shelburne",null,"Stark",null,"Stewartstown",null,"Stratford",null,"Success",null,"Thompson and Meserves Purchase",null,"Wentworth's Location",null,"Whitefield"]
[null," ","Estimate","Margin of Error","Estimate","Margin of Error","Estimate","Margin of Error","Estimate","Margin of Error","Estimate","Margin of Error","Estimate","Margin of Error","Estimate",null,"Estimate","Margin of Error","Estimate","Margin of Error","Estimate","Margin of Error","Estimate","Margin of Error","Estimate","Margin of Error","Estimate","Margin of Error","Estimate","Margin of Error","Estimate","Margin of Error","Estimate","Margin of Error","Estimate","Margin of Error","Estimate","Margin of Error","Estimate","Margin of Error","Estimate","Margin of Error","Estimate","Margin of Error","Estimate","Margin of Error","Estimate","Margin of Error","Estimate","Margin of Error","Estimate","Margin of Error","Estimate","Margin of Error","Estimate","Margin of Error","Estimate","Margin of Error","Estimate","Margin of Error","Estimate","Margin of Error","Estimate","Margin of Error","Estimate","Margin of Error","Estimate","Margin of Error","Estimate","Margin of Error","Estimate","Margin of Error","Estimate","Margin of Error","Estimate","Margin of Error","Estimate","Margin of Error","Estimate","Margin of Error","Estimate","Margin of Error","Estimate","Margin of Error","Estimate","Margin of Error","Estimate","Margin of Error"]
[null,"Total:",0,11,0,11,0,11,8248,533,17,16,964,160,0,11,304,68,2247,197,697,126,0,11,0,11,923,152,13,9,11,9,344,75,296,69,0,11,2603,69,8,17,0,11,0,11,0,11,3203,102,0,11,0,11,17,13,16,15,0,11,0,11,8,6,873,130,422,73,9,12,0,11,345,59,459,85,686,117,0,11,0,11,0,11,62,33,1984,198]
[null,"5 to 17  years:",0,15.556349186104045,0,15.556349186104045,0,15.556349186104045,1200,171.89822570346675,0,15.556349186104045,187,76.661594035083823,0,15.556349186104045,42,19.104973174542799,305,69.31089380465383,102,38.418745424597091,0,15.556349186104045,0,15.556349186104045,128,46.669047558312137,0,15.556349186104045,0,15.556349186104045,71,31.906112267087632,15,16.643316977093239,0,15.556349186104045,406,84.219950130595535,0,15.556349186104045,0,15.556349186104045,0,15.556349186104045,0,15.556349186104045,612,119.88744721612851,0,15.556349186104045,0,15.556349186104045,4,4.2426406871192848,4,5,0,15.556349186104045,0,15.556349186104045,0,15.556349186104045,80,37.20215047547655,57,26.832815729997478,0,15.556349186104045,0,15.556349186104045,42,21.95449840010015,63,28.42534080710379,48,30.805843601498726,0,15.556349186104045,0,15.556349186104045,0,15.556349186104045,4,12.529964086141668,272,67.208630398186216]
[null,"With self care difficulty",0,15.556349186104045,0,15.556349186104045,0,15.556349186104045,31,39.924929555354261,0,15.556349186104045,8,17.029386365926403,0,15.556349186104045,0,15.556349186104045,0,15.556349186104045,0,15.556349186104045,0,15.556349186104045,0,15.556349186104045,2,11.401754250991379,0,15.556349186104045,0,15.556349186104045,0,15.556349186104045,0,15.556349186104045,0,15.556349186104045,11,17.029386365926403,0,15.556349186104045,0,15.556349186104045,0,15.556349186104045,0,15.556349186104045,0,15.556349186104045,0,15.556349186104045,0,15.556349186104045,0,15.556349186104045,0,15.556349186104045,0,15.556349186104045,0,15.556349186104045,0,15.556349186104045,0,15.556349186104045,0,15.556349186104045,0,15.556349186104045,0,15.556349186104045,0,15.556349186104045,0,15.556349186104045,0,15.556349186104045,0,15.556349186104045,0,15.556349186104045,0,15.556349186104045,0,15.556349186104045,0,15.556349186104045]
[null,"With no self care difficulty",0,15.556349186104045,0,15.556349186104045,0,15.556349186104045,1169,167.83622970026465,0,15.556349186104045,179,68.24221567329127,0,15.556349186104045,42,19.104973174542799,305,69.31089380465383,102,38.418745424597091,0,15.556349186104045,0,15.556349186104045,126,46.669047558312137,0,15.556349186104045,0,15.556349186104045,71,31.906112267087632,15,16.643316977093239,0,15.556349186104045,395,82.219219164377861,0,15.556349186104045,0,15.556349186104045,0,15.556349186104045,0,15.556349186104045,612,119.88744721612851,0,15.556349186104045,0,15.556349186104045,4,4.2426406871192848,4,5,0,15.556349186104045,0,15.556349186104045,0,15.556349186104045,80,37.20215047547655,57,26.832815729997478,0,15.556349186104045,0,15.556349186104045,42,21.95449840010015,63,28.42534080710379,48,30.805843601498726,0,15.556349186104045,0,15.556349186104045,0,15.556349186104045,4,12.529964086141668,272,67.208630398186216]
[null,"18 to 34  years:",0,15.556349186104045,0,15.556349186104045,0,15.556349186104045,1631,174.02586014727811,0,15.556349186104045,197,85.632937588290176,0,15.556349186104045,23,13.45362404707371,296,75.451971478550519,79,28.319604517012593,0,15.556349186104045,0,15.556349186104045,143,51.662365412357957,6,6.7082039324993694,5,7.2111025509279782,23,11.401754250991379,39,21.931712199461309,0,15.556349186104045,443,102.00490184299969,4,14.212670403551895,0,15.556349186104045,0,15.556349186104045,0,15.556349186104045,463,103.47946656221224,0,15.556349186104045,0,15.556349186104045,4,5.6568542494923806,4,5.6568542494923806,0,15.556349186104045,0,15.556349186104045,4,7.2111025509279782,68,35,41,17.204650534085253,0,15.556349186104045,0,15.556349186104045,45,19.209372712298546,60,23.430749027719962,134,46.669047558312137,0,15.556349186104045,0,15.556349186104045,0,15.556349186104045,15,15.231546211727817,411,83.486525858967212]
[null,"With self care difficulty",0,15.556349186104045,0,15.556349186104045,0,15.556349186104045,71,54.589376255824725,0,15.556349186104045,0,15.556349186104045,0,15.556349186104045,0,15.556349186104045,0,15.556349186104045,0,15.556349186104045,0,15.556349186104045,0,15.556349186104045,2,11.401754250991379,0,15.556349186104045,0,15.556349186104045,0,15.556349186104045,0,15.556349186104045,0,15.556349186104045,0,15.556349186104045,0,15.556349186104045,0,15.556349186104045,0,15.556349186104045,0,15.556349186104045,11,21.095023109728988,0,15.556349186104045,0,15.556349186104045,0,15.556349186104045,0,15.556349186104045,0,15.556349186104045,0,15.556349186104045,0,15.556349186104045,0,15.556349186104045,3,12.083045973594572,0,15.556349186104045,0,15.556349186104045,0,15.556349186104045,0,15.556349186104045,0,15.556349186104045,0,15.556349186104045,0,15.556349186104045,0,15.556349186104045,0,15.556349186104045,0,15.556349186104045]
[null,"With no self care difficulty",0,15.556349186104045,0,15.556349186104045,0,15.556349186104045,1560,182.60887163552596,0,15.556349186104045,197,85.632937588290176,0,15.556349186104045,23,13.45362404707371,296,75.451971478550519,79,28.319604517012593,0,15.556349186104045,0,15.556349186104045,141,51.662365412357957,6,6.7082039324993694,5,7.2111025509279782,23,11.401754250991379,39,21.931712199461309,0,15.556349186104045,443,102.00490184299969,4,14.212670403551895,0,15.556349186104045,0,15.556349186104045,0,15.556349186104045,452,104.9952379872535,0,15.556349186104045,0,15.556349186104045,4,5.6568542494923806,4,5.6568542494923806,0,15.556349186104045,0,15.556349186104045,4,7.2111025509279782,68,35,38,16.643316977093239,0,15.556349186104045,0,15.556349186104045,45,19.209372712298546,60,23.430749027719962,134,46.669047558312137,0,15.556349186104045,0,15.556349186104045,0,15.556349186104045,15,15.231546211727817,411,83.486525858967212]
[null,"35 to 64  years:",0,15.556349186104045,0,15.556349186104045,0,15.556349186104045,3621,264.20068130116545,12,10.295630140987001,378,90.520715861066847,0,15.556349186104045,158,35.468295701936398,1139,119.60351165413162,352,65.73431371817918,0,15.556349186104045,0,15.556349186104045,407,62.936475910238251,7,8.5440037453175304,6,8.6023252670426267,168,33.421549934136806,147,35.608987629529715,0,15.556349186104045,1281,107.48953437428223,4,14.212670403551895,0,15.556349186104045,0,15.556349186104045,0,15.556349186104045,1580,137.90576492663388,0,15.556349186104045,0,15.556349186104045,9,8.5440037453175304,8,7.6157731058639087,0,15.556349186104045,0,15.556349186104045,4,12.083045973594572,486,71.589105316381762,197,35.468295701936398,9,9.2195444572928871,0,15.556349186104045,170,31.622776601683793,226,41.231056256176608,267,53.814496188294839,0,15.556349186104045,0,15.556349186104045,0,15.556349186104045,29,15.556349186104045,965,110.39021695784459]
[null,"With self care difficulty",0,15.556349186104045,0,15.556349186104045,0,15.556349186104045,77,41.773197148410844,0,15.556349186104045,2,11.401754250991379,0,15.556349186104045,9,17.804493814764857,5,13.038404810405298,0,15.556349186104045,0,15.556349186104045,0,15.556349186104045,11,8.9442719099991592,0,15.556349186104045,0,15.556349186104045,1,11.401754250991379,0,15.556349186104045,0,15.556349186104045,16,18.601075237738275,0,15.556349186104045,0,15.556349186104045,0,15.556349186104045,0,15.556349186104045,49,37.643060449437421,0,15.556349186104045,0,15.556349186104045,0,15.556349186104045,0,15.556349186104045,0,15.556349186104045,0,15.556349186104045,2,11.704699910719626,16,19.416487838947599,3,11.401754250991379,0,15.556349186104045,0,15.556349186104045,1,11.180339887498949,3,12.529964086141668,7,13.038404810405298,0,15.556349186104045,0,15.556349186104045,0,15.556349186104045,0,15.556349186104045,4,14.212670403551895]
[null,"With no self care difficulty",0,15.556349186104045,0,15.556349186104045,0,15.556349186104045,3544,263.60007587252323,12,10.295630140987001,376,90.520715861066847,0,15.556349186104045,149,31.827660925679098,1134,119.60351165413162,352,65.73431371817918,0,15.556349186104045,0,15.556349186104045,396,60.811183182043088,7,8.5440037453175304,6,8.6023252670426267,167,32.649655434629018,147,35.608987629529715,0,15.556349186104045,1265,106.10372283760829,4,14.212670403551895,0,15.556349186104045,0,15.556349186104045,0,15.556349186104045,1531,137.13132391981054,0,15.556349186104045,0,15.556349186104045,9,8.5440037453175304,8,7.6157731058639087,0,15.556349186104045,0,15.556349186104045,2,11.704699910719626,470,69.354163537598808,194,35.468295701936398,9,9.2195444572928871,0,15.556349186104045,169,30.805843601498726,223,41.231056256176608,260,53.075418038862395,0,15.556349186104045,0,15.556349186104045,0,15.556349186104045,29,15.556349186104045,961,109.65856099730654]
[null,"65 to 74  years:",0,15.556349186104045,0,15.556349186104045,0,15.556349186104045,750,97.616596949494195,0,15.556349186104045,162,41.231056256176608,0,15.556349186104045,45,19.104973174542799,388,83.234608186739251,109,29.154759474226502,0,15.556349186104045,0,15.556349186104045,154,31.89043743820395,0,15.556349186104045,0,15.556349186104045,57,17.029386365926403,61,22.203603311174518,0,15.556349186104045,203,62.481997407253232,0,15.556349186104045,0,15.556349186104045,0,15.556349186104045,0,15.556349186104045,376,77.833154889160184,0,15.556349186104045,0,15.556349186104045,0,15.556349186104045,0,15.556349186104045,0,15.556349186104045,0,15.556349186104045,0,15.556349186104045,159,34.655446902326915,69,18.439088914585774,0,15.556349186104045,0,15.556349186104045,41,14.422205101855956,61,17.691806012954132,171,53.009433122794285,0,15.556349186104045,0,15.556349186104045,0,15.556349186104045,14,12.165525060596439,179,52.478567053607705]
[null,"With self care difficulty",0,15.556349186104045,0,15.556349186104045,0,15.556349186104045,30,25.80697580112788,0,15.556349186104045,0,15.556349186104045,0,15.556349186104045,1,11.704699910719626,12,12.206555615733702,3,11.704699910719626,0,15.556349186104045,0,15.556349186104045,6,12.529964086141668,0,15.556349186104045,0,15.556349186104045,1,11.401754250991379,0,15.556349186104045,0,15.556349186104045,26,31.953090617340916,0,15.556349186104045,0,15.556349186104045,0,15.556349186104045,0,15.556349186104045,9,17.804493814764857,0,15.556349186104045,0,15.556349186104045,0,15.556349186104045,0,15.556349186104045,0,15.556349186104045,0,15.556349186104045,0,15.556349186104045,5,13.601470508735444,0,15.556349186104045,0,15.556349186104045,0,15.556349186104045,1,11.180339887498949,4,13.601470508735444,5,13.038404810405298,0,15.556349186104045,0,15.556349186104045,0,15.556349186104045,0,15.556349186104045,27,30.805843601498726]
[null,"With no self care difficulty",0,15.556349186104045,0,15.556349186104045,0,15.556349186104045,720,97.616596949494195,0,15.556349186104045,162,41.231056256176608,0,15.556349186104045,44,18.384776310850235,376,83.815273071201048,106,29.154759474226502,0,15.556349186104045,0,15.556349186104045,148,31.240998703626616,0,15.556349186104045,0,15.556349186104045,56,17.029386365926403,61,22.203603311174518,0,15.556349186104045,177,60.605280298007038,0,15.556349186104045,0,15.556349186104045,0,15.556349186104045,0,15.556349186104045,367,77.833154889160184,0,15.556349186104045,0,15.556349186104045,0,15.556349186104045,0,15.556349186104045,0,15.556349186104045,0,15.556349186104045,0,15.556349186104045,154,33.97057550292606,69,18.439088914585774,0,15.556349186104045,0,15.556349186104045,40,14.422205101855956,57,16.278820596099706,166,52.201532544552748,0,15.556349186104045,0,15.556349186104045,0,15.556349186104045,14,12.165525060596439,152,45.276925690687087]
[null,"75  years and Older:",0,15.556349186104045,0,15.556349186104045,0,15.556349186104045,1046,120.88010589009261,5,13.038404810405298,40,18.439088914585774,0,15.556349186104045,36,16.401219466856727,119,36.069377593742864,55,21.633307652783937,0,15.556349186104045,0,15.556349186104045,91,25.612496949731394,0,15.556349186104045,0,15.556349186104045,25,14.7648230602334,34,20,0,15.556349186104045,270,71.700767080973407,0,15.556349186104045,0,15.556349186104045,0,15.556349186104045,0,15.556349186104045,172,65.76473218982953,0,15.556349186104045,0,15.556349186104045,0,15.556349186104045,0,15.556349186104045,0,15.556349186104045,0,15.556349186104045,0,15.556349186104045,80,28.600699292150182,58,17.029386365926403,0,15.556349186104045,0,15.556349186104045,47,15.620499351813308,49,17.691806012954132,66,29.681644159311659,0,15.556349186104045,0,15.556349186104045,0,15.556349186104045,0,15.556349186104045,157,54.561891462814962]
[null,"With self care difficulty",0,15.556349186104045,0,15.556349186104045,0,15.556349186104045,106,61.71709649683789,5,13.038404810405298,17,13.892443989449804,0,15.556349186104045,7,8.5440037453175304,10,15.556349186104045,6,13.038404810405298,0,15.556349186104045,0,15.556349186104045,10,10,0,15.556349186104045,0,15.556349186104045,0,15.556349186104045,6,13.038404810405298,0,15.556349186104045,8,17.029386365926403,0,15.556349186104045,0,15.556349186104045,0,15.556349186104045,0,15.556349186104045,0,15.556349186104045,0,15.556349186104045,0,15.556349186104045,0,15.556349186104045,0,15.556349186104045,0,15.556349186104045,0,15.556349186104045,0,15.556349186104045,12,10.816653826391969,0,15.556349186104045,0,15.556349186104045,0,15.556349186104045,2,11.401754250991379,3,3.6055512754639891,12,19.416487838947599,0,15.556349186104045,0,15.556349186104045,0,15.556349186104045,0,15.556349186104045,56,42.01190307520001]
[null,"With no self care difficulty",0,15.556349186104045,0,15.556349186104045,0,15.556349186104045,940,132.28000604777731,0,15.556349186104045,23,12.041594578792296,0,15.556349186104045,29,14.866068747318506,109,33.97057550292606,49,20.591260281974002,0,15.556349186104045,0,15.556349186104045,81,23.430749027719962,0,15.556349186104045,0,15.556349186104045,25,14.7648230602334,28,18.439088914585774,0,15.556349186104045,262,70.936591403872796,0,15.556349186104045,0,15.556349186104045,0,15.556349186104045,0,15.556349186104045,172,65.76473218982953,0,15.556349186104045,0,15.556349186104045,0,15.556349186104045,0,15.556349186104045,0,15.556349186104045,0,15.556349186104045,0,15.556349186104045,68,27.802877548915689,58,17.029386365926403,0,15.556349186104045,0,15.556349186104045,45,15,46,16.970562748477139,54,23.345235059857504,0,15.556349186104045,0,15.556349186104045,0,15.556349186104045,0,15.556349186104045,101,37.536648758246919]

{"sheet":"ACS_Table_B18107","index":35,"n_rows":119,"n_cols":88,"rows_kept":119,"cut":false,"hidden":true,"merged":[]}
["B18107. SEX BY AGE BY INDEPENDENT LIVING DIFFICULTY\n\n\n"]
["Universe:  Civilian non-institutionalized population 18 years and over"]
["Data Set: 2015-2019 American Community Survey 5-Year Estimates"]
[]
[null,null,"Atkinson and Gilmanton Grant",null,"Bean's Grant",null,"Bean's Purchase",null,"Berlin",null,"Cambridge",null,"Carroll",null,"Chandler's Purchase",null,"Clarksville",null,"Colebrook",null,"Columbia",null,"Crawford's Purchase",null,"Cutt's Grant",null,"Dalton",null,"Dix's Grant",null,"Dixville",null,"Dummer",null,"Errol",null,"Erving's Location",null,"Gorham",null,"Greens Grant",null,"Hadley's Purchase",null,"Jefferson",null,"Kilkenny",null,"Lancaster",null,"Low and Burbank's Grant",null,"Martin's Location",null,"Milan",null,"Millsfield",null,"Northumberland",null,"Odell",null,"Pinkham's Grant",null,"Pittsburg",null,"Randolph",null,"Sargent's Purchase",null,"Second College Grant",null,"Shelburne",null,"Stark",null,"Stewartstown",null,"Stratford",null,"Success",null,"Thompson and Meserves Purchase",null,"Wentworth's Location",null,"Whitefield"]
[null," ","Estimate","Margin of Error","Estimate","Margin of Error","Estimate","Margin of Error","Estimate","Margin of Error","Estimate","Margin of Error","Estimate","Margin of Error","Estimate",null,"Estimate","Margin of Error","Estimate","Margin of Error","Estimate","Margin of Error","Estimate","Margin of Error","Estimate","Margin of Error","Estimate","Margin of Error","Estimate","Margin of Error","Estimate","Margin of Error","Estimate","Margin of Error","Estimate","Margin of Error","Estimate","Margin of Error","Estimate","Margin of Error","Estimate","Margin of Error","Estimate","Margin of Error","Estimate","Margin of Error","Estimate","Margin of Error","Estimate","Margin of Error","Estimate","Margin of Error","Estimate","Margin of Error","Estimate","Margin of Error","Estimate","Margin of Error","Estimate","Margin of Error","Estimate","Margin of Error","Estimate","Margin of Error","Estimate","Margin of Error","Estimate","Margin of Error","Estimate","Margin of Error","Estimate","Margin of Error","Estimate","Margin of Error","Estimate","Margin of Error","Estimate","Margin of Error","Estimate","Margin of Error","Estimate","Margin of Error","Estimate","Margin of Error","Estimate","Margin of Error","Estimate","Margin of Error"]
[null,"Total:",0,11,0,11,0,11,6799,250,0,11,632,109,0,11,293,78,1607,149,554,101,0,11,0,11,774,113,0,11,9,12,243,41,178,44,0,11,2215,75,13,10,0,11,728,103,0,11,2494,141,0,11,0,11,1112,97,8,12,1800,179,10,12,11,14,683,90,342,63,11,24,0,11,355,53,461,79,717,120,518,90,0,11,0,11,26,16,1798,158]
[null,"Male:",0,11,0,11,0,11,3315,190,0,11,362,80,0,11,153,46,753,91,303,63,0,11,0,11,375,68,0,11,7,10,129,26,91,25,0,11,1156,69,13,10,0,11,331,58,0,11,1247,111,0,11,0,11,599,60,4,6,889,105,5,11,11,14,367,56,178,37,0,11,0,11,183,31,247,52,368,66,274,58,0,11,0,11,19,12,842,111]
[null,"18 to 34  years:",0,11,0,11,0,11,1002,175,0,11,98,65,0,11,34,16,91,43,58,32,0,11,0,11,102,42,0,11,5,6,20,11,0,11,0,11,181,71,5,8,0,11,66,34,0,11,334,79,0,11,0,11,144,48,0,11,199,77,5,11,7,8,35,21,29,16,0,11,0,11,15,12,51,25,39,30,39,25,0,11,0,11,3,4,157,68]
[null,"With independent living difficulty",0,11,0,11,0,11,12,19,0,11,6,10,0,11,6,9,16,16,6,7,0,11,0,11,0,11,0,11,0,11,0,11,0,11,0,11,16,23,0,11,0,11,0,11,0,11,12,20,0,11,0,11,10,12,0,11,0,11,0,11,0,11,0,11,0,11,0,11,0,11,1,2,9,12,0,11,3,4,0,11,0,11,0,11,16,16]
[null,"With no independent living difficulty",0,11,0,11,0,11,990,173,0,11,92,65,0,11,28,15,75,36,52,30,0,11,0,11,102,42,0,11,5,6,20,11,0,11,0,11,165,72,5,8,0,11,66,34,0,11,322,79,0,11,0,11,134,47,0,11,199,77,5,11,7,8,35,21,29,16,0,11,0,11,14,11,42,20,39,30,36,25,0,11,0,11,3,4,141,69]
[null,"35 to 64  years:",0,11,0,11,0,11,1624,139,0,11,157,36,0,11,69,29,396,64,157,46,0,11,0,11,214,44,0,11,0,11,50,13,52,17,0,11,648,71,8,10,0,11,163,38,0,11,636,100,0,11,0,11,302,33,4,6,501,80,0,11,4,8,184,44,83,22,0,11,0,11,88,24,114,31,168,45,173,41,0,11,0,11,4,4,342,62]
[null,"With independent living difficulty",0,11,0,11,0,11,141,66,0,11,2,2,0,11,0,11,7,9,8,10,0,11,0,11,8,9,0,11,0,11,2,4,0,11,0,11,33,25,3,6,0,11,0,11,0,11,22,24,0,11,0,11,9,7,0,11,61,36,0,11,0,11,3,5,4,4,0,11,0,11,2,4,21,15,4,5,24,18,0,11,0,11,0,11,12,12]
[null,"With no independent living difficulty",0,11,0,11,0,11,1483,132,0,11,155,37,0,11,69,29,389,62,149,46,0,11,0,11,206,44,0,11,0,11,48,13,52,17,0,11,615,75,5,6,0,11,163,38,0,11,614,101,0,11,0,11,293,32,4,6,440,69,0,11,4,8,181,44,79,22,0,11,0,11,86,24,93,28,164,45,149,37,0,11,0,11,4,4,330,62]
[null,"65 to 74  years:",0,11,0,11,0,11,436,94,0,11,76,27,0,11,40,19,169,46,49,16,0,11,0,11,41,22,0,11,2,6,36,16,18,14,0,11,175,58,0,11,0,11,83,27,0,11,129,50,0,11,0,11,119,28,0,11,119,39,0,11,0,11,127,36,49,16,0,11,0,11,52,20,52,22,123,42,31,12,0,11,0,11,4,4,220,54]
[null,"With independent living difficulty",0,11,0,11,0,11,17,25,0,11,3,4,0,11,2,3,0,11,6,10,0,11,0,11,0,11,0,11,0,11,0,11,0,11,0,11,19,20,0,11,0,11,4,5,0,11,17,18,0,11,0,11,0,11,0,11,15,16,0,11,0,11,9,14,0,11,0,11,0,11,0,11,0,11,0,11,8,7,0,11,0,11,0,11,19,17]
[null,"With no independent living difficulty",0,11,0,11,0,11,419,92,0,11,73,27,0,11,38,18,169,46,43,14,0,11,0,11,41,22,0,11,2,6,36,16,18,14,0,11,156,57,0,11,0,11,79,27,0,11,112,48,0,11,0,11,119,28,0,11,104,37,0,11,0,11,118,31,49,16,0,11,0,11,52,20,52,22,123,42,23,11,0,11,0,11,4,4,201,52]
[null,"75  years and Older:",0,11,0,11,0,11,253,65,0,11,31,15,0,11,10,9,97,31,39,17,0,11,0,11,18,16,0,11,0,11,23,12,21,13,0,11,152,58,0,11,0,11,19,11,0,11,148,57,0,11,0,11,34,14,0,11,70,32,0,11,0,11,21,11,17,9,0,11,0,11,28,18,30,14,38,14,31,17,0,11,0,11,8,8,123,43]
[null,"With independent living difficulty",0,11,0,11,0,11,39,28,0,11,6,9,0,11,1,2,8,8,11,12,0,11,0,11,0,11,0,11,0,11,0,11,0,11,0,11,6,10,0,11,0,11,4,5,0,11,37,37,0,11,0,11,0,11,0,11,13,18,0,11,0,11,0,11,0,11,0,11,0,11,7,7,0,11,2,4,4,6,0,11,0,11,1,2,15,11]
[null,"With no independent living difficulty",0,11,0,11,0,11,214,63,0,11,25,11,0,11,9,9,89,30,28,14,0,11,0,11,18,16,0,11,0,11,23,12,21,13,0,11,146,59,0,11,0,11,15,10,0,11,111,42,0,11,0,11,34,14,0,11,57,27,0,11,0,11,21,11,17,9,0,11,0,11,21,17,30,14,36,14,27,15,0,11,0,11,7,8,108,43]
[null,"Female:",0,11,0,11,0,11,3484,172,0,11,270,43,0,11,140,41,854,100,251,47,0,11,0,11,399,63,0,11,2,6,114,22,87,28,0,11,1059,73,0,11,0,11,397,59,0,11,1247,132,0,11,0,11,513,51,4,6,911,97,5,11,0,11,316,51,164,34,11,24,0,11,172,30,214,37,349,65,244,46,0,11,0,11,7,6,956,111]
[null,"18 to 34  years:",0,11,0,11,0,11,819,134,0,11,37,26,0,11,20,12,183,57,33,20,0,11,0,11,54,29,0,11,0,11,22,10,0,11,0,11,133,52,0,11,0,11,58,27,0,11,244,73,0,11,0,11,124,45,0,11,248,69,5,11,0,11,54,31,23,11,11,24,0,11,20,10,18,16,67,41,37,25,0,11,0,11,0,11,97,43]
[null,"With independent living difficulty",0,11,0,11,0,11,11,18,0,11,0,11,0,11,4,6,13,15,0,11,0,11,0,11,7,12,0,11,0,11,0,11,0,11,0,11,0,11,0,11,0,11,3,6,0,11,48,45,0,11,0,11,3,4,0,11,25,28,0,11,0,11,0,11,0,11,11,24,0,11,3,4,0,11,14,20,9,12,0,11,0,11,0,11,19,19]
[null,"With no independent living difficulty",0,11,0,11,0,11,808,138,0,11,37,26,0,11,16,11,170,58,33,20,0,11,0,11,47,27,0,11,0,11,22,10,0,11,0,11,133,52,0,11,0,11,55,27,0,11,196,63,0,11,0,11,121,45,0,11,223,66,5,11,0,11,54,31,23,11,0,11,0,11,17,10,18,16,53,31,28,21,0,11,0,11,0,11,78,37]
[null,"35 to 64  years:",0,11,0,11,0,11,1635,141,0,11,146,35,0,11,97,35,443,65,150,37,0,11,0,11,242,45,0,11,2,6,64,18,60,22,0,11,593,67,0,11,0,11,241,39,0,11,622,95,0,11,0,11,290,39,0,11,445,63,0,11,0,11,157,37,82,23,0,11,0,11,102,25,121,31,125,46,139,35,0,11,0,11,0,11,532,84]
[null,"With independent living difficulty",0,11,0,11,0,11,226,91,0,11,3,5,0,11,10,9,25,22,6,7,0,11,0,11,15,13,0,11,1,4,5,4,0,11,0,11,18,20,0,11,0,11,10,8,0,11,63,54,0,11,0,11,15,11,0,11,19,12,0,11,0,11,8,8,2,3,0,11,0,11,2,3,2,4,0,11,4,5,0,11,0,11,0,11,32,34]
[null,"With no independent living difficulty",0,11,0,11,0,11,1409,157,0,11,143,36,0,11,87,33,418,67,144,36,0,11,0,11,227,42,0,11,1,3,59,18,60,22,0,11,575,67,0,11,0,11,231,41,0,11,559,90,0,11,0,11,275,38,0,11,426,63,0,11,0,11,149,37,80,23,0,11,0,11,100,26,119,30,125,46,135,36,0,11,0,11,0,11,500,81]
[null,"65 to 74  years:",0,11,0,11,0,11,515,87,0,11,57,14,0,11,18,11,120,36,29,13,0,11,0,11,66,23,0,11,0,11,13,7,18,13,0,11,159,51,0,11,0,11,73,22,0,11,207,52,0,11,0,11,75,23,0,11,134,34,0,11,0,11,72,26,38,12,0,11,0,11,30,14,38,16,113,34,38,16,0,11,0,11,7,6,210,59]
[null,"With independent living difficulty",0,11,0,11,0,11,19,20,0,11,0,11,0,11,0,11,0,11,2,3,0,11,0,11,11,14,0,11,0,11,0,11,1,2,0,11,3,6,0,11,0,11,3,4,0,11,0,11,0,11,0,11,11,13,0,11,0,11,0,11,0,11,3,4,3,6,0,11,0,11,3,5,0,11,0,11,7,8,0,11,0,11,0,11,32,26]
[null,"With no independent living difficulty",0,11,0,11,0,11,496,84,0,11,57,14,0,11,18,11,120,36,27,13,0,11,0,11,55,23,0,11,0,11,13,7,17,13,0,11,156,51,0,11,0,11,70,21,0,11,207,52,0,11,0,11,64,22,0,11,134,34,0,11,0,11,69,27,35,13,0,11,0,11,27,13,38,16,113,34,31,14,0,11,0,11,7,6,178,56]
[null,"75  years and Older:",0,11,0,11,0,11,515,82,0,11,30,16,0,11,5,8,108,37,39,17,0,11,0,11,37,17,0,11,0,11,15,10,9,8,0,11,174,52,0,11,0,11,25,15,0,11,174,56,0,11,0,11,24,12,4,6,84,34,0,11,0,11,33,20,21,12,0,11,0,11,20,12,37,16,44,20,30,14,0,11,0,11,0,11,117,45]
[null,"With independent living difficulty",0,11,0,11,0,11,124,64,0,11,0,11,0,11,0,11,47,28,4,5,0,11,0,11,3,5,0,11,0,11,0,11,9,8,0,11,86,38,0,11,0,11,4,8,0,11,21,20,0,11,0,11,0,11,0,11,10,7,0,11,0,11,2,4,2,3,0,11,0,11,8,8,3,4,18,16,2,3,0,11,0,11,0,11,24,19]
[null,"With no independent living difficulty",0,11,0,11,0,11,391,77,0,11,30,16,0,11,5,8,61,27,35,17,0,11,0,11,34,16,0,11,0,11,15,10,0,11,0,11,88,38,0,11,0,11,21,12,0,11,153,57,0,11,0,11,24,12,4,6,74,32,0,11,0,11,31,20,19,11,0,11,0,11,12,7,34,16,26,14,28,14,0,11,0,11,0,11,93,47]
[]
[]
[{"$f":"A1& \"-Calculated\"","v":"B18107. SEX BY AGE BY INDEPENDENT LIVING DIFFICULTY\n\n\n-Calculated"}]
[{"$f":"A2","v":"Universe:  Civilian non-institutionalized population 18 years and over"}]
[{"$f":"A3","v":"Data Set: 2015-2019 American Community Survey 5-Year Estimates"}]
[]
[]
[null,null,"Atkinson and Gilmanton Grant",null,"Bean's Grant",null,"Bean's Purchase",null,"Berlin",null,"Cambridge",null,"Carroll",null,"Chandler's Purchase",null,"Clarksville",null,"Colebrook",null,"Columbia",null,"Crawford's Purchase",null,"Cutt's Grant",null,"Dalton",null,"Dix's Grant",null,"Dixville",null,"Dummer",null,"Errol",null,"Erving's Location",null,"Gorham",null,"Greens Grant",null,"Hadley's Purchase",null,"Jefferson",null,"Kilkenny",null,"Lancaster",null,"Low and Burbank's Grant",null,"Martin's Location",null,"Milan",null,"Millsfield",null,"Northumberland",null,"Odell",null,"Pinkham's Grant",null,"Pittsburg",null,"Randolph",null,"Sargent's Purchase",null,"Second College Grant",null,"Shelburne",null,"Stark",null,"Stewartstown",null,"Stratford",null,"Success",null,"Thompson and Meserves Purchase",null,"Wentworth's Location",null,"Whitefield"]
[null," ","Estimate","Margin of Error","Estimate","Margin of Error","Estimate","Margin of Error","Estimate","Margin of Error","Estimate","Margin of Error","Estimate","Margin of Error","Estimate",null,"Estimate","Margin of Error","Estimate","Margin of Error","Estimate","Margin of Error","Estimate","Margin of Error","Estimate","Margin of Error","Estimate","Margin of Error","Estimate","Margin of Error","Estimate","Margin of Error","Estimate","Margin of Error","Estimate","Margin of Error","Estimate","Margin of Error","Estimate","Margin of Error","Estimate","Margin of Error","Estimate","Margin of Error","Estimate","Margin of Error","Estimate","Margin of Error","Estimate","Margin of Error","Estimate","Margin of Error","Estimate","Margin of Error","Estimate","Margin of Error","Estimate","Margin of Error","Estimate","Margin of Error","Estimate","Margin of Error","Estimate","Margin of Error","Estimate","Margin of Error","Estimate","Margin of Error","Estimate","Margin of Error","Estimate","Margin of Error","Estimate","Margin of Error","Estimate","Margin of Error","Estimate","Margin of Error","Estimate","Margin of Error","Estimate","Margin of Error","Estimate","Margin of Error","Estimate","Margin of Error","Estimate","Margin of Error"]
[null,"Total:",0,11,0,11,0,11,7269,200,19,17,755,121,0,11,269,63,1939,154,561,93,0,11,0,11,791,118,11,9,11,9,281,51,238,54,0,11,2201,80,6,14,0,11,0,11,0,11,2631,112,0,11,0,11,12,11,12,11,0,11,0,11,7,7,867,112,395,64,8,12,0,11,319,59,420,71,635,101,0,11,0,11,0,11,51,32,1736,177]
[null,"18 to 34  years:",0,15.556349186104045,0,15.556349186104045,0,15.556349186104045,1663,174.83706700811473,0,15.556349186104045,206,80.808415403347695,0,15.556349186104045,21,18.027756377319946,275,63.7808748764079,66,26.90724809414742,0,15.556349186104045,0,15.556349186104045,153,55,5,7.2111025509279782,5,7.2111025509279782,31,12.041594578792296,42,21.2602916254693,0,15.556349186104045,455,108.23123393919151,3,13.038404810405298,0,15.556349186104045,0,15.556349186104045,0,15.556349186104045,422,93.434469014384618,0,15.556349186104045,0,15.556349186104045,4,5.6568542494923806,4,5.6568542494923806,0,15.556349186104045,0,15.556349186104045,3,13.038404810405298,64,30,36,14.212670403551895,0,15.556349186104045,0,15.556349186104045,46,23.345235059857504,73,25.495097567963924,129,41.109609582188931,0,15.556349186104045,0,15.556349186104045,0,15.556349186104045,15,17.464249196572979,442,97.20082304178294]
[null,"With independent living difficulty",0,15.556349186104045,0,15.556349186104045,0,15.556349186104045,116,59.808026217222718,0,15.556349186104045,0,15.556349186104045,0,15.556349186104045,0,15.556349186104045,0,15.556349186104045,0,15.556349186104045,0,15.556349186104045,0,15.556349186104045,0,15.556349186104045,0,15.556349186104045,0,15.556349186104045,0,15.556349186104045,0,15.556349186104045,0,15.556349186104045,0,15.556349186104045,0,15.556349186104045,0,15.556349186104045,0,15.556349186104045,0,15.556349186104045,29,33.837848631377263,0,15.556349186104045,0,15.556349186104045,0,15.556349186104045,0,15.556349186104045,0,15.556349186104045,0,15.556349186104045,0,15.556349186104045,0,15.556349186104045,10,7.810249675906654,0,15.556349186104045,0,15.556349186104045,5,6.4031242374328485,5,5,4,12.083045973594572,0,15.556349186104045,0,15.556349186104045,0,15.556349186104045,0,15.556349186104045,5,13.038404810405298]
[null,"With no independent living difficulty",0,15.556349186104045,0,15.556349186104045,0,15.556349186104045,1547,177.00282483621552,0,15.556349186104045,206,80.808415403347695,0,15.556349186104045,21,18.027756377319946,275,63.7808748764079,66,26.90724809414742,0,15.556349186104045,0,15.556349186104045,153,55,5,7.2111025509279782,5,7.2111025509279782,31,12.041594578792296,42,21.2602916254693,0,15.556349186104045,455,108.23123393919151,3,13.038404810405298,0,15.556349186104045,0,15.556349186104045,0,15.556349186104045,393,94.921019800674287,0,15.556349186104045,0,15.556349186104045,4,5.6568542494923806,4,5.6568542494923806,0,15.556349186104045,0,15.556349186104045,3,13.038404810405298,64,30,26,12.806248474865697,0,15.556349186104045,0,15.556349186104045,41,21.213203435596427,68,24.758836806279895,125,41.109609582188931,0,15.556349186104045,0,15.556349186104045,0,15.556349186104045,15,17.464249196572979,437,97.8008179924892]
[null,"35 to 64  years:",0,15.556349186104045,0,15.556349186104045,0,15.556349186104045,3703,194.61757371830529,14,11.180339887498949,376,84.403791384036765,0,15.556349186104045,172,37.536648758246919,1203,121.69634341261039,328,63.7808748764079,0,15.556349186104045,0,15.556349186104045,455,63.702433234531945,6,8.6023252670426267,6,8.6023252670426267,181,36.124783736376884,122,33.941125496954278,0,15.556349186104045,1250,124.48293055676348,3,13.038404810405298,0,15.556349186104045,0,15.556349186104045,0,15.556349186104045,1654,135.14806694880988,0,15.556349186104045,0,15.556349186104045,8,7.6157731058639087,8,7.6157731058639087,0,15.556349186104045,0,15.556349186104045,4,13.038404810405298,538,78.568441501661468,248,38.209946349085598,8,8.4852813742385695,0,15.556349186104045,187,33.301651610693426,258,47.010637094172637,311,58.137767414994535,0,15.556349186104045,0,15.556349186104045,0,15.556349186104045,20,15,954,109.34349546269316]
[null,"With independent living difficulty",0,15.556349186104045,0,15.556349186104045,0,15.556349186104045,223,92.962357973536797,0,15.556349186104045,31,21.400934559032695,0,15.556349186104045,9,13.601470508735444,39,24.083189157584592,48,26.076809620810597,0,15.556349186104045,0,15.556349186104045,23,19.235384061671343,1,11.401754250991379,1,11.401754250991379,4,11.704699910719626,4,12.529964086141668,0,15.556349186104045,23,24.596747752497688,3,13.038404810405298,0,15.556349186104045,0,15.556349186104045,0,15.556349186104045,46,35.171010790137949,0,15.556349186104045,0,15.556349186104045,0,15.556349186104045,0,15.556349186104045,0,15.556349186104045,0,15.556349186104045,0,15.556349186104045,18,20.248456731316587,6,8.2462112512353212,0,15.556349186104045,0,15.556349186104045,1,11.401754250991379,9,8.6023252670426267,34,19.235384061671343,0,15.556349186104045,0,15.556349186104045,0,15.556349186104045,3,12.083045973594572,40,31.622776601683793]
[null,"With no independent living difficulty",0,15.556349186104045,0,15.556349186104045,0,15.556349186104045,3480,195.68597292601225,14,11.180339887498949,345,82.462112512353215,0,15.556349186104045,163,36.796738985948195,1164,122.38055401083949,280,55.803225713214822,0,15.556349186104045,0,15.556349186104045,432,62.241465278381739,5,8.0622577482985491,5,8.0622577482985491,177,36.124783736376884,118,33.241540277189323,0,15.556349186104045,1227,125.1758762701504,0,15.556349186104045,0,15.556349186104045,0,15.556349186104045,0,15.556349186104045,1608,136.56134152826706,0,15.556349186104045,0,15.556349186104045,8,7.6157731058639087,8,7.6157731058639087,0,15.556349186104045,0,15.556349186104045,4,13.038404810405298,520,75.663729752107784,242,37.483329627982627,8,8.4852813742385695,0,15.556349186104045,186,32.649655434629018,249,46.400431032480725,277,53.263495942343098,0,15.556349186104045,0,15.556349186104045,0,15.556349186104045,17,14.212670403551895,914,108.57716150277645]
[null,"65 to 74  years:",0,15.556349186104045,0,15.556349186104045,0,15.556349186104045,858,107.07007051459338,0,15.556349186104045,133,38.832975677895199,0,15.556349186104045,36,18.439088914585774,278,56.639209034025185,118,33.837848631377263,0,15.556349186104045,0,15.556349186104045,113,29.698484809834994,0,15.556349186104045,0,15.556349186104045,49,15.620499351813308,48,19.235384061671343,0,15.556349186104045,197,67.268120235368556,0,15.556349186104045,0,15.556349186104045,0,15.556349186104045,0,15.556349186104045,347,83.737685661833282,0,15.556349186104045,0,15.556349186104045,0,15.556349186104045,0,15.556349186104045,0,15.556349186104045,0,15.556349186104045,0,15.556349186104045,164,37.483329627982627,61,20.518284528683193,0,15.556349186104045,0,15.556349186104045,39,15.620499351813308,53,17.804493814764857,139,43.266615305567875,0,15.556349186104045,0,15.556349186104045,0,15.556349186104045,16,12.649110640673518,190,55.901699437494742]
[null,"With independent living difficulty",0,15.556349186104045,0,15.556349186104045,0,15.556349186104045,23,26.40075756488817,0,15.556349186104045,1,11.704699910719626,0,15.556349186104045,3,11.704699910719626,31,19.798989873223331,6,5.8309518948453007,0,15.556349186104045,0,15.556349186104045,3,11.704699910719626,0,15.556349186104045,0,15.556349186104045,3,3.6055512754639891,0,15.556349186104045,0,15.556349186104045,24,31.016124838541646,0,15.556349186104045,0,15.556349186104045,0,15.556349186104045,0,15.556349186104045,58,61,0,15.556349186104045,0,15.556349186104045,0,15.556349186104045,0,15.556349186104045,0,15.556349186104045,0,15.556349186104045,0,15.556349186104045,4,12.529964086141668,2,11.401754250991379,0,15.556349186104045,0,15.556349186104045,2,11.401754250991379,2,12.083045973594572,6,13.038404810405298,0,15.556349186104045,0,15.556349186104045,0,15.556349186104045,4,12.529964086141668,31,32.649655434629018]
[null,"With no independent living difficulty",0,15.556349186104045,0,15.556349186104045,0,15.556349186104045,835,108.16653826391968,0,15.556349186104045,132,38.275318418009277,0,15.556349186104045,33,17.691806012954132,247,56.727418414731339,112,33.015148038438355,0,15.556349186104045,0,15.556349186104045,110,29.698484809834994,0,15.556349186104045,0,15.556349186104045,46,15.620499351813308,48,19.235384061671343,0,15.556349186104045,173,62.801273872430329,0,15.556349186104045,0,15.556349186104045,0,15.556349186104045,0,15.556349186104045,289,78.517513969814402,0,15.556349186104045,0,15.556349186104045,0,15.556349186104045,0,15.556349186104045,0,15.556349186104045,0,15.556349186104045,0,15.556349186104045,160,37.483329627982627,59,20.518284528683193,0,15.556349186104045,0,15.556349186104045,37,14.422205101855956,51,17.204650534085253,133,42.720018726587654,0,15.556349186104045,0,15.556349186104045,0,15.556349186104045,12,11.704699910719626,159,50.931326312987373]
[null,"75  years and Older:",0,15.556349186104045,0,15.556349186104045,0,15.556349186104045,1045,130.29965464267354,5,13.038404810405298,40,18.027756377319946,0,15.556349186104045,40,18.867962264113206,183,73.878278269055514,49,20.591260281974002,0,15.556349186104045,0,15.556349186104045,70,21.931712199461309,0,15.556349186104045,0,15.556349186104045,20,11.704699910719626,26,17.4928556845359,0,15.556349186104045,299,85.702975444263316,0,15.556349186104045,0,15.556349186104045,0,15.556349186104045,0,15.556349186104045,208,71.840100222647237,0,15.556349186104045,0,15.556349186104045,0,15.556349186104045,0,15.556349186104045,0,15.556349186104045,0,15.556349186104045,0,15.556349186104045,101,34.713109915419565,50,16.401219466856727,0,15.556349186104045,0,15.556349186104045,47,15,36,13.601470508735444,56,27.459060435491963,0,15.556349186104045,0,15.556349186104045,0,15.556349186104045,0,15.556349186104045,150,49.678969393496885]
[null,"With independent living difficulty",0,15.556349186104045,0,15.556349186104045,0,15.556349186104045,282,93.23089616645332,5,13.038404810405298,13,17.804493814764857,0,15.556349186104045,5,7.2111025509279782,51,55.785302723925412,8,13.601470508735444,0,15.556349186104045,0,15.556349186104045,12,9.8994949366116654,0,15.556349186104045,0,15.556349186104045,0,15.556349186104045,6,13.038404810405298,0,15.556349186104045,37,23.194827009486403,0,15.556349186104045,0,15.556349186104045,0,15.556349186104045,0,15.556349186104045,32,29.732137494637012,0,15.556349186104045,0,15.556349186104045,0,15.556349186104045,0,15.556349186104045,0,15.556349186104045,0,15.556349186104045,0,15.556349186104045,12,10,14,12.083045973594572,0,15.556349186104045,0,15.556349186104045,7,5.8309518948453007,5,7.2111025509279782,20,23.706539182259394,0,15.556349186104045,0,15.556349186104045,0,15.556349186104045,0,15.556349186104045,62,39.05124837953327]
[null,"With no independent living difficulty",0,15.556349186104045,0,15.556349186104045,0,15.556349186104045,763,127.7810627597063,0,15.556349186104045,27,11.661903789690601,0,15.556349186104045,35,17.4928556845359,132,50.537115073973112,41,19.313207915827967,0,15.556349186104045,0,15.556349186104045,58,19.849433241279208,0,15.556349186104045,0,15.556349186104045,20,11.704699910719626,20,15.811388300841896,0,15.556349186104045,262,83.096329642168911,0,15.556349186104045,0,15.556349186104045,0,15.556349186104045,0,15.556349186104045,176,64.660652641308843,0,15.556349186104045,0,15.556349186104045,0,15.556349186104045,0,15.556349186104045,0,15.556349186104045,0,15.556349186104045,0,15.556349186104045,89,34.058772731852805,36,16.124515496597098,0,15.556349186104045,0,15.556349186104045,40,13.601470508735444,31,12.806248474865697,36,17.4928556845359,0,15.556349186104045,0,15.556349186104045,0,15.556349186104045,0,15.556349186104045,88,29.732137494637012]
[]
[]
[]
[]
[]
[]
[]
[]
[]
[]
[]
[]
[]
[]
[]
[]
[]
[]
[]
[]
[]
[]
[]
[]
[]
[]
[]
[]
[]
[]
[]
[]
[]
[]
[]
[]
[]
[]
[]
[]
[]
[]
[]
[]
["B18107. SEX BY AGE BY INDEPENDENT LIVING DIFFICULTY\n\n\n-Calculated"]
["Universe:  Civilian non-institutionalized population 18 years and over"]
["Data Set: 2010-2014 American Community Survey 5-Year Estimates"]
[]
[]
[null,null,"Atkinson and Gilmanton Grant",null,"Bean's Grant",null,"Bean's Purchase",null,"Berlin",null,"Cambridge",null,"Carroll",null,"Chandler's Purchase",null,"Clarksville",null,"Colebrook",null,"Columbia",null,"Crawford's Purchase",null,"Cutt's Grant",null,"Dalton",null,"Dix's Grant",null,"Dixville",null,"Dummer",null,"Errol",null,"Erving's Location",null,"Gorham",null,"Greens Grant",null,"Hadley's Purchase",null,"Jefferson",null,"Kilkenny",null,"Lancaster",null,"Low and Burbank's Grant",null,"Martin's Location",null,"Milan",null,"Millsfield",null,"Northumberland",null,"Odell",null,"Pinkham's Grant",null,"Pittsburg",null,"Randolph",null,"Sargent's Purchase",null,"Second College Grant",null,"Shelburne",null,"Stark",null,"Stewartstown",null,"Stratford",null,"Success",null,"Thompson and Meserves Purchase",null,"Wentworth's Location",null,"Whitefield"]
[null," ","Estimate","Margin of Error","Estimate","Margin of Error","Estimate","Margin of Error","Estimate","Margin of Error","Estimate","Margin of Error","Estimate","Margin of Error","Estimate",null,"Estimate","Margin of Error","Estimate","Margin of Error","Estimate","Margin of Error","Estimate","Margin of Error","Estimate","Margin of Error","Estimate","Margin of Error","Estimate","Margin of Error","Estimate","Margin of Error","Estimate","Margin of Error","Estimate","Margin of Error","Estimate","Margin of Error","Estimate","Margin of Error","Estimate","Margin of Error","Estimate","Margin of Error","Estimate","Margin of Error","Estimate","Margin of Error","Estimate","Margin of Error","Estimate","Margin of Error","Estimate","Margin of Error","Estimate","Margin of Error","Estimate","Margin of Error","Estimate","Margin of Error","Estimate","Margin of Error","Estimate","Margin of Error","Estimate","Margin of Error","Estimate","Margin of Error","Estimate","Margin of Error","Estimate","Margin of Error","Estimate","Margin of Error","Estimate","Margin of Error","Estimate","Margin of Error","Estimate","Margin of Error","Estimate","Margin of Error","Estimate","Margin of Error","Estimate","Margin of Error","Estimate","Margin of Error"]
[null,"Total:",0,11,0,11,0,11,7048,460,17,16,777,118,0,11,262,55,1942,171,595,101,0,11,0,11,795,119,13,9,11,9,273,51,281,63,0,11,2197,71,8,17,0,11,0,11,0,11,2591,103,0,11,0,11,13,9,12,11,0,11,0,11,8,6,793,120,365,58,9,12,0,11,303,46,396,66,638,109,0,11,0,11,0,11,58,31,1712,174]
[null,"18 to 34  years:",0,15.556349186104045,0,15.556349186104045,0,15.556349186104045,1631,174.02586014727811,0,15.556349186104045,197,85.632937588290176,0,15.556349186104045,23,13.45362404707371,296,75.451971478550519,79,28.319604517012593,0,15.556349186104045,0,15.556349186104045,143,51.662365412357957,6,6.7082039324993694,5,7.2111025509279782,23,11.401754250991379,39,21.931712199461309,0,15.556349186104045,443,102.00490184299969,4,14.212670403551895,0,15.556349186104045,0,15.556349186104045,0,15.556349186104045,463,103.47946656221224,0,15.556349186104045,0,15.556349186104045,4,5.6568542494923806,4,5.6568542494923806,0,15.556349186104045,0,15.556349186104045,4,7.2111025509279782,68,35,41,17.204650534085253,0,15.556349186104045,0,15.556349186104045,45,19.209372712298546,60,23.430749027719962,134,46.669047558312137,0,15.556349186104045,0,15.556349186104045,0,15.556349186104045,15,15.231546211727817,411,83.486525858967212]
[null,"With independent living difficulty",0,15.556349186104045,0,15.556349186104045,0,15.556349186104045,124,68.963758598266665,0,15.556349186104045,0,15.556349186104045,0,15.556349186104045,0,15.556349186104045,4,13.038404810405298,0,15.556349186104045,0,15.556349186104045,0,15.556349186104045,2,11.401754250991379,0,15.556349186104045,0,15.556349186104045,0,15.556349186104045,0,15.556349186104045,0,15.556349186104045,0,15.556349186104045,0,15.556349186104045,0,15.556349186104045,0,15.556349186104045,0,15.556349186104045,22,34.785054261852174,0,15.556349186104045,0,15.556349186104045,0,15.556349186104045,0,15.556349186104045,0,15.556349186104045,0,15.556349186104045,0,15.556349186104045,0,15.556349186104045,7,6.4031242374328485,0,15.556349186104045,0,15.556349186104045,6,5.8309518948453007,4,4.2426406871192848,3,11.704699910719626,0,15.556349186104045,0,15.556349186104045,0,15.556349186104045,0,15.556349186104045,13,16.278820596099706]
[null,"With no independent living difficulty",0,15.556349186104045,0,15.556349186104045,0,15.556349186104045,1507,177.6091213873882,0,15.556349186104045,197,85.632937588290176,0,15.556349186104045,23,13.45362404707371,292,75.451971478550519,79,28.319604517012593,0,15.556349186104045,0,15.556349186104045,141,51.662365412357957,6,6.7082039324993694,5,7.2111025509279782,23,11.401754250991379,39,21.931712199461309,0,15.556349186104045,443,102.00490184299969,4,14.212670403551895,0,15.556349186104045,0,15.556349186104045,0,15.556349186104045,441,102.7277956543408,0,15.556349186104045,0,15.556349186104045,4,5.6568542494923806,4,5.6568542494923806,0,15.556349186104045,0,15.556349186104045,4,7.2111025509279782,68,35,34,14.422205101855956,0,15.556349186104045,0,15.556349186104045,39,17.691806012954132,56,22.022715545545239,131,46.669047558312137,0,15.556349186104045,0,15.556349186104045,0,15.556349186104045,15,15.231546211727817,398,81.467785044151043]
[null,"35 to 64  years:",0,15.556349186104045,0,15.556349186104045,0,15.556349186104045,3621,264.20068130116545,12,10.295630140987001,378,90.520715861066847,0,15.556349186104045,158,35.468295701936398,1139,119.60351165413162,352,65.73431371817918,0,15.556349186104045,0,15.556349186104045,407,62.936475910238251,7,8.5440037453175304,6,8.6023252670426267,168,33.421549934136806,147,35.608987629529715,0,15.556349186104045,1281,107.48953437428223,4,14.212670403551895,0,15.556349186104045,0,15.556349186104045,0,15.556349186104045,1580,137.90576492663388,0,15.556349186104045,0,15.556349186104045,9,8.5440037453175304,8,7.6157731058639087,0,15.556349186104045,0,15.556349186104045,4,12.083045973594572,486,71.589105316381762,197,35.468295701936398,9,9.2195444572928871,0,15.556349186104045,170,31.622776601683793,226,41.231056256176608,267,53.814496188294839,0,15.556349186104045,0,15.556349186104045,0,15.556349186104045,29,15.556349186104045,965,110.39021695784459]
[null,"With independent living difficulty",0,15.556349186104045,0,15.556349186104045,0,15.556349186104045,212,90.686272390037075,0,15.556349186104045,21,16.401219466856727,0,15.556349186104045,12,12.369316876852981,38,20.615528128088304,26,18.384776310850235,0,15.556349186104045,0,15.556349186104045,21,18.788294228055936,1,11.180339887498949,1,11.401754250991379,4,12.083045973594572,4,12.529964086141668,0,15.556349186104045,12,17.804493814764857,4,14.212670403551895,0,15.556349186104045,0,15.556349186104045,0,15.556349186104045,70,49.819674828324601,0,15.556349186104045,0,15.556349186104045,0,15.556349186104045,0,15.556349186104045,0,15.556349186104045,0,15.556349186104045,0,15.556349186104045,19,20.248456731316587,1,11.180339887498949,0,15.556349186104045,0,15.556349186104045,1,11.401754250991379,9,8.6023252670426267,35,19.313207915827967,0,15.556349186104045,0,15.556349186104045,0,15.556349186104045,0,15.556349186104045,32,32.893768406797051]
[null,"With no independent living difficulty",0,15.556349186104045,0,15.556349186104045,0,15.556349186104045,3409,251.21305698549986,12,10.295630140987001,357,86.267027304758798,0,15.556349186104045,146,32.802438933713454,1101,114.58621208504974,326,65.192024052026483,0,15.556349186104045,0,15.556349186104045,386,60.827625302982199,6,8.5440037453175304,5,8.0622577482985491,164,33.421549934136806,143,35.608987629529715,0,15.556349186104045,1269,108.89444430272832,0,15.556349186104045,0,15.556349186104045,0,15.556349186104045,0,15.556349186104045,1510,137.13132391981054,0,15.556349186104045,0,15.556349186104045,9,8.5440037453175304,8,7.6157731058639087,0,15.556349186104045,0,15.556349186104045,4,12.083045973594572,467,69.354163537598808,196,35.468295701936398,9,9.2195444572928871,0,15.556349186104045,169,32.202484376209235,217,42.01190307520001,232,51.088159097779204,0,15.556349186104045,0,15.556349186104045,0,15.556349186104045,29,15.556349186104045,933,108.93117092916977]
[null,"65 to 74  years:",0,15.556349186104045,0,15.556349186104045,0,15.556349186104045,750,97.616596949494195,0,15.556349186104045,162,41.231056256176608,0,15.556349186104045,45,19.104973174542799,388,83.234608186739251,109,29.154759474226502,0,15.556349186104045,0,15.556349186104045,154,31.89043743820395,0,15.556349186104045,0,15.556349186104045,57,17.029386365926403,61,22.203603311174518,0,15.556349186104045,203,62.481997407253232,0,15.556349186104045,0,15.556349186104045,0,15.556349186104045,0,15.556349186104045,376,77.833154889160184,0,15.556349186104045,0,15.556349186104045,0,15.556349186104045,0,15.556349186104045,0,15.556349186104045,0,15.556349186104045,0,15.556349186104045,159,34.655446902326915,69,18.439088914585774,0,15.556349186104045,0,15.556349186104045,41,14.422205101855956,61,17.691806012954132,171,53.009433122794285,0,15.556349186104045,0,15.556349186104045,0,15.556349186104045,14,12.165525060596439,179,52.478567053607705]
[null,"With independent living difficulty",0,15.556349186104045,0,15.556349186104045,0,15.556349186104045,22,26.627053911388696,0,15.556349186104045,2,11.401754250991379,0,15.556349186104045,2,12.083045973594572,28,14.866068747318506,7,5.8309518948453007,0,15.556349186104045,0,15.556349186104045,10,7.810249675906654,0,15.556349186104045,0,15.556349186104045,2,3.6055512754639891,0,15.556349186104045,0,15.556349186104045,26,31.953090617340916,0,15.556349186104045,0,15.556349186104045,0,15.556349186104045,0,15.556349186104045,15,21.095023109728988,0,15.556349186104045,0,15.556349186104045,0,15.556349186104045,0,15.556349186104045,0,15.556349186104045,0,15.556349186104045,0,15.556349186104045,5,13.601470508735444,1,11.401754250991379,0,15.556349186104045,0,15.556349186104045,2,2.8284271247461903,4,13.601470508735444,10,14.212670403551895,0,15.556349186104045,0,15.556349186104045,0,15.556349186104045,4,12.529964086141668,32,33.286633954186478]
[null,"With no independent living difficulty",0,15.556349186104045,0,15.556349186104045,0,15.556349186104045,728,97.616596949494195,0,15.556349186104045,160,41.231056256176608,0,15.556349186104045,43,17.691806012954132,360,82.661962231730257,102,28.844410203711913,0,15.556349186104045,0,15.556349186104045,144,31.240998703626616,0,15.556349186104045,0,15.556349186104045,55,17.029386365926403,61,22.203603311174518,0,15.556349186104045,177,60.605280298007038,0,15.556349186104045,0,15.556349186104045,0,15.556349186104045,0,15.556349186104045,361,77.155686763841331,0,15.556349186104045,0,15.556349186104045,0,15.556349186104045,0,15.556349186104045,0,15.556349186104045,0,15.556349186104045,0,15.556349186104045,154,33.97057550292606,68,18.439088914585774,0,15.556349186104045,0,15.556349186104045,39,14.422205101855956,57,16.278820596099706,161,51.86520991955976,0,15.556349186104045,0,15.556349186104045,0,15.556349186104045,10,10.198039027185569,147,45.276925690687087]
[null,"75  years and Older:",0,15.556349186104045,0,15.556349186104045,0,15.556349186104045,1046,120.88010589009261,5,13.038404810405298,40,18.439088914585774,0,15.556349186104045,36,16.401219466856727,119,36.069377593742864,55,21.633307652783937,0,15.556349186104045,0,15.556349186104045,91,25.612496949731394,0,15.556349186104045,0,15.556349186104045,25,14.7648230602334,34,20,0,15.556349186104045,270,71.700767080973407,0,15.556349186104045,0,15.556349186104045,0,15.556349186104045,0,15.556349186104045,172,65.76473218982953,0,15.556349186104045,0,15.556349186104045,0,15.556349186104045,0,15.556349186104045,0,15.556349186104045,0,15.556349186104045,0,15.556349186104045,80,28.600699292150182,58,17.029386365926403,0,15.556349186104045,0,15.556349186104045,47,15.620499351813308,49,17.691806012954132,66,29.681644159311659,0,15.556349186104045,0,15.556349186104045,0,15.556349186104045,0,15.556349186104045,157,54.561891462814962]
[null,"With independent living difficulty",0,15.556349186104045,0,15.556349186104045,0,15.556349186104045,258,77.820305833374874,5,13.038404810405298,15,17.029386365926403,0,15.556349186104045,7,8.5440037453175304,18,19.416487838947599,8,13.601470508735444,0,15.556349186104045,0,15.556349186104045,24,15,0,15.556349186104045,0,15.556349186104045,0,15.556349186104045,7,13.601470508735444,0,15.556349186104045,36,27.313000567495326,0,15.556349186104045,0,15.556349186104045,0,15.556349186104045,0,15.556349186104045,37,33.120990323358392,0,15.556349186104045,0,15.556349186104045,0,15.556349186104045,0,15.556349186104045,0,15.556349186104045,0,15.556349186104045,0,15.556349186104045,12,10.816653826391969,11,7.2111025509279782,0,15.556349186104045,0,15.556349186104045,7,7.0710678118654755,2,11.704699910719626,22,24.596747752497688,0,15.556349186104045,0,15.556349186104045,0,15.556349186104045,0,15.556349186104045,66,43.416586692184822]
[null,"With no independent living difficulty",0,15.556349186104045,0,15.556349186104045,0,15.556349186104045,788,122.28654872879518,0,15.556349186104045,25,13.416407864998739,0,15.556349186104045,29,14.866068747318506,101,32.649655434629018,47,20.124611797498108,0,15.556349186104045,0,15.556349186104045,67,22.203603311174518,0,15.556349186104045,0,15.556349186104045,25,14.7648230602334,27,18.439088914585774,0,15.556349186104045,234,70.178344238091,0,15.556349186104045,0,15.556349186104045,0,15.556349186104045,0,15.556349186104045,135,57.384666941614292,0,15.556349186104045,0,15.556349186104045,0,15.556349186104045,0,15.556349186104045,0,15.556349186104045,0,15.556349186104045,0,15.556349186104045,68,27.802877548915689,47,14.212670403551895,0,15.556349186104045,0,15.556349186104045,40,14.422205101855956,47,17.691806012954132,44,18.357559750685819,0,15.556349186104045,0,15.556349186104045,0,15.556349186104045,0,15.556349186104045,91,36.124783736376884]

{"sheet":"ACS_Table_C18108","index":36,"n_rows":143,"n_cols":88,"rows_kept":143,"cut":false,"hidden":true,"merged":[]}
["B18108. AGE BY NUMBER OF DISABILITIES\n\n"]
["Universe:  Civilian non-institutionalized population"]
["Data Set: 2015-2019 American Community Survey 5-Year Estimates"]
[]
[null,null,"Atkinson and Gilmanton Grant",null,"Bean's Grant",null,"Bean's Purchase",null,"Berlin",null,"Cambridge",null,"Carroll",null,"Chandler's Purchase",null,"Clarksville",null,"Colebrook",null,"Columbia",null,"Crawford's Purchase",null,"Cutt's Grant",null,"Dalton",null,"Dix's Grant",null,"Dixville",null,"Dummer",null,"Errol",null,"Erving's Location",null,"Gorham",null,"Greens Grant",null,"Hadley's Purchase",null,"Jefferson",null,"Kilkenny",null,"Lancaster",null,"Low and Burbank's Grant",null,"Martin's Location",null,"Milan",null,"Millsfield",null,"Northumberland",null,"Odell",null,"Pinkham's Grant",null,"Pittsburg",null,"Randolph",null,"Sargent's Purchase",null,"Second College Grant",null,"Shelburne",null,"Stark",null,"Stewartstown",null,"Stratford",null,"Success",null,"Thompson and Meserves Purchase",null,"Wentworth's Location",null,"Whitefield"]
[null," ","Estimate","Margin of Error","Estimate","Margin of Error","Estimate","Margin of Error","Estimate","Margin of Error","Estimate","Margin of Error","Estimate","Margin of Error","Estimate",null,"Estimate","Margin of Error","Estimate","Margin of Error","Estimate","Margin of Error","Estimate","Margin of Error","Estimate","Margin of Error","Estimate","Margin of Error","Estimate","Margin of Error","Estimate","Margin of Error","Estimate","Margin of Error","Estimate","Margin of Error","Estimate","Margin of Error","Estimate","Margin of Error","Estimate","Margin of Error","Estimate","Margin of Error","Estimate","Margin of Error","Estimate","Margin of Error","Estimate","Margin of Error","Estimate","Margin of Error","Estimate","Margin of Error","Estimate","Margin of Error","Estimate","Margin of Error","Estimate","Margin of Error","Estimate","Margin of Error","Estimate","Margin of Error","Estimate","Margin of Error","Estimate","Margin of Error","Estimate","Margin of Error","Estimate","Margin of Error","Estimate","Margin of Error","Estimate","Margin of Error","Estimate","Margin of Error","Estimate","Margin of Error","Estimate","Margin of Error","Estimate","Margin of Error","Estimate","Margin of Error","Estimate","Margin of Error"]
[null,"Total:",0,11,0,11,0,11,8384,242,0,11,772,141,0,11,324,88,1908,171,633,119,0,11,0,11,906,140,0,11,11,12,306,71,205,55,0,11,2623,17,13,10,0,11,850,129,0,11,3162,83,0,11,0,11,1332,107,8,12,2322,266,10,12,11,14,740,104,365,68,11,24,0,11,408,65,606,144,857,171,630,114,0,11,0,11,26,16,2202,215]
[null,"Under 18 years:",0,11,0,11,0,11,1585,170,0,11,140,93,0,11,31,21,301,75,79,36,0,11,0,11,132,47,0,11,2,4,63,42,27,19,0,11,408,71,0,11,0,11,122,43,0,11,668,129,0,11,0,11,220,32,0,11,522,119,0,11,0,11,57,32,23,12,0,11,0,11,53,32,145,94,140,71,112,41,0,11,0,11,0,11,404,112]
[null,"With one type of disability",0,11,0,11,0,11,174,101,0,11,0,11,0,11,0,11,0,11,2,4,0,11,0,11,10,16,0,11,0,11,17,19,0,11,0,11,11,16,0,11,0,11,3,5,0,11,69,59,0,11,0,11,17,18,0,11,41,41,0,11,0,11,0,11,0,11,0,11,0,11,2,3,16,20,0,11,5,6,0,11,0,11,0,11,7,10]
[null,"With two or more types of disability",0,11,0,11,0,11,33,38,0,11,0,11,0,11,6,9,0,11,8,7,0,11,0,11,10,15,0,11,0,11,0,11,0,11,0,11,11,16,0,11,0,11,0,11,0,11,0,11,0,11,0,11,9,10,0,11,5,7,0,11,0,11,0,11,0,11,0,11,0,11,5,8,0,11,0,11,12,13,0,11,0,11,0,11,4,12]
[null,"No disability",0,11,0,11,0,11,1378,209,0,11,140,93,0,11,25,21,301,75,69,36,0,11,0,11,112,42,0,11,2,4,46,28,27,19,0,11,386,66,0,11,0,11,119,42,0,11,599,85,0,11,0,11,194,32,0,11,476,128,0,11,0,11,57,32,23,12,0,11,0,11,46,28,129,75,140,71,95,37,0,11,0,11,0,11,393,112]
[null,"18 to 64  years:",0,11,0,11,0,11,5080,205,0,11,438,99,0,11,220,71,1113,124,398,96,0,11,0,11,612,104,0,11,7,9,156,31,112,33,0,11,1555,86,13,10,0,11,528,90,0,11,1836,123,0,11,0,11,860,90,4,6,1393,184,10,12,11,14,430,78,217,51,11,24,0,11,225,48,304,67,399,108,388,76,0,11,0,11,7,6,1128,137]
[null,"With one type of disability",0,11,0,11,0,11,579,167,0,11,21,9,0,11,36,22,82,37,35,23,0,11,0,11,50,29,0,11,0,11,14,9,29,21,0,11,150,56,0,11,0,11,22,17,0,11,121,63,0,11,0,11,74,41,0,11,142,53,0,11,0,11,52,29,7,7,0,11,0,11,10,7,24,15,42,25,72,40,0,11,0,11,0,11,106,43]
[null,"With two or more types of disability",0,11,0,11,0,11,504,135,0,11,18,15,0,11,27,26,66,36,51,27,0,11,0,11,48,22,0,11,1,4,7,7,2,3,0,11,55,36,3,6,0,11,13,11,0,11,173,89,0,11,0,11,39,20,0,11,130,56,0,11,0,11,23,17,10,8,11,24,0,11,19,12,47,25,45,26,51,28,0,11,0,11,0,11,85,51]
[null,"No disability",0,11,0,11,0,11,3997,264,0,11,399,101,0,11,157,47,965,123,312,80,0,11,0,11,514,94,0,11,6,7,135,28,81,28,0,11,1350,101,10,10,0,11,493,85,0,11,1542,146,0,11,0,11,747,70,4,6,1121,146,10,12,11,14,355,75,200,50,0,11,0,11,196,44,233,57,312,99,265,59,0,11,0,11,7,6,937,115]
[null,"65 years and over:",0,11,0,11,0,11,1719,161,0,11,194,43,0,11,73,27,494,76,156,34,0,11,0,11,162,44,0,11,2,6,87,24,66,29,0,11,660,74,0,11,0,11,200,43,0,11,658,94,0,11,0,11,252,47,4,6,407,80,0,11,0,11,253,56,125,29,0,11,0,11,130,38,157,41,318,71,130,32,0,11,0,11,19,14,670,95]
[null,"With one type of disability",0,11,0,11,0,11,301,93,0,11,32,22,0,11,15,9,84,34,31,13,0,11,0,11,21,16,0,11,1,3,18,8,7,7,0,11,99,50,0,11,0,11,37,20,0,11,122,58,0,11,0,11,57,21,0,11,99,35,0,11,0,11,50,23,13,8,0,11,0,11,14,13,34,18,68,34,33,16,0,11,0,11,7,8,125,74]
[null,"With two or more types of disability",0,11,0,11,0,11,370,114,0,11,45,32,0,11,3,3,151,45,40,20,0,11,0,11,29,23,0,11,0,11,3,4,19,12,0,11,137,46,0,11,0,11,36,16,0,11,111,56,0,11,0,11,24,16,0,11,73,33,0,11,0,11,19,17,10,9,0,11,0,11,37,19,17,10,40,24,31,17,0,11,0,11,4,5,132,47]
[null,"No disability",0,11,0,11,0,11,1048,145,0,11,117,28,0,11,55,24,259,59,85,21,0,11,0,11,112,32,0,11,1,4,66,21,40,22,0,11,424,70,0,11,0,11,127,33,0,11,425,90,0,11,0,11,171,41,4,6,235,62,0,11,0,11,184,44,102,26,0,11,0,11,79,26,106,31,210,56,66,26,0,11,0,11,8,7,413,73]
[]
[]
[]
[]
[]
[]
[]
[]
[]
[]
[]
[]
[]
[]
[]
[]
[]
[]
[]
[]
[]
[]
[]
[]
[]
[]
[]
[]
[]
[]
[]
[]
[]
[]
[]
[]
[]
[]
[]
[]
[]
[]
[]
[]
[]
[]
[]
[]
[]
[]
[]
[]
[]
[]
[]
[]
[]
[]
[]
[]
[]
[]
[]
[]
[]
[]
[]
[]
[]
[]
[]
[]
[]
[]
[]
[]
[]
[]
[]
[]
["B18108. AGE BY NUMBER OF DISABILITIES\n\n"]
["Universe:  Civilian non-institutionalized population"]
["Data Set: 2009-2013 American Community Survey 5-Year Estimates"]
[]
[null,null,"Atkinson and Gilmanton Grant",null,"Bean's Grant",null,"Bean's Purchase",null,"Berlin",null,"Cambridge",null,"Carroll",null,"Chandler's Purchase",null,"Clarksville",null,"Colebrook",null,"Columbia",null,"Crawford's Purchase",null,"Cutt's Grant",null,"Dalton",null,"Dix's Grant",null,"Dixville",null,"Dummer",null,"Errol",null,"Erving's Location",null,"Gorham",null,"Greens Grant",null,"Hadley's Purchase",null,"Jefferson",null,"Kilkenny",null,"Lancaster",null,"Low and Burbank's Grant",null,"Martin's Location",null,"Milan",null,"Millsfield ",null,"Northumberland",null,"Odell",null,"Pinkham's Grant",null,"Pittsburg",null,"Randolph",null,"Sargent's Purchase",null,"Second College Grant",null,"Shelburne",null,"Stark",null,"Stewartstown",null,"Stratford",null,"Success",null,"Thompson and Meserves Purchase",null,"Wentworth's Location",null,"Whitefield"]
[null," ","Estimate","Margin of Error","Estimate","Margin of Error","Estimate","Margin of Error","Estimate","Margin of Error","Estimate","Margin of Error","Estimate","Margin of Error","Estimate",null,"Estimate","Margin of Error","Estimate","Margin of Error","Estimate","Margin of Error","Estimate","Margin of Error","Estimate","Margin of Error","Estimate","Margin of Error","Estimate","Margin of Error","Estimate","Margin of Error","Estimate","Margin of Error","Estimate","Margin of Error","Estimate","Margin of Error","Estimate","Margin of Error","Estimate","Margin of Error","Estimate","Margin of Error","Estimate","Margin of Error","Estimate","Margin of Error","Estimate","Margin of Error","Estimate","Margin of Error","Estimate","Margin of Error","Estimate","Margin of Error","Estimate","Margin of Error","Estimate","Margin of Error","Estimate","Margin of Error","Estimate","Margin of Error","Estimate","Margin of Error","Estimate","Margin of Error","Estimate","Margin of Error","Estimate","Margin of Error","Estimate","Margin of Error","Estimate","Margin of Error","Estimate","Margin of Error","Estimate","Margin of Error","Estimate","Margin of Error","Estimate","Margin of Error","Estimate","Margin of Error","Estimate","Margin of Error"]
[null,"Total:",1301757,349,59518,298,47360,409,76757,311,31546,877,88637,145,396537,725,143716,697,293541,403,120854,1124,43291,256]
[null,"Under 5 years:",70703,406,2966,114,1966,50,3689,95,1429,46,4184,82,24088,49,7593,183,15617,72,6965,211,2206,132]
[null,"With either a vision or hearing difficulty but not both",327,146,0,147,22,34,0,147,18,21,0,147,147,106,17,28,89,72,15,25,19,31]
[null,"With both hearing and vision difficulty",104,113,0,147,7,11,7,11,23,25,0,147,0,147,0,147,67,109,0,147,0,147]
[null,"No disability",70272,449,2966,114,1937,63,3682,95,1388,54,4184,82,23941,116,7576,183,15461,165,6950,214,2187,127]
[null,"5 to 17  years:",220229,527,9885,221,7254,182,11691,122,4947,114,12424,82,70975,91,24697,196,52943,71,18462,277,6951,122]
[null,"With one type of disability",9968,918,266,125,303,163,722,275,559,257,623,292,2873,561,1247,355,2128,519,838,285,409,172]
[null,"With two or more types of disability",2945,554,26,31,91,90,96,63,161,91,240,106,960,325,235,107,895,336,75,77,166,121]
[null,"No disability",207316,1078,9593,234,6860,220,10873,296,4227,287,11561,332,67142,597,23215,406,49920,604,17549,432,6376,229]
[null,"18 to 34  years:",263524,770,10071,247,6616,374,18265,264,5086,142,21961,226,82673,340,28403,430,50313,330,32612,621,7524,128]
[null,"With one type of disability",9966,1063,377,159,310,134,666,242,415,158,629,272,2852,595,1035,329,1932,407,1355,417,395,205]
[null,"With two or more types of disability",5673,737,414,221,83,67,264,157,132,67,361,164,1765,378,951,296,1113,403,460,208,130,81]
[null,"No disability",247885,1403,9280,373,6223,373,17335,339,4539,228,20971,400,78056,717,26417,537,47268,624,30797,817,6999,254]
[null,"35 to 64  years:",579871,850,27123,163,22213,156,32318,247,14765,210,36880,223,174555,336,64263,413,139257,411,48735,633,19762,155]
[null,"With one type of disability",33739,1737,1505,358,1467,379,1797,342,1330,233,2132,419,9890,906,4289,627,6484,634,3244,508,1601,281]
[null,"With two or more types of disability",26159,1338,1467,337,1256,270,1480,306,1219,232,2164,364,7330,731,2942,407,4824,658,2327,431,1150,230]
[null,"No disability",519973,2265,24151,503,19490,547,29041,533,12216,389,32584,606,157335,1224,57032,802,127949,966,43164,915,17011,328]
[null,"65 to 74  years:",92888,317,5248,59,5220,46,5955,79,3047,195,7038,41,24443,258,10090,146,20435,169,7547,140,3865,71]
[null,"With one type of disability",12936,813,461,161,621,195,857,193,578,147,933,237,3434,468,1245,214,2758,389,1381,329,668,225]
[null,"With two or more types of disability",7596,564,486,175,362,138,495,196,360,111,632,202,1854,277,850,239,1581,311,682,248,294,109]
[null,"No disability",72356,947,4301,217,4237,269,4603,270,2109,226,5473,296,19155,608,7995,327,16096,502,5484,400,2903,218]
[null,"75  years and older:",74542,415,4225,138,4091,136,4839,188,2272,764,6150,105,19803,430,8670,235,14976,296,6533,172,2983,153]
[null,"With one type of disability",15877,935,730,198,975,235,913,189,468,186,1268,236,4308,406,1881,322,2860,413,1714,262,760,163]
[null,"With two or more types of disability",19295,901,1293,305,680,202,1326,244,831,318,1553,232,5371,510,2330,386,3789,455,1300,240,822,206]
[null,"No disability",39370,1037,2202,285,2436,269,2600,291,973,363,3329,281,10124,627,4459,335,8327,434,3519,356,1401,233]
[null,"Total:",0,11,0,11,0,11,8951,205,19,17,944,179,0,11,325,86,2332,210,716,121,0,11,0,11,987,163,11,9,0,11,354,80,253,56,0,11,2788,34,6,14,0,11,0,11,0,11,3362,51,0,11,0,11,21,19,0,11,0,11,0,11,7,7,975,131,451,84,8,12,0,11,378,80,556,105,743,114,0,11,0,11,0,11,54,34,2080,229]
[null,"Under 18 years:",0,11,0,11,0,11,1682,129,0,11,189,93,0,11,56,35,393,98,155,50,0,11,0,11,196,68,0,11,0,11,73,38,15,10,0,11,587,77,0,11,0,11,0,11,0,11,731,106,0,11,0,11,9,9,0,11,0,11,0,11,0,11,108,42,56,31,0,11,0,11,59,31,136,52,108,45,0,11,0,11,0,11,3,5,344,88]
[null,"With one type of disability",0,11,0,11,0,11,71,52,0,11,25,37,0,11,3,4,29,28,5,5,0,11,0,11,10,8,0,11,0,11,0,11,0,11,0,11,83,57,0,11,0,11,0,11,0,11,0,11,0,11,0,11,0,11,0,11,0,11,0,11,0,11,12,17,1,2,0,11,0,11,3,4,2,5,6,9,0,11,0,11,0,11,0,11,26,29]
[null,"With two or more types of disability",0,11,0,11,0,11,108,66,0,11,8,12,0,11,0,11,0,11,0,11,0,11,0,11,2,3,0,11,0,11,0,11,0,11,0,11,26,21,0,11,0,11,0,11,0,11,11,18,0,11,0,11,0,11,0,11,0,11,0,11,0,11,0,11,0,11,0,11,0,11,0,11,3,5,5,8,0,11,0,11,0,11,0,11,0,11]
[null,"No disability",0,11,0,11,0,11,1503,129,0,11,156,65,0,11,53,34,364,100,150,49,0,11,0,11,184,66,0,11,0,11,73,38,15,10,0,11,478,62,0,11,0,11,0,11,0,11,720,99,0,11,0,11,9,9,0,11,0,11,0,11,0,11,96,35,55,31,0,11,0,11,56,31,131,51,97,44,0,11,0,11,0,11,3,5,318,83]
[null,"18 to 64  years:",0,11,0,11,0,11,5366,213,14,13,582,102,0,11,193,54,1478,152,394,89,0,11,0,11,608,108,11,9,0,11,212,53,164,46,0,11,1705,135,6,14,0,11,0,11,0,11,2076,118,0,11,0,11,12,11,0,11,0,11,0,11,7,7,602,102,284,54,8,12,0,11,233,52,331,66,440,91,0,11,0,11,0,11,35,27,1396,162]
[null,"With one type of disability",0,11,0,11,0,11,429,124,0,11,72,64,0,11,21,13,126,47,13,13,0,11,0,11,54,28,6,8,0,11,12,12,9,6,0,11,126,51,3,7,0,11,0,11,0,11,202,78,0,11,0,11,0,11,0,11,0,11,0,11,2,4,35,21,24,14,0,11,0,11,16,12,30,13,27,24,0,11,0,11,0,11,2,3,153,78]
[null,"With two or more types of disability",0,11,0,11,0,11,440,128,0,11,28,24,0,11,25,14,123,53,63,35,0,11,0,11,38,22,1,4,0,11,8,5,6,7,0,11,51,33,3,7,0,11,0,11,0,11,145,79,0,11,0,11,0,11,0,11,0,11,0,11,2,4,31,23,21,13,0,11,0,11,8,8,20,10,79,38,0,11,0,11,0,11,3,5,64,37]
[null,"No disability",0,11,0,11,0,11,4497,272,14,13,482,104,0,11,147,49,1229,146,318,73,0,11,0,11,516,103,4,8,0,11,192,48,149,46,0,11,1528,142,0,11,0,11,0,11,0,11,1729,171,0,11,0,11,12,11,0,11,0,11,0,11,3,7,536,95,239,50,8,12,0,11,209,52,281,62,334,80,0,11,0,11,0,11,30,27,1179,146]
[null,"65 years and over:",0,11,0,11,0,11,1903,168,5,7,173,49,0,11,76,32,461,89,167,43,0,11,0,11,183,45,0,11,0,11,69,19,74,24,0,11,496,126,0,11,0,11,0,11,0,11,555,107,0,11,0,11,0,11,0,11,0,11,0,11,0,11,265,61,111,35,0,11,0,11,86,24,89,24,195,67,0,11,0,11,0,11,16,13,340,66]
[null,"With one type of disability",0,11,0,11,0,11,330,99,0,11,20,15,0,11,23,18,59,38,17,17,0,11,0,11,39,16,0,11,0,11,13,9,24,16,0,11,107,59,0,11,0,11,0,11,0,11,55,45,0,11,0,11,0,11,0,11,0,11,0,11,0,11,40,22,11,8,0,11,0,11,19,12,21,10,51,23,0,11,0,11,0,11,0,11,62,36]
[null,"With two or more types of disability",0,11,0,11,0,11,452,112,5,7,15,16,0,11,26,17,117,63,16,10,0,11,0,11,24,14,0,11,0,11,4,4,12,10,0,11,138,60,0,11,0,11,0,11,0,11,155,81,0,11,0,11,0,11,0,11,0,11,0,11,0,11,54,27,20,13,0,11,0,11,16,10,21,14,34,24,0,11,0,11,0,11,14,13,125,66]
[null,"No disability",0,11,0,11,0,11,1121,165,0,11,138,42,0,11,27,18,285,79,134,42,0,11,0,11,120,35,0,11,0,11,52,20,38,17,0,11,251,79,0,11,0,11,0,11,0,11,345,80,0,11,0,11,0,11,0,11,0,11,0,11,0,11,171,46,80,30,0,11,0,11,51,19,47,18,110,48,0,11,0,11,0,11,2,3,153,46]

{"sheet":"ACS_TableB19201_ACS_Tbl_B19202","index":37,"n_rows":115,"n_cols":88,"rows_kept":115,"cut":false,"hidden":true,"merged":[]}
[null,"B19102. NON-FAMILY INCOME IN THE PAST 12 MONTHS (IN 2019 INFLATION-ADJUSTED DOLLARS)"]
[null,"Universe:  FAMILIES"]
[null,"Data Set: 2015-2019 American Community Survey 5-Year Estimates"]
[]
[null,null,"Atkinson and Gilmanton Grant",null,"Bean's Grant",null,"Bean's Purchase",null,"Berlin",null,"Cambridge",null,"Carroll",null,"Chandler's Purchase",null,"Clarksville",null,"Colebrook",null,"Columbia",null,"Crawford's Purchase",null,"Cutt's Grant",null,"Dalton",null,"Dix's Grant",null,"Dixville",null,"Dummer",null,"Errol",null,"Erving's Location",null,"Gorham",null,"Greens Grant",null,"Hadley's Purchase",null,"Jefferson",null,"Kilkenny",null,"Lancaster",null,"Low and Burbank's Grant",null,"Martin's Location",null,"Milan",null,"Millsfield",null,"Northumberland",null,"Odell",null,"Pinkham's Grant",null,"Pittsburg",null,"Randolph",null,"Sargent's Purchase",null,"Second College Grant",null,"Shelburne",null,"Stark",null,"Stewartstown",null,"Stratford",null,"Success",null,"Thompson and Meserves Purchase",null,"Wentworth's Location",null,"Whitefield"]
[null,null,"Estimate","Margin Of Error","Estimate","Margin Of Error","Estimate","Margin Of Error","Estimate","Margin Of Error","Estimate","Margin Of Error","Estimate","Margin Of Error","Estimate","Margin Of Error","Estimate","Margin Of Error","Estimate","Margin Of Error","Estimate","Margin Of Error","Estimate","Margin Of Error","Estimate","Margin Of Error","Estimate","Margin Of Error","Estimate","Margin Of Error","Estimate","Margin Of Error","Estimate","Margin Of Error","Estimate","Margin Of Error","Estimate","Margin Of Error","Estimate","Margin Of Error","Estimate","Margin Of Error","Estimate","Margin Of Error","Estimate","Margin Of Error","Estimate","Margin Of Error","Estimate","Margin Of Error","Estimate","Margin Of Error","Estimate","Margin Of Error","Estimate","Margin Of Error","Estimate","Margin Of Error","Estimate","Margin Of Error","Estimate","Margin Of Error","Estimate","Margin Of Error","Estimate","Margin Of Error","Estimate","Margin Of Error","Estimate","Margin Of Error","Estimate","Margin Of Error","Estimate","Margin Of Error","Estimate","Margin Of Error","Estimate","Margin Of Error","Estimate","Margin Of Error","Estimate","Margin Of Error","Estimate","Margin Of Error","Estimate","Margin Of Error","Estimate","Margin Of Error"]
[null,"Total:",0,11,0,11,0,11,1741,261,0,11,99,36,0,11,48,27,438,85,140,34,0,11,0,11,152,48,0,11,1,4,37,15,52,21,0,11,445,111,0,11,0,11,131,39,0,11,530,142,0,11,0,11,170,45,0,11,394,68,0,11,0,11,201,58,72,22,0,11,0,11,68,21,78,27,172,49,106,33,0,11,0,11,7,6,435,101]
[null,"Less than $10,000",0,11,0,11,0,11,266,91,0,11,10,7,0,11,2,4,22,16,17,15,0,11,0,11,21,18,0,11,0,11,0,11,2,3,0,11,38,29,0,11,0,11,8,7,0,11,25,25,0,11,0,11,19,14,0,11,24,23,0,11,0,11,12,19,0,11,0,11,0,11,9,9,19,14,6,6,19,12,0,11,0,11,0,11,53,41]
[null,"$10,000 to $14,999",0,11,0,11,0,11,274,103,0,11,7,10,0,11,1,2,42,29,13,13,0,11,0,11,9,8,0,11,0,11,7,8,18,13,0,11,0,11,0,11,0,11,6,6,0,11,85,61,0,11,0,11,4,5,0,11,36,23,0,11,0,11,46,30,5,5,0,11,0,11,1,2,4,5,18,18,28,19,0,11,0,11,0,11,81,56]
[null,"$15,000 to $19,999",0,11,0,11,0,11,129,75,0,11,2,3,0,11,2,3,35,26,13,10,0,11,0,11,5,6,0,11,0,11,0,11,1,3,0,11,112,61,0,11,0,11,2,4,0,11,39,29,0,11,0,11,3,4,0,11,69,33,0,11,0,11,13,10,4,3,0,11,0,11,6,6,6,5,22,17,4,5,0,11,0,11,4,4,46,34]
[null,"$20,000 to $24,999",0,11,0,11,0,11,263,104,0,11,8,7,0,11,4,4,80,45,12,8,0,11,0,11,25,19,0,11,0,11,4,4,6,8,0,11,0,11,0,11,0,11,6,6,0,11,48,45,0,11,0,11,9,7,0,11,41,24,0,11,0,11,9,6,0,11,0,11,0,11,6,7,2,4,24,16,10,8,0,11,0,11,0,11,44,40]
[null,"$25,000 to $29,999",0,11,0,11,0,11,101,62,0,11,3,4,0,11,3,4,26,16,8,7,0,11,0,11,10,9,0,11,0,11,10,13,6,7,0,11,9,14,0,11,0,11,27,20,0,11,23,23,0,11,0,11,10,7,0,11,12,12,0,11,0,11,29,23,10,11,0,11,0,11,5,7,17,12,24,25,10,11,0,11,0,11,0,11,6,9]
[null,"$30,000 to $34,999",0,11,0,11,0,11,165,89,0,11,15,14,0,11,7,8,42,30,19,15,0,11,0,11,7,7,0,11,0,11,1,2,2,3,0,11,30,27,0,11,0,11,34,31,0,11,107,67,0,11,0,11,4,5,0,11,48,22,0,11,0,11,3,4,6,8,0,11,0,11,6,7,11,12,14,17,8,12,0,11,0,11,0,11,11,10]
[null,"$35,000 to $39,999",0,11,0,11,0,11,165,94,0,11,8,9,0,11,14,16,28,20,9,7,0,11,0,11,17,14,0,11,0,11,0,11,4,6,0,11,61,49,0,11,0,11,0,11,0,11,25,25,0,11,0,11,14,9,0,11,41,30,0,11,0,11,16,17,9,6,0,11,0,11,4,5,6,6,9,13,5,5,0,11,0,11,0,11,16,13]
[null,"$40,000 to $44,999",0,11,0,11,0,11,86,50,0,11,5,5,0,11,2,3,23,24,6,7,0,11,0,11,4,5,0,11,0,11,8,7,0,11,0,11,42,30,0,11,0,11,18,13,0,11,46,41,0,11,0,11,35,26,0,11,33,29,0,11,0,11,32,23,0,11,0,11,0,11,6,8,0,11,0,11,2,3,0,11,0,11,3,4,18,17]
[null,"$45,000 to $49,999",0,11,0,11,0,11,67,80,0,11,6,6,0,11,0,11,18,15,14,16,0,11,0,11,10,10,0,11,0,11,1,2,0,11,0,11,20,23,0,11,0,11,3,5,0,11,18,28,0,11,0,11,8,7,0,11,10,9,0,11,0,11,2,5,4,5,0,11,0,11,3,5,0,11,0,11,2,4,0,11,0,11,0,11,7,10]
[null,"$50,000 to $59,999",0,11,0,11,0,11,109,75,0,11,12,12,0,11,3,5,36,22,7,12,0,11,0,11,26,25,0,11,1,4,2,3,4,6,0,11,50,45,0,11,0,11,9,7,0,11,51,40,0,11,0,11,15,9,0,11,11,10,0,11,0,11,28,22,4,4,0,11,0,11,1,2,0,11,2,4,2,3,0,11,0,11,0,11,85,54]
[null,"$60,000 to $74,999",0,11,0,11,0,11,70,42,0,11,10,7,0,11,4,7,54,37,3,4,0,11,0,11,9,11,0,11,0,11,3,4,2,3,0,11,49,49,0,11,0,11,8,7,0,11,13,15,0,11,0,11,16,16,0,11,23,27,0,11,0,11,8,8,5,6,0,11,0,11,3,4,0,11,16,16,2,4,0,11,0,11,0,11,34,28]
[null,"$75,000 to $99,999",0,11,0,11,0,11,27,27,0,11,11,13,0,11,6,10,22,25,14,10,0,11,0,11,5,7,0,11,0,11,0,11,2,3,0,11,23,33,0,11,0,11,0,11,0,11,21,22,0,11,0,11,23,29,0,11,41,34,0,11,0,11,0,11,8,6,0,11,0,11,9,9,2,3,22,22,6,5,0,11,0,11,0,11,13,14]
[null,"$100,000 to $124,999",0,11,0,11,0,11,12,16,0,11,2,4,0,11,0,11,0,11,2,4,0,11,0,11,0,11,0,11,0,11,1,2,2,3,0,11,11,15,0,11,0,11,10,15,0,11,16,16,0,11,0,11,7,6,0,11,0,11,0,11,0,11,0,11,6,6,0,11,0,11,6,9,2,4,3,5,0,11,0,11,0,11,0,11,21,25]
[null,"$125,000 to $149,999",0,11,0,11,0,11,7,12,0,11,0,11,0,11,0,11,5,8,0,11,0,11,0,11,0,11,0,11,0,11,0,11,0,11,0,11,0,11,0,11,0,11,0,11,0,11,0,11,0,11,0,11,3,4,0,11,0,11,0,11,0,11,3,6,4,4,0,11,0,11,3,4,3,5,0,11,6,6,0,11,0,11,0,11,0,11]
[null,"$150,000 to $199,999",0,11,0,11,0,11,0,18,0,11,0,11,0,11,0,11,5,7,0,11,0,11,0,11,4,6,0,11,0,11,0,11,3,7,0,11,0,11,0,11,0,11,0,11,0,11,0,11,0,11,0,11,0,11,0,11,5,6,0,11,0,11,0,11,0,11,0,11,0,11,0,11,6,9,3,5,0,11,0,11,0,11,0,11,0,11]
[null,"$200,000 or more",0,11,0,11,0,11,0,18,0,11,0,11,0,11,0,11,0,11,3,4,0,11,0,11,0,11,0,11,0,11,0,11,0,11,0,11,0,11,0,11,0,11,0,11,0,11,13,22,0,11,0,11,0,11,0,11,0,11,0,11,0,11,0,11,7,9,0,11,0,11,0,11,0,11,9,13,2,3,0,11,0,11,0,11,0,11]
[]
[]
[null,"B19112. MEDIAN NON-FAMILY INCOME IN THE PAST 12 MONTHS (IN 2019 INFLATION-ADJUSTED DOLLARS)"]
[null,"Universe:  FAMILIES"]
[]
[]
[null,null,"Atkinson and Gilmanton Grant",null,"Bean's Grant",null,"Bean's Purchase",null,"Berlin",null,"Cambridge",null,"Carroll",null,"Chandler's Purchase",null,"Clarksville",null,"Colebrook",null,"Columbia",null,"Crawford's Purchase",null,"Cutt's Grant",null,"Dalton",null,"Dix's Grant",null,"Dixville",null,"Dummer",null,"Errol",null,"Erving's Location",null,"Gorham",null,"Greens Grant",null,"Hadley's Purchase",null,"Jefferson",null,"Kilkenny",null,"Lancaster",null,"Low and Burbank's Grant",null,"Martin's Location",null,"Milan",null,"Millsfield",null,"Northumberland",null,"Odell",null,"Pinkham's Grant",null,"Pittsburg",null,"Randolph",null,"Sargent's Purchase",null,"Second College Grant",null,"Shelburne",null,"Stark",null,"Stewartstown",null,"Stratford",null,"Success",null,"Thompson and Meserves Purchase",null,"Wentworth's Location",null,"Whitefield"]
[null,null,"Estimate","Margin Of Error","Estimate","Margin Of Error","Estimate","Margin Of Error","Estimate","Margin Of Error","Estimate","Margin Of Error","Estimate","Margin Of Error","Estimate","Margin Of Error","Estimate","Margin Of Error","Estimate","Margin Of Error","Estimate","Margin Of Error","Estimate","Margin Of Error","Estimate","Margin Of Error","Estimate","Margin Of Error","Estimate","Margin Of Error","Estimate","Margin Of Error","Estimate","Margin Of Error","Estimate","Margin Of Error","Estimate","Margin Of Error","Estimate","Margin Of Error","Estimate","Margin Of Error","Estimate","Margin Of Error","Estimate","Margin Of Error","Estimate","Margin Of Error","Estimate","Margin Of Error","Estimate","Margin Of Error","Estimate","Margin Of Error","Estimate","Margin Of Error","Estimate","Margin Of Error","Estimate","Margin Of Error","Estimate","Margin Of Error","Estimate","Margin Of Error","Estimate","Margin Of Error","Estimate","Margin Of Error","Estimate","Margin Of Error","Estimate","Margin Of Error","Estimate","Margin Of Error","Estimate","Margin Of Error","Estimate","Margin Of Error","Estimate","Margin Of Error","Estimate","Margin Of Error","Estimate","Margin Of Error","Estimate","Margin Of Error","Estimate","Margin Of Error"]
[null,"Median family income in the past 12 months","-","**","-","**","-","**",23954,2967,"-","**",38542,9313,"-","**",38393,3943,31667,8270,31250,5165,"-","**","-","**",34375,11216,"-","**","-","**",27917,2809,22500,12040,"-","**",38036,5168,"-","**","-","**",31719,2371,"-","**",32446,3367,"-","**","-","**",43088,3827,"-","**",31786,6740,"-","**","-","**",27228,15062,48750,27344,"-","**","-","**",36250,13327,27000,3082,29167,5989,20625,10282,"-","**","-","**","-","**",23194,19767]
[]
[]
[]
[]
[]
[]
[]
[]
[]
[]
[]
[]
[]
[]
[]
[]
[]
[null,"B19102. NON-FAMILY INCOME IN THE PAST 12 MONTHS (IN 2014 INFLATION-ADJUSTED DOLLARS)"]
[null,"Universe:  FAMILIES"]
[null,"Data Set: 2010-2014 American Community Survey 5-Year Estimates"]
[]
[null,null,"Atkinson and Gilmanton Grant",null,"Bean's Grant",null,"Bean's Purchase",null,"Berlin",null,"Cambridge",null,"Carroll",null,"Chandler's Purchase",null,"Clarksville",null,"Colebrook",null,"Columbia",null,"Crawford's Purchase",null,"Cutt's Grant",null,"Dalton",null,"Dix's Grant",null,"Dixville",null,"Dummer",null,"Errol",null,"Erving's Location",null,"Gorham",null,"Greens Grant",null,"Hadley's Purchase",null,"Jefferson",null,"Kilkenny",null,"Lancaster",null,"Low and Burbank's Grant",null,"Martin's Location",null,"Milan",null,"Millsfield",null,"Northumberland",null,"Odell",null,"Pinkham's Grant",null,"Pittsburg",null,"Randolph",null,"Sargent's Purchase",null,"Second College Grant",null,"Shelburne",null,"Stark",null,"Stewartstown",null,"Stratford",null,"Success",null,"Thompson and Meserves Purchase",null,"Wentworth's Location",null,"Whitefield"]
[null,null,"Estimate","Margin Of Error","Estimate","Margin Of Error","Estimate","Margin Of Error","Estimate","Margin Of Error","Estimate","Margin Of Error","Estimate","Margin Of Error","Estimate","Margin Of Error","Estimate","Margin Of Error","Estimate","Margin Of Error","Estimate","Margin Of Error","Estimate","Margin Of Error","Estimate","Margin Of Error","Estimate","Margin Of Error","Estimate","Margin Of Error","Estimate","Margin Of Error","Estimate","Margin Of Error","Estimate","Margin Of Error","Estimate","Margin Of Error","Estimate","Margin Of Error","Estimate","Margin Of Error","Estimate","Margin Of Error","Estimate","Margin Of Error","Estimate","Margin Of Error","Estimate","Margin Of Error","Estimate","Margin Of Error","Estimate","Margin Of Error","Estimate","Margin Of Error","Estimate","Margin Of Error","Estimate","Margin Of Error","Estimate","Margin Of Error","Estimate","Margin Of Error","Estimate","Margin Of Error","Estimate","Margin Of Error","Estimate","Margin Of Error","Estimate","Margin Of Error","Estimate","Margin Of Error","Estimate","Margin Of Error","Estimate","Margin Of Error","Estimate","Margin Of Error","Estimate","Margin Of Error","Estimate","Margin Of Error","Estimate","Margin Of Error","Estimate","Margin Of Error"]
[null,"Total:",0,11,0,11,0,11,1649,264,2,3,139,49,0,11,46,17,406,75,88,26,0,11,0,11,112,39,4,6,3,6,32,12,106,26,0,11,382,93,0,11,0,11,0,11,0,11,621,135,0,11,0,11,7,8,6,7,0,11,0,11,0,11,176,49,50,24,0,11,0,11,47,19,91,28,145,43,0,11,0,11,0,11,21,19,469,94]
[null,"Less than $10,000",0,11,0,11,0,11,243,103,0,11,6,6,0,11,0,11,49,31,20,14,0,11,0,11,23,20,0,11,0,11,2,3,5,6,0,11,31,40,0,11,0,11,0,11,0,11,54,33,0,11,0,11,0,11,0,11,0,11,0,11,0,11,22,18,0,11,0,11,0,11,3,4,21,11,31,23,0,11,0,11,0,11,12,15,29,30]
[null,"$10,000 to $14,999",0,11,0,11,0,11,350,109,0,11,22,18,0,11,6,6,92,50,14,12,0,11,0,11,9,8,0,11,0,11,0,11,27,15,0,11,38,40,0,11,0,11,0,11,0,11,77,47,0,11,0,11,0,11,0,11,0,11,0,11,0,11,23,15,13,10,0,11,0,11,4,5,2,3,25,23,0,11,0,11,0,11,0,11,99,39]
[null,"$15,000 to $19,999",0,11,0,11,0,11,191,90,0,11,12,12,0,11,14,8,67,40,15,8,0,11,0,11,12,11,0,11,0,11,1,3,19,11,0,11,55,32,0,11,0,11,0,11,0,11,54,40,0,11,0,11,0,11,0,11,0,11,0,11,0,11,17,11,7,8,0,11,0,11,7,5,7,6,19,12,0,11,0,11,0,11,0,11,94,49]
[null,"$20,000 to $24,999",0,11,0,11,0,11,163,68,0,11,6,9,0,11,4,5,11,12,13,11,0,11,0,11,28,21,0,11,0,11,10,8,20,15,0,11,80,56,0,11,0,11,0,11,0,11,103,73,0,11,0,11,0,11,0,11,0,11,0,11,0,11,31,24,4,4,0,11,0,11,3,5,22,16,12,10,0,11,0,11,0,11,1,3,46,35]
[null,"$25,000 to $29,999",0,11,0,11,0,11,85,42,2,3,17,16,0,11,10,11,18,15,9,11,0,11,0,11,6,11,0,11,0,11,3,6,6,8,0,11,48,45,0,11,0,11,0,11,0,11,64,54,0,11,0,11,2,3,2,3,0,11,0,11,0,11,7,7,1,3,0,11,0,11,2,4,4,5,22,24,0,11,0,11,0,11,0,11,36,30]
[null,"$30,000 to $34,999",0,11,0,11,0,11,164,66,0,11,2,4,0,11,2,3,22,17,0,11,0,11,0,11,0,11,0,11,0,11,5,4,10,9,0,11,24,21,0,11,0,11,0,11,0,11,95,69,0,11,0,11,0,11,4,6,0,11,0,11,0,11,15,18,7,6,0,11,0,11,4,5,0,11,12,17,0,11,0,11,0,11,0,11,37,26]
[null,"$35,000 to $39,999",0,11,0,11,0,11,103,54,0,11,6,7,0,11,4,6,22,16,9,10,0,11,0,11,0,11,4,6,3,6,7,6,0,11,0,11,8,12,0,11,0,11,0,11,0,11,10,16,0,11,0,11,0,11,0,11,0,11,0,11,0,11,0,11,0,11,0,11,0,11,4,5,16,16,12,11,0,11,0,11,0,11,0,11,5,7]
[null,"$40,000 to $44,999",0,11,0,11,0,11,34,27,0,11,0,11,0,11,0,11,16,17,0,11,0,11,0,11,8,13,0,11,0,11,2,3,0,11,0,11,36,33,0,11,0,11,0,11,0,11,0,11,0,11,0,11,0,11,0,11,0,11,0,11,0,11,12,10,0,11,0,11,0,11,2,3,4,6,4,6,0,11,0,11,0,11,7,10,21,23]
[null,"$45,000 to $49,999",0,11,0,11,0,11,30,22,0,11,21,19,0,11,0,11,17,16,2,3,0,11,0,11,7,8,0,11,0,11,0,11,1,3,0,11,17,18,0,11,0,11,0,11,0,11,34,45,0,11,0,11,5,7,0,11,0,11,0,11,0,11,5,8,1,3,0,11,0,11,6,7,0,11,0,11,0,11,0,11,0,11,0,11,49,35]
[null,"$50,000 to $59,999",0,11,0,11,0,11,120,67,0,11,5,8,0,11,3,4,12,12,0,11,0,11,0,11,3,4,0,11,0,11,1,3,10,11,0,11,18,16,0,11,0,11,0,11,0,11,38,32,0,11,0,11,0,11,0,11,0,11,0,11,0,11,14,16,1,3,0,11,0,11,0,11,0,11,0,11,0,11,0,11,0,11,1,4,28,28]
[null,"$60,000 to $74,999",0,11,0,11,0,11,42,33,0,11,14,16,0,11,0,11,45,30,0,11,0,11,0,11,16,16,0,11,0,11,0,11,2,5,0,11,14,14,0,11,0,11,0,11,0,11,35,28,0,11,0,11,0,11,0,11,0,11,0,11,0,11,0,11,6,7,0,11,0,11,5,5,2,4,3,5,0,11,0,11,0,11,0,11,8,9]
[null,"$75,000 to $99,999",0,11,0,11,0,11,91,43,0,11,21,29,0,11,3,4,7,10,3,4,0,11,0,11,0,11,0,11,0,11,0,11,3,4,0,11,7,11,0,11,0,11,0,11,0,11,36,43,0,11,0,11,0,11,0,11,0,11,0,11,0,11,19,15,3,3,0,11,0,11,5,7,2,3,0,11,0,11,0,11,0,11,0,11,12,12]
[null,"$100,000 to $124,999",0,11,0,11,0,11,11,29,0,11,7,10,0,11,0,11,10,12,3,4,0,11,0,11,0,11,0,11,0,11,0,11,3,4,0,11,6,10,0,11,0,11,0,11,0,11,21,23,0,11,0,11,0,11,0,11,0,11,0,11,0,11,0,11,2,5,0,11,0,11,1,2,0,11,0,11,0,11,0,11,0,11,0,11,0,11]
[null,"$125,000 to $149,999",0,11,0,11,0,11,12,19,0,11,0,11,0,11,0,11,7,11,0,11,0,11,0,11,0,11,0,11,0,11,0,11,0,11,0,11,0,11,0,11,0,11,0,11,0,11,0,11,0,11,0,11,0,11,0,11,0,11,0,11,0,11,0,11,0,11,0,11,0,11,0,11,0,11,0,11,0,11,0,11,0,11,0,11,0,11]
[null,"$150,000 to $199,999",0,11,0,11,0,11,10,17,0,11,0,11,0,11,0,11,11,12,0,11,0,11,0,11,0,11,0,11,0,11,0,11,0,11,0,11,0,11,0,11,0,11,0,11,0,11,0,11,0,11,0,11,0,11,0,11,0,11,0,11,0,11,0,11,5,5,0,11,0,11,1,5,11,11,5,5,0,11,0,11,0,11,0,11,5,7]
[null,"$200,000 or more",0,11,0,11,0,11,0,15,0,11,0,11,0,11,0,11,0,11,0,11,0,11,0,11,0,11,0,11,0,11,1,3,0,11,0,11,0,11,0,11,0,11,0,11,0,11,0,11,0,11,0,11,0,11,0,11,0,11,0,11,0,11,11,16,0,11,0,11,0,11,0,11,0,11,0,11,0,11,0,11,0,11,0,11,0,11]
[]
[]
[null,"B19112. MEDIAN NON-FAMILY INCOME IN THE PAST 12 MONTHS (IN 2014 INFLATION-ADJUSTED DOLLARS)"]
[null,"Universe:  FAMILIES"]
[null,"Data Set: 2010-2014 American Community Survey 5-Year Estimates"]
[]
[null,null,"Atkinson and Gilmanton Grant",null,"Bean's Grant",null,"Bean's Purchase",null,"Berlin",null,"Cambridge",null,"Carroll",null,"Chandler's Purchase",null,"Clarksville",null,"Colebrook",null,"Columbia",null,"Crawford's Purchase",null,"Cutt's Grant",null,"Dalton",null,"Dix's Grant",null,"Dixville",null,"Dummer",null,"Errol",null,"Erving's Location",null,"Gorham",null,"Greens Grant",null,"Hadley's Purchase",null,"Jefferson",null,"Kilkenny",null,"Lancaster",null,"Low and Burbank's Grant",null,"Martin's Location",null,"Milan",null,"Millsfield",null,"Northumberland",null,"Odell",null,"Pinkham's Grant",null,"Pittsburg",null,"Randolph",null,"Sargent's Purchase",null,"Second College Grant",null,"Shelburne",null,"Stark",null,"Stewartstown",null,"Stratford",null,"Success",null,"Thompson and Meserves Purchase",null,"Wentworth's Location",null,"Whitefield"]
[null,null,"Estimate","Margin Of Error","Estimate","Margin Of Error","Estimate","Margin Of Error","Estimate","Margin Of Error","Estimate","Margin Of Error","Estimate","Margin Of Error","Estimate","Margin Of Error","Estimate","Margin Of Error","Estimate","Margin Of Error","Estimate","Margin Of Error","Estimate","Margin Of Error","Estimate","Margin Of Error","Estimate","Margin Of Error","Estimate","Margin Of Error","Estimate","Margin Of Error","Estimate","Margin Of Error","Estimate","Margin Of Error","Estimate","Margin Of Error","Estimate","Margin Of Error","Estimate","Margin Of Error","Estimate","Margin Of Error","Estimate","Margin Of Error","Estimate","Margin Of Error","Estimate","Margin Of Error","Estimate","Margin Of Error","Estimate","Margin Of Error","Estimate","Margin Of Error","Estimate","Margin Of Error","Estimate","Margin Of Error","Estimate","Margin Of Error","Estimate","Margin Of Error","Estimate","Margin Of Error","Estimate","Margin Of Error","Estimate","Margin Of Error","Estimate","Margin Of Error","Estimate","Margin Of Error","Estimate","Margin Of Error","Estimate","Margin Of Error","Estimate","Margin Of Error","Estimate","Margin Of Error","Estimate","Margin Of Error","Estimate","Margin Of Error","Estimate","Margin Of Error"]
[null,"Median family income in the past 12 months","-","**","-","**","-","**",21511,4331,"-","**",38125,25896,"-","**",22500,7473,19632,9210,18214,4948,"-","**","-","**",23182,4679,"-","**","-","**",28750,7614,20556,4233,"-","**",24309,2950,"-","**","-","**","-","**","-","**",26061,5636,"-","**","-","**","-","**","-","**","-","**","-","**","-","**",24432,8462,30000,11469,"-","**","-","**",35625,12058,23375,6150,17426,10274,"-","**","-","**","-","**",9625,42162,20845,3922]
[]
[]
[null,"B19102. NON-FAMILY INCOME IN THE PAST 12 MONTHS (IN 2009 INFLATION-ADJUSTED DOLLARS)"]
[null,"Universe:  FAMILIES"]
[null,"Data Set: 2005-2009 American Community Survey 5-Year Estimates"]
[]
[null,null,"Atkinson and Gilmanton Grant",null,"Bean's Grant",null,"Bean's Purchase",null,"Berlin",null,"Cambridge",null,"Carroll",null,"Chandler's Purchase",null,"Clarksville",null,"Colebrook",null,"Columbia",null,"Crawford's Purchase",null,"Cutt's Grant",null,"Dalton",null,"Dix's Grant",null,"Dixville",null,"Dummer",null,"Errol",null,"Erving's Location",null,"Gorham",null,"Greens Grant",null,"Hadley's Purchase",null,"Jefferson",null,"Kilkenny",null,"Lancaster",null,"Low and Burbank's Grant",null,"Martin's Location",null,"Milan",null,"Millsfield",null,"Northumberland",null,"Odell",null,"Pinkham's Grant",null,"Pittsburg",null,"Randolph",null,"Sargent's Purchase",null,"Second College Grant",null,"Shelburne",null,"Stark",null,"Stewartstown",null,"Stratford",null,"Success",null,"Thompson and Meserves Purchase",null,"Wentworth's Location",null,"Whitefield"]
[null,null,"Estimate","Margin Of Error","Estimate","Margin Of Error","Estimate","Margin Of Error","Estimate","Margin Of Error","Estimate","Margin Of Error","Estimate","Margin Of Error","Estimate","Margin Of Error","Estimate","Margin Of Error","Estimate","Margin Of Error","Estimate","Margin Of Error","Estimate","Margin Of Error","Estimate","Margin Of Error","Estimate","Margin Of Error","Estimate","Margin Of Error","Estimate","Margin Of Error","Estimate","Margin Of Error","Estimate","Margin Of Error","Estimate","Margin Of Error","Estimate","Margin Of Error","Estimate","Margin Of Error","Estimate","Margin Of Error","Estimate","Margin Of Error","Estimate","Margin Of Error","Estimate","Margin Of Error","Estimate","Margin Of Error","Estimate","Margin Of Error","Estimate","Margin Of Error","Estimate","Margin Of Error","Estimate","Margin Of Error","Estimate","Margin Of Error","Estimate","Margin Of Error","Estimate","Margin Of Error","Estimate","Margin Of Error","Estimate","Margin Of Error","Estimate","Margin Of Error","Estimate","Margin Of Error","Estimate","Margin Of Error","Estimate","Margin Of Error","Estimate","Margin Of Error","Estimate","Margin Of Error","Estimate","Margin Of Error","Estimate","Margin Of Error","Estimate","Margin Of Error"]
[null,"Total:",0,114,0,114,0,114,1810,280,0,114,89,38,0,114,65,29,550,120,102,43,0,114,0,114,117,43,0,114,0,114,27,14,31,15,0,114,473,103,0,114,0,114,84,39,0,114,281,90,0,114,0,114,143,34,4,5,256,61,0,114,0,114,123,37,39,21,0,114,0,114,37,16,76,39,118,39,218,56,0,114,0,114,15,10,358,78]
[null,"Less than $10,000",0,114,0,114,0,114,373,143,0,114,12,17,0,114,0,114,99,50,12,14,0,114,0,114,25,17,0,114,0,114,1,4,0,114,0,114,33,26,0,114,0,114,25,20,0,114,58,43,0,114,0,114,23,23,0,114,27,26,0,114,0,114,13,13,0,114,0,114,0,114,3,5,4,7,27,23,41,28,0,114,0,114,0,114,83,42]
[null,"$10,000 to $14,999",0,114,0,114,0,114,273,118,0,114,3,6,0,114,10,9,148,68,13,14,0,114,0,114,10,8,0,114,0,114,8,9,5,7,0,114,86,46,0,114,0,114,3,6,0,114,42,37,0,114,0,114,12,8,0,114,49,27,0,114,0,114,38,19,6,5,0,114,0,114,2,5,5,8,3,5,40,27,0,114,0,114,4,6,60,38]
[null,"$15,000 to $19,999",0,114,0,114,0,114,167,83,0,114,4,6,0,114,3,5,95,65,3,4,0,114,0,114,0,114,0,114,0,114,6,8,8,7,0,114,31,30,0,114,0,114,0,114,0,114,28,24,0,114,0,114,6,6,0,114,26,20,0,114,0,114,5,8,7,9,0,114,0,114,6,6,3,6,7,8,16,15,0,114,0,114,4,6,16,14]
[null,"$20,000 to $24,999",0,114,0,114,0,114,266,107,0,114,4,6,0,114,12,10,46,33,16,14,0,114,0,114,2,4,0,114,0,114,7,7,3,4,0,114,82,42,0,114,0,114,5,5,0,114,34,29,0,114,0,114,22,11,0,114,31,21,0,114,0,114,13,12,0,114,0,114,0,114,6,6,7,8,8,9,16,21,0,114,0,114,3,5,26,19]
[null,"$25,000 to $29,999",0,114,0,114,0,114,110,47,0,114,4,5,0,114,11,13,32,27,15,17,0,114,0,114,5,6,0,114,0,114,0,114,6,7,0,114,69,55,0,114,0,114,5,7,0,114,25,23,0,114,0,114,11,9,0,114,31,29,0,114,0,114,4,6,0,114,0,114,0,114,0,114,4,6,13,13,12,14,0,114,0,114,0,114,17,15]
[null,"$30,000 to $34,999",0,114,0,114,0,114,103,53,0,114,22,19,0,114,18,19,40,38,5,7,0,114,0,114,17,11,0,114,0,114,0,114,7,9,0,114,22,17,0,114,0,114,5,8,0,114,0,114,0,114,0,114,9,8,4,5,8,11,0,114,0,114,8,9,0,114,0,114,0,114,0,114,20,23,0,114,17,19,0,114,0,114,0,114,12,12]
[null,"$35,000 to $39,999",0,114,0,114,0,114,78,67,0,114,8,11,0,114,0,114,7,11,0,114,0,114,0,114,3,4,0,114,0,114,0,114,2,3,0,114,14,21,0,114,0,114,4,6,0,114,20,25,0,114,0,114,3,4,0,114,35,34,0,114,0,114,5,7,2,3,0,114,0,114,2,3,4,6,11,11,25,24,0,114,0,114,0,114,5,8]
[null,"$40,000 to $44,999",0,114,0,114,0,114,75,58,0,114,17,19,0,114,0,114,0,114,0,114,0,114,0,114,27,26,0,114,0,114,0,114,0,114,0,114,96,69,0,114,0,114,3,5,0,114,10,17,0,114,0,114,11,9,0,114,8,12,0,114,0,114,9,12,4,6,0,114,0,114,5,6,16,20,4,6,16,14,0,114,0,114,0,114,5,8]
[null,"$45,000 to $49,999",0,114,0,114,0,114,50,37,0,114,4,5,0,114,0,114,16,16,0,114,0,114,0,114,8,10,0,114,0,114,0,114,0,114,0,114,0,114,0,114,0,114,13,17,0,114,0,114,0,114,0,114,10,10,0,114,0,114,0,114,0,114,17,13,0,114,0,114,0,114,2,4,8,9,14,11,8,13,0,114,0,114,0,114,6,9]
[null,"$50,000 to $59,999",0,114,0,114,0,114,92,50,0,114,0,114,0,114,0,114,67,60,0,114,0,114,0,114,14,13,0,114,0,114,2,3,0,114,0,114,11,17,0,114,0,114,7,12,0,114,9,15,0,114,0,114,14,8,0,114,0,114,0,114,0,114,0,114,0,114,0,114,0,114,6,6,0,114,18,17,11,17,0,114,0,114,0,114,35,34]
[null,"$60,000 to $74,999",0,114,0,114,0,114,169,90,0,114,0,114,0,114,0,114,0,114,0,114,0,114,0,114,3,5,0,114,0,114,3,4,0,114,0,114,0,114,0,114,0,114,4,5,0,114,55,43,0,114,0,114,13,9,0,114,25,23,0,114,0,114,11,13,2,3,0,114,0,114,0,114,5,8,4,7,0,114,0,114,0,114,4,6,40,29]
[null,"$75,000 to $99,999",0,114,0,114,0,114,54,43,0,114,0,114,0,114,9,8,0,114,11,16,0,114,0,114,0,114,0,114,0,114,0,114,0,114,0,114,13,20,0,114,0,114,7,8,0,114,0,114,0,114,0,114,2,5,0,114,16,18,0,114,0,114,0,114,11,13,0,114,0,114,2,3,0,114,4,7,9,12,0,114,0,114,0,114,17,15]
[null,"$100,000 to $124,999",0,114,0,114,0,114,0,114,0,114,5,8,0,114,2,5,0,114,9,13,0,114,0,114,3,4,0,114,0,114,0,114,0,114,0,114,0,114,0,114,0,114,0,114,0,114,0,114,0,114,0,114,3,5,0,114,0,114,0,114,0,114,0,114,0,114,0,114,0,114,3,5,0,114,0,114,0,114,0,114,0,114,0,114,22,31]
[null,"$125,000 to $149,999",0,114,0,114,0,114,0,114,0,114,6,9,0,114,0,114,0,114,18,25,0,114,0,114,0,114,0,114,0,114,0,114,0,114,0,114,8,11,0,114,0,114,3,7,0,114,0,114,0,114,0,114,4,5,0,114,0,114,0,114,0,114,0,114,7,11,0,114,0,114,0,114,0,114,0,114,0,114,0,114,0,114,0,114,14,21]
[null,"$150,000 to $199,999",0,114,0,114,0,114,0,114,0,114,0,114,0,114,0,114,0,114,0,114,0,114,0,114,0,114,0,114,0,114,0,114,0,114,0,114,0,114,0,114,0,114,0,114,0,114,0,114,0,114,0,114,0,114,0,114,0,114,0,114,0,114,0,114,0,114,0,114,0,114,0,114,0,114,0,114,7,10,0,114,0,114,0,114,0,114]
[null,"$200,000 or more",0,114,0,114,0,114,0,114,0,114,0,114,0,114,0,114,0,114,0,114,0,114,0,114,0,114,0,114,0,114,0,114,0,114,0,114,8,13,0,114,0,114,0,114,0,114,0,114,0,114,0,114,0,114,0,114,0,114,0,114,0,114,0,114,0,114,0,114,0,114,0,114,0,114,5,7,0,114,0,114,0,114,0,114,0,114]
[]
[]
[null,"B19112. MEDIAN NON-FAMILY INCOME IN THE PAST 12 MONTHS (IN 2009 INFLATION-ADJUSTED DOLLARS)"]
[null,"Universe:  FAMILIES"]
[null,"Data Set: 2005-2009 American Community Survey 5-Year Estimates"]
[]
[null,null,"Atkinson and Gilmanton Grant",null,"Bean's Grant",null,"Bean's Purchase",null,"Berlin",null,"Cambridge",null,"Carroll",null,"Chandler's Purchase",null,"Clarksville",null,"Colebrook",null,"Columbia",null,"Crawford's Purchase",null,"Cutt's Grant",null,"Dalton",null,"Dix's Grant",null,"Dixville",null,"Dummer",null,"Errol",null,"Erving's Location",null,"Gorham",null,"Greens Grant",null,"Hadley's Purchase",null,"Jefferson",null,"Kilkenny",null,"Lancaster",null,"Low and Burbank's Grant",null,"Martin's Location",null,"Milan",null,"Millsfield",null,"Northumberland",null,"Odell",null,"Pinkham's Grant",null,"Pittsburg",null,"Randolph",null,"Sargent's Purchase",null,"Second College Grant",null,"Shelburne",null,"Stark",null,"Stewartstown",null,"Stratford",null,"Success",null,"Thompson and Meserves Purchase",null,"Wentworth's Location",null,"Whitefield"]
[null,null,"Esitimate","Margin Of Error","Esitimate","Margin Of Error","Esitimate","Margin Of Error","Esitimate","Margin Of Error","Esitimate","Margin Of Error","Esitimate","Margin Of Error","Esitimate","Margin Of Error","Esitimate","Margin Of Error","Esitimate","Margin Of Error","Esitimate","Margin Of Error","Esitimate","Margin Of Error","Esitimate","Margin Of Error","Esitimate","Margin Of Error","Esitimate","Margin Of Error","Esitimate","Margin Of Error","Esitimate","Margin Of Error","Esitimate","Margin Of Error","Esitimate","Margin Of Error","Esitimate","Margin Of Error","Esitimate","Margin Of Error","Esitimate","Margin Of Error","Esitimate","Margin Of Error","Esitimate","Margin Of Error","Esitimate","Margin Of Error","Esitimate","Margin Of Error","Esitimate","Margin Of Error","Esitimate","Margin Of Error","Esitimate","Margin Of Error","Esitimate","Margin Of Error","Esitimate","Margin Of Error","Esitimate","Margin Of Error","Esitimate","Margin Of Error","Esitimate","Margin Of Error","Esitimate","Margin Of Error","Esitimate","Margin Of Error","Esitimate","Margin Of Error","Esitimate","Margin Of Error","Esitimate","Margin Of Error","Esitimate","Margin Of Error","Esitimate","Margin Of Error","Esitimate","Margin Of Error","Esitimate","Margin Of Error","Esitimate","Margin Of Error"]
[null,"Median family income in the past 12 months","**","**","**","**","**","**",21494,2204,"**","**",33875,6756,"**","**",29205,6178,15805,1871,28000,32057,"**","**","**","**",34861,14480,"**","**","**","**",18125,4884,22083,9391,"**","**",25489,6765,"**","**","**","**",32000,21893,"**","**",21250,7990,"**","**","**","**",29432,8546,"**","**",24432,4360,"**","**","**","**",22656,8878,68125,70984,"**","**","**","**",36875,27882,32917,7568,35227,16246,23333,12197,"**","**","**","**",17188,31520,24118,13770]

{"sheet":"ACS_Table_B19049","index":38,"n_rows":56,"n_cols":88,"rows_kept":56,"cut":false,"hidden":true,"merged":[]}
[null,"B19049. MEDIAN HOUSEHOLD INCOME IN THE PAST 12 MONTHS (IN 2019 INFLATION-ADJUSTED DOLLARS) BY AGE OF HOUSEHOLDER "]
[null,"Universe:  HOUSEHOLDS"]
[null,"Data Set: 2015-2019 American Community Survey 5-Year Estimates"]
[]
[null,null,"Atkinson and Gilmanton Grant",null,"Bean's Grant",null,"Bean's Purchase",null,"Berlin",null,"Cambridge",null,"Carroll",null,"Chandler's Purchase",null,"Clarksville",null,"Colebrook",null,"Columbia",null,"Crawford's Purchase",null,"Cutt's Grant",null,"Dalton",null,"Dix's Grant",null,"Dixville",null,"Dummer",null,"Errol",null,"Erving's Location",null,"Gorham",null,"Greens Grant",null,"Hadley's Purchase",null,"Jefferson",null,"Kilkenny",null,"Lancaster",null,"Low and Burbank's Grant",null,"Martin's Location",null,"Milan",null,"Millsfield",null,"Northumberland",null,"Odell",null,"Pinkham's Grant",null,"Pittsburg",null,"Randolph",null,"Sargent's Purchase",null,"Second College Grant",null,"Shelburne",null,"Stark",null,"Stewartstown",null,"Stratford",null,"Success",null,"Thompson and Meserves Purchase",null,"Wentworth's Location",null,"Whitefield"]
[null,null,"Estimate","Margin Of Error","Estimate","Margin Of Error","Estimate","Margin Of Error","Estimate","Margin Of Error","Estimate","Margin Of Error","Estimate","Margin Of Error","Estimate","Margin Of Error","Estimate","Margin Of Error","Estimate","Margin Of Error","Estimate","Margin Of Error","Estimate","Margin Of Error","Estimate","Margin Of Error","Estimate","Margin Of Error","Estimate","Margin Of Error","Estimate","Margin Of Error","Estimate","Margin Of Error","Estimate","Margin Of Error","Estimate","Margin Of Error","Estimate","Margin Of Error","Estimate","Margin Of Error","Estimate","Margin Of Error","Estimate","Margin Of Error","Estimate","Margin Of Error","Estimate","Margin Of Error","Estimate","Margin Of Error","Estimate","Margin Of Error","Estimate","Margin Of Error","Estimate","Margin Of Error","Estimate","Margin Of Error","Estimate","Margin Of Error","Estimate","Margin Of Error","Estimate","Margin Of Error","Estimate","Margin Of Error","Estimate","Margin Of Error","Estimate","Margin Of Error","Estimate","Margin Of Error","Estimate","Margin Of Error","Estimate","Margin Of Error","Estimate","Margin Of Error","Estimate","Margin Of Error","Estimate","Margin Of Error","Estimate","Margin Of Error","Estimate","Margin Of Error"]
[null,"Median household income in the past 12 months"]
[null,"Total:","-","**","-","**","-","**",39130,3380,"-","**",62917,7336,"-","**",50625,21837,42500,10195,44250,7402,"-","**","-","**",53618,2772,"-","**","-","**",51875,10554,56458,16233,"-","**",57926,6201,"-","**","-","**",55625,9839,"-","**",55192,10259,"-","**","-","**",62644,13198,"-","**",45000,6247,"-","**","-","**",44448,9511,84000,20452,"-","**","-","**",68333,9578,47396,5139,47000,16681,34219,10230,"-","**","-","**",25000,15067,47969,9159]
[null,"Householder under 25 years","-","**","-","**","-","**",33083,13064,"-","**","-","**","-","**","-","**",26250,15014,"-","**","-","**","-","**","-","**","-","**","-","**","-","**","-","**","-","**","-","**","-","**","-","**","-","**","-","**","-","**","-","**","-","**","-","**","-","**",42000,41816,"-","**","-","**","-","**","-","**","-","**","-","**","-","**","-","**","-","**","-","**","-","**","-","**","-","**","-","**"]
[null,"Householder 25 to 44 years","-","**","-","**","-","**",48250,4286,"-","**",59167,6635,"-","**","-","**",81250,23524,52500,12105,"-","**","-","**",67917,10778,"-","**","-","**",72917,47517,68500,17207,"-","**",81094,16774,"-","**","-","**",70750,1848,"-","**",58729,5854,"-","**","-","**",50536,9795,"-","**",51250,27245,"-","**","-","**","-","**",84375,57619,"-","**","-","**",67188,18559,95455,11753,59196,43197,43000,30362,"-","**","-","**","-","**",75733,14132]
[null,"Householder 45 to 64 years","-","**","-","**","-","**",51641,8436,"-","**",76250,31799,"-","**",43750,28302,46458,17495,47083,16278,"-","**","-","**",54828,5542,"-","**","-","**",63750,20111,67500,37744,"-","**",68750,15063,"-","**","-","**",61719,37050,"-","**",65500,40702,"-","**","-","**",68839,8668,"-","**",58000,14723,"-","**","-","**",53429,2088,95313,30346,"-","**","-","**",69500,25797,61250,23051,84135,18898,41771,12324,"-","**","-","**","-","**",56875,12347]
[null,"Householder 65 years and over","-","**","-","**","-","**",24140,1835,"-","**",52750,18606,"-","**",58438,33026,33565,7852,36250,6228,"-","**","-","**",34063,21637,"-","**","-","**",41875,10974,28250,17570,"-","**",37273,5300,"-","**","-","**",42778,8126,"-","**",40337,10473,"-","**","-","**",56406,14677,"-","**",31458,5772,"-","**","-","**",42031,5828,81875,29302,"-","**","-","**",68750,17907,40417,9836,39803,6877,26250,11165,"-","**","-","**",24063,5823,34567,8013]
[]
[]
[]
[]
[]
[]
[]
[]
[]
[]
[]
[]
[]
[]
[]
[]
[]
[null,"B19049. MEDIAN HOUSEHOLD INCOME IN THE PAST 12 MONTHS (IN 2014 INFLATION-ADJUSTED DOLLARS) BY AGE OF HOUSEHOLDER "]
[null,"Universe:  HOUSEHOLDS"]
[null,"Data Set: 2010-2014 American Community Survey 5-Year Estimates"]
[]
[null,null,"Atkinson and Gilmanton Grant",null,"Bean's Grant",null,"Bean's Purchase",null,"Berlin",null,"Cambridge",null,"Carroll",null,"Chandler's Purchase",null,"Clarksville",null,"Colebrook",null,"Columbia",null,"Crawford's Purchase",null,"Cutt's Grant",null,"Dalton",null,"Dix's Grant",null,"Dixville",null,"Dummer",null,"Errol",null,"Erving's Location",null,"Gorham",null,"Greens Grant",null,"Hadley's Purchase",null,"Jefferson",null,"Kilkenny",null,"Lancaster",null,"Low and Burbank's Grant",null,"Martin's Location",null,"Milan",null,"Millsfield",null,"Northumberland",null,"Odell",null,"Pinkham's Grant",null,"Pittsburg",null,"Randolph",null,"Sargent's Purchase",null,"Second College Grant",null,"Shelburne",null,"Stark",null,"Stewartstown",null,"Stratford",null,"Success",null,"Thompson and Meserves Purchase",null,"Wentworth's Location",null,"Whitefield"]
[null,null,"Estimate","Margin Of Error","Estimate","Margin Of Error","Estimate","Margin Of Error","Estimate","Margin Of Error","Estimate","Margin Of Error","Estimate","Margin Of Error","Estimate","Margin Of Error","Estimate","Margin Of Error","Estimate","Margin Of Error","Estimate","Margin Of Error","Estimate","Margin Of Error","Estimate","Margin Of Error","Estimate","Margin Of Error","Estimate","Margin Of Error","Estimate","Margin Of Error","Estimate","Margin Of Error","Estimate","Margin Of Error","Estimate","Margin Of Error","Estimate","Margin Of Error","Estimate","Margin Of Error","Estimate","Margin Of Error","Estimate","Margin Of Error","Estimate","Margin Of Error","Estimate","Margin Of Error","Estimate","Margin Of Error","Estimate","Margin Of Error","Estimate","Margin Of Error","Estimate","Margin Of Error","Estimate","Margin Of Error","Estimate","Margin Of Error","Estimate","Margin Of Error","Estimate","Margin Of Error","Estimate","Margin Of Error","Estimate","Margin Of Error","Estimate","Margin Of Error","Estimate","Margin Of Error","Estimate","Margin Of Error","Estimate","Margin Of Error","Estimate","Margin Of Error","Estimate","Margin Of Error","Estimate","Margin Of Error","Estimate","Margin Of Error","Estimate","Margin Of Error"]
[null,"Median household income in the past 12 months"]
[null,"Total:","-","**","-","**","-","**",36358,3279,26250,26723,55192,10581,"-","**",27917,4605,45788,3945,51875,9694,"-","**","-","**",46324,6680,"-","**","-","**",39271,6530,33750,14593,"-","**",51838,7145,"-","**","-","**","-","**","-","**",47292,11780,"-","**","-","**",45250,8498,33750,6242,"-","**","-","**","-","**",38000,8350,71375,6465,"-","**","-","**",54063,6469,39191,5027,28661,5941,"-","**","-","**","-","**",41964,25548,44042,8079]
[null,"Householder under 25 years","-","**","-","**","-","**",21136,11227,"-","**",45875,20032,"-","**","-","**",11953,22353,8750,39154,"-","**","-","**","-","**","-","**","-","**","-","**","-","**","-","**",30875,42736,"-","**","-","**","-","**","-","**",33550,29540,"-","**","-","**","-","**","-","**","-","**","-","**","-","**","-","**","-","**","-","**","-","**","-","**","-","**","-","**","-","**","-","**","-","**","-","**",48542,35333]
[null,"Householder 25 to 44 years","-","**","-","**","-","**",41031,6354,"-","**",52000,30206,"-","**",38393,25713,50598,10585,58125,18835,"-","**","-","**",53333,21137,"-","**","-","**",39750,69898,58125,14568,"-","**",74100,11469,"-","**","-","**","-","**","-","**",60071,14517,"-","**","-","**","-","**","-","**","-","**","-","**","-","**",27750,9735,70625,17130,"-","**","-","**",53125,29224,53571,21812,41250,16082,"-","**","-","**","-","**","-","**",45833,17313]
[null,"Householder 45 to 64 years","-","**","-","**","-","**",57700,14961,"-","**",59792,28089,"-","**",26250,6511,55568,13823,64375,19113,"-","**","-","**",47500,12963,"-","**","-","**",71250,26918,42500,25265,"-","**",61250,17087,"-","**","-","**","-","**","-","**",51743,16840,"-","**","-","**","-","**","-","**","-","**","-","**","-","**",45536,7694,79583,8898,"-","**","-","**",60625,28707,41500,11400,23646,7960,"-","**","-","**","-","**",60250,13190,43304,9862]
[null,"Householder 65 years and over","-","**","-","**","-","**",26531,3953,"-","**",43750,34309,"-","**",29375,23039,34833,9211,25625,12666,"-","**","-","**",40250,8513,"-","**","-","**",28750,10231,20893,4789,"-","**",25781,3324,"-","**","-","**","-","**","-","**",33583,4612,"-","**","-","**","-","**","-","**","-","**","-","**","-","**",38571,6060,60000,20980,"-","**","-","**",39583,8140,23977,13515,33542,14157,"-","**","-","**","-","**",41250,14281,32396,25845]
[]
[]
[]
[null,"B19049. MEDIAN HOUSEHOLD INCOME IN THE PAST 12 MONTHS (IN 2009 INFLATION-ADJUSTED DOLLARS) BY AGE OF HOUSEHOLDER "]
[null,"Universe:  HOUSEHOLDS"]
[null,"Data Set: 2005-2009 American Community Survey 5-Year Estimates"]
[]
[null,null,"Atkinson and Gilmanton Grant",null,"Bean's Grant",null,"Bean's Purchase",null,"Berlin",null,"Cambridge",null,"Carroll",null,"Chandler's Purchase",null,"Clarksville",null,"Colebrook",null,"Columbia",null,"Crawford's Purchase",null,"Cutt's Grant",null,"Dalton",null,"Dix's Grant",null,"Dixville",null,"Dummer",null,"Errol",null,"Erving's Location",null,"Gorham",null,"Greens Grant",null,"Hadley's Purchase",null,"Jefferson",null,"Kilkenny",null,"Lancaster",null,"Low and Burbank's Grant",null,"Martin's Location",null,"Milan",null,"Millsfield",null,"Northumberland",null,"Odell",null,"Pinkham's Grant",null,"Pittsburg",null,"Randolph",null,"Sargent's Purchase",null,"Second College Grant",null,"Shelburne",null,"Stark",null,"Stewartstown",null,"Stratford",null,"Success",null,"Thompson and Meserves Purchase",null,"Wentworth's Location",null,"Whitefield"]
[null,null,"Estimate","Margin Of Error","Estimate","Margin Of Error","Estimate","Margin Of Error","Estimate","Margin Of Error","Estimate","Margin Of Error","Estimate","Margin Of Error","Estimate","Margin Of Error","Estimate","Margin Of Error","Estimate","Margin Of Error","Estimate","Margin Of Error","Estimate","Margin Of Error","Estimate","Margin Of Error","Estimate","Margin Of Error","Estimate","Margin Of Error","Estimate","Margin Of Error","Estimate","Margin Of Error","Estimate","Margin Of Error","Estimate","Margin Of Error","Estimate","Margin Of Error","Estimate","Margin Of Error","Estimate","Margin Of Error","Estimate","Margin Of Error","Estimate","Margin Of Error","Estimate","Margin Of Error","Estimate","Margin Of Error","Estimate","Margin Of Error","Estimate","Margin Of Error","Estimate","Margin Of Error","Estimate","Margin Of Error","Estimate","Margin Of Error","Estimate","Margin Of Error","Estimate","Margin Of Error","Estimate","Margin Of Error","Estimate","Margin Of Error","Estimate","Margin Of Error","Estimate","Margin Of Error","Estimate","Margin Of Error","Estimate","Margin Of Error","Estimate","Margin Of Error","Estimate","Margin Of Error","Estimate","Margin Of Error","Estimate","Margin Of Error","Estimate","Margin Of Error"]
[null,"Median household income in the past 12 months"]
[null,"Total:","**","**","**","**","**","**",40199,2764,"**","**",52500,19195,"**","**",34464,4247,29643,6354,56161,5642,"**","**","**","**",49313,7928,"**","**",58750,13016,53090,10457,39531,22476,"**","**",41702,1504,"**","**","**","**",61250,4347,"**","**",53292,4737,"**","**","**","**",55433,5786,"**","**",39250,7285,"**","**","**","**",44808,6365,79167,17553,"**","**","**","**",68750,18708,40972,4670,39773,8077,33472,4089,"**","**","**","**",25625,10134,39211,15322]
[null,"Householder under 25 years","**","**","**","**","**","**",22266,13494,"**","**","**","**","**","**","**","**",26473,36461,"**","**","**","**","**","**",43839,2799,"**","**","**","**","**","**","**","**","**","**","**","**","**","**","**","**","**","**","**","**",19063,11953,"**","**","**","**",32222,32395,"**","**",21000,10338,"**","**","**","**","**","**","**","**","**","**","**","**","**","**",38393,17255,"**","**",16875,47234,"**","**","**","**","**","**",36500,41022]
[null,"Householder 25 to 44 years","**","**","**","**","**","**",47957,8420,"**","**",69773,27338,"**","**",43750,7831,36705,10118,55227,23541,"**","**","**","**",55417,15438,"**","**",58750,13016,60250,30091,83542,30435,"**","**",41657,1116,"**","**","**","**",68036,26598,"**","**",60000,10400,"**","**","**","**",57212,6271,"**","**",32134,15788,"**","**","**","**",53125,5614,35000,45814,"**","**","**","**",108906,47145,34028,6881,53438,8774,34911,7149,"**","**","**","**","**","**",50923,3962]
[null,"Householder 45 to 64 years","**","**","**","**","**","**",53889,5016,"**","**",45625,23590,"**","**",29219,12745,51250,16982,76750,25469,"**","**","**","**",56917,7429,"**","**","**","**",54549,16405,32083,41285,"**","**",57647,13811,"**","**","**","**",55179,11468,"**","**",58906,13729,"**","**","**","**",68906,5572,"**","**",53650,9855,"**","**","**","**",47031,13894,83750,7787,"**","**","**","**",69375,14280,44028,17088,48000,7577,33333,11446,"**","**","**","**",23750,63967,47083,25333]
[null,"Householder 65 years and over","**","**","**","**","**","**",24318,4550,"**","**",41667,18274,"**","**",33563,1204,16550,6559,30938,11649,"**","**","**","**",29643,6439,"**","**","**","**",24583,6494,31094,6006,"**","**",21815,4124,"**","**","**","**",61458,16905,"**","**",36711,15250,"**","**","**","**",33438,5427,"**","**",27946,12330,"**","**","**","**",27250,5896,59500,46788,"**","**","**","**",37188,33410,32250,27814,24750,7946,24375,17028,"**","**","**","**",25625,10776,15250,22691]

{"sheet":"ACS_Table_B25118","index":39,"n_rows":191,"n_cols":88,"rows_kept":191,"cut":false,"hidden":true,"merged":[]}
[null,"B25118. TENURE BY HOUSEHOLD INCOME IN THE PAST 12 MONTHS (IN 2019 INFLATION-ADJUSTED DOLLARS) "]
[null,"Universe:  OCCUPIED HOUSING UNITS"]
[null,"Data Set: 2015-2019 American Community Survey 5-Year Estimates"]
[]
[null,null,"Atkinson and Gilmanton Grant",null,"Bean's Grant",null,"Bean's Purchase",null,"Berlin",null,"Cambridge",null,"Carroll",null,"Chandler's Purchase",null,"Clarksville",null,"Colebrook",null,"Columbia",null,"Crawford's Purchase",null,"Cutt's Grant",null,"Dalton",null,"Dix's Grant",null,"Dixville",null,"Dummer",null,"Errol",null,"Erving's Location",null,"Gorham",null,"Greens Grant",null,"Hadley's Purchase",null,"Jefferson",null,"Kilkenny",null,"Lancaster",null,"Low and Burbank's Grant",null,"Martin's Location",null,"Milan",null,"Millsfield",null,"Northumberland",null,"Odell",null,"Pinkham's Grant",null,"Pittsburg",null,"Randolph",null,"Sargent's Purchase",null,"Second College Grant",null,"Shelburne",null,"Stark",null,"Stewartstown",null,"Stratford",null,"Success",null,"Thompson and Meserves Purchase",null,"Wentworth's Location",null,"Whitefield"]
[null,null,"Estimate","Margin Of Error","Estimate","Margin Of Error","Estimate","Margin Of Error","Estimate","Margin Of Error","Estimate","Margin Of Error","Estimate","Margin Of Error","Estimate","Margin Of Error","Estimate","Margin Of Error","Estimate","Margin Of Error","Estimate","Margin Of Error","Estimate","Margin Of Error","Estimate","Margin Of Error","Estimate","Margin Of Error","Estimate","Margin Of Error","Estimate","Margin Of Error","Estimate","Margin Of Error","Estimate","Margin Of Error","Estimate","Margin Of Error","Estimate","Margin Of Error","Estimate","Margin Of Error","Estimate","Margin Of Error","Estimate","Margin Of Error","Estimate","Margin Of Error","Estimate","Margin Of Error","Estimate","Margin Of Error","Estimate","Margin Of Error","Estimate","Margin Of Error","Estimate","Margin Of Error","Estimate","Margin Of Error","Estimate","Margin Of Error","Estimate","Margin Of Error","Estimate","Margin Of Error","Estimate","Margin Of Error","Estimate","Margin Of Error","Estimate","Margin Of Error","Estimate","Margin Of Error","Estimate","Margin Of Error","Estimate","Margin Of Error","Estimate","Margin Of Error","Estimate","Margin Of Error","Estimate","Margin Of Error","Estimate","Margin Of Error","Estimate","Margin Of Error"]
[null,"Total:",0,11,0,11,0,11,3977,201,0,11,324,49,0,11,141,40,954,84,316,51,0,11,0,11,424,64,0,11,1,4,127,25,113,29,0,11,1243,99,0,11,0,11,396,58,0,11,1366,149,0,11,0,11,589,53,4,6,984,88,0,11,0,11,423,57,196,39,0,11,0,11,200,30,233,40,418,64,277,49,0,11,0,11,16,9,1046,111]
[null,"Owner occupied:",0,11,0,11,0,11,2228,192,0,11,252,49,0,11,130,39,698,79,267,47,0,11,0,11,364,62,0,11,1,4,114,24,95,27,0,11,960,80,0,11,0,11,346,48,0,11,1019,108,0,11,0,11,499,49,4,6,660,86,0,11,0,11,336,50,161,36,0,11,0,11,163,29,198,39,370,54,206,41,0,11,0,11,14,9,643,78]
[null,"Less than $5,000",0,11,0,11,0,11,42,29,0,11,4,4,0,11,0,11,4,6,2,3,0,11,0,11,5,6,0,11,0,11,1,3,0,11,0,11,0,11,0,11,0,11,8,7,0,11,15,18,0,11,0,11,16,13,0,11,0,11,0,11,0,11,0,11,2,3,0,11,0,11,1,3,6,6,3,4,14,15,0,11,0,11,0,11,0,11]
[null,"$5,000 to $9,999",0,11,0,11,0,11,41,33,0,11,4,4,0,11,1,2,7,9,8,8,0,11,0,11,17,17,0,11,0,11,0,11,0,11,0,11,20,21,0,11,0,11,3,4,0,11,7,11,0,11,0,11,3,5,0,11,5,7,0,11,0,11,0,11,0,11,0,11,0,11,0,11,11,11,3,4,10,7,0,11,0,11,0,11,11,11]
[null,"$10,000 to $14,999",0,11,0,11,0,11,111,64,0,11,7,10,0,11,2,3,24,15,9,7,0,11,0,11,9,8,0,11,0,11,6,10,23,15,0,11,10,15,0,11,0,11,0,11,0,11,30,24,0,11,0,11,6,5,0,11,16,13,0,11,0,11,28,24,5,5,0,11,0,11,1,2,4,5,7,10,24,17,0,11,0,11,0,11,28,18]
[null,"$15,000 to $19,999",0,11,0,11,0,11,55,35,0,11,4,6,0,11,2,3,42,29,10,10,0,11,0,11,5,7,0,11,0,11,2,4,1,3,0,11,74,49,0,11,0,11,5,6,0,11,40,34,0,11,0,11,9,7,0,11,52,28,0,11,0,11,9,8,2,3,0,11,0,11,2,3,10,9,22,17,16,15,0,11,0,11,2,3,17,15]
[null,"$20,000 to $24,999",0,11,0,11,0,11,182,69,0,11,4,4,0,11,10,8,56,40,17,10,0,11,0,11,34,21,0,11,0,11,6,5,1,3,0,11,12,15,0,11,0,11,22,11,0,11,71,53,0,11,0,11,22,11,0,11,22,15,0,11,0,11,12,9,0,11,0,11,0,11,6,7,0,11,24,15,12,8,0,11,0,11,4,5,43,42]
[null,"$25,000 to $34,999",0,11,0,11,0,11,191,69,0,11,35,18,0,11,22,14,123,51,51,25,0,11,0,11,14,13,0,11,0,11,11,14,11,10,0,11,34,28,0,11,0,11,71,35,0,11,108,60,0,11,0,11,40,17,0,11,53,22,0,11,0,11,34,18,4,4,0,11,0,11,8,9,28,16,59,31,11,8,0,11,0,11,2,3,77,58]
[null,"$35,000 to $49,999",0,11,0,11,0,11,342,114,0,11,34,18,0,11,28,19,87,40,45,22,0,11,0,11,74,37,0,11,0,11,21,11,4,6,0,11,210,65,0,11,0,11,36,14,0,11,110,56,0,11,0,11,127,38,0,11,146,51,0,11,0,11,64,25,30,15,0,11,0,11,26,13,47,19,64,30,44,17,0,11,0,11,5,5,104,35]
[null,"$50,000 to $74,999",0,11,0,11,0,11,459,112,0,11,64,26,0,11,20,13,103,35,55,28,0,11,0,11,119,48,0,11,1,4,27,15,21,14,0,11,179,60,0,11,0,11,62,22,0,11,255,90,0,11,0,11,95,33,0,11,178,60,0,11,0,11,122,39,20,10,0,11,0,11,31,15,39,18,53,29,44,25,0,11,0,11,1,3,128,50]
[null,"$75,000 to $99,999",0,11,0,11,0,11,314,95,0,11,47,25,0,11,16,14,81,46,29,15,0,11,0,11,39,22,0,11,0,11,20,15,20,13,0,11,117,58,0,11,0,11,47,25,0,11,76,43,0,11,0,11,87,31,0,11,98,40,0,11,0,11,24,16,23,11,0,11,0,11,36,20,28,18,48,28,12,9,0,11,0,11,0,11,77,36]
[null,"$100,000 to $149,999",0,11,0,11,0,11,354,126,0,11,30,13,0,11,17,13,99,38,31,14,0,11,0,11,18,13,0,11,0,11,14,7,7,6,0,11,198,68,0,11,0,11,58,25,0,11,210,76,0,11,0,11,79,22,0,11,76,31,0,11,0,11,27,21,34,16,0,11,0,11,27,20,21,14,54,28,11,8,0,11,0,11,0,11,97,35]
[null,"$150,000 or more",0,11,0,11,0,11,137,69,0,11,19,13,0,11,12,12,72,28,10,9,0,11,0,11,30,23,0,11,0,11,6,5,7,8,0,11,106,45,0,11,0,11,34,13,0,11,97,48,0,11,0,11,15,9,4,6,14,15,0,11,0,11,16,16,41,20,0,11,0,11,25,15,4,4,33,22,8,7,0,11,0,11,0,11,61,32]
[null,"Renter occupied:",0,11,0,11,0,11,1749,196,0,11,72,32,0,11,11,7,256,55,49,22,0,11,0,11,60,28,0,11,0,11,13,8,18,12,0,11,283,83,0,11,0,11,50,32,0,11,347,116,0,11,0,11,90,41,0,11,324,61,0,11,0,11,87,31,35,17,0,11,0,11,37,18,35,19,48,40,71,29,0,11,0,11,2,3,403,105]
[null,"Less than $5,000",0,11,0,11,0,11,71,58,0,11,0,11,0,11,1,3,0,11,7,11,0,11,0,11,3,5,0,11,0,11,0,11,0,11,0,11,9,13,0,11,0,11,0,11,0,11,0,11,0,11,0,11,0,11,0,11,5,8,0,11,0,11,0,11,0,11,0,11,0,11,8,9,0,11,0,11,0,11,0,11,0,11,0,11,21,33]
[null,"$5,000 to $9,999",0,11,0,11,0,11,177,69,0,11,2,3,0,11,0,11,19,17,1,2,0,11,0,11,0,11,0,11,0,11,0,11,2,3,0,11,9,14,0,11,0,11,0,11,0,11,12,20,0,11,0,11,0,11,0,11,25,24,0,11,0,11,12,19,0,11,0,11,0,11,0,11,4,5,3,5,15,15,0,11,0,11,0,11,21,21]
[null,"$10,000 to $14,999",0,11,0,11,0,11,311,131,0,11,0,11,0,11,1,2,27,26,15,15,0,11,0,11,0,11,0,11,0,11,2,3,0,11,0,11,8,12,0,11,0,11,6,6,0,11,63,58,0,11,0,11,4,5,0,11,24,20,0,11,0,11,18,16,0,11,0,11,0,11,0,11,2,3,11,17,11,7,0,11,0,11,0,11,69,54]
[null,"$15,000 to $19,999",0,11,0,11,0,11,142,91,0,11,0,11,0,11,0,11,4,6,3,4,0,11,0,11,3,4,0,11,0,11,0,11,1,2,0,11,47,33,0,11,0,11,0,11,0,11,16,17,0,11,0,11,0,11,0,11,22,20,0,11,0,11,4,6,2,3,0,11,0,11,4,4,0,11,2,3,4,4,0,11,0,11,2,3,38,34]
[null,"$20,000 to $24,999",0,11,0,11,0,11,257,112,0,11,10,11,0,11,0,11,65,40,0,11,0,11,0,11,0,11,0,11,0,11,2,4,5,7,0,11,9,12,0,11,0,11,0,11,0,11,15,23,0,11,0,11,0,11,0,11,45,30,0,11,0,11,0,11,0,11,0,11,0,11,0,11,2,4,3,5,9,9,0,11,0,11,0,11,34,29]
[null,"$25,000 to $34,999",0,11,0,11,0,11,194,103,0,11,5,5,0,11,3,4,52,29,7,6,0,11,0,11,6,6,0,11,0,11,1,3,1,2,0,11,35,30,0,11,0,11,24,29,0,11,57,52,0,11,0,11,14,19,0,11,55,25,0,11,0,11,18,19,14,13,0,11,0,11,8,8,9,12,15,21,15,16,0,11,0,11,0,11,56,36]
[null,"$35,000 to $49,999",0,11,0,11,0,11,377,129,0,11,6,6,0,11,0,11,37,23,5,7,0,11,0,11,8,8,0,11,0,11,4,4,0,11,0,11,59,49,0,11,0,11,5,6,0,11,94,57,0,11,0,11,12,12,0,11,70,35,0,11,0,11,31,21,0,11,0,11,0,11,4,6,7,11,0,11,13,15,0,11,0,11,0,11,17,16]
[null,"$50,000 to $74,999",0,11,0,11,0,11,142,82,0,11,31,20,0,11,1,3,36,31,3,4,0,11,0,11,35,24,0,11,0,11,4,5,6,6,0,11,92,65,0,11,0,11,11,11,0,11,53,43,0,11,0,11,32,17,0,11,11,11,0,11,0,11,4,7,10,9,0,11,0,11,11,9,0,11,14,20,4,5,0,11,0,11,0,11,92,52]
[null,"$75,000 to $99,999",0,11,0,11,0,11,42,46,0,11,3,4,0,11,2,3,5,9,2,3,0,11,0,11,0,11,0,11,0,11,0,11,0,11,0,11,7,13,0,11,0,11,4,5,0,11,37,45,0,11,0,11,24,29,0,11,50,31,0,11,0,11,0,11,2,3,0,11,0,11,0,11,2,3,0,11,0,11,0,11,0,11,0,11,20,16]
[null,"$100,000 to $149,999",0,11,0,11,0,11,30,40,0,11,13,17,0,11,3,4,11,12,3,4,0,11,0,11,2,4,0,11,0,11,0,11,0,11,0,11,8,13,0,11,0,11,0,11,0,11,0,11,0,11,0,11,0,11,0,11,17,24,0,11,0,11,0,11,4,5,0,11,0,11,2,3,3,5,0,11,0,11,0,11,0,11,0,11,17,19]
[null,"$150,000 or more",0,11,0,11,0,11,6,14,0,11,2,3,0,11,0,11,0,11,3,4,0,11,0,11,3,6,0,11,0,11,0,11,3,7,0,11,0,11,0,11,0,11,0,11,0,11,0,11,0,11,0,11,4,5,0,11,0,11,0,11,0,11,0,11,3,4,0,11,0,11,0,11,6,9,0,11,0,11,0,11,0,11,0,11,18,18]
[]
[]
[]
[]
[]
[null,"Calculated B25118. TENURE BY HOUSEHOLD INCOME IN THE PAST 12 MONTHS (IN 2019 INFLATION-ADJUSTED DOLLARS) "]
[null,"Universe:  OCCUPIED HOUSING UNITS"]
[null,"Data Set: 2015-2019 American Community Survey 5-Year Estimates"]
[null,null,"Atkinson and Gilmanton Grant",null,"Bean's Grant",null,"Bean's Purchase",null,"Berlin",null,"Cambridge",null,"Carroll",null,"Chandler's Purchase",null,"Clarksville",null,"Colebrook",null,"Columbia",null,"Crawford's Purchase",null,"Cutt's Grant",null,"Dalton",null,"Dix's Grant",null,"Dixville",null,"Dummer",null,"Errol",null,"Erving's Location",null,"Gorham",null,"Greens Grant",null,"Hadley's Purchase",null,"Jefferson",null,"Kilkenny",null,"Lancaster",null,"Low and Burbank's Grant",null,"Martin's Location",null,"Milan",null,"Millsfield",null,"Northumberland",null,"Odell",null,"Pinkham's Grant",null,"Pittsburg",null,"Randolph",null,"Sargent's Purchase",null,"Second College Grant",null,"Shelburne",null,"Stark",null,"Stewartstown",null,"Stratford",null,"Success",null,"Thompson and Meserves Purchase",null,"Wentworth's Location",null,"Whitefield"]
[null,null,"Estimate","Margin Of Error","Estimate","Margin Of Error","Estimate","Margin Of Error","Estimate","Margin Of Error","Estimate","Margin Of Error","Estimate","Margin Of Error","Estimate","Margin Of Error","Estimate","Margin Of Error","Estimate","Margin Of Error","Estimate","Margin Of Error","Estimate","Margin Of Error","Estimate","Margin Of Error","Estimate","Margin Of Error","Estimate","Margin Of Error","Estimate","Margin Of Error","Estimate","Margin Of Error","Estimate","Margin Of Error","Estimate","Margin Of Error","Estimate","Margin Of Error","Estimate","Margin Of Error","Estimate","Margin Of Error","Estimate","Margin Of Error","Estimate","Margin Of Error","Estimate","Margin Of Error","Estimate","Margin Of Error","Estimate","Margin Of Error","Estimate","Margin Of Error","Estimate","Margin Of Error","Estimate","Margin Of Error","Estimate","Margin Of Error","Estimate","Margin Of Error","Estimate","Margin Of Error","Estimate","Margin Of Error","Estimate","Margin Of Error","Estimate","Margin Of Error","Estimate","Margin Of Error","Estimate","Margin Of Error","Estimate","Margin Of Error","Estimate","Margin Of Error","Estimate","Margin Of Error","Estimate","Margin Of Error","Estimate","Margin Of Error","Estimate","Margin Of Error"]
[null,{"$f":"B7","v":"Total:"},0,11,0,11,0,11,3977,201,0,11,324,49,0,11,141,40,954,84,316,51,0,11,{"$f":"Y7","v":0},11,424,64,0,11,1,4,127,25,113,29,0,11,1243,99,{"$f":"AO7","v":0},11,0,11,396,58,0,11,1366,149,0,11,0,11,589,53,{"$f":"BE7","v":4},6,984,88,0,11,0,11,423,57,196,39,0,11,0,11,200,30,233,40,418,64,277,49,0,11,0,11,16,9,1046,111]
[null,"Less than $5,000",{"$f":"C9+C21","v":0},{"$f":"SQRT((D9^2)+(D21^2))","v":15.556349186104045},{"$f":"E9+E21","v":0},{"$f":"SQRT((F9^2)+(F21^2))","v":15.556349186104045},{"$f":"G9+G21","v":0},{"$f":"SQRT((H9^2)+(H21^2))","v":15.556349186104045},{"$f":"I9+I21","v":113},{"$f":"SQRT((J9^2)+(J21^2))","v":64.845971347493901},{"$f":"K9+K21","v":0},{"$f":"SQRT((L9^2)+(L21^2))","v":15.556349186104045},{"$f":"M9+M21","v":4},{"$f":"SQRT((N9^2)+(N21^2))","v":11.704699910719626},{"$f":"O9+O21","v":0},{"$f":"SQRT((P9^2)+(P21^2))","v":15.556349186104045},{"$f":"Q9+Q21","v":1},{"$f":"SQRT((R9^2)+(R21^2))","v":11.401754250991379},{"$f":"S9+S21","v":4},{"$f":"SQRT((T9^2)+(T21^2))","v":12.529964086141668},{"$f":"U9+U21","v":9},{"$f":"SQRT((V9^2)+(V21^2))","v":11.401754250991379},{"$f":"W9+W21","v":0},{"$f":"SQRT((X9^2)+(X21^2))","v":15.556349186104045},{"$f":"Y9+Y21","v":0},{"$f":"SQRT((Z9^2)+(Z21^2))","v":15.556349186104045},{"$f":"AA9+AA21","v":8},{"$f":"SQRT((AB9^2)+(AB21^2))","v":7.810249675906654},{"$f":"AC9+AC21","v":0},{"$f":"SQRT((AD9^2)+(AD21^2))","v":15.556349186104045},{"$f":"AE9+AE21","v":0},{"$f":"SQRT((AF9^2)+(AF21^2))","v":15.556349186104045},{"$f":"AG9+AG21","v":1},{"$f":"SQRT((AH9^2)+(AH21^2))","v":11.401754250991379},{"$f":"AI9+AI21","v":0},{"$f":"SQRT((AJ9^2)+(AJ21^2))","v":15.556349186104045},{"$f":"AK9+AK21","v":0},{"$f":"SQRT((AL9^2)+(AL21^2))","v":15.556349186104045},{"$f":"AM9+AM21","v":9},{"$f":"SQRT((AN9^2)+(AN21^2))","v":17.029386365926403},0,15.556349186104045,{"$f":"AQ9+AQ21","v":0},{"$f":"SQRT((AR9^2)+(AR21^2))","v":15.556349186104045},{"$f":"AS9+AS21","v":8},{"$f":"SQRT((AT9^2)+(AT21^2))","v":13.038404810405298},{"$f":"AU9+AU21","v":0},{"$f":"SQRT((AV9^2)+(AV21^2))","v":15.556349186104045},{"$f":"AW9+AW21","v":15},{"$f":"SQRT((AX9^2)+(AX21^2))","v":21.095023109728988},{"$f":"AY9+AY21","v":0},{"$f":"SQRT((AZ9^2)+(AZ21^2))","v":15.556349186104045},{"$f":"BA9+BA21","v":0},{"$f":"SQRT((BB9^2)+(BB21^2))","v":15.556349186104045},{"$f":"BC9+BC21","v":16},{"$f":"SQRT((BD9^2)+(BD21^2))","v":17.029386365926403},{"$f":"BE9+BE21","v":0},{"$f":"SQRT((BF9^2)+(BF21^2))","v":15.556349186104045},{"$f":"BG9+BG21","v":5},{"$f":"SQRT((BH9^2)+(BH21^2))","v":13.601470508735444},{"$f":"BI9+BI21","v":0},{"$f":"SQRT((BJ9^2)+(BJ21^2))","v":15.556349186104045},{"$f":"BK9+BK21","v":0},{"$f":"SQRT((BL9^2)+(BL21^2))","v":15.556349186104045},{"$f":"BM9+BM21","v":0},{"$f":"SQRT((BN9^2)+(BN21^2))","v":15.556349186104045},{"$f":"BO9+BO21","v":2},{"$f":"SQRT((BP9^2)+(BP21^2))","v":11.401754250991379},{"$f":"BQ9+BQ21","v":0},{"$f":"SQRT((BR9^2)+(BR21^2))","v":15.556349186104045},{"$f":"BS9+BS21","v":0},{"$f":"SQRT((BT9^2)+(BT21^2))","v":15.556349186104045},{"$f":"BU9+BU21","v":9},{"$f":"SQRT((BV9^2)+(BV21^2))","v":9.4868329805051381},{"$f":"BW9+BW21","v":6},{"$f":"SQRT((BX9^2)+(BX21^2))","v":12.529964086141668},{"$f":"BY9+BY21","v":3},{"$f":"SQRT((BZ9^2)+(BZ21^2))","v":11.704699910719626},{"$f":"CA9+CA21","v":14},{"$f":"SQRT((CB9^2)+(CB21^2))","v":18.601075237738275},{"$f":"CC9+CC21","v":0},{"$f":"SQRT((CD9^2)+(CD21^2))","v":15.556349186104045},{"$f":"CE9+CE21","v":0},{"$f":"SQRT((CF9^2)+(CF21^2))","v":15.556349186104045},{"$f":"CG9+CG21","v":0},{"$f":"SQRT((CH9^2)+(CH21^2))","v":15.556349186104045},{"$f":"CI9+CI21","v":21},{"$f":"SQRT((CJ9^2)+(CJ21^2))","v":34.785054261852174}]
[null,"$5,000 to $9,999",{"$f":"C10+C22","v":0},{"$f":"SQRT((D10^2)+(D22^2))","v":15.556349186104045},{"$f":"E10+E22","v":0},15.556349186104045,{"$f":"G10+G22","v":0},15.556349186104045,{"$f":"I10+I22","v":218},76.485292703891773,{"$f":"K10+K22","v":0},15.556349186104045,{"$f":"M10+M22","v":6},5,{"$f":"O10+O22","v":0},15.556349186104045,{"$f":"Q10+Q22","v":1},11.180339887498949,26,19.235384061671343,9,8.2462112512353212,0,15.556349186104045,0,15.556349186104045,17,20.248456731316587,0,15.556349186104045,0,15.556349186104045,0,15.556349186104045,2,11.401754250991379,0,15.556349186104045,29,25.238858928247925,0,15.556349186104045,0,15.556349186104045,3,11.704699910719626,0,15.556349186104045,19,22.825424421026653,0,15.556349186104045,0,15.556349186104045,3,12.083045973594572,0,15.556349186104045,30,25,0,15.556349186104045,0,15.556349186104045,12,21.95449840010015,0,15.556349186104045,0,15.556349186104045,0,15.556349186104045,0,15.556349186104045,15,12.083045973594572,6,6.4031242374328485,25,16.552945357246848,0,15.556349186104045,0,15.556349186104045,0,15.556349186104045,32,23.706539182259394]
[null,"$10,000 to $14,999",{"$f":"C11+C23","v":0},15.556349186104045,{"$f":"E11+E23","v":0},15.556349186104045,{"$f":"G11+G23","v":0},15.556349186104045,{"$f":"I11+I23","v":422},145.79780519610026,{"$f":"K11+K23","v":0},15.556349186104045,{"$f":"M11+M23","v":7},14.866068747318506,{"$f":"O11+O23","v":0},15.556349186104045,{"$f":"Q11+Q23","v":3},3.6055512754639891,51,30.016662039607269,24,16.552945357246848,0,15.556349186104045,0,15.556349186104045,9,13.601470508735444,0,15.556349186104045,0,15.556349186104045,8,10.440306508910551,23,18.601075237738275,0,15.556349186104045,18,19.209372712298546,0,15.556349186104045,0,15.556349186104045,6,12.529964086141668,0,15.556349186104045,93,62.769419305900861,0,15.556349186104045,0,15.556349186104045,10,7.0710678118654755,0,15.556349186104045,40,23.853720883753127,0,15.556349186104045,0,15.556349186104045,46,28.844410203711913,5,12.083045973594572,0,15.556349186104045,0,15.556349186104045,1,11.180339887498949,6,5.8309518948453007,18,19.723082923316021,35,18.384776310850235,0,15.556349186104045,0,15.556349186104045,0,15.556349186104045,97,56.920997883030829]
[null,"$15,000 to $19,999",{"$f":"C12+C24","v":0},15.556349186104045,0,15.556349186104045,0,15.556349186104045,197,97.498717940288842,0,15.556349186104045,4,12.529964086141668,0,15.556349186104045,2,11.401754250991379,46,29.614185789921695,13,10.770329614269007,0,15.556349186104045,0,15.556349186104045,8,8.0622577482985491,0,15.556349186104045,0,15.556349186104045,2,11.704699910719626,2,3.6055512754639891,0,15.556349186104045,121,59.076221950967721,0,15.556349186104045,0,15.556349186104045,5,12.529964086141668,0,15.556349186104045,56,38.013155617496423,0,15.556349186104045,0,15.556349186104045,9,13.038404810405298,0,15.556349186104045,74,34.409301068170507,0,15.556349186104045,0,15.556349186104045,13,10,4,4.2426406871192848,0,15.556349186104045,0,15.556349186104045,6,5,10,14.212670403551895,24,17.262676501632068,20,15.524174696260024,0,15.556349186104045,0,15.556349186104045,4,4.2426406871192848,55,37.161808352124091]
[null,"$20,000 to $24,999",0,15.556349186104045,0,15.556349186104045,0,15.556349186104045,439,131.54847015454038,0,15.556349186104045,14,11.704699910719626,0,15.556349186104045,10,13.601470508735444,121,56.568542494923804,17,14.866068747318506,0,15.556349186104045,0,15.556349186104045,34,23.706539182259394,0,15.556349186104045,0,15.556349186104045,8,6.4031242374328485,6,7.6157731058639087,0,15.556349186104045,21,19.209372712298546,0,15.556349186104045,0,15.556349186104045,22,15.556349186104045,0,15.556349186104045,86,57.77542730261716,0,15.556349186104045,0,15.556349186104045,22,15.556349186104045,0,15.556349186104045,67,33.541019662496844,0,15.556349186104045,0,15.556349186104045,12,14.212670403551895,0,15.556349186104045,0,15.556349186104045,0,15.556349186104045,6,13.038404810405298,2,11.704699910719626,27,15.811388300841896,21,12.041594578792296,0,15.556349186104045,0,15.556349186104045,4,12.083045973594572,77,51.039200620699383]
[null,"$25,000 to $34,999",0,15.556349186104045,0,15.556349186104045,0,15.556349186104045,385,123.97580409095961,0,15.556349186104045,40,18.681541692269406,0,15.556349186104045,25,14.560219778561036,175,58.668560575490517,58,25.709920264364882,0,15.556349186104045,0,15.556349186104045,20,14.317821063276353,0,15.556349186104045,0,15.556349186104045,12,14.317821063276353,12,10.198039027185569,0,15.556349186104045,69,41.036569057366385,0,15.556349186104045,0,15.556349186104045,95,45.453272709454048,0,15.556349186104045,165,79.39773296511683,0,15.556349186104045,0,15.556349186104045,54,25.495097567963924,0,15.556349186104045,108,33.301651610693426,0,15.556349186104045,0,15.556349186104045,52,26.172504656604801,18,13.601470508735444,0,15.556349186104045,0,15.556349186104045,16,12.041594578792296,37,20,74,37.443290453698111,26,17.888543819998318,0,15.556349186104045,0,15.556349186104045,2,11.401754250991379,133,68.264192663504048]
[null,"$35,000 to $49,999",0,15.556349186104045,0,15.556349186104045,0,15.556349186104045,719,172.15400082484288,0,15.556349186104045,40,18.973665961010276,0,15.556349186104045,28,21.95449840010015,124,46.141087980237309,50,23.086792761230392,0,15.556349186104045,0,15.556349186104045,82,37.8549864614954,0,15.556349186104045,0,15.556349186104045,25,11.704699910719626,4,12.529964086141668,0,15.556349186104045,269,81.400245699874887,0,15.556349186104045,0,15.556349186104045,41,15.231546211727817,0,15.556349186104045,204,79.906195003891909,0,15.556349186104045,0,15.556349186104045,139,39.849717690342551,0,15.556349186104045,216,61.854668376768458,0,15.556349186104045,0,15.556349186104045,95,32.649655434629018,30,18.601075237738275,0,15.556349186104045,0,15.556349186104045,30,14.317821063276353,54,21.95449840010015,64,31.953090617340916,57,22.671568097509269,0,15.556349186104045,0,15.556349186104045,5,12.083045973594572,121,38.483762809787713]
[null,"$50,000 to $74,999",0,15.556349186104045,0,15.556349186104045,0,15.556349186104045,601,138.80922159568507,0,15.556349186104045,95,32.802438933713454,0,15.556349186104045,21,13.341664064126334,139,46.75467891024384,58,28.284271247461902,0,15.556349186104045,0,15.556349186104045,154,53.665631459994955,0,15.556349186104045,1,11.704699910719626,31,15.811388300841896,27,15.231546211727817,0,15.556349186104045,271,88.459030064770658,0,15.556349186104045,0,15.556349186104045,73,24.596747752497688,0,15.556349186104045,308,99.744674043279119,0,15.556349186104045,0,15.556349186104045,127,37.12142238654117,0,15.556349186104045,189,61,0,15.556349186104045,0,15.556349186104045,126,39.623225512317902,30,13.45362404707371,0,15.556349186104045,0,15.556349186104045,42,17.4928556845359,39,21.095023109728988,67,35.227829907617071,48,25.495097567963924,0,15.556349186104045,0,15.556349186104045,1,11.401754250991379,220,72.138755187485728]
[null,"$75,000 to $99,999",0,15.556349186104045,0,{"$f":"SQRT((F17^2)+(F30^2))","v":15.556349186104045},0,15.556349186104045,356,105.55093557141026,0,15.556349186104045,50,25.317977802344327,0,15.556349186104045,18,14.317821063276353,86,46.872166581031863,31,15.297058540778355,0,15.556349186104045,0,15.556349186104045,39,24.596747752497688,0,15.556349186104045,0,15.556349186104045,20,18.601075237738275,20,17.029386365926403,0,15.556349186104045,124,59.439044406854322,0,15.556349186104045,0,15.556349186104045,51,25.495097567963924,0,15.556349186104045,113,62.241465278381739,0,15.556349186104045,0,15.556349186104045,111,42.449970553582247,0,15.556349186104045,148,50.606323715519977,0,15.556349186104045,0,15.556349186104045,24,19.416487838947599,25,11.401754250991379,0,15.556349186104045,0,15.556349186104045,36,22.825424421026653,30,18.248287590894659,48,30.083217912982647,12,14.212670403551895,0,15.556349186104045,0,15.556349186104045,0,15.556349186104045,97,39.395431207184416]
[null,"$100,000 to $149,999",0,15.556349186104045,0,{"$f":"SQRT((F18^2)+(F30^2))","v":15.556349186104045},0,15.556349186104045,384,132.19682295728592,0,15.556349186104045,43,21.400934559032695,0,15.556349186104045,20,13.601470508735444,110,39.849717690342551,34,14.560219778561036,0,15.556349186104045,0,15.556349186104045,20,13.601470508735444,0,15.556349186104045,0,15.556349186104045,14,13.038404810405298,7,12.529964086141668,0,15.556349186104045,206,69.231495722683903,0,15.556349186104045,0,15.556349186104045,58,27.313000567495326,0,15.556349186104045,210,76.791926658991954,0,15.556349186104045,0,15.556349186104045,79,24.596747752497688,0,15.556349186104045,93,39.204591567825318,0,15.556349186104045,0,15.556349186104045,27,23.706539182259394,38,16.763054614240211,0,15.556349186104045,0,15.556349186104045,29,20.223748416156685,24,14.866068747318506,54,30.083217912982647,11,13.601470508735444,0,15.556349186104045,0,15.556349186104045,0,15.556349186104045,114,39.824615503479755]
[null,"$150,000 or more",0,15.556349186104045,{"$f":"E19+E31","v":0},15.556349186104045,0,15.556349186104045,143,70.405965656327737,0,15.556349186104045,21,13.341664064126334,0,15.556349186104045,12,16.278820596099706,72,30.083217912982647,13,9.8488578017961039,0,15.556349186104045,0,15.556349186104045,33,23.769728648009426,0,15.556349186104045,0,15.556349186104045,6,12.083045973594572,10,10.63014581273465,0,15.556349186104045,106,46.324939287601879,0,15.556349186104045,0,15.556349186104045,34,17.029386365926403,0,15.556349186104045,97,49.244289008980523,0,15.556349186104045,0,15.556349186104045,19,10.295630140987001,4,12.529964086141668,14,18.601075237738275,0,15.556349186104045,0,15.556349186104045,16,19.416487838947599,44,20.396078054371138,0,15.556349186104045,0,15.556349186104045,25,18.601075237738275,10,9.8488578017961039,33,24.596747752497688,8,13.038404810405298,0,15.556349186104045,0,15.556349186104045,0,15.556349186104045,79,36.715119501371639]
[]
[]
[]
[]
[]
[]
[]
[]
[]
[]
[]
[]
[]
[]
[]
[]
[null,"B25118. TENURE BY HOUSEHOLD INCOME IN THE PAST 12 MONTHS (IN 2014 INFLATION-ADJUSTED DOLLARS) "]
[null,"Universe:  OCCUPIED HOUSING UNITS"]
[null,"Data Set: 2010-2014 American Community Survey 5-Year Estimates"]
[]
[null,null,"Atkinson and Gilmanton Grant",null,"Bean's Grant",null,"Bean's Purchase",null,"Berlin",null,"Cambridge",null,"Carroll",null,"Chandler's Purchase",null,"Clarksville",null,"Colebrook",null,"Columbia",null,"Crawford's Purchase",null,"Cutt's Grant",null,"Dalton",null,"Dix's Grant",null,"Dixville",null,"Dummer",null,"Errol",null,"Erving's Location",null,"Gorham",null,"Greens Grant",null,"Hadley's Purchase",null,"Jefferson",null,"Kilkenny",null,"Lancaster",null,"Low and Burbank's Grant",null,"Martin's Location",null,"Milan",null,"Millsfield",null,"Northumberland",null,"Odell",null,"Pinkham's Grant",null,"Pittsburg",null,"Randolph",null,"Sargent's Purchase",null,"Second College Grant",null,"Shelburne",null,"Stark",null,"Stewartstown",null,"Stratford",null,"Success",null,"Thompson and Meserves Purchase",null,"Wentworth's Location",null,"Whitefield"]
[null,null,"Estimate","Margin Of Error","Estimate","Margin Of Error","Estimate","Margin Of Error","Estimate","Margin Of Error","Estimate","Margin Of Error","Estimate","Margin Of Error","Estimate","Margin Of Error","Estimate","Margin Of Error","Estimate","Margin Of Error","Estimate","Margin Of Error","Estimate","Margin Of Error","Estimate","Margin Of Error","Estimate","Margin Of Error","Estimate","Margin Of Error","Estimate","Margin Of Error","Estimate","Margin Of Error","Estimate","Margin Of Error","Estimate","Margin Of Error","Estimate","Margin Of Error","Estimate","Margin Of Error","Estimate","Margin Of Error","Estimate","Margin Of Error","Estimate","Margin Of Error","Estimate","Margin Of Error","Estimate","Margin Of Error","Estimate","Margin Of Error","Estimate","Margin Of Error","Estimate","Margin Of Error","Estimate","Margin Of Error","Estimate","Margin Of Error","Estimate","Margin Of Error","Estimate","Margin Of Error","Estimate","Margin Of Error","Estimate","Margin Of Error","Estimate","Margin Of Error","Estimate","Margin Of Error","Estimate","Margin Of Error","Estimate","Margin Of Error","Estimate","Margin Of Error","Estimate","Margin Of Error","Estimate","Margin Of Error","Estimate","Margin Of Error","Estimate","Margin Of Error"]
[null,"Total:",0,11,0,11,0,11,4185,303,8,10,362,57,0,11,152,33,1101,105,315,52,0,11,0,11,414,58,4,6,3,6,141,32,186,38,0,11,1240,77,0,11,0,11,0,11,0,11,1537,96,0,11,0,11,9,7,8,8,0,11,0,11,0,11,452,68,197,34,5,6,0,11,165,26,217,35,373,58,0,11,0,11,0,11,37,21,1047,106]
[null,"Owner occupied:",0,11,0,11,0,11,2534,234,8,10,267,52,0,11,135,32,747,96,254,50,0,11,0,11,335,47,0,11,0,11,128,28,149,33,0,11,877,80,0,11,0,11,0,11,0,11,1060,113,0,11,0,11,9,7,8,8,0,11,0,11,0,11,361,61,175,30,0,11,0,11,141,27,181,35,272,54,0,11,0,11,0,11,20,13,667,94]
[null,"Less than $5,000",0,11,0,11,0,11,11,16,0,11,0,11,0,11,0,11,0,11,3,4,0,11,0,11,9,8,0,11,0,11,2,3,2,3,0,11,0,11,0,11,0,11,0,11,0,11,0,11,0,11,0,11,0,11,0,11,0,11,0,11,0,11,4,5,4,7,0,11,0,11,0,11,7,7,11,9,0,11,0,11,0,11,1,3,0,11]
[null,"$5,000 to $9,999",0,11,0,11,0,11,54,48,0,11,3,4,0,11,0,11,38,29,4,5,0,11,0,11,6,6,0,11,0,11,0,11,3,4,0,11,0,11,0,11,0,11,0,11,0,11,24,27,0,11,0,11,0,11,0,11,0,11,0,11,0,11,9,8,2,3,0,11,0,11,1,3,9,8,23,20,0,11,0,11,0,11,0,11,0,11]
[null,"$10,000 to $14,999",0,11,0,11,0,11,178,72,0,11,22,18,0,11,15,16,33,28,16,10,0,11,0,11,6,6,0,11,0,11,0,11,25,15,0,11,8,12,0,11,0,11,0,11,0,11,16,24,0,11,0,11,0,11,0,11,0,11,0,11,0,11,11,8,6,5,0,11,0,11,6,5,2,4,24,20,0,11,0,11,0,11,0,11,9,13]
[null,"$15,000 to $19,999",0,11,0,11,0,11,133,65,0,11,20,17,0,11,21,12,28,29,26,16,0,11,0,11,21,13,0,11,0,11,13,14,14,11,0,11,32,26,0,11,0,11,0,11,0,11,79,60,0,11,0,11,0,11,0,11,0,11,0,11,0,11,27,16,7,5,0,11,0,11,4,4,9,6,29,16,0,11,0,11,0,11,0,11,42,29]
[null,"$20,000 to $24,999",0,11,0,11,0,11,73,42,4,7,22,19,0,11,15,12,34,23,17,12,0,11,0,11,25,20,0,11,0,11,11,8,16,13,0,11,43,27,0,11,0,11,0,11,0,11,55,36,0,11,0,11,0,11,0,11,0,11,0,11,0,11,28,19,4,4,0,11,0,11,4,6,24,16,22,18,0,11,0,11,0,11,0,11,52,30]
[null,"$25,000 to $34,999",0,11,0,11,0,11,324,88,2,3,15,12,0,11,28,16,87,39,15,13,0,11,0,11,32,15,0,11,0,11,28,15,14,12,0,11,87,49,0,11,0,11,0,11,0,11,201,85,0,11,0,11,2,3,6,7,0,11,0,11,0,11,38,23,17,9,0,11,0,11,16,10,17,13,30,21,0,11,0,11,0,11,0,11,77,36]
[null,"$35,000 to $49,999",0,11,0,11,0,11,409,105,0,11,35,20,0,11,25,12,121,55,24,15,0,11,0,11,64,23,0,11,0,11,23,10,15,10,0,11,159,54,0,11,0,11,0,11,0,11,79,53,0,11,0,11,7,6,2,4,0,11,0,11,0,11,77,30,17,14,0,11,0,11,28,12,45,20,44,19,0,11,0,11,0,11,11,12,95,40]
[null,"$50,000 to $74,999",0,11,0,11,0,11,573,113,2,5,39,23,0,11,16,9,169,56,63,25,0,11,0,11,96,37,0,11,0,11,9,8,33,19,0,11,211,63,0,11,0,11,0,11,0,11,273,84,0,11,0,11,0,11,0,11,0,11,0,11,0,11,69,32,34,15,0,11,0,11,30,13,29,13,47,26,0,11,0,11,0,11,8,7,190,48]
[null,"$75,000 to $99,999",0,11,0,11,0,11,370,92,0,11,65,36,0,11,6,5,140,55,28,12,0,11,0,11,46,21,0,11,0,11,12,10,14,11,0,11,162,55,0,11,0,11,0,11,0,11,108,46,0,11,0,11,0,11,0,11,0,11,0,11,0,11,50,26,34,12,0,11,0,11,22,15,16,10,14,10,0,11,0,11,0,11,0,11,101,34]
[null,"$100,000 to $149,999",0,11,0,11,0,11,267,79,0,11,26,17,0,11,9,8,55,27,35,19,0,11,0,11,25,12,0,11,0,11,25,13,5,4,0,11,117,61,0,11,0,11,0,11,0,11,159,60,0,11,0,11,0,11,0,11,0,11,0,11,0,11,16,10,19,13,0,11,0,11,22,12,10,10,28,24,0,11,0,11,0,11,0,11,75,55]
[null,"$150,000 or more",0,11,0,11,0,11,142,67,0,11,20,16,0,11,0,11,42,23,23,14,0,11,0,11,5,7,0,11,0,11,5,5,8,10,0,11,58,42,0,11,0,11,0,11,0,11,66,46,0,11,0,11,0,11,0,11,0,11,0,11,0,11,32,25,31,13,0,11,0,11,8,7,13,12,0,11,0,11,0,11,0,11,0,11,26,16]
[null,"Renter occupied:",0,11,0,11,0,11,1651,226,0,11,95,36,0,11,17,11,354,73,61,31,0,11,0,11,79,33,4,6,3,6,13,13,37,19,0,11,363,96,0,11,0,11,0,11,0,11,477,113,0,11,0,11,0,11,0,11,0,11,0,11,0,11,91,34,22,15,5,6,0,11,24,16,36,13,101,39,0,11,0,11,0,11,17,16,380,84]
[null,"Less than $5,000",0,11,0,11,0,11,107,63,0,11,3,4,0,11,0,11,5,8,3,4,0,11,0,11,11,17,0,11,0,11,0,11,0,11,0,11,7,11,0,11,0,11,0,11,0,11,33,38,0,11,0,11,0,11,0,11,0,11,0,11,0,11,0,11,0,11,0,11,0,11,2,3,3,5,11,15,0,11,0,11,0,11,0,11,0,11]
[null,"$5,000 to $9,999",0,11,0,11,0,11,195,86,0,11,0,11,0,11,1,3,24,17,22,20,0,11,0,11,3,4,0,11,0,11,0,11,0,11,0,11,51,46,0,11,0,11,0,11,0,11,36,27,0,11,0,11,0,11,0,11,0,11,0,11,0,11,22,18,0,11,0,11,0,11,0,11,4,4,5,7,0,11,0,11,0,11,11,15,34,30]
[null,"$10,000 to $14,999",0,11,0,11,0,11,332,106,0,11,8,12,0,11,4,5,74,44,6,9,0,11,0,11,6,6,0,11,0,11,1,2,4,7,0,11,41,41,0,11,0,11,0,11,0,11,61,41,0,11,0,11,0,11,0,11,0,11,0,11,0,11,18,14,7,10,0,11,0,11,1,3,2,3,10,15,0,11,0,11,0,11,0,11,108,42]
[null,"$15,000 to $19,999",0,11,0,11,0,11,182,89,0,11,0,11,0,11,2,3,58,36,0,11,0,11,0,11,0,11,0,11,0,11,1,3,6,6,0,11,29,22,0,11,0,11,0,11,0,11,22,24,0,11,0,11,0,11,0,11,0,11,0,11,0,11,0,11,4,7,0,11,0,11,5,5,2,3,7,10,0,11,0,11,0,11,0,11,82,47]
[null,"$20,000 to $24,999",0,11,0,11,0,11,207,90,0,11,6,9,0,11,0,11,27,20,9,10,0,11,0,11,6,7,0,11,0,11,1,2,4,5,0,11,50,51,0,11,0,11,0,11,0,11,87,68,0,11,0,11,0,11,0,11,0,11,0,11,0,11,12,17,0,11,0,11,0,11,0,11,0,11,4,5,0,11,0,11,0,11,1,3,25,29]
[null,"$25,000 to $34,999",0,11,0,11,0,11,240,95,0,11,10,13,0,11,4,7,33,22,0,11,0,11,0,11,21,19,0,11,0,11,2,3,8,8,0,11,40,44,0,11,0,11,0,11,0,11,57,59,0,11,0,11,0,11,0,11,0,11,0,11,0,11,36,23,1,3,0,11,0,11,0,11,8,9,38,24,0,11,0,11,0,11,0,11,42,37]
[null,"$35,000 to $49,999",0,11,0,11,0,11,196,95,0,11,21,19,0,11,3,4,55,27,8,10,0,11,0,11,12,14,4,6,3,6,1,2,6,10,0,11,48,38,0,11,0,11,0,11,0,11,32,45,0,11,0,11,0,11,0,11,0,11,0,11,0,11,3,4,5,6,0,11,0,11,8,9,4,5,5,7,0,11,0,11,0,11,0,11,58,40]
[null,"$50,000 to $74,999",0,11,0,11,0,11,131,69,0,11,41,29,0,11,0,11,31,31,3,5,0,11,0,11,20,17,0,11,0,11,0,11,6,7,0,11,82,55,0,11,0,11,0,11,0,11,52,36,0,11,0,11,0,11,0,11,0,11,0,11,0,11,0,11,4,5,0,11,0,11,6,9,9,8,16,18,0,11,0,11,0,11,5,7,20,17]
[null,"$75,000 to $99,999",0,11,0,11,0,11,54,43,0,11,6,9,0,11,3,4,35,19,3,4,0,11,0,11,0,11,0,11,0,11,7,10,3,4,0,11,15,16,0,11,0,11,0,11,0,11,82,61,0,11,0,11,0,11,0,11,0,11,0,11,0,11,0,11,1,2,0,11,0,11,2,4,0,11,0,11,0,11,0,11,0,11,0,11,6,9]
[null,"$100,000 to $149,999",0,11,0,11,0,11,7,12,0,11,0,11,0,11,0,11,12,14,3,4,0,11,0,11,0,11,0,11,0,11,0,11,0,11,0,11,0,11,0,11,0,11,0,11,0,11,15,17,0,11,0,11,0,11,0,11,0,11,0,11,0,11,0,11,0,11,5,6,0,11,0,11,4,6,0,11,0,11,0,11,0,11,0,11,5,7]
[null,"$150,000 or more",0,11,0,11,0,11,0,15,0,11,0,11,0,11,0,11,0,11,4,6,0,11,0,11,0,11,0,11,0,11,0,11,0,11,0,11,0,11,0,11,0,11,0,11,0,11,0,11,0,11,0,11,0,11,0,11,0,11,0,11,0,11,0,11,0,11,0,11,0,11,0,11,0,11,5,5,0,11,0,11,0,11,0,11,0,11]
[]
[]
[]
[]
[]
[null,"Calculated B25118. TENURE BY HOUSEHOLD INCOME IN THE PAST 12 MONTHS (IN 2014 INFLATION-ADJUSTED DOLLARS) "]
[null,"Universe:  OCCUPIED HOUSING UNITS"]
[null,"Data Set: 2010-2014 American Community Survey 3-Year Estimates"]
[null,null,"Atkinson and Gilmanton Grant",null,"Bean's Grant",null,"Bean's Purchase",null,"Berlin",null,"Cambridge",null,"Carroll",null,"Chandler's Purchase",null,"Clarksville",null,"Colebrook",null,"Columbia",null,"Crawford's Purchase",null,"Cutt's Grant",null,"Dalton",null,"Dix's Grant",null,"Dixville",null,"Dummer",null,"Errol",null,"Erving's Location",null,"Gorham",null,"Greens Grant",null,"Hadley's Purchase",null,"Jefferson",null,"Kilkenny",null,"Lancaster",null,"Low and Burbank's Grant",null,"Martin's Location",null,"Milan",null,"Millsfield",null,"Northumberland",null,"Odell",null,"Pinkham's Grant",null,"Pittsburg",null,"Randolph",null,"Sargent's Purchase",null,"Second College Grant",null,"Shelburne",null,"Stark",null,"Stewartstown",null,"Stratford",null,"Success",null,"Thompson and Meserves Purchase",null,"Wentworth's Location",null,"Whitefield"]
[null,null,"Estimate","Margin Of Error","Estimate","Margin Of Error","Estimate","Margin Of Error","Estimate","Margin Of Error","Estimate","Margin Of Error","Estimate","Margin Of Error","Estimate","Margin Of Error","Estimate","Margin Of Error","Estimate","Margin Of Error","Estimate","Margin Of Error","Estimate","Margin Of Error","Estimate","Margin Of Error","Estimate","Margin Of Error","Estimate","Margin Of Error","Estimate","Margin Of Error","Estimate","Margin Of Error","Estimate","Margin Of Error","Estimate","Margin Of Error","Estimate","Margin Of Error","Estimate","Margin Of Error","Estimate","Margin Of Error","Estimate","Margin Of Error","Estimate","Margin Of Error","Estimate","Margin Of Error","Estimate","Margin Of Error","Estimate","Margin Of Error","Estimate","Margin Of Error","Estimate","Margin Of Error","Estimate","Margin Of Error","Estimate","Margin Of Error","Estimate","Margin Of Error","Estimate","Margin Of Error","Estimate","Margin Of Error","Estimate","Margin Of Error","Estimate","Margin Of Error","Estimate","Margin Of Error","Estimate","Margin Of Error","Estimate","Margin Of Error","Estimate","Margin Of Error","Estimate","Margin Of Error","Estimate","Margin Of Error","Estimate","Margin Of Error","Estimate","Margin Of Error"]
[null,"Total:",0,11,0,11,0,11,4185,303,8,10,362,57,0,11,152,33,1101,105,315,52,0,11,0,11,414,58,4,6,3,6,141,32,186,38,0,11,1240,77,0,11,0,11,0,11,0,11,1537,96,0,11,0,11,9,7,8,8,0,11,0,11,0,11,452,68,197,34,5,6,0,11,165,26,217,35,373,58,0,11,0,11,0,11,37,21,1047,106]
[null,"Less than $5,000",0,15.556349186104045,0,15.556349186104045,0,15.556349186104045,118,65,0,15.556349186104045,3,11.704699910719626,0,15.556349186104045,0,15.556349186104045,5,13.601470508735444,6,5.6568542494923806,0,15.556349186104045,0,15.556349186104045,20,18.788294228055936,0,15.556349186104045,0,15.556349186104045,2,11.401754250991379,2,11.401754250991379,0,15.556349186104045,7,15.556349186104045,0,15.556349186104045,0,15.556349186104045,0,15.556349186104045,0,15.556349186104045,33,39.560080889704963,0,15.556349186104045,0,15.556349186104045,0,15.556349186104045,0,15.556349186104045,0,15.556349186104045,0,15.556349186104045,0,15.556349186104045,4,12.083045973594572,4,13.038404810405298,0,15.556349186104045,0,15.556349186104045,2,11.401754250991379,10,8.6023252670426267,22,17.4928556845359,0,15.556349186104045,0,15.556349186104045,0,15.556349186104045,1,11.401754250991379,0,15.556349186104045]
[null,"$5,000 to $9,999",0,15.556349186104045,0,15.556349186104045,0,15.556349186104045,249,98.488578017961046,0,15.556349186104045,3,11.704699910719626,0,15.556349186104045,1,11.401754250991379,62,33.61547262794322,26,20.615528128088304,0,15.556349186104045,0,15.556349186104045,9,7.2111025509279782,0,15.556349186104045,0,15.556349186104045,0,15.556349186104045,3,11.704699910719626,0,15.556349186104045,51,47.296934361541872,0,15.556349186104045,0,15.556349186104045,0,15.556349186104045,0,15.556349186104045,60,38.183766184073569,0,15.556349186104045,0,15.556349186104045,0,15.556349186104045,0,15.556349186104045,0,15.556349186104045,0,15.556349186104045,0,15.556349186104045,31,19.697715603592208,2,11.401754250991379,0,15.556349186104045,0,15.556349186104045,1,11.401754250991379,13,8.9442719099991592,28,21.189620100417091,0,15.556349186104045,0,15.556349186104045,0,15.556349186104045,11,18.601075237738275,34,31.953090617340916]
[null,"$10,000 to $14,999",0,15.556349186104045,0,15.556349186104045,0,15.556349186104045,510,128.14054783713078,0,15.556349186104045,30,21.633307652783937,0,15.556349186104045,19,16.763054614240211,107,52.153619241621193,22,13.45362404707371,0,15.556349186104045,0,15.556349186104045,12,8.4852813742385695,0,15.556349186104045,0,15.556349186104045,1,11.180339887498949,29,16.552945357246848,0,15.556349186104045,49,42.720018726587654,0,15.556349186104045,0,15.556349186104045,0,15.556349186104045,0,15.556349186104045,77,47.507894080878813,0,15.556349186104045,0,15.556349186104045,0,15.556349186104045,0,15.556349186104045,0,15.556349186104045,0,15.556349186104045,0,15.556349186104045,29,16.124515496597098,13,11.180339887498949,0,15.556349186104045,0,15.556349186104045,7,5.8309518948453007,4,5,34,25,0,15.556349186104045,0,15.556349186104045,0,15.556349186104045,0,15.556349186104045,117,43.965895873961216]
[null,"$15,000 to $19,999",0,15.556349186104045,0,15.556349186104045,0,15.556349186104045,315,110.20889256316842,0,15.556349186104045,20,20.248456731316587,0,15.556349186104045,23,12.369316876852981,86,46.227697325304881,26,19.416487838947599,0,15.556349186104045,0,15.556349186104045,21,17.029386365926403,0,15.556349186104045,0,15.556349186104045,14,14.317821063276353,20,12.529964086141668,0,15.556349186104045,61,34.058772731852805,0,15.556349186104045,0,15.556349186104045,0,15.556349186104045,0,15.556349186104045,101,64.621977685614041,0,15.556349186104045,0,15.556349186104045,0,15.556349186104045,0,15.556349186104045,0,15.556349186104045,0,15.556349186104045,0,15.556349186104045,27,19.416487838947599,11,8.6023252670426267,0,15.556349186104045,0,15.556349186104045,9,6.4031242374328485,11,6.7082039324993694,36,18.867962264113206,0,15.556349186104045,0,15.556349186104045,0,15.556349186104045,0,15.556349186104045,124,55.226805085936306]
[null,"$20,000 to $24,999",0,15.556349186104045,0,15.556349186104045,0,15.556349186104045,280,99.31767214348109,4,13.038404810405298,28,21.023796041628639,0,15.556349186104045,15,16.278820596099706,61,30.479501308256342,26,15.620499351813308,0,15.556349186104045,0,15.556349186104045,31,21.189620100417091,0,15.556349186104045,0,15.556349186104045,12,8.2462112512353212,20,13.928388277184119,0,15.556349186104045,93,57.706152185014034,0,15.556349186104045,0,15.556349186104045,0,15.556349186104045,0,15.556349186104045,142,76.941536246685374,0,15.556349186104045,0,15.556349186104045,0,15.556349186104045,0,15.556349186104045,0,15.556349186104045,0,15.556349186104045,0,15.556349186104045,40,25.495097567963924,4,11.704699910719626,0,15.556349186104045,0,15.556349186104045,4,12.529964086141668,24,19.416487838947599,26,18.681541692269406,0,15.556349186104045,0,15.556349186104045,0,15.556349186104045,1,11.401754250991379,77,41.725292090050132]
[null,"$25,000 to $34,999",0,15.556349186104045,0,15.556349186104045,0,15.556349186104045,564,129.49517365523704,2,11.401754250991379,25,17.691806012954132,0,15.556349186104045,32,17.464249196572979,120,44.77722635447622,15,17.029386365926403,0,15.556349186104045,0,15.556349186104045,53,24.207436873820409,0,15.556349186104045,0,15.556349186104045,30,15.297058540778355,22,14.422205101855956,0,15.556349186104045,127,65.855903304107827,0,15.556349186104045,0,15.556349186104045,0,15.556349186104045,0,15.556349186104045,258,103.46980235798269,0,15.556349186104045,0,15.556349186104045,2,11.401754250991379,6,13.038404810405298,0,15.556349186104045,0,15.556349186104045,0,15.556349186104045,74,32.526911934581186,18,9.4868329805051381,0,15.556349186104045,0,15.556349186104045,16,14.866068747318506,25,15.811388300841896,68,31.89043743820395,0,15.556349186104045,0,15.556349186104045,0,15.556349186104045,0,15.556349186104045,119,51.623637996561229]
[null,"$35,000 to $49,999",0,15.556349186104045,0,15.556349186104045,0,15.556349186104045,605,141.59802258506295,0,15.556349186104045,56,27.586228448267445,0,15.556349186104045,28,12.649110640673518,176,61.26989472816156,32,18.027756377319946,0,15.556349186104045,0,15.556349186104045,76,26.92582403567252,4,12.529964086141668,3,12.529964086141668,24,10.198039027185569,21,14.142135623730951,0,15.556349186104045,207,66.030296076876709,0,15.556349186104045,0,15.556349186104045,0,15.556349186104045,0,15.556349186104045,111,69.526973183074787,0,15.556349186104045,0,15.556349186104045,7,12.529964086141668,2,11.704699910719626,0,15.556349186104045,0,15.556349186104045,0,15.556349186104045,80,30.265491900843113,22,15.231546211727817,0,15.556349186104045,0,15.556349186104045,36,15,49,20.615528128088304,49,20.248456731316587,0,15.556349186104045,0,15.556349186104045,0,15.556349186104045,11,16.278820596099706,153,56.568542494923804]
[null,"$50,000 to $74,999",0,15.556349186104045,0,15.556349186104045,0,15.556349186104045,704,132.40090634130871,2,12.083045973594572,80,37.013511046643494,0,15.556349186104045,16,14.212670403551895,200,64.007812023221035,66,25.495097567963924,0,15.556349186104045,0,15.556349186104045,116,40.718546143004666,0,15.556349186104045,0,15.556349186104045,9,13.601470508735444,39,20.248456731316587,0,15.556349186104045,293,83.630138108220294,0,15.556349186104045,0,15.556349186104045,0,15.556349186104045,0,15.556349186104045,325,91.389277270366904,0,15.556349186104045,0,15.556349186104045,0,15.556349186104045,0,15.556349186104045,0,15.556349186104045,0,15.556349186104045,0,15.556349186104045,69,33.837848631377263,38,15.811388300841896,0,15.556349186104045,0,15.556349186104045,36,15.811388300841896,38,15.264337522473747,63,31.622776601683793,0,15.556349186104045,0,15.556349186104045,0,15.556349186104045,13,9.8994949366116654,210,50.921508225896062]
[null,"$75,000 to $99,999",0,15.556349186104045,0,15.556349186104045,0,15.556349186104045,424,101.55294185792945,0,15.556349186104045,71,37.107950630558946,0,15.556349186104045,9,6.4031242374328485,175,58.189346103904619,31,12.649110640673518,0,15.556349186104045,0,15.556349186104045,46,23.706539182259394,0,15.556349186104045,0,15.556349186104045,19,14.142135623730951,17,11.704699910719626,0,15.556349186104045,177,57.280013966478741,0,15.556349186104045,0,15.556349186104045,0,15.556349186104045,0,15.556349186104045,190,76.400261779656233,0,15.556349186104045,0,15.556349186104045,0,15.556349186104045,0,15.556349186104045,0,15.556349186104045,0,15.556349186104045,0,15.556349186104045,50,28.231188426986208,35,12.165525060596439,0,15.556349186104045,0,15.556349186104045,24,15.524174696260024,16,14.866068747318506,14,14.866068747318506,0,15.556349186104045,0,15.556349186104045,0,15.556349186104045,0,15.556349186104045,107,35.171010790137949]
[null,"$100,000 to $149,999",0,15.556349186104045,0,15.556349186104045,0,15.556349186104045,274,79.906195003891909,0,15.556349186104045,26,20.248456731316587,0,15.556349186104045,9,13.601470508735444,67,30.413812651491099,38,19.416487838947599,0,15.556349186104045,0,15.556349186104045,25,16.278820596099706,0,15.556349186104045,0,15.556349186104045,25,17.029386365926403,5,11.704699910719626,0,15.556349186104045,117,61.98386886924694,0,15.556349186104045,0,15.556349186104045,0,15.556349186104045,0,15.556349186104045,174,62.361847310675458,0,15.556349186104045,0,15.556349186104045,0,15.556349186104045,0,15.556349186104045,0,15.556349186104045,0,15.556349186104045,0,15.556349186104045,16,14.866068747318506,19,17.029386365926403,5,12.529964086141668,0,15.556349186104045,22,16.278820596099706,14,11.661903789690601,28,26.40075756488817,0,15.556349186104045,0,15.556349186104045,0,15.556349186104045,0,15.556349186104045,80,55.443665102516448]
[null,"$150,000 or more",0,15.556349186104045,0,15.556349186104045,0,15.556349186104045,142,68.658575575087482,0,15.556349186104045,20,19.416487838947599,0,15.556349186104045,0,15.556349186104045,42,25.495097567963924,27,15.231546211727817,0,15.556349186104045,0,15.556349186104045,5,13.038404810405298,0,15.556349186104045,0,15.556349186104045,5,12.083045973594572,8,14.866068747318506,0,15.556349186104045,58,43.416586692184822,0,15.556349186104045,0,15.556349186104045,0,15.556349186104045,0,15.556349186104045,66,47.296934361541872,0,15.556349186104045,0,15.556349186104045,0,15.556349186104045,0,15.556349186104045,0,15.556349186104045,0,15.556349186104045,0,15.556349186104045,32,27.313000567495326,31,17.029386365926403,0,15.556349186104045,0,15.556349186104045,8,13.038404810405298,13,16.278820596099706,5,12.083045973594572,0,15.556349186104045,0,15.556349186104045,0,15.556349186104045,0,15.556349186104045,26,19.416487838947599]
[]
[]
[]
[]
[]
[]
[]
[]
[]
[]
[]
[]
[]
[]
[]
[]
[null,"B25118. TENURE BY HOUSEHOLD INCOME IN THE PAST 12 MONTHS (IN 2009 INFLATION-ADJUSTED DOLLARS) "]
[null,"Universe:  OCCUPIED HOUSING UNITS"]
[null,"Data Set: 2005-2009 American Community Survey 5-Year Estimates"]
[]
[null,null,"Atkinson and Gilmanton Grant",null,"Bean's Grant",null,"Bean's Purchase",null,"Berlin",null,"Cambridge",null,"Carroll",null,"Chandler's Purchase",null,"Clarksville",null,"Colebrook",null,"Columbia",null,"Crawford's Purchase",null,"Cutt's Grant",null,"Dalton",null,"Dix's Grant",null,"Dixville",null,"Dummer",null,"Errol",null,"Erving's Location",null,"Gorham",null,"Greens Grant",null,"Hadley's Purchase",null,"Jefferson",null,"Kilkenny",null,"Lancaster",null,"Low and Burbank's Grant",null,"Martin's Location",null,"Milan",null,"Millsfield",null,"Northumberland",null,"Odell",null,"Pinkham's Grant",null,"Pittsburg",null,"Randolph",null,"Sargent's Purchase",null,"Second College Grant",null,"Shelburne",null,"Stark",null,"Stewartstown",null,"Stratford",null,"Success",null,"Thompson and Meserves Purchase",null,"Wentworth's Location",null,"Whitefield"]
[null,null,"Estimate","Margin Of Error","Estimate","Margin Of Error","Estimate","Margin Of Error","Estimate","Margin Of Error","Estimate","Margin Of Error","Estimate","Margin Of Error","Estimate","Margin Of Error","Estimate","Margin Of Error","Estimate","Margin Of Error","Estimate","Margin Of Error","Estimate","Margin Of Error","Estimate","Margin Of Error","Estimate","Margin Of Error","Estimate","Margin Of Error","Estimate","Margin Of Error","Estimate","Margin Of Error","Estimate","Margin Of Error","Estimate","Margin Of Error","Estimate","Margin Of Error","Estimate","Margin Of Error","Estimate","Margin Of Error","Estimate","Margin Of Error","Estimate","Margin Of Error","Estimate","Margin Of Error","Estimate","Margin Of Error","Estimate","Margin Of Error","Estimate","Margin Of Error","Estimate","Margin Of Error","Estimate","Margin Of Error","Estimate","Margin Of Error","Estimate","Margin Of Error","Estimate","Margin Of Error","Estimate","Margin Of Error","Estimate","Margin Of Error","Estimate","Margin Of Error","Estimate","Margin Of Error","Estimate","Margin Of Error","Estimate","Margin Of Error","Estimate","Margin Of Error","Estimate","Margin Of Error","Estimate","Margin Of Error","Estimate","Margin Of Error","Estimate","Margin Of Error"]
[null,"Total:",0,114,0,114,0,114,4227,382,0,114,296,59,0,114,167,40,1116,126,344,64,0,114,0,114,469,55,0,114,8,8,151,49,119,32,0,114,1332,83,0,114,0,114,395,47,0,114,1248,119,0,114,0,114,567,44,4,5,1018,106,0,114,0,114,398,61,170,37,0,114,0,114,194,42,250,59,398,76,503,85,0,114,0,114,26,13,922,94]
[null,"Owner occupied:",0,114,0,114,0,114,2703,276,0,114,257,51,0,114,145,31,676,110,326,63,0,114,0,114,391,51,0,114,0,114,140,49,112,30,0,114,889,101,0,114,0,114,355,46,0,114,897,111,0,114,0,114,499,43,4,5,637,94,0,114,0,114,358,63,154,34,0,114,0,114,173,40,199,45,330,68,360,71,0,114,0,114,22,13,669,75]
[null,"Less than $5,000",0,114,0,114,0,114,67,64,0,114,12,17,0,114,0,114,0,114,12,14,0,114,0,114,14,11,0,114,0,114,0,114,0,114,0,114,0,114,0,114,0,114,17,15,0,114,18,20,0,114,0,114,3,5,0,114,9,14,0,114,0,114,6,9,0,114,0,114,0,114,0,114,0,114,10,11,0,114,0,114,0,114,0,114,6,9]
[null,"$5,000 to $9,999",0,114,0,114,0,114,31,26,0,114,6,8,0,114,2,3,11,14,0,114,0,114,0,114,11,9,0,114,0,114,1,4,0,114,0,114,8,12,0,114,0,114,12,13,0,114,19,22,0,114,0,114,20,21,0,114,0,114,0,114,0,114,5,8,0,114,0,114,0,114,5,6,0,114,8,10,43,29,0,114,0,114,0,114,50,47]
[null,"$10,000 to $14,999",0,114,0,114,0,114,106,60,0,114,6,7,0,114,10,8,85,56,22,17,0,114,0,114,11,9,0,114,0,114,5,5,5,7,0,114,53,34,0,114,0,114,10,12,0,114,21,23,0,114,0,114,15,10,0,114,21,18,0,114,0,114,33,21,2,3,0,114,0,114,0,114,9,9,14,10,26,23,0,114,0,114,0,114,28,31]
[null,"$15,000 to $19,999",0,114,0,114,0,114,155,70,0,114,4,6,0,114,11,10,72,54,9,11,0,114,0,114,6,7,0,114,0,114,6,8,5,5,0,114,0,114,0,114,0,114,0,114,0,114,37,27,0,114,0,114,10,8,0,114,33,25,0,114,0,114,10,11,4,6,0,114,0,114,11,8,14,11,16,14,22,17,0,114,0,114,4,6,16,14]
[null,"$20,000 to $24,999",0,114,0,114,0,114,213,102,0,114,4,6,0,114,17,11,56,38,16,14,0,114,0,114,13,10,0,114,0,114,13,9,12,9,0,114,46,36,0,114,0,114,10,7,0,114,14,18,0,114,0,114,31,14,0,114,54,36,0,114,0,114,38,23,0,114,0,114,0,114,3,4,12,11,54,26,34,27,0,114,0,114,3,5,24,18]
[null,"$25,000 to $34,999",0,114,0,114,0,114,257,75,0,114,39,21,0,114,31,18,70,40,49,28,0,114,0,114,55,18,0,114,0,114,23,12,26,15,0,114,75,39,0,114,0,114,16,12,0,114,64,52,0,114,0,114,48,21,4,5,63,35,0,114,0,114,32,19,18,12,0,114,0,114,6,7,31,22,32,19,55,35,0,114,0,114,8,10,102,36]
[null,"$35,000 to $49,999",0,114,0,114,0,114,497,134,0,114,45,20,0,114,29,16,106,47,27,18,0,114,0,114,68,27,0,114,0,114,6,5,12,7,0,114,247,91,0,114,0,114,48,25,0,114,112,55,0,114,0,114,76,23,0,114,124,46,0,114,0,114,63,30,12,10,0,114,0,114,21,11,46,29,80,34,72,28,0,114,0,114,0,114,70,32]
[null,"$50,000 to $74,999",0,114,0,114,0,114,726,135,0,114,60,26,0,114,11,9,104,50,62,28,0,114,0,114,141,48,0,114,0,114,58,49,19,15,0,114,158,63,0,114,0,114,92,27,0,114,276,89,0,114,0,114,155,30,0,114,221,62,0,114,0,114,105,37,31,17,0,114,0,114,38,16,32,20,71,30,67,34,0,114,0,114,7,8,175,51]
[null,"$75,000 to $99,999",0,114,0,114,0,114,480,117,0,114,42,26,0,114,25,14,72,39,63,38,0,114,0,114,35,18,0,114,0,114,22,12,20,13,0,114,125,54,0,114,0,114,68,24,0,114,174,54,0,114,0,114,59,21,0,114,65,35,0,114,0,114,37,22,59,25,0,114,0,114,33,17,32,19,18,17,25,16,0,114,0,114,0,114,98,41]
[null,"$100,000 to $149,999",0,114,0,114,0,114,139,61,0,114,36,19,0,114,6,8,87,55,42,30,0,114,0,114,34,15,0,114,0,114,4,5,11,9,0,114,107,49,0,114,0,114,37,15,0,114,110,56,0,114,0,114,71,24,0,114,47,32,0,114,0,114,19,14,20,16,0,114,0,114,31,20,17,14,22,15,4,6,0,114,0,114,0,114,79,57]
[null,"$150,000 or more",0,114,0,114,0,114,32,29,0,114,3,5,0,114,3,4,13,18,24,25,0,114,0,114,3,6,0,114,0,114,2,3,2,3,0,114,70,42,0,114,0,114,45,29,0,114,52,37,0,114,0,114,11,9,0,114,0,114,0,114,0,114,10,10,8,7,0,114,0,114,25,24,6,6,5,7,12,15,0,114,0,114,0,114,21,16]
[null,"Renter occupied:",0,114,0,114,0,114,1524,246,0,114,39,29,0,114,22,21,440,101,18,19,0,114,0,114,78,38,0,114,8,8,11,11,7,6,0,114,443,121,0,114,0,114,40,21,0,114,351,77,0,114,0,114,68,25,0,114,381,86,0,114,0,114,40,17,16,13,0,114,0,114,21,11,51,32,68,30,143,41,0,114,0,114,4,6,253,58]
[null,"Less than $5,000",0,114,0,114,0,114,147,64,0,114,0,114,0,114,0,114,15,17,0,114,0,114,0,114,4,6,0,114,0,114,0,114,0,114,0,114,8,12,0,114,0,114,0,114,0,114,24,27,0,114,0,114,0,114,0,114,0,114,0,114,0,114,5,9,0,114,0,114,0,114,3,5,4,7,5,9,16,22,0,114,0,114,0,114,11,18]
[null,"$5,000 to $9,999",0,114,0,114,0,114,200,114,0,114,0,114,0,114,0,114,88,59,0,114,0,114,0,114,11,14,0,114,0,114,0,114,0,114,0,114,17,19,0,114,0,114,0,114,0,114,26,30,0,114,0,114,3,4,0,114,45,40,0,114,0,114,3,4,0,114,0,114,0,114,0,114,0,114,12,15,16,17,0,114,0,114,0,114,69,39]
[null,"$10,000 to $14,999",0,114,0,114,0,114,214,102,0,114,0,114,0,114,3,4,79,47,0,114,0,114,0,114,5,5,0,114,0,114,6,8,0,114,0,114,33,25,0,114,0,114,0,114,0,114,30,31,0,114,0,114,4,5,0,114,68,44,0,114,0,114,16,11,4,5,0,114,0,114,4,6,0,114,0,114,30,22,0,114,0,114,4,6,68,38]
[null,"$15,000 to $19,999",0,114,0,114,0,114,169,77,0,114,0,114,0,114,0,114,45,43,4,6,0,114,0,114,0,114,0,114,0,114,0,114,3,4,0,114,85,69,0,114,0,114,0,114,0,114,27,41,0,114,0,114,3,4,0,114,27,21,0,114,0,114,3,6,3,5,0,114,0,114,0,114,2,4,13,12,18,20,0,114,0,114,0,114,5,7]
[null,"$20,000 to $24,999",0,114,0,114,0,114,191,76,0,114,0,114,0,114,0,114,32,31,0,114,0,114,0,114,6,6,0,114,0,114,0,114,0,114,0,114,49,40,0,114,0,114,11,10,0,114,52,48,0,114,0,114,8,7,0,114,61,56,0,114,0,114,0,114,0,114,0,114,0,114,5,5,4,6,0,114,0,114,0,114,0,114,0,114,15,15]
[null,"$25,000 to $34,999",0,114,0,114,0,114,147,66,0,114,16,18,0,114,14,19,55,48,3,5,0,114,0,114,13,14,0,114,0,114,0,114,2,4,0,114,77,64,0,114,0,114,22,18,0,114,76,63,0,114,0,114,16,15,0,114,76,43,0,114,0,114,4,5,7,10,0,114,0,114,0,114,23,24,0,114,19,17,0,114,0,114,0,114,12,13]
[null,"$35,000 to $49,999",0,114,0,114,0,114,209,97,0,114,13,19,0,114,5,7,52,37,0,114,0,114,0,114,23,23,0,114,0,114,5,5,2,3,0,114,141,106,0,114,0,114,0,114,0,114,21,25,0,114,0,114,13,9,0,114,59,45,0,114,0,114,9,10,2,3,0,114,0,114,4,6,18,18,6,9,40,27,0,114,0,114,0,114,45,35]
[null,"$50,000 to $74,999",0,114,0,114,0,114,196,112,0,114,10,14,0,114,0,114,56,59,11,17,0,114,0,114,4,6,0,114,8,8,0,114,0,114,0,114,14,16,0,114,0,114,7,10,0,114,66,56,0,114,0,114,14,10,0,114,13,14,0,114,0,114,0,114,0,114,0,114,0,114,5,6,0,114,28,21,0,114,0,114,0,114,0,114,28,28]
[null,"$75,000 to $99,999",0,114,0,114,0,114,27,33,0,114,0,114,0,114,0,114,12,16,0,114,0,114,0,114,8,11,0,114,0,114,0,114,0,114,0,114,0,114,0,114,0,114,0,114,0,114,14,23,0,114,0,114,7,7,0,114,27,25,0,114,0,114,0,114,0,114,0,114,0,114,0,114,0,114,4,7,4,8,0,114,0,114,0,114,0,114]
[null,"$100,000 to $149,999",0,114,0,114,0,114,24,26,0,114,0,114,0,114,0,114,0,114,0,114,0,114,0,114,4,5,0,114,0,114,0,114,0,114,0,114,0,114,0,114,0,114,0,114,0,114,0,114,0,114,0,114,0,114,0,114,5,9,0,114,0,114,0,114,0,114,0,114,0,114,0,114,0,114,0,114,0,114,0,114,0,114,0,114,0,114]
[null,"$150,000 or more",0,114,0,114,0,114,0,114,0,114,0,114,0,114,0,114,6,10,0,114,0,114,0,114,0,114,0,114,0,114,0,114,0,114,0,114,19,21,0,114,0,114,0,114,0,114,15,25,0,114,0,114,0,114,0,114,0,114,0,114,0,114,0,114,0,114,0,114,0,114,0,114,0,114,0,114,0,114,0,114,0,114,0,114,0,114]
[]
[]
[]
[]
[]
[null,"Calculated B25118. TENURE BY HOUSEHOLD INCOME IN THE PAST 12 MONTHS (IN 2009 INFLATION-ADJUSTED DOLLARS) "]
[null,"Universe:  OCCUPIED HOUSING UNITS"]
[null,"Data Set: 2005-2009 American Community Survey 5-Year Estimates"]
[null,null,"Atkinson and Gilmanton Grant",null,"Bean's Grant",null,"Bean's Purchase",null,"Berlin",null,"Cambridge",null,"Carroll",null,"Chandler's Purchase",null,"Clarksville",null,"Colebrook",null,"Columbia",null,"Crawford's Purchase",null,"Cutt's Grant",null,"Dalton",null,"Dix's Grant",null,"Dixville",null,"Dummer",null,"Errol",null,"Erving's Location",null,"Gorham",null,"Greens Grant",null,"Hadley's Purchase",null,"Jefferson",null,"Kilkenny",null,"Lancaster",null,"Low and Burbank's Grant",null,"Martin's Location",null,"Milan",null,"Millsfield",null,"Northumberland",null,"Odell",null,"Pinkham's Grant",null,"Pittsburg",null,"Randolph",null,"Sargent's Purchase",null,"Second College Grant",null,"Shelburne",null,"Stark",null,"Stewartstown",null,"Stratford",null,"Success",null,"Thompson and Meserves Purchase",null,"Wentworth's Location",null,"Whitefield"]
[null,null,"Estimate","Margin Of Error","Estimate","Margin Of Error","Estimate","Margin Of Error","Estimate","Margin Of Error","Estimate","Margin Of Error","Estimate","Margin Of Error","Estimate","Margin Of Error","Estimate","Margin Of Error","Estimate","Margin Of Error","Estimate","Margin Of Error","Estimate","Margin Of Error","Estimate","Margin Of Error","Estimate","Margin Of Error","Estimate","Margin Of Error","Estimate","Margin Of Error","Estimate","Margin Of Error","Estimate","Margin Of Error","Estimate","Margin Of Error","Estimate","Margin Of Error","Estimate","Margin Of Error","Estimate","Margin Of Error","Estimate","Margin Of Error","Estimate","Margin Of Error","Estimate","Margin Of Error","Estimate","Margin Of Error","Estimate","Margin Of Error","Estimate","Margin Of Error","Estimate","Margin Of Error","Estimate","Margin Of Error","Estimate","Margin Of Error","Estimate","Margin Of Error","Estimate","Margin Of Error","Estimate","Margin Of Error","Estimate","Margin Of Error","Estimate","Margin Of Error","Estimate","Margin Of Error","Estimate","Margin Of Error","Estimate","Margin Of Error","Estimate","Margin Of Error","Estimate","Margin Of Error","Estimate","Margin Of Error","Estimate","Margin Of Error","Estimate","Margin Of Error"]
[null,"Total:",0,114,0,114,0,114,4227,382,0,114,296,59,0,114,167,40,1116,126,344,64,0,114,0,114,469,55,0,114,8,8,151,49,119,32,0,114,1332,83,0,114,0,114,395,47,0,114,1248,119,0,114,0,114,567,44,4,5,1018,106,0,114,0,114,398,61,170,37,0,114,0,114,194,42,250,59,398,76,503,85,0,114,0,114,26,13,922,94]
[null,"Less than $5,000",0,161.22034611053283,0,161.22034611053283,0,161.22034611053283,214,90.509667991878089,0,161.22034611053283,12,115.26057435220423,0,161.22034611053283,0,161.22034611053283,15,115.26057435220423,12,114.85643212288984,0,161.22034611053283,0,161.22034611053283,18,12.529964086141668,0,161.22034611053283,0,161.22034611053283,0,161.22034611053283,0,161.22034611053283,0,161.22034611053283,8,114.62983904725679,0,161.22034611053283,0,161.22034611053283,17,114.9826073804208,0,161.22034611053283,42,33.600595232822883,0,161.22034611053283,0,161.22034611053283,3,114.10959644131601,0,161.22034611053283,9,114.85643212288984,0,161.22034611053283,0,161.22034611053283,11,12.727922061357855,0,161.22034611053283,0,161.22034611053283,0,161.22034611053283,3,114.10959644131601,4,114.21471008587291,15,14.212670403551895,16,116.10340218959993,0,161.22034611053283,0,161.22034611053283,0,161.22034611053283,17,20.124611797498108]
[null,"$5,000 to $9,999",0,161.22034611053283,0,161.22034611053283,0,161.22034611053283,231,116.92732785794773,0,161.22034611053283,6,114.28035701729323,0,161.22034611053283,2,114.03946685248927,99,60.638271743182131,0,161.22034611053283,0,161.22034611053283,0,161.22034611053283,22,16.643316977093239,0,161.22034611053283,0,161.22034611053283,1,114.0701538527936,0,161.22034611053283,0,161.22034611053283,25,22.472205054244231,0,161.22034611053283,0,161.22034611053283,12,114.73883387938018,0,161.22034611053283,45,37.20215047547655,0,161.22034611053283,0,161.22034611053283,23,21.377558326431949,0,161.22034611053283,45,120.81390648431164,0,161.22034611053283,0,161.22034611053283,8,8.9442719099991592,0,161.22034611053283,0,161.22034611053283,0,161.22034611053283,5,114.15778554264269,0,161.22034611053283,20,18.027756377319946,59,33.61547262794322,0,161.22034611053283,0,161.22034611053283,0,161.22034611053283,119,61.073725938409879]
[null,"$10,000 to $14,999",0,161.22034611053283,0,161.22034611053283,0,161.22034611053283,320,118.33849753989612,0,161.22034611053283,6,114.21471008587291,0,161.22034611053283,13,8.9442719099991592,164,73.109506905736964,22,115.26057435220423,0,161.22034611053283,0,161.22034611053283,16,10.295630140987001,0,161.22034611053283,0,161.22034611053283,11,9.4339811320566032,5,114.21471008587291,0,161.22034611053283,86,42.201895692018383,0,161.22034611053283,0,161.22034611053283,10,114.62983904725679,0,161.22034611053283,51,38.600518131237564,0,161.22034611053283,0,161.22034611053283,19,11.180339887498949,0,161.22034611053283,89,47.539457296018853,0,161.22034611053283,0,161.22034611053283,49,23.706539182259394,6,5.8309518948453007,0,161.22034611053283,0,161.22034611053283,4,114.15778554264269,9,114.35471131527551,14,114.43775600735974,56,31.827660925679098,0,161.22034611053283,0,161.22034611053283,4,114.15778554264269,96,49.040799340956916]
[null,"$15,000 to $19,999",0,161.22034611053283,0,161.22034611053283,0,161.22034611053283,324,104.06248123122954,0,161.22034611053283,4,114.15778554264269,0,161.22034611053283,11,114.43775600735974,117,69.028979421689272,13,12.529964086141668,0,161.22034611053283,0,161.22034611053283,6,114.21471008587291,0,161.22034611053283,0,161.22034611053283,6,114.28035701729323,8,6.4031242374328485,0,161.22034611053283,85,133.25539388707685,0,161.22034611053283,0,161.22034611053283,0,161.22034611053283,0,161.22034611053283,64,49.091750834534309,0,161.22034611053283,0,161.22034611053283,13,8.9442719099991592,0,161.22034611053283,60,32.649655434629018,0,161.22034611053283,0,161.22034611053283,13,12.529964086141668,7,7.810249675906654,0,161.22034611053283,0,161.22034611053283,11,114.28035701729323,16,11.704699910719626,29,18.439088914585774,40,26.248809496813376,0,161.22034611053283,0,161.22034611053283,4,114.15778554264269,21,15.652475842498529]
[null,"$20,000 to $24,999",0,161.22034611053283,0,161.22034611053283,0,161.22034611053283,404,127.20062892926276,0,161.22034611053283,4,114.15778554264269,0,161.22034611053283,17,114.52947218947619,88,49.040799340956916,16,114.85643212288984,0,161.22034611053283,0,161.22034611053283,19,11.661903789690601,0,161.22034611053283,0,161.22034611053283,13,114.35471131527551,12,114.35471131527551,0,161.22034611053283,95,53.814496188294839,0,161.22034611053283,0,161.22034611053283,21,12.206555615733702,0,161.22034611053283,66,51.264022471905186,0,161.22034611053283,0,161.22034611053283,39,15.652475842498529,0,161.22034611053283,115,66.573267908372955,0,161.22034611053283,0,161.22034611053283,38,116.29703349613007,0,161.22034611053283,0,161.22034611053283,0,161.22034611053283,8,6.4031242374328485,16,12.529964086141668,54,116.92732785794773,34,117.15374513859982,0,161.22034611053283,0,161.22034611053283,3,114.10959644131601,39,23.430749027719962]
[null,"$25,000 to $34,999",0,161.22034611053283,0,161.22034611053283,0,161.22034611053283,404,99.904954832080278,0,161.22034611053283,55,27.658633371878661,0,161.22034611053283,45,26.172504656604801,125,62.481997407253232,52,28.442925306655784,0,161.22034611053283,0,161.22034611053283,68,22.803508501982758,0,161.22034611053283,0,161.22034611053283,23,114.62983904725679,28,15.524174696260024,0,161.22034611053283,152,74.94664769020693,0,161.22034611053283,0,161.22034611053283,38,21.633307652783937,0,161.22034611053283,140,81.688432473637292,0,161.22034611053283,0,161.22034611053283,64,25.80697580112788,4,114.10959644131601,139,55.443665102516448,0,161.22034611053283,0,161.22034611053283,36,19.646882704388499,25,15.620499351813308,0,161.22034611053283,0,161.22034611053283,6,114.21471008587291,54,32.557641192199412,32,115.57248807566617,74,38.910152916687437,0,161.22034611053283,0,161.22034611053283,8,114.43775600735974,114,38.275318418009277]
[null,"$35,000 to $49,999",0,161.22034611053283,0,161.22034611053283,0,161.22034611053283,706,165.42369842317032,0,161.22034611053283,58,27.586228448267445,0,161.22034611053283,34,17.464249196572979,158,59.816385714952723,27,115.41230437002807,0,161.22034611053283,0,161.22034611053283,91,35.468295701936398,0,161.22034611053283,0,161.22034611053283,11,7.0710678118654755,14,7.6157731058639087,0,161.22034611053283,388,139.70325694127536,0,161.22034611053283,0,161.22034611053283,48,116.70903992407786,0,161.22034611053283,133,60.415229867972862,0,161.22034611053283,0,161.22034611053283,89,24.698178070456937,0,161.22034611053283,183,64.350602172784676,0,161.22034611053283,0,161.22034611053283,72,31.622776601683793,14,10.440306508910551,0,161.22034611053283,0,161.22034611053283,25,12.529964086141668,64,34.132096331752024,86,35.171010790137949,112,38.897300677553446,0,161.22034611053283,0,161.22034611053283,0,161.22034611053283,115,47.423622805517503]
[null,"$50,000 to $74,999",0,161.22034611053283,0,161.22034611053283,0,161.22034611053283,922,175.410946066658,0,161.22034611053283,70,29.529646120466801,0,161.22034611053283,11,114.35471131527551,160,77.336925203941234,73,32.756678708318397,0,161.22034611053283,0,161.22034611053283,145,48.373546489791295,0,161.22034611053283,8,114.28035701729323,58,124.08464852672147,19,114.9826073804208,0,161.22034611053283,172,65,0,161.22034611053283,0,161.22034611053283,99,28.792360097775937,0,161.22034611053283,342,105.152270541344,0,161.22034611053283,0,161.22034611053283,169,31.622776601683793,0,161.22034611053283,234,63.560994328282817,0,161.22034611053283,0,161.22034611053283,105,119.85407794480753,31,115.26057435220423,0,161.22034611053283,0,161.22034611053283,43,17.088007490635061,32,115.7410903698423,99,36.61966684720111,67,118.96217886370441,0,161.22034611053283,0,161.22034611053283,7,114.28035701729323,203,58.180752831155424]
[null,"$75,000 to $99,999",0,161.22034611053283,0,161.22034611053283,0,161.22034611053283,507,121.56479753612885,0,161.22034611053283,42,116.92732785794773,0,161.22034611053283,25,114.85643212288984,84,42.154477816715982,63,120.16655108639841,0,161.22034611053283,0,161.22034611053283,43,21.095023109728988,0,161.22034611053283,0,161.22034611053283,22,114.62983904725679,20,114.73883387938018,0,161.22034611053283,125,126.14277624977183,0,161.22034611053283,0,161.22034611053283,68,116.49892703368559,0,161.22034611053283,188,58.694122363316758,0,161.22034611053283,0,161.22034611053283,66,22.135943621178654,0,161.22034611053283,92,43.011626335213137,0,161.22034611053283,0,161.22034611053283,37,116.10340218959993,59,116.70903992407786,0,161.22034611053283,0,161.22034611053283,33,115.26057435220423,32,115.57248807566617,22,18.384776310850235,29,17.888543819998318,0,161.22034611053283,0,161.22034611053283,0,161.22034611053283,98,121.14866899805379]
[null,"$100,000 to $149,999",0,161.22034611053283,0,161.22034611053283,0,161.22034611053283,163,66.309878600401618,0,161.22034611053283,36,115.57248807566617,0,161.22034611053283,6,114.28035701729323,87,126.57408897558773,42,117.881296226331,0,161.22034611053283,0,161.22034611053283,38,15.811388300841896,0,161.22034611053283,0,161.22034611053283,4,114.10959644131601,11,114.35471131527551,0,161.22034611053283,107,124.08464852672147,0,161.22034611053283,0,161.22034611053283,37,114.9826073804208,0,161.22034611053283,110,127.01181047445942,0,161.22034611053283,0,161.22034611053283,71,116.49892703368559,0,161.22034611053283,52,33.241540277189323,0,161.22034611053283,0,161.22034611053283,19,114.85643212288984,20,115.11733144926528,0,161.22034611053283,0,161.22034611053283,31,115.7410903698423,17,114.85643212288984,22,114.9826073804208,4,114.15778554264269,0,161.22034611053283,0,161.22034611053283,0,161.22034611053283,79,127.45587471748802]
[null,"$150,000 or more",0,161.22034611053283,0,161.22034611053283,0,161.22034611053283,32,117.63077828527702,0,161.22034611053283,3,114.10959644131601,0,161.22034611053283,3,114.0701538527936,19,20.591260281974002,24,116.70903992407786,0,161.22034611053283,0,161.22034611053283,3,114.15778554264269,0,161.22034611053283,0,161.22034611053283,2,114.03946685248927,2,114.03946685248927,0,161.22034611053283,89,46.957427527495582,0,161.22034611053283,0,161.22034611053283,45,117.63077828527702,0,161.22034611053283,67,44.654227123532216,0,161.22034611053283,0,161.22034611053283,11,114.35471131527551,0,161.22034611053283,0,161.22034611053283,0,161.22034611053283,0,161.22034611053283,10,114.43775600735974,8,114.21471008587291,0,161.22034611053283,0,161.22034611053283,25,116.49892703368559,6,114.15778554264269,5,114.21471008587291,12,114.9826073804208,0,161.22034611053283,0,161.22034611053283,0,161.22034611053283,21,115.11733144926528]

{"sheet":"ACS_Table_B25119","index":40,"n_rows":68,"n_cols":88,"rows_kept":68,"cut":false,"hidden":true,"merged":[]}
[null,"B25119. MEDIAN HOUSEHOLD INCOME THE PAST 12 MONTHS (IN 2019 INFLATION-ADJUSTED DOLLARS) BY TENURE"]
[null," Universe:  OCCUPIED HOUSING UNITS"]
[null,"Data Set: 2015-2019 American Community Survey 5-Year Estimates"]
[]
[null,null,"Atkinson and Gilmanton Grant",null,"Bean's Grant",null,"Bean's Purchase",null,"Berlin",null,"Cambridge",null,"Carroll",null,"Chandler's Purchase",null,"Clarksville",null,"Colebrook",null,"Columbia",null,"Crawford's Purchase",null,"Cutt's Grant",null,"Dalton",null,"Dix's Grant",null,"Dixville",null,"Dummer",null,"Errol",null,"Erving's Location",null,"Gorham",null,"Greens Grant",null,"Hadley's Purchase",null,"Jefferson",null,"Kilkenny",null,"Lancaster",null,"Low and Burbank's Grant",null,"Martin's Location",null,"Milan",null,"Millsfield",null,"Northumberland",null,"Odell",null,"Pinkham's Grant",null,"Pittsburg",null,"Randolph",null,"Sargent's Purchase",null,"Second College Grant",null,"Shelburne",null,"Stark",null,"Stewartstown",null,"Stratford",null,"Success",null,"Thompson and Meserves Purchase",null,"Wentworth's Location",null,"Whitefield"]
[null,null,"Estimate","Margin Of Error","Estimate","Margin Of Error","Estimate","Margin Of Error","Estimate","Margin Of Error","Estimate","Margin Of Error","Estimate","Margin Of Error","Estimate","Margin Of Error","Estimate","Margin Of Error","Estimate","Margin Of Error","Estimate","Margin Of Error","Estimate","Margin Of Error","Estimate","Margin Of Error","Estimate","Margin Of Error","Estimate","Margin Of Error","Estimate","Margin Of Error","Estimate","Margin Of Error","Estimate","Margin Of Error","Estimate","Margin Of Error","Estimate","Margin Of Error","Estimate","Margin Of Error","Estimate","Margin Of Error","Estimate","Margin Of Error","Estimate","Margin Of Error","Estimate","Margin Of Error","Estimate","Margin Of Error","Estimate","Margin Of Error","Estimate","Margin Of Error","Estimate","Margin Of Error","Estimate","Margin Of Error","Estimate","Margin Of Error","Estimate","Margin Of Error","Estimate","Margin Of Error","Estimate","Margin Of Error","Estimate","Margin Of Error","Estimate","Margin Of Error","Estimate","Margin Of Error","Estimate","Margin Of Error","Estimate","Margin Of Error","Estimate","Margin Of Error","Estimate","Margin Of Error","Estimate","Margin Of Error","Estimate","Margin Of Error","Estimate","Margin Of Error"]
[null,"Median household income in the past 12 months"]
[null,"Total:","-","**","-","**","-","**",39130,3380,"-","**",62917,7336,"-","**",50625,21837,42500,10195,44250,7402,"-","**","-","**",53618,2772,"-","**","-","**",51875,10554,56458,16233,"-","**",57926,6201,"-","**","-","**",55625,9839,"-","**",55192,10259,"-","**","-","**",62644,13198,"-","**",45000,6247,"-","**","-","**",44448,9511,84000,20452,"-","**","-","**",68333,9578,47396,5139,47000,16681,34219,10230,"-","**","-","**",25000,15067,47969,9159]
[null,"Owner occupied (dollars)","-","**","-","**","-","**",61413,9918,"-","**",64375,10579,"-","**",48750,24511,50833,10618,47875,7543,"-","**","-","**",53421,2696,"-","**","-","**",53750,10929,56458,19091,"-","**",70625,10373,"-","**","-","**",61136,12509,"-","**",59570,2597,"-","**","-","**",62670,15208,"-","**",55000,9269,"-","**","-","**",53241,2009,95625,16864,"-","**","-","**",78438,12920,48654,5731,51500,16932,41250,5617,"-","**","-","**",26250,19061,58365,8839]
[null,"Renter occupied (dollars)","-","**","-","**","-","**",22451,4337,"-","**",59167,10694,"-","**",61250,60665,25793,2281,"-","**","-","**","-","**",56250,11911,"-","**","-","**",39375,26606,"-","**","-","**",37356,11368,"-","**","-","**",31979,16411,"-","**",38882,12367,"-","**","-","**",60000,19345,"-","**",32813,5290,"-","**","-","**",26979,15459,59375,45093,"-","**","-","**",31875,20413,45179,24696,28333,18139,21964,10695,"-","**","-","**","-","**",26713,10761]
[]
[]
[]
[]
[]
[]
[]
[]
[]
[]
[]
[]
[]
[]
[]
[]
[]
[]
[]
[null,"B25119. MEDIAN HOUSEHOLD INCOME THE PAST 12 MONTHS (IN 2014 INFLATION-ADJUSTED DOLLARS) BY TENURE"]
[null," Universe:  OCCUPIED HOUSING UNITS"]
[null,"Data Set: 2010-2014 American Community Survey 5-Year Estimates"]
[]
[null,null,"Atkinson and Gilmanton Grant",null,"Bean's Grant",null,"Bean's Purchase",null,"Berlin",null,"Cambridge",null,"Carroll",null,"Chandler's Purchase",null,"Clarksville",null,"Colebrook",null,"Columbia",null,"Crawford's Purchase",null,"Cutt's Grant",null,"Dalton",null,"Dix's Grant",null,"Dixville",null,"Dummer",null,"Errol",null,"Erving's Location",null,"Gorham",null,"Greens Grant",null,"Hadley's Purchase",null,"Jefferson",null,"Kilkenny",null,"Lancaster",null,"Low and Burbank's Grant",null,"Martin's Location",null,"Milan",null,"Millsfield",null,"Northumberland",null,"Odell",null,"Pinkham's Grant",null,"Pittsburg",null,"Randolph",null,"Sargent's Purchase",null,"Second College Grant",null,"Shelburne",null,"Stark",null,"Stewartstown",null,"Stratford",null,"Success",null,"Thompson and Meserves Purchase",null,"Wentworth's Location",null,"Whitefield"]
[null,null,"Estimate","Margin Of Error","Estimate","Margin Of Error","Estimate","Margin Of Error","Estimate","Margin Of Error","Estimate","Margin Of Error","Estimate","Margin Of Error","Estimate","Margin Of Error","Estimate","Margin Of Error","Estimate","Margin Of Error","Estimate","Margin Of Error","Estimate","Margin Of Error","Estimate","Margin Of Error","Estimate","Margin Of Error","Estimate","Margin Of Error","Estimate","Margin Of Error","Estimate","Margin Of Error","Estimate","Margin Of Error","Estimate","Margin Of Error","Estimate","Margin Of Error","Estimate","Margin Of Error","Estimate","Margin Of Error","Estimate","Margin Of Error","Estimate","Margin Of Error","Estimate","Margin Of Error","Estimate","Margin Of Error","Estimate","Margin Of Error","Estimate","Margin Of Error","Estimate","Margin Of Error","Estimate","Margin Of Error","Estimate","Margin Of Error","Estimate","Margin Of Error","Estimate","Margin Of Error","Estimate","Margin Of Error","Estimate","Margin Of Error","Estimate","Margin Of Error","Estimate","Margin Of Error","Estimate","Margin Of Error","Estimate","Margin Of Error","Estimate","Margin Of Error","Estimate","Margin Of Error","Estimate","Margin Of Error","Estimate","Margin Of Error","Estimate","Margin Of Error"]
[null,"Median household income in the past 12 months"]
[null,"Total:","-","**","-","**","-","**",36358,3279,26250,26723,55192,10581,"-","**",27917,4605,45788,3945,51875,9694,"-","**","-","**",46324,6680,"-","**","-","**",39271,6530,33750,14593,"-","**",51838,7145,"-","**","-","**","-","**","-","**",47292,11780,"-","**","-","**",45250,8498,33750,6242,"-","**","-","**","-","**",38000,8350,71375,6465,"-","**","-","**",54063,6469,39191,5027,28661,5941,"-","**","-","**","-","**",41964,25548,44042,8079]
[null,"Owner occupied (dollars)","-","**","-","**","-","**",52237,4912,26250,26723,61042,21224,"-","**",27426,3956,52196,6193,58214,7308,"-","**","-","**",51875,8213,"-","**","-","**",39091,5748,40156,22681,"-","**",59779,8142,"-","**","-","**","-","**","-","**",59048,7719,"-","**","-","**",45250,8498,33750,6242,"-","**","-","**","-","**",46838,6432,74028,5885,"-","**","-","**",57292,14303,39922,5894,33750,13553,"-","**","-","**","-","**",43750,17128,55759,5944]
[null,"Renter occupied (dollars)","-","**","-","**","-","**",20313,4585,"-","**",49886,4877,"-","**",30938,13709,21481,6383,14792,15260,"-","**","-","**",27250,14875,"-","**","-","**",75179,97929,31406,17134,"-","**",26458,7999,"-","**","-","**","-","**","-","**",24965,8069,"-","**","-","**","-","**","-","**","-","**","-","**","-","**",23646,13434,25000,28726,"-","**","-","**",45500,24684,33750,10372,26298,3274,"-","**","-","**","-","**",9375,34506,18651,2200]
[]
[]
[]
[]
[]
[]
[]
[]
[]
[]
[]
[]
[]
[]
[]
[]
[]
[]
[]
[null,"B25119. MEDIAN HOUSEHOLD INCOME THE PAST 12 MONTHS (IN 2009 INFLATION-ADJUSTED DOLLARS) BY TENURE"]
[null," Universe:  OCCUPIED HOUSING UNITS"]
[null,"Data Set: 2005-2009 American Community Survey 5-Year Estimates"]
[]
[null,null,"Atkinson and Gilmanton Grant",null,"Bean's Grant",null,"Bean's Purchase",null,"Berlin",null,"Cambridge",null,"Carroll",null,"Chandler's Purchase",null,"Clarksville",null,"Colebrook",null,"Columbia",null,"Crawford's Purchase",null,"Cutt's Grant",null,"Dalton",null,"Dix's Grant",null,"Dixville",null,"Dummer",null,"Errol",null,"Erving's Location",null,"Gorham",null,"Greens Grant",null,"Hadley's Purchase",null,"Jefferson",null,"Kilkenny",null,"Lancaster",null,"Low and Burbank's Grant",null,"Martin's Location",null,"Milan",null,"Millsfield",null,"Northumberland",null,"Odell",null,"Pinkham's Grant",null,"Pittsburg",null,"Randolph",null,"Sargent's Purchase",null,"Second College Grant",null,"Shelburne",null,"Stark",null,"Stewartstown",null,"Stratford",null,"Success",null,"Thompson and Meserves Purchase",null,"Wentworth's Location",null,"Whitefield"]
[null,null,"Estimate","Margin Of Error","Estimate","Margin Of Error","Estimate","Margin Of Error","Estimate","Margin Of Error","Estimate","Margin Of Error","Estimate","Margin Of Error","Estimate","Margin Of Error","Estimate","Margin Of Error","Estimate","Margin Of Error","Estimate","Margin Of Error","Estimate","Margin Of Error","Estimate","Margin Of Error","Estimate","Margin Of Error","Estimate","Margin Of Error","Estimate","Margin Of Error","Estimate","Margin Of Error","Estimate","Margin Of Error","Estimate","Margin Of Error","Estimate","Margin Of Error","Estimate","Margin Of Error","Estimate","Margin Of Error","Estimate","Margin Of Error","Estimate","Margin Of Error","Estimate","Margin Of Error","Estimate","Margin Of Error","Estimate","Margin Of Error","Estimate","Margin Of Error","Estimate","Margin Of Error","Estimate","Margin Of Error","Estimate","Margin Of Error","Estimate","Margin Of Error","Estimate","Margin Of Error","Estimate","Margin Of Error","Estimate","Margin Of Error","Estimate","Margin Of Error","Estimate","Margin Of Error","Estimate","Margin Of Error","Estimate","Margin Of Error","Estimate","Margin Of Error","Estimate","Margin Of Error","Estimate","Margin Of Error","Estimate","Margin Of Error","Estimate","Margin Of Error"]
[null,"Median household income in the past 12 months"]
[null,"Total:","**","**","**","**","**","**",40199,2764,"**","**",52500,19195,"**","**",34464,4247,29643,6354,56161,5642,"**","**","**","**",49313,7928,"**","**",58750,13016,53090,10457,39531,22476,"**","**",41702,1504,"**","**","**","**",61250,4347,"**","**",53292,4737,"**","**","**","**",55433,5786,"**","**",39250,7285,"**","**","**","**",44808,6365,79167,17553,"**","**","**","**",68750,18708,40972,4670,39773,8077,33472,4089,"**","**","**","**",25625,10134,39211,15322]
[null,"Owner occupied (dollars)","**","**","**","**","**","**",52708,6513,"**","**",56250,16546,"**","**",35536,6449,46182,11893,56618,9731,"**","**","**","**",54191,6138,"**","**","**","**",53472,7900,47500,19751,"**","**",55096,11675,"**","**","**","**",62371,10179,"**","**",61118,3784,"**","**","**","**",56989,6443,"**","**",50929,3624,"**","**","**","**",48462,7269,83571,10003,"**","**","**","**",80179,22566,45250,7860,40417,7610,35000,6899,"**","**","**","**",26250,20488,53542,9707]
[null,"Renter occupied (dollars)","**","**","**","**","**","**",20769,2575,"**","**",40673,16322,"**","**",33929,4203,17111,11750,55455,39181,"**","**","**","**",38750,17606,"**","**",58750,13016,14792,39966,33125,18966,"**","**",28539,7145,"**","**","**","**",27045,2889,"**","**",27292,11467,"**","**","**","**",33750,23572,"**","**",24475,4134,"**","**","**","**",12500,4086,30357,22575,"**","**","**","**",24250,27808,32917,4857,36667,41606,16319,13973,"**","**","**","**","**","**",13778,4606]

{"sheet":"ACS_Table_B25001","index":41,"n_rows":29,"n_cols":88,"rows_kept":29,"cut":false,"hidden":true,"merged":[]}
[null,"B25001. HOUSING UNITS"]
[null,"Universe:  HOUSING UNITS"]
[null,"Data Set: 2015-2019 American Community Survey 5-Year Estimates"]
[]
[null,null,"Atkinson and Gilmanton Grant",null,"Bean's Grant",null,"Bean's Purchase",null,"Berlin",null,"Cambridge",null,"Carroll",null,"Chandler's Purchase",null,"Clarksville",null,"Colebrook",null,"Columbia",null,"Crawford's Purchase",null,"Cutt's Grant",null,"Dalton",null,"Dix's Grant",null,"Dixville",null,"Dummer",null,"Errol",null,"Erving's Location",null,"Gorham",null,"Greens Grant",null,"Hadley's Purchase",null,"Jefferson",null,"Kilkenny",null,"Lancaster",null,"Low and Burbank's Grant",null,"Martin's Location",null,"Milan",null,"Millsfield",null,"Northumberland",null,"Odell",null,"Pinkham's Grant",null,"Pittsburg",null,"Randolph",null,"Sargent's Purchase",null,"Second College Grant",null,"Shelburne",null,"Stark",null,"Stewartstown",null,"Stratford",null,"Success",null,"Thompson and Meserves Purchase",null,"Wentworth's Location",null,"Whitefield"]
[null,null,"Estimate","Margin Of Error","Estimate","Margin Of Error","Estimate","Margin Of Error","Estimate","Margin Of Error","Estimate","Margin Of Error","Estimate","Margin Of Error","Estimate","Margin Of Error","Estimate","Margin Of Error","Estimate","Margin Of Error","Estimate","Margin Of Error","Estimate","Margin Of Error","Estimate","Margin Of Error","Estimate","Margin Of Error","Estimate","Margin Of Error","Estimate","Margin Of Error","Estimate","Margin Of Error","Estimate","Margin Of Error","Estimate","Margin Of Error","Estimate","Margin Of Error","Estimate","Margin Of Error","Estimate","Margin Of Error","Estimate","Margin Of Error","Estimate","Margin Of Error","Estimate","Margin Of Error","Estimate","Margin Of Error","Estimate","Margin Of Error","Estimate","Margin Of Error","Estimate","Margin Of Error","Estimate","Margin Of Error","Estimate","Margin Of Error","Estimate","Margin Of Error","Estimate","Margin Of Error","Estimate","Margin Of Error","Estimate","Margin Of Error","Estimate","Margin Of Error","Estimate","Margin Of Error","Estimate","Margin Of Error","Estimate","Margin Of Error","Estimate","Margin Of Error","Estimate","Margin Of Error","Estimate","Margin Of Error","Estimate","Margin Of Error","Estimate","Margin Of Error"]
[null,"Total",0,11,0,11,0,11,4784,216,29,13,924,76,0,11,461,55,1478,78,518,58,0,11,0,11,597,66,13,7,29,11,267,34,473,45,0,11,1515,103,0,11,0,11,644,72,0,11,1610,154,0,11,0,11,886,64,69,24,1170,86,0,11,0,11,1816,100,354,46,0,11,28,20,244,32,492,47,943,78,557,68,59,22,0,11,112,22,1447,92]
[]
[]
[]
[]
[null,"B25001. HOUSING UNITS"]
[null,"Universe:  HOUSING UNITS"]
[null,"Data Set: 2010-2014 American Community Survey 5-Year Estimates"]
[]
[null,null,"Atkinson and Gilmanton Grant",null,"Bean's Grant",null,"Bean's Purchase",null,"Berlin",null,"Cambridge",null,"Carroll",null,"Chandler's Purchase",null,"Clarksville",null,"Colebrook",null,"Columbia",null,"Crawford's Purchase",null,"Cutt's Grant",null,"Dalton",null,"Dix's Grant",null,"Dixville",null,"Dummer",null,"Errol",null,"Erving's Location",null,"Gorham",null,"Greens Grant",null,"Hadley's Purchase",null,"Jefferson",null,"Kilkenny",null,"Lancaster",null,"Low and Burbank's Grant",null,"Martin's Location",null,"Milan",null,"Millsfield",null,"Northumberland",null,"Odell",null,"Pinkham's Grant",null,"Pittsburg",null,"Randolph",null,"Sargent's Purchase",null,"Second College Grant",null,"Shelburne",null,"Stark",null,"Stewartstown",null,"Stratford",null,"Success",null,"Thompson and Meserves Purchase",null,"Wentworth's Location",null,"Whitefield"]
[null,null,"Estimate","Margin Of Error","Estimate","Margin Of Error","Estimate","Margin Of Error","Estimate","Margin Of Error","Estimate","Margin Of Error","Estimate","Margin Of Error","Estimate","Margin Of Error","Estimate","Margin Of Error","Estimate","Margin Of Error","Estimate","Margin Of Error","Estimate","Margin Of Error","Estimate","Margin Of Error","Estimate","Margin Of Error","Estimate","Margin Of Error","Estimate","Margin Of Error","Estimate","Margin Of Error","Estimate","Margin Of Error","Estimate","Margin Of Error","Estimate","Margin Of Error","Estimate","Margin Of Error","Estimate","Margin Of Error","Estimate","Margin Of Error","Estimate","Margin Of Error","Estimate","Margin Of Error","Estimate","Margin Of Error","Estimate","Margin Of Error","Estimate","Margin Of Error","Estimate","Margin Of Error","Estimate","Margin Of Error","Estimate","Margin Of Error","Estimate","Margin Of Error","Estimate","Margin Of Error","Estimate","Margin Of Error","Estimate","Margin Of Error","Estimate","Margin Of Error","Estimate","Margin Of Error","Estimate","Margin Of Error","Estimate","Margin Of Error","Estimate","Margin Of Error","Estimate","Margin Of Error","Estimate","Margin Of Error","Estimate","Margin Of Error","Estimate","Margin Of Error"]
[null,"Total",0,11,0,11,0,11,4854,326,44,13,945,68,0,11,445,53,1416,77,510,59,0,11,0,11,527,71,33,11,32,11,287,40,464,43,0,11,1452,97,0,11,0,11,0,11,0,11,1746,96,0,11,0,11,72,19,58,17,83,21,82,19,0,11,1758,104,344,40,5,6,6,9,204,31,437,47,945,84,46,16,47,18,0,11,114,26,1429,89]
[]
[]
[]
[]
[null,"B25001. HOUSING UNITS"]
[null,"Universe:  HOUSING UNITS"]
[null,"Data Set: 2005-2009 American Community Survey 5-Year Estimates"]
[]
[null,null,"Atkinson and Gilmanton Grant",null,"Bean's Grant",null,"Bean's Purchase",null,"Berlin",null,"Cambridge",null,"Carroll",null,"Chandler's Purchase",null,"Clarksville",null,"Colebrook",null,"Columbia",null,"Crawford's Purchase",null,"Cutt's Grant",null,"Dalton",null,"Dix's Grant",null,"Dixville",null,"Dummer",null,"Errol",null,"Erving's Location",null,"Gorham",null,"Greens Grant",null,"Hadley's Purchase",null,"Jefferson",null,"Kilkenny",null,"Lancaster",null,"Low and Burbank's Grant",null,"Martin's Location",null,"Milan",null,"Millsfield",null,"Northumberland",null,"Odell",null,"Pinkham's Grant",null,"Pittsburg",null,"Randolph",null,"Sargent's Purchase",null,"Second College Grant",null,"Shelburne",null,"Stark",null,"Stewartstown",null,"Stratford",null,"Success",null,"Thompson and Meserves Purchase",null,"Wentworth's Location",null,"Whitefield"]
[null," ","Estimate","Margin of Error","Estimate","Margin of Error","Estimate","Margin of Error","Estimate","Margin of Error","Estimate","Margin of Error","Estimate","Margin of Error","Estimate","Margin of Error","Estimate","Margin of Error","Estimate","Margin of Error","Estimate","Margin of Error","Estimate","Margin of Error"]
[null,"Total",14,20,0,114,0,114,4839,334,27,9,778,63,0,114,347,46,1433,108,571,73,0,114,0,114,603,75,15,8,26,8,253,53,478,57,0,114,1474,104,0,114,0,114,591,60,0,114,1464,152,0,114,0,114,750,61,40,11,1128,104,74,16,0,114,1338,83,372,59,0,114,13,19,226,48,389,63,752,71,684,93,90,39,0,114,99,19,1248,88]

{"sheet":"ACS_Table_B25003","index":42,"n_rows":42,"n_cols":88,"rows_kept":42,"cut":false,"hidden":true,"merged":[]}
[null,"B25003. TENURE"]
[null,"Universe:  OCCUPIED HOUSING UNITS"]
[null,"Data Set: 2015-2019 American Community Survey 5-Year Estimates"]
[]
[null,null,"Atkinson and Gilmanton Grant",null,"Bean's Grant",null,"Bean's Purchase",null,"Berlin",null,"Cambridge",null,"Carroll",null,"Chandler's Purchase",null,"Clarksville",null,"Colebrook",null,"Columbia",null,"Crawford's Purchase",null,"Cutt's Grant",null,"Dalton",null,"Dix's Grant",null,"Dixville",null,"Dummer",null,"Errol",null,"Erving's Location",null,"Gorham",null,"Greens Grant",null,"Hadley's Purchase",null,"Jefferson",null,"Kilkenny",null,"Lancaster",null,"Low and Burbank's Grant",null,"Martin's Location",null,"Milan",null,"Millsfield",null,"Northumberland",null,"Odell",null,"Pinkham's Grant",null,"Pittsburg",null,"Randolph",null,"Sargent's Purchase",null,"Second College Grant",null,"Shelburne",null,"Stark",null,"Stewartstown",null,"Stratford",null,"Success",null,"Thompson and Meserves Purchase",null,"Wentworth's Location",null,"Whitefield"]
[null,null,"Estimate","Margin Of Error","Estimate","Margin Of Error","Estimate","Margin Of Error","Estimate","Margin Of Error","Estimate","Margin Of Error","Estimate","Margin Of Error","Estimate","Margin Of Error","Estimate","Margin Of Error","Estimate","Margin Of Error","Estimate","Margin Of Error","Estimate","Margin Of Error","Estimate","Margin Of Error","Estimate","Margin Of Error","Estimate","Margin Of Error","Estimate","Margin Of Error","Estimate","Margin Of Error","Estimate","Margin Of Error","Estimate","Margin Of Error","Estimate","Margin Of Error","Estimate","Margin Of Error","Estimate","Margin Of Error","Estimate","Margin Of Error","Estimate","Margin Of Error","Estimate","Margin Of Error","Estimate","Margin Of Error","Estimate","Margin Of Error","Estimate","Margin Of Error","Estimate","Margin Of Error","Estimate","Margin Of Error","Estimate","Margin Of Error","Estimate","Margin Of Error","Estimate","Margin Of Error","Estimate","Margin Of Error","Estimate","Margin Of Error","Estimate","Margin Of Error","Estimate","Margin Of Error","Estimate","Margin Of Error","Estimate","Margin Of Error","Estimate","Margin Of Error","Estimate","Margin Of Error","Estimate","Margin Of Error","Estimate","Margin Of Error","Estimate","Margin Of Error"]
[null,"Total:",0,11,0,11,0,11,3977,201,0,11,324,49,0,11,141,40,954,84,316,51,0,11,0,11,424,64,0,11,1,4,127,25,113,29,0,11,1243,99,0,11,0,11,396,58,0,11,1366,149,0,11,0,11,589,53,4,6,984,88,0,11,0,11,423,57,196,39,0,11,0,11,200,30,233,40,418,64,277,49,0,11,0,11,16,9,1046,111]
[null,"Owner occupied",0,11,0,11,0,11,2228,192,0,11,252,49,0,11,130,39,698,79,267,47,0,11,0,11,364,62,0,11,1,4,114,24,95,27,0,11,960,80,0,11,0,11,346,48,0,11,1019,108,0,11,0,11,499,49,4,6,660,86,0,11,0,11,336,50,161,36,0,11,0,11,163,29,198,39,370,54,206,41,0,11,0,11,14,9,643,78]
[null,"Renter occupied",0,11,0,11,0,11,1749,196,0,11,72,32,0,11,11,7,256,55,49,22,0,11,0,11,60,28,0,11,0,11,13,8,18,12,0,11,283,83,0,11,0,11,50,32,0,11,347,116,0,11,0,11,90,41,0,11,324,61,0,11,0,11,87,31,35,17,0,11,0,11,37,18,35,19,48,40,71,29,0,11,0,11,2,3,403,105]
[]
[]
[]
[]
[]
[]
[]
[]
[]
[]
[]
[]
[null,"B25003. TENURE"]
[null,"Universe:  OCCUPIED HOUSING UNITS"]
[null,"Data Set: 2010-2014 American Community Survey 5-Year Estimates"]
[]
[null,null,"Atkinson and Gilmanton Grant",null,"Bean's Grant",null,"Bean's Purchase",null,"Berlin",null,"Cambridge",null,"Carroll",null,"Chandler's Purchase",null,"Clarksville",null,"Colebrook",null,"Columbia",null,"Crawford's Purchase",null,"Cutt's Grant",null,"Dalton",null,"Dix's Grant",null,"Dixville",null,"Dummer",null,"Errol",null,"Erving's Location",null,"Gorham",null,"Greens Grant",null,"Hadley's Purchase",null,"Jefferson",null,"Kilkenny",null,"Lancaster",null,"Low and Burbank's Grant",null,"Martin's Location",null,"Milan",null,"Millsfield",null,"Northumberland",null,"Odell",null,"Pinkham's Grant",null,"Pittsburg",null,"Randolph",null,"Sargent's Purchase",null,"Second College Grant",null,"Shelburne",null,"Stark",null,"Stewartstown",null,"Stratford",null,"Success",null,"Thompson and Meserves Purchase",null,"Wentworth's Location",null,"Whitefield"]
[null,null,"Estimate","Margin Of Error","Estimate","Margin Of Error","Estimate","Margin Of Error","Estimate","Margin Of Error","Estimate","Margin Of Error","Estimate","Margin Of Error","Estimate","Margin Of Error","Estimate","Margin Of Error","Estimate","Margin Of Error","Estimate","Margin Of Error","Estimate","Margin Of Error","Estimate","Margin Of Error","Estimate","Margin Of Error","Estimate","Margin Of Error","Estimate","Margin Of Error","Estimate","Margin Of Error","Estimate","Margin Of Error","Estimate","Margin Of Error","Estimate","Margin Of Error","Estimate","Margin Of Error","Estimate","Margin Of Error","Estimate","Margin Of Error","Estimate","Margin Of Error","Estimate","Margin Of Error","Estimate","Margin Of Error","Estimate","Margin Of Error","Estimate","Margin Of Error","Estimate","Margin Of Error","Estimate","Margin Of Error","Estimate","Margin Of Error","Estimate","Margin Of Error","Estimate","Margin Of Error","Estimate","Margin Of Error","Estimate","Margin Of Error","Estimate","Margin Of Error","Estimate","Margin Of Error","Estimate","Margin Of Error","Estimate","Margin Of Error","Estimate","Margin Of Error","Estimate","Margin Of Error","Estimate","Margin Of Error","Estimate","Margin Of Error","Estimate","Margin Of Error"]
[null,"Total:",0,11,0,11,0,11,4185,303,8,10,362,57,0,11,152,33,1101,105,315,52,0,11,0,11,414,58,4,6,3,6,141,32,186,38,0,11,1240,77,0,11,0,11,0,11,0,11,1537,96,0,11,0,11,9,7,8,8,0,11,0,11,0,11,452,68,197,34,5,6,0,11,165,26,217,35,373,58,0,11,0,11,0,11,37,21,1047,106]
[null,"Owner occupied",0,11,0,11,0,11,2534,234,8,10,267,52,0,11,135,32,747,96,254,50,0,11,0,11,335,47,0,11,0,11,128,28,149,33,0,11,877,80,0,11,0,11,0,11,0,11,1060,113,0,11,0,11,9,7,8,8,0,11,0,11,0,11,361,61,175,30,0,11,0,11,141,27,181,35,272,54,0,11,0,11,0,11,20,13,667,94]
[null,"Renter occupied",0,11,0,11,0,11,1651,226,0,11,95,36,0,11,17,11,354,73,61,31,0,11,0,11,79,33,4,6,3,6,13,13,37,19,0,11,363,96,0,11,0,11,0,11,0,11,477,113,0,11,0,11,0,11,0,11,0,11,0,11,0,11,91,34,22,15,5,6,0,11,24,16,36,13,101,39,0,11,0,11,0,11,17,16,380,84]
[]
[]
[]
[null,"B25003. TENURE"]
[null,"Universe:  OCCUPIED HOUSING UNITS"]
[null,"Data Set: 2005-2009 American Community Survey 5-Year Estimates"]
[]
[null,null,"Atkinson and Gilmanton Grant",null,"Bean's Grant",null,"Bean's Purchase",null,"Berlin",null,"Cambridge",null,"Carroll",null,"Chandler's Purchase",null,"Clarksville",null,"Colebrook",null,"Columbia",null,"Crawford's Purchase",null,"Cutt's Grant",null,"Dalton",null,"Dix's Grant",null,"Dixville",null,"Dummer",null,"Errol",null,"Erving's Location",null,"Gorham",null,"Greens Grant",null,"Hadley's Purchase",null,"Jefferson",null,"Kilkenny",null,"Lancaster",null,"Low and Burbank's Grant",null,"Martin's Location",null,"Milan",null,"Millsfield",null,"Northumberland",null,"Odell",null,"Pinkham's Grant",null,"Pittsburg",null,"Randolph",null,"Sargent's Purchase",null,"Second College Grant",null,"Shelburne",null,"Stark",null,"Stewartstown",null,"Stratford",null,"Success",null,"Thompson and Meserves Purchase",null,"Wentworth's Location",null,"Whitefield"]
[null,null,"Estimate","Margin Of Error","Estimate","Margin Of Error","Estimate","Margin Of Error","Estimate","Margin Of Error","Estimate","Margin Of Error","Estimate","Margin Of Error","Estimate","Margin Of Error","Estimate","Margin Of Error","Estimate","Margin Of Error","Estimate","Margin Of Error","Estimate","Margin Of Error","Estimate","Margin Of Error","Estimate","Margin Of Error","Estimate","Margin Of Error","Estimate","Margin Of Error","Estimate","Margin Of Error","Estimate","Margin Of Error","Estimate","Margin Of Error","Estimate","Margin Of Error","Estimate","Margin Of Error","Estimate","Margin Of Error","Estimate","Margin Of Error","Estimate","Margin Of Error","Estimate","Margin Of Error","Estimate","Margin Of Error","Estimate","Margin Of Error","Estimate","Margin Of Error","Estimate","Margin Of Error","Estimate","Margin Of Error","Estimate","Margin Of Error","Estimate","Margin Of Error","Estimate","Margin Of Error","Estimate","Margin Of Error","Estimate","Margin Of Error","Estimate","Margin Of Error","Estimate","Margin Of Error","Estimate","Margin Of Error","Estimate","Margin Of Error","Estimate","Margin Of Error","Estimate","Margin Of Error","Estimate","Margin Of Error","Estimate","Margin Of Error","Estimate","Margin Of Error"]
[null,"Total:",0,114,0,114,0,114,4227,382,0,114,296,59,0,114,167,40,1116,126,344,64,0,114,0,114,469,55,0,114,8,8,151,49,119,32,0,114,1332,83,0,114,0,114,395,47,0,114,1248,119,0,114,0,114,567,44,4,5,1018,106,0,114,0,114,398,61,170,37,0,114,0,114,194,42,250,59,398,76,503,85,0,114,0,114,26,13,922,94]
[null,"Owner occupied",0,114,0,114,0,114,2703,276,0,114,257,51,0,114,145,31,676,110,326,63,0,114,0,114,391,51,0,114,0,114,140,49,112,30,0,114,889,101,0,114,0,114,355,46,0,114,897,111,0,114,0,114,499,43,4,5,637,94,0,114,0,114,358,63,154,34,0,114,0,114,173,40,199,45,330,68,360,71,0,114,0,114,22,13,669,75]
[null,"Renter occupied",0,114,0,114,0,114,1524,246,0,114,39,29,0,114,22,21,440,101,18,19,0,114,0,114,78,38,0,114,8,8,11,11,7,6,0,114,443,121,0,114,0,114,40,21,0,114,351,77,0,114,0,114,68,25,0,114,381,86,0,114,0,114,40,17,16,13,0,114,0,114,21,11,51,32,68,30,143,41,0,114,0,114,4,6,253,58]

{"sheet":"ACS_Table_B25004","index":43,"n_rows":56,"n_cols":88,"rows_kept":56,"cut":false,"hidden":true,"merged":[]}
[null,"B25004. VACANCY STATUS"]
[null,"Universe:  VACANT HOUSING UNITS"]
[null,"Data Set: 2015-2019 American Community Survey 5-Year Estimates"]
[]
[null,null,"Atkinson and Gilmanton Grant",null,"Bean's Grant",null,"Bean's Purchase",null,"Berlin",null,"Cambridge",null,"Carroll",null,"Chandler's Purchase",null,"Clarksville",null,"Colebrook",null,"Columbia",null,"Crawford's Purchase",null,"Cutt's Grant",null,"Dalton",null,"Dix's Grant",null,"Dixville",null,"Dummer",null,"Errol",null,"Erving's Location",null,"Gorham",null,"Greens Grant",null,"Hadley's Purchase",null,"Jefferson",null,"Kilkenny",null,"Lancaster",null,"Low and Burbank's Grant",null,"Martin's Location",null,"Milan",null,null,null,"Northumberland",null,"Odell",null,"Pinkham's Grant",null,"Pittsburg",null,"Randolph",null,"Sargent's Purchase",null,"Second College Grant",null,"Shelburne",null,"Stark",null,"Stewartstown",null,"Stratford",null,"Success",null,"Thompson and Meserves Purchase",null,"Wentworth's Location",null,"Whitefield"]
[null,null,"Estimate","Margin Of Error","Estimate","Margin Of Error","Estimate","Margin Of Error","Estimate","Margin Of Error","Estimate","Margin Of Error","Estimate","Margin Of Error","Estimate","Margin Of Error","Estimate","Margin Of Error","Estimate","Margin Of Error","Estimate","Margin Of Error","Estimate","Margin Of Error","Estimate","Margin Of Error","Estimate","Margin Of Error","Estimate","Margin Of Error","Estimate","Margin Of Error","Estimate","Margin Of Error","Estimate","Margin Of Error","Estimate","Margin Of Error","Estimate","Margin Of Error","Estimate","Margin Of Error","Estimate","Margin Of Error","Estimate","Margin Of Error","Estimate","Margin Of Error","Estimate","Margin Of Error","Estimate","Margin Of Error","Estimate","Margin Of Error","Estimate","Margin Of Error","Estimate","Margin Of Error","Estimate","Margin Of Error","Estimate","Margin Of Error","Estimate","Margin Of Error","Estimate","Margin Of Error","Estimate","Margin Of Error","Estimate","Margin Of Error","Estimate","Margin Of Error","Estimate","Margin Of Error","Estimate","Margin Of Error","Estimate","Margin Of Error","Estimate","Margin Of Error","Estimate","Margin Of Error","Estimate","Margin Of Error","Estimate","Margin Of Error","Estimate","Margin Of Error"]
[null,"Total:",0,11,0,11,0,11,807,192,29,13,600,71,0,11,320,39,524,105,202,50,0,11,0,11,173,61,13,7,28,10,140,25,360,46,0,11,272,92,0,11,0,11,248,61,0,11,244,96,0,11,0,11,297,59,65,23,186,63,0,11,0,11,1393,84,158,34,0,11,28,20,44,17,259,45,525,68,280,50,59,22,0,11,96,21,401,86]
[null,"For rent",0,11,0,11,0,11,100,72,3,4,13,14,0,11,0,11,17,24,2,4,0,11,0,11,0,11,0,11,0,11,0,11,4,7,0,11,104,64,0,11,0,11,28,20,0,11,34,50,0,11,0,11,0,11,0,11,0,11,0,11,0,11,15,17,4,4,0,11,0,11,0,11,0,11,13,15,6,10,0,11,0,11,0,11,0,11]
[null,"Rented, not occupied",0,11,0,11,0,11,6,11,0,11,6,9,0,11,0,11,0,11,0,11,0,11,0,11,0,11,0,11,0,11,0,11,0,11,0,11,0,11,0,11,0,11,0,11,0,11,0,11,0,11,0,11,0,11,0,11,0,11,0,11,0,11,0,11,0,11,0,11,0,11,0,11,7,10,0,11,0,11,0,11,0,11,0,11,0,11]
[null,"For sale only",0,11,0,11,0,11,73,62,0,11,6,9,0,11,2,3,57,43,0,11,0,11,0,11,3,4,0,11,0,11,4,6,0,11,0,11,0,11,0,11,0,11,0,11,0,11,0,11,0,11,0,11,10,14,0,11,28,29,0,11,0,11,8,12,1,2,0,11,0,11,0,11,0,11,0,11,0,11,0,11,0,11,0,11,17,27]
[null,"Sold, not occupied",0,11,0,11,0,11,0,18,0,11,0,11,0,11,0,11,0,11,7,11,0,11,0,11,9,15,0,11,0,11,0,11,0,11,0,11,0,11,0,11,0,11,8,12,0,11,0,11,0,11,0,11,0,11,0,11,0,11,0,11,0,11,0,11,0,11,0,11,0,11,0,11,0,11,18,18,0,11,0,11,0,11,0,11,0,11]
[null,"For seasonal, recreational, or occasional use",0,11,0,11,0,11,144,82,26,13,551,69,0,11,301,42,280,76,170,47,0,11,0,11,107,48,13,7,18,7,134,24,348,47,0,11,48,37,0,11,0,11,205,56,0,11,137,67,0,11,0,11,240,51,56,24,71,42,0,11,0,11,1287,89,150,34,0,11,28,20,35,16,225,42,465,65,230,43,59,22,0,11,82,21,318,78]
[null,"For migrant workers",0,11,0,11,0,11,0,18,0,11,0,11,0,11,0,11,15,24,0,11,0,11,0,11,0,11,0,11,0,11,0,11,0,11,0,11,0,11,0,11,0,11,0,11,0,11,0,11,0,11,0,11,0,11,0,11,0,11,0,11,0,11,0,11,0,11,0,11,0,11,0,11,0,11,0,11,0,11,0,11,0,11,0,11,0,11]
[null,"Other vacant",0,11,0,11,0,11,484,158,0,11,24,19,0,11,17,11,155,78,23,20,0,11,0,11,54,36,0,11,10,7,2,3,8,9,0,11,120,83,0,11,0,11,7,8,0,11,73,58,0,11,0,11,47,33,9,9,87,47,0,11,0,11,83,36,3,5,0,11,0,11,9,11,27,20,29,19,44,22,0,11,0,11,14,12,66,51]
[]
[]
[]
[]
[]
[]
[]
[null,"B25004. VACANCY STATUS"]
[null,"Universe:  VACANT HOUSING UNITS"]
[null,"Data Set: 2010-2014 American Community Survey 5-Year Estimates"]
[]
[null,null,"Atkinson and Gilmanton Grant",null,"Bean's Grant",null,"Bean's Purchase",null,"Berlin",null,"Cambridge",null,"Carroll",null,"Chandler's Purchase",null,"Clarksville",null,"Colebrook",null,"Columbia",null,"Crawford's Purchase",null,"Cutt's Grant",null,"Dalton",null,"Dix's Grant",null,"Dixville",null,"Dummer",null,"Errol",null,"Erving's Location",null,"Gorham",null,"Greens Grant",null,"Hadley's Purchase",null,"Jefferson",null,"Kilkenny",null,"Lancaster",null,"Low and Burbank's Grant",null,"Martin's Location",null,"Milan",null,"Millsfield",null,"Northumberland",null,"Odell",null,"Pinkham's Grant",null,"Pittsburg",null,"Randolph",null,"Sargent's Purchase",null,"Second College Grant",null,"Shelburne",null,"Stark",null,"Stewartstown",null,"Stratford",null,"Success",null,"Thompson and Meserves Purchase",null,"Wentworth's Location",null,"Whitefield"]
[null,null,"Estimate","Margin Of Error","Estimate","Margin Of Error","Estimate","Margin Of Error","Estimate","Margin Of Error","Estimate","Margin Of Error","Estimate","Margin Of Error","Estimate","Margin Of Error","Estimate","Margin Of Error","Estimate","Margin Of Error","Estimate","Margin Of Error","Estimate","Margin Of Error","Estimate","Margin Of Error","Estimate","Margin Of Error","Estimate","Margin Of Error","Estimate","Margin Of Error","Estimate","Margin Of Error","Estimate","Margin Of Error","Estimate","Margin Of Error","Estimate","Margin Of Error","Estimate","Margin Of Error","Estimate","Margin Of Error","Estimate","Margin Of Error","Estimate","Margin Of Error","Estimate","Margin Of Error","Estimate","Margin Of Error","Estimate","Margin Of Error","Estimate","Margin Of Error","Estimate","Margin Of Error","Estimate","Margin Of Error","Estimate","Margin Of Error","Estimate","Margin Of Error","Estimate","Margin Of Error","Estimate","Margin Of Error","Estimate","Margin Of Error","Estimate","Margin Of Error","Estimate","Margin Of Error","Estimate","Margin Of Error","Estimate","Margin Of Error","Estimate","Margin Of Error","Estimate","Margin Of Error","Estimate","Margin Of Error","Estimate","Margin Of Error","Estimate","Margin Of Error"]
[null,"Total:",0,11,0,11,0,11,669,152,36,13,583,66,0,11,293,45,315,93,195,51,0,11,0,11,113,45,29,11,29,11,146,28,278,41,0,11,212,94,0,11,0,11,0,11,0,11,209,85,0,11,0,11,63,17,50,16,83,21,82,19,0,11,1306,96,147,26,0,11,6,9,39,19,220,44,572,77,46,16,47,18,0,11,77,21,382,94]
[null,"For rent",0,11,0,11,0,11,26,41,0,11,0,11,0,11,0,11,29,32,2,3,0,11,0,11,7,7,0,11,0,11,0,11,5,7,0,11,76,68,0,11,0,11,0,11,0,11,0,11,0,11,0,11,0,11,0,11,0,11,0,11,0,11,18,19,0,11,0,11,0,11,0,11,0,11,11,12,0,11,0,11,0,11,0,11,33,32]
[null,"Rented, not occupied",0,11,0,11,0,11,27,43,0,11,2,3,0,11,0,11,0,11,0,11,0,11,0,11,0,11,0,11,0,11,0,11,1,2,0,11,0,11,0,11,0,11,0,11,0,11,0,11,0,11,0,11,0,11,0,11,0,11,0,11,0,11,0,11,0,11,0,11,0,11,0,11,0,11,0,11,0,11,0,11,0,11,0,11,0,11]
[null,"For sale only",0,11,0,11,0,11,71,64,0,11,0,11,0,11,0,11,0,11,0,11,0,11,0,11,0,11,0,11,0,11,11,10,0,11,0,11,0,11,0,11,0,11,0,11,0,11,30,37,0,11,0,11,0,11,0,11,0,11,0,11,0,11,11,11,5,7,0,11,0,11,6,10,3,4,12,15,0,11,0,11,0,11,0,11,30,37]
[null,"Sold, not occupied",0,11,0,11,0,11,37,47,0,11,6,8,0,11,0,11,0,11,0,11,0,11,0,11,0,11,0,11,0,11,0,11,0,11,0,11,0,11,0,11,0,11,0,11,0,11,0,11,0,11,0,11,0,11,0,11,0,11,0,11,0,11,15,17,0,11,0,11,0,11,0,11,0,11,0,11,0,11,0,11,0,11,0,11,0,11]
[null,"For seasonal, recreational, or occasional use",0,11,0,11,0,11,165,96,36,13,553,65,0,11,287,44,246,84,180,49,0,11,0,11,70,36,25,8,24,8,133,25,266,41,0,11,50,51,0,11,0,11,0,11,0,11,82,45,0,11,0,11,63,17,50,16,83,21,82,19,0,11,1220,97,140,25,0,11,6,9,33,18,197,45,493,71,46,16,47,18,0,11,68,19,257,76]
[null,"For migrant workers",0,11,0,11,0,11,0,15,0,11,0,11,0,11,0,11,0,11,0,11,0,11,0,11,0,11,0,11,0,11,0,11,0,11,0,11,0,11,0,11,0,11,0,11,0,11,0,11,0,11,0,11,0,11,0,11,0,11,0,11,0,11,0,11,0,11,0,11,0,11,0,11,0,11,9,15,0,11,0,11,0,11,0,11,0,11]
[null,"Other vacant",0,11,0,11,0,11,343,130,0,11,22,18,0,11,6,7,40,36,13,16,0,11,0,11,36,29,4,7,5,7,2,3,6,8,0,11,86,65,0,11,0,11,0,11,0,11,97,62,0,11,0,11,0,11,0,11,0,11,0,11,0,11,42,26,2,3,0,11,0,11,0,11,20,17,47,26,0,11,0,11,0,11,9,8,62,49]
[]
[]
[]
[]
[]
[]
[]
[null,"B25004. VACANCY STATUS"]
[null,"Universe:  VACANT HOUSING UNITS"]
[null,"Data Set: 2005-2009 American Community Survey 5-Year Estimates"]
[]
[null,null,"Atkinson and Gilmanton Grant",null,"Bean's Grant",null,"Bean's Purchase",null,"Berlin",null,"Cambridge",null,"Carroll",null,"Chandler's Purchase",null,"Clarksville",null,"Colebrook",null,"Columbia",null,"Crawford's Purchase",null,"Cutt's Grant",null,"Dalton",null,"Dix's Grant",null,"Dixville",null,"Dummer",null,"Errol",null,"Erving's Location",null,"Gorham",null,"Greens Grant",null,"Hadley's Purchase",null,"Jefferson",null,"Kilkenny",null,"Lancaster",null,"Low and Burbank's Grant",null,"Martin's Location",null,"Milan",null,"Millsfield",null,"Northumberland",null,"Odell",null,"Pinkham's Grant",null,"Pittsburg",null,"Randolph",null,"Sargent's Purchase",null,"Second College Grant",null,"Shelburne",null,"Stark",null,"Stewartstown",null,"Stratford",null,"Success",null,"Thompson and Meserves Purchase",null,"Wentworth's Location",null,"Whitefield"]
[null,null,"Estimate","Margin Of Error","Estimate","Margin Of Error","Estimate","Margin Of Error","Estimate","Margin Of Error","Estimate","Margin Of Error","Estimate","Margin Of Error","Estimate","Margin Of Error","Estimate","Margin Of Error","Estimate","Margin Of Error","Estimate","Margin Of Error","Estimate","Margin Of Error","Estimate","Margin Of Error","Estimate","Margin Of Error","Estimate","Margin Of Error","Estimate","Margin Of Error","Estimate","Margin Of Error","Estimate","Margin Of Error","Estimate","Margin Of Error","Estimate","Margin Of Error","Estimate","Margin Of Error","Estimate","Margin Of Error","Estimate","Margin Of Error","Estimate","Margin Of Error","Estimate","Margin Of Error","Estimate","Margin Of Error","Estimate","Margin Of Error","Estimate","Margin Of Error","Estimate","Margin Of Error","Estimate","Margin Of Error","Estimate","Margin Of Error","Estimate","Margin Of Error","Estimate","Margin Of Error","Estimate","Margin Of Error","Estimate","Margin Of Error","Estimate","Margin Of Error","Estimate","Margin Of Error","Estimate","Margin Of Error","Estimate","Margin Of Error","Estimate","Margin Of Error","Estimate","Margin Of Error","Estimate","Margin Of Error","Estimate","Margin Of Error","Estimate","Margin Of Error"]
[null,"Total:",14,20,0,114,0,114,612,193,27,9,482,61,0,114,180,37,317,97,227,49,0,114,0,114,134,67,15,8,18,8,102,23,359,52,0,114,142,87,0,114,0,114,196,43,0,114,216,94,0,114,0,114,183,45,36,11,110,55,74,16,0,114,940,85,202,59,0,114,13,19,32,19,139,49,354,62,181,59,90,39,0,114,73,16,326,81]
[null,"For rent",0,114,0,114,0,114,91,68,0,114,10,16,0,114,0,114,0,114,0,114,0,114,0,114,0,114,0,114,0,114,0,114,6,9,0,114,35,54,0,114,0,114,0,114,0,114,0,114,0,114,0,114,0,114,0,114,24,32,0,114,0,114,12,11,0,114,0,114,0,114,0,114,0,114,5,7,5,8,0,114,0,114,0,114,27,29]
[null,"Rented, not occupied",0,114,0,114,0,114,0,114,0,114,10,16,0,114,0,114,0,114,0,114,0,114,0,114,0,114,0,114,0,114,0,114,0,114,0,114,0,114,0,114,0,114,0,114,0,114,0,114,0,114,0,114,0,114,0,114,16,24,0,114,0,114,0,114,0,114,0,114,0,114,0,114,0,114,5,7,0,114,0,114,0,114,0,114,0,114]
[null,"For sale only",0,114,0,114,0,114,119,96,0,114,0,114,0,114,3,5,30,35,19,19,0,114,0,114,10,13,0,114,0,114,3,5,6,6,0,114,32,37,0,114,0,114,0,114,0,114,0,114,0,114,0,114,0,114,3,4,28,30,0,114,0,114,0,114,2,3,0,114,0,114,3,4,4,5,15,16,9,10,0,114,0,114,3,5,12,20]
[null,"Sold, not occupied",0,114,0,114,0,114,27,42,0,114,0,114,0,114,0,114,12,15,0,114,0,114,0,114,0,114,0,114,0,114,5,9,2,3,0,114,34,52,0,114,0,114,5,7,0,114,10,17,0,114,0,114,0,114,0,114,0,114,0,114,0,114,0,114,0,114,0,114,0,114,0,114,5,8,0,114,0,114,0,114,0,114,0,114,0,114]
[null,"For seasonal, recreational, or occasional use",14,20,0,114,0,114,96,72,27,9,432,52,0,114,174,38,125,46,188,47,0,114,0,114,112,65,15,8,15,8,85,18,342,51,0,114,24,35,0,114,0,114,172,41,0,114,119,75,0,114,0,114,169,44,33,11,42,29,74,16,0,114,899,87,197,60,0,114,13,19,29,18,117,45,320,59,154,57,90,39,0,114,64,15,231,60]
[null,"For migrant workers",0,114,0,114,0,114,0,114,0,114,0,114,0,114,0,114,0,114,0,114,0,114,0,114,0,114,0,114,0,114,0,114,0,114,0,114,0,114,0,114,0,114,0,114,0,114,0,114,0,114,0,114,0,114,0,114,0,114,0,114,0,114,0,114,0,114,0,114,0,114,0,114,0,114,0,114,0,114,0,114,0,114,0,114,0,114]
[null,"Other vacant",0,114,0,114,0,114,279,140,0,114,30,25,0,114,3,5,150,87,20,20,0,114,0,114,12,14,0,114,3,4,9,10,3,4,0,114,17,28,0,114,0,114,19,18,0,114,87,70,0,114,0,114,14,15,0,114,0,114,0,114,0,114,29,19,3,5,0,114,0,114,0,114,13,15,9,10,13,15,0,114,0,114,6,6,56,41]

{"sheet":"ACS_Table_B25008","index":44,"n_rows":51,"n_cols":88,"rows_kept":51,"cut":false,"hidden":true,"merged":[]}
[null,"B25008. TOTAL POPULATION IN OCCUPIED HOUSING UNITS BY TENURE"]
[null,"Universe:  TOTAL POPULATION IN OCCUPIED HOUSING UNITS"]
[null,"Data Set: 2015-2019 American Community Survey 5-Year Estimates"]
[]
[null,null,"Atkinson and Gilmanton Grant",null,"Bean's Grant",null,"Bean's Purchase",null,"Berlin",null,"Cambridge",null,"Carroll",null,"Chandler's Purchase",null,"Clarksville",null,"Colebrook",null,"Columbia",null,"Crawford's Purchase",null,"Cutt's Grant",null,"Dalton",null,"Dix's Grant",null,"Dixville",null,"Dummer",null,"Errol",null,"Erving's Location",null,"Gorham",null,"Greens Grant",null,"Hadley's Purchase",null,"Jefferson",null,null,null,"Lancaster",null,"Low and Burbank's Grant",null,"Martin's Location",null,"Milan",null,"Millsfield",null,"Northumberland",null,"Odell",null,"Pinkham's Grant",null,"Pittsburg",null,"Randolph",null,"Sargent's Purchase",null,"Second College Grant",null,"Shelburne",null,"Stark",null,"Stewartstown",null,"Stratford",null,"Success",null,"Thompson and Meserves Purchase",null,"Wentworth's Location",null,"Whitefield"]
[null,null,"Estimate","Margin Of Error","Estimate","Margin Of Error","Estimate","Margin Of Error","Estimate","Margin Of Error","Estimate","Margin Of Error","Estimate","Margin Of Error","Estimate","Margin Of Error","Estimate","Margin Of Error","Estimate","Margin Of Error","Estimate","Margin Of Error","Estimate","Margin Of Error","Estimate","Margin Of Error","Estimate","Margin Of Error","Estimate","Margin Of Error","Estimate","Margin Of Error","Estimate","Margin Of Error","Estimate","Margin Of Error","Estimate","Margin Of Error","Estimate","Margin Of Error","Estimate","Margin Of Error","Estimate","Margin Of Error","Estimate","Margin Of Error","Estimate","Margin Of Error","Estimate","Margin Of Error","Estimate","Margin Of Error","Estimate","Margin Of Error","Estimate","Margin Of Error","Estimate","Margin Of Error","Estimate","Margin Of Error","Estimate","Margin Of Error","Estimate","Margin Of Error","Estimate","Margin Of Error","Estimate","Margin Of Error","Estimate","Margin Of Error","Estimate","Margin Of Error","Estimate","Margin Of Error","Estimate","Margin Of Error","Estimate","Margin Of Error","Estimate","Margin Of Error","Estimate","Margin Of Error","Estimate","Margin Of Error","Estimate","Margin Of Error","Estimate","Margin Of Error"]
[null,"Total:",0,11,0,11,0,11,8420,255,0,11,715,135,0,11,324,88,1908,171,616,119,0,11,0,11,906,140,0,11,1,4,306,71,205,55,0,11,2623,17,0,11,0,11,846,129,0,11,3153,83,0,11,0,11,1332,107,8,12,2318,266,0,11,0,11,740,104,365,68,0,11,0,11,408,65,606,144,844,170,630,114,0,11,0,11,26,16,2196,216]
[null,"Owner occupied",0,11,0,11,0,11,4999,538,0,11,534,129,0,11,302,86,1440,173,532,111,0,11,0,11,748,133,0,11,1,4,281,71,170,53,0,11,2234,110,0,11,0,11,746,116,0,11,2500,224,0,11,0,11,1120,113,8,12,1588,229,0,11,0,11,625,105,312,66,0,11,0,11,342,55,519,143,730,141,492,105,0,11,0,11,24,16,1446,204]
[null,"Renter occupied",0,11,0,11,0,11,3421,493,0,11,181,96,0,11,22,16,468,118,84,41,0,11,0,11,158,97,0,11,0,11,25,15,35,28,0,11,389,109,0,11,0,11,100,51,0,11,653,219,0,11,0,11,212,98,0,11,730,204,0,11,0,11,115,39,53,24,0,11,0,11,66,41,87,56,114,110,138,59,0,11,0,11,2,3,750,219]
[]
[]
[]
[]
[]
[]
[]
[]
[]
[]
[]
[]
[null,"B25008. TOTAL POPULATION IN OCCUPIED HOUSING UNITS BY TENURE"]
[null,"Universe:  TOTAL POPULATION IN OCCUPIED HOUSING UNITS"]
[null,"Data Set: 2010-2014 American Community Survey 5-Year Estimates"]
[]
[null,null,"Atkinson and Gilmanton Grant",null,"Bean's Grant",null,"Bean's Purchase",null,"Berlin",null,"Cambridge",null,"Carroll",null,"Chandler's Purchase",null,"Clarksville",null,"Colebrook",null,"Columbia",null,"Crawford's Purchase",null,"Cutt's Grant",null,"Dalton",null,"Dix's Grant",null,"Dixville",null,"Dummer",null,"Errol",null,"Erving's Location",null,"Gorham",null,"Greens Grant",null,"Hadley's Purchase",null,"Jefferson",null,"Kilkenny",null,"Lancaster",null,"Low and Burbank's Grant",null,"Martin's Location",null,"Milan",null,"Millsfield",null,"Northumberland",null,"Odell",null,"Pinkham's Grant",null,"Pittsburg",null,"Randolph",null,"Sargent's Purchase",null,"Second College Grant",null,"Shelburne",null,"Stark",null,"Stewartstown",null,"Stratford",null,"Success",null,"Thompson and Meserves Purchase",null,"Wentworth's Location",null,"Whitefield"]
[null,null,"Estimate","Margin Of Error","Estimate","Margin Of Error","Estimate","Margin Of Error","Estimate","Margin Of Error","Estimate","Margin Of Error","Estimate","Margin Of Error","Estimate","Margin Of Error","Estimate","Margin Of Error","Estimate","Margin Of Error","Estimate","Margin Of Error","Estimate","Margin Of Error","Estimate","Margin Of Error","Estimate","Margin Of Error","Estimate","Margin Of Error","Estimate","Margin Of Error","Estimate","Margin Of Error","Estimate","Margin Of Error","Estimate","Margin Of Error","Estimate","Margin Of Error","Estimate","Margin Of Error","Estimate","Margin Of Error","Estimate","Margin Of Error","Estimate","Margin Of Error","Estimate","Margin Of Error","Estimate","Margin Of Error","Estimate","Margin Of Error","Estimate","Margin Of Error","Estimate","Margin Of Error","Estimate","Margin Of Error","Estimate","Margin Of Error","Estimate","Margin Of Error","Estimate","Margin Of Error","Estimate","Margin Of Error","Estimate","Margin Of Error","Estimate","Margin Of Error","Estimate","Margin Of Error","Estimate","Margin Of Error","Estimate","Margin Of Error","Estimate","Margin Of Error","Estimate","Margin Of Error","Estimate","Margin Of Error","Estimate","Margin Of Error","Estimate","Margin Of Error"]
[null,"Total:",0,11,0,11,0,11,8655,578,17,16,902,160,0,11,315,75,2340,210,706,128,0,11,0,11,933,154,4,6,3,6,348,76,301,70,0,11,2764,16,0,11,0,11,0,11,0,11,3330,90,0,11,0,11,20,16,21,19,0,11,0,11,0,11,875,130,424,74,9,12,0,11,358,66,489,94,711,123,0,11,0,11,0,11,62,33,2076,219]
[null,"Owner occupied",0,11,0,11,0,11,5546,552,17,16,604,137,0,11,273,70,1737,224,601,126,0,11,0,11,778,135,0,11,0,11,323,73,245,62,0,11,2072,190,0,11,0,11,0,11,0,11,2377,246,0,11,0,11,20,16,21,19,0,11,0,11,0,11,714,123,392,71,0,11,0,11,314,62,406,89,550,115,0,11,0,11,0,11,32,20,1386,209]
[null,"Renter occupied",0,11,0,11,0,11,3109,476,0,11,298,149,0,11,42,27,603,119,105,54,0,11,0,11,155,84,4,6,3,6,25,23,56,29,0,11,692,191,0,11,0,11,0,11,0,11,953,249,0,11,0,11,0,11,0,11,0,11,0,11,0,11,161,68,32,19,9,12,0,11,44,36,83,39,161,69,0,11,0,11,0,11,30,27,690,179]
[]
[]
[]
[]
[]
[]
[]
[]
[]
[]
[]
[]
[null,"B25008. TOTAL POPULATION IN OCCUPIED HOUSING UNITS BY TENURE"]
[null,"Universe:  TOTAL POPULATION IN OCCUPIED HOUSING UNITS"]
[null,"Data Set: 2005-2009 American Community Survey 5-Year Estimates"]
[]
[null,null,"Atkinson and Gilmanton Grant",null,"Bean's Grant",null,"Bean's Purchase",null,"Berlin",null,"Cambridge",null,"Carroll",null,"Chandler's Purchase",null,"Clarksville",null,"Colebrook",null,"Columbia",null,"Crawford's Purchase",null,"Cutt's Grant",null,"Dalton",null,"Dix's Grant",null,"Dixville",null,"Dummer",null,"Errol",null,"Erving's Location",null,"Gorham",null,"Greens Grant",null,"Hadley's Purchase",null,"Jefferson",null,"Kilkenny",null,"Lancaster",null,"Low and Burbank's Grant",null,"Martin's Location",null,"Milan",null,"Millsfield",null,"Northumberland",null,"Odell",null,"Pinkham's Grant",null,"Pittsburg",null,"Randolph",null,"Sargent's Purchase",null,"Second College Grant",null,"Shelburne",null,"Stark",null,"Stewartstown",null,"Stratford",null,"Success",null,"Thompson and Meserves Purchase",null,"Wentworth's Location",null,"Whitefield"]
[null,null,"Estimate","Margin Of Error","Estimate","Margin Of Error","Estimate","Margin Of Error","Estimate","Margin Of Error","Estimate","Margin Of Error","Estimate","Margin Of Error","Estimate","Margin Of Error","Estimate","Margin Of Error","Estimate","Margin Of Error","Estimate","Margin Of Error","Estimate","Margin Of Error","Estimate","Margin Of Error","Estimate","Margin Of Error","Estimate","Margin Of Error","Estimate","Margin Of Error","Estimate","Margin Of Error","Estimate","Margin Of Error","Estimate","Margin Of Error","Estimate","Margin Of Error","Estimate","Margin Of Error","Estimate","Margin Of Error","Estimate","Margin Of Error","Estimate","Margin Of Error","Estimate","Margin Of Error","Estimate","Margin Of Error","Estimate","Margin Of Error","Estimate","Margin Of Error","Estimate","Margin Of Error","Estimate","Margin Of Error","Estimate","Margin Of Error","Estimate","Margin Of Error","Estimate","Margin Of Error","Estimate","Margin Of Error","Estimate","Margin Of Error","Estimate","Margin Of Error","Estimate","Margin Of Error","Estimate","Margin Of Error","Estimate","Margin Of Error","Estimate","Margin Of Error","Estimate","Margin Of Error","Estimate","Margin Of Error","Estimate","Margin Of Error","Estimate","Margin Of Error"]
[null,"Total:",0,114,0,114,0,114,8705,526,0,114,568,113,0,114,330,79,2141,252,841,189,0,114,0,114,1158,145,0,114,21,22,351,127,253,71,0,114,2816,26,0,114,0,114,937,108,0,114,3264,17,0,114,0,114,1271,112,4,5,2249,245,0,114,0,114,773,138,346,83,0,114,0,114,427,81,540,139,969,185,1013,190,0,114,0,114,43,25,1921,201]
[null,"Owner occupied",0,114,0,114,0,114,5854,576,0,114,520,103,0,114,300,72,1429,252,760,162,0,114,0,114,980,140,0,114,0,114,331,127,244,70,0,114,2026,246,0,114,0,114,824,115,0,114,2353,218,0,114,0,114,1107,102,4,5,1452,227,0,114,0,114,706,140,313,77,0,114,0,114,389,79,426,112,816,162,730,154,0,114,0,114,39,25,1499,189]
[null,"Renter occupied",0,114,0,114,0,114,2851,469,0,114,48,37,0,114,30,27,712,190,81,108,0,114,0,114,178,82,0,114,21,22,20,17,9,9,0,114,790,249,0,114,0,114,113,64,0,114,911,219,0,114,0,114,164,55,0,114,797,207,0,114,0,114,67,28,33,32,0,114,0,114,38,25,114,74,153,83,283,100,0,114,0,114,4,6,422,120]

{"sheet":"ACS_Table_B25024","index":45,"n_rows":78,"n_cols":88,"rows_kept":78,"cut":false,"hidden":true,"merged":[]}
[null,"B25024. UNITS IN STRUCTURE "]
[null,"Universe:  HOUSING UNITS"]
[null,"Data Set: 2015-2019 American Community Survey 5-Year Estimates"]
[]
[null,null,"Atkinson and Gilmanton Grant",null,"Bean's Grant",null,"Bean's Purchase",null,"Berlin",null,"Cambridge",null,"Carroll",null,"Chandler's Purchase",null,"Clarksville",null,"Colebrook",null,"Columbia",null,"Crawford's Purchase",null,"Cutt's Grant",null,"Dalton",null,"Dix's Grant",null,"Dixville",null,"Dummer",null,"Errol",null,"Erving's Location",null,"Gorham",null,"Greens Grant",null,"Hadley's Purchase",null,"Jefferson",null,"Kilkenny",null,"Lancaster",null,"Low and Burbank's Grant",null,"Martin's Location",null,"Milan",null,"Millsfield",null,"Northumberland",null,"Odell",null,"Pinkham's Grant",null,"Pittsburg",null,"Randolph",null,"Sargent's Purchase",null,"Second College Grant",null,"Shelburne",null,"Stark",null,"Stewartstown",null,"Stratford",null,"Success",null,"Thompson and Meserves Purchase",null,"Wentworth's Location",null,"Whitefield"]
[null,null,"Estimate","Margin Of Error","Estimate","Margin Of Error","Estimate","Margin Of Error","Estimate","Margin Of Error","Estimate","Margin Of Error","Estimate","Margin Of Error","Estimate","Margin Of Error","Estimate","Margin Of Error","Estimate","Margin Of Error","Estimate","Margin Of Error","Estimate","Margin Of Error","Estimate","Margin Of Error","Estimate","Margin Of Error","Estimate","Margin Of Error","Estimate","Margin Of Error","Estimate","Margin Of Error","Estimate","Margin Of Error","Estimate","Margin Of Error","Estimate","Margin Of Error","Estimate","Margin Of Error","Estimate","Margin Of Error","Estimate","Margin Of Error","Estimate","Margin Of Error","Estimate","Margin Of Error","Estimate","Margin Of Error","Estimate","Margin Of Error","Estimate","Margin Of Error","Estimate","Margin Of Error","Estimate","Margin Of Error","Estimate","Margin Of Error","Estimate","Margin Of Error","Estimate","Margin Of Error","Estimate","Margin Of Error","Estimate","Margin Of Error","Estimate","Margin Of Error","Estimate","Margin Of Error","Estimate","Margin Of Error","Estimate","Margin Of Error","Estimate","Margin Of Error","Estimate","Margin Of Error","Estimate","Margin Of Error","Estimate","Margin Of Error","Estimate","Margin Of Error"]
[null,"Total:",0,11,0,11,0,11,4784,216,29,13,924,76,0,11,461,55,1478,78,518,58,0,11,0,11,597,66,13,7,29,11,267,34,473,45,0,11,1515,103,0,11,0,11,644,72,0,11,1610,154,0,11,0,11,886,64,69,24,1170,86,0,11,0,11,1816,100,354,46,0,11,28,20,244,32,492,47,943,78,557,68,59,22,0,11,112,22,1447,92]
[null,"1, detached",0,11,0,11,0,11,2326,197,24,13,488,65,0,11,356,48,975,98,393,52,0,11,0,11,404,64,13,7,24,9,210,34,385,45,0,11,845,102,0,11,0,11,520,65,0,11,1029,106,0,11,0,11,737,63,65,25,780,97,0,11,0,11,1595,100,312,42,0,11,28,20,224,31,401,49,731,71,382,60,59,22,0,11,95,22,1015,98]
[null,"1, attached",0,11,0,11,0,11,74,73,0,11,159,43,0,11,0,11,3,4,4,5,0,11,0,11,5,9,0,11,0,11,2,3,0,11,0,11,0,11,0,11,0,11,4,5,0,11,7,12,0,11,0,11,8,7,0,11,6,8,0,11,0,11,0,11,13,11,0,11,0,11,0,11,2,3,0,11,5,5,0,11,0,11,0,11,28,26]
[null,2,0,11,0,11,0,11,821,172,0,11,30,20,0,11,2,3,97,54,2,3,0,11,0,11,0,11,0,11,2,3,7,6,5,7,0,11,206,72,0,11,0,11,19,28,0,11,106,57,0,11,0,11,18,16,0,11,71,40,0,11,0,11,11,16,6,6,0,11,0,11,8,6,0,11,10,9,0,11,0,11,0,11,0,11,116,69]
[null,"3 or 4",0,11,0,11,0,11,884,171,0,11,90,35,0,11,3,4,103,42,3,4,0,11,0,11,0,11,0,11,0,11,0,11,0,11,0,11,66,40,0,11,0,11,8,7,0,11,186,88,0,11,0,11,0,11,0,11,110,51,0,11,0,11,10,15,4,7,0,11,0,11,4,6,6,7,9,14,15,14,0,11,0,11,0,11,18,21]
[null,"5 to 9",0,11,0,11,0,11,348,121,0,11,85,37,0,11,0,11,56,36,0,11,0,11,0,11,0,11,0,11,0,11,0,11,0,11,0,11,44,42,0,11,0,11,10,14,0,11,58,60,0,11,0,11,0,11,0,11,11,8,0,11,0,11,9,14,0,11,0,11,0,11,0,11,9,9,18,21,30,18,0,11,0,11,0,11,22,19]
[null,"10 to 19",0,11,0,11,0,11,72,55,0,11,0,11,0,11,0,11,8,11,0,11,0,11,0,11,0,11,0,11,0,11,0,11,0,11,0,11,81,57,0,11,0,11,5,6,0,11,25,39,0,11,0,11,0,11,0,11,26,26,0,11,0,11,0,11,0,11,0,11,0,11,2,3,0,11,0,11,0,11,0,11,0,11,0,11,12,13]
[null,"20 to 49",0,11,0,11,0,11,98,52,0,11,0,11,0,11,0,11,14,10,0,11,0,11,0,11,0,11,0,11,0,11,0,11,0,11,0,11,34,20,0,11,0,11,0,11,0,11,16,14,0,11,0,11,0,11,0,11,43,19,0,11,0,11,18,11,0,11,0,11,0,11,1,3,0,11,0,11,0,11,0,11,0,11,0,11,43,26]
[null,"50 or more",0,11,0,11,0,11,124,100,0,11,0,11,0,11,0,11,5,7,0,11,0,11,0,11,0,11,0,11,0,11,0,11,0,11,0,11,0,11,0,11,0,11,0,11,0,11,0,11,0,11,0,11,0,11,0,11,0,11,0,11,0,11,0,11,0,11,0,11,0,11,0,11,0,11,0,11,0,11,0,11,0,11,0,11,38,35]
[null,"Mobile home",0,11,0,11,0,11,37,27,5,7,72,30,0,11,100,24,217,67,116,31,0,11,0,11,188,43,0,11,3,4,48,19,83,24,0,11,239,74,0,11,0,11,78,33,0,11,183,52,0,11,0,11,123,46,4,6,123,53,0,11,0,11,173,50,19,11,0,11,0,11,5,5,74,26,175,45,125,36,0,11,0,11,17,11,148,42]
[null,"Boat, RV, van, etc.",0,11,0,11,0,11,0,18,0,11,0,11,0,11,0,11,0,11,0,11,0,11,0,11,0,11,0,11,0,11,0,11,0,11,0,11,0,11,0,11,0,11,0,11,0,11,0,11,0,11,0,11,0,11,0,11,0,11,0,11,0,11,0,11,0,11,0,11,0,11,0,11,0,11,0,11,0,11,0,11,0,11,0,11,7,11]
[]
[]
[null,"Calculated B25024. UNITS IN STRUCTURE "]
[null,"Universe:  HOUSING UNITS"]
[null,"Data Set: 2015-2019 American Community Survey 5-Year Estimates"]
[]
[null,null,"Atkinson and Gilmanton Grant",null,"Bean's Grant",null,"Bean's Purchase",null,"Berlin",null,"Cambridge",null,"Carroll",null,"Chandler's Purchase",null,"Clarksville",null,"Colebrook",null,"Columbia",null,"Crawford's Purchase",null,"Cutt's Grant",null,"Dalton",null,"Dix's Grant",null,"Dixville",null,"Dummer",null,"Errol",null,"Erving's Location",null,"Gorham",null,"Greens Grant",null,"Hadley's Purchase",null,"Jefferson",null,"Kilkenny",null,"Lancaster",null,"Low and Burbank's Grant",null,"Martin's Location",null,"Milan",null,"Millsfield",null,"Northumberland",null,"Odell",null,"Pinkham's Grant",null,"Pittsburg",null,"Randolph",null,"Sargent's Purchase",null,"Second College Grant",null,"Shelburne",null,"Stark",null,"Stewartstown",null,"Stratford",null,"Success",null,"Thompson and Meserves Purchase",null,"Wentworth's Location",null,"Whitefield"]
[null,null,"Estimate","Margin Of Error","Estimate","Margin Of Error","Estimate","Margin Of Error","Estimate","Margin Of Error","Estimate","Margin Of Error","Estimate","Margin Of Error","Estimate","Margin Of Error","Estimate","Margin Of Error","Estimate","Margin Of Error","Estimate","Margin Of Error","Estimate","Margin Of Error","Estimate","Margin Of Error","Estimate","Margin Of Error","Estimate","Margin Of Error","Estimate","Margin Of Error","Estimate","Margin Of Error","Estimate","Margin Of Error","Estimate","Margin Of Error","Estimate","Margin Of Error","Estimate","Margin Of Error","Estimate","Margin Of Error","Estimate","Margin Of Error","Estimate","Margin Of Error","Estimate","Margin Of Error","Estimate","Margin Of Error","Estimate","Margin Of Error","Estimate","Margin Of Error","Estimate","Margin Of Error","Estimate","Margin Of Error","Estimate","Margin Of Error","Estimate","Margin Of Error","Estimate","Margin Of Error","Estimate","Margin Of Error","Estimate","Margin Of Error","Estimate","Margin Of Error","Estimate","Margin Of Error","Estimate","Margin Of Error","Estimate","Margin Of Error","Estimate","Margin Of Error","Estimate","Margin Of Error","Estimate","Margin Of Error","Estimate","Margin Of Error","Estimate","Margin Of Error"]
[null,"Total:",0,11,0,11,0,11,5141,194,47,14,945,67,0,11,397,42,1405,83,529,66,0,11,0,11,510,66,26,10,28,14,321,54,462,58,0,11,1426,93,0,11,0,11,519,58,0,11,1776,162,0,11,0,11,812,52,65,19,1068,75,92,19,0,11,1603,86,377,43,0,11,7,10,229,33,427,55,936,72,567,70,43,17,0,11,112,22,1370,84]
[null,"Single Family",0,11,0,11,0,11,2812,253,42,17,547,55,0,11,338,43,750,88,429,58,0,11,0,11,360,56,26,10,24,13,271,53,383,61,0,11,764,112,0,11,0,11,407,55,0,11,1160,160,0,11,0,11,669,51,65,19,770,78,92,19,0,11,1442,98,358,41,0,11,7,10,202,33,351,49,713,71,416,73,43,17,0,11,104,22,837,93]
[null,"Multi-Family",0,29.103264421710495,0,29.103264421710495,0,29.103264421710495,2295,317.61612049768507,0,29.103264421710495,354,66.678332312678606,0,29.103264421710495,15,29.103264421710495,428,98.42255838983256,4,28.106938645110393,0,29.103264421710495,0,29.103264421710495,13,24.859605789312106,0,29.103264421710495,0,29.103264421710495,10,21.748563170931547,12,28.740215726399828,0,29.103264421710495,500,138.0543371285379,0,29.103264421710495,0,29.103264421710495,34,26.645825188948457,0,29.103264421710495,369,118.52847759083046,0,29.103264421710495,0,29.103264421710495,26,27.459060435491963,0,29.103264421710495,220,71.707740167990238,0,29.103264421710495,0,29.103264421710495,42,30.610455730027933,7,23.366642891095847,0,29.103264421710495,0,29.103264421710495,11,28.407745422683583,14,27.018512172212592,102,44.237992721189329,79,37.523326078587438,0,29.103264421710495,0,29.103264421710495,0,29.103264421710495,282,68.154236845554948]
[null,"Mobile Home & Other",0,15.556349186104045,0,15.556349186104045,0,15.556349186104045,34,32.249030993194197,5,13.601470508735444,44,21.95449840010015,0,15.556349186104045,44,21.95449840010015,227,63.953107821277925,96,38.600518131237564,0,15.556349186104045,0,15.556349186104045,137,39.560080889704963,0,15.556349186104045,4,12.529964086141668,40,21.095023109728988,67,29.154759474226502,0,15.556349186104045,162,70.859014952227497,0,15.556349186104045,0,15.556349186104045,78,29.274562336608895,0,15.556349186104045,247,93.648278147545241,0,15.556349186104045,0,15.556349186104045,117,31.953090617340916,0,15.556349186104045,78,39.560080889704963,0,15.556349186104045,0,15.556349186104045,119,59.211485372349848,12,13.601470508735444,0,15.556349186104045,0,15.556349186104045,16,15.556349186104045,62,32.893768406797051,121,41.484937025383083,72,25.495097567963924,0,15.556349186104045,0,15.556349186104045,8,13.038404810405298,251,82.734515167492219]
[]
[]
[]
[]
[]
[]
[]
[]
[]
[]
[]
[]
[]
[]
[]
[]
[]
[]
[]
[]
[]
[]
[]
[]
[]
[]
[]
[null,"Calculated B25024. UNITS IN STRUCTURE "]
[null,"Universe:  HOUSING UNITS"]
[null,"Data Set: 2010-2014 American Community Survey 5-Year Estimates"]
[]
[null,null,"Atkinson and Gilmanton Grant",null,"Bean's Grant",null,"Bean's Purchase",null,"Berlin",null,"Cambridge",null,"Carroll",null,"Chandler's Purchase",null,"Clarksville",null,"Colebrook",null,"Columbia",null,"Crawford's Purchase",null,"Cutt's Grant",null,"Dalton",null,"Dix's Grant",null,"Dixville",null,"Dummer",null,"Errol",null,"Erving's Location",null,"Gorham",null,"Greens Grant",null,"Hadley's Purchase",null,"Jefferson",null,"Kilkenny",null,"Lancaster",null,"Low and Burbank's Grant",null,"Martin's Location",null,"Milan",null,"Millsfield",null,"Northumberland",null,"Odell",null,"Pinkham's Grant",null,"Pittsburg",null,"Randolph",null,"Sargent's Purchase",null,"Second College Grant",null,"Shelburne",null,"Stark",null,"Stewartstown",null,"Stratford",null,"Success",null,"Thompson and Meserves Purchase",null,"Wentworth's Location",null,"Whitefield"]
[null,null,"Estimate","Margin Of Error","Estimate","Margin Of Error","Estimate","Margin Of Error","Estimate","Margin Of Error","Estimate","Margin Of Error","Estimate","Margin Of Error","Estimate","Margin Of Error","Estimate","Margin Of Error","Estimate","Margin Of Error","Estimate","Margin Of Error","Estimate","Margin Of Error","Estimate","Margin Of Error","Estimate","Margin Of Error","Estimate","Margin Of Error","Estimate","Margin Of Error","Estimate","Margin Of Error","Estimate","Margin Of Error","Estimate","Margin Of Error","Estimate","Margin Of Error","Estimate","Margin Of Error","Estimate","Margin Of Error","Estimate","Margin Of Error","Estimate","Margin Of Error","Estimate","Margin Of Error","Estimate","Margin Of Error","Estimate","Margin Of Error","Estimate","Margin Of Error","Estimate","Margin Of Error","Estimate","Margin Of Error","Estimate","Margin Of Error","Estimate","Margin Of Error","Estimate","Margin Of Error","Estimate","Margin Of Error","Estimate","Margin Of Error","Estimate","Margin Of Error","Estimate","Margin Of Error","Estimate","Margin Of Error","Estimate","Margin Of Error","Estimate","Margin Of Error","Estimate","Margin Of Error","Estimate","Margin Of Error","Estimate","Margin Of Error","Estimate","Margin Of Error"]
[null,"Total:",0,11,0,11,0,11,4854,326,44,13,945,68,0,11,445,53,1416,77,510,59,0,11,0,11,527,71,33,11,32,11,287,40,464,43,0,11,1452,97,0,11,0,11,0,11,0,11,1746,96,0,11,0,11,72,19,58,17,83,21,82,19,0,11,1758,104,344,40,5,6,6,9,204,31,437,47,945,84,46,16,47,18,0,11,114,26,1429,89]
[null,"Single Family",0,11,0,11,0,11,2632,250,40,13,529,63,0,11,361,52,836,83,402,58,0,11,0,11,340,46,29,11,29,11,239,33,364,42,0,11,819,109,0,11,0,11,0,11,0,11,1263,114,0,11,0,11,72,19,58,17,83,21,82,19,0,11,1494,111,325,39,5,6,6,9,177,28,335,46,688,77,46,16,47,18,0,11,106,26,875,107]
[null,"Multi-Family",0,29.103264421710495,0,29.103264421710495,0,29.103264421710495,2175,282.19319623265193,0,29.103264421710495,372,72.456883730947197,0,29.103264421710495,16,29.103264421710495,349,71.972216861786322,15,25.475478405713993,0,29.103264421710495,0,29.103264421710495,4,27.838821814150108,0,29.103264421710495,0,29.103264421710495,4,22.383029285599392,18,29.103264421710495,0,29.103264421710495,493,136.10657588816198,0,29.103264421710495,0,29.103264421710495,0,29.103264421710495,0,29.103264421710495,261,99.919967974374373,0,29.103264421710495,0,29.103264421710495,0,29.103264421710495,0,29.103264421710495,0,29.103264421710495,0,29.103264421710495,0,29.103264421710495,70,33.271609519228249,8,24.145392935299274,0,29.103264421710495,0,29.103264421710495,14,28.740215726399828,21,23.043437243605826,106,43.382023926967726,0,29.103264421710495,0,29.103264421710495,0,29.103264421710495,0,29.103264421710495,331,79.806014810915102]
[null,"Mobile Home & Other",0,15.556349186104045,0,15.556349186104045,0,15.556349186104045,47,47.434164902525687,4,12.083045973594572,44,27.313000567495326,0,15.556349186104045,68,23.706539182259394,231,76.791926658991954,93,25.495097567963924,0,15.556349186104045,0,15.556349186104045,183,49.244289008980523,4,12.529964086141668,3,12.529964086141668,44,22.825424421026653,82,23.706539182259394,0,15.556349186104045,140,48.270073544588683,0,15.556349186104045,0,15.556349186104045,0,15.556349186104045,0,15.556349186104045,222,89.677198885781436,0,15.556349186104045,0,15.556349186104045,0,15.556349186104045,0,15.556349186104045,0,15.556349186104045,0,15.556349186104045,0,15.556349186104045,194,65.924198895398035,11,12.529964086141668,0,15.556349186104045,0,15.556349186104045,13,14.212670403551895,81,31.016124838541646,151,42.449970553582247,0,15.556349186104045,0,15.556349186104045,0,15.556349186104045,8,14.866068747318506,223,70.859014952227497]
[]
[]
[null,"Calculated B25024. UNITS IN STRUCTURE "]
[null,"Universe:  HOUSING UNITS"]
[null,"Data Set: 2005-2009 American Community Survey 5-Year Estimates"]
[]
[null,null,"Atkinson and Gilmanton Grant",null,"Bean's Grant",null,"Bean's Purchase",null,"Berlin",null,"Cambridge",null,"Carroll",null,"Chandler's Purchase",null,"Clarksville",null,"Colebrook",null,"Columbia",null,"Crawford's Purchase",null,"Cutt's Grant",null,"Dalton",null,"Dix's Grant",null,"Dixville",null,"Dummer",null,"Errol",null,"Erving's Location",null,"Gorham",null,"Greens Grant",null,"Hadley's Purchase",null,"Jefferson",null,"Kilkenny",null,"Lancaster",null,"Low and Burbank's Grant",null,"Martin's Location",null,"Milan",null,"Millsfield",null,"Northumberland",null,"Odell",null,"Pinkham's Grant",null,"Pittsburg",null,"Randolph",null,"Sargent's Purchase",null,"Second College Grant",null,"Shelburne",null,"Stark",null,"Stewartstown",null,"Stratford",null,"Success",null,"Thompson and Meserves Purchase",null,"Wentworth's Location",null,"Whitefield"]
[null,null,"Estimate","Margin Of Error","Estimate","Margin Of Error","Estimate","Margin Of Error","Estimate","Margin Of Error","Estimate","Margin Of Error","Estimate","Margin Of Error","Estimate","Margin Of Error","Estimate","Margin Of Error","Estimate","Margin Of Error","Estimate","Margin Of Error","Estimate","Margin Of Error","Estimate","Margin Of Error","Estimate","Margin Of Error","Estimate","Margin Of Error","Estimate","Margin Of Error","Estimate","Margin Of Error","Estimate","Margin Of Error","Estimate","Margin Of Error","Estimate","Margin Of Error","Estimate","Margin Of Error","Estimate","Margin Of Error","Estimate","Margin Of Error","Estimate","Margin Of Error","Estimate","Margin Of Error","Estimate","Margin Of Error","Estimate","Margin Of Error","Estimate","Margin Of Error","Estimate","Margin Of Error","Estimate","Margin Of Error","Estimate","Margin Of Error","Estimate","Margin Of Error","Estimate","Margin Of Error","Estimate","Margin Of Error","Estimate","Margin Of Error","Estimate","Margin Of Error","Estimate","Margin Of Error","Estimate","Margin Of Error","Estimate","Margin Of Error","Estimate","Margin Of Error","Estimate","Margin Of Error","Estimate","Margin Of Error","Estimate","Margin Of Error","Estimate","Margin Of Error"]
[null,"Total:",14,20,0,114,0,114,4839,334,27,9,778,63,0,114,347,46,1433,108,571,73,0,114,0,114,603,75,15,8,26,8,253,53,478,57,0,114,1474,104,0,114,0,114,591,60,0,114,1464,152,0,114,0,114,750,61,40,11,1128,104,74,16,0,114,1338,83,372,59,0,114,13,19,226,48,389,63,752,71,684,93,90,39,0,114,99,19,1248,88]
[null,"Single Family",14,20,0,114,0,114,2644,221,24,10,433,58,0,114,304,43,603,103,478,66,0,114,0,114,435,79,15,8,23,9,213,54,420,58,0,114,797,119,0,114,0,114,477,60,0,114,939,143,0,114,0,114,634,59,40,11,740,95,74,16,0,114,1186,87,354,58,0,114,13,19,213,45,315,54,572,64,482,70,87,40,0,114,87,17,807,86]
[null,"Multi-Family",0,301.61564946136332,0,301.61564946136332,0,301.61564946136332,2151,289.2611277029805,0,301.61564946136332,307,127.12985487288185,0,301.61564946136332,0,301.61564946136332,598,137.88763541376724,7,279.3564031841762,0,301.61564946136332,0,301.61564946136332,22,256.01757752154441,0,301.61564946136332,0,301.61564946136332,8,255.05489605181077,3,279.27047821064082,0,301.61564946136332,449,148.85899368194049,0,301.61564946136332,0,301.61564946136332,31,228.6875597840862,0,301.61564946136332,372,118.16936997377958,0,301.61564946136332,0,301.61564946136332,23,198.10855609993223,0,301.61564946136332,296,92.244241012650761,0,301.61564946136332,0,301.61564946136332,29,228.42504240997746,2,279.25794527640568,0,301.61564946136332,0,301.61564946136332,5,279.30628349537716,26,256.13473017144707,66,199.71980372511885,114,201.3305739325252,0,301.61564946136332,0,301.61564946136332,8,279.42082957431791,261,177.33583958128713]
[null,"Mobile Home & Other",0,161.22034611053283,0,161.22034611053283,0,161.22034611053283,44,118.96217886370441,3,114.0701538527936,38,117.38824472663352,0,161.22034611053283,43,115.57248807566617,232,135.36986370680884,86,119.54915307102765,0,161.22034611053283,0,161.22034611053283,146,118.40608092492548,0,161.22034611053283,3,114.0701538527936,32,115.11733144926528,55,116.10340218959993,0,161.22034611053283,228,147.75655653811103,0,161.22034611053283,0,161.22034611053283,83,118.96217886370441,0,161.22034611053283,153,134.30189872075525,0,161.22034611053283,0,161.22034611053283,93,116.92732785794773,0,161.22034611053283,92,123.30855606972291,0,161.22034611053283,0,161.22034611053283,123,37.215588131856791,16,114.52947218947619,0,161.22034611053283,0,161.22034611053283,8,114.28035701729323,48,116.49892703368559,114,119.54915307102765,88,118.68024266911489,3,114.10959644131601,0,161.22034611053283,4,114.15778554264269,180,133.77593206552515]

{"sheet":"ACS_Table_B25032","index":46,"n_rows":119,"n_cols":88,"rows_kept":119,"cut":false,"hidden":true,"merged":[]}
[null,"B25032. TENURE BY UNITS IN STRUCTURE "]
[null,"Universe:  OCCUPIED HOUSING UNITS"]
[null,"Data Set: 2015-2019 American Community Survey 5-Year Estimates"]
[]
[null,null,"Atkinson and Gilmanton Grant",null,"Bean's Grant",null,"Bean's Purchase",null,"Berlin",null,"Cambridge",null,"Carroll",null,"Chandler's Purchase",null,"Clarksville",null,"Colebrook",null,"Columbia",null,"Crawford's Purchase",null,"Cutt's Grant",null,"Dalton",null,"Dix's Grant",null,"Dixville",null,"Dummer",null,"Errol",null,"Erving's Location",null,"Gorham",null,"Greens Grant",null,"Hadley's Purchase",null,"Jefferson",null,"Kilkenny",null,"Lancaster",null,"Low and Burbank's Grant",null,"Martin's Location",null,"Milan",null,"Millsfield",null,"Northumberland",null,"Odell",null,"Pinkham's Grant",null,"Pittsburg",null,"Randolph",null,"Sargent's Purchase",null,"Second College Grant",null,"Shelburne",null,"Stark",null,"Stewartstown",null,"Stratford",null,"Success",null,"Thompson and Meserves Purchase",null,"Wentworth's Location",null,"Whitefield"]
[null,null,"Estimate","Margin Of Error","Estimate","Margin Of Error","Estimate","Margin Of Error","Estimate","Margin Of Error","Estimate","Margin Of Error","Estimate","Margin Of Error","Estimate","Margin Of Error","Estimate","Margin Of Error","Estimate","Margin Of Error","Estimate","Margin Of Error","Estimate","Margin Of Error","Estimate","Margin Of Error","Estimate","Margin Of Error","Estimate","Margin Of Error","Estimate","Margin Of Error","Estimate","Margin Of Error","Estimate","Margin Of Error","Estimate","Margin Of Error","Estimate","Margin Of Error","Estimate","Margin Of Error","Estimate","Margin Of Error","Estimate","Margin Of Error","Estimate","Margin Of Error","Estimate","Margin Of Error","Estimate","Margin Of Error","Estimate","Margin Of Error","Estimate","Margin Of Error","Estimate","Margin Of Error","Estimate","Margin Of Error","Estimate","Margin Of Error","Estimate","Margin Of Error","Estimate","Margin Of Error","Estimate","Margin Of Error","Estimate","Margin Of Error","Estimate","Margin Of Error","Estimate","Margin Of Error","Estimate","Margin Of Error","Estimate","Margin Of Error","Estimate","Margin Of Error","Estimate","Margin Of Error","Estimate","Margin Of Error","Estimate","Margin Of Error","Estimate","Margin Of Error"]
[null,"Total:",0,11,0,11,0,11,3977,201,0,11,324,49,0,11,141,40,954,84,316,51,0,11,0,11,424,64,0,11,1,4,127,25,113,29,0,11,1243,99,0,11,0,11,396,58,0,11,1366,149,0,11,0,11,589,53,4,6,984,88,0,11,0,11,423,57,196,39,0,11,0,11,200,30,233,40,418,64,277,49,0,11,0,11,16,9,1046,111]
[null,"Owner-occupied housing units:",0,11,0,11,0,11,2228,192,0,11,252,49,0,11,130,39,698,79,267,47,0,11,0,11,364,62,0,11,1,4,114,24,95,27,0,11,960,80,0,11,0,11,346,48,0,11,1019,108,0,11,0,11,499,49,4,6,660,86,0,11,0,11,336,50,161,36,0,11,0,11,163,29,198,39,370,54,206,41,0,11,0,11,14,9,643,78]
[null,"1, detached",0,11,0,11,0,11,1930,182,0,11,226,44,0,11,115,37,527,79,201,40,0,11,0,11,264,53,0,11,1,4,103,27,92,28,0,11,755,90,0,11,0,11,307,44,0,11,844,95,0,11,0,11,455,48,4,6,559,85,0,11,0,11,326,49,140,32,0,11,0,11,156,28,175,37,305,54,162,35,0,11,0,11,10,7,501,82]
[null,"1, attached",0,11,0,11,0,11,26,32,0,11,5,5,0,11,0,11,3,4,0,11,0,11,0,11,0,11,0,11,0,11,0,11,0,11,0,11,0,11,0,11,0,11,4,5,0,11,0,11,0,11,0,11,8,7,0,11,6,8,0,11,0,11,0,11,7,5,0,11,0,11,0,11,0,11,0,11,0,11,0,11,0,11,0,11,11,11]
[null,2,0,11,0,11,0,11,177,75,0,11,0,11,0,11,2,3,15,14,2,3,0,11,0,11,0,11,0,11,0,11,3,4,0,11,0,11,63,32,0,11,0,11,0,11,0,11,18,19,0,11,0,11,3,5,0,11,28,24,0,11,0,11,0,11,4,5,0,11,0,11,5,5,0,11,3,4,0,11,0,11,0,11,0,11,29,33]
[null,"3 or 4",0,11,0,11,0,11,44,36,0,11,3,4,0,11,0,11,22,19,0,11,0,11,0,11,0,11,0,11,0,11,0,11,0,11,0,11,10,16,0,11,0,11,0,11,0,11,17,14,0,11,0,11,0,11,0,11,5,7,0,11,0,11,0,11,0,11,0,11,0,11,0,11,2,3,0,11,0,11,0,11,0,11,0,11,0,11]
[null,"5 to 9",0,11,0,11,0,11,14,17,0,11,0,11,0,11,0,11,0,11,0,11,0,11,0,11,0,11,0,11,0,11,0,11,0,11,0,11,0,11,0,11,0,11,0,11,0,11,0,11,0,11,0,11,0,11,0,11,0,11,0,11,0,11,0,11,0,11,0,11,0,11,0,11,0,11,0,11,0,11,0,11,0,11,0,11,0,11]
[null,"10 to 19",0,11,0,11,0,11,0,18,0,11,0,11,0,11,0,11,0,11,0,11,0,11,0,11,0,11,0,11,0,11,0,11,0,11,0,11,0,11,0,11,0,11,0,11,0,11,0,11,0,11,0,11,0,11,0,11,0,11,0,11,0,11,0,11,0,11,0,11,0,11,0,11,0,11,0,11,0,11,0,11,0,11,0,11,0,11]
[null,"20 to 49",0,11,0,11,0,11,0,18,0,11,0,11,0,11,0,11,0,11,0,11,0,11,0,11,0,11,0,11,0,11,0,11,0,11,0,11,0,11,0,11,0,11,0,11,0,11,0,11,0,11,0,11,0,11,0,11,0,11,0,11,0,11,0,11,0,11,0,11,0,11,1,3,0,11,0,11,0,11,0,11,0,11,0,11,0,11]
[null,"50 or more",0,11,0,11,0,11,0,18,0,11,0,11,0,11,0,11,0,11,0,11,0,11,0,11,0,11,0,11,0,11,0,11,0,11,0,11,0,11,0,11,0,11,0,11,0,11,0,11,0,11,0,11,0,11,0,11,0,11,0,11,0,11,0,11,0,11,0,11,0,11,0,11,0,11,0,11,0,11,0,11,0,11,0,11,0,11]
[null,"Mobile home",0,11,0,11,0,11,37,27,0,11,18,14,0,11,13,9,131,55,64,24,0,11,0,11,100,36,0,11,0,11,8,6,3,4,0,11,132,55,0,11,0,11,35,19,0,11,140,47,0,11,0,11,33,12,0,11,62,38,0,11,0,11,10,8,10,7,0,11,0,11,1,2,21,12,62,31,44,21,0,11,0,11,4,5,95,33]
[null,"Boat, RV, van, etc.",0,11,0,11,0,11,0,18,0,11,0,11,0,11,0,11,0,11,0,11,0,11,0,11,0,11,0,11,0,11,0,11,0,11,0,11,0,11,0,11,0,11,0,11,0,11,0,11,0,11,0,11,0,11,0,11,0,11,0,11,0,11,0,11,0,11,0,11,0,11,0,11,0,11,0,11,0,11,0,11,0,11,0,11,7,11]
[null,"Renter-occupied housing units:",0,11,0,11,0,11,1749,196,0,11,72,32,0,11,11,7,256,55,49,22,0,11,0,11,60,28,0,11,0,11,13,8,18,12,0,11,283,83,0,11,0,11,50,32,0,11,347,116,0,11,0,11,90,41,0,11,324,61,0,11,0,11,87,31,35,17,0,11,0,11,37,18,35,19,48,40,71,29,0,11,0,11,2,3,403,105]
[null,"1, detached",0,11,0,11,0,11,146,61,0,11,50,28,0,11,7,5,89,39,29,19,0,11,0,11,41,23,0,11,0,11,7,6,14,12,0,11,44,44,0,11,0,11,18,12,0,11,72,53,0,11,0,11,43,19,0,11,138,49,0,11,0,11,40,26,29,14,0,11,0,11,29,16,20,15,27,26,17,14,0,11,0,11,0,11,140,69]
[null,"1, attached",0,11,0,11,0,11,7,10,0,11,2,3,0,11,0,11,0,11,4,5,0,11,0,11,5,9,0,11,0,11,0,11,0,11,0,11,0,11,0,11,0,11,0,11,0,11,7,12,0,11,0,11,0,11,0,11,0,11,0,11,0,11,0,11,6,10,0,11,0,11,0,11,2,3,0,11,2,3,0,11,0,11,0,11,17,23]
[null,2,0,11,0,11,0,11,438,131,0,11,5,5,0,11,0,11,33,28,0,11,0,11,0,11,0,11,0,11,0,11,4,4,1,2,0,11,36,29,0,11,0,11,19,28,0,11,69,44,0,11,0,11,7,6,0,11,28,18,0,11,0,11,11,16,0,11,0,11,0,11,2,3,0,11,3,5,0,11,0,11,0,11,0,11,69,61]
[null,"3 or 4",0,11,0,11,0,11,669,150,0,11,9,5,0,11,3,4,71,33,3,4,0,11,0,11,0,11,0,11,0,11,0,11,0,11,0,11,56,35,0,11,0,11,8,7,0,11,147,79,0,11,0,11,0,11,0,11,90,44,0,11,0,11,10,15,0,11,0,11,0,11,4,6,4,5,0,11,9,11,0,11,0,11,0,11,18,21]
[null,"5 to 9",0,11,0,11,0,11,255,121,0,11,0,11,0,11,0,11,25,19,0,11,0,11,0,11,0,11,0,11,0,11,0,11,0,11,0,11,18,15,0,11,0,11,0,11,0,11,0,11,0,11,0,11,0,11,0,11,11,8,0,11,0,11,0,11,0,11,0,11,0,11,0,11,2,3,18,21,24,15,0,11,0,11,0,11,22,19]
[null,"10 to 19",0,11,0,11,0,11,43,29,0,11,0,11,0,11,0,11,8,11,0,11,0,11,0,11,0,11,0,11,0,11,0,11,0,11,0,11,11,16,0,11,0,11,5,6,0,11,25,39,0,11,0,11,0,11,0,11,10,10,0,11,0,11,0,11,0,11,0,11,0,11,2,3,0,11,0,11,0,11,0,11,0,11,0,11,12,13]
[null,"20 to 49",0,11,0,11,0,11,98,52,0,11,0,11,0,11,0,11,14,10,0,11,0,11,0,11,0,11,0,11,0,11,0,11,0,11,0,11,34,20,0,11,0,11,0,11,0,11,16,14,0,11,0,11,0,11,0,11,43,19,0,11,0,11,18,11,0,11,0,11,0,11,0,11,0,11,0,11,0,11,0,11,0,11,0,11,43,26]
[null,"50 or more",0,11,0,11,0,11,93,87,0,11,0,11,0,11,0,11,5,7,0,11,0,11,0,11,0,11,0,11,0,11,0,11,0,11,0,11,0,11,0,11,0,11,0,11,0,11,0,11,0,11,0,11,0,11,0,11,0,11,0,11,0,11,0,11,0,11,0,11,0,11,0,11,0,11,0,11,0,11,0,11,0,11,0,11,38,35]
[null,"Mobile home",0,11,0,11,0,11,0,18,0,11,6,10,0,11,1,2,11,14,13,11,0,11,0,11,14,10,0,11,0,11,2,3,3,3,0,11,84,62,0,11,0,11,0,11,0,11,11,18,0,11,0,11,40,33,0,11,4,6,0,11,0,11,8,8,0,11,0,11,0,11,0,11,7,11,0,11,19,17,0,11,0,11,2,3,44,33]
[null,"Boat, RV, van, etc.",0,11,0,11,0,11,0,18,0,11,0,11,0,11,0,11,0,11,0,11,0,11,0,11,0,11,0,11,0,11,0,11,0,11,0,11,0,11,0,11,0,11,0,11,0,11,0,11,0,11,0,11,0,11,0,11,0,11,0,11,0,11,0,11,0,11,0,11,0,11,0,11,0,11,0,11,0,11,0,11,0,11,0,11,0,11]
[]
[]
[null,"Calculated B25032. TENURE BY UNITS IN STRUCTURE "]
[null,"Universe:  OCCUPIED HOUSING UNITS"]
[null,"Data Set: 2015-2019 American Community Survey 5-Year Estimates"]
[]
[null,null,"Atkinson and Gilmanton Grant",null,"Bean's Grant",null,"Bean's Purchase",null,"Berlin",null,"Cambridge",null,"Carroll",null,"Chandler's Purchase",null,"Clarksville",null,"Colebrook",null,"Columbia",null,"Crawford's Purchase",null,"Cutt's Grant",null,"Dalton",null,"Dix's Grant",null,"Dixville",null,"Dummer",null,"Errol",null,"Erving's Location",null,"Gorham",null,"Greens Grant",null,"Hadley's Purchase",null,"Jefferson",null,"Kilkenny",null,"Lancaster",null,"Low and Burbank's Grant",null,"Martin's Location",null,"Milan",null,"Millsfield",null,"Northumberland",null,"Odell",null,"Pinkham's Grant",null,"Pittsburg",null,"Randolph",null,"Sargent's Purchase",null,"Second College Grant",null,"Shelburne",null,"Stark",null,"Stewartstown",null,"Stratford",null,"Success",null,"Thompson and Meserves Purchase",null,"Wentworth's Location",null,"Whitefield"]
[null,null,"Estimate","Margin Of Error","Estimate","Margin Of Error","Estimate","Margin Of Error","Estimate","Margin Of Error","Estimate","Margin Of Error","Estimate","Margin Of Error","Estimate","Margin Of Error","Estimate","Margin Of Error","Estimate","Margin Of Error","Estimate","Margin Of Error","Estimate","Margin Of Error","Estimate","Margin Of Error","Estimate","Margin Of Error","Estimate","Margin Of Error","Estimate","Margin Of Error","Estimate","Margin Of Error","Estimate","Margin Of Error","Estimate","Margin Of Error","Estimate","Margin Of Error","Estimate","Margin Of Error","Estimate","Margin Of Error","Estimate","Margin Of Error","Estimate","Margin Of Error","Estimate","Margin Of Error","Estimate","Margin Of Error","Estimate","Margin Of Error","Estimate","Margin Of Error","Estimate","Margin Of Error","Estimate","Margin Of Error","Estimate","Margin Of Error","Estimate","Margin Of Error","Estimate","Margin Of Error","Estimate","Margin Of Error","Estimate","Margin Of Error","Estimate","Margin Of Error","Estimate","Margin Of Error","Estimate","Margin Of Error","Estimate","Margin Of Error","Estimate","Margin Of Error","Estimate","Margin Of Error","Estimate","Margin Of Error","Estimate","Margin Of Error","Estimate","Margin Of Error"]
[null,"Total:",0,11,0,11,0,11,4478,193,9,9,312,61,0,11,164,34,1120,92,297,54,0,11,0,11,391,59,0,11,4,6,185,54,168,46,0,11,1278,79,0,11,0,11,367,42,0,11,1446,148,0,11,0,11,578,45,8,8,931,77,0,11,0,11,498,71,197,31,0,11,0,11,175,28,263,36,436,67,372,58,0,11,0,11,28,16,999,101]
[null,"Owner-occupied housing units:",0,11,0,11,0,11,2876,199,9,9,230,49,0,11,155,35,760,92,240,51,0,11,0,11,307,48,0,11,0,11,162,54,144,41,0,11,845,100,0,11,0,11,327,43,0,11,1002,148,0,11,0,11,513,44,8,8,644,78,0,11,0,11,428,68,175,28,0,11,0,11,145,27,216,31,340,60,292,51,0,11,0,11,19,15,702,88]
[null,"Single Family",0,11,0,11,0,11,2482,197,9,9,223,48,0,11,129,32,525,70,206,44,0,11,0,11,224,47,0,11,0,11,143,53,115,38,0,11,692,103,0,11,0,11,270,41,0,11,794,146,0,11,0,11,454,44,8,8,597,68,0,11,0,11,406,67,167,28,0,11,0,11,134,29,189,32,278,51,215,51,0,11,0,11,17,14,528,79]
[null,"Multi-Family",0,29.103264421710495,0,29.103264421710495,0,29.103264421710495,372,120.61509026651682,0,29.103264421710495,7,25.80697580112788,0,29.103264421710495,13,28.740215726399828,65,41.1703777004778,0,29.103264421710495,0,29.103264421710495,0,29.103264421710495,0,29.103264421710495,0,29.103264421710495,0,29.103264421710495,2,25,1,27.239676943752471,0,29.103264421710495,42,37.282703764614496,0,29.103264421710495,0,29.103264421710495,16,26.343879744638983,0,29.103264421710495,40,46.021733996015406,0,29.103264421710495,0,29.103264421710495,9,25.632011235952593,0,29.103264421710495,5,27.838821814150108,0,29.103264421710495,0,29.103264421710495,0,29.103264421710495,1,27.018512172212592,0,29.103264421710495,0,29.103264421710495,5,27.604347483684521,0,29.103264421710495,5,28.106938645110393,13,27.221315177632398,0,29.103264421710495,0,29.103264421710495,0,29.103264421710495,20,30.708305065568176]
[null,"Mobile Home & Other",0,15.556349186104045,0,15.556349186104045,0,15.556349186104045,22,28.844410203711913,0,15.556349186104045,0,15.556349186104045,0,15.556349186104045,13,14.866068747318506,170,64.938432380216881,34,24.596747752497688,0,15.556349186104045,0,15.556349186104045,83,24.596747752497688,0,15.556349186104045,0,15.556349186104045,17,17.804493814764857,28,20.248456731316587,0,15.556349186104045,111,47.296934361541872,0,15.556349186104045,0,15.556349186104045,41,21.095023109728988,0,15.556349186104045,168,79.762146410437069,0,15.556349186104045,0,15.556349186104045,50,20.248456731316587,0,15.556349186104045,42,27.313000567495326,0,15.556349186104045,0,15.556349186104045,22,16.763054614240211,7,12.529964086141668,0,15.556349186104045,0,15.556349186104045,6,14.212670403551895,27,22.825424421026653,57,32.893768406797051,64,23.706539182259394,0,15.556349186104045,0,15.556349186104045,2,11.401754250991379,154,59.033888572581766]
[null,"Renter-occupied housing units:",0,11,0,11,0,11,1602,211,0,11,82,38,0,11,9,9,360,73,57,32,0,11,0,11,84,36,0,11,4,6,23,15,24,14,0,11,433,117,0,11,0,11,40,19,0,11,444,116,0,11,0,11,65,19,0,11,287,75,0,11,0,11,70,31,22,13,0,11,0,11,30,16,47,19,96,36,80,30,0,11,0,11,9,8,297,56]
[null,"Single Family",0,11,0,11,0,11,139,72,0,11,50,30,0,11,9,9,27,24,27,17,0,11,0,11,21,14,0,11,0,11,4,4,18,14,0,11,35,26,0,11,0,11,16,12,0,11,115,72,0,11,0,11,24,12,0,11,80,34,0,11,0,11,38,18,14,9,0,11,0,11,21,14,13,10,23,15,12,11,0,11,0,11,6,7,41,21]
[null,"Multi-Family",0,29.103264421710495,0,29.103264421710495,0,29.103264421710495,1451,233.14373249135392,0,29.103264421710495,26,32.893768406797051,0,29.103264421710495,0,29.103264421710495,302,79.240141342630125,0,29.103264421710495,0,29.103264421710495,0,29.103264421710495,9,26.267851073127396,0,29.103264421710495,0,29.103264421710495,8,26.362852652928137,4,27.604347483684521,0,29.103264421710495,347,116.37439580938755,0,29.103264421710495,0,29.103264421710495,18,27.110883423451916,0,29.103264421710495,329,112.21853679316978,0,29.103264421710495,0,29.103264421710495,14,26.267851073127396,0,29.103264421710495,171,65.536249511243781,0,29.103264421710495,0,29.103264421710495,30,31.527765540868891,6,25.748786379167466,0,29.103264421710495,0,29.103264421710495,6,27.838821814150108,10,26.664583251946766,64,40.877866871939389,62,36.235341863986875,0,29.103264421710495,0,29.103264421710495,0,29.103264421710495,228,58.932164392630277]
[null,"Mobile Home & Other",0,15.556349186104045,0,15.556349186104045,0,15.556349186104045,12,24.083189157584592,0,15.556349186104045,6,14.212670403551895,0,15.556349186104045,0,15.556349186104045,31,27.313000567495326,30,28.231188426986208,0,15.556349186104045,0,15.556349186104045,54,31.953090617340916,0,15.556349186104045,4,12.529964086141668,11,16.278820596099706,2,11.401754250991379,0,15.556349186104045,51,51.195702944680818,0,15.556349186104045,0,15.556349186104045,6,5.6568542494923806,0,15.556349186104045,0,15.556349186104045,0,15.556349186104045,0,15.556349186104045,27,17.804493814764857,0,15.556349186104045,36,34.785054261852174,0,15.556349186104045,0,15.556349186104045,2,11.401754250991379,2,11.401754250991379,0,15.556349186104045,0,15.556349186104045,3,11.704699910719626,24,20.248456731316587,9,15.556349186104045,6,14.212670403551895,0,15.556349186104045,0,15.556349186104045,3,12.529964086141668,28,24.596747752497688]
[]
[]
[]
[]
[]
[]
[]
[]
[]
[]
[]
[]
[]
[]
[]
[]
[]
[]
[]
[]
[]
[]
[]
[]
[]
[]
[]
[]
[]
[]
[]
[]
[]
[]
[]
[]
[]
[]
[]
[]
[null,"Calculated B25032. TENURE BY UNITS IN STRUCTURE "]
[null,"Universe:  OCCUPIED HOUSING UNITS"]
[null,"Data Set: 2010-2014 American Community Survey 5-Year Estimates"]
[]
[null,null,"Atkinson and Gilmanton Grant",null,"Bean's Grant",null,"Bean's Purchase",null,"Berlin",null,"Cambridge",null,"Carroll",null,"Chandler's Purchase",null,"Clarksville",null,"Colebrook",null,"Columbia",null,"Crawford's Purchase",null,"Cutt's Grant",null,"Dalton",null,"Dix's Grant",null,"Dixville",null,"Dummer",null,"Errol",null,"Erving's Location",null,"Gorham",null,"Greens Grant",null,"Hadley's Purchase",null,"Jefferson",null,"Kilkenny",null,"Lancaster",null,"Low and Burbank's Grant",null,"Martin's Location",null,"Milan",null,"Millsfield",null,"Northumberland",null,"Odell",null,"Pinkham's Grant",null,"Pittsburg",null,"Randolph",null,"Sargent's Purchase",null,"Second College Grant",null,"Shelburne",null,"Stark",null,"Stewartstown",null,"Stratford",null,"Success",null,"Thompson and Meserves Purchase",null,"Wentworth's Location",null,"Whitefield"]
[null,null,"Estimate","Margin Of Error","Estimate","Margin Of Error","Estimate","Margin Of Error","Estimate","Margin Of Error","Estimate","Margin Of Error","Estimate","Margin Of Error","Estimate","Margin Of Error","Estimate","Margin Of Error","Estimate","Margin Of Error","Estimate","Margin Of Error","Estimate","Margin Of Error","Estimate","Margin Of Error","Estimate","Margin Of Error","Estimate","Margin Of Error","Estimate","Margin Of Error","Estimate","Margin Of Error","Estimate","Margin Of Error","Estimate","Margin Of Error","Estimate","Margin Of Error","Estimate","Margin Of Error","Estimate","Margin Of Error","Estimate","Margin Of Error","Estimate","Margin Of Error","Estimate","Margin Of Error","Estimate","Margin Of Error","Estimate","Margin Of Error","Estimate","Margin Of Error","Estimate","Margin Of Error","Estimate","Margin Of Error","Estimate","Margin Of Error","Estimate","Margin Of Error","Estimate","Margin Of Error","Estimate","Margin Of Error","Estimate","Margin Of Error","Estimate","Margin Of Error","Estimate","Margin Of Error","Estimate","Margin Of Error","Estimate","Margin Of Error","Estimate","Margin Of Error","Estimate","Margin Of Error","Estimate","Margin Of Error","Estimate","Margin Of Error","Estimate","Margin Of Error"]
[null,"Total:",0,11,0,11,0,11,4185,303,8,10,362,57,0,11,152,33,1101,105,315,52,0,11,0,11,414,58,4,6,3,6,141,32,186,38,0,11,1240,77,0,11,0,11,0,11,0,11,1537,96,0,11,0,11,9,7,8,8,0,11,0,11,0,11,452,68,197,34,5,6,0,11,165,26,217,35,373,58,0,11,0,11,0,11,37,21,1047,106]
[null,"Owner-occupied housing units:",0,11,0,11,0,11,2534,234,8,10,267,52,0,11,135,32,747,96,254,50,0,11,0,11,335,47,0,11,0,11,128,28,149,33,0,11,877,80,0,11,0,11,0,11,0,11,1060,113,0,11,0,11,9,7,8,8,0,11,0,11,0,11,361,61,175,30,0,11,0,11,141,27,181,35,272,54,0,11,0,11,0,11,20,13,667,94]
[null,"Single Family",0,11,0,11,0,11,2135,207,8,10,249,53,0,11,110,30,536,83,213,48,0,11,0,11,227,34,0,11,0,11,105,27,118,30,0,11,692,82,0,11,0,11,0,11,0,11,887,116,0,11,0,11,9,7,8,8,0,11,0,11,0,11,355,62,165,30,0,11,0,11,127,25,152,32,213,48,0,11,0,11,0,11,19,12,503,83]
[null,"Multi-Family",0,29.103264421710495,0,29.103264421710495,0,29.103264421710495,352,91.131772724994221,0,29.103264421710495,0,29.103264421710495,0,29.103264421710495,14,29.103264421710495,65,36.345563690772494,6,27.838821814150108,0,29.103264421710495,0,29.103264421710495,0,29.103264421710495,0,29.103264421710495,0,29.103264421710495,3,24.859605789312106,2,27.110883423451916,0,29.103264421710495,58,41.653331199317059,0,29.103264421710495,0,29.103264421710495,0,29.103264421710495,0,29.103264421710495,11,32.403703492039298,0,29.103264421710495,0,29.103264421710495,0,29.103264421710495,0,29.103264421710495,0,29.103264421710495,0,29.103264421710495,0,29.103264421710495,0,29.103264421710495,1,27.110883423451916,0,29.103264421710495,0,29.103264421710495,7,27.838821814150108,2,27.239676943752471,4,27.404379212089442,0,29.103264421710495,0,29.103264421710495,0,29.103264421710495,0,29.103264421710495,23,27.982137159266443]
[null,"Mobile Home & Other",0,15.556349186104045,0,15.556349186104045,0,15.556349186104045,47,47.434164902525687,0,15.556349186104045,18,19.416487838947599,0,15.556349186104045,11,13.038404810405298,146,62.968245965724662,35,21.95449840010015,0,15.556349186104045,0,15.556349186104045,108,37.643060449437421,0,15.556349186104045,0,15.556349186104045,20,17.804493814764857,29,17.029386365926403,0,15.556349186104045,127,44.384682042344295,0,15.556349186104045,0,15.556349186104045,0,15.556349186104045,0,15.556349186104045,162,68.8839603971781,0,15.556349186104045,0,15.556349186104045,0,15.556349186104045,0,15.556349186104045,0,15.556349186104045,0,15.556349186104045,0,15.556349186104045,6,12.529964086141668,9,12.529964086141668,0,15.556349186104045,0,15.556349186104045,7,12.529964086141668,27,19.416487838947599,55,29.154759474226502,0,15.556349186104045,0,15.556349186104045,0,15.556349186104045,1,11.401754250991379,141,54.12947441089743]
[null,"Renter-occupied housing units:",0,11,0,11,0,11,1651,226,0,11,95,36,0,11,17,11,354,73,61,31,0,11,0,11,79,33,4,6,3,6,13,13,37,19,0,11,363,96,0,11,0,11,0,11,0,11,477,113,0,11,0,11,0,11,0,11,0,11,0,11,0,11,91,34,22,15,5,6,0,11,24,16,36,13,101,39,0,11,0,11,0,11,17,16,380,84]
[null,"Single Family",0,11,0,11,0,11,225,105,0,11,51,27,0,11,15,10,71,40,27,18,0,11,0,11,27,17,0,11,0,11,3,4,25,15,0,11,42,43,0,11,0,11,0,11,0,11,218,76,0,11,0,11,0,11,0,11,0,11,0,11,0,11,31,18,13,11,5,6,0,11,14,12,10,8,25,18,0,11,0,11,0,11,16,16,80,44]
[null,"Multi-Family",0,29.103264421710495,0,29.103264421710495,0,29.103264421710495,1426,220.76231562474607,0,29.103264421710495,38,29.647934160747187,0,29.103264421710495,0,29.103264421710495,254,56.612719418872643,3,27.239676943752471,0,29.103264421710495,0,29.103264421710495,0,29.103264421710495,0,29.103264421710495,0,29.103264421710495,1,27.018512172212592,8,28.106938645110393,0,29.103264421710495,308,105.77806956075536,0,29.103264421710495,0,29.103264421710495,0,29.103264421710495,0,29.103264421710495,250,97.97448647479608,0,29.103264421710495,0,29.103264421710495,0,29.103264421710495,0,29.103264421710495,0,29.103264421710495,0,29.103264421710495,0,29.103264421710495,58,35.284557528754704,7,26.362852652928137,0,29.103264421710495,0,29.103264421710495,7,28.106938645110393,16,24.839484696748443,65,39.66106403010388,0,29.103264421710495,0,29.103264421710495,0,29.103264421710495,0,29.103264421710495,264,73.932401557098089]
[null,"Mobile Home & Other",0,15.556349186104045,0,15.556349186104045,0,15.556349186104045,0,21.213203435596427,0,15.556349186104045,6,14.866068747318506,0,15.556349186104045,2,11.401754250991379,29,28.231188426986208,31,25.495097567963924,0,15.556349186104045,0,15.556349186104045,52,31.016124838541646,4,12.529964086141668,3,12.529964086141668,9,15.556349186104045,4,12.083045973594572,0,15.556349186104045,13,17.804493814764857,0,15.556349186104045,0,15.556349186104045,0,15.556349186104045,0,15.556349186104045,9,19.416487838947599,0,15.556349186104045,0,15.556349186104045,0,15.556349186104045,0,15.556349186104045,0,15.556349186104045,0,15.556349186104045,0,15.556349186104045,2,11.401754250991379,2,11.401754250991379,0,15.556349186104045,0,15.556349186104045,3,11.704699910719626,10,13.601470508735444,11,16.278820596099706,0,15.556349186104045,0,15.556349186104045,0,15.556349186104045,1,11.401754250991379,36,27.313000567495326]
[]
[]
[]
[null,"Calculated B25032. TENURE BY UNITS IN STRUCTURE "]
[null,"Universe:  OCCUPIED HOUSING UNITS"]
[null,"Data Set: 2005-2009 American Community Survey 5-Year Estimates"]
[]
[null,null,"Atkinson and Gilmanton Grant",null,"Bean's Grant",null,"Bean's Purchase",null,"Berlin",null,"Cambridge",null,"Carroll",null,"Chandler's Purchase",null,"Clarksville",null,"Colebrook",null,"Columbia",null,"Crawford's Purchase",null,"Cutt's Grant",null,"Dalton",null,"Dix's Grant",null,"Dixville",null,"Dummer",null,"Errol",null,"Erving's Location",null,"Gorham",null,"Greens Grant",null,"Hadley's Purchase",null,"Jefferson",null,"Kilkenny",null,"Lancaster",null,"Low and Burbank's Grant",null,"Martin's Location",null,"Milan",null,"Millsfield",null,"Northumberland",null,"Odell",null,"Pinkham's Grant",null,"Pittsburg",null,"Randolph",null,"Sargent's Purchase",null,"Second College Grant",null,"Shelburne",null,"Stark",null,"Stewartstown",null,"Stratford",null,"Success",null,"Thompson and Meserves Purchase",null,"Wentworth's Location",null,"Whitefield"]
[null,null,"Estimate","Margin Of Error","Estimate","Margin Of Error","Estimate","Margin Of Error","Estimate","Margin Of Error","Estimate","Margin Of Error","Estimate","Margin Of Error","Estimate","Margin Of Error","Estimate","Margin Of Error","Estimate","Margin Of Error","Estimate","Margin Of Error","Estimate","Margin Of Error","Estimate","Margin Of Error","Estimate","Margin Of Error","Estimate","Margin Of Error","Estimate","Margin Of Error","Estimate","Margin Of Error","Estimate","Margin Of Error","Estimate","Margin Of Error","Estimate","Margin Of Error","Estimate","Margin Of Error","Estimate","Margin Of Error","Estimate","Margin Of Error","Estimate","Margin Of Error","Estimate","Margin Of Error","Estimate","Margin Of Error","Estimate","Margin Of Error","Estimate","Margin Of Error","Estimate","Margin Of Error","Estimate","Margin Of Error","Estimate","Margin Of Error","Estimate","Margin Of Error","Estimate","Margin Of Error","Estimate","Margin Of Error","Estimate","Margin Of Error","Estimate","Margin Of Error","Estimate","Margin Of Error","Estimate","Margin Of Error","Estimate","Margin Of Error","Estimate","Margin Of Error","Estimate","Margin Of Error","Estimate","Margin Of Error","Estimate","Margin Of Error","Estimate","Margin Of Error"]
[null,"Total:",0,114,0,114,0,114,4227,382,0,114,296,59,0,114,167,40,1116,126,344,64,0,114,0,114,469,55,0,114,8,8,151,49,119,32,0,114,1332,83,0,114,0,114,395,47,0,114,1248,119,0,114,0,114,567,44,4,5,1018,106,0,114,0,114,398,61,170,37,0,114,0,114,194,42,250,59,398,76,503,85,0,114,0,114,26,13,922,94]
[null,"Owner-occupied housing units:",0,114,0,114,0,114,2703,276,0,114,257,51,0,114,145,31,676,110,326,63,0,114,0,114,391,51,0,114,0,114,140,49,112,30,0,114,889,101,0,114,0,114,355,46,0,114,897,111,0,114,0,114,499,43,4,5,637,94,0,114,0,114,358,63,154,34,0,114,0,114,173,40,199,45,330,68,360,71,0,114,0,114,22,13,669,75]
[null,"Single Family",0,114,0,114,0,114,2322,237,0,114,222,50,0,114,138,30,429,95,259,55,0,114,0,114,291,52,0,114,0,114,134,49,97,26,0,114,718,109,0,114,0,114,297,43,0,114,746,103,0,114,0,114,444,44,4,5,563,92,0,114,0,114,328,64,150,33,0,114,0,114,164,40,173,46,260,57,299,66,0,114,0,114,14,8,545,83]
[null,"Multi-Family",0,301.61564946136332,0,301.61564946136332,0,301.61564946136332,348,278.46723326093502,0,301.61564946136332,17,197.90401713962251,0,301.61564946136332,0,301.61564946136332,59,231.57936004747918,2,279.25794527640568,0,301.61564946136332,0,301.61564946136332,0,301.61564946136332,0,301.61564946136332,0,301.61564946136332,2,279.25794527640568,3,279.27047821064082,0,301.61564946136332,28,280.27129713903992,0,301.61564946136332,0,301.61564946136332,4,279.28659115682586,0,301.61564946136332,53,231.29634670698974,0,301.61564946136332,0,301.61564946136332,6,254.99215674212414,0,301.61564946136332,34,229.48202543990237,0,301.61564946136332,0,301.61564946136332,0,301.61564946136332,0,301.61564946136332,0,301.61564946136332,0,301.61564946136332,5,279.30628349537716,0,301.61564946136332,9,279.42082957431791,10,279.64441707282481,0,301.61564946136332,0,301.61564946136332,8,279.42082957431791,22,280.54411417814492]
[null,"Mobile Home & Other",0,161.22034611053283,0,161.22034611053283,0,161.22034611053283,33,116.49892703368559,0,161.22034611053283,18,115.57248807566617,0,161.22034611053283,7,114.35471131527551,188,131.7269904006009,65,117.881296226331,0,161.22034611053283,0,161.22034611053283,100,116.29703349613007,0,161.22034611053283,0,161.22034611053283,4,114.10959644131601,12,114.52947218947619,0,161.22034611053283,143,132.74034804836094,0,161.22034611053283,0,161.22034611053283,54,117.15374513859982,0,161.22034611053283,98,126.14277624977183,0,161.22034611053283,0,161.22034611053283,49,115.26057435220423,0,161.22034611053283,40,118.40608092492548,0,161.22034611053283,0,161.22034611053283,30,20.396078054371138,4,114.15778554264269,0,161.22034611053283,0,161.22034611053283,4,114.15778554264269,26,115.57248807566617,61,117.38824472663352,51,116.92732785794773,0,161.22034611053283,0,161.22034611053283,0,161.22034611053283,102,127.90621564255585]
[null,"Renter-occupied housing units:",0,114,0,114,0,114,1524,246,0,114,39,29,0,114,22,21,440,101,18,19,0,114,0,114,78,38,0,114,8,8,11,11,7,6,0,114,443,121,0,114,0,114,40,21,0,114,351,77,0,114,0,114,68,25,0,114,381,86,0,114,0,114,40,17,16,13,0,114,0,114,21,11,51,32,68,30,143,41,0,114,0,114,4,6,253,58]
[null,"Single Family",0,114,0,114,0,114,117,81,0,114,4,5,0,114,22,21,6,10,18,19,0,114,0,114,30,19,0,114,8,8,0,114,5,5,0,114,23,23,0,114,0,114,23,18,0,114,47,53,0,114,0,114,25,13,0,114,100,57,0,114,0,114,19,11,12,13,0,114,0,114,21,11,20,17,25,17,17,15,0,114,0,114,0,114,35,25]
[null,"Multi-Family",0,301.61564946136332,0,301.61564946136332,0,301.61564946136332,1396,231.79516819813134,0,301.61564946136332,35,229.84777571253545,0,301.61564946136332,0,301.61564946136332,410,110.01818031580054,0,301.61564946136332,0,301.61564946136332,0,301.61564946136332,22,256.01757752154441,0,301.61564946136332,0,301.61564946136332,6,279.3564031841762,0,301.61564946136332,0,301.61564946136332,369,136.87220316777254,0,301.61564946136332,0,301.61564946136332,17,255.23322667709235,0,301.61564946136332,304,158.54021571828392,0,301.61564946136332,0,301.61564946136332,17,228.53227343200348,0,301.61564946136332,229,182.1318203939114,0,301.61564946136332,0,301.61564946136332,21,255.16269319788896,2,279.25794527640568,0,301.61564946136332,0,301.61564946136332,0,301.61564946136332,18,255.87106127891838,43,199.33639908456257,104,200.81334617001929,0,301.61564946136332,0,301.61564946136332,0,301.61564946136332,207,173.14733610425543]
[null,"Mobile Home & Other",0,161.22034611053283,0,161.22034611053283,0,161.22034611053283,11,115.26057435220423,0,161.22034611053283,0,161.22034611053283,0,161.22034611053283,0,161.22034611053283,24,117.63077828527702,0,161.22034611053283,0,161.22034611053283,0,161.22034611053283,26,115.41230437002807,0,161.22034611053283,0,161.22034611053283,5,114.10959644131601,2,114.0701538527936,0,161.22034611053283,51,123.30855606972291,0,161.22034611053283,0,161.22034611053283,0,161.22034611053283,0,161.22034611053283,0,161.22034611053283,0,161.22034611053283,0,161.22034611053283,26,114.73883387938018,0,161.22034611053283,52,119.85407794480753,0,161.22034611053283,0,161.22034611053283,0,161.22034611053283,2,114.03946685248927,0,161.22034611053283,0,161.22034611053283,0,161.22034611053283,13,114.9826073804208,0,161.22034611053283,22,115.57248807566617,0,161.22034611053283,0,161.22034611053283,4,114.15778554264269,11,115.41230437002807]

{"sheet":"ACS_Table_B25034","index":47,"n_rows":58,"n_cols":88,"rows_kept":58,"cut":false,"hidden":true,"merged":[]}
[null,"B25034. YEAR STRUCTURE BUILT"]
[null,"Universe:  HOUSING UNITS"]
[null,"Data Set: 2015-2019 American Community Survey 5-Year Estimates"]
[]
[null,null,"Atkinson and Gilmanton Grant",null,"Bean's Grant",null,"Bean's Purchase",null,"Berlin",null,"Cambridge",null,"Carroll",null,"Chandler's Purchase",null,"Clarksville",null,"Colebrook",null,"Columbia",null,"Crawford's Purchase",null,"Cutt's Grant",null,"Dalton",null,"Dix's Grant",null,"Dixville",null,"Dummer",null,"Errol",null,"Erving's Location",null,"Gorham",null,"Greens Grant",null,"Hadley's Purchase",null,"Jefferson",null,"Kilkenny",null,"Lancaster",null,"Low and Burbank's Grant",null,"Martin's Location",null,"Milan",null,"Millsfield",null,"Northumberland",null,"Odell",null,"Pinkham's Grant",null,"Pittsburg",null,"Randolph",null,"Sargent's Purchase",null,"Second College Grant",null,"Shelburne",null,"Stark",null,"Stewartstown",null,"Stratford",null,"Success",null,"Thompson and Meserves Purchase",null,"Wentworth's Location",null,"Whitefield"]
[null,null,"Estimate","Margin Of Error","Estimate","Margin Of Error","Estimate","Margin Of Error","Estimate","Margin Of Error","Estimate","Margin Of Error","Estimate","Margin Of Error","Estimate","Margin Of Error","Estimate","Margin Of Error","Estimate","Margin Of Error","Estimate","Margin Of Error","Estimate","Margin Of Error","Estimate","Margin Of Error","Estimate","Margin Of Error","Estimate","Margin Of Error","Estimate","Margin Of Error","Estimate","Margin Of Error","Estimate","Margin Of Error","Estimate","Margin Of Error","Estimate","Margin Of Error","Estimate","Margin Of Error","Estimate","Margin Of Error","Estimate","Margin Of Error","Estimate","Margin Of Error","Estimate","Margin Of Error","Estimate","Margin Of Error","Estimate","Margin Of Error","Estimate","Margin Of Error","Estimate","Margin Of Error","Estimate","Margin Of Error","Estimate","Margin Of Error","Estimate","Margin Of Error","Estimate","Margin Of Error","Estimate","Margin Of Error","Estimate","Margin Of Error","Estimate","Margin Of Error","Estimate","Margin Of Error","Estimate","Margin Of Error","Estimate","Margin Of Error","Estimate","Margin Of Error","Estimate","Margin Of Error","Estimate","Margin Of Error","Estimate","Margin Of Error","Estimate","Margin Of Error"]
[null,"Total:",0,11,0,11,0,11,4784,216,29,13,924,76,0,11,461,55,1478,78,518,58,0,11,0,11,597,66,13,7,29,11,267,34,473,45,0,11,1515,103,0,11,0,11,644,72,0,11,1610,154,0,11,0,11,886,64,69,24,1170,86,0,11,0,11,1816,100,354,46,0,11,28,20,244,32,492,47,943,78,557,68,59,22,0,11,112,22,1447,92]
[null,"Built 2014 or later",0,11,0,11,0,11,0,18,0,11,2,3,0,11,8,6,9,14,0,11,0,11,0,11,4,6,0,11,0,11,6,7,10,10,0,11,0,11,0,11,0,11,21,19,0,11,13,21,0,11,0,11,8,6,0,11,0,11,0,11,0,11,29,23,4,5,0,11,0,11,0,11,15,14,0,11,0,11,0,11,0,11,0,11,39,32]
[null,"Built 2010 or 2013",0,11,0,11,0,11,19,15,0,11,0,11,0,11,9,9,0,11,3,5,0,11,0,11,11,10,0,11,0,11,0,11,0,11,0,11,5,9,0,11,0,11,3,4,0,11,0,11,0,11,0,11,3,4,0,11,28,18,0,11,0,11,36,20,6,8,0,11,0,11,0,11,12,9,4,7,7,7,0,11,0,11,0,11,23,18]
[null,"Built 2000 to 2009",0,11,0,11,0,11,74,48,0,11,191,50,0,11,102,30,169,62,78,27,0,11,0,11,107,41,0,11,1,3,41,17,76,25,0,11,52,32,0,11,0,11,160,42,0,11,145,69,0,11,0,11,80,32,4,6,57,29,0,11,0,11,515,84,27,14,0,11,0,11,19,12,67,27,224,51,90,29,0,11,0,11,18,13,162,58]
[null,"Built 1990 to 1999",0,11,0,11,0,11,104,61,5,7,169,41,0,11,49,19,240,73,96,38,0,11,0,11,114,39,1,3,2,3,24,11,54,19,0,11,21,22,0,11,0,11,63,23,0,11,154,75,0,11,0,11,96,41,10,10,51,35,0,11,0,11,230,58,20,11,0,11,0,11,17,11,37,18,147,50,76,31,7,8,0,11,16,12,141,69]
[null,"Built 1980 to 1989",0,11,0,11,0,11,299,107,3,4,246,46,0,11,84,24,191,53,116,42,0,11,0,11,123,43,0,11,1,4,39,19,61,20,0,11,160,63,0,11,0,11,98,37,0,11,93,58,0,11,0,11,120,39,10,10,85,38,0,11,0,11,311,64,55,23,0,11,0,11,58,25,99,35,140,41,116,31,4,6,0,11,0,11,182,51]
[null,"Built 1970 to 1979",0,11,0,11,0,11,465,131,0,11,97,30,0,11,84,23,203,60,80,21,0,11,0,11,67,33,1,3,6,7,67,21,73,23,0,11,293,87,0,11,0,11,67,22,0,11,147,71,0,11,0,11,174,46,15,15,195,52,0,11,0,11,192,50,53,20,0,11,0,11,33,13,45,18,115,38,80,33,39,18,0,11,5,6,99,54]
[null,"Built 1960 to 1969",0,11,0,11,0,11,429,139,0,11,32,18,0,11,45,18,69,40,36,18,0,11,0,11,37,24,2,4,4,4,13,9,58,25,0,11,189,77,0,11,0,11,32,23,0,11,77,50,0,11,0,11,52,25,5,7,78,35,0,11,0,11,108,37,26,15,0,11,6,9,21,16,37,19,89,33,41,19,0,11,0,11,19,12,126,64]
[null,"Built 1950 to 1959",0,11,0,11,0,11,623,127,15,9,50,25,0,11,25,14,91,43,33,17,0,11,0,11,18,17,6,6,3,5,23,14,60,23,0,11,155,58,0,11,0,11,55,36,0,11,130,71,0,11,0,11,95,37,15,10,180,60,0,11,0,11,102,40,24,10,0,11,7,10,22,13,52,25,66,35,17,11,0,11,0,11,22,14,54,36]
[null,"Built 1940 to 1949",0,11,0,11,0,11,336,96,2,4,44,22,0,11,12,10,89,42,3,4,0,11,0,11,27,21,3,4,2,3,9,9,30,17,0,11,100,58,0,11,0,11,2,4,0,11,89,53,0,11,0,11,43,24,0,11,83,42,0,11,0,11,92,40,43,21,0,11,15,21,11,7,13,12,31,19,9,8,5,5,0,11,24,15,118,54]
[null,"Built 1939 or earlier",0,11,0,11,0,11,2435,240,4,6,93,33,0,11,43,19,417,88,73,28,0,11,0,11,89,37,0,11,10,8,45,19,51,20,0,11,540,117,0,11,0,11,143,44,0,11,762,135,0,11,0,11,215,53,10,14,413,80,0,11,0,11,201,58,96,28,0,11,0,11,63,23,115,32,127,42,121,37,4,6,0,11,8,7,503,93]
[]
[]
[]
[]
[null,"B25034. YEAR STRUCTURE BUILT"]
[null,"Universe:  HOUSING UNITS"]
[null,"Data Set: 2010-2014 American Community Survey 5-Year Estimates"]
[]
[null,null,"Atkinson and Gilmanton Grant",null,"Bean's Grant",null,"Bean's Purchase",null,"Berlin",null,"Cambridge",null,"Carroll",null,"Chandler's Purchase",null,"Clarksville",null,"Colebrook",null,"Columbia",null,"Crawford's Purchase",null,"Cutt's Grant",null,"Dalton",null,"Dix's Grant",null,"Dixville",null,"Dummer",null,"Errol",null,"Erving's Location",null,"Gorham",null,"Greens Grant",null,"Hadley's Purchase",null,"Jefferson",null,"Kilkenny",null,"Lancaster",null,"Low and Burbank's Grant",null,"Martin's Location",null,"Milan",null,"Millsfield",null,"Northumberland",null,"Odell",null,"Pinkham's Grant",null,"Pittsburg",null,"Randolph",null,"Sargent's Purchase",null,"Second College Grant",null,"Shelburne",null,"Stark",null,"Stewartstown",null,"Stratford",null,"Success",null,"Thompson and Meserves Purchase",null,"Wentworth's Location",null,"Whitefield"]
[null,null,"Estimate","Margin Of Error","Estimate","Margin Of Error","Estimate","Margin Of Error","Estimate","Margin Of Error","Estimate","Margin Of Error","Estimate","Margin Of Error","Estimate","Margin Of Error","Estimate","Margin Of Error","Estimate","Margin Of Error","Estimate","Margin Of Error","Estimate","Margin Of Error","Estimate","Margin Of Error","Estimate","Margin Of Error","Estimate","Margin Of Error","Estimate","Margin Of Error","Estimate","Margin Of Error","Estimate","Margin Of Error","Estimate","Margin Of Error","Estimate","Margin Of Error","Estimate","Margin Of Error","Estimate","Margin Of Error","Estimate","Margin Of Error","Estimate","Margin Of Error","Estimate","Margin Of Error","Estimate","Margin Of Error","Estimate","Margin Of Error","Estimate","Margin Of Error","Estimate","Margin Of Error","Estimate","Margin Of Error","Estimate","Margin Of Error","Estimate","Margin Of Error","Estimate","Margin Of Error","Estimate","Margin Of Error","Estimate","Margin Of Error","Estimate","Margin Of Error","Estimate","Margin Of Error","Estimate","Margin Of Error","Estimate","Margin Of Error","Estimate","Margin Of Error","Estimate","Margin Of Error","Estimate","Margin Of Error","Estimate","Margin Of Error","Estimate","Margin Of Error"]
[null,"Total:",0,11,0,11,0,11,4854,326,44,13,945,68,0,11,445,53,1416,77,510,59,0,11,0,11,527,71,33,11,32,11,287,40,464,43,0,11,1452,97,0,11,0,11,0,11,0,11,1746,96,0,11,0,11,72,19,58,17,83,21,82,19,0,11,1758,104,344,40,5,6,6,9,204,31,437,47,945,84,46,16,47,18,0,11,114,26,1429,89]
[null,"Built 2010 or later",0,11,0,11,0,11,13,20,0,11,7,10,0,11,0,11,14,16,2,4,0,11,0,11,2,4,0,11,0,11,4,7,0,11,0,11,0,11,0,11,0,11,0,11,0,11,10,16,0,11,0,11,0,11,0,11,0,11,0,11,0,11,6,6,5,6,0,11,0,11,3,5,4,5,0,11,0,11,0,11,0,11,0,11,11,12]
[null,"Built 2000 to 2009",0,11,0,11,0,11,82,52,4,7,150,42,0,11,129,29,128,53,75,31,0,11,0,11,83,32,4,7,5,7,50,16,67,21,0,11,102,55,0,11,0,11,0,11,0,11,210,98,0,11,0,11,4,5,4,6,0,11,0,11,0,11,416,94,27,14,0,11,0,11,17,14,91,28,204,55,2,3,2,3,0,11,6,6,149,61]
[null,"Built 1990 to 1999",0,11,0,11,0,11,117,64,0,11,86,32,0,11,57,19,250,80,106,30,0,11,0,11,106,46,6,7,3,6,19,19,58,21,0,11,78,46,0,11,0,11,0,11,0,11,165,73,0,11,0,11,7,6,5,7,0,11,0,11,0,11,275,64,3,3,0,11,6,9,11,10,47,22,124,34,4,6,4,6,0,11,10,9,168,81]
[null,"Built 1980 to 1989",0,11,0,11,0,11,173,80,2,4,301,55,0,11,106,29,121,45,107,32,0,11,0,11,123,37,3,4,3,5,47,16,83,30,0,11,123,70,0,11,0,11,0,11,0,11,308,101,0,11,0,11,15,13,19,15,10,8,11,6,0,11,312,76,56,16,0,11,0,11,42,16,47,17,203,57,2,3,2,4,0,11,0,11,222,70]
[null,"Built 1970 to 1979",0,11,0,11,0,11,460,139,8,7,164,41,0,11,74,23,256,74,89,32,0,11,0,11,76,39,8,7,8,7,65,23,100,29,0,11,236,80,0,11,0,11,0,11,0,11,202,82,0,11,0,11,5,6,6,6,9,6,13,9,0,11,170,53,36,14,0,11,0,11,31,15,58,23,164,46,16,12,16,12,0,11,12,13,150,48]
[null,"Built 1960 to 1969",0,11,0,11,0,11,193,66,12,12,7,6,0,11,39,15,45,27,46,24,0,11,0,11,32,17,2,3,0,11,28,14,43,21,0,11,59,30,0,11,0,11,0,11,0,11,112,68,0,11,0,11,29,14,17,8,27,15,26,15,0,11,129,46,46,19,5,6,0,11,6,8,33,19,61,29,4,5,7,8,0,11,20,10,80,39]
[null,"Built 1950 to 1959",0,11,0,11,0,11,960,162,16,11,27,19,0,11,0,11,121,53,26,14,0,11,0,11,13,10,2,3,2,3,37,16,39,17,0,11,139,56,0,11,0,11,0,11,0,11,84,48,0,11,0,11,2,3,2,3,16,12,11,11,0,11,162,46,16,9,0,11,0,11,25,13,65,27,43,26,4,5,2,4,0,11,21,17,51,41]
[null,"Built 1940 to 1949",0,11,0,11,0,11,309,99,2,4,85,36,0,11,12,12,57,34,2,4,0,11,0,11,29,16,4,5,2,3,13,8,15,11,0,11,95,59,0,11,0,11,0,11,0,11,82,45,0,11,0,11,0,11,0,11,8,9,6,7,0,11,91,39,21,13,0,11,0,11,11,7,6,6,45,26,5,7,8,9,0,11,24,12,73,42]
[null,"Built 1939 or earlier",0,11,0,11,0,11,2547,250,0,11,118,45,0,11,28,15,424,85,57,24,0,11,0,11,63,28,4,5,9,8,24,10,59,19,0,11,620,99,0,11,0,11,0,11,0,11,573,122,0,11,0,11,10,8,5,5,13,11,15,12,0,11,197,47,134,26,0,11,0,11,58,20,86,26,101,35,9,8,6,6,0,11,21,11,525,100]
[]
[]
[]
[]
[]
[null,"B25034. YEAR STRUCTURE BUILT"]
[null,"Universe:  HOUSING UNITS"]
[null,"Data Set: 2005-2009 American Community Survey 5-Year Estimates"]
[]
[null,null,"Atkinson and Gilmanton Grant",null,"Bean's Grant",null,"Bean's Purchase",null,"Berlin",null,"Cambridge",null,"Carroll",null,"Chandler's Purchase",null,"Clarksville",null,"Colebrook",null,"Columbia",null,"Crawford's Purchase",null,"Cutt's Grant",null,"Dalton",null,"Dix's Grant",null,"Dixville",null,"Dummer",null,"Errol",null,"Erving's Location",null,"Gorham",null,"Greens Grant",null,"Hadley's Purchase",null,"Jefferson",null,"Kilkenny",null,"Lancaster",null,"Low and Burbank's Grant",null,"Martin's Location",null,"Milan",null,"Millsfield",null,"Northumberland",null,"Odell",null,"Pinkham's Grant",null,"Pittsburg",null,"Randolph",null,"Sargent's Purchase",null,"Second College Grant",null,"Shelburne",null,"Stark",null,"Stewartstown",null,"Stratford",null,"Success",null,"Thompson and Meserves Purchase",null,"Wentworth's Location",null,"Whitefield"]
[null,null,"Estimate","Margin Of Error","Estimate","Margin Of Error","Estimate","Margin Of Error","Estimate","Margin Of Error","Estimate","Margin Of Error","Estimate","Margin Of Error","Estimate","Margin Of Error","Estimate","Margin Of Error","Estimate","Margin Of Error","Estimate","Margin Of Error","Estimate","Margin Of Error","Estimate","Margin Of Error","Estimate","Margin Of Error","Estimate","Margin Of Error","Estimate","Margin Of Error","Estimate","Margin Of Error","Estimate","Margin Of Error","Estimate","Margin Of Error","Estimate","Margin Of Error","Estimate","Margin Of Error","Estimate","Margin Of Error","Estimate","Margin Of Error","Estimate","Margin Of Error","Estimate","Margin Of Error","Estimate","Margin Of Error","Estimate","Margin Of Error","Estimate","Margin Of Error","Estimate","Margin Of Error","Estimate","Margin Of Error","Estimate","Margin Of Error","Estimate","Margin Of Error","Estimate","Margin Of Error","Estimate","Margin Of Error","Estimate","Margin Of Error","Estimate","Margin Of Error","Estimate","Margin Of Error","Estimate","Margin Of Error","Estimate","Margin Of Error","Estimate","Margin Of Error","Estimate","Margin Of Error","Estimate","Margin Of Error","Estimate","Margin Of Error","Estimate","Margin Of Error"]
[null,"Total:",14,20,0,114,0,114,4839,334,27,9,778,63,0,114,347,46,1433,108,571,73,0,114,0,114,603,75,15,8,26,8,253,53,478,57,0,114,1474,104,0,114,0,114,591,60,0,114,1464,152,0,114,0,114,750,61,40,11,1128,104,74,16,0,114,1338,83,372,59,0,114,13,19,226,48,389,63,752,71,684,93,90,39,0,114,99,19,1248,88]
[null,"Built 2005 or later",0,114,0,114,0,114,28,26,0,114,7,9,0,114,0,114,0,114,20,16,0,114,0,114,51,45,0,114,0,114,0,114,0,114,0,114,37,41,0,114,0,114,11,9,0,114,10,17,0,114,0,114,10,9,3,4,0,114,0,114,0,114,22,16,10,10,0,114,0,114,1,4,5,9,26,18,2,5,0,114,0,114,0,114,27,22]
[null,"Built 2000 to 2004",0,114,0,114,0,114,19,21,0,114,32,23,0,114,36,23,38,28,46,32,0,114,0,114,35,22,0,114,0,114,36,47,34,18,0,114,0,114,0,114,0,114,66,30,0,114,91,68,0,114,0,114,32,12,0,114,27,23,0,114,0,114,80,32,22,25,0,114,0,114,21,23,39,23,50,23,32,21,0,114,0,114,3,5,74,38]
[null,"Built 1990 to 1999",0,114,0,114,0,114,49,36,9,8,179,45,0,114,56,20,127,66,98,41,0,114,0,114,143,75,0,114,3,4,44,17,80,24,0,114,46,37,0,114,0,114,54,21,0,114,88,55,0,114,0,114,72,22,3,4,71,42,3,6,0,114,237,53,14,10,0,114,13,19,15,11,63,27,176,47,91,34,3,4,0,114,7,7,82,48]
[null,"Built 1980 to 1989",0,114,0,114,0,114,126,60,0,114,259,47,0,114,74,25,217,83,107,35,0,114,0,114,102,32,0,114,0,114,31,15,48,18,0,114,158,65,0,114,0,114,117,40,0,114,249,92,0,114,0,114,162,41,10,9,183,65,4,6,0,114,259,56,54,22,0,114,0,114,29,14,69,34,117,34,53,28,30,40,0,114,2,5,198,72]
[null,"Built 1970 to 1979",14,20,0,114,0,114,342,104,3,4,125,42,0,114,70,22,294,80,142,45,0,114,0,114,75,28,0,114,3,4,34,14,81,27,0,114,269,82,0,114,0,114,62,24,0,114,195,73,0,114,0,114,165,35,3,4,160,72,15,10,0,114,236,66,62,46,0,114,0,114,34,15,55,30,120,38,132,39,29,13,0,114,11,10,178,79]
[null,"Built 1960 to 1969",0,114,0,114,0,114,158,83,6,6,28,23,0,114,33,16,65,49,19,16,0,114,0,114,55,23,3,5,0,114,20,15,40,19,0,114,184,84,0,114,0,114,41,28,0,114,69,46,0,114,0,114,51,25,6,7,70,33,22,16,0,114,126,43,46,21,0,114,0,114,35,20,23,14,43,23,149,62,10,8,0,114,17,11,66,43]
[null,"Built 1950 to 1959",0,114,0,114,0,114,597,112,3,4,23,18,0,114,24,14,53,31,56,34,0,114,0,114,25,19,3,5,0,114,31,14,50,25,0,114,186,73,0,114,0,114,19,18,0,114,65,55,0,114,0,114,62,26,6,6,76,51,8,8,0,114,148,60,21,11,0,114,0,114,15,12,45,28,24,17,51,29,9,8,0,114,17,11,63,33]
[null,"Built 1940 to 1949",0,114,0,114,0,114,582,136,3,5,26,18,0,114,7,7,92,72,24,21,0,114,0,114,25,13,6,6,8,8,6,6,35,15,0,114,79,46,0,114,0,114,18,17,0,114,62,54,0,114,0,114,44,25,0,114,60,37,14,11,0,114,41,25,23,15,0,114,0,114,18,15,17,17,0,114,43,29,3,4,0,114,23,14,43,22]
[null,"Built 1939 or earlier",0,114,0,114,0,114,2938,290,3,4,99,42,0,114,47,26,547,111,59,28,0,114,0,114,92,31,3,5,12,8,51,17,110,49,0,114,515,118,0,114,0,114,203,38,0,114,635,106,0,114,0,114,152,38,9,8,481,85,8,9,0,114,189,42,120,28,0,114,0,114,58,25,73,28,196,46,131,44,6,9,0,114,19,11,517,88]

{"sheet":"ACS_Table_B25041","index":48,"n_rows":73,"n_cols":88,"rows_kept":73,"cut":false,"hidden":true,"merged":[]}
[null,"B25041. BEDROOMS "]
[null,"Universe:  HOUSING UNITS"]
[null,"Data Set: 2015-2019 American Community Survey 5-Year Estimates"]
[]
[null,null,"Atkinson and Gilmanton Grant",null,"Bean's Grant",null,"Bean's Purchase",null,"Berlin",null,"Cambridge",null,"Carroll",null,"Chandler's Purchase",null,"Clarksville",null,"Colebrook",null,"Columbia",null,"Crawford's Purchase",null,"Cutt's Grant",null,"Dalton",null,"Dix's Grant",null,"Dixville",null,"Dummer",null,"Errol",null,"Erving's Location",null,"Gorham",null,"Greens Grant",null,"Hadley's Purchase",null,"Jefferson",null,"Kilkenny",null,"Lancaster",null,"Low and Burbank's Grant",null,"Martin's Location",null,"Milan",null,"Millsfield",null,"Northumberland",null,"Odell",null,"Pinkham's Grant",null,"Pittsburg",null,"Randolph",null,"Sargent's Purchase",null,"Second College Grant",null,"Shelburne",null,"Stark",null,"Stewartstown",null,"Stratford",null,"Success",null,"Thompson and Meserves Purchase",null,"Wentworth's Location",null,"Whitefield"]
[null,null,"Estimate","Margin Of Error","Estimate","Margin Of Error","Estimate","Margin Of Error","Estimate","Margin Of Error","Estimate","Margin Of Error","Estimate","Margin Of Error","Estimate","Margin Of Error","Estimate","Margin Of Error","Estimate","Margin Of Error","Estimate","Margin Of Error","Estimate","Margin Of Error","Estimate","Margin Of Error","Estimate","Margin Of Error","Estimate","Margin Of Error","Estimate","Margin Of Error","Estimate","Margin Of Error","Estimate","Margin Of Error","Estimate","Margin Of Error","Estimate","Margin Of Error","Estimate","Margin Of Error","Estimate","Margin Of Error","Estimate","Margin Of Error","Estimate","Margin Of Error","Estimate","Margin Of Error","Estimate","Margin Of Error","Estimate","Margin Of Error","Estimate","Margin Of Error","Estimate","Margin Of Error","Estimate","Margin Of Error","Estimate","Margin Of Error","Estimate","Margin Of Error","Estimate","Margin Of Error","Estimate","Margin Of Error","Estimate","Margin Of Error","Estimate","Margin Of Error","Estimate","Margin Of Error","Estimate","Margin Of Error","Estimate","Margin Of Error","Estimate","Margin Of Error","Estimate","Margin Of Error","Estimate","Margin Of Error","Estimate","Margin Of Error","Estimate","Margin Of Error"]
[null,"Total:",0,11,0,11,0,11,4784,216,29,13,924,76,0,11,461,55,1478,78,518,58,0,11,0,11,597,66,13,7,29,11,267,34,473,45,0,11,1515,103,0,11,0,11,644,72,0,11,1610,154,0,11,0,11,886,64,69,24,1170,86,0,11,0,11,1816,100,354,46,0,11,28,20,244,32,492,47,943,78,557,68,59,22,0,11,112,22,1447,92]
[null,"No bedroom",0,11,0,11,0,11,59,62,0,11,5,7,0,11,41,16,38,35,27,20,0,11,0,11,36,24,3,4,0,11,40,15,19,12,0,11,69,56,0,11,0,11,45,27,0,11,28,33,0,11,0,11,15,17,10,14,12,13,0,11,0,11,219,60,2,3,0,11,15,21,5,7,29,18,86,43,32,19,3,4,0,11,4,5,6,8]
[null,"1 bedroom",0,11,0,11,0,11,813,196,5,6,45,24,0,11,68,26,168,59,35,16,0,11,0,11,48,23,8,6,8,7,24,13,63,22,0,11,205,75,0,11,0,11,84,39,0,11,276,104,0,11,0,11,59,21,30,18,157,46,0,11,0,11,300,68,24,18,0,11,0,11,24,13,73,27,104,38,78,26,10,9,0,11,12,9,199,79]
[null,"2 bedrooms",0,11,0,11,0,11,1599,215,19,11,244,51,0,11,132,35,457,93,142,35,0,11,0,11,302,61,2,4,9,9,89,24,242,45,0,11,502,103,0,11,0,11,181,45,0,11,439,102,0,11,0,11,284,48,18,13,290,68,0,11,0,11,481,93,145,36,0,11,6,9,52,20,127,43,320,64,164,48,39,18,0,11,72,21,468,126]
[null,"3 bedrooms",0,11,0,11,0,11,1754,234,5,7,375,52,0,11,157,40,559,106,258,47,0,11,0,11,163,46,0,11,9,7,88,22,113,29,0,11,469,94,0,11,0,11,197,48,0,11,526,123,0,11,0,11,446,64,7,9,480,77,0,11,0,11,574,85,117,28,0,11,7,10,118,30,183,38,322,62,219,50,7,9,0,11,20,12,583,118]
[null,"4 bedrooms",0,11,0,11,0,11,452,132,0,11,143,38,0,11,54,21,166,61,41,26,0,11,0,11,30,17,0,11,3,5,19,10,22,14,0,11,189,54,0,11,0,11,106,35,0,11,261,77,0,11,0,11,58,26,4,6,191,60,0,11,0,11,209,53,51,20,0,11,0,11,28,15,74,24,83,37,48,18,0,11,0,11,4,7,115,58]
[null,"5 or more bedrooms",0,11,0,11,0,11,107,63,0,11,112,37,0,11,9,8,90,42,15,11,0,11,0,11,18,21,0,11,0,11,7,7,14,12,0,11,81,42,0,11,0,11,31,20,0,11,80,49,0,11,0,11,24,15,0,11,40,24,0,11,0,11,33,28,15,10,0,11,0,11,17,11,6,5,28,17,16,15,0,11,0,11,0,11,76,35]
[]
[]
[null,"Calculated B25041. BEDROOMS "]
[null,"Universe:  HOUSING UNITS"]
[null,"Data Set: 2015-2019 American Community Survey 5-Year Estimates"]
[]
[null,null,"Atkinson and Gilmanton Grant",null,"Bean's Grant",null,"Bean's Purchase",null,"Berlin",null,"Cambridge",null,"Carroll",null,"Chandler's Purchase",null,"Clarksville",null,"Colebrook",null,"Columbia",null,"Crawford's Purchase",null,"Cutt's Grant",null,"Dalton",null,"Dix's Grant",null,"Dixville",null,"Dummer",null,"Errol",null,"Erving's Location",null,"Gorham",null,"Greens Grant",null,"Hadley's Purchase",null,"Jefferson",null,"Kilkenny",null,"Lancaster",null,"Low and Burbank's Grant",null,"Martin's Location",null,"Milan",null,"Millsfield",null,"Northumberland",null,"Odell",null,"Pinkham's Grant",null,"Pittsburg",null,"Randolph",null,"Sargent's Purchase",null,"Second College Grant",null,"Shelburne",null,"Stark",null,"Stewartstown",null,"Stratford",null,"Success",null,"Thompson and Meserves Purchase",null,"Wentworth's Location",null,"Whitefield"]
[null,null,"Estimate","Margin Of Error","Estimate","Margin Of Error","Estimate","Margin Of Error","Estimate","Margin Of Error","Estimate","Margin Of Error","Estimate","Margin Of Error","Estimate","Margin Of Error","Estimate","Margin Of Error","Estimate","Margin Of Error","Estimate","Margin Of Error","Estimate","Margin Of Error","Estimate","Margin Of Error","Estimate","Margin Of Error","Estimate","Margin Of Error","Estimate","Margin Of Error","Estimate","Margin Of Error","Estimate","Margin Of Error","Estimate","Margin Of Error","Estimate","Margin Of Error","Estimate","Margin Of Error","Estimate","Margin Of Error","Estimate","Margin Of Error","Estimate","Margin Of Error","Estimate","Margin Of Error","Estimate","Margin Of Error","Estimate","Margin Of Error","Estimate","Margin Of Error","Estimate","Margin Of Error","Estimate","Margin Of Error","Estimate","Margin Of Error","Estimate","Margin Of Error","Estimate","Margin Of Error","Estimate","Margin Of Error","Estimate","Margin Of Error","Estimate","Margin Of Error","Estimate","Margin Of Error","Estimate","Margin Of Error","Estimate","Margin Of Error","Estimate","Margin Of Error","Estimate","Margin Of Error","Estimate","Margin Of Error","Estimate","Margin Of Error","Estimate","Margin Of Error"]
[null,"Total:",0,11,0,11,0,11,5141,194,47,14,945,67,0,11,397,42,1405,83,529,66,0,11,0,11,510,66,26,10,28,14,321,54,462,58,0,11,1426,93,0,11,0,11,519,58,0,11,1776,162,0,11,0,11,812,52,65,19,1068,75,92,19,0,11,1603,86,377,43,0,11,7,10,229,33,427,55,936,72,567,70,43,17,0,11,112,22,1370,84]
[null,"No bedroom",0,11,0,11,0,11,90,72,4,6,10,14,0,11,39,18,6,9,5,8,0,11,0,11,5,7,0,11,4,4,10,10,13,10,0,11,0,11,0,11,0,11,3,4,0,11,71,65,0,11,0,11,24,19,13,11,4,6,29,15,0,11,125,41,16,14,0,11,0,11,1,3,9,10,31,19,29,18,3,5,0,11,13,10,78,50]
[null,"1 bedroom",0,11,0,11,0,11,703,156,12,9,50,27,0,11,68,27,231,61,49,25,0,11,0,11,50,26,10,7,4,4,37,19,67,28,0,11,243,98,0,11,0,11,30,16,0,11,279,96,0,11,0,11,75,29,17,12,131,60,19,14,0,11,149,36,10,8,0,11,7,10,13,7,56,26,78,34,68,28,0,11,0,11,28,15,268,66]
[null,"2 bedrooms",0,11,0,11,0,11,1652,224,10,9,271,60,0,11,168,37,501,94,186,49,0,11,0,11,154,43,7,8,14,12,81,23,193,39,0,11,450,125,0,11,0,11,163,38,0,11,433,119,0,11,0,11,258,51,20,11,281,64,24,12,0,11,639,98,77,24,0,11,0,11,83,26,138,39,348,61,158,43,10,8,0,11,30,15,380,110]
[null,"3 bedrooms",0,11,0,11,0,11,1908,209,16,12,357,61,0,11,79,26,340,90,207,44,0,11,0,11,259,55,3,4,2,4,169,56,147,46,0,11,595,88,0,11,0,11,176,35,0,11,782,158,0,11,0,11,363,45,12,11,457,79,13,11,0,11,449,66,127,33,0,11,0,11,83,24,136,35,373,60,192,46,23,15,0,11,29,16,439,94]
[null,"4 + bedrooms",0,15.556349186104045,0,15.556349186104045,0,15.556349186104045,788,155.41557193537591,5,13.038404810405298,257,66.528189513919585,0,15.556349186104045,43,18.110770276274835,327,86.371291526756735,82,34.438350715445125,0,15.556349186104045,0,15.556349186104045,42,16.552945357246848,6,7.810249675906654,4,12.529964086141668,24,14.142135623730951,42,21.213203435596427,0,15.556349186104045,138,54.918120870983927,0,15.556349186104045,0,15.556349186104045,147,42.059481689626182,0,15.556349186104045,211,68.796802251267465,0,15.556349186104045,0,15.556349186104045,92,32.015621187164243,3,12.083045973594572,195,57.428216061444921,7,7.810249675906654,0,15.556349186104045,241,53.851648071345039,147,41.012193308819754,0,15.556349186104045,0,15.556349186104045,49,19.416487838947599,88,31.76476034853718,106,32.695565448543633,120,58.523499553598128,7,13.038404810405298,0,15.556349186104045,12,15.556349186104045,205,54.405882034941776]
[]
[]
[]
[]
[]
[]
[]
[]
[]
[]
[]
[]
[]
[]
[]
[]
[]
[]
[]
[null,"Calculated B25041. BEDROOMS "]
[null,"Universe:  HOUSING UNITS"]
[null,"Data Set: 2010-2014 American Community Survey 5-Year Estimates"]
[]
[null,null,"Atkinson and Gilmanton Grant",null,"Bean's Grant",null,"Bean's Purchase",null,"Berlin",null,"Cambridge",null,"Carroll",null,"Chandler's Purchase",null,"Clarksville",null,"Colebrook",null,"Columbia",null,"Crawford's Purchase",null,"Cutt's Grant",null,"Dalton",null,"Dix's Grant",null,"Dixville",null,"Dummer",null,"Errol",null,"Erving's Location",null,"Gorham",null,"Greens Grant",null,"Hadley's Purchase",null,"Jefferson",null,"Kilkenny",null,"Lancaster",null,"Low and Burbank's Grant",null,"Martin's Location",null,"Milan",null,"Millsfield",null,"Northumberland",null,"Odell",null,"Pinkham's Grant",null,"Pittsburg",null,"Randolph",null,"Sargent's Purchase",null,"Second College Grant",null,"Shelburne",null,"Stark",null,"Stewartstown",null,"Stratford",null,"Success",null,"Thompson and Meserves Purchase",null,"Wentworth's Location",null,"Whitefield"]
[null,null,"Estimate","Margin Of Error","Estimate","Margin Of Error","Estimate","Margin Of Error","Estimate","Margin Of Error","Estimate","Margin Of Error","Estimate","Margin Of Error","Estimate","Margin Of Error","Estimate","Margin Of Error","Estimate","Margin Of Error","Estimate","Margin Of Error","Estimate","Margin Of Error","Estimate","Margin Of Error","Estimate","Margin Of Error","Estimate","Margin Of Error","Estimate","Margin Of Error","Estimate","Margin Of Error","Estimate","Margin Of Error","Estimate","Margin Of Error","Estimate","Margin Of Error","Estimate","Margin Of Error","Estimate","Margin Of Error","Estimate","Margin Of Error","Estimate","Margin Of Error","Estimate","Margin Of Error","Estimate","Margin Of Error","Estimate","Margin Of Error","Estimate","Margin Of Error","Estimate","Margin Of Error","Estimate","Margin Of Error","Estimate","Margin Of Error","Estimate","Margin Of Error","Estimate","Margin Of Error","Estimate","Margin Of Error","Estimate","Margin Of Error","Estimate","Margin Of Error","Estimate","Margin Of Error","Estimate","Margin Of Error","Estimate","Margin Of Error","Estimate","Margin Of Error","Estimate","Margin Of Error","Estimate","Margin Of Error","Estimate","Margin Of Error","Estimate","Margin Of Error"]
[null,"Total:",0,11,0,11,0,11,4854,326,44,13,945,68,0,11,445,53,1416,77,510,59,0,11,0,11,527,71,33,11,32,11,287,40,464,43,0,11,1452,97,0,11,0,11,0,11,0,11,1746,96,0,11,0,11,72,19,58,17,83,21,82,19,0,11,1758,104,344,40,5,6,6,9,204,31,437,47,945,84,46,16,47,18,0,11,114,26,1429,89]
[null,"No bedroom",0,11,0,11,0,11,79,66,0,11,9,13,0,11,32,17,0,11,10,12,0,11,0,11,4,7,4,3,4,4,21,10,13,9,0,11,27,41,0,11,0,11,0,11,0,11,34,38,0,11,0,11,17,12,12,10,29,18,35,19,0,11,110,43,19,15,0,11,0,11,1,3,24,16,70,34,0,11,3,5,0,11,7,7,24,24]
[null,"1 bedroom",0,11,0,11,0,11,568,137,6,7,57,27,0,11,75,22,249,70,57,23,0,11,0,11,59,32,8,6,4,3,37,18,59,24,0,11,207,81,0,11,0,11,0,11,0,11,270,90,0,11,0,11,16,10,10,9,25,17,16,13,0,11,267,63,12,12,0,11,6,9,18,11,49,22,119,46,2,3,0,11,0,11,11,9,304,78]
[null,"2 bedrooms",0,11,0,11,0,11,1507,232,13,10,231,47,0,11,194,42,453,87,175,38,0,11,0,11,160,49,19,12,18,10,84,29,202,42,0,11,460,96,0,11,0,11,0,11,0,11,370,101,0,11,0,11,27,15,23,14,21,9,23,9,0,11,659,96,59,18,0,11,0,11,53,18,165,39,318,72,20,12,21,13,0,11,47,17,467,92]
[null,"3 bedrooms",0,11,0,11,0,11,1997,253,19,11,368,52,0,11,100,24,423,85,155,38,0,11,0,11,258,53,2,4,2,3,117,30,150,44,0,11,616,100,0,11,0,11,0,11,0,11,816,125,0,11,0,11,12,10,13,10,8,11,8,9,0,11,543,84,152,26,0,11,0,11,79,23,132,32,308,65,17,12,16,11,0,11,34,20,457,88]
[null,"4 + bedrooms",0,15.556349186104045,0,15.556349186104045,0,15.556349186104045,703,135.20355024924456,6,13.038404810405298,280,67.178865724273734,0,15.556349186104045,44,22.203603311174518,291,82.800966177937809,113,42.544094772365298,0,15.556349186104045,0,15.556349186104045,46,22.847319317591726,0,15.556349186104045,4,12.529964086141668,28,16.15549442140351,40,21.931712199461309,0,15.556349186104045,142,58.180752831155424,0,15.556349186104045,0,15.556349186104045,0,15.556349186104045,0,15.556349186104045,256,75.179784516850006,0,15.556349186104045,0,15.556349186104045,0,15.556349186104045,0,15.556349186104045,0,15.556349186104045,0,15.556349186104045,0,15.556349186104045,179,51.546095875439491,102,26.832815729997478,5,12.529964086141668,0,15.556349186104045,53,17.691806012954132,67,29.410882339705484,130,42.43819034784589,7,13.038404810405298,7,13.038404810405298,0,15.556349186104045,15,12.206555615733702,177,63.694583757176716]
[]
[]
[]
[null,"Calculated B25041. BEDROOMS "]
[null,"Universe:  HOUSING UNITS"]
[null,"Data Set: 2005-2009 American Community Survey 5-Year Estimates"]
[]
[null,null,"Atkinson and Gilmanton Grant",null,"Bean's Grant",null,"Bean's Purchase",null,"Berlin",null,"Cambridge",null,"Carroll",null,"Chandler's Purchase",null,"Clarksville",null,"Colebrook",null,"Columbia",null,"Crawford's Purchase",null,"Cutt's Grant",null,"Dalton",null,"Dix's Grant",null,"Dixville",null,"Dummer",null,"Errol",null,"Erving's Location",null,"Gorham",null,"Greens Grant",null,"Hadley's Purchase",null,"Jefferson",null,"Kilkenny",null,"Lancaster",null,"Low and Burbank's Grant",null,"Martin's Location",null,"Milan",null,"Millsfield",null,"Northumberland",null,"Odell",null,"Pinkham's Grant",null,"Pittsburg",null,"Randolph",null,"Sargent's Purchase",null,"Second College Grant",null,"Shelburne",null,"Stark",null,"Stewartstown",null,"Stratford",null,"Success",null,"Thompson and Meserves Purchase",null,"Wentworth's Location",null,"Whitefield"]
[null,null,"Estimate","Margin Of Error","Estimate","Margin Of Error","Estimate","Margin Of Error","Estimate","Margin Of Error","Estimate","Margin Of Error","Estimate","Margin Of Error","Estimate","Margin Of Error","Estimate","Margin Of Error","Estimate","Margin Of Error","Estimate","Margin Of Error","Estimate","Margin Of Error","Estimate","Margin Of Error","Estimate","Margin Of Error","Estimate","Margin Of Error","Estimate","Margin Of Error","Estimate","Margin Of Error","Estimate","Margin Of Error","Estimate","Margin Of Error","Estimate","Margin Of Error","Estimate","Margin Of Error","Estimate","Margin Of Error","Estimate","Margin Of Error","Estimate","Margin Of Error","Estimate","Margin Of Error","Estimate","Margin Of Error","Estimate","Margin Of Error","Estimate","Margin Of Error","Estimate","Margin Of Error","Estimate","Margin Of Error","Estimate","Margin Of Error","Estimate","Margin Of Error","Estimate","Margin Of Error","Estimate","Margin Of Error","Estimate","Margin Of Error","Estimate","Margin Of Error","Estimate","Margin Of Error","Estimate","Margin Of Error","Estimate","Margin Of Error","Estimate","Margin Of Error","Estimate","Margin Of Error","Estimate","Margin Of Error","Estimate","Margin Of Error","Estimate","Margin Of Error"]
[null,"Total:",14,20,0,114,0,114,4839,334,27,9,778,63,0,114,347,46,1433,108,571,73,0,114,0,114,603,75,15,8,26,8,253,53,478,57,0,114,1474,104,0,114,0,114,591,60,0,114,1464,152,0,114,0,114,750,61,40,11,1128,104,74,16,0,114,1338,83,372,59,0,114,13,19,226,48,389,63,752,71,684,93,90,39,0,114,99,19,1248,88]
[null,"No bedroom",0,114,0,114,0,114,41,39,3,4,0,114,0,114,32,18,16,22,10,12,0,114,0,114,0,114,0,114,3,4,11,10,9,7,0,114,0,114,0,114,0,114,0,114,0,114,38,37,0,114,0,114,13,14,0,114,0,114,19,14,0,114,94,41,3,6,0,114,0,114,0,114,0,114,40,20,15,14,3,5,0,114,6,6,50,42]
[null,"1 bedroom",14,20,0,114,0,114,614,173,12,8,46,28,0,114,72,28,293,78,15,14,0,114,0,114,34,19,6,7,0,114,25,14,72,26,0,114,203,90,0,114,0,114,49,27,0,114,132,66,0,114,0,114,83,35,6,6,146,40,25,14,0,114,174,55,28,15,0,114,0,114,12,8,98,39,78,31,76,31,7,7,0,114,25,14,135,52]
[null,"2 bedrooms",0,114,0,114,0,114,1512,222,12,7,273,55,0,114,97,29,495,114,200,56,0,114,0,114,256,77,3,5,20,8,83,19,237,49,0,114,431,126,0,114,0,114,139,35,0,114,442,111,0,114,0,114,251,41,22,13,382,98,17,12,0,114,508,74,69,27,0,114,0,114,56,25,97,32,197,45,167,50,12,9,0,114,43,18,348,86]
[null,"3 bedrooms",0,114,0,114,0,114,1800,216,0,114,285,56,0,114,87,25,445,109,258,52,0,114,0,114,273,51,0,114,0,114,119,52,132,32,0,114,651,120,0,114,0,114,230,53,0,114,509,141,0,114,0,114,323,51,0,114,372,81,6,8,0,114,376,68,94,26,0,114,13,19,112,34,138,44,336,58,308,64,50,40,0,114,22,15,491,84]
[null,"4 + bedrooms",0,161.22034611053283,0,161.22034611053283,0,161.22034611053283,872,171.73234989366446,0,161.22034611053283,174,50.931326312987373,0,161.22034611053283,59,27.784887978899608,184,69.404610797842537,88,41.231056256176608,0,161.22034611053283,0,161.22034611053283,40,17.464249196572979,6,7.0710678118654755,3,114.10959644131601,15,9.4339811320566032,28,13.45362404707371,0,161.22034611053283,189,66.610809933523555,0,161.22034611053283,0,161.22034611053283,173,48.301138702933287,0,161.22034611053283,343,91.934759476489631,0,161.22034611053283,0,161.22034611053283,80,31.76476034853718,12,8.9442719099991592,228,71.61005515987263,7,7.810249675906654,0,161.22034611053283,186,50.566787519082126,178,60,0,161.22034611053283,0,161.22034611053283,46,22.203603311174518,56,21.023796041628639,101,35.510561809129406,118,56.920997883030829,18,12.727922061357855,0,161.22034611053283,3,114.10959644131601,224,59.933296255086788]

{"sheet":"PovertyCharacteristics","index":49,"n_rows":82,"n_cols":17,"rows_kept":82,"cut":false,"hidden":true,"merged":[[77,2,78,3],[77,6,78,9],[77,11,78,13],[21,15,21,16],[49,15,49,16],[64,15,64,16],[21,11,21,13],[30,2,31,4],[30,7,31,9],[30,11,31,13],[49,11,49,14],[21,3,21,5],[21,7,21,9],[64,3,64,5],[64,7,64,9],[64,11,64,14]]}
[]
[null,null,{"$f":"CntyDataLink!A86","v":"Berlin"}]
[null,null,"POVERTY CHARACTERISTICS"]
[]
[]
[]
[]
[]
[]
[]
[]
[]
[]
[]
[]
[]
[]
[null,null,null,null,null,null,null,null,null,null,null,null,"2009 Income (2005-2009 ACS)"]
[null,null,null,null,null,null,null,null,null,null,null,null,"2014 Income (2010-2014 ACS)"]
[null,null,null,null,null,null,null,null,null,null,null,null,"2019 Income (2015-2019 ACS)"]
[]
[null,null,null,"2009 Inc below Poverty Level",null,null,null,"2014 Inc below Poverty Level",null,null,null,"2019 Inc below Poverty Level",null,null,null,"Statistically Significant Change"]
[null,null,"Population","Estimate","Margin of Error","% of Population in Poverty",null,"Estimate","Margin of Error","% of Population in Poverty",null,"Estimate","Margin of Error","% of Population in Poverty",null,"2009-2019","2014-2019"]
[null,null," Total Individuals living Poverty",{"$f":"CntyDataLinkPrior10YearEstimate!$D$124","v":336},{"$f":"CntyDataLinkPrior10YearEstimate!$E$124","v":151},{"$f":"D24/CntyDataLinkPrior10YearEstimate!$B$124","v":0.15693601120971509},null,{"$f":"CntyDataLinkPrior5YearEstimates!$D$124","v":350},{"$f":"CntyDataLinkPrior5YearEstimates!$E$124","v":113},{"$f":"H24/CntyDataLinkPrior5YearEstimates!$B$124","v":0.15047291487532244},null,{"$f":"CntyDataLink!$D$124","v":222},{"$f":"CntyDataLink!$E$124","v":125},{"$f":"L24/CntyDataLink!$B$124","v":0.11635220125786164},null,{"$f":"StatisticallySignificantCalcs!$A112","v":"N"},{"$f":"StatisticallySignificantCalcs!$J$112","v":"N"}]
[null,null,"Under 5 yrs.",{"$f":"CntyDataLinkPrior10YearEstimate!$F$124","v":38},{"$f":"CntyDataLinkPrior10YearEstimate!$G$124","v":46.065171225124082},{"$f":"D25/(CntyDataLinkPrior10YearEstimate!$F$124+CntyDataLinkPrior10YearEstimate!$R$124)","v":0.38},null,{"$f":"CntyDataLinkPrior5YearEstimates!$F$124","v":16},{"$f":"CntyDataLinkPrior5YearEstimates!$G$124","v":24.596747752497688},{"$f":"H25/(CntyDataLinkPrior5YearEstimates!$F$124+CntyDataLinkPrior5YearEstimates!$R$124)","v":0.20253164556962025},null,{"$f":"CntyDataLink!$F$124","v":28},{"$f":"CntyDataLink!$G$124","v":24.207436873820409},{"$f":"L25/(CntyDataLink!$F$124+CntyDataLink!$R$124)","v":0.50909090909090904},null,{"$f":"StatisticallySignificantCalcs!$A113","v":"N"},{"$f":"StatisticallySignificantCalcs!$J$113","v":"N"}]
[null,null,"5 to 17 yrs.",{"$f":"CntyDataLinkPrior10YearEstimate!$H$124","v":23},{"$f":"CntyDataLinkPrior10YearEstimate!$I$124","v":323.83020242096012},{"$f":"D26/(CntyDataLinkPrior10YearEstimate!$H$124+CntyDataLinkPrior10YearEstimate!$T$124)","v":7.9861111111111105E-2},null,{"$f":"CntyDataLinkPrior5YearEstimates!$H$124","v":93},{"$f":"CntyDataLinkPrior5YearEstimates!$I$124","v":45.044422518220834},{"$f":"H26/(CntyDataLinkPrior5YearEstimates!$H$124+CntyDataLinkPrior5YearEstimates!$T$124)","v":0.30491803278688523},null,{"$f":"CntyDataLink!$H$124","v":37},{"$f":"CntyDataLink!$I$124","v":44.57577817604534},{"$f":"L26/(CntyDataLink!$H$124+CntyDataLink!$T$124)","v":0.15040650406504066},null,{"$f":"StatisticallySignificantCalcs!$A114","v":"N"},{"$f":"StatisticallySignificantCalcs!$J$114","v":"N"}]
[null,null,"18 to 64 yrs.",{"$f":"CntyDataLinkPrior10YearEstimate!$J$124","v":190},{"$f":"CntyDataLinkPrior10YearEstimate!$K$124","v":213.85976713725282},{"$f":"D27/(CntyDataLinkPrior10YearEstimate!$J$124+CntyDataLinkPrior10YearEstimate!$V$124)","v":0.1391941391941392},null,{"$f":"CntyDataLinkPrior5YearEstimates!$J$124","v":221},{"$f":"CntyDataLinkPrior5YearEstimates!$K$124","v":74.060785845142092},{"$f":"H27/(CntyDataLinkPrior5YearEstimates!$J$124+CntyDataLinkPrior5YearEstimates!$V$124)","v":0.15400696864111499},null,{"$f":"CntyDataLink!$J$124","v":124},{"$f":"CntyDataLink!$K$124","v":52.478567053607705},{"$f":"L27/(CntyDataLink!$J$124+CntyDataLink!$V$124)","v":0.11141060197663971},null,{"$f":"StatisticallySignificantCalcs!$A115","v":"N"},{"$f":"StatisticallySignificantCalcs!$J$115","v":"Y"}]
[null,null,"65 to 74 yrs.",{"$f":"CntyDataLinkPrior10YearEstimate!$L$124","v":41},{"$f":"CntyDataLinkPrior10YearEstimate!$M$124","v":43.56604182158393},{"$f":"D28/(CntyDataLinkPrior10YearEstimate!$L$124+CntyDataLinkPrior10YearEstimate!$X$124)","v":0.26114649681528662},null,{"$f":"CntyDataLinkPrior5YearEstimates!$L$124","v":20},{"$f":"CntyDataLinkPrior5YearEstimates!$M$124","v":26.40075756488817},{"$f":"H28/(CntyDataLinkPrior5YearEstimates!$L$124+CntyDataLinkPrior5YearEstimates!$X$124)","v":5.1546391752577317E-2},null,{"$f":"CntyDataLink!$L$124","v":18},{"$f":"CntyDataLink!$M$124","v":17.464249196572979},{"$f":"L28/(CntyDataLink!$L$124+CntyDataLink!$X$124)","v":6.228373702422145E-2},null,{"$f":"StatisticallySignificantCalcs!$A116","v":"N"},{"$f":"StatisticallySignificantCalcs!$J$116","v":"N"}]
[null,null,"75 yrs. & Over",{"$f":"CntyDataLinkPrior10YearEstimate!$N$124","v":44},{"$f":"CntyDataLinkPrior10YearEstimate!$O$124","v":31.400636936215164},{"$f":"D29/(CntyDataLinkPrior10YearEstimate!$N$124+CntyDataLinkPrior10YearEstimate!$Z$124)","v":0.19047619047619047},null,{"$f":"CntyDataLinkPrior5YearEstimates!$N$124","v":0},{"$f":"CntyDataLinkPrior5YearEstimates!$O$124","v":15.556349186104045},{"$f":"H29/(CntyDataLinkPrior5YearEstimates!$N$124+CntyDataLinkPrior5YearEstimates!$Z$124)","v":0},null,{"$f":"CntyDataLink!$N$124","v":15},{"$f":"CntyDataLink!$O$124","v":10.816653826391969},{"$f":"L29/(CntyDataLink!$N$124+CntyDataLink!$Z$124)","v":7.3170731707317069E-2},null,{"$f":"StatisticallySignificantCalcs!$A117","v":"N"},{"$f":"StatisticallySignificantCalcs!$J$117","v":"N"}]
[]
[null,null,"Source: 2005-2009 American Community Survey  Table B1701",null,null,null,null,"Source: 2015-2019 American Community Survey  Table B1701",null,null,null,"Source: 2015-2019 American Community Survey  Table B1701"]
[]
[]
[]
[]
[]
[]
[]
[]
[]
[]
[]
[]
[]
[]
[]
[]
[]
[]
[null,null,null,{"$f":"D22","v":"2009 Inc below Poverty Level"},null,null,null,{"$f":"H22","v":"2014 Inc below Poverty Level"},null,null,null,{"$f":"L22","v":"2019 Inc below Poverty Level"},null,null,null,"Statistically Significant Change"]
[null,null,null,"Estimate","Margin of Error","% of Family Type in Poverty",null,"Estimate","Margin of Error ","% of Family Type in Poverty",null,"Estimate","Margin of Error ","% of Family Type in Poverty",null,"2009-2019","2014-2019"]
[]
[]
[null,null,"Total Households",{"$f":"CntyDataLinkPrior10YearEstimate!$AD$124","v":53},{"$f":"CntyDataLinkPrior10YearEstimate!$AE$124","v":44},{"$f":"$D54/($D54+$D68)","v":5.6263269639065819E-2},null,{"$f":"CntyDataLinkPrior5YearEstimates!$AD$124","v":64},{"$f":"CntyDataLinkPrior5YearEstimates!$AE$124","v":33},{"$f":"$H54/($H54+$H68)","v":6.4386317907444673E-2},null,{"$f":"CntyDataLink!$AD$124","v":97},{"$f":"CntyDataLink!$AE$124","v":43},{"$f":"$L54/($L54+$L68)","v":0.10167714884696016},null,{"$f":"StatisticallySignificantCalcs!$A$94","v":"N"},{"$f":"StatisticallySignificantCalcs!$J$94","v":"N"}]
[null,null,"Family Households",{"$f":"CntyDataLinkPrior10YearEstimate!$AF$124","v":16},{"$f":"CntyDataLinkPrior10YearEstimate!$AG$124","v":19},{"$f":"$D55/($D55+$D69)","v":3.0245746691871456E-2},null,{"$f":"CntyDataLinkPrior5YearEstimates!$AF$124","v":4},{"$f":"CntyDataLinkPrior5YearEstimates!$AG$124","v":8},{"$f":"$H55/($H55+$H69)","v":6.2992125984251968E-3},null,{"$f":"CntyDataLink!$AF$124","v":43},{"$f":"CntyDataLink!$AG$124","v":32},{"$f":"$L55/($L55+$L69)","v":8.3333333333333329E-2},null,{"$f":"StatisticallySignificantCalcs!$A$95","v":"N"},{"$f":"StatisticallySignificantCalcs!$J$95","v":"Y"}]
[null,null,"Married Couple Fam HH",{"$f":"CntyDataLinkPrior10YearEstimate!$AH$124","v":210},{"$f":"CntyDataLinkPrior10YearEstimate!$AI$124","v":108},{"$f":"$D56/($D56+$D70)","v":7.0683271625715249E-2},null,{"$f":"CntyDataLinkPrior5YearEstimates!$AH$124","v":0},{"$f":"CntyDataLinkPrior5YearEstimates!$AI$124","v":11},0,null,{"$f":"CntyDataLink!$AH$124","v":30},{"$f":"CntyDataLink!$AI$124","v":29},6.7873303167420809E-2,null,{"$f":"StatisticallySignificantCalcs!$A$96","v":"Y"},{"$f":"StatisticallySignificantCalcs!$J$96","v":"N"}]
[null,null,"M C Fam HH w/Children",{"$f":"CntyDataLinkPrior10YearEstimate!$BN$124","v":0},{"$f":"CntyDataLinkPrior10YearEstimate!$BO$124","v":114},0,null,{"$f":"CntyDataLinkPrior5YearEstimates!$BN$124","v":0},{"$f":"CntyDataLinkPrior5YearEstimates!$BO$124","v":11},0,null,{"$f":"CntyDataLink!$BN$124","v":21},{"$f":"CntyDataLink!$BO$124","v":27},0.17647058823529413,null,{"$f":"StatisticallySignificantCalcs!$A$97","v":"N"},{"$f":"StatisticallySignificantCalcs!$J$97","v":"N"}]
[null,null,"Male Head of Family HH ",{"$f":"CntyDataLinkPrior10YearEstimate!$AL$124","v":0},{"$f":"CntyDataLinkPrior10YearEstimate!$AM$124","v":114},0,null,{"$f":"CntyDataLinkPrior5YearEstimates!$AL$124","v":5},{"$f":"CntyDataLinkPrior5YearEstimates!$AM$124","v":9},0.13513513513513514,null,{"$f":"CntyDataLink!$AL$124","v":0},{"$f":"CntyDataLink!$AM$124","v":11},{"$error":"#DIV/0!"},null,{"$f":"StatisticallySignificantCalcs!$A$98","v":"N"},{"$f":"StatisticallySignificantCalcs!$J$98","v":"N"}]
[null,null,"Male Head of HH w/Children",{"$f":"CntyDataLinkPrior10YearEstimate!$BP$124","v":0},{"$f":"CntyDataLinkPrior10YearEstimate!$BQ$124","v":114},0,null,{"$f":"CntyDataLinkPrior5YearEstimates!$BP$124","v":5},{"$f":"CntyDataLinkPrior5YearEstimates!$BQ$124","v":9},0.16129032258064516,null,{"$f":"CntyDataLink!$BP$124","v":0},{"$f":"CntyDataLink!$BQ$124","v":11},{"$error":"#DIV/0!"},null,{"$f":"StatisticallySignificantCalcs!$A$99","v":"N"},{"$f":"StatisticallySignificantCalcs!$J$99","v":"N"}]
[null,null,"Female Head of Family HH ",{"$f":"CntyDataLinkPrior10YearEstimate!$AN$124","v":37},{"$f":"CntyDataLinkPrior10YearEstimate!$AO$124","v":38},0.39361702127659576,null,{"$f":"CntyDataLinkPrior5YearEstimates!$AN$124","v":55},{"$f":"CntyDataLinkPrior5YearEstimates!$AO$124","v":32},0.36184210526315791,null,{"$f":"CntyDataLink!$AN$124","v":13},{"$f":"CntyDataLink!$AO$124","v":16},0.17567567567567569,null,{"$f":"StatisticallySignificantCalcs!$A$100","v":"N"},{"$f":"StatisticallySignificantCalcs!$J$100","v":"Y"}]
[null,null,"Female Head of HH w/Children",{"$f":"CntyDataLinkPrior10YearEstimate!$BR$124","v":37},{"$f":"CntyDataLinkPrior10YearEstimate!$BS$124","v":38},0.39361702127659576,null,{"$f":"CntyDataLinkPrior5YearEstimates!$BR$124","v":55},{"$f":"CntyDataLinkPrior5YearEstimates!$BS$124","v":32},0.50458715596330272,null,{"$f":"CntyDataLink!$BR$124","v":13},{"$f":"CntyDataLink!$BS$124","v":16},0.22033898305084745,null,{"$f":"StatisticallySignificantCalcs!$A$101","v":"N"},{"$f":"StatisticallySignificantCalcs!$J$101","v":"Y"}]
[null,null,"Non-Family HH ",{"$f":"CntyDataLinkPrior10YearEstimate!$AP$124","v":174},{"$f":"CntyDataLinkPrior10YearEstimate!$AQ$124","v":76},0.49572649572649574,null,{"$f":"CntyDataLinkPrior5YearEstimates!$AP$124","v":107},{"$f":"CntyDataLinkPrior5YearEstimates!$AQ$124","v":52},0.26354679802955666,null,{"$f":"CntyDataLink!$AP$124","v":54},{"$f":"CntyDataLink!$AQ$124","v":33},0.12328767123287671,null,{"$f":"StatisticallySignificantCalcs!$A$102","v":"Y"},{"$f":"StatisticallySignificantCalcs!$J$102","v":"N"}]
[]
[null,"Data from the American Community Survey are estimates."]
[null,null,null,"2009  Inc at or Above Poverty Level",null,null,null,"2014 Inc at or Above Poverty Level",null,null,null,"2019 Inc at or above Poverty Level",null,null,null,"Statistically Significant Change"]
[null,null,"Households","Estimate","Margin of Error",null,null,"Estimate","Margin of Error",null,null,"Estimate","Margin of Error",null,null,"2009-2019","2014-2019"]
[]
[null,null,"Total Households",{"$f":"CntyDataLinkPrior10YearEstimate!$AV$124","v":889},{"$f":"CntyDataLinkPrior10YearEstimate!$AW$124","v":122},{"$f":"$D68/($D68+$D54)","v":0.9437367303609342},null,{"$f":"CntyDataLinkPrior5YearEstimates!$AV$124","v":930},{"$f":"CntyDataLinkPrior5YearEstimates!$AW$124","v":95},{"$f":"$H68/($H68+$H54)","v":0.93561368209255535},null,{"$f":"CntyDataLink!$AV$124","v":857},{"$f":"CntyDataLink!$AW$124","v":90},{"$f":"$L68/($L68+$L54)","v":0.89832285115303978},null,{"$f":"StatisticallySignificantCalcs!$A$103","v":"N"},{"$f":"StatisticallySignificantCalcs!$J$103","v":"N"}]
[null,null,"Family Households",{"$f":"CntyDataLinkPrior10YearEstimate!$AX$124","v":513},{"$f":"CntyDataLinkPrior10YearEstimate!$AY$124","v":96},{"$f":"$D69/($D69+$D55)","v":0.96975425330812859},null,{"$f":"CntyDataLinkPrior5YearEstimates!$AX$124","v":631},{"$f":"CntyDataLinkPrior5YearEstimates!$AY$124","v":91},{"$f":"$H69/($H69+$H55)","v":0.99370078740157475},null,{"$f":"CntyDataLink!$AX$124","v":473},{"$f":"CntyDataLink!$AY$124","v":73},{"$f":"$L69/($L69+$L55)","v":0.91666666666666663},null,{"$f":"StatisticallySignificantCalcs!$A$104","v":"N"},{"$f":"StatisticallySignificantCalcs!$J$104","v":"Y"}]
[null,null,"Married Couple Fam HH",{"$f":"CntyDataLinkPrior10YearEstimate!$AZ$124","v":2761},{"$f":"CntyDataLinkPrior10YearEstimate!$BA$124","v":270},{"$f":"$D70/($D70+$D56)","v":0.92931672837428481},null,{"$f":"CntyDataLinkPrior5YearEstimates!$AZ$124","v":502},{"$f":"CntyDataLinkPrior5YearEstimates!$BA$124","v":84},{"$f":"$H70/($H70+$H56)","v":1},null,{"$f":"CntyDataLink!$AZ$124","v":412},{"$f":"CntyDataLink!$BA$124","v":69},0.9321266968325792,null,{"$f":"StatisticallySignificantCalcs!$A$105","v":"Y"},{"$f":"StatisticallySignificantCalcs!$J$105","v":"N"}]
[null,null,"M C Fam HH w/Children",{"$f":"CntyDataLinkPrior10YearEstimate!$BT$124","v":94},{"$f":"CntyDataLinkPrior10YearEstimate!$BU$124","v":39},1,null,{"$f":"CntyDataLinkPrior5YearEstimates!$BT$124","v":94},{"$f":"CntyDataLinkPrior5YearEstimates!$BU$124","v":39},1,null,{"$f":"CntyDataLink!$BT$124","v":98},{"$f":"CntyDataLink!$BU$124","v":37},0.82352941176470584,null,{"$f":"StatisticallySignificantCalcs!$A$106","v":"N"},{"$f":"StatisticallySignificantCalcs!$J$106","v":"N"}]
[null,null,"Male Head of Family HH ",{"$f":"CntyDataLinkPrior10YearEstimate!$BD$124","v":14},{"$f":"CntyDataLinkPrior10YearEstimate!$BE$124","v":21},1,null,{"$f":"CntyDataLinkPrior5YearEstimates!$BD$124","v":32},{"$f":"CntyDataLinkPrior5YearEstimates!$BE$124","v":34},0.86486486486486491,null,{"$f":"CntyDataLink!$BD$124","v":0},{"$f":"CntyDataLink!$BE$124","v":11},{"$error":"#DIV/0!"},null,{"$f":"StatisticallySignificantCalcs!$A$107","v":"N"},{"$f":"StatisticallySignificantCalcs!$J$107","v":"N"}]
[null,null,"Male Head of HH w/Children",{"$f":"CntyDataLinkPrior10YearEstimate!$BV$124","v":14},{"$f":"CntyDataLinkPrior10YearEstimate!$BW$124","v":21},1,null,{"$f":"CntyDataLinkPrior5YearEstimates!$BV$124","v":26},{"$f":"CntyDataLinkPrior5YearEstimates!$BW$124","v":33},0.83870967741935487,null,{"$f":"CntyDataLink!$BV$124","v":0},{"$f":"CntyDataLink!$BW$124","v":11},{"$error":"#DIV/0!"},null,{"$f":"StatisticallySignificantCalcs!$A$108","v":"N"},{"$f":"StatisticallySignificantCalcs!$J$108","v":"N"}]
[null,null,"Female Head of Family HH ",{"$f":"CntyDataLinkPrior10YearEstimate!$BF$124","v":57},{"$f":"CntyDataLinkPrior10YearEstimate!$BG$124","v":43},0.6063829787234043,null,{"$f":"CntyDataLinkPrior5YearEstimates!$BF$124","v":97},{"$f":"CntyDataLinkPrior5YearEstimates!$BG$124","v":38},0.63815789473684215,null,{"$f":"CntyDataLink!$BF$124","v":61},{"$f":"CntyDataLink!$BG$124","v":41},0.82432432432432434,null,{"$f":"StatisticallySignificantCalcs!$A$109","v":"N"},{"$f":"StatisticallySignificantCalcs!$J$109","v":"N"}]
[null,null,"Female Head of HH w/Children",{"$f":"CntyDataLinkPrior10YearEstimate!$BX$124","v":57},{"$f":"CntyDataLinkPrior10YearEstimate!$BY$124","v":43},0.6063829787234043,null,{"$f":"CntyDataLinkPrior5YearEstimates!$BX$124","v":54},{"$f":"CntyDataLinkPrior5YearEstimates!$BY$124","v":32},0.49541284403669728,null,{"$f":"CntyDataLink!$BX$124","v":46},{"$f":"CntyDataLink!$BY$124","v":40},0.77966101694915257,null,{"$f":"StatisticallySignificantCalcs!$A$110","v":"N"},{"$f":"StatisticallySignificantCalcs!$J$110","v":"N"}]
[null,null,"Non-Family HH ",{"$f":"CntyDataLinkPrior10YearEstimate!$BH$124","v":177},{"$f":"CntyDataLinkPrior10YearEstimate!$BI$124","v":75},0.50427350427350426,null,{"$f":"CntyDataLinkPrior5YearEstimates!$BH$124","v":299},{"$f":"CntyDataLinkPrior5YearEstimates!$BI$124","v":58},0.73645320197044339,null,{"$f":"CntyDataLink!$BH$124","v":384},{"$f":"CntyDataLink!$BI$124","v":81},0.87671232876712324,null,{"$f":"StatisticallySignificantCalcs!$A$111","v":"Y"},{"$f":"StatisticallySignificantCalcs!$J$111","v":"N"}]
[]
[null,null,"Source: 2005-2009 American Community Survey ",null,null,null,"Source: 2010-2014 American Community Survey",null,null,null,null,"Source: 2015-2019 American Community Survey"]
[]
[null,null,"Tables B17010; and B17017",null,null,null,"Tables B17010; and B17017",null,null,null,null,"Tables B17010; and B17017"]
[]
[null,null,"Data from the American Community Survey are estimates."]

{"sheet":"ACS_Table_ B17001","index":50,"n_rows":209,"n_cols":88,"rows_kept":209,"cut":false,"hidden":true,"merged":[]}
[null,"B17001. POVERTY STATUS IN THE PAST 12 MONTHS BY SEX BY AGE"]
[null,"Universe:  POPULATION FOR WHOM POVERTY STATUS IS DETERMINED"]
[null,"Data Set: 2015-2019 American Community Survey 5-Year Estimates"]
[]
[null,null,"Atkinson and Gilmanton Grant",null,"Bean's Grant",null,"Bean's Purchase",null,"Berlin",null,"Cambridge",null,"Carroll",null,"Chandler's Purchase",null,"Clarksville",null,"Colebrook",null,"Columbia",null,"Crawford's Purchase",null,"Cutt's Grant",null,"Dalton",null,"Dix's Grant",null,"Dixville",null,"Dummer",null,"Errol",null,"Erving's Location",null,"Gorham",null,"Greens Grant",null,"Hadley's Purchase",null,"Jefferson",null,"Kilkenny",null,"Lancaster",null,"Low and Burbank's Grant",null,"Martin's Location",null,"Milan",null,"Millsfield ",null,"Northumberland",null,"Odell",null,"Pinkham's Grant",null,"Pittsburg",null,"Randolph",null,"Sargent's Purchase",null,"Second College Grant",null,"Shelburne",null,"Stark",null,"Stewartstown",null,"Stratford",null,"Success",null,"Thompson and Meserves Purchase",null,"Wentworth's Location",null,"Whitefield"]
[null,null,"Estimate","Margin Of Error","Estimate","Margin Of Error","Estimate","Margin Of Error","Estimate","Margin Of Error","Estimate","Margin Of Error","Estimate","Margin Of Error","Estimate","Margin Of Error","Estimate","Margin Of Error","Estimate","Margin Of Error","Estimate","Margin Of Error","Estimate","Margin Of Error","Estimate","Margin Of Error","Estimate","Margin Of Error","Estimate","Margin Of Error","Estimate","Margin Of Error","Estimate","Margin Of Error","Estimate","Margin Of Error","Estimate","Margin Of Error","Estimate","Margin Of Error","Estimate","Margin Of Error","Estimate","Margin Of Error","Estimate","Margin Of Error","Estimate","Margin Of Error","Estimate","Margin Of Error","Estimate","Margin Of Error","Estimate","Margin Of Error","Estimate","Margin Of Error","Estimate","Margin Of Error","Estimate","Margin Of Error","Estimate","Margin Of Error","Estimate","Margin Of Error","Estimate","Margin Of Error","Estimate","Margin Of Error","Estimate","Margin Of Error","Estimate","Margin Of Error","Estimate","Margin Of Error","Estimate","Margin Of Error","Estimate","Margin Of Error","Estimate","Margin Of Error","Estimate","Margin Of Error","Estimate","Margin Of Error","Estimate","Margin Of Error","Estimate","Margin Of Error"]
[null,"Total:",0,11,0,11,0,11,8224,318,0,11,772,141,0,11,324,88,1908,171,633,119,0,11,0,11,906,140,0,11,9,12,306,71,205,55,0,11,2598,28,13,10,0,11,850,129,0,11,3156,83,0,11,0,11,1326,108,8,12,2290,261,10,12,11,14,740,104,365,68,11,24,0,11,407,65,602,144,857,171,630,114,0,11,0,11,26,16,2202,215]
[null,"Income in the past 12 months below poverty level:",0,11,0,11,0,11,1524,326,0,11,83,62,0,11,37,38,222,125,81,33,0,11,0,11,67,36,0,11,7,9,42,29,36,20,0,11,100,50,11,10,0,11,33,23,0,11,241,118,0,11,0,11,105,58,0,11,234,84,10,12,7,8,57,42,9,7,11,24,0,11,15,10,80,29,114,85,211,88,0,11,0,11,0,11,345,107]
[null,"Male:",0,11,0,11,0,11,809,226,0,11,74,61,0,11,21,25,95,76,56,26,0,11,0,11,27,20,0,11,5,6,22,17,15,12,0,11,39,30,11,10,0,11,15,12,0,11,126,64,0,11,0,11,57,39,0,11,71,33,5,11,7,8,24,24,5,5,0,11,0,11,7,6,25,13,41,34,112,55,0,11,0,11,0,11,115,66]
[null,"Under 5 years",0,11,0,11,0,11,65,55,0,11,0,11,0,11,0,11,15,19,3,5,0,11,0,11,0,11,0,11,0,11,2,4,0,11,0,11,0,11,0,11,0,11,0,11,0,11,0,11,0,11,0,11,11,13,0,11,0,11,0,11,0,11,0,11,0,11,0,11,0,11,0,11,0,11,0,11,0,11,0,11,0,11,0,11,18,22]
[null,"5 years",0,11,0,11,0,11,12,19,0,11,0,11,0,11,0,11,0,11,0,11,0,11,0,11,0,11,0,11,0,11,0,11,2,3,0,11,0,11,0,11,0,11,0,11,0,11,0,11,0,11,0,11,0,11,0,11,0,11,0,11,0,11,0,11,0,11,0,11,0,11,0,11,0,11,0,11,0,11,0,11,0,11,0,11,0,11]
[null,"6 to 11 years",0,11,0,11,0,11,66,62,0,11,0,11,0,11,6,9,21,27,4,7,0,11,0,11,0,11,0,11,0,11,5,8,0,11,0,11,0,11,0,11,0,11,4,5,0,11,0,11,0,11,0,11,16,19,0,11,0,11,0,11,0,11,0,11,0,11,0,11,0,11,0,11,3,4,0,11,8,13,0,11,0,11,0,11,20,25]
[null,"12 to 14 years",0,11,0,11,0,11,19,27,0,11,0,11,0,11,0,11,0,11,4,6,0,11,0,11,6,8,0,11,0,11,0,11,0,11,0,11,0,11,0,11,0,11,0,11,0,11,21,31,0,11,0,11,0,11,0,11,7,10,0,11,0,11,0,11,0,11,0,11,0,11,0,11,0,11,0,11,6,8,0,11,0,11,0,11,15,18]
[null,"15 years",0,11,0,11,0,11,0,18,0,11,0,11,0,11,0,11,0,11,0,11,0,11,0,11,0,11,0,11,0,11,0,11,0,11,0,11,0,11,0,11,0,11,0,11,0,11,0,11,0,11,0,11,0,11,0,11,0,11,0,11,0,11,0,11,0,11,0,11,0,11,0,11,0,11,3,4,2,4,0,11,0,11,0,11,3,5]
[null,"16 and 17 years",0,11,0,11,0,11,73,56,0,11,28,60,0,11,0,11,0,11,2,3,0,11,0,11,0,11,0,11,0,11,0,11,0,11,0,11,0,11,0,11,0,11,0,11,0,11,0,11,0,11,0,11,0,11,0,11,0,11,0,11,0,11,0,11,0,11,0,11,0,11,0,11,0,11,0,11,11,12,0,11,0,11,0,11,3,5]
[null,"18 to 24 years",0,11,0,11,0,11,81,66,0,11,31,61,0,11,6,9,5,9,12,14,0,11,0,11,0,11,0,11,4,5,2,3,0,11,0,11,0,11,3,6,0,11,0,11,0,11,37,46,0,11,0,11,0,11,0,11,0,11,5,11,3,7,0,11,0,11,0,11,0,11,1,3,3,4,22,25,23,23,0,11,0,11,0,11,2,4]
[null,"25 to 34 years",0,11,0,11,0,11,88,73,0,11,2,3,0,11,0,11,29,30,0,11,0,11,0,11,8,12,0,11,0,11,2,3,0,11,0,11,0,11,2,4,0,11,0,11,0,11,15,18,0,11,0,11,4,5,0,11,0,11,0,11,0,11,0,11,0,11,0,11,0,11,0,11,3,5,0,11,0,11,0,11,0,11,0,11,9,12]
[null,"35 to 44 years",0,11,0,11,0,11,97,51,0,11,0,11,0,11,4,7,0,11,4,6,0,11,0,11,4,6,0,11,0,11,0,11,0,11,0,11,9,14,0,11,0,11,0,11,0,11,23,24,0,11,0,11,0,11,0,11,11,11,0,11,0,11,24,24,0,11,0,11,0,11,1,2,4,4,0,11,14,15,0,11,0,11,0,11,1,3]
[null,"45 to 54 years",0,11,0,11,0,11,131,74,0,11,0,11,0,11,0,11,6,8,17,15,0,11,0,11,0,11,0,11,0,11,5,7,5,7,0,11,9,14,6,7,0,11,3,4,0,11,0,11,0,11,0,11,4,5,0,11,11,8,0,11,4,8,0,11,2,3,0,11,0,11,0,11,2,3,0,11,15,14,0,11,0,11,0,11,10,11]
[null,"55 to 64 years",0,11,0,11,0,11,80,48,0,11,11,10,0,11,1,2,12,12,3,6,0,11,0,11,9,9,0,11,0,11,1,3,2,3,0,11,0,11,0,11,0,11,0,11,0,11,22,24,0,11,0,11,19,17,0,11,34,26,0,11,0,11,0,11,3,4,0,11,0,11,2,4,2,4,4,7,17,12,0,11,0,11,0,11,16,16]
[null,"65 to 74 years",0,11,0,11,0,11,45,32,0,11,0,11,0,11,4,4,3,4,0,11,0,11,0,11,0,11,0,11,1,3,1,3,6,9,0,11,11,16,0,11,0,11,0,11,0,11,8,13,0,11,0,11,3,5,0,11,7,9,0,11,0,11,0,11,0,11,0,11,0,11,2,3,6,6,12,17,6,6,0,11,0,11,0,11,12,12]
[null,"75 years and over",0,11,0,11,0,11,52,54,0,11,2,3,0,11,0,11,4,6,7,7,0,11,0,11,0,11,0,11,0,11,4,4,0,11,0,11,10,15,0,11,0,11,8,7,0,11,0,11,0,11,0,11,0,11,0,11,1,2,0,11,0,11,0,11,0,11,0,11,0,11,1,3,2,3,0,11,10,12,0,11,0,11,0,11,6,8]
[null,"Female:",0,11,0,11,0,11,715,161,0,11,9,8,0,11,16,15,127,58,25,12,0,11,0,11,40,21,0,11,2,6,20,14,21,16,0,11,61,33,0,11,0,11,18,14,0,11,115,73,0,11,0,11,48,23,0,11,163,73,5,11,0,11,33,28,4,5,11,24,0,11,8,9,55,21,73,68,99,45,0,11,0,11,0,11,230,77]
[null,"Under 5 years",0,11,0,11,0,11,10,17,0,11,0,11,0,11,0,11,13,14,0,11,0,11,0,11,0,11,0,11,0,11,0,11,0,11,0,11,0,11,0,11,0,11,3,5,0,11,0,11,0,11,0,11,0,11,0,11,23,32,0,11,0,11,0,11,0,11,0,11,0,11,0,11,3,4,0,11,10,17,0,11,0,11,0,11,12,16]
[null,"5 years",0,11,0,11,0,11,0,18,0,11,0,11,0,11,0,11,0,11,0,11,0,11,0,11,0,11,0,11,0,11,3,4,0,11,0,11,0,11,0,11,0,11,0,11,0,11,0,11,0,11,0,11,0,11,0,11,0,11,0,11,0,11,0,11,0,11,0,11,0,11,0,11,2,3,0,11,0,11,0,11,0,11,0,11,0,11]
[null,"6 to 11 years",0,11,0,11,0,11,8,14,0,11,0,11,0,11,0,11,16,20,0,11,0,11,0,11,0,11,0,11,0,11,0,11,1,2,0,11,0,11,0,11,0,11,0,11,0,11,16,23,0,11,0,11,0,11,0,11,5,7,0,11,0,11,0,11,0,11,0,11,0,11,0,11,6,8,30,44,0,11,0,11,0,11,0,11,29,25]
[null,"12 to 14 years",0,11,0,11,0,11,0,18,0,11,0,11,0,11,0,11,0,11,0,11,0,11,0,11,4,6,0,11,0,11,4,6,0,11,0,11,0,11,0,11,0,11,0,11,0,11,0,11,0,11,0,11,0,11,0,11,0,11,0,11,0,11,0,11,0,11,0,11,0,11,0,11,0,11,0,11,8,11,0,11,0,11,0,11,10,21]
[null,"15 years",0,11,0,11,0,11,41,43,0,11,0,11,0,11,0,11,0,11,0,11,0,11,0,11,0,11,0,11,0,11,0,11,0,11,0,11,0,11,0,11,0,11,0,11,0,11,0,11,0,11,0,11,0,11,0,11,4,6,0,11,0,11,0,11,0,11,0,11,0,11,0,11,0,11,0,11,0,11,0,11,0,11,0,11,0,11]
[null,"16 and 17 years",0,11,0,11,0,11,43,45,0,11,0,11,0,11,0,11,0,11,0,11,0,11,0,11,0,11,0,11,0,11,0,11,0,11,0,11,7,10,0,11,0,11,1,4,0,11,0,11,0,11,0,11,2,3,0,11,8,8,0,11,0,11,0,11,0,11,0,11,0,11,0,11,0,11,0,11,0,11,0,11,0,11,0,11,12,19]
[null,"18 to 24 years",0,11,0,11,0,11,6,11,0,11,0,11,0,11,4,6,8,13,3,4,0,11,0,11,0,11,0,11,0,11,0,11,0,11,0,11,0,11,0,11,0,11,0,11,0,11,0,11,0,11,0,11,0,11,0,11,10,14,0,11,0,11,0,11,0,11,11,24,0,11,0,11,7,8,9,12,3,4,0,11,0,11,0,11,0,11]
[null,"25 to 34 years",0,11,0,11,0,11,96,75,0,11,0,11,0,11,0,11,33,23,5,7,0,11,0,11,0,11,0,11,0,11,7,6,0,11,0,11,0,11,0,11,0,11,0,11,0,11,11,14,0,11,0,11,18,19,0,11,67,45,5,11,0,11,17,20,2,3,0,11,0,11,1,3,5,10,16,20,17,20,0,11,0,11,0,11,19,19]
[null,"35 to 44 years",0,11,0,11,0,11,72,55,0,11,1,3,0,11,0,11,0,11,3,5,0,11,0,11,6,7,0,11,0,11,0,11,1,2,0,11,26,20,0,11,0,11,0,11,0,11,45,50,0,11,0,11,4,4,0,11,5,7,0,11,0,11,0,11,0,11,0,11,0,11,0,11,7,8,3,5,28,20,0,11,0,11,0,11,27,25]
[null,"45 to 54 years",0,11,0,11,0,11,113,73,0,11,0,11,0,11,5,8,13,20,2,3,0,11,0,11,4,6,0,11,2,6,2,5,6,8,0,11,0,11,0,11,0,11,7,7,0,11,0,11,0,11,0,11,12,8,0,11,11,12,0,11,0,11,0,11,2,3,0,11,0,11,6,9,0,11,0,11,18,14,0,11,0,11,0,11,34,30]
[null,"55 to 64 years",0,11,0,11,0,11,106,65,0,11,6,5,0,11,4,7,18,15,6,6,0,11,0,11,10,11,0,11,0,11,3,5,6,7,0,11,0,11,0,11,0,11,0,11,0,11,8,12,0,11,0,11,9,7,0,11,4,6,0,11,0,11,5,8,0,11,0,11,0,11,0,11,10,10,7,10,5,5,0,11,0,11,0,11,54,27]
[null,"65 to 74 years",0,11,0,11,0,11,89,59,0,11,2,3,0,11,1,2,15,17,3,3,0,11,0,11,11,9,0,11,0,11,1,3,4,6,0,11,9,13,0,11,0,11,3,4,0,11,0,11,0,11,0,11,3,5,0,11,8,6,0,11,0,11,0,11,0,11,0,11,0,11,1,2,6,5,5,5,6,5,0,11,0,11,0,11,8,11]
[null,"75 years and over",0,11,0,11,0,11,131,54,0,11,0,11,0,11,2,4,11,9,3,4,0,11,0,11,5,6,0,11,0,11,0,11,3,5,0,11,19,20,0,11,0,11,4,8,0,11,35,22,0,11,0,11,0,11,0,11,18,19,0,11,0,11,11,16,0,11,0,11,0,11,0,11,9,11,3,4,4,5,0,11,0,11,0,11,25,22]
[null,"Income in the past 12 months at or above poverty level:",0,11,0,11,0,11,6700,417,0,11,689,139,0,11,287,85,1686,190,552,116,0,11,0,11,839,139,0,11,2,6,264,60,169,48,0,11,2498,57,2,6,0,11,817,126,0,11,2915,145,0,11,0,11,1221,100,8,12,2056,241,0,11,4,8,683,109,356,67,0,11,0,11,392,64,522,138,743,140,419,86,0,11,0,11,26,16,1857,202]
[null,"Male:",0,11,0,11,0,11,3189,277,0,11,378,80,0,11,155,49,830,109,279,68,0,11,0,11,405,77,0,11,2,6,149,43,94,32,0,11,1357,79,2,6,0,11,378,67,0,11,1436,153,0,11,0,11,653,62,4,6,1094,148,0,11,4,8,383,63,181,37,0,11,0,11,206,42,266,66,390,79,237,54,0,11,0,11,19,12,950,139]
[null,"Under 5 years",0,11,0,11,0,11,130,69,0,11,11,12,0,11,4,6,11,11,0,11,0,11,0,11,10,9,0,11,0,11,3,5,0,11,0,11,48,38,0,11,0,11,5,5,0,11,116,72,0,11,0,11,15,12,0,11,68,33,0,11,0,11,0,11,4,4,0,11,0,11,12,15,11,14,16,20,1,4,0,11,0,11,0,11,44,29]
[null,"5 years",0,11,0,11,0,11,10,18,0,11,8,12,0,11,6,8,0,11,1,2,0,11,0,11,6,7,0,11,0,11,7,8,0,11,0,11,11,16,0,11,0,11,0,11,0,11,0,11,0,11,0,11,0,11,0,11,29,24,0,11,0,11,4,6,2,3,0,11,0,11,1,3,3,4,6,9,0,11,0,11,0,11,0,11,5,7]
[null,"6 to 11 years",0,11,0,11,0,11,44,44,0,11,29,30,0,11,6,10,82,43,13,11,0,11,0,11,24,22,0,11,0,11,17,17,2,3,0,11,86,37,0,11,0,11,34,18,0,11,76,60,0,11,0,11,47,22,0,11,84,48,0,11,0,11,20,18,0,11,0,11,0,11,13,11,27,23,29,28,21,14,0,11,0,11,0,11,70,53]
[null,"12 to 14 years",0,11,0,11,0,11,50,38,0,11,9,13,0,11,0,11,38,40,0,11,0,11,0,11,8,9,0,11,0,11,4,5,9,10,0,11,47,39,0,11,0,11,8,11,0,11,35,30,0,11,0,11,19,19,0,11,11,13,0,11,0,11,12,17,2,3,0,11,0,11,1,4,0,11,9,9,9,9,0,11,0,11,0,11,22,16]
[null,"15 years",0,11,0,11,0,11,24,28,0,11,0,11,0,11,0,11,0,11,3,4,0,11,0,11,3,4,0,11,0,11,4,6,0,11,0,11,7,10,0,11,0,11,5,5,0,11,40,37,0,11,0,11,3,4,0,11,17,14,0,11,0,11,0,11,0,11,0,11,0,11,1,2,0,11,0,11,5,6,0,11,0,11,0,11,15,15]
[null,"16 and 17 years",0,11,0,11,0,11,135,68,0,11,5,9,0,11,1,3,5,8,2,4,0,11,0,11,0,11,0,11,0,11,0,11,5,7,0,11,41,30,0,11,0,11,6,6,0,11,27,24,0,11,0,11,0,11,0,11,60,42,0,11,0,11,4,6,0,11,0,11,0,11,2,3,0,11,0,11,12,11,0,11,0,11,0,11,8,9]
[null,"18 to 24 years",0,11,0,11,0,11,282,91,0,11,32,27,0,11,13,10,17,18,28,21,0,11,0,11,51,36,0,11,0,11,5,5,0,11,0,11,62,39,0,11,0,11,37,30,0,11,146,64,0,11,0,11,68,46,0,11,67,55,0,11,4,8,11,13,19,14,0,11,0,11,6,7,12,15,0,11,7,7,0,11,0,11,0,11,70,52]
[null,"25 to 34 years",0,11,0,11,0,11,551,147,0,11,33,19,0,11,15,10,40,28,18,18,0,11,0,11,43,24,0,11,1,4,11,8,0,11,0,11,119,66,0,11,0,11,29,15,0,11,136,72,0,11,0,11,72,28,0,11,132,52,0,11,0,11,24,18,10,7,0,11,0,11,8,9,33,20,17,16,9,13,0,11,0,11,3,4,76,40]
[null,"35 to 44 years",0,11,0,11,0,11,286,88,0,11,26,19,0,11,1,2,115,31,14,10,0,11,0,11,38,21,0,11,0,11,10,6,12,9,0,11,107,44,2,6,0,11,10,8,0,11,177,64,0,11,0,11,49,18,0,11,86,35,0,11,0,11,8,11,12,10,0,11,0,11,25,15,28,17,8,7,28,14,0,11,0,11,0,11,85,37]
[null,"45 to 54 years",0,11,0,11,0,11,542,106,0,11,36,19,0,11,16,13,100,36,59,30,0,11,0,11,46,33,0,11,0,11,11,8,10,9,0,11,218,72,0,11,0,11,56,26,0,11,184,74,0,11,0,11,95,29,0,11,152,49,0,11,0,11,52,27,23,15,0,11,0,11,13,8,23,16,102,43,60,27,0,11,0,11,0,11,171,58]
[null,"55 to 64 years",0,11,0,11,0,11,543,86,0,11,84,33,0,11,47,27,163,45,60,24,0,11,0,11,117,33,0,11,0,11,23,9,23,13,0,11,305,64,0,11,0,11,94,29,0,11,230,91,0,11,0,11,135,27,4,6,207,58,0,11,0,11,100,34,43,12,0,11,0,11,47,17,55,22,54,23,39,22,0,11,0,11,4,4,59,25]
[null,"65 to 74 years",0,11,0,11,0,11,391,92,0,11,76,27,0,11,36,18,166,46,49,16,0,11,0,11,41,22,0,11,1,4,35,15,12,11,0,11,164,57,0,11,0,11,83,27,0,11,121,49,0,11,0,11,116,28,0,11,112,37,0,11,0,11,127,36,49,16,0,11,0,11,50,20,46,19,111,39,25,12,0,11,0,11,4,4,208,56]
[null,"75 years and over",0,11,0,11,0,11,201,57,0,11,29,15,0,11,10,9,93,30,32,15,0,11,0,11,18,16,0,11,0,11,19,11,21,13,0,11,142,58,0,11,0,11,11,8,0,11,148,57,0,11,0,11,34,14,0,11,69,32,0,11,0,11,21,11,17,9,0,11,0,11,27,18,28,14,38,14,21,13,0,11,0,11,8,8,117,42]
[null,"Female:",0,11,0,11,0,11,3511,233,0,11,311,69,0,11,132,43,856,127,273,60,0,11,0,11,434,78,0,11,0,11,115,25,75,26,0,11,1141,81,0,11,0,11,439,72,0,11,1479,142,0,11,0,11,568,59,4,6,962,129,0,11,0,11,300,56,175,40,0,11,0,11,186,33,256,81,353,72,182,43,0,11,0,11,7,6,907,129]
[null,"Under 5 years",0,11,0,11,0,11,196,65,0,11,18,17,0,11,2,4,16,17,4,6,0,11,0,11,23,20,0,11,0,11,4,5,0,11,0,11,0,11,0,11,0,11,34,22,0,11,34,52,0,11,0,11,15,10,0,11,81,42,0,11,0,11,0,11,12,12,0,11,0,11,4,6,22,21,16,20,3,4,0,11,0,11,0,11,70,41]
[null,"5 years",0,11,0,11,0,11,24,31,0,11,0,11,0,11,0,11,5,7,0,11,0,11,0,11,0,11,0,11,0,11,0,11,0,11,0,11,0,11,0,11,0,11,0,11,0,11,9,16,0,11,0,11,5,6,0,11,0,11,0,11,0,11,0,11,0,11,0,11,0,11,0,11,3,4,0,11,0,11,0,11,0,11,0,11,6,9]
[null,"6 to 11 years",0,11,0,11,0,11,230,92,0,11,20,22,0,11,4,8,38,28,14,10,0,11,0,11,10,13,0,11,0,11,7,5,4,6,0,11,79,36,0,11,0,11,15,12,0,11,113,41,0,11,0,11,27,14,0,11,51,37,0,11,0,11,15,13,1,2,0,11,0,11,6,7,17,14,21,16,0,11,0,11,0,11,0,11,15,20]
[null,"12 to 14 years",0,11,0,11,0,11,119,79,0,11,12,18,0,11,2,3,28,27,16,11,0,11,0,11,21,16,0,11,0,11,1,2,4,6,0,11,39,21,0,11,0,11,3,4,0,11,67,35,0,11,0,11,13,8,0,11,16,23,0,11,0,11,2,5,0,11,0,11,0,11,6,6,23,18,6,5,11,11,0,11,0,11,0,11,17,16]
[null,"15 years",0,11,0,11,0,11,53,44,0,11,0,11,0,11,0,11,0,11,3,4,0,11,0,11,3,5,0,11,0,11,1,2,0,11,0,11,6,10,0,11,0,11,2,4,0,11,18,17,0,11,0,11,19,15,0,11,16,20,0,11,0,11,0,11,2,3,0,11,0,11,2,3,10,12,0,11,0,11,0,11,0,11,0,11,4,8]
[null,"16 and 17 years",0,11,0,11,0,11,18,19,0,11,0,11,0,11,0,11,13,10,10,12,0,11,0,11,14,14,0,11,0,11,1,3,0,11,0,11,12,14,0,11,0,11,2,4,0,11,90,43,0,11,0,11,22,10,0,11,10,11,0,11,0,11,0,11,0,11,0,11,0,11,4,4,11,12,4,6,5,5,0,11,0,11,0,11,6,7]
[null,"18 to 24 years",0,11,0,11,0,11,269,80,0,11,16,16,0,11,6,7,94,50,9,17,0,11,0,11,33,26,0,11,0,11,10,8,0,11,0,11,76,45,0,11,0,11,28,22,0,11,111,53,0,11,0,11,40,36,0,11,78,38,0,11,0,11,11,16,13,10,0,11,0,11,5,7,2,5,22,22,9,8,0,11,0,11,0,11,10,11]
[null,"25 to 34 years",0,11,0,11,0,11,448,129,0,11,21,19,0,11,10,9,48,29,16,11,0,11,0,11,21,13,0,11,0,11,5,4,0,11,0,11,57,35,0,11,0,11,30,16,0,11,122,63,0,11,0,11,66,31,0,11,93,40,0,11,0,11,26,22,8,7,0,11,0,11,14,8,4,6,20,18,8,8,0,11,0,11,0,11,68,36]
[null,"35 to 44 years",0,11,0,11,0,11,404,100,0,11,24,12,0,11,10,9,103,35,20,15,0,11,0,11,48,27,0,11,0,11,15,9,13,10,0,11,141,49,0,11,0,11,31,18,0,11,163,59,0,11,0,11,62,22,0,11,67,31,0,11,0,11,18,13,23,13,0,11,0,11,9,7,26,17,18,16,20,12,0,11,0,11,0,11,136,48]
[null,"45 to 54 years",0,11,0,11,0,11,453,96,0,11,32,19,0,11,32,27,94,49,52,26,0,11,0,11,53,32,0,11,0,11,14,11,10,10,0,11,103,45,0,11,0,11,80,25,0,11,261,71,0,11,0,11,96,27,0,11,195,50,0,11,0,11,35,23,18,12,0,11,0,11,33,15,30,17,46,31,49,26,0,11,0,11,0,11,166,55]
[null,"55 to 64 years",0,11,0,11,0,11,487,95,0,11,83,29,0,11,46,18,215,53,67,23,0,11,0,11,121,33,0,11,0,11,30,11,24,14,0,11,323,61,0,11,0,11,123,35,0,11,145,56,0,11,0,11,107,24,0,11,163,44,0,11,0,11,99,31,39,15,0,11,0,11,54,17,48,17,51,27,19,11,0,11,0,11,0,11,115,35]
[null,"65 to 74 years",0,11,0,11,0,11,426,80,0,11,55,14,0,11,17,11,105,36,26,13,0,11,0,11,55,22,0,11,0,11,12,7,14,9,0,11,150,50,0,11,0,11,70,21,0,11,207,52,0,11,0,11,72,22,0,11,126,33,0,11,0,11,72,26,38,12,0,11,0,11,29,14,32,15,108,34,32,15,0,11,0,11,7,6,202,56]
[null,"75 years and over",0,11,0,11,0,11,384,85,0,11,30,16,0,11,3,6,97,36,36,17,0,11,0,11,32,15,0,11,0,11,15,10,6,7,0,11,155,53,0,11,0,11,21,12,0,11,139,58,0,11,0,11,24,12,4,6,66,34,0,11,0,11,22,13,21,12,0,11,0,11,20,12,28,12,41,20,26,15,0,11,0,11,0,11,92,43]
[]
[]
[]
[null,"Calculated Table B17001. POVERTY STATUS IN THE PAST 12 MONTHS BY SEX BY AGE"]
[null,"Universe:  POPULATION FOR WHOM POVERTY STATUS IS DETERMINED"]
[null,"Data Set: 2015-2019 American Community Survey 5-Year Estimates"]
[]
[null,null,"Atkinson and Gilmanton Grant",null,"Bean's Grant",null,"Bean's Purchase",null,"Berlin",null,"Cambridge",null,"Carroll",null,"Chandler's Purchase",null,"Clarksville",null,"Colebrook",null,"Columbia",null,"Crawford's Purchase",null,"Cutt's Grant",null,"Dalton",null,"Dix's Grant",null,"Dixville",null,"Dummer",null,"Errol",null,"Erving's Location",null,"Gorham",null,"Greens Grant",null,"Hadley's Purchase",null,"Jefferson",null,"Kilkenny",null,"Lancaster",null,"Low and Burbank's Grant",null,"Martin's Location",null,"Milan",null,"Millsfield ",null,"Northumberland",null,"Odell",null,"Pinkham's Grant",null,"Pittsburg",null,"Randolph",null,"Sargent's Purchase",null,"Second College Grant",null,"Shelburne",null,"Stark",null,"Stewartstown",null,"Stratford",null,"Success",null,"Thompson and Meserves Purchase",null,"Wentworth's Location",null,"Whitefield"]
[null,null,"Estimate","Margin Of Error","Estimate","Margin Of Error","Estimate","Margin Of Error","Estimate","Margin Of Error","Estimate","Margin Of Error","Estimate","Margin Of Error","Estimate","Margin Of Error","Estimate","Margin Of Error","Estimate","Margin Of Error","Estimate","Margin Of Error","Estimate","Margin Of Error","Estimate","Margin Of Error","Estimate","Margin Of Error","Estimate","Margin Of Error","Estimate","Margin Of Error","Estimate","Margin Of Error","Estimate","Margin Of Error","Estimate","Margin Of Error","Estimate","Margin Of Error","Estimate","Margin Of Error","Estimate","Margin Of Error","Estimate","Margin Of Error","Estimate","Margin Of Error","Estimate","Margin Of Error","Estimate","Margin Of Error","Estimate","Margin Of Error","Estimate","Margin Of Error","Estimate","Margin Of Error","Estimate","Margin Of Error","Estimate","Margin Of Error","Estimate","Margin Of Error","Estimate","Margin Of Error","Estimate","Margin Of Error","Estimate","Margin Of Error","Estimate","Margin Of Error","Estimate","Margin Of Error","Estimate","Margin Of Error","Estimate","Margin Of Error","Estimate","Margin Of Error","Estimate","Margin Of Error","Estimate","Margin Of Error","Estimate","Margin Of Error","Estimate","Margin Of Error"]
[null,"Total:",{"$f":"C7","v":0},{"$f":"D7","v":11},0,11,0,11,8224,318,0,11,772,141,0,11,324,88,1908,171,633,119,0,11,{"$f":"Y7","v":0},11,906,140,0,11,9,12,306,71,205,55,0,11,2598,28,{"$f":"AO7","v":13},10,0,11,850,129,0,11,3156,83,0,11,0,11,1326,108,8,12,2290,261,10,12,11,14,740,104,365,68,11,24,0,11,407,65,602,144,857,171,630,114,0,11,0,11,26,16,2202,215]
[null,"Income in the past 12 months below poverty level:",{"$f":"C8","v":0},{"$f":"D8","v":11},0,11,0,11,1524,326,0,11,83,62,0,11,37,38,222,125,81,33,0,11,{"$f":"Y8","v":0},11,67,36,0,11,7,9,42,29,36,20,0,11,100,50,{"$f":"AO8","v":11},10,0,11,33,23,0,11,241,118,0,11,0,11,105,58,0,11,234,84,10,12,7,8,57,42,9,7,11,24,0,11,15,10,80,29,114,85,211,88,0,11,0,11,0,11,345,107]
[null,"Under 5 years",{"$f":"C10+C24","v":0},{"$f":"SQRT(((D10^2))+((D34^2)))","v":15.556349186104045},{"$f":"E10+E24","v":0},{"$f":"SQRT(((F10^2))+((F34^2)))","v":15.556349186104045},{"$f":"G10+G24","v":0},{"$f":"SQRT(((H10^2))+((H34^2)))","v":15.556349186104045},{"$f":"I10+I24","v":75},{"$f":"SQRT(((J10^2))+((J34^2)))","v":85.14693182963201},{"$f":"K10+K24","v":0},{"$f":"SQRT(((L10^2))+((L34^2)))","v":15.556349186104045},{"$f":"M10+M24","v":0},{"$f":"SQRT(((N10^2))+((N34^2)))","v":12.083045973594572},{"$f":"O10+O24","v":0},{"$f":"SQRT(((P10^2))+((P34^2)))","v":15.556349186104045},{"$f":"Q10+Q24","v":0},{"$f":"SQRT(((R10^2))+((R34^2)))","v":13.038404810405298},{"$f":"S10+S24","v":28},{"$f":"SQRT(((T10^2))+((T34^2)))","v":24.207436873820409},{"$f":"U10+U24","v":3},{"$f":"SQRT(((V10^2))+((V34^2)))","v":7.810249675906654},{"$f":"W10+W24","v":0},{"$f":"SQRT(((X10^2))+((X34^2)))","v":15.556349186104045},{"$f":"Y10+Y24","v":0},{"$f":"SQRT(((Z10^2))+((Z34^2)))","v":15.556349186104045},{"$f":"AA10+AA24","v":0},{"$f":"SQRT(((AB10^2))+((AB34^2)))","v":15.556349186104045},{"$f":"AC10+AC24","v":0},{"$f":"SQRT(((AD10^2))+((AD34^2)))","v":15.556349186104045},{"$f":"AE10+AE24","v":0},{"$f":"SQRT(((AF10^2))+((AF34^2)))","v":15.556349186104045},{"$f":"AG10+AG24","v":2},{"$f":"SQRT(((AH10^2))+((AH34^2)))","v":6.4031242374328485},{"$f":"AI10+AI24","v":0},{"$f":"SQRT(((AJ10^2))+((AJ34^2)))","v":13.038404810405298},{"$f":"AK10+AK24","v":0},{"$f":"SQRT(((AL10^2))+((AL34^2)))","v":15.556349186104045},{"$f":"AM10+AM24","v":0},{"$f":"SQRT(((AN10^2))+((AN34^2)))","v":15.556349186104045},{"$f":"AO10+AO24","v":0},{"$f":"SQRT(((AP10^2))+((AP34^2)))","v":15.556349186104045},{"$f":"AQ10+AQ24","v":0},{"$f":"SQRT(((AR10^2))+((AR34^2)))","v":15.556349186104045},{"$f":"AS10+AS24","v":3},{"$f":"SQRT(((AT10^2))+((AT34^2)))","v":15.556349186104045},{"$f":"AU10+AU24","v":0},{"$f":"SQRT(((AV10^2))+((AV34^2)))","v":15.556349186104045},{"$f":"AW10+AW24","v":0},{"$f":"SQRT(((AX10^2))+((AX34^2)))","v":16.278820596099706},{"$f":"AY10+AY24","v":0},{"$f":"SQRT(((AZ10^2))+((AZ34^2)))","v":15.556349186104045},{"$f":"BA10+BA24","v":0},{"$f":"SQRT(((BB10^2))+((BB34^2)))","v":15.556349186104045},{"$f":"BC10+BC24","v":11},{"$f":"SQRT(((BD10^2))+((BD34^2)))","v":14.7648230602334},{"$f":"BE10+BE24","v":0},{"$f":"SQRT(((BF10^2))+((BF34^2)))","v":15.556349186104045},{"$f":"BG10+BG24","v":23},{"$f":"SQRT(((BH10^2))+((BH34^2)))","v":12.529964086141668},{"$f":"BI10+BI24","v":0},{"$f":"SQRT(((BJ10^2))+((BJ34^2)))","v":15.556349186104045},{"$f":"BK10+BK24","v":0},{"$f":"SQRT(((BL10^2))+((BL34^2)))","v":15.556349186104045},{"$f":"BM10+BM24","v":0},{"$f":"SQRT(((BN10^2))+((BN34^2)))","v":13.601470508735444},{"$f":"BO10+BO24","v":0},{"$f":"SQRT(((BP10^2))+((BP34^2)))","v":15.556349186104045},{"$f":"BQ10+BQ24","v":0},{"$f":"SQRT(((BR10^2))+((BR34^2)))","v":15.556349186104045},{"$f":"BS10+BS24","v":0},{"$f":"SQRT(((BT10^2))+((BT34^2)))","v":15.556349186104045},{"$f":"BU10+BU24","v":0},{"$f":"SQRT(((BV10^2))+((BV34^2)))","v":15.556349186104045},{"$f":"BW10+BW24","v":3},{"$f":"SQRT(((BX10^2))+((BX34^2)))","v":14.866068747318506},{"$f":"BY10+BY24","v":0},{"$f":"SQRT(((BZ10^2))+((BZ34^2)))","v":14.866068747318506},{"$f":"CA10+CA24","v":10},{"$f":"SQRT(((CB10^2))+((CB34^2)))","v":12.083045973594572},{"$f":"CC10+CC24","v":0},{"$f":"SQRT(((CD10^2))+((CD34^2)))","v":15.556349186104045},{"$f":"CE10+CE24","v":0},{"$f":"SQRT(((CF10^2))+((CF34^2)))","v":15.556349186104045},{"$f":"CG10+CG24","v":0},{"$f":"SQRT(((CH10^2))+((CH34^2)))","v":15.556349186104045},{"$f":"CI10+CI24","v":30},{"$f":"SQRT(((CJ10^2))+((CJ34^2)))","v":34.828149534535996}]
[null,"5 to 17 years",{"$f":"C11+C12+C13+C14+C15+C25+C26+C27+C28+C29","v":0},{"$f":"SQRT((D11^2)+(D12^2)+(D13^2)+(D14^2)+(D15^2)+(D25^2)+(D26^2)+(D27^2)+(D28)+(D29^2))","v":33.166247903554002},{"$f":"E11+E12+E13+E14+E15+E25+E26+E27+E28+E29","v":0},{"$f":"SQRT((F11^2)+(F12^2)+(F13^2)+(F14^2)+(F15^2)+(F25^2)+(F26^2)+(F27^2)+(F28)+(F29^2))","v":33.166247903554002},{"$f":"G11+G12+G13+G14+G15+G25+G26+G27+G28+G29","v":0},{"$f":"SQRT((H11^2)+(H12^2)+(H13^2)+(H14^2)+(H15^2)+(H25^2)+(H26^2)+(H27^2)+(H28)+(H29^2))","v":33.166247903554002},{"$f":"I11+I12+I13+I14+I15+I25+I26+I27+I28+I29","v":262},{"$f":"SQRT((J11^2)+(J12^2)+(J13^2)+(J14^2)+(J15^2)+(J25^2)+(J26^2)+(J27^2)+(J28)+(J29^2))","v":106.3296760081587},{"$f":"K11+K12+K13+K14+K15+K25+K26+K27+K28+K29","v":0},{"$f":"SQRT((L11^2)+(L12^2)+(L13^2)+(L14^2)+(L15^2)+(L25^2)+(L26^2)+(L27^2)+(L28)+(L29^2))","v":33.166247903554002},{"$f":"M11+M12+M13+M14+M15+M25+M26+M27+M28+M29","v":28},{"$f":"SQRT((N11^2)+(N12^2)+(N13^2)+(N14^2)+(N15^2)+(N25^2)+(N26^2)+(N27^2)+(N28)+(N29^2))","v":67.66830868286867},{"$f":"O11+O12+O13+O14+O15+O25+O26+O27+O28+O29","v":0},{"$f":"SQRT((P11^2)+(P12^2)+(P13^2)+(P14^2)+(P15^2)+(P25^2)+(P26^2)+(P27^2)+(P28)+(P29^2))","v":33.166247903554002},{"$f":"Q11+Q12+Q13+Q14+Q15+Q25+Q26+Q27+Q28+Q29","v":6},{"$f":"SQRT((R11^2)+(R12^2)+(R13^2)+(R14^2)+(R15^2)+(R25^2)+(R26^2)+(R27^2)+(R28)+(R29^2))","v":32.557641192199412},{"$f":"S11+S12+S13+S14+S15+S25+S26+S27+S28+S29","v":37},{"$f":"SQRT((T11^2)+(T12^2)+(T13^2)+(T14^2)+(T15^2)+(T25^2)+(T26^2)+(T27^2)+(T28)+(T29^2))","v":44.57577817604534},{"$f":"U11+U12+U13+U14+U15+U25+U26+U27+U28+U29","v":10},{"$f":"SQRT((V11^2)+(V12^2)+(V13^2)+(V14^2)+(V15^2)+(V25^2)+(V26^2)+(V27^2)+(V28)+(V29^2))","v":28.827070610799147},{"$f":"W11+W12+W13+W14+W15+W25+W26+W27+W28+W29","v":0},{"$f":"SQRT((X11^2)+(X12^2)+(X13^2)+(X14^2)+(X15^2)+(X25^2)+(X26^2)+(X27^2)+(X28)+(X29^2))","v":33.166247903554002},{"$f":"Y11+Y12+Y13+Y14+Y15+Y25+Y26+Y27+Y28+Y29","v":0},{"$f":"SQRT((Z11^2)+(Z12^2)+(Z13^2)+(Z14^2)+(Z15^2)+(Z25^2)+(Z26^2)+(Z27^2)+(Z28)+(Z29^2))","v":33.166247903554002},{"$f":"AA11+AA12+AA13+AA14+AA15+AA25+AA26+AA27+AA28+AA29","v":10},{"$f":"SQRT((AB11^2)+(AB12^2)+(AB13^2)+(AB14^2)+(AB15^2)+(AB25^2)+(AB26^2)+(AB27^2)+(AB28)+(AB29^2))","v":30.951575081084322},{"$f":"AC11+AC12+AC13+AC14+AC15+AC25+AC26+AC27+AC28+AC29","v":0},{"$f":"SQRT((AD11^2)+(AD12^2)+(AD13^2)+(AD14^2)+(AD15^2)+(AD25^2)+(AD26^2)+(AD27^2)+(AD28)+(AD29^2))","v":33.166247903554002},{"$f":"AE11+AE12+AE13+AE14+AE15+AE25+AE26+AE27+AE28+AE29","v":0},{"$f":"SQRT((AF11^2)+(AF12^2)+(AF13^2)+(AF14^2)+(AF15^2)+(AF25^2)+(AF26^2)+(AF27^2)+(AF28)+(AF29^2))","v":33.166247903554002},{"$f":"AG11+AG12+AG13+AG14+AG15+AG25+AG26+AG27+AG28+AG29","v":12},{"$f":"SQRT((AH11^2)+(AH12^2)+(AH13^2)+(AH14^2)+(AH15^2)+(AH25^2)+(AH26^2)+(AH27^2)+(AH28)+(AH29^2))","v":29.206163733020468},{"$f":"AI11+AI12+AI13+AI14+AI15+AI25+AI26+AI27+AI28+AI29","v":3},{"$f":"SQRT((AJ11^2)+(AJ12^2)+(AJ13^2)+(AJ14^2)+(AJ15^2)+(AJ25^2)+(AJ26^2)+(AJ27^2)+(AJ28)+(AJ29^2))","v":29.512709126747414},{"$f":"AK11+AK12+AK13+AK14+AK15+AK25+AK26+AK27+AK28+AK29","v":0},{"$f":"SQRT((AL11^2)+(AL12^2)+(AL13^2)+(AL14^2)+(AL15^2)+(AL25^2)+(AL26^2)+(AL27^2)+(AL28)+(AL29^2))","v":33.166247903554002},{"$f":"AM11+AM12+AM13+AM14+AM15+AM25+AM26+AM27+AM28+AM29","v":7},{"$f":"SQRT((AN11^2)+(AN12^2)+(AN13^2)+(AN14^2)+(AN15^2)+(AN25^2)+(AN26^2)+(AN27^2)+(AN28)+(AN29^2))","v":32.848135411313685},{"$f":"AO11+AO12+AO13+AO14+AO15+AO25+AO26+AO27+AO28+AO29","v":0},{"$f":"SQRT((AP11^2)+(AP12^2)+(AP13^2)+(AP14^2)+(AP15^2)+(AP25^2)+(AP26^2)+(AP27^2)+(AP28)+(AP29^2))","v":33.166247903554002},{"$f":"AQ11+AQ12+AQ13+AQ14+AQ15+AQ25+AQ26+AQ27+AQ28+AQ29","v":0},{"$f":"SQRT((AR11^2)+(AR12^2)+(AR13^2)+(AR14^2)+(AR15^2)+(AR25^2)+(AR26^2)+(AR27^2)+(AR28)+(AR29^2))","v":33.166247903554002},{"$f":"AS11+AS12+AS13+AS14+AS15+AS25+AS26+AS27+AS28+AS29","v":5},{"$f":"SQRT((AT11^2)+(AT12^2)+(AT13^2)+(AT14^2)+(AT15^2)+(AT25^2)+(AT26^2)+(AT27^2)+(AT28)+(AT29^2))","v":29.983328701129899},{"$f":"AU11+AU12+AU13+AU14+AU15+AU25+AU26+AU27+AU28+AU29","v":0},{"$f":"SQRT((AV11^2)+(AV12^2)+(AV13^2)+(AV14^2)+(AV15^2)+(AV25^2)+(AV26^2)+(AV27^2)+(AV28)+(AV29^2))","v":33.166247903554002},{"$f":"AW11+AW12+AW13+AW14+AW15+AW25+AW26+AW27+AW28+AW29","v":37},{"$f":"SQRT((AX11^2)+(AX12^2)+(AX13^2)+(AX14^2)+(AX15^2)+(AX25^2)+(AX26^2)+(AX27^2)+(AX28)+(AX29^2))","v":48.45616575834287},{"$f":"AY11+AY12+AY13+AY14+AY15+AY25+AY26+AY27+AY28+AY29","v":0},{"$f":"SQRT((AZ11^2)+(AZ12^2)+(AZ13^2)+(AZ14^2)+(AZ15^2)+(AZ25^2)+(AZ26^2)+(AZ27^2)+(AZ28)+(AZ29^2))","v":33.166247903554002},{"$f":"BA11+BA12+BA13+BA14+BA15+BA25+BA26+BA27+BA28+BA29","v":0},{"$f":"SQRT((BB11^2)+(BB12^2)+(BB13^2)+(BB14^2)+(BB15^2)+(BB25^2)+(BB26^2)+(BB27^2)+(BB28)+(BB29^2))","v":33.166247903554002},{"$f":"BC11+BC12+BC13+BC14+BC15+BC25+BC26+BC27+BC28+BC29","v":18},{"$f":"SQRT((BD11^2)+(BD12^2)+(BD13^2)+(BD14^2)+(BD15^2)+(BD25^2)+(BD26^2)+(BD27^2)+(BD28)+(BD29^2))","v":35.042830935870462},{"$f":"BE11+BE12+BE13+BE14+BE15+BE25+BE26+BE27+BE28+BE29","v":0},{"$f":"SQRT((BF11^2)+(BF12^2)+(BF13^2)+(BF14^2)+(BF15^2)+(BF25^2)+(BF26^2)+(BF27^2)+(BF28)+(BF29^2))","v":33.166247903554002},{"$f":"BG11+BG12+BG13+BG14+BG15+BG25+BG26+BG27+BG28+BG29","v":24},{"$f":"SQRT((BH11^2)+(BH12^2)+(BH13^2)+(BH14^2)+(BH15^2)+(BH25^2)+(BH26^2)+(BH27^2)+(BH28)+(BH29^2))","v":30.740852297878796},{"$f":"BI11+BI12+BI13+BI14+BI15+BI25+BI26+BI27+BI28+BI29","v":0},{"$f":"SQRT((BJ11^2)+(BJ12^2)+(BJ13^2)+(BJ14^2)+(BJ15^2)+(BJ25^2)+(BJ26^2)+(BJ27^2)+(BJ28)+(BJ29^2))","v":33.166247903554002},{"$f":"BK11+BK12+BK13+BK14+BK15+BK25+BK26+BK27+BK28+BK29","v":0},{"$f":"SQRT((BL11^2)+(BL12^2)+(BL13^2)+(BL14^2)+(BL15^2)+(BL25^2)+(BL26^2)+(BL27^2)+(BL28)+(BL29^2))","v":33.166247903554002},{"$f":"BM11+BM12+BM13+BM14+BM15+BM25+BM26+BM27+BM28+BM29","v":0},{"$f":"SQRT((BN11^2)+(BN12^2)+(BN13^2)+(BN14^2)+(BN15^2)+(BN25^2)+(BN26^2)+(BN27^2)+(BN28)+(BN29^2))","v":33.166247903554002},{"$f":"BO11+BO12+BO13+BO14+BO15+BO25+BO26+BO27+BO28+BO29","v":0},{"$f":"SQRT((BP11^2)+(BP12^2)+(BP13^2)+(BP14^2)+(BP15^2)+(BP25^2)+(BP26^2)+(BP27^2)+(BP28)+(BP29^2))","v":33.166247903554002},{"$f":"BQ11+BQ12+BQ13+BQ14+BQ15+BQ25+BQ26+BQ27+BQ28+BQ29","v":0},{"$f":"SQRT((BR11^2)+(BR12^2)+(BR13^2)+(BR14^2)+(BR15^2)+(BR25^2)+(BR26^2)+(BR27^2)+(BR28)+(BR29^2))","v":33.166247903554002},{"$f":"BS11+BS12+BS13+BS14+BS15+BS25+BS26+BS27+BS28+BS29","v":0},{"$f":"SQRT((BT11^2)+(BT12^2)+(BT13^2)+(BT14^2)+(BT15^2)+(BT25^2)+(BT26^2)+(BT27^2)+(BT28)+(BT29^2))","v":33.166247903554002},{"$f":"BU11+BU12+BU13+BU14+BU15+BU25+BU26+BU27+BU28+BU29","v":0},{"$f":"SQRT((BV11^2)+(BV12^2)+(BV13^2)+(BV14^2)+(BV15^2)+(BV25^2)+(BV26^2)+(BV27^2)+(BV28)+(BV29^2))","v":33.166247903554002},{"$f":"BW11+BW12+BW13+BW14+BW15+BW25+BW26+BW27+BW28+BW29","v":11},{"$f":"SQRT((BX11^2)+(BX12^2)+(BX13^2)+(BX14^2)+(BX15^2)+(BX25^2)+(BX26^2)+(BX27^2)+(BX28)+(BX29^2))","v":28.740215726399828},{"$f":"BY11+BY12+BY13+BY14+BY15+BY25+BY26+BY27+BY28+BY29","v":33},{"$f":"SQRT((BZ11^2)+(BZ12^2)+(BZ13^2)+(BZ14^2)+(BZ15^2)+(BZ25^2)+(BZ26^2)+(BZ27^2)+(BZ28)+(BZ29^2))","v":53.009433122794285},{"$f":"CA11+CA12+CA13+CA14+CA15+CA25+CA26+CA27+CA28+CA29","v":35},{"$f":"SQRT((CB11^2)+(CB12^2)+(CB13^2)+(CB14^2)+(CB15^2)+(CB25^2)+(CB26^2)+(CB27^2)+(CB28)+(CB29^2))","v":31.76476034853718},{"$f":"CC11+CC12+CC13+CC14+CC15+CC25+CC26+CC27+CC28+CC29","v":0},{"$f":"SQRT((CD11^2)+(CD12^2)+(CD13^2)+(CD14^2)+(CD15^2)+(CD25^2)+(CD26^2)+(CD27^2)+(CD28)+(CD29^2))","v":33.166247903554002},{"$f":"CE11+CE12+CE13+CE14+CE15+CE25+CE26+CE27+CE28+CE29","v":0},{"$f":"SQRT((CF11^2)+(CF12^2)+(CF13^2)+(CF14^2)+(CF15^2)+(CF25^2)+(CF26^2)+(CF27^2)+(CF28)+(CF29^2))","v":33.166247903554002},{"$f":"CG11+CG12+CG13+CG14+CG15+CG25+CG26+CG27+CG28+CG29","v":0},{"$f":"SQRT((CH11^2)+(CH12^2)+(CH13^2)+(CH14^2)+(CH15^2)+(CH25^2)+(CH26^2)+(CH27^2)+(CH28)+(CH29^2))","v":33.166247903554002},{"$f":"CI11+CI12+CI13+CI14+CI15+CI25+CI26+CI27+CI28+CI29","v":92},{"$f":"SQRT((CJ11^2)+(CJ12^2)+(CJ13^2)+(CJ14^2)+(CJ15^2)+(CJ25^2)+(CJ26^2)+(CJ27^2)+(CJ28)+(CJ29^2))","v":51.759057178430133}]
[null,"18 to 64 years",{"$f":"C16+C17+C18+C19+C20+C30+C31+C32+C33+C34","v":0},{"$f":"SQRT((D16^2)+(D17^2)+(D18^2)+(D19^2)+(D20^2)+(D30^2)+(D31^2)+(D32^2)+(D33^2)+(D34^2))","v":34.785054261852174},{"$f":"E16+E17+E18+E19+E20+E30+E31+E32+E33+E34","v":0},{"$f":"SQRT((F16^2)+(F17^2)+(F18^2)+(F19^2)+(F20^2)+(F30^2)+(F31^2)+(F32^2)+(F33^2)+(F34^2))","v":34.785054261852174},{"$f":"G16+G17+G18+G19+G20+G30+G31+G32+G33+G34","v":0},{"$f":"SQRT((H16^2)+(H17^2)+(H18^2)+(H19^2)+(H20^2)+(H30^2)+(H31^2)+(H32^2)+(H33^2)+(H34^2))","v":34.785054261852174},{"$f":"I16+I17+I18+I19+I20+I30+I31+I32+I33+I34","v":870},{"$f":"SQRT((J16^2)+(J17^2)+(J18^2)+(J19^2)+(J20^2)+(J30^2)+(J31^2)+(J32^2)+(J33^2)+(J34^2))","v":195.93621411061304},{"$f":"K16+K17+K18+K19+K20+K30+K31+K32+K33+K34","v":0},{"$f":"SQRT((L16^2)+(L17^2)+(L18^2)+(L19^2)+(L20^2)+(L30^2)+(L31^2)+(L32^2)+(L33^2)+(L34^2))","v":34.785054261852174},{"$f":"M16+M17+M18+M19+M20+M30+M31+M32+M33+M34","v":51},{"$f":"SQRT((N16^2)+(N17^2)+(N18^2)+(N19^2)+(N20^2)+(N30^2)+(N31^2)+(N32^2)+(N33^2)+(N34^2))","v":66.850579653433073},{"$f":"O16+O17+O18+O19+O20+O30+O31+O32+O33+O34","v":0},{"$f":"SQRT((P16^2)+(P17^2)+(P18^2)+(P19^2)+(P20^2)+(P30^2)+(P31^2)+(P32^2)+(P33^2)+(P34^2))","v":34.785054261852174},{"$f":"Q16+Q17+Q18+Q19+Q20+Q30+Q31+Q32+Q33+Q34","v":24},{"$f":"SQRT((R16^2)+(R17^2)+(R18^2)+(R19^2)+(R20^2)+(R30^2)+(R31^2)+(R32^2)+(R33^2)+(R34^2))","v":27.694764848252458},{"$f":"S16+S17+S18+S19+S20+S30+S31+S32+S33+S34","v":124},{"$f":"SQRT((T16^2)+(T17^2)+(T18^2)+(T19^2)+(T20^2)+(T30^2)+(T31^2)+(T32^2)+(T33^2)+(T34^2))","v":52.478567053607705},{"$f":"U16+U17+U18+U19+U20+U30+U31+U32+U33+U34","v":55},{"$f":"SQRT((V16^2)+(V17^2)+(V18^2)+(V19^2)+(V20^2)+(V30^2)+(V31^2)+(V32^2)+(V33^2)+(V34^2))","v":27.367864366808018},{"$f":"W16+W17+W18+W19+W20+W30+W31+W32+W33+W34","v":0},{"$f":"SQRT((X16^2)+(X17^2)+(X18^2)+(X19^2)+(X20^2)+(X30^2)+(X31^2)+(X32^2)+(X33^2)+(X34^2))","v":34.785054261852174},{"$f":"Y16+Y17+Y18+Y19+Y20+Y30+Y31+Y32+Y33+Y34","v":0},{"$f":"SQRT((Z16^2)+(Z17^2)+(Z18^2)+(Z19^2)+(Z20^2)+(Z30^2)+(Z31^2)+(Z32^2)+(Z33^2)+(Z34^2))","v":34.785054261852174},{"$f":"AA16+AA17+AA18+AA19+AA20+AA30+AA31+AA32+AA33+AA34","v":41},{"$f":"SQRT((AB16^2)+(AB17^2)+(AB18^2)+(AB19^2)+(AB20^2)+(AB30^2)+(AB31^2)+(AB32^2)+(AB33^2)+(AB34^2))","v":30.838287890218549},{"$f":"AC16+AC17+AC18+AC19+AC20+AC30+AC31+AC32+AC33+AC34","v":0},{"$f":"SQRT((AD16^2)+(AD17^2)+(AD18^2)+(AD19^2)+(AD20^2)+(AD30^2)+(AD31^2)+(AD32^2)+(AD33^2)+(AD34^2))","v":34.785054261852174},{"$f":"AE16+AE17+AE18+AE19+AE20+AE30+AE31+AE32+AE33+AE34","v":6},{"$f":"SQRT((AF16^2)+(AF17^2)+(AF18^2)+(AF19^2)+(AF20^2)+(AF30^2)+(AF31^2)+(AF32^2)+(AF33^2)+(AF34^2))","v":32.078029864690883},{"$f":"AG16+AG17+AG18+AG19+AG20+AG30+AG31+AG32+AG33+AG34","v":22},{"$f":"SQRT((AH16^2)+(AH17^2)+(AH18^2)+(AH19^2)+(AH20^2)+(AH30^2)+(AH31^2)+(AH32^2)+(AH33^2)+(AH34^2))","v":22.912878474779198},{"$f":"AI16+AI17+AI18+AI19+AI20+AI30+AI31+AI32+AI33+AI34","v":20},{"$f":"SQRT((AJ16^2)+(AJ17^2)+(AJ18^2)+(AJ19^2)+(AJ20^2)+(AJ30^2)+(AJ31^2)+(AJ32^2)+(AJ33^2)+(AJ34^2))","v":27.928480087537881},{"$f":"AK16+AK17+AK18+AK19+AK20+AK30+AK31+AK32+AK33+AK34","v":0},{"$f":"SQRT((AL16^2)+(AL17^2)+(AL18^2)+(AL19^2)+(AL20^2)+(AL30^2)+(AL31^2)+(AL32^2)+(AL33^2)+(AL34^2))","v":34.785054261852174},{"$f":"AM16+AM17+AM18+AM19+AM20+AM30+AM31+AM32+AM33+AM34","v":44},{"$f":"SQRT((AN16^2)+(AN17^2)+(AN18^2)+(AN19^2)+(AN20^2)+(AN30^2)+(AN31^2)+(AN32^2)+(AN33^2)+(AN34^2))","v":40.484564959994323},{"$f":"AO16+AO17+AO18+AO19+AO20+AO30+AO31+AO32+AO33+AO34","v":11},{"$f":"SQRT((AP16^2)+(AP17^2)+(AP18^2)+(AP19^2)+(AP20^2)+(AP30^2)+(AP31^2)+(AP32^2)+(AP33^2)+(AP34^2))","v":30.789608636681304},{"$f":"AQ16+AQ17+AQ18+AQ19+AQ20+AQ30+AQ31+AQ32+AQ33+AQ34","v":0},{"$f":"SQRT((AR16^2)+(AR17^2)+(AR18^2)+(AR19^2)+(AR20^2)+(AR30^2)+(AR31^2)+(AR32^2)+(AR33^2)+(AR34^2))","v":34.785054261852174},{"$f":"AS16+AS17+AS18+AS19+AS20+AS30+AS31+AS32+AS33+AS34","v":10},{"$f":"SQRT((AT16^2)+(AT17^2)+(AT18^2)+(AT19^2)+(AT20^2)+(AT30^2)+(AT31^2)+(AT32^2)+(AT33^2)+(AT34^2))","v":32.140317359976393},{"$f":"AU16+AU17+AU18+AU19+AU20+AU30+AU31+AU32+AU33+AU34","v":0},{"$f":"SQRT((AV16^2)+(AV17^2)+(AV18^2)+(AV19^2)+(AV20^2)+(AV30^2)+(AV31^2)+(AV32^2)+(AV33^2)+(AV34^2))","v":34.785054261852174},{"$f":"AW16+AW17+AW18+AW19+AW20+AW30+AW31+AW32+AW33+AW34","v":161},{"$f":"SQRT((AX16^2)+(AX17^2)+(AX18^2)+(AX19^2)+(AX20^2)+(AX30^2)+(AX31^2)+(AX32^2)+(AX33^2)+(AX34^2))","v":82.431789984204514},{"$f":"AY16+AY17+AY18+AY19+AY20+AY30+AY31+AY32+AY33+AY34","v":0},{"$f":"SQRT((AZ16^2)+(AZ17^2)+(AZ18^2)+(AZ19^2)+(AZ20^2)+(AZ30^2)+(AZ31^2)+(AZ32^2)+(AZ33^2)+(AZ34^2))","v":34.785054261852174},{"$f":"BA16+BA17+BA18+BA19+BA20+BA30+BA31+BA32+BA33+BA34","v":0},{"$f":"SQRT((BB16^2)+(BB17^2)+(BB18^2)+(BB19^2)+(BB20^2)+(BB30^2)+(BB31^2)+(BB32^2)+(BB33^2)+(BB34^2))","v":34.785054261852174},{"$f":"BC16+BC17+BC18+BC19+BC20+BC30+BC31+BC32+BC33+BC34","v":70},{"$f":"SQRT((BD16^2)+(BD17^2)+(BD18^2)+(BD19^2)+(BD20^2)+(BD30^2)+(BD31^2)+(BD32^2)+(BD33^2)+(BD34^2))","v":34.525353003264136},{"$f":"BE16+BE17+BE18+BE19+BE20+BE30+BE31+BE32+BE33+BE34","v":0},{"$f":"SQRT((BF16^2)+(BF17^2)+(BF18^2)+(BF19^2)+(BF20^2)+(BF30^2)+(BF31^2)+(BF32^2)+(BF33^2)+(BF34^2))","v":34.785054261852174},{"$f":"BG16+BG17+BG18+BG19+BG20+BG30+BG31+BG32+BG33+BG34","v":153},{"$f":"SQRT((BH16^2)+(BH17^2)+(BH18^2)+(BH19^2)+(BH20^2)+(BH30^2)+(BH31^2)+(BH32^2)+(BH33^2)+(BH34^2))","v":59.607046563304912},{"$f":"BI16+BI17+BI18+BI19+BI20+BI30+BI31+BI32+BI33+BI34","v":10},{"$f":"SQRT((BJ16^2)+(BJ17^2)+(BJ18^2)+(BJ19^2)+(BJ20^2)+(BJ30^2)+(BJ31^2)+(BJ32^2)+(BJ33^2)+(BJ34^2))","v":34.785054261852174},{"$f":"BK16+BK17+BK18+BK19+BK20+BK30+BK31+BK32+BK33+BK34","v":7},{"$f":"SQRT((BL16^2)+(BL17^2)+(BL18^2)+(BL19^2)+(BL20^2)+(BL30^2)+(BL31^2)+(BL32^2)+(BL33^2)+(BL34^2))","v":32.878564445547191},{"$f":"BM16+BM17+BM18+BM19+BM20+BM30+BM31+BM32+BM33+BM34","v":46},{"$f":"SQRT((BN16^2)+(BN17^2)+(BN18^2)+(BN19^2)+(BN20^2)+(BN30^2)+(BN31^2)+(BN32^2)+(BN33^2)+(BN34^2))","v":43.439613257946945},{"$f":"BO16+BO17+BO18+BO19+BO20+BO30+BO31+BO32+BO33+BO34","v":9},{"$f":"SQRT((BP16^2)+(BP17^2)+(BP18^2)+(BP19^2)+(BP20^2)+(BP30^2)+(BP31^2)+(BP32^2)+(BP33^2)+(BP34^2))","v":27.730849247724095},{"$f":"BQ16+BQ17+BQ18+BQ19+BQ20+BQ30+BQ31+BQ32+BQ33+BQ34","v":11},{"$f":"SQRT((BR16^2)+(BR17^2)+(BR18^2)+(BR19^2)+(BR20^2)+(BR30^2)+(BR31^2)+(BR32^2)+(BR33^2)+(BR34^2))","v":40.80441152620633},{"$f":"BS16+BS17+BS18+BS19+BS20+BS30+BS31+BS32+BS33+BS34","v":0},{"$f":"SQRT((BT16^2)+(BT17^2)+(BT18^2)+(BT19^2)+(BT20^2)+(BT30^2)+(BT31^2)+(BT32^2)+(BT33^2)+(BT34^2))","v":34.785054261852174},{"$f":"BU16+BU17+BU18+BU19+BU20+BU30+BU31+BU32+BU33+BU34","v":11},{"$f":"SQRT((BV16^2)+(BV17^2)+(BV18^2)+(BV19^2)+(BV20^2)+(BV30^2)+(BV31^2)+(BV32^2)+(BV33^2)+(BV34^2))","v":26.90724809414742},{"$f":"BW16+BW17+BW18+BW19+BW20+BW30+BW31+BW32+BW33+BW34","v":43},{"$f":"SQRT((BX16^2)+(BX17^2)+(BX18^2)+(BX19^2)+(BX20^2)+(BX30^2)+(BX31^2)+(BX32^2)+(BX33^2)+(BX34^2))","v":23.043437243605826},{"$f":"BY16+BY17+BY18+BY19+BY20+BY30+BY31+BY32+BY33+BY34","v":61},{"$f":"SQRT((BZ16^2)+(BZ17^2)+(BZ18^2)+(BZ19^2)+(BZ20^2)+(BZ30^2)+(BZ31^2)+(BZ32^2)+(BZ33^2)+(BZ34^2))","v":42.743420546325019},{"$f":"CA16+CA17+CA18+CA19+CA20+CA30+CA31+CA32+CA33+CA34","v":140},{"$f":"SQRT((CB16^2)+(CB17^2)+(CB18^2)+(CB19^2)+(CB20^2)+(CB30^2)+(CB31^2)+(CB32^2)+(CB33^2)+(CB34^2))","v":47.455242070818692},{"$f":"CC16+CC17+CC18+CC19+CC20+CC30+CC31+CC32+CC33+CC34","v":0},{"$f":"SQRT((CD16^2)+(CD17^2)+(CD18^2)+(CD19^2)+(CD20^2)+(CD30^2)+(CD31^2)+(CD32^2)+(CD33^2)+(CD34^2))","v":34.785054261852174},{"$f":"CE16+CE17+CE18+CE19+CE20+CE30+CE31+CE32+CE33+CE34","v":0},{"$f":"SQRT((CF16^2)+(CF17^2)+(CF18^2)+(CF19^2)+(CF20^2)+(CF30^2)+(CF31^2)+(CF32^2)+(CF33^2)+(CF34^2))","v":34.785054261852174},{"$f":"CG16+CG17+CG18+CG19+CG20+CG30+CG31+CG32+CG33+CG34","v":0},{"$f":"SQRT((CH16^2)+(CH17^2)+(CH18^2)+(CH19^2)+(CH20^2)+(CH30^2)+(CH31^2)+(CH32^2)+(CH33^2)+(CH34^2))","v":34.785054261852174},{"$f":"CI16+CI17+CI18+CI19+CI20+CI30+CI31+CI32+CI33+CI34","v":172},{"$f":"SQRT((CJ16^2)+(CJ17^2)+(CJ18^2)+(CJ19^2)+(CJ20^2)+(CJ30^2)+(CJ31^2)+(CJ32^2)+(CJ33^2)+(CJ34^2))","v":57.288742349610018}]
[null,"65 to 74 years",{"$f":"C21+C35","v":0},{"$f":"SQRT((D21^2)+(D35^2))","v":15.556349186104045},{"$f":"E21+E35","v":0},{"$f":"SQRT((F21^2)+(F35^2))","v":15.556349186104045},{"$f":"G21+G35","v":0},{"$f":"SQRT((H21^2)+(H35^2))","v":15.556349186104045},{"$f":"I21+I35","v":134},{"$f":"SQRT((J21^2)+(J35^2))","v":67.119296778199342},{"$f":"K21+K35","v":0},{"$f":"SQRT((L21^2)+(L35^2))","v":15.556349186104045},{"$f":"M21+M35","v":2},{"$f":"SQRT((N21^2)+(N35^2))","v":11.401754250991379},{"$f":"O21+O35","v":0},{"$f":"SQRT((P21^2)+(P35^2))","v":15.556349186104045},{"$f":"Q21+Q35","v":5},{"$f":"SQRT((R21^2)+(R35^2))","v":4.4721359549995796},{"$f":"S21+S35","v":18},{"$f":"SQRT((T21^2)+(T35^2))","v":17.464249196572979},{"$f":"U21+U35","v":3},{"$f":"SQRT((V21^2)+(V35^2))","v":11.401754250991379},{"$f":"W21+W35","v":0},{"$f":"SQRT((X21^2)+(X35^2))","v":15.556349186104045},{"$f":"Y21+Y35","v":0},{"$f":"SQRT((Z21^2)+(Z35^2))","v":15.556349186104045},{"$f":"AA21+AA35","v":11},{"$f":"SQRT((AB21^2)+(AB35^2))","v":14.212670403551895},{"$f":"AC21+AC35","v":0},{"$f":"SQRT((AD21^2)+(AD35^2))","v":15.556349186104045},{"$f":"AE21+AE35","v":1},{"$f":"SQRT((AF21^2)+(AF35^2))","v":11.401754250991379},{"$f":"AG21+AG35","v":2},{"$f":"SQRT((AH21^2)+(AH35^2))","v":4.2426406871192848},{"$f":"AI21+AI35","v":10},{"$f":"SQRT((AJ21^2)+(AJ35^2))","v":10.816653826391969},{"$f":"AK21+AK35","v":0},{"$f":"SQRT((AL21^2)+(AL35^2))","v":15.556349186104045},{"$f":"AM21+AM35","v":20},{"$f":"SQRT((AN21^2)+(AN35^2))","v":20.615528128088304},{"$f":"AO21+AO35","v":0},{"$f":"SQRT((AP21^2)+(AP35^2))","v":15.556349186104045},{"$f":"AQ21+AQ35","v":0},{"$f":"SQRT((AR21^2)+(AR35^2))","v":15.556349186104045},{"$f":"AS21+AS35","v":3},{"$f":"SQRT((AT21^2)+(AT35^2))","v":11.704699910719626},{"$f":"AU21+AU35","v":0},{"$f":"SQRT((AV21^2)+(AV35^2))","v":15.556349186104045},{"$f":"AW21+AW35","v":8},{"$f":"SQRT((AX21^2)+(AX35^2))","v":17.029386365926403},{"$f":"AY21+AY35","v":0},{"$f":"SQRT((AZ21^2)+(AZ35^2))","v":15.556349186104045},{"$f":"BA21+BA35","v":0},{"$f":"SQRT((BB21^2)+(BB35^2))","v":15.556349186104045},{"$f":"BC21+BC35","v":6},{"$f":"SQRT((BD21^2)+(BD35^2))","v":7.0710678118654755},{"$f":"BE21+BE35","v":0},{"$f":"SQRT((BF21^2)+(BF35^2))","v":15.556349186104045},{"$f":"BG21+BG35","v":15},{"$f":"SQRT((BH21^2)+(BH35^2))","v":10.816653826391969},{"$f":"BI21+BI35","v":0},{"$f":"SQRT((BJ21^2)+(BJ35^2))","v":15.556349186104045},{"$f":"BK21+BK35","v":0},{"$f":"SQRT((BL21^2)+(BL35^2))","v":15.556349186104045},{"$f":"BM21+BM35","v":0},{"$f":"SQRT((BN21^2)+(BN35^2))","v":15.556349186104045},{"$f":"BO21+BO35","v":0},{"$f":"SQRT((BP21^2)+(BP35^2))","v":15.556349186104045},{"$f":"BQ21+BQ35","v":0},{"$f":"SQRT((BR21^2)+(BR35^2))","v":15.556349186104045},{"$f":"BS21+BS35","v":0},{"$f":"SQRT((BT21^2)+(BT35^2))","v":15.556349186104045},{"$f":"BU21+BU35","v":3},{"$f":"SQRT((BV21^2)+(BV35^2))","v":3.6055512754639891},{"$f":"BW21+BW35","v":12},{"$f":"SQRT((BX21^2)+(BX35^2))","v":7.810249675906654},{"$f":"BY21+BY35","v":17},{"$f":"SQRT((BZ21^2)+(BZ35^2))","v":17.720045146669349},{"$f":"CA21+CA35","v":12},{"$f":"SQRT((CB21^2)+(CB35^2))","v":7.810249675906654},{"$f":"CC21+CC35","v":0},{"$f":"SQRT((CD21^2)+(CD35^2))","v":15.556349186104045},{"$f":"CE21+CE35","v":0},{"$f":"SQRT((CF21^2)+(CF35^2))","v":15.556349186104045},{"$f":"CG21+CG35","v":0},{"$f":"SQRT((CH21^2)+(CH35^2))","v":15.556349186104045},{"$f":"CI21+CI35","v":20},{"$f":"SQRT((CJ21^2)+(CJ35^2))","v":16.278820596099706}]
[null,"75 years and over",{"$f":"C22+C36","v":0},{"$f":"SQRT((D22^2)+(D36^2))","v":15.556349186104045},{"$f":"E22+E36","v":0},{"$f":"SQRT((F22^2)+(F36^2))","v":15.556349186104045},{"$f":"G22+G36","v":0},{"$f":"SQRT((H22^2)+(H36^2))","v":15.556349186104045},{"$f":"I22+I36","v":183},{"$f":"SQRT((J22^2)+(J36^2))","v":76.367532368147138},{"$f":"K22+K36","v":0},{"$f":"SQRT((L22^2)+(L36^2))","v":15.556349186104045},{"$f":"M22+M36","v":2},{"$f":"SQRT((N22^2)+(N36^2))","v":11.401754250991379},{"$f":"O22+O36","v":0},{"$f":"SQRT((P22^2)+(P36^2))","v":15.556349186104045},{"$f":"Q22+Q36","v":2},{"$f":"SQRT((R22^2)+(R36^2))","v":11.704699910719626},{"$f":"S22+S36","v":15},{"$f":"SQRT((T22^2)+(T36^2))","v":10.816653826391969},{"$f":"U22+U36","v":10},{"$f":"SQRT((V22^2)+(V36^2))","v":8.0622577482985491},{"$f":"W22+W36","v":0},{"$f":"SQRT((X22^2)+(X36^2))","v":15.556349186104045},{"$f":"Y22+Y36","v":0},{"$f":"SQRT((Z22^2)+(Z36^2))","v":15.556349186104045},{"$f":"AA22+AA36","v":5},{"$f":"SQRT((AB22^2)+(AB36^2))","v":12.529964086141668},{"$f":"AC22+AC36","v":0},{"$f":"SQRT((AD22^2)+(AD36^2))","v":15.556349186104045},{"$f":"AE22+AE36","v":0},{"$f":"SQRT((AF22^2)+(AF36^2))","v":15.556349186104045},{"$f":"AG22+AG36","v":4},{"$f":"SQRT((AH22^2)+(AH36^2))","v":11.704699910719626},{"$f":"AI22+AI36","v":3},{"$f":"SQRT((AJ22^2)+(AJ36^2))","v":12.083045973594572},{"$f":"AK22+AK36","v":0},{"$f":"SQRT((AL22^2)+(AL36^2))","v":15.556349186104045},{"$f":"AM22+AM36","v":29},{"$f":"SQRT((AN22^2)+(AN36^2))","v":25},{"$f":"AO22+AO36","v":0},{"$f":"SQRT((AP22^2)+(AP36^2))","v":15.556349186104045},{"$f":"AQ22+AQ36","v":0},{"$f":"SQRT((AR22^2)+(AR36^2))","v":15.556349186104045},{"$f":"AS22+AS36","v":12},{"$f":"SQRT((AT22^2)+(AT36^2))","v":10.63014581273465},{"$f":"AU22+AU36","v":0},{"$f":"SQRT((AV22^2)+(AV36^2))","v":15.556349186104045},{"$f":"AW22+AW36","v":35},{"$f":"SQRT((AX22^2)+(AX36^2))","v":24.596747752497688},{"$f":"AY22+AY36","v":0},{"$f":"SQRT((AZ22^2)+(AZ36^2))","v":15.556349186104045},{"$f":"BA22+BA36","v":0},{"$f":"SQRT((BB22^2)+(BB36^2))","v":15.556349186104045},{"$f":"BC22+BC36","v":0},{"$f":"SQRT((BD22^2)+(BD36^2))","v":15.556349186104045},{"$f":"BE22+BE36","v":0},{"$f":"SQRT((BF22^2)+(BF36^2))","v":15.556349186104045},{"$f":"BG22+BG36","v":19},{"$f":"SQRT((BH22^2)+(BH36^2))","v":19.104973174542799},{"$f":"BI22+BI36","v":0},{"$f":"SQRT((BJ22^2)+(BJ36^2))","v":15.556349186104045},{"$f":"BK22+BK36","v":0},{"$f":"SQRT((BL22^2)+(BL36^2))","v":15.556349186104045},{"$f":"BM22+BM36","v":11},{"$f":"SQRT((BN22^2)+(BN36^2))","v":19.416487838947599},{"$f":"BO22+BO36","v":0},{"$f":"SQRT((BP22^2)+(BP36^2))","v":15.556349186104045},{"$f":"BQ22+BQ36","v":0},{"$f":"SQRT((BR22^2)+(BR36^2))","v":15.556349186104045},{"$f":"BS22+BS36","v":0},{"$f":"SQRT((BT22^2)+(BT36^2))","v":15.556349186104045},{"$f":"BU22+BU36","v":1},{"$f":"SQRT((BV22^2)+(BV36^2))","v":11.401754250991379},{"$f":"BW22+BW36","v":11},{"$f":"SQRT((BX22^2)+(BX36^2))","v":11.401754250991379},{"$f":"BY22+BY36","v":3},{"$f":"SQRT((BZ22^2)+(BZ36^2))","v":11.704699910719626},{"$f":"CA22+CA36","v":14},{"$f":"SQRT((CB22^2)+(CB36^2))","v":13},{"$f":"CC22+CC36","v":0},{"$f":"SQRT((CD22^2)+(CD36^2))","v":15.556349186104045},{"$f":"CE22+CE36","v":0},{"$f":"SQRT((CF22^2)+(CF36^2))","v":15.556349186104045},{"$f":"CG22+CG36","v":0},{"$f":"SQRT((CH22^2)+(CH36^2))","v":15.556349186104045},{"$f":"CI22+CI36","v":31},{"$f":"SQRT((CJ22^2)+(CJ36^2))","v":23.409399821439251}]
[null," Income in the past 12 months at or above poverty level ",{"$f":"C37","v":0},11,0,11,0,11,6700,417,0,11,689,139,0,11,287,85,1686,190,552,116,0,11,{"$f":"Y37","v":0},11,839,139,0,11,2,6,264,60,169,48,0,11,2498,57,{"$f":"AO37","v":2},6,0,11,817,126,0,11,2915,145,0,11,0,11,1221,100,8,12,2056,241,0,11,4,8,683,109,356,67,0,11,0,11,392,64,522,138,743,140,419,86,0,11,0,11,26,16,1857,202]
[null,"Under 5 years",{"$f":"C39+C53","v":0},{"$f":"SQRT(((D39))^2+((D53))^2)","v":15.556349186104045},{"$f":"E39+E53","v":0},{"$f":"SQRT(((F39))^2+((F53))^2)","v":15.556349186104045},{"$f":"G39+G53","v":0},{"$f":"SQRT(((H39))^2+((H53))^2)","v":15.556349186104045},{"$f":"I39+I53","v":326},{"$f":"SQRT(((J39))^2+((J53))^2)","v":94.794514609232536},{"$f":"K39+K53","v":0},{"$f":"SQRT(((L39))^2+((L53))^2)","v":15.556349186104045},{"$f":"M39+M53","v":29},{"$f":"SQRT(((N39))^2+((N53))^2)","v":20.808652046684813},{"$f":"O39+O53","v":0},{"$f":"SQRT(((P39))^2+((P53))^2)","v":15.556349186104045},{"$f":"Q39+Q53","v":6},{"$f":"SQRT(((R39))^2+((R53))^2)","v":7.2111025509279782},{"$f":"S39+S53","v":27},{"$f":"SQRT(((T39))^2+((T53))^2)","v":20.248456731316587},{"$f":"U39+U53","v":4},{"$f":"SQRT(((V39))^2+((V53))^2)","v":12.529964086141668},{"$f":"W39+W53","v":0},{"$f":"SQRT(((X39))^2+((X53))^2)","v":15.556349186104045},{"$f":"Y39+Y53","v":0},{"$f":"SQRT(((Z39))^2+((Z53))^2)","v":15.556349186104045},{"$f":"AA39+AA53","v":33},{"$f":"SQRT(((AB39))^2+((AB53))^2)","v":21.931712199461309},{"$f":"AC39+AC53","v":0},{"$f":"SQRT(((AD39))^2+((AD53))^2)","v":15.556349186104045},{"$f":"AE39+AE53","v":0},{"$f":"SQRT(((AF39))^2+((AF53))^2)","v":15.556349186104045},{"$f":"AG39+AG53","v":7},{"$f":"SQRT(((AH39))^2+((AH53))^2)","v":7.0710678118654755},{"$f":"AI39+AI53","v":0},{"$f":"SQRT(((AJ39))^2+((AJ53))^2)","v":15.556349186104045},{"$f":"AK39+AK53","v":0},{"$f":"SQRT(((AL39))^2+((AL53))^2)","v":15.556349186104045},{"$f":"AM39+AM53","v":48},{"$f":"SQRT(((AN39))^2+((AN53))^2)","v":39.560080889704963},{"$f":"AO39+AO53","v":0},{"$f":"SQRT(((AP39))^2+((AP53))^2)","v":15.556349186104045},{"$f":"AQ39+AQ53","v":0},{"$f":"SQRT(((AR39))^2+((AR53))^2)","v":15.556349186104045},{"$f":"AS39+AS53","v":39},{"$f":"SQRT(((AT39))^2+((AT53))^2)","v":22.561028345356956},{"$f":"AU39+AU53","v":0},{"$f":"SQRT(((AV39))^2+((AV53))^2)","v":15.556349186104045},{"$f":"AW39+AW53","v":150},{"$f":"SQRT(((AX39))^2+((AX53))^2)","v":88.814413244698073},{"$f":"AY39+AY53","v":0},{"$f":"SQRT(((AZ39))^2+((AZ53))^2)","v":15.556349186104045},{"$f":"BA39+BA53","v":0},{"$f":"SQRT(((BB39))^2+((BB53))^2)","v":15.556349186104045},{"$f":"BC39+BC53","v":30},{"$f":"SQRT(((BD39))^2+((BD53))^2)","v":15.620499351813308},{"$f":"BE39+BE53","v":0},{"$f":"SQRT(((BF39))^2+((BF53))^2)","v":15.556349186104045},{"$f":"BG39+BG53","v":149},{"$f":"SQRT(((BH39))^2+((BH53))^2)","v":53.413481444294568},{"$f":"BI39+BI53","v":0},{"$f":"SQRT(((BJ39))^2+((BJ53))^2)","v":15.556349186104045},{"$f":"BK39+BK53","v":0},{"$f":"SQRT(((BL39))^2+((BL53))^2)","v":15.556349186104045},{"$f":"BM39+BM53","v":0},{"$f":"SQRT(((BN39))^2+((BN53))^2)","v":15.556349186104045},{"$f":"BO39+BO53","v":16},{"$f":"SQRT(((BP39))^2+((BP53))^2)","v":12.649110640673518},{"$f":"BQ39+BQ53","v":0},{"$f":"SQRT(((BR39))^2+((BR53))^2)","v":15.556349186104045},{"$f":"BS39+BS53","v":0},{"$f":"SQRT(((BT39))^2+((BT53))^2)","v":15.556349186104045},{"$f":"BU39+BU53","v":16},{"$f":"SQRT(((BV39))^2+((BV53))^2)","v":16.15549442140351},{"$f":"BW39+BW53","v":33},{"$f":"SQRT(((BX39))^2+((BX53))^2)","v":25.238858928247925},{"$f":"BY39+BY53","v":32},{"$f":"SQRT(((BZ39))^2+((BZ53))^2)","v":28.284271247461902},{"$f":"CA39+CA53","v":4},{"$f":"SQRT(((CB39))^2+((CB53))^2)","v":5.6568542494923806},{"$f":"CC39+CC53","v":0},{"$f":"SQRT(((CD39))^2+((CD53))^2)","v":15.556349186104045},{"$f":"CE39+CE53","v":0},{"$f":"SQRT(((CF39))^2+((CF53))^2)","v":15.556349186104045},{"$f":"CG39+CG53","v":0},{"$f":"SQRT(((CH39))^2+((CH53))^2)","v":15.556349186104045},{"$f":"CI39+CI53","v":114},{"$f":"SQRT(((CJ39))^2+((CJ53))^2)","v":50.219518117958877}]
[null,"5 to 17 years",{"$f":"((C40)+(C41)+(C42)+(C43)+(C44)+(C54)+(C55)+(C56)+(C57)+(C58))","v":0},{"$f":"SQRT((D40^2)+(D41^2)+(D42^2)+(D43^2)+(D44^2)+(D54^2)+(D55^2)+(D56^2)+(D57^2)+(D58^2))","v":34.785054261852174},{"$f":"((E40)+(E41)+(E42)+(E43)+(E44)+(E54)+(E55)+(E56)+(E57)+(E58))","v":0},{"$f":"SQRT((F40^2)+(F41^2)+(F42^2)+(F43^2)+(F44^2)+(F54^2)+(F55^2)+(F56^2)+(F57^2)+(F58^2))","v":34.785054261852174},{"$f":"((G40)+(G41)+(G42)+(G43)+(G44)+(G54)+(G55)+(G56)+(G57)+(G58))","v":0},{"$f":"SQRT((H40^2)+(H41^2)+(H42^2)+(H43^2)+(H44^2)+(H54^2)+(H55^2)+(H56^2)+(H57^2)+(H58^2))","v":34.785054261852174},{"$f":"((I40)+(I41)+(I42)+(I43)+(I44)+(I54)+(I55)+(I56)+(I57)+(I58))","v":707},{"$f":"SQRT((J40^2)+(J41^2)+(J42^2)+(J43^2)+(J44^2)+(J54^2)+(J55^2)+(J56^2)+(J57^2)+(J58^2))","v":164.54482671904336},{"$f":"((K40)+(K41)+(K42)+(K43)+(K44)+(K54)+(K55)+(K56)+(K57)+(K58))","v":0},{"$f":"SQRT((L40^2)+(L41^2)+(L42^2)+(L43^2)+(L44^2)+(L54^2)+(L55^2)+(L56^2)+(L57^2)+(L58^2))","v":34.785054261852174},{"$f":"((M40)+(M41)+(M42)+(M43)+(M44)+(M54)+(M55)+(M56)+(M57)+(M58))","v":83},{"$f":"SQRT((N40^2)+(N41^2)+(N42^2)+(N43^2)+(N44^2)+(N54^2)+(N55^2)+(N56^2)+(N57^2)+(N58^2))","v":50.852728540364481},{"$f":"((O40)+(O41)+(O42)+(O43)+(O44)+(O54)+(O55)+(O56)+(O57)+(O58))","v":0},{"$f":"SQRT((P40^2)+(P41^2)+(P42^2)+(P43^2)+(P44^2)+(P54^2)+(P55^2)+(P56^2)+(P57^2)+(P58^2))","v":34.785054261852174},{"$f":"((Q40)+(Q41)+(Q42)+(Q43)+(Q44)+(Q54)+(Q55)+(Q56)+(Q57)+(Q58))","v":19},{"$f":"SQRT((R40^2)+(R41^2)+(R42^2)+(R43^2)+(R44^2)+(R54^2)+(R55^2)+(R56^2)+(R57^2)+(R58^2))","v":29.171904291629644},{"$f":"((S40)+(S41)+(S42)+(S43)+(S44)+(S54)+(S55)+(S56)+(S57)+(S58))","v":209},{"$f":"SQRT((T40^2)+(T41^2)+(T42^2)+(T43^2)+(T44^2)+(T54^2)+(T55^2)+(T56^2)+(T57^2)+(T58^2))","v":74.417739820556221},{"$f":"((U40)+(U41)+(U42)+(U43)+(U44)+(U54)+(U55)+(U56)+(U57)+(U58))","v":62},{"$f":"SQRT((V40^2)+(V41^2)+(V42^2)+(V43^2)+(V44^2)+(V54^2)+(V55^2)+(V56^2)+(V57^2)+(V58^2))","v":27.928480087537881},{"$f":"((W40)+(W41)+(W42)+(W43)+(W44)+(W54)+(W55)+(W56)+(W57)+(W58))","v":0},{"$f":"SQRT((X40^2)+(X41^2)+(X42^2)+(X43^2)+(X44^2)+(X54^2)+(X55^2)+(X56^2)+(X57^2)+(X58^2))","v":34.785054261852174},{"$f":"((Y40)+(Y41)+(Y42)+(Y43)+(Y44)+(Y54)+(Y55)+(Y56)+(Y57)+(Y58))","v":0},{"$f":"SQRT((Z40^2)+(Z41^2)+(Z42^2)+(Z43^2)+(Z44^2)+(Z54^2)+(Z55^2)+(Z56^2)+(Z57^2)+(Z58^2))","v":34.785054261852174},{"$f":"((AA40)+(AA41)+(AA42)+(AA43)+(AA44)+(AA54)+(AA55)+(AA56)+(AA57)+(AA58))","v":89},{"$f":"SQRT((AB40^2)+(AB41^2)+(AB42^2)+(AB43^2)+(AB44^2)+(AB54^2)+(AB55^2)+(AB56^2)+(AB57^2)+(AB58^2))","v":38.961519477556315},{"$f":"((AC40)+(AC41)+(AC42)+(AC43)+(AC44)+(AC54)+(AC55)+(AC56)+(AC57)+(AC58))","v":0},{"$f":"SQRT((AD40^2)+(AD41^2)+(AD42^2)+(AD43^2)+(AD44^2)+(AD54^2)+(AD55^2)+(AD56^2)+(AD57^2)+(AD58^2))","v":34.785054261852174},{"$f":"((AE40)+(AE41)+(AE42)+(AE43)+(AE44)+(AE54)+(AE55)+(AE56)+(AE57)+(AE58))","v":0},{"$f":"SQRT((AF40^2)+(AF41^2)+(AF42^2)+(AF43^2)+(AF44^2)+(AF54^2)+(AF55^2)+(AF56^2)+(AF57^2)+(AF58^2))","v":34.785054261852174},{"$f":"((AG40)+(AG41)+(AG42)+(AG43)+(AG44)+(AG54)+(AG55)+(AG56)+(AG57)+(AG58))","v":42},{"$f":"SQRT((AH40^2)+(AH41^2)+(AH42^2)+(AH43^2)+(AH44^2)+(AH54^2)+(AH55^2)+(AH56^2)+(AH57^2)+(AH58^2))","v":26.419689627245813},{"$f":"((AI40)+(AI41)+(AI42)+(AI43)+(AI44)+(AI54)+(AI55)+(AI56)+(AI57)+(AI58))","v":24},{"$f":"SQRT((AJ40^2)+(AJ41^2)+(AJ42^2)+(AJ43^2)+(AJ44^2)+(AJ54^2)+(AJ55^2)+(AJ56^2)+(AJ57^2)+(AJ58^2))","v":28.89636655359978},{"$f":"((AK40)+(AK41)+(AK42)+(AK43)+(AK44)+(AK54)+(AK55)+(AK56)+(AK57)+(AK58))","v":0},{"$f":"SQRT((AL40^2)+(AL41^2)+(AL42^2)+(AL43^2)+(AL44^2)+(AL54^2)+(AL55^2)+(AL56^2)+(AL57^2)+(AL58^2))","v":34.785054261852174},{"$f":"((AM40)+(AM41)+(AM42)+(AM43)+(AM44)+(AM54)+(AM55)+(AM56)+(AM57)+(AM58))","v":328},{"$f":"SQRT((AN40^2)+(AN41^2)+(AN42^2)+(AN43^2)+(AN44^2)+(AN54^2)+(AN55^2)+(AN56^2)+(AN57^2)+(AN58^2))","v":79.372539331937716},{"$f":"((AO40)+(AO41)+(AO42)+(AO43)+(AO44)+(AO54)+(AO55)+(AO56)+(AO57)+(AO58))","v":0},{"$f":"SQRT((AP40^2)+(AP41^2)+(AP42^2)+(AP43^2)+(AP44^2)+(AP54^2)+(AP55^2)+(AP56^2)+(AP57^2)+(AP58^2))","v":34.785054261852174},{"$f":"((AQ40)+(AQ41)+(AQ42)+(AQ43)+(AQ44)+(AQ54)+(AQ55)+(AQ56)+(AQ57)+(AQ58))","v":0},{"$f":"SQRT((AR40^2)+(AR41^2)+(AR42^2)+(AR43^2)+(AR44^2)+(AR54^2)+(AR55^2)+(AR56^2)+(AR57^2)+(AR58^2))","v":34.785054261852174},{"$f":"((AS40)+(AS41)+(AS42)+(AS43)+(AS44)+(AS54)+(AS55)+(AS56)+(AS57)+(AS58))","v":75},{"$f":"SQRT((AT40^2)+(AT41^2)+(AT42^2)+(AT43^2)+(AT44^2)+(AT54^2)+(AT55^2)+(AT56^2)+(AT57^2)+(AT58^2))","v":30.659419433511783},{"$f":"((AU40)+(AU41)+(AU42)+(AU43)+(AU44)+(AU54)+(AU55)+(AU56)+(AU57)+(AU58))","v":0},{"$f":"SQRT((AV40^2)+(AV41^2)+(AV42^2)+(AV43^2)+(AV44^2)+(AV54^2)+(AV55^2)+(AV56^2)+(AV57^2)+(AV58^2))","v":34.785054261852174},{"$f":"((AW40)+(AW41)+(AW42)+(AW43)+(AW44)+(AW54)+(AW55)+(AW56)+(AW57)+(AW58))","v":475},{"$f":"SQRT((AX40^2)+(AX41^2)+(AX42^2)+(AX43^2)+(AX44^2)+(AX54^2)+(AX55^2)+(AX56^2)+(AX57^2)+(AX58^2))","v":108.93117092916977},{"$f":"((AY40)+(AY41)+(AY42)+(AY43)+(AY44)+(AY54)+(AY55)+(AY56)+(AY57)+(AY58))","v":0},{"$f":"SQRT((AZ40^2)+(AZ41^2)+(AZ42^2)+(AZ43^2)+(AZ44^2)+(AZ54^2)+(AZ55^2)+(AZ56^2)+(AZ57^2)+(AZ58^2))","v":34.785054261852174},{"$f":"((BA40)+(BA41)+(BA42)+(BA43)+(BA44)+(BA54)+(BA55)+(BA56)+(BA57)+(BA58))","v":0},{"$f":"SQRT((BB40^2)+(BB41^2)+(BB42^2)+(BB43^2)+(BB44^2)+(BB54^2)+(BB55^2)+(BB56^2)+(BB57^2)+(BB58^2))","v":34.785054261852174},{"$f":"((BC40)+(BC41)+(BC42)+(BC43)+(BC44)+(BC54)+(BC55)+(BC56)+(BC57)+(BC58))","v":155},{"$f":"SQRT((BD40^2)+(BD41^2)+(BD42^2)+(BD43^2)+(BD44^2)+(BD54^2)+(BD55^2)+(BD56^2)+(BD57^2)+(BD58^2))","v":41.521078984053389},{"$f":"((BE40)+(BE41)+(BE42)+(BE43)+(BE44)+(BE54)+(BE55)+(BE56)+(BE57)+(BE58))","v":0},{"$f":"SQRT((BF40^2)+(BF41^2)+(BF42^2)+(BF43^2)+(BF44^2)+(BF54^2)+(BF55^2)+(BF56^2)+(BF57^2)+(BF58^2))","v":34.785054261852174},{"$f":"((BG40)+(BG41)+(BG42)+(BG43)+(BG44)+(BG54)+(BG55)+(BG56)+(BG57)+(BG58))","v":294},{"$f":"SQRT((BH40^2)+(BH41^2)+(BH42^2)+(BH43^2)+(BH44^2)+(BH54^2)+(BH55^2)+(BH56^2)+(BH57^2)+(BH58^2))","v":86.884981440983225},{"$f":"((BI40)+(BI41)+(BI42)+(BI43)+(BI44)+(BI54)+(BI55)+(BI56)+(BI57)+(BI58))","v":0},{"$f":"SQRT((BJ40^2)+(BJ41^2)+(BJ42^2)+(BJ43^2)+(BJ44^2)+(BJ54^2)+(BJ55^2)+(BJ56^2)+(BJ57^2)+(BJ58^2))","v":34.785054261852174},{"$f":"((BK40)+(BK41)+(BK42)+(BK43)+(BK44)+(BK54)+(BK55)+(BK56)+(BK57)+(BK58))","v":0},{"$f":"SQRT((BL40^2)+(BL41^2)+(BL42^2)+(BL43^2)+(BL44^2)+(BL54^2)+(BL55^2)+(BL56^2)+(BL57^2)+(BL58^2))","v":34.785054261852174},{"$f":"((BM40)+(BM41)+(BM42)+(BM43)+(BM44)+(BM54)+(BM55)+(BM56)+(BM57)+(BM58))","v":57},{"$f":"SQRT((BN40^2)+(BN41^2)+(BN42^2)+(BN43^2)+(BN44^2)+(BN54^2)+(BN55^2)+(BN56^2)+(BN57^2)+(BN58^2))","v":36.918829883949464},{"$f":"((BO40)+(BO41)+(BO42)+(BO43)+(BO44)+(BO54)+(BO55)+(BO56)+(BO57)+(BO58))","v":7},{"$f":"SQRT((BP40^2)+(BP41^2)+(BP42^2)+(BP43^2)+(BP44^2)+(BP54^2)+(BP55^2)+(BP56^2)+(BP57^2)+(BP58^2))","v":27.513632984395208},{"$f":"((BQ40)+(BQ41)+(BQ42)+(BQ43)+(BQ44)+(BQ54)+(BQ55)+(BQ56)+(BQ57)+(BQ58))","v":0},{"$f":"SQRT((BR40^2)+(BR41^2)+(BR42^2)+(BR43^2)+(BR44^2)+(BR54^2)+(BR55^2)+(BR56^2)+(BR57^2)+(BR58^2))","v":34.785054261852174},{"$f":"((BS40)+(BS41)+(BS42)+(BS43)+(BS44)+(BS54)+(BS55)+(BS56)+(BS57)+(BS58))","v":0},{"$f":"SQRT((BT40^2)+(BT41^2)+(BT42^2)+(BT43^2)+(BT44^2)+(BT54^2)+(BT55^2)+(BT56^2)+(BT57^2)+(BT58^2))","v":34.785054261852174},{"$f":"((BU40)+(BU41)+(BU42)+(BU43)+(BU44)+(BU54)+(BU55)+(BU56)+(BU57)+(BU58))","v":36},{"$f":"SQRT((BV40^2)+(BV41^2)+(BV42^2)+(BV43^2)+(BV44^2)+(BV54^2)+(BV55^2)+(BV56^2)+(BV57^2)+(BV58^2))","v":19.748417658131498},{"$f":"((BW40)+(BW41)+(BW42)+(BW43)+(BW44)+(BW54)+(BW55)+(BW56)+(BW57)+(BW58))","v":94},{"$f":"SQRT((BX40^2)+(BX41^2)+(BX42^2)+(BX43^2)+(BX44^2)+(BX54^2)+(BX55^2)+(BX56^2)+(BX57^2)+(BX58^2))","v":41.617304093369626},{"$f":"((BY40)+(BY41)+(BY42)+(BY43)+(BY44)+(BY54)+(BY55)+(BY56)+(BY57)+(BY58))","v":75},{"$f":"SQRT((BZ40^2)+(BZ41^2)+(BZ42^2)+(BZ43^2)+(BZ44^2)+(BZ54^2)+(BZ55^2)+(BZ56^2)+(BZ57^2)+(BZ58^2))","v":41.797129088012731},{"$f":"((CA40)+(CA41)+(CA42)+(CA43)+(CA44)+(CA54)+(CA55)+(CA56)+(CA57)+(CA58))","v":63},{"$f":"SQRT((CB40^2)+(CB41^2)+(CB42^2)+(CB43^2)+(CB44^2)+(CB54^2)+(CB55^2)+(CB56^2)+(CB57^2)+(CB58^2))","v":32.619012860600179},{"$f":"((CC40)+(CC41)+(CC42)+(CC43)+(CC44)+(CC54)+(CC55)+(CC56)+(CC57)+(CC58))","v":0},{"$f":"SQRT((CD40^2)+(CD41^2)+(CD42^2)+(CD43^2)+(CD44^2)+(CD54^2)+(CD55^2)+(CD56^2)+(CD57^2)+(CD58^2))","v":34.785054261852174},{"$f":"((CE40)+(CE41)+(CE42)+(CE43)+(CE44)+(CE54)+(CE55)+(CE56)+(CE57)+(CE58))","v":0},{"$f":"SQRT((CF40^2)+(CF41^2)+(CF42^2)+(CF43^2)+(CF44^2)+(CF54^2)+(CF55^2)+(CF56^2)+(CF57^2)+(CF58^2))","v":34.785054261852174},{"$f":"((CG40)+(CG41)+(CG42)+(CG43)+(CG44)+(CG54)+(CG55)+(CG56)+(CG57)+(CG58))","v":0},{"$f":"SQRT((CH40^2)+(CH41^2)+(CH42^2)+(CH43^2)+(CH44^2)+(CH54^2)+(CH55^2)+(CH56^2)+(CH57^2)+(CH58^2))","v":34.785054261852174},{"$f":"((CI40)+(CI41)+(CI42)+(CI43)+(CI44)+(CI54)+(CI55)+(CI56)+(CI57)+(CI58))","v":168},{"$f":"SQRT((CJ40^2)+(CJ41^2)+(CJ42^2)+(CJ43^2)+(CJ44^2)+(CJ54^2)+(CJ55^2)+(CJ56^2)+(CJ57^2)+(CJ58^2))","v":65.345237010818167}]
[null,"18 to 64 years",{"$f":"((C45)+(C46)+(C47)+(C48)+(C49)+(C59)+(C60)+(C61)+(C62)+(C63))","v":0},{"$f":"SQRT((D45^2)+(D46^2)+(D47^2)+(D48^2)+(D49^2)+(D59^2)+(D60^2)+(D61^2)+(D62^2)+(D63^2))","v":34.785054261852174},{"$f":"((E45)+(E46)+(E47)+(E48)+(E49)+(E59)+(E60)+(E61)+(E62)+(E63))","v":0},{"$f":"SQRT((F45^2)+(F46^2)+(F47^2)+(F48^2)+(F49^2)+(F59^2)+(F60^2)+(F61^2)+(F62^2)+(F63^2))","v":34.785054261852174},{"$f":"((G45)+(G46)+(G47)+(G48)+(G49)+(G59)+(G60)+(G61)+(G62)+(G63))","v":0},{"$f":"SQRT((H45^2)+(H46^2)+(H47^2)+(H48^2)+(H49^2)+(H59^2)+(H60^2)+(H61^2)+(H62^2)+(H63^2))","v":34.785054261852174},{"$f":"((I45)+(I46)+(I47)+(I48)+(I49)+(I59)+(I60)+(I61)+(I62)+(I63))","v":4265},{"$f":"SQRT((J45^2)+(J46^2)+(J47^2)+(J48^2)+(J49^2)+(J59^2)+(J60^2)+(J61^2)+(J62^2)+(J63^2))","v":327.94511735959725},{"$f":"((K45)+(K46)+(K47)+(K48)+(K49)+(K59)+(K60)+(K61)+(K62)+(K63))","v":0},{"$f":"SQRT((L45^2)+(L46^2)+(L47^2)+(L48^2)+(L49^2)+(L59^2)+(L60^2)+(L61^2)+(L62^2)+(L63^2))","v":34.785054261852174},{"$f":"((M45)+(M46)+(M47)+(M48)+(M49)+(M59)+(M60)+(M61)+(M62)+(M63))","v":387},{"$f":"SQRT((N45^2)+(N46^2)+(N47^2)+(N48^2)+(N49^2)+(N59^2)+(N60^2)+(N61^2)+(N62^2)+(N63^2))","v":69.742383096650784},{"$f":"((O45)+(O46)+(O47)+(O48)+(O49)+(O59)+(O60)+(O61)+(O62)+(O63))","v":0},{"$f":"SQRT((P45^2)+(P46^2)+(P47^2)+(P48^2)+(P49^2)+(P59^2)+(P60^2)+(P61^2)+(P62^2)+(P63^2))","v":34.785054261852174},{"$f":"((Q45)+(Q46)+(Q47)+(Q48)+(Q49)+(Q59)+(Q60)+(Q61)+(Q62)+(Q63))","v":196},{"$f":"SQRT((R45^2)+(R46^2)+(R47^2)+(R48^2)+(R49^2)+(R59^2)+(R60^2)+(R61^2)+(R62^2)+(R63^2))","v":48.641546028061235},{"$f":"((S45)+(S46)+(S47)+(S48)+(S49)+(S59)+(S60)+(S61)+(S62)+(S63))","v":989},{"$f":"SQRT((T45^2)+(T46^2)+(T47^2)+(T48^2)+(T49^2)+(T59^2)+(T60^2)+(T61^2)+(T62^2)+(T63^2))","v":123.15031465652046},{"$f":"((U45)+(U46)+(U47)+(U48)+(U49)+(U59)+(U60)+(U61)+(U62)+(U63))","v":343},{"$f":"SQRT((V45^2)+(V46^2)+(V47^2)+(V48^2)+(V49^2)+(V59^2)+(V60^2)+(V61^2)+(V62^2)+(V63^2))","v":64.660652641308843},{"$f":"((W45)+(W46)+(W47)+(W48)+(W49)+(W59)+(W60)+(W61)+(W62)+(W63))","v":0},{"$f":"SQRT((X45^2)+(X46^2)+(X47^2)+(X48^2)+(X49^2)+(X59^2)+(X60^2)+(X61^2)+(X62^2)+(X63^2))","v":34.785054261852174},{"$f":"((Y45)+(Y46)+(Y47)+(Y48)+(Y49)+(Y59)+(Y60)+(Y61)+(Y62)+(Y63))","v":0},{"$f":"SQRT((Z45^2)+(Z46^2)+(Z47^2)+(Z48^2)+(Z49^2)+(Z59^2)+(Z60^2)+(Z61^2)+(Z62^2)+(Z63^2))","v":34.785054261852174},{"$f":"((AA45)+(AA46)+(AA47)+(AA48)+(AA49)+(AA59)+(AA60)+(AA61)+(AA62)+(AA63))","v":571},{"$f":"SQRT((AB45^2)+(AB46^2)+(AB47^2)+(AB48^2)+(AB49^2)+(AB59^2)+(AB60^2)+(AB61^2)+(AB62^2)+(AB63^2))","v":90.432295116291286},{"$f":"((AC45)+(AC46)+(AC47)+(AC48)+(AC49)+(AC59)+(AC60)+(AC61)+(AC62)+(AC63))","v":0},{"$f":"SQRT((AD45^2)+(AD46^2)+(AD47^2)+(AD48^2)+(AD49^2)+(AD59^2)+(AD60^2)+(AD61^2)+(AD62^2)+(AD63^2))","v":34.785054261852174},{"$f":"((AE45)+(AE46)+(AE47)+(AE48)+(AE49)+(AE59)+(AE60)+(AE61)+(AE62)+(AE63))","v":1},{"$f":"SQRT((AF45^2)+(AF46^2)+(AF47^2)+(AF48^2)+(AF49^2)+(AF59^2)+(AF60^2)+(AF61^2)+(AF62^2)+(AF63^2))","v":33.241540277189323},{"$f":"((AG45)+(AG46)+(AG47)+(AG48)+(AG49)+(AG59)+(AG60)+(AG61)+(AG62)+(AG63))","v":134},{"$f":"SQRT((AH45^2)+(AH46^2)+(AH47^2)+(AH48^2)+(AH49^2)+(AH59^2)+(AH60^2)+(AH61^2)+(AH62^2)+(AH63^2))","v":25.942243542145693},{"$f":"((AI45)+(AI46)+(AI47)+(AI48)+(AI49)+(AI59)+(AI60)+(AI61)+(AI62)+(AI63))","v":92},{"$f":"SQRT((AJ45^2)+(AJ46^2)+(AJ47^2)+(AJ48^2)+(AJ49^2)+(AJ59^2)+(AJ60^2)+(AJ61^2)+(AJ62^2)+(AJ63^2))","v":34.799425282610628},{"$f":"((AK45)+(AK46)+(AK47)+(AK48)+(AK49)+(AK59)+(AK60)+(AK61)+(AK62)+(AK63))","v":0},{"$f":"SQRT((AL45^2)+(AL46^2)+(AL47^2)+(AL48^2)+(AL49^2)+(AL59^2)+(AL60^2)+(AL61^2)+(AL62^2)+(AL63^2))","v":34.785054261852174},{"$f":"((AM45)+(AM46)+(AM47)+(AM48)+(AM49)+(AM59)+(AM60)+(AM61)+(AM62)+(AM63))","v":1511},{"$f":"SQRT((AN45^2)+(AN46^2)+(AN47^2)+(AN48^2)+(AN49^2)+(AN59^2)+(AN60^2)+(AN61^2)+(AN62^2)+(AN63^2))","v":168.78981011897608},{"$f":"((AO45)+(AO46)+(AO47)+(AO48)+(AO49)+(AO59)+(AO60)+(AO61)+(AO62)+(AO63))","v":2},{"$f":"SQRT((AP45^2)+(AP46^2)+(AP47^2)+(AP48^2)+(AP49^2)+(AP59^2)+(AP60^2)+(AP61^2)+(AP62^2)+(AP63^2))","v":33.541019662496844},{"$f":"((AQ45)+(AQ46)+(AQ47)+(AQ48)+(AQ49)+(AQ59)+(AQ60)+(AQ61)+(AQ62)+(AQ63))","v":0},{"$f":"SQRT((AR45^2)+(AR46^2)+(AR47^2)+(AR48^2)+(AR49^2)+(AR59^2)+(AR60^2)+(AR61^2)+(AR62^2)+(AR63^2))","v":34.785054261852174},{"$f":"((AS45)+(AS46)+(AS47)+(AS48)+(AS49)+(AS59)+(AS60)+(AS61)+(AS62)+(AS63))","v":518},{"$f":"SQRT((AT45^2)+(AT46^2)+(AT47^2)+(AT48^2)+(AT49^2)+(AT59^2)+(AT60^2)+(AT61^2)+(AT62^2)+(AT63^2))","v":74.966659255965254},{"$f":"((AU45)+(AU46)+(AU47)+(AU48)+(AU49)+(AU59)+(AU60)+(AU61)+(AU62)+(AU63))","v":0},{"$f":"SQRT((AV45^2)+(AV46^2)+(AV47^2)+(AV48^2)+(AV49^2)+(AV59^2)+(AV60^2)+(AV61^2)+(AV62^2)+(AV63^2))","v":34.785054261852174},{"$f":"((AW45)+(AW46)+(AW47)+(AW48)+(AW49)+(AW59)+(AW60)+(AW61)+(AW62)+(AW63))","v":1675},{"$f":"SQRT((AX45^2)+(AX46^2)+(AX47^2)+(AX48^2)+(AX49^2)+(AX59^2)+(AX60^2)+(AX61^2)+(AX62^2)+(AX63^2))","v":213.4689672996991},{"$f":"((AY45)+(AY46)+(AY47)+(AY48)+(AY49)+(AY59)+(AY60)+(AY61)+(AY62)+(AY63))","v":0},{"$f":"SQRT((AZ45^2)+(AZ46^2)+(AZ47^2)+(AZ48^2)+(AZ49^2)+(AZ59^2)+(AZ60^2)+(AZ61^2)+(AZ62^2)+(AZ63^2))","v":34.785054261852174},{"$f":"((BA45)+(BA46)+(BA47)+(BA48)+(BA49)+(BA59)+(BA60)+(BA61)+(BA62)+(BA63))","v":0},{"$f":"SQRT((BB45^2)+(BB46^2)+(BB47^2)+(BB48^2)+(BB49^2)+(BB59^2)+(BB60^2)+(BB61^2)+(BB62^2)+(BB63^2))","v":34.785054261852174},{"$f":"((BC45)+(BC46)+(BC47)+(BC48)+(BC49)+(BC59)+(BC60)+(BC61)+(BC62)+(BC63))","v":790},{"$f":"SQRT((BD45^2)+(BD46^2)+(BD47^2)+(BD48^2)+(BD49^2)+(BD59^2)+(BD60^2)+(BD61^2)+(BD62^2)+(BD63^2))","v":94.021274188345274},{"$f":"((BE45)+(BE46)+(BE47)+(BE48)+(BE49)+(BE59)+(BE60)+(BE61)+(BE62)+(BE63))","v":4},{"$f":"SQRT((BF45^2)+(BF46^2)+(BF47^2)+(BF48^2)+(BF49^2)+(BF59^2)+(BF60^2)+(BF61^2)+(BF62^2)+(BF63^2))","v":33.541019662496844},{"$f":"((BG45)+(BG46)+(BG47)+(BG48)+(BG49)+(BG59)+(BG60)+(BG61)+(BG62)+(BG63))","v":1240},{"$f":"SQRT((BH45^2)+(BH46^2)+(BH47^2)+(BH48^2)+(BH49^2)+(BH59^2)+(BH60^2)+(BH61^2)+(BH62^2)+(BH63^2))","v":145.46477236774544},{"$f":"((BI45)+(BI46)+(BI47)+(BI48)+(BI49)+(BI59)+(BI60)+(BI61)+(BI62)+(BI63))","v":0},{"$f":"SQRT((BJ45^2)+(BJ46^2)+(BJ47^2)+(BJ48^2)+(BJ49^2)+(BJ59^2)+(BJ60^2)+(BJ61^2)+(BJ62^2)+(BJ63^2))","v":34.785054261852174},{"$f":"((BK45)+(BK46)+(BK47)+(BK48)+(BK49)+(BK59)+(BK60)+(BK61)+(BK62)+(BK63))","v":4},{"$f":"SQRT((BL45^2)+(BL46^2)+(BL47^2)+(BL48^2)+(BL49^2)+(BL59^2)+(BL60^2)+(BL61^2)+(BL62^2)+(BL63^2))","v":33.955853692699293},{"$f":"((BM45)+(BM46)+(BM47)+(BM48)+(BM49)+(BM59)+(BM60)+(BM61)+(BM62)+(BM63))","v":384},{"$f":"SQRT((BN45^2)+(BN46^2)+(BN47^2)+(BN48^2)+(BN49^2)+(BN59^2)+(BN60^2)+(BN61^2)+(BN62^2)+(BN63^2))","v":69.985712827690762},{"$f":"((BO45)+(BO46)+(BO47)+(BO48)+(BO49)+(BO59)+(BO60)+(BO61)+(BO62)+(BO63))","v":208},{"$f":"SQRT((BP45^2)+(BP46^2)+(BP47^2)+(BP48^2)+(BP49^2)+(BP59^2)+(BP60^2)+(BP61^2)+(BP62^2)+(BP63^2))","v":37.429934544425805},{"$f":"((BQ45)+(BQ46)+(BQ47)+(BQ48)+(BQ49)+(BQ59)+(BQ60)+(BQ61)+(BQ62)+(BQ63))","v":0},{"$f":"SQRT((BR45^2)+(BR46^2)+(BR47^2)+(BR48^2)+(BR49^2)+(BR59^2)+(BR60^2)+(BR61^2)+(BR62^2)+(BR63^2))","v":34.785054261852174},{"$f":"((BS45)+(BS46)+(BS47)+(BS48)+(BS49)+(BS59)+(BS60)+(BS61)+(BS62)+(BS63))","v":0},{"$f":"SQRT((BT45^2)+(BT46^2)+(BT47^2)+(BT48^2)+(BT49^2)+(BT59^2)+(BT60^2)+(BT61^2)+(BT62^2)+(BT63^2))","v":34.785054261852174},{"$f":"((BU45)+(BU46)+(BU47)+(BU48)+(BU49)+(BU59)+(BU60)+(BU61)+(BU62)+(BU63))","v":214},{"$f":"SQRT((BV45^2)+(BV46^2)+(BV47^2)+(BV48^2)+(BV49^2)+(BV59^2)+(BV60^2)+(BV61^2)+(BV62^2)+(BV63^2))","v":37.20215047547655},{"$f":"((BW45)+(BW46)+(BW47)+(BW48)+(BW49)+(BW59)+(BW60)+(BW61)+(BW62)+(BW63))","v":261},{"$f":"SQRT((BX45^2)+(BX46^2)+(BX47^2)+(BX48^2)+(BX49^2)+(BX59^2)+(BX60^2)+(BX61^2)+(BX62^2)+(BX63^2))","v":50.813384063650005},{"$f":"((BY45)+(BY46)+(BY47)+(BY48)+(BY49)+(BY59)+(BY60)+(BY61)+(BY62)+(BY63))","v":338},{"$f":"SQRT((BZ45^2)+(BZ46^2)+(BZ47^2)+(BZ48^2)+(BZ49^2)+(BZ59^2)+(BZ60^2)+(BZ61^2)+(BZ62^2)+(BZ63^2))","v":74.55199527846321},{"$f":"((CA45)+(CA46)+(CA47)+(CA48)+(CA49)+(CA59)+(CA60)+(CA61)+(CA62)+(CA63))","v":248},{"$f":"SQRT((CB45^2)+(CB46^2)+(CB47^2)+(CB48^2)+(CB49^2)+(CB59^2)+(CB60^2)+(CB61^2)+(CB62^2)+(CB63^2))","v":51.923019942988681},{"$f":"((CC45)+(CC46)+(CC47)+(CC48)+(CC49)+(CC59)+(CC60)+(CC61)+(CC62)+(CC63))","v":0},{"$f":"SQRT((CD45^2)+(CD46^2)+(CD47^2)+(CD48^2)+(CD49^2)+(CD59^2)+(CD60^2)+(CD61^2)+(CD62^2)+(CD63^2))","v":34.785054261852174},{"$f":"((CE45)+(CE46)+(CE47)+(CE48)+(CE49)+(CE59)+(CE60)+(CE61)+(CE62)+(CE63))","v":0},{"$f":"SQRT((CF45^2)+(CF46^2)+(CF47^2)+(CF48^2)+(CF49^2)+(CF59^2)+(CF60^2)+(CF61^2)+(CF62^2)+(CF63^2))","v":34.785054261852174},{"$f":"((CG45)+(CG46)+(CG47)+(CG48)+(CG49)+(CG59)+(CG60)+(CG61)+(CG62)+(CG63))","v":7},{"$f":"SQRT((CH45^2)+(CH46^2)+(CH47^2)+(CH48^2)+(CH49^2)+(CH59^2)+(CH60^2)+(CH61^2)+(CH62^2)+(CH63^2))","v":31.622776601683793},{"$f":"((CI45)+(CI46)+(CI47)+(CI48)+(CI49)+(CI59)+(CI60)+(CI61)+(CI62)+(CI63))","v":956},{"$f":"SQRT((CJ45^2)+(CJ46^2)+(CJ47^2)+(CJ48^2)+(CJ49^2)+(CJ59^2)+(CJ60^2)+(CJ61^2)+(CJ62^2)+(CJ63^2))","v":132.7893067984015}]
[null,"65 to 74 years",{"$f":"((C50)+(C64))","v":0},{"$f":"SQRT((D50^2)+(D64^2))","v":15.556349186104045},{"$f":"((E50)+(E64))","v":0},{"$f":"SQRT((F50^2)+(F64^2))","v":15.556349186104045},{"$f":"((G50)+(G64))","v":0},{"$f":"SQRT((H50^2)+(H64^2))","v":15.556349186104045},{"$f":"((I50)+(I64))","v":817},{"$f":"SQRT((J50^2)+(J64^2))","v":121.91800523302537},{"$f":"((K50)+(K64))","v":0},{"$f":"SQRT((L50^2)+(L64^2))","v":15.556349186104045},{"$f":"((M50)+(M64))","v":131},{"$f":"SQRT((N50^2)+(N64^2))","v":30.413812651491099},{"$f":"((O50)+(O64))","v":0},{"$f":"SQRT((P50^2)+(P64^2))","v":15.556349186104045},{"$f":"((Q50)+(Q64))","v":53},{"$f":"SQRT((R50^2)+(R64^2))","v":21.095023109728988},{"$f":"((S50)+(S64))","v":271},{"$f":"SQRT((T50^2)+(T64^2))","v":58.412327466040935},{"$f":"((U50)+(U64))","v":75},{"$f":"SQRT((V50^2)+(V64^2))","v":20.615528128088304},{"$f":"((W50)+(W64))","v":0},{"$f":"SQRT((X50^2)+(X64^2))","v":15.556349186104045},{"$f":"((Y50)+(Y64))","v":0},{"$f":"SQRT((Z50^2)+(Z64^2))","v":15.556349186104045},{"$f":"((AA50)+(AA64))","v":96},{"$f":"SQRT((AB50^2)+(AB64^2))","v":31.11269837220809},{"$f":"((AC50)+(AC64))","v":0},{"$f":"SQRT((AD50^2)+(AD64^2))","v":15.556349186104045},{"$f":"((AE50)+(AE64))","v":1},{"$f":"SQRT((AF50^2)+(AF64^2))","v":11.704699910719626},{"$f":"((AG50)+(AG64))","v":47},{"$f":"SQRT((AH50^2)+(AH64^2))","v":16.552945357246848},{"$f":"((AI50)+(AI64))","v":26},{"$f":"SQRT((AJ50^2)+(AJ64^2))","v":14.212670403551895},{"$f":"((AK50)+(AK64))","v":0},{"$f":"SQRT((AL50^2)+(AL64^2))","v":15.556349186104045},{"$f":"((AM50)+(AM64))","v":314},{"$f":"SQRT((AN50^2)+(AN64^2))","v":75.822160349069449},{"$f":"((AO50)+(AO64))","v":0},{"$f":"SQRT((AP50^2)+(AP64^2))","v":15.556349186104045},{"$f":"((AQ50)+(AQ64))","v":0},{"$f":"SQRT((AR50^2)+(AR64^2))","v":15.556349186104045},{"$f":"((AS50)+(AS64))","v":153},{"$f":"SQRT((AT50^2)+(AT64^2))","v":34.205262752974143},{"$f":"((AU50)+(AU64))","v":0},{"$f":"SQRT((AV50^2)+(AV64^2))","v":15.556349186104045},{"$f":"((AW50)+(AW64))","v":328},{"$f":"SQRT((AX50^2)+(AX64^2))","v":71.449282711584999},{"$f":"((AY50)+(AY64))","v":0},{"$f":"SQRT((AZ50^2)+(AZ64^2))","v":15.556349186104045},{"$f":"((BA50)+(BA64))","v":0},{"$f":"SQRT((BB50^2)+(BB64^2))","v":15.556349186104045},{"$f":"((BC50)+(BC64))","v":188},{"$f":"SQRT((BD50^2)+(BD64^2))","v":35.608987629529715},{"$f":"((BE50)+(BE64))","v":0},{"$f":"SQRT((BF50^2)+(BF64^2))","v":15.556349186104045},{"$f":"((BG50)+(BG64))","v":238},{"$f":"SQRT((BH50^2)+(BH64^2))","v":49.578221024962161},{"$f":"((BI50)+(BI64))","v":0},{"$f":"SQRT((BJ50^2)+(BJ64^2))","v":15.556349186104045},{"$f":"((BK50)+(BK64))","v":0},{"$f":"SQRT((BL50^2)+(BL64^2))","v":15.556349186104045},{"$f":"((BM50)+(BM64))","v":199},{"$f":"SQRT((BN50^2)+(BN64^2))","v":44.407206622349037},{"$f":"((BO50)+(BO64))","v":87},{"$f":"SQRT((BP50^2)+(BP64^2))","v":20},{"$f":"((BQ50)+(BQ64))","v":0},{"$f":"SQRT((BR50^2)+(BR64^2))","v":15.556349186104045},{"$f":"((BS50)+(BS64))","v":0},{"$f":"SQRT((BT50^2)+(BT64^2))","v":15.556349186104045},{"$f":"((BU50)+(BU64))","v":79},{"$f":"SQRT((BV50^2)+(BV64^2))","v":24.413111231467404},{"$f":"((BW50)+(BW64))","v":78},{"$f":"SQRT((BX50^2)+(BX64^2))","v":24.207436873820409},{"$f":"((BY50)+(BY64))","v":219},{"$f":"SQRT((BZ50^2)+(BZ64^2))","v":51.739733281106119},{"$f":"((CA50)+(CA64))","v":57},{"$f":"SQRT((CB50^2)+(CB64^2))","v":19.209372712298546},{"$f":"((CC50)+(CC64))","v":0},{"$f":"SQRT((CD50^2)+(CD64^2))","v":15.556349186104045},{"$f":"((CE50)+(CE64))","v":0},{"$f":"SQRT((CF50^2)+(CF64^2))","v":15.556349186104045},{"$f":"((CG50)+(CG64))","v":11},{"$f":"SQRT((CH50^2)+(CH64^2))","v":7.2111025509279782},{"$f":"((CI50)+(CI64))","v":410},{"$f":"SQRT((CJ50^2)+(CJ64^2))","v":79.195959492893323}]
[null,"75 years and over",{"$f":"((C51)+(C65))","v":0},{"$f":"SQRT((D51^2)+(D65^2))","v":15.556349186104045},{"$f":"((E51)+(E65))","v":0},{"$f":"SQRT((F51^2)+(F65^2))","v":15.556349186104045},{"$f":"((G51)+(G65))","v":0},{"$f":"SQRT((H51^2)+(H65^2))","v":15.556349186104045},{"$f":"((I51)+(I65))","v":585},{"$f":"SQRT((J51^2)+(J65^2))","v":102.34256201600583},{"$f":"((K51)+(K65))","v":0},{"$f":"SQRT((L51^2)+(L65^2))","v":15.556349186104045},{"$f":"((M51)+(M65))","v":59},{"$f":"SQRT((N51^2)+(N65^2))","v":21.931712199461309},{"$f":"((O51)+(O65))","v":0},{"$f":"SQRT((P51^2)+(P65^2))","v":15.556349186104045},{"$f":"((Q51)+(Q65))","v":13},{"$f":"SQRT((R51^2)+(R65^2))","v":10.816653826391969},{"$f":"((S51)+(S65))","v":190},{"$f":"SQRT((T51^2)+(T65^2))","v":46.861498055439924},{"$f":"((U51)+(U65))","v":68},{"$f":"SQRT((V51^2)+(V65^2))","v":22.671568097509269},{"$f":"((W51)+(W65))","v":0},{"$f":"SQRT((X51^2)+(X65^2))","v":15.556349186104045},{"$f":"((Y51)+(Y65))","v":0},{"$f":"SQRT((Z51^2)+(Z65^2))","v":15.556349186104045},{"$f":"((AA51)+(AA65))","v":50},{"$f":"SQRT((AB51^2)+(AB65^2))","v":21.931712199461309},{"$f":"((AC51)+(AC65))","v":0},{"$f":"SQRT((AD51^2)+(AD65^2))","v":15.556349186104045},{"$f":"((AE51)+(AE65))","v":0},{"$f":"SQRT((AF51^2)+(AF65^2))","v":15.556349186104045},{"$f":"((AG51)+(AG65))","v":34},{"$f":"SQRT((AH51^2)+(AH65^2))","v":14.866068747318506},{"$f":"((AI51)+(AI65))","v":27},{"$f":"SQRT((AJ51^2)+(AJ65^2))","v":14.7648230602334},{"$f":"((AK51)+(AK65))","v":0},{"$f":"SQRT((AL51^2)+(AL65^2))","v":15.556349186104045},{"$f":"((AM51)+(AM65))","v":297},{"$f":"SQRT((AN51^2)+(AN65^2))","v":78.568441501661468},{"$f":"((AO51)+(AO65))","v":0},{"$f":"SQRT((AP51^2)+(AP65^2))","v":15.556349186104045},{"$f":"((AQ51)+(AQ65))","v":0},{"$f":"SQRT((AR51^2)+(AR65^2))","v":15.556349186104045},{"$f":"((AS51)+(AS65))","v":32},{"$f":"SQRT((AT51^2)+(AT65^2))","v":14.422205101855956},{"$f":"((AU51)+(AU65))","v":0},{"$f":"SQRT((AV51^2)+(AV65^2))","v":15.556349186104045},{"$f":"((AW51)+(AW65))","v":287},{"$f":"SQRT((AX51^2)+(AX65^2))","v":81.320354155647891},{"$f":"((AY51)+(AY65))","v":0},{"$f":"SQRT((AZ51^2)+(AZ65^2))","v":15.556349186104045},{"$f":"((BA51)+(BA65))","v":0},{"$f":"SQRT((BB51^2)+(BB65^2))","v":15.556349186104045},{"$f":"((BC51)+(BC65))","v":58},{"$f":"SQRT((BD51^2)+(BD65^2))","v":18.439088914585774},{"$f":"((BE51)+(BE65))","v":4},{"$f":"SQRT((BF51^2)+(BF65^2))","v":12.529964086141668},{"$f":"((BG51)+(BG65))","v":135},{"$f":"SQRT((BH51^2)+(BH65^2))","v":46.690470119715009},{"$f":"((BI51)+(BI65))","v":0},{"$f":"SQRT((BJ51^2)+(BJ65^2))","v":15.556349186104045},{"$f":"((BK51)+(BK65))","v":0},{"$f":"SQRT((BL51^2)+(BL65^2))","v":15.556349186104045},{"$f":"((BM51)+(BM65))","v":43},{"$f":"SQRT((BN51^2)+(BN65^2))","v":17.029386365926403},{"$f":"((BO51)+(BO65))","v":38},{"$f":"SQRT((BP51^2)+(BP65^2))","v":15},{"$f":"((BQ51)+(BQ65))","v":0},{"$f":"SQRT((BR51^2)+(BR65^2))","v":15.556349186104045},{"$f":"((BS51)+(BS65))","v":0},{"$f":"SQRT((BT51^2)+(BT65^2))","v":15.556349186104045},{"$f":"((BU51)+(BU65))","v":47},{"$f":"SQRT((BV51^2)+(BV65^2))","v":21.633307652783937},{"$f":"((BW51)+(BW65))","v":56},{"$f":"SQRT((BX51^2)+(BX65^2))","v":18.439088914585774},{"$f":"((BY51)+(BY65))","v":79},{"$f":"SQRT((BZ51^2)+(BZ65^2))","v":24.413111231467404},{"$f":"((CA51)+(CA65))","v":47},{"$f":"SQRT((CB51^2)+(CB65^2))","v":19.849433241279208},{"$f":"((CC51)+(CC65))","v":0},{"$f":"SQRT((CD51^2)+(CD65^2))","v":15.556349186104045},{"$f":"((CE51)+(CE65))","v":0},{"$f":"SQRT((CF51^2)+(CF65^2))","v":15.556349186104045},{"$f":"((CG51)+(CG65))","v":8},{"$f":"SQRT((CH51^2)+(CH65^2))","v":13.601470508735444},{"$f":"((CI51)+(CI65))","v":209},{"$f":"SQRT((CJ51^2)+(CJ65^2))","v":60.108235708594876}]
[]
[]
[]
[]
[]
[]
[]
[]
[]
[]
[]
[]
[]
[]
[]
[]
[]
[]
[]
[]
[]
[]
[]
[]
[]
[]
[]
[]
[]
[]
[]
[]
[]
[]
[]
[]
[]
[]
[]
[]
[]
[]
[null,"Calculated Table B17001. POVERTY STATUS IN THE PAST 12 MONTHS BY SEX BY AGE"]
[null,"Universe:  POPULATION FOR WHOM POVERTY STATUS IS DETERMINED"]
[null,"Data Set: 2010-2014 American Community Survey 5-Year Estimates"]
[]
[null,null,"Atkinson and Gilmanton Grant",null,"Bean's Grant",null,"Bean's Purchase",null,"Berlin",null,"Cambridge",null,"Carroll",null,"Chandler's Purchase",null,"Clarksville",null,"Colebrook",null,"Columbia",null,"Crawford's Purchase",null,"Cutt's Grant",null,"Dalton",null,"Dix's Grant",null,"Dixville",null,"Dummer",null,"Errol",null,"Erving's Location",null,"Gorham",null,"Greens Grant",null,"Hadley's Purchase",null,"Jefferson",null,"Kilkenny",null,"Lancaster",null,"Low and Burbank's Grant",null,"Martin's Location",null,"Milan",null,"Millsfield",null,"Northumberland",null,"Odell",null,"Pinkham's Grant",null,"Pittsburg",null,"Randolph",null,"Sargent's Purchase",null,"Second College Grant",null,"Shelburne",null,"Stark",null,"Stewartstown",null,"Stratford",null,"Success",null,"Thompson and Meserves Purchase",null,"Wentworth's Location",null,"Whitefield"]
[null,null,"Estimate","Margin Of Error","Estimate","Margin Of Error","Estimate","Margin Of Error","Estimate","Margin Of Error","Estimate","Margin Of Error","Estimate","Margin Of Error","Estimate","Margin Of Error","Estimate","Margin Of Error","Estimate","Margin Of Error","Estimate","Margin Of Error","Estimate","Margin Of Error","Estimate","Margin Of Error","Estimate","Margin Of Error","Estimate","Margin Of Error","Estimate","Margin Of Error","Estimate","Margin Of Error","Estimate","Margin Of Error","Estimate","Margin Of Error","Estimate","Margin Of Error","Estimate","Margin Of Error","Estimate","Margin Of Error","Estimate","Margin Of Error","Estimate","Margin Of Error","Estimate","Margin Of Error","Estimate","Margin Of Error","Estimate","Margin Of Error","Estimate","Margin Of Error","Estimate","Margin Of Error","Estimate","Margin Of Error","Estimate","Margin Of Error","Estimate","Margin Of Error","Estimate","Margin Of Error","Estimate","Margin Of Error","Estimate","Margin Of Error","Estimate","Margin Of Error","Estimate","Margin Of Error","Estimate","Margin Of Error","Estimate","Margin Of Error","Estimate","Margin Of Error","Estimate","Margin Of Error","Estimate","Margin Of Error","Estimate","Margin Of Error","Estimate","Margin Of Error"]
[null,"Total:",0,11,0,11,0,11,8671,580,17,16,991,165,0,11,315,75,2326,211,726,132,0,11,0,11,930,155,13,9,11,9,348,76,301,70,0,11,2765,15,8,17,0,11,0,11,0,11,3292,102,0,11,0,11,18,14,19,18,0,11,0,11,8,6,875,130,424,74,9,12,0,11,358,66,490,94,712,123,0,11,0,11,0,11,62,33,2064,218]
[null,"Income in the past 12 months below poverty level:",0,11,0,11,0,11,1509,368,0,11,200,133,0,11,63,38,350,113,106,47,0,11,0,11,89,43,2,3,4,7,7,6,26,18,0,11,203,98,8,17,0,11,0,11,0,11,293,138,0,11,0,11,4,6,4,6,0,11,0,11,5,5,109,41,13,15,0,11,0,11,13,13,42,17,113,48,0,11,0,11,0,11,16,20,234,74]
[null,"Under 5 years",0,15.556349186104045,0,15.556349186104045,0,15.556349186104045,114,60.141499815019579,0,15.556349186104045,0,53.150729063673246,0,15.556349186104045,3,16.124515496597098,16,24.596747752497688,9,15.556349186104045,0,15.556349186104045,0,15.556349186104045,3,12.083045973594572,0,11.180339887498949,0,11.401754250991379,0,11.401754250991379,2,11.401754250991379,0,15.556349186104045,27,14.212670403551895,0,15.556349186104045,0,15.556349186104045,0,15.556349186104045,0,15.556349186104045,19,43.416586692184822,0,15.556349186104045,0,15.556349186104045,0,15.556349186104045,0,15.556349186104045,0,15.556349186104045,0,15.556349186104045,0,15.556349186104045,0,13.038404810405298,0,13.038404810405298,0,15.556349186104045,0,15.556349186104045,0,13.038404810405298,0,11.401754250991379,0,13.038404810405298,0,15.556349186104045,0,15.556349186104045,0,15.556349186104045,0,15.556349186104045,10,20.808652046684813]
[null,"5 to 17 years",0,33.166247903554002,0,33.166247903554002,0,33.166247903554002,391,122.68659258452001,0,33.166247903554002,78,49.050993873722888,0,33.166247903554002,14,27,93,45.044422518220834,25,25.258661880630179,0,33.166247903554002,0,33.166247903554002,11,26.589471600616662,0,33.166247903554002,0,33.166247903554002,0,33.166247903554002,2,31.859064644147981,0,33.166247903554002,38,38.858718455450898,0,33.166247903554002,0,33.166247903554002,0,33.166247903554002,0,33.166247903554002,49,57.375953151124207,0,33.166247903554002,0,33.166247903554002,2,31.432467291003423,2,31.54362059117501,0,33.166247903554002,0,33.166247903554002,0,33.166247903554002,14,27.03701166919155,0,33.166247903554002,0,33.166247903554002,0,33.166247903554002,0,33.166247903554002,5,29.866369046136157,13,32.046840717924134,0,33.166247903554002,0,33.166247903554002,0,33.166247903554002,0,33.166247903554002,52,31.622776601683793]
[null,"18 to 64 years",0,34.785054261852174,0,34.785054261852174,0,34.785054261852174,818,168.54672942540296,0,34.785054261852174,119,90.210864090751286,0,34.785054261852174,41,30.577769702841312,221,74.060785845142092,59,30.495901363953813,0,34.785054261852174,0,34.785054261852174,59,35.298725189445584,2,31.32091952673165,4,29.681644159311659,4,29.478805945967352,16,24.617067250182341,0,34.785054261852174,106,48.383881613611777,8,33.61547262794322,0,34.785054261852174,0,34.785054261852174,0,34.785054261852174,152,79.567581338130424,0,34.785054261852174,0,34.785054261852174,2,33.136083051561783,2,33.136083051561783,0,34.785054261852174,0,34.785054261852174,5,31.827660925679098,68,34.132096331752024,11,30.886890422961002,0,34.785054261852174,0,34.785054261852174,13,28.600699292150182,22,22.825424421026653,73,32.634337744161442,0,34.785054261852174,0,34.785054261852174,0,34.785054261852174,15,32.984845004941285,138,53.235326616824658]
[null,"65 to 74 years",0,15.556349186104045,0,15.556349186104045,0,15.556349186104045,46,27.202941017470888,0,15.556349186104045,0,15.556349186104045,0,15.556349186104045,0,15.556349186104045,20,26.40075756488817,8,5.8309518948453007,0,15.556349186104045,0,15.556349186104045,16,10,0,15.556349186104045,0,15.556349186104045,2,11.401754250991379,6,13.038404810405298,0,15.556349186104045,24,39.560080889704963,0,15.556349186104045,0,15.556349186104045,0,15.556349186104045,0,15.556349186104045,28,27.313000567495326,0,15.556349186104045,0,15.556349186104045,0,15.556349186104045,0,15.556349186104045,0,15.556349186104045,0,15.556349186104045,0,15.556349186104045,9,8.4852813742385695,0,15.556349186104045,0,15.556349186104045,0,15.556349186104045,0,15.556349186104045,9,8.5440037453175304,27,19.235384061671343,0,15.556349186104045,0,15.556349186104045,0,15.556349186104045,1,11.401754250991379,22,26.570660511172846]
[null,"75 years and over",0,15.556349186104045,0,15.556349186104045,0,15.556349186104045,140,78.517513969814402,0,15.556349186104045,3,11.704699910719626,0,15.556349186104045,5,13.601470508735444,0,15.556349186104045,5,5,0,15.556349186104045,0,15.556349186104045,0,15.556349186104045,0,15.556349186104045,0,15.556349186104045,1,11.180339887498949,0,15.556349186104045,0,15.556349186104045,8,17.029386365926403,0,15.556349186104045,0,15.556349186104045,0,15.556349186104045,0,15.556349186104045,45,31.240998703626616,0,15.556349186104045,0,15.556349186104045,0,15.556349186104045,0,15.556349186104045,0,15.556349186104045,0,15.556349186104045,0,15.556349186104045,18,13.416407864998739,2,11.401754250991379,0,15.556349186104045,0,15.556349186104045,0,15.556349186104045,6,13.038404810405298,0,15.556349186104045,0,15.556349186104045,0,15.556349186104045,0,15.556349186104045,0,15.556349186104045,12,12.206555615733702]
[null," Income in the past 12 months at or above poverty level ",0,11,0,11,0,11,7162,606,17,16,791,161,0,11,252,58,1976,207,620,126,0,11,0,11,841,141,11,10,7,10,341,77,275,69,0,11,2562,99,0,11,0,11,0,11,0,11,2999,168,0,11,0,11,14,12,15,15,0,11,0,11,3,4,766,128,411,72,9,12,0,11,345,66,448,92,599,119,0,11,0,11,0,11,46,27,1830,218]
[null,"Under 5 years",0,15.556349186104045,0,15.556349186104045,0,15.556349186104045,309,93.434469014384618,0,15.556349186104045,27,18.601075237738275,0,15.556349186104045,8,14.866068747318506,63,35.468295701936398,20,11.661903789690601,0,15.556349186104045,0,15.556349186104045,7,7.810249675906654,0,15.556349186104045,0,15.556349186104045,4,12.083045973594572,3,2.8284271247461903,0,15.556349186104045,135,71.840100222647237,0,15.556349186104045,0,15.556349186104045,0,15.556349186104045,0,15.556349186104045,104,60.307545133258408,0,15.556349186104045,0,15.556349186104045,3,5.6568542494923806,5,5.6568542494923806,0,15.556349186104045,0,15.556349186104045,0,15.556349186104045,2,12.083045973594572,2,3.6055512754639891,0,15.556349186104045,0,15.556349186104045,13,12.649110640673518,31,19.209372712298546,26,20.248456731316587,0,15.556349186104045,0,15.556349186104045,0,15.556349186104045,0,15.556349186104045,87,36.878177829171548]
[null,"5 to 17 years",0,34.785054261852174,0,34.785054261852174,0,34.785054261852174,809,157.43887702851541,0,34.785054261852174,109,39.673668849754748,0,34.785054261852174,28,27.294688127912362,212,62.016126934854611,77,32.572994949804659,0,34.785054261852174,0,34.785054261852174,114,42.988370520409354,0,34.785054261852174,0,34.785054261852174,71,27.802877548915689,13,31.32091952673165,0,34.785054261852174,368,83.52843827104634,0,34.785054261852174,0,34.785054261852174,0,34.785054261852174,0,34.785054261852174,529,124.30607386608267,0,34.785054261852174,0,34.785054261852174,0,34.785054261852174,0,34.785054261852174,0,34.785054261852174,0,34.785054261852174,0,34.785054261852174,66,36.180105030251084,57,28.460498941515414,0,34.785054261852174,0,34.785054261852174,42,29.427877939124322,58,30.919249667480614,35,40.595566260368876,0,34.785054261852174,0,34.785054261852174,0,34.785054261852174,4,33.541019662496844,203,67.149087856798175]
[null,"18 to 64 years",0,34.785054261852174,0,34.785054261852174,0,34.785054261852174,4434,316.74279786602881,12,31.176914536239792,456,96.778096695481665,0,34.785054261852174,140,31.272991542223778,1214,134.17525852406621,372,69.706527671373792,0,34.785054261852174,0,34.785054261852174,491,82.649863883735463,11,26.664583251946766,7,30.789608636681304,187,36.276714294434107,170,39.987498046264413,0,34.785054261852174,1618,183.68179006096386,0,34.785054261852174,0,34.785054261852174,0,34.785054261852174,0,34.785054261852174,1891,208.72230355187247,0,34.785054261852174,0,34.785054261852174,11,28.565713714171402,10,28.337254630609507,0,34.785054261852174,0,34.785054261852174,3,31.622776601683793,486,81.19729059519166,227,38.157568056677825,9,32.449961479175904,0,34.785054261852174,202,38.561638969317684,264,50.169711978443729,328,69.03622237637282,0,34.785054261852174,0,34.785054261852174,0,34.785054261852174,29,29.240383034426891,1238,137.90939054321137]
[null,"65 to 74 years",0,15.556349186104045,0,15.556349186104045,0,15.556349186104045,704,95.268042910516428,0,15.556349186104045,162,41.231056256176608,0,15.556349186104045,45,19.104973174542799,368,82.419657849326214,101,29.154759474226502,0,15.556349186104045,0,15.556349186104045,138,29.832867780352597,0,15.556349186104045,0,15.556349186104045,55,17.029386365926403,55,20.615528128088304,0,15.556349186104045,179,52.497618993626752,0,15.556349186104045,0,15.556349186104045,0,15.556349186104045,0,15.556349186104045,348,77.155686763841331,0,15.556349186104045,0,15.556349186104045,0,15.556349186104045,0,15.556349186104045,0,15.556349186104045,0,15.556349186104045,0,15.556349186104045,150,34.655446902326915,69,18.439088914585774,0,15.556349186104045,0,15.556349186104045,41,14.422205101855956,52,15.620499351813308,144,49.406477308142499,0,15.556349186104045,0,15.556349186104045,0,15.556349186104045,13,12.165525060596439,157,46.872166581031863]
[null,"75 years and over",0,15.556349186104045,0,15.556349186104045,0,15.556349186104045,906,121.03718436910205,5,13.038404810405298,37,17.691806012954132,0,15.556349186104045,31,14.142135623730951,119,36.069377593742864,50,21.095023109728988,0,15.556349186104045,0,15.556349186104045,91,25.612496949731394,0,15.556349186104045,0,15.556349186104045,24,14.317821063276353,34,20,0,15.556349186104045,262,70.936591403872796,0,15.556349186104045,0,15.556349186104045,0,15.556349186104045,0,15.556349186104045,127,55.901699437494742,0,15.556349186104045,0,15.556349186104045,0,15.556349186104045,0,15.556349186104045,0,15.556349186104045,0,15.556349186104045,0,15.556349186104045,62,24.839484696748443,56,16.401219466856727,0,15.556349186104045,0,15.556349186104045,47,15.620499351813308,43,15.620499351813308,66,29.681644159311659,0,15.556349186104045,0,15.556349186104045,0,15.556349186104045,0,15.556349186104045,145,53.907327887774215]
[]
[]
[]
[]
[]
[]
[]
[]
[]
[]
[]
[]
[]
[]
[]
[]
[]
[]
[]
[]
[]
[]
[]
[]
[]
[]
[]
[]
[]
[]
[]
[]
[]
[]
[]
[]
[]
[]
[]
[]
[]
[]
[null,"Calculated Table B17001. POVERTY STATUS IN THE PAST 12 MONTHS BY SEX BY AGE"]
[null,"Universe:  POPULATION FOR WHOM POVERTY STATUS IS DETERMINED"]
[null,"Data Set: 2005-2009 American Community Survey 5-Year Estimates"]
[]
[null,null,"Atkinson and Gilmanton Grant",null,"Bean's Grant",null,"Bean's Purchase",null,"Berlin",null,"Cambridge",null,"Carroll",null,"Chandler's Purchase",null,"Clarksville",null,"Colebrook",null,"Columbia",null,"Crawford's Purchase",null,"Cutt's Grant",null,"Dalton",null,"Dix's Grant",null,"Dixville",null,"Dummer",null,"Errol",null,"Erving's Location",null,"Gorham",null,"Greens Grant",null,"Hadley's Purchase",null,"Jefferson",null,"Kilkenny",null,"Lancaster",null,"Low and Burbank's Grant",null,"Martin's Location",null,"Milan",null,"Millsfield",null,"Northumberland",null,"Odell",null,"Pinkham's Grant",null,"Pittsburg",null,"Randolph",null,"Sargent's Purchase",null,"Second College Grant",null,"Shelburne",null,"Stark",null,"Stewartstown",null,"Stratford",null,"Success",null,"Thompson and Meserves Purchase",null,"Wentworth's Location",null,"Whitefield"]
[null,null,"Estimate","Margin Of Error","Estimate","Margin Of Error","Estimate","Margin Of Error","Estimate","Margin Of Error","Estimate","Margin Of Error","Estimate","Margin Of Error","Estimate","Margin Of Error","Estimate","Margin Of Error","Estimate","Margin Of Error","Estimate","Margin Of Error","Estimate","Margin Of Error","Estimate","Margin Of Error","Estimate","Margin Of Error","Estimate","Margin Of Error","Estimate","Margin Of Error","Estimate","Margin Of Error","Estimate","Margin Of Error","Estimate","Margin Of Error","Estimate","Margin Of Error","Estimate","Margin Of Error","Estimate","Margin Of Error","Estimate","Margin Of Error","Estimate","Margin Of Error","Estimate","Margin Of Error","Estimate","Margin Of Error","Estimate","Margin Of Error","Estimate","Margin Of Error","Estimate","Margin Of Error","Estimate","Margin Of Error","Estimate","Margin Of Error","Estimate","Margin Of Error","Estimate","Margin Of Error","Estimate","Margin Of Error","Estimate","Margin Of Error","Estimate","Margin Of Error","Estimate","Margin Of Error","Estimate","Margin Of Error","Estimate","Margin Of Error","Estimate","Margin Of Error","Estimate","Margin Of Error","Estimate","Margin Of Error","Estimate","Margin Of Error","Estimate","Margin Of Error"]
[null,"Total:",0,114,0,114,0,114,8675,524,0,114,568,113,0,114,330,79,2141,252,830,186,0,114,0,114,1158,145,0,114,21,22,351,127,253,71,0,114,2816,26,0,114,0,114,925,106,0,114,3231,43,0,114,0,114,1271,112,4,5,2240,245,0,114,0,114,773,138,346,83,0,114,0,114,427,81,540,139,969,185,1003,187,0,114,0,114,43,25,1903,196]
[null,"Income in the past 12 months below poverty level:",0,114,0,114,0,114,1295,280,0,114,39,26,0,114,23,16,336,151,58,40,0,114,0,114,141,71,0,114,0,114,10,12,4,4,0,114,228,191,0,114,0,114,82,38,0,114,277,113,0,114,0,114,138,48,0,114,220,95,0,114,0,114,59,26,1,3,0,114,0,114,19,16,49,36,124,52,247,109,0,114,0,114,4,6,279,107]
[null,"Under 5 years",0,161.22034611053283,0,161.22034611053283,0,161.22034611053283,110,71.589105316381762,0,161.22034611053283,0,161.22034611053283,0,161.22034611053283,0,114.0701538527936,38,46.065171225124082,0,114.52947218947619,0,161.22034611053283,0,161.22034611053283,8,114.0701538527936,0,161.22034611053283,0,161.22034611053283,3,161.22034611053283,0,161.22034611053283,0,161.22034611053283,0,115.26057435220423,0,161.22034611053283,0,161.22034611053283,0,114.03946685248927,0,161.22034611053283,0,114.62983904725679,0,161.22034611053283,0,161.22034611053283,16,11.180339887498949,0,161.22034611053283,43,31.304951684997057,0,161.22034611053283,0,161.22034611053283,0,114.15778554264269,0,161.22034611053283,0,161.22034611053283,0,161.22034611053283,0,161.22034611053283,10,114.73883387938018,28,114.0175425099138,39,25.942243542145693,0,161.22034611053283,0,161.22034611053283,0,161.22034611053283,10,13.45362404707371]
[null,"5 to 17 years",0,342.16662607565922,0,342.16662607565922,0,342.16662607565922,292,100.15987220439132,0,342.16662607565922,6,322.67320930005951,0,342.16662607565922,0,342.16662607565922,23,323.83020242096012,15,279.88211804257878,0,342.16662607565922,0,342.16662607565922,37,256.84041738013121,0,342.16662607565922,0,342.16662607565922,0,342.16662607565922,0,342.16662607565922,0,342.16662607565922,107,269.4846934428744,0,342.16662607565922,0,342.16662607565922,9,279.53175132710771,0,342.16662607565922,65,312.58758772542456,0,342.16662607565922,0,342.16662607565922,24,198.10098434889213,0,342.16662607565922,25,303.57700835208192,0,342.16662607565922,0,342.16662607565922,3,322.65616374090854,0,342.16662607565922,0,342.16662607565922,0,342.16662607565922,0,342.16662607565922,0,342.16662607565922,7,301.9271435296933,33,255.9531207076796,0,342.16662607565922,0,342.16662607565922,0,342.16662607565922,47,256.83652388241046]
[null,"18 to 64 years",0,360.49965325919527,0,360.49965325919527,0,360.49965325919527,758,172.27884373886423,0,360.49965325919527,33,255.91795560296273,0,360.49965325919527,15,279.4029348450012,190,213.85976713725282,41,256.08201811138554,0,360.49965325919527,0,360.49965325919527,78,35.355339059327378,0,360.49965325919527,0,360.49965325919527,6,342.05262752974141,3,342.02339101295399,0,360.49965325919527,106,264.21960563137628,0,360.49965325919527,0,360.49965325919527,73,199.88246546408217,0,360.49965325919527,130,179.43243853885505,0,360.49965325919527,0,360.49965325919527,92,31.733263305244861,0,360.49965325919527,129,207.20521228965259,0,360.49965325919527,0,360.49965325919527,46,229.00655012466348,1,342.01315764163223,0,360.49965325919527,0,360.49965325919527,12,255.09802037648194,30,228.77062748526089,71,117.73699503554522,134,124.96399481450646,0,360.49965325919527,0,360.49965325919527,4,342.05262752974141,136,132.48396129343357]
[null,"65 to 74 years",0,161.22034611053283,0,161.22034611053283,0,161.22034611053283,61,54.817880294662984,0,161.22034611053283,0,161.22034611053283,0,161.22034611053283,4,114.10959644131601,41,43.56604182158393,2,114.0701538527936,0,161.22034611053283,0,161.22034611053283,3,114.10959644131601,0,161.22034611053283,0,161.22034611053283,0,161.22034611053283,1,114.0175425099138,0,161.22034611053283,0,161.22034611053283,0,161.22034611053283,0,161.22034611053283,0,161.22034611053283,0,161.22034611053283,51,121.14866899805379,0,161.22034611053283,0,161.22034611053283,0,161.22034611053283,0,161.22034611053283,0,161.22034611053283,0,161.22034611053283,0,161.22034611053283,5,114.28035701729323,0,161.22034611053283,0,161.22034611053283,0,161.22034611053283,7,6.7082039324993694,8,114.35471131527551,6,114.35471131527551,24,26.172504656604801,0,161.22034611053283,0,161.22034611053283,0,161.22034611053283,58,46.861498055439924]
[null,"75 years and over",0,161.22034611053283,0,161.22034611053283,0,161.22034611053283,74,40.70626487409524,0,161.22034611053283,0,161.22034611053283,0,161.22034611053283,4,4.2426406871192848,44,31.400636936215164,0,161.22034611053283,0,161.22034611053283,0,161.22034611053283,15,114.43775600735974,0,161.22034611053283,0,161.22034611053283,1,114.0701538527936,0,161.22034611053283,0,161.22034611053283,15,115.26057435220423,0,161.22034611053283,0,161.22034611053283,0,161.22034611053283,0,161.22034611053283,31,24.207436873820409,0,161.22034611053283,0,161.22034611053283,6,114.15778554264269,0,161.22034611053283,23,116.49892703368559,0,161.22034611053283,0,161.22034611053283,5,5,0,161.22034611053283,0,161.22034611053283,0,161.22034611053283,0,161.22034611053283,1,114.03946685248927,12,11.661903789690601,17,115.11733144926528,0,161.22034611053283,0,161.22034611053283,0,161.22034611053283,28,31.240998703626616]
[null," Income in the past 12 months at or above poverty level ",0,114,0,114,0,114,7380,520,0,114,529,110,0,114,307,74,1805,279,772,185,0,114,0,114,1017,139,0,114,21,22,341,128,249,70,0,114,2588,192,0,114,0,114,843,111,0,114,2954,122,0,114,0,114,1133,106,4,5,2020,240,0,114,0,114,714,140,345,83,0,114,0,114,408,84,491,126,845,180,756,157,0,114,0,114,39,25,1624,205]
[null,"Under 5 years",0,161.22034611053283,0,161.22034611053283,0,161.22034611053283,365,104.35037134576953,0,161.22034611053283,3,114.0701538527936,0,161.22034611053283,4,114.15778554264269,62,46.957427527495582,34,32.202484376209235,0,161.22034611053283,0,161.22034611053283,56,25.45584412271571,0,161.22034611053283,6,114.21471008587291,2,114.03946685248927,9,8.0622577482985491,0,161.22034611053283,58,38.483762809787713,0,161.22034611053283,0,161.22034611053283,46,22.803508501982758,0,161.22034611053283,199,79.649231006959511,0,161.22034611053283,0,161.22034611053283,50,24.413111231467404,0,161.22034611053283,32,23.259406699226016,0,161.22034611053283,0,161.22034611053283,46,32.310988842807021,6,114.52947218947619,0,161.22034611053283,0,161.22034611053283,13,10.295630140987001,14,15.556349186104045,44,31.304951684997057,49,29,0,161.22034611053283,0,161.22034611053283,0,161.22034611053283,124,46.75467891024384]
[null,"5 to 17 years",0,360.49965325919527,0,360.49965325919527,0,360.49965325919527,1006,170.9678332318685,0,360.49965325919527,28,255.64819576910767,0,360.49965325919527,45,162.52692084697844,265,188.00265955565629,140,171.56922801015338,0,360.49965325919527,0,360.49965325919527,176,169.68794889443387,0,360.49965325919527,0,360.49965325919527,57,200.94526617962416,29,280.05178092631371,0,360.49965325919527,487,121.29303360045044,0,360.49965325919527,0,360.49965325919527,112,119.17214439624723,0,360.49965325919527,657,247.50555549320504,0,360.49965325919527,0,360.49965325919527,133,117.30302638892144,0,360.49965325919527,338,189.26172354705005,0,360.49965325919527,0,360.49965325919527,46,229.26622080018677,30,228.68318696397424,0,360.49965325919527,0,360.49965325919527,51,198.62275801126114,50,198.90701345100931,173,169.51106158596258,88,164.55394252341694,0,360.49965325919527,0,360.49965325919527,6,342.11840055746785,194,127.60877712759417]
[null,"18 to 64 years",0,360.49965325919527,0,360.49965325919527,0,360.49965325919527,4537,319.6341658834362,0,360.49965325919527,410,72.034713853808015,0,360.49965325919527,193,41.605288125429439,1175,186.24983221468952,470,94.424573072903016,0,360.49965325919527,0,360.49965325919527,653,91.885798685106934,0,360.49965325919527,15,322.66546143025596,207,67.631353675643666,145,119.71633138381748,0,360.49965325919527,1669,204.73397373176735,0,360.49965325919527,0,360.49965325919527,520,74.384138094085628,0,360.49965325919527,1769,207.73059476158056,0,360.49965325919527,0,360.49965325919527,777,64.79969135728966,4,342.03654775476843,1296,157.66102879278696,0,360.49965325919527,0,360.49965325919527,414,73.53230582539895,199,43.011626335213137,0,360.49965325919527,0,360.49965325919527,291,54.981815175565096,318,65.89385403814228,463,76.746335417399578,484,90.293964360858581,0,360.49965325919527,0,360.49965325919527,21,301.91058278901056,1059,132.94359706281458]
[null,"65 to 74 years",0,161.22034611053283,0,161.22034611053283,0,161.22034611053283,664,130.728726758888,0,161.22034611053283,68,26.870057685088806,0,161.22034611053283,45,25.553864678361276,116,51.088159097779204,103,39.66106403010388,0,161.22034611053283,0,161.22034611053283,96,29,0,161.22034611053283,0,161.22034611053283,54,14.866068747318506,63,21.400934559032695,0,161.22034611053283,115,51.400389103585589,0,161.22034611053283,0,161.22034611053283,125,31.89043743820395,0,161.22034611053283,198,65.115282384398824,0,161.22034611053283,0,161.22034611053283,115,28.284271247461902,0,161.22034611053283,192,56.639209034025185,0,161.22034611053283,0,161.22034611053283,161,42.01190307520001,75,29.206163733020468,0,161.22034611053283,0,161.22034611053283,31,18.357559750685819,81,28.42534080710379,103,38.948684188300895,99,40.459856648287818,0,161.22034611053283,0,161.22034611053283,4,114.15778554264269,118,35.608987629529715]
[null,"75 years and over",0,161.22034611053283,0,161.22034611053283,0,161.22034611053283,808,197.72961336127676,0,161.22034611053283,20,12.727922061357855,0,161.22034611053283,20,13.601470508735444,187,61.846584384264908,25,15.620499351813308,0,161.22034611053283,0,161.22034611053283,36,17.691806012954132,0,161.22034611053283,0,161.22034611053283,21,12.041594578792296,3,114.0701538527936,0,161.22034611053283,259,74.202425836356596,0,161.22034611053283,0,161.22034611053283,40,17.804493814764857,0,161.22034611053283,131,60.307545133258408,0,161.22034611053283,0,161.22034611053283,58,22.671568097509269,0,161.22034611053283,162,42.5205832509386,0,161.22034611053283,0,161.22034611053283,47,21.400934559032695,35,17.691806012954132,0,161.22034611053283,0,161.22034611053283,22,12.806248474865697,28,14.142135623730951,62,25.45584412271571,36,24.839484696748443,0,161.22034611053283,0,161.22034611053283,8,114.43775600735974,129,36.124783736376884]

{"sheet":"ACS_Table_B17010","index":51,"n_rows":156,"n_cols":88,"rows_kept":156,"cut":false,"hidden":true,"merged":[]}
[null,"B17010. POVERTY STATUS IN THE PAST 12 MONTHS OF FAMILIES BY FAMILY TYPE BY PRESENCE OF RELATED CHILDREN UNDER 18 YEARS"]
[null,"Universe: FAMILIES"]
[null,"Data Set: 2015-2019 American Community Survey 5-Year Estimates"]
[]
[null,null,"Atkinson and Gilmanton Grant",null,"Bean's Grant",null,"Bean's Purchase",null,"Berlin",null,"Cambridge",null,"Carroll",null,"Chandler's Purchase",null,"Clarksville",null,"Colebrook",null,"Columbia",null,"Crawford's Purchase",null,"Cutt's Grant",null,"Dalton",null,"Dix's Grant",null,"Dixville",null,"Dummer",null,"Errol",null,"Erving's Location",null,"Gorham",null,"Greens Grant",null,"Hadley's Purchase",null,"Jefferson",null,"Kilkenny",null,"Lancaster",null,"Low and Burbank's Grant",null,"Martin's Location",null,"Milan",null,"Millsfield",null,"Northumberland",null,"Odell",null,"Pinkham's Grant",null,"Pittsburg",null,"Randolph",null,"Sargent's Purchase",null,"Second College Grant",null,"Shelburne",null,"Stark",null,"Stewartstown",null,"Stratford",null,"Success",null,"Thompson and Meserves Purchase",null,"Wentworth's Location",null,"Whitefield"]
[null,null,"Estimate","Margin Of Error","Estimate","Margin Of Error","Estimate","Margin Of Error","Estimate","Margin Of Error","Estimate","Margin Of Error","Estimate","Margin Of Error","Estimate","Margin Of Error","Estimate","Margin Of Error","Estimate","Margin Of Error","Estimate","Margin Of Error","Estimate","Margin Of Error","Estimate","Margin Of Error","Estimate","Margin Of Error","Estimate","Margin Of Error","Estimate","Margin Of Error","Estimate","Margin Of Error","Estimate","Margin Of Error","Estimate","Margin Of Error","Estimate","Margin Of Error","Estimate","Margin Of Error","Estimate","Margin Of Error","Estimate","Margin Of Error","Estimate","Margin Of Error","Estimate","Margin Of Error","Estimate","Margin Of Error","Estimate","Margin Of Error","Estimate","Margin Of Error","Estimate","Margin Of Error","Estimate","Margin Of Error","Estimate","Margin Of Error","Estimate","Margin Of Error","Estimate","Margin Of Error","Estimate","Margin Of Error","Estimate","Margin Of Error","Estimate","Margin Of Error","Estimate","Margin Of Error","Estimate","Margin Of Error","Estimate","Margin Of Error","Estimate","Margin Of Error","Estimate","Margin Of Error","Estimate","Margin Of Error","Estimate","Margin Of Error","Estimate","Margin Of Error"]
[null,"Total:",0,11,0,11,0,11,2236,170,0,11,225,42,0,11,93,25,516,70,176,39,0,11,0,11,272,59,0,11,0,11,90,20,61,21,0,11,798,63,0,11,0,11,265,50,0,11,836,80,0,11,0,11,419,39,4,6,590,83,0,11,0,11,222,49,124,29,0,11,0,11,132,25,155,35,246,52,171,39,0,11,0,11,9,7,611,78]
[null,"Income in the past 12 months below poverty level:",0,11,0,11,0,11,322,111,0,11,0,11,0,11,7,8,43,32,12,8,0,11,0,11,7,8,0,11,0,11,12,12,6,8,0,11,18,20,0,11,0,11,6,6,0,11,32,30,0,11,0,11,27,21,0,11,32,27,0,11,0,11,0,11,2,3,0,11,0,11,0,11,8,8,19,20,48,27,0,11,0,11,0,11,59,30]
[null,"Married-couple family:",0,11,0,11,0,11,154,85,0,11,0,11,0,11,7,8,30,29,4,4,0,11,0,11,7,8,0,11,0,11,5,8,0,11,0,11,10,15,0,11,0,11,6,6,0,11,24,27,0,11,0,11,9,7,0,11,9,9,0,11,0,11,0,11,2,3,0,11,0,11,0,11,6,5,0,11,16,10,0,11,0,11,0,11,15,15]
[null,"With related children under 18 years:",0,11,0,11,0,11,53,48,0,11,0,11,0,11,5,8,21,27,0,11,0,11,0,11,4,6,0,11,0,11,0,11,0,11,0,11,0,11,0,11,0,11,3,4,0,11,15,23,0,11,0,11,0,11,0,11,5,7,0,11,0,11,0,11,0,11,0,11,0,11,0,11,2,3,0,11,9,8,0,11,0,11,0,11,9,13]
[null,"Under 5 years only",0,11,0,11,0,11,0,18,0,11,0,11,0,11,0,11,0,11,0,11,0,11,0,11,0,11,0,11,0,11,0,11,0,11,0,11,0,11,0,11,0,11,0,11,0,11,0,11,0,11,0,11,0,11,0,11,0,11,0,11,0,11,0,11,0,11,0,11,0,11,0,11,0,11,0,11,0,11,0,11,0,11,0,11,0,11]
[null,"Under 5 years and 5 to 17 years",0,11,0,11,0,11,0,18,0,11,0,11,0,11,0,11,21,27,0,11,0,11,0,11,0,11,0,11,0,11,0,11,0,11,0,11,0,11,0,11,0,11,3,4,0,11,0,11,0,11,0,11,0,11,0,11,0,11,0,11,0,11,0,11,0,11,0,11,0,11,0,11,2,3,0,11,0,11,0,11,0,11,0,11,0,11]
[null,"5 to 17 years only",0,11,0,11,0,11,53,48,0,11,0,11,0,11,5,8,0,11,0,11,0,11,0,11,4,6,0,11,0,11,0,11,0,11,0,11,0,11,0,11,0,11,0,11,0,11,15,23,0,11,0,11,0,11,0,11,5,7,0,11,0,11,0,11,0,11,0,11,0,11,0,11,0,11,0,11,9,8,0,11,0,11,0,11,9,13]
[null,"No related children under 18 years",0,11,0,11,0,11,101,69,0,11,0,11,0,11,2,3,9,9,4,4,0,11,0,11,3,5,0,11,0,11,5,8,0,11,0,11,10,15,0,11,0,11,3,4,0,11,9,15,0,11,0,11,9,7,0,11,4,6,0,11,0,11,0,11,2,3,0,11,0,11,0,11,4,5,0,11,7,6,0,11,0,11,0,11,6,8]
[null,"Other family:",0,11,0,11,0,11,168,83,0,11,0,11,0,11,0,11,13,16,8,6,0,11,0,11,0,11,0,11,0,11,7,9,6,8,0,11,8,12,0,11,0,11,0,11,0,11,8,13,0,11,0,11,18,19,0,11,23,25,0,11,0,11,0,11,0,11,0,11,0,11,0,11,2,6,19,20,32,24,0,11,0,11,0,11,44,27]
[null,"Male householder, no spouse present:",0,11,0,11,0,11,16,20,0,11,0,11,0,11,0,11,0,11,0,11,0,11,0,11,0,11,0,11,0,11,4,7,0,11,0,11,0,11,0,11,0,11,0,11,0,11,8,13,0,11,0,11,0,11,0,11,0,11,0,11,0,11,0,11,0,11,0,11,0,11,0,11,0,11,3,5,19,19,0,11,0,11,0,11,0,11]
[null,"With related children under 18 years:",0,11,0,11,0,11,16,20,0,11,0,11,0,11,0,11,0,11,0,11,0,11,0,11,0,11,0,11,0,11,4,7,0,11,0,11,0,11,0,11,0,11,0,11,0,11,0,11,0,11,0,11,0,11,0,11,0,11,0,11,0,11,0,11,0,11,0,11,0,11,0,11,0,11,3,5,19,19,0,11,0,11,0,11,0,11]
[null,"Under 5 years only",0,11,0,11,0,11,8,13,0,11,0,11,0,11,0,11,0,11,0,11,0,11,0,11,0,11,0,11,0,11,0,11,0,11,0,11,0,11,0,11,0,11,0,11,0,11,0,11,0,11,0,11,0,11,0,11,0,11,0,11,0,11,0,11,0,11,0,11,0,11,0,11,0,11,0,11,9,14,0,11,0,11,0,11,0,11]
[null,"Under 5 years and 5 to 17 years",0,11,0,11,0,11,0,18,0,11,0,11,0,11,0,11,0,11,0,11,0,11,0,11,0,11,0,11,0,11,0,11,0,11,0,11,0,11,0,11,0,11,0,11,0,11,0,11,0,11,0,11,0,11,0,11,0,11,0,11,0,11,0,11,0,11,0,11,0,11,0,11,0,11,0,11,0,11,0,11,0,11,0,11,0,11]
[null,"5 to 17 years only",0,11,0,11,0,11,8,15,0,11,0,11,0,11,0,11,0,11,0,11,0,11,0,11,0,11,0,11,0,11,4,7,0,11,0,11,0,11,0,11,0,11,0,11,0,11,0,11,0,11,0,11,0,11,0,11,0,11,0,11,0,11,0,11,0,11,0,11,0,11,0,11,0,11,3,5,10,14,0,11,0,11,0,11,0,11]
[null,"No related children under 18 years",0,11,0,11,0,11,0,18,0,11,0,11,0,11,0,11,0,11,0,11,0,11,0,11,0,11,0,11,0,11,0,11,0,11,0,11,0,11,0,11,0,11,0,11,0,11,8,13,0,11,0,11,0,11,0,11,0,11,0,11,0,11,0,11,0,11,0,11,0,11,0,11,0,11,0,11,0,11,0,11,0,11,0,11,0,11]
[null,"Female householder, no spouse present:",0,11,0,11,0,11,152,83,0,11,0,11,0,11,0,11,13,16,8,6,0,11,0,11,0,11,0,11,0,11,3,5,6,8,0,11,8,12,0,11,0,11,0,11,0,11,0,11,0,11,0,11,18,19,0,11,23,25,0,11,0,11,0,11,0,11,0,11,0,11,0,11,2,6,16,20,13,15,0,11,0,11,0,11,44,27]
[null,"With related children under 18 years:",0,11,0,11,0,11,120,81,0,11,0,11,0,11,0,11,13,16,8,6,0,11,0,11,0,11,0,11,0,11,3,5,1,2,0,11,8,12,0,11,0,11,0,11,0,11,0,11,0,11,0,11,18,19,0,11,23,25,0,11,0,11,0,11,0,11,0,11,0,11,0,11,0,11,14,20,13,15,0,11,0,11,0,11,38,26]
[null,"Under 5 years only",0,11,0,11,0,11,31,47,0,11,0,11,0,11,0,11,13,16,0,11,0,11,0,11,0,11,0,11,0,11,0,11,0,11,0,11,0,11,0,11,0,11,0,11,0,11,0,11,0,11,0,11,0,11,0,11,17,24,0,11,0,11,0,11,0,11,0,11,0,11,0,11,0,11,0,11,0,11,0,11,0,11,0,11,11,15]
[null,"Under 5 years and 5 to 17 years",0,11,0,11,0,11,41,53,0,11,0,11,0,11,0,11,0,11,5,7,0,11,0,11,0,11,0,11,0,11,3,5,0,11,0,11,0,11,0,11,0,11,0,11,0,11,0,11,0,11,0,11,15,19,0,11,0,11,0,11,0,11,0,11,0,11,0,11,0,11,0,11,0,11,0,11,0,11,0,11,0,11,0,11,0,11]
[null,"5 to 17 years only",0,11,0,11,0,11,48,50,0,11,0,11,0,11,0,11,0,11,3,4,0,11,0,11,0,11,0,11,0,11,0,11,1,2,0,11,8,12,0,11,0,11,0,11,0,11,0,11,0,11,0,11,3,4,0,11,6,8,0,11,0,11,0,11,0,11,0,11,0,11,0,11,0,11,14,20,13,15,0,11,0,11,0,11,27,25]
[null,"No related children under 18 years",0,11,0,11,0,11,32,25,0,11,0,11,0,11,0,11,0,11,0,11,0,11,0,11,0,11,0,11,0,11,0,11,5,7,0,11,0,11,0,11,0,11,0,11,0,11,0,11,0,11,0,11,0,11,0,11,0,11,0,11,0,11,0,11,0,11,0,11,0,11,0,11,2,6,2,3,0,11,0,11,0,11,0,11,6,8]
[null,"Income in the past 12 months at or above poverty level:",0,11,0,11,0,11,1914,182,0,11,225,42,0,11,86,25,473,73,164,39,0,11,0,11,265,58,0,11,0,11,78,20,55,19,0,11,780,60,0,11,0,11,259,49,0,11,804,83,0,11,0,11,392,37,4,6,558,87,0,11,0,11,222,49,122,29,0,11,0,11,132,25,147,34,227,49,123,35,0,11,0,11,9,7,552,77]
[null,"Married-couple family:",0,11,0,11,0,11,1432,167,0,11,204,42,0,11,75,25,412,69,138,36,0,11,0,11,228,55,0,11,0,11,71,18,47,18,0,11,668,59,0,11,0,11,224,43,0,11,623,103,0,11,0,11,340,39,4,6,435,71,0,11,0,11,215,49,109,28,0,11,0,11,113,25,124,29,196,47,99,33,0,11,0,11,7,6,488,75]
[null,"With related children under 18 years:",0,11,0,11,0,11,436,158,0,11,55,31,0,11,11,10,98,37,32,22,0,11,0,11,63,30,0,11,0,11,18,10,7,8,0,11,154,39,0,11,0,11,52,22,0,11,189,47,0,11,0,11,98,23,0,11,184,48,0,11,0,11,36,20,13,11,0,11,0,11,22,12,26,17,47,31,21,14,0,11,0,11,0,11,130,45]
[null,"Under 5 years only",0,11,0,11,0,11,114,83,0,11,25,23,0,11,3,4,8,13,0,11,0,11,0,11,8,8,0,11,0,11,2,3,0,11,0,11,11,16,0,11,0,11,15,12,0,11,33,31,0,11,0,11,9,10,0,11,68,36,0,11,0,11,0,11,12,11,0,11,0,11,3,3,0,11,11,15,0,11,0,11,0,11,0,11,46,30]
[null,"Under 5 years and 5 to 17 years",0,11,0,11,0,11,72,50,0,11,0,11,0,11,0,11,6,9,0,11,0,11,0,11,23,26,0,11,0,11,4,4,0,11,0,11,35,31,0,11,0,11,9,8,0,11,14,20,0,11,0,11,3,4,0,11,33,21,0,11,0,11,0,11,0,11,0,11,0,11,7,7,13,15,4,6,2,3,0,11,0,11,0,11,7,11]
[null,"5 to 17 years only",0,11,0,11,0,11,250,114,0,11,30,22,0,11,8,9,84,32,32,22,0,11,0,11,32,21,0,11,0,11,12,8,7,8,0,11,108,46,0,11,0,11,28,14,0,11,142,45,0,11,0,11,86,22,0,11,83,35,0,11,0,11,36,20,1,3,0,11,0,11,12,8,13,10,32,25,19,14,0,11,0,11,0,11,77,28]
[null,"No related children under 18 years",0,11,0,11,0,11,996,117,0,11,149,31,0,11,64,22,314,61,106,29,0,11,0,11,165,46,0,11,0,11,53,16,40,16,0,11,514,66,0,11,0,11,172,37,0,11,434,102,0,11,0,11,242,35,4,6,251,55,0,11,0,11,179,47,96,24,0,11,0,11,91,26,98,25,149,38,78,29,0,11,0,11,7,6,358,65]
[null,"Other family:",0,11,0,11,0,11,482,147,0,11,21,13,0,11,11,10,61,41,26,13,0,11,0,11,37,26,0,11,0,11,7,5,8,9,0,11,112,46,0,11,0,11,35,20,0,11,181,72,0,11,0,11,52,28,0,11,123,57,0,11,0,11,7,7,13,11,0,11,0,11,19,12,23,17,31,22,24,16,0,11,0,11,2,3,64,41]
[null,"Male householder, no spouse present:",0,11,0,11,0,11,244,106,0,11,6,5,0,11,2,3,0,11,5,5,0,11,0,11,10,10,0,11,0,11,3,3,4,6,0,11,56,34,0,11,0,11,13,13,0,11,58,48,0,11,0,11,7,8,0,11,51,39,0,11,0,11,7,7,0,11,0,11,0,11,6,5,18,17,13,16,16,14,0,11,0,11,2,3,9,13]
[null,"With related children under 18 years:",0,11,0,11,0,11,84,63,0,11,0,11,0,11,0,11,0,11,3,5,0,11,0,11,6,9,0,11,0,11,1,3,4,6,0,11,32,24,0,11,0,11,5,7,0,11,27,40,0,11,0,11,3,5,0,11,27,32,0,11,0,11,4,6,0,11,0,11,0,11,3,4,18,17,10,16,16,14,0,11,0,11,0,11,9,13]
[null,"Under 5 years only",0,11,0,11,0,11,46,48,0,11,0,11,0,11,0,11,0,11,0,11,0,11,0,11,6,9,0,11,0,11,0,11,0,11,0,11,0,11,0,11,0,11,0,11,0,11,0,11,0,11,0,11,3,5,0,11,0,11,0,11,0,11,0,11,0,11,0,11,0,11,0,11,4,5,0,11,0,11,0,11,0,11,0,11,0,11]
[null,"Under 5 years and 5 to 17 years",0,11,0,11,0,11,12,21,0,11,0,11,0,11,0,11,0,11,0,11,0,11,0,11,0,11,0,11,0,11,0,11,0,11,0,11,0,11,0,11,0,11,2,6,0,11,27,40,0,11,0,11,0,11,0,11,0,11,0,11,0,11,0,11,0,11,0,11,0,11,2,3,0,11,10,16,0,11,0,11,0,11,0,11,0,11]
[null,"5 to 17 years only",0,11,0,11,0,11,26,29,0,11,0,11,0,11,0,11,0,11,3,5,0,11,0,11,0,11,0,11,0,11,1,3,4,6,0,11,32,24,0,11,0,11,3,4,0,11,0,11,0,11,0,11,0,11,0,11,27,32,0,11,0,11,4,6,0,11,0,11,0,11,1,2,14,16,0,11,16,14,0,11,0,11,0,11,9,13]
[null,"No related children under 18 years",0,11,0,11,0,11,160,93,0,11,6,5,0,11,2,3,0,11,2,3,0,11,0,11,4,5,0,11,0,11,2,3,0,11,0,11,24,23,0,11,0,11,8,9,0,11,31,28,0,11,0,11,4,5,0,11,24,21,0,11,0,11,3,5,0,11,0,11,0,11,3,4,0,11,3,4,0,11,0,11,0,11,2,3,0,11]
[null,"Female householder, no spouse present:",0,11,0,11,0,11,238,88,0,11,15,11,0,11,9,10,61,41,21,13,0,11,0,11,27,24,0,11,0,11,4,4,4,7,0,11,56,36,0,11,0,11,22,15,0,11,123,62,0,11,0,11,45,27,0,11,72,40,0,11,0,11,0,11,13,11,0,11,0,11,13,10,5,6,18,14,8,7,0,11,0,11,0,11,55,38]
[null,"With related children under 18 years:",0,11,0,11,0,11,164,80,0,11,0,11,0,11,4,6,46,40,9,10,0,11,0,11,10,14,0,11,0,11,1,2,0,11,0,11,13,20,0,11,0,11,8,8,0,11,85,55,0,11,0,11,36,27,0,11,53,37,0,11,0,11,0,11,1,2,0,11,0,11,2,3,0,11,8,8,4,6,0,11,0,11,0,11,33,34]
[null,"Under 5 years only",0,11,0,11,0,11,35,32,0,11,0,11,0,11,0,11,16,19,0,11,0,11,0,11,0,11,0,11,0,11,0,11,0,11,0,11,0,11,0,11,0,11,0,11,0,11,9,16,0,11,0,11,9,13,0,11,25,26,0,11,0,11,0,11,0,11,0,11,0,11,2,3,0,11,0,11,0,11,0,11,0,11,0,11,30,33]
[null,"Under 5 years and 5 to 17 years",0,11,0,11,0,11,12,18,0,11,0,11,0,11,4,6,0,11,3,4,0,11,0,11,0,11,0,11,0,11,1,2,0,11,0,11,0,11,0,11,0,11,4,6,0,11,20,30,0,11,0,11,0,11,0,11,0,11,0,11,0,11,0,11,1,2,0,11,0,11,0,11,0,11,0,11,2,4,0,11,0,11,0,11,3,5]
[null,"5 to 17 years only",0,11,0,11,0,11,117,80,0,11,0,11,0,11,0,11,30,35,6,7,0,11,0,11,10,14,0,11,0,11,0,11,0,11,0,11,13,20,0,11,0,11,4,5,0,11,56,43,0,11,0,11,27,23,0,11,28,27,0,11,0,11,0,11,0,11,0,11,0,11,0,11,0,11,8,8,2,4,0,11,0,11,0,11,0,11]
[null,"No related children under 18 years",0,11,0,11,0,11,74,37,0,11,15,11,0,11,5,7,15,13,12,9,0,11,0,11,17,21,0,11,0,11,3,4,4,7,0,11,43,29,0,11,0,11,14,13,0,11,38,32,0,11,0,11,9,7,0,11,19,13,0,11,0,11,0,11,12,11,0,11,0,11,11,11,5,6,10,12,4,4,0,11,0,11,0,11,22,19]
[]
[]
[]
[]
[]
[]
[]
[]
[]
[]
[]
[]
[null,"B17010. POVERTY STATUS IN THE PAST 12 MONTHS OF FAMILIES BY FAMILY TYPE BY PRESENCE OF RELATED CHILDREN UNDER 18 YEARS"]
[null,"Universe: FAMILIES",null,null,null,null,null,null,null,null,null,null,null,null,"B19001. HOUSEHOLD INCOME IN THE PAST 12 MONTHS (IN 2007 INFLATION-ADJUSTED DOLLARS) - Universe:  HOUSEHOLDS"]
[null,"Data Set: 2010-2014 American Community Survey 5-Year Estimates",null,null,null,null,null,null,null,null,null,null,null,null,"Data Set: 2006-2008 American Community Survey 3-Year Estimates"]
[]
[null,null,"Atkinson and Gilmanton Grant",null,"Bean's Grant",null,"Bean's Purchase",null,"Berlin",null,"Cambridge",null,"Carroll",null,"Chandler's Purchase",null,"Clarksville",null,"Colebrook",null,"Columbia",null,"Crawford's Purchase",null,"Cutt's Grant",null,"Dalton",null,"Dix's Grant",null,"Dixville",null,"Dummer",null,"Errol",null,"Erving's Location",null,"Gorham",null,"Greens Grant",null,"Hadley's Purchase",null,"Jefferson",null,"Kilkenny",null,"Lancaster",null,"Low and Burbank's Grant",null,"Martin's Location",null,"Milan",null,"Millsfield",null,"Northumberland",null,"Odell",null,"Pinkham's Grant",null,"Pittsburg",null,"Randolph",null,"Sargent's Purchase",null,"Second College Grant",null,"Shelburne",null,"Stark",null,"Stewartstown",null,"Stratford",null,"Success",null,"Thompson and Meserves Purchase",null,"Wentworth's Location",null,"Whitefield"]
[null,null,"Estimate","Margin Of Error","Estimate","Margin Of Error","Estimate","Margin Of Error","Estimate","Margin Of Error","Estimate","Margin Of Error","Estimate","Margin Of Error","Estimate","Margin Of Error","Estimate","Margin Of Error","Estimate","Margin Of Error","Estimate","Margin Of Error","Estimate","Margin Of Error","Estimate","Margin Of Error","Estimate","Margin Of Error","Estimate","Margin Of Error","Estimate","Margin Of Error","Estimate","Margin Of Error","Estimate","Margin Of Error","Estimate","Margin Of Error","Estimate","Margin Of Error","Estimate","Margin Of Error","Estimate","Margin Of Error","Estimate","Margin Of Error","Estimate","Margin Of Error","Estimate","Margin Of Error","Estimate","Margin Of Error","Estimate","Margin Of Error","Estimate","Margin Of Error","Estimate","Margin Of Error","Estimate","Margin Of Error","Estimate","Margin Of Error","Estimate","Margin Of Error","Estimate","Margin Of Error","Estimate","Margin Of Error","Estimate","Margin Of Error","Estimate","Margin Of Error","Estimate","Margin Of Error","Estimate","Margin Of Error","Estimate","Margin Of Error","Estimate","Margin Of Error","Estimate","Margin Of Error","Estimate","Margin Of Error","Estimate","Margin Of Error","Estimate","Margin Of Error"]
[null,"Total:",0,11,0,11,0,11,2536,223,6,9,223,47,0,11,106,30,695,94,227,47,0,11,0,11,302,48,0,11,0,11,109,31,80,28,0,11,858,60,0,11,0,11,0,11,0,11,916,80,0,11,0,11,2,4,2,4,0,11,0,11,0,11,276,51,147,25,5,6,0,11,118,22,126,26,228,50,0,11,0,11,0,11,16,11,578,82]
[null,"Income in the past 12 months below poverty level:",0,11,0,11,0,11,337,113,0,11,16,17,0,11,16,16,64,33,25,17,0,11,0,11,14,9,0,11,0,11,1,2,4,7,0,11,44,30,0,11,0,11,0,11,0,11,54,48,0,11,0,11,0,11,0,11,0,11,0,11,0,11,19,12,6,7,0,11,0,11,3,5,4,5,31,18,0,11,0,11,0,11,0,11,45,23]
[null,"Married-couple family:",0,11,0,11,0,11,59,49,0,11,8,12,0,11,13,15,4,8,13,9,0,11,0,11,3,4,0,11,0,11,1,2,0,11,0,11,18,19,0,11,0,11,0,11,0,11,15,24,0,11,0,11,0,11,0,11,0,11,0,11,0,11,10,9,0,11,0,11,0,11,3,5,0,11,14,12,0,11,0,11,0,11,0,11,17,14]
[null,"With related children under 18 years:",0,11,0,11,0,11,35,41,0,11,8,12,0,11,4,6,0,11,8,7,0,11,0,11,0,11,0,11,0,11,0,11,0,11,0,11,11,16,0,11,0,11,0,11,0,11,15,24,0,11,0,11,0,11,0,11,0,11,0,11,0,11,0,11,0,11,0,11,0,11,0,11,0,11,2,4,0,11,0,11,0,11,0,11,17,14]
[null,"Under 5 years only",0,11,0,11,0,11,0,15,0,11,0,11,0,11,0,11,0,11,1,2,0,11,0,11,0,11,0,11,0,11,0,11,0,11,0,11,0,11,0,11,0,11,0,11,0,11,0,11,0,11,0,11,0,11,0,11,0,11,0,11,0,11,0,11,0,11,0,11,0,11,0,11,0,11,0,11,0,11,0,11,0,11,0,11,6,9]
[null,"Under 5 years and 5 to 17 years",0,11,0,11,0,11,5,8,0,11,0,11,0,11,0,11,0,11,0,11,0,11,0,11,0,11,0,11,0,11,0,11,0,11,0,11,0,11,0,11,0,11,0,11,0,11,0,11,0,11,0,11,0,11,0,11,0,11,0,11,0,11,0,11,0,11,0,11,0,11,0,11,0,11,0,11,0,11,0,11,0,11,0,11,0,11]
[null,"5 to 17 years only",0,11,0,11,0,11,30,41,0,11,8,12,0,11,4,6,0,11,7,7,0,11,0,11,0,11,0,11,0,11,0,11,0,11,0,11,11,16,0,11,0,11,0,11,0,11,15,24,0,11,0,11,0,11,0,11,0,11,0,11,0,11,0,11,0,11,0,11,0,11,0,11,0,11,2,4,0,11,0,11,0,11,0,11,11,10]
[null,"No related children under 18 years",0,11,0,11,0,11,24,20,0,11,0,11,0,11,9,14,4,8,5,5,0,11,0,11,3,4,0,11,0,11,1,2,0,11,0,11,7,11,0,11,0,11,0,11,0,11,0,11,0,11,0,11,0,11,0,11,0,11,0,11,0,11,10,9,0,11,0,11,0,11,3,5,0,11,12,11,0,11,0,11,0,11,0,11,0,11]
[null,"Other family:",0,11,0,11,0,11,278,118,0,11,8,12,0,11,3,4,60,32,12,15,0,11,0,11,11,8,0,11,0,11,0,11,4,7,0,11,26,23,0,11,0,11,0,11,0,11,39,40,0,11,0,11,0,11,0,11,0,11,0,11,0,11,9,8,6,7,0,11,0,11,0,11,4,5,17,16,0,11,0,11,0,11,0,11,28,19]
[null,"Male householder, no spouse present:",0,11,0,11,0,11,42,36,0,11,0,11,0,11,1,3,5,9,0,11,0,11,0,11,0,11,0,11,0,11,0,11,0,11,0,11,0,11,0,11,0,11,0,11,0,11,6,9,0,11,0,11,0,11,0,11,0,11,0,11,0,11,4,6,2,3,0,11,0,11,0,11,4,5,12,14,0,11,0,11,0,11,0,11,0,11]
[null,"With related children under 18 years:",0,11,0,11,0,11,42,36,0,11,0,11,0,11,1,3,5,9,0,11,0,11,0,11,0,11,0,11,0,11,0,11,0,11,0,11,0,11,0,11,0,11,0,11,0,11,6,9,0,11,0,11,0,11,0,11,0,11,0,11,0,11,4,6,0,11,0,11,0,11,0,11,2,4,9,14,0,11,0,11,0,11,0,11,0,11]
[null,"Under 5 years only",0,11,0,11,0,11,16,24,0,11,0,11,0,11,0,11,0,11,0,11,0,11,0,11,0,11,0,11,0,11,0,11,0,11,0,11,0,11,0,11,0,11,0,11,0,11,6,9,0,11,0,11,0,11,0,11,0,11,0,11,0,11,0,11,0,11,0,11,0,11,0,11,0,11,0,11,0,11,0,11,0,11,0,11,0,11]
[null,"Under 5 years and 5 to 17 years",0,11,0,11,0,11,0,15,0,11,0,11,0,11,1,3,0,11,0,11,0,11,0,11,0,11,0,11,0,11,0,11,0,11,0,11,0,11,0,11,0,11,0,11,0,11,0,11,0,11,0,11,0,11,0,11,0,11,0,11,0,11,0,11,0,11,0,11,0,11,0,11,0,11,0,11,0,11,0,11,0,11,0,11,0,11]
[null,"5 to 17 years only",0,11,0,11,0,11,26,25,0,11,0,11,0,11,0,11,5,9,0,11,0,11,0,11,0,11,0,11,0,11,0,11,0,11,0,11,0,11,0,11,0,11,0,11,0,11,0,11,0,11,0,11,0,11,0,11,0,11,0,11,0,11,4,6,0,11,0,11,0,11,0,11,2,4,9,14,0,11,0,11,0,11,0,11,0,11]
[null,"No related children under 18 years",0,11,0,11,0,11,0,15,0,11,0,11,0,11,0,11,0,11,0,11,0,11,0,11,0,11,0,11,0,11,0,11,0,11,0,11,0,11,0,11,0,11,0,11,0,11,0,11,0,11,0,11,0,11,0,11,0,11,0,11,0,11,0,11,2,3,0,11,0,11,0,11,2,3,3,4,0,11,0,11,0,11,0,11,0,11]
[null,"Female householder, no spouse present:",0,11,0,11,0,11,236,111,0,11,8,12,0,11,2,3,55,32,12,15,0,11,0,11,11,8,0,11,0,11,0,11,4,7,0,11,26,23,0,11,0,11,0,11,0,11,33,38,0,11,0,11,0,11,0,11,0,11,0,11,0,11,5,5,4,7,0,11,0,11,0,11,0,11,5,6,0,11,0,11,0,11,0,11,28,19]
[null,"With related children under 18 years:",0,11,0,11,0,11,230,111,0,11,8,12,0,11,2,3,55,32,12,15,0,11,0,11,5,6,0,11,0,11,0,11,4,7,0,11,26,23,0,11,0,11,0,11,0,11,33,38,0,11,0,11,0,11,0,11,0,11,0,11,0,11,5,5,0,11,0,11,0,11,0,11,0,11,0,11,0,11,0,11,0,11,0,11,18,13]
[null,"Under 5 years only",0,11,0,11,0,11,52,56,0,11,0,11,0,11,0,11,0,11,9,14,0,11,0,11,0,11,0,11,0,11,0,11,2,4,0,11,0,11,0,11,0,11,0,11,0,11,11,18,0,11,0,11,0,11,0,11,0,11,0,11,0,11,0,11,0,11,0,11,0,11,0,11,0,11,0,11,0,11,0,11,0,11,0,11,0,11]
[null,"Under 5 years and 5 to 17 years",0,11,0,11,0,11,44,40,0,11,0,11,0,11,0,11,16,17,0,11,0,11,0,11,2,4,0,11,0,11,0,11,0,11,0,11,12,12,0,11,0,11,0,11,0,11,0,11,0,11,0,11,0,11,0,11,0,11,0,11,0,11,0,11,0,11,0,11,0,11,0,11,0,11,0,11,0,11,0,11,0,11,0,11,9,9]
[null,"5 to 17 years only",0,11,0,11,0,11,134,90,0,11,8,12,0,11,2,3,39,28,3,4,0,11,0,11,3,5,0,11,0,11,0,11,2,6,0,11,14,22,0,11,0,11,0,11,0,11,22,34,0,11,0,11,0,11,0,11,0,11,0,11,0,11,5,5,0,11,0,11,0,11,0,11,0,11,0,11,0,11,0,11,0,11,0,11,9,8]
[null,"No related children under 18 years",0,11,0,11,0,11,6,9,0,11,0,11,0,11,0,11,0,11,0,11,0,11,0,11,6,7,0,11,0,11,0,11,0,11,0,11,0,11,0,11,0,11,0,11,0,11,0,11,0,11,0,11,0,11,0,11,0,11,0,11,0,11,0,11,4,7,0,11,0,11,0,11,0,11,5,6,0,11,0,11,0,11,0,11,10,14]
[null,"Income in the past 12 months at or above poverty level:",0,11,0,11,0,11,2199,220,6,9,207,48,0,11,90,24,631,91,202,45,0,11,0,11,288,48,0,11,0,11,108,31,76,28,0,11,814,64,0,11,0,11,0,11,0,11,862,88,0,11,0,11,2,4,2,4,0,11,0,11,0,11,257,53,141,24,5,6,0,11,115,22,122,26,197,47,0,11,0,11,0,11,16,11,533,83]
[null,"Married-couple family:",0,11,0,11,0,11,1703,185,2,5,176,43,0,11,64,23,502,84,167,39,0,11,0,11,222,39,0,11,0,11,103,31,67,26,0,11,678,70,0,11,0,11,0,11,0,11,659,91,0,11,0,11,2,4,2,4,0,11,0,11,0,11,240,50,128,23,5,6,0,11,97,23,107,24,162,44,0,11,0,11,0,11,16,11,458,78]
[null,"With related children under 18 years:",0,11,0,11,0,11,457,119,0,11,40,22,0,11,8,7,94,39,51,22,0,11,0,11,34,19,0,11,0,11,35,15,7,8,0,11,257,58,0,11,0,11,0,11,0,11,250,65,0,11,0,11,2,4,2,4,0,11,0,11,0,11,61,28,35,16,0,11,0,11,26,17,39,17,27,20,0,11,0,11,0,11,5,7,111,33]
[null,"Under 5 years only",0,11,0,11,0,11,116,79,0,11,9,12,0,11,0,11,11,11,7,7,0,11,0,11,8,9,0,11,0,11,0,11,1,3,0,11,54,52,0,11,0,11,0,11,0,11,63,55,0,11,0,11,2,4,2,4,0,11,0,11,0,11,0,11,0,11,0,11,0,11,2,3,10,10,8,9,0,11,0,11,0,11,0,11,10,11]
[null,"Under 5 years and 5 to 17 years",0,11,0,11,0,11,95,62,0,11,0,11,0,11,2,3,40,32,6,7,0,11,0,11,0,11,0,11,0,11,4,5,0,11,0,11,24,25,0,11,0,11,0,11,0,11,6,10,0,11,0,11,0,11,0,11,0,11,0,11,0,11,0,11,2,3,0,11,0,11,13,14,7,10,13,15,0,11,0,11,0,11,0,11,52,29]
[null,"5 to 17 years only",0,11,0,11,0,11,246,75,0,11,31,19,0,11,6,5,43,22,38,18,0,11,0,11,26,16,0,11,0,11,31,15,6,8,0,11,179,59,0,11,0,11,0,11,0,11,181,58,0,11,0,11,0,11,0,11,0,11,0,11,0,11,61,28,33,16,0,11,0,11,11,8,22,12,6,6,0,11,0,11,0,11,5,7,49,23]
[null,"No related children under 18 years",0,11,0,11,0,11,1246,156,2,5,136,38,0,11,56,20,408,68,116,32,0,11,0,11,188,34,0,11,0,11,68,24,60,24,0,11,421,74,0,11,0,11,0,11,0,11,409,74,0,11,0,11,0,11,0,11,0,11,0,11,0,11,179,44,93,19,5,6,0,11,71,20,68,20,135,41,0,11,0,11,0,11,11,8,347,66]
[null,"Other family:",0,11,0,11,0,11,496,136,4,7,31,22,0,11,26,18,129,49,35,23,0,11,0,11,66,38,0,11,0,11,5,5,9,9,0,11,136,60,0,11,0,11,0,11,0,11,203,86,0,11,0,11,0,11,0,11,0,11,0,11,0,11,17,14,13,10,0,11,0,11,18,10,15,9,35,26,0,11,0,11,0,11,0,11,75,30]
[null,"Male householder, no spouse present:",0,11,0,11,0,11,222,104,4,7,13,14,0,11,7,8,32,34,15,15,0,11,0,11,30,22,0,11,0,11,2,3,4,7,0,11,42,39,0,11,0,11,0,11,0,11,42,33,0,11,0,11,0,11,0,11,0,11,0,11,0,11,0,11,9,7,0,11,0,11,9,9,2,4,7,10,0,11,0,11,0,11,0,11,31,18]
[null,"With related children under 18 years:",0,11,0,11,0,11,73,55,0,11,13,14,0,11,5,7,26,33,15,15,0,11,0,11,16,14,0,11,0,11,0,11,0,11,0,11,34,37,0,11,0,11,0,11,0,11,27,27,0,11,0,11,0,11,0,11,0,11,0,11,0,11,0,11,7,6,0,11,0,11,5,7,0,11,7,10,0,11,0,11,0,11,0,11,27,21]
[null,"Under 5 years only",0,11,0,11,0,11,19,26,0,11,0,11,0,11,0,11,0,11,0,11,0,11,0,11,0,11,0,11,0,11,0,11,0,11,0,11,11,16,0,11,0,11,0,11,0,11,0,11,0,11,0,11,0,11,0,11,0,11,0,11,0,11,0,11,0,11,0,11,0,11,0,11,0,11,7,10,0,11,0,11,0,11,0,11,0,11]
[null,"Under 5 years and 5 to 17 years",0,11,0,11,0,11,19,26,0,11,13,14,0,11,5,7,0,11,0,11,0,11,0,11,0,11,0,11,0,11,0,11,0,11,0,11,23,34,0,11,0,11,0,11,0,11,0,11,0,11,0,11,0,11,0,11,0,11,0,11,0,11,0,11,0,11,0,11,0,11,0,11,0,11,0,11,0,11,0,11,0,11,0,11,0,11]
[null,"5 to 17 years only",0,11,0,11,0,11,35,48,0,11,0,11,0,11,0,11,26,33,15,15,0,11,0,11,16,14,0,11,0,11,0,11,0,11,0,11,0,11,0,11,0,11,0,11,0,11,27,27,0,11,0,11,0,11,0,11,0,11,0,11,0,11,0,11,7,6,0,11,0,11,5,7,0,11,0,11,0,11,0,11,0,11,0,11,27,21]
[null,"No related children under 18 years",0,11,0,11,0,11,149,86,4,7,0,11,0,11,2,5,6,8,0,11,0,11,0,11,14,18,0,11,0,11,2,3,4,7,0,11,8,12,0,11,0,11,0,11,0,11,15,20,0,11,0,11,0,11,0,11,0,11,0,11,0,11,0,11,2,3,0,11,0,11,4,6,2,4,0,11,0,11,0,11,0,11,0,11,4,7]
[null,"Female householder, no spouse present:",0,11,0,11,0,11,274,94,0,11,18,17,0,11,19,16,97,38,20,18,0,11,0,11,36,24,0,11,0,11,3,4,5,6,0,11,94,53,0,11,0,11,0,11,0,11,161,84,0,11,0,11,0,11,0,11,0,11,0,11,0,11,17,14,4,5,0,11,0,11,9,8,13,9,28,24,0,11,0,11,0,11,0,11,44,23]
[null,"With related children under 18 years:",0,11,0,11,0,11,166,71,0,11,12,14,0,11,10,12,54,32,3,4,0,11,0,11,16,18,0,11,0,11,1,2,4,6,0,11,68,49,0,11,0,11,0,11,0,11,116,76,0,11,0,11,0,11,0,11,0,11,0,11,0,11,3,4,1,2,0,11,0,11,5,5,6,7,0,11,0,11,0,11,0,11,0,11,14,12]
[null,"Under 5 years only",0,11,0,11,0,11,15,17,0,11,0,11,0,11,0,11,4,6,3,4,0,11,0,11,0,11,0,11,0,11,0,11,0,11,0,11,26,40,0,11,0,11,0,11,0,11,16,18,0,11,0,11,0,11,0,11,0,11,0,11,0,11,3,4,1,2,0,11,0,11,0,11,0,11,0,11,0,11,0,11,0,11,0,11,4,6]
[null,"Under 5 years and 5 to 17 years",0,11,0,11,0,11,9,15,0,11,0,11,0,11,0,11,4,6,0,11,0,11,0,11,0,11,0,11,0,11,0,11,0,11,0,11,0,11,0,11,0,11,0,11,0,11,9,16,0,11,0,11,0,11,0,11,0,11,0,11,0,11,0,11,0,11,0,11,0,11,0,11,0,11,0,11,0,11,0,11,0,11,0,11,10,11]
[null,"5 to 17 years only",0,11,0,11,0,11,142,68,0,11,12,14,0,11,10,12,46,31,0,11,0,11,0,11,16,18,0,11,0,11,1,2,4,6,0,11,42,32,0,11,0,11,0,11,0,11,91,72,0,11,0,11,0,11,0,11,0,11,0,11,0,11,0,11,0,11,0,11,0,11,5,5,6,7,0,11,0,11,0,11,0,11,0,11,0,11]
[null,"No related children under 18 years",0,11,0,11,0,11,108,61,0,11,6,10,0,11,9,10,43,23,17,17,0,11,0,11,20,15,0,11,0,11,2,3,1,2,0,11,26,25,0,11,0,11,0,11,0,11,45,45,0,11,0,11,0,11,0,11,0,11,0,11,0,11,14,14,3,5,0,11,0,11,4,5,7,7,28,24,0,11,0,11,0,11,0,11,30,20]
[]
[]
[]
[null,"B17010. POVERTY STATUS IN THE PAST 12 MONTHS OF FAMILIES BY FAMILY TYPE BY PRESENCE OF RELATED CHILDREN UNDER 18 YEARS"]
[null,"Universe: FAMILIES",null,null,null,null,null,null,null,null,null,null,null,null,"B19001. HOUSEHOLD INCOME IN THE PAST 12 MONTHS (IN 2007 INFLATION-ADJUSTED DOLLARS) - Universe:  HOUSEHOLDS"]
[null,"Data Set: 2005-2009 American Community Survey 5-Year Estimates",null,null,null,null,null,null,null,null,null,null,null,null,"Data Set: 2006-2008 American Community Survey 3-Year Estimates"]
[]
[null,null,"Atkinson and Gilmanton Grant",null,"Bean's Grant",null,"Bean's Purchase",null,"Berlin",null,"Cambridge",null,"Carroll",null,"Chandler's Purchase",null,"Clarksville",null,"Colebrook",null,"Columbia",null,"Crawford's Purchase",null,"Cutt's Grant",null,"Dalton",null,"Dix's Grant",null,"Dixville",null,"Dummer",null,"Errol",null,"Erving's Location",null,"Gorham",null,"Greens Grant",null,"Hadley's Purchase",null,"Jefferson",null,"Kilkenny",null,"Lancaster",null,"Low and Burbank's Grant",null,"Martin's Location",null,"Milan",null,"Millsfield",null,"Northumberland",null,"Odell",null,"Pinkham's Grant",null,"Pittsburg",null,"Randolph",null,"Sargent's Purchase",null,"Second College Grant",null,"Shelburne",null,"Stark",null,"Stewartstown",null,"Stratford",null,"Success",null,"Thompson and Meserves Purchase",null,"Wentworth's Location",null,"Whitefield"]
[null,null,"Estimate","Margin Of Error","Estimate","Margin Of Error","Estimate","Margin Of Error","Estimate","Margin Of Error","Estimate","Margin Of Error","Estimate","Margin Of Error","Estimate","Margin Of Error","Estimate","Margin Of Error","Estimate","Margin Of Error","Estimate","Margin Of Error","Estimate","Margin Of Error","Estimate","Margin Of Error","Estimate","Margin Of Error","Estimate","Margin Of Error","Estimate","Margin Of Error","Estimate","Margin Of Error","Estimate","Margin Of Error","Estimate","Margin Of Error","Estimate","Margin Of Error","Estimate","Margin Of Error","Estimate","Margin Of Error","Estimate","Margin Of Error","Estimate","Margin Of Error","Estimate","Margin Of Error","Estimate","Margin Of Error","Estimate","Margin Of Error","Estimate","Margin Of Error","Estimate","Margin Of Error","Estimate","Margin Of Error","Estimate","Margin Of Error","Estimate","Margin Of Error","Estimate","Margin Of Error","Estimate","Margin Of Error","Estimate","Margin Of Error","Estimate","Margin Of Error","Estimate","Margin Of Error","Estimate","Margin Of Error","Estimate","Margin Of Error","Estimate","Margin Of Error","Estimate","Margin Of Error","Estimate","Margin Of Error","Estimate","Margin Of Error","Estimate","Margin Of Error"]
[null,"Total:",0,114,0,114,0,114,2417,221,0,114,207,52,0,114,102,26,566,97,242,50,0,114,0,114,352,48,0,114,8,8,124,51,88,25,0,114,859,83,0,114,0,114,311,39,0,114,967,93,0,114,0,114,424,41,0,114,762,104,0,114,0,114,275,58,131,32,0,114,0,114,157,40,174,48,280,63,285,73,0,114,0,114,11,12,564,75]
[null,"Income in the past 12 months below poverty level:",0,114,0,114,0,114,236,72,0,114,9,10,0,114,5,5,53,44,9,11,0,114,0,114,24,15,0,114,0,114,3,5,0,114,0,114,49,58,0,114,0,114,14,10,0,114,63,43,0,114,0,114,41,18,0,114,94,50,0,114,0,114,13,11,0,114,0,114,0,114,7,7,16,17,27,16,74,44,0,114,0,114,0,114,82,54]
[null,"Married-couple family:",0,114,0,114,0,114,108,54,0,114,9,10,0,114,5,5,16,19,5,9,0,114,0,114,9,9,0,114,0,114,0,114,0,114,0,114,0,114,0,114,0,114,11,9,0,114,15,15,0,114,0,114,12,9,0,114,0,114,0,114,0,114,9,9,0,114,0,114,0,114,7,7,3,6,14,10,18,21,0,114,0,114,0,114,5,8]
[null,"With related children under 18 years:",0,114,0,114,0,114,58,41,0,114,0,114,0,114,0,114,0,114,5,9,0,114,0,114,4,7,0,114,0,114,0,114,0,114,0,114,0,114,0,114,0,114,0,114,0,114,0,114,0,114,0,114,4,5,0,114,0,114,0,114,0,114,0,114,0,114,0,114,0,114,0,114,0,114,8,8,0,114,0,114,0,114,0,114,0,114]
[null,"Under 5 years only",0,114,0,114,0,114,0,114,0,114,0,114,0,114,0,114,0,114,0,114,0,114,0,114,0,114,0,114,0,114,0,114,0,114,0,114,0,114,0,114,0,114,0,114,0,114,0,114,0,114,0,114,0,114,0,114,0,114,0,114,0,114,0,114,0,114,0,114,0,114,0,114,0,114,5,7,0,114,0,114,0,114,0,114,0,114]
[null,"Under 5 years and 5 to 17 years",0,114,0,114,0,114,7,12,0,114,0,114,0,114,0,114,0,114,0,114,0,114,0,114,0,114,0,114,0,114,0,114,0,114,0,114,0,114,0,114,0,114,0,114,0,114,0,114,0,114,0,114,0,114,0,114,0,114,0,114,0,114,0,114,0,114,0,114,0,114,0,114,0,114,0,114,0,114,0,114,0,114,0,114,0,114]
[null,"5 to 17 years only",0,114,0,114,0,114,51,38,0,114,0,114,0,114,0,114,0,114,5,9,0,114,0,114,4,7,0,114,0,114,0,114,0,114,0,114,0,114,0,114,0,114,0,114,0,114,0,114,0,114,0,114,4,5,0,114,0,114,0,114,0,114,0,114,0,114,0,114,0,114,0,114,0,114,3,5,0,114,0,114,0,114,0,114,0,114]
[null,"No related children under 18 years",0,114,0,114,0,114,50,38,0,114,9,10,0,114,5,5,16,19,0,114,0,114,0,114,5,6,0,114,0,114,0,114,0,114,0,114,0,114,0,114,0,114,11,9,0,114,15,15,0,114,0,114,8,7,0,114,0,114,0,114,0,114,9,9,0,114,0,114,0,114,7,7,3,6,6,8,18,21,0,114,0,114,0,114,5,8]
[null,"Other family:",0,114,0,114,0,114,128,67,0,114,0,114,0,114,0,114,37,38,4,7,0,114,0,114,15,13,0,114,0,114,3,5,0,114,0,114,49,58,0,114,0,114,3,5,0,114,48,43,0,114,0,114,29,17,0,114,94,50,0,114,0,114,4,6,0,114,0,114,0,114,0,114,13,15,13,12,56,34,0,114,0,114,0,114,77,54]
[null,"Male householder, no spouse present:",0,114,0,114,0,114,31,38,0,114,0,114,0,114,0,114,0,114,0,114,0,114,0,114,0,114,0,114,0,114,0,114,0,114,0,114,0,114,0,114,0,114,0,114,0,114,0,114,0,114,0,114,2,3,0,114,18,24,0,114,0,114,0,114,0,114,0,114,0,114,0,114,4,6,5,9,6,8,0,114,0,114,0,114,0,114]
[null,"With related children under 18 years:",0,114,0,114,0,114,31,38,0,114,0,114,0,114,0,114,0,114,0,114,0,114,0,114,0,114,0,114,0,114,0,114,0,114,0,114,0,114,0,114,0,114,0,114,0,114,0,114,0,114,0,114,2,3,0,114,18,24,0,114,0,114,0,114,0,114,0,114,0,114,0,114,0,114,5,9,6,8,0,114,0,114,0,114,0,114]
[null,"Under 5 years only",0,114,0,114,0,114,31,38,0,114,0,114,0,114,0,114,0,114,0,114,0,114,0,114,0,114,0,114,0,114,0,114,0,114,0,114,0,114,0,114,0,114,0,114,0,114,0,114,0,114,0,114,2,3,0,114,18,24,0,114,0,114,0,114,0,114,0,114,0,114,0,114,0,114,5,9,0,114,0,114,0,114,0,114,0,114]
[null,"Under 5 years and 5 to 17 years",0,114,0,114,0,114,0,114,0,114,0,114,0,114,0,114,0,114,0,114,0,114,0,114,0,114,0,114,0,114,0,114,0,114,0,114,0,114,0,114,0,114,0,114,0,114,0,114,0,114,0,114,0,114,0,114,0,114,0,114,0,114,0,114,0,114,0,114,0,114,0,114,0,114,0,114,6,8,0,114,0,114,0,114,0,114]
[null,"5 to 17 years only",0,114,0,114,0,114,0,114,0,114,0,114,0,114,0,114,0,114,0,114,0,114,0,114,0,114,0,114,0,114,0,114,0,114,0,114,0,114,0,114,0,114,0,114,0,114,0,114,0,114,0,114,0,114,0,114,0,114,0,114,0,114,0,114,0,114,0,114,0,114,0,114,0,114,0,114,0,114,0,114,0,114,0,114,0,114]
[null,"No related children under 18 years",0,114,0,114,0,114,0,114,0,114,0,114,0,114,0,114,0,114,0,114,0,114,0,114,0,114,0,114,0,114,0,114,0,114,0,114,0,114,0,114,0,114,0,114,0,114,0,114,0,114,0,114,0,114,0,114,0,114,0,114,0,114,0,114,0,114,0,114,0,114,0,114,4,6,0,114,0,114,0,114,0,114,0,114,0,114]
[null,"Female householder, no spouse present:",0,114,0,114,0,114,97,55,0,114,0,114,0,114,0,114,37,38,4,7,0,114,0,114,15,13,0,114,0,114,3,5,0,114,0,114,49,58,0,114,0,114,3,5,0,114,48,43,0,114,0,114,27,16,0,114,76,56,0,114,0,114,4,6,0,114,0,114,0,114,0,114,9,13,8,9,50,33,0,114,0,114,0,114,77,54]
[null,"With related children under 18 years:",0,114,0,114,0,114,97,55,0,114,0,114,0,114,0,114,37,38,4,7,0,114,0,114,13,13,0,114,0,114,3,5,0,114,0,114,49,58,0,114,0,114,3,5,0,114,36,39,0,114,0,114,27,16,0,114,63,53,0,114,0,114,4,6,0,114,0,114,0,114,0,114,9,13,5,8,44,31,0,114,0,114,0,114,49,33]
[null,"Under 5 years only",0,114,0,114,0,114,16,26,0,114,0,114,0,114,0,114,15,20,0,114,0,114,0,114,0,114,0,114,0,114,3,5,0,114,0,114,0,114,0,114,0,114,0,114,0,114,0,114,0,114,0,114,9,13,0,114,34,34,0,114,0,114,0,114,0,114,0,114,0,114,0,114,9,13,0,114,18,20,0,114,0,114,0,114,0,114]
[null,"Under 5 years and 5 to 17 years",0,114,0,114,0,114,21,23,0,114,0,114,0,114,0,114,22,30,0,114,0,114,0,114,6,11,0,114,0,114,0,114,0,114,0,114,0,114,0,114,0,114,0,114,0,114,0,114,0,114,0,114,3,4,0,114,4,8,0,114,0,114,0,114,0,114,0,114,0,114,0,114,0,114,0,114,0,114,0,114,0,114,0,114,11,18]
[null,"5 to 17 years only",0,114,0,114,0,114,60,42,0,114,0,114,0,114,0,114,0,114,4,7,0,114,0,114,7,7,0,114,0,114,0,114,0,114,0,114,49,58,0,114,0,114,3,5,0,114,36,39,0,114,0,114,15,9,0,114,25,38,0,114,0,114,4,6,0,114,0,114,0,114,0,114,0,114,5,8,26,24,0,114,0,114,0,114,38,33]
[null,"No related children under 18 years",0,114,0,114,0,114,0,114,0,114,0,114,0,114,0,114,0,114,0,114,0,114,0,114,2,4,0,114,0,114,0,114,0,114,0,114,0,114,0,114,0,114,0,114,0,114,12,19,0,114,0,114,0,114,0,114,13,15,0,114,0,114,0,114,0,114,0,114,0,114,0,114,0,114,3,5,6,10,0,114,0,114,0,114,28,42]
[null,"Income in the past 12 months at or above poverty level:",0,114,0,114,0,114,2181,211,0,114,198,50,0,114,97,26,513,96,233,51,0,114,0,114,328,50,0,114,8,8,121,51,88,25,0,114,810,93,0,114,0,114,297,41,0,114,904,100,0,114,0,114,383,43,0,114,668,96,0,114,0,114,262,57,131,32,0,114,0,114,150,39,158,43,253,60,211,55,0,114,0,114,11,12,482,70]
[null,"Married-couple family:",0,114,0,114,0,114,1763,219,0,114,172,44,0,114,75,21,442,88,194,48,0,114,0,114,292,51,0,114,8,8,118,50,77,21,0,114,635,109,0,114,0,114,270,41,0,114,644,79,0,114,0,114,337,42,0,114,585,88,0,114,0,114,255,55,127,32,0,114,0,114,144,39,133,37,224,53,181,53,0,114,0,114,3,6,403,71]
[null,"With related children under 18 years:",0,114,0,114,0,114,669,140,0,114,19,16,0,114,20,13,154,68,87,37,0,114,0,114,142,42,0,114,8,8,60,47,19,13,0,114,212,73,0,114,0,114,96,30,0,114,228,65,0,114,0,114,104,22,0,114,176,57,0,114,0,114,52,24,19,16,0,114,0,114,41,17,23,17,91,37,36,21,0,114,0,114,3,6,148,45]
[null,"Under 5 years only",0,114,0,114,0,114,104,49,0,114,0,114,0,114,0,114,12,18,7,11,0,114,0,114,26,17,0,114,8,8,0,114,8,7,0,114,20,24,0,114,0,114,36,25,0,114,14,23,0,114,0,114,18,12,0,114,9,13,0,114,0,114,16,14,7,10,0,114,0,114,5,6,1,2,8,10,12,14,0,114,0,114,0,114,44,26]
[null,"Under 5 years and 5 to 17 years",0,114,0,114,0,114,106,61,0,114,2,4,0,114,0,114,12,20,6,9,0,114,0,114,17,13,0,114,0,114,2,3,0,114,0,114,44,35,0,114,0,114,3,5,0,114,73,53,0,114,0,114,18,10,0,114,8,12,0,114,0,114,11,9,0,114,0,114,0,114,6,7,6,8,19,17,6,10,0,114,0,114,0,114,45,23]
[null,"5 to 17 years only",0,114,0,114,0,114,459,126,0,114,17,15,0,114,20,13,130,60,74,36,0,114,0,114,99,43,0,114,0,114,58,47,11,12,0,114,148,64,0,114,0,114,57,19,0,114,141,58,0,114,0,114,68,19,0,114,159,56,0,114,0,114,25,17,12,12,0,114,0,114,30,14,16,13,64,32,18,12,0,114,0,114,3,6,59,28]
[null,"No related children under 18 years",0,114,0,114,0,114,1094,179,0,114,153,41,0,114,55,18,288,82,107,38,0,114,0,114,150,38,0,114,0,114,58,16,58,19,0,114,423,101,0,114,0,114,174,31,0,114,416,86,0,114,0,114,233,38,0,114,409,87,0,114,0,114,203,50,108,29,0,114,0,114,103,39,110,29,133,39,145,49,0,114,0,114,0,114,255,56]
[null,"Other family:",0,114,0,114,0,114,418,120,0,114,26,21,0,114,22,15,71,48,39,31,0,114,0,114,36,16,0,114,0,114,3,4,11,12,0,114,175,81,0,114,0,114,27,18,0,114,260,103,0,114,0,114,46,24,0,114,83,42,0,114,0,114,7,10,4,5,0,114,0,114,6,7,25,22,29,19,30,23,0,114,0,114,8,10,79,45]
[null,"Male householder, no spouse present:",0,114,0,114,0,114,197,96,0,114,15,18,0,114,8,9,14,21,17,22,0,114,0,114,7,8,0,114,0,114,0,114,8,11,0,114,65,55,0,114,0,114,7,10,0,114,72,64,0,114,0,114,14,10,0,114,47,31,0,114,0,114,7,10,0,114,0,114,0,114,0,114,21,20,16,15,0,114,0,114,0,114,8,10,16,15]
[null,"With related children under 18 years:",0,114,0,114,0,114,123,82,0,114,4,6,0,114,8,9,14,21,15,23,0,114,0,114,2,3,0,114,0,114,0,114,0,114,0,114,45,49,0,114,0,114,7,10,0,114,61,65,0,114,0,114,10,10,0,114,39,29,0,114,0,114,7,10,0,114,0,114,0,114,0,114,7,9,7,11,0,114,0,114,0,114,0,114,6,10]
[null,"Under 5 years only",0,114,0,114,0,114,0,114,0,114,0,114,0,114,4,6,0,114,15,23,0,114,0,114,2,3,0,114,0,114,0,114,0,114,0,114,0,114,0,114,0,114,0,114,0,114,51,62,0,114,0,114,4,7,0,114,17,21,0,114,0,114,0,114,0,114,0,114,0,114,0,114,0,114,3,8,0,114,0,114,0,114,0,114,0,114]
[null,"Under 5 years and 5 to 17 years",0,114,0,114,0,114,0,114,0,114,0,114,0,114,0,114,0,114,0,114,0,114,0,114,0,114,0,114,0,114,0,114,0,114,0,114,0,114,0,114,0,114,0,114,0,114,0,114,0,114,0,114,0,114,0,114,0,114,0,114,0,114,0,114,0,114,0,114,0,114,0,114,3,5,0,114,0,114,0,114,0,114,0,114,6,10]
[null,"5 to 17 years only",0,114,0,114,0,114,123,82,0,114,4,6,0,114,4,6,14,21,0,114,0,114,0,114,0,114,0,114,0,114,0,114,0,114,0,114,45,49,0,114,0,114,7,10,0,114,10,18,0,114,0,114,6,7,0,114,22,20,0,114,0,114,7,10,0,114,0,114,0,114,0,114,4,8,4,7,0,114,0,114,0,114,0,114,0,114]
[null,"No related children under 18 years",0,114,0,114,0,114,74,49,0,114,11,17,0,114,0,114,0,114,2,3,0,114,0,114,5,7,0,114,0,114,0,114,8,11,0,114,20,22,0,114,0,114,0,114,0,114,11,17,0,114,0,114,4,5,0,114,8,12,0,114,0,114,0,114,0,114,0,114,0,114,0,114,14,18,9,10,0,114,0,114,0,114,8,10,10,11]
[null,"Female householder, no spouse present:",0,114,0,114,0,114,221,86,0,114,11,11,0,114,14,13,57,43,22,21,0,114,0,114,29,15,0,114,0,114,3,4,3,4,0,114,110,70,0,114,0,114,20,14,0,114,188,89,0,114,0,114,32,21,0,114,36,27,0,114,0,114,0,114,4,5,0,114,0,114,6,7,4,6,13,12,30,23,0,114,0,114,0,114,63,40]
[null,"With related children under 18 years:",0,114,0,114,0,114,141,66,0,114,0,114,0,114,9,9,57,43,15,18,0,114,0,114,20,15,0,114,0,114,0,114,0,114,0,114,55,50,0,114,0,114,16,13,0,114,166,89,0,114,0,114,6,5,0,114,30,25,0,114,0,114,0,114,4,5,0,114,0,114,6,7,4,6,5,8,30,23,0,114,0,114,0,114,54,37]
[null,"Under 5 years only",0,114,0,114,0,114,26,31,0,114,0,114,0,114,0,114,34,45,0,114,0,114,0,114,0,114,0,114,0,114,0,114,0,114,0,114,0,114,0,114,0,114,4,6,0,114,0,114,0,114,0,114,3,4,0,114,0,114,0,114,0,114,0,114,0,114,0,114,0,114,0,114,0,114,0,114,6,9,0,114,0,114,0,114,0,114]
[null,"Under 5 years and 5 to 17 years",0,114,0,114,0,114,27,23,0,114,0,114,0,114,0,114,0,114,0,114,0,114,0,114,5,7,0,114,0,114,0,114,0,114,0,114,0,114,0,114,0,114,0,114,0,114,28,31,0,114,0,114,0,114,0,114,0,114,0,114,0,114,0,114,0,114,0,114,0,114,0,114,0,114,0,114,8,11,0,114,0,114,0,114,9,12]
[null,"5 to 17 years only",0,114,0,114,0,114,88,54,0,114,0,114,0,114,9,9,23,20,15,18,0,114,0,114,15,15,0,114,0,114,0,114,0,114,0,114,55,50,0,114,0,114,12,12,0,114,138,85,0,114,0,114,3,5,0,114,30,25,0,114,0,114,0,114,4,5,0,114,0,114,6,7,4,6,5,8,16,17,0,114,0,114,0,114,45,34]
[null,"No related children under 18 years",0,114,0,114,0,114,80,50,0,114,11,11,0,114,5,8,0,114,7,10,0,114,0,114,9,7,0,114,0,114,3,4,3,4,0,114,55,35,0,114,0,114,4,5,0,114,22,24,0,114,0,114,26,21,0,114,6,9,0,114,0,114,0,114,0,114,0,114,0,114,0,114,0,114,8,9,0,114,0,114,0,114,0,114,9,10]

{"sheet":"ACS_Table_B17017","index":52,"n_rows":213,"n_cols":88,"rows_kept":213,"cut":false,"hidden":true,"merged":[]}
[null,"B17017. POVERTY STATUS IN THE PAST 12 MONTHS BY HOUSEHOLD TYPE BY AGE OF HOUSEHOLDER"]
[null,"Universe: HOUSEHOLDS"]
[null,"Data Set: 2015-2019 American Community Survey 5-Year Estimates"]
[]
[null,null,"Atkinson and Gilmanton Grant",null,"Bean's Grant",null,"Bean's Purchase",null,"Berlin",null,"Cambridge",null,"Carroll",null,"Chandler's Purchase",null,"Clarksville",null,"Colebrook",null,"Columbia",null,"Crawford's Purchase",null,"Cutt's Grant",null,"Dalton",null,"Dix's Grant",null,"Dixville",null,"Dummer",null,"Errol",null,"Erving's Location",null,"Gorham",null,"Greens Grant",null,"Hadley's Purchase",null,"Jefferson",null,"Kilkenny",null,"Lancaster",null,"Low and Burbank's Grant",null,"Martin's Location",null,"Milan",null,"Millsfield",null,"Northumberland",null,"Odell",null,"Pinkham's Grant",null,"Pittsburg",null,"Randolph",null,"Sargent's Purchase",null,"Second College Grant",null,"Shelburne",null,"Stark",null,"Stewartstown",null,"Stratford",null,"Success",null,"Thompson and Meserves Purchase",null,"Wentworth's Location",null,"Whitefield"]
[null,null,"Estimate","Margin Of Error","Estimate","Margin Of Error","Estimate","Margin Of Error","Estimate","Margin Of Error","Estimate","Margin Of Error","Estimate","Margin Of Error","Estimate","Margin Of Error","Estimate","Margin Of Error","Estimate","Margin Of Error","Estimate","Margin Of Error","Estimate","Margin Of Error","Estimate","Margin Of Error","Estimate","Margin Of Error","Estimate","Margin Of Error","Estimate","Margin Of Error","Estimate","Margin Of Error","Estimate","Margin Of Error","Estimate","Margin Of Error","Estimate","Margin Of Error","Estimate","Margin Of Error","Estimate","Margin Of Error","Estimate","Margin Of Error","Estimate","Margin Of Error","Estimate","Margin Of Error","Estimate","Margin Of Error","Estimate","Margin Of Error","Estimate","Margin Of Error","Estimate","Margin Of Error","Estimate","Margin Of Error","Estimate","Margin Of Error","Estimate","Margin Of Error","Estimate","Margin Of Error","Estimate","Margin Of Error","Estimate","Margin Of Error","Estimate","Margin Of Error","Estimate","Margin Of Error","Estimate","Margin Of Error","Estimate","Margin Of Error","Estimate","Margin Of Error","Estimate","Margin Of Error","Estimate","Margin Of Error","Estimate","Margin Of Error","Estimate","Margin Of Error"]
[null,"Total:",0,11,0,11,0,11,3977,201,0,11,324,49,0,11,141,40,954,84,316,51,0,11,0,11,424,64,0,11,1,4,127,25,113,29,0,11,1243,99,0,11,0,11,396,58,0,11,1366,149,0,11,0,11,589,53,4,6,984,88,0,11,0,11,423,57,196,39,0,11,0,11,200,30,233,40,418,64,277,49,0,11,0,11,16,9,1046,111]
[null,"Income in the past 12 months below poverty level:",0,11,0,11,0,11,756,143,0,11,15,11,0,11,12,10,97,43,33,16,0,11,0,11,41,21,0,11,0,11,13,13,30,16,0,11,56,35,0,11,0,11,14,9,0,11,146,72,0,11,0,11,50,27,0,11,122,48,0,11,0,11,52,41,7,5,0,11,0,11,10,9,31,16,36,29,92,33,0,11,0,11,0,11,153,49]
[null,"Family households:",0,11,0,11,0,11,322,111,0,11,0,11,0,11,7,8,43,32,12,8,0,11,0,11,7,8,0,11,0,11,12,12,6,8,0,11,18,20,0,11,0,11,6,6,0,11,32,30,0,11,0,11,27,21,0,11,32,27,0,11,0,11,0,11,2,3,0,11,0,11,0,11,8,8,19,20,48,27,0,11,0,11,0,11,59,30]
[null,"Married-couple family:",0,11,0,11,0,11,154,85,0,11,0,11,0,11,7,8,30,29,4,4,0,11,0,11,7,8,0,11,0,11,5,8,0,11,0,11,10,15,0,11,0,11,6,6,0,11,24,27,0,11,0,11,9,7,0,11,9,9,0,11,0,11,0,11,2,3,0,11,0,11,0,11,6,5,0,11,16,10,0,11,0,11,0,11,15,15]
[null,"Householder under 25 years",0,11,0,11,0,11,0,18,0,11,0,11,0,11,0,11,0,11,0,11,0,11,0,11,0,11,0,11,0,11,0,11,0,11,0,11,0,11,0,11,0,11,0,11,0,11,0,11,0,11,0,11,0,11,0,11,0,11,0,11,0,11,0,11,0,11,0,11,0,11,0,11,0,11,0,11,0,11,0,11,0,11,0,11,0,11]
[null,"Householder 25 to 44 years",0,11,0,11,0,11,37,33,0,11,0,11,0,11,0,11,21,27,0,11,0,11,0,11,4,6,0,11,0,11,0,11,0,11,0,11,0,11,0,11,0,11,0,11,0,11,24,27,0,11,0,11,0,11,0,11,5,7,0,11,0,11,0,11,0,11,0,11,0,11,0,11,2,3,0,11,5,5,0,11,0,11,0,11,0,11]
[null,"Householder 45 to 64 years",0,11,0,11,0,11,41,41,0,11,0,11,0,11,5,8,5,7,0,11,0,11,0,11,3,5,0,11,0,11,2,6,0,11,0,11,0,11,0,11,0,11,3,4,0,11,0,11,0,11,0,11,9,7,0,11,4,6,0,11,0,11,0,11,2,3,0,11,0,11,0,11,0,11,0,11,6,6,0,11,0,11,0,11,9,13]
[null,"Householder 65 years and over",0,11,0,11,0,11,76,63,0,11,0,11,0,11,2,3,4,6,4,4,0,11,0,11,0,11,0,11,0,11,3,4,0,11,0,11,10,15,0,11,0,11,3,4,0,11,0,11,0,11,0,11,0,11,0,11,0,11,0,11,0,11,0,11,0,11,0,11,0,11,0,11,4,5,0,11,5,5,0,11,0,11,0,11,6,8]
[null,"Other family:",0,11,0,11,0,11,168,83,0,11,0,11,0,11,0,11,13,16,8,6,0,11,0,11,0,11,0,11,0,11,7,9,6,8,0,11,8,12,0,11,0,11,0,11,0,11,8,13,0,11,0,11,18,19,0,11,23,25,0,11,0,11,0,11,0,11,0,11,0,11,0,11,2,6,19,20,32,24,0,11,0,11,0,11,44,27]
[null,"Male householder, no spouse present:",0,11,0,11,0,11,16,20,0,11,0,11,0,11,0,11,0,11,0,11,0,11,0,11,0,11,0,11,0,11,4,7,0,11,0,11,0,11,0,11,0,11,0,11,0,11,8,13,0,11,0,11,0,11,0,11,0,11,0,11,0,11,0,11,0,11,0,11,0,11,0,11,0,11,3,5,19,19,0,11,0,11,0,11,0,11]
[null,"Householder under 25 years",0,11,0,11,0,11,0,18,0,11,0,11,0,11,0,11,0,11,0,11,0,11,0,11,0,11,0,11,0,11,0,11,0,11,0,11,0,11,0,11,0,11,0,11,0,11,0,11,0,11,0,11,0,11,0,11,0,11,0,11,0,11,0,11,0,11,0,11,0,11,0,11,0,11,0,11,0,11,0,11,0,11,0,11,0,11]
[null,"Householder 25 to 44 years",0,11,0,11,0,11,0,18,0,11,0,11,0,11,0,11,0,11,0,11,0,11,0,11,0,11,0,11,0,11,0,11,0,11,0,11,0,11,0,11,0,11,0,11,0,11,0,11,0,11,0,11,0,11,0,11,0,11,0,11,0,11,0,11,0,11,0,11,0,11,0,11,0,11,0,11,10,14,0,11,0,11,0,11,0,11]
[null,"Householder 45 to 64 years",0,11,0,11,0,11,16,20,0,11,0,11,0,11,0,11,0,11,0,11,0,11,0,11,0,11,0,11,0,11,4,7,0,11,0,11,0,11,0,11,0,11,0,11,0,11,0,11,0,11,0,11,0,11,0,11,0,11,0,11,0,11,0,11,0,11,0,11,0,11,0,11,0,11,3,5,9,14,0,11,0,11,0,11,0,11]
[null,"Householder 65 years and over",0,11,0,11,0,11,0,18,0,11,0,11,0,11,0,11,0,11,0,11,0,11,0,11,0,11,0,11,0,11,0,11,0,11,0,11,0,11,0,11,0,11,0,11,0,11,8,13,0,11,0,11,0,11,0,11,0,11,0,11,0,11,0,11,0,11,0,11,0,11,0,11,0,11,0,11,0,11,0,11,0,11,0,11,0,11]
[null,"Female householder, no spouse present:",0,11,0,11,0,11,152,83,0,11,0,11,0,11,0,11,13,16,8,6,0,11,0,11,0,11,0,11,0,11,3,5,6,8,0,11,8,12,0,11,0,11,0,11,0,11,0,11,0,11,0,11,18,19,0,11,23,25,0,11,0,11,0,11,0,11,0,11,0,11,0,11,2,6,16,20,13,15,0,11,0,11,0,11,44,27]
[null,"Householder under 25 years",0,11,0,11,0,11,0,18,0,11,0,11,0,11,0,11,8,13,0,11,0,11,0,11,0,11,0,11,0,11,0,11,0,11,0,11,0,11,0,11,0,11,0,11,0,11,0,11,0,11,0,11,0,11,0,11,0,11,0,11,0,11,0,11,0,11,0,11,0,11,0,11,0,11,0,11,0,11,0,11,0,11,0,11,0,11]
[null,"Householder 25 to 44 years",0,11,0,11,0,11,111,81,0,11,0,11,0,11,0,11,5,8,5,7,0,11,0,11,0,11,0,11,0,11,3,5,1,2,0,11,8,12,0,11,0,11,0,11,0,11,0,11,0,11,0,11,15,19,0,11,17,24,0,11,0,11,0,11,0,11,0,11,0,11,0,11,0,11,14,20,13,15,0,11,0,11,0,11,38,26]
[null,"Householder 45 to 64 years",0,11,0,11,0,11,9,14,0,11,0,11,0,11,0,11,0,11,3,4,0,11,0,11,0,11,0,11,0,11,0,11,5,7,0,11,0,11,0,11,0,11,0,11,0,11,0,11,0,11,0,11,3,4,0,11,6,8,0,11,0,11,0,11,0,11,0,11,0,11,0,11,2,6,0,11,0,11,0,11,0,11,0,11,0,11]
[null,"Householder 65 years and over",0,11,0,11,0,11,32,25,0,11,0,11,0,11,0,11,0,11,0,11,0,11,0,11,0,11,0,11,0,11,0,11,0,11,0,11,0,11,0,11,0,11,0,11,0,11,0,11,0,11,0,11,0,11,0,11,0,11,0,11,0,11,0,11,0,11,0,11,0,11,0,11,0,11,2,3,0,11,0,11,0,11,0,11,6,8]
[null,"Nonfamily households:",0,11,0,11,0,11,434,113,0,11,15,11,0,11,5,5,54,33,21,16,0,11,0,11,34,18,0,11,0,11,1,3,24,14,0,11,38,29,0,11,0,11,8,7,0,11,114,66,0,11,0,11,23,14,0,11,90,42,0,11,0,11,52,41,5,4,0,11,0,11,10,9,23,15,17,20,44,22,0,11,0,11,0,11,94,42]
[null,"Male householder:",0,11,0,11,0,11,205,86,0,11,9,9,0,11,3,4,13,13,15,14,0,11,0,11,14,14,0,11,0,11,1,3,13,11,0,11,20,22,0,11,0,11,4,5,0,11,47,47,0,11,0,11,17,15,0,11,37,26,0,11,0,11,24,24,3,4,0,11,0,11,3,4,6,7,11,17,33,19,0,11,0,11,0,11,21,16]
[null,"Householder under 25 years",0,11,0,11,0,11,46,55,0,11,0,11,0,11,0,11,0,11,0,11,0,11,0,11,0,11,0,11,0,11,0,11,0,11,0,11,0,11,0,11,0,11,0,11,0,11,37,46,0,11,0,11,0,11,0,11,0,11,0,11,0,11,0,11,0,11,0,11,0,11,0,11,0,11,0,11,6,8,0,11,0,11,0,11,0,11]
[null,"Householder 25 to 44 years",0,11,0,11,0,11,65,52,0,11,0,11,0,11,0,11,0,11,4,6,0,11,0,11,8,12,0,11,0,11,0,11,0,11,0,11,9,14,0,11,0,11,0,11,0,11,0,11,0,11,0,11,0,11,0,11,0,11,0,11,0,11,24,24,0,11,0,11,0,11,0,11,2,3,0,11,0,11,0,11,0,11,0,11,0,11]
[null,"Householder 45 to 64 years",0,11,0,11,0,11,65,40,0,11,9,9,0,11,1,2,13,13,11,13,0,11,0,11,6,7,0,11,0,11,1,3,7,7,0,11,0,11,0,11,0,11,0,11,0,11,10,18,0,11,0,11,17,15,0,11,30,24,0,11,0,11,0,11,3,4,0,11,0,11,0,11,2,4,0,11,14,13,0,11,0,11,0,11,15,13]
[null,"Householder 65 years and over",0,11,0,11,0,11,29,27,0,11,0,11,0,11,2,3,0,11,0,11,0,11,0,11,0,11,0,11,0,11,0,11,6,9,0,11,11,16,0,11,0,11,4,5,0,11,0,11,0,11,0,11,0,11,0,11,7,9,0,11,0,11,0,11,0,11,0,11,0,11,3,4,2,4,11,17,13,13,0,11,0,11,0,11,6,8]
[null,"Female householder:",0,11,0,11,0,11,229,82,0,11,6,6,0,11,2,4,41,29,6,6,0,11,0,11,20,10,0,11,0,11,0,11,11,9,0,11,18,19,0,11,0,11,4,5,0,11,67,51,0,11,0,11,6,6,0,11,53,34,0,11,0,11,28,27,2,3,0,11,0,11,7,9,17,13,6,6,11,8,0,11,0,11,0,11,73,40]
[null,"Householder under 25 years",0,11,0,11,0,11,6,11,0,11,0,11,0,11,0,11,0,11,0,11,0,11,0,11,0,11,0,11,0,11,0,11,0,11,0,11,0,11,0,11,0,11,0,11,0,11,0,11,0,11,0,11,0,11,0,11,0,11,0,11,0,11,0,11,0,11,0,11,0,11,0,11,4,5,0,11,0,11,0,11,0,11,0,11,0,11]
[null,"Householder 25 to 44 years",0,11,0,11,0,11,13,23,0,11,0,11,0,11,0,11,0,11,0,11,0,11,0,11,0,11,0,11,0,11,0,11,0,11,0,11,0,11,0,11,0,11,0,11,0,11,29,44,0,11,0,11,0,11,0,11,27,28,0,11,0,11,17,20,2,3,0,11,0,11,0,11,0,11,0,11,3,4,0,11,0,11,0,11,0,11]
[null,"Householder 45 to 64 years",0,11,0,11,0,11,67,47,0,11,4,5,0,11,0,11,19,22,3,4,0,11,0,11,4,6,0,11,0,11,0,11,7,7,0,11,0,11,0,11,0,11,4,5,0,11,8,12,0,11,0,11,3,4,0,11,5,7,0,11,0,11,0,11,0,11,0,11,0,11,6,9,4,5,0,11,0,11,0,11,0,11,0,11,49,34]
[null,"Householder 65 years and over",0,11,0,11,0,11,143,60,0,11,2,3,0,11,2,4,22,21,3,4,0,11,0,11,16,9,0,11,0,11,0,11,4,6,0,11,18,19,0,11,0,11,0,11,0,11,30,21,0,11,0,11,3,5,0,11,21,20,0,11,0,11,11,16,0,11,0,11,0,11,1,2,9,11,6,6,8,7,0,11,0,11,0,11,24,21]
[null,"Income in the past 12 months at or above poverty level:",0,11,0,11,0,11,3221,210,0,11,309,48,0,11,129,40,857,90,283,50,0,11,0,11,383,63,0,11,1,4,114,22,83,21,0,11,1187,95,0,11,0,11,382,59,0,11,1220,133,0,11,0,11,539,50,4,6,862,95,0,11,0,11,371,56,189,39,0,11,0,11,190,28,202,38,382,56,185,39,0,11,0,11,16,9,893,105]
[null,"Family households:",0,11,0,11,0,11,1914,182,0,11,225,42,0,11,86,25,473,73,164,39,0,11,0,11,265,58,0,11,0,11,78,20,55,19,0,11,780,60,0,11,0,11,259,49,0,11,804,83,0,11,0,11,392,37,4,6,558,87,0,11,0,11,222,49,122,29,0,11,0,11,132,25,147,34,227,49,123,35,0,11,0,11,9,7,552,77]
[null,"Married-couple family:",0,11,0,11,0,11,1432,167,0,11,204,42,0,11,75,25,412,69,138,36,0,11,0,11,228,55,0,11,0,11,71,18,47,18,0,11,668,59,0,11,0,11,224,43,0,11,623,103,0,11,0,11,340,39,4,6,435,71,0,11,0,11,215,49,109,28,0,11,0,11,113,25,124,29,196,47,99,33,0,11,0,11,7,6,488,75]
[null,"Householder under 25 years",0,11,0,11,0,11,0,18,0,11,11,17,0,11,0,11,8,13,0,11,0,11,0,11,16,24,0,11,0,11,0,11,0,11,0,11,0,11,0,11,0,11,0,11,0,11,0,11,0,11,0,11,0,11,0,11,17,24,0,11,0,11,0,11,6,7,0,11,0,11,0,11,0,11,4,6,0,11,0,11,0,11,0,11,0,11]
[null,"Householder 25 to 44 years",0,11,0,11,0,11,388,137,0,11,36,22,0,11,9,10,105,33,21,17,0,11,0,11,36,24,0,11,0,11,13,9,7,8,0,11,126,47,0,11,0,11,31,17,0,11,208,80,0,11,0,11,60,19,0,11,102,38,0,11,0,11,25,18,24,14,0,11,0,11,19,11,24,17,16,16,15,11,0,11,0,11,0,11,114,49]
[null,"Householder 45 to 64 years",0,11,0,11,0,11,683,91,0,11,81,31,0,11,30,13,152,42,68,26,0,11,0,11,129,32,0,11,0,11,34,12,26,14,0,11,308,56,0,11,0,11,136,36,0,11,271,68,0,11,0,11,182,27,0,11,219,53,0,11,0,11,113,38,40,15,0,11,0,11,54,18,44,19,51,27,57,24,0,11,0,11,0,11,179,53]
[null,"Householder 65 years and over",0,11,0,11,0,11,361,77,0,11,76,25,0,11,36,19,147,48,49,16,0,11,0,11,47,23,0,11,0,11,24,12,14,11,0,11,234,52,0,11,0,11,57,16,0,11,144,43,0,11,0,11,98,27,4,6,97,37,0,11,0,11,77,29,39,12,0,11,0,11,40,20,56,17,125,36,27,18,0,11,0,11,7,6,195,57]
[null,"Other family:",0,11,0,11,0,11,482,147,0,11,21,13,0,11,11,10,61,41,26,13,0,11,0,11,37,26,0,11,0,11,7,5,8,9,0,11,112,46,0,11,0,11,35,20,0,11,181,72,0,11,0,11,52,28,0,11,123,57,0,11,0,11,7,7,13,11,0,11,0,11,19,12,23,17,31,22,24,16,0,11,0,11,2,3,64,41]
[null,"Male householder, no spouse present:",0,11,0,11,0,11,244,106,0,11,6,5,0,11,2,3,0,11,5,5,0,11,0,11,10,10,0,11,0,11,3,3,4,6,0,11,56,34,0,11,0,11,13,13,0,11,58,48,0,11,0,11,7,8,0,11,51,39,0,11,0,11,7,7,0,11,0,11,0,11,6,5,18,17,13,16,16,14,0,11,0,11,2,3,9,13]
[null,"Householder under 25 years",0,11,0,11,0,11,18,28,0,11,0,11,0,11,0,11,0,11,0,11,0,11,0,11,0,11,0,11,0,11,0,11,0,11,0,11,0,11,0,11,0,11,0,11,0,11,0,11,0,11,0,11,0,11,0,11,11,17,0,11,0,11,0,11,0,11,0,11,0,11,0,11,0,11,0,11,0,11,0,11,0,11,0,11,0,11]
[null,"Householder 25 to 44 years",0,11,0,11,0,11,175,108,0,11,0,11,0,11,0,11,0,11,1,3,0,11,0,11,6,9,0,11,0,11,1,3,4,6,0,11,15,16,0,11,0,11,5,7,0,11,40,44,0,11,0,11,3,5,0,11,27,32,0,11,0,11,0,11,0,11,0,11,0,11,0,11,18,17,3,4,7,10,0,11,0,11,0,11,9,13]
[null,"Householder 45 to 64 years",0,11,0,11,0,11,51,33,0,11,3,4,0,11,2,3,0,11,0,11,0,11,0,11,4,5,0,11,0,11,2,3,0,11,0,11,41,30,0,11,0,11,8,9,0,11,8,13,0,11,0,11,0,11,0,11,13,12,0,11,0,11,4,6,0,11,0,11,0,11,3,4,0,11,10,16,9,11,0,11,0,11,2,3,0,11]
[null,"Householder 65 years and over",0,11,0,11,0,11,0,18,0,11,3,4,0,11,0,11,0,11,4,5,0,11,0,11,0,11,0,11,0,11,0,11,0,11,0,11,0,11,0,11,0,11,0,11,0,11,10,16,0,11,0,11,4,5,0,11,0,11,0,11,0,11,3,5,0,11,0,11,0,11,3,4,0,11,0,11,0,11,0,11,0,11,0,11,0,11]
[null,"Female householder, no spouse present:",0,11,0,11,0,11,238,88,0,11,15,11,0,11,9,10,61,41,21,13,0,11,0,11,27,24,0,11,0,11,4,4,4,7,0,11,56,36,0,11,0,11,22,15,0,11,123,62,0,11,0,11,45,27,0,11,72,40,0,11,0,11,0,11,13,11,0,11,0,11,13,10,5,6,18,14,8,7,0,11,0,11,0,11,55,38]
[null,"Householder under 25 years",0,11,0,11,0,11,0,18,0,11,0,11,0,11,0,11,12,18,0,11,0,11,0,11,0,11,0,11,0,11,0,11,0,11,0,11,0,11,0,11,0,11,0,11,0,11,0,11,0,11,0,11,0,11,0,11,10,14,0,11,0,11,0,11,0,11,0,11,0,11,2,3,0,11,0,11,0,11,0,11,0,11,0,11,0,11]
[null,"Householder 25 to 44 years",0,11,0,11,0,11,156,80,0,11,0,11,0,11,4,6,6,9,6,8,0,11,0,11,10,14,0,11,0,11,1,2,0,11,0,11,9,12,0,11,0,11,11,14,0,11,27,32,0,11,0,11,36,27,0,11,38,34,0,11,0,11,0,11,0,11,0,11,0,11,2,3,0,11,8,8,4,6,0,11,0,11,0,11,33,34]
[null,"Householder 45 to 64 years",0,11,0,11,0,11,27,30,0,11,8,10,0,11,1,3,34,35,6,6,0,11,0,11,17,21,0,11,0,11,0,11,0,11,0,11,39,32,0,11,0,11,11,10,0,11,71,47,0,11,0,11,6,5,0,11,6,8,0,11,0,11,0,11,4,5,0,11,0,11,2,3,2,3,0,11,0,11,0,11,0,11,0,11,18,18]
[null,"Householder 65 years and over",0,11,0,11,0,11,55,31,0,11,7,6,0,11,4,6,9,9,9,8,0,11,0,11,0,11,0,11,0,11,3,4,4,7,0,11,8,13,0,11,0,11,0,11,0,11,25,31,0,11,0,11,3,4,0,11,18,13,0,11,0,11,0,11,9,10,0,11,0,11,7,8,3,5,10,12,4,4,0,11,0,11,0,11,4,6]
[null,"Nonfamily households:",0,11,0,11,0,11,1307,231,0,11,84,32,0,11,43,27,384,81,119,31,0,11,0,11,118,44,0,11,1,4,36,14,28,14,0,11,407,110,0,11,0,11,123,41,0,11,416,116,0,11,0,11,147,44,0,11,304,70,0,11,0,11,149,49,67,22,0,11,0,11,58,18,55,23,155,45,62,23,0,11,0,11,7,6,341,92]
[null,"Male householder:",0,11,0,11,0,11,522,115,0,11,59,26,0,11,33,25,205,59,74,28,0,11,0,11,58,31,0,11,1,4,23,12,19,11,0,11,225,86,0,11,0,11,39,30,0,11,200,82,0,11,0,11,78,25,0,11,139,53,0,11,0,11,98,38,44,20,0,11,0,11,35,19,40,19,83,27,30,15,0,11,0,11,7,6,151,72]
[null,"Householder under 25 years",0,11,0,11,0,11,19,23,0,11,4,5,0,11,3,4,0,11,9,10,0,11,0,11,0,11,0,11,0,11,0,11,0,11,0,11,0,11,0,11,0,11,19,28,0,11,12,20,0,11,0,11,0,11,0,11,0,11,0,11,0,11,0,11,0,11,0,11,0,11,0,11,0,11,0,11,0,11,0,11,0,11,0,11,36,49]
[null,"Householder 25 to 44 years",0,11,0,11,0,11,81,70,0,11,14,11,0,11,2,3,29,23,5,6,0,11,0,11,11,13,0,11,0,11,5,6,2,3,0,11,30,45,0,11,0,11,0,11,0,11,33,36,0,11,0,11,15,13,0,11,4,6,0,11,0,11,0,11,0,11,0,11,0,11,10,10,0,11,0,11,3,4,0,11,0,11,3,4,0,11]
[null,"Householder 45 to 64 years",0,11,0,11,0,11,269,74,0,11,25,16,0,11,21,23,77,35,39,23,0,11,0,11,39,25,0,11,0,11,4,4,3,3,0,11,133,69,0,11,0,11,7,7,0,11,60,50,0,11,0,11,36,18,0,11,81,49,0,11,0,11,49,32,18,11,0,11,0,11,10,6,26,17,70,26,14,14,0,11,0,11,2,3,12,13]
[null,"Householder 65 years and over",0,11,0,11,0,11,153,64,0,11,16,15,0,11,7,8,99,41,21,10,0,11,0,11,8,10,0,11,1,4,14,9,14,11,0,11,62,45,0,11,0,11,13,10,0,11,95,54,0,11,0,11,27,12,0,11,54,26,0,11,0,11,49,18,26,14,0,11,0,11,15,17,14,10,13,10,13,9,0,11,0,11,2,3,103,49]
[null,"Female householder:",0,11,0,11,0,11,785,194,0,11,25,16,0,11,10,8,179,61,45,17,0,11,0,11,60,28,0,11,0,11,13,9,9,9,0,11,182,62,0,11,0,11,84,29,0,11,216,84,0,11,0,11,69,40,0,11,165,48,0,11,0,11,51,26,23,12,0,11,0,11,23,10,15,10,72,34,32,16,0,11,0,11,0,11,190,74]
[null,"Householder under 25 years",0,11,0,11,0,11,74,78,0,11,0,11,0,11,0,11,0,11,0,11,0,11,0,11,6,9,0,11,0,11,0,11,0,11,0,11,0,11,0,11,0,11,5,6,0,11,18,28,0,11,0,11,36,36,0,11,0,11,0,11,0,11,0,11,0,11,0,11,0,11,0,11,0,11,15,21,0,11,0,11,0,11,0,11,0,11]
[null,"Householder 25 to 44 years",0,11,0,11,0,11,161,108,0,11,4,4,0,11,0,11,7,11,2,3,0,11,0,11,8,9,0,11,0,11,0,11,0,11,0,11,0,11,0,11,0,11,0,11,0,11,13,22,0,11,0,11,14,10,0,11,12,13,0,11,0,11,12,16,0,11,0,11,0,11,2,3,0,11,0,11,2,4,0,11,0,11,0,11,13,13]
[null,"Householder 45 to 64 years",0,11,0,11,0,11,185,67,0,11,8,7,0,11,8,7,114,50,27,17,0,11,0,11,22,20,0,11,0,11,7,7,6,9,0,11,69,40,0,11,0,11,48,27,0,11,40,34,0,11,0,11,13,10,0,11,60,27,0,11,0,11,3,4,6,10,0,11,0,11,5,6,6,6,19,19,8,7,0,11,0,11,0,11,70,41]
[null,"Householder 65 years and over",0,11,0,11,0,11,365,105,0,11,13,13,0,11,2,3,58,28,16,11,0,11,0,11,24,13,0,11,0,11,6,5,3,4,0,11,113,52,0,11,0,11,31,13,0,11,145,60,0,11,0,11,6,6,0,11,93,34,0,11,0,11,36,19,17,9,0,11,0,11,16,10,9,7,38,22,22,14,0,11,0,11,0,11,107,57]
[]
[]
[]
[]
[]
[]
[]
[]
[]
[null,"B17017. POVERTY STATUS IN THE PAST 12 MONTHS BY HOUSEHOLD TYPE BY AGE OF HOUSEHOLDER"]
[null,"Universe: HOUSEHOLDS"]
[null,"Data Set: 2010-2014 American Community Survey 5-Year Estimates"]
[]
[null,null,"Atkinson and Gilmanton Grant",null,"Bean's Grant",null,"Bean's Purchase",null,"Berlin",null,"Cambridge",null,"Carroll",null,"Chandler's Purchase",null,"Clarksville",null,"Colebrook",null,"Columbia",null,"Crawford's Purchase",null,"Cutt's Grant",null,"Dalton",null,"Dix's Grant",null,"Dixville",null,"Dummer",null,"Errol",null,"Erving's Location",null,"Gorham",null,"Greens Grant",null,"Hadley's Purchase",null,"Jefferson",null,"Kilkenny",null,"Lancaster",null,"Low and Burbank's Grant",null,"Martin's Location",null,"Milan",null,"Millsfield",null,"Northumberland",null,"Odell",null,"Pinkham's Grant",null,"Pittsburg",null,"Randolph",null,"Sargent's Purchase",null,"Second College Grant",null,"Shelburne",null,"Stark",null,"Stewartstown",null,"Stratford",null,"Success",null,"Thompson and Meserves Purchase",null,"Wentworth's Location",null,"Whitefield"]
[null,null,"Estimate","Margin Of Error","Estimate","Margin Of Error","Estimate","Margin Of Error","Estimate","Margin Of Error","Estimate","Margin Of Error","Estimate","Margin Of Error","Estimate","Margin Of Error","Estimate","Margin Of Error","Estimate","Margin Of Error","Estimate","Margin Of Error","Estimate","Margin Of Error","Estimate","Margin Of Error","Estimate","Margin Of Error","Estimate","Margin Of Error","Estimate","Margin Of Error","Estimate","Margin Of Error","Estimate","Margin Of Error","Estimate","Margin Of Error","Estimate","Margin Of Error","Estimate","Margin Of Error","Estimate","Margin Of Error","Estimate","Margin Of Error","Estimate","Margin Of Error","Estimate","Margin Of Error","Estimate","Margin Of Error","Estimate","Margin Of Error","Estimate","Margin Of Error","Estimate","Margin Of Error","Estimate","Margin Of Error","Estimate","Margin Of Error","Estimate","Margin Of Error","Estimate","Margin Of Error","Estimate","Margin Of Error","Estimate","Margin Of Error","Estimate","Margin Of Error","Estimate","Margin Of Error","Estimate","Margin Of Error","Estimate","Margin Of Error","Estimate","Margin Of Error","Estimate","Margin Of Error","Estimate","Margin Of Error","Estimate","Margin Of Error","Estimate","Margin Of Error"]
[null,"Total:",0,11,0,11,0,11,4185,303,8,10,362,57,0,11,152,33,1101,105,315,52,0,11,0,11,414,58,4,6,3,6,141,32,186,38,0,11,1240,77,0,11,0,11,0,11,0,11,1537,96,0,11,0,11,9,7,8,8,0,11,0,11,0,11,452,68,197,34,5,6,0,11,165,26,217,35,373,58,0,11,0,11,0,11,37,21,1047,106]
[null,"Income in the past 12 months below poverty level:",0,11,0,11,0,11,666,144,0,11,31,24,0,11,18,17,171,61,47,22,0,11,0,11,40,22,0,11,0,11,3,3,19,13,0,11,93,50,0,11,0,11,0,11,0,11,160,69,0,11,0,11,2,3,2,3,0,11,0,11,0,11,70,30,8,8,0,11,0,11,6,7,26,11,63,29,0,11,0,11,0,11,12,15,128,42]
[null,"Family households:",0,11,0,11,0,11,337,113,0,11,16,17,0,11,16,16,64,33,25,17,0,11,0,11,14,9,0,11,0,11,1,2,4,7,0,11,44,30,0,11,0,11,0,11,0,11,54,48,0,11,0,11,0,11,0,11,0,11,0,11,0,11,19,12,6,7,0,11,0,11,3,5,4,5,31,18,0,11,0,11,0,11,0,11,45,23]
[null,"Married-couple family:",0,11,0,11,0,11,59,49,0,11,8,12,0,11,13,15,4,8,13,9,0,11,0,11,3,4,0,11,0,11,1,2,0,11,0,11,18,19,0,11,0,11,0,11,0,11,15,24,0,11,0,11,0,11,0,11,0,11,0,11,0,11,10,9,0,11,0,11,0,11,3,5,0,11,14,12,0,11,0,11,0,11,0,11,17,14]
[null,"Householder under 25 years",0,11,0,11,0,11,0,15,0,11,0,11,0,11,0,11,0,11,0,11,0,11,0,11,0,11,0,11,0,11,0,11,0,11,0,11,0,11,0,11,0,11,0,11,0,11,0,11,0,11,0,11,0,11,0,11,0,11,0,11,0,11,0,11,0,11,0,11,0,11,0,11,0,11,0,11,0,11,0,11,0,11,0,11,0,11]
[null,"Householder 25 to 44 years",0,11,0,11,0,11,35,41,0,11,8,12,0,11,0,11,0,11,6,6,0,11,0,11,0,11,0,11,0,11,0,11,0,11,0,11,0,11,0,11,0,11,0,11,0,11,0,11,0,11,0,11,0,11,0,11,0,11,0,11,0,11,0,11,0,11,0,11,0,11,0,11,0,11,0,11,0,11,0,11,0,11,0,11,10,11]
[null,"Householder 45 to 64 years",0,11,0,11,0,11,9,13,0,11,0,11,0,11,13,15,4,8,2,4,0,11,0,11,3,4,0,11,0,11,1,2,0,11,0,11,18,19,0,11,0,11,0,11,0,11,15,24,0,11,0,11,0,11,0,11,0,11,0,11,0,11,7,7,0,11,0,11,0,11,3,5,0,11,10,9,0,11,0,11,0,11,0,11,7,8]
[null,"Householder 65 years and over",0,11,0,11,0,11,15,14,0,11,0,11,0,11,0,11,0,11,5,5,0,11,0,11,0,11,0,11,0,11,0,11,0,11,0,11,0,11,0,11,0,11,0,11,0,11,0,11,0,11,0,11,0,11,0,11,0,11,0,11,0,11,3,5,0,11,0,11,0,11,0,11,0,11,4,7,0,11,0,11,0,11,0,11,0,11]
[null,"Other family:",0,11,0,11,0,11,278,118,0,11,8,12,0,11,3,4,60,32,12,15,0,11,0,11,11,8,0,11,0,11,0,11,4,7,0,11,26,23,0,11,0,11,0,11,0,11,39,40,0,11,0,11,0,11,0,11,0,11,0,11,0,11,9,8,6,7,0,11,0,11,0,11,4,5,17,16,0,11,0,11,0,11,0,11,28,19]
[null,"Male householder, no spouse present:",0,11,0,11,0,11,42,36,0,11,0,11,0,11,1,3,5,9,0,11,0,11,0,11,0,11,0,11,0,11,0,11,0,11,0,11,0,11,0,11,0,11,0,11,0,11,6,9,0,11,0,11,0,11,0,11,0,11,0,11,0,11,4,6,2,3,0,11,0,11,0,11,4,5,12,14,0,11,0,11,0,11,0,11,0,11]
[null,"Householder under 25 years",0,11,0,11,0,11,0,15,0,11,0,11,0,11,0,11,0,11,0,11,0,11,0,11,0,11,0,11,0,11,0,11,0,11,0,11,0,11,0,11,0,11,0,11,0,11,0,11,0,11,0,11,0,11,0,11,0,11,0,11,0,11,0,11,0,11,0,11,0,11,0,11,0,11,0,11,0,11,0,11,0,11,0,11,0,11]
[null,"Householder 25 to 44 years",0,11,0,11,0,11,31,31,0,11,0,11,0,11,1,3,5,9,0,11,0,11,0,11,0,11,0,11,0,11,0,11,0,11,0,11,0,11,0,11,0,11,0,11,0,11,6,9,0,11,0,11,0,11,0,11,0,11,0,11,0,11,4,6,0,11,0,11,0,11,0,11,0,11,0,11,0,11,0,11,0,11,0,11,0,11]
[null,"Householder 45 to 64 years",0,11,0,11,0,11,11,18,0,11,0,11,0,11,0,11,0,11,0,11,0,11,0,11,0,11,0,11,0,11,0,11,0,11,0,11,0,11,0,11,0,11,0,11,0,11,0,11,0,11,0,11,0,11,0,11,0,11,0,11,0,11,0,11,2,3,0,11,0,11,0,11,4,5,12,14,0,11,0,11,0,11,0,11,0,11]
[null,"Householder 65 years and over",0,11,0,11,0,11,0,15,0,11,0,11,0,11,0,11,0,11,0,11,0,11,0,11,0,11,0,11,0,11,0,11,0,11,0,11,0,11,0,11,0,11,0,11,0,11,0,11,0,11,0,11,0,11,0,11,0,11,0,11,0,11,0,11,0,11,0,11,0,11,0,11,0,11,0,11,0,11,0,11,0,11,0,11,0,11]
[null,"Female householder, no spouse present:",0,11,0,11,0,11,236,111,0,11,8,12,0,11,2,3,55,32,12,15,0,11,0,11,11,8,0,11,0,11,0,11,4,7,0,11,26,23,0,11,0,11,0,11,0,11,33,38,0,11,0,11,0,11,0,11,0,11,0,11,0,11,5,5,4,7,0,11,0,11,0,11,0,11,5,6,0,11,0,11,0,11,0,11,28,19]
[null,"Householder under 25 years",0,11,0,11,0,11,40,51,0,11,0,11,0,11,0,11,0,11,9,14,0,11,0,11,0,11,0,11,0,11,0,11,2,4,0,11,6,9,0,11,0,11,0,11,0,11,11,18,0,11,0,11,0,11,0,11,0,11,0,11,0,11,0,11,0,11,0,11,0,11,0,11,0,11,0,11,0,11,0,11,0,11,0,11,0,11]
[null,"Householder 25 to 44 years",0,11,0,11,0,11,190,98,0,11,8,12,0,11,2,3,32,23,3,4,0,11,0,11,2,4,0,11,0,11,0,11,2,6,0,11,6,9,0,11,0,11,0,11,0,11,22,34,0,11,0,11,0,11,0,11,0,11,0,11,0,11,5,5,0,11,0,11,0,11,0,11,0,11,0,11,0,11,0,11,0,11,0,11,18,13]
[null,"Householder 45 to 64 years",0,11,0,11,0,11,0,15,0,11,0,11,0,11,0,11,23,25,0,11,0,11,0,11,9,8,0,11,0,11,0,11,0,11,0,11,14,22,0,11,0,11,0,11,0,11,0,11,0,11,0,11,0,11,0,11,0,11,0,11,0,11,0,11,4,7,0,11,0,11,0,11,0,11,2,4,0,11,0,11,0,11,0,11,10,14]
[null,"Householder 65 years and over",0,11,0,11,0,11,6,9,0,11,0,11,0,11,0,11,0,11,0,11,0,11,0,11,0,11,0,11,0,11,0,11,0,11,0,11,0,11,0,11,0,11,0,11,0,11,0,11,0,11,0,11,0,11,0,11,0,11,0,11,0,11,0,11,0,11,0,11,0,11,0,11,0,11,3,5,0,11,0,11,0,11,0,11,0,11]
[null,"Nonfamily households:",0,11,0,11,0,11,329,107,0,11,15,14,0,11,2,3,107,52,22,14,0,11,0,11,26,21,0,11,0,11,2,3,15,10,0,11,49,40,0,11,0,11,0,11,0,11,106,51,0,11,0,11,2,3,2,3,0,11,0,11,0,11,51,31,2,3,0,11,0,11,3,4,22,11,32,23,0,11,0,11,0,11,12,15,83,46]
[null,"Male householder:",0,11,0,11,0,11,160,84,0,11,5,6,0,11,0,11,47,39,6,8,0,11,0,11,9,9,0,11,0,11,2,3,13,9,0,11,24,38,0,11,0,11,0,11,0,11,25,27,0,11,0,11,2,3,2,3,0,11,0,11,0,11,19,18,0,11,0,11,0,11,2,3,10,9,18,17,0,11,0,11,0,11,2,4,42,35]
[null,"Householder under 25 years",0,11,0,11,0,11,16,18,0,11,0,11,0,11,0,11,16,24,0,11,0,11,0,11,0,11,0,11,0,11,0,11,0,11,0,11,0,11,0,11,0,11,0,11,0,11,0,11,0,11,0,11,0,11,0,11,0,11,0,11,0,11,0,11,0,11,0,11,0,11,0,11,0,11,0,11,0,11,0,11,0,11,0,11,0,11]
[null,"Householder 25 to 44 years",0,11,0,11,0,11,6,11,0,11,2,4,0,11,0,11,0,11,0,11,0,11,0,11,0,11,0,11,0,11,0,11,4,6,0,11,0,11,0,11,0,11,0,11,0,11,0,11,0,11,0,11,0,11,0,11,0,11,0,11,0,11,11,17,0,11,0,11,0,11,2,3,3,5,0,11,0,11,0,11,0,11,1,3,0,11]
[null,"Householder 45 to 64 years",0,11,0,11,0,11,108,59,0,11,3,4,0,11,0,11,31,30,6,8,0,11,0,11,6,6,0,11,0,11,0,11,5,5,0,11,0,11,0,11,0,11,0,11,0,11,11,18,0,11,0,11,2,3,2,3,0,11,0,11,0,11,8,7,0,11,0,11,0,11,0,11,5,7,6,7,0,11,0,11,0,11,0,11,19,24]
[null,"Householder 65 years and over",0,11,0,11,0,11,30,47,0,11,0,11,0,11,0,11,0,11,0,11,0,11,0,11,3,5,0,11,0,11,2,3,4,6,0,11,24,38,0,11,0,11,0,11,0,11,14,20,0,11,0,11,0,11,0,11,0,11,0,11,0,11,0,11,0,11,0,11,0,11,0,11,2,3,12,15,0,11,0,11,0,11,1,3,23,26]
[null,"Female householder:",0,11,0,11,0,11,169,71,0,11,10,13,0,11,2,3,60,30,16,13,0,11,0,11,17,18,0,11,0,11,0,11,2,3,0,11,25,24,0,11,0,11,0,11,0,11,81,43,0,11,0,11,0,11,0,11,0,11,0,11,0,11,32,25,2,3,0,11,0,11,1,3,12,7,14,15,0,11,0,11,0,11,10,14,41,31]
[null,"Householder under 25 years",0,11,0,11,0,11,0,15,0,11,0,11,0,11,0,11,0,11,3,4,0,11,0,11,0,11,0,11,0,11,0,11,0,11,0,11,10,15,0,11,0,11,0,11,0,11,0,11,0,11,0,11,0,11,0,11,0,11,0,11,0,11,13,18,0,11,0,11,0,11,0,11,0,11,0,11,0,11,0,11,0,11,10,14,0,11]
[null,"Householder 25 to 44 years",0,11,0,11,0,11,31,27,0,11,0,11,0,11,0,11,0,11,9,13,0,11,0,11,11,17,0,11,0,11,0,11,0,11,0,11,0,11,0,11,0,11,0,11,0,11,0,11,0,11,0,11,0,11,0,11,0,11,0,11,0,11,0,11,0,11,0,11,0,11,0,11,0,11,0,11,0,11,0,11,0,11,0,11,8,13]
[null,"Householder 45 to 64 years",0,11,0,11,0,11,30,24,0,11,7,11,0,11,2,3,40,22,0,11,0,11,0,11,3,5,0,11,0,11,0,11,2,3,0,11,7,11,0,11,0,11,0,11,0,11,32,31,0,11,0,11,0,11,0,11,0,11,0,11,0,11,7,7,0,11,0,11,0,11,1,3,3,4,11,15,0,11,0,11,0,11,0,11,22,28]
[null,"Householder 65 years and over",0,11,0,11,0,11,108,59,0,11,3,4,0,11,0,11,20,24,4,5,0,11,0,11,3,4,0,11,0,11,0,11,0,11,0,11,8,13,0,11,0,11,0,11,0,11,49,33,0,11,0,11,0,11,0,11,0,11,0,11,0,11,12,12,2,3,0,11,0,11,0,11,9,8,3,4,0,11,0,11,0,11,0,11,11,11]
[null,"Income in the past 12 months at or above poverty level:",0,11,0,11,0,11,3519,306,8,10,331,57,0,11,134,27,930,95,268,49,0,11,0,11,374,56,4,6,3,6,138,33,167,36,0,11,1147,72,0,11,0,11,0,11,0,11,1377,112,0,11,0,11,7,6,6,7,0,11,0,11,0,11,382,63,189,33,5,6,0,11,159,26,191,33,310,55,0,11,0,11,0,11,25,15,919,104]
[null,"Family households:",0,11,0,11,0,11,2199,220,6,9,207,48,0,11,90,24,631,91,202,45,0,11,0,11,288,48,0,11,0,11,108,31,76,28,0,11,814,64,0,11,0,11,0,11,0,11,862,88,0,11,0,11,2,4,2,4,0,11,0,11,0,11,257,53,141,24,5,6,0,11,115,22,122,26,197,47,0,11,0,11,0,11,16,11,533,83]
[null,"Married-couple family:",0,11,0,11,0,11,1703,185,2,5,176,43,0,11,64,23,502,84,167,39,0,11,0,11,222,39,0,11,0,11,103,31,67,26,0,11,678,70,0,11,0,11,0,11,0,11,659,91,0,11,0,11,2,4,2,4,0,11,0,11,0,11,240,50,128,23,5,6,0,11,97,23,107,24,162,44,0,11,0,11,0,11,16,11,458,78]
[null,"Householder under 25 years",0,11,0,11,0,11,10,15,0,11,0,11,0,11,0,11,0,11,0,11,0,11,0,11,0,11,0,11,0,11,0,11,0,11,0,11,0,11,0,11,0,11,0,11,0,11,25,39,0,11,0,11,0,11,0,11,0,11,0,11,0,11,0,11,0,11,0,11,0,11,0,11,0,11,5,8,0,11,0,11,0,11,0,11,6,9]
[null,"Householder 25 to 44 years",0,11,0,11,0,11,440,106,2,5,46,26,0,11,6,5,80,32,37,20,0,11,0,11,41,26,0,11,0,11,30,16,21,15,0,11,211,62,0,11,0,11,0,11,0,11,145,53,0,11,0,11,2,4,2,4,0,11,0,11,0,11,28,20,30,15,0,11,0,11,21,16,24,15,26,18,0,11,0,11,0,11,0,11,130,47]
[null,"Householder 45 to 64 years",0,11,0,11,0,11,825,124,0,11,57,28,0,11,30,13,271,64,83,26,0,11,0,11,97,30,0,11,0,11,44,19,25,15,0,11,355,61,0,11,0,11,0,11,0,11,317,73,0,11,0,11,0,11,0,11,0,11,0,11,0,11,134,41,47,12,5,6,0,11,48,15,54,20,54,25,0,11,0,11,0,11,15,11,196,40]
[null,"Householder 65 years and over",0,11,0,11,0,11,428,78,0,11,73,27,0,11,28,15,151,46,47,19,0,11,0,11,84,25,0,11,0,11,29,14,21,13,0,11,112,46,0,11,0,11,0,11,0,11,172,48,0,11,0,11,0,11,0,11,0,11,0,11,0,11,78,25,51,15,0,11,0,11,28,11,29,12,77,33,0,11,0,11,0,11,1,2,126,44]
[null,"Other family:",0,11,0,11,0,11,496,136,4,7,31,22,0,11,26,18,129,49,35,23,0,11,0,11,66,38,0,11,0,11,5,5,9,9,0,11,136,60,0,11,0,11,0,11,0,11,203,86,0,11,0,11,0,11,0,11,0,11,0,11,0,11,17,14,13,10,0,11,0,11,18,10,15,9,35,26,0,11,0,11,0,11,0,11,75,30]
[null,"Male householder, no spouse present:",0,11,0,11,0,11,222,104,4,7,13,14,0,11,7,8,32,34,15,15,0,11,0,11,30,22,0,11,0,11,2,3,4,7,0,11,42,39,0,11,0,11,0,11,0,11,42,33,0,11,0,11,0,11,0,11,0,11,0,11,0,11,0,11,9,7,0,11,0,11,9,9,2,4,7,10,0,11,0,11,0,11,0,11,31,18]
[null,"Householder under 25 years",0,11,0,11,0,11,0,15,0,11,0,11,0,11,0,11,0,11,0,11,0,11,0,11,0,11,0,11,0,11,0,11,0,11,0,11,0,11,0,11,0,11,0,11,0,11,0,11,0,11,0,11,0,11,0,11,0,11,0,11,0,11,0,11,0,11,0,11,0,11,0,11,0,11,0,11,0,11,0,11,0,11,0,11,4,7]
[null,"Householder 25 to 44 years",0,11,0,11,0,11,132,70,0,11,13,14,0,11,5,7,23,33,4,6,0,11,0,11,11,13,0,11,0,11,0,11,0,11,0,11,34,37,0,11,0,11,0,11,0,11,0,11,0,11,0,11,0,11,0,11,0,11,0,11,0,11,0,11,7,6,0,11,0,11,1,4,0,11,7,10,0,11,0,11,0,11,0,11,27,21]
[null,"Householder 45 to 64 years",0,11,0,11,0,11,64,60,4,7,0,11,0,11,2,5,9,10,11,14,0,11,0,11,16,17,0,11,0,11,2,3,4,7,0,11,8,12,0,11,0,11,0,11,0,11,42,33,0,11,0,11,0,11,0,11,0,11,0,11,0,11,0,11,0,11,0,11,0,11,8,7,0,11,0,11,0,11,0,11,0,11,0,11,0,11]
[null,"Householder 65 years and over",0,11,0,11,0,11,26,24,0,11,0,11,0,11,0,11,0,11,0,11,0,11,0,11,3,5,0,11,0,11,0,11,0,11,0,11,0,11,0,11,0,11,0,11,0,11,0,11,0,11,0,11,0,11,0,11,0,11,0,11,0,11,0,11,2,3,0,11,0,11,0,11,2,4,0,11,0,11,0,11,0,11,0,11,0,11]
[null,"Female householder, no spouse present:",0,11,0,11,0,11,274,94,0,11,18,17,0,11,19,16,97,38,20,18,0,11,0,11,36,24,0,11,0,11,3,4,5,6,0,11,94,53,0,11,0,11,0,11,0,11,161,84,0,11,0,11,0,11,0,11,0,11,0,11,0,11,17,14,4,5,0,11,0,11,9,8,13,9,28,24,0,11,0,11,0,11,0,11,44,23]
[null,"Householder under 25 years",0,11,0,11,0,11,8,13,0,11,0,11,0,11,0,11,0,11,0,11,0,11,0,11,0,11,0,11,0,11,0,11,0,11,0,11,26,40,0,11,0,11,0,11,0,11,0,11,0,11,0,11,0,11,0,11,0,11,0,11,0,11,0,11,0,11,0,11,0,11,0,11,0,11,0,11,0,11,0,11,0,11,0,11,0,11]
[null,"Householder 25 to 44 years",0,11,0,11,0,11,118,53,0,11,0,11,0,11,1,4,45,28,2,3,0,11,0,11,7,9,0,11,0,11,0,11,0,11,0,11,16,17,0,11,0,11,0,11,0,11,107,74,0,11,0,11,0,11,0,11,0,11,0,11,0,11,3,4,0,11,0,11,0,11,3,4,6,7,0,11,0,11,0,11,0,11,0,11,14,12]
[null,"Householder 45 to 64 years",0,11,0,11,0,11,103,71,0,11,12,14,0,11,12,12,16,11,6,6,0,11,0,11,18,20,0,11,0,11,0,11,4,6,0,11,39,36,0,11,0,11,0,11,0,11,17,17,0,11,0,11,0,11,0,11,0,11,0,11,0,11,0,11,4,5,0,11,0,11,6,6,3,5,24,24,0,11,0,11,0,11,0,11,21,17]
[null,"Householder 65 years and over",0,11,0,11,0,11,45,29,0,11,6,10,0,11,6,8,36,21,12,16,0,11,0,11,11,8,0,11,0,11,3,4,1,2,0,11,13,14,0,11,0,11,0,11,0,11,37,44,0,11,0,11,0,11,0,11,0,11,0,11,0,11,14,14,0,11,0,11,0,11,0,11,4,5,4,5,0,11,0,11,0,11,0,11,9,10]
[null,"Nonfamily households:",0,11,0,11,0,11,1320,233,2,3,124,47,0,11,44,17,299,58,66,22,0,11,0,11,86,34,4,6,3,6,30,12,91,24,0,11,333,82,0,11,0,11,0,11,0,11,515,129,0,11,0,11,5,7,4,6,0,11,0,11,0,11,125,43,48,24,0,11,0,11,44,18,69,27,113,39,0,11,0,11,0,11,9,12,386,86]
[null,"Male householder:",0,11,0,11,0,11,680,151,2,3,89,41,0,11,34,16,166,48,17,12,0,11,0,11,50,29,4,6,3,6,15,12,58,20,0,11,133,63,0,11,0,11,0,11,0,11,216,100,0,11,0,11,5,7,4,6,0,11,0,11,0,11,68,31,27,18,0,11,0,11,25,11,53,24,62,34,0,11,0,11,0,11,9,12,209,71]
[null,"Householder under 25 years",0,11,0,11,0,11,58,43,0,11,23,18,0,11,0,11,5,9,0,11,0,11,0,11,10,14,0,11,0,11,0,11,0,11,0,11,41,49,0,11,0,11,0,11,0,11,7,11,0,11,0,11,0,11,0,11,0,11,0,11,0,11,0,11,0,11,0,11,0,11,0,11,0,11,0,11,0,11,0,11,0,11,0,11,0,11]
[null,"Householder 25 to 44 years",0,11,0,11,0,11,151,85,0,11,9,10,0,11,2,3,51,33,11,10,0,11,0,11,6,11,4,6,3,6,1,2,6,7,0,11,9,13,0,11,0,11,0,11,0,11,42,46,0,11,0,11,0,11,0,11,0,11,0,11,0,11,2,4,4,7,0,11,0,11,3,6,3,5,15,18,0,11,0,11,0,11,0,11,87,53]
[null,"Householder 45 to 64 years",0,11,0,11,0,11,260,98,2,3,42,33,0,11,26,15,63,38,0,11,0,11,0,11,17,14,0,11,0,11,9,11,32,18,0,11,72,38,0,11,0,11,0,11,0,11,135,86,0,11,0,11,5,7,4,6,0,11,0,11,0,11,50,26,13,12,0,11,0,11,3,4,32,20,16,16,0,11,0,11,0,11,2,6,78,39]
[null,"Householder 65 years and over",0,11,0,11,0,11,211,76,0,11,15,11,0,11,6,7,47,19,6,7,0,11,0,11,17,17,0,11,0,11,5,4,20,10,0,11,11,16,0,11,0,11,0,11,0,11,32,29,0,11,0,11,0,11,0,11,0,11,0,11,0,11,16,11,10,8,0,11,0,11,19,10,18,15,31,24,0,11,0,11,0,11,7,10,44,29]
[null,"Female householder:",0,11,0,11,0,11,640,144,0,11,35,23,0,11,10,7,133,45,49,18,0,11,0,11,36,17,0,11,0,11,15,9,33,17,0,11,200,60,0,11,0,11,0,11,0,11,299,85,0,11,0,11,0,11,0,11,0,11,0,11,0,11,57,29,21,11,0,11,0,11,19,13,16,9,51,29,0,11,0,11,0,11,0,11,177,55]
[null,"Householder under 25 years",0,11,0,11,0,11,0,15,0,11,0,11,0,11,0,11,4,7,3,4,0,11,0,11,0,11,0,11,0,11,0,11,0,11,0,11,0,11,0,11,0,11,0,11,0,11,0,11,0,11,0,11,0,11,0,11,0,11,0,11,0,11,0,11,0,11,0,11,0,11,2,4,0,11,12,18,0,11,0,11,0,11,0,11,5,7]
[null,"Householder 25 to 44 years",0,11,0,11,0,11,7,11,0,11,10,15,0,11,0,11,7,10,0,11,0,11,0,11,4,6,0,11,0,11,0,11,0,11,0,11,0,11,0,11,0,11,0,11,0,11,49,48,0,11,0,11,0,11,0,11,0,11,0,11,0,11,12,17,1,2,0,11,0,11,5,7,0,11,0,11,0,11,0,11,0,11,0,11,52,32]
[null,"Householder 45 to 64 years",0,11,0,11,0,11,184,88,0,11,6,10,0,11,7,5,28,18,12,7,0,11,0,11,9,8,0,11,0,11,9,8,12,10,0,11,31,23,0,11,0,11,0,11,0,11,188,76,0,11,0,11,0,11,0,11,0,11,0,11,0,11,28,23,3,4,0,11,0,11,4,5,5,5,14,10,0,11,0,11,0,11,0,11,80,34]
[null,"Householder 65 years and over",0,11,0,11,0,11,449,110,0,11,19,15,0,11,3,4,94,38,34,17,0,11,0,11,23,15,0,11,0,11,6,5,21,15,0,11,169,54,0,11,0,11,0,11,0,11,62,39,0,11,0,11,0,11,0,11,0,11,0,11,0,11,17,11,17,10,0,11,0,11,8,9,11,8,25,18,0,11,0,11,0,11,0,11,40,26]
[]
[]
[]
[]
[]
[]
[]
[]
[]
[null,"B17017. POVERTY STATUS IN THE PAST 12 MONTHS BY HOUSEHOLD TYPE BY AGE OF HOUSEHOLDER"]
[null,"Universe: HOUSEHOLDS"]
[null,"Data Set: 2005-2009 American Community Survey 5-Year Estimates"]
[]
[null,null,"Atkinson and Gilmanton Grant",null,"Bean's Grant",null,"Bean's Purchase",null,"Berlin",null,"Cambridge",null,"Carroll",null,"Chandler's Purchase",null,"Clarksville",null,"Colebrook",null,"Columbia",null,"Crawford's Purchase",null,"Cutt's Grant",null,"Dalton",null,"Dix's Grant",null,"Dixville",null,"Dummer",null,"Errol",null,"Erving's Location",null,"Gorham",null,"Greens Grant",null,"Hadley's Purchase",null,"Jefferson",null,"Kilkenny",null,"Lancaster",null,"Low and Burbank's Grant",null,"Martin's Location",null,"Milan",null,"Millsfield",null,"Northumberland",null,"Odell",null,"Pinkham's Grant",null,"Pittsburg",null,"Randolph",null,"Sargent's Purchase",null,"Second College Grant",null,"Shelburne",null,"Stark",null,"Stewartstown",null,"Stratford",null,"Success",null,"Thompson and Meserves Purchase",null,"Wentworth's Location",null,"Whitefield"]
[null,null,"Estimate","Margin Of Error","Estimate","Margin Of Error","Estimate","Margin Of Error","Estimate","Margin Of Error","Estimate","Margin Of Error","Estimate","Margin Of Error","Estimate","Margin Of Error","Estimate","Margin Of Error","Estimate","Margin Of Error","Estimate","Margin Of Error","Estimate","Margin Of Error","Estimate","Margin Of Error","Estimate","Margin Of Error","Estimate","Margin Of Error","Estimate","Margin Of Error","Estimate","Margin Of Error","Estimate","Margin Of Error","Estimate","Margin Of Error","Estimate","Margin Of Error","Estimate","Margin Of Error","Estimate","Margin Of Error","Estimate","Margin Of Error","Estimate","Margin Of Error","Estimate","Margin Of Error","Estimate","Margin Of Error","Estimate","Margin Of Error","Estimate","Margin Of Error","Estimate","Margin Of Error","Estimate","Margin Of Error","Estimate","Margin Of Error","Estimate","Margin Of Error","Estimate","Margin Of Error","Estimate","Margin Of Error","Estimate","Margin Of Error","Estimate","Margin Of Error","Estimate","Margin Of Error","Estimate","Margin Of Error","Estimate","Margin Of Error","Estimate","Margin Of Error","Estimate","Margin Of Error","Estimate","Margin Of Error","Estimate","Margin Of Error","Estimate","Margin Of Error"]
[null,"Total:",0,114,0,114,0,114,4227,382,0,114,296,59,0,114,167,40,1116,126,344,64,0,114,0,114,469,55,0,114,8,8,151,49,119,32,0,114,1332,83,0,114,0,114,395,47,0,114,1248,119,0,114,0,114,567,44,4,5,1018,106,0,114,0,114,398,61,170,37,0,114,0,114,194,42,250,59,398,76,503,85,0,114,0,114,26,13,922,94]
[null,"Income in the past 12 months below poverty level:",0,114,0,114,0,114,651,156,0,114,21,20,0,114,10,8,227,88,21,18,0,114,0,114,66,32,0,114,0,114,4,7,3,4,0,114,107,74,0,114,0,114,39,22,0,114,149,66,0,114,0,114,69,28,0,114,132,57,0,114,0,114,32,17,0,114,0,114,0,114,12,10,25,20,54,29,127,53,0,114,0,114,4,6,173,69]
[null,"Family households:",0,114,0,114,0,114,236,72,0,114,9,10,0,114,5,5,53,44,9,11,0,114,0,114,24,15,0,114,0,114,3,5,0,114,0,114,49,58,0,114,0,114,14,10,0,114,63,43,0,114,0,114,41,18,0,114,94,50,0,114,0,114,13,11,0,114,0,114,0,114,7,7,16,17,27,16,74,44,0,114,0,114,0,114,82,54]
[null,"Married-couple family:",0,114,0,114,0,114,108,54,0,114,9,10,0,114,5,5,16,19,5,9,0,114,0,114,9,9,0,114,0,114,0,114,0,114,0,114,0,114,0,114,0,114,11,9,0,114,15,15,0,114,0,114,12,9,0,114,0,114,0,114,0,114,9,9,0,114,0,114,0,114,7,7,3,6,14,10,18,21,0,114,0,114,0,114,5,8]
[null,"Householder under 25 years",0,114,0,114,0,114,0,114,0,114,0,114,0,114,0,114,0,114,0,114,0,114,0,114,0,114,0,114,0,114,0,114,0,114,0,114,0,114,0,114,0,114,0,114,0,114,0,114,0,114,0,114,0,114,0,114,0,114,0,114,0,114,0,114,0,114,0,114,0,114,0,114,0,114,0,114,0,114,0,114,0,114,0,114,0,114]
[null,"Householder 25 to 44 years",0,114,0,114,0,114,41,39,0,114,0,114,0,114,0,114,0,114,5,9,0,114,0,114,0,114,0,114,0,114,0,114,0,114,0,114,0,114,0,114,0,114,0,114,0,114,0,114,0,114,0,114,4,5,0,114,0,114,0,114,0,114,0,114,0,114,0,114,0,114,2,3,0,114,8,8,0,114,0,114,0,114,0,114,0,114]
[null,"Householder 45 to 64 years",0,114,0,114,0,114,51,37,0,114,9,10,0,114,3,4,11,17,0,114,0,114,0,114,9,9,0,114,0,114,0,114,0,114,0,114,0,114,0,114,0,114,11,9,0,114,9,12,0,114,0,114,8,7,0,114,0,114,0,114,0,114,9,9,0,114,0,114,0,114,0,114,3,6,3,5,6,9,0,114,0,114,0,114,0,114]
[null,"Householder 65 years and over",0,114,0,114,0,114,16,18,0,114,0,114,0,114,2,3,5,7,0,114,0,114,0,114,0,114,0,114,0,114,0,114,0,114,0,114,0,114,0,114,0,114,0,114,0,114,6,10,0,114,0,114,0,114,0,114,0,114,0,114,0,114,0,114,0,114,0,114,0,114,5,6,0,114,3,7,12,19,0,114,0,114,0,114,5,8]
[null,"Other family:",0,114,0,114,0,114,128,67,0,114,0,114,0,114,0,114,37,38,4,7,0,114,0,114,15,13,0,114,0,114,3,5,0,114,0,114,49,58,0,114,0,114,3,5,0,114,48,43,0,114,0,114,29,17,0,114,94,50,0,114,0,114,4,6,0,114,0,114,0,114,0,114,13,15,13,12,56,34,0,114,0,114,0,114,77,54]
[null,"Male householder, no spouse present:",0,114,0,114,0,114,31,38,0,114,0,114,0,114,0,114,0,114,0,114,0,114,0,114,0,114,0,114,0,114,0,114,0,114,0,114,0,114,0,114,0,114,0,114,0,114,0,114,0,114,0,114,2,3,0,114,18,24,0,114,0,114,0,114,0,114,0,114,0,114,0,114,4,6,5,9,6,8,0,114,0,114,0,114,0,114]
[null,"Householder under 25 years",0,114,0,114,0,114,8,15,0,114,0,114,0,114,0,114,0,114,0,114,0,114,0,114,0,114,0,114,0,114,0,114,0,114,0,114,0,114,0,114,0,114,0,114,0,114,0,114,0,114,0,114,0,114,0,114,0,114,0,114,0,114,0,114,0,114,0,114,0,114,0,114,0,114,0,114,0,114,0,114,0,114,0,114,0,114]
[null,"Householder 25 to 44 years",0,114,0,114,0,114,23,35,0,114,0,114,0,114,0,114,0,114,0,114,0,114,0,114,0,114,0,114,0,114,0,114,0,114,0,114,0,114,0,114,0,114,0,114,0,114,0,114,0,114,0,114,2,3,0,114,18,24,0,114,0,114,0,114,0,114,0,114,0,114,0,114,0,114,0,114,6,8,0,114,0,114,0,114,0,114]
[null,"Householder 45 to 64 years",0,114,0,114,0,114,0,114,0,114,0,114,0,114,0,114,0,114,0,114,0,114,0,114,0,114,0,114,0,114,0,114,0,114,0,114,0,114,0,114,0,114,0,114,0,114,0,114,0,114,0,114,0,114,0,114,0,114,0,114,0,114,0,114,0,114,0,114,0,114,0,114,4,6,5,9,0,114,0,114,0,114,0,114,0,114]
[null,"Householder 65 years and over",0,114,0,114,0,114,0,114,0,114,0,114,0,114,0,114,0,114,0,114,0,114,0,114,0,114,0,114,0,114,0,114,0,114,0,114,0,114,0,114,0,114,0,114,0,114,0,114,0,114,0,114,0,114,0,114,0,114,0,114,0,114,0,114,0,114,0,114,0,114,0,114,0,114,0,114,0,114,0,114,0,114,0,114,0,114]
[null,"Female householder, no spouse present:",0,114,0,114,0,114,97,55,0,114,0,114,0,114,0,114,37,38,4,7,0,114,0,114,15,13,0,114,0,114,3,5,0,114,0,114,49,58,0,114,0,114,3,5,0,114,48,43,0,114,0,114,27,16,0,114,76,56,0,114,0,114,4,6,0,114,0,114,0,114,0,114,9,13,8,9,50,33,0,114,0,114,0,114,77,54]
[null,"Householder under 25 years",0,114,0,114,0,114,16,26,0,114,0,114,0,114,0,114,0,114,0,114,0,114,0,114,0,114,0,114,0,114,0,114,0,114,0,114,0,114,0,114,0,114,0,114,0,114,0,114,0,114,0,114,9,13,0,114,34,34,0,114,0,114,0,114,0,114,0,114,0,114,0,114,9,13,0,114,18,20,0,114,0,114,0,114,0,114]
[null,"Householder 25 to 44 years",0,114,0,114,0,114,55,39,0,114,0,114,0,114,0,114,37,38,4,7,0,114,0,114,6,11,0,114,0,114,3,5,0,114,0,114,49,58,0,114,0,114,3,5,0,114,36,39,0,114,0,114,10,9,0,114,29,38,0,114,0,114,4,6,0,114,0,114,0,114,0,114,0,114,0,114,26,24,0,114,0,114,0,114,40,31]
[null,"Householder 45 to 64 years",0,114,0,114,0,114,26,27,0,114,0,114,0,114,0,114,0,114,0,114,0,114,0,114,4,6,0,114,0,114,0,114,0,114,0,114,0,114,0,114,0,114,0,114,0,114,0,114,0,114,0,114,8,7,0,114,5,9,0,114,0,114,0,114,0,114,0,114,0,114,0,114,0,114,8,9,6,10,0,114,0,114,0,114,37,44]
[null,"Householder 65 years and over",0,114,0,114,0,114,0,114,0,114,0,114,0,114,0,114,0,114,0,114,0,114,0,114,5,6,0,114,0,114,0,114,0,114,0,114,0,114,0,114,0,114,0,114,0,114,12,19,0,114,0,114,0,114,0,114,8,12,0,114,0,114,0,114,0,114,0,114,0,114,0,114,0,114,0,114,0,114,0,114,0,114,0,114,0,114]
[null,"Nonfamily households:",0,114,0,114,0,114,415,151,0,114,12,17,0,114,5,5,174,76,12,14,0,114,0,114,42,27,0,114,0,114,1,4,3,4,0,114,58,38,0,114,0,114,25,20,0,114,86,53,0,114,0,114,28,24,0,114,38,27,0,114,0,114,19,13,0,114,0,114,0,114,5,7,9,10,27,23,53,30,0,114,0,114,4,6,91,43]
[null,"Male householder:",0,114,0,114,0,114,166,112,0,114,12,17,0,114,0,114,46,46,6,9,0,114,0,114,12,15,0,114,0,114,0,114,3,4,0,114,0,114,0,114,0,114,15,14,0,114,28,31,0,114,0,114,20,21,0,114,12,17,0,114,0,114,5,8,0,114,0,114,0,114,3,5,0,114,8,11,29,20,0,114,0,114,0,114,35,37]
[null,"Householder under 25 years",0,114,0,114,0,114,56,78,0,114,0,114,0,114,0,114,0,114,0,114,0,114,0,114,0,114,0,114,0,114,0,114,0,114,0,114,0,114,0,114,0,114,0,114,0,114,0,114,0,114,0,114,0,114,0,114,0,114,0,114,0,114,0,114,0,114,0,114,0,114,3,5,0,114,0,114,0,114,0,114,0,114,0,114,0,114]
[null,"Householder 25 to 44 years",0,114,0,114,0,114,47,54,0,114,0,114,0,114,0,114,0,114,0,114,0,114,0,114,0,114,0,114,0,114,0,114,0,114,0,114,0,114,0,114,0,114,8,12,0,114,18,26,0,114,0,114,14,20,0,114,0,114,0,114,0,114,0,114,0,114,0,114,0,114,0,114,0,114,3,6,0,114,0,114,0,114,0,114,0,114]
[null,"Householder 45 to 64 years",0,114,0,114,0,114,46,48,0,114,12,17,0,114,0,114,21,24,6,9,0,114,0,114,12,15,0,114,0,114,0,114,3,4,0,114,0,114,0,114,0,114,7,7,0,114,10,17,0,114,0,114,6,6,0,114,12,17,0,114,0,114,0,114,0,114,0,114,0,114,0,114,0,114,5,9,29,20,0,114,0,114,0,114,0,114]
[null,"Householder 65 years and over",0,114,0,114,0,114,17,15,0,114,0,114,0,114,0,114,25,40,0,114,0,114,0,114,0,114,0,114,0,114,0,114,0,114,0,114,0,114,0,114,0,114,0,114,0,114,0,114,0,114,0,114,0,114,0,114,0,114,0,114,0,114,5,8,0,114,0,114,0,114,0,114,0,114,0,114,0,114,0,114,0,114,0,114,35,37]
[null,"Female householder:",0,114,0,114,0,114,249,102,0,114,0,114,0,114,5,5,128,66,6,11,0,114,0,114,30,23,0,114,0,114,1,4,0,114,0,114,58,38,0,114,0,114,10,13,0,114,58,43,0,114,0,114,8,7,0,114,26,22,0,114,0,114,14,10,0,114,0,114,0,114,2,5,9,10,19,18,24,23,0,114,0,114,4,6,56,43]
[null,"Householder under 25 years",0,114,0,114,0,114,17,27,0,114,0,114,0,114,0,114,39,43,0,114,0,114,0,114,14,21,0,114,0,114,0,114,0,114,0,114,0,114,0,114,0,114,0,114,0,114,0,114,0,114,0,114,0,114,0,114,0,114,0,114,0,114,0,114,0,114,0,114,0,114,0,114,0,114,9,14,0,114,0,114,0,114,0,114,8,13]
[null,"Householder 25 to 44 years",0,114,0,114,0,114,58,57,0,114,0,114,0,114,2,3,15,16,0,114,0,114,0,114,0,114,0,114,0,114,0,114,0,114,0,114,22,24,0,114,0,114,0,114,0,114,0,114,0,114,0,114,0,114,0,114,3,5,0,114,0,114,5,9,0,114,0,114,0,114,0,114,5,7,0,114,0,114,0,114,0,114,0,114,0,114]
[null,"Householder 45 to 64 years",0,114,0,114,0,114,87,46,0,114,0,114,0,114,3,4,33,38,6,11,0,114,0,114,3,4,0,114,0,114,0,114,0,114,0,114,21,23,0,114,0,114,10,13,0,114,9,15,0,114,0,114,2,4,0,114,8,11,0,114,0,114,6,6,0,114,0,114,0,114,2,5,0,114,0,114,11,17,0,114,0,114,4,6,7,10]
[null,"Householder 65 years and over",0,114,0,114,0,114,87,64,0,114,0,114,0,114,0,114,41,31,0,114,0,114,0,114,13,10,0,114,0,114,1,4,0,114,0,114,15,17,0,114,0,114,0,114,0,114,49,40,0,114,0,114,6,6,0,114,15,21,0,114,0,114,3,4,0,114,0,114,0,114,0,114,4,7,10,11,13,15,0,114,0,114,0,114,41,40]
[null,"Income in the past 12 months at or above poverty level:",0,114,0,114,0,114,3576,348,0,114,275,55,0,114,157,38,889,122,323,64,0,114,0,114,403,51,0,114,8,8,147,50,116,31,0,114,1225,110,0,114,0,114,356,48,0,114,1099,126,0,114,0,114,498,40,4,5,886,99,0,114,0,114,366,64,170,37,0,114,0,114,182,43,225,54,344,68,376,75,0,114,0,114,22,13,749,95]
[null,"Family households:",0,114,0,114,0,114,2181,211,0,114,198,50,0,114,97,26,513,96,233,51,0,114,0,114,328,50,0,114,8,8,121,51,88,25,0,114,810,93,0,114,0,114,297,41,0,114,904,100,0,114,0,114,383,43,0,114,668,96,0,114,0,114,262,57,131,32,0,114,0,114,150,39,158,43,253,60,211,55,0,114,0,114,11,12,482,70]
[null,"Married-couple family:",0,114,0,114,0,114,1763,219,0,114,172,44,0,114,75,21,442,88,194,48,0,114,0,114,292,51,0,114,8,8,118,50,77,21,0,114,635,109,0,114,0,114,270,41,0,114,644,79,0,114,0,114,337,42,0,114,585,88,0,114,0,114,255,55,127,32,0,114,0,114,144,39,133,37,224,53,181,53,0,114,0,114,3,6,403,71]
[null,"Householder under 25 years",0,114,0,114,0,114,0,114,0,114,0,114,0,114,0,114,0,114,0,114,0,114,0,114,0,114,0,114,0,114,0,114,0,114,0,114,59,89,0,114,0,114,0,114,0,114,0,114,0,114,0,114,3,5,0,114,52,55,0,114,0,114,0,114,0,114,0,114,0,114,0,114,0,114,0,114,9,14,0,114,0,114,0,114,9,13]
[null,"Householder 25 to 44 years",0,114,0,114,0,114,546,140,0,114,43,24,0,114,23,15,142,59,41,21,0,114,0,114,113,44,0,114,8,8,11,7,28,15,0,114,189,62,0,114,0,114,71,26,0,114,201,62,0,114,0,114,95,24,0,114,156,58,0,114,0,114,53,24,12,11,0,114,0,114,41,29,11,12,61,31,45,24,0,114,0,114,3,6,138,42]
[null,"Householder 45 to 64 years",0,114,0,114,0,114,804,136,0,114,88,30,0,114,33,17,249,81,112,40,0,114,0,114,116,39,0,114,0,114,80,48,20,14,0,114,301,58,0,114,0,114,124,33,0,114,317,54,0,114,0,114,161,28,0,114,253,55,0,114,0,114,102,37,66,25,0,114,0,114,75,22,73,26,92,29,88,38,0,114,0,114,0,114,170,51]
[null,"Householder 65 years and over",0,114,0,114,0,114,413,109,0,114,41,20,0,114,19,12,51,31,41,21,0,114,0,114,63,22,0,114,0,114,27,12,29,14,0,114,86,40,0,114,0,114,75,25,0,114,126,47,0,114,0,114,78,24,0,114,124,42,0,114,0,114,100,32,49,21,0,114,0,114,28,19,49,21,71,30,39,26,0,114,0,114,0,114,86,28]
[null,"Other family:",0,114,0,114,0,114,418,120,0,114,26,21,0,114,22,15,71,48,39,31,0,114,0,114,36,16,0,114,0,114,3,4,11,12,0,114,175,81,0,114,0,114,27,18,0,114,260,103,0,114,0,114,46,24,0,114,83,42,0,114,0,114,7,10,4,5,0,114,0,114,6,7,25,22,29,19,30,23,0,114,0,114,8,10,79,45]
[null,"Male householder, no spouse present:",0,114,0,114,0,114,197,96,0,114,15,18,0,114,8,9,14,21,17,22,0,114,0,114,7,8,0,114,0,114,0,114,8,11,0,114,65,55,0,114,0,114,7,10,0,114,72,64,0,114,0,114,14,10,0,114,47,31,0,114,0,114,7,10,0,114,0,114,0,114,0,114,21,20,16,15,0,114,0,114,0,114,8,10,16,15]
[null,"Householder under 25 years",0,114,0,114,0,114,29,47,0,114,0,114,0,114,0,114,0,114,0,114,0,114,0,114,0,114,0,114,0,114,0,114,0,114,0,114,0,114,0,114,0,114,0,114,0,114,20,40,0,114,0,114,0,114,0,114,14,21,0,114,0,114,0,114,0,114,0,114,0,114,0,114,0,114,0,114,0,114,0,114,0,114,0,114,0,114]
[null,"Householder 25 to 44 years",0,114,0,114,0,114,128,80,0,114,0,114,0,114,0,114,14,21,15,23,0,114,0,114,2,3,0,114,0,114,0,114,0,114,0,114,45,49,0,114,0,114,7,10,0,114,41,49,0,114,0,114,14,10,0,114,11,13,0,114,0,114,7,10,0,114,0,114,0,114,0,114,7,9,7,11,0,114,0,114,0,114,0,114,6,10]
[null,"Householder 45 to 64 years",0,114,0,114,0,114,33,28,0,114,15,18,0,114,8,9,0,114,0,114,0,114,0,114,0,114,0,114,0,114,0,114,8,11,0,114,20,22,0,114,0,114,0,114,0,114,0,114,0,114,0,114,0,114,0,114,22,20,0,114,0,114,0,114,0,114,0,114,0,114,0,114,11,18,5,8,0,114,0,114,0,114,0,114,5,8]
[null,"Householder 65 years and over",0,114,0,114,0,114,7,11,0,114,0,114,0,114,0,114,0,114,2,3,0,114,0,114,5,7,0,114,0,114,0,114,0,114,0,114,0,114,0,114,0,114,0,114,0,114,11,17,0,114,0,114,0,114,0,114,0,114,0,114,0,114,0,114,0,114,0,114,0,114,0,114,3,4,4,6,0,114,0,114,0,114,8,10,5,7]
[null,"Female householder, no spouse present:",0,114,0,114,0,114,221,86,0,114,11,11,0,114,14,13,57,43,22,21,0,114,0,114,29,15,0,114,0,114,3,4,3,4,0,114,110,70,0,114,0,114,20,14,0,114,188,89,0,114,0,114,32,21,0,114,36,27,0,114,0,114,0,114,4,5,0,114,0,114,6,7,4,6,13,12,30,23,0,114,0,114,0,114,63,40]
[null,"Householder under 25 years",0,114,0,114,0,114,35,38,0,114,0,114,0,114,0,114,28,43,0,114,0,114,0,114,0,114,0,114,0,114,0,114,0,114,0,114,0,114,0,114,0,114,0,114,0,114,0,114,0,114,0,114,0,114,0,114,0,114,0,114,0,114,0,114,0,114,0,114,0,114,0,114,0,114,0,114,0,114,0,114,0,114,0,114,0,114]
[null,"Householder 25 to 44 years",0,114,0,114,0,114,100,55,0,114,0,114,0,114,4,6,21,20,15,18,0,114,0,114,23,16,0,114,0,114,0,114,0,114,0,114,55,50,0,114,0,114,14,13,0,114,91,59,0,114,0,114,6,5,0,114,30,25,0,114,0,114,0,114,0,114,0,114,0,114,0,114,4,6,0,114,22,20,0,114,0,114,0,114,30,31]
[null,"Householder 45 to 64 years",0,114,0,114,0,114,42,32,0,114,11,11,0,114,10,11,8,12,0,114,0,114,0,114,0,114,0,114,0,114,0,114,3,4,0,114,50,36,0,114,0,114,4,5,0,114,88,76,0,114,0,114,10,9,0,114,0,114,0,114,0,114,0,114,4,5,0,114,0,114,6,7,0,114,5,8,8,11,0,114,0,114,0,114,28,20]
[null,"Householder 65 years and over",0,114,0,114,0,114,44,30,0,114,0,114,0,114,0,114,0,114,7,10,0,114,0,114,6,6,0,114,0,114,3,4,0,114,0,114,5,9,0,114,0,114,2,3,0,114,9,14,0,114,0,114,16,17,0,114,6,9,0,114,0,114,0,114,0,114,0,114,0,114,0,114,0,114,8,9,0,114,0,114,0,114,0,114,5,7]
[null,"Nonfamily households:",0,114,0,114,0,114,1395,249,0,114,77,34,0,114,60,29,376,99,90,42,0,114,0,114,75,32,0,114,0,114,26,13,28,15,0,114,415,98,0,114,0,114,59,32,0,114,195,70,0,114,0,114,115,26,4,5,218,57,0,114,0,114,104,37,39,21,0,114,0,114,32,15,67,37,91,33,165,52,0,114,0,114,11,8,267,75]
[null,"Male householder:",0,114,0,114,0,114,688,177,0,114,45,23,0,114,39,20,177,75,46,25,0,114,0,114,54,29,0,114,0,114,11,7,18,12,0,114,189,72,0,114,0,114,21,15,0,114,80,51,0,114,0,114,66,21,4,5,131,50,0,114,0,114,61,25,22,15,0,114,0,114,11,8,61,36,43,23,108,45,0,114,0,114,7,5,137,58]
[null,"Householder under 25 years",0,114,0,114,0,114,155,103,0,114,12,17,0,114,0,114,0,114,0,114,0,114,0,114,5,8,0,114,0,114,0,114,0,114,0,114,0,114,0,114,0,114,0,114,0,114,0,114,0,114,0,114,4,5,0,114,0,114,0,114,0,114,0,114,0,114,0,114,0,114,0,114,0,114,0,114,0,114,0,114,0,114,0,114,5,8]
[null,"Householder 25 to 44 years",0,114,0,114,0,114,137,66,0,114,0,114,0,114,14,11,20,21,6,11,0,114,0,114,4,5,0,114,0,114,3,4,0,114,0,114,110,69,0,114,0,114,3,5,0,114,50,46,0,114,0,114,10,7,0,114,29,27,0,114,0,114,6,9,2,3,0,114,0,114,0,114,20,23,13,15,31,26,0,114,0,114,0,114,27,29]
[null,"Householder 45 to 64 years",0,114,0,114,0,114,264,100,0,114,25,15,0,114,14,14,78,59,27,22,0,114,0,114,35,22,0,114,0,114,4,5,4,5,0,114,23,22,0,114,0,114,15,13,0,114,16,19,0,114,0,114,39,16,4,5,51,27,0,114,0,114,41,23,18,14,0,114,0,114,9,7,30,24,17,12,61,38,0,114,0,114,7,5,93,47]
[null,"Householder 65 years and over",0,114,0,114,0,114,132,62,0,114,8,8,0,114,11,11,79,45,13,14,0,114,0,114,10,10,0,114,0,114,4,4,14,11,0,114,56,42,0,114,0,114,3,6,0,114,14,16,0,114,0,114,13,9,0,114,51,34,0,114,0,114,14,14,2,3,0,114,0,114,2,3,11,10,13,11,16,13,0,114,0,114,0,114,12,12]
[null,"Female householder:",0,114,0,114,0,114,707,187,0,114,32,25,0,114,21,20,199,68,44,32,0,114,0,114,21,13,0,114,0,114,15,10,10,9,0,114,226,76,0,114,0,114,38,26,0,114,115,55,0,114,0,114,49,17,0,114,87,41,0,114,0,114,43,21,17,15,0,114,0,114,21,13,6,8,48,24,57,32,0,114,0,114,4,6,130,46]
[null,"Householder under 25 years",0,114,0,114,0,114,16,26,0,114,0,114,0,114,0,114,44,57,0,114,0,114,0,114,4,6,0,114,0,114,0,114,0,114,0,114,0,114,0,114,0,114,0,114,0,114,5,8,0,114,0,114,0,114,0,114,0,114,0,114,0,114,0,114,0,114,0,114,0,114,0,114,0,114,0,114,0,114,0,114,0,114,0,114,0,114]
[null,"Householder 25 to 44 years",0,114,0,114,0,114,40,29,0,114,5,8,0,114,0,114,27,22,0,114,0,114,0,114,3,5,0,114,0,114,0,114,5,7,0,114,33,44,0,114,0,114,5,8,0,114,19,23,0,114,0,114,6,6,0,114,0,114,0,114,0,114,0,114,0,114,0,114,0,114,10,8,0,114,4,7,0,114,0,114,0,114,0,114,26,28]
[null,"Householder 45 to 64 years",0,114,0,114,0,114,227,83,0,114,24,22,0,114,4,6,16,19,21,26,0,114,0,114,10,9,0,114,0,114,3,4,5,5,0,114,47,32,0,114,0,114,20,21,0,114,36,31,0,114,0,114,25,13,0,114,46,37,0,114,0,114,23,16,0,114,0,114,0,114,7,7,0,114,36,21,25,22,0,114,0,114,0,114,50,28]
[null,"Householder 65 years and over",0,114,0,114,0,114,424,169,0,114,3,6,0,114,17,19,112,44,23,19,0,114,0,114,4,5,0,114,0,114,12,9,0,114,0,114,146,58,0,114,0,114,13,10,0,114,55,39,0,114,0,114,18,10,0,114,41,22,0,114,0,114,20,14,17,15,0,114,0,114,4,5,6,8,8,9,32,24,0,114,0,114,4,6,54,22]

{"sheet":"ACS_Table_B03002","index":53,"n_rows":108,"n_cols":88,"rows_kept":108,"cut":false,"hidden":true,"merged":[]}
[null,"B03002. HISPANIC OR LATINO ORIGIN BY RACE"]
[null,"Universe:  TOTAL POPULATION"]
[null,"Data Set: 2015-2019 American Community Survey 5-Year Estimates"]
[]
[null,null,"Atkinson and Gilmanton Grant",null,"Bean's Grant",null,"Bean's Purchase",null,"Berlin",null,"Cambridge",null,"Carroll",null,"Chandler's Purchase",null,"Clarksville",null,"Colebrook",null,"Columbia",null,"Crawford's Purchase",null,"Cutt's Grant",null,"Dalton",null,"Dix's Grant",null,"Dixville",null,"Dummer",null,"Errol",null,"Erving's Location",null,"Gorham",null,"Greens Grant",null,"Hadley's Purchase",null,"Jefferson",null,"Kilkenny",null,"Lancaster",null,"Low and Burbank's Grant",null,"Martin's Location",null,"Milan",null,"Millsfield ",null,"Northumberland",null,"Odell",null,"Pinkham's Grant",null,"Pittsburg",null,"Randolph",null,"Sargent's Purchase",null,"Second College Grant",null,"Shelburne",null,"Stark",null,"Stewartstown",null,"Stratford",null,"Success",null,"Thompson and Meserves Purchase",null,"Wentworth's Location",null,"Whitefield"]
[null,null,"Estimate","Margin Of Error","Estimate","Margin Of Error","Estimate","Margin Of Error","Estimate","Margin Of Error","Estimate","Margin Of Error","Estimate","Margin Of Error","Estimate","Margin Of Error","Estimate","Margin Of Error","Estimate","Margin Of Error","Estimate","Margin Of Error","Estimate","Margin Of Error","Estimate","Margin Of Error","Estimate","Margin Of Error","Estimate","Margin Of Error","Estimate","Margin Of Error","Estimate","Margin Of Error","Estimate","Margin Of Error","Estimate","Margin Of Error","Estimate","Margin Of Error","Estimate","Margin Of Error","Estimate","Margin Of Error","Estimate","Margin Of Error","Estimate","Margin Of Error","Estimate","Margin Of Error","Estimate","Margin Of Error","Estimate","Margin Of Error","Estimate","Margin Of Error","Estimate","Margin Of Error","Estimate","Margin Of Error","Estimate","Margin Of Error","Estimate","Margin Of Error","Estimate","Margin Of Error","Estimate","Margin Of Error","Estimate","Margin Of Error","Estimate","Margin Of Error","Estimate","Margin Of Error","Estimate","Margin Of Error","Estimate","Margin Of Error","Estimate","Margin Of Error","Estimate","Margin Of Error","Estimate","Margin Of Error","Estimate","Margin Of Error","Estimate","Margin Of Error"]
[null,"Total:",0,11,0,11,0,11,10221,22,0,11,772,141,0,11,324,88,1908,171,633,119,0,11,0,11,906,140,0,11,11,12,306,71,205,55,0,11,2623,17,13,10,0,11,850,129,0,11,3275,20,0,11,0,11,1332,107,8,12,2322,266,10,12,10,12,740,104,365,68,11,24,0,11,408,65,606,144,976,176,630,114,0,11,0,11,26,16,2260,214]
[null,"Not Hispanic or Latino:",0,11,0,11,0,11,9639,164,0,11,772,141,0,11,324,88,1894,171,627,120,0,11,0,11,855,126,0,11,10,10,306,71,205,55,0,11,2529,95,13,10,0,11,838,127,0,11,3253,31,0,11,0,11,1268,116,8,12,2294,274,10,12,10,12,728,104,360,68,11,24,0,11,408,65,606,144,963,174,622,114,0,11,0,11,26,16,2237,219]
[null,"White alone",0,11,0,11,0,11,8745,243,0,11,734,147,0,11,294,84,1872,172,624,119,0,11,0,11,791,114,0,11,10,10,302,71,204,55,0,11,2416,125,10,10,0,11,818,126,0,11,3180,53,0,11,0,11,1260,118,8,12,2185,259,5,11,5,11,719,105,359,68,11,24,0,11,406,65,587,145,945,176,616,115,0,11,0,11,26,16,2089,207]
[null,"Black or African American alone",0,11,0,11,0,11,630,186,0,11,28,60,0,11,0,11,0,11,0,11,0,11,0,11,17,25,0,11,0,11,0,11,0,11,0,11,10,15,3,6,0,11,0,11,0,11,23,23,0,11,0,11,0,11,0,11,5,7,0,11,0,11,0,11,0,11,0,11,0,11,0,11,9,10,3,6,1,3,0,11,0,11,0,11,41,43]
[null,"American Indian and Alaska Native alone",0,11,0,11,0,11,25,31,0,11,3,4,0,11,0,11,0,11,3,4,0,11,0,11,4,6,0,11,0,11,4,7,0,11,0,11,13,20,0,11,0,11,0,11,0,11,0,11,0,11,0,11,0,11,0,11,19,20,0,11,0,11,0,11,0,11,0,11,0,11,0,11,0,11,0,11,0,11,0,11,0,11,0,11,27,34]
[null,"Asian alone",0,11,0,11,0,11,53,40,0,11,0,11,0,11,0,11,0,11,0,11,0,11,0,11,11,18,0,11,0,11,0,11,0,11,0,11,28,40,0,11,0,11,14,17,0,11,15,22,0,11,0,11,5,6,0,11,29,39,0,11,0,11,0,11,0,11,0,11,0,11,0,11,0,11,0,11,0,11,0,11,0,11,0,11,13,21]
[null,"Native Hawaiian and Other Pacific Islander alone",0,11,0,11,0,11,21,32,0,11,0,11,0,11,0,11,0,11,0,11,0,11,0,11,0,11,0,11,0,11,0,11,0,11,0,11,0,11,0,11,0,11,0,11,0,11,0,11,0,11,0,11,0,11,0,11,0,11,0,11,0,11,0,11,0,11,0,11,0,11,0,11,0,11,7,13,0,11,0,11,0,11,0,11,0,11]
[null,"Some other race alone",0,11,0,11,0,11,12,26,0,11,0,11,0,11,0,11,0,11,0,11,0,11,0,11,0,11,0,11,0,11,0,11,0,11,0,11,0,11,0,11,0,11,0,11,0,11,0,11,0,11,0,11,0,11,0,11,0,11,0,11,0,11,0,11,1,3,0,11,0,11,0,11,0,11,0,11,0,11,0,11,0,11,0,11,0,11]
[null,"Two or more races:",0,11,0,11,0,11,153,68,0,11,7,7,0,11,30,38,22,22,0,11,0,11,0,11,32,47,0,11,0,11,0,11,1,3,0,11,62,48,0,11,0,11,6,10,0,11,35,34,0,11,0,11,3,4,0,11,56,35,5,11,5,11,9,10,0,11,0,11,0,11,2,4,10,12,8,19,5,9,0,11,0,11,0,11,67,47]
[null,"Two races including Some other race",0,11,0,11,0,11,24,29,0,11,0,11,0,11,0,11,0,11,0,11,0,11,0,11,0,11,0,11,0,11,0,11,1,3,0,11,0,11,0,11,0,11,0,11,0,11,21,33,0,11,0,11,0,11,0,11,0,11,0,11,0,11,0,11,0,11,0,11,0,11,0,11,0,11,0,11,0,11,0,11,0,11,0,11,0,11]
[null,"Two races excluding Some other race, and three or more races",0,11,0,11,0,11,129,64,0,11,7,7,0,11,30,38,22,22,0,11,0,11,0,11,32,47,0,11,0,11,0,11,0,11,0,11,62,48,0,11,0,11,6,10,0,11,14,12,0,11,0,11,3,4,0,11,56,35,5,11,5,11,9,10,0,11,0,11,0,11,2,4,10,12,8,19,5,9,0,11,0,11,0,11,67,47]
[null,"Hispanic or Latino:",0,11,0,11,0,11,582,159,0,11,0,11,0,11,0,11,14,14,6,9,0,11,0,11,51,57,0,11,1,4,0,11,0,11,0,11,94,93,0,11,0,11,12,15,0,11,22,25,0,11,0,11,64,39,0,11,28,43,0,11,0,11,12,18,5,7,0,11,0,11,0,11,0,11,13,19,8,9,0,11,0,11,0,11,23,34]
[null,"White alone",0,11,0,11,0,11,362,141,0,11,0,11,0,11,0,11,5,7,6,9,0,11,0,11,47,56,0,11,1,4,0,11,0,11,0,11,38,41,0,11,0,11,12,15,0,11,6,6,0,11,0,11,64,39,0,11,28,43,0,11,0,11,0,11,5,7,0,11,0,11,0,11,0,11,7,14,3,4,0,11,0,11,0,11,22,34]
[null,"Black or African American alone",0,11,0,11,0,11,54,50,0,11,0,11,0,11,0,11,0,11,0,11,0,11,0,11,0,11,0,11,0,11,0,11,0,11,0,11,0,11,0,11,0,11,0,11,0,11,0,11,0,11,0,11,0,11,0,11,0,11,0,11,0,11,0,11,0,11,0,11,0,11,0,11,0,11,0,11,0,11,0,11,0,11,0,11,0,11]
[null,"American Indian and Alaska Native alone",0,11,0,11,0,11,0,18,0,11,0,11,0,11,0,11,0,11,0,11,0,11,0,11,4,6,0,11,0,11,0,11,0,11,0,11,0,11,0,11,0,11,0,11,0,11,0,11,0,11,0,11,0,11,0,11,0,11,0,11,0,11,4,6,0,11,0,11,0,11,0,11,0,11,0,11,0,11,0,11,0,11,0,11,0,11]
[null,"Asian alone",0,11,0,11,0,11,0,18,0,11,0,11,0,11,0,11,0,11,0,11,0,11,0,11,0,11,0,11,0,11,0,11,0,11,0,11,0,11,0,11,0,11,0,11,0,11,0,11,0,11,0,11,0,11,0,11,0,11,0,11,0,11,0,11,0,11,0,11,0,11,0,11,0,11,0,11,0,11,0,11,0,11,0,11,0,11]
[null,"Native Hawaiian and Other Pacific Islander alone",0,11,0,11,0,11,0,18,0,11,0,11,0,11,0,11,0,11,0,11,0,11,0,11,0,11,0,11,0,11,0,11,0,11,0,11,0,11,0,11,0,11,0,11,0,11,0,11,0,11,0,11,0,11,0,11,0,11,0,11,0,11,0,11,0,11,0,11,0,11,0,11,0,11,0,11,0,11,0,11,0,11,0,11,0,11]
[null,"Some other race alone",0,11,0,11,0,11,84,50,0,11,0,11,0,11,0,11,5,7,0,11,0,11,0,11,0,11,0,11,0,11,0,11,0,11,0,11,0,11,0,11,0,11,0,11,0,11,16,24,0,11,0,11,0,11,0,11,0,11,0,11,0,11,0,11,0,11,0,11,0,11,0,11,0,11,0,11,0,11,0,11,0,11,0,11,1,3]
[null,"Two or more races:",0,11,0,11,0,11,82,57,0,11,0,11,0,11,0,11,4,6,0,11,0,11,0,11,0,11,0,11,0,11,0,11,0,11,0,11,56,84,0,11,0,11,0,11,0,11,0,11,0,11,0,11,0,11,0,11,0,11,0,11,0,11,8,12,0,11,0,11,0,11,0,11,0,11,6,13,5,5,0,11,0,11,0,11,0,11]
[null,"Two races including Some other race",0,11,0,11,0,11,57,49,0,11,0,11,0,11,0,11,4,6,0,11,0,11,0,11,0,11,0,11,0,11,0,11,0,11,0,11,0,11,0,11,0,11,0,11,0,11,0,11,0,11,0,11,0,11,0,11,0,11,0,11,0,11,0,11,0,11,0,11,0,11,0,11,0,11,6,13,0,11,0,11,0,11,0,11,0,11]
[null,"Two races excluding Some other race, and three or more races",0,11,0,11,0,11,25,29,0,11,0,11,0,11,0,11,0,11,0,11,0,11,0,11,0,11,0,11,0,11,0,11,0,11,0,11,56,84,0,11,0,11,0,11,0,11,0,11,0,11,0,11,0,11,0,11,0,11,0,11,0,11,8,12,0,11,0,11,0,11,0,11,0,11,0,11,5,5,0,11,0,11,0,11,0,11]
[]
[null,"Calculated B03002. HISPANIC OR LATINO ORIGIN BY RACE"]
[null,"Data Set: 2009-2013 American Community Survey 5-Year Estimates"]
[null,null,"Atkinson and Gilmanton Grant",null,"Bean's Grant",null,"Bean's Purchase",null,"Berlin",null,"Cambridge",null,"Carroll",null,"Chandler's Purchase",null,"Clarksville",null,"Colebrook",null,"Columbia",null,"Crawford's Purchase",null,"Cutt's Grant",null,"Dalton",null,"Dix's Grant",null,"Dixville",null,"Dummer",null,"Errol",null,"Erving's Location",null,"Gorham",null,"Greens Grant",null,"Hadley's Purchase",null,"Jefferson",null,"Kilkenny",null,"Lancaster",null,"Low and Burbank's Grant",null,"Martin's Location",null,"Milan",null,"Millsfield ",null,"Northumberland",null,"Odell",null,"Pinkham's Grant",null,"Pittsburg",null,"Randolph",null,"Sargent's Purchase",null,"Second College Grant",null,"Shelburne",null,"Stark",null,"Stewartstown",null,"Stratford",null,"Success",null,"Thompson and Meserves Purchase",null,"Wentworth's Location",null,"Whitefield"]
[null,null,"Estimate","Margin Of Error","Estimate","Margin Of Error","Estimate","Margin Of Error","Estimate","Margin Of Error","Estimate","Margin Of Error","Estimate","Margin Of Error","Estimate","Margin Of Error","Estimate","Margin Of Error","Estimate","Margin Of Error","Estimate","Margin Of Error","Estimate","Margin Of Error","Estimate","Margin Of Error","Estimate","Margin Of Error","Estimate","Margin Of Error","Estimate","Margin Of Error","Estimate","Margin Of Error","Estimate","Margin Of Error","Estimate","Margin Of Error","Estimate","Margin Of Error","Estimate","Margin Of Error","Estimate","Margin Of Error","Estimate","Margin Of Error","Estimate","Margin Of Error","Estimate","Margin Of Error","Estimate","Margin Of Error","Estimate","Margin Of Error","Estimate","Margin Of Error","Estimate","Margin Of Error","Estimate","Margin Of Error","Estimate","Margin Of Error","Estimate","Margin Of Error","Estimate","Margin Of Error","Estimate","Margin Of Error","Estimate","Margin Of Error","Estimate","Margin Of Error","Estimate","Margin Of Error","Estimate","Margin Of Error","Estimate","Margin Of Error","Estimate","Margin Of Error","Estimate","Margin Of Error","Estimate","Margin Of Error","Estimate","Margin Of Error","Estimate","Margin Of Error"]
[null,"Total:",{"$f":"C7","v":0},11,0,11,0,11,10221,22,0,11,772,141,0,11,324,88,1908,171,633,119,0,11,0,11,906,140,0,11,11,12,306,71,205,55,0,11,2623,17,13,10,0,11,850,129,0,11,3275,20,0,11,0,11,1332,107,8,12,2322,266,10,12,10,12,740,104,{"$f":"BO7","v":365},68,11,24,0,11,408,65,606,144,976,176,630,114,0,11,0,11,26,16,2260,214]
[null,"Not Hispanic or Latino:",0,11,0,11,0,11,9639,164,0,11,772,141,0,11,324,88,1894,171,627,120,0,11,0,11,855,126,0,11,10,10,306,71,205,55,0,11,2529,95,13,10,0,11,838,127,0,11,3253,31,0,11,0,11,1268,116,8,12,2294,274,10,12,10,12,728,104,360,68,11,24,0,11,408,65,606,144,963,174,622,114,0,11,0,11,26,16,2237,219]
[null,"White",0,11,0,11,0,11,8745,243,0,11,734,147,0,11,294,84,1872,172,624,119,0,11,0,11,791,114,0,11,10,10,302,71,204,55,0,11,2416,125,10,10,0,11,818,126,0,11,3180,53,0,11,0,11,1260,118,8,12,2185,259,5,11,5,11,719,105,359,68,11,24,0,11,406,65,587,145,945,176,616,115,0,11,0,11,26,16,2089,207]
[null,"Black",0,11,0,11,0,11,630,186,0,11,28,60,0,11,0,11,0,11,0,11,0,11,0,11,17,25,0,11,0,11,0,11,0,11,0,11,10,15,3,6,0,11,0,11,0,11,23,23,0,11,0,11,0,11,0,11,5,7,0,11,0,11,0,{"$f":"BN10","v":11},0,11,0,11,0,11,0,11,9,10,3,6,1,3,0,11,0,11,0,11,41,43]
[null,"American Indian",{"$f":"$C$11","v":0},{"$f":"D11","v":11},{"$f":"E11","v":0},11,0,11,25,31,0,11,3,4,0,11,0,11,0,11,3,4,0,11,0,11,4,6,0,11,0,11,4,7,0,11,0,11,13,20,0,11,0,11,0,11,0,11,0,11,0,11,0,11,0,11,0,11,19,20,0,11,0,11,0,11,0,11,0,11,0,11,0,11,0,11,0,11,0,11,0,11,0,11,0,11,27,34]
[null,"Asian &Pacific Is.",{"$f":"C12+C13","v":0},{"$f":"SQRT((D12^2)+(D13^2))","v":15.556349186104045},{"$f":"E12+E13","v":0},{"$f":"SQRT((F12^2)+(F13^2))","v":15.556349186104045},{"$f":"G12+G13","v":0},{"$f":"SQRT((H12^2)+(H13^2))","v":15.556349186104045},{"$f":"I12+I13","v":74},{"$f":"SQRT((J12^2)+(J13^2))","v":51.224993899462788},{"$f":"K12+K13","v":0},{"$f":"SQRT((L12^2)+(L13^2))","v":15.556349186104045},{"$f":"M12+M13","v":0},{"$f":"SQRT((N12^2)+(N13^2))","v":15.556349186104045},{"$f":"O12+O13","v":0},{"$f":"SQRT((P12^2)+(P13^2))","v":15.556349186104045},{"$f":"Q12+Q13","v":0},{"$f":"SQRT((R12^2)+(R13^2))","v":15.556349186104045},{"$f":"S12+S13","v":0},{"$f":"SQRT((T12^2)+(T13^2))","v":15.556349186104045},{"$f":"U12+U13","v":0},{"$f":"SQRT((V12^2)+(V13^2))","v":15.556349186104045},{"$f":"W12+W13","v":0},{"$f":"SQRT((X12^2)+(X13^2))","v":15.556349186104045},{"$f":"Y12+Y13","v":0},{"$f":"SQRT((Z12^2)+(Z13^2))","v":15.556349186104045},{"$f":"AA12+AA13","v":11},{"$f":"SQRT((AB12^2)+(AB13^2))","v":21.095023109728988},{"$f":"AC12+AC13","v":0},{"$f":"SQRT((AD12^2)+(AD13^2))","v":15.556349186104045},{"$f":"AE12+AE13","v":0},{"$f":"SQRT((AF12^2)+(AF13^2))","v":15.556349186104045},{"$f":"AG12+AG13","v":0},{"$f":"SQRT((AH12^2)+(AH13^2))","v":15.556349186104045},{"$f":"AI12+AI13","v":0},{"$f":"SQRT((AJ12^2)+(AJ13^2))","v":15.556349186104045},{"$f":"AK12+AK13","v":0},{"$f":"SQRT((AL12^2)+(AL13^2))","v":15.556349186104045},{"$f":"AM12+AM13","v":28},{"$f":"SQRT((AN12^2)+(AN13^2))","v":41.484937025383083},{"$f":"AO12+AO13","v":0},{"$f":"SQRT((AP12^2)+(AP13^2))","v":15.556349186104045},{"$f":"AQ12+AQ13","v":0},{"$f":"SQRT((AR12^2)+(AR13^2))","v":15.556349186104045},{"$f":"AS12+AS13","v":14},{"$f":"SQRT((AT12^2)+(AT13^2))","v":20.248456731316587},{"$f":"AU12+AU13","v":0},{"$f":"SQRT((AV12^2)+(AV13^2))","v":15.556349186104045},{"$f":"AW12+AW13","v":15},{"$f":"SQRT((AX12^2)+(AX13^2))","v":24.596747752497688},{"$f":"AY12+AY13","v":0},{"$f":"SQRT((AZ12^2)+(AZ13^2))","v":15.556349186104045},{"$f":"BA12+BA13","v":0},{"$f":"SQRT((BB12^2)+(BB13^2))","v":15.556349186104045},{"$f":"BC12+BC13","v":5},{"$f":"SQRT((BD12^2)+(BD13^2))","v":12.529964086141668},{"$f":"BE12+BE13","v":0},{"$f":"SQRT((BF12^2)+(BF13^2))","v":15.556349186104045},{"$f":"BG12+BG13","v":29},{"$f":"SQRT((BH12^2)+(BH13^2))","v":40.521599178709621},{"$f":"BI12+BI13","v":0},{"$f":"SQRT((BJ12^2)+(BJ13^2))","v":15.556349186104045},{"$f":"BK12+BK13","v":0},{"$f":"SQRT((BL12^2)+(BL13^2))","v":15.556349186104045},{"$f":"BM12+BM13","v":0},{"$f":"SQRT((BN12^2)+(BN13^2))","v":15.556349186104045},{"$f":"BO12+BO13","v":0},{"$f":"SQRT((BP12^2)+(BP13^2))","v":15.556349186104045},{"$f":"BQ12+BQ13","v":0},{"$f":"SQRT((BR12^2)+(BR13^2))","v":15.556349186104045},{"$f":"BS12+BS13","v":0},{"$f":"SQRT((BT12^2)+(BT13^2))","v":15.556349186104045},{"$f":"BU12+BU13","v":0},{"$f":"SQRT((BV12^2)+(BV13^2))","v":15.556349186104045},{"$f":"BW12+BW13","v":0},{"$f":"SQRT((BX12^2)+(BX13^2))","v":15.556349186104045},{"$f":"BY12+BY13","v":7},{"$f":"SQRT((BZ12^2)+(BZ13^2))","v":17.029386365926403},{"$f":"CA12+CA13","v":0},{"$f":"SQRT((CB12^2)+(CB13^2))","v":15.556349186104045},{"$f":"CC12+CC13","v":0},{"$f":"SQRT((CD12^2)+(CD13^2))","v":15.556349186104045},{"$f":"CE12+CE13","v":0},{"$f":"SQRT((CF12^2)+(CF13^2))","v":15.556349186104045},{"$f":"CG12+CG13","v":0},{"$f":"SQRT((CH12^2)+(CH13^2))","v":15.556349186104045},{"$f":"CI12+CI13","v":13},{"$f":"SQRT((CJ12^2)+(CJ13^2))","v":23.706539182259394}]
[null,"Other*",{"$f":"C14+C15","v":0},{"$f":"SQRT((D14^2)+(D15^2))","v":15.556349186104045},{"$f":"E14+E15","v":0},{"$f":"SQRT((F14^2)+(F15^2))","v":15.556349186104045},{"$f":"G14+G15","v":0},{"$f":"SQRT((H14^2)+(H15^2))","v":15.556349186104045},{"$f":"I14+I15","v":165},{"$f":"SQRT((J14^2)+(J15^2))","v":72.801098892805186},{"$f":"K14+K15","v":0},{"$f":"SQRT((L14^2)+(L15^2))","v":15.556349186104045},{"$f":"M14+M15","v":7},{"$f":"SQRT((N14^2)+(N15^2))","v":13.038404810405298},{"$f":"O14+O15","v":0},{"$f":"SQRT((P14^2)+(P15^2))","v":15.556349186104045},{"$f":"Q14+Q15","v":30},{"$f":"SQRT((R14^2)+(R15^2))","v":39.560080889704963},{"$f":"S14+S15","v":22},{"$f":"SQRT((T14^2)+(T15^2))","v":24.596747752497688},{"$f":"U14+U15","v":0},{"$f":"SQRT((V14^2)+(V15^2))","v":15.556349186104045},{"$f":"W14+W15","v":0},{"$f":"SQRT((X14^2)+(X15^2))","v":15.556349186104045},{"$f":"Y14+Y15","v":0},{"$f":"SQRT((Z14^2)+(Z15^2))","v":15.556349186104045},{"$f":"AA14+AA15","v":32},{"$f":"SQRT((AB14^2)+(AB15^2))","v":48.270073544588683},{"$f":"AC14+AC15","v":0},{"$f":"SQRT((AD14^2)+(AD15^2))","v":15.556349186104045},{"$f":"AE14+AE15","v":0},{"$f":"SQRT((AF14^2)+(AF15^2))","v":15.556349186104045},{"$f":"AG14+AG15","v":0},{"$f":"SQRT((AH14^2)+(AH15^2))","v":15.556349186104045},{"$f":"AI14+AI15","v":1},{"$f":"SQRT((AJ14^2)+(AJ15^2))","v":11.401754250991379},{"$f":"AK14+AK15","v":0},{"$f":"SQRT((AL14^2)+(AL15^2))","v":15.556349186104045},{"$f":"AM14+AM15","v":62},{"$f":"SQRT((AN14^2)+(AN15^2))","v":49.244289008980523},{"$f":"AO14+AO15","v":0},{"$f":"SQRT((AP14^2)+(AP15^2))","v":15.556349186104045},{"$f":"AQ14+AQ15","v":0},{"$f":"SQRT((AR14^2)+(AR15^2))","v":15.556349186104045},{"$f":"AS14+AS15","v":6},{"$f":"SQRT((AT14^2)+(AT15^2))","v":14.866068747318506},{"$f":"AU14+AU15","v":0},{"$f":"SQRT((AV14^2)+(AV15^2))","v":15.556349186104045},{"$f":"AW14+AW15","v":35},{"$f":"SQRT((AX14^2)+(AX15^2))","v":35.735136770411273},{"$f":"AY14+AY15","v":0},{"$f":"SQRT((AZ14^2)+(AZ15^2))","v":15.556349186104045},{"$f":"BA14+BA15","v":0},{"$f":"SQRT((BB14^2)+(BB15^2))","v":15.556349186104045},{"$f":"BC14+BC15","v":3},{"$f":"SQRT((BD14^2)+(BD15^2))","v":11.704699910719626},{"$f":"BE14+BE15","v":0},{"$f":"SQRT((BF14^2)+(BF15^2))","v":15.556349186104045},{"$f":"BG14+BG15","v":56},{"$f":"SQRT((BH14^2)+(BH15^2))","v":36.687872655688281},{"$f":"BI14+BI15","v":5},{"$f":"SQRT((BJ14^2)+(BJ15^2))","v":15.556349186104045},{"$f":"BK14+BK15","v":5},{"$f":"SQRT((BL14^2)+(BL15^2))","v":15.556349186104045},{"$f":"BM14+BM15","v":9},{"$f":"SQRT((BN14^2)+(BN15^2))","v":14.866068747318506},{"$f":"BO14+BO15","v":1},{"$f":"SQRT((BP14^2)+(BP15^2))","v":11.401754250991379},{"$f":"BQ14+BQ15","v":0},{"$f":"SQRT((BR14^2)+(BR15^2))","v":15.556349186104045},{"$f":"BS14+BS15","v":0},{"$f":"SQRT((BT14^2)+(BT15^2))","v":15.556349186104045},{"$f":"BU14+BU15","v":2},{"$f":"SQRT((BV14^2)+(BV15^2))","v":11.704699910719626},{"$f":"BW14+BW15","v":10},{"$f":"SQRT((BX14^2)+(BX15^2))","v":16.278820596099706},{"$f":"BY14+BY15","v":8},{"$f":"SQRT((BZ14^2)+(BZ15^2))","v":21.95449840010015},{"$f":"CA14+CA15","v":5},{"$f":"SQRT((CB14^2)+(CB15^2))","v":14.212670403551895},{"$f":"CC14+CC15","v":0},{"$f":"SQRT((CD14^2)+(CD15^2))","v":15.556349186104045},{"$f":"CE14+CE15","v":0},{"$f":"SQRT((CF14^2)+(CF15^2))","v":15.556349186104045},{"$f":"CG14+CG15","v":0},{"$f":"SQRT((CH14^2)+(CH15^2))","v":15.556349186104045},{"$f":"CI14+CI15","v":67},{"$f":"SQRT((CJ14^2)+(CJ15^2))","v":48.270073544588683}]
[null,"Hispanic or Latino:",{"$f":"C18","v":0},{"$f":"D18","v":11},{"$f":"E18","v":0},11,0,11,582,159,0,11,0,11,0,11,0,11,14,14,6,9,0,11,0,11,51,57,0,11,1,4,0,11,0,11,0,11,94,93,0,11,0,11,12,15,0,11,22,25,0,11,0,11,64,39,0,11,28,43,0,11,0,11,12,18,5,7,{"$f":"BQ18","v":0},11,0,11,0,11,0,11,13,19,8,9,0,11,0,11,0,11,23,34]
[]
[]
[]
[]
[]
[]
[]
[]
[]
[]
[]
[]
[]
[]
[]
[]
[]
[]
[]
[]
[]
[]
[]
[]
[]
[]
[]
[]
[]
[]
[]
[]
[]
[]
[]
[]
[]
[null,"Calculated B03002. HISPANIC OR LATINO ORIGIN BY RACE"]
[null,"Universe:  TOTAL POPULATION"]
[null,"Data Set: 2010-2014 American Community Survey 5-Year Estimates"]
[]
[null,null,"Atkinson and Gilmanton Grant",null,"Bean's Grant",null,"Bean's Purchase",null,"Berlin",null,"Cambridge",null,"Carroll",null,"Chandler's Purchase",null,"Clarksville",null,"Colebrook",null,"Columbia",null,"Crawford's Purchase",null,"Cutt's Grant",null,"Dalton",null,"Dix's Grant",null,"Dixville",null,"Dummer",null,"Errol",null,"Erving's Location",null,"Gorham",null,"Greens Grant",null,"Hadley's Purchase",null,"Jefferson",null,"Kilkenny",null,"Lancaster",null,"Low and Burbank's Grant",null,"Martin's Location",null,"Milan",null,"Millsfield ",null,"Northumberland",null,"Odell",null,"Pinkham's Grant",null,"Pittsburg",null,"Randolph",null,"Sargent's Purchase",null,"Second College Grant",null,"Shelburne",null,"Stark",null,"Stewartstown",null,"Stratford",null,"Success",null,"Thompson and Meserves Purchase",null,"Wentworth's Location",null,"Whitefield"]
[null,null,"Estimate","Margin Of Error","Estimate","Margin Of Error","Estimate","Margin Of Error","Estimate","Margin Of Error","Estimate","Margin Of Error","Estimate","Margin Of Error","Estimate","Margin Of Error","Estimate","Margin Of Error","Estimate","Margin Of Error","Estimate","Margin Of Error","Estimate","Margin Of Error","Estimate","Margin Of Error","Estimate","Margin Of Error","Estimate","Margin Of Error","Estimate","Margin Of Error","Estimate","Margin Of Error","Estimate","Margin Of Error","Estimate","Margin Of Error","Estimate","Margin Of Error","Estimate","Margin Of Error","Estimate","Margin Of Error","Estimate","Margin Of Error","Estimate","Margin Of Error","Estimate","Margin Of Error","Estimate","Margin Of Error","Estimate","Margin Of Error","Estimate","Margin Of Error","Estimate","Margin Of Error","Estimate","Margin Of Error","Estimate","Margin Of Error","Estimate","Margin Of Error","Estimate","Margin Of Error","Estimate","Margin Of Error","Estimate","Margin Of Error","Estimate","Margin Of Error","Estimate","Margin Of Error","Estimate","Margin Of Error","Estimate","Margin Of Error","Estimate","Margin Of Error","Estimate","Margin Of Error","Estimate","Margin Of Error","Estimate","Margin Of Error","Estimate","Margin Of Error"]
[null,"Total:",0,11,0,11,0,11,9710,27,17,16,991,165,0,11,315,75,2340,210,726,132,0,11,0,11,933,154,22,22,30,37,348,76,301,70,0,11,2765,15,8,17,0,11,0,11,0,11,3437,22,0,11,0,11,20,16,21,19,0,11,0,11,8,6,875,130,424,74,9,12,0,11,358,66,490,94,811,129,0,11,0,11,0,11,62,33,2134,217]
[null,"Not Hispanic or Latino:",0,11,0,11,0,11,9480,65,17,16,988,166,0,11,301,69,2301,209,722,131,0,11,0,11,906,147,22,22,30,37,348,76,301,70,0,11,2735,36,8,17,0,11,0,11,0,11,3429,23,0,11,0,11,20,16,21,19,0,11,0,11,8,6,855,125,420,72,9,12,0,11,357,66,490,94,811,129,0,11,0,11,0,11,52,29,2116,218]
[null,"White",0,11,0,11,0,11,8994,329,17,16,962,168,0,11,301,69,2219,197,721,132,0,11,0,11,881,143,22,22,30,37,327,71,297,71,0,11,2705,64,8,17,0,11,0,11,0,11,3340,115,0,11,0,11,20,16,21,19,0,11,0,11,8,6,842,124,388,64,9,12,0,11,356,66,475,93,778,129,0,11,0,11,0,11,52,29,2050,214]
[null,"Black",0,11,0,11,0,11,280,386,0,11,5,13,0,11,0,11,6,17,0,11,0,11,0,11,2,9,0,11,0,11,0,11,0,11,0,11,0,11,0,11,0,11,0,11,0,11,22,50,0,11,0,11,0,11,0,11,0,11,0,11,0,11,3,9,0,11,0,11,0,11,0,11,0,11,6,12,0,11,0,11,0,11,0,11,2,4]
[null,"American Indian",0,11,0,11,0,11,47,72,0,11,0,11,0,11,0,11,18,27,0,11,0,11,0,11,5,8,0,11,0,11,0,11,0,11,0,11,20,35,0,11,0,11,0,11,0,11,0,11,0,11,0,11,0,11,0,11,0,11,0,11,0,11,7,10,2,3,0,11,0,11,1,5,3,8,5,7,0,11,0,11,0,11,0,11,5,8]
[null,"Asian &Pacific Is.",0,15.556349186104045,0,15.556349186104045,0,15.556349186104045,24,39.924929555354261,0,15.556349186104045,21,31.016124838541646,0,15.556349186104045,0,15.556349186104045,41,54.12947441089743,0,15.556349186104045,0,15.556349186104045,0,15.556349186104045,8,18.601075237738275,0,15.556349186104045,0,15.556349186104045,0,15.556349186104045,0,15.556349186104045,0,15.556349186104045,0,15.556349186104045,0,15.556349186104045,0,15.556349186104045,0,15.556349186104045,0,15.556349186104045,0,15.556349186104045,0,15.556349186104045,0,15.556349186104045,0,15.556349186104045,0,15.556349186104045,0,15.556349186104045,0,15.556349186104045,0,15.556349186104045,0,15.556349186104045,30,33.837848631377263,0,15.556349186104045,0,15.556349186104045,0,15.556349186104045,0,15.556349186104045,0,15.556349186104045,0,15.556349186104045,0,15.556349186104045,0,15.556349186104045,0,15.556349186104045,0,15.556349186104045]
[null,"Other*",0,15.556349186104045,0,15.556349186104045,0,15.556349186104045,135,80.361682411457764,0,15.556349186104045,0,15.556349186104045,0,15.556349186104045,0,15.556349186104045,17,26.40075756488817,1,11.704699910719626,0,15.556349186104045,0,15.556349186104045,10,17.804493814764857,0,15.556349186104045,0,15.556349186104045,21,25.495097567963924,4,16.278820596099706,0,15.556349186104045,10,29.154759474226502,0,15.556349186104045,0,15.556349186104045,0,15.556349186104045,0,15.556349186104045,67,92.309262807152777,0,15.556349186104045,0,15.556349186104045,0,15.556349186104045,0,15.556349186104045,0,15.556349186104045,0,15.556349186104045,0,15.556349186104045,3,11.704699910719626,0,15.556349186104045,0,15.556349186104045,0,15.556349186104045,0,15.556349186104045,12,20.248456731316587,22,21.95449840010015,0,15.556349186104045,0,15.556349186104045,0,15.556349186104045,0,15.556349186104045,59,64.938432380216881]
[null,"Hispanic or Latino:",0,11,0,11,0,11,230,62,0,11,3,7,0,11,14,17,39,34,4,5,0,11,0,11,27,30,0,11,0,11,0,11,0,11,0,11,30,31,0,11,0,11,0,11,0,11,8,11,0,11,0,11,0,11,0,11,0,11,0,11,0,11,20,19,4,8,0,11,0,11,1,2,0,11,0,11,0,11,0,11,0,11,10,14,18,21]
[]
[]
[]
["Calculated B03002. HISPANIC OR LATINO ORIGIN BY RACE"]
["Universe:  TOTAL POPULATION"]
["Data Set: 2005-2009 American Community Survey 5-Year Estimates"]
[]
[null,null,"Atkinson and Gilmanton Grant",null,"Bean's Grant",null,"Bean's Purchase",null,"Berlin",null,"Cambridge",null,"Carroll",null,"Chandler's Purchase",null,"Clarksville",null,"Colebrook",null,"Columbia",null,"Crawford's Purchase",null,"Cutt's Grant",null,"Dalton",null,"Dix's Grant",null,"Dixville",null,"Dummer",null,"Errol",null,"Erving's Location",null,"Gorham",null,"Greens Grant",null,"Hadley's Purchase",null,"Jefferson",null,"Kilkenny",null,"Lancaster",null,"Low and Burbank's Grant",null,"Martin's Location",null,"Milan",null,"Millsfield ",null,"Northumberland",null,"Odell",null,"Pinkham's Grant",null,"Pittsburg",null,"Randolph",null,"Sargent's Purchase",null,"Second College Grant",null,"Shelburne",null,"Stark",null,"Stewartstown",null,"Stratford",null,"Success",null,"Thompson and Meserves Purchase",null,"Wentworth's Location",null,"Whitefield"]
[null,null,"Estimate","Margin Of Error","Estimate","Margin Of Error","Estimate","Margin Of Error","Estimate","Margin Of Error","Estimate","Margin Of Error","Estimate","Margin Of Error","Estimate","Margin Of Error","Estimate","Margin Of Error","Estimate","Margin Of Error","Estimate","Margin Of Error","Estimate","Margin Of Error","Estimate","Margin Of Error","Estimate","Margin Of Error","Estimate","Margin Of Error","Estimate","Margin Of Error","Estimate","Margin Of Error","Estimate","Margin Of Error","Estimate","Margin Of Error","Estimate","Margin Of Error","Estimate","Margin Of Error","Estimate","Margin Of Error","Estimate","Margin Of Error","Estimate","Margin Of Error","Estimate","Margin Of Error","Estimate","Margin Of Error","Estimate","Margin Of Error","Estimate","Margin Of Error","Estimate","Margin Of Error","Estimate","Margin Of Error","Estimate","Margin Of Error","Estimate","Margin Of Error","Estimate","Margin Of Error","Estimate","Margin Of Error","Estimate","Margin Of Error","Estimate","Margin Of Error","Estimate","Margin Of Error","Estimate","Margin Of Error","Estimate","Margin Of Error","Estimate","Margin Of Error","Estimate","Margin Of Error","Estimate","Margin Of Error","Estimate","Margin Of Error","Estimate","Margin Of Error"]
[null,"Total:",0,114,0,114,0,114,9673,21,0,114,568,113,0,114,330,79,2141,252,841,189,0,114,0,114,1158,145,0,114,125,169,351,127,253,71,0,114,2816,26,0,114,0,114,937,108,0,114,3264,17,0,114,0,114,1271,112,4,5,2249,245,0,114,0,114,773,138,346,83,0,114,0,114,427,81,540,139,969,185,1013,190,0,114,0,114,43,25,2125,235]
[null,"Not Hispanic or Latino:",0,114,0,114,0,114,9561,101,0,114,565,113,0,114,330,79,2055,255,841,189,0,114,0,114,1145,143,0,114,125,169,351,127,230,61,0,114,2810,27,0,114,0,114,933,107,0,114,3264,17,0,114,0,114,1271,112,4,5,2228,249,0,114,0,114,773,138,332,79,0,114,0,114,425,83,540,139,969,185,1013,190,0,114,0,114,43,25,2094,239]
[null,"White",0,114,0,114,0,114,9449,127,0,114,538,104,0,114,330,79,2031,256,841,189,0,114,0,114,1135,145,0,114,125,169,349,127,230,61,0,114,2763,53,0,114,0,114,849,108,0,114,3166,76,0,114,0,114,1248,110,4,5,2154,245,0,114,0,114,773,138,326,79,0,114,0,114,423,82,531,136,932,176,937,175,0,114,0,114,43,25,2031,234]
[null,"Black",0,114,0,114,0,114,29,28,0,114,8,11,0,114,0,114,7,13,0,114,0,114,0,114,0,114,0,114,0,114,0,114,0,114,0,114,14,21,0,114,0,114,0,114,0,114,0,114,0,114,0,114,0,114,0,114,11,16,0,114,0,114,0,114,0,114,0,114,0,114,1,2,0,114,7,11,24,33,0,114,0,114,0,114,14,21]
[null,"American Indian",0,114,0,114,0,114,24,29,0,114,0,114,0,114,0,114,0,114,0,114,0,114,0,114,6,8,0,114,0,114,0,114,0,114,0,114,15,16,0,114,0,114,0,114,0,114,18,23,0,114,0,114,0,114,0,114,21,23,0,114,0,114,0,114,1,3,0,114,0,114,0,114,0,114,5,9,0,114,0,114,0,114,0,114,10,16]
[null,"Asian &Pacific Is.",0,161.22034611053283,0,161.22034611053283,0,161.22034611053283,20,118.96217886370441,0,161.22034611053283,19,117.15374513859982,0,161.22034611053283,0,161.22034611053283,0,161.22034611053283,0,161.22034611053283,0,161.22034611053283,0,161.22034611053283,0,161.22034611053283,0,161.22034611053283,0,161.22034611053283,0,161.22034611053283,0,161.22034611053283,0,161.22034611053283,0,161.22034611053283,0,161.22034611053283,0,161.22034611053283,84,137.01094846763161,0,161.22034611053283,11,115.11733144926528,0,161.22034611053283,0,161.22034611053283,0,161.22034611053283,0,161.22034611053283,0,161.22034611053283,0,161.22034611053283,0,161.22034611053283,0,161.22034611053283,0,161.22034611053283,0,161.22034611053283,0,161.22034611053283,0,161.22034611053283,0,161.22034611053283,25,116.49892703368559,0,161.22034611053283,0,161.22034611053283,0,161.22034611053283,0,161.22034611053283,0,161.22034611053283]
[null,"Other*",0,161.22034611053283,0,161.22034611053283,0,161.22034611053283,39,33.286633954186478,0,161.22034611053283,0,161.22034611053283,0,161.22034611053283,0,161.22034611053283,17,115.57248807566617,0,161.22034611053283,0,161.22034611053283,0,161.22034611053283,4,114.10959644131601,0,161.22034611053283,0,161.22034611053283,2,114.0175425099138,0,161.22034611053283,0,161.22034611053283,18,117.881296226331,0,161.22034611053283,0,161.22034611053283,0,161.22034611053283,0,161.22034611053283,69,50.803543183522152,0,161.22034611053283,0,161.22034611053283,23,17.464249196572979,0,161.22034611053283,42,118.1397477566293,0,161.22034611053283,0,161.22034611053283,0,161.22034611053283,5,6.4031242374328485,0,161.22034611053283,0,161.22034611053283,1,114.0175425099138,9,114.85643212288984,0,161.22034611053283,52,128.82546332150332,0,161.22034611053283,0,161.22034611053283,0,161.22034611053283,39,123.69316876852982]
[null,"Hispanic or Latino:",0,114,0,114,0,114,112,99,0,114,3,5,0,114,0,114,86,80,0,114,0,114,0,114,13,17,0,114,0,114,0,114,23,38,0,114,6,10,0,114,0,114,4,6,0,114,0,114,0,114,0,114,0,114,0,114,21,25,0,114,0,114,0,114,14,21,0,114,0,114,2,6,0,114,0,114,0,114,0,114,0,114,0,114,31,28]

{"sheet":"RentalHousingCost","index":54,"n_rows":124,"n_cols":21,"rows_kept":124,"cut":false,"hidden":true,"merged":[]}
[]
[null,null,"HIDE THIS COLUMN",{"$f":"CntyDataLink!A70","v":"Berlin"}]
[]
[null,null,null,"RENTAL HOUSING COST CHARACTERISTICS"]
[]
[]
[]
[]
[]
[]
[]
[]
[]
[]
[]
[]
[]
[]
[]
[]
[]
[]
[]
[]
[]
[]
[]
[]
[]
[]
[]
[]
[]
[]
[]
[]
[]
[]
[null,null,null,"Source:  2015-2019 American Community Survey Table B25074"]
[]
[null,null,null,"Income in 2019 Inflation Adjusted Dollars"]
[null,null,null,"Data from the American Community Survey are estimates"]
[null,null,null,{"$f":"CntyDataLink!A70","v":"Berlin"}]
[]
[null,null,null,{"$f":"D4","v":"RENTAL HOUSING COST CHARACTERISTICS"}]
[]
[null,null,null,"Renter Households by "]
[null,null,null,"Gross Rent as a Percent of 2019 Household Income"]
[null,null,null,null,null,null,"By Household Income"]
[null,null,{"$f":"CntyDataLink!AO$69","v":"H73RenterOccHU"},null,"Specified Renter Occ Housing Units",{"$f":"\"Margin of Error Renter Occupied Units\"","v":"Margin of Error Renter Occupied Units"},null,"Less than $10,000",{"$f":"\"Margin of Error \"&H50","v":"Margin of Error Less than $10,000"},"$10,000 to $19,999",{"$f":"\"Margin of Error \"&J50","v":"Margin of Error $10,000 to $19,999"},"$20,000 to $34,999",{"$f":"\"Margin of Error \"&L50","v":"Margin of Error $20,000 to $34,999"},"$35,000 to $49,999",{"$f":"\"Margin of Error \"&N50","v":"Margin of Error $35,000 to $49,999"},"$50,000 to $74,999",{"$f":"\"Margin of Error \"&P50","v":"Margin of Error $50,000 to $74,999"},"$75,000 to $99,999",{"$f":"\"Margin of Error \"&R50","v":"Margin of Error $75,000 to $99,999"},"$100,000 or More",{"$f":"\"Margin of Error \"&T50","v":"Margin of Error $100,000 or More"}]
[]
[null,null,null,"ALL Renter Households",{"$f":"CntyDataLink!$B$156","v":256},{"$f":"CntyDataLink!$C$156","v":55},null,{"$f":"CntyDataLink!$BH$148","v":19},{"$f":"CntyDataLink!$BI$148","v":17},{"$f":"CntyDataLink!$BZ$148","v":31},{"$f":"CntyDataLink!$CA$148","v":26},{"$f":"CntyDataLink!$CR$148","v":117},{"$f":"CntyDataLink!$CS$148","v":48},{"$f":"CntyDataLink!$DJ$148","v":37},{"$f":"CntyDataLink!$DK$148","v":23},{"$f":"CntyDataLink!$EB$148","v":36},{"$f":"CntyDataLink!$EC$148","v":31},{"$f":"CntyDataLink!$ET$148","v":5},{"$f":"CntyDataLink!$EU$148","v":9},{"$f":"CntyDataLink!$FL$148","v":11},{"$f":"CntyDataLink!$FM$148","v":12}]
[null,null,null,"Rent Less than 20% of HH Income",{"$f":"CntyDataLink!$D$156","v":54},{"$f":"CntyDataLink!$E$156","v":29.732137494637012},null,{"$f":"CntyDataLink!$BJ$148","v":0},{"$f":"CntyDataLink!$BK$148","v":11},{"$f":"CntyDataLink!$CB$148","v":0},{"$f":"CntyDataLink!$CC$148","v":11},{"$f":"CntyDataLink!$CT$148","v":0},{"$f":"CntyDataLink!$CU$148","v":11},{"$f":"CntyDataLink!$DL$148","v":27},{"$f":"CntyDataLink!$DM$148","v":21},{"$f":"CntyDataLink!$ED$148","v":11},{"$f":"CntyDataLink!$EE$148","v":16},{"$f":"CntyDataLink!$EV$148","v":5},{"$f":"CntyDataLink!$EW$148","v":9},{"$f":"CntyDataLink!$FN$148","v":11},{"$f":"CntyDataLink!$FO$148","v":12}]
[null,null,null,"Rent 20% to 24.9% of HH Income",{"$f":"CntyDataLink!$F$156","v":5},{"$f":"CntyDataLink!$G$156","v":7},null,{"$f":"CntyDataLink!$BL$148","v":5},{"$f":"CntyDataLink!$BM$148","v":7},{"$f":"CntyDataLink!$CD$148","v":0},{"$f":"CntyDataLink!$CE$148","v":11},{"$f":"CntyDataLink!$CV$148","v":0},{"$f":"CntyDataLink!$CW$148","v":11},{"$f":"CntyDataLink!$DN$148","v":0},{"$f":"CntyDataLink!$DO$148","v":11},{"$f":"CntyDataLink!$EF$148","v":0},{"$f":"CntyDataLink!$EG$148","v":11},{"$f":"CntyDataLink!$EX$148","v":0},{"$f":"CntyDataLink!$EY$148","v":11},{"$f":"CntyDataLink!$FP$148","v":0},{"$f":"CntyDataLink!$FQ$148","v":11}]
[null,null,null,"Rent 25% to 29.9% of HH Income",{"$f":"CntyDataLink!$H$156","v":43},{"$f":"CntyDataLink!$I$156","v":27},null,{"$f":"CntyDataLink!$BN$148","v":0},{"$f":"CntyDataLink!$BO$148","v":11},{"$f":"CntyDataLink!$CF$148","v":10},{"$f":"CntyDataLink!$CG$148","v":16},{"$f":"CntyDataLink!$CX$148","v":20},{"$f":"CntyDataLink!$CY$148","v":17},{"$f":"CntyDataLink!$DP$148","v":6},{"$f":"CntyDataLink!$DQ$148","v":8},{"$f":"CntyDataLink!$EH$148","v":7},{"$f":"CntyDataLink!$EI$148","v":11},{"$f":"CntyDataLink!$EZ$148","v":0},{"$f":"CntyDataLink!$FA$148","v":11},{"$f":"CntyDataLink!$FR$148","v":0},{"$f":"CntyDataLink!$FS$148","v":11}]
[null,null,null,"Rent Less Than 30% of HH Income",{"$f":"CntyDataLink!$J$156","v":102},{"$f":"CntyDataLink!$K$156","v":40.767634221279017},null,{"$f":"SUM(H53:H55)","v":5},{"$f":"SQRT((I53^2)+(I54^2)+(I55^2))","v":17.058722109231979},{"$f":"SUM(J53:J55)","v":10},{"$f":"SQRT((K53^2)+(K54^2)+(K55^2))","v":22.315913604421397},{"$f":"SUM(L53:L55)","v":20},{"$f":"SQRT((M53^2)+(M54^2)+(M55^2))","v":23.043437243605826},{"$f":"SUM(N53:N55)","v":33},{"$f":"SQRT((O53^2)+(O54^2)+(O55^2))","v":25.019992006393608},{"$f":"SUM(P53:P55)","v":18},{"$f":"SQRT((Q53^2)+(Q54^2)+(Q55^2))","v":22.315913604421397},{"$f":"SUM(R53:R55)","v":5},{"$f":"SQRT((S53^2)+(S54^2)+(S55^2))","v":17.972200755611428},{"$f":"SUM(T53:T55)","v":11},{"$f":"SQRT((U53^2)+(U54^2)+(U55^2))","v":19.646882704388499}]
[null,null,null,"Rent 30% or More of HH Income",{"$f":"CntyDataLink!$L$156","v":124},{"$f":"CntyDataLink!$M$156","v":55.461698495448189},null,{"$f":"H60+H58","v":14},{"$f":"SQRT((I58^2)+(I60^2))","v":21.794494717703369},{"$f":"J60+J58","v":21},{"$f":"SQRT((K58^2)+(K60^2))","v":29.103264421710495},{"$f":"L60+L58","v":89},{"$f":"SQRT((M58^2)+(M60^2))","v":48.569537778323564},{"$f":"N60+N58","v":0},{"$f":"SQRT((O58^2)+(O60^2))","v":22},0,{"$f":"SQRT((Q58^2)+(Q60^2))","v":22},{"$f":"R60+R58","v":0},{"$f":"SQRT((S58^2)+(S60^2))","v":22},0,{"$f":"SQRT((U58^2)+(U60^2))","v":22}]
[null,null,null,"Rent 30% to 34.9% of HH Income",{"$f":"CntyDataLink!$N$156","v":33},{"$f":"CntyDataLink!$O$156","v":23},null,{"$f":"CntyDataLink!$BP$148","v":6},{"$f":"CntyDataLink!$BQ$148","v":8},{"$f":"CntyDataLink!$CH$148","v":0},{"$f":"CntyDataLink!$CI$148","v":11},{"$f":"CntyDataLink!$CZ$148","v":27},{"$f":"CntyDataLink!$DA$148","v":22},{"$f":"CntyDataLink!$DR$148","v":0},{"$f":"CntyDataLink!$DS$148","v":11},{"$f":"CntyDataLink!$EJ$148","v":0},{"$f":"CntyDataLink!$EK$148","v":11},{"$f":"CntyDataLink!$FB$148","v":0},{"$f":"CntyDataLink!$FC$148","v":11},{"$f":"CntyDataLink!$FT$148","v":0},{"$f":"CntyDataLink!$FU$148","v":11}]
[null,null,null,"Rent Less Than 35% of HH Income",{"$f":"CntyDataLink!$P$156","v":135},{"$f":"CntyDataLink!$Q$156","v":46.808118953873802},null,{"$f":"SUM(H56,H58)","v":11},{"$f":"SQRT((I56^2)+(I58^2))","v":18.84144368141677},{"$f":"SUM(J56,J58)","v":10},{"$f":"SQRT((K56^2)+(K58^2))","v":24.879710609249457},{"$f":"SUM(L56,L58)","v":47},{"$f":"SQRT((M56^2)+(M58^2))","v":31.859064644147985},33,36.019992006393608,18,{"$f":"SQRT((Q58^2)+(Q56^2))","v":24.879710609249457},{"$f":"SUM(R56,R58)","v":5},{"$f":"SQRT((S58^2)+(S56^2))","v":21.071307505705477},11,{"$f":"SQRT((U58^2)+(U56^2))","v":22.516660498395403}]
[null,null,null,"Rent 35% or More of HH Income",{"$f":"CntyDataLink!$R$156","v":91},{"$f":"CntyDataLink!$S$156","v":50.467811523782167},null,{"$f":"CntyDataLink!$BR$148+CntyDataLink!$BT$148+CntyDataLink!$BV$148","v":8},{"$f":"SQRT((CntyDataLink!$BS$148^2)+(CntyDataLink!$BU$148^2)+(CntyDataLink!$BW$148^2))","v":20.273134932713294},{"$f":"CntyDataLink!$CJ$148+CntyDataLink!$CL$148+CntyDataLink!$CN$148","v":21},{"$f":"SQRT((CntyDataLink!$CK$148^2)+(CntyDataLink!$CM$148^2)+(CntyDataLink!$CO$148^2))","v":26.944387170614959},{"$f":"CntyDataLink!$DB$148+CntyDataLink!$DD$148+CntyDataLink!$DF$148","v":62},{"$f":"SQRT((CntyDataLink!$DC$148^2)+(CntyDataLink!$DE$148^2)+(CntyDataLink!$DG$148^2))","v":43.301270189221931},{"$f":"CntyDataLink!$DT$148+CntyDataLink!$DV$148+CntyDataLink!$DX$148","v":0},{"$f":"SQRT((CntyDataLink!$DU$148^2)+(CntyDataLink!$DW$148^2)+(CntyDataLink!$DY$148^2))","v":19.05255888325765},{"$f":"CntyDataLink!$EL$148+CntyDataLink!$EN$148+CntyDataLink!$EP$148","v":0},{"$f":"SQRT((CntyDataLink!$EM$148^2)+(CntyDataLink!$EO$148^2)+(CntyDataLink!$EQ$148^2))","v":19.05255888325765},{"$f":"CntyDataLink!$FD$148+CntyDataLink!$FF$148+CntyDataLink!$FH$148","v":0},{"$f":"SQRT((CntyDataLink!$FE$148^2)+(CntyDataLink!$FG$148^2)+(CntyDataLink!$FI$148^2))","v":19.05255888325765},{"$f":"CntyDataLink!$FV$148+CntyDataLink!$FX$148+CntyDataLink!$FZ$148","v":0},{"$f":"SQRT((CntyDataLink!$FW$148^2)+(CntyDataLink!$FY$148^2)+(CntyDataLink!$GA$148^2))","v":19.05255888325765}]
[null,null,null,"Rent 50% or More of HH Income",{"$f":"CntyDataLink!$T$156","v":40},{"$f":"CntyDataLink!$U$156","v":29},null,{"$f":"CntyDataLink!$BV$148","v":8},{"$f":"CntyDataLink!$BW$148","v":13},{"$f":"CntyDataLink!$CN$148","v":21},{"$f":"CntyDataLink!$CO$148","v":22},{"$f":"CntyDataLink!$DF$148","v":11},{"$f":"CntyDataLink!$DG$148","v":13},{"$f":"CntyDataLink!$DX$148","v":0},{"$f":"CntyDataLink!$DY$148","v":11},{"$f":"CntyDataLink!$EP$148","v":0},{"$f":"CntyDataLink!$EQ$148","v":11},{"$f":"CntyDataLink!$FH$148","v":0},{"$f":"CntyDataLink!$FI$148","v":11},{"$f":"CntyDataLink!$FZ$148","v":0},{"$f":"CntyDataLink!$GA$148","v":11}]
[null,null,null,"Percent not computed",{"$f":"CntyDataLink!$V$156","v":30},{"$f":"CntyDataLink!$W$156","v":29},null,{"$f":"CntyDataLink!$BX$148","v":0},{"$f":"CntyDataLink!$BY$148","v":11},{"$f":"CntyDataLink!$CP$148","v":0},{"$f":"CntyDataLink!$CQ$148","v":11},{"$f":"CntyDataLink!$DH$148","v":8},{"$f":"CntyDataLink!$DI$148","v":9},{"$f":"CntyDataLink!$DZ$148","v":4},{"$f":"CntyDataLink!$EA$148","v":6},{"$f":"CntyDataLink!$ER$148","v":18},{"$f":"CntyDataLink!$ES$148","v":27},{"$f":"CntyDataLink!$FJ$148","v":0},{"$f":"CntyDataLink!$FK$148","v":11},{"$f":"CntyDataLink!$GB$148","v":0},{"$f":"CntyDataLink!$GC148","v":11}]
[]
[]
[]
[null,null,null,"Percent of Households Paying ",null,null,null,"By Household Income"]
[null,null,null,{"$f":"D56","v":"Rent Less Than 30% of HH Income"},{"$f":"E56/E$52","v":0.3984375},null,null,{"$f":"H56/H$52","v":0.26315789473684209},null,{"$f":"J56/J$52","v":0.32258064516129031},null,{"$f":"L56/L$52","v":0.17094017094017094},null,{"$f":"N56/N$52","v":0.89189189189189189},null,{"$f":"P56/P$52","v":0.5},null,{"$f":"R56/R$52","v":1},null,{"$f":"T56/T$52","v":1}]
[null,null,null,{"$f":"D57","v":"Rent 30% or More of HH Income"},{"$f":"E57/E$52","v":0.484375},null,null,{"$f":"H57/H$52","v":0.73684210526315785},null,{"$f":"J57/J$52","v":0.67741935483870963},null,{"$f":"L57/L$52","v":0.76068376068376065},null,{"$f":"N57/N$52","v":0},null,{"$f":"P57/P$52","v":0},null,{"$f":"R57/R$52","v":0},null,{"$f":"T57/T$52","v":0}]
[null,null,null,{"$f":"D59","v":"Rent Less Than 35% of HH Income"},{"$f":"E59/E$52","v":0.52734375},null,null,{"$f":"H59/H$52","v":0.57894736842105265},null,{"$f":"J59/J$52","v":0.32258064516129031},null,{"$f":"L59/L$52","v":0.40170940170940173},null,{"$f":"N59/N$52","v":0.89189189189189189},null,{"$f":"P59/P$52","v":0.5},null,{"$f":"R59/R$52","v":1},null,{"$f":"T59/T$52","v":1}]
[null,null,null,{"$f":"D60","v":"Rent 35% or More of HH Income"},{"$f":"E60/E$52","v":0.35546875},null,null,{"$f":"H60/H$52","v":0.42105263157894735},null,{"$f":"J60/J$52","v":0.67741935483870963},null,{"$f":"L60/L$52","v":0.52991452991452992},null,{"$f":"N60/N$52","v":0},null,{"$f":"P60/P$52","v":0},null,{"$f":"R60/R$52","v":0},null,{"$f":"T60/T$52","v":0}]
[null,null,null,"Rent 50% or More of HH Income",{"$f":"E61/E$52","v":0.15625},null,null,{"$f":"H61/H$52","v":0.42105263157894735},null,{"$f":"J61/J$52","v":0.67741935483870963},null,{"$f":"L61/L$52","v":9.4017094017094016E-2},null,{"$f":"N61/N$52","v":0},null,{"$f":"P61/P$52","v":0},null,{"$f":"R61/R$52","v":0},null,{"$f":"T61/T$52","v":0}]
[null,null,null,"Percent not computed",{"$f":"E62/E$52","v":0.1171875},null,null,{"$f":"H62/H$52","v":0},null,{"$f":"J62/J$52","v":0},null,{"$f":"L62/L$52","v":6.8376068376068383E-2},null,{"$f":"N62/N$52","v":0.10810810810810811},null,{"$f":"P62/P$52","v":0.5},null,{"$f":"R62/R$52","v":0},null,{"$f":"T62/T$52","v":0}]
[]
[]
[null,null,null,"Source:  2015-2019 American Community Survey Table B25070; B25074"]
[]
[null,null,null,{"$f":"D41","v":"Income in 2019 Inflation Adjusted Dollars"}]
[null,null,null,"Data from the American Community Survey are estimates"]
[]
[null,null,null,{"$f":"CntyDataLink!A70","v":"Berlin"}]
[null,null,null,{"$f":"D4","v":"RENTAL HOUSING COST CHARACTERISTICS"}]
[]
[null,null,null,"Rental Housing Costs"]
[]
[null,null,null,"Renter Occupied Housing Units By Gross Rent "]
[]
[null,null,null,null,"Units","Margin of Error"]
[null,null,{"$f":"CntyDataLink!E$69","v":"H62RntrOccHU"},"Specified Renter Occ Housing Units",{"$f":"CntyDataLink!$B$148","v":256},{"$f":"CntyDataLink!$C$148","v":55}]
[null,null,{"$f":"CntyDataLink!F$69","v":"H62RntrOccHUwRent"},"Renter Occ. Housing Units w/ Cash Rent",{"$f":"CntyDataLink!$D$148","v":226},{"$f":"CntyDataLink!$E$148","v":60}]
[]
[null,null,{"$f":"CntyDataLink!G$69","v":"H62ROHUGRent<100"},"Gross Rent","Units","Margin of Error 2015-2019"]
[null,null,{"$f":"CntyDataLink!H$69","v":"H62ROHUGRent100to149"},"Less than $100",{"$f":"CntyDataLink!$F$148","v":0},{"$f":"CntyDataLink!$G$148","v":11}]
[null,null,{"$f":"CntyDataLink!I$69","v":"H62ROHUGRent150to199"},"$100 to $149",{"$f":"CntyDataLink!$H$148","v":0},{"$f":"CntyDataLink!$I$148","v":11}]
[null,null,{"$f":"CntyDataLink!J$69","v":"H62ROHUGRent200to249"},"$150 to $199",{"$f":"CntyDataLink!J$148","v":5},{"$f":"CntyDataLink!$K$148","v":7}]
[null,null,{"$f":"CntyDataLink!K$69","v":"H62ROHUGRent250to299"},"$200 to $249",{"$f":"CntyDataLink!$L$148","v":16},{"$f":"CntyDataLink!$M$148","v":18}]
[null,null,{"$f":"CntyDataLink!L$69","v":"H62ROHUGRent300to349"},"$250 to $299",{"$f":"CntyDataLink!$N$148","v":0},{"$f":"CntyDataLink!$O$148","v":11}]
[null,null,{"$f":"CntyDataLink!M$69","v":"H62ROHUGRent350to399"},"$300 to $349",{"$f":"CntyDataLink!$P$148","v":0},{"$f":"CntyDataLink!$Q$148","v":11}]
[null,null,{"$f":"CntyDataLink!N$69","v":"H62ROHUGRent400to449"},"$350 to $399",{"$f":"CntyDataLink!$R$148","v":5},{"$f":"CntyDataLink!$S$148","v":7}]
[null,null,{"$f":"CntyDataLink!O$69","v":"H62ROHUGRent450to499"},"$400 to $449",{"$f":"CntyDataLink!$T$148","v":8},{"$f":"CntyDataLink!$U$148","v":13}]
[null,null,{"$f":"CntyDataLink!P$69","v":"H62ROHUGRent500to549"},"$450 to $499",{"$f":"CntyDataLink!$V$148","v":20},{"$f":"CntyDataLink!$W$148","v":22}]
[null,null,{"$f":"CntyDataLink!Q$69","v":"H62ROHUGRent550to599"},"$500 to $549",{"$f":"CntyDataLink!$X$148","v":16},{"$f":"CntyDataLink!$Y$148","v":16}]
[null,null,{"$f":"CntyDataLink!R$69","v":"H62ROHUGRent600to649"},"$550 to $599",{"$f":"CntyDataLink!$Z$148","v":6},{"$f":"CntyDataLink!$AA$148","v":8}]
[null,null,{"$f":"CntyDataLink!S$69","v":"H62ROHUGRent650to699"},"$600 to $649",{"$f":"CntyDataLink!$AB$148","v":8},{"$f":"CntyDataLink!$AC$148","v":13}]
[null,null,{"$f":"CntyDataLink!T$69","v":"H62ROHUGRent700to749"},"$650 to $699",{"$f":"CntyDataLink!$AD$148","v":47},{"$f":"CntyDataLink!$AE$148","v":31}]
[null,null,{"$f":"CntyDataLink!U$69","v":"H62ROHUGRent750to799"},"$700 to $749",{"$f":"CntyDataLink!$AF$148","v":24},{"$f":"CntyDataLink!$AG$148","v":27}]
[null,null,{"$f":"CntyDataLink!V$69","v":"H62ROHUGRent800to899"},"$750 to $799",{"$f":"CntyDataLink!$AH$148","v":5},{"$f":"CntyDataLink!$AI$148","v":9}]
[null,null,{"$f":"CntyDataLink!W$69","v":"H62ROHUGRent900to999"},"$800 to $899",{"$f":"CntyDataLink!$AJ$148","v":33},{"$f":"CntyDataLink!$AK$148","v":25}]
[null,null,{"$f":"CntyDataLink!X$69","v":"H62ROHUGRent1000to1249"},"$900 to $999",{"$f":"CntyDataLink!$AL$148","v":15},{"$f":"CntyDataLink!$AM$148","v":12}]
[null,null,{"$f":"CntyDataLink!Y$69","v":"H62ROHUGRent1250to1499"},"$1000 to $1249",{"$f":"CntyDataLink!$AN$148","v":11},{"$f":"CntyDataLink!$AO$148","v":12}]
[null,null,{"$f":"CntyDataLink!Z$69","v":"H62ROHUGRent1500to1999"},"$1250 to $1499",{"$f":"CntyDataLink!$AP$148","v":7},{"$f":"CntyDataLink!$AQ$148","v":11}]
[null,null,{"$f":"CntyDataLink!AA$69","v":"H62ROHUGRent2000>"},"$1500 to $1999",{"$f":"CntyDataLink!$AR$148","v":0},{"$f":"CntyDataLink!$AS$148","v":11}]
[null,null,{"$f":"CntyDataLink!AB$69","v":"H62ROHUNoGRent"},"$2,000 to $2,499",{"$f":"CntyDataLink!$AT$148","v":0},{"$f":"CntyDataLink!$AU$148","v":11}]
[null,null,{"$f":"CntyDataLink!AC$69","v":"H63MedianGrossRnt"},"$2,500 to $2,999",{"$f":"CntyDataLink!$AV$148","v":0},{"$f":"CntyDataLink!$AW$148","v":11}]
[null,null,null,"$3,000 to $3,499",{"$f":"CntyDataLink!$AX$148","v":0},{"$f":"CntyDataLink!$AY$148","v":11}]
[null,null,null,"$3,500 or more",{"$f":"CntyDataLink!$AZ$148","v":0},{"$f":"CntyDataLink!$BA$148","v":11}]
[null,null,null,"Renter Occ. Housing Units w/ No Cash Rent",{"$f":"CntyDataLink!$BB$148","v":30},{"$f":"CntyDataLink!$BC$148","v":29}]
[]
[null,null,null,"Median Gross Rent",{"$f":"CntyDataLink!$BD$148","v":681},{"$f":"CntyDataLink!$BE$148","v":31}]
[]
[]
[]
[]
[null,null,null,"Source: 2015-2019 American Community Survey Table B25063; B25064"]
[null,null,null,"Data from the American Community Survey are estimates"]

{"sheet":"RentalHousingCost-Prior5Yr","index":55,"n_rows":76,"n_cols":21,"rows_kept":76,"cut":false,"hidden":true,"merged":[]}
[]
[null,null,"HIDE THIS COLUMN",{"$f":"CntyDataLink!A70","v":"Berlin"}]
[]
[null,null,null,"RENTAL HOUSING COST CHARACTERISTICS"]
[]
[]
[]
[]
[]
[]
[]
[]
[]
[]
[]
[]
[]
[]
[]
[]
[]
[]
[]
[]
[]
[]
[]
[]
[]
[]
[]
[]
[]
[]
[]
[]
[]
[]
[null,null,null,"Source:  2010-2014 American Community Survey Table B25074"]
[]
[null,null,null,"Income in 2014 Inflation Adjusted Dollars"]
[null,null,null,"Data from the American Community Survey are estimates"]
[null,null,null,{"$f":"CntyDataLinkPrior5YearEstimates!A120","v":"Berlin"}]
[]
[null,null,null,{"$f":"D4","v":"RENTAL HOUSING COST CHARACTERISTICS"}]
[]
[null,null,null,"Renter Households by "]
[null,null,null,"Gross Rent as a Percent of 2014 Household Income"]
[null,null,null,null,null,null,"By Household Income"]
[null,null,{"$f":"CntyDataLinkPrior5YearEstimates!AO$69","v":0},null,"Specified Renter Occ Housing Units",{"$f":"\"Margin of Error Renter Occupied Units\"","v":"Margin of Error Renter Occupied Units"},null,"Less than $10,000",{"$f":"\"Margin of Error \"&H50","v":"Margin of Error Less than $10,000"},"$10,000 to $19,999",{"$f":"\"Margin of Error \"&J50","v":"Margin of Error $10,000 to $19,999"},"$20,000 to $34,999",{"$f":"\"Margin of Error \"&L50","v":"Margin of Error $20,000 to $34,999"},"$35,000 to $49,999",{"$f":"\"Margin of Error \"&N50","v":"Margin of Error $35,000 to $49,999"},"$50,000 to $74,999",{"$f":"\"Margin of Error \"&P50","v":"Margin of Error $50,000 to $74,999"},"$75,000 to $99,999",{"$f":"\"Margin of Error \"&R50","v":"Margin of Error $75,000 to $99,999"},"$100,000 or More",{"$f":"\"Margin of Error \"&T50","v":"Margin of Error $100,000 or More"}]
[]
[null,null,null,"All Renter Households",{"$f":"CntyDataLinkPrior5YearEstimates!$B$156","v":354},{"$f":"CntyDataLinkPrior5YearEstimates!$C$156","v":73},null,{"$f":"CntyDataLinkPrior5YearEstimates!$BB$148","v":29},{"$f":"CntyDataLinkPrior5YearEstimates!$BC$148","v":19},{"$f":"CntyDataLinkPrior5YearEstimates!$BT$148","v":132},{"$f":"CntyDataLinkPrior5YearEstimates!$BU$148","v":54},{"$f":"CntyDataLinkPrior5YearEstimates!$CL$148","v":60},{"$f":"CntyDataLinkPrior5YearEstimates!$CM$148","v":26},{"$f":"CntyDataLinkPrior5YearEstimates!$DD$148","v":55},{"$f":"CntyDataLinkPrior5YearEstimates!$DE$148","v":27},{"$f":"CntyDataLinkPrior5YearEstimates!$DV$148","v":31},{"$f":"CntyDataLinkPrior5YearEstimates!$DW$148","v":31},{"$f":"CntyDataLinkPrior5YearEstimates!$EN$148","v":35},{"$f":"CntyDataLinkPrior5YearEstimates!$EO$148","v":19},{"$f":"CntyDataLinkPrior5YearEstimates!$FF$148","v":12},{"$f":"CntyDataLinkPrior5YearEstimates!$FG$148","v":14}]
[null,null,null,"Rent Less than 20% of HH Income",{"$f":"CntyDataLinkPrior5YearEstimates!$D$156","v":111},{"$f":"CntyDataLinkPrior5YearEstimates!$E$156","v":44.395945760846224},null,{"$f":"CntyDataLinkPrior5YearEstimates!$BD$148","v":0},{"$f":"CntyDataLinkPrior5YearEstimates!$BE$148","v":11},{"$f":"CntyDataLinkPrior5YearEstimates!$BV$148","v":4},{"$f":"CntyDataLinkPrior5YearEstimates!$BW$148","v":6},{"$f":"CntyDataLinkPrior5YearEstimates!$CN$148","v":7},{"$f":"CntyDataLinkPrior5YearEstimates!$CO$148","v":10},{"$f":"CntyDataLinkPrior5YearEstimates!$DF$148","v":28},{"$f":"CntyDataLinkPrior5YearEstimates!$DG$148","v":20},{"$f":"CntyDataLinkPrior5YearEstimates!$DX$148","v":31},{"$f":"CntyDataLinkPrior5YearEstimates!$DY$148","v":31},{"$f":"CntyDataLinkPrior5YearEstimates!$EP$148","v":29},{"$f":"CntyDataLinkPrior5YearEstimates!$EQ$148","v":17},{"$f":"CntyDataLinkPrior5YearEstimates!$FH$148","v":12},{"$f":"CntyDataLinkPrior5YearEstimates!$FI$148","v":14}]
[null,null,null,"Rent 20% to 24.9% of HH Income",{"$f":"CntyDataLinkPrior5YearEstimates!$F$156","v":35},{"$f":"CntyDataLinkPrior5YearEstimates!$G$156","v":21},null,{"$f":"CntyDataLinkPrior5YearEstimates!$BF$148","v":6},{"$f":"CntyDataLinkPrior5YearEstimates!$BG$148","v":9},{"$f":"CntyDataLinkPrior5YearEstimates!$BX$148","v":17},{"$f":"CntyDataLinkPrior5YearEstimates!$BY$148","v":17},{"$f":"CntyDataLinkPrior5YearEstimates!$CP$148","v":0},{"$f":"CntyDataLinkPrior5YearEstimates!$CQ$148","v":11},{"$f":"CntyDataLinkPrior5YearEstimates!$DH$148","v":12},{"$f":"CntyDataLinkPrior5YearEstimates!$DI$148","v":11},{"$f":"CntyDataLinkPrior5YearEstimates!$DZ$148","v":0},{"$f":"CntyDataLinkPrior5YearEstimates!$EA$148","v":11},{"$f":"CntyDataLinkPrior5YearEstimates!$ER$148","v":0},{"$f":"CntyDataLinkPrior5YearEstimates!$ES$148","v":11},{"$f":"CntyDataLinkPrior5YearEstimates!$FJ$148","v":0},{"$f":"CntyDataLinkPrior5YearEstimates!$FK$148","v":11}]
[null,null,null,"Rent 25% to 29.9% of HH Income",{"$f":"CntyDataLinkPrior5YearEstimates!$H$156","v":41},{"$f":"CntyDataLinkPrior5YearEstimates!$I$156","v":17},null,{"$f":"CntyDataLinkPrior5YearEstimates!$BH$148","v":0},{"$f":"CntyDataLinkPrior5YearEstimates!$BI$148","v":11},{"$f":"CntyDataLinkPrior5YearEstimates!$BZ$148","v":23},{"$f":"CntyDataLinkPrior5YearEstimates!$CA$148","v":16},{"$f":"CntyDataLinkPrior5YearEstimates!$CR$148","v":6},{"$f":"CntyDataLinkPrior5YearEstimates!$CS$148","v":8},{"$f":"CntyDataLinkPrior5YearEstimates!$DJ$148","v":12},{"$f":"CntyDataLinkPrior5YearEstimates!$DK$148","v":12},{"$f":"CntyDataLinkPrior5YearEstimates!$EB$148","v":0},{"$f":"CntyDataLinkPrior5YearEstimates!$EC$148","v":11},{"$f":"CntyDataLinkPrior5YearEstimates!$ET$148","v":0},{"$f":"CntyDataLinkPrior5YearEstimates!$EU$148","v":11},{"$f":"CntyDataLinkPrior5YearEstimates!$FL$148","v":0},{"$f":"CntyDataLinkPrior5YearEstimates!$FM$148","v":11}]
[null,null,null,"Rent Less Than 30% of HH Income",{"$f":"CntyDataLinkPrior5YearEstimates!$J$156","v":187},{"$f":"CntyDataLinkPrior5YearEstimates!$K$156","v":51.97114584074513},null,{"$f":"SUM(H53:H55)","v":6},{"$f":"SQRT((I53^2)+(I54^2)+(I55^2))","v":17.972200755611428},{"$f":"SUM(J53:J55)","v":44},{"$f":"SQRT((K53^2)+(K54^2)+(K55^2))","v":24.103941586387901},{"$f":"SUM(L53:L55)","v":13},{"$f":"SQRT((M53^2)+(M54^2)+(M55^2))","v":16.881943016134134},{"$f":"SUM(N53:N55)","v":52},{"$f":"SQRT((O53^2)+(O54^2)+(O55^2))","v":25.787593916455254},{"$f":"SUM(P53:P55)","v":31},{"$f":"SQRT((Q53^2)+(Q54^2)+(Q55^2))","v":34.684290392049249},{"$f":"SUM(R53:R55)","v":29},{"$f":"SQRT((S53^2)+(S54^2)+(S55^2))","v":23.043437243605826},{"$f":"SUM(T53:T55)","v":12},{"$f":"SQRT((U53^2)+(U54^2)+(U55^2))","v":20.928449536456348}]
[null,null,null,"Rent 30% or More of HH Income",{"$f":"CntyDataLinkPrior5YearEstimates!$L$156","v":132},{"$f":"CntyDataLinkPrior5YearEstimates!$M$156","v":50.099900199501398},null,{"$f":"H60+H58","v":23},{"$f":"SQRT((I58^2)+(I60^2))","v":24.879710609249457},{"$f":"J60+J58","v":70},{"$f":"SQRT((K58^2)+(K60^2))","v":37.336309405188942},{"$f":"L60+L58","v":36},{"$f":"SQRT((M58^2)+(M60^2))","v":24.207436873820409},{"$f":"N60+N58","v":3},{"$f":"SQRT((O58^2)+(O60^2))","v":19.974984355438178},0,{"$f":"SQRT((Q58^2)+(Q60^2))","v":22},{"$f":"R60+R58","v":0},{"$f":"SQRT((S58^2)+(S60^2))","v":22},0,{"$f":"SQRT((U58^2)+(U60^2))","v":22}]
[null,null,null,"Rent 30% to 34.9% of HH Income",{"$f":"CntyDataLinkPrior5YearEstimates!$N$156","v":44},{"$f":"CntyDataLinkPrior5YearEstimates!$O$156","v":27},null,{"$f":"CntyDataLinkPrior5YearEstimates!$BJ$148","v":0},{"$f":"CntyDataLinkPrior5YearEstimates!$BK$148","v":11},{"$f":"CntyDataLinkPrior5YearEstimates!$CB$148","v":35},{"$f":"CntyDataLinkPrior5YearEstimates!$CC$148","v":24},{"$f":"CntyDataLinkPrior5YearEstimates!$CT$148","v":6},{"$f":"CntyDataLinkPrior5YearEstimates!$CU$148","v":9},{"$f":"CntyDataLinkPrior5YearEstimates!$DL$148","v":3},{"$f":"CntyDataLinkPrior5YearEstimates!$DM$148","v":6},{"$f":"CntyDataLinkPrior5YearEstimates!$ED$148","v":0},{"$f":"CntyDataLinkPrior5YearEstimates!$EE$148","v":11},{"$f":"CntyDataLinkPrior5YearEstimates!$EV$148","v":0},{"$f":"CntyDataLinkPrior5YearEstimates!$EW$148","v":11},{"$f":"CntyDataLinkPrior5YearEstimates!$FN$148","v":0},{"$f":"CntyDataLinkPrior5YearEstimates!$FO$148","v":11}]
[null,null,null,"Rent Less Than 35% of HH Income",{"$f":"CntyDataLinkPrior5YearEstimates!$P$156","v":231},{"$f":"CntyDataLinkPrior5YearEstimates!$Q$156","v":58.566201857385288},null,{"$f":"SUM(H56,H58)","v":6},{"$f":"SQRT((I56^2)+(I58^2))","v":21.071307505705477},{"$f":"SUM(J56,J58)","v":79},{"$f":"SQRT((K56^2)+(K58^2))","v":34.014702703389901},{"$f":"SUM(L56,L58)","v":19},{"$f":"SQRT((M56^2)+(M58^2))","v":19.131126469708992},55,31.787593916455254,31,{"$f":"SQRT((Q58^2)+(Q56^2))","v":36.3868107973205},{"$f":"SUM(R56,R58)","v":29},{"$f":"SQRT((S58^2)+(S56^2))","v":25.534290669607412},12,{"$f":"SQRT((U58^2)+(U56^2))","v":23.643180835073778}]
[null,null,null,"Rent 35% or More of HH Income",{"$f":"CntyDataLinkPrior5YearEstimates!$R$156","v":88},{"$f":"CntyDataLinkPrior5YearEstimates!$S$156","v":42.201895692018383},null,{"$f":"CntyDataLinkPrior5YearEstimates!$BL$148+CntyDataLinkPrior5YearEstimates!$BN$148+CntyDataLinkPrior5YearEstimates!$BP$148","v":23},{"$f":"SQRT((CntyDataLinkPrior5YearEstimates!$BM$148^2)+(CntyDataLinkPrior5YearEstimates!$BO$148^2)+(CntyDataLinkPrior5YearEstimates!$BQ$148^2))","v":22.315913604421397},{"$f":"CntyDataLinkPrior5YearEstimates!$CD$148+CntyDataLinkPrior5YearEstimates!$CF$148+CntyDataLinkPrior5YearEstimates!$CH$148","v":35},{"$f":"SQRT((CntyDataLinkPrior5YearEstimates!$CE$148^2)+(CntyDataLinkPrior5YearEstimates!$CG$148^2)+(CntyDataLinkPrior5YearEstimates!$CI$148^2))","v":28.600699292150182},{"$f":"CntyDataLinkPrior5YearEstimates!$CV$148+CntyDataLinkPrior5YearEstimates!$CX$148+CntyDataLinkPrior5YearEstimates!$CZ$148","v":30},{"$f":"SQRT((CntyDataLinkPrior5YearEstimates!$CW$148^2)+(CntyDataLinkPrior5YearEstimates!$CY$148^2)+(CntyDataLinkPrior5YearEstimates!$DA$148^2))","v":22.472205054244231},{"$f":"CntyDataLinkPrior5YearEstimates!$DN$148+CntyDataLinkPrior5YearEstimates!$DP$148+CntyDataLinkPrior5YearEstimates!$DR$148","v":0},{"$f":"SQRT((CntyDataLinkPrior5YearEstimates!$DO$148^2)+(CntyDataLinkPrior5YearEstimates!$DQ$148^2)+(CntyDataLinkPrior5YearEstimates!$DS$148^2))","v":19.05255888325765},{"$f":"CntyDataLinkPrior5YearEstimates!$EF$148+CntyDataLinkPrior5YearEstimates!$EH$148+CntyDataLinkPrior5YearEstimates!$EJ$148","v":0},{"$f":"SQRT((CntyDataLinkPrior5YearEstimates!$EG$148^2)+(CntyDataLinkPrior5YearEstimates!$EI$148^2)+(CntyDataLinkPrior5YearEstimates!$EK$148^2))","v":19.05255888325765},{"$f":"CntyDataLinkPrior5YearEstimates!$EX$148+CntyDataLinkPrior5YearEstimates!$EZ$148+CntyDataLinkPrior5YearEstimates!$FB$148","v":0},{"$f":"SQRT((CntyDataLinkPrior5YearEstimates!$EY$148^2)+(CntyDataLinkPrior5YearEstimates!$FA$148^2)+(CntyDataLinkPrior5YearEstimates!$FC$148^2))","v":19.05255888325765},{"$f":"CntyDataLinkPrior5YearEstimates!$FP$148+CntyDataLinkPrior5YearEstimates!$FR$148+CntyDataLinkPrior5YearEstimates!$FT$148","v":0},{"$f":"SQRT((CntyDataLinkPrior5YearEstimates!$FQ$148^2)+(CntyDataLinkPrior5YearEstimates!$FS$148^2)+(CntyDataLinkPrior5YearEstimates!$FU$148^2))","v":19.05255888325765}]
[null,null,null,"Percent not computed",{"$f":"CntyDataLinkPrior5YearEstimates!$V$156","v":35},{"$f":"CntyDataLinkPrior5YearEstimates!$W$156","v":30},null,{"$f":"CntyDataLinkPrior5YearEstimates!$BR$148","v":0},{"$f":"CntyDataLinkPrior5YearEstimates!$BS$148","v":11},{"$f":"CntyDataLinkPrior5YearEstimates!$CJ$148","v":18},{"$f":"CntyDataLinkPrior5YearEstimates!$CK$148","v":27},{"$f":"CntyDataLinkPrior5YearEstimates!$DB$148","v":11},{"$f":"CntyDataLinkPrior5YearEstimates!$DC$148","v":9},{"$f":"CntyDataLinkPrior5YearEstimates!$DT$148","v":0},{"$f":"CntyDataLinkPrior5YearEstimates!$DU$148","v":11},{"$f":"CntyDataLinkPrior5YearEstimates!$EL$148","v":0},{"$f":"CntyDataLinkPrior5YearEstimates!$EM$148","v":11},{"$f":"CntyDataLinkPrior5YearEstimates!$FD$148","v":6},{"$f":"CntyDataLinkPrior5YearEstimates!$FE$148","v":8},{"$f":"CntyDataLinkPrior5YearEstimates!$FV$148","v":0},{"$f":"CntyDataLinkPrior5YearEstimates!$FW149","v":0}]
[]
[]
[]
[null,null,null,"Percent of Households Paying ",null,null,null,"By Household Income"]
[null,null,null,{"$f":"D56","v":"Rent Less Than 30% of HH Income"},{"$f":"E56/E$52","v":0.52824858757062143},null,null,{"$f":"H56/H$52","v":0.20689655172413793},null,{"$f":"J56/J$52","v":0.33333333333333331},null,{"$f":"L56/L$52","v":0.21666666666666667},null,{"$f":"N56/N$52","v":0.94545454545454544},null,{"$f":"P56/P$52","v":1},null,{"$f":"R56/R$52","v":0.82857142857142863},null,{"$f":"T56/T$52","v":1}]
[null,null,null,{"$f":"D57","v":"Rent 30% or More of HH Income"},{"$f":"E57/E$52","v":0.3728813559322034},null,null,{"$f":"H57/H$52","v":0.7931034482758621},null,{"$f":"J57/J$52","v":0.53030303030303028},null,{"$f":"L57/L$52","v":0.6},null,{"$f":"N57/N$52","v":5.4545454545454543E-2},null,{"$f":"P57/P$52","v":0},null,{"$f":"R57/R$52","v":0},null,{"$f":"T57/T$52","v":0}]
[null,null,null,{"$f":"D59","v":"Rent Less Than 35% of HH Income"},{"$f":"E59/E$52","v":0.65254237288135597},null,null,{"$f":"H59/H$52","v":0.20689655172413793},null,{"$f":"J59/J$52","v":0.59848484848484851},null,{"$f":"L59/L$52","v":0.31666666666666665},null,{"$f":"N59/N$52","v":1},null,{"$f":"P59/P$52","v":1},null,{"$f":"R59/R$52","v":0.82857142857142863},null,{"$f":"T59/T$52","v":1}]
[null,null,null,{"$f":"D60","v":"Rent 35% or More of HH Income"},{"$f":"E60/E$52","v":0.24858757062146894},null,null,{"$f":"H60/H$52","v":0.7931034482758621},null,{"$f":"J60/J$52","v":0.26515151515151514},null,{"$f":"L60/L$52","v":0.5},null,{"$f":"N60/N$52","v":0},null,{"$f":"P60/P$52","v":0},null,{"$f":"R60/R$52","v":0},null,{"$f":"T60/T$52","v":0}]
[null,null,null,"Percent not computed",{"$f":"E61/E$52","v":9.8870056497175146E-2},null,null,{"$f":"H61/H$52","v":0},null,{"$f":"J61/J$52","v":0.13636363636363635},null,{"$f":"L61/L$52","v":0.18333333333333332},null,{"$f":"N61/N$52","v":0},null,{"$f":"P61/P$52","v":0},null,{"$f":"R61/R$52","v":0.17142857142857143},null,{"$f":"T61/T$52","v":0}]
[]
[]
[null,null,null,"Source:  2010-2014 American Community Survey Table B25070; B25074"]
[]
[null,null,null,{"$f":"D41","v":"Income in 2014 Inflation Adjusted Dollars"}]
[null,null,null,"Data from the American Community Survey are estimates"]

{"sheet":"ACS_Table_B25063_&_B25064","index":56,"n_rows":181,"n_cols":88,"rows_kept":181,"cut":false,"hidden":true,"merged":[]}
[null,"B25063. GROSS RENT"]
[null,"Universe:  RENTER-OCCUPIED HOUSING UNITS"]
[null,"Data Set: 2015-2019 American Community Survey 5-Year Estimates"]
[]
[null,null,"Atkinson and Gilmanton Grant",null,"Bean's Grant",null,"Bean's Purchase",null,"Berlin",null,"Cambridge",null,"Carroll",null,"Chandler's Purchase",null,"Clarksville",null,"Colebrook",null,"Columbia",null,"Crawford's Purchase",null,"Cutt's Grant",null,"Dalton",null,"Dix's Grant",null,"Dixville",null,"Dummer",null,"Errol",null,"Erving's Location",null,"Gorham",null,"Greens Grant",null,"Hadley's Purchase",null,"Jefferson",null,"Kilkenny",null,"Lancaster",null,"Low and Burbank's Grant",null,"Martin's Location",null,"Milan",null,"Millsfield",null,"Northumberland",null,"Odell",null,"Pinkham's Grant",null,"Pittsburg",null,"Randolph",null,"Sargent's Purchase",null,"Second College Grant",null,"Shelburne",null,"Stark",null,"Stewartstown",null,"Stratford",null,"Success",null,"Thompson and Meserves Purchase",null,"Wentworth's Location",null,"Whitefield"]
[null,null,"Estimate","Margin Of Error","Estimate","Margin Of Error","Estimate","Margin Of Error","Estimate","Margin Of Error","Estimate","Margin Of Error","Estimate","Margin Of Error","Estimate","Margin Of Error","Estimate","Margin Of Error","Estimate","Margin Of Error","Estimate","Margin Of Error","Estimate","Margin Of Error","Estimate","Margin Of Error","Estimate","Margin Of Error","Estimate","Margin Of Error","Estimate","Margin Of Error","Estimate","Margin Of Error","Estimate","Margin Of Error","Estimate","Margin Of Error","Estimate","Margin Of Error","Estimate","Margin Of Error","Estimate","Margin Of Error","Estimate","Margin Of Error","Estimate","Margin Of Error","Estimate","Margin Of Error","Estimate","Margin Of Error","Estimate","Margin Of Error","Estimate","Margin Of Error","Estimate","Margin Of Error","Estimate","Margin Of Error","Estimate","Margin Of Error","Estimate","Margin Of Error","Estimate","Margin Of Error","Estimate","Margin Of Error","Estimate","Margin Of Error","Estimate","Margin Of Error","Estimate","Margin Of Error","Estimate","Margin Of Error","Estimate","Margin Of Error","Estimate","Margin Of Error","Estimate","Margin Of Error","Estimate","Margin Of Error","Estimate","Margin Of Error","Estimate","Margin Of Error"]
[null,"Total:",0,11,0,11,0,11,1749,196,0,11,72,32,0,11,11,7,256,55,49,22,0,11,0,11,60,28,0,11,0,11,13,8,18,12,0,11,283,83,0,11,0,11,50,32,0,11,347,116,0,11,0,11,90,41,0,11,324,61,0,11,0,11,87,31,35,17,0,11,0,11,37,18,35,19,48,40,71,29,0,11,0,11,2,3,403,105]
[null,"With cash rent:",0,11,0,11,0,11,1720,199,0,11,62,29,0,11,10,8,226,60,27,14,0,11,0,11,56,27,0,11,0,11,7,5,11,9,0,11,264,83,0,11,0,11,47,32,0,11,340,117,0,11,0,11,75,41,0,11,297,61,0,11,0,11,83,30,33,17,0,11,0,11,32,17,24,16,46,40,62,26,0,11,0,11,0,11,403,105]
[null,"Less than $100",0,11,0,11,0,11,0,18,0,11,0,11,0,11,0,11,0,11,0,11,0,11,0,11,0,11,0,11,0,11,0,11,0,11,0,11,0,11,0,11,0,11,0,11,0,11,0,11,0,11,0,11,0,11,0,11,0,11,0,11,0,11,0,11,0,11,0,11,0,11,0,11,0,11,0,11,0,11,0,11,0,11,0,11,0,11]
[null,"$100 to $149",0,11,0,11,0,11,0,18,0,11,0,11,0,11,0,11,0,11,0,11,0,11,0,11,0,11,0,11,0,11,0,11,0,11,0,11,0,11,0,11,0,11,0,11,0,11,0,11,0,11,0,11,0,11,0,11,0,11,0,11,0,11,0,11,0,11,0,11,0,11,0,11,0,11,0,11,0,11,0,11,0,11,0,11,0,11]
[null,"$150 to $199",0,11,0,11,0,11,58,44,0,11,0,11,0,11,0,11,5,7,0,11,0,11,0,11,0,11,0,11,0,11,0,11,0,11,0,11,8,12,0,11,0,11,0,11,0,11,0,11,0,11,0,11,0,11,0,11,15,22,0,11,0,11,0,11,0,11,0,11,0,11,0,11,0,11,0,11,0,11,0,11,0,11,0,11,0,11]
[null,"$200 to $249",0,11,0,11,0,11,33,43,0,11,0,11,0,11,0,11,16,18,0,11,0,11,0,11,0,11,0,11,0,11,0,11,0,11,0,11,9,13,0,11,0,11,0,11,0,11,9,14,0,11,0,11,0,11,0,11,17,22,0,11,0,11,3,4,0,11,0,11,0,11,0,11,2,3,3,5,10,9,0,11,0,11,0,11,0,11]
[null,"$250 to $299",0,11,0,11,0,11,67,55,0,11,0,11,0,11,0,11,0,11,0,11,0,11,0,11,0,11,0,11,0,11,0,11,0,11,0,11,0,11,0,11,0,11,0,11,0,11,0,11,0,11,0,11,0,11,0,11,0,11,0,11,0,11,0,11,0,11,0,11,0,11,0,11,0,11,0,11,4,5,0,11,0,11,0,11,5,9]
[null,"$300 to $349",0,11,0,11,0,11,28,35,0,11,0,11,0,11,3,4,0,11,0,11,0,11,0,11,4,6,0,11,0,11,0,11,0,11,0,11,9,14,0,11,0,11,0,11,0,11,0,11,0,11,0,11,0,11,0,11,9,10,0,11,0,11,12,17,0,11,0,11,0,11,4,6,0,11,0,11,12,11,0,11,0,11,0,11,7,10]
[null,"$350 to $399",0,11,0,11,0,11,86,56,0,11,0,11,0,11,0,11,5,7,0,11,0,11,0,11,0,11,0,11,0,11,0,11,0,11,0,11,9,15,0,11,0,11,0,11,0,11,0,11,0,11,0,11,0,11,0,11,16,18,0,11,0,11,11,16,0,11,0,11,0,11,0,11,0,11,0,11,0,11,0,11,0,11,0,11,28,34]
[null,"$400 to $449",0,11,0,11,0,11,80,49,0,11,0,11,0,11,0,11,8,13,0,11,0,11,0,11,0,11,0,11,0,11,2,3,0,11,0,11,25,22,0,11,0,11,0,11,0,11,7,11,0,11,0,11,0,11,0,11,4,7,0,11,0,11,4,6,0,11,0,11,0,11,0,11,0,11,0,11,2,4,0,11,0,11,0,11,0,11]
[null,"$450 to $499",0,11,0,11,0,11,74,57,0,11,0,11,0,11,0,11,20,22,0,11,0,11,0,11,7,7,0,11,0,11,0,11,0,11,0,11,35,42,0,11,0,11,0,11,0,11,0,11,0,11,0,11,0,11,0,11,22,23,0,11,0,11,15,16,0,11,0,11,0,11,0,11,0,11,0,11,0,11,0,11,0,11,0,11,28,27]
[null,"$500 to $549",0,11,0,11,0,11,77,59,0,11,0,11,0,11,0,11,16,16,5,7,0,11,0,11,0,11,0,11,0,11,0,11,0,11,0,11,8,12,0,11,0,11,0,11,0,11,12,21,0,11,0,11,0,11,0,11,22,20,0,11,0,11,0,11,6,7,0,11,0,11,0,11,7,11,11,17,2,3,0,11,0,11,0,11,15,19]
[null,"$550 to $599",0,11,0,11,0,11,57,35,0,11,0,11,0,11,1,3,6,8,3,4,0,11,0,11,4,6,0,11,0,11,0,11,2,3,0,11,38,47,0,11,0,11,3,4,0,11,9,14,0,11,0,11,0,11,0,11,0,11,0,11,0,11,0,11,0,11,0,11,0,11,2,4,0,11,15,21,10,11,0,11,0,11,0,11,10,11]
[null,"$600 to $649",0,11,0,11,0,11,115,69,0,11,2,3,0,11,0,11,8,13,0,11,0,11,0,11,0,11,0,11,0,11,0,11,0,11,0,11,0,11,0,11,0,11,0,11,0,11,17,22,0,11,0,11,3,5,0,11,27,27,0,11,0,11,0,11,0,11,0,11,0,11,2,4,0,11,0,11,2,3,0,11,0,11,0,11,5,7]
[null,"$650 to $699",0,11,0,11,0,11,140,66,0,11,0,11,0,11,0,11,47,31,0,11,0,11,0,11,0,11,0,11,0,11,3,4,2,3,0,11,39,41,0,11,0,11,19,28,0,11,12,20,0,11,0,11,4,5,0,11,23,15,0,11,0,11,9,14,0,11,0,11,0,11,6,7,0,11,0,11,10,13,0,11,0,11,0,11,14,14]
[null,"$700 to $749",0,11,0,11,0,11,44,30,0,11,3,4,0,11,1,2,24,27,3,4,0,11,0,11,0,11,0,11,0,11,0,11,0,11,0,11,7,11,0,11,0,11,0,11,0,11,56,50,0,11,0,11,3,4,0,11,28,18,0,11,0,11,0,11,0,11,0,11,0,11,0,11,3,5,0,11,6,10,0,11,0,11,0,11,71,56]
[null,"$750 to $799",0,11,0,11,0,11,287,155,0,11,6,10,0,11,0,11,5,9,3,4,0,11,0,11,3,5,0,11,0,11,0,11,0,11,0,11,20,21,0,11,0,11,0,11,0,11,74,59,0,11,0,11,4,5,0,11,24,19,0,11,0,11,7,6,0,11,0,11,0,11,0,11,0,11,3,5,0,11,0,11,0,11,0,11,5,8]
[null,"$800 to $899",0,11,0,11,0,11,176,85,0,11,26,18,0,11,0,11,33,25,5,5,0,11,0,11,6,6,0,11,0,11,0,11,4,6,0,11,16,20,0,11,0,11,6,8,0,11,27,32,0,11,0,11,21,28,0,11,37,29,0,11,0,11,0,11,10,11,0,11,0,11,0,11,6,9,14,20,0,11,0,11,0,11,0,11,39,38]
[null,"$900 to $999",0,11,0,11,0,11,137,87,0,11,2,3,0,11,2,3,15,12,0,11,0,11,0,11,0,11,0,11,0,11,0,11,0,11,0,11,9,13,0,11,0,11,0,11,0,11,35,42,0,11,0,11,15,19,0,11,32,28,0,11,0,11,15,20,2,4,0,11,0,11,10,11,0,11,0,11,2,3,0,11,0,11,0,11,49,41]
[null,"$1,000 to $1,249",0,11,0,11,0,11,194,79,0,11,8,7,0,11,0,11,11,12,8,8,0,11,0,11,18,14,0,11,0,11,2,3,0,11,0,11,23,23,0,11,0,11,9,6,0,11,70,55,0,11,0,11,13,14,0,11,6,9,0,11,0,11,7,8,13,10,0,11,0,11,6,6,4,5,0,11,0,11,0,11,0,11,0,11,76,38]
[null,"$1,250 to $1,499",0,11,0,11,0,11,67,80,0,11,15,17,0,11,3,4,7,11,0,11,0,11,0,11,0,11,0,11,0,11,0,11,0,11,0,11,9,12,0,11,0,11,5,6,0,11,12,20,0,11,0,11,0,11,0,11,15,22,0,11,0,11,0,11,2,3,0,11,0,11,2,3,2,3,0,11,2,4,0,11,0,11,0,11,26,33]
[null,"$1,500 to $1,999",0,11,0,11,0,11,0,18,0,11,0,11,0,11,0,11,0,11,0,11,0,11,0,11,11,16,0,11,0,11,0,11,3,7,0,11,0,11,0,11,0,11,5,6,0,11,0,11,0,11,0,11,12,9,0,11,0,11,0,11,0,11,0,11,0,11,0,11,0,11,0,11,0,11,0,11,0,11,0,11,0,11,0,11,17,19]
[null,"$2,000 to $2,499",0,11,0,11,0,11,0,18,0,11,0,11,0,11,0,11,0,11,0,11,0,11,0,11,3,6,0,11,0,11,0,11,0,11,0,11,0,11,0,11,0,11,0,11,0,11,0,11,0,11,0,11,0,11,0,11,0,11,0,11,0,11,0,11,0,11,0,11,0,11,0,11,0,11,0,11,0,11,0,11,0,11,0,11,3,5]
[null,"$2,500 to $2,999",0,11,0,11,0,11,0,18,0,11,0,11,0,11,0,11,0,11,0,11,0,11,0,11,0,11,0,11,0,11,0,11,0,11,0,11,0,11,0,11,0,11,0,11,0,11,0,11,0,11,0,11,0,11,0,11,0,11,0,11,0,11,0,11,0,11,0,11,0,11,0,11,0,11,0,11,0,11,0,11,0,11,0,11,5,8]
[null,"$3,000 to $3,499",0,11,0,11,0,11,0,18,0,11,0,11,0,11,0,11,0,11,0,11,0,11,0,11,0,11,0,11,0,11,0,11,0,11,0,11,0,11,0,11,0,11,0,11,0,11,0,11,0,11,0,11,0,11,0,11,0,11,0,11,0,11,0,11,0,11,0,11,0,11,0,11,0,11,0,11,0,11,0,11,0,11,0,11,0,11]
[null,"$3,500 or more",0,11,0,11,0,11,0,18,0,11,0,11,0,11,0,11,0,11,0,11,0,11,0,11,0,11,0,11,0,11,0,11,0,11,0,11,0,11,0,11,0,11,0,11,0,11,0,11,0,11,0,11,0,11,0,11,0,11,0,11,0,11,0,11,0,11,0,11,0,11,0,11,0,11,0,11,0,11,0,11,0,11,0,11,0,11]
[null,"No cash rent",0,11,0,11,0,11,29,24,0,11,10,11,0,11,1,3,30,29,22,19,0,11,0,11,4,6,0,11,0,11,6,5,7,8,0,11,19,22,0,11,0,11,3,5,0,11,7,10,0,11,0,11,15,10,0,11,27,20,0,11,0,11,4,5,2,3,0,11,0,11,5,6,11,12,2,3,9,11,0,11,0,11,2,3,0,11]
[]
[]
[]
[null,"B25064. MEDIAN GROSS RENT (DOLLARS)"]
[null,"Universe:  RENTER-OCCUPIED HOUSING UNITS PAYING CASH RENT"]
[null,"Data Set: 2015-2019 American Community Survey 5-Year Estimates"]
[null,{"$f":"RentalHousingCost!D41","v":"Income in 2019 Inflation Adjusted Dollars"}]
[null,null,"Atkinson and Gilmanton Grant",null,"Bean's Grant",null,"Bean's Purchase",null,"Berlin",null,"Cambridge",null,"Carroll",null,"Chandler's Purchase",null,"Clarksville",null,"Colebrook",null,"Columbia",null,"Crawford's Purchase",null,"Cutt's Grant",null,"Dalton",null,"Dix's Grant",null,"Dixville",null,"Dummer",null,"Errol",null,"Erving's Location",null,"Gorham",null,"Greens Grant",null,"Hadley's Purchase",null,"Jefferson",null,"Kilkenny",null,"Lancaster",null,"Low and Burbank's Grant",null,"Martin's Location",null,"Milan",null,"Millsfield",null,"Northumberland",null,"Odell",null,"Pinkham's Grant",null,"Pittsburg",null,"Randolph",null,"Sargent's Purchase",null,"Second College Grant",null,"Shelburne",null,"Stark",null,"Stewartstown",null,"Stratford",null,"Success",null,"Thompson and Meserves Purchase",null,"Wentworth's Location",null,"Whitefield"]
[null,null,"Estimate","Margin Of Error","Estimate","Margin Of Error","Estimate","Margin Of Error","Estimate","Margin Of Error","Estimate","Margin Of Error","Estimate","Margin Of Error","Estimate","Margin Of Error","Estimate","Margin Of Error","Estimate","Margin Of Error","Estimate","Margin Of Error","Estimate","Margin Of Error","Estimate","Margin Of Error","Estimate","Margin Of Error","Estimate","Margin Of Error","Estimate","Margin Of Error","Estimate","Margin Of Error","Estimate","Margin Of Error","Estimate","Margin Of Error","Estimate","Margin Of Error","Estimate","Margin Of Error","Estimate","Margin Of Error","Estimate","Margin Of Error","Estimate","Margin Of Error","Estimate","Margin Of Error","Estimate","Margin Of Error","Estimate","Margin Of Error","Estimate","Margin Of Error","Estimate","Margin Of Error","Estimate","Margin Of Error","Estimate","Margin Of Error","Estimate","Margin Of Error","Estimate","Margin Of Error","Estimate","Margin Of Error","Estimate","Margin Of Error","Estimate","Margin Of Error","Estimate","Margin Of Error","Estimate","Margin Of Error","Estimate","Margin Of Error","Estimate","Margin Of Error","Estimate","Margin Of Error","Estimate","Margin Of Error","Estimate","Margin Of Error","Estimate","Margin Of Error"]
[null,"Median gross rent","-","**","-","**","-","**",750,96,"-","**",877,63,"-","**",825,563,681,31,792,174,"-","**","-","**",1056,186,"-","**","-","**",675,287,838,575,"-","**",588,126,"-","**","-","**",825,443,"-","**",782,68,"-","**","-","**",917,116,"-","**",686,80,"-","**","-","**",488,304,925,186,"-","**","-","**",920,437,775,343,580,198,555,192,"-","**","-","**","-","**",835,178]
[]
[]
[]
[]
[]
[]
[]
[]
[]
[]
[]
[]
[]
[]
[]
[]
[]
[]
[]
[]
[]
[]
[]
[]
[]
[]
[null,"B25063. GROSS RENT"]
[null,"Universe:  RENTER-OCCUPIED HOUSING UNITS"]
[null,"Data Set: 2010-2014 American Community Survey 5-Year Estimates"]
[]
[null,null,"Atkinson and Gilmanton Grant",null,"Bean's Grant",null,"Bean's Purchase",null,"Berlin",null,"Cambridge",null,"Carroll",null,"Chandler's Purchase",null,"Clarksville",null,"Colebrook",null,"Columbia",null,"Crawford's Purchase",null,"Cutt's Grant",null,"Dalton",null,"Dix's Grant",null,"Dixville",null,"Dummer",null,"Errol",null,"Erving's Location",null,"Gorham",null,"Greens Grant",null,"Hadley's Purchase",null,"Jefferson",null,"Kilkenny",null,"Lancaster",null,"Low and Burbank's Grant",null,"Martin's Location",null,"Milan",null,"Millsfield",null,"Northumberland",null,"Odell",null,"Pinkham's Grant",null,"Pittsburg",null,"Randolph",null,"Sargent's Purchase",null,"Second College Grant",null,"Shelburne",null,"Stark",null,"Stewartstown",null,"Stratford",null,"Success",null,"Thompson and Meserves Purchase",null,"Wentworth's Location",null,"Whitefield"]
[null,null,"Estimate","Margin Of Error","Estimate","Margin Of Error","Estimate","Margin Of Error","Estimate","Margin Of Error","Estimate","Margin Of Error","Estimate","Margin Of Error","Estimate","Margin Of Error","Estimate","Margin Of Error","Estimate","Margin Of Error","Estimate","Margin Of Error","Estimate","Margin Of Error","Estimate","Margin Of Error","Estimate","Margin Of Error","Estimate","Margin Of Error","Estimate","Margin Of Error","Estimate","Margin Of Error","Estimate","Margin Of Error","Estimate","Margin Of Error","Estimate","Margin Of Error","Estimate","Margin Of Error","Estimate","Margin Of Error","Estimate","Margin Of Error","Estimate","Margin Of Error","Estimate","Margin Of Error","Estimate","Margin Of Error","Estimate","Margin Of Error","Estimate","Margin Of Error","Estimate","Margin Of Error","Estimate","Margin Of Error","Estimate","Margin Of Error","Estimate","Margin Of Error","Estimate","Margin Of Error","Estimate","Margin Of Error","Estimate","Margin Of Error","Estimate","Margin Of Error","Estimate","Margin Of Error","Estimate","Margin Of Error","Estimate","Margin Of Error","Estimate","Margin Of Error","Estimate","Margin Of Error","Estimate","Margin Of Error","Estimate","Margin Of Error","Estimate","Margin Of Error"]
[null,"Total:",0,11,0,11,0,11,1651,226,0,11,95,36,0,11,17,11,354,73,61,31,0,11,0,11,79,33,4,6,3,6,13,13,37,19,0,11,363,96,0,11,0,11,0,11,0,11,477,113,0,11,0,11,0,11,0,11,0,11,0,11,0,11,91,34,22,15,5,6,0,11,24,16,36,13,101,39,0,11,0,11,0,11,17,16,380,84]
[null,"With cash rent:",0,11,0,11,0,11,1614,226,0,11,89,36,0,11,15,9,319,67,49,26,0,11,0,11,44,25,4,6,3,6,13,13,29,17,0,11,363,96,0,11,0,11,0,11,0,11,439,112,0,11,0,11,0,11,0,11,0,11,0,11,0,11,82,34,22,15,5,6,0,11,19,14,25,10,88,36,0,11,0,11,0,11,6,7,364,82]
[null,"Less than $100",0,11,0,11,0,11,0,15,0,11,0,11,0,11,0,11,0,11,0,11,0,11,0,11,0,11,0,11,0,11,0,11,0,11,0,11,0,11,0,11,0,11,0,11,0,11,8,14,0,11,0,11,0,11,0,11,0,11,0,11,0,11,0,11,0,11,0,11,0,11,0,11,0,11,11,15,0,11,0,11,0,11,0,11,0,11]
[null,"$100 to $149",0,11,0,11,0,11,7,12,0,11,0,11,0,11,0,11,6,9,0,11,0,11,0,11,0,11,0,11,0,11,0,11,0,11,0,11,0,11,0,11,0,11,0,11,0,11,0,11,0,11,0,11,0,11,0,11,0,11,0,11,0,11,0,11,0,11,0,11,0,11,0,11,0,11,0,11,0,11,0,11,0,11,0,11,17,26]
[null,"$150 to $199",0,11,0,11,0,11,48,58,0,11,0,11,0,11,0,11,0,11,9,13,0,11,0,11,0,11,0,11,0,11,0,11,0,11,0,11,0,11,0,11,0,11,0,11,0,11,0,11,0,11,0,11,0,11,0,11,0,11,0,11,0,11,0,11,0,11,0,11,0,11,0,11,0,11,0,11,0,11,0,11,0,11,0,11,7,10]
[null,"$200 to $249",0,11,0,11,0,11,55,54,0,11,0,11,0,11,0,11,10,11,0,11,0,11,0,11,0,11,0,11,0,11,0,11,0,11,0,11,33,41,0,11,0,11,0,11,0,11,10,16,0,11,0,11,0,11,0,11,0,11,0,11,0,11,5,6,0,11,0,11,0,11,0,11,1,4,0,11,0,11,0,11,0,11,0,11,45,26]
[null,"$250 to $299",0,11,0,11,0,11,100,49,0,11,5,8,0,11,0,11,19,16,0,11,0,11,0,11,0,11,4,6,3,6,0,11,0,11,0,11,8,11,0,11,0,11,0,11,0,11,20,18,0,11,0,11,0,11,0,11,0,11,0,11,0,11,9,10,2,3,0,11,0,11,0,11,3,4,0,11,0,11,0,11,0,11,0,11,0,11]
[null,"$300 to $349",0,11,0,11,0,11,73,53,0,11,0,11,0,11,0,11,17,14,4,6,0,11,0,11,0,11,0,11,0,11,1,2,0,11,0,11,29,32,0,11,0,11,0,11,0,11,0,11,0,11,0,11,0,11,0,11,0,11,0,11,0,11,0,11,4,7,0,11,0,11,0,11,2,3,0,11,0,11,0,11,0,11,0,11,0,11]
[null,"$350 to $399",0,11,0,11,0,11,27,37,0,11,0,11,0,11,0,11,26,25,0,11,0,11,0,11,0,11,0,11,0,11,0,11,0,11,0,11,27,42,0,11,0,11,0,11,0,11,0,11,0,11,0,11,0,11,0,11,0,11,0,11,0,11,0,11,0,11,0,11,0,11,0,11,0,11,0,11,0,11,0,11,0,11,0,11,15,16]
[null,"$400 to $449",0,11,0,11,0,11,0,15,0,11,0,11,0,11,0,11,9,10,0,11,0,11,0,11,0,11,0,11,0,11,0,11,0,11,0,11,8,12,0,11,0,11,0,11,0,11,12,15,0,11,0,11,0,11,0,11,0,11,0,11,0,11,0,11,1,2,0,11,0,11,0,11,0,11,7,10,0,11,0,11,0,11,0,11,4,6]
[null,"$450 to $499",0,11,0,11,0,11,72,73,0,11,6,10,0,11,0,11,5,7,0,11,0,11,0,11,0,11,0,11,0,11,1,2,4,6,0,11,14,15,0,11,0,11,0,11,0,11,9,16,0,11,0,11,0,11,0,11,0,11,0,11,0,11,12,17,0,11,0,11,0,11,0,11,0,11,0,11,0,11,0,11,0,11,0,11,0,11]
[null,"$500 to $549",0,11,0,11,0,11,144,72,0,11,0,11,0,11,0,11,31,28,0,11,0,11,0,11,4,6,0,11,0,11,7,10,0,11,0,11,25,21,0,11,0,11,0,11,0,11,24,35,0,11,0,11,0,11,0,11,0,11,0,11,0,11,0,11,0,11,0,11,0,11,0,11,3,5,14,18,0,11,0,11,0,11,0,11,25,29]
[null,"$550 to $599",0,11,0,11,0,11,111,67,0,11,0,11,0,11,0,11,35,22,9,14,0,11,0,11,0,11,0,11,0,11,0,11,2,3,0,11,0,11,0,11,0,11,0,11,0,11,68,62,0,11,0,11,0,11,0,11,0,11,0,11,0,11,0,11,6,10,0,11,0,11,0,11,0,11,0,11,0,11,0,11,0,11,0,11,21,27]
[null,"$600 to $649",0,11,0,11,0,11,118,65,0,11,0,11,0,11,4,4,43,31,0,11,0,11,0,11,0,11,0,11,0,11,2,4,0,11,0,11,10,11,0,11,0,11,0,11,0,11,10,15,0,11,0,11,0,11,0,11,0,11,0,11,0,11,23,17,0,11,0,11,0,11,0,11,2,3,23,21,0,11,0,11,0,11,1,3,23,27]
[null,"$650 to $699",0,11,0,11,0,11,152,86,0,11,2,4,0,11,0,11,45,28,0,11,0,11,0,11,8,13,0,11,0,11,0,11,4,6,0,11,50,51,0,11,0,11,0,11,0,11,24,28,0,11,0,11,0,11,0,11,0,11,0,11,0,11,3,4,0,11,0,11,0,11,4,5,3,4,0,11,0,11,0,11,0,11,0,11,6,9]
[null,"$700 to $749",0,11,0,11,0,11,163,66,0,11,6,9,0,11,4,5,6,8,9,10,0,11,0,11,9,12,0,11,0,11,0,11,6,7,0,11,35,31,0,11,0,11,0,11,0,11,32,29,0,11,0,11,0,11,0,11,0,11,0,11,0,11,11,17,0,11,0,11,0,11,1,3,6,9,0,11,0,11,0,11,0,11,0,11,50,41]
[null,"$750 to $799",0,11,0,11,0,11,135,76,0,11,18,19,0,11,0,11,5,7,0,11,0,11,0,11,3,5,0,11,0,11,0,11,3,4,0,11,18,27,0,11,0,11,0,11,0,11,7,10,0,11,0,11,0,11,0,11,0,11,0,11,0,11,0,11,3,4,0,11,0,11,11,12,0,11,2,5,0,11,0,11,0,11,0,11,48,37]
[null,"$800 to $899",0,11,0,11,0,11,151,74,0,11,6,9,0,11,3,4,28,21,6,7,0,11,0,11,7,7,0,11,0,11,2,3,6,10,0,11,22,24,0,11,0,11,0,11,0,11,60,62,0,11,0,11,0,11,0,11,0,11,0,11,0,11,0,11,0,11,0,11,0,11,0,11,0,11,5,7,0,11,0,11,0,11,5,7,30,22]
[null,"$900 to $999",0,11,0,11,0,11,63,48,0,11,3,5,0,11,0,11,0,11,2,4,0,11,0,11,0,11,0,11,0,11,0,11,0,11,0,11,53,45,0,11,0,11,0,11,0,11,66,57,0,11,0,11,0,11,0,11,0,11,0,11,0,11,15,15,2,3,0,11,0,11,3,4,5,6,5,7,0,11,0,11,0,11,0,11,18,24]
[null,"$1,000 to $1,249",0,11,0,11,0,11,154,91,0,11,27,21,0,11,3,4,31,22,3,4,0,11,0,11,13,16,0,11,0,11,0,11,2,6,0,11,21,34,0,11,0,11,0,11,0,11,64,62,0,11,0,11,0,11,0,11,0,11,0,11,0,11,4,6,4,5,5,6,0,11,0,11,0,11,3,4,0,11,0,11,0,11,0,11,30,24]
[null,"$1,250 to $1,499",0,11,0,11,0,11,41,39,0,11,8,11,0,11,1,3,3,6,4,6,0,11,0,11,0,11,0,11,0,11,0,11,2,3,0,11,10,14,0,11,0,11,0,11,0,11,11,17,0,11,0,11,0,11,0,11,0,11,0,11,0,11,0,11,0,11,0,11,0,11,0,11,0,11,16,18,0,11,0,11,0,11,0,11,25,17]
[null,"$1,500 to $1,999",0,11,0,11,0,11,0,15,0,11,8,12,0,11,0,11,0,11,0,11,0,11,0,11,0,11,0,11,0,11,0,11,0,11,0,11,0,11,0,11,0,11,0,11,0,11,14,18,0,11,0,11,0,11,0,11,0,11,0,11,0,11,0,11,0,11,0,11,0,11,0,11,0,11,2,3,0,11,0,11,0,11,0,11,0,11]
[null,"$2,000 or more",0,11,0,11,0,11,0,15,0,11,0,11,0,11,0,11,0,11,3,4,0,11,0,11,0,11,0,11,0,11,0,11,0,11,0,11,0,11,0,11,0,11,0,11,0,11,0,11,0,11,0,11,0,11,0,11,0,11,0,11,0,11,0,11,0,11,0,11,0,11,0,11,0,11,0,11,0,11,0,11,0,11,0,11,0,11]
[null,"No cash rent",0,11,0,11,0,11,37,31,0,11,6,5,0,11,2,4,35,30,12,13,0,11,0,11,35,25,0,11,0,11,0,11,8,7,0,11,0,11,0,11,0,11,0,11,0,11,38,27,0,11,0,11,0,11,0,11,0,11,0,11,0,11,9,10,0,11,0,11,0,11,5,5,11,9,13,16,0,11,0,11,0,11,11,15,16,14]
[]
[]
[]
[]
[]
[]
[null,"B25064. MEDIAN GROSS RENT (DOLLARS)"]
[null,"Universe:  RENTER-OCCUPIED HOUSING UNITS PAYING CASH RENT"]
[null,"Data Set: 2010-2014 American Community Survey 5-Year Estimates"]
[null,"Income in 2010 Inflation Adjusted Dollars"]
[null,null,"Atkinson and Gilmanton Grant",null,"Bean's Grant",null,"Bean's Purchase",null,"Berlin",null,"Cambridge",null,"Carroll",null,"Chandler's Purchase",null,"Clarksville",null,"Colebrook",null,"Columbia",null,"Crawford's Purchase",null,"Cutt's Grant",null,"Dalton",null,"Dix's Grant",null,"Dixville",null,"Dummer",null,"Errol",null,"Erving's Location",null,"Gorham",null,"Greens Grant",null,"Hadley's Purchase",null,"Jefferson",null,"Kilkenny",null,"Lancaster",null,"Low and Burbank's Grant",null,"Martin's Location",null,"Milan",null,"Millsfield",null,"Northumberland",null,"Odell",null,"Pinkham's Grant",null,"Pittsburg",null,"Randolph",null,"Sargent's Purchase",null,"Second College Grant",null,"Shelburne",null,"Stark",null,"Stewartstown",null,"Stratford",null,"Success",null,"Thompson and Meserves Purchase",null,"Wentworth's Location",null,"Whitefield"]
[null,null,"Estimate","Margin Of Error","Estimate","Margin Of Error","Estimate","Margin Of Error","Estimate","Margin Of Error","Estimate","Margin Of Error","Estimate","Margin Of Error","Estimate","Margin Of Error","Estimate","Margin Of Error","Estimate","Margin Of Error","Estimate","Margin Of Error","Estimate","Margin Of Error","Estimate","Margin Of Error","Estimate","Margin Of Error","Estimate","Margin Of Error","Estimate","Margin Of Error","Estimate","Margin Of Error","Estimate","Margin Of Error","Estimate","Margin Of Error","Estimate","Margin Of Error","Estimate","Margin Of Error","Estimate","Margin Of Error","Estimate","Margin Of Error","Estimate","Margin Of Error","Estimate","Margin Of Error","Estimate","Margin Of Error","Estimate","Margin Of Error","Estimate","Margin Of Error","Estimate","Margin Of Error","Estimate","Margin Of Error","Estimate","Margin Of Error","Estimate","Margin Of Error","Estimate","Margin Of Error","Estimate","Margin Of Error","Estimate","Margin Of Error","Estimate","Margin Of Error","Estimate","Margin Of Error","Estimate","Margin Of Error","Estimate","Margin Of Error","Estimate","Margin Of Error","Estimate","Margin Of Error","Estimate","Margin Of Error","Estimate","Margin Of Error","Estimate","Margin Of Error"]
[null,"Median gross rent","-","**","-","**","-","**",667,43,"-","**",950,256,"-","**",744,162,602,48,714,245,"-","**","-","**",767,134,"-","**","-","**",532,75,738,94,"-","**",678,77,"-","**","-","**","-","**","-","**",768,156,"-","**","-","**","-","**","-","**","-","**","-","**","-","**",633,67,583,165,"-","**","-","**",770,21,675,155,626,102,"-","**","-","**","-","**","-","**",719,77]
[]
[]
[]
[]
[]
[]
[]
[]
[]
[]
[]
[]
[]
[]
[]
[]
[]
[]
[]
[]
[]
[]
[]
[]
[]
[]
[null,"B25063. GROSS RENT"]
[null,"Universe:  RENTER-OCCUPIED HOUSING UNITS"]
[null,"Data Set: 2005-2009 American Community Survey 5-Year Estimates"]
[]
[null,null,"Atkinson and Gilmanton Grant",null,"Bean's Grant",null,"Bean's Purchase",null,"Berlin",null,"Cambridge",null,"Carroll",null,"Chandler's Purchase",null,"Clarksville",null,"Colebrook",null,"Columbia",null,"Crawford's Purchase",null,"Cutt's Grant",null,"Dalton",null,"Dix's Grant",null,"Dixville",null,"Dummer",null,"Errol",null,"Erving's Location",null,"Gorham",null,"Greens Grant",null,"Hadley's Purchase",null,"Jefferson",null,"Kilkenny",null,"Lancaster",null,"Low and Burbank's Grant",null,"Martin's Location",null,"Milan",null,"Millsfield",null,"Northumberland",null,"Odell",null,"Pinkham's Grant",null,"Pittsburg",null,"Randolph",null,"Sargent's Purchase",null,"Second College Grant",null,"Shelburne",null,"Stark",null,"Stewartstown",null,"Stratford",null,"Success",null,"Thompson and Meserves Purchase",null,"Wentworth's Location",null,"Whitefield"]
[null,null,"Estimate","Margin Of Error","Estimate","Margin Of Error","Estimate","Margin Of Error","Estimate","Margin Of Error","Estimate","Margin Of Error","Estimate","Margin Of Error","Estimate","Margin Of Error","Estimate","Margin Of Error","Estimate","Margin Of Error","Estimate","Margin Of Error","Estimate","Margin Of Error","Estimate","Margin Of Error","Estimate","Margin Of Error","Estimate","Margin Of Error","Estimate","Margin Of Error","Estimate","Margin Of Error","Estimate","Margin Of Error","Estimate","Margin Of Error","Estimate","Margin Of Error","Estimate","Margin Of Error","Estimate","Margin Of Error","Estimate","Margin Of Error","Estimate","Margin Of Error","Estimate","Margin Of Error","Estimate","Margin Of Error","Estimate","Margin Of Error","Estimate","Margin Of Error","Estimate","Margin Of Error","Estimate","Margin Of Error","Estimate","Margin Of Error","Estimate","Margin Of Error","Estimate","Margin Of Error","Estimate","Margin Of Error","Estimate","Margin Of Error","Estimate","Margin Of Error","Estimate","Margin Of Error","Estimate","Margin Of Error","Estimate","Margin Of Error","Estimate","Margin Of Error","Estimate","Margin Of Error","Estimate","Margin Of Error","Estimate","Margin Of Error","Estimate","Margin Of Error"]
[null,"Total:",0,114,0,114,0,114,1524,246,0,114,39,29,0,114,22,21,440,101,18,19,0,114,0,114,78,38,0,114,8,8,11,11,7,6,0,114,443,121,0,114,0,114,40,21,0,114,351,77,0,114,0,114,68,25,0,114,381,86,0,114,0,114,40,17,16,13,0,114,0,114,21,11,51,32,68,30,143,41,0,114,0,114,4,6,253,58]
[null,"With cash rent:",0,114,0,114,0,114,1456,238,0,114,39,29,0,114,19,20,434,101,15,18,0,114,0,114,47,30,0,114,0,114,8,9,7,6,0,114,406,116,0,114,0,114,35,20,0,114,337,80,0,114,0,114,55,22,0,114,320,83,0,114,0,114,24,14,11,12,0,114,0,114,21,11,40,29,64,30,127,35,0,114,0,114,4,6,236,58]
[null,"Less than $100",0,114,0,114,0,114,10,18,0,114,0,114,0,114,0,114,6,10,0,114,0,114,0,114,0,114,0,114,0,114,0,114,0,114,0,114,0,114,0,114,0,114,0,114,0,114,0,114,0,114,0,114,0,114,0,114,0,114,0,114,0,114,0,114,0,114,0,114,0,114,0,114,0,114,5,9,0,114,0,114,0,114,0,114,0,114]
[null,"$100 to $149",0,114,0,114,0,114,11,18,0,114,0,114,0,114,0,114,18,29,0,114,0,114,0,114,0,114,0,114,0,114,0,114,0,114,0,114,0,114,0,114,0,114,0,114,0,114,0,114,0,114,0,114,0,114,0,114,0,114,0,114,0,114,0,114,0,114,0,114,0,114,0,114,0,114,0,114,0,114,0,114,0,114,0,114,0,114]
[null,"$150 to $199",0,114,0,114,0,114,51,39,0,114,0,114,0,114,0,114,27,23,0,114,0,114,0,114,0,114,0,114,0,114,0,114,0,114,0,114,7,12,0,114,0,114,0,114,0,114,0,114,0,114,0,114,0,114,0,114,8,11,0,114,0,114,3,4,0,114,0,114,0,114,0,114,0,114,9,14,20,16,0,114,0,114,0,114,44,41]
[null,"$200 to $249",0,114,0,114,0,114,10,17,0,114,0,114,0,114,0,114,21,18,0,114,0,114,0,114,0,114,0,114,0,114,0,114,0,114,0,114,14,18,0,114,0,114,0,114,0,114,10,16,0,114,0,114,0,114,0,114,27,26,0,114,0,114,3,4,0,114,0,114,0,114,0,114,4,7,0,114,0,114,0,114,0,114,0,114,20,29]
[null,"$250 to $299",0,114,0,114,0,114,32,31,0,114,0,114,0,114,0,114,5,7,0,114,0,114,0,114,0,114,0,114,0,114,0,114,0,114,0,114,23,26,0,114,0,114,0,114,0,114,0,114,0,114,0,114,0,114,0,114,0,114,0,114,0,114,5,6,0,114,0,114,0,114,0,114,4,6,0,114,0,114,0,114,0,114,0,114,32,34]
[null,"$300 to $349",0,114,0,114,0,114,36,32,0,114,0,114,0,114,0,114,17,16,0,114,0,114,0,114,0,114,0,114,0,114,0,114,0,114,0,114,8,13,0,114,0,114,0,114,0,114,52,37,0,114,0,114,3,4,0,114,8,12,0,114,0,114,0,114,0,114,0,114,0,114,3,4,0,114,0,114,15,17,0,114,0,114,0,114,17,11]
[null,"$350 to $399",0,114,0,114,0,114,26,29,0,114,0,114,0,114,0,114,28,43,0,114,0,114,0,114,0,114,0,114,0,114,0,114,0,114,0,114,8,13,0,114,0,114,6,8,0,114,0,114,0,114,0,114,0,114,0,114,0,114,0,114,0,114,0,114,0,114,0,114,0,114,4,6,7,12,5,9,16,17,0,114,0,114,0,114,0,114]
[null,"$400 to $449",0,114,0,114,0,114,65,43,0,114,0,114,0,114,0,114,47,52,0,114,0,114,0,114,3,4,0,114,0,114,0,114,3,4,0,114,9,14,0,114,0,114,0,114,0,114,0,114,0,114,0,114,3,4,0,114,4,8,0,114,0,114,0,114,0,114,0,114,0,114,3,5,0,114,0,114,10,11,0,114,0,114,4,6,0,114]
[null,"$450 to $499",0,114,0,114,0,114,103,47,0,114,0,114,0,114,0,114,17,15,0,114,0,114,0,114,0,114,0,114,0,114,0,114,0,114,0,114,39,32,0,114,0,114,0,114,0,114,0,114,0,114,0,114,4,5,0,114,45,55,0,114,0,114,0,114,0,114,0,114,0,114,2,5,0,114,5,8,13,16,0,114,0,114,0,114,8,13]
[null,"$500 to $549",0,114,0,114,0,114,246,102,0,114,0,114,0,114,14,19,94,67,11,17,0,114,0,114,0,114,0,114,0,114,0,114,0,114,0,114,150,100,0,114,0,114,0,114,0,114,70,69,0,114,0,114,3,4,0,114,25,21,0,114,0,114,0,114,9,11,0,114,0,114,0,114,0,114,6,9,11,12,0,114,0,114,0,114,5,7]
[null,"$550 to $599",0,114,0,114,0,114,239,115,0,114,0,114,0,114,5,7,57,57,0,114,0,114,0,114,2,3,0,114,0,114,2,3,0,114,0,114,33,30,0,114,0,114,0,114,0,114,16,20,0,114,0,114,7,9,0,114,47,37,0,114,0,114,9,10,0,114,0,114,0,114,0,114,19,22,0,114,0,114,0,114,0,114,0,114,0,114]
[null,"$600 to $649",0,114,0,114,0,114,141,71,0,114,13,19,0,114,0,114,54,41,0,114,0,114,0,114,0,114,0,114,0,114,0,114,2,4,0,114,0,114,0,114,0,114,6,9,0,114,41,28,0,114,0,114,3,6,0,114,30,40,0,114,0,114,0,114,0,114,0,114,0,114,0,114,0,114,0,114,0,114,0,114,0,114,0,114,16,25]
[null,"$650 to $699",0,114,0,114,0,114,98,52,0,114,12,17,0,114,0,114,22,21,0,114,0,114,0,114,3,4,0,114,0,114,0,114,0,114,0,114,51,42,0,114,0,114,0,114,0,114,39,37,0,114,0,114,0,114,0,114,31,34,0,114,0,114,0,114,0,114,0,114,0,114,0,114,2,6,0,114,0,114,0,114,0,114,0,114,6,10]
[null,"$700 to $749",0,114,0,114,0,114,61,55,0,114,0,114,0,114,0,114,15,16,0,114,0,114,0,114,0,114,0,114,0,114,0,114,0,114,0,114,19,31,0,114,0,114,5,8,0,114,0,114,0,114,0,114,9,13,0,114,35,30,0,114,0,114,0,114,0,114,0,114,0,114,3,4,0,114,0,114,25,24,0,114,0,114,0,114,31,21]
[null,"$750 to $799",0,114,0,114,0,114,60,56,0,114,4,5,0,114,0,114,0,114,0,114,0,114,0,114,11,10,0,114,0,114,0,114,0,114,0,114,9,14,0,114,0,114,11,13,0,114,42,52,0,114,0,114,10,7,0,114,41,34,0,114,0,114,0,114,0,114,0,114,0,114,2,3,0,114,6,9,4,8,0,114,0,114,0,114,30,27]
[null,"$800 to $899",0,114,0,114,0,114,160,88,0,114,0,114,0,114,0,114,0,114,4,6,0,114,0,114,2,3,0,114,0,114,6,8,2,3,0,114,0,114,0,114,0,114,0,114,0,114,37,34,0,114,0,114,13,8,0,114,3,5,0,114,0,114,0,114,0,114,0,114,0,114,0,114,0,114,6,5,6,9,0,114,0,114,0,114,6,10]
[null,"$900 to $999",0,114,0,114,0,114,37,43,0,114,0,114,0,114,0,114,0,114,0,114,0,114,0,114,14,21,0,114,0,114,0,114,0,114,0,114,18,20,0,114,0,114,0,114,0,114,0,114,0,114,0,114,0,114,0,114,0,114,0,114,0,114,4,6,0,114,0,114,0,114,2,4,4,8,0,114,0,114,0,114,0,114,0,114,12,13]
[null,"$1,000 to $1,249",0,114,0,114,0,114,63,58,0,114,0,114,0,114,0,114,0,114,0,114,0,114,0,114,8,11,0,114,0,114,0,114,0,114,0,114,18,20,0,114,0,114,0,114,0,114,18,21,0,114,0,114,0,114,0,114,0,114,0,114,0,114,0,114,2,4,0,114,0,114,2,3,0,114,4,7,0,114,0,114,0,114,0,114,9,9]
[null,"$1,250 to $1,499",0,114,0,114,0,114,7,12,0,114,0,114,0,114,0,114,6,10,0,114,0,114,0,114,4,6,0,114,0,114,0,114,0,114,0,114,0,114,0,114,0,114,7,10,0,114,0,114,0,114,0,114,0,114,0,114,0,114,0,114,0,114,0,114,0,114,0,114,0,114,0,114,0,114,18,18,0,114,0,114,0,114,0,114,0,114]
[null,"$1,500 to $1,999",0,114,0,114,0,114,0,114,0,114,10,14,0,114,0,114,0,114,0,114,0,114,0,114,0,114,0,114,0,114,0,114,0,114,0,114,0,114,0,114,0,114,0,114,0,114,12,15,0,114,0,114,0,114,0,114,11,18,0,114,0,114,0,114,0,114,0,114,0,114,0,114,0,114,0,114,7,10,0,114,0,114,0,114,0,114]
[null,"$2,000 or more",0,114,0,114,0,114,0,114,0,114,0,114,0,114,0,114,0,114,0,114,0,114,0,114,0,114,0,114,0,114,0,114,0,114,0,114,0,114,0,114,0,114,0,114,0,114,0,114,0,114,0,114,0,114,0,114,5,9,0,114,0,114,0,114,0,114,0,114,0,114,0,114,0,114,0,114,0,114,0,114,0,114,0,114,0,114]
[null,"No cash rent",0,114,0,114,0,114,68,52,0,114,0,114,0,114,3,4,6,10,3,5,0,114,0,114,31,21,0,114,8,8,3,4,0,114,0,114,37,38,0,114,0,114,5,6,0,114,14,23,0,114,0,114,13,9,0,114,61,40,0,114,0,114,16,13,5,6,0,114,0,114,0,114,11,13,4,7,16,22,0,114,0,114,0,114,17,20]
[]
[]
[]
[]
[]
[]
[null,"B25064. MEDIAN GROSS RENT (DOLLARS)"]
[null,"Universe:  RENTER-OCCUPIED HOUSING UNITS PAYING CASH RENT"]
[null,"Data Set: 2005-2009 American Community Survey 5-Year Estimates"]
[null,"Income in 2009 Inflation Adjusted Dollars"]
[null,null,"Atkinson and Gilmanton Grant",null,"Bean's Grant",null,"Bean's Purchase",null,"Berlin",null,"Cambridge",null,"Carroll",null,"Chandler's Purchase",null,"Clarksville",null,"Colebrook",null,"Columbia",null,"Crawford's Purchase",null,"Cutt's Grant",null,"Dalton",null,"Dix's Grant",null,"Dixville",null,"Dummer",null,"Errol",null,"Erving's Location",null,"Gorham",null,"Greens Grant",null,"Hadley's Purchase",null,"Jefferson",null,"Kilkenny",null,"Lancaster",null,"Low and Burbank's Grant",null,"Martin's Location",null,"Milan",null,"Millsfield",null,"Northumberland",null,"Odell",null,"Pinkham's Grant",null,"Pittsburg",null,"Randolph",null,"Sargent's Purchase",null,"Second College Grant",null,"Shelburne",null,"Stark",null,"Stewartstown",null,"Stratford",null,"Success",null,"Thompson and Meserves Purchase",null,"Wentworth's Location",null,"Whitefield"]
[null,null,"Estimate","Margin Of Error","Estimate","Margin Of Error","Estimate","Margin Of Error","Estimate","Margin Of Error","Estimate","Margin Of Error","Estimate","Margin Of Error","Estimate","Margin Of Error","Estimate","Margin Of Error","Estimate","Margin Of Error","Estimate","Margin Of Error","Estimate","Margin Of Error","Estimate","Margin Of Error","Estimate","Margin Of Error","Estimate","Margin Of Error","Estimate","Margin Of Error","Estimate","Margin Of Error","Estimate","Margin Of Error","Estimate","Margin Of Error","Estimate","Margin Of Error","Estimate","Margin Of Error","Estimate","Margin Of Error","Estimate","Margin Of Error","Estimate","Margin Of Error","Estimate","Margin Of Error","Estimate","Margin Of Error","Estimate","Margin Of Error","Estimate","Margin Of Error","Estimate","Margin Of Error","Estimate","Margin Of Error","Estimate","Margin Of Error","Estimate","Margin Of Error","Estimate","Margin Of Error","Estimate","Margin Of Error","Estimate","Margin Of Error","Estimate","Margin Of Error","Estimate","Margin Of Error","Estimate","Margin Of Error","Estimate","Margin Of Error","Estimate","Margin Of Error","Estimate","Margin Of Error","Estimate","Margin Of Error","Estimate","Margin Of Error","Estimate","Margin Of Error"]
[null,"Median gross rent","**","**","**","**","**","**",579,22,"**","**",677,370,"**","**",534,26,516,49,534,324,"**","**","**","**",918,176,"**","**","**","**",833,143,613,248,"**","**",532,15,"**","**","**","**",752,87,"**","**",625,86,"**","**","**","**",725,120,"**","**",596,54,"**","**","**","**",556,502,531,279,"**","**","**","**",463,326,563,160,767,527,460,105,"**","**","**","**","**","**",481,359]

{"sheet":"ACS_Table_B25070","index":57,"n_rows":161,"n_cols":88,"rows_kept":161,"cut":false,"hidden":true,"merged":[]}
[null,"B25070. GROSS RENT AS A PERCENTAGE OF HOUSEHOLD INCOME IN THE PAST 12 MONTHS"]
[null,"Universe:  RENTER-OCCUPIED HOUSING UNITS"]
[null,"Data Set: 2015-2019 American Community Survey 5-Year Estimates"]
[]
[null,null,"Atkinson and Gilmanton Grant",null,"Bean's Grant",null,"Bean's Purchase",null,"Berlin",null,"Cambridge",null,"Carroll",null,"Chandler's Purchase",null,"Clarksville",null,"Colebrook",null,"Columbia",null,"Crawford's Purchase",null,"Cutt's Grant",null,"Dalton",null,"Dix's Grant",null,"Dixville",null,"Dummer",null,"Errol",null,"Erving's Location",null,"Gorham",null,"Greens Grant",null,"Hadley's Purchase",null,"Jefferson",null,"Kilkenny",null,"Lancaster",null,"Low and Burbank's Grant",null,"Martin's Location",null,"Milan",null,"Millsfield",null,"Northumberland",null,"Odell",null,"Pinkham's Grant",null,"Pittsburg",null,"Randolph",null,"Sargent's Purchase",null,"Second College Grant",null,"Shelburne",null,"Stark",null,"Stewartstown",null,"Stratford",null,"Success",null,"Thompson and Meserves Purchase",null,"Wentworth's Location",null,"Whitefield"]
[null,null,"Estimate","Margin Of Error","Estimate","Margin Of Error","Estimate","Margin Of Error","Estimate","Margin Of Error","Estimate","Margin Of Error","Estimate","Margin Of Error","Estimate","Margin Of Error","Estimate","Margin Of Error","Estimate","Margin Of Error","Estimate","Margin Of Error","Estimate","Margin Of Error","Estimate","Margin Of Error","Estimate","Margin Of Error","Estimate","Margin Of Error","Estimate","Margin Of Error","Estimate","Margin Of Error","Estimate","Margin Of Error","Estimate","Margin Of Error","Estimate","Margin Of Error","Estimate","Margin Of Error","Estimate","Margin Of Error","Estimate","Margin Of Error","Estimate","Margin Of Error","Estimate","Margin Of Error","Estimate","Margin Of Error","Estimate","Margin Of Error","Estimate","Margin Of Error","Estimate","Margin Of Error","Estimate","Margin Of Error","Estimate","Margin Of Error","Estimate","Margin Of Error","Estimate","Margin Of Error","Estimate","Margin Of Error","Estimate","Margin Of Error","Estimate","Margin Of Error","Estimate","Margin Of Error","Estimate","Margin Of Error","Estimate","Margin Of Error","Estimate","Margin Of Error","Estimate","Margin Of Error","Estimate","Margin Of Error","Estimate","Margin Of Error","Estimate","Margin Of Error"]
[null,"Total:",0,11,0,11,0,11,1749,196,0,11,72,32,0,11,11,7,256,55,49,22,0,11,0,11,60,28,0,11,0,11,13,8,18,12,0,11,283,83,0,11,0,11,50,32,0,11,347,116,0,11,0,11,90,41,0,11,324,61,0,11,0,11,87,31,35,17,0,11,0,11,37,18,35,19,48,40,71,29,0,11,0,11,2,3,403,105]
[null,"Less than 10.0 percent",0,11,0,11,0,11,44,45,0,11,0,11,0,11,0,11,11,12,3,4,0,11,0,11,4,6,0,11,0,11,0,11,0,11,0,11,8,12,0,11,0,11,0,11,0,11,0,11,0,11,0,11,4,5,0,11,41,34,0,11,0,11,0,11,3,4,0,11,0,11,0,11,9,10,0,11,0,11,0,11,0,11,0,11,18,18]
[null,"10.0 to 14.9 percent",0,11,0,11,0,11,105,63,0,11,9,6,0,11,8,8,29,22,3,4,0,11,0,11,4,6,0,11,0,11,2,3,3,7,0,11,68,60,0,11,0,11,4,5,0,11,54,47,0,11,0,11,25,29,0,11,18,16,0,11,0,11,15,16,10,8,0,11,0,11,10,9,0,11,0,11,0,11,0,11,0,11,0,11,20,16]
[null,"15.0 to 19.9 percent",0,11,0,11,0,11,132,72,0,11,22,20,0,11,0,11,14,16,0,11,0,11,0,11,9,9,0,11,0,11,0,11,4,6,0,11,26,26,0,11,0,11,6,8,0,11,53,44,0,11,0,11,19,15,0,11,45,30,0,11,0,11,12,17,2,4,0,11,0,11,0,11,9,12,14,20,4,5,0,11,0,11,0,11,87,51]
[null,"20.0 to 24.9 percent",0,11,0,11,0,11,274,113,0,11,13,14,0,11,0,11,5,7,3,4,0,11,0,11,15,14,0,11,0,11,0,11,0,11,0,11,58,49,0,11,0,11,19,28,0,11,48,42,0,11,0,11,1,3,0,11,69,37,0,11,0,11,16,16,4,4,0,11,0,11,2,4,2,3,15,21,8,11,0,11,0,11,0,11,55,44]
[null,"25.0 to 29.9 percent",0,11,0,11,0,11,334,146,0,11,0,11,0,11,0,11,43,27,5,5,0,11,0,11,12,17,0,11,0,11,0,11,1,2,0,11,49,34,0,11,0,11,0,11,0,11,77,56,0,11,0,11,4,5,0,11,33,21,0,11,0,11,7,7,0,11,0,11,0,11,6,7,0,11,3,5,34,20,0,11,0,11,0,11,40,28]
[null,"30.0 to 34.9 percent",0,11,0,11,0,11,79,56,0,11,6,6,0,11,0,11,33,23,5,5,0,11,0,11,3,4,0,11,0,11,2,3,0,11,0,11,9,14,0,11,0,11,5,6,0,11,18,21,0,11,0,11,4,5,0,11,39,30,0,11,0,11,0,11,0,11,0,11,0,11,0,11,0,11,0,11,5,6,0,11,0,11,0,11,0,11]
[null,"35.0 to 39.9 percent",0,11,0,11,0,11,150,89,0,11,0,11,0,11,0,11,48,41,0,11,0,11,0,11,3,4,0,11,0,11,3,4,0,11,0,11,0,11,0,11,0,11,5,6,0,11,9,14,0,11,0,11,4,5,0,11,19,17,0,11,0,11,3,4,14,13,0,11,0,11,2,4,0,11,0,11,2,3,0,11,0,11,0,11,11,12]
[null,"40.0 to 49.9 percent",0,11,0,11,0,11,215,120,0,11,8,10,0,11,0,11,3,5,3,4,0,11,0,11,3,4,0,11,0,11,0,11,1,2,0,11,0,11,0,11,0,11,5,6,0,11,0,11,0,11,0,11,14,19,0,11,0,11,0,11,0,11,14,17,0,11,0,11,0,11,0,11,0,11,3,5,7,11,0,11,0,11,0,11,34,30]
[null,"50.0 percent or more",0,11,0,11,0,11,370,100,0,11,4,5,0,11,1,2,40,29,5,7,0,11,0,11,3,5,0,11,0,11,0,11,2,3,0,11,46,28,0,11,0,11,3,4,0,11,81,61,0,11,0,11,0,11,0,11,33,21,0,11,0,11,16,20,0,11,0,11,0,11,12,11,4,5,11,17,2,3,0,11,0,11,0,11,117,68]
[null,"Not computed",0,11,0,11,0,11,46,31,0,11,10,11,0,11,2,5,30,29,22,19,0,11,0,11,4,6,0,11,0,11,6,5,7,8,0,11,19,22,0,11,0,11,3,5,0,11,7,10,0,11,0,11,15,10,0,11,27,20,0,11,0,11,4,5,2,3,0,11,0,11,5,6,11,12,2,3,9,11,0,11,0,11,2,3,21,33]
[null,null,0,11,null,null,null,null,1749,196,0,11,0,11,null,null,11,7,256,55,0,11,null,null,null,null,0,11,null,null,0,11,0,11,null,null,null,null,null,null,null,null,null,null,null,null,null,null,null,null,null,null,null,null,null,null,null,null,324,61,0,11,null,null,87,31,0,11,null,null,null,null,37,18,35,19,48,40,71,29,0,11,null,null,2,3,403,105]
[null,null,0,11,null,null,null,null,248,89,0,11,0,11,null,null,1,3,19,17,0,11,null,null,null,null,0,11,null,null,0,11,0,11,null,null,null,null,null,null,null,null,null,null,null,null,null,null,null,null,null,null,null,null,null,null,null,null,null,null,0,11,null,null,12,19,0,11,null,null,null,null,8,9,4,5,3,5,15,15,0,11,null,null,0,11,42,40]
[]
[]
[]
[]
[]
[]
[]
[]
[]
[]
[]
[]
[]
[]
[]
[null,"Calculated B25070. GROSS RENT AS A PERCENTAGE OF HOUSEHOLD INCOME IN THE PAST 12 MONTHS"]
[null,"Universe:  RENTER-OCCUPIED HOUSING UNITS"]
[null,"Data Set: 2015-2019 American Community Survey 5-Year Estimates"]
[]
[null,null,"Atkinson and Gilmanton Grant",null,"Bean's Grant",null,"Bean's Purchase",null,"Berlin",null,"Cambridge",null,"Carroll",null,"Chandler's Purchase",null,"Clarksville",null,"Colebrook",null,"Columbia",null,"Crawford's Purchase",null,"Cutt's Grant",null,"Dalton",null,"Dix's Grant",null,"Dixville",null,"Dummer",null,"Errol",null,"Erving's Location",null,"Gorham",null,"Greens Grant",null,"Hadley's Purchase",null,"Jefferson",null,"Kilkenny",null,"Lancaster",null,"Low and Burbank's Grant",null,"Martin's Location",null,"Milan",null,"Millsfield",null,"Northumberland",null,"Odell",null,"Pinkham's Grant",null,"Pittsburg",null,"Randolph",null,"Sargent's Purchase",null,"Second College Grant",null,"Shelburne",null,"Stark",null,"Stewartstown",null,"Stratford",null,"Success",null,"Thompson and Meserves Purchase",null,"Wentworth's Location",null,"Whitefield"]
[null," ","Estimate","Margin of Error","Estimate","Margin of Error","Estimate","Margin of Error","Estimate","Margin of Error","Estimate","Margin of Error","Estimate","Margin of Error","Estimate","Margin of Error","Estimate","Margin of Error","Estimate","Margin of Error","Estimate","Margin of Error","Estimate","Margin of Error","Estimate","Margin of Error","Estimate","Margin of Error","Estimate","Margin of Error","Estimate","Margin of Error","Estimate","Margin of Error","Estimate","Margin of Error","Estimate","Margin of Error","Estimate","Margin of Error","Estimate","Margin of Error","Estimate","Margin of Error","Estimate","Margin of Error","Estimate","Margin of Error","Estimate","Margin of Error","Estimate","Margin of Error","Estimate","Margin of Error","Estimate","Margin of Error","Estimate","Margin of Error","Estimate","Margin of Error","Estimate","Margin of Error","Estimate","Margin of Error","Estimate","Margin of Error","Estimate","Margin of Error","Estimate","Margin of Error","Estimate","Margin of Error","Estimate","Margin of Error","Estimate","Margin of Error","Estimate","Margin of Error","Estimate","Margin of Error","Estimate","Margin of Error","Estimate","Margin of Error","Estimate","Margin of Error","Estimate","Margin of Error"]
[null,{"$f":"B7","v":"Total:"},{"$f":"C7","v":0},{"$f":"D7","v":11},{"$f":"E7","v":0},11,0,11,1749,196,0,11,72,32,0,11,11,7,256,55,49,22,0,11,{"$f":"Y7","v":0},11,60,28,0,11,0,11,13,8,18,12,0,11,283,83,0,11,0,11,50,32,0,11,347,116,0,11,0,11,90,41,0,11,324,61,0,11,0,11,87,31,35,17,0,11,0,11,37,18,35,19,48,40,71,29,0,11,0,11,2,3,403,105]
[null,"Less than 20% of HH Income",{"$f":"C8+C9+C10","v":0},{"$f":"SQRT((D8^2)+(D9^2)+(D10^2))","v":19.05255888325765},{"$f":"E8+E9+E10","v":0},{"$f":"SQRT((F8^2)+(F9^2)+(F10^2))","v":19.05255888325765},{"$f":"G8+G9+G10","v":0},{"$f":"SQRT((H8^2)+(H9^2)+(H10^2))","v":19.05255888325765},{"$f":"I8+I9+I10","v":281},{"$f":"SQRT((J8^2)+(J9^2)+(J10^2))","v":105.72606112023658},{"$f":"K8+K9+K10","v":0},{"$f":"SQRT((L8^2)+(L9^2)+(L10^2))","v":19.05255888325765},{"$f":"M8+M9+M10","v":31},{"$f":"SQRT((N8^2)+(N9^2)+(N10^2))","v":23.600847442411894},{"$f":"O8+O9+O10","v":0},{"$f":"SQRT((P8^2)+(P9^2)+(P10^2))","v":19.05255888325765},{"$f":"Q8+Q9+Q10","v":8},{"$f":"SQRT((R8^2)+(R9^2)+(R10^2))","v":17.4928556845359},{"$f":"S8+S9+S10","v":54},{"$f":"SQRT((T8^2)+(T9^2)+(T10^2))","v":29.732137494637012},{"$f":"U8+U9+U10","v":6},{"$f":"SQRT((V8^2)+(V9^2)+(V10^2))","v":12.369316876852981},{"$f":"W8+W9+W10","v":0},{"$f":"SQRT((X8^2)+(X9^2)+(X10^2))","v":19.05255888325765},{"$f":"Y8+Y9+Y10","v":0},{"$f":"SQRT((Z8^2)+(Z9^2)+(Z10^2))","v":19.05255888325765},{"$f":"AA8+AA9+AA10","v":17},{"$f":"SQRT((AB8^2)+(AB9^2)+(AB10^2))","v":12.369316876852981},{"$f":"AC8+AC9+AC10","v":0},{"$f":"SQRT((AD8^2)+(AD9^2)+(AD10^2))","v":19.05255888325765},{"$f":"AE8+AE9+AE10","v":0},{"$f":"SQRT((AF8^2)+(AF9^2)+(AF10^2))","v":19.05255888325765},{"$f":"AG8+AG9+AG10","v":2},{"$f":"SQRT((AH8^2)+(AH9^2)+(AH10^2))","v":15.842979517754859},{"$f":"AI8+AI9+AI10","v":7},{"$f":"SQRT((AJ8^2)+(AJ9^2)+(AJ10^2))","v":14.352700094407323},{"$f":"AK8+AK9+AK10","v":0},{"$f":"SQRT((AL8^2)+(AL9^2)+(AL10^2))","v":19.05255888325765},{"$f":"AM8+AM9+AM10","v":102},{"$f":"SQRT((AN8^2)+(AN9^2)+(AN10^2))","v":66.483080554378645},{"$f":"AO8+AO9+AO10","v":0},{"$f":"SQRT((AP8^2)+(AP9^2)+(AP10^2))","v":19.05255888325765},{"$f":"AQ8+AQ9+AQ10","v":0},{"$f":"SQRT((AR8^2)+(AR9^2)+(AR10^2))","v":19.05255888325765},{"$f":"AS8+AS9+AS10","v":10},{"$f":"SQRT((AT8^2)+(AT9^2)+(AT10^2))","v":14.491376746189438},{"$f":"AU8+AU9+AU10","v":0},{"$f":"SQRT((AV8^2)+(AV9^2)+(AV10^2))","v":19.05255888325765},{"$f":"AW8+AW9+AW10","v":107},{"$f":"SQRT((AX8^2)+(AX9^2)+(AX10^2))","v":65.31462317123173},{"$f":"AY8+AY9+AY10","v":0},{"$f":"SQRT((AZ8^2)+(AZ9^2)+(AZ10^2))","v":19.05255888325765},{"$f":"BA8+BA9+BA10","v":0},{"$f":"SQRT((BB8^2)+(BB9^2)+(BB10^2))","v":19.05255888325765},{"$f":"BC8+BC9+BC10","v":48},{"$f":"SQRT((BD8^2)+(BD9^2)+(BD10^2))","v":33.030289129827487},{"$f":"BE8+BE9+BE10","v":0},{"$f":"SQRT((BF8^2)+(BF9^2)+(BF10^2))","v":19.05255888325765},{"$f":"BG8+BG9+BG10","v":104},{"$f":"SQRT((BH8^2)+(BH9^2)+(BH10^2))","v":48.083261120685229},{"$f":"BI8+BI9+BI10","v":0},{"$f":"SQRT((BJ8^2)+(BJ9^2)+(BJ10^2))","v":19.05255888325765},{"$f":"BK8+BK9+BK10","v":0},{"$f":"SQRT((BL8^2)+(BL9^2)+(BL10^2))","v":19.05255888325765},{"$f":"BM8+BM9+BM10","v":27},{"$f":"SQRT((BN8^2)+(BN9^2)+(BN10^2))","v":25.80697580112788},{"$f":"BO8+BO9+BO10","v":15},{"$f":"SQRT((BP8^2)+(BP9^2)+(BP10^2))","v":9.7979589711327115},{"$f":"BQ8+BQ9+BQ10","v":0},{"$f":"SQRT((BR8^2)+(BR9^2)+(BR10^2))","v":19.05255888325765},{"$f":"BS8+BS9+BS10","v":0},{"$f":"SQRT((BT8^2)+(BT9^2)+(BT10^2))","v":19.05255888325765},{"$f":"BU8+BU9+BU10","v":10},{"$f":"SQRT((BV8^2)+(BV9^2)+(BV10^2))","v":17.972200755611428},{"$f":"BW8+BW9+BW10","v":18},{"$f":"SQRT((BX8^2)+(BX9^2)+(BX10^2))","v":19.104973174542799},{"$f":"BY8+BY9+BY10","v":14},{"$f":"SQRT((BZ8^2)+(BZ9^2)+(BZ10^2))","v":25.337718918639855},{"$f":"CA8+CA9+CA10","v":4},{"$f":"SQRT((CB8^2)+(CB9^2)+(CB10^2))","v":16.340134638368191},{"$f":"CC8+CC9+CC10","v":0},{"$f":"SQRT((CD8^2)+(CD9^2)+(CD10^2))","v":19.05255888325765},{"$f":"CE8+CE9+CE10","v":0},{"$f":"SQRT((CF8^2)+(CF9^2)+(CF10^2))","v":19.05255888325765},{"$f":"CG8+CG9+CG10","v":0},{"$f":"SQRT((CH8^2)+(CH9^2)+(CH10^2))","v":19.05255888325765},{"$f":"CI8+CI9+CI10","v":125},{"$f":"SQRT((CJ8^2)+(CJ9^2)+(CJ10^2))","v":56.400354608814297}]
[null," 20% to 24.9% of HH Income",{"$f":"C11","v":0},{"$f":"D11","v":11},{"$f":"E11","v":0},11,0,11,274,113,0,11,13,14,0,11,0,11,5,7,3,4,0,11,{"$f":"Y11","v":0},11,15,14,0,11,0,11,0,11,0,11,0,11,58,49,0,11,0,11,19,28,0,11,48,42,0,11,0,11,1,3,0,11,69,37,0,11,0,11,16,16,4,4,0,11,0,11,2,4,2,3,15,21,8,11,0,11,0,11,0,11,55,44]
[null," 25% to 29.9% of HH Income",{"$f":"C12","v":0},{"$f":"D12","v":11},0,11,0,11,334,146,0,11,0,11,0,11,0,11,43,27,5,5,0,11,{"$f":"Y12","v":0},11,12,17,0,11,0,11,0,11,1,2,0,11,49,34,0,11,0,11,0,11,0,11,77,56,0,11,0,11,4,5,0,11,33,21,0,11,0,11,7,7,0,11,0,11,0,11,6,7,0,11,3,5,34,20,0,11,0,11,0,11,40,28]
[null," Less Than 30% of HH Income",{"$f":"C12+C11+C10+C9+C8","v":0},{"$f":"SQRT((D12^2)+(D11^2)+(D10^2)+(D9^2)+(D8^2))","v":24.596747752497688},{"$f":"E12+E11+E10+E9+E8","v":0},{"$f":"SQRT((F12^2)+(F11^2)+(F10^2)+(F9^2)+(F8^2))","v":24.596747752497688},{"$f":"G12+G11+G10+G9+G8","v":0},{"$f":"SQRT((H12^2)+(H11^2)+(H10^2)+(H9^2)+(H8^2))","v":24.596747752497688},{"$f":"I12+I11+I10+I9+I8","v":889},{"$f":"SQRT((J12^2)+(J11^2)+(J10^2)+(J9^2)+(J8^2))","v":212.75102819963055},{"$f":"K12+K11+K10+K9+K8","v":0},{"$f":"SQRT((L12^2)+(L11^2)+(L10^2)+(L9^2)+(L8^2))","v":24.596747752497688},{"$f":"M12+M11+M10+M9+M8","v":44},{"$f":"SQRT((N12^2)+(N11^2)+(N10^2)+(N9^2)+(N8^2))","v":29.563490998188964},{"$f":"O12+O11+O10+O9+O8","v":0},{"$f":"SQRT((P12^2)+(P11^2)+(P10^2)+(P9^2)+(P8^2))","v":24.596747752497688},{"$f":"Q12+Q11+Q10+Q9+Q8","v":8},{"$f":"SQRT((R12^2)+(R11^2)+(R10^2)+(R9^2)+(R8^2))","v":23.409399821439251},{"$f":"S12+S11+S10+S9+S8","v":102},{"$f":"SQRT((T12^2)+(T11^2)+(T10^2)+(T9^2)+(T8^2))","v":40.767634221279017},{"$f":"U12+U11+U10+U9+U8","v":14},{"$f":"SQRT((V12^2)+(V11^2)+(V10^2)+(V9^2)+(V8^2))","v":13.928388277184119},{"$f":"W12+W11+W10+W9+W8","v":0},{"$f":"SQRT((X12^2)+(X11^2)+(X10^2)+(X9^2)+(X8^2))","v":24.596747752497688},{"$f":"Y12+Y11+Y10+Y9+Y8","v":0},{"$f":"SQRT((Z12^2)+(Z11^2)+(Z10^2)+(Z9^2)+(Z8^2))","v":24.596747752497688},{"$f":"AA12+AA11+AA10+AA9+AA8","v":44},{"$f":"SQRT((AB12^2)+(AB11^2)+(AB10^2)+(AB9^2)+(AB8^2))","v":25.258661880630179},{"$f":"AC12+AC11+AC10+AC9+AC8","v":0},{"$f":"SQRT((AD12^2)+(AD11^2)+(AD10^2)+(AD9^2)+(AD8^2))","v":24.596747752497688},{"$f":"AE12+AE11+AE10+AE9+AE8","v":0},{"$f":"SQRT((AF12^2)+(AF11^2)+(AF10^2)+(AF9^2)+(AF8^2))","v":24.596747752497688},{"$f":"AG12+AG11+AG10+AG9+AG8","v":2},{"$f":"SQRT((AH12^2)+(AH11^2)+(AH10^2)+(AH9^2)+(AH8^2))","v":22.203603311174518},{"$f":"AI12+AI11+AI10+AI9+AI8","v":8},{"$f":"SQRT((AJ12^2)+(AJ11^2)+(AJ10^2)+(AJ9^2)+(AJ8^2))","v":18.193405398660254},{"$f":"AK12+AK11+AK10+AK9+AK8","v":0},{"$f":"SQRT((AL12^2)+(AL11^2)+(AL10^2)+(AL9^2)+(AL8^2))","v":24.596747752497688},{"$f":"AM12+AM11+AM10+AM9+AM8","v":209},{"$f":"SQRT((AN12^2)+(AN11^2)+(AN10^2)+(AN9^2)+(AN8^2))","v":89.314052645706326},{"$f":"AO12+AO11+AO10+AO9+AO8","v":0},{"$f":"SQRT((AP12^2)+(AP11^2)+(AP10^2)+(AP9^2)+(AP8^2))","v":24.596747752497688},{"$f":"AQ12+AQ11+AQ10+AQ9+AQ8","v":0},{"$f":"SQRT((AR12^2)+(AR11^2)+(AR10^2)+(AR9^2)+(AR8^2))","v":24.596747752497688},{"$f":"AS12+AS11+AS10+AS9+AS8","v":29},{"$f":"SQRT((AT12^2)+(AT11^2)+(AT10^2)+(AT9^2)+(AT8^2))","v":33.391615714128001},{"$f":"AU12+AU11+AU10+AU9+AU8","v":0},{"$f":"SQRT((AV12^2)+(AV11^2)+(AV10^2)+(AV9^2)+(AV8^2))","v":24.596747752497688},{"$f":"AW12+AW11+AW10+AW9+AW8","v":232},{"$f":"SQRT((AX12^2)+(AX11^2)+(AX10^2)+(AX9^2)+(AX8^2))","v":95.739229159211433},{"$f":"AY12+AY11+AY10+AY9+AY8","v":0},{"$f":"SQRT((AZ12^2)+(AZ11^2)+(AZ10^2)+(AZ9^2)+(AZ8^2))","v":24.596747752497688},{"$f":"BA12+BA11+BA10+BA9+BA8","v":0},{"$f":"SQRT((BB12^2)+(BB11^2)+(BB10^2)+(BB9^2)+(BB8^2))","v":24.596747752497688},{"$f":"BC12+BC11+BC10+BC9+BC8","v":53},{"$f":"SQRT((BD12^2)+(BD11^2)+(BD10^2)+(BD9^2)+(BD8^2))","v":33.541019662496844},{"$f":"BE12+BE11+BE10+BE9+BE8","v":0},{"$f":"SQRT((BF12^2)+(BF11^2)+(BF10^2)+(BF9^2)+(BF8^2))","v":24.596747752497688},{"$f":"BG12+BG11+BG10+BG9+BG8","v":206},{"$f":"SQRT((BH12^2)+(BH11^2)+(BH10^2)+(BH9^2)+(BH8^2))","v":64.202803677098089},{"$f":"BI12+BI11+BI10+BI9+BI8","v":0},{"$f":"SQRT((BJ12^2)+(BJ11^2)+(BJ10^2)+(BJ9^2)+(BJ8^2))","v":24.596747752497688},{"$f":"BK12+BK11+BK10+BK9+BK8","v":0},{"$f":"SQRT((BL12^2)+(BL11^2)+(BL10^2)+(BL9^2)+(BL8^2))","v":24.596747752497688},{"$f":"BM12+BM11+BM10+BM9+BM8","v":50},{"$f":"SQRT((BN12^2)+(BN11^2)+(BN10^2)+(BN9^2)+(BN8^2))","v":31.160872901765767},{"$f":"BO12+BO11+BO10+BO9+BO8","v":19},{"$f":"SQRT((BP12^2)+(BP11^2)+(BP10^2)+(BP9^2)+(BP8^2))","v":15.264337522473747},{"$f":"BQ12+BQ11+BQ10+BQ9+BQ8","v":0},{"$f":"SQRT((BR12^2)+(BR11^2)+(BR10^2)+(BR9^2)+(BR8^2))","v":24.596747752497688},{"$f":"BS12+BS11+BS10+BS9+BS8","v":0},{"$f":"SQRT((BT12^2)+(BT11^2)+(BT10^2)+(BT9^2)+(BT8^2))","v":24.596747752497688},{"$f":"BU12+BU11+BU10+BU9+BU8","v":18},{"$f":"SQRT((BV12^2)+(BV11^2)+(BV10^2)+(BV9^2)+(BV8^2))","v":19.697715603592208},{"$f":"BW12+BW11+BW10+BW9+BW8","v":20},{"$f":"SQRT((BX12^2)+(BX11^2)+(BX10^2)+(BX9^2)+(BX8^2))","v":22.248595461286989},{"$f":"BY12+BY11+BY10+BY9+BY8","v":32},{"$f":"SQRT((BZ12^2)+(BZ11^2)+(BZ10^2)+(BZ9^2)+(BZ8^2))","v":33.286633954186478},{"$f":"CA12+CA11+CA10+CA9+CA8","v":46},{"$f":"SQRT((CB12^2)+(CB11^2)+(CB10^2)+(CB9^2)+(CB8^2))","v":28.071337695236398},{"$f":"CC12+CC11+CC10+CC9+CC8","v":0},{"$f":"SQRT((CD12^2)+(CD11^2)+(CD10^2)+(CD9^2)+(CD8^2))","v":24.596747752497688},{"$f":"CE12+CE11+CE10+CE9+CE8","v":0},{"$f":"SQRT((CF12^2)+(CF11^2)+(CF10^2)+(CF9^2)+(CF8^2))","v":24.596747752497688},{"$f":"CG12+CG11+CG10+CG9+CG8","v":0},{"$f":"SQRT((CH12^2)+(CH11^2)+(CH10^2)+(CH9^2)+(CH8^2))","v":24.596747752497688},{"$f":"CI12+CI11+CI10+CI9+CI8","v":220},{"$f":"SQRT((CJ12^2)+(CJ11^2)+(CJ10^2)+(CJ9^2)+(CJ8^2))","v":76.817966648434535}]
[null," 30% or More of HH Income",{"$f":"C13+C14+C15+C16","v":0},{"$f":"SQRT((D13^2)+(D14^2)+(D15^2)+(D16^2))","v":22},{"$f":"E13+E14+E15+E16","v":0},{"$f":"SQRT((F13^2)+(F14^2)+(F15^2)+(F16^2))","v":22},{"$f":"G13+G14+G15+G16","v":0},{"$f":"SQRT((H13^2)+(H14^2)+(H15^2)+(H16^2))","v":22},{"$f":"I13+I14+I15+I16","v":814},{"$f":"SQRT((J13^2)+(J14^2)+(J15^2)+(J16^2))","v":188.30029208686852},{"$f":"K13+K14+K15+K16","v":0},{"$f":"SQRT((L13^2)+(L14^2)+(L15^2)+(L16^2))","v":22},{"$f":"M13+M14+M15+M16","v":18},{"$f":"SQRT((N13^2)+(N14^2)+(N15^2)+(N16^2))","v":16.792855623746664},{"$f":"O13+O14+O15+O16","v":0},{"$f":"SQRT((P13^2)+(P14^2)+(P15^2)+(P16^2))","v":22},{"$f":"Q13+Q14+Q15+Q16","v":1},{"$f":"SQRT((R13^2)+(R14^2)+(R15^2)+(R16^2))","v":19.157244060668017},{"$f":"S13+S14+S15+S16","v":124},{"$f":"SQRT((T13^2)+(T14^2)+(T15^2)+(T16^2))","v":55.461698495448189},{"$f":"U13+U14+U15+U16","v":13},{"$f":"SQRT((V13^2)+(V14^2)+(V15^2)+(V16^2))","v":14.52583904633395},{"$f":"W13+W14+W15+W16","v":0},{"$f":"SQRT((X13^2)+(X14^2)+(X15^2)+(X16^2))","v":22},{"$f":"Y13+Y14+Y15+Y16","v":0},{"$f":"SQRT((Z13^2)+(Z14^2)+(Z15^2)+(Z16^2))","v":22},{"$f":"AA13+AA14+AA15+AA16","v":12},{"$f":"SQRT((AB13^2)+(AB14^2)+(AB15^2)+(AB16^2))","v":8.5440037453175304},{"$f":"AC13+AC14+AC15+AC16","v":0},{"$f":"SQRT((AD13^2)+(AD14^2)+(AD15^2)+(AD16^2))","v":22},{"$f":"AE13+AE14+AE15+AE16","v":0},{"$f":"SQRT((AF13^2)+(AF14^2)+(AF15^2)+(AF16^2))","v":22},{"$f":"AG13+AG14+AG15+AG16","v":5},{"$f":"SQRT((AH13^2)+(AH14^2)+(AH15^2)+(AH16^2))","v":16.340134638368191},{"$f":"AI13+AI14+AI15+AI16","v":3},{"$f":"SQRT((AJ13^2)+(AJ14^2)+(AJ15^2)+(AJ16^2))","v":15.968719422671311},{"$f":"AK13+AK14+AK15+AK16","v":0},{"$f":"SQRT((AL13^2)+(AL14^2)+(AL15^2)+(AL16^2))","v":22},{"$f":"AM13+AM14+AM15+AM16","v":55},{"$f":"SQRT((AN13^2)+(AN14^2)+(AN15^2)+(AN16^2))","v":34.957116585897069},{"$f":"AO13+AO14+AO15+AO16","v":0},{"$f":"SQRT((AP13^2)+(AP14^2)+(AP15^2)+(AP16^2))","v":22},{"$f":"AQ13+AQ14+AQ15+AQ16","v":0},{"$f":"SQRT((AR13^2)+(AR14^2)+(AR15^2)+(AR16^2))","v":22},{"$f":"AS13+AS14+AS15+AS16","v":18},{"$f":"SQRT((AT13^2)+(AT14^2)+(AT15^2)+(AT16^2))","v":11.135528725660043},{"$f":"AU13+AU14+AU15+AU16","v":0},{"$f":"SQRT((AV13^2)+(AV14^2)+(AV15^2)+(AV16^2))","v":22},{"$f":"AW13+AW14+AW15+AW16","v":108},{"$f":"SQRT((AX13^2)+(AX14^2)+(AX15^2)+(AX16^2))","v":66.92533152700851},{"$f":"AY13+AY14+AY15+AY16","v":0},{"$f":"SQRT((AZ13^2)+(AZ14^2)+(AZ15^2)+(AZ16^2))","v":22},{"$f":"BA13+BA14+BA15+BA16","v":0},{"$f":"SQRT((BB13^2)+(BB14^2)+(BB15^2)+(BB16^2))","v":22},{"$f":"BC13+BC14+BC15+BC16","v":22},{"$f":"SQRT((BD13^2)+(BD14^2)+(BD15^2)+(BD16^2))","v":23.065125189341593},{"$f":"BE13+BE14+BE15+BE16","v":0},{"$f":"SQRT((BF13^2)+(BF14^2)+(BF15^2)+(BF16^2))","v":22},{"$f":"BG13+BG14+BG15+BG16","v":91},{"$f":"SQRT((BH13^2)+(BH14^2)+(BH15^2)+(BH16^2))","v":41.844951905815357},{"$f":"BI13+BI14+BI15+BI16","v":0},{"$f":"SQRT((BJ13^2)+(BJ14^2)+(BJ15^2)+(BJ16^2))","v":22},{"$f":"BK13+BK14+BK15+BK16","v":0},{"$f":"SQRT((BL13^2)+(BL14^2)+(BL15^2)+(BL16^2))","v":22},{"$f":"BM13+BM14+BM15+BM16","v":33},{"$f":"SQRT((BN13^2)+(BN14^2)+(BN15^2)+(BN16^2))","v":28.740215726399828},{"$f":"BO13+BO14+BO15+BO16","v":14},{"$f":"SQRT((BP13^2)+(BP14^2)+(BP15^2)+(BP16^2))","v":23.065125189341593},{"$f":"BQ13+BQ14+BQ15+BQ16","v":0},{"$f":"SQRT((BR13^2)+(BR14^2)+(BR15^2)+(BR16^2))","v":22},{"$f":"BS13+BS14+BS15+BS16","v":0},{"$f":"SQRT((BT13^2)+(BT14^2)+(BT15^2)+(BT16^2))","v":22},{"$f":"BU13+BU14+BU15+BU16","v":14},{"$f":"SQRT((BV13^2)+(BV14^2)+(BV15^2)+(BV16^2))","v":19.467922333931785},{"$f":"BW13+BW14+BW15+BW16","v":4},{"$f":"SQRT((BX13^2)+(BX14^2)+(BX15^2)+(BX16^2))","v":19.697715603592208},{"$f":"BY13+BY14+BY15+BY16","v":14},{"$f":"SQRT((BZ13^2)+(BZ14^2)+(BZ15^2)+(BZ16^2))","v":23.57965224510319},{"$f":"CA13+CA14+CA15+CA16","v":16},{"$f":"SQRT((CB13^2)+(CB14^2)+(CB15^2)+(CB16^2))","v":13.228756555322953},{"$f":"CC13+CC14+CC15+CC16","v":0},{"$f":"SQRT((CD13^2)+(CD14^2)+(CD15^2)+(CD16^2))","v":22},{"$f":"CE13+CE14+CE15+CE16","v":0},{"$f":"SQRT((CF13^2)+(CF14^2)+(CF15^2)+(CF16^2))","v":22},{"$f":"CG13+CG14+CG15+CG16","v":0},{"$f":"SQRT((CH13^2)+(CH14^2)+(CH15^2)+(CH16^2))","v":22},{"$f":"CI13+CI14+CI15+CI16","v":162},{"$f":"SQRT((CJ13^2)+(CJ14^2)+(CJ15^2)+(CJ16^2))","v":76.085478246509041}]
[null," 30% to 34.9% of HH Income",{"$f":"C13","v":0},{"$f":"D13","v":11},{"$f":"E13","v":0},11,0,11,79,56,0,11,6,6,0,11,0,11,33,23,5,5,0,11,{"$f":"Y13","v":0},11,3,4,0,11,0,11,2,3,0,11,0,11,9,14,0,11,0,11,5,6,0,11,18,21,0,11,0,11,4,5,0,11,39,30,0,11,0,11,0,11,0,11,0,11,0,11,0,11,0,11,0,11,5,6,0,11,0,11,0,11,0,11]
[null," Less Than 35% of HH Income",{"$f":"C13+C12+C11+C10+C9+C8","v":0},{"$f":"SQRT((D13^2)+(D12^2)+(D11^2)+(D10^2)+(D9^2)+(D8^2))","v":26.944387170614959},{"$f":"E13+E12+E11+E10+E9+E8","v":0},{"$f":"SQRT((F13^2)+(F12^2)+(F11^2)+(F10^2)+(F9^2)+(F8^2))","v":26.944387170614959},{"$f":"G13+G12+G11+G10+G9+G8","v":0},{"$f":"SQRT((H13^2)+(H12^2)+(H11^2)+(H10^2)+(H9^2)+(H8^2))","v":26.944387170614959},{"$f":"I13+I12+I11+I10+I9+I8","v":968},{"$f":"SQRT((J13^2)+(J12^2)+(J11^2)+(J10^2)+(J9^2)+(J8^2))","v":219.99772726098786},{"$f":"K13+K12+K11+K10+K9+K8","v":0},{"$f":"SQRT((L13^2)+(L12^2)+(L11^2)+(L10^2)+(L9^2)+(L8^2))","v":26.944387170614959},{"$f":"M13+M12+M11+M10+M9+M8","v":50},{"$f":"SQRT((N13^2)+(N12^2)+(N11^2)+(N10^2)+(N9^2)+(N8^2))","v":30.166206257996713},{"$f":"O13+O12+O11+O10+O9+O8","v":0},{"$f":"SQRT((P13^2)+(P12^2)+(P11^2)+(P10^2)+(P9^2)+(P8^2))","v":26.944387170614959},{"$f":"Q13+Q12+Q11+Q10+Q9+Q8","v":8},{"$f":"SQRT((R13^2)+(R12^2)+(R11^2)+(R10^2)+(R9^2)+(R8^2))","v":25.865034312755125},{"$f":"S13+S12+S11+S10+S9+S8","v":135},{"$f":"SQRT((T13^2)+(T12^2)+(T11^2)+(T10^2)+(T9^2)+(T8^2))","v":46.808118953873802},{"$f":"U13+U12+U11+U10+U9+U8","v":19},{"$f":"SQRT((V13^2)+(V12^2)+(V11^2)+(V10^2)+(V9^2)+(V8^2))","v":14.798648586948742},{"$f":"W13+W12+W11+W10+W9+W8","v":0},{"$f":"SQRT((X13^2)+(X12^2)+(X11^2)+(X10^2)+(X9^2)+(X8^2))","v":26.944387170614959},{"$f":"Y13+Y12+Y11+Y10+Y9+Y8","v":0},{"$f":"SQRT((Z13^2)+(Z12^2)+(Z11^2)+(Z10^2)+(Z9^2)+(Z8^2))","v":26.944387170614959},{"$f":"AA13+AA12+AA11+AA10+AA9+AA8","v":47},{"$f":"SQRT((AB13^2)+(AB12^2)+(AB11^2)+(AB10^2)+(AB9^2)+(AB8^2))","v":25.573423705088842},{"$f":"AC13+AC12+AC11+AC10+AC9+AC8","v":0},{"$f":"SQRT((AD13^2)+(AD12^2)+(AD11^2)+(AD10^2)+(AD9^2)+(AD8^2))","v":26.944387170614959},{"$f":"AE13+AE12+AE11+AE10+AE9+AE8","v":0},{"$f":"SQRT((AF13^2)+(AF12^2)+(AF11^2)+(AF10^2)+(AF9^2)+(AF8^2))","v":26.944387170614959},{"$f":"AG13+AG12+AG11+AG10+AG9+AG8","v":4},{"$f":"SQRT((AH13^2)+(AH12^2)+(AH11^2)+(AH10^2)+(AH9^2)+(AH8^2))","v":22.405356502408079},{"$f":"AI13+AI12+AI11+AI10+AI9+AI8","v":8},{"$f":"SQRT((AJ13^2)+(AJ12^2)+(AJ11^2)+(AJ10^2)+(AJ9^2)+(AJ8^2))","v":21.2602916254693},{"$f":"AK13+AK12+AK11+AK10+AK9+AK8","v":0},{"$f":"SQRT((AL13^2)+(AL12^2)+(AL11^2)+(AL10^2)+(AL9^2)+(AL8^2))","v":26.944387170614959},{"$f":"AM13+AM12+AM11+AM10+AM9+AM8","v":218},{"$f":"SQRT((AN13^2)+(AN12^2)+(AN11^2)+(AN10^2)+(AN9^2)+(AN8^2))","v":90.404645898316531},{"$f":"AO13+AO12+AO11+AO10+AO9+AO8","v":0},{"$f":"SQRT((AP13^2)+(AP12^2)+(AP11^2)+(AP10^2)+(AP9^2)+(AP8^2))","v":26.944387170614959},{"$f":"AQ13+AQ12+AQ11+AQ10+AQ9+AQ8","v":0},{"$f":"SQRT((AR13^2)+(AR12^2)+(AR11^2)+(AR10^2)+(AR9^2)+(AR8^2))","v":26.944387170614959},{"$f":"AS13+AS12+AS11+AS10+AS9+AS8","v":34},{"$f":"SQRT((AT13^2)+(AT12^2)+(AT11^2)+(AT10^2)+(AT9^2)+(AT8^2))","v":33.926390907374746},{"$f":"AU13+AU12+AU11+AU10+AU9+AU8","v":0},{"$f":"SQRT((AV13^2)+(AV12^2)+(AV11^2)+(AV10^2)+(AV9^2)+(AV8^2))","v":26.944387170614959},{"$f":"AW13+AW12+AW11+AW10+AW9+AW8","v":250},{"$f":"SQRT((AX13^2)+(AX12^2)+(AX11^2)+(AX10^2)+(AX9^2)+(AX8^2))","v":98.015304927342854},{"$f":"AY13+AY12+AY11+AY10+AY9+AY8","v":0},{"$f":"SQRT((AZ13^2)+(AZ12^2)+(AZ11^2)+(AZ10^2)+(AZ9^2)+(AZ8^2))","v":26.944387170614959},{"$f":"BA13+BA12+BA11+BA10+BA9+BA8","v":0},{"$f":"SQRT((BB13^2)+(BB12^2)+(BB11^2)+(BB10^2)+(BB9^2)+(BB8^2))","v":26.944387170614959},{"$f":"BC13+BC12+BC11+BC10+BC9+BC8","v":57},{"$f":"SQRT((BD13^2)+(BD12^2)+(BD11^2)+(BD10^2)+(BD9^2)+(BD8^2))","v":33.911649915626342},{"$f":"BE13+BE12+BE11+BE10+BE9+BE8","v":0},{"$f":"SQRT((BF13^2)+(BF12^2)+(BF11^2)+(BF10^2)+(BF9^2)+(BF8^2))","v":26.944387170614959},{"$f":"BG13+BG12+BG11+BG10+BG9+BG8","v":245},{"$f":"SQRT((BH13^2)+(BH12^2)+(BH11^2)+(BH10^2)+(BH9^2)+(BH8^2))","v":70.866070866106298},{"$f":"BI13+BI12+BI11+BI10+BI9+BI8","v":0},{"$f":"SQRT((BJ13^2)+(BJ12^2)+(BJ11^2)+(BJ10^2)+(BJ9^2)+(BJ8^2))","v":26.944387170614959},{"$f":"BK13+BK12+BK11+BK10+BK9+BK8","v":0},{"$f":"SQRT((BL13^2)+(BL12^2)+(BL11^2)+(BL10^2)+(BL9^2)+(BL8^2))","v":26.944387170614959},{"$f":"BM13+BM12+BM11+BM10+BM9+BM8","v":50},{"$f":"SQRT((BN13^2)+(BN12^2)+(BN11^2)+(BN10^2)+(BN9^2)+(BN8^2))","v":33.045423283716609},{"$f":"BO13+BO12+BO11+BO10+BO9+BO8","v":19},{"$f":"SQRT((BP13^2)+(BP12^2)+(BP11^2)+(BP10^2)+(BP9^2)+(BP8^2))","v":18.814887722226779},{"$f":"BQ13+BQ12+BQ11+BQ10+BQ9+BQ8","v":0},{"$f":"SQRT((BR13^2)+(BR12^2)+(BR11^2)+(BR10^2)+(BR9^2)+(BR8^2))","v":26.944387170614959},{"$f":"BS13+BS12+BS11+BS10+BS9+BS8","v":0},{"$f":"SQRT((BT13^2)+(BT12^2)+(BT11^2)+(BT10^2)+(BT9^2)+(BT8^2))","v":26.944387170614959},{"$f":"BU13+BU12+BU11+BU10+BU9+BU8","v":18},{"$f":"SQRT((BV13^2)+(BV12^2)+(BV11^2)+(BV10^2)+(BV9^2)+(BV8^2))","v":22.561028345356956},{"$f":"BW13+BW12+BW11+BW10+BW9+BW8","v":20},{"$f":"SQRT((BX13^2)+(BX12^2)+(BX11^2)+(BX10^2)+(BX9^2)+(BX8^2))","v":24.819347291981714},{"$f":"BY13+BY12+BY11+BY10+BY9+BY8","v":32},{"$f":"SQRT((BZ13^2)+(BZ12^2)+(BZ11^2)+(BZ10^2)+(BZ9^2)+(BZ8^2))","v":35.057096285916209},{"$f":"CA13+CA12+CA11+CA10+CA9+CA8","v":51},{"$f":"SQRT((CB13^2)+(CB12^2)+(CB11^2)+(CB10^2)+(CB9^2)+(CB8^2))","v":28.705400188814647},{"$f":"CC13+CC12+CC11+CC10+CC9+CC8","v":0},{"$f":"SQRT((CD13^2)+(CD12^2)+(CD11^2)+(CD10^2)+(CD9^2)+(CD8^2))","v":26.944387170614959},{"$f":"CE13+CE12+CE11+CE10+CE9+CE8","v":0},{"$f":"SQRT((CF13^2)+(CF12^2)+(CF11^2)+(CF10^2)+(CF9^2)+(CF8^2))","v":26.944387170614959},{"$f":"CG13+CG12+CG11+CG10+CG9+CG8","v":0},{"$f":"SQRT((CH13^2)+(CH12^2)+(CH11^2)+(CH10^2)+(CH9^2)+(CH8^2))","v":26.944387170614959},{"$f":"CI13+CI12+CI11+CI10+CI9+CI8","v":220},{"$f":"SQRT((CJ13^2)+(CJ12^2)+(CJ11^2)+(CJ10^2)+(CJ9^2)+(CJ8^2))","v":77.601546376344842}]
[null," 35% or More of HH Income",{"$f":"C14+C15+C16","v":0},{"$f":"SQRT((D14^2)+(D15^2)+(D16^2))","v":19.05255888325765},{"$f":"E14+E15+E16","v":0},{"$f":"SQRT((F14^2)+(F15^2)+(F16^2))","v":19.05255888325765},{"$f":"G14+G15+G16","v":0},{"$f":"SQRT((H14^2)+(H15^2)+(H16^2))","v":19.05255888325765},{"$f":"I14+I15+I16","v":735},{"$f":"SQRT((J14^2)+(J15^2)+(J16^2))","v":179.78042162593789},{"$f":"K14+K15+K16","v":0},{"$f":"SQRT((L14^2)+(L15^2)+(L16^2))","v":19.05255888325765},{"$f":"M14+M15+M16","v":12},{"$f":"SQRT((N14^2)+(N15^2)+(N16^2))","v":15.684387141358123},{"$f":"O14+O15+O16","v":0},{"$f":"SQRT((P14^2)+(P15^2)+(P16^2))","v":19.05255888325765},{"$f":"Q14+Q15+Q16","v":1},{"$f":"SQRT((R14^2)+(R15^2)+(R16^2))","v":15.684387141358123},{"$f":"S14+S15+S16","v":91},{"$f":"SQRT((T14^2)+(T15^2)+(T16^2))","v":50.467811523782167},{"$f":"U14+U15+U16","v":8},{"$f":"SQRT((V14^2)+(V15^2)+(V16^2))","v":13.638181696985855},{"$f":"W14+W15+W16","v":0},{"$f":"SQRT((X14^2)+(X15^2)+(X16^2))","v":19.05255888325765},{"$f":"Y14+Y15+Y16","v":0},{"$f":"SQRT((Z14^2)+(Z15^2)+(Z16^2))","v":19.05255888325765},{"$f":"AA14+AA15+AA16","v":9},{"$f":"SQRT((AB14^2)+(AB15^2)+(AB16^2))","v":7.5498344352707498},{"$f":"AC14+AC15+AC16","v":0},{"$f":"SQRT((AD14^2)+(AD15^2)+(AD16^2))","v":19.05255888325765},{"$f":"AE14+AE15+AE16","v":0},{"$f":"SQRT((AF14^2)+(AF15^2)+(AF16^2))","v":19.05255888325765},{"$f":"AG14+AG15+AG16","v":3},{"$f":"SQRT((AH14^2)+(AH15^2)+(AH16^2))","v":16.06237840420901},{"$f":"AI14+AI15+AI16","v":3},{"$f":"SQRT((AJ14^2)+(AJ15^2)+(AJ16^2))","v":11.575836902790225},{"$f":"AK14+AK15+AK16","v":0},{"$f":"SQRT((AL14^2)+(AL15^2)+(AL16^2))","v":19.05255888325765},{"$f":"AM14+AM15+AM16","v":46},{"$f":"SQRT((AN14^2)+(AN15^2)+(AN16^2))","v":32.03123475609393},{"$f":"AO14+AO15+AO16","v":0},{"$f":"SQRT((AP14^2)+(AP15^2)+(AP16^2))","v":19.05255888325765},{"$f":"AQ14+AQ15+AQ16","v":0},{"$f":"SQRT((AR14^2)+(AR15^2)+(AR16^2))","v":19.05255888325765},{"$f":"AS14+AS15+AS16","v":13},{"$f":"SQRT((AT14^2)+(AT15^2)+(AT16^2))","v":9.3808315196468595},{"$f":"AU14+AU15+AU16","v":0},{"$f":"SQRT((AV14^2)+(AV15^2)+(AV16^2))","v":19.05255888325765},{"$f":"AW14+AW15+AW16","v":90},{"$f":"SQRT((AX14^2)+(AX15^2)+(AX16^2))","v":63.545259461269019},{"$f":"AY14+AY15+AY16","v":0},{"$f":"SQRT((AZ14^2)+(AZ15^2)+(AZ16^2))","v":19.05255888325765},{"$f":"BA14+BA15+BA16","v":0},{"$f":"SQRT((BB14^2)+(BB15^2)+(BB16^2))","v":19.05255888325765},{"$f":"BC14+BC15+BC16","v":18},{"$f":"SQRT((BD14^2)+(BD15^2)+(BD16^2))","v":22.516660498395403},{"$f":"BE14+BE15+BE16","v":0},{"$f":"SQRT((BF14^2)+(BF15^2)+(BF16^2))","v":19.05255888325765},{"$f":"BG14+BG15+BG16","v":52},{"$f":"SQRT((BH14^2)+(BH15^2)+(BH16^2))","v":29.171904291629644},{"$f":"BI14+BI15+BI16","v":0},{"$f":"SQRT((BJ14^2)+(BJ15^2)+(BJ16^2))","v":19.05255888325765},{"$f":"BK14+BK15+BK16","v":0},{"$f":"SQRT((BL14^2)+(BL15^2)+(BL16^2))","v":19.05255888325765},{"$f":"BM14+BM15+BM16","v":33},{"$f":"SQRT((BN14^2)+(BN15^2)+(BN16^2))","v":26.551836094703507},{"$f":"BO14+BO15+BO16","v":14},{"$f":"SQRT((BP14^2)+(BP15^2)+(BP16^2))","v":20.273134932713294},{"$f":"BQ14+BQ15+BQ16","v":0},{"$f":"SQRT((BR14^2)+(BR15^2)+(BR16^2))","v":19.05255888325765},{"$f":"BS14+BS15+BS16","v":0},{"$f":"SQRT((BT14^2)+(BT15^2)+(BT16^2))","v":19.05255888325765},{"$f":"BU14+BU15+BU16","v":14},{"$f":"SQRT((BV14^2)+(BV15^2)+(BV16^2))","v":16.06237840420901},{"$f":"BW14+BW15+BW16","v":4},{"$f":"SQRT((BX14^2)+(BX15^2)+(BX16^2))","v":16.340134638368191},{"$f":"BY14+BY15+BY16","v":14},{"$f":"SQRT((BZ14^2)+(BZ15^2)+(BZ16^2))","v":20.85665361461421},{"$f":"CA14+CA15+CA16","v":11},{"$f":"SQRT((CB14^2)+(CB15^2)+(CB16^2))","v":11.789826122551595},{"$f":"CC14+CC15+CC16","v":0},{"$f":"SQRT((CD14^2)+(CD15^2)+(CD16^2))","v":19.05255888325765},{"$f":"CE14+CE15+CE16","v":0},{"$f":"SQRT((CF14^2)+(CF15^2)+(CF16^2))","v":19.05255888325765},{"$f":"CG14+CG15+CG16","v":0},{"$f":"SQRT((CH14^2)+(CH15^2)+(CH16^2))","v":19.05255888325765},{"$f":"CI14+CI15+CI16","v":162},{"$f":"SQRT((CJ14^2)+(CJ15^2)+(CJ16^2))","v":75.286120898874842}]
[null," 50% or More of HH Income",{"$f":"C16","v":0},{"$f":"D16","v":11},{"$f":"E16","v":0},11,0,11,370,100,0,11,4,5,0,11,1,2,40,29,5,7,0,11,{"$f":"Y16","v":0},11,3,5,0,11,0,11,0,11,2,3,0,11,46,28,0,11,0,11,3,4,0,11,81,61,0,11,0,11,0,11,0,11,33,21,0,11,0,11,16,20,0,11,0,11,0,11,12,11,4,5,11,17,2,3,0,11,0,11,0,11,117,68]
[null,"Not computed",{"$f":"C17","v":0},{"$f":"D17","v":11},0,11,0,11,46,31,0,11,10,11,0,11,2,5,30,29,22,19,0,11,{"$f":"Y17","v":0},11,4,6,0,11,0,11,6,5,7,8,0,11,19,22,0,11,0,11,3,5,0,11,7,10,0,11,0,11,15,10,0,11,27,20,0,11,0,11,4,5,2,3,0,11,0,11,5,6,11,12,2,3,9,11,0,11,0,11,2,3,21,33]
[]
[]
[null,"B25070. GROSS RENT AS A PERCENTAGE OF HOUSEHOLD INCOME IN THE PAST 12 MONTHS"]
[null,"Universe:  RENTER-OCCUPIED HOUSING UNITS"]
[null,"Data Set: 2010-2014 American Community Survey 5-Year Estimates"]
[]
[null,null,"Atkinson and Gilmanton Grant",null,"Bean's Grant",null,"Bean's Purchase",null,"Berlin",null,"Cambridge",null,"Carroll",null,"Chandler's Purchase",null,"Clarksville",null,"Colebrook",null,"Columbia",null,"Crawford's Purchase",null,"Cutt's Grant",null,"Dalton",null,"Dix's Grant",null,"Dixville",null,"Dummer",null,"Errol",null,"Erving's Location",null,"Gorham",null,"Greens Grant",null,"Hadley's Purchase",null,"Jefferson",null,"Kilkenny",null,"Lancaster",null,"Low and Burbank's Grant",null,"Martin's Location",null,"Milan",null,"Millsfield",null,"Northumberland",null,"Odell",null,"Pinkham's Grant",null,"Pittsburg",null,"Randolph",null,"Sargent's Purchase",null,"Second College Grant",null,"Shelburne",null,"Stark",null,"Stewartstown",null,"Stratford",null,"Success",null,"Thompson and Meserves Purchase",null,"Wentworth's Location",null,"Whitefield"]
[null,null,"Estimate","Margin Of Error","Estimate","Margin Of Error","Estimate","Margin Of Error","Estimate","Margin Of Error","Estimate","Margin Of Error","Estimate","Margin Of Error","Estimate","Margin Of Error","Estimate","Margin Of Error","Estimate","Margin Of Error","Estimate","Margin Of Error","Estimate","Margin Of Error","Estimate","Margin Of Error","Estimate","Margin Of Error","Estimate","Margin Of Error","Estimate","Margin Of Error","Estimate","Margin Of Error","Estimate","Margin Of Error","Estimate","Margin Of Error","Estimate","Margin Of Error","Estimate","Margin Of Error","Estimate","Margin Of Error","Estimate","Margin Of Error","Estimate","Margin Of Error","Estimate","Margin Of Error","Estimate","Margin Of Error","Estimate","Margin Of Error","Estimate","Margin Of Error","Estimate","Margin Of Error","Estimate","Margin Of Error","Estimate","Margin Of Error","Estimate","Margin Of Error","Estimate","Margin Of Error","Estimate","Margin Of Error","Estimate","Margin Of Error","Estimate","Margin Of Error","Estimate","Margin Of Error","Estimate","Margin Of Error","Estimate","Margin Of Error","Estimate","Margin Of Error","Estimate","Margin Of Error","Estimate","Margin Of Error","Estimate","Margin Of Error","Estimate","Margin Of Error"]
[null,"Total:",0,11,0,11,0,11,1651,226,0,11,95,36,0,11,17,11,354,73,61,31,0,11,0,11,79,33,4,6,3,6,13,13,37,19,0,11,363,96,0,11,0,11,0,11,0,11,477,113,0,11,0,11,0,11,0,11,0,11,0,11,0,11,91,34,22,15,5,6,0,11,24,16,36,13,101,39,0,11,0,11,0,11,17,16,380,84]
[null,"Less than 10.0 percent",0,11,0,11,0,11,54,45,0,11,5,8,0,11,0,11,7,11,0,11,0,11,0,11,0,11,4,6,3,6,7,10,3,4,0,11,16,16,0,11,0,11,0,11,0,11,15,17,0,11,0,11,0,11,0,11,0,11,0,11,0,11,0,11,1,2,5,6,0,11,0,11,0,11,3,4,0,11,0,11,0,11,0,11,7,10]
[null,"10.0 to 14.9 percent",0,11,0,11,0,11,68,35,0,11,16,18,0,11,3,4,60,35,13,10,0,11,0,11,10,8,0,11,0,11,1,2,0,11,0,11,20,19,0,11,0,11,0,11,0,11,64,59,0,11,0,11,0,11,0,11,0,11,0,11,0,11,0,11,3,4,0,11,0,11,2,4,3,4,2,3,0,11,0,11,0,11,0,11,4,6]
[null,"15.0 to 19.9 percent",0,11,0,11,0,11,197,102,0,11,0,11,0,11,0,11,44,25,0,11,0,11,0,11,12,14,0,11,0,11,0,11,10,11,0,11,94,75,0,11,0,11,0,11,0,11,17,18,0,11,0,11,0,11,0,11,0,11,0,11,0,11,3,4,1,2,0,11,0,11,6,9,0,11,11,15,0,11,0,11,0,11,5,7,14,12]
[null,"20.0 to 24.9 percent",0,11,0,11,0,11,254,116,0,11,26,18,0,11,0,11,35,21,9,13,0,11,0,11,10,14,0,11,0,11,1,2,6,10,0,11,56,40,0,11,0,11,0,11,0,11,55,40,0,11,0,11,0,11,0,11,0,11,0,11,0,11,13,18,3,5,0,11,0,11,5,7,6,7,12,17,0,11,0,11,0,11,0,11,84,48]
[null,"25.0 to 29.9 percent",0,11,0,11,0,11,221,82,0,11,2,4,0,11,2,5,41,17,8,10,0,11,0,11,0,11,0,11,0,11,0,11,4,6,0,11,37,40,0,11,0,11,0,11,0,11,50,49,0,11,0,11,0,11,0,11,0,11,0,11,0,11,27,24,6,8,0,11,0,11,0,11,7,9,48,31,0,11,0,11,0,11,0,11,62,36]
[null,"30.0 to 34.9 percent",0,11,0,11,0,11,148,80,0,11,26,22,0,11,0,11,44,27,0,11,0,11,0,11,0,11,0,11,0,11,1,2,2,3,0,11,41,47,0,11,0,11,0,11,0,11,56,54,0,11,0,11,0,11,0,11,0,11,0,11,0,11,9,10,0,11,0,11,0,11,1,3,3,4,5,8,0,11,0,11,0,11,0,11,28,25]
[null,"35.0 to 39.9 percent",0,11,0,11,0,11,60,37,0,11,6,9,0,11,3,4,6,9,0,11,0,11,0,11,6,11,0,11,0,11,0,11,0,11,0,11,40,43,0,11,0,11,0,11,0,11,23,26,0,11,0,11,0,11,0,11,0,11,0,11,0,11,10,14,3,5,0,11,0,11,0,11,3,4,2,5,0,11,0,11,0,11,0,11,27,32]
[null,"40.0 to 49.9 percent",0,11,0,11,0,11,67,42,0,11,0,11,0,11,2,3,22,16,7,8,0,11,0,11,0,11,0,11,0,11,2,4,0,11,0,11,0,11,0,11,0,11,0,11,0,11,89,75,0,11,0,11,0,11,0,11,0,11,0,11,0,11,0,11,5,9,0,11,0,11,0,11,0,11,0,11,0,11,0,11,0,11,0,11,50,41]
[null,"50.0 percent or more",0,11,0,11,0,11,501,111,0,11,8,12,0,11,5,5,60,38,12,15,0,11,0,11,6,6,0,11,0,11,1,2,4,7,0,11,59,35,0,11,0,11,0,11,0,11,70,48,0,11,0,11,0,11,0,11,0,11,0,11,0,11,20,18,0,11,0,11,0,11,3,5,0,11,5,7,0,11,0,11,0,11,1,3,88,36]
[null,"Not computed",0,11,0,11,0,11,81,58,0,11,6,5,0,11,2,4,35,30,12,13,0,11,0,11,35,25,0,11,0,11,0,11,8,7,0,11,0,11,0,11,0,11,0,11,0,11,38,27,0,11,0,11,0,11,0,11,0,11,0,11,0,11,9,10,0,11,0,11,0,11,7,6,14,10,13,16,0,11,0,11,0,11,11,15,16,14]
[]
[]
[]
[]
[]
[]
[]
[]
[]
[]
[]
[]
[]
[]
[]
[]
[]
[]
[]
[]
[]
[]
[]
[]
[]
[]
[]
[]
[]
[]
[]
[]
[]
[null,"Calculated B25070. GROSS RENT AS A PERCENTAGE OF HOUSEHOLD INCOME IN THE PAST 12 MONTHS"]
[null,"Universe:  RENTER-OCCUPIED HOUSING UNITS"]
[null,"Data Set: 2010-2014 American Community Survey 3-Year Estimates"]
[]
[null,null,"Atkinson and Gilmanton Grant",null,"Bean's Grant",null,"Bean's Purchase",null,"Berlin",null,"Cambridge",null,"Carroll",null,"Chandler's Purchase",null,"Clarksville",null,"Colebrook",null,"Columbia",null,"Crawford's Purchase",null,"Cutt's Grant",null,"Dalton",null,"Dix's Grant",null,"Dixville",null,"Dummer",null,"Errol",null,"Erving's Location",null,"Gorham",null,"Greens Grant",null,"Hadley's Purchase",null,"Jefferson",null,"Kilkenny",null,"Lancaster",null,"Low and Burbank's Grant",null,"Martin's Location",null,"Milan",null,"Millsfield",null,"Northumberland",null,"Odell",null,"Pinkham's Grant",null,"Pittsburg",null,"Randolph",null,"Sargent's Purchase",null,"Second College Grant",null,"Shelburne",null,"Stark",null,"Stewartstown",null,"Stratford",null,"Success",null,"Thompson and Meserves Purchase",null,"Wentworth's Location",null,"Whitefield"]
[null," ","Estimate","Margin of Error","Estimate","Margin of Error","Estimate","Margin of Error","Estimate","Margin of Error","Estimate","Margin of Error","Estimate","Margin of Error","Estimate","Margin of Error","Estimate","Margin of Error","Estimate","Margin of Error","Estimate","Margin of Error","Estimate","Margin of Error","Estimate","Margin of Error","Estimate","Margin of Error","Estimate","Margin of Error","Estimate","Margin of Error","Estimate","Margin of Error","Estimate","Margin of Error","Estimate","Margin of Error","Estimate","Margin of Error","Estimate","Margin of Error","Estimate","Margin of Error","Estimate","Margin of Error","Estimate","Margin of Error","Estimate","Margin of Error","Estimate","Margin of Error","Estimate","Margin of Error","Estimate","Margin of Error","Estimate","Margin of Error","Estimate","Margin of Error","Estimate","Margin of Error","Estimate","Margin of Error","Estimate","Margin of Error","Estimate","Margin of Error","Estimate","Margin of Error","Estimate","Margin of Error","Estimate","Margin of Error","Estimate","Margin of Error","Estimate","Margin of Error","Estimate","Margin of Error","Estimate","Margin of Error","Estimate","Margin of Error","Estimate","Margin of Error","Estimate","Margin of Error"]
[null,"Total:",0,11,0,11,0,11,1651,226,0,11,95,36,0,11,17,11,354,73,61,31,0,11,0,11,79,33,4,6,3,6,13,13,37,19,0,11,363,96,0,11,0,11,0,11,0,11,477,113,0,11,0,11,0,11,0,11,0,11,0,11,0,11,91,34,22,15,5,6,0,11,24,16,36,13,101,39,0,11,0,11,0,11,17,16,380,84]
[null,"Less than 20% of HH Income",0,19.05255888325765,0,19.05255888325765,0,19.05255888325765,319,116.8503316212667,0,19.05255888325765,21,22.561028345356956,0,19.05255888325765,3,16.06237840420901,111,44.395945760846224,13,18.493242008906929,0,19.05255888325765,0,19.05255888325765,22,19.519221295943137,4,16.673332000533065,3,16.673332000533065,8,15,13,16.06237840420901,0,19.05255888325765,130,79.006328860414726,0,19.05255888325765,0,19.05255888325765,0,19.05255888325765,0,19.05255888325765,96,63.984373092185564,0,19.05255888325765,0,19.05255888325765,0,19.05255888325765,0,19.05255888325765,0,19.05255888325765,0,19.05255888325765,0,19.05255888325765,3,16.06237840420901,5,4.8989794855663558,5,16.673332000533065,0,19.05255888325765,8,14.7648230602334,3,16.06237840420901,16,15.811388300841896,0,19.05255888325765,0,19.05255888325765,0,19.05255888325765,5,17.058722109231979,25,16.733200530681511]
[null," 20% to 24.9% of HH Income",0,11,0,11,0,11,254,116,0,11,26,18,0,11,0,11,35,21,9,13,0,11,0,11,10,14,0,11,0,11,1,2,6,10,0,11,56,40,0,11,0,11,0,11,0,11,55,40,0,11,0,11,0,11,0,11,0,11,0,11,0,11,13,18,3,5,0,11,0,11,5,7,6,7,12,17,0,11,0,11,0,11,0,11,84,48]
[null," 25% to 29.9% of HH Income",0,11,0,11,0,11,221,82,0,11,2,4,0,11,2,5,41,17,8,10,0,11,0,11,0,11,0,11,0,11,0,11,4,6,0,11,37,40,0,11,0,11,0,11,0,11,50,49,0,11,0,11,0,11,0,11,0,11,0,11,0,11,27,24,6,8,0,11,0,11,0,11,7,9,48,31,0,11,0,11,0,11,0,11,62,36]
[null," Less Than 30% of HH Income",0,24.596747752497688,0,24.596747752497688,0,24.596747752497688,794,183.940207676299,0,24.596747752497688,49,29.13760456866693,0,24.596747752497688,5,20.09975124224178,187,51.97114584074513,30,24.718414188616549,0,24.596747752497688,0,24.596747752497688,32,26.419689627245813,4,22.803508501982758,3,22.803508501982758,9,18.708286933869708,23,19.849433241279208,0,24.596747752497688,223,97.169954203961623,0,24.596747752497688,0,24.596747752497688,0,24.596747752497688,0,24.596747752497688,201,89.972217934204551,0,24.596747752497688,0,24.596747752497688,0,24.596747752497688,0,24.596747752497688,0,24.596747752497688,0,24.596747752497688,0,24.596747752497688,43,34.02939905434711,14,10.63014581273465,5,22.803508501982758,0,24.596747752497688,13,19.697715603592208,16,19.697715603592208,76,38.729833462074168,0,24.596747752497688,0,24.596747752497688,0,24.596747752497688,5,23.086792761230392,171,62.289646009589745]
[null," 30% or More of HH Income",0,22,0,22,0,22,776,147.83098457360012,0,22,40,28.809720581775867,0,22,10,13.076696830622021,132,50.099900199501398,19,23.043437243605826,0,22,0,22,12,19.974984355438178,0,22,0,22,4,12.041594578792296,6,17.320508075688775,0,22,140,73.511903797956421,0,22,0,22,0,22,0,22,238,107.33592129385204,0,22,0,22,0,22,0,22,0,22,0,22,0,22,39,27.221315177632398,8,18.654758106177631,0,22,0,22,4,16.61324772583615,6,16.552945357246848,12,16.093476939431081,0,22,0,22,0,22,1,19.28730152198591,193,68.01470429252781]
[null," 30% to 34.9% of HH Income",0,11,0,11,0,11,148,80,0,11,26,22,0,11,0,11,44,27,0,11,0,11,0,11,0,11,0,11,0,11,1,2,2,3,0,11,41,47,0,11,0,11,0,11,0,11,56,54,0,11,0,11,0,11,0,11,0,11,0,11,0,11,9,10,0,11,0,11,0,11,1,3,3,4,5,8,0,11,0,11,0,11,0,11,28,25]
[null," Less Than 35% of HH Income",0,26.944387170614959,0,26.944387170614959,0,26.944387170614959,942,200.58414693090776,0,26.944387170614959,75,36.510272527057367,0,26.944387170614959,5,22.912878474779198,231,58.566201857385288,30,27.055498516937366,0,26.944387170614959,0,26.944387170614959,32,28.61817604250837,4,25.317977802344327,3,25.317977802344327,10,18.814887722226779,25,20.074859899884732,0,26.944387170614959,264,107.93979803575695,0,26.944387170614959,0,26.944387170614959,0,26.944387170614959,0,26.944387170614959,257,104.93331215586402,0,26.944387170614959,0,26.944387170614959,0,26.944387170614959,0,26.944387170614959,0,26.944387170614959,0,26.944387170614959,0,26.944387170614959,52,35.468295701936398,14,15.297058540778355,5,25.317977802344327,0,26.944387170614959,14,19.924858845171276,19,20.09975124224178,81,39.547439866570379,0,26.944387170614959,0,26.944387170614959,0,26.944387170614959,5,25.573423705088842,199,67.119296778199342]
[null," 35% or More of HH Income",0,19.05255888325765,0,19.05255888325765,0,19.05255888325765,628,124.31411826498227,0,19.05255888325765,14,18.601075237738275,0,19.05255888325765,10,7.0710678118654755,88,42.201895692018383,19,20.248456731316587,0,19.05255888325765,0,19.05255888325765,12,16.673332000533065,0,19.05255888325765,0,19.05255888325765,3,11.874342087037917,4,17.058722109231979,0,19.05255888325765,99,56.524331044250317,0,19.05255888325765,0,19.05255888325765,0,19.05255888325765,0,19.05255888325765,182,92.763139231054481,0,19.05255888325765,0,19.05255888325765,0,19.05255888325765,0,19.05255888325765,0,19.05255888325765,0,19.05255888325765,0,19.05255888325765,30,25.317977802344327,8,15.066519173319364,0,19.05255888325765,0,19.05255888325765,3,16.340134638368191,3,16.06237840420901,7,13.964240043768941,0,19.05255888325765,0,19.05255888325765,0,19.05255888325765,1,15.842979517754859,165,63.253458403473878]
[null," 50% or More of HH Income",0,11,0,11,0,11,501,111,0,11,8,12,0,11,5,5,60,38,12,15,0,11,0,11,6,6,0,11,0,11,1,2,4,7,0,11,59,35,0,11,0,11,0,11,0,11,70,48,0,11,0,11,0,11,0,11,0,11,0,11,0,11,20,18,0,11,0,11,0,11,3,5,0,11,5,7,0,11,0,11,0,11,1,3,88,36]
[null,"Not computed",0,11,0,11,0,11,81,58,0,11,6,5,0,11,2,4,35,30,12,13,0,11,0,11,35,25,0,11,0,11,0,11,8,7,0,11,0,11,0,11,0,11,0,11,0,11,38,27,0,11,0,11,0,11,0,11,0,11,0,11,0,11,9,10,0,11,0,11,0,11,7,6,14,10,13,16,0,11,0,11,0,11,11,15,16,14]
[]
[]
[]
[]
[null,"B25070. GROSS RENT AS A PERCENTAGE OF HOUSEHOLD INCOME IN THE PAST 12 MONTHS"]
[null,"Universe:  RENTER-OCCUPIED HOUSING UNITS"]
[null,"Data Set: 2005-2009 American Community Survey 5-Year Estimates"]
[]
[null,null,"Atkinson and Gilmanton Grant",null,"Bean's Grant",null,"Bean's Purchase",null,"Berlin",null,"Cambridge",null,"Carroll",null,"Chandler's Purchase",null,"Clarksville",null,"Colebrook",null,"Columbia",null,"Crawford's Purchase",null,"Cutt's Grant",null,"Dalton",null,"Dix's Grant",null,"Dixville Township",null,"Dummer",null,"Errol",null,"Erving's Location",null,"Gorham",null,"Greens Grant",null,"Hadley's Purchase",null,"Jefferson",null,"Kilkenny Township",null,"Lancaster",null,"Low and Burbank's Grant",null,"Martin's Location",null,"Milan",null,"Millsfield Township",null,"Northumberland",null,"Odell Township",null,"Pinkham's Grant",null,"Pittsburg",null,"Randolph",null,"Sargent's Purchase",null,"Second College Grant",null,"Shelburne",null,"Stark",null,"Stewartstown",null,"Stratford",null,"Success Township",null,"Thompson and Meserves Purchase",null,"Wentworth's Location",null,"Whitefield"]
[null,null,"Estimate","Margin Of Error","Estimate","Margin Of Error","Estimate","Margin Of Error","Estimate","Margin Of Error","Estimate","Margin Of Error","Estimate","Margin Of Error","Estimate","Margin Of Error","Estimate","Margin Of Error","Estimate","Margin Of Error","Estimate","Margin Of Error","Estimate","Margin Of Error","Estimate","Margin Of Error","Estimate","Margin Of Error","Estimate","Margin Of Error","Estimate","Margin Of Error","Estimate","Margin Of Error","Estimate","Margin Of Error","Estimate","Margin Of Error","Estimate","Margin Of Error","Estimate","Margin Of Error","Estimate","Margin Of Error","Estimate","Margin Of Error","Estimate","Margin Of Error","Estimate","Margin Of Error","Estimate","Margin Of Error","Estimate","Margin Of Error","Estimate","Margin Of Error","Estimate","Margin Of Error","Estimate","Margin Of Error","Estimate","Margin Of Error","Estimate","Margin Of Error","Estimate","Margin Of Error","Estimate","Margin Of Error","Estimate","Margin Of Error","Estimate","Margin Of Error","Estimate","Margin Of Error","Estimate","Margin Of Error","Estimate","Margin Of Error","Estimate","Margin Of Error","Estimate","Margin Of Error","Estimate","Margin Of Error","Estimate","Margin Of Error","Estimate","Margin Of Error"]
[null,"Total:",0,114,0,114,0,114,1524,246,0,114,39,29,0,114,22,21,440,101,18,19,0,114,0,114,78,38,0,114,8,8,11,11,7,6,0,114,443,121,0,114,0,114,40,21,0,114,351,77,0,114,0,114,68,25,0,114,381,86,0,114,0,114,40,17,16,13,0,114,0,114,21,11,51,32,68,30,143,41,0,114,0,114,4,6,253,58]
[null,"Less than 10.0 percent",0,114,0,114,0,114,69,44,0,114,0,114,0,114,0,114,18,19,0,114,0,114,0,114,4,5,0,114,0,114,0,114,0,114,0,114,19,21,0,114,0,114,0,114,0,114,15,25,0,114,0,114,6,7,0,114,11,15,0,114,0,114,0,114,0,114,0,114,0,114,0,114,0,114,0,114,0,114,0,114,0,114,0,114,0,114]
[null,"10.0 to 14.9 percent",0,114,0,114,0,114,162,93,0,114,0,114,0,114,0,114,81,71,11,17,0,114,0,114,10,12,0,114,0,114,0,114,0,114,0,114,22,24,0,114,0,114,0,114,0,114,9,15,0,114,0,114,11,9,0,114,0,114,0,114,0,114,0,114,0,114,0,114,0,114,7,7,11,13,6,9,17,15,0,114,0,114,0,114,5,7]
[null,"15.0 to 19.9 percent",0,114,0,114,0,114,146,79,0,114,13,19,0,114,19,20,54,46,0,114,0,114,0,114,7,8,0,114,0,114,2,3,0,114,0,114,83,93,0,114,0,114,0,114,0,114,79,59,0,114,0,114,11,7,0,114,41,39,0,114,0,114,0,114,2,3,0,114,0,114,5,6,0,114,10,11,6,9,0,114,0,114,0,114,37,31]
[null,"20.0 to 24.9 percent",0,114,0,114,0,114,128,61,0,114,0,114,0,114,0,114,40,35,0,114,0,114,0,114,3,4,0,114,0,114,0,114,2,4,0,114,86,62,0,114,0,114,6,8,0,114,77,71,0,114,0,114,8,8,0,114,38,28,0,114,0,114,0,114,7,10,0,114,0,114,0,114,19,23,0,114,36,24,0,114,0,114,0,114,6,10]
[null,"25.0 to 29.9 percent",0,114,0,114,0,114,185,79,0,114,12,17,0,114,0,114,43,31,0,114,0,114,0,114,19,23,0,114,0,114,0,114,5,5,0,114,55,34,0,114,0,114,13,14,0,114,32,30,0,114,0,114,12,14,0,114,70,57,0,114,0,114,10,9,0,114,0,114,0,114,0,114,0,114,28,22,20,19,0,114,0,114,0,114,120,57]
[null,"30.0 to 34.9 percent",0,114,0,114,0,114,125,76,0,114,14,15,0,114,0,114,64,46,0,114,0,114,0,114,0,114,0,114,0,114,0,114,0,114,0,114,21,22,0,114,0,114,5,8,0,114,37,30,0,114,0,114,0,114,0,114,59,39,0,114,0,114,5,6,0,114,0,114,0,114,0,114,4,8,14,15,6,11,0,114,0,114,0,114,19,16]
[null,"35.0 to 39.9 percent",0,114,0,114,0,114,41,34,0,114,0,114,0,114,0,114,31,33,0,114,0,114,0,114,0,114,0,114,0,114,0,114,0,114,0,114,39,40,0,114,0,114,11,13,0,114,0,114,0,114,0,114,0,114,0,114,21,16,0,114,0,114,0,114,0,114,0,114,0,114,2,3,2,4,0,114,25,23,0,114,0,114,0,114,10,8]
[null,"40.0 to 49.9 percent",0,114,0,114,0,114,130,74,0,114,0,114,0,114,0,114,0,114,0,114,0,114,0,114,0,114,0,114,0,114,0,114,0,114,0,114,62,61,0,114,0,114,0,114,0,114,27,27,0,114,0,114,0,114,0,114,14,17,0,114,0,114,0,114,0,114,0,114,0,114,0,114,0,114,0,114,6,9,0,114,0,114,4,6,6,9]
[null,"50.0 percent or more",0,114,0,114,0,114,413,140,0,114,0,114,0,114,0,114,103,64,4,6,0,114,0,114,4,6,0,114,0,114,6,8,0,114,0,114,19,22,0,114,0,114,0,114,0,114,61,47,0,114,0,114,7,8,0,114,66,54,0,114,0,114,9,10,2,4,0,114,0,114,7,7,0,114,6,5,11,12,0,114,0,114,0,114,33,21]
[null,"Not computed",0,114,0,114,0,114,125,81,0,114,0,114,0,114,3,4,6,10,3,5,0,114,0,114,31,21,0,114,8,8,3,4,0,114,0,114,37,38,0,114,0,114,5,6,0,114,14,23,0,114,0,114,13,9,0,114,61,40,0,114,0,114,16,13,5,6,0,114,0,114,0,114,15,15,4,7,16,22,0,114,0,114,0,114,17,20]
[]
[]
[]
[null,"Calculated B25070. GROSS RENT AS A PERCENTAGE OF HOUSEHOLD INCOME IN THE PAST 12 MONTHS"]
[null,"Universe:  RENTER-OCCUPIED HOUSING UNITS"]
[null,"Data Set: 2005-2009 American Community Survey 5-Year Estimates"]
[]
[null,null,"Atkinson and Gilmanton Grant",null,"Bean's Grant",null,"Bean's Purchase",null,"Berlin",null,"Cambridge",null,"Carroll",null,"Chandler's Purchase",null,"Clarksville",null,"Colebrook",null,"Columbia",null,"Crawford's Purchase",null,"Cutt's Grant",null,"Dalton",null,"Dix's Grant",null,"Dixville",null,"Dummer",null,"Errol",null,"Erving's Location",null,"Gorham",null,"Greens Grant",null,"Hadley's Purchase",null,"Jefferson",null,"Kilkenny",null,"Lancaster",null,"Low and Burbank's Grant",null,"Martin's Location",null,"Milan",null,"Millsfield",null,"Northumberland",null,"Odell",null,"Pinkham's Grant",null,"Pittsburg",null,"Randolph",null,"Sargent's Purchase",null,"Second College Grant",null,"Shelburne",null,"Stark",null,"Stewartstown",null,"Stratford",null,"Success",null,"Thompson and Meserves Purchase",null,"Wentworth's Location",null,"Whitefield"]
[null," ","Estimate","Margin of Error","Estimate","Margin of Error","Estimate","Margin of Error","Estimate","Margin of Error","Estimate","Margin of Error","Estimate","Margin of Error","Estimate","Margin of Error","Estimate","Margin of Error","Estimate","Margin of Error","Estimate","Margin of Error","Estimate","Margin of Error","Estimate","Margin of Error","Estimate","Margin of Error","Estimate","Margin of Error","Estimate","Margin of Error","Estimate","Margin of Error","Estimate","Margin of Error","Estimate","Margin of Error","Estimate","Margin of Error","Estimate","Margin of Error","Estimate","Margin of Error","Estimate","Margin of Error","Estimate","Margin of Error","Estimate","Margin of Error","Estimate","Margin of Error","Estimate","Margin of Error","Estimate","Margin of Error","Estimate","Margin of Error","Estimate","Margin of Error","Estimate","Margin of Error","Estimate","Margin of Error","Estimate","Margin of Error","Estimate","Margin of Error","Estimate","Margin of Error","Estimate","Margin of Error","Estimate","Margin of Error","Estimate","Margin of Error","Estimate","Margin of Error","Estimate","Margin of Error","Estimate","Margin of Error","Estimate","Margin of Error","Estimate","Margin of Error","Estimate","Margin of Error"]
[null,"Total:",0,114,0,114,0,114,1524,246,0,114,39,29,0,114,22,21,440,101,18,19,0,114,0,114,78,38,0,114,8,8,11,11,7,6,0,114,443,121,0,114,0,114,40,21,0,114,351,77,0,114,0,114,68,25,0,114,381,86,0,114,0,114,40,17,16,13,0,114,0,114,21,11,51,32,68,30,143,41,0,114,0,114,4,6,253,58]
[null,"Less than 20% of HH Income",0,197.45379206285202,0,197.45379206285202,0,197.45379206285202,377,129.71507237017602,0,197.45379206285202,13,162.33607116103309,0,197.45379206285202,19,162.4561479292181,153,86.706401147781477,11,162.11415730897781,0,197.45379206285202,0,197.45379206285202,21,15.264337522473747,0,197.45379206285202,0,197.45379206285202,2,161.24825580452026,0,197.45379206285202,0,197.45379206285202,124,98.315817649043638,0,197.45379206285202,0,197.45379206285202,0,197.45379206285202,0,197.45379206285202,103,65.810333535091587,0,197.45379206285202,0,197.45379206285202,28,13.379088160259652,0,197.45379206285202,52,121.41663806908838,0,197.45379206285202,0,197.45379206285202,0,197.45379206285202,2,161.24825580452026,0,197.45379206285202,0,197.45379206285202,12,114.37219941926448,11,161.74362429474616,16,114.88254871824527,23,115.33429672044652,0,197.45379206285202,0,197.45379206285202,0,197.45379206285202,42,118.34694757364889]
[null," 20% to 24.9% of HH Income",0,114,0,114,0,114,128,61,0,114,0,114,0,114,0,114,40,35,0,114,0,114,0,114,3,4,0,114,0,114,0,114,2,4,0,114,86,62,0,114,0,114,6,8,0,114,77,71,0,114,0,114,8,8,0,114,38,28,0,114,0,114,0,114,7,10,0,114,0,114,0,114,19,23,0,114,36,24,0,114,0,114,0,114,6,10]
[null," 25% to 29.9% of HH Income",0,114,0,114,0,114,185,79,0,114,12,17,0,114,0,114,43,31,0,114,0,114,0,114,19,23,0,114,0,114,0,114,5,5,0,114,55,34,0,114,0,114,13,14,0,114,32,30,0,114,0,114,12,14,0,114,70,57,0,114,0,114,10,9,0,114,0,114,0,114,0,114,0,114,28,22,20,19,0,114,0,114,0,114,120,57]
[null," Less Than 30% of HH Income",0,254.91174943497603,0,254.91174943497603,0,254.91174943497603,690,163.67040050051813,0,254.91174943497603,25,199.09294311953903,0,254.91174943497603,19,228.87551201471948,236,98.508882848198013,11,228.63289352147035,0,254.91174943497603,0,254.91174943497603,43,27.892651361962706,0,254.91174943497603,0,254.91174943497603,2,228.01973598791838,7,197.55758654124119,0,254.91174943497603,265,121.10326172320876,0,254.91174943497603,0,254.91174943497603,19,198.11107995263669,0,254.91174943497603,212,101.35087567455942,0,254.91174943497603,0,254.91174943497603,48,20.952326839756964,0,254.91174943497603,160,137.0218960604472,0,254.91174943497603,0,254.91174943497603,10,228.17756243767704,9,197.72961336127676,0,254.91174943497603,0,254.91174943497603,12,197.6689151080665,30,199.21345336096155,44,163.33401360402553,79,119.32728103832753,0,254.91174943497603,0,254.91174943497603,0,254.91174943497603,168,131.73837709642547]
[null," 30% or More of HH Income",0,228,0,228,0,228,709,178.90779748239035,0,228,14,198.022725968511,0,228,0,228,198,142.46754016266303,4,197.54493159785193,0,228,0,228,4,197.54493159785193,0,228,0,228,6,197.61578884289585,0,228,0,228,141,79.303215571627362,0,228,0,228,16,161.94134740701648,0,228,125,129.74590552306458,0,228,0,228,7,197.61578884289585,0,228,160,70.583284140085183,0,228,0,228,14,161.641578809414,2,197.49430371532239,0,228,0,228,9,161.40012391568973,6,161.46826313551526,20,161.99382704288456,48,29.58039891549808,0,228,0,228,4,197.54493159785193,68,29.017236257093817]
[null," 30% to 34.9% of HH Income",0,114,0,114,0,114,125,76,0,114,14,15,0,114,0,114,64,46,0,114,0,114,0,114,0,114,0,114,0,114,0,114,0,114,0,114,21,22,0,114,0,114,5,8,0,114,37,30,0,114,0,114,0,114,0,114,59,39,0,114,0,114,5,6,0,114,0,114,0,114,0,114,4,8,14,15,6,11,0,114,0,114,0,114,19,16]
[null," Less Than 35% of HH Income",0,279.24183067728228,0,279.24183067728228,0,279.24183067728228,815,180.45498053531247,0,279.24183067728228,39,199.65720623107998,0,279.24183067728228,19,255.69513096654774,300,108.71982339941506,11,255.47798339583002,0,279.24183067728228,0,279.24183067728228,43,117.36268572250722,0,279.24183067728228,0,279.24183067728228,2,254.92940199200248,7,228.08989455914087,0,279.24183067728228,286,123.08533625091171,0,279.24183067728228,0,279.24183067728228,24,198.27253970229967,0,279.24183067728228,249,105.69768209379049,0,279.24183067728228,0,279.24183067728228,48,115.90944741478151,0,279.24183067728228,219,142.46403054806501,0,279.24183067728228,0,279.24183067728228,15,228.25643473952712,9,228.23890991677996,0,279.24183067728228,0,279.24183067728228,12,228.18632737304836,34,199.37402037376887,58,164.02134007500365,85,119.83321743156193,0,279.24183067728228,0,279.24183067728228,0,279.24183067728228,187,132.70644294833616]
[null," 35% or More of HH Income",0,197.45379206285202,0,197.45379206285202,0,197.45379206285202,584,161.96295872822279,0,197.45379206285202,0,197.45379206285202,0,197.45379206285202,0,197.45379206285202,134,134.83693855913521,4,161.33195591698504,0,197.45379206285202,0,197.45379206285202,4,161.33195591698504,0,197.45379206285202,0,197.45379206285202,6,161.41871019184859,0,197.45379206285202,0,197.45379206285202,120,76.190550595201771,0,197.45379206285202,0,197.45379206285202,11,161.74362429474616,0,197.45379206285202,88,126.22994890278613,0,197.45379206285202,0,197.45379206285202,7,161.41871019184859,0,197.45379206285202,101,58.830264320330912,0,197.45379206285202,0,197.45379206285202,9,161.5301829380503,2,161.26996000495566,0,197.45379206285202,0,197.45379206285202,9,114.25410277097274,2,161.26996000495566,6,161.29786111415117,42,27.459060435491963,0,197.45379206285202,0,197.45379206285202,4,161.33195591698504,49,24.207436873820409]
[null," 50% or More of HH Income",0,114,0,114,0,114,413,140,0,114,0,114,0,114,0,114,103,64,4,6,0,114,0,114,4,6,0,114,0,114,6,8,0,114,0,114,19,22,0,114,0,114,0,114,0,114,61,47,0,114,0,114,7,8,0,114,66,54,0,114,0,114,9,10,2,4,0,114,0,114,7,7,0,114,6,5,11,12,0,114,0,114,0,114,33,21]
[null,"Not computed",0,114,0,114,0,114,125,81,0,114,0,114,0,114,3,4,6,10,3,5,0,114,0,114,31,21,0,114,8,8,3,4,0,114,0,114,37,38,0,114,0,114,5,6,0,114,14,23,0,114,0,114,13,9,0,114,61,40,0,114,0,114,16,13,5,6,0,114,0,114,0,114,15,15,4,7,16,22,0,114,0,114,0,114,17,20]

{"sheet":"ACS_Table_B25074","index":58,"n_rows":464,"n_cols":88,"rows_kept":464,"cut":false,"hidden":true,"merged":[]}
[null,"B25074. HOUSEHOLD INCOME BY GROSS RENT AS A PERCENTAGE OF HOUSEHOLD INCOME IN THE PAST 12 MONTHS"]
[null,"Universe:  RENTER OCCUPIED HOUSING UNITS"]
[null,"Data Set: 2015-2019 American Community Survey 5-Year Estimates",null,null,null,{"$f":"RentalHousingCost!D41","v":"Income in 2019 Inflation Adjusted Dollars"}]
[]
[null,null,"Atkinson and Gilmanton Grant",null,"Bean's Grant",null,"Bean's Purchase",null,"Berlin",null,"Cambridge",null,"Carroll",null,"Chandler's Purchase",null,"Clarksville",null,"Colebrook",null,"Columbia",null,"Crawford's Purchase",null,"Cutt's Grant",null,"Dalton",null,"Dix's Grant",null,"Dixville",null,"Dummer",null,"Errol",null,"Erving's Location",null,"Gorham",null,"Greens Grant",null,"Hadley's Purchase",null,"Jefferson",null,"Kilkenny",null,"Lancaster",null,"Low and Burbank's Grant",null,"Martin's Location",null,"Milan",null,"Millsfield",null,"Northumberland",null,"Odell",null,"Pinkham's Grant",null,"Pittsburg",null,"Randolph",null,"Sargent's Purchase",null,"Second College Grant",null,"Shelburne",null,"Stark",null,"Stewartstown",null,"Stratford",null,"Success",null,"Thompson and Meserves Purchase",null,"Wentworth's Location",null,"Whitefield"]
[null,null,"Estimate","Margin Of Error","Estimate","Margin Of Error","Estimate","Margin Of Error","Estimate","Margin Of Error","Estimate","Margin Of Error","Estimate","Margin Of Error","Estimate","Margin Of Error","Estimate","Margin Of Error","Estimate","Margin Of Error","Estimate","Margin Of Error","Estimate","Margin Of Error","Estimate","Margin Of Error","Estimate","Margin Of Error","Estimate","Margin Of Error","Estimate","Margin Of Error","Estimate","Margin Of Error","Estimate","Margin Of Error","Estimate","Margin Of Error","Estimate","Margin Of Error","Estimate","Margin Of Error","Estimate","Margin Of Error","Estimate","Margin Of Error","Estimate","Margin Of Error","Estimate","Margin Of Error","Estimate","Margin Of Error","Estimate","Margin Of Error","Estimate","Margin Of Error","Estimate","Margin Of Error","Estimate","Margin Of Error","Estimate","Margin Of Error","Estimate","Margin Of Error","Estimate","Margin Of Error","Estimate","Margin Of Error","Estimate","Margin Of Error","Estimate","Margin Of Error","Estimate","Margin Of Error","Estimate","Margin Of Error","Estimate","Margin Of Error","Estimate","Margin Of Error","Estimate","Margin Of Error","Estimate","Margin Of Error","Estimate","Margin Of Error","Estimate","Margin Of Error"]
[null,"Total:",0,11,0,11,0,11,1749,196,0,11,72,32,0,11,11,7,256,55,49,22,0,11,0,11,60,28,0,11,0,11,13,8,18,12,0,11,283,83,0,11,0,11,50,32,0,11,347,116,0,11,0,11,90,41,0,11,324,61,0,11,0,11,87,31,35,17,0,11,0,11,37,18,35,19,48,40,71,29,0,11,0,11,2,3,403,105]
[null,"Less than $10,000:",0,11,0,11,0,11,248,89,0,11,2,3,0,11,1,3,19,17,8,11,0,11,0,11,3,5,0,11,0,11,0,11,2,3,0,11,18,19,0,11,0,11,0,11,0,11,12,20,0,11,0,11,0,11,0,11,30,25,0,11,0,11,12,19,0,11,0,11,0,11,8,9,4,5,3,5,15,15,0,11,0,11,0,11,42,40]
[null,"Less than 20.0 percent",0,11,0,11,0,11,0,18,0,11,0,11,0,11,0,11,0,11,0,11,0,11,0,11,0,11,0,11,0,11,0,11,0,11,0,11,0,11,0,11,0,11,0,11,0,11,0,11,0,11,0,11,0,11,0,11,0,11,0,11,0,11,0,11,0,11,0,11,0,11,0,11,0,11,0,11,0,11,0,11,0,11,0,11,0,11]
[null,"20.0 to 24.9 percent",0,11,0,11,0,11,20,23,0,11,0,11,0,11,0,11,5,7,0,11,0,11,0,11,0,11,0,11,0,11,0,11,0,11,0,11,0,11,0,11,0,11,0,11,0,11,0,11,0,11,0,11,0,11,0,11,0,11,0,11,0,11,0,11,0,11,0,11,0,11,0,11,0,11,0,11,0,11,0,11,0,11,0,11,0,11]
[null,"25.0 to 29.9 percent",0,11,0,11,0,11,0,18,0,11,0,11,0,11,0,11,0,11,0,11,0,11,0,11,0,11,0,11,0,11,0,11,0,11,0,11,0,11,0,11,0,11,0,11,0,11,0,11,0,11,0,11,0,11,0,11,0,11,0,11,0,11,0,11,0,11,0,11,0,11,0,11,0,11,3,5,8,9,0,11,0,11,0,11,0,11]
[null,"30.0 to 34.9 percent",0,11,0,11,0,11,6,9,0,11,0,11,0,11,0,11,6,8,0,11,0,11,0,11,0,11,0,11,0,11,0,11,0,11,0,11,0,11,0,11,0,11,0,11,0,11,0,11,0,11,0,11,0,11,0,11,14,21,0,11,0,11,0,11,0,11,0,11,0,11,0,11,0,11,0,11,0,11,0,11,0,11,0,11,0,11]
[null,"35.0 to 39.9 percent",0,11,0,11,0,11,0,18,0,11,0,11,0,11,0,11,0,11,0,11,0,11,0,11,0,11,0,11,0,11,0,11,0,11,0,11,0,11,0,11,0,11,0,11,0,11,0,11,0,11,0,11,0,11,0,11,0,11,0,11,0,11,0,11,0,11,0,11,0,11,0,11,0,11,0,11,0,11,0,11,0,11,0,11,0,11]
[null,"40.0 to 49.9 percent",0,11,0,11,0,11,0,18,0,11,0,11,0,11,0,11,0,11,0,11,0,11,0,11,0,11,0,11,0,11,0,11,0,11,0,11,0,11,0,11,0,11,0,11,0,11,0,11,0,11,0,11,0,11,0,11,0,11,0,11,0,11,0,11,0,11,0,11,0,11,0,11,0,11,0,11,7,11,0,11,0,11,0,11,0,11]
[null,"50.0 percent or more",0,11,0,11,0,11,197,87,0,11,2,3,0,11,0,11,8,13,0,11,0,11,0,11,3,5,0,11,0,11,0,11,2,3,0,11,18,19,0,11,0,11,0,11,0,11,12,20,0,11,0,11,0,11,0,11,16,13,0,11,0,11,12,19,0,11,0,11,0,11,8,9,4,5,0,11,0,11,0,11,0,11,0,11,21,21]
[null,"Not computed",0,11,0,11,0,11,25,24,0,11,0,11,0,11,1,3,0,11,8,11,0,11,0,11,0,11,0,11,0,11,0,11,0,11,0,11,0,11,0,11,0,11,0,11,0,11,0,11,0,11,0,11,0,11,0,11,0,11,0,11,0,11,0,11,0,11,0,11,0,11,0,11,0,11,0,11,0,11,0,11,0,11,0,11,21,33]
[null,"$10,000 to $19,999:",0,11,0,11,0,11,453,129,0,11,0,11,0,11,1,2,31,26,18,16,0,11,0,11,3,4,0,11,0,11,2,3,1,2,0,11,55,35,0,11,0,11,6,6,0,11,79,61,0,11,0,11,4,5,0,11,46,23,0,11,0,11,22,18,2,3,0,11,0,11,4,4,2,3,13,17,15,8,0,11,0,11,2,3,107,61]
[null,"Less than 20.0 percent",0,11,0,11,0,11,29,32,0,11,0,11,0,11,0,11,0,11,0,11,0,11,0,11,0,11,0,11,0,11,0,11,0,11,0,11,0,11,0,11,0,11,0,11,0,11,0,11,0,11,0,11,0,11,0,11,0,11,0,11,0,11,0,11,0,11,0,11,0,11,0,11,0,11,0,11,2,4,0,11,0,11,0,11,0,11]
[null,"20.0 to 24.9 percent",0,11,0,11,0,11,64,61,0,11,0,11,0,11,0,11,0,11,0,11,0,11,0,11,0,11,0,11,0,11,0,11,0,11,0,11,9,15,0,11,0,11,0,11,0,11,0,11,0,11,0,11,0,11,0,11,0,11,0,11,0,11,3,4,0,11,0,11,0,11,0,11,2,3,0,11,0,11,0,11,0,11,0,11,13,13]
[null,"25.0 to 29.9 percent",0,11,0,11,0,11,109,70,0,11,0,11,0,11,0,11,10,16,0,11,0,11,0,11,0,11,0,11,0,11,0,11,0,11,0,11,18,20,0,11,0,11,0,11,0,11,9,14,0,11,0,11,0,11,0,11,11,11,0,11,0,11,4,6,0,11,0,11,0,11,0,11,0,11,0,11,11,7,0,11,0,11,0,11,5,9]
[null,"30.0 to 34.9 percent",0,11,0,11,0,11,8,13,0,11,0,11,0,11,0,11,0,11,0,11,0,11,0,11,3,4,0,11,0,11,0,11,0,11,0,11,9,14,0,11,0,11,0,11,0,11,0,11,0,11,0,11,0,11,0,11,13,17,0,11,0,11,0,11,0,11,0,11,0,11,0,11,0,11,0,11,0,11,0,11,0,11,0,11,0,11]
[null,"35.0 to 39.9 percent",0,11,0,11,0,11,22,28,0,11,0,11,0,11,0,11,0,11,0,11,0,11,0,11,0,11,0,11,0,11,2,3,0,11,0,11,0,11,0,11,0,11,0,11,0,11,9,14,0,11,0,11,0,11,0,11,0,11,0,11,0,11,0,11,0,11,0,11,0,11,2,4,0,11,0,11,0,11,0,11,0,11,0,11,6,10]
[null,"40.0 to 49.9 percent",0,11,0,11,0,11,40,39,0,11,0,11,0,11,0,11,0,11,3,4,0,11,0,11,0,11,0,11,0,11,0,11,1,2,0,11,0,11,0,11,0,11,0,11,0,11,0,11,0,11,0,11,0,11,0,11,0,11,0,11,0,11,11,16,0,11,0,11,0,11,0,11,0,11,0,11,0,11,0,11,0,11,0,11,0,11]
[null,"50.0 percent or more",0,11,0,11,0,11,160,74,0,11,0,11,0,11,1,2,21,22,5,7,0,11,0,11,0,11,0,11,0,11,0,11,0,11,0,11,19,20,0,11,0,11,3,4,0,11,54,55,0,11,0,11,0,11,0,11,17,18,0,11,0,11,4,5,0,11,0,11,0,11,2,4,0,11,11,17,2,3,0,11,0,11,0,11,83,59]
[null,"Not computed",0,11,0,11,0,11,21,20,0,11,0,11,0,11,0,11,0,11,10,13,0,11,0,11,0,11,0,11,0,11,0,11,0,11,0,11,0,11,0,11,0,11,3,5,0,11,7,10,0,11,0,11,4,5,0,11,5,7,0,11,0,11,0,11,2,3,0,11,0,11,0,11,0,11,2,3,0,11,0,11,0,11,2,3,0,11]
[null,"$20,000 to $34,999:",0,11,0,11,0,11,451,156,0,11,15,12,0,11,3,4,117,48,7,6,0,11,0,11,6,6,0,11,0,11,3,6,6,8,0,11,44,32,0,11,0,11,24,29,0,11,72,54,0,11,0,11,14,19,0,11,100,36,0,11,0,11,18,19,14,13,0,11,0,11,8,8,11,13,18,21,24,18,0,11,0,11,0,11,90,44]
[null,"Less than 20.0 percent",0,11,0,11,0,11,22,25,0,11,0,11,0,11,3,4,0,11,0,11,0,11,0,11,0,11,0,11,0,11,0,11,0,11,0,11,11,19,0,11,0,11,0,11,0,11,0,11,0,11,0,11,0,11,0,11,26,27,0,11,0,11,12,17,0,11,0,11,0,11,4,6,7,11,0,11,0,11,0,11,0,11,0,11,22,33]
[null,"20.0 to 24.9 percent",0,11,0,11,0,11,64,40,0,11,0,11,0,11,0,11,0,11,0,11,0,11,0,11,0,11,0,11,0,11,0,11,0,11,0,11,0,11,0,11,0,11,19,28,0,11,11,18,0,11,0,11,0,11,0,11,16,18,0,11,0,11,0,11,0,11,0,11,0,11,2,4,0,11,15,21,0,11,0,11,0,11,0,11,0,11]
[null,"25.0 to 29.9 percent",0,11,0,11,0,11,138,102,0,11,0,11,0,11,0,11,20,17,2,3,0,11,0,11,0,11,0,11,0,11,0,11,1,2,0,11,13,18,0,11,0,11,0,11,0,11,28,42,0,11,0,11,0,11,0,11,18,15,0,11,0,11,3,5,0,11,0,11,0,11,0,11,0,11,0,11,15,16,0,11,0,11,0,11,24,23]
[null,"30.0 to 34.9 percent",0,11,0,11,0,11,44,40,0,11,2,3,0,11,0,11,27,22,3,4,0,11,0,11,0,11,0,11,0,11,0,11,0,11,0,11,0,11,0,11,0,11,0,11,0,11,18,21,0,11,0,11,0,11,0,11,12,13,0,11,0,11,0,11,0,11,0,11,0,11,0,11,0,11,0,11,5,6,0,11,0,11,0,11,0,11]
[null,"35.0 to 39.9 percent",0,11,0,11,0,11,9,15,0,11,0,11,0,11,0,11,48,41,0,11,0,11,0,11,3,4,0,11,0,11,1,3,0,11,0,11,0,11,0,11,0,11,0,11,0,11,0,11,0,11,0,11,0,11,0,11,19,17,0,11,0,11,3,4,14,13,0,11,0,11,0,11,0,11,0,11,2,3,0,11,0,11,0,11,5,7]
[null,"40.0 to 49.9 percent",0,11,0,11,0,11,161,113,0,11,8,10,0,11,0,11,3,5,0,11,0,11,0,11,3,4,0,11,0,11,0,11,0,11,0,11,0,11,0,11,0,11,5,6,0,11,0,11,0,11,0,11,14,19,0,11,0,11,0,11,0,11,0,11,0,11,0,11,0,11,0,11,0,11,3,5,0,11,0,11,0,11,0,11,26,29]
[null,"50.0 percent or more",0,11,0,11,0,11,13,15,0,11,2,3,0,11,0,11,11,13,0,11,0,11,0,11,0,11,0,11,0,11,0,11,0,11,0,11,9,12,0,11,0,11,0,11,0,11,15,23,0,11,0,11,0,11,0,11,0,11,0,11,0,11,0,11,0,11,0,11,0,11,2,3,0,11,0,11,0,11,0,11,0,11,0,11,13,20]
[null,"Not computed",0,11,0,11,0,11,0,18,0,11,3,4,0,11,0,11,8,9,2,3,0,11,0,11,0,11,0,11,0,11,2,4,5,7,0,11,11,17,0,11,0,11,0,11,0,11,0,11,0,11,0,11,0,11,0,11,9,10,0,11,0,11,0,11,0,11,0,11,0,11,0,11,4,5,0,11,2,3,0,11,0,11,0,11,0,11]
[null,"$35,000 to $49,999:",0,11,0,11,0,11,377,129,0,11,6,6,0,11,0,11,37,23,5,7,0,11,0,11,8,8,0,11,0,11,4,4,0,11,0,11,59,49,0,11,0,11,5,6,0,11,94,57,0,11,0,11,12,12,0,11,70,35,0,11,0,11,31,21,0,11,0,11,0,11,4,6,7,11,0,11,13,15,0,11,0,11,0,11,17,16]
[null,"Less than 20.0 percent",0,11,0,11,0,11,46,41,0,11,0,11,0,11,0,11,27,21,0,11,0,11,0,11,8,8,0,11,0,11,0,11,0,11,0,11,15,19,0,11,0,11,0,11,0,11,29,29,0,11,0,11,3,5,0,11,28,28,0,11,0,11,15,16,0,11,0,11,0,11,0,11,0,11,0,11,0,11,0,11,0,11,0,11,0,11]
[null,"20.0 to 24.9 percent",0,11,0,11,0,11,90,56,0,11,2,3,0,11,0,11,0,11,0,11,0,11,0,11,0,11,0,11,0,11,0,11,0,11,0,11,26,39,0,11,0,11,0,11,0,11,37,37,0,11,0,11,1,3,0,11,38,24,0,11,0,11,9,14,0,11,0,11,0,11,0,11,0,11,0,11,6,10,0,11,0,11,0,11,6,9]
[null,"25.0 to 29.9 percent",0,11,0,11,0,11,87,52,0,11,0,11,0,11,0,11,6,8,3,4,0,11,0,11,0,11,0,11,0,11,0,11,0,11,0,11,18,19,0,11,0,11,0,11,0,11,28,33,0,11,0,11,0,11,0,11,4,6,0,11,0,11,0,11,0,11,0,11,0,11,4,6,0,11,0,11,0,11,0,11,0,11,0,11,11,15]
[null,"30.0 to 34.9 percent",0,11,0,11,0,11,21,31,0,11,4,5,0,11,0,11,0,11,2,5,0,11,0,11,0,11,0,11,0,11,2,3,0,11,0,11,0,11,0,11,0,11,0,11,0,11,0,11,0,11,0,11,0,11,0,11,0,11,0,11,0,11,0,11,0,11,0,11,0,11,0,11,0,11,0,11,0,11,0,11,0,11,0,11,0,11]
[null,"35.0 to 39.9 percent",0,11,0,11,0,11,119,88,0,11,0,11,0,11,0,11,0,11,0,11,0,11,0,11,0,11,0,11,0,11,0,11,0,11,0,11,0,11,0,11,0,11,5,6,0,11,0,11,0,11,0,11,0,11,0,11,0,11,0,11,0,11,0,11,0,11,0,11,0,11,0,11,0,11,0,11,0,11,0,11,0,11,0,11,0,11]
[null,"40.0 to 49.9 percent",0,11,0,11,0,11,14,20,0,11,0,11,0,11,0,11,0,11,0,11,0,11,0,11,0,11,0,11,0,11,0,11,0,11,0,11,0,11,0,11,0,11,0,11,0,11,0,11,0,11,0,11,0,11,0,11,0,11,0,11,0,11,3,4,0,11,0,11,0,11,0,11,0,11,0,11,0,11,0,11,0,11,0,11,0,11]
[null,"50.0 percent or more",0,11,0,11,0,11,0,18,0,11,0,11,0,11,0,11,0,11,0,11,0,11,0,11,0,11,0,11,0,11,0,11,0,11,0,11,0,11,0,11,0,11,0,11,0,11,0,11,0,11,0,11,0,11,0,11,0,11,0,11,0,11,0,11,0,11,0,11,0,11,0,11,0,11,0,11,0,11,0,11,0,11,0,11,0,11]
[null,"Not computed",0,11,0,11,0,11,0,18,0,11,0,11,0,11,0,11,4,6,0,11,0,11,0,11,0,11,0,11,0,11,2,3,0,11,0,11,0,11,0,11,0,11,0,11,0,11,0,11,0,11,0,11,8,8,0,11,0,11,0,11,0,11,4,5,0,11,0,11,0,11,0,11,7,11,0,11,7,11,0,11,0,11,0,11,0,11]
[null,"$50,000 to $74,999:",0,11,0,11,0,11,142,82,0,11,31,20,0,11,1,3,36,31,3,4,0,11,0,11,35,24,0,11,0,11,4,5,6,6,0,11,92,65,0,11,0,11,11,11,0,11,53,43,0,11,0,11,32,17,0,11,11,11,0,11,0,11,4,7,10,9,0,11,0,11,11,9,0,11,14,20,4,5,0,11,0,11,0,11,92,52]
[null,"Less than 20.0 percent",0,11,0,11,0,11,106,73,0,11,13,12,0,11,0,11,11,16,0,11,0,11,0,11,4,6,0,11,0,11,2,3,4,6,0,11,69,60,0,11,0,11,6,8,0,11,41,38,0,11,0,11,20,15,0,11,11,11,0,11,0,11,0,11,8,8,0,11,0,11,4,6,0,11,14,20,2,3,0,11,0,11,0,11,48,34]
[null,"20.0 to 24.9 percent",0,11,0,11,0,11,36,35,0,11,11,14,0,11,0,11,0,11,3,4,0,11,0,11,15,14,0,11,0,11,0,11,0,11,0,11,23,23,0,11,0,11,0,11,0,11,0,11,0,11,0,11,0,11,0,11,0,11,0,11,0,11,4,7,2,3,0,11,0,11,0,11,0,11,0,11,2,4,0,11,0,11,0,11,36,40]
[null,"25.0 to 29.9 percent",0,11,0,11,0,11,0,18,0,11,0,11,0,11,0,11,7,11,0,11,0,11,0,11,12,17,0,11,0,11,0,11,0,11,0,11,0,11,0,11,0,11,0,11,0,11,12,20,0,11,0,11,4,5,0,11,0,11,0,11,0,11,0,11,0,11,0,11,0,11,2,3,0,11,0,11,0,11,0,11,0,11,0,11,0,11]
[null,"30.0 to 34.9 percent",0,11,0,11,0,11,0,18,0,11,0,11,0,11,0,11,0,11,0,11,0,11,0,11,0,11,0,11,0,11,0,11,0,11,0,11,0,11,0,11,0,11,5,6,0,11,0,11,0,11,0,11,4,5,0,11,0,11,0,11,0,11,0,11,0,11,0,11,0,11,0,11,0,11,0,11,0,11,0,11,0,11,0,11,0,11]
[null,"35.0 to 39.9 percent",0,11,0,11,0,11,0,18,0,11,0,11,0,11,0,11,0,11,0,11,0,11,0,11,0,11,0,11,0,11,0,11,0,11,0,11,0,11,0,11,0,11,0,11,0,11,0,11,0,11,0,11,4,5,0,11,0,11,0,11,0,11,0,11,0,11,0,11,0,11,0,11,0,11,0,11,0,11,0,11,0,11,0,11,0,11]
[null,"40.0 to 49.9 percent",0,11,0,11,0,11,0,18,0,11,0,11,0,11,0,11,0,11,0,11,0,11,0,11,0,11,0,11,0,11,0,11,0,11,0,11,0,11,0,11,0,11,0,11,0,11,0,11,0,11,0,11,0,11,0,11,0,11,0,11,0,11,0,11,0,11,0,11,0,11,0,11,0,11,0,11,0,11,0,11,0,11,0,11,8,9]
[null,"50.0 percent or more",0,11,0,11,0,11,0,18,0,11,0,11,0,11,0,11,0,11,0,11,0,11,0,11,0,11,0,11,0,11,0,11,0,11,0,11,0,11,0,11,0,11,0,11,0,11,0,11,0,11,0,11,0,11,0,11,0,11,0,11,0,11,0,11,0,11,0,11,0,11,0,11,0,11,0,11,0,11,0,11,0,11,0,11,0,11]
[null,"Not computed",0,11,0,11,0,11,0,18,0,11,7,10,0,11,1,3,18,27,0,11,0,11,0,11,4,6,0,11,0,11,2,3,2,3,0,11,0,11,0,11,0,11,0,11,0,11,0,11,0,11,0,11,0,11,0,11,0,11,0,11,0,11,0,11,0,11,0,11,0,11,5,6,0,11,0,11,0,11,0,11,0,11,0,11,0,11]
[null,"$75,000 to $99,999:",0,11,0,11,0,11,42,46,0,11,3,4,0,11,2,3,5,9,2,3,0,11,0,11,0,11,0,11,0,11,0,11,0,11,0,11,7,13,0,11,0,11,4,5,0,11,37,45,0,11,0,11,24,29,0,11,50,31,0,11,0,11,0,11,2,3,0,11,0,11,0,11,2,3,0,11,0,11,0,11,0,11,0,11,20,16]
[null,"Less than 20.0 percent",0,11,0,11,0,11,42,46,0,11,3,4,0,11,2,3,5,9,0,11,0,11,0,11,0,11,0,11,0,11,0,11,0,11,0,11,7,13,0,11,0,11,4,5,0,11,37,45,0,11,0,11,21,28,0,11,22,17,0,11,0,11,0,11,0,11,0,11,0,11,0,11,2,3,0,11,0,11,0,11,0,11,0,11,20,16]
[null,"20.0 to 24.9 percent",0,11,0,11,0,11,0,18,0,11,0,11,0,11,0,11,0,11,0,11,0,11,0,11,0,11,0,11,0,11,0,11,0,11,0,11,0,11,0,11,0,11,0,11,0,11,0,11,0,11,0,11,0,11,0,11,15,22,0,11,0,11,0,11,2,3,0,11,0,11,0,11,0,11,0,11,0,11,0,11,0,11,0,11,0,11]
[null,"25.0 to 29.9 percent",0,11,0,11,0,11,0,18,0,11,0,11,0,11,0,11,0,11,0,11,0,11,0,11,0,11,0,11,0,11,0,11,0,11,0,11,0,11,0,11,0,11,0,11,0,11,0,11,0,11,0,11,0,11,0,11,0,11,0,11,0,11,0,11,0,11,0,11,0,11,0,11,0,11,0,11,0,11,0,11,0,11,0,11,0,11]
[null,"30.0 to 34.9 percent",0,11,0,11,0,11,0,18,0,11,0,11,0,11,0,11,0,11,0,11,0,11,0,11,0,11,0,11,0,11,0,11,0,11,0,11,0,11,0,11,0,11,0,11,0,11,0,11,0,11,0,11,0,11,0,11,0,11,0,11,0,11,0,11,0,11,0,11,0,11,0,11,0,11,0,11,0,11,0,11,0,11,0,11,0,11]
[null,"35.0 to 39.9 percent",0,11,0,11,0,11,0,18,0,11,0,11,0,11,0,11,0,11,0,11,0,11,0,11,0,11,0,11,0,11,0,11,0,11,0,11,0,11,0,11,0,11,0,11,0,11,0,11,0,11,0,11,0,11,0,11,0,11,0,11,0,11,0,11,0,11,0,11,0,11,0,11,0,11,0,11,0,11,0,11,0,11,0,11,0,11]
[null,"40.0 to 49.9 percent",0,11,0,11,0,11,0,18,0,11,0,11,0,11,0,11,0,11,0,11,0,11,0,11,0,11,0,11,0,11,0,11,0,11,0,11,0,11,0,11,0,11,0,11,0,11,0,11,0,11,0,11,0,11,0,11,0,11,0,11,0,11,0,11,0,11,0,11,0,11,0,11,0,11,0,11,0,11,0,11,0,11,0,11,0,11]
[null,"50.0 percent or more",0,11,0,11,0,11,0,18,0,11,0,11,0,11,0,11,0,11,0,11,0,11,0,11,0,11,0,11,0,11,0,11,0,11,0,11,0,11,0,11,0,11,0,11,0,11,0,11,0,11,0,11,0,11,0,11,0,11,0,11,0,11,0,11,0,11,0,11,0,11,0,11,0,11,0,11,0,11,0,11,0,11,0,11,0,11]
[null,"Not computed",0,11,0,11,0,11,0,18,0,11,0,11,0,11,0,11,0,11,2,3,0,11,0,11,0,11,0,11,0,11,0,11,0,11,0,11,0,11,0,11,0,11,0,11,0,11,0,11,0,11,0,11,3,5,0,11,13,14,0,11,0,11,0,11,0,11,0,11,0,11,0,11,0,11,0,11,0,11,0,11,0,11,0,11,0,11]
[null,"$100,000 or more:",0,11,0,11,0,11,36,41,0,11,15,17,0,11,3,4,11,12,6,6,0,11,0,11,5,7,0,11,0,11,0,11,3,7,0,11,8,13,0,11,0,11,0,11,0,11,0,11,0,11,0,11,4,5,0,11,17,24,0,11,0,11,0,11,7,7,0,11,0,11,2,3,9,10,0,11,0,11,0,11,0,11,0,11,35,28]
[null,"Less than 20.0 percent",0,11,0,11,0,11,36,41,0,11,15,17,0,11,3,4,11,12,6,6,0,11,0,11,5,7,0,11,0,11,0,11,3,7,0,11,0,11,0,11,0,11,0,11,0,11,0,11,0,11,0,11,4,5,0,11,17,24,0,11,0,11,0,11,7,7,0,11,0,11,2,3,9,10,0,11,0,11,0,11,0,11,0,11,35,28]
[null,"20.0 to 24.9 percent",0,11,0,11,0,11,0,18,0,11,0,11,0,11,0,11,0,11,0,11,0,11,0,11,0,11,0,11,0,11,0,11,0,11,0,11,0,11,0,11,0,11,0,11,0,11,0,11,0,11,0,11,0,11,0,11,0,11,0,11,0,11,0,11,0,11,0,11,0,11,0,11,0,11,0,11,0,11,0,11,0,11,0,11,0,11]
[null,"25.0 to 29.9 percent",0,11,0,11,0,11,0,18,0,11,0,11,0,11,0,11,0,11,0,11,0,11,0,11,0,11,0,11,0,11,0,11,0,11,0,11,0,11,0,11,0,11,0,11,0,11,0,11,0,11,0,11,0,11,0,11,0,11,0,11,0,11,0,11,0,11,0,11,0,11,0,11,0,11,0,11,0,11,0,11,0,11,0,11,0,11]
[null,"30.0 to 34.9 percent",0,11,0,11,0,11,0,18,0,11,0,11,0,11,0,11,0,11,0,11,0,11,0,11,0,11,0,11,0,11,0,11,0,11,0,11,0,11,0,11,0,11,0,11,0,11,0,11,0,11,0,11,0,11,0,11,0,11,0,11,0,11,0,11,0,11,0,11,0,11,0,11,0,11,0,11,0,11,0,11,0,11,0,11,0,11]
[null,"35.0 to 39.9 percent",0,11,0,11,0,11,0,18,0,11,0,11,0,11,0,11,0,11,0,11,0,11,0,11,0,11,0,11,0,11,0,11,0,11,0,11,0,11,0,11,0,11,0,11,0,11,0,11,0,11,0,11,0,11,0,11,0,11,0,11,0,11,0,11,0,11,0,11,0,11,0,11,0,11,0,11,0,11,0,11,0,11,0,11,0,11]
[null,"40.0 to 49.9 percent",0,11,0,11,0,11,0,18,0,11,0,11,0,11,0,11,0,11,0,11,0,11,0,11,0,11,0,11,0,11,0,11,0,11,0,11,0,11,0,11,0,11,0,11,0,11,0,11,0,11,0,11,0,11,0,11,0,11,0,11,0,11,0,11,0,11,0,11,0,11,0,11,0,11,0,11,0,11,0,11,0,11,0,11,0,11]
[null,"50.0 percent or more",0,11,0,11,0,11,0,18,0,11,0,11,0,11,0,11,0,11,0,11,0,11,0,11,0,11,0,11,0,11,0,11,0,11,0,11,0,11,0,11,0,11,0,11,0,11,0,11,0,11,0,11,0,11,0,11,0,11,0,11,0,11,0,11,0,11,0,11,0,11,0,11,0,11,0,11,0,11,0,11,0,11,0,11,0,11]
[null,"Not computed",0,11,0,11,0,11,0,18,0,11,0,11,0,11,0,11,0,11,0,11,0,11,0,11,0,11,0,11,0,11,0,11,0,11,0,11,8,13,0,11,0,11,0,11,0,11,0,11,0,11,0,11,0,11,0,11,0,11,0,11,0,11,0,11,0,11,0,11,0,11,0,11,0,11,0,11,0,11,0,11,0,11,0,11,0,11]
[null,null,0,11,0,11,0,18,0,18,0,11,0,11,0,11,0,11,0,11,0,11,0,11,0,11,0,11,null,null,0,11,0,11,0,11,0,11,0,11,0,11,0,11,0,11,0,11,0,11,0,11,0,11,0,11,0,11,0,11,0,11,null,null,0,11,0,11,0,11,0,11,0,11,0,11,0,11,0,11,0,11,0,11,0,11,0,11]
[null,null,0,11,0,11,0,18,0,18,0,11,0,11,0,11,0,11,0,11,0,11,0,11,0,11,0,11,null,null,0,11,0,11,0,11,0,11,0,11,0,11,0,11,0,11,0,11,0,11,0,11,0,11,0,11,0,11,0,11,0,11,null,null,0,11,0,11,0,11,0,11,0,11,0,11,0,11,0,11,0,11,0,11,0,11,0,11]
[null,null,0,11,0,11,0,18,0,18,0,11,0,11,0,11,0,11,0,11,0,11,0,11,0,11,0,11,null,null,0,11,0,11,0,11,0,11,8,13,0,11,0,11,0,11,0,11,0,11,0,11,0,11,0,11,0,11,0,11,0,11,null,null,0,11,0,11,0,11,0,11,0,11,0,11,0,11,0,11,0,11,0,11,0,11,0,11]
[]
[]
[]
[]
[]
[]
[]
[]
[]
[]
[]
[]
[null,"Calculated B25074. HOUSEHOLD INCOME BY GROSS RENT AS A PERCENTAGE OF HOUSEHOLD INCOME IN THE PAST 12 MONTHS"]
[null,"Universe:  RENTER OCCUPIED HOUSING UNITS"]
[null,"Data Set: 2015-2019 American Community Survey 5-Year Estimates"]
[]
[null,null,"Atkinson and Gilmanton Grant",null,"Bean's Grant",null,"Bean's Purchase",null,"Berlin",null,"Cambridge",null,"Carroll",null,"Chandler's Purchase",null,"Clarksville",null,"Colebrook",null,"Columbia",null,"Crawford's Purchase",null,"Cutt's Grant",null,"Dalton",null,"Dix's Grant",null,"Dixville",null,"Dummer",null,"Errol",null,"Erving's Location",null,"Gorham",null,"Greens Grant",null,"Hadley's Purchase",null,"Jefferson",null,"Kilkenny",null,"Lancaster",null,"Low and Burbank's Grant",null,"Martin's Location",null,"Milan",null,"Millsfield",null,"Northumberland",null,"Odell",null,"Pinkham's Grant",null,"Pittsburg",null,"Randolph",null,"Sargent's Purchase",null,"Second College Grant",null,"Shelburne",null,"Stark",null,"Stewartstown",null,"Stratford",null,"Success",null,"Thompson and Meserves Purchase",null,"Wentworth's Location",null,"Whitefield"]
[null,null,"Estimate","Margin Of Error","Estimate","Margin Of Error","Estimate","Margin Of Error","Estimate","Margin Of Error","Estimate","Margin Of Error","Estimate","Margin Of Error","Estimate","Margin Of Error","Estimate","Margin Of Error","Estimate","Margin Of Error","Estimate","Margin Of Error","Estimate","Margin Of Error","Estimate","Margin Of Error","Estimate","Margin Of Error","Estimate","Margin Of Error","Estimate","Margin Of Error","Estimate","Margin Of Error","Estimate","Margin Of Error","Estimate","Margin Of Error","Estimate","Margin Of Error","Estimate","Margin Of Error","Estimate","Margin Of Error","Estimate","Margin Of Error","Estimate","Margin Of Error","Estimate","Margin Of Error","Estimate","Margin Of Error","Estimate","Margin Of Error","Estimate","Margin Of Error","Estimate","Margin Of Error","Estimate","Margin Of Error","Estimate","Margin Of Error","Estimate","Margin Of Error","Estimate","Margin Of Error","Estimate","Margin Of Error","Estimate","Margin Of Error","Estimate","Margin Of Error","Estimate","Margin Of Error","Estimate","Margin Of Error","Estimate","Margin Of Error","Estimate","Margin Of Error","Estimate","Margin Of Error","Estimate","Margin Of Error","Estimate","Margin Of Error","Estimate","Margin Of Error"]
[null,"Total:",{"$f":"C7","v":0},11,0,11,0,11,1749,196,0,11,72,32,0,11,11,7,256,55,49,22,0,11,0,11,60,28,0,11,0,11,13,8,18,12,0,11,283,83,0,11,0,11,50,32,0,11,347,116,0,11,0,11,90,41,0,11,324,61,0,11,0,11,87,31,{"$f":"BO7","v":35},17,0,11,0,11,37,18,35,19,48,40,71,29,0,11,0,11,2,3,403,105]
[null,"Less than $10,000:",0,11,0,11,0,11,248,89,0,11,2,3,0,11,1,3,19,17,8,11,0,11,0,11,3,5,0,11,0,11,0,11,2,3,0,11,18,19,0,11,0,11,0,11,0,11,12,20,0,11,0,11,0,11,0,11,30,25,0,11,0,11,12,19,0,11,0,11,0,11,8,9,4,5,3,5,15,15,0,11,0,11,0,11,42,40]
[null,"Less than 30.0 percent",{"$f":"C9+C10+C11","v":0},{"$f":"SQRT((D9^2)+(D10^2)+(D11^2))","v":19.05255888325765},{"$f":"E9+E10+E11","v":0},{"$f":"SQRT((F9^2)+(F10^2)+(F11^2))","v":19.05255888325765},{"$f":"G9+G10+G11","v":0},{"$f":"SQRT((H9^2)+(H10^2)+(H11^2))","v":19.05255888325765},{"$f":"I9+I10+I11","v":20},{"$f":"SQRT((J9^2)+(J10^2)+(J11^2))","v":34.307433596816885},{"$f":"K9+K10+K11","v":0},{"$f":"SQRT((L9^2)+(L10^2)+(L11^2))","v":19.05255888325765},{"$f":"M9+M10+M11","v":0},{"$f":"SQRT((N9^2)+(N10^2)+(N11^2))","v":19.05255888325765},{"$f":"O9+O10+O11","v":0},{"$f":"SQRT((P9^2)+(P10^2)+(P11^2))","v":19.05255888325765},{"$f":"Q9+Q10+Q11","v":0},{"$f":"SQRT((R9^2)+(R10^2)+(R11^2))","v":19.05255888325765},{"$f":"S9+S10+S11","v":5},{"$f":"SQRT((T9^2)+(T10^2)+(T11^2))","v":17.058722109231979},{"$f":"U9+U10+U11","v":0},{"$f":"SQRT((V9^2)+(V10^2)+(V11^2))","v":19.05255888325765},{"$f":"W9+W10+W11","v":0},{"$f":"SQRT((X9^2)+(X10^2)+(X11^2))","v":19.05255888325765},{"$f":"Y9+Y10+Y11","v":0},{"$f":"SQRT((Z9^2)+(Z10^2)+(Z11^2))","v":19.05255888325765},{"$f":"AA9+AA10+AA11","v":0},{"$f":"SQRT((AB9^2)+(AB10^2)+(AB11^2))","v":19.05255888325765},{"$f":"AC9+AC10+AC11","v":0},{"$f":"SQRT((AD9^2)+(AD10^2)+(AD11^2))","v":19.05255888325765},{"$f":"AE9+AE10+AE11","v":0},{"$f":"SQRT((AF9^2)+(AF10^2)+(AF11^2))","v":19.05255888325765},{"$f":"AG9+AG10+AG11","v":0},{"$f":"SQRT((AH9^2)+(AH10^2)+(AH11^2))","v":19.05255888325765},{"$f":"AI9+AI10+AI11","v":0},{"$f":"SQRT((AJ9^2)+(AJ10^2)+(AJ11^2))","v":19.05255888325765},{"$f":"AK9+AK10+AK11","v":0},{"$f":"SQRT((AL9^2)+(AL10^2)+(AL11^2))","v":19.05255888325765},{"$f":"AM9+AM10+AM11","v":0},{"$f":"SQRT((AN9^2)+(AN10^2)+(AN11^2))","v":19.05255888325765},{"$f":"AO9+AO10+AO11","v":0},{"$f":"SQRT((AP9^2)+(AP10^2)+(AP11^2))","v":19.05255888325765},{"$f":"AQ9+AQ10+AQ11","v":0},{"$f":"SQRT((AR9^2)+(AR10^2)+(AR11^2))","v":19.05255888325765},{"$f":"AS9+AS10+AS11","v":0},{"$f":"SQRT((AT9^2)+(AT10^2)+(AT11^2))","v":19.05255888325765},{"$f":"AU9+AU10+AU11","v":0},{"$f":"SQRT((AV9^2)+(AV10^2)+(AV11^2))","v":19.05255888325765},{"$f":"AW9+AW10+AW11","v":0},{"$f":"SQRT((AX9^2)+(AX10^2)+(AX11^2))","v":19.05255888325765},{"$f":"AY9+AY10+AY11","v":0},{"$f":"SQRT((AZ9^2)+(AZ10^2)+(AZ11^2))","v":19.05255888325765},{"$f":"BA9+BA10+BA11","v":0},{"$f":"SQRT((BB9^2)+(BB10^2)+(BB11^2))","v":19.05255888325765},{"$f":"BC9+BC10+BC11","v":0},{"$f":"SQRT((BD9^2)+(BD10^2)+(BD11^2))","v":19.05255888325765},{"$f":"BE9+BE10+BE11","v":0},{"$f":"SQRT((BF9^2)+(BF10^2)+(BF11^2))","v":19.05255888325765},{"$f":"BG9+BG10+BG11","v":0},{"$f":"SQRT((BH9^2)+(BH10^2)+(BH11^2))","v":19.05255888325765},{"$f":"BI9+BI10+BI11","v":0},{"$f":"SQRT((BJ9^2)+(BJ10^2)+(BJ11^2))","v":19.05255888325765},{"$f":"BK9+BK10+BK11","v":0},{"$f":"SQRT((BL9^2)+(BL10^2)+(BL11^2))","v":19.05255888325765},{"$f":"BM9+BM10+BM11","v":0},{"$f":"SQRT((BN9^2)+(BN10^2)+(BN11^2))","v":19.05255888325765},{"$f":"BO9+BO10+BO11","v":0},{"$f":"SQRT((BP9^2)+(BP10^2)+(BP11^2))","v":19.05255888325765},{"$f":"BQ9+BQ10+BQ11","v":0},{"$f":"SQRT((BR9^2)+(BR10^2)+(BR11^2))","v":19.05255888325765},{"$f":"BS9+BS10+BS11","v":0},{"$f":"SQRT((BT9^2)+(BT10^2)+(BT11^2))","v":19.05255888325765},{"$f":"BU9+BU10+BU11","v":0},{"$f":"SQRT((BV9^2)+(BV10^2)+(BV11^2))","v":19.05255888325765},{"$f":"BW9+BW10+BW11","v":0},{"$f":"SQRT((BX9^2)+(BX10^2)+(BX11^2))","v":19.05255888325765},{"$f":"BY9+BY10+BY11","v":3},{"$f":"SQRT((BZ9^2)+(BZ10^2)+(BZ11^2))","v":16.340134638368191},{"$f":"CA9+CA10+CA11","v":8},{"$f":"SQRT((CB9^2)+(CB10^2)+(CB11^2))","v":17.972200755611428},{"$f":"CC9+CC10+CC11","v":0},{"$f":"SQRT((CD9^2)+(CD10^2)+(CD11^2))","v":19.05255888325765},{"$f":"CE9+CE10+CE11","v":0},{"$f":"SQRT((CF9^2)+(CF10^2)+(CF11^2))","v":19.05255888325765},{"$f":"CG9+CG10+CG11","v":0},{"$f":"SQRT((CH9^2)+(CH10^2)+(CH11^2))","v":19.05255888325765},{"$f":"CI9+CI10+CI11","v":0},{"$f":"SQRT((CJ9^2)+(CJ10^2)+(CJ11^2))","v":19.05255888325765}]
[null,"More than 30.0 percent",{"$f":"C12+C13+C14+C15","v":0},{"$f":"SQRT((D12^2)+(D13^2)+(D14^2)+(D15^2))","v":22},{"$f":"E12+E13+E14+E15","v":0},{"$f":"SQRT((F12^2)+(F13^2)+(F14^2)+(F15^2))","v":22},{"$f":"G12+G13+G14+G15","v":0},{"$f":"SQRT((H12^2)+(H13^2)+(H14^2)+(H15^2))","v":22},{"$f":"I12+I13+I14+I15","v":203},{"$f":"SQRT((J12^2)+(J13^2)+(J14^2)+(J15^2))","v":91.093358704133863},{"$f":"K12+K13+K14+K15","v":0},{"$f":"SQRT((L12^2)+(L13^2)+(L14^2)+(L15^2))","v":22},{"$f":"M12+M13+M14+M15","v":2},{"$f":"SQRT((N12^2)+(N13^2)+(N14^2)+(N15^2))","v":19.28730152198591},{"$f":"O12+O13+O14+O15","v":0},{"$f":"SQRT((P12^2)+(P13^2)+(P14^2)+(P15^2))","v":22},{"$f":"Q12+Q13+Q14+Q15","v":0},{"$f":"SQRT((R12^2)+(R13^2)+(R14^2)+(R15^2))","v":22},{"$f":"S12+S13+S14+S15","v":14},{"$f":"SQRT((T12^2)+(T13^2)+(T14^2)+(T15^2))","v":21.794494717703369},{"$f":"U12+U13+U14+U15","v":0},{"$f":"SQRT((V12^2)+(V13^2)+(V14^2)+(V15^2))","v":22},{"$f":"W12+W13+W14+W15","v":0},{"$f":"SQRT((X12^2)+(X13^2)+(X14^2)+(X15^2))","v":22},{"$f":"Y12+Y13+Y14+Y15","v":0},{"$f":"SQRT((Z12^2)+(Z13^2)+(Z14^2)+(Z15^2))","v":22},{"$f":"AA12+AA13+AA14+AA15","v":3},{"$f":"SQRT((AB12^2)+(AB13^2)+(AB14^2)+(AB15^2))","v":19.697715603592208},{"$f":"AC12+AC13+AC14+AC15","v":0},{"$f":"SQRT((AD12^2)+(AD13^2)+(AD14^2)+(AD15^2))","v":22},{"$f":"AE12+AE13+AE14+AE15","v":0},{"$f":"SQRT((AF12^2)+(AF13^2)+(AF14^2)+(AF15^2))","v":22},{"$f":"AG12+AG13+AG14+AG15","v":0},{"$f":"SQRT((AH12^2)+(AH13^2)+(AH14^2)+(AH15^2))","v":22},{"$f":"AI12+AI13+AI14+AI15","v":2},{"$f":"SQRT((AJ12^2)+(AJ13^2)+(AJ14^2)+(AJ15^2))","v":19.28730152198591},{"$f":"AK12+AK13+AK14+AK15","v":0},{"$f":"SQRT((AL12^2)+(AL13^2)+(AL14^2)+(AL15^2))","v":22},{"$f":"AM12+AM13+AM14+AM15","v":18},{"$f":"SQRT((AN12^2)+(AN13^2)+(AN14^2)+(AN15^2))","v":26.90724809414742},{"$f":"AO12+AO13+AO14+AO15","v":0},{"$f":"SQRT((AP12^2)+(AP13^2)+(AP14^2)+(AP15^2))","v":22},{"$f":"AQ12+AQ13+AQ14+AQ15","v":0},{"$f":"SQRT((AR12^2)+(AR13^2)+(AR14^2)+(AR15^2))","v":22},{"$f":"AS12+AS13+AS14+AS15","v":0},{"$f":"SQRT((AT12^2)+(AT13^2)+(AT14^2)+(AT15^2))","v":22},{"$f":"AU12+AU13+AU14+AU15","v":0},{"$f":"SQRT((AV12^2)+(AV13^2)+(AV14^2)+(AV15^2))","v":22},{"$f":"AW12+AW13+AW14+AW15","v":12},{"$f":"SQRT((AX12^2)+(AX13^2)+(AX14^2)+(AX15^2))","v":27.622454633866266},{"$f":"AY12+AY13+AY14+AY15","v":0},{"$f":"SQRT((AZ12^2)+(AZ13^2)+(AZ14^2)+(AZ15^2))","v":22},{"$f":"BA12+BA13+BA14+BA15","v":0},{"$f":"SQRT((BB12^2)+(BB13^2)+(BB14^2)+(BB15^2))","v":22},{"$f":"BC12+BC13+BC14+BC15","v":0},{"$f":"SQRT((BD12^2)+(BD13^2)+(BD14^2)+(BD15^2))","v":22},{"$f":"BE12+BE13+BE14+BE15","v":0},{"$f":"SQRT((BF12^2)+(BF13^2)+(BF14^2)+(BF15^2))","v":22},{"$f":"BG12+BG13+BG14+BG15","v":30},{"$f":"SQRT((BH12^2)+(BH13^2)+(BH14^2)+(BH15^2))","v":29.189039038652847},{"$f":"BI12+BI13+BI14+BI15","v":0},{"$f":"SQRT((BJ12^2)+(BJ13^2)+(BJ14^2)+(BJ15^2))","v":22},{"$f":"BK12+BK13+BK14+BK15","v":0},{"$f":"SQRT((BL12^2)+(BL13^2)+(BL14^2)+(BL15^2))","v":22},{"$f":"BM12+BM13+BM14+BM15","v":12},{"$f":"SQRT((BN12^2)+(BN13^2)+(BN14^2)+(BN15^2))","v":26.90724809414742},{"$f":"BO12+BO13+BO14+BO15","v":0},{"$f":"SQRT((BP12^2)+(BP13^2)+(BP14^2)+(BP15^2))","v":22},{"$f":"BQ12+BQ13+BQ14+BQ15","v":0},{"$f":"SQRT((BR12^2)+(BR13^2)+(BR14^2)+(BR15^2))","v":22},{"$f":"BS12+BS13+BS14+BS15","v":0},{"$f":"SQRT((BT12^2)+(BT13^2)+(BT14^2)+(BT15^2))","v":22},{"$f":"BU12+BU13+BU14+BU15","v":8},{"$f":"SQRT((BV12^2)+(BV13^2)+(BV14^2)+(BV15^2))","v":21.071307505705477},{"$f":"BW12+BW13+BW14+BW15","v":4},{"$f":"SQRT((BX12^2)+(BX13^2)+(BX14^2)+(BX15^2))","v":19.697715603592208},{"$f":"BY12+BY13+BY14+BY15","v":0},{"$f":"SQRT((BZ12^2)+(BZ13^2)+(BZ14^2)+(BZ15^2))","v":22},{"$f":"CA12+CA13+CA14+CA15","v":7},{"$f":"SQRT((CB12^2)+(CB13^2)+(CB14^2)+(CB15^2))","v":22},{"$f":"CC12+CC13+CC14+CC15","v":0},{"$f":"SQRT((CD12^2)+(CD13^2)+(CD14^2)+(CD15^2))","v":22},{"$f":"CE12+CE13+CE14+CE15","v":0},{"$f":"SQRT((CF12^2)+(CF13^2)+(CF14^2)+(CF15^2))","v":22},{"$f":"CG12+CG13+CG14+CG15","v":0},{"$f":"SQRT((CH12^2)+(CH13^2)+(CH14^2)+(CH15^2))","v":22},{"$f":"CI12+CI13+CI14+CI15","v":21},{"$f":"SQRT((CJ12^2)+(CJ13^2)+(CJ14^2)+(CJ15^2))","v":28.354893757515651}]
[null,"Less Than 35% of HH Income",{"$f":"C9+C10+C11+C12","v":0},{"$f":"SQRT((D9^2)+(D10^2)+(D11^2)+(D12^2))","v":22},{"$f":"E9+E10+E11+E12","v":0},{"$f":"SQRT((F9^2)+(F10^2)+(F11^2)+(F12^2))","v":22},{"$f":"G9+G10+G11+G12","v":0},{"$f":"SQRT((H9^2)+(H10^2)+(H11^2)+(H12^2))","v":22},{"$f":"I9+I10+I11+I12","v":26},{"$f":"SQRT((J9^2)+(J10^2)+(J11^2)+(J12^2))","v":35.468295701936398},{"$f":"K9+K10+K11+K12","v":0},{"$f":"SQRT((L9^2)+(L10^2)+(L11^2)+(L12^2))","v":22},{"$f":"M9+M10+M11+M12","v":0},{"$f":"SQRT((N9^2)+(N10^2)+(N11^2)+(N12^2))","v":22},{"$f":"O9+O10+O11+O12","v":0},{"$f":"SQRT((P9^2)+(P10^2)+(P11^2)+(P12^2))","v":22},{"$f":"Q9+Q10+Q11+Q12","v":0},{"$f":"SQRT((R9^2)+(R10^2)+(R11^2)+(R12^2))","v":22},{"$f":"S9+S10+S11+S12","v":11},{"$f":"SQRT((T9^2)+(T10^2)+(T11^2)+(T12^2))","v":18.841443681416774},{"$f":"U9+U10+U11+U12","v":0},{"$f":"SQRT((V9^2)+(V10^2)+(V11^2)+(V12^2))","v":22},{"$f":"W9+W10+W11+W12","v":0},{"$f":"SQRT((X9^2)+(X10^2)+(X11^2)+(X12^2))","v":22},{"$f":"Y9+Y10+Y11+Y12","v":0},{"$f":"SQRT((Z9^2)+(Z10^2)+(Z11^2)+(Z12^2))","v":22},{"$f":"AA9+AA10+AA11+AA12","v":0},{"$f":"SQRT((AB9^2)+(AB10^2)+(AB11^2)+(AB12^2))","v":22},{"$f":"AC9+AC10+AC11+AC12","v":0},{"$f":"SQRT((AD9^2)+(AD10^2)+(AD11^2)+(AD12^2))","v":22},{"$f":"AE9+AE10+AE11+AE12","v":0},{"$f":"SQRT((AF9^2)+(AF10^2)+(AF11^2)+(AF12^2))","v":22},{"$f":"AG9+AG10+AG11+AG12","v":0},{"$f":"SQRT((AH9^2)+(AH10^2)+(AH11^2)+(AH12^2))","v":22},{"$f":"AI9+AI10+AI11+AI12","v":0},{"$f":"SQRT((AJ9^2)+(AJ10^2)+(AJ11^2)+(AJ12^2))","v":22},{"$f":"AK9+AK10+AK11+AK12","v":0},{"$f":"SQRT((AL9^2)+(AL10^2)+(AL11^2)+(AL12^2))","v":22},{"$f":"AM9+AM10+AM11+AM12","v":0},{"$f":"SQRT((AN9^2)+(AN10^2)+(AN11^2)+(AN12^2))","v":22},{"$f":"AO9+AO10+AO11+AO12","v":0},{"$f":"SQRT((AP9^2)+(AP10^2)+(AP11^2)+(AP12^2))","v":22},{"$f":"AQ9+AQ10+AQ11+AQ12","v":0},{"$f":"SQRT((AR9^2)+(AR10^2)+(AR11^2)+(AR12^2))","v":22},{"$f":"AS9+AS10+AS11+AS12","v":0},{"$f":"SQRT((AT9^2)+(AT10^2)+(AT11^2)+(AT12^2))","v":22},{"$f":"AU9+AU10+AU11+AU12","v":0},{"$f":"SQRT((AV9^2)+(AV10^2)+(AV11^2)+(AV12^2))","v":22},{"$f":"AW9+AW10+AW11+AW12","v":0},{"$f":"SQRT((AX9^2)+(AX10^2)+(AX11^2)+(AX12^2))","v":22},{"$f":"AY9+AY10+AY11+AY12","v":0},{"$f":"SQRT((AZ9^2)+(AZ10^2)+(AZ11^2)+(AZ12^2))","v":22},{"$f":"BA9+BA10+BA11+BA12","v":0},{"$f":"SQRT((BB9^2)+(BB10^2)+(BB11^2)+(BB12^2))","v":22},{"$f":"BC9+BC10+BC11+BC12","v":0},{"$f":"SQRT((BD9^2)+(BD10^2)+(BD11^2)+(BD12^2))","v":22},{"$f":"BE9+BE10+BE11+BE12","v":0},{"$f":"SQRT((BF9^2)+(BF10^2)+(BF11^2)+(BF12^2))","v":22},{"$f":"BG9+BG10+BG11+BG12","v":14},{"$f":"SQRT((BH9^2)+(BH10^2)+(BH11^2)+(BH12^2))","v":28.354893757515651},{"$f":"BI9+BI10+BI11+BI12","v":0},{"$f":"SQRT((BJ9^2)+(BJ10^2)+(BJ11^2)+(BJ12^2))","v":22},{"$f":"BK9+BK10+BK11+BK12","v":0},{"$f":"SQRT((BL9^2)+(BL10^2)+(BL11^2)+(BL12^2))","v":22},{"$f":"BM9+BM10+BM11+BM12","v":0},{"$f":"SQRT((BN9^2)+(BN10^2)+(BN11^2)+(BN12^2))","v":22},{"$f":"BO9+BO10+BO11+BO12","v":0},{"$f":"SQRT((BP9^2)+(BP10^2)+(BP11^2)+(BP12^2))","v":22},{"$f":"BQ9+BQ10+BQ11+BQ12","v":0},{"$f":"SQRT((BR9^2)+(BR10^2)+(BR11^2)+(BR12^2))","v":22},{"$f":"BS9+BS10+BS11+BS12","v":0},{"$f":"SQRT((BT9^2)+(BT10^2)+(BT11^2)+(BT12^2))","v":22},{"$f":"BU9+BU10+BU11+BU12","v":0},{"$f":"SQRT((BV9^2)+(BV10^2)+(BV11^2)+(BV12^2))","v":22},{"$f":"BW9+BW10+BW11+BW12","v":0},{"$f":"SQRT((BX9^2)+(BX10^2)+(BX11^2)+(BX12^2))","v":22},{"$f":"BY9+BY10+BY11+BY12","v":3},{"$f":"SQRT((BZ9^2)+(BZ10^2)+(BZ11^2)+(BZ12^2))","v":19.697715603592208},{"$f":"CA9+CA10+CA11+CA12","v":8},{"$f":"SQRT((CB9^2)+(CB10^2)+(CB11^2)+(CB12^2))","v":21.071307505705477},{"$f":"CC9+CC10+CC11+CC12","v":0},{"$f":"SQRT((CD9^2)+(CD10^2)+(CD11^2)+(CD12^2))","v":22},{"$f":"CE9+CE10+CE11+CE12","v":0},{"$f":"SQRT((CF9^2)+(CF10^2)+(CF11^2)+(CF12^2))","v":22},{"$f":"CG9+CG10+CG11+CG12","v":0},{"$f":"SQRT((CH9^2)+(CH10^2)+(CH11^2)+(CH12^2))","v":22},{"$f":"CI9+CI10+CI11+CI12","v":0},{"$f":"SQRT((CJ9^2)+(CJ10^2)+(CJ11^2)+(CJ12^2))","v":22}]
[null,"35.0 percent or more",{"$f":"C13+C14++C15","v":0},{"$f":"SQRT((D13^2)+(D14^2)+(D15^2))","v":19.05255888325765},{"$f":"E13+E14++E15","v":0},{"$f":"SQRT((F13^2)+(F14^2)+(F15^2))","v":19.05255888325765},{"$f":"G13+G14++G15","v":0},{"$f":"SQRT((H13^2)+(H14^2)+(H15^2))","v":19.05255888325765},{"$f":"I13+I14++I15","v":197},{"$f":"SQRT((J13^2)+(J14^2)+(J15^2))","v":90.647669578428761},{"$f":"K13+K14++K15","v":0},{"$f":"SQRT((L13^2)+(L14^2)+(L15^2))","v":19.05255888325765},{"$f":"M13+M14++M15","v":2},{"$f":"SQRT((N13^2)+(N14^2)+(N15^2))","v":15.842979517754859},{"$f":"O13+O14++O15","v":0},{"$f":"SQRT((P13^2)+(P14^2)+(P15^2))","v":19.05255888325765},{"$f":"Q13+Q14++Q15","v":0},{"$f":"SQRT((R13^2)+(R14^2)+(R15^2))","v":19.05255888325765},{"$f":"S13+S14++S15","v":8},{"$f":"SQRT((T13^2)+(T14^2)+(T15^2))","v":20.273134932713294},{"$f":"U13+U14++U15","v":0},{"$f":"SQRT((V13^2)+(V14^2)+(V15^2))","v":19.05255888325765},{"$f":"W13+W14++W15","v":0},{"$f":"SQRT((X13^2)+(X14^2)+(X15^2))","v":19.05255888325765},{"$f":"Y13+Y14++Y15","v":0},{"$f":"SQRT((Z13^2)+(Z14^2)+(Z15^2))","v":19.05255888325765},{"$f":"AA13+AA14++AA15","v":3},{"$f":"SQRT((AB13^2)+(AB14^2)+(AB15^2))","v":16.340134638368191},{"$f":"AC13+AC14++AC15","v":0},{"$f":"SQRT((AD13^2)+(AD14^2)+(AD15^2))","v":19.05255888325765},{"$f":"AE13+AE14++AE15","v":0},{"$f":"SQRT((AF13^2)+(AF14^2)+(AF15^2))","v":19.05255888325765},{"$f":"AG13+AG14++AG15","v":0},{"$f":"SQRT((AH13^2)+(AH14^2)+(AH15^2))","v":19.05255888325765},{"$f":"AI13+AI14++AI15","v":2},{"$f":"SQRT((AJ13^2)+(AJ14^2)+(AJ15^2))","v":15.842979517754859},{"$f":"AK13+AK14++AK15","v":0},{"$f":"SQRT((AL13^2)+(AL14^2)+(AL15^2))","v":19.05255888325765},{"$f":"AM13+AM14++AM15","v":18},{"$f":"SQRT((AN13^2)+(AN14^2)+(AN15^2))","v":24.556058315617349},{"$f":"AO13+AO14++AO15","v":0},{"$f":"SQRT((AP13^2)+(AP14^2)+(AP15^2))","v":19.05255888325765},{"$f":"AQ13+AQ14++AQ15","v":0},{"$f":"SQRT((AR13^2)+(AR14^2)+(AR15^2))","v":19.05255888325765},{"$f":"AS13+AS14++AS15","v":0},{"$f":"SQRT((AT13^2)+(AT14^2)+(AT15^2))","v":19.05255888325765},{"$f":"AU13+AU14++AU15","v":0},{"$f":"SQRT((AV13^2)+(AV14^2)+(AV15^2))","v":19.05255888325765},{"$f":"AW13+AW14++AW15","v":12},{"$f":"SQRT((AX13^2)+(AX14^2)+(AX15^2))","v":25.337718918639855},{"$f":"AY13+AY14++AY15","v":0},{"$f":"SQRT((AZ13^2)+(AZ14^2)+(AZ15^2))","v":19.05255888325765},{"$f":"BA13+BA14++BA15","v":0},{"$f":"SQRT((BB13^2)+(BB14^2)+(BB15^2))","v":19.05255888325765},{"$f":"BC13+BC14++BC15","v":0},{"$f":"SQRT((BD13^2)+(BD14^2)+(BD15^2))","v":19.05255888325765},{"$f":"BE13+BE14++BE15","v":0},{"$f":"SQRT((BF13^2)+(BF14^2)+(BF15^2))","v":19.05255888325765},{"$f":"BG13+BG14++BG15","v":16},{"$f":"SQRT((BH13^2)+(BH14^2)+(BH15^2))","v":20.273134932713294},{"$f":"BI13+BI14++BI15","v":0},{"$f":"SQRT((BJ13^2)+(BJ14^2)+(BJ15^2))","v":19.05255888325765},{"$f":"BK13+BK14++BK15","v":0},{"$f":"SQRT((BL13^2)+(BL14^2)+(BL15^2))","v":19.05255888325765},{"$f":"BM13+BM14++BM15","v":12},{"$f":"SQRT((BN13^2)+(BN14^2)+(BN15^2))","v":24.556058315617349},{"$f":"BO13+BO14++BO15","v":0},{"$f":"SQRT((BP13^2)+(BP14^2)+(BP15^2))","v":19.05255888325765},{"$f":"BQ13+BQ14++BQ15","v":0},{"$f":"SQRT((BR13^2)+(BR14^2)+(BR15^2))","v":19.05255888325765},{"$f":"BS13+BS14++BS15","v":0},{"$f":"SQRT((BT13^2)+(BT14^2)+(BT15^2))","v":19.05255888325765},{"$f":"BU13+BU14++BU15","v":8},{"$f":"SQRT((BV13^2)+(BV14^2)+(BV15^2))","v":17.972200755611428},{"$f":"BW13+BW14++BW15","v":4},{"$f":"SQRT((BX13^2)+(BX14^2)+(BX15^2))","v":16.340134638368191},{"$f":"BY13+BY14++BY15","v":0},{"$f":"SQRT((BZ13^2)+(BZ14^2)+(BZ15^2))","v":19.05255888325765},{"$f":"CA13+CA14++CA15","v":7},{"$f":"SQRT((CB13^2)+(CB14^2)+(CB15^2))","v":19.05255888325765},{"$f":"CC13+CC14++CC15","v":0},{"$f":"SQRT((CD13^2)+(CD14^2)+(CD15^2))","v":19.05255888325765},{"$f":"CE13+CE14++CE15","v":0},{"$f":"SQRT((CF13^2)+(CF14^2)+(CF15^2))","v":19.05255888325765},{"$f":"CG13+CG14++CG15","v":0},{"$f":"SQRT((CH13^2)+(CH14^2)+(CH15^2))","v":19.05255888325765},{"$f":"CI13+CI14++CI15","v":21},{"$f":"SQRT((CJ13^2)+(CJ14^2)+(CJ15^2))","v":26.134268690743959}]
[null,"50.0 percent or more",{"$f":"C15","v":0},11,0,11,0,11,197,87,0,11,2,3,0,11,0,11,8,13,0,11,0,11,0,11,3,5,0,11,0,11,0,11,{"$f":"AI15","v":2},3,0,11,18,19,0,11,0,11,0,11,0,11,12,20,0,11,0,11,0,11,0,11,16,13,0,11,0,11,12,19,{"$f":"BO15","v":0},11,0,11,0,11,8,9,4,5,0,11,0,11,0,11,0,11,0,11,21,21]
[null,"Not Computed",{"$f":"C16","v":0},11,0,11,0,11,25,24,0,11,0,11,0,11,1,3,0,11,8,11,0,11,0,11,0,11,0,11,0,11,0,11,{"$f":"AI16","v":0},11,0,11,0,11,0,11,0,11,0,11,0,11,0,11,0,11,0,11,0,11,0,11,0,11,0,11,0,11,0,11,{"$f":"BO16","v":0},11,0,11,0,11,0,11,0,11,0,11,0,11,0,11,0,11,0,11,21,33]
[null,"$10,000 to $19,999:",{"$f":"C17","v":0},11,0,11,0,11,453,129,0,11,0,11,0,11,1,2,31,26,18,16,0,11,0,11,3,4,0,11,0,11,2,3,1,2,0,11,55,35,0,11,0,11,6,6,0,11,79,61,0,11,0,11,4,5,0,11,46,23,0,11,0,11,22,18,{"$f":"BO17","v":2},3,0,11,0,11,4,4,2,3,13,17,15,8,0,11,0,11,2,3,107,61]
[null,"Less than 30.0 percent",{"$f":"C18+C19+C20","v":0},{"$f":"SQRT((D18^2)+(D19^2)+(D20^2))","v":19.05255888325765},{"$f":"E18+E19+E20","v":0},{"$f":"SQRT((F18^2)+(F19^2)+(F20^2))","v":19.05255888325765},{"$f":"G18+G19+G20","v":0},{"$f":"SQRT((H18^2)+(H19^2)+(H20^2))","v":19.05255888325765},{"$f":"I18+I19+I20","v":202},{"$f":"SQRT((J18^2)+(J19^2)+(J20^2))","v":98.208960894614904},{"$f":"K18+K19+K20","v":0},{"$f":"SQRT((L18^2)+(L19^2)+(L20^2))","v":19.05255888325765},{"$f":"M18+M19+M20","v":0},{"$f":"SQRT((N18^2)+(N19^2)+(N20^2))","v":19.05255888325765},{"$f":"O18+O19+O20","v":0},{"$f":"SQRT((P18^2)+(P19^2)+(P20^2))","v":19.05255888325765},{"$f":"Q18+Q19+Q20","v":0},{"$f":"SQRT((R18^2)+(R19^2)+(R20^2))","v":19.05255888325765},{"$f":"S18+S19+S20","v":10},{"$f":"SQRT((T18^2)+(T19^2)+(T20^2))","v":22.315913604421397},{"$f":"U18+U19+U20","v":0},{"$f":"SQRT((V18^2)+(V19^2)+(V20^2))","v":19.05255888325765},{"$f":"W18+W19+W20","v":0},{"$f":"SQRT((X18^2)+(X19^2)+(X20^2))","v":19.05255888325765},{"$f":"Y18+Y19+Y20","v":0},{"$f":"SQRT((Z18^2)+(Z19^2)+(Z20^2))","v":19.05255888325765},{"$f":"AA18+AA19+AA20","v":0},{"$f":"SQRT((AB18^2)+(AB19^2)+(AB20^2))","v":19.05255888325765},{"$f":"AC18+AC19+AC20","v":0},{"$f":"SQRT((AD18^2)+(AD19^2)+(AD20^2))","v":19.05255888325765},{"$f":"AE18+AE19+AE20","v":0},{"$f":"SQRT((AF18^2)+(AF19^2)+(AF20^2))","v":19.05255888325765},{"$f":"AG18+AG19+AG20","v":0},{"$f":"SQRT((AH18^2)+(AH19^2)+(AH20^2))","v":19.05255888325765},{"$f":"AI18+AI19+AI20","v":0},{"$f":"SQRT((AJ18^2)+(AJ19^2)+(AJ20^2))","v":19.05255888325765},{"$f":"AK18+AK19+AK20","v":0},{"$f":"SQRT((AL18^2)+(AL19^2)+(AL20^2))","v":19.05255888325765},{"$f":"AM18+AM19+AM20","v":27},{"$f":"SQRT((AN18^2)+(AN19^2)+(AN20^2))","v":27.313000567495326},{"$f":"AO18+AO19+AO20","v":0},{"$f":"SQRT((AP18^2)+(AP19^2)+(AP20^2))","v":19.05255888325765},{"$f":"AQ18+AQ19+AQ20","v":0},{"$f":"SQRT((AR18^2)+(AR19^2)+(AR20^2))","v":19.05255888325765},{"$f":"AS18+AS19+AS20","v":0},{"$f":"SQRT((AT18^2)+(AT19^2)+(AT20^2))","v":19.05255888325765},{"$f":"AU18+AU19+AU20","v":0},{"$f":"SQRT((AV18^2)+(AV19^2)+(AV20^2))","v":19.05255888325765},{"$f":"AW18+AW19+AW20","v":9},{"$f":"SQRT((AX18^2)+(AX19^2)+(AX20^2))","v":20.928449536456348},{"$f":"AY18+AY19+AY20","v":0},{"$f":"SQRT((AZ18^2)+(AZ19^2)+(AZ20^2))","v":19.05255888325765},{"$f":"BA18+BA19+BA20","v":0},{"$f":"SQRT((BB18^2)+(BB19^2)+(BB20^2))","v":19.05255888325765},{"$f":"BC18+BC19+BC20","v":0},{"$f":"SQRT((BD18^2)+(BD19^2)+(BD20^2))","v":19.05255888325765},{"$f":"BE18+BE19+BE20","v":0},{"$f":"SQRT((BF18^2)+(BF19^2)+(BF20^2))","v":19.05255888325765},{"$f":"BG18+BG19+BG20","v":11},{"$f":"SQRT((BH18^2)+(BH19^2)+(BH20^2))","v":19.05255888325765},{"$f":"BI18+BI19+BI20","v":0},{"$f":"SQRT((BJ18^2)+(BJ19^2)+(BJ20^2))","v":19.05255888325765},{"$f":"BK18+BK19+BK20","v":0},{"$f":"SQRT((BL18^2)+(BL19^2)+(BL20^2))","v":19.05255888325765},{"$f":"BM18+BM19+BM20","v":7},{"$f":"SQRT((BN18^2)+(BN19^2)+(BN20^2))","v":13.152946437965905},{"$f":"BO18+BO19+BO20","v":0},{"$f":"SQRT((BP18^2)+(BP19^2)+(BP20^2))","v":19.05255888325765},{"$f":"BQ18+BQ19+BQ20","v":0},{"$f":"SQRT((BR18^2)+(BR19^2)+(BR20^2))","v":19.05255888325765},{"$f":"BS18+BS19+BS20","v":0},{"$f":"SQRT((BT18^2)+(BT19^2)+(BT20^2))","v":19.05255888325765},{"$f":"BU18+BU19+BU20","v":0},{"$f":"SQRT((BV18^2)+(BV19^2)+(BV20^2))","v":19.05255888325765},{"$f":"BW18+BW19+BW20","v":2},{"$f":"SQRT((BX18^2)+(BX19^2)+(BX20^2))","v":15.842979517754859},{"$f":"BY18+BY19+BY20","v":0},{"$f":"SQRT((BZ18^2)+(BZ19^2)+(BZ20^2))","v":19.05255888325765},{"$f":"CA18+CA19+CA20","v":13},{"$f":"SQRT((CB18^2)+(CB19^2)+(CB20^2))","v":13.638181696985855},{"$f":"CC18+CC19+CC20","v":0},{"$f":"SQRT((CD18^2)+(CD19^2)+(CD20^2))","v":19.05255888325765},{"$f":"CE18+CE19+CE20","v":0},{"$f":"SQRT((CF18^2)+(CF19^2)+(CF20^2))","v":19.05255888325765},{"$f":"CG18+CG19+CG20","v":0},{"$f":"SQRT((CH18^2)+(CH19^2)+(CH20^2))","v":19.05255888325765},{"$f":"CI18+CI19+CI20","v":18},{"$f":"SQRT((CJ18^2)+(CJ19^2)+(CJ20^2))","v":19.261360284258224}]
[null,"More than 30.0 percent",{"$f":"C21+C22+C23+C24","v":0},{"$f":"SQRT((D21^2)+(D22^2)+(D23^2)+(D24^2))","v":22},{"$f":"E21+E22+E23+E24","v":0},{"$f":"SQRT((F21^2)+(F22^2)+(F23^2)+(F24^2))","v":22},{"$f":"G21+G22+G23+G24","v":0},{"$f":"SQRT((H21^2)+(H22^2)+(H23^2)+(H24^2))","v":22},{"$f":"I21+I22+I23+I24","v":230},{"$f":"SQRT((J21^2)+(J22^2)+(J23^2)+(J24^2))","v":89.162772500635043},{"$f":"K21+K22+K23+K24","v":0},{"$f":"SQRT((L21^2)+(L22^2)+(L23^2)+(L24^2))","v":22},{"$f":"M21+M22+M23+M24","v":0},{"$f":"SQRT((N21^2)+(N22^2)+(N23^2)+(N24^2))","v":22},{"$f":"O21+O22+O23+O24","v":0},{"$f":"SQRT((P21^2)+(P22^2)+(P23^2)+(P24^2))","v":22},{"$f":"Q21+Q22+Q23+Q24","v":1},{"$f":"SQRT((R21^2)+(R22^2)+(R23^2)+(R24^2))","v":19.157244060668017},{"$f":"S21+S22+S23+S24","v":21},{"$f":"SQRT((T21^2)+(T22^2)+(T23^2)+(T24^2))","v":29.103264421710495},{"$f":"U21+U22+U23+U24","v":8},{"$f":"SQRT((V21^2)+(V22^2)+(V23^2)+(V24^2))","v":17.521415467935231},{"$f":"W21+W22+W23+W24","v":0},{"$f":"SQRT((X21^2)+(X22^2)+(X23^2)+(X24^2))","v":22},{"$f":"Y21+Y22+Y23+Y24","v":0},{"$f":"SQRT((Z21^2)+(Z22^2)+(Z23^2)+(Z24^2))","v":22},{"$f":"AA21+AA22+AA23+AA24","v":3},{"$f":"SQRT((AB21^2)+(AB22^2)+(AB23^2)+(AB24^2))","v":19.467922333931785},{"$f":"AC21+AC22+AC23+AC24","v":0},{"$f":"SQRT((AD21^2)+(AD22^2)+(AD23^2)+(AD24^2))","v":22},{"$f":"AE21+AE22+AE23+AE24","v":0},{"$f":"SQRT((AF21^2)+(AF22^2)+(AF23^2)+(AF24^2))","v":22},{"$f":"AG21+AG22+AG23+AG24","v":2},{"$f":"SQRT((AH21^2)+(AH22^2)+(AH23^2)+(AH24^2))","v":19.28730152198591},{"$f":"AI21+AI22+AI23+AI24","v":1},{"$f":"SQRT((AJ21^2)+(AJ22^2)+(AJ23^2)+(AJ24^2))","v":19.157244060668017},{"$f":"AK21+AK22+AK23+AK24","v":0},{"$f":"SQRT((AL21^2)+(AL22^2)+(AL23^2)+(AL24^2))","v":22},{"$f":"AM21+AM22+AM23+AM24","v":28},{"$f":"SQRT((AN21^2)+(AN22^2)+(AN23^2)+(AN24^2))","v":28.948229652260256},{"$f":"AO21+AO22+AO23+AO24","v":0},{"$f":"SQRT((AP21^2)+(AP22^2)+(AP23^2)+(AP24^2))","v":22},{"$f":"AQ21+AQ22+AQ23+AQ24","v":0},{"$f":"SQRT((AR21^2)+(AR22^2)+(AR23^2)+(AR24^2))","v":22},{"$f":"AS21+AS22+AS23+AS24","v":3},{"$f":"SQRT((AT21^2)+(AT22^2)+(AT23^2)+(AT24^2))","v":19.467922333931785},{"$f":"AU21+AU22+AU23+AU24","v":0},{"$f":"SQRT((AV21^2)+(AV22^2)+(AV23^2)+(AV24^2))","v":22},{"$f":"AW21+AW22+AW23+AW24","v":63},{"$f":"SQRT((AX21^2)+(AX22^2)+(AX23^2)+(AX24^2))","v":58.84725991921799},{"$f":"AY21+AY22+AY23+AY24","v":0},{"$f":"SQRT((AZ21^2)+(AZ22^2)+(AZ23^2)+(AZ24^2))","v":22},{"$f":"BA21+BA22+BA23+BA24","v":0},{"$f":"SQRT((BB21^2)+(BB22^2)+(BB23^2)+(BB24^2))","v":22},{"$f":"BC21+BC22+BC23+BC24","v":0},{"$f":"SQRT((BD21^2)+(BD22^2)+(BD23^2)+(BD24^2))","v":22},{"$f":"BE21+BE22+BE23+BE24","v":0},{"$f":"SQRT((BF21^2)+(BF22^2)+(BF23^2)+(BF24^2))","v":22},{"$f":"BG21+BG22+BG23+BG24","v":30},{"$f":"SQRT((BH21^2)+(BH22^2)+(BH23^2)+(BH24^2))","v":29.240383034426891},{"$f":"BI21+BI22+BI23+BI24","v":0},{"$f":"SQRT((BJ21^2)+(BJ22^2)+(BJ23^2)+(BJ24^2))","v":22},{"$f":"BK21+BK22+BK23+BK24","v":0},{"$f":"SQRT((BL21^2)+(BL22^2)+(BL23^2)+(BL24^2))","v":22},{"$f":"BM21+BM22+BM23+BM24","v":15},{"$f":"SQRT((BN21^2)+(BN22^2)+(BN23^2)+(BN24^2))","v":22.869193252058544},{"$f":"BO21+BO22+BO23+BO24","v":0},{"$f":"SQRT((BP21^2)+(BP22^2)+(BP23^2)+(BP24^2))","v":22},{"$f":"BQ21+BQ22+BQ23+BQ24","v":0},{"$f":"SQRT((BR21^2)+(BR22^2)+(BR23^2)+(BR24^2))","v":22},{"$f":"BS21+BS22+BS23+BS24","v":0},{"$f":"SQRT((BT21^2)+(BT22^2)+(BT23^2)+(BT24^2))","v":22},{"$f":"BU21+BU22+BU23+BU24","v":4},{"$f":"SQRT((BV21^2)+(BV22^2)+(BV23^2)+(BV24^2))","v":16.552945357246848},{"$f":"BW21+BW22+BW23+BW24","v":0},{"$f":"SQRT((BX21^2)+(BX22^2)+(BX23^2)+(BX24^2))","v":22},{"$f":"BY21+BY22+BY23+BY24","v":11},{"$f":"SQRT((BZ21^2)+(BZ22^2)+(BZ23^2)+(BZ24^2))","v":25.534290669607408},{"$f":"CA21+CA22+CA23+CA24","v":2},{"$f":"SQRT((CB21^2)+(CB22^2)+(CB23^2)+(CB24^2))","v":19.28730152198591},{"$f":"CC21+CC22+CC23+CC24","v":0},{"$f":"SQRT((CD21^2)+(CD22^2)+(CD23^2)+(CD24^2))","v":22},{"$f":"CE21+CE22+CE23+CE24","v":0},{"$f":"SQRT((CF21^2)+(CF22^2)+(CF23^2)+(CF24^2))","v":22},{"$f":"CG21+CG22+CG23+CG24","v":0},{"$f":"SQRT((CH21^2)+(CH22^2)+(CH23^2)+(CH24^2))","v":22},{"$f":"CI21+CI22+CI23+CI24","v":89},{"$f":"SQRT((CJ21^2)+(CJ22^2)+(CJ23^2)+(CJ24^2))","v":61.830413228442843}]
[null,"Less Than 35% of HH Income",{"$f":"C18+C19+C20+C21","v":0},{"$f":"SQRT((D18^2)+(D19^2)+(D20^2)+(D21^2))","v":22},{"$f":"E18+E19+E20+E21","v":0},{"$f":"SQRT((F18^2)+(F19^2)+(F20^2)+(F21^2))","v":22},{"$f":"G18+G19+G20+G21","v":0},{"$f":"SQRT((H18^2)+(H19^2)+(H20^2)+(H21^2))","v":22},{"$f":"I18+I19+I20+I21","v":210},{"$f":"SQRT((J18^2)+(J19^2)+(J20^2)+(J21^2))","v":99.065634808444045},{"$f":"K18+K19+K20+K21","v":0},{"$f":"SQRT((L18^2)+(L19^2)+(L20^2)+(L21^2))","v":22},{"$f":"M18+M19+M20+M21","v":0},{"$f":"SQRT((N18^2)+(N19^2)+(N20^2)+(N21^2))","v":22},{"$f":"O18+O19+O20+O21","v":0},{"$f":"SQRT((P18^2)+(P19^2)+(P20^2)+(P21^2))","v":22},{"$f":"Q18+Q19+Q20+Q21","v":0},{"$f":"SQRT((R18^2)+(R19^2)+(R20^2)+(R21^2))","v":22},{"$f":"S18+S19+S20+S21","v":10},{"$f":"SQRT((T18^2)+(T19^2)+(T20^2)+(T21^2))","v":24.879710609249457},{"$f":"U18+U19+U20+U21","v":0},{"$f":"SQRT((V18^2)+(V19^2)+(V20^2)+(V21^2))","v":22},{"$f":"W18+W19+W20+W21","v":0},{"$f":"SQRT((X18^2)+(X19^2)+(X20^2)+(X21^2))","v":22},{"$f":"Y18+Y19+Y20+Y21","v":0},{"$f":"SQRT((Z18^2)+(Z19^2)+(Z20^2)+(Z21^2))","v":22},{"$f":"AA18+AA19+AA20+AA21","v":3},{"$f":"SQRT((AB18^2)+(AB19^2)+(AB20^2)+(AB21^2))","v":19.467922333931785},{"$f":"AC18+AC19+AC20+AC21","v":0},{"$f":"SQRT((AD18^2)+(AD19^2)+(AD20^2)+(AD21^2))","v":22},{"$f":"AE18+AE19+AE20+AE21","v":0},{"$f":"SQRT((AF18^2)+(AF19^2)+(AF20^2)+(AF21^2))","v":22},{"$f":"AG18+AG19+AG20+AG21","v":0},{"$f":"SQRT((AH18^2)+(AH19^2)+(AH20^2)+(AH21^2))","v":22},{"$f":"AI18+AI19+AI20+AI21","v":0},{"$f":"SQRT((AJ18^2)+(AJ19^2)+(AJ20^2)+(AJ21^2))","v":22},{"$f":"AK18+AK19+AK20+AK21","v":0},{"$f":"SQRT((AL18^2)+(AL19^2)+(AL20^2)+(AL21^2))","v":22},{"$f":"AM18+AM19+AM20+AM21","v":36},{"$f":"SQRT((AN18^2)+(AN19^2)+(AN20^2)+(AN21^2))","v":30.692018506445613},{"$f":"AO18+AO19+AO20+AO21","v":0},{"$f":"SQRT((AP18^2)+(AP19^2)+(AP20^2)+(AP21^2))","v":22},{"$f":"AQ18+AQ19+AQ20+AQ21","v":0},{"$f":"SQRT((AR18^2)+(AR19^2)+(AR20^2)+(AR21^2))","v":22},{"$f":"AS18+AS19+AS20+AS21","v":0},{"$f":"SQRT((AT18^2)+(AT19^2)+(AT20^2)+(AT21^2))","v":22},{"$f":"AU18+AU19+AU20+AU21","v":0},{"$f":"SQRT((AV18^2)+(AV19^2)+(AV20^2)+(AV21^2))","v":22},{"$f":"AW18+AW19+AW20+AW21","v":9},{"$f":"SQRT((AX18^2)+(AX19^2)+(AX20^2)+(AX21^2))","v":23.643180835073778},{"$f":"AY18+AY19+AY20+AY21","v":0},{"$f":"SQRT((AZ18^2)+(AZ19^2)+(AZ20^2)+(AZ21^2))","v":22},{"$f":"BA18+BA19+BA20+BA21","v":0},{"$f":"SQRT((BB18^2)+(BB19^2)+(BB20^2)+(BB21^2))","v":22},{"$f":"BC18+BC19+BC20+BC21","v":0},{"$f":"SQRT((BD18^2)+(BD19^2)+(BD20^2)+(BD21^2))","v":22},{"$f":"BE18+BE19+BE20+BE21","v":0},{"$f":"SQRT((BF18^2)+(BF19^2)+(BF20^2)+(BF21^2))","v":22},{"$f":"BG18+BG19+BG20+BG21","v":24},{"$f":"SQRT((BH18^2)+(BH19^2)+(BH20^2)+(BH21^2))","v":25.534290669607408},{"$f":"BI18+BI19+BI20+BI21","v":0},{"$f":"SQRT((BJ18^2)+(BJ19^2)+(BJ20^2)+(BJ21^2))","v":22},{"$f":"BK18+BK19+BK20+BK21","v":0},{"$f":"SQRT((BL18^2)+(BL19^2)+(BL20^2)+(BL21^2))","v":22},{"$f":"BM18+BM19+BM20+BM21","v":7},{"$f":"SQRT((BN18^2)+(BN19^2)+(BN20^2)+(BN21^2))","v":17.146428199482248},{"$f":"BO18+BO19+BO20+BO21","v":0},{"$f":"SQRT((BP18^2)+(BP19^2)+(BP20^2)+(BP21^2))","v":22},{"$f":"BQ18+BQ19+BQ20+BQ21","v":0},{"$f":"SQRT((BR18^2)+(BR19^2)+(BR20^2)+(BR21^2))","v":22},{"$f":"BS18+BS19+BS20+BS21","v":0},{"$f":"SQRT((BT18^2)+(BT19^2)+(BT20^2)+(BT21^2))","v":22},{"$f":"BU18+BU19+BU20+BU21","v":0},{"$f":"SQRT((BV18^2)+(BV19^2)+(BV20^2)+(BV21^2))","v":22},{"$f":"BW18+BW19+BW20+BW21","v":2},{"$f":"SQRT((BX18^2)+(BX19^2)+(BX20^2)+(BX21^2))","v":19.28730152198591},{"$f":"BY18+BY19+BY20+BY21","v":0},{"$f":"SQRT((BZ18^2)+(BZ19^2)+(BZ20^2)+(BZ21^2))","v":22},{"$f":"CA18+CA19+CA20+CA21","v":13},{"$f":"SQRT((CB18^2)+(CB19^2)+(CB20^2)+(CB21^2))","v":17.521415467935231},{"$f":"CC18+CC19+CC20+CC21","v":0},{"$f":"SQRT((CD18^2)+(CD19^2)+(CD20^2)+(CD21^2))","v":22},{"$f":"CE18+CE19+CE20+CE21","v":0},{"$f":"SQRT((CF18^2)+(CF19^2)+(CF20^2)+(CF21^2))","v":22},{"$f":"CG18+CG19+CG20+CG21","v":0},{"$f":"SQRT((CH18^2)+(CH19^2)+(CH20^2)+(CH21^2))","v":22},{"$f":"CI18+CI19+CI20+CI21","v":18},{"$f":"SQRT((CJ18^2)+(CJ19^2)+(CJ20^2)+(CJ21^2))","v":22.181073012818835}]
[null,"35.0 percent or more",{"$f":"C22+C23++C24","v":0},{"$f":"SQRT((D22^2)+(D23^2)+(D24^2))","v":19.05255888325765},{"$f":"E22+E23++E24","v":0},{"$f":"SQRT((F22^2)+(F23^2)+(F24^2))","v":19.05255888325765},{"$f":"G22+G23++G24","v":0},{"$f":"SQRT((H22^2)+(H23^2)+(H24^2))","v":19.05255888325765},{"$f":"I22+I23++I24","v":222},{"$f":"SQRT((J22^2)+(J23^2)+(J24^2))","v":88.209976760001467},{"$f":"K22+K23++K24","v":0},{"$f":"SQRT((L22^2)+(L23^2)+(L24^2))","v":19.05255888325765},{"$f":"M22+M23++M24","v":0},{"$f":"SQRT((N22^2)+(N23^2)+(N24^2))","v":19.05255888325765},{"$f":"O22+O23++O24","v":0},{"$f":"SQRT((P22^2)+(P23^2)+(P24^2))","v":19.05255888325765},{"$f":"Q22+Q23++Q24","v":1},{"$f":"SQRT((R22^2)+(R23^2)+(R24^2))","v":15.684387141358123},{"$f":"S22+S23++S24","v":21},{"$f":"SQRT((T22^2)+(T23^2)+(T24^2))","v":26.944387170614959},{"$f":"U22+U23++U24","v":8},{"$f":"SQRT((V22^2)+(V23^2)+(V24^2))","v":13.638181696985855},{"$f":"W22+W23++W24","v":0},{"$f":"SQRT((X22^2)+(X23^2)+(X24^2))","v":19.05255888325765},{"$f":"Y22+Y23++Y24","v":0},{"$f":"SQRT((Z22^2)+(Z23^2)+(Z24^2))","v":19.05255888325765},{"$f":"AA22+AA23++AA24","v":0},{"$f":"SQRT((AB22^2)+(AB23^2)+(AB24^2))","v":19.05255888325765},{"$f":"AC22+AC23++AC24","v":0},{"$f":"SQRT((AD22^2)+(AD23^2)+(AD24^2))","v":19.05255888325765},{"$f":"AE22+AE23++AE24","v":0},{"$f":"SQRT((AF22^2)+(AF23^2)+(AF24^2))","v":19.05255888325765},{"$f":"AG22+AG23++AG24","v":2},{"$f":"SQRT((AH22^2)+(AH23^2)+(AH24^2))","v":15.842979517754859},{"$f":"AI22+AI23++AI24","v":1},{"$f":"SQRT((AJ22^2)+(AJ23^2)+(AJ24^2))","v":15.684387141358123},{"$f":"AK22+AK23++AK24","v":0},{"$f":"SQRT((AL22^2)+(AL23^2)+(AL24^2))","v":19.05255888325765},{"$f":"AM22+AM23++AM24","v":19},{"$f":"SQRT((AN22^2)+(AN23^2)+(AN24^2))","v":25.337718918639855},{"$f":"AO22+AO23++AO24","v":0},{"$f":"SQRT((AP22^2)+(AP23^2)+(AP24^2))","v":19.05255888325765},{"$f":"AQ22+AQ23++AQ24","v":0},{"$f":"SQRT((AR22^2)+(AR23^2)+(AR24^2))","v":19.05255888325765},{"$f":"AS22+AS23++AS24","v":3},{"$f":"SQRT((AT22^2)+(AT23^2)+(AT24^2))","v":16.06237840420901},{"$f":"AU22+AU23++AU24","v":0},{"$f":"SQRT((AV22^2)+(AV23^2)+(AV24^2))","v":19.05255888325765},{"$f":"AW22+AW23++AW24","v":63},{"$f":"SQRT((AX22^2)+(AX23^2)+(AX24^2))","v":57.810033731178535},{"$f":"AY22+AY23++AY24","v":0},{"$f":"SQRT((AZ22^2)+(AZ23^2)+(AZ24^2))","v":19.05255888325765},{"$f":"BA22+BA23++BA24","v":0},{"$f":"SQRT((BB22^2)+(BB23^2)+(BB24^2))","v":19.05255888325765},{"$f":"BC22+BC23++BC24","v":0},{"$f":"SQRT((BD22^2)+(BD23^2)+(BD24^2))","v":19.05255888325765},{"$f":"BE22+BE23++BE24","v":0},{"$f":"SQRT((BF22^2)+(BF23^2)+(BF24^2))","v":19.05255888325765},{"$f":"BG22+BG23++BG24","v":17},{"$f":"SQRT((BH22^2)+(BH23^2)+(BH24^2))","v":23.790754506740637},{"$f":"BI22+BI23++BI24","v":0},{"$f":"SQRT((BJ22^2)+(BJ23^2)+(BJ24^2))","v":19.05255888325765},{"$f":"BK22+BK23++BK24","v":0},{"$f":"SQRT((BL22^2)+(BL23^2)+(BL24^2))","v":19.05255888325765},{"$f":"BM22+BM23++BM24","v":15},{"$f":"SQRT((BN22^2)+(BN23^2)+(BN24^2))","v":20.049937655763422},{"$f":"BO22+BO23++BO24","v":0},{"$f":"SQRT((BP22^2)+(BP23^2)+(BP24^2))","v":19.05255888325765},{"$f":"BQ22+BQ23++BQ24","v":0},{"$f":"SQRT((BR22^2)+(BR23^2)+(BR24^2))","v":19.05255888325765},{"$f":"BS22+BS23++BS24","v":0},{"$f":"SQRT((BT22^2)+(BT23^2)+(BT24^2))","v":19.05255888325765},{"$f":"BU22+BU23++BU24","v":4},{"$f":"SQRT((BV22^2)+(BV23^2)+(BV24^2))","v":12.369316876852981},{"$f":"BW22+BW23++BW24","v":0},{"$f":"SQRT((BX22^2)+(BX23^2)+(BX24^2))","v":19.05255888325765},{"$f":"BY22+BY23++BY24","v":11},{"$f":"SQRT((BZ22^2)+(BZ23^2)+(BZ24^2))","v":23.043437243605826},{"$f":"CA22+CA23++CA24","v":2},{"$f":"SQRT((CB22^2)+(CB23^2)+(CB24^2))","v":15.842979517754859},{"$f":"CC22+CC23++CC24","v":0},{"$f":"SQRT((CD22^2)+(CD23^2)+(CD24^2))","v":19.05255888325765},{"$f":"CE22+CE23++CE24","v":0},{"$f":"SQRT((CF22^2)+(CF23^2)+(CF24^2))","v":19.05255888325765},{"$f":"CG22+CG23++CG24","v":0},{"$f":"SQRT((CH22^2)+(CH23^2)+(CH24^2))","v":19.05255888325765},{"$f":"CI22+CI23++CI24","v":89},{"$f":"SQRT((CJ22^2)+(CJ23^2)+(CJ24^2))","v":60.844062980705026}]
[null,"50.0 percent or more",{"$f":"C24","v":0},{"$f":"D24","v":11},{"$f":"E24","v":0},11,{"$f":"G24","v":0},11,{"$f":"I24","v":160},74,{"$f":"K24","v":0},11,{"$f":"M24","v":0},11,{"$f":"O24","v":0},11,{"$f":"Q24","v":1},2,{"$f":"S24","v":21},22,{"$f":"U24","v":5},7,{"$f":"W24","v":0},11,{"$f":"Y24","v":0},11,{"$f":"AA24","v":0},11,{"$f":"AC24","v":0},11,{"$f":"AE24","v":0},11,{"$f":"AG24","v":0},11,{"$f":"AI24","v":0},11,{"$f":"AK24","v":0},11,{"$f":"AM24","v":19},20,{"$f":"AO24","v":0},11,{"$f":"AQ24","v":0},11,{"$f":"AS24","v":3},4,{"$f":"AU24","v":0},11,{"$f":"AW24","v":54},55,{"$f":"AY24","v":0},11,{"$f":"BA24","v":0},11,{"$f":"BC24","v":0},11,{"$f":"BE24","v":0},11,{"$f":"BG24","v":17},18,{"$f":"BI24","v":0},11,{"$f":"BK24","v":0},11,{"$f":"BM24","v":4},5,{"$f":"BO24","v":0},{"$f":"BP24","v":11},{"$f":"BQ24","v":0},11,{"$f":"BS24","v":0},11,{"$f":"BU24","v":2},4,{"$f":"BW24","v":0},11,{"$f":"BY24","v":11},17,{"$f":"CA24","v":2},3,{"$f":"CC24","v":0},11,{"$f":"CE24","v":0},11,{"$f":"CG24","v":0},11,{"$f":"CI24","v":83},59]
[null,"Not Computed",{"$f":"C25","v":0},11,0,11,0,11,21,20,0,11,0,11,0,11,0,11,0,11,10,13,0,11,0,11,0,11,0,11,0,11,0,11,0,11,0,11,0,11,0,11,0,11,3,5,0,11,7,10,0,11,0,11,4,5,0,11,5,7,0,11,0,11,0,11,{"$f":"BO25","v":2},3,0,11,0,11,0,11,0,11,2,3,0,11,0,11,0,11,2,3,0,11]
[null,"$20,000 to $34,999:",0,11,0,11,0,11,451,156,0,11,15,12,0,11,3,4,117,48,7,6,0,11,0,11,6,6,0,11,0,11,3,6,6,8,0,11,44,32,0,11,0,11,24,29,0,11,72,54,0,11,0,11,14,19,0,11,100,36,0,11,0,11,18,19,14,13,0,11,0,11,8,8,11,13,18,21,24,18,0,11,0,11,0,11,90,44]
[null,"Less than 30.0 percent",{"$f":"C27+C28+C29","v":0},{"$f":"SQRT((D27^2)+(D28^2)+(D29^2))","v":19.05255888325765},{"$f":"E27+E28+E29","v":0},{"$f":"SQRT((F27^2)+(F28^2)+(F29^2))","v":19.05255888325765},{"$f":"G27+G28+G29","v":0},{"$f":"SQRT((H27^2)+(H28^2)+(H29^2))","v":19.05255888325765},{"$f":"I27+I28+I29","v":224},{"$f":"SQRT((J27^2)+(J28^2)+(J29^2))","v":112.37882362794157},{"$f":"K27+K28+K29","v":0},{"$f":"SQRT((L27^2)+(L28^2)+(L29^2))","v":19.05255888325765},{"$f":"M27+M28+M29","v":0},{"$f":"SQRT((N27^2)+(N28^2)+(N29^2))","v":19.05255888325765},{"$f":"O27+O28+O29","v":0},{"$f":"SQRT((P27^2)+(P28^2)+(P29^2))","v":19.05255888325765},{"$f":"Q27+Q28+Q29","v":3},{"$f":"SQRT((R27^2)+(R28^2)+(R29^2))","v":16.06237840420901},{"$f":"S27+S28+S29","v":20},{"$f":"SQRT((T27^2)+(T28^2)+(T29^2))","v":23.043437243605826},{"$f":"U27+U28+U29","v":2},{"$f":"SQRT((V27^2)+(V28^2)+(V29^2))","v":15.842979517754859},{"$f":"W27+W28+W29","v":0},{"$f":"SQRT((X27^2)+(X28^2)+(X29^2))","v":19.05255888325765},{"$f":"Y27+Y28+Y29","v":0},{"$f":"SQRT((Z27^2)+(Z28^2)+(Z29^2))","v":19.05255888325765},{"$f":"AA27+AA28+AA29","v":0},{"$f":"SQRT((AB27^2)+(AB28^2)+(AB29^2))","v":19.05255888325765},{"$f":"AC27+AC28+AC29","v":0},{"$f":"SQRT((AD27^2)+(AD28^2)+(AD29^2))","v":19.05255888325765},{"$f":"AE27+AE28+AE29","v":0},{"$f":"SQRT((AF27^2)+(AF28^2)+(AF29^2))","v":19.05255888325765},{"$f":"AG27+AG28+AG29","v":0},{"$f":"SQRT((AH27^2)+(AH28^2)+(AH29^2))","v":19.05255888325765},{"$f":"AI27+AI28+AI29","v":1},{"$f":"SQRT((AJ27^2)+(AJ28^2)+(AJ29^2))","v":15.684387141358123},{"$f":"AK27+AK28+AK29","v":0},{"$f":"SQRT((AL27^2)+(AL28^2)+(AL29^2))","v":19.05255888325765},{"$f":"AM27+AM28+AM29","v":24},{"$f":"SQRT((AN27^2)+(AN28^2)+(AN29^2))","v":28.390139133156779},{"$f":"AO27+AO28+AO29","v":0},{"$f":"SQRT((AP27^2)+(AP28^2)+(AP29^2))","v":19.05255888325765},{"$f":"AQ27+AQ28+AQ29","v":0},{"$f":"SQRT((AR27^2)+(AR28^2)+(AR29^2))","v":19.05255888325765},{"$f":"AS27+AS28+AS29","v":19},{"$f":"SQRT((AT27^2)+(AT28^2)+(AT29^2))","v":32.03123475609393},{"$f":"AU27+AU28+AU29","v":0},{"$f":"SQRT((AV27^2)+(AV28^2)+(AV29^2))","v":19.05255888325765},{"$f":"AW27+AW28+AW29","v":39},{"$f":"SQRT((AX27^2)+(AX28^2)+(AX29^2))","v":47},{"$f":"AY27+AY28+AY29","v":0},{"$f":"SQRT((AZ27^2)+(AZ28^2)+(AZ29^2))","v":19.05255888325765},{"$f":"BA27+BA28+BA29","v":0},{"$f":"SQRT((BB27^2)+(BB28^2)+(BB29^2))","v":19.05255888325765},{"$f":"BC27+BC28+BC29","v":0},{"$f":"SQRT((BD27^2)+(BD28^2)+(BD29^2))","v":19.05255888325765},{"$f":"BE27+BE28+BE29","v":0},{"$f":"SQRT((BF27^2)+(BF28^2)+(BF29^2))","v":19.05255888325765},{"$f":"BG27+BG28+BG29","v":60},{"$f":"SQRT((BH27^2)+(BH28^2)+(BH29^2))","v":35.749125863438955},{"$f":"BI27+BI28+BI29","v":0},{"$f":"SQRT((BJ27^2)+(BJ28^2)+(BJ29^2))","v":19.05255888325765},{"$f":"BK27+BK28+BK29","v":0},{"$f":"SQRT((BL27^2)+(BL28^2)+(BL29^2))","v":19.05255888325765},{"$f":"BM27+BM28+BM29","v":15},{"$f":"SQRT((BN27^2)+(BN28^2)+(BN29^2))","v":20.85665361461421},{"$f":"BO27+BO28+BO29","v":0},{"$f":"SQRT((BP27^2)+(BP28^2)+(BP29^2))","v":19.05255888325765},{"$f":"BQ27+BQ28+BQ29","v":0},{"$f":"SQRT((BR27^2)+(BR28^2)+(BR29^2))","v":19.05255888325765},{"$f":"BS27+BS28+BS29","v":0},{"$f":"SQRT((BT27^2)+(BT28^2)+(BT29^2))","v":19.05255888325765},{"$f":"BU27+BU28+BU29","v":6},{"$f":"SQRT((BV27^2)+(BV28^2)+(BV29^2))","v":13.152946437965905},{"$f":"BW27+BW28+BW29","v":7},{"$f":"SQRT((BX27^2)+(BX28^2)+(BX29^2))","v":19.05255888325765},{"$f":"BY27+BY28+BY29","v":15},{"$f":"SQRT((BZ27^2)+(BZ28^2)+(BZ29^2))","v":26.134268690743959},{"$f":"CA27+CA28+CA29","v":15},{"$f":"SQRT((CB27^2)+(CB28^2)+(CB29^2))","v":22.315913604421397},{"$f":"CC27+CC28+CC29","v":0},{"$f":"SQRT((CD27^2)+(CD28^2)+(CD29^2))","v":19.05255888325765},{"$f":"CE27+CE28+CE29","v":0},{"$f":"SQRT((CF27^2)+(CF28^2)+(CF29^2))","v":19.05255888325765},{"$f":"CG27+CG28+CG29","v":0},{"$f":"SQRT((CH27^2)+(CH28^2)+(CH29^2))","v":19.05255888325765},{"$f":"CI27+CI28+CI29","v":46},{"$f":"SQRT((CJ27^2)+(CJ28^2)+(CJ29^2))","v":41.701318923986086}]
[null,"More than 30.0 percent",{"$f":"C30+C31+C32+C33","v":0},{"$f":"SQRT((D30^2)+(D31^2)+(D32^2)+(D33^2))","v":22},{"$f":"E30+E31+E32+E33","v":0},{"$f":"SQRT((F30^2)+(F31^2)+(F32^2)+(F33^2))","v":22},{"$f":"G30+G31+G32+G33","v":0},{"$f":"SQRT((H30^2)+(H31^2)+(H32^2)+(H33^2))","v":22},{"$f":"I30+I31+I32+I33","v":227},{"$f":"SQRT((J30^2)+(J31^2)+(J32^2)+(J33^2))","v":121.73331507849443},{"$f":"K30+K31+K32+K33","v":0},{"$f":"SQRT((L30^2)+(L31^2)+(L32^2)+(L33^2))","v":22},{"$f":"M30+M31+M32+M33","v":12},{"$f":"SQRT((N30^2)+(N31^2)+(N32^2)+(N33^2))","v":15.459624833740307},{"$f":"O30+O31+O32+O33","v":0},{"$f":"SQRT((P30^2)+(P31^2)+(P32^2)+(P33^2))","v":22},{"$f":"Q30+Q31+Q32+Q33","v":0},{"$f":"SQRT((R30^2)+(R31^2)+(R32^2)+(R33^2))","v":22},{"$f":"S30+S31+S32+S33","v":89},{"$f":"SQRT((T30^2)+(T31^2)+(T32^2)+(T33^2))","v":48.569537778323564},{"$f":"U30+U31+U32+U33","v":3},{"$f":"SQRT((V30^2)+(V31^2)+(V32^2)+(V33^2))","v":19.467922333931785},{"$f":"W30+W31+W32+W33","v":0},{"$f":"SQRT((X30^2)+(X31^2)+(X32^2)+(X33^2))","v":22},{"$f":"Y30+Y31+Y32+Y33","v":0},{"$f":"SQRT((Z30^2)+(Z31^2)+(Z32^2)+(Z33^2))","v":22},{"$f":"AA30+AA31+AA32+AA33","v":6},{"$f":"SQRT((AB30^2)+(AB31^2)+(AB32^2)+(AB33^2))","v":16.552945357246848},{"$f":"AC30+AC31+AC32+AC33","v":0},{"$f":"SQRT((AD30^2)+(AD31^2)+(AD32^2)+(AD33^2))","v":22},{"$f":"AE30+AE31+AE32+AE33","v":0},{"$f":"SQRT((AF30^2)+(AF31^2)+(AF32^2)+(AF33^2))","v":22},{"$f":"AG30+AG31+AG32+AG33","v":1},{"$f":"SQRT((AH30^2)+(AH31^2)+(AH32^2)+(AH33^2))","v":19.28730152198591},{"$f":"AI30+AI31+AI32+AI33","v":0},{"$f":"SQRT((AJ30^2)+(AJ31^2)+(AJ32^2)+(AJ33^2))","v":22},{"$f":"AK30+AK31+AK32+AK33","v":0},{"$f":"SQRT((AL30^2)+(AL31^2)+(AL32^2)+(AL33^2))","v":22},{"$f":"AM30+AM31+AM32+AM33","v":9},{"$f":"SQRT((AN30^2)+(AN31^2)+(AN32^2)+(AN33^2))","v":22.516660498395403},{"$f":"AO30+AO31+AO32+AO33","v":0},{"$f":"SQRT((AP30^2)+(AP31^2)+(AP32^2)+(AP33^2))","v":22},{"$f":"AQ30+AQ31+AQ32+AQ33","v":0},{"$f":"SQRT((AR30^2)+(AR31^2)+(AR32^2)+(AR33^2))","v":22},{"$f":"AS30+AS31+AS32+AS33","v":5},{"$f":"SQRT((AT30^2)+(AT31^2)+(AT32^2)+(AT33^2))","v":19.974984355438178},{"$f":"AU30+AU31+AU32+AU33","v":0},{"$f":"SQRT((AV30^2)+(AV31^2)+(AV32^2)+(AV33^2))","v":22},{"$f":"AW30+AW31+AW32+AW33","v":33},{"$f":"SQRT((AX30^2)+(AX31^2)+(AX32^2)+(AX33^2))","v":34.813790371058424},{"$f":"AY30+AY31+AY32+AY33","v":0},{"$f":"SQRT((AZ30^2)+(AZ31^2)+(AZ32^2)+(AZ33^2))","v":22},{"$f":"BA30+BA31+BA32+BA33","v":0},{"$f":"SQRT((BB30^2)+(BB31^2)+(BB32^2)+(BB33^2))","v":22},{"$f":"BC30+BC31+BC32+BC33","v":14},{"$f":"SQRT((BD30^2)+(BD31^2)+(BD32^2)+(BD33^2))","v":26.90724809414742},{"$f":"BE30+BE31+BE32+BE33","v":0},{"$f":"SQRT((BF30^2)+(BF31^2)+(BF32^2)+(BF33^2))","v":22},{"$f":"BG30+BG31+BG32+BG33","v":31},{"$f":"SQRT((BH30^2)+(BH31^2)+(BH32^2)+(BH33^2))","v":26.457513110645905},{"$f":"BI30+BI31+BI32+BI33","v":0},{"$f":"SQRT((BJ30^2)+(BJ31^2)+(BJ32^2)+(BJ33^2))","v":22},{"$f":"BK30+BK31+BK32+BK33","v":0},{"$f":"SQRT((BL30^2)+(BL31^2)+(BL32^2)+(BL33^2))","v":22},{"$f":"BM30+BM31+BM32+BM33","v":3},{"$f":"SQRT((BN30^2)+(BN31^2)+(BN32^2)+(BN33^2))","v":19.467922333931785},{"$f":"BO30+BO31+BO32+BO33","v":14},{"$f":"SQRT((BP30^2)+(BP31^2)+(BP32^2)+(BP33^2))","v":23.065125189341593},{"$f":"BQ30+BQ31+BQ32+BQ33","v":0},{"$f":"SQRT((BR30^2)+(BR31^2)+(BR32^2)+(BR33^2))","v":22},{"$f":"BS30+BS31+BS32+BS33","v":0},{"$f":"SQRT((BT30^2)+(BT31^2)+(BT32^2)+(BT33^2))","v":22},{"$f":"BU30+BU31+BU32+BU33","v":2},{"$f":"SQRT((BV30^2)+(BV31^2)+(BV32^2)+(BV33^2))","v":19.28730152198591},{"$f":"BW30+BW31+BW32+BW33","v":0},{"$f":"SQRT((BX30^2)+(BX31^2)+(BX32^2)+(BX33^2))","v":22},{"$f":"BY30+BY31+BY32+BY33","v":3},{"$f":"SQRT((BZ30^2)+(BZ31^2)+(BZ32^2)+(BZ33^2))","v":19.697715603592208},{"$f":"CA30+CA31+CA32+CA33","v":7},{"$f":"SQRT((CB30^2)+(CB31^2)+(CB32^2)+(CB33^2))","v":16.941074346097416},{"$f":"CC30+CC31+CC32+CC33","v":0},{"$f":"SQRT((CD30^2)+(CD31^2)+(CD32^2)+(CD33^2))","v":22},{"$f":"CE30+CE31+CE32+CE33","v":0},{"$f":"SQRT((CF30^2)+(CF31^2)+(CF32^2)+(CF33^2))","v":22},{"$f":"CG30+CG31+CG32+CG33","v":0},{"$f":"SQRT((CH30^2)+(CH31^2)+(CH32^2)+(CH33^2))","v":22},{"$f":"CI30+CI31+CI32+CI33","v":44},{"$f":"SQRT((CJ30^2)+(CJ31^2)+(CJ32^2)+(CJ33^2))","v":37.563279941985897}]
[null,"Less Than 35% of HH Income",{"$f":"C27+C28+C29+C30","v":0},{"$f":"SQRT((D27^2)+(D28^2)+(D29^2)+(D30^2))","v":22},{"$f":"E27+E28+E29+E30","v":0},{"$f":"SQRT((F27^2)+(F28^2)+(F29^2)+(F30^2))","v":22},{"$f":"G27+G28+G29+G30","v":0},{"$f":"SQRT((H27^2)+(H28^2)+(H29^2)+(H30^2))","v":22},{"$f":"I27+I28+I29+I30","v":268},{"$f":"SQRT((J27^2)+(J28^2)+(J29^2)+(J30^2))","v":119.28537211242626},{"$f":"K27+K28+K29+K30","v":0},{"$f":"SQRT((L27^2)+(L28^2)+(L29^2)+(L30^2))","v":22},{"$f":"M27+M28+M29+M30","v":2},{"$f":"SQRT((N27^2)+(N28^2)+(N29^2)+(N30^2))","v":19.28730152198591},{"$f":"O27+O28+O29+O30","v":0},{"$f":"SQRT((P27^2)+(P28^2)+(P29^2)+(P30^2))","v":22},{"$f":"Q27+Q28+Q29+Q30","v":3},{"$f":"SQRT((R27^2)+(R28^2)+(R29^2)+(R30^2))","v":19.467922333931785},{"$f":"S27+S28+S29+S30","v":47},{"$f":"SQRT((T27^2)+(T28^2)+(T29^2)+(T30^2))","v":31.859064644147981},{"$f":"U27+U28+U29+U30","v":5},{"$f":"SQRT((V27^2)+(V28^2)+(V29^2)+(V30^2))","v":16.340134638368191},{"$f":"W27+W28+W29+W30","v":0},{"$f":"SQRT((X27^2)+(X28^2)+(X29^2)+(X30^2))","v":22},{"$f":"Y27+Y28+Y29+Y30","v":0},{"$f":"SQRT((Z27^2)+(Z28^2)+(Z29^2)+(Z30^2))","v":22},{"$f":"AA27+AA28+AA29+AA30","v":0},{"$f":"SQRT((AB27^2)+(AB28^2)+(AB29^2)+(AB30^2))","v":22},{"$f":"AC27+AC28+AC29+AC30","v":0},{"$f":"SQRT((AD27^2)+(AD28^2)+(AD29^2)+(AD30^2))","v":22},{"$f":"AE27+AE28+AE29+AE30","v":0},{"$f":"SQRT((AF27^2)+(AF28^2)+(AF29^2)+(AF30^2))","v":22},{"$f":"AG27+AG28+AG29+AG30","v":0},{"$f":"SQRT((AH27^2)+(AH28^2)+(AH29^2)+(AH30^2))","v":22},{"$f":"AI27+AI28+AI29+AI30","v":1},{"$f":"SQRT((AJ27^2)+(AJ28^2)+(AJ29^2)+(AJ30^2))","v":19.157244060668017},{"$f":"AK27+AK28+AK29+AK30","v":0},{"$f":"SQRT((AL27^2)+(AL28^2)+(AL29^2)+(AL30^2))","v":22},{"$f":"AM27+AM28+AM29+AM30","v":24},{"$f":"SQRT((AN27^2)+(AN28^2)+(AN29^2)+(AN30^2))","v":30.446674695276659},{"$f":"AO27+AO28+AO29+AO30","v":0},{"$f":"SQRT((AP27^2)+(AP28^2)+(AP29^2)+(AP30^2))","v":22},{"$f":"AQ27+AQ28+AQ29+AQ30","v":0},{"$f":"SQRT((AR27^2)+(AR28^2)+(AR29^2)+(AR30^2))","v":22},{"$f":"AS27+AS28+AS29+AS30","v":19},{"$f":"SQRT((AT27^2)+(AT28^2)+(AT29^2)+(AT30^2))","v":33.867388443752198},{"$f":"AU27+AU28+AU29+AU30","v":0},{"$f":"SQRT((AV27^2)+(AV28^2)+(AV29^2)+(AV30^2))","v":22},{"$f":"AW27+AW28+AW29+AW30","v":57},{"$f":"SQRT((AX27^2)+(AX28^2)+(AX29^2)+(AX30^2))","v":51.478150704935004},{"$f":"AY27+AY28+AY29+AY30","v":0},{"$f":"SQRT((AZ27^2)+(AZ28^2)+(AZ29^2)+(AZ30^2))","v":22},{"$f":"BA27+BA28+BA29+BA30","v":0},{"$f":"SQRT((BB27^2)+(BB28^2)+(BB29^2)+(BB30^2))","v":22},{"$f":"BC27+BC28+BC29+BC30","v":0},{"$f":"SQRT((BD27^2)+(BD28^2)+(BD29^2)+(BD30^2))","v":22},{"$f":"BE27+BE28+BE29+BE30","v":0},{"$f":"SQRT((BF27^2)+(BF28^2)+(BF29^2)+(BF30^2))","v":22},{"$f":"BG27+BG28+BG29+BG30","v":72},{"$f":"SQRT((BH27^2)+(BH28^2)+(BH29^2)+(BH30^2))","v":38.039453203220468},{"$f":"BI27+BI28+BI29+BI30","v":0},{"$f":"SQRT((BJ27^2)+(BJ28^2)+(BJ29^2)+(BJ30^2))","v":22},{"$f":"BK27+BK28+BK29+BK30","v":0},{"$f":"SQRT((BL27^2)+(BL28^2)+(BL29^2)+(BL30^2))","v":22},{"$f":"BM27+BM28+BM29+BM30","v":15},{"$f":"SQRT((BN27^2)+(BN28^2)+(BN29^2)+(BN30^2))","v":23.57965224510319},{"$f":"BO27+BO28+BO29+BO30","v":0},{"$f":"SQRT((BP27^2)+(BP28^2)+(BP29^2)+(BP30^2))","v":22},{"$f":"BQ27+BQ28+BQ29+BQ30","v":0},{"$f":"SQRT((BR27^2)+(BR28^2)+(BR29^2)+(BR30^2))","v":22},{"$f":"BS27+BS28+BS29+BS30","v":0},{"$f":"SQRT((BT27^2)+(BT28^2)+(BT29^2)+(BT30^2))","v":22},{"$f":"BU27+BU28+BU29+BU30","v":6},{"$f":"SQRT((BV27^2)+(BV28^2)+(BV29^2)+(BV30^2))","v":17.146428199482248},{"$f":"BW27+BW28+BW29+BW30","v":7},{"$f":"SQRT((BX27^2)+(BX28^2)+(BX29^2)+(BX30^2))","v":22},{"$f":"BY27+BY28+BY29+BY30","v":15},{"$f":"SQRT((BZ27^2)+(BZ28^2)+(BZ29^2)+(BZ30^2))","v":28.354893757515651},{"$f":"CA27+CA28+CA29+CA30","v":20},{"$f":"SQRT((CB27^2)+(CB28^2)+(CB29^2)+(CB30^2))","v":23.108440016582687},{"$f":"CC27+CC28+CC29+CC30","v":0},{"$f":"SQRT((CD27^2)+(CD28^2)+(CD29^2)+(CD30^2))","v":22},{"$f":"CE27+CE28+CE29+CE30","v":0},{"$f":"SQRT((CF27^2)+(CF28^2)+(CF29^2)+(CF30^2))","v":22},{"$f":"CG27+CG28+CG29+CG30","v":0},{"$f":"SQRT((CH27^2)+(CH28^2)+(CH29^2)+(CH30^2))","v":22},{"$f":"CI27+CI28+CI29+CI30","v":46},{"$f":"SQRT((CJ27^2)+(CJ28^2)+(CJ29^2)+(CJ30^2))","v":43.127717305695647}]
[null,"35.0 percent or more",{"$f":"C31+C32+C33","v":0},{"$f":"SQRT((D31^2)+(D32^2)+(D33^2))","v":19.05255888325765},{"$f":"E31+E32+E33","v":0},{"$f":"SQRT((F31^2)+(F32^2)+(F33^2))","v":19.05255888325765},{"$f":"G31+G32+G33","v":0},{"$f":"SQRT((H31^2)+(H32^2)+(H33^2))","v":19.05255888325765},{"$f":"I31+I32+I33","v":183},{"$f":"SQRT((J31^2)+(J32^2)+(J33^2))","v":114.97391008398384},{"$f":"K31+K32+K33","v":0},{"$f":"SQRT((L31^2)+(L32^2)+(L33^2))","v":19.05255888325765},{"$f":"M31+M32+M33","v":10},{"$f":"SQRT((N31^2)+(N32^2)+(N33^2))","v":15.165750888103101},{"$f":"O31+O32+O33","v":0},{"$f":"SQRT((P31^2)+(P32^2)+(P33^2))","v":19.05255888325765},{"$f":"Q31+Q32+Q33","v":0},{"$f":"SQRT((R31^2)+(R32^2)+(R33^2))","v":19.05255888325765},{"$f":"S31+S32+S33","v":62},{"$f":"SQRT((T31^2)+(T32^2)+(T33^2))","v":43.301270189221931},{"$f":"U31+U32+U33","v":0},{"$f":"SQRT((V31^2)+(V32^2)+(V33^2))","v":19.05255888325765},{"$f":"W31+W32+W33","v":0},{"$f":"SQRT((X31^2)+(X32^2)+(X33^2))","v":19.05255888325765},{"$f":"Y31+Y32+Y33","v":0},{"$f":"SQRT((Z31^2)+(Z32^2)+(Z33^2))","v":19.05255888325765},{"$f":"AA31+AA32+AA33","v":6},{"$f":"SQRT((AB31^2)+(AB32^2)+(AB33^2))","v":12.369316876852981},{"$f":"AC31+AC32+AC33","v":0},{"$f":"SQRT((AD31^2)+(AD32^2)+(AD33^2))","v":19.05255888325765},{"$f":"AE31+AE32+AE33","v":0},{"$f":"SQRT((AF31^2)+(AF32^2)+(AF33^2))","v":19.05255888325765},{"$f":"AG31+AG32+AG33","v":1},{"$f":"SQRT((AH31^2)+(AH32^2)+(AH33^2))","v":15.842979517754859},{"$f":"AI31+AI32+AI33","v":0},{"$f":"SQRT((AJ31^2)+(AJ32^2)+(AJ33^2))","v":19.05255888325765},{"$f":"AK31+AK32+AK33","v":0},{"$f":"SQRT((AL31^2)+(AL32^2)+(AL33^2))","v":19.05255888325765},{"$f":"AM31+AM32+AM33","v":9},{"$f":"SQRT((AN31^2)+(AN32^2)+(AN33^2))","v":19.646882704388499},{"$f":"AO31+AO32+AO33","v":0},{"$f":"SQRT((AP31^2)+(AP32^2)+(AP33^2))","v":19.05255888325765},{"$f":"AQ31+AQ32+AQ33","v":0},{"$f":"SQRT((AR31^2)+(AR32^2)+(AR33^2))","v":19.05255888325765},{"$f":"AS31+AS32+AS33","v":5},{"$f":"SQRT((AT31^2)+(AT32^2)+(AT33^2))","v":16.673332000533065},{"$f":"AU31+AU32+AU33","v":0},{"$f":"SQRT((AV31^2)+(AV32^2)+(AV33^2))","v":19.05255888325765},{"$f":"AW31+AW32+AW33","v":15},{"$f":"SQRT((AX31^2)+(AX32^2)+(AX33^2))","v":27.766886753829642},{"$f":"AY31+AY32+AY33","v":0},{"$f":"SQRT((AZ31^2)+(AZ32^2)+(AZ33^2))","v":19.05255888325765},{"$f":"BA31+BA32+BA33","v":0},{"$f":"SQRT((BB31^2)+(BB32^2)+(BB33^2))","v":19.05255888325765},{"$f":"BC31+BC32+BC33","v":14},{"$f":"SQRT((BD31^2)+(BD32^2)+(BD33^2))","v":24.556058315617349},{"$f":"BE31+BE32+BE33","v":0},{"$f":"SQRT((BF31^2)+(BF32^2)+(BF33^2))","v":19.05255888325765},{"$f":"BG31+BG32+BG33","v":19},{"$f":"SQRT((BH31^2)+(BH32^2)+(BH33^2))","v":23.043437243605826},{"$f":"BI31+BI32+BI33","v":0},{"$f":"SQRT((BJ31^2)+(BJ32^2)+(BJ33^2))","v":19.05255888325765},{"$f":"BK31+BK32+BK33","v":0},{"$f":"SQRT((BL31^2)+(BL32^2)+(BL33^2))","v":19.05255888325765},{"$f":"BM31+BM32+BM33","v":3},{"$f":"SQRT((BN31^2)+(BN32^2)+(BN33^2))","v":16.06237840420901},{"$f":"BO31+BO32+BO33","v":14},{"$f":"SQRT((BP31^2)+(BP32^2)+(BP33^2))","v":20.273134932713294},{"$f":"BQ31+BQ32+BQ33","v":0},{"$f":"SQRT((BR31^2)+(BR32^2)+(BR33^2))","v":19.05255888325765},{"$f":"BS31+BS32+BS33","v":0},{"$f":"SQRT((BT31^2)+(BT32^2)+(BT33^2))","v":19.05255888325765},{"$f":"BU31+BU32+BU33","v":2},{"$f":"SQRT((BV31^2)+(BV32^2)+(BV33^2))","v":15.842979517754859},{"$f":"BW31+BW32+BW33","v":0},{"$f":"SQRT((BX31^2)+(BX32^2)+(BX33^2))","v":19.05255888325765},{"$f":"BY31+BY32+BY33","v":3},{"$f":"SQRT((BZ31^2)+(BZ32^2)+(BZ33^2))","v":16.340134638368191},{"$f":"CA31+CA32+CA33","v":2},{"$f":"SQRT((CB31^2)+(CB32^2)+(CB33^2))","v":15.842979517754859},{"$f":"CC31+CC32+CC33","v":0},{"$f":"SQRT((CD31^2)+(CD32^2)+(CD33^2))","v":19.05255888325765},{"$f":"CE31+CE32+CE33","v":0},{"$f":"SQRT((CF31^2)+(CF32^2)+(CF33^2))","v":19.05255888325765},{"$f":"CG31+CG32+CG33","v":0},{"$f":"SQRT((CH31^2)+(CH32^2)+(CH33^2))","v":19.05255888325765},{"$f":"CI31+CI32+CI33","v":44},{"$f":"SQRT((CJ31^2)+(CJ32^2)+(CJ33^2))","v":35.91656999213594}]
[null,"50.0 percent or more",{"$f":"C33","v":0},11,0,11,0,11,13,15,0,11,2,3,0,11,0,11,11,13,0,11,0,11,0,11,0,11,0,11,0,11,0,11,0,11,0,11,9,12,0,11,0,11,0,11,0,11,15,23,0,11,0,11,0,11,0,11,0,11,0,11,0,11,0,11,{"$f":"BO33","v":0},11,0,11,0,11,2,3,0,11,0,11,0,11,0,11,0,11,0,11,13,20]
[null,"Not Computed",0,11,0,11,0,11,0,18,0,11,3,4,0,11,0,11,8,9,2,3,0,11,0,11,0,11,0,11,0,11,2,4,5,7,0,11,11,17,0,11,0,11,0,11,0,11,0,11,0,11,0,11,0,11,0,11,9,10,0,11,0,11,0,11,0,11,0,11,0,11,0,11,4,5,0,11,2,3,0,11,0,11,0,11,0,11]
[null,"$35,000 to $49,999:",0,11,0,11,0,11,377,129,0,11,6,6,0,11,0,11,37,23,5,7,0,11,0,11,8,8,0,11,0,11,4,4,0,11,0,11,59,49,0,11,0,11,5,6,0,11,94,57,0,11,0,11,12,12,0,11,70,35,0,11,0,11,31,21,0,11,0,11,0,11,4,6,7,11,0,11,13,15,0,11,0,11,0,11,17,16]
[null,"Less than 30.0 percent",{"$f":"C36+C37+C38","v":0},{"$f":"SQRT((D36^2)+(D37^2)+(D38^2))","v":19.05255888325765},{"$f":"E36+E37+E38","v":0},{"$f":"SQRT((F36^2)+(F37^2)+(F38^2))","v":19.05255888325765},{"$f":"G36+G37+G38","v":0},{"$f":"SQRT((H36^2)+(H37^2)+(H38^2))","v":19.05255888325765},{"$f":"I36+I37+I38","v":223},{"$f":"SQRT((J36^2)+(J37^2)+(J38^2))","v":86.723699183095277},{"$f":"K36+K37+K38","v":0},{"$f":"SQRT((L36^2)+(L37^2)+(L38^2))","v":19.05255888325765},{"$f":"M36+M37+M38","v":2},{"$f":"SQRT((N36^2)+(N37^2)+(N38^2))","v":15.842979517754859},{"$f":"O36+O37+O38","v":0},{"$f":"SQRT((P36^2)+(P37^2)+(P38^2))","v":19.05255888325765},{"$f":"Q36+Q37+Q38","v":0},{"$f":"SQRT((R36^2)+(R37^2)+(R38^2))","v":19.05255888325765},{"$f":"S36+S37+S38","v":33},{"$f":"SQRT((T36^2)+(T37^2)+(T38^2))","v":25.019992006393608},{"$f":"U36+U37+U38","v":3},{"$f":"SQRT((V36^2)+(V37^2)+(V38^2))","v":16.06237840420901},{"$f":"W36+W37+W38","v":0},{"$f":"SQRT((X36^2)+(X37^2)+(X38^2))","v":19.05255888325765},{"$f":"Y36+Y37+Y38","v":0},{"$f":"SQRT((Z36^2)+(Z37^2)+(Z38^2))","v":19.05255888325765},{"$f":"AA36+AA37+AA38","v":8},{"$f":"SQRT((AB36^2)+(AB37^2)+(AB38^2))","v":17.4928556845359},{"$f":"AC36+AC37+AC38","v":0},{"$f":"SQRT((AD36^2)+(AD37^2)+(AD38^2))","v":19.05255888325765},{"$f":"AE36+AE37+AE38","v":0},{"$f":"SQRT((AF36^2)+(AF37^2)+(AF38^2))","v":19.05255888325765},{"$f":"AG36+AG37+AG38","v":0},{"$f":"SQRT((AH36^2)+(AH37^2)+(AH38^2))","v":19.05255888325765},{"$f":"AI36+AI37+AI38","v":0},{"$f":"SQRT((AJ36^2)+(AJ37^2)+(AJ38^2))","v":19.05255888325765},{"$f":"AK36+AK37+AK38","v":0},{"$f":"SQRT((AL36^2)+(AL37^2)+(AL38^2))","v":19.05255888325765},{"$f":"AM36+AM37+AM38","v":59},{"$f":"SQRT((AN36^2)+(AN37^2)+(AN38^2))","v":47.360320944858472},{"$f":"AO36+AO37+AO38","v":0},{"$f":"SQRT((AP36^2)+(AP37^2)+(AP38^2))","v":19.05255888325765},{"$f":"AQ36+AQ37+AQ38","v":0},{"$f":"SQRT((AR36^2)+(AR37^2)+(AR38^2))","v":19.05255888325765},{"$f":"AS36+AS37+AS38","v":0},{"$f":"SQRT((AT36^2)+(AT37^2)+(AT38^2))","v":19.05255888325765},{"$f":"AU36+AU37+AU38","v":0},{"$f":"SQRT((AV36^2)+(AV37^2)+(AV38^2))","v":19.05255888325765},{"$f":"AW36+AW37+AW38","v":94},{"$f":"SQRT((AX36^2)+(AX37^2)+(AX38^2))","v":57.436921923097515},{"$f":"AY36+AY37+AY38","v":0},{"$f":"SQRT((AZ36^2)+(AZ37^2)+(AZ38^2))","v":19.05255888325765},{"$f":"BA36+BA37+BA38","v":0},{"$f":"SQRT((BB36^2)+(BB37^2)+(BB38^2))","v":19.05255888325765},{"$f":"BC36+BC37+BC38","v":4},{"$f":"SQRT((BD36^2)+(BD37^2)+(BD38^2))","v":12.449899597988733},{"$f":"BE36+BE37+BE38","v":0},{"$f":"SQRT((BF36^2)+(BF37^2)+(BF38^2))","v":19.05255888325765},{"$f":"BG36+BG37+BG38","v":70},{"$f":"SQRT((BH36^2)+(BH37^2)+(BH38^2))","v":37.363083384538811},{"$f":"BI36+BI37+BI38","v":0},{"$f":"SQRT((BJ36^2)+(BJ37^2)+(BJ38^2))","v":19.05255888325765},{"$f":"BK36+BK37+BK38","v":0},{"$f":"SQRT((BL36^2)+(BL37^2)+(BL38^2))","v":19.05255888325765},{"$f":"BM36+BM37+BM38","v":24},{"$f":"SQRT((BN36^2)+(BN37^2)+(BN38^2))","v":23.937418407171648},{"$f":"BO36+BO37+BO38","v":0},{"$f":"SQRT((BP36^2)+(BP37^2)+(BP38^2))","v":19.05255888325765},{"$f":"BQ36+BQ37+BQ38","v":0},{"$f":"SQRT((BR36^2)+(BR37^2)+(BR38^2))","v":19.05255888325765},{"$f":"BS36+BS37+BS38","v":0},{"$f":"SQRT((BT36^2)+(BT37^2)+(BT38^2))","v":19.05255888325765},{"$f":"BU36+BU37+BU38","v":4},{"$f":"SQRT((BV36^2)+(BV37^2)+(BV38^2))","v":16.673332000533065},{"$f":"BW36+BW37+BW38","v":0},{"$f":"SQRT((BX36^2)+(BX37^2)+(BX38^2))","v":19.05255888325765},{"$f":"BY36+BY37+BY38","v":0},{"$f":"SQRT((BZ36^2)+(BZ37^2)+(BZ38^2))","v":19.05255888325765},{"$f":"CA36+CA37+CA38","v":6},{"$f":"SQRT((CB36^2)+(CB37^2)+(CB38^2))","v":18.493242008906929},{"$f":"CC36+CC37+CC38","v":0},{"$f":"SQRT((CD36^2)+(CD37^2)+(CD38^2))","v":19.05255888325765},{"$f":"CE36+CE37+CE38","v":0},{"$f":"SQRT((CF36^2)+(CF37^2)+(CF38^2))","v":19.05255888325765},{"$f":"CG36+CG37+CG38","v":0},{"$f":"SQRT((CH36^2)+(CH37^2)+(CH38^2))","v":19.05255888325765},{"$f":"CI36+CI37+CI38","v":17},{"$f":"SQRT((CJ36^2)+(CJ37^2)+(CJ38^2))","v":20.663978319771825}]
[null,"More than 30.0 percent",{"$f":"C39+C40+C41+C42","v":0},{"$f":"SQRT((D39^2)+(D40^2)+(D41^2)+(D42^2))","v":22},{"$f":"E39+E40+E41+E42","v":0},{"$f":"SQRT((F39^2)+(F40^2)+(F41^2)+(F42^2))","v":22},{"$f":"G39+G40+G41+G42","v":0},{"$f":"SQRT((H39^2)+(H40^2)+(H41^2)+(H42^2))","v":22},{"$f":"I39+I40+I41+I42","v":154},{"$f":"SQRT((J39^2)+(J40^2)+(J41^2)+(J42^2))","v":97.103038057519086},{"$f":"K39+K40+K41+K42","v":0},{"$f":"SQRT((L39^2)+(L40^2)+(L41^2)+(L42^2))","v":22},{"$f":"M39+M40+M41+M42","v":4},{"$f":"SQRT((N39^2)+(N40^2)+(N41^2)+(N42^2))","v":19.697715603592208},{"$f":"O39+O40+O41+O42","v":0},{"$f":"SQRT((P39^2)+(P40^2)+(P41^2)+(P42^2))","v":22},{"$f":"Q39+Q40+Q41+Q42","v":0},{"$f":"SQRT((R39^2)+(R40^2)+(R41^2)+(R42^2))","v":22},{"$f":"S39+S40+S41+S42","v":0},{"$f":"SQRT((T39^2)+(T40^2)+(T41^2)+(T42^2))","v":22},{"$f":"U39+U40+U41+U42","v":2},{"$f":"SQRT((V39^2)+(V40^2)+(V41^2)+(V42^2))","v":19.697715603592208},{"$f":"W39+W40+W41+W42","v":0},{"$f":"SQRT((X39^2)+(X40^2)+(X41^2)+(X42^2))","v":22},{"$f":"Y39+Y40+Y41+Y42","v":0},{"$f":"SQRT((Z39^2)+(Z40^2)+(Z41^2)+(Z42^2))","v":22},{"$f":"AA39+AA40+AA41+AA42","v":0},{"$f":"SQRT((AB39^2)+(AB40^2)+(AB41^2)+(AB42^2))","v":22},{"$f":"AC39+AC40+AC41+AC42","v":0},{"$f":"SQRT((AD39^2)+(AD40^2)+(AD41^2)+(AD42^2))","v":22},{"$f":"AE39+AE40+AE41+AE42","v":0},{"$f":"SQRT((AF39^2)+(AF40^2)+(AF41^2)+(AF42^2))","v":22},{"$f":"AG39+AG40+AG41+AG42","v":2},{"$f":"SQRT((AH39^2)+(AH40^2)+(AH41^2)+(AH42^2))","v":19.28730152198591},{"$f":"AI39+AI40+AI41+AI42","v":0},{"$f":"SQRT((AJ39^2)+(AJ40^2)+(AJ41^2)+(AJ42^2))","v":22},{"$f":"AK39+AK40+AK41+AK42","v":0},{"$f":"SQRT((AL39^2)+(AL40^2)+(AL41^2)+(AL42^2))","v":22},{"$f":"AM39+AM40+AM41+AM42","v":0},{"$f":"SQRT((AN39^2)+(AN40^2)+(AN41^2)+(AN42^2))","v":22},{"$f":"AO39+AO40+AO41+AO42","v":0},{"$f":"SQRT((AP39^2)+(AP40^2)+(AP41^2)+(AP42^2))","v":22},{"$f":"AQ39+AQ40+AQ41+AQ42","v":0},{"$f":"SQRT((AR39^2)+(AR40^2)+(AR41^2)+(AR42^2))","v":22},{"$f":"AS39+AS40+AS41+AS42","v":5},{"$f":"SQRT((AT39^2)+(AT40^2)+(AT41^2)+(AT42^2))","v":19.974984355438178},{"$f":"AU39+AU40+AU41+AU42","v":0},{"$f":"SQRT((AV39^2)+(AV40^2)+(AV41^2)+(AV42^2))","v":22},{"$f":"AW39+AW40+AW41+AW42","v":0},{"$f":"SQRT((AX39^2)+(AX40^2)+(AX41^2)+(AX42^2))","v":22},{"$f":"AY39+AY40+AY41+AY42","v":0},{"$f":"SQRT((AZ39^2)+(AZ40^2)+(AZ41^2)+(AZ42^2))","v":22},{"$f":"BA39+BA40+BA41+BA42","v":0},{"$f":"SQRT((BB39^2)+(BB40^2)+(BB41^2)+(BB42^2))","v":22},{"$f":"BC39+BC40+BC41+BC42","v":0},{"$f":"SQRT((BD39^2)+(BD40^2)+(BD41^2)+(BD42^2))","v":22},{"$f":"BE39+BE40+BE41+BE42","v":0},{"$f":"SQRT((BF39^2)+(BF40^2)+(BF41^2)+(BF42^2))","v":22},{"$f":"BG39+BG40+BG41+BG42","v":0},{"$f":"SQRT((BH39^2)+(BH40^2)+(BH41^2)+(BH42^2))","v":22},{"$f":"BI39+BI40+BI41+BI42","v":0},{"$f":"SQRT((BJ39^2)+(BJ40^2)+(BJ41^2)+(BJ42^2))","v":22},{"$f":"BK39+BK40+BK41+BK42","v":0},{"$f":"SQRT((BL39^2)+(BL40^2)+(BL41^2)+(BL42^2))","v":22},{"$f":"BM39+BM40+BM41+BM42","v":3},{"$f":"SQRT((BN39^2)+(BN40^2)+(BN41^2)+(BN42^2))","v":19.467922333931785},{"$f":"BO39+BO40+BO41+BO42","v":0},{"$f":"SQRT((BP39^2)+(BP40^2)+(BP41^2)+(BP42^2))","v":22},{"$f":"BQ39+BQ40+BQ41+BQ42","v":0},{"$f":"SQRT((BR39^2)+(BR40^2)+(BR41^2)+(BR42^2))","v":22},{"$f":"BS39+BS40+BS41+BS42","v":0},{"$f":"SQRT((BT39^2)+(BT40^2)+(BT41^2)+(BT42^2))","v":22},{"$f":"BU39+BU40+BU41+BU42","v":0},{"$f":"SQRT((BV39^2)+(BV40^2)+(BV41^2)+(BV42^2))","v":22},{"$f":"BW39+BW40+BW41+BW42","v":0},{"$f":"SQRT((BX39^2)+(BX40^2)+(BX41^2)+(BX42^2))","v":22},{"$f":"BY39+BY40+BY41+BY42","v":0},{"$f":"SQRT((BZ39^2)+(BZ40^2)+(BZ41^2)+(BZ42^2))","v":22},{"$f":"CA39+CA40+CA41+CA42","v":0},{"$f":"SQRT((CB39^2)+(CB40^2)+(CB41^2)+(CB42^2))","v":22},{"$f":"CC39+CC40+CC41+CC42","v":0},{"$f":"SQRT((CD39^2)+(CD40^2)+(CD41^2)+(CD42^2))","v":22},{"$f":"CE39+CE40+CE41+CE42","v":0},{"$f":"SQRT((CF39^2)+(CF40^2)+(CF41^2)+(CF42^2))","v":22},{"$f":"CG39+CG40+CG41+CG42","v":0},{"$f":"SQRT((CH39^2)+(CH40^2)+(CH41^2)+(CH42^2))","v":22},{"$f":"CI39+CI40+CI41+CI42","v":0},{"$f":"SQRT((CJ39^2)+(CJ40^2)+(CJ41^2)+(CJ42^2))","v":22}]
[null,"Less Than 35% of HH Income",{"$f":"C36+C37+C38+C39","v":0},{"$f":"SQRT((D36^2)+(D37^2)+(D38^2)+(D39^2))","v":22},{"$f":"E36+E37+E38+E39","v":0},{"$f":"SQRT((F36^2)+(F37^2)+(F38^2)+(F39^2))","v":22},{"$f":"G36+G37+G38+G39","v":0},{"$f":"SQRT((H36^2)+(H37^2)+(H38^2)+(H39^2))","v":22},{"$f":"I36+I37+I38+I39","v":244},{"$f":"SQRT((J36^2)+(J37^2)+(J38^2)+(J39^2))","v":92.097774131626011},{"$f":"K36+K37+K38+K39","v":0},{"$f":"SQRT((L36^2)+(L37^2)+(L38^2)+(L39^2))","v":22},{"$f":"M36+M37+M38+M39","v":6},{"$f":"SQRT((N36^2)+(N37^2)+(N38^2)+(N39^2))","v":16.61324772583615},{"$f":"O36+O37+O38+O39","v":0},{"$f":"SQRT((P36^2)+(P37^2)+(P38^2)+(P39^2))","v":22},{"$f":"Q36+Q37+Q38+Q39","v":0},{"$f":"SQRT((R36^2)+(R37^2)+(R38^2)+(R39^2))","v":22},{"$f":"S36+S37+S38+S39","v":33},{"$f":"SQRT((T36^2)+(T37^2)+(T38^2)+(T39^2))","v":27.331300737432898},{"$f":"U36+U37+U38+U39","v":5},{"$f":"SQRT((V36^2)+(V37^2)+(V38^2)+(V39^2))","v":16.822603841260722},{"$f":"W36+W37+W38+W39","v":0},{"$f":"SQRT((X36^2)+(X37^2)+(X38^2)+(X39^2))","v":22},{"$f":"Y36+Y37+Y38+Y39","v":0},{"$f":"SQRT((Z36^2)+(Z37^2)+(Z38^2)+(Z39^2))","v":22},{"$f":"AA36+AA37+AA38+AA39","v":8},{"$f":"SQRT((AB36^2)+(AB37^2)+(AB38^2)+(AB39^2))","v":20.663978319771825},{"$f":"AC36+AC37+AC38+AC39","v":0},{"$f":"SQRT((AD36^2)+(AD37^2)+(AD38^2)+(AD39^2))","v":22},{"$f":"AE36+AE37+AE38+AE39","v":0},{"$f":"SQRT((AF36^2)+(AF37^2)+(AF38^2)+(AF39^2))","v":22},{"$f":"AG36+AG37+AG38+AG39","v":2},{"$f":"SQRT((AH36^2)+(AH37^2)+(AH38^2)+(AH39^2))","v":19.28730152198591},{"$f":"AI36+AI37+AI38+AI39","v":0},{"$f":"SQRT((AJ36^2)+(AJ37^2)+(AJ38^2)+(AJ39^2))","v":22},{"$f":"AK36+AK37+AK38+AK39","v":0},{"$f":"SQRT((AL36^2)+(AL37^2)+(AL38^2)+(AL39^2))","v":22},{"$f":"AM36+AM37+AM38+AM39","v":59},{"$f":"SQRT((AN36^2)+(AN37^2)+(AN38^2)+(AN39^2))","v":48.620983124572874},{"$f":"AO36+AO37+AO38+AO39","v":0},{"$f":"SQRT((AP36^2)+(AP37^2)+(AP38^2)+(AP39^2))","v":22},{"$f":"AQ36+AQ37+AQ38+AQ39","v":0},{"$f":"SQRT((AR36^2)+(AR37^2)+(AR38^2)+(AR39^2))","v":22},{"$f":"AS36+AS37+AS38+AS39","v":0},{"$f":"SQRT((AT36^2)+(AT37^2)+(AT38^2)+(AT39^2))","v":22},{"$f":"AU36+AU37+AU38+AU39","v":0},{"$f":"SQRT((AV36^2)+(AV37^2)+(AV38^2)+(AV39^2))","v":22},{"$f":"AW36+AW37+AW38+AW39","v":94},{"$f":"SQRT((AX36^2)+(AX37^2)+(AX38^2)+(AX39^2))","v":58.480766068853782},{"$f":"AY36+AY37+AY38+AY39","v":0},{"$f":"SQRT((AZ36^2)+(AZ37^2)+(AZ38^2)+(AZ39^2))","v":22},{"$f":"BA36+BA37+BA38+BA39","v":0},{"$f":"SQRT((BB36^2)+(BB37^2)+(BB38^2)+(BB39^2))","v":22},{"$f":"BC36+BC37+BC38+BC39","v":4},{"$f":"SQRT((BD36^2)+(BD37^2)+(BD38^2)+(BD39^2))","v":16.61324772583615},{"$f":"BE36+BE37+BE38+BE39","v":0},{"$f":"SQRT((BF36^2)+(BF37^2)+(BF38^2)+(BF39^2))","v":22},{"$f":"BG36+BG37+BG38+BG39","v":70},{"$f":"SQRT((BH36^2)+(BH37^2)+(BH38^2)+(BH39^2))","v":38.948684188300895},{"$f":"BI36+BI37+BI38+BI39","v":0},{"$f":"SQRT((BJ36^2)+(BJ37^2)+(BJ38^2)+(BJ39^2))","v":22},{"$f":"BK36+BK37+BK38+BK39","v":0},{"$f":"SQRT((BL36^2)+(BL37^2)+(BL38^2)+(BL39^2))","v":22},{"$f":"BM36+BM37+BM38+BM39","v":24},{"$f":"SQRT((BN36^2)+(BN37^2)+(BN38^2)+(BN39^2))","v":26.343879744638983},{"$f":"BO36+BO37+BO38+BO39","v":0},{"$f":"SQRT((BP36^2)+(BP37^2)+(BP38^2)+(BP39^2))","v":22},{"$f":"BQ36+BQ37+BQ38+BQ39","v":0},{"$f":"SQRT((BR36^2)+(BR37^2)+(BR38^2)+(BR39^2))","v":22},{"$f":"BS36+BS37+BS38+BS39","v":0},{"$f":"SQRT((BT36^2)+(BT37^2)+(BT38^2)+(BT39^2))","v":22},{"$f":"BU36+BU37+BU38+BU39","v":4},{"$f":"SQRT((BV36^2)+(BV37^2)+(BV38^2)+(BV39^2))","v":19.974984355438178},{"$f":"BW36+BW37+BW38+BW39","v":0},{"$f":"SQRT((BX36^2)+(BX37^2)+(BX38^2)+(BX39^2))","v":22},{"$f":"BY36+BY37+BY38+BY39","v":0},{"$f":"SQRT((BZ36^2)+(BZ37^2)+(BZ38^2)+(BZ39^2))","v":22},{"$f":"CA36+CA37+CA38+CA39","v":6},{"$f":"SQRT((CB36^2)+(CB37^2)+(CB38^2)+(CB39^2))","v":21.517434791350013},{"$f":"CC36+CC37+CC38+CC39","v":0},{"$f":"SQRT((CD36^2)+(CD37^2)+(CD38^2)+(CD39^2))","v":22},{"$f":"CE36+CE37+CE38+CE39","v":0},{"$f":"SQRT((CF36^2)+(CF37^2)+(CF38^2)+(CF39^2))","v":22},{"$f":"CG36+CG37+CG38+CG39","v":0},{"$f":"SQRT((CH36^2)+(CH37^2)+(CH38^2)+(CH39^2))","v":22},{"$f":"CI36+CI37+CI38+CI39","v":17},{"$f":"SQRT((CJ36^2)+(CJ37^2)+(CJ38^2)+(CJ39^2))","v":23.409399821439251}]
[null,"35.0 percent or more",{"$f":"C40+C41+C42","v":0},{"$f":"SQRT((D40^2)+(D41^2)+(D42^2))","v":19.05255888325765},{"$f":"E40+E41+E42","v":0},{"$f":"SQRT((F40^2)+(F41^2)+(F42^2))","v":19.05255888325765},{"$f":"G40+G41+G42","v":0},{"$f":"SQRT((H40^2)+(H41^2)+(H42^2))","v":19.05255888325765},{"$f":"I40+I41+I42","v":133},{"$f":"SQRT((J40^2)+(J41^2)+(J42^2))","v":92.021736562618727},{"$f":"K40+K41+K42","v":0},{"$f":"SQRT((L40^2)+(L41^2)+(L42^2))","v":19.05255888325765},{"$f":"M40+M41+M42","v":0},{"$f":"SQRT((N40^2)+(N41^2)+(N42^2))","v":19.05255888325765},{"$f":"O40+O41+O42","v":0},{"$f":"SQRT((P40^2)+(P41^2)+(P42^2))","v":19.05255888325765},{"$f":"Q40+Q41+Q42","v":0},{"$f":"SQRT((R40^2)+(R41^2)+(R42^2))","v":19.05255888325765},{"$f":"S40+S41+S42","v":0},{"$f":"SQRT((T40^2)+(T41^2)+(T42^2))","v":19.05255888325765},{"$f":"U40+U41+U42","v":0},{"$f":"SQRT((V40^2)+(V41^2)+(V42^2))","v":19.05255888325765},{"$f":"W40+W41+W42","v":0},{"$f":"SQRT((X40^2)+(X41^2)+(X42^2))","v":19.05255888325765},{"$f":"Y40+Y41+Y42","v":0},{"$f":"SQRT((Z40^2)+(Z41^2)+(Z42^2))","v":19.05255888325765},{"$f":"AA40+AA41+AA42","v":0},{"$f":"SQRT((AB40^2)+(AB41^2)+(AB42^2))","v":19.05255888325765},{"$f":"AC40+AC41+AC42","v":0},{"$f":"SQRT((AD40^2)+(AD41^2)+(AD42^2))","v":19.05255888325765},{"$f":"AE40+AE41+AE42","v":0},{"$f":"SQRT((AF40^2)+(AF41^2)+(AF42^2))","v":19.05255888325765},{"$f":"AG40+AG41+AG42","v":0},{"$f":"SQRT((AH40^2)+(AH41^2)+(AH42^2))","v":19.05255888325765},{"$f":"AI40+AI41+AI42","v":0},{"$f":"SQRT((AJ40^2)+(AJ41^2)+(AJ42^2))","v":19.05255888325765},{"$f":"AK40+AK41+AK42","v":0},{"$f":"SQRT((AL40^2)+(AL41^2)+(AL42^2))","v":19.05255888325765},{"$f":"AM40+AM41+AM42","v":0},{"$f":"SQRT((AN40^2)+(AN41^2)+(AN42^2))","v":19.05255888325765},{"$f":"AO40+AO41+AO42","v":0},{"$f":"SQRT((AP40^2)+(AP41^2)+(AP42^2))","v":19.05255888325765},{"$f":"AQ40+AQ41+AQ42","v":0},{"$f":"SQRT((AR40^2)+(AR41^2)+(AR42^2))","v":19.05255888325765},{"$f":"AS40+AS41+AS42","v":5},{"$f":"SQRT((AT40^2)+(AT41^2)+(AT42^2))","v":16.673332000533065},{"$f":"AU40+AU41+AU42","v":0},{"$f":"SQRT((AV40^2)+(AV41^2)+(AV42^2))","v":19.05255888325765},{"$f":"AW40+AW41+AW42","v":0},{"$f":"SQRT((AX40^2)+(AX41^2)+(AX42^2))","v":19.05255888325765},{"$f":"AY40+AY41+AY42","v":0},{"$f":"SQRT((AZ40^2)+(AZ41^2)+(AZ42^2))","v":19.05255888325765},{"$f":"BA40+BA41+BA42","v":0},{"$f":"SQRT((BB40^2)+(BB41^2)+(BB42^2))","v":19.05255888325765},{"$f":"BC40+BC41+BC42","v":0},{"$f":"SQRT((BD40^2)+(BD41^2)+(BD42^2))","v":19.05255888325765},{"$f":"BE40+BE41+BE42","v":0},{"$f":"SQRT((BF40^2)+(BF41^2)+(BF42^2))","v":19.05255888325765},{"$f":"BG40+BG41+BG42","v":0},{"$f":"SQRT((BH40^2)+(BH41^2)+(BH42^2))","v":19.05255888325765},{"$f":"BI40+BI41+BI42","v":0},{"$f":"SQRT((BJ40^2)+(BJ41^2)+(BJ42^2))","v":19.05255888325765},{"$f":"BK40+BK41+BK42","v":0},{"$f":"SQRT((BL40^2)+(BL41^2)+(BL42^2))","v":19.05255888325765},{"$f":"BM40+BM41+BM42","v":3},{"$f":"SQRT((BN40^2)+(BN41^2)+(BN42^2))","v":16.06237840420901},{"$f":"BO40+BO41+BO42","v":0},{"$f":"SQRT((BP40^2)+(BP41^2)+(BP42^2))","v":19.05255888325765},{"$f":"BQ40+BQ41+BQ42","v":0},{"$f":"SQRT((BR40^2)+(BR41^2)+(BR42^2))","v":19.05255888325765},{"$f":"BS40+BS41+BS42","v":0},{"$f":"SQRT((BT40^2)+(BT41^2)+(BT42^2))","v":19.05255888325765},{"$f":"BU40+BU41+BU42","v":0},{"$f":"SQRT((BV40^2)+(BV41^2)+(BV42^2))","v":19.05255888325765},{"$f":"BW40+BW41+BW42","v":0},{"$f":"SQRT((BX40^2)+(BX41^2)+(BX42^2))","v":19.05255888325765},{"$f":"BY40+BY41+BY42","v":0},{"$f":"SQRT((BZ40^2)+(BZ41^2)+(BZ42^2))","v":19.05255888325765},{"$f":"CA40+CA41+CA42","v":0},{"$f":"SQRT((CB40^2)+(CB41^2)+(CB42^2))","v":19.05255888325765},{"$f":"CC40+CC41+CC42","v":0},{"$f":"SQRT((CD40^2)+(CD41^2)+(CD42^2))","v":19.05255888325765},{"$f":"CE40+CE41+CE42","v":0},{"$f":"SQRT((CF40^2)+(CF41^2)+(CF42^2))","v":19.05255888325765},{"$f":"CG40+CG41+CG42","v":0},{"$f":"SQRT((CH40^2)+(CH41^2)+(CH42^2))","v":19.05255888325765},{"$f":"CI40+CI41+CI42","v":0},{"$f":"SQRT((CJ40^2)+(CJ41^2)+(CJ42^2))","v":19.05255888325765}]
[null,"50.0 percent or more",{"$f":"C42","v":0},{"$f":"D42","v":11},{"$f":"E42","v":0},11,{"$f":"G42","v":0},11,{"$f":"I42","v":0},18,{"$f":"K42","v":0},11,{"$f":"M42","v":0},11,{"$f":"O42","v":0},11,{"$f":"Q42","v":0},11,{"$f":"S42","v":0},11,{"$f":"U42","v":0},11,{"$f":"W42","v":0},11,{"$f":"Y42","v":0},11,{"$f":"AA42","v":0},11,{"$f":"AC42","v":0},11,{"$f":"AE42","v":0},11,{"$f":"AG42","v":0},11,{"$f":"AI42","v":0},11,{"$f":"AK42","v":0},11,{"$f":"AM42","v":0},11,{"$f":"AO42","v":0},11,{"$f":"AQ42","v":0},11,{"$f":"AS42","v":0},11,{"$f":"AU42","v":0},11,{"$f":"AW42","v":0},11,{"$f":"AY42","v":0},11,{"$f":"BA42","v":0},11,{"$f":"BC42","v":0},11,{"$f":"BE42","v":0},11,{"$f":"BG42","v":0},11,{"$f":"BI42","v":0},11,{"$f":"BK42","v":0},11,{"$f":"BM42","v":0},11,{"$f":"BO42","v":0},{"$f":"BP42","v":11},{"$f":"BQ42","v":0},11,{"$f":"BS42","v":0},11,{"$f":"BU42","v":0},11,{"$f":"BW42","v":0},11,{"$f":"BY42","v":0},11,{"$f":"CA42","v":0},11,{"$f":"CC42","v":0},11,{"$f":"CE42","v":0},11,{"$f":"CG42","v":0},11,{"$f":"CI42","v":0},11]
[null,"Not Computed",{"$f":"C43","v":0},11,{"$f":"E43","v":0},11,{"$f":"G43","v":0},11,{"$f":"I43","v":0},18,{"$f":"K43","v":0},11,{"$f":"M43","v":0},11,{"$f":"O43","v":0},11,{"$f":"Q43","v":0},11,{"$f":"S43","v":4},6,{"$f":"U43","v":0},11,{"$f":"W43","v":0},11,{"$f":"Y43","v":0},11,{"$f":"AA43","v":0},11,{"$f":"AC43","v":0},11,{"$f":"AE43","v":0},11,{"$f":"AG43","v":2},3,{"$f":"AI43","v":0},11,{"$f":"AK43","v":0},11,{"$f":"AM43","v":0},11,{"$f":"AO43","v":0},11,{"$f":"AQ43","v":0},11,{"$f":"AS43","v":0},11,{"$f":"AU43","v":0},11,{"$f":"AW43","v":0},11,{"$f":"AY43","v":0},11,{"$f":"BA43","v":0},11,{"$f":"BC43","v":8},8,{"$f":"BE43","v":0},11,{"$f":"BG43","v":0},11,{"$f":"BI43","v":0},11,{"$f":"BK43","v":0},11,{"$f":"BM43","v":4},5,{"$f":"BO43","v":0},11,{"$f":"BQ43","v":0},11,{"$f":"BS43","v":0},11,{"$f":"BU43","v":0},11,{"$f":"BW43","v":7},11,{"$f":"BY43","v":0},11,{"$f":"CA43","v":7},11,{"$f":"CC43","v":0},11,{"$f":"CE43","v":0},11,{"$f":"CG43","v":0},11,{"$f":"CI43","v":0},11]
[null,"$50,000 to $74,999:",{"$f":"C44","v":0},11,0,11,0,11,142,82,0,11,31,20,0,11,1,3,36,31,3,4,0,11,0,11,35,24,0,11,0,11,4,5,6,6,0,11,92,65,0,11,0,11,11,11,0,11,53,43,0,11,0,11,32,17,0,11,11,11,0,11,0,11,4,7,{"$f":"BO44","v":10},9,0,11,0,11,11,9,0,11,14,20,4,5,0,11,0,11,0,11,92,52]
[null,"Less than 30.0 percent",{"$f":"C45+C46+C47","v":0},{"$f":"SQRT((D45^2)+(D46^2)+(D47^2))","v":19.05255888325765},{"$f":"E45+E46+E47","v":0},{"$f":"SQRT((F45^2)+(F46^2)+(F47^2))","v":19.05255888325765},{"$f":"G45+G46+G47","v":0},{"$f":"SQRT((H45^2)+(H46^2)+(H47^2))","v":19.05255888325765},{"$f":"I45+I46+I47","v":142},{"$f":"SQRT((J45^2)+(J46^2)+(J47^2))","v":82.933708466461326},{"$f":"K45+K46+K47","v":0},{"$f":"SQRT((L45^2)+(L46^2)+(L47^2))","v":19.05255888325765},{"$f":"M45+M46+M47","v":24},{"$f":"SQRT((N45^2)+(N46^2)+(N47^2))","v":21.470910553583888},{"$f":"O45+O46+O47","v":0},{"$f":"SQRT((P45^2)+(P46^2)+(P47^2))","v":19.05255888325765},{"$f":"Q45+Q46+Q47","v":0},{"$f":"SQRT((R45^2)+(R46^2)+(R47^2))","v":19.05255888325765},{"$f":"S45+S46+S47","v":18},{"$f":"SQRT((T45^2)+(T46^2)+(T47^2))","v":22.315913604421397},{"$f":"U45+U46+U47","v":3},{"$f":"SQRT((V45^2)+(V46^2)+(V47^2))","v":16.06237840420901},{"$f":"W45+W46+W47","v":0},{"$f":"SQRT((X45^2)+(X46^2)+(X47^2))","v":19.05255888325765},{"$f":"Y45+Y46+Y47","v":0},{"$f":"SQRT((Z45^2)+(Z46^2)+(Z47^2))","v":19.05255888325765},{"$f":"AA45+AA46+AA47","v":31},{"$f":"SQRT((AB45^2)+(AB46^2)+(AB47^2))","v":22.825424421026653},{"$f":"AC45+AC46+AC47","v":0},{"$f":"SQRT((AD45^2)+(AD46^2)+(AD47^2))","v":19.05255888325765},{"$f":"AE45+AE46+AE47","v":0},{"$f":"SQRT((AF45^2)+(AF46^2)+(AF47^2))","v":19.05255888325765},{"$f":"AG45+AG46+AG47","v":2},{"$f":"SQRT((AH45^2)+(AH46^2)+(AH47^2))","v":15.842979517754859},{"$f":"AI45+AI46+AI47","v":4},{"$f":"SQRT((AJ45^2)+(AJ46^2)+(AJ47^2))","v":16.673332000533065},{"$f":"AK45+AK46+AK47","v":0},{"$f":"SQRT((AL45^2)+(AL46^2)+(AL47^2))","v":19.05255888325765},{"$f":"AM45+AM46+AM47","v":92},{"$f":"SQRT((AN45^2)+(AN46^2)+(AN47^2))","v":65.192024052026483},{"$f":"AO45+AO46+AO47","v":0},{"$f":"SQRT((AP45^2)+(AP46^2)+(AP47^2))","v":19.05255888325765},{"$f":"AQ45+AQ46+AQ47","v":0},{"$f":"SQRT((AR45^2)+(AR46^2)+(AR47^2))","v":19.05255888325765},{"$f":"AS45+AS46+AS47","v":6},{"$f":"SQRT((AT45^2)+(AT46^2)+(AT47^2))","v":17.4928556845359},{"$f":"AU45+AU46+AU47","v":0},{"$f":"SQRT((AV45^2)+(AV46^2)+(AV47^2))","v":19.05255888325765},{"$f":"AW45+AW46+AW47","v":53},{"$f":"SQRT((AX45^2)+(AX46^2)+(AX47^2))","v":44.328320518603},{"$f":"AY45+AY46+AY47","v":0},{"$f":"SQRT((AZ45^2)+(AZ46^2)+(AZ47^2))","v":19.05255888325765},{"$f":"BA45+BA46+BA47","v":0},{"$f":"SQRT((BB45^2)+(BB46^2)+(BB47^2))","v":19.05255888325765},{"$f":"BC45+BC46+BC47","v":24},{"$f":"SQRT((BD45^2)+(BD46^2)+(BD47^2))","v":19.261360284258224},{"$f":"BE45+BE46+BE47","v":0},{"$f":"SQRT((BF45^2)+(BF46^2)+(BF47^2))","v":19.05255888325765},{"$f":"BG45+BG46+BG47","v":11},{"$f":"SQRT((BH45^2)+(BH46^2)+(BH47^2))","v":19.05255888325765},{"$f":"BI45+BI46+BI47","v":0},{"$f":"SQRT((BJ45^2)+(BJ46^2)+(BJ47^2))","v":19.05255888325765},{"$f":"BK45+BK46+BK47","v":0},{"$f":"SQRT((BL45^2)+(BL46^2)+(BL47^2))","v":19.05255888325765},{"$f":"BM45+BM46+BM47","v":4},{"$f":"SQRT((BN45^2)+(BN46^2)+(BN47^2))","v":17.058722109231979},{"$f":"BO45+BO46+BO47","v":10},{"$f":"SQRT((BP45^2)+(BP46^2)+(BP47^2))","v":13.928388277184119},{"$f":"BQ45+BQ46+BQ47","v":0},{"$f":"SQRT((BR45^2)+(BR46^2)+(BR47^2))","v":19.05255888325765},{"$f":"BS45+BS46+BS47","v":0},{"$f":"SQRT((BT45^2)+(BT46^2)+(BT47^2))","v":19.05255888325765},{"$f":"BU45+BU46+BU47","v":6},{"$f":"SQRT((BV45^2)+(BV46^2)+(BV47^2))","v":12.884098726725126},{"$f":"BW45+BW46+BW47","v":0},{"$f":"SQRT((BX45^2)+(BX46^2)+(BX47^2))","v":19.05255888325765},{"$f":"BY45+BY46+BY47","v":14},{"$f":"SQRT((BZ45^2)+(BZ46^2)+(BZ47^2))","v":25.337718918639855},{"$f":"CA45+CA46+CA47","v":4},{"$f":"SQRT((CB45^2)+(CB46^2)+(CB47^2))","v":12.083045973594572},{"$f":"CC45+CC46+CC47","v":0},{"$f":"SQRT((CD45^2)+(CD46^2)+(CD47^2))","v":19.05255888325765},{"$f":"CE45+CE46+CE47","v":0},{"$f":"SQRT((CF45^2)+(CF46^2)+(CF47^2))","v":19.05255888325765},{"$f":"CG45+CG46+CG47","v":0},{"$f":"SQRT((CH45^2)+(CH46^2)+(CH47^2))","v":19.05255888325765},{"$f":"CI45+CI46+CI47","v":84},{"$f":"SQRT((CJ45^2)+(CJ46^2)+(CJ47^2))","v":53.637673327615545}]
[null,"More than 30.0 percent",{"$f":"C48+C49+C50+C51","v":0},{"$f":"SQRT((D48^2)+(D49^2)+(D50^2)+(D51^2))","v":22},{"$f":"E48+E49+E50+E51","v":0},{"$f":"SQRT((F48^2)+(F49^2)+(F50^2)+(F51^2))","v":22},{"$f":"G48+G49+G50+G51","v":0},{"$f":"SQRT((H48^2)+(H49^2)+(H50^2)+(H51^2))","v":22},{"$f":"I48+I49+I50+I51","v":0},{"$f":"SQRT((J48^2)+(J49^2)+(J50^2)+(J51^2))","v":36},{"$f":"K48+K49+K50+K51","v":0},{"$f":"SQRT((L48^2)+(L49^2)+(L50^2)+(L51^2))","v":22},{"$f":"M48+M49+M50+M51","v":0},{"$f":"SQRT((N48^2)+(N49^2)+(N50^2)+(N51^2))","v":22},{"$f":"O48+O49+O50+O51","v":0},{"$f":"SQRT((P48^2)+(P49^2)+(P50^2)+(P51^2))","v":22},{"$f":"Q48+Q49+Q50+Q51","v":0},{"$f":"SQRT((R48^2)+(R49^2)+(R50^2)+(R51^2))","v":22},{"$f":"S48+S49+S50+S51","v":0},{"$f":"SQRT((T48^2)+(T49^2)+(T50^2)+(T51^2))","v":22},{"$f":"U48+U49+U50+U51","v":0},{"$f":"SQRT((V48^2)+(V49^2)+(V50^2)+(V51^2))","v":22},{"$f":"W48+W49+W50+W51","v":0},{"$f":"SQRT((X48^2)+(X49^2)+(X50^2)+(X51^2))","v":22},{"$f":"Y48+Y49+Y50+Y51","v":0},{"$f":"SQRT((Z48^2)+(Z49^2)+(Z50^2)+(Z51^2))","v":22},{"$f":"AA48+AA49+AA50+AA51","v":0},{"$f":"SQRT((AB48^2)+(AB49^2)+(AB50^2)+(AB51^2))","v":22},{"$f":"AC48+AC49+AC50+AC51","v":0},{"$f":"SQRT((AD48^2)+(AD49^2)+(AD50^2)+(AD51^2))","v":22},{"$f":"AE48+AE49+AE50+AE51","v":0},{"$f":"SQRT((AF48^2)+(AF49^2)+(AF50^2)+(AF51^2))","v":22},{"$f":"AG48+AG49+AG50+AG51","v":0},{"$f":"SQRT((AH48^2)+(AH49^2)+(AH50^2)+(AH51^2))","v":22},{"$f":"AI48+AI49+AI50+AI51","v":0},{"$f":"SQRT((AJ48^2)+(AJ49^2)+(AJ50^2)+(AJ51^2))","v":22},{"$f":"AK48+AK49+AK50+AK51","v":0},{"$f":"SQRT((AL48^2)+(AL49^2)+(AL50^2)+(AL51^2))","v":22},{"$f":"AM48+AM49+AM50+AM51","v":0},{"$f":"SQRT((AN48^2)+(AN49^2)+(AN50^2)+(AN51^2))","v":22},{"$f":"AO48+AO49+AO50+AO51","v":0},{"$f":"SQRT((AP48^2)+(AP49^2)+(AP50^2)+(AP51^2))","v":22},{"$f":"AQ48+AQ49+AQ50+AQ51","v":0},{"$f":"SQRT((AR48^2)+(AR49^2)+(AR50^2)+(AR51^2))","v":22},{"$f":"AS48+AS49+AS50+AS51","v":5},{"$f":"SQRT((AT48^2)+(AT49^2)+(AT50^2)+(AT51^2))","v":19.974984355438178},{"$f":"AU48+AU49+AU50+AU51","v":0},{"$f":"SQRT((AV48^2)+(AV49^2)+(AV50^2)+(AV51^2))","v":22},{"$f":"AW48+AW49+AW50+AW51","v":0},{"$f":"SQRT((AX48^2)+(AX49^2)+(AX50^2)+(AX51^2))","v":22},{"$f":"AY48+AY49+AY50+AY51","v":0},{"$f":"SQRT((AZ48^2)+(AZ49^2)+(AZ50^2)+(AZ51^2))","v":22},{"$f":"BA48+BA49+BA50+BA51","v":0},{"$f":"SQRT((BB48^2)+(BB49^2)+(BB50^2)+(BB51^2))","v":22},{"$f":"BC48+BC49+BC50+BC51","v":8},{"$f":"SQRT((BD48^2)+(BD49^2)+(BD50^2)+(BD51^2))","v":17.088007490635061},{"$f":"BE48+BE49+BE50+BE51","v":0},{"$f":"SQRT((BF48^2)+(BF49^2)+(BF50^2)+(BF51^2))","v":22},{"$f":"BG48+BG49+BG50+BG51","v":0},{"$f":"SQRT((BH48^2)+(BH49^2)+(BH50^2)+(BH51^2))","v":22},{"$f":"BI48+BI49+BI50+BI51","v":0},{"$f":"SQRT((BJ48^2)+(BJ49^2)+(BJ50^2)+(BJ51^2))","v":22},{"$f":"BK48+BK49+BK50+BK51","v":0},{"$f":"SQRT((BL48^2)+(BL49^2)+(BL50^2)+(BL51^2))","v":22},{"$f":"BM48+BM49+BM50+BM51","v":0},{"$f":"SQRT((BN48^2)+(BN49^2)+(BN50^2)+(BN51^2))","v":22},{"$f":"BO48+BO49+BO50+BO51","v":0},{"$f":"SQRT((BP48^2)+(BP49^2)+(BP50^2)+(BP51^2))","v":22},{"$f":"BQ48+BQ49+BQ50+BQ51","v":0},{"$f":"SQRT((BR48^2)+(BR49^2)+(BR50^2)+(BR51^2))","v":22},{"$f":"BS48+BS49+BS50+BS51","v":0},{"$f":"SQRT((BT48^2)+(BT49^2)+(BT50^2)+(BT51^2))","v":22},{"$f":"BU48+BU49+BU50+BU51","v":0},{"$f":"SQRT((BV48^2)+(BV49^2)+(BV50^2)+(BV51^2))","v":22},{"$f":"BW48+BW49+BW50+BW51","v":0},{"$f":"SQRT((BX48^2)+(BX49^2)+(BX50^2)+(BX51^2))","v":22},{"$f":"BY48+BY49+BY50+BY51","v":0},{"$f":"SQRT((BZ48^2)+(BZ49^2)+(BZ50^2)+(BZ51^2))","v":22},{"$f":"CA48+CA49+CA50+CA51","v":0},{"$f":"SQRT((CB48^2)+(CB49^2)+(CB50^2)+(CB51^2))","v":22},{"$f":"CC48+CC49+CC50+CC51","v":0},{"$f":"SQRT((CD48^2)+(CD49^2)+(CD50^2)+(CD51^2))","v":22},{"$f":"CE48+CE49+CE50+CE51","v":0},{"$f":"SQRT((CF48^2)+(CF49^2)+(CF50^2)+(CF51^2))","v":22},{"$f":"CG48+CG49+CG50+CG51","v":0},{"$f":"SQRT((CH48^2)+(CH49^2)+(CH50^2)+(CH51^2))","v":22},{"$f":"CI48+CI49+CI50+CI51","v":8},{"$f":"SQRT((CJ48^2)+(CJ49^2)+(CJ50^2)+(CJ51^2))","v":21.071307505705477}]
[null,"Less Than 35% of HH Income",{"$f":"C48+C47+C46+C45","v":0},{"$f":"SQRT((D48^2)+(D47^2)+(D46^2)+(D45^2))","v":22},{"$f":"E48+E47+E46+E45","v":0},{"$f":"SQRT((F48^2)+(F47^2)+(F46^2)+(F45^2))","v":22},{"$f":"G48+G47+G46+G45","v":0},{"$f":"SQRT((H48^2)+(H47^2)+(H46^2)+(H45^2))","v":22},{"$f":"I48+I47+I46+I45","v":142},{"$f":"SQRT((J48^2)+(J47^2)+(J46^2)+(J45^2))","v":84.864598037108507},{"$f":"K48+K47+K46+K45","v":0},{"$f":"SQRT((L48^2)+(L47^2)+(L46^2)+(L45^2))","v":22},{"$f":"M48+M47+M46+M45","v":24},{"$f":"SQRT((N48^2)+(N47^2)+(N46^2)+(N45^2))","v":24.124676163629637},{"$f":"O48+O47+O46+O45","v":0},{"$f":"SQRT((P48^2)+(P47^2)+(P46^2)+(P45^2))","v":22},{"$f":"Q48+Q47+Q46+Q45","v":0},{"$f":"SQRT((R48^2)+(R47^2)+(R46^2)+(R45^2))","v":22},{"$f":"S48+S47+S46+S45","v":18},{"$f":"SQRT((T48^2)+(T47^2)+(T46^2)+(T45^2))","v":24.879710609249457},{"$f":"U48+U47+U46+U45","v":3},{"$f":"SQRT((V48^2)+(V47^2)+(V46^2)+(V45^2))","v":19.467922333931785},{"$f":"W48+W47+W46+W45","v":0},{"$f":"SQRT((X48^2)+(X47^2)+(X46^2)+(X45^2))","v":22},{"$f":"Y48+Y47+Y46+Y45","v":0},{"$f":"SQRT((Z48^2)+(Z47^2)+(Z46^2)+(Z45^2))","v":22},{"$f":"AA48+AA47+AA46+AA45","v":31},{"$f":"SQRT((AB48^2)+(AB47^2)+(AB46^2)+(AB45^2))","v":25.337718918639855},{"$f":"AC48+AC47+AC46+AC45","v":0},{"$f":"SQRT((AD48^2)+(AD47^2)+(AD46^2)+(AD45^2))","v":22},{"$f":"AE48+AE47+AE46+AE45","v":0},{"$f":"SQRT((AF48^2)+(AF47^2)+(AF46^2)+(AF45^2))","v":22},{"$f":"AG48+AG47+AG46+AG45","v":2},{"$f":"SQRT((AH48^2)+(AH47^2)+(AH46^2)+(AH45^2))","v":19.28730152198591},{"$f":"AI48+AI47+AI46+AI45","v":4},{"$f":"SQRT((AJ48^2)+(AJ47^2)+(AJ46^2)+(AJ45^2))","v":19.974984355438178},{"$f":"AK48+AK47+AK46+AK45","v":0},{"$f":"SQRT((AL48^2)+(AL47^2)+(AL46^2)+(AL45^2))","v":22},{"$f":"AM48+AM47+AM46+AM45","v":92},{"$f":"SQRT((AN48^2)+(AN47^2)+(AN46^2)+(AN45^2))","v":66.113538704262382},{"$f":"AO48+AO47+AO46+AO45","v":0},{"$f":"SQRT((AP48^2)+(AP47^2)+(AP46^2)+(AP45^2))","v":22},{"$f":"AQ48+AQ47+AQ46+AQ45","v":0},{"$f":"SQRT((AR48^2)+(AR47^2)+(AR46^2)+(AR45^2))","v":22},{"$f":"AS48+AS47+AS46+AS45","v":11},{"$f":"SQRT((AT48^2)+(AT47^2)+(AT46^2)+(AT45^2))","v":18.493242008906929},{"$f":"AU48+AU47+AU46+AU45","v":0},{"$f":"SQRT((AV48^2)+(AV47^2)+(AV46^2)+(AV45^2))","v":22},{"$f":"AW48+AW47+AW46+AW45","v":53},{"$f":"SQRT((AX48^2)+(AX47^2)+(AX46^2)+(AX45^2))","v":45.672748986676943},{"$f":"AY48+AY47+AY46+AY45","v":0},{"$f":"SQRT((AZ48^2)+(AZ47^2)+(AZ46^2)+(AZ45^2))","v":22},{"$f":"BA48+BA47+BA46+BA45","v":0},{"$f":"SQRT((BB48^2)+(BB47^2)+(BB46^2)+(BB45^2))","v":22},{"$f":"BC48+BC47+BC46+BC45","v":28},{"$f":"SQRT((BD48^2)+(BD47^2)+(BD46^2)+(BD45^2))","v":19.899748742132399},{"$f":"BE48+BE47+BE46+BE45","v":0},{"$f":"SQRT((BF48^2)+(BF47^2)+(BF46^2)+(BF45^2))","v":22},{"$f":"BG48+BG47+BG46+BG45","v":11},{"$f":"SQRT((BH48^2)+(BH47^2)+(BH46^2)+(BH45^2))","v":22},{"$f":"BI48+BI47+BI46+BI45","v":0},{"$f":"SQRT((BJ48^2)+(BJ47^2)+(BJ46^2)+(BJ45^2))","v":22},{"$f":"BK48+BK47+BK46+BK45","v":0},{"$f":"SQRT((BL48^2)+(BL47^2)+(BL46^2)+(BL45^2))","v":22},{"$f":"BM48+BM47+BM46+BM45","v":4},{"$f":"SQRT((BN48^2)+(BN47^2)+(BN46^2)+(BN45^2))","v":20.297783130184438},{"$f":"BO48+BO47+BO46+BO45","v":10},{"$f":"SQRT((BP48^2)+(BP47^2)+(BP46^2)+(BP45^2))","v":17.748239349298849},{"$f":"BQ48+BQ47+BQ46+BQ45","v":0},{"$f":"SQRT((BR48^2)+(BR47^2)+(BR46^2)+(BR45^2))","v":22},{"$f":"BS48+BS47+BS46+BS45","v":0},{"$f":"SQRT((BT48^2)+(BT47^2)+(BT46^2)+(BT45^2))","v":22},{"$f":"BU48+BU47+BU46+BU45","v":6},{"$f":"SQRT((BV48^2)+(BV47^2)+(BV46^2)+(BV45^2))","v":16.941074346097416},{"$f":"BW48+BW47+BW46+BW45","v":0},{"$f":"SQRT((BX48^2)+(BX47^2)+(BX46^2)+(BX45^2))","v":22},{"$f":"BY48+BY47+BY46+BY45","v":14},{"$f":"SQRT((BZ48^2)+(BZ47^2)+(BZ46^2)+(BZ45^2))","v":27.622454633866266},{"$f":"CA48+CA47+CA46+CA45","v":4},{"$f":"SQRT((CB48^2)+(CB47^2)+(CB46^2)+(CB45^2))","v":16.340134638368191},{"$f":"CC48+CC47+CC46+CC45","v":0},{"$f":"SQRT((CD48^2)+(CD47^2)+(CD46^2)+(CD45^2))","v":22},{"$f":"CE48+CE47+CE46+CE45","v":0},{"$f":"SQRT((CF48^2)+(CF47^2)+(CF46^2)+(CF45^2))","v":22},{"$f":"CG48+CG47+CG46+CG45","v":0},{"$f":"SQRT((CH48^2)+(CH47^2)+(CH46^2)+(CH45^2))","v":22},{"$f":"CI48+CI47+CI46+CI45","v":84},{"$f":"SQRT((CJ48^2)+(CJ47^2)+(CJ46^2)+(CJ45^2))","v":54.753995288015282}]
[null,"35.0 percent or more",{"$f":"C49+C50+C51","v":0},{"$f":"SQRT((D49^2)+(D50^2)+(D51^2))","v":19.05255888325765},{"$f":"E49+E50+E51","v":0},{"$f":"SQRT((F49^2)+(F50^2)+(F51^2))","v":19.05255888325765},{"$f":"G49+G50+G51","v":0},{"$f":"SQRT((H49^2)+(H50^2)+(H51^2))","v":19.05255888325765},{"$f":"I49+I50+I51","v":0},{"$f":"SQRT((J49^2)+(J50^2)+(J51^2))","v":31.176914536239792},{"$f":"K49+K50+K51","v":0},{"$f":"SQRT((L49^2)+(L50^2)+(L51^2))","v":19.05255888325765},{"$f":"M49+M50+M51","v":0},{"$f":"SQRT((N49^2)+(N50^2)+(N51^2))","v":19.05255888325765},{"$f":"O49+O50+O51","v":0},{"$f":"SQRT((P49^2)+(P50^2)+(P51^2))","v":19.05255888325765},{"$f":"Q49+Q50+Q51","v":0},{"$f":"SQRT((R49^2)+(R50^2)+(R51^2))","v":19.05255888325765},{"$f":"S49+S50+S51","v":0},{"$f":"SQRT((T49^2)+(T50^2)+(T51^2))","v":19.05255888325765},{"$f":"U49+U50+U51","v":0},{"$f":"SQRT((V49^2)+(V50^2)+(V51^2))","v":19.05255888325765},{"$f":"W49+W50+W51","v":0},{"$f":"SQRT((X49^2)+(X50^2)+(X51^2))","v":19.05255888325765},{"$f":"Y49+Y50+Y51","v":0},{"$f":"SQRT((Z49^2)+(Z50^2)+(Z51^2))","v":19.05255888325765},{"$f":"AA49+AA50+AA51","v":0},{"$f":"SQRT((AB49^2)+(AB50^2)+(AB51^2))","v":19.05255888325765},{"$f":"AC49+AC50+AC51","v":0},{"$f":"SQRT((AD49^2)+(AD50^2)+(AD51^2))","v":19.05255888325765},{"$f":"AE49+AE50+AE51","v":0},{"$f":"SQRT((AF49^2)+(AF50^2)+(AF51^2))","v":19.05255888325765},{"$f":"AG49+AG50+AG51","v":0},{"$f":"SQRT((AH49^2)+(AH50^2)+(AH51^2))","v":19.05255888325765},{"$f":"AI49+AI50+AI51","v":0},{"$f":"SQRT((AJ49^2)+(AJ50^2)+(AJ51^2))","v":19.05255888325765},{"$f":"AK49+AK50+AK51","v":0},{"$f":"SQRT((AL49^2)+(AL50^2)+(AL51^2))","v":19.05255888325765},{"$f":"AM49+AM50+AM51","v":0},{"$f":"SQRT((AN49^2)+(AN50^2)+(AN51^2))","v":19.05255888325765},{"$f":"AO49+AO50+AO51","v":0},{"$f":"SQRT((AP49^2)+(AP50^2)+(AP51^2))","v":19.05255888325765},{"$f":"AQ49+AQ50+AQ51","v":0},{"$f":"SQRT((AR49^2)+(AR50^2)+(AR51^2))","v":19.05255888325765},{"$f":"AS49+AS50+AS51","v":0},{"$f":"SQRT((AT49^2)+(AT50^2)+(AT51^2))","v":19.05255888325765},{"$f":"AU49+AU50+AU51","v":0},{"$f":"SQRT((AV49^2)+(AV50^2)+(AV51^2))","v":19.05255888325765},{"$f":"AW49+AW50+AW51","v":0},{"$f":"SQRT((AX49^2)+(AX50^2)+(AX51^2))","v":19.05255888325765},{"$f":"AY49+AY50+AY51","v":0},{"$f":"SQRT((AZ49^2)+(AZ50^2)+(AZ51^2))","v":19.05255888325765},{"$f":"BA49+BA50+BA51","v":0},{"$f":"SQRT((BB49^2)+(BB50^2)+(BB51^2))","v":19.05255888325765},{"$f":"BC49+BC50+BC51","v":4},{"$f":"SQRT((BD49^2)+(BD50^2)+(BD51^2))","v":16.340134638368191},{"$f":"BE49+BE50+BE51","v":0},{"$f":"SQRT((BF49^2)+(BF50^2)+(BF51^2))","v":19.05255888325765},{"$f":"BG49+BG50+BG51","v":0},{"$f":"SQRT((BH49^2)+(BH50^2)+(BH51^2))","v":19.05255888325765},{"$f":"BI49+BI50+BI51","v":0},{"$f":"SQRT((BJ49^2)+(BJ50^2)+(BJ51^2))","v":19.05255888325765},{"$f":"BK49+BK50+BK51","v":0},{"$f":"SQRT((BL49^2)+(BL50^2)+(BL51^2))","v":19.05255888325765},{"$f":"BM49+BM50+BM51","v":0},{"$f":"SQRT((BN49^2)+(BN50^2)+(BN51^2))","v":19.05255888325765},{"$f":"BO49+BO50+BO51","v":0},{"$f":"SQRT((BP49^2)+(BP50^2)+(BP51^2))","v":19.05255888325765},{"$f":"BQ49+BQ50+BQ51","v":0},{"$f":"SQRT((BR49^2)+(BR50^2)+(BR51^2))","v":19.05255888325765},{"$f":"BS49+BS50+BS51","v":0},{"$f":"SQRT((BT49^2)+(BT50^2)+(BT51^2))","v":19.05255888325765},{"$f":"BU49+BU50+BU51","v":0},{"$f":"SQRT((BV49^2)+(BV50^2)+(BV51^2))","v":19.05255888325765},{"$f":"BW49+BW50+BW51","v":0},{"$f":"SQRT((BX49^2)+(BX50^2)+(BX51^2))","v":19.05255888325765},{"$f":"BY49+BY50+BY51","v":0},{"$f":"SQRT((BZ49^2)+(BZ50^2)+(BZ51^2))","v":19.05255888325765},{"$f":"CA49+CA50+CA51","v":0},{"$f":"SQRT((CB49^2)+(CB50^2)+(CB51^2))","v":19.05255888325765},{"$f":"CC49+CC50+CC51","v":0},{"$f":"SQRT((CD49^2)+(CD50^2)+(CD51^2))","v":19.05255888325765},{"$f":"CE49+CE50+CE51","v":0},{"$f":"SQRT((CF49^2)+(CF50^2)+(CF51^2))","v":19.05255888325765},{"$f":"CG49+CG50+CG51","v":0},{"$f":"SQRT((CH49^2)+(CH50^2)+(CH51^2))","v":19.05255888325765},{"$f":"CI49+CI50+CI51","v":8},{"$f":"SQRT((CJ49^2)+(CJ50^2)+(CJ51^2))","v":17.972200755611428}]
[null,"50.0 percent or more",{"$f":"C51","v":0},{"$f":"D51","v":11},{"$f":"E51","v":0},11,{"$f":"G51","v":0},11,{"$f":"I51","v":0},18,{"$f":"K51","v":0},11,{"$f":"M51","v":0},11,{"$f":"O51","v":0},11,{"$f":"Q51","v":0},11,{"$f":"S51","v":0},11,{"$f":"U51","v":0},11,{"$f":"W51","v":0},11,{"$f":"Y51","v":0},11,{"$f":"AA51","v":0},11,{"$f":"AC51","v":0},11,{"$f":"AE51","v":0},11,{"$f":"AG51","v":0},11,{"$f":"AI51","v":0},11,{"$f":"AK51","v":0},11,{"$f":"AM51","v":0},11,{"$f":"AO51","v":0},11,{"$f":"AQ51","v":0},11,{"$f":"AS51","v":0},11,{"$f":"AU51","v":0},11,{"$f":"AW51","v":0},11,{"$f":"AY51","v":0},11,{"$f":"BA51","v":0},11,{"$f":"BC51","v":0},11,{"$f":"BE51","v":0},11,{"$f":"BG51","v":0},11,{"$f":"BI51","v":0},11,{"$f":"BK51","v":0},11,{"$f":"BM51","v":0},11,{"$f":"BO51","v":0},{"$f":"BP51","v":11},{"$f":"BQ51","v":0},11,{"$f":"BS51","v":0},11,{"$f":"BU51","v":0},11,{"$f":"BW51","v":0},11,{"$f":"BY51","v":0},11,{"$f":"CA51","v":0},11,{"$f":"CC51","v":0},11,{"$f":"CE51","v":0},11,{"$f":"CG51","v":0},11,{"$f":"CI51","v":0},11]
[null,"Not Computed",{"$f":"C52","v":0},11,{"$f":"E52","v":0},11,{"$f":"G52","v":0},11,{"$f":"I52","v":0},18,{"$f":"K52","v":0},11,{"$f":"M52","v":7},10,{"$f":"O52","v":0},11,{"$f":"Q52","v":1},3,{"$f":"S52","v":18},27,{"$f":"U52","v":0},11,{"$f":"W52","v":0},11,{"$f":"Y52","v":0},11,{"$f":"AA52","v":4},6,{"$f":"AC52","v":0},11,{"$f":"AE52","v":0},11,{"$f":"AG52","v":2},3,{"$f":"AI52","v":2},3,{"$f":"AK52","v":0},11,{"$f":"AM52","v":0},11,{"$f":"AO52","v":0},11,{"$f":"AQ52","v":0},11,{"$f":"AS52","v":0},11,{"$f":"AU52","v":0},11,{"$f":"AW52","v":0},11,{"$f":"AY52","v":0},11,{"$f":"BA52","v":0},11,{"$f":"BC52","v":0},11,{"$f":"BE52","v":0},11,{"$f":"BG52","v":0},11,{"$f":"BI52","v":0},11,{"$f":"BK52","v":0},11,{"$f":"BM52","v":0},11,{"$f":"BO52","v":0},11,{"$f":"BQ52","v":0},11,{"$f":"BS52","v":0},11,{"$f":"BU52","v":5},6,{"$f":"BW52","v":0},11,{"$f":"BY52","v":0},11,{"$f":"CA52","v":0},11,{"$f":"CC52","v":0},11,{"$f":"CE52","v":0},11,{"$f":"CG52","v":0},11,{"$f":"CI52","v":0},11]
[null,"$75,000 to $99,999:",{"$f":"C53","v":0},11,{"$f":"E53","v":0},11,{"$f":"G53","v":0},11,{"$f":"I53","v":42},46,{"$f":"K53","v":0},11,{"$f":"M53","v":3},4,{"$f":"O53","v":0},11,{"$f":"Q53","v":2},3,{"$f":"S53","v":5},9,{"$f":"U53","v":2},3,{"$f":"W53","v":0},11,{"$f":"Y53","v":0},11,{"$f":"AA53","v":0},11,{"$f":"AC53","v":0},11,{"$f":"AE53","v":0},11,{"$f":"AG53","v":0},11,{"$f":"AI53","v":0},11,{"$f":"AK53","v":0},11,{"$f":"AM53","v":7},13,{"$f":"AO53","v":0},11,{"$f":"AQ53","v":0},11,{"$f":"AS53","v":4},5,{"$f":"AU53","v":0},11,{"$f":"AW53","v":37},45,{"$f":"AY53","v":0},11,{"$f":"BA53","v":0},11,{"$f":"BC53","v":24},29,{"$f":"BE53","v":0},11,{"$f":"BG53","v":50},31,{"$f":"BI53","v":0},11,{"$f":"BK53","v":0},11,{"$f":"BM53","v":0},11,{"$f":"BO53","v":2},3,{"$f":"BQ53","v":0},11,{"$f":"BS53","v":0},11,{"$f":"BU53","v":0},11,{"$f":"BW53","v":2},3,{"$f":"BY53","v":0},11,{"$f":"CA53","v":0},11,{"$f":"CC53","v":0},11,{"$f":"CE53","v":0},11,{"$f":"CG53","v":0},11,{"$f":"CI53","v":20},16]
[null,"Less than 30.0 percent",{"$f":"C54+C55+C56","v":0},{"$f":"SQRT((D54^2)+(D55^2)+(D56^2))","v":19.05255888325765},{"$f":"E54+E55+E56","v":0},{"$f":"SQRT((F54^2)+(F55^2)+(F56^2))","v":19.05255888325765},{"$f":"G54+G55+G56","v":0},{"$f":"SQRT((H54^2)+(H55^2)+(H56^2))","v":19.05255888325765},{"$f":"I54+I55+I56","v":42},{"$f":"SQRT((J54^2)+(J55^2)+(J56^2))","v":52.57375771237966},{"$f":"K54+K55+K56","v":0},{"$f":"SQRT((L54^2)+(L55^2)+(L56^2))","v":19.05255888325765},{"$f":"M54+M55+M56","v":3},{"$f":"SQRT((N54^2)+(N55^2)+(N56^2))","v":16.06237840420901},{"$f":"O54+O55+O56","v":0},{"$f":"SQRT((P54^2)+(P55^2)+(P56^2))","v":19.05255888325765},{"$f":"Q54+Q55+Q56","v":2},{"$f":"SQRT((R54^2)+(R55^2)+(R56^2))","v":15.842979517754859},{"$f":"S54+S55+S56","v":5},{"$f":"SQRT((T54^2)+(T55^2)+(T56^2))","v":17.972200755611428},{"$f":"U54+U55+U56","v":0},{"$f":"SQRT((V54^2)+(V55^2)+(V56^2))","v":19.05255888325765},{"$f":"W54+W55+W56","v":0},{"$f":"SQRT((X54^2)+(X55^2)+(X56^2))","v":19.05255888325765},{"$f":"Y54+Y55+Y56","v":0},{"$f":"SQRT((Z54^2)+(Z55^2)+(Z56^2))","v":19.05255888325765},{"$f":"AA54+AA55+AA56","v":0},{"$f":"SQRT((AB54^2)+(AB55^2)+(AB56^2))","v":19.05255888325765},{"$f":"AC54+AC55+AC56","v":0},{"$f":"SQRT((AD54^2)+(AD55^2)+(AD56^2))","v":19.05255888325765},{"$f":"AE54+AE55+AE56","v":0},{"$f":"SQRT((AF54^2)+(AF55^2)+(AF56^2))","v":19.05255888325765},{"$f":"AG54+AG55+AG56","v":0},{"$f":"SQRT((AH54^2)+(AH55^2)+(AH56^2))","v":19.05255888325765},{"$f":"AI54+AI55+AI56","v":0},{"$f":"SQRT((AJ54^2)+(AJ55^2)+(AJ56^2))","v":19.05255888325765},{"$f":"AK54+AK55+AK56","v":0},{"$f":"SQRT((AL54^2)+(AL55^2)+(AL56^2))","v":19.05255888325765},{"$f":"AM54+AM55+AM56","v":7},{"$f":"SQRT((AN54^2)+(AN55^2)+(AN56^2))","v":20.273134932713294},{"$f":"AO54+AO55+AO56","v":0},{"$f":"SQRT((AP54^2)+(AP55^2)+(AP56^2))","v":19.05255888325765},{"$f":"AQ54+AQ55+AQ56","v":0},{"$f":"SQRT((AR54^2)+(AR55^2)+(AR56^2))","v":19.05255888325765},{"$f":"AS54+AS55+AS56","v":4},{"$f":"SQRT((AT54^2)+(AT55^2)+(AT56^2))","v":16.340134638368191},{"$f":"AU54+AU55+AU56","v":0},{"$f":"SQRT((AV54^2)+(AV55^2)+(AV56^2))","v":19.05255888325765},{"$f":"AW54+AW55+AW56","v":37},{"$f":"SQRT((AX54^2)+(AX55^2)+(AX56^2))","v":47.613023428469653},{"$f":"AY54+AY55+AY56","v":0},{"$f":"SQRT((AZ54^2)+(AZ55^2)+(AZ56^2))","v":19.05255888325765},{"$f":"BA54+BA55+BA56","v":0},{"$f":"SQRT((BB54^2)+(BB55^2)+(BB56^2))","v":19.05255888325765},{"$f":"BC54+BC55+BC56","v":21},{"$f":"SQRT((BD54^2)+(BD55^2)+(BD56^2))","v":32.03123475609393},{"$f":"BE54+BE55+BE56","v":0},{"$f":"SQRT((BF54^2)+(BF55^2)+(BF56^2))","v":19.05255888325765},{"$f":"BG54+BG55+BG56","v":37},{"$f":"SQRT((BH54^2)+(BH55^2)+(BH56^2))","v":29.899832775452108},{"$f":"BI54+BI55+BI56","v":0},{"$f":"SQRT((BJ54^2)+(BJ55^2)+(BJ56^2))","v":19.05255888325765},{"$f":"BK54+BK55+BK56","v":0},{"$f":"SQRT((BL54^2)+(BL55^2)+(BL56^2))","v":19.05255888325765},{"$f":"BM54+BM55+BM56","v":0},{"$f":"SQRT((BN54^2)+(BN55^2)+(BN56^2))","v":19.05255888325765},{"$f":"BO54+BO55+BO56","v":2},{"$f":"SQRT((BP54^2)+(BP55^2)+(BP56^2))","v":15.842979517754859},{"$f":"BQ54+BQ55+BQ56","v":0},{"$f":"SQRT((BR54^2)+(BR55^2)+(BR56^2))","v":19.05255888325765},{"$f":"BS54+BS55+BS56","v":0},{"$f":"SQRT((BT54^2)+(BT55^2)+(BT56^2))","v":19.05255888325765},{"$f":"BU54+BU55+BU56","v":0},{"$f":"SQRT((BV54^2)+(BV55^2)+(BV56^2))","v":19.05255888325765},{"$f":"BW54+BW55+BW56","v":2},{"$f":"SQRT((BX54^2)+(BX55^2)+(BX56^2))","v":15.842979517754859},{"$f":"BY54+BY55+BY56","v":0},{"$f":"SQRT((BZ54^2)+(BZ55^2)+(BZ56^2))","v":19.05255888325765},{"$f":"CA54+CA55+CA56","v":0},{"$f":"SQRT((CB54^2)+(CB55^2)+(CB56^2))","v":19.05255888325765},{"$f":"CC54+CC55+CC56","v":0},{"$f":"SQRT((CD54^2)+(CD55^2)+(CD56^2))","v":19.05255888325765},{"$f":"CE54+CE55+CE56","v":0},{"$f":"SQRT((CF54^2)+(CF55^2)+(CF56^2))","v":19.05255888325765},{"$f":"CG54+CG55+CG56","v":0},{"$f":"SQRT((CH54^2)+(CH55^2)+(CH56^2))","v":19.05255888325765},{"$f":"CI54+CI55+CI56","v":20},{"$f":"SQRT((CJ54^2)+(CJ55^2)+(CJ56^2))","v":22.315913604421397}]
[null,"More than 30.0 percent",{"$f":"C57+C58+C59+C60","v":0},{"$f":"SQRT((D57^2)+(D58^2)+(D59^2)+(D60^2))","v":22},{"$f":"E57+E58+E59+E60","v":0},{"$f":"SQRT((F57^2)+(F58^2)+(F59^2)+(F60^2))","v":22},{"$f":"G57+G58+G59+G60","v":0},{"$f":"SQRT((H57^2)+(H58^2)+(H59^2)+(H60^2))","v":22},{"$f":"I57+I58+I59+I60","v":0},{"$f":"SQRT((J57^2)+(J58^2)+(J59^2)+(J60^2))","v":36},{"$f":"K57+K58+K59+K60","v":0},{"$f":"SQRT((L57^2)+(L58^2)+(L59^2)+(L60^2))","v":22},{"$f":"M57+M58+M59+M60","v":0},{"$f":"SQRT((N57^2)+(N58^2)+(N59^2)+(N60^2))","v":22},{"$f":"O57+O58+O59+O60","v":0},{"$f":"SQRT((P57^2)+(P58^2)+(P59^2)+(P60^2))","v":22},{"$f":"Q57+Q58+Q59+Q60","v":0},{"$f":"SQRT((R57^2)+(R58^2)+(R59^2)+(R60^2))","v":22},{"$f":"S57+S58+S59+S60","v":0},{"$f":"SQRT((T57^2)+(T58^2)+(T59^2)+(T60^2))","v":22},{"$f":"U57+U58+U59+U60","v":0},{"$f":"SQRT((V57^2)+(V58^2)+(V59^2)+(V60^2))","v":22},{"$f":"W57+W58+W59+W60","v":0},{"$f":"SQRT((X57^2)+(X58^2)+(X59^2)+(X60^2))","v":22},{"$f":"Y57+Y58+Y59+Y60","v":0},{"$f":"SQRT((Z57^2)+(Z58^2)+(Z59^2)+(Z60^2))","v":22},{"$f":"AA57+AA58+AA59+AA60","v":0},{"$f":"SQRT((AB57^2)+(AB58^2)+(AB59^2)+(AB60^2))","v":22},{"$f":"AC57+AC58+AC59+AC60","v":0},{"$f":"SQRT((AD57^2)+(AD58^2)+(AD59^2)+(AD60^2))","v":22},{"$f":"AE57+AE58+AE59+AE60","v":0},{"$f":"SQRT((AF57^2)+(AF58^2)+(AF59^2)+(AF60^2))","v":22},{"$f":"AG57+AG58+AG59+AG60","v":0},{"$f":"SQRT((AH57^2)+(AH58^2)+(AH59^2)+(AH60^2))","v":22},{"$f":"AI57+AI58+AI59+AI60","v":0},{"$f":"SQRT((AJ57^2)+(AJ58^2)+(AJ59^2)+(AJ60^2))","v":22},{"$f":"AK57+AK58+AK59+AK60","v":0},{"$f":"SQRT((AL57^2)+(AL58^2)+(AL59^2)+(AL60^2))","v":22},{"$f":"AM57+AM58+AM59+AM60","v":0},{"$f":"SQRT((AN57^2)+(AN58^2)+(AN59^2)+(AN60^2))","v":22},{"$f":"AO57+AO58+AO59+AO60","v":0},{"$f":"SQRT((AP57^2)+(AP58^2)+(AP59^2)+(AP60^2))","v":22},{"$f":"AQ57+AQ58+AQ59+AQ60","v":0},{"$f":"SQRT((AR57^2)+(AR58^2)+(AR59^2)+(AR60^2))","v":22},{"$f":"AS57+AS58+AS59+AS60","v":0},{"$f":"SQRT((AT57^2)+(AT58^2)+(AT59^2)+(AT60^2))","v":22},{"$f":"AU57+AU58+AU59+AU60","v":0},{"$f":"SQRT((AV57^2)+(AV58^2)+(AV59^2)+(AV60^2))","v":22},{"$f":"AW57+AW58+AW59+AW60","v":0},{"$f":"SQRT((AX57^2)+(AX58^2)+(AX59^2)+(AX60^2))","v":22},{"$f":"AY57+AY58+AY59+AY60","v":0},{"$f":"SQRT((AZ57^2)+(AZ58^2)+(AZ59^2)+(AZ60^2))","v":22},{"$f":"BA57+BA58+BA59+BA60","v":0},{"$f":"SQRT((BB57^2)+(BB58^2)+(BB59^2)+(BB60^2))","v":22},{"$f":"BC57+BC58+BC59+BC60","v":0},{"$f":"SQRT((BD57^2)+(BD58^2)+(BD59^2)+(BD60^2))","v":22},{"$f":"BE57+BE58+BE59+BE60","v":0},{"$f":"SQRT((BF57^2)+(BF58^2)+(BF59^2)+(BF60^2))","v":22},{"$f":"BG57+BG58+BG59+BG60","v":0},{"$f":"SQRT((BH57^2)+(BH58^2)+(BH59^2)+(BH60^2))","v":22},{"$f":"BI57+BI58+BI59+BI60","v":0},{"$f":"SQRT((BJ57^2)+(BJ58^2)+(BJ59^2)+(BJ60^2))","v":22},{"$f":"BK57+BK58+BK59+BK60","v":0},{"$f":"SQRT((BL57^2)+(BL58^2)+(BL59^2)+(BL60^2))","v":22},{"$f":"BM57+BM58+BM59+BM60","v":0},{"$f":"SQRT((BN57^2)+(BN58^2)+(BN59^2)+(BN60^2))","v":22},{"$f":"BO57+BO58+BO59+BO60","v":0},{"$f":"SQRT((BP57^2)+(BP58^2)+(BP59^2)+(BP60^2))","v":22},{"$f":"BQ57+BQ58+BQ59+BQ60","v":0},{"$f":"SQRT((BR57^2)+(BR58^2)+(BR59^2)+(BR60^2))","v":22},{"$f":"BS57+BS58+BS59+BS60","v":0},{"$f":"SQRT((BT57^2)+(BT58^2)+(BT59^2)+(BT60^2))","v":22},{"$f":"BU57+BU58+BU59+BU60","v":0},{"$f":"SQRT((BV57^2)+(BV58^2)+(BV59^2)+(BV60^2))","v":22},{"$f":"BW57+BW58+BW59+BW60","v":0},{"$f":"SQRT((BX57^2)+(BX58^2)+(BX59^2)+(BX60^2))","v":22},{"$f":"BY57+BY58+BY59+BY60","v":0},{"$f":"SQRT((BZ57^2)+(BZ58^2)+(BZ59^2)+(BZ60^2))","v":22},{"$f":"CA57+CA58+CA59+CA60","v":0},{"$f":"SQRT((CB57^2)+(CB58^2)+(CB59^2)+(CB60^2))","v":22},{"$f":"CC57+CC58+CC59+CC60","v":0},{"$f":"SQRT((CD57^2)+(CD58^2)+(CD59^2)+(CD60^2))","v":22},{"$f":"CE57+CE58+CE59+CE60","v":0},{"$f":"SQRT((CF57^2)+(CF58^2)+(CF59^2)+(CF60^2))","v":22},{"$f":"CG57+CG58+CG59+CG60","v":0},{"$f":"SQRT((CH57^2)+(CH58^2)+(CH59^2)+(CH60^2))","v":22},{"$f":"CI57+CI58+CI59+CI60","v":0},{"$f":"SQRT((CJ57^2)+(CJ58^2)+(CJ59^2)+(CJ60^2))","v":22}]
[null,"Less Than 35% of HH Income",{"$f":"C54+C55+C56+C57","v":0},{"$f":"SQRT((D54^2)+(D55^2)+(D56^2)+(D57^2))","v":22},{"$f":"E54+E55+E56+E57","v":0},{"$f":"SQRT((F54^2)+(F55^2)+(F56^2)+(F57^2))","v":22},{"$f":"G54+G55+G56+G57","v":0},{"$f":"SQRT((H54^2)+(H55^2)+(H56^2)+(H57^2))","v":22},{"$f":"I54+I55+I56+I57","v":42},{"$f":"SQRT((J54^2)+(J55^2)+(J56^2)+(J57^2))","v":55.569775957799216},{"$f":"K54+K55+K56+K57","v":0},{"$f":"SQRT((L54^2)+(L55^2)+(L56^2)+(L57^2))","v":22},{"$f":"M54+M55+M56+M57","v":3},{"$f":"SQRT((N54^2)+(N55^2)+(N56^2)+(N57^2))","v":19.467922333931785},{"$f":"O54+O55+O56+O57","v":0},{"$f":"SQRT((P54^2)+(P55^2)+(P56^2)+(P57^2))","v":22},{"$f":"Q54+Q55+Q56+Q57","v":2},{"$f":"SQRT((R54^2)+(R55^2)+(R56^2)+(R57^2))","v":19.28730152198591},{"$f":"S54+S55+S56+S57","v":5},{"$f":"SQRT((T54^2)+(T55^2)+(T56^2)+(T57^2))","v":21.071307505705477},{"$f":"U54+U55+U56+U57","v":0},{"$f":"SQRT((V54^2)+(V55^2)+(V56^2)+(V57^2))","v":22},{"$f":"W54+W55+W56+W57","v":0},{"$f":"SQRT((X54^2)+(X55^2)+(X56^2)+(X57^2))","v":22},{"$f":"Y54+Y55+Y56+Y57","v":0},{"$f":"SQRT((Z54^2)+(Z55^2)+(Z56^2)+(Z57^2))","v":22},{"$f":"AA54+AA55+AA56+AA57","v":0},{"$f":"SQRT((AB54^2)+(AB55^2)+(AB56^2)+(AB57^2))","v":22},{"$f":"AC54+AC55+AC56+AC57","v":0},{"$f":"SQRT((AD54^2)+(AD55^2)+(AD56^2)+(AD57^2))","v":22},{"$f":"AE54+AE55+AE56+AE57","v":0},{"$f":"SQRT((AF54^2)+(AF55^2)+(AF56^2)+(AF57^2))","v":22},{"$f":"AG54+AG55+AG56+AG57","v":0},{"$f":"SQRT((AH54^2)+(AH55^2)+(AH56^2)+(AH57^2))","v":22},{"$f":"AI54+AI55+AI56+AI57","v":0},{"$f":"SQRT((AJ54^2)+(AJ55^2)+(AJ56^2)+(AJ57^2))","v":22},{"$f":"AK54+AK55+AK56+AK57","v":0},{"$f":"SQRT((AL54^2)+(AL55^2)+(AL56^2)+(AL57^2))","v":22},{"$f":"AM54+AM55+AM56+AM57","v":7},{"$f":"SQRT((AN54^2)+(AN55^2)+(AN56^2)+(AN57^2))","v":23.065125189341593},{"$f":"AO54+AO55+AO56+AO57","v":0},{"$f":"SQRT((AP54^2)+(AP55^2)+(AP56^2)+(AP57^2))","v":22},{"$f":"AQ54+AQ55+AQ56+AQ57","v":0},{"$f":"SQRT((AR54^2)+(AR55^2)+(AR56^2)+(AR57^2))","v":22},{"$f":"AS54+AS55+AS56+AS57","v":4},{"$f":"SQRT((AT54^2)+(AT55^2)+(AT56^2)+(AT57^2))","v":19.697715603592208},{"$f":"AU54+AU55+AU56+AU57","v":0},{"$f":"SQRT((AV54^2)+(AV55^2)+(AV56^2)+(AV57^2))","v":22},{"$f":"AW54+AW55+AW56+AW57","v":37},{"$f":"SQRT((AX54^2)+(AX55^2)+(AX56^2)+(AX57^2))","v":48.867166891482462},{"$f":"AY54+AY55+AY56+AY57","v":0},{"$f":"SQRT((AZ54^2)+(AZ55^2)+(AZ56^2)+(AZ57^2))","v":22},{"$f":"BA54+BA55+BA56+BA57","v":0},{"$f":"SQRT((BB54^2)+(BB55^2)+(BB56^2)+(BB57^2))","v":22},{"$f":"BC54+BC55+BC56+BC57","v":21},{"$f":"SQRT((BD54^2)+(BD55^2)+(BD56^2)+(BD57^2))","v":33.867388443752198},{"$f":"BE54+BE55+BE56+BE57","v":0},{"$f":"SQRT((BF54^2)+(BF55^2)+(BF56^2)+(BF57^2))","v":22},{"$f":"BG54+BG55+BG56+BG57","v":37},{"$f":"SQRT((BH54^2)+(BH55^2)+(BH56^2)+(BH57^2))","v":31.859064644147981},{"$f":"BI54+BI55+BI56+BI57","v":0},{"$f":"SQRT((BJ54^2)+(BJ55^2)+(BJ56^2)+(BJ57^2))","v":22},{"$f":"BK54+BK55+BK56+BK57","v":0},{"$f":"SQRT((BL54^2)+(BL55^2)+(BL56^2)+(BL57^2))","v":22},{"$f":"BM54+BM55+BM56+BM57","v":0},{"$f":"SQRT((BN54^2)+(BN55^2)+(BN56^2)+(BN57^2))","v":22},{"$f":"BO54+BO55+BO56+BO57","v":2},{"$f":"SQRT((BP54^2)+(BP55^2)+(BP56^2)+(BP57^2))","v":19.28730152198591},{"$f":"BQ54+BQ55+BQ56+BQ57","v":0},{"$f":"SQRT((BR54^2)+(BR55^2)+(BR56^2)+(BR57^2))","v":22},{"$f":"BS54+BS55+BS56+BS57","v":0},{"$f":"SQRT((BT54^2)+(BT55^2)+(BT56^2)+(BT57^2))","v":22},{"$f":"BU54+BU55+BU56+BU57","v":0},{"$f":"SQRT((BV54^2)+(BV55^2)+(BV56^2)+(BV57^2))","v":22},{"$f":"BW54+BW55+BW56+BW57","v":2},{"$f":"SQRT((BX54^2)+(BX55^2)+(BX56^2)+(BX57^2))","v":19.28730152198591},{"$f":"BY54+BY55+BY56+BY57","v":0},{"$f":"SQRT((BZ54^2)+(BZ55^2)+(BZ56^2)+(BZ57^2))","v":22},{"$f":"CA54+CA55+CA56+CA57","v":0},{"$f":"SQRT((CB54^2)+(CB55^2)+(CB56^2)+(CB57^2))","v":22},{"$f":"CC54+CC55+CC56+CC57","v":0},{"$f":"SQRT((CD54^2)+(CD55^2)+(CD56^2)+(CD57^2))","v":22},{"$f":"CE54+CE55+CE56+CE57","v":0},{"$f":"SQRT((CF54^2)+(CF55^2)+(CF56^2)+(CF57^2))","v":22},{"$f":"CG54+CG55+CG56+CG57","v":0},{"$f":"SQRT((CH54^2)+(CH55^2)+(CH56^2)+(CH57^2))","v":22},{"$f":"CI54+CI55+CI56+CI57","v":20},{"$f":"SQRT((CJ54^2)+(CJ55^2)+(CJ56^2)+(CJ57^2))","v":24.879710609249457}]
[null,"35.0 percent or more",{"$f":"C58+C59+C60","v":0},{"$f":"SQRT((D58^2)+(D59^2)+(D60^2))","v":19.05255888325765},{"$f":"E58+E59+E60","v":0},{"$f":"SQRT((F58^2)+(F59^2)+(F60^2))","v":19.05255888325765},{"$f":"G58+G59+G60","v":0},{"$f":"SQRT((H58^2)+(H59^2)+(H60^2))","v":19.05255888325765},{"$f":"I58+I59+I60","v":0},{"$f":"SQRT((J58^2)+(J59^2)+(J60^2))","v":31.176914536239792},{"$f":"K58+K59+K60","v":0},{"$f":"SQRT((L58^2)+(L59^2)+(L60^2))","v":19.05255888325765},{"$f":"M58+M59+M60","v":0},{"$f":"SQRT((N58^2)+(N59^2)+(N60^2))","v":19.05255888325765},{"$f":"O58+O59+O60","v":0},{"$f":"SQRT((P58^2)+(P59^2)+(P60^2))","v":19.05255888325765},{"$f":"Q58+Q59+Q60","v":0},{"$f":"SQRT((R58^2)+(R59^2)+(R60^2))","v":19.05255888325765},{"$f":"S58+S59+S60","v":0},{"$f":"SQRT((T58^2)+(T59^2)+(T60^2))","v":19.05255888325765},{"$f":"U58+U59+U60","v":0},{"$f":"SQRT((V58^2)+(V59^2)+(V60^2))","v":19.05255888325765},{"$f":"W58+W59+W60","v":0},{"$f":"SQRT((X58^2)+(X59^2)+(X60^2))","v":19.05255888325765},{"$f":"Y58+Y59+Y60","v":0},{"$f":"SQRT((Z58^2)+(Z59^2)+(Z60^2))","v":19.05255888325765},{"$f":"AA58+AA59+AA60","v":0},{"$f":"SQRT((AB58^2)+(AB59^2)+(AB60^2))","v":19.05255888325765},{"$f":"AC58+AC59+AC60","v":0},{"$f":"SQRT((AD58^2)+(AD59^2)+(AD60^2))","v":19.05255888325765},{"$f":"AE58+AE59+AE60","v":0},{"$f":"SQRT((AF58^2)+(AF59^2)+(AF60^2))","v":19.05255888325765},{"$f":"AG58+AG59+AG60","v":0},{"$f":"SQRT((AH58^2)+(AH59^2)+(AH60^2))","v":19.05255888325765},{"$f":"AI58+AI59+AI60","v":0},{"$f":"SQRT((AJ58^2)+(AJ59^2)+(AJ60^2))","v":19.05255888325765},{"$f":"AK58+AK59+AK60","v":0},{"$f":"SQRT((AL58^2)+(AL59^2)+(AL60^2))","v":19.05255888325765},{"$f":"AM58+AM59+AM60","v":0},{"$f":"SQRT((AN58^2)+(AN59^2)+(AN60^2))","v":19.05255888325765},{"$f":"AO58+AO59+AO60","v":0},{"$f":"SQRT((AP58^2)+(AP59^2)+(AP60^2))","v":19.05255888325765},{"$f":"AQ58+AQ59+AQ60","v":0},{"$f":"SQRT((AR58^2)+(AR59^2)+(AR60^2))","v":19.05255888325765},{"$f":"AS58+AS59+AS60","v":0},{"$f":"SQRT((AT58^2)+(AT59^2)+(AT60^2))","v":19.05255888325765},{"$f":"AU58+AU59+AU60","v":0},{"$f":"SQRT((AV58^2)+(AV59^2)+(AV60^2))","v":19.05255888325765},{"$f":"AW58+AW59+AW60","v":0},{"$f":"SQRT((AX58^2)+(AX59^2)+(AX60^2))","v":19.05255888325765},{"$f":"AY58+AY59+AY60","v":0},{"$f":"SQRT((AZ58^2)+(AZ59^2)+(AZ60^2))","v":19.05255888325765},{"$f":"BA58+BA59+BA60","v":0},{"$f":"SQRT((BB58^2)+(BB59^2)+(BB60^2))","v":19.05255888325765},{"$f":"BC58+BC59+BC60","v":0},{"$f":"SQRT((BD58^2)+(BD59^2)+(BD60^2))","v":19.05255888325765},{"$f":"BE58+BE59+BE60","v":0},{"$f":"SQRT((BF58^2)+(BF59^2)+(BF60^2))","v":19.05255888325765},{"$f":"BG58+BG59+BG60","v":0},{"$f":"SQRT((BH58^2)+(BH59^2)+(BH60^2))","v":19.05255888325765},{"$f":"BI58+BI59+BI60","v":0},{"$f":"SQRT((BJ58^2)+(BJ59^2)+(BJ60^2))","v":19.05255888325765},{"$f":"BK58+BK59+BK60","v":0},{"$f":"SQRT((BL58^2)+(BL59^2)+(BL60^2))","v":19.05255888325765},{"$f":"BM58+BM59+BM60","v":0},{"$f":"SQRT((BN58^2)+(BN59^2)+(BN60^2))","v":19.05255888325765},{"$f":"BO58+BO59+BO60","v":0},{"$f":"SQRT((BP58^2)+(BP59^2)+(BP60^2))","v":19.05255888325765},{"$f":"BQ58+BQ59+BQ60","v":0},{"$f":"SQRT((BR58^2)+(BR59^2)+(BR60^2))","v":19.05255888325765},{"$f":"BS58+BS59+BS60","v":0},{"$f":"SQRT((BT58^2)+(BT59^2)+(BT60^2))","v":19.05255888325765},{"$f":"BU58+BU59+BU60","v":0},{"$f":"SQRT((BV58^2)+(BV59^2)+(BV60^2))","v":19.05255888325765},{"$f":"BW58+BW59+BW60","v":0},{"$f":"SQRT((BX58^2)+(BX59^2)+(BX60^2))","v":19.05255888325765},{"$f":"BY58+BY59+BY60","v":0},{"$f":"SQRT((BZ58^2)+(BZ59^2)+(BZ60^2))","v":19.05255888325765},{"$f":"CA58+CA59+CA60","v":0},{"$f":"SQRT((CB58^2)+(CB59^2)+(CB60^2))","v":19.05255888325765},{"$f":"CC58+CC59+CC60","v":0},{"$f":"SQRT((CD58^2)+(CD59^2)+(CD60^2))","v":19.05255888325765},{"$f":"CE58+CE59+CE60","v":0},{"$f":"SQRT((CF58^2)+(CF59^2)+(CF60^2))","v":19.05255888325765},{"$f":"CG58+CG59+CG60","v":0},{"$f":"SQRT((CH58^2)+(CH59^2)+(CH60^2))","v":19.05255888325765},{"$f":"CI58+CI59+CI60","v":0},{"$f":"SQRT((CJ58^2)+(CJ59^2)+(CJ60^2))","v":19.05255888325765}]
[null,"50.0 percent or more",{"$f":"C60","v":0},11,0,11,0,11,0,18,0,11,0,11,0,11,0,11,0,11,0,11,0,11,0,11,0,11,0,11,0,11,0,11,0,11,0,11,0,11,0,11,0,11,0,11,0,11,0,11,0,11,0,11,0,11,0,11,0,11,0,11,0,11,0,11,{"$f":"BO60","v":0},11,0,11,0,11,0,11,0,11,0,11,0,11,0,11,0,11,0,11,0,11]
[null,"Not Computed",0,11,0,11,0,11,0,18,0,11,0,11,0,11,0,11,0,11,2,3,0,11,0,11,0,11,0,11,0,11,0,11,0,11,0,11,0,11,0,11,0,11,0,11,0,11,0,11,0,11,0,11,3,5,0,11,13,14,0,11,0,11,0,11,0,11,0,11,0,11,0,11,0,11,0,11,0,11,0,11,0,11,0,11,0,11]
[null,"$100,000 or more:",0,11,0,11,0,11,36,41,0,11,15,17,0,11,3,4,11,12,6,6,0,11,0,11,5,7,0,11,0,11,0,11,3,7,0,11,8,13,0,11,0,11,0,11,0,11,0,11,0,11,0,11,4,5,0,11,17,24,0,11,0,11,0,11,7,7,0,11,0,11,2,3,9,10,0,11,0,11,0,11,0,11,0,11,35,28]
[null,"Less than 30.0 percent",{"$f":"C63+C64+C65","v":0},{"$f":"SQRT((D63^2)+(D64^2)+(D65^2))","v":19.05255888325765},{"$f":"E63+E64+E65","v":0},{"$f":"SQRT((F63^2)+(F64^2)+(F65^2))","v":19.05255888325765},{"$f":"G63+G64+G65","v":0},{"$f":"SQRT((H63^2)+(H64^2)+(H65^2))","v":19.05255888325765},{"$f":"I63+I64+I65","v":36},{"$f":"SQRT((J63^2)+(J64^2)+(J65^2))","v":48.259714048054619},{"$f":"K63+K64+K65","v":0},{"$f":"SQRT((L63^2)+(L64^2)+(L65^2))","v":19.05255888325765},{"$f":"M63+M64+M65","v":15},{"$f":"SQRT((N63^2)+(N64^2)+(N65^2))","v":23.043437243605826},{"$f":"O63+O64+O65","v":0},{"$f":"SQRT((P63^2)+(P64^2)+(P65^2))","v":19.05255888325765},{"$f":"Q63+Q64+Q65","v":3},{"$f":"SQRT((R63^2)+(R64^2)+(R65^2))","v":16.06237840420901},{"$f":"S63+S64+S65","v":11},{"$f":"SQRT((T63^2)+(T64^2)+(T65^2))","v":19.646882704388499},{"$f":"U63+U64+U65","v":6},{"$f":"SQRT((V63^2)+(V64^2)+(V65^2))","v":16.673332000533065},{"$f":"W63+W64+W65","v":0},{"$f":"SQRT((X63^2)+(X64^2)+(X65^2))","v":19.05255888325765},{"$f":"Y63+Y64+Y65","v":0},{"$f":"SQRT((Z63^2)+(Z64^2)+(Z65^2))","v":19.05255888325765},{"$f":"AA63+AA64+AA65","v":5},{"$f":"SQRT((AB63^2)+(AB64^2)+(AB65^2))","v":17.058722109231979},{"$f":"AC63+AC64+AC65","v":0},{"$f":"SQRT((AD63^2)+(AD64^2)+(AD65^2))","v":19.05255888325765},{"$f":"AE63+AE64+AE65","v":0},{"$f":"SQRT((AF63^2)+(AF64^2)+(AF65^2))","v":19.05255888325765},{"$f":"AG63+AG64+AG65","v":0},{"$f":"SQRT((AH63^2)+(AH64^2)+(AH65^2))","v":19.05255888325765},{"$f":"AI63+AI64+AI65","v":3},{"$f":"SQRT((AJ63^2)+(AJ64^2)+(AJ65^2))","v":17.058722109231979},{"$f":"AK63+AK64+AK65","v":0},{"$f":"SQRT((AL63^2)+(AL64^2)+(AL65^2))","v":19.05255888325765},{"$f":"AM63+AM64+AM65","v":0},{"$f":"SQRT((AN63^2)+(AN64^2)+(AN65^2))","v":19.05255888325765},{"$f":"AO63+AO64+AO65","v":0},{"$f":"SQRT((AP63^2)+(AP64^2)+(AP65^2))","v":19.05255888325765},{"$f":"AQ63+AQ64+AQ65","v":0},{"$f":"SQRT((AR63^2)+(AR64^2)+(AR65^2))","v":19.05255888325765},{"$f":"AS63+AS64+AS65","v":0},{"$f":"SQRT((AT63^2)+(AT64^2)+(AT65^2))","v":19.05255888325765},{"$f":"AU63+AU64+AU65","v":0},{"$f":"SQRT((AV63^2)+(AV64^2)+(AV65^2))","v":19.05255888325765},{"$f":"AW63+AW64+AW65","v":0},{"$f":"SQRT((AX63^2)+(AX64^2)+(AX65^2))","v":19.05255888325765},{"$f":"AY63+AY64+AY65","v":0},{"$f":"SQRT((AZ63^2)+(AZ64^2)+(AZ65^2))","v":19.05255888325765},{"$f":"BA63+BA64+BA65","v":0},{"$f":"SQRT((BB63^2)+(BB64^2)+(BB65^2))","v":19.05255888325765},{"$f":"BC63+BC64+BC65","v":4},{"$f":"SQRT((BD63^2)+(BD64^2)+(BD65^2))","v":16.340134638368191},{"$f":"BE63+BE64+BE65","v":0},{"$f":"SQRT((BF63^2)+(BF64^2)+(BF65^2))","v":19.05255888325765},{"$f":"BG63+BG64+BG65","v":17},{"$f":"SQRT((BH63^2)+(BH64^2)+(BH65^2))","v":28.600699292150182},{"$f":"BI63+BI64+BI65","v":0},{"$f":"SQRT((BJ63^2)+(BJ64^2)+(BJ65^2))","v":19.05255888325765},{"$f":"BK63+BK64+BK65","v":0},{"$f":"SQRT((BL63^2)+(BL64^2)+(BL65^2))","v":19.05255888325765},{"$f":"BM63+BM64+BM65","v":0},{"$f":"SQRT((BN63^2)+(BN64^2)+(BN65^2))","v":19.05255888325765},{"$f":"BO63+BO64+BO65","v":7},{"$f":"SQRT((BP63^2)+(BP64^2)+(BP65^2))","v":17.058722109231979},{"$f":"BQ63+BQ64+BQ65","v":0},{"$f":"SQRT((BR63^2)+(BR64^2)+(BR65^2))","v":19.05255888325765},{"$f":"BS63+BS64+BS65","v":0},{"$f":"SQRT((BT63^2)+(BT64^2)+(BT65^2))","v":19.05255888325765},{"$f":"BU63+BU64+BU65","v":2},{"$f":"SQRT((BV63^2)+(BV64^2)+(BV65^2))","v":15.842979517754859},{"$f":"BW63+BW64+BW65","v":9},{"$f":"SQRT((BX63^2)+(BX64^2)+(BX65^2))","v":18.493242008906929},{"$f":"BY63+BY64+BY65","v":0},{"$f":"SQRT((BZ63^2)+(BZ64^2)+(BZ65^2))","v":19.05255888325765},{"$f":"CA63+CA64+CA65","v":0},{"$f":"SQRT((CB63^2)+(CB64^2)+(CB65^2))","v":19.05255888325765},{"$f":"CC63+CC64+CC65","v":0},{"$f":"SQRT((CD63^2)+(CD64^2)+(CD65^2))","v":19.05255888325765},{"$f":"CE63+CE64+CE65","v":0},{"$f":"SQRT((CF63^2)+(CF64^2)+(CF65^2))","v":19.05255888325765},{"$f":"CG63+CG64+CG65","v":0},{"$f":"SQRT((CH63^2)+(CH64^2)+(CH65^2))","v":19.05255888325765},{"$f":"CI63+CI64+CI65","v":35},{"$f":"SQRT((CJ63^2)+(CJ64^2)+(CJ65^2))","v":32.03123475609393}]
[null,"More than 30.0 percent",{"$f":"C66+C67+C68+C69","v":0},{"$f":"SQRT((D66^2)+(D67^2)+(D68^2)+(D69^2))","v":22},{"$f":"E66+E67+E68+E69","v":0},{"$f":"SQRT((F66^2)+(F67^2)+(F68^2)+(F69^2))","v":22},{"$f":"G66+G67+G68+G69","v":0},{"$f":"SQRT((H66^2)+(H67^2)+(H68^2)+(H69^2))","v":22},{"$f":"I66+I67+I68+I69","v":0},{"$f":"SQRT((J66^2)+(J67^2)+(J68^2)+(J69^2))","v":36},{"$f":"K66+K67+K68+K69","v":0},{"$f":"SQRT((L66^2)+(L67^2)+(L68^2)+(L69^2))","v":22},{"$f":"M66+M67+M68+M69","v":0},{"$f":"SQRT((N66^2)+(N67^2)+(N68^2)+(N69^2))","v":22},{"$f":"O66+O67+O68+O69","v":0},{"$f":"SQRT((P66^2)+(P67^2)+(P68^2)+(P69^2))","v":22},{"$f":"Q66+Q67+Q68+Q69","v":0},{"$f":"SQRT((R66^2)+(R67^2)+(R68^2)+(R69^2))","v":22},{"$f":"S66+S67+S68+S69","v":0},{"$f":"SQRT((T66^2)+(T67^2)+(T68^2)+(T69^2))","v":22},{"$f":"U66+U67+U68+U69","v":0},{"$f":"SQRT((V66^2)+(V67^2)+(V68^2)+(V69^2))","v":22},{"$f":"W66+W67+W68+W69","v":0},{"$f":"SQRT((X66^2)+(X67^2)+(X68^2)+(X69^2))","v":22},{"$f":"Y66+Y67+Y68+Y69","v":0},{"$f":"SQRT((Z66^2)+(Z67^2)+(Z68^2)+(Z69^2))","v":22},{"$f":"AA66+AA67+AA68+AA69","v":0},{"$f":"SQRT((AB66^2)+(AB67^2)+(AB68^2)+(AB69^2))","v":22},{"$f":"AC66+AC67+AC68+AC69","v":0},{"$f":"SQRT((AD66^2)+(AD67^2)+(AD68^2)+(AD69^2))","v":22},{"$f":"AE66+AE67+AE68+AE69","v":0},{"$f":"SQRT((AF66^2)+(AF67^2)+(AF68^2)+(AF69^2))","v":22},{"$f":"AG66+AG67+AG68+AG69","v":0},{"$f":"SQRT((AH66^2)+(AH67^2)+(AH68^2)+(AH69^2))","v":22},{"$f":"AI66+AI67+AI68+AI69","v":0},{"$f":"SQRT((AJ66^2)+(AJ67^2)+(AJ68^2)+(AJ69^2))","v":22},{"$f":"AK66+AK67+AK68+AK69","v":0},{"$f":"SQRT((AL66^2)+(AL67^2)+(AL68^2)+(AL69^2))","v":22},{"$f":"AM66+AM67+AM68+AM69","v":0},{"$f":"SQRT((AN66^2)+(AN67^2)+(AN68^2)+(AN69^2))","v":22},{"$f":"AO66+AO67+AO68+AO69","v":0},{"$f":"SQRT((AP66^2)+(AP67^2)+(AP68^2)+(AP69^2))","v":22},{"$f":"AQ66+AQ67+AQ68+AQ69","v":0},{"$f":"SQRT((AR66^2)+(AR67^2)+(AR68^2)+(AR69^2))","v":22},{"$f":"AS66+AS67+AS68+AS69","v":0},{"$f":"SQRT((AT66^2)+(AT67^2)+(AT68^2)+(AT69^2))","v":22},{"$f":"AU66+AU67+AU68+AU69","v":0},{"$f":"SQRT((AV66^2)+(AV67^2)+(AV68^2)+(AV69^2))","v":22},{"$f":"AW66+AW67+AW68+AW69","v":0},{"$f":"SQRT((AX66^2)+(AX67^2)+(AX68^2)+(AX69^2))","v":22},{"$f":"AY66+AY67+AY68+AY69","v":0},{"$f":"SQRT((AZ66^2)+(AZ67^2)+(AZ68^2)+(AZ69^2))","v":22},{"$f":"BA66+BA67+BA68+BA69","v":0},{"$f":"SQRT((BB66^2)+(BB67^2)+(BB68^2)+(BB69^2))","v":22},{"$f":"BC66+BC67+BC68+BC69","v":0},{"$f":"SQRT((BD66^2)+(BD67^2)+(BD68^2)+(BD69^2))","v":22},{"$f":"BE66+BE67+BE68+BE69","v":0},{"$f":"SQRT((BF66^2)+(BF67^2)+(BF68^2)+(BF69^2))","v":22},{"$f":"BG66+BG67+BG68+BG69","v":0},{"$f":"SQRT((BH66^2)+(BH67^2)+(BH68^2)+(BH69^2))","v":22},{"$f":"BI66+BI67+BI68+BI69","v":0},{"$f":"SQRT((BJ66^2)+(BJ67^2)+(BJ68^2)+(BJ69^2))","v":22},{"$f":"BK66+BK67+BK68+BK69","v":0},{"$f":"SQRT((BL66^2)+(BL67^2)+(BL68^2)+(BL69^2))","v":22},{"$f":"BM66+BM67+BM68+BM69","v":0},{"$f":"SQRT((BN66^2)+(BN67^2)+(BN68^2)+(BN69^2))","v":22},{"$f":"BO66+BO67+BO68+BO69","v":0},{"$f":"SQRT((BP66^2)+(BP67^2)+(BP68^2)+(BP69^2))","v":22},{"$f":"BQ66+BQ67+BQ68+BQ69","v":0},{"$f":"SQRT((BR66^2)+(BR67^2)+(BR68^2)+(BR69^2))","v":22},{"$f":"BS66+BS67+BS68+BS69","v":0},{"$f":"SQRT((BT66^2)+(BT67^2)+(BT68^2)+(BT69^2))","v":22},{"$f":"BU66+BU67+BU68+BU69","v":0},{"$f":"SQRT((BV66^2)+(BV67^2)+(BV68^2)+(BV69^2))","v":22},{"$f":"BW66+BW67+BW68+BW69","v":0},{"$f":"SQRT((BX66^2)+(BX67^2)+(BX68^2)+(BX69^2))","v":22},{"$f":"BY66+BY67+BY68+BY69","v":0},{"$f":"SQRT((BZ66^2)+(BZ67^2)+(BZ68^2)+(BZ69^2))","v":22},{"$f":"CA66+CA67+CA68+CA69","v":0},{"$f":"SQRT((CB66^2)+(CB67^2)+(CB68^2)+(CB69^2))","v":22},{"$f":"CC66+CC67+CC68+CC69","v":0},{"$f":"SQRT((CD66^2)+(CD67^2)+(CD68^2)+(CD69^2))","v":22},{"$f":"CE66+CE67+CE68+CE69","v":0},{"$f":"SQRT((CF66^2)+(CF67^2)+(CF68^2)+(CF69^2))","v":22},{"$f":"CG66+CG67+CG68+CG69","v":0},{"$f":"SQRT((CH66^2)+(CH67^2)+(CH68^2)+(CH69^2))","v":22},{"$f":"CI66+CI67+CI68+CI69","v":0},{"$f":"SQRT((CJ66^2)+(CJ67^2)+(CJ68^2)+(CJ69^2))","v":22}]
[null,"Less Than 35% of HH Income",{"$f":"C63+C64+C65+C66","v":0},{"$f":"SQRT(((D63^2)+(D64^2)+(D65^2)+(D66^2)))","v":22},{"$f":"E63+E64+E65+E66","v":0},{"$f":"SQRT(((F63^2)+(F64^2)+(F65^2)+(F66^2)))","v":22},{"$f":"G63+G64+G65+G66","v":0},{"$f":"SQRT(((H63^2)+(H64^2)+(H65^2)+(H66^2)))","v":22},{"$f":"I63+I64+I65+I66","v":36},{"$f":"SQRT(((J63^2)+(J64^2)+(J65^2)+(J66^2)))","v":51.507281038703645},{"$f":"K63+K64+K65+K66","v":0},{"$f":"SQRT(((L63^2)+(L64^2)+(L65^2)+(L66^2)))","v":22},{"$f":"M63+M64+M65+M66","v":15},{"$f":"SQRT(((N63^2)+(N64^2)+(N65^2)+(N66^2)))","v":25.534290669607408},{"$f":"O63+O64+O65+O66","v":0},{"$f":"SQRT(((P63^2)+(P64^2)+(P65^2)+(P66^2)))","v":22},{"$f":"Q63+Q64+Q65+Q66","v":3},{"$f":"SQRT(((R63^2)+(R64^2)+(R65^2)+(R66^2)))","v":19.467922333931785},{"$f":"S63+S64+S65+S66","v":11},{"$f":"SQRT(((T63^2)+(T64^2)+(T65^2)+(T66^2)))","v":22.516660498395403},{"$f":"U63+U64+U65+U66","v":6},{"$f":"SQRT(((V63^2)+(V64^2)+(V65^2)+(V66^2)))","v":19.974984355438178},{"$f":"W63+W64+W65+W66","v":0},{"$f":"SQRT(((X63^2)+(X64^2)+(X65^2)+(X66^2)))","v":22},{"$f":"Y63+Y64+Y65+Y66","v":0},{"$f":"SQRT(((Z63^2)+(Z64^2)+(Z65^2)+(Z66^2)))","v":22},{"$f":"AA63+AA64+AA65+AA66","v":5},{"$f":"SQRT(((AB63^2)+(AB64^2)+(AB65^2)+(AB66^2)))","v":20.297783130184438},{"$f":"AC63+AC64+AC65+AC66","v":0},{"$f":"SQRT(((AD63^2)+(AD64^2)+(AD65^2)+(AD66^2)))","v":22},{"$f":"AE63+AE64+AE65+AE66","v":0},{"$f":"SQRT(((AF63^2)+(AF64^2)+(AF65^2)+(AF66^2)))","v":22},{"$f":"AG63+AG64+AG65+AG66","v":0},{"$f":"SQRT(((AH63^2)+(AH64^2)+(AH65^2)+(AH66^2)))","v":22},{"$f":"AI63+AI64+AI65+AI66","v":3},{"$f":"SQRT(((AJ63^2)+(AJ64^2)+(AJ65^2)+(AJ66^2)))","v":20.297783130184438},{"$f":"AK63+AK64+AK65+AK66","v":0},{"$f":"SQRT(((AL63^2)+(AL64^2)+(AL65^2)+(AL66^2)))","v":22},{"$f":"AM63+AM64+AM65+AM66","v":0},{"$f":"SQRT(((AN63^2)+(AN64^2)+(AN65^2)+(AN66^2)))","v":22},{"$f":"AO63+AO64+AO65+AO66","v":0},{"$f":"SQRT(((AP63^2)+(AP64^2)+(AP65^2)+(AP66^2)))","v":22},{"$f":"AQ63+AQ64+AQ65+AQ66","v":0},{"$f":"SQRT(((AR63^2)+(AR64^2)+(AR65^2)+(AR66^2)))","v":22},{"$f":"AS63+AS64+AS65+AS66","v":0},{"$f":"SQRT(((AT63^2)+(AT64^2)+(AT65^2)+(AT66^2)))","v":22},{"$f":"AU63+AU64+AU65+AU66","v":0},{"$f":"SQRT(((AV63^2)+(AV64^2)+(AV65^2)+(AV66^2)))","v":22},{"$f":"AW63+AW64+AW65+AW66","v":0},{"$f":"SQRT(((AX63^2)+(AX64^2)+(AX65^2)+(AX66^2)))","v":22},{"$f":"AY63+AY64+AY65+AY66","v":0},{"$f":"SQRT(((AZ63^2)+(AZ64^2)+(AZ65^2)+(AZ66^2)))","v":22},{"$f":"BA63+BA64+BA65+BA66","v":0},{"$f":"SQRT(((BB63^2)+(BB64^2)+(BB65^2)+(BB66^2)))","v":22},{"$f":"BC63+BC64+BC65+BC66","v":4},{"$f":"SQRT(((BD63^2)+(BD64^2)+(BD65^2)+(BD66^2)))","v":19.697715603592208},{"$f":"BE63+BE64+BE65+BE66","v":0},{"$f":"SQRT(((BF63^2)+(BF64^2)+(BF65^2)+(BF66^2)))","v":22},{"$f":"BG63+BG64+BG65+BG66","v":17},{"$f":"SQRT(((BH63^2)+(BH64^2)+(BH65^2)+(BH66^2)))","v":30.643106892089126},{"$f":"BI63+BI64+BI65+BI66","v":0},{"$f":"SQRT(((BJ63^2)+(BJ64^2)+(BJ65^2)+(BJ66^2)))","v":22},{"$f":"BK63+BK64+BK65+BK66","v":0},{"$f":"SQRT(((BL63^2)+(BL64^2)+(BL65^2)+(BL66^2)))","v":22},{"$f":"BM63+BM64+BM65+BM66","v":0},{"$f":"SQRT(((BN63^2)+(BN64^2)+(BN65^2)+(BN66^2)))","v":22},{"$f":"BO63+BO64+BO65+BO66","v":7},{"$f":"SQRT(((BP63^2)+(BP64^2)+(BP65^2)+(BP66^2)))","v":20.297783130184438},{"$f":"BQ63+BQ64+BQ65+BQ66","v":0},{"$f":"SQRT(((BR63^2)+(BR64^2)+(BR65^2)+(BR66^2)))","v":22},{"$f":"BS63+BS64+BS65+BS66","v":0},{"$f":"SQRT(((BT63^2)+(BT64^2)+(BT65^2)+(BT66^2)))","v":22},{"$f":"BU63+BU64+BU65+BU66","v":2},{"$f":"SQRT(((BV63^2)+(BV64^2)+(BV65^2)+(BV66^2)))","v":19.28730152198591},{"$f":"BW63+BW64+BW65+BW66","v":9},{"$f":"SQRT(((BX63^2)+(BX64^2)+(BX65^2)+(BX66^2)))","v":21.517434791350013},{"$f":"BY63+BY64+BY65+BY66","v":0},{"$f":"SQRT(((BZ63^2)+(BZ64^2)+(BZ65^2)+(BZ66^2)))","v":22},{"$f":"CA63+CA64+CA65+CA66","v":0},{"$f":"SQRT(((CB63^2)+(CB64^2)+(CB65^2)+(CB66^2)))","v":22},{"$f":"CC63+CC64+CC65+CC66","v":0},{"$f":"SQRT(((CD63^2)+(CD64^2)+(CD65^2)+(CD66^2)))","v":22},{"$f":"CE63+CE64+CE65+CE66","v":0},{"$f":"SQRT(((CF63^2)+(CF64^2)+(CF65^2)+(CF66^2)))","v":22},{"$f":"CG63+CG64+CG65+CG66","v":0},{"$f":"SQRT(((CH63^2)+(CH64^2)+(CH65^2)+(CH66^2)))","v":22},{"$f":"CI63+CI64+CI65+CI66","v":35},{"$f":"SQRT(((CJ63^2)+(CJ64^2)+(CJ65^2)+(CJ66^2)))","v":33.867388443752198}]
[null,"35.0 percent or more",{"$f":"C67+C68+C69","v":0},{"$f":"SQRT((D67^2)+(D68^2)+(D69^2))","v":19.05255888325765},{"$f":"E67+E68+E69","v":0},{"$f":"SQRT((F67^2)+(F68^2)+(F69^2))","v":19.05255888325765},{"$f":"G67+G68+G69","v":0},{"$f":"SQRT((H67^2)+(H68^2)+(H69^2))","v":19.05255888325765},{"$f":"I67+I68+I69","v":0},{"$f":"SQRT((J67^2)+(J68^2)+(J69^2))","v":31.176914536239792},{"$f":"K67+K68+K69","v":0},{"$f":"SQRT((L67^2)+(L68^2)+(L69^2))","v":19.05255888325765},{"$f":"M67+M68+M69","v":0},{"$f":"SQRT((N67^2)+(N68^2)+(N69^2))","v":19.05255888325765},{"$f":"O67+O68+O69","v":0},{"$f":"SQRT((P67^2)+(P68^2)+(P69^2))","v":19.05255888325765},{"$f":"Q67+Q68+Q69","v":0},{"$f":"SQRT((R67^2)+(R68^2)+(R69^2))","v":19.05255888325765},{"$f":"S67+S68+S69","v":0},{"$f":"SQRT((T67^2)+(T68^2)+(T69^2))","v":19.05255888325765},{"$f":"U67+U68+U69","v":0},{"$f":"SQRT((V67^2)+(V68^2)+(V69^2))","v":19.05255888325765},{"$f":"W67+W68+W69","v":0},{"$f":"SQRT((X67^2)+(X68^2)+(X69^2))","v":19.05255888325765},{"$f":"Y67+Y68+Y69","v":0},{"$f":"SQRT((Z67^2)+(Z68^2)+(Z69^2))","v":19.05255888325765},{"$f":"AA67+AA68+AA69","v":0},{"$f":"SQRT((AB67^2)+(AB68^2)+(AB69^2))","v":19.05255888325765},{"$f":"AC67+AC68+AC69","v":0},{"$f":"SQRT((AD67^2)+(AD68^2)+(AD69^2))","v":19.05255888325765},{"$f":"AE67+AE68+AE69","v":0},{"$f":"SQRT((AF67^2)+(AF68^2)+(AF69^2))","v":19.05255888325765},{"$f":"AG67+AG68+AG69","v":0},{"$f":"SQRT((AH67^2)+(AH68^2)+(AH69^2))","v":19.05255888325765},{"$f":"AI67+AI68+AI69","v":0},{"$f":"SQRT((AJ67^2)+(AJ68^2)+(AJ69^2))","v":19.05255888325765},{"$f":"AK67+AK68+AK69","v":0},{"$f":"SQRT((AL67^2)+(AL68^2)+(AL69^2))","v":19.05255888325765},{"$f":"AM67+AM68+AM69","v":0},{"$f":"SQRT((AN67^2)+(AN68^2)+(AN69^2))","v":19.05255888325765},{"$f":"AO67+AO68+AO69","v":0},{"$f":"SQRT((AP67^2)+(AP68^2)+(AP69^2))","v":19.05255888325765},{"$f":"AQ67+AQ68+AQ69","v":0},{"$f":"SQRT((AR67^2)+(AR68^2)+(AR69^2))","v":19.05255888325765},{"$f":"AS67+AS68+AS69","v":0},{"$f":"SQRT((AT67^2)+(AT68^2)+(AT69^2))","v":19.05255888325765},{"$f":"AU67+AU68+AU69","v":0},{"$f":"SQRT((AV67^2)+(AV68^2)+(AV69^2))","v":19.05255888325765},{"$f":"AW67+AW68+AW69","v":0},{"$f":"SQRT((AX67^2)+(AX68^2)+(AX69^2))","v":19.05255888325765},{"$f":"AY67+AY68+AY69","v":0},{"$f":"SQRT((AZ67^2)+(AZ68^2)+(AZ69^2))","v":19.05255888325765},{"$f":"BA67+BA68+BA69","v":0},{"$f":"SQRT((BB67^2)+(BB68^2)+(BB69^2))","v":19.05255888325765},{"$f":"BC67+BC68+BC69","v":0},{"$f":"SQRT((BD67^2)+(BD68^2)+(BD69^2))","v":19.05255888325765},{"$f":"BE67+BE68+BE69","v":0},{"$f":"SQRT((BF67^2)+(BF68^2)+(BF69^2))","v":19.05255888325765},{"$f":"BG67+BG68+BG69","v":0},{"$f":"SQRT((BH67^2)+(BH68^2)+(BH69^2))","v":19.05255888325765},{"$f":"BI67+BI68+BI69","v":0},{"$f":"SQRT((BJ67^2)+(BJ68^2)+(BJ69^2))","v":19.05255888325765},{"$f":"BK67+BK68+BK69","v":0},{"$f":"SQRT((BL67^2)+(BL68^2)+(BL69^2))","v":19.05255888325765},{"$f":"BM67+BM68+BM69","v":0},{"$f":"SQRT((BN67^2)+(BN68^2)+(BN69^2))","v":19.05255888325765},{"$f":"BO67+BO68+BO69","v":0},{"$f":"SQRT((BP67^2)+(BP68^2)+(BP69^2))","v":19.05255888325765},{"$f":"BQ67+BQ68+BQ69","v":0},{"$f":"SQRT((BR67^2)+(BR68^2)+(BR69^2))","v":19.05255888325765},{"$f":"BS67+BS68+BS69","v":0},{"$f":"SQRT((BT67^2)+(BT68^2)+(BT69^2))","v":19.05255888325765},{"$f":"BU67+BU68+BU69","v":0},{"$f":"SQRT((BV67^2)+(BV68^2)+(BV69^2))","v":19.05255888325765},{"$f":"BW67+BW68+BW69","v":0},{"$f":"SQRT((BX67^2)+(BX68^2)+(BX69^2))","v":19.05255888325765},{"$f":"BY67+BY68+BY69","v":0},{"$f":"SQRT((BZ67^2)+(BZ68^2)+(BZ69^2))","v":19.05255888325765},{"$f":"CA67+CA68+CA69","v":0},{"$f":"SQRT((CB67^2)+(CB68^2)+(CB69^2))","v":19.05255888325765},{"$f":"CC67+CC68+CC69","v":0},{"$f":"SQRT((CD67^2)+(CD68^2)+(CD69^2))","v":19.05255888325765},{"$f":"CE67+CE68+CE69","v":0},{"$f":"SQRT((CF67^2)+(CF68^2)+(CF69^2))","v":19.05255888325765},{"$f":"CG67+CG68+CG69","v":0},{"$f":"SQRT((CH67^2)+(CH68^2)+(CH69^2))","v":19.05255888325765},{"$f":"CI67+CI68+CI69","v":0},{"$f":"SQRT((CJ67^2)+(CJ68^2)+(CJ69^2))","v":19.05255888325765}]
[null,"50.0 percent or more",{"$f":"C69","v":0},{"$f":"D69","v":11},{"$f":"E69","v":0},11,{"$f":"G69","v":0},11,{"$f":"I69","v":0},18,{"$f":"K69","v":0},11,{"$f":"M69","v":0},11,{"$f":"O69","v":0},11,{"$f":"Q69","v":0},11,{"$f":"S69","v":0},11,{"$f":"U69","v":0},11,{"$f":"W69","v":0},11,{"$f":"Y69","v":0},11,{"$f":"AA69","v":0},11,{"$f":"AC69","v":0},11,{"$f":"AE69","v":0},11,{"$f":"AG69","v":0},11,{"$f":"AI69","v":0},11,{"$f":"AK69","v":0},11,{"$f":"AM69","v":0},11,{"$f":"AO69","v":0},11,{"$f":"AQ69","v":0},11,{"$f":"AS69","v":0},11,{"$f":"AU69","v":0},11,{"$f":"AW69","v":0},11,{"$f":"AY69","v":0},11,{"$f":"BA69","v":0},11,{"$f":"BC69","v":0},11,{"$f":"BE69","v":0},11,{"$f":"BG69","v":0},11,{"$f":"BI69","v":0},11,{"$f":"BK69","v":0},11,{"$f":"BM69","v":0},11,{"$f":"BO69","v":0},{"$f":"BP69","v":11},{"$f":"BQ69","v":0},11,{"$f":"BS69","v":0},11,{"$f":"BU69","v":0},11,{"$f":"BW69","v":0},11,{"$f":"BY69","v":0},11,{"$f":"CA69","v":0},11,{"$f":"CC69","v":0},11,{"$f":"CE69","v":0},11,{"$f":"CG69","v":0},11,{"$f":"CI69","v":0},11]
[null,"Not Computed",{"$f":"C70","v":0},11,{"$f":"E70","v":0},11,{"$f":"G70","v":0},11,{"$f":"I70","v":0},18,{"$f":"K70","v":0},11,{"$f":"M70","v":0},11,{"$f":"O70","v":0},11,{"$f":"Q70","v":0},11,{"$f":"S70","v":0},11,{"$f":"U70","v":0},11,{"$f":"W70","v":0},11,{"$f":"Y70","v":0},11,{"$f":"AA70","v":0},11,{"$f":"AC70","v":0},11,{"$f":"AE70","v":0},11,{"$f":"AG70","v":0},11,{"$f":"AI70","v":0},11,{"$f":"AK70","v":0},11,{"$f":"AM70","v":8},13,{"$f":"AO70","v":0},11,{"$f":"AQ70","v":0},11,{"$f":"AS70","v":0},11,{"$f":"AU70","v":0},11,{"$f":"AW70","v":0},11,{"$f":"AY70","v":0},11,{"$f":"BA70","v":0},11,{"$f":"BC70","v":0},11,{"$f":"BE70","v":0},11,{"$f":"BG70","v":0},11,{"$f":"BI70","v":0},11,{"$f":"BK70","v":0},11,{"$f":"BM70","v":0},11,{"$f":"BO70","v":0},11,{"$f":"BQ70","v":0},11,{"$f":"BS70","v":0},11,{"$f":"BU70","v":0},11,{"$f":"BW70","v":0},11,{"$f":"BY70","v":0},11,{"$f":"CA70","v":0},11,{"$f":"CC70","v":0},11,{"$f":"CE70","v":0},11,{"$f":"CG70","v":0},11,{"$f":"CI70","v":0},11]
[]
[]
[null,"Calculated GROSS RENT AS A PERCENTAGE OF HOUSEHOLD INCOME IN THE PAST 12 MONTHS"]
[null,"Universe:  RENTER OCCUPIED HOUSING UNITS"]
[null,"Data Set: 2015-2019 American Community Survey 5-Year Estimates"]
[]
[null,null,"Atkinson and Gilmanton Grant",null,"Bean's Grant",null,"Bean's Purchase",null,"Berlin",null,"Cambridge",null,"Carroll",null,"Chandler's Purchase",null,"Clarksville",null,"Colebrook",null,"Columbia",null,"Crawford's Purchase",null,"Cutt's Grant",null,"Dalton",null,"Dix's Grant",null,"Dixville",null,"Dummer",null,"Errol",null,"Erving's Location",null,"Gorham",null,"Greens Grant",null,"Hadley's Purchase",null,"Jefferson",null,"Kilkenny",null,"Lancaster",null,"Low and Burbank's Grant",null,"Martin's Location",null,"Milan",null,"Millsfield",null,"Northumberland",null,"Odell",null,"Pinkham's Grant",null,"Pittsburg",null,"Randolph",null,"Sargent's Purchase",null,"Second College Grant",null,"Shelburne",null,"Stark",null,"Stewartstown",null,"Stratford",null,"Success",null,"Thompson and Meserves Purchase",null,"Wentworth's Location",null,"Whitefield"]
[null,null,"Estimate","Margin Of Error","Estimate","Margin Of Error","Estimate","Margin Of Error","Estimate","Margin Of Error","Estimate","Margin Of Error","Estimate","Margin Of Error","Estimate","Margin Of Error","Estimate","Margin Of Error","Estimate","Margin Of Error","Estimate","Margin Of Error","Estimate","Margin Of Error","Estimate","Margin Of Error","Estimate","Margin Of Error","Estimate","Margin Of Error","Estimate","Margin Of Error","Estimate","Margin Of Error","Estimate","Margin Of Error","Estimate","Margin Of Error","Estimate","Margin Of Error","Estimate","Margin Of Error","Estimate","Margin Of Error","Estimate","Margin Of Error","Estimate","Margin Of Error","Estimate","Margin Of Error","Estimate","Margin Of Error","Estimate","Margin Of Error","Estimate","Margin Of Error","Estimate","Margin Of Error","Estimate","Margin Of Error","Estimate","Margin Of Error","Estimate","Margin Of Error","Estimate","Margin Of Error","Estimate","Margin Of Error","Estimate","Margin Of Error","Estimate","Margin Of Error","Estimate","Margin Of Error","Estimate","Margin Of Error","Estimate","Margin Of Error","Estimate","Margin Of Error","Estimate","Margin Of Error","Estimate","Margin Of Error","Estimate","Margin Of Error","Estimate","Margin Of Error"]
[null,{"$f":"B92","v":"Total:"},0,11,{"$f":"E92","v":0},11,0,11,1749,196,0,11,72,32,0,11,11,7,256,55,49,22,0,11,0,11,60,28,0,11,0,11,13,8,18,12,0,11,283,83,0,11,0,11,50,32,0,11,347,116,0,11,0,11,90,41,0,11,324,61,0,11,0,11,87,31,35,17,{"$f":"BQ92","v":0},11,0,11,37,18,35,19,48,40,71,29,0,11,0,11,2,3,403,105]
[null,"Less than 30.0 percent",{"$f":"C136+C129+C122+C115+C108+C101+C94","v":0},{"$f":"SQRT((D136^2)+(D129^2)+(D122^2)+(D115^2)+(D108^2)+(D101^2)+(D94^2))","v":50.408332644514239},{"$f":"E136+E129+E122+E115+E108+E101+E94","v":0},{"$f":"SQRT((F136^2)+(F129^2)+(F122^2)+(F115^2)+(F108^2)+(F101^2)+(F94^2))","v":50.408332644514239},{"$f":"G136+G129+G122+G115+G108+G101+G94","v":0},{"$f":"SQRT((H136^2)+(H129^2)+(H122^2)+(H115^2)+(H108^2)+(H101^2)+(H94^2))","v":50.408332644514239},{"$f":"I136+I129+I122+I115+I108+I101+I94","v":889},{"$f":"SQRT((J136^2)+(J129^2)+(J122^2)+(J115^2)+(J108^2)+(J101^2)+(J94^2))","v":207.22692875203262},{"$f":"K136+K129+K122+K115+K108+K101+K94","v":0},{"$f":"SQRT((L136^2)+(L129^2)+(L122^2)+(L115^2)+(L108^2)+(L101^2)+(L94^2))","v":50.408332644514239},{"$f":"M136+M129+M122+M115+M108+M101+M94","v":44},{"$f":"SQRT((N136^2)+(N129^2)+(N122^2)+(N115^2)+(N108^2)+(N101^2)+(N94^2))","v":50.892042599997893},{"$f":"O136+O129+O122+O115+O108+O101+O94","v":0},{"$f":"SQRT((P136^2)+(P129^2)+(P122^2)+(P115^2)+(P108^2)+(P101^2)+(P94^2))","v":50.408332644514239},{"$f":"Q136+Q129+Q122+Q115+Q108+Q101+Q94","v":8},{"$f":"SQRT((R136^2)+(R129^2)+(R122^2)+(R115^2)+(R108^2)+(R101^2)+(R94^2))","v":47.106262853255508},{"$f":"S136+S129+S122+S115+S108+S101+S94","v":102},{"$f":"SQRT((T136^2)+(T129^2)+(T122^2)+(T115^2)+(T108^2)+(T101^2)+(T94^2))","v":56.151580565465828},{"$f":"U136+U129+U122+U115+U108+U101+U94","v":14},{"$f":"SQRT((V136^2)+(V129^2)+(V122^2)+(V115^2)+(V108^2)+(V101^2)+(V94^2))","v":46.195237849804386},{"$f":"W136+W129+W122+W115+W108+W101+W94","v":0},{"$f":"SQRT((X136^2)+(X129^2)+(X122^2)+(X115^2)+(X108^2)+(X101^2)+(X94^2))","v":50.408332644514239},{"$f":"Y136+Y129+Y122+Y115+Y108+Y101+Y94","v":0},{"$f":"SQRT((Z136^2)+(Z129^2)+(Z122^2)+(Z115^2)+(Z108^2)+(Z101^2)+(Z94^2))","v":50.408332644514239},{"$f":"AA136+AA129+AA122+AA115+AA108+AA101+AA94","v":44},{"$f":"SQRT((AB136^2)+(AB129^2)+(AB122^2)+(AB115^2)+(AB108^2)+(AB101^2)+(AB94^2))","v":50.695167422546305},{"$f":"AC136+AC129+AC122+AC115+AC108+AC101+AC94","v":0},{"$f":"SQRT((AD136^2)+(AD129^2)+(AD122^2)+(AD115^2)+(AD108^2)+(AD101^2)+(AD94^2))","v":50.408332644514239},{"$f":"AE136+AE129+AE122+AE115+AE108+AE101+AE94","v":0},{"$f":"SQRT((AF136^2)+(AF129^2)+(AF122^2)+(AF115^2)+(AF108^2)+(AF101^2)+(AF94^2))","v":50.408332644514239},{"$f":"AG136+AG129+AG122+AG115+AG108+AG101+AG94","v":2},{"$f":"SQRT((AH136^2)+(AH129^2)+(AH122^2)+(AH115^2)+(AH108^2)+(AH101^2)+(AH94^2))","v":49.28488612140643},{"$f":"AI136+AI129+AI122+AI115+AI108+AI101+AI94","v":8},{"$f":"SQRT((AJ136^2)+(AJ129^2)+(AJ122^2)+(AJ115^2)+(AJ108^2)+(AJ101^2)+(AJ94^2))","v":47.613023428469653},{"$f":"AK136+AK129+AK122+AK115+AK108+AK101+AK94","v":0},{"$f":"SQRT((AL136^2)+(AL129^2)+(AL122^2)+(AL115^2)+(AL108^2)+(AL101^2)+(AL94^2))","v":50.408332644514239},{"$f":"AM136+AM129+AM122+AM115+AM108+AM101+AM94","v":209},{"$f":"SQRT((AN136^2)+(AN129^2)+(AN122^2)+(AN115^2)+(AN108^2)+(AN101^2)+(AN94^2))","v":95.822753039139926},{"$f":"AO136+AO129+AO122+AO115+AO108+AO101+AO94","v":0},{"$f":"SQRT((AP136^2)+(AP129^2)+(AP122^2)+(AP115^2)+(AP108^2)+(AP101^2)+(AP94^2))","v":50.408332644514239},{"$f":"AQ136+AQ129+AQ122+AQ115+AQ108+AQ101+AQ94","v":0},{"$f":"SQRT((AR136^2)+(AR129^2)+(AR122^2)+(AR115^2)+(AR108^2)+(AR101^2)+(AR94^2))","v":50.408332644514239},{"$f":"AS136+AS129+AS122+AS115+AS108+AS101+AS94","v":29},{"$f":"SQRT((AT136^2)+(AT129^2)+(AT122^2)+(AT115^2)+(AT108^2)+(AT101^2)+(AT94^2))","v":55.235857918565905},{"$f":"AU136+AU129+AU122+AU115+AU108+AU101+AU94","v":0},{"$f":"SQRT((AV136^2)+(AV129^2)+(AV122^2)+(AV115^2)+(AV108^2)+(AV101^2)+(AV94^2))","v":50.408332644514239},{"$f":"AW136+AW129+AW122+AW115+AW108+AW101+AW94","v":232},{"$f":"SQRT((AX136^2)+(AX129^2)+(AX122^2)+(AX115^2)+(AX108^2)+(AX101^2)+(AX94^2))","v":104.42221985765291},{"$f":"AY136+AY129+AY122+AY115+AY108+AY101+AY94","v":0},{"$f":"SQRT((AZ136^2)+(AZ129^2)+(AZ122^2)+(AZ115^2)+(AZ108^2)+(AZ101^2)+(AZ94^2))","v":50.408332644514239},{"$f":"BA136+BA129+BA122+BA115+BA108+BA101+BA94","v":0},{"$f":"SQRT((BB136^2)+(BB129^2)+(BB122^2)+(BB115^2)+(BB108^2)+(BB101^2)+(BB94^2))","v":50.408332644514239},{"$f":"BC136+BC129+BC122+BC115+BC108+BC101+BC94","v":53},{"$f":"SQRT((BD136^2)+(BD129^2)+(BD122^2)+(BD115^2)+(BD108^2)+(BD101^2)+(BD94^2))","v":53.925875050851054},{"$f":"BE136+BE129+BE122+BE115+BE108+BE101+BE94","v":0},{"$f":"SQRT((BF136^2)+(BF129^2)+(BF122^2)+(BF115^2)+(BF108^2)+(BF101^2)+(BF94^2))","v":50.408332644514239},{"$f":"BG136+BG129+BG122+BG115+BG108+BG101+BG94","v":206},{"$f":"SQRT((BH136^2)+(BH129^2)+(BH122^2)+(BH115^2)+(BH108^2)+(BH101^2)+(BH94^2))","v":73.993242934743705},{"$f":"BI136+BI129+BI122+BI115+BI108+BI101+BI94","v":0},{"$f":"SQRT((BJ136^2)+(BJ129^2)+(BJ122^2)+(BJ115^2)+(BJ108^2)+(BJ101^2)+(BJ94^2))","v":50.408332644514239},{"$f":"BK136+BK129+BK122+BK115+BK108+BK101+BK94","v":0},{"$f":"SQRT((BL136^2)+(BL129^2)+(BL122^2)+(BL115^2)+(BL108^2)+(BL101^2)+(BL94^2))","v":50.408332644514239},{"$f":"BM136+BM129+BM122+BM115+BM108+BM101+BM94","v":50},{"$f":"SQRT((BN136^2)+(BN129^2)+(BN122^2)+(BN115^2)+(BN108^2)+(BN101^2)+(BN94^2))","v":50.606323715519977},{"$f":"BO136+BO129+BO122+BO115+BO108+BO101+BO94","v":19},{"$f":"SQRT((BP136^2)+(BP129^2)+(BP122^2)+(BP115^2)+(BP108^2)+(BP101^2)+(BP94^2))","v":46.776062254106002},{"$f":"BQ136+BQ129+BQ122+BQ115+BQ108+BQ101+BQ94","v":0},{"$f":"SQRT((BR136^2)+(BR129^2)+(BR122^2)+(BR115^2)+(BR108^2)+(BR101^2)+(BR94^2))","v":50.408332644514239},{"$f":"BS136+BS129+BS122+BS115+BS108+BS101+BS94","v":0},{"$f":"SQRT((BT136^2)+(BT129^2)+(BT122^2)+(BT115^2)+(BT108^2)+(BT101^2)+(BT94^2))","v":50.408332644514239},{"$f":"BU136+BU129+BU122+BU115+BU108+BU101+BU94","v":18},{"$f":"SQRT((BV136^2)+(BV129^2)+(BV122^2)+(BV115^2)+(BV108^2)+(BV101^2)+(BV94^2))","v":44.237992721189329},{"$f":"BW136+BW129+BW122+BW115+BW108+BW101+BW94","v":20},{"$f":"SQRT((BX136^2)+(BX129^2)+(BX122^2)+(BX115^2)+(BX108^2)+(BX101^2)+(BX94^2))","v":47.916594202843754},{"$f":"BY136+BY129+BY122+BY115+BY108+BY101+BY94","v":32},{"$f":"SQRT((BZ136^2)+(BZ129^2)+(BZ122^2)+(BZ115^2)+(BZ108^2)+(BZ101^2)+(BZ94^2))","v":55.172456896534889},{"$f":"CA136+CA129+CA122+CA115+CA108+CA101+CA94","v":46},{"$f":"SQRT((CB136^2)+(CB129^2)+(CB122^2)+(CB115^2)+(CB108^2)+(CB101^2)+(CB94^2))","v":47.127486671792717},{"$f":"CC136+CC129+CC122+CC115+CC108+CC101+CC94","v":0},{"$f":"SQRT((CD136^2)+(CD129^2)+(CD122^2)+(CD115^2)+(CD108^2)+(CD101^2)+(CD94^2))","v":50.408332644514239},{"$f":"CE136+CE129+CE122+CE115+CE108+CE101+CE94","v":0},{"$f":"SQRT((CF136^2)+(CF129^2)+(CF122^2)+(CF115^2)+(CF108^2)+(CF101^2)+(CF94^2))","v":50.408332644514239},{"$f":"CG136+CG129+CG122+CG115+CG108+CG101+CG94","v":0},{"$f":"SQRT((CH136^2)+(CH129^2)+(CH122^2)+(CH115^2)+(CH108^2)+(CH101^2)+(CH94^2))","v":50.408332644514239},{"$f":"CI136+CI129+CI122+CI115+CI108+CI101+CI94","v":220},{"$f":"SQRT((CJ136^2)+(CJ129^2)+(CJ122^2)+(CJ115^2)+(CJ108^2)+(CJ101^2)+(CJ94^2))","v":85.445889310135925}]
[null,"More than 30.0 percent",{"$f":"C137+C130+C123+C116+C109+C102+C95","v":0},{"$f":"SQRT((D137^2)+(D130^2)+(D123^2)+(D116^2)+(D109^2)+(D102^2)+(D95^2))","v":58.20652884342099},{"$f":"E137+E130+E123+E116+E109+E102+E95","v":0},{"$f":"SQRT((F137^2)+(F130^2)+(F123^2)+(F116^2)+(F109^2)+(F102^2)+(F95^2))","v":58.20652884342099},{"$f":"G137+G130+G123+G116+G109+G102+G95","v":0},{"$f":"SQRT((H137^2)+(H130^2)+(H123^2)+(H116^2)+(H109^2)+(H102^2)+(H95^2))","v":58.20652884342099},{"$f":"I137+I130+I123+I116+I109+I102+I95","v":814},{"$f":"SQRT((J137^2)+(J130^2)+(J123^2)+(J116^2)+(J109^2)+(J102^2)+(J95^2))","v":210.67510531621909},{"$f":"K137+K130+K123+K116+K109+K102+K95","v":0},{"$f":"SQRT((L137^2)+(L130^2)+(L123^2)+(L116^2)+(L109^2)+(L102^2)+(L95^2))","v":58.20652884342099},{"$f":"M137+M130+M123+M116+M109+M102+M95","v":18},{"$f":"SQRT((N137^2)+(N130^2)+(N123^2)+(N116^2)+(N109^2)+(N102^2)+(N95^2))","v":54.17564028232615},{"$f":"O137+O130+O123+O116+O109+O102+O95","v":0},{"$f":"SQRT((P137^2)+(P130^2)+(P123^2)+(P116^2)+(P109^2)+(P102^2)+(P95^2))","v":58.20652884342099},{"$f":"Q137+Q130+Q123+Q116+Q109+Q102+Q95","v":1},{"$f":"SQRT((R137^2)+(R130^2)+(R123^2)+(R116^2)+(R109^2)+(R102^2)+(R95^2))","v":57.192656871315222},{"$f":"S137+S130+S123+S116+S109+S102+S95","v":124},{"$f":"SQRT((T137^2)+(T130^2)+(T123^2)+(T116^2)+(T109^2)+(T102^2)+(T95^2))","v":74.94664769020693},{"$f":"U137+U130+U123+U116+U109+U102+U95","v":13},{"$f":"SQRT((V137^2)+(V130^2)+(V123^2)+(V116^2)+(V109^2)+(V102^2)+(V95^2))","v":54.86346689738081},{"$f":"W137+W130+W123+W116+W109+W102+W95","v":0},{"$f":"SQRT((X137^2)+(X130^2)+(X123^2)+(X116^2)+(X109^2)+(X102^2)+(X95^2))","v":58.20652884342099},{"$f":"Y137+Y130+Y123+Y116+Y109+Y102+Y95","v":0},{"$f":"SQRT((Z137^2)+(Z130^2)+(Z123^2)+(Z116^2)+(Z109^2)+(Z102^2)+(Z95^2))","v":58.20652884342099},{"$f":"AA137+AA130+AA123+AA116+AA109+AA102+AA95","v":12},{"$f":"SQRT((AB137^2)+(AB130^2)+(AB123^2)+(AB116^2)+(AB109^2)+(AB102^2)+(AB95^2))","v":54.561891462814962},{"$f":"AC137+AC130+AC123+AC116+AC109+AC102+AC95","v":0},{"$f":"SQRT((AD137^2)+(AD130^2)+(AD123^2)+(AD116^2)+(AD109^2)+(AD102^2)+(AD95^2))","v":58.20652884342099},{"$f":"AE137+AE130+AE123+AE116+AE109+AE102+AE95","v":0},{"$f":"SQRT((AF137^2)+(AF130^2)+(AF123^2)+(AF116^2)+(AF109^2)+(AF102^2)+(AF95^2))","v":58.20652884342099},{"$f":"AG137+AG130+AG123+AG116+AG109+AG102+AG95","v":5},{"$f":"SQRT((AH137^2)+(AH130^2)+(AH123^2)+(AH116^2)+(AH109^2)+(AH102^2)+(AH95^2))","v":55.244909267732531},{"$f":"AI137+AI130+AI123+AI116+AI109+AI102+AI95","v":3},{"$f":"SQRT((AJ137^2)+(AJ130^2)+(AJ123^2)+(AJ116^2)+(AJ109^2)+(AJ102^2)+(AJ95^2))","v":56.204981985585583},{"$f":"AK137+AK130+AK123+AK116+AK109+AK102+AK95","v":0},{"$f":"SQRT((AL137^2)+(AL130^2)+(AL123^2)+(AL116^2)+(AL109^2)+(AL102^2)+(AL95^2))","v":58.20652884342099},{"$f":"AM137+AM130+AM123+AM116+AM109+AM102+AM95","v":55},{"$f":"SQRT((AN137^2)+(AN130^2)+(AN123^2)+(AN116^2)+(AN109^2)+(AN102^2)+(AN95^2))","v":63.28506932918696},{"$f":"AO137+AO130+AO123+AO116+AO109+AO102+AO95","v":0},{"$f":"SQRT((AP137^2)+(AP130^2)+(AP123^2)+(AP116^2)+(AP109^2)+(AP102^2)+(AP95^2))","v":58.20652884342099},{"$f":"AQ137+AQ130+AQ123+AQ116+AQ109+AQ102+AQ95","v":0},{"$f":"SQRT((AR137^2)+(AR130^2)+(AR123^2)+(AR116^2)+(AR109^2)+(AR102^2)+(AR95^2))","v":58.20652884342099},{"$f":"AS137+AS130+AS123+AS116+AS109+AS102+AS95","v":18},{"$f":"SQRT((AT137^2)+(AT130^2)+(AT123^2)+(AT116^2)+(AT109^2)+(AT102^2)+(AT95^2))","v":55.027265968790417},{"$f":"AU137+AU130+AU123+AU116+AU109+AU102+AU95","v":0},{"$f":"SQRT((AV137^2)+(AV130^2)+(AV123^2)+(AV116^2)+(AV109^2)+(AV102^2)+(AV95^2))","v":58.20652884342099},{"$f":"AW137+AW130+AW123+AW116+AW109+AW102+AW95","v":108},{"$f":"SQRT((AX137^2)+(AX130^2)+(AX123^2)+(AX116^2)+(AX109^2)+(AX102^2)+(AX95^2))","v":85.871997764113999},{"$f":"AY137+AY130+AY123+AY116+AY109+AY102+AY95","v":0},{"$f":"SQRT((AZ137^2)+(AZ130^2)+(AZ123^2)+(AZ116^2)+(AZ109^2)+(AZ102^2)+(AZ95^2))","v":58.20652884342099},{"$f":"BA137+BA130+BA123+BA116+BA109+BA102+BA95","v":0},{"$f":"SQRT((BB137^2)+(BB130^2)+(BB123^2)+(BB116^2)+(BB109^2)+(BB102^2)+(BB95^2))","v":58.20652884342099},{"$f":"BC137+BC130+BC123+BC116+BC109+BC102+BC95","v":22},{"$f":"SQRT((BD137^2)+(BD130^2)+(BD123^2)+(BD116^2)+(BD109^2)+(BD102^2)+(BD95^2))","v":58.617403559011379},{"$f":"BE137+BE130+BE123+BE116+BE109+BE102+BE95","v":0},{"$f":"SQRT((BF137^2)+(BF130^2)+(BF123^2)+(BF116^2)+(BF109^2)+(BF102^2)+(BF95^2))","v":58.20652884342099},{"$f":"BG137+BG130+BG123+BG116+BG109+BG102+BG95","v":91},{"$f":"SQRT((BH137^2)+(BH130^2)+(BH123^2)+(BH116^2)+(BH109^2)+(BH102^2)+(BH95^2))","v":65.901441562381621},{"$f":"BI137+BI130+BI123+BI116+BI109+BI102+BI95","v":0},{"$f":"SQRT((BJ137^2)+(BJ130^2)+(BJ123^2)+(BJ116^2)+(BJ109^2)+(BJ102^2)+(BJ95^2))","v":58.20652884342099},{"$f":"BK137+BK130+BK123+BK116+BK109+BK102+BK95","v":0},{"$f":"SQRT((BL137^2)+(BL130^2)+(BL123^2)+(BL116^2)+(BL109^2)+(BL102^2)+(BL95^2))","v":58.20652884342099},{"$f":"BM137+BM130+BM123+BM116+BM109+BM102+BM95","v":33},{"$f":"SQRT((BN137^2)+(BN130^2)+(BN123^2)+(BN116^2)+(BN109^2)+(BN102^2)+(BN95^2))","v":58.796258384356399},{"$f":"BO137+BO130+BO123+BO116+BO109+BO102+BO95","v":14},{"$f":"SQRT((BP137^2)+(BP130^2)+(BP123^2)+(BP116^2)+(BP109^2)+(BP102^2)+(BP95^2))","v":58.617403559011379},{"$f":"BQ137+BQ130+BQ123+BQ116+BQ109+BQ102+BQ95","v":0},{"$f":"SQRT((BR137^2)+(BR130^2)+(BR123^2)+(BR116^2)+(BR109^2)+(BR102^2)+(BR95^2))","v":58.20652884342099},{"$f":"BS137+BS130+BS123+BS116+BS109+BS102+BS95","v":0},{"$f":"SQRT((BT137^2)+(BT130^2)+(BT123^2)+(BT116^2)+(BT109^2)+(BT102^2)+(BT95^2))","v":58.20652884342099},{"$f":"BU137+BU130+BU123+BU116+BU109+BU102+BU95","v":14},{"$f":"SQRT((BV137^2)+(BV130^2)+(BV123^2)+(BV116^2)+(BV109^2)+(BV102^2)+(BV95^2))","v":55.009090157900268},{"$f":"BW137+BW130+BW123+BW116+BW109+BW102+BW95","v":4},{"$f":"SQRT((BX137^2)+(BX130^2)+(BX123^2)+(BX116^2)+(BX109^2)+(BX102^2)+(BX95^2))","v":57.375953151124207},{"$f":"BY137+BY130+BY123+BY116+BY109+BY102+BY95","v":14},{"$f":"SQRT((BZ137^2)+(BZ130^2)+(BZ123^2)+(BZ116^2)+(BZ109^2)+(BZ102^2)+(BZ95^2))","v":58.821764679410968},{"$f":"CA137+CA130+CA123+CA116+CA109+CA102+CA95","v":16},{"$f":"SQRT((CB137^2)+(CB130^2)+(CB123^2)+(CB116^2)+(CB109^2)+(CB102^2)+(CB95^2))","v":55.488737596020329},{"$f":"CC137+CC130+CC123+CC116+CC109+CC102+CC95","v":0},{"$f":"SQRT((CD137^2)+(CD130^2)+(CD123^2)+(CD116^2)+(CD109^2)+(CD102^2)+(CD95^2))","v":58.20652884342099},{"$f":"CE137+CE130+CE123+CE116+CE109+CE102+CE95","v":0},{"$f":"SQRT((CF137^2)+(CF130^2)+(CF123^2)+(CF116^2)+(CF109^2)+(CF102^2)+(CF95^2))","v":58.20652884342099},{"$f":"CG137+CG130+CG123+CG116+CG109+CG102+CG95","v":0},{"$f":"SQRT((CH137^2)+(CH130^2)+(CH123^2)+(CH116^2)+(CH109^2)+(CH102^2)+(CH95^2))","v":58.20652884342099},{"$f":"CI137+CI130+CI123+CI116+CI109+CI102+CI95","v":162},89.073003766573407]
[null,"Less Than 35% of HH Income",{"$f":"C138+C131+C124+C117+C110+C103+C96","v":0},{"$f":"SQRT((D138^2)+(D131^2)+(D124^2)+(D117^2)+(D110^2)+(D103^2)+(D96^2))","v":58.20652884342099},{"$f":"E138+E131+E124+E117+E110+E103+E96","v":0},{"$f":"SQRT((F138^2)+(F131^2)+(F124^2)+(F117^2)+(F110^2)+(F103^2)+(F96^2))","v":58.20652884342099},{"$f":"G138+G131+G124+G117+G110+G103+G96","v":0},{"$f":"SQRT((H138^2)+(H131^2)+(H124^2)+(H117^2)+(H110^2)+(H103^2)+(H96^2))","v":58.20652884342099},{"$f":"I138+I131+I124+I117+I110+I103+I96","v":968},{"$f":"SQRT((J138^2)+(J131^2)+(J124^2)+(J117^2)+(J110^2)+(J103^2)+(J96^2))","v":216.16197630480713},{"$f":"K138+K131+K124+K117+K110+K103+K96","v":0},{"$f":"SQRT((L138^2)+(L131^2)+(L124^2)+(L117^2)+(L110^2)+(L103^2)+(L96^2))","v":58.20652884342099},{"$f":"M138+M131+M124+M117+M110+M103+M96","v":50},{"$f":"SQRT((N138^2)+(N131^2)+(N124^2)+(N117^2)+(N110^2)+(N103^2)+(N96^2))","v":56.824290580701486},{"$f":"O138+O131+O124+O117+O110+O103+O96","v":0},{"$f":"SQRT((P138^2)+(P131^2)+(P124^2)+(P117^2)+(P110^2)+(P103^2)+(P96^2))","v":58.20652884342099},{"$f":"Q138+Q131+Q124+Q117+Q110+Q103+Q96","v":8},{"$f":"SQRT((R138^2)+(R131^2)+(R124^2)+(R117^2)+(R110^2)+(R103^2)+(R96^2))","v":55.371472799628513},{"$f":"S138+S131+S124+S117+S110+S103+S96","v":135},{"$f":"SQRT((T138^2)+(T131^2)+(T124^2)+(T117^2)+(T110^2)+(T103^2)+(T96^2))","v":65.620118866091673},{"$f":"U138+U131+U124+U117+U110+U103+U96","v":19},{"$f":"SQRT((V138^2)+(V131^2)+(V124^2)+(V117^2)+(V110^2)+(V103^2)+(V96^2))","v":52.725705305856273},{"$f":"W138+W131+W124+W117+W110+W103+W96","v":0},{"$f":"SQRT((X138^2)+(X131^2)+(X124^2)+(X117^2)+(X110^2)+(X103^2)+(X96^2))","v":58.20652884342099},{"$f":"Y138+Y131+Y124+Y117+Y110+Y103+Y96","v":0},{"$f":"SQRT((Z138^2)+(Z131^2)+(Z124^2)+(Z117^2)+(Z110^2)+(Z103^2)+(Z96^2))","v":58.20652884342099},{"$f":"AA138+AA131+AA124+AA117+AA110+AA103+AA96","v":47},{"$f":"SQRT((AB138^2)+(AB131^2)+(AB124^2)+(AB117^2)+(AB110^2)+(AB103^2)+(AB96^2))","v":57.549978279752636},{"$f":"AC138+AC131+AC124+AC117+AC110+AC103+AC96","v":0},{"$f":"SQRT((AD138^2)+(AD131^2)+(AD124^2)+(AD117^2)+(AD110^2)+(AD103^2)+(AD96^2))","v":58.20652884342099},{"$f":"AE138+AE131+AE124+AE117+AE110+AE103+AE96","v":0},{"$f":"SQRT((AF138^2)+(AF131^2)+(AF124^2)+(AF117^2)+(AF110^2)+(AF103^2)+(AF96^2))","v":58.20652884342099},{"$f":"AG138+AG131+AG124+AG117+AG110+AG103+AG96","v":4},{"$f":"SQRT((AH138^2)+(AH131^2)+(AH124^2)+(AH117^2)+(AH110^2)+(AH103^2)+(AH96^2))","v":56.24944444170093},{"$f":"AI138+AI131+AI124+AI117+AI110+AI103+AI96","v":8},{"$f":"SQRT((AJ138^2)+(AJ131^2)+(AJ124^2)+(AJ117^2)+(AJ110^2)+(AJ103^2)+(AJ96^2))","v":55.803225713214822},{"$f":"AK138+AK131+AK124+AK117+AK110+AK103+AK96","v":0},{"$f":"SQRT((AL138^2)+(AL131^2)+(AL124^2)+(AL117^2)+(AL110^2)+(AL103^2)+(AL96^2))","v":58.20652884342099},{"$f":"AM138+AM131+AM124+AM117+AM110+AM103+AM96","v":218},{"$f":"SQRT((AN138^2)+(AN131^2)+(AN124^2)+(AN117^2)+(AN110^2)+(AN103^2)+(AN96^2))","v":100.5186549850325},{"$f":"AO138+AO131+AO124+AO117+AO110+AO103+AO96","v":0},{"$f":"SQRT((AP138^2)+(AP131^2)+(AP124^2)+(AP117^2)+(AP110^2)+(AP103^2)+(AP96^2))","v":58.20652884342099},{"$f":"AQ138+AQ131+AQ124+AQ117+AQ110+AQ103+AQ96","v":0},{"$f":"SQRT((AR138^2)+(AR131^2)+(AR124^2)+(AR117^2)+(AR110^2)+(AR103^2)+(AR96^2))","v":58.20652884342099},{"$f":"AS138+AS131+AS124+AS117+AS110+AS103+AS96","v":34},{"$f":"SQRT((AT138^2)+(AT131^2)+(AT124^2)+(AT117^2)+(AT110^2)+(AT103^2)+(AT96^2))","v":61.749493925051723},{"$f":"AU138+AU131+AU124+AU117+AU110+AU103+AU96","v":0},{"$f":"SQRT((AV138^2)+(AV131^2)+(AV124^2)+(AV117^2)+(AV110^2)+(AV103^2)+(AV96^2))","v":58.20652884342099},{"$f":"AW138+AW131+AW124+AW117+AW110+AW103+AW96","v":250},{"$f":"SQRT((AX138^2)+(AX131^2)+(AX124^2)+(AX117^2)+(AX110^2)+(AX103^2)+(AX96^2))","v":109.86810274142354},{"$f":"AY138+AY131+AY124+AY117+AY110+AY103+AY96","v":0},{"$f":"SQRT((AZ138^2)+(AZ131^2)+(AZ124^2)+(AZ117^2)+(AZ110^2)+(AZ103^2)+(AZ96^2))","v":58.20652884342099},{"$f":"BA138+BA131+BA124+BA117+BA110+BA103+BA96","v":0},{"$f":"SQRT((BB138^2)+(BB131^2)+(BB124^2)+(BB117^2)+(BB110^2)+(BB103^2)+(BB96^2))","v":58.20652884342099},{"$f":"BC138+BC131+BC124+BC117+BC110+BC103+BC96","v":57},{"$f":"SQRT((BD138^2)+(BD131^2)+(BD124^2)+(BD117^2)+(BD110^2)+(BD103^2)+(BD96^2))","v":60.489668539346454},{"$f":"BE138+BE131+BE124+BE117+BE110+BE103+BE96","v":0},{"$f":"SQRT((BF138^2)+(BF131^2)+(BF124^2)+(BF117^2)+(BF110^2)+(BF103^2)+(BF96^2))","v":58.20652884342099},{"$f":"BG138+BG131+BG124+BG117+BG110+BG103+BG96","v":245},{"$f":"SQRT((BH138^2)+(BH131^2)+(BH124^2)+(BH117^2)+(BH110^2)+(BH103^2)+(BH96^2))","v":82.813042451053562},{"$f":"BI138+BI131+BI124+BI117+BI110+BI103+BI96","v":0},{"$f":"SQRT((BJ138^2)+(BJ131^2)+(BJ124^2)+(BJ117^2)+(BJ110^2)+(BJ103^2)+(BJ96^2))","v":58.20652884342099},{"$f":"BK138+BK131+BK124+BK117+BK110+BK103+BK96","v":0},{"$f":"SQRT((BL138^2)+(BL131^2)+(BL124^2)+(BL117^2)+(BL110^2)+(BL103^2)+(BL96^2))","v":58.20652884342099},{"$f":"BM138+BM131+BM124+BM117+BM110+BM103+BM96","v":50},{"$f":"SQRT((BN138^2)+(BN131^2)+(BN124^2)+(BN117^2)+(BN110^2)+(BN103^2)+(BN96^2))","v":58.378078077305695},{"$f":"BO138+BO131+BO124+BO117+BO110+BO103+BO96","v":19},{"$f":"SQRT((BP138^2)+(BP131^2)+(BP124^2)+(BP117^2)+(BP110^2)+(BP103^2)+(BP96^2))","v":55.090834083357279},{"$f":"BQ138+BQ131+BQ124+BQ117+BQ110+BQ103+BQ96","v":0},{"$f":"SQRT((BR138^2)+(BR131^2)+(BR124^2)+(BR117^2)+(BR110^2)+(BR103^2)+(BR96^2))","v":58.20652884342099},{"$f":"BS138+BS131+BS124+BS117+BS110+BS103+BS96","v":0},{"$f":"SQRT((BT138^2)+(BT131^2)+(BT124^2)+(BT117^2)+(BT110^2)+(BT103^2)+(BT96^2))","v":58.20652884342099},{"$f":"BU138+BU131+BU124+BU117+BU110+BU103+BU96","v":18},{"$f":"SQRT((BV138^2)+(BV131^2)+(BV124^2)+(BV117^2)+(BV110^2)+(BV103^2)+(BV96^2))","v":52.952809179494906},{"$f":"BW138+BW131+BW124+BW117+BW110+BW103+BW96","v":20},{"$f":"SQRT((BX138^2)+(BX131^2)+(BX124^2)+(BX117^2)+(BX110^2)+(BX103^2)+(BX96^2))","v":56.062465161639118},{"$f":"BY138+BY131+BY124+BY117+BY110+BY103+BY96","v":32},{"$f":"SQRT((BZ138^2)+(BZ131^2)+(BZ124^2)+(BZ117^2)+(BZ110^2)+(BZ103^2)+(BZ96^2))","v":62.377880695002773},{"$f":"CA138+CA131+CA124+CA117+CA110+CA103+CA96","v":51},{"$f":"SQRT((CB138^2)+(CB131^2)+(CB124^2)+(CB117^2)+(CB110^2)+(CB103^2)+(CB96^2))","v":54.616847217685496},{"$f":"CC138+CC131+CC124+CC117+CC110+CC103+CC96","v":0},{"$f":"SQRT((CD138^2)+(CD131^2)+(CD124^2)+(CD117^2)+(CD110^2)+(CD103^2)+(CD96^2))","v":58.20652884342099},{"$f":"CE138+CE131+CE124+CE117+CE110+CE103+CE96","v":0},{"$f":"SQRT((CF138^2)+(CF131^2)+(CF124^2)+(CF117^2)+(CF110^2)+(CF103^2)+(CF96^2))","v":58.20652884342099},{"$f":"CG138+CG131+CG124+CG117+CG110+CG103+CG96","v":0},{"$f":"SQRT((CH138^2)+(CH131^2)+(CH124^2)+(CH117^2)+(CH110^2)+(CH103^2)+(CH96^2))","v":58.20652884342099},{"$f":"CI138+CI131+CI124+CI117+CI110+CI103+CI96","v":220},90.266272771174059]
[null,"35.0 percent or more",{"$f":"C139+C132+C125+C118+C111+C104+C97","v":0},{"$f":"SQRT((D139^2)+(D132^2)+(D125^2)+(D118^2)+(D111^2)+(D104^2)+(D97^2))","v":50.408332644514239},{"$f":"E139+E132+E125+E118+E111+E104+E97","v":0},{"$f":"SQRT((F139^2)+(F132^2)+(F125^2)+(F118^2)+(F111^2)+(F104^2)+(F97^2))","v":50.408332644514239},{"$f":"G139+G132+G125+G118+G111+G104+G97","v":0},{"$f":"SQRT((H139^2)+(H132^2)+(H125^2)+(H118^2)+(H111^2)+(H104^2)+(H97^2))","v":50.408332644514239},{"$f":"I139+I132+I125+I118+I111+I104+I97","v":735},{"$f":"SQRT((J139^2)+(J132^2)+(J125^2)+(J118^2)+(J111^2)+(J104^2)+(J97^2))","v":201.49689823915404},{"$f":"K139+K132+K125+K118+K111+K104+K97","v":0},{"$f":"SQRT((L139^2)+(L132^2)+(L125^2)+(L118^2)+(L111^2)+(L104^2)+(L97^2))","v":50.408332644514239},{"$f":"M139+M132+M125+M118+M111+M104+M97","v":12},{"$f":"SQRT((N139^2)+(N132^2)+(N125^2)+(N118^2)+(N111^2)+(N104^2)+(N97^2))","v":47.916594202843754},{"$f":"O139+O132+O125+O118+O111+O104+O97","v":0},{"$f":"SQRT((P139^2)+(P132^2)+(P125^2)+(P118^2)+(P111^2)+(P104^2)+(P97^2))","v":50.408332644514239},{"$f":"Q139+Q132+Q125+Q118+Q111+Q104+Q97","v":1},{"$f":"SQRT((R139^2)+(R132^2)+(R125^2)+(R118^2)+(R111^2)+(R104^2)+(R97^2))","v":49.234134500364682},{"$f":"S139+S132+S125+S118+S111+S104+S97","v":91},{"$f":"SQRT((T139^2)+(T132^2)+(T125^2)+(T118^2)+(T111^2)+(T104^2)+(T97^2))","v":66.813172353960269},{"$f":"U139+U132+U125+U118+U111+U104+U97","v":8},{"$f":"SQRT((V139^2)+(V132^2)+(V125^2)+(V118^2)+(V111^2)+(V104^2)+(V97^2))","v":48.620983124572874},{"$f":"W139+W132+W125+W118+W111+W104+W97","v":0},{"$f":"SQRT((X139^2)+(X132^2)+(X125^2)+(X118^2)+(X111^2)+(X104^2)+(X97^2))","v":50.408332644514239},{"$f":"Y139+Y132+Y125+Y118+Y111+Y104+Y97","v":0},{"$f":"SQRT((Z139^2)+(Z132^2)+(Z125^2)+(Z118^2)+(Z111^2)+(Z104^2)+(Z97^2))","v":50.408332644514239},{"$f":"AA139+AA132+AA125+AA118+AA111+AA104+AA97","v":9},{"$f":"SQRT((AB139^2)+(AB132^2)+(AB125^2)+(AB118^2)+(AB111^2)+(AB104^2)+(AB97^2))","v":47.275786614291256},{"$f":"AC139+AC132+AC125+AC118+AC111+AC104+AC97","v":0},{"$f":"SQRT((AD139^2)+(AD132^2)+(AD125^2)+(AD118^2)+(AD111^2)+(AD104^2)+(AD97^2))","v":50.408332644514239},{"$f":"AE139+AE132+AE125+AE118+AE111+AE104+AE97","v":0},{"$f":"SQRT((AF139^2)+(AF132^2)+(AF125^2)+(AF118^2)+(AF111^2)+(AF104^2)+(AF97^2))","v":50.408332644514239},{"$f":"AG139+AG132+AG125+AG118+AG111+AG104+AG97","v":3},{"$f":"SQRT((AH139^2)+(AH132^2)+(AH125^2)+(AH118^2)+(AH111^2)+(AH104^2)+(AH97^2))","v":48.135226186234959},{"$f":"AI139+AI132+AI125+AI118+AI111+AI104+AI97","v":3},{"$f":"SQRT((AJ139^2)+(AJ132^2)+(AJ125^2)+(AJ118^2)+(AJ111^2)+(AJ104^2)+(AJ97^2))","v":48.083261120685229},{"$f":"AK139+AK132+AK125+AK118+AK111+AK104+AK97","v":0},{"$f":"SQRT((AL139^2)+(AL132^2)+(AL125^2)+(AL118^2)+(AL111^2)+(AL104^2)+(AL97^2))","v":50.408332644514239},{"$f":"AM139+AM132+AM125+AM118+AM111+AM104+AM97","v":46},{"$f":"SQRT((AN139^2)+(AN132^2)+(AN125^2)+(AN118^2)+(AN111^2)+(AN104^2)+(AN97^2))","v":55.524769247606962},{"$f":"AO139+AO132+AO125+AO118+AO111+AO104+AO97","v":0},{"$f":"SQRT((AP139^2)+(AP132^2)+(AP125^2)+(AP118^2)+(AP111^2)+(AP104^2)+(AP97^2))","v":50.408332644514239},{"$f":"AQ139+AQ132+AQ125+AQ118+AQ111+AQ104+AQ97","v":0},{"$f":"SQRT((AR139^2)+(AR132^2)+(AR125^2)+(AR118^2)+(AR111^2)+(AR104^2)+(AR97^2))","v":50.408332644514239},{"$f":"AS139+AS132+AS125+AS118+AS111+AS104+AS97","v":13},{"$f":"SQRT((AT139^2)+(AT132^2)+(AT125^2)+(AT118^2)+(AT111^2)+(AT104^2)+(AT97^2))","v":47.602520941647619},{"$f":"AU139+AU132+AU125+AU118+AU111+AU104+AU97","v":0},{"$f":"SQRT((AV139^2)+(AV132^2)+(AV125^2)+(AV118^2)+(AV111^2)+(AV104^2)+(AV97^2))","v":50.408332644514239},{"$f":"AW139+AW132+AW125+AW118+AW111+AW104+AW97","v":90},{"$f":"SQRT((AX139^2)+(AX132^2)+(AX125^2)+(AX118^2)+(AX111^2)+(AX104^2)+(AX97^2))","v":78.78451624526231},{"$f":"AY139+AY132+AY125+AY118+AY111+AY104+AY97","v":0},{"$f":"SQRT((AZ139^2)+(AZ132^2)+(AZ125^2)+(AZ118^2)+(AZ111^2)+(AZ104^2)+(AZ97^2))","v":50.408332644514239},{"$f":"BA139+BA132+BA125+BA118+BA111+BA104+BA97","v":0},{"$f":"SQRT((BB139^2)+(BB132^2)+(BB125^2)+(BB118^2)+(BB111^2)+(BB104^2)+(BB97^2))","v":50.408332644514239},{"$f":"BC139+BC132+BC125+BC118+BC111+BC104+BC97","v":18},{"$f":"SQRT((BD139^2)+(BD132^2)+(BD125^2)+(BD118^2)+(BD111^2)+(BD104^2)+(BD97^2))","v":51.81698563212646},{"$f":"BE139+BE132+BE125+BE118+BE111+BE104+BE97","v":0},{"$f":"SQRT((BF139^2)+(BF132^2)+(BF125^2)+(BF118^2)+(BF111^2)+(BF104^2)+(BF97^2))","v":50.408332644514239},{"$f":"BG139+BG132+BG125+BG118+BG111+BG104+BG97","v":52},{"$f":"SQRT((BH139^2)+(BH132^2)+(BH125^2)+(BH118^2)+(BH111^2)+(BH104^2)+(BH97^2))","v":54.405882034941776},{"$f":"BI139+BI132+BI125+BI118+BI111+BI104+BI97","v":0},{"$f":"SQRT((BJ139^2)+(BJ132^2)+(BJ125^2)+(BJ118^2)+(BJ111^2)+(BJ104^2)+(BJ97^2))","v":50.408332644514239},{"$f":"BK139+BK132+BK125+BK118+BK111+BK104+BK97","v":0},{"$f":"SQRT((BL139^2)+(BL132^2)+(BL125^2)+(BL118^2)+(BL111^2)+(BL104^2)+(BL97^2))","v":50.408332644514239},{"$f":"BM139+BM132+BM125+BM118+BM111+BM104+BM97","v":33},{"$f":"SQRT((BN139^2)+(BN132^2)+(BN125^2)+(BN118^2)+(BN111^2)+(BN104^2)+(BN97^2))","v":51.088159097779204},{"$f":"BO139+BO132+BO125+BO118+BO111+BO104+BO97","v":14},{"$f":"SQRT((BP139^2)+(BP132^2)+(BP125^2)+(BP118^2)+(BP111^2)+(BP104^2)+(BP97^2))","v":50.882216932834204},{"$f":"BQ139+BQ132+BQ125+BQ118+BQ111+BQ104+BQ97","v":0},{"$f":"SQRT((BR139^2)+(BR132^2)+(BR125^2)+(BR118^2)+(BR111^2)+(BR104^2)+(BR97^2))","v":50.408332644514239},{"$f":"BS139+BS132+BS125+BS118+BS111+BS104+BS97","v":0},{"$f":"SQRT((BT139^2)+(BT132^2)+(BT125^2)+(BT118^2)+(BT111^2)+(BT104^2)+(BT97^2))","v":50.408332644514239},{"$f":"BU139+BU132+BU125+BU118+BU111+BU104+BU97","v":14},{"$f":"SQRT((BV139^2)+(BV132^2)+(BV125^2)+(BV118^2)+(BV111^2)+(BV104^2)+(BV97^2))","v":46.679760067935227},{"$f":"BW139+BW132+BW125+BW118+BW111+BW104+BW97","v":4},{"$f":"SQRT((BX139^2)+(BX132^2)+(BX125^2)+(BX118^2)+(BX111^2)+(BX104^2)+(BX97^2))","v":49.446941260304463},{"$f":"BY139+BY132+BY125+BY118+BY111+BY104+BY97","v":14},{"$f":"SQRT((BZ139^2)+(BZ132^2)+(BZ125^2)+(BZ118^2)+(BZ111^2)+(BZ104^2)+(BZ97^2))","v":51.117511676528231},{"$f":"CA139+CA132+CA125+CA118+CA111+CA104+CA97","v":11},{"$f":"SQRT((CB139^2)+(CB132^2)+(CB125^2)+(CB118^2)+(CB111^2)+(CB104^2)+(CB97^2))","v":48.135226186234959},{"$f":"CC139+CC132+CC125+CC118+CC111+CC104+CC97","v":0},{"$f":"SQRT((CD139^2)+(CD132^2)+(CD125^2)+(CD118^2)+(CD111^2)+(CD104^2)+(CD97^2))","v":50.408332644514239},{"$f":"CE139+CE132+CE125+CE118+CE111+CE104+CE97","v":0},{"$f":"SQRT((CF139^2)+(CF132^2)+(CF125^2)+(CF118^2)+(CF111^2)+(CF104^2)+(CF97^2))","v":50.408332644514239},{"$f":"CG139+CG132+CG125+CG118+CG111+CG104+CG97","v":0},{"$f":"SQRT((CH139^2)+(CH132^2)+(CH125^2)+(CH118^2)+(CH111^2)+(CH104^2)+(CH97^2))","v":50.408332644514239},{"$f":"CI139+CI132+CI125+CI118+CI111+CI104+CI97","v":162},84.1843215806839]
[null,"50.0 percent or more",{"$f":"C140+C133+C126+C119+C112+C105+C98","v":0},{"$f":"SQRT((D140^2)+(D133^2)+(D126^2)+(D119^2)+(D112^2)+(D105^2)+(D98^2))","v":29.103264421710495},{"$f":"E140+E133+E126+E119+E112+E105+E98","v":0},{"$f":"SQRT((F140^2)+(F133^2)+(F126^2)+(F119^2)+(F112^2)+(F105^2)+(F98^2))","v":29.103264421710495},{"$f":"G140+G133+G126+G119+G112+G105+G98","v":0},{"$f":"SQRT((H140^2)+(H133^2)+(H126^2)+(H119^2)+(H112^2)+(H105^2)+(H98^2))","v":29.103264421710495},{"$f":"I140+I133+I126+I119+I112+I105+I98","v":370},{"$f":"SQRT((J140^2)+(J133^2)+(J126^2)+(J119^2)+(J112^2)+(J105^2)+(J98^2))","v":120.68968472906042},{"$f":"K140+K133+K126+K119+K112+K105+K98","v":0},{"$f":"SQRT((L140^2)+(L133^2)+(L126^2)+(L119^2)+(L112^2)+(L105^2)+(L98^2))","v":29.103264421710495},{"$f":"M140+M133+M126+M119+M112+M105+M98","v":4},{"$f":"SQRT((N140^2)+(N133^2)+(N126^2)+(N119^2)+(N112^2)+(N105^2)+(N98^2))","v":24.959967948697368},{"$f":"O140+O133+O126+O119+O112+O105+O98","v":0},{"$f":"SQRT((P140^2)+(P133^2)+(P126^2)+(P119^2)+(P112^2)+(P105^2)+(P98^2))","v":29.103264421710495},{"$f":"Q140+Q133+Q126+Q119+Q112+Q105+Q98","v":1},{"$f":"SQRT((R140^2)+(R133^2)+(R126^2)+(R119^2)+(R112^2)+(R105^2)+(R98^2))","v":27.018512172212592},{"$f":"S140+S133+S126+S119+S112+S105+S98","v":40},{"$f":"SQRT((T140^2)+(T133^2)+(T126^2)+(T119^2)+(T112^2)+(T105^2)+(T98^2))","v":36.138621999185304},{"$f":"U140+U133+U126+U119+U112+U105+U98","v":5},{"$f":"SQRT((V140^2)+(V133^2)+(V126^2)+(V119^2)+(V112^2)+(V105^2)+(V98^2))","v":27.838821814150108},{"$f":"W140+W133+W126+W119+W112+W105+W98","v":0},{"$f":"SQRT((X140^2)+(X133^2)+(X126^2)+(X119^2)+(X112^2)+(X105^2)+(X98^2))","v":29.103264421710495},{"$f":"Y140+Y133+Y126+Y119+Y112+Y105+Y98","v":0},{"$f":"SQRT((Z140^2)+(Z133^2)+(Z126^2)+(Z119^2)+(Z112^2)+(Z105^2)+(Z98^2))","v":29.103264421710495},{"$f":"AA140+AA133+AA126+AA119+AA112+AA105+AA98","v":3},{"$f":"SQRT((AB140^2)+(AB133^2)+(AB126^2)+(AB119^2)+(AB112^2)+(AB105^2)+(AB98^2))","v":27.404379212089442},{"$f":"AC140+AC133+AC126+AC119+AC112+AC105+AC98","v":0},{"$f":"SQRT((AD140^2)+(AD133^2)+(AD126^2)+(AD119^2)+(AD112^2)+(AD105^2)+(AD98^2))","v":29.103264421710495},{"$f":"AE140+AE133+AE126+AE119+AE112+AE105+AE98","v":0},{"$f":"SQRT((AF140^2)+(AF133^2)+(AF126^2)+(AF119^2)+(AF112^2)+(AF105^2)+(AF98^2))","v":29.103264421710495},{"$f":"AG140+AG133+AG126+AG119+AG112+AG105+AG98","v":0},{"$f":"SQRT((AH140^2)+(AH133^2)+(AH126^2)+(AH119^2)+(AH112^2)+(AH105^2)+(AH98^2))","v":29.103264421710495},{"$f":"AI140+AI133+AI126+AI119+AI112+AI105+AI98","v":2},{"$f":"SQRT((AJ140^2)+(AJ133^2)+(AJ126^2)+(AJ119^2)+(AJ112^2)+(AJ105^2)+(AJ98^2))","v":27.110883423451916},{"$f":"AK140+AK133+AK126+AK119+AK112+AK105+AK98","v":0},{"$f":"SQRT((AL140^2)+(AL133^2)+(AL126^2)+(AL119^2)+(AL112^2)+(AL105^2)+(AL98^2))","v":29.103264421710495},{"$f":"AM140+AM133+AM126+AM119+AM112+AM105+AM98","v":46},{"$f":"SQRT((AN140^2)+(AN133^2)+(AN126^2)+(AN119^2)+(AN112^2)+(AN105^2)+(AN98^2))","v":37.269290307168447},{"$f":"AO140+AO133+AO126+AO119+AO112+AO105+AO98","v":0},{"$f":"SQRT((AP140^2)+(AP133^2)+(AP126^2)+(AP119^2)+(AP112^2)+(AP105^2)+(AP98^2))","v":29.103264421710495},{"$f":"AQ140+AQ133+AQ126+AQ119+AQ112+AQ105+AQ98","v":0},{"$f":"SQRT((AR140^2)+(AR133^2)+(AR126^2)+(AR119^2)+(AR112^2)+(AR105^2)+(AR98^2))","v":29.103264421710495},{"$f":"AS140+AS133+AS126+AS119+AS112+AS105+AS98","v":3},{"$f":"SQRT((AT140^2)+(AT133^2)+(AT126^2)+(AT119^2)+(AT112^2)+(AT105^2)+(AT98^2))","v":27.239676943752471},{"$f":"AU140+AU133+AU126+AU119+AU112+AU105+AU98","v":0},{"$f":"SQRT((AV140^2)+(AV133^2)+(AV126^2)+(AV119^2)+(AV112^2)+(AV105^2)+(AV98^2))","v":29.103264421710495},{"$f":"AW140+AW133+AW126+AW119+AW112+AW105+AW98","v":81},{"$f":"SQRT((AX140^2)+(AX133^2)+(AX126^2)+(AX119^2)+(AX112^2)+(AX105^2)+(AX98^2))","v":66.618315799785876},{"$f":"AY140+AY133+AY126+AY119+AY112+AY105+AY98","v":0},{"$f":"SQRT((AZ140^2)+(AZ133^2)+(AZ126^2)+(AZ119^2)+(AZ112^2)+(AZ105^2)+(AZ98^2))","v":29.103264421710495},{"$f":"BA140+BA133+BA126+BA119+BA112+BA105+BA98","v":0},{"$f":"SQRT((BB140^2)+(BB133^2)+(BB126^2)+(BB119^2)+(BB112^2)+(BB105^2)+(BB98^2))","v":29.103264421710495},{"$f":"BC140+BC133+BC126+BC119+BC112+BC105+BC98","v":0},{"$f":"SQRT((BD140^2)+(BD133^2)+(BD126^2)+(BD119^2)+(BD112^2)+(BD105^2)+(BD98^2))","v":29.103264421710495},{"$f":"BE140+BE133+BE126+BE119+BE112+BE105+BE98","v":0},{"$f":"SQRT((BF140^2)+(BF133^2)+(BF126^2)+(BF119^2)+(BF112^2)+(BF105^2)+(BF98^2))","v":29.103264421710495},{"$f":"BG140+BG133+BG126+BG119+BG112+BG105+BG98","v":33},{"$f":"SQRT((BH140^2)+(BH133^2)+(BH126^2)+(BH119^2)+(BH112^2)+(BH105^2)+(BH98^2))","v":33.136083051561783},{"$f":"BI140+BI133+BI126+BI119+BI112+BI105+BI98","v":0},{"$f":"SQRT((BJ140^2)+(BJ133^2)+(BJ126^2)+(BJ119^2)+(BJ112^2)+(BJ105^2)+(BJ98^2))","v":29.103264421710495},{"$f":"BK140+BK133+BK126+BK119+BK112+BK105+BK98","v":0},{"$f":"SQRT((BL140^2)+(BL133^2)+(BL126^2)+(BL119^2)+(BL112^2)+(BL105^2)+(BL98^2))","v":29.103264421710495},{"$f":"BM140+BM133+BM126+BM119+BM112+BM105+BM98","v":16},{"$f":"SQRT((BN140^2)+(BN133^2)+(BN126^2)+(BN119^2)+(BN112^2)+(BN105^2)+(BN98^2))","v":31.480152477394387},{"$f":"BO140+BO133+BO126+BO119+BO112+BO105+BO98","v":0},{"$f":"SQRT((BP140^2)+(BP133^2)+(BP126^2)+(BP119^2)+(BP112^2)+(BP105^2)+(BP98^2))","v":29.103264421710495},{"$f":"BQ140+BQ133+BQ126+BQ119+BQ112+BQ105+BQ98","v":0},{"$f":"SQRT((BR140^2)+(BR133^2)+(BR126^2)+(BR119^2)+(BR112^2)+(BR105^2)+(BR98^2))","v":29.103264421710495},{"$f":"BS140+BS133+BS126+BS119+BS112+BS105+BS98","v":0},{"$f":"SQRT((BT140^2)+(BT133^2)+(BT126^2)+(BT119^2)+(BT112^2)+(BT105^2)+(BT98^2))","v":29.103264421710495},{"$f":"BU140+BU133+BU126+BU119+BU112+BU105+BU98","v":12},{"$f":"SQRT((BV140^2)+(BV133^2)+(BV126^2)+(BV119^2)+(BV112^2)+(BV105^2)+(BV98^2))","v":24.289915602982237},{"$f":"BW140+BW133+BW126+BW119+BW112+BW105+BW98","v":4},{"$f":"SQRT((BX140^2)+(BX133^2)+(BX126^2)+(BX119^2)+(BX112^2)+(BX105^2)+(BX98^2))","v":27.404379212089442},{"$f":"BY140+BY133+BY126+BY119+BY112+BY105+BY98","v":11},{"$f":"SQRT((BZ140^2)+(BZ133^2)+(BZ126^2)+(BZ119^2)+(BZ112^2)+(BZ105^2)+(BZ98^2))","v":31.859064644147981},{"$f":"CA140+CA133+CA126+CA119+CA112+CA105+CA98","v":2},{"$f":"SQRT((CB140^2)+(CB133^2)+(CB126^2)+(CB119^2)+(CB112^2)+(CB105^2)+(CB98^2))","v":27.110883423451916},{"$f":"CC140+CC133+CC126+CC119+CC112+CC105+CC98","v":0},{"$f":"SQRT((CD140^2)+(CD133^2)+(CD126^2)+(CD119^2)+(CD112^2)+(CD105^2)+(CD98^2))","v":29.103264421710495},{"$f":"CE140+CE133+CE126+CE119+CE112+CE105+CE98","v":0},{"$f":"SQRT((CF140^2)+(CF133^2)+(CF126^2)+(CF119^2)+(CF112^2)+(CF105^2)+(CF98^2))","v":29.103264421710495},{"$f":"CG140+CG133+CG126+CG119+CG112+CG105+CG98","v":0},{"$f":"SQRT((CH140^2)+(CH133^2)+(CH126^2)+(CH119^2)+(CH112^2)+(CH105^2)+(CH98^2))","v":29.103264421710495},{"$f":"CI140+CI133+CI126+CI119+CI112+CI105+CI98","v":117},69.325320049748058]
[null,"Not Computed",{"$f":"C140+C134+C127+C120+C113+C106+C99","v":0},{"$f":"SQRT((D140^2)+(D134^2)+(D127^2)+(D120^2)+(D113^2)+(D106^2)+(D99^2))","v":29.103264421710495},{"$f":"E140+E134+E127+E120+E113+E106+E99","v":0},{"$f":"SQRT((F140^2)+(F134^2)+(F127^2)+(F120^2)+(F113^2)+(F106^2)+(F99^2))","v":29.103264421710495},{"$f":"G140+G134+G127+G120+G113+G106+G99","v":0},{"$f":"SQRT((H140^2)+(H134^2)+(H127^2)+(H120^2)+(H113^2)+(H106^2)+(H99^2))","v":29.103264421710495},{"$f":"I140+I134+I127+I120+I113+I106+I99","v":46},{"$f":"SQRT((J140^2)+(J134^2)+(J127^2)+(J120^2)+(J113^2)+(J106^2)+(J99^2))","v":50.950956811427986},{"$f":"K140+K134+K127+K120+K113+K106+K99","v":0},{"$f":"SQRT((L140^2)+(L134^2)+(L127^2)+(L120^2)+(L113^2)+(L106^2)+(L99^2))","v":29.103264421710495},{"$f":"M140+M134+M127+M120+M113+M106+M99","v":10},{"$f":"SQRT((N140^2)+(N134^2)+(N127^2)+(N120^2)+(N113^2)+(N106^2)+(N99^2))","v":26.851443164195103},{"$f":"O140+O134+O127+O120+O113+O106+O99","v":0},{"$f":"SQRT((P140^2)+(P134^2)+(P127^2)+(P120^2)+(P113^2)+(P106^2)+(P99^2))","v":29.103264421710495},{"$f":"Q140+Q134+Q127+Q120+Q113+Q106+Q99","v":2},{"$f":"SQRT((R140^2)+(R134^2)+(R127^2)+(R120^2)+(R113^2)+(R106^2)+(R99^2))","v":24.959967948697368},{"$f":"S140+S134+S127+S120+S113+S106+S99","v":30},{"$f":"SQRT((T140^2)+(T134^2)+(T127^2)+(T120^2)+(T113^2)+(T106^2)+(T99^2))","v":36.469165057620941},{"$f":"U140+U134+U127+U120+U113+U106+U99","v":22},{"$f":"SQRT((V140^2)+(V134^2)+(V127^2)+(V120^2)+(V113^2)+(V106^2)+(V99^2))","v":25.903667693977237},{"$f":"W140+W134+W127+W120+W113+W106+W99","v":0},{"$f":"SQRT((X140^2)+(X134^2)+(X127^2)+(X120^2)+(X113^2)+(X106^2)+(X99^2))","v":29.103264421710495},{"$f":"Y140+Y134+Y127+Y120+Y113+Y106+Y99","v":0},{"$f":"SQRT((Z140^2)+(Z134^2)+(Z127^2)+(Z120^2)+(Z113^2)+(Z106^2)+(Z99^2))","v":29.103264421710495},{"$f":"AA140+AA134+AA127+AA120+AA113+AA106+AA99","v":4},{"$f":"SQRT((AB140^2)+(AB134^2)+(AB127^2)+(AB120^2)+(AB113^2)+(AB106^2)+(AB99^2))","v":27.604347483684521},{"$f":"AC140+AC134+AC127+AC120+AC113+AC106+AC99","v":0},{"$f":"SQRT((AD140^2)+(AD134^2)+(AD127^2)+(AD120^2)+(AD113^2)+(AD106^2)+(AD99^2))","v":29.103264421710495},{"$f":"AE140+AE134+AE127+AE120+AE113+AE106+AE99","v":0},{"$f":"SQRT((AF140^2)+(AF134^2)+(AF127^2)+(AF120^2)+(AF113^2)+(AF106^2)+(AF99^2))","v":29.103264421710495},{"$f":"AG140+AG134+AG127+AG120+AG113+AG106+AG99","v":6},{"$f":"SQRT((AH140^2)+(AH134^2)+(AH127^2)+(AH120^2)+(AH113^2)+(AH106^2)+(AH99^2))","v":22.759613353482084},{"$f":"AI140+AI134+AI127+AI120+AI113+AI106+AI99","v":7},{"$f":"SQRT((AJ140^2)+(AJ134^2)+(AJ127^2)+(AJ120^2)+(AJ113^2)+(AJ106^2)+(AJ99^2))","v":25.748786379167466},{"$f":"AK140+AK134+AK127+AK120+AK113+AK106+AK99","v":0},{"$f":"SQRT((AL140^2)+(AL134^2)+(AL127^2)+(AL120^2)+(AL113^2)+(AL106^2)+(AL99^2))","v":29.103264421710495},{"$f":"AM140+AM134+AM127+AM120+AM113+AM106+AM99","v":11},{"$f":"SQRT((AN140^2)+(AN134^2)+(AN127^2)+(AN120^2)+(AN113^2)+(AN106^2)+(AN99^2))","v":31.859064644147981},{"$f":"AO140+AO134+AO127+AO120+AO113+AO106+AO99","v":0},{"$f":"SQRT((AP140^2)+(AP134^2)+(AP127^2)+(AP120^2)+(AP113^2)+(AP106^2)+(AP99^2))","v":29.103264421710495},{"$f":"AQ140+AQ134+AQ127+AQ120+AQ113+AQ106+AQ99","v":0},{"$f":"SQRT((AR140^2)+(AR134^2)+(AR127^2)+(AR120^2)+(AR113^2)+(AR106^2)+(AR99^2))","v":29.103264421710495},{"$f":"AS140+AS134+AS127+AS120+AS113+AS106+AS99","v":3},{"$f":"SQRT((AT140^2)+(AT134^2)+(AT127^2)+(AT120^2)+(AT113^2)+(AT106^2)+(AT99^2))","v":27.404379212089442},{"$f":"AU140+AU134+AU127+AU120+AU113+AU106+AU99","v":0},{"$f":"SQRT((AV140^2)+(AV134^2)+(AV127^2)+(AV120^2)+(AV113^2)+(AV106^2)+(AV99^2))","v":29.103264421710495},{"$f":"AW140+AW134+AW127+AW120+AW113+AW106+AW99","v":7},{"$f":"SQRT((AX140^2)+(AX134^2)+(AX127^2)+(AX120^2)+(AX113^2)+(AX106^2)+(AX99^2))","v":28.740215726399828},{"$f":"AY140+AY134+AY127+AY120+AY113+AY106+AY99","v":0},{"$f":"SQRT((AZ140^2)+(AZ134^2)+(AZ127^2)+(AZ120^2)+(AZ113^2)+(AZ106^2)+(AZ99^2))","v":29.103264421710495},{"$f":"BA140+BA134+BA127+BA120+BA113+BA106+BA99","v":0},{"$f":"SQRT((BB140^2)+(BB134^2)+(BB127^2)+(BB120^2)+(BB113^2)+(BB106^2)+(BB99^2))","v":29.103264421710495},{"$f":"BC140+BC134+BC127+BC120+BC113+BC106+BC99","v":15},{"$f":"SQRT((BD140^2)+(BD134^2)+(BD127^2)+(BD120^2)+(BD113^2)+(BD106^2)+(BD99^2))","v":24.454038521274967},{"$f":"BE140+BE134+BE127+BE120+BE113+BE106+BE99","v":0},{"$f":"SQRT((BF140^2)+(BF134^2)+(BF127^2)+(BF120^2)+(BF113^2)+(BF106^2)+(BF99^2))","v":29.103264421710495},{"$f":"BG140+BG134+BG127+BG120+BG113+BG106+BG99","v":27},{"$f":"SQRT((BH140^2)+(BH134^2)+(BH127^2)+(BH120^2)+(BH113^2)+(BH106^2)+(BH99^2))","v":28.792360097775937},{"$f":"BI140+BI134+BI127+BI120+BI113+BI106+BI99","v":0},{"$f":"SQRT((BJ140^2)+(BJ134^2)+(BJ127^2)+(BJ120^2)+(BJ113^2)+(BJ106^2)+(BJ99^2))","v":29.103264421710495},{"$f":"BK140+BK134+BK127+BK120+BK113+BK106+BK99","v":0},{"$f":"SQRT((BL140^2)+(BL134^2)+(BL127^2)+(BL120^2)+(BL113^2)+(BL106^2)+(BL99^2))","v":29.103264421710495},{"$f":"BM140+BM134+BM127+BM120+BM113+BM106+BM99","v":4},{"$f":"SQRT((BN140^2)+(BN134^2)+(BN127^2)+(BN120^2)+(BN113^2)+(BN106^2)+(BN99^2))","v":27.404379212089442},{"$f":"BO140+BO134+BO127+BO120+BO113+BO106+BO99","v":2},{"$f":"SQRT((BP140^2)+(BP134^2)+(BP127^2)+(BP120^2)+(BP113^2)+(BP106^2)+(BP99^2))","v":27.110883423451916},{"$f":"BQ140+BQ134+BQ127+BQ120+BQ113+BQ106+BQ99","v":0},{"$f":"SQRT((BR140^2)+(BR134^2)+(BR127^2)+(BR120^2)+(BR113^2)+(BR106^2)+(BR99^2))","v":29.103264421710495},{"$f":"BS140+BS134+BS127+BS120+BS113+BS106+BS99","v":0},{"$f":"SQRT((BT140^2)+(BT134^2)+(BT127^2)+(BT120^2)+(BT113^2)+(BT106^2)+(BT99^2))","v":29.103264421710495},{"$f":"BU140+BU134+BU127+BU120+BU113+BU106+BU99","v":5},{"$f":"SQRT((BV140^2)+(BV134^2)+(BV127^2)+(BV120^2)+(BV113^2)+(BV106^2)+(BV99^2))","v":27.604347483684521},{"$f":"BW140+BW134+BW127+BW120+BW113+BW106+BW99","v":11},{"$f":"SQRT((BX140^2)+(BX134^2)+(BX127^2)+(BX120^2)+(BX113^2)+(BX106^2)+(BX99^2))","v":27.404379212089442},{"$f":"BY140+BY134+BY127+BY120+BY113+BY106+BY99","v":2},{"$f":"SQRT((BZ140^2)+(BZ134^2)+(BZ127^2)+(BZ120^2)+(BZ113^2)+(BZ106^2)+(BZ99^2))","v":27.110883423451916},{"$f":"CA140+CA134+CA127+CA120+CA113+CA106+CA99","v":9},{"$f":"SQRT((CB140^2)+(CB134^2)+(CB127^2)+(CB120^2)+(CB113^2)+(CB106^2)+(CB99^2))","v":27.110883423451916},{"$f":"CC140+CC134+CC127+CC120+CC113+CC106+CC99","v":0},{"$f":"SQRT((CD140^2)+(CD134^2)+(CD127^2)+(CD120^2)+(CD113^2)+(CD106^2)+(CD99^2))","v":29.103264421710495},{"$f":"CE140+CE134+CE127+CE120+CE113+CE106+CE99","v":0},{"$f":"SQRT((CF140^2)+(CF134^2)+(CF127^2)+(CF120^2)+(CF113^2)+(CF106^2)+(CF99^2))","v":29.103264421710495},{"$f":"CG140+CG134+CG127+CG120+CG113+CG106+CG99","v":2},{"$f":"SQRT((CH140^2)+(CH134^2)+(CH127^2)+(CH120^2)+(CH113^2)+(CH106^2)+(CH99^2))","v":27.110883423451916},{"$f":"CI140+CI134+CI127+CI120+CI113+CI106+CI99","v":21},{"$f":"SQRT((CJ140^2)+(CJ134^2)+(CJ127^2)+(CJ120^2)+(CJ113^2)+(CJ106^2)+(CJ99^2))","v":42.602816808281588}]
[]
[]
[]
[]
[]
[]
[]
[]
[]
[]
[]
[null,"B25074. HOUSEHOLD INCOME BY GROSS RENT AS A PERCENTAGE OF HOUSEHOLD INCOME IN THE PAST 12 MONTHS"]
[null,"Universe:  RENTER OCCUPIED HOUSING UNITS"]
[null,"Data Set: 2010-2014 American Community Survey 5-Year Estimates",null,null,null,"Income in 2013 Inflation Adjusted Dollars"]
[]
[null,null,"Atkinson and Gilmanton Grant",null,"Bean's Grant",null,"Bean's Purchase",null,"Berlin",null,"Cambridge",null,"Carroll",null,"Chandler's Purchase",null,"Clarksville",null,"Colebrook",null,"Columbia",null,"Crawford's Purchase",null,"Cutt's Grant",null,"Dalton",null,"Dix's Grant",null,"Dixville",null,"Dummer",null,"Errol",null,"Erving's Location",null,"Gorham",null,"Greens Grant",null,"Hadley's Purchase",null,"Jefferson",null,"Kilkenny",null,"Lancaster",null,"Low and Burbank's Grant",null,"Martin's Location",null,"Milan",null,"Millsfield",null,"Northumberland",null,"Odell",null,"Pinkham's Grant",null,"Pittsburg",null,"Randolph",null,"Sargent's Purchase",null,"Second College Grant",null,"Shelburne",null,"Stark",null,"Stewartstown",null,"Stratford",null,"Success",null,"Thompson and Meserves Purchase",null,"Wentworth's Location",null,"Whitefield"]
[null,null,"Estimate","Margin Of Error","Estimate","Margin Of Error","Estimate","Margin Of Error","Estimate","Margin Of Error","Estimate","Margin Of Error","Estimate","Margin Of Error","Estimate","Margin Of Error","Estimate","Margin Of Error","Estimate","Margin Of Error","Estimate","Margin Of Error","Estimate","Margin Of Error","Estimate","Margin Of Error","Estimate","Margin Of Error","Estimate","Margin Of Error","Estimate","Margin Of Error","Estimate","Margin Of Error","Estimate","Margin Of Error","Estimate","Margin Of Error","Estimate","Margin Of Error","Estimate","Margin Of Error","Estimate","Margin Of Error","Estimate","Margin Of Error","Estimate","Margin Of Error","Estimate","Margin Of Error","Estimate","Margin Of Error","Estimate","Margin Of Error","Estimate","Margin Of Error","Estimate","Margin Of Error","Estimate","Margin Of Error","Estimate","Margin Of Error","Estimate","Margin Of Error","Estimate","Margin Of Error","Estimate","Margin Of Error","Estimate","Margin Of Error","Estimate","Margin Of Error","Estimate","Margin Of Error","Estimate","Margin Of Error","Estimate","Margin Of Error","Estimate","Margin Of Error","Estimate","Margin Of Error","Estimate","Margin Of Error","Estimate","Margin Of Error","Estimate","Margin Of Error"]
[null,"Total:",0,11,0,11,0,11,1651,226,0,11,95,36,0,11,17,11,354,73,61,31,0,11,0,11,79,33,4,6,3,6,13,13,37,19,0,11,363,96,0,11,0,11,0,11,0,11,477,113,0,11,0,11,0,11,0,11,0,11,0,11,0,11,91,34,22,15,5,6,0,11,24,16,36,13,101,39,0,11,0,11,0,11,17,16,380,84]
[null,"Less than $10,000:",0,11,0,11,0,11,302,99,0,11,3,4,0,11,1,3,29,19,25,20,0,11,0,11,14,18,0,11,0,11,0,11,0,11,0,11,58,48,0,11,0,11,0,11,0,11,69,48,0,11,0,11,0,11,0,11,0,11,0,11,0,11,22,18,0,11,0,11,0,11,2,3,7,6,16,16,0,11,0,11,0,11,11,15,34,30]
[null,"Less than 20.0 percent",0,11,0,11,0,11,0,15,0,11,0,11,0,11,0,11,0,11,0,11,0,11,0,11,0,11,0,11,0,11,0,11,0,11,0,11,0,11,0,11,0,11,0,11,0,11,8,14,0,11,0,11,0,11,0,11,0,11,0,11,0,11,0,11,0,11,0,11,0,11,0,11,0,11,11,15,0,11,0,11,0,11,0,11,0,11]
[null,"20.0 to 24.9 percent",0,11,0,11,0,11,0,15,0,11,0,11,0,11,0,11,6,9,9,13,0,11,0,11,0,11,0,11,0,11,0,11,0,11,0,11,0,11,0,11,0,11,0,11,0,11,0,11,0,11,0,11,0,11,0,11,0,11,0,11,0,11,0,11,0,11,0,11,0,11,0,11,0,11,0,11,0,11,0,11,0,11,0,11,17,26]
[null,"25.0 to 29.9 percent",0,11,0,11,0,11,0,15,0,11,0,11,0,11,0,11,0,11,0,11,0,11,0,11,0,11,0,11,0,11,0,11,0,11,0,11,0,11,0,11,0,11,0,11,0,11,0,11,0,11,0,11,0,11,0,11,0,11,0,11,0,11,5,6,0,11,0,11,0,11,0,11,1,4,0,11,0,11,0,11,0,11,0,11,0,11]
[null,"30.0 to 34.9 percent",0,11,0,11,0,11,7,12,0,11,0,11,0,11,0,11,0,11,0,11,0,11,0,11,0,11,0,11,0,11,0,11,0,11,0,11,24,38,0,11,0,11,0,11,0,11,12,20,0,11,0,11,0,11,0,11,0,11,0,11,0,11,0,11,0,11,0,11,0,11,0,11,0,11,0,11,0,11,0,11,0,11,0,11,0,11]
[null,"35.0 to 39.9 percent",0,11,0,11,0,11,7,12,0,11,0,11,0,11,0,11,0,11,0,11,0,11,0,11,0,11,0,11,null,null,0,11,0,11,0,11,0,11,0,11,0,11,0,11,null,null,0,11,0,11,0,11,0,11,null,null,0,11,null,null,0,11,0,11,0,11,0,11,0,11,0,11,3,4,0,11,0,11,null,null,0,11,0,11,0,11]
[null,"40.0 to 49.9 percent",0,11,0,11,0,11,0,15,0,11,0,11,0,11,0,11,0,11,4,6,0,11,0,11,0,11,0,11,null,null,0,11,0,11,0,11,0,11,0,11,0,11,0,11,null,null,0,11,0,11,0,11,0,11,null,null,0,11,null,null,0,11,0,11,0,11,0,11,0,11,0,11,0,11,0,11,0,11,null,null,0,11,0,11,0,11]
[null,"50.0 percent or more",0,11,0,11,0,11,230,80,0,11,0,11,0,11,1,3,23,16,12,15,0,11,0,11,3,4,0,11,0,11,0,11,0,11,0,11,34,28,0,11,0,11,0,11,0,11,49,43,0,11,0,11,0,11,0,11,0,11,0,11,0,11,17,18,0,11,0,11,0,11,0,11,0,11,5,7,0,11,0,11,0,11,1,3,12,14]
[null,"Not computed",0,11,0,11,0,11,58,53,0,11,3,4,0,11,0,11,0,11,0,11,0,11,0,11,11,17,0,11,0,11,0,11,0,11,0,11,0,11,0,11,0,11,0,11,0,11,0,11,0,11,0,11,0,11,0,11,0,11,0,11,0,11,0,11,0,11,0,11,0,11,2,3,3,5,0,11,0,11,0,11,0,11,10,14,5,7]
[null,"$10,000 to $19,999:",0,11,0,11,0,11,514,134,0,11,8,12,0,11,6,5,132,54,6,9,0,11,0,11,6,6,0,11,0,11,2,4,10,10,0,11,70,43,0,11,0,11,0,11,0,11,83,46,0,11,0,11,0,11,0,11,0,11,0,11,0,11,18,14,11,12,0,11,0,11,6,6,4,4,17,18,0,11,0,11,0,11,0,11,190,64]
[null,"Less than 20.0 percent",0,11,0,11,0,11,89,78,0,11,0,11,0,11,0,11,4,6,0,11,0,11,0,11,0,11,0,11,0,11,0,11,0,11,0,11,0,11,0,11,0,11,0,11,0,11,0,11,0,11,0,11,0,11,0,11,0,11,0,11,0,11,0,11,0,11,0,11,0,11,0,11,0,11,0,11,0,11,0,11,0,11,0,11,4,6]
[null,"20.0 to 24.9 percent",0,11,0,11,0,11,41,31,0,11,0,11,0,11,0,11,17,17,0,11,0,11,0,11,0,11,0,11,0,11,0,11,0,11,0,11,7,10,0,11,0,11,0,11,0,11,10,16,0,11,0,11,0,11,0,11,0,11,0,11,0,11,0,11,2,3,0,11,0,11,0,11,0,11,0,11,0,11,0,11,0,11,0,11,19,14]
[null,"25.0 to 29.9 percent",0,11,0,11,0,11,76,57,0,11,0,11,0,11,0,11,23,16,0,11,0,11,0,11,0,11,0,11,0,11,0,11,0,11,0,11,22,36,0,11,0,11,0,11,0,11,8,13,0,11,0,11,0,11,0,11,0,11,0,11,0,11,0,11,4,7,0,11,0,11,0,11,0,11,7,10,0,11,0,11,0,11,0,11,26,27]
[null,"30.0 to 34.9 percent",0,11,0,11,0,11,32,42,0,11,0,11,0,11,0,11,35,24,0,11,0,11,0,11,0,11,0,11,0,11,0,11,0,11,0,11,8,12,0,11,0,11,0,11,0,11,0,11,0,11,0,11,0,11,0,11,0,11,0,11,0,11,9,10,0,11,0,11,0,11,0,11,2,3,0,11,0,11,0,11,0,11,0,11,0,11]
[null,"35.0 to 39.9 percent",0,11,0,11,0,11,19,21,0,11,0,11,0,11,0,11,0,11,0,11,0,11,0,11,0,11,0,11,null,null,0,11,0,11,0,11,8,12,0,11,0,11,0,11,null,null,9,16,0,11,0,11,0,11,null,null,0,11,null,null,0,11,0,11,0,11,0,11,0,11,0,11,0,11,0,11,0,11,null,null,0,11,0,11,27,32]
[null,"40.0 to 49.9 percent",0,11,0,11,0,11,23,21,0,11,0,11,0,11,2,3,13,11,0,11,0,11,0,11,0,11,0,11,null,null,1,3,0,11,0,11,0,11,0,11,0,11,0,11,null,null,26,41,0,11,0,11,0,11,null,null,0,11,null,null,0,11,0,11,5,9,0,11,0,11,0,11,0,11,0,11,0,11,null,null,0,11,0,11,29,31]
[null,"50.0 percent or more",0,11,0,11,0,11,227,90,0,11,8,12,0,11,4,5,22,24,0,11,0,11,0,11,3,4,0,11,0,11,1,2,4,7,0,11,25,21,0,11,0,11,0,11,0,11,21,24,0,11,0,11,0,11,0,11,0,11,0,11,0,11,3,4,0,11,0,11,0,11,3,5,0,11,0,11,0,11,0,11,0,11,0,11,74,33]
[null,"Not computed",0,11,0,11,0,11,7,11,0,11,0,11,0,11,0,11,18,27,6,9,0,11,0,11,3,5,0,11,0,11,0,11,6,6,0,11,0,11,0,11,0,11,0,11,0,11,9,15,0,11,0,11,0,11,0,11,0,11,0,11,0,11,6,8,0,11,0,11,0,11,3,4,2,3,10,15,0,11,0,11,0,11,0,11,11,13]
[null,"$20,000 to $34,999:",0,11,0,11,0,11,447,125,0,11,16,16,0,11,4,7,60,26,9,10,0,11,0,11,27,20,0,11,0,11,3,4,12,10,0,11,90,64,0,11,0,11,0,11,0,11,144,84,0,11,0,11,0,11,0,11,0,11,0,11,0,11,48,28,1,3,0,11,0,11,0,11,8,9,42,23,0,11,0,11,0,11,1,3,67,47]
[null,"Less than 20.0 percent",0,11,0,11,0,11,52,35,0,11,0,11,0,11,0,11,7,10,0,11,0,11,0,11,0,11,0,11,0,11,0,11,4,6,0,11,43,45,0,11,0,11,0,11,0,11,0,11,0,11,0,11,0,11,0,11,0,11,0,11,0,11,0,11,0,11,0,11,0,11,0,11,0,11,0,11,0,11,0,11,0,11,0,11,0,11]
[null,"20.0 to 24.9 percent",0,11,0,11,0,11,66,62,0,11,0,11,0,11,0,11,0,11,0,11,0,11,0,11,0,11,0,11,0,11,1,2,0,11,0,11,0,11,0,11,0,11,0,11,0,11,25,39,0,11,0,11,0,11,0,11,0,11,0,11,0,11,13,18,1,3,0,11,0,11,0,11,2,3,12,17,0,11,0,11,0,11,0,11,17,24]
[null,"25.0 to 29.9 percent",0,11,0,11,0,11,98,60,0,11,2,4,0,11,2,5,6,8,0,11,0,11,0,11,0,11,0,11,0,11,0,11,4,6,0,11,6,8,0,11,0,11,0,11,0,11,42,48,0,11,0,11,0,11,0,11,0,11,0,11,0,11,22,23,0,11,0,11,0,11,0,11,6,9,25,23,0,11,0,11,0,11,0,11,10,8]
[null,"30.0 to 34.9 percent",0,11,0,11,0,11,109,58,0,11,8,11,0,11,0,11,6,9,0,11,0,11,0,11,0,11,0,11,0,11,1,2,2,3,0,11,9,13,0,11,0,11,0,11,0,11,0,11,0,11,0,11,0,11,0,11,0,11,0,11,0,11,0,11,0,11,0,11,0,11,0,11,0,11,0,11,0,11,0,11,0,11,0,11,17,26]
[null,"35.0 to 39.9 percent",0,11,0,11,0,11,34,29,0,11,6,9,0,11,0,11,6,9,0,11,0,11,0,11,6,11,0,11,null,null,0,11,0,11,0,11,32,48,0,11,0,11,0,11,null,null,14,21,0,11,0,11,0,11,null,null,0,11,null,null,0,11,10,14,0,11,0,11,0,11,0,11,0,11,2,5,0,11,null,null,0,11,0,11,0,11]
[null,"40.0 to 49.9 percent",0,11,0,11,0,11,44,36,0,11,0,11,0,11,0,11,9,10,3,4,0,11,0,11,0,11,0,11,null,null,1,2,0,11,0,11,0,11,0,11,0,11,0,11,null,null,63,63,0,11,0,11,0,11,null,null,0,11,null,null,0,11,0,11,0,11,0,11,0,11,0,11,0,11,0,11,0,11,null,null,0,11,0,11,21,28]
[null,"50.0 percent or more",0,11,0,11,0,11,44,33,0,11,0,11,0,11,0,11,15,18,0,11,0,11,0,11,0,11,0,11,0,11,0,11,0,11,0,11,0,11,0,11,0,11,0,11,0,11,0,11,0,11,0,11,0,11,0,11,0,11,0,11,0,11,0,11,0,11,0,11,0,11,0,11,0,11,0,11,0,11,0,11,0,11,0,11,2,4]
[null,"Not computed",0,11,0,11,0,11,0,15,0,11,0,11,0,11,2,4,11,9,6,9,0,11,0,11,21,17,0,11,0,11,0,11,2,3,0,11,0,11,0,11,0,11,0,11,0,11,0,11,0,11,0,11,0,11,0,11,0,11,0,11,0,11,3,6,0,11,0,11,0,11,0,11,0,11,3,4,0,11,0,11,0,11,1,3,0,11]
[null,"$35,000 to $49,999:",0,11,0,11,0,11,196,95,0,11,21,19,0,11,3,4,55,27,8,10,0,11,0,11,12,14,4,6,3,6,1,2,6,10,0,11,48,38,0,11,0,11,0,11,0,11,32,45,0,11,0,11,0,11,0,11,0,11,0,11,0,11,3,4,5,6,0,11,0,11,8,9,4,5,5,7,0,11,0,11,0,11,0,11,58,40]
[null,"Less than 20.0 percent",0,11,0,11,0,11,35,28,0,11,0,11,0,11,0,11,28,20,0,11,0,11,0,11,12,14,4,6,3,6,1,2,0,11,0,11,0,11,0,11,0,11,0,11,0,11,2,5,0,11,0,11,0,11,0,11,0,11,0,11,0,11,3,4,0,11,0,11,0,11,0,11,0,11,0,11,0,11,0,11,0,11,0,11,7,10]
[null,"20.0 to 24.9 percent",0,11,0,11,0,11,98,76,0,11,0,11,0,11,0,11,12,11,0,11,0,11,0,11,0,11,0,11,0,11,0,11,6,10,0,11,39,36,0,11,0,11,0,11,0,11,0,11,0,11,0,11,0,11,0,11,0,11,0,11,0,11,0,11,0,11,0,11,0,11,5,7,0,11,0,11,0,11,0,11,0,11,0,11,31,32]
[null,"25.0 to 29.9 percent",0,11,0,11,0,11,47,35,0,11,0,11,0,11,0,11,12,12,8,10,0,11,0,11,0,11,0,11,0,11,0,11,0,11,0,11,9,13,0,11,0,11,0,11,0,11,0,11,0,11,0,11,0,11,0,11,0,11,0,11,0,11,0,11,2,3,0,11,0,11,0,11,0,11,5,7,0,11,0,11,0,11,0,11,14,21]
[null,"30.0 to 34.9 percent",0,11,0,11,0,11,0,15,0,11,18,19,0,11,0,11,3,6,0,11,0,11,0,11,0,11,0,11,0,11,0,11,0,11,0,11,0,11,0,11,0,11,0,11,0,11,30,45,0,11,0,11,0,11,0,11,0,11,0,11,0,11,0,11,0,11,0,11,0,11,1,3,1,2,0,11,0,11,0,11,0,11,0,11,6,8]
[null,"35.0 to 39.9 percent",0,11,0,11,0,11,0,15,0,11,0,11,0,11,3,4,0,11,0,11,0,11,0,11,0,11,0,11,null,null,0,11,0,11,0,11,0,11,0,11,0,11,0,11,null,null,0,11,0,11,0,11,0,11,null,null,0,11,null,null,0,11,0,11,3,5,0,11,0,11,0,11,0,11,0,11,0,11,null,null,0,11,0,11,0,11]
[null,"40.0 to 49.9 percent",0,11,0,11,0,11,0,15,0,11,0,11,0,11,0,11,0,11,0,11,0,11,0,11,0,11,0,11,null,null,0,11,0,11,0,11,0,11,0,11,0,11,0,11,null,null,0,11,0,11,0,11,0,11,null,null,0,11,null,null,0,11,0,11,0,11,0,11,0,11,0,11,0,11,0,11,0,11,null,null,0,11,0,11,0,11]
[null,"50.0 percent or more",0,11,0,11,0,11,0,15,0,11,0,11,0,11,0,11,0,11,0,11,0,11,0,11,0,11,0,11,0,11,0,11,0,11,0,11,0,11,0,11,0,11,0,11,0,11,0,11,0,11,0,11,0,11,0,11,0,11,0,11,0,11,0,11,0,11,0,11,0,11,0,11,0,11,0,11,0,11,0,11,0,11,0,11,0,11]
[null,"Not computed",0,11,0,11,0,11,16,18,0,11,3,4,0,11,0,11,0,11,0,11,0,11,0,11,0,11,0,11,0,11,0,11,0,11,0,11,0,11,0,11,0,11,0,11,0,11,0,11,0,11,0,11,0,11,0,11,0,11,0,11,0,11,0,11,0,11,0,11,0,11,2,4,3,5,0,11,0,11,0,11,0,11,0,11,0,11]
[null,"$50,000 to $74,999:",0,11,0,11,0,11,131,69,0,11,41,29,0,11,0,11,31,31,3,5,0,11,0,11,20,17,0,11,0,11,0,11,6,7,0,11,82,55,0,11,0,11,0,11,0,11,52,36,0,11,0,11,0,11,0,11,0,11,0,11,0,11,0,11,4,5,0,11,0,11,6,9,9,8,16,18,0,11,0,11,0,11,5,7,20,17]
[null,"Less than 20.0 percent",0,11,0,11,0,11,82,57,0,11,21,20,0,11,0,11,31,31,3,5,0,11,0,11,10,9,0,11,0,11,0,11,6,7,0,11,72,53,0,11,0,11,0,11,0,11,17,18,0,11,0,11,0,11,0,11,0,11,0,11,0,11,0,11,4,5,0,11,0,11,6,9,3,4,0,11,0,11,0,11,0,11,5,7,3,5]
[null,"20.0 to 24.9 percent",0,11,0,11,0,11,49,49,0,11,20,16,0,11,0,11,0,11,0,11,0,11,0,11,10,14,0,11,0,11,0,11,0,11,0,11,10,14,0,11,0,11,0,11,0,11,9,14,0,11,0,11,0,11,0,11,0,11,0,11,0,11,0,11,0,11,0,11,0,11,0,11,4,5,0,11,0,11,0,11,0,11,0,11,0,11]
[null,"25.0 to 29.9 percent",0,11,0,11,0,11,0,15,0,11,0,11,0,11,0,11,0,11,0,11,0,11,0,11,0,11,0,11,0,11,0,11,0,11,0,11,0,11,0,11,0,11,0,11,0,11,0,11,0,11,0,11,0,11,0,11,0,11,0,11,0,11,0,11,0,11,0,11,0,11,0,11,0,11,11,17,0,11,0,11,0,11,0,11,12,12]
[null,"30.0 to 34.9 percent",0,11,0,11,0,11,0,15,0,11,0,11,0,11,0,11,0,11,0,11,0,11,0,11,0,11,0,11,0,11,0,11,0,11,0,11,0,11,0,11,0,11,0,11,0,11,14,18,0,11,0,11,0,11,0,11,0,11,0,11,0,11,0,11,0,11,0,11,0,11,0,11,0,11,5,8,0,11,0,11,0,11,0,11,5,9]
[null,"35.0 to 39.9 percent",0,11,0,11,0,11,0,15,0,11,0,11,0,11,0,11,0,11,0,11,0,11,0,11,0,11,0,11,null,null,0,11,0,11,0,11,0,11,0,11,0,11,0,11,null,null,0,11,0,11,0,11,0,11,null,null,0,11,null,null,0,11,0,11,0,11,0,11,0,11,0,11,0,11,0,11,0,11,null,null,0,11,0,11,0,11]
[null,"40.0 to 49.9 percent",0,11,0,11,0,11,0,15,0,11,0,11,0,11,0,11,0,11,0,11,0,11,0,11,0,11,0,11,null,null,0,11,0,11,0,11,0,11,0,11,0,11,0,11,null,null,0,11,0,11,0,11,0,11,null,null,0,11,null,null,0,11,0,11,0,11,0,11,0,11,0,11,0,11,0,11,0,11,null,null,0,11,0,11,0,11]
[null,"50.0 percent or more",0,11,0,11,0,11,0,15,0,11,0,11,0,11,0,11,0,11,0,11,0,11,0,11,0,11,0,11,0,11,0,11,0,11,0,11,0,11,0,11,0,11,0,11,0,11,0,11,0,11,0,11,0,11,0,11,0,11,0,11,0,11,0,11,0,11,0,11,0,11,0,11,0,11,0,11,0,11,0,11,0,11,0,11,0,11]
[null,"Not computed",0,11,0,11,0,11,0,15,0,11,0,11,0,11,0,11,0,11,0,11,0,11,0,11,0,11,0,11,0,11,0,11,0,11,0,11,0,11,0,11,0,11,0,11,0,11,12,20,0,11,0,11,0,11,0,11,0,11,0,11,0,11,0,11,0,11,0,11,0,11,0,11,2,4,0,11,0,11,0,11,0,11,0,11,0,11]
[null,"$75,000 to $99,999:",0,11,0,11,0,11,54,43,0,11,6,9,0,11,3,4,35,19,3,4,0,11,0,11,0,11,0,11,0,11,7,10,3,4,0,11,15,16,0,11,0,11,0,11,0,11,82,61,0,11,0,11,0,11,0,11,0,11,0,11,0,11,0,11,1,2,0,11,0,11,2,4,0,11,0,11,0,11,0,11,0,11,0,11,6,9]
[null,"Less than 20.0 percent",0,11,0,11,0,11,54,43,0,11,0,11,0,11,3,4,29,17,3,4,0,11,0,11,0,11,0,11,0,11,7,10,3,4,0,11,15,16,0,11,0,11,0,11,0,11,54,57,0,11,0,11,0,11,0,11,0,11,0,11,0,11,0,11,1,2,0,11,0,11,2,4,0,11,0,11,0,11,0,11,0,11,0,11,6,9]
[null,"20.0 to 24.9 percent",0,11,0,11,0,11,0,15,0,11,6,9,0,11,0,11,0,11,0,11,0,11,0,11,0,11,0,11,0,11,0,11,0,11,0,11,0,11,0,11,0,11,0,11,0,11,11,17,0,11,0,11,0,11,0,11,0,11,0,11,0,11,0,11,0,11,0,11,0,11,0,11,0,11,0,11,0,11,0,11,0,11,0,11,0,11]
[null,"25.0 to 29.9 percent",0,11,0,11,0,11,0,15,0,11,0,11,0,11,0,11,0,11,0,11,0,11,0,11,0,11,0,11,0,11,0,11,0,11,0,11,0,11,0,11,0,11,0,11,0,11,0,11,0,11,0,11,0,11,0,11,0,11,0,11,0,11,0,11,0,11,0,11,0,11,0,11,0,11,0,11,0,11,0,11,0,11,0,11,0,11]
[null,"30.0 to 34.9 percent",0,11,0,11,0,11,0,15,0,11,0,11,0,11,0,11,0,11,0,11,0,11,0,11,0,11,0,11,0,11,0,11,0,11,0,11,0,11,0,11,0,11,0,11,0,11,0,11,0,11,0,11,0,11,0,11,0,11,0,11,0,11,0,11,0,11,0,11,0,11,0,11,0,11,0,11,0,11,0,11,0,11,0,11,0,11]
[null,"35.0 to 39.9 percent",0,11,0,11,0,11,0,15,0,11,0,11,0,11,0,11,0,11,0,11,0,11,0,11,0,11,0,11,null,null,0,11,0,11,0,11,0,11,0,11,0,11,0,11,null,null,0,11,0,11,0,11,0,11,null,null,0,11,null,null,0,11,0,11,0,11,0,11,0,11,0,11,0,11,0,11,0,11,null,null,0,11,0,11,0,11]
[null,"40.0 to 49.9 percent",0,11,0,11,0,11,0,15,0,11,0,11,0,11,0,11,0,11,0,11,0,11,0,11,0,11,0,11,null,null,0,11,0,11,0,11,0,11,0,11,0,11,0,11,null,null,0,11,0,11,0,11,0,11,null,null,0,11,null,null,0,11,0,11,0,11,0,11,0,11,0,11,0,11,0,11,0,11,null,null,0,11,0,11,0,11]
[null,"50.0 percent or more",0,11,0,11,0,11,0,15,0,11,0,11,0,11,0,11,0,11,0,11,0,11,0,11,0,11,0,11,0,11,0,11,0,11,0,11,0,11,0,11,0,11,0,11,0,11,0,11,0,11,0,11,0,11,0,11,0,11,0,11,0,11,0,11,0,11,0,11,0,11,0,11,0,11,0,11,0,11,0,11,0,11,0,11,0,11]
[null,"Not computed",0,11,0,11,0,11,0,15,0,11,0,11,0,11,0,11,6,8,0,11,0,11,0,11,0,11,0,11,0,11,0,11,0,11,0,11,0,11,0,11,0,11,0,11,0,11,17,15,0,11,0,11,0,11,0,11,0,11,0,11,0,11,0,11,0,11,0,11,0,11,0,11,0,11,0,11,0,11,0,11,0,11,0,11,0,11]
[null,"$100,000 or more:",0,11,0,11,0,11,7,12,0,11,0,11,0,11,0,11,12,14,7,7,0,11,0,11,0,11,0,11,0,11,0,11,0,11,0,11,0,11,0,11,0,11,0,11,0,11,15,17,0,11,0,11,0,11,0,11,0,11,0,11,0,11,0,11,0,11,5,6,0,11,0,11,4,6,5,5,0,11,0,11,0,11,0,11,5,7]
[null,"Less than 20.0 percent",0,11,0,11,0,11,7,12,0,11,0,11,0,11,0,11,12,14,7,7,0,11,0,11,0,11,0,11,0,11,0,11,0,11,0,11,0,11,0,11,0,11,0,11,0,11,15,17,0,11,0,11,0,11,0,11,0,11,0,11,0,11,0,11,0,11,5,6,0,11,0,11,0,11,5,5,0,11,0,11,0,11,0,11,5,7]
[null,"20.0 to 24.9 percent",0,11,0,11,0,11,0,15,0,11,0,11,0,11,0,11,0,11,0,11,0,11,0,11,0,11,0,11,0,11,0,11,0,11,0,11,0,11,0,11,0,11,0,11,0,11,0,11,0,11,0,11,0,11,0,11,0,11,0,11,0,11,0,11,0,11,0,11,0,11,0,11,0,11,0,11,0,11,0,11,0,11,0,11,0,11]
[null,"25.0 to 29.9 percent",0,11,0,11,0,11,0,15,0,11,0,11,0,11,0,11,0,11,0,11,0,11,0,11,0,11,0,11,0,11,0,11,0,11,0,11,0,11,0,11,0,11,0,11,0,11,0,11,0,11,0,11,0,11,0,11,0,11,0,11,0,11,0,11,0,11,0,11,0,11,0,11,0,11,0,11,0,11,0,11,0,11,0,11,0,11]
[null,"30.0 to 34.9 percent",0,11,0,11,0,11,0,15,0,11,0,11,0,11,0,11,0,11,0,11,0,11,0,11,0,11,0,11,0,11,0,11,0,11,0,11,0,11,0,11,0,11,0,11,0,11,0,11,0,11,0,11,0,11,0,11,0,11,0,11,0,11,0,11,0,11,0,11,0,11,0,11,0,11,0,11,0,11,0,11,0,11,0,11,0,11]
[null,"35.0 to 39.9 percent",0,11,0,11,0,11,0,15,0,11,0,11,0,11,0,11,0,11,0,11,0,11,0,11,0,11,0,11,0,11,0,11,0,11,0,11,0,11,0,11,0,11,0,11,0,11,0,11,0,11,0,11,0,11,0,11,0,11,0,11,0,11,0,11,0,11,0,11,0,11,0,11,0,11,0,11,0,11,0,11,0,11,0,11,0,11]
[null,"40.0 to 49.9 percent",0,11,0,11,0,11,0,15,0,11,0,11,0,11,0,11,0,11,0,11,0,11,0,11,0,11,0,11,0,11,0,11,0,11,0,11,0,11,0,11,0,11,0,11,0,11,0,11,0,11,0,11,0,11,0,11,0,11,0,11,0,11,0,11,0,11,0,11,0,11,0,11,0,11,0,11,0,11,0,11,0,11,0,11,0,11]
[null,"50.0 percent or more",0,11,0,11,0,11,0,15,0,11,0,11,0,11,0,11,0,11,0,11,0,11,0,11,0,11,0,11,null,null,0,11,0,11,0,11,0,11,0,11,0,11,0,11,null,null,0,11,0,11,0,11,0,11,null,null,0,11,null,null,0,11,0,11,0,11,0,11,0,11,0,11,0,11,0,11,0,11,null,null,0,11,0,11,0,11]
[null,"Not computed",0,11,0,11,0,11,0,15,0,11,0,11,0,11,0,11,0,11,0,11,0,11,0,11,0,11,0,11,null,null,0,11,0,11,0,11,0,11,0,11,0,11,0,11,null,null,0,11,0,11,0,11,0,11,null,null,0,11,null,null,0,11,0,11,0,11,0,11,0,11,0,11,4,6,0,11,0,11,null,null,0,11,0,11,0,11]
[]
[]
[]
[]
[]
[]
[]
[]
[]
[]
[]
[]
[]
[]
[]
[null,"Calculated B25074. HOUSEHOLD INCOME BY GROSS RENT AS A PERCENTAGE OF HOUSEHOLD INCOME IN THE PAST 12 MONTHS"]
[null,"Universe:  RENTER OCCUPIED HOUSING UNITS"]
[null,"Data Set: 2010-2014 American Community Survey 5-Year Estimates"]
[]
[null,null,"Atkinson and Gilmanton Grant",null,"Bean's Grant",null,"Bean's Purchase",null,"Berlin",null,"Cambridge",null,"Carroll",null,"Chandler's Purchase",null,"Clarksville",null,"Colebrook",null,"Columbia",null,"Crawford's Purchase",null,"Cutt's Grant",null,"Dalton",null,"Dix's Grant",null,"Dixville",null,"Dummer",null,"Errol",null,"Erving's Location",null,"Gorham",null,"Greens Grant",null,"Hadley's Purchase",null,"Jefferson",null,"Kilkenny",null,"Lancaster",null,"Low and Burbank's Grant",null,"Martin's Location",null,"Milan",null,"Millsfield",null,"Northumberland",null,"Odell",null,"Pinkham's Grant",null,"Pittsburg",null,"Randolph",null,"Sargent's Purchase",null,"Second College Grant",null,"Shelburne",null,"Stark",null,"Stewartstown",null,"Stratford",null,"Success",null,"Thompson and Meserves Purchase",null,"Wentworth's Location",null,"Whitefield"]
[null,null,"Estimate","Margin Of Error","Estimate","Margin Of Error","Estimate","Margin Of Error","Estimate","Margin Of Error","Estimate","Margin Of Error","Estimate","Margin Of Error","Estimate","Margin Of Error","Estimate","Margin Of Error","Estimate","Margin Of Error","Estimate","Margin Of Error","Estimate","Margin Of Error","Estimate","Margin Of Error","Estimate","Margin Of Error","Estimate","Margin Of Error","Estimate","Margin Of Error","Estimate","Margin Of Error","Estimate","Margin Of Error","Estimate","Margin Of Error","Estimate","Margin Of Error","Estimate","Margin Of Error","Estimate","Margin Of Error","Estimate","Margin Of Error","Estimate","Margin Of Error","Estimate","Margin Of Error","Estimate","Margin Of Error","Estimate","Margin Of Error","Estimate","Margin Of Error","Estimate","Margin Of Error","Estimate","Margin Of Error","Estimate","Margin Of Error","Estimate","Margin Of Error","Estimate","Margin Of Error","Estimate","Margin Of Error","Estimate","Margin Of Error","Estimate","Margin Of Error","Estimate","Margin Of Error","Estimate","Margin Of Error","Estimate","Margin Of Error","Estimate","Margin Of Error","Estimate","Margin Of Error","Estimate","Margin Of Error","Estimate","Margin Of Error","Estimate","Margin Of Error"]
[null,"Total:",{"$f":"C174","v":0},11,0,11,0,11,1651,226,0,11,95,36,0,11,17,11,354,73,61,31,0,11,0,11,79,33,4,6,3,6,13,13,37,19,0,11,363,96,0,11,0,11,0,11,0,11,477,113,0,11,0,11,0,11,0,11,0,11,0,11,0,11,91,34,{"$f":"BO174","v":22},15,5,6,0,11,24,16,36,13,101,39,0,11,0,11,0,11,17,16,380,84]
[null,"Less than $10,000:",0,11,0,11,0,11,302,99,0,11,3,4,0,11,1,3,29,19,25,20,0,11,0,11,14,18,0,11,0,11,0,11,0,11,0,11,58,48,0,11,0,11,0,11,0,11,69,48,0,11,0,11,0,11,0,11,0,11,0,11,0,11,22,18,0,11,0,11,0,11,2,3,7,6,16,16,0,11,0,11,0,11,11,15,34,30]
[null,"Less than 30.0 percent",{"$f":"C176+C177+C178","v":0},{"$f":"SQRT((D176^2)+(D177^2)+(D178^2))","v":19.05255888325765},{"$f":"E176+E177+E178","v":0},{"$f":"SQRT((F176^2)+(F177^2)+(F178^2))","v":19.05255888325765},{"$f":"G176+G177+G178","v":0},{"$f":"SQRT((H176^2)+(H177^2)+(H178^2))","v":19.05255888325765},{"$f":"I176+I177+I178","v":0},{"$f":"SQRT((J176^2)+(J177^2)+(J178^2))","v":25.98076211353316},{"$f":"K176+K177+K178","v":0},{"$f":"SQRT((L176^2)+(L177^2)+(L178^2))","v":19.05255888325765},{"$f":"M176+M177+M178","v":0},{"$f":"SQRT((N176^2)+(N177^2)+(N178^2))","v":19.05255888325765},{"$f":"O176+O177+O178","v":0},{"$f":"SQRT((P176^2)+(P177^2)+(P178^2))","v":19.05255888325765},{"$f":"Q176+Q177+Q178","v":0},{"$f":"SQRT((R176^2)+(R177^2)+(R178^2))","v":19.05255888325765},{"$f":"S176+S177+S178","v":6},{"$f":"SQRT((T176^2)+(T177^2)+(T178^2))","v":17.972200755611428},{"$f":"U176+U177+U178","v":9},{"$f":"SQRT((V176^2)+(V177^2)+(V178^2))","v":20.273134932713294},{"$f":"W176+W177+W178","v":0},{"$f":"SQRT((X176^2)+(X177^2)+(X178^2))","v":19.05255888325765},{"$f":"Y176+Y177+Y178","v":0},{"$f":"SQRT((Z176^2)+(Z177^2)+(Z178^2))","v":19.05255888325765},{"$f":"AA176+AA177+AA178","v":0},{"$f":"SQRT((AB176^2)+(AB177^2)+(AB178^2))","v":19.05255888325765},{"$f":"AC176+AC177+AC178","v":0},{"$f":"SQRT((AD176^2)+(AD177^2)+(AD178^2))","v":19.05255888325765},{"$f":"AE176+AE177+AE178","v":0},{"$f":"SQRT((AF176^2)+(AF177^2)+(AF178^2))","v":19.05255888325765},{"$f":"AG176+AG177+AG178","v":0},{"$f":"SQRT((AH176^2)+(AH177^2)+(AH178^2))","v":19.05255888325765},{"$f":"AI176+AI177+AI178","v":0},{"$f":"SQRT((AJ176^2)+(AJ177^2)+(AJ178^2))","v":19.05255888325765},{"$f":"AK176+AK177+AK178","v":0},{"$f":"SQRT((AL176^2)+(AL177^2)+(AL178^2))","v":19.05255888325765},{"$f":"AM176+AM177+AM178","v":0},{"$f":"SQRT((AN176^2)+(AN177^2)+(AN178^2))","v":19.05255888325765},{"$f":"AO176+AO177+AO178","v":0},{"$f":"SQRT((AP176^2)+(AP177^2)+(AP178^2))","v":19.05255888325765},{"$f":"AQ176+AQ177+AQ178","v":0},{"$f":"SQRT((AR176^2)+(AR177^2)+(AR178^2))","v":19.05255888325765},{"$f":"AS176+AS177+AS178","v":0},{"$f":"SQRT((AT176^2)+(AT177^2)+(AT178^2))","v":19.05255888325765},{"$f":"AU176+AU177+AU178","v":0},{"$f":"SQRT((AV176^2)+(AV177^2)+(AV178^2))","v":19.05255888325765},{"$f":"AW176+AW177+AW178","v":8},{"$f":"SQRT((AX176^2)+(AX177^2)+(AX178^2))","v":20.928449536456348},{"$f":"AY176+AY177+AY178","v":0},{"$f":"SQRT((AZ176^2)+(AZ177^2)+(AZ178^2))","v":19.05255888325765},{"$f":"BA176+BA177+BA178","v":0},{"$f":"SQRT((BB176^2)+(BB177^2)+(BB178^2))","v":19.05255888325765},{"$f":"BC176+BC177+BC178","v":0},{"$f":"SQRT((BD176^2)+(BD177^2)+(BD178^2))","v":19.05255888325765},{"$f":"BE176+BE177+BE178","v":0},{"$f":"SQRT((BF176^2)+(BF177^2)+(BF178^2))","v":19.05255888325765},{"$f":"BG176+BG177+BG178","v":0},{"$f":"SQRT((BH176^2)+(BH177^2)+(BH178^2))","v":19.05255888325765},{"$f":"BI176+BI177+BI178","v":0},{"$f":"SQRT((BJ176^2)+(BJ177^2)+(BJ178^2))","v":19.05255888325765},{"$f":"BK176+BK177+BK178","v":0},{"$f":"SQRT((BL176^2)+(BL177^2)+(BL178^2))","v":19.05255888325765},{"$f":"BM176+BM177+BM178","v":5},{"$f":"SQRT((BN176^2)+(BN177^2)+(BN178^2))","v":16.673332000533065},{"$f":"BO176+BO177+BO178","v":0},{"$f":"SQRT((BP176^2)+(BP177^2)+(BP178^2))","v":19.05255888325765},{"$f":"BQ176+BQ177+BQ178","v":0},{"$f":"SQRT((BR176^2)+(BR177^2)+(BR178^2))","v":19.05255888325765},{"$f":"BS176+BS177+BS178","v":0},{"$f":"SQRT((BT176^2)+(BT177^2)+(BT178^2))","v":19.05255888325765},{"$f":"BU176+BU177+BU178","v":0},{"$f":"SQRT((BV176^2)+(BV177^2)+(BV178^2))","v":19.05255888325765},{"$f":"BW176+BW177+BW178","v":1},{"$f":"SQRT((BX176^2)+(BX177^2)+(BX178^2))","v":16.06237840420901},{"$f":"BY176+BY177+BY178","v":11},{"$f":"SQRT((BZ176^2)+(BZ177^2)+(BZ178^2))","v":21.61018278497431},{"$f":"CA176+CA177+CA178","v":0},{"$f":"SQRT((CB176^2)+(CB177^2)+(CB178^2))","v":19.05255888325765},{"$f":"CC176+CC177+CC178","v":0},{"$f":"SQRT((CD176^2)+(CD177^2)+(CD178^2))","v":19.05255888325765},{"$f":"CE176+CE177+CE178","v":0},{"$f":"SQRT((CF176^2)+(CF177^2)+(CF178^2))","v":19.05255888325765},{"$f":"CG176+CG177+CG178","v":0},{"$f":"SQRT((CH176^2)+(CH177^2)+(CH178^2))","v":19.05255888325765},{"$f":"CI176+CI177+CI178","v":17},{"$f":"SQRT((CJ176^2)+(CJ177^2)+(CJ178^2))","v":30.298514815086232}]
[null,"More than 30.0 percent",{"$f":"C179+C180+C181+C182","v":0},{"$f":"SQRT((D179^2)+(D180^2)+(D181^2)+(D182^2))","v":22},{"$f":"E179+E180+E181+E182","v":0},{"$f":"SQRT((F179^2)+(F180^2)+(F181^2)+(F182^2))","v":22},{"$f":"G179+G180+G181+G182","v":0},{"$f":"SQRT((H179^2)+(H180^2)+(H181^2)+(H182^2))","v":22},{"$f":"I179+I180+I181+I182","v":244},{"$f":"SQRT((J179^2)+(J180^2)+(J181^2)+(J182^2))","v":83.14445261110329},{"$f":"K179+K180+K181+K182","v":0},{"$f":"SQRT((L179^2)+(L180^2)+(L181^2)+(L182^2))","v":22},{"$f":"M179+M180+M181+M182","v":0},{"$f":"SQRT((N179^2)+(N180^2)+(N181^2)+(N182^2))","v":22},{"$f":"O179+O180+O181+O182","v":0},{"$f":"SQRT((P179^2)+(P180^2)+(P181^2)+(P182^2))","v":22},{"$f":"Q179+Q180+Q181+Q182","v":1},{"$f":"SQRT((R179^2)+(R180^2)+(R181^2)+(R182^2))","v":19.28730152198591},{"$f":"S179+S180+S181+S182","v":23},{"$f":"SQRT((T179^2)+(T180^2)+(T181^2)+(T182^2))","v":24.879710609249457},{"$f":"U179+U180+U181+U182","v":16},{"$f":"SQRT((V179^2)+(V180^2)+(V181^2)+(V182^2))","v":22.427661492005804},{"$f":"W179+W180+W181+W182","v":0},{"$f":"SQRT((X179^2)+(X180^2)+(X181^2)+(X182^2))","v":22},{"$f":"Y179+Y180+Y181+Y182","v":0},{"$f":"SQRT((Z179^2)+(Z180^2)+(Z181^2)+(Z182^2))","v":22},{"$f":"AA179+AA180+AA181+AA182","v":3},{"$f":"SQRT((AB179^2)+(AB180^2)+(AB181^2)+(AB182^2))","v":19.467922333931785},{"$f":"AC179+AC180+AC181+AC182","v":0},{"$f":"SQRT((AD179^2)+(AD180^2)+(AD181^2)+(AD182^2))","v":22},{"$f":"AE179+AE180+AE181+AE182","v":0},{"$f":"SQRT((AF179^2)+(AF180^2)+(AF181^2)+(AF182^2))","v":15.556349186104045},{"$f":"AG179+AG180+AG181+AG182","v":0},{"$f":"SQRT((AH179^2)+(AH180^2)+(AH181^2)+(AH182^2))","v":22},{"$f":"AI179+AI180+AI181+AI182","v":0},{"$f":"SQRT((AJ179^2)+(AJ180^2)+(AJ181^2)+(AJ182^2))","v":22},{"$f":"AK179+AK180+AK181+AK182","v":0},{"$f":"SQRT((AL179^2)+(AL180^2)+(AL181^2)+(AL182^2))","v":22},{"$f":"AM179+AM180+AM181+AM182","v":58},{"$f":"SQRT((AN179^2)+(AN180^2)+(AN181^2)+(AN182^2))","v":49.699094559156713},{"$f":"AO179+AO180+AO181+AO182","v":0},{"$f":"SQRT((AP179^2)+(AP180^2)+(AP181^2)+(AP182^2))","v":22},{"$f":"AQ179+AQ180+AQ181+AQ182","v":0},{"$f":"SQRT((AR179^2)+(AR180^2)+(AR181^2)+(AR182^2))","v":22},{"$f":"AS179+AS180+AS181+AS182","v":0},{"$f":"SQRT((AT179^2)+(AT180^2)+(AT181^2)+(AT182^2))","v":22},{"$f":"AU179+AU180+AU181+AU182","v":0},{"$f":"SQRT((AV179^2)+(AV180^2)+(AV181^2)+(AV182^2))","v":15.556349186104045},{"$f":"AW179+AW180+AW181+AW182","v":61},{"$f":"SQRT((AX179^2)+(AX180^2)+(AX181^2)+(AX182^2))","v":49.909918853871119},{"$f":"AY179+AY180+AY181+AY182","v":0},{"$f":"SQRT((AZ179^2)+(AZ180^2)+(AZ181^2)+(AZ182^2))","v":22},{"$f":"BA179+BA180+BA181+BA182","v":0},{"$f":"SQRT((BB179^2)+(BB180^2)+(BB181^2)+(BB182^2))","v":22},{"$f":"BC179+BC180+BC181+BC182","v":0},{"$f":"SQRT((BD179^2)+(BD180^2)+(BD181^2)+(BD182^2))","v":22},{"$f":"BE179+BE180+BE181+BE182","v":0},{"$f":"SQRT((BF179^2)+(BF180^2)+(BF181^2)+(BF182^2))","v":15.556349186104045},{"$f":"BG179+BG180+BG181+BG182","v":0},{"$f":"SQRT((BH179^2)+(BH180^2)+(BH181^2)+(BH182^2))","v":22},{"$f":"BI179+BI180+BI181+BI182","v":0},{"$f":"SQRT((BJ179^2)+(BJ180^2)+(BJ181^2)+(BJ182^2))","v":15.556349186104045},{"$f":"BK179+BK180+BK181+BK182","v":0},{"$f":"SQRT((BL179^2)+(BL180^2)+(BL181^2)+(BL182^2))","v":22},{"$f":"BM179+BM180+BM181+BM182","v":17},{"$f":"SQRT((BN179^2)+(BN180^2)+(BN181^2)+(BN182^2))","v":26.210684844162312},{"$f":"BO179+BO180+BO181+BO182","v":0},{"$f":"SQRT((BP179^2)+(BP180^2)+(BP181^2)+(BP182^2))","v":22},{"$f":"BQ179+BQ180+BQ181+BQ182","v":0},{"$f":"SQRT((BR179^2)+(BR180^2)+(BR181^2)+(BR182^2))","v":22},{"$f":"BS179+BS180+BS181+BS182","v":0},{"$f":"SQRT((BT179^2)+(BT180^2)+(BT181^2)+(BT182^2))","v":22},{"$f":"BU179+BU180+BU181+BU182","v":0},{"$f":"SQRT((BV179^2)+(BV180^2)+(BV181^2)+(BV182^2))","v":22},{"$f":"BW179+BW180+BW181+BW182","v":3},{"$f":"SQRT((BX179^2)+(BX180^2)+(BX181^2)+(BX182^2))","v":19.467922333931785},{"$f":"BY179+BY180+BY181+BY182","v":5},{"$f":"SQRT((BZ179^2)+(BZ180^2)+(BZ181^2)+(BZ182^2))","v":20.297783130184438},{"$f":"CA179+CA180+CA181+CA182","v":0},{"$f":"SQRT((CB179^2)+(CB180^2)+(CB181^2)+(CB182^2))","v":22},{"$f":"CC179+CC180+CC181+CC182","v":0},{"$f":"SQRT((CD179^2)+(CD180^2)+(CD181^2)+(CD182^2))","v":15.556349186104045},{"$f":"CE179+CE180+CE181+CE182","v":0},{"$f":"SQRT((CF179^2)+(CF180^2)+(CF181^2)+(CF182^2))","v":22},{"$f":"CG179+CG180+CG181+CG182","v":1},{"$f":"SQRT((CH179^2)+(CH180^2)+(CH181^2)+(CH182^2))","v":19.28730152198591},{"$f":"CI179+CI180+CI181+CI182","v":12},{"$f":"SQRT((CJ179^2)+(CJ180^2)+(CJ181^2)+(CJ182^2))","v":23.643180835073778}]
[null,"Less Than 35% of HH Income",{"$f":"C176+C177+C178+C179","v":0},{"$f":"SQRT((D176^2)+(D177^2)+(D178^2)+(D179^2))","v":22},{"$f":"E176+E177+E178+E179","v":0},{"$f":"SQRT((F176^2)+(F177^2)+(F178^2)+(F179^2))","v":22},{"$f":"G176+G177+G178+G179","v":0},{"$f":"SQRT((H176^2)+(H177^2)+(H178^2)+(H179^2))","v":22},{"$f":"I176+I177+I178+I179","v":7},{"$f":"SQRT((J176^2)+(J177^2)+(J178^2)+(J179^2))","v":28.61817604250837},{"$f":"K176+K177+K178+K179","v":0},{"$f":"SQRT((L176^2)+(L177^2)+(L178^2)+(L179^2))","v":22},{"$f":"M176+M177+M178+M179","v":0},{"$f":"SQRT((N176^2)+(N177^2)+(N178^2)+(N179^2))","v":22},{"$f":"O176+O177+O178+O179","v":0},{"$f":"SQRT((P176^2)+(P177^2)+(P178^2)+(P179^2))","v":22},{"$f":"Q176+Q177+Q178+Q179","v":0},{"$f":"SQRT((R176^2)+(R177^2)+(R178^2)+(R179^2))","v":22},{"$f":"S176+S177+S178+S179","v":6},{"$f":"SQRT((T176^2)+(T177^2)+(T178^2)+(T179^2))","v":21.071307505705477},{"$f":"U176+U177+U178+U179","v":9},{"$f":"SQRT((V176^2)+(V177^2)+(V178^2)+(V179^2))","v":23.065125189341593},{"$f":"W176+W177+W178+W179","v":0},{"$f":"SQRT((X176^2)+(X177^2)+(X178^2)+(X179^2))","v":22},{"$f":"Y176+Y177+Y178+Y179","v":0},{"$f":"SQRT((Z176^2)+(Z177^2)+(Z178^2)+(Z179^2))","v":22},{"$f":"AA176+AA177+AA178+AA179","v":0},{"$f":"SQRT((AB176^2)+(AB177^2)+(AB178^2)+(AB179^2))","v":22},{"$f":"AC176+AC177+AC178+AC179","v":0},{"$f":"SQRT((AD176^2)+(AD177^2)+(AD178^2)+(AD179^2))","v":22},{"$f":"AE176+AE177+AE178+AE179","v":0},{"$f":"SQRT((AF176^2)+(AF177^2)+(AF178^2)+(AF179^2))","v":22},{"$f":"AG176+AG177+AG178+AG179","v":0},{"$f":"SQRT((AH176^2)+(AH177^2)+(AH178^2)+(AH179^2))","v":22},{"$f":"AI176+AI177+AI178+AI179","v":0},{"$f":"SQRT((AJ176^2)+(AJ177^2)+(AJ178^2)+(AJ179^2))","v":22},{"$f":"AK176+AK177+AK178+AK179","v":0},{"$f":"SQRT((AL176^2)+(AL177^2)+(AL178^2)+(AL179^2))","v":22},{"$f":"AM176+AM177+AM178+AM179","v":24},{"$f":"SQRT((AN176^2)+(AN177^2)+(AN178^2)+(AN179^2))","v":42.508822613664563},{"$f":"AO176+AO177+AO178+AO179","v":0},{"$f":"SQRT((AP176^2)+(AP177^2)+(AP178^2)+(AP179^2))","v":22},{"$f":"AQ176+AQ177+AQ178+AQ179","v":0},{"$f":"SQRT((AR176^2)+(AR177^2)+(AR178^2)+(AR179^2))","v":22},{"$f":"AS176+AS177+AS178+AS179","v":0},{"$f":"SQRT((AT176^2)+(AT177^2)+(AT178^2)+(AT179^2))","v":22},{"$f":"AU176+AU177+AU178+AU179","v":0},{"$f":"SQRT((AV176^2)+(AV177^2)+(AV178^2)+(AV179^2))","v":22},{"$f":"AW176+AW177+AW178+AW179","v":20},{"$f":"SQRT((AX176^2)+(AX177^2)+(AX178^2)+(AX179^2))","v":28.948229652260256},{"$f":"AY176+AY177+AY178+AY179","v":0},{"$f":"SQRT((AZ176^2)+(AZ177^2)+(AZ178^2)+(AZ179^2))","v":22},{"$f":"BA176+BA177+BA178+BA179","v":0},{"$f":"SQRT((BB176^2)+(BB177^2)+(BB178^2)+(BB179^2))","v":22},{"$f":"BC176+BC177+BC178+BC179","v":0},{"$f":"SQRT((BD176^2)+(BD177^2)+(BD178^2)+(BD179^2))","v":22},{"$f":"BE176+BE177+BE178+BE179","v":0},{"$f":"SQRT((BF176^2)+(BF177^2)+(BF178^2)+(BF179^2))","v":22},{"$f":"BG176+BG177+BG178+BG179","v":0},{"$f":"SQRT((BH176^2)+(BH177^2)+(BH178^2)+(BH179^2))","v":22},{"$f":"BI176+BI177+BI178+BI179","v":0},{"$f":"SQRT((BJ176^2)+(BJ177^2)+(BJ178^2)+(BJ179^2))","v":22},{"$f":"BK176+BK177+BK178+BK179","v":0},{"$f":"SQRT((BL176^2)+(BL177^2)+(BL178^2)+(BL179^2))","v":22},{"$f":"BM176+BM177+BM178+BM179","v":5},{"$f":"SQRT((BN176^2)+(BN177^2)+(BN178^2)+(BN179^2))","v":19.974984355438178},{"$f":"BO176+BO177+BO178+BO179","v":0},{"$f":"SQRT((BP176^2)+(BP177^2)+(BP178^2)+(BP179^2))","v":22},{"$f":"BQ176+BQ177+BQ178+BQ179","v":0},{"$f":"SQRT((BR176^2)+(BR177^2)+(BR178^2)+(BR179^2))","v":22},{"$f":"BS176+BS177+BS178+BS179","v":0},{"$f":"SQRT((BT176^2)+(BT177^2)+(BT178^2)+(BT179^2))","v":22},{"$f":"BU176+BU177+BU178+BU179","v":0},{"$f":"SQRT((BV176^2)+(BV177^2)+(BV178^2)+(BV179^2))","v":22},{"$f":"BW176+BW177+BW178+BW179","v":1},{"$f":"SQRT((BX176^2)+(BX177^2)+(BX178^2)+(BX179^2))","v":19.467922333931785},{"$f":"BY176+BY177+BY178+BY179","v":11},{"$f":"SQRT((BZ176^2)+(BZ177^2)+(BZ178^2)+(BZ179^2))","v":24.248711305964282},{"$f":"CA176+CA177+CA178+CA179","v":0},{"$f":"SQRT((CB176^2)+(CB177^2)+(CB178^2)+(CB179^2))","v":22},{"$f":"CC176+CC177+CC178+CC179","v":0},{"$f":"SQRT((CD176^2)+(CD177^2)+(CD178^2)+(CD179^2))","v":22},{"$f":"CE176+CE177+CE178+CE179","v":0},{"$f":"SQRT((CF176^2)+(CF177^2)+(CF178^2)+(CF179^2))","v":22},{"$f":"CG176+CG177+CG178+CG179","v":0},{"$f":"SQRT((CH176^2)+(CH177^2)+(CH178^2)+(CH179^2))","v":22},{"$f":"CI176+CI177+CI178+CI179","v":17},{"$f":"SQRT((CJ176^2)+(CJ177^2)+(CJ178^2)+(CJ179^2))","v":32.233522922572398}]
[null,"35.0 percent or more",{"$f":"C180+C181++C182","v":0},{"$f":"SQRT((D180^2)+(D181^2)+(D182^2))","v":19.05255888325765},{"$f":"E180+E181++E182","v":0},{"$f":"SQRT((F180^2)+(F181^2)+(F182^2))","v":19.05255888325765},{"$f":"G180+G181++G182","v":0},{"$f":"SQRT((H180^2)+(H181^2)+(H182^2))","v":19.05255888325765},{"$f":"I180+I181++I182","v":237},{"$f":"SQRT((J180^2)+(J181^2)+(J182^2))","v":82.273932688306573},{"$f":"K180+K181++K182","v":0},{"$f":"SQRT((L180^2)+(L181^2)+(L182^2))","v":19.05255888325765},{"$f":"M180+M181++M182","v":0},{"$f":"SQRT((N180^2)+(N181^2)+(N182^2))","v":19.05255888325765},{"$f":"O180+O181++O182","v":0},{"$f":"SQRT((P180^2)+(P181^2)+(P182^2))","v":19.05255888325765},{"$f":"Q180+Q181++Q182","v":1},{"$f":"SQRT((R180^2)+(R181^2)+(R182^2))","v":15.842979517754859},{"$f":"S180+S181++S182","v":23},{"$f":"SQRT((T180^2)+(T181^2)+(T182^2))","v":22.315913604421397},{"$f":"U180+U181++U182","v":16},{"$f":"SQRT((V180^2)+(V181^2)+(V182^2))","v":19.544820285692065},{"$f":"W180+W181++W182","v":0},{"$f":"SQRT((X180^2)+(X181^2)+(X182^2))","v":19.05255888325765},{"$f":"Y180+Y181++Y182","v":0},{"$f":"SQRT((Z180^2)+(Z181^2)+(Z182^2))","v":19.05255888325765},{"$f":"AA180+AA181++AA182","v":3},{"$f":"SQRT((AB180^2)+(AB181^2)+(AB182^2))","v":16.06237840420901},{"$f":"AC180+AC181++AC182","v":0},{"$f":"SQRT((AD180^2)+(AD181^2)+(AD182^2))","v":19.05255888325765},{"$f":"AE180+AE181++AE182","v":0},{"$f":"SQRT((AF180^2)+(AF181^2)+(AF182^2))","v":11},{"$f":"AG180+AG181++AG182","v":0},{"$f":"SQRT((AH180^2)+(AH181^2)+(AH182^2))","v":19.05255888325765},{"$f":"AI180+AI181++AI182","v":0},{"$f":"SQRT((AJ180^2)+(AJ181^2)+(AJ182^2))","v":19.05255888325765},{"$f":"AK180+AK181++AK182","v":0},{"$f":"SQRT((AL180^2)+(AL181^2)+(AL182^2))","v":19.05255888325765},{"$f":"AM180+AM181++AM182","v":34},{"$f":"SQRT((AN180^2)+(AN181^2)+(AN182^2))","v":32.03123475609393},{"$f":"AO180+AO181++AO182","v":0},{"$f":"SQRT((AP180^2)+(AP181^2)+(AP182^2))","v":19.05255888325765},{"$f":"AQ180+AQ181++AQ182","v":0},{"$f":"SQRT((AR180^2)+(AR181^2)+(AR182^2))","v":19.05255888325765},{"$f":"AS180+AS181++AS182","v":0},{"$f":"SQRT((AT180^2)+(AT181^2)+(AT182^2))","v":19.05255888325765},{"$f":"AU180+AU181++AU182","v":0},{"$f":"SQRT((AV180^2)+(AV181^2)+(AV182^2))","v":11},{"$f":"AW180+AW181++AW182","v":49},{"$f":"SQRT((AX180^2)+(AX181^2)+(AX182^2))","v":45.727453460694704},{"$f":"AY180+AY181++AY182","v":0},{"$f":"SQRT((AZ180^2)+(AZ181^2)+(AZ182^2))","v":19.05255888325765},{"$f":"BA180+BA181++BA182","v":0},{"$f":"SQRT((BB180^2)+(BB181^2)+(BB182^2))","v":19.05255888325765},{"$f":"BC180+BC181++BC182","v":0},{"$f":"SQRT((BD180^2)+(BD181^2)+(BD182^2))","v":19.05255888325765},{"$f":"BE180+BE181++BE182","v":0},{"$f":"SQRT((BF180^2)+(BF181^2)+(BF182^2))","v":11},{"$f":"BG180+BG181++BG182","v":0},{"$f":"SQRT((BH180^2)+(BH181^2)+(BH182^2))","v":19.05255888325765},{"$f":"BI180+BI181++BI182","v":0},{"$f":"SQRT((BJ180^2)+(BJ181^2)+(BJ182^2))","v":11},{"$f":"BK180+BK181++BK182","v":0},{"$f":"SQRT((BL180^2)+(BL181^2)+(BL182^2))","v":19.05255888325765},{"$f":"BM180+BM181++BM182","v":17},{"$f":"SQRT((BN180^2)+(BN181^2)+(BN182^2))","v":23.790754506740637},{"$f":"BO180+BO181++BO182","v":0},{"$f":"SQRT((BP180^2)+(BP181^2)+(BP182^2))","v":19.05255888325765},{"$f":"BQ180+BQ181++BQ182","v":0},{"$f":"SQRT((BR180^2)+(BR181^2)+(BR182^2))","v":19.05255888325765},{"$f":"BS180+BS181++BS182","v":0},{"$f":"SQRT((BT180^2)+(BT181^2)+(BT182^2))","v":19.05255888325765},{"$f":"BU180+BU181++BU182","v":0},{"$f":"SQRT((BV180^2)+(BV181^2)+(BV182^2))","v":19.05255888325765},{"$f":"BW180+BW181++BW182","v":3},{"$f":"SQRT((BX180^2)+(BX181^2)+(BX182^2))","v":16.06237840420901},{"$f":"BY180+BY181++BY182","v":5},{"$f":"SQRT((BZ180^2)+(BZ181^2)+(BZ182^2))","v":17.058722109231979},{"$f":"CA180+CA181++CA182","v":0},{"$f":"SQRT((CB180^2)+(CB181^2)+(CB182^2))","v":19.05255888325765},{"$f":"CC180+CC181++CC182","v":0},{"$f":"SQRT((CD180^2)+(CD181^2)+(CD182^2))","v":11},{"$f":"CE180+CE181++CE182","v":0},{"$f":"SQRT((CF180^2)+(CF181^2)+(CF182^2))","v":19.05255888325765},{"$f":"CG180+CG181++CG182","v":1},{"$f":"SQRT((CH180^2)+(CH181^2)+(CH182^2))","v":15.842979517754859},{"$f":"CI180+CI181++CI182","v":12},{"$f":"SQRT((CJ180^2)+(CJ181^2)+(CJ182^2))","v":20.928449536456348}]
[null,"50.0 percent or more",{"$f":"C182","v":0},11,0,11,0,11,230,80,0,11,0,11,0,11,1,3,23,16,12,15,0,11,0,11,3,4,0,11,0,11,0,11,0,11,0,11,34,28,0,11,0,11,0,11,0,11,49,43,0,11,0,11,0,11,0,11,0,11,0,11,0,11,17,18,{"$f":"BO182","v":0},11,0,11,0,11,0,11,0,11,5,7,0,11,0,11,0,11,1,3,12,14]
[null,"Not Computed",0,11,0,11,0,11,58,53,0,11,3,4,0,11,0,11,0,11,0,11,0,11,0,11,11,17,0,11,0,11,0,11,0,11,0,11,0,11,0,11,0,11,0,11,0,11,0,11,0,11,0,11,0,11,0,11,0,11,0,11,0,11,0,11,0,11,0,11,0,11,2,3,3,5,0,11,0,11,0,11,0,11,10,14,5,7]
[null,"$10,000 to $19,999:",0,11,0,11,0,11,514,134,0,11,8,12,0,11,6,5,132,54,6,9,0,11,0,11,6,6,0,11,0,11,2,4,10,10,0,11,70,43,0,11,0,11,0,11,0,11,83,46,0,11,0,11,0,11,0,11,0,11,0,11,0,11,18,14,11,12,0,11,0,11,6,6,4,4,17,18,0,11,0,11,0,11,0,11,190,64]
[null,"Less than 30.0 percent",{"$f":"C185+C186+C187","v":0},{"$f":"SQRT((D185^2)+(D186^2)+(D187^2))","v":19.05255888325765},{"$f":"E185+E186+E187","v":0},{"$f":"SQRT((F185^2)+(F186^2)+(F187^2))","v":19.05255888325765},{"$f":"G185+G186+G187","v":0},{"$f":"SQRT((H185^2)+(H186^2)+(H187^2))","v":19.05255888325765},{"$f":"I185+I186+I187","v":206},{"$f":"SQRT((J185^2)+(J186^2)+(J187^2))","v":101.45935146648632},{"$f":"K185+K186+K187","v":0},{"$f":"SQRT((L185^2)+(L186^2)+(L187^2))","v":19.05255888325765},{"$f":"M185+M186+M187","v":0},{"$f":"SQRT((N185^2)+(N186^2)+(N187^2))","v":19.05255888325765},{"$f":"O185+O186+O187","v":0},{"$f":"SQRT((P185^2)+(P186^2)+(P187^2))","v":19.05255888325765},{"$f":"Q185+Q186+Q187","v":0},{"$f":"SQRT((R185^2)+(R186^2)+(R187^2))","v":19.05255888325765},{"$f":"S185+S186+S187","v":44},{"$f":"SQRT((T185^2)+(T186^2)+(T187^2))","v":24.103941586387901},{"$f":"U185+U186+U187","v":0},{"$f":"SQRT((V185^2)+(V186^2)+(V187^2))","v":19.05255888325765},{"$f":"W185+W186+W187","v":0},{"$f":"SQRT((X185^2)+(X186^2)+(X187^2))","v":19.05255888325765},{"$f":"Y185+Y186+Y187","v":0},{"$f":"SQRT((Z185^2)+(Z186^2)+(Z187^2))","v":19.05255888325765},{"$f":"AA185+AA186+AA187","v":0},{"$f":"SQRT((AB185^2)+(AB186^2)+(AB187^2))","v":19.05255888325765},{"$f":"AC185+AC186+AC187","v":0},{"$f":"SQRT((AD185^2)+(AD186^2)+(AD187^2))","v":19.05255888325765},{"$f":"AE185+AE186+AE187","v":0},{"$f":"SQRT((AF185^2)+(AF186^2)+(AF187^2))","v":19.05255888325765},{"$f":"AG185+AG186+AG187","v":0},{"$f":"SQRT((AH185^2)+(AH186^2)+(AH187^2))","v":19.05255888325765},{"$f":"AI185+AI186+AI187","v":0},{"$f":"SQRT((AJ185^2)+(AJ186^2)+(AJ187^2))","v":19.05255888325765},{"$f":"AK185+AK186+AK187","v":0},{"$f":"SQRT((AL185^2)+(AL186^2)+(AL187^2))","v":19.05255888325765},{"$f":"AM185+AM186+AM187","v":29},{"$f":"SQRT((AN185^2)+(AN186^2)+(AN187^2))","v":38.948684188300895},{"$f":"AO185+AO186+AO187","v":0},{"$f":"SQRT((AP185^2)+(AP186^2)+(AP187^2))","v":19.05255888325765},{"$f":"AQ185+AQ186+AQ187","v":0},{"$f":"SQRT((AR185^2)+(AR186^2)+(AR187^2))","v":19.05255888325765},{"$f":"AS185+AS186+AS187","v":0},{"$f":"SQRT((AT185^2)+(AT186^2)+(AT187^2))","v":19.05255888325765},{"$f":"AU185+AU186+AU187","v":0},{"$f":"SQRT((AV185^2)+(AV186^2)+(AV187^2))","v":19.05255888325765},{"$f":"AW185+AW186+AW187","v":18},{"$f":"SQRT((AX185^2)+(AX186^2)+(AX187^2))","v":23.366642891095847},{"$f":"AY185+AY186+AY187","v":0},{"$f":"SQRT((AZ185^2)+(AZ186^2)+(AZ187^2))","v":19.05255888325765},{"$f":"BA185+BA186+BA187","v":0},{"$f":"SQRT((BB185^2)+(BB186^2)+(BB187^2))","v":19.05255888325765},{"$f":"BC185+BC186+BC187","v":0},{"$f":"SQRT((BD185^2)+(BD186^2)+(BD187^2))","v":19.05255888325765},{"$f":"BE185+BE186+BE187","v":0},{"$f":"SQRT((BF185^2)+(BF186^2)+(BF187^2))","v":19.05255888325765},{"$f":"BG185+BG186+BG187","v":0},{"$f":"SQRT((BH185^2)+(BH186^2)+(BH187^2))","v":19.05255888325765},{"$f":"BI185+BI186+BI187","v":0},{"$f":"SQRT((BJ185^2)+(BJ186^2)+(BJ187^2))","v":19.05255888325765},{"$f":"BK185+BK186+BK187","v":0},{"$f":"SQRT((BL185^2)+(BL186^2)+(BL187^2))","v":19.05255888325765},{"$f":"BM185+BM186+BM187","v":0},{"$f":"SQRT((BN185^2)+(BN186^2)+(BN187^2))","v":19.05255888325765},{"$f":"BO185+BO186+BO187","v":6},{"$f":"SQRT((BP185^2)+(BP186^2)+(BP187^2))","v":13.379088160259652},{"$f":"BQ185+BQ186+BQ187","v":0},{"$f":"SQRT((BR185^2)+(BR186^2)+(BR187^2))","v":19.05255888325765},{"$f":"BS185+BS186+BS187","v":0},{"$f":"SQRT((BT185^2)+(BT186^2)+(BT187^2))","v":19.05255888325765},{"$f":"BU185+BU186+BU187","v":0},{"$f":"SQRT((BV185^2)+(BV186^2)+(BV187^2))","v":19.05255888325765},{"$f":"BW185+BW186+BW187","v":0},{"$f":"SQRT((BX185^2)+(BX186^2)+(BX187^2))","v":19.05255888325765},{"$f":"BY185+BY186+BY187","v":7},{"$f":"SQRT((BZ185^2)+(BZ186^2)+(BZ187^2))","v":18.493242008906929},{"$f":"CA185+CA186+CA187","v":0},{"$f":"SQRT((CB185^2)+(CB186^2)+(CB187^2))","v":19.05255888325765},{"$f":"CC185+CC186+CC187","v":0},{"$f":"SQRT((CD185^2)+(CD186^2)+(CD187^2))","v":19.05255888325765},{"$f":"CE185+CE186+CE187","v":0},{"$f":"SQRT((CF185^2)+(CF186^2)+(CF187^2))","v":19.05255888325765},{"$f":"CG185+CG186+CG187","v":0},{"$f":"SQRT((CH185^2)+(CH186^2)+(CH187^2))","v":19.05255888325765},{"$f":"CI185+CI186+CI187","v":49},{"$f":"SQRT((CJ185^2)+(CJ186^2)+(CJ187^2))","v":31}]
[null,"More than 30.0 percent",{"$f":"C188+C189+C190+C191","v":0},{"$f":"SQRT((D188^2)+(D189^2)+(D190^2)+(D191^2))","v":22},{"$f":"E188+E189+E190+E191","v":0},{"$f":"SQRT((F188^2)+(F189^2)+(F190^2)+(F191^2))","v":22},{"$f":"G188+G189+G190+G191","v":0},{"$f":"SQRT((H188^2)+(H189^2)+(H190^2)+(H191^2))","v":22},{"$f":"I188+I189+I190+I191","v":301},{"$f":"SQRT((J188^2)+(J189^2)+(J190^2)+(J191^2))","v":103.66291525902598},{"$f":"K188+K189+K190+K191","v":0},{"$f":"SQRT((L188^2)+(L189^2)+(L190^2)+(L191^2))","v":22},{"$f":"M188+M189+M190+M191","v":8},{"$f":"SQRT((N188^2)+(N189^2)+(N190^2)+(N191^2))","v":22.516660498395403},{"$f":"O188+O189+O190+O191","v":0},{"$f":"SQRT((P188^2)+(P189^2)+(P190^2)+(P191^2))","v":22},{"$f":"Q188+Q189+Q190+Q191","v":6},{"$f":"SQRT((R188^2)+(R189^2)+(R190^2)+(R191^2))","v":16.61324772583615},{"$f":"S188+S189+S190+S191","v":70},{"$f":"SQRT((T188^2)+(T189^2)+(T190^2)+(T191^2))","v":37.336309405188942},{"$f":"U188+U189+U190+U191","v":0},{"$f":"SQRT((V188^2)+(V189^2)+(V190^2)+(V191^2))","v":22},{"$f":"W188+W189+W190+W191","v":0},{"$f":"SQRT((X188^2)+(X189^2)+(X190^2)+(X191^2))","v":22},{"$f":"Y188+Y189+Y190+Y191","v":0},{"$f":"SQRT((Z188^2)+(Z189^2)+(Z190^2)+(Z191^2))","v":22},{"$f":"AA188+AA189+AA190+AA191","v":3},{"$f":"SQRT((AB188^2)+(AB189^2)+(AB190^2)+(AB191^2))","v":19.467922333931785},{"$f":"AC188+AC189+AC190+AC191","v":0},{"$f":"SQRT((AD188^2)+(AD189^2)+(AD190^2)+(AD191^2))","v":22},{"$f":"AE188+AE189+AE190+AE191","v":0},{"$f":"SQRT((AF188^2)+(AF189^2)+(AF190^2)+(AF191^2))","v":15.556349186104045},{"$f":"AG188+AG189+AG190+AG191","v":2},{"$f":"SQRT((AH188^2)+(AH189^2)+(AH190^2)+(AH191^2))","v":15.968719422671311},{"$f":"AI188+AI189+AI190+AI191","v":4},{"$f":"SQRT((AJ188^2)+(AJ189^2)+(AJ190^2)+(AJ191^2))","v":20.297783130184438},{"$f":"AK188+AK189+AK190+AK191","v":0},{"$f":"SQRT((AL188^2)+(AL189^2)+(AL190^2)+(AL191^2))","v":22},{"$f":"AM188+AM189+AM190+AM191","v":41},{"$f":"SQRT((AN188^2)+(AN189^2)+(AN190^2)+(AN191^2))","v":29.154759474226502},{"$f":"AO188+AO189+AO190+AO191","v":0},{"$f":"SQRT((AP188^2)+(AP189^2)+(AP190^2)+(AP191^2))","v":22},{"$f":"AQ188+AQ189+AQ190+AQ191","v":0},{"$f":"SQRT((AR188^2)+(AR189^2)+(AR190^2)+(AR191^2))","v":22},{"$f":"AS188+AS189+AS190+AS191","v":0},{"$f":"SQRT((AT188^2)+(AT189^2)+(AT190^2)+(AT191^2))","v":22},{"$f":"AU188+AU189+AU190+AU191","v":0},{"$f":"SQRT((AV188^2)+(AV189^2)+(AV190^2)+(AV191^2))","v":15.556349186104045},{"$f":"AW188+AW189+AW190+AW191","v":56},{"$f":"SQRT((AX188^2)+(AX189^2)+(AX190^2)+(AX191^2))","v":51.322509681425359},{"$f":"AY188+AY189+AY190+AY191","v":0},{"$f":"SQRT((AZ188^2)+(AZ189^2)+(AZ190^2)+(AZ191^2))","v":22},{"$f":"BA188+BA189+BA190+BA191","v":0},{"$f":"SQRT((BB188^2)+(BB189^2)+(BB190^2)+(BB191^2))","v":22},{"$f":"BC188+BC189+BC190+BC191","v":0},{"$f":"SQRT((BD188^2)+(BD189^2)+(BD190^2)+(BD191^2))","v":22},{"$f":"BE188+BE189+BE190+BE191","v":0},{"$f":"SQRT((BF188^2)+(BF189^2)+(BF190^2)+(BF191^2))","v":15.556349186104045},{"$f":"BG188+BG189+BG190+BG191","v":0},{"$f":"SQRT((BH188^2)+(BH189^2)+(BH190^2)+(BH191^2))","v":22},{"$f":"BI188+BI189+BI190+BI191","v":0},{"$f":"SQRT((BJ188^2)+(BJ189^2)+(BJ190^2)+(BJ191^2))","v":15.556349186104045},{"$f":"BK188+BK189+BK190+BK191","v":0},{"$f":"SQRT((BL188^2)+(BL189^2)+(BL190^2)+(BL191^2))","v":22},{"$f":"BM188+BM189+BM190+BM191","v":12},{"$f":"SQRT((BN188^2)+(BN189^2)+(BN190^2)+(BN191^2))","v":18.920887928424502},{"$f":"BO188+BO189+BO190+BO191","v":5},{"$f":"SQRT((BP188^2)+(BP189^2)+(BP190^2)+(BP191^2))","v":21.071307505705477},{"$f":"BQ188+BQ189+BQ190+BQ191","v":0},{"$f":"SQRT((BR188^2)+(BR189^2)+(BR190^2)+(BR191^2))","v":22},{"$f":"BS188+BS189+BS190+BS191","v":0},{"$f":"SQRT((BT188^2)+(BT189^2)+(BT190^2)+(BT191^2))","v":22},{"$f":"BU188+BU189+BU190+BU191","v":3},{"$f":"SQRT((BV188^2)+(BV189^2)+(BV190^2)+(BV191^2))","v":19.697715603592208},{"$f":"BW188+BW189+BW190+BW191","v":2},{"$f":"SQRT((BX188^2)+(BX189^2)+(BX190^2)+(BX191^2))","v":19.28730152198591},{"$f":"BY188+BY189+BY190+BY191","v":0},{"$f":"SQRT((BZ188^2)+(BZ189^2)+(BZ190^2)+(BZ191^2))","v":22},{"$f":"CA188+CA189+CA190+CA191","v":0},{"$f":"SQRT((CB188^2)+(CB189^2)+(CB190^2)+(CB191^2))","v":22},{"$f":"CC188+CC189+CC190+CC191","v":0},{"$f":"SQRT((CD188^2)+(CD189^2)+(CD190^2)+(CD191^2))","v":15.556349186104045},{"$f":"CE188+CE189+CE190+CE191","v":0},{"$f":"SQRT((CF188^2)+(CF189^2)+(CF190^2)+(CF191^2))","v":22},{"$f":"CG188+CG189+CG190+CG191","v":0},{"$f":"SQRT((CH188^2)+(CH189^2)+(CH190^2)+(CH191^2))","v":22},{"$f":"CI188+CI189+CI190+CI191","v":130},{"$f":"SQRT((CJ188^2)+(CJ189^2)+(CJ190^2)+(CJ191^2))","v":56.524331044250317}]
[null,"Less Than 35% of HH Income",{"$f":"C185+C186+C187+C188","v":0},{"$f":"SQRT((D185^2)+(D186^2)+(D187^2)+(D188^2))","v":22},{"$f":"E185+E186+E187+E188","v":0},{"$f":"SQRT((F185^2)+(F186^2)+(F187^2)+(F188^2))","v":22},{"$f":"G185+G186+G187+G188","v":0},{"$f":"SQRT((H185^2)+(H186^2)+(H187^2)+(H188^2))","v":22},{"$f":"I185+I186+I187+I188","v":238},{"$f":"SQRT((J185^2)+(J186^2)+(J187^2)+(J188^2))","v":109.80892495603443},{"$f":"K185+K186+K187+K188","v":0},{"$f":"SQRT((L185^2)+(L186^2)+(L187^2)+(L188^2))","v":22},{"$f":"M185+M186+M187+M188","v":0},{"$f":"SQRT((N185^2)+(N186^2)+(N187^2)+(N188^2))","v":22},{"$f":"O185+O186+O187+O188","v":0},{"$f":"SQRT((P185^2)+(P186^2)+(P187^2)+(P188^2))","v":22},{"$f":"Q185+Q186+Q187+Q188","v":0},{"$f":"SQRT((R185^2)+(R186^2)+(R187^2)+(R188^2))","v":22},{"$f":"S185+S186+S187+S188","v":79},{"$f":"SQRT((T185^2)+(T186^2)+(T187^2)+(T188^2))","v":34.014702703389901},{"$f":"U185+U186+U187+U188","v":0},{"$f":"SQRT((V185^2)+(V186^2)+(V187^2)+(V188^2))","v":22},{"$f":"W185+W186+W187+W188","v":0},{"$f":"SQRT((X185^2)+(X186^2)+(X187^2)+(X188^2))","v":22},{"$f":"Y185+Y186+Y187+Y188","v":0},{"$f":"SQRT((Z185^2)+(Z186^2)+(Z187^2)+(Z188^2))","v":22},{"$f":"AA185+AA186+AA187+AA188","v":0},{"$f":"SQRT((AB185^2)+(AB186^2)+(AB187^2)+(AB188^2))","v":22},{"$f":"AC185+AC186+AC187+AC188","v":0},{"$f":"SQRT((AD185^2)+(AD186^2)+(AD187^2)+(AD188^2))","v":22},{"$f":"AE185+AE186+AE187+AE188","v":0},{"$f":"SQRT((AF185^2)+(AF186^2)+(AF187^2)+(AF188^2))","v":22},{"$f":"AG185+AG186+AG187+AG188","v":0},{"$f":"SQRT((AH185^2)+(AH186^2)+(AH187^2)+(AH188^2))","v":22},{"$f":"AI185+AI186+AI187+AI188","v":0},{"$f":"SQRT((AJ185^2)+(AJ186^2)+(AJ187^2)+(AJ188^2))","v":22},{"$f":"AK185+AK186+AK187+AK188","v":0},{"$f":"SQRT((AL185^2)+(AL186^2)+(AL187^2)+(AL188^2))","v":22},{"$f":"AM185+AM186+AM187+AM188","v":37},{"$f":"SQRT((AN185^2)+(AN186^2)+(AN187^2)+(AN188^2))","v":40.755367744629666},{"$f":"AO185+AO186+AO187+AO188","v":0},{"$f":"SQRT((AP185^2)+(AP186^2)+(AP187^2)+(AP188^2))","v":22},{"$f":"AQ185+AQ186+AQ187+AQ188","v":0},{"$f":"SQRT((AR185^2)+(AR186^2)+(AR187^2)+(AR188^2))","v":22},{"$f":"AS185+AS186+AS187+AS188","v":0},{"$f":"SQRT((AT185^2)+(AT186^2)+(AT187^2)+(AT188^2))","v":22},{"$f":"AU185+AU186+AU187+AU188","v":0},{"$f":"SQRT((AV185^2)+(AV186^2)+(AV187^2)+(AV188^2))","v":22},{"$f":"AW185+AW186+AW187+AW188","v":18},{"$f":"SQRT((AX185^2)+(AX186^2)+(AX187^2)+(AX188^2))","v":25.826343140289914},{"$f":"AY185+AY186+AY187+AY188","v":0},{"$f":"SQRT((AZ185^2)+(AZ186^2)+(AZ187^2)+(AZ188^2))","v":22},{"$f":"BA185+BA186+BA187+BA188","v":0},{"$f":"SQRT((BB185^2)+(BB186^2)+(BB187^2)+(BB188^2))","v":22},{"$f":"BC185+BC186+BC187+BC188","v":0},{"$f":"SQRT((BD185^2)+(BD186^2)+(BD187^2)+(BD188^2))","v":22},{"$f":"BE185+BE186+BE187+BE188","v":0},{"$f":"SQRT((BF185^2)+(BF186^2)+(BF187^2)+(BF188^2))","v":22},{"$f":"BG185+BG186+BG187+BG188","v":0},{"$f":"SQRT((BH185^2)+(BH186^2)+(BH187^2)+(BH188^2))","v":22},{"$f":"BI185+BI186+BI187+BI188","v":0},{"$f":"SQRT((BJ185^2)+(BJ186^2)+(BJ187^2)+(BJ188^2))","v":22},{"$f":"BK185+BK186+BK187+BK188","v":0},{"$f":"SQRT((BL185^2)+(BL186^2)+(BL187^2)+(BL188^2))","v":22},{"$f":"BM185+BM186+BM187+BM188","v":9},{"$f":"SQRT((BN185^2)+(BN186^2)+(BN187^2)+(BN188^2))","v":21.517434791350013},{"$f":"BO185+BO186+BO187+BO188","v":6},{"$f":"SQRT((BP185^2)+(BP186^2)+(BP187^2)+(BP188^2))","v":17.320508075688775},{"$f":"BQ185+BQ186+BQ187+BQ188","v":0},{"$f":"SQRT((BR185^2)+(BR186^2)+(BR187^2)+(BR188^2))","v":22},{"$f":"BS185+BS186+BS187+BS188","v":0},{"$f":"SQRT((BT185^2)+(BT186^2)+(BT187^2)+(BT188^2))","v":22},{"$f":"BU185+BU186+BU187+BU188","v":0},{"$f":"SQRT((BV185^2)+(BV186^2)+(BV187^2)+(BV188^2))","v":22},{"$f":"BW185+BW186+BW187+BW188","v":2},{"$f":"SQRT((BX185^2)+(BX186^2)+(BX187^2)+(BX188^2))","v":19.28730152198591},{"$f":"BY185+BY186+BY187+BY188","v":7},{"$f":"SQRT((BZ185^2)+(BZ186^2)+(BZ187^2)+(BZ188^2))","v":21.517434791350013},{"$f":"CA185+CA186+CA187+CA188","v":0},{"$f":"SQRT((CB185^2)+(CB186^2)+(CB187^2)+(CB188^2))","v":22},{"$f":"CC185+CC186+CC187+CC188","v":0},{"$f":"SQRT((CD185^2)+(CD186^2)+(CD187^2)+(CD188^2))","v":22},{"$f":"CE185+CE186+CE187+CE188","v":0},{"$f":"SQRT((CF185^2)+(CF186^2)+(CF187^2)+(CF188^2))","v":22},{"$f":"CG185+CG186+CG187+CG188","v":0},{"$f":"SQRT((CH185^2)+(CH186^2)+(CH187^2)+(CH188^2))","v":22},{"$f":"CI185+CI186+CI187+CI188","v":49},{"$f":"SQRT((CJ185^2)+(CJ186^2)+(CJ187^2)+(CJ188^2))","v":32.893768406797051}]
[null,"35.0 percent or more",{"$f":"C189+C190++C191","v":0},{"$f":"SQRT((D189^2)+(D190^2)+(D191^2))","v":19.05255888325765},{"$f":"E189+E190++E191","v":0},{"$f":"SQRT((F189^2)+(F190^2)+(F191^2))","v":19.05255888325765},{"$f":"G189+G190++G191","v":0},{"$f":"SQRT((H189^2)+(H190^2)+(H191^2))","v":19.05255888325765},{"$f":"I189+I190++I191","v":269},{"$f":"SQRT((J189^2)+(J190^2)+(J191^2))","v":94.77341399358788},{"$f":"K189+K190++K191","v":0},{"$f":"SQRT((L189^2)+(L190^2)+(L191^2))","v":19.05255888325765},{"$f":"M189+M190++M191","v":8},{"$f":"SQRT((N189^2)+(N190^2)+(N191^2))","v":19.646882704388499},{"$f":"O189+O190++O191","v":0},{"$f":"SQRT((P189^2)+(P190^2)+(P191^2))","v":19.05255888325765},{"$f":"Q189+Q190++Q191","v":6},{"$f":"SQRT((R189^2)+(R190^2)+(R191^2))","v":12.449899597988733},{"$f":"S189+S190++S191","v":35},{"$f":"SQRT((T189^2)+(T190^2)+(T191^2))","v":28.600699292150182},{"$f":"U189+U190++U191","v":0},{"$f":"SQRT((V189^2)+(V190^2)+(V191^2))","v":19.05255888325765},{"$f":"W189+W190++W191","v":0},{"$f":"SQRT((X189^2)+(X190^2)+(X191^2))","v":19.05255888325765},{"$f":"Y189+Y190++Y191","v":0},{"$f":"SQRT((Z189^2)+(Z190^2)+(Z191^2))","v":19.05255888325765},{"$f":"AA189+AA190++AA191","v":3},{"$f":"SQRT((AB189^2)+(AB190^2)+(AB191^2))","v":16.06237840420901},{"$f":"AC189+AC190++AC191","v":0},{"$f":"SQRT((AD189^2)+(AD190^2)+(AD191^2))","v":19.05255888325765},{"$f":"AE189+AE190++AE191","v":0},{"$f":"SQRT((AF189^2)+(AF190^2)+(AF191^2))","v":11},{"$f":"AG189+AG190++AG191","v":2},{"$f":"SQRT((AH189^2)+(AH190^2)+(AH191^2))","v":11.575836902790225},{"$f":"AI189+AI190++AI191","v":4},{"$f":"SQRT((AJ189^2)+(AJ190^2)+(AJ191^2))","v":17.058722109231979},{"$f":"AK189+AK190++AK191","v":0},{"$f":"SQRT((AL189^2)+(AL190^2)+(AL191^2))","v":19.05255888325765},{"$f":"AM189+AM190++AM191","v":33},{"$f":"SQRT((AN189^2)+(AN190^2)+(AN191^2))","v":26.570660511172846},{"$f":"AO189+AO190++AO191","v":0},{"$f":"SQRT((AP189^2)+(AP190^2)+(AP191^2))","v":19.05255888325765},{"$f":"AQ189+AQ190++AQ191","v":0},{"$f":"SQRT((AR189^2)+(AR190^2)+(AR191^2))","v":19.05255888325765},{"$f":"AS189+AS190++AS191","v":0},{"$f":"SQRT((AT189^2)+(AT190^2)+(AT191^2))","v":19.05255888325765},{"$f":"AU189+AU190++AU191","v":0},{"$f":"SQRT((AV189^2)+(AV190^2)+(AV191^2))","v":11},{"$f":"AW189+AW190++AW191","v":56},{"$f":"SQRT((AX189^2)+(AX190^2)+(AX191^2))","v":50.129831437977131},{"$f":"AY189+AY190++AY191","v":0},{"$f":"SQRT((AZ189^2)+(AZ190^2)+(AZ191^2))","v":19.05255888325765},{"$f":"BA189+BA190++BA191","v":0},{"$f":"SQRT((BB189^2)+(BB190^2)+(BB191^2))","v":19.05255888325765},{"$f":"BC189+BC190++BC191","v":0},{"$f":"SQRT((BD189^2)+(BD190^2)+(BD191^2))","v":19.05255888325765},{"$f":"BE189+BE190++BE191","v":0},{"$f":"SQRT((BF189^2)+(BF190^2)+(BF191^2))","v":11},{"$f":"BG189+BG190++BG191","v":0},{"$f":"SQRT((BH189^2)+(BH190^2)+(BH191^2))","v":19.05255888325765},{"$f":"BI189+BI190++BI191","v":0},{"$f":"SQRT((BJ189^2)+(BJ190^2)+(BJ191^2))","v":11},{"$f":"BK189+BK190++BK191","v":0},{"$f":"SQRT((BL189^2)+(BL190^2)+(BL191^2))","v":19.05255888325765},{"$f":"BM189+BM190++BM191","v":3},{"$f":"SQRT((BN189^2)+(BN190^2)+(BN191^2))","v":16.06237840420901},{"$f":"BO189+BO190++BO191","v":5},{"$f":"SQRT((BP189^2)+(BP190^2)+(BP191^2))","v":17.972200755611428},{"$f":"BQ189+BQ190++BQ191","v":0},{"$f":"SQRT((BR189^2)+(BR190^2)+(BR191^2))","v":19.05255888325765},{"$f":"BS189+BS190++BS191","v":0},{"$f":"SQRT((BT189^2)+(BT190^2)+(BT191^2))","v":19.05255888325765},{"$f":"BU189+BU190++BU191","v":3},{"$f":"SQRT((BV189^2)+(BV190^2)+(BV191^2))","v":16.340134638368191},{"$f":"BW189+BW190++BW191","v":0},{"$f":"SQRT((BX189^2)+(BX190^2)+(BX191^2))","v":19.05255888325765},{"$f":"BY189+BY190++BY191","v":0},{"$f":"SQRT((BZ189^2)+(BZ190^2)+(BZ191^2))","v":19.05255888325765},{"$f":"CA189+CA190++CA191","v":0},{"$f":"SQRT((CB189^2)+(CB190^2)+(CB191^2))","v":19.05255888325765},{"$f":"CC189+CC190++CC191","v":0},{"$f":"SQRT((CD189^2)+(CD190^2)+(CD191^2))","v":11},{"$f":"CE189+CE190++CE191","v":0},{"$f":"SQRT((CF189^2)+(CF190^2)+(CF191^2))","v":19.05255888325765},{"$f":"CG189+CG190++CG191","v":0},{"$f":"SQRT((CH189^2)+(CH190^2)+(CH191^2))","v":19.05255888325765},{"$f":"CI189+CI190++CI191","v":130},{"$f":"SQRT((CJ189^2)+(CJ190^2)+(CJ191^2))","v":55.443665102516448}]
[null,"50.0 percent or more",{"$f":"C191","v":0},{"$f":"D191","v":11},{"$f":"E191","v":0},11,{"$f":"G191","v":0},11,{"$f":"I191","v":227},90,{"$f":"K191","v":0},11,{"$f":"M191","v":8},12,{"$f":"O191","v":0},11,{"$f":"Q191","v":4},5,{"$f":"S191","v":22},24,{"$f":"U191","v":0},11,{"$f":"W191","v":0},11,{"$f":"Y191","v":0},11,{"$f":"AA191","v":3},4,{"$f":"AC191","v":0},11,{"$f":"AE191","v":0},11,{"$f":"AG191","v":1},2,{"$f":"AI191","v":4},7,{"$f":"AK191","v":0},11,{"$f":"AM191","v":25},21,{"$f":"AO191","v":0},11,{"$f":"AQ191","v":0},11,{"$f":"AS191","v":0},11,{"$f":"AU191","v":0},11,{"$f":"AW191","v":21},24,{"$f":"AY191","v":0},11,{"$f":"BA191","v":0},11,{"$f":"BC191","v":0},11,{"$f":"BE191","v":0},11,{"$f":"BG191","v":0},11,{"$f":"BI191","v":0},11,{"$f":"BK191","v":0},11,{"$f":"BM191","v":3},4,{"$f":"BO191","v":0},{"$f":"BP191","v":11},{"$f":"BQ191","v":0},11,{"$f":"BS191","v":0},11,{"$f":"BU191","v":3},5,{"$f":"BW191","v":0},11,{"$f":"BY191","v":0},11,{"$f":"CA191","v":0},11,{"$f":"CC191","v":0},11,{"$f":"CE191","v":0},11,{"$f":"CG191","v":0},11,{"$f":"CI191","v":74},33]
[null,"Not Computed",{"$f":"C192","v":0},11,0,11,0,11,7,11,0,11,0,11,0,11,0,11,18,27,6,9,0,11,0,11,3,5,0,11,0,11,0,11,6,6,0,11,0,11,0,11,0,11,0,11,0,11,9,15,0,11,0,11,0,11,0,11,0,11,0,11,0,11,6,8,{"$f":"BO192","v":0},11,0,11,0,11,3,4,2,3,10,15,0,11,0,11,0,11,0,11,11,13]
[null,"$20,000 to $34,999:",0,11,0,11,0,11,447,125,0,11,16,16,0,11,4,7,60,26,9,10,0,11,0,11,27,20,0,11,0,11,3,4,12,10,0,11,90,64,0,11,0,11,0,11,0,11,144,84,0,11,0,11,0,11,0,11,0,11,0,11,0,11,48,28,1,3,0,11,0,11,0,11,8,9,42,23,0,11,0,11,0,11,1,3,67,47]
[null,"Less than 30.0 percent",{"$f":"C194+C195+C196","v":0},{"$f":"SQRT((D194^2)+(D195^2)+(D196^2))","v":19.05255888325765},{"$f":"E194+E195+E196","v":0},{"$f":"SQRT((F194^2)+(F195^2)+(F196^2))","v":19.05255888325765},{"$f":"G194+G195+G196","v":0},{"$f":"SQRT((H194^2)+(H195^2)+(H196^2))","v":19.05255888325765},{"$f":"I194+I195+I196","v":216},{"$f":"SQRT((J194^2)+(J195^2)+(J196^2))","v":93.107464792034804},{"$f":"K194+K195+K196","v":0},{"$f":"SQRT((L194^2)+(L195^2)+(L196^2))","v":19.05255888325765},{"$f":"M194+M195+M196","v":2},{"$f":"SQRT((N194^2)+(N195^2)+(N196^2))","v":16.06237840420901},{"$f":"O194+O195+O196","v":0},{"$f":"SQRT((P194^2)+(P195^2)+(P196^2))","v":19.05255888325765},{"$f":"Q194+Q195+Q196","v":2},{"$f":"SQRT((R194^2)+(R195^2)+(R196^2))","v":16.340134638368191},{"$f":"S194+S195+S196","v":13},{"$f":"SQRT((T194^2)+(T195^2)+(T196^2))","v":16.881943016134134},{"$f":"U194+U195+U196","v":0},{"$f":"SQRT((V194^2)+(V195^2)+(V196^2))","v":19.05255888325765},{"$f":"W194+W195+W196","v":0},{"$f":"SQRT((X194^2)+(X195^2)+(X196^2))","v":19.05255888325765},{"$f":"Y194+Y195+Y196","v":0},{"$f":"SQRT((Z194^2)+(Z195^2)+(Z196^2))","v":19.05255888325765},{"$f":"AA194+AA195+AA196","v":0},{"$f":"SQRT((AB194^2)+(AB195^2)+(AB196^2))","v":19.05255888325765},{"$f":"AC194+AC195+AC196","v":0},{"$f":"SQRT((AD194^2)+(AD195^2)+(AD196^2))","v":19.05255888325765},{"$f":"AE194+AE195+AE196","v":0},{"$f":"SQRT((AF194^2)+(AF195^2)+(AF196^2))","v":19.05255888325765},{"$f":"AG194+AG195+AG196","v":1},{"$f":"SQRT((AH194^2)+(AH195^2)+(AH196^2))","v":15.684387141358123},{"$f":"AI194+AI195+AI196","v":8},{"$f":"SQRT((AJ194^2)+(AJ195^2)+(AJ196^2))","v":13.892443989449804},{"$f":"AK194+AK195+AK196","v":0},{"$f":"SQRT((AL194^2)+(AL195^2)+(AL196^2))","v":19.05255888325765},{"$f":"AM194+AM195+AM196","v":49},{"$f":"SQRT((AN194^2)+(AN195^2)+(AN196^2))","v":47.010637094172637},{"$f":"AO194+AO195+AO196","v":0},{"$f":"SQRT((AP194^2)+(AP195^2)+(AP196^2))","v":19.05255888325765},{"$f":"AQ194+AQ195+AQ196","v":0},{"$f":"SQRT((AR194^2)+(AR195^2)+(AR196^2))","v":19.05255888325765},{"$f":"AS194+AS195+AS196","v":0},{"$f":"SQRT((AT194^2)+(AT195^2)+(AT196^2))","v":19.05255888325765},{"$f":"AU194+AU195+AU196","v":0},{"$f":"SQRT((AV194^2)+(AV195^2)+(AV196^2))","v":19.05255888325765},{"$f":"AW194+AW195+AW196","v":67},{"$f":"SQRT((AX194^2)+(AX195^2)+(AX196^2))","v":62.81719509815764},{"$f":"AY194+AY195+AY196","v":0},{"$f":"SQRT((AZ194^2)+(AZ195^2)+(AZ196^2))","v":19.05255888325765},{"$f":"BA194+BA195+BA196","v":0},{"$f":"SQRT((BB194^2)+(BB195^2)+(BB196^2))","v":19.05255888325765},{"$f":"BC194+BC195+BC196","v":0},{"$f":"SQRT((BD194^2)+(BD195^2)+(BD196^2))","v":19.05255888325765},{"$f":"BE194+BE195+BE196","v":0},{"$f":"SQRT((BF194^2)+(BF195^2)+(BF196^2))","v":19.05255888325765},{"$f":"BG194+BG195+BG196","v":0},{"$f":"SQRT((BH194^2)+(BH195^2)+(BH196^2))","v":19.05255888325765},{"$f":"BI194+BI195+BI196","v":0},{"$f":"SQRT((BJ194^2)+(BJ195^2)+(BJ196^2))","v":19.05255888325765},{"$f":"BK194+BK195+BK196","v":0},{"$f":"SQRT((BL194^2)+(BL195^2)+(BL196^2))","v":19.05255888325765},{"$f":"BM194+BM195+BM196","v":35},{"$f":"SQRT((BN194^2)+(BN195^2)+(BN196^2))","v":31.208973068654469},{"$f":"BO194+BO195+BO196","v":1},{"$f":"SQRT((BP194^2)+(BP195^2)+(BP196^2))","v":15.842979517754859},{"$f":"BQ194+BQ195+BQ196","v":0},{"$f":"SQRT((BR194^2)+(BR195^2)+(BR196^2))","v":19.05255888325765},{"$f":"BS194+BS195+BS196","v":0},{"$f":"SQRT((BT194^2)+(BT195^2)+(BT196^2))","v":19.05255888325765},{"$f":"BU194+BU195+BU196","v":0},{"$f":"SQRT((BV194^2)+(BV195^2)+(BV196^2))","v":19.05255888325765},{"$f":"BW194+BW195+BW196","v":8},{"$f":"SQRT((BX194^2)+(BX195^2)+(BX196^2))","v":14.52583904633395},{"$f":"BY194+BY195+BY196","v":37},{"$f":"SQRT((BZ194^2)+(BZ195^2)+(BZ196^2))","v":30.643106892089126},{"$f":"CA194+CA195+CA196","v":0},{"$f":"SQRT((CB194^2)+(CB195^2)+(CB196^2))","v":19.05255888325765},{"$f":"CC194+CC195+CC196","v":0},{"$f":"SQRT((CD194^2)+(CD195^2)+(CD196^2))","v":19.05255888325765},{"$f":"CE194+CE195+CE196","v":0},{"$f":"SQRT((CF194^2)+(CF195^2)+(CF196^2))","v":19.05255888325765},{"$f":"CG194+CG195+CG196","v":0},{"$f":"SQRT((CH194^2)+(CH195^2)+(CH196^2))","v":19.05255888325765},{"$f":"CI194+CI195+CI196","v":27},{"$f":"SQRT((CJ194^2)+(CJ195^2)+(CJ196^2))","v":27.586228448267445}]
[null,"More than 30.0 percent",{"$f":"C197+C198+C199+C200","v":0},{"$f":"SQRT((D197^2)+(D198^2)+(D199^2)+(D200^2))","v":22},{"$f":"E197+E198+E199+E200","v":0},{"$f":"SQRT((F197^2)+(F198^2)+(F199^2)+(F200^2))","v":22},{"$f":"G197+G198+G199+G200","v":0},{"$f":"SQRT((H197^2)+(H198^2)+(H199^2)+(H200^2))","v":22},{"$f":"I197+I198+I199+I200","v":231},{"$f":"SQRT((J197^2)+(J198^2)+(J199^2)+(J200^2))","v":81.178814970409618},{"$f":"K197+K198+K199+K200","v":0},{"$f":"SQRT((L197^2)+(L198^2)+(L199^2)+(L200^2))","v":22},{"$f":"M197+M198+M199+M200","v":14},{"$f":"SQRT((N197^2)+(N198^2)+(N199^2)+(N200^2))","v":21.071307505705477},{"$f":"O197+O198+O199+O200","v":0},{"$f":"SQRT((P197^2)+(P198^2)+(P199^2)+(P200^2))","v":22},{"$f":"Q197+Q198+Q199+Q200","v":0},{"$f":"SQRT((R197^2)+(R198^2)+(R199^2)+(R200^2))","v":22},{"$f":"S197+S198+S199+S200","v":36},{"$f":"SQRT((T197^2)+(T198^2)+(T199^2)+(T200^2))","v":24.207436873820409},{"$f":"U197+U198+U199+U200","v":3},{"$f":"SQRT((V197^2)+(V198^2)+(V199^2)+(V200^2))","v":19.467922333931785},{"$f":"W197+W198+W199+W200","v":0},{"$f":"SQRT((X197^2)+(X198^2)+(X199^2)+(X200^2))","v":22},{"$f":"Y197+Y198+Y199+Y200","v":0},{"$f":"SQRT((Z197^2)+(Z198^2)+(Z199^2)+(Z200^2))","v":22},{"$f":"AA197+AA198+AA199+AA200","v":6},{"$f":"SQRT((AB197^2)+(AB198^2)+(AB199^2)+(AB200^2))","v":22},{"$f":"AC197+AC198+AC199+AC200","v":0},{"$f":"SQRT((AD197^2)+(AD198^2)+(AD199^2)+(AD200^2))","v":22},{"$f":"AE197+AE198+AE199+AE200","v":0},{"$f":"SQRT((AF197^2)+(AF198^2)+(AF199^2)+(AF200^2))","v":15.556349186104045},{"$f":"AG197+AG198+AG199+AG200","v":2},{"$f":"SQRT((AH197^2)+(AH198^2)+(AH199^2)+(AH200^2))","v":15.811388300841896},{"$f":"AI197+AI198+AI199+AI200","v":2},{"$f":"SQRT((AJ197^2)+(AJ198^2)+(AJ199^2)+(AJ200^2))","v":19.28730152198591},{"$f":"AK197+AK198+AK199+AK200","v":0},{"$f":"SQRT((AL197^2)+(AL198^2)+(AL199^2)+(AL200^2))","v":22},{"$f":"AM197+AM198+AM199+AM200","v":41},{"$f":"SQRT((AN197^2)+(AN198^2)+(AN199^2)+(AN200^2))","v":52.105661880452111},{"$f":"AO197+AO198+AO199+AO200","v":0},{"$f":"SQRT((AP197^2)+(AP198^2)+(AP199^2)+(AP200^2))","v":22},{"$f":"AQ197+AQ198+AQ199+AQ200","v":0},{"$f":"SQRT((AR197^2)+(AR198^2)+(AR199^2)+(AR200^2))","v":22},{"$f":"AS197+AS198+AS199+AS200","v":0},{"$f":"SQRT((AT197^2)+(AT198^2)+(AT199^2)+(AT200^2))","v":22},{"$f":"AU197+AU198+AU199+AU200","v":0},{"$f":"SQRT((AV197^2)+(AV198^2)+(AV199^2)+(AV200^2))","v":15.556349186104045},{"$f":"AW197+AW198+AW199+AW200","v":77},{"$f":"SQRT((AX197^2)+(AX198^2)+(AX199^2)+(AX200^2))","v":68.205571619919738},{"$f":"AY197+AY198+AY199+AY200","v":0},{"$f":"SQRT((AZ197^2)+(AZ198^2)+(AZ199^2)+(AZ200^2))","v":22},{"$f":"BA197+BA198+BA199+BA200","v":0},{"$f":"SQRT((BB197^2)+(BB198^2)+(BB199^2)+(BB200^2))","v":22},{"$f":"BC197+BC198+BC199+BC200","v":0},{"$f":"SQRT((BD197^2)+(BD198^2)+(BD199^2)+(BD200^2))","v":22},{"$f":"BE197+BE198+BE199+BE200","v":0},{"$f":"SQRT((BF197^2)+(BF198^2)+(BF199^2)+(BF200^2))","v":15.556349186104045},{"$f":"BG197+BG198+BG199+BG200","v":0},{"$f":"SQRT((BH197^2)+(BH198^2)+(BH199^2)+(BH200^2))","v":22},{"$f":"BI197+BI198+BI199+BI200","v":0},{"$f":"SQRT((BJ197^2)+(BJ198^2)+(BJ199^2)+(BJ200^2))","v":15.556349186104045},{"$f":"BK197+BK198+BK199+BK200","v":0},{"$f":"SQRT((BL197^2)+(BL198^2)+(BL199^2)+(BL200^2))","v":22},{"$f":"BM197+BM198+BM199+BM200","v":10},{"$f":"SQRT((BN197^2)+(BN198^2)+(BN199^2)+(BN200^2))","v":23.643180835073778},{"$f":"BO197+BO198+BO199+BO200","v":0},{"$f":"SQRT((BP197^2)+(BP198^2)+(BP199^2)+(BP200^2))","v":22},{"$f":"BQ197+BQ198+BQ199+BQ200","v":0},{"$f":"SQRT((BR197^2)+(BR198^2)+(BR199^2)+(BR200^2))","v":22},{"$f":"BS197+BS198+BS199+BS200","v":0},{"$f":"SQRT((BT197^2)+(BT198^2)+(BT199^2)+(BT200^2))","v":22},{"$f":"BU197+BU198+BU199+BU200","v":0},{"$f":"SQRT((BV197^2)+(BV198^2)+(BV199^2)+(BV200^2))","v":22},{"$f":"BW197+BW198+BW199+BW200","v":0},{"$f":"SQRT((BX197^2)+(BX198^2)+(BX199^2)+(BX200^2))","v":22},{"$f":"BY197+BY198+BY199+BY200","v":2},{"$f":"SQRT((BZ197^2)+(BZ198^2)+(BZ199^2)+(BZ200^2))","v":19.697715603592208},{"$f":"CA197+CA198+CA199+CA200","v":0},{"$f":"SQRT((CB197^2)+(CB198^2)+(CB199^2)+(CB200^2))","v":22},{"$f":"CC197+CC198+CC199+CC200","v":0},{"$f":"SQRT((CD197^2)+(CD198^2)+(CD199^2)+(CD200^2))","v":15.556349186104045},{"$f":"CE197+CE198+CE199+CE200","v":0},{"$f":"SQRT((CF197^2)+(CF198^2)+(CF199^2)+(CF200^2))","v":22},{"$f":"CG197+CG198+CG199+CG200","v":0},{"$f":"SQRT((CH197^2)+(CH198^2)+(CH199^2)+(CH200^2))","v":22},{"$f":"CI197+CI198+CI199+CI200","v":40},{"$f":"SQRT((CJ197^2)+(CJ198^2)+(CJ199^2)+(CJ200^2))","v":39.962482405376171}]
[null,"Less Than 35% of HH Income",{"$f":"C194+C195+C196+C197","v":0},{"$f":"SQRT((D194^2)+(D195^2)+(D196^2)+(D197^2))","v":22},{"$f":"E194+E195+E196+E197","v":0},{"$f":"SQRT((F194^2)+(F195^2)+(F196^2)+(F197^2))","v":22},{"$f":"G194+G195+G196+G197","v":0},{"$f":"SQRT((H194^2)+(H195^2)+(H196^2)+(H197^2))","v":22},{"$f":"I194+I195+I196+I197","v":325},{"$f":"SQRT((J194^2)+(J195^2)+(J196^2)+(J197^2))","v":109.69503179269333},{"$f":"K194+K195+K196+K197","v":0},{"$f":"SQRT((L194^2)+(L195^2)+(L196^2)+(L197^2))","v":22},{"$f":"M194+M195+M196+M197","v":10},{"$f":"SQRT((N194^2)+(N195^2)+(N196^2)+(N197^2))","v":19.467922333931785},{"$f":"O194+O195+O196+O197","v":0},{"$f":"SQRT((P194^2)+(P195^2)+(P196^2)+(P197^2))","v":22},{"$f":"Q194+Q195+Q196+Q197","v":2},{"$f":"SQRT((R194^2)+(R195^2)+(R196^2)+(R197^2))","v":19.697715603592208},{"$f":"S194+S195+S196+S197","v":19},{"$f":"SQRT((T194^2)+(T195^2)+(T196^2)+(T197^2))","v":19.131126469708992},{"$f":"U194+U195+U196+U197","v":0},{"$f":"SQRT((V194^2)+(V195^2)+(V196^2)+(V197^2))","v":22},{"$f":"W194+W195+W196+W197","v":0},{"$f":"SQRT((X194^2)+(X195^2)+(X196^2)+(X197^2))","v":22},{"$f":"Y194+Y195+Y196+Y197","v":0},{"$f":"SQRT((Z194^2)+(Z195^2)+(Z196^2)+(Z197^2))","v":22},{"$f":"AA194+AA195+AA196+AA197","v":0},{"$f":"SQRT((AB194^2)+(AB195^2)+(AB196^2)+(AB197^2))","v":22},{"$f":"AC194+AC195+AC196+AC197","v":0},{"$f":"SQRT((AD194^2)+(AD195^2)+(AD196^2)+(AD197^2))","v":22},{"$f":"AE194+AE195+AE196+AE197","v":0},{"$f":"SQRT((AF194^2)+(AF195^2)+(AF196^2)+(AF197^2))","v":22},{"$f":"AG194+AG195+AG196+AG197","v":2},{"$f":"SQRT((AH194^2)+(AH195^2)+(AH196^2)+(AH197^2))","v":15.811388300841896},{"$f":"AI194+AI195+AI196+AI197","v":10},{"$f":"SQRT((AJ194^2)+(AJ195^2)+(AJ196^2)+(AJ197^2))","v":14.212670403551895},{"$f":"AK194+AK195+AK196+AK197","v":0},{"$f":"SQRT((AL194^2)+(AL195^2)+(AL196^2)+(AL197^2))","v":22},{"$f":"AM194+AM195+AM196+AM197","v":58},{"$f":"SQRT((AN194^2)+(AN195^2)+(AN196^2)+(AN197^2))","v":48.774993593028796},{"$f":"AO194+AO195+AO196+AO197","v":0},{"$f":"SQRT((AP194^2)+(AP195^2)+(AP196^2)+(AP197^2))","v":22},{"$f":"AQ194+AQ195+AQ196+AQ197","v":0},{"$f":"SQRT((AR194^2)+(AR195^2)+(AR196^2)+(AR197^2))","v":22},{"$f":"AS194+AS195+AS196+AS197","v":0},{"$f":"SQRT((AT194^2)+(AT195^2)+(AT196^2)+(AT197^2))","v":22},{"$f":"AU194+AU195+AU196+AU197","v":0},{"$f":"SQRT((AV194^2)+(AV195^2)+(AV196^2)+(AV197^2))","v":22},{"$f":"AW194+AW195+AW196+AW197","v":67},{"$f":"SQRT((AX194^2)+(AX195^2)+(AX196^2)+(AX197^2))","v":63.773035054010094},{"$f":"AY194+AY195+AY196+AY197","v":0},{"$f":"SQRT((AZ194^2)+(AZ195^2)+(AZ196^2)+(AZ197^2))","v":22},{"$f":"BA194+BA195+BA196+BA197","v":0},{"$f":"SQRT((BB194^2)+(BB195^2)+(BB196^2)+(BB197^2))","v":22},{"$f":"BC194+BC195+BC196+BC197","v":0},{"$f":"SQRT((BD194^2)+(BD195^2)+(BD196^2)+(BD197^2))","v":22},{"$f":"BE194+BE195+BE196+BE197","v":0},{"$f":"SQRT((BF194^2)+(BF195^2)+(BF196^2)+(BF197^2))","v":22},{"$f":"BG194+BG195+BG196+BG197","v":0},{"$f":"SQRT((BH194^2)+(BH195^2)+(BH196^2)+(BH197^2))","v":22},{"$f":"BI194+BI195+BI196+BI197","v":0},{"$f":"SQRT((BJ194^2)+(BJ195^2)+(BJ196^2)+(BJ197^2))","v":22},{"$f":"BK194+BK195+BK196+BK197","v":0},{"$f":"SQRT((BL194^2)+(BL195^2)+(BL196^2)+(BL197^2))","v":22},{"$f":"BM194+BM195+BM196+BM197","v":35},{"$f":"SQRT((BN194^2)+(BN195^2)+(BN196^2)+(BN197^2))","v":33.090784215548595},{"$f":"BO194+BO195+BO196+BO197","v":1},{"$f":"SQRT((BP194^2)+(BP195^2)+(BP196^2)+(BP197^2))","v":19.28730152198591},{"$f":"BQ194+BQ195+BQ196+BQ197","v":0},{"$f":"SQRT((BR194^2)+(BR195^2)+(BR196^2)+(BR197^2))","v":22},{"$f":"BS194+BS195+BS196+BS197","v":0},{"$f":"SQRT((BT194^2)+(BT195^2)+(BT196^2)+(BT197^2))","v":22},{"$f":"BU194+BU195+BU196+BU197","v":0},{"$f":"SQRT((BV194^2)+(BV195^2)+(BV196^2)+(BV197^2))","v":22},{"$f":"BW194+BW195+BW196+BW197","v":8},{"$f":"SQRT((BX194^2)+(BX195^2)+(BX196^2)+(BX197^2))","v":18.220867158288598},{"$f":"BY194+BY195+BY196+BY197","v":37},{"$f":"SQRT((BZ194^2)+(BZ195^2)+(BZ196^2)+(BZ197^2))","v":32.557641192199412},{"$f":"CA194+CA195+CA196+CA197","v":0},{"$f":"SQRT((CB194^2)+(CB195^2)+(CB196^2)+(CB197^2))","v":22},{"$f":"CC194+CC195+CC196+CC197","v":0},{"$f":"SQRT((CD194^2)+(CD195^2)+(CD196^2)+(CD197^2))","v":22},{"$f":"CE194+CE195+CE196+CE197","v":0},{"$f":"SQRT((CF194^2)+(CF195^2)+(CF196^2)+(CF197^2))","v":22},{"$f":"CG194+CG195+CG196+CG197","v":0},{"$f":"SQRT((CH194^2)+(CH195^2)+(CH196^2)+(CH197^2))","v":22},{"$f":"CI194+CI195+CI196+CI197","v":44},{"$f":"SQRT((CJ194^2)+(CJ195^2)+(CJ196^2)+(CJ197^2))","v":37.907782842049734}]
[null,"35.0 percent or more",{"$f":"C198+C199+C200","v":0},{"$f":"SQRT((D198^2)+(D199^2)+(D200^2))","v":19.05255888325765},{"$f":"E198+E199+E200","v":0},{"$f":"SQRT((F198^2)+(F199^2)+(F200^2))","v":19.05255888325765},{"$f":"G198+G199+G200","v":0},{"$f":"SQRT((H198^2)+(H199^2)+(H200^2))","v":19.05255888325765},{"$f":"I198+I199+I200","v":122},{"$f":"SQRT((J198^2)+(J199^2)+(J200^2))","v":56.797887284651708},{"$f":"K198+K199+K200","v":0},{"$f":"SQRT((L198^2)+(L199^2)+(L200^2))","v":19.05255888325765},{"$f":"M198+M199+M200","v":6},{"$f":"SQRT((N198^2)+(N199^2)+(N200^2))","v":17.972200755611428},{"$f":"O198+O199+O200","v":0},{"$f":"SQRT((P198^2)+(P199^2)+(P200^2))","v":19.05255888325765},{"$f":"Q198+Q199+Q200","v":0},{"$f":"SQRT((R198^2)+(R199^2)+(R200^2))","v":19.05255888325765},{"$f":"S198+S199+S200","v":30},{"$f":"SQRT((T198^2)+(T199^2)+(T200^2))","v":22.472205054244231},{"$f":"U198+U199+U200","v":3},{"$f":"SQRT((V198^2)+(V199^2)+(V200^2))","v":16.06237840420901},{"$f":"W198+W199+W200","v":0},{"$f":"SQRT((X198^2)+(X199^2)+(X200^2))","v":19.05255888325765},{"$f":"Y198+Y199+Y200","v":0},{"$f":"SQRT((Z198^2)+(Z199^2)+(Z200^2))","v":19.05255888325765},{"$f":"AA198+AA199+AA200","v":6},{"$f":"SQRT((AB198^2)+(AB199^2)+(AB200^2))","v":19.05255888325765},{"$f":"AC198+AC199+AC200","v":0},{"$f":"SQRT((AD198^2)+(AD199^2)+(AD200^2))","v":19.05255888325765},{"$f":"AE198+AE199+AE200","v":0},{"$f":"SQRT((AF198^2)+(AF199^2)+(AF200^2))","v":11},{"$f":"AG198+AG199+AG200","v":1},{"$f":"SQRT((AH198^2)+(AH199^2)+(AH200^2))","v":15.684387141358123},{"$f":"AI198+AI199+AI200","v":0},{"$f":"SQRT((AJ198^2)+(AJ199^2)+(AJ200^2))","v":19.05255888325765},{"$f":"AK198+AK199+AK200","v":0},{"$f":"SQRT((AL198^2)+(AL199^2)+(AL200^2))","v":19.05255888325765},{"$f":"AM198+AM199+AM200","v":32},{"$f":"SQRT((AN198^2)+(AN199^2)+(AN200^2))","v":50.457903246171455},{"$f":"AO198+AO199+AO200","v":0},{"$f":"SQRT((AP198^2)+(AP199^2)+(AP200^2))","v":19.05255888325765},{"$f":"AQ198+AQ199+AQ200","v":0},{"$f":"SQRT((AR198^2)+(AR199^2)+(AR200^2))","v":19.05255888325765},{"$f":"AS198+AS199+AS200","v":0},{"$f":"SQRT((AT198^2)+(AT199^2)+(AT200^2))","v":19.05255888325765},{"$f":"AU198+AU199+AU200","v":0},{"$f":"SQRT((AV198^2)+(AV199^2)+(AV200^2))","v":11},{"$f":"AW198+AW199+AW200","v":77},{"$f":"SQRT((AX198^2)+(AX199^2)+(AX200^2))","v":67.31270311018568},{"$f":"AY198+AY199+AY200","v":0},{"$f":"SQRT((AZ198^2)+(AZ199^2)+(AZ200^2))","v":19.05255888325765},{"$f":"BA198+BA199+BA200","v":0},{"$f":"SQRT((BB198^2)+(BB199^2)+(BB200^2))","v":19.05255888325765},{"$f":"BC198+BC199+BC200","v":0},{"$f":"SQRT((BD198^2)+(BD199^2)+(BD200^2))","v":19.05255888325765},{"$f":"BE198+BE199+BE200","v":0},{"$f":"SQRT((BF198^2)+(BF199^2)+(BF200^2))","v":11},{"$f":"BG198+BG199+BG200","v":0},{"$f":"SQRT((BH198^2)+(BH199^2)+(BH200^2))","v":19.05255888325765},{"$f":"BI198+BI199+BI200","v":0},{"$f":"SQRT((BJ198^2)+(BJ199^2)+(BJ200^2))","v":11},{"$f":"BK198+BK199+BK200","v":0},{"$f":"SQRT((BL198^2)+(BL199^2)+(BL200^2))","v":19.05255888325765},{"$f":"BM198+BM199+BM200","v":10},{"$f":"SQRT((BN198^2)+(BN199^2)+(BN200^2))","v":20.928449536456348},{"$f":"BO198+BO199+BO200","v":0},{"$f":"SQRT((BP198^2)+(BP199^2)+(BP200^2))","v":19.05255888325765},{"$f":"BQ198+BQ199+BQ200","v":0},{"$f":"SQRT((BR198^2)+(BR199^2)+(BR200^2))","v":19.05255888325765},{"$f":"BS198+BS199+BS200","v":0},{"$f":"SQRT((BT198^2)+(BT199^2)+(BT200^2))","v":19.05255888325765},{"$f":"BU198+BU199+BU200","v":0},{"$f":"SQRT((BV198^2)+(BV199^2)+(BV200^2))","v":19.05255888325765},{"$f":"BW198+BW199+BW200","v":0},{"$f":"SQRT((BX198^2)+(BX199^2)+(BX200^2))","v":19.05255888325765},{"$f":"BY198+BY199+BY200","v":2},{"$f":"SQRT((BZ198^2)+(BZ199^2)+(BZ200^2))","v":16.340134638368191},{"$f":"CA198+CA199+CA200","v":0},{"$f":"SQRT((CB198^2)+(CB199^2)+(CB200^2))","v":19.05255888325765},{"$f":"CC198+CC199+CC200","v":0},{"$f":"SQRT((CD198^2)+(CD199^2)+(CD200^2))","v":11},{"$f":"CE198+CE199+CE200","v":0},{"$f":"SQRT((CF198^2)+(CF199^2)+(CF200^2))","v":19.05255888325765},{"$f":"CG198+CG199+CG200","v":0},{"$f":"SQRT((CH198^2)+(CH199^2)+(CH200^2))","v":19.05255888325765},{"$f":"CI198+CI199+CI200","v":23},{"$f":"SQRT((CJ198^2)+(CJ199^2)+(CJ200^2))","v":30.347981810987037}]
[null,"50.0 percent or more",{"$f":"C200","v":0},11,0,11,0,11,44,33,0,11,0,11,0,11,0,11,15,18,0,11,0,11,0,11,0,11,0,11,0,11,0,11,0,11,0,11,0,11,0,11,0,11,0,11,0,11,0,11,0,11,0,11,0,11,0,11,0,11,0,11,0,11,0,11,{"$f":"BO200","v":0},11,0,11,0,11,0,11,0,11,0,11,0,11,0,11,0,11,0,11,2,4]
[null,"Not Computed",0,11,0,11,0,11,0,15,0,11,0,11,0,11,2,4,11,9,6,9,0,11,0,11,21,17,0,11,0,11,0,11,2,3,0,11,0,11,0,11,0,11,0,11,0,11,0,11,0,11,0,11,0,11,0,11,0,11,0,11,0,11,3,6,0,11,0,11,0,11,0,11,0,11,3,4,0,11,0,11,0,11,1,3,0,11]
[null,"$35,000 to $49,999:",0,11,0,11,0,11,196,95,0,11,21,19,0,11,3,4,55,27,8,10,0,11,0,11,12,14,4,6,3,6,1,2,6,10,0,11,48,38,0,11,0,11,0,11,0,11,32,45,0,11,0,11,0,11,0,11,0,11,0,11,0,11,3,4,5,6,0,11,0,11,8,9,4,5,5,7,0,11,0,11,0,11,0,11,58,40]
[null,"Less than 30.0 percent",{"$f":"C203+C204+C205","v":0},{"$f":"SQRT((D203^2)+(D204^2)+(D205^2))","v":19.05255888325765},{"$f":"E203+E204+E205","v":0},{"$f":"SQRT((F203^2)+(F204^2)+(F205^2))","v":19.05255888325765},{"$f":"G203+G204+G205","v":0},{"$f":"SQRT((H203^2)+(H204^2)+(H205^2))","v":19.05255888325765},{"$f":"I203+I204+I205","v":180},{"$f":"SQRT((J203^2)+(J204^2)+(J205^2))","v":88.232647019116456},{"$f":"K203+K204+K205","v":0},{"$f":"SQRT((L203^2)+(L204^2)+(L205^2))","v":19.05255888325765},{"$f":"M203+M204+M205","v":0},{"$f":"SQRT((N203^2)+(N204^2)+(N205^2))","v":19.05255888325765},{"$f":"O203+O204+O205","v":0},{"$f":"SQRT((P203^2)+(P204^2)+(P205^2))","v":19.05255888325765},{"$f":"Q203+Q204+Q205","v":0},{"$f":"SQRT((R203^2)+(R204^2)+(R205^2))","v":19.05255888325765},{"$f":"S203+S204+S205","v":52},{"$f":"SQRT((T203^2)+(T204^2)+(T205^2))","v":25.787593916455254},{"$f":"U203+U204+U205","v":8},{"$f":"SQRT((V203^2)+(V204^2)+(V205^2))","v":18.493242008906929},{"$f":"W203+W204+W205","v":0},{"$f":"SQRT((X203^2)+(X204^2)+(X205^2))","v":19.05255888325765},{"$f":"Y203+Y204+Y205","v":0},{"$f":"SQRT((Z203^2)+(Z204^2)+(Z205^2))","v":19.05255888325765},{"$f":"AA203+AA204+AA205","v":12},{"$f":"SQRT((AB203^2)+(AB204^2)+(AB205^2))","v":20.928449536456348},{"$f":"AC203+AC204+AC205","v":4},{"$f":"SQRT((AD203^2)+(AD204^2)+(AD205^2))","v":16.673332000533065},{"$f":"AE203+AE204+AE205","v":3},{"$f":"SQRT((AF203^2)+(AF204^2)+(AF205^2))","v":16.673332000533065},{"$f":"AG203+AG204+AG205","v":1},{"$f":"SQRT((AH203^2)+(AH204^2)+(AH205^2))","v":15.684387141358123},{"$f":"AI203+AI204+AI205","v":6},{"$f":"SQRT((AJ203^2)+(AJ204^2)+(AJ205^2))","v":18.493242008906929},{"$f":"AK203+AK204+AK205","v":0},{"$f":"SQRT((AL203^2)+(AL204^2)+(AL205^2))","v":19.05255888325765},{"$f":"AM203+AM204+AM205","v":48},{"$f":"SQRT((AN203^2)+(AN204^2)+(AN205^2))","v":39.824615503479755},{"$f":"AO203+AO204+AO205","v":0},{"$f":"SQRT((AP203^2)+(AP204^2)+(AP205^2))","v":19.05255888325765},{"$f":"AQ203+AQ204+AQ205","v":0},{"$f":"SQRT((AR203^2)+(AR204^2)+(AR205^2))","v":19.05255888325765},{"$f":"AS203+AS204+AS205","v":0},{"$f":"SQRT((AT203^2)+(AT204^2)+(AT205^2))","v":19.05255888325765},{"$f":"AU203+AU204+AU205","v":0},{"$f":"SQRT((AV203^2)+(AV204^2)+(AV205^2))","v":19.05255888325765},{"$f":"AW203+AW204+AW205","v":2},{"$f":"SQRT((AX203^2)+(AX204^2)+(AX205^2))","v":16.340134638368191},{"$f":"AY203+AY204+AY205","v":0},{"$f":"SQRT((AZ203^2)+(AZ204^2)+(AZ205^2))","v":19.05255888325765},{"$f":"BA203+BA204+BA205","v":0},{"$f":"SQRT((BB203^2)+(BB204^2)+(BB205^2))","v":19.05255888325765},{"$f":"BC203+BC204+BC205","v":0},{"$f":"SQRT((BD203^2)+(BD204^2)+(BD205^2))","v":19.05255888325765},{"$f":"BE203+BE204+BE205","v":0},{"$f":"SQRT((BF203^2)+(BF204^2)+(BF205^2))","v":19.05255888325765},{"$f":"BG203+BG204+BG205","v":0},{"$f":"SQRT((BH203^2)+(BH204^2)+(BH205^2))","v":19.05255888325765},{"$f":"BI203+BI204+BI205","v":0},{"$f":"SQRT((BJ203^2)+(BJ204^2)+(BJ205^2))","v":19.05255888325765},{"$f":"BK203+BK204+BK205","v":0},{"$f":"SQRT((BL203^2)+(BL204^2)+(BL205^2))","v":19.05255888325765},{"$f":"BM203+BM204+BM205","v":3},{"$f":"SQRT((BN203^2)+(BN204^2)+(BN205^2))","v":16.06237840420901},{"$f":"BO203+BO204+BO205","v":2},{"$f":"SQRT((BP203^2)+(BP204^2)+(BP205^2))","v":15.842979517754859},{"$f":"BQ203+BQ204+BQ205","v":0},{"$f":"SQRT((BR203^2)+(BR204^2)+(BR205^2))","v":19.05255888325765},{"$f":"BS203+BS204+BS205","v":0},{"$f":"SQRT((BT203^2)+(BT204^2)+(BT205^2))","v":19.05255888325765},{"$f":"BU203+BU204+BU205","v":5},{"$f":"SQRT((BV203^2)+(BV204^2)+(BV205^2))","v":17.058722109231979},{"$f":"BW203+BW204+BW205","v":0},{"$f":"SQRT((BX203^2)+(BX204^2)+(BX205^2))","v":19.05255888325765},{"$f":"BY203+BY204+BY205","v":5},{"$f":"SQRT((BZ203^2)+(BZ204^2)+(BZ205^2))","v":17.058722109231979},{"$f":"CA203+CA204+CA205","v":0},{"$f":"SQRT((CB203^2)+(CB204^2)+(CB205^2))","v":19.05255888325765},{"$f":"CC203+CC204+CC205","v":0},{"$f":"SQRT((CD203^2)+(CD204^2)+(CD205^2))","v":19.05255888325765},{"$f":"CE203+CE204+CE205","v":0},{"$f":"SQRT((CF203^2)+(CF204^2)+(CF205^2))","v":19.05255888325765},{"$f":"CG203+CG204+CG205","v":0},{"$f":"SQRT((CH203^2)+(CH204^2)+(CH205^2))","v":19.05255888325765},{"$f":"CI203+CI204+CI205","v":52},{"$f":"SQRT((CJ203^2)+(CJ204^2)+(CJ205^2))","v":39.560080889704963}]
[null,"More than 30.0 percent",{"$f":"C206+C207+C208+C209","v":0},{"$f":"SQRT((D206^2)+(D207^2)+(D208^2)+(D209^2))","v":22},{"$f":"E206+E207+E208+E209","v":0},{"$f":"SQRT((F206^2)+(F207^2)+(F208^2)+(F209^2))","v":22},{"$f":"G206+G207+G208+G209","v":0},{"$f":"SQRT((H206^2)+(H207^2)+(H208^2)+(H209^2))","v":22},{"$f":"I206+I207+I208+I209","v":0},{"$f":"SQRT((J206^2)+(J207^2)+(J208^2)+(J209^2))","v":30},{"$f":"K206+K207+K208+K209","v":0},{"$f":"SQRT((L206^2)+(L207^2)+(L208^2)+(L209^2))","v":22},{"$f":"M206+M207+M208+M209","v":18},{"$f":"SQRT((N206^2)+(N207^2)+(N208^2)+(N209^2))","v":26.90724809414742},{"$f":"O206+O207+O208+O209","v":0},{"$f":"SQRT((P206^2)+(P207^2)+(P208^2)+(P209^2))","v":22},{"$f":"Q206+Q207+Q208+Q209","v":3},{"$f":"SQRT((R206^2)+(R207^2)+(R208^2)+(R209^2))","v":19.467922333931785},{"$f":"S206+S207+S208+S209","v":3},{"$f":"SQRT((T206^2)+(T207^2)+(T208^2)+(T209^2))","v":19.974984355438178},{"$f":"U206+U207+U208+U209","v":0},{"$f":"SQRT((V206^2)+(V207^2)+(V208^2)+(V209^2))","v":22},{"$f":"W206+W207+W208+W209","v":0},{"$f":"SQRT((X206^2)+(X207^2)+(X208^2)+(X209^2))","v":22},{"$f":"Y206+Y207+Y208+Y209","v":0},{"$f":"SQRT((Z206^2)+(Z207^2)+(Z208^2)+(Z209^2))","v":22},{"$f":"AA206+AA207+AA208+AA209","v":0},{"$f":"SQRT((AB206^2)+(AB207^2)+(AB208^2)+(AB209^2))","v":22},{"$f":"AC206+AC207+AC208+AC209","v":0},{"$f":"SQRT((AD206^2)+(AD207^2)+(AD208^2)+(AD209^2))","v":22},{"$f":"AE206+AE207+AE208+AE209","v":0},{"$f":"SQRT((AF206^2)+(AF207^2)+(AF208^2)+(AF209^2))","v":15.556349186104045},{"$f":"AG206+AG207+AG208+AG209","v":0},{"$f":"SQRT((AH206^2)+(AH207^2)+(AH208^2)+(AH209^2))","v":22},{"$f":"AI206+AI207+AI208+AI209","v":0},{"$f":"SQRT((AJ206^2)+(AJ207^2)+(AJ208^2)+(AJ209^2))","v":22},{"$f":"AK206+AK207+AK208+AK209","v":0},{"$f":"SQRT((AL206^2)+(AL207^2)+(AL208^2)+(AL209^2))","v":22},{"$f":"AM206+AM207+AM208+AM209","v":0},{"$f":"SQRT((AN206^2)+(AN207^2)+(AN208^2)+(AN209^2))","v":22},{"$f":"AO206+AO207+AO208+AO209","v":0},{"$f":"SQRT((AP206^2)+(AP207^2)+(AP208^2)+(AP209^2))","v":22},{"$f":"AQ206+AQ207+AQ208+AQ209","v":0},{"$f":"SQRT((AR206^2)+(AR207^2)+(AR208^2)+(AR209^2))","v":22},{"$f":"AS206+AS207+AS208+AS209","v":0},{"$f":"SQRT((AT206^2)+(AT207^2)+(AT208^2)+(AT209^2))","v":22},{"$f":"AU206+AU207+AU208+AU209","v":0},{"$f":"SQRT((AV206^2)+(AV207^2)+(AV208^2)+(AV209^2))","v":15.556349186104045},{"$f":"AW206+AW207+AW208+AW209","v":30},{"$f":"SQRT((AX206^2)+(AX207^2)+(AX208^2)+(AX209^2))","v":48.867166891482462},{"$f":"AY206+AY207+AY208+AY209","v":0},{"$f":"SQRT((AZ206^2)+(AZ207^2)+(AZ208^2)+(AZ209^2))","v":22},{"$f":"BA206+BA207+BA208+BA209","v":0},{"$f":"SQRT((BB206^2)+(BB207^2)+(BB208^2)+(BB209^2))","v":22},{"$f":"BC206+BC207+BC208+BC209","v":0},{"$f":"SQRT((BD206^2)+(BD207^2)+(BD208^2)+(BD209^2))","v":22},{"$f":"BE206+BE207+BE208+BE209","v":0},{"$f":"SQRT((BF206^2)+(BF207^2)+(BF208^2)+(BF209^2))","v":15.556349186104045},{"$f":"BG206+BG207+BG208+BG209","v":0},{"$f":"SQRT((BH206^2)+(BH207^2)+(BH208^2)+(BH209^2))","v":22},{"$f":"BI206+BI207+BI208+BI209","v":0},{"$f":"SQRT((BJ206^2)+(BJ207^2)+(BJ208^2)+(BJ209^2))","v":15.556349186104045},{"$f":"BK206+BK207+BK208+BK209","v":0},{"$f":"SQRT((BL206^2)+(BL207^2)+(BL208^2)+(BL209^2))","v":22},{"$f":"BM206+BM207+BM208+BM209","v":0},{"$f":"SQRT((BN206^2)+(BN207^2)+(BN208^2)+(BN209^2))","v":22},{"$f":"BO206+BO207+BO208+BO209","v":3},{"$f":"SQRT((BP206^2)+(BP207^2)+(BP208^2)+(BP209^2))","v":19.697715603592208},{"$f":"BQ206+BQ207+BQ208+BQ209","v":0},{"$f":"SQRT((BR206^2)+(BR207^2)+(BR208^2)+(BR209^2))","v":22},{"$f":"BS206+BS207+BS208+BS209","v":0},{"$f":"SQRT((BT206^2)+(BT207^2)+(BT208^2)+(BT209^2))","v":22},{"$f":"BU206+BU207+BU208+BU209","v":1},{"$f":"SQRT((BV206^2)+(BV207^2)+(BV208^2)+(BV209^2))","v":19.28730152198591},{"$f":"BW206+BW207+BW208+BW209","v":1},{"$f":"SQRT((BX206^2)+(BX207^2)+(BX208^2)+(BX209^2))","v":19.157244060668017},{"$f":"BY206+BY207+BY208+BY209","v":0},{"$f":"SQRT((BZ206^2)+(BZ207^2)+(BZ208^2)+(BZ209^2))","v":22},{"$f":"CA206+CA207+CA208+CA209","v":0},{"$f":"SQRT((CB206^2)+(CB207^2)+(CB208^2)+(CB209^2))","v":22},{"$f":"CC206+CC207+CC208+CC209","v":0},{"$f":"SQRT((CD206^2)+(CD207^2)+(CD208^2)+(CD209^2))","v":15.556349186104045},{"$f":"CE206+CE207+CE208+CE209","v":0},{"$f":"SQRT((CF206^2)+(CF207^2)+(CF208^2)+(CF209^2))","v":22},{"$f":"CG206+CG207+CG208+CG209","v":0},{"$f":"SQRT((CH206^2)+(CH207^2)+(CH208^2)+(CH209^2))","v":22},{"$f":"CI206+CI207+CI208+CI209","v":6},{"$f":"SQRT((CJ206^2)+(CJ207^2)+(CJ208^2)+(CJ209^2))","v":20.663978319771825}]
[null,"Less Than 35% of HH Income",{"$f":"C203+C204+C205+C206","v":0},{"$f":"SQRT((D203^2)+(D204^2)+(D205^2)+(D206^2))","v":22},{"$f":"E203+E204+E205+E206","v":0},{"$f":"SQRT((F203^2)+(F204^2)+(F205^2)+(F206^2))","v":22},{"$f":"G203+G204+G205+G206","v":0},{"$f":"SQRT((H203^2)+(H204^2)+(H205^2)+(H206^2))","v":22},{"$f":"I203+I204+I205+I206","v":180},{"$f":"SQRT((J203^2)+(J204^2)+(J205^2)+(J206^2))","v":89.498603341057787},{"$f":"K203+K204+K205+K206","v":0},{"$f":"SQRT((L203^2)+(L204^2)+(L205^2)+(L206^2))","v":22},{"$f":"M203+M204+M205+M206","v":18},{"$f":"SQRT((N203^2)+(N204^2)+(N205^2)+(N206^2))","v":26.90724809414742},{"$f":"O203+O204+O205+O206","v":0},{"$f":"SQRT((P203^2)+(P204^2)+(P205^2)+(P206^2))","v":22},{"$f":"Q203+Q204+Q205+Q206","v":0},{"$f":"SQRT((R203^2)+(R204^2)+(R205^2)+(R206^2))","v":22},{"$f":"S203+S204+S205+S206","v":55},{"$f":"SQRT((T203^2)+(T204^2)+(T205^2)+(T206^2))","v":26.476404589747453},{"$f":"U203+U204+U205+U206","v":8},{"$f":"SQRT((V203^2)+(V204^2)+(V205^2)+(V206^2))","v":21.517434791350013},{"$f":"W203+W204+W205+W206","v":0},{"$f":"SQRT((X203^2)+(X204^2)+(X205^2)+(X206^2))","v":22},{"$f":"Y203+Y204+Y205+Y206","v":0},{"$f":"SQRT((Z203^2)+(Z204^2)+(Z205^2)+(Z206^2))","v":22},{"$f":"AA203+AA204+AA205+AA206","v":12},{"$f":"SQRT((AB203^2)+(AB204^2)+(AB205^2)+(AB206^2))","v":23.643180835073778},{"$f":"AC203+AC204+AC205+AC206","v":4},{"$f":"SQRT((AD203^2)+(AD204^2)+(AD205^2)+(AD206^2))","v":19.974984355438178},{"$f":"AE203+AE204+AE205+AE206","v":3},{"$f":"SQRT((AF203^2)+(AF204^2)+(AF205^2)+(AF206^2))","v":19.974984355438178},{"$f":"AG203+AG204+AG205+AG206","v":1},{"$f":"SQRT((AH203^2)+(AH204^2)+(AH205^2)+(AH206^2))","v":19.157244060668017},{"$f":"AI203+AI204+AI205+AI206","v":6},{"$f":"SQRT((AJ203^2)+(AJ204^2)+(AJ205^2)+(AJ206^2))","v":21.517434791350013},{"$f":"AK203+AK204+AK205+AK206","v":0},{"$f":"SQRT((AL203^2)+(AL204^2)+(AL205^2)+(AL206^2))","v":22},{"$f":"AM203+AM204+AM205+AM206","v":48},{"$f":"SQRT((AN203^2)+(AN204^2)+(AN205^2)+(AN206^2))","v":41.315856520227193},{"$f":"AO203+AO204+AO205+AO206","v":0},{"$f":"SQRT((AP203^2)+(AP204^2)+(AP205^2)+(AP206^2))","v":22},{"$f":"AQ203+AQ204+AQ205+AQ206","v":0},{"$f":"SQRT((AR203^2)+(AR204^2)+(AR205^2)+(AR206^2))","v":22},{"$f":"AS203+AS204+AS205+AS206","v":0},{"$f":"SQRT((AT203^2)+(AT204^2)+(AT205^2)+(AT206^2))","v":22},{"$f":"AU203+AU204+AU205+AU206","v":0},{"$f":"SQRT((AV203^2)+(AV204^2)+(AV205^2)+(AV206^2))","v":22},{"$f":"AW203+AW204+AW205+AW206","v":32},{"$f":"SQRT((AX203^2)+(AX204^2)+(AX205^2)+(AX206^2))","v":47.874836814343297},{"$f":"AY203+AY204+AY205+AY206","v":0},{"$f":"SQRT((AZ203^2)+(AZ204^2)+(AZ205^2)+(AZ206^2))","v":22},{"$f":"BA203+BA204+BA205+BA206","v":0},{"$f":"SQRT((BB203^2)+(BB204^2)+(BB205^2)+(BB206^2))","v":22},{"$f":"BC203+BC204+BC205+BC206","v":0},{"$f":"SQRT((BD203^2)+(BD204^2)+(BD205^2)+(BD206^2))","v":22},{"$f":"BE203+BE204+BE205+BE206","v":0},{"$f":"SQRT((BF203^2)+(BF204^2)+(BF205^2)+(BF206^2))","v":22},{"$f":"BG203+BG204+BG205+BG206","v":0},{"$f":"SQRT((BH203^2)+(BH204^2)+(BH205^2)+(BH206^2))","v":22},{"$f":"BI203+BI204+BI205+BI206","v":0},{"$f":"SQRT((BJ203^2)+(BJ204^2)+(BJ205^2)+(BJ206^2))","v":22},{"$f":"BK203+BK204+BK205+BK206","v":0},{"$f":"SQRT((BL203^2)+(BL204^2)+(BL205^2)+(BL206^2))","v":22},{"$f":"BM203+BM204+BM205+BM206","v":3},{"$f":"SQRT((BN203^2)+(BN204^2)+(BN205^2)+(BN206^2))","v":19.467922333931785},{"$f":"BO203+BO204+BO205+BO206","v":2},{"$f":"SQRT((BP203^2)+(BP204^2)+(BP205^2)+(BP206^2))","v":19.28730152198591},{"$f":"BQ203+BQ204+BQ205+BQ206","v":0},{"$f":"SQRT((BR203^2)+(BR204^2)+(BR205^2)+(BR206^2))","v":22},{"$f":"BS203+BS204+BS205+BS206","v":0},{"$f":"SQRT((BT203^2)+(BT204^2)+(BT205^2)+(BT206^2))","v":22},{"$f":"BU203+BU204+BU205+BU206","v":6},{"$f":"SQRT((BV203^2)+(BV204^2)+(BV205^2)+(BV206^2))","v":17.320508075688775},{"$f":"BW203+BW204+BW205+BW206","v":1},{"$f":"SQRT((BX203^2)+(BX204^2)+(BX205^2)+(BX206^2))","v":19.157244060668017},{"$f":"BY203+BY204+BY205+BY206","v":5},{"$f":"SQRT((BZ203^2)+(BZ204^2)+(BZ205^2)+(BZ206^2))","v":20.297783130184438},{"$f":"CA203+CA204+CA205+CA206","v":0},{"$f":"SQRT((CB203^2)+(CB204^2)+(CB205^2)+(CB206^2))","v":22},{"$f":"CC203+CC204+CC205+CC206","v":0},{"$f":"SQRT((CD203^2)+(CD204^2)+(CD205^2)+(CD206^2))","v":22},{"$f":"CE203+CE204+CE205+CE206","v":0},{"$f":"SQRT((CF203^2)+(CF204^2)+(CF205^2)+(CF206^2))","v":22},{"$f":"CG203+CG204+CG205+CG206","v":0},{"$f":"SQRT((CH203^2)+(CH204^2)+(CH205^2)+(CH206^2))","v":22},{"$f":"CI203+CI204+CI205+CI206","v":58},{"$f":"SQRT((CJ203^2)+(CJ204^2)+(CJ205^2)+(CJ206^2))","v":40.36087214122113}]
[null,"35.0 percent or more",{"$f":"C207+C208+C209","v":0},{"$f":"SQRT((D207^2)+(D208^2)+(D209^2))","v":19.05255888325765},{"$f":"E207+E208+E209","v":0},{"$f":"SQRT((F207^2)+(F208^2)+(F209^2))","v":19.05255888325765},{"$f":"G207+G208+G209","v":0},{"$f":"SQRT((H207^2)+(H208^2)+(H209^2))","v":19.05255888325765},{"$f":"I207+I208+I209","v":0},{"$f":"SQRT((J207^2)+(J208^2)+(J209^2))","v":25.98076211353316},{"$f":"K207+K208+K209","v":0},{"$f":"SQRT((L207^2)+(L208^2)+(L209^2))","v":19.05255888325765},{"$f":"M207+M208+M209","v":0},{"$f":"SQRT((N207^2)+(N208^2)+(N209^2))","v":19.05255888325765},{"$f":"O207+O208+O209","v":0},{"$f":"SQRT((P207^2)+(P208^2)+(P209^2))","v":19.05255888325765},{"$f":"Q207+Q208+Q209","v":3},{"$f":"SQRT((R207^2)+(R208^2)+(R209^2))","v":16.06237840420901},{"$f":"S207+S208+S209","v":0},{"$f":"SQRT((T207^2)+(T208^2)+(T209^2))","v":19.05255888325765},{"$f":"U207+U208+U209","v":0},{"$f":"SQRT((V207^2)+(V208^2)+(V209^2))","v":19.05255888325765},{"$f":"W207+W208+W209","v":0},{"$f":"SQRT((X207^2)+(X208^2)+(X209^2))","v":19.05255888325765},{"$f":"Y207+Y208+Y209","v":0},{"$f":"SQRT((Z207^2)+(Z208^2)+(Z209^2))","v":19.05255888325765},{"$f":"AA207+AA208+AA209","v":0},{"$f":"SQRT((AB207^2)+(AB208^2)+(AB209^2))","v":19.05255888325765},{"$f":"AC207+AC208+AC209","v":0},{"$f":"SQRT((AD207^2)+(AD208^2)+(AD209^2))","v":19.05255888325765},{"$f":"AE207+AE208+AE209","v":0},{"$f":"SQRT((AF207^2)+(AF208^2)+(AF209^2))","v":11},{"$f":"AG207+AG208+AG209","v":0},{"$f":"SQRT((AH207^2)+(AH208^2)+(AH209^2))","v":19.05255888325765},{"$f":"AI207+AI208+AI209","v":0},{"$f":"SQRT((AJ207^2)+(AJ208^2)+(AJ209^2))","v":19.05255888325765},{"$f":"AK207+AK208+AK209","v":0},{"$f":"SQRT((AL207^2)+(AL208^2)+(AL209^2))","v":19.05255888325765},{"$f":"AM207+AM208+AM209","v":0},{"$f":"SQRT((AN207^2)+(AN208^2)+(AN209^2))","v":19.05255888325765},{"$f":"AO207+AO208+AO209","v":0},{"$f":"SQRT((AP207^2)+(AP208^2)+(AP209^2))","v":19.05255888325765},{"$f":"AQ207+AQ208+AQ209","v":0},{"$f":"SQRT((AR207^2)+(AR208^2)+(AR209^2))","v":19.05255888325765},{"$f":"AS207+AS208+AS209","v":0},{"$f":"SQRT((AT207^2)+(AT208^2)+(AT209^2))","v":19.05255888325765},{"$f":"AU207+AU208+AU209","v":0},{"$f":"SQRT((AV207^2)+(AV208^2)+(AV209^2))","v":11},{"$f":"AW207+AW208+AW209","v":0},{"$f":"SQRT((AX207^2)+(AX208^2)+(AX209^2))","v":19.05255888325765},{"$f":"AY207+AY208+AY209","v":0},{"$f":"SQRT((AZ207^2)+(AZ208^2)+(AZ209^2))","v":19.05255888325765},{"$f":"BA207+BA208+BA209","v":0},{"$f":"SQRT((BB207^2)+(BB208^2)+(BB209^2))","v":19.05255888325765},{"$f":"BC207+BC208+BC209","v":0},{"$f":"SQRT((BD207^2)+(BD208^2)+(BD209^2))","v":19.05255888325765},{"$f":"BE207+BE208+BE209","v":0},{"$f":"SQRT((BF207^2)+(BF208^2)+(BF209^2))","v":11},{"$f":"BG207+BG208+BG209","v":0},{"$f":"SQRT((BH207^2)+(BH208^2)+(BH209^2))","v":19.05255888325765},{"$f":"BI207+BI208+BI209","v":0},{"$f":"SQRT((BJ207^2)+(BJ208^2)+(BJ209^2))","v":11},{"$f":"BK207+BK208+BK209","v":0},{"$f":"SQRT((BL207^2)+(BL208^2)+(BL209^2))","v":19.05255888325765},{"$f":"BM207+BM208+BM209","v":0},{"$f":"SQRT((BN207^2)+(BN208^2)+(BN209^2))","v":19.05255888325765},{"$f":"BO207+BO208+BO209","v":3},{"$f":"SQRT((BP207^2)+(BP208^2)+(BP209^2))","v":16.340134638368191},{"$f":"BQ207+BQ208+BQ209","v":0},{"$f":"SQRT((BR207^2)+(BR208^2)+(BR209^2))","v":19.05255888325765},{"$f":"BS207+BS208+BS209","v":0},{"$f":"SQRT((BT207^2)+(BT208^2)+(BT209^2))","v":19.05255888325765},{"$f":"BU207+BU208+BU209","v":0},{"$f":"SQRT((BV207^2)+(BV208^2)+(BV209^2))","v":19.05255888325765},{"$f":"BW207+BW208+BW209","v":0},{"$f":"SQRT((BX207^2)+(BX208^2)+(BX209^2))","v":19.05255888325765},{"$f":"BY207+BY208+BY209","v":0},{"$f":"SQRT((BZ207^2)+(BZ208^2)+(BZ209^2))","v":19.05255888325765},{"$f":"CA207+CA208+CA209","v":0},{"$f":"SQRT((CB207^2)+(CB208^2)+(CB209^2))","v":19.05255888325765},{"$f":"CC207+CC208+CC209","v":0},{"$f":"SQRT((CD207^2)+(CD208^2)+(CD209^2))","v":11},{"$f":"CE207+CE208+CE209","v":0},{"$f":"SQRT((CF207^2)+(CF208^2)+(CF209^2))","v":19.05255888325765},{"$f":"CG207+CG208+CG209","v":0},{"$f":"SQRT((CH207^2)+(CH208^2)+(CH209^2))","v":19.05255888325765},{"$f":"CI207+CI208+CI209","v":0},{"$f":"SQRT((CJ207^2)+(CJ208^2)+(CJ209^2))","v":19.05255888325765}]
[null,"50.0 percent or more",{"$f":"C209","v":0},{"$f":"D209","v":11},{"$f":"E209","v":0},11,{"$f":"G209","v":0},11,{"$f":"I209","v":0},15,{"$f":"K209","v":0},11,{"$f":"M209","v":0},11,{"$f":"O209","v":0},11,{"$f":"Q209","v":0},11,{"$f":"S209","v":0},11,{"$f":"U209","v":0},11,{"$f":"W209","v":0},11,{"$f":"Y209","v":0},11,{"$f":"AA209","v":0},11,{"$f":"AC209","v":0},11,{"$f":"AE209","v":0},11,{"$f":"AG209","v":0},11,{"$f":"AI209","v":0},11,{"$f":"AK209","v":0},11,{"$f":"AM209","v":0},11,{"$f":"AO209","v":0},11,{"$f":"AQ209","v":0},11,{"$f":"AS209","v":0},11,{"$f":"AU209","v":0},11,{"$f":"AW209","v":0},11,{"$f":"AY209","v":0},11,{"$f":"BA209","v":0},11,{"$f":"BC209","v":0},11,{"$f":"BE209","v":0},11,{"$f":"BG209","v":0},11,{"$f":"BI209","v":0},11,{"$f":"BK209","v":0},11,{"$f":"BM209","v":0},11,{"$f":"BO209","v":0},{"$f":"BP209","v":11},{"$f":"BQ209","v":0},11,{"$f":"BS209","v":0},11,{"$f":"BU209","v":0},11,{"$f":"BW209","v":0},11,{"$f":"BY209","v":0},11,{"$f":"CA209","v":0},11,{"$f":"CC209","v":0},11,{"$f":"CE209","v":0},11,{"$f":"CG209","v":0},11,{"$f":"CI209","v":0},11]
[null,"Not Computed",{"$f":"C210","v":0},11,{"$f":"E210","v":0},11,{"$f":"G210","v":0},11,{"$f":"I210","v":16},18,{"$f":"K210","v":0},11,{"$f":"M210","v":3},4,{"$f":"O210","v":0},11,{"$f":"Q210","v":0},11,{"$f":"S210","v":0},11,{"$f":"U210","v":0},11,{"$f":"W210","v":0},11,{"$f":"Y210","v":0},11,{"$f":"AA210","v":0},11,{"$f":"AC210","v":0},11,{"$f":"AE210","v":0},11,{"$f":"AG210","v":0},11,{"$f":"AI210","v":0},11,{"$f":"AK210","v":0},11,{"$f":"AM210","v":0},11,{"$f":"AO210","v":0},11,{"$f":"AQ210","v":0},11,{"$f":"AS210","v":0},11,{"$f":"AU210","v":0},11,{"$f":"AW210","v":0},11,{"$f":"AY210","v":0},11,{"$f":"BA210","v":0},11,{"$f":"BC210","v":0},11,{"$f":"BE210","v":0},11,{"$f":"BG210","v":0},11,{"$f":"BI210","v":0},11,{"$f":"BK210","v":0},11,{"$f":"BM210","v":0},11,{"$f":"BO210","v":0},11,{"$f":"BQ210","v":0},11,{"$f":"BS210","v":0},11,{"$f":"BU210","v":2},4,{"$f":"BW210","v":3},5,{"$f":"BY210","v":0},11,{"$f":"CA210","v":0},11,{"$f":"CC210","v":0},11,{"$f":"CE210","v":0},11,{"$f":"CG210","v":0},11,{"$f":"CI210","v":0},11]
[null,"$50,000 to $74,999:",{"$f":"C211","v":0},11,0,11,0,11,131,69,0,11,41,29,0,11,0,11,31,31,3,5,0,11,0,11,20,17,0,11,0,11,0,11,6,7,0,11,82,55,0,11,0,11,0,11,0,11,52,36,0,11,0,11,0,11,0,11,0,11,0,11,0,11,0,11,{"$f":"BO211","v":4},5,0,11,0,11,6,9,9,8,16,18,0,11,0,11,0,11,5,7,20,17]
[null,"Less than 30.0 percent",{"$f":"C212+C213+C214","v":0},{"$f":"SQRT((D212^2)+(D213^2)+(D214^2))","v":19.05255888325765},{"$f":"E212+E213+E214","v":0},{"$f":"SQRT((F212^2)+(F213^2)+(F214^2))","v":19.05255888325765},{"$f":"G212+G213+G214","v":0},{"$f":"SQRT((H212^2)+(H213^2)+(H214^2))","v":19.05255888325765},{"$f":"I212+I213+I214","v":131},{"$f":"SQRT((J212^2)+(J213^2)+(J214^2))","v":76.648548583779458},{"$f":"K212+K213+K214","v":0},{"$f":"SQRT((L212^2)+(L213^2)+(L214^2))","v":19.05255888325765},{"$f":"M212+M213+M214","v":41},{"$f":"SQRT((N212^2)+(N213^2)+(N214^2))","v":27.874719729532707},{"$f":"O212+O213+O214","v":0},{"$f":"SQRT((P212^2)+(P213^2)+(P214^2))","v":19.05255888325765},{"$f":"Q212+Q213+Q214","v":0},{"$f":"SQRT((R212^2)+(R213^2)+(R214^2))","v":19.05255888325765},{"$f":"S212+S213+S214","v":31},{"$f":"SQRT((T212^2)+(T213^2)+(T214^2))","v":34.684290392049249},{"$f":"U212+U213+U214","v":3},{"$f":"SQRT((V212^2)+(V213^2)+(V214^2))","v":16.340134638368191},{"$f":"W212+W213+W214","v":0},{"$f":"SQRT((X212^2)+(X213^2)+(X214^2))","v":19.05255888325765},{"$f":"Y212+Y213+Y214","v":0},{"$f":"SQRT((Z212^2)+(Z213^2)+(Z214^2))","v":19.05255888325765},{"$f":"AA212+AA213+AA214","v":20},{"$f":"SQRT((AB212^2)+(AB213^2)+(AB214^2))","v":19.949937343260004},{"$f":"AC212+AC213+AC214","v":0},{"$f":"SQRT((AD212^2)+(AD213^2)+(AD214^2))","v":19.05255888325765},{"$f":"AE212+AE213+AE214","v":0},{"$f":"SQRT((AF212^2)+(AF213^2)+(AF214^2))","v":19.05255888325765},{"$f":"AG212+AG213+AG214","v":0},{"$f":"SQRT((AH212^2)+(AH213^2)+(AH214^2))","v":19.05255888325765},{"$f":"AI212+AI213+AI214","v":6},{"$f":"SQRT((AJ212^2)+(AJ213^2)+(AJ214^2))","v":17.058722109231979},{"$f":"AK212+AK213+AK214","v":0},{"$f":"SQRT((AL212^2)+(AL213^2)+(AL214^2))","v":19.05255888325765},{"$f":"AM212+AM213+AM214","v":82},{"$f":"SQRT((AN212^2)+(AN213^2)+(AN214^2))","v":55.910642993977454},{"$f":"AO212+AO213+AO214","v":0},{"$f":"SQRT((AP212^2)+(AP213^2)+(AP214^2))","v":19.05255888325765},{"$f":"AQ212+AQ213+AQ214","v":0},{"$f":"SQRT((AR212^2)+(AR213^2)+(AR214^2))","v":19.05255888325765},{"$f":"AS212+AS213+AS214","v":0},{"$f":"SQRT((AT212^2)+(AT213^2)+(AT214^2))","v":19.05255888325765},{"$f":"AU212+AU213+AU214","v":0},{"$f":"SQRT((AV212^2)+(AV213^2)+(AV214^2))","v":19.05255888325765},{"$f":"AW212+AW213+AW214","v":26},{"$f":"SQRT((AX212^2)+(AX213^2)+(AX214^2))","v":25.317977802344327},{"$f":"AY212+AY213+AY214","v":0},{"$f":"SQRT((AZ212^2)+(AZ213^2)+(AZ214^2))","v":19.05255888325765},{"$f":"BA212+BA213+BA214","v":0},{"$f":"SQRT((BB212^2)+(BB213^2)+(BB214^2))","v":19.05255888325765},{"$f":"BC212+BC213+BC214","v":0},{"$f":"SQRT((BD212^2)+(BD213^2)+(BD214^2))","v":19.05255888325765},{"$f":"BE212+BE213+BE214","v":0},{"$f":"SQRT((BF212^2)+(BF213^2)+(BF214^2))","v":19.05255888325765},{"$f":"BG212+BG213+BG214","v":0},{"$f":"SQRT((BH212^2)+(BH213^2)+(BH214^2))","v":19.05255888325765},{"$f":"BI212+BI213+BI214","v":0},{"$f":"SQRT((BJ212^2)+(BJ213^2)+(BJ214^2))","v":19.05255888325765},{"$f":"BK212+BK213+BK214","v":0},{"$f":"SQRT((BL212^2)+(BL213^2)+(BL214^2))","v":19.05255888325765},{"$f":"BM212+BM213+BM214","v":0},{"$f":"SQRT((BN212^2)+(BN213^2)+(BN214^2))","v":19.05255888325765},{"$f":"BO212+BO213+BO214","v":4},{"$f":"SQRT((BP212^2)+(BP213^2)+(BP214^2))","v":16.340134638368191},{"$f":"BQ212+BQ213+BQ214","v":0},{"$f":"SQRT((BR212^2)+(BR213^2)+(BR214^2))","v":19.05255888325765},{"$f":"BS212+BS213+BS214","v":0},{"$f":"SQRT((BT212^2)+(BT213^2)+(BT214^2))","v":19.05255888325765},{"$f":"BU212+BU213+BU214","v":6},{"$f":"SQRT((BV212^2)+(BV213^2)+(BV214^2))","v":17.972200755611428},{"$f":"BW212+BW213+BW214","v":7},{"$f":"SQRT((BX212^2)+(BX213^2)+(BX214^2))","v":12.727922061357855},{"$f":"BY212+BY213+BY214","v":11},{"$f":"SQRT((BZ212^2)+(BZ213^2)+(BZ214^2))","v":23.043437243605826},{"$f":"CA212+CA213+CA214","v":0},{"$f":"SQRT((CB212^2)+(CB213^2)+(CB214^2))","v":19.05255888325765},{"$f":"CC212+CC213+CC214","v":0},{"$f":"SQRT((CD212^2)+(CD213^2)+(CD214^2))","v":19.05255888325765},{"$f":"CE212+CE213+CE214","v":0},{"$f":"SQRT((CF212^2)+(CF213^2)+(CF214^2))","v":19.05255888325765},{"$f":"CG212+CG213+CG214","v":5},{"$f":"SQRT((CH212^2)+(CH213^2)+(CH214^2))","v":17.058722109231979},{"$f":"CI212+CI213+CI214","v":15},{"$f":"SQRT((CJ212^2)+(CJ213^2)+(CJ214^2))","v":17.029386365926403}]
[null,"More than 30.0 percent",{"$f":"C215+C216+C217+C218","v":0},{"$f":"SQRT((D215^2)+(D216^2)+(D217^2)+(D218^2))","v":22},{"$f":"E215+E216+E217+E218","v":0},{"$f":"SQRT((F215^2)+(F216^2)+(F217^2)+(F218^2))","v":22},{"$f":"G215+G216+G217+G218","v":0},{"$f":"SQRT((H215^2)+(H216^2)+(H217^2)+(H218^2))","v":22},{"$f":"I215+I216+I217+I218","v":0},{"$f":"SQRT((J215^2)+(J216^2)+(J217^2)+(J218^2))","v":30},{"$f":"K215+K216+K217+K218","v":0},{"$f":"SQRT((L215^2)+(L216^2)+(L217^2)+(L218^2))","v":22},{"$f":"M215+M216+M217+M218","v":0},{"$f":"SQRT((N215^2)+(N216^2)+(N217^2)+(N218^2))","v":22},{"$f":"O215+O216+O217+O218","v":0},{"$f":"SQRT((P215^2)+(P216^2)+(P217^2)+(P218^2))","v":22},{"$f":"Q215+Q216+Q217+Q218","v":0},{"$f":"SQRT((R215^2)+(R216^2)+(R217^2)+(R218^2))","v":22},{"$f":"S215+S216+S217+S218","v":0},{"$f":"SQRT((T215^2)+(T216^2)+(T217^2)+(T218^2))","v":22},{"$f":"U215+U216+U217+U218","v":0},{"$f":"SQRT((V215^2)+(V216^2)+(V217^2)+(V218^2))","v":22},{"$f":"W215+W216+W217+W218","v":0},{"$f":"SQRT((X215^2)+(X216^2)+(X217^2)+(X218^2))","v":22},{"$f":"Y215+Y216+Y217+Y218","v":0},{"$f":"SQRT((Z215^2)+(Z216^2)+(Z217^2)+(Z218^2))","v":22},{"$f":"AA215+AA216+AA217+AA218","v":0},{"$f":"SQRT((AB215^2)+(AB216^2)+(AB217^2)+(AB218^2))","v":22},{"$f":"AC215+AC216+AC217+AC218","v":0},{"$f":"SQRT((AD215^2)+(AD216^2)+(AD217^2)+(AD218^2))","v":22},{"$f":"AE215+AE216+AE217+AE218","v":0},{"$f":"SQRT((AF215^2)+(AF216^2)+(AF217^2)+(AF218^2))","v":15.556349186104045},{"$f":"AG215+AG216+AG217+AG218","v":0},{"$f":"SQRT((AH215^2)+(AH216^2)+(AH217^2)+(AH218^2))","v":22},{"$f":"AI215+AI216+AI217+AI218","v":0},{"$f":"SQRT((AJ215^2)+(AJ216^2)+(AJ217^2)+(AJ218^2))","v":22},{"$f":"AK215+AK216+AK217+AK218","v":0},{"$f":"SQRT((AL215^2)+(AL216^2)+(AL217^2)+(AL218^2))","v":22},{"$f":"AM215+AM216+AM217+AM218","v":0},{"$f":"SQRT((AN215^2)+(AN216^2)+(AN217^2)+(AN218^2))","v":22},{"$f":"AO215+AO216+AO217+AO218","v":0},{"$f":"SQRT((AP215^2)+(AP216^2)+(AP217^2)+(AP218^2))","v":22},{"$f":"AQ215+AQ216+AQ217+AQ218","v":0},{"$f":"SQRT((AR215^2)+(AR216^2)+(AR217^2)+(AR218^2))","v":22},{"$f":"AS215+AS216+AS217+AS218","v":0},{"$f":"SQRT((AT215^2)+(AT216^2)+(AT217^2)+(AT218^2))","v":22},{"$f":"AU215+AU216+AU217+AU218","v":0},{"$f":"SQRT((AV215^2)+(AV216^2)+(AV217^2)+(AV218^2))","v":15.556349186104045},{"$f":"AW215+AW216+AW217+AW218","v":14},{"$f":"SQRT((AX215^2)+(AX216^2)+(AX217^2)+(AX218^2))","v":26.210684844162312},{"$f":"AY215+AY216+AY217+AY218","v":0},{"$f":"SQRT((AZ215^2)+(AZ216^2)+(AZ217^2)+(AZ218^2))","v":22},{"$f":"BA215+BA216+BA217+BA218","v":0},{"$f":"SQRT((BB215^2)+(BB216^2)+(BB217^2)+(BB218^2))","v":22},{"$f":"BC215+BC216+BC217+BC218","v":0},{"$f":"SQRT((BD215^2)+(BD216^2)+(BD217^2)+(BD218^2))","v":22},{"$f":"BE215+BE216+BE217+BE218","v":0},{"$f":"SQRT((BF215^2)+(BF216^2)+(BF217^2)+(BF218^2))","v":15.556349186104045},{"$f":"BG215+BG216+BG217+BG218","v":0},{"$f":"SQRT((BH215^2)+(BH216^2)+(BH217^2)+(BH218^2))","v":22},{"$f":"BI215+BI216+BI217+BI218","v":0},{"$f":"SQRT((BJ215^2)+(BJ216^2)+(BJ217^2)+(BJ218^2))","v":15.556349186104045},{"$f":"BK215+BK216+BK217+BK218","v":0},{"$f":"SQRT((BL215^2)+(BL216^2)+(BL217^2)+(BL218^2))","v":22},{"$f":"BM215+BM216+BM217+BM218","v":0},{"$f":"SQRT((BN215^2)+(BN216^2)+(BN217^2)+(BN218^2))","v":22},{"$f":"BO215+BO216+BO217+BO218","v":0},{"$f":"SQRT((BP215^2)+(BP216^2)+(BP217^2)+(BP218^2))","v":22},{"$f":"BQ215+BQ216+BQ217+BQ218","v":0},{"$f":"SQRT((BR215^2)+(BR216^2)+(BR217^2)+(BR218^2))","v":22},{"$f":"BS215+BS216+BS217+BS218","v":0},{"$f":"SQRT((BT215^2)+(BT216^2)+(BT217^2)+(BT218^2))","v":22},{"$f":"BU215+BU216+BU217+BU218","v":0},{"$f":"SQRT((BV215^2)+(BV216^2)+(BV217^2)+(BV218^2))","v":22},{"$f":"BW215+BW216+BW217+BW218","v":0},{"$f":"SQRT((BX215^2)+(BX216^2)+(BX217^2)+(BX218^2))","v":22},{"$f":"BY215+BY216+BY217+BY218","v":5},{"$f":"SQRT((BZ215^2)+(BZ216^2)+(BZ217^2)+(BZ218^2))","v":20.663978319771825},{"$f":"CA215+CA216+CA217+CA218","v":0},{"$f":"SQRT((CB215^2)+(CB216^2)+(CB217^2)+(CB218^2))","v":22},{"$f":"CC215+CC216+CC217+CC218","v":0},{"$f":"SQRT((CD215^2)+(CD216^2)+(CD217^2)+(CD218^2))","v":15.556349186104045},{"$f":"CE215+CE216+CE217+CE218","v":0},{"$f":"SQRT((CF215^2)+(CF216^2)+(CF217^2)+(CF218^2))","v":22},{"$f":"CG215+CG216+CG217+CG218","v":0},{"$f":"SQRT((CH215^2)+(CH216^2)+(CH217^2)+(CH218^2))","v":22},{"$f":"CI215+CI216+CI217+CI218","v":5},{"$f":"SQRT((CJ215^2)+(CJ216^2)+(CJ217^2)+(CJ218^2))","v":21.071307505705477}]
[null,"Less Than 35% of HH Income",{"$f":"C215+C214+C213+C212","v":0},{"$f":"SQRT((D215^2)+(D214^2)+(D213^2)+(D212^2))","v":22},{"$f":"E215+E214+E213+E212","v":0},{"$f":"SQRT((F215^2)+(F214^2)+(F213^2)+(F212^2))","v":22},{"$f":"G215+G214+G213+G212","v":0},{"$f":"SQRT((H215^2)+(H214^2)+(H213^2)+(H212^2))","v":22},{"$f":"I215+I214+I213+I212","v":131},{"$f":"SQRT((J215^2)+(J214^2)+(J213^2)+(J212^2))","v":78.10249675906654},{"$f":"K215+K214+K213+K212","v":0},{"$f":"SQRT((L215^2)+(L214^2)+(L213^2)+(L212^2))","v":22},{"$f":"M215+M214+M213+M212","v":41},{"$f":"SQRT((N215^2)+(N214^2)+(N213^2)+(N212^2))","v":29.966648127543394},{"$f":"O215+O214+O213+O212","v":0},{"$f":"SQRT((P215^2)+(P214^2)+(P213^2)+(P212^2))","v":22},{"$f":"Q215+Q214+Q213+Q212","v":0},{"$f":"SQRT((R215^2)+(R214^2)+(R213^2)+(R212^2))","v":22},{"$f":"S215+S214+S213+S212","v":31},{"$f":"SQRT((T215^2)+(T214^2)+(T213^2)+(T212^2))","v":36.386810797320507},{"$f":"U215+U214+U213+U212","v":3},{"$f":"SQRT((V215^2)+(V214^2)+(V213^2)+(V212^2))","v":19.697715603592208},{"$f":"W215+W214+W213+W212","v":0},{"$f":"SQRT((X215^2)+(X214^2)+(X213^2)+(X212^2))","v":22},{"$f":"Y215+Y214+Y213+Y212","v":0},{"$f":"SQRT((Z215^2)+(Z214^2)+(Z213^2)+(Z212^2))","v":22},{"$f":"AA215+AA214+AA213+AA212","v":20},{"$f":"SQRT((AB215^2)+(AB214^2)+(AB213^2)+(AB212^2))","v":22.781571499789035},{"$f":"AC215+AC214+AC213+AC212","v":0},{"$f":"SQRT((AD215^2)+(AD214^2)+(AD213^2)+(AD212^2))","v":22},{"$f":"AE215+AE214+AE213+AE212","v":0},{"$f":"SQRT((AF215^2)+(AF214^2)+(AF213^2)+(AF212^2))","v":22},{"$f":"AG215+AG214+AG213+AG212","v":0},{"$f":"SQRT((AH215^2)+(AH214^2)+(AH213^2)+(AH212^2))","v":22},{"$f":"AI215+AI214+AI213+AI212","v":6},{"$f":"SQRT((AJ215^2)+(AJ214^2)+(AJ213^2)+(AJ212^2))","v":20.297783130184438},{"$f":"AK215+AK214+AK213+AK212","v":0},{"$f":"SQRT((AL215^2)+(AL214^2)+(AL213^2)+(AL212^2))","v":22},{"$f":"AM215+AM214+AM213+AM212","v":82},{"$f":"SQRT((AN215^2)+(AN214^2)+(AN213^2)+(AN212^2))","v":56.982453439633503},{"$f":"AO215+AO214+AO213+AO212","v":0},{"$f":"SQRT((AP215^2)+(AP214^2)+(AP213^2)+(AP212^2))","v":22},{"$f":"AQ215+AQ214+AQ213+AQ212","v":0},{"$f":"SQRT((AR215^2)+(AR214^2)+(AR213^2)+(AR212^2))","v":22},{"$f":"AS215+AS214+AS213+AS212","v":0},{"$f":"SQRT((AT215^2)+(AT214^2)+(AT213^2)+(AT212^2))","v":22},{"$f":"AU215+AU214+AU213+AU212","v":0},{"$f":"SQRT((AV215^2)+(AV214^2)+(AV213^2)+(AV212^2))","v":22},{"$f":"AW215+AW214+AW213+AW212","v":40},{"$f":"SQRT((AX215^2)+(AX214^2)+(AX213^2)+(AX212^2))","v":31.064449134018133},{"$f":"AY215+AY214+AY213+AY212","v":0},{"$f":"SQRT((AZ215^2)+(AZ214^2)+(AZ213^2)+(AZ212^2))","v":22},{"$f":"BA215+BA214+BA213+BA212","v":0},{"$f":"SQRT((BB215^2)+(BB214^2)+(BB213^2)+(BB212^2))","v":22},{"$f":"BC215+BC214+BC213+BC212","v":0},{"$f":"SQRT((BD215^2)+(BD214^2)+(BD213^2)+(BD212^2))","v":22},{"$f":"BE215+BE214+BE213+BE212","v":0},{"$f":"SQRT((BF215^2)+(BF214^2)+(BF213^2)+(BF212^2))","v":22},{"$f":"BG215+BG214+BG213+BG212","v":0},{"$f":"SQRT((BH215^2)+(BH214^2)+(BH213^2)+(BH212^2))","v":22},{"$f":"BI215+BI214+BI213+BI212","v":0},{"$f":"SQRT((BJ215^2)+(BJ214^2)+(BJ213^2)+(BJ212^2))","v":22},{"$f":"BK215+BK214+BK213+BK212","v":0},{"$f":"SQRT((BL215^2)+(BL214^2)+(BL213^2)+(BL212^2))","v":22},{"$f":"BM215+BM214+BM213+BM212","v":0},{"$f":"SQRT((BN215^2)+(BN214^2)+(BN213^2)+(BN212^2))","v":22},{"$f":"BO215+BO214+BO213+BO212","v":4},{"$f":"SQRT((BP215^2)+(BP214^2)+(BP213^2)+(BP212^2))","v":19.697715603592208},{"$f":"BQ215+BQ214+BQ213+BQ212","v":0},{"$f":"SQRT((BR215^2)+(BR214^2)+(BR213^2)+(BR212^2))","v":22},{"$f":"BS215+BS214+BS213+BS212","v":0},{"$f":"SQRT((BT215^2)+(BT214^2)+(BT213^2)+(BT212^2))","v":22},{"$f":"BU215+BU214+BU213+BU212","v":6},{"$f":"SQRT((BV215^2)+(BV214^2)+(BV213^2)+(BV212^2))","v":21.071307505705477},{"$f":"BW215+BW214+BW213+BW212","v":7},{"$f":"SQRT((BX215^2)+(BX214^2)+(BX213^2)+(BX212^2))","v":16.822603841260722},{"$f":"BY215+BY214+BY213+BY212","v":16},{"$f":"SQRT((BZ215^2)+(BZ214^2)+(BZ213^2)+(BZ212^2))","v":24.392621835300936},{"$f":"CA215+CA214+CA213+CA212","v":0},{"$f":"SQRT((CB215^2)+(CB214^2)+(CB213^2)+(CB212^2))","v":22},{"$f":"CC215+CC214+CC213+CC212","v":0},{"$f":"SQRT((CD215^2)+(CD214^2)+(CD213^2)+(CD212^2))","v":22},{"$f":"CE215+CE214+CE213+CE212","v":0},{"$f":"SQRT((CF215^2)+(CF214^2)+(CF213^2)+(CF212^2))","v":22},{"$f":"CG215+CG214+CG213+CG212","v":5},{"$f":"SQRT((CH215^2)+(CH214^2)+(CH213^2)+(CH212^2))","v":20.297783130184438},{"$f":"CI215+CI214+CI213+CI212","v":20},{"$f":"SQRT((CJ215^2)+(CJ214^2)+(CJ213^2)+(CJ212^2))","v":19.261360284258224}]
[null,"35.0 percent or more",{"$f":"C216+C217+C218","v":0},{"$f":"SQRT((D216^2)+(D217^2)+(D218^2))","v":19.05255888325765},{"$f":"E216+E217+E218","v":0},{"$f":"SQRT((F216^2)+(F217^2)+(F218^2))","v":19.05255888325765},{"$f":"G216+G217+G218","v":0},{"$f":"SQRT((H216^2)+(H217^2)+(H218^2))","v":19.05255888325765},{"$f":"I216+I217+I218","v":0},{"$f":"SQRT((J216^2)+(J217^2)+(J218^2))","v":25.98076211353316},{"$f":"K216+K217+K218","v":0},{"$f":"SQRT((L216^2)+(L217^2)+(L218^2))","v":19.05255888325765},{"$f":"M216+M217+M218","v":0},{"$f":"SQRT((N216^2)+(N217^2)+(N218^2))","v":19.05255888325765},{"$f":"O216+O217+O218","v":0},{"$f":"SQRT((P216^2)+(P217^2)+(P218^2))","v":19.05255888325765},{"$f":"Q216+Q217+Q218","v":0},{"$f":"SQRT((R216^2)+(R217^2)+(R218^2))","v":19.05255888325765},{"$f":"S216+S217+S218","v":0},{"$f":"SQRT((T216^2)+(T217^2)+(T218^2))","v":19.05255888325765},{"$f":"U216+U217+U218","v":0},{"$f":"SQRT((V216^2)+(V217^2)+(V218^2))","v":19.05255888325765},{"$f":"W216+W217+W218","v":0},{"$f":"SQRT((X216^2)+(X217^2)+(X218^2))","v":19.05255888325765},{"$f":"Y216+Y217+Y218","v":0},{"$f":"SQRT((Z216^2)+(Z217^2)+(Z218^2))","v":19.05255888325765},{"$f":"AA216+AA217+AA218","v":0},{"$f":"SQRT((AB216^2)+(AB217^2)+(AB218^2))","v":19.05255888325765},{"$f":"AC216+AC217+AC218","v":0},{"$f":"SQRT((AD216^2)+(AD217^2)+(AD218^2))","v":19.05255888325765},{"$f":"AE216+AE217+AE218","v":0},{"$f":"SQRT((AF216^2)+(AF217^2)+(AF218^2))","v":11},{"$f":"AG216+AG217+AG218","v":0},{"$f":"SQRT((AH216^2)+(AH217^2)+(AH218^2))","v":19.05255888325765},{"$f":"AI216+AI217+AI218","v":0},{"$f":"SQRT((AJ216^2)+(AJ217^2)+(AJ218^2))","v":19.05255888325765},{"$f":"AK216+AK217+AK218","v":0},{"$f":"SQRT((AL216^2)+(AL217^2)+(AL218^2))","v":19.05255888325765},{"$f":"AM216+AM217+AM218","v":0},{"$f":"SQRT((AN216^2)+(AN217^2)+(AN218^2))","v":19.05255888325765},{"$f":"AO216+AO217+AO218","v":0},{"$f":"SQRT((AP216^2)+(AP217^2)+(AP218^2))","v":19.05255888325765},{"$f":"AQ216+AQ217+AQ218","v":0},{"$f":"SQRT((AR216^2)+(AR217^2)+(AR218^2))","v":19.05255888325765},{"$f":"AS216+AS217+AS218","v":0},{"$f":"SQRT((AT216^2)+(AT217^2)+(AT218^2))","v":19.05255888325765},{"$f":"AU216+AU217+AU218","v":0},{"$f":"SQRT((AV216^2)+(AV217^2)+(AV218^2))","v":11},{"$f":"AW216+AW217+AW218","v":0},{"$f":"SQRT((AX216^2)+(AX217^2)+(AX218^2))","v":19.05255888325765},{"$f":"AY216+AY217+AY218","v":0},{"$f":"SQRT((AZ216^2)+(AZ217^2)+(AZ218^2))","v":19.05255888325765},{"$f":"BA216+BA217+BA218","v":0},{"$f":"SQRT((BB216^2)+(BB217^2)+(BB218^2))","v":19.05255888325765},{"$f":"BC216+BC217+BC218","v":0},{"$f":"SQRT((BD216^2)+(BD217^2)+(BD218^2))","v":19.05255888325765},{"$f":"BE216+BE217+BE218","v":0},{"$f":"SQRT((BF216^2)+(BF217^2)+(BF218^2))","v":11},{"$f":"BG216+BG217+BG218","v":0},{"$f":"SQRT((BH216^2)+(BH217^2)+(BH218^2))","v":19.05255888325765},{"$f":"BI216+BI217+BI218","v":0},{"$f":"SQRT((BJ216^2)+(BJ217^2)+(BJ218^2))","v":11},{"$f":"BK216+BK217+BK218","v":0},{"$f":"SQRT((BL216^2)+(BL217^2)+(BL218^2))","v":19.05255888325765},{"$f":"BM216+BM217+BM218","v":0},{"$f":"SQRT((BN216^2)+(BN217^2)+(BN218^2))","v":19.05255888325765},{"$f":"BO216+BO217+BO218","v":0},{"$f":"SQRT((BP216^2)+(BP217^2)+(BP218^2))","v":19.05255888325765},{"$f":"BQ216+BQ217+BQ218","v":0},{"$f":"SQRT((BR216^2)+(BR217^2)+(BR218^2))","v":19.05255888325765},{"$f":"BS216+BS217+BS218","v":0},{"$f":"SQRT((BT216^2)+(BT217^2)+(BT218^2))","v":19.05255888325765},{"$f":"BU216+BU217+BU218","v":0},{"$f":"SQRT((BV216^2)+(BV217^2)+(BV218^2))","v":19.05255888325765},{"$f":"BW216+BW217+BW218","v":0},{"$f":"SQRT((BX216^2)+(BX217^2)+(BX218^2))","v":19.05255888325765},{"$f":"BY216+BY217+BY218","v":0},{"$f":"SQRT((BZ216^2)+(BZ217^2)+(BZ218^2))","v":19.05255888325765},{"$f":"CA216+CA217+CA218","v":0},{"$f":"SQRT((CB216^2)+(CB217^2)+(CB218^2))","v":19.05255888325765},{"$f":"CC216+CC217+CC218","v":0},{"$f":"SQRT((CD216^2)+(CD217^2)+(CD218^2))","v":11},{"$f":"CE216+CE217+CE218","v":0},{"$f":"SQRT((CF216^2)+(CF217^2)+(CF218^2))","v":19.05255888325765},{"$f":"CG216+CG217+CG218","v":0},{"$f":"SQRT((CH216^2)+(CH217^2)+(CH218^2))","v":19.05255888325765},{"$f":"CI216+CI217+CI218","v":0},{"$f":"SQRT((CJ216^2)+(CJ217^2)+(CJ218^2))","v":19.05255888325765}]
[null,"50.0 percent or more",{"$f":"C218","v":0},{"$f":"D218","v":11},{"$f":"E218","v":0},11,{"$f":"G218","v":0},11,{"$f":"I218","v":0},15,{"$f":"K218","v":0},11,{"$f":"M218","v":0},11,{"$f":"O218","v":0},11,{"$f":"Q218","v":0},11,{"$f":"S218","v":0},11,{"$f":"U218","v":0},11,{"$f":"W218","v":0},11,{"$f":"Y218","v":0},11,{"$f":"AA218","v":0},11,{"$f":"AC218","v":0},11,{"$f":"AE218","v":0},11,{"$f":"AG218","v":0},11,{"$f":"AI218","v":0},11,{"$f":"AK218","v":0},11,{"$f":"AM218","v":0},11,{"$f":"AO218","v":0},11,{"$f":"AQ218","v":0},11,{"$f":"AS218","v":0},11,{"$f":"AU218","v":0},11,{"$f":"AW218","v":0},11,{"$f":"AY218","v":0},11,{"$f":"BA218","v":0},11,{"$f":"BC218","v":0},11,{"$f":"BE218","v":0},11,{"$f":"BG218","v":0},11,{"$f":"BI218","v":0},11,{"$f":"BK218","v":0},11,{"$f":"BM218","v":0},11,{"$f":"BO218","v":0},{"$f":"BP218","v":11},{"$f":"BQ218","v":0},11,{"$f":"BS218","v":0},11,{"$f":"BU218","v":0},11,{"$f":"BW218","v":0},11,{"$f":"BY218","v":0},11,{"$f":"CA218","v":0},11,{"$f":"CC218","v":0},11,{"$f":"CE218","v":0},11,{"$f":"CG218","v":0},11,{"$f":"CI218","v":0},11]
[null,"Not Computed",{"$f":"C219","v":0},11,{"$f":"E219","v":0},11,{"$f":"G219","v":0},11,{"$f":"I219","v":0},15,{"$f":"K219","v":0},11,{"$f":"M219","v":0},11,{"$f":"O219","v":0},11,{"$f":"Q219","v":0},11,{"$f":"S219","v":0},11,{"$f":"U219","v":0},11,{"$f":"W219","v":0},11,{"$f":"Y219","v":0},11,{"$f":"AA219","v":0},11,{"$f":"AC219","v":0},11,{"$f":"AE219","v":0},11,{"$f":"AG219","v":0},11,{"$f":"AI219","v":0},11,{"$f":"AK219","v":0},11,{"$f":"AM219","v":0},11,{"$f":"AO219","v":0},11,{"$f":"AQ219","v":0},11,{"$f":"AS219","v":0},11,{"$f":"AU219","v":0},11,{"$f":"AW219","v":12},20,{"$f":"AY219","v":0},11,{"$f":"BA219","v":0},11,{"$f":"BC219","v":0},11,{"$f":"BE219","v":0},11,{"$f":"BG219","v":0},11,{"$f":"BI219","v":0},11,{"$f":"BK219","v":0},11,{"$f":"BM219","v":0},11,{"$f":"BO219","v":0},11,{"$f":"BQ219","v":0},11,{"$f":"BS219","v":0},11,{"$f":"BU219","v":0},11,{"$f":"BW219","v":2},4,{"$f":"BY219","v":0},11,{"$f":"CA219","v":0},11,{"$f":"CC219","v":0},11,{"$f":"CE219","v":0},11,{"$f":"CG219","v":0},11,{"$f":"CI219","v":0},11]
[null,"$75,000 to $99,999:",{"$f":"C220","v":0},11,{"$f":"E220","v":0},11,{"$f":"G220","v":0},11,{"$f":"I220","v":54},43,{"$f":"K220","v":0},11,{"$f":"M220","v":6},9,{"$f":"O220","v":0},11,{"$f":"Q220","v":3},4,{"$f":"S220","v":35},19,{"$f":"U220","v":3},4,{"$f":"W220","v":0},11,{"$f":"Y220","v":0},11,{"$f":"AA220","v":0},11,{"$f":"AC220","v":0},11,{"$f":"AE220","v":0},11,{"$f":"AG220","v":7},10,{"$f":"AI220","v":3},4,{"$f":"AK220","v":0},11,{"$f":"AM220","v":15},16,{"$f":"AO220","v":0},11,{"$f":"AQ220","v":0},11,{"$f":"AS220","v":0},11,{"$f":"AU220","v":0},11,{"$f":"AW220","v":82},61,{"$f":"AY220","v":0},11,{"$f":"BA220","v":0},11,{"$f":"BC220","v":0},11,{"$f":"BE220","v":0},11,{"$f":"BG220","v":0},11,{"$f":"BI220","v":0},11,{"$f":"BK220","v":0},11,{"$f":"BM220","v":0},11,{"$f":"BO220","v":1},2,{"$f":"BQ220","v":0},11,{"$f":"BS220","v":0},11,{"$f":"BU220","v":2},4,{"$f":"BW220","v":0},11,{"$f":"BY220","v":0},11,{"$f":"CA220","v":0},11,{"$f":"CC220","v":0},11,{"$f":"CE220","v":0},11,{"$f":"CG220","v":0},11,{"$f":"CI220","v":6},9]
[null,"Less than 30.0 percent",{"$f":"C221+C222+C223","v":0},{"$f":"SQRT((D221^2)+(D222^2)+(D223^2))","v":19.05255888325765},{"$f":"E221+E222+E223","v":0},{"$f":"SQRT((F221^2)+(F222^2)+(F223^2))","v":19.05255888325765},{"$f":"G221+G222+G223","v":0},{"$f":"SQRT((H221^2)+(H222^2)+(H223^2))","v":19.05255888325765},{"$f":"I221+I222+I223","v":54},{"$f":"SQRT((J221^2)+(J222^2)+(J223^2))","v":47.947888378947411},{"$f":"K221+K222+K223","v":0},{"$f":"SQRT((L221^2)+(L222^2)+(L223^2))","v":19.05255888325765},{"$f":"M221+M222+M223","v":6},{"$f":"SQRT((N221^2)+(N222^2)+(N223^2))","v":17.972200755611428},{"$f":"O221+O222+O223","v":0},{"$f":"SQRT((P221^2)+(P222^2)+(P223^2))","v":19.05255888325765},{"$f":"Q221+Q222+Q223","v":3},{"$f":"SQRT((R221^2)+(R222^2)+(R223^2))","v":16.06237840420901},{"$f":"S221+S222+S223","v":29},{"$f":"SQRT((T221^2)+(T222^2)+(T223^2))","v":23.043437243605826},{"$f":"U221+U222+U223","v":3},{"$f":"SQRT((V221^2)+(V222^2)+(V223^2))","v":16.06237840420901},{"$f":"W221+W222+W223","v":0},{"$f":"SQRT((X221^2)+(X222^2)+(X223^2))","v":19.05255888325765},{"$f":"Y221+Y222+Y223","v":0},{"$f":"SQRT((Z221^2)+(Z222^2)+(Z223^2))","v":19.05255888325765},{"$f":"AA221+AA222+AA223","v":0},{"$f":"SQRT((AB221^2)+(AB222^2)+(AB223^2))","v":19.05255888325765},{"$f":"AC221+AC222+AC223","v":0},{"$f":"SQRT((AD221^2)+(AD222^2)+(AD223^2))","v":19.05255888325765},{"$f":"AE221+AE222+AE223","v":0},{"$f":"SQRT((AF221^2)+(AF222^2)+(AF223^2))","v":19.05255888325765},{"$f":"AG221+AG222+AG223","v":7},{"$f":"SQRT((AH221^2)+(AH222^2)+(AH223^2))","v":18.493242008906929},{"$f":"AI221+AI222+AI223","v":3},{"$f":"SQRT((AJ221^2)+(AJ222^2)+(AJ223^2))","v":16.06237840420901},{"$f":"AK221+AK222+AK223","v":0},{"$f":"SQRT((AL221^2)+(AL222^2)+(AL223^2))","v":19.05255888325765},{"$f":"AM221+AM222+AM223","v":15},{"$f":"SQRT((AN221^2)+(AN222^2)+(AN223^2))","v":22.315913604421397},{"$f":"AO221+AO222+AO223","v":0},{"$f":"SQRT((AP221^2)+(AP222^2)+(AP223^2))","v":19.05255888325765},{"$f":"AQ221+AQ222+AQ223","v":0},{"$f":"SQRT((AR221^2)+(AR222^2)+(AR223^2))","v":19.05255888325765},{"$f":"AS221+AS222+AS223","v":0},{"$f":"SQRT((AT221^2)+(AT222^2)+(AT223^2))","v":19.05255888325765},{"$f":"AU221+AU222+AU223","v":0},{"$f":"SQRT((AV221^2)+(AV222^2)+(AV223^2))","v":19.05255888325765},{"$f":"AW221+AW222+AW223","v":65},{"$f":"SQRT((AX221^2)+(AX222^2)+(AX223^2))","v":60.489668539346454},{"$f":"AY221+AY222+AY223","v":0},{"$f":"SQRT((AZ221^2)+(AZ222^2)+(AZ223^2))","v":19.05255888325765},{"$f":"BA221+BA222+BA223","v":0},{"$f":"SQRT((BB221^2)+(BB222^2)+(BB223^2))","v":19.05255888325765},{"$f":"BC221+BC222+BC223","v":0},{"$f":"SQRT((BD221^2)+(BD222^2)+(BD223^2))","v":19.05255888325765},{"$f":"BE221+BE222+BE223","v":0},{"$f":"SQRT((BF221^2)+(BF222^2)+(BF223^2))","v":19.05255888325765},{"$f":"BG221+BG222+BG223","v":0},{"$f":"SQRT((BH221^2)+(BH222^2)+(BH223^2))","v":19.05255888325765},{"$f":"BI221+BI222+BI223","v":0},{"$f":"SQRT((BJ221^2)+(BJ222^2)+(BJ223^2))","v":19.05255888325765},{"$f":"BK221+BK222+BK223","v":0},{"$f":"SQRT((BL221^2)+(BL222^2)+(BL223^2))","v":19.05255888325765},{"$f":"BM221+BM222+BM223","v":0},{"$f":"SQRT((BN221^2)+(BN222^2)+(BN223^2))","v":19.05255888325765},{"$f":"BO221+BO222+BO223","v":1},{"$f":"SQRT((BP221^2)+(BP222^2)+(BP223^2))","v":15.684387141358123},{"$f":"BQ221+BQ222+BQ223","v":0},{"$f":"SQRT((BR221^2)+(BR222^2)+(BR223^2))","v":19.05255888325765},{"$f":"BS221+BS222+BS223","v":0},{"$f":"SQRT((BT221^2)+(BT222^2)+(BT223^2))","v":19.05255888325765},{"$f":"BU221+BU222+BU223","v":2},{"$f":"SQRT((BV221^2)+(BV222^2)+(BV223^2))","v":16.06237840420901},{"$f":"BW221+BW222+BW223","v":0},{"$f":"SQRT((BX221^2)+(BX222^2)+(BX223^2))","v":19.05255888325765},{"$f":"BY221+BY222+BY223","v":0},{"$f":"SQRT((BZ221^2)+(BZ222^2)+(BZ223^2))","v":19.05255888325765},{"$f":"CA221+CA222+CA223","v":0},{"$f":"SQRT((CB221^2)+(CB222^2)+(CB223^2))","v":19.05255888325765},{"$f":"CC221+CC222+CC223","v":0},{"$f":"SQRT((CD221^2)+(CD222^2)+(CD223^2))","v":19.05255888325765},{"$f":"CE221+CE222+CE223","v":0},{"$f":"SQRT((CF221^2)+(CF222^2)+(CF223^2))","v":19.05255888325765},{"$f":"CG221+CG222+CG223","v":0},{"$f":"SQRT((CH221^2)+(CH222^2)+(CH223^2))","v":19.05255888325765},{"$f":"CI221+CI222+CI223","v":6},{"$f":"SQRT((CJ221^2)+(CJ222^2)+(CJ223^2))","v":17.972200755611428}]
[null,"More than 30.0 percent",{"$f":"C224+C225+C226+C227","v":0},{"$f":"SQRT((D224^2)+(D225^2)+(D226^2)+(D227^2))","v":22},{"$f":"E224+E225+E226+E227","v":0},{"$f":"SQRT((F224^2)+(F225^2)+(F226^2)+(F227^2))","v":22},{"$f":"G224+G225+G226+G227","v":0},{"$f":"SQRT((H224^2)+(H225^2)+(H226^2)+(H227^2))","v":22},{"$f":"I224+I225+I226+I227","v":0},{"$f":"SQRT((J224^2)+(J225^2)+(J226^2)+(J227^2))","v":30},{"$f":"K224+K225+K226+K227","v":0},{"$f":"SQRT((L224^2)+(L225^2)+(L226^2)+(L227^2))","v":22},{"$f":"M224+M225+M226+M227","v":0},{"$f":"SQRT((N224^2)+(N225^2)+(N226^2)+(N227^2))","v":22},{"$f":"O224+O225+O226+O227","v":0},{"$f":"SQRT((P224^2)+(P225^2)+(P226^2)+(P227^2))","v":22},{"$f":"Q224+Q225+Q226+Q227","v":0},{"$f":"SQRT((R224^2)+(R225^2)+(R226^2)+(R227^2))","v":22},{"$f":"S224+S225+S226+S227","v":0},{"$f":"SQRT((T224^2)+(T225^2)+(T226^2)+(T227^2))","v":22},{"$f":"U224+U225+U226+U227","v":0},{"$f":"SQRT((V224^2)+(V225^2)+(V226^2)+(V227^2))","v":22},{"$f":"W224+W225+W226+W227","v":0},{"$f":"SQRT((X224^2)+(X225^2)+(X226^2)+(X227^2))","v":22},{"$f":"Y224+Y225+Y226+Y227","v":0},{"$f":"SQRT((Z224^2)+(Z225^2)+(Z226^2)+(Z227^2))","v":22},{"$f":"AA224+AA225+AA226+AA227","v":0},{"$f":"SQRT((AB224^2)+(AB225^2)+(AB226^2)+(AB227^2))","v":22},{"$f":"AC224+AC225+AC226+AC227","v":0},{"$f":"SQRT((AD224^2)+(AD225^2)+(AD226^2)+(AD227^2))","v":22},{"$f":"AE224+AE225+AE226+AE227","v":0},{"$f":"SQRT((AF224^2)+(AF225^2)+(AF226^2)+(AF227^2))","v":15.556349186104045},{"$f":"AG224+AG225+AG226+AG227","v":0},{"$f":"SQRT((AH224^2)+(AH225^2)+(AH226^2)+(AH227^2))","v":22},{"$f":"AI224+AI225+AI226+AI227","v":0},{"$f":"SQRT((AJ224^2)+(AJ225^2)+(AJ226^2)+(AJ227^2))","v":22},{"$f":"AK224+AK225+AK226+AK227","v":0},{"$f":"SQRT((AL224^2)+(AL225^2)+(AL226^2)+(AL227^2))","v":22},{"$f":"AM224+AM225+AM226+AM227","v":0},{"$f":"SQRT((AN224^2)+(AN225^2)+(AN226^2)+(AN227^2))","v":22},{"$f":"AO224+AO225+AO226+AO227","v":0},{"$f":"SQRT((AP224^2)+(AP225^2)+(AP226^2)+(AP227^2))","v":22},{"$f":"AQ224+AQ225+AQ226+AQ227","v":0},{"$f":"SQRT((AR224^2)+(AR225^2)+(AR226^2)+(AR227^2))","v":22},{"$f":"AS224+AS225+AS226+AS227","v":0},{"$f":"SQRT((AT224^2)+(AT225^2)+(AT226^2)+(AT227^2))","v":22},{"$f":"AU224+AU225+AU226+AU227","v":0},{"$f":"SQRT((AV224^2)+(AV225^2)+(AV226^2)+(AV227^2))","v":15.556349186104045},{"$f":"AW224+AW225+AW226+AW227","v":0},{"$f":"SQRT((AX224^2)+(AX225^2)+(AX226^2)+(AX227^2))","v":22},{"$f":"AY224+AY225+AY226+AY227","v":0},{"$f":"SQRT((AZ224^2)+(AZ225^2)+(AZ226^2)+(AZ227^2))","v":22},{"$f":"BA224+BA225+BA226+BA227","v":0},{"$f":"SQRT((BB224^2)+(BB225^2)+(BB226^2)+(BB227^2))","v":22},{"$f":"BC224+BC225+BC226+BC227","v":0},{"$f":"SQRT((BD224^2)+(BD225^2)+(BD226^2)+(BD227^2))","v":22},{"$f":"BE224+BE225+BE226+BE227","v":0},{"$f":"SQRT((BF224^2)+(BF225^2)+(BF226^2)+(BF227^2))","v":15.556349186104045},{"$f":"BG224+BG225+BG226+BG227","v":0},{"$f":"SQRT((BH224^2)+(BH225^2)+(BH226^2)+(BH227^2))","v":22},{"$f":"BI224+BI225+BI226+BI227","v":0},{"$f":"SQRT((BJ224^2)+(BJ225^2)+(BJ226^2)+(BJ227^2))","v":15.556349186104045},{"$f":"BK224+BK225+BK226+BK227","v":0},{"$f":"SQRT((BL224^2)+(BL225^2)+(BL226^2)+(BL227^2))","v":22},{"$f":"BM224+BM225+BM226+BM227","v":0},{"$f":"SQRT((BN224^2)+(BN225^2)+(BN226^2)+(BN227^2))","v":22},{"$f":"BO224+BO225+BO226+BO227","v":0},{"$f":"SQRT((BP224^2)+(BP225^2)+(BP226^2)+(BP227^2))","v":22},{"$f":"BQ224+BQ225+BQ226+BQ227","v":0},{"$f":"SQRT((BR224^2)+(BR225^2)+(BR226^2)+(BR227^2))","v":22},{"$f":"BS224+BS225+BS226+BS227","v":0},{"$f":"SQRT((BT224^2)+(BT225^2)+(BT226^2)+(BT227^2))","v":22},{"$f":"BU224+BU225+BU226+BU227","v":0},{"$f":"SQRT((BV224^2)+(BV225^2)+(BV226^2)+(BV227^2))","v":22},{"$f":"BW224+BW225+BW226+BW227","v":0},{"$f":"SQRT((BX224^2)+(BX225^2)+(BX226^2)+(BX227^2))","v":22},{"$f":"BY224+BY225+BY226+BY227","v":0},{"$f":"SQRT((BZ224^2)+(BZ225^2)+(BZ226^2)+(BZ227^2))","v":22},{"$f":"CA224+CA225+CA226+CA227","v":0},{"$f":"SQRT((CB224^2)+(CB225^2)+(CB226^2)+(CB227^2))","v":22},{"$f":"CC224+CC225+CC226+CC227","v":0},{"$f":"SQRT((CD224^2)+(CD225^2)+(CD226^2)+(CD227^2))","v":15.556349186104045},{"$f":"CE224+CE225+CE226+CE227","v":0},{"$f":"SQRT((CF224^2)+(CF225^2)+(CF226^2)+(CF227^2))","v":22},{"$f":"CG224+CG225+CG226+CG227","v":0},{"$f":"SQRT((CH224^2)+(CH225^2)+(CH226^2)+(CH227^2))","v":22},{"$f":"CI224+CI225+CI226+CI227","v":0},{"$f":"SQRT((CJ224^2)+(CJ225^2)+(CJ226^2)+(CJ227^2))","v":22}]
[null,"Less Than 35% of HH Income",{"$f":"C221+C222+C223+C224","v":0},{"$f":"SQRT((D221^2)+(D222^2)+(D223^2)+(D224^2))","v":22},{"$f":"E221+E222+E223+E224","v":0},{"$f":"SQRT((F221^2)+(F222^2)+(F223^2)+(F224^2))","v":22},{"$f":"G221+G222+G223+G224","v":0},{"$f":"SQRT((H221^2)+(H222^2)+(H223^2)+(H224^2))","v":22},{"$f":"I221+I222+I223+I224","v":54},{"$f":"SQRT((J221^2)+(J222^2)+(J223^2)+(J224^2))","v":50.239426748321883},{"$f":"K221+K222+K223+K224","v":0},{"$f":"SQRT((L221^2)+(L222^2)+(L223^2)+(L224^2))","v":22},{"$f":"M221+M222+M223+M224","v":6},{"$f":"SQRT((N221^2)+(N222^2)+(N223^2)+(N224^2))","v":21.071307505705477},{"$f":"O221+O222+O223+O224","v":0},{"$f":"SQRT((P221^2)+(P222^2)+(P223^2)+(P224^2))","v":22},{"$f":"Q221+Q222+Q223+Q224","v":3},{"$f":"SQRT((R221^2)+(R222^2)+(R223^2)+(R224^2))","v":19.467922333931785},{"$f":"S221+S222+S223+S224","v":29},{"$f":"SQRT((T221^2)+(T222^2)+(T223^2)+(T224^2))","v":25.534290669607408},{"$f":"U221+U222+U223+U224","v":3},{"$f":"SQRT((V221^2)+(V222^2)+(V223^2)+(V224^2))","v":19.467922333931785},{"$f":"W221+W222+W223+W224","v":0},{"$f":"SQRT((X221^2)+(X222^2)+(X223^2)+(X224^2))","v":22},{"$f":"Y221+Y222+Y223+Y224","v":0},{"$f":"SQRT((Z221^2)+(Z222^2)+(Z223^2)+(Z224^2))","v":22},{"$f":"AA221+AA222+AA223+AA224","v":0},{"$f":"SQRT((AB221^2)+(AB222^2)+(AB223^2)+(AB224^2))","v":22},{"$f":"AC221+AC222+AC223+AC224","v":0},{"$f":"SQRT((AD221^2)+(AD222^2)+(AD223^2)+(AD224^2))","v":22},{"$f":"AE221+AE222+AE223+AE224","v":0},{"$f":"SQRT((AF221^2)+(AF222^2)+(AF223^2)+(AF224^2))","v":22},{"$f":"AG221+AG222+AG223+AG224","v":7},{"$f":"SQRT((AH221^2)+(AH222^2)+(AH223^2)+(AH224^2))","v":21.517434791350013},{"$f":"AI221+AI222+AI223+AI224","v":3},{"$f":"SQRT((AJ221^2)+(AJ222^2)+(AJ223^2)+(AJ224^2))","v":19.467922333931785},{"$f":"AK221+AK222+AK223+AK224","v":0},{"$f":"SQRT((AL221^2)+(AL222^2)+(AL223^2)+(AL224^2))","v":22},{"$f":"AM221+AM222+AM223+AM224","v":15},{"$f":"SQRT((AN221^2)+(AN222^2)+(AN223^2)+(AN224^2))","v":24.879710609249457},{"$f":"AO221+AO222+AO223+AO224","v":0},{"$f":"SQRT((AP221^2)+(AP222^2)+(AP223^2)+(AP224^2))","v":22},{"$f":"AQ221+AQ222+AQ223+AQ224","v":0},{"$f":"SQRT((AR221^2)+(AR222^2)+(AR223^2)+(AR224^2))","v":22},{"$f":"AS221+AS222+AS223+AS224","v":0},{"$f":"SQRT((AT221^2)+(AT222^2)+(AT223^2)+(AT224^2))","v":22},{"$f":"AU221+AU222+AU223+AU224","v":0},{"$f":"SQRT((AV221^2)+(AV222^2)+(AV223^2)+(AV224^2))","v":22},{"$f":"AW221+AW222+AW223+AW224","v":65},{"$f":"SQRT((AX221^2)+(AX222^2)+(AX223^2)+(AX224^2))","v":61.481704595757591},{"$f":"AY221+AY222+AY223+AY224","v":0},{"$f":"SQRT((AZ221^2)+(AZ222^2)+(AZ223^2)+(AZ224^2))","v":22},{"$f":"BA221+BA222+BA223+BA224","v":0},{"$f":"SQRT((BB221^2)+(BB222^2)+(BB223^2)+(BB224^2))","v":22},{"$f":"BC221+BC222+BC223+BC224","v":0},{"$f":"SQRT((BD221^2)+(BD222^2)+(BD223^2)+(BD224^2))","v":22},{"$f":"BE221+BE222+BE223+BE224","v":0},{"$f":"SQRT((BF221^2)+(BF222^2)+(BF223^2)+(BF224^2))","v":22},{"$f":"BG221+BG222+BG223+BG224","v":0},{"$f":"SQRT((BH221^2)+(BH222^2)+(BH223^2)+(BH224^2))","v":22},{"$f":"BI221+BI222+BI223+BI224","v":0},{"$f":"SQRT((BJ221^2)+(BJ222^2)+(BJ223^2)+(BJ224^2))","v":22},{"$f":"BK221+BK222+BK223+BK224","v":0},{"$f":"SQRT((BL221^2)+(BL222^2)+(BL223^2)+(BL224^2))","v":22},{"$f":"BM221+BM222+BM223+BM224","v":0},{"$f":"SQRT((BN221^2)+(BN222^2)+(BN223^2)+(BN224^2))","v":22},{"$f":"BO221+BO222+BO223+BO224","v":1},{"$f":"SQRT((BP221^2)+(BP222^2)+(BP223^2)+(BP224^2))","v":19.157244060668017},{"$f":"BQ221+BQ222+BQ223+BQ224","v":0},{"$f":"SQRT((BR221^2)+(BR222^2)+(BR223^2)+(BR224^2))","v":22},{"$f":"BS221+BS222+BS223+BS224","v":0},{"$f":"SQRT((BT221^2)+(BT222^2)+(BT223^2)+(BT224^2))","v":22},{"$f":"BU221+BU222+BU223+BU224","v":2},{"$f":"SQRT((BV221^2)+(BV222^2)+(BV223^2)+(BV224^2))","v":19.467922333931785},{"$f":"BW221+BW222+BW223+BW224","v":0},{"$f":"SQRT((BX221^2)+(BX222^2)+(BX223^2)+(BX224^2))","v":22},{"$f":"BY221+BY222+BY223+BY224","v":0},{"$f":"SQRT((BZ221^2)+(BZ222^2)+(BZ223^2)+(BZ224^2))","v":22},{"$f":"CA221+CA222+CA223+CA224","v":0},{"$f":"SQRT((CB221^2)+(CB222^2)+(CB223^2)+(CB224^2))","v":22},{"$f":"CC221+CC222+CC223+CC224","v":0},{"$f":"SQRT((CD221^2)+(CD222^2)+(CD223^2)+(CD224^2))","v":22},{"$f":"CE221+CE222+CE223+CE224","v":0},{"$f":"SQRT((CF221^2)+(CF222^2)+(CF223^2)+(CF224^2))","v":22},{"$f":"CG221+CG222+CG223+CG224","v":0},{"$f":"SQRT((CH221^2)+(CH222^2)+(CH223^2)+(CH224^2))","v":22},{"$f":"CI221+CI222+CI223+CI224","v":6},{"$f":"SQRT((CJ221^2)+(CJ222^2)+(CJ223^2)+(CJ224^2))","v":21.071307505705477}]
[null,"35.0 percent or more",{"$f":"C225+C226+C227","v":0},{"$f":"SQRT((D225^2)+(D226^2)+(D227^2))","v":19.05255888325765},{"$f":"E225+E226+E227","v":0},{"$f":"SQRT((F225^2)+(F226^2)+(F227^2))","v":19.05255888325765},{"$f":"G225+G226+G227","v":0},{"$f":"SQRT((H225^2)+(H226^2)+(H227^2))","v":19.05255888325765},{"$f":"I225+I226+I227","v":0},{"$f":"SQRT((J225^2)+(J226^2)+(J227^2))","v":25.98076211353316},{"$f":"K225+K226+K227","v":0},{"$f":"SQRT((L225^2)+(L226^2)+(L227^2))","v":19.05255888325765},{"$f":"M225+M226+M227","v":0},{"$f":"SQRT((N225^2)+(N226^2)+(N227^2))","v":19.05255888325765},{"$f":"O225+O226+O227","v":0},{"$f":"SQRT((P225^2)+(P226^2)+(P227^2))","v":19.05255888325765},{"$f":"Q225+Q226+Q227","v":0},{"$f":"SQRT((R225^2)+(R226^2)+(R227^2))","v":19.05255888325765},{"$f":"S225+S226+S227","v":0},{"$f":"SQRT((T225^2)+(T226^2)+(T227^2))","v":19.05255888325765},{"$f":"U225+U226+U227","v":0},{"$f":"SQRT((V225^2)+(V226^2)+(V227^2))","v":19.05255888325765},{"$f":"W225+W226+W227","v":0},{"$f":"SQRT((X225^2)+(X226^2)+(X227^2))","v":19.05255888325765},{"$f":"Y225+Y226+Y227","v":0},{"$f":"SQRT((Z225^2)+(Z226^2)+(Z227^2))","v":19.05255888325765},{"$f":"AA225+AA226+AA227","v":0},{"$f":"SQRT((AB225^2)+(AB226^2)+(AB227^2))","v":19.05255888325765},{"$f":"AC225+AC226+AC227","v":0},{"$f":"SQRT((AD225^2)+(AD226^2)+(AD227^2))","v":19.05255888325765},{"$f":"AE225+AE226+AE227","v":0},{"$f":"SQRT((AF225^2)+(AF226^2)+(AF227^2))","v":11},{"$f":"AG225+AG226+AG227","v":0},{"$f":"SQRT((AH225^2)+(AH226^2)+(AH227^2))","v":19.05255888325765},{"$f":"AI225+AI226+AI227","v":0},{"$f":"SQRT((AJ225^2)+(AJ226^2)+(AJ227^2))","v":19.05255888325765},{"$f":"AK225+AK226+AK227","v":0},{"$f":"SQRT((AL225^2)+(AL226^2)+(AL227^2))","v":19.05255888325765},{"$f":"AM225+AM226+AM227","v":0},{"$f":"SQRT((AN225^2)+(AN226^2)+(AN227^2))","v":19.05255888325765},{"$f":"AO225+AO226+AO227","v":0},{"$f":"SQRT((AP225^2)+(AP226^2)+(AP227^2))","v":19.05255888325765},{"$f":"AQ225+AQ226+AQ227","v":0},{"$f":"SQRT((AR225^2)+(AR226^2)+(AR227^2))","v":19.05255888325765},{"$f":"AS225+AS226+AS227","v":0},{"$f":"SQRT((AT225^2)+(AT226^2)+(AT227^2))","v":19.05255888325765},{"$f":"AU225+AU226+AU227","v":0},{"$f":"SQRT((AV225^2)+(AV226^2)+(AV227^2))","v":11},{"$f":"AW225+AW226+AW227","v":0},{"$f":"SQRT((AX225^2)+(AX226^2)+(AX227^2))","v":19.05255888325765},{"$f":"AY225+AY226+AY227","v":0},{"$f":"SQRT((AZ225^2)+(AZ226^2)+(AZ227^2))","v":19.05255888325765},{"$f":"BA225+BA226+BA227","v":0},{"$f":"SQRT((BB225^2)+(BB226^2)+(BB227^2))","v":19.05255888325765},{"$f":"BC225+BC226+BC227","v":0},{"$f":"SQRT((BD225^2)+(BD226^2)+(BD227^2))","v":19.05255888325765},{"$f":"BE225+BE226+BE227","v":0},{"$f":"SQRT((BF225^2)+(BF226^2)+(BF227^2))","v":11},{"$f":"BG225+BG226+BG227","v":0},{"$f":"SQRT((BH225^2)+(BH226^2)+(BH227^2))","v":19.05255888325765},{"$f":"BI225+BI226+BI227","v":0},{"$f":"SQRT((BJ225^2)+(BJ226^2)+(BJ227^2))","v":11},{"$f":"BK225+BK226+BK227","v":0},{"$f":"SQRT((BL225^2)+(BL226^2)+(BL227^2))","v":19.05255888325765},{"$f":"BM225+BM226+BM227","v":0},{"$f":"SQRT((BN225^2)+(BN226^2)+(BN227^2))","v":19.05255888325765},{"$f":"BO225+BO226+BO227","v":0},{"$f":"SQRT((BP225^2)+(BP226^2)+(BP227^2))","v":19.05255888325765},{"$f":"BQ225+BQ226+BQ227","v":0},{"$f":"SQRT((BR225^2)+(BR226^2)+(BR227^2))","v":19.05255888325765},{"$f":"BS225+BS226+BS227","v":0},{"$f":"SQRT((BT225^2)+(BT226^2)+(BT227^2))","v":19.05255888325765},{"$f":"BU225+BU226+BU227","v":0},{"$f":"SQRT((BV225^2)+(BV226^2)+(BV227^2))","v":19.05255888325765},{"$f":"BW225+BW226+BW227","v":0},{"$f":"SQRT((BX225^2)+(BX226^2)+(BX227^2))","v":19.05255888325765},{"$f":"BY225+BY226+BY227","v":0},{"$f":"SQRT((BZ225^2)+(BZ226^2)+(BZ227^2))","v":19.05255888325765},{"$f":"CA225+CA226+CA227","v":0},{"$f":"SQRT((CB225^2)+(CB226^2)+(CB227^2))","v":19.05255888325765},{"$f":"CC225+CC226+CC227","v":0},{"$f":"SQRT((CD225^2)+(CD226^2)+(CD227^2))","v":11},{"$f":"CE225+CE226+CE227","v":0},{"$f":"SQRT((CF225^2)+(CF226^2)+(CF227^2))","v":19.05255888325765},{"$f":"CG225+CG226+CG227","v":0},{"$f":"SQRT((CH225^2)+(CH226^2)+(CH227^2))","v":19.05255888325765},{"$f":"CI225+CI226+CI227","v":0},{"$f":"SQRT((CJ225^2)+(CJ226^2)+(CJ227^2))","v":19.05255888325765}]
[null,"50.0 percent or more",{"$f":"C227","v":0},11,0,11,0,11,0,15,0,11,0,11,0,11,0,11,0,11,0,11,0,11,0,11,0,11,0,11,0,11,0,11,0,11,0,11,0,11,0,11,0,11,0,11,0,11,0,11,0,11,0,11,0,11,0,11,0,11,0,11,0,11,0,11,{"$f":"BO227","v":0},11,0,11,0,11,0,11,0,11,0,11,0,11,0,11,0,11,0,11,0,11]
[null,"Not Computed",0,11,0,11,0,11,0,15,0,11,0,11,0,11,0,11,6,8,0,11,0,11,0,11,0,11,0,11,0,11,0,11,0,11,0,11,0,11,0,11,0,11,0,11,0,11,17,15,0,11,0,11,0,11,0,11,0,11,0,11,0,11,0,11,0,11,0,11,0,11,0,11,0,11,0,11,0,11,0,11,0,11,0,11,0,11]
[null,"$100,000 or more:",0,11,0,11,0,11,7,12,0,11,0,11,0,11,0,11,12,14,7,7,0,11,0,11,0,11,0,11,0,11,0,11,0,11,0,11,0,11,0,11,0,11,0,11,0,11,15,17,0,11,0,11,0,11,0,11,0,11,0,11,0,11,0,11,0,11,5,6,0,11,0,11,4,6,5,5,0,11,0,11,0,11,0,11,5,7]
[null,"Less than 30.0 percent",{"$f":"C230+C231+C232","v":0},{"$f":"SQRT((D230^2)+(D231^2)+(D232^2))","v":19.05255888325765},{"$f":"E230+E231+E232","v":0},{"$f":"SQRT((F230^2)+(F231^2)+(F232^2))","v":19.05255888325765},{"$f":"G230+G231+G232","v":0},{"$f":"SQRT((H230^2)+(H231^2)+(H232^2))","v":19.05255888325765},{"$f":"I230+I231+I232","v":7},{"$f":"SQRT((J230^2)+(J231^2)+(J232^2))","v":24.372115213907882},{"$f":"K230+K231+K232","v":0},{"$f":"SQRT((L230^2)+(L231^2)+(L232^2))","v":19.05255888325765},{"$f":"M230+M231+M232","v":0},{"$f":"SQRT((N230^2)+(N231^2)+(N232^2))","v":19.05255888325765},{"$f":"O230+O231+O232","v":0},{"$f":"SQRT((P230^2)+(P231^2)+(P232^2))","v":19.05255888325765},{"$f":"Q230+Q231+Q232","v":0},{"$f":"SQRT((R230^2)+(R231^2)+(R232^2))","v":19.05255888325765},{"$f":"S230+S231+S232","v":12},{"$f":"SQRT((T230^2)+(T231^2)+(T232^2))","v":20.928449536456348},{"$f":"U230+U231+U232","v":7},{"$f":"SQRT((V230^2)+(V231^2)+(V232^2))","v":17.058722109231979},{"$f":"W230+W231+W232","v":0},{"$f":"SQRT((X230^2)+(X231^2)+(X232^2))","v":19.05255888325765},{"$f":"Y230+Y231+Y232","v":0},{"$f":"SQRT((Z230^2)+(Z231^2)+(Z232^2))","v":19.05255888325765},{"$f":"AA230+AA231+AA232","v":0},{"$f":"SQRT((AB230^2)+(AB231^2)+(AB232^2))","v":19.05255888325765},{"$f":"AC230+AC231+AC232","v":0},{"$f":"SQRT((AD230^2)+(AD231^2)+(AD232^2))","v":19.05255888325765},{"$f":"AE230+AE231+AE232","v":0},{"$f":"SQRT((AF230^2)+(AF231^2)+(AF232^2))","v":19.05255888325765},{"$f":"AG230+AG231+AG232","v":0},{"$f":"SQRT((AH230^2)+(AH231^2)+(AH232^2))","v":19.05255888325765},{"$f":"AI230+AI231+AI232","v":0},{"$f":"SQRT((AJ230^2)+(AJ231^2)+(AJ232^2))","v":19.05255888325765},{"$f":"AK230+AK231+AK232","v":0},{"$f":"SQRT((AL230^2)+(AL231^2)+(AL232^2))","v":19.05255888325765},{"$f":"AM230+AM231+AM232","v":0},{"$f":"SQRT((AN230^2)+(AN231^2)+(AN232^2))","v":19.05255888325765},{"$f":"AO230+AO231+AO232","v":0},{"$f":"SQRT((AP230^2)+(AP231^2)+(AP232^2))","v":19.05255888325765},{"$f":"AQ230+AQ231+AQ232","v":0},{"$f":"SQRT((AR230^2)+(AR231^2)+(AR232^2))","v":19.05255888325765},{"$f":"AS230+AS231+AS232","v":0},{"$f":"SQRT((AT230^2)+(AT231^2)+(AT232^2))","v":19.05255888325765},{"$f":"AU230+AU231+AU232","v":0},{"$f":"SQRT((AV230^2)+(AV231^2)+(AV232^2))","v":19.05255888325765},{"$f":"AW230+AW231+AW232","v":15},{"$f":"SQRT((AX230^2)+(AX231^2)+(AX232^2))","v":23.043437243605826},{"$f":"AY230+AY231+AY232","v":0},{"$f":"SQRT((AZ230^2)+(AZ231^2)+(AZ232^2))","v":19.05255888325765},{"$f":"BA230+BA231+BA232","v":0},{"$f":"SQRT((BB230^2)+(BB231^2)+(BB232^2))","v":19.05255888325765},{"$f":"BC230+BC231+BC232","v":0},{"$f":"SQRT((BD230^2)+(BD231^2)+(BD232^2))","v":19.05255888325765},{"$f":"BE230+BE231+BE232","v":0},{"$f":"SQRT((BF230^2)+(BF231^2)+(BF232^2))","v":19.05255888325765},{"$f":"BG230+BG231+BG232","v":0},{"$f":"SQRT((BH230^2)+(BH231^2)+(BH232^2))","v":19.05255888325765},{"$f":"BI230+BI231+BI232","v":0},{"$f":"SQRT((BJ230^2)+(BJ231^2)+(BJ232^2))","v":19.05255888325765},{"$f":"BK230+BK231+BK232","v":0},{"$f":"SQRT((BL230^2)+(BL231^2)+(BL232^2))","v":19.05255888325765},{"$f":"BM230+BM231+BM232","v":0},{"$f":"SQRT((BN230^2)+(BN231^2)+(BN232^2))","v":19.05255888325765},{"$f":"BO230+BO231+BO232","v":0},{"$f":"SQRT((BP230^2)+(BP231^2)+(BP232^2))","v":19.05255888325765},{"$f":"BQ230+BQ231+BQ232","v":5},{"$f":"SQRT((BR230^2)+(BR231^2)+(BR232^2))","v":16.673332000533065},{"$f":"BS230+BS231+BS232","v":0},{"$f":"SQRT((BT230^2)+(BT231^2)+(BT232^2))","v":19.05255888325765},{"$f":"BU230+BU231+BU232","v":0},{"$f":"SQRT((BV230^2)+(BV231^2)+(BV232^2))","v":19.05255888325765},{"$f":"BW230+BW231+BW232","v":0},{"$f":"SQRT((BX230^2)+(BX231^2)+(BX232^2))","v":19.05255888325765},{"$f":"BY230+BY231+BY232","v":5},{"$f":"SQRT((BZ230^2)+(BZ231^2)+(BZ232^2))","v":16.340134638368191},{"$f":"CA230+CA231+CA232","v":0},{"$f":"SQRT((CB230^2)+(CB231^2)+(CB232^2))","v":19.05255888325765},{"$f":"CC230+CC231+CC232","v":0},{"$f":"SQRT((CD230^2)+(CD231^2)+(CD232^2))","v":19.05255888325765},{"$f":"CE230+CE231+CE232","v":0},{"$f":"SQRT((CF230^2)+(CF231^2)+(CF232^2))","v":19.05255888325765},{"$f":"CG230+CG231+CG232","v":0},{"$f":"SQRT((CH230^2)+(CH231^2)+(CH232^2))","v":19.05255888325765},{"$f":"CI230+CI231+CI232","v":5},{"$f":"SQRT((CJ230^2)+(CJ231^2)+(CJ232^2))","v":17.058722109231979}]
[null,"More than 30.0 percent",{"$f":"C233+C234+C235+C236","v":0},{"$f":"SQRT((D233^2)+(D234^2)+(D235^2)+(D236^2))","v":22},{"$f":"E233+E234+E235+E236","v":0},{"$f":"SQRT((F233^2)+(F234^2)+(F235^2)+(F236^2))","v":22},{"$f":"G233+G234+G235+G236","v":0},{"$f":"SQRT((H233^2)+(H234^2)+(H235^2)+(H236^2))","v":22},{"$f":"I233+I234+I235+I236","v":0},{"$f":"SQRT((J233^2)+(J234^2)+(J235^2)+(J236^2))","v":30},{"$f":"K233+K234+K235+K236","v":0},{"$f":"SQRT((L233^2)+(L234^2)+(L235^2)+(L236^2))","v":22},{"$f":"M233+M234+M235+M236","v":0},{"$f":"SQRT((N233^2)+(N234^2)+(N235^2)+(N236^2))","v":22},{"$f":"O233+O234+O235+O236","v":0},{"$f":"SQRT((P233^2)+(P234^2)+(P235^2)+(P236^2))","v":22},{"$f":"Q233+Q234+Q235+Q236","v":0},{"$f":"SQRT((R233^2)+(R234^2)+(R235^2)+(R236^2))","v":22},{"$f":"S233+S234+S235+S236","v":0},{"$f":"SQRT((T233^2)+(T234^2)+(T235^2)+(T236^2))","v":22},{"$f":"U233+U234+U235+U236","v":0},{"$f":"SQRT((V233^2)+(V234^2)+(V235^2)+(V236^2))","v":22},{"$f":"W233+W234+W235+W236","v":0},{"$f":"SQRT((X233^2)+(X234^2)+(X235^2)+(X236^2))","v":22},{"$f":"Y233+Y234+Y235+Y236","v":0},{"$f":"SQRT((Z233^2)+(Z234^2)+(Z235^2)+(Z236^2))","v":22},{"$f":"AA233+AA234+AA235+AA236","v":0},{"$f":"SQRT((AB233^2)+(AB234^2)+(AB235^2)+(AB236^2))","v":22},{"$f":"AC233+AC234+AC235+AC236","v":0},{"$f":"SQRT((AD233^2)+(AD234^2)+(AD235^2)+(AD236^2))","v":22},{"$f":"AE233+AE234+AE235+AE236","v":0},{"$f":"SQRT((AF233^2)+(AF234^2)+(AF235^2)+(AF236^2))","v":19.05255888325765},{"$f":"AG233+AG234+AG235+AG236","v":0},{"$f":"SQRT((AH233^2)+(AH234^2)+(AH235^2)+(AH236^2))","v":22},{"$f":"AI233+AI234+AI235+AI236","v":0},{"$f":"SQRT((AJ233^2)+(AJ234^2)+(AJ235^2)+(AJ236^2))","v":22},{"$f":"AK233+AK234+AK235+AK236","v":0},{"$f":"SQRT((AL233^2)+(AL234^2)+(AL235^2)+(AL236^2))","v":22},{"$f":"AM233+AM234+AM235+AM236","v":0},{"$f":"SQRT((AN233^2)+(AN234^2)+(AN235^2)+(AN236^2))","v":22},{"$f":"AO233+AO234+AO235+AO236","v":0},{"$f":"SQRT((AP233^2)+(AP234^2)+(AP235^2)+(AP236^2))","v":22},{"$f":"AQ233+AQ234+AQ235+AQ236","v":0},{"$f":"SQRT((AR233^2)+(AR234^2)+(AR235^2)+(AR236^2))","v":22},{"$f":"AS233+AS234+AS235+AS236","v":0},{"$f":"SQRT((AT233^2)+(AT234^2)+(AT235^2)+(AT236^2))","v":22},{"$f":"AU233+AU234+AU235+AU236","v":0},{"$f":"SQRT((AV233^2)+(AV234^2)+(AV235^2)+(AV236^2))","v":19.05255888325765},{"$f":"AW233+AW234+AW235+AW236","v":0},{"$f":"SQRT((AX233^2)+(AX234^2)+(AX235^2)+(AX236^2))","v":22},{"$f":"AY233+AY234+AY235+AY236","v":0},{"$f":"SQRT((AZ233^2)+(AZ234^2)+(AZ235^2)+(AZ236^2))","v":22},{"$f":"BA233+BA234+BA235+BA236","v":0},{"$f":"SQRT((BB233^2)+(BB234^2)+(BB235^2)+(BB236^2))","v":22},{"$f":"BC233+BC234+BC235+BC236","v":0},{"$f":"SQRT((BD233^2)+(BD234^2)+(BD235^2)+(BD236^2))","v":22},{"$f":"BE233+BE234+BE235+BE236","v":0},{"$f":"SQRT((BF233^2)+(BF234^2)+(BF235^2)+(BF236^2))","v":19.05255888325765},{"$f":"BG233+BG234+BG235+BG236","v":0},{"$f":"SQRT((BH233^2)+(BH234^2)+(BH235^2)+(BH236^2))","v":22},{"$f":"BI233+BI234+BI235+BI236","v":0},{"$f":"SQRT((BJ233^2)+(BJ234^2)+(BJ235^2)+(BJ236^2))","v":19.05255888325765},{"$f":"BK233+BK234+BK235+BK236","v":0},{"$f":"SQRT((BL233^2)+(BL234^2)+(BL235^2)+(BL236^2))","v":22},{"$f":"BM233+BM234+BM235+BM236","v":0},{"$f":"SQRT((BN233^2)+(BN234^2)+(BN235^2)+(BN236^2))","v":22},{"$f":"BO233+BO234+BO235+BO236","v":0},{"$f":"SQRT((BP233^2)+(BP234^2)+(BP235^2)+(BP236^2))","v":22},{"$f":"BQ233+BQ234+BQ235+BQ236","v":0},{"$f":"SQRT((BR233^2)+(BR234^2)+(BR235^2)+(BR236^2))","v":22},{"$f":"BS233+BS234+BS235+BS236","v":0},{"$f":"SQRT((BT233^2)+(BT234^2)+(BT235^2)+(BT236^2))","v":22},{"$f":"BU233+BU234+BU235+BU236","v":0},{"$f":"SQRT((BV233^2)+(BV234^2)+(BV235^2)+(BV236^2))","v":22},{"$f":"BW233+BW234+BW235+BW236","v":0},{"$f":"SQRT((BX233^2)+(BX234^2)+(BX235^2)+(BX236^2))","v":22},{"$f":"BY233+BY234+BY235+BY236","v":0},{"$f":"SQRT((BZ233^2)+(BZ234^2)+(BZ235^2)+(BZ236^2))","v":22},{"$f":"CA233+CA234+CA235+CA236","v":0},{"$f":"SQRT((CB233^2)+(CB234^2)+(CB235^2)+(CB236^2))","v":22},{"$f":"CC233+CC234+CC235+CC236","v":0},{"$f":"SQRT((CD233^2)+(CD234^2)+(CD235^2)+(CD236^2))","v":19.05255888325765},{"$f":"CE233+CE234+CE235+CE236","v":0},{"$f":"SQRT((CF233^2)+(CF234^2)+(CF235^2)+(CF236^2))","v":22},{"$f":"CG233+CG234+CG235+CG236","v":0},{"$f":"SQRT((CH233^2)+(CH234^2)+(CH235^2)+(CH236^2))","v":22},{"$f":"CI233+CI234+CI235+CI236","v":0},{"$f":"SQRT((CJ233^2)+(CJ234^2)+(CJ235^2)+(CJ236^2))","v":22}]
[null,"Less Than 35% of HH Income",{"$f":"C230+C231+C232+C233","v":0},{"$f":"SQRT(((D230^2)+(D231^2)+(D232^2)+(D233^2)))","v":22},{"$f":"E230+E231+E232+E233","v":0},{"$f":"SQRT(((F230^2)+(F231^2)+(F232^2)+(F233^2)))","v":22},{"$f":"G230+G231+G232+G233","v":0},{"$f":"SQRT(((H230^2)+(H231^2)+(H232^2)+(H233^2)))","v":22},{"$f":"I230+I231+I232+I233","v":7},{"$f":"SQRT(((J230^2)+(J231^2)+(J232^2)+(J233^2)))","v":28.61817604250837},{"$f":"K230+K231+K232+K233","v":0},{"$f":"SQRT(((L230^2)+(L231^2)+(L232^2)+(L233^2)))","v":22},{"$f":"M230+M231+M232+M233","v":0},{"$f":"SQRT(((N230^2)+(N231^2)+(N232^2)+(N233^2)))","v":22},{"$f":"O230+O231+O232+O233","v":0},{"$f":"SQRT(((P230^2)+(P231^2)+(P232^2)+(P233^2)))","v":22},{"$f":"Q230+Q231+Q232+Q233","v":0},{"$f":"SQRT(((R230^2)+(R231^2)+(R232^2)+(R233^2)))","v":22},{"$f":"S230+S231+S232+S233","v":12},{"$f":"SQRT(((T230^2)+(T231^2)+(T232^2)+(T233^2)))","v":23.643180835073778},{"$f":"U230+U231+U232+U233","v":7},{"$f":"SQRT(((V230^2)+(V231^2)+(V232^2)+(V233^2)))","v":20.297783130184438},{"$f":"W230+W231+W232+W233","v":0},{"$f":"SQRT(((X230^2)+(X231^2)+(X232^2)+(X233^2)))","v":22},{"$f":"Y230+Y231+Y232+Y233","v":0},{"$f":"SQRT(((Z230^2)+(Z231^2)+(Z232^2)+(Z233^2)))","v":22},{"$f":"AA230+AA231+AA232+AA233","v":0},{"$f":"SQRT(((AB230^2)+(AB231^2)+(AB232^2)+(AB233^2)))","v":22},{"$f":"AC230+AC231+AC232+AC233","v":0},{"$f":"SQRT(((AD230^2)+(AD231^2)+(AD232^2)+(AD233^2)))","v":22},{"$f":"AE230+AE231+AE232+AE233","v":0},{"$f":"SQRT(((AF230^2)+(AF231^2)+(AF232^2)+(AF233^2)))","v":22},{"$f":"AG230+AG231+AG232+AG233","v":0},{"$f":"SQRT(((AH230^2)+(AH231^2)+(AH232^2)+(AH233^2)))","v":22},{"$f":"AI230+AI231+AI232+AI233","v":0},{"$f":"SQRT(((AJ230^2)+(AJ231^2)+(AJ232^2)+(AJ233^2)))","v":22},{"$f":"AK230+AK231+AK232+AK233","v":0},{"$f":"SQRT(((AL230^2)+(AL231^2)+(AL232^2)+(AL233^2)))","v":22},{"$f":"AM230+AM231+AM232+AM233","v":0},{"$f":"SQRT(((AN230^2)+(AN231^2)+(AN232^2)+(AN233^2)))","v":22},{"$f":"AO230+AO231+AO232+AO233","v":0},{"$f":"SQRT(((AP230^2)+(AP231^2)+(AP232^2)+(AP233^2)))","v":22},{"$f":"AQ230+AQ231+AQ232+AQ233","v":0},{"$f":"SQRT(((AR230^2)+(AR231^2)+(AR232^2)+(AR233^2)))","v":22},{"$f":"AS230+AS231+AS232+AS233","v":0},{"$f":"SQRT(((AT230^2)+(AT231^2)+(AT232^2)+(AT233^2)))","v":22},{"$f":"AU230+AU231+AU232+AU233","v":0},{"$f":"SQRT(((AV230^2)+(AV231^2)+(AV232^2)+(AV233^2)))","v":22},{"$f":"AW230+AW231+AW232+AW233","v":15},{"$f":"SQRT(((AX230^2)+(AX231^2)+(AX232^2)+(AX233^2)))","v":25.534290669607408},{"$f":"AY230+AY231+AY232+AY233","v":0},{"$f":"SQRT(((AZ230^2)+(AZ231^2)+(AZ232^2)+(AZ233^2)))","v":22},{"$f":"BA230+BA231+BA232+BA233","v":0},{"$f":"SQRT(((BB230^2)+(BB231^2)+(BB232^2)+(BB233^2)))","v":22},{"$f":"BC230+BC231+BC232+BC233","v":0},{"$f":"SQRT(((BD230^2)+(BD231^2)+(BD232^2)+(BD233^2)))","v":22},{"$f":"BE230+BE231+BE232+BE233","v":0},{"$f":"SQRT(((BF230^2)+(BF231^2)+(BF232^2)+(BF233^2)))","v":22},{"$f":"BG230+BG231+BG232+BG233","v":0},{"$f":"SQRT(((BH230^2)+(BH231^2)+(BH232^2)+(BH233^2)))","v":22},{"$f":"BI230+BI231+BI232+BI233","v":0},{"$f":"SQRT(((BJ230^2)+(BJ231^2)+(BJ232^2)+(BJ233^2)))","v":22},{"$f":"BK230+BK231+BK232+BK233","v":0},{"$f":"SQRT(((BL230^2)+(BL231^2)+(BL232^2)+(BL233^2)))","v":22},{"$f":"BM230+BM231+BM232+BM233","v":0},{"$f":"SQRT(((BN230^2)+(BN231^2)+(BN232^2)+(BN233^2)))","v":22},{"$f":"BO230+BO231+BO232+BO233","v":0},{"$f":"SQRT(((BP230^2)+(BP231^2)+(BP232^2)+(BP233^2)))","v":22},{"$f":"BQ230+BQ231+BQ232+BQ233","v":5},{"$f":"SQRT(((BR230^2)+(BR231^2)+(BR232^2)+(BR233^2)))","v":19.974984355438178},{"$f":"BS230+BS231+BS232+BS233","v":0},{"$f":"SQRT(((BT230^2)+(BT231^2)+(BT232^2)+(BT233^2)))","v":22},{"$f":"BU230+BU231+BU232+BU233","v":0},{"$f":"SQRT(((BV230^2)+(BV231^2)+(BV232^2)+(BV233^2)))","v":22},{"$f":"BW230+BW231+BW232+BW233","v":0},{"$f":"SQRT(((BX230^2)+(BX231^2)+(BX232^2)+(BX233^2)))","v":22},{"$f":"BY230+BY231+BY232+BY233","v":5},{"$f":"SQRT(((BZ230^2)+(BZ231^2)+(BZ232^2)+(BZ233^2)))","v":19.697715603592208},{"$f":"CA230+CA231+CA232+CA233","v":0},{"$f":"SQRT(((CB230^2)+(CB231^2)+(CB232^2)+(CB233^2)))","v":22},{"$f":"CC230+CC231+CC232+CC233","v":0},{"$f":"SQRT(((CD230^2)+(CD231^2)+(CD232^2)+(CD233^2)))","v":22},{"$f":"CE230+CE231+CE232+CE233","v":0},{"$f":"SQRT(((CF230^2)+(CF231^2)+(CF232^2)+(CF233^2)))","v":22},{"$f":"CG230+CG231+CG232+CG233","v":0},{"$f":"SQRT(((CH230^2)+(CH231^2)+(CH232^2)+(CH233^2)))","v":22},{"$f":"CI230+CI231+CI232+CI233","v":5},{"$f":"SQRT(((CJ230^2)+(CJ231^2)+(CJ232^2)+(CJ233^2)))","v":20.297783130184438}]
[null,"35.0 percent or more",{"$f":"C234+C235+C236","v":0},{"$f":"SQRT((D234^2)+(D235^2)+(D236^2))","v":19.05255888325765},{"$f":"E234+E235+E236","v":0},{"$f":"SQRT((F234^2)+(F235^2)+(F236^2))","v":19.05255888325765},{"$f":"G234+G235+G236","v":0},{"$f":"SQRT((H234^2)+(H235^2)+(H236^2))","v":19.05255888325765},{"$f":"I234+I235+I236","v":0},{"$f":"SQRT((J234^2)+(J235^2)+(J236^2))","v":25.98076211353316},{"$f":"K234+K235+K236","v":0},{"$f":"SQRT((L234^2)+(L235^2)+(L236^2))","v":19.05255888325765},{"$f":"M234+M235+M236","v":0},{"$f":"SQRT((N234^2)+(N235^2)+(N236^2))","v":19.05255888325765},{"$f":"O234+O235+O236","v":0},{"$f":"SQRT((P234^2)+(P235^2)+(P236^2))","v":19.05255888325765},{"$f":"Q234+Q235+Q236","v":0},{"$f":"SQRT((R234^2)+(R235^2)+(R236^2))","v":19.05255888325765},{"$f":"S234+S235+S236","v":0},{"$f":"SQRT((T234^2)+(T235^2)+(T236^2))","v":19.05255888325765},{"$f":"U234+U235+U236","v":0},{"$f":"SQRT((V234^2)+(V235^2)+(V236^2))","v":19.05255888325765},{"$f":"W234+W235+W236","v":0},{"$f":"SQRT((X234^2)+(X235^2)+(X236^2))","v":19.05255888325765},{"$f":"Y234+Y235+Y236","v":0},{"$f":"SQRT((Z234^2)+(Z235^2)+(Z236^2))","v":19.05255888325765},{"$f":"AA234+AA235+AA236","v":0},{"$f":"SQRT((AB234^2)+(AB235^2)+(AB236^2))","v":19.05255888325765},{"$f":"AC234+AC235+AC236","v":0},{"$f":"SQRT((AD234^2)+(AD235^2)+(AD236^2))","v":19.05255888325765},{"$f":"AE234+AE235+AE236","v":0},{"$f":"SQRT((AF234^2)+(AF235^2)+(AF236^2))","v":15.556349186104045},{"$f":"AG234+AG235+AG236","v":0},{"$f":"SQRT((AH234^2)+(AH235^2)+(AH236^2))","v":19.05255888325765},{"$f":"AI234+AI235+AI236","v":0},{"$f":"SQRT((AJ234^2)+(AJ235^2)+(AJ236^2))","v":19.05255888325765},{"$f":"AK234+AK235+AK236","v":0},{"$f":"SQRT((AL234^2)+(AL235^2)+(AL236^2))","v":19.05255888325765},{"$f":"AM234+AM235+AM236","v":0},{"$f":"SQRT((AN234^2)+(AN235^2)+(AN236^2))","v":19.05255888325765},{"$f":"AO234+AO235+AO236","v":0},{"$f":"SQRT((AP234^2)+(AP235^2)+(AP236^2))","v":19.05255888325765},{"$f":"AQ234+AQ235+AQ236","v":0},{"$f":"SQRT((AR234^2)+(AR235^2)+(AR236^2))","v":19.05255888325765},{"$f":"AS234+AS235+AS236","v":0},{"$f":"SQRT((AT234^2)+(AT235^2)+(AT236^2))","v":19.05255888325765},{"$f":"AU234+AU235+AU236","v":0},{"$f":"SQRT((AV234^2)+(AV235^2)+(AV236^2))","v":15.556349186104045},{"$f":"AW234+AW235+AW236","v":0},{"$f":"SQRT((AX234^2)+(AX235^2)+(AX236^2))","v":19.05255888325765},{"$f":"AY234+AY235+AY236","v":0},{"$f":"SQRT((AZ234^2)+(AZ235^2)+(AZ236^2))","v":19.05255888325765},{"$f":"BA234+BA235+BA236","v":0},{"$f":"SQRT((BB234^2)+(BB235^2)+(BB236^2))","v":19.05255888325765},{"$f":"BC234+BC235+BC236","v":0},{"$f":"SQRT((BD234^2)+(BD235^2)+(BD236^2))","v":19.05255888325765},{"$f":"BE234+BE235+BE236","v":0},{"$f":"SQRT((BF234^2)+(BF235^2)+(BF236^2))","v":15.556349186104045},{"$f":"BG234+BG235+BG236","v":0},{"$f":"SQRT((BH234^2)+(BH235^2)+(BH236^2))","v":19.05255888325765},{"$f":"BI234+BI235+BI236","v":0},{"$f":"SQRT((BJ234^2)+(BJ235^2)+(BJ236^2))","v":15.556349186104045},{"$f":"BK234+BK235+BK236","v":0},{"$f":"SQRT((BL234^2)+(BL235^2)+(BL236^2))","v":19.05255888325765},{"$f":"BM234+BM235+BM236","v":0},{"$f":"SQRT((BN234^2)+(BN235^2)+(BN236^2))","v":19.05255888325765},{"$f":"BO234+BO235+BO236","v":0},{"$f":"SQRT((BP234^2)+(BP235^2)+(BP236^2))","v":19.05255888325765},{"$f":"BQ234+BQ235+BQ236","v":0},{"$f":"SQRT((BR234^2)+(BR235^2)+(BR236^2))","v":19.05255888325765},{"$f":"BS234+BS235+BS236","v":0},{"$f":"SQRT((BT234^2)+(BT235^2)+(BT236^2))","v":19.05255888325765},{"$f":"BU234+BU235+BU236","v":0},{"$f":"SQRT((BV234^2)+(BV235^2)+(BV236^2))","v":19.05255888325765},{"$f":"BW234+BW235+BW236","v":0},{"$f":"SQRT((BX234^2)+(BX235^2)+(BX236^2))","v":19.05255888325765},{"$f":"BY234+BY235+BY236","v":0},{"$f":"SQRT((BZ234^2)+(BZ235^2)+(BZ236^2))","v":19.05255888325765},{"$f":"CA234+CA235+CA236","v":0},{"$f":"SQRT((CB234^2)+(CB235^2)+(CB236^2))","v":19.05255888325765},{"$f":"CC234+CC235+CC236","v":0},{"$f":"SQRT((CD234^2)+(CD235^2)+(CD236^2))","v":15.556349186104045},{"$f":"CE234+CE235+CE236","v":0},{"$f":"SQRT((CF234^2)+(CF235^2)+(CF236^2))","v":19.05255888325765},{"$f":"CG234+CG235+CG236","v":0},{"$f":"SQRT((CH234^2)+(CH235^2)+(CH236^2))","v":19.05255888325765},{"$f":"CI234+CI235+CI236","v":0},{"$f":"SQRT((CJ234^2)+(CJ235^2)+(CJ236^2))","v":19.05255888325765}]
[null,"50.0 percent or more",{"$f":"C236","v":0},{"$f":"D236","v":11},{"$f":"E236","v":0},11,{"$f":"G236","v":0},11,{"$f":"I236","v":0},15,{"$f":"K236","v":0},11,{"$f":"M236","v":0},11,{"$f":"O236","v":0},11,{"$f":"Q236","v":0},11,{"$f":"S236","v":0},11,{"$f":"U236","v":0},11,{"$f":"W236","v":0},11,{"$f":"Y236","v":0},11,{"$f":"AA236","v":0},11,{"$f":"AC236","v":0},11,{"$f":"AE236","v":0},0,{"$f":"AG236","v":0},11,{"$f":"AI236","v":0},11,{"$f":"AK236","v":0},11,{"$f":"AM236","v":0},11,{"$f":"AO236","v":0},11,{"$f":"AQ236","v":0},11,{"$f":"AS236","v":0},11,{"$f":"AU236","v":0},0,{"$f":"AW236","v":0},11,{"$f":"AY236","v":0},11,{"$f":"BA236","v":0},11,{"$f":"BC236","v":0},11,{"$f":"BE236","v":0},0,{"$f":"BG236","v":0},11,{"$f":"BI236","v":0},0,{"$f":"BK236","v":0},11,{"$f":"BM236","v":0},11,{"$f":"BO236","v":0},{"$f":"BP236","v":11},{"$f":"BQ236","v":0},11,{"$f":"BS236","v":0},11,{"$f":"BU236","v":0},11,{"$f":"BW236","v":0},11,{"$f":"BY236","v":0},11,{"$f":"CA236","v":0},11,{"$f":"CC236","v":0},0,{"$f":"CE236","v":0},11,{"$f":"CG236","v":0},11,{"$f":"CI236","v":0},11]
[null,"Not Computed",{"$f":"C237","v":0},11,{"$f":"E237","v":0},11,{"$f":"G237","v":0},11,{"$f":"I237","v":0},15,{"$f":"K237","v":0},11,{"$f":"M237","v":0},11,{"$f":"O237","v":0},11,{"$f":"Q237","v":0},11,{"$f":"S237","v":0},11,{"$f":"U237","v":0},11,{"$f":"W237","v":0},11,{"$f":"Y237","v":0},11,{"$f":"AA237","v":0},11,{"$f":"AC237","v":0},11,{"$f":"AE237","v":0},0,{"$f":"AG237","v":0},11,{"$f":"AI237","v":0},11,{"$f":"AK237","v":0},11,{"$f":"AM237","v":0},11,{"$f":"AO237","v":0},11,{"$f":"AQ237","v":0},11,{"$f":"AS237","v":0},11,{"$f":"AU237","v":0},0,{"$f":"AW237","v":0},11,{"$f":"AY237","v":0},11,{"$f":"BA237","v":0},11,{"$f":"BC237","v":0},11,{"$f":"BE237","v":0},0,{"$f":"BG237","v":0},11,{"$f":"BI237","v":0},0,{"$f":"BK237","v":0},11,{"$f":"BM237","v":0},11,{"$f":"BO237","v":0},11,{"$f":"BQ237","v":0},11,{"$f":"BS237","v":0},11,{"$f":"BU237","v":0},11,{"$f":"BW237","v":4},6,{"$f":"BY237","v":0},11,{"$f":"CA237","v":0},11,{"$f":"CC237","v":0},0,{"$f":"CE237","v":0},11,{"$f":"CG237","v":0},11,{"$f":"CI237","v":0},11]
[]
[]
[null,"Calculated GROSS RENT AS A PERCENTAGE OF HOUSEHOLD INCOME IN THE PAST 12 MONTHS"]
[null,"Universe:  RENTER OCCUPIED HOUSING UNITS"]
[null,"Data Set: 2010-2014 American Community Survey 5-Year Estimates"]
[]
[null,null,"Atkinson and Gilmanton Grant",null,"Bean's Grant",null,"Bean's Purchase",null,"Berlin",null,"Cambridge",null,"Carroll",null,"Chandler's Purchase",null,"Clarksville",null,"Colebrook",null,"Columbia",null,"Crawford's Purchase",null,"Cutt's Grant",null,"Dalton",null,"Dix's Grant",null,"Dixville",null,"Dummer",null,"Errol",null,"Erving's Location",null,"Gorham",null,"Greens Grant",null,"Hadley's Purchase",null,"Jefferson",null,"Kilkenny",null,"Lancaster",null,"Low and Burbank's Grant",null,"Martin's Location",null,"Milan",null,"Millsfield",null,"Northumberland",null,"Odell",null,"Pinkham's Grant",null,"Pittsburg",null,"Randolph",null,"Sargent's Purchase",null,"Second College Grant",null,"Shelburne",null,"Stark",null,"Stewartstown",null,"Stratford",null,"Success",null,"Thompson and Meserves Purchase",null,"Wentworth's Location",null,"Whitefield"]
[null,null,"Estimate","Margin Of Error","Estimate","Margin Of Error","Estimate","Margin Of Error","Estimate","Margin Of Error","Estimate","Margin Of Error","Estimate","Margin Of Error","Estimate","Margin Of Error","Estimate","Margin Of Error","Estimate","Margin Of Error","Estimate","Margin Of Error","Estimate","Margin Of Error","Estimate","Margin Of Error","Estimate","Margin Of Error","Estimate","Margin Of Error","Estimate","Margin Of Error","Estimate","Margin Of Error","Estimate","Margin Of Error","Estimate","Margin Of Error","Estimate","Margin Of Error","Estimate","Margin Of Error","Estimate","Margin Of Error","Estimate","Margin Of Error","Estimate","Margin Of Error","Estimate","Margin Of Error","Estimate","Margin Of Error","Estimate","Margin Of Error","Estimate","Margin Of Error","Estimate","Margin Of Error","Estimate","Margin Of Error","Estimate","Margin Of Error","Estimate","Margin Of Error","Estimate","Margin Of Error","Estimate","Margin Of Error","Estimate","Margin Of Error","Estimate","Margin Of Error","Estimate","Margin Of Error","Estimate","Margin Of Error","Estimate","Margin Of Error","Estimate","Margin Of Error","Estimate","Margin Of Error","Estimate","Margin Of Error","Estimate","Margin Of Error","Estimate","Margin Of Error"]
[null,{"$f":"B259","v":"Total:"},0,11,0,11,0,11,1651,226,0,11,95,36,0,11,17,11,354,73,61,31,0,11,0,11,79,33,4,6,3,6,13,13,37,19,0,11,363,96,0,11,0,11,0,11,0,11,477,113,0,11,0,11,0,11,0,11,0,11,0,11,0,11,91,{"$f":"BN259","v":34},22,15,5,6,0,11,24,16,36,13,101,39,0,11,0,11,0,11,17,16,380,84]
[null,"Less than 30.0 percent",{"$f":"C303+C296+C289+C282+C275+C268+C261","v":0},{"$f":"SQRT((D303^2)+(D296^2)+(D289^2)+(D282^2)+(D275^2)+(D268^2)+(D261^2))","v":50.408332644514239},{"$f":"E303+E296+E289+E282+E275+E268+E261","v":0},{"$f":"SQRT((F303^2)+(F296^2)+(F289^2)+(F282^2)+(F275^2)+(F268^2)+(F261^2))","v":50.408332644514239},{"$f":"G303+G296+G289+G282+G275+G268+G261","v":0},{"$f":"SQRT((H303^2)+(H296^2)+(H289^2)+(H282^2)+(H275^2)+(H268^2)+(H261^2))","v":50.408332644514239},{"$f":"I303+I296+I289+I282+I275+I268+I261","v":794},{"$f":"SQRT((J303^2)+(J296^2)+(J289^2)+(J282^2)+(J275^2)+(J268^2)+(J261^2))","v":190.23932295926622},{"$f":"K303+K296+K289+K282+K275+K268+K261","v":0},{"$f":"SQRT((L303^2)+(L296^2)+(L289^2)+(L282^2)+(L275^2)+(L268^2)+(L261^2))","v":50.408332644514239},{"$f":"M303+M296+M289+M282+M275+M268+M261","v":49},{"$f":"SQRT((N303^2)+(N296^2)+(N289^2)+(N282^2)+(N275^2)+(N268^2)+(N261^2))","v":53.009433122794285},{"$f":"O303+O296+O289+O282+O275+O268+O261","v":0},{"$f":"SQRT((P303^2)+(P296^2)+(P289^2)+(P282^2)+(P275^2)+(P268^2)+(P261^2))","v":50.408332644514239},{"$f":"Q303+Q296+Q289+Q282+Q275+Q268+Q261","v":5},{"$f":"SQRT((R303^2)+(R296^2)+(R289^2)+(R282^2)+(R275^2)+(R268^2)+(R261^2))","v":48.373546489791295},{"$f":"S303+S296+S289+S282+S275+S268+S261","v":187},{"$f":"SQRT((T303^2)+(T296^2)+(T289^2)+(T282^2)+(T275^2)+(T268^2)+(T261^2))","v":63.450768316861222},{"$f":"U303+U296+U289+U282+U275+U268+U261","v":30},{"$f":"SQRT((V303^2)+(V296^2)+(V289^2)+(V282^2)+(V275^2)+(V268^2)+(V261^2))","v":47.90615826801394},{"$f":"W303+W296+W289+W282+W275+W268+W261","v":0},{"$f":"SQRT((X303^2)+(X296^2)+(X289^2)+(X282^2)+(X275^2)+(X268^2)+(X261^2))","v":50.408332644514239},{"$f":"Y303+Y296+Y289+Y282+Y275+Y268+Y261","v":0},{"$f":"SQRT((Z303^2)+(Z296^2)+(Z289^2)+(Z282^2)+(Z275^2)+(Z268^2)+(Z261^2))","v":50.408332644514239},{"$f":"AA303+AA296+AA289+AA282+AA275+AA268+AA261","v":32},{"$f":"SQRT((AB303^2)+(AB296^2)+(AB289^2)+(AB282^2)+(AB275^2)+(AB268^2)+(AB261^2))","v":51.487862647424002},{"$f":"AC303+AC296+AC289+AC282+AC275+AC268+AC261","v":4},{"$f":"SQRT((AD303^2)+(AD296^2)+(AD289^2)+(AD282^2)+(AD275^2)+(AD268^2)+(AD261^2))","v":49.558046773455466},{"$f":"AE303+AE296+AE289+AE282+AE275+AE268+AE261","v":3},{"$f":"SQRT((AF303^2)+(AF296^2)+(AF289^2)+(AF282^2)+(AF275^2)+(AF268^2)+(AF261^2))","v":49.558046773455466},{"$f":"AG303+AG296+AG289+AG282+AG275+AG268+AG261","v":9},{"$f":"SQRT((AH303^2)+(AH296^2)+(AH289^2)+(AH282^2)+(AH275^2)+(AH268^2)+(AH261^2))","v":47.81213235152768},{"$f":"AI303+AI296+AI289+AI282+AI275+AI268+AI261","v":23},{"$f":"SQRT((AJ303^2)+(AJ296^2)+(AJ289^2)+(AJ282^2)+(AJ275^2)+(AJ268^2)+(AJ261^2))","v":46.61544808322666},{"$f":"AK303+AK296+AK289+AK282+AK275+AK268+AK261","v":0},{"$f":"SQRT((AL303^2)+(AL296^2)+(AL289^2)+(AL282^2)+(AL275^2)+(AL268^2)+(AL261^2))","v":50.408332644514239},{"$f":"AM303+AM296+AM289+AM282+AM275+AM268+AM261","v":223},{"$f":"SQRT((AN303^2)+(AN296^2)+(AN289^2)+(AN282^2)+(AN275^2)+(AN268^2)+(AN261^2))","v":98.300559510106552},{"$f":"AO303+AO296+AO289+AO282+AO275+AO268+AO261","v":0},{"$f":"SQRT((AP303^2)+(AP296^2)+(AP289^2)+(AP282^2)+(AP275^2)+(AP268^2)+(AP261^2))","v":50.408332644514239},{"$f":"AQ303+AQ296+AQ289+AQ282+AQ275+AQ268+AQ261","v":0},{"$f":"SQRT((AR303^2)+(AR296^2)+(AR289^2)+(AR282^2)+(AR275^2)+(AR268^2)+(AR261^2))","v":50.408332644514239},{"$f":"AS303+AS296+AS289+AS282+AS275+AS268+AS261","v":0},{"$f":"SQRT((AT303^2)+(AT296^2)+(AT289^2)+(AT282^2)+(AT275^2)+(AT268^2)+(AT261^2))","v":50.408332644514239},{"$f":"AU303+AU296+AU289+AU282+AU275+AU268+AU261","v":0},{"$f":"SQRT((AV303^2)+(AV296^2)+(AV289^2)+(AV282^2)+(AV275^2)+(AV268^2)+(AV261^2))","v":50.408332644514239},{"$f":"AW303+AW296+AW289+AW282+AW275+AW268+AW261","v":201},{"$f":"SQRT((AX303^2)+(AX296^2)+(AX289^2)+(AX282^2)+(AX275^2)+(AX268^2)+(AX261^2))","v":100.13990213696037},{"$f":"AY303+AY296+AY289+AY282+AY275+AY268+AY261","v":0},{"$f":"SQRT((AZ303^2)+(AZ296^2)+(AZ289^2)+(AZ282^2)+(AZ275^2)+(AZ268^2)+(AZ261^2))","v":50.408332644514239},{"$f":"BA303+BA296+BA289+BA282+BA275+BA268+BA261","v":0},{"$f":"SQRT((BB303^2)+(BB296^2)+(BB289^2)+(BB282^2)+(BB275^2)+(BB268^2)+(BB261^2))","v":50.408332644514239},{"$f":"BC303+BC296+BC289+BC282+BC275+BC268+BC261","v":0},{"$f":"SQRT((BD303^2)+(BD296^2)+(BD289^2)+(BD282^2)+(BD275^2)+(BD268^2)+(BD261^2))","v":50.408332644514239},{"$f":"BE303+BE296+BE289+BE282+BE275+BE268+BE261","v":0},{"$f":"SQRT((BF303^2)+(BF296^2)+(BF289^2)+(BF282^2)+(BF275^2)+(BF268^2)+(BF261^2))","v":50.408332644514239},{"$f":"BG303+BG296+BG289+BG282+BG275+BG268+BG261","v":0},{"$f":"SQRT((BH303^2)+(BH296^2)+(BH289^2)+(BH282^2)+(BH275^2)+(BH268^2)+(BH261^2))","v":50.408332644514239},{"$f":"BI303+BI296+BI289+BI282+BI275+BI268+BI261","v":0},{"$f":"SQRT((BJ303^2)+(BJ296^2)+(BJ289^2)+(BJ282^2)+(BJ275^2)+(BJ268^2)+(BJ261^2))","v":50.408332644514239},{"$f":"BK303+BK296+BK289+BK282+BK275+BK268+BK261","v":0},{"$f":"SQRT((BL303^2)+(BL296^2)+(BL289^2)+(BL282^2)+(BL275^2)+(BL268^2)+(BL261^2))","v":50.408332644514239},{"$f":"BM303+BM296+BM289+BM282+BM275+BM268+BM261","v":43},{"$f":"SQRT((BN303^2)+(BN296^2)+(BN289^2)+(BN282^2)+(BN275^2)+(BN268^2)+(BN261^2))","v":54.42425929675111},{"$f":"BO303+BO296+BO289+BO282+BO275+BO268+BO261","v":14},{"$f":"SQRT((BP303^2)+(BP296^2)+(BP289^2)+(BP282^2)+(BP275^2)+(BP268^2)+(BP261^2))","v":43.81780460041329},{"$f":"BQ303+BQ296+BQ289+BQ282+BQ275+BQ268+BQ261","v":5},{"$f":"SQRT((BR303^2)+(BR296^2)+(BR289^2)+(BR282^2)+(BR275^2)+(BR268^2)+(BR261^2))","v":49.558046773455466},{"$f":"BS303+BS296+BS289+BS282+BS275+BS268+BS261","v":0},{"$f":"SQRT((BT303^2)+(BT296^2)+(BT289^2)+(BT282^2)+(BT275^2)+(BT268^2)+(BT261^2))","v":50.408332644514239},{"$f":"BU303+BU296+BU289+BU282+BU275+BU268+BU261","v":13},{"$f":"SQRT((BV303^2)+(BV296^2)+(BV289^2)+(BV282^2)+(BV275^2)+(BV268^2)+(BV261^2))","v":48.207883172775801},{"$f":"BW303+BW296+BW289+BW282+BW275+BW268+BW261","v":16},{"$f":"SQRT((BX303^2)+(BX296^2)+(BX289^2)+(BX282^2)+(BX275^2)+(BX268^2)+(BX261^2))","v":45.639894828976104},{"$f":"BY303+BY296+BY289+BY282+BY275+BY268+BY261","v":76},{"$f":"SQRT((BZ303^2)+(BZ296^2)+(BZ289^2)+(BZ282^2)+(BZ275^2)+(BZ268^2)+(BZ261^2))","v":56.568542494923804},{"$f":"CA303+CA296+CA289+CA282+CA275+CA268+CA261","v":0},{"$f":"SQRT((CB303^2)+(CB296^2)+(CB289^2)+(CB282^2)+(CB275^2)+(CB268^2)+(CB261^2))","v":50.408332644514239},{"$f":"CC303+CC296+CC289+CC282+CC275+CC268+CC261","v":0},{"$f":"SQRT((CD303^2)+(CD296^2)+(CD289^2)+(CD282^2)+(CD275^2)+(CD268^2)+(CD261^2))","v":50.408332644514239},{"$f":"CE303+CE296+CE289+CE282+CE275+CE268+CE261","v":0},{"$f":"SQRT((CF303^2)+(CF296^2)+(CF289^2)+(CF282^2)+(CF275^2)+(CF268^2)+(CF261^2))","v":50.408332644514239},{"$f":"CG303+CG296+CG289+CG282+CG275+CG268+CG261","v":5},{"$f":"SQRT((CH303^2)+(CH296^2)+(CH289^2)+(CH282^2)+(CH275^2)+(CH268^2)+(CH261^2))","v":49.689032995219378},{"$f":"CI303+CI296+CI289+CI282+CI275+CI268+CI261","v":171},{"$f":"SQRT((CJ303^2)+(CJ296^2)+(CJ289^2)+(CJ282^2)+(CJ275^2)+(CJ268^2)+(CJ261^2))","v":71.477269114033732}]
[null,"More than 30.0 percent",{"$f":"C304+C297+C290+C283+C276+C269+C262","v":0},{"$f":"SQRT((D304^2)+(D297^2)+(D290^2)+(D283^2)+(D276^2)+(D269^2)+(D262^2))","v":58.20652884342099},0,58.20652884342099,0,58.20652884342099,776,166.88019654830228,0,58.20652884342099,40,60.091596750294464,0,58.20652884342099,10,54.433445601027316,132,66.708320320631671,19,57.463031594234565,0,58.20652884342099,0,58.20652884342099,12,56.373752757821613,0,58.20652884342099,0,42.602816808281588,4,54.083269131959838,6,56.603886792339623,0,58.20652884342099,140,89.280456988077745,0,58.20652884342099,0,58.20652884342099,0,58.20652884342099,0,42.602816808281588,238,117.55849607748476,0,58.20652884342099,0,58.20652884342099,0,58.20652884342099,0,42.602816808281588,0,58.20652884342099,0,42.602816808281588,0,58.20652884342099,39,59.497899122574069,8,57.02630971753301,0,58.20652884342099,0,58.20652884342099,4,56.391488719486738,6,55.263007518592396,12,56.240554762555462,0,58.20652884342099,0,42.602816808281588,0,58.20652884342099,1,57.23635208501674,193,84.793867702800299]
[null,"Less Than 35% of HH Income",{"$f":"C305+C298+C291+C284+C277+C270+C263","v":0},{"$f":"SQRT((D305^2)+(D298^2)+(D291^2)+(D284^2)+(D277^2)+(D270^2)+(D263^2))","v":58.20652884342099},0,58.20652884342099,0,58.20652884342099,942,205.82273926852687,0,58.20652884342099,75,62.425956140054431,0,58.20652884342099,5,56.453520705089772,231,72.131823767322004,30,56.053545828966072,0,58.20652884342099,0,58.20652884342099,32,59.143892330484981,4,57.471732182004047,3,57.471732182004047,10,54.918120870983927,25,53.925875050851054,0,58.20652884342099,264,109.10545357588684,0,58.20652884342099,0,58.20652884342099,0,58.20652884342099,0,58.20652884342099,257,115.15641536623133,0,58.20652884342099,0,58.20652884342099,0,58.20652884342099,0,58.20652884342099,0,58.20652884342099,0,58.20652884342099,0,58.20652884342099,52,61.546730213716472,14,52.602281319349636,5,57.471732182004047,0,58.20652884342099,14,55.308227236099334,19,51.97114584074513,81,63.166446789415026,0,58.20652884342099,0,58.20652884342099,0,58.20652884342099,5,57.584720195551874,199,80.087452200703694]
[null,"35.0 percent or more",{"$f":"C306+C299+C292+C285+C278+C271+C264","v":0},{"$f":"SQRT((D306^2)+(D299^2)+(D292^2)+(D285^2)+(D278^2)+(D271^2)+(D264^2))","v":50.408332644514239},0,50.408332644514239,0,50.408332644514239,628,147.23111084278349,0,50.408332644514239,14,50.239426748321883,0,50.408332644514239,10,46,88,57.210138961551209,19,49.547956567349978,0,50.408332644514239,0,50.408332644514239,12,48.28043081829324,0,50.408332644514239,0,31.11269837220809,3,46.850827100489916,4,49.689032995219378,0,50.408332644514239,99,75.696763471102244,0,50.408332644514239,0,50.408332644514239,0,50.408332644514239,0,31.11269837220809,182,102.89314845994363,0,50.408332644514239,0,50.408332644514239,0,50.408332644514239,0,31.11269837220809,0,50.408332644514239,0,31.11269837220809,0,50.408332644514239,30,52.096065110524421,8,49.040799340956916,0,50.408332644514239,0,50.408332644514239,3,49.446941260304463,3,49.355850717012267,7,48.713447835274401,0,50.408332644514239,0,31.11269837220809,0,50.408332644514239,1,49.28488612140643,165,76.71375365604267]
[null,"50.0 percent or more",{"$f":"C307+C300+C293+C286+C279+C272+C265","v":0},{"$f":"SQRT((D307^2)+(D300^2)+(D293^2)+(D286^2)+(D279^2)+(D272^2)+(D265^2))","v":29.103264421710495},0,29.103264421710495,0,29.103264421710495,501,128.40950120610233,0,29.103264421710495,8,29.49576240750525,0,29.103264421710495,5,25.278449319529077,60,40.496913462633174,12,30.838287890218549,0,29.103264421710495,0,29.103264421710495,6,25.238858928247925,0,29.103264421710495,0,26.944387170614959,1,27.018512172212592,4,27.838821814150108,0,29.103264421710495,59,42.778499272414876,0,29.103264421710495,0,29.103264421710495,0,29.103264421710495,0,26.944387170614959,70,55.045435778091537,0,29.103264421710495,0,29.103264421710495,0,29.103264421710495,0,26.944387170614959,0,29.103264421710495,0,26.944387170614959,0,29.103264421710495,20,30.740852297878796,0,29.103264421710495,0,29.103264421710495,0,29.103264421710495,3,27.404379212089442,0,29.103264421710495,5,27.838821814150108,0,29.103264421710495,0,26.944387170614959,0,29.103264421710495,1,27.110883423451916,88,42.249260348555218]
[null,"Not Computed",{"$f":"C307+C301+C294+C287+C280+C273+C266","v":0},{"$f":"SQRT((D307^2)+(D301^2)+(D294^2)+(D287^2)+(D280^2)+(D273^2)+(D266^2))","v":29.103264421710495},{"$f":"E307+E301+E294+E287+E280+E273+E266","v":0},{"$f":"SQRT((F307^2)+(F301^2)+(F294^2)+(F287^2)+(F280^2)+(F273^2)+(F266^2))","v":29.103264421710495},{"$f":"G307+G301+G294+G287+G280+G273+G266","v":0},{"$f":"SQRT((H307^2)+(H301^2)+(H294^2)+(H287^2)+(H280^2)+(H273^2)+(H266^2))","v":29.103264421710495},{"$f":"I307+I301+I294+I287+I280+I273+I266","v":81},{"$f":"SQRT((J307^2)+(J301^2)+(J294^2)+(J287^2)+(J280^2)+(J273^2)+(J266^2))","v":64.451532177288072},{"$f":"K307+K301+K294+K287+K280+K273+K266","v":0},{"$f":"SQRT((L307^2)+(L301^2)+(L294^2)+(L287^2)+(L280^2)+(L273^2)+(L266^2))","v":29.103264421710495},{"$f":"M307+M301+M294+M287+M280+M273+M266","v":6},{"$f":"SQRT((N307^2)+(N301^2)+(N294^2)+(N287^2)+(N280^2)+(N273^2)+(N266^2))","v":25.238858928247925},{"$f":"O307+O301+O294+O287+O280+O273+O266","v":0},{"$f":"SQRT((P307^2)+(P301^2)+(P294^2)+(P287^2)+(P280^2)+(P273^2)+(P266^2))","v":29.103264421710495},{"$f":"Q307+Q301+Q294+Q287+Q280+Q273+Q266","v":2},{"$f":"SQRT((R307^2)+(R301^2)+(R294^2)+(R287^2)+(R280^2)+(R273^2)+(R266^2))","v":27.239676943752471},{"$f":"S307+S301+S294+S287+S280+S273+S266","v":35},{"$f":"SQRT((T307^2)+(T301^2)+(T294^2)+(T287^2)+(T280^2)+(T273^2)+(T266^2))","v":36.851051545376556},{"$f":"U307+U301+U294+U287+U280+U273+U266","v":12},{"$f":"SQRT((V307^2)+(V301^2)+(V294^2)+(V287^2)+(V280^2)+(V273^2)+(V266^2))","v":27.694764848252458},{"$f":"W307+W301+W294+W287+W280+W273+W266","v":0},{"$f":"SQRT((X307^2)+(X301^2)+(X294^2)+(X287^2)+(X280^2)+(X273^2)+(X266^2))","v":29.103264421710495},{"$f":"Y307+Y301+Y294+Y287+Y280+Y273+Y266","v":0},{"$f":"SQRT((Z307^2)+(Z301^2)+(Z294^2)+(Z287^2)+(Z280^2)+(Z273^2)+(Z266^2))","v":29.103264421710495},{"$f":"AA307+AA301+AA294+AA287+AA280+AA273+AA266","v":35},{"$f":"SQRT((AB307^2)+(AB301^2)+(AB294^2)+(AB287^2)+(AB280^2)+(AB273^2)+(AB266^2))","v":32.969683043669072},{"$f":"AC307+AC301+AC294+AC287+AC280+AC273+AC266","v":0},{"$f":"SQRT((AD307^2)+(AD301^2)+(AD294^2)+(AD287^2)+(AD280^2)+(AD273^2)+(AD266^2))","v":29.103264421710495},{"$f":"AE307+AE301+AE294+AE287+AE280+AE273+AE266","v":0},{"$f":"SQRT((AF307^2)+(AF301^2)+(AF294^2)+(AF287^2)+(AF280^2)+(AF273^2)+(AF266^2))","v":26.944387170614959},{"$f":"AG307+AG301+AG294+AG287+AG280+AG273+AG266","v":0},{"$f":"SQRT((AH307^2)+(AH301^2)+(AH294^2)+(AH287^2)+(AH280^2)+(AH273^2)+(AH266^2))","v":29.103264421710495},{"$f":"AI307+AI301+AI294+AI287+AI280+AI273+AI266","v":8},{"$f":"SQRT((AJ307^2)+(AJ301^2)+(AJ294^2)+(AJ287^2)+(AJ280^2)+(AJ273^2)+(AJ266^2))","v":25.495097567963924},{"$f":"AK307+AK301+AK294+AK287+AK280+AK273+AK266","v":0},{"$f":"SQRT((AL307^2)+(AL301^2)+(AL294^2)+(AL287^2)+(AL280^2)+(AL273^2)+(AL266^2))","v":29.103264421710495},{"$f":"AM307+AM301+AM294+AM287+AM280+AM273+AM266","v":0},{"$f":"SQRT((AN307^2)+(AN301^2)+(AN294^2)+(AN287^2)+(AN280^2)+(AN273^2)+(AN266^2))","v":29.103264421710495},{"$f":"AO307+AO301+AO294+AO287+AO280+AO273+AO266","v":0},{"$f":"SQRT((AP307^2)+(AP301^2)+(AP294^2)+(AP287^2)+(AP280^2)+(AP273^2)+(AP266^2))","v":29.103264421710495},{"$f":"AQ307+AQ301+AQ294+AQ287+AQ280+AQ273+AQ266","v":0},{"$f":"SQRT((AR307^2)+(AR301^2)+(AR294^2)+(AR287^2)+(AR280^2)+(AR273^2)+(AR266^2))","v":29.103264421710495},{"$f":"AS307+AS301+AS294+AS287+AS280+AS273+AS266","v":0},{"$f":"SQRT((AT307^2)+(AT301^2)+(AT294^2)+(AT287^2)+(AT280^2)+(AT273^2)+(AT266^2))","v":29.103264421710495},{"$f":"AU307+AU301+AU294+AU287+AU280+AU273+AU266","v":0},{"$f":"SQRT((AV307^2)+(AV301^2)+(AV294^2)+(AV287^2)+(AV280^2)+(AV273^2)+(AV266^2))","v":26.944387170614959},{"$f":"AW307+AW301+AW294+AW287+AW280+AW273+AW266","v":38},{"$f":"SQRT((AX307^2)+(AX301^2)+(AX294^2)+(AX287^2)+(AX280^2)+(AX273^2)+(AX266^2))","v":36.523964735499348},{"$f":"AY307+AY301+AY294+AY287+AY280+AY273+AY266","v":0},{"$f":"SQRT((AZ307^2)+(AZ301^2)+(AZ294^2)+(AZ287^2)+(AZ280^2)+(AZ273^2)+(AZ266^2))","v":29.103264421710495},{"$f":"BA307+BA301+BA294+BA287+BA280+BA273+BA266","v":0},{"$f":"SQRT((BB307^2)+(BB301^2)+(BB294^2)+(BB287^2)+(BB280^2)+(BB273^2)+(BB266^2))","v":29.103264421710495},{"$f":"BC307+BC301+BC294+BC287+BC280+BC273+BC266","v":0},{"$f":"SQRT((BD307^2)+(BD301^2)+(BD294^2)+(BD287^2)+(BD280^2)+(BD273^2)+(BD266^2))","v":29.103264421710495},{"$f":"BE307+BE301+BE294+BE287+BE280+BE273+BE266","v":0},{"$f":"SQRT((BF307^2)+(BF301^2)+(BF294^2)+(BF287^2)+(BF280^2)+(BF273^2)+(BF266^2))","v":26.944387170614959},{"$f":"BG307+BG301+BG294+BG287+BG280+BG273+BG266","v":0},{"$f":"SQRT((BH307^2)+(BH301^2)+(BH294^2)+(BH287^2)+(BH280^2)+(BH273^2)+(BH266^2))","v":29.103264421710495},{"$f":"BI307+BI301+BI294+BI287+BI280+BI273+BI266","v":0},{"$f":"SQRT((BJ307^2)+(BJ301^2)+(BJ294^2)+(BJ287^2)+(BJ280^2)+(BJ273^2)+(BJ266^2))","v":26.944387170614959},{"$f":"BK307+BK301+BK294+BK287+BK280+BK273+BK266","v":0},{"$f":"SQRT((BL307^2)+(BL301^2)+(BL294^2)+(BL287^2)+(BL280^2)+(BL273^2)+(BL266^2))","v":29.103264421710495},{"$f":"BM307+BM301+BM294+BM287+BM280+BM273+BM266","v":9},{"$f":"SQRT((BN307^2)+(BN301^2)+(BN294^2)+(BN287^2)+(BN280^2)+(BN273^2)+(BN266^2))","v":26.551836094703507},{"$f":"BO307+BO301+BO294+BO287+BO280+BO273+BO266","v":0},{"$f":"SQRT((BP307^2)+(BP301^2)+(BP294^2)+(BP287^2)+(BP280^2)+(BP273^2)+(BP266^2))","v":29.103264421710495},{"$f":"BQ307+BQ301+BQ294+BQ287+BQ280+BQ273+BQ266","v":0},{"$f":"SQRT((BR307^2)+(BR301^2)+(BR294^2)+(BR287^2)+(BR280^2)+(BR273^2)+(BR266^2))","v":29.103264421710495},{"$f":"BS307+BS301+BS294+BS287+BS280+BS273+BS266","v":0},{"$f":"SQRT((BT307^2)+(BT301^2)+(BT294^2)+(BT287^2)+(BT280^2)+(BT273^2)+(BT266^2))","v":29.103264421710495},{"$f":"BU307+BU301+BU294+BU287+BU280+BU273+BU266","v":7},{"$f":"SQRT((BV307^2)+(BV301^2)+(BV294^2)+(BV287^2)+(BV280^2)+(BV273^2)+(BV266^2))","v":22.912878474779198},{"$f":"BW307+BW301+BW294+BW287+BW280+BW273+BW266","v":10},{"$f":"SQRT((BX307^2)+(BX301^2)+(BX294^2)+(BX287^2)+(BX280^2)+(BX273^2)+(BX266^2))","v":20.928449536456348},{"$f":"BY307+BY301+BY294+BY287+BY280+BY273+BY266","v":13},{"$f":"SQRT((BZ307^2)+(BZ301^2)+(BZ294^2)+(BZ287^2)+(BZ280^2)+(BZ273^2)+(BZ266^2))","v":29.086079144497972},{"$f":"CA307+CA301+CA294+CA287+CA280+CA273+CA266","v":0},{"$f":"SQRT((CB307^2)+(CB301^2)+(CB294^2)+(CB287^2)+(CB280^2)+(CB273^2)+(CB266^2))","v":29.103264421710495},{"$f":"CC307+CC301+CC294+CC287+CC280+CC273+CC266","v":0},{"$f":"SQRT((CD307^2)+(CD301^2)+(CD294^2)+(CD287^2)+(CD280^2)+(CD273^2)+(CD266^2))","v":26.944387170614959},{"$f":"CE307+CE301+CE294+CE287+CE280+CE273+CE266","v":0},{"$f":"SQRT((CF307^2)+(CF301^2)+(CF294^2)+(CF287^2)+(CF280^2)+(CF273^2)+(CF266^2))","v":29.103264421710495},{"$f":"CG307+CG301+CG294+CG287+CG280+CG273+CG266","v":11},{"$f":"SQRT((CH307^2)+(CH301^2)+(CH294^2)+(CH287^2)+(CH280^2)+(CH273^2)+(CH266^2))","v":28.460498941515414},{"$f":"CI307+CI301+CI294+CI287+CI280+CI273+CI266","v":16},{"$f":"SQRT((CJ307^2)+(CJ301^2)+(CJ294^2)+(CJ287^2)+(CJ280^2)+(CJ273^2)+(CJ266^2))","v":28.687976575562104}]
[]
[]
[]
[]
[]
[]
[]
[]
[]
[]
[]
[null,"B25074. HOUSEHOLD INCOME BY GROSS RENT AS A PERCENTAGE OF HOUSEHOLD INCOME IN THE PAST 12 MONTHS"]
[null,"Universe:  RENTER OCCUPIED HOUSING UNITS",null,null,null,null,null,"Income in 2009 Inflation Adjusted Dollars"]
[null,"Data Set: 2005-2009 American Community Survey 5-Year Estimates"]
[null,null,"Atkinson and Gilmanton Grant",null,"Bean's Grant",null,"Bean's Purchase",null,"Berlin",null,"Cambridge",null,"Carroll",null,"Chandler's Purchase",null,"Clarksville",null,"Colebrook",null,"Columbia",null,"Crawford's Purchase",null,"Cutt's Grant",null,"Dalton",null,"Dix's Grant",null,"Dixville",null,"Dummer",null,"Errol",null,"Erving's Location",null,"Gorham",null,"Greens Grant",null,"Hadley's Purchase",null,"Jefferson",null,"Kilkenny",null,"Lancaster",null,"Low and Burbank's Grant",null,"Martin's Location",null,"Milan",null,"Millsfield",null,"Northumberland",null,"Odell",null,"Pinkham's Grant",null,"Pittsburg",null,"Randolph",null,"Sargent's Purchase",null,"Second College Grant",null,"Shelburne",null,"Stark",null,"Stewartstown",null,"Stratford",null,"Success",null,"Thompson and Meserves Purchase",null,"Wentworth's Location",null,"Whitefield"]
[null,null,"Estimate","Margin Of Error","Estimate","Margin Of Error","Estimate","Margin Of Error","Estimate","Margin Of Error","Estimate","Margin Of Error","Estimate","Margin Of Error","Estimate","Margin Of Error","Estimate","Margin Of Error","Estimate","Margin Of Error","Estimate","Margin Of Error","Estimate","Margin Of Error","Estimate","Margin Of Error","Estimate","Margin Of Error","Estimate","Margin Of Error","Estimate","Margin Of Error","Estimate","Margin Of Error","Estimate","Margin Of Error","Estimate","Margin Of Error","Estimate","Margin Of Error","Estimate","Margin Of Error","Estimate","Margin Of Error","Estimate","Margin Of Error","Estimate","Margin Of Error","Estimate","Margin Of Error","Estimate","Margin Of Error","Estimate","Margin Of Error","Estimate","Margin Of Error","Estimate","Margin Of Error","Estimate","Margin Of Error","Estimate","Margin Of Error","Estimate","Margin Of Error","Estimate","Margin Of Error","Estimate","Margin Of Error","Estimate","Margin Of Error","Estimate","Margin Of Error","Estimate","Margin Of Error","Estimate","Margin Of Error","Estimate","Margin Of Error","Estimate","Margin Of Error","Estimate","Margin Of Error","Estimate","Margin Of Error","Estimate","Margin Of Error","Estimate","Margin Of Error"]
[null,"Total:",0,114,0,114,0,114,1524,246,0,114,39,29,0,114,22,21,440,101,18,19,0,114,0,114,78,38,0,114,8,8,11,11,7,6,0,114,443,121,0,114,0,114,40,21,0,114,351,77,0,114,0,114,68,25,0,114,381,86,0,114,0,114,40,17,16,13,0,114,0,114,21,11,51,32,68,30,143,41,0,114,0,114,4,6,253,58]
[null,"Less than $10,000:",0,114,0,114,0,114,347,126,0,114,0,114,0,114,0,114,103,60,0,114,0,114,0,114,15,16,0,114,0,114,0,114,0,114,0,114,25,23,0,114,0,114,0,114,0,114,50,43,0,114,0,114,3,4,0,114,45,40,0,114,0,114,8,9,0,114,0,114,0,114,3,5,4,7,17,17,32,29,0,114,0,114,0,114,80,41]
[null,"Less than 20.0 percent",0,114,0,114,0,114,0,114,0,114,0,114,0,114,0,114,6,10,0,114,0,114,0,114,0,114,0,114,0,114,0,114,0,114,0,114,0,114,0,114,0,114,0,114,0,114,0,114,0,114,0,114,0,114,0,114,0,114,0,114,0,114,0,114,0,114,0,114,0,114,0,114,0,114,0,114,0,114,0,114,0,114,0,114,0,114]
[null,"20.0 to 24.9 percent",0,114,0,114,0,114,9,15,0,114,0,114,0,114,0,114,18,29,0,114,0,114,0,114,0,114,0,114,0,114,0,114,0,114,0,114,0,114,0,114,0,114,0,114,0,114,0,114,0,114,0,114,0,114,0,114,0,114,0,114,0,114,0,114,0,114,0,114,0,114,0,114,0,114,0,114,5,7,0,114,0,114,0,114,0,114]
[null,"25.0 to 29.9 percent",0,114,0,114,0,114,16,24,0,114,0,114,0,114,0,114,16,17,0,114,0,114,0,114,0,114,0,114,0,114,0,114,0,114,0,114,7,12,0,114,0,114,0,114,0,114,10,16,0,114,0,114,0,114,0,114,15,21,0,114,0,114,3,4,0,114,0,114,0,114,0,114,0,114,14,17,5,10,0,114,0,114,0,114,57,39]
[null,"30.0 to 34.9 percent",0,114,0,114,0,114,0,114,0,114,0,114,0,114,0,114,0,114,0,114,0,114,0,114,0,114,0,114,0,114,0,114,0,114,0,114,0,114,0,114,0,114,0,114,0,114,0,114,0,114,0,114,0,114,0,114,12,17,0,114,0,114,0,114,0,114,0,114,0,114,0,114,0,114,0,114,6,11,0,114,0,114,0,114,7,10]
[null,"35.0 percent or more",0,114,0,114,0,114,257,115,0,114,0,114,0,114,0,114,63,48,0,114,0,114,0,114,4,6,0,114,0,114,0,114,0,114,0,114,10,15,0,114,0,114,0,114,0,114,40,39,0,114,0,114,3,4,0,114,18,30,0,114,0,114,5,9,0,114,0,114,0,114,3,5,0,114,3,5,0,114,0,114,0,114,0,114,5,7]
[null,"Not computed",0,114,0,114,0,114,65,56,0,114,0,114,0,114,0,114,0,114,0,114,0,114,0,114,11,14,0,114,0,114,0,114,0,114,0,114,8,12,0,114,0,114,0,114,0,114,0,114,0,114,0,114,0,114,0,114,0,114,0,114,0,114,0,114,0,114,0,114,0,114,0,114,4,7,0,114,16,22,0,114,0,114,0,114,11,18]
[null,"$10,000 to $19,999:",0,114,0,114,0,114,383,121,0,114,0,114,0,114,3,4,124,67,4,6,0,114,0,114,5,5,0,114,0,114,6,8,3,4,0,114,118,74,0,114,0,114,0,114,0,114,57,57,0,114,0,114,7,6,0,114,95,51,0,114,0,114,19,12,7,7,0,114,0,114,4,6,2,4,13,12,48,30,0,114,0,114,4,6,73,40]
[null,"Less than 20.0 percent",0,114,0,114,0,114,0,114,0,114,0,114,0,114,0,114,9,13,0,114,0,114,0,114,0,114,0,114,0,114,0,114,0,114,0,114,0,114,0,114,0,114,0,114,0,114,0,114,0,114,0,114,0,114,0,114,0,114,0,114,0,114,0,114,0,114,0,114,0,114,0,114,0,114,0,114,4,7,0,114,0,114,0,114,0,114]
[null,"20.0 to 24.9 percent",0,114,0,114,0,114,21,26,0,114,0,114,0,114,0,114,8,11,0,114,0,114,0,114,0,114,0,114,0,114,0,114,0,114,0,114,26,27,0,114,0,114,0,114,0,114,27,41,0,114,0,114,0,114,0,114,8,11,0,114,0,114,0,114,0,114,0,114,0,114,0,114,0,114,0,114,0,114,0,114,0,114,0,114,0,114]
[null,"25.0 to 29.9 percent",0,114,0,114,0,114,32,34,0,114,0,114,0,114,0,114,10,11,0,114,0,114,0,114,0,114,0,114,0,114,0,114,3,4,0,114,8,13,0,114,0,114,0,114,0,114,0,114,0,114,0,114,0,114,0,114,8,12,0,114,0,114,3,5,0,114,0,114,0,114,0,114,0,114,5,9,9,14,0,114,0,114,0,114,44,34]
[null,"30.0 to 34.9 percent",0,114,0,114,0,114,31,31,0,114,0,114,0,114,0,114,34,36,0,114,0,114,0,114,0,114,0,114,0,114,0,114,0,114,0,114,11,17,0,114,0,114,0,114,0,114,0,114,0,114,0,114,0,114,0,114,4,8,0,114,0,114,5,6,0,114,0,114,0,114,0,114,0,114,5,8,0,114,0,114,0,114,0,114,0,114]
[null,"35.0 percent or more",0,114,0,114,0,114,259,96,0,114,0,114,0,114,0,114,63,51,4,6,0,114,0,114,0,114,0,114,0,114,6,8,0,114,0,114,73,66,0,114,0,114,0,114,0,114,30,31,0,114,0,114,4,5,0,114,64,47,0,114,0,114,4,6,2,4,0,114,0,114,4,6,2,4,3,4,35,26,0,114,0,114,4,6,29,22]
[null,"Not computed",0,114,0,114,0,114,40,48,0,114,0,114,0,114,3,4,0,114,0,114,0,114,0,114,5,5,0,114,0,114,0,114,0,114,0,114,0,114,0,114,0,114,0,114,0,114,0,114,0,114,0,114,3,4,0,114,11,19,0,114,0,114,7,9,5,6,0,114,0,114,0,114,0,114,0,114,0,114,0,114,0,114,0,114,0,114]
[null,"$20,000 to $34,999:",0,114,0,114,0,114,338,107,0,114,16,18,0,114,14,19,87,57,3,5,0,114,0,114,19,13,0,114,0,114,0,114,2,4,0,114,126,79,0,114,0,114,33,20,0,114,128,72,0,114,0,114,24,17,0,114,137,68,0,114,0,114,4,5,7,10,0,114,0,114,5,5,27,25,0,114,19,17,0,114,0,114,0,114,27,19]
[null,"Less than 20.0 percent",0,114,0,114,0,114,41,35,0,114,0,114,0,114,14,19,32,44,0,114,0,114,0,114,0,114,0,114,0,114,0,114,0,114,0,114,0,114,0,114,0,114,0,114,0,114,25,36,0,114,0,114,3,4,0,114,0,114,0,114,0,114,0,114,0,114,0,114,0,114,3,4,4,6,0,114,6,9,0,114,0,114,0,114,5,7]
[null,"20.0 to 24.9 percent",0,114,0,114,0,114,64,41,0,114,0,114,0,114,0,114,0,114,0,114,0,114,0,114,3,4,0,114,0,114,0,114,2,4,0,114,27,42,0,114,0,114,6,8,0,114,45,63,0,114,0,114,4,7,0,114,17,18,0,114,0,114,0,114,7,10,0,114,0,114,0,114,17,22,0,114,6,9,0,114,0,114,0,114,0,114]
[null,"25.0 to 29.9 percent",0,114,0,114,0,114,101,65,0,114,12,17,0,114,0,114,17,19,0,114,0,114,0,114,5,5,0,114,0,114,0,114,0,114,0,114,28,25,0,114,0,114,6,9,0,114,18,27,0,114,0,114,9,13,0,114,47,55,0,114,0,114,4,5,0,114,0,114,0,114,0,114,0,114,0,114,0,114,0,114,0,114,0,114,0,114]
[null,"30.0 to 34.9 percent",0,114,0,114,0,114,55,49,0,114,4,5,0,114,0,114,30,31,0,114,0,114,0,114,0,114,0,114,0,114,0,114,0,114,0,114,10,15,0,114,0,114,5,8,0,114,22,24,0,114,0,114,0,114,0,114,43,35,0,114,0,114,0,114,0,114,0,114,0,114,0,114,0,114,0,114,0,114,0,114,0,114,0,114,7,10]
[null,"35.0 percent or more",0,114,0,114,0,114,68,52,0,114,0,114,0,114,0,114,8,12,0,114,0,114,0,114,0,114,0,114,0,114,0,114,0,114,0,114,37,40,0,114,0,114,11,13,0,114,18,26,0,114,0,114,0,114,0,114,14,13,0,114,0,114,0,114,0,114,0,114,0,114,2,3,0,114,0,114,7,10,0,114,0,114,0,114,15,15]
[null,"Not computed",0,114,0,114,0,114,9,14,0,114,0,114,0,114,0,114,0,114,3,5,0,114,0,114,11,13,0,114,0,114,0,114,0,114,0,114,24,35,0,114,0,114,5,6,0,114,0,114,0,114,0,114,8,7,0,114,16,23,0,114,0,114,0,114,0,114,0,114,0,114,0,114,6,10,0,114,0,114,0,114,0,114,0,114,0,114]
[null,"$35,000 to $49,999:",0,114,0,114,0,114,209,97,0,114,13,19,0,114,5,7,52,37,0,114,0,114,0,114,23,23,0,114,0,114,5,5,2,3,0,114,141,106,0,114,0,114,0,114,0,114,21,25,0,114,0,114,13,9,0,114,59,45,0,114,0,114,9,10,2,3,0,114,0,114,4,6,18,18,6,9,40,27,0,114,0,114,0,114,45,35]
[null,"Less than 20.0 percent",0,114,0,114,0,114,100,55,0,114,13,19,0,114,5,7,32,37,0,114,0,114,0,114,9,9,0,114,0,114,2,3,0,114,0,114,96,93,0,114,0,114,0,114,0,114,16,23,0,114,0,114,4,5,0,114,30,34,0,114,0,114,0,114,2,3,0,114,0,114,4,6,7,12,6,9,9,10,0,114,0,114,0,114,15,16]
[null,"20.0 to 24.9 percent",0,114,0,114,0,114,34,31,0,114,0,114,0,114,0,114,14,16,0,114,0,114,0,114,0,114,0,114,0,114,0,114,0,114,0,114,33,38,0,114,0,114,0,114,0,114,5,8,0,114,0,114,4,5,0,114,13,18,0,114,0,114,0,114,0,114,0,114,0,114,0,114,2,6,0,114,25,24,0,114,0,114,0,114,6,10]
[null,"25.0 to 29.9 percent",0,114,0,114,0,114,36,54,0,114,0,114,0,114,0,114,0,114,0,114,0,114,0,114,14,21,0,114,0,114,0,114,2,3,0,114,12,19,0,114,0,114,0,114,0,114,0,114,0,114,0,114,3,4,0,114,0,114,0,114,0,114,0,114,0,114,0,114,0,114,0,114,0,114,0,114,6,9,0,114,0,114,0,114,19,28]
[null,"30.0 to 34.9 percent",0,114,0,114,0,114,39,53,0,114,0,114,0,114,0,114,0,114,0,114,0,114,0,114,0,114,0,114,0,114,0,114,0,114,0,114,0,114,0,114,0,114,0,114,0,114,0,114,0,114,0,114,0,114,0,114,0,114,0,114,0,114,0,114,0,114,0,114,0,114,0,114,4,8,0,114,0,114,0,114,0,114,0,114,5,8]
[null,"35.0 percent or more",0,114,0,114,0,114,0,114,0,114,0,114,0,114,0,114,0,114,0,114,0,114,0,114,0,114,0,114,0,114,0,114,0,114,0,114,0,114,0,114,0,114,0,114,0,114,0,114,0,114,0,114,0,114,0,114,0,114,0,114,0,114,0,114,0,114,0,114,0,114,0,114,0,114,0,114,0,114,0,114,0,114,0,114,0,114]
[null,"Not computed",0,114,0,114,0,114,0,114,0,114,0,114,0,114,0,114,6,10,0,114,0,114,0,114,0,114,0,114,0,114,3,4,0,114,0,114,0,114,0,114,0,114,0,114,0,114,0,114,0,114,0,114,2,4,0,114,16,18,0,114,0,114,9,10,0,114,0,114,0,114,0,114,5,7,0,114,0,114,0,114,0,114,0,114,0,114]
[null,"$50,000 to $74,999:",0,114,0,114,0,114,196,112,0,114,10,14,0,114,0,114,56,59,11,17,0,114,0,114,4,6,0,114,8,8,0,114,0,114,0,114,14,16,0,114,0,114,7,10,0,114,66,56,0,114,0,114,14,10,0,114,13,14,0,114,0,114,0,114,0,114,0,114,0,114,5,6,0,114,28,21,0,114,0,114,0,114,0,114,28,28]
[null,"Less than 20.0 percent",0,114,0,114,0,114,196,112,0,114,0,114,0,114,0,114,56,59,11,17,0,114,0,114,0,114,0,114,0,114,0,114,0,114,0,114,9,13,0,114,0,114,0,114,0,114,47,54,0,114,0,114,14,10,0,114,0,114,0,114,0,114,0,114,0,114,0,114,0,114,5,6,0,114,6,9,0,114,0,114,0,114,0,114,22,27]
[null,"20.0 to 24.9 percent",0,114,0,114,0,114,0,114,0,114,0,114,0,114,0,114,0,114,0,114,0,114,0,114,0,114,0,114,0,114,0,114,0,114,0,114,0,114,0,114,0,114,0,114,0,114,0,114,0,114,0,114,0,114,0,114,0,114,0,114,0,114,0,114,0,114,0,114,0,114,0,114,0,114,0,114,0,114,0,114,0,114,0,114,0,114]
[null,"25.0 to 29.9 percent",0,114,0,114,0,114,0,114,0,114,0,114,0,114,0,114,0,114,0,114,0,114,0,114,0,114,0,114,0,114,0,114,0,114,0,114,0,114,0,114,0,114,7,10,0,114,4,7,0,114,0,114,0,114,0,114,0,114,0,114,0,114,0,114,0,114,0,114,0,114,0,114,0,114,9,13,0,114,0,114,0,114,0,114,0,114]
[null,"30.0 to 34.9 percent",0,114,0,114,0,114,0,114,0,114,10,14,0,114,0,114,0,114,0,114,0,114,0,114,0,114,0,114,0,114,0,114,0,114,0,114,0,114,0,114,0,114,0,114,0,114,15,19,0,114,0,114,0,114,0,114,0,114,0,114,0,114,0,114,0,114,0,114,0,114,0,114,0,114,9,13,0,114,0,114,0,114,0,114,0,114]
[null,"35.0 percent or more",0,114,0,114,0,114,0,114,0,114,0,114,0,114,0,114,0,114,0,114,0,114,0,114,0,114,0,114,0,114,0,114,0,114,0,114,0,114,0,114,0,114,0,114,0,114,0,114,0,114,0,114,0,114,0,114,0,114,0,114,0,114,0,114,0,114,0,114,0,114,0,114,0,114,0,114,0,114,0,114,0,114,0,114,0,114]
[null,"Not computed",0,114,0,114,0,114,0,114,0,114,0,114,0,114,0,114,0,114,0,114,0,114,0,114,4,6,0,114,8,8,0,114,0,114,0,114,5,9,0,114,0,114,0,114,0,114,0,114,0,114,0,114,0,114,0,114,13,14,0,114,0,114,0,114,0,114,0,114,0,114,0,114,0,114,4,7,0,114,0,114,0,114,0,114,6,9]
[null,"$75,000 to $99,999:",0,114,0,114,0,114,27,33,0,114,0,114,0,114,0,114,12,16,0,114,0,114,0,114,8,11,0,114,0,114,0,114,0,114,0,114,0,114,0,114,0,114,0,114,0,114,14,23,0,114,0,114,7,7,0,114,27,25,0,114,0,114,0,114,0,114,0,114,0,114,0,114,0,114,4,7,4,8,0,114,0,114,0,114,0,114]
[null,"Less than 20.0 percent",0,114,0,114,0,114,27,33,0,114,0,114,0,114,0,114,12,16,0,114,0,114,0,114,8,11,0,114,0,114,0,114,0,114,0,114,0,114,0,114,0,114,0,114,0,114,0,114,0,114,0,114,7,7,0,114,22,23,0,114,0,114,0,114,0,114,0,114,0,114,0,114,0,114,4,7,4,8,0,114,0,114,0,114,0,114]
[null,"20.0 to 24.9 percent",0,114,0,114,0,114,0,114,0,114,0,114,0,114,0,114,0,114,0,114,0,114,0,114,0,114,0,114,0,114,0,114,0,114,0,114,0,114,0,114,0,114,0,114,0,114,0,114,0,114,0,114,0,114,0,114,0,114,0,114,0,114,0,114,0,114,0,114,0,114,0,114,0,114,0,114,0,114,0,114,0,114,0,114,0,114]
[null,"25.0 to 29.9 percent",0,114,0,114,0,114,0,114,0,114,0,114,0,114,0,114,0,114,0,114,0,114,0,114,0,114,0,114,0,114,0,114,0,114,0,114,0,114,0,114,0,114,0,114,0,114,0,114,0,114,0,114,0,114,0,114,0,114,0,114,0,114,0,114,0,114,0,114,0,114,0,114,0,114,0,114,0,114,0,114,0,114,0,114,0,114]
[null,"30.0 to 34.9 percent",0,114,0,114,0,114,0,114,0,114,0,114,0,114,0,114,0,114,0,114,0,114,0,114,0,114,0,114,0,114,0,114,0,114,0,114,0,114,0,114,0,114,0,114,0,114,0,114,0,114,0,114,0,114,0,114,0,114,0,114,0,114,0,114,0,114,0,114,0,114,0,114,0,114,0,114,0,114,0,114,0,114,0,114,0,114]
[null,"35.0 percent or more",0,114,0,114,0,114,0,114,0,114,0,114,0,114,0,114,0,114,0,114,0,114,0,114,0,114,0,114,0,114,0,114,0,114,0,114,0,114,0,114,0,114,0,114,0,114,0,114,0,114,0,114,0,114,0,114,0,114,0,114,0,114,0,114,0,114,0,114,0,114,0,114,0,114,0,114,0,114,0,114,0,114,0,114,0,114]
[null,"Not computed",0,114,0,114,0,114,0,114,0,114,0,114,0,114,0,114,0,114,0,114,0,114,0,114,0,114,0,114,0,114,0,114,0,114,0,114,0,114,0,114,0,114,0,114,0,114,14,23,0,114,0,114,0,114,0,114,5,8,0,114,0,114,0,114,0,114,0,114,0,114,0,114,0,114,0,114,0,114,0,114,0,114,0,114,0,114]
[null,"$100,000 or more:",0,114,0,114,0,114,24,26,0,114,0,114,0,114,0,114,6,10,0,114,0,114,0,114,4,5,0,114,0,114,0,114,0,114,0,114,19,21,0,114,0,114,0,114,0,114,15,25,0,114,0,114,0,114,0,114,5,9,0,114,0,114,0,114,0,114,0,114,0,114,0,114,0,114,0,114,0,114,0,114,0,114,0,114,0,114]
[null,"Less than 20.0 percent",0,114,0,114,0,114,13,19,0,114,0,114,0,114,0,114,6,10,0,114,0,114,0,114,4,5,0,114,0,114,0,114,0,114,0,114,19,21,0,114,0,114,0,114,0,114,15,25,0,114,0,114,0,114,0,114,0,114,0,114,0,114,0,114,0,114,0,114,0,114,0,114,0,114,0,114,0,114,0,114,0,114,0,114,0,114]
[null,"20.0 to 24.9 percent",0,114,0,114,0,114,0,114,0,114,0,114,0,114,0,114,0,114,0,114,0,114,0,114,0,114,0,114,0,114,0,114,0,114,0,114,0,114,0,114,0,114,0,114,0,114,0,114,0,114,0,114,0,114,0,114,0,114,0,114,0,114,0,114,0,114,0,114,0,114,0,114,0,114,0,114,0,114,0,114,0,114,0,114,0,114]
[null,"25.0 to 29.9 percent",0,114,0,114,0,114,0,114,0,114,0,114,0,114,0,114,0,114,0,114,0,114,0,114,0,114,0,114,0,114,0,114,0,114,0,114,0,114,0,114,0,114,0,114,0,114,0,114,0,114,0,114,0,114,0,114,0,114,0,114,0,114,0,114,0,114,0,114,0,114,0,114,0,114,0,114,0,114,0,114,0,114,0,114,0,114]
[null,"30.0 to 34.9 percent",0,114,0,114,0,114,0,114,0,114,0,114,0,114,0,114,0,114,0,114,0,114,0,114,0,114,0,114,0,114,0,114,0,114,0,114,0,114,0,114,0,114,0,114,0,114,0,114,0,114,0,114,0,114,0,114,0,114,0,114,0,114,0,114,0,114,0,114,0,114,0,114,0,114,0,114,0,114,0,114,0,114,0,114,0,114]
[null,"35.0 percent or more",0,114,0,114,0,114,0,114,0,114,0,114,0,114,0,114,0,114,0,114,0,114,0,114,0,114,0,114,0,114,0,114,0,114,0,114,0,114,0,114,0,114,0,114,0,114,0,114,0,114,0,114,0,114,0,114,5,9,0,114,0,114,0,114,0,114,0,114,0,114,0,114,0,114,0,114,0,114,0,114,0,114,0,114,0,114]
[null,"Not computed",0,114,0,114,0,114,11,17,0,114,0,114,0,114,0,114,0,114,0,114,0,114,0,114,0,114,0,114,0,114,0,114,0,114,0,114,0,114,0,114,0,114,0,114,0,114,0,114,0,114,0,114,0,114,0,114,0,114,0,114,0,114,0,114,0,114,0,114,0,114,0,114,0,114,0,114,0,114,0,114,0,114,0,114,0,114]
[]
[]
[]
[]
[]
[]
[]
[]
[]
[]
[]
[]
[null,"Calculated B25074. HOUSEHOLD INCOME BY GROSS RENT AS A PERCENTAGE OF HOUSEHOLD INCOME IN THE PAST 12 MONTHS"]
[null,"Universe:  RENTEROCCUPIED HOUSING UNITS"]
[null,"Data Set: 2005-2009 American Community Survey 5-Year Estimates"]
[]
[null,null,"Atkinson and Gilmanton Grant",null,"Bean's Grant",null,"Bean's Purchase",null,"Berlin",null,"Cambridge",null,"Carroll",null,"Chandler's Purchase",null,"Clarksville",null,"Colebrook",null,"Columbia",null,"Crawford's Purchase",null,"Cutt's Grant",null,"Dalton",null,"Dix's Grant",null,"Dixville Township",null,"Dummer",null,"Errol",null,"Erving's Location",null,"Gorham",null,"Greens Grant",null,"Hadley's Purchase",null,"Jefferson",null,"Kilkenny Township",null,"Lancaster",null,"Low and Burbank's Grant",null,"Martin's Location",null,"Milan",null,"Millsfield Township",null,"Northumberland",null,"Odell Township",null,"Pinkham's Grant",null,"Pittsburg",null,"Randolph",null,"Sargent's Purchase",null,"Second College Grant",null,"Shelburne",null,"Stark",null,"Stewartstown",null,"Stratford",null,"Success Township",null,"Thompson and Meserves Purchase",null,"Wentworth's Location",null,"Whitefield"]
[null,null,"Estimate","Margin Of Error","Estimate","Margin Of Error","Estimate","Margin Of Error","Estimate","Margin Of Error","Estimate","Margin Of Error","Estimate","Margin Of Error","Estimate","Margin Of Error","Estimate","Margin Of Error","Estimate","Margin Of Error","Estimate","Margin Of Error","Estimate","Margin Of Error","Estimate","Margin Of Error","Estimate","Margin Of Error","Estimate","Margin Of Error","Estimate","Margin Of Error","Estimate","Margin Of Error","Estimate","Margin Of Error","Estimate","Margin Of Error","Estimate","Margin Of Error","Estimate","Margin Of Error","Estimate","Margin Of Error","Estimate","Margin Of Error","Estimate","Margin Of Error","Estimate","Margin Of Error","Estimate","Margin Of Error","Estimate","Margin Of Error","Estimate","Margin Of Error","Estimate","Margin Of Error","Estimate","Margin Of Error","Estimate","Margin Of Error","Estimate","Margin Of Error","Estimate","Margin Of Error","Estimate","Margin Of Error","Estimate","Margin Of Error","Estimate","Margin Of Error","Estimate","Margin Of Error","Estimate","Margin Of Error","Estimate","Margin Of Error","Estimate","Margin Of Error","Estimate","Margin Of Error","Estimate","Margin Of Error","Estimate","Margin Of Error","Estimate","Margin Of Error"]
[null,"Total:",{"$f":"C341","v":0},{"$f":"D341","v":114},{"$f":"E341","v":0},114,0,114,347,126,0,114,0,114,0,114,0,114,103,60,0,114,0,114,0,114,15,16,0,114,0,114,0,114,0,114,0,114,25,23,0,114,0,114,0,114,0,114,50,43,0,114,0,114,3,4,0,114,45,40,0,114,0,114,8,9,0,114,{"$f":"BQ341","v":0},114,0,114,3,5,4,7,17,17,32,29,0,114,0,114,0,114,80,41]
[null,"Less than $10,000:",{"$f":"C342","v":0},{"$f":"D342","v":114},0,114,0,114,0,114,0,114,0,114,0,114,0,114,6,10,0,114,0,114,0,114,0,114,0,114,0,114,0,114,0,114,0,114,0,114,0,114,0,114,0,114,0,114,0,114,0,114,0,114,0,114,0,114,0,114,0,114,0,114,0,114,0,114,0,114,0,114,0,114,0,114,0,114,0,114,0,114,0,114,0,114,0,114]
[null,"Less than 30.0 percent",{"$f":"C343+C344+C345","v":0},{"$f":"SQRT((D343^2)+(D344^2)+(D345^2))","v":197.45379206285202},{"$f":"E343+E344+E345","v":0},{"$f":"SQRT((F343^2)+(F344^2)+(F345^2))","v":197.45379206285202},{"$f":"G343+G344+G345","v":0},{"$f":"SQRT((H343^2)+(H344^2)+(H345^2))","v":197.45379206285202},{"$f":"I343+I344+I345","v":25},{"$f":"SQRT((J343^2)+(J344^2)+(J345^2))","v":117.46063170271135},{"$f":"K343+K344+K345","v":0},{"$f":"SQRT((L343^2)+(L344^2)+(L345^2))","v":197.45379206285202},{"$f":"M343+M344+M345","v":0},{"$f":"SQRT((N343^2)+(N344^2)+(N345^2))","v":197.45379206285202},{"$f":"O343+O344+O345","v":0},{"$f":"SQRT((P343^2)+(P344^2)+(P345^2))","v":197.45379206285202},{"$f":"Q343+Q344+Q345","v":0},{"$f":"SQRT((R343^2)+(R344^2)+(R345^2))","v":197.45379206285202},{"$f":"S343+S344+S345","v":34},{"$f":"SQRT((T343^2)+(T344^2)+(T345^2))","v":118.85285019720814},{"$f":"U343+U344+U345","v":0},{"$f":"SQRT((V343^2)+(V344^2)+(V345^2))","v":197.45379206285202},{"$f":"W343+W344+W345","v":0},{"$f":"SQRT((X343^2)+(X344^2)+(X345^2))","v":197.45379206285202},{"$f":"Y343+Y344+Y345","v":0},{"$f":"SQRT((Z343^2)+(Z344^2)+(Z345^2))","v":197.45379206285202},{"$f":"AA343+AA344+AA345","v":0},{"$f":"SQRT((AB343^2)+(AB344^2)+(AB345^2))","v":197.45379206285202},{"$f":"AC343+AC344+AC345","v":0},{"$f":"SQRT((AD343^2)+(AD344^2)+(AD345^2))","v":197.45379206285202},{"$f":"AE343+AE344+AE345","v":0},{"$f":"SQRT((AF343^2)+(AF344^2)+(AF345^2))","v":197.45379206285202},{"$f":"AG343+AG344+AG345","v":0},{"$f":"SQRT((AH343^2)+(AH344^2)+(AH345^2))","v":197.45379206285202},{"$f":"AI343+AI344+AI345","v":0},{"$f":"SQRT((AJ343^2)+(AJ344^2)+(AJ345^2))","v":197.45379206285202},{"$f":"AK343+AK344+AK345","v":0},{"$f":"SQRT((AL343^2)+(AL344^2)+(AL345^2))","v":197.45379206285202},{"$f":"AM343+AM344+AM345","v":7},{"$f":"SQRT((AN343^2)+(AN344^2)+(AN345^2))","v":161.66632302368976},{"$f":"AO343+AO344+AO345","v":0},{"$f":"SQRT((AP343^2)+(AP344^2)+(AP345^2))","v":197.45379206285202},{"$f":"AQ343+AQ344+AQ345","v":0},{"$f":"SQRT((AR343^2)+(AR344^2)+(AR345^2))","v":197.45379206285202},{"$f":"AS343+AS344+AS345","v":0},{"$f":"SQRT((AT343^2)+(AT344^2)+(AT345^2))","v":197.45379206285202},{"$f":"AU343+AU344+AU345","v":0},{"$f":"SQRT((AV343^2)+(AV344^2)+(AV345^2))","v":197.45379206285202},{"$f":"AW343+AW344+AW345","v":10},{"$f":"SQRT((AX343^2)+(AX344^2)+(AX345^2))","v":162.01234520862909},{"$f":"AY343+AY344+AY345","v":0},{"$f":"SQRT((AZ343^2)+(AZ344^2)+(AZ345^2))","v":197.45379206285202},{"$f":"BA343+BA344+BA345","v":0},{"$f":"SQRT((BB343^2)+(BB344^2)+(BB345^2))","v":197.45379206285202},{"$f":"BC343+BC344+BC345","v":0},{"$f":"SQRT((BD343^2)+(BD344^2)+(BD345^2))","v":197.45379206285202},{"$f":"BE343+BE344+BE345","v":0},{"$f":"SQRT((BF343^2)+(BF344^2)+(BF345^2))","v":197.45379206285202},{"$f":"BG343+BG344+BG345","v":27},{"$f":"SQRT((BH343^2)+(BH344^2)+(BH345^2))","v":117.15801295686096},{"$f":"BI343+BI344+BI345","v":0},{"$f":"SQRT((BJ343^2)+(BJ344^2)+(BJ345^2))","v":197.45379206285202},{"$f":"BK343+BK344+BK345","v":0},{"$f":"SQRT((BL343^2)+(BL344^2)+(BL345^2))","v":197.45379206285202},{"$f":"BM343+BM344+BM345","v":3},{"$f":"SQRT((BN343^2)+(BN344^2)+(BN345^2))","v":161.26996000495566},{"$f":"BO343+BO344+BO345","v":0},{"$f":"SQRT((BP343^2)+(BP344^2)+(BP345^2))","v":197.45379206285202},{"$f":"BQ343+BQ344+BQ345","v":0},{"$f":"SQRT((BR343^2)+(BR344^2)+(BR345^2))","v":197.45379206285202},{"$f":"BS343+BS344+BS345","v":0},{"$f":"SQRT((BT343^2)+(BT344^2)+(BT345^2))","v":197.45379206285202},{"$f":"BU343+BU344+BU345","v":0},{"$f":"SQRT((BV343^2)+(BV344^2)+(BV345^2))","v":197.45379206285202},{"$f":"BW343+BW344+BW345","v":0},{"$f":"SQRT((BX343^2)+(BX344^2)+(BX345^2))","v":197.45379206285202},{"$f":"BY343+BY344+BY345","v":14},{"$f":"SQRT((BZ343^2)+(BZ344^2)+(BZ345^2))","v":162.11415730897781},{"$f":"CA343+CA344+CA345","v":16},{"$f":"SQRT((CB343^2)+(CB344^2)+(CB345^2))","v":16.431676725154983},{"$f":"CC343+CC344+CC345","v":0},{"$f":"SQRT((CD343^2)+(CD344^2)+(CD345^2))","v":197.45379206285202},{"$f":"CE343+CE344+CE345","v":0},{"$f":"SQRT((CF343^2)+(CF344^2)+(CF345^2))","v":197.45379206285202},{"$f":"CG343+CG344+CG345","v":0},{"$f":"SQRT((CH343^2)+(CH344^2)+(CH345^2))","v":197.45379206285202},{"$f":"CI343+CI344+CI345","v":64},{"$f":"SQRT((CJ343^2)+(CJ344^2)+(CJ345^2))","v":120.90078577081292}]
[null,"More than 30.0 percent",{"$f":"C347+C346","v":0},{"$f":"SQRT((D347^2)+(D346^2))","v":161.22034611053283},{"$f":"E347+E346","v":0},{"$f":"SQRT((F347^2)+(F346^2))","v":161.22034611053283},{"$f":"G347+G346","v":0},{"$f":"SQRT((H347^2)+(H346^2))","v":161.22034611053283},{"$f":"I347+I346","v":322},{"$f":"SQRT((J347^2)+(J346^2))","v":127.91012469699183},{"$f":"K347+K346","v":0},{"$f":"SQRT((L347^2)+(L346^2))","v":161.22034611053283},{"$f":"M347+M346","v":0},{"$f":"SQRT((N347^2)+(N346^2))","v":161.22034611053283},{"$f":"O347+O346","v":0},{"$f":"SQRT((P347^2)+(P346^2))","v":161.22034611053283},{"$f":"Q347+Q346","v":0},{"$f":"SQRT((R347^2)+(R346^2))","v":161.22034611053283},{"$f":"S347+S346","v":63},{"$f":"SQRT((T347^2)+(T346^2))","v":123.69316876852982},{"$f":"U347+U346","v":0},{"$f":"SQRT((V347^2)+(V346^2))","v":161.22034611053283},{"$f":"W347+W346","v":0},{"$f":"SQRT((X347^2)+(X346^2))","v":161.22034611053283},{"$f":"Y347+Y346","v":0},{"$f":"SQRT((Z347^2)+(Z346^2))","v":161.22034611053283},{"$f":"AA347+AA346","v":15},{"$f":"SQRT((AB347^2)+(AB346^2))","v":15.231546211727817},{"$f":"AC347+AC346","v":0},{"$f":"SQRT((AD347^2)+(AD346^2))","v":161.22034611053283},{"$f":"AE347+AE346","v":0},{"$f":"SQRT((AF347^2)+(AF346^2))","v":161.22034611053283},{"$f":"AG347+AG346","v":0},{"$f":"SQRT((AH347^2)+(AH346^2))","v":161.22034611053283},{"$f":"AI347+AI346","v":0},{"$f":"SQRT((AJ347^2)+(AJ346^2))","v":161.22034611053283},{"$f":"AK347+AK346","v":0},{"$f":"SQRT((AL347^2)+(AL346^2))","v":161.22034611053283},{"$f":"AM347+AM346","v":18},{"$f":"SQRT((AN347^2)+(AN346^2))","v":19.209372712298546},{"$f":"AO347+AO346","v":0},{"$f":"SQRT((AP347^2)+(AP346^2))","v":161.22034611053283},{"$f":"AQ347+AQ346","v":0},{"$f":"SQRT((AR347^2)+(AR346^2))","v":161.22034611053283},{"$f":"AS347+AS346","v":0},{"$f":"SQRT((AT347^2)+(AT346^2))","v":161.22034611053283},{"$f":"AU347+AU346","v":0},{"$f":"SQRT((AV347^2)+(AV346^2))","v":161.22034611053283},{"$f":"AW347+AW346","v":40},{"$f":"SQRT((AX347^2)+(AX346^2))","v":120.48651376813922},{"$f":"AY347+AY346","v":0},{"$f":"SQRT((AZ347^2)+(AZ346^2))","v":161.22034611053283},{"$f":"BA347+BA346","v":0},{"$f":"SQRT((BB347^2)+(BB346^2))","v":161.22034611053283},{"$f":"BC347+BC346","v":3},{"$f":"SQRT((BD347^2)+(BD346^2))","v":114.0701538527936},{"$f":"BE347+BE346","v":0},{"$f":"SQRT((BF347^2)+(BF346^2))","v":161.22034611053283},{"$f":"BG347+BG346","v":18},{"$f":"SQRT((BH347^2)+(BH346^2))","v":117.881296226331},{"$f":"BI347+BI346","v":0},{"$f":"SQRT((BJ347^2)+(BJ346^2))","v":161.22034611053283},{"$f":"BK347+BK346","v":0},{"$f":"SQRT((BL347^2)+(BL346^2))","v":161.22034611053283},{"$f":"BM347+BM346","v":5},{"$f":"SQRT((BN347^2)+(BN346^2))","v":114.35471131527551},{"$f":"BO347+BO346","v":0},{"$f":"SQRT((BP347^2)+(BP346^2))","v":161.22034611053283},{"$f":"BQ347+BQ346","v":0},{"$f":"SQRT((BR347^2)+(BR346^2))","v":161.22034611053283},{"$f":"BS347+BS346","v":0},{"$f":"SQRT((BT347^2)+(BT346^2))","v":161.22034611053283},{"$f":"BU347+BU346","v":3},{"$f":"SQRT((BV347^2)+(BV346^2))","v":114.10959644131601},{"$f":"BW347+BW346","v":4},{"$f":"SQRT((BX347^2)+(BX346^2))","v":114.21471008587291},{"$f":"BY347+BY346","v":3},{"$f":"SQRT((BZ347^2)+(BZ346^2))","v":114.10959644131601},{"$f":"CA347+CA346","v":16},{"$f":"SQRT((CB347^2)+(CB346^2))","v":116.10340218959993},{"$f":"CC347+CC346","v":0},{"$f":"SQRT((CD347^2)+(CD346^2))","v":161.22034611053283},{"$f":"CE347+CE346","v":0},{"$f":"SQRT((CF347^2)+(CF346^2))","v":161.22034611053283},{"$f":"CG347+CG346","v":0},{"$f":"SQRT((CH347^2)+(CH346^2))","v":161.22034611053283},{"$f":"CI347+CI346","v":16},{"$f":"SQRT((CJ347^2)+(CJ346^2))","v":19.313207915827967}]
[null,"Less Than 35% of HH Income",{"$f":"C343+C344+C345+C346","v":0},{"$f":"SQRT((D343^2)+(D344^2)+(D345^2)+(D346^2))","v":228},{"$f":"E343+E344+E345+E346","v":0},{"$f":"SQRT((F343^2)+(F344^2)+(F345^2)+(F346^2))","v":228},{"$f":"G343+G344+G345+G346","v":0},{"$f":"SQRT((H343^2)+(H344^2)+(H345^2)+(H346^2))","v":228},{"$f":"I343+I344+I345+I346","v":282},{"$f":"SQRT((J343^2)+(J344^2)+(J345^2)+(J346^2))","v":164.38369748852836},{"$f":"K343+K344+K345+K346","v":0},{"$f":"SQRT((L343^2)+(L344^2)+(L345^2)+(L346^2))","v":228},{"$f":"M343+M344+M345+M346","v":0},{"$f":"SQRT((N343^2)+(N344^2)+(N345^2)+(N346^2))","v":228},{"$f":"O343+O344+O345+O346","v":0},{"$f":"SQRT((P343^2)+(P344^2)+(P345^2)+(P346^2))","v":228},{"$f":"Q343+Q344+Q345+Q346","v":0},{"$f":"SQRT((R343^2)+(R344^2)+(R345^2)+(R346^2))","v":228},{"$f":"S343+S344+S345+S346","v":97},{"$f":"SQRT((T343^2)+(T344^2)+(T345^2)+(T346^2))","v":128.17956155331473},{"$f":"U343+U344+U345+U346","v":0},{"$f":"SQRT((V343^2)+(V344^2)+(V345^2)+(V346^2))","v":228},{"$f":"W343+W344+W345+W346","v":0},{"$f":"SQRT((X343^2)+(X344^2)+(X345^2)+(X346^2))","v":228},{"$f":"Y343+Y344+Y345+Y346","v":0},{"$f":"SQRT((Z343^2)+(Z344^2)+(Z345^2)+(Z346^2))","v":228},{"$f":"AA343+AA344+AA345+AA346","v":4},{"$f":"SQRT((AB343^2)+(AB344^2)+(AB345^2)+(AB346^2))","v":197.54493159785193},{"$f":"AC343+AC344+AC345+AC346","v":0},{"$f":"SQRT((AD343^2)+(AD344^2)+(AD345^2)+(AD346^2))","v":228},{"$f":"AE343+AE344+AE345+AE346","v":0},{"$f":"SQRT((AF343^2)+(AF344^2)+(AF345^2)+(AF346^2))","v":228},{"$f":"AG343+AG344+AG345+AG346","v":0},{"$f":"SQRT((AH343^2)+(AH344^2)+(AH345^2)+(AH346^2))","v":228},{"$f":"AI343+AI344+AI345+AI346","v":0},{"$f":"SQRT((AJ343^2)+(AJ344^2)+(AJ345^2)+(AJ346^2))","v":228},{"$f":"AK343+AK344+AK345+AK346","v":0},{"$f":"SQRT((AL343^2)+(AL344^2)+(AL345^2)+(AL346^2))","v":228},{"$f":"AM343+AM344+AM345+AM346","v":17},{"$f":"SQRT((AN343^2)+(AN344^2)+(AN345^2)+(AN346^2))","v":162.36070953281771},{"$f":"AO343+AO344+AO345+AO346","v":0},{"$f":"SQRT((AP343^2)+(AP344^2)+(AP345^2)+(AP346^2))","v":228},{"$f":"AQ343+AQ344+AQ345+AQ346","v":0},{"$f":"SQRT((AR343^2)+(AR344^2)+(AR345^2)+(AR346^2))","v":228},{"$f":"AS343+AS344+AS345+AS346","v":0},{"$f":"SQRT((AT343^2)+(AT344^2)+(AT345^2)+(AT346^2))","v":228},{"$f":"AU343+AU344+AU345+AU346","v":0},{"$f":"SQRT((AV343^2)+(AV344^2)+(AV345^2)+(AV346^2))","v":228},{"$f":"AW343+AW344+AW345+AW346","v":50},{"$f":"SQRT((AX343^2)+(AX344^2)+(AX345^2)+(AX346^2))","v":166.64033125267125},{"$f":"AY343+AY344+AY345+AY346","v":0},{"$f":"SQRT((AZ343^2)+(AZ344^2)+(AZ345^2)+(AZ346^2))","v":228},{"$f":"BA343+BA344+BA345+BA346","v":0},{"$f":"SQRT((BB343^2)+(BB344^2)+(BB345^2)+(BB346^2))","v":228},{"$f":"BC343+BC344+BC345+BC346","v":3},{"$f":"SQRT((BD343^2)+(BD344^2)+(BD345^2)+(BD346^2))","v":197.49430371532239},{"$f":"BE343+BE344+BE345+BE346","v":0},{"$f":"SQRT((BF343^2)+(BF344^2)+(BF345^2)+(BF346^2))","v":228},{"$f":"BG343+BG344+BG345+BG346","v":45},{"$f":"SQRT((BH343^2)+(BH344^2)+(BH345^2)+(BH346^2))","v":120.93800064495858},{"$f":"BI343+BI344+BI345+BI346","v":0},{"$f":"SQRT((BJ343^2)+(BJ344^2)+(BJ345^2)+(BJ346^2))","v":228},{"$f":"BK343+BK344+BK345+BK346","v":0},{"$f":"SQRT((BL343^2)+(BL344^2)+(BL345^2)+(BL346^2))","v":228},{"$f":"BM343+BM344+BM345+BM346","v":8},{"$f":"SQRT((BN343^2)+(BN344^2)+(BN345^2)+(BN346^2))","v":161.52089648091976},{"$f":"BO343+BO344+BO345+BO346","v":0},{"$f":"SQRT((BP343^2)+(BP344^2)+(BP345^2)+(BP346^2))","v":228},{"$f":"BQ343+BQ344+BQ345+BQ346","v":0},{"$f":"SQRT((BR343^2)+(BR344^2)+(BR345^2)+(BR346^2))","v":228},{"$f":"BS343+BS344+BS345+BS346","v":0},{"$f":"SQRT((BT343^2)+(BT344^2)+(BT345^2)+(BT346^2))","v":228},{"$f":"BU343+BU344+BU345+BU346","v":3},{"$f":"SQRT((BV343^2)+(BV344^2)+(BV345^2)+(BV346^2))","v":197.51708786836647},{"$f":"BW343+BW344+BW345+BW346","v":0},{"$f":"SQRT((BX343^2)+(BX344^2)+(BX345^2)+(BX346^2))","v":228},{"$f":"BY343+BY344+BY345+BY346","v":17},{"$f":"SQRT((BZ343^2)+(BZ344^2)+(BZ345^2)+(BZ346^2))","v":162.19124513980401},{"$f":"CA343+CA344+CA345+CA346","v":16},{"$f":"SQRT((CB343^2)+(CB344^2)+(CB345^2)+(CB346^2))","v":115.17812292271479},{"$f":"CC343+CC344+CC345+CC346","v":0},{"$f":"SQRT((CD343^2)+(CD344^2)+(CD345^2)+(CD346^2))","v":228},{"$f":"CE343+CE344+CE345+CE346","v":0},{"$f":"SQRT((CF343^2)+(CF344^2)+(CF345^2)+(CF346^2))","v":228},{"$f":"CG343+CG344+CG345+CG346","v":0},{"$f":"SQRT((CH343^2)+(CH344^2)+(CH345^2)+(CH346^2))","v":228},{"$f":"CI343+CI344+CI345+CI346","v":69},{"$f":"SQRT((CJ343^2)+(CJ344^2)+(CJ345^2)+(CJ346^2))","v":121.10326172320876}]
[null,"35.0 percent or more",{"$f":"C347","v":0},{"$f":"D347","v":114},0,114,0,114,65,56,0,114,0,114,0,114,0,114,0,114,0,114,0,114,0,114,11,14,0,114,0,114,0,114,0,114,0,114,8,12,0,114,0,114,0,114,0,114,0,114,0,114,0,114,0,114,0,114,0,114,0,114,0,114,0,114,0,{"$f":"BP347","v":114},0,114,0,114,0,114,4,7,0,114,16,22,0,114,0,114,0,114,11,18]
[null,"Not Computed",{"$f":"C348","v":0},114,0,114,0,114,383,121,0,114,0,114,0,114,3,4,124,67,4,6,0,114,0,114,5,5,0,114,0,114,6,8,3,4,0,114,118,74,0,114,0,114,0,114,0,114,57,57,0,114,0,114,7,6,0,114,95,51,0,114,0,114,19,12,7,7,0,114,0,114,4,6,2,4,13,12,48,30,0,114,0,114,4,6,73,40]
[null,"$10,000 to $19,999:",0,114,0,114,0,114,0,114,0,114,0,114,0,114,0,114,9,13,0,114,0,114,0,114,0,114,0,114,0,114,0,114,0,114,0,114,0,114,0,114,0,114,0,114,0,114,0,114,0,114,0,114,0,114,0,114,0,114,0,114,0,114,0,114,0,114,0,114,0,114,0,114,0,114,0,114,4,7,0,114,0,114,0,114,0,114]
[null,"Less than 30.0 percent",{"$f":"C350+C351+C352","v":0},{"$f":"SQRT((D350^2)+(D351^2)+(D352^2))","v":197.45379206285202},{"$f":"E350+E351+E352","v":0},{"$f":"SQRT((F350^2)+(F351^2)+(F352^2))","v":197.45379206285202},{"$f":"G350+G351+G352","v":0},{"$f":"SQRT((H350^2)+(H351^2)+(H352^2))","v":197.45379206285202},{"$f":"I350+I351+I352","v":84},{"$f":"SQRT((J350^2)+(J351^2)+(J352^2))","v":52.848841046895245},{"$f":"K350+K351+K352","v":0},{"$f":"SQRT((L350^2)+(L351^2)+(L352^2))","v":197.45379206285202},{"$f":"M350+M351+M352","v":0},{"$f":"SQRT((N350^2)+(N351^2)+(N352^2))","v":197.45379206285202},{"$f":"O350+O351+O352","v":0},{"$f":"SQRT((P350^2)+(P351^2)+(P352^2))","v":197.45379206285202},{"$f":"Q350+Q351+Q352","v":0},{"$f":"SQRT((R350^2)+(R351^2)+(R352^2))","v":197.45379206285202},{"$f":"S350+S351+S352","v":52},{"$f":"SQRT((T350^2)+(T351^2)+(T352^2))","v":39.217343102255157},{"$f":"U350+U351+U352","v":0},{"$f":"SQRT((V350^2)+(V351^2)+(V352^2))","v":197.45379206285202},{"$f":"W350+W351+W352","v":0},{"$f":"SQRT((X350^2)+(X351^2)+(X352^2))","v":197.45379206285202},{"$f":"Y350+Y351+Y352","v":0},{"$f":"SQRT((Z350^2)+(Z351^2)+(Z352^2))","v":197.45379206285202},{"$f":"AA350+AA351+AA352","v":0},{"$f":"SQRT((AB350^2)+(AB351^2)+(AB352^2))","v":197.45379206285202},{"$f":"AC350+AC351+AC352","v":0},{"$f":"SQRT((AD350^2)+(AD351^2)+(AD352^2))","v":197.45379206285202},{"$f":"AE350+AE351+AE352","v":0},{"$f":"SQRT((AF350^2)+(AF351^2)+(AF352^2))","v":197.45379206285202},{"$f":"AG350+AG351+AG352","v":0},{"$f":"SQRT((AH350^2)+(AH351^2)+(AH352^2))","v":197.45379206285202},{"$f":"AI350+AI351+AI352","v":3},{"$f":"SQRT((AJ350^2)+(AJ351^2)+(AJ352^2))","v":161.26996000495566},{"$f":"AK350+AK351+AK352","v":0},{"$f":"SQRT((AL350^2)+(AL351^2)+(AL352^2))","v":197.45379206285202},{"$f":"AM350+AM351+AM352","v":45},{"$f":"SQRT((AN350^2)+(AN351^2)+(AN352^2))","v":34.452866353904433},{"$f":"AO350+AO351+AO352","v":0},{"$f":"SQRT((AP350^2)+(AP351^2)+(AP352^2))","v":197.45379206285202},{"$f":"AQ350+AQ351+AQ352","v":0},{"$f":"SQRT((AR350^2)+(AR351^2)+(AR352^2))","v":197.45379206285202},{"$f":"AS350+AS351+AS352","v":0},{"$f":"SQRT((AT350^2)+(AT351^2)+(AT352^2))","v":197.45379206285202},{"$f":"AU350+AU351+AU352","v":0},{"$f":"SQRT((AV350^2)+(AV351^2)+(AV352^2))","v":197.45379206285202},{"$f":"AW350+AW351+AW352","v":27},{"$f":"SQRT((AX350^2)+(AX351^2)+(AX352^2))","v":166.35203635663737},{"$f":"AY350+AY351+AY352","v":0},{"$f":"SQRT((AZ350^2)+(AZ351^2)+(AZ352^2))","v":197.45379206285202},{"$f":"BA350+BA351+BA352","v":0},{"$f":"SQRT((BB350^2)+(BB351^2)+(BB352^2))","v":197.45379206285202},{"$f":"BC350+BC351+BC352","v":0},{"$f":"SQRT((BD350^2)+(BD351^2)+(BD352^2))","v":197.45379206285202},{"$f":"BE350+BE351+BE352","v":0},{"$f":"SQRT((BF350^2)+(BF351^2)+(BF352^2))","v":197.45379206285202},{"$f":"BG350+BG351+BG352","v":20},{"$f":"SQRT((BH350^2)+(BH351^2)+(BH352^2))","v":18.138357147217054},{"$f":"BI350+BI351+BI352","v":0},{"$f":"SQRT((BJ350^2)+(BJ351^2)+(BJ352^2))","v":197.45379206285202},{"$f":"BK350+BK351+BK352","v":0},{"$f":"SQRT((BL350^2)+(BL351^2)+(BL352^2))","v":197.45379206285202},{"$f":"BM350+BM351+BM352","v":8},{"$f":"SQRT((BN350^2)+(BN351^2)+(BN352^2))","v":114.26723064816089},{"$f":"BO350+BO351+BO352","v":0},{"$f":"SQRT((BP350^2)+(BP351^2)+(BP352^2))","v":197.45379206285202},{"$f":"BQ350+BQ351+BQ352","v":0},{"$f":"SQRT((BR350^2)+(BR351^2)+(BR352^2))","v":197.45379206285202},{"$f":"BS350+BS351+BS352","v":0},{"$f":"SQRT((BT350^2)+(BT351^2)+(BT352^2))","v":197.45379206285202},{"$f":"BU350+BU351+BU352","v":0},{"$f":"SQRT((BV350^2)+(BV351^2)+(BV352^2))","v":197.45379206285202},{"$f":"BW350+BW351+BW352","v":0},{"$f":"SQRT((BX350^2)+(BX351^2)+(BX352^2))","v":197.45379206285202},{"$f":"BY350+BY351+BY352","v":10},{"$f":"SQRT((BZ350^2)+(BZ351^2)+(BZ352^2))","v":114.63420083029322},{"$f":"CA350+CA351+CA352","v":9},{"$f":"SQRT((CB350^2)+(CB351^2)+(CB352^2))","v":161.8270681931796},{"$f":"CC350+CC351+CC352","v":0},{"$f":"SQRT((CD350^2)+(CD351^2)+(CD352^2))","v":197.45379206285202},{"$f":"CE350+CE351+CE352","v":0},{"$f":"SQRT((CF350^2)+(CF351^2)+(CF352^2))","v":197.45379206285202},{"$f":"CG350+CG351+CG352","v":0},{"$f":"SQRT((CH350^2)+(CH351^2)+(CH352^2))","v":197.45379206285202},{"$f":"CI350+CI351+CI352","v":44},{"$f":"SQRT((CJ350^2)+(CJ351^2)+(CJ352^2))","v":164.76650144977893}]
[null,"More than 30.0 percent",{"$f":"C353+C354","v":0},{"$f":"SQRT((D353^2)+(D354^2))","v":161.22034611053283},{"$f":"E353+E354","v":0},{"$f":"SQRT((F353^2)+(F354^2))","v":161.22034611053283},{"$f":"G353+G354","v":0},{"$f":"SQRT((H353^2)+(H354^2))","v":161.22034611053283},{"$f":"I353+I354","v":299},{"$f":"SQRT((J353^2)+(J354^2))","v":107.33126291998991},{"$f":"K353+K354","v":0},{"$f":"SQRT((L353^2)+(L354^2))","v":161.22034611053283},{"$f":"M353+M354","v":0},{"$f":"SQRT((N353^2)+(N354^2))","v":161.22034611053283},{"$f":"O353+O354","v":0},{"$f":"SQRT((P353^2)+(P354^2))","v":161.22034611053283},{"$f":"Q353+Q354","v":3},{"$f":"SQRT((R353^2)+(R354^2))","v":114.0701538527936},{"$f":"S353+S354","v":63},{"$f":"SQRT((T353^2)+(T354^2))","v":124.88794977899188},{"$f":"U353+U354","v":4},{"$f":"SQRT((V353^2)+(V354^2))","v":114.15778554264269},{"$f":"W353+W354","v":0},{"$f":"SQRT((X353^2)+(X354^2))","v":161.22034611053283},{"$f":"Y353+Y354","v":0},{"$f":"SQRT((Z353^2)+(Z354^2))","v":161.22034611053283},{"$f":"AA353+AA354","v":5},{"$f":"SQRT((AB353^2)+(AB354^2))","v":114.10959644131601},{"$f":"AC353+AC354","v":0},{"$f":"SQRT((AD353^2)+(AD354^2))","v":161.22034611053283},{"$f":"AE353+AE354","v":0},{"$f":"SQRT((AF353^2)+(AF354^2))","v":161.22034611053283},{"$f":"AG353+AG354","v":6},{"$f":"SQRT((AH353^2)+(AH354^2))","v":114.28035701729323},{"$f":"AI353+AI354","v":0},{"$f":"SQRT((AJ353^2)+(AJ354^2))","v":161.22034611053283},{"$f":"AK353+AK354","v":0},{"$f":"SQRT((AL353^2)+(AL354^2))","v":161.22034611053283},{"$f":"AM353+AM354","v":73},{"$f":"SQRT((AN353^2)+(AN354^2))","v":131.7269904006009},{"$f":"AO353+AO354","v":0},{"$f":"SQRT((AP353^2)+(AP354^2))","v":161.22034611053283},{"$f":"AQ353+AQ354","v":0},{"$f":"SQRT((AR353^2)+(AR354^2))","v":161.22034611053283},{"$f":"AS353+AS354","v":0},{"$f":"SQRT((AT353^2)+(AT354^2))","v":161.22034611053283},{"$f":"AU353+AU354","v":0},{"$f":"SQRT((AV353^2)+(AV354^2))","v":161.22034611053283},{"$f":"AW353+AW354","v":30},{"$f":"SQRT((AX353^2)+(AX354^2))","v":118.1397477566293},{"$f":"AY353+AY354","v":0},{"$f":"SQRT((AZ353^2)+(AZ354^2))","v":161.22034611053283},{"$f":"BA353+BA354","v":0},{"$f":"SQRT((BB353^2)+(BB354^2))","v":161.22034611053283},{"$f":"BC353+BC354","v":7},{"$f":"SQRT((BD353^2)+(BD354^2))","v":6.4031242374328485},{"$f":"BE353+BE354","v":0},{"$f":"SQRT((BF353^2)+(BF354^2))","v":161.22034611053283},{"$f":"BG353+BG354","v":75},{"$f":"SQRT((BH353^2)+(BH354^2))","v":50.695167422546305},{"$f":"BI353+BI354","v":0},{"$f":"SQRT((BJ353^2)+(BJ354^2))","v":161.22034611053283},{"$f":"BK353+BK354","v":0},{"$f":"SQRT((BL353^2)+(BL354^2))","v":161.22034611053283},{"$f":"BM353+BM354","v":11},{"$f":"SQRT((BN353^2)+(BN354^2))","v":10.816653826391969},{"$f":"BO353+BO354","v":7},{"$f":"SQRT((BP353^2)+(BP354^2))","v":7.2111025509279782},{"$f":"BQ353+BQ354","v":0},{"$f":"SQRT((BR353^2)+(BR354^2))","v":161.22034611053283},{"$f":"BS353+BS354","v":0},{"$f":"SQRT((BT353^2)+(BT354^2))","v":161.22034611053283},{"$f":"BU353+BU354","v":4},{"$f":"SQRT((BV353^2)+(BV354^2))","v":114.15778554264269},{"$f":"BW353+BW354","v":2},{"$f":"SQRT((BX353^2)+(BX354^2))","v":114.0701538527936},{"$f":"BY353+BY354","v":3},{"$f":"SQRT((BZ353^2)+(BZ354^2))","v":114.0701538527936},{"$f":"CA353+CA354","v":35},{"$f":"SQRT((CB353^2)+(CB354^2))","v":116.92732785794773},{"$f":"CC353+CC354","v":0},{"$f":"SQRT((CD353^2)+(CD354^2))","v":161.22034611053283},{"$f":"CE353+CE354","v":0},{"$f":"SQRT((CF353^2)+(CF354^2))","v":161.22034611053283},{"$f":"CG353+CG354","v":4},{"$f":"SQRT((CH353^2)+(CH354^2))","v":114.15778554264269},{"$f":"CI353+CI354","v":29},{"$f":"SQRT((CJ353^2)+(CJ354^2))","v":116.10340218959993}]
[null,"Less Than 35% of HH Income",{"$f":"C350+C351+C352+C353","v":0},{"$f":"SQRT((D350^2)+(D351^2)+(D352^2)+(D353^2))","v":228},{"$f":"E350+E351+E352+E353","v":0},{"$f":"SQRT((F350^2)+(F351^2)+(F352^2)+(F353^2))","v":228},{"$f":"G350+G351+G352+G353","v":0},{"$f":"SQRT((H350^2)+(H351^2)+(H352^2)+(H353^2))","v":228},{"$f":"I350+I351+I352+I353","v":343},{"$f":"SQRT((J350^2)+(J351^2)+(J352^2)+(J353^2))","v":109.58558299338468},{"$f":"K350+K351+K352+K353","v":0},{"$f":"SQRT((L350^2)+(L351^2)+(L352^2)+(L353^2))","v":228},{"$f":"M350+M351+M352+M353","v":0},{"$f":"SQRT((N350^2)+(N351^2)+(N352^2)+(N353^2))","v":228},{"$f":"O350+O351+O352+O353","v":0},{"$f":"SQRT((P350^2)+(P351^2)+(P352^2)+(P353^2))","v":228},{"$f":"Q350+Q351+Q352+Q353","v":0},{"$f":"SQRT((R350^2)+(R351^2)+(R352^2)+(R353^2))","v":228},{"$f":"S350+S351+S352+S353","v":115},{"$f":"SQRT((T350^2)+(T351^2)+(T352^2)+(T353^2))","v":64.335060425867326},{"$f":"U350+U351+U352+U353","v":4},{"$f":"SQRT((V350^2)+(V351^2)+(V352^2)+(V353^2))","v":197.54493159785193},{"$f":"W350+W351+W352+W353","v":0},{"$f":"SQRT((X350^2)+(X351^2)+(X352^2)+(X353^2))","v":228},{"$f":"Y350+Y351+Y352+Y353","v":0},{"$f":"SQRT((Z350^2)+(Z351^2)+(Z352^2)+(Z353^2))","v":228},{"$f":"AA350+AA351+AA352+AA353","v":0},{"$f":"SQRT((AB350^2)+(AB351^2)+(AB352^2)+(AB353^2))","v":228},{"$f":"AC350+AC351+AC352+AC353","v":0},{"$f":"SQRT((AD350^2)+(AD351^2)+(AD352^2)+(AD353^2))","v":228},{"$f":"AE350+AE351+AE352+AE353","v":0},{"$f":"SQRT((AF350^2)+(AF351^2)+(AF352^2)+(AF353^2))","v":228},{"$f":"AG350+AG351+AG352+AG353","v":6},{"$f":"SQRT((AH350^2)+(AH351^2)+(AH352^2)+(AH353^2))","v":197.61578884289585},{"$f":"AI350+AI351+AI352+AI353","v":3},{"$f":"SQRT((AJ350^2)+(AJ351^2)+(AJ352^2)+(AJ353^2))","v":197.49430371532239},{"$f":"AK350+AK351+AK352+AK353","v":0},{"$f":"SQRT((AL350^2)+(AL351^2)+(AL352^2)+(AL353^2))","v":228},{"$f":"AM350+AM351+AM352+AM353","v":118},{"$f":"SQRT((AN350^2)+(AN351^2)+(AN352^2)+(AN353^2))","v":74.451326381737488},{"$f":"AO350+AO351+AO352+AO353","v":0},{"$f":"SQRT((AP350^2)+(AP351^2)+(AP352^2)+(AP353^2))","v":228},{"$f":"AQ350+AQ351+AQ352+AQ353","v":0},{"$f":"SQRT((AR350^2)+(AR351^2)+(AR352^2)+(AR353^2))","v":228},{"$f":"AS350+AS351+AS352+AS353","v":0},{"$f":"SQRT((AT350^2)+(AT351^2)+(AT352^2)+(AT353^2))","v":228},{"$f":"AU350+AU351+AU352+AU353","v":0},{"$f":"SQRT((AV350^2)+(AV351^2)+(AV352^2)+(AV353^2))","v":228},{"$f":"AW350+AW351+AW352+AW353","v":57},{"$f":"SQRT((AX350^2)+(AX351^2)+(AX352^2)+(AX353^2))","v":169.21583850219221},{"$f":"AY350+AY351+AY352+AY353","v":0},{"$f":"SQRT((AZ350^2)+(AZ351^2)+(AZ352^2)+(AZ353^2))","v":228},{"$f":"BA350+BA351+BA352+BA353","v":0},{"$f":"SQRT((BB350^2)+(BB351^2)+(BB352^2)+(BB353^2))","v":228},{"$f":"BC350+BC351+BC352+BC353","v":4},{"$f":"SQRT((BD350^2)+(BD351^2)+(BD352^2)+(BD353^2))","v":197.51708786836647},{"$f":"BE350+BE351+BE352+BE353","v":0},{"$f":"SQRT((BF350^2)+(BF351^2)+(BF352^2)+(BF353^2))","v":228},{"$f":"BG350+BG351+BG352+BG353","v":84},{"$f":"SQRT((BH350^2)+(BH351^2)+(BH352^2)+(BH353^2))","v":50.378566871239997},{"$f":"BI350+BI351+BI352+BI353","v":0},{"$f":"SQRT((BJ350^2)+(BJ351^2)+(BJ352^2)+(BJ353^2))","v":228},{"$f":"BK350+BK351+BK352+BK353","v":0},{"$f":"SQRT((BL350^2)+(BL351^2)+(BL352^2)+(BL353^2))","v":228},{"$f":"BM350+BM351+BM352+BM353","v":12},{"$f":"SQRT((BN350^2)+(BN351^2)+(BN352^2)+(BN353^2))","v":114.42464769445436},{"$f":"BO350+BO351+BO352+BO353","v":2},{"$f":"SQRT((BP350^2)+(BP351^2)+(BP352^2)+(BP353^2))","v":197.49430371532239},{"$f":"BQ350+BQ351+BQ352+BQ353","v":0},{"$f":"SQRT((BR350^2)+(BR351^2)+(BR352^2)+(BR353^2))","v":228},{"$f":"BS350+BS351+BS352+BS353","v":0},{"$f":"SQRT((BT350^2)+(BT351^2)+(BT352^2)+(BT353^2))","v":228},{"$f":"BU350+BU351+BU352+BU353","v":4},{"$f":"SQRT((BV350^2)+(BV351^2)+(BV352^2)+(BV353^2))","v":197.54493159785193},{"$f":"BW350+BW351+BW352+BW353","v":2},{"$f":"SQRT((BX350^2)+(BX351^2)+(BX352^2)+(BX353^2))","v":197.49430371532239},{"$f":"BY350+BY351+BY352+BY353","v":13},{"$f":"SQRT((BZ350^2)+(BZ351^2)+(BZ352^2)+(BZ353^2))","v":114.70396680150168},{"$f":"CA350+CA351+CA352+CA353","v":44},{"$f":"SQRT((CB350^2)+(CB351^2)+(CB352^2)+(CB353^2))","v":163.90240998838303},{"$f":"CC350+CC351+CC352+CC353","v":0},{"$f":"SQRT((CD350^2)+(CD351^2)+(CD352^2)+(CD353^2))","v":228},{"$f":"CE350+CE351+CE352+CE353","v":0},{"$f":"SQRT((CF350^2)+(CF351^2)+(CF352^2)+(CF353^2))","v":228},{"$f":"CG350+CG351+CG352+CG353","v":4},{"$f":"SQRT((CH350^2)+(CH351^2)+(CH352^2)+(CH353^2))","v":197.54493159785193},{"$f":"CI350+CI351+CI352+CI353","v":73},{"$f":"SQRT((CJ350^2)+(CJ351^2)+(CJ352^2)+(CJ353^2))","v":166.22875804144118}]
[null,"35.0 percent or more",{"$f":"C354","v":0},114,0,114,0,114,40,48,0,114,0,114,0,114,3,4,0,114,0,114,0,114,0,114,5,5,0,114,0,114,0,114,0,114,0,114,0,114,0,114,0,114,0,114,0,114,0,114,0,114,0,114,3,4,0,114,11,19,0,114,0,114,7,9,{"$f":"BO354","v":5},6,0,114,0,114,0,114,0,114,0,114,0,114,0,114,0,114,0,114,0,114]
[null,"Not Computed",0,114,0,114,0,114,338,107,0,114,16,18,0,114,14,19,87,57,3,5,0,114,0,114,19,13,0,114,0,114,0,114,2,4,0,114,126,79,0,114,0,114,33,20,0,114,128,72,0,114,0,114,24,17,0,114,137,68,0,114,0,114,4,5,7,10,0,114,0,114,5,5,27,25,0,114,19,17,0,114,0,114,0,114,27,19]
[null,"$20,000 to $34,999:",0,114,0,114,0,114,41,35,0,114,0,114,0,114,14,19,32,44,0,114,0,114,0,114,0,114,0,114,0,114,0,114,0,114,0,114,0,114,0,114,0,114,0,114,0,114,25,36,0,114,0,114,3,4,0,114,0,114,0,114,0,114,0,114,0,114,0,114,0,114,3,4,4,6,0,114,6,9,0,114,0,114,0,114,5,7]
[null,"Less than 30.0 percent",{"$f":"C357+C358+C359","v":0},{"$f":"SQRT((D357^2)+(D358^2)+(D359^2))","v":197.45379206285202},{"$f":"E357+E358+E359","v":0},{"$f":"SQRT((F357^2)+(F358^2)+(F359^2))","v":197.45379206285202},{"$f":"G357+G358+G359","v":0},{"$f":"SQRT((H357^2)+(H358^2)+(H359^2))","v":197.45379206285202},{"$f":"I357+I358+I359","v":220},{"$f":"SQRT((J357^2)+(J358^2)+(J359^2))","v":91.142745185779873},{"$f":"K357+K358+K359","v":0},{"$f":"SQRT((L357^2)+(L358^2)+(L359^2))","v":197.45379206285202},{"$f":"M357+M358+M359","v":16},{"$f":"SQRT((N357^2)+(N358^2)+(N359^2))","v":115.36897329871667},{"$f":"O357+O358+O359","v":0},{"$f":"SQRT((P357^2)+(P358^2)+(P359^2))","v":197.45379206285202},{"$f":"Q357+Q358+Q359","v":0},{"$f":"SQRT((R357^2)+(R358^2)+(R359^2))","v":197.45379206285202},{"$f":"S357+S358+S359","v":47},{"$f":"SQRT((T357^2)+(T358^2)+(T359^2))","v":119.65784554303157},{"$f":"U357+U358+U359","v":0},{"$f":"SQRT((V357^2)+(V358^2)+(V359^2))","v":197.45379206285202},{"$f":"W357+W358+W359","v":0},{"$f":"SQRT((X357^2)+(X358^2)+(X359^2))","v":197.45379206285202},{"$f":"Y357+Y358+Y359","v":0},{"$f":"SQRT((Z357^2)+(Z358^2)+(Z359^2))","v":197.45379206285202},{"$f":"AA357+AA358+AA359","v":8},{"$f":"SQRT((AB357^2)+(AB358^2)+(AB359^2))","v":114.17968295629481},{"$f":"AC357+AC358+AC359","v":0},{"$f":"SQRT((AD357^2)+(AD358^2)+(AD359^2))","v":197.45379206285202},{"$f":"AE357+AE358+AE359","v":0},{"$f":"SQRT((AF357^2)+(AF358^2)+(AF359^2))","v":197.45379206285202},{"$f":"AG357+AG358+AG359","v":0},{"$f":"SQRT((AH357^2)+(AH358^2)+(AH359^2))","v":197.45379206285202},{"$f":"AI357+AI358+AI359","v":2},{"$f":"SQRT((AJ357^2)+(AJ358^2)+(AJ359^2))","v":161.26996000495566},{"$f":"AK357+AK358+AK359","v":0},{"$f":"SQRT((AL357^2)+(AL358^2)+(AL359^2))","v":197.45379206285202},{"$f":"AM357+AM358+AM359","v":65},{"$f":"SQRT((AN357^2)+(AN358^2)+(AN359^2))","v":51.127292124656869},{"$f":"AO357+AO358+AO359","v":0},{"$f":"SQRT((AP357^2)+(AP358^2)+(AP359^2))","v":197.45379206285202},{"$f":"AQ357+AQ358+AQ359","v":0},{"$f":"SQRT((AR357^2)+(AR358^2)+(AR359^2))","v":197.45379206285202},{"$f":"AS357+AS358+AS359","v":17},{"$f":"SQRT((AT357^2)+(AT358^2)+(AT359^2))","v":14.456832294800961},{"$f":"AU357+AU358+AU359","v":0},{"$f":"SQRT((AV357^2)+(AV358^2)+(AV359^2))","v":197.45379206285202},{"$f":"AW357+AW358+AW359","v":85},{"$f":"SQRT((AX357^2)+(AX358^2)+(AX359^2))","v":72.622310621461224},{"$f":"AY357+AY358+AY359","v":0},{"$f":"SQRT((AZ357^2)+(AZ358^2)+(AZ359^2))","v":197.45379206285202},{"$f":"BA357+BA358+BA359","v":0},{"$f":"SQRT((BB357^2)+(BB358^2)+(BB359^2))","v":197.45379206285202},{"$f":"BC357+BC358+BC359","v":13},{"$f":"SQRT((BD357^2)+(BD358^2)+(BD359^2))","v":114.95216396397242},{"$f":"BE357+BE358+BE359","v":0},{"$f":"SQRT((BF357^2)+(BF358^2)+(BF359^2))","v":197.45379206285202},{"$f":"BG357+BG358+BG359","v":107},{"$f":"SQRT((BH357^2)+(BH358^2)+(BH359^2))","v":67.631353675643666},{"$f":"BI357+BI358+BI359","v":0},{"$f":"SQRT((BJ357^2)+(BJ358^2)+(BJ359^2))","v":197.45379206285202},{"$f":"BK357+BK358+BK359","v":0},{"$f":"SQRT((BL357^2)+(BL358^2)+(BL359^2))","v":197.45379206285202},{"$f":"BM357+BM358+BM359","v":4},{"$f":"SQRT((BN357^2)+(BN358^2)+(BN359^2))","v":161.29786111415117},{"$f":"BO357+BO358+BO359","v":7},{"$f":"SQRT((BP357^2)+(BP358^2)+(BP359^2))","v":161.5301829380503},{"$f":"BQ357+BQ358+BQ359","v":0},{"$f":"SQRT((BR357^2)+(BR358^2)+(BR359^2))","v":197.45379206285202},{"$f":"BS357+BS358+BS359","v":0},{"$f":"SQRT((BT357^2)+(BT358^2)+(BT359^2))","v":197.45379206285202},{"$f":"BU357+BU358+BU359","v":0},{"$f":"SQRT((BV357^2)+(BV358^2)+(BV359^2))","v":197.45379206285202},{"$f":"BW357+BW358+BW359","v":17},{"$f":"SQRT((BX357^2)+(BX358^2)+(BX359^2))","v":162.71447384913242},{"$f":"BY357+BY358+BY359","v":0},{"$f":"SQRT((BZ357^2)+(BZ358^2)+(BZ359^2))","v":197.45379206285202},{"$f":"CA357+CA358+CA359","v":6},{"$f":"SQRT((CB357^2)+(CB358^2)+(CB359^2))","v":161.47135968957468},{"$f":"CC357+CC358+CC359","v":0},{"$f":"SQRT((CD357^2)+(CD358^2)+(CD359^2))","v":197.45379206285202},{"$f":"CE357+CE358+CE359","v":0},{"$f":"SQRT((CF357^2)+(CF358^2)+(CF359^2))","v":197.45379206285202},{"$f":"CG357+CG358+CG359","v":0},{"$f":"SQRT((CH357^2)+(CH358^2)+(CH359^2))","v":197.45379206285202},{"$f":"CI357+CI358+CI359","v":7},{"$f":"SQRT((CJ357^2)+(CJ358^2)+(CJ359^2))","v":161.5301829380503}]
[null,"More than 30.0 percent",{"$f":"C360+C361","v":0},{"$f":"SQRT((D360^2)+(D361^2))","v":161.22034611053283},{"$f":"E360+E361","v":0},{"$f":"SQRT((F360^2)+(F361^2))","v":161.22034611053283},{"$f":"G360+G361","v":0},{"$f":"SQRT((H360^2)+(H361^2))","v":161.22034611053283},{"$f":"I360+I361","v":77},{"$f":"SQRT((J360^2)+(J361^2))","v":53.851648071345039},{"$f":"K360+K361","v":0},{"$f":"SQRT((L360^2)+(L361^2))","v":161.22034611053283},{"$f":"M360+M361","v":0},{"$f":"SQRT((N360^2)+(N361^2))","v":161.22034611053283},{"$f":"O360+O361","v":0},{"$f":"SQRT((P360^2)+(P361^2))","v":161.22034611053283},{"$f":"Q360+Q361","v":0},{"$f":"SQRT((R360^2)+(R361^2))","v":161.22034611053283},{"$f":"S360+S361","v":8},{"$f":"SQRT((T360^2)+(T361^2))","v":114.62983904725679},{"$f":"U360+U361","v":3},{"$f":"SQRT((V360^2)+(V361^2))","v":114.10959644131601},{"$f":"W360+W361","v":0},{"$f":"SQRT((X360^2)+(X361^2))","v":161.22034611053283},{"$f":"Y360+Y361","v":0},{"$f":"SQRT((Z360^2)+(Z361^2))","v":161.22034611053283},{"$f":"AA360+AA361","v":11},{"$f":"SQRT((AB360^2)+(AB361^2))","v":114.73883387938018},{"$f":"AC360+AC361","v":0},{"$f":"SQRT((AD360^2)+(AD361^2))","v":161.22034611053283},{"$f":"AE360+AE361","v":0},{"$f":"SQRT((AF360^2)+(AF361^2))","v":161.22034611053283},{"$f":"AG360+AG361","v":0},{"$f":"SQRT((AH360^2)+(AH361^2))","v":161.22034611053283},{"$f":"AI360+AI361","v":0},{"$f":"SQRT((AJ360^2)+(AJ361^2))","v":161.22034611053283},{"$f":"AK360+AK361","v":0},{"$f":"SQRT((AL360^2)+(AL361^2))","v":161.22034611053283},{"$f":"AM360+AM361","v":61},{"$f":"SQRT((AN360^2)+(AN361^2))","v":53.150729063673246},{"$f":"AO360+AO361","v":0},{"$f":"SQRT((AP360^2)+(AP361^2))","v":161.22034611053283},{"$f":"AQ360+AQ361","v":0},{"$f":"SQRT((AR360^2)+(AR361^2))","v":161.22034611053283},{"$f":"AS360+AS361","v":16},{"$f":"SQRT((AT360^2)+(AT361^2))","v":14.317821063276353},{"$f":"AU360+AU361","v":0},{"$f":"SQRT((AV360^2)+(AV361^2))","v":161.22034611053283},{"$f":"AW360+AW361","v":18},{"$f":"SQRT((AX360^2)+(AX361^2))","v":116.92732785794773},{"$f":"AY360+AY361","v":0},{"$f":"SQRT((AZ360^2)+(AZ361^2))","v":161.22034611053283},{"$f":"BA360+BA361","v":0},{"$f":"SQRT((BB360^2)+(BB361^2))","v":161.22034611053283},{"$f":"BC360+BC361","v":8},{"$f":"SQRT((BD360^2)+(BD361^2))","v":114.21471008587291},{"$f":"BE360+BE361","v":0},{"$f":"SQRT((BF360^2)+(BF361^2))","v":161.22034611053283},{"$f":"BG360+BG361","v":30},{"$f":"SQRT((BH360^2)+(BH361^2))","v":26.419689627245813},{"$f":"BI360+BI361","v":0},{"$f":"SQRT((BJ360^2)+(BJ361^2))","v":161.22034611053283},{"$f":"BK360+BK361","v":0},{"$f":"SQRT((BL360^2)+(BL361^2))","v":161.22034611053283},{"$f":"BM360+BM361","v":0},{"$f":"SQRT((BN360^2)+(BN361^2))","v":161.22034611053283},{"$f":"BO360+BO361","v":0},{"$f":"SQRT((BP360^2)+(BP361^2))","v":161.22034611053283},{"$f":"BQ360+BQ361","v":0},{"$f":"SQRT((BR360^2)+(BR361^2))","v":161.22034611053283},{"$f":"BS360+BS361","v":0},{"$f":"SQRT((BT360^2)+(BT361^2))","v":161.22034611053283},{"$f":"BU360+BU361","v":2},{"$f":"SQRT((BV360^2)+(BV361^2))","v":114.03946685248927},{"$f":"BW360+BW361","v":6},{"$f":"SQRT((BX360^2)+(BX361^2))","v":114.43775600735974},{"$f":"BY360+BY361","v":0},{"$f":"SQRT((BZ360^2)+(BZ361^2))","v":161.22034611053283},{"$f":"CA360+CA361","v":7},{"$f":"SQRT((CB360^2)+(CB361^2))","v":114.43775600735974},{"$f":"CC360+CC361","v":0},{"$f":"SQRT((CD360^2)+(CD361^2))","v":161.22034611053283},{"$f":"CE360+CE361","v":0},{"$f":"SQRT((CF360^2)+(CF361^2))","v":161.22034611053283},{"$f":"CG360+CG361","v":0},{"$f":"SQRT((CH360^2)+(CH361^2))","v":161.22034611053283},{"$f":"CI360+CI361","v":15},{"$f":"SQRT((CJ360^2)+(CJ361^2))","v":114.9826073804208}]
[null,"Less Than 35% of HH Income",{"$f":"C357+C358+C359+C360","v":0},{"$f":"SQRT((D360^2)+(D357^2)+(D358^2)+(D359^2))","v":228},{"$f":"E357+E358+E359+E360","v":0},{"$f":"SQRT((F360^2)+(F357^2)+(F358^2)+(F359^2))","v":228},{"$f":"G357+G358+G359+G360","v":0},{"$f":"SQRT((H360^2)+(H357^2)+(H358^2)+(H359^2))","v":228},{"$f":"I357+I358+I359+I360","v":288},{"$f":"SQRT((J360^2)+(J357^2)+(J358^2)+(J359^2))","v":104.93331215586402},{"$f":"K357+K358+K359+K360","v":0},{"$f":"SQRT((L360^2)+(L357^2)+(L358^2)+(L359^2))","v":228},{"$f":"M357+M358+M359+M360","v":16},{"$f":"SQRT((N360^2)+(N357^2)+(N358^2)+(N359^2))","v":162.19124513980401},{"$f":"O357+O358+O359+O360","v":0},{"$f":"SQRT((P360^2)+(P357^2)+(P358^2)+(P359^2))","v":228},{"$f":"Q357+Q358+Q359+Q360","v":0},{"$f":"SQRT((R360^2)+(R357^2)+(R358^2)+(R359^2))","v":228},{"$f":"S357+S358+S359+S360","v":55},{"$f":"SQRT((T360^2)+(T357^2)+(T358^2)+(T359^2))","v":120.25805586321442},{"$f":"U357+U358+U359+U360","v":0},{"$f":"SQRT((V360^2)+(V357^2)+(V358^2)+(V359^2))","v":228},{"$f":"W357+W358+W359+W360","v":0},{"$f":"SQRT((X360^2)+(X357^2)+(X358^2)+(X359^2))","v":228},{"$f":"Y357+Y358+Y359+Y360","v":0},{"$f":"SQRT((Z360^2)+(Z357^2)+(Z358^2)+(Z359^2))","v":228},{"$f":"AA357+AA358+AA359+AA360","v":8},{"$f":"SQRT((AB360^2)+(AB357^2)+(AB358^2)+(AB359^2))","v":161.34745117292681},{"$f":"AC357+AC358+AC359+AC360","v":0},{"$f":"SQRT((AD360^2)+(AD357^2)+(AD358^2)+(AD359^2))","v":228},{"$f":"AE357+AE358+AE359+AE360","v":0},{"$f":"SQRT((AF360^2)+(AF357^2)+(AF358^2)+(AF359^2))","v":228},{"$f":"AG357+AG358+AG359+AG360","v":0},{"$f":"SQRT((AH360^2)+(AH357^2)+(AH358^2)+(AH359^2))","v":228},{"$f":"AI357+AI358+AI359+AI360","v":2},{"$f":"SQRT((AJ360^2)+(AJ357^2)+(AJ358^2)+(AJ359^2))","v":197.49430371532239},{"$f":"AK357+AK358+AK359+AK360","v":0},{"$f":"SQRT((AL360^2)+(AL357^2)+(AL358^2)+(AL359^2))","v":228},{"$f":"AM357+AM358+AM359+AM360","v":102},{"$f":"SQRT((AN360^2)+(AN357^2)+(AN358^2)+(AN359^2))","v":64.91532946846992},{"$f":"AO357+AO358+AO359+AO360","v":0},{"$f":"SQRT((AP360^2)+(AP357^2)+(AP358^2)+(AP359^2))","v":228},{"$f":"AQ357+AQ358+AQ359+AQ360","v":0},{"$f":"SQRT((AR360^2)+(AR357^2)+(AR358^2)+(AR359^2))","v":228},{"$f":"AS357+AS358+AS359+AS360","v":28},{"$f":"SQRT((AT360^2)+(AT357^2)+(AT358^2)+(AT359^2))","v":19.442222095223581},{"$f":"AU357+AU358+AU359+AU360","v":0},{"$f":"SQRT((AV360^2)+(AV357^2)+(AV358^2)+(AV359^2))","v":228},{"$f":"AW357+AW358+AW359+AW360","v":103},{"$f":"SQRT((AX360^2)+(AX357^2)+(AX358^2)+(AX359^2))","v":77.136243102707567},{"$f":"AY357+AY358+AY359+AY360","v":0},{"$f":"SQRT((AZ360^2)+(AZ357^2)+(AZ358^2)+(AZ359^2))","v":228},{"$f":"BA357+BA358+BA359+BA360","v":0},{"$f":"SQRT((BB360^2)+(BB357^2)+(BB358^2)+(BB359^2))","v":228},{"$f":"BC357+BC358+BC359+BC360","v":13},{"$f":"SQRT((BD360^2)+(BD357^2)+(BD358^2)+(BD359^2))","v":161.89502771858065},{"$f":"BE357+BE358+BE359+BE360","v":0},{"$f":"SQRT((BF360^2)+(BF357^2)+(BF358^2)+(BF359^2))","v":228},{"$f":"BG357+BG358+BG359+BG360","v":121},{"$f":"SQRT((BH360^2)+(BH357^2)+(BH358^2)+(BH359^2))","v":68.869441699493976},{"$f":"BI357+BI358+BI359+BI360","v":0},{"$f":"SQRT((BJ360^2)+(BJ357^2)+(BJ358^2)+(BJ359^2))","v":228},{"$f":"BK357+BK358+BK359+BK360","v":0},{"$f":"SQRT((BL360^2)+(BL357^2)+(BL358^2)+(BL359^2))","v":228},{"$f":"BM357+BM358+BM359+BM360","v":4},{"$f":"SQRT((BN360^2)+(BN357^2)+(BN358^2)+(BN359^2))","v":197.51708786836647},{"$f":"BO357+BO358+BO359+BO360","v":7},{"$f":"SQRT((BP360^2)+(BP357^2)+(BP358^2)+(BP359^2))","v":197.70685370011836},{"$f":"BQ357+BQ358+BQ359+BQ360","v":0},{"$f":"SQRT((BR360^2)+(BR357^2)+(BR358^2)+(BR359^2))","v":228},{"$f":"BS357+BS358+BS359+BS360","v":0},{"$f":"SQRT((BT360^2)+(BT357^2)+(BT358^2)+(BT359^2))","v":228},{"$f":"BU357+BU358+BU359+BU360","v":2},{"$f":"SQRT((BV360^2)+(BV357^2)+(BV358^2)+(BV359^2))","v":197.47658088998807},{"$f":"BW357+BW358+BW359+BW360","v":17},{"$f":"SQRT((BX360^2)+(BX357^2)+(BX358^2)+(BX359^2))","v":198.67561501100229},{"$f":"BY357+BY358+BY359+BY360","v":0},{"$f":"SQRT((BZ360^2)+(BZ357^2)+(BZ358^2)+(BZ359^2))","v":228},{"$f":"CA357+CA358+CA359+CA360","v":13},{"$f":"SQRT((CB360^2)+(CB357^2)+(CB358^2)+(CB359^2))","v":161.78071578528758},{"$f":"CC357+CC358+CC359+CC360","v":0},{"$f":"SQRT((CD360^2)+(CD357^2)+(CD358^2)+(CD359^2))","v":228},{"$f":"CE357+CE358+CE359+CE360","v":0},{"$f":"SQRT((CF360^2)+(CF357^2)+(CF358^2)+(CF359^2))","v":228},{"$f":"CG357+CG358+CG359+CG360","v":0},{"$f":"SQRT((CH360^2)+(CH357^2)+(CH358^2)+(CH359^2))","v":228},{"$f":"CI357+CI358+CI359+CI360","v":22},{"$f":"SQRT((CJ360^2)+(CJ357^2)+(CJ358^2)+(CJ359^2))","v":162.22515218054195}]
[null,"35.0 percent or more",{"$f":"C361","v":0},114,0,114,0,114,9,14,0,114,0,114,0,114,0,114,0,114,3,5,0,114,0,114,11,13,0,114,0,114,0,114,0,114,0,114,24,35,0,114,0,114,5,6,0,114,0,114,0,114,0,114,8,7,0,114,16,23,0,114,0,114,0,114,{"$f":"BO361","v":0},114,0,114,0,114,0,114,6,10,0,114,0,114,0,114,0,114,0,114,0,114]
[null,"Not Computed",0,114,0,114,0,114,209,97,0,114,13,19,0,114,5,7,52,37,0,114,0,114,0,114,23,23,0,114,0,114,5,5,2,3,0,114,141,106,0,114,0,114,0,114,0,114,21,25,0,114,0,114,13,9,0,114,59,45,0,114,0,114,9,10,2,3,0,114,0,114,4,6,18,18,6,9,40,27,0,114,0,114,0,114,45,35]
[null,"$35,000 to $49,999:",0,114,0,114,0,114,100,55,0,114,13,19,0,114,5,7,32,37,0,114,0,114,0,114,9,9,0,114,0,114,2,3,0,114,0,114,96,93,0,114,0,114,0,114,0,114,16,23,0,114,0,114,4,5,0,114,30,34,0,114,0,114,0,114,2,3,0,114,0,114,4,6,7,12,6,9,9,10,0,114,0,114,0,114,15,16]
[null,"Less than 30.0 percent",{"$f":"C364+C365+C366","v":0},{"$f":"SQRT((D364^2)+(D365^2)+(D367^2))","v":197.45379206285202},{"$f":"E364+E365+E366","v":0},{"$f":"SQRT((F364^2)+(F365^2)+(F367^2))","v":197.45379206285202},{"$f":"G364+G365+G366","v":0},{"$f":"SQRT((H364^2)+(H365^2)+(H367^2))","v":197.45379206285202},{"$f":"I364+I365+I366","v":109},{"$f":"SQRT((J364^2)+(J365^2)+(J367^2))","v":129.8961123359741},{"$f":"K364+K365+K366","v":0},{"$f":"SQRT((L364^2)+(L365^2)+(L367^2))","v":197.45379206285202},{"$f":"M364+M365+M366","v":0},{"$f":"SQRT((N364^2)+(N365^2)+(N367^2))","v":197.45379206285202},{"$f":"O364+O365+O366","v":0},{"$f":"SQRT((P364^2)+(P365^2)+(P367^2))","v":197.45379206285202},{"$f":"Q364+Q365+Q366","v":0},{"$f":"SQRT((R364^2)+(R365^2)+(R367^2))","v":197.45379206285202},{"$f":"S364+S365+S366","v":14},{"$f":"SQRT((T364^2)+(T365^2)+(T367^2))","v":162.01234520862909},{"$f":"U364+U365+U366","v":0},{"$f":"SQRT((V364^2)+(V365^2)+(V367^2))","v":197.45379206285202},{"$f":"W364+W365+W366","v":0},{"$f":"SQRT((X364^2)+(X365^2)+(X367^2))","v":197.45379206285202},{"$f":"Y364+Y365+Y366","v":0},{"$f":"SQRT((Z364^2)+(Z365^2)+(Z367^2))","v":197.45379206285202},{"$f":"AA364+AA365+AA366","v":14},{"$f":"SQRT((AB364^2)+(AB365^2)+(AB367^2))","v":162.58228685807074},{"$f":"AC364+AC365+AC366","v":0},{"$f":"SQRT((AD364^2)+(AD365^2)+(AD367^2))","v":197.45379206285202},{"$f":"AE364+AE365+AE366","v":0},{"$f":"SQRT((AF364^2)+(AF365^2)+(AF367^2))","v":197.45379206285202},{"$f":"AG364+AG365+AG366","v":0},{"$f":"SQRT((AH364^2)+(AH365^2)+(AH367^2))","v":197.45379206285202},{"$f":"AI364+AI365+AI366","v":2},{"$f":"SQRT((AJ364^2)+(AJ365^2)+(AJ367^2))","v":161.24825580452026},{"$f":"AK364+AK365+AK366","v":0},{"$f":"SQRT((AL364^2)+(AL365^2)+(AL367^2))","v":197.45379206285202},{"$f":"AM364+AM365+AM366","v":45},{"$f":"SQRT((AN364^2)+(AN365^2)+(AN367^2))","v":121.65936051122412},{"$f":"AO364+AO365+AO366","v":0},{"$f":"SQRT((AP364^2)+(AP365^2)+(AP367^2))","v":197.45379206285202},{"$f":"AQ364+AQ365+AQ366","v":0},{"$f":"SQRT((AR364^2)+(AR365^2)+(AR367^2))","v":197.45379206285202},{"$f":"AS364+AS365+AS366","v":0},{"$f":"SQRT((AT364^2)+(AT365^2)+(AT367^2))","v":197.45379206285202},{"$f":"AU364+AU365+AU366","v":0},{"$f":"SQRT((AV364^2)+(AV365^2)+(AV367^2))","v":197.45379206285202},{"$f":"AW364+AW365+AW366","v":5},{"$f":"SQRT((AX364^2)+(AX365^2)+(AX367^2))","v":161.41871019184859},{"$f":"AY364+AY365+AY366","v":0},{"$f":"SQRT((AZ364^2)+(AZ365^2)+(AZ367^2))","v":197.45379206285202},{"$f":"BA364+BA365+BA366","v":0},{"$f":"SQRT((BB364^2)+(BB365^2)+(BB367^2))","v":197.45379206285202},{"$f":"BC364+BC365+BC366","v":7},{"$f":"SQRT((BD364^2)+(BD365^2)+(BD367^2))","v":114.17968295629481},{"$f":"BE364+BE365+BE366","v":0},{"$f":"SQRT((BF364^2)+(BF365^2)+(BF367^2))","v":197.45379206285202},{"$f":"BG364+BG365+BG366","v":13},{"$f":"SQRT((BH364^2)+(BH365^2)+(BH367^2))","v":162.22207001514928},{"$f":"BI364+BI365+BI366","v":0},{"$f":"SQRT((BJ364^2)+(BJ365^2)+(BJ367^2))","v":197.45379206285202},{"$f":"BK364+BK365+BK366","v":0},{"$f":"SQRT((BL364^2)+(BL365^2)+(BL367^2))","v":197.45379206285202},{"$f":"BM364+BM365+BM366","v":0},{"$f":"SQRT((BN364^2)+(BN365^2)+(BN367^2))","v":197.45379206285202},{"$f":"BO364+BO365+BO366","v":0},{"$f":"SQRT((BP364^2)+(BP365^2)+(BP367^2))","v":197.45379206285202},{"$f":"BQ364+BQ365+BQ366","v":0},{"$f":"SQRT((BR364^2)+(BR365^2)+(BR367^2))","v":197.45379206285202},{"$f":"BS364+BS365+BS366","v":0},{"$f":"SQRT((BT364^2)+(BT365^2)+(BT367^2))","v":197.45379206285202},{"$f":"BU364+BU365+BU366","v":0},{"$f":"SQRT((BV364^2)+(BV365^2)+(BV367^2))","v":197.45379206285202},{"$f":"BW364+BW365+BW366","v":6},{"$f":"SQRT((BX364^2)+(BX365^2)+(BX367^2))","v":161.33195591698504},{"$f":"BY364+BY365+BY366","v":0},{"$f":"SQRT((BZ364^2)+(BZ365^2)+(BZ367^2))","v":197.45379206285202},{"$f":"CA364+CA365+CA366","v":31},{"$f":"SQRT((CB364^2)+(CB365^2)+(CB367^2))","v":116.84605256490268},{"$f":"CC364+CC365+CC366","v":0},{"$f":"SQRT((CD364^2)+(CD365^2)+(CD367^2))","v":197.45379206285202},{"$f":"CE364+CE365+CE366","v":0},{"$f":"SQRT((CF364^2)+(CF365^2)+(CF367^2))","v":197.45379206285202},{"$f":"CG364+CG365+CG366","v":0},{"$f":"SQRT((CH364^2)+(CH365^2)+(CH367^2))","v":197.45379206285202},{"$f":"CI364+CI365+CI366","v":30},{"$f":"SQRT((CJ364^2)+(CJ365^2)+(CJ367^2))","v":117.81341180018512}]
[null,"More than 30.0 percent",{"$f":"C367+C368","v":0},{"$f":"SQRT((D367^2)+(D368^2))","v":161.22034611053283},{"$f":"E367+E368","v":0},{"$f":"SQRT((F367^2)+(F368^2))","v":161.22034611053283},{"$f":"G367+G368","v":0},{"$f":"SQRT((H367^2)+(H368^2))","v":161.22034611053283},{"$f":"I367+I368","v":0},{"$f":"SQRT((J367^2)+(J368^2))","v":161.22034611053283},{"$f":"K367+K368","v":0},{"$f":"SQRT((L367^2)+(L368^2))","v":161.22034611053283},{"$f":"M367+M368","v":0},{"$f":"SQRT((N367^2)+(N368^2))","v":161.22034611053283},{"$f":"O367+O368","v":0},{"$f":"SQRT((P367^2)+(P368^2))","v":161.22034611053283},{"$f":"Q367+Q368","v":0},{"$f":"SQRT((R367^2)+(R368^2))","v":161.22034611053283},{"$f":"S367+S368","v":6},{"$f":"SQRT((T367^2)+(T368^2))","v":114.43775600735974},{"$f":"U367+U368","v":0},{"$f":"SQRT((V367^2)+(V368^2))","v":161.22034611053283},{"$f":"W367+W368","v":0},{"$f":"SQRT((X367^2)+(X368^2))","v":161.22034611053283},{"$f":"Y367+Y368","v":0},{"$f":"SQRT((Z367^2)+(Z368^2))","v":161.22034611053283},{"$f":"AA367+AA368","v":0},{"$f":"SQRT((AB367^2)+(AB368^2))","v":161.22034611053283},{"$f":"AC367+AC368","v":0},{"$f":"SQRT((AD367^2)+(AD368^2))","v":161.22034611053283},{"$f":"AE367+AE368","v":0},{"$f":"SQRT((AF367^2)+(AF368^2))","v":161.22034611053283},{"$f":"AG367+AG368","v":3},{"$f":"SQRT((AH367^2)+(AH368^2))","v":114.0701538527936},{"$f":"AI367+AI368","v":0},{"$f":"SQRT((AJ367^2)+(AJ368^2))","v":161.22034611053283},{"$f":"AK367+AK368","v":0},{"$f":"SQRT((AL367^2)+(AL368^2))","v":161.22034611053283},{"$f":"AM367+AM368","v":0},{"$f":"SQRT((AN367^2)+(AN368^2))","v":161.22034611053283},{"$f":"AO367+AO368","v":0},{"$f":"SQRT((AP367^2)+(AP368^2))","v":161.22034611053283},{"$f":"AQ367+AQ368","v":0},{"$f":"SQRT((AR367^2)+(AR368^2))","v":161.22034611053283},{"$f":"AS367+AS368","v":0},{"$f":"SQRT((AT367^2)+(AT368^2))","v":161.22034611053283},{"$f":"AU367+AU368","v":0},{"$f":"SQRT((AV367^2)+(AV368^2))","v":161.22034611053283},{"$f":"AW367+AW368","v":0},{"$f":"SQRT((AX367^2)+(AX368^2))","v":161.22034611053283},{"$f":"AY367+AY368","v":0},{"$f":"SQRT((AZ367^2)+(AZ368^2))","v":161.22034611053283},{"$f":"BA367+BA368","v":0},{"$f":"SQRT((BB367^2)+(BB368^2))","v":161.22034611053283},{"$f":"BC367+BC368","v":2},{"$f":"SQRT((BD367^2)+(BD368^2))","v":114.0701538527936},{"$f":"BE367+BE368","v":0},{"$f":"SQRT((BF367^2)+(BF368^2))","v":161.22034611053283},{"$f":"BG367+BG368","v":16},{"$f":"SQRT((BH367^2)+(BH368^2))","v":115.41230437002807},{"$f":"BI367+BI368","v":0},{"$f":"SQRT((BJ367^2)+(BJ368^2))","v":161.22034611053283},{"$f":"BK367+BK368","v":0},{"$f":"SQRT((BL367^2)+(BL368^2))","v":161.22034611053283},{"$f":"BM367+BM368","v":9},{"$f":"SQRT((BN367^2)+(BN368^2))","v":114.43775600735974},{"$f":"BO367+BO368","v":0},{"$f":"SQRT((BP367^2)+(BP368^2))","v":161.22034611053283},{"$f":"BQ367+BQ368","v":0},{"$f":"SQRT((BR367^2)+(BR368^2))","v":161.22034611053283},{"$f":"BS367+BS368","v":0},{"$f":"SQRT((BT367^2)+(BT368^2))","v":161.22034611053283},{"$f":"BU367+BU368","v":0},{"$f":"SQRT((BV367^2)+(BV368^2))","v":161.22034611053283},{"$f":"BW367+BW368","v":5},{"$f":"SQRT((BX367^2)+(BX368^2))","v":114.21471008587291},{"$f":"BY367+BY368","v":0},{"$f":"SQRT((BZ367^2)+(BZ368^2))","v":161.22034611053283},{"$f":"CA367+CA368","v":0},{"$f":"SQRT((CB367^2)+(CB368^2))","v":161.22034611053283},{"$f":"CC367+CC368","v":0},{"$f":"SQRT((CD367^2)+(CD368^2))","v":161.22034611053283},{"$f":"CE367+CE368","v":0},{"$f":"SQRT((CF367^2)+(CF368^2))","v":161.22034611053283},{"$f":"CG367+CG368","v":0},{"$f":"SQRT((CH367^2)+(CH368^2))","v":161.22034611053283},{"$f":"CI367+CI368","v":0},{"$f":"SQRT((CJ367^2)+(CJ368^2))","v":161.22034611053283}]
[null,"Less Than 35% of HH Income",{"$f":"C364+C365+C366+C367","v":0},{"$f":"SQRT((D366^2)+(D367^2)+(D364^2)+(D365^2))","v":228},{"$f":"E364+E365+E366+E367","v":0},{"$f":"SQRT((F366^2)+(F367^2)+(F364^2)+(F365^2))","v":228},{"$f":"G364+G365+G366+G367","v":0},{"$f":"SQRT((H366^2)+(H367^2)+(H364^2)+(H365^2))","v":228},{"$f":"I364+I365+I366+I367","v":109},{"$f":"SQRT((J366^2)+(J367^2)+(J364^2)+(J365^2))","v":140.29255147726127},{"$f":"K364+K365+K366+K367","v":0},{"$f":"SQRT((L366^2)+(L367^2)+(L364^2)+(L365^2))","v":228},{"$f":"M364+M365+M366+M367","v":0},{"$f":"SQRT((N366^2)+(N367^2)+(N364^2)+(N365^2))","v":228},{"$f":"O364+O365+O366+O367","v":0},{"$f":"SQRT((P366^2)+(P367^2)+(P364^2)+(P365^2))","v":228},{"$f":"Q364+Q365+Q366+Q367","v":0},{"$f":"SQRT((R366^2)+(R367^2)+(R364^2)+(R365^2))","v":228},{"$f":"S364+S365+S366+S367","v":14},{"$f":"SQRT((T366^2)+(T367^2)+(T364^2)+(T365^2))","v":198.10098434889213},{"$f":"U364+U365+U366+U367","v":0},{"$f":"SQRT((V366^2)+(V367^2)+(V364^2)+(V365^2))","v":228},{"$f":"W364+W365+W366+W367","v":0},{"$f":"SQRT((X366^2)+(X367^2)+(X364^2)+(X365^2))","v":228},{"$f":"Y364+Y365+Y366+Y367","v":0},{"$f":"SQRT((Z366^2)+(Z367^2)+(Z364^2)+(Z365^2))","v":228},{"$f":"AA364+AA365+AA366+AA367","v":14},{"$f":"SQRT((AB366^2)+(AB367^2)+(AB364^2)+(AB365^2))","v":198.56736892047493},{"$f":"AC364+AC365+AC366+AC367","v":0},{"$f":"SQRT((AD366^2)+(AD367^2)+(AD364^2)+(AD365^2))","v":228},{"$f":"AE364+AE365+AE366+AE367","v":0},{"$f":"SQRT((AF366^2)+(AF367^2)+(AF364^2)+(AF365^2))","v":228},{"$f":"AG364+AG365+AG366+AG367","v":0},{"$f":"SQRT((AH366^2)+(AH367^2)+(AH364^2)+(AH365^2))","v":228},{"$f":"AI364+AI365+AI366+AI367","v":2},{"$f":"SQRT((AJ366^2)+(AJ367^2)+(AJ364^2)+(AJ365^2))","v":197.47658088998807},{"$f":"AK364+AK365+AK366+AK367","v":0},{"$f":"SQRT((AL366^2)+(AL367^2)+(AL364^2)+(AL365^2))","v":228},{"$f":"AM364+AM365+AM366+AM367","v":45},{"$f":"SQRT((AN366^2)+(AN367^2)+(AN364^2)+(AN365^2))","v":166.72432336045031},{"$f":"AO364+AO365+AO366+AO367","v":0},{"$f":"SQRT((AP366^2)+(AP367^2)+(AP364^2)+(AP365^2))","v":228},{"$f":"AQ364+AQ365+AQ366+AQ367","v":0},{"$f":"SQRT((AR366^2)+(AR367^2)+(AR364^2)+(AR365^2))","v":228},{"$f":"AS364+AS365+AS366+AS367","v":0},{"$f":"SQRT((AT366^2)+(AT367^2)+(AT364^2)+(AT365^2))","v":228},{"$f":"AU364+AU365+AU366+AU367","v":0},{"$f":"SQRT((AV366^2)+(AV367^2)+(AV364^2)+(AV365^2))","v":228},{"$f":"AW364+AW365+AW366+AW367","v":5},{"$f":"SQRT((AX366^2)+(AX367^2)+(AX364^2)+(AX365^2))","v":197.61578884289585},{"$f":"AY364+AY365+AY366+AY367","v":0},{"$f":"SQRT((AZ366^2)+(AZ367^2)+(AZ364^2)+(AZ365^2))","v":228},{"$f":"BA364+BA365+BA366+BA367","v":0},{"$f":"SQRT((BB366^2)+(BB367^2)+(BB364^2)+(BB365^2))","v":228},{"$f":"BC364+BC365+BC366+BC367","v":7},{"$f":"SQRT((BD366^2)+(BD367^2)+(BD364^2)+(BD365^2))","v":161.34745117292681},{"$f":"BE364+BE365+BE366+BE367","v":0},{"$f":"SQRT((BF366^2)+(BF367^2)+(BF364^2)+(BF365^2))","v":228},{"$f":"BG364+BG365+BG366+BG367","v":13},{"$f":"SQRT((BH366^2)+(BH367^2)+(BH364^2)+(BH365^2))","v":198.27253970229967},{"$f":"BI364+BI365+BI366+BI367","v":0},{"$f":"SQRT((BJ366^2)+(BJ367^2)+(BJ364^2)+(BJ365^2))","v":228},{"$f":"BK364+BK365+BK366+BK367","v":0},{"$f":"SQRT((BL366^2)+(BL367^2)+(BL364^2)+(BL365^2))","v":228},{"$f":"BM364+BM365+BM366+BM367","v":0},{"$f":"SQRT((BN366^2)+(BN367^2)+(BN364^2)+(BN365^2))","v":228},{"$f":"BO364+BO365+BO366+BO367","v":0},{"$f":"SQRT((BP366^2)+(BP367^2)+(BP364^2)+(BP365^2))","v":228},{"$f":"BQ364+BQ365+BQ366+BQ367","v":0},{"$f":"SQRT((BR366^2)+(BR367^2)+(BR364^2)+(BR365^2))","v":228},{"$f":"BS364+BS365+BS366+BS367","v":0},{"$f":"SQRT((BT366^2)+(BT367^2)+(BT364^2)+(BT365^2))","v":228},{"$f":"BU364+BU365+BU366+BU367","v":0},{"$f":"SQRT((BV366^2)+(BV367^2)+(BV364^2)+(BV365^2))","v":228},{"$f":"BW364+BW365+BW366+BW367","v":6},{"$f":"SQRT((BX366^2)+(BX367^2)+(BX364^2)+(BX365^2))","v":161.5301829380503},{"$f":"BY364+BY365+BY366+BY367","v":0},{"$f":"SQRT((BZ366^2)+(BZ367^2)+(BZ364^2)+(BZ365^2))","v":228},{"$f":"CA364+CA365+CA366+CA367","v":31},{"$f":"SQRT((CB366^2)+(CB367^2)+(CB364^2)+(CB365^2))","v":163.24521432495348},{"$f":"CC364+CC365+CC366+CC367","v":0},{"$f":"SQRT((CD366^2)+(CD367^2)+(CD364^2)+(CD365^2))","v":228},{"$f":"CE364+CE365+CE366+CE367","v":0},{"$f":"SQRT((CF366^2)+(CF367^2)+(CF364^2)+(CF365^2))","v":228},{"$f":"CG364+CG365+CG366+CG367","v":0},{"$f":"SQRT((CH366^2)+(CH367^2)+(CH364^2)+(CH365^2))","v":228},{"$f":"CI364+CI365+CI366+CI367","v":30},{"$f":"SQRT((CJ366^2)+(CJ367^2)+(CJ364^2)+(CJ365^2))","v":118.08471535300409}]
[null,"35.0 percent or more",{"$f":"C368","v":0},{"$f":"D368","v":114},0,114,0,114,0,114,0,114,0,114,0,114,0,114,6,10,0,114,0,114,0,114,0,114,0,114,0,114,3,4,0,114,0,114,0,114,0,114,0,114,0,114,0,114,0,114,0,114,0,114,2,4,0,114,16,18,0,114,0,114,9,10,0,{"$f":"BP368","v":114},0,114,0,114,0,114,5,7,0,114,0,114,0,114,0,114,0,114,0,114]
[null,"Not Computed",{"$f":"C369","v":0},114,0,114,0,114,196,112,0,114,10,14,0,114,0,114,56,59,11,17,0,114,0,114,4,6,0,114,8,8,0,114,0,114,0,114,14,16,0,114,0,114,7,10,0,114,66,56,0,114,0,114,14,10,0,114,13,14,0,114,0,114,0,114,0,114,0,114,0,114,5,6,0,114,28,21,0,114,0,114,0,114,0,114,28,28]
[null,"$50,000 to $74,999:",0,114,0,114,0,114,196,112,0,114,0,114,0,114,0,114,56,59,11,17,0,114,0,114,0,114,0,114,0,114,0,114,0,114,0,114,9,13,0,114,0,114,0,114,0,114,47,54,0,114,0,114,14,10,0,114,0,114,0,114,0,114,0,114,0,114,0,114,0,114,5,6,0,114,6,9,0,114,0,114,0,114,0,114,22,27]
[null,"Less than 30.0 percent",{"$f":"C371+C372+C373","v":0},{"$f":"SQRT((D371^2)+(D372^2)+(D373^2))","v":197.45379206285202},{"$f":"E371+E372+E373","v":0},{"$f":"SQRT((F371^2)+(F372^2)+(F373^2))","v":197.45379206285202},{"$f":"G371+G372+G373","v":0},{"$f":"SQRT((H371^2)+(H372^2)+(H373^2))","v":197.45379206285202},{"$f":"I371+I372+I373","v":0},{"$f":"SQRT((J371^2)+(J372^2)+(J373^2))","v":197.45379206285202},{"$f":"K371+K372+K373","v":0},{"$f":"SQRT((L371^2)+(L372^2)+(L373^2))","v":197.45379206285202},{"$f":"M371+M372+M373","v":10},{"$f":"SQRT((N371^2)+(N372^2)+(N373^2))","v":161.8270681931796},{"$f":"O371+O372+O373","v":0},{"$f":"SQRT((P371^2)+(P372^2)+(P373^2))","v":197.45379206285202},{"$f":"Q371+Q372+Q373","v":0},{"$f":"SQRT((R371^2)+(R372^2)+(R373^2))","v":197.45379206285202},{"$f":"S371+S372+S373","v":0},{"$f":"SQRT((T371^2)+(T372^2)+(T373^2))","v":197.45379206285202},{"$f":"U371+U372+U373","v":0},{"$f":"SQRT((V371^2)+(V372^2)+(V373^2))","v":197.45379206285202},{"$f":"W371+W372+W373","v":0},{"$f":"SQRT((X371^2)+(X372^2)+(X373^2))","v":197.45379206285202},{"$f":"Y371+Y372+Y373","v":0},{"$f":"SQRT((Z371^2)+(Z372^2)+(Z373^2))","v":197.45379206285202},{"$f":"AA371+AA372+AA373","v":0},{"$f":"SQRT((AB371^2)+(AB372^2)+(AB373^2))","v":197.45379206285202},{"$f":"AC371+AC372+AC373","v":0},{"$f":"SQRT((AD371^2)+(AD372^2)+(AD373^2))","v":197.45379206285202},{"$f":"AE371+AE372+AE373","v":0},{"$f":"SQRT((AF371^2)+(AF372^2)+(AF373^2))","v":197.45379206285202},{"$f":"AG371+AG372+AG373","v":0},{"$f":"SQRT((AH371^2)+(AH372^2)+(AH373^2))","v":197.45379206285202},{"$f":"AI371+AI372+AI373","v":0},{"$f":"SQRT((AJ371^2)+(AJ372^2)+(AJ373^2))","v":197.45379206285202},{"$f":"AK371+AK372+AK373","v":0},{"$f":"SQRT((AL371^2)+(AL372^2)+(AL373^2))","v":197.45379206285202},{"$f":"AM371+AM372+AM373","v":0},{"$f":"SQRT((AN371^2)+(AN372^2)+(AN373^2))","v":197.45379206285202},{"$f":"AO371+AO372+AO373","v":0},{"$f":"SQRT((AP371^2)+(AP372^2)+(AP373^2))","v":197.45379206285202},{"$f":"AQ371+AQ372+AQ373","v":0},{"$f":"SQRT((AR371^2)+(AR372^2)+(AR373^2))","v":197.45379206285202},{"$f":"AS371+AS372+AS373","v":7},{"$f":"SQRT((AT371^2)+(AT372^2)+(AT373^2))","v":161.5301829380503},{"$f":"AU371+AU372+AU373","v":0},{"$f":"SQRT((AV371^2)+(AV372^2)+(AV373^2))","v":197.45379206285202},{"$f":"AW371+AW372+AW373","v":19},{"$f":"SQRT((AX371^2)+(AX372^2)+(AX373^2))","v":115.78428218026832},{"$f":"AY371+AY372+AY373","v":0},{"$f":"SQRT((AZ371^2)+(AZ372^2)+(AZ373^2))","v":197.45379206285202},{"$f":"BA371+BA372+BA373","v":0},{"$f":"SQRT((BB371^2)+(BB372^2)+(BB373^2))","v":197.45379206285202},{"$f":"BC371+BC372+BC373","v":0},{"$f":"SQRT((BD371^2)+(BD372^2)+(BD373^2))","v":197.45379206285202},{"$f":"BE371+BE372+BE373","v":0},{"$f":"SQRT((BF371^2)+(BF372^2)+(BF373^2))","v":197.45379206285202},{"$f":"BG371+BG372+BG373","v":0},{"$f":"SQRT((BH371^2)+(BH372^2)+(BH373^2))","v":197.45379206285202},{"$f":"BI371+BI372+BI373","v":0},{"$f":"SQRT((BJ371^2)+(BJ372^2)+(BJ373^2))","v":197.45379206285202},{"$f":"BK371+BK372+BK373","v":0},{"$f":"SQRT((BL371^2)+(BL372^2)+(BL373^2))","v":197.45379206285202},{"$f":"BM371+BM372+BM373","v":0},{"$f":"SQRT((BN371^2)+(BN372^2)+(BN373^2))","v":197.45379206285202},{"$f":"BO371+BO372+BO373","v":0},{"$f":"SQRT((BP371^2)+(BP372^2)+(BP373^2))","v":197.45379206285202},{"$f":"BQ371+BQ372+BQ373","v":0},{"$f":"SQRT((BR371^2)+(BR372^2)+(BR373^2))","v":197.45379206285202},{"$f":"BS371+BS372+BS373","v":0},{"$f":"SQRT((BT371^2)+(BT372^2)+(BT373^2))","v":197.45379206285202},{"$f":"BU371+BU372+BU373","v":0},{"$f":"SQRT((BV371^2)+(BV372^2)+(BV373^2))","v":197.45379206285202},{"$f":"BW371+BW372+BW373","v":0},{"$f":"SQRT((BX371^2)+(BX372^2)+(BX373^2))","v":197.45379206285202},{"$f":"BY371+BY372+BY373","v":18},{"$f":"SQRT((BZ371^2)+(BZ372^2)+(BZ373^2))","v":115.47294055318761},{"$f":"CA371+CA372+CA373","v":0},{"$f":"SQRT((CB371^2)+(CB372^2)+(CB373^2))","v":197.45379206285202},{"$f":"CC371+CC372+CC373","v":0},{"$f":"SQRT((CD371^2)+(CD372^2)+(CD373^2))","v":197.45379206285202},{"$f":"CE371+CE372+CE373","v":0},{"$f":"SQRT((CF371^2)+(CF372^2)+(CF373^2))","v":197.45379206285202},{"$f":"CG371+CG372+CG373","v":0},{"$f":"SQRT((CH371^2)+(CH372^2)+(CH373^2))","v":197.45379206285202},{"$f":"CI371+CI372+CI373","v":0},{"$f":"SQRT((CJ371^2)+(CJ372^2)+(CJ373^2))","v":197.45379206285202}]
[null,"More than 30.0 percent",{"$f":"C374+C375","v":0},{"$f":"SQRT((D374^2)+(D375^2))","v":161.22034611053283},{"$f":"E374+E375","v":0},{"$f":"SQRT((F374^2)+(F375^2))","v":161.22034611053283},{"$f":"G374+G375","v":0},{"$f":"SQRT((H374^2)+(H375^2))","v":161.22034611053283},{"$f":"I374+I375","v":0},{"$f":"SQRT((J374^2)+(J375^2))","v":161.22034611053283},{"$f":"K374+K375","v":0},{"$f":"SQRT((L374^2)+(L375^2))","v":161.22034611053283},{"$f":"M374+M375","v":0},{"$f":"SQRT((N374^2)+(N375^2))","v":161.22034611053283},{"$f":"O374+O375","v":0},{"$f":"SQRT((P374^2)+(P375^2))","v":161.22034611053283},{"$f":"Q374+Q375","v":0},{"$f":"SQRT((R374^2)+(R375^2))","v":161.22034611053283},{"$f":"S374+S375","v":0},{"$f":"SQRT((T374^2)+(T375^2))","v":161.22034611053283},{"$f":"U374+U375","v":0},{"$f":"SQRT((V374^2)+(V375^2))","v":161.22034611053283},{"$f":"W374+W375","v":0},{"$f":"SQRT((X374^2)+(X375^2))","v":161.22034611053283},{"$f":"Y374+Y375","v":0},{"$f":"SQRT((Z374^2)+(Z375^2))","v":161.22034611053283},{"$f":"AA374+AA375","v":4},{"$f":"SQRT((AB374^2)+(AB375^2))","v":114.15778554264269},{"$f":"AC374+AC375","v":0},{"$f":"SQRT((AD374^2)+(AD375^2))","v":161.22034611053283},{"$f":"AE374+AE375","v":8},{"$f":"SQRT((AF374^2)+(AF375^2))","v":114.28035701729323},{"$f":"AG374+AG375","v":0},{"$f":"SQRT((AH374^2)+(AH375^2))","v":161.22034611053283},{"$f":"AI374+AI375","v":0},{"$f":"SQRT((AJ374^2)+(AJ375^2))","v":161.22034611053283},{"$f":"AK374+AK375","v":0},{"$f":"SQRT((AL374^2)+(AL375^2))","v":161.22034611053283},{"$f":"AM374+AM375","v":5},{"$f":"SQRT((AN374^2)+(AN375^2))","v":114.35471131527551},{"$f":"AO374+AO375","v":0},{"$f":"SQRT((AP374^2)+(AP375^2))","v":161.22034611053283},{"$f":"AQ374+AQ375","v":0},{"$f":"SQRT((AR374^2)+(AR375^2))","v":161.22034611053283},{"$f":"AS374+AS375","v":0},{"$f":"SQRT((AT374^2)+(AT375^2))","v":161.22034611053283},{"$f":"AU374+AU375","v":0},{"$f":"SQRT((AV374^2)+(AV375^2))","v":161.22034611053283},{"$f":"AW374+AW375","v":0},{"$f":"SQRT((AX374^2)+(AX375^2))","v":161.22034611053283},{"$f":"AY374+AY375","v":0},{"$f":"SQRT((AZ374^2)+(AZ375^2))","v":161.22034611053283},{"$f":"BA374+BA375","v":0},{"$f":"SQRT((BB374^2)+(BB375^2))","v":161.22034611053283},{"$f":"BC374+BC375","v":0},{"$f":"SQRT((BD374^2)+(BD375^2))","v":161.22034611053283},{"$f":"BE374+BE375","v":0},{"$f":"SQRT((BF374^2)+(BF375^2))","v":161.22034611053283},{"$f":"BG374+BG375","v":13},{"$f":"SQRT((BH374^2)+(BH375^2))","v":114.85643212288984},{"$f":"BI374+BI375","v":0},{"$f":"SQRT((BJ374^2)+(BJ375^2))","v":161.22034611053283},{"$f":"BK374+BK375","v":0},{"$f":"SQRT((BL374^2)+(BL375^2))","v":161.22034611053283},{"$f":"BM374+BM375","v":0},{"$f":"SQRT((BN374^2)+(BN375^2))","v":161.22034611053283},{"$f":"BO374+BO375","v":0},{"$f":"SQRT((BP374^2)+(BP375^2))","v":161.22034611053283},{"$f":"BQ374+BQ375","v":0},{"$f":"SQRT((BR374^2)+(BR375^2))","v":161.22034611053283},{"$f":"BS374+BS375","v":0},{"$f":"SQRT((BT374^2)+(BT375^2))","v":161.22034611053283},{"$f":"BU374+BU375","v":0},{"$f":"SQRT((BV374^2)+(BV375^2))","v":161.22034611053283},{"$f":"BW374+BW375","v":0},{"$f":"SQRT((BX374^2)+(BX375^2))","v":161.22034611053283},{"$f":"BY374+BY375","v":4},{"$f":"SQRT((BZ374^2)+(BZ375^2))","v":114.21471008587291},{"$f":"CA374+CA375","v":0},{"$f":"SQRT((CB374^2)+(CB375^2))","v":161.22034611053283},{"$f":"CC374+CC375","v":0},{"$f":"SQRT((CD374^2)+(CD375^2))","v":161.22034611053283},{"$f":"CE374+CE375","v":0},{"$f":"SQRT((CF374^2)+(CF375^2))","v":161.22034611053283},{"$f":"CG374+CG375","v":0},{"$f":"SQRT((CH374^2)+(CH375^2))","v":161.22034611053283},{"$f":"CI374+CI375","v":6},{"$f":"SQRT((CJ374^2)+(CJ375^2))","v":114.35471131527551}]
[null,"Less Than 35% of HH Income",{"$f":"C374+C373+C372+C371","v":0},{"$f":"SQRT((D374^2)+(D373^2)+(D372^2)+(D371^2))","v":228},{"$f":"E374+E373+E372+E371","v":0},{"$f":"SQRT((F374^2)+(F373^2)+(F372^2)+(F371^2))","v":228},{"$f":"G374+G373+G372+G371","v":0},{"$f":"SQRT((H374^2)+(H373^2)+(H372^2)+(H371^2))","v":228},{"$f":"I374+I373+I372+I371","v":0},{"$f":"SQRT((J374^2)+(J373^2)+(J372^2)+(J371^2))","v":228},{"$f":"K374+K373+K372+K371","v":0},{"$f":"SQRT((L374^2)+(L373^2)+(L372^2)+(L371^2))","v":228},{"$f":"M374+M373+M372+M371","v":10},{"$f":"SQRT((N374^2)+(N373^2)+(N372^2)+(N371^2))","v":197.94948850653796},{"$f":"O374+O373+O372+O371","v":0},{"$f":"SQRT((P374^2)+(P373^2)+(P372^2)+(P371^2))","v":228},{"$f":"Q374+Q373+Q372+Q371","v":0},{"$f":"SQRT((R374^2)+(R373^2)+(R372^2)+(R371^2))","v":228},{"$f":"S374+S373+S372+S371","v":0},{"$f":"SQRT((T374^2)+(T373^2)+(T372^2)+(T371^2))","v":228},{"$f":"U374+U373+U372+U371","v":0},{"$f":"SQRT((V374^2)+(V373^2)+(V372^2)+(V371^2))","v":228},{"$f":"W374+W373+W372+W371","v":0},{"$f":"SQRT((X374^2)+(X373^2)+(X372^2)+(X371^2))","v":228},{"$f":"Y374+Y373+Y372+Y371","v":0},{"$f":"SQRT((Z374^2)+(Z373^2)+(Z372^2)+(Z371^2))","v":228},{"$f":"AA374+AA373+AA372+AA371","v":0},{"$f":"SQRT((AB374^2)+(AB373^2)+(AB372^2)+(AB371^2))","v":228},{"$f":"AC374+AC373+AC372+AC371","v":0},{"$f":"SQRT((AD374^2)+(AD373^2)+(AD372^2)+(AD371^2))","v":228},{"$f":"AE374+AE373+AE372+AE371","v":0},{"$f":"SQRT((AF374^2)+(AF373^2)+(AF372^2)+(AF371^2))","v":228},{"$f":"AG374+AG373+AG372+AG371","v":0},{"$f":"SQRT((AH374^2)+(AH373^2)+(AH372^2)+(AH371^2))","v":228},{"$f":"AI374+AI373+AI372+AI371","v":0},{"$f":"SQRT((AJ374^2)+(AJ373^2)+(AJ372^2)+(AJ371^2))","v":228},{"$f":"AK374+AK373+AK372+AK371","v":0},{"$f":"SQRT((AL374^2)+(AL373^2)+(AL372^2)+(AL371^2))","v":228},{"$f":"AM374+AM373+AM372+AM371","v":0},{"$f":"SQRT((AN374^2)+(AN373^2)+(AN372^2)+(AN371^2))","v":228},{"$f":"AO374+AO373+AO372+AO371","v":0},{"$f":"SQRT((AP374^2)+(AP373^2)+(AP372^2)+(AP371^2))","v":228},{"$f":"AQ374+AQ373+AQ372+AQ371","v":0},{"$f":"SQRT((AR374^2)+(AR373^2)+(AR372^2)+(AR371^2))","v":228},{"$f":"AS374+AS373+AS372+AS371","v":7},{"$f":"SQRT((AT374^2)+(AT373^2)+(AT372^2)+(AT371^2))","v":197.70685370011836},{"$f":"AU374+AU373+AU372+AU371","v":0},{"$f":"SQRT((AV374^2)+(AV373^2)+(AV372^2)+(AV371^2))","v":228},{"$f":"AW374+AW373+AW372+AW371","v":19},{"$f":"SQRT((AX374^2)+(AX373^2)+(AX372^2)+(AX371^2))","v":162.48692255070867},{"$f":"AY374+AY373+AY372+AY371","v":0},{"$f":"SQRT((AZ374^2)+(AZ373^2)+(AZ372^2)+(AZ371^2))","v":228},{"$f":"BA374+BA373+BA372+BA371","v":0},{"$f":"SQRT((BB374^2)+(BB373^2)+(BB372^2)+(BB371^2))","v":228},{"$f":"BC374+BC373+BC372+BC371","v":0},{"$f":"SQRT((BD374^2)+(BD373^2)+(BD372^2)+(BD371^2))","v":228},{"$f":"BE374+BE373+BE372+BE371","v":0},{"$f":"SQRT((BF374^2)+(BF373^2)+(BF372^2)+(BF371^2))","v":228},{"$f":"BG374+BG373+BG372+BG371","v":0},{"$f":"SQRT((BH374^2)+(BH373^2)+(BH372^2)+(BH371^2))","v":228},{"$f":"BI374+BI373+BI372+BI371","v":0},{"$f":"SQRT((BJ374^2)+(BJ373^2)+(BJ372^2)+(BJ371^2))","v":228},{"$f":"BK374+BK373+BK372+BK371","v":0},{"$f":"SQRT((BL374^2)+(BL373^2)+(BL372^2)+(BL371^2))","v":228},{"$f":"BM374+BM373+BM372+BM371","v":0},{"$f":"SQRT((BN374^2)+(BN373^2)+(BN372^2)+(BN371^2))","v":228},{"$f":"BO374+BO373+BO372+BO371","v":0},{"$f":"SQRT((BP374^2)+(BP373^2)+(BP372^2)+(BP371^2))","v":228},{"$f":"BQ374+BQ373+BQ372+BQ371","v":0},{"$f":"SQRT((BR374^2)+(BR373^2)+(BR372^2)+(BR371^2))","v":228},{"$f":"BS374+BS373+BS372+BS371","v":0},{"$f":"SQRT((BT374^2)+(BT373^2)+(BT372^2)+(BT371^2))","v":228},{"$f":"BU374+BU373+BU372+BU371","v":0},{"$f":"SQRT((BV374^2)+(BV373^2)+(BV372^2)+(BV371^2))","v":228},{"$f":"BW374+BW373+BW372+BW371","v":0},{"$f":"SQRT((BX374^2)+(BX373^2)+(BX372^2)+(BX371^2))","v":228},{"$f":"BY374+BY373+BY372+BY371","v":18},{"$f":"SQRT((BZ374^2)+(BZ373^2)+(BZ372^2)+(BZ371^2))","v":162.265215003093},{"$f":"CA374+CA373+CA372+CA371","v":0},{"$f":"SQRT((CB374^2)+(CB373^2)+(CB372^2)+(CB371^2))","v":228},{"$f":"CC374+CC373+CC372+CC371","v":0},{"$f":"SQRT((CD374^2)+(CD373^2)+(CD372^2)+(CD371^2))","v":228},{"$f":"CE374+CE373+CE372+CE371","v":0},{"$f":"SQRT((CF374^2)+(CF373^2)+(CF372^2)+(CF371^2))","v":228},{"$f":"CG374+CG373+CG372+CG371","v":0},{"$f":"SQRT((CH374^2)+(CH373^2)+(CH372^2)+(CH371^2))","v":228},{"$f":"CI374+CI373+CI372+CI371","v":0},{"$f":"SQRT((CJ374^2)+(CJ373^2)+(CJ372^2)+(CJ371^2))","v":228}]
[null,"35.0 percent or more",{"$f":"C375","v":0},{"$f":"D375","v":114},0,114,0,114,0,114,0,114,0,114,0,114,0,114,0,114,0,114,0,114,0,114,4,6,0,114,8,8,0,114,0,114,0,114,5,9,0,114,0,114,0,114,0,114,0,114,0,114,0,114,0,114,0,114,13,14,0,114,0,114,0,114,0,{"$f":"BP375","v":114},0,114,0,114,0,114,0,114,4,7,0,114,0,114,0,114,0,114,6,9]
[null,"Not Computed",{"$f":"C376","v":0},114,0,114,0,114,27,33,0,114,0,114,0,114,0,114,12,16,0,114,0,114,0,114,8,11,0,114,0,114,0,114,0,114,0,114,0,114,0,114,0,114,0,114,0,114,14,23,0,114,0,114,7,7,0,114,27,25,0,114,0,114,0,114,0,114,0,114,0,114,0,114,0,114,4,7,4,8,0,114,0,114,0,114,0,114]
[null,"$75,000 to $99,999:",{"$f":"C377","v":0},114,0,114,0,114,27,33,0,114,0,114,0,114,0,114,12,16,0,114,0,114,0,114,8,11,0,114,0,114,0,114,0,114,0,114,0,114,0,114,0,114,0,114,0,114,0,114,0,114,0,114,7,7,0,114,22,23,0,114,0,114,0,114,0,114,0,114,0,114,0,114,0,114,4,7,4,8,0,114,0,114,0,114,0,114]
[null,"Less than 30.0 percent",{"$f":"C378+C379+C380","v":0},{"$f":"SQRT((D378^2)+(D379^2)+(D380^2))","v":197.45379206285202},{"$f":"E378+E379+E380","v":0},{"$f":"SQRT((F378^2)+(F379^2)+(F380^2))","v":197.45379206285202},{"$f":"G378+G379+G380","v":0},{"$f":"SQRT((H378^2)+(H379^2)+(H380^2))","v":197.45379206285202},{"$f":"I378+I379+I380","v":0},{"$f":"SQRT((J378^2)+(J379^2)+(J380^2))","v":197.45379206285202},{"$f":"K378+K379+K380","v":0},{"$f":"SQRT((L378^2)+(L379^2)+(L380^2))","v":197.45379206285202},{"$f":"M378+M379+M380","v":0},{"$f":"SQRT((N378^2)+(N379^2)+(N380^2))","v":197.45379206285202},{"$f":"O378+O379+O380","v":0},{"$f":"SQRT((P378^2)+(P379^2)+(P380^2))","v":197.45379206285202},{"$f":"Q378+Q379+Q380","v":0},{"$f":"SQRT((R378^2)+(R379^2)+(R380^2))","v":197.45379206285202},{"$f":"S378+S379+S380","v":0},{"$f":"SQRT((T378^2)+(T379^2)+(T380^2))","v":197.45379206285202},{"$f":"U378+U379+U380","v":0},{"$f":"SQRT((V378^2)+(V379^2)+(V380^2))","v":197.45379206285202},{"$f":"W378+W379+W380","v":0},{"$f":"SQRT((X378^2)+(X379^2)+(X380^2))","v":197.45379206285202},{"$f":"Y378+Y379+Y380","v":0},{"$f":"SQRT((Z378^2)+(Z379^2)+(Z380^2))","v":197.45379206285202},{"$f":"AA378+AA379+AA380","v":0},{"$f":"SQRT((AB378^2)+(AB379^2)+(AB380^2))","v":197.45379206285202},{"$f":"AC378+AC379+AC380","v":0},{"$f":"SQRT((AD378^2)+(AD379^2)+(AD380^2))","v":197.45379206285202},{"$f":"AE378+AE379+AE380","v":0},{"$f":"SQRT((AF378^2)+(AF379^2)+(AF380^2))","v":197.45379206285202},{"$f":"AG378+AG379+AG380","v":0},{"$f":"SQRT((AH378^2)+(AH379^2)+(AH380^2))","v":197.45379206285202},{"$f":"AI378+AI379+AI380","v":0},{"$f":"SQRT((AJ378^2)+(AJ379^2)+(AJ380^2))","v":197.45379206285202},{"$f":"AK378+AK379+AK380","v":0},{"$f":"SQRT((AL378^2)+(AL379^2)+(AL380^2))","v":197.45379206285202},{"$f":"AM378+AM379+AM380","v":0},{"$f":"SQRT((AN378^2)+(AN379^2)+(AN380^2))","v":197.45379206285202},{"$f":"AO378+AO379+AO380","v":0},{"$f":"SQRT((AP378^2)+(AP379^2)+(AP380^2))","v":197.45379206285202},{"$f":"AQ378+AQ379+AQ380","v":0},{"$f":"SQRT((AR378^2)+(AR379^2)+(AR380^2))","v":197.45379206285202},{"$f":"AS378+AS379+AS380","v":0},{"$f":"SQRT((AT378^2)+(AT379^2)+(AT380^2))","v":197.45379206285202},{"$f":"AU378+AU379+AU380","v":0},{"$f":"SQRT((AV378^2)+(AV379^2)+(AV380^2))","v":197.45379206285202},{"$f":"AW378+AW379+AW380","v":0},{"$f":"SQRT((AX378^2)+(AX379^2)+(AX380^2))","v":197.45379206285202},{"$f":"AY378+AY379+AY380","v":0},{"$f":"SQRT((AZ378^2)+(AZ379^2)+(AZ380^2))","v":197.45379206285202},{"$f":"BA378+BA379+BA380","v":0},{"$f":"SQRT((BB378^2)+(BB379^2)+(BB380^2))","v":197.45379206285202},{"$f":"BC378+BC379+BC380","v":0},{"$f":"SQRT((BD378^2)+(BD379^2)+(BD380^2))","v":197.45379206285202},{"$f":"BE378+BE379+BE380","v":0},{"$f":"SQRT((BF378^2)+(BF379^2)+(BF380^2))","v":197.45379206285202},{"$f":"BG378+BG379+BG380","v":0},{"$f":"SQRT((BH378^2)+(BH379^2)+(BH380^2))","v":197.45379206285202},{"$f":"BI378+BI379+BI380","v":0},{"$f":"SQRT((BJ378^2)+(BJ379^2)+(BJ380^2))","v":197.45379206285202},{"$f":"BK378+BK379+BK380","v":0},{"$f":"SQRT((BL378^2)+(BL379^2)+(BL380^2))","v":197.45379206285202},{"$f":"BM378+BM379+BM380","v":0},{"$f":"SQRT((BN378^2)+(BN379^2)+(BN380^2))","v":197.45379206285202},{"$f":"BO378+BO379+BO380","v":0},{"$f":"SQRT((BP378^2)+(BP379^2)+(BP380^2))","v":197.45379206285202},{"$f":"BQ378+BQ379+BQ380","v":0},{"$f":"SQRT((BR378^2)+(BR379^2)+(BR380^2))","v":197.45379206285202},{"$f":"BS378+BS379+BS380","v":0},{"$f":"SQRT((BT378^2)+(BT379^2)+(BT380^2))","v":197.45379206285202},{"$f":"BU378+BU379+BU380","v":0},{"$f":"SQRT((BV378^2)+(BV379^2)+(BV380^2))","v":197.45379206285202},{"$f":"BW378+BW379+BW380","v":0},{"$f":"SQRT((BX378^2)+(BX379^2)+(BX380^2))","v":197.45379206285202},{"$f":"BY378+BY379+BY380","v":0},{"$f":"SQRT((BZ378^2)+(BZ379^2)+(BZ380^2))","v":197.45379206285202},{"$f":"CA378+CA379+CA380","v":0},{"$f":"SQRT((CB378^2)+(CB379^2)+(CB380^2))","v":197.45379206285202},{"$f":"CC378+CC379+CC380","v":0},{"$f":"SQRT((CD378^2)+(CD379^2)+(CD380^2))","v":197.45379206285202},{"$f":"CE378+CE379+CE380","v":0},{"$f":"SQRT((CF378^2)+(CF379^2)+(CF380^2))","v":197.45379206285202},{"$f":"CG378+CG379+CG380","v":0},{"$f":"SQRT((CH378^2)+(CH379^2)+(CH380^2))","v":197.45379206285202},{"$f":"CI378+CI379+CI380","v":0},{"$f":"SQRT((CJ378^2)+(CJ379^2)+(CJ380^2))","v":197.45379206285202}]
[null,"More than 30.0 percent",{"$f":"C381+C382","v":0},{"$f":"SQRT((D381^2)+(D382^2))","v":161.22034611053283},{"$f":"E381+E382","v":0},{"$f":"SQRT((F381^2)+(F382^2))","v":161.22034611053283},{"$f":"G381+G382","v":0},{"$f":"SQRT((H381^2)+(H382^2))","v":161.22034611053283},{"$f":"I381+I382","v":0},{"$f":"SQRT((J381^2)+(J382^2))","v":161.22034611053283},{"$f":"K381+K382","v":0},{"$f":"SQRT((L381^2)+(L382^2))","v":161.22034611053283},{"$f":"M381+M382","v":0},{"$f":"SQRT((N381^2)+(N382^2))","v":161.22034611053283},{"$f":"O381+O382","v":0},{"$f":"SQRT((P381^2)+(P382^2))","v":161.22034611053283},{"$f":"Q381+Q382","v":0},{"$f":"SQRT((R381^2)+(R382^2))","v":161.22034611053283},{"$f":"S381+S382","v":0},{"$f":"SQRT((T381^2)+(T382^2))","v":161.22034611053283},{"$f":"U381+U382","v":0},{"$f":"SQRT((V381^2)+(V382^2))","v":161.22034611053283},{"$f":"W381+W382","v":0},{"$f":"SQRT((X381^2)+(X382^2))","v":161.22034611053283},{"$f":"Y381+Y382","v":0},{"$f":"SQRT((Z381^2)+(Z382^2))","v":161.22034611053283},{"$f":"AA381+AA382","v":0},{"$f":"SQRT((AB381^2)+(AB382^2))","v":161.22034611053283},{"$f":"AC381+AC382","v":0},{"$f":"SQRT((AD381^2)+(AD382^2))","v":161.22034611053283},{"$f":"AE381+AE382","v":0},{"$f":"SQRT((AF381^2)+(AF382^2))","v":161.22034611053283},{"$f":"AG381+AG382","v":0},{"$f":"SQRT((AH381^2)+(AH382^2))","v":161.22034611053283},{"$f":"AI381+AI382","v":0},{"$f":"SQRT((AJ381^2)+(AJ382^2))","v":161.22034611053283},{"$f":"AK381+AK382","v":0},{"$f":"SQRT((AL381^2)+(AL382^2))","v":161.22034611053283},{"$f":"AM381+AM382","v":0},{"$f":"SQRT((AN381^2)+(AN382^2))","v":161.22034611053283},{"$f":"AO381+AO382","v":0},{"$f":"SQRT((AP381^2)+(AP382^2))","v":161.22034611053283},{"$f":"AQ381+AQ382","v":0},{"$f":"SQRT((AR381^2)+(AR382^2))","v":161.22034611053283},{"$f":"AS381+AS382","v":0},{"$f":"SQRT((AT381^2)+(AT382^2))","v":161.22034611053283},{"$f":"AU381+AU382","v":0},{"$f":"SQRT((AV381^2)+(AV382^2))","v":161.22034611053283},{"$f":"AW381+AW382","v":14},{"$f":"SQRT((AX381^2)+(AX382^2))","v":116.29703349613007},{"$f":"AY381+AY382","v":0},{"$f":"SQRT((AZ381^2)+(AZ382^2))","v":161.22034611053283},{"$f":"BA381+BA382","v":0},{"$f":"SQRT((BB381^2)+(BB382^2))","v":161.22034611053283},{"$f":"BC381+BC382","v":0},{"$f":"SQRT((BD381^2)+(BD382^2))","v":161.22034611053283},{"$f":"BE381+BE382","v":0},{"$f":"SQRT((BF381^2)+(BF382^2))","v":161.22034611053283},{"$f":"BG381+BG382","v":5},{"$f":"SQRT((BH381^2)+(BH382^2))","v":114.28035701729323},{"$f":"BI381+BI382","v":0},{"$f":"SQRT((BJ381^2)+(BJ382^2))","v":161.22034611053283},{"$f":"BK381+BK382","v":0},{"$f":"SQRT((BL381^2)+(BL382^2))","v":161.22034611053283},{"$f":"BM381+BM382","v":0},{"$f":"SQRT((BN381^2)+(BN382^2))","v":161.22034611053283},{"$f":"BO381+BO382","v":0},{"$f":"SQRT((BP381^2)+(BP382^2))","v":161.22034611053283},{"$f":"BQ381+BQ382","v":0},{"$f":"SQRT((BR381^2)+(BR382^2))","v":161.22034611053283},{"$f":"BS381+BS382","v":0},{"$f":"SQRT((BT381^2)+(BT382^2))","v":161.22034611053283},{"$f":"BU381+BU382","v":0},{"$f":"SQRT((BV381^2)+(BV382^2))","v":161.22034611053283},{"$f":"BW381+BW382","v":0},{"$f":"SQRT((BX381^2)+(BX382^2))","v":161.22034611053283},{"$f":"BY381+BY382","v":0},{"$f":"SQRT((BZ381^2)+(BZ382^2))","v":161.22034611053283},{"$f":"CA381+CA382","v":0},{"$f":"SQRT((CB381^2)+(CB382^2))","v":161.22034611053283},{"$f":"CC381+CC382","v":0},{"$f":"SQRT((CD381^2)+(CD382^2))","v":161.22034611053283},{"$f":"CE381+CE382","v":0},{"$f":"SQRT((CF381^2)+(CF382^2))","v":161.22034611053283},{"$f":"CG381+CG382","v":0},{"$f":"SQRT((CH381^2)+(CH382^2))","v":161.22034611053283},{"$f":"CI381+CI382","v":0},{"$f":"SQRT((CJ381^2)+(CJ382^2))","v":161.22034611053283}]
[null,"Less Than 35% of HH Income",{"$f":"C381+C380+C379+C378","v":0},{"$f":"SQRT((D381^2)+(D380^2)+(D379^2)+(D378^2))","v":228},{"$f":"E381+E380+E379+E378","v":0},{"$f":"SQRT((F381^2)+(F380^2)+(F379^2)+(F378^2))","v":228},{"$f":"G381+G380+G379+G378","v":0},{"$f":"SQRT((H381^2)+(H380^2)+(H379^2)+(H378^2))","v":228},{"$f":"I381+I380+I379+I378","v":0},{"$f":"SQRT((J381^2)+(J380^2)+(J379^2)+(J378^2))","v":228},{"$f":"K381+K380+K379+K378","v":0},{"$f":"SQRT((L381^2)+(L380^2)+(L379^2)+(L378^2))","v":228},{"$f":"M381+M380+M379+M378","v":0},{"$f":"SQRT((N381^2)+(N380^2)+(N379^2)+(N378^2))","v":228},{"$f":"O381+O380+O379+O378","v":0},{"$f":"SQRT((P381^2)+(P380^2)+(P379^2)+(P378^2))","v":228},{"$f":"Q381+Q380+Q379+Q378","v":0},{"$f":"SQRT((R381^2)+(R380^2)+(R379^2)+(R378^2))","v":228},{"$f":"S381+S380+S379+S378","v":0},{"$f":"SQRT((T381^2)+(T380^2)+(T379^2)+(T378^2))","v":228},{"$f":"U381+U380+U379+U378","v":0},{"$f":"SQRT((V381^2)+(V380^2)+(V379^2)+(V378^2))","v":228},{"$f":"W381+W380+W379+W378","v":0},{"$f":"SQRT((X381^2)+(X380^2)+(X379^2)+(X378^2))","v":228},{"$f":"Y381+Y380+Y379+Y378","v":0},{"$f":"SQRT((Z381^2)+(Z380^2)+(Z379^2)+(Z378^2))","v":228},{"$f":"AA381+AA380+AA379+AA378","v":0},{"$f":"SQRT((AB381^2)+(AB380^2)+(AB379^2)+(AB378^2))","v":228},{"$f":"AC381+AC380+AC379+AC378","v":0},{"$f":"SQRT((AD381^2)+(AD380^2)+(AD379^2)+(AD378^2))","v":228},{"$f":"AE381+AE380+AE379+AE378","v":0},{"$f":"SQRT((AF381^2)+(AF380^2)+(AF379^2)+(AF378^2))","v":228},{"$f":"AG381+AG380+AG379+AG378","v":0},{"$f":"SQRT((AH381^2)+(AH380^2)+(AH379^2)+(AH378^2))","v":228},{"$f":"AI381+AI380+AI379+AI378","v":0},{"$f":"SQRT((AJ381^2)+(AJ380^2)+(AJ379^2)+(AJ378^2))","v":228},{"$f":"AK381+AK380+AK379+AK378","v":0},{"$f":"SQRT((AL381^2)+(AL380^2)+(AL379^2)+(AL378^2))","v":228},{"$f":"AM381+AM380+AM379+AM378","v":0},{"$f":"SQRT((AN381^2)+(AN380^2)+(AN379^2)+(AN378^2))","v":228},{"$f":"AO381+AO380+AO379+AO378","v":0},{"$f":"SQRT((AP381^2)+(AP380^2)+(AP379^2)+(AP378^2))","v":228},{"$f":"AQ381+AQ380+AQ379+AQ378","v":0},{"$f":"SQRT((AR381^2)+(AR380^2)+(AR379^2)+(AR378^2))","v":228},{"$f":"AS381+AS380+AS379+AS378","v":0},{"$f":"SQRT((AT381^2)+(AT380^2)+(AT379^2)+(AT378^2))","v":228},{"$f":"AU381+AU380+AU379+AU378","v":0},{"$f":"SQRT((AV381^2)+(AV380^2)+(AV379^2)+(AV378^2))","v":228},{"$f":"AW381+AW380+AW379+AW378","v":0},{"$f":"SQRT((AX381^2)+(AX380^2)+(AX379^2)+(AX378^2))","v":228},{"$f":"AY381+AY380+AY379+AY378","v":0},{"$f":"SQRT((AZ381^2)+(AZ380^2)+(AZ379^2)+(AZ378^2))","v":228},{"$f":"BA381+BA380+BA379+BA378","v":0},{"$f":"SQRT((BB381^2)+(BB380^2)+(BB379^2)+(BB378^2))","v":228},{"$f":"BC381+BC380+BC379+BC378","v":0},{"$f":"SQRT((BD381^2)+(BD380^2)+(BD379^2)+(BD378^2))","v":228},{"$f":"BE381+BE380+BE379+BE378","v":0},{"$f":"SQRT((BF381^2)+(BF380^2)+(BF379^2)+(BF378^2))","v":228},{"$f":"BG381+BG380+BG379+BG378","v":0},{"$f":"SQRT((BH381^2)+(BH380^2)+(BH379^2)+(BH378^2))","v":228},{"$f":"BI381+BI380+BI379+BI378","v":0},{"$f":"SQRT((BJ381^2)+(BJ380^2)+(BJ379^2)+(BJ378^2))","v":228},{"$f":"BK381+BK380+BK379+BK378","v":0},{"$f":"SQRT((BL381^2)+(BL380^2)+(BL379^2)+(BL378^2))","v":228},{"$f":"BM381+BM380+BM379+BM378","v":0},{"$f":"SQRT((BN381^2)+(BN380^2)+(BN379^2)+(BN378^2))","v":228},{"$f":"BO381+BO380+BO379+BO378","v":0},{"$f":"SQRT((BP381^2)+(BP380^2)+(BP379^2)+(BP378^2))","v":228},{"$f":"BQ381+BQ380+BQ379+BQ378","v":0},{"$f":"SQRT((BR381^2)+(BR380^2)+(BR379^2)+(BR378^2))","v":228},{"$f":"BS381+BS380+BS379+BS378","v":0},{"$f":"SQRT((BT381^2)+(BT380^2)+(BT379^2)+(BT378^2))","v":228},{"$f":"BU381+BU380+BU379+BU378","v":0},{"$f":"SQRT((BV381^2)+(BV380^2)+(BV379^2)+(BV378^2))","v":228},{"$f":"BW381+BW380+BW379+BW378","v":0},{"$f":"SQRT((BX381^2)+(BX380^2)+(BX379^2)+(BX378^2))","v":228},{"$f":"BY381+BY380+BY379+BY378","v":0},{"$f":"SQRT((BZ381^2)+(BZ380^2)+(BZ379^2)+(BZ378^2))","v":228},{"$f":"CA381+CA380+CA379+CA378","v":0},{"$f":"SQRT((CB381^2)+(CB380^2)+(CB379^2)+(CB378^2))","v":228},{"$f":"CC381+CC380+CC379+CC378","v":0},{"$f":"SQRT((CD381^2)+(CD380^2)+(CD379^2)+(CD378^2))","v":228},{"$f":"CE381+CE380+CE379+CE378","v":0},{"$f":"SQRT((CF381^2)+(CF380^2)+(CF379^2)+(CF378^2))","v":228},{"$f":"CG381+CG380+CG379+CG378","v":0},{"$f":"SQRT((CH381^2)+(CH380^2)+(CH379^2)+(CH378^2))","v":228},{"$f":"CI381+CI380+CI379+CI378","v":0},{"$f":"SQRT((CJ381^2)+(CJ380^2)+(CJ379^2)+(CJ378^2))","v":228}]
[null,"35.0 percent or more",{"$f":"C382","v":0},{"$f":"D382","v":114},0,114,0,114,0,114,0,114,0,114,0,114,0,114,0,114,0,114,0,114,0,114,0,114,0,114,0,114,0,114,0,114,0,114,0,114,0,114,0,114,0,114,0,114,14,23,0,114,0,114,0,114,0,114,5,8,0,114,0,114,0,114,0,{"$f":"BP382","v":114},0,114,0,114,0,114,0,114,0,114,0,114,0,114,0,114,0,114,0,114]
[null,"Not Computed",{"$f":"C383","v":0},114,0,114,0,114,24,26,0,114,0,114,0,114,0,114,6,10,0,114,0,114,0,114,4,5,0,114,0,114,0,114,0,114,0,114,19,21,0,114,0,114,0,114,0,114,15,25,0,114,0,114,0,114,0,114,5,9,0,114,0,114,0,114,0,114,0,114,0,114,0,114,0,114,0,114,0,114,0,114,0,114,0,114,0,114]
[null,"$100,000 or more:",0,114,0,114,0,114,13,19,0,114,0,114,0,114,0,114,6,10,0,114,0,114,0,114,4,5,0,114,0,114,0,114,0,114,0,114,19,21,0,114,0,114,0,114,0,114,15,25,0,114,0,114,0,114,0,114,0,114,0,114,0,114,0,114,0,114,0,114,0,114,0,114,0,114,0,114,0,114,0,114,0,114,0,114,0,114]
[null,"Less than 30.0 percent",{"$f":"C385+C386+C387","v":0},{"$f":"SQRT((D385^2)+(D386^2)+(D387^2))","v":197.45379206285202},{"$f":"E385+E386+E387","v":0},{"$f":"SQRT((F385^2)+(F386^2)+(F387^2))","v":197.45379206285202},{"$f":"G385+G386+G387","v":0},{"$f":"SQRT((H385^2)+(H386^2)+(H387^2))","v":197.45379206285202},{"$f":"I385+I386+I387","v":0},{"$f":"SQRT((J385^2)+(J386^2)+(J387^2))","v":197.45379206285202},{"$f":"K385+K386+K387","v":0},{"$f":"SQRT((L385^2)+(L386^2)+(L387^2))","v":197.45379206285202},{"$f":"M385+M386+M387","v":0},{"$f":"SQRT((N385^2)+(N386^2)+(N387^2))","v":197.45379206285202},{"$f":"O385+O386+O387","v":0},{"$f":"SQRT((P385^2)+(P386^2)+(P387^2))","v":197.45379206285202},{"$f":"Q385+Q386+Q387","v":0},{"$f":"SQRT((R385^2)+(R386^2)+(R387^2))","v":197.45379206285202},{"$f":"S385+S386+S387","v":0},{"$f":"SQRT((T385^2)+(T386^2)+(T387^2))","v":197.45379206285202},{"$f":"U385+U386+U387","v":0},{"$f":"SQRT((V385^2)+(V386^2)+(V387^2))","v":197.45379206285202},{"$f":"W385+W386+W387","v":0},{"$f":"SQRT((X385^2)+(X386^2)+(X387^2))","v":197.45379206285202},{"$f":"Y385+Y386+Y387","v":0},{"$f":"SQRT((Z385^2)+(Z386^2)+(Z387^2))","v":197.45379206285202},{"$f":"AA385+AA386+AA387","v":0},{"$f":"SQRT((AB385^2)+(AB386^2)+(AB387^2))","v":197.45379206285202},{"$f":"AC385+AC386+AC387","v":0},{"$f":"SQRT((AD385^2)+(AD386^2)+(AD387^2))","v":197.45379206285202},{"$f":"AE385+AE386+AE387","v":0},{"$f":"SQRT((AF385^2)+(AF386^2)+(AF387^2))","v":197.45379206285202},{"$f":"AG385+AG386+AG387","v":0},{"$f":"SQRT((AH385^2)+(AH386^2)+(AH387^2))","v":197.45379206285202},{"$f":"AI385+AI386+AI387","v":0},{"$f":"SQRT((AJ385^2)+(AJ386^2)+(AJ387^2))","v":197.45379206285202},{"$f":"AK385+AK386+AK387","v":0},{"$f":"SQRT((AL385^2)+(AL386^2)+(AL387^2))","v":197.45379206285202},{"$f":"AM385+AM386+AM387","v":0},{"$f":"SQRT((AN385^2)+(AN386^2)+(AN387^2))","v":197.45379206285202},{"$f":"AO385+AO386+AO387","v":0},{"$f":"SQRT((AP385^2)+(AP386^2)+(AP387^2))","v":197.45379206285202},{"$f":"AQ385+AQ386+AQ387","v":0},{"$f":"SQRT((AR385^2)+(AR386^2)+(AR387^2))","v":197.45379206285202},{"$f":"AS385+AS386+AS387","v":0},{"$f":"SQRT((AT385^2)+(AT386^2)+(AT387^2))","v":197.45379206285202},{"$f":"AU385+AU386+AU387","v":0},{"$f":"SQRT((AV385^2)+(AV386^2)+(AV387^2))","v":197.45379206285202},{"$f":"AW385+AW386+AW387","v":0},{"$f":"SQRT((AX385^2)+(AX386^2)+(AX387^2))","v":197.45379206285202},{"$f":"AY385+AY386+AY387","v":0},{"$f":"SQRT((AZ385^2)+(AZ386^2)+(AZ387^2))","v":197.45379206285202},{"$f":"BA385+BA386+BA387","v":0},{"$f":"SQRT((BB385^2)+(BB386^2)+(BB387^2))","v":197.45379206285202},{"$f":"BC385+BC386+BC387","v":0},{"$f":"SQRT((BD385^2)+(BD386^2)+(BD387^2))","v":197.45379206285202},{"$f":"BE385+BE386+BE387","v":0},{"$f":"SQRT((BF385^2)+(BF386^2)+(BF387^2))","v":197.45379206285202},{"$f":"BG385+BG386+BG387","v":0},{"$f":"SQRT((BH385^2)+(BH386^2)+(BH387^2))","v":197.45379206285202},{"$f":"BI385+BI386+BI387","v":0},{"$f":"SQRT((BJ385^2)+(BJ386^2)+(BJ387^2))","v":197.45379206285202},{"$f":"BK385+BK386+BK387","v":0},{"$f":"SQRT((BL385^2)+(BL386^2)+(BL387^2))","v":197.45379206285202},{"$f":"BM385+BM386+BM387","v":0},{"$f":"SQRT((BN385^2)+(BN386^2)+(BN387^2))","v":197.45379206285202},{"$f":"BO385+BO386+BO387","v":0},{"$f":"SQRT((BP385^2)+(BP386^2)+(BP387^2))","v":197.45379206285202},{"$f":"BQ385+BQ386+BQ387","v":0},{"$f":"SQRT((BR385^2)+(BR386^2)+(BR387^2))","v":197.45379206285202},{"$f":"BS385+BS386+BS387","v":0},{"$f":"SQRT((BT385^2)+(BT386^2)+(BT387^2))","v":197.45379206285202},{"$f":"BU385+BU386+BU387","v":0},{"$f":"SQRT((BV385^2)+(BV386^2)+(BV387^2))","v":197.45379206285202},{"$f":"BW385+BW386+BW387","v":0},{"$f":"SQRT((BX385^2)+(BX386^2)+(BX387^2))","v":197.45379206285202},{"$f":"BY385+BY386+BY387","v":0},{"$f":"SQRT((BZ385^2)+(BZ386^2)+(BZ387^2))","v":197.45379206285202},{"$f":"CA385+CA386+CA387","v":0},{"$f":"SQRT((CB385^2)+(CB386^2)+(CB387^2))","v":197.45379206285202},{"$f":"CC385+CC386+CC387","v":0},{"$f":"SQRT((CD385^2)+(CD386^2)+(CD387^2))","v":197.45379206285202},{"$f":"CE385+CE386+CE387","v":0},{"$f":"SQRT((CF385^2)+(CF386^2)+(CF387^2))","v":197.45379206285202},{"$f":"CG385+CG386+CG387","v":0},{"$f":"SQRT((CH385^2)+(CH386^2)+(CH387^2))","v":197.45379206285202},{"$f":"CI385+CI386+CI387","v":0},{"$f":"SQRT((CJ385^2)+(CJ386^2)+(CJ387^2))","v":197.45379206285202}]
[null,"More than 30.0 percent",{"$f":"C388+C389","v":0},{"$f":"SQRT((D388^2)+(D389^2))","v":161.22034611053283},{"$f":"E388+E389","v":0},{"$f":"SQRT((F388^2)+(F389^2))","v":161.22034611053283},{"$f":"G388+G389","v":0},{"$f":"SQRT((H388^2)+(H389^2))","v":161.22034611053283},{"$f":"I388+I389","v":11},{"$f":"SQRT((J388^2)+(J389^2))","v":115.26057435220423},{"$f":"K388+K389","v":0},{"$f":"SQRT((L388^2)+(L389^2))","v":161.22034611053283},{"$f":"M388+M389","v":0},{"$f":"SQRT((N388^2)+(N389^2))","v":161.22034611053283},{"$f":"O388+O389","v":0},{"$f":"SQRT((P388^2)+(P389^2))","v":161.22034611053283},{"$f":"Q388+Q389","v":0},{"$f":"SQRT((R388^2)+(R389^2))","v":161.22034611053283},{"$f":"S388+S389","v":0},{"$f":"SQRT((T388^2)+(T389^2))","v":161.22034611053283},{"$f":"U388+U389","v":0},{"$f":"SQRT((V388^2)+(V389^2))","v":161.22034611053283},{"$f":"W388+W389","v":0},{"$f":"SQRT((X388^2)+(X389^2))","v":161.22034611053283},{"$f":"Y388+Y389","v":0},{"$f":"SQRT((Z388^2)+(Z389^2))","v":161.22034611053283},{"$f":"AA388+AA389","v":0},{"$f":"SQRT((AB388^2)+(AB389^2))","v":161.22034611053283},{"$f":"AC388+AC389","v":0},{"$f":"SQRT((AD388^2)+(AD389^2))","v":161.22034611053283},{"$f":"AE388+AE389","v":0},{"$f":"SQRT((AF388^2)+(AF389^2))","v":161.22034611053283},{"$f":"AG388+AG389","v":0},{"$f":"SQRT((AH388^2)+(AH389^2))","v":161.22034611053283},{"$f":"AI388+AI389","v":0},{"$f":"SQRT((AJ388^2)+(AJ389^2))","v":161.22034611053283},{"$f":"AK388+AK389","v":0},{"$f":"SQRT((AL388^2)+(AL389^2))","v":161.22034611053283},{"$f":"AM388+AM389","v":0},{"$f":"SQRT((AN388^2)+(AN389^2))","v":161.22034611053283},{"$f":"AO388+AO389","v":0},{"$f":"SQRT((AP388^2)+(AP389^2))","v":161.22034611053283},{"$f":"AQ388+AQ389","v":0},{"$f":"SQRT((AR388^2)+(AR389^2))","v":161.22034611053283},{"$f":"AS388+AS389","v":0},{"$f":"SQRT((AT388^2)+(AT389^2))","v":161.22034611053283},{"$f":"AU388+AU389","v":0},{"$f":"SQRT((AV388^2)+(AV389^2))","v":161.22034611053283},{"$f":"AW388+AW389","v":0},{"$f":"SQRT((AX388^2)+(AX389^2))","v":161.22034611053283},{"$f":"AY388+AY389","v":0},{"$f":"SQRT((AZ388^2)+(AZ389^2))","v":161.22034611053283},{"$f":"BA388+BA389","v":0},{"$f":"SQRT((BB388^2)+(BB389^2))","v":161.22034611053283},{"$f":"BC388+BC389","v":0},{"$f":"SQRT((BD388^2)+(BD389^2))","v":161.22034611053283},{"$f":"BE388+BE389","v":0},{"$f":"SQRT((BF388^2)+(BF389^2))","v":161.22034611053283},{"$f":"BG388+BG389","v":5},{"$f":"SQRT((BH388^2)+(BH389^2))","v":114.35471131527551},{"$f":"BI388+BI389","v":0},{"$f":"SQRT((BJ388^2)+(BJ389^2))","v":161.22034611053283},{"$f":"BK388+BK389","v":0},{"$f":"SQRT((BL388^2)+(BL389^2))","v":161.22034611053283},{"$f":"BM388+BM389","v":0},{"$f":"SQRT((BN388^2)+(BN389^2))","v":161.22034611053283},{"$f":"BO388+BO389","v":0},{"$f":"SQRT((BP388^2)+(BP389^2))","v":161.22034611053283},{"$f":"BQ388+BQ389","v":0},{"$f":"SQRT((BR388^2)+(BR389^2))","v":161.22034611053283},{"$f":"BS388+BS389","v":0},{"$f":"SQRT((BT388^2)+(BT389^2))","v":161.22034611053283},{"$f":"BU388+BU389","v":0},{"$f":"SQRT((BV388^2)+(BV389^2))","v":161.22034611053283},{"$f":"BW388+BW389","v":0},{"$f":"SQRT((BX388^2)+(BX389^2))","v":161.22034611053283},{"$f":"BY388+BY389","v":0},{"$f":"SQRT((BZ388^2)+(BZ389^2))","v":161.22034611053283},{"$f":"CA388+CA389","v":0},{"$f":"SQRT((CB388^2)+(CB389^2))","v":161.22034611053283},{"$f":"CC388+CC389","v":0},{"$f":"SQRT((CD388^2)+(CD389^2))","v":161.22034611053283},{"$f":"CE388+CE389","v":0},{"$f":"SQRT((CF388^2)+(CF389^2))","v":161.22034611053283},{"$f":"CG388+CG389","v":0},{"$f":"SQRT((CH388^2)+(CH389^2))","v":161.22034611053283},{"$f":"CI388+CI389","v":0},{"$f":"SQRT((CJ388^2)+(CJ389^2))","v":161.22034611053283}]
[null,"Less Than 35% of HH Income",{"$f":"C385+C386+C387+C388","v":0},{"$f":"SQRT((D385^2)+(D386^2)+(D387^2)+(D388^2))","v":228},{"$f":"E385+E386+E387+E388","v":0},{"$f":"SQRT((F385^2)+(F386^2)+(F387^2)+(F388^2))","v":228},{"$f":"G385+G386+G387+G388","v":0},{"$f":"SQRT((H385^2)+(H386^2)+(H387^2)+(H388^2))","v":228},{"$f":"I385+I386+I387+I388","v":0},{"$f":"SQRT((J385^2)+(J386^2)+(J387^2)+(J388^2))","v":228},{"$f":"K385+K386+K387+K388","v":0},{"$f":"SQRT((L385^2)+(L386^2)+(L387^2)+(L388^2))","v":228},{"$f":"M385+M386+M387+M388","v":0},{"$f":"SQRT((N385^2)+(N386^2)+(N387^2)+(N388^2))","v":228},{"$f":"O385+O386+O387+O388","v":0},{"$f":"SQRT((P385^2)+(P386^2)+(P387^2)+(P388^2))","v":228},{"$f":"Q385+Q386+Q387+Q388","v":0},{"$f":"SQRT((R385^2)+(R386^2)+(R387^2)+(R388^2))","v":228},{"$f":"S385+S386+S387+S388","v":0},{"$f":"SQRT((T385^2)+(T386^2)+(T387^2)+(T388^2))","v":228},{"$f":"U385+U386+U387+U388","v":0},{"$f":"SQRT((V385^2)+(V386^2)+(V387^2)+(V388^2))","v":228},{"$f":"W385+W386+W387+W388","v":0},{"$f":"SQRT((X385^2)+(X386^2)+(X387^2)+(X388^2))","v":228},{"$f":"Y385+Y386+Y387+Y388","v":0},{"$f":"SQRT((Z385^2)+(Z386^2)+(Z387^2)+(Z388^2))","v":228},{"$f":"AA385+AA386+AA387+AA388","v":0},{"$f":"SQRT((AB385^2)+(AB386^2)+(AB387^2)+(AB388^2))","v":228},{"$f":"AC385+AC386+AC387+AC388","v":0},{"$f":"SQRT((AD385^2)+(AD386^2)+(AD387^2)+(AD388^2))","v":228},{"$f":"AE385+AE386+AE387+AE388","v":0},{"$f":"SQRT((AF385^2)+(AF386^2)+(AF387^2)+(AF388^2))","v":228},{"$f":"AG385+AG386+AG387+AG388","v":0},{"$f":"SQRT((AH385^2)+(AH386^2)+(AH387^2)+(AH388^2))","v":228},{"$f":"AI385+AI386+AI387+AI388","v":0},{"$f":"SQRT((AJ385^2)+(AJ386^2)+(AJ387^2)+(AJ388^2))","v":228},{"$f":"AK385+AK386+AK387+AK388","v":0},{"$f":"SQRT((AL385^2)+(AL386^2)+(AL387^2)+(AL388^2))","v":228},{"$f":"AM385+AM386+AM387+AM388","v":0},{"$f":"SQRT((AN385^2)+(AN386^2)+(AN387^2)+(AN388^2))","v":228},{"$f":"AO385+AO386+AO387+AO388","v":0},{"$f":"SQRT((AP385^2)+(AP386^2)+(AP387^2)+(AP388^2))","v":228},{"$f":"AQ385+AQ386+AQ387+AQ388","v":0},{"$f":"SQRT((AR385^2)+(AR386^2)+(AR387^2)+(AR388^2))","v":228},{"$f":"AS385+AS386+AS387+AS388","v":0},{"$f":"SQRT((AT385^2)+(AT386^2)+(AT387^2)+(AT388^2))","v":228},{"$f":"AU385+AU386+AU387+AU388","v":0},{"$f":"SQRT((AV385^2)+(AV386^2)+(AV387^2)+(AV388^2))","v":228},{"$f":"AW385+AW386+AW387+AW388","v":0},{"$f":"SQRT((AX385^2)+(AX386^2)+(AX387^2)+(AX388^2))","v":228},{"$f":"AY385+AY386+AY387+AY388","v":0},{"$f":"SQRT((AZ385^2)+(AZ386^2)+(AZ387^2)+(AZ388^2))","v":228},{"$f":"BA385+BA386+BA387+BA388","v":0},{"$f":"SQRT((BB385^2)+(BB386^2)+(BB387^2)+(BB388^2))","v":228},{"$f":"BC385+BC386+BC387+BC388","v":0},{"$f":"SQRT((BD385^2)+(BD386^2)+(BD387^2)+(BD388^2))","v":228},{"$f":"BE385+BE386+BE387+BE388","v":0},{"$f":"SQRT((BF385^2)+(BF386^2)+(BF387^2)+(BF388^2))","v":228},{"$f":"BG385+BG386+BG387+BG388","v":5},{"$f":"SQRT((BH385^2)+(BH386^2)+(BH387^2)+(BH388^2))","v":197.6587969203496},{"$f":"BI385+BI386+BI387+BI388","v":0},{"$f":"SQRT((BJ385^2)+(BJ386^2)+(BJ387^2)+(BJ388^2))","v":228},{"$f":"BK385+BK386+BK387+BK388","v":0},{"$f":"SQRT((BL385^2)+(BL386^2)+(BL387^2)+(BL388^2))","v":228},{"$f":"BM385+BM386+BM387+BM388","v":0},{"$f":"SQRT((BN385^2)+(BN386^2)+(BN387^2)+(BN388^2))","v":228},{"$f":"BO385+BO386+BO387+BO388","v":0},{"$f":"SQRT((BP385^2)+(BP386^2)+(BP387^2)+(BP388^2))","v":228},{"$f":"BQ385+BQ386+BQ387+BQ388","v":0},{"$f":"SQRT((BR385^2)+(BR386^2)+(BR387^2)+(BR388^2))","v":228},{"$f":"BS385+BS386+BS387+BS388","v":0},{"$f":"SQRT((BT385^2)+(BT386^2)+(BT387^2)+(BT388^2))","v":228},{"$f":"BU385+BU386+BU387+BU388","v":0},{"$f":"SQRT((BV385^2)+(BV386^2)+(BV387^2)+(BV388^2))","v":228},{"$f":"BW385+BW386+BW387+BW388","v":0},{"$f":"SQRT((BX385^2)+(BX386^2)+(BX387^2)+(BX388^2))","v":228},{"$f":"BY385+BY386+BY387+BY388","v":0},{"$f":"SQRT((BZ385^2)+(BZ386^2)+(BZ387^2)+(BZ388^2))","v":228},{"$f":"CA385+CA386+CA387+CA388","v":0},{"$f":"SQRT((CB385^2)+(CB386^2)+(CB387^2)+(CB388^2))","v":228},{"$f":"CC385+CC386+CC387+CC388","v":0},{"$f":"SQRT((CD385^2)+(CD386^2)+(CD387^2)+(CD388^2))","v":228},{"$f":"CE385+CE386+CE387+CE388","v":0},{"$f":"SQRT((CF385^2)+(CF386^2)+(CF387^2)+(CF388^2))","v":228},{"$f":"CG385+CG386+CG387+CG388","v":0},{"$f":"SQRT((CH385^2)+(CH386^2)+(CH387^2)+(CH388^2))","v":228},{"$f":"CI385+CI386+CI387+CI388","v":0},{"$f":"SQRT((CJ385^2)+(CJ386^2)+(CJ387^2)+(CJ388^2))","v":228}]
[null,"35.0 percent or more",{"$f":"C389","v":0},{"$f":"D389","v":114},{"$f":"E389","v":0},114,0,114,11,17,0,114,0,114,0,114,0,114,0,114,0,114,0,114,0,114,0,114,0,114,0,114,0,114,0,114,0,114,0,114,0,114,0,114,0,114,0,114,0,114,0,114,0,114,0,114,0,114,0,114,0,114,0,114,0,114,0,114,{"$f":"BQ389","v":0},114,0,114,0,114,0,114,0,114,0,114,0,114,0,114,0,114,0,114]
[null,"Not Computed",{"$f":"C390","v":0},{"$f":"D390","v":0},0,0,0,0,0,0,0,0,0,0,0,0,0,0,0,0,0,0,0,0,0,0,0,0,0,0,0,0,0,0,0,0,0,0,0,0,0,0,0,0,0,0,0,0,0,0,0,0,0,0,0,0,0,0,0,0,0,0,0,0,0,0,0,0,0,0,0,0,0,0,0,0,0,0,0,0,0,0,0,0,0,0,0,0]
[]
[]
[null,"Calculated GROSS RENT AS A PERCENTAGE OF HOUSEHOLD INCOME IN THE PAST 12 MONTHS"]
[null,"Universe:  RENTEROCCUPIED HOUSING UNITS"]
[null,"Data Set: 2005-2009 American Community Survey 5-Year Estimates"]
[]
[null,null,"Atkinson and Gilmanton Grant",null,"Bean's Grant",null,"Bean's Purchase",null,"Berlin",null,"Cambridge",null,"Carroll",null,"Chandler's Purchase",null,"Clarksville",null,"Colebrook",null,"Columbia",null,"Crawford's Purchase",null,"Cutt's Grant",null,"Dalton",null,"Dix's Grant",null,"Dixville Township",null,"Dummer",null,"Errol",null,"Erving's Location",null,"Gorham",null,"Greens Grant",null,"Hadley's Purchase",null,"Jefferson",null,"Kilkenny Township",null,"Lancaster",null,"Low and Burbank's Grant",null,"Martin's Location",null,"Milan",null,"Millsfield Township",null,"Northumberland",null,"Odell Township",null,"Pinkham's Grant",null,"Pittsburg",null,"Randolph",null,"Sargent's Purchase",null,"Second College Grant",null,"Shelburne",null,"Stark",null,"Stewartstown",null,"Stratford",null,"Success Township",null,"Thompson and Meserves Purchase",null,"Wentworth's Location",null,"Whitefield"]
[null,null,"Estimate","Margin Of Error","Estimate","Margin Of Error","Estimate","Margin Of Error","Estimate","Margin Of Error","Estimate","Margin Of Error","Estimate","Margin Of Error","Estimate","Margin Of Error","Estimate","Margin Of Error","Estimate","Margin Of Error","Estimate","Margin Of Error","Estimate","Margin Of Error","Estimate","Margin Of Error","Estimate","Margin Of Error","Estimate","Margin Of Error","Estimate","Margin Of Error","Estimate","Margin Of Error","Estimate","Margin Of Error","Estimate","Margin Of Error","Estimate","Margin Of Error","Estimate","Margin Of Error","Estimate","Margin Of Error","Estimate","Margin Of Error","Estimate","Margin Of Error","Estimate","Margin Of Error","Estimate","Margin Of Error","Estimate","Margin Of Error","Estimate","Margin Of Error","Estimate","Margin Of Error","Estimate","Margin Of Error","Estimate","Margin Of Error","Estimate","Margin Of Error","Estimate","Margin Of Error","Estimate","Margin Of Error","Estimate","Margin Of Error","Estimate","Margin Of Error","Estimate","Margin Of Error","Estimate","Margin Of Error","Estimate","Margin Of Error","Estimate","Margin Of Error","Estimate","Margin Of Error","Estimate","Margin Of Error","Estimate","Margin Of Error","Estimate","Margin Of Error"]
[null,{"$f":"B408","v":"Total:"},0,114,0,114,0,114,347,126,0,114,0,114,0,114,0,114,103,60,0,114,0,114,0,114,15,16,0,114,0,114,0,114,0,114,0,114,25,23,0,114,0,114,0,114,0,114,50,43,0,114,0,114,3,4,0,114,45,40,0,114,0,114,8,{"$f":"BN408","v":9},0,114,0,114,0,114,3,5,4,7,17,17,32,29,0,114,0,114,0,114,80,41]
[null,"Less than 30.0 percent",{"$f":"C446+C440+C434+C428+C422+C416+C410","v":0},{"$f":"SQRT((D446^2)+(D440^2)+(D434^2)+(D428^2)+(D422^2)+(D416^2)+(D410^2))","v":522.4136292249658},{"$f":"E446+E440+E434+E428+E422+E416+E410","v":0},{"$f":"SQRT((F446^2)+(F440^2)+(F434^2)+(F428^2)+(F422^2)+(F416^2)+(F410^2))","v":522.4136292249658},{"$f":"G446+G440+G434+G428+G422+G416+G410","v":0},{"$f":"SQRT((H446^2)+(H440^2)+(H434^2)+(H428^2)+(H422^2)+(H416^2)+(H410^2))","v":522.4136292249658},{"$f":"I446+I440+I434+I428+I422+I416+I410","v":438},{"$f":"SQRT((J446^2)+(J440^2)+(J434^2)+(J428^2)+(J422^2)+(J416^2)+(J410^2))","v":398.41435717102365},{"$f":"K446+K440+K434+K428+K422+K416+K410","v":0},{"$f":"SQRT((L446^2)+(L440^2)+(L434^2)+(L428^2)+(L422^2)+(L416^2)+(L410^2))","v":522.4136292249658},{"$f":"M446+M440+M434+M428+M422+M416+M410","v":26},{"$f":"SQRT((N446^2)+(N440^2)+(N434^2)+(N428^2)+(N422^2)+(N416^2)+(N410^2))","v":484.1879800242877},{"$f":"O446+O440+O434+O428+O422+O416+O410","v":0},{"$f":"SQRT((P446^2)+(P440^2)+(P434^2)+(P428^2)+(P422^2)+(P416^2)+(P410^2))","v":522.4136292249658},{"$f":"Q446+Q440+Q434+Q428+Q422+Q416+Q410","v":0},{"$f":"SQRT((R446^2)+(R440^2)+(R434^2)+(R428^2)+(R422^2)+(R416^2)+(R410^2))","v":522.4136292249658},{"$f":"S446+S440+S434+S428+S422+S416+S410","v":147},{"$f":"SQRT((T446^2)+(T440^2)+(T434^2)+(T428^2)+(T422^2)+(T416^2)+(T410^2))","v":416.16583233129558},{"$f":"U446+U440+U434+U428+U422+U416+U410","v":0},{"$f":"SQRT((V446^2)+(V440^2)+(V434^2)+(V428^2)+(V422^2)+(V416^2)+(V410^2))","v":522.4136292249658},{"$f":"W446+W440+W434+W428+W422+W416+W410","v":0},{"$f":"SQRT((X446^2)+(X440^2)+(X434^2)+(X428^2)+(X422^2)+(X416^2)+(X410^2))","v":522.4136292249658},{"$f":"Y446+Y440+Y434+Y428+Y422+Y416+Y410","v":0},{"$f":"SQRT((Z446^2)+(Z440^2)+(Z434^2)+(Z428^2)+(Z422^2)+(Z416^2)+(Z410^2))","v":522.4136292249658},{"$f":"AA446+AA440+AA434+AA428+AA422+AA416+AA410","v":22},{"$f":"SQRT((AB446^2)+(AB440^2)+(AB434^2)+(AB428^2)+(AB422^2)+(AB416^2)+(AB410^2))","v":484.15906477107296},{"$f":"AC446+AC440+AC434+AC428+AC422+AC416+AC410","v":0},{"$f":"SQRT((AD446^2)+(AD440^2)+(AD434^2)+(AD428^2)+(AD422^2)+(AD416^2)+(AD410^2))","v":522.4136292249658},{"$f":"AE446+AE440+AE434+AE428+AE422+AE416+AE410","v":0},{"$f":"SQRT((AF446^2)+(AF440^2)+(AF434^2)+(AF428^2)+(AF422^2)+(AF416^2)+(AF410^2))","v":522.4136292249658},{"$f":"AG446+AG440+AG434+AG428+AG422+AG416+AG410","v":0},{"$f":"SQRT((AH446^2)+(AH440^2)+(AH434^2)+(AH428^2)+(AH422^2)+(AH416^2)+(AH410^2))","v":522.4136292249658},{"$f":"AI446+AI440+AI434+AI428+AI422+AI416+AI410","v":7},{"$f":"SQRT((AJ446^2)+(AJ440^2)+(AJ434^2)+(AJ428^2)+(AJ422^2)+(AJ416^2)+(AJ410^2))","v":483.70342153017691},{"$f":"AK446+AK440+AK434+AK428+AK422+AK416+AK410","v":0},{"$f":"SQRT((AL446^2)+(AL440^2)+(AL434^2)+(AL428^2)+(AL422^2)+(AL416^2)+(AL410^2))","v":522.4136292249658},{"$f":"AM446+AM440+AM434+AM428+AM422+AM416+AM410","v":162},{"$f":"SQRT((AN446^2)+(AN440^2)+(AN434^2)+(AN428^2)+(AN422^2)+(AN416^2)+(AN410^2))","v":402.12187207362894},{"$f":"AO446+AO440+AO434+AO428+AO422+AO416+AO410","v":0},{"$f":"SQRT((AP446^2)+(AP440^2)+(AP434^2)+(AP428^2)+(AP422^2)+(AP416^2)+(AP410^2))","v":522.4136292249658},{"$f":"AQ446+AQ440+AQ434+AQ428+AQ422+AQ416+AQ410","v":0},{"$f":"SQRT((AR446^2)+(AR440^2)+(AR434^2)+(AR428^2)+(AR422^2)+(AR416^2)+(AR410^2))","v":522.4136292249658},{"$f":"AS446+AS440+AS434+AS428+AS422+AS416+AS410","v":24},{"$f":"SQRT((AT446^2)+(AT440^2)+(AT434^2)+(AT428^2)+(AT422^2)+(AT416^2)+(AT410^2))","v":470.36262606631493},{"$f":"AU446+AU440+AU434+AU428+AU422+AU416+AU410","v":0},{"$f":"SQRT((AV446^2)+(AV440^2)+(AV434^2)+(AV428^2)+(AV422^2)+(AV416^2)+(AV410^2))","v":522.4136292249658},{"$f":"AW446+AW440+AW434+AW428+AW422+AW416+AW410","v":146},{"$f":"SQRT((AX446^2)+(AX440^2)+(AX434^2)+(AX428^2)+(AX422^2)+(AX416^2)+(AX410^2))","v":420.27728941735597},{"$f":"AY446+AY440+AY434+AY428+AY422+AY416+AY410","v":0},{"$f":"SQRT((AZ446^2)+(AZ440^2)+(AZ434^2)+(AZ428^2)+(AZ422^2)+(AZ416^2)+(AZ410^2))","v":522.4136292249658},{"$f":"BA446+BA440+BA434+BA428+BA422+BA416+BA410","v":0},{"$f":"SQRT((BB446^2)+(BB440^2)+(BB434^2)+(BB428^2)+(BB422^2)+(BB416^2)+(BB410^2))","v":522.4136292249658},{"$f":"BC446+BC440+BC434+BC428+BC422+BC416+BC410","v":20},{"$f":"SQRT((BD446^2)+(BD440^2)+(BD434^2)+(BD428^2)+(BD422^2)+(BD416^2)+(BD410^2))","v":470.30947258161831},{"$f":"BE446+BE440+BE434+BE428+BE422+BE416+BE410","v":0},{"$f":"SQRT((BF446^2)+(BF440^2)+(BF434^2)+(BF428^2)+(BF422^2)+(BF416^2)+(BF410^2))","v":522.4136292249658},{"$f":"BG446+BG440+BG434+BG428+BG422+BG416+BG410","v":167},{"$f":"SQRT((BH446^2)+(BH440^2)+(BH434^2)+(BH428^2)+(BH422^2)+(BH416^2)+(BH410^2))","v":402.37917441140019},{"$f":"BI446+BI440+BI434+BI428+BI422+BI416+BI410","v":0},{"$f":"SQRT((BJ446^2)+(BJ440^2)+(BJ434^2)+(BJ428^2)+(BJ422^2)+(BJ416^2)+(BJ410^2))","v":522.4136292249658},{"$f":"BK446+BK440+BK434+BK428+BK422+BK416+BK410","v":0},{"$f":"SQRT((BL446^2)+(BL440^2)+(BL434^2)+(BL428^2)+(BL422^2)+(BL416^2)+(BL410^2))","v":522.4136292249658},{"$f":"BM446+BM440+BM434+BM428+BM422+BM416+BM410","v":15},{"$f":"SQRT((BN446^2)+(BN440^2)+(BN434^2)+(BN428^2)+(BN422^2)+(BN416^2)+(BN410^2))","v":470.14253157952004},{"$f":"BO446+BO440+BO434+BO428+BO422+BO416+BO410","v":7},{"$f":"SQRT((BP446^2)+(BP440^2)+(BP434^2)+(BP428^2)+(BP422^2)+(BP416^2)+(BP410^2))","v":509.92156259566042},{"$f":"BQ446+BQ440+BQ434+BQ428+BQ422+BQ416+BQ410","v":0},{"$f":"SQRT((BR446^2)+(BR440^2)+(BR434^2)+(BR428^2)+(BR422^2)+(BR416^2)+(BR410^2))","v":522.4136292249658},{"$f":"BS446+BS440+BS434+BS428+BS422+BS416+BS410","v":0},{"$f":"SQRT((BT446^2)+(BT440^2)+(BT434^2)+(BT428^2)+(BT422^2)+(BT416^2)+(BT410^2))","v":522.4136292249658},{"$f":"BU446+BU440+BU434+BU428+BU422+BU416+BU410","v":0},{"$f":"SQRT((BV446^2)+(BV440^2)+(BV434^2)+(BV428^2)+(BV422^2)+(BV416^2)+(BV410^2))","v":522.4136292249658},{"$f":"BW446+BW440+BW434+BW428+BW422+BW416+BW410","v":23},{"$f":"SQRT((BX446^2)+(BX440^2)+(BX434^2)+(BX428^2)+(BX422^2)+(BX416^2)+(BX410^2))","v":497.43743325166031},{"$f":"BY446+BY440+BY434+BY428+BY422+BY416+BY410","v":42},{"$f":"SQRT((BZ446^2)+(BZ440^2)+(BZ434^2)+(BZ428^2)+(BZ422^2)+(BZ416^2)+(BZ410^2))","v":456.84570699526114},{"$f":"CA446+CA440+CA434+CA428+CA422+CA416+CA410","v":62},{"$f":"SQRT((CB446^2)+(CB440^2)+(CB434^2)+(CB428^2)+(CB422^2)+(CB416^2)+(CB410^2))","v":427.95794185877656},{"$f":"CC446+CC440+CC434+CC428+CC422+CC416+CC410","v":0},{"$f":"SQRT((CD446^2)+(CD440^2)+(CD434^2)+(CD428^2)+(CD422^2)+(CD416^2)+(CD410^2))","v":522.4136292249658},{"$f":"CE446+CE440+CE434+CE428+CE422+CE416+CE410","v":0},{"$f":"SQRT((CF446^2)+(CF440^2)+(CF434^2)+(CF428^2)+(CF422^2)+(CF416^2)+(CF410^2))","v":522.4136292249658},{"$f":"CG446+CG440+CG434+CG428+CG422+CG416+CG410","v":0},{"$f":"SQRT((CH446^2)+(CH440^2)+(CH434^2)+(CH428^2)+(CH422^2)+(CH416^2)+(CH410^2))","v":522.4136292249658},{"$f":"CI446+CI440+CI434+CI428+CI422+CI416+CI410","v":145},{"$f":"SQRT((CJ446^2)+(CJ440^2)+(CJ434^2)+(CJ428^2)+(CJ422^2)+(CJ416^2)+(CJ410^2))","v":445.75890344445168}]
[null,"More than 30.0 percent",{"$f":"C447+C441+C435+C429+C423+C417+C411","v":0},{"$f":"SQRT((D447^2)+(D441^2)+(D435^2)+(D429^2)+(D423^2)+(D417^2)+(D411^2))","v":426.54894209222931},{"$f":"E447+E441+E435+E429+E423+E417+E411","v":0},{"$f":"SQRT((F447^2)+(F441^2)+(F435^2)+(F429^2)+(F423^2)+(F417^2)+(F411^2))","v":426.54894209222931},{"$f":"G447+G441+G435+G429+G423+G417+G411","v":0},{"$f":"SQRT((H447^2)+(H441^2)+(H435^2)+(H429^2)+(H423^2)+(H417^2)+(H411^2))","v":426.54894209222931},{"$f":"I447+I441+I435+I429+I423+I417+I411","v":709},{"$f":"SQRT((J447^2)+(J441^2)+(J435^2)+(J429^2)+(J423^2)+(J417^2)+(J411^2))","v":349.34510158294762},{"$f":"K447+K441+K435+K429+K423+K417+K411","v":0},{"$f":"SQRT((L447^2)+(L441^2)+(L435^2)+(L429^2)+(L423^2)+(L417^2)+(L411^2))","v":426.54894209222931},{"$f":"M447+M441+M435+M429+M423+M417+M411","v":0},{"$f":"SQRT((N447^2)+(N441^2)+(N435^2)+(N429^2)+(N423^2)+(N417^2)+(N411^2))","v":426.54894209222931},{"$f":"O447+O441+O435+O429+O423+O417+O411","v":0},{"$f":"SQRT((P447^2)+(P441^2)+(P435^2)+(P429^2)+(P423^2)+(P417^2)+(P411^2))","v":426.54894209222931},{"$f":"Q447+Q441+Q435+Q429+Q423+Q417+Q411","v":3},{"$f":"SQRT((R447^2)+(R441^2)+(R435^2)+(R429^2)+(R423^2)+(R417^2)+(R411^2))","v":411.05230810688801},{"$f":"S447+S441+S435+S429+S423+S417+S411","v":140},{"$f":"SQRT((T447^2)+(T441^2)+(T435^2)+(T429^2)+(T423^2)+(T417^2)+(T411^2))","v":367.57176170103168},{"$f":"U447+U441+U435+U429+U423+U417+U411","v":7},{"$f":"SQRT((V447^2)+(V441^2)+(V435^2)+(V429^2)+(V423^2)+(V417^2)+(V411^2))","v":394.98480983450492},{"$f":"W447+W441+W435+W429+W423+W417+W411","v":0},{"$f":"SQRT((X447^2)+(X441^2)+(X435^2)+(X429^2)+(X423^2)+(X417^2)+(X411^2))","v":426.54894209222931},{"$f":"Y447+Y441+Y435+Y429+Y423+Y417+Y411","v":0},{"$f":"SQRT((Z447^2)+(Z441^2)+(Z435^2)+(Z429^2)+(Z423^2)+(Z417^2)+(Z411^2))","v":426.54894209222931},{"$f":"AA447+AA441+AA435+AA429+AA423+AA417+AA411","v":35},{"$f":"SQRT((AB447^2)+(AB441^2)+(AB435^2)+(AB429^2)+(AB423^2)+(AB417^2)+(AB411^2))","v":342.67477292616684},{"$f":"AC447+AC441+AC435+AC429+AC423+AC417+AC411","v":0},{"$f":"SQRT((AD447^2)+(AD441^2)+(AD435^2)+(AD429^2)+(AD423^2)+(AD417^2)+(AD411^2))","v":426.54894209222931},{"$f":"AE447+AE441+AE435+AE429+AE423+AE417+AE411","v":8},{"$f":"SQRT((AF447^2)+(AF441^2)+(AF435^2)+(AF429^2)+(AF423^2)+(AF417^2)+(AF411^2))","v":411.11069069047574},{"$f":"AG447+AG441+AG435+AG429+AG423+AG417+AG411","v":9},{"$f":"SQRT((AH447^2)+(AH441^2)+(AH435^2)+(AH429^2)+(AH423^2)+(AH417^2)+(AH411^2))","v":395.0088606601123},{"$f":"AI447+AI441+AI435+AI429+AI423+AI417+AI411","v":0},{"$f":"SQRT((AJ447^2)+(AJ441^2)+(AJ435^2)+(AJ429^2)+(AJ423^2)+(AJ417^2)+(AJ411^2))","v":426.54894209222931},{"$f":"AK447+AK441+AK435+AK429+AK423+AK417+AK411","v":0},{"$f":"SQRT((AL447^2)+(AL441^2)+(AL435^2)+(AL429^2)+(AL423^2)+(AL417^2)+(AL411^2))","v":426.54894209222931},{"$f":"AM447+AM441+AM435+AM429+AM423+AM417+AM411","v":157},{"$f":"SQRT((AN447^2)+(AN441^2)+(AN435^2)+(AN429^2)+(AN423^2)+(AN417^2)+(AN411^2))","v":334.06436505559822},{"$f":"AO447+AO441+AO435+AO429+AO423+AO417+AO411","v":0},{"$f":"SQRT((AP447^2)+(AP441^2)+(AP435^2)+(AP429^2)+(AP423^2)+(AP417^2)+(AP411^2))","v":426.54894209222931},{"$f":"AQ447+AQ441+AQ435+AQ429+AQ423+AQ417+AQ411","v":0},{"$f":"SQRT((AR447^2)+(AR441^2)+(AR435^2)+(AR429^2)+(AR423^2)+(AR417^2)+(AR411^2))","v":426.54894209222931},{"$f":"AS447+AS441+AS435+AS429+AS423+AS417+AS411","v":16},{"$f":"SQRT((AT447^2)+(AT441^2)+(AT435^2)+(AT429^2)+(AT423^2)+(AT417^2)+(AT411^2))","v":395.16705328253266},{"$f":"AU447+AU441+AU435+AU429+AU423+AU417+AU411","v":0},{"$f":"SQRT((AV447^2)+(AV441^2)+(AV435^2)+(AV429^2)+(AV423^2)+(AV417^2)+(AV411^2))","v":426.54894209222931},{"$f":"AW447+AW441+AW435+AW429+AW423+AW417+AW411","v":102},{"$f":"SQRT((AX447^2)+(AX441^2)+(AX435^2)+(AX429^2)+(AX423^2)+(AX417^2)+(AX411^2))","v":365.5776251358937},{"$f":"AY447+AY441+AY435+AY429+AY423+AY417+AY411","v":0},{"$f":"SQRT((AZ447^2)+(AZ441^2)+(AZ435^2)+(AZ429^2)+(AZ423^2)+(AZ417^2)+(AZ411^2))","v":426.54894209222931},{"$f":"BA447+BA441+BA435+BA429+BA423+BA417+BA411","v":0},{"$f":"SQRT((BB447^2)+(BB441^2)+(BB435^2)+(BB429^2)+(BB423^2)+(BB417^2)+(BB411^2))","v":426.54894209222931},{"$f":"BC447+BC441+BC435+BC429+BC423+BC417+BC411","v":20},{"$f":"SQRT((BD447^2)+(BD441^2)+(BD435^2)+(BD429^2)+(BD423^2)+(BD417^2)+(BD411^2))","v":342.17831608680291},{"$f":"BE447+BE441+BE435+BE429+BE423+BE417+BE411","v":0},{"$f":"SQRT((BF447^2)+(BF441^2)+(BF435^2)+(BF429^2)+(BF423^2)+(BF417^2)+(BF411^2))","v":426.54894209222931},{"$f":"BG447+BG441+BG435+BG429+BG423+BG417+BG411","v":162},{"$f":"SQRT((BH447^2)+(BH441^2)+(BH435^2)+(BH429^2)+(BH423^2)+(BH417^2)+(BH411^2))","v":264.22149798984941},{"$f":"BI447+BI441+BI435+BI429+BI423+BI417+BI411","v":0},{"$f":"SQRT((BJ447^2)+(BJ441^2)+(BJ435^2)+(BJ429^2)+(BJ423^2)+(BJ417^2)+(BJ411^2))","v":426.54894209222931},{"$f":"BK447+BK441+BK435+BK429+BK423+BK417+BK411","v":0},{"$f":"SQRT((BL447^2)+(BL441^2)+(BL435^2)+(BL429^2)+(BL423^2)+(BL417^2)+(BL411^2))","v":426.54894209222931},{"$f":"BM447+BM441+BM435+BM429+BM423+BM417+BM411","v":25},{"$f":"SQRT((BN447^2)+(BN441^2)+(BN435^2)+(BN429^2)+(BN423^2)+(BN417^2)+(BN411^2))","v":360.91273183416513},{"$f":"BO447+BO441+BO435+BO429+BO423+BO417+BO411","v":7},{"$f":"SQRT((BP447^2)+(BP441^2)+(BP435^2)+(BP429^2)+(BP423^2)+(BP417^2)+(BP411^2))","v":394.97341682700625},{"$f":"BQ447+BQ441+BQ435+BQ429+BQ423+BQ417+BQ411","v":0},{"$f":"SQRT((BR447^2)+(BR441^2)+(BR435^2)+(BR429^2)+(BR423^2)+(BR417^2)+(BR411^2))","v":426.54894209222931},{"$f":"BS447+BS441+BS435+BS429+BS423+BS417+BS411","v":0},{"$f":"SQRT((BT447^2)+(BT441^2)+(BT435^2)+(BT429^2)+(BT423^2)+(BT417^2)+(BT411^2))","v":426.54894209222931},{"$f":"BU447+BU441+BU435+BU429+BU423+BU417+BU411","v":9},{"$f":"SQRT((BV447^2)+(BV441^2)+(BV435^2)+(BV429^2)+(BV423^2)+(BV417^2)+(BV411^2))","v":378.18778404385301},{"$f":"BW447+BW441+BW435+BW429+BW423+BW417+BW411","v":17},{"$f":"SQRT((BX447^2)+(BX441^2)+(BX435^2)+(BX429^2)+(BX423^2)+(BX417^2)+(BX411^2))","v":360.79634144486556},{"$f":"BY447+BY441+BY435+BY429+BY423+BY417+BY411","v":10},{"$f":"SQRT((BZ447^2)+(BZ441^2)+(BZ435^2)+(BZ429^2)+(BZ423^2)+(BZ417^2)+(BZ411^2))","v":378.2142250101125},{"$f":"CA447+CA441+CA435+CA429+CA423+CA417+CA411","v":58},{"$f":"SQRT((CB447^2)+(CB441^2)+(CB435^2)+(CB429^2)+(CB423^2)+(CB417^2)+(CB411^2))","v":379.75781756271982},{"$f":"CC447+CC441+CC435+CC429+CC423+CC417+CC411","v":0},{"$f":"SQRT((CD447^2)+(CD441^2)+(CD435^2)+(CD429^2)+(CD423^2)+(CD417^2)+(CD411^2))","v":426.54894209222931},{"$f":"CE447+CE441+CE435+CE429+CE423+CE417+CE411","v":0},{"$f":"SQRT((CF447^2)+(CF441^2)+(CF435^2)+(CF429^2)+(CF423^2)+(CF417^2)+(CF411^2))","v":426.54894209222931},{"$f":"CG447+CG441+CG435+CG429+CG423+CG417+CG411","v":4},{"$f":"SQRT((CH447^2)+(CH441^2)+(CH435^2)+(CH429^2)+(CH423^2)+(CH417^2)+(CH411^2))","v":411.07663519105535},{"$f":"CI447+CI441+CI435+CI429+CI423+CI417+CI411","v":66},{"$f":"SQRT((CJ447^2)+(CJ441^2)+(CJ435^2)+(CJ429^2)+(CJ423^2)+(CJ417^2)+(CJ411^2))","v":343.69608668124226}]
[null,"Less Than 35% of HH Income",{"$f":"C448+C442+C436+C430+C424+C418+C412","v":0},{"$f":"SQRT((D448^2)+(D442^2)+(D436^2)+(D430^2)+(D424^2)+(D418^2)+(D412^2))","v":603.23129892272664},{"$f":"E448+E442+E436+E430+E424+E418+E412","v":0},{"$f":"SQRT((F448^2)+(F442^2)+(F436^2)+(F430^2)+(F424^2)+(F418^2)+(F412^2))","v":603.23129892272664},{"$f":"G448+G442+G436+G430+G424+G418+G412","v":0},{"$f":"SQRT((H448^2)+(H442^2)+(H436^2)+(H430^2)+(H424^2)+(H418^2)+(H412^2))","v":603.23129892272664},{"$f":"I448+I442+I436+I430+I424+I418+I412","v":1022},{"$f":"SQRT((J448^2)+(J442^2)+(J436^2)+(J430^2)+(J424^2)+(J418^2)+(J412^2))","v":475.05368117719075},{"$f":"K448+K442+K436+K430+K424+K418+K412","v":0},{"$f":"SQRT((L448^2)+(L442^2)+(L436^2)+(L430^2)+(L424^2)+(L418^2)+(L412^2))","v":603.23129892272664},{"$f":"M448+M442+M436+M430+M424+M418+M412","v":26},{"$f":"SQRT((N448^2)+(N442^2)+(N436^2)+(N430^2)+(N424^2)+(N418^2)+(N412^2))","v":570.44719299861583},{"$f":"O448+O442+O436+O430+O424+O418+O412","v":0},{"$f":"SQRT((P448^2)+(P442^2)+(P436^2)+(P430^2)+(P424^2)+(P418^2)+(P412^2))","v":603.23129892272664},{"$f":"Q448+Q442+Q436+Q430+Q424+Q418+Q412","v":0},{"$f":"SQRT((R448^2)+(R442^2)+(R436^2)+(R430^2)+(R424^2)+(R418^2)+(R412^2))","v":603.23129892272664},{"$f":"S448+S442+S436+S430+S424+S418+S412","v":281},{"$f":"SQRT((T448^2)+(T442^2)+(T436^2)+(T430^2)+(T424^2)+(T418^2)+(T412^2))","v":479.81975782579025},{"$f":"U448+U442+U436+U430+U424+U418+U412","v":4},{"$f":"SQRT((V448^2)+(V442^2)+(V436^2)+(V430^2)+(V424^2)+(V418^2)+(V412^2))","v":592.3917622654792},{"$f":"W448+W442+W436+W430+W424+W418+W412","v":0},{"$f":"SQRT((X448^2)+(X442^2)+(X436^2)+(X430^2)+(X424^2)+(X418^2)+(X412^2))","v":603.23129892272664},{"$f":"Y448+Y442+Y436+Y430+Y424+Y418+Y412","v":0},{"$f":"SQRT((Z448^2)+(Z442^2)+(Z436^2)+(Z430^2)+(Z424^2)+(Z418^2)+(Z412^2))","v":603.23129892272664},{"$f":"AA448+AA442+AA436+AA430+AA424+AA418+AA412","v":26},{"$f":"SQRT((AB448^2)+(AB442^2)+(AB436^2)+(AB430^2)+(AB424^2)+(AB418^2)+(AB412^2))","v":558.94722470015006},{"$f":"AC448+AC442+AC436+AC430+AC424+AC418+AC412","v":0},{"$f":"SQRT((AD448^2)+(AD442^2)+(AD436^2)+(AD430^2)+(AD424^2)+(AD418^2)+(AD412^2))","v":603.23129892272664},{"$f":"AE448+AE442+AE436+AE430+AE424+AE418+AE412","v":0},{"$f":"SQRT((AF448^2)+(AF442^2)+(AF436^2)+(AF430^2)+(AF424^2)+(AF418^2)+(AF412^2))","v":603.23129892272664},{"$f":"AG448+AG442+AG436+AG430+AG424+AG418+AG412","v":6},{"$f":"SQRT((AH448^2)+(AH442^2)+(AH436^2)+(AH430^2)+(AH424^2)+(AH418^2)+(AH412^2))","v":592.41539480334234},{"$f":"AI448+AI442+AI436+AI430+AI424+AI418+AI412","v":7},{"$f":"SQRT((AJ448^2)+(AJ442^2)+(AJ436^2)+(AJ430^2)+(AJ424^2)+(AJ418^2)+(AJ412^2))","v":570.03596377772521},{"$f":"AK448+AK442+AK436+AK430+AK424+AK418+AK412","v":0},{"$f":"SQRT((AL448^2)+(AL442^2)+(AL436^2)+(AL430^2)+(AL424^2)+(AL418^2)+(AL412^2))","v":603.23129892272664},{"$f":"AM448+AM442+AM436+AM430+AM424+AM418+AM412","v":282},{"$f":"SQRT((AN448^2)+(AN442^2)+(AN436^2)+(AN430^2)+(AN424^2)+(AN418^2)+(AN412^2))","v":468.89977607160358},{"$f":"AO448+AO442+AO436+AO430+AO424+AO418+AO412","v":0},{"$f":"SQRT((AP448^2)+(AP442^2)+(AP436^2)+(AP430^2)+(AP424^2)+(AP418^2)+(AP412^2))","v":603.23129892272664},{"$f":"AQ448+AQ442+AQ436+AQ430+AQ424+AQ418+AQ412","v":0},{"$f":"SQRT((AR448^2)+(AR442^2)+(AR436^2)+(AR430^2)+(AR424^2)+(AR418^2)+(AR412^2))","v":603.23129892272664},{"$f":"AS448+AS442+AS436+AS430+AS424+AS418+AS412","v":35},{"$f":"SQRT((AT448^2)+(AT442^2)+(AT436^2)+(AT430^2)+(AT424^2)+(AT418^2)+(AT412^2))","v":547.16176767022023},{"$f":"AU448+AU442+AU436+AU430+AU424+AU418+AU412","v":0},{"$f":"SQRT((AV448^2)+(AV442^2)+(AV436^2)+(AV430^2)+(AV424^2)+(AV418^2)+(AV412^2))","v":603.23129892272664},{"$f":"AW448+AW442+AW436+AW430+AW424+AW418+AW412","v":234},{"$f":"SQRT((AX448^2)+(AX442^2)+(AX436^2)+(AX430^2)+(AX424^2)+(AX418^2)+(AX412^2))","v":481.43016108258109},{"$f":"AY448+AY442+AY436+AY430+AY424+AY418+AY412","v":0},{"$f":"SQRT((AZ448^2)+(AZ442^2)+(AZ436^2)+(AZ430^2)+(AZ424^2)+(AZ418^2)+(AZ412^2))","v":603.23129892272664},{"$f":"BA448+BA442+BA436+BA430+BA424+BA418+BA412","v":0},{"$f":"SQRT((BB448^2)+(BB442^2)+(BB436^2)+(BB430^2)+(BB424^2)+(BB418^2)+(BB412^2))","v":603.23129892272664},{"$f":"BC448+BC442+BC436+BC430+BC424+BC418+BC412","v":27},{"$f":"SQRT((BD448^2)+(BD442^2)+(BD436^2)+(BD430^2)+(BD424^2)+(BD418^2)+(BD412^2))","v":534.98785032933222},{"$f":"BE448+BE442+BE436+BE430+BE424+BE418+BE412","v":0},{"$f":"SQRT((BF448^2)+(BF442^2)+(BF436^2)+(BF430^2)+(BF424^2)+(BF418^2)+(BF412^2))","v":603.23129892272664},{"$f":"BG448+BG442+BG436+BG430+BG424+BG418+BG412","v":268},{"$f":"SQRT((BH448^2)+(BH442^2)+(BH436^2)+(BH430^2)+(BH424^2)+(BH418^2)+(BH412^2))","v":451.94689953577512},{"$f":"BI448+BI442+BI436+BI430+BI424+BI418+BI412","v":0},{"$f":"SQRT((BJ448^2)+(BJ442^2)+(BJ436^2)+(BJ430^2)+(BJ424^2)+(BJ418^2)+(BJ412^2))","v":603.23129892272664},{"$f":"BK448+BK442+BK436+BK430+BK424+BK418+BK412","v":0},{"$f":"SQRT((BL448^2)+(BL442^2)+(BL436^2)+(BL430^2)+(BL424^2)+(BL418^2)+(BL412^2))","v":603.23129892272664},{"$f":"BM448+BM442+BM436+BM430+BM424+BM418+BM412","v":24},{"$f":"SQRT((BN448^2)+(BN442^2)+(BN436^2)+(BN430^2)+(BN424^2)+(BN418^2)+(BN412^2))","v":534.91214231871766},{"$f":"BO448+BO442+BO436+BO430+BO424+BO418+BO412","v":9},{"$f":"SQRT((BP448^2)+(BP442^2)+(BP436^2)+(BP430^2)+(BP424^2)+(BP418^2)+(BP412^2))","v":581.38799437208888},{"$f":"BQ448+BQ442+BQ436+BQ430+BQ424+BQ418+BQ412","v":0},{"$f":"SQRT((BR448^2)+(BR442^2)+(BR436^2)+(BR430^2)+(BR424^2)+(BR418^2)+(BR412^2))","v":603.23129892272664},{"$f":"BS448+BS442+BS436+BS430+BS424+BS418+BS412","v":0},{"$f":"SQRT((BT448^2)+(BT442^2)+(BT436^2)+(BT430^2)+(BT424^2)+(BT418^2)+(BT412^2))","v":603.23129892272664},{"$f":"BU448+BU442+BU436+BU430+BU424+BU418+BU412","v":9},{"$f":"SQRT((BV448^2)+(BV442^2)+(BV436^2)+(BV430^2)+(BV424^2)+(BV418^2)+(BV412^2))","v":570.0614002017677},{"$f":"BW448+BW442+BW436+BW430+BW424+BW418+BW412","v":25},{"$f":"SQRT((BX448^2)+(BX442^2)+(BX436^2)+(BX430^2)+(BX424^2)+(BX418^2)+(BX412^2))","v":559.02057207226278},{"$f":"BY448+BY442+BY436+BY430+BY424+BY418+BY412","v":48},{"$f":"SQRT((BZ448^2)+(BZ442^2)+(BZ436^2)+(BZ430^2)+(BZ424^2)+(BZ418^2)+(BZ412^2))","v":523.19116965025319},{"$f":"CA448+CA442+CA436+CA430+CA424+CA418+CA412","v":104},{"$f":"SQRT((CB448^2)+(CB442^2)+(CB436^2)+(CB430^2)+(CB424^2)+(CB418^2)+(CB412^2))","v":498.90279614369774},{"$f":"CC448+CC442+CC436+CC430+CC424+CC418+CC412","v":0},{"$f":"SQRT((CD448^2)+(CD442^2)+(CD436^2)+(CD430^2)+(CD424^2)+(CD418^2)+(CD412^2))","v":603.23129892272664},{"$f":"CE448+CE442+CE436+CE430+CE424+CE418+CE412","v":0},{"$f":"SQRT((CF448^2)+(CF442^2)+(CF436^2)+(CF430^2)+(CF424^2)+(CF418^2)+(CF412^2))","v":603.23129892272664},{"$f":"CG448+CG442+CG436+CG430+CG424+CG418+CG412","v":4},{"$f":"SQRT((CH448^2)+(CH442^2)+(CH436^2)+(CH430^2)+(CH424^2)+(CH418^2)+(CH412^2))","v":592.3917622654792},{"$f":"CI448+CI442+CI436+CI430+CI424+CI418+CI412","v":194},{"$f":"SQRT((CJ448^2)+(CJ442^2)+(CJ436^2)+(CJ430^2)+(CJ424^2)+(CJ418^2)+(CJ412^2))","v":488.37587983027993}]
[null,"35.0 percent or more",{"$f":"C449+C443+C437+C431+C425+C419+C413","v":0},{"$f":"SQRT((D449^2)+(D443^2)+(D437^2)+(D431^2)+(D425^2)+(D419^2)+(D413^2))","v":301.61564946136332},{"$f":"E449+E443+E437+E431+E425+E419+E413","v":0},{"$f":"SQRT((F449^2)+(F443^2)+(F437^2)+(F431^2)+(F425^2)+(F419^2)+(F413^2))","v":301.61564946136332},{"$f":"G449+G443+G437+G431+G425+G419+G413","v":0},{"$f":"SQRT((H449^2)+(H443^2)+(H437^2)+(H431^2)+(H425^2)+(H419^2)+(H413^2))","v":301.61564946136332},{"$f":"I449+I443+I437+I431+I425+I419+I413","v":125},{"$f":"SQRT((J449^2)+(J443^2)+(J437^2)+(J431^2)+(J425^2)+(J419^2)+(J413^2))","v":211.92687418069468},{"$f":"K449+K443+K437+K431+K425+K419+K413","v":0},{"$f":"SQRT((L449^2)+(L443^2)+(L437^2)+(L431^2)+(L425^2)+(L419^2)+(L413^2))","v":301.61564946136332},{"$f":"M449+M443+M437+M431+M425+M419+M413","v":0},{"$f":"SQRT((N449^2)+(N443^2)+(N437^2)+(N431^2)+(N425^2)+(N419^2)+(N413^2))","v":301.61564946136332},{"$f":"O449+O443+O437+O431+O425+O419+O413","v":0},{"$f":"SQRT((P449^2)+(P443^2)+(P437^2)+(P431^2)+(P425^2)+(P419^2)+(P413^2))","v":301.61564946136332},{"$f":"Q449+Q443+Q437+Q431+Q425+Q419+Q413","v":3},{"$f":"SQRT((R449^2)+(R443^2)+(R437^2)+(R431^2)+(R425^2)+(R419^2)+(R413^2))","v":279.27047821064082},{"$f":"S449+S443+S437+S431+S425+S419+S413","v":6},{"$f":"SQRT((T449^2)+(T443^2)+(T437^2)+(T431^2)+(T425^2)+(T419^2)+(T413^2))","v":279.42082957431791},{"$f":"U449+U443+U437+U431+U425+U419+U413","v":3},{"$f":"SQRT((V449^2)+(V443^2)+(V437^2)+(V431^2)+(V425^2)+(V419^2)+(V413^2))","v":279.28659115682586},{"$f":"W449+W443+W437+W431+W425+W419+W413","v":0},{"$f":"SQRT((X449^2)+(X443^2)+(X437^2)+(X431^2)+(X425^2)+(X419^2)+(X413^2))","v":301.61564946136332},{"$f":"Y449+Y443+Y437+Y431+Y425+Y419+Y413","v":0},{"$f":"SQRT((Z449^2)+(Z443^2)+(Z437^2)+(Z431^2)+(Z425^2)+(Z419^2)+(Z413^2))","v":301.61564946136332},{"$f":"AA449+AA443+AA437+AA431+AA425+AA419+AA413","v":31},{"$f":"SQRT((AB449^2)+(AB443^2)+(AB437^2)+(AB431^2)+(AB425^2)+(AB419^2)+(AB413^2))","v":198.52959477115749},{"$f":"AC449+AC443+AC437+AC431+AC425+AC419+AC413","v":0},{"$f":"SQRT((AD449^2)+(AD443^2)+(AD437^2)+(AD431^2)+(AD425^2)+(AD419^2)+(AD413^2))","v":301.61564946136332},{"$f":"AE449+AE443+AE437+AE431+AE425+AE419+AE413","v":8},{"$f":"SQRT((AF449^2)+(AF443^2)+(AF437^2)+(AF431^2)+(AF425^2)+(AF419^2)+(AF413^2))","v":279.3564031841762},{"$f":"AG449+AG443+AG437+AG431+AG425+AG419+AG413","v":3},{"$f":"SQRT((AH449^2)+(AH443^2)+(AH437^2)+(AH431^2)+(AH425^2)+(AH419^2)+(AH413^2))","v":279.27047821064082},{"$f":"AI449+AI443+AI437+AI431+AI425+AI419+AI413","v":0},{"$f":"SQRT((AJ449^2)+(AJ443^2)+(AJ437^2)+(AJ431^2)+(AJ425^2)+(AJ419^2)+(AJ413^2))","v":301.61564946136332},{"$f":"AK449+AK443+AK437+AK431+AK425+AK419+AK413","v":0},{"$f":"SQRT((AL449^2)+(AL443^2)+(AL437^2)+(AL431^2)+(AL425^2)+(AL419^2)+(AL413^2))","v":301.61564946136332},{"$f":"AM449+AM443+AM437+AM431+AM425+AM419+AM413","v":37},{"$f":"SQRT((AN449^2)+(AN443^2)+(AN437^2)+(AN431^2)+(AN425^2)+(AN419^2)+(AN413^2))","v":231.15795465438779},{"$f":"AO449+AO443+AO437+AO431+AO425+AO419+AO413","v":0},{"$f":"SQRT((AP449^2)+(AP443^2)+(AP437^2)+(AP431^2)+(AP425^2)+(AP419^2)+(AP413^2))","v":301.61564946136332},{"$f":"AQ449+AQ443+AQ437+AQ431+AQ425+AQ419+AQ413","v":0},{"$f":"SQRT((AR449^2)+(AR443^2)+(AR437^2)+(AR431^2)+(AR425^2)+(AR419^2)+(AR413^2))","v":301.61564946136332},{"$f":"AS449+AS443+AS437+AS431+AS425+AS419+AS413","v":5},{"$f":"SQRT((AT449^2)+(AT443^2)+(AT437^2)+(AT431^2)+(AT425^2)+(AT419^2)+(AT413^2))","v":279.30628349537716},{"$f":"AU449+AU443+AU437+AU431+AU425+AU419+AU413","v":0},{"$f":"SQRT((AV449^2)+(AV443^2)+(AV437^2)+(AV431^2)+(AV425^2)+(AV419^2)+(AV413^2))","v":301.61564946136332},{"$f":"AW449+AW443+AW437+AW431+AW425+AW419+AW413","v":14},{"$f":"SQRT((AX449^2)+(AX443^2)+(AX437^2)+(AX431^2)+(AX425^2)+(AX419^2)+(AX413^2))","v":280.18743726298652},{"$f":"AY449+AY443+AY437+AY431+AY425+AY419+AY413","v":0},{"$f":"SQRT((AZ449^2)+(AZ443^2)+(AZ437^2)+(AZ431^2)+(AZ425^2)+(AZ419^2)+(AZ413^2))","v":301.61564946136332},{"$f":"BA449+BA443+BA437+BA431+BA425+BA419+BA413","v":0},{"$f":"SQRT((BB449^2)+(BB443^2)+(BB437^2)+(BB431^2)+(BB425^2)+(BB419^2)+(BB413^2))","v":301.61564946136332},{"$f":"BC449+BC443+BC437+BC431+BC425+BC419+BC413","v":13},{"$f":"SQRT((BD449^2)+(BD443^2)+(BD437^2)+(BD431^2)+(BD425^2)+(BD419^2)+(BD413^2))","v":228.17756243767704},{"$f":"BE449+BE443+BE437+BE431+BE425+BE419+BE413","v":0},{"$f":"SQRT((BF449^2)+(BF443^2)+(BF437^2)+(BF431^2)+(BF425^2)+(BF419^2)+(BF413^2))","v":301.61564946136332},{"$f":"BG449+BG443+BG437+BG431+BG425+BG419+BG413","v":61},{"$f":"SQRT((BH449^2)+(BH443^2)+(BH437^2)+(BH431^2)+(BH425^2)+(BH419^2)+(BH413^2))","v":165.72869395490932},{"$f":"BI449+BI443+BI437+BI431+BI425+BI419+BI413","v":0},{"$f":"SQRT((BJ449^2)+(BJ443^2)+(BJ437^2)+(BJ431^2)+(BJ425^2)+(BJ419^2)+(BJ413^2))","v":301.61564946136332},{"$f":"BK449+BK443+BK437+BK431+BK425+BK419+BK413","v":0},{"$f":"SQRT((BL449^2)+(BL443^2)+(BL437^2)+(BL431^2)+(BL425^2)+(BL419^2)+(BL413^2))","v":301.61564946136332},{"$f":"BM449+BM443+BM437+BM431+BM425+BM419+BM413","v":16},{"$f":"SQRT((BN449^2)+(BN443^2)+(BN437^2)+(BN431^2)+(BN425^2)+(BN419^2)+(BN413^2))","v":255.266527378738},{"$f":"BO449+BO443+BO437+BO431+BO425+BO419+BO413","v":5},{"$f":"SQRT((BP449^2)+(BP443^2)+(BP437^2)+(BP431^2)+(BP425^2)+(BP419^2)+(BP413^2))","v":279.30628349537716},{"$f":"BQ449+BQ443+BQ437+BQ431+BQ425+BQ419+BQ413","v":0},{"$f":"SQRT((BR449^2)+(BR443^2)+(BR437^2)+(BR431^2)+(BR425^2)+(BR419^2)+(BR413^2))","v":301.61564946136332},{"$f":"BS449+BS443+BS437+BS431+BS425+BS419+BS413","v":0},{"$f":"SQRT((BT449^2)+(BT443^2)+(BT437^2)+(BT431^2)+(BT425^2)+(BT419^2)+(BT413^2))","v":301.61564946136332},{"$f":"BU449+BU443+BU437+BU431+BU425+BU419+BU413","v":0},{"$f":"SQRT((BV449^2)+(BV443^2)+(BV437^2)+(BV431^2)+(BV425^2)+(BV419^2)+(BV413^2))","v":301.61564946136332},{"$f":"BW449+BW443+BW437+BW431+BW425+BW419+BW413","v":15},{"$f":"SQRT((BX449^2)+(BX443^2)+(BX437^2)+(BX431^2)+(BX425^2)+(BX419^2)+(BX413^2))","v":228.43379784961769},{"$f":"BY449+BY443+BY437+BY431+BY425+BY419+BY413","v":4},{"$f":"SQRT((BZ449^2)+(BZ443^2)+(BZ437^2)+(BZ431^2)+(BZ425^2)+(BZ419^2)+(BZ413^2))","v":279.32955446926843},{"$f":"CA449+CA443+CA437+CA431+CA425+CA419+CA413","v":16},{"$f":"SQRT((CB449^2)+(CB443^2)+(CB437^2)+(CB431^2)+(CB425^2)+(CB419^2)+(CB413^2))","v":280.10712236571209},{"$f":"CC449+CC443+CC437+CC431+CC425+CC419+CC413","v":0},{"$f":"SQRT((CD449^2)+(CD443^2)+(CD437^2)+(CD431^2)+(CD425^2)+(CD419^2)+(CD413^2))","v":301.61564946136332},{"$f":"CE449+CE443+CE437+CE431+CE425+CE419+CE413","v":0},{"$f":"SQRT((CF449^2)+(CF443^2)+(CF437^2)+(CF431^2)+(CF425^2)+(CF419^2)+(CF413^2))","v":301.61564946136332},{"$f":"CG449+CG443+CG437+CG431+CG425+CG419+CG413","v":0},{"$f":"SQRT((CH449^2)+(CH443^2)+(CH437^2)+(CH431^2)+(CH425^2)+(CH419^2)+(CH413^2))","v":301.61564946136332},{"$f":"CI449+CI443+CI437+CI431+CI425+CI419+CI413","v":17},{"$f":"SQRT((CJ449^2)+(CJ443^2)+(CJ437^2)+(CJ431^2)+(CJ425^2)+(CJ419^2)+(CJ413^2))","v":255.70490804832042}]
[null,"Not Computed",{"$f":"C450+C444+C438+C432+C426+C420+C414","v":0},{"$f":"SQRT((D450^2)+(D444^2)+(D438^2)+(D432^2)+(D426^2)+(D420^2)+(D414^2))","v":279.24183067728228},{"$f":"E450+E444+E438+E432+E426+E420+E414","v":0},{"$f":"SQRT((F450^2)+(F444^2)+(F438^2)+(F432^2)+(F426^2)+(F420^2)+(F414^2))","v":279.24183067728228},{"$f":"G450+G444+G438+G432+G426+G420+G414","v":0},{"$f":"SQRT((H450^2)+(H444^2)+(H438^2)+(H432^2)+(H426^2)+(H420^2)+(H414^2))","v":279.24183067728228},{"$f":"I450+I444+I438+I432+I426+I420+I414","v":1177},{"$f":"SQRT((J450^2)+(J444^2)+(J438^2)+(J432^2)+(J426^2)+(J420^2)+(J414^2))","v":223.17705975301314},{"$f":"K450+K444+K438+K432+K426+K420+K414","v":0},{"$f":"SQRT((L450^2)+(L444^2)+(L438^2)+(L432^2)+(L426^2)+(L420^2)+(L414^2))","v":279.24183067728228},{"$f":"M450+M444+M438+M432+M426+M420+M414","v":39},{"$f":"SQRT((N450^2)+(N444^2)+(N438^2)+(N432^2)+(N426^2)+(N420^2)+(N414^2))","v":199.67223141939391},{"$f":"O450+O444+O438+O432+O426+O420+O414","v":0},{"$f":"SQRT((P450^2)+(P444^2)+(P438^2)+(P432^2)+(P426^2)+(P420^2)+(P414^2))","v":279.24183067728228},{"$f":"Q450+Q444+Q438+Q432+Q426+Q420+Q414","v":22},{"$f":"SQRT((R450^2)+(R444^2)+(R438^2)+(R432^2)+(R426^2)+(R420^2)+(R414^2))","v":198.52959477115749},{"$f":"S450+S444+S438+S432+S426+S420+S414","v":337},{"$f":"SQRT((T450^2)+(T444^2)+(T438^2)+(T432^2)+(T426^2)+(T420^2)+(T414^2))","v":113.77170122662314},{"$f":"U450+U444+U438+U432+U426+U420+U414","v":18},{"$f":"SQRT((V450^2)+(V444^2)+(V438^2)+(V432^2)+(V426^2)+(V420^2)+(V414^2))","v":198.33809518093088},{"$f":"W450+W444+W438+W432+W426+W420+W414","v":0},{"$f":"SQRT((X450^2)+(X444^2)+(X438^2)+(X432^2)+(X426^2)+(X420^2)+(X414^2))","v":279.24183067728228},{"$f":"Y450+Y444+Y438+Y432+Y426+Y420+Y414","v":0},{"$f":"SQRT((Z450^2)+(Z444^2)+(Z438^2)+(Z432^2)+(Z426^2)+(Z420^2)+(Z414^2))","v":279.24183067728228},{"$f":"AA450+AA444+AA438+AA432+AA426+AA420+AA414","v":63},{"$f":"SQRT((AB450^2)+(AB444^2)+(AB438^2)+(AB432^2)+(AB426^2)+(AB420^2)+(AB414^2))","v":30.083217912982647},{"$f":"AC450+AC444+AC438+AC432+AC426+AC420+AC414","v":0},{"$f":"SQRT((AD450^2)+(AD444^2)+(AD438^2)+(AD432^2)+(AD426^2)+(AD420^2)+(AD414^2))","v":279.24183067728228},{"$f":"AE450+AE444+AE438+AE432+AE426+AE420+AE414","v":8},{"$f":"SQRT((AF450^2)+(AF444^2)+(AF438^2)+(AF432^2)+(AF426^2)+(AF420^2)+(AF414^2))","v":255.0372521809314},{"$f":"AG450+AG444+AG438+AG432+AG426+AG420+AG414","v":11},{"$f":"SQRT((AH450^2)+(AH444^2)+(AH438^2)+(AH432^2)+(AH426^2)+(AH420^2)+(AH414^2))","v":228.19509197175998},{"$f":"AI450+AI444+AI438+AI432+AI426+AI420+AI414","v":7},{"$f":"SQRT((AJ450^2)+(AJ444^2)+(AJ438^2)+(AJ432^2)+(AJ426^2)+(AJ420^2)+(AJ414^2))","v":197.55758654124119},{"$f":"AK450+AK444+AK438+AK432+AK426+AK420+AK414","v":0},{"$f":"SQRT((AL450^2)+(AL444^2)+(AL438^2)+(AL432^2)+(AL426^2)+(AL420^2)+(AL414^2))","v":279.24183067728228},{"$f":"AM450+AM444+AM438+AM432+AM426+AM420+AM414","v":418},{"$f":"SQRT((AN450^2)+(AN444^2)+(AN438^2)+(AN432^2)+(AN426^2)+(AN420^2)+(AN414^2))","v":191.43144987174912},{"$f":"AO450+AO444+AO438+AO432+AO426+AO420+AO414","v":0},{"$f":"SQRT((AP450^2)+(AP444^2)+(AP438^2)+(AP432^2)+(AP426^2)+(AP420^2)+(AP414^2))","v":279.24183067728228},{"$f":"AQ450+AQ444+AQ438+AQ432+AQ426+AQ420+AQ414","v":0},{"$f":"SQRT((AR450^2)+(AR444^2)+(AR438^2)+(AR432^2)+(AR426^2)+(AR420^2)+(AR414^2))","v":279.24183067728228},{"$f":"AS450+AS444+AS438+AS432+AS426+AS420+AS414","v":40},{"$f":"SQRT((AT450^2)+(AT444^2)+(AT438^2)+(AT432^2)+(AT426^2)+(AT420^2)+(AT414^2))","v":229.09386722476881},{"$f":"AU450+AU444+AU438+AU432+AU426+AU420+AU414","v":0},{"$f":"SQRT((AV450^2)+(AV444^2)+(AV438^2)+(AV432^2)+(AV426^2)+(AV420^2)+(AV414^2))","v":279.24183067728228},{"$f":"AW450+AW444+AW438+AW432+AW426+AW420+AW414","v":301},{"$f":"SQRT((AX450^2)+(AX444^2)+(AX438^2)+(AX432^2)+(AX426^2)+(AX420^2)+(AX414^2))","v":115.53354491228943},{"$f":"AY450+AY444+AY438+AY432+AY426+AY420+AY414","v":0},{"$f":"SQRT((AZ450^2)+(AZ444^2)+(AZ438^2)+(AZ432^2)+(AZ426^2)+(AZ420^2)+(AZ414^2))","v":279.24183067728228},{"$f":"BA450+BA444+BA438+BA432+BA426+BA420+BA414","v":0},{"$f":"SQRT((BB450^2)+(BB444^2)+(BB438^2)+(BB432^2)+(BB426^2)+(BB420^2)+(BB414^2))","v":279.24183067728228},{"$f":"BC450+BC444+BC438+BC432+BC426+BC420+BC414","v":65},{"$f":"SQRT((BD450^2)+(BD444^2)+(BD438^2)+(BD432^2)+(BD426^2)+(BD420^2)+(BD414^2))","v":116.40876255677662},{"$f":"BE450+BE444+BE438+BE432+BE426+BE420+BE414","v":0},{"$f":"SQRT((BF450^2)+(BF444^2)+(BF438^2)+(BF432^2)+(BF426^2)+(BF420^2)+(BF414^2))","v":279.24183067728228},{"$f":"BG450+BG444+BG438+BG432+BG426+BG420+BG414","v":336},{"$f":"SQRT((BH450^2)+(BH444^2)+(BH438^2)+(BH432^2)+(BH426^2)+(BH420^2)+(BH414^2))","v":100.75713374247999},{"$f":"BI450+BI444+BI438+BI432+BI426+BI420+BI414","v":0},{"$f":"SQRT((BJ450^2)+(BJ444^2)+(BJ438^2)+(BJ432^2)+(BJ426^2)+(BJ420^2)+(BJ414^2))","v":279.24183067728228},{"$f":"BK450+BK444+BK438+BK432+BK426+BK420+BK414","v":0},{"$f":"SQRT((BL450^2)+(BL444^2)+(BL438^2)+(BL432^2)+(BL426^2)+(BL420^2)+(BL414^2))","v":279.24183067728228},{"$f":"BM450+BM444+BM438+BM432+BM426+BM420+BM414","v":32},{"$f":"SQRT((BN450^2)+(BN444^2)+(BN438^2)+(BN432^2)+(BN426^2)+(BN420^2)+(BN414^2))","v":198.13379318026495},{"$f":"BO450+BO444+BO438+BO432+BO426+BO420+BO414","v":16},{"$f":"SQRT((BP450^2)+(BP444^2)+(BP438^2)+(BP432^2)+(BP426^2)+(BP420^2)+(BP414^2))","v":197.85348114198041},{"$f":"BQ450+BQ444+BQ438+BQ432+BQ426+BQ420+BQ414","v":0},{"$f":"SQRT((BR450^2)+(BR444^2)+(BR438^2)+(BR432^2)+(BR426^2)+(BR420^2)+(BR414^2))","v":279.24183067728228},{"$f":"BS450+BS444+BS438+BS432+BS426+BS420+BS414","v":0},{"$f":"SQRT((BT450^2)+(BT444^2)+(BT438^2)+(BT432^2)+(BT426^2)+(BT420^2)+(BT414^2))","v":279.24183067728228},{"$f":"BU450+BU444+BU438+BU432+BU426+BU420+BU414","v":18},{"$f":"SQRT((BV450^2)+(BV444^2)+(BV438^2)+(BV432^2)+(BV426^2)+(BV420^2)+(BV414^2))","v":161.63229875244613},{"$f":"BW450+BW444+BW438+BW432+BW426+BW420+BW414","v":47},{"$f":"SQRT((BX450^2)+(BX444^2)+(BX438^2)+(BX432^2)+(BX426^2)+(BX420^2)+(BX414^2))","v":199.88246546408217},{"$f":"BY450+BY444+BY438+BY432+BY426+BY420+BY414","v":51},{"$f":"SQRT((BZ450^2)+(BZ444^2)+(BZ438^2)+(BZ432^2)+(BZ426^2)+(BZ420^2)+(BZ414^2))","v":163.42276463210382},{"$f":"CA450+CA444+CA438+CA432+CA426+CA420+CA414","v":111},{"$f":"SQRT((CB450^2)+(CB444^2)+(CB438^2)+(CB432^2)+(CB426^2)+(CB420^2)+(CB414^2))","v":167.25429740368406},{"$f":"CC450+CC444+CC438+CC432+CC426+CC420+CC414","v":0},{"$f":"SQRT((CD450^2)+(CD444^2)+(CD438^2)+(CD432^2)+(CD426^2)+(CD420^2)+(CD414^2))","v":279.24183067728228},{"$f":"CE450+CE444+CE438+CE432+CE426+CE420+CE414","v":0},{"$f":"SQRT((CF450^2)+(CF444^2)+(CF438^2)+(CF432^2)+(CF426^2)+(CF420^2)+(CF414^2))","v":279.24183067728228},{"$f":"CG450+CG444+CG438+CG432+CG426+CG420+CG414","v":4},{"$f":"SQRT((CH450^2)+(CH444^2)+(CH438^2)+(CH432^2)+(CH426^2)+(CH420^2)+(CH414^2))","v":254.98235233050934},{"$f":"CI450+CI444+CI438+CI432+CI426+CI420+CI414","v":173},{"$f":"SQRT((CJ450^2)+(CJ444^2)+(CJ438^2)+(CJ432^2)+(CJ426^2)+(CJ420^2)+(CJ414^2))","v":173.09534944648283}]

{"sheet":"PlaceOfBirthAndPriorRes","index":59,"n_rows":57,"n_cols":16,"rows_kept":57,"cut":false,"hidden":true,"merged":[[4,11,4,13],[4,14,4,15],[40,14,40,15],[40,11,40,13],[53,2,54,14],[4,3,4,5],[4,7,4,9],[40,3,40,5],[40,7,40,9]]}
[]
[null,null,{"$f":"CntyDataLink!A50","v":"Berlin"}]
[null,null,"SOCIAL CHARACTERISTICS"]
[]
[null,null,"Place of Birth","2005-2009",null,null,null,"2009-2013",null,null,null,"2015-2019"]
[null,null,"Universe: Total Population","Estimate","Margin of Error",null,null,"Estimate","Margin of Error",null,null,"Estimate","Margin of Error",null,"10 Year Statistically Significant Change ","5 Year Statistically Significant Change "]
[null,null,"  Total:",{"$f":"CntyDataLinkPrior10YearEstimate!$B$136","v":9673},{"$f":"CntyDataLinkPrior10YearEstimate!$C$136","v":21},null,null,{"$f":"CntyDataLinkPrior5YearEstimates!$B$136","v":9710},{"$f":"CntyDataLinkPrior5YearEstimates!$C$136","v":27},null,null,{"$f":"CntyDataLink!$B$136","v":10221},{"$f":"CntyDataLink!$C$136","v":22}]
[null,null,"   United States Native",{"$f":"CntyDataLinkPrior10YearEstimate!$D$136","v":9313},{"$f":"CntyDataLinkPrior10YearEstimate!$E$136","v":147},{"$f":"D8/$D$7","v":0.9627830042386023},null,{"$f":"CntyDataLinkPrior5YearEstimates!$D$136","v":9381},{"$f":"CntyDataLinkPrior5YearEstimates!$E$136","v":126},{"$f":"H8/$H$7","v":0.96611740473738417},null,{"$f":"CntyDataLink!$D$136","v":9890},{"$f":"CntyDataLink!$E$136","v":131},{"$f":"L8/$L$7","v":0.96761569318070639},{"$f":"StatisticallySignificantCalcs!A25","v":"Y"},{"$f":"StatisticallySignificantCalcs!J25","v":"Y"}]
[null,null,"      New Hampshire Native",{"$f":"CntyDataLinkPrior10YearEstimate!$F$136","v":6603},{"$f":"CntyDataLinkPrior10YearEstimate!$G$136","v":383},0.68262173059030296,null,{"$f":"CntyDataLinkPrior5YearEstimates!$F$136","v":6894},{"$f":"CntyDataLinkPrior5YearEstimates!$G$136","v":512},{"$f":"H9/$H$7","v":0.709989701338826},null,{"$f":"CntyDataLink!$F$136","v":6219},{"$f":"CntyDataLink!$G$136","v":452},0.60845318461990017,{"$f":"StatisticallySignificantCalcs!A26","v":"Y"},{"$f":"StatisticallySignificantCalcs!J26","v":"Y"}]
[null,null,"      Born in Different State",{"$f":"CntyDataLinkPrior10YearEstimate!$H$136","v":2558},{"$f":"CntyDataLinkPrior10YearEstimate!$I$136","v":369},0.264447430993487,null,{"$f":"CntyDataLinkPrior5YearEstimates!$H$136","v":2435},{"$f":"CntyDataLinkPrior5YearEstimates!$I$136","v":472},0.25077239958805353,null,{"$f":"CntyDataLink!$H$136","v":3514},{"$f":"CntyDataLink!$I$136","v":434},0.34380197632325604,{"$f":"StatisticallySignificantCalcs!A27","v":"N"},{"$f":"StatisticallySignificantCalcs!J27","v":"N"}]
[null,null,"          Northeast",{"$f":"CntyDataLinkPrior10YearEstimate!$J$136","v":1916},{"$f":"CntyDataLinkPrior10YearEstimate!$K$136","v":355},0.19807712188566112,null,{"$f":"CntyDataLinkPrior5YearEstimates!$J$136","v":1756},{"$f":"CntyDataLinkPrior5YearEstimates!$K$136","v":296},0.18084449021627189,null,{"$f":"CntyDataLink!$J$136","v":2231},{"$f":"CntyDataLink!$K$136","v":346},0.2182760982291361,{"$f":"StatisticallySignificantCalcs!A28","v":"Y"},{"$f":"StatisticallySignificantCalcs!J28","v":"Y"}]
[null,null,"          Midwest",{"$f":"CntyDataLinkPrior10YearEstimate!$L$136","v":162},{"$f":"CntyDataLinkPrior10YearEstimate!$M$136","v":74},1.6747648092628967E-2,null,{"$f":"CntyDataLinkPrior5YearEstimates!$L$136","v":234},{"$f":"CntyDataLinkPrior5YearEstimates!$M$136","v":288},2.4098867147270855E-2,null,{"$f":"CntyDataLink!$L$136","v":369},{"$f":"CntyDataLink!$M$136","v":131},3.6102142647490461E-2,{"$f":"StatisticallySignificantCalcs!A29","v":"N"},{"$f":"StatisticallySignificantCalcs!J29","v":"Y"}]
[null,null,"          South",{"$f":"CntyDataLinkPrior10YearEstimate!$N$136","v":365},{"$f":"CntyDataLinkPrior10YearEstimate!$O$136","v":121},3.7733898480306005E-2,null,{"$f":"CntyDataLinkPrior5YearEstimates!$N$136","v":256},{"$f":"CntyDataLinkPrior5YearEstimates!$O$136","v":123},2.6364572605561278E-2,null,{"$f":"CntyDataLink!$N$136","v":656},{"$f":"CntyDataLink!$O$136","v":279},6.4181586928871937E-2,{"$f":"StatisticallySignificantCalcs!A30","v":"Y"},{"$f":"StatisticallySignificantCalcs!J30","v":"N"}]
[null,null,"          West",{"$f":"CntyDataLinkPrior10YearEstimate!$P$136","v":115},{"$f":"CntyDataLinkPrior10YearEstimate!$Q$136","v":74},1.1888762534890934E-2,null,{"$f":"CntyDataLinkPrior5YearEstimates!$P$136","v":189},{"$f":"CntyDataLinkPrior5YearEstimates!$Q$136","v":113},1.9464469618949536E-2,null,{"$f":"CntyDataLink!$P$136","v":258},{"$f":"CntyDataLink!$Q$136","v":130},2.5242148517757558E-2,{"$f":"StatisticallySignificantCalcs!A31","v":"N"},{"$f":"StatisticallySignificantCalcs!J31","v":"Y"}]
[null,null,"      Native Born Outside US",{"$f":"CntyDataLinkPrior10YearEstimate!$R136","v":152},{"$f":"CntyDataLinkPrior10YearEstimate!$S$136","v":90},1.5713842654812363E-2,null,{"$f":"CntyDataLinkPrior5YearEstimates!$R136","v":52},{"$f":"CntyDataLinkPrior5YearEstimates!$S$136","v":42},5.3553038105046344E-3,null,{"$f":"CntyDataLink!$R136","v":157},{"$f":"CntyDataLink!$S$136","v":104},1.5360532237550142E-2,{"$f":"StatisticallySignificantCalcs!A32","v":"N"},{"$f":"StatisticallySignificantCalcs!J32","v":"N"}]
[null,null,"   Foreign Born",{"$f":"CntyDataLinkPrior10YearEstimate!$Z136","v":360},{"$f":"CntyDataLinkPrior10YearEstimate!$AA$136","v":143},3.7216995761397705E-2,null,{"$f":"CntyDataLinkPrior5YearEstimates!$Z136","v":329},{"$f":"CntyDataLinkPrior5YearEstimates!$AA$136","v":126},3.3882595262615861E-2,null,{"$f":"CntyDataLink!$Z136","v":331},{"$f":"CntyDataLink!$AA$136","v":132},3.2384306819293614E-2,{"$f":"StatisticallySignificantCalcs!A33","v":"N"},{"$f":"StatisticallySignificantCalcs!J33","v":"N"}]
[null,null,"      Naturalized Citizen",{"$f":"CntyDataLinkPrior10YearEstimate!$AB136","v":244},{"$f":"CntyDataLinkPrior10YearEstimate!$AC$136","v":133},{"$f":"D17/$L$7","v":2.3872419528421878E-2},null,{"$f":"CntyDataLinkPrior5YearEstimates!$AB136","v":203},{"$f":"CntyDataLinkPrior5YearEstimates!$AC$136","v":103},2.090628218331617E-2,null,{"$f":"CntyDataLink!$AB136","v":233},{"$f":"CntyDataLink!$AC$136","v":104},2.279620389394384E-2,{"$f":"StatisticallySignificantCalcs!A34","v":"N"},{"$f":"StatisticallySignificantCalcs!J34","v":"N"}]
[null,null,"      Not a Citizen",{"$f":"CntyDataLinkPrior10YearEstimate!$AD$136","v":116},{"$f":"CntyDataLinkPrior10YearEstimate!$AE$136","v":61},{"$f":"D18/$L$7","v":1.1349183054495646E-2},null,{"$f":"CntyDataLinkPrior5YearEstimates!$AD$136","v":126},{"$f":"CntyDataLinkPrior5YearEstimates!$AE$136","v":82},1.2976313079299692E-2,null,{"$f":"CntyDataLink!$AD$136","v":98},{"$f":"CntyDataLink!$AE$136","v":66},9.5881029253497702E-3,{"$f":"StatisticallySignificantCalcs!A35","v":"N"},{"$f":"StatisticallySignificantCalcs!J35","v":"N"}]
[null,null,null,"Source: 2009-2013 and 2015-2019 American Community Survey Table B05002 "]
[]
[]
[]
[]
[]
[]
[]
[]
[]
[]
[]
[]
[]
[]
[]
[]
[]
[]
[]
[]
[null,null,"Place of Residence Prior year for Population"]
[null,null,"Universe: Population","2005-2009",null,null,null,"2010-2014",null,null,null,"2015-2019"]
[null,null,null,"Estimate","Margin of Error",null,null,"Estimate","Margin of Error",null,null,"Estimate","Margin of Error",null,"10 Year Statistically Significant Change ","5 Year Statistically Significant Change "]
[null,null,"  Total:",{"$f":"CntyDataLinkPrior10YearEstimate!$AF$136","v":9546},{"$f":"CntyDataLinkPrior10YearEstimate!$AG$136","v":85},null,null,{"$f":"CntyDataLinkPrior5YearEstimates!$AF$136","v":9605},{"$f":"CntyDataLinkPrior5YearEstimates!$AG$136","v":61},null,null,{"$f":"CntyDataLink!$AF$136","v":10086},{"$f":"CntyDataLink!$AG$136","v":64},null,{"$f":"StatisticallySignificantCalcs!$A36","v":"N"},{"$f":"StatisticallySignificantCalcs!$J36","v":"N"}]
["Same House",null,"    Same House ",{"$f":"CntyDataLinkPrior10YearEstimate!$AH$136","v":7774},{"$f":"CntyDataLinkPrior10YearEstimate!$AI$136","v":421},{"$f":"IF($D$44=\"-\",\"-\",VALUE(D44/$D$43))","v":0.81437251204693062},null,{"$f":"CntyDataLinkPrior5YearEstimates!$AH$136","v":8004},{"$f":"CntyDataLinkPrior5YearEstimates!$AI$136","v":376},{"$f":"IF($D$44=\"-\",\"-\",VALUE(H44/$H$43))","v":0.83331598125976059},null,{"$f":"CntyDataLink!$AH$136","v":8085},{"$f":"CntyDataLink!$AI$136","v":396},{"$f":"IF($H$44=\"-\",\"-\",VALUE(L44/$L$43))","v":0.8016061867935752},{"$f":"StatisticallySignificantCalcs!$A37","v":"N"},{"$f":"StatisticallySignificantCalcs!$J37","v":"Y"}]
["Different House",null,"    Different House 1  ",{"$f":"CntyDataLinkPrior10YearEstimate!$AJ$136","v":1772},{"$f":"CntyDataLinkPrior10YearEstimate!$AK$136","v":438.05364968231919},{"$f":"IF($D$45=\"-\",\"-\",VALUE(D45/$D$43))","v":0.18562748795306935},null,{"$f":"CntyDataLinkPrior5YearEstimates!$AJ$136","v":1601},{"$f":"CntyDataLinkPrior5YearEstimates!$AK$136","v":380.04604984133175},{"$f":"IF($D$44=\"-\",\"-\",VALUE(H45/$H$43))","v":0.16668401874023947},null,{"$f":"CntyDataLink!$AJ$136","v":2001},{"$f":"CntyDataLink!$AK$136","v":471.35761370746945},{"$f":"IF($H$44=\"-\",\"-\",VALUE(L45/$L$43))","v":0.19839381320642474},{"$f":"StatisticallySignificantCalcs!$A38","v":"N"},{"$f":"StatisticallySignificantCalcs!$J38","v":"Y"}]
[null,null,"      in New Hampshire",{"$f":"CntyDataLinkPrior10YearEstimate!$AL$136","v":1480},{"$f":"CntyDataLinkPrior10YearEstimate!$AM$136","v":348.73629005310016},{"$f":"IF($D$46=\"-\",\"-\",VALUE(D46/$D$43))","v":0.15503875968992248},null,{"$f":"CntyDataLinkPrior5YearEstimates!$AL$136","v":1499},{"$f":"CntyDataLinkPrior5YearEstimates!$AM$136","v":377.02121956197635},0.1560645497136908,null,{"$f":"CntyDataLink!$AL$136","v":1512},{"$f":"CntyDataLink!$AM$136","v":427.28561876103436},0.14991076740035694,{"$f":"StatisticallySignificantCalcs!$A39","v":"N"},{"$f":"StatisticallySignificantCalcs!$J39","v":"N"}]
[null,null,"          Same county",{"$f":"CntyDataLinkPrior10YearEstimate!$AN$136","v":1240},{"$f":"CntyDataLinkPrior10YearEstimate!$AO$136","v":324},{"$f":"IF($D$47=\"-\",\"-\",VALUE(D47/$D$43))","v":0.12989733919966479},null,{"$f":"CntyDataLinkPrior5YearEstimates!$AN$136","v":1046},{"$f":"CntyDataLinkPrior5YearEstimates!$AO$136","v":304},0.10890161374284227,null,{"$f":"CntyDataLink!$AN$136","v":1119},{"$f":"CntyDataLink!$AO$136","v":397},0.11094586555621654,{"$f":"StatisticallySignificantCalcs!$A40","v":"N"},{"$f":"StatisticallySignificantCalcs!$J40","v":"Y"}]
[null,null,"          Different county",{"$f":"CntyDataLinkPrior10YearEstimate!$AP$136","v":240},{"$f":"CntyDataLinkPrior10YearEstimate!$AQ$136","v":129},{"$f":"IF($D$48=\"-\",\"-\",VALUE(D48/$D$43))","v":2.51414204902577E-2},null,{"$f":"CntyDataLinkPrior5YearEstimates!$AP$136","v":453},{"$f":"CntyDataLinkPrior5YearEstimates!$AQ$136","v":223},4.7162935970848516E-2,null,{"$f":"CntyDataLink!$AP$136","v":393},{"$f":"CntyDataLink!$AQ$136","v":158},3.8964901844140393E-2,{"$f":"StatisticallySignificantCalcs!$A41","v":"N"},{"$f":"StatisticallySignificantCalcs!$J41","v":"Y"}]
["Different State",null,"      in Different state",{"$f":"CntyDataLinkPrior10YearEstimate!$AR$136","v":288},{"$f":"CntyDataLinkPrior10YearEstimate!$AS$136","v":265},{"$f":"IF($D$49=\"-\",\"-\",VALUE(D49/$D$43))","v":3.016970458830924E-2},null,{"$f":"CntyDataLinkPrior5YearEstimates!$AR$136","v":96},{"$f":"CntyDataLinkPrior5YearEstimates!$AS$136","v":47},9.9947943779281623E-3,null,{"$f":"CntyDataLink!$AR$136","v":488},{"$f":"CntyDataLink!$AS$136","v":199},4.8383898473131071E-2,{"$f":"StatisticallySignificantCalcs!$A42","v":"N"},{"$f":"StatisticallySignificantCalcs!$J42","v":"N"}]
["Eleswhere",null,"       Elsewhere",{"$f":"CntyDataLinkPrior10YearEstimate!$AT$136","v":4},{"$f":"CntyDataLinkPrior10YearEstimate!$AU$136","v":7},{"$f":"IF($D$50=\"-\",\"-\",VALUE(D50/$D$43))","v":4.190236748376283E-4},null,{"$f":"CntyDataLinkPrior5YearEstimates!$AT$136","v":6},{"$f":"CntyDataLinkPrior5YearEstimates!$AU$136","v":9},6.2467464862051014E-4,null,{"$f":"CntyDataLink!$AT$136","v":1},{"$f":"CntyDataLink!$AU$136","v":2},9.9147332936744002E-5,{"$f":"StatisticallySignificantCalcs!$A43","v":"N"},{"$f":"StatisticallySignificantCalcs!$J43","v":"Y"}]
[]
[null,null,"Data from the American Community Survey are estimates"]
[]
[null,null,"1   The number for Different House was calculated by adding In New Hampshire, In Different State, and Elsewhere totals. The number is not located in the source Table B07003."]
[]
[]
[null,null,"Source: 2009-2013 and 2015-2019 American Community Survey Table B07003."]

{"sheet":"ACS_Table_B05002","index":60,"n_rows":84,"n_cols":88,"rows_kept":84,"cut":false,"hidden":true,"merged":[]}
[null,"B05002. PLACE OF BIRTH BY CITIZENSHIP STATUS"]
[null,"Universe: TOTAL POPULATION"]
[null,"Data Set: 2015-2019 American Community Survey 5-Year Estimates"]
[]
[null,null,"Atkinson and Gilmanton Grant",null,"Bean's Grant",null,"Bean's Purchase",null,"Berlin",null,"Cambridge",null,"Carroll",null,"Chandler's Purchase",null,"Clarksville",null,"Colebrook",null,"Columbia",null,"Crawford's Purchase",null,"Cutt's Grant",null,"Dalton",null,"Dix's Grant",null,"Dixville",null,"Dummer",null,"Errol",null,"Erving's Location",null,"Gorham",null,"Greens Grant",null,"Hadley's Purchase",null,"Jefferson",null,"Kilkenny",null,"Lancaster",null,"Low and Burbank's Grant",null,"Martin's Location",null,"Milan",null,"Millsfield",null,"Northumberland",null,"Odell",null,"Pinkham's Grant",null,"Pittsburg",null,"Randolph",null,"Sargent's Purchase",null,"Second College Grant",null,"Shelburne",null,"Stark",null,"Stewartstown",null,"Stratford",null,"Success",null,"Thompson and Meserves Purchase",null,"Wentworth's Location",null,"Whitefield"]
[null,null,"Estimate","Margin Of Error","Estimate","Margin Of Error","Estimate","Margin Of Error","Estimate","Margin Of Error","Estimate","Margin Of Error","Estimate","Margin Of Error","Estimate","Margin Of Error","Estimate","Margin Of Error","Estimate","Margin Of Error","Estimate","Margin Of Error","Estimate","Margin Of Error","Estimate","Margin Of Error","Estimate","Margin Of Error","Estimate","Margin Of Error","Estimate","Margin Of Error","Estimate","Margin Of Error","Estimate","Margin Of Error","Estimate","Margin Of Error","Estimate","Margin Of Error","Estimate","Margin Of Error","Estimate","Margin Of Error","Estimate","Margin Of Error","Estimate","Margin Of Error","Estimate","Margin Of Error","Estimate","Margin Of Error","Estimate","Margin Of Error","Estimate","Margin Of Error","Estimate","Margin Of Error","Estimate","Margin Of Error","Estimate","Margin Of Error","Estimate","Margin Of Error","Estimate","Margin Of Error","Estimate","Margin Of Error","Estimate","Margin Of Error","Estimate","Margin Of Error","Estimate","Margin Of Error","Estimate","Margin Of Error","Estimate","Margin Of Error","Estimate","Margin Of Error","Estimate","Margin Of Error","Estimate","Margin Of Error","Estimate","Margin Of Error","Estimate","Margin Of Error"]
[null,"Total:",0,11,0,11,0,11,10221,22,0,11,772,141,0,11,324,88,1908,171,633,119,0,11,0,11,906,140,0,11,11,12,306,71,205,55,0,11,2623,17,13,10,0,11,850,129,0,11,3275,20,0,11,0,11,1332,107,8,12,2322,266,10,12,11,8,740,104,365,68,11,24,0,11,408,65,606,144,976,176,630,114,0,11,0,11,26,16,2260,214]
[null,"Native:",0,11,0,11,0,11,9890,131,0,11,764,142,0,11,310,89,1801,158,611,119,0,11,0,11,900,139,0,11,9,12,299,66,204,55,0,11,2505,63,13,10,0,11,820,129,0,11,3189,53,0,11,0,11,1298,107,8,12,2266,256,10,12,11,8,698,106,345,67,11,24,0,11,402,66,600,142,899,167,611,111,0,11,0,11,26,16,2205,214]
[null,"Born in state of residence",0,11,0,11,0,11,6219,452,0,11,300,114,0,11,170,66,1079,141,395,110,0,11,0,11,407,97,0,11,1,3,196,42,123,45,0,11,1611,165,3,6,0,11,433,99,0,11,1678,278,0,11,0,11,953,104,0,11,1634,204,5,11,7,9,340,94,147,47,0,11,0,11,182,48,406,134,603,151,416,99,0,11,0,11,6,5,1225,214]
[null,"Born in other state in the United States:",0,11,0,11,0,11,3514,434,0,11,464,81,0,11,134,52,687,113,210,49,0,11,0,11,487,110,0,11,7,10,101,41,81,27,0,11,837,135,10,8,0,11,387,84,0,11,1445,272,0,11,0,11,336,55,8,12,597,135,5,11,4,7,338,70,198,42,11,24,0,11,220,47,192,51,296,74,195,59,0,11,0,11,20,15,980,164]
[null,"Northeast",0,11,0,11,0,11,2231,346,0,11,391,79,0,11,101,40,574,109,187,46,0,11,0,11,344,80,0,11,6,8,81,35,75,25,0,11,597,125,10,8,0,11,261,54,0,11,1236,269,0,11,0,11,253,47,8,12,472,111,5,11,4,7,276,57,140,33,11,24,0,11,158,36,144,41,264,70,142,48,0,11,0,11,20,15,686,128]
[null,"Midwest",0,11,0,11,0,11,369,131,0,11,16,9,0,11,4,6,33,25,8,7,0,11,0,11,47,41,0,11,0,11,3,3,0,11,0,11,48,29,0,11,0,11,53,36,0,11,130,107,0,11,0,11,14,12,0,11,38,24,0,11,0,11,34,27,22,11,0,11,0,11,15,10,12,7,6,6,2,4,0,11,0,11,0,11,80,35]
[null,"South",0,11,0,11,0,11,656,279,0,11,49,31,0,11,13,12,51,30,15,12,0,11,0,11,43,23,0,11,1,4,12,11,6,8,0,11,169,97,0,11,0,11,69,40,0,11,43,39,0,11,0,11,41,22,0,11,46,32,0,11,0,11,15,12,20,10,0,11,0,11,27,21,31,19,26,15,33,28,0,11,0,11,0,11,137,66]
[null,"West",0,11,0,11,0,11,258,130,0,11,8,6,0,11,16,22,29,28,0,11,0,11,0,11,53,34,0,11,0,11,5,4,0,11,0,11,23,25,0,11,0,11,4,5,0,11,36,33,0,11,0,11,28,19,0,11,41,33,0,11,0,11,13,11,16,10,0,11,0,11,20,11,5,6,0,11,18,13,0,11,0,11,0,11,77,53]
[null,"Born outside the United States:",0,11,0,11,0,11,157,104,0,11,0,11,0,11,6,7,35,30,6,6,0,11,0,11,6,9,0,11,1,4,2,3,0,11,0,11,57,47,0,11,0,11,0,11,0,11,66,42,0,11,0,11,9,9,0,11,35,19,0,11,0,11,20,15,0,11,0,11,0,11,0,11,2,3,0,11,0,11,0,11,0,11,0,11,0,11]
[null,"Puerto Rico",0,11,0,11,0,11,130,102,0,11,0,11,0,11,0,11,5,7,0,11,0,11,0,11,0,11,0,11,1,4,0,11,0,11,0,11,31,39,0,11,0,11,0,11,0,11,0,11,0,11,0,11,0,11,0,11,0,11,0,11,0,11,0,11,0,11,0,11,0,11,0,11,0,11,0,11,0,11,0,11,0,11,0,11,0,11]
[null,"U.S. Island Areas",0,11,0,11,0,11,0,18,0,11,0,11,0,11,0,11,0,11,0,11,0,11,0,11,0,11,0,11,0,11,0,11,0,11,0,11,0,11,0,11,0,11,0,11,0,11,0,11,0,11,0,11,0,11,0,11,0,11,0,11,0,11,0,11,0,11,0,11,0,11,0,11,0,11,0,11,0,11,0,11,0,11,0,11,0,11]
[null,"Born abroad of American parent(s)",0,11,0,11,0,11,27,28,0,11,0,11,0,11,6,7,30,29,6,6,0,11,0,11,6,9,0,11,0,11,2,3,0,11,0,11,26,22,0,11,0,11,0,11,0,11,66,42,0,11,0,11,9,9,0,11,35,19,0,11,0,11,20,15,0,11,0,11,0,11,0,11,2,3,0,11,0,11,0,11,0,11,0,11,0,11]
[null,"Foreign born:",0,11,0,11,0,11,331,132,0,11,8,9,0,11,14,13,107,73,22,14,0,11,0,11,6,7,0,11,2,4,7,9,1,2,0,11,118,62,0,11,0,11,30,19,0,11,86,49,0,11,0,11,34,20,0,11,56,37,0,11,0,11,42,28,20,14,0,11,0,11,6,5,6,6,77,36,19,14,0,11,0,11,0,11,55,29]
[null,"Naturalized U.S. citizen",0,11,0,11,0,11,233,104,0,11,4,6,0,11,5,6,75,56,10,9,0,11,0,11,3,5,0,11,0,11,7,9,0,11,0,11,86,49,0,11,0,11,30,19,0,11,48,34,0,11,0,11,29,19,0,11,29,27,0,11,0,11,28,25,8,8,0,11,0,11,4,4,4,6,45,28,6,6,0,11,0,11,0,11,40,21]
[null,"Europe",0,11,0,11,0,11,77,47,0,11,2,3,0,11,0,11,10,10,1,2,0,11,0,11,3,5,0,11,0,11,0,11,0,11,0,11,9,13,0,11,0,11,11,12,0,11,41,34,0,11,0,11,3,4,0,11,0,11,0,11,0,11,3,4,6,6,0,11,0,11,2,3,0,11,3,4,0,11,0,11,0,11,0,11,4,8]
[null,"Asia",0,11,0,11,0,11,18,26,0,11,0,11,0,11,0,11,0,11,0,11,0,11,0,11,0,11,0,11,0,11,4,7,0,11,0,11,28,40,0,11,0,11,0,11,0,11,0,11,0,11,0,11,0,11,0,11,18,24,0,11,0,11,0,11,0,11,0,11,0,11,0,11,0,11,0,11,0,11,0,11,0,11,0,11,6,8]
[null,"Africa",0,11,0,11,0,11,0,18,0,11,0,11,0,11,0,11,0,11,0,11,0,11,0,11,0,11,0,11,0,11,0,11,0,11,0,11,0,11,0,11,0,11,0,11,0,11,0,11,0,11,0,11,0,11,0,11,0,11,0,11,0,11,0,11,0,11,0,11,0,11,0,11,0,11,0,11,0,11,0,11,0,11,0,11,0,11]
[null,"Oceania",0,11,0,11,0,11,0,18,0,11,0,11,0,11,0,11,0,11,0,11,0,11,0,11,0,11,0,11,0,11,0,11,0,11,0,11,0,11,0,11,0,11,0,11,0,11,0,11,0,11,0,11,0,11,0,11,6,9,0,11,0,11,0,11,0,11,0,11,0,11,0,11,0,11,0,11,0,11,0,11,0,11,0,11,0,11]
[null,"Latin America",0,11,0,11,0,11,51,59,0,11,0,11,0,11,0,11,5,7,0,11,0,11,0,11,0,11,0,11,0,11,0,11,0,11,0,11,0,11,0,11,0,11,15,13,0,11,0,11,0,11,0,11,6,9,0,11,0,11,0,11,0,11,0,11,1,2,0,11,0,11,0,11,0,11,17,22,0,11,0,11,0,11,0,11,11,11]
[null,"Northern America",0,11,0,11,0,11,87,63,0,11,2,5,0,11,5,6,60,53,9,8,0,11,0,11,0,11,0,11,0,11,3,5,0,11,0,11,49,34,0,11,0,11,4,5,0,11,7,10,0,11,0,11,20,17,0,11,5,7,0,11,0,11,25,25,1,4,0,11,0,11,2,3,4,6,25,18,6,6,0,11,0,11,0,11,19,15]
[null,"Not a U.S. citizen",0,11,0,11,0,11,98,66,0,11,4,4,0,11,9,10,32,24,12,13,0,11,0,11,3,6,0,11,2,4,0,11,1,2,0,11,32,36,0,11,0,11,0,11,0,11,38,34,0,11,0,11,5,6,0,11,27,18,0,11,0,11,14,13,12,12,0,11,0,11,2,3,2,3,32,18,13,13,0,11,0,11,0,11,15,21]
[null,"Europe",0,11,0,11,0,11,40,42,0,11,4,4,0,11,2,3,5,8,8,12,0,11,0,11,0,11,0,11,2,4,0,11,1,2,0,11,0,11,0,11,0,11,0,11,0,11,10,16,0,11,0,11,0,11,0,11,0,11,0,11,0,11,7,11,0,11,0,11,0,11,0,11,0,11,7,11,0,11,0,11,0,11,0,11,0,11]
[null,"Asia",0,11,0,11,0,11,19,30,0,11,0,11,0,11,0,11,0,11,0,11,0,11,0,11,0,11,0,11,0,11,0,11,0,11,0,11,0,11,0,11,0,11,0,11,0,11,15,22,0,11,0,11,5,6,0,11,6,9,0,11,0,11,0,11,0,11,0,11,0,11,0,11,2,3,0,11,0,11,0,11,0,11,0,11,0,11]
[null,"Africa",0,11,0,11,0,11,0,18,0,11,0,11,0,11,0,11,0,11,0,11,0,11,0,11,0,11,0,11,0,11,0,11,0,11,0,11,0,11,0,11,0,11,0,11,0,11,0,11,0,11,0,11,0,11,0,11,0,11,0,11,0,11,0,11,6,7,0,11,0,11,0,11,0,11,0,11,0,11,0,11,0,11,0,11,1,4]
[null,"Oceania",0,11,0,11,0,11,8,13,0,11,0,11,0,11,0,11,0,11,0,11,0,11,0,11,0,11,0,11,0,11,0,11,0,11,0,11,0,11,0,11,0,11,0,11,0,11,0,11,0,11,0,11,0,11,0,11,8,12,0,11,0,11,0,11,0,11,0,11,0,11,0,11,0,11,0,11,0,11,0,11,0,11,0,11,0,11]
[null,"Latin America",0,11,0,11,0,11,17,25,0,11,0,11,0,11,0,11,0,11,0,11,0,11,0,11,0,11,0,11,0,11,0,11,0,11,0,11,0,11,0,11,0,11,0,11,0,11,13,21,0,11,0,11,0,11,0,11,1,2,0,11,0,11,4,6,0,11,0,11,0,11,0,11,0,11,0,11,0,11,0,11,0,11,0,11,1,3]
[null,"Northern America",0,11,0,11,0,11,14,15,0,11,0,11,0,11,7,10,27,22,4,5,0,11,0,11,3,6,0,11,0,11,0,11,0,11,0,11,32,36,0,11,0,11,0,11,0,11,0,11,0,11,0,11,0,11,0,11,12,12,0,11,0,11,3,4,6,10,0,11,0,11,2,3,0,11,25,19,13,13,0,11,0,11,0,11,13,21]
[]
[]
[]
[]
[]
[]
[null,"B05002. PLACE OF BIRTH BY CITIZENSHIP STATUS"]
[null,"Universe: TOTAL POPULATION"]
[null,"Data Set: 2010-2014 American Community Survey 5-Year Estimates"]
[]
[null,null,"Atkinson and Gilmanton Grant",null,"Bean's Grant",null,"Bean's Purchase",null,"Berlin",null,"Cambridge",null,"Carroll",null,"Chandler's Purchase",null,"Clarksville",null,"Colebrook",null,"Columbia",null,"Crawford's Purchase",null,"Cutt's Grant",null,"Dalton",null,"Dix's Grant",null,"Dixville",null,"Dummer",null,"Errol",null,"Erving's Location",null,"Gorham",null,"Greens Grant",null,"Hadley's Purchase",null,"Jefferson",null,"Kilkenny",null,"Lancaster",null,"Low and Burbank's Grant",null,"Martin's Location",null,"Milan",null,"Millsfield",null,"Northumberland",null,"Odell",null,"Pinkham's Grant",null,"Pittsburg",null,"Randolph",null,"Sargent's Purchase",null,"Second College Grant",null,"Shelburne",null,"Stark",null,"Stewartstown",null,"Stratford",null,"Success",null,"Thompson and Meserves Purchase",null,"Wentworth's Location",null,"Whitefield"]
[null,null,"Estimate","Margin Of Error","Estimate","Margin Of Error","Estimate","Margin Of Error","Estimate","Margin Of Error","Estimate","Margin Of Error","Estimate","Margin Of Error","Estimate","Margin Of Error","Estimate","Margin Of Error","Estimate","Margin Of Error","Estimate","Margin Of Error","Estimate","Margin Of Error","Estimate","Margin Of Error","Estimate","Margin Of Error","Estimate","Margin Of Error","Estimate","Margin Of Error","Estimate","Margin Of Error","Estimate","Margin Of Error","Estimate","Margin Of Error","Estimate","Margin Of Error","Estimate","Margin Of Error","Estimate","Margin Of Error","Estimate","Margin Of Error","Estimate","Margin Of Error","Estimate","Margin Of Error","Estimate","Margin Of Error","Estimate","Margin Of Error","Estimate","Margin Of Error","Estimate","Margin Of Error","Estimate","Margin Of Error","Estimate","Margin Of Error","Estimate","Margin Of Error","Estimate","Margin Of Error","Estimate","Margin Of Error","Estimate","Margin Of Error","Estimate","Margin Of Error","Estimate","Margin Of Error","Estimate","Margin Of Error","Estimate","Margin Of Error","Estimate","Margin Of Error","Estimate","Margin Of Error","Estimate","Margin Of Error","Estimate","Margin Of Error","Estimate","Margin Of Error"]
[null,"Total:",0,11,0,11,0,11,9710,27,17,16,991,165,0,11,315,75,2340,210,726,132,0,11,0,11,933,154,22,22,30,37,348,76,301,70,0,11,2765,15,8,17,0,11,0,11,0,11,3437,22,0,11,0,11,20,16,21,19,0,11,0,11,8,6,875,130,424,74,9,12,0,11,358,66,490,94,811,129,0,11,0,11,0,11,62,33,2134,217]
[null,"Native:",0,11,0,11,0,11,9381,126,17,16,931,171,0,11,287,70,2210,213,710,131,0,11,0,11,922,153,13,9,28,38,342,75,291,71,0,11,2643,59,8,17,0,11,0,11,0,11,3376,54,0,11,0,11,20,16,21,19,0,11,0,11,6,6,862,129,390,64,9,12,0,11,347,64,481,94,757,121,0,11,0,11,0,11,62,33,2093,217]
[null,"Born in state of residence",0,11,0,11,0,11,6894,512,15,16,327,94,0,11,175,61,1472,179,416,95,0,11,0,11,522,110,3,5,5,9,223,54,142,46,0,11,1849,163,0,11,0,11,0,11,0,11,1928,201,0,11,0,11,13,16,19,18,0,11,0,11,5,6,545,98,185,52,9,12,0,11,192,62,295,74,469,96,0,11,0,11,0,11,32,21,1000,136]
[null,"Born in other state in the United States:",0,11,0,11,0,11,2435,472,2,3,596,131,0,11,108,31,722,131,290,73,0,11,0,11,400,100,6,5,20,30,119,36,149,41,0,11,794,153,8,17,0,11,0,11,0,11,1429,191,0,11,0,11,5,7,0,11,0,11,0,11,1,4,315,78,197,32,0,11,0,11,151,32,175,52,281,72,0,11,0,11,0,11,30,23,1051,165]
[null,"Northeast",0,11,0,11,0,11,1756,296,2,3,432,115,0,11,88,27,557,111,234,63,0,11,0,11,336,84,6,5,19,30,94,28,142,40,0,11,589,126,8,17,0,11,0,11,0,11,1130,173,0,11,0,11,5,7,0,11,0,11,0,11,1,4,269,68,154,30,0,11,0,11,126,28,114,35,226,68,0,11,0,11,0,11,30,23,833,153]
[null,"Midwest",0,11,0,11,0,11,234,288,0,11,34,28,0,11,4,5,44,27,24,13,0,11,0,11,17,11,0,11,1,3,12,11,7,7,0,11,22,19,0,11,0,11,0,11,0,11,175,100,0,11,0,11,0,11,0,11,0,11,0,11,0,11,9,9,16,8,0,11,0,11,4,5,7,8,17,18,0,11,0,11,0,11,0,11,80,58]
[null,"South",0,11,0,11,0,11,256,123,0,11,82,61,0,11,0,11,104,50,21,15,0,11,0,11,5,5,0,11,0,11,13,14,0,11,0,11,117,71,0,11,0,11,0,11,0,11,104,68,0,11,0,11,0,11,0,11,0,11,0,11,0,11,33,19,20,12,0,11,0,11,14,10,42,32,21,14,0,11,0,11,0,11,0,11,102,51]
[null,"West",0,11,0,11,0,11,189,113,0,11,48,62,0,11,16,14,17,15,11,9,0,11,0,11,42,33,0,11,0,11,0,11,0,11,0,11,66,50,0,11,0,11,0,11,0,11,20,22,0,11,0,11,0,11,0,11,0,11,0,11,0,11,4,7,7,9,0,11,0,11,7,8,12,11,17,15,0,11,0,11,0,11,0,11,36,30]
[null,"Born outside the United States:",0,11,0,11,0,11,52,42,0,11,8,11,0,11,4,4,16,14,4,5,0,11,0,11,0,11,4,6,3,6,0,11,0,11,0,11,0,11,0,11,0,11,0,11,0,11,19,22,0,11,0,11,2,3,2,3,0,11,0,11,0,11,2,4,8,12,0,11,0,11,4,4,11,11,7,17,0,11,0,11,0,11,0,11,42,32]
[null,"Puerto Rico",0,11,0,11,0,11,3,6,0,11,2,4,0,11,0,11,0,11,0,11,0,11,0,11,0,11,0,11,0,11,0,11,0,11,0,11,0,11,0,11,0,11,0,11,0,11,0,11,0,11,0,11,0,11,0,11,0,11,0,11,0,11,0,11,0,11,0,11,0,11,0,11,0,11,0,11,0,11,0,11,0,11,0,11,13,19]
[null,"U.S. Island Areas",0,11,0,11,0,11,0,15,0,11,0,11,0,11,0,11,0,11,0,11,0,11,0,11,0,11,0,11,0,11,0,11,0,11,0,11,0,11,0,11,0,11,0,11,0,11,0,11,0,11,0,11,0,11,0,11,0,11,0,11,0,11,0,11,0,11,0,11,0,11,0,11,0,11,0,11,0,11,0,11,0,11,0,11,0,11]
[null,"Born abroad of American parent(s)",0,11,0,11,0,11,49,42,0,11,6,10,0,11,4,4,16,14,4,5,0,11,0,11,0,11,4,6,3,6,0,11,0,11,0,11,0,11,0,11,0,11,0,11,0,11,19,22,0,11,0,11,2,3,2,3,0,11,0,11,0,11,2,4,8,12,0,11,0,11,4,4,11,11,7,17,0,11,0,11,0,11,0,11,29,24]
[null,"Foreign born:",0,11,0,11,0,11,329,126,0,11,60,57,0,11,28,18,130,68,16,11,0,11,0,11,11,15,9,20,2,4,6,6,10,9,0,11,122,57,0,11,0,11,0,11,0,11,61,53,0,11,0,11,0,11,0,11,0,11,0,11,2,6,13,11,34,27,0,11,0,11,11,8,9,9,54,41,0,11,0,11,0,11,0,11,41,33]
[null,"Naturalized U.S. citizen",0,11,0,11,0,11,203,103,0,11,3,5,0,11,27,17,64,42,14,11,0,11,0,11,11,15,9,20,2,4,6,6,4,7,0,11,82,48,0,11,0,11,0,11,0,11,52,56,0,11,0,11,0,11,0,11,0,11,0,11,0,11,13,11,28,24,0,11,0,11,8,7,9,9,28,23,0,11,0,11,0,11,0,11,17,15]
[null,"Not a U.S. citizen",0,11,0,11,0,11,126,82,0,11,57,57,0,11,1,2,66,42,2,4,0,11,0,11,0,11,0,11,0,11,0,11,6,7,0,11,40,30,0,11,0,11,0,11,0,11,9,13,0,11,0,11,0,11,0,11,0,11,0,11,2,6,0,11,6,7,0,11,0,11,3,4,0,11,26,32,0,11,0,11,0,11,0,11,24,29]
[]
[]
[]
[null,"B05002. PLACE OF BIRTH BY CITIZENSHIP STATUS"]
[null,"Universe: TOTAL POPULATION"]
[null,"Data Set: 2005-2009 American Community Survey 5-Year Estimates"]
[]
[null,null,"Atkinson and Gilmanton Grant",null,"Bean's Grant",null,"Bean's Purchase",null,"Berlin",null,"Cambridge",null,"Carroll",null,"Chandler's Purchase",null,"Clarksville",null,"Colebrook",null,"Columbia",null,"Crawford's Purchase",null,"Cutt's Grant",null,"Dalton",null,"Dix's Grant",null,"Dixville",null,"Dummer",null,"Errol",null,"Erving's Location",null,"Gorham",null,"Greens Grant",null,"Hadley's Purchase",null,"Jefferson",null,"Kilkenny",null,"Lancaster",null,"Low and Burbank's Grant",null,"Martin's Location",null,"Milan",null,"Millsfield",null,"Northumberland",null,"Odell",null,"Pinkham's Grant",null,"Pittsburg",null,"Randolph",null,"Sargent's Purchase",null,"Second College Grant",null,"Shelburne",null,"Stark",null,"Stewartstown",null,"Stratford",null,"Success",null,"Thompson and Meserves Purchase",null,"Wentworth's Location",null,"Whitefield"]
[null,null,"Estimate","Margin Of Error","Estimate","Margin Of Error","Estimate","Margin Of Error","Estimate","Margin Of Error","Estimate","Margin Of Error","Estimate","Margin Of Error","Estimate","Margin Of Error","Estimate","Margin Of Error","Estimate","Margin Of Error","Estimate","Margin Of Error","Estimate","Margin Of Error","Estimate","Margin Of Error","Estimate","Margin Of Error","Estimate","Margin Of Error","Estimate","Margin Of Error","Estimate","Margin Of Error","Estimate","Margin Of Error","Estimate","Margin Of Error","Estimate","Margin Of Error","Estimate","Margin Of Error","Estimate","Margin Of Error","Estimate","Margin Of Error","Estimate","Margin Of Error","Estimate","Margin Of Error","Estimate","Margin Of Error","Estimate","Margin Of Error","Estimate","Margin Of Error","Estimate","Margin Of Error","Estimate","Margin Of Error","Estimate","Margin Of Error","Estimate","Margin Of Error","Estimate","Margin Of Error","Estimate","Margin Of Error","Estimate","Margin Of Error","Estimate","Margin Of Error","Estimate","Margin Of Error","Estimate","Margin Of Error","Estimate","Margin Of Error","Estimate","Margin Of Error","Estimate","Margin Of Error","Estimate","Margin Of Error","Estimate","Margin Of Error","Estimate","Margin Of Error"]
[null,"Total:",0,114,0,114,0,114,9673,21,0,114,568,113,0,114,330,79,2141,252,841,189,0,114,0,114,1158,145,0,114,125,169,351,127,253,71,0,114,2816,26,0,114,0,114,937,108,0,114,3264,17,0,114,0,114,1271,112,4,5,2249,245,0,114,0,114,773,138,346,83,0,114,0,114,427,81,540,139,969,185,1013,190,0,114,0,114,43,25,2125,235]
[null,"Native:",0,114,0,114,0,114,9313,147,0,114,538,102,0,114,310,80,2050,246,818,190,0,114,0,114,1131,146,0,114,125,169,346,127,244,71,0,114,2739,64,0,114,0,114,866,101,0,114,3220,45,0,114,0,114,1255,112,4,5,2207,245,0,114,0,114,737,137,339,83,0,114,0,114,420,82,535,138,886,180,982,190,0,114,0,114,43,25,2090,231]
[null,"Born in state of residence",0,114,0,114,0,114,6603,383,0,114,132,45,0,114,206,62,1123,204,532,142,0,114,0,114,671,111,0,114,35,37,266,122,145,51,0,114,2023,160,0,114,0,114,508,95,0,114,1815,237,0,114,0,114,911,97,4,5,1518,214,0,114,0,114,460,114,142,56,0,114,0,114,175,49,405,114,647,148,643,151,0,114,0,114,15,16,1009,173]
[null,"Born in other state in the United States:",0,114,0,114,0,114,2558,369,0,114,400,90,0,114,100,40,884,191,284,93,0,114,0,114,452,90,0,114,90,134,80,21,99,38,0,114,710,152,0,114,0,114,354,65,0,114,1344,235,0,114,0,114,337,64,0,114,684,158,0,114,0,114,277,68,196,53,0,114,0,114,242,70,126,47,239,74,334,97,0,114,0,114,28,20,1077,150]
[null,"Northeast",0,114,0,114,0,114,1916,355,0,114,361,90,0,114,85,37,787,186,273,90,0,114,0,114,404,88,0,114,90,134,67,17,89,35,0,114,547,124,0,114,0,114,265,45,0,114,1034,207,0,114,0,114,297,56,0,114,595,154,0,114,0,114,241,59,149,45,0,114,0,114,164,42,104,41,221,72,253,75,0,114,0,114,24,19,879,122]
[null,"Midwest",0,114,0,114,0,114,162,74,0,114,7,7,0,114,0,114,18,17,11,14,0,114,0,114,21,15,0,114,0,114,5,6,4,5,0,114,86,54,0,114,0,114,35,27,0,114,46,39,0,114,0,114,15,12,0,114,21,19,0,114,0,114,10,11,11,11,0,114,0,114,40,47,4,5,7,9,20,18,0,114,0,114,0,114,24,21]
[null,"South",0,114,0,114,0,114,365,121,0,114,21,20,0,114,3,4,66,48,0,114,0,114,0,114,14,11,0,114,0,114,6,5,6,11,0,114,56,60,0,114,0,114,42,25,0,114,215,109,0,114,0,114,17,12,0,114,53,36,0,114,0,114,21,15,17,12,0,114,0,114,31,21,15,17,11,12,26,30,0,114,0,114,0,114,107,61]
[null,"West",0,114,0,114,0,114,115,74,0,114,11,15,0,114,12,13,13,15,0,114,0,114,0,114,13,9,0,114,0,114,2,3,0,114,0,114,21,24,0,114,0,114,12,10,0,114,49,38,0,114,0,114,8,7,0,114,15,16,0,114,0,114,5,8,19,15,0,114,0,114,7,11,3,5,0,114,35,33,0,114,0,114,4,6,67,36]
[null,"Born outside the United States:",0,114,0,114,0,114,152,90,0,114,6,9,0,114,4,6,43,42,2,4,0,114,0,114,8,11,0,114,0,114,0,114,0,114,0,114,6,10,0,114,0,114,4,5,0,114,61,38,0,114,0,114,7,7,0,114,5,7,0,114,0,114,0,114,1,4,0,114,0,114,3,5,4,6,0,114,5,10,0,114,0,114,0,114,4,6]
[null,"Puerto Rico",0,114,0,114,0,114,70,74,0,114,0,114,0,114,0,114,0,114,0,114,0,114,0,114,2,3,0,114,0,114,0,114,0,114,0,114,6,10,0,114,0,114,0,114,0,114,4,7,0,114,0,114,0,114,0,114,5,7,0,114,0,114,0,114,0,114,0,114,0,114,0,114,0,114,0,114,0,114,0,114,0,114,0,114,0,114]
[null,"U.S. Island Areas",0,114,0,114,0,114,0,114,0,114,0,114,0,114,0,114,0,114,0,114,0,114,0,114,0,114,0,114,0,114,0,114,0,114,0,114,0,114,0,114,0,114,0,114,0,114,24,21,0,114,0,114,0,114,0,114,0,114,0,114,0,114,0,114,0,114,0,114,0,114,0,114,0,114,0,114,0,114,0,114,0,114,0,114,0,114]
[null,"Born abroad of American parent(s)",0,114,0,114,0,114,82,47,0,114,6,9,0,114,4,6,43,42,2,4,0,114,0,114,6,11,0,114,0,114,0,114,0,114,0,114,0,114,0,114,0,114,4,5,0,114,33,33,0,114,0,114,7,7,0,114,0,114,0,114,0,114,0,114,1,4,0,114,0,114,3,5,4,6,0,114,5,10,0,114,0,114,0,114,4,6]
[null,"Foreign born:",0,114,0,114,0,114,360,143,0,114,30,30,0,114,20,13,91,49,23,20,0,114,0,114,27,16,0,114,0,114,5,6,9,9,0,114,77,68,0,114,0,114,71,54,0,114,44,41,0,114,0,114,16,13,0,114,42,31,0,114,0,114,36,23,7,7,0,114,0,114,7,7,5,8,83,37,31,21,0,114,0,114,0,114,35,29]
[null,"Naturalized U.S. citizen",0,114,0,114,0,114,244,133,0,114,27,29,0,114,18,13,30,33,5,8,0,114,0,114,16,14,0,114,0,114,5,6,3,5,0,114,20,20,0,114,0,114,9,7,0,114,33,36,0,114,0,114,11,10,0,114,16,15,0,114,0,114,36,23,4,5,0,114,0,114,6,7,0,114,53,30,11,15,0,114,0,114,0,114,18,16]
[null,"Not a U.S. citizen",0,114,0,114,0,114,116,61,0,114,3,4,0,114,2,4,61,49,18,19,0,114,0,114,11,11,0,114,0,114,0,114,6,8,0,114,57,68,0,114,0,114,62,52,0,114,11,16,0,114,0,114,5,6,0,114,26,25,0,114,0,114,0,114,3,5,0,114,0,114,1,2,5,8,30,25,20,14,0,114,0,114,0,114,17,22]

{"sheet":"ACS_Table_B07003","index":61,"n_rows":89,"n_cols":88,"rows_kept":89,"cut":false,"hidden":true,"merged":[]}
[null,"B07003. GEOGRAPHICAL MOBILITY IN THE PAST YEAR BY SEX FOR CURRENT RESIDENCE IN THE UNITED STATES - Universe:  POPULATION 1 YEAR AND OVER IN THE UNITED STATES"]
[null,"Data Set: 2015-2019 American Community Survey 5-Year Estimates"]
[null,"Survey: American Community Survey"]
[]
[null,null,"Atkinson and Gilmanton Grant",null,"Bean's Grant",null,"Bean's Purchase",null,"Berlin",null,"Cambridge",null,"Carroll",null,"Chandler's Purchase",null,"Clarksville",null,"Colebrook",null,"Columbia",null,"Crawford's Purchase",null,"Cutt's Grant",null,"Dalton",null,"Dix's Grant",null,"Dixville",null,"Dummer",null,"Errol",null,"Erving's Location",null,"Gorham",null,"Greens Grant",null,"Hadley's Purchase",null,"Jefferson",null,"Kilkenny",null,"Lancaster",null,"Low and Burbank's Grant",null,"Martin's Location",null,"Milan",null,"Millsfield",null,"Northumberland",null,"Odell",null,"Pinkham's Grant",null,"Pittsburg",null,"Randolph",null,"Sargent's Purchase",null,"Second College Grant",null,"Shelburne",null,"Stark",null,"Stewartstown",null,"Stratford",null,"Success",null,"Thompson and Meserves Purchase",null,"Wentworth's Location",null,"Whitefield"]
[null,null,"Estimate","Margin Of Error","Estimate","Margin Of Error","Estimate","Margin Of Error","Estimate","Margin Of Error","Estimate","Margin Of Error","Estimate","Margin Of Error","Estimate","Margin Of Error","Estimate","Margin Of Error","Estimate","Margin Of Error","Estimate","Margin Of Error","Estimate","Margin Of Error","Estimate","Margin Of Error","Estimate","Margin Of Error","Estimate","Margin Of Error","Estimate","Margin Of Error","Estimate","Margin Of Error","Estimate","Margin Of Error","Estimate","Margin Of Error","Estimate","Margin Of Error","Estimate","Margin Of Error","Estimate","Margin Of Error","Estimate","Margin Of Error","Estimate","Margin Of Error","Estimate","Margin Of Error","Estimate","Margin Of Error","Estimate","Margin Of Error","Estimate","Margin Of Error","Estimate","Margin Of Error","Estimate","Margin Of Error","Estimate","Margin Of Error","Estimate","Margin Of Error","Estimate","Margin Of Error","Estimate","Margin Of Error","Estimate","Margin Of Error","Estimate","Margin Of Error","Estimate","Margin Of Error","Estimate","Margin Of Error","Estimate","Margin Of Error","Estimate","Margin Of Error","Estimate","Margin Of Error","Estimate","Margin Of Error","Estimate","Margin Of Error","Estimate","Margin Of Error"]
[null,"Total:",0,11,0,11,0,11,10086,64,0,11,759,137,0,11,324,88,1908,171,633,119,0,11,0,11,900,140,0,11,11,12,305,70,205,55,0,11,2615,22,13,10,0,11,850,129,0,11,3275,20,0,11,0,11,1325,107,8,12,2314,265,10,12,11,14,740,104,365,68,11,24,0,11,404,63,606,144,976,176,630,114,0,11,0,11,26,16,2250,214]
[null,"Male",0,11,0,11,0,11,5654,171,0,11,447,91,0,11,176,51,925,109,335,71,0,11,0,11,432,77,0,11,9,10,170,48,109,35,0,11,1413,76,13,10,0,11,393,68,0,11,1613,133,0,11,0,11,710,73,4,6,1171,151,5,11,11,14,407,63,186,38,0,11,0,11,210,39,291,67,489,94,349,73,0,11,0,11,19,12,1088,163]
[null,"Female",0,11,0,11,0,11,4432,178,0,11,312,64,0,11,148,44,983,116,298,61,0,11,0,11,468,82,0,11,2,6,135,29,96,33,0,11,1202,78,0,11,0,11,457,75,0,11,1662,135,0,11,0,11,615,55,4,6,1143,146,5,11,0,11,333,53,179,40,11,24,0,11,194,34,315,84,487,108,281,61,0,11,0,11,7,6,1162,136]
[null,"Same house 1 year ago:",0,11,0,11,0,11,8085,396,0,11,628,133,0,11,311,86,1761,179,585,118,0,11,0,11,778,138,0,11,5,7,297,70,185,52,0,11,2422,100,8,10,0,11,795,129,0,11,2784,173,0,11,0,11,1181,125,8,12,2065,267,5,11,7,8,658,108,327,66,0,11,0,11,357,65,554,139,801,143,560,107,0,11,0,11,23,15,1819,223]
[null,"Male",0,11,0,11,0,11,4308,253,0,11,353,77,0,11,171,49,855,107,296,67,0,11,0,11,377,76,0,11,5,7,165,48,103,36,0,11,1268,87,8,10,0,11,352,63,0,11,1311,131,0,11,0,11,622,80,4,6,1048,146,5,11,7,8,372,63,168,37,0,11,0,11,183,42,261,62,408,80,316,68,0,11,0,11,16,10,875,151]
[null,"Female",0,11,0,11,0,11,3777,266,0,11,275,65,0,11,140,44,906,120,289,61,0,11,0,11,401,82,0,11,0,11,132,28,82,28,0,11,1154,89,0,11,0,11,443,77,0,11,1473,152,0,11,0,11,559,61,4,6,1017,147,0,11,0,11,286,57,159,37,0,11,0,11,174,35,293,83,393,85,244,57,0,11,0,11,7,6,944,125]
[null,"Moved within same county:",0,11,0,11,0,11,1119,397,0,11,37,37,0,11,5,5,71,51,30,31,0,11,0,11,10,12,0,11,0,11,2,3,16,24,0,11,99,63,2,4,0,11,29,30,0,11,222,134,0,11,0,11,94,63,0,11,108,55,0,11,4,8,40,28,22,14,0,11,0,11,17,26,16,13,68,69,34,26,0,11,0,11,3,4,165,83]
[null,"Male",0,11,0,11,0,11,712,247,0,11,18,19,0,11,2,3,19,22,21,25,0,11,0,11,10,12,0,11,0,11,0,11,4,6,0,11,78,53,2,4,0,11,26,29,0,11,80,58,0,11,0,11,57,40,0,11,47,37,0,11,4,8,10,8,13,11,0,11,0,11,12,19,13,10,18,21,18,16,0,11,0,11,3,4,77,48]
[null,"Female",0,11,0,11,0,11,407,182,0,11,19,18,0,11,3,4,52,41,9,9,0,11,0,11,0,11,0,11,0,11,2,3,12,19,0,11,21,22,0,11,0,11,3,5,0,11,142,90,0,11,0,11,37,31,0,11,61,36,0,11,0,11,30,26,9,9,0,11,0,11,5,8,3,5,50,52,16,21,0,11,0,11,0,11,88,53]
[null,"Moved from different county within same state:",0,11,0,11,0,11,393,158,0,11,17,11,0,11,0,11,44,36,11,14,0,11,0,11,48,47,0,11,0,11,3,4,0,11,0,11,66,61,0,11,0,11,15,20,0,11,46,53,0,11,0,11,26,28,0,11,56,73,5,11,0,11,30,21,1,3,0,11,0,11,15,19,0,11,37,32,3,5,0,11,0,11,0,11,185,111]
[null,"Male",0,11,0,11,0,11,289,134,0,11,10,6,0,11,0,11,25,21,11,14,0,11,0,11,22,24,0,11,0,11,3,4,0,11,0,11,49,51,0,11,0,11,11,15,0,11,34,41,0,11,0,11,20,26,0,11,38,48,0,11,0,11,22,19,0,11,0,11,0,11,7,8,0,11,19,20,3,5,0,11,0,11,0,11,102,67]
[null,"Female",0,11,0,11,0,11,104,66,0,11,7,7,0,11,0,11,19,19,0,11,0,11,0,11,26,26,0,11,0,11,0,11,0,11,0,11,17,18,0,11,0,11,4,5,0,11,12,15,0,11,0,11,6,6,0,11,18,25,5,11,0,11,8,6,1,3,0,11,0,11,8,12,0,11,18,21,0,11,0,11,0,11,0,11,83,53]
[null,"Moved from different state:",0,11,0,11,0,11,488,199,0,11,77,60,0,11,8,12,29,31,7,8,0,11,0,11,64,86,0,11,6,8,3,3,4,6,0,11,28,43,3,6,0,11,11,10,0,11,223,128,0,11,0,11,24,18,0,11,85,56,0,11,0,11,12,10,13,10,11,24,0,11,15,12,36,30,63,63,33,21,0,11,0,11,0,11,78,70]
[null,"Male",0,11,0,11,0,11,344,146,0,11,66,60,0,11,3,4,23,27,7,8,0,11,0,11,23,35,0,11,4,5,2,3,2,3,0,11,18,27,3,6,0,11,4,5,0,11,188,111,0,11,0,11,11,8,0,11,38,29,0,11,0,11,3,6,3,3,0,11,0,11,8,7,17,14,44,48,12,9,0,11,0,11,0,11,31,34]
[null,"Female",0,11,0,11,0,11,144,96,0,11,11,6,0,11,5,8,6,9,0,11,0,11,0,11,41,52,0,11,2,6,1,2,2,4,0,11,10,16,0,11,0,11,7,6,0,11,35,31,0,11,0,11,13,11,0,11,47,30,0,11,0,11,9,9,10,9,11,24,0,11,7,6,19,19,19,21,21,16,0,11,0,11,0,11,47,55]
[null,"Moved from abroad:",0,11,0,11,0,11,1,2,0,11,0,11,0,11,0,11,3,5,0,11,0,11,0,11,0,11,0,11,0,11,0,11,0,11,0,11,0,11,0,11,0,11,0,11,0,11,0,11,0,11,0,11,0,11,0,11,0,11,0,11,0,11,0,11,2,3,0,11,0,11,0,11,0,11,7,11,0,11,0,11,0,11,0,11,3,5]
[null,"Male",0,11,0,11,0,11,1,2,0,11,0,11,0,11,0,11,3,5,0,11,0,11,0,11,0,11,0,11,0,11,0,11,0,11,0,11,0,11,0,11,0,11,0,11,0,11,0,11,0,11,0,11,0,11,0,11,0,11,0,11,0,11,0,11,2,3,0,11,0,11,0,11,0,11,0,11,0,11,0,11,0,11,0,11,3,5]
[null,"Female",0,11,0,11,0,11,0,18,0,11,0,11,0,11,0,11,0,11,0,11,0,11,0,11,0,11,0,11,0,11,0,11,0,11,0,11,0,11,0,11,0,11,0,11,0,11,0,11,0,11,0,11,0,11,0,11,0,11,0,11,0,11,0,11,0,11,0,11,0,11,0,11,0,11,7,11,0,11,0,11,0,11,0,11,0,11]
[]
[null,"Calculated B07003. GEOGRAPHICAL MOBILITY IN THE PAST YEAR BY SEX FOR CURRENT RESIDENCE IN THE UNITED STATES "]
[null,null,"Atkinson and Gilmanton Grant",null,"Bean's Grant",null,"Bean's Purchase",null,"Berlin",null,"Cambridge",null,"Carroll",null,"Chandler's Purchase",null,"Clarksville",null,"Colebrook",null,"Columbia",null,"Crawford's Purchase",null,"Cutt's Grant",null,"Dalton",null,"Dix's Grant",null,"Dixville",null,"Dummer",null,"Errol",null,"Erving's Location",null,"Gorham",null,"Greens Grant",null,"Hadley's Purchase",null,"Jefferson",null,"Kilkenny",null,"Lancaster",null,"Low and Burbank's Grant",null,"Martin's Location",null,"Milan",null,"Millsfield",null,"Northumberland",null,"Odell",null,"Pinkham's Grant",null,"Pittsburg",null,"Randolph",null,"Sargent's Purchase",null,"Second College Grant",null,"Shelburne",null,"Stark",null,"Stewartstown",null,"Stratford",null,"Success",null,"Thompson and Meserves Purchase",null,"Wentworth's Location",null,"Whitefield"]
[null,null,"Estimate","Margin Of Error","Estimate","Margin Of Error","Estimate","Margin Of Error","Estimate","Margin Of Error","Estimate","Margin Of Error","Estimate","Margin Of Error","Estimate","Margin Of Error","Estimate","Margin Of Error","Estimate","Margin Of Error","Estimate","Margin Of Error","Estimate","Margin Of Error","Estimate","Margin Of Error","Estimate","Margin Of Error","Estimate","Margin Of Error","Estimate","Margin Of Error","Estimate","Margin Of Error","Estimate","Margin Of Error","Estimate","Margin Of Error","Estimate","Margin Of Error","Estimate","Margin Of Error","Estimate","Margin Of Error","Estimate","Margin Of Error","Estimate","Margin Of Error","Estimate","Margin Of Error","Estimate","Margin Of Error","Estimate","Margin Of Error","Estimate","Margin Of Error","Estimate","Margin Of Error","Estimate","Margin Of Error","Estimate","Margin Of Error","Estimate","Margin Of Error","Estimate","Margin Of Error","Estimate","Margin Of Error","Estimate","Margin Of Error","Estimate","Margin Of Error","Estimate","Margin Of Error","Estimate","Margin Of Error","Estimate","Margin Of Error","Estimate","Margin Of Error","Estimate","Margin Of Error","Estimate","Margin Of Error","Estimate","Margin Of Error","Estimate","Margin Of Error"]
[]
[null,"  Total:",{"$f":"C7","v":0},{"$f":"D7","v":11},{"$f":"E7","v":0},11,0,11,10086,64,0,11,759,137,0,11,324,88,1908,171,{"$f":"U7","v":633},119,0,11,0,11,900,140,0,11,11,12,305,70,205,55,0,11,2615,22,13,10,0,11,850,129,0,11,3275,20,0,11,0,11,1325,107,8,12,2314,265,10,12,11,14,740,104,365,68,11,24,0,11,404,63,606,144,976,176,630,114,0,11,0,11,{"$f":"CG7","v":26},16,2250,214]
[null,"    Same house ",{"$f":"C10","v":0},{"$f":"D10","v":11},{"$f":"E10","v":0},11,0,11,8085,396,0,11,628,133,0,11,311,86,1761,179,{"$f":"U10","v":585},118,0,11,0,11,778,138,0,11,5,7,297,70,185,52,0,11,2422,100,8,10,0,11,795,129,0,11,2784,173,0,11,0,11,1181,125,8,12,2065,267,5,11,7,8,658,108,327,66,0,11,0,11,357,65,554,139,801,143,560,107,0,11,0,11,{"$f":"CG10","v":23},15,1819,223]
[null,"    Different house 2",{"$f":"C13+C16+C19+C22","v":0},{"$f":"SQRT((D13^2)+(D16^2)+(D19^2)+(D22^2))","v":22},{"$f":"E13+E16+E19+E22","v":0},{"$f":"SQRT((F13^2)+(F16^2)+(F19^2)+(F22^2))","v":22},{"$f":"G13+G16+G19+G22","v":0},{"$f":"SQRT((H13^2)+(H16^2)+(H19^2)+(H22^2))","v":22},{"$f":"I13+I16+I19+I22","v":2001},{"$f":"SQRT((J13^2)+(J16^2)+(J19^2)+(J22^2))","v":471.35761370746945},{"$f":"K13+K16+K19+K22","v":0},{"$f":"SQRT((L13^2)+(L16^2)+(L19^2)+(L22^2))","v":22},{"$f":"M13+M16+M19+M22","v":131},{"$f":"SQRT((N13^2)+(N16^2)+(N19^2)+(N22^2))","v":72.187256493095788},{"$f":"O13+O16+O19+O22","v":0},{"$f":"SQRT((P13^2)+(P16^2)+(P19^2)+(P22^2))","v":22},{"$f":"Q13+Q16+Q19+Q22","v":13},{"$f":"SQRT((R13^2)+(R16^2)+(R19^2)+(R22^2))","v":20.273134932713294},{"$f":"S13+S16+S19+S22","v":147},{"$f":"SQRT((T13^2)+(T16^2)+(T19^2)+(T22^2))","v":69.878465924775426},{"$f":"U13+U16+U19+U22","v":48},{"$f":"SQRT((V13^2)+(V16^2)+(V19^2)+(V22^2))","v":36.633318168028403},{"$f":"W13+W16+W19+W22","v":0},{"$f":"SQRT((X13^2)+(X16^2)+(X19^2)+(X22^2))","v":22},{"$f":"Y13+Y16+Y19+Y22","v":0},{"$f":"SQRT((Z13^2)+(Z16^2)+(Z19^2)+(Z22^2))","v":22},{"$f":"AA13+AA16+AA19+AA22","v":122},{"$f":"SQRT((AB13^2)+(AB16^2)+(AB19^2)+(AB22^2))","v":99.347873656158342},{"$f":"AC13+AC16+AC19+AC22","v":0},{"$f":"SQRT((AD13^2)+(AD16^2)+(AD19^2)+(AD22^2))","v":22},{"$f":"AE13+AE16+AE19+AE22","v":6},{"$f":"SQRT((AF13^2)+(AF16^2)+(AF19^2)+(AF22^2))","v":20.663978319771825},{"$f":"AG13+AG16+AG19+AG22","v":8},{"$f":"SQRT((AH13^2)+(AH16^2)+(AH19^2)+(AH22^2))","v":12.449899597988733},{"$f":"AI13+AI16+AI19+AI22","v":20},{"$f":"SQRT((AJ13^2)+(AJ16^2)+(AJ19^2)+(AJ22^2))","v":29.223278392404914},{"$f":"AK13+AK16+AK19+AK22","v":0},{"$f":"SQRT((AL13^2)+(AL16^2)+(AL19^2)+(AL22^2))","v":22},{"$f":"AM13+AM16+AM19+AM22","v":193},{"$f":"SQRT((AN13^2)+(AN16^2)+(AN19^2)+(AN22^2))","v":98.285299002444916},{"$f":"AO13+AO16+AO19+AO22","v":5},{"$f":"SQRT((AP13^2)+(AP16^2)+(AP19^2)+(AP22^2))","v":17.146428199482248},{"$f":"AQ13+AQ16+AQ19+AQ22","v":0},{"$f":"SQRT((AR13^2)+(AR16^2)+(AR19^2)+(AR22^2))","v":22},{"$f":"AS13+AS16+AS19+AS22","v":55},{"$f":"SQRT((AT13^2)+(AT16^2)+(AT19^2)+(AT22^2))","v":39},{"$f":"AU13+AU16+AU19+AU22","v":0},{"$f":"SQRT((AV13^2)+(AV16^2)+(AV19^2)+(AV22^2))","v":22},{"$f":"AW13+AW16+AW19+AW22","v":491},{"$f":"SQRT((AX13^2)+(AX16^2)+(AX19^2)+(AX22^2))","v":193.05439647933429},{"$f":"AY13+AY16+AY19+AY22","v":0},{"$f":"SQRT((AZ13^2)+(AZ16^2)+(AZ19^2)+(AZ22^2))","v":22},{"$f":"BA13+BA16+BA19+BA22","v":0},{"$f":"SQRT((BB13^2)+(BB16^2)+(BB19^2)+(BB22^2))","v":22},{"$f":"BC13+BC16+BC19+BC22","v":144},{"$f":"SQRT((BD13^2)+(BD16^2)+(BD19^2)+(BD22^2))","v":72.09715667070374},{"$f":"BE13+BE16+BE19+BE22","v":0},{"$f":"SQRT((BF13^2)+(BF16^2)+(BF19^2)+(BF22^2))","v":22},{"$f":"BG13+BG16+BG19+BG22","v":249},{"$f":"SQRT((BH13^2)+(BH16^2)+(BH19^2)+(BH22^2))","v":107.75435026020992},{"$f":"BI13+BI16+BI19+BI22","v":5},{"$f":"SQRT((BJ13^2)+(BJ16^2)+(BJ19^2)+(BJ22^2))","v":22},{"$f":"BK13+BK16+BK19+BK22","v":4},{"$f":"SQRT((BL13^2)+(BL16^2)+(BL19^2)+(BL22^2))","v":20.663978319771825},{"$f":"BM13+BM16+BM19+BM22","v":82},{"$f":"SQRT((BN13^2)+(BN16^2)+(BN19^2)+(BN22^2))","v":38.026306683663087},{"$f":"BO13+BO16+BO19+BO22","v":38},{"$f":"SQRT((BP13^2)+(BP16^2)+(BP19^2)+(BP22^2))","v":17.720045146669349},{"$f":"BQ13+BQ16+BQ19+BQ22","v":11},{"$f":"SQRT((BR13^2)+(BR16^2)+(BR19^2)+(BR22^2))","v":30.643106892089126},{"$f":"BS13+BS16+BS19+BS22","v":0},{"$f":"SQRT((BT13^2)+(BT16^2)+(BT19^2)+(BT22^2))","v":22},{"$f":"BU13+BU16+BU19+BU22","v":47},{"$f":"SQRT((BV13^2)+(BV16^2)+(BV19^2)+(BV22^2))","v":36.083237105337432},{"$f":"BW13+BW16+BW19+BW22","v":52},{"$f":"SQRT((BX13^2)+(BX16^2)+(BX19^2)+(BX22^2))","v":36.207733980463345},{"$f":"BY13+BY16+BY19+BY22","v":175},{"$f":"SQRT((BZ13^2)+(BZ16^2)+(BZ19^2)+(BZ22^2))","v":99.37303457175895},{"$f":"CA13+CA16+CA19+CA22","v":70},{"$f":"SQRT((CB13^2)+(CB16^2)+(CB19^2)+(CB22^2))","v":35.538711287833721},{"$f":"CC13+CC16+CC19+CC22","v":0},{"$f":"SQRT((CD13^2)+(CD16^2)+(CD19^2)+(CD22^2))","v":22},{"$f":"CE13+CE16+CE19+CE22","v":0},{"$f":"SQRT((CF13^2)+(CF16^2)+(CF19^2)+(CF22^2))","v":22},{"$f":"CG13+CG16+CG19+CG22","v":3},{"$f":"SQRT((CH13^2)+(CH16^2)+(CH19^2)+(CH22^2))","v":19.467922333931785},{"$f":"CI13+CI16+CI19+CI22","v":431},{"$f":"SQRT((CJ13^2)+(CJ16^2)+(CJ19^2)+(CJ22^2))","v":155.35443347391151}]
[null,"      in New Hampshire",{"$f":"C16+C13","v":0},{"$f":"SQRT((D16^2)+(D13^2))","v":15.556349186104045},{"$f":"E16+E13","v":0},{"$f":"SQRT((F16^2)+(F13^2))","v":15.556349186104045},{"$f":"G16+G13","v":0},{"$f":"SQRT((H16^2)+(H13^2))","v":15.556349186104045},{"$f":"I16+I13","v":1512},{"$f":"SQRT((J16^2)+(J13^2))","v":427.28561876103436},{"$f":"K16+K13","v":0},{"$f":"SQRT((L16^2)+(L13^2))","v":15.556349186104045},{"$f":"M16+M13","v":54},{"$f":"SQRT((N16^2)+(N13^2))","v":38.600518131237564},{"$f":"O16+O13","v":0},{"$f":"SQRT((P16^2)+(P13^2))","v":15.556349186104045},{"$f":"Q16+Q13","v":5},{"$f":"SQRT((R16^2)+(R13^2))","v":12.083045973594572},{"$f":"S16+S13","v":115},{"$f":"SQRT((T16^2)+(T13^2))","v":62.425956140054431},{"$f":"U16+U13","v":41},{"$f":"SQRT((V16^2)+(V13^2))","v":34.014702703389901},{"$f":"W16+W13","v":0},{"$f":"SQRT((X16^2)+(X13^2))","v":15.556349186104045},{"$f":"Y16+Y13","v":0},{"$f":"SQRT((Z16^2)+(Z13^2))","v":15.556349186104045},{"$f":"AA16+AA13","v":58},{"$f":"SQRT((AB16^2)+(AB13^2))","v":48.507731342539614},{"$f":"AC16+AC13","v":0},{"$f":"SQRT((AD16^2)+(AD13^2))","v":15.556349186104045},{"$f":"AE16+AE13","v":0},{"$f":"SQRT((AF16^2)+(AF13^2))","v":15.556349186104045},{"$f":"AG16+AG13","v":5},{"$f":"SQRT((AH16^2)+(AH13^2))","v":5},{"$f":"AI16+AI13","v":16},{"$f":"SQRT((AJ16^2)+(AJ13^2))","v":26.40075756488817},{"$f":"AK16+AK13","v":0},{"$f":"SQRT((AL16^2)+(AL13^2))","v":15.556349186104045},{"$f":"AM16+AM13","v":165},{"$f":"SQRT((AN16^2)+(AN13^2))","v":87.692645073575008},{"$f":"AO16+AO13","v":2},{"$f":"SQRT((AP16^2)+(AP13^2))","v":11.704699910719626},{"$f":"AQ16+AQ13","v":0},{"$f":"SQRT((AR16^2)+(AR13^2))","v":15.556349186104045},{"$f":"AS16+AS13","v":44},{"$f":"SQRT((AT16^2)+(AT13^2))","v":36.055512754639892},{"$f":"AU16+AU13","v":0},{"$f":"SQRT((AV16^2)+(AV13^2))","v":15.556349186104045},{"$f":"AW16+AW13","v":268},{"$f":"SQRT((AX16^2)+(AX13^2))","v":144.10065926289164},{"$f":"AY16+AY13","v":0},{"$f":"SQRT((AZ16^2)+(AZ13^2))","v":15.556349186104045},{"$f":"BA16+BA13","v":0},{"$f":"SQRT((BB16^2)+(BB13^2))","v":15.556349186104045},{"$f":"BC16+BC13","v":120},{"$f":"SQRT((BD16^2)+(BD13^2))","v":68.942004612572731},{"$f":"BE16+BE13","v":0},{"$f":"SQRT((BF16^2)+(BF13^2))","v":15.556349186104045},{"$f":"BG16+BG13","v":164},{"$f":"SQRT((BH16^2)+(BH13^2))","v":91.400218818118816},{"$f":"BI16+BI13","v":5},{"$f":"SQRT((BJ16^2)+(BJ13^2))","v":15.556349186104045},{"$f":"BK16+BK13","v":4},{"$f":"SQRT((BL16^2)+(BL13^2))","v":13.601470508735444},{"$f":"BM16+BM13","v":70},{"$f":"SQRT((BN16^2)+(BN13^2))","v":35},{"$f":"BO16+BO13","v":23},{"$f":"SQRT((BP16^2)+(BP13^2))","v":14.317821063276353},{"$f":"BQ16+BQ13","v":0},{"$f":"SQRT((BR16^2)+(BR13^2))","v":15.556349186104045},{"$f":"BS16+BS13","v":0},{"$f":"SQRT((BT16^2)+(BT13^2))","v":15.556349186104045},{"$f":"BU16+BU13","v":32},{"$f":"SQRT((BV16^2)+(BV13^2))","v":32.202484376209235},{"$f":"BW16+BW13","v":16},{"$f":"SQRT((BX16^2)+(BX13^2))","v":17.029386365926403},{"$f":"BY16+BY13","v":105},{"$f":"SQRT((BZ16^2)+(BZ13^2))","v":76.05918747922567},{"$f":"CA16+CA13","v":37},{"$f":"SQRT((CB16^2)+(CB13^2))","v":26.476404589747453},{"$f":"CC16+CC13","v":0},{"$f":"SQRT((CD16^2)+(CD13^2))","v":15.556349186104045},{"$f":"CE16+CE13","v":0},{"$f":"SQRT((CF16^2)+(CF13^2))","v":15.556349186104045},{"$f":"CG16+CG13","v":3},{"$f":"SQRT((CH16^2)+(CH13^2))","v":11.704699910719626},{"$f":"CI16+CI13","v":350},{"$f":"SQRT((CJ16^2)+(CJ13^2))","v":138.60014430006919}]
[null,"          Same county",{"$f":"C13","v":0},{"$f":"D13","v":11},{"$f":"E13","v":0},11,0,11,1119,397,0,11,37,37,0,11,5,5,71,51,{"$f":"U13","v":30},31,0,11,0,11,10,12,0,11,0,11,2,3,16,24,0,11,99,63,2,4,0,11,29,30,0,11,222,134,0,11,0,11,94,63,0,11,108,55,0,11,4,8,40,28,22,14,0,11,0,11,17,26,16,13,68,69,34,26,0,11,0,11,{"$f":"CG13","v":3},4,165,83]
[null,"          Different county",{"$f":"C16","v":0},{"$f":"D16","v":11},{"$f":"E16","v":0},11,0,11,393,158,0,11,17,11,0,11,0,11,44,36,{"$f":"U16","v":11},14,0,11,0,11,48,47,0,11,0,11,3,4,0,11,0,11,66,61,0,11,0,11,15,20,0,11,46,53,0,11,0,11,26,28,0,11,56,73,5,11,0,11,30,21,1,3,0,11,0,11,15,19,0,11,37,32,3,5,0,11,0,11,{"$f":"CG16","v":0},11,185,111]
[null,"      in Different state",{"$f":"C19","v":0},{"$f":"D19","v":11},{"$f":"E19","v":0},11,0,11,488,199,0,11,77,60,0,11,8,12,29,31,{"$f":"U19","v":7},8,0,11,0,11,64,86,0,11,6,8,3,3,4,6,0,11,28,43,3,6,0,11,11,10,0,11,223,128,0,11,0,11,24,18,0,11,85,56,0,11,0,11,12,10,13,10,11,24,0,11,15,12,36,30,63,63,33,21,0,11,0,11,{"$f":"CG19","v":0},11,78,70]
[null,"       Elsewhere",{"$f":"C22","v":0},{"$f":"D22","v":11},{"$f":"E22","v":0},11,0,11,1,2,0,11,0,11,0,11,0,11,3,5,{"$f":"U22","v":0},11,0,11,0,11,0,11,0,11,0,11,0,11,0,11,0,11,0,11,0,11,0,11,0,11,0,11,0,11,0,11,0,11,0,11,0,11,0,11,0,11,0,11,0,11,2,3,0,11,0,11,0,11,0,11,7,11,0,11,0,11,0,11,{"$f":"CG22","v":0},11,3,5]
[]
[]
[]
[]
[]
[]
[]
[]
[]
[]
[]
[]
[]
[]
[]
[]
[]
[]
[]
[]
[]
[]
[null,"Calculated GEOGRAPHICAL MOBILITY IN THE PAST YEAR BY SEX FOR CURRENT RESIDENCE IN THE UNITED STATES"]
[null,"Universe:  POPULATION 1 YEAR AND OVER IN THE UNITED STATES"]
[null,"Data Set: 2010-2014 American Community Survey5-Year Estimates"]
[null,null,"Atkinson and Gilmanton Grant",null,"Bean's Grant",null,"Bean's Purchase",null,"Berlin",null,"Cambridge",null,"Carroll",null,"Chandler's Purchase",null,"Clarksville",null,"Colebrook",null,"Columbia",null,"Crawford's Purchase",null,"Cutt's Grant",null,"Dalton",null,"Dix's Grant",null,"Dixville",null,"Dummer",null,"Errol",null,"Erving's Location",null,"Gorham",null,"Greens Grant",null,"Hadley's Purchase",null,"Jefferson",null,"Kilkenny",null,"Lancaster",null,"Low and Burbank's Grant",null,"Martin's Location",null,"Milan",null,"Millsfield",null,"Northumberland",null,"Odell",null,"Pinkham's Grant",null,"Pittsburg",null,"Randolph",null,"Sargent's Purchase",null,"Second College Grant",null,"Shelburne",null,"Stark",null,"Stewartstown",null,"Stratford",null,"Success",null,"Thompson and Meserves Purchase",null,"Wentworth's Location",null,"Whitefield"]
[null,null,"Estimate","Margin Of Error","Estimate","Margin Of Error","Estimate","Margin Of Error","Estimate","Margin Of Error","Estimate","Margin Of Error","Estimate","Margin Of Error","Estimate","Margin Of Error","Estimate","Margin Of Error","Estimate","Margin Of Error","Estimate","Margin Of Error","Estimate","Margin Of Error","Estimate","Margin Of Error","Estimate","Margin Of Error","Estimate","Margin Of Error","Estimate","Margin Of Error","Estimate","Margin Of Error","Estimate","Margin Of Error","Estimate","Margin Of Error","Estimate","Margin Of Error","Estimate","Margin Of Error","Estimate","Margin Of Error","Estimate","Margin Of Error","Estimate","Margin Of Error","Estimate","Margin Of Error","Estimate","Margin Of Error","Estimate","Margin Of Error","Estimate","Margin Of Error","Estimate","Margin Of Error","Estimate","Margin Of Error","Estimate","Margin Of Error","Estimate","Margin Of Error","Estimate","Margin Of Error","Estimate","Margin Of Error","Estimate","Margin Of Error","Estimate","Margin Of Error","Estimate","Margin Of Error","Estimate","Margin Of Error","Estimate","Margin Of Error","Estimate","Margin Of Error","Estimate","Margin Of Error","Estimate","Margin Of Error","Estimate","Margin Of Error","Estimate","Margin Of Error"]
[]
[null,"  Total:",0,11,0,11,0,11,9605,61,17,16,984,164,0,11,315,75,2323,209,723,132,0,11,0,11,926,153,22,22,30,37,348,76,301,70,0,11,2703,52,8,17,0,11,0,11,0,11,3418,32,0,11,0,11,20,16,21,19,0,11,0,11,8,6,873,130,424,74,9,12,0,11,358,66,481,94,811,129,0,11,0,11,0,11,62,33,2121,217]
[null,"    Same house ",0,11,0,11,0,11,8004,376,8,10,791,166,0,11,287,71,2038,199,649,120,0,11,0,11,813,129,15,21,21,32,307,63,279,66,0,11,2347,180,0,11,0,11,0,11,0,11,2978,178,0,11,0,11,20,16,17,18,0,11,0,11,3,3,779,118,399,68,9,12,0,11,326,67,453,94,630,119,0,11,0,11,0,11,47,28,1825,223]
[null,"    Different house 2",0,22,0,22,0,22,1601,380.04604984133175,9,22.516660498395403,193,95.110462095397267,0,22,28,16.431676725154983,285,85.393208160836778,74,56.912213100528781,0,22,0,22,113,58.711157372342782,7,13.228756555322953,9,13.820274961085254,41,32.186953878862163,22,26.90724809414742,0,22,356,163.4839441657804,8,20.09975124224178,0,22,0,22,0,22,440,182.54314558481784,0,22,0,22,0,22,4,19.974984355438178,0,22,0,22,5,17.146428199482248,94,63.450768316861222,25,23.043437243605826,0,22,0,22,32,21.77154105707724,28,19.672315572906001,181,78.65748533992172,0,22,0,22,0,22,15,25.514701644346147,296,99.050492174446063]
[null,"      in New Hampshire",0,15.556349186104045,0,15.556349186104045,0,15.556349186104045,1499,377.02121956197635,9,16.278820596099706,72,52.354560450833695,0,15.556349186104045,16,13.45362404707371,220,74.094534211370814,66,55.108982933819419,0,15.556349186104045,0,15.556349186104045,78,47.296934361541872,2,4.2426406871192848,4,5.8309518948453007,32,27.313000567495326,7,15.556349186104045,0,15.556349186104045,301,157.87653403846943,8,12.727922061357855,0,15.556349186104045,0,15.556349186104045,0,15.556349186104045,381,177.53872816937718,0,15.556349186104045,0,15.556349186104045,0,15.556349186104045,4,12.529964086141668,0,15.556349186104045,0,15.556349186104045,3,11.704699910719626,85,61.684682053164543,25,17,0,15.556349186104045,0,15.556349186104045,17,12.529964086141668,16,17.029386365926403,148,69.06518659932803,0,15.556349186104045,0,15.556349186104045,0,15.556349186104045,1,11.401754250991379,220,80.956778592036386]
[null,"          Same county",0,11,0,11,0,11,1046,304,9,12,48,46,0,11,8,9,197,69,66,54,0,11,0,11,72,46,1,3,1,3,32,25,7,11,0,11,250,142,4,9,0,11,0,11,0,11,318,172,0,11,0,11,0,11,4,6,0,11,0,11,3,4,70,59,19,15,0,11,0,11,13,11,16,13,70,39,0,11,0,11,0,11,1,3,195,77]
[null,"          Different county",0,11,0,11,0,11,453,223,0,11,24,25,0,11,8,10,23,27,0,11,0,11,0,11,6,11,1,3,3,5,0,11,0,11,0,11,51,69,4,9,0,11,0,11,0,11,63,44,0,11,0,11,0,11,0,11,0,11,0,11,0,11,15,18,6,8,0,11,0,11,4,6,0,11,78,57,0,11,0,11,0,11,0,11,25,25]
[null,"      in Different state",0,11,0,11,0,11,96,47,0,11,99,64,0,11,8,8,65,41,8,9,0,11,0,11,35,33,5,6,5,6,9,13,15,19,0,11,55,41,0,11,0,11,0,11,0,11,59,41,0,11,0,11,0,11,0,11,0,11,0,11,0,11,9,10,0,11,0,11,0,11,15,14,8,9,33,36,0,11,0,11,0,11,14,20,76,56]
[null,"       Elsewhere",0,11,0,11,0,11,6,9,0,11,22,47,0,11,4,5,0,11,0,11,0,11,0,11,0,11,0,11,0,11,0,11,0,11,0,11,0,11,0,11,0,11,0,11,0,11,0,11,0,11,0,11,0,11,0,11,0,11,0,11,2,6,0,11,0,11,0,11,0,11,0,11,4,4,0,11,0,11,0,11,0,11,0,11,0,11]
[]
[]
[]
[null,"Calculated GEOGRAPHICAL MOBILITY IN THE PAST YEAR BY SEX FOR CURRENT RESIDENCE IN THE UNITED STATES"]
[null,"Universe:  POPULATION 1 YEAR AND OVER IN THE UNITED STATES"]
[null,"Data Set: 2005-2009 American Community Survey5-Year Estimates"]
[null,null,"Atkinson and Gilmanton Grant",null,"Bean's Grant",null,"Bean's Purchase",null,"Berlin",null,"Cambridge",null,"Carroll",null,"Chandler's Purchase",null,"Clarksville",null,"Colebrook",null,"Columbia",null,"Crawford's Purchase",null,"Cutt's Grant",null,"Dalton",null,"Dix's Grant",null,"Dixville",null,"Dummer",null,"Errol",null,"Erving's Location",null,"Gorham",null,"Greens Grant",null,"Hadley's Purchase",null,"Jefferson",null,"Kilkenny",null,"Lancaster",null,"Low and Burbank's Grant",null,"Martin's Location",null,"Milan",null,"Millsfield",null,"Northumberland",null,"Odell",null,"Pinkham's Grant",null,"Pittsburg",null,"Randolph",null,"Sargent's Purchase",null,"Second College Grant",null,"Shelburne",null,"Stark",null,"Stewartstown",null,"Stratford",null,"Success",null,"Thompson and Meserves Purchase",null,"Wentworth's Location",null,"Whitefield"]
[null,null,"Estimate","Margin Of Error","Estimate","Margin Of Error","Estimate","Margin Of Error","Estimate","Margin Of Error","Estimate","Margin Of Error","Estimate","Margin Of Error","Estimate","Margin Of Error","Estimate","Margin Of Error","Estimate","Margin Of Error","Estimate","Margin Of Error","Estimate","Margin Of Error",null,"Coefficient of Variance","Estimate Reliable","Coefficient of Variance","Estimate Reliable","Coefficient of Variance","Estimate Reliable","Coefficient of Variance","Estimate Reliable","Coefficient of Variance","Estimate Reliable","Coefficient of Variance","Estimate Reliable","Coefficient of Variance","Estimate Reliable","Coefficient of Variance","Estimate Reliable","Coefficient of Variance","Estimate Reliable","Coefficient of Variance","Estimate Reliable","Coefficient of Variance","Estimate Reliable"]
[null,"Total",0,114,0,114,0,114,9546,85,0,114,565,113,0,114,330,79,2099,256,833,188,0,114,0,114,1142,145,0,114,125,169,348,127,247,69,0,114,2816,26,0,114,0,114,919,105,0,114,3198,52,0,114,0,114,1265,108,4,5,2241,245,0,114,0,114,765,133,346,83,0,114,0,114,427,81,531,132,960,184,996,185,0,114,0,114,43,25,2096,232]
[null,"    Same house ",0,114,0,114,0,114,7774,421,0,114,501,111,0,114,299,76,1794,272,749,168,0,114,0,114,1065,135,0,114,115,153,320,126,247,69,0,114,2560,113,0,114,0,114,881,102,0,114,2731,162,0,114,0,114,1196,107,0,114,1945,221,0,114,0,114,737,137,310,77,0,114,0,114,398,82,480,120,802,140,806,152,0,114,0,114,43,25,1712,197]
[null,"    Different house ",0,228,0,228,0,228,1772,438.05364968231919,0,228,64,122.5275479229059,0,228,31,116.46887996370532,305,187.45932892230249,84,130.44922383824292,0,228,0,228,77,123.02032352420473,0,228,10,198.18425769974769,28,162.3853441662763,0,228,0,228,256,124.87593843491227,0,228,0,228,38,24.919871588754223,0,228,467,206.62768449556802,0,228,0,228,69,36.290494623248108,4,197.51708786836647,296,138.53880322855397,0,228,0,228,28,19.209372712298549,36,165.32694880145826,0,228,0,228,29,16.431676725154983,51,166.30393861842239,158,146.66969693839283,190,144.47837208385207,0,228,0,228,0,228,384,172.05231762461091]
[null,"      in New Hampshire",0,161.22034611053283,0,161.22034611053283,0,161.22034611053283,1480,348.73629005310016,0,161.22034611053283,54,43.278170016764804,0,161.22034611053283,30,23.769728648009426,271,146.15402833996743,74,61.846584384264908,0,161.22034611053283,0,161.22034611053283,63,43.737855457258078,0,161.22034611053283,10,115.26057435220423,28,19.416487838947599,0,161.22034611053283,0,161.22034611053283,198,115.43396380615195,0,161.22034611053283,0,161.22034611053283,20,15.620499351813308,0,161.22034611053283,426,169.52285981542431,0,161.22034611053283,0,161.22034611053283,49,33.241540277189323,4,114.10959644131601,224,128.56126943990557,0,161.22034611053283,0,161.22034611053283,21,16.401219466856727,16,115.91807451816995,0,161.22034611053283,0,161.22034611053283,7,5.3851648071345037,44,120.48651376813922,155,92.195444572928878,145,78.721026416072604,0,161.22034611053283,0,161.22034611053283,0,161.22034611053283,282,102.57680049601859]
[null,"          Same county",0,114,0,114,0,114,1240,324,0,114,32,33,0,114,26,23,234,135,48,48,0,114,0,114,54,43,0,114,0,114,19,16,0,114,0,114,174,110,0,114,0,114,11,10,0,114,303,153,0,114,0,114,39,31,4,5,216,128,0,114,0,114,14,13,16,21,0,114,0,114,6,5,44,39,136,90,119,71,0,114,0,114,0,114,187,89]
[null,"          Different county",0,114,0,114,0,114,240,129,0,114,22,28,0,114,4,6,37,56,26,39,0,114,0,114,9,8,0,114,10,17,9,11,0,114,0,114,24,35,0,114,0,114,9,12,0,114,123,73,0,114,0,114,10,12,0,114,8,12,0,114,0,114,7,10,0,114,0,114,0,114,1,2,0,114,19,20,26,34,0,114,0,114,0,114,95,51]
[null,"      in Different state",0,114,0,114,0,114,288,265,0,114,10,12,0,114,1,2,34,28,10,14,0,114,0,114,14,15,0,114,0,114,0,114,0,114,0,114,32,37,0,114,0,114,15,19,0,114,41,31,0,114,0,114,18,14,0,114,61,48,0,114,0,114,5,8,20,30,0,114,0,114,19,15,7,12,3,4,45,41,0,114,0,114,0,114,102,78]
[null,"       Elsewhere",0,114,0,114,0,114,4,7,0,114,0,114,0,114,0,114,0,114,0,114,0,114,0,114,0,114,0,114,0,114,0,114,0,114,0,114,26,30,0,114,0,114,3,4,0,114,0,114,0,114,0,114,2,4,0,114,11,19,0,114,0,114,2,6,0,114,0,114,0,114,3,4,0,114,0,114,0,114,0,114,0,114,0,114,0,114]

{"sheet":"ACS_Table_B14001","index":62,"n_rows":98,"n_cols":88,"rows_kept":98,"cut":false,"hidden":true,"merged":[]}
[null,"B14001. SCHOOL ENROLLMENT BY LEVEL OF SCHOOL FOR THE POPULATION 3 YEARS AND OVER"]
[null,"Universe: POPULATION 3 YEARS AND OVER"]
[null,"Data Set: 2015-2019 American Community Survey 5-Year Estimates"]
[]
[null,null,"Atkinson and Gilmanton Grant",null,"Bean's Grant",null,"Bean's Purchase",null,"Berlin",null,"Cambridge",null,"Carroll",null,"Chandler's Purchase",null,"Clarksville",null,"Colebrook",null,"Columbia",null,"Crawford's Purchase",null,"Cutt's Grant",null,"Dalton",null,"Dix's Grant",null,"Dixville",null,"Dummer",null,"Errol",null,"Erving's Location",null,"Gorham",null,"Greens Grant",null,"Hadley's Purchase",null,"Jefferson",null,"Kilkenny",null,"Lancaster",null,"Low and Burbank's Grant",null,"Martin's Location",null,"Milan",null,"Millsfield",null,"Northumberland",null,"Odell",null,"Pinkham's Grant",null,"Pittsburg",null,"Randolph",null,"Sargent's Purchase",null,"Second College Grant",null,"Shelburne",null,"Stark",null,"Stewartstown",null,"Stratford",null,"Success",null,"Thompson and Meserves Purchase",null,"Wentworth's Location",null,"Whitefield"]
[null,null,"Estimate","Margin Of Error","Estimate","Margin Of Error","Estimate","Margin Of Error","Estimate","Margin Of Error","Estimate","Margin Of Error","Estimate","Margin Of Error","Estimate","Margin Of Error","Estimate","Margin Of Error","Estimate","Margin Of Error","Estimate","Margin Of Error","Estimate","Margin Of Error","Estimate","Margin Of Error","Estimate","Margin Of Error","Estimate","Margin Of Error","Estimate","Margin Of Error","Estimate","Margin Of Error","Estimate","Margin Of Error","Estimate","Margin Of Error","Estimate","Margin Of Error","Estimate","Margin Of Error","Estimate","Margin Of Error","Estimate","Margin Of Error","Estimate","Margin Of Error","Estimate","Margin Of Error","Estimate","Margin Of Error","Estimate","Margin Of Error","Estimate","Margin Of Error","Estimate","Margin Of Error","Estimate","Margin Of Error","Estimate","Margin Of Error","Estimate","Margin Of Error","Estimate","Margin Of Error","Estimate","Margin Of Error","Estimate","Margin Of Error","Estimate","Margin Of Error","Estimate","Margin Of Error","Estimate","Margin Of Error","Estimate","Margin Of Error","Estimate","Margin Of Error","Estimate","Margin Of Error","Estimate","Margin Of Error","Estimate","Margin Of Error","Estimate","Margin Of Error"]
[null,"Total:",0,11,0,11,0,11,9947,88,0,11,754,136,0,11,318,87,1881,169,629,119,0,11,0,11,876,134,0,11,11,12,302,70,205,55,0,11,2595,28,13,10,0,11,835,124,0,11,3189,78,0,11,0,11,1298,100,8,12,2228,258,10,12,11,14,740,104,352,65,11,24,0,11,402,62,580,128,964,173,629,114,0,11,0,11,26,16,2177,195]
[null,"Enrolled in school:",0,11,0,11,0,11,1692,242,0,11,154,93,0,11,25,27,353,86,92,44,0,11,0,11,153,54,0,11,3,6,69,40,25,19,0,11,495,90,3,6,0,11,136,47,0,11,682,124,0,11,0,11,246,39,0,11,450,120,10,12,3,7,82,42,25,17,11,24,0,11,47,24,118,62,138,69,136,47,0,11,0,11,0,11,427,113]
[null,"Enrolled in nursery school, preschool",0,11,0,11,0,11,103,64,0,11,5,7,0,11,0,11,6,9,1,2,0,11,0,11,6,7,0,11,0,11,4,4,0,11,0,11,19,19,0,11,0,11,20,14,0,11,22,25,0,11,0,11,7,7,0,11,38,29,0,11,0,11,0,11,1,2,0,11,0,11,9,11,0,11,12,19,10,17,0,11,0,11,0,11,24,27]
[null,"Enrolled in kindergarten",0,11,0,11,0,11,89,74,0,11,8,12,0,11,0,11,33,24,0,11,0,11,0,11,11,13,0,11,0,11,1,4,0,11,0,11,15,16,0,11,0,11,0,11,0,11,41,32,0,11,0,11,6,5,0,11,0,11,0,11,0,11,16,18,2,3,0,11,0,11,0,11,9,10,6,9,3,4,0,11,0,11,0,11,11,11]
[null,"Enrolled in grade 1 to grade 4",0,11,0,11,0,11,307,121,0,11,42,36,0,11,12,14,94,26,25,16,0,11,0,11,6,9,0,11,0,11,14,10,3,3,0,11,76,40,0,11,0,11,42,20,0,11,86,55,0,11,0,11,67,21,0,11,98,52,0,11,0,11,23,15,1,2,0,11,0,11,15,13,43,27,18,17,23,19,0,11,0,11,0,11,73,40]
[null,"Enrolled in grade 5 to grade 8",0,11,0,11,0,11,387,131,0,11,28,30,0,11,6,9,77,45,28,20,0,11,0,11,45,25,0,11,0,11,29,26,10,11,0,11,146,48,0,11,0,11,22,15,0,11,195,72,0,11,0,11,49,22,0,11,93,48,0,11,0,11,14,18,2,3,0,11,0,11,9,9,27,20,69,45,31,19,0,11,0,11,0,11,105,53]
[null,"Enrolled in grade 9 to grade 12",0,11,0,11,0,11,460,115,0,11,42,63,0,11,7,8,68,38,18,14,0,11,0,11,44,30,0,11,2,4,6,7,12,16,0,11,115,45,0,11,0,11,21,17,0,11,200,51,0,11,0,11,65,21,0,11,139,58,0,11,0,11,7,8,5,6,0,11,0,11,11,9,21,24,25,16,50,23,0,11,0,11,0,11,85,38]
[null,"Enrolled in college, undergraduate years",0,11,0,11,0,11,323,145,0,11,19,15,0,11,0,11,69,44,16,18,0,11,0,11,32,25,0,11,1,4,14,13,0,11,0,11,116,68,3,6,0,11,31,29,0,11,125,71,0,11,0,11,46,31,0,11,76,34,10,12,3,7,22,17,14,15,11,24,0,11,1,4,11,8,4,5,19,13,0,11,0,11,0,11,81,57]
[null,"Graduate or professional school",0,11,0,11,0,11,23,25,0,11,10,9,0,11,0,11,6,8,4,7,0,11,0,11,9,14,0,11,0,11,1,2,0,11,0,11,8,12,0,11,0,11,0,11,0,11,13,21,0,11,0,11,6,6,0,11,6,8,0,11,0,11,0,11,0,11,0,11,0,11,2,3,7,5,4,5,0,11,0,11,0,11,0,11,48,42]
[null,"Not enrolled in school",0,11,0,11,0,11,8255,242,0,11,600,104,0,11,293,77,1528,147,537,91,0,11,0,11,723,101,0,11,8,10,233,41,180,44,0,11,2100,96,10,8,0,11,699,98,0,11,2507,174,0,11,0,11,1052,90,8,12,1778,172,0,11,8,17,658,82,327,59,0,11,0,11,355,54,462,86,826,126,493,88,0,11,0,11,26,16,1750,159]
[]
[]
[]
[null,"B14001. Calculated  SCHOOL ENROLLMENT BY LEVEL OF SCHOOL FOR THE POPULATION 3 YEARS AND OVER "]
[null,"Universe: POPULATION 3 YEARS AND OVER"]
[null,"Data Set: 2015-2019 American Community Survey 5-Year Estimates"]
[]
[null,null,"Alton",null,"Barnstead",null,"Belmont",null,"Center Harbor",null,"Gilford",null,"Gilmanton",null,"Laconia",null,"Meredith",null,"New Hampton",null,"Sanbornton",null,"Tilton"]
[null,null,"Estimate","Margin Of Error","Estimate","Margin Of Error","Estimate","Margin Of Error","Estimate","Margin Of Error","Estimate","Margin Of Error","Estimate","Margin Of Error","Estimate","Margin Of Error","Estimate","Margin Of Error","Estimate","Margin Of Error","Estimate","Margin Of Error","Estimate","Margin Of Error"]
[null,"Total:",{"$f":"C7","v":0},11,0,11,0,11,9947,88,0,11,754,136,0,11,318,87,1881,169,629,119,0,11]
[null,"Enrolled in school:",0,11,0,11,0,11,1692,242,0,11,154,93,0,11,25,27,353,86,92,44,0,11]
[null,"Enrolled in nursery school, preschool, and Kindergarten",{"$f":"C9+C10","v":0},{"$f":"SQRT((D9^2)+(D10^2))","v":15.556349186104045},{"$f":"E9+E10","v":0},{"$f":"SQRT((F9^2)+(F10^2))","v":15.556349186104045},{"$f":"G9+G10","v":0},{"$f":"SQRT((H9^2)+(H10^2))","v":15.556349186104045},{"$f":"I9+I10","v":192},{"$f":"SQRT((J9^2)+(J10^2))","v":97.836598469080073},{"$f":"K9+K10","v":0},{"$f":"SQRT((L9^2)+(L10^2))","v":15.556349186104045},{"$f":"M9+M10","v":13},{"$f":"SQRT((N9^2)+(N10^2))","v":13.892443989449804},{"$f":"O9+O10","v":0},{"$f":"SQRT((P9^2)+(P10^2))","v":15.556349186104045},{"$f":"Q9+Q10","v":0},{"$f":"SQRT((R9^2)+(R10^2))","v":15.556349186104045},{"$f":"S9+S10","v":39},{"$f":"SQRT((T9^2)+(T10^2))","v":25.632011235952593},{"$f":"U9+U10","v":1},{"$f":"SQRT((V9^2)+(V10^2))","v":11.180339887498949},{"$f":"W9+W10","v":0},{"$f":"SQRT((X9^2)+(X10^2))","v":15.556349186104045}]
[null,"Enrolled in nursery school, preschool",97,82,46,54,42,49,10,12,40,51,121,63,109,56,102,90,6,10,61,27,64,74]
[null,"Enrolled in kindergarten",0,16,73,49,135,102,4,6,78,61,14,21,202,118,43,36,17,19,11,13,58,46]
[null,"Enrolled in grade Elementary School (grade 1 to grade 8)",{"$f":"C11+C12","v":0},{"$f":"SQRT((D11^2)+(D12^2))","v":15.556349186104045},{"$f":"E11+E12","v":0},{"$f":"SQRT((F11^2)+(F12^2))","v":15.556349186104045},{"$f":"G11+G12","v":0},{"$f":"SQRT((H11^2)+(H12^2))","v":15.556349186104045},{"$f":"I11+I12","v":694},{"$f":"SQRT((J11^2)+(J12^2))","v":178.33115263464205},{"$f":"K11+K12","v":0},{"$f":"SQRT((L11^2)+(L12^2))","v":15.556349186104045},{"$f":"M11+M12","v":70},{"$f":"SQRT((N11^2)+(N12^2))","v":46.861498055439924},{"$f":"O11+O12","v":0},{"$f":"SQRT((P11^2)+(P12^2))","v":15.556349186104045},{"$f":"Q11+Q12","v":18},{"$f":"SQRT((R11^2)+(R12^2))","v":16.643316977093239},{"$f":"S11+S12","v":171},{"$f":"SQRT((T11^2)+(T12^2))","v":51.97114584074513},{"$f":"U11+U12","v":53},{"$f":"SQRT((V11^2)+(V12^2))","v":25.612496949731394},{"$f":"W11+W12","v":0},{"$f":"SQRT((X11^2)+(X12^2))","v":15.556349186104045}]
[null,"Enrolled in grade 9 to grade 12",{"$f":"C13","v":0},11,0,11,0,11,460,115,0,11,42,63,0,11,7,8,68,38,18,14,0,11]
[null,"Enrolled in Elementary and High School",{"$f":"C11+C12+C13","v":0},{"$f":"SQRT((D11^2)+(D12^2)+(D13^2))","v":19.05255888325765},{"$f":"E11+E12+E13","v":0},{"$f":"SQRT((F11^2)+(F12^2)+(F13^2))","v":19.05255888325765},{"$f":"G11+G12+G13","v":0},{"$f":"SQRT((H11^2)+(H12^2)+(H13^2))","v":19.05255888325765},{"$f":"I11+I12+I13","v":1154},{"$f":"SQRT((J11^2)+(J12^2)+(J13^2))","v":212.1956644231922},{"$f":"K11+K12+K13","v":0},{"$f":"SQRT((L11^2)+(L12^2)+(L13^2))","v":19.05255888325765},{"$f":"M11+M12+M13","v":112},{"$f":"SQRT((N11^2)+(N12^2)+(N13^2))","v":78.517513969814402},{"$f":"O11+O12+O13","v":0},{"$f":"SQRT((P11^2)+(P12^2)+(P13^2))","v":19.05255888325765},{"$f":"Q11+Q12+Q13","v":25},{"$f":"SQRT((R11^2)+(R12^2)+(R13^2))","v":18.466185312619388},{"$f":"S11+S12+S13","v":239},{"$f":"SQRT((T11^2)+(T12^2)+(T13^2))","v":64.381674411279491},{"$f":"U11+U12+U13","v":71},{"$f":"SQRT((V11^2)+(V12^2)+(V13^2))","v":29.189039038652847},{"$f":"W11+W12+W13","v":0},{"$f":"SQRT((X11^2)+(X12^2)+(X13^2))","v":19.05255888325765}]
[null,"Enrolled in College or Graduate School",{"$f":"C14+C15","v":0},{"$f":"SQRT((D14^2)+(D15^2))","v":15.556349186104045},{"$f":"E14+E15","v":0},{"$f":"SQRT((F14^2)+(F15^2))","v":15.556349186104045},{"$f":"G14+G15","v":0},{"$f":"SQRT((H14^2)+(H15^2))","v":15.556349186104045},{"$f":"I14+I15","v":346},{"$f":"SQRT((J14^2)+(J15^2))","v":147.13938969562162},{"$f":"K14+K15","v":0},{"$f":"SQRT((L14^2)+(L15^2))","v":15.556349186104045},{"$f":"M14+M15","v":29},{"$f":"SQRT((N14^2)+(N15^2))","v":17.4928556845359},{"$f":"O14+O15","v":0},{"$f":"SQRT((P14^2)+(P15^2))","v":15.556349186104045},{"$f":"Q14+Q15","v":0},{"$f":"SQRT((R14^2)+(R15^2))","v":15.556349186104045},{"$f":"S14+S15","v":75},{"$f":"SQRT((T14^2)+(T15^2))","v":44.721359549995796},{"$f":"U14+U15","v":20},{"$f":"SQRT((V14^2)+(V15^2))","v":19.313207915827967},{"$f":"W14+W15","v":0},{"$f":"SQRT((X14^2)+(X15^2))","v":15.556349186104045}]
[null,"Not enrolled in school",{"$f":"C16","v":0},11,0,11,0,11,8255,242,0,11,600,104,0,11,293,77,1528,147,537,91,0,11]
[]
[]
[null,"B14001.Calculated  SCHOOL ENROLLMENT BY LEVEL OF SCHOOL FOR THE POPULATION 3 YEARS AND OVER "]
[null,"Universe: POPULATION 3 YEARS AND OVER"]
[null,"Data Set: 2010-2014 American Community Survey 5-Year Estimates"]
[]
[null,null,"Atkinson and Gilmanton Grant",null,"Bean's Grant",null,"Bean's Purchase",null,"Berlin",null,"Cambridge",null,"Carroll",null,"Chandler's Purchase",null,"Clarksville",null,"Colebrook",null,"Columbia",null,"Crawford's Purchase",null,"Cutt's Grant",null,"Dalton",null,"Dix's Grant",null,"Dixville",null,"Dummer",null,"Errol",null,"Erving's Location",null,"Gorham",null,"Greens Grant",null,"Hadley's Purchase",null,"Jefferson",null,"Kilkenny",null,"Lancaster",null,"Low and Burbank's Grant",null,"Martin's Location",null,"Milan",null,"Millsfield",null,"Northumberland",null,"Odell",null,"Pinkham's Grant",null,"Pittsburg",null,"Randolph",null,"Sargent's Purchase",null,"Second College Grant",null,"Shelburne",null,"Stark",null,"Stewartstown",null,"Stratford",null,"Success",null,"Thompson and Meserves Purchase",null,"Wentworth's Location",null,"Whitefield"]
[null,null,"Estimate","Margin Of Error","Estimate","Margin Of Error","Estimate","Margin Of Error","Estimate","Margin Of Error","Estimate","Margin Of Error","Estimate","Margin Of Error","Estimate","Margin Of Error","Estimate","Margin Of Error","Estimate","Margin Of Error","Estimate","Margin Of Error","Estimate","Margin Of Error","Estimate","Margin Of Error","Estimate","Margin Of Error","Estimate","Margin Of Error","Estimate","Margin Of Error","Estimate","Margin Of Error","Estimate","Margin Of Error","Estimate","Margin Of Error","Estimate","Margin Of Error","Estimate","Margin Of Error","Estimate","Margin Of Error","Estimate","Margin Of Error","Estimate","Margin Of Error","Estimate","Margin Of Error","Estimate","Margin Of Error","Estimate","Margin Of Error","Estimate","Margin Of Error","Estimate","Margin Of Error","Estimate","Margin Of Error","Estimate","Margin Of Error","Estimate","Margin Of Error","Estimate","Margin Of Error","Estimate","Margin Of Error","Estimate","Margin Of Error","Estimate","Margin Of Error","Estimate","Margin Of Error","Estimate","Margin Of Error","Estimate","Margin Of Error","Estimate","Margin Of Error","Estimate","Margin Of Error","Estimate","Margin Of Error","Estimate","Margin Of Error","Estimate","Margin Of Error"]
[null,"Total:",0,11,0,11,0,11,9491,95,17,16,975,163,0,11,304,68,2276,207,710,129,0,11,0,11,923,152,0,11,22,22,344,75,300,70,0,11,2666,56,8,17,0,11,887,85,0,11,3377,41,0,11,0,11,1298,85,20,16,2107,181,0,11,8,6,873,130,423,74,9,12,0,11,357,66,474,90,796,123,684,120,0,11,0,11,62,33,2095,211]
[null,"Enrolled in school:",0,11,0,11,0,11,1772,202,0,11,248,122,0,11,47,23,414,88,127,47,0,11,0,11,166,65,0,11,2,4,89,34,38,28,0,11,553,99,0,11,0,11,146,33,0,11,834,125,0,11,0,11,243,40,7,9,515,119,0,11,2,6,87,35,89,40,0,11,0,11,62,27,112,45,111,58,149,51,0,11,0,11,13,14,340,80]
[null,"Enrolled in nursery school, preschool, and Kindergarten",0,15.556349186104045,0,15.556349186104045,0,15.556349186104045,207,102.7861858422619,0,15.556349186104045,29,27.202941017470888,0,15.556349186104045,4,12.083045973594572,50,29.681644159311659,1,11.401754250991379,0,15.556349186104045,0,15.556349186104045,2,11.401754250991379,0,15.556349186104045,0,15.556349186104045,4,12.083045973594572,4,11.704699910719626,0,15.556349186104045,58,42.047592083257278,0,15.556349186104045,0,15.556349186104045,19,16.15549442140351,0,15.556349186104045,105,57.697486947006624,0,15.556349186104045,0,15.556349186104045,43,18.788294228055936,3,13.601470508735444,31,20.880613017821101,0,15.556349186104045,0,15.556349186104045,0,15.556349186104045,10,11.180339887498949,0,15.556349186104045,0,15.556349186104045,8,9.2195444572928871,6,12.529964086141668,7,14.866068747318506,14,14.212670403551895,0,15.556349186104045,0,15.556349186104045,0,15.556349186104045,67,31.400636936215164]
[null,"Enrolled in nursery school, preschool",0,11,0,11,0,11,167,97,0,11,24,26,0,11,0,11,30,25,1,3,0,11,0,11,2,3,0,11,0,11,0,11,4,4,0,11,40,38,0,11,0,11,6,6,0,11,30,25,0,11,0,11,35,17,3,8,27,20,0,11,0,11,0,11,1,2,0,11,0,11,7,9,0,11,0,11,0,11,0,11,0,11,0,11,37,25]
[null,"Enrolled in kindergarten",0,11,0,11,0,11,40,34,0,11,5,8,0,11,4,5,20,16,0,11,0,11,0,11,0,11,0,11,0,11,4,5,0,11,0,11,18,18,0,11,0,11,13,15,0,11,75,52,0,11,0,11,8,8,0,11,4,6,0,11,0,11,0,11,9,11,0,11,0,11,1,2,6,6,7,10,14,9,0,11,0,11,0,11,30,19]
[null,"Enrolled in grade Elementary School (grade 1 to grade 8)",0,15.556349186104045,0,15.556349186104045,0,15.556349186104045,822,163.02760502442524,0,15.556349186104045,92,39.204591567825318,0,15.556349186104045,34,17.464249196572979,244,62.968245965724662,62,28.178005607210743,0,15.556349186104045,0,15.556349186104045,82,35.805027579936315,0,15.556349186104045,0,15.556349186104045,52,29.832867780352597,10,9.8994949366116654,0,15.556349186104045,240,68,0,15.556349186104045,0,15.556349186104045,49,21.2602916254693,0,15.556349186104045,350,81.467785044151043,0,15.556349186104045,0,15.556349186104045,92,27.784887978899608,2,11.401754250991379,215,71.700767080973407,0,15.556349186104045,0,15.556349186104045,42,26.419689627245813,27,18.027756377319946,0,15.556349186104045,0,15.556349186104045,31,18.601075237738275,31,17.691806012954132,51,33.61547262794322,72,27.202941017470888,0,15.556349186104045,0,15.556349186104045,0,15.556349186104045,159,51.97114584074513]
[null,"Enrolled in grade 9 to grade 12",0,11,0,11,0,11,359,89,0,11,71,37,0,11,4,4,52,25,43,19,0,11,0,11,62,29,0,11,0,11,17,10,5,9,0,11,173,56,0,11,0,11,39,19,0,11,221,73,0,11,0,11,56,18,2,3,158,46,0,11,0,11,40,21,21,14,0,11,0,11,11,7,39,18,14,19,40,23,0,11,0,11,4,6,85,38]
[null,"Enrolled in Elementary and High School",0,19.05255888325765,0,19.05255888325765,0,19.05255888325765,1181,185.73906428104993,0,19.05255888325765,163,53.907327887774215,0,19.05255888325765,38,17.916472867168917,296,67.749538743817283,105,33.985290935932859,0,19.05255888325765,0,19.05255888325765,144,46.076024134033091,0,19.05255888325765,0,19.05255888325765,69,31.464265445104548,15,13.379088160259652,0,19.05255888325765,413,88.090862182180956,0,19.05255888325765,0,19.05255888325765,88,28.513154858766505,0,19.05255888325765,571,109.38921336219582,0,19.05255888325765,0,19.05255888325765,148,33.105890714493697,4,11.789826122551595,373,85.188027327788262,0,19.05255888325765,0,19.05255888325765,82,33.749074061372411,48,22.825424421026653,0,19.05255888325765,0,19.05255888325765,42,19.874606914351791,70,25.238858928247925,65,38.613469152615643,112,35.62302626111375,0,19.05255888325765,0,19.05255888325765,4,16.673332000533065,244,64.381674411279491]
[null,"Enrolled in College or Graduate School",0,15.556349186104045,0,15.556349186104045,0,15.556349186104045,384,103.36827366266692,0,15.556349186104045,56,70.114192571832419,0,15.556349186104045,5,5,68,35.355339059327378,21,13,0,15.556349186104045,0,15.556349186104045,20,15.811388300841896,0,15.556349186104045,2,11.704699910719626,16,8.5440037453175304,19,15.620499351813308,0,15.556349186104045,82,45,0,15.556349186104045,0,15.556349186104045,39,15.652475842498529,0,15.556349186104045,158,80.280757345705197,0,15.556349186104045,0,15.556349186104045,52,22.803508501982758,0,15.556349186104045,111,42.755116652863897,0,15.556349186104045,2,12.529964086141668,5,13.601470508735444,31,18.973665961010276,0,15.556349186104045,0,15.556349186104045,12,15.556349186104045,36,21.840329667841555,39,34.365680554879162,23,13.038404810405298,0,15.556349186104045,0,15.556349186104045,9,14.212670403551895,29,25.495097567963924]
[null,"Not enrolled in school",0,11,0,11,0,11,7719,199,17,16,727,118,0,11,257,54,1862,166,583,100,0,11,0,11,757,116,0,11,20,22,255,51,262,58,0,11,2113,94,8,17,0,11,741,69,0,11,2543,124,0,11,0,11,1055,84,13,9,1592,113,0,11,6,6,786,121,334,54,9,12,0,11,295,49,362,59,685,110,535,87,0,11,0,11,49,26,1755,171]
[]
[]
[]
[]
[]
[]
[]
[]
[]
[]
[]
[]
[]
[]
[]
[]
[]
[]
[]
[]
[]
[]
[]
[]
[]
[]
[]
[]
[]
[null,"B14001.Calculated  SCHOOL ENROLLMENT BY LEVEL OF SCHOOL FOR THE POPULATION 3 YEARS AND OVER "]
[null,"Universe: POPULATION 3 YEARS AND OVER"]
[null,"Data Set: 2005-2009 American Community Survey 5-Year Estimates"]
[]
[null,null,"Atkinson and Gilmanton Grant",null,"Bean's Grant",null,"Bean's Purchase",null,"Berlin",null,"Cambridge",null,"Carroll",null,"Chandler's Purchase",null,"Clarksville",null,"Colebrook",null,"Columbia",null,"Crawford's Purchase",null,"Cutt's Grant",null,"Dalton",null,"Dix's Grant",null,"Dixville",null,"Dummer",null,"Errol",null,"Erving's Location",null,"Gorham",null,"Greens Grant",null,"Hadley's Purchase",null,"Jefferson",null,"Kilkenny",null,"Lancaster",null,"Low and Burbank's Grant",null,"Martin's Location",null,"Milan",null,"Millsfield",null,"Northumberland",null,"Odell",null,"Pinkham's Grant",null,"Pittsburg",null,"Randolph",null,"Sargent's Purchase",null,"Second College Grant",null,"Shelburne",null,"Stark",null,"Stewartstown",null,"Stratford",null,"Success",null,"Thompson and Meserves Purchase",null,"Wentworth's Location",null,"Whitefield"]
[null,null,"Estimate","Margin Of Error","Estimate","Margin Of Error","Estimate","Margin Of Error","Estimate","Margin Of Error","Estimate","Margin Of Error","Estimate","Margin Of Error","Estimate","Margin Of Error","Estimate","Margin Of Error","Estimate","Margin Of Error","Estimate","Margin Of Error","Estimate","Margin Of Error","Estimate","Margin Of Error","Estimate","Margin Of Error","Estimate","Margin Of Error","Estimate","Margin Of Error","Estimate","Margin Of Error","Estimate","Margin Of Error","Estimate","Margin Of Error","Estimate","Margin Of Error","Estimate","Margin Of Error","Estimate","Margin Of Error","Estimate","Margin Of Error","Estimate","Margin Of Error","Estimate","Margin Of Error","Estimate","Margin Of Error","Estimate","Margin Of Error","Estimate","Margin Of Error","Estimate","Margin Of Error","Estimate","Margin Of Error","Estimate","Margin Of Error","Estimate","Margin Of Error","Estimate","Margin Of Error","Estimate","Margin Of Error","Estimate","Margin Of Error","Estimate","Margin Of Error","Estimate","Margin Of Error","Estimate","Margin Of Error","Estimate","Margin Of Error","Estimate","Margin Of Error","Estimate","Margin Of Error","Estimate","Margin Of Error","Estimate","Margin Of Error","Estimate","Margin Of Error"]
[null,"Total:",0,114,0,114,0,114,9392,91,0,114,565,113,0,114,330,79,2081,257,833,188,0,114,0,114,1113,142,0,114,125,169,348,127,244,69,0,114,2802,32,0,114,0,114,894,103,0,114,3147,57,0,114,0,114,1245,105,4,5,2195,241,0,114,0,114,752,129,346,83,0,114,0,114,416,80,525,129,924,176,935,163,0,114,0,114,43,25,2037,227]
[null,"Enrolled in school:",0,114,0,114,0,114,1812,223,0,114,57,45,0,114,59,30,326,116,228,103,0,114,0,114,258,58,0,114,3,5,108,82,30,28,0,114,828,150,0,114,0,114,133,38,0,114,918,184,0,114,0,114,233,54,0,114,450,111,0,114,0,114,96,38,38,39,0,114,0,114,72,29,85,46,209,66,165,69,0,114,0,114,6,9,337,86]
[null,"Enrolled in nursery school, preschool, and Kindergarten",0,161.22034611053283,0,161.22034611053283,0,161.22034611053283,253,82.734515167492219,0,161.22034611053283,0,161.22034611053283,0,161.22034611053283,15,12.806248474865697,41,34.409301068170507,25,22.847319317591726,0,161.22034611053283,0,161.22034611053283,17,10,0,161.22034611053283,3,114.10959644131601,0,161.22034611053283,0,161.22034611053283,0,161.22034611053283,145,86.313382508160345,0,161.22034611053283,0,161.22034611053283,9,7.810249675906654,0,161.22034611053283,69,66.708320320631671,0,161.22034611053283,0,161.22034611053283,35,17.464249196572979,0,161.22034611053283,70,40.70626487409524,0,161.22034611053283,0,161.22034611053283,18,13.601470508735444,0,161.22034611053283,0,161.22034611053283,0,161.22034611053283,4,4.2426406871192848,4,5.8309518948453007,47,30.675723300355934,22,17.029386365926403,0,161.22034611053283,0,161.22034611053283,0,161.22034611053283,59,29.410882339705484]
[null,"Enrolled in nursery school, preschool",0,114,0,114,0,114,134,59,0,114,0,114,0,114,6,10,18,20,17,21,0,114,0,114,12,8,0,114,3,5,0,114,0,114,0,114,57,39,0,114,0,114,3,5,0,114,35,51,0,114,0,114,27,16,0,114,17,19,0,114,0,114,16,13,0,114,0,114,0,114,2,3,1,3,9,10,11,11,0,114,0,114,0,114,36,24]
[null,"Enrolled in kindergarten",0,114,0,114,0,114,119,58,0,114,0,114,0,114,9,8,23,28,8,9,0,114,0,114,5,6,0,114,0,114,0,114,0,114,0,114,88,77,0,114,0,114,6,6,0,114,34,43,0,114,0,114,8,7,0,114,53,36,0,114,0,114,2,4,0,114,0,114,0,114,2,3,3,5,38,29,11,13,0,114,0,114,0,114,23,17]
[null,"Enrolled in grade Elementary School (grade 1 to grade 8)",0,161.22034611053283,0,161.22034611053283,0,161.22034611053283,740,160.3277892319357,0,161.22034611053283,9,7.810249675906654,0,161.22034611053283,24,15,172,80.622577482985491,92,46.010868281309364,0,161.22034611053283,0,161.22034611053283,120,44.944410108488462,0,161.22034611053283,0,161.22034611053283,41,37.656340767525464,18,17.204650534085253,0,161.22034611053283,388,109.29318368498559,0,161.22034611053283,0,161.22034611053283,85,33.837848631377263,0,161.22034611053283,493,145.71547618561317,0,161.22034611053283,0,161.22034611053283,92,26.870057685088806,0,161.22034611053283,198,79.511005527536881,0,161.22034611053283,0,161.22034611053283,39,22.803508501982758,12,114.52947218947619,0,161.22034611053283,0,161.22034611053283,28,18.384776310850235,22,18.357559750685819,88,40.311288741492746,88,35.468295701936398,0,161.22034611053283,0,161.22034611053283,6,6.4031242374328485,108,48.270073544588683]
[null,"Enrolled in grade 9 to grade 12",0,114,0,114,0,114,494,126,0,114,30,26,0,114,7,7,93,66,84,52,0,114,0,114,83,40,0,114,0,114,18,9,11,15,0,114,94,53,0,114,0,114,33,17,0,114,242,103,0,114,0,114,54,20,0,114,96,42,0,114,0,114,5,8,16,19,0,114,0,114,21,13,33,26,50,20,28,17,0,114,0,114,0,114,120,48]
[null,"Enrolled in Elementary and High School",0,197.45379206285202,0,197.45379206285202,0,197.45379206285202,1234,203.91419764204747,0,197.45379206285202,39,27.147743920996454,0,197.45379206285202,31,16.552945357246848,265,104.19213022104884,176,69.433421347359797,0,197.45379206285202,0,197.45379206285202,203,60.166435825965294,0,197.45379206285202,0,197.45379206285202,59,38.716921365211881,29,22.825424421026653,0,197.45379206285202,482,121.4660446379975,0,197.45379206285202,0,197.45379206285202,118,37.868192457522973,0,197.45379206285202,735,178.44326829555661,0,197.45379206285202,0,197.45379206285202,146,33.496268448888451,0,197.45379206285202,294,89.922188585465378,0,197.45379206285202,0,197.45379206285202,44,24.166091947189145,28,116.09478885807063,0,197.45379206285202,0,197.45379206285202,49,22.516660498395403,55,31.827660925679098,138,45,116,39.331920878594275,0,197.45379206285202,0,197.45379206285202,6,114.17968295629481,228,68.073489700470034]
[null,"Enrolled in College or Graduate School",0,161.22034611053283,0,161.22034611053283,0,161.22034611053283,325,111.66467659918243,0,161.22034611053283,18,115.7410903698423,0,161.22034611053283,13,114.52947218947619,20,115.41230437002807,27,115.41230437002807,0,161.22034611053283,0,161.22034611053283,38,21.931712199461309,0,161.22034611053283,0,161.22034611053283,49,47.381430961928537,1,114.03946685248927,0,161.22034611053283,201,95.801878895979911,0,161.22034611053283,0,161.22034611053283,6,114.21471008587291,0,161.22034611053283,114,55.470712993434653,0,161.22034611053283,0,161.22034611053283,52,20.880613017821101,0,161.22034611053283,86,121.14866899805379,0,161.22034611053283,0,161.22034611053283,34,20.615528128088304,10,114.52947218947619,0,161.22034611053283,0,161.22034611053283,19,15.231546211727817,26,116.10340218959993,24,14.560219778561036,27,115.91807451816995,0,161.22034611053283,0,161.22034611053283,0,161.22034611053283,50,30.413812651491099]
[null,"Not enrolled in school",0,114,0,114,0,114,7580,225,0,114,508,96,0,114,271,63,1755,207,605,120,0,114,0,114,855,109,0,114,122,169,240,52,214,54,0,114,1974,153,0,114,0,114,761,89,0,114,2229,169,0,114,0,114,1012,79,4,5,1745,197,0,114,0,114,656,116,308,65,0,114,0,114,344,66,440,103,715,131,770,141,0,114,0,114,37,21,1700,192]

{"sheet":"ACS_Table_B15002","index":63,"n_rows":141,"n_cols":88,"rows_kept":141,"cut":false,"hidden":true,"merged":[]}
[null,"B15002. SEX BY EDUCATIONAL ATTAINMENT FOR THE POPULATION 25 YEARS AND OVER"]
[null,"Universe: Population 25 years an over"]
[null,"Data Set: 2015-2019 American Community Survey 5-Year Estimates"]
[]
[null,null,"Atkinson and Gilmanton Grant",null,"Bean's Grant",null,"Bean's Purchase",null,"Berlin",null,"Cambridge",null,"Carroll",null,"Chandler's Purchase",null,"Clarksville",null,"Colebrook",null,"Columbia",null,"Crawford's Purchase",null,"Cutt's Grant",null,"Dalton",null,"Dix's Grant",null,"Dixville",null,"Dummer",null,"Errol",null,"Erving's Location",null,"Gorham",null,"Greens Grant",null,"Hadley's Purchase",null,"Jefferson",null,"Kilkenny",null,"Lancaster",null,"Low and Burbank's Grant",null,"Martin's Location",null,"Milan",null,"Millsfield",null,"Northumberland",null,"Odell",null,"Pinkham's Grant",null,"Pittsburg",null,"Randolph",null,"Sargent's Purchase",null,"Second College Grant",null,"Shelburne",null,"Stark",null,"Stewartstown",null,"Stratford",null,"Success",null,"Thompson and Meserves Purchase",null,"Wentworth's Location",null,"Whitefield"]
[null,null,"Estimate","Margin Of Error","Estimate","Margin Of Error","Estimate","Margin Of Error","Estimate","Margin Of Error","Estimate","Margin Of Error","Estimate","Margin Of Error","Estimate","Margin Of Error","Estimate","Margin Of Error","Estimate","Margin Of Error","Estimate","Margin Of Error","Estimate","Margin Of Error","Estimate","Margin Of Error","Estimate","Margin Of Error","Estimate","Margin Of Error","Estimate","Margin Of Error","Estimate","Margin Of Error","Estimate","Margin Of Error","Estimate","Margin Of Error","Estimate","Margin Of Error","Estimate","Margin Of Error","Estimate","Margin Of Error","Estimate","Margin Of Error","Estimate","Margin Of Error","Estimate","Margin Of Error","Estimate","Margin Of Error","Estimate","Margin Of Error","Estimate","Margin Of Error","Estimate","Margin Of Error","Estimate","Margin Of Error","Estimate","Margin Of Error","Estimate","Margin Of Error","Estimate","Margin Of Error","Estimate","Margin Of Error","Estimate","Margin Of Error","Estimate","Margin Of Error","Estimate","Margin Of Error","Estimate","Margin Of Error","Estimate","Margin Of Error","Estimate","Margin Of Error","Estimate","Margin Of Error","Estimate","Margin Of Error","Estimate","Margin Of Error","Estimate","Margin Of Error"]
[null,"Total:",0,11,0,11,0,11,7881,164,0,11,553,79,0,11,264,71,1483,138,502,83,0,11,0,11,690,94,0,11,5,10,226,39,178,44,0,11,2077,86,10,8,0,11,663,91,0,11,2300,146,0,11,0,11,1004,75,8,12,1645,148,5,11,4,8,661,82,310,56,0,11,0,11,343,51,437,74,783,112,476,82,0,11,0,11,26,16,1774,153]
[null,"Male:",0,11,0,11,0,11,4522,179,0,11,299,49,0,11,134,39,731,89,263,54,0,11,0,11,324,54,0,11,3,8,122,25,91,25,0,11,1094,76,10,8,0,11,294,49,0,11,1102,115,0,11,0,11,531,49,4,6,822,95,0,11,4,8,356,50,159,29,0,11,0,11,176,28,232,45,404,73,244,52,0,11,0,11,19,12,793,103]
[null,"No schooling completed",0,11,0,11,0,11,68,66,0,11,0,11,0,11,0,11,13,12,0,11,0,11,0,11,0,11,0,11,0,11,2,4,0,11,0,11,0,11,0,11,0,11,0,11,0,11,24,31,0,11,0,11,0,11,0,11,15,21,0,11,0,11,3,5,0,11,0,11,0,11,0,11,2,3,0,11,0,11,0,11,0,11,2,3,6,8]
[null,"Nursery to 4th grade",0,11,0,11,0,11,0,18,0,11,0,11,0,11,0,11,0,11,0,11,0,11,0,11,0,11,0,11,0,11,0,11,0,11,0,11,0,11,0,11,0,11,0,11,0,11,0,11,0,11,0,11,0,11,0,11,0,11,0,11,0,11,0,11,0,11,0,11,0,11,0,11,0,11,3,4,0,11,0,11,0,11,0,11,0,11]
[null,"5th and 6th grade",0,11,0,11,0,11,26,25,0,11,0,11,0,11,1,3,14,22,0,11,0,11,0,11,0,11,0,11,0,11,0,11,0,11,0,11,0,11,0,11,0,11,0,11,0,11,32,36,0,11,0,11,0,11,0,11,4,7,0,11,0,11,8,11,0,11,0,11,0,11,0,11,0,11,0,11,10,12,0,11,0,11,0,11,0,11]
[null,"7th and 8th grade",0,11,0,11,0,11,185,104,0,11,0,11,0,11,1,2,6,9,17,17,0,11,0,11,4,6,0,11,0,11,8,8,3,3,0,11,15,17,0,11,0,11,8,7,0,11,21,22,0,11,0,11,9,6,0,11,36,26,0,11,0,11,3,4,0,11,0,11,0,11,0,11,12,10,8,13,30,19,0,11,0,11,0,11,0,11]
[null,"9th grade",0,11,0,11,0,11,80,57,0,11,0,11,0,11,0,11,25,20,2,3,0,11,0,11,2,4,0,11,1,3,0,11,0,11,0,11,38,43,0,11,0,11,6,6,0,11,0,11,0,11,0,11,12,9,0,11,21,31,0,11,0,11,4,5,0,11,0,11,0,11,5,6,4,4,11,17,12,10,0,11,0,11,0,11,15,14]
[null,"10th grade",0,11,0,11,0,11,185,82,0,11,5,5,0,11,18,17,47,26,20,14,0,11,0,11,8,9,0,11,0,11,0,11,1,3,0,11,0,11,0,11,0,11,10,9,0,11,0,11,0,11,0,11,21,19,0,11,26,16,0,11,0,11,0,11,0,11,0,11,0,11,1,4,15,13,14,16,2,4,0,11,0,11,0,11,21,20]
[null,"11th grade",0,11,0,11,0,11,137,86,0,11,17,17,0,11,2,3,40,35,4,4,0,11,0,11,3,5,0,11,0,11,0,11,0,11,0,11,33,40,0,11,0,11,29,21,0,11,29,33,0,11,0,11,23,13,0,11,35,25,0,11,0,11,9,13,0,11,0,11,0,11,0,11,0,11,9,13,19,17,0,11,0,11,0,11,8,13]
[null,"12th grade, no diploma",0,11,0,11,0,11,87,42,0,11,0,11,0,11,3,4,0,11,5,5,0,11,0,11,6,6,0,11,0,11,4,5,0,11,0,11,36,27,0,11,0,11,0,11,0,11,0,11,0,11,0,11,3,4,0,11,22,14,0,11,0,11,4,5,0,11,0,11,0,11,0,11,3,5,2,3,3,4,0,11,0,11,4,4,24,29]
[null,"High school graduate, GED, or alternative",0,11,0,11,0,11,2225,256,0,11,120,35,0,11,62,24,190,50,104,31,0,11,0,11,103,29,0,11,0,11,56,17,51,21,0,11,344,98,3,6,0,11,59,21,0,11,415,86,0,11,0,11,233,38,4,6,406,86,0,11,0,11,126,33,30,13,0,11,0,11,65,21,111,35,207,59,90,28,0,11,0,11,8,8,305,75]
[null,"Some college, less than 1 year",0,11,0,11,0,11,357,132,0,11,25,14,0,11,9,7,82,43,29,20,0,11,0,11,36,21,0,11,0,11,9,9,0,11,0,11,110,60,0,11,0,11,4,5,0,11,77,48,0,11,0,11,34,14,0,11,56,28,0,11,4,8,19,18,17,12,0,11,0,11,6,7,18,11,22,20,22,18,0,11,0,11,0,11,44,28]
[null,"Some college, 1 or more years, no degree",0,11,0,11,0,11,445,120,0,11,30,14,0,11,11,9,114,53,29,19,0,11,0,11,50,27,0,11,0,11,13,9,16,11,0,11,124,68,3,6,0,11,48,23,0,11,138,78,0,11,0,11,70,23,0,11,71,29,0,11,0,11,99,39,23,13,0,11,0,11,22,14,31,18,62,32,32,18,0,11,0,11,5,5,104,39]
[null,"Associate's degree",0,11,0,11,0,11,351,113,0,11,15,8,0,11,4,7,62,29,30,19,0,11,0,11,53,33,0,11,0,11,7,5,13,14,0,11,124,61,0,11,0,11,24,15,0,11,105,47,0,11,0,11,38,19,0,11,75,37,0,11,0,11,37,24,15,11,0,11,0,11,19,11,18,13,18,11,11,7,0,11,0,11,0,11,77,38]
[null,"Bachelor's degree",0,11,0,11,0,11,283,103,0,11,48,16,0,11,3,4,94,38,17,13,0,11,0,11,37,31,0,11,2,6,16,9,7,6,0,11,193,81,2,4,0,11,72,25,0,11,107,52,0,11,0,11,45,21,0,11,32,20,0,11,0,11,35,18,39,15,0,11,0,11,34,13,12,9,39,27,11,8,0,11,0,11,0,11,162,53]
[null,"Master's degree",0,11,0,11,0,11,66,44,0,11,31,18,0,11,17,14,20,14,0,11,0,11,0,11,18,16,0,11,0,11,5,4,0,11,0,11,50,34,2,6,0,11,14,9,0,11,109,56,0,11,0,11,43,21,0,11,17,12,0,11,0,11,6,8,16,9,0,11,0,11,14,10,4,5,5,6,2,4,0,11,0,11,0,11,11,12]
[null,"Professional school degree",0,11,0,11,0,11,17,18,0,11,5,5,0,11,3,5,17,16,6,6,0,11,0,11,4,6,0,11,0,11,2,3,0,11,0,11,19,22,0,11,0,11,17,12,0,11,31,30,0,11,0,11,0,11,0,11,6,8,0,11,0,11,0,11,11,6,0,11,0,11,6,7,2,4,4,5,0,11,0,11,0,11,0,11,11,11]
[null,"Doctorate degree",0,11,0,11,0,11,10,16,0,11,3,4,0,11,0,11,7,9,0,11,0,11,0,11,0,11,0,11,0,11,0,11,0,11,0,11,8,11,0,11,0,11,3,5,0,11,14,20,0,11,0,11,0,11,0,11,0,11,0,11,0,11,3,5,8,5,0,11,0,11,4,5,0,11,0,11,0,11,0,11,0,11,0,11,5,8]
[null,"Female:",0,11,0,11,0,11,3359,155,0,11,254,40,0,11,130,38,752,83,239,40,0,11,0,11,366,58,0,11,2,6,104,21,87,28,0,11,983,78,0,11,0,11,369,52,0,11,1198,118,0,11,0,11,473,39,4,6,823,76,5,11,0,11,305,46,151,33,0,11,0,11,167,31,205,36,379,71,232,43,0,11,0,11,7,6,981,113]
[null,"No schooling completed",0,11,0,11,0,11,37,34,0,11,1,3,0,11,0,11,3,6,6,6,0,11,0,11,0,11,0,11,0,11,0,11,0,11,0,11,0,11,0,11,0,11,0,11,0,11,10,16,0,11,0,11,0,11,0,11,9,12,0,11,0,11,0,11,0,11,0,11,0,11,0,11,0,11,0,11,4,4,0,11,0,11,0,11,0,11]
[null,"Nursery to 4th grade",0,11,0,11,0,11,13,16,0,11,0,11,0,11,0,11,0,11,0,11,0,11,0,11,0,11,0,11,0,11,0,11,0,11,0,11,0,11,0,11,0,11,4,8,0,11,4,8,0,11,0,11,0,11,0,11,0,11,0,11,0,11,0,11,0,11,0,11,0,11,0,11,0,11,0,11,0,11,0,11,0,11,0,11,5,8]
[null,"5th and 6th grade",0,11,0,11,0,11,24,18,0,11,0,11,0,11,0,11,11,10,0,11,0,11,0,11,0,11,0,11,0,11,0,11,0,11,0,11,9,13,0,11,0,11,0,11,0,11,4,8,0,11,0,11,0,11,0,11,0,11,0,11,0,11,0,11,0,11,0,11,0,11,2,3,0,11,12,18,0,11,0,11,0,11,0,11,11,25]
[null,"7th and 8th grade",0,11,0,11,0,11,121,73,0,11,0,11,0,11,2,4,10,14,7,8,0,11,0,11,0,11,0,11,1,3,0,11,0,11,0,11,0,11,0,11,0,11,0,11,0,11,6,10,0,11,0,11,0,11,0,11,15,22,0,11,0,11,3,4,0,11,0,11,0,11,4,6,0,11,27,23,15,12,0,11,0,11,0,11,43,38]
[null,"9th grade",0,11,0,11,0,11,46,28,0,11,3,4,0,11,0,11,24,24,4,7,0,11,0,11,0,11,0,11,0,11,0,11,0,11,0,11,6,9,0,11,0,11,0,11,0,11,7,11,0,11,0,11,0,11,0,11,21,27,0,11,0,11,3,4,0,11,0,11,0,11,0,11,0,11,10,15,3,4,0,11,0,11,0,11,0,11]
[null,"10th grade",0,11,0,11,0,11,82,68,0,11,2,3,0,11,2,3,4,6,2,3,0,11,0,11,25,27,0,11,0,11,1,3,0,11,0,11,18,19,0,11,0,11,0,11,0,11,12,14,0,11,0,11,16,11,0,11,4,6,0,11,0,11,6,5,0,11,0,11,0,11,2,3,1,3,9,13,10,15,0,11,0,11,0,11,21,32]
[null,"11th grade",0,11,0,11,0,11,77,55,0,11,6,5,0,11,0,11,20,16,1,2,0,11,0,11,0,11,0,11,1,4,2,3,0,11,0,11,0,11,0,11,0,11,0,11,0,11,6,12,0,11,0,11,0,11,0,11,28,24,0,11,0,11,12,10,6,10,0,11,0,11,1,4,0,11,16,22,18,15,0,11,0,11,0,11,16,26]
[null,"12th grade, no diploma",0,11,0,11,0,11,41,27,0,11,0,11,0,11,0,11,5,7,0,11,0,11,0,11,13,10,0,11,0,11,0,11,0,11,0,11,18,18,0,11,0,11,6,6,0,11,18,23,0,11,0,11,2,4,0,11,13,18,0,11,0,11,6,8,0,11,0,11,0,11,0,11,2,3,4,6,4,4,0,11,0,11,0,11,11,12]
[null,"High school graduate, GED, or alternative",0,11,0,11,0,11,1319,195,0,11,65,26,0,11,62,30,321,70,82,28,0,11,0,11,101,29,0,11,0,11,42,16,34,15,0,11,286,81,0,11,0,11,105,26,0,11,413,110,0,11,0,11,160,37,4,6,369,67,5,11,0,11,105,39,14,10,0,11,0,11,46,19,102,25,120,40,84,23,0,11,0,11,7,6,311,93]
[null,"Some college, less than 1 year",0,11,0,11,0,11,181,80,0,11,15,9,0,11,12,11,97,43,24,17,0,11,0,11,23,14,0,11,0,11,4,4,3,5,0,11,80,49,0,11,0,11,29,15,0,11,120,61,0,11,0,11,25,13,0,11,108,54,0,11,0,11,14,12,2,3,0,11,0,11,14,10,19,10,49,30,13,12,0,11,0,11,0,11,91,42]
[null,"Some college, 1 or more years, no degree",0,11,0,11,0,11,442,155,0,11,35,19,0,11,13,11,115,51,43,21,0,11,0,11,56,30,0,11,0,11,12,9,13,11,0,11,72,35,0,11,0,11,46,22,0,11,144,57,0,11,0,11,66,25,0,11,60,31,0,11,0,11,53,27,14,10,0,11,0,11,29,19,34,19,45,26,35,20,0,11,0,11,0,11,92,61]
[null,"Associate's degree",0,11,0,11,0,11,374,118,0,11,59,28,0,11,10,8,48,34,31,21,0,11,0,11,59,31,0,11,0,11,19,10,21,13,0,11,209,57,0,11,0,11,49,16,0,11,184,68,0,11,0,11,66,19,0,11,105,28,0,11,0,11,50,25,13,7,0,11,0,11,20,11,17,10,19,17,33,24,0,11,0,11,0,11,102,41]
[null,"Bachelor's degree",0,11,0,11,0,11,449,127,0,11,41,16,0,11,18,11,75,30,27,13,0,11,0,11,49,23,0,11,0,11,16,10,6,8,0,11,190,63,0,11,0,11,82,31,0,11,141,65,0,11,0,11,101,36,0,11,79,29,0,11,0,11,44,27,75,22,0,11,0,11,24,11,18,10,20,18,7,6,0,11,0,11,0,11,165,58]
[null,"Master's degree",0,11,0,11,0,11,134,61,0,11,20,9,0,11,9,10,19,14,12,8,0,11,0,11,25,17,0,11,0,11,8,5,10,10,0,11,75,40,0,11,0,11,44,24,0,11,102,62,0,11,0,11,31,13,0,11,12,12,0,11,0,11,9,9,22,15,0,11,0,11,22,10,12,10,35,21,4,6,0,11,0,11,0,11,74,45]
[null,"Professional school degree",0,11,0,11,0,11,6,10,0,11,5,6,0,11,2,4,0,11,0,11,0,11,0,11,4,6,0,11,0,11,0,11,0,11,0,11,20,22,0,11,0,11,0,11,0,11,13,22,0,11,0,11,4,5,0,11,0,11,0,11,0,11,0,11,1,3,0,11,0,11,1,2,0,11,0,11,2,3,0,11,0,11,0,11,12,12]
[null,"Doctorate degree",0,11,0,11,0,11,13,23,0,11,2,3,0,11,0,11,0,11,0,11,0,11,0,11,11,18,0,11,0,11,0,11,0,11,0,11,0,11,0,11,0,11,4,5,0,11,14,20,0,11,0,11,2,4,0,11,0,11,0,11,0,11,0,11,4,4,0,11,0,11,2,3,0,11,13,17,0,11,0,11,0,11,0,11,27,32]
[]
[]
[]
[]
[]
[]
[]
[]
[null,"Calculated B15002. SEX BY EDUCATIONAL ATTAINMENT FOR THE POPULATION 25 YEARS AND OVER"]
[]
[null,null,"Atkinson and Gilmanton Grant",null,"Bean's Grant",null,"Bean's Purchase",null,"Berlin",null,"Cambridge",null,"Carroll",null,"Chandler's Purchase",null,"Clarksville",null,"Colebrook",null,"Columbia",null,"Crawford's Purchase",null,"Cutt's Grant",null,"Dalton",null,"Dix's Grant",null,"Dixville",null,"Dummer",null,"Errol",null,"Erving's Location",null,"Gorham",null,"Greens Grant",null,"Hadley's Purchase",null,"Jefferson",null,"Kilkenny",null,"Lancaster",null,"Low and Burbank's Grant",null,"Martin's Location",null,"Milan",null,"Millsfield",null,"Northumberland",null,"Odell",null,"Pinkham's Grant",null,"Pittsburg",null,"Randolph",null,"Sargent's Purchase",null,"Second College Grant",null,"Shelburne",null,"Stark",null,"Stewartstown",null,"Stratford",null,"Success",null,"Thompson and Meserves Purchase",null,"Wentworth's Location",null,"Whitefield"]
[null,null,"Estimate","Margin Of Error","Estimate","Margin Of Error","Estimate","Margin Of Error","Estimate","Margin Of Error","Estimate","Margin Of Error","Estimate","Margin Of Error","Estimate","Margin Of Error","Estimate","Margin Of Error","Estimate","Margin Of Error","Estimate","Margin Of Error","Estimate","Margin Of Error","Estimate","Margin Of Error","Estimate","Margin Of Error","Estimate","Margin Of Error","Estimate","Margin Of Error","Estimate","Margin Of Error","Estimate","Margin Of Error","Estimate","Margin Of Error","Estimate","Margin Of Error","Estimate","Margin Of Error","Estimate","Margin Of Error","Estimate","Margin Of Error","Estimate","Margin Of Error","Estimate","Margin Of Error","Estimate","Margin Of Error","Estimate","Margin Of Error","Estimate","Margin Of Error","Estimate","Margin Of Error","Estimate","Margin Of Error","Estimate","Margin Of Error","Estimate","Margin Of Error","Estimate","Margin Of Error","Estimate","Margin Of Error","Estimate","Margin Of Error","Estimate","Margin Of Error","Estimate","Margin Of Error","Estimate","Margin Of Error","Estimate","Margin Of Error","Estimate","Margin Of Error","Estimate","Margin Of Error","Estimate","Margin Of Error","Estimate","Margin Of Error","Estimate","Margin Of Error"]
[null,"Total:",{"$f":"C7","v":0},{"$f":"D7","v":11},{"$f":"E7","v":0},{"$f":"F7","v":11},{"$f":"G7","v":0},11,7881,164,0,11,553,79,0,11,264,71,1483,138,502,83,0,11,0,11,690,94,0,11,5,10,226,39,178,44,0,11,2077,86,{"$f":"AO7","v":10},8,0,11,663,91,0,11,2300,146,0,11,0,11,1004,75,8,12,1645,148,5,11,4,8,661,82,310,56,0,11,0,11,343,51,437,74,783,112,476,82,0,11,0,11,26,16,1774,153]
[null,"Less than 9th grade",{"$f":"(C12+C11+C10)+(C27+C28+C29)","v":0},{"$f":"SQRT((D12^2)+(D11^2)+(D10^2)+(D27^2)+(D28^2)+(D29^2))","v":26.944387170614959},{"$f":"(E12+E11+E10)+(E27+E28+E29)","v":0},{"$f":"SQRT((F12^2)+(F11^2)+(F10^2)+(F27^2)+(F28^2)+(F29^2))","v":26.944387170614959},{"$f":"(G12+G11+G10)+(G27+G28+G29)","v":0},{"$f":"SQRT((H12^2)+(H11^2)+(H10^2)+(H27^2)+(H28^2)+(H29^2))","v":26.944387170614959},{"$f":"(I12+I11+I10)+(I27+I28+I29)","v":369},{"$f":"SQRT((J12^2)+(J11^2)+(J10^2)+(J27^2)+(J28^2)+(J29^2))","v":132.94359706281458},{"$f":"(K12+K11+K10)+(K27+K28+K29)","v":0},{"$f":"SQRT((L12^2)+(L11^2)+(L10^2)+(L27^2)+(L28^2)+(L29^2))","v":26.944387170614959},{"$f":"(M12+M11+M10)+(M27+M28+M29)","v":0},{"$f":"SQRT((N12^2)+(N11^2)+(N10^2)+(N27^2)+(N28^2)+(N29^2))","v":26.944387170614959},{"$f":"(O12+O11+O10)+(O27+O28+O29)","v":0},{"$f":"SQRT((P12^2)+(P11^2)+(P10^2)+(P27^2)+(P28^2)+(P29^2))","v":26.944387170614959},{"$f":"(Q12+Q11+Q10)+(Q27+Q28+Q29)","v":4},{"$f":"SQRT((R12^2)+(R11^2)+(R10^2)+(R27^2)+(R28^2)+(R29^2))","v":19.798989873223331},{"$f":"(S12+S11+S10)+(S27+S28+S29)","v":41},{"$f":"SQRT((T12^2)+(T11^2)+(T10^2)+(T27^2)+(T28^2)+(T29^2))","v":33.211443810831227},{"$f":"(U12+U11+U10)+(U27+U28+U29)","v":24},{"$f":"SQRT((V12^2)+(V11^2)+(V10^2)+(V27^2)+(V28^2)+(V29^2))","v":28.930952282978865},{"$f":"(W12+W11+W10)+(W27+W28+W29)","v":0},{"$f":"SQRT((X12^2)+(X11^2)+(X10^2)+(X27^2)+(X28^2)+(X29^2))","v":26.944387170614959},{"$f":"(Y12+Y11+Y10)+(Y27+Y28+Y29)","v":0},{"$f":"SQRT((Z12^2)+(Z11^2)+(Z10^2)+(Z27^2)+(Z28^2)+(Z29^2))","v":26.944387170614959},{"$f":"(AA12+AA11+AA10)+(AA27+AA28+AA29)","v":4},{"$f":"SQRT((AB12^2)+(AB11^2)+(AB10^2)+(AB27^2)+(AB28^2)+(AB29^2))","v":25.317977802344327},{"$f":"(AC12+AC11+AC10)+(AC27+AC28+AC29)","v":0},{"$f":"SQRT((AD12^2)+(AD11^2)+(AD10^2)+(AD27^2)+(AD28^2)+(AD29^2))","v":26.944387170614959},{"$f":"(AE12+AE11+AE10)+(AE27+AE28+AE29)","v":1},{"$f":"SQRT((AF12^2)+(AF11^2)+(AF10^2)+(AF27^2)+(AF28^2)+(AF29^2))","v":24.779023386727733},{"$f":"(AG12+AG11+AG10)+(AG27+AG28+AG29)","v":8},{"$f":"SQRT((AH12^2)+(AH11^2)+(AH10^2)+(AH27^2)+(AH28^2)+(AH29^2))","v":25.865034312755125},{"$f":"(AI12+AI11+AI10)+(AI27+AI28+AI29)","v":3},{"$f":"SQRT((AJ12^2)+(AJ11^2)+(AJ10^2)+(AJ27^2)+(AJ28^2)+(AJ29^2))","v":24.779023386727733},{"$f":"(AK12+AK11+AK10)+(AK27+AK28+AK29)","v":0},{"$f":"SQRT((AL12^2)+(AL11^2)+(AL10^2)+(AL27^2)+(AL28^2)+(AL29^2))","v":26.944387170614959},{"$f":"(AM12+AM11+AM10)+(AM27+AM28+AM29)","v":24},{"$f":"SQRT((AN12^2)+(AN11^2)+(AN10^2)+(AN27^2)+(AN28^2)+(AN29^2))","v":30.692018506445613},{"$f":"(AO12+AO11+AO10)+(AO27+AO28+AO29)","v":0},{"$f":"SQRT((AP12^2)+(AP11^2)+(AP10^2)+(AP27^2)+(AP28^2)+(AP29^2))","v":26.944387170614959},{"$f":"(AQ12+AQ11+AQ10)+(AQ27+AQ28+AQ29)","v":0},{"$f":"SQRT((AR12^2)+(AR11^2)+(AR10^2)+(AR27^2)+(AR28^2)+(AR29^2))","v":26.944387170614959},{"$f":"(AS12+AS11+AS10)+(AS27+AS28+AS29)","v":12},{"$f":"SQRT((AT12^2)+(AT11^2)+(AT10^2)+(AT27^2)+(AT28^2)+(AT29^2))","v":24.433583445741231},{"$f":"(AU12+AU11+AU10)+(AU27+AU28+AU29)","v":0},{"$f":"SQRT((AV12^2)+(AV11^2)+(AV10^2)+(AV27^2)+(AV28^2)+(AV29^2))","v":26.944387170614959},{"$f":"(AW12+AW11+AW10)+(AW27+AW28+AW29)","v":67},{"$f":"SQRT((AX12^2)+(AX11^2)+(AX10^2)+(AX27^2)+(AX28^2)+(AX29^2))","v":46.141087980237309},{"$f":"(AY12+AY11+AY10)+(AY27+AY28+AY29)","v":0},{"$f":"SQRT((AZ12^2)+(AZ11^2)+(AZ10^2)+(AZ27^2)+(AZ28^2)+(AZ29^2))","v":26.944387170614959},{"$f":"(BA12+BA11+BA10)+(BA27+BA28+BA29)","v":0},{"$f":"SQRT((BB12^2)+(BB11^2)+(BB10^2)+(BB27^2)+(BB28^2)+(BB29^2))","v":26.944387170614959},{"$f":"(BC12+BC11+BC10)+(BC27+BC28+BC29)","v":9},{"$f":"SQRT((BD12^2)+(BD11^2)+(BD10^2)+(BD27^2)+(BD28^2)+(BD29^2))","v":25.317977802344327},{"$f":"(BE12+BE11+BE10)+(BE27+BE28+BE29)","v":0},{"$f":"SQRT((BF12^2)+(BF11^2)+(BF10^2)+(BF27^2)+(BF28^2)+(BF29^2))","v":26.944387170614959},{"$f":"(BG12+BG11+BG10)+(BG27+BG28+BG29)","v":55},{"$f":"SQRT((BH12^2)+(BH11^2)+(BH10^2)+(BH27^2)+(BH28^2)+(BH29^2))","v":39.648455203198019},{"$f":"(BI12+BI11+BI10)+(BI27+BI28+BI29)","v":0},{"$f":"SQRT((BJ12^2)+(BJ11^2)+(BJ10^2)+(BJ27^2)+(BJ28^2)+(BJ29^2))","v":26.944387170614959},{"$f":"(BK12+BK11+BK10)+(BK27+BK28+BK29)","v":0},{"$f":"SQRT((BL12^2)+(BL11^2)+(BL10^2)+(BL27^2)+(BL28^2)+(BL29^2))","v":26.944387170614959},{"$f":"(BM12+BM11+BM10)+(BM27+BM28+BM29)","v":14},{"$f":"SQRT((BN12^2)+(BN11^2)+(BN10^2)+(BN27^2)+(BN28^2)+(BN29^2))","v":22.715633383201094},{"$f":"(BO12+BO11+BO10)+(BO27+BO28+BO29)","v":0},{"$f":"SQRT((BP12^2)+(BP11^2)+(BP10^2)+(BP27^2)+(BP28^2)+(BP29^2))","v":26.944387170614959},{"$f":"(BQ12+BQ11+BQ10)+(BQ27+BQ28+BQ29)","v":0},{"$f":"SQRT((BR12^2)+(BR11^2)+(BR10^2)+(BR27^2)+(BR28^2)+(BR29^2))","v":26.944387170614959},{"$f":"(BS12+BS11+BS10)+(BS27+BS28+BS29)","v":0},{"$f":"SQRT((BT12^2)+(BT11^2)+(BT10^2)+(BT27^2)+(BT28^2)+(BT29^2))","v":26.944387170614959},{"$f":"(BU12+BU11+BU10)+(BU27+BU28+BU29)","v":6},{"$f":"SQRT((BV12^2)+(BV11^2)+(BV10^2)+(BV27^2)+(BV28^2)+(BV29^2))","v":23},{"$f":"(BW12+BW11+BW10)+(BW27+BW28+BW29)","v":12},{"$f":"SQRT((BX12^2)+(BX11^2)+(BX10^2)+(BX27^2)+(BX28^2)+(BX29^2))","v":26.551836094703507},{"$f":"(BY12+BY11+BY10)+(BY27+BY28+BY29)","v":50},{"$f":"SQRT((BZ12^2)+(BZ11^2)+(BZ10^2)+(BZ27^2)+(BZ28^2)+(BZ29^2))","v":35.777087639996637},{"$f":"(CA12+CA11+CA10)+(CA27+CA28+CA29)","v":55},{"$f":"SQRT((CB12^2)+(CB11^2)+(CB10^2)+(CB27^2)+(CB28^2)+(CB29^2))","v":31.811947441173732},{"$f":"(CC12+CC11+CC10)+(CC27+CC28+CC29)","v":0},{"$f":"SQRT((CD12^2)+(CD11^2)+(CD10^2)+(CD27^2)+(CD28^2)+(CD29^2))","v":26.944387170614959},{"$f":"(CE12+CE11+CE10)+(CE27+CE28+CE29)","v":0},{"$f":"SQRT((CF12^2)+(CF11^2)+(CF10^2)+(CF27^2)+(CF28^2)+(CF29^2))","v":26.944387170614959},{"$f":"(CG12+CG11+CG10)+(CG27+CG28+CG29)","v":0},{"$f":"SQRT((CH12^2)+(CH11^2)+(CH10^2)+(CH27^2)+(CH28^2)+(CH29^2))","v":26.944387170614959},{"$f":"(CI12+CI11+CI10)+(CI27+CI28+CI29)","v":59},{"$f":"SQRT((CJ12^2)+(CJ11^2)+(CJ10^2)+(CJ27^2)+(CJ28^2)+(CJ29^2))","v":49.959983987187186}]
[null,"9th to 12th grade, no diploma",{"$f":"(C13+C14+C15+C16)+(C30+C31+C32+C33)","v":0},{"$f":"SQRT((D13^2)+(D14^2)+(D15^2)+(D16^2)+(D30^2)+(D31^2)+(D32^2)+(D33^2))","v":31.11269837220809},{"$f":"(E13+E14+E15+E16)+(E30+E31+E32+E33)","v":0},{"$f":"SQRT((F13^2)+(F14^2)+(F15^2)+(F16^2)+(F30^2)+(F31^2)+(F32^2)+(F33^2))","v":31.11269837220809},{"$f":"(G13+G14+G15+G16)+(G30+G31+G32+G33)","v":0},{"$f":"SQRT((H13^2)+(H14^2)+(H15^2)+(H16^2)+(H30^2)+(H31^2)+(H32^2)+(H33^2))","v":31.11269837220809},{"$f":"(I13+I14+I15+I16)+(I30+I31+I32+I33)","v":735},{"$f":"SQRT((J13^2)+(J14^2)+(J15^2)+(J16^2)+(J30^2)+(J31^2)+(J32^2)+(J33^2))","v":168.21117679868956},{"$f":"(K13+K14+K15+K16)+(K30+K31+K32+K33)","v":0},{"$f":"SQRT((L13^2)+(L14^2)+(L15^2)+(L16^2)+(L30^2)+(L31^2)+(L32^2)+(L33^2))","v":31.11269837220809},{"$f":"(M13+M14+M15+M16)+(M30+M31+M32+M33)","v":33},{"$f":"SQRT((N13^2)+(N14^2)+(N15^2)+(N16^2)+(N30^2)+(N31^2)+(N32^2)+(N33^2))","v":26.962937525425527},{"$f":"(O13+O14+O15+O16)+(O30+O31+O32+O33)","v":0},{"$f":"SQRT((P13^2)+(P14^2)+(P15^2)+(P16^2)+(P30^2)+(P31^2)+(P32^2)+(P33^2))","v":31.11269837220809},{"$f":"(Q13+Q14+Q15+Q16)+(Q30+Q31+Q32+Q33)","v":25},{"$f":"SQRT((R13^2)+(R14^2)+(R15^2)+(R16^2)+(R30^2)+(R31^2)+(R32^2)+(R33^2))","v":28.407745422683583},{"$f":"(S13+S14+S15+S16)+(S30+S31+S32+S33)","v":165},{"$f":"SQRT((T13^2)+(T14^2)+(T15^2)+(T16^2)+(T30^2)+(T31^2)+(T32^2)+(T33^2))","v":57.784080852774665},{"$f":"(U13+U14+U15+U16)+(U30+U31+U32+U33)","v":38},{"$f":"SQRT((V13^2)+(V14^2)+(V15^2)+(V16^2)+(V30^2)+(V31^2)+(V32^2)+(V33^2))","v":20.71231517720798},{"$f":"(W13+W14+W15+W16)+(W30+W31+W32+W33)","v":0},{"$f":"SQRT((X13^2)+(X14^2)+(X15^2)+(X16^2)+(X30^2)+(X31^2)+(X32^2)+(X33^2))","v":31.11269837220809},{"$f":"(Y13+Y14+Y15+Y16)+(Y30+Y31+Y32+Y33)","v":0},{"$f":"SQRT((Z13^2)+(Z14^2)+(Z15^2)+(Z16^2)+(Z30^2)+(Z31^2)+(Z32^2)+(Z33^2))","v":31.11269837220809},{"$f":"(AA13+AA14+AA15+AA16)+(AA30+AA31+AA32+AA33)","v":57},{"$f":"SQRT((AB13^2)+(AB14^2)+(AB15^2)+(AB16^2)+(AB30^2)+(AB31^2)+(AB32^2)+(AB33^2))","v":35.057096285916209},{"$f":"(AC13+AC14+AC15+AC16)+(AC30+AC31+AC32+AC33)","v":0},{"$f":"SQRT((AD13^2)+(AD14^2)+(AD15^2)+(AD16^2)+(AD30^2)+(AD31^2)+(AD32^2)+(AD33^2))","v":31.11269837220809},{"$f":"(AE13+AE14+AE15+AE16)+(AE30+AE31+AE32+AE33)","v":2},{"$f":"SQRT((AF13^2)+(AF14^2)+(AF15^2)+(AF16^2)+(AF30^2)+(AF31^2)+(AF32^2)+(AF33^2))","v":27.404379212089442},{"$f":"(AG13+AG14+AG15+AG16)+(AG30+AG31+AG32+AG33)","v":7},{"$f":"SQRT((AH13^2)+(AH14^2)+(AH15^2)+(AH16^2)+(AH30^2)+(AH31^2)+(AH32^2)+(AH33^2))","v":25.45584412271571},{"$f":"(AI13+AI14+AI15+AI16)+(AI30+AI31+AI32+AI33)","v":1},{"$f":"SQRT((AJ13^2)+(AJ14^2)+(AJ15^2)+(AJ16^2)+(AJ30^2)+(AJ31^2)+(AJ32^2)+(AJ33^2))","v":29.257477676655586},{"$f":"(AK13+AK14+AK15+AK16)+(AK30+AK31+AK32+AK33)","v":0},{"$f":"SQRT((AL13^2)+(AL14^2)+(AL15^2)+(AL16^2)+(AL30^2)+(AL31^2)+(AL32^2)+(AL33^2))","v":31.11269837220809},{"$f":"(AM13+AM14+AM15+AM16)+(AM30+AM31+AM32+AM33)","v":149},{"$f":"SQRT((AN13^2)+(AN14^2)+(AN15^2)+(AN16^2)+(AN30^2)+(AN31^2)+(AN32^2)+(AN33^2))","v":72.013887549555335},{"$f":"(AO13+AO14+AO15+AO16)+(AO30+AO31+AO32+AO33)","v":0},{"$f":"SQRT((AP13^2)+(AP14^2)+(AP15^2)+(AP16^2)+(AP30^2)+(AP31^2)+(AP32^2)+(AP33^2))","v":31.11269837220809},{"$f":"(AQ13+AQ14+AQ15+AQ16)+(AQ30+AQ31+AQ32+AQ33)","v":0},{"$f":"SQRT((AR13^2)+(AR14^2)+(AR15^2)+(AR16^2)+(AR30^2)+(AR31^2)+(AR32^2)+(AR33^2))","v":31.11269837220809},{"$f":"(AS13+AS14+AS15+AS16)+(AS30+AS31+AS32+AS33)","v":51},{"$f":"SQRT((AT13^2)+(AT14^2)+(AT15^2)+(AT16^2)+(AT30^2)+(AT31^2)+(AT32^2)+(AT33^2))","v":32.832910318764007},{"$f":"(AU13+AU14+AU15+AU16)+(AU30+AU31+AU32+AU33)","v":0},{"$f":"SQRT((AV13^2)+(AV14^2)+(AV15^2)+(AV16^2)+(AV30^2)+(AV31^2)+(AV32^2)+(AV33^2))","v":31.11269837220809},{"$f":"(AW13+AW14+AW15+AW16)+(AW30+AW31+AW32+AW33)","v":72},{"$f":"SQRT((AX13^2)+(AX14^2)+(AX15^2)+(AX16^2)+(AX30^2)+(AX31^2)+(AX32^2)+(AX33^2))","v":49.416596402423345},{"$f":"(AY13+AY14+AY15+AY16)+(AY30+AY31+AY32+AY33)","v":0},{"$f":"SQRT((AZ13^2)+(AZ14^2)+(AZ15^2)+(AZ16^2)+(AZ30^2)+(AZ31^2)+(AZ32^2)+(AZ33^2))","v":31.11269837220809},{"$f":"(BA13+BA14+BA15+BA16)+(BA30+BA31+BA32+BA33)","v":0},{"$f":"SQRT((BB13^2)+(BB14^2)+(BB15^2)+(BB16^2)+(BB30^2)+(BB31^2)+(BB32^2)+(BB33^2))","v":31.11269837220809},{"$f":"(BC13+BC14+BC15+BC16)+(BC30+BC31+BC32+BC33)","v":77},{"$f":"SQRT((BD13^2)+(BD14^2)+(BD15^2)+(BD16^2)+(BD30^2)+(BD31^2)+(BD32^2)+(BD33^2))","v":31.717503054307411},{"$f":"(BE13+BE14+BE15+BE16)+(BE30+BE31+BE32+BE33)","v":0},{"$f":"SQRT((BF13^2)+(BF14^2)+(BF15^2)+(BF16^2)+(BF30^2)+(BF31^2)+(BF32^2)+(BF33^2))","v":31.11269837220809},{"$f":"(BG13+BG14+BG15+BG16)+(BG30+BG31+BG32+BG33)","v":170},{"$f":"SQRT((BH13^2)+(BH14^2)+(BH15^2)+(BH16^2)+(BH30^2)+(BH31^2)+(BH32^2)+(BH33^2))","v":60.852280154485584},{"$f":"(BI13+BI14+BI15+BI16)+(BI30+BI31+BI32+BI33)","v":0},{"$f":"SQRT((BJ13^2)+(BJ14^2)+(BJ15^2)+(BJ16^2)+(BJ30^2)+(BJ31^2)+(BJ32^2)+(BJ33^2))","v":31.11269837220809},{"$f":"(BK13+BK14+BK15+BK16)+(BK30+BK31+BK32+BK33)","v":0},{"$f":"SQRT((BL13^2)+(BL14^2)+(BL15^2)+(BL16^2)+(BL30^2)+(BL31^2)+(BL32^2)+(BL33^2))","v":31.11269837220809},{"$f":"(BM13+BM14+BM15+BM16)+(BM30+BM31+BM32+BM33)","v":44},{"$f":"SQRT((BN13^2)+(BN14^2)+(BN15^2)+(BN16^2)+(BN30^2)+(BN31^2)+(BN32^2)+(BN33^2))","v":23.345235059857504},{"$f":"(BO13+BO14+BO15+BO16)+(BO30+BO31+BO32+BO33)","v":6},{"$f":"SQRT((BP13^2)+(BP14^2)+(BP15^2)+(BP16^2)+(BP30^2)+(BP31^2)+(BP32^2)+(BP33^2))","v":30.773365106858236},{"$f":"(BQ13+BQ14+BQ15+BQ16)+(BQ30+BQ31+BQ32+BQ33)","v":0},{"$f":"SQRT((BR13^2)+(BR14^2)+(BR15^2)+(BR16^2)+(BR30^2)+(BR31^2)+(BR32^2)+(BR33^2))","v":31.11269837220809},{"$f":"(BS13+BS14+BS15+BS16)+(BS30+BS31+BS32+BS33)","v":0},{"$f":"SQRT((BT13^2)+(BT14^2)+(BT15^2)+(BT16^2)+(BT30^2)+(BT31^2)+(BT32^2)+(BT33^2))","v":31.11269837220809},{"$f":"(BU13+BU14+BU15+BU16)+(BU30+BU31+BU32+BU33)","v":9},{"$f":"SQRT((BV13^2)+(BV14^2)+(BV15^2)+(BV16^2)+(BV30^2)+(BV31^2)+(BV32^2)+(BV33^2))","v":23.685438564654021},{"$f":"(BW13+BW14+BW15+BW16)+(BW30+BW31+BW32+BW33)","v":25},{"$f":"SQRT((BX13^2)+(BX14^2)+(BX15^2)+(BX16^2)+(BX30^2)+(BX31^2)+(BX32^2)+(BX33^2))","v":24.310491562286437},{"$f":"(BY13+BY14+BY15+BY16)+(BY30+BY31+BY32+BY33)","v":75},{"$f":"SQRT((BZ13^2)+(BZ14^2)+(BZ15^2)+(BZ16^2)+(BZ30^2)+(BZ31^2)+(BZ32^2)+(BZ33^2))","v":40.459856648287818},{"$f":"(CA13+CA14+CA15+CA16)+(CA30+CA31+CA32+CA33)","v":71},{"$f":"SQRT((CB13^2)+(CB14^2)+(CB15^2)+(CB16^2)+(CB30^2)+(CB31^2)+(CB32^2)+(CB33^2))","v":30.04995840263344},{"$f":"(CC13+CC14+CC15+CC16)+(CC30+CC31+CC32+CC33)","v":0},{"$f":"SQRT((CD13^2)+(CD14^2)+(CD15^2)+(CD16^2)+(CD30^2)+(CD31^2)+(CD32^2)+(CD33^2))","v":31.11269837220809},{"$f":"(CE13+CE14+CE15+CE16)+(CE30+CE31+CE32+CE33)","v":0},{"$f":"SQRT((CF13^2)+(CF14^2)+(CF15^2)+(CF16^2)+(CF30^2)+(CF31^2)+(CF32^2)+(CF33^2))","v":31.11269837220809},{"$f":"(CG13+CG14+CG15+CG16)+(CG30+CG31+CG32+CG33)","v":4},{"$f":"SQRT((CH13^2)+(CH14^2)+(CH15^2)+(CH16^2)+(CH30^2)+(CH31^2)+(CH32^2)+(CH33^2))","v":29.376861643136763},{"$f":"(CI13+CI14+CI15+CI16)+(CI30+CI31+CI32+CI33)","v":116},{"$f":"SQRT((CJ13^2)+(CJ14^2)+(CJ15^2)+(CJ16^2)+(CJ30^2)+(CJ31^2)+(CJ32^2)+(CJ33^2))","v":59.757844673314651}]
[null,"High school graduate (includes equivalency)",{"$f":"C17+C34","v":0},{"$f":"SQRT((D17^2)+(D34^2))","v":15.556349186104045},{"$f":"E17+E34","v":0},{"$f":"SQRT((F17^2)+(F34^2))","v":15.556349186104045},{"$f":"G17+G34","v":0},{"$f":"SQRT((H17^2)+(H34^2))","v":15.556349186104045},{"$f":"I17+I34","v":3544},{"$f":"SQRT((J17^2)+(J34^2))","v":321.80894953372569},{"$f":"K17+K34","v":0},{"$f":"SQRT((L17^2)+(L34^2))","v":15.556349186104045},{"$f":"M17+M34","v":185},{"$f":"SQRT((N17^2)+(N34^2))","v":43.600458713183279},{"$f":"O17+O34","v":0},{"$f":"SQRT((P17^2)+(P34^2))","v":15.556349186104045},{"$f":"Q17+Q34","v":124},{"$f":"SQRT((R17^2)+(R34^2))","v":38.418745424597091},{"$f":"S17+S34","v":511},{"$f":"SQRT((T17^2)+(T34^2))","v":86.023252670426274},{"$f":"U17+U34","v":186},{"$f":"SQRT((V17^2)+(V34^2))","v":41.773197148410844},{"$f":"W17+W34","v":0},{"$f":"SQRT((X17^2)+(X34^2))","v":15.556349186104045},{"$f":"Y17+Y34","v":0},{"$f":"SQRT((Z17^2)+(Z34^2))","v":15.556349186104045},{"$f":"AA17+AA34","v":204},{"$f":"SQRT((AB17^2)+(AB34^2))","v":41.012193308819754},{"$f":"AC17+AC34","v":0},{"$f":"SQRT((AD17^2)+(AD34^2))","v":15.556349186104045},{"$f":"AE17+AE34","v":0},{"$f":"SQRT((AF17^2)+(AF34^2))","v":15.556349186104045},{"$f":"AG17+AG34","v":98},{"$f":"SQRT((AH17^2)+(AH34^2))","v":23.345235059857504},{"$f":"AI17+AI34","v":85},{"$f":"SQRT((AJ17^2)+(AJ34^2))","v":25.80697580112788},{"$f":"AK17+AK34","v":0},{"$f":"SQRT((AL17^2)+(AL34^2))","v":15.556349186104045},{"$f":"AM17+AM34","v":630},{"$f":"SQRT((AN17^2)+(AN34^2))","v":127.1416532848303},{"$f":"AO17+AO34","v":3},{"$f":"SQRT((AP17^2)+(AP34^2))","v":12.529964086141668},{"$f":"AQ17+AQ34","v":0},{"$f":"SQRT((AR17^2)+(AR34^2))","v":15.556349186104045},{"$f":"AS17+AS34","v":164},{"$f":"SQRT((AT17^2)+(AT34^2))","v":33.421549934136806},{"$f":"AU17+AU34","v":0},{"$f":"SQRT((AV17^2)+(AV34^2))","v":15.556349186104045},{"$f":"AW17+AW34","v":828},{"$f":"SQRT((AX17^2)+(AX34^2))","v":139.62807740565648},{"$f":"AY17+AY34","v":0},{"$f":"SQRT((AZ17^2)+(AZ34^2))","v":15.556349186104045},{"$f":"BA17+BA34","v":0},{"$f":"SQRT((BB17^2)+(BB34^2))","v":15.556349186104045},{"$f":"BC17+BC34","v":393},{"$f":"SQRT((BD17^2)+(BD34^2))","v":53.037722424704477},{"$f":"BE17+BE34","v":8},{"$f":"SQRT((BF17^2)+(BF34^2))","v":8.4852813742385695},{"$f":"BG17+BG34","v":775},{"$f":"SQRT((BH17^2)+(BH34^2))","v":109.01834707974616},{"$f":"BI17+BI34","v":5},{"$f":"SQRT((BJ17^2)+(BJ34^2))","v":15.556349186104045},{"$f":"BK17+BK34","v":0},{"$f":"SQRT((BL17^2)+(BL34^2))","v":15.556349186104045},{"$f":"BM17+BM34","v":231},{"$f":"SQRT((BN17^2)+(BN34^2))","v":51.088159097779204},{"$f":"BO17+BO34","v":44},{"$f":"SQRT((BP17^2)+(BP34^2))","v":16.401219466856727},{"$f":"BQ17+BQ34","v":0},{"$f":"SQRT((BR17^2)+(BR34^2))","v":15.556349186104045},{"$f":"BS17+BS34","v":0},{"$f":"SQRT((BT17^2)+(BT34^2))","v":15.556349186104045},{"$f":"BU17+BU34","v":111},{"$f":"SQRT((BV17^2)+(BV34^2))","v":28.319604517012593},{"$f":"BW17+BW34","v":213},{"$f":"SQRT((BX17^2)+(BX34^2))","v":43.011626335213137},{"$f":"BY17+BY34","v":327},{"$f":"SQRT((BZ17^2)+(BZ34^2))","v":71.28113354878694},{"$f":"CA17+CA34","v":174},{"$f":"SQRT((CB17^2)+(CB34^2))","v":36.235341863986875},{"$f":"CC17+CC34","v":0},{"$f":"SQRT((CD17^2)+(CD34^2))","v":15.556349186104045},{"$f":"CE17+CE34","v":0},{"$f":"SQRT((CF17^2)+(CF34^2))","v":15.556349186104045},{"$f":"CG17+CG34","v":15},{"$f":"SQRT((CH17^2)+(CH34^2))","v":10},{"$f":"CI17+CI34","v":616},{"$f":"SQRT((CJ17^2)+(CJ34^2))","v":119.47384651043926}]
[null,"Some college, no degree",{"$f":"(C18+C19)+(C35+C36)","v":0},{"$f":"SQRT((D18^2)+(D19^2)+(D35^2)+(D36^2))","v":22},{"$f":"(E18+E19)+(E35+E36)","v":0},{"$f":"SQRT((F18^2)+(F19^2)+(F35^2)+(F36^2))","v":22},{"$f":"(G18+G19)+(G35+G36)","v":0},{"$f":"SQRT((H18^2)+(H19^2)+(H35^2)+(H36^2))","v":22},{"$f":"(I18+I19)+(I35+I36)","v":1425},{"$f":"SQRT((J18^2)+(J19^2)+(J35^2)+(J36^2))","v":249.49749497740453},{"$f":"(K18+K19)+(K35+K36)","v":0},{"$f":"SQRT((L18^2)+(L19^2)+(L35^2)+(L36^2))","v":22},{"$f":"(M18+M19)+(M35+M36)","v":105},{"$f":"SQRT((N18^2)+(N19^2)+(N35^2)+(N36^2))","v":28.879058156387302},{"$f":"(O18+O19)+(O35+O36)","v":0},{"$f":"SQRT((P18^2)+(P19^2)+(P35^2)+(P36^2))","v":22},{"$f":"(Q18+Q19)+(Q35+Q36)","v":45},{"$f":"SQRT((R18^2)+(R19^2)+(R35^2)+(R36^2))","v":19.28730152198591},{"$f":"(S18+S19)+(S35+S36)","v":408},{"$f":"SQRT((T18^2)+(T19^2)+(T35^2)+(T36^2))","v":95.4358423235212},{"$f":"(U18+U19)+(U35+U36)","v":125},{"$f":"SQRT((V18^2)+(V19^2)+(V35^2)+(V36^2))","v":38.613469152615643},{"$f":"(W18+W19)+(W35+W36)","v":0},{"$f":"SQRT((X18^2)+(X19^2)+(X35^2)+(X36^2))","v":22},{"$f":"(Y18+Y19)+(Y35+Y36)","v":0},{"$f":"SQRT((Z18^2)+(Z19^2)+(Z35^2)+(Z36^2))","v":22},{"$f":"(AA18+AA19)+(AA35+AA36)","v":165},{"$f":"SQRT((AB18^2)+(AB19^2)+(AB35^2)+(AB36^2))","v":47.602520941647619},{"$f":"(AC18+AC19)+(AC35+AC36)","v":0},{"$f":"SQRT((AD18^2)+(AD19^2)+(AD35^2)+(AD36^2))","v":22},{"$f":"(AE18+AE19)+(AE35+AE36)","v":0},{"$f":"SQRT((AF18^2)+(AF19^2)+(AF35^2)+(AF36^2))","v":22},{"$f":"(AG18+AG19)+(AG35+AG36)","v":38},{"$f":"SQRT((AH18^2)+(AH19^2)+(AH35^2)+(AH36^2))","v":16.093476939431081},{"$f":"(AI18+AI19)+(AI35+AI36)","v":32},{"$f":"SQRT((AJ18^2)+(AJ19^2)+(AJ35^2)+(AJ36^2))","v":19.697715603592208},{"$f":"(AK18+AK19)+(AK35+AK36)","v":0},{"$f":"SQRT((AL18^2)+(AL19^2)+(AL35^2)+(AL36^2))","v":22},{"$f":"(AM18+AM19)+(AM35+AM36)","v":386},{"$f":"SQRT((AN18^2)+(AN19^2)+(AN35^2)+(AN36^2))","v":108.8577052853862},{"$f":"(AO18+AO19)+(AO35+AO36)","v":3},{"$f":"SQRT((AP18^2)+(AP19^2)+(AP35^2)+(AP36^2))","v":19.974984355438178},{"$f":"(AQ18+AQ19)+(AQ35+AQ36)","v":0},{"$f":"SQRT((AR18^2)+(AR19^2)+(AR35^2)+(AR36^2))","v":22},{"$f":"(AS18+AS19)+(AS35+AS36)","v":127},{"$f":"SQRT((AT18^2)+(AT19^2)+(AT35^2)+(AT36^2))","v":35.538711287833721},{"$f":"(AU18+AU19)+(AU35+AU36)","v":0},{"$f":"SQRT((AV18^2)+(AV19^2)+(AV35^2)+(AV36^2))","v":22},{"$f":"(AW18+AW19)+(AW35+AW36)","v":479},{"$f":"SQRT((AX18^2)+(AX19^2)+(AX35^2)+(AX36^2))","v":123.92739810066215},{"$f":"(AY18+AY19)+(AY35+AY36)","v":0},{"$f":"SQRT((AZ18^2)+(AZ19^2)+(AZ35^2)+(AZ36^2))","v":22},{"$f":"(BA18+BA19)+(BA35+BA36)","v":0},{"$f":"SQRT((BB18^2)+(BB19^2)+(BB35^2)+(BB36^2))","v":22},{"$f":"(BC18+BC19)+(BC35+BC36)","v":195},{"$f":"SQRT((BD18^2)+(BD19^2)+(BD35^2)+(BD36^2))","v":38.974350539810153},{"$f":"(BE18+BE19)+(BE35+BE36)","v":0},{"$f":"SQRT((BF18^2)+(BF19^2)+(BF35^2)+(BF36^2))","v":22},{"$f":"(BG18+BG19)+(BG35+BG36)","v":295},{"$f":"SQRT((BH18^2)+(BH19^2)+(BH35^2)+(BH36^2))","v":74.175467642610784},{"$f":"(BI18+BI19)+(BI35+BI36)","v":0},{"$f":"SQRT((BJ18^2)+(BJ19^2)+(BJ35^2)+(BJ36^2))","v":22},{"$f":"(BK18+BK19)+(BK35+BK36)","v":4},{"$f":"SQRT((BL18^2)+(BL19^2)+(BL35^2)+(BL36^2))","v":20.663978319771825},{"$f":"(BM18+BM19)+(BM35+BM36)","v":185},{"$f":"SQRT((BN18^2)+(BN19^2)+(BN35^2)+(BN36^2))","v":52.134441590948299},{"$f":"(BO18+BO19)+(BO35+BO36)","v":56},{"$f":"SQRT((BP18^2)+(BP19^2)+(BP35^2)+(BP36^2))","v":20.542638584174139},{"$f":"(BQ18+BQ19)+(BQ35+BQ36)","v":0},{"$f":"SQRT((BR18^2)+(BR19^2)+(BR35^2)+(BR36^2))","v":22},{"$f":"(BS18+BS19)+(BS35+BS36)","v":0},{"$f":"SQRT((BT18^2)+(BT19^2)+(BT35^2)+(BT36^2))","v":22},{"$f":"(BU18+BU19)+(BU35+BU36)","v":71},{"$f":"SQRT((BV18^2)+(BV19^2)+(BV35^2)+(BV36^2))","v":26.570660511172846},{"$f":"(BW18+BW19)+(BW35+BW36)","v":102},{"$f":"SQRT((BX18^2)+(BX19^2)+(BX35^2)+(BX36^2))","v":30.099833886584822},{"$f":"(BY18+BY19)+(BY35+BY36)","v":178},{"$f":"SQRT((BZ18^2)+(BZ19^2)+(BZ35^2)+(BZ36^2))","v":54.772255750516614},{"$f":"(CA18+CA19)+(CA35+CA36)","v":102},{"$f":"SQRT((CB18^2)+(CB19^2)+(CB35^2)+(CB36^2))","v":34.525353003264136},{"$f":"(CC18+CC19)+(CC35+CC36)","v":0},{"$f":"SQRT((CD18^2)+(CD19^2)+(CD35^2)+(CD36^2))","v":22},{"$f":"(CE18+CE19)+(CE35+CE36)","v":0},{"$f":"SQRT((CF18^2)+(CF19^2)+(CF35^2)+(CF36^2))","v":22},{"$f":"(CG18+CG19)+(CG35+CG36)","v":5},{"$f":"SQRT((CH18^2)+(CH19^2)+(CH35^2)+(CH36^2))","v":19.697715603592208},{"$f":"(CI18+CI19)+(CI35+CI36)","v":331},{"$f":"SQRT((CJ18^2)+(CJ19^2)+(CJ35^2)+(CJ36^2))","v":88.260976654464912}]
[null,"Associate's degree",{"$f":"C20+C37","v":0},{"$f":"SQRT((D20^2)+(D37^2))","v":15.556349186104045},{"$f":"E20+E37","v":0},{"$f":"SQRT((F20^2)+(F37^2))","v":15.556349186104045},{"$f":"G20+G37","v":0},{"$f":"SQRT((H20^2)+(H37^2))","v":15.556349186104045},{"$f":"I20+I37","v":725},{"$f":"SQRT((J20^2)+(J37^2))","v":163.37992532744039},{"$f":"K20+K37","v":0},{"$f":"SQRT((L20^2)+(L37^2))","v":15.556349186104045},{"$f":"M20+M37","v":74},{"$f":"SQRT((N20^2)+(N37^2))","v":29.120439557122072},{"$f":"O20+O37","v":0},{"$f":"SQRT((P20^2)+(P37^2))","v":15.556349186104045},{"$f":"Q20+Q37","v":14},{"$f":"SQRT((R20^2)+(R37^2))","v":10.63014581273465},{"$f":"S20+S37","v":110},{"$f":"SQRT((T20^2)+(T37^2))","v":44.687805943008662},{"$f":"U20+U37","v":61},{"$f":"SQRT((V20^2)+(V37^2))","v":28.319604517012593},{"$f":"W20+W37","v":0},{"$f":"SQRT((X20^2)+(X37^2))","v":15.556349186104045},{"$f":"Y20+Y37","v":0},{"$f":"SQRT((Z20^2)+(Z37^2))","v":15.556349186104045},{"$f":"AA20+AA37","v":112},{"$f":"SQRT((AB20^2)+(AB37^2))","v":45.276925690687087},{"$f":"AC20+AC37","v":0},{"$f":"SQRT((AD20^2)+(AD37^2))","v":15.556349186104045},{"$f":"AE20+AE37","v":0},{"$f":"SQRT((AF20^2)+(AF37^2))","v":15.556349186104045},{"$f":"AG20+AG37","v":26},{"$f":"SQRT((AH20^2)+(AH37^2))","v":11.180339887498949},{"$f":"AI20+AI37","v":34},{"$f":"SQRT((AJ20^2)+(AJ37^2))","v":19.104973174542799},{"$f":"AK20+AK37","v":0},{"$f":"SQRT((AL20^2)+(AL37^2))","v":15.556349186104045},{"$f":"AM20+AM37","v":333},{"$f":"SQRT((AN20^2)+(AN37^2))","v":83.486525858967212},{"$f":"AO20+AO37","v":0},{"$f":"SQRT((AP20^2)+(AP37^2))","v":15.556349186104045},{"$f":"AQ20+AQ37","v":0},{"$f":"SQRT((AR20^2)+(AR37^2))","v":15.556349186104045},{"$f":"AS20+AS37","v":73},{"$f":"SQRT((AT20^2)+(AT37^2))","v":21.931712199461309},{"$f":"AU20+AU37","v":0},{"$f":"SQRT((AV20^2)+(AV37^2))","v":15.556349186104045},{"$f":"AW20+AW37","v":289},{"$f":"SQRT((AX20^2)+(AX37^2))","v":82.661962231730257},{"$f":"AY20+AY37","v":0},{"$f":"SQRT((AZ20^2)+(AZ37^2))","v":15.556349186104045},{"$f":"BA20+BA37","v":0},{"$f":"SQRT((BB20^2)+(BB37^2))","v":15.556349186104045},{"$f":"BC20+BC37","v":104},{"$f":"SQRT((BD20^2)+(BD37^2))","v":26.870057685088806},{"$f":"BE20+BE37","v":0},{"$f":"SQRT((BF20^2)+(BF37^2))","v":15.556349186104045},{"$f":"BG20+BG37","v":180},{"$f":"SQRT((BH20^2)+(BH37^2))","v":46.400431032480725},{"$f":"BI20+BI37","v":0},{"$f":"SQRT((BJ20^2)+(BJ37^2))","v":15.556349186104045},{"$f":"BK20+BK37","v":0},{"$f":"SQRT((BL20^2)+(BL37^2))","v":15.556349186104045},{"$f":"BM20+BM37","v":87},{"$f":"SQRT((BN20^2)+(BN37^2))","v":34.655446902326915},{"$f":"BO20+BO37","v":28},{"$f":"SQRT((BP20^2)+(BP37^2))","v":13.038404810405298},{"$f":"BQ20+BQ37","v":0},{"$f":"SQRT((BR20^2)+(BR37^2))","v":15.556349186104045},{"$f":"BS20+BS37","v":0},{"$f":"SQRT((BT20^2)+(BT37^2))","v":15.556349186104045},{"$f":"BU20+BU37","v":39},{"$f":"SQRT((BV20^2)+(BV37^2))","v":15.556349186104045},{"$f":"BW20+BW37","v":35},{"$f":"SQRT((BX20^2)+(BX37^2))","v":16.401219466856727},{"$f":"BY20+BY37","v":37},{"$f":"SQRT((BZ20^2)+(BZ37^2))","v":20.248456731316587},{"$f":"CA20+CA37","v":44},{"$f":"SQRT((CB20^2)+(CB37^2))","v":25},{"$f":"CC20+CC37","v":0},{"$f":"SQRT((CD20^2)+(CD37^2))","v":15.556349186104045},{"$f":"CE20+CE37","v":0},{"$f":"SQRT((CF20^2)+(CF37^2))","v":15.556349186104045},{"$f":"CG20+CG37","v":0},{"$f":"SQRT((CH20^2)+(CH37^2))","v":15.556349186104045},{"$f":"CI20+CI37","v":179},{"$f":"SQRT((CJ20^2)+(CJ37^2))","v":55.901699437494742}]
[null,"Bachelor's degree",{"$f":"C21+C38","v":0},{"$f":"SQRT((D21^2)+(D38^2))","v":15.556349186104045},{"$f":"E21+E38","v":0},{"$f":"SQRT((F21^2)+(F38^2))","v":15.556349186104045},{"$f":"G21+G38","v":0},{"$f":"SQRT((H21^2)+(H38^2))","v":15.556349186104045},{"$f":"I21+I38","v":732},{"$f":"SQRT((J21^2)+(J38^2))","v":163.51758315239374},{"$f":"K21+K38","v":0},{"$f":"SQRT((L21^2)+(L38^2))","v":15.556349186104045},{"$f":"M21+M38","v":89},{"$f":"SQRT((N21^2)+(N38^2))","v":22.627416997969522},{"$f":"O21+O38","v":0},{"$f":"SQRT((P21^2)+(P38^2))","v":15.556349186104045},{"$f":"Q21+Q38","v":21},{"$f":"SQRT((R21^2)+(R38^2))","v":11.704699910719626},{"$f":"S21+S38","v":169},{"$f":"SQRT((T21^2)+(T38^2))","v":48.414873747640819},{"$f":"U21+U38","v":44},{"$f":"SQRT((V21^2)+(V38^2))","v":18.384776310850235},{"$f":"W21+W38","v":0},{"$f":"SQRT((X21^2)+(X38^2))","v":15.556349186104045},{"$f":"Y21+Y38","v":0},{"$f":"SQRT((Z21^2)+(Z38^2))","v":15.556349186104045},{"$f":"AA21+AA38","v":86},{"$f":"SQRT((AB21^2)+(AB38^2))","v":38.600518131237564},{"$f":"AC21+AC38","v":0},{"$f":"SQRT((AD21^2)+(AD38^2))","v":15.556349186104045},{"$f":"AE21+AE38","v":2},{"$f":"SQRT((AF21^2)+(AF38^2))","v":12.529964086141668},{"$f":"AG21+AG38","v":32},{"$f":"SQRT((AH21^2)+(AH38^2))","v":13.45362404707371},{"$f":"AI21+AI38","v":13},{"$f":"SQRT((AJ21^2)+(AJ38^2))","v":10},{"$f":"AK21+AK38","v":0},{"$f":"SQRT((AL21^2)+(AL38^2))","v":15.556349186104045},{"$f":"AM21+AM38","v":383},{"$f":"SQRT((AN21^2)+(AN38^2))","v":102.61578825892242},{"$f":"AO21+AO38","v":2},{"$f":"SQRT((AP21^2)+(AP38^2))","v":11.704699910719626},{"$f":"AQ21+AQ38","v":0},{"$f":"SQRT((AR21^2)+(AR38^2))","v":15.556349186104045},{"$f":"AS21+AS38","v":154},{"$f":"SQRT((AT21^2)+(AT38^2))","v":39.824615503479755},{"$f":"AU21+AU38","v":0},{"$f":"SQRT((AV21^2)+(AV38^2))","v":15.556349186104045},{"$f":"AW21+AW38","v":248},{"$f":"SQRT((AX21^2)+(AX38^2))","v":83.240615086627031},{"$f":"AY21+AY38","v":0},{"$f":"SQRT((AZ21^2)+(AZ38^2))","v":15.556349186104045},{"$f":"BA21+BA38","v":0},{"$f":"SQRT((BB21^2)+(BB38^2))","v":15.556349186104045},{"$f":"BC21+BC38","v":146},{"$f":"SQRT((BD21^2)+(BD38^2))","v":41.677331968349414},{"$f":"BE21+BE38","v":0},{"$f":"SQRT((BF21^2)+(BF38^2))","v":15.556349186104045},{"$f":"BG21+BG38","v":111},{"$f":"SQRT((BH21^2)+(BH38^2))","v":35.227829907617071},{"$f":"BI21+BI38","v":0},{"$f":"SQRT((BJ21^2)+(BJ38^2))","v":15.556349186104045},{"$f":"BK21+BK38","v":0},{"$f":"SQRT((BL21^2)+(BL38^2))","v":15.556349186104045},{"$f":"BM21+BM38","v":79},{"$f":"SQRT((BN21^2)+(BN38^2))","v":32.449961479175904},{"$f":"BO21+BO38","v":114},{"$f":"SQRT((BP21^2)+(BP38^2))","v":26.627053911388696},{"$f":"BQ21+BQ38","v":0},{"$f":"SQRT((BR21^2)+(BR38^2))","v":15.556349186104045},{"$f":"BS21+BS38","v":0},{"$f":"SQRT((BT21^2)+(BT38^2))","v":15.556349186104045},{"$f":"BU21+BU38","v":58},{"$f":"SQRT((BV21^2)+(BV38^2))","v":17.029386365926403},{"$f":"BW21+BW38","v":30},{"$f":"SQRT((BX21^2)+(BX38^2))","v":13.45362404707371},{"$f":"BY21+BY38","v":59},{"$f":"SQRT((BZ21^2)+(BZ38^2))","v":32.449961479175904},{"$f":"CA21+CA38","v":18},{"$f":"SQRT((CB21^2)+(CB38^2))","v":10},{"$f":"CC21+CC38","v":0},{"$f":"SQRT((CD21^2)+(CD38^2))","v":15.556349186104045},{"$f":"CE21+CE38","v":0},{"$f":"SQRT((CF21^2)+(CF38^2))","v":15.556349186104045},{"$f":"CG21+CG38","v":0},{"$f":"SQRT((CH21^2)+(CH38^2))","v":15.556349186104045},{"$f":"CI21+CI38","v":327},{"$f":"SQRT((CJ21^2)+(CJ38^2))","v":78.568441501661468}]
[null,"Graduate or professional degree",{"$f":"(C22+C23+C24)+(C39+C40+C41)","v":0},{"$f":"SQRT((D22^2)+(D23^2)+(D24^2)+(D39^2)+(D41^2)+(D40^2))","v":26.944387170614959},{"$f":"(E22+E23+E24)+(E39+E40+E41)","v":0},{"$f":"SQRT((F22^2)+(F23^2)+(F24^2)+(F39^2)+(F41^2)+(F40^2))","v":26.944387170614959},{"$f":"(G22+G23+G24)+(G39+G40+G41)","v":0},{"$f":"SQRT((H22^2)+(H23^2)+(H24^2)+(H39^2)+(H41^2)+(H40^2))","v":26.944387170614959},{"$f":"(I22+I23+I24)+(I39+I40+I41)","v":246},{"$f":"SQRT((J22^2)+(J23^2)+(J24^2)+(J39^2)+(J41^2)+(J40^2))","v":82.861329943466387},{"$f":"(K22+K23+K24)+(K39+K40+K41)","v":0},{"$f":"SQRT((L22^2)+(L23^2)+(L24^2)+(L39^2)+(L41^2)+(L40^2))","v":26.944387170614959},{"$f":"(M22+M23+M24)+(M39+M40+M41)","v":66},{"$f":"SQRT((N22^2)+(N23^2)+(N24^2)+(N39^2)+(N41^2)+(N40^2))","v":22.158519806160339},{"$f":"(O22+O23+O24)+(O39+O40+O41)","v":0},{"$f":"SQRT((P22^2)+(P23^2)+(P24^2)+(P39^2)+(P41^2)+(P40^2))","v":26.944387170614959},{"$f":"(Q22+Q23+Q24)+(Q39+Q40+Q41)","v":31},{"$f":"SQRT((R22^2)+(R23^2)+(R24^2)+(R39^2)+(R41^2)+(R40^2))","v":24.06241883103193},{"$f":"(S22+S23+S24)+(S39+S40+S41)","v":63},{"$f":"SQRT((T22^2)+(T23^2)+(T24^2)+(T39^2)+(T41^2)+(T40^2))","v":31.160872901765767},{"$f":"(U22+U23+U24)+(U39+U40+U41)","v":18},{"$f":"SQRT((V22^2)+(V23^2)+(V24^2)+(V39^2)+(V41^2)+(V40^2))","v":24.166091947189145},{"$f":"(W22+W23+W24)+(W39+W40+W41)","v":0},{"$f":"SQRT((X22^2)+(X23^2)+(X24^2)+(X39^2)+(X41^2)+(X40^2))","v":26.944387170614959},{"$f":"(Y22+Y23+Y24)+(Y39+Y40+Y41)","v":0},{"$f":"SQRT((Z22^2)+(Z23^2)+(Z24^2)+(Z39^2)+(Z41^2)+(Z40^2))","v":26.944387170614959},{"$f":"(AA22+AA23+AA24)+(AA39+AA40+AA41)","v":62},{"$f":"SQRT((AB22^2)+(AB23^2)+(AB24^2)+(AB39^2)+(AB41^2)+(AB40^2))","v":32.58834147360065},{"$f":"(AC22+AC23+AC24)+(AC39+AC40+AC41)","v":0},{"$f":"SQRT((AD22^2)+(AD23^2)+(AD24^2)+(AD39^2)+(AD41^2)+(AD40^2))","v":26.944387170614959},{"$f":"(AE22+AE23+AE24)+(AE39+AE40+AE41)","v":0},{"$f":"SQRT((AF22^2)+(AF23^2)+(AF24^2)+(AF39^2)+(AF41^2)+(AF40^2))","v":26.944387170614959},{"$f":"(AG22+AG23+AG24)+(AG39+AG40+AG41)","v":15},{"$f":"SQRT((AH22^2)+(AH23^2)+(AH24^2)+(AH39^2)+(AH41^2)+(AH40^2))","v":20.322401432901575},{"$f":"(AI22+AI23+AI24)+(AI39+AI40+AI41)","v":10},{"$f":"SQRT((AJ22^2)+(AJ23^2)+(AJ24^2)+(AJ39^2)+(AJ41^2)+(AJ40^2))","v":26.551836094703507},{"$f":"(AK22+AK23+AK24)+(AK39+AK40+AK41)","v":0},{"$f":"SQRT((AL22^2)+(AL23^2)+(AL24^2)+(AL39^2)+(AL41^2)+(AL40^2))","v":26.944387170614959},{"$f":"(AM22+AM23+AM24)+(AM39+AM40+AM41)","v":172},{"$f":"SQRT((AN22^2)+(AN23^2)+(AN24^2)+(AN39^2)+(AN41^2)+(AN40^2))","v":62.976185975335156},{"$f":"(AO22+AO23+AO24)+(AO39+AO40+AO41)","v":2},{"$f":"SQRT((AP22^2)+(AP23^2)+(AP24^2)+(AP39^2)+(AP41^2)+(AP40^2))","v":25.317977802344327},{"$f":"(AQ22+AQ23+AQ24)+(AQ39+AQ40+AQ41)","v":0},{"$f":"SQRT((AR22^2)+(AR23^2)+(AR24^2)+(AR39^2)+(AR41^2)+(AR40^2))","v":26.944387170614959},{"$f":"(AS22+AS23+AS24)+(AS39+AS40+AS41)","v":82},{"$f":"SQRT((AT22^2)+(AT23^2)+(AT24^2)+(AT39^2)+(AT41^2)+(AT40^2))","v":31.176914536239792},{"$f":"(AU22+AU23+AU24)+(AU39+AU40+AU41)","v":0},{"$f":"SQRT((AV22^2)+(AV23^2)+(AV24^2)+(AV39^2)+(AV41^2)+(AV40^2))","v":26.944387170614959},{"$f":"(AW22+AW23+AW24)+(AW39+AW40+AW41)","v":283},{"$f":"SQRT((AX22^2)+(AX23^2)+(AX24^2)+(AX39^2)+(AX41^2)+(AX40^2))","v":95.728783550194564},{"$f":"(AY22+AY23+AY24)+(AY39+AY40+AY41)","v":0},{"$f":"SQRT((AZ22^2)+(AZ23^2)+(AZ24^2)+(AZ39^2)+(AZ41^2)+(AZ40^2))","v":26.944387170614959},{"$f":"(BA22+BA23+BA24)+(BA39+BA40+BA41)","v":0},{"$f":"SQRT((BB22^2)+(BB23^2)+(BB24^2)+(BB39^2)+(BB41^2)+(BB40^2))","v":26.944387170614959},{"$f":"(BC22+BC23+BC24)+(BC39+BC40+BC41)","v":80},{"$f":"SQRT((BD22^2)+(BD23^2)+(BD24^2)+(BD39^2)+(BD41^2)+(BD40^2))","v":29.883105594967869},{"$f":"(BE22+BE23+BE24)+(BE39+BE40+BE41)","v":0},{"$f":"SQRT((BF22^2)+(BF23^2)+(BF24^2)+(BF39^2)+(BF41^2)+(BF40^2))","v":26.944387170614959},{"$f":"(BG22+BG23+BG24)+(BG39+BG40+BG41)","v":35},{"$f":"SQRT((BH22^2)+(BH23^2)+(BH24^2)+(BH39^2)+(BH41^2)+(BH40^2))","v":26.739483914241877},{"$f":"(BI22+BI23+BI24)+(BI39+BI40+BI41)","v":0},{"$f":"SQRT((BJ22^2)+(BJ23^2)+(BJ24^2)+(BJ39^2)+(BJ41^2)+(BJ40^2))","v":26.944387170614959},{"$f":"(BK22+BK23+BK24)+(BK39+BK40+BK41)","v":0},{"$f":"SQRT((BL22^2)+(BL23^2)+(BL24^2)+(BL39^2)+(BL41^2)+(BL40^2))","v":26.944387170614959},{"$f":"(BM22+BM23+BM24)+(BM39+BM40+BM41)","v":18},{"$f":"SQRT((BN22^2)+(BN23^2)+(BN24^2)+(BN39^2)+(BN41^2)+(BN40^2))","v":23.086792761230392},{"$f":"(BO22+BO23+BO24)+(BO39+BO40+BO41)","v":62},{"$f":"SQRT((BP22^2)+(BP23^2)+(BP24^2)+(BP39^2)+(BP41^2)+(BP40^2))","v":19.798989873223331},{"$f":"(BQ22+BQ23+BQ24)+(BQ39+BQ40+BQ41)","v":0},{"$f":"SQRT((BR22^2)+(BR23^2)+(BR24^2)+(BR39^2)+(BR41^2)+(BR40^2))","v":26.944387170614959},{"$f":"(BS22+BS23+BS24)+(BS39+BS40+BS41)","v":0},{"$f":"SQRT((BT22^2)+(BT23^2)+(BT24^2)+(BT39^2)+(BT41^2)+(BT40^2))","v":26.944387170614959},{"$f":"(BU22+BU23+BU24)+(BU39+BU40+BU41)","v":49},{"$f":"SQRT((BV22^2)+(BV23^2)+(BV24^2)+(BV39^2)+(BV41^2)+(BV40^2))","v":16.941074346097416},{"$f":"(BW22+BW23+BW24)+(BW39+BW40+BW41)","v":18},{"$f":"SQRT((BX22^2)+(BX23^2)+(BX24^2)+(BX39^2)+(BX41^2)+(BX40^2))","v":22.449944320643649},{"$f":"(BY22+BY23+BY24)+(BY39+BY40+BY41)","v":57},{"$f":"SQRT((BZ22^2)+(BZ23^2)+(BZ24^2)+(BZ39^2)+(BZ41^2)+(BZ40^2))","v":32.140317359976393},{"$f":"(CA22+CA23+CA24)+(CA39+CA40+CA41)","v":8},{"$f":"SQRT((CB22^2)+(CB23^2)+(CB24^2)+(CB39^2)+(CB41^2)+(CB40^2))","v":20.591260281974002},{"$f":"(CC22+CC23+CC24)+(CC39+CC40+CC41)","v":0},{"$f":"SQRT((CD22^2)+(CD23^2)+(CD24^2)+(CD39^2)+(CD41^2)+(CD40^2))","v":26.944387170614959},{"$f":"(CE22+CE23+CE24)+(CE39+CE40+CE41)","v":0},{"$f":"SQRT((CF22^2)+(CF23^2)+(CF24^2)+(CF39^2)+(CF41^2)+(CF40^2))","v":26.944387170614959},{"$f":"(CG22+CG23+CG24)+(CG39+CG40+CG41)","v":0},{"$f":"SQRT((CH22^2)+(CH23^2)+(CH24^2)+(CH39^2)+(CH41^2)+(CH40^2))","v":26.944387170614959},{"$f":"(CI22+CI23+CI24)+(CI39+CI40+CI41)","v":140},{"$f":"SQRT((CJ22^2)+(CJ23^2)+(CJ24^2)+(CJ39^2)+(CJ41^2)+(CJ40^2))","v":59.346440499831161}]
[]
[]
[]
[]
[]
[]
[]
[]
[]
[]
[]
[]
[]
[]
[]
[]
[]
[]
[]
[]
[]
[]
[]
[]
[]
[]
[]
[null,"Calculated B15002. SEX BY EDUCATIONAL ATTAINMENT FOR THE POPULATION 25 YEARS AND OVER"]
[null,"Universe:  POPULATION 25 YEARS AND OVER"]
[null,"Data Set: 2010-2014 American Community Survey 5-Year Estimates"]
[null,null,"Atkinson and Gilmanton Grant",null,"Bean's Grant",null,"Bean's Purchase",null,"Berlin",null,"Cambridge",null,"Carroll",null,"Chandler's Purchase",null,"Clarksville",null,"Colebrook",null,"Columbia",null,"Crawford's Purchase",null,"Cutt's Grant",null,"Dalton",null,"Dix's Grant",null,"Dixville",null,"Dummer",null,"Errol",null,"Erving's Location",null,"Gorham",null,"Greens Grant",null,"Hadley's Purchase",null,"Jefferson",null,"Kilkenny",null,"Lancaster",null,"Low and Burbank's Grant",null,"Martin's Location",null,"Milan",null,"Millsfield",null,"Northumberland",null,"Odell",null,"Pinkham's Grant",null,"Pittsburg",null,"Randolph",null,"Sargent's Purchase",null,"Second College Grant",null,"Shelburne",null,"Stark",null,"Stewartstown",null,"Stratford",null,"Success",null,"Thompson and Meserves Purchase",null,"Wentworth's Location",null,"Whitefield"]
[null,null,"Estimate","Margin Of Error","Estimate","Margin Of Error","Estimate","Margin Of Error","Estimate","Margin Of Error","Estimate","Margin Of Error","Estimate","Margin Of Error","Estimate","Margin Of Error","Estimate","Margin Of Error","Estimate","Margin Of Error","Estimate","Margin Of Error","Estimate","Margin Of Error","Estimate","Margin Of Error","Estimate","Margin Of Error","Estimate","Margin Of Error","Estimate","Margin Of Error","Estimate","Margin Of Error","Estimate","Margin Of Error","Estimate","Margin Of Error","Estimate","Margin Of Error","Estimate","Margin Of Error","Estimate","Margin Of Error","Estimate","Margin Of Error","Estimate","Margin Of Error","Estimate","Margin Of Error","Estimate","Margin Of Error","Estimate","Margin Of Error","Estimate","Margin Of Error","Estimate","Margin Of Error","Estimate","Margin Of Error","Estimate","Margin Of Error","Estimate","Margin Of Error","Estimate","Margin Of Error","Estimate","Margin Of Error","Estimate","Margin Of Error","Estimate","Margin Of Error","Estimate","Margin Of Error","Estimate","Margin Of Error","Estimate","Margin Of Error","Estimate","Margin Of Error","Estimate","Margin Of Error","Estimate","Margin Of Error","Estimate","Margin Of Error","Estimate","Margin Of Error"]
[null,"Total:",0,11,0,11,0,11,7333,233,17,16,668,119,0,11,257,54,1814,157,554,93,0,11,0,11,747,110,0,11,21,22,257,51,264,58,0,11,2024,98,8,17,0,11,739,66,0,11,2472,125,0,11,0,11,1021,79,13,9,1521,115,0,11,4,5,770,114,344,52,9,12,0,11,282,45,359,52,646,103,504,82,0,11,0,11,44,25,1691,169]
[null,"Less than 9th grade",0,26.944387170614959,0,26.944387170614959,0,26.944387170614959,282,90.901045098502578,0,26.944387170614959,0,26.944387170614959,0,26.944387170614959,13,22.516660498395403,65,32.310988842807021,24,21.354156504062622,0,26.944387170614959,0,26.944387170614959,22,22.891046284519195,0,26.944387170614959,9,31.701734968294716,19,26.795522013948524,9,25.865034312755125,0,26.944387170614959,31,30.967725134404045,0,26.944387170614959,0,26.944387170614959,9,20.591260281974002,0,26.944387170614959,101,71.035202540712163,0,26.944387170614959,0,26.944387170614959,41,26.057628441590765,0,26.944387170614959,48,27.184554438136374,0,26.944387170614959,0,26.944387170614959,29,28.670542373662901,5,19.924858845171276,0,26.944387170614959,0,26.944387170614959,6,22.561028345356956,5,22.759613353482084,65,34.539832078341085,53,30.870698080866262,0,26.944387170614959,0,26.944387170614959,0,26.944387170614959,69,46.98936049788292]
[null,"9th to 12th grade, no diploma",0,31.11269837220809,0,31.11269837220809,0,31.11269837220809,806,155.3415591527264,5,29.933259094191531,46,24.494897427831781,0,31.11269837220809,25,22.338307903688676,146,56.42694391866354,67,30.692018506445613,0,31.11269837220809,0,31.11269837220809,137,44.294469180700204,0,31.11269837220809,1,29.171904291629644,27,21.283796653792763,29,29.529646120466801,0,31.11269837220809,132,60.745370193949761,4,30.463092423455635,0,31.11269837220809,62,27.568097504180443,0,31.11269837220809,102,65.650590248679407,0,31.11269837220809,0,31.11269837220809,76,21.817424229271428,0,31.11269837220809,148,57.948252777801677,0,31.11269837220809,2,29.376861643136763,28,20.952326839756964,6,22.693611435820433,0,31.11269837220809,0,31.11269837220809,6,27.568097504180443,21,24.839484696748443,34,33.704599092705436,111,33.226495451672299,0,31.11269837220809,0,31.11269837220809,5,27.766886753829642,140,72.429275848927276]
[null,"High school graduate (includes equivalency)",0,15.556349186104045,0,15.556349186104045,0,15.556349186104045,3178,411.64669317267692,8,7.810249675906654,212,53.823786563191554,0,15.556349186104045,101,28.42534080710379,703,117.92370414806346,180,40.459856648287818,0,15.556349186104045,0,15.556349186104045,290,65.053823869162372,0,15.556349186104045,2,4.2426406871192848,120,34.058772731852805,111,33.541019662496844,0,15.556349186104045,751,121.63058825805291,4,14.212670403551895,0,15.556349186104045,258,38.897300677553446,0,15.556349186104045,826,147.98986451781082,0,15.556349186104045,0,15.556349186104045,348,39.66106403010388,2,11.401754250991379,680,96.260064408871031,0,15.556349186104045,1,11.704699910719626,339,58.051701094799967,80,24.413111231467404,4,13.038404810405298,0,15.556349186104045,95,24.758836806279895,138,27.586228448267445,304,68.600291544569984,162,34,0,15.556349186104045,0,15.556349186104045,23,15.231546211727817,611,104.63746938836012]
[null,"Some college, no degree",0,22,0,22,0,22,1383,228.0394702677587,0,22,173,70.327803890068964,0,22,51,19.974984355438178,316,77.220463609071913,107,35.637059362410923,0,22,0,22,147,37.696153649941529,0,22,2,19.467922333931785,31,15.198684153570664,49,22.494443758403985,0,22,338,91.695147090781205,0,22,0,22,129,30.838287890218549,0,22,524,128.52237159343116,0,22,0,22,173,37.815340802378074,0,22,301,71.316197318701725,0,22,1,19.28730152198591,169,48.373546489791295,47,18.681541692269406,0,22,0,22,54,17.378147196982766,85,24.839484696748443,113,47.937459256827538,70,28.160255680657446,0,22,0,22,9,13.711309200802088,374,90.620086073673534]
[null,"Associate's degree",0,15.556349186104045,0,15.556349186104045,0,15.556349186104045,792,129.07362240210043,0,15.556349186104045,57,34.014702703389901,0,15.556349186104045,30,17.4928556845359,124,34.205262752974143,52,19.849433241279208,0,15.556349186104045,0,15.556349186104045,49,26.076809620810597,0,15.556349186104045,0,15.556349186104045,16,10.440306508910551,32,19.209372712298546,0,15.556349186104045,296,75.006666370396701,0,15.556349186104045,0,15.556349186104045,69,21.95449840010015,0,15.556349186104045,304,93.813645062965122,0,15.556349186104045,0,15.556349186104045,149,39.408120990476064,9,13.038404810405298,148,38.183766184073569,0,15.556349186104045,0,15.556349186104045,80,34.058772731852805,43,20.518284528683193,5,12.529964086141668,0,15.556349186104045,34,14.866068747318506,48,19.104973174542799,50,28.42534080710379,47,22.472205054244231,0,15.556349186104045,0,15.556349186104045,7,14.866068747318506,166,43.278170016764804]
[null,"Bachelor's degree",0,15.556349186104045,0,15.556349186104045,0,15.556349186104045,622,155.86211855354719,4,13.038404810405298,106,58.668560575490517,0,15.556349186104045,29,13.892443989449804,258,63.890531379853151,83,48.104053883222775,0,15.556349186104045,0,15.556349186104045,56,19.104973174542799,0,15.556349186104045,6,13.038404810405298,33,13.416407864998739,22,13.601470508735444,0,15.556349186104045,292,87.863530545955186,0,15.556349186104045,0,15.556349186104045,125,38.600518131237564,0,15.556349186104045,307,88.41379982785493,0,15.556349186104045,0,15.556349186104045,135,32.649655434629018,2,11.704699910719626,145,53.823786563191554,0,15.556349186104045,0,15.556349186104045,72,34.409301068170507,100,22.627416997969522,0,15.556349186104045,0,15.556349186104045,50,19.235384061671343,45,24.413111231467404,44,24.166091947189145,43,17.4928556845359,0,15.556349186104045,0,15.556349186104045,0,15.556349186104045,229,71.589105316381762]
[null,"Graduate or professional degree",0,26.944387170614959,0,26.944387170614959,0,26.944387170614959,169,70.908391604943347,0,26.944387170614959,72,40.877866871939389,0,26.944387170614959,8,23.958297101421877,169,59.262129560116215,39,25.865034312755125,0,26.944387170614959,0,26.944387170614959,38,26.019223662515376,0,26.944387170614959,1,24.779023386727733,11,20.09975124224178,12,24.779023386727733,0,26.944387170614959,184,69.462219947249025,0,26.944387170614959,0,26.944387170614959,82,26.683328128252668,0,26.944387170614959,299,98.686371906155316,0,26.944387170614959,0,26.944387170614959,96,35.071355833500363,0,26.944387170614959,39,24.576411454889016,0,26.944387170614959,0,26.944387170614959,53,36.180105030251084,61,21.236760581595302,0,26.944387170614959,0,26.944387170614959,35,22.022715545545239,14,24.103941586387901,31,30.789608636681304,11,20.493901531919196,0,26.944387170614959,0,26.944387170614959,0,26.944387170614959,102,47.655010229775421]
[]
[]
[]
[]
[]
[]
[]
[]
[]
[]
[]
[]
[]
[]
[]
[]
[]
[]
[]
[]
[]
[]
[]
[]
[]
[]
[]
[null,"Calculated B15002. SEX BY EDUCATIONAL ATTAINMENT FOR THE POPULATION 25 YEARS AND OVER"]
[null,"Universe:  POPULATION 25 YEARS AND OVER"]
[null,"Data Set: 2005-2009 American Community Survey 5-Year Estimates"]
[null,null,"Atkinson and Gilmanton Grant",null,"Bean's Grant",null,"Bean's Purchase",null,"Berlin",null,"Cambridge",null,"Carroll",null,"Chandler's Purchase",null,"Clarksville",null,"Colebrook",null,"Columbia",null,"Crawford's Purchase",null,"Cutt's Grant",null,"Dalton",null,"Dix's Grant",null,"Dixville",null,"Dummer",null,"Errol",null,"Erving's Location",null,"Gorham",null,"Greens Grant",null,"Hadley's Purchase",null,"Jefferson",null,"Kilkenny",null,"Lancaster",null,"Low and Burbank's Grant",null,"Martin's Location",null,"Milan",null,"Millsfield",null,"Northumberland",null,"Odell",null,"Pinkham's Grant",null,"Pittsburg",null,"Randolph",null,"Sargent's Purchase",null,"Second College Grant",null,"Shelburne",null,"Stark",null,"Stewartstown",null,"Stratford",null,"Success",null,"Thompson and Meserves Purchase",null,"Wentworth's Location",null,"Whitefield"]
[null,null,"Estimate","Margin Of Error","Estimate","Margin Of Error","Estimate","Margin Of Error","Estimate","Margin Of Error","Estimate","Margin Of Error","Estimate","Margin Of Error","Estimate","Margin Of Error","Estimate","Margin Of Error","Estimate","Margin Of Error","Estimate","Margin Of Error","Estimate","Margin Of Error","Estimate","Margin Of Error","Estimate","Margin Of Error","Estimate","Margin Of Error","Estimate","Margin Of Error","Estimate","Margin Of Error","Estimate","Margin Of Error","Estimate","Margin Of Error","Estimate","Margin Of Error","Estimate","Margin Of Error","Estimate","Margin Of Error","Estimate","Margin Of Error","Estimate","Margin Of Error","Estimate","Margin Of Error","Estimate","Margin Of Error","Estimate","Margin Of Error","Estimate","Margin Of Error","Estimate","Margin Of Error","Estimate","Margin Of Error","Estimate","Margin Of Error","Estimate","Margin Of Error","Estimate","Margin Of Error","Estimate","Margin Of Error","Estimate","Margin Of Error","Estimate","Margin Of Error","Estimate","Margin Of Error","Estimate","Margin Of Error","Estimate","Margin Of Error","Estimate","Margin Of Error","Estimate","Margin Of Error","Estimate","Margin Of Error","Estimate","Margin Of Error","Estimate","Margin Of Error"]
[null,"Total:",0,114,0,114,0,114,7088,234,0,114,479,93,0,114,268,61,1540,177,613,119,0,114,0,114,790,85,0,114,119,168,278,93,214,54,0,114,1969,137,0,114,0,114,739,80,0,114,2006,161,0,114,0,114,967,77,4,5,1567,174,0,114,0,114,655,111,292,61,0,114,0,114,352,72,423,89,687,122,733,128,0,114,0,114,37,21,1642,204]
[null,"Less than 9th grade",0,279.24183067728228,0,279.24183067728228,0,279.24183067728228,439,117.46914488494414,0,279.24183067728228,5,228.0548179714693,0,279.24183067728228,13,197.790292987295,137,175.82661914511124,14,228.40534144367115,0,279.24183067728228,0,279.24183067728228,22,228.60664907215624,0,279.24183067728228,22,229.26403991904181,7,228.11400658442699,10,197.64867821465441,0,279.24183067728228,55,201.67796111623105,0,279.24183067728228,0,279.24183067728228,25,114.78675881825394,0,279.24183067728228,40,163.76202245942127,0,279.24183067728228,0,279.24183067728228,23,228.44911906155383,0,279.24183067728228,51,163.11345744603662,0,279.24183067728228,0,279.24183067728228,32,162.53307355735325,2,254.92940199200248,0,279.24183067728228,0,279.24183067728228,4,197.50949344272036,11,255.10782034269354,55,198.74103753377156,52,198.97235988950828,0,279.24183067728228,0,279.24183067728228,9,228.18632737304836,52,164.18282492392436]
[null,"9th to 12th grade, no diploma",0,322.44069222106566,0,322.44069222106566,0,322.44069222106566,896,188.194048790072,0,322.44069222106566,8,279.34566400787395,0,322.44069222106566,18,228.2761485569616,131,206.37102509800158,77,165.46600859391032,0,322.44069222106566,0,322.44069222106566,96,118.27087553578015,0,322.44069222106566,0,322.44069222106566,16,228.16441440329822,28,161.72198366332265,0,322.44069222106566,122,124.86793023030373,0,322.44069222106566,0,322.44069222106566,69,117.35842534730942,0,322.44069222106566,174,215.29050141610986,0,322.44069222106566,0,322.44069222106566,76,24.269322199023193,0,322.44069222106566,189,134.56225325105106,0,322.44069222106566,0,322.44069222106566,68,164.45972151259409,11,228.12934927360837,0,322.44069222106566,0,322.44069222106566,15,161.47445618425226,28,162.02777539668932,88,164.97575579460153,171,56.824290580701486,0,322.44069222106566,0,322.44069222106566,12,279.48524111301475,125,48.548944375753422]
[null,"High school graduate (includes equivalency)",0,161.22034611053283,0,161.22034611053283,0,161.22034611053283,2984,305.67957079268479,0,161.22034611053283,176,48.259714048054619,0,161.22034611053283,134,34.205262752974143,663,120.96693763173474,271,64.381674411279491,0,161.22034611053283,0,161.22034611053283,348,58.258046654518033,0,161.22034611053283,42,48.083261120685229,143,49.769468552517218,90,26.627053911388696,0,161.22034611053283,676,132.32157798333574,0,161.22034611053283,0,161.22034611053283,262,53.600373133029585,0,161.22034611053283,598,128.03515142334936,0,161.22034611053283,0,161.22034611053283,367,47.010637094172637,4,114.10959644131601,806,121.6552506059644,0,161.22034611053283,0,161.22034611053283,278,60.108235708594876,74,27.018512172212592,0,161.22034611053283,0,161.22034611053283,79,26.248809496813376,219,60.373835392494321,306,59.203040462462738,328,77.077882690172544,0,161.22034611053283,0,161.22034611053283,13,9.2195444572928871,696,121.60592090848209]
[null,"Some college, no degree",0,228,0,228,0,228,1247,188.7299658241902,0,228,84,119.30632841555388,0,228,35,18.547236990991408,207,88.062477821146956,126,44.305755833751441,0,228,0,228,145,53.758720222862451,0,228,30,117.74124171249427,41,13.964240043768941,53,18.973665961010276,0,228,368,101.61200716450787,0,228,0,228,118,32.434549480453711,0,228,525,151.01324445226649,0,228,0,228,181,38.509739027939411,0,228,286,76.256147293185492,0,228,0,228,88,118.19475453673907,40,22.338307903688676,0,228,0,228,84,38.209946349085598,72,30.199337741082999,114,35.818989377144632,122,42.638011210655684,0,228,0,228,3,197.54493159785193,291,81.252692263087511]
[null,"Associate's degree",0,161.22034611053283,0,161.22034611053283,0,161.22034611053283,637,131.89389675038038,0,161.22034611053283,42,21.400934559032695,0,161.22034611053283,22,12.041594578792296,37,24.166091947189145,22,16.278820596099706,0,161.22034611053283,0,161.22034611053283,54,20.808652046684813,0,161.22034611053283,7,114.28035701729323,51,45.398237851264668,10,10.295630140987001,0,161.22034611053283,316,92.417530804496181,0,161.22034611053283,0,161.22034611053283,49,21.400934559032695,0,161.22034611053283,220,75.584389922787622,0,161.22034611053283,0,161.22034611053283,141,33.97057550292606,0,161.22034611053283,117,45.607017003965517,0,161.22034611053283,0,161.22034611053283,70,31.89043743820395,10,7.810249675906654,0,161.22034611053283,0,161.22034611053283,50,22.803508501982758,49,22.627416997969522,80,34.481879299133332,32,19.104973174542799,0,161.22034611053283,0,161.22034611053283,0,161.22034611053283,128,48.104053883222775]
[null,"Bachelor's degree",0,161.22034611053283,0,161.22034611053283,0,161.22034611053283,532,118.86967653695369,0,161.22034611053283,91,31.400636936215164,0,161.22034611053283,39,25.059928172283335,255,84.864598037108507,59,33.286633954186478,0,161.22034611053283,0,161.22034611053283,77,28.319604517012593,0,161.22034611053283,18,115.41230437002807,15,9.8488578017961039,21,15,0,161.22034611053283,259,78.549347546621931,0,161.22034611053283,0,161.22034611053283,132,35,0,161.22034611053283,335,90.609050320594349,0,161.22034611053283,0,161.22034611053283,100,26.92582403567252,0,161.22034611053283,61,35,0,161.22034611053283,0,161.22034611053283,82,30.413812651491099,97,31.144823004794873,0,161.22034611053283,0,161.22034611053283,70,24.839484696748443,22,15.811388300841896,32,22.203603311174518,23,22.803508501982758,0,161.22034611053283,0,161.22034611053283,0,161.22034611053283,266,69.814038702828242]
[null,"Graduate or professional degree",0,228,0,228,0,228,160,135.88598161694236,0,228,33,116.31852818876277,0,228,4,197.54493159785193,28,163.30339861742007,4,197.57783276471073,0,228,0,228,31,115.12167476196652,0,228,0,228,5,197.51708786836647,2,197.47658088998807,0,228,88,47.728398255126898,0,228,0,228,32,115.05650785592269,0,228,94,167.68124522438399,0,228,0,228,48,16.792855623746664,0,228,37,117.32433677630571,0,228,0,228,7,161.4465855941215,32,115.22586515188333,0,228,0,228,25,114.74754899343166,17,161.70652429633134,0,228,4,197.54493159785193,0,228,0,228,0,228,56,26.438608132804571]

{"sheet":"ACS_TableB19101_ACS_Tbl_B19113","index":64,"n_rows":130,"n_cols":88,"rows_kept":130,"cut":false,"hidden":true,"merged":[]}
[null,"B19101. FAMILY INCOME IN THE PAST 12 MONTHS (IN 2019 INFLATION-ADJUSTED DOLLARS)"]
[null,"Universe:  FAMILIES"]
[null,"Data Set: 2015-2019 American Community Survey 5-Year Estimates"]
[]
[null,null,"Atkinson and Gilmanton Grant",null,"Bean's Grant",null,"Bean's Purchase",null,"Berlin",null,"Cambridge",null,"Carroll",null,"Chandler's Purchase",null,"Clarksville",null,"Colebrook",null,"Columbia",null,"Crawford's Purchase",null,"Cutt's Grant",null,"Dalton",null,"Dix's Grant",null,"Dixville",null,"Dummer",null,"Errol",null,"Erving's Location",null,"Gorham",null,"Greens Grant",null,"Hadley's Purchase",null,"Jefferson",null,"Kilkenny",null,"Lancaster",null,"Low and Burbank's Grant",null,"Martin's Location",null,"Milan",null,"Millsfield",null,"Northumberland",null,"Odell",null,"Pinkham's Grant",null,"Pittsburg",null,"Randolph",null,"Sargent's Purchase",null,"Second College Grant",null,"Shelburne",null,"Stark",null,"Stewartstown",null,"Stratford",null,"Success",null,"Thompson and Meserves Purchase",null,"Wentworth's Location",null,"Whitefield"]
[null,null,"Estimate","Margin Of Error","Estimate","Margin Of Error","Estimate","Margin Of Error","Estimate","Margin Of Error","Estimate","Margin Of Error","Estimate","Margin Of Error","Estimate","Margin Of Error","Estimate","Margin Of Error","Estimate","Margin Of Error","Estimate","Margin Of Error","Estimate","Margin Of Error","Estimate","Margin Of Error","Estimate","Margin Of Error","Estimate","Margin Of Error","Estimate","Margin Of Error","Estimate","Margin Of Error","Estimate","Margin Of Error","Estimate","Margin Of Error","Estimate","Margin Of Error","Estimate","Margin Of Error","Estimate","Margin Of Error","Estimate","Margin Of Error","Estimate","Margin Of Error","Estimate","Margin Of Error","Estimate","Margin Of Error","Estimate","Margin Of Error","Estimate","Margin Of Error","Estimate","Margin Of Error","Estimate","Margin Of Error","Estimate","Margin Of Error","Estimate","Margin Of Error","Estimate","Margin Of Error","Estimate","Margin Of Error","Estimate","Margin Of Error","Estimate","Margin Of Error","Estimate","Margin Of Error","Estimate","Margin Of Error","Estimate","Margin Of Error","Estimate","Margin Of Error","Estimate","Margin Of Error","Estimate","Margin Of Error","Estimate","Margin Of Error","Estimate","Margin Of Error"]
[null,"Total:",0,11,0,11,0,11,2236,170,0,11,225,42,0,11,93,25,516,70,176,39,0,11,0,11,272,59,0,11,0,11,90,20,61,21,0,11,798,63,0,11,0,11,265,50,0,11,836,80,0,11,0,11,419,39,4,6,590,83,0,11,0,11,222,49,124,29,0,11,0,11,132,25,155,35,246,52,171,39,0,11,0,11,9,7,611,78]
[null,"Less than $10,000",0,11,0,11,0,11,107,63,0,11,0,11,0,11,0,11,13,16,1,2,0,11,0,11,4,6,0,11,0,11,4,6,0,11,0,11,0,11,0,11,0,11,3,4,0,11,9,15,0,11,0,11,0,11,0,11,28,27,0,11,0,11,0,11,2,3,0,11,0,11,0,11,2,3,3,5,20,19,0,11,0,11,0,11,11,15]
[null,"$10,000 to $14,999",0,11,0,11,0,11,185,89,0,11,0,11,0,11,2,3,9,9,11,7,0,11,0,11,0,11,0,11,0,11,5,9,5,7,0,11,18,20,0,11,0,11,0,11,0,11,8,13,0,11,0,11,21,20,0,11,4,6,0,11,0,11,0,11,0,11,0,11,0,11,0,11,2,3,0,11,13,12,0,11,0,11,0,11,19,15]
[null,"$15,000 to $19,999",0,11,0,11,0,11,36,23,0,11,4,5,0,11,0,11,11,11,0,11,0,11,0,11,3,5,0,11,0,11,2,4,1,2,0,11,9,13,0,11,0,11,3,4,0,11,17,24,0,11,0,11,9,8,0,11,16,18,0,11,0,11,0,11,0,11,0,11,0,11,0,11,4,8,2,3,16,15,0,11,0,11,0,11,24,26]
[null,"$20,000 to $24,999",0,11,0,11,0,11,168,102,0,11,6,10,0,11,6,6,41,31,5,6,0,11,0,11,9,9,0,11,0,11,4,4,0,11,0,11,29,22,0,11,0,11,16,9,0,11,38,35,0,11,0,11,13,9,0,11,26,24,0,11,0,11,7,7,0,11,0,11,0,11,0,11,0,11,27,26,11,8,0,11,0,11,4,5,33,32]
[null,"$25,000 to $29,999",0,11,0,11,0,11,87,57,0,11,6,7,0,11,13,10,66,42,5,5,0,11,0,11,0,11,0,11,0,11,0,11,8,9,0,11,13,18,0,11,0,11,13,18,0,11,20,23,0,11,0,11,24,20,0,11,19,14,0,11,0,11,14,9,0,11,0,11,0,11,5,5,4,4,16,17,2,4,0,11,0,11,2,3,41,42]
[null,"$30,000 to $34,999",0,11,0,11,0,11,105,50,0,11,16,12,0,11,2,3,36,36,30,19,0,11,0,11,3,5,0,11,0,11,1,2,0,11,0,11,17,19,0,11,0,11,24,20,0,11,15,17,0,11,0,11,28,19,0,11,18,16,0,11,0,11,6,8,2,3,0,11,0,11,0,11,5,5,20,16,13,12,0,11,0,11,0,11,75,60]
[null,"$35,000 to $39,999",0,11,0,11,0,11,130,68,0,11,2,3,0,11,4,4,19,13,4,5,0,11,0,11,9,13,0,11,0,11,10,8,0,11,0,11,48,40,0,11,0,11,9,10,0,11,21,16,0,11,0,11,9,8,0,11,46,22,0,11,0,11,11,9,6,8,0,11,0,11,3,4,11,12,19,20,5,7,0,11,0,11,0,11,26,17]
[null,"$40,000 to $44,999",0,11,0,11,0,11,107,59,0,11,17,12,0,11,8,8,24,19,12,13,0,11,0,11,11,14,0,11,0,11,3,3,0,11,0,11,84,47,0,11,0,11,9,8,0,11,48,38,0,11,0,11,35,21,0,11,48,37,0,11,0,11,27,24,8,9,0,11,0,11,8,7,22,13,25,13,17,13,0,11,0,11,0,11,22,16]
[null,"$45,000 to $49,999",0,11,0,11,0,11,117,54,0,11,2,4,0,11,2,3,12,12,5,7,0,11,0,11,31,29,0,11,0,11,0,11,0,11,0,11,33,26,0,11,0,11,4,5,0,11,46,32,0,11,0,11,20,11,0,11,21,18,0,11,0,11,7,7,3,4,0,11,0,11,6,5,18,11,11,9,15,15,0,11,0,11,2,3,21,20]
[null,"$50,000 to $59,999",0,11,0,11,0,11,138,69,0,11,22,16,0,11,8,7,35,20,23,19,0,11,0,11,60,34,0,11,0,11,12,8,6,7,0,11,60,36,0,11,0,11,20,13,0,11,126,72,0,11,0,11,20,11,0,11,62,27,0,11,0,11,41,23,0,11,0,11,0,11,7,7,21,10,15,18,7,6,0,11,0,11,1,3,31,19]
[null,"$60,000 to $74,999",0,11,0,11,0,11,273,80,0,11,49,26,0,11,6,9,14,14,24,13,0,11,0,11,65,38,0,11,0,11,10,8,11,11,0,11,92,44,0,11,0,11,36,20,0,11,124,60,0,11,0,11,64,27,0,11,93,45,0,11,0,11,45,26,21,11,0,11,0,11,31,16,15,15,10,10,39,22,0,11,0,11,0,11,80,39]
[null,"$75,000 to $99,999",0,11,0,11,0,11,292,92,0,11,39,22,0,11,10,10,64,35,17,10,0,11,0,11,28,16,0,11,0,11,20,15,18,13,0,11,94,51,0,11,0,11,53,24,0,11,92,55,0,11,0,11,92,30,0,11,107,38,0,11,0,11,24,16,17,9,0,11,0,11,27,17,28,18,26,17,2,3,0,11,0,11,0,11,59,27]
[null,"$100,000 to $124,999",0,11,0,11,0,11,199,100,0,11,31,20,0,11,8,6,68,32,23,11,0,11,0,11,14,11,0,11,0,11,9,6,5,6,0,11,64,41,0,11,0,11,24,13,0,11,105,60,0,11,0,11,43,15,0,11,78,33,0,11,0,11,19,16,13,9,0,11,0,11,10,11,11,11,33,23,5,5,0,11,0,11,0,11,59,35]
[null,"$125,000 to $149,999",0,11,0,11,0,11,155,73,0,11,10,6,0,11,12,12,37,28,6,7,0,11,0,11,6,7,0,11,0,11,4,4,0,11,0,11,131,62,0,11,0,11,21,13,0,11,83,61,0,11,0,11,26,15,0,11,15,12,0,11,0,11,5,9,15,12,0,11,0,11,10,10,8,7,18,19,0,11,0,11,0,11,0,11,31,18]
[null,"$150,000 to $199,999",0,11,0,11,0,11,119,67,0,11,11,8,0,11,4,7,30,19,2,5,0,11,0,11,22,20,0,11,0,11,3,5,2,3,0,11,37,26,0,11,0,11,27,11,0,11,35,32,0,11,0,11,9,7,4,6,0,11,0,11,0,11,16,16,22,12,0,11,0,11,8,6,2,3,17,15,3,5,0,11,0,11,0,11,61,35]
[null,"$200,000 or more",0,11,0,11,0,11,18,21,0,11,10,11,0,11,8,10,37,23,8,8,0,11,0,11,7,7,0,11,0,11,3,3,5,7,0,11,69,37,0,11,0,11,3,5,0,11,49,35,0,11,0,11,6,6,0,11,9,14,0,11,0,11,0,11,15,12,0,11,0,11,17,13,2,3,4,5,3,4,0,11,0,11,0,11,18,16]
[]
[]
[null,"B19113. MEDIAN FAMILY INCOME IN THE PAST 12 MONTHS (IN 2019 INFLATION-ADJUSTED DOLLARS)"]
[null,"Universe:  FAMILIES"]
[null,"Data Set: 2015-2019 American Community Survey 5-Year Estimates"]
[]
[null,null,"Atkinson and Gilmanton Grant",null,"Bean's Grant",null,"Bean's Purchase",null,"Berlin",null,"Cambridge",null,"Carroll",null,"Chandler's Purchase",null,"Clarksville",null,"Colebrook",null,"Columbia",null,"Crawford's Purchase",null,"Cutt's Grant",null,"Dalton",null,"Dix's Grant",null,"Dixville",null,"Dummer",null,"Errol",null,"Erving's Location",null,"Gorham",null,"Greens Grant",null,"Hadley's Purchase",null,"Jefferson",null,"Kilkenny",null,"Lancaster",null,"Low and Burbank's Grant",null,"Martin's Location",null,"Milan",null,"Millsfield",null,"Northumberland",null,"Odell",null,"Pinkham's Grant",null,"Pittsburg",null,"Randolph",null,"Sargent's Purchase",null,"Second College Grant",null,"Shelburne",null,"Stark",null,"Stewartstown",null,"Stratford",null,"Success",null,"Thompson and Meserves Purchase",null,"Wentworth's Location",null,"Whitefield"]
[null,null,"Estimate","Margin Of Error","Estimate","Margin Of Error","Estimate","Margin Of Error","Estimate","Margin Of Error","Estimate","Margin Of Error","Estimate","Margin Of Error","Estimate","Margin Of Error","Estimate","Margin Of Error","Estimate","Margin Of Error","Estimate","Margin Of Error","Estimate","Margin Of Error","Estimate","Margin Of Error","Estimate","Margin Of Error","Estimate","Margin Of Error","Estimate","Margin Of Error","Estimate","Margin Of Error","Estimate","Margin Of Error","Estimate","Margin Of Error","Estimate","Margin Of Error","Estimate","Margin Of Error","Estimate","Margin Of Error","Estimate","Margin Of Error","Estimate","Margin Of Error","Estimate","Margin Of Error","Estimate","Margin Of Error","Estimate","Margin Of Error","Estimate","Margin Of Error","Estimate","Margin Of Error","Estimate","Margin Of Error","Estimate","Margin Of Error","Estimate","Margin Of Error","Estimate","Margin Of Error","Estimate","Margin Of Error","Estimate","Margin Of Error","Estimate","Margin Of Error","Estimate","Margin Of Error","Estimate","Margin Of Error","Estimate","Margin Of Error","Estimate","Margin Of Error","Estimate","Margin Of Error","Estimate","Margin Of Error","Estimate","Margin Of Error","Estimate","Margin Of Error"]
[null,"Median family income in the past 12 months","-","**","-","**","-","**",58218,8303,"-","**",70917,13267,"-","**",65250,31809,57778,23141,55000,9350,"-","**","-","**",60455,5213,"-","**","-","**",68750,38215,69792,24143,"-","**",74714,16059,"-","**","-","**",71750,8524,"-","**",67857,15221,"-","**","-","**",67969,11306,"-","**",61346,9235,"-","**","-","**",58750,11140,104375,19100,"-","**","-","**",82500,16044,55156,10466,50000,19562,41375,9343,"-","**","-","**",25625,22985,60284,17365]
[]
[]
[]
[]
[]
[]
[]
[]
[]
[]
[]
[]
[]
[]
[]
[]
[]
[null,"B19101. FAMILY INCOME IN THE PAST 12 MONTHS (IN 2014 INFLATION-ADJUSTED DOLLARS)"]
[null,"Universe:  FAMILIES"]
[null,"Data Set: 2010-2014 American Community Survey 5-Year Estimates"]
[]
[null,null,"Atkinson and Gilmanton Grant",null,"Bean's Grant",null,"Bean's Purchase",null,"Berlin",null,"Cambridge",null,"Carroll",null,"Chandler's Purchase",null,"Clarksville",null,"Colebrook",null,"Columbia",null,"Crawford's Purchase",null,"Cutt's Grant",null,"Dalton",null,"Dix's Grant",null,"Dixville",null,"Dummer",null,"Errol",null,"Erving's Location",null,"Gorham",null,"Greens Grant",null,"Hadley's Purchase",null,"Jefferson",null,"Kilkenny",null,"Lancaster",null,"Low and Burbank's Grant",null,"Martin's Location",null,"Milan",null,"Millsfield",null,"Northumberland",null,"Odell",null,"Pinkham's Grant",null,"Pittsburg",null,"Randolph",null,"Sargent's Purchase",null,"Second College Grant",null,"Shelburne",null,"Stark",null,"Stewartstown",null,"Stratford",null,"Success",null,"Thompson and Meserves Purchase",null,"Wentworth's Location",null,"Whitefield"]
[null,null,"Estimate","Margin Of Error","Estimate","Margin Of Error","Estimate","Margin Of Error","Estimate","Margin Of Error","Estimate","Margin Of Error","Estimate","Margin Of Error","Estimate","Margin Of Error","Estimate","Margin Of Error","Estimate","Margin Of Error","Estimate","Margin Of Error","Estimate","Margin Of Error","Estimate","Margin Of Error","Estimate","Margin Of Error","Estimate","Margin Of Error","Estimate","Margin Of Error","Estimate","Margin Of Error","Estimate","Margin Of Error","Estimate","Margin Of Error","Estimate","Margin Of Error","Estimate","Margin Of Error","Estimate","Margin Of Error","Estimate","Margin Of Error","Estimate","Margin Of Error","Estimate","Margin Of Error","Estimate","Margin Of Error","Estimate","Margin Of Error","Estimate","Margin Of Error","Estimate","Margin Of Error","Estimate","Margin Of Error","Estimate","Margin Of Error","Estimate","Margin Of Error","Estimate","Margin Of Error","Estimate","Margin Of Error","Estimate","Margin Of Error","Estimate","Margin Of Error","Estimate","Margin Of Error","Estimate","Margin Of Error","Estimate","Margin Of Error","Estimate","Margin Of Error","Estimate","Margin Of Error","Estimate","Margin Of Error","Estimate","Margin Of Error","Estimate","Margin Of Error"]
[null,"Total:",0,11,0,11,0,11,2536,223,6,9,223,47,0,11,106,30,695,94,227,47,0,11,0,11,302,48,0,11,0,11,109,31,80,28,0,11,858,60,0,11,0,11,0,11,0,11,916,80,0,11,0,11,2,4,2,4,0,11,0,11,0,11,276,51,147,25,5,6,0,11,118,22,126,26,228,50,0,11,0,11,0,11,16,11,578,82]
[null,"Less than $10,000",0,11,0,11,0,11,157,74,0,11,0,11,0,11,1,3,28,21,12,15,0,11,0,11,9,8,0,11,0,11,0,11,2,4,0,11,33,26,0,11,0,11,0,11,0,11,39,40,0,11,0,11,0,11,0,11,0,11,0,11,0,11,13,10,6,7,0,11,0,11,0,11,2,3,19,16,0,11,0,11,0,11,0,11,14,11]
[null,"$10,000 to $14,999",0,11,0,11,0,11,140,73,0,11,8,12,0,11,13,15,9,12,8,7,0,11,0,11,5,5,0,11,0,11,1,2,2,6,0,11,11,16,0,11,0,11,0,11,0,11,0,11,0,11,0,11,0,11,0,11,0,11,0,11,0,11,6,7,0,11,0,11,0,11,3,5,2,4,9,9,0,11,0,11,0,11,0,11,18,17]
[null,"$15,000 to $19,999",0,11,0,11,0,11,124,65,0,11,8,12,0,11,9,10,33,28,11,15,0,11,0,11,9,8,0,11,0,11,13,14,1,2,0,11,26,40,0,11,0,11,0,11,0,11,47,48,0,11,0,11,0,11,0,11,0,11,0,11,0,11,10,13,4,4,0,11,0,11,2,4,4,4,17,15,0,11,0,11,0,11,0,11,21,16]
[null,"$20,000 to $24,999",0,11,0,11,0,11,167,86,4,7,22,19,0,11,11,11,59,30,13,9,0,11,0,11,8,13,0,11,0,11,2,4,0,11,0,11,13,14,0,11,0,11,0,11,0,11,46,32,0,11,0,11,0,11,0,11,0,11,0,11,0,11,9,10,0,11,0,11,0,11,1,2,2,3,14,18,0,11,0,11,0,11,0,11,41,23]
[null,"$25,000 to $29,999",0,11,0,11,0,11,133,79,0,11,4,5,0,11,13,11,73,45,2,3,0,11,0,11,27,17,0,11,0,11,8,6,0,11,0,11,48,44,0,11,0,11,0,11,0,11,9,12,0,11,0,11,0,11,0,11,0,11,0,11,0,11,28,23,4,4,0,11,0,11,5,5,0,11,26,16,0,11,0,11,0,11,0,11,10,9]
[null,"$30,000 to $34,999",0,11,0,11,0,11,191,74,0,11,2,2,0,11,12,12,37,24,4,5,0,11,0,11,18,11,0,11,0,11,14,13,4,6,0,11,20,18,0,11,0,11,0,11,0,11,90,63,0,11,0,11,0,11,0,11,0,11,0,11,0,11,24,19,6,5,0,11,0,11,5,5,21,14,8,9,0,11,0,11,0,11,0,11,36,34]
[null,"$35,000 to $39,999",0,11,0,11,0,11,110,72,0,11,11,8,0,11,11,7,21,15,0,11,0,11,0,11,21,14,0,11,0,11,8,7,0,11,0,11,39,28,0,11,0,11,0,11,0,11,59,34,0,11,0,11,0,11,0,11,0,11,0,11,0,11,29,20,7,6,0,11,0,11,19,10,11,12,9,11,0,11,0,11,0,11,0,11,18,16]
[null,"$40,000 to $44,999",0,11,0,11,0,11,149,55,0,11,16,18,0,11,2,3,18,14,14,10,0,11,0,11,26,14,0,11,0,11,6,5,10,7,0,11,52,42,0,11,0,11,0,11,0,11,34,36,0,11,0,11,2,4,2,4,0,11,0,11,0,11,13,9,5,6,0,11,0,11,5,6,11,9,16,17,0,11,0,11,0,11,4,6,20,27]
[null,"$45,000 to $49,999",0,11,0,11,0,11,114,55,0,11,9,11,0,11,6,8,61,36,10,9,0,11,0,11,17,16,0,11,0,11,1,2,10,14,0,11,55,33,0,11,0,11,0,11,0,11,0,11,0,11,0,11,0,11,0,11,0,11,0,11,0,11,21,13,12,11,0,11,0,11,0,11,7,9,8,7,0,11,0,11,0,11,0,11,40,28]
[null,"$50,000 to $59,999",0,11,0,11,0,11,227,85,0,11,41,24,0,11,11,9,70,31,29,14,0,11,0,11,44,25,0,11,0,11,4,5,13,10,0,11,96,39,0,11,0,11,0,11,0,11,80,46,0,11,0,11,0,11,0,11,0,11,0,11,0,11,25,20,6,4,0,11,0,11,22,14,25,13,18,13,0,11,0,11,0,11,2,3,74,28]
[null,"$60,000 to $74,999",0,11,0,11,0,11,314,75,2,5,19,15,0,11,2,3,52,33,42,24,0,11,0,11,42,22,0,11,0,11,4,4,14,13,0,11,130,68,0,11,0,11,0,11,0,11,176,58,0,11,0,11,0,11,0,11,0,11,0,11,0,11,33,19,22,14,0,11,0,11,9,7,11,8,42,28,0,11,0,11,0,11,10,10,90,32]
[null,"$75,000 to $99,999",0,11,0,11,0,11,333,90,0,11,44,22,0,11,6,5,159,55,28,12,0,11,0,11,46,21,0,11,0,11,21,14,14,11,0,11,170,57,0,11,0,11,0,11,0,11,124,62,0,11,0,11,0,11,0,11,0,11,0,11,0,11,28,21,34,12,0,11,0,11,19,13,14,9,14,10,0,11,0,11,0,11,0,11,95,33]
[null,"$100,000 to $124,999",0,11,0,11,0,11,200,59,0,11,15,13,0,11,7,7,44,24,16,12,0,11,0,11,10,8,0,11,0,11,23,12,1,3,0,11,97,57,0,11,0,11,0,11,0,11,89,41,0,11,0,11,0,11,0,11,0,11,0,11,0,11,9,8,11,7,0,11,0,11,16,10,13,12,28,24,0,11,0,11,0,11,0,11,51,40]
[null,"$125,000 to $149,999",0,11,0,11,0,11,58,41,0,11,4,4,0,11,2,3,3,5,11,8,0,11,0,11,15,10,0,11,0,11,0,11,1,3,0,11,14,15,0,11,0,11,0,11,0,11,57,44,0,11,0,11,0,11,0,11,0,11,0,11,0,11,7,7,4,6,5,6,0,11,5,5,1,4,0,11,0,11,0,11,0,11,0,11,29,34]
[null,"$150,000 to $199,999",0,11,0,11,0,11,30,32,0,11,7,11,0,11,0,11,23,15,13,12,0,11,0,11,3,5,0,11,0,11,1,2,8,10,0,11,15,22,0,11,0,11,0,11,0,11,24,27,0,11,0,11,0,11,0,11,0,11,0,11,0,11,8,8,11,8,0,11,0,11,4,4,0,11,0,11,0,11,0,11,0,11,0,11,16,13]
[null,"$200,000 or more",0,11,0,11,0,11,89,53,0,11,13,12,0,11,0,11,5,7,14,12,0,11,0,11,2,5,0,11,0,11,3,3,0,11,0,11,39,38,0,11,0,11,0,11,0,11,42,34,0,11,0,11,0,11,0,11,0,11,0,11,0,11,13,17,15,10,0,11,0,11,3,4,2,3,0,11,0,11,0,11,0,11,0,11,5,7]
[]
[]
[null,"B19113. MEDIAN FAMILY INCOME IN THE PAST 12 MONTHS (IN 2014 INFLATION-ADJUSTED DOLLARS)"]
[null,"Universe:  FAMILIES"]
[null,"Data Set: 2010-2014 American Community Survey 5-Year Estimates"]
[]
[null,null,"Atkinson and Gilmanton Grant",null,"Bean's Grant",null,"Bean's Purchase",null,"Berlin",null,"Cambridge",null,"Carroll",null,"Chandler's Purchase",null,"Clarksville",null,"Colebrook",null,"Columbia",null,"Crawford's Purchase",null,"Cutt's Grant",null,"Dalton",null,"Dix's Grant",null,"Dixville",null,"Dummer",null,"Errol",null,"Erving's Location",null,"Gorham",null,"Greens Grant",null,"Hadley's Purchase",null,"Jefferson",null,"Kilkenny",null,"Lancaster",null,"Low and Burbank's Grant",null,"Martin's Location",null,"Milan",null,"Millsfield",null,"Northumberland",null,"Odell",null,"Pinkham's Grant",null,"Pittsburg",null,"Randolph",null,"Sargent's Purchase",null,"Second College Grant",null,"Shelburne",null,"Stark",null,"Stewartstown",null,"Stratford",null,"Success",null,"Thompson and Meserves Purchase",null,"Wentworth's Location",null,"Whitefield"]
[null,null,"Estimate","Margin Of Error","Estimate","Margin Of Error","Estimate","Margin Of Error","Estimate","Margin Of Error","Estimate","Margin Of Error","Estimate","Margin Of Error","Estimate","Margin Of Error","Estimate","Margin Of Error","Estimate","Margin Of Error","Estimate","Margin Of Error","Estimate","Margin Of Error","Estimate","Margin Of Error","Estimate","Margin Of Error","Estimate","Margin Of Error","Estimate","Margin Of Error","Estimate","Margin Of Error","Estimate","Margin Of Error","Estimate","Margin Of Error","Estimate","Margin Of Error","Estimate","Margin Of Error","Estimate","Margin Of Error","Estimate","Margin Of Error","Estimate","Margin Of Error","Estimate","Margin Of Error","Estimate","Margin Of Error","Estimate","Margin Of Error","Estimate","Margin Of Error","Estimate","Margin Of Error","Estimate","Margin Of Error","Estimate","Margin Of Error","Estimate","Margin Of Error","Estimate","Margin Of Error","Estimate","Margin Of Error","Estimate","Margin Of Error","Estimate","Margin Of Error","Estimate","Margin Of Error","Estimate","Margin Of Error","Estimate","Margin Of Error","Estimate","Margin Of Error","Estimate","Margin Of Error","Estimate","Margin Of Error","Estimate","Margin Of Error","Estimate","Margin Of Error"]
[null,"Median family income in the past 12 months","-","**","-","**","-","**",49375,5428,"-","**",57063,9599,"-","**",31250,5387,51518,8296,62563,3853,"-","**","-","**",52955,7957,"-","**","-","**",51875,39241,59167,12192,"-","**",64527,9698,"-","**","-","**","-","**","-","**",61776,3820,"-","**","-","**","-","**","-","**","-","**","-","**","-","**",46250,9094,77788,7953,"-","**","-","**",57188,21416,50750,6014,41875,10199,"-","**","-","**","-","**",61000,12600,59464,9093]
[]
[]
[]
[]
[]
[]
[]
[]
[]
[]
[]
[]
[]
[]
[]
[]
[]
[null,"B19101. FAMILY INCOME IN THE PAST 12 MONTHS (IN 2009 INFLATION-ADJUSTED DOLLARS)"]
[null,"Universe:  FAMILIES"]
[null,"Data Set: 2005-2009 American Community Survey 5-Year Estimates"]
[]
[null,null,"Atkinson and Gilmanton Grant",null,"Bean's Grant",null,"Bean's Purchase",null,"Berlin",null,"Cambridge",null,"Carroll",null,"Chandler's Purchase",null,"Clarksville",null,"Colebrook",null,"Columbia",null,"Crawford's Purchase",null,"Cutt's Grant",null,"Dalton",null,"Dix's Grant",null,"Dixville",null,"Dummer",null,"Errol",null,"Erving's Location",null,"Gorham",null,"Greens Grant",null,"Hadley's Purchase",null,"Jefferson",null,"Kilkenny",null,"Lancaster",null,"Low and Burbank's Grant",null,"Martin's Location",null,"Milan",null,"Millsfield",null,"Northumberland",null,"Odell",null,"Pinkham's Grant",null,"Pittsburg",null,"Randolph",null,"Sargent's Purchase",null,"Second College Grant",null,"Shelburne",null,"Stark",null,"Stewartstown",null,"Stratford",null,"Success",null,"Thompson and Meserves Purchase",null,"Wentworth's Location",null,"Whitefield"]
[null,null,"Estimate","Margin Of Error","Estimate","Margin Of Error","Estimate","Margin Of Error","Estimate","Margin Of Error","Estimate","Margin Of Error","Estimate","Margin Of Error","Estimate","Margin Of Error","Estimate","Margin Of Error","Estimate","Margin Of Error","Estimate","Margin Of Error","Estimate","Margin Of Error","Estimate","Margin Of Error","Estimate","Margin Of Error","Estimate","Margin Of Error","Estimate","Margin Of Error","Estimate","Margin Of Error","Estimate","Margin Of Error","Estimate","Margin Of Error","Estimate","Margin Of Error","Estimate","Margin Of Error","Estimate","Margin Of Error","Estimate","Margin Of Error","Estimate","Margin Of Error","Estimate","Margin Of Error","Estimate","Margin Of Error","Estimate","Margin Of Error","Estimate","Margin Of Error","Estimate","Margin Of Error","Estimate","Margin Of Error","Estimate","Margin Of Error","Estimate","Margin Of Error","Estimate","Margin Of Error","Estimate","Margin Of Error","Estimate","Margin Of Error","Estimate","Margin Of Error","Estimate","Margin Of Error","Estimate","Margin Of Error","Estimate","Margin Of Error","Estimate","Margin Of Error","Estimate","Margin Of Error","Estimate","Margin Of Error","Estimate","Margin Of Error","Estimate","Margin Of Error"]
[null,"Total:",0,114,0,114,0,114,2417,221,0,114,207,52,0,114,102,26,566,97,242,50,0,114,0,114,352,48,0,114,8,8,124,51,88,25,0,114,859,83,0,114,0,114,311,39,0,114,967,93,0,114,0,114,424,41,0,114,762,104,0,114,0,114,275,58,131,32,0,114,0,114,157,40,174,48,280,63,285,73,0,114,0,114,11,12,564,75]
[null,"Less than $10,000",0,114,0,114,0,114,105,54,0,114,6,8,0,114,2,3,15,20,0,114,0,114,0,114,15,11,0,114,0,114,3,5,0,114,0,114,12,19,0,114,0,114,4,6,0,114,29,26,0,114,0,114,12,14,0,114,45,40,0,114,0,114,6,9,0,114,0,114,0,114,5,6,9,13,8,9,62,42,0,114,0,114,0,114,53,48]
[null,"$10,000 to $14,999",0,114,0,114,0,114,53,46,0,114,3,4,0,114,3,4,16,19,9,11,0,114,0,114,6,7,0,114,0,114,3,4,0,114,0,114,0,114,0,114,0,114,7,11,0,114,34,36,0,114,0,114,15,9,0,114,40,42,0,114,0,114,11,10,0,114,0,114,0,114,2,3,4,6,11,9,22,21,0,114,0,114,0,114,36,33]
[null,"$15,000 to $19,999",0,114,0,114,0,114,134,60,0,114,0,114,0,114,8,9,22,30,10,12,0,114,0,114,6,7,0,114,0,114,0,114,0,114,0,114,54,61,0,114,0,114,0,114,0,114,36,44,0,114,0,114,11,9,0,114,41,29,0,114,0,114,8,8,0,114,0,114,0,114,5,6,11,9,22,19,6,9,0,114,0,114,0,114,5,7]
[null,"$20,000 to $24,999",0,114,0,114,0,114,122,79,0,114,0,114,0,114,5,6,42,36,0,114,0,114,0,114,29,17,0,114,0,114,6,5,9,8,0,114,13,15,0,114,0,114,20,12,0,114,7,12,0,114,0,114,18,9,0,114,94,62,0,114,0,114,25,21,0,114,0,114,0,114,2,3,9,10,46,26,8,6,0,114,0,114,0,114,17,15]
[null,"$25,000 to $29,999",0,114,0,114,0,114,109,61,0,114,9,7,0,114,11,11,49,46,13,11,0,114,0,114,15,11,0,114,0,114,12,10,9,10,0,114,47,43,0,114,0,114,28,20,0,114,39,34,0,114,0,114,12,10,0,114,47,34,0,114,0,114,20,15,14,10,0,114,0,114,3,5,18,19,12,10,6,9,0,114,0,114,8,10,36,30]
[null,"$30,000 to $34,999",0,114,0,114,0,114,113,48,0,114,20,18,0,114,5,7,4,6,19,16,0,114,0,114,25,18,0,114,0,114,8,7,6,6,0,114,14,18,0,114,0,114,0,114,0,114,76,69,0,114,0,114,25,19,0,114,50,34,0,114,0,114,4,6,13,12,0,114,0,114,3,5,12,12,7,10,33,26,0,114,0,114,0,114,56,24]
[null,"$35,000 to $39,999",0,114,0,114,0,114,137,65,0,114,3,4,0,114,13,10,48,39,23,17,0,114,0,114,19,12,0,114,0,114,3,4,6,6,0,114,78,90,0,114,0,114,24,16,0,114,57,42,0,114,0,114,39,16,0,114,23,22,0,114,0,114,17,16,0,114,0,114,0,114,4,5,8,12,25,14,32,21,0,114,0,114,0,114,56,39]
[null,"$40,000 to $44,999",0,114,0,114,0,114,219,91,0,114,23,17,0,114,13,12,15,15,17,15,0,114,0,114,10,9,0,114,0,114,2,3,0,114,0,114,135,73,0,114,0,114,9,9,0,114,24,24,0,114,0,114,11,9,0,114,85,48,0,114,0,114,14,13,2,3,0,114,0,114,2,4,17,14,13,15,15,12,0,114,0,114,0,114,0,114]
[null,"$45,000 to $49,999",0,114,0,114,0,114,190,86,0,114,3,4,0,114,8,9,72,43,0,114,0,114,0,114,24,16,0,114,0,114,6,5,6,7,0,114,53,36,0,114,0,114,6,7,0,114,35,33,0,114,0,114,14,13,0,114,25,23,0,114,0,114,10,10,4,6,0,114,0,114,10,9,10,12,19,16,16,16,0,114,0,114,0,114,36,19]
[null,"$50,000 to $59,999",0,114,0,114,0,114,241,79,0,114,22,15,0,114,0,114,38,27,40,25,0,114,0,114,32,18,0,114,4,6,38,47,6,7,0,114,64,35,0,114,0,114,30,18,0,114,181,88,0,114,0,114,46,18,0,114,102,43,0,114,0,114,58,30,19,16,0,114,0,114,17,10,14,12,35,22,15,11,0,114,0,114,3,6,55,27]
[null,"$60,000 to $74,999",0,114,0,114,0,114,362,97,0,114,52,26,0,114,15,11,55,38,22,18,0,114,0,114,90,45,0,114,4,6,15,9,13,13,0,114,97,44,0,114,0,114,47,21,0,114,92,40,0,114,0,114,92,23,0,114,88,34,0,114,0,114,36,24,10,7,0,114,0,114,20,13,17,11,42,22,41,27,0,114,0,114,0,114,69,32]
[null,"$75,000 to $99,999",0,114,0,114,0,114,444,108,0,114,42,26,0,114,16,11,84,43,50,33,0,114,0,114,43,21,0,114,0,114,22,12,20,13,0,114,126,54,0,114,0,114,61,22,0,114,188,57,0,114,0,114,57,21,0,114,70,41,0,114,0,114,37,22,48,23,0,114,0,114,31,17,26,17,18,17,20,15,0,114,0,114,0,114,81,36]
[null,"$100,000 to $124,999",0,114,0,114,0,114,79,44,0,114,17,16,0,114,0,114,65,49,15,14,0,114,0,114,17,10,0,114,0,114,4,5,8,7,0,114,44,39,0,114,0,114,36,15,0,114,98,53,0,114,0,114,55,22,0,114,44,31,0,114,0,114,16,13,11,12,0,114,0,114,23,17,13,12,5,7,0,114,0,114,0,114,0,114,31,24]
[null,"$125,000 to $149,999",0,114,0,114,0,114,77,58,0,114,4,6,0,114,0,114,22,33,0,114,0,114,0,114,18,15,0,114,0,114,0,114,3,5,0,114,41,34,0,114,0,114,2,3,0,114,4,7,0,114,0,114,9,8,0,114,8,12,0,114,0,114,3,6,2,3,0,114,0,114,5,5,0,114,17,13,4,6,0,114,0,114,0,114,12,13]
[null,"$150,000 to $199,999",0,114,0,114,0,114,32,29,0,114,0,114,0,114,3,4,13,18,9,10,0,114,0,114,3,6,0,114,0,114,2,3,2,3,0,114,66,48,0,114,0,114,2,4,0,114,28,27,0,114,0,114,0,114,0,114,0,114,0,114,0,114,5,7,5,5,0,114,0,114,20,23,6,6,0,114,0,114,0,114,0,114,0,114,15,13]
[null,"$200,000 or more",0,114,0,114,0,114,0,114,0,114,3,5,0,114,0,114,6,10,15,23,0,114,0,114,0,114,0,114,0,114,0,114,0,114,0,114,15,23,0,114,0,114,35,28,0,114,39,40,0,114,0,114,8,7,0,114,0,114,0,114,0,114,5,8,3,4,0,114,0,114,5,7,0,114,0,114,5,8,0,114,0,114,0,114,6,8]
[]
[]
[null,"B19113. MEDIAN FAMILY INCOME IN THE PAST 12 MONTHS (IN 2009 INFLATION-ADJUSTED DOLLARS)"]
[null,"Universe:  FAMILIES"]
[null,"Data Set: 2005-2009 American Community Survey 5-Year Estimates"]
[]
[null,null,"Atkinson and Gilmanton Grant",null,"Bean's Grant",null,"Bean's Purchase",null,"Berlin",null,"Cambridge",null,"Carroll",null,"Chandler's Purchase",null,"Clarksville",null,"Colebrook",null,"Columbia",null,"Crawford's Purchase",null,"Cutt's Grant",null,"Dalton",null,"Dix's Grant",null,"Dixville",null,"Dummer",null,"Errol",null,"Erving's Location",null,"Gorham",null,"Greens Grant",null,"Hadley's Purchase",null,"Jefferson",null,"Kilkenny",null,"Lancaster",null,"Low and Burbank's Grant",null,"Martin's Location",null,"Milan",null,"Millsfield",null,"Northumberland",null,"Odell",null,"Pinkham's Grant",null,"Pittsburg",null,"Randolph",null,"Sargent's Purchase",null,"Second College Grant",null,"Shelburne",null,"Stark",null,"Stewartstown",null,"Stratford",null,"Success",null,"Thompson and Meserves Purchase",null,"Wentworth's Location",null,"Whitefield"]
[null,null,"Estimate","Margin Of Error","Estimate","Margin Of Error","Estimate","Margin Of Error","Estimate","Margin Of Error","Estimate","Margin Of Error","Estimate","Margin Of Error","Estimate","Margin Of Error","Estimate","Margin Of Error","Estimate","Margin Of Error","Estimate","Margin Of Error","Estimate","Margin Of Error","Estimate","Margin Of Error","Estimate","Margin Of Error","Estimate","Margin Of Error","Estimate","Margin Of Error","Estimate","Margin Of Error","Estimate","Margin Of Error","Estimate","Margin Of Error","Estimate","Margin Of Error","Estimate","Margin Of Error","Estimate","Margin Of Error","Estimate","Margin Of Error","Estimate","Margin Of Error","Estimate","Margin Of Error","Estimate","Margin Of Error","Estimate","Margin Of Error","Estimate","Margin Of Error","Estimate","Margin Of Error","Estimate","Margin Of Error","Estimate","Margin Of Error","Estimate","Margin Of Error","Estimate","Margin Of Error","Estimate","Margin Of Error","Estimate","Margin Of Error","Estimate","Margin Of Error","Estimate","Margin Of Error","Estimate","Margin Of Error","Estimate","Margin Of Error","Estimate","Margin Of Error","Estimate","Margin Of Error","Estimate","Margin Of Error","Estimate","Margin Of Error","Estimate","Margin Of Error"]
[null,"Median family income in the past 12 months","**","**","**","**","**","**",52868,7440,"**","**",67629,7938,"**","**",42500,7616,51250,13033,56912,9138,"**","**","**","**",57917,8418,"**","**",58750,13016,53681,2569,61000,7032,"**","**",55848,13050,"**","**","**","**",64063,13603,"**","**",58165,5913,"**","**","**","**",63125,7165,"**","**",43308,5291,"**","**","**","**",55450,4995,82188,14674,"**","**","**","**",81250,22016,44750,8501,43571,7880,35982,5756,"**","**","**","**",26719,25480,48796,8883]

{"sheet":"ACS_Table_B25091","index":65,"n_rows":208,"n_cols":88,"rows_kept":208,"cut":false,"hidden":true,"merged":[]}
[null,"B25091. MORTGAGE STATUS BY SELECTED MONTHLY OWNER COSTS AS A PERCENTAGE OF HOUSEHOLD INCOME IN THE PAST 12 MONTHS "]
[null,"Universe:  OWNER-OCCUPIED HOUSING UNITS"]
[null,"Data Set: 2015-2019 American Community Survey 5-Year Estimates"]
[]
[null,null,"Atkinson and Gilmanton Grant",null,"Bean's Grant",null,"Bean's Purchase",null,"Berlin",null,"Cambridge",null,"Carroll",null,"Chandler's Purchase",null,"Clarksville",null,"Colebrook",null,"Columbia",null,"Crawford's Purchase",null,"Cutt's Grant",null,"Dalton",null,"Dix's Grant",null,"Dixville",null,"Dummer",null,"Errol",null,"Erving's Location",null,"Gorham",null,"Greens Grant",null,"Hadley's Purchase",null,"Jefferson",null,"Kilkenny",null,"Lancaster",null,"Low and Burbank's Grant",null,"Martin's Location",null,"Milan",null,"Millsfield",null,"Northumberland",null,"Odell",null,"Pinkham's Grant",null,"Pittsburg",null,"Randolph",null,"Sargent's Purchase",null,"Second College Grant",null,"Shelburne",null,"Stark",null,"Stewartstown",null,"Stratford",null,"Success",null,"Thompson and Meserves Purchase",null,"Wentworth's Location",null,"Whitefield"]
[null,null,"Estimate","Margin Of Error","Estimate","Margin Of Error","Estimate","Margin Of Error","Estimate","Margin Of Error","Estimate","Margin Of Error","Estimate","Margin Of Error","Estimate","Margin Of Error","Estimate","Margin Of Error","Estimate","Margin Of Error","Estimate","Margin Of Error","Estimate","Margin Of Error","Estimate","Margin Of Error","Estimate","Margin Of Error","Estimate","Margin Of Error","Estimate","Margin Of Error","Estimate","Margin Of Error","Estimate","Margin Of Error","Estimate","Margin Of Error","Estimate","Margin Of Error","Estimate","Margin Of Error","Estimate","Margin Of Error","Estimate","Margin Of Error","Estimate","Margin Of Error","Estimate","Margin Of Error","Estimate","Margin Of Error","Estimate","Margin Of Error","Estimate","Margin Of Error","Estimate","Margin Of Error","Estimate","Margin Of Error","Estimate","Margin Of Error","Estimate","Margin Of Error","Estimate","Margin Of Error","Estimate","Margin Of Error","Estimate","Margin Of Error","Estimate","Margin Of Error","Estimate","Margin Of Error","Estimate","Margin Of Error","Estimate","Margin Of Error","Estimate","Margin Of Error","Estimate","Margin Of Error","Estimate","Margin Of Error","Estimate","Margin Of Error","Estimate","Margin Of Error"]
[null,"Total:",0,11,0,11,0,11,2228,192,0,11,252,49,0,11,130,39,698,79,267,47,0,11,0,11,364,62,0,11,1,4,114,24,95,27,0,11,960,80,0,11,0,11,346,48,0,11,1019,108,0,11,0,11,499,49,4,6,660,86,0,11,0,11,336,50,161,36,0,11,0,11,163,29,198,39,370,54,206,41,0,11,0,11,14,9,643,78]
[null,"Housing units with a mortgage:",0,11,0,11,0,11,1099,159,0,11,133,40,0,11,66,29,304,64,110,35,0,11,0,11,179,51,0,11,0,11,58,16,40,18,0,11,437,66,0,11,0,11,185,40,0,11,547,109,0,11,0,11,283,41,4,6,302,75,0,11,0,11,151,37,77,24,0,11,0,11,80,27,100,29,131,41,67,24,0,11,0,11,5,5,294,62]
[null,"Less than 10.0 percent",0,11,0,11,0,11,91,55,0,11,6,6,0,11,6,9,45,28,6,6,0,11,0,11,7,12,0,11,0,11,6,5,5,7,0,11,24,20,0,11,0,11,3,4,0,11,33,40,0,11,0,11,16,9,4,6,17,21,0,11,0,11,10,15,16,11,0,11,0,11,9,7,6,6,27,23,3,4,0,11,0,11,0,11,19,15]
[null,"10.0 to 14.9 percent",0,11,0,11,0,11,326,127,0,11,28,16,0,11,12,12,46,28,11,7,0,11,0,11,43,30,0,11,0,11,4,4,7,7,0,11,105,56,0,11,0,11,12,9,0,11,65,53,0,11,0,11,36,18,0,11,73,40,0,11,0,11,8,7,13,9,0,11,0,11,20,15,13,10,15,10,14,12,0,11,0,11,0,11,33,19]
[null,"15.0 to 19.9 percent",0,11,0,11,0,11,213,77,0,11,26,18,0,11,8,10,27,20,26,19,0,11,0,11,27,26,0,11,0,11,6,5,6,7,0,11,101,48,0,11,0,11,62,24,0,11,129,67,0,11,0,11,76,27,0,11,75,43,0,11,0,11,17,16,18,14,0,11,0,11,8,12,4,5,28,23,11,8,0,11,0,11,0,11,40,31]
[null,"20.0 to 24.9 percent",0,11,0,11,0,11,129,70,0,11,19,18,0,11,4,7,55,37,29,22,0,11,0,11,24,23,0,11,0,11,13,10,0,11,0,11,67,40,0,11,0,11,26,21,0,11,103,65,0,11,0,11,51,25,0,11,44,27,0,11,0,11,18,13,11,9,0,11,0,11,10,11,33,22,13,15,7,6,0,11,0,11,2,3,51,34]
[null,"25.0 to 29.9 percent",0,11,0,11,0,11,141,80,0,11,11,9,0,11,0,11,26,26,4,6,0,11,0,11,13,12,0,11,0,11,11,8,0,11,0,11,52,34,0,11,0,11,31,15,0,11,37,32,0,11,0,11,16,10,0,11,27,21,0,11,0,11,12,9,9,7,0,11,0,11,11,7,6,6,8,7,4,5,0,11,0,11,0,11,21,20]
[null,"30.0 to 34.9 percent",0,11,0,11,0,11,61,40,0,11,2,3,0,11,22,18,12,10,7,12,0,11,0,11,7,8,0,11,0,11,3,3,11,13,0,11,28,31,0,11,0,11,15,12,0,11,28,27,0,11,0,11,30,19,0,11,27,35,0,11,0,11,14,18,0,11,0,11,0,11,3,6,13,12,12,15,0,11,0,11,0,11,3,4,41,23]
[null,"35.0 to 39.9 percent",0,11,0,11,0,11,8,13,0,11,11,10,0,11,7,6,41,38,3,5,0,11,0,11,21,19,0,11,0,11,1,3,0,11,0,11,6,11,0,11,0,11,0,11,0,11,15,17,0,11,0,11,11,9,0,11,0,11,0,11,0,11,24,21,4,5,0,11,0,11,9,10,2,3,3,4,9,10,0,11,0,11,0,11,30,21]
[null,"40.0 to 49.9 percent",0,11,0,11,0,11,61,45,0,11,10,12,0,11,2,3,18,15,3,5,0,11,0,11,18,24,0,11,0,11,6,8,0,11,0,11,31,26,0,11,0,11,16,19,0,11,69,57,0,11,0,11,22,13,0,11,5,7,0,11,0,11,14,14,0,11,0,11,0,11,5,6,9,7,0,11,2,3,0,11,0,11,0,11,6,9]
[null,"50.0 percent or more",0,11,0,11,0,11,69,56,0,11,20,14,0,11,5,4,34,21,21,18,0,11,0,11,19,14,0,11,0,11,8,10,11,11,0,11,23,20,0,11,0,11,20,11,0,11,68,39,0,11,0,11,22,11,0,11,34,25,0,11,0,11,34,19,6,5,0,11,0,11,5,7,14,10,25,21,17,11,0,11,0,11,0,11,53,33]
[null,"Not computed",0,11,0,11,0,11,0,18,0,11,0,11,0,11,0,11,0,11,0,11,0,11,0,11,0,11,0,11,0,11,0,11,0,11,0,11,0,11,0,11,0,11,0,11,0,11,0,11,0,11,0,11,3,4,0,11,0,11,0,11,0,11,0,11,0,11,0,11,0,11,0,11,0,11,0,11,0,11,0,11,0,11,0,11,0,11]
[null,"Housing units without a mortgage:",0,11,0,11,0,11,1129,159,0,11,119,32,0,11,64,22,394,76,157,28,0,11,0,11,185,42,0,11,1,4,56,20,55,21,0,11,523,86,0,11,0,11,161,36,0,11,472,99,0,11,0,11,216,40,0,11,358,68,0,11,0,11,185,52,84,21,0,11,0,11,83,21,98,26,239,50,139,38,0,11,0,11,9,7,349,75]
[null,"Less than 10.0 percent",0,11,0,11,0,11,263,95,0,11,29,17,0,11,22,13,79,45,32,14,0,11,0,11,66,29,0,11,0,11,21,13,16,11,0,11,162,66,0,11,0,11,55,23,0,11,97,48,0,11,0,11,76,25,0,11,78,40,0,11,0,11,40,22,42,17,0,11,0,11,36,17,23,11,49,25,16,9,0,11,0,11,1,3,83,30]
[null,"10.0 to 14.9 percent",0,11,0,11,0,11,218,58,0,11,16,8,0,11,6,5,72,31,26,13,0,11,0,11,25,20,0,11,0,11,22,13,18,11,0,11,67,46,0,11,0,11,27,14,0,11,134,64,0,11,0,11,68,34,0,11,110,40,0,11,0,11,67,35,18,10,0,11,0,11,16,9,33,13,77,35,27,21,0,11,0,11,0,11,93,47]
[null,"15.0 to 19.9 percent",0,11,0,11,0,11,121,57,0,11,27,18,0,11,20,12,65,40,31,15,0,11,0,11,19,13,0,11,0,11,4,3,0,11,0,11,89,56,0,11,0,11,18,11,0,11,66,44,0,11,0,11,38,16,0,11,54,26,0,11,0,11,22,13,7,8,0,11,0,11,12,8,10,8,23,20,26,15,0,11,0,11,8,7,36,27]
[null,"20.0 to 24.9 percent",0,11,0,11,0,11,184,65,0,11,14,11,0,11,7,5,20,14,18,11,0,11,0,11,15,11,0,11,1,4,3,4,3,5,0,11,74,37,0,11,0,11,14,7,0,11,60,41,0,11,0,11,7,6,0,11,29,18,0,11,0,11,15,12,9,6,0,11,0,11,8,7,6,6,34,21,13,10,0,11,0,11,0,11,38,38]
[null,"25.0 to 29.9 percent",0,11,0,11,0,11,56,33,0,11,2,3,0,11,0,11,73,39,24,15,0,11,0,11,11,9,0,11,0,11,2,3,0,11,0,11,57,46,0,11,0,11,22,12,0,11,28,24,0,11,0,11,3,4,0,11,30,19,0,11,0,11,0,11,2,3,0,11,0,11,3,4,0,11,32,22,12,12,0,11,0,11,0,11,21,15]
[null,"30.0 to 34.9 percent",0,11,0,11,0,11,38,31,0,11,8,7,0,11,2,3,31,27,4,5,0,11,0,11,4,6,0,11,0,11,2,5,1,3,0,11,28,24,0,11,0,11,0,11,0,11,36,29,0,11,0,11,0,11,0,11,15,16,0,11,0,11,7,6,0,11,0,11,0,11,0,11,7,7,0,11,7,6,0,11,0,11,0,11,40,35]
[null,"35.0 to 39.9 percent",0,11,0,11,0,11,53,37,0,11,9,7,0,11,0,11,6,9,6,8,0,11,0,11,12,14,0,11,0,11,0,11,6,7,0,11,0,11,0,11,0,11,14,17,0,11,15,17,0,11,0,11,3,4,0,11,12,12,0,11,0,11,8,8,6,6,0,11,0,11,0,11,0,11,8,13,0,11,0,11,0,11,0,11,4,7]
[null,"40.0 to 49.9 percent",0,11,0,11,0,11,71,37,0,11,0,11,0,11,2,3,7,9,15,9,0,11,0,11,8,8,0,11,0,11,1,3,2,3,0,11,19,20,0,11,0,11,4,5,0,11,6,9,0,11,0,11,8,7,0,11,21,14,0,11,0,11,0,11,0,11,0,11,0,11,0,11,9,11,4,7,0,11,0,11,0,11,0,11,18,16]
[null,"50.0 percent or more",0,11,0,11,0,11,108,52,0,11,12,11,0,11,5,6,41,18,1,2,0,11,0,11,23,19,0,11,0,11,1,4,9,10,0,11,27,23,0,11,0,11,7,6,0,11,30,25,0,11,0,11,3,5,0,11,9,7,0,11,0,11,26,24,0,11,0,11,0,11,8,7,8,7,12,14,33,23,0,11,0,11,0,11,16,17]
[null,"Not computed",0,11,0,11,0,11,17,18,0,11,2,3,0,11,0,11,0,11,0,11,0,11,0,11,2,3,0,11,0,11,0,11,0,11,0,11,0,11,0,11,0,11,0,11,0,11,0,11,0,11,0,11,10,14,0,11,0,11,0,11,0,11,0,11,0,11,0,11,0,11,0,11,2,3,0,11,5,5,0,11,0,11,0,11,0,11]
[]
[]
[]
[null,"Calculated B25091. MORTGAGE STATUS BY SELECTED MONTHLY OWNER COSTS AS A PERCENTAGE OF HOUSEHOLD INCOME IN THE PAST 12 MONTHS "]
[null,"Universe:  OWNER-OCCUPIED HOUSING UNITS"]
[null,"Data Set: 2015-2019 American Community Survey 5-Year Estimates"]
[]
[null,null,"Atkinson and Gilmanton Grant",null,"Bean's Grant",null,"Bean's Purchase",null,"Berlin",null,"Cambridge",null,"Carroll",null,"Chandler's Purchase",null,"Clarksville",null,"Colebrook",null,"Columbia",null,"Crawford's Purchase",null,"Cutt's Grant",null,"Dalton",null,"Dix's Grant",null,"Dixville",null,"Dummer",null,"Errol",null,"Erving's Location",null,"Gorham",null,"Greens Grant",null,"Hadley's Purchase",null,"Jefferson",null,"Kilkenny",null,"Lancaster",null,"Low and Burbank's Grant",null,"Martin's Location",null,"Milan",null,"Millsfield",null,"Northumberland",null,"Odell",null,"Pinkham's Grant",null,"Pittsburg",null,"Randolph",null,"Sargent's Purchase",null,"Second College Grant",null,"Shelburne",null,"Stark",null,"Stewartstown",null,"Stratford",null,"Success",null,"Thompson and Meserves Purchase",null,"Wentworth's Location",null,"Whitefield"]
[null,null,"Estimate","Margin Of Error","Estimate","Margin Of Error","Estimate","Margin Of Error","Estimate","Margin Of Error","Estimate","Margin Of Error","Estimate","Margin Of Error","Estimate","Margin Of Error","Estimate","Margin Of Error","Estimate","Margin Of Error","Estimate","Margin Of Error","Estimate","Margin Of Error","Estimate","Margin Of Error","Estimate","Margin Of Error","Estimate","Margin Of Error","Estimate","Margin Of Error","Estimate","Margin Of Error","Estimate","Margin Of Error","Estimate","Margin Of Error","Estimate","Margin Of Error","Estimate","Margin Of Error","Estimate","Margin Of Error","Estimate","Margin Of Error","Estimate","Margin Of Error","Estimate","Margin Of Error","Estimate","Margin Of Error","Estimate","Margin Of Error","Estimate","Margin Of Error","Estimate","Margin Of Error","Estimate","Margin Of Error","Estimate","Margin Of Error","Estimate","Margin Of Error","Estimate","Margin Of Error","Estimate","Margin Of Error","Estimate","Margin Of Error","Estimate","Margin Of Error","Estimate","Margin Of Error","Estimate","Margin Of Error","Estimate","Margin Of Error","Estimate","Margin Of Error","Estimate","Margin Of Error","Estimate","Margin Of Error","Estimate","Margin Of Error","Estimate","Margin Of Error"]
[null,"Total:",{"$f":"C7","v":0},{"$f":"D7","v":11},{"$f":"E7","v":0},11,0,11,2228,192,0,11,252,49,0,11,130,39,698,79,267,47,0,11,{"$f":"Y7","v":0},11,364,62,0,11,1,4,114,24,95,27,0,11,960,80,{"$f":"AO7","v":0},11,0,11,346,48,0,11,1019,108,0,11,0,11,499,49,4,6,660,86,0,11,0,11,336,50,161,36,0,11,0,11,163,29,198,39,370,54,206,41,0,11,0,11,14,9,643,78]
[null,"Less than 10.0 percent",{"$f":"C9+C20","v":0},{"$f":"SQRT((D9^2)+(D20^2))","v":15.556349186104045},{"$f":"E9+E20","v":0},{"$f":"SQRT((F9^2)+(F20^2))","v":15.556349186104045},{"$f":"G9+G20","v":0},{"$f":"SQRT((H9^2)+(H20^2))","v":15.556349186104045},{"$f":"I9+I20","v":354},{"$f":"SQRT((J9^2)+(J20^2))","v":109.77249200050075},{"$f":"K9+K20","v":0},{"$f":"SQRT((L9^2)+(L20^2))","v":15.556349186104045},{"$f":"M9+M20","v":35},{"$f":"SQRT((N9^2)+(N20^2))","v":18.027756377319946},{"$f":"O9+O20","v":0},{"$f":"SQRT((P9^2)+(P20^2))","v":15.556349186104045},{"$f":"Q9+Q20","v":28},{"$f":"SQRT((R9^2)+(R20^2))","v":15.811388300841896},{"$f":"S9+S20","v":124},{"$f":"SQRT((T9^2)+(T20^2))","v":53},{"$f":"U9+U20","v":38},{"$f":"SQRT((V9^2)+(V20^2))","v":15.231546211727817},{"$f":"W9+W20","v":0},{"$f":"SQRT((X9^2)+(X20^2))","v":15.556349186104045},0,{"$f":"SQRT((Z9^2)+(Z20^2))","v":15.556349186104045},{"$f":"AA9+AA20","v":73},{"$f":"SQRT((AB9^2)+(AB20^2))","v":31.384709652950431},{"$f":"AC9+AC20","v":0},{"$f":"SQRT((AD9^2)+(AD20^2))","v":15.556349186104045},{"$f":"AE9+AE20","v":0},{"$f":"SQRT((AF9^2)+(AF20^2))","v":15.556349186104045},{"$f":"AG9+AG20","v":27},{"$f":"SQRT((AH9^2)+(AH20^2))","v":13.928388277184119},{"$f":"AI9+AI20","v":21},{"$f":"SQRT((AJ9^2)+(AJ20^2))","v":13.038404810405298},{"$f":"AK9+AK20","v":0},{"$f":"SQRT((AL9^2)+(AL20^2))","v":15.556349186104045},{"$f":"AM9+AM20","v":186},{"$f":"SQRT((AN9^2)+(AN20^2))","v":68.963758598266665},0,15.556349186104045,{"$f":"AQ9+AQ20","v":0},{"$f":"SQRT((AR9^2)+(AR20^2))","v":15.556349186104045},{"$f":"AS9+AS20","v":58},{"$f":"SQRT((AT9^2)+(AT20^2))","v":23.345235059857504},{"$f":"AU9+AU20","v":0},{"$f":"SQRT((AV9^2)+(AV20^2))","v":15.556349186104045},{"$f":"AW9+AW20","v":130},{"$f":"SQRT((AX9^2)+(AX20^2))","v":62.481997407253232},{"$f":"AY9+AY20","v":0},{"$f":"SQRT((AZ9^2)+(AZ20^2))","v":15.556349186104045},{"$f":"BA9+BA20","v":0},{"$f":"SQRT((BB9^2)+(BB20^2))","v":15.556349186104045},{"$f":"BC9+BC20","v":92},{"$f":"SQRT((BD9^2)+(BD20^2))","v":26.570660511172846},{"$f":"BE9+BE20","v":4},{"$f":"SQRT((BF9^2)+(BF20^2))","v":12.529964086141668},{"$f":"BG9+BG20","v":95},{"$f":"SQRT((BH9^2)+(BH20^2))","v":45.177427992306072},{"$f":"BI9+BI20","v":0},{"$f":"SQRT((BJ9^2)+(BJ20^2))","v":15.556349186104045},{"$f":"BK9+BK20","v":0},{"$f":"SQRT((BL9^2)+(BL20^2))","v":15.556349186104045},{"$f":"BM9+BM20","v":50},{"$f":"SQRT((BN9^2)+(BN20^2))","v":26.627053911388696},{"$f":"BO9+BO20","v":58},{"$f":"SQRT((BP9^2)+(BP20^2))","v":20.248456731316587},{"$f":"BQ9+BQ20","v":0},{"$f":"SQRT((BR9^2)+(BR20^2))","v":15.556349186104045},{"$f":"BS9+BS20","v":0},{"$f":"SQRT((BT9^2)+(BT20^2))","v":15.556349186104045},{"$f":"BU9+BU20","v":45},{"$f":"SQRT((BV9^2)+(BV20^2))","v":18.384776310850235},{"$f":"BW9+BW20","v":29},{"$f":"SQRT((BX9^2)+(BX20^2))","v":12.529964086141668},{"$f":"BY9+BY20","v":76},{"$f":"SQRT((BZ9^2)+(BZ20^2))","v":33.97057550292606},{"$f":"CA9+CA20","v":19},{"$f":"SQRT((CB9^2)+(CB20^2))","v":9.8488578017961039},{"$f":"CC9+CC20","v":0},{"$f":"SQRT((CD9^2)+(CD20^2))","v":15.556349186104045},{"$f":"CE9+CE20","v":0},{"$f":"SQRT((CF9^2)+(CF20^2))","v":15.556349186104045},{"$f":"CG9+CG20","v":1},{"$f":"SQRT((CH9^2)+(CH20^2))","v":11.401754250991379},{"$f":"CI9+CI20","v":102},{"$f":"SQRT((CJ9^2)+(CJ20^2))","v":33.541019662496844}]
[null,"10.0 to 14.9 percent",0,15.556349186104045,0,15.556349186104045,0,15.556349186104045,544,139.61733416735902,0,15.556349186104045,44,17.888543819998318,0,15.556349186104045,18,13,118,41.773197148410844,37,14.7648230602334,0,{"$f":"SQRT((X10^2)+(X21^2))","v":15.556349186104045},0,15.556349186104045,68,36.055512754639892,0,15.556349186104045,0,15.556349186104045,26,13.601470508735444,25,13.038404810405298,0,15.556349186104045,172,72.47068372797375,0,15.556349186104045,0,15.556349186104045,39,16.643316977093239,0,15.556349186104045,199,83.096329642168911,0,15.556349186104045,0,15.556349186104045,104,38.470768123342687,0,15.556349186104045,183,56.568542494923804,0,15.556349186104045,0,15.556349186104045,75,35.693136595149497,31,13.45362404707371,0,15.556349186104045,0,15.556349186104045,36,17.4928556845359,46,16.401219466856727,92,36.400549446402593,41,24.186773244895647,0,15.556349186104045,0,15.556349186104045,0,15.556349186104045,126,50.695167422546305]
[null,"15.0 to 19.9 percent",0,15.556349186104045,0,15.556349186104045,0,15.556349186104045,334,95.801878895979911,0,15.556349186104045,53,25.45584412271571,0,15.556349186104045,28,15.620499351813308,92,44.721359549995796,57,24.207436873820409,0,15.556349186104045,0,15.556349186104045,46,29.068883707497267,0,15.556349186104045,0,15.556349186104045,10,5.8309518948453007,6,13.038404810405298,0,15.556349186104045,190,73.756355658343097,0,15.556349186104045,0,15.556349186104045,80,26.40075756488817,0,15.556349186104045,195,80.156097709406993,0,15.556349186104045,0,15.556349186104045,114,31.384709652950431,0,15.556349186104045,129,50.24937810560445,0,15.556349186104045,0,15.556349186104045,39,20.615528128088304,25,16.124515496597098,0,15.556349186104045,0,15.556349186104045,20,14.422205101855956,14,9.4339811320566032,51,30.479501308256342,37,17,0,15.556349186104045,0,15.556349186104045,8,13.038404810405298,76,41.109609582188931]
[null,"20.0 to 24.9 percent",0,15.556349186104045,0,15.556349186104045,0,15.556349186104045,313,95.524865872714003,0,15.556349186104045,33,21.095023109728988,0,15.556349186104045,11,8.6023252670426267,75,39.560080889704963,47,24.596747752497688,0,15.556349186104045,0,15.556349186104045,39,25.495097567963924,0,15.556349186104045,1,11.704699910719626,16,10.770329614269007,3,12.083045973594572,0,15.556349186104045,141,54.488530903301111,0,15.556349186104045,0,15.556349186104045,40,22.135943621178654,0,15.556349186104045,163,76.850504227363402,0,15.556349186104045,0,15.556349186104045,58,25.709920264364882,0,15.556349186104045,73,32.449961479175904,0,15.556349186104045,0,15.556349186104045,33,17.691806012954132,20,10.816653826391969,0,15.556349186104045,0,15.556349186104045,18,13.038404810405298,39,22.803508501982758,47,25.80697580112788,20,11.661903789690601,0,15.556349186104045,0,15.556349186104045,2,11.401754250991379,89,50.990195135927848]
[null,"25.0 to 29.9 percent",0,15.556349186104045,0,15.556349186104045,0,15.556349186104045,197,86.539008545279742,0,15.556349186104045,13,9.4868329805051381,0,15.556349186104045,0,15.556349186104045,99,46.872166581031863,28,16.15549442140351,0,15.556349186104045,0,15.556349186104045,24,15,0,15.556349186104045,0,15.556349186104045,13,8.5440037453175304,0,15.556349186104045,0,15.556349186104045,109,57.201398584300364,0,15.556349186104045,0,15.556349186104045,53,19.209372712298546,0,15.556349186104045,65,40,0,15.556349186104045,0,15.556349186104045,19,10.770329614269007,0,15.556349186104045,57,28.319604517012593,0,15.556349186104045,0,15.556349186104045,12,14.212670403551895,11,7.6157731058639087,0,15.556349186104045,0,15.556349186104045,14,8.0622577482985491,6,12.529964086141668,40,23.086792761230392,16,13,0,15.556349186104045,0,15.556349186104045,0,15.556349186104045,42,25]
[null,"30.0 to 34.9 percent",0,15.556349186104045,0,15.556349186104045,0,15.556349186104045,99,50.606323715519977,0,15.556349186104045,10,7.6157731058639087,0,15.556349186104045,24,18.248287590894659,43,28.792360097775937,11,13,0,15.556349186104045,0,15.556349186104045,11,10,0,15.556349186104045,0,15.556349186104045,5,5.8309518948453007,12,13.341664064126334,0,15.556349186104045,56,39.204591567825318,0,15.556349186104045,0,15.556349186104045,15,16.278820596099706,0,15.556349186104045,64,39.623225512317902,0,15.556349186104045,0,15.556349186104045,30,21.95449840010015,0,15.556349186104045,42,38.483762809787713,0,15.556349186104045,0,15.556349186104045,21,18.973665961010276,0,15.556349186104045,0,15.556349186104045,0,15.556349186104045,3,12.529964086141668,20,13.892443989449804,12,18.601075237738275,7,12.529964086141668,0,15.556349186104045,0,15.556349186104045,3,11.704699910719626,81,41.880783182743848]
[null,"35.0 to 39.9 percent",0,15.556349186104045,0,15.556349186104045,0,15.556349186104045,61,39.217343102255157,0,15.556349186104045,20,12.206555615733702,0,15.556349186104045,7,12.529964086141668,47,39.05124837953327,9,9.4339811320566032,0,15.556349186104045,0,15.556349186104045,33,23.600847442411894,0,15.556349186104045,0,15.556349186104045,1,11.401754250991379,6,13.038404810405298,0,15.556349186104045,6,15.556349186104045,0,15.556349186104045,0,15.556349186104045,14,20.248456731316587,0,15.556349186104045,30,24.041630560342615,0,15.556349186104045,0,15.556349186104045,14,9.8488578017961039,0,15.556349186104045,12,16.278820596099706,0,15.556349186104045,0,15.556349186104045,32,22.472205054244231,10,7.810249675906654,0,15.556349186104045,0,15.556349186104045,9,14.866068747318506,2,11.401754250991379,11,13.601470508735444,9,14.866068747318506,0,15.556349186104045,0,15.556349186104045,0,15.556349186104045,34,22.135943621178654]
[null,"40.0 to 49.9 percent",0,15.556349186104045,0,15.556349186104045,0,15.556349186104045,132,58.258046654518033,0,15.556349186104045,10,16.278820596099706,0,15.556349186104045,4,4.2426406871192848,25,17.4928556845359,18,10.295630140987001,0,15.556349186104045,0,15.556349186104045,26,25.298221281347036,0,15.556349186104045,0,15.556349186104045,7,8.5440037453175304,2,11.401754250991379,0,15.556349186104045,50,32.802438933713454,0,15.556349186104045,0,15.556349186104045,20,19.646882704388499,0,15.556349186104045,75,57.706152185014034,0,15.556349186104045,0,15.556349186104045,30,14.7648230602334,0,15.556349186104045,26,15.652475842498529,0,15.556349186104045,0,15.556349186104045,14,17.804493814764857,0,15.556349186104045,0,15.556349186104045,0,15.556349186104045,5,12.529964086141668,18,13.038404810405298,4,13.038404810405298,2,11.401754250991379,0,15.556349186104045,0,15.556349186104045,0,15.556349186104045,24,18.357559750685819]
[null,"50.0 percent or more",0,15.556349186104045,0,15.556349186104045,0,15.556349186104045,177,76.419892698171196,0,15.556349186104045,32,17.804493814764857,0,15.556349186104045,10,7.2111025509279782,75,27.658633371878661,22,18.110770276274835,0,15.556349186104045,0,15.556349186104045,42,23.600847442411894,0,15.556349186104045,0,15.556349186104045,9,10.770329614269007,20,14.866068747318506,0,15.556349186104045,50,30.479501308256342,0,15.556349186104045,0,15.556349186104045,27,12.529964086141668,0,15.556349186104045,98,46.324939287601879,0,15.556349186104045,0,15.556349186104045,25,12.083045973594572,0,15.556349186104045,43,25.96150997149434,0,15.556349186104045,0,15.556349186104045,60,30.610455730027933,6,12.083045973594572,0,15.556349186104045,0,15.556349186104045,13,9.8994949366116654,22,12.206555615733702,37,25.238858928247925,50,25.495097567963924,0,15.556349186104045,0,15.556349186104045,0,15.556349186104045,69,37.12142238654117]
[null,"Not computed",0,15.556349186104045,0,15.556349186104045,0,15.556349186104045,17,25.45584412271571,0,15.556349186104045,2,11.401754250991379,0,15.556349186104045,0,15.556349186104045,0,15.556349186104045,0,15.556349186104045,0,15.556349186104045,0,15.556349186104045,2,11.401754250991379,0,15.556349186104045,0,15.556349186104045,0,15.556349186104045,0,15.556349186104045,0,15.556349186104045,0,15.556349186104045,0,15.556349186104045,0,15.556349186104045,0,15.556349186104045,0,15.556349186104045,0,15.556349186104045,0,15.556349186104045,0,15.556349186104045,13,14.560219778561036,0,15.556349186104045,0,15.556349186104045,0,15.556349186104045,0,15.556349186104045,0,15.556349186104045,0,15.556349186104045,0,15.556349186104045,0,15.556349186104045,0,15.556349186104045,2,11.401754250991379,0,15.556349186104045,5,12.083045973594572,0,15.556349186104045,0,15.556349186104045,0,15.556349186104045,0,15.556349186104045]
[]
[]
[]
[]
[null,"Calculated MONTHLY OWNER COSTS AS A PERCENTAGE OF HOUSEHOLD INCOME IN THE PAST 12 MONTHS "]
[null,"Universe:  OWNER-OCCUPIED HOUSING UNITS"]
[null,"Data Set: 2015-2019 American Community Survey 5-Year Estimates"]
[null,null,"Atkinson and Gilmanton Grant",null,"Bean's Grant",null,"Bean's Purchase",null,"Berlin",null,"Cambridge",null,"Carroll",null,"Chandler's Purchase",null,"Clarksville",null,"Colebrook",null,"Columbia",null,"Crawford's Purchase",null,"Cutt's Grant",null,"Dalton",null,"Dix's Grant",null,"Dixville",null,"Dummer",null,"Errol",null,"Erving's Location",null,"Gorham",null,"Greens Grant",null,"Hadley's Purchase",null,"Jefferson",null,"Kilkenny",null,"Lancaster",null,"Low and Burbank's Grant",null,"Martin's Location",null,"Milan",null,"Millsfield",null,"Northumberland",null,"Odell",null,"Pinkham's Grant",null,"Pittsburg",null,"Randolph",null,"Sargent's Purchase",null,"Second College Grant",null,"Shelburne",null,"Stark",null,"Stewartstown",null,"Stratford",null,"Success",null,"Thompson and Meserves Purchase",null,"Wentworth's Location",null,"Whitefield"]
[null," ","Estimate","Margin of Error","Estimate","Margin of Error","Estimate","Margin of Error","Estimate","Margin of Error","Estimate","Margin of Error","Estimate","Margin of Error","Estimate","Margin of Error","Estimate","Margin of Error","Estimate","Margin of Error","Estimate","Margin of Error","Estimate","Margin of Error","Estimate","Margin of Error","Estimate","Margin of Error","Estimate","Margin of Error","Estimate","Margin of Error","Estimate","Margin of Error","Estimate","Margin of Error","Estimate","Margin of Error","Estimate","Margin of Error","Estimate","Margin of Error","Estimate","Margin of Error","Estimate","Margin of Error","Estimate","Margin of Error","Estimate","Margin of Error","Estimate","Margin of Error","Estimate","Margin of Error","Estimate","Margin of Error","Estimate","Margin of Error","Estimate","Margin of Error","Estimate","Margin of Error","Estimate","Margin of Error","Estimate","Margin of Error","Estimate","Margin of Error","Estimate","Margin of Error","Estimate","Margin of Error","Estimate","Margin of Error","Estimate","Margin of Error","Estimate","Margin of Error","Estimate","Margin of Error","Estimate","Margin of Error","Estimate","Margin of Error","Estimate","Margin of Error","Estimate","Margin of Error"]
[null,"Total:",{"$f":"C39","v":0},{"$f":"D39","v":11},0,11,0,11,2228,192,0,11,252,49,0,11,130,39,698,79,267,47,0,11,{"$f":"Y39","v":0},11,364,62,0,11,1,4,114,24,95,27,0,11,960,80,{"$f":"AO39","v":0},11,0,11,346,48,0,11,1019,108,0,11,0,11,499,49,4,6,660,86,0,11,0,11,336,50,161,36,0,11,0,11,163,29,198,39,370,54,206,41,0,11,0,11,14,9,643,78]
[null,"Less than 20% of HH Income",{"$f":"C40+C41+C42","v":0},{"$f":"SQRT((D40^2)+(D41^2)+(D42^2))","v":26.944387170614956},{"$f":"E40+E41+E42","v":0},{"$f":"SQRT((F40^2)+(F41^2)+(F42^2))","v":26.944387170614956},{"$f":"G40+G41+G42","v":0},{"$f":"SQRT((H40^2)+(H41^2)+(H42^2))","v":26.944387170614956},{"$f":"I40+I41+I42","v":1232},{"$f":"SQRT((J40^2)+(J41^2)+(J42^2))","v":201.79444987412316},{"$f":"K40+K41+K42","v":0},{"$f":"SQRT((L40^2)+(L41^2)+(L42^2))","v":26.944387170614956},{"$f":"M40+M41+M42","v":132},{"$f":"SQRT((N40^2)+(N41^2)+(N42^2))","v":35.958309192730404},{"$f":"O40+O41+O42","v":0},{"$f":"SQRT((P40^2)+(P41^2)+(P42^2))","v":26.944387170614956},{"$f":"Q40+Q41+Q42","v":74},{"$f":"SQRT((R40^2)+(R41^2)+(R42^2))","v":25.748786379167466},{"$f":"S40+S41+S42","v":334},{"$f":"SQRT((T40^2)+(T41^2)+(T42^2))","v":80.956778592036386},{"$f":"U40+U41+U42","v":132},{"$f":"SQRT((V40^2)+(V41^2)+(V42^2))","v":32.186953878862163},{"$f":"W40+W41+W42","v":0},{"$f":"SQRT((X40^2)+(X41^2)+(X42^2))","v":26.944387170614956},{"$f":"Y40+Y41+Y42","v":0},{"$f":"SQRT((Z40^2)+(Z41^2)+(Z42^2))","v":26.944387170614956},{"$f":"AA40+AA41+AA42","v":187},{"$f":"SQRT((AB40^2)+(AB41^2)+(AB42^2))","v":55.946402922797461},{"$f":"AC40+AC41+AC42","v":0},{"$f":"SQRT((AD40^2)+(AD41^2)+(AD42^2))","v":26.944387170614956},{"$f":"AE40+AE41+AE42","v":0},{"$f":"SQRT((AF40^2)+(AF41^2)+(AF42^2))","v":26.944387170614956},{"$f":"AG40+AG41+AG42","v":63},{"$f":"SQRT((AH40^2)+(AH41^2)+(AH42^2))","v":20.322401432901575},{"$f":"AI40+AI41+AI42","v":52},{"$f":"SQRT((AJ40^2)+(AJ41^2)+(AJ42^2))","v":22.583179581272432},{"$f":"AK40+AK41+AK42","v":0},{"$f":"SQRT((AL40^2)+(AL41^2)+(AL42^2))","v":26.944387170614956},{"$f":"AM40+AM41+AM42","v":548},{"$f":"SQRT((AN40^2)+(AN41^2)+(AN42^2))","v":124.28998350631477},{"$f":"AO40+AO41+AO42","v":0},{"$f":"SQRT((AP40^2)+(AP41^2)+(AP42^2))","v":26.944387170614956},{"$f":"AQ40+AQ41+AQ42","v":0},{"$f":"SQRT((AR40^2)+(AR41^2)+(AR42^2))","v":26.944387170614956},{"$f":"AS40+AS41+AS42","v":177},{"$f":"SQRT((AT40^2)+(AT41^2)+(AT42^2))","v":38.974350539810153},{"$f":"AU40+AU41+AU42","v":0},{"$f":"SQRT((AV40^2)+(AV41^2)+(AV42^2))","v":26.944387170614956},{"$f":"AW40+AW41+AW42","v":524},{"$f":"SQRT((AX40^2)+(AX41^2)+(AX42^2))","v":131.27833027579229},{"$f":"AY40+AY41+AY42","v":0},{"$f":"SQRT((AZ40^2)+(AZ41^2)+(AZ42^2))","v":26.944387170614956},{"$f":"BA40+BA41+BA42","v":0},{"$f":"SQRT((BB40^2)+(BB41^2)+(BB42^2))","v":26.944387170614956},{"$f":"BC40+BC41+BC42","v":310},{"$f":"SQRT((BD40^2)+(BD41^2)+(BD42^2))","v":56.311632901204348},{"$f":"BE40+BE41+BE42","v":4},{"$f":"SQRT((BF40^2)+(BF41^2)+(BF42^2))","v":25.317977802344327},{"$f":"BG40+BG41+BG42","v":407},{"$f":"SQRT((BH40^2)+(BH41^2)+(BH42^2))","v":88.124911347473144},{"$f":"BI40+BI41+BI42","v":0},{"$f":"SQRT((BJ40^2)+(BJ41^2)+(BJ42^2))","v":26.944387170614956},{"$f":"BK40+BK41+BK42","v":0},{"$f":"SQRT((BL40^2)+(BL41^2)+(BL42^2))","v":26.944387170614956},{"$f":"BM40+BM41+BM42","v":164},{"$f":"SQRT((BN40^2)+(BN41^2)+(BN42^2))","v":49.071376585541195},{"$f":"BO40+BO41+BO42","v":114},{"$f":"SQRT((BP40^2)+(BP41^2)+(BP42^2))","v":29.171904291629644},{"$f":"BQ40+BQ41+BQ42","v":0},{"$f":"SQRT((BR40^2)+(BR41^2)+(BR42^2))","v":26.944387170614956},{"$f":"BS40+BS41+BS42","v":0},{"$f":"SQRT((BT40^2)+(BT41^2)+(BT42^2))","v":26.944387170614956},{"$f":"BU40+BU41+BU42","v":101},{"$f":"SQRT((BV40^2)+(BV41^2)+(BV42^2))","v":29.189039038652847},{"$f":"BW40+BW41+BW42","v":89},{"$f":"SQRT((BX40^2)+(BX41^2)+(BX42^2))","v":22.693611435820433},{"$f":"BY40+BY41+BY42","v":219},{"$f":"SQRT((BZ40^2)+(BZ41^2)+(BZ42^2))","v":58.378078077305702},{"$f":"CA40+CA41+CA42","v":97},{"$f":"SQRT((CB40^2)+(CB41^2)+(CB42^2))","v":31.160872901765764},{"$f":"CC40+CC41+CC42","v":0},{"$f":"SQRT((CD40^2)+(CD41^2)+(CD42^2))","v":26.944387170614956},{"$f":"CE40+CE41+CE42","v":0},{"$f":"SQRT((CF40^2)+(CF41^2)+(CF42^2))","v":26.944387170614956},{"$f":"CG40+CG41+CG42","v":9},{"$f":"SQRT((CH40^2)+(CH41^2)+(CH42^2))","v":23.280893453645632},{"$f":"CI40+CI41+CI42","v":304},{"$f":"SQRT((CJ40^2)+(CJ41^2)+(CJ42^2))","v":73.382559235829333}]
[null," 20% to 29.9% of HH Income",{"$f":"C43+C44","v":0},{"$f":"SQRT((D43^2)+(D44^2))","v":22},{"$f":"E43+E44","v":0},{"$f":"SQRT((F43^2)+(F44^2))","v":22},{"$f":"G43+G44","v":0},{"$f":"SQRT((H43^2)+(H44^2))","v":22},{"$f":"I43+I44","v":510},{"$f":"SQRT((J43^2)+(J44^2))","v":128.895306353645},{"$f":"K43+K44","v":0},{"$f":"SQRT((L43^2)+(L44^2))","v":22},{"$f":"M43+M44","v":46},{"$f":"SQRT((N43^2)+(N44^2))","v":23.130067012440755},{"$f":"O43+O44","v":0},{"$f":"SQRT((P43^2)+(P44^2))","v":22},{"$f":"Q43+Q44","v":11},{"$f":"SQRT((R43^2)+(R44^2))","v":17.776388834631177},{"$f":"S43+S44","v":174},{"$f":"SQRT((T43^2)+(T44^2))","v":61.335144900782616},{"$f":"U43+U44","v":75},{"$f":"SQRT((V43^2)+(V44^2))","v":29.427877939124322},{"$f":"W43+W44","v":0},{"$f":"SQRT((X43^2)+(X44^2))","v":22},{"$f":"Y43+Y44","v":0},{"$f":"SQRT((Z43^2)+(Z44^2))","v":22},{"$f":"AA43+AA44","v":63},{"$f":"SQRT((AB43^2)+(AB44^2))","v":29.58039891549808},{"$f":"AC43+AC44","v":0},{"$f":"SQRT((AD43^2)+(AD44^2))","v":22},{"$f":"AE43+AE44","v":1},{"$f":"SQRT((AF43^2)+(AF44^2))","v":19.467922333931785},{"$f":"AG43+AG44","v":29},{"$f":"SQRT((AH43^2)+(AH44^2))","v":13.747727084867519},{"$f":"AI43+AI44","v":3},{"$f":"SQRT((AJ43^2)+(AJ44^2))","v":19.697715603592208},{"$f":"AK43+AK44","v":0},{"$f":"SQRT((AL43^2)+(AL44^2))","v":22},{"$f":"AM43+AM44","v":250},{"$f":"SQRT((AN43^2)+(AN44^2))","v":79},{"$f":"AO43+AO44","v":0},{"$f":"SQRT((AP43^2)+(AP44^2))","v":22},{"$f":"AQ43+AQ44","v":0},{"$f":"SQRT((AR43^2)+(AR44^2))","v":22},{"$f":"AS43+AS44","v":93},{"$f":"SQRT((AT43^2)+(AT44^2))","v":29.308701779505689},{"$f":"AU43+AU44","v":0},{"$f":"SQRT((AV43^2)+(AV44^2))","v":22},{"$f":"AW43+AW44","v":228},{"$f":"SQRT((AX43^2)+(AX44^2))","v":86.637174469161906},{"$f":"AY43+AY44","v":0},{"$f":"SQRT((AZ43^2)+(AZ44^2))","v":22},{"$f":"BA43+BA44","v":0},{"$f":"SQRT((BB43^2)+(BB44^2))","v":22},{"$f":"BC43+BC44","v":77},{"$f":"SQRT((BD43^2)+(BD44^2))","v":27.874719729532707},{"$f":"BE43+BE44","v":0},{"$f":"SQRT((BF43^2)+(BF44^2))","v":22},{"$f":"BG43+BG44","v":130},{"$f":"SQRT((BH43^2)+(BH44^2))","v":43.069710934716056},{"$f":"BI43+BI44","v":0},{"$f":"SQRT((BJ43^2)+(BJ44^2))","v":22},{"$f":"BK43+BK44","v":0},{"$f":"SQRT((BL43^2)+(BL44^2))","v":22},{"$f":"BM43+BM44","v":45},{"$f":"SQRT((BN43^2)+(BN44^2))","v":22.693611435820433},{"$f":"BO43+BO44","v":31},{"$f":"SQRT((BP43^2)+(BP44^2))","v":13.228756555322954},{"$f":"BQ43+BQ44","v":0},{"$f":"SQRT((BR43^2)+(BR44^2))","v":22},{"$f":"BS43+BS44","v":0},{"$f":"SQRT((BT43^2)+(BT44^2))","v":22},{"$f":"BU43+BU44","v":32},{"$f":"SQRT((BV43^2)+(BV44^2))","v":15.329709716755891},{"$f":"BW43+BW44","v":45},{"$f":"SQRT((BX43^2)+(BX44^2))","v":26.019223662515376},{"$f":"BY43+BY44","v":87},{"$f":"SQRT((BZ43^2)+(BZ44^2))","v":34.62657938636157},{"$f":"CA43+CA44","v":36},{"$f":"SQRT((CB43^2)+(CB44^2))","v":17.464249196572979},{"$f":"CC43+CC44","v":0},{"$f":"SQRT((CD43^2)+(CD44^2))","v":22},{"$f":"CE43+CE44","v":0},{"$f":"SQRT((CF43^2)+(CF44^2))","v":22},{"$f":"CG43+CG44","v":2},{"$f":"SQRT((CH43^2)+(CH44^2))","v":19.28730152198591},{"$f":"CI43+CI44","v":131},{"$f":"SQRT((CJ43^2)+(CJ44^2))","v":56.789083458002736}]
[null," Less Than 30% of HH Income",{"$f":"C40+C41+C42+C43+C44","v":0},{"$f":"SQRT((D40^2)+(D41^2)+(D42^2)+(D43^2)+(D44^2))","v":34.785054261852167},{"$f":"E40+E41+E42+E43+E44","v":0},{"$f":"SQRT((F40^2)+(F41^2)+(F42^2)+(F43^2)+(F44^2))","v":34.785054261852167},{"$f":"G40+G41+G42+G43+G44","v":0},{"$f":"SQRT((H40^2)+(H41^2)+(H42^2)+(H43^2)+(H44^2))","v":34.785054261852167},{"$f":"I40+I41+I42+I43+I44","v":1742},{"$f":"SQRT((J40^2)+(J41^2)+(J42^2)+(J43^2)+(J44^2))","v":239.44728021007046},{"$f":"K40+K41+K42+K43+K44","v":0},{"$f":"SQRT((L40^2)+(L41^2)+(L42^2)+(L43^2)+(L44^2))","v":34.785054261852167},{"$f":"M40+M41+M42+M43+M44","v":178},{"$f":"SQRT((N40^2)+(N41^2)+(N42^2)+(N43^2)+(N44^2))","v":42.755116652863897},{"$f":"O40+O41+O42+O43+O44","v":0},{"$f":"SQRT((P40^2)+(P41^2)+(P42^2)+(P43^2)+(P44^2))","v":34.785054261852167},{"$f":"Q40+Q41+Q42+Q43+Q44","v":85},{"$f":"SQRT((R40^2)+(R41^2)+(R42^2)+(R43^2)+(R44^2))","v":31.28897569432403},{"$f":"S40+S41+S42+S43+S44","v":508},{"$f":"SQRT((T40^2)+(T41^2)+(T42^2)+(T43^2)+(T44^2))","v":101.56771140475698},{"$f":"U40+U41+U42+U43+U44","v":207},{"$f":"SQRT((V40^2)+(V41^2)+(V42^2)+(V43^2)+(V44^2))","v":43.611924974713048},{"$f":"W40+W41+W42+W43+W44","v":0},{"$f":"SQRT((X40^2)+(X41^2)+(X42^2)+(X43^2)+(X44^2))","v":34.785054261852167},{"$f":"Y40+Y41+Y42+Y43+Y44","v":0},{"$f":"SQRT((Z40^2)+(Z41^2)+(Z42^2)+(Z43^2)+(Z44^2))","v":34.785054261852167},{"$f":"AA40+AA41+AA42+AA43+AA44","v":250},{"$f":"SQRT((AB40^2)+(AB41^2)+(AB42^2)+(AB43^2)+(AB44^2))","v":63.28506932918696},{"$f":"AC40+AC41+AC42+AC43+AC44","v":0},{"$f":"SQRT((AD40^2)+(AD41^2)+(AD42^2)+(AD43^2)+(AD44^2))","v":34.785054261852167},{"$f":"AE40+AE41+AE42+AE43+AE44","v":1},{"$f":"SQRT((AF40^2)+(AF41^2)+(AF42^2)+(AF43^2)+(AF44^2))","v":33.241540277189323},{"$f":"AG40+AG41+AG42+AG43+AG44","v":92},{"$f":"SQRT((AH40^2)+(AH41^2)+(AH42^2)+(AH43^2)+(AH44^2))","v":24.535688292770594},{"$f":"AI40+AI41+AI42+AI43+AI44","v":55},{"$f":"SQRT((AJ40^2)+(AJ41^2)+(AJ42^2)+(AJ43^2)+(AJ44^2))","v":29.966648127543397},{"$f":"AK40+AK41+AK42+AK43+AK44","v":0},{"$f":"SQRT((AL40^2)+(AL41^2)+(AL42^2)+(AL43^2)+(AL44^2))","v":34.785054261852167},{"$f":"AM40+AM41+AM42+AM43+AM44","v":798},{"$f":"SQRT((AN40^2)+(AN41^2)+(AN42^2)+(AN43^2)+(AN44^2))","v":147.27185746095552},{"$f":"AO40+AO41+AO42+AO43+AO44","v":0},{"$f":"SQRT((AP40^2)+(AP41^2)+(AP42^2)+(AP43^2)+(AP44^2))","v":34.785054261852167},{"$f":"AQ40+AQ41+AQ42+AQ43+AQ44","v":0},{"$f":"SQRT((AR40^2)+(AR41^2)+(AR42^2)+(AR43^2)+(AR44^2))","v":34.785054261852167},{"$f":"AS40+AS41+AS42+AS43+AS44","v":270},{"$f":"SQRT((AT40^2)+(AT41^2)+(AT42^2)+(AT43^2)+(AT44^2))","v":48.764741360946438},{"$f":"AU40+AU41+AU42+AU43+AU44","v":0},{"$f":"SQRT((AV40^2)+(AV41^2)+(AV42^2)+(AV43^2)+(AV44^2))","v":34.785054261852167},{"$f":"AW40+AW41+AW42+AW43+AW44","v":752},{"$f":"SQRT((AX40^2)+(AX41^2)+(AX42^2)+(AX43^2)+(AX44^2))","v":157.2895419282541},{"$f":"AY40+AY41+AY42+AY43+AY44","v":0},{"$f":"SQRT((AZ40^2)+(AZ41^2)+(AZ42^2)+(AZ43^2)+(AZ44^2))","v":34.785054261852167},{"$f":"BA40+BA41+BA42+BA43+BA44","v":0},{"$f":"SQRT((BB40^2)+(BB41^2)+(BB42^2)+(BB43^2)+(BB44^2))","v":34.785054261852167},{"$f":"BC40+BC41+BC42+BC43+BC44","v":387},{"$f":"SQRT((BD40^2)+(BD41^2)+(BD42^2)+(BD43^2)+(BD44^2))","v":62.833112289620033},{"$f":"BE40+BE41+BE42+BE43+BE44","v":4},{"$f":"SQRT((BF40^2)+(BF41^2)+(BF42^2)+(BF43^2)+(BF44^2))","v":33.541019662496844},{"$f":"BG40+BG41+BG42+BG43+BG44","v":537},{"$f":"SQRT((BH40^2)+(BH41^2)+(BH42^2)+(BH43^2)+(BH44^2))","v":98.086696345630884},{"$f":"BI40+BI41+BI42+BI43+BI44","v":0},{"$f":"SQRT((BJ40^2)+(BJ41^2)+(BJ42^2)+(BJ43^2)+(BJ44^2))","v":34.785054261852167},{"$f":"BK40+BK41+BK42+BK43+BK44","v":0},{"$f":"SQRT((BL40^2)+(BL41^2)+(BL42^2)+(BL43^2)+(BL44^2))","v":34.785054261852167},{"$f":"BM40+BM41+BM42+BM43+BM44","v":209},{"$f":"SQRT((BN40^2)+(BN41^2)+(BN42^2)+(BN43^2)+(BN44^2))","v":54.064775963653084},{"$f":"BO40+BO41+BO42+BO43+BO44","v":145},{"$f":"SQRT((BP40^2)+(BP41^2)+(BP42^2)+(BP43^2)+(BP44^2))","v":32.03123475609393},{"$f":"BQ40+BQ41+BQ42+BQ43+BQ44","v":0},{"$f":"SQRT((BR40^2)+(BR41^2)+(BR42^2)+(BR43^2)+(BR44^2))","v":34.785054261852167},{"$f":"BS40+BS41+BS42+BS43+BS44","v":0},{"$f":"SQRT((BT40^2)+(BT41^2)+(BT42^2)+(BT43^2)+(BT44^2))","v":34.785054261852167},{"$f":"BU40+BU41+BU42+BU43+BU44","v":133},{"$f":"SQRT((BV40^2)+(BV41^2)+(BV42^2)+(BV43^2)+(BV44^2))","v":32.969683043669072},{"$f":"BW40+BW41+BW42+BW43+BW44","v":134},{"$f":"SQRT((BX40^2)+(BX41^2)+(BX42^2)+(BX43^2)+(BX44^2))","v":34.525353003264136},{"$f":"BY40+BY41+BY42+BY43+BY44","v":306},{"$f":"SQRT((BZ40^2)+(BZ41^2)+(BZ42^2)+(BZ43^2)+(BZ44^2))","v":67.874884898613274},{"$f":"CA40+CA41+CA42+CA43+CA44","v":133},{"$f":"SQRT((CB40^2)+(CB41^2)+(CB42^2)+(CB43^2)+(CB44^2))","v":35.7211421989835},{"$f":"CC40+CC41+CC42+CC43+CC44","v":0},{"$f":"SQRT((CD40^2)+(CD41^2)+(CD42^2)+(CD43^2)+(CD44^2))","v":34.785054261852167},{"$f":"CE40+CE41+CE42+CE43+CE44","v":0},{"$f":"SQRT((CF40^2)+(CF41^2)+(CF42^2)+(CF43^2)+(CF44^2))","v":34.785054261852167},{"$f":"CG40+CG41+CG42+CG43+CG44","v":11},{"$f":"SQRT((CH40^2)+(CH41^2)+(CH42^2)+(CH43^2)+(CH44^2))","v":30.232432915661949},{"$f":"CI40+CI41+CI42+CI43+CI44","v":435},{"$f":"SQRT((CJ40^2)+(CJ41^2)+(CJ42^2)+(CJ43^2)+(CJ44^2))","v":92.790085677296361}]
[null," 30% or More of HH Income",{"$f":"C45+C46+C47+C48","v":0},{"$f":"SQRT((D45^2)+(D46^2)+(D47^2)+(D48^2))","v":31.11269837220809},{"$f":"E45+E46+E47+E48","v":0},{"$f":"SQRT((F45^2)+(F46^2)+(F47^2)+(F48^2))","v":31.11269837220809},{"$f":"G45+G46+G47+G48","v":0},{"$f":"SQRT((H45^2)+(H46^2)+(H47^2)+(H48^2))","v":31.11269837220809},{"$f":"I45+I46+I47+I48","v":469},{"$f":"SQRT((J45^2)+(J46^2)+(J47^2)+(J48^2))","v":115.46861045323097},{"$f":"K45+K46+K47+K48","v":0},{"$f":"SQRT((L45^2)+(L46^2)+(L47^2)+(L48^2))","v":31.11269837220809},{"$f":"M45+M46+M47+M48","v":72},{"$f":"SQRT((N45^2)+(N46^2)+(N47^2)+(N48^2))","v":28.089143810376278},{"$f":"O45+O46+O47+O48","v":0},{"$f":"SQRT((P45^2)+(P46^2)+(P47^2)+(P48^2))","v":31.11269837220809},{"$f":"Q45+Q46+Q47+Q48","v":45},{"$f":"SQRT((R45^2)+(R46^2)+(R47^2)+(R48^2))","v":23.664319132398465},{"$f":"S45+S46+S47+S48","v":190},{"$f":"SQRT((T45^2)+(T46^2)+(T47^2)+(T48^2))","v":58.523499553598128},{"$f":"U45+U46+U47+U48","v":60},{"$f":"SQRT((V45^2)+(V46^2)+(V47^2)+(V48^2))","v":26.305892875931811},{"$f":"W45+W46+W47+W48","v":0},{"$f":"SQRT((X45^2)+(X46^2)+(X47^2)+(X48^2))","v":31.11269837220809},{"$f":"Y45+Y46+Y47+Y48","v":0},{"$f":"SQRT((Z45^2)+(Z46^2)+(Z47^2)+(Z48^2))","v":31.11269837220809},{"$f":"AA45+AA46+AA47+AA48","v":112},{"$f":"SQRT((AB45^2)+(AB46^2)+(AB47^2)+(AB48^2))","v":43.058100283221968},{"$f":"AC45+AC46+AC47+AC48","v":0},{"$f":"SQRT((AD45^2)+(AD46^2)+(AD47^2)+(AD48^2))","v":31.11269837220809},{"$f":"AE45+AE46+AE47+AE48","v":0},{"$f":"SQRT((AF45^2)+(AF46^2)+(AF47^2)+(AF48^2))","v":31.11269837220809},{"$f":"AG45+AG46+AG47+AG48","v":22},{"$f":"SQRT((AH45^2)+(AH46^2)+(AH47^2)+(AH48^2))","v":18.788294228055936},{"$f":"AI45+AI46+AI47+AI48","v":40},{"$f":"SQRT((AJ45^2)+(AJ46^2)+(AJ47^2)+(AJ48^2))","v":26.438608132804571},{"$f":"AK45+AK46+AK47+AK48","v":0},{"$f":"SQRT((AL45^2)+(AL46^2)+(AL47^2)+(AL48^2))","v":31.11269837220809},{"$f":"AM45+AM46+AM47+AM48","v":162},{"$f":"SQRT((AN45^2)+(AN46^2)+(AN47^2)+(AN48^2))","v":61.514225996918796},{"$f":"AO45+AO46+AO47+AO48","v":0},{"$f":"SQRT((AP45^2)+(AP46^2)+(AP47^2)+(AP48^2))","v":31.11269837220809},{"$f":"AQ45+AQ46+AQ47+AQ48","v":0},{"$f":"SQRT((AR45^2)+(AR46^2)+(AR47^2)+(AR48^2))","v":31.11269837220809},{"$f":"AS45+AS46+AS47+AS48","v":76},{"$f":"SQRT((AT45^2)+(AT46^2)+(AT47^2)+(AT48^2))","v":34.899856733230294},{"$f":"AU45+AU46+AU47+AU48","v":0},{"$f":"SQRT((AV45^2)+(AV46^2)+(AV47^2)+(AV48^2))","v":31.11269837220809},{"$f":"AW45+AW46+AW47+AW48","v":267},{"$f":"SQRT((AX45^2)+(AX46^2)+(AX47^2)+(AX48^2))","v":87.31551981177229},{"$f":"AY45+AY46+AY47+AY48","v":0},{"$f":"SQRT((AZ45^2)+(AZ46^2)+(AZ47^2)+(AZ48^2))","v":31.11269837220809},{"$f":"BA45+BA46+BA47+BA48","v":0},{"$f":"SQRT((BB45^2)+(BB46^2)+(BB47^2)+(BB48^2))","v":31.11269837220809},{"$f":"BC45+BC46+BC47+BC48","v":99},{"$f":"SQRT((BD45^2)+(BD46^2)+(BD47^2)+(BD48^2))","v":30.708305065568176},{"$f":"BE45+BE46+BE47+BE48","v":0},{"$f":"SQRT((BF45^2)+(BF46^2)+(BF47^2)+(BF48^2))","v":31.11269837220809},{"$f":"BG45+BG46+BG47+BG48","v":123},{"$f":"SQRT((BH45^2)+(BH46^2)+(BH47^2)+(BH48^2))","v":51.623637996561229},{"$f":"BI45+BI46+BI47+BI48","v":0},{"$f":"SQRT((BJ45^2)+(BJ46^2)+(BJ47^2)+(BJ48^2))","v":31.11269837220809},{"$f":"BK45+BK46+BK47+BK48","v":0},{"$f":"SQRT((BL45^2)+(BL46^2)+(BL47^2)+(BL48^2))","v":31.11269837220809},{"$f":"BM45+BM46+BM47+BM48","v":127},{"$f":"SQRT((BN45^2)+(BN46^2)+(BN47^2)+(BN48^2))","v":46.032597145935618},{"$f":"BO45+BO46+BO47+BO48","v":16},{"$f":"SQRT((BP45^2)+(BP46^2)+(BP47^2)+(BP48^2))","v":26.28687885618983},{"$f":"BQ45+BQ46+BQ47+BQ48","v":0},{"$f":"SQRT((BR45^2)+(BR46^2)+(BR47^2)+(BR48^2))","v":31.11269837220809},{"$f":"BS45+BS46+BS47+BS48","v":0},{"$f":"SQRT((BT45^2)+(BT46^2)+(BT47^2)+(BT48^2))","v":31.11269837220809},{"$f":"BU45+BU46+BU47+BU48","v":30},{"$f":"SQRT((BV45^2)+(BV46^2)+(BV47^2)+(BV48^2))","v":25.159491250818249},{"$f":"BW45+BW46+BW47+BW48","v":62},{"$f":"SQRT((BX45^2)+(BX46^2)+(BX47^2)+(BX48^2))","v":25.337718918639855},{"$f":"BY45+BY46+BY47+BY48","v":64},{"$f":"SQRT((BZ45^2)+(BZ46^2)+(BZ47^2)+(BZ48^2))","v":36.578682316343766},{"$f":"CA45+CA46+CA47+CA48","v":68},{"$f":"SQRT((CB45^2)+(CB46^2)+(CB47^2)+(CB48^2))","v":34.02939905434711},{"$f":"CC45+CC46+CC47+CC48","v":0},{"$f":"SQRT((CD45^2)+(CD46^2)+(CD47^2)+(CD48^2))","v":31.11269837220809},{"$f":"CE45+CE46+CE47+CE48","v":0},{"$f":"SQRT((CF45^2)+(CF46^2)+(CF47^2)+(CF48^2))","v":31.11269837220809},{"$f":"CG45+CG46+CG47+CG48","v":3},{"$f":"SQRT((CH45^2)+(CH46^2)+(CH47^2)+(CH48^2))","v":29.376861643136763},{"$f":"CI45+CI46+CI47+CI48","v":208},{"$f":"SQRT((CJ45^2)+(CJ46^2)+(CJ47^2)+(CJ48^2))","v":62.920584866957491}]
[null," 30% to 34.9% of HH Income",{"$f":"C45","v":0},{"$f":"D45","v":15.556349186104045},{"$f":"E45","v":0},15.556349186104045,0,15.556349186104045,99,50.606323715519977,0,15.556349186104045,10,7.6157731058639087,0,15.556349186104045,24,18.248287590894659,43,28.792360097775937,11,13,0,15.556349186104045,{"$f":"Y45","v":0},15.556349186104045,11,10,0,15.556349186104045,0,15.556349186104045,5,5.8309518948453007,12,13.341664064126334,0,15.556349186104045,56,39.204591567825318,{"$f":"AO45","v":0},15.556349186104045,0,15.556349186104045,15,16.278820596099706,0,15.556349186104045,64,39.623225512317902,0,15.556349186104045,0,15.556349186104045,30,21.95449840010015,0,15.556349186104045,42,38.483762809787713,0,15.556349186104045,0,15.556349186104045,21,18.973665961010276,0,15.556349186104045,0,15.556349186104045,0,15.556349186104045,3,12.529964086141668,20,13.892443989449804,12,18.601075237738275,7,12.529964086141668,0,15.556349186104045,0,15.556349186104045,3,11.704699910719626,81,41.880783182743848]
[null," Less Than 35% of HH Income",{"$f":"C40+C41+C42+C43+C44+C45","v":0},{"$f":"SQRT((D40^2)+(D41^2)+(D42^2)+(D43^2)+(D44^2)+(D45^2))","v":38.105117766515299},{"$f":"E40+E41+E42+E43+E44+E45","v":0},{"$f":"SQRT((F40^2)+(F41^2)+(F42^2)+(F43^2)+(F44^2)+(F45^2))","v":38.105117766515299},{"$f":"G40+G41+G42+G43+G44+G45","v":0},{"$f":"SQRT((H40^2)+(H41^2)+(H42^2)+(H43^2)+(H44^2)+(H45^2))","v":38.105117766515299},{"$f":"I40+I41+I42+I43+I44+I45","v":1841},{"$f":"SQRT((J40^2)+(J41^2)+(J42^2)+(J43^2)+(J44^2)+(J45^2))","v":244.73659309551564},{"$f":"K40+K41+K42+K43+K44+K45","v":0},{"$f":"SQRT((L40^2)+(L41^2)+(L42^2)+(L43^2)+(L44^2)+(L45^2))","v":38.105117766515299},{"$f":"M40+M41+M42+M43+M44+M45","v":188},{"$f":"SQRT((N40^2)+(N41^2)+(N42^2)+(N43^2)+(N44^2)+(N45^2))","v":43.428101501216929},{"$f":"O40+O41+O42+O43+O44+O45","v":0},{"$f":"SQRT((P40^2)+(P41^2)+(P42^2)+(P43^2)+(P44^2)+(P45^2))","v":38.105117766515299},{"$f":"Q40+Q41+Q42+Q43+Q44+Q45","v":109},{"$f":"SQRT((R40^2)+(R41^2)+(R42^2)+(R43^2)+(R44^2)+(R45^2))","v":36.221540552549669},{"$f":"S40+S41+S42+S43+S44+S45","v":551},{"$f":"SQRT((T40^2)+(T41^2)+(T42^2)+(T43^2)+(T44^2)+(T45^2))","v":105.56988206870366},{"$f":"U40+U41+U42+U43+U44+U45","v":218},{"$f":"SQRT((V40^2)+(V41^2)+(V42^2)+(V43^2)+(V44^2)+(V45^2))","v":45.508241011931013},{"$f":"W40+W41+W42+W43+W44+W45","v":0},{"$f":"SQRT((X40^2)+(X41^2)+(X42^2)+(X43^2)+(X44^2)+(X45^2))","v":38.105117766515299},{"$f":"Y40+Y41+Y42+Y43+Y44+Y45","v":0},{"$f":"SQRT((Z40^2)+(Z41^2)+(Z42^2)+(Z43^2)+(Z44^2)+(Z45^2))","v":38.105117766515299},{"$f":"AA40+AA41+AA42+AA43+AA44+AA45","v":261},{"$f":"SQRT((AB40^2)+(AB41^2)+(AB42^2)+(AB43^2)+(AB44^2)+(AB45^2))","v":64.070273918565391},{"$f":"AC40+AC41+AC42+AC43+AC44+AC45","v":0},{"$f":"SQRT((AD40^2)+(AD41^2)+(AD42^2)+(AD43^2)+(AD44^2)+(AD45^2))","v":38.105117766515299},{"$f":"AE40+AE41+AE42+AE43+AE44+AE45","v":1},{"$f":"SQRT((AF40^2)+(AF41^2)+(AF42^2)+(AF43^2)+(AF44^2)+(AF45^2))","v":36.701498607005135},{"$f":"AG40+AG41+AG42+AG43+AG44+AG45","v":97},{"$f":"SQRT((AH40^2)+(AH41^2)+(AH42^2)+(AH43^2)+(AH44^2)+(AH45^2))","v":25.219040425836983},{"$f":"AI40+AI41+AI42+AI43+AI44+AI45","v":67},{"$f":"SQRT((AJ40^2)+(AJ41^2)+(AJ42^2)+(AJ43^2)+(AJ44^2)+(AJ45^2))","v":32.802438933713454},{"$f":"AK40+AK41+AK42+AK43+AK44+AK45","v":0},{"$f":"SQRT((AL40^2)+(AL41^2)+(AL42^2)+(AL43^2)+(AL44^2)+(AL45^2))","v":38.105117766515299},{"$f":"AM40+AM41+AM42+AM43+AM44+AM45","v":854},{"$f":"SQRT((AN40^2)+(AN41^2)+(AN42^2)+(AN43^2)+(AN44^2)+(AN45^2))","v":152.40078739954069},{"$f":"AO40+AO41+AO42+AO43+AO44+AO45","v":0},{"$f":"SQRT((AP40^2)+(AP41^2)+(AP42^2)+(AP43^2)+(AP44^2)+(AP45^2))","v":38.105117766515299},{"$f":"AQ40+AQ41+AQ42+AQ43+AQ44+AQ45","v":0},{"$f":"SQRT((AR40^2)+(AR41^2)+(AR42^2)+(AR43^2)+(AR44^2)+(AR45^2))","v":38.105117766515299},{"$f":"AS40+AS41+AS42+AS43+AS44+AS45","v":285},{"$f":"SQRT((AT40^2)+(AT41^2)+(AT42^2)+(AT43^2)+(AT44^2)+(AT45^2))","v":51.410115736107812},{"$f":"AU40+AU41+AU42+AU43+AU44+AU45","v":0},{"$f":"SQRT((AV40^2)+(AV41^2)+(AV42^2)+(AV43^2)+(AV44^2)+(AV45^2))","v":38.105117766515299},{"$f":"AW40+AW41+AW42+AW43+AW44+AW45","v":816},{"$f":"SQRT((AX40^2)+(AX41^2)+(AX42^2)+(AX43^2)+(AX44^2)+(AX45^2))","v":162.20357579289058},{"$f":"AY40+AY41+AY42+AY43+AY44+AY45","v":0},{"$f":"SQRT((AZ40^2)+(AZ41^2)+(AZ42^2)+(AZ43^2)+(AZ44^2)+(AZ45^2))","v":38.105117766515299},{"$f":"BA40+BA41+BA42+BA43+BA44+BA45","v":0},{"$f":"SQRT((BB40^2)+(BB41^2)+(BB42^2)+(BB43^2)+(BB44^2)+(BB45^2))","v":38.105117766515299},{"$f":"BC40+BC41+BC42+BC43+BC44+BC45","v":417},{"$f":"SQRT((BD40^2)+(BD41^2)+(BD42^2)+(BD43^2)+(BD44^2)+(BD45^2))","v":66.558245169174953},{"$f":"BE40+BE41+BE42+BE43+BE44+BE45","v":4},{"$f":"SQRT((BF40^2)+(BF41^2)+(BF42^2)+(BF43^2)+(BF44^2)+(BF45^2))","v":36.972963094672302},{"$f":"BG40+BG41+BG42+BG43+BG44+BG45","v":579},{"$f":"SQRT((BH40^2)+(BH41^2)+(BH42^2)+(BH43^2)+(BH44^2)+(BH45^2))","v":105.36602868097478},{"$f":"BI40+BI41+BI42+BI43+BI44+BI45","v":0},{"$f":"SQRT((BJ40^2)+(BJ41^2)+(BJ42^2)+(BJ43^2)+(BJ44^2)+(BJ45^2))","v":38.105117766515299},{"$f":"BK40+BK41+BK42+BK43+BK44+BK45","v":0},{"$f":"SQRT((BL40^2)+(BL41^2)+(BL42^2)+(BL43^2)+(BL44^2)+(BL45^2))","v":38.105117766515299},{"$f":"BM40+BM41+BM42+BM43+BM44+BM45","v":230},{"$f":"SQRT((BN40^2)+(BN41^2)+(BN42^2)+(BN43^2)+(BN44^2)+(BN45^2))","v":57.297469403107151},{"$f":"BO40+BO41+BO42+BO43+BO44+BO45","v":145},{"$f":"SQRT((BP40^2)+(BP41^2)+(BP42^2)+(BP43^2)+(BP44^2)+(BP45^2))","v":35.608987629529715},{"$f":"BQ40+BQ41+BQ42+BQ43+BQ44+BQ45","v":0},{"$f":"SQRT((BR40^2)+(BR41^2)+(BR42^2)+(BR43^2)+(BR44^2)+(BR45^2))","v":38.105117766515299},{"$f":"BS40+BS41+BS42+BS43+BS44+BS45","v":0},{"$f":"SQRT((BT40^2)+(BT41^2)+(BT42^2)+(BT43^2)+(BT44^2)+(BT45^2))","v":38.105117766515299},{"$f":"BU40+BU41+BU42+BU43+BU44+BU45","v":136},{"$f":"SQRT((BV40^2)+(BV41^2)+(BV42^2)+(BV43^2)+(BV44^2)+(BV45^2))","v":35.270384177096794},{"$f":"BW40+BW41+BW42+BW43+BW44+BW45","v":154},{"$f":"SQRT((BX40^2)+(BX41^2)+(BX42^2)+(BX43^2)+(BX44^2)+(BX45^2))","v":37.215588131856791},{"$f":"BY40+BY41+BY42+BY43+BY44+BY45","v":318},{"$f":"SQRT((BZ40^2)+(BZ41^2)+(BZ42^2)+(BZ43^2)+(BZ44^2)+(BZ45^2))","v":70.377553239651633},{"$f":"CA40+CA41+CA42+CA43+CA44+CA45","v":140},{"$f":"SQRT((CB40^2)+(CB41^2)+(CB42^2)+(CB43^2)+(CB44^2)+(CB45^2))","v":37.8549864614954},{"$f":"CC40+CC41+CC42+CC43+CC44+CC45","v":0},{"$f":"SQRT((CD40^2)+(CD41^2)+(CD42^2)+(CD43^2)+(CD44^2)+(CD45^2))","v":38.105117766515299},{"$f":"CE40+CE41+CE42+CE43+CE44+CE45","v":0},{"$f":"SQRT((CF40^2)+(CF41^2)+(CF42^2)+(CF43^2)+(CF44^2)+(CF45^2))","v":38.105117766515299},{"$f":"CG40+CG41+CG42+CG43+CG44+CG45","v":14},{"$f":"SQRT((CH40^2)+(CH41^2)+(CH42^2)+(CH43^2)+(CH44^2)+(CH45^2))","v":32.419130154894653},{"$f":"CI40+CI41+CI42+CI43+CI44+CI45","v":516},{"$f":"SQRT((CJ40^2)+(CJ41^2)+(CJ42^2)+(CJ43^2)+(CJ44^2)+(CJ45^2))","v":101.8037327409953}]
[null," 35% or More of HH Income",{"$f":"C46+C47+C48","v":0},{"$f":"SQRT((D46^2)+(D47^2)+(D48^2))","v":26.944387170614956},{"$f":"E46+E47+E48","v":0},{"$f":"SQRT((F46^2)+(F47^2)+(F48^2))","v":26.944387170614956},{"$f":"G46+G47+G48","v":0},{"$f":"SQRT((H46^2)+(H47^2)+(H48^2))","v":26.944387170614956},{"$f":"I46+I47+I48","v":370},{"$f":"SQRT((J46^2)+(J47^2)+(J48^2))","v":103.78824596263297},{"$f":"K46+K47+K48","v":0},{"$f":"SQRT((L46^2)+(L47^2)+(L48^2))","v":26.944387170614956},{"$f":"M46+M47+M48","v":62},{"$f":"SQRT((N46^2)+(N47^2)+(N48^2))","v":27.03701166919155},{"$f":"O46+O47+O48","v":0},{"$f":"SQRT((P46^2)+(P47^2)+(P48^2))","v":26.944387170614956},{"$f":"Q46+Q47+Q48","v":21},{"$f":"SQRT((R46^2)+(R47^2)+(R48^2))","v":15.066519173319364},{"$f":"S46+S47+S48","v":147},{"$f":"SQRT((T46^2)+(T47^2)+(T48^2))","v":50.950956811427986},{"$f":"U46+U47+U48","v":49},{"$f":"SQRT((V46^2)+(V47^2)+(V48^2))","v":22.869193252058544},{"$f":"W46+W47+W48","v":0},{"$f":"SQRT((X46^2)+(X47^2)+(X48^2))","v":26.944387170614956},{"$f":"Y46+Y47+Y48","v":0},{"$f":"SQRT((Z46^2)+(Z47^2)+(Z48^2))","v":26.944387170614956},{"$f":"AA46+AA47+AA48","v":101},{"$f":"SQRT((AB46^2)+(AB47^2)+(AB48^2))","v":41.880783182743848},{"$f":"AC46+AC47+AC48","v":0},{"$f":"SQRT((AD46^2)+(AD47^2)+(AD48^2))","v":26.944387170614956},{"$f":"AE46+AE47+AE48","v":0},{"$f":"SQRT((AF46^2)+(AF47^2)+(AF48^2))","v":26.944387170614956},{"$f":"AG46+AG47+AG48","v":17},{"$f":"SQRT((AH46^2)+(AH47^2)+(AH48^2))","v":17.86057109949175},{"$f":"AI46+AI47+AI48","v":28},{"$f":"SQRT((AJ46^2)+(AJ47^2)+(AJ48^2))","v":22.825424421026653},{"$f":"AK46+AK47+AK48","v":0},{"$f":"SQRT((AL46^2)+(AL47^2)+(AL48^2))","v":26.944387170614956},{"$f":"AM46+AM47+AM48","v":106},{"$f":"SQRT((AN46^2)+(AN47^2)+(AN48^2))","v":47.402531577965334},{"$f":"AO46+AO47+AO48","v":0},{"$f":"SQRT((AP46^2)+(AP47^2)+(AP48^2))","v":26.944387170614956},{"$f":"AQ46+AQ47+AQ48","v":0},{"$f":"SQRT((AR46^2)+(AR47^2)+(AR48^2))","v":26.944387170614956},{"$f":"AS46+AS47+AS48","v":61},{"$f":"SQRT((AT46^2)+(AT47^2)+(AT48^2))","v":30.870698080866262},{"$f":"AU46+AU47+AU48","v":0},{"$f":"SQRT((AV46^2)+(AV47^2)+(AV48^2))","v":26.944387170614956},{"$f":"AW46+AW47+AW48","v":203},{"$f":"SQRT((AX46^2)+(AX47^2)+(AX48^2))","v":77.80745465570763},{"$f":"AY46+AY47+AY48","v":0},{"$f":"SQRT((AZ46^2)+(AZ47^2)+(AZ48^2))","v":26.944387170614956},{"$f":"BA46+BA47+BA48","v":0},{"$f":"SQRT((BB46^2)+(BB47^2)+(BB48^2))","v":26.944387170614956},{"$f":"BC46+BC47+BC48","v":69},{"$f":"SQRT((BD46^2)+(BD47^2)+(BD48^2))","v":21.470910553583888},{"$f":"BE46+BE47+BE48","v":0},{"$f":"SQRT((BF46^2)+(BF47^2)+(BF48^2))","v":26.944387170614956},{"$f":"BG46+BG47+BG48","v":81},{"$f":"SQRT((BH46^2)+(BH47^2)+(BH48^2))","v":34.409301068170507},{"$f":"BI46+BI47+BI48","v":0},{"$f":"SQRT((BJ46^2)+(BJ47^2)+(BJ48^2))","v":26.944387170614956},{"$f":"BK46+BK47+BK48","v":0},{"$f":"SQRT((BL46^2)+(BL47^2)+(BL48^2))","v":26.944387170614956},{"$f":"BM46+BM47+BM48","v":106},{"$f":"SQRT((BN46^2)+(BN47^2)+(BN48^2))","v":41.940433951021539},{"$f":"BO46+BO47+BO48","v":16},{"$f":"SQRT((BP46^2)+(BP47^2)+(BP48^2))","v":21.189620100417088},{"$f":"BQ46+BQ47+BQ48","v":0},{"$f":"SQRT((BR46^2)+(BR47^2)+(BR48^2))","v":26.944387170614956},{"$f":"BS46+BS47+BS48","v":0},{"$f":"SQRT((BT46^2)+(BT47^2)+(BT48^2))","v":26.944387170614956},{"$f":"BU46+BU47+BU48","v":27},{"$f":"SQRT((BV46^2)+(BV47^2)+(BV48^2))","v":21.817424229271428},{"$f":"BW46+BW47+BW48","v":42},{"$f":"SQRT((BX46^2)+(BX47^2)+(BX48^2))","v":21.189620100417091},{"$f":"BY46+BY47+BY48","v":52},{"$f":"SQRT((BZ46^2)+(BZ47^2)+(BZ48^2))","v":31.496031496047245},{"$f":"CA46+CA47+CA48","v":61},{"$f":"SQRT((CB46^2)+(CB47^2)+(CB48^2))","v":31.63858403911275},{"$f":"CC46+CC47+CC48","v":0},{"$f":"SQRT((CD46^2)+(CD47^2)+(CD48^2))","v":26.944387170614956},{"$f":"CE46+CE47+CE48","v":0},{"$f":"SQRT((CF46^2)+(CF47^2)+(CF48^2))","v":26.944387170614956},{"$f":"CG46+CG47+CG48","v":0},{"$f":"SQRT((CH46^2)+(CH47^2)+(CH48^2))","v":26.944387170614956},{"$f":"CI46+CI47+CI48","v":127},{"$f":"SQRT((CJ46^2)+(CJ47^2)+(CJ48^2))","v":46.957427527495582}]
[null," 50% or More of HH Income",{"$f":"C48","v":0},{"$f":"D48","v":15.556349186104045},{"$f":"E48","v":0},15.556349186104045,0,15.556349186104045,177,76.419892698171196,0,15.556349186104045,32,17.804493814764857,0,15.556349186104045,10,7.2111025509279782,75,27.658633371878661,22,18.110770276274835,0,15.556349186104045,{"$f":"Y48","v":0},15.556349186104045,42,23.600847442411894,0,15.556349186104045,0,15.556349186104045,9,10.770329614269007,20,14.866068747318506,0,15.556349186104045,50,30.479501308256342,{"$f":"AO48","v":0},15.556349186104045,0,15.556349186104045,27,12.529964086141668,0,15.556349186104045,98,46.324939287601879,0,15.556349186104045,0,15.556349186104045,25,12.083045973594572,0,15.556349186104045,43,25.96150997149434,0,15.556349186104045,0,15.556349186104045,60,30.610455730027933,6,12.083045973594572,0,15.556349186104045,0,15.556349186104045,13,9.8994949366116654,22,12.206555615733702,37,25.238858928247925,50,25.495097567963924,0,15.556349186104045,0,15.556349186104045,0,15.556349186104045,69,37.12142238654117]
[null,"Not computed",{"$f":"C49","v":0},{"$f":"D49","v":15.556349186104045},{"$f":"E49","v":0},15.556349186104045,0,15.556349186104045,17,25.45584412271571,0,15.556349186104045,2,11.401754250991379,0,15.556349186104045,0,15.556349186104045,0,15.556349186104045,0,15.556349186104045,0,15.556349186104045,{"$f":"Y49","v":0},15.556349186104045,2,11.401754250991379,0,15.556349186104045,0,15.556349186104045,0,15.556349186104045,0,15.556349186104045,0,15.556349186104045,0,15.556349186104045,{"$f":"AO49","v":0},15.556349186104045,0,15.556349186104045,0,15.556349186104045,0,15.556349186104045,0,15.556349186104045,0,15.556349186104045,0,15.556349186104045,13,14.560219778561036,0,15.556349186104045,0,15.556349186104045,0,15.556349186104045,0,15.556349186104045,0,15.556349186104045,0,15.556349186104045,0,15.556349186104045,0,15.556349186104045,0,15.556349186104045,2,11.401754250991379,0,15.556349186104045,5,12.083045973594572,0,15.556349186104045,0,15.556349186104045,0,15.556349186104045,0,15.556349186104045]
[]
[]
[]
[]
[]
[]
[]
[]
[]
[]
[]
[]
[]
[]
[]
[]
[]
[]
[]
[]
[]
[]
[]
[]
[]
[]
[]
[]
[]
[]
[]
[]
[]
[]
[]
[]
[]
[]
[]
[]
[]
[]
[]
[]
[]
[]
[]
[]
[]
[]
[]
[]
[]
[]
[]
[]
[]
[]
[]
[]
[]
[]
[]
[]
[]
[null,"Calculated B25091. MORTGAGE STATUS BY SELECTED MONTHLY OWNER COSTS AS A PERCENTAGE OF HOUSEHOLD INCOME IN THE PAST 12 MONTHS "]
[null,"Universe:  OWNER-OCCUPIED HOUSING UNITS"]
[null,"Data Set: 2010-2014 American Community Survey 5-Year Estimates"]
[]
[null,null,"Atkinson and Gilmanton Grant",null,"Bean's Grant",null,"Bean's Purchase",null,"Berlin",null,"Cambridge",null,"Carroll",null,"Chandler's Purchase",null,"Clarksville",null,"Colebrook",null,"Columbia",null,"Crawford's Purchase",null,"Cutt's Grant",null,"Dalton",null,"Dix's Grant",null,"Dixville",null,"Dummer",null,"Errol",null,"Erving's Location",null,"Gorham",null,"Greens Grant",null,"Hadley's Purchase",null,"Jefferson",null,"Kilkenny",null,"Lancaster",null,"Low and Burbank's Grant",null,"Martin's Location",null,"Milan",null,"Millsfield",null,"Northumberland",null,"Odell",null,"Pinkham's Grant",null,"Pittsburg",null,"Randolph",null,"Sargent's Purchase",null,"Second College Grant",null,"Shelburne",null,"Stark",null,"Stewartstown",null,"Stratford",null,"Success",null,"Thompson and Meserves Purchase",null,"Wentworth's Location",null,"Whitefield"]
[null,null,"Estimate","Margin Of Error","Estimate","Margin Of Error","Estimate","Margin Of Error","Estimate","Margin Of Error","Estimate","Margin Of Error","Estimate","Margin Of Error","Estimate","Margin Of Error","Estimate","Margin Of Error","Estimate","Margin Of Error","Estimate","Margin Of Error","Estimate","Margin Of Error","Estimate","Margin Of Error","Estimate","Margin Of Error","Estimate","Margin Of Error","Estimate","Margin Of Error","Estimate","Margin Of Error","Estimate","Margin Of Error","Estimate","Margin Of Error","Estimate","Margin Of Error","Estimate","Margin Of Error","Estimate","Margin Of Error","Estimate","Margin Of Error","Estimate","Margin Of Error","Estimate","Margin Of Error","Estimate","Margin Of Error","Estimate","Margin Of Error","Estimate","Margin Of Error","Estimate","Margin Of Error","Estimate","Margin Of Error","Estimate","Margin Of Error","Estimate","Margin Of Error","Estimate","Margin Of Error","Estimate","Margin Of Error","Estimate","Margin Of Error","Estimate","Margin Of Error","Estimate","Margin Of Error","Estimate","Margin Of Error","Estimate","Margin Of Error","Estimate","Margin Of Error","Estimate","Margin Of Error","Estimate","Margin Of Error","Estimate","Margin Of Error","Estimate","Margin Of Error"]
[null,"Total:",0,11,0,11,0,11,2534,234,8,10,267,52,0,11,135,32,747,96,254,50,0,11,0,11,335,47,0,11,0,11,128,28,149,33,0,11,877,80,0,11,0,11,0,11,0,11,1060,113,0,11,0,11,9,7,8,8,0,11,0,11,0,11,361,61,175,30,0,11,0,11,141,27,181,35,272,54,0,11,0,11,0,11,20,13,667,94]
[null,"Less than 10.0 percent",0,15.556349186104045,0,15.556349186104045,0,15.556349186104045,386,102.45974819410792,4,13.038404810405298,63,28.653097563788805,0,15.556349186104045,17,15.556349186104045,159,50.990195135927848,44,19.104973174542799,0,15.556349186104045,0,15.556349186104045,27,14.317821063276353,0,15.556349186104045,0,15.556349186104045,26,12.806248474865697,32,18.867962264113206,0,15.556349186104045,105,51.088159097779204,0,15.556349186104045,0,15.556349186104045,0,15.556349186104045,0,15.556349186104045,112,57.314919523628397,0,15.556349186104045,0,15.556349186104045,5,13.038404810405298,4,12.529964086141668,0,15.556349186104045,0,15.556349186104045,0,15.556349186104045,95,37.576588456111871,45,14.7648230602334,0,15.556349186104045,0,15.556349186104045,15,12.649110640673518,22,17.804493814764857,22,21.095023109728988,0,15.556349186104045,0,15.556349186104045,0,15.556349186104045,5,13.038404810405298,76,43.416586692184822]
[null,"10.0 to 14.9 percent",0,15.556349186104045,0,15.556349186104045,0,15.556349186104045,415,109.48059188732951,4,5.8309518948453007,19,12.529964086141668,0,15.556349186104045,12,10.440306508910551,113,44.944410108488462,40,17.888543819998318,0,15.556349186104045,0,15.556349186104045,66,30.413812651491099,0,15.556349186104045,0,15.556349186104045,12,8.0622577482985491,17,13,0,15.556349186104045,150,55.97320787662612,0,15.556349186104045,0,15.556349186104045,0,15.556349186104045,0,15.556349186104045,193,70.455659815234142,0,15.556349186104045,0,15.556349186104045,0,15.556349186104045,0,15.556349186104045,0,15.556349186104045,0,15.556349186104045,0,15.556349186104045,41,21.213203435596427,42,15.264337522473747,0,15.556349186104045,0,15.556349186104045,17,8.9442719099991592,35,20.248456731316587,32,15.524174696260024,0,15.556349186104045,0,15.556349186104045,0,15.556349186104045,0,15.556349186104045,96,45.694638635183452]
[null,"15.0 to 19.9 percent",0,15.556349186104045,0,15.556349186104045,0,15.556349186104045,476,113.35784048754634,0,15.556349186104045,9,5.6568542494923806,0,15.556349186104045,10,9.8488578017961039,94,30.413812651491099,35,16.278820596099706,0,15.556349186104045,0,15.556349186104045,50,22.022715545545239,0,15.556349186104045,0,15.556349186104045,20,11.180339887498949,33,17.029386365926403,0,15.556349186104045,164,58.137767414994535,0,15.556349186104045,0,15.556349186104045,0,15.556349186104045,0,15.556349186104045,198,76.609398901179219,0,15.556349186104045,0,15.556349186104045,0,15.556349186104045,0,15.556349186104045,0,15.556349186104045,0,15.556349186104045,0,15.556349186104045,45,21.633307652783937,17,9.2195444572928871,0,15.556349186104045,0,15.556349186104045,39,18.357559750685819,15,10.295630140987001,33,26.172504656604801,0,15.556349186104045,0,15.556349186104045,0,15.556349186104045,3,3.6055512754639891,143,47.010637094172637]
[null,"20.0 to 24.9 percent",0,15.556349186104045,0,15.556349186104045,0,15.556349186104045,357,110.11357772772621,0,15.556349186104045,29,17.029386365926403,0,15.556349186104045,18,13.341664064126334,178,67.623960250786851,33,20,0,15.556349186104045,0,15.556349186104045,65,29.546573405388315,0,15.556349186104045,0,15.556349186104045,17,8.6023252670426267,11,9.4868329805051381,0,15.556349186104045,152,57.245087125446844,0,15.556349186104045,0,15.556349186104045,0,15.556349186104045,0,15.556349186104045,195,80.808415403347695,0,15.556349186104045,0,15.556349186104045,0,15.556349186104045,0,15.556349186104045,0,15.556349186104045,0,15.556349186104045,0,15.556349186104045,25,16.124515496597098,16,7.810249675906654,0,15.556349186104045,0,15.556349186104045,26,12.806248474865697,31,16.643316977093239,50,22.825424421026653,0,15.556349186104045,0,15.556349186104045,0,15.556349186104045,11,16.278820596099706,81,29.154759474226502]
[null,"25.0 to 29.9 percent",0,15.556349186104045,0,15.556349186104045,0,15.556349186104045,267,90.426765949026404,0,15.556349186104045,46,24.083189157584592,0,15.556349186104045,9,7.6157731058639087,81,47.127486671792717,19,11.661903789690601,0,15.556349186104045,0,15.556349186104045,64,26.419689627245813,0,15.556349186104045,0,15.556349186104045,7,5.8309518948453007,5,7.2801098892805181,0,15.556349186104045,119,55.865910893853687,0,15.556349186104045,0,15.556349186104045,0,15.556349186104045,0,15.556349186104045,30,29.068883707497267,0,15.556349186104045,0,15.556349186104045,0,15.556349186104045,0,15.556349186104045,0,15.556349186104045,0,15.556349186104045,0,15.556349186104045,32,20.615528128088304,18,12.083045973594572,0,15.556349186104045,0,15.556349186104045,8,12.529964086141668,17,9.2195444572928871,18,10.63014581273465,0,15.556349186104045,0,15.556349186104045,0,15.556349186104045,0,15.556349186104045,67,28.653097563788805]
[null,"30.0 to 34.9 percent",0,15.556349186104045,0,15.556349186104045,0,15.556349186104045,146,55.97320787662612,0,15.556349186104045,13,12.649110640673518,0,15.556349186104045,14,11.313708498984761,14,12.529964086141668,27,19.646882704388499,0,15.556349186104045,0,15.556349186104045,11,11.661903789690601,0,15.556349186104045,0,15.556349186104045,7,13.038404810405298,14,12.041594578792296,0,15.556349186104045,45,32.449961479175904,0,15.556349186104045,0,15.556349186104045,0,15.556349186104045,0,15.556349186104045,104,59.405386961116584,0,15.556349186104045,0,15.556349186104045,0,15.556349186104045,0,15.556349186104045,0,15.556349186104045,0,15.556349186104045,0,15.556349186104045,16,12.041594578792296,5,5,0,15.556349186104045,0,15.556349186104045,12,8.4852813742385695,23,15.811388300841896,27,20.124611797498108,0,15.556349186104045,0,15.556349186104045,0,15.556349186104045,0,15.556349186104045,44,29.546573405388315]
[null,"35.0 to 39.9 percent",0,15.556349186104045,0,15.556349186104045,0,15.556349186104045,91,43.278170016764804,0,15.556349186104045,6,14.212670403551895,0,15.556349186104045,22,15.652475842498529,22,17.029386365926403,16,9.2195444572928871,0,15.556349186104045,0,15.556349186104045,8,14.212670403551895,0,15.556349186104045,0,15.556349186104045,11,12.369316876852981,6,13.038404810405298,0,15.556349186104045,44,30.413812651491099,0,15.556349186104045,0,15.556349186104045,0,15.556349186104045,0,15.556349186104045,49,39.560080889704963,0,15.556349186104045,0,15.556349186104045,2,11.704699910719626,2,11.704699910719626,0,15.556349186104045,0,15.556349186104045,0,15.556349186104045,27,21.95449840010015,6,12.083045973594572,0,15.556349186104045,0,15.556349186104045,5,5.8309518948453007,4,12.529964086141668,26,22.472205054244231,0,15.556349186104045,0,15.556349186104045,0,15.556349186104045,0,15.556349186104045,16,13.601470508735444]
[null,"40.0 to 49.9 percent",0,15.556349186104045,0,15.556349186104045,0,15.556349186104045,174,63.253458403473878,0,15.556349186104045,11,15.556349186104045,0,15.556349186104045,7,7.6157731058639087,37,24.041630560342615,18,13.038404810405298,0,15.556349186104045,0,15.556349186104045,9,8.4852813742385695,0,15.556349186104045,0,15.556349186104045,14,17.804493814764857,2,12.083045973594572,0,15.556349186104045,44,27.802877548915689,0,15.556349186104045,0,15.556349186104045,0,15.556349186104045,0,15.556349186104045,32,50.219518117958877,0,15.556349186104045,0,15.556349186104045,0,15.556349186104045,0,15.556349186104045,0,15.556349186104045,0,15.556349186104045,0,15.556349186104045,38,18.867962264113206,2,12.083045973594572,0,15.556349186104045,0,15.556349186104045,1,11.180339887498949,4,4.2426406871192848,6,12.529964086141668,0,15.556349186104045,0,15.556349186104045,0,15.556349186104045,0,15.556349186104045,64,35.902646142032481]
[null,"50.0 percent or more",0,15.556349186104045,0,15.556349186104045,0,15.556349186104045,222,81.394102980498531,0,15.556349186104045,71,38.600518131237564,0,15.556349186104045,26,18.601075237738275,49,25.059928172283335,22,12.041594578792296,0,15.556349186104045,0,15.556349186104045,32,16.124515496597098,0,15.556349186104045,0,15.556349186104045,14,14.317821063276353,29,16.643316977093239,0,15.556349186104045,54,42.449970553582247,0,15.556349186104045,0,15.556349186104045,0,15.556349186104045,0,15.556349186104045,147,71.449282711584999,0,15.556349186104045,0,15.556349186104045,2,11.401754250991379,2,11.401754250991379,0,15.556349186104045,0,15.556349186104045,0,15.556349186104045,42,21.540659228538015,24,15.264337522473747,0,15.556349186104045,0,15.556349186104045,18,10.295630140987001,28,21.095023109728988,58,27.856776554368238,0,15.556349186104045,0,15.556349186104045,0,15.556349186104045,1,11.401754250991379,80,38.275318418009277]
[null,"Not computed",0,15.556349186104045,0,15.556349186104045,0,15.556349186104045,0,21.213203435596427,0,15.556349186104045,0,15.556349186104045,0,15.556349186104045,0,15.556349186104045,0,15.556349186104045,0,15.556349186104045,0,15.556349186104045,0,15.556349186104045,3,11.704699910719626,0,15.556349186104045,0,15.556349186104045,0,15.556349186104045,0,15.556349186104045,0,15.556349186104045,0,15.556349186104045,0,15.556349186104045,0,15.556349186104045,0,15.556349186104045,0,15.556349186104045,0,15.556349186104045,0,15.556349186104045,0,15.556349186104045,0,15.556349186104045,0,15.556349186104045,0,15.556349186104045,0,15.556349186104045,0,15.556349186104045,0,15.556349186104045,0,15.556349186104045,0,15.556349186104045,0,15.556349186104045,0,15.556349186104045,2,11.401754250991379,0,15.556349186104045,0,15.556349186104045,0,15.556349186104045,0,15.556349186104045,0,15.556349186104045,0,15.556349186104045]
[]
[]
[]
[null,"Calculated MONTHLY OWNER COSTS AS A PERCENTAGE OF HOUSEHOLD INCOME IN THE PAST 12 MONTHS "]
[null,"Universe:  OWNER-OCCUPIED HOUSING UNITS"]
[null,"Data Set: 2010-2014 American Community Survey 5-Year Estimates"]
[]
[null,null,"Atkinson and Gilmanton Grant",null,"Bean's Grant",null,"Bean's Purchase",null,"Berlin",null,"Cambridge",null,"Carroll",null,"Chandler's Purchase",null,"Clarksville",null,"Colebrook",null,"Columbia",null,"Crawford's Purchase",null,"Cutt's Grant",null,"Dalton",null,"Dix's Grant",null,"Dixville",null,"Dummer",null,"Errol",null,"Erving's Location",null,"Gorham",null,"Greens Grant",null,"Hadley's Purchase",null,"Jefferson",null,"Kilkenny",null,"Lancaster",null,"Low and Burbank's Grant",null,"Martin's Location",null,"Milan",null,"Millsfield",null,"Northumberland",null,"Odell",null,"Pinkham's Grant",null,"Pittsburg",null,"Randolph",null,"Sargent's Purchase",null,"Second College Grant",null,"Shelburne",null,"Stark",null,"Stewartstown",null,"Stratford",null,"Success",null,"Thompson and Meserves Purchase",null,"Wentworth's Location",null,"Whitefield"]
[null," ","Estimate","Margin of Error","Estimate","Margin of Error","Estimate","Margin of Error","Estimate","Margin of Error","Estimate","Margin of Error","Estimate","Margin of Error","Estimate","Margin of Error","Estimate","Margin of Error","Estimate","Margin of Error","Estimate","Margin of Error","Estimate","Margin of Error","Estimate","Margin of Error","Estimate","Margin of Error","Estimate","Margin of Error","Estimate","Margin of Error","Estimate","Margin of Error","Estimate","Margin of Error","Estimate","Margin of Error","Estimate","Margin of Error","Estimate","Margin of Error","Estimate","Margin of Error","Estimate","Margin of Error","Estimate","Margin of Error","Estimate","Margin of Error","Estimate","Margin of Error","Estimate","Margin of Error","Estimate","Margin of Error","Estimate","Margin of Error","Estimate","Margin of Error","Estimate","Margin of Error","Estimate","Margin of Error","Estimate","Margin of Error","Estimate","Margin of Error","Estimate","Margin of Error","Estimate","Margin of Error","Estimate","Margin of Error","Estimate","Margin of Error","Estimate","Margin of Error","Estimate","Margin of Error","Estimate","Margin of Error","Estimate","Margin of Error","Estimate","Margin of Error","Estimate","Margin of Error"]
[null,"Total:",0,11,0,11,0,11,2534,234,8,10,267,52,0,11,135,32,747,96,254,50,0,11,0,11,335,47,0,11,0,11,128,28,149,33,0,11,877,80,0,11,0,11,0,11,0,11,1060,113,0,11,0,11,9,7,8,8,0,11,0,11,0,11,361,61,175,30,0,11,0,11,141,27,181,35,272,54,0,11,0,11,0,11,20,13,667,94]
[null,"Less than 20% of HH Income",0,26.944387170614956,0,26.944387170614956,0,26.944387170614956,1277,187.97340237384651,8,21.118712081942874,91,31.780497164141405,0,26.944387170614956,39,21.166010488516726,366,74.464756764525859,119,30.822070014844883,0,26.944387170614956,0,26.944387170614956,143,40.18706259482024,0,26.944387170614956,0,26.944387170614956,58,18.814887722226779,82,28.548204847240395,0,26.944387170614956,419,95.514396820584068,0,26.944387170614956,0,26.944387170614956,0,26.944387170614956,0,26.944387170614956,503,118.81919036923286,0,26.944387170614956,0,26.944387170614956,5,25.573423705088842,4,25.317977802344327,0,26.944387170614956,0,26.944387170614956,0,26.944387170614956,181,48.270073544588683,104,23.151673805580451,0,26.944387170614956,0,26.944387170614956,71,24.020824298928627,72,28.861739379323623,87,37.027017163147235,0,26.944387170614956,0,26.944387170614956,0,26.944387170614956,8,20.615528128088304,315,78.632054532486947]
[null," 20% to 29.9% of HH Income",0,22,0,22,0,22,624,142.48508693894954,0,22,75,29.49576240750525,0,22,27,15.362291495737216,259,82.425724139979508,52,23.151673805580451,0,22,0,22,129,39.635842365212831,0,22,0,22,24,10.392304845413264,16,11.958260743101398,0,22,271,79.987499023284883,0,22,0,22,0,22,0,22,225,85.877820186588352,0,22,0,22,0,22,0,22,0,22,0,22,0,22,57,26.172504656604801,34,14.387494569938159,0,22,0,22,34,17.916472867168917,48,19.026297590440446,68,25.17935662402834,0,22,0,22,0,22,11,22.516660498395403,148,40.877866871939389]
[null," Less Than 30% of HH Income",0,34.785054261852167,0,34.785054261852167,0,34.785054261852167,1901,235.87284710199265,8,30.495901363953813,166,43.358966777357601,0,34.785054261852167,66,26.153393661244042,625,111.08105148944171,171,38.548670534792763,0,34.785054261852167,0,34.785054261852167,272,56.444663166680336,0,34.785054261852167,0,34.785054261852167,82,21.494185260204677,98,30.951575081084322,0,34.785054261852167,690,124.58330546265017,0,34.785054261852167,0,34.785054261852167,0,34.785054261852167,0,34.785054261852167,728,146.60491124106312,0,34.785054261852167,0,34.785054261852167,5,33.734255586865999,4,33.541019662496844,0,34.785054261852167,0,34.785054261852167,0,34.785054261852167,238,54.909015653169384,138,27.258026340878022,0,34.785054261852167,0,34.785054261852167,105,29.966648127543394,120,34.568772034887211,155,44.77722635447622,0,34.785054261852167,0,34.785054261852167,0,34.785054261852167,19,30.528675044947494,463,88.622796164418105]
[null," 30% or More of HH Income",0,31.11269837220809,0,31.11269837220809,0,31.11269837220809,633,125.02799686470227,0,31.11269837220809,101,45.760244754590204,0,31.11269837220809,69,27.874719729532707,122,40.657102700512247,83,28.035691537752374,0,31.11269837220809,0,31.11269837220809,60,25.88435821108957,0,31.11269837220809,0,31.11269837220809,46,29.068883707497267,51,27.166155414412248,0,31.11269837220809,187,67.475921631349351,0,31.11269837220809,0,31.11269837220809,0,31.11269837220809,0,31.11269837220809,332,112.78741064498288,0,31.11269837220809,0,31.11269837220809,4,27.404379212089442,4,27.404379212089442,0,31.11269837220809,0,31.11269837220809,0,31.11269837220809,123,38.039453203220468,37,23.45207879911715,0,31.11269837220809,0,31.11269837220809,36,18.357559750685819,59,29.49576240750525,117,42.930175867331364,0,31.11269837220809,0,31.11269837220809,0,31.11269837220809,1,29.257477676655586,204,61.741396161732524]
[null," 30% to 34.9% of HH Income",0,15.556349186104045,0,15.556349186104045,0,15.556349186104045,146,55.97320787662612,0,15.556349186104045,13,12.649110640673518,0,15.556349186104045,14,11.313708498984761,14,12.529964086141668,27,19.646882704388499,0,15.556349186104045,0,15.556349186104045,11,11.661903789690601,0,15.556349186104045,0,15.556349186104045,7,13.038404810405298,14,12.041594578792296,0,15.556349186104045,45,32.449961479175904,0,15.556349186104045,0,15.556349186104045,0,15.556349186104045,0,15.556349186104045,104,59.405386961116584,0,15.556349186104045,0,15.556349186104045,0,15.556349186104045,0,15.556349186104045,0,15.556349186104045,0,15.556349186104045,0,15.556349186104045,16,12.041594578792296,5,5,0,15.556349186104045,0,15.556349186104045,12,8.4852813742385695,23,15.811388300841896,27,20.124611797498108,0,15.556349186104045,0,15.556349186104045,0,15.556349186104045,0,15.556349186104045,44,29.546573405388315]
[null," Less Than 35% of HH Income",0,38.105117766515299,0,38.105117766515299,0,38.105117766515299,2047,242.42318370980939,8,34.23448553724738,179,45.166359162544857,0,38.105117766515299,80,28.495613697550013,639,111.78550889985696,198,43.266615305567875,0,38.105117766515299,0,38.105117766515299,283,57.636793803958248,0,38.105117766515299,0,38.105117766515299,89,25.13961017995307,112,33.211443810831227,0,38.105117766515299,735,128.74004815907131,0,38.105117766515299,0,38.105117766515299,0,38.105117766515299,0,38.105117766515299,832,158.18343781824947,0,38.105117766515299,0,38.105117766515299,5,37.148351242013419,4,36.972963094672302,0,38.105117766515299,0,38.105117766515299,0,38.105117766515299,254,56.213877290220786,143,27.712812921102035,0,38.105117766515299,0,38.105117766515299,117,31.144823004794873,143,38.013155617496423,182,49.091750834534309,0,38.105117766515299,0,38.105117766515299,0,38.105117766515299,19,34.26368339802363,507,93.418413602458486]
[null," 35% or More of HH Income",0,26.944387170614956,0,26.944387170614956,0,26.944387170614956,487,111.79892664958818,0,26.944387170614956,88,43.977266854592045,0,26.944387170614956,55,25.475478405713993,108,38.678159211627431,56,20,0,26.944387170614956,0,26.944387170614956,49,23.108440016582687,0,26.944387170614956,0,26.944387170614956,39,25.98076211353316,37,24.351591323771842,0,26.944387170614956,142,59.16079783099616,0,26.944387170614956,0,26.944387170614956,0,26.944387170614956,0,26.944387170614956,228,95.874918513655075,0,26.944387170614956,0,26.944387170614956,4,22.561028345356956,4,22.561028345356956,0,26.944387170614956,0,26.944387170614956,0,26.944387170614956,107,36.083237105337432,32,22.912878474779198,0,26.944387170614956,0,26.944387170614956,24,16.278820596099706,36,24.899799195977465,90,37.920970451717082,0,26.944387170614956,0,26.944387170614956,0,26.944387170614956,1,24.779023386727733,160,54.212544673719201]
[null," 50% or More of HH Income",0,15.556349186104045,0,15.556349186104045,0,15.556349186104045,222,81.394102980498531,0,15.556349186104045,71,38.600518131237564,0,15.556349186104045,26,18.601075237738275,49,25.059928172283335,22,12.041594578792296,0,15.556349186104045,0,15.556349186104045,32,16.124515496597098,0,15.556349186104045,0,15.556349186104045,14,14.317821063276353,29,16.643316977093239,0,15.556349186104045,54,42.449970553582247,0,15.556349186104045,0,15.556349186104045,0,15.556349186104045,0,15.556349186104045,147,71.449282711584999,0,15.556349186104045,0,15.556349186104045,2,11.401754250991379,2,11.401754250991379,0,15.556349186104045,0,15.556349186104045,0,15.556349186104045,42,21.540659228538015,24,15.264337522473747,0,15.556349186104045,0,15.556349186104045,18,10.295630140987001,28,21.095023109728988,58,27.856776554368238,0,15.556349186104045,0,15.556349186104045,0,15.556349186104045,1,11.401754250991379,80,38.275318418009277]
[null,"Not computed",0,15.556349186104045,0,15.556349186104045,0,15.556349186104045,0,21.213203435596427,0,15.556349186104045,0,15.556349186104045,0,15.556349186104045,0,15.556349186104045,0,15.556349186104045,0,15.556349186104045,0,15.556349186104045,0,15.556349186104045,3,11.704699910719626,0,15.556349186104045,0,15.556349186104045,0,15.556349186104045,0,15.556349186104045,0,15.556349186104045,0,15.556349186104045,0,15.556349186104045,0,15.556349186104045,0,15.556349186104045,0,15.556349186104045,0,15.556349186104045,0,15.556349186104045,0,15.556349186104045,0,15.556349186104045,0,15.556349186104045,0,15.556349186104045,0,15.556349186104045,0,15.556349186104045,0,15.556349186104045,0,15.556349186104045,0,15.556349186104045,0,15.556349186104045,0,15.556349186104045,2,11.401754250991379,0,15.556349186104045,0,15.556349186104045,0,15.556349186104045,0,15.556349186104045,0,15.556349186104045,0,15.556349186104045]
[]
[]
[]
[null,"Calculated B25091. MORTGAGE STATUS BY SELECTED MONTHLY OWNER COSTS AS A PERCENTAGE OF HOUSEHOLD INCOME IN THE PAST 12 MONTHS "]
[null,"Universe:  OWNER-OCCUPIED HOUSING UNITS"]
[null,"Data Set: 2005-2009 American Community Survey 5-Year Estimates"]
[]
[null,null,"Atkinson and Gilmanton Grant",null,"Bean's Grant",null,"Bean's Purchase",null,"Berlin",null,"Cambridge",null,"Carroll",null,"Chandler's Purchase",null,"Clarksville",null,"Colebrook",null,"Columbia",null,"Crawford's Purchase",null,"Cutt's Grant",null,"Dalton",null,"Dix's Grant",null,"Dixville Township",null,"Dummer",null,"Errol",null,"Erving's Location",null,"Gorham",null,"Greens Grant",null,"Hadley's Purchase",null,"Jefferson",null,"Kilkenny Township",null,"Lancaster",null,"Low and Burbank's Grant",null,"Martin's Location",null,"Milan",null,"Millsfield Township",null,"Northumberland",null,"Odell Township",null,"Pinkham's Grant",null,"Pittsburg",null,"Randolph",null,"Sargent's Purchase",null,"Second College Grant",null,"Shelburne",null,"Stark",null,"Stewartstown",null,"Stratford",null,"Success Township",null,"Thompson and Meserves Purchase",null,"Wentworth's Location",null,"Whitefield"]
[null,null,"Estimate","Margin Of Error","Estimate","Margin Of Error","Estimate","Margin Of Error","Estimate","Margin Of Error","Estimate","Margin Of Error","Estimate","Margin Of Error","Estimate","Margin Of Error","Estimate","Margin Of Error","Estimate","Margin Of Error","Estimate","Margin Of Error","Estimate","Margin Of Error","Estimate","Margin Of Error","Estimate","Margin Of Error","Estimate","Margin Of Error","Estimate","Margin Of Error","Estimate","Margin Of Error","Estimate","Margin Of Error","Estimate","Margin Of Error","Estimate","Margin Of Error","Estimate","Margin Of Error","Estimate","Margin Of Error","Estimate","Margin Of Error","Estimate","Margin Of Error","Estimate","Margin Of Error","Estimate","Margin Of Error","Estimate","Margin Of Error","Estimate","Margin Of Error","Estimate","Margin Of Error","Estimate","Margin Of Error","Estimate","Margin Of Error","Estimate","Margin Of Error","Estimate","Margin Of Error","Estimate","Margin Of Error","Estimate","Margin Of Error","Estimate","Margin Of Error","Estimate","Margin Of Error","Estimate","Margin Of Error","Estimate","Margin Of Error","Estimate","Margin Of Error","Estimate","Margin Of Error","Estimate","Margin Of Error","Estimate","Margin Of Error","Estimate","Margin Of Error"]
[null,"Total:",0,114,0,114,0,114,2703,276,0,114,257,51,0,114,145,31,676,110,326,63,0,114,0,114,391,51,0,114,0,114,140,49,112,30,0,114,889,101,0,114,0,114,355,46,0,114,897,111,0,114,0,114,499,43,4,5,637,94,0,114,0,114,358,63,154,34,0,114,0,114,173,40,199,45,330,68,360,71,0,114,0,114,22,13,669,75]
[null,"Less than 10.0 percent",0,161.22034611053283,0,161.22034611053283,0,161.22034611053283,282,93.005376188691372,0,161.22034611053283,23,17.720045146669349,0,161.22034611053283,20,15.264337522473747,74,44.77722635447622,43,24.698178070456937,0,161.22034611053283,0,161.22034611053283,45,21.840329667841555,0,161.22034611053283,0,161.22034611053283,24,10.63014581273465,30,16.492422502470642,0,161.22034611053283,151,77.233412458598508,0,161.22034611053283,0,161.22034611053283,39,18.384776310850235,0,161.22034611053283,68,41,0,161.22034611053283,0,161.22034611053283,99,26.92582403567252,4,114.10959644131601,72,119.85407794480753,0,161.22034611053283,0,161.22034611053283,63,31.575306807693888,42,19.235384061671343,0,161.22034611053283,0,161.22034611053283,13,8.5440037453175304,57,25.059928172283335,55,26.92582403567252,25,18.788294228055936,0,161.22034611053283,0,161.22034611053283,4,114.15778554264269,43,20.591260281974002]
[null,"10.0 to 14.9 percent",0,161.22034611053283,0,161.22034611053283,0,161.22034611053283,356,108.22661410207751,0,161.22034611053283,32,19.697715603592208,0,161.22034611053283,19,11.401754250991379,193,82.006097334283623,114,50.606323715519977,0,161.22034611053283,0,161.22034611053283,65,23.323807579381203,0,161.22034611053283,0,161.22034611053283,15,114.28035701729323,28,16.15549442140351,0,161.22034611053283,235,77.103826104804938,0,161.22034611053283,0,161.22034611053283,101,30.886890422961002,0,161.22034611053283,128,71.449282711584999,0,161.22034611053283,0,161.22034611053283,142,32.449961479175904,0,161.22034611053283,114,53.338541412378348,0,161.22034611053283,0,161.22034611053283,61,27.018512172212592,35,20,0,161.22034611053283,0,161.22034611053283,47,27.784887978899608,28,22.803508501982758,49,24.207436873820409,79,33.241540277189323,0,161.22034611053283,0,161.22034611053283,0,161.22034611053283,99,43.266615305567875]
[null,"15.0 to 19.9 percent",0,161.22034611053283,0,161.22034611053283,0,161.22034611053283,518,121.69634341261039,0,161.22034611053283,53,30.463092423455635,0,161.22034611053283,15,12.529964086141668,50,35.777087639996637,37,20,0,161.22034611053283,0,161.22034611053283,54,26.419689627245813,0,161.22034611053283,0,161.22034611053283,8,6.7082039324993694,26,11.313708498984761,0,161.22034611053283,129,60.811183182043088,0,161.22034611053283,0,161.22034611053283,72,25.059928172283335,0,161.22034611053283,237,76.157731058639087,0,161.22034611053283,0,161.22034611053283,77,26.627053911388696,0,161.22034611053283,98,38.418745424597091,0,161.22034611053283,0,161.22034611053283,53,25.059928172283335,19,11.313708498984761,0,161.22034611053283,0,161.22034611053283,40,20.124611797498108,28,17.204650534085253,55,24.083189157584592,70,31.780497164141408,0,161.22034611053283,0,161.22034611053283,3,114.10959644131601,91,39.824615503479755]
[null,"20.0 to 24.9 percent",0,161.22034611053283,0,161.22034611053283,0,161.22034611053283,449,113.74093370462545,0,161.22034611053283,41,116.70903992407786,0,161.22034611053283,26,17.888543819998318,62,47.010637094172637,49,27.586228448267445,0,161.22034611053283,0,161.22034611053283,55,23.345235059857504,0,161.22034611053283,0,161.22034611053283,19,9.2195444572928871,5,114.10959644131601,0,161.22034611053283,131,58.830264320330912,0,161.22034611053283,0,161.22034611053283,33,22.561028345356956,0,161.22034611053283,123,58.137767414994535,0,161.22034611053283,0,161.22034611053283,52,17,0,161.22034611053283,119,47.169905660283021,0,161.22034611053283,0,161.22034611053283,54,28.635642126552707,15,10,0,161.22034611053283,0,161.22034611053283,20,13.892443989449804,19,15.231546211727817,54,29.068883707497267,49,27.784887978899608,0,161.22034611053283,0,161.22034611053283,11,11.661903789690601,100,41.231056256176608]
[null,"25.0 to 29.9 percent",0,161.22034611053283,0,161.22034611053283,0,161.22034611053283,250,94.047860156411858,0,161.22034611053283,30,18.439088914585774,0,161.22034611053283,16,12.529964086141668,23,17.888543819998318,31,20.518284528683193,0,161.22034611053283,0,161.22034611053283,22,13.416407864998739,0,161.22034611053283,0,161.22034611053283,20,10.770329614269007,8,114.43775600735974,0,161.22034611053283,36,28.301943396169811,0,161.22034611053283,0,161.22034611053283,24,19.924858845171276,0,161.22034611053283,134,73.824115301166998,0,161.22034611053283,0,161.22034611053283,48,21.840329667841555,0,161.22034611053283,103,46.400431032480725,0,161.22034611053283,0,161.22034611053283,27,115.26057435220423,8,7.6157731058639087,0,161.22034611053283,0,161.22034611053283,18,114.9826073804208,31,24.413111231467404,38,21.095023109728988,14,15.811388300841896,0,161.22034611053283,0,161.22034611053283,0,161.22034611053283,85,41.593268686170845]
[null,"30.0 to 34.9 percent",0,161.22034611053283,0,161.22034611053283,0,161.22034611053283,235,72.249567472753768,0,161.22034611053283,23,20.808652046684813,0,161.22034611053283,11,114.43775600735974,76,57.697486947006624,3,114.0701538527936,0,161.22034611053283,0,161.22034611053283,74,44.407206622349037,0,161.22034611053283,0,161.22034611053283,38,123.30855606972291,9,7.2111025509279782,0,161.22034611053283,77,56.302753041036986,0,161.22034611053283,0,161.22034611053283,17,13.341664064126334,0,161.22034611053283,72,45.310043036836767,0,161.22034611053283,0,161.22034611053283,30,13.038404810405298,0,161.22034611053283,51,26.627053911388696,0,161.22034611053283,0,161.22034611053283,21,18.439088914585774,9,114.62983904725679,0,161.22034611053283,0,161.22034611053283,13,10,7,7.2111025509279782,12,11.661903789690601,20,17.804493814764857,0,161.22034611053283,0,161.22034611053283,0,161.22034611053283,54,119.54915307102765]
[null,"35.0 to 39.9 percent",0,161.22034611053283,0,161.22034611053283,0,161.22034611053283,220,118.60016863394419,0,161.22034611053283,3,114.0701538527936,0,161.22034611053283,8,6.4031242374328485,39,38.327535793473601,17,115.57248807566617,0,161.22034611053283,0,161.22034611053283,14,11.180339887498949,0,161.22034611053283,0,161.22034611053283,1,114.0701538527936,0,161.22034611053283,0,161.22034611053283,16,18.384776310850235,0,161.22034611053283,0,161.22034611053283,15,114.62983904725679,0,161.22034611053283,18,115.7410903698423,0,161.22034611053283,0,161.22034611053283,14,10.295630140987001,0,161.22034611053283,25,22.671568097509269,0,161.22034611053283,0,161.22034611053283,10,114.43775600735974,15,114.9826073804208,0,161.22034611053283,0,161.22034611053283,6,7.2111025509279782,8,10,18,14.7648230602334,4,114.15778554264269,0,161.22034611053283,0,161.22034611053283,4,114.15778554264269,65,48.083261120685229]
[null,"40.0 to 49.9 percent",0,161.22034611053283,0,161.22034611053283,0,161.22034611053283,103,58.180752831155424,0,161.22034611053283,12,114.35471131527551,0,161.22034611053283,11,10,66,43.931765272977593,5,114.35471131527551,0,161.22034611053283,0,161.22034611053283,24,14.422205101855956,0,161.22034611053283,0,161.22034611053283,5,114.10959644131601,3,114.0701538527936,0,161.22034611053283,53,37.947331922020552,0,161.22034611053283,0,161.22034611053283,10,7.810249675906654,0,161.22034611053283,15,116.49892703368559,0,161.22034611053283,0,161.22034611053283,17,13.928388277184119,0,161.22034611053283,20,19.798989873223331,0,161.22034611053283,0,161.22034611053283,41,23.430749027719962,0,161.22034611053283,0,161.22034611053283,0,161.22034611053283,8,6.4031242374328485,12,114.43775600735974,18,115.11733144926528,16,17.888543819998318,0,161.22034611053283,0,161.22034611053283,0,161.22034611053283,62,32.572994949804659]
[null,"50.0 percent or more",0,161.22034611053283,0,161.22034611053283,0,161.22034611053283,264,92.80086206496145,0,161.22034611053283,40,21.95449840010015,0,161.22034611053283,19,10.816653826391969,93,55.317266743757322,27,115.7410903698423,0,161.22034611053283,0,161.22034611053283,34,15.811388300841896,0,161.22034611053283,0,161.22034611053283,10,7.810249675906654,3,114.15778554264269,0,161.22034611053283,61,37.483329627982627,0,161.22034611053283,0,161.22034611053283,40,24.083189157584592,0,161.22034611053283,102,51.855568649856693,0,161.22034611053283,0,161.22034611053283,20,13.416407864998739,0,161.22034611053283,26,24.596747752497688,0,161.22034611053283,0,161.22034611053283,28,18.788294228055936,11,114.62983904725679,0,161.22034611053283,0,161.22034611053283,8,7.2111025509279782,9,10,31,18.439088914585774,83,39.623225512317902,0,161.22034611053283,0,161.22034611053283,0,161.22034611053283,64,120.48651376813922]
[null,"Not computed",0,161.22034611053283,0,161.22034611053283,0,161.22034611053283,26,121.8400590938793,0,161.22034611053283,0,161.22034611053283,0,161.22034611053283,0,161.22034611053283,0,161.22034611053283,0,161.22034611053283,0,161.22034611053283,0,161.22034611053283,4,114.21471008587291,0,161.22034611053283,0,161.22034611053283,0,161.22034611053283,0,161.22034611053283,0,161.22034611053283,0,161.22034611053283,0,161.22034611053283,0,161.22034611053283,4,114.15778554264269,0,161.22034611053283,0,161.22034611053283,0,161.22034611053283,0,161.22034611053283,0,161.22034611053283,0,161.22034611053283,9,114.85643212288984,0,161.22034611053283,0,161.22034611053283,0,161.22034611053283,0,161.22034611053283,0,161.22034611053283,0,161.22034611053283,0,161.22034611053283,0,161.22034611053283,0,161.22034611053283,0,161.22034611053283,0,161.22034611053283,0,161.22034611053283,0,161.22034611053283,6,114.35471131527551]
[]
[]
[]
[]
[null,"Calculated MONTHLY OWNER COSTS AS A PERCENTAGE OF HOUSEHOLD INCOME IN THE PAST 12 MONTHS "]
[null,"Universe:  OWNER-OCCUPIED HOUSING UNITS"]
[null,"Data Set: 2005-2009 American Community Survey 5-Year Estimates"]
[null,null,"Atkinson and Gilmanton Grant",null,"Bean's Grant",null,"Bean's Purchase",null,"Berlin",null,"Cambridge",null,"Carroll",null,"Chandler's Purchase",null,"Clarksville",null,"Colebrook",null,"Columbia",null,"Crawford's Purchase",null,"Cutt's Grant",null,"Dalton",null,"Dix's Grant",null,"Dixville Township",null,"Dummer",null,"Errol",null,"Erving's Location",null,"Gorham",null,"Greens Grant",null,"Hadley's Purchase",null,"Jefferson",null,"Kilkenny Township",null,"Lancaster",null,"Low and Burbank's Grant",null,"Martin's Location",null,"Milan",null,"Millsfield Township",null,"Northumberland",null,"Odell Township",null,"Pinkham's Grant",null,"Pittsburg",null,"Randolph",null,"Sargent's Purchase",null,"Second College Grant",null,"Shelburne",null,"Stark",null,"Stewartstown",null,"Stratford",null,"Success Township",null,"Thompson and Meserves Purchase",null,"Wentworth's Location",null,"Whitefield"]
[null," ","Estimate","Margin of Error","Estimate","Margin of Error","Estimate","Margin of Error","Estimate","Margin of Error","Estimate","Margin of Error","Estimate","Margin of Error","Estimate","Margin of Error","Estimate","Margin of Error","Estimate","Margin of Error","Estimate","Margin of Error","Estimate","Margin of Error","Estimate","Margin of Error","Estimate","Margin of Error","Estimate","Margin of Error","Estimate","Margin of Error","Estimate","Margin of Error","Estimate","Margin of Error","Estimate","Margin of Error","Estimate","Margin of Error","Estimate","Margin of Error","Estimate","Margin of Error","Estimate","Margin of Error","Estimate","Margin of Error","Estimate","Margin of Error","Estimate","Margin of Error","Estimate","Margin of Error","Estimate","Margin of Error","Estimate","Margin of Error","Estimate","Margin of Error","Estimate","Margin of Error","Estimate","Margin of Error","Estimate","Margin of Error","Estimate","Margin of Error","Estimate","Margin of Error","Estimate","Margin of Error","Estimate","Margin of Error","Estimate","Margin of Error","Estimate","Margin of Error","Estimate","Margin of Error","Estimate","Margin of Error","Estimate","Margin of Error","Estimate","Margin of Error","Estimate","Margin of Error"]
[null,"Total:",0,114,0,114,0,114,2703,276,0,114,257,51,0,114,145,31,676,110,326,63,0,114,0,114,391,51,0,114,0,114,140,49,112,30,0,114,889,101,0,114,0,114,355,46,0,114,897,111,0,114,0,114,499,43,4,5,637,94,0,114,0,114,358,63,154,34,0,114,0,114,173,40,199,45,330,68,360,71,0,114,0,114,22,13,669,75]
[null,"Less than 20% of HH Income",0,279.24183067728228,0,279.24183067728228,0,279.24183067728228,1156,187.5446613476374,0,279.24183067728228,108,40.373258476372698,0,279.24183067728228,54,22.803508501982758,317,100.0499875062461,194,59.757844673314644,0,279.24183067728228,0,279.24183067728228,164,41.460824883255761,0,279.24183067728228,0,279.24183067728228,47,114.96956118903822,84,25.709920264364882,0,279.24183067728228,515,124.93198149393132,0,279.24183067728228,0,279.24183067728228,212,43.81780460041329,0,279.24183067728228,433,112.18734331465382,0,279.24183067728228,0,279.24183067728228,318,49.869830559166729,4,254.96078129783021,284,136.69674465765453,0,279.24183067728228,0,279.24183067728228,177,48.528342234203713,96,29.966648127543394,0,279.24183067728228,0,279.24183067728228,100,35.355339059327378,113,38,159,43.485629810317796,174,49.678969393496885,0,279.24183067728228,0,279.24183067728228,7,228.13373270956666,233,62.305697973780859]
[null," 20% to 29.9% of HH Income",0,228,0,228,0,228,699,147.58726232300674,0,228,71,118.15667564721004,0,228,42,21.840329667841555,85,50.299105359837171,80,34.380226875342174,0,228,0,228,77,26.92582403567252,0,228,0,228,39,14.177446878757825,13,161.60754932861275,0,228,167,65.283994975797853,0,228,0,228,57,30.099833886584822,0,228,257,93.968079686668062,0,228,0,228,100,27.676705006196094,0,228,222,66.166456758693073,0,228,0,228,81,118.76447280226525,23,12.569805089976535,0,228,0,228,38,115.81882403132921,50,28.774989139876315,92,35.916569992135948,63,31.968734726291558,0,228,0,228,11,161.641578809414,185,58.566201857385295]
[null," Less Than 30% of HH Income",0,360.49965325919527,0,360.49965325919527,0,360.49965325919527,1855,238.65246698913464,0,360.49965325919527,179,124.86392593539576,0,360.49965325919527,96,31.575306807693888,402,111.98214143335535,274,68.942004612572731,0,360.49965325919527,0,360.49965325919527,241,49.436828377233098,0,360.49965325919527,0,360.49965325919527,86,115.84040745784695,97,163.63984844774208,0,360.49965325919527,682,140.96098751072935,0,360.49965325919527,0,360.49965325919527,269,53.160135440008048,0,360.49965325919527,690,146.34206503941374,0,360.49965325919527,0,360.49965325919527,418,57.035076926396798,4,342.03654775476843,506,151.86836405255704,0,360.49965325919527,0,360.49965325919527,258,128.296531519757,119,32.496153618543843,0,360.49965325919527,0,360.49965325919527,138,121.09500402576482,163,47.665501151251938,251,56.400354608814297,237,59.076221950967721,0,360.49965325919527,0,360.49965325919527,18,279.5943490129942,418,85.510233305727809]
[null," 30% or More of HH Income",0,322.44069222106566,0,322.44069222106566,0,322.44069222106566,822,176.87000876349839,0,322.44069222106566,78,164.32893841317176,0,322.44069222106566,49,115.55950847939775,274,98.934321648253089,52,229.873878463822,0,322.44069222106566,0,322.44069222106566,146,50.547007824400453,0,322.44069222106566,0,322.44069222106566,54,203.22155397496596,15,228.22795621921517,0,322.44069222106566,207,79.705708703956702,0,322.44069222106566,0,322.44069222106566,82,118.1482120050913,0,322.44069222106566,207,178.07301873108122,0,322.44069222106566,0,322.44069222106566,81,25.495097567963928,0,322.44069222106566,122,47.116875957558989,0,322.44069222106566,0,322.44069222106566,100,119.74138799930456,35,255.91600184435518,0,322.44069222106566,0,322.44069222106566,35,15.652475842498529,36,115.53354491228943,79,118.09318354587619,123,123.44634461983878,0,322.44069222106566,0,322.44069222106566,4,301.67532215943686,245,179.39342239892744]
[null," 30% to 34.9% of HH Income",0,161.22034611053283,0,161.22034611053283,0,161.22034611053283,235,72.249567472753768,0,161.22034611053283,23,20.808652046684813,0,161.22034611053283,11,114.43775600735974,76,57.697486947006624,3,114.0701538527936,0,161.22034611053283,0,161.22034611053283,74,44.407206622349037,0,161.22034611053283,0,161.22034611053283,38,123.30855606972291,9,7.2111025509279782,0,161.22034611053283,77,56.302753041036986,0,161.22034611053283,0,161.22034611053283,17,13.341664064126334,0,161.22034611053283,72,45.310043036836767,0,161.22034611053283,0,161.22034611053283,30,13.038404810405298,0,161.22034611053283,51,26.627053911388696,0,161.22034611053283,0,161.22034611053283,21,18.439088914585774,9,114.62983904725679,0,161.22034611053283,0,161.22034611053283,13,10,7,7.2111025509279782,12,11.661903789690601,20,17.804493814764857,0,161.22034611053283,0,161.22034611053283,0,161.22034611053283,54,119.54915307102765]
[null," Less Than 35% of HH Income",0,394.90758412570403,0,394.90758412570403,0,394.90758412570403,2090,249.34915279583365,0,394.90758412570403,202,126.58593918757327,0,394.90758412570403,107,118.71394189394942,478,125.97221915962265,277,133.28540805354501,0,394.90758412570403,0,394.90758412570403,315,66.452990903344599,0,394.90758412570403,0,394.90758412570403,124,169.18628786045281,106,163.79865689315037,0,394.90758412570403,759,151.78932768808221,0,394.90758412570403,0,394.90758412570403,286,54.808758424178883,0,394.90758412570403,762,153.19595294915595,0,394.90758412570403,0,394.90758412570403,448,58.506409905240297,4,378.12828510969661,557,154.18495387034366,0,394.90758412570403,0,394.90758412570403,279,129.61481396815719,128,119.14696806885183,0,394.90758412570403,0,394.90758412570403,151,121.50720143267229,170,48.207883172775801,263,57.593402399927719,257,61.700891403609397,0,394.90758412570403,0,394.90758412570403,18,322.7460301847259,472,146.98299221338502]
[null," 35% or More of HH Income",0,279.24183067728228,0,279.24183067728228,0,279.24183067728228,587,161.44039147623496,0,279.24183067728228,55,163.00613485387598,0,279.24183067728228,38,16.06237840420901,198,80.367904041352233,49,199.57454747537321,0,279.24183067728228,0,279.24183067728228,72,24.145392935299274,0,279.24183067728228,0,279.24183067728228,16,161.53637361288014,6,228.11400658442699,0,279.24183067728228,130,56.418082207746124,0,279.24183067728228,0,279.24183067728228,65,117.39250401963491,0,279.24183067728228,135,172.21207855432209,0,279.24183067728228,0,279.24183067728228,51,21.908902300206645,0,279.24183067728228,71,38.871583451153619,0,279.24183067728228,0,279.24183067728228,79,118.31314381758267,26,228.80777958802014,0,279.24183067728228,0,279.24183067728228,22,12.041594578792296,29,115.30828244319659,67,117.51595636338072,103,122.15563842901399,0,279.24183067728228,0,279.24183067728228,4,254.98235233050934,191,133.75350462698165]
[null," 50% or More of HH Income",0,161.22034611053283,0,161.22034611053283,0,161.22034611053283,264,92.80086206496145,0,161.22034611053283,40,21.95449840010015,0,161.22034611053283,19,10.816653826391969,93,55.317266743757322,27,115.7410903698423,0,161.22034611053283,0,161.22034611053283,34,15.811388300841896,0,161.22034611053283,0,161.22034611053283,10,7.810249675906654,3,114.15778554264269,0,161.22034611053283,61,37.483329627982627,0,161.22034611053283,0,161.22034611053283,40,24.083189157584592,0,161.22034611053283,102,51.855568649856693,0,161.22034611053283,0,161.22034611053283,20,13.416407864998739,0,161.22034611053283,26,24.596747752497688,0,161.22034611053283,0,161.22034611053283,28,18.788294228055936,11,114.62983904725679,0,161.22034611053283,0,161.22034611053283,8,7.2111025509279782,9,10,31,18.439088914585774,83,39.623225512317902,0,161.22034611053283,0,161.22034611053283,0,161.22034611053283,64,120.48651376813922]
[null,"Not computed",0,161.22034611053283,0,161.22034611053283,0,161.22034611053283,26,121.8400590938793,0,161.22034611053283,0,161.22034611053283,0,161.22034611053283,0,161.22034611053283,0,161.22034611053283,0,161.22034611053283,0,161.22034611053283,0,161.22034611053283,4,114.21471008587291,0,161.22034611053283,0,161.22034611053283,0,161.22034611053283,0,161.22034611053283,0,161.22034611053283,0,161.22034611053283,0,161.22034611053283,0,161.22034611053283,4,114.15778554264269,0,161.22034611053283,0,161.22034611053283,0,161.22034611053283,0,161.22034611053283,0,161.22034611053283,0,161.22034611053283,9,114.85643212288984,0,161.22034611053283,0,161.22034611053283,0,161.22034611053283,0,161.22034611053283,0,161.22034611053283,0,161.22034611053283,0,161.22034611053283,0,161.22034611053283,0,161.22034611053283,0,161.22034611053283,0,161.22034611053283,0,161.22034611053283,0,161.22034611053283,6,114.35471131527551]

{"sheet":"ACS_Table_B25075_&_B25077","index":66,"n_rows":181,"n_cols":88,"rows_kept":181,"cut":false,"hidden":true,"merged":[]}
[null,"B25075. VALUE"]
[null,"Universe:  OWNER-OCCUPIED HOUSING UNITS"]
[null,"Data Set: 2015-2019 American Community Survey 5-Year Estimates"]
[]
[null,null,"Atkinson and Gilmanton Grant",null,"Bean's Grant",null,"Bean's Purchase",null,"Berlin",null,"Cambridge",null,"Carroll",null,"Chandler's Purchase",null,"Clarksville",null,"Colebrook",null,"Columbia",null,"Crawford's Purchase",null,"Cutt's Grant",null,"Dalton",null,"Dix's Grant",null,"Dixville",null,"Dummer",null,"Errol",null,"Erving's Location",null,"Gorham",null,"Greens Grant",null,"Hadley's Purchase",null,"Jefferson",null,"Kilkenny",null,"Lancaster",null,"Low and Burbank's Grant",null,"Martin's Location",null,"Milan",null,"Millsfield ",null,"Northumberland",null,"Odell",null,"Pinkham's Grant",null,"Pittsburg",null,"Randolph",null,"Sargent's Purchase",null,"Second College Grant",null,"Shelburne",null,"Stark",null,"Stewartstown",null,"Stratford",null,"Success",null,"Thompson and Meserves Purchase",null,"Wentworth's Location",null,"Whitefield"]
[null,null,"Estimate","Margin Of Error","Estimate","Margin Of Error","Estimate","Margin Of Error","Estimate","Margin Of Error","Estimate","Margin Of Error","Estimate","Margin Of Error","Estimate","Margin Of Error","Estimate","Margin Of Error","Estimate","Margin Of Error","Estimate","Margin Of Error","Estimate","Margin Of Error","Estimate","Margin Of Error","Estimate","Margin Of Error","Estimate","Margin Of Error","Estimate","Margin Of Error","Estimate","Margin Of Error","Estimate","Margin Of Error","Estimate","Margin Of Error","Estimate","Margin Of Error","Estimate","Margin Of Error","Estimate","Margin Of Error","Estimate","Margin Of Error","Estimate","Margin Of Error","Estimate","Margin Of Error","Estimate","Margin Of Error","Estimate","Margin Of Error","Estimate","Margin Of Error","Estimate","Margin Of Error","Estimate","Margin Of Error","Estimate","Margin Of Error","Estimate","Margin Of Error","Estimate","Margin Of Error","Estimate","Margin Of Error","Estimate","Margin Of Error","Estimate","Margin Of Error","Estimate","Margin Of Error","Estimate","Margin Of Error","Estimate","Margin Of Error","Estimate","Margin Of Error","Estimate","Margin Of Error","Estimate","Margin Of Error","Estimate","Margin Of Error","Estimate","Margin Of Error"]
[null,"Less than $10,000",0,11,0,11,0,11,2228,192,0,11,252,49,0,11,130,39,698,79,267,47,0,11,0,11,0,11,0,11,1,4,114,24,95,27,0,11,960,80,0,11,0,11,346,48,0,11,1019,108,0,11,0,11,499,49,4,6,660,86,0,11,0,11,336,50,161,36,0,11,0,11,163,29,198,39,370,54,206,41,0,11,0,11,14,9,643,78]
[null,"$10,000 to $14,999",0,11,0,11,0,11,26,25,0,11,0,11,0,11,2,3,37,36,11,10,0,11,0,11,0,11,0,11,0,11,0,11,0,11,0,11,29,24,0,11,0,11,0,11,0,11,5,9,0,11,0,11,0,11,0,11,18,14,0,11,0,11,4,5,0,11,0,11,0,11,0,11,3,4,4,5,9,14,0,11,0,11,0,11,7,10]
[null,"$15,000 to $19,999",0,11,0,11,0,11,0,18,0,11,0,11,0,11,0,11,8,12,1,2,0,11,0,11,0,11,0,11,0,11,0,11,0,11,0,11,0,11,0,11,0,11,0,11,0,11,0,11,0,11,0,11,0,11,0,11,13,12,0,11,0,11,0,11,0,11,0,11,0,11,2,3,0,11,8,9,0,11,0,11,0,11,0,11,4,7]
[null,"$20,000 to $24,999",0,11,0,11,0,11,0,18,0,11,0,11,0,11,1,2,7,9,4,4,0,11,0,11,0,11,0,11,0,11,0,11,0,11,0,11,52,38,0,11,0,11,0,11,0,11,35,36,0,11,0,11,3,5,0,11,22,18,0,11,0,11,3,4,0,11,0,11,0,11,0,11,0,11,16,17,0,11,0,11,0,11,0,11,3,9]
[null,"$25,000 to $29,999",0,11,0,11,0,11,25,26,0,11,0,11,0,11,0,11,7,9,20,16,0,11,0,11,0,11,0,11,0,11,0,11,0,11,0,11,0,11,0,11,0,11,3,4,0,11,41,36,0,11,0,11,3,4,0,11,31,27,0,11,0,11,0,11,0,11,0,11,0,11,0,11,2,4,4,5,2,3,0,11,0,11,0,11,9,13]
[null,"$30,000 to $34,999",0,11,0,11,0,11,23,36,0,11,0,11,0,11,0,11,8,10,0,11,0,11,0,11,0,11,0,11,0,11,0,11,0,11,0,11,0,11,0,11,0,11,0,11,0,11,10,17,0,11,0,11,0,11,0,11,5,6,0,11,0,11,0,11,0,11,0,11,0,11,0,11,2,2,3,4,0,11,0,11,0,11,0,11,0,11]
[null,"$35,000 to $39,999",0,11,0,11,0,11,45,42,0,11,4,4,0,11,0,11,6,9,0,11,0,11,0,11,0,11,0,11,0,11,2,3,0,11,0,11,11,16,0,11,0,11,0,11,0,11,6,10,0,11,0,11,3,4,0,11,7,9,0,11,0,11,0,11,4,5,0,11,0,11,1,2,0,11,0,11,9,8,0,11,0,11,0,11,13,12]
[null,"$40,000 to $49,999",0,11,0,11,0,11,77,40,0,11,0,11,0,11,0,11,4,7,3,5,0,11,0,11,0,11,0,11,0,11,0,11,0,11,0,11,6,11,0,11,0,11,0,11,0,11,21,25,0,11,0,11,0,11,0,11,50,36,0,11,0,11,0,11,0,11,0,11,0,11,0,11,0,11,0,11,5,6,0,11,0,11,0,11,4,6]
[null,"$50,000 to $59,999",0,11,0,11,0,11,165,63,0,11,0,11,0,11,2,3,15,13,4,5,0,11,0,11,0,11,0,11,0,11,0,11,1,3,0,11,6,10,0,11,0,11,2,4,0,11,0,11,0,11,0,11,12,9,0,11,61,35,0,11,0,11,0,11,3,4,0,11,0,11,0,11,4,4,3,4,7,6,0,11,0,11,0,11,10,11]
[null,"$60,000 to $69,999",0,11,0,11,0,11,185,67,0,11,0,11,0,11,1,2,42,36,8,9,0,11,0,11,0,11,0,11,0,11,2,5,2,3,0,11,9,13,0,11,0,11,10,8,0,11,52,39,0,11,0,11,14,9,0,11,25,16,0,11,0,11,0,11,0,11,0,11,0,11,0,11,5,5,17,16,13,9,0,11,0,11,0,11,28,19]
[null,"$70,000 to $79,999",0,11,0,11,0,11,253,80,0,11,0,11,0,11,2,3,10,12,8,7,0,11,0,11,0,11,0,11,0,11,4,4,0,11,0,11,11,16,0,11,0,11,3,5,0,11,8,12,0,11,0,11,13,9,0,11,35,20,0,11,0,11,11,11,3,4,0,11,0,11,0,11,10,6,4,5,12,12,0,11,0,11,0,11,17,14]
[null,"$80,000 to $89,999",0,11,0,11,0,11,104,45,0,11,0,11,0,11,2,3,35,20,18,11,0,11,0,11,0,11,0,11,0,11,2,4,0,11,0,11,73,48,0,11,0,11,6,6,0,11,33,40,0,11,0,11,7,7,0,11,100,42,0,11,0,11,32,26,0,11,0,11,0,11,10,15,11,9,37,22,22,13,0,11,0,11,0,11,20,25]
[null,"$90,000 to $99,999",0,11,0,11,0,11,152,83,0,11,4,4,0,11,15,12,15,22,16,12,0,11,0,11,0,11,0,11,0,11,4,4,1,3,0,11,39,29,0,11,0,11,4,5,0,11,65,41,0,11,0,11,11,8,0,11,30,20,0,11,0,11,0,11,2,3,0,11,0,11,0,11,2,3,18,16,24,15,0,11,0,11,3,4,16,17]
[null,"$100,000 to $124,999",0,11,0,11,0,11,282,90,0,11,0,11,0,11,6,7,68,33,17,10,0,11,0,11,0,11,0,11,0,11,3,3,11,10,0,11,16,17,0,11,0,11,17,15,0,11,37,23,0,11,0,11,37,23,0,11,32,19,0,11,0,11,17,18,3,4,0,11,0,11,1,2,15,8,29,25,7,11,0,11,0,11,0,11,19,15]
[null,"$125,000 to $149,999",0,11,0,11,0,11,278,85,0,11,20,15,0,11,4,6,54,41,29,19,0,11,0,11,0,11,0,11,0,11,10,6,2,4,0,11,109,46,0,11,0,11,27,17,0,11,135,67,0,11,0,11,43,17,0,11,58,33,0,11,0,11,60,31,2,3,0,11,0,11,10,10,22,12,51,30,18,10,0,11,0,11,2,3,118,48]
[null,"$150,000 to $174,999",0,11,0,11,0,11,296,95,0,11,24,14,0,11,12,10,43,27,16,8,0,11,0,11,0,11,0,11,0,11,21,14,3,5,0,11,143,60,0,11,0,11,36,19,0,11,177,76,0,11,0,11,53,19,0,11,63,31,0,11,0,11,49,24,9,7,0,11,0,11,13,11,33,19,29,23,14,10,0,11,0,11,0,11,70,32]
[null,"$175,000 to $199,999",0,11,0,11,0,11,118,54,0,11,17,13,0,11,15,10,69,37,24,15,0,11,0,11,0,11,0,11,0,11,19,13,12,12,0,11,127,57,0,11,0,11,37,23,0,11,73,39,0,11,0,11,113,36,0,11,45,33,0,11,0,11,12,11,14,9,0,11,0,11,10,7,22,16,45,28,8,10,0,11,0,11,2,3,85,43]
[null,"$200,000 to $249,999",0,11,0,11,0,11,19,21,0,11,53,29,0,11,13,12,34,22,25,22,0,11,0,11,0,11,0,11,0,11,10,8,6,6,0,11,37,30,0,11,0,11,30,15,0,11,83,50,0,11,0,11,41,22,0,11,11,11,0,11,0,11,8,8,7,6,0,11,0,11,15,10,3,4,27,16,2,3,0,11,0,11,3,4,68,41]
[null,"$250,000 to $299,999",0,11,0,11,0,11,66,59,0,11,52,22,0,11,5,5,91,37,27,16,0,11,0,11,0,11,0,11,1,4,15,10,23,17,0,11,46,36,0,11,0,11,33,16,0,11,94,42,0,11,0,11,72,25,0,11,33,31,0,11,0,11,69,31,32,14,0,11,0,11,47,18,31,15,37,26,29,19,0,11,0,11,0,11,53,24]
[null,"$300,000 to $399,999",0,11,0,11,0,11,67,46,0,11,35,17,0,11,28,20,76,32,8,9,0,11,0,11,0,11,0,11,0,11,11,8,26,14,0,11,111,53,0,11,0,11,54,23,0,11,71,44,0,11,0,11,33,18,0,11,11,11,0,11,0,11,33,25,40,18,0,11,0,11,24,14,15,11,19,19,0,11,0,11,0,11,0,11,23,21]
[null,"$400,000 to $499,999",0,11,0,11,0,11,42,44,0,11,18,12,0,11,22,17,28,20,22,14,0,11,0,11,0,11,0,11,0,11,9,8,8,7,0,11,93,43,0,11,0,11,57,25,0,11,21,21,0,11,0,11,24,17,0,11,5,7,0,11,0,11,15,10,24,12,0,11,0,11,23,14,16,17,19,14,5,5,0,11,0,11,0,11,26,20]
[null,"$500,000 to $749,999",0,11,0,11,0,11,0,18,0,11,10,11,0,11,0,11,23,24,0,11,0,11,0,11,0,11,0,11,0,11,0,11,0,11,0,11,28,24,0,11,0,11,10,8,0,11,20,22,0,11,0,11,14,17,0,11,0,11,0,11,0,11,8,9,5,5,0,11,0,11,2,3,2,3,0,11,6,9,0,11,0,11,0,11,35,19]
[null,"$750,000 to $999,999",0,11,0,11,0,11,0,18,0,11,11,9,0,11,0,11,13,12,2,5,0,11,0,11,0,11,0,11,0,11,2,3,0,11,0,11,14,16,0,11,0,11,17,9,0,11,23,25,0,11,0,11,0,11,4,6,0,11,0,11,0,11,12,13,7,6,0,11,0,11,0,11,0,11,0,11,0,11,0,11,0,11,4,5,15,16]
[null,"$1,000,000 to $1,499,999",0,11,0,11,0,11,5,11,0,11,4,4,0,11,0,11,0,11,0,11,0,11,0,11,0,11,0,11,0,11,0,11,0,11,0,11,0,11,0,11,0,11,0,11,0,11,9,14,0,11,0,11,3,4,0,11,0,11,0,11,0,11,3,4,2,3,0,11,0,11,0,11,0,11,0,11,0,11,0,11,0,11,0,11,0,11]
[null,"$1,500,000 to $1,999,999",0,11,0,11,0,11,0,18,0,11,0,11,0,11,0,11,5,8,0,11,0,11,0,11,0,11,0,11,0,11,0,11,0,11,0,11,0,11,0,11,0,11,0,11,0,11,0,11,0,11,0,11,0,11,0,11,5,7,0,11,0,11,0,11,4,5,0,11,0,11,5,7,0,11,0,11,12,14,0,11,0,11,0,11,0,11]
[null,"$2,000,000 or more",0,11,0,11,0,11,0,18,0,11,0,11,0,11,0,11,0,11,0,11,0,11,0,11,0,11,0,11,0,11,0,11,0,11,0,11,0,11,0,11,0,11,0,11,0,11,0,11,0,11,0,11,0,11,0,11,0,11,0,11,0,11,0,11,0,11,0,11,0,11,0,11,0,11,0,11,0,11,0,11,0,11,0,11,0,11]
[null,null,0,11,0,11,0,11,0,18,0,11,0,11,0,11,0,11,0,11,4,5,0,11,0,11,0,11,0,11,0,11,0,11,0,11,0,11,0,11,0,11,0,11,0,11,0,11,0,11,0,11,0,11,0,11,0,11,0,11,0,11,0,11,0,11,0,11,0,11,0,11,0,11,0,11,0,11,2,4,0,11,0,11,0,11,0,11]
[]
[]
[null,"B25077. MEDIAN VALUE (Dollars)"]
[null,"Universe:  OWNER-OCCUPIED HOUSING UNITS"]
[null,"Data Set: 2015-2019 American Community Survey 5-Year Estimates"]
[]
[null,null,"Atkinson and Gilmanton Grant",null,"Bean's Grant",null,"Bean's Purchase",null,"Berlin",null,"Cambridge",null,"Carroll",null,"Chandler's Purchase",null,"Clarksville",null,"Colebrook",null,"Columbia",null,"Crawford's Purchase",null,"Cutt's Grant",null,"Dalton",null,"Dix's Grant",null,"Dixville",null,"Dummer",null,"Errol",null,"Erving's Location",null,"Gorham",null,"Greens Grant",null,"Hadley's Purchase",null,"Jefferson",null,"Kilkenny",null,"Lancaster",null,"Low and Burbank's Grant",null,"Martin's Location",null,"Milan",null,"Millsfield ",null,"Northumberland",null,"Odell",null,"Pinkham's Grant",null,"Pittsburg",null,"Randolph",null,"Sargent's Purchase",null,"Second College Grant",null,"Shelburne",null,"Stark",null,"Stewartstown",null,"Stratford",null,"Success",null,"Thompson and Meserves Purchase",null,"Wentworth's Location",null,"Whitefield"]
[null,null,"Estimate","Margin Of Error","Estimate","Margin Of Error","Estimate","Margin Of Error","Estimate","Margin Of Error","Estimate","Margin Of Error","Estimate","Margin Of Error","Estimate","Margin Of Error","Estimate","Margin Of Error","Estimate","Margin Of Error","Estimate","Margin Of Error","Estimate","Margin Of Error","Estimate","Margin Of Error","Estimate","Margin Of Error","Estimate","Margin Of Error","Estimate","Margin Of Error","Estimate","Margin Of Error","Estimate","Margin Of Error","Estimate","Margin Of Error","Estimate","Margin Of Error","Estimate","Margin Of Error","Estimate","Margin Of Error","Estimate","Margin Of Error","Estimate","Margin Of Error","Estimate","Margin Of Error","Estimate","Margin Of Error","Estimate","Margin Of Error","Estimate","Margin Of Error","Estimate","Margin Of Error","Estimate","Margin Of Error","Estimate","Margin Of Error","Estimate","Margin Of Error","Estimate","Margin Of Error","Estimate","Margin Of Error","Estimate","Margin Of Error","Estimate","Margin Of Error","Estimate","Margin Of Error","Estimate","Margin Of Error","Estimate","Margin Of Error","Estimate","Margin Of Error","Estimate","Margin Of Error","Estimate","Margin Of Error","Estimate","Margin Of Error","Estimate","Margin Of Error"]
[]
[null,"Median value (dollars)","-","**","-","**","-","**",92100,4733,"-","**",203800,18511,"-","**",180800,47386,144200,27802,120300,31472,"-","**","-","**","-","**","-","**","-","**",161800,15192,220700,29035,"-","**",145800,10988,"-","**","-","**",198300,28634,"-","**",133700,11229,"-","**","-","**",161200,6765,"-","**",76300,5389,"-","**","-","**",145900,45042,251900,23862,"-","**","-","**",220700,17013,142400,16507,120600,19818,90000,32048,"-","**","-","**","-","**",144100,17753]
[]
[]
[]
[]
[]
[]
[]
[]
[]
[]
[]
[]
[]
[]
[]
[]
[]
[]
[]
[]
[]
[]
[]
[]
[]
[]
[null,"B25075. VALUE"]
[null,"Universe:  OWNER-OCCUPIED HOUSING UNITS"]
[null,"Data Set: 2010-2014 American Community Survey 5-Year Estimates"]
[]
[null,null,"Atkinson and Gilmanton Grant",null,"Bean's Grant",null,"Bean's Purchase",null,"Berlin",null,"Cambridge",null,"Carroll",null,"Chandler's Purchase",null,"Clarksville",null,"Colebrook",null,"Columbia",null,"Crawford's Purchase",null,"Cutt's Grant",null,"Dalton",null,"Dix's Grant",null,"Dixville",null,"Dummer",null,"Errol",null,"Erving's Location",null,"Gorham",null,"Greens Grant",null,"Hadley's Purchase",null,"Jefferson",null,"Kilkenny",null,"Lancaster",null,"Low and Burbank's Grant",null,"Martin's Location",null,"Milan",null,"Millsfield",null,"Northumberland",null,"Odell",null,"Pinkham's Grant",null,"Pittsburg",null,"Randolph",null,"Sargent's Purchase",null,"Second College Grant",null,"Shelburne",null,"Stark",null,"Stewartstown",null,"Stratford",null,"Success",null,"Thompson and Meserves Purchase",null,"Wentworth's Location",null,"Whitefield"]
[null,null,"Estimate","Margin Of Error","Estimate","Margin Of Error","Estimate","Margin Of Error","Estimate","Margin Of Error","Estimate","Margin Of Error","Estimate","Margin Of Error","Estimate","Margin Of Error","Estimate","Margin Of Error","Estimate","Margin Of Error","Estimate","Margin Of Error","Estimate","Margin Of Error","Estimate","Margin Of Error","Estimate","Margin Of Error","Estimate","Margin Of Error","Estimate","Margin Of Error","Estimate","Margin Of Error","Estimate","Margin Of Error","Estimate","Margin Of Error","Estimate","Margin Of Error","Estimate","Margin Of Error","Estimate","Margin Of Error","Estimate","Margin Of Error","Estimate","Margin Of Error","Estimate","Margin Of Error","Estimate","Margin Of Error","Estimate","Margin Of Error","Estimate","Margin Of Error","Estimate","Margin Of Error","Estimate","Margin Of Error","Estimate","Margin Of Error","Estimate","Margin Of Error","Estimate","Margin Of Error","Estimate","Margin Of Error","Estimate","Margin Of Error","Estimate","Margin Of Error","Estimate","Margin Of Error","Estimate","Margin Of Error","Estimate","Margin Of Error","Estimate","Margin Of Error","Estimate","Margin Of Error","Estimate","Margin Of Error","Estimate","Margin Of Error","Estimate","Margin Of Error"]
[null,"Total:",0,11,0,11,0,11,2534,234,8,10,267,52,0,11,135,32,747,96,254,50,0,11,0,11,335,47,0,11,0,11,128,28,149,33,0,11,877,80,0,11,0,11,0,11,0,11,1060,113,0,11,0,11,9,7,8,8,0,11,0,11,0,11,361,61,175,30,0,11,0,11,141,27,181,35,272,54,0,11,0,11,0,11,20,13,667,94]
[null,"Less than $10,000",0,11,0,11,0,11,0,15,0,11,9,9,0,11,0,11,23,17,7,7,0,11,0,11,12,14,0,11,0,11,3,4,0,11,0,11,38,24,0,11,0,11,0,11,0,11,18,20,0,11,0,11,0,11,0,11,0,11,0,11,0,11,3,5,2,3,0,11,0,11,0,11,0,11,13,14,0,11,0,11,0,11,0,11,5,9]
[null,"$10,000 to $14,999",0,11,0,11,0,11,21,23,0,11,0,11,0,11,0,11,24,16,11,8,0,11,0,11,14,17,0,11,0,11,0,11,4,6,0,11,6,10,0,11,0,11,0,11,0,11,18,19,0,11,0,11,0,11,0,11,0,11,0,11,0,11,0,11,0,11,0,11,0,11,2,3,6,10,15,18,0,11,0,11,0,11,0,11,10,10]
[null,"$15,000 to $19,999",0,11,0,11,0,11,39,48,0,11,2,3,0,11,0,11,0,11,9,15,0,11,0,11,10,9,0,11,0,11,1,3,5,6,0,11,14,15,0,11,0,11,0,11,0,11,22,26,0,11,0,11,0,11,0,11,0,11,0,11,0,11,0,11,2,3,0,11,0,11,0,11,0,11,0,11,0,11,0,11,0,11,0,11,10,10]
[null,"$20,000 to $24,999",0,11,0,11,0,11,8,12,0,11,0,11,0,11,2,3,14,22,0,11,0,11,0,11,4,6,0,11,0,11,2,3,0,11,0,11,24,21,0,11,0,11,0,11,0,11,36,33,0,11,0,11,0,11,0,11,0,11,0,11,0,11,0,11,1,4,0,11,0,11,1,3,0,11,2,4,0,11,0,11,0,11,0,11,5,7]
[null,"$25,000 to $29,999",0,11,0,11,0,11,18,19,0,11,0,11,0,11,0,11,0,11,8,7,0,11,0,11,5,6,0,11,0,11,0,11,0,11,0,11,4,7,0,11,0,11,0,11,0,11,0,11,0,11,0,11,0,11,0,11,0,11,0,11,0,11,0,11,0,11,0,11,0,11,0,11,0,11,0,11,0,11,0,11,0,11,0,11,0,11]
[null,"$30,000 to $34,999",0,11,0,11,0,11,36,32,0,11,2,3,0,11,0,11,15,13,2,4,0,11,0,11,12,15,0,11,0,11,0,11,7,7,0,11,0,11,0,11,0,11,0,11,0,11,37,45,0,11,0,11,0,11,0,11,0,11,0,11,0,11,0,11,2,3,0,11,0,11,0,11,0,11,0,11,0,11,0,11,0,11,0,11,9,8]
[null,"$35,000 to $39,999",0,11,0,11,0,11,11,18,0,11,0,11,0,11,2,3,0,11,1,4,0,11,0,11,6,8,0,11,0,11,2,3,6,10,0,11,6,10,0,11,0,11,0,11,0,11,0,11,0,11,0,11,0,11,0,11,0,11,0,11,0,11,0,11,2,3,0,11,0,11,0,11,0,11,0,11,0,11,0,11,0,11,0,11,17,21]
[null,"$40,000 to $49,999",0,11,0,11,0,11,112,51,0,11,0,11,0,11,4,4,9,9,0,11,0,11,0,11,3,5,0,11,0,11,1,3,3,4,0,11,27,18,0,11,0,11,0,11,0,11,4,6,0,11,0,11,0,11,0,11,0,11,0,11,0,11,3,4,0,11,0,11,0,11,2,3,0,11,10,12,0,11,0,11,0,11,0,11,0,11]
[null,"$50,000 to $59,999",0,11,0,11,0,11,84,47,0,11,6,11,0,11,0,11,6,8,2,4,0,11,0,11,16,10,0,11,0,11,0,11,0,11,0,11,38,30,0,11,0,11,0,11,0,11,0,11,0,11,0,11,0,11,0,11,0,11,0,11,0,11,4,5,0,11,0,11,0,11,3,4,10,11,14,11,0,11,0,11,0,11,0,11,27,13]
[null,"$60,000 to $69,999",0,11,0,11,0,11,214,57,0,11,0,11,0,11,2,3,0,11,2,4,0,11,0,11,3,5,0,11,0,11,0,11,4,4,0,11,51,29,0,11,0,11,0,11,0,11,44,36,0,11,0,11,0,11,0,11,0,11,0,11,0,11,7,6,0,11,0,11,0,11,3,5,3,4,22,20,0,11,0,11,0,11,0,11,20,14]
[null,"$70,000 to $79,999",0,11,0,11,0,11,366,97,0,11,0,11,0,11,6,7,27,34,5,5,0,11,0,11,8,8,0,11,0,11,21,18,0,11,0,11,42,26,0,11,0,11,0,11,0,11,7,12,0,11,0,11,0,11,0,11,0,11,0,11,0,11,7,6,0,11,0,11,0,11,0,11,4,5,7,8,0,11,0,11,0,11,0,11,36,30]
[null,"$80,000 to $89,999",0,11,0,11,0,11,379,112,0,11,11,12,0,11,15,15,95,50,15,10,0,11,0,11,23,15,0,11,0,11,7,7,6,8,0,11,39,29,0,11,0,11,0,11,0,11,8,14,0,11,0,11,0,11,0,11,0,11,0,11,0,11,9,8,5,4,0,11,0,11,4,4,20,11,6,6,0,11,0,11,0,11,1,3,19,14]
[null,"$90,000 to $99,999",0,11,0,11,0,11,323,96,0,11,7,11,0,11,2,4,43,31,13,10,0,11,0,11,13,16,0,11,0,11,9,6,4,6,0,11,16,16,0,11,0,11,0,11,0,11,76,56,0,11,0,11,0,11,0,11,0,11,0,11,0,11,0,11,6,5,0,11,0,11,3,5,8,6,27,14,0,11,0,11,0,11,0,11,35,28]
[null,"$100,000 to $124,999",0,11,0,11,0,11,240,81,0,11,23,18,0,11,14,10,85,39,20,11,0,11,0,11,34,15,0,11,0,11,8,5,15,11,0,11,122,43,0,11,0,11,0,11,0,11,77,44,0,11,0,11,0,11,0,11,0,11,0,11,0,11,27,14,10,9,0,11,0,11,4,4,20,14,29,21,0,11,0,11,0,11,0,11,95,40]
[null,"$125,000 to $149,999",0,11,0,11,0,11,133,61,0,11,9,10,0,11,18,14,61,31,17,10,0,11,0,11,43,26,0,11,0,11,6,6,10,10,0,11,92,54,0,11,0,11,0,11,0,11,87,46,0,11,0,11,0,11,0,11,0,11,0,11,0,11,64,28,5,5,0,11,0,11,6,5,22,12,26,18,0,11,0,11,0,11,0,11,99,35]
[null,"$150,000 to $174,999",0,11,0,11,0,11,152,72,6,9,40,20,0,11,22,14,98,33,36,18,0,11,0,11,39,20,0,11,0,11,15,8,13,11,0,11,89,39,0,11,0,11,0,11,0,11,128,58,0,11,0,11,0,11,0,11,0,11,0,11,0,11,64,26,10,8,0,11,0,11,17,10,37,20,9,9,0,11,0,11,0,11,1,4,84,44]
[null,"$175,000 to $199,999",0,11,0,11,0,11,90,41,0,11,46,26,0,11,5,7,34,26,12,9,0,11,0,11,9,8,0,11,0,11,13,11,2,3,0,11,74,45,0,11,0,11,0,11,0,11,165,77,0,11,0,11,5,7,4,6,0,11,0,11,0,11,43,22,8,8,0,11,0,11,19,11,2,3,32,26,0,11,0,11,0,11,0,11,76,48]
[null,"$200,000 to $249,999",0,11,0,11,0,11,73,40,0,11,40,21,0,11,20,15,46,35,22,12,0,11,0,11,39,16,0,11,0,11,20,11,24,16,0,11,90,50,0,11,0,11,0,11,0,11,110,48,0,11,0,11,0,11,0,11,0,11,0,11,0,11,61,32,39,18,0,11,0,11,29,12,14,10,8,8,0,11,0,11,0,11,0,11,63,26]
[null,"$250,000 to $299,999",0,11,0,11,0,11,86,52,2,3,19,12,0,11,18,11,47,21,38,23,0,11,0,11,24,14,0,11,0,11,6,6,14,11,0,11,55,42,0,11,0,11,0,11,0,11,98,55,0,11,0,11,0,11,0,11,0,11,0,11,0,11,28,20,38,13,0,11,0,11,24,12,19,16,16,10,0,11,0,11,0,11,1,2,36,24]
[null,"$300,000 to $399,999",0,11,0,11,0,11,70,54,0,11,6,8,0,11,5,6,53,35,15,11,0,11,0,11,0,11,0,11,0,11,12,7,20,17,0,11,42,37,0,11,0,11,0,11,0,11,59,46,0,11,0,11,4,5,4,5,0,11,0,11,0,11,19,14,16,8,0,11,0,11,15,13,12,10,29,24,0,11,0,11,0,11,6,6,16,13]
[null,"$400,000 to $499,999",0,11,0,11,0,11,44,31,0,11,3,4,0,11,0,11,24,14,14,9,0,11,0,11,6,7,0,11,0,11,0,11,8,6,0,11,0,11,0,11,0,11,0,11,0,11,33,33,0,11,0,11,0,11,0,11,0,11,0,11,0,11,0,11,21,11,0,11,0,11,3,6,4,4,2,4,0,11,0,11,0,11,11,12,0,11]
[null,"$500,000 to $749,999",0,11,0,11,0,11,27,24,0,11,37,31,0,11,0,11,13,20,0,11,0,11,0,11,5,6,0,11,0,11,1,3,0,11,0,11,8,12,0,11,0,11,0,11,0,11,23,25,0,11,0,11,0,11,0,11,0,11,0,11,0,11,6,8,1,3,0,11,0,11,4,5,0,11,0,11,0,11,0,11,0,11,0,11,5,7]
[null,"$750,000 to $999,999",0,11,0,11,0,11,0,15,0,11,7,10,0,11,0,11,0,11,0,11,0,11,0,11,7,9,0,11,0,11,1,2,0,11,0,11,0,11,0,11,0,11,0,11,0,11,0,11,0,11,0,11,0,11,0,11,0,11,0,11,0,11,11,16,7,7,0,11,0,11,0,11,0,11,5,7,0,11,0,11,0,11,0,11,0,11]
[null,"$1,000,000 or more",0,11,0,11,0,11,8,11,0,11,0,11,0,11,0,11,30,27,5,5,0,11,0,11,0,11,0,11,0,11,0,11,4,6,0,11,0,11,0,11,0,11,0,11,0,11,10,16,0,11,0,11,0,11,0,11,0,11,0,11,0,11,5,6,0,11,0,11,0,11,2,3,0,11,0,11,0,11,0,11,0,11,0,11,0,11]
[]
[]
[]
[]
[null,"B25077. MEDIAN VALUE (Dollars)"]
[null,"Universe:  OWNER-OCCUPIED HOUSING UNITS"]
[null,"Data Set: 2010-2014 American Community Survey 5-Year Estimates"]
[]
[null,null,"Atkinson and Gilmanton Grant",null,"Bean's Grant",null,"Bean's Purchase",null,"Berlin",null,"Cambridge",null,"Carroll",null,"Chandler's Purchase",null,"Clarksville",null,"Colebrook",null,"Columbia",null,"Crawford's Purchase",null,"Cutt's Grant",null,"Dalton",null,"Dix's Grant",null,"Dixville",null,"Dummer",null,"Errol",null,"Erving's Location",null,"Gorham",null,"Greens Grant",null,"Hadley's Purchase",null,"Jefferson",null,"Kilkenny",null,"Lancaster",null,"Low and Burbank's Grant",null,"Martin's Location",null,"Milan",null,"Millsfield",null,"Northumberland",null,"Odell",null,"Pinkham's Grant",null,"Pittsburg",null,"Randolph",null,"Sargent's Purchase",null,"Second College Grant",null,"Shelburne",null,"Stark",null,"Stewartstown",null,"Stratford",null,"Success",null,"Thompson and Meserves Purchase",null,"Wentworth's Location",null,"Whitefield"]
[null,null,"Estimate","Margin Of Error","Estimate","Margin Of Error","Estimate","Margin Of Error","Estimate","Margin Of Error","Estimate","Margin Of Error","Estimate","Margin Of Error","Estimate","Margin Of Error","Estimate","Margin Of Error","Estimate","Margin Of Error","Estimate","Margin Of Error","Estimate","Margin Of Error","Estimate","Margin Of Error","Estimate","Margin Of Error","Estimate","Margin Of Error","Estimate","Margin Of Error","Estimate","Margin Of Error","Estimate","Margin Of Error","Estimate","Margin Of Error","Estimate","Margin Of Error","Estimate","Margin Of Error","Estimate","Margin Of Error","Estimate","Margin Of Error","Estimate","Margin Of Error","Estimate","Margin Of Error","Estimate","Margin Of Error","Estimate","Margin Of Error","Estimate","Margin Of Error","Estimate","Margin Of Error","Estimate","Margin Of Error","Estimate","Margin Of Error","Estimate","Margin Of Error","Estimate","Margin Of Error","Estimate","Margin Of Error","Estimate","Margin Of Error","Estimate","Margin Of Error","Estimate","Margin Of Error","Estimate","Margin Of Error","Estimate","Margin Of Error","Estimate","Margin Of Error","Estimate","Margin Of Error","Estimate","Margin Of Error","Estimate","Margin Of Error","Estimate","Margin Of Error"]
[]
[null,"Median value (dollars)","-","**","-","**","-","**",89400,3222,166700,24707,188300,15721,"-","**",152800,18149,138300,22517,160400,18352,"-","**","-","**",127600,20523,"-","**","-","**",156700,31230,170200,62435,"-","**",128100,17085,"-","**","-","**","-","**","-","**",168800,15739,"-","**","-","**",197500,284093,250000,198964,"-","**","-","**","-","**",172100,13624,244200,16957,"-","**","-","**",211200,26103,147200,17385,117200,25516,"-","**","-","**","-","**",409100,95683,136500,12085]
[]
[]
[]
[]
[]
[]
[]
[]
[]
[]
[]
[]
[]
[]
[]
[]
[]
[]
[]
[]
[]
[]
[]
[]
[]
[]
[null,"B25075. VALUE"]
[null,"Universe:  OWNER-OCCUPIED HOUSING UNITS"]
[null,"Data Set: 2005-2009 American Community Survey 5-Year Estimates"]
[]
[null,null,"Atkinson and Gilmanton Grant",null,"Bean's Grant",null,"Bean's Purchase",null,"Berlin",null,"Cambridge",null,"Carroll",null,"Chandler's Purchase",null,"Clarksville",null,"Colebrook",null,"Columbia",null,"Crawford's Purchase",null,"Cutt's Grant",null,"Dalton",null,"Dix's Grant",null,"Dixville",null,"Dummer",null,"Errol",null,"Erving's Location",null,"Gorham",null,"Greens Grant",null,"Hadley's Purchase",null,"Jefferson",null,"Kilkenny",null,"Lancaster",null,"Low and Burbank's Grant",null,"Martin's Location",null,"Milan",null,"Millsfield",null,"Northumberland",null,"Odell",null,"Pinkham's Grant",null,"Pittsburg",null,"Randolph",null,"Sargent's Purchase",null,"Second College Grant",null,"Shelburne",null,"Stark",null,"Stewartstown",null,"Stratford",null,"Success",null,"Thompson and Meserves Purchase",null,"Wentworth's Location",null,"Whitefield"]
[null,null,"Estimate","Margin Of Error","Estimate","Margin Of Error","Estimate","Margin Of Error","Estimate","Margin Of Error","Estimate","Margin Of Error","Estimate","Margin Of Error","Estimate","Margin Of Error","Estimate","Margin Of Error","Estimate","Margin Of Error","Estimate","Margin Of Error","Estimate","Margin Of Error","Estimate","Margin Of Error","Estimate","Margin Of Error","Estimate","Margin Of Error","Estimate","Margin Of Error","Estimate","Margin Of Error","Estimate","Margin Of Error","Estimate","Margin Of Error","Estimate","Margin Of Error","Estimate","Margin Of Error","Estimate","Margin Of Error","Estimate","Margin Of Error","Estimate","Margin Of Error","Estimate","Margin Of Error","Estimate","Margin Of Error","Estimate","Margin Of Error","Estimate","Margin Of Error","Estimate","Margin Of Error","Estimate","Margin Of Error","Estimate","Margin Of Error","Estimate","Margin Of Error","Estimate","Margin Of Error","Estimate","Margin Of Error","Estimate","Margin Of Error","Estimate","Margin Of Error","Estimate","Margin Of Error","Estimate","Margin Of Error","Estimate","Margin Of Error","Estimate","Margin Of Error","Estimate","Margin Of Error","Estimate","Margin Of Error","Estimate","Margin Of Error","Estimate","Margin Of Error"]
[null,"Total:",0,114,0,114,0,114,2703,276,0,114,257,51,0,114,145,31,676,110,326,63,0,114,0,114,391,51,0,114,0,114,140,49,112,30,0,114,889,101,0,114,0,114,355,46,0,114,897,111,0,114,0,114,499,43,4,5,637,94,0,114,0,114,358,63,154,34,0,114,0,114,173,40,199,45,330,68,360,71,0,114,0,114,22,13,669,75]
[null,"Less than $10,000",0,114,0,114,0,114,0,114,0,114,0,114,0,114,0,114,0,114,0,114,0,114,0,114,2,4,0,114,0,114,0,114,0,114,0,114,10,14,0,114,0,114,0,114,0,114,4,8,0,114,0,114,3,4,0,114,4,6,0,114,0,114,0,114,0,114,0,114,0,114,0,114,5,9,0,114,17,14,0,114,0,114,0,114,0,114]
[null,"$10,000 to $14,999",0,114,0,114,0,114,16,17,0,114,0,114,0,114,0,114,9,13,17,19,0,114,0,114,13,12,0,114,0,114,0,114,0,114,0,114,0,114,0,114,0,114,0,114,0,114,17,20,0,114,0,114,4,5,0,114,0,114,0,114,0,114,3,4,0,114,0,114,0,114,0,114,0,114,5,8,0,114,0,114,0,114,0,114,0,114]
[null,"$15,000 to $19,999",0,114,0,114,0,114,11,18,0,114,7,9,0,114,0,114,0,114,10,8,0,114,0,114,6,8,0,114,0,114,0,114,5,7,0,114,14,16,0,114,0,114,0,114,0,114,28,39,0,114,0,114,0,114,0,114,0,114,0,114,0,114,0,114,0,114,0,114,0,114,0,114,0,114,0,114,0,114,0,114,0,114,0,114,0,114]
[null,"$20,000 to $24,999",0,114,0,114,0,114,0,114,0,114,0,114,0,114,0,114,22,18,4,7,0,114,0,114,14,11,0,114,0,114,0,114,0,114,0,114,0,114,0,114,0,114,1,4,0,114,11,20,0,114,0,114,11,7,0,114,17,17,0,114,0,114,0,114,0,114,0,114,0,114,0,114,0,114,0,114,0,114,0,114,0,114,0,114,5,7]
[null,"$25,000 to $29,999",0,114,0,114,0,114,0,114,0,114,0,114,0,114,0,114,15,17,0,114,0,114,0,114,4,6,0,114,0,114,0,114,3,5,0,114,53,52,0,114,0,114,0,114,0,114,13,20,0,114,0,114,0,114,0,114,0,114,0,114,0,114,0,114,0,114,0,114,0,114,0,114,0,114,0,114,0,114,0,114,0,114,0,114,0,114]
[null,"$30,000 to $34,999",0,114,0,114,0,114,64,59,0,114,0,114,0,114,0,114,23,35,0,114,0,114,0,114,14,12,0,114,0,114,0,114,4,7,0,114,15,23,0,114,0,114,0,114,0,114,0,114,0,114,0,114,13,17,0,114,9,14,0,114,0,114,0,114,0,114,0,114,0,114,0,114,4,6,0,114,0,114,0,114,0,114,0,114,0,114]
[null,"$35,000 to $39,999",0,114,0,114,0,114,30,29,0,114,0,114,0,114,4,6,28,34,0,114,0,114,0,114,4,6,0,114,0,114,0,114,0,114,0,114,9,16,0,114,0,114,0,114,0,114,8,13,0,114,0,114,4,5,0,114,20,22,0,114,0,114,0,114,0,114,0,114,0,114,0,114,0,114,21,20,8,13,0,114,0,114,0,114,6,9]
[null,"$40,000 to $49,999",0,114,0,114,0,114,67,48,0,114,0,114,0,114,4,6,24,31,5,7,0,114,0,114,21,15,0,114,0,114,2,3,8,11,0,114,12,19,0,114,0,114,0,114,0,114,0,114,0,114,0,114,15,10,0,114,6,9,0,114,0,114,9,10,10,12,0,114,0,114,0,114,0,114,21,18,20,20,0,114,0,114,0,114,5,7]
[null,"$50,000 to $59,999",0,114,0,114,0,114,118,57,0,114,0,114,0,114,0,114,2,6,0,114,0,114,0,114,16,13,0,114,0,114,5,5,0,114,0,114,29,27,0,114,0,114,5,8,0,114,19,22,0,114,0,114,10,8,0,114,0,114,0,114,0,114,33,23,0,114,0,114,0,114,0,114,11,9,20,15,16,15,0,114,0,114,0,114,59,44]
[null,"$60,000 to $69,999",0,114,0,114,0,114,112,44,0,114,0,114,0,114,0,114,24,27,19,18,0,114,0,114,9,7,0,114,0,114,0,114,7,10,0,114,22,21,0,114,0,114,0,114,0,114,50,48,0,114,0,114,32,23,0,114,8,12,0,114,0,114,0,114,0,114,0,114,0,114,0,114,16,14,9,10,53,27,0,114,0,114,0,114,56,41]
[null,"$70,000 to $79,999",0,114,0,114,0,114,268,91,0,114,7,8,0,114,0,114,3,5,7,9,0,114,0,114,18,13,0,114,0,114,7,6,0,114,0,114,25,22,0,114,0,114,23,22,0,114,16,19,0,114,0,114,17,9,0,114,80,43,0,114,0,114,10,11,2,3,0,114,0,114,4,5,16,13,30,17,31,24,0,114,0,114,0,114,32,22]
[null,"$80,000 to $89,999",0,114,0,114,0,114,473,135,0,114,14,17,0,114,3,5,46,29,14,13,0,114,0,114,15,11,0,114,0,114,13,10,4,6,0,114,47,35,0,114,0,114,4,7,0,114,30,32,0,114,0,114,26,13,0,114,89,43,0,114,0,114,8,9,8,8,0,114,0,114,0,114,0,114,20,15,21,16,0,114,0,114,8,10,52,33]
[null,"$90,000 to $99,999",0,114,0,114,0,114,246,98,0,114,0,114,0,114,19,14,51,39,13,13,0,114,0,114,32,16,0,114,0,114,0,114,2,4,0,114,41,28,0,114,0,114,14,10,0,114,39,33,0,114,0,114,36,19,0,114,24,23,0,114,0,114,10,14,3,4,0,114,0,114,4,6,13,12,12,11,12,14,0,114,0,114,0,114,20,15]
[null,"$100,000 to $124,999",0,114,0,114,0,114,517,136,0,114,22,15,0,114,17,12,93,44,14,11,0,114,0,114,16,13,0,114,0,114,8,6,17,11,0,114,153,58,0,114,0,114,31,20,0,114,70,40,0,114,0,114,57,20,0,114,127,49,0,114,0,114,39,19,7,7,0,114,0,114,15,10,39,22,18,13,43,30,0,114,0,114,3,6,56,29]
[null,"$125,000 to $149,999",0,114,0,114,0,114,274,74,0,114,19,14,0,114,27,18,4,6,28,21,0,114,0,114,42,23,0,114,0,114,16,9,20,14,0,114,111,49,0,114,0,114,32,15,0,114,140,62,0,114,0,114,61,22,0,114,87,37,0,114,0,114,12,12,2,3,0,114,0,114,2,3,8,8,47,22,47,29,0,114,0,114,4,6,48,25]
[null,"$150,000 to $174,999",0,114,0,114,0,114,162,66,0,114,31,18,0,114,19,15,72,55,35,23,0,114,0,114,76,45,0,114,0,114,47,48,6,7,0,114,95,48,0,114,0,114,45,18,0,114,140,66,0,114,0,114,40,19,0,114,66,40,0,114,0,114,47,25,4,5,0,114,0,114,19,13,12,10,36,21,17,13,0,114,0,114,7,5,63,34]
[null,"$175,000 to $199,999",0,114,0,114,0,114,119,64,0,114,32,24,0,114,12,8,93,48,49,27,0,114,0,114,22,13,0,114,0,114,17,9,4,5,0,114,96,49,0,114,0,114,16,15,0,114,40,34,0,114,0,114,20,12,4,5,17,20,0,114,0,114,43,29,9,11,0,114,0,114,37,29,14,13,19,20,8,13,0,114,0,114,0,114,40,24]
[null,"$200,000 to $249,999",0,114,0,114,0,114,105,48,0,114,46,26,0,114,23,15,99,49,61,36,0,114,0,114,23,14,0,114,0,114,5,7,9,6,0,114,37,34,0,114,0,114,49,24,0,114,119,56,0,114,0,114,72,20,0,114,41,28,0,114,0,114,50,20,17,10,0,114,0,114,35,16,29,22,20,15,56,37,0,114,0,114,0,114,74,31]
[null,"$250,000 to $299,999",0,114,0,114,0,114,37,42,0,114,37,24,0,114,6,8,22,18,35,30,0,114,0,114,12,10,0,114,0,114,2,4,12,9,0,114,88,48,0,114,0,114,31,19,0,114,59,40,0,114,0,114,51,23,0,114,27,25,0,114,0,114,21,15,26,13,0,114,0,114,25,14,15,11,26,18,6,9,0,114,0,114,0,114,72,38]
[null,"$300,000 to $399,999",0,114,0,114,0,114,18,20,0,114,17,16,0,114,11,9,26,25,9,9,0,114,0,114,22,17,0,114,0,114,14,10,5,5,0,114,13,20,0,114,0,114,37,22,0,114,70,45,0,114,0,114,19,13,0,114,8,12,0,114,0,114,38,20,33,22,0,114,0,114,25,17,13,12,26,15,5,7,0,114,0,114,0,114,66,39]
[null,"$400,000 to $499,999",0,114,0,114,0,114,39,37,0,114,7,7,0,114,0,114,0,114,6,9,0,114,0,114,4,6,0,114,0,114,0,114,3,4,0,114,8,13,0,114,0,114,50,30,0,114,17,20,0,114,0,114,6,6,0,114,0,114,0,114,0,114,5,8,17,18,0,114,0,114,4,7,4,5,0,114,0,114,0,114,0,114,0,114,10,14]
[null,"$500,000 to $749,999",0,114,0,114,0,114,15,20,0,114,15,11,0,114,0,114,0,114,0,114,0,114,0,114,6,8,0,114,0,114,2,3,3,4,0,114,11,16,0,114,0,114,11,10,0,114,7,14,0,114,0,114,2,4,0,114,0,114,0,114,0,114,30,22,16,14,0,114,0,114,3,5,0,114,0,114,0,114,0,114,0,114,0,114,5,9]
[null,"$750,000 to $999,999",0,114,0,114,0,114,0,114,0,114,0,114,0,114,0,114,11,17,0,114,0,114,0,114,0,114,0,114,0,114,2,3,0,114,0,114,0,114,0,114,0,114,5,8,0,114,0,114,0,114,0,114,0,114,0,114,0,114,0,114,0,114,0,114,0,114,0,114,0,114,0,114,0,114,0,114,0,114,0,114,0,114,0,114,0,114]
[null,"$1,000,000 or more",0,114,0,114,0,114,12,20,0,114,3,6,0,114,0,114,9,15,0,114,0,114,0,114,0,114,0,114,0,114,0,114,0,114,0,114,0,114,0,114,0,114,1,3,0,114,0,114,0,114,0,114,0,114,0,114,7,10,0,114,0,114,0,114,0,114,0,114,0,114,0,114,0,114,0,114,0,114,0,114,0,114,0,114,0,114]
[]
[]
[]
[]
[null,"B25077.MEDIAN VALUE (Dollars)"]
[null,"Universe:  OWNER-OCCUPIED HOUSING UNITS"]
[null,"Data Set: 2005-2009 American Community Survey 5-Year Estimates"]
[]
[null,null,"Atkinson and Gilmanton Grant",null,"Bean's Grant",null,"Bean's Purchase",null,"Berlin",null,"Cambridge",null,"Carroll",null,"Chandler's Purchase",null,"Clarksville",null,"Colebrook",null,"Columbia",null,"Crawford's Purchase",null,"Cutt's Grant",null,"Dalton",null,"Dix's Grant",null,"Dixville",null,"Dummer",null,"Errol",null,"Erving's Location",null,"Gorham",null,"Greens Grant",null,"Hadley's Purchase",null,"Jefferson",null,"Kilkenny",null,"Lancaster",null,"Low and Burbank's Grant",null,"Martin's Location",null,"Milan",null,"Millsfield",null,"Northumberland",null,"Odell",null,"Pinkham's Grant",null,"Pittsburg",null,"Randolph",null,"Sargent's Purchase",null,"Second College Grant",null,"Shelburne",null,"Stark",null,"Stewartstown",null,"Stratford",null,"Success",null,"Thompson and Meserves Purchase",null,"Wentworth's Location",null,"Whitefield"]
[null,null,"Estimate","Margin Of Error","Estimate","Margin Of Error","Estimate","Margin Of Error","Estimate","Margin Of Error","Estimate","Margin Of Error","Estimate","Margin Of Error","Estimate","Margin Of Error","Estimate","Margin Of Error","Estimate","Margin Of Error","Estimate","Margin Of Error","Estimate","Margin Of Error","Estimate","Margin Of Error","Estimate","Margin Of Error","Estimate","Margin Of Error","Estimate","Margin Of Error","Estimate","Margin Of Error","Estimate","Margin Of Error","Estimate","Margin Of Error","Estimate","Margin Of Error","Estimate","Margin Of Error","Estimate","Margin Of Error","Estimate","Margin Of Error","Estimate","Margin Of Error","Estimate","Margin Of Error","Estimate","Margin Of Error","Estimate","Margin Of Error","Estimate","Margin Of Error","Estimate","Margin Of Error","Estimate","Margin Of Error","Estimate","Margin Of Error","Estimate","Margin Of Error","Estimate","Margin Of Error","Estimate","Margin Of Error","Estimate","Margin Of Error","Estimate","Margin Of Error","Estimate","Margin Of Error","Estimate","Margin Of Error","Estimate","Margin Of Error","Estimate","Margin Of Error","Estimate","Margin Of Error","Estimate","Margin Of Error","Estimate","Margin Of Error","Estimate","Margin Of Error"]
[]
[null,"Median value (dollars)","**","**","**","**","**","**",97800,5423,"**","**",197300,25945,"**","**",148600,18907,124500,54126,172900,19173,"**","**","**","**",131800,25987,"**","**","**","**",160100,8387,132500,16641,"**","**",128300,14728,"**","**","**","**",206600,43074,"**","**",150600,11221,"**","**","**","**",133800,14422,"**","**",112100,10736,"**","**","**","**",179700,18851,278800,47632,"**","**","**","**",207900,28134,122100,30490,129800,15579,101200,28640,"**","**","**","**",125000,44680,147700,28951]

{"sheet":"ACS_Table_B25088","index":67,"n_rows":63,"n_cols":88,"rows_kept":63,"cut":false,"hidden":true,"merged":[]}
[null,"B25088. MEDIAN SELECTED MONTHLY OWNER COSTS (DOLLARS) BY MORTGAGE STATUS"]
[null,"Universe:  OWNER-OCCUPIED HOUSING UNITS"]
[null,"Data Set: 2015-2019 American Community Survey 5-Year Estimates"]
[]
[null,null,"Atkinson and Gilmanton Grant",null,"Bean's Grant",null,"Bean's Purchase",null,"Berlin",null,"Cambridge",null,"Carroll",null,"Chandler's Purchase",null,"Clarksville",null,"Colebrook",null,"Columbia",null,"Crawford's Purchase",null,"Cutt's Grant",null,"Dalton",null,"Dix's Grant",null,"Dixville",null,"Dummer",null,"Errol",null,"Erving's Location",null,"Gorham",null,"Greens Grant",null,"Hadley's Purchase",null,"Jefferson",null,"Kilkenny",null,"Lancaster",null,"Low and Burbank's Grant",null,"Martin's Location",null,"Milan",null,"Millsfield",null,"Northumberland",null,"Odell",null,"Pinkham's Grant",null,"Pittsburg",null,"Randolph",null,"Sargent's Purchase",null,"Second College Grant",null,"Shelburne",null,"Stark",null,"Stewartstown",null,"Stratford",null,"Success",null,"Thompson and Meserves Purchase",null,"Wentworth's Location",null,"Whitefield"]
[null,null,"Estimate","Margin Of Error","Estimate","Margin Of Error","Estimate","Margin Of Error","Estimate","Margin Of Error","Estimate","Margin Of Error","Estimate","Margin Of Error","Estimate","Margin Of Error","Estimate","Margin Of Error","Estimate","Margin Of Error","Estimate","Margin Of Error","Estimate","Margin Of Error","Estimate","Margin Of Error","Estimate","Margin Of Error","Estimate","Margin Of Error","Estimate","Margin Of Error","Estimate","Margin Of Error","Estimate","Margin Of Error","Estimate","Margin Of Error","Estimate","Margin Of Error","Estimate","Margin Of Error","Estimate","Margin Of Error","Estimate","Margin Of Error","Estimate","Margin Of Error","Estimate","Margin Of Error","Estimate","Margin Of Error","Estimate","Margin Of Error","Estimate","Margin Of Error","Estimate","Margin Of Error","Estimate","Margin Of Error","Estimate","Margin Of Error","Estimate","Margin Of Error","Estimate","Margin Of Error","Estimate","Margin Of Error","Estimate","Margin Of Error","Estimate","Margin Of Error","Estimate","Margin Of Error","Estimate","Margin Of Error","Estimate","Margin Of Error","Estimate","Margin Of Error","Estimate","Margin Of Error","Estimate","Margin Of Error","Estimate","Margin Of Error","Estimate","Margin Of Error"]
[null,"Median selected monthly owner costs (dollars)"]
[null,"Total:","-","**","-","**","-","**",830,59,"-","**",974,142,"-","**",1008,315,815,106,730,71,"-","**","-","**",792,191,"-","**","-","**",780,273,688,258,"-","**",915,90,"-","**","-","**",951,51,"-","**",990,113,"-","**","-","**",804,79,"-","**",755,84,"-","**","-","**",717,268,864,261,"-","**","-","**",950,313,783,143,720,104,677,101,"-","**","-","**",400,125,893,206]
[null,"Housing units with a mortgage (dollars)","-","**","-","**","-","**",1120,74,"-","**",1506,230,"-","**",1202,277,1223,139,1275,247,"-","**","-","**",1073,246,"-","**","-","**",1300,299,1625,107,"-","**",1477,161,"-","**","-","**",1514,216,"-","**",1383,136,"-","**","-","**",1140,109,"-","**",1031,109,"-","**","-","**",1505,269,1637,123,"-","**","-","**",1500,428,1175,121,1201,159,1104,189,"-","**","-","**","-","**",1429,175]
[null,"Housing units without a mortgage (dollars)","-","**","-","**","-","**",603,36,"-","**",661,115,"-","**",488,85,623,64,505,49,"-","**","-","**",577,74,"-","**","-","**",437,39,459,96,"-","**",597,54,"-","**","-","**",563,117,"-","**",659,134,"-","**","-","**",547,31,"-","**",536,44,"-","**","-","**",521,33,475,54,"-","**","-","**",578,99,506,56,543,44,560,52,"-","**","-","**",369,62,611,78]
[]
[]
[]
[]
[]
[]
[]
[]
[]
[]
[]
[]
[]
[]
[]
[]
[]
[]
[]
[]
[]
[]
[]
[]
[]
[]
[]
[]
[]
[null,"B25088. MEDIAN SELECTED MONTHLY OWNER COSTS (DOLLARS) BY MORTGAGE STATUS"]
[null,"Universe:  OWNER-OCCUPIED HOUSING UNITS"]
[null,"Data Set: 2010-2014 American Community Survey 5-Year Estimates"]
[]
[null,null,"Atkinson and Gilmanton Grant",null,"Bean's Grant",null,"Bean's Purchase",null,"Berlin",null,"Cambridge",null,"Carroll",null,"Chandler's Purchase",null,"Clarksville",null,"Colebrook",null,"Columbia",null,"Crawford's Purchase",null,"Cutt's Grant",null,"Dalton",null,"Dix's Grant",null,"Dixville",null,"Dummer",null,"Errol",null,"Erving's Location",null,"Gorham",null,"Greens Grant",null,"Hadley's Purchase",null,"Jefferson",null,"Kilkenny",null,"Lancaster",null,"Low and Burbank's Grant",null,"Martin's Location",null,"Milan",null,"Millsfield",null,"Northumberland",null,"Odell",null,"Pinkham's Grant",null,"Pittsburg",null,"Randolph",null,"Sargent's Purchase",null,"Second College Grant",null,"Shelburne",null,"Stark",null,"Stewartstown",null,"Stratford",null,"Success",null,"Thompson and Meserves Purchase",null,"Wentworth's Location",null,"Whitefield"]
[null,null,"Estimate","Margin Of Error","Estimate","Margin Of Error","Estimate","Margin Of Error","Estimate","Margin Of Error","Estimate","Margin Of Error","Estimate","Margin Of Error","Estimate","Margin Of Error","Estimate","Margin Of Error","Estimate","Margin Of Error","Estimate","Margin Of Error","Estimate","Margin Of Error","Estimate","Margin Of Error","Estimate","Margin Of Error","Estimate","Margin Of Error","Estimate","Margin Of Error","Estimate","Margin Of Error","Estimate","Margin Of Error","Estimate","Margin Of Error","Estimate","Margin Of Error","Estimate","Margin Of Error","Estimate","Margin Of Error","Estimate","Margin Of Error","Estimate","Margin Of Error","Estimate","Margin Of Error","Estimate","Margin Of Error","Estimate","Margin Of Error","Estimate","Margin Of Error","Estimate","Margin Of Error","Estimate","Margin Of Error","Estimate","Margin Of Error","Estimate","Margin Of Error","Estimate","Margin Of Error","Estimate","Margin Of Error","Estimate","Margin Of Error","Estimate","Margin Of Error","Estimate","Margin Of Error","Estimate","Margin Of Error","Estimate","Margin Of Error","Estimate","Margin Of Error","Estimate","Margin Of Error","Estimate","Margin Of Error","Estimate","Margin Of Error","Estimate","Margin Of Error"]
[null,"Median selected monthly owner costs (dollars)"]
[null,"Total:","-","**","-","**","-","**",774,48,200,351,1041,227,"-","**",670,244,695,173,863,158,"-","**","-","**",884,152,"-","**","-","**",686,319,575,241,"-","**",932,96,"-","**","-","**","-","**","-","**",890,128,"-","**","-","**","100-","***",725,1741,"-","**","-","**","-","**",688,61,839,130,"-","**","-","**",958,312,685,255,824,258,"-","**","-","**","-","**",829,220,1008,91]
[null,"Housing units with a mortgage (dollars)","-","**","-","**","-","**",1195,51,"-","**",1262,206,"-","**",1023,148,1170,89,1188,143,"-","**","-","**",1271,171,"-","**","-","**",981,265,1192,198,"-","**",1316,127,"-","**","-","**","-","**","-","**",1188,68,"-","**","-","**","-","**","-","**","-","**","-","**","-","**",1299,310,1549,161,"-","**","-","**",1500,199,1283,149,1258,335,"-","**","-","**","-","**",879,408,1198,82]
[null,"Housing units without a mortgage (dollars)","-","**","-","**","-","**",568,34,"-","**",531,141,"-","**",458,51,531,50,547,91,"-","**","-","**",516,108,"-","**","-","**",525,78,356,63,"-","**",582,41,"-","**","-","**","-","**","-","**",612,139,"-","**","-","**","-","**","-","**","-","**","-","**","-","**",442,51,708,68,"-","**","-","**",626,65,486,57,411,122,"-","**","-","**","-","**",335,160,574,82]
[]
[]
[]
[]
[null,"B25088. MEDIAN SELECTED MONTHLY OWNER COSTS (DOLLARS) BY MORTGAGE STATUS"]
[null,"Universe:  OWNER-OCCUPIED HOUSING UNITS"]
[null,"Data Set: 2005-2009 American Community Survey 5-Year Estimates"]
[]
[null,null,"Atkinson and Gilmanton Grant",null,"Bean's Grant",null,"Bean's Purchase",null,"Berlin",null,"Cambridge",null,"Carroll",null,"Chandler's Purchase",null,"Clarksville",null,"Colebrook",null,"Columbia",null,"Crawford's Purchase",null,"Cutt's Grant",null,"Dalton",null,"Dix's Grant",null,"Dixville Township",null,"Dummer",null,"Errol",null,"Erving's Location",null,"Gorham",null,"Greens Grant",null,"Hadley's Purchase",null,"Jefferson",null,"Kilkenny Township",null,"Lancaster",null,"Low and Burbank's Grant",null,"Martin's Location",null,"Milan",null,"Millsfield Township",null,"Northumberland",null,"Odell Township",null,"Pinkham's Grant",null,"Pittsburg",null,"Randolph",null,"Sargent's Purchase",null,"Second College Grant",null,"Shelburne",null,"Stark",null,"Stewartstown",null,"Stratford",null,"Success Township",null,"Thompson and Meserves Purchase",null,"Wentworth's Location",null,"Whitefield"]
[null,null,"Estimate","Margin Of Error","Estimate","Margin Of Error","Estimate","Margin Of Error","Estimate","Margin Of Error","Estimate","Margin Of Error","Estimate","Margin Of Error","Estimate","Margin Of Error","Estimate","Margin Of Error","Estimate","Margin Of Error","Estimate","Margin Of Error","Estimate","Margin Of Error","Estimate","Margin Of Error","Estimate","Margin Of Error","Estimate","Margin Of Error","Estimate","Margin Of Error","Estimate","Margin Of Error","Estimate","Margin Of Error","Estimate","Margin Of Error","Estimate","Margin Of Error","Estimate","Margin Of Error","Estimate","Margin Of Error","Estimate","Margin Of Error","Estimate","Margin Of Error","Estimate","Margin Of Error","Estimate","Margin Of Error","Estimate","Margin Of Error","Estimate","Margin Of Error","Estimate","Margin Of Error","Estimate","Margin Of Error","Estimate","Margin Of Error","Estimate","Margin Of Error","Estimate","Margin Of Error","Estimate","Margin Of Error","Estimate","Margin Of Error","Estimate","Margin Of Error","Estimate","Margin Of Error","Estimate","Margin Of Error","Estimate","Margin Of Error","Estimate","Margin Of Error","Estimate","Margin Of Error","Estimate","Margin Of Error","Estimate","Margin Of Error","Estimate","Margin Of Error"]
[null,"Median selected monthly owner costs (dollars)"]
[null,"Total:","**","**","**","**","**","**",835,36,"**","**",1099,134,"**","**",688,140,724,140,657,131,"**","**","**","**",856,209,"**","**","**","**",883,735,413,76,"**","**",781,125,"**","**","**","**",934,125,"**","**",1019,226,"**","**","**","**",656,78,"**","**",705,94,"**","**","**","**",738,164,755,151,"**","**","**","**",1117,337,556,87,603,72,582,82,"**","**","**","**",500,82,1041,143]
[null,"Housing units with a mortgage (dollars)","**","**","**","**","**","**",1134,48,"**","**",1257,146,"**","**",1059,153,1288,160,1165,246,"**","**","**","**",1354,251,"**","**","**","**",1352,67,967,529,"**","**",1353,168,"**","**","**","**",1142,196,"**","**",1371,167,"**","**","**","**",1060,114,"**","**",1113,149,"**","**","**","**",1092,265,1381,511,"**","**","**","**",1510,190,1045,248,857,71,867,42,"**","**","**","**",550,363,1229,110]
[null,"Housing units without a mortgage (dollars)","**","**","**","**","**","**",557,32,"**","**",697,97,"**","**",441,58,528,50,449,69,"**","**","**","**",483,77,"**","**","**","**",417,71,324,27,"**","**",488,54,"**","**","**","**",605,71,"**","**",527,70,"**","**","**","**",417,42,"**","**",509,39,"**","**","**","**",434,40,564,50,"**","**","**","**",556,38,442,55,438,40,436,52,"**","**","**","**",475,65,522,140]

{"sheet":"ACS_Table_B25106","index":68,"n_rows":175,"n_cols":88,"rows_kept":175,"cut":false,"hidden":true,"merged":[]}
[null,"B25106. TENURE BY HOUSING COSTS AS A PERCENTAGE OF HOUSEHOLD INCOME IN THE PAST 12 MONTHS"]
[null,"Universe:  OCCUPIED HOUSING UNITS"]
[null,"Data Set: 2015-2019 American Community Survey 5-Year Estimates"]
[]
[null,null,"Atkinson and Gilmanton Academy grant",null,"Beans grant",null,"Beans purchase",null,"Berlin",null,"Cambridge",null,"Carroll",null,"Chandlers purchase",null,"Clarksville",null,"Colebrook",null,"Columbia",null,"Crawfords purchase",null,"Cutts grant",null,"Dalton",null,"Dixs grant",null,"Dixville",null,"Dummer",null,"Errol",null,"Ervings location",null,"Gorham",null,"Greens grant",null,"Hadleys purchase",null,"Jefferson",null,"Kilkenny",null,"Lancaster",null,"Low and Burbanks grant",null,"Martins location",null,"Milan",null,"Millsfield",null,"Northumberland",null,"Odell",null,"Pinkhams grant",null,"Pittsburg",null,"Randolph",null,"Sargents purchase",null,"Second College grant",null,"Shelburne",null,"Stark",null,"Stewartstown",null,"Stratford",null,"Success",null,"Thompson and Meserves purchase",null,"Wentworth location",null,"Whitefield"]
[null,null,"Estimate","Margin of Error","Estimate","Margin of Error","Estimate","Margin of Error","Estimate","Margin of Error","Estimate","Margin of Error","Estimate","Margin of Error","Estimate","Margin of Error","Estimate","Margin of Error","Estimate","Margin of Error","Estimate","Margin of Error","Estimate","Margin of Error","Estimate","Margin of Error","Estimate","Margin of Error","Estimate","Margin of Error","Estimate","Margin of Error","Estimate","Margin of Error","Estimate","Margin of Error","Estimate","Margin of Error","Estimate","Margin of Error","Estimate","Margin of Error","Estimate","Margin of Error","Estimate","Margin of Error","Estimate","Margin of Error","Estimate","Margin of Error","Estimate","Margin of Error","Estimate","Margin of Error","Estimate","Margin of Error","Estimate","Margin of Error","Estimate","Margin of Error","Estimate","Margin of Error","Estimate","Margin of Error","Estimate","Margin of Error","Estimate","Margin of Error","Estimate","Margin of Error","Estimate","Margin of Error","Estimate","Margin of Error","Estimate","Margin of Error","Estimate","Margin of Error","Estimate","Margin of Error","Estimate","Margin of Error","Estimate","Margin of Error","Estimate","Margin of Error","Estimate","Margin of Error"]
[null,"Total:",0,11,0,11,0,11,3977,201,0,11,324,49,0,11,141,40,954,84,316,51,0,11,0,11,424,64,0,11,1,4,127,25,113,29,0,11,1243,99,0,11,0,11,396,58,0,11,1366,149,0,11,0,11,589,53,4,6,984,88,0,11,0,11,423,57,196,39,0,11,0,11,200,30,233,40,418,64,277,49,0,11,0,11,16,9,1046,111]
[null,"Owner occupied housing units:",0,11,0,11,0,11,2228,192,0,11,252,49,0,11,130,39,698,79,267,47,0,11,0,11,364,62,0,11,1,4,114,24,95,27,0,11,960,80,0,11,0,11,346,48,0,11,1019,108,0,11,0,11,499,49,4,6,660,86,0,11,0,11,336,50,161,36,0,11,0,11,163,29,198,39,370,54,206,41,0,11,0,11,14,9,643,78]
[null,"Less than $20,000:",0,11,0,11,0,11,232,82,0,11,17,13,0,11,5,5,77,36,29,15,0,11,0,11,34,21,0,11,0,11,9,14,24,15,0,11,104,56,0,11,0,11,16,10,0,11,92,45,0,11,0,11,21,12,0,11,73,32,0,11,0,11,37,25,9,6,0,11,0,11,4,4,29,15,35,21,59,30,0,11,0,11,2,3,56,25]
[null,"Less than 20 percent",0,11,0,11,0,11,0,18,0,11,0,11,0,11,0,11,0,11,0,11,0,11,0,11,0,11,0,11,0,11,4,7,0,11,0,11,0,11,0,11,0,11,0,11,0,11,0,11,0,11,0,11,0,11,0,11,5,7,0,11,0,11,4,8,0,11,0,11,0,11,0,11,0,11,10,14,0,11,0,11,0,11,2,3,6,9]
[null,"20 to 29 percent",0,11,0,11,0,11,23,22,0,11,0,11,0,11,0,11,6,9,8,8,0,11,0,11,0,11,0,11,0,11,1,2,0,11,0,11,43,42,0,11,0,11,3,4,0,11,9,14,0,11,0,11,0,11,0,11,16,14,0,11,0,11,7,7,3,4,0,11,0,11,0,11,2,3,12,11,10,12,0,11,0,11,0,11,5,7]
[null,"30 percent or more",0,11,0,11,0,11,209,78,0,11,17,13,0,11,5,5,71,33,21,12,0,11,0,11,34,21,0,11,0,11,4,9,24,15,0,11,61,37,0,11,0,11,13,9,0,11,83,45,0,11,0,11,21,12,0,11,52,27,0,11,0,11,26,24,6,5,0,11,0,11,4,4,27,15,13,8,49,27,0,11,0,11,0,11,45,22]
[null,"$20,000 to $34,999:",0,11,0,11,0,11,373,89,0,11,39,18,0,11,32,17,179,60,68,27,0,11,0,11,48,25,0,11,0,11,17,13,12,9,0,11,46,31,0,11,0,11,93,35,0,11,179,73,0,11,0,11,62,19,0,11,75,26,0,11,0,11,46,19,4,4,0,11,0,11,14,12,28,16,83,35,23,11,0,11,0,11,6,6,120,73]
[null,"Less than 20 percent",0,11,0,11,0,11,47,32,0,11,6,5,0,11,16,13,40,34,14,10,0,11,0,11,7,8,0,11,0,11,2,3,11,10,0,11,0,11,0,11,0,11,14,16,0,11,39,45,0,11,0,11,12,8,0,11,16,12,0,11,0,11,7,7,0,11,0,11,0,11,1,4,8,8,13,14,9,8,0,11,0,11,4,5,20,25]
[null,"20 to 29 percent",0,11,0,11,0,11,152,63,0,11,11,11,0,11,7,5,70,46,30,16,0,11,0,11,7,7,0,11,0,11,6,5,0,11,0,11,30,25,0,11,0,11,38,21,0,11,79,49,0,11,0,11,14,9,0,11,31,18,0,11,0,11,7,7,4,4,0,11,0,11,7,7,8,7,46,28,4,5,0,11,0,11,2,3,27,36]
[null,"30 percent or more",0,11,0,11,0,11,174,66,0,11,22,14,0,11,9,7,69,37,24,19,0,11,0,11,34,21,0,11,0,11,9,10,1,3,0,11,16,18,0,11,0,11,41,25,0,11,61,41,0,11,0,11,36,15,0,11,28,17,0,11,0,11,32,18,0,11,0,11,0,11,6,8,12,9,24,19,10,7,0,11,0,11,0,11,73,53]
[null,"$35,000 to $49,999:",0,11,0,11,0,11,342,114,0,11,34,18,0,11,28,19,87,40,45,22,0,11,0,11,74,37,0,11,0,11,21,11,4,6,0,11,210,65,0,11,0,11,36,14,0,11,110,56,0,11,0,11,127,38,0,11,146,51,0,11,0,11,64,25,30,15,0,11,0,11,26,13,47,19,64,30,44,17,0,11,0,11,5,5,104,35]
[null,"Less than 20 percent",0,11,0,11,0,11,139,63,0,11,11,10,0,11,7,8,35,28,23,16,0,11,0,11,44,32,0,11,0,11,13,8,1,3,0,11,86,55,0,11,0,11,18,11,0,11,44,37,0,11,0,11,69,31,0,11,72,36,0,11,0,11,29,18,21,13,0,11,0,11,8,7,20,11,29,18,25,13,0,11,0,11,2,3,39,26]
[null,"20 to 29 percent",0,11,0,11,0,11,167,86,0,11,7,6,0,11,0,11,27,17,14,14,0,11,0,11,19,13,0,11,0,11,7,7,3,5,0,11,70,41,0,11,0,11,12,9,0,11,20,17,0,11,0,11,39,24,0,11,31,18,0,11,0,11,3,4,5,5,0,11,0,11,9,7,6,6,8,8,13,11,0,11,0,11,0,11,25,17]
[null,"30 percent or more",0,11,0,11,0,11,36,29,0,11,16,12,0,11,21,17,25,21,8,7,0,11,0,11,11,14,0,11,0,11,1,2,0,11,0,11,54,34,0,11,0,11,6,7,0,11,46,33,0,11,0,11,19,12,0,11,43,34,0,11,0,11,32,17,4,5,0,11,0,11,9,8,21,12,27,26,6,9,0,11,0,11,3,4,40,19]
[null,"$50,000 to $74,999:",0,11,0,11,0,11,459,112,0,11,64,26,0,11,20,13,103,35,55,28,0,11,0,11,119,48,0,11,1,4,27,15,21,14,0,11,179,60,0,11,0,11,62,22,0,11,255,90,0,11,0,11,95,33,0,11,178,60,0,11,0,11,122,39,20,10,0,11,0,11,31,15,39,18,53,29,44,25,0,11,0,11,1,3,128,50]
[null,"Less than 20 percent",0,11,0,11,0,11,306,90,0,11,39,22,0,11,6,5,54,26,28,15,0,11,0,11,59,34,0,11,0,11,18,11,12,10,0,11,115,50,0,11,0,11,31,14,0,11,123,63,0,11,0,11,62,27,0,11,150,55,0,11,0,11,81,35,11,8,0,11,0,11,19,11,22,12,50,28,32,26,0,11,0,11,1,3,75,40]
[null,"20 to 29 percent",0,11,0,11,0,11,108,61,0,11,8,6,0,11,4,7,33,20,20,18,0,11,0,11,27,23,0,11,1,4,3,4,0,11,0,11,64,35,0,11,0,11,23,17,0,11,69,49,0,11,0,11,10,8,0,11,28,21,0,11,0,11,7,7,7,6,0,11,0,11,2,4,15,15,3,4,9,8,0,11,0,11,0,11,23,18]
[null,"30 percent or more",0,11,0,11,0,11,45,30,0,11,17,14,0,11,10,9,16,11,7,12,0,11,0,11,33,25,0,11,0,11,6,8,9,10,0,11,0,11,0,11,0,11,8,7,0,11,63,55,0,11,0,11,23,18,0,11,0,11,0,11,0,11,34,24,2,3,0,11,0,11,10,11,2,3,0,11,3,4,0,11,0,11,0,11,30,24]
[null,"$75,000 or more:",0,11,0,11,0,11,805,159,0,11,96,32,0,11,45,21,252,58,70,22,0,11,0,11,87,32,0,11,0,11,40,16,34,16,0,11,421,63,0,11,0,11,139,33,0,11,383,89,0,11,0,11,181,33,4,6,188,43,0,11,0,11,67,30,98,29,0,11,0,11,88,26,53,23,135,46,31,12,0,11,0,11,0,11,235,53]
[null,"Less than 20 percent",0,11,0,11,0,11,740,155,0,11,76,26,0,11,45,21,205,49,67,22,0,11,0,11,77,30,0,11,0,11,26,9,28,15,0,11,347,73,0,11,0,11,114,32,0,11,318,91,0,11,0,11,167,32,4,6,164,45,0,11,0,11,43,23,82,28,0,11,0,11,73,25,39,18,117,45,31,12,0,11,0,11,0,11,164,46]
[null,"20 to 29 percent",0,11,0,11,0,11,60,51,0,11,20,18,0,11,0,11,38,34,3,4,0,11,0,11,10,9,0,11,0,11,12,10,0,11,0,11,43,29,0,11,0,11,17,11,0,11,51,43,0,11,0,11,14,10,0,11,24,18,0,11,0,11,21,16,12,8,0,11,0,11,14,9,14,16,18,17,0,11,0,11,0,11,0,11,51,34]
[null,"30 percent or more",0,11,0,11,0,11,5,11,0,11,0,11,0,11,0,11,9,9,0,11,0,11,0,11,0,11,0,11,0,11,2,3,6,8,0,11,31,33,0,11,0,11,8,9,0,11,14,14,0,11,0,11,0,11,0,11,0,11,0,11,0,11,3,5,4,5,0,11,0,11,1,2,0,11,0,11,0,11,0,11,0,11,0,11,20,19]
[null,"Zero or negative income",0,11,0,11,0,11,17,18,0,11,2,3,0,11,0,11,0,11,0,11,0,11,0,11,2,3,0,11,0,11,0,11,0,11,0,11,0,11,0,11,0,11,0,11,0,11,0,11,0,11,0,11,13,14,0,11,0,11,0,11,0,11,0,11,0,11,0,11,0,11,0,11,2,3,0,11,5,5,0,11,0,11,0,11,0,11]
[null,"Renter occupied housing units:",0,11,0,11,0,11,1749,196,0,11,72,32,0,11,11,7,256,55,49,22,0,11,0,11,60,28,0,11,0,11,13,8,18,12,0,11,283,83,0,11,0,11,50,32,0,11,347,116,0,11,0,11,90,41,0,11,324,61,0,11,0,11,87,31,35,17,0,11,0,11,37,18,35,19,48,40,71,29,0,11,0,11,2,3,403,105]
[null,"Less than $20,000:",0,11,0,11,0,11,655,147,0,11,2,3,0,11,1,2,50,31,8,9,0,11,0,11,6,6,0,11,0,11,2,3,3,3,0,11,73,31,0,11,0,11,3,4,0,11,84,67,0,11,0,11,0,11,0,11,71,31,0,11,0,11,34,27,0,11,0,11,0,11,12,9,6,6,14,18,30,16,0,11,0,11,0,11,128,67]
[null,"Less than 20 percent",0,11,0,11,0,11,29,32,0,11,0,11,0,11,0,11,0,11,0,11,0,11,0,11,0,11,0,11,0,11,0,11,0,11,0,11,0,11,0,11,0,11,0,11,0,11,0,11,0,11,0,11,0,11,0,11,0,11,0,11,0,11,0,11,0,11,0,11,0,11,0,11,0,11,0,11,2,4,0,11,0,11,0,11,0,11]
[null,"20 to 29 percent",0,11,0,11,0,11,193,91,0,11,0,11,0,11,0,11,15,17,0,11,0,11,0,11,0,11,0,11,0,11,0,11,0,11,0,11,27,25,0,11,0,11,0,11,0,11,9,14,0,11,0,11,0,11,0,11,11,11,0,11,0,11,7,8,0,11,0,11,0,11,0,11,2,3,3,5,19,11,0,11,0,11,0,11,18,16]
[null,"30 percent or more",0,11,0,11,0,11,433,117,0,11,2,3,0,11,1,2,35,27,8,9,0,11,0,11,6,6,0,11,0,11,2,3,3,3,0,11,46,25,0,11,0,11,3,4,0,11,75,64,0,11,0,11,0,11,0,11,60,30,0,11,0,11,27,26,0,11,0,11,0,11,12,9,4,5,11,17,9,13,0,11,0,11,0,11,110,66]
[null,"$20,000 to $34,999:",0,11,0,11,0,11,451,156,0,11,12,12,0,11,3,4,109,47,5,5,0,11,0,11,6,6,0,11,0,11,1,3,1,2,0,11,33,27,0,11,0,11,24,29,0,11,72,54,0,11,0,11,14,19,0,11,91,39,0,11,0,11,18,19,14,13,0,11,0,11,8,8,7,11,18,21,22,17,0,11,0,11,0,11,90,44]
[null,"Less than 20 percent",0,11,0,11,0,11,22,25,0,11,0,11,0,11,3,4,0,11,0,11,0,11,0,11,0,11,0,11,0,11,0,11,0,11,0,11,11,19,0,11,0,11,0,11,0,11,0,11,0,11,0,11,0,11,0,11,26,27,0,11,0,11,12,17,0,11,0,11,0,11,4,6,7,11,0,11,0,11,0,11,0,11,0,11,22,33]
[null,"20 to 29 percent",0,11,0,11,0,11,202,114,0,11,0,11,0,11,0,11,20,17,2,3,0,11,0,11,0,11,0,11,0,11,0,11,1,2,0,11,13,18,0,11,0,11,19,28,0,11,39,47,0,11,0,11,0,11,0,11,34,23,0,11,0,11,3,5,0,11,0,11,0,11,2,4,0,11,15,21,15,16,0,11,0,11,0,11,24,23]
[null,"30 percent or more",0,11,0,11,0,11,227,125,0,11,12,12,0,11,0,11,89,45,3,4,0,11,0,11,6,6,0,11,0,11,1,3,0,11,0,11,9,12,0,11,0,11,5,6,0,11,33,26,0,11,0,11,14,19,0,11,31,21,0,11,0,11,3,4,14,13,0,11,0,11,2,3,0,11,3,5,7,7,0,11,0,11,0,11,44,36]
[null,"$35,000 to $49,999:",0,11,0,11,0,11,377,129,0,11,6,6,0,11,0,11,33,23,5,7,0,11,0,11,8,8,0,11,0,11,2,3,0,11,0,11,59,49,0,11,0,11,5,6,0,11,94,57,0,11,0,11,4,6,0,11,70,35,0,11,0,11,27,21,0,11,0,11,0,11,4,6,0,11,0,11,6,10,0,11,0,11,0,11,17,16]
[null,"Less than 20 percent",0,11,0,11,0,11,46,41,0,11,0,11,0,11,0,11,27,21,0,11,0,11,0,11,8,8,0,11,0,11,0,11,0,11,0,11,15,19,0,11,0,11,0,11,0,11,29,29,0,11,0,11,3,5,0,11,28,28,0,11,0,11,15,16,0,11,0,11,0,11,0,11,0,11,0,11,0,11,0,11,0,11,0,11,0,11]
[null,"20 to 29 percent",0,11,0,11,0,11,177,79,0,11,2,3,0,11,0,11,6,8,3,4,0,11,0,11,0,11,0,11,0,11,0,11,0,11,0,11,44,45,0,11,0,11,0,11,0,11,65,51,0,11,0,11,1,3,0,11,42,25,0,11,0,11,9,14,0,11,0,11,0,11,4,6,0,11,0,11,6,10,0,11,0,11,0,11,17,16]
[null,"30 percent or more",0,11,0,11,0,11,154,92,0,11,4,5,0,11,0,11,0,11,2,5,0,11,0,11,0,11,0,11,0,11,2,3,0,11,0,11,0,11,0,11,0,11,5,6,0,11,0,11,0,11,0,11,0,11,0,11,0,11,0,11,0,11,3,4,0,11,0,11,0,11,0,11,0,11,0,11,0,11,0,11,0,11,0,11,0,11]
[null,"$50,000 to $74,999:",0,11,0,11,0,11,142,82,0,11,24,18,0,11,0,11,18,19,3,4,0,11,0,11,31,23,0,11,0,11,2,3,4,6,0,11,92,65,0,11,0,11,11,11,0,11,53,43,0,11,0,11,32,17,0,11,11,11,0,11,0,11,4,7,10,9,0,11,0,11,6,7,0,11,14,20,4,5,0,11,0,11,0,11,92,52]
[null,"Less than 20 percent",0,11,0,11,0,11,106,73,0,11,13,12,0,11,0,11,11,16,0,11,0,11,0,11,4,6,0,11,0,11,2,3,4,6,0,11,69,60,0,11,0,11,6,8,0,11,41,38,0,11,0,11,20,15,0,11,11,11,0,11,0,11,0,11,8,8,0,11,0,11,4,6,0,11,14,20,2,3,0,11,0,11,0,11,48,34]
[null,"20 to 29 percent",0,11,0,11,0,11,36,35,0,11,11,14,0,11,0,11,7,11,3,4,0,11,0,11,27,21,0,11,0,11,0,11,0,11,0,11,23,23,0,11,0,11,0,11,0,11,12,20,0,11,0,11,4,5,0,11,0,11,0,11,0,11,4,7,2,3,0,11,0,11,2,3,0,11,0,11,2,4,0,11,0,11,0,11,36,40]
[null,"30 percent or more",0,11,0,11,0,11,0,18,0,11,0,11,0,11,0,11,0,11,0,11,0,11,0,11,0,11,0,11,0,11,0,11,0,11,0,11,0,11,0,11,0,11,5,6,0,11,0,11,0,11,0,11,8,7,0,11,0,11,0,11,0,11,0,11,0,11,0,11,0,11,0,11,0,11,0,11,0,11,0,11,0,11,0,11,8,9]
[null,"$75,000 or more:",0,11,0,11,0,11,78,60,0,11,18,17,0,11,5,6,16,16,6,6,0,11,0,11,5,7,0,11,0,11,0,11,3,7,0,11,7,13,0,11,0,11,4,5,0,11,37,45,0,11,0,11,25,28,0,11,54,37,0,11,0,11,0,11,9,7,0,11,0,11,2,3,11,11,0,11,0,11,0,11,0,11,0,11,55,32]
[null,"Less than 20 percent",0,11,0,11,0,11,78,60,0,11,18,17,0,11,5,6,16,16,6,6,0,11,0,11,5,7,0,11,0,11,0,11,3,7,0,11,7,13,0,11,0,11,4,5,0,11,37,45,0,11,0,11,25,28,0,11,39,29,0,11,0,11,0,11,7,7,0,11,0,11,2,3,11,11,0,11,0,11,0,11,0,11,0,11,55,32]
[null,"20 to 29 percent",0,11,0,11,0,11,0,18,0,11,0,11,0,11,0,11,0,11,0,11,0,11,0,11,0,11,0,11,0,11,0,11,0,11,0,11,0,11,0,11,0,11,0,11,0,11,0,11,0,11,0,11,0,11,0,11,15,22,0,11,0,11,0,11,2,3,0,11,0,11,0,11,0,11,0,11,0,11,0,11,0,11,0,11,0,11]
[null,"30 percent or more",0,11,0,11,0,11,0,18,0,11,0,11,0,11,0,11,0,11,0,11,0,11,0,11,0,11,0,11,0,11,0,11,0,11,0,11,0,11,0,11,0,11,0,11,0,11,0,11,0,11,0,11,0,11,0,11,0,11,0,11,0,11,0,11,0,11,0,11,0,11,0,11,0,11,0,11,0,11,0,11,0,11,0,11,0,11]
[null,"Zero or negative income",0,11,0,11,0,11,17,19,0,11,0,11,0,11,1,3,0,11,0,11,0,11,0,11,0,11,0,11,0,11,0,11,0,11,0,11,0,11,0,11,0,11,0,11,0,11,0,11,0,11,0,11,0,11,0,11,0,11,0,11,0,11,0,11,0,11,0,11,0,11,0,11,0,11,0,11,0,11,0,11,0,11,0,11,21,33]
[null,"No cash rent",0,11,0,11,0,11,29,24,0,11,10,11,0,11,1,3,30,29,22,19,0,11,0,11,4,6,0,11,0,11,6,5,7,8,0,11,19,22,0,11,0,11,3,5,0,11,7,10,0,11,0,11,15,10,0,11,27,20,0,11,0,11,4,5,2,3,0,11,0,11,5,6,11,12,2,3,9,11,0,11,0,11,2,3,0,11]
[]
[]
[]
[]
[]
[]
[null,"Calculated B25106. TENURE BY HOUSING COSTS AS A PERCENTAGE OF HOUSEHOLD INCOME IN THE PAST 12 MONTHS"]
[null,"Universe:  OCCUPIED HOUSING UNITS"]
[null,"Data Set: 2015-2019 American Community Survey 5-Year Estimates"]
[]
[null,null,"Atkinson and Gilmanton Academy Grant",null,"Beans Grant",null,"Beans Purchase",null,"Berlin",null,"Cambridge",null,"Carroll",null,"Chandlers Purchase",null,"Clarksville",null,"Colebrook",null,"Columbia",null,"Crawfords Purchase",null,"Cutts Grant",null,"Dalton",null,"Dixs Grant",null,"Dixville",null,"Dummer",null,"Errol",null,"Ervings location",null,"Gorham",null,"Greens Grant",null,"Hadleys Purchase",null,"Jefferson",null,"Kilkenny",null,"Lancaster",null,"Low and Burbanks Grant",null,"Martins location",null,"Milan",null,"Millsfield",null,"Northumberland",null,"Odell",null,"Pinkhams Grant",null,"Pittsburg",null,"Randolph",null,"Sargents Purchase",null,"Second College Grant",null,"Shelburne",null,"Stark",null,"Stewartstown",null,"Stratford",null,"Success",null,"Thompson and Meserves Purchase",null,"Wentworth location",null,"Whitefield"]
[null,null,"Estimate","Margin of Error","Estimate","Margin of Error","Estimate","Margin of Error","Estimate","Margin of Error","Estimate","Margin of Error","Estimate","Margin of Error","Estimate","Margin of Error","Estimate","Margin of Error","Estimate","Margin of Error","Estimate","Margin of Error","Estimate","Margin of Error","Estimate","Margin of Error","Estimate","Margin of Error","Estimate","Margin of Error","Estimate","Margin of Error","Estimate","Margin of Error","Estimate","Margin of Error","Estimate","Margin of Error","Estimate","Margin of Error","Estimate","Margin of Error","Estimate","Margin of Error","Estimate","Margin of Error","Estimate","Margin of Error","Estimate","Margin of Error","Estimate","Margin of Error","Estimate","Margin of Error","Estimate","Margin of Error","Estimate","Margin of Error","Estimate","Margin of Error","Estimate","Margin of Error","Estimate","Margin of Error","Estimate","Margin of Error","Estimate","Margin of Error","Estimate","Margin of Error","Estimate","Margin of Error","Estimate","Margin of Error","Estimate","Margin of Error","Estimate","Margin of Error","Estimate","Margin of Error","Estimate","Margin of Error","Estimate","Margin of Error","Estimate","Margin of Error","Estimate","Margin of Error"]
[null,{"$f":"B7","v":"Total:"},0,11,0,11,0,11,3977,201,0,11,324,49,0,11,141,40,954,84,316,51,0,11,{"$f":"Y7","v":0},11,424,64,0,11,1,4,127,25,113,29,0,11,1243,99,0,11,0,11,396,58,0,11,1366,149,0,11,0,11,589,53,4,6,984,88,0,11,0,11,423,57,196,39,0,11,0,11,200,30,233,40,418,64,277,49,0,11,0,11,16,9,1046,111]
[null,"Owner occupied housing units:",0,11,0,11,0,11,2228,192,0,11,252,49,0,11,130,39,698,79,267,47,0,11,{"$f":"Y8","v":0},11,364,62,0,11,1,4,114,24,95,27,0,11,960,80,0,11,0,11,346,48,0,11,1019,108,0,11,0,11,499,49,4,6,660,86,0,11,0,11,336,50,161,36,0,11,0,11,163,29,198,39,370,54,206,41,0,11,0,11,14,9,643,78]
[null,"Less than 20 percent",{"$f":"C10+C14+C18+C22+C26","v":0},{"$f":"SQRT((D10^2)+(D14^2)+(D18^2)+(D22^2)+(D26^2))","v":24.596747752497688},{"$f":"SQRT((E10^2)+(E14^2)+(E18^2)+(E22^2)+(E26^2))","v":0},24.596747752497688,0,24.596747752497688,814.10441590744369,193.49935400408964,0,24.596747752497688,86.336550776597505,37.49666651850535,0,24.596747752497688,48.641546028061235,28.635642126552707,218.55434106876029,71.679843749829701,77.446755903652928,34.438350715445125,0,24.596747752497688,{"$f":"SQRT((Y10^2)+(Y14^2)+(Y18^2)+(Y22^2)+(Y26^2))","v":0},24.596747752497688,106.74736530706507,57.140178508646613,0,24.596747752497688,0,24.596747752497688,34.481879299133332,18,32.403703492039298,23.558437978779494,0,24.596747752497688,375.53961175886627,105.33755265810954,0,24.596747752497688,0,24.596747752497688,120.3204055844228,41.448763552125413,0,24.596747752497688,345.99132937112745,125.55875118843768,0,24.596747752497688,0,24.596747752497688,191.41055352304897,53.842362503887216,4,22.803508501982758,234.22425151977751,80.864083498176129,0,24.596747752497688,0,24.596747752497688,96.519428096109237,46.808118953873802,85.358069331493198,35.482389998420345,0,24.596747752497688,0,24.596747752497688,75.861716300120705,30.528675044947494,49.689032995219378,27.820855486487112,131.52566289511716,59.371710435189584,51.874849397371747,34.26368339802363,0,24.596747752497688,0,24.596747752497688,5,13.152946437965905,185.6825247566394,71.400280111495363]
[null,"20 to 29 percent",{"$f":"C11+C15+C19+C23+C27","v":0},{"$f":"SQRT((D11^2)+(D15^2)+(D19^2)+(D23^2)+(D27^2))","v":24.596747752497688},0,24.596747752497688,0,24.596747752497688,258.42987443405224,134.79985163196582,0,24.596747752497688,25.179356624028344,25.258661880630179,0,24.596747752497688,8.0622577482985491,20.904544960366874,90.542807555321588,63.576725301009333,39.610604640676719,29.257477676655586,0,24.596747752497688,{"$f":"SQRT((Y11^2)+(Y15^2)+(Y19^2)+(Y23^2)+(Y27^2))","v":0},24.596747752497688,35.199431813596085,30.805843601498726,0,24.596747752497688,1,22.360679774997898,15.459624833740307,13.928388277184119,3,22.561028345356956,0,24.596747752497688,116.59331027121581,78.332624110264561,0,24.596747752497688,0,24.596747752497688,49.142649501222458,30.789608636681304,0,24.596747752497688,118.67602959317438,84.474848327771497,0,24.596747752497688,0,24.596747752497688,44.866468548349111,30.692018506445613,0,24.596747752497688,59.481089431852205,40.11234224026316,0,24.596747752497688,0,24.596747752497688,24.433583445741231,20.46948949045872,15.588457268119896,12.529964086141668,0,24.596747752497688,0,24.596747752497688,18.165902124584949,17.776388834631177,22.912878474779198,23.979157616563597,51.546095875439491,35.693136595149497,19.131126469708992,21.794494717703369,0,24.596747752497688,0,24.596747752497688,2,22.203603311174518,67.149087856798175,55.803225713214822]
[null,"30 percent or more",{"$f":"C12+C16+C20+C24+C28","v":0},{"$f":"SQRT((D12^2)+(D16^2)+(D20^2)+(D24^2)+(D28^2))","v":24.596747752497688},0,24.596747752497688,0,24.596747752497688,278.03417056182138,110.91438139393827,0,24.596747752497688,36.304269721342692,28.740215726399828,0,24.596747752497688,25.436194683953808,23.769728648009426,103.74969879474349,55.686623169303417,33.61547262794322,28.61817604250837,0,24.596747752497688,{"$f":"SQRT((Y12^2)+(Y16^2)+(Y20^2)+(Y24^2)+(Y28^2))","v":0},24.596747752497688,59.346440499831161,42.708313008125245,0,24.596747752497688,0,24.596747752497688,11.74734012447073,16.06237840420901,26.343879744638983,22.781571499789035,0,24.596747752497688,88.622796164418105,63.710281744785902,0,24.596747752497688,0,24.596747752497688,44.877611344633749,29.748949561287034,0,24.596747752497688,129.96538000559994,89.532117142397567,0,24.596747752497688,0,24.596747752497688,51.254268114957995,30.951575081084322,0,24.596747752497688,73.054773971315527,49.152822909778031,0,24.596747752497688,0,24.596747752497688,62.361847310675458,42.30839160261236,8.4852813742385695,14.317821063276353,0,24.596747752497688,0,24.596747752497688,15.297058540778355,16.401219466856727,36.304269721342692,24.083189157584592,38.392707640904931,36.646964403617389,50.457903246171455,31.559467676118999,0,24.596747752497688,0,24.596747752497688,3,22.360679774997898,101.26203632161463,67.756918465939691]
[null,"Zero or negative income",{"$f":"C29","v":0},{"$f":"D29","v":11},{"$f":"E29","v":0},11,0,11,17,18,0,11,2,3,0,11,0,11,0,11,0,11,0,11,{"$f":"Y29","v":0},11,2,3,0,11,0,11,0,11,0,11,0,11,0,11,0,11,0,11,0,11,0,11,0,11,0,11,0,11,13,14,0,11,0,11,0,11,0,11,0,11,0,11,0,11,0,11,0,11,2,3,0,11,5,5,0,11,0,11,0,11,0,11]
[null,"Renter occupied housing units:",{"$f":"C30","v":0},{"$f":"D30","v":11},0,11,0,11,1749,196,0,11,72,32,0,11,11,7,256,55,49,22,0,11,{"$f":"Y30","v":0},11,60,28,0,11,0,11,13,8,18,12,0,11,283,83,0,11,0,11,50,32,0,11,347,116,0,11,0,11,90,41,0,11,324,61,0,11,0,11,87,31,35,17,0,11,0,11,37,18,35,19,48,40,71,29,0,11,0,11,2,3,403,105]
[null,"Less than 20 percent",{"$f":"C32+C36+C40+C44+C48","v":0},{"$f":"SQRT((D32^2)+(D36^2)+(D40^2)+(D44^2)+(D48^2))","v":24.596747752497688},{"$f":"SQRT((E32^2)+(E36^2)+(E40^2)+(E44^2)+(E48^2))","v":0},24.596747752497688,0,24.596747752497688,144.08677940741129,110.72036849649662,0,24.596747752497688,22.203603311174518,28.21347195933177,0,24.596747752497688,5.8309518948453007,20.371548787463361,33.25657829663178,34.568772034887211,6,22.803508501982758,0,24.596747752497688,{"$f":"SQRT((Y32^2)+(Y36^2)+(Y40^2)+(Y44^2)+(Y48^2))","v":0},24.596747752497688,10.246950765959598,19.773719933285189,0,24.596747752497688,0,24.596747752497688,2,22.203603311174518,5,21.166010488516726,0,24.596747752497688,71.805292284064961,67.911707385398586,0,24.596747752497688,0,24.596747752497688,7.2111025509279782,21.2602916254693,0,24.596747752497688,62.377880695002773,67.468511173731997,0,24.596747752497688,0,24.596747752497688,32.155870381627054,35.7211421989835,0,24.596747752497688,55.695601262577284,50.950956811427986,0,24.596747752497688,0,24.596747752497688,19.209372712298546,30.133038346638727,10.63014581273465,21.817424229271428,0,24.596747752497688,0,24.596747752497688,6,17.972200755611428,13.038404810405298,24.596747752497688,14,29.732137494637012,2.8284271247461903,19.697715603592208,0,24.596747752497688,0,24.596747752497688,0,24.596747752497688,76.243032468547582,59.253691868102194]
[null,"20 to 29 percent",{"$f":"C33+C37+C41+C45+C49","v":0},{"$f":"SQRT((D33^2)+(D37^2)+(D41^2)+(D45^2)+(D49^2))","v":24.596747752497688},0,24.596747752497688,0,24.596747752497688,332.68303232957345,170.49046894181504,0,24.596747752497688,11.180339887498949,23.832750575625969,0,24.596747752497688,0,24.596747752497688,26.645825188948457,29.732137494637012,4.6904157598234297,16.822603841260722,0,24.596747752497688,{"$f":"SQRT((Y33^2)+(Y37^2)+(Y41^2)+(Y45^2)+(Y49^2))","v":0},24.596747752497688,27,30.413812651491099,0,24.596747752497688,0,24.596747752497688,0,24.596747752497688,1,22.090722034374522,0,24.596747752497688,57.991378669591917,60.199667773169644,0,24.596747752497688,0,24.596747752497688,19,35.608987629529715,0,24.596747752497688,77.272245987806002,74.343795975185444,0,24.596747752497688,0,24.596747752497688,4.1231056256176606,19.924858845171276,0,24.596747752497688,57.148928248918196,43.358966777357601,0,24.596747752497688,0,24.596747752497688,12.449899597988733,21.330729007701542,2.8284271247461903,19.519221295943137,0,24.596747752497688,0,24.596747752497688,4.8989794855663558,17.406895185529212,2,22.203603311174518,15.297058540778355,28.792360097775937,25.019992006393608,24.779023386727733,0,24.596747752497688,0,24.596747752497688,0,24.596747752497688,49.849774322458067,52.55473337388365]
[null,"30 percent or more",{"$f":"C34+C38+C42+C46+C50","v":0},{"$f":"SQRT((D34^2)+(D38^2)+(D42^2)+(D46^2)+(D50^2))","v":24.596747752497688},0,24.596747752497688,0,24.596747752497688,512.5758480459258,196.02550854416882,0,24.596747752497688,12.806248474865697,20.493901531919196,0,24.596747752497688,1,22.090722034374522,95.634721728041853,55.830099408831437,8.7749643873921226,19.078784028338912,0,24.596747752497688,{"$f":"SQRT((Y34^2)+(Y38^2)+(Y42^2)+(Y46^2)+(Y50^2))","v":0},24.596747752497688,8.4852813742385695,20.85665361461421,0,24.596747752497688,0,24.596747752497688,3,16.401219466856727,3,22.203603311174518,0,24.596747752497688,46.872166581031863,33.645207682521445,0,24.596747752497688,0,24.596747752497688,9.1651513899116797,15.652475842498529,0,24.596747752497688,81.939001702485982,71.658914309386518,0,24.596747752497688,0,24.596747752497688,16.124515496597098,27.802877548915689,0,24.596747752497688,67.53517601961218,41.279534881100588,0,24.596747752497688,0,24.596747752497688,27.331300737432898,30.822070014844883,14,25.553864678361276,0,24.596747752497688,0,24.596747752497688,12.165525060596439,21.283796653792763,4,22.561028345356956,11.401754250991379,26.019223662515376,11.401754250991379,24.103941586387901,0,24.596747752497688,0,24.596747752497688,0,24.596747752497688,118.74342087037917,77.298124168701534]
[null,"Zero or negative income",{"$f":"C51","v":0},{"$f":"D51","v":11},{"$f":"E51","v":0},11,0,11,17,19,0,11,0,11,0,11,1,3,0,11,0,11,0,11,{"$f":"Y51","v":0},11,0,11,0,11,0,11,0,11,0,11,0,11,0,11,0,11,0,11,0,11,0,11,0,11,0,11,0,11,0,11,0,11,0,11,0,11,0,11,0,11,0,11,0,11,0,11,0,11,0,11,0,11,0,11,0,11,0,11,0,11,21,33]
[null,"No cash rent",{"$f":"C52","v":0},{"$f":"D52","v":11},0,11,0,11,29,24,0,11,10,11,0,11,1,3,30,29,22,19,0,11,{"$f":"Y52","v":0},11,4,6,0,11,0,11,6,5,7,8,0,11,19,22,0,11,0,11,3,5,0,11,7,10,0,11,0,11,15,10,0,11,27,20,0,11,0,11,4,5,2,3,0,11,0,11,5,6,11,12,2,3,9,11,0,11,0,11,2,3,0,11]
[]
[]
[]
[]
[]
[]
[]
[]
[]
[]
[]
[]
[]
[]
[]
[]
[]
[]
[]
[]
[]
[]
[]
[null,"B25106. TENURE BY HOUSING COSTS AS A PERCENTAGE OF HOUSEHOLD INCOME IN THE PAST 12 MONTHS"]
[null,"Universe:  OCCUPIED HOUSING UNITS"]
[null,"Data Set: 2010-2014 American Community Survey 5-Year Estimates"]
[]
[null,null,"Atkinson and Gilmanton Academy Grant",null,"Beans Grant",null,"Beans Purchase",null,"Berlin",null,"Cambridge",null,"Carroll",null,"Chandlers Purchase",null,"Clarksville",null,"Colebrook",null,"Columbia",null,"Crawfords Purchase",null,"Cutts Grant",null,"Dalton",null,"Dixs Grant",null,"Dixville",null,"Dummer",null,"Errol",null,"Ervings location",null,"Gorham",null,"Greens Grant",null,"Hadleys Purchase",null,"Jefferson",null,"Kilkenny",null,"Lancaster",null,"Low and Burbanks Grant",null,"Martins location",null,"Milan",null,"Millsfield",null,"Northumberland",null,"Odell",null,"Pinkhams Grant",null,"Pittsburg",null,"Randolph",null,"Sargents Purchase",null,"Second College Grant",null,"Shelburne",null,"Stark",null,"Stewartstown",null,"Stratford",null,"Success",null,"Thompson and Meserves Purchase",null,"Wentworth location",null,"Whitefield"]
[null,null,"Estimate","Margin of Error","Estimate","Margin of Error","Estimate","Margin of Error","Estimate","Margin of Error","Estimate","Margin of Error","Estimate","Margin of Error","Estimate","Margin of Error","Estimate","Margin of Error","Estimate","Margin of Error","Estimate","Margin of Error"]
[null,null,0,114,0,114,0,114,1524,246,0,114,39,29,0,114,22,21,440,101,18,19,0,114,0,114,78,38,0,114,8,8,11,11,7,6,0,114,443,121,0,114,0,114,40,21,0,114,351,77,0,114,0,114,68,25,0,114,381,86,0,114,0,114,40,17,16,13,0,114,0,114,21,11,51,32,68,30,143,41,0,114,0,114,4,6,253,58]
[null,"Total:",0,114,0,114,0,114,347,126,0,114,0,114,0,114,0,114,103,60,0,114,0,114,0,114,15,16,0,114,0,114,0,114,0,114,0,114,25,23,0,114,0,114,0,114,0,114,50,43,0,114,0,114,3,4,0,114,45,40,0,114,0,114,8,9,0,114,0,114,0,114,3,5,4,7,17,17,32,29,0,114,0,114,0,114,80,41]
[null,"Less than $10,000:",0,197.45379206285202,0,197.45379206285202,0,197.45379206285202,25,117.46063170271135,0,197.45379206285202,0,197.45379206285202,0,197.45379206285202,0,197.45379206285202,40,35.071355833500363,0,197.45379206285202,0,197.45379206285202,0,197.45379206285202,0,197.45379206285202,0,197.45379206285202,0,197.45379206285202,0,197.45379206285202,0,197.45379206285202,0,197.45379206285202,7,161.66632302368976,0,197.45379206285202,0,197.45379206285202,0,197.45379206285202,0,197.45379206285202,10,162.01234520862909,0,197.45379206285202,0,197.45379206285202,0,197.45379206285202,0,197.45379206285202,15,162.58228685807074,0,197.45379206285202,0,197.45379206285202,3,161.26996000495566,0,197.45379206285202,0,197.45379206285202,0,197.45379206285202,0,197.45379206285202,0,197.45379206285202,14,162.11415730897781,10,114.65164630305141,0,197.45379206285202,0,197.45379206285202,0,197.45379206285202,57,165.87043136134903]
[null,"Less than 30.0 percent",0,161.22034611053283,0,161.22034611053283,0,161.22034611053283,257,161.92899678562824,0,161.22034611053283,0,161.22034611053283,0,161.22034611053283,0,161.22034611053283,63,123.69316876852982,0,161.22034611053283,0,161.22034611053283,0,161.22034611053283,4,114.15778554264269,0,161.22034611053283,0,161.22034611053283,0,161.22034611053283,0,161.22034611053283,0,161.22034611053283,10,114.9826073804208,0,161.22034611053283,0,161.22034611053283,0,161.22034611053283,0,161.22034611053283,40,120.48651376813922,0,161.22034611053283,0,161.22034611053283,3,114.0701538527936,0,161.22034611053283,30,34.481879299133332,0,161.22034611053283,0,161.22034611053283,5,114.35471131527551,0,161.22034611053283,0,161.22034611053283,0,161.22034611053283,3,114.10959644131601,0,161.22034611053283,3,114.10959644131601,6,114.52947218947619,0,161.22034611053283,0,161.22034611053283,0,161.22034611053283,12,12.206555615733702]
[null,"More than 30.0 percent",0,228,0,228,0,228,25,163.68567438844488,0,228,0,228,0,228,0,228,40,119.27279656317278,0,228,0,228,0,228,0,228,0,228,0,228,0,228,0,228,0,228,7,197.81809826201444,0,228,0,228,0,228,0,228,10,198.10098434889213,0,228,0,228,0,228,0,228,27,163.46865142895135,0,228,0,228,3,197.49430371532239,0,228,0,228,0,228,0,228,0,228,14,198.18425769974769,16,115.17812292271479,0,228,0,228,0,228,64,166.17159805454119]
[null,"Less Than 35% of HH Income",0,114,0,114,0,114,257,115,0,114,0,114,0,114,0,114,63,48,0,114,0,114,0,114,4,6,0,114,0,114,0,114,0,114,0,114,10,15,0,114,0,114,0,114,0,114,40,39,0,114,0,114,3,4,0,114,18,30,0,114,0,114,5,9,0,114,0,114,0,114,3,5,0,114,3,5,0,114,0,114,0,114,0,114,5,7]
[null,"35.0 percent or more",0,114,0,114,0,114,65,56,0,114,0,114,0,114,0,114,0,114,0,114,0,114,0,114,11,14,0,114,0,114,0,114,0,114,0,114,8,12,0,114,0,114,0,114,0,114,0,114,0,114,0,114,0,114,0,114,0,114,0,114,0,114,0,114,0,114,0,114,0,114,0,114,4,7,0,114,16,22,0,114,0,114,0,114,11,18]
[null,"Not Computed",0,114,0,114,0,114,383,121,0,114,0,114,0,114,3,4,124,67,4,6,0,114,0,114,5,5,0,114,0,114,6,8,3,4,0,114,118,74,0,114,0,114,0,114,0,114,57,57,0,114,0,114,7,6,0,114,95,51,0,114,0,114,19,12,7,7,0,114,0,114,4,6,2,4,13,12,48,30,0,114,0,114,4,6,73,40]
[null,"$10,000 to $19,999:",0,197.45379206285202,0,197.45379206285202,0,197.45379206285202,53,121.77027551911016,0,197.45379206285202,0,197.45379206285202,0,197.45379206285202,0,197.45379206285202,27,20.273134932713294,0,197.45379206285202,0,197.45379206285202,0,197.45379206285202,0,197.45379206285202,0,197.45379206285202,0,197.45379206285202,0,197.45379206285202,3,161.26996000495566,0,197.45379206285202,34,117.87281281109738,0,197.45379206285202,0,197.45379206285202,0,197.45379206285202,0,197.45379206285202,27,166.35203635663737,0,197.45379206285202,0,197.45379206285202,0,197.45379206285202,0,197.45379206285202,16,115.15641536623133,0,197.45379206285202,0,197.45379206285202,3,161.29786111415117,0,197.45379206285202,0,197.45379206285202,0,197.45379206285202,0,197.45379206285202,0,197.45379206285202,5,161.47135968957468,13,115.06954418958998,0,197.45379206285202,0,197.45379206285202,0,197.45379206285202,44,164.76650144977893]
[null,"Less than 30.0 percent",0,161.22034611053283,0,161.22034611053283,0,161.22034611053283,290,100.88111815399351,0,161.22034611053283,0,161.22034611053283,0,161.22034611053283,0,161.22034611053283,97,62.425956140054431,4,114.15778554264269,0,161.22034611053283,0,161.22034611053283,0,161.22034611053283,0,161.22034611053283,0,161.22034611053283,6,114.28035701729323,0,161.22034611053283,0,161.22034611053283,84,68.154236845554948,0,161.22034611053283,0,161.22034611053283,0,161.22034611053283,0,161.22034611053283,30,118.1397477566293,0,161.22034611053283,0,161.22034611053283,4,114.10959644131601,0,161.22034611053283,68,47.675989764240867,0,161.22034611053283,0,161.22034611053283,9,8.4852813742385695,2,114.0701538527936,0,161.22034611053283,0,161.22034611053283,4,114.15778554264269,2,114.0701538527936,8,8.9442719099991592,35,116.92732785794773,0,161.22034611053283,0,161.22034611053283,4,114.15778554264269,29,116.10340218959993]
[null,"More than 30.0 percent",0,228,0,228,0,228,84,125.65428763078481,0,228,0,228,0,228,0,228,61,41.315856520227193,0,228,0,228,0,228,0,228,0,228,0,228,0,228,3,197.49430371532239,0,228,45,119.09240110099384,0,228,0,228,0,228,0,228,27,201.66556473528146,0,228,0,228,0,228,0,228,20,115.43396380615195,0,228,0,228,8,161.40941732129511,0,228,0,228,0,228,0,228,0,228,10,161.66941578418596,13,161.97839362087771,0,228,0,228,0,228,44,200.35967658189111]
[null,"Less Than 35% of HH Income",0,114,0,114,0,114,259,96,0,114,0,114,0,114,0,114,63,51,4,6,0,114,0,114,0,114,0,114,0,114,6,8,0,114,0,114,73,66,0,114,0,114,0,114,0,114,30,31,0,114,0,114,4,5,0,114,64,47,0,114,0,114,4,6,2,4,0,114,0,114,4,6,2,4,3,4,35,26,0,114,0,114,4,6,29,22]
[null,"35.0 percent or more",0,114,0,114,0,114,40,48,0,114,0,114,0,114,3,4,0,114,0,114,0,114,0,114,5,5,0,114,0,114,0,114,0,114,0,114,0,114,0,114,0,114,0,114,0,114,0,114,0,114,0,114,3,4,0,114,11,19,0,114,0,114,7,9,5,6,0,114,0,114,0,114,0,114,0,114,0,114,0,114,0,114,0,114,0,114]
[null,"Not Computed",0,114,0,114,0,114,338,107,0,114,16,18,0,114,14,19,87,57,3,5,0,114,0,114,19,13,0,114,0,114,0,114,2,4,0,114,126,79,0,114,0,114,33,20,0,114,128,72,0,114,0,114,24,17,0,114,137,68,0,114,0,114,4,5,7,10,0,114,0,114,5,5,27,25,0,114,19,17,0,114,0,114,0,114,27,19]
[null,"$20,000 to $34,999:",0,197.45379206285202,0,197.45379206285202,0,197.45379206285202,206,84.445248534183378,0,197.45379206285202,12,162.11415730897781,0,197.45379206285202,14,162.33607116103309,49,123.664869708418,0,197.45379206285202,0,197.45379206285202,0,197.45379206285202,8,114.17968295629481,0,197.45379206285202,0,197.45379206285202,0,197.45379206285202,2,161.26996000495566,0,197.45379206285202,55,124.03628501370073,0,197.45379206285202,0,197.45379206285202,12,114.63420083029322,0,197.45379206285202,88,77.420927403383644,0,197.45379206285202,0,197.45379206285202,16,15.297058540778355,0,197.45379206285202,64,127.84756548327387,0,197.45379206285202,0,197.45379206285202,4,161.29786111415117,7,161.5301829380503,0,197.45379206285202,0,197.45379206285202,3,161.26996000495566,21,116.25833303466896,0,197.45379206285202,12,114.70832576583096,0,197.45379206285202,0,197.45379206285202,0,197.45379206285202,5,161.37224048763778]
[null,"Less than 30.0 percent",0,161.22034611053283,0,161.22034611053283,0,161.22034611053283,123,71.449282711584999,0,161.22034611053283,4,114.10959644131601,0,161.22034611053283,0,161.22034611053283,38,33.241540277189323,0,161.22034611053283,0,161.22034611053283,0,161.22034611053283,0,161.22034611053283,0,161.22034611053283,0,161.22034611053283,0,161.22034611053283,0,161.22034611053283,0,161.22034611053283,47,42.720018726587654,0,161.22034611053283,0,161.22034611053283,16,15.264337522473747,0,161.22034611053283,40,35.383612025908263,0,161.22034611053283,0,161.22034611053283,0,161.22034611053283,0,161.22034611053283,57,37.336309405188942,0,161.22034611053283,0,161.22034611053283,0,161.22034611053283,0,161.22034611053283,0,161.22034611053283,0,161.22034611053283,2,114.03946685248927,0,161.22034611053283,0,161.22034611053283,7,114.43775600735974,0,161.22034611053283,0,161.22034611053283,0,161.22034611053283,22,18.027756377319946]
[null,"More than 30.0 percent",0,228,0,228,0,228,261,97.631961979671388,0,228,16,162.19124513980401,0,228,14,198.36582366930045,79,127.49117616525467,0,228,0,228,0,228,8,161.34745117292681,0,228,0,228,0,228,2,197.49430371532239,0,228,65,124.93998559308385,0,228,0,228,17,114.91301057756689,0,228,110,81.055536516637773,0,228,0,228,16,115.02173707608489,0,228,107,132.55187663703597,0,228,0,228,4,197.51708786836647,7,197.70685370011836,0,228,0,228,3,197.49430371532239,21,162.82505949638096,0,228,12,161.72198366332265,0,228,0,228,0,228,12,161.68178623456632]
[null,"Less Than 35% of HH Income",0,114,0,114,0,114,68,52,0,114,0,114,0,114,0,114,8,12,0,114,0,114,0,114,0,114,0,114,0,114,0,114,0,114,0,114,37,40,0,114,0,114,11,13,0,114,18,26,0,114,0,114,0,114,0,114,14,13,0,114,0,114,0,114,0,114,0,114,0,114,2,3,0,114,0,114,7,10,0,114,0,114,0,114,15,15]
[null,"35.0 percent or more",0,114,0,114,0,114,9,14,0,114,0,114,0,114,0,114,0,114,3,5,0,114,0,114,11,13,0,114,0,114,0,114,0,114,0,114,24,35,0,114,0,114,5,6,0,114,0,114,0,114,0,114,8,7,0,114,16,23,0,114,0,114,0,114,0,114,0,114,0,114,0,114,6,10,0,114,0,114,0,114,0,114,0,114,0,114]
[null,"Not Computed",0,114,0,114,0,114,209,97,0,114,13,19,0,114,5,7,52,37,0,114,0,114,0,114,23,23,0,114,0,114,5,5,2,3,0,114,141,106,0,114,0,114,0,114,0,114,21,25,0,114,0,114,13,9,0,114,59,45,0,114,0,114,9,10,2,3,0,114,0,114,4,6,18,18,6,9,40,27,0,114,0,114,0,114,45,35]
[null,"$35,000 to $49,999:",0,197.45379206285202,0,197.45379206285202,0,197.45379206285202,170,82.431789984204514,0,197.45379206285202,13,162.33607116103309,0,197.45379206285202,5,161.37224048763778,46,120.91732712891069,0,197.45379206285202,0,197.45379206285202,0,197.45379206285202,23,161.47135968957468,0,197.45379206285202,0,197.45379206285202,2,161.24825580452026,2,197.45379206285202,0,197.45379206285202,141,151.95064988344078,0,197.45379206285202,0,197.45379206285202,0,197.45379206285202,0,197.45379206285202,21,116.57186624567696,0,197.45379206285202,0,197.45379206285202,11,114.21908772179893,0,197.45379206285202,43,120.31624994156026,0,197.45379206285202,0,197.45379206285202,0,197.45379206285202,2,161.24825580452026,0,197.45379206285202,0,197.45379206285202,4,161.33195591698504,9,15.620499351813308,6,161.47135968957468,40,116.92732785794773,0,197.45379206285202,0,197.45379206285202,0,197.45379206285202,40,20.493901531919196]
[null,"Less than 30.0 percent",0,161.22034611053283,0,161.22034611053283,0,161.22034611053283,39,125.7179382586272,0,161.22034611053283,0,161.22034611053283,0,161.22034611053283,0,161.22034611053283,0,161.22034611053283,0,161.22034611053283,0,161.22034611053283,0,161.22034611053283,0,161.22034611053283,0,161.22034611053283,0,161.22034611053283,0,161.22034611053283,0,161.22034611053283,0,161.22034611053283,0,161.22034611053283,0,161.22034611053283,0,161.22034611053283,0,161.22034611053283,0,161.22034611053283,0,161.22034611053283,0,161.22034611053283,0,161.22034611053283,0,161.22034611053283,0,161.22034611053283,0,161.22034611053283,0,161.22034611053283,0,161.22034611053283,0,161.22034611053283,0,161.22034611053283,0,161.22034611053283,0,161.22034611053283,0,161.22034611053283,4,114.28035701729323,0,161.22034611053283,0,161.22034611053283,0,161.22034611053283,0,161.22034611053283,0,161.22034611053283,5,114.28035701729323]
[null,"More than 30.0 percent",0,228,0,228,0,228,209,98.544406233941046,0,228,13,198.36582366930045,0,228,5,197.57783276471073,46,166.1836333698358,0,228,0,228,0,228,23,162.83120094134293,0,228,0,228,2,197.47658088998807,2,197.47658088998807,0,228,141,153.13392831113555,0,228,0,228,0,228,0,228,21,163.04907236779974,0,228,0,228,11,114.28910709249591,0,228,43,165.74679484080528,0,228,0,228,0,228,2,197.47658088998807,0,228,0,228,4,197.54493159785193,13,115.06519890914021,6,197.6587969203496,40,117.27318534089538,0,228,0,228,0,228,45,34.698703145794944]
[null,"Less Than 35% of HH Income",0,114,0,114,0,114,0,114,0,114,0,114,0,114,0,114,0,114,0,114,0,114,0,114,0,114,0,114,0,114,0,114,0,114,0,114,0,114,0,114,0,114,0,114,0,114,0,114,0,114,0,114,0,114,0,114,0,114,0,114,0,114,0,114,0,114,0,114,0,114,0,114,0,114,0,114,0,114,0,114,0,114,0,114,0,114]
[null,"35.0 percent or more",0,114,0,114,0,114,0,114,0,114,0,114,0,114,0,114,6,10,0,114,0,114,0,114,0,114,0,114,0,114,3,4,0,114,0,114,0,114,0,114,0,114,0,114,0,114,0,114,0,114,0,114,2,4,0,114,16,18,0,114,0,114,9,10,0,114,0,114,0,114,0,114,5,7,0,114,0,114,0,114,0,114,0,114,0,114]
[null,"Not Computed",0,114,0,114,0,114,196,112,0,114,10,14,0,114,0,114,56,59,11,17,0,114,0,114,4,6,0,114,8,8,0,114,0,114,0,114,14,16,0,114,0,114,7,10,0,114,66,56,0,114,0,114,14,10,0,114,13,14,0,114,0,114,0,114,0,114,0,114,0,114,5,6,0,114,28,21,0,114,0,114,0,114,0,114,28,28]
[null,"$50,000 to $74,999:",0,197.45379206285202,0,197.45379206285202,0,197.45379206285202,196,196.30588376307014,0,197.45379206285202,0,197.45379206285202,0,197.45379206285202,0,197.45379206285202,56,171.67702234137218,11,162.11415730897781,0,197.45379206285202,0,197.45379206285202,0,197.45379206285202,0,197.45379206285202,0,197.45379206285202,0,197.45379206285202,0,197.45379206285202,0,197.45379206285202,9,161.74362429474616,0,197.45379206285202,0,197.45379206285202,7,161.5301829380503,0,197.45379206285202,51,126.3368513142543,0,197.45379206285202,0,197.45379206285202,14,161.5301829380503,0,197.45379206285202,0,197.45379206285202,0,197.45379206285202,0,197.45379206285202,0,197.45379206285202,0,197.45379206285202,0,197.45379206285202,0,197.45379206285202,5,161.33195591698504,0,197.45379206285202,15,115.09126813099246,0,197.45379206285202,0,197.45379206285202,0,197.45379206285202,0,197.45379206285202,22,163.46559270990332]
[null,"Less than 30.0 percent",0,161.22034611053283,0,161.22034611053283,0,161.22034611053283,0,161.22034611053283,0,161.22034611053283,10,114.85643212288984,0,161.22034611053283,0,161.22034611053283,0,161.22034611053283,0,161.22034611053283,0,161.22034611053283,0,161.22034611053283,0,161.22034611053283,0,161.22034611053283,0,161.22034611053283,0,161.22034611053283,0,161.22034611053283,0,161.22034611053283,0,161.22034611053283,0,161.22034611053283,0,161.22034611053283,0,161.22034611053283,0,161.22034611053283,15,115.57248807566617,0,161.22034611053283,0,161.22034611053283,0,161.22034611053283,0,161.22034611053283,0,161.22034611053283,0,161.22034611053283,0,161.22034611053283,0,161.22034611053283,0,161.22034611053283,0,161.22034611053283,0,161.22034611053283,0,161.22034611053283,0,161.22034611053283,9,114.73883387938018,0,161.22034611053283,0,161.22034611053283,0,161.22034611053283,0,161.22034611053283,0,161.22034611053283]
[null,"More than 30.0 percent",0,228,0,228,0,228,196,227.00660783334038,0,228,10,197.94948850653796,0,228,0,228,56,206.080081521723,11,198.18425769974769,0,228,0,228,0,228,0,228,0,228,0,228,0,228,0,228,9,197.88127753782064,0,228,0,228,7,197.70685370011836,0,228,66,127.75758294520134,0,228,0,228,14,197.70685370011836,0,228,0,228,0,228,0,228,0,228,0,228,0,228,0,228,5,197.54493159785193,0,228,24,115.82314103839526,0,228,0,228,0,228,0,228,22,199.29124416290847]
[null,"Less Than 35% of HH Income",0,114,0,114,0,114,0,114,0,114,0,114,0,114,0,114,0,114,0,114,0,114,0,114,0,114,0,114,0,114,0,114,0,114,0,114,0,114,0,114,0,114,0,114,0,114,0,114,0,114,0,114,0,114,0,114,0,114,0,114,0,114,0,114,0,114,0,114,0,114,0,114,0,114,0,114,0,114,0,114,0,114,0,114,0,114]
[null,"35.0 percent or more",0,114,0,114,0,114,0,114,0,114,0,114,0,114,0,114,0,114,0,114,0,114,0,114,4,6,0,114,8,8,0,114,0,114,0,114,5,9,0,114,0,114,0,114,0,114,0,114,0,114,0,114,0,114,0,114,13,14,0,114,0,114,0,114,0,114,0,114,0,114,0,114,0,114,4,7,0,114,0,114,0,114,0,114,6,9]
[null,"Not Computed",0,114,0,114,0,114,27,33,0,114,0,114,0,114,0,114,12,16,0,114,0,114,0,114,8,11,0,114,0,114,0,114,0,114,0,114,0,114,0,114,0,114,0,114,0,114,14,23,0,114,0,114,7,7,0,114,27,25,0,114,0,114,0,114,0,114,0,114,0,114,0,114,0,114,4,7,4,8,0,114,0,114,0,114,0,114]
[null,"$75,000 to $99,999:",0,197.45379206285202,0,197.45379206285202,0,197.45379206285202,27,164.56305782282973,0,197.45379206285202,0,197.45379206285202,0,197.45379206285202,0,197.45379206285202,12,162.01234520862909,0,197.45379206285202,0,197.45379206285202,0,197.45379206285202,8,161.59517319524119,0,197.45379206285202,0,197.45379206285202,0,197.45379206285202,0,197.45379206285202,0,197.45379206285202,0,197.45379206285202,0,197.45379206285202,0,197.45379206285202,0,197.45379206285202,0,197.45379206285202,0,197.45379206285202,0,197.45379206285202,0,197.45379206285202,7,161.37224048763778,0,197.45379206285202,22,162.85269417482783,0,197.45379206285202,0,197.45379206285202,0,197.45379206285202,0,197.45379206285202,0,197.45379206285202,0,197.45379206285202,0,197.45379206285202,0,197.45379206285202,4,161.37224048763778,4,161.41871019184859,0,197.45379206285202,0,197.45379206285202,0,197.45379206285202,0,197.45379206285202]
[null,"Less than 30.0 percent",0,161.22034611053283,0,161.22034611053283,0,161.22034611053283,0,161.22034611053283,0,161.22034611053283,0,161.22034611053283,0,161.22034611053283,0,161.22034611053283,0,161.22034611053283,0,161.22034611053283,0,161.22034611053283,0,161.22034611053283,0,161.22034611053283,0,161.22034611053283,0,161.22034611053283,0,161.22034611053283,0,161.22034611053283,0,161.22034611053283,0,161.22034611053283,0,161.22034611053283,0,161.22034611053283,0,161.22034611053283,0,161.22034611053283,0,161.22034611053283,0,161.22034611053283,0,161.22034611053283,0,161.22034611053283,0,161.22034611053283,0,161.22034611053283,0,161.22034611053283,0,161.22034611053283,0,161.22034611053283,0,161.22034611053283,0,161.22034611053283,0,161.22034611053283,0,161.22034611053283,0,161.22034611053283,0,161.22034611053283,0,161.22034611053283,0,161.22034611053283,0,161.22034611053283,0,161.22034611053283,0,161.22034611053283]
[null,"More than 30.0 percent",0,228,0,228,0,228,27,200.19240744843447,0,228,0,228,0,228,0,228,12,198.10098434889213,0,228,0,228,0,228,8,197.75995550161312,0,228,0,228,0,228,0,228,0,228,0,228,0,228,0,228,0,228,0,228,0,228,0,228,0,228,7,197.57783276471073,0,228,22,198.78883268433364,0,228,0,228,0,228,0,228,0,228,0,228,0,228,0,228,4,197.57783276471073,4,197.61578884289585,0,228,0,228,0,228,0,228]
[null,"Less Than 35% of HH Income",0,114,0,114,0,114,0,114,0,114,0,114,0,114,0,114,0,114,0,114,0,114,0,114,0,114,0,114,0,114,0,114,0,114,0,114,0,114,0,114,0,114,0,114,0,114,0,114,0,114,0,114,0,114,0,114,0,114,0,114,0,114,0,114,0,114,0,114,0,114,0,114,0,114,0,114,0,114,0,114,0,114,0,114,0,114]
[null,"35.0 percent or more",0,114,0,114,0,114,0,114,0,114,0,114,0,114,0,114,0,114,0,114,0,114,0,114,0,114,0,114,0,114,0,114,0,114,0,114,0,114,0,114,0,114,0,114,0,114,14,23,0,114,0,114,0,114,0,114,5,8,0,114,0,114,0,114,0,114,0,114,0,114,0,114,0,114,0,114,0,114,0,114,0,114,0,114,0,114]
[null,"Not Computed",0,114,0,114,0,114,24,26,0,114,0,114,0,114,0,114,6,10,0,114,0,114,0,114,4,5,0,114,0,114,0,114,0,114,0,114,19,21,0,114,0,114,0,114,0,114,15,25,0,114,0,114,0,114,0,114,5,9,0,114,0,114,0,114,0,114,0,114,0,114,0,114,0,114,0,114,0,114,0,114,0,114,0,114,0,114]
[null,"$100,000 or more:",0,197.45379206285202,0,197.45379206285202,0,197.45379206285202,13,162.33607116103309,0,197.45379206285202,0,197.45379206285202,0,197.45379206285202,0,197.45379206285202,6,161.5301829380503,0,197.45379206285202,0,197.45379206285202,0,197.45379206285202,4,161.29786111415117,0,197.45379206285202,0,197.45379206285202,0,197.45379206285202,0,197.45379206285202,0,197.45379206285202,19,162.58228685807074,0,197.45379206285202,0,197.45379206285202,0,197.45379206285202,0,197.45379206285202,15,163.1471728225776,0,197.45379206285202,0,197.45379206285202,0,197.45379206285202,0,197.45379206285202,0,197.45379206285202,0,197.45379206285202,0,197.45379206285202,0,197.45379206285202,0,197.45379206285202,0,197.45379206285202,0,197.45379206285202,0,197.45379206285202,0,197.45379206285202,0,197.45379206285202,0,197.45379206285202,0,197.45379206285202,0,197.45379206285202,0,197.45379206285202,0,197.45379206285202]
[null,"Less than 30.0 percent",0,161.22034611053283,0,161.22034611053283,0,161.22034611053283,0,161.22034611053283,0,161.22034611053283,0,161.22034611053283,0,161.22034611053283,0,161.22034611053283,0,161.22034611053283,0,161.22034611053283,0,161.22034611053283,0,161.22034611053283,0,161.22034611053283,0,161.22034611053283,0,161.22034611053283,0,161.22034611053283,0,161.22034611053283,0,161.22034611053283,0,161.22034611053283,0,161.22034611053283,0,161.22034611053283,0,161.22034611053283,0,161.22034611053283,0,161.22034611053283,0,161.22034611053283,0,161.22034611053283,0,161.22034611053283,0,161.22034611053283,5,114.35471131527551,0,161.22034611053283,0,161.22034611053283,0,161.22034611053283,0,161.22034611053283,0,161.22034611053283,0,161.22034611053283,0,161.22034611053283,0,161.22034611053283,0,161.22034611053283,0,161.22034611053283,0,161.22034611053283,0,161.22034611053283,0,161.22034611053283,0,161.22034611053283]
[null,"More than 30.0 percent",0,228,0,228,0,228,13,198.36582366930045,0,228,0,228,0,228,0,228,6,197.70685370011836,0,228,0,228,0,228,4,197.51708786836647,0,228,0,228,0,228,0,228,0,228,19,198.56736892047493,0,228,0,228,0,228,0,228,15,199.0301484700245,0,228,0,228,0,228,0,228,0,228,0,228,0,228,0,228,0,228,0,228,0,228,0,228,0,228,0,228,0,228,0,228,0,228,0,228,0,228]
[null,"Less Than 35% of HH Income",0,114,0,114,0,114,0,114,0,114,0,114,0,114,0,114,0,114,0,114,0,114,0,114,0,114,0,114,0,114,0,114,0,114,0,114,0,114,0,114,0,114,0,114,0,114,0,114,0,114,0,114,0,114,0,114,5,9,0,114,0,114,0,114,0,114,0,114,0,114,0,114,0,114,0,114,0,114,0,114,0,114,0,114,0,114]
[null,"35.0 percent or more",0,114,0,114,0,114,11,17,0,114,0,114,0,114,0,114,0,114,0,114,0,114,0,114,0,114,0,114,0,114,0,114,0,114,0,114,0,114,0,114,0,114,0,114,0,114,0,114,0,114,0,114,0,114,0,114,0,114,0,114,0,114,0,114,0,114,0,114,0,114,0,114,0,114,0,114,0,114,0,114,0,114,0,114,0,114]
[null,"Not Computed"]
[null,"Zero or negative income",0,11,0,11,0,11,54,63,0,11,0,11,0,11,0,11,0,11,0,11,0,11,0,11,0,11,0,11,0,11,0,11,0,11,0,11,0,11,0,11,0,11,3,4,0,11,0,11,0,11,0,11,0,11,0,11,0,11,0,11,0,11,0,11,0,11,0,11,0,11,2,3,8,8,0,11,0,11,0,11,0,11,0,11,0,11]
[null,"No cash rent",0,11,0,11,0,11,15,22,0,11,6,6,0,11,0,11,22,17,13,14,0,11,0,11,43,24,0,11,0,11,0,11,6,7,0,11,0,11,0,11,0,11,8,8,0,11,35,37,0,11,0,11,24,13,0,11,25,22,0,11,0,11,16,12,3,4,0,11,0,11,4,4,8,7,9,10,17,20,0,11,0,11,0,11,19,19]
[]
[]
[]
[]
[]
[]
[null,"B25106. TENURE BY HOUSING COSTS AS A PERCENTAGE OF HOUSEHOLD INCOME IN THE PAST 12 MONTHS"]
[null,"Universe:  OCCUPIED HOUSING UNITS"]
[null,"Data Set: 2010-2014 American Community Survey 5-Year Estimates"]
[]
[null,null,"Atkinson and Gilmanton Academy Grant",null,"Beans Grant",null,"Beans Purchase",null,"Berlin",null,"Cambridge",null,"Carroll",null,"Chandlers Purchase",null,"Clarksville",null,"Colebrook",null,"Columbia",null,"Crawfords Purchase",null,"Cutts Grant",null,"Dalton",null,"Dixs Grant",null,"Dixville",null,"Dummer",null,"Errol",null,"Ervings location",null,"Gorham",null,"Greens Grant",null,"Hadleys Purchase",null,"Jefferson",null,"Kilkenny",null,"Lancaster",null,"Low and Burbanks Grant",null,"Martins location",null,"Milan",null,"Millsfield",null,"Northumberland",null,"Odell",null,"Pinkhams Grant",null,"Pittsburg",null,"Randolph",null,"Sargents Purchase",null,"Second College Grant",null,"Shelburne",null,"Stark",null,"Stewartstown",null,"Stratford",null,"Success",null,"Thompson and Meserves Purchase",null,"Wentworth location",null,"Whitefield"]
[null,null,"Estimate","Margin of Error","Estimate","Margin of Error","Estimate","Margin of Error","Estimate","Margin of Error","Estimate","Margin of Error","Estimate","Margin of Error","Estimate","Margin of Error","Estimate","Margin of Error","Estimate","Margin of Error","Estimate","Margin of Error","Estimate","Margin of Error"]
[null,{"$f":"B106","v":0},0,114,0,114,0,114,1524,246,0,114,39,29,0,114,22,21,440,101,18,19,0,114,0,114,78,38,0,114,8,8,11,11,7,6,0,114,443,121,0,114,0,114,40,21,0,114,351,77,0,114,0,114,68,25,0,114,381,86,0,114,0,114,40,{"$f":"BN106","v":17},16,13,0,114,0,114,21,11,51,32,68,30,143,41,0,114,0,114,4,6,253,58]
[null,{"$f":"B107","v":"Total:"},0,114,0,114,0,114,347,126,0,114,0,114,0,114,0,114,103,60,0,114,0,114,0,114,15,16,0,114,0,114,0,114,0,114,0,114,25,23,0,114,0,114,0,114,0,114,50,43,0,114,0,114,3,4,0,114,45,40,0,114,0,114,8,{"$f":"BN107","v":9},0,114,0,114,0,114,3,5,4,7,17,17,32,29,0,114,0,114,0,114,80,41]
[null,"Less than 20 percent",{"$f":"C109+C113+C117+C121+C125","v":0},{"$f":"SQRT((D109^2)+(D113^2)+(D117^2)+(D121^2)+(D125^2))","v":301.61564946136332},{"$f":"SQRT((E109^2)+(E113^2)+(E117^2)+(E121^2)+(E125^2))","v":0},301.61564946136332,0,301.61564946136332,581.91837915638996,254.14956226600117,0,301.61564946136332,13.601470508735444,255.66775314849545,0,301.61564946136332,5.8309518948453007,255.03921267130667,165.71662559924397,157.6832267554162,5.6568542494923806,255.05293568198741,0,301.61564946136332,0,301.61564946136332,23.874672772626646,229.29020912372164,0,301.61564946136332,0,301.61564946136332,9.8488578017961039,228.33527979705633,3.6055512754639891,254.96078129783021,0,301.61564946136332,203.57553880562369,190.03683853400634,0,301.61564946136332,0,301.61564946136332,16,255.36836139193124,0,301.61564946136332,88.260976654464912,143.54093492798492,0,301.61564946136332,0,301.61564946136332,15.588457268119896,197.85348114198041,0,301.61564946136332,144.05207391773297,97.04638066409278,0,301.61564946136332,0,301.61564946136332,21.977260975835911,198.36582366930045,7.5498344352707498,228.1622229905731,{"$f":"SQRT((BQ109^2)+(BQ113^2)+(BQ117^2)+(BQ121^2)+(BQ125^2))","v":0},301.61564946136332,0,301.61564946136332,7.810249675906654,161.66013732519221,18.220867158288598,228.77936969928035,14.933184523068078,198.12622239370538,72.208032794142781,168.87273314540747,0,301.61564946136332,0,301.61564946136332,5.6568542494923806,255.05293568198741,93.930825611191139,61.506097258727124]
[null,"20 to 29 percent",{"$f":"C110+C114+C118+C122+C126","v":0},{"$f":"SQRT((D110^2)+(D114^2)+(D118^2)+(D122^2)+(D126^2))","v":441.52010146764553},{"$f":"SQRT((E110^2)+(E114^2)+(E118^2)+(E122^2)+(E126^2))","v":0},441.52010146764553,0,441.52010146764553,319.46048268917394,245.46282814308157,0,441.52010146764553,20.615528128088304,395.76129168982658,0,441.52010146764553,15.165750888103101,395.44658299193839,103.37311062360463,241.88426984820654,0,441.52010146764553,0,441.52010146764553,0,441.52010146764553,24.859605789312106,378.2895716247013,0,441.52010146764553,0,441.52010146764553,2,426.55949174763418,4.1231056256176606,411.07176988939534,0,441.52010146764553,159.09431165192549,323.60624221420699,0,441.52010146764553,0,441.52010146764553,17,395.17211440080132,0,441.52010146764553,115.62871615649809,316.34158752841842,0,441.52010146764553,0,441.52010146764553,19.646882704388499,342.43831561319183,0,441.52010146764553,120.01666550941998,269.05389794611784,0,441.52010146764553,0,441.52010146764553,9.1104335791442992,378.2895716247013,8.8317608663278477,395.09112872855042,{"$f":"SQRT((BQ110^2)+(BQ114^2)+(BQ118^2)+(BQ122^2)+(BQ126^2))","v":0},441.52010146764553,0,441.52010146764553,5,411.09609582188932,22.847319317591726,361.55774089348438,16.031219541881399,395.47819156054612,46.572524088780071,281.65404310962765,0,441.52010146764553,0,441.52010146764553,0,441.52010146764553,88.181630740194407,307.11235728964084]
[null,"30 percent or more",{"$f":"C111+C115+C119+C123+C127","v":0},{"$f":"SQRT((D111^2)+(D115^2)+(D119^2)+(D123^2)+(D127^2))","v":301.61564946136332},{"$f":"SQRT((E111^2)+(E115^2)+(E119^2)+(E123^2)+(E127^2))","v":0},301.61564946136332,0,301.61564946136332,520.13267538196442,230.99783548769457,0,301.61564946136332,16,279.82137159266443,0,301.61564946136332,14,279.88747739046846,144.95171609884446,188.64251906714986,5,255.03137061938085,0,301.61564946136332,0,301.61564946136332,19.416487838947599,255.31353273964936,0,301.61564946136332,0,301.61564946136332,6,279.3564031841762,2,279.27047821064082,0,301.61564946136332,156.20819440733575,196.73078050981243,0,301.61564946136332,0,301.61564946136332,34.785054261852174,256.02538936597676,0,301.61564946136332,138.59292911256333,217.55459085020476,0,301.61564946136332,0,301.61564946136332,24.515301344262525,228.72253933532656,0,301.61564946136332,154.63828762631846,184.27696546231707,0,301.61564946136332,0,301.61564946136332,11.045361017187261,197.90401713962251,7.2801098892805181,255.13917770503221,{"$f":"SQRT((BQ111^2)+(BQ115^2)+(BQ119^2)+(BQ123^2)+(BQ127^2))","v":0},301.61564946136332,0,301.61564946136332,7.3484692283495345,197.6942083117257,27.367864366808018,229.54084603834673,8.5440037453175304,228.23014700078517,40.435133238311458,230.3236852779149,0,301.61564946136332,0,301.61564946136332,4,279.30628349537716,42.953463189829058,164.84841521834537]
[null,"Zero or negative income",{"$f":"C128","v":0},{"$f":"D128","v":228},{"$f":"E128","v":0},228,0,228,209,98.544406233941046,0,228,13,198.36582366930045,0,228,5,197.57783276471073,46,166.1836333698358,0,228,0,228,0,228,23,162.83120094134293,0,228,0,228,2,197.47658088998807,2,197.47658088998807,0,228,141,153.13392831113555,0,228,0,228,0,228,0,228,21,163.04907236779974,0,228,0,228,11,114.28910709249591,0,228,43,165.74679484080528,0,228,0,228,0,228,2,197.47658088998807,{"$f":"BQ128","v":0},228,0,228,4,197.54493159785193,13,115.06519890914021,6,197.6587969203496,40,117.27318534089538,0,228,0,228,0,228,45,34.698703145794944]
[null,"Renter occupied housing units:",{"$f":"C129","v":0},{"$f":"D129","v":114},{"$f":"E129","v":0},114,0,114,0,114,0,114,0,114,0,114,0,114,0,114,0,114,0,114,0,114,0,114,0,114,0,114,0,114,0,114,0,114,0,114,0,114,0,114,0,114,0,114,0,114,0,114,0,114,0,114,0,114,0,114,0,114,0,114,0,114,0,114,{"$f":"BQ129","v":0},114,0,114,0,114,0,114,0,114,0,114,0,114,0,114,0,114,0,114]
[null,"Less than 20 percent",{"$f":"C131+C135+C139+C143+C147","v":0},{"$f":"SQRT((D131^2)+(D135^2)+(D139^2)+(D143^2)+(D147^2))","v":279.24183067728228},{"$f":"SQRT((E131^2)+(E135^2)+(E139^2)+(E143^2)+(E147^2))","v":0},279.24183067728228,0,279.24183067728228,197.46392075515973,255.35073918044569,0,279.24183067728228,10,255.29590674352772,0,279.24183067728228,0,279.24183067728228,56.320511361314892,235.72229423624742,11,255.47798339583002,0,279.24183067728228,0,279.24183067728228,5.6568542494923806,228.13373270956666,0,279.24183067728228,8,255.0372521809314,0,279.24183067728228,0,279.24183067728228,0,279.24183067728228,23.600847442411894,229.52341928439461,0,279.24183067728228,0,279.24183067728228,7,255.10782034269354,0,279.24183067728228,67.683085036070864,236.10379073619296,0,279.24183067728228,0,279.24183067728228,14,255.10782034269354,0,279.24183067728228,14.798648586948742,198.35826173870348,0,279.24183067728228,0,279.24183067728228,0,279.24183067728228,0,279.24183067728228,{"$f":"SQRT((BQ131^2)+(BQ135^2)+(BQ139^2)+(BQ143^2)+(BQ147^2))","v":0},279.24183067728228,0,279.24183067728228,5,254.98235233050934,0,279.24183067728228,28,255.77529200452494,0,279.24183067728228,0,279.24183067728228,0,279.24183067728228,0,279.24183067728228,28,256.44492586128507]
[null,"20 to 29 percent",{"$f":"C132+C136+C140+C144+C148","v":0},{"$f":"SQRT((D132^2)+(D136^2)+(D140^2)+(D144^2)+(D148^2))","v":394.90758412570403},{"$f":"SQRT((E132^2)+(E136^2)+(E140^2)+(E144^2)+(E148^2))","v":0},394.90758412570403,0,394.90758412570403,198.58247656830147,343.87643129473122,0,394.90758412570403,0,394.90758412570403,0,394.90758412570403,0,394.90758412570403,57.584720195551874,347.56438252502227,11,378.47721199564972,0,394.90758412570403,0,394.90758412570403,9.7979589711327115,342.26597844366592,0,394.90758412570403,8,378.17985139348713,0,394.90758412570403,0,394.90758412570403,0,394.90758412570403,21.61018278497431,343.00874624417378,0,394.90758412570403,0,394.90758412570403,7,378.22744480008322,0,394.90758412570403,53.160135440008048,347.20887085441814,0,394.90758412570403,0,394.90758412570403,15.652475842498529,360.70625167856463,0,394.90758412570403,25.553864678361276,361.50380357611732,0,394.90758412570403,0,394.90758412570403,0,394.90758412570403,0,394.90758412570403,{"$f":"SQRT((BQ132^2)+(BQ136^2)+(BQ140^2)+(BQ144^2)+(BQ148^2))","v":0},394.90758412570403,0,394.90758412570403,5,378.14283015812953,0,394.90758412570403,16.031219541881399,322.97987553406483,4,378.17985139348713,0,394.90758412570403,0,394.90758412570403,0,394.90758412570403,22.803508501982758,361.62134892729995]
[null,"30 percent or more",{"$f":"C133+C137+C141+C145+C149","v":0},{"$f":"SQRT((D133^2)+(D137^2)+(D141^2)+(D145^2)+(D149^2))","v":279.24183067728228},{"$f":"SQRT((E133^2)+(E137^2)+(E141^2)+(E145^2)+(E149^2))","v":0},279.24183067728228,0,279.24183067728228,27,257.03890756070376,0,279.24183067728228,10,255.29590674352772,0,279.24183067728228,0,279.24183067728228,12,255.41339040856883,0,279.24183067728228,0,279.24183067728228,0,279.24183067728228,8,255.14897609044016,0,279.24183067728228,0,279.24183067728228,0,279.24183067728228,0,279.24183067728228,0,279.24183067728228,0,279.24183067728228,0,279.24183067728228,0,279.24183067728228,0,279.24183067728228,0,279.24183067728228,20.518284528683193,229.94347131414713,0,279.24183067728228,0,279.24183067728228,7,255.00784301664135,0,279.24183067728228,27.459060435491963,229.54302428956538,0,279.24183067728228,0,279.24183067728228,0,279.24183067728228,0,279.24183067728228,{"$f":"SQRT((BQ133^2)+(BQ137^2)+(BQ141^2)+(BQ145^2)+(BQ149^2))","v":0},279.24183067728228,0,279.24183067728228,0,279.24183067728228,0,279.24183067728228,9.8488578017961039,228.47757001508921,4,255.0372521809314,0,279.24183067728228,0,279.24183067728228,0,279.24183067728228,0,279.24183067728228]
[null,"Zero or negative income",{"$f":"C150","v":0},{"$f":"D150","v":11},{"$f":"E150","v":0},11,0,11,54,63,0,11,0,11,0,11,0,11,0,11,0,11,0,11,0,11,0,11,0,11,0,11,0,11,0,11,0,11,0,11,0,11,0,11,3,4,0,11,0,11,0,11,0,11,0,11,0,11,0,11,0,11,0,11,0,11,0,11,{"$f":"BQ150","v":0},11,0,11,2,3,8,8,0,11,0,11,0,11,0,11,0,11,0,11]
[null,"No cash rent",{"$f":"C151","v":0},{"$f":"D151","v":11},{"$f":"E151","v":0},11,0,11,15,22,0,11,6,6,0,11,0,11,22,17,13,14,0,11,0,11,43,24,0,11,0,11,0,11,6,7,0,11,0,11,0,11,0,11,8,8,0,11,35,37,0,11,0,11,24,13,0,11,25,22,0,11,0,11,16,12,3,4,{"$f":"BQ151","v":0},11,0,11,4,4,8,7,9,10,17,20,0,11,0,11,0,11,19,19]

{"sheet":"PopComparison","index":69,"n_rows":75,"n_cols":14,"rows_kept":75,"cut":false,"hidden":true,"merged":[[29,1,29,2],[26,13,26,14],[27,3,27,4],[27,5,27,6],[27,7,27,8],[27,9,27,10],[41,1,41,2],[30,1,30,2],[31,1,31,2],[32,1,32,2],[33,1,33,2],[34,1,34,2],[35,1,35,2],[36,1,36,2],[37,1,37,2],[38,1,38,2],[39,1,39,2],[40,1,40,2],[53,1,53,2],[42,1,42,2],[43,1,43,2],[44,1,44,2],[45,1,45,2],[46,1,46,2],[47,1,47,2],[48,1,48,2],[49,1,49,2],[50,1,50,2],[51,1,51,2],[52,1,52,2],[64,1,64,2],[54,1,54,2],[55,1,55,2],[58,1,58,2],[56,1,56,2],[57,1,57,2],[59,1,59,2],[60,1,60,2],[61,1,61,2],[62,1,62,2],[63,1,63,2],[71,1,71,2],[74,1,74,2],[65,1,65,2],[66,1,66,2],[67,1,67,2],[68,1,68,2],[69,1,69,2],[70,1,70,2]]}
[]
[]
[]
[]
[]
[]
[]
[]
[]
[]
[]
[]
[]
[]
[]
[]
[]
[]
[]
[]
[]
[]
[]
[]
[]
[]
[]
[null,null,null,2000,null,2010,null,2020,null,2030,null,null,"2000-2010","2010-2030"]
[null,null,null,"#","%","#","%","#","%","#","%",null,"% Change","% Change"]
[null,"Atkinson and Gilmanton Grant",null,{"$f":"CntyQuery!$G118","v":12},{"$f":"D30/$D$75","v":3.6241732354806559E-4},{"$f":"CntyQuery!$H118","v":0},{"$f":"F30/$F$75","v":0},{"$f":"CntyQuery!$I118","v":0},{"$f":"H30/$H$75","v":0},{"$f":"CntyQuery!J118","v":0},{"$f":"J30/J$75","v":0},null,{"$f":"(F30-D30)/D30","v":-1},{"$f":"(J30-F30)/F30","v":{"$error":"#DIV/0!"}}]
[null,"Bean's Grant",null,{"$f":"CntyQuery!$G119","v":0},{"$f":"D31/$D$75","v":0},{"$f":"CntyQuery!$H119","v":0},0,{"$f":"CntyQuery!$I119","v":0},0,{"$f":"CntyQuery!J119","v":0},{"$f":"J31/J$75","v":0},null,{"$f":"(F31-D31)/D31","v":{"$error":"#DIV/0!"}},{"$f":"(J31-F31)/F31","v":{"$error":"#DIV/0!"}}]
[null,"Bean's Purchase",null,{"$f":"CntyQuery!$G120","v":4},1.2080577451602187E-4,{"$f":"CntyQuery!$H120","v":0},0,{"$f":"CntyQuery!$I120","v":0},0,{"$f":"CntyQuery!J120","v":0},0,null,-1,{"$error":"#DIV/0!"}]
[null,"Berlin",null,{"$f":"CntyQuery!$G121","v":10331},0.31201111413125548,{"$f":"CntyQuery!$H121","v":10051},0.30406897594917559,{"$f":"CntyQuery!$I121","v":9251},0.29620261270491804,{"$f":"CntyQuery!J121","v":9017},0.29620261480848825,null,-2.7102894201916562E-2,-0.10287533578748383]
[null,"Cambridge",null,{"$f":"CntyQuery!$G122","v":10},3.0201443629005467E-4,{"$f":"CntyQuery!$H122","v":8},2.420208743004084E-4,{"$f":"CntyQuery!$I122","v":0},0,{"$f":"CntyQuery!J122","v":0},0,null,-0.2,-1]
[null,"Carroll",null,{"$f":"CntyQuery!$G123","v":663},2.0023557126030624E-2,{"$f":"CntyQuery!$H123","v":763},2.3082740886401453E-2,{"$f":"CntyQuery!$I123","v":817},2.6159067622950821E-2,{"$f":"CntyQuery!J123","v":797},2.618093423559556E-2,null,0.15082956259426847,4.456094364351245E-2]
[null,"Chandler's Purchase",null,{"$f":"CntyQuery!$G124","v":0},0,{"$f":"CntyQuery!$H124","v":0},0,{"$f":"CntyQuery!$I124","v":0},0,{"$f":"CntyQuery!J124","v":0},0,null,{"$error":"#DIV/0!"},{"$error":"#DIV/0!"}]
[null,"Clarksville",null,{"$f":"CntyQuery!$G125","v":294},8.8792244269276076E-3,{"$f":"CntyQuery!$H125","v":265},8.0169414612010284E-3,{"$f":"CntyQuery!$I125","v":223},7.1401127049180325E-3,{"$f":"CntyQuery!J125","v":218},7.1611589251691738E-3,null,-9.8639455782312924E-2,-0.17735849056603772]
[null,"Colebrook",null,{"$f":"CntyQuery!$G126","v":2321},7.0097550662921684E-2,{"$f":"CntyQuery!$H126","v":2301},6.9611253970654971E-2,{"$f":"CntyQuery!$I126","v":2160},6.9159836065573771E-2,{"$f":"CntyQuery!J126","v":2105},6.9147887786610601E-2,null,-8.6169754416199913E-3,-8.518035636679705E-2]
[null,"Columbia",null,{"$f":"CntyQuery!$G127","v":750},2.26510827217541E-2,{"$f":"CntyQuery!$H127","v":757},2.2901225230676146E-2,{"$f":"CntyQuery!$I127","v":723},2.3149334016393443E-2,{"$f":"CntyQuery!J127","v":705},2.3158793771762696E-2,null,9.3333333333333341E-3,-6.8692206076618231E-2]
[null,"Crawford's Purchase",null,{"$f":"CntyQuery!$G128","v":0},0,{"$f":"CntyQuery!$H128","v":0},0,{"$f":"CntyQuery!$I128","v":0},0,{"$f":"CntyQuery!J128","v":0},0,null,{"$error":"#DIV/0!"},{"$error":"#DIV/0!"}]
[null,"Cutt's Grant",null,{"$f":"CntyQuery!$G129","v":0},0,{"$f":"CntyQuery!$H129","v":0},0,{"$f":"CntyQuery!$I129","v":0},0,{"$f":"CntyQuery!J129","v":0},0,null,{"$error":"#DIV/0!"},{"$error":"#DIV/0!"}]
[null,"Dalton",null,{"$f":"CntyQuery!$G130","v":927},2.7996738244088066E-2,{"$f":"CntyQuery!$H130","v":979},2.9617304492512479E-2,{"$f":"CntyQuery!$I130","v":976},3.125E-2,{"$f":"CntyQuery!J130","v":952},3.1272583930096576E-2,null,5.609492988133765E-2,-2.7579162410623085E-2]
[null,"Dix's Grant",null,{"$f":"CntyQuery!$G131","v":0},0,{"$f":"CntyQuery!$H131","v":1},3.025260928755105E-5,{"$f":"CntyQuery!$I131","v":0},0,{"$f":"CntyQuery!J131","v":0},0,null,{"$error":"#DIV/0!"},-1]
[null,"Dixville",null,{"$f":"CntyQuery!$G132","v":75},2.2651082721754099E-3,{"$f":"CntyQuery!$H132","v":12},3.6303131145061263E-4,{"$f":"CntyQuery!$I132","v":0},0,{"$f":"CntyQuery!J132","v":0},0,null,-0.84,-1]
[null,"Dummer",null,{"$f":"CntyQuery!$G133","v":309},9.3322460813626898E-3,{"$f":"CntyQuery!$H133","v":304},9.1967932234155204E-3,{"$f":"CntyQuery!$I133","v":283},9.0612192622950821E-3,{"$f":"CntyQuery!J133","v":276},9.0664213914985869E-3,null,-1.6181229773462782E-2,-9.2105263157894732E-2]
[null,"Errol",null,{"$f":"CntyQuery!$G134","v":298},9.0000302014436283E-3,{"$f":"CntyQuery!$H134","v":291},8.8035093026773564E-3,{"$f":"CntyQuery!$I134","v":269},8.6129610655737709E-3,{"$f":"CntyQuery!J134","v":262},8.6065304513501077E-3,null,-2.3489932885906041E-2,-9.9656357388316158E-2]
[null,"Erving's Location",null,{"$f":"CntyQuery!$G135","v":1},3.0201443629005467E-5,{"$f":"CntyQuery!$H135","v":0},0,{"$f":"CntyQuery!$I135","v":0},0,{"$f":"CntyQuery!J135","v":0},0,null,-1,{"$error":"#DIV/0!"}]
[null,"Gorham",null,{"$f":"CntyQuery!$G136","v":2895},8.7433179305970832E-2,{"$f":"CntyQuery!$H136","v":2848},8.6159431250945398E-2,{"$f":"CntyQuery!$I136","v":2652},8.4912909836065573E-2,{"$f":"CntyQuery!J136","v":2585},8.4915577163129891E-2,null,-1.6234887737478412E-2,-9.2345505617977525E-2]
[null,"Greens Grant",null,{"$f":"CntyQuery!$G137","v":0},0,{"$f":"CntyQuery!$H137","v":1},3.025260928755105E-5,{"$f":"CntyQuery!$I137","v":0},0,{"$f":"CntyQuery!J137","v":0},0,null,{"$error":"#DIV/0!"},-1]
[null,"Hadley's Purchase",null,{"$f":"CntyQuery!$G138","v":0},0,{"$f":"CntyQuery!$H138","v":0},0,{"$f":"CntyQuery!$I138","v":0},0,{"$f":"CntyQuery!J138","v":0},0,null,{"$error":"#DIV/0!"},{"$error":"#DIV/0!"}]
[null,"Jefferson",null,{"$f":"CntyQuery!$G139","v":1006},3.0382652290779501E-2,{"$f":"CntyQuery!$H139","v":1107},3.3489638481319015E-2,{"$f":"CntyQuery!$I139","v":1144},3.662909836065574E-2,{"$f":"CntyQuery!J139","v":1115},3.6627028447539581E-2,null,0.10039761431411531,7.2267389340560069E-3]
[null,"Kilkenny",null,{"$f":"CntyQuery!$G140","v":0},0,{"$f":"CntyQuery!$H140","v":0},0,{"$f":"CntyQuery!$I140","v":0},0,{"$f":"CntyQuery!J140","v":0},0,null,{"$error":"#DIV/0!"},{"$error":"#DIV/0!"}]
[null,"Lancaster",null,{"$f":"CntyQuery!$G141","v":3280},9.9060735103137926E-2,{"$f":"CntyQuery!$H141","v":3507},0.10609590077144154,{"$f":"CntyQuery!$I141","v":3536},0.11321721311475409,{"$f":"CntyQuery!J141","v":3446},0.11319886998226135,null,6.9207317073170738E-2,-1.7393783860849728E-2]
[null,"Low and Burbank's Grant",null,{"$f":"CntyQuery!$G142","v":0},0,{"$f":"CntyQuery!$H142","v":0},0,{"$f":"CntyQuery!$I142","v":0},0,{"$f":"CntyQuery!J142","v":0},0,null,{"$error":"#DIV/0!"},{"$error":"#DIV/0!"}]
[null,"Martin's Location",null,{"$f":"CntyQuery!$G143","v":0},0,{"$f":"CntyQuery!$H143","v":0},0,{"$f":"CntyQuery!$I143","v":0},0,{"$f":"CntyQuery!J143","v":0},0,null,{"$error":"#DIV/0!"},{"$error":"#DIV/0!"}]
[null,"Milan",null,{"$f":"CntyQuery!$G144","v":1331},4.0198121470206273E-2,{"$f":"CntyQuery!$H144","v":1337},4.0447738617455757E-2,{"$f":"CntyQuery!$I144","v":1272},4.0727459016393443E-2,{"$f":"CntyQuery!J144","v":1239},4.0700348203140398E-2,null,4.5078888054094664E-3,-7.3298429319371722E-2]
[null,"Millsfield",null,{"$f":"CntyQuery!$G145","v":22},6.6443175983812032E-4,{"$f":"CntyQuery!$H145","v":23},6.9581001361367415E-4,{"$f":"CntyQuery!$I145","v":0},0,{"$f":"CntyQuery!J145","v":0},0,null,4.5454545454545456E-2,-1]
[null,"Northumberland",null,{"$f":"CntyQuery!$G146","v":2438},7.3631119567515321E-2,{"$f":"CntyQuery!$H146","v":2288},6.921797004991681E-2,{"$f":"CntyQuery!$I146","v":2024},6.4805327868852458E-2,{"$f":"CntyQuery!J146","v":1973},6.4811773208067802E-2,null,-6.1525840853158327E-2,-0.13767482517482518]
[null,"Odell Township",null,{"$f":"CntyQuery!$G147","v":5},1.5100721814502734E-4,{"$f":"CntyQuery!$H147","v":4},1.210104371502042E-4,{"$f":"CntyQuery!$I147","v":0},0,{"$f":"CntyQuery!J147","v":0},0,null,-0.2,-1]
[null,"Pinkham's Grant",null,{"$f":"CntyQuery!$G148","v":0},0,{"$f":"CntyQuery!$H148","v":9},2.7227348358795946E-4,{"$f":"CntyQuery!$I148","v":0},0,{"$f":"CntyQuery!J148","v":0},0,null,{"$error":"#DIV/0!"},-1]
[null,"Pittsburg",null,{"$f":"CntyQuery!$G149","v":867},2.6184651626347741E-2,{"$f":"CntyQuery!$H149","v":869},2.6289517470881863E-2,{"$f":"CntyQuery!$I149","v":825},2.6415215163934427E-2,{"$f":"CntyQuery!J149","v":804},2.6410879705669799E-2,null,2.306805074971165E-3,-7.4798619102416572E-2]
[null,"Randolph",null,{"$f":"CntyQuery!$G150","v":339},1.0238289390232852E-2,{"$f":"CntyQuery!$H150","v":310},9.3783088791408262E-3,{"$f":"CntyQuery!$I150","v":266},8.5169057377049179E-3,{"$f":"CntyQuery!J150","v":259},8.5079823927468635E-3,null,-8.5545722713864306E-2,-0.16451612903225807]
[null,"Sargent's Purchase",null,{"$f":"CntyQuery!$G151","v":0},0,{"$f":"CntyQuery!$H151","v":3},9.0757827862653157E-5,{"$f":"CntyQuery!$I151","v":0},0,{"$f":"CntyQuery!J151","v":0},0,null,{"$error":"#DIV/0!"},-1]
[null,"Second College Grant",null,{"$f":"CntyQuery!$G152","v":0},0,{"$f":"CntyQuery!$H152","v":0},0,{"$f":"CntyQuery!$I152","v":0},0,{"$f":"CntyQuery!J152","v":0},0,null,{"$error":"#DIV/0!"},{"$error":"#DIV/0!"}]
[null,"Shelburne",null,{"$f":"CntyQuery!$G153","v":379},1.1446347135393073E-2,{"$f":"CntyQuery!$H153","v":372},1.1253970654968991E-2,{"$f":"CntyQuery!$I153","v":346},1.1078381147540983E-2,{"$f":"CntyQuery!J153","v":337},1.1070231916431247E-2,null,-1.8469656992084433E-2,-9.4086021505376344E-2]
[null,"Stark",null,{"$f":"CntyQuery!$G154","v":516},1.5583944912566821E-2,{"$f":"CntyQuery!$H154","v":556},1.6820450763878385E-2,{"$f":"CntyQuery!$I154","v":564},1.8058401639344263E-2,{"$f":"CntyQuery!J154","v":550},1.8067144077261676E-2,null,7.7519379844961239E-2,-1.0791366906474821E-2]
[null,"Stewartstown",null,{"$f":"CntyQuery!$G155","v":1012},3.0563860952553531E-2,{"$f":"CntyQuery!$H155","v":1004},3.0373619724701255E-2,{"$f":"CntyQuery!$I155","v":943},3.0193391393442622E-2,{"$f":"CntyQuery!J155","v":919},3.0188555285460876E-2,null,-7.9051383399209481E-3,-8.4661354581673301E-2]
[null,"Stratford",null,{"$f":"CntyQuery!$G156","v":942},2.844975989852315E-2,{"$f":"CntyQuery!$H156","v":746},2.2568446528513083E-2,{"$f":"CntyQuery!$I156","v":520},1.6649590163934427E-2,{"$f":"CntyQuery!J156","v":507},1.6654621903948494E-2,null,-0.20806794055201699,-0.32037533512064342]
[null,"Success",null,{"$f":"CntyQuery!$G157","v":2},6.0402887258010933E-5,{"$f":"CntyQuery!$H157","v":0},0,{"$f":"CntyQuery!$I157","v":0},0,{"$f":"CntyQuery!J157","v":0},0,null,-1,{"$error":"#DIV/0!"}]
[null,"Thompson and Meserves Purchase",null,{"$f":"CntyQuery!$G158","v":0},0,{"$f":"CntyQuery!$H158","v":0},0,{"$f":"CntyQuery!$I158","v":0},0,{"$f":"CntyQuery!J158","v":0},0,null,{"$error":"#DIV/0!"},{"$error":"#DIV/0!"}]
[null,"Wentworth's Location",null,{"$f":"CntyQuery!$G159","v":44},1.3288635196762406E-3,{"$f":"CntyQuery!$H159","v":33},9.9833610648918472E-4,{"$f":"CntyQuery!$I159","v":0},0,{"$f":"CntyQuery!J159","v":0},0,null,-0.25,-1]
[null,"Whitefield",null,{"$f":"CntyQuery!$G160","v":2038},6.155054211591314E-2,{"$f":"CntyQuery!$H160","v":2306},6.9762517017092726E-2,{"$f":"CntyQuery!$I160","v":2438},7.8060963114754092E-2,{"$f":"CntyQuery!J160","v":2376},7.8050062413770452E-2,null,0.13150147203140333,3.0355594102341718E-2]
[]
[]
[null,"Coos County",null,{"$f":"SUM(D30:D74)","v":33111},null,{"$f":"SUM(F30:F74)","v":33055},null,{"$f":"SUM(H30:H74)","v":31232},null,{"$f":"SUM(J30:J74)","v":30442},{"$f":"(F75-D75)/D75","v":-1.6912808432243062E-3},null,{"$f":"(F75-D75)/D75","v":-1.6912808432243062E-3},{"$f":"(J75-F75)/F75","v":-7.9050068068370893E-2}]

{"sheet":"HousingComparison","index":70,"n_rows":80,"n_cols":15,"rows_kept":80,"cut":false,"hidden":true,"merged":[[28,3,28,4],[28,5,28,8],[28,9,28,14],[29,5,29,6],[29,7,29,8],[29,9,29,10],[29,11,29,12],[29,13,29,14]]}
[]
[]
[]
[]
[]
[]
[]
[]
[]
[]
[]
[]
[]
[]
[]
[]
[]
[]
[]
[]
[]
[]
[]
[]
[]
[]
[]
[null,"Housing Units",null,"In 2019"]
[null,null,null,"Total Units",null,"Occupied Units",null,null,null,"Vacant Units"]
[null,null,null,null,null,"Owner",null,"Renter",null,"For Sale",null,"For Rent",null,"Seasonal"]
[null,null,null,"#","%","#","%","#","%","#","%","#","%","#","%"]
[]
[null,"Atkinson and Gilmanton Grant",null,{"$f":"ACS_Table_B25001!$C$7","v":0},{"$f":"D33/D$77","v":0},{"$f":"ACS_Table_B25003!$C$8","v":0},{"$f":"F33/$F$77","v":0},{"$f":"ACS_Table_B25003!$C$9","v":0},{"$f":"H33/$H$77","v":0},{"$f":"ACS_Table_B25004!$C$10","v":0},{"$f":"J33/$J$77","v":0},{"$f":"ACS_Table_B25004!$C$8","v":0},{"$f":"L33/$L$77","v":0},{"$f":"ACS_Table_B25004!$C$12","v":0},{"$f":"N33/$N$77","v":0}]
[null,"Bean's Grant",null,{"$f":"ACS_Table_B25001!$E$7","v":0},0,{"$f":"ACS_Table_B25003!$E$8","v":0},0,{"$f":"ACS_Table_B25003!$E$9","v":0},0,{"$f":"ACS_Table_B25004!$E$10","v":0},0,{"$f":"ACS_Table_B25004!$E$8","v":0},0,{"$f":"ACS_Table_B25004!$E$12","v":0},0]
[null,"Bean's Purchase",null,{"$f":"ACS_Table_B25001!$G$7","v":0},0,{"$f":"ACS_Table_B25003!$G$8","v":0},0,{"$f":"ACS_Table_B25003!$G$9","v":0},0,{"$f":"ACS_Table_B25004!$G$10","v":0},0,{"$f":"ACS_Table_B25004!$G$8","v":0},0,{"$f":"ACS_Table_B25004!$G$12","v":0},0]
[null,"Berlin",null,{"$f":"ACS_Table_B25001!$I$7","v":4784},0.22231516334402157,{"$f":"ACS_Table_B25003!$I$8","v":2228},0.22902960526315788,{"$f":"ACS_Table_B25003!$I$9","v":1749},0.43292079207920792,{"$f":"ACS_Table_B25004!$I$10","v":73},0.34928229665071769,{"$f":"ACS_Table_B25004!$I$8","v":100},0.29154518950437319,{"$f":"ACS_Table_B25004!$I$12","v":144},2.5139664804469275E-2]
[null,"Cambridge",null,{"$f":"ACS_Table_B25001!$K$7","v":29},1.3476462660904317E-3,{"$f":"ACS_Table_B25003!$K$8","v":0},0,{"$f":"ACS_Table_B25003!$K$9","v":0},0,{"$f":"ACS_Table_B25004!$K$10","v":0},0,{"$f":"ACS_Table_B25004!$K$8","v":3},8.7463556851311956E-3,{"$f":"ACS_Table_B25004!$K$12","v":26},4.5391061452513971E-3]
[null,"Carroll",null,{"$f":"ACS_Table_B25001!$M$7","v":924},4.2938798271295132E-2,{"$f":"ACS_Table_B25003!$M$8","v":252},2.5904605263157895E-2,{"$f":"ACS_Table_B25003!$M$9","v":72},1.782178217821782E-2,{"$f":"ACS_Table_B25004!$M$10","v":6},2.8708133971291867E-2,{"$f":"ACS_Table_B25004!$M$8","v":13},3.7900874635568516E-2,{"$f":"ACS_Table_B25004!$M$12","v":551},9.6194134078212284E-2]
[null,"Chandler's Purchase",null,{"$f":"ACS_Table_B25001!$O$7","v":0},0,{"$f":"ACS_Table_B25003!$O$8","v":0},0,{"$f":"ACS_Table_B25003!$O$9","v":0},0,{"$f":"ACS_Table_B25004!$O$10","v":0},0,{"$f":"ACS_Table_B25004!$O$8","v":0},0,{"$f":"ACS_Table_B25004!$O$12","v":0},0]
[null,"Clarksville",null,{"$f":"ACS_Table_B25001!$Q$7","v":461},2.1422928574747896E-2,{"$f":"ACS_Table_B25003!$Q$8","v":130},1.3363486842105263E-2,{"$f":"ACS_Table_B25003!$Q$9","v":11},2.7227722772277226E-3,{"$f":"ACS_Table_B25004!$Q$10","v":2},9.5693779904306216E-3,{"$f":"ACS_Table_B25004!$Q$8","v":0},0,{"$f":"ACS_Table_B25004!$Q$12","v":301},5.2548882681564248E-2]
[null,"Colebrook",null,{"$f":"ACS_Table_B25001!$S$7","v":1478},6.8683489009712342E-2,{"$f":"ACS_Table_B25003!$S$8","v":698},7.1751644736842105E-2,{"$f":"ACS_Table_B25003!$S$9","v":256},6.3366336633663367E-2,{"$f":"ACS_Table_B25004!$S$10","v":57},0.27272727272727271,{"$f":"ACS_Table_B25004!$S$8","v":17},4.9562682215743441E-2,{"$f":"ACS_Table_B25004!$S$12","v":280},4.8882681564245807E-2]
[null,"Columbia",null,{"$f":"ACS_Table_B25001!$U$7","v":518},2.4071750546029089E-2,{"$f":"ACS_Table_B25003!$U$8","v":267},2.7446546052631578E-2,{"$f":"ACS_Table_B25003!$U$9","v":49},1.2128712871287129E-2,{"$f":"ACS_Table_B25004!$U$10","v":0},0,{"$f":"ACS_Table_B25004!$U$8","v":2},5.8309037900874635E-3,{"$f":"ACS_Table_B25004!$U$12","v":170},2.967877094972067E-2]
[null,"Crawford's Purchase",null,{"$f":"ACS_Table_B25001!$W$7","v":0},0,{"$f":"ACS_Table_B25003!$W$8","v":0},0,{"$f":"ACS_Table_B25003!$W$9","v":0},0,{"$f":"ACS_Table_B25004!$W$10","v":0},0,{"$f":"ACS_Table_B25004!$W$8","v":0},0,{"$f":"ACS_Table_B25004!$W$12","v":0},0]
[null,"Cutt's Grant",null,{"$f":"ACS_Table_B25001!$Y$7","v":0},0,{"$f":"ACS_Table_B25003!$Y$8","v":0},0,{"$f":"ACS_Table_B25003!$Y$9","v":0},0,{"$f":"ACS_Table_B25004!$Y$10","v":0},0,{"$f":"ACS_Table_B25004!$Y$8","v":0},0,{"$f":"ACS_Table_B25004!$Y$12","v":0},0]
[null,"Dalton",null,{"$f":"ACS_Table_B25001!$AA$7","v":597},2.7742924857103026E-2,{"$f":"ACS_Table_B25003!$AA$8","v":364},3.7417763157894739E-2,{"$f":"ACS_Table_B25003!$AA$9","v":60},1.4851485148514851E-2,{"$f":"ACS_Table_B25004!$AA$10","v":3},1.4354066985645933E-2,{"$f":"ACS_Table_B25004!$AA$8","v":0},0,{"$f":"ACS_Table_B25004!$AA$12","v":107},1.8680167597765363E-2]
[null,"Dix's Grant",null,{"$f":"ACS_Table_B25001!$AC$7","v":13},6.0411729169571082E-4,{"$f":"ACS_Table_B25003!$AC$8","v":0},0,{"$f":"ACS_Table_B25003!$AC$9","v":0},0,{"$f":"ACS_Table_B25004!$AC$10","v":0},0,{"$f":"ACS_Table_B25004!$AC$8","v":0},0,{"$f":"ACS_Table_B25004!$AC$12","v":13},2.2695530726256985E-3]
[null,"Dixville Township",null,{"$f":"ACS_Table_B25001!$AE$7","v":29},1.3476462660904317E-3,{"$f":"ACS_Table_B25003!$AE$8","v":1},1.0279605263157894E-4,{"$f":"ACS_Table_B25003!$AE$9","v":0},0,{"$f":"ACS_Table_B25004!$AE$10","v":0},0,{"$f":"ACS_Table_B25004!$AE$8","v":0},0,{"$f":"ACS_Table_B25004!$AE$12","v":18},3.1424581005586594E-3]
[null,"Dummer",null,{"$f":"ACS_Table_B25001!$AG$7","v":267},1.2407639760211905E-2,{"$f":"ACS_Table_B25003!$AG$8","v":114},1.171875E-2,{"$f":"ACS_Table_B25003!$AG$9","v":13},3.2178217821782176E-3,{"$f":"ACS_Table_B25004!$AG$10","v":4},1.9138755980861243E-2,{"$f":"ACS_Table_B25004!$AG$8","v":0},0,{"$f":"ACS_Table_B25004!$AG$12","v":134},2.3393854748603352E-2]
[null,"Errol",null,{"$f":"ACS_Table_B25001!$AI$7","v":473},2.198057530554394E-2,{"$f":"ACS_Table_B25003!$AI$8","v":95},9.765625E-3,{"$f":"ACS_Table_B25003!$AI$9","v":18},4.4554455445544551E-3,{"$f":"ACS_Table_B25004!$AI$10","v":0},0,{"$f":"ACS_Table_B25004!$AI$8","v":4},1.1661807580174927E-2,{"$f":"ACS_Table_B25004!$AI$12","v":348},6.0754189944134077E-2]
[null,"Erving's Location",null,{"$f":"ACS_Table_B25001!$AK$7","v":0},0,{"$f":"ACS_Table_B25003!$AK$8","v":0},0,{"$f":"ACS_Table_B25003!$AK$9","v":0},0,{"$f":"ACS_Table_B25004!$AK$10","v":0},0,{"$f":"ACS_Table_B25004!$AK$8","v":0},0,{"$f":"ACS_Table_B25004!$AK$12","v":0},0]
[null,"Gorham",null,{"$f":"ACS_Table_B25001!$AM$7","v":1515},7.040289976300014E-2,{"$f":"ACS_Table_B25003!$AM$8","v":960},9.8684210526315791E-2,{"$f":"ACS_Table_B25003!$AM$9","v":283},7.0049504950495056E-2,{"$f":"ACS_Table_B25004!$AM$10","v":0},0,{"$f":"ACS_Table_B25004!$AM$8","v":104},0.30320699708454812,{"$f":"ACS_Table_B25004!$AM$12","v":48},8.3798882681564244E-3]
[null,"Greens Grant",null,{"$f":"ACS_Table_B25001!$AO$7","v":0},0,{"$f":"ACS_Table_B25003!$AO$8","v":0},0,{"$f":"ACS_Table_B25003!$AO$9","v":0},0,{"$f":"ACS_Table_B25004!$AO$10","v":0},0,{"$f":"ACS_Table_B25004!$AO$8","v":0},0,{"$f":"ACS_Table_B25004!$AO$12","v":0},0]
[null,"Hadley's Purchase",null,{"$f":"ACS_Table_B25001!$AQ$7","v":0},0,{"$f":"ACS_Table_B25003!$AQ$8","v":0},0,{"$f":"ACS_Table_B25003!$AQ$9","v":0},0,{"$f":"ACS_Table_B25004!$AQ$10","v":0},0,{"$f":"ACS_Table_B25004!$AQ$8","v":0},0,{"$f":"ACS_Table_B25004!$AQ$12","v":0},0]
[null,"Jefferson",null,{"$f":"ACS_Table_B25001!$AS$7","v":644},2.9927041219387517E-2,{"$f":"ACS_Table_B25003!$AS$8","v":346},3.5567434210526314E-2,{"$f":"ACS_Table_B25003!$AS$9","v":50},1.2376237623762377E-2,{"$f":"ACS_Table_B25004!$AS$10","v":0},0,{"$f":"ACS_Table_B25004!$AS$8","v":28},8.1632653061224483E-2,{"$f":"ACS_Table_B25004!$AS$12","v":205},3.5789106145251395E-2]
[null,"Kilkenny Township",null,{"$f":"ACS_Table_B25001!$AU$7","v":0},0,{"$f":"ACS_Table_B25003!$AU$8","v":0},0,{"$f":"ACS_Table_B25003!$AU$9","v":0},0,{"$f":"ACS_Table_B25004!$AU$10","v":0},0,{"$f":"ACS_Table_B25004!$AU$8","v":0},0,{"$f":"ACS_Table_B25004!$AU$12","v":0},0]
[null,"Lancaster",null,{"$f":"ACS_Table_B25001!$AW$7","v":1610},7.4817603048468795E-2,{"$f":"ACS_Table_B25003!$AW$8","v":1019},0.10474917763157894,{"$f":"ACS_Table_B25003!$AW$9","v":347},8.5891089108910898E-2,{"$f":"ACS_Table_B25004!$AW$10","v":0},0,{"$f":"ACS_Table_B25004!$AW$8","v":34},9.9125364431486881E-2,{"$f":"ACS_Table_B25004!$AW$12","v":137},2.3917597765363129E-2]
[null,"Low and Burbank's Grant",null,{"$f":"ACS_Table_B25001!$AY$7","v":0},0,{"$f":"ACS_Table_B25003!$AY$8","v":0},0,{"$f":"ACS_Table_B25003!$AY$9","v":0},0,{"$f":"ACS_Table_B25004!$AY$10","v":0},0,{"$f":"ACS_Table_B25004!$AY$8","v":0},0,{"$f":"ACS_Table_B25004!$AY$12","v":0},0]
[null,"Martin's Location",null,{"$f":"ACS_Table_B25001!$BA$7","v":0},0,{"$f":"ACS_Table_B25003!$BA$8","v":0},0,{"$f":"ACS_Table_B25003!$BA$9","v":0},0,{"$f":"ACS_Table_B25004!$BA$10","v":0},0,{"$f":"ACS_Table_B25004!$BA$8","v":0},0,{"$f":"ACS_Table_B25004!$BA$12","v":0},0]
[null,"Milan",null,{"$f":"ACS_Table_B25001!$BC$7","v":886},4.1172916957107675E-2,{"$f":"ACS_Table_B25003!$BC$8","v":499},5.1295230263157895E-2,{"$f":"ACS_Table_B25003!$BC$9","v":90},2.2277227722772276E-2,{"$f":"ACS_Table_B25004!$BC$10","v":10},4.784688995215311E-2,{"$f":"ACS_Table_B25004!$BC$8","v":0},0,{"$f":"ACS_Table_B25004!$BC$12","v":240},4.189944134078212E-2]
[null,"Millsfield",null,{"$f":"ACS_Table_B25001!$BE$7","v":69},3.2064687020772341E-3,{"$f":"ACS_Table_B25003!$BE$8","v":4},4.1118421052631577E-4,{"$f":"ACS_Table_B25003!$BE$9","v":0},0,{"$f":"ACS_Table_B25004!$BE$10","v":0},0,{"$f":"ACS_Table_B25004!$BE$8","v":0},0,{"$f":"ACS_Table_B25004!$BE$12","v":56},9.7765363128491621E-3]
[null,"Northumberland",null,{"$f":"ACS_Table_B25001!$BG$7","v":1170},5.4370556252613972E-2,{"$f":"ACS_Table_B25003!$BG$8","v":660},6.7845394736842105E-2,{"$f":"ACS_Table_B25003!$BG$9","v":324},8.01980198019802E-2,{"$f":"ACS_Table_B25004!$BG$10","v":28},0.13397129186602871,{"$f":"ACS_Table_B25004!$BG$8","v":0},0,{"$f":"ACS_Table_B25004!$BG$12","v":71},1.2395251396648045E-2]
[null,"Odell Township",null,{"$f":"ACS_Table_B25001!$BI$7","v":0},0,{"$f":"ACS_Table_B25003!$BI$8","v":0},0,{"$f":"ACS_Table_B25003!$BI$9","v":0},0,{"$f":"ACS_Table_B25004!$BI$10","v":0},0,{"$f":"ACS_Table_B25004!$BI$8","v":0},0,{"$f":"ACS_Table_B25004!$BI$12","v":0},0]
[null,"Pinkham's Grant",null,{"$f":"ACS_Table_B25001!$BK$7","v":0},0,{"$f":"ACS_Table_B25003!$BK$8","v":0},0,{"$f":"ACS_Table_B25003!$BK$9","v":0},0,{"$f":"ACS_Table_B25004!$BK$10","v":0},0,{"$f":"ACS_Table_B25004!$BK$8","v":0},0,{"$f":"ACS_Table_B25004!$BK$12","v":0},0]
[null,"Pittsburg",null,{"$f":"ACS_Table_B25001!$BM$7","v":1816},8.4390538593800829E-2,{"$f":"ACS_Table_B25003!$BM$8","v":336},3.453947368421053E-2,{"$f":"ACS_Table_B25003!$BM$9","v":87},2.1534653465346533E-2,{"$f":"ACS_Table_B25004!$BM$10","v":8},3.8277511961722487E-2,{"$f":"ACS_Table_B25004!$BM$8","v":15},4.3731778425655975E-2,{"$f":"ACS_Table_B25004!$BM$12","v":1287},0.22468575418994413]
[null,"Randolph",null,{"$f":"ACS_Table_B25001!$BO$7","v":354},1.6450578558483201E-2,{"$f":"ACS_Table_B25003!$BO$8","v":161},1.6550164473684209E-2,{"$f":"ACS_Table_B25003!$BO$9","v":35},8.6633663366336641E-3,{"$f":"ACS_Table_B25004!$BO$10","v":1},4.7846889952153108E-3,{"$f":"ACS_Table_B25004!$BO$8","v":4},1.1661807580174927E-2,{"$f":"ACS_Table_B25004!$BO$12","v":150},2.6187150837988827E-2]
[null,"Sargent's Purchase",null,{"$f":"ACS_Table_B25001!$BQ$7","v":0},0,{"$f":"ACS_Table_B25003!$BQ$8","v":0},0,{"$f":"ACS_Table_B25003!$BQ$9","v":0},0,{"$f":"ACS_Table_B25004!$BQ$10","v":0},0,{"$f":"ACS_Table_B25004!$BQ$8","v":0},0,{"$f":"ACS_Table_B25004!$BQ$12","v":0},0]
[null,"Second College Grant",null,{"$f":"ACS_Table_B25001!$BS$7","v":28},1.3011757051907616E-3,{"$f":"ACS_Table_B25003!$BS$8","v":0},0,{"$f":"ACS_Table_B25003!$BS$9","v":0},0,{"$f":"ACS_Table_B25004!$BS$10","v":0},0,{"$f":"ACS_Table_B25004!$BS$8","v":0},0,{"$f":"ACS_Table_B25004!$BS$12","v":28},4.8882681564245811E-3]
[null,"Shelburne",null,{"$f":"ACS_Table_B25001!$BU$7","v":244},1.1338816859519494E-2,{"$f":"ACS_Table_B25003!$BU$8","v":163},1.6755756578947369E-2,{"$f":"ACS_Table_B25003!$BU$9","v":37},9.1584158415841579E-3,{"$f":"ACS_Table_B25004!$BU$10","v":0},0,{"$f":"ACS_Table_B25004!$BU$8","v":0},0,{"$f":"ACS_Table_B25004!$BU$12","v":35},6.1103351955307259E-3]
[null,"Stark",null,{"$f":"ACS_Table_B25001!$BW$7","v":492},2.2863515962637668E-2,{"$f":"ACS_Table_B25003!$BW$8","v":198},2.0353618421052631E-2,{"$f":"ACS_Table_B25003!$BW$9","v":35},8.6633663366336641E-3,{"$f":"ACS_Table_B25004!$BW$10","v":0},0,{"$f":"ACS_Table_B25004!$BW$8","v":0},0,{"$f":"ACS_Table_B25004!$BW$12","v":225},3.9280726256983242E-2]
[null,"Stewartstown",null,{"$f":"ACS_Table_B25001!$BY$7","v":943},4.3821738928388865E-2,{"$f":"ACS_Table_B25003!$BY$8","v":370},3.8034539473684209E-2,{"$f":"ACS_Table_B25003!$BY$9","v":48},1.1881188118811881E-2,{"$f":"ACS_Table_B25004!$BY$10","v":0},0,{"$f":"ACS_Table_B25004!$BY$8","v":13},3.7900874635568516E-2,{"$f":"ACS_Table_B25004!$BY$12","v":465},8.1180167597765363E-2]
[null,"Stratford",null,{"$f":"ACS_Table_B25001!$CA$7","v":557},2.5884102421116224E-2,{"$f":"ACS_Table_B25003!$CA$8","v":206},2.1175986842105265E-2,{"$f":"ACS_Table_B25003!$CA$9","v":71},1.7574257425742576E-2,{"$f":"ACS_Table_B25004!$CA$10","v":0},0,{"$f":"ACS_Table_B25004!$CA$8","v":6},1.7492711370262391E-2,{"$f":"ACS_Table_B25004!$CA$12","v":230},4.0153631284916204E-2]
[null,"Success",null,{"$f":"ACS_Table_B25001!$CC$7","v":59},2.7417630930805337E-3,{"$f":"ACS_Table_B25003!$CC$8","v":0},0,{"$f":"ACS_Table_B25003!$CC$9","v":0},0,{"$f":"ACS_Table_B25004!$CC$10","v":0},0,{"$f":"ACS_Table_B25004!$CC$8","v":0},0,{"$f":"ACS_Table_B25004!$CC$12","v":59},1.0300279329608938E-2]
[null,"Thompson and Meserves Purchase",null,{"$f":"ACS_Table_B25001!$CE$7","v":0},0,{"$f":"ACS_Table_B25003!$CE$8","v":0},0,{"$f":"ACS_Table_B25003!$CE$9","v":0},0,{"$f":"ACS_Table_B25004!$CE$10","v":0},0,{"$f":"ACS_Table_B25004!$CE$8","v":0},0,{"$f":"ACS_Table_B25004!$CE$12","v":0},0]
[null,"Wentworth's Location",null,{"$f":"ACS_Table_B25001!$CG$7","v":112},5.2047028207630464E-3,{"$f":"ACS_Table_B25003!$CG$8","v":14},1.4391447368421052E-3,{"$f":"ACS_Table_B25003!$CG$9","v":2},4.9504950495049506E-4,{"$f":"ACS_Table_B25004!$CG$10","v":0},0,{"$f":"ACS_Table_B25004!$CG$8","v":0},0,{"$f":"ACS_Table_B25004!$CG$12","v":82},1.4315642458100559E-2]
[null,"Whitefield",null,{"$f":"ACS_Table_B25001!$CI$7","v":1447},6.7242901621822573E-2,{"$f":"ACS_Table_B25003!$CI$8","v":643},6.6097861842105268E-2,{"$f":"ACS_Table_B25003!$CI$9","v":403},9.9752475247524758E-2,{"$f":"ACS_Table_B25004!$CI$10","v":17},8.1339712918660281E-2,{"$f":"ACS_Table_B25004!$CI$8","v":0},0,{"$f":"ACS_Table_B25004!$CI$12","v":318},5.5516759776536313E-2]
[]
[null,"Coos County",null,{"$f":"SUM(D33:D76)","v":21519},null,{"$f":"SUM(F33:F76)","v":9728},null,{"$f":"SUM(H33:H76)","v":4040},null,{"$f":"SUM(J33:J76)","v":209},null,{"$f":"SUM(L33:L76)","v":343},null,{"$f":"SUM(N33:N76)","v":5728}]
[]
[null,"Source: 2015-2019 American Community Survey Tables B25001; B25003; and B25004"]
[null,"Margin of error is not displayed.  The American Community Survey data are estimates only."]

{"sheet":"DropDownList","index":71,"n_rows":47,"n_cols":2,"rows_kept":47,"cut":false,"hidden":true,"merged":[]}
["List Range for Combo Box on Start Page"]
["Atkinson and Gilmanton Grant"]
["Bean's Grant"]
["Bean's Purchase"]
["Berlin"]
["Cambridge"]
["Carroll"]
["Chandler's Purchase"]
["Clarksville"]
["Colebrook"]
["Columbia"]
["Crawford's Purchase"]
["Cutt's Grant"]
["Dalton"]
["Dix's Grant"]
["Dixville"]
["Dummer"]
["Errol"]
["Erving's Location"]
["Gorham"]
["Greens Grant"]
["Hadley's Purchase"]
["Jefferson"]
["Kilkenny"]
["Lancaster"]
["Low and Burbank's Grant"]
["Martin's Location"]
["Milan"]
["Millsfield"]
["Northumberland"]
["Odell"]
["Pinkham's Grant"]
["Pittsburg"]
["Randolph"]
["Sargent's Purchase"]
["Second College Grant"]
["Shelburne"]
["Stark"]
["Stewartstown"]
["Stratford"]
["Success"]
["Thompson and Meserves Purchase"]
["Wentworth's Location"]
["Whitefield"]
[]
[]
[{"$f":"B47","v":"Berlin"},"Berlin"]

{"sheet":"CntyQryCensus","index":72,"n_rows":600,"n_cols":216,"rows_kept":600,"cut":false,"hidden":true,"merged":[]}
[]
["Census 2000 SF1   -           Query Name:  TownAllQuery3"]
["NAME","COUNTY","LOGRECNO","COUSUB","TRACT","AREALAND","AREAWATR","POP100","HU100","P01TotalPopulation","P03PopOfOneRace","P03PopWhite","P03PopBlack","P03PopAmIndian","P03PopAsian","P03PopHawaiian","P03PopOtherRace","P03Pop2orMoreRaces","P04PopHispanicLatino","P04PopNotHispanicLatino","P12PopMale","P12PopMale<15","P12PopMale15to24","P12PopMale25to34","P12PopMale35to44","P12PopMale45to54","P12PopMale55to64","P12PopMale65to74","P12PopMale75to84","P12PopMale85andOver","P12PopFemale","P12PopFemale<15","P12PopFemale15to24","P12PopFemale25to34","P12PopFemale35t44","P12PopFemale45to54","P12PopFemale55to64","P12PopFemale65to74","P12PopFemale75to84","P12PopFemale85andOver","P15Households2000","P16PopInHH","P17AvgHHSize","P18HHs1Person","P18HHs2orMorePerson","P18HHsFamily","P18HHMarriedCoupleFam","P18HHSingleParentFam","P18HHsNonFamily","P31Families","P32PopInFam","P33AvgFamSize","H01TotHsUnits","H04OccHsUnits","H04OwnerOccHU","H04RenterOccHU","H05VctHsUnits","H05VctHUForRent","H05VctHUForSale","H05VctHUSeasonal","H10PopInOccHU","H11PopInOwnOccHU","H11PopInRntOccHU","H12AvgHHSize2","H12AvgHHSizOwnOcc","H12AvgHHSizRntOcc","H14OwnOccWhtHsHldr","H14OwnOccBlkHsHldr","H14OwnOccAmIHsHldr","H14OwnOccAsnHsHldr","H14OwnOccPIsHsHldr","H14OwnOccORHsHldr","H14OwnOcc2RcHsHldr","H14RntOccWhtHsHldr","H14RntOccBlkHsHldr","H14RntOccAmIHsHldr","H14RntOccAsnHsHldr","H14RntOccPIsHsHldr","H14RntOccORHsHldr","H14RntOcc2RcHsHldr","H16OwnOccHH15to24","H16OwnOccHH25to34","H16OwnOccHH35to44","H16OwnOccHH45to54","H16OwnOccHH55to64","H16OwnOccHH65to74","H16OwnOccHH75to84","H16OwnOccHH85Over","H16RntOccHH15to24","H16RntOccHH25to34","H16RntOccHH35to44","H16RntOccHH45to54","H16RntOccHH55to64","H16RntOccHH65to74","H16RntOccHH75to84","H16RntOccHH85Over","P27TotalPop","P27PopInHseHlds","P27PopInGrpQtrs","P13MedianPopTotal","P13MedianPopMale","P13MedianPopFemale"]
["Atkinson and Gilmanton Grant","007","0007907","02420","","      50923907","             0",12,"       15",12,12,11,0,0,0,0,1,0,1,11,7,0,0,2,2,0,1,2,0,0,5,1,0,2,1,0,1,0,0,0,7,12,1.71,3,4,4,4,0,0,4,9,2.25,15,7,2,5,8,0,2,3,12,3,9,1.71,1.5,1.8,2,0,0,0,0,0,0,5,0,0,0,0,0,0,0,0,0,0,1,1,0,0,0,2,2,0,0,1,0,0,12,12,0,39.5,41.5,33.799999999999997]
["Bean's Grant","007","0007936","04100","","      25114259","             0",0,"        0",0,0,0,0,0,0,0,0,0,0,0,0,0,0,0,0,0,0,0,0,0,0,0,0,0,0,0,0,0,0,0,0,0,0,0,0,0,0,0,0,0,0,0,0,0,0,0,0,0,0,0,0,0,0,0,0,0,0,0,0,0,0,0,0,0,0,0,0,0,0,0,0,0,0,0,0,0,0,0,0,0,0,0,0,0,0,0,0,0,0,0,0,0]
["Bean's Purchase","007","0007946","04260","","     168988092","         53952",4,"        3",4,4,4,0,0,0,0,0,0,0,4,1,0,0,1,0,0,0,0,0,0,3,0,0,1,0,0,0,0,0,2,3,4,1.33,2,1,1,1,0,0,1,2,2,3,3,3,0,0,0,0,0,4,4,0,1.33,1.33,0,3,0,0,0,0,0,0,0,0,0,0,0,0,0,0,1,0,0,0,0,0,2,0,0,0,0,0,0,0,0,4,4,0,60,28.5,88.3]
["Berlin","007","0007959","05140","","     159870757","       1901917",10331,"     5111",10331,10248,10150,19,24,38,1,16,83,68,10263,4922,961,544,560,819,690,459,502,307,80,5409,832,539,597,766,690,538,642,537,268,4555,10133,2.2200000000000002,1447,3108,2902,2213,689,206,2902,7956,2.74,5111,4555,2790,1765,556,216,87,37,10133,6680,3453,2.2200000000000002,2.39,1.96,2768,3,5,6,0,1,7,1722,1,5,11,0,3,23,17,227,545,578,407,542,373,101,179,369,336,207,161,199,217,97,10331,10133,198,42.5,40.299999999999997,44.6]
["Cambridge","007","0008297","08420","","     131587695","       1649803",10,"       39",10,10,10,0,0,0,0,0,0,0,10,5,1,0,1,1,2,0,0,0,0,5,0,1,0,1,2,0,0,1,0,5,10,2,2,3,3,3,0,0,3,8,2.67,39,5,4,1,34,0,1,33,10,8,2,2,2,2,4,0,0,0,0,0,0,1,0,0,0,0,0,0,0,1,1,1,0,0,1,0,0,0,0,1,0,0,0,0,10,10,0,44,40.5,46.5]
["Carroll","007","0008322","10100","","     129980807","         64862",663,"      740",663,661,655,0,0,5,0,1,2,4,659,337,51,40,25,65,53,56,38,7,2,326,56,34,36,51,58,40,30,14,7,279,654,2.34,71,208,190,157,33,18,190,524,2.76,740,279,219,60,461,11,7,427,654,521,133,2.34,2.38,2.2200000000000002,218,0,0,0,0,1,0,59,0,0,1,0,0,0,2,16,47,47,51,40,14,2,9,11,18,7,5,5,2,3,663,654,9,42.9,43.1,42.7]
["Chandler's Purchase","007","0008432","11220","","       5521586","             0",0,"        0",0,0,0,0,0,0,0,0,0,0,0,0,0,0,0,0,0,0,0,0,0,0,0,0,0,0,0,0,0,0,0,0,0,0,0,0,0,0,0,0,0,0,0,0,0,0,0,0,0,0,0,0,0,0,0,0,0,0,0,0,0,0,0,0,0,0,0,0,0,0,0,0,0,0,0,0,0,0,0,0,0,0,0,0,0,0,0,0,0,0,0,0,0]
["Clarksville","007","0008442","13220","","     156017676","       4873657",294,"      307",294,285,282,0,3,0,0,0,9,5,289,155,33,12,11,24,32,24,11,8,0,139,19,15,8,26,32,24,11,4,0,118,292,2.4700000000000002,23,95,88,79,9,7,88,246,2.8,307,118,106,12,189,1,1,184,292,266,26,2.4700000000000002,2.5099999999999998,2.17,102,0,1,0,0,0,3,12,0,0,0,0,0,0,0,7,24,27,25,14,9,0,0,3,4,4,1,0,0,0,294,292,2,44.5,42.5,45.8]
["Colebrook","007","0008496","13780","","     106155414","         68969",2321,"     1312",2321,2303,2286,0,6,7,0,4,18,9,2312,1137,209,143,130,167,205,116,106,49,12,1184,196,136,142,185,164,146,119,69,27,1035,2282,2.2000000000000002,352,683,608,478,130,75,608,1680,2.76,1312,1035,681,354,277,86,16,142,2282,1604,678,2.2000000000000002,2.36,1.92,675,0,2,1,0,0,3,343,0,3,1,0,0,7,5,67,119,185,115,117,59,14,48,74,79,42,33,34,30,14,2321,2282,39,41.2,40.299999999999997,41.7]
["Columbia","007","0008599","13940","","     157557051","        157814",750,"      449",750,737,732,1,2,2,0,0,13,5,745,399,94,38,43,58,63,41,38,21,3,351,60,27,44,54,67,47,31,18,3,300,747,2.4900000000000002,64,236,218,180,38,18,218,615,2.82,449,300,254,46,149,5,3,130,747,640,107,2.4900000000000002,2.52,2.33,249,0,1,0,0,0,4,46,0,0,0,0,0,0,2,32,47,63,48,38,23,1,2,11,9,11,3,5,4,1,750,747,3,42,39.200000000000003,43.5]
["Crawford's Purchase","007","0008655","16100","","      21213149","             0",0,"        0",0,0,0,0,0,0,0,0,0,0,0,0,0,0,0,0,0,0,0,0,0,0,0,0,0,0,0,0,0,0,0,0,0,0,0,0,0,0,0,0,0,0,0,0,0,0,0,0,0,0,0,0,0,0,0,0,0,0,0,0,0,0,0,0,0,0,0,0,0,0,0,0,0,0,0,0,0,0,0,0,0,0,0,0,0,0,0,0,0,0,0,0,0]
["Cutt's Grant","007","0008684","16660","","      29624980","             0",0,"        0",0,0,0,0,0,0,0,0,0,0,0,0,0,0,0,0,0,0,0,0,0,0,0,0,0,0,0,0,0,0,0,0,0,0,0,0,0,0,0,0,0,0,0,0,0,0,0,0,0,0,0,0,0,0,0,0,0,0,0,0,0,0,0,0,0,0,0,0,0,0,0,0,0,0,0,0,0,0,0,0,0,0,0,0,0,0,0,0,0,0,0,0,0]
["Dalton","007","0008689","16820","","      71198377","       1984319",927,"      520",927,913,897,7,5,2,0,2,14,18,909,477,103,55,51,74,78,60,34,18,4,450,88,40,48,79,72,44,44,31,4,374,927,2.48,90,284,254,210,44,30,254,750,2.95,520,374,322,52,146,3,15,114,927,809,118,2.48,2.5099999999999998,2.27,314,1,2,0,0,0,5,51,0,1,0,0,0,0,3,29,73,71,56,52,33,5,6,12,10,8,8,2,4,2,927,927,0,40.6,40.1,41]
["Dix's Grant","007","0008750","18340","","      52268322","             0",0,"       16",0,0,0,0,0,0,0,0,0,0,0,0,0,0,0,0,0,0,0,0,0,0,0,0,0,0,0,0,0,0,0,0,0,0,0,0,0,0,0,0,0,0,0,16,0,0,0,16,0,0,15,0,0,0,0,0,0,0,0,0,0,0,0,0,0,0,0,0,0,0,0,0,0,0,0,0,0,0,0,0,0,0,0,0,0,0,0,0,0,0,0,0,0]
["Dixville","007","0008763","18420","","     126536455","        354034",75,"       36",75,75,74,0,0,0,1,0,0,1,74,32,4,3,3,3,1,1,5,7,5,43,0,1,3,3,2,2,6,11,15,10,28,2.8,0,10,10,10,0,0,10,28,2.8,36,10,7,3,26,0,0,26,28,20,8,2.8,2.86,2.67,7,0,0,0,0,0,0,3,0,0,0,0,0,0,0,2,3,0,0,2,0,0,0,1,0,1,0,1,0,0,75,28,47,75.5,68,79.5]
["Dummer","007","0008795","19300","","     123659428","       3363234",309,"      252",309,306,305,0,0,1,0,0,3,0,309,157,37,7,18,28,26,22,11,7,1,152,32,11,12,30,23,23,14,5,2,128,307,2.4,25,103,102,83,19,1,102,278,2.73,252,128,110,18,124,3,3,114,307,267,40,2.4,2.4300000000000002,2.2200000000000002,108,0,0,0,0,0,2,18,0,0,0,0,0,0,2,10,22,28,23,17,7,1,0,8,5,3,2,0,0,0,309,307,2,41.8,41.1,42.7]
["Errol","007","0008844","25140","","     157904262","      22338698",298,"      447",298,297,294,0,0,0,1,2,1,3,295,155,17,9,15,29,20,38,15,8,4,143,21,12,12,26,23,24,14,11,0,137,295,2.15,34,103,90,83,7,13,90,230,2.56,447,137,120,17,310,3,10,280,295,261,34,2.15,2.1800000000000002,2,119,0,0,0,0,1,0,17,0,0,0,0,0,0,0,11,21,19,37,19,9,4,2,2,6,5,0,2,0,0,298,295,3,47.2,50.5,45.2]
["Erving's Location","007","0008928","25180","","       9521370","             0",1,"        1",1,1,1,0,0,0,0,0,0,0,1,1,0,0,0,0,1,0,0,0,0,0,0,0,0,0,0,0,0,0,0,1,1,1,1,0,0,0,0,0,0,0,0,1,1,0,1,0,0,0,0,1,0,1,1,0,1,0,0,0,0,0,0,0,1,0,0,0,0,0,0,0,0,0,0,0,0,0,0,0,0,0,1,0,0,0,0,1,1,0,53.5,53.5,0]
["Gorham","007","0008933","30260","","      82635569","       1054358",2895,"     1482",2895,2866,2818,2,6,35,1,4,29,9,2886,1427,261,164,156,242,241,126,118,103,16,1468,252,132,159,252,211,131,157,142,32,1293,2890,2.2400000000000002,427,866,802,668,134,64,802,2279,2.84,1482,1293,923,370,189,44,19,59,2890,2220,670,2.2400000000000002,2.41,1.81,907,0,2,4,0,1,9,363,1,1,3,1,0,1,5,90,195,211,141,128,127,26,41,66,69,41,21,46,70,16,2895,2890,5,42,41.3,42.6]
["Greens Grant","007","0009071","31780","","       9491057","             0",0,"        0",0,0,0,0,0,0,0,0,0,0,0,0,0,0,0,0,0,0,0,0,0,0,0,0,0,0,0,0,0,0,0,0,0,0,0,0,0,0,0,0,0,0,0,0,0,0,0,0,0,0,0,0,0,0,0,0,0,0,0,0,0,0,0,0,0,0,0,0,0,0,0,0,0,0,0,0,0,0,0,0,0,0,0,0,0,0,0,0,0,0,0,0,0]
["Hadley's Purchase","007","0009085","32420","","      19202419","             0",0,"        0",0,0,0,0,0,0,0,0,0,0,0,0,0,0,0,0,0,0,0,0,0,0,0,0,0,0,0,0,0,0,0,0,0,0,0,0,0,0,0,0,0,0,0,0,0,0,0,0,0,0,0,0,0,0,0,0,0,0,0,0,0,0,0,0,0,0,0,0,0,0,0,0,0,0,0,0,0,0,0,0,0,0,0,0,0,0,0,0,0,0,0,0,0]
["Jefferson","007","0009091","38820","","     129906934","        587641",1006,"      582",1006,992,989,0,1,1,1,0,14,1,1005,512,88,44,65,76,97,73,42,21,6,494,87,47,62,71,95,61,32,27,12,407,1006,2.4700000000000002,83,324,295,254,41,29,295,837,2.84,582,407,343,64,175,2,13,143,1006,881,125,2.4700000000000002,2.57,1.95,333,0,1,0,0,0,9,63,0,0,0,1,0,0,4,34,63,86,75,46,25,10,5,22,12,15,2,3,3,2,1006,1006,0,42.9,43.1,42.6]
["Kilkenny","007","0009176","39940","","      66418269","         15520",0,"        0",0,0,0,0,0,0,0,0,0,0,0,0,0,0,0,0,0,0,0,0,0,0,0,0,0,0,0,0,0,0,0,0,0,0,0,0,0,0,0,0,0,0,0,0,0,0,0,0,0,0,0,0,0,0,0,0,0,0,0,0,0,0,0,0,0,0,0,0,0,0,0,0,0,0,0,0,0,0,0,0,0,0,0,0,0,0,0,0,0,0,0,0,0]
["Lancaster","007","0009186","40420","","     129746153","       3038430",3280,"     1501",3280,3243,3217,2,9,7,0,8,37,21,3259,1544,356,168,187,230,225,167,104,80,27,1736,330,194,189,258,260,156,143,135,71,1286,3128,2.4300000000000002,349,937,867,679,188,70,867,2550,2.94,1501,1286,892,394,215,35,13,109,3128,2325,803,2.4300000000000002,2.61,2.04,878,0,2,1,0,3,8,385,1,2,0,0,0,6,12,92,177,217,162,123,89,20,47,96,79,51,26,41,39,15,3280,3128,152,39.799999999999997,37.9,40.799999999999997]
["Low and Burbank's Grant","007","0009310","43620","","      67710629","             0",0,"        0",0,0,0,0,0,0,0,0,0,0,0,0,0,0,0,0,0,0,0,0,0,0,0,0,0,0,0,0,0,0,0,0,0,0,0,0,0,0,0,0,0,0,0,0,0,0,0,0,0,0,0,0,0,0,0,0,0,0,0,0,0,0,0,0,0,0,0,0,0,0,0,0,0,0,0,0,0,0,0,0,0,0,0,0,0,0,0,0,0,0,0,0,0]
["Martin's Location","007","0009323","46020","","       9743874","             0",0,"        0",0,0,0,0,0,0,0,0,0,0,0,0,0,0,0,0,0,0,0,0,0,0,0,0,0,0,0,0,0,0,0,0,0,0,0,0,0,0,0,0,0,0,0,0,0,0,0,0,0,0,0,0,0,0,0,0,0,0,0,0,0,0,0,0,0,0,0,0,0,0,0,0,0,0,0,0,0,0,0,0,0,0,0,0,0,0,0,0,0,0,0,0,0]
["Milan","007","0009342","47860","","     159905513","       1344010",1331,"      756",1331,1326,1317,1,4,1,0,3,5,0,1331,682,137,70,68,129,136,66,42,34,0,649,135,50,78,121,109,68,44,38,6,532,1331,2.5,114,418,389,332,57,29,389,1134,2.92,756,532,485,47,224,3,14,192,1331,1204,127,2.5,2.48,2.7,478,1,3,0,0,0,3,47,0,0,0,0,0,0,1,58,122,134,71,50,44,5,5,15,10,6,4,2,5,0,1331,1331,0,40.9,41.3,40.4]
["Millsfield","007","0009402","48260","","     116442842","        898209",22,"       62",22,22,22,0,0,0,0,0,0,0,22,6,0,1,0,2,2,0,0,1,0,16,3,1,1,2,0,0,1,2,6,8,22,2.75,3,5,5,3,2,0,5,19,3.8,62,8,6,2,54,0,1,53,22,20,2,2.75,3.33,1,6,0,0,0,0,0,0,2,0,0,0,0,0,0,0,0,1,2,0,0,1,2,0,0,0,0,0,1,1,0,22,22,0,51.5,47,74.5]
["Northumberland","007","0009441","56100","","      93697182","       1981305",2438,"     1112",2438,2414,2400,0,6,8,0,0,24,13,2425,1210,269,145,141,209,155,123,99,58,11,1228,239,153,130,193,181,114,120,80,18,989,2438,2.4700000000000002,264,725,667,507,160,58,667,1940,2.91,1112,989,751,238,123,31,13,44,2438,1918,520,2.4700000000000002,2.5499999999999998,2.1800000000000002,744,0,2,1,0,0,4,234,0,2,0,0,0,2,16,76,168,154,120,116,84,17,32,53,45,36,21,22,22,7,2438,2438,0,38.4,37.700000000000003,39.4]
["Odell","007","0009553","57860","","     115240401","       1754878",5,"       73",5,5,5,0,0,0,0,0,0,0,5,2,0,0,1,0,1,0,0,0,0,3,0,1,0,0,0,0,1,1,0,4,5,1.25,3,1,1,1,0,0,1,2,2,73,4,1,3,69,0,0,69,5,2,3,1.25,2,1,1,0,0,0,0,0,0,3,0,0,0,0,0,0,0,1,0,0,0,0,0,0,0,0,0,1,0,1,1,0,5,5,0,50.5,40,72.5]
["Pinkham's Grant","007","0009585","61620","","       9761141","         12038",0,"        1",0,0,0,0,0,0,0,0,0,0,0,0,0,0,0,0,0,0,0,0,0,0,0,0,0,0,0,0,0,0,0,0,0,0,0,0,0,0,0,0,0,0,0,1,0,0,0,1,0,0,1,0,0,0,0,0,0,0,0,0,0,0,0,0,0,0,0,0,0,0,0,0,0,0,0,0,0,0,0,0,0,0,0,0,0,0,0,0,0,0,0,0,0]
["Pittsburg","007","0009601","61780","","     731161670","      23440081",867,"     1281",867,860,852,1,5,0,0,2,7,4,863,446,67,42,40,66,75,72,61,22,1,421,59,43,44,56,67,71,56,17,8,386,866,2.2400000000000002,103,283,264,228,36,19,264,704,2.67,1281,386,333,53,895,2,12,850,866,749,117,2.2400000000000002,2.25,2.21,330,0,1,0,0,0,2,53,0,0,0,0,0,0,5,30,55,65,79,70,25,4,4,9,5,16,2,6,8,3,867,866,1,46,46.8,45.7]
["Randolph","007","0009764","63860","","     122007957","        114018",339,"      298",339,333,327,3,1,1,0,1,6,2,337,173,20,23,7,31,42,18,17,10,5,166,25,14,15,32,32,17,11,16,4,146,337,2.31,35,111,105,101,4,6,105,288,2.74,298,146,127,19,152,1,1,137,337,300,37,2.31,2.36,1.95,124,1,1,1,0,0,0,18,0,0,0,0,0,1,2,4,25,40,19,18,13,6,1,5,7,3,0,0,3,0,339,337,2,45.6,47.4,44.4]
["Sargent's Purchase","007","0009824","67860","","      66963245","         16690",0,"        0",0,0,0,0,0,0,0,0,0,0,0,0,0,0,0,0,0,0,0,0,0,0,0,0,0,0,0,0,0,0,0,0,0,0,0,0,0,0,0,0,0,0,0,0,0,0,0,0,0,0,0,0,0,0,0,0,0,0,0,0,0,0,0,0,0,0,0,0,0,0,0,0,0,0,0,0,0,0,0,0,0,0,0,0,0,0,0,0,0,0,0,0,0]
["Second College Grant","007","0009832","68500","","     107829317","        127840",0,"        8",0,0,0,0,0,0,0,0,0,0,0,0,0,0,0,0,0,0,0,0,0,0,0,0,0,0,0,0,0,0,0,0,0,0,0,0,0,0,0,0,0,0,0,8,0,0,0,8,0,0,0,0,0,0,0,0,0,0,0,0,0,0,0,0,0,0,0,0,0,0,0,0,0,0,0,0,0,0,0,0,0,0,0,0,0,0,0,0,0,0,0,0,0]
["Shelburne","007","0009858","68980","","     124044641","       2338052",379,"      197",379,372,369,0,1,1,0,1,7,4,375,195,33,24,8,25,46,28,21,6,4,184,34,15,12,36,40,16,19,9,3,156,379,2.4300000000000002,32,124,114,106,8,10,114,325,2.85,197,156,136,20,41,2,2,35,379,341,38,2.4300000000000002,2.5099999999999998,1.9,133,0,0,0,0,0,3,20,0,0,0,0,0,0,0,7,22,44,28,22,8,5,4,4,3,4,1,4,0,0,379,379,0,45.2,45.9,43.3]
["Stark","007","0009916","73060","","     153079037","       1295179",516,"      384",516,511,503,0,0,7,0,1,5,2,514,257,55,28,25,48,40,25,29,7,0,259,60,24,24,50,36,34,18,7,6,194,515,2.65,34,160,147,119,28,13,147,439,2.99,384,194,173,21,190,1,6,169,515,470,45,2.65,2.72,2.14,170,0,0,1,0,0,2,20,0,0,0,0,0,1,2,18,44,43,28,27,10,1,1,6,6,3,2,2,0,1,516,515,1,40.299999999999997,40.299999999999997,40.299999999999997]
["Stewartstown","007","0009977","73380","","     120133308","       1014256",1012,"      760",1012,1004,1003,0,1,0,0,0,8,1,1011,521,92,72,74,81,71,52,40,30,9,491,96,50,47,74,67,57,32,35,33,371,899,2.42,103,268,242,187,55,26,242,705,2.91,760,371,283,88,389,19,9,343,899,702,197,2.42,2.48,2.2400000000000002,279,0,0,0,0,0,4,88,0,0,0,0,0,0,3,40,61,65,51,35,18,10,18,18,18,14,6,7,4,3,1012,899,113,39.4,37.799999999999997,41.3]
["Stratford","007","0010032","74180","","     206821621","        374358",942,"      540",942,915,902,0,12,0,0,1,27,7,935,435,79,62,51,63,65,62,34,15,4,507,102,66,49,66,77,80,32,22,13,397,942,2.37,127,270,235,169,66,35,235,711,3.03,540,397,269,128,143,7,5,107,942,656,286,2.37,2.44,2.23,258,0,4,0,0,0,7,125,0,1,0,0,0,2,6,20,48,63,60,41,22,9,23,18,25,24,23,9,4,2,942,942,0,40,39.9,40.1]
["Success","007","0010115","74500","","     152189347","       1240888",2,"       71",2,2,2,0,0,0,0,0,0,0,2,1,0,0,0,0,1,0,0,0,0,1,0,0,0,0,1,0,0,0,0,1,2,2,0,1,1,1,0,0,1,2,2,71,1,1,0,70,0,0,70,2,2,0,2,2,0,1,0,0,0,0,0,0,0,0,0,0,0,0,0,0,0,0,1,0,0,0,0,0,0,0,0,0,0,0,0,2,2,0,49.5,48.5,50.5]
["Thompson and Meserves Purchase","007","0010145","76580","","      47923616","          2413",0,"        0",0,0,0,0,0,0,0,0,0,0,0,0,0,0,0,0,0,0,0,0,0,0,0,0,0,0,0,0,0,0,0,0,0,0,0,0,0,0,0,0,0,0,0,0,0,0,0,0,0,0,0,0,0,0,0,0,0,0,0,0,0,0,0,0,0,0,0,0,0,0,0,0,0,0,0,0,0,0,0,0,0,0,0,0,0,0,0,0,0,0,0,0,0]
["Wentworth's Location","007","0010154","80740","","      48578719","       1854061",44,"      109",44,40,40,0,0,0,0,0,4,0,44,24,3,3,1,2,9,1,5,0,0,20,4,1,6,2,2,5,0,0,0,20,44,2.2000000000000002,6,14,13,10,3,1,13,35,2.69,109,20,15,5,89,1,0,85,44,38,6,2.2000000000000002,2.5299999999999998,1.2,15,0,0,0,0,0,0,5,0,0,0,0,0,0,0,2,2,5,1,5,0,0,0,2,0,1,2,0,0,0,44,44,0,39.6,40.700000000000003,39.200000000000003]
["Whitefield","007","0010178","84420","","      88700467","       1118190",2038,"     1158",2038,2023,1999,4,7,7,0,6,15,23,2015,965,190,124,99,158,154,89,84,50,17,1073,201,133,104,168,158,83,92,82,52,819,1969,2.4,222,597,547,436,111,50,547,1588,2.9,1158,819,586,233,339,29,18,232,1969,1473,496,2.4,2.5099999999999998,2.13,577,0,3,1,0,1,4,230,0,0,0,0,0,3,10,56,133,143,97,85,48,14,25,43,53,33,12,32,26,9,2038,1969,69,39.700000000000003,39.1,40.299999999999997]
[]
[]
[]
[]
["Census 2000 DemoProfile Sample Data Tables 2&3   -  DPTab23TownQry"]
[]
["TOWN_NAME","COUSUB","AREANAME","PopInSchool","Preschool","Kindergarten","Elementary","HighSchool","College","Pop25andOver","HighSchoolGrad","SomeCollege","AssocDegree","BachelDegree","GradDegree","HSGradorHigher","CollegeGradorHigher","Pop5to20yrs","Pop5to20wDis","Pop21to64","Pop21to64wDis","Pop65over","Pop65overwDis","Pop5yrsOver","SameHUin95","DiffHUinUSin95","HUinSameCountyin95","HUinSameStatein95","TotalPop","NativePop","NatPopBornUS","NatPopBornInStatRes","NatPopBornDiffState","NatPopBornOutUS","FornBornPop","FornPopEnt90to00","FornPopNatCit","FornPopNotCit","Households","HHIncLessThn10k","HHInc10to15K","HHInc15to25K","HHInc25to35K","HHInc35to50K","HHInc50to75K","HHInc75to100K","HHInc100to150K","HHInc150to200K","HHIncOver200K","MedianHHInc","HHwithPubAssistInc","MeanPubAssist","FamilyHH","FHHIncLessThn10k","FHHInc10to15K","FHHInc15to25K","FHHInc25to35K","FHHInc35to50K","FHHInc50to75K","FHHInc75to100K","FHHInc100to150K","FHHInc150to200K","FHHIncOver200K","MedianFHHInc","PerCapitaInc","PovStatFamilies","PovStatFHHwChilUnd18","PovStatFHHwChilUnd5","PovStFmalHH","DP3088","DP3089","PovStatIndiv","PovStatIndiv18yrOver","PovStatIndiv65yrOver","DP3093","DP3094","DP3095","CNTY_NAME"]
["Atkinson and Gilmanton Grant","02420","",null,null,null,null,null,null,null,null,null,null,null,null,null,null,null,null,null,null,null,null,null,null,null,null,null,null,null,null,null,null,null,null,null,null,null,null,null,null,null,null,null,null,null,null,null,null,null,null,null,null,null,null,null,null,null,null,null,null,null,null,null,null,null,null,null,null,null,null,null,null,null,null,null,null,"Coos"]
["Bean's Grant","04100","",null,null,null,null,null,null,null,null,null,null,null,null,null,null,null,null,null,null,null,null,null,null,null,null,null,null,null,null,null,null,null,null,null,null,null,null,null,null,null,null,null,null,null,null,null,null,null,null,null,null,null,null,null,null,null,null,null,null,null,null,null,null,null,null,null,null,null,null,null,null,null,null,null,null,"Coos"]
["Bean's Purchase","04260","",null,null,null,null,null,null,null,null,null,null,null,null,null,null,null,null,null,null,null,null,null,null,null,null,null,null,null,null,null,null,null,null,null,null,null,null,null,null,null,null,null,null,null,null,null,null,null,null,null,null,null,null,null,null,null,null,null,null,null,null,null,null,null,null,null,null,null,null,null,null,null,null,null,null,"Coos"]
["Berlin","05140","Berlin city, New Hampshire",2260,147,144,996,630,343,7445,2987,1316,608,339,157,5407,496,2009,185,5434,1454,2169,1094,9800,6457,3316,2519,797,10331,9858,9788,7823,1965,70,473,57,345,128,4555,677,494,770,671,853,776,185,107,14,8,29647,361,1727,2919,182,190,407,468,726,696,154,88,8,0,38750,15780,265,184,89,123,108,58,1249,937,269,284,168,567,"Coos"]
["Cambridge","08420","",null,null,null,null,null,null,null,null,null,null,null,null,null,null,null,null,null,null,null,null,null,null,null,null,null,null,null,null,null,null,null,null,null,null,null,null,null,null,null,null,null,null,null,null,null,null,null,null,null,null,null,null,null,null,null,null,null,null,null,null,null,null,null,null,null,null,null,null,null,null,null,null,null,null,"Coos"]
["Carroll","10100","Carroll town, Coos County, New Hampshire",125,3,2,54,36,30,488,166,118,51,67,34,436,101,116,11,410,86,105,40,631,333,296,129,167,670,660,651,238,413,9,10,3,7,3,286,28,11,37,53,64,67,14,11,0,1,39286,8,1938,192,4,4,21,39,47,56,11,9,0,1,45227,18734,6,4,0,4,4,0,46,40,13,6,6,31,"Coos"]
["Chandler's Purchase","11220","",null,null,null,null,null,null,null,null,null,null,null,null,null,null,null,null,null,null,null,null,null,null,null,null,null,null,null,null,null,null,null,null,null,null,null,null,null,null,null,null,null,null,null,null,null,null,null,null,null,null,null,null,null,null,null,null,null,null,null,null,null,null,null,null,null,null,null,null,null,null,null,null,null,null,"Coos"]
["Clarksville","13220","Clarksville town, Coos County, New Hampshire",59,4,3,26,14,12,229,121,30,16,25,5,197,30,58,1,183,31,46,18,287,198,81,53,28,301,290,285,192,93,5,11,0,2,9,129,7,4,16,23,39,29,6,5,0,0,40179,3,5000,92,5,2,12,8,31,26,6,2,0,0,44688,18090,5,0,0,0,0,0,11,11,4,0,0,2,"Coos"]
["Colebrook","13780","Colebrook town, Coos County, New Hampshire",518,44,26,241,144,63,1637,702,202,112,137,68,1221,205,480,44,1358,350,381,201,2219,1339,878,570,308,2331,2198,2185,1511,674,13,133,5,77,56,1039,139,102,160,145,174,213,60,31,9,6,32244,72,1327,611,19,43,84,87,121,169,51,27,4,6,42260,18390,40,32,8,32,32,8,277,199,77,70,51,157,"Coos"]
["Columbia","13940","Columbia town, Coos County, New Hampshire",162,4,8,97,36,17,526,233,58,53,29,10,383,39,151,23,437,118,119,44,707,501,203,137,66,740,715,711,505,206,4,25,0,9,16,309,24,47,39,39,67,53,20,20,0,0,36964,27,1411,226,6,31,25,27,57,45,21,14,0,0,42143,16859,9,6,0,6,6,0,53,38,12,11,11,31,"Coos"]
["Crawford's Purchase","16100","",null,null,null,null,null,null,null,null,null,null,null,null,null,null,null,null,null,null,null,null,null,null,null,null,null,null,null,null,null,null,null,null,null,null,null,null,null,null,null,null,null,null,null,null,null,null,null,null,null,null,null,null,null,null,null,null,null,null,null,null,null,null,null,null,null,null,null,null,null,null,null,null,null,null,"Coos"]
["Cutt's Grant","16660","",null,null,null,null,null,null,null,null,null,null,null,null,null,null,null,null,null,null,null,null,null,null,null,null,null,null,null,null,null,null,null,null,null,null,null,null,null,null,null,null,null,null,null,null,null,null,null,null,null,null,null,null,null,null,null,null,null,null,null,null,null,null,null,null,null,null,null,null,null,null,null,null,null,null,"Coos"]
["Dalton","16820","Dalton town, Coos County, New Hampshire",230,13,9,130,54,24,635,318,72,25,35,41,491,76,243,30,516,112,139,78,898,598,300,124,176,950,934,930,559,371,4,16,3,9,7,371,26,23,82,51,77,71,25,13,3,0,35625,22,2950,258,4,6,46,37,75,54,25,8,3,0,41667,16234,7,5,2,5,5,2,53,37,15,16,14,27,"Coos"]
["Dix's Grant","18340","",null,null,null,null,null,null,null,null,null,null,null,null,null,null,null,null,null,null,null,null,null,null,null,null,null,null,null,null,null,null,null,null,null,null,null,null,null,null,null,null,null,null,null,null,null,null,null,null,null,null,null,null,null,null,null,null,null,null,null,null,null,null,null,null,null,null,null,null,null,null,null,null,null,null,"Coos"]
["Dixville","18420","",null,null,null,null,null,null,null,null,null,null,null,null,null,null,null,null,null,null,null,null,null,null,null,null,null,null,null,null,null,null,null,null,null,null,null,null,null,null,null,null,null,null,null,null,null,null,null,null,null,null,null,null,null,null,null,null,null,null,null,null,null,null,null,null,null,null,null,null,null,null,null,null,null,null,"Coos"]
["Dummer","19300","Dummer town, Coos County, New Hampshire",74,3,0,50,17,4,248,123,22,35,12,9,201,21,71,2,212,38,40,17,323,285,38,35,3,345,337,337,253,84,0,8,0,8,0,142,16,8,20,36,25,24,8,5,0,0,32750,7,600,109,5,2,13,30,22,24,8,5,0,0,42708,16755,5,2,0,2,2,0,23,21,4,2,2,13,"Coos"]
["Errol","25140","Errol town, Coos County, New Hampshire",58,0,0,39,17,2,246,122,46,4,17,4,193,21,54,10,184,42,66,16,304,236,66,39,27,314,297,295,179,116,2,17,4,8,9,133,10,16,21,18,24,27,9,3,2,3,35625,10,1000,92,2,9,12,12,19,21,9,3,2,3,47500,22440,9,7,5,4,4,2,41,26,10,15,10,10,"Coos"]
["Erving's Location","25180","",null,null,null,null,null,null,null,null,null,null,null,null,null,null,null,null,null,null,null,null,null,null,null,null,null,null,null,null,null,null,null,null,null,null,null,null,null,null,null,null,null,null,null,null,null,null,null,null,null,null,null,null,null,null,null,null,null,null,null,null,null,null,null,null,null,null,null,null,null,null,null,null,null,null,"Coos"]
["Gorham","30260","Gorham town, Coos County, New Hampshire",632,21,55,329,149,78,2107,773,352,265,205,78,1673,283,601,42,1596,383,589,278,2786,1940,805,558,247,2900,2749,2736,1956,780,13,151,39,76,75,1293,131,134,236,182,249,256,78,27,0,0,32250,54,1726,801,12,32,117,138,178,240,65,19,0,0,41008,16649,31,18,0,12,6,0,202,161,63,37,37,110,"Coos"]
["Greens Grant","31780","",null,null,null,null,null,null,null,null,null,null,null,null,null,null,null,null,null,null,null,null,null,null,null,null,null,null,null,null,null,null,null,null,null,null,null,null,null,null,null,null,null,null,null,null,null,null,null,null,null,null,null,null,null,null,null,null,null,null,null,null,null,null,null,null,null,null,null,null,null,null,null,null,null,null,"Coos"]
["Hadley's Purchase","32420","",null,null,null,null,null,null,null,null,null,null,null,null,null,null,null,null,null,null,null,null,null,null,null,null,null,null,null,null,null,null,null,null,null,null,null,null,null,null,null,null,null,null,null,null,null,null,null,null,null,null,null,null,null,null,null,null,null,null,null,null,null,null,null,null,null,null,null,null,null,null,null,null,null,null,"Coos"]
["Jefferson","38820","Jefferson town, Coos County, New Hampshire",225,7,18,106,63,31,732,281,129,42,109,47,608,156,201,14,615,79,142,67,958,583,373,189,184,1002,979,975,555,420,4,23,0,20,3,413,41,24,51,48,90,111,26,12,6,4,41089,17,1253,299,9,9,40,43,76,81,19,12,6,4,42067,19556,14,12,5,7,5,5,81,56,14,25,17,35,"Coos"]
["Kilkenny","39940","",null,null,null,null,null,null,null,null,null,null,null,null,null,null,null,null,null,null,null,null,null,null,null,null,null,null,null,null,null,null,null,null,null,null,null,null,null,null,null,null,null,null,null,null,null,null,null,null,null,null,null,null,null,null,null,null,null,null,null,null,null,null,null,null,null,null,null,null,null,null,null,null,null,null,"Coos"]
["Lancaster","40420","Lancaster town, Coos County, New Hampshire",764,59,32,393,218,62,2311,1009,272,146,361,202,1990,563,695,55,1795,489,479,226,3070,1566,1459,919,540,3280,3178,3137,1842,1295,41,102,46,57,45,1283,117,126,139,187,266,207,123,108,3,7,40305,54,1445,866,27,52,74,153,201,171,106,75,0,7,43333,19905,59,46,37,34,34,25,303,199,71,80,37,138,"Coos"]
["Low and Burbank's Grant","43620","",null,null,null,null,null,null,null,null,null,null,null,null,null,null,null,null,null,null,null,null,null,null,null,null,null,null,null,null,null,null,null,null,null,null,null,null,null,null,null,null,null,null,null,null,null,null,null,null,null,null,null,null,null,null,null,null,null,null,null,null,null,null,null,null,null,null,null,null,null,null,null,null,null,null,"Coos"]
["Martin's Location","46020","",null,null,null,null,null,null,null,null,null,null,null,null,null,null,null,null,null,null,null,null,null,null,null,null,null,null,null,null,null,null,null,null,null,null,null,null,null,null,null,null,null,null,null,null,null,null,null,null,null,null,null,null,null,null,null,null,null,null,null,null,null,null,null,null,null,null,null,null,null,null,null,null,null,null,"Coos"]
["Milan","47860","Milan town, Coos County, New Hampshire",321,7,13,176,86,39,930,397,106,115,105,26,749,131,298,22,796,230,159,84,1253,911,330,229,101,1319,1273,1273,975,298,0,46,2,33,13,537,21,32,76,84,124,139,31,22,3,5,40966,14,2264,395,8,18,47,62,80,124,29,19,3,5,47361,19818,12,9,2,2,2,0,75,52,22,23,18,29,"Coos"]
["Millsfield","48260","",null,null,null,null,null,null,null,null,null,null,null,null,null,null,null,null,null,null,null,null,null,null,null,null,null,null,null,null,null,null,null,null,null,null,null,null,null,null,null,null,null,null,null,null,null,null,null,null,null,null,null,null,null,null,null,null,null,null,null,null,null,null,null,null,null,null,null,null,null,null,null,null,null,null,"Coos"]
["Northumberland","56100","Northumberland town, Coos County, New Hampshire",609,27,29,318,176,59,1638,787,223,120,44,22,1196,66,588,78,1356,463,378,185,2322,1457,863,611,252,2438,2359,2339,1694,645,20,79,14,47,32,1002,100,119,163,174,208,177,37,20,2,2,31570,51,2517,680,41,65,114,126,142,145,34,13,0,0,34444,15101,64,43,22,27,25,14,274,192,38,78,57,93,"Coos"]
["Odell","57860","",null,null,null,null,null,null,null,null,null,null,null,null,null,null,null,null,null,null,null,null,null,null,null,null,null,null,null,null,null,null,null,null,null,null,null,null,null,null,null,null,null,null,null,null,null,null,null,null,null,null,null,null,null,null,null,null,null,null,null,null,null,null,null,null,null,null,null,null,null,null,null,null,null,null,"Coos"]
["Pinkham's Grant","61620","",null,null,null,null,null,null,null,null,null,null,null,null,null,null,null,null,null,null,null,null,null,null,null,null,null,null,null,null,null,null,null,null,null,null,null,null,null,null,null,null,null,null,null,null,null,null,null,null,null,null,null,null,null,null,null,null,null,null,null,null,null,null,null,null,null,null,null,null,null,null,null,null,null,null,"Coos"]
["Pittsburg","61780","Pittsburg town, Coos County, New Hampshire",156,6,7,77,54,12,654,312,92,38,54,15,511,69,166,8,512,101,156,48,834,622,209,69,140,872,834,830,589,241,4,38,0,23,15,383,38,20,61,51,98,82,20,11,2,0,38516,12,1950,260,8,8,41,38,72,63,20,8,2,0,42500,17703,13,5,0,2,2,0,64,51,18,13,13,25,"Coos"]
["Randolph","63860","Randolph town, Coos County, New Hampshire",77,0,3,34,32,8,240,56,39,14,72,43,224,115,75,6,196,17,55,29,326,231,95,35,60,336,329,327,165,162,2,7,3,0,7,137,2,11,9,20,26,29,18,15,2,5,50139,0,0,100,2,1,7,14,21,20,17,14,2,2,52083,25092,2,0,0,0,0,0,6,6,0,0,0,2,"Coos"]
["Sargent's Purchase","67860","",null,null,null,null,null,null,null,null,null,null,null,null,null,null,null,null,null,null,null,null,null,null,null,null,null,null,null,null,null,null,null,null,null,null,null,null,null,null,null,null,null,null,null,null,null,null,null,null,null,null,null,null,null,null,null,null,null,null,null,null,null,null,null,null,null,null,null,null,null,null,null,null,null,null,"Coos"]
["Second College Grant","68500","",null,null,null,null,null,null,null,null,null,null,null,null,null,null,null,null,null,null,null,null,null,null,null,null,null,null,null,null,null,null,null,null,null,null,null,null,null,null,null,null,null,null,null,null,null,null,null,null,null,null,null,null,null,null,null,null,null,null,null,null,null,null,null,null,null,null,null,null,null,null,null,null,null,null,"Coos"]
["Shelburne","68980","Shelburne town, Coos County, New Hampshire",84,4,2,36,39,3,261,79,50,31,46,35,241,81,82,4,234,85,37,8,357,257,95,35,60,378,359,359,203,156,0,19,7,12,7,154,5,5,22,22,32,31,17,9,6,5,44375,2,450,105,3,3,8,8,20,28,15,9,6,5,59375,24899,3,0,0,0,0,0,14,12,5,0,0,9,"Coos"]
["Stark","73060","Stark town, Coos County, New Hampshire",135,0,3,73,38,21,359,160,61,32,24,10,287,34,129,10,306,93,65,23,504,374,124,75,49,530,511,502,356,146,9,19,0,11,8,211,9,16,28,44,52,47,11,0,0,4,37946,14,2293,157,2,11,22,27,41,40,10,0,0,4,40089,17168,4,0,0,0,0,0,27,24,4,0,0,19,"Coos"]
["Stewartstown","73380","Stewartstown town, Coos County, New Hampshire",213,5,4,125,66,13,691,314,54,47,39,19,473,58,210,18,556,159,118,39,954,578,376,214,162,1012,935,931,709,222,4,77,0,54,23,368,39,53,48,76,73,46,16,9,3,5,30700,13,3792,245,14,17,32,60,64,35,9,9,3,2,34911,17231,22,17,16,11,11,10,108,77,17,29,10,47,"Coos"]
["Stratford","74180","Stratford town, Coos County, New Hampshire",244,17,11,113,82,21,628,263,74,21,32,11,401,43,233,32,534,152,124,69,891,583,304,179,125,933,911,902,527,375,9,22,0,17,5,393,52,63,59,51,82,68,16,2,0,0,28594,50,2975,233,9,32,41,42,46,49,12,2,0,0,33295,13784,25,23,7,16,14,4,133,89,11,42,34,52,"Coos"]
["Success","74500","",null,null,null,null,null,null,null,null,null,null,null,null,null,null,null,null,null,null,null,null,null,null,null,null,null,null,null,null,null,null,null,null,null,null,null,null,null,null,null,null,null,null,null,null,null,null,null,null,null,null,null,null,null,null,null,null,null,null,null,null,null,null,null,null,null,null,null,null,null,null,null,null,null,null,"Coos"]
["Thompson and Meserves Purchase","76580","",null,null,null,null,null,null,null,null,null,null,null,null,null,null,null,null,null,null,null,null,null,null,null,null,null,null,null,null,null,null,null,null,null,null,null,null,null,null,null,null,null,null,null,null,null,null,null,null,null,null,null,null,null,null,null,null,null,null,null,null,null,null,null,null,null,null,null,null,null,null,null,null,null,null,"Coos"]
["Wentworth's Location","80740","",null,null,null,null,null,null,null,null,null,null,null,null,null,null,null,null,null,null,null,null,null,null,null,null,null,null,null,null,null,null,null,null,null,null,null,null,null,null,null,null,null,null,null,null,null,null,null,null,null,null,null,null,null,null,null,null,null,null,null,null,null,null,null,null,null,null,null,null,null,null,null,null,null,null,"Coos"]
["Whitefield","84420","Whitefield town, Coos County, New Hampshire",480,26,22,213,129,90,1387,517,271,116,141,66,1111,207,441,53,1078,186,311,133,1899,1052,836,357,479,2015,1969,1960,1103,857,9,46,9,26,20,814,85,61,147,117,161,152,58,23,4,6,34583,43,3481,540,20,27,87,81,121,132,48,16,2,6,41528,17070,33,23,11,14,12,6,187,135,42,42,28,84,"Coos"]
[]
[]
[]
[]
["Census 2000 DemoProfile Sample Data Table 4   -  DPTab4TownQry"]
[]
["TOWN_NAME","COUSUB","TotHousingUnits","1UnitDet","1UnitAtt","2Units","3to4Units","5to9Units","10to19Units","20orMoreUnits","MobileHomes","BoatRvVan","SingleFamilyUnits","MultiFamUnits","MobileHomeUnits","YearBuilt99to00","YearBuilt95to98","YearBUilt90to94","YearBuilt80to89","YearBuilt70to79","YearBuilt60to69","YearBuilt40to59","YearBuilt39orEarlier","Rooms1","Rooms2","Rooms3","Rooms4","Rooms5","Rooms6","Rooms7","Rooms8","Rooms9orMore","MedianRooms","OccHU1","YrHHMvdIn99to00","YrHHMvdIn95to98","YrHHMvdIn90to94","YrHHMvdIn80to89","YrHHMvdIn70to79","YrHHMvdIn69orBefore","HeatFuelNatGas","HeatFuelBotGas","HeatFuelElectric","HeatFuelOil","HeatFuelCoal","HeatFuelWood","HeatFuelSolar","HeatFuelOther","HeatFuelNone","LackCompPlumb","LackCompKit","NoTelephone","OccHU","OccPerRm1orLess","OccPerRm1to1_5","OccPerRm1_5orMore","SpecOwnOccUnits","Value<50K","Value50to100K","Value100to150K","Value150to200K","Value200to300K","Value300to500K","Value500Kto1mil","Value1MilorMore","MedianValue","WithMortg","MnthOwnCst<300","MnthOwnCst300to500","MnthOwnCst500to700","MnthOwnCst700to1000","MnthOwnCst1000to1500","MnthOwnCst1500to2000","MnthOwnCst2000orMore","MediMnthOwnCst","NotMrtg","NotMrtgMediMnthOwnCst","OwnCst%HHInc<15","OwnCst%HHInc15to20","OwnCst%HHInc20to25","OwnCst%HHInc25to30","OwnCst%HHInc30to35","OwnCst%HHInc35orMor","NotComputed","SpecRntOccUnits","Rnt<200","Rnt200to300","Rnt300to500","Rnt500to750","Rnt750to1000","Rnt1000to1500","Rnt1500orMore","NoRent","MedianRent","Rnt%HHInc<15","Rnt%HHInc15to20","Rnt%HHInc20to25","Rnt%HHInc25to30","Rnt%HHInc30to35","Rnt%HHInc35orMore"]
["Atkinson and Gilmanton Grant","02420",null,null,null,null,null,null,null,null,null,null,null,null,null,null,null,null,null,null,null,null,null,null,null,null,null,null,null,null,null,null,null,null,null,null,null,null,null,null,null,null,null,null,null,null,null,null,null,null,null,null,null,null,null,null,null,null,null,null,null,null,null,null,null,null,null,null,null,null,null,null,null,null,null,null,null,null,null,null,null,null,null,null,null,null,null,null,null,null,null,null,null,null,null,null,null,null,null,null,null,"Coos"]
["Bean's Grant","04100",null,null,null,null,null,null,null,null,null,null,null,null,null,null,null,null,null,null,null,null,null,null,null,null,null,null,null,null,null,null,null,null,null,null,null,null,null,null,null,null,null,null,null,null,null,null,null,null,null,null,null,null,null,null,null,null,null,null,null,null,null,null,null,null,null,null,null,null,null,null,null,null,null,null,null,null,null,null,null,null,null,null,null,null,null,null,null,null,null,null,null,null,null,null,null,null,null,null,null,"Coos"]
["Bean's Purchase","04260",null,null,null,null,null,null,null,null,null,null,null,null,null,null,null,null,null,null,null,null,null,null,null,null,null,null,null,null,null,null,null,null,null,null,null,null,null,null,null,null,null,null,null,null,null,null,null,null,null,null,null,null,null,null,null,null,null,null,null,null,null,null,null,null,null,null,null,null,null,null,null,null,null,null,null,null,null,null,null,null,null,null,null,null,null,null,null,null,null,null,null,null,null,null,null,null,null,null,null,"Coos"]
["Berlin","05140",5111,2454,43,1072,824,415,78,135,90,0,2454,2567,90,7,7,11,152,394,288,1201,3051,18,99,475,1059,1417,1017,489,260,277,5.0999999999999996,4555,743,899,493,806,601,1013,0,45,104,4315,6,54,0,22,9,12,6,159,4555,4486,57,12,2110,751,1253,93,8,5,0,0,0,59100,1119,0,103,321,510,161,24,0,769,991,384,768,497,308,165,93,252,27,1754,183,220,1007,208,32,5,0,99,382,339,248,190,152,176,536,113,"Coos"]
["Cambridge","08420",null,null,null,null,null,null,null,null,null,null,null,null,null,null,null,null,null,null,null,null,null,null,null,null,null,null,null,null,null,null,null,null,null,null,null,null,null,null,null,null,null,null,null,null,null,null,null,null,null,null,null,null,null,null,null,null,null,null,null,null,null,null,null,null,null,null,null,null,null,null,null,null,null,null,null,null,null,null,null,null,null,null,null,null,null,null,null,null,null,null,null,null,null,null,null,null,null,null,null,"Coos"]
["Carroll","10100",799,406,159,17,107,52,27,0,31,0,406,362,31,28,219,70,188,75,26,74,119,5,12,23,149,207,227,66,62,48,5.5,287,46,76,57,50,42,16,2,28,6,230,2,19,0,0,0,2,0,6,287,287,0,0,163,6,96,22,31,4,2,2,0,91800,100,2,8,23,45,16,2,4,820,63,355,68,20,27,11,13,24,0,54,0,0,18,28,4,0,0,4,567,14,2,2,8,7,17,4,"Coos"]
["Chandler's Purchase","11220",null,null,null,null,null,null,null,null,null,null,null,null,null,null,null,null,null,null,null,null,null,null,null,null,null,null,null,null,null,null,null,null,null,null,null,null,null,null,null,null,null,null,null,null,null,null,null,null,null,null,null,null,null,null,null,null,null,null,null,null,null,null,null,null,null,null,null,null,null,null,null,null,null,null,null,null,null,null,null,null,null,null,null,null,null,null,null,null,null,null,null,null,null,null,null,null,null,null,null,"Coos"]
["Clarksville","13220",353,262,3,2,0,0,0,0,68,18,262,5,86,12,10,30,107,113,42,15,24,17,19,78,92,65,39,13,28,2,4.2,128,10,32,37,30,11,8,0,4,0,99,0,25,0,0,0,0,0,3,128,125,3,0,72,6,51,4,11,0,0,0,0,77700,40,0,0,23,9,6,2,0,681,32,321,32,21,6,0,4,9,0,15,0,0,0,12,0,0,0,3,688,0,2,7,0,3,0,3,"Coos"]
["Colebrook","13780",1318,771,15,94,125,163,9,2,135,4,771,408,139,37,57,53,259,256,62,80,514,14,46,204,212,293,207,144,72,126,5.0999999999999996,1044,223,235,165,190,120,111,3,37,24,913,4,63,0,0,0,2,2,31,1044,1037,7,0,370,55,245,48,17,2,3,0,0,76000,192,0,15,50,83,40,4,0,800,178,335,141,57,56,32,17,67,0,359,45,29,187,77,9,0,0,12,400,77,75,38,53,17,87,12,"Coos"]
["Columbia","13940",443,350,0,8,3,0,0,0,72,10,350,11,82,9,38,44,90,94,43,32,93,6,16,19,76,114,86,69,18,39,5.4,291,27,58,47,68,58,33,0,12,0,236,0,43,0,0,0,0,0,0,291,291,0,0,129,22,82,19,4,2,0,0,0,81700,84,0,10,33,28,13,0,0,692,45,266,47,14,20,12,6,30,0,28,6,3,3,5,2,0,0,9,325,6,2,5,1,3,2,9,"Coos"]
["Crawford's Purchase","16100",null,null,null,null,null,null,null,null,null,null,null,null,null,null,null,null,null,null,null,null,null,null,null,null,null,null,null,null,null,null,null,null,null,null,null,null,null,null,null,null,null,null,null,null,null,null,null,null,null,null,null,null,null,null,null,null,null,null,null,null,null,null,null,null,null,null,null,null,null,null,null,null,null,null,null,null,null,null,null,null,null,null,null,null,null,null,null,null,null,null,null,null,null,null,null,null,null,null,null,"Coos"]
["Cutt's Grant","16660",null,null,null,null,null,null,null,null,null,null,null,null,null,null,null,null,null,null,null,null,null,null,null,null,null,null,null,null,null,null,null,null,null,null,null,null,null,null,null,null,null,null,null,null,null,null,null,null,null,null,null,null,null,null,null,null,null,null,null,null,null,null,null,null,null,null,null,null,null,null,null,null,null,null,null,null,null,null,null,null,null,null,null,null,null,null,null,null,null,null,null,null,null,null,null,null,null,null,null,"Coos"]
["Dalton","16820",520,356,0,11,2,0,0,0,146,5,356,13,151,16,41,43,135,98,37,28,122,15,20,25,109,140,73,72,50,16,5.2,377,54,83,56,89,48,47,0,35,3,303,0,36,0,0,0,4,7,10,377,367,10,0,141,30,98,5,5,0,0,0,3,72400,86,0,9,27,36,14,0,0,744,55,297,55,29,19,14,10,14,0,39,0,2,15,16,0,0,0,6,448,9,3,5,9,2,5,6,"Coos"]
["Dix's Grant","18340",null,null,null,null,null,null,null,null,null,null,null,null,null,null,null,null,null,null,null,null,null,null,null,null,null,null,null,null,null,null,null,null,null,null,null,null,null,null,null,null,null,null,null,null,null,null,null,null,null,null,null,null,null,null,null,null,null,null,null,null,null,null,null,null,null,null,null,null,null,null,null,null,null,null,null,null,null,null,null,null,null,null,null,null,null,null,null,null,null,null,null,null,null,null,null,null,null,null,null,"Coos"]
["Dixville","18420",null,null,null,null,null,null,null,null,null,null,null,null,null,null,null,null,null,null,null,null,null,null,null,null,null,null,null,null,null,null,null,null,null,null,null,null,null,null,null,null,null,null,null,null,null,null,null,null,null,null,null,null,null,null,null,null,null,null,null,null,null,null,null,null,null,null,null,null,null,null,null,null,null,null,null,null,null,null,null,null,null,null,null,null,null,null,null,null,null,null,null,null,null,null,null,null,null,null,null,"Coos"]
["Dummer","19300",300,251,0,2,0,0,0,0,40,7,251,2,47,6,8,21,49,30,51,66,69,30,30,31,40,76,45,31,8,9,4.8,145,17,15,34,45,14,20,0,15,2,98,0,30,0,0,0,4,2,4,145,145,0,0,73,12,49,10,0,2,0,0,0,79700,45,0,9,7,25,2,2,0,812,28,222,29,20,4,10,0,8,2,16,0,2,9,0,0,0,0,5,438,2,3,0,2,0,4,5,"Coos"]
["Errol","25140",411,346,3,0,0,0,0,0,46,16,346,3,62,41,38,41,50,102,15,58,66,29,49,36,67,105,72,11,17,25,4.7,141,20,15,22,42,27,15,0,11,0,106,0,22,0,2,0,2,2,2,141,141,0,0,75,4,40,29,0,2,0,0,0,90700,28,0,6,12,8,2,0,0,589,47,260,35,11,10,0,6,13,0,13,0,0,5,5,0,0,0,3,500,8,0,0,2,0,0,3,"Coos"]
["Erving's Location","25180",null,null,null,null,null,null,null,null,null,null,null,null,null,null,null,null,null,null,null,null,null,null,null,null,null,null,null,null,null,null,null,null,null,null,null,null,null,null,null,null,null,null,null,null,null,null,null,null,null,null,null,null,null,null,null,null,null,null,null,null,null,null,null,null,null,null,null,null,null,null,null,null,null,null,null,null,null,null,null,null,null,null,null,null,null,null,null,null,null,null,null,null,null,null,null,null,null,null,null,"Coos"]
["Gorham","30260",1484,782,14,177,102,79,35,29,266,0,782,436,266,51,40,49,183,335,122,193,511,14,50,190,248,378,263,160,98,83,5.0999999999999996,1294,163,260,213,282,215,161,7,43,28,1161,0,55,0,0,0,0,0,13,1294,1283,5,6,646,94,380,137,29,6,0,0,0,79200,339,0,14,58,126,130,11,0,892,307,356,179,127,116,45,69,110,0,367,50,41,168,93,0,0,0,15,409,88,66,86,14,21,77,15,"Coos"]
["Greens Grant","31780",null,null,null,null,null,null,null,null,null,null,null,null,null,null,null,null,null,null,null,null,null,null,null,null,null,null,null,null,null,null,null,null,null,null,null,null,null,null,null,null,null,null,null,null,null,null,null,null,null,null,null,null,null,null,null,null,null,null,null,null,null,null,null,null,null,null,null,null,null,null,null,null,null,null,null,null,null,null,null,null,null,null,null,null,null,null,null,null,null,null,null,null,null,null,null,null,null,null,null,"Coos"]
["Hadley's Purchase","32420",null,null,null,null,null,null,null,null,null,null,null,null,null,null,null,null,null,null,null,null,null,null,null,null,null,null,null,null,null,null,null,null,null,null,null,null,null,null,null,null,null,null,null,null,null,null,null,null,null,null,null,null,null,null,null,null,null,null,null,null,null,null,null,null,null,null,null,null,null,null,null,null,null,null,null,null,null,null,null,null,null,null,null,null,null,null,null,null,null,null,null,null,null,null,null,null,null,null,null,"Coos"]
["Jefferson","38820",577,441,0,14,5,22,0,0,86,9,441,41,95,2,31,38,110,117,37,26,216,16,12,46,109,144,88,39,53,70,5.2,405,69,75,55,91,54,61,0,16,5,315,0,69,0,0,0,5,5,15,405,401,4,0,168,12,105,19,14,13,5,0,0,89700,109,0,11,26,45,21,0,6,838,59,381,62,52,20,2,8,22,2,52,0,10,22,12,3,0,0,5,405,13,1,8,6,8,11,5,"Coos"]
["Kilkenny","39940",null,null,null,null,null,null,null,null,null,null,null,null,null,null,null,null,null,null,null,null,null,null,null,null,null,null,null,null,null,null,null,null,null,null,null,null,null,null,null,null,null,null,null,null,null,null,null,null,null,null,null,null,null,null,null,null,null,null,null,null,null,null,null,null,null,null,null,null,null,null,null,null,null,null,null,null,null,null,null,null,null,null,null,null,null,null,null,null,null,null,null,null,null,null,null,null,null,null,null,"Coos"]
["Lancaster","40420",1501,992,7,102,66,117,42,48,127,0,992,382,127,13,28,29,214,146,102,153,816,8,24,178,177,250,311,222,195,136,5.9,1286,235,393,102,308,80,168,0,68,45,1103,0,64,0,6,0,0,4,41,1286,1270,8,8,575,51,391,93,34,6,0,0,0,73800,373,0,10,87,183,73,20,0,831,202,363,230,76,84,70,36,79,0,378,41,34,189,79,35,0,0,0,416,93,42,62,98,14,69,0,"Coos"]
["Low and Burbank's Grant","43620",null,null,null,null,null,null,null,null,null,null,null,null,null,null,null,null,null,null,null,null,null,null,null,null,null,null,null,null,null,null,null,null,null,null,null,null,null,null,null,null,null,null,null,null,null,null,null,null,null,null,null,null,null,null,null,null,null,null,null,null,null,null,null,null,null,null,null,null,null,null,null,null,null,null,null,null,null,null,null,null,null,null,null,null,null,null,null,null,null,null,null,null,null,null,null,null,null,null,null,"Coos"]
["Martin's Location","46020",null,null,null,null,null,null,null,null,null,null,null,null,null,null,null,null,null,null,null,null,null,null,null,null,null,null,null,null,null,null,null,null,null,null,null,null,null,null,null,null,null,null,null,null,null,null,null,null,null,null,null,null,null,null,null,null,null,null,null,null,null,null,null,null,null,null,null,null,null,null,null,null,null,null,null,null,null,null,null,null,null,null,null,null,null,null,null,null,null,null,null,null,null,null,null,null,null,null,null,"Coos"]
["Milan","47860",755,615,0,16,6,0,0,0,112,6,615,22,118,31,72,52,202,118,65,56,159,23,24,29,178,163,173,93,40,32,5.3,530,37,114,81,158,76,64,0,15,0,444,0,71,0,0,0,5,5,6,530,528,2,0,329,32,211,55,26,5,0,0,0,81500,182,0,20,44,86,27,5,0,779,147,337,134,65,55,29,14,24,8,50,0,0,21,21,5,0,0,3,542,7,6,3,16,10,5,3,"Coos"]
["Millsfield","48260",null,null,null,null,null,null,null,null,null,null,null,null,null,null,null,null,null,null,null,null,null,null,null,null,null,null,null,null,null,null,null,null,null,null,null,null,null,null,null,null,null,null,null,null,null,null,null,null,null,null,null,null,null,null,null,null,null,null,null,null,null,null,null,null,null,null,null,null,null,null,null,null,null,null,null,null,null,null,null,null,null,null,null,null,null,null,null,null,null,null,null,null,null,null,null,null,null,null,null,"Coos"]
["Northumberland","56100",1112,747,4,68,84,31,34,6,135,3,747,227,138,19,39,59,145,162,86,158,444,0,24,83,187,313,223,129,71,82,5.3,989,165,235,107,199,118,165,0,27,2,909,2,49,0,0,0,2,0,12,989,980,9,0,545,175,321,42,5,0,2,0,0,64500,292,0,47,122,95,21,4,3,656,253,294,214,132,73,31,39,54,2,233,31,19,111,57,2,2,0,11,407,53,34,42,39,10,44,11,"Coos"]
["Odell","57860",null,null,null,null,null,null,null,null,null,null,null,null,null,null,null,null,null,null,null,null,null,null,null,null,null,null,null,null,null,null,null,null,null,null,null,null,null,null,null,null,null,null,null,null,null,null,null,null,null,null,null,null,null,null,null,null,null,null,null,null,null,null,null,null,null,null,null,null,null,null,null,null,null,null,null,null,null,null,null,null,null,null,null,null,null,null,null,null,null,null,null,null,null,null,null,null,null,null,null,"Coos"]
["Pinkham's Grant","61620",null,null,null,null,null,null,null,null,null,null,null,null,null,null,null,null,null,null,null,null,null,null,null,null,null,null,null,null,null,null,null,null,null,null,null,null,null,null,null,null,null,null,null,null,null,null,null,null,null,null,null,null,null,null,null,null,null,null,null,null,null,null,null,null,null,null,null,null,null,null,null,null,null,null,null,null,null,null,null,null,null,null,null,null,null,null,null,null,null,null,null,null,null,null,null,null,null,null,null,"Coos"]
["Pittsburg","61780",1244,1059,2,7,0,5,2,0,145,24,1059,16,169,66,82,167,208,233,119,179,190,45,168,164,285,217,177,86,32,70,4.4000000000000004,383,25,83,58,105,62,50,0,49,0,260,0,74,0,0,0,8,3,0,383,383,0,0,236,21,156,28,22,0,9,0,0,81700,113,0,11,43,29,21,9,0,713,123,257,106,24,28,21,18,34,5,44,0,0,17,12,4,0,0,11,488,10,8,4,2,2,7,11,"Coos"]
["Randolph","63860",244,224,4,4,0,0,0,0,9,3,224,8,12,5,6,11,31,42,22,32,95,2,14,14,25,39,64,35,27,24,5.9,140,20,22,20,47,19,12,0,4,5,105,0,26,0,0,0,2,2,0,140,140,0,0,96,0,24,30,18,24,0,0,0,140000,60,0,0,18,20,17,5,0,953,36,331,39,25,12,8,5,7,0,14,0,2,5,7,0,0,0,0,450,7,2,2,0,0,3,0,"Coos"]
["Sargent's Purchase","67860",null,null,null,null,null,null,null,null,null,null,null,null,null,null,null,null,null,null,null,null,null,null,null,null,null,null,null,null,null,null,null,null,null,null,null,null,null,null,null,null,null,null,null,null,null,null,null,null,null,null,null,null,null,null,null,null,null,null,null,null,null,null,null,null,null,null,null,null,null,null,null,null,null,null,null,null,null,null,null,null,null,null,null,null,null,null,null,null,null,null,null,null,null,null,null,null,null,null,null,"Coos"]
["Second College Grant","68500",null,null,null,null,null,null,null,null,null,null,null,null,null,null,null,null,null,null,null,null,null,null,null,null,null,null,null,null,null,null,null,null,null,null,null,null,null,null,null,null,null,null,null,null,null,null,null,null,null,null,null,null,null,null,null,null,null,null,null,null,null,null,null,null,null,null,null,null,null,null,null,null,null,null,null,null,null,null,null,null,null,null,null,null,null,null,null,null,null,null,null,null,null,null,null,null,null,null,null,"Coos"]
["Shelburne","68980",197,168,3,5,0,0,0,0,19,2,168,8,21,7,9,6,28,40,18,25,64,2,14,9,37,31,39,38,6,21,5.6,158,31,33,12,43,27,12,0,17,3,114,0,24,0,0,0,10,7,5,158,155,3,0,111,3,42,44,17,5,0,0,0,110900,71,0,0,23,29,19,0,0,879,40,279,52,10,19,13,5,12,0,20,0,0,14,3,3,0,0,0,440,9,0,3,6,2,0,0,"Coos"]
["Stark","73060",436,334,0,9,5,0,0,0,58,30,334,14,88,14,16,35,66,102,56,66,81,29,24,76,99,63,64,32,30,19,4.4000000000000004,196,20,43,28,61,27,17,0,13,5,140,0,38,0,0,0,4,2,0,196,195,1,0,127,23,81,18,0,5,0,0,0,71100,58,0,5,18,24,7,4,0,750,69,316,60,21,18,8,6,14,0,21,0,0,8,5,3,0,0,5,525,2,5,3,3,0,3,5,"Coos"]
["Stewartstown","73380",760,489,5,21,19,38,0,2,159,27,489,85,186,24,69,109,131,175,58,53,141,26,55,102,188,178,76,66,41,28,4.5999999999999996,371,37,115,44,63,43,69,2,4,6,310,2,47,0,0,0,10,5,18,371,369,2,0,132,31,86,9,6,0,0,0,0,63300,67,0,9,34,21,0,1,2,614,65,281,52,20,13,14,6,27,0,86,9,11,36,13,0,2,0,15,375,15,7,14,4,7,23,16,"Coos"]
["Stratford","74180",521,329,9,18,14,52,3,4,92,0,329,100,92,19,34,38,84,89,42,58,157,6,26,43,110,148,76,67,11,34,5,399,70,97,50,74,60,48,0,14,4,335,0,46,0,0,0,6,4,36,399,386,10,3,150,48,87,15,0,0,0,0,0,59000,82,5,9,23,38,7,0,0,718,68,288,58,33,17,8,7,27,0,123,30,17,31,37,0,0,0,8,375,32,17,21,11,0,34,8,"Coos"]
["Success","74500",null,null,null,null,null,null,null,null,null,null,null,null,null,null,null,null,null,null,null,null,null,null,null,null,null,null,null,null,null,null,null,null,null,null,null,null,null,null,null,null,null,null,null,null,null,null,null,null,null,null,null,null,null,null,null,null,null,null,null,null,null,null,null,null,null,null,null,null,null,null,null,null,null,null,null,null,null,null,null,null,null,null,null,null,null,null,null,null,null,null,null,null,null,null,null,null,null,null,null,"Coos"]
["Thompson and Meserves Purchase","76580",null,null,null,null,null,null,null,null,null,null,null,null,null,null,null,null,null,null,null,null,null,null,null,null,null,null,null,null,null,null,null,null,null,null,null,null,null,null,null,null,null,null,null,null,null,null,null,null,null,null,null,null,null,null,null,null,null,null,null,null,null,null,null,null,null,null,null,null,null,null,null,null,null,null,null,null,null,null,null,null,null,null,null,null,null,null,null,null,null,null,null,null,null,null,null,null,null,null,null,"Coos"]
["Wentworth's Location","80740",null,null,null,null,null,null,null,null,null,null,null,null,null,null,null,null,null,null,null,null,null,null,null,null,null,null,null,null,null,null,null,null,null,null,null,null,null,null,null,null,null,null,null,null,null,null,null,null,null,null,null,null,null,null,null,null,null,null,null,null,null,null,null,null,null,null,null,null,null,null,null,null,null,null,null,null,null,null,null,null,null,null,null,null,null,null,null,null,null,null,null,null,null,null,null,null,null,null,null,"Coos"]
["Whitefield","84420",1158,817,6,71,27,86,0,62,86,3,817,252,89,22,33,45,210,133,84,97,534,18,42,155,143,278,186,140,113,83,5.3,816,160,217,113,166,90,70,2,36,6,718,0,54,0,0,0,6,2,15,816,799,13,4,387,45,253,62,21,4,0,2,0,78900,242,0,14,68,104,52,2,2,787,145,380,125,74,53,48,26,59,2,229,31,37,87,49,13,2,0,10,394,34,42,42,31,19,51,10,"Coos"]
[]
[]
[]
[]
[]
[]
["Census 2000 SummaryFile3 Sample Data  -  SF3TownQry1SocialChar"]
[]
["TOWN_NAME","LOGRECNO","COUSUB","P01TotalPopulation","P02SampleCountOfPop","P03Pop100pctCount","P05UrbanPopulation","P05RuralPopulation","P06WhiteAlone","P06BlackOrAfAm","P06AmIndAlone","P06AsianAlone","P06HawaiianOrPI","P06OtherRace","P06TwoPlusRaces","P07NotHispanicOrLatino","P07HispanicOrLatino","P08MalePop","P08FemalePop","P09PopInHouseholds","P09PopInFamHH","P09PopInNonFamHH","P09PopInGroupQtr","P13TotalHH","P13FamilyHH","P13FamHHolder15to24yrs","P13FamHHolder25to34yrs","P13FamHHolder35to44yrs","P13FamHHolder45to54yrs","P13FamHHolder55to64yrs","P13FamHHolder65to74yrs","P13FamHHolder75to84yrs","P13FamHHolder85yrsOver","P13NonFamilyHH","P13NonFamHHolder15to24yrs","P13NonFamHHolder25to34yrs","P13NonFamHHolder35to44yrs","P13NonFamHHolder45to54yrs","P13NonFamHHolder55to64yrs","P13NonFamHHolder65to74yrs","P13NonFamHHolder75to84yrs","P13NonFamHHolder85yrsOver","P18Pop15yrsOver","P18MaritalStatNeverMarried","P18MaritalStatNowMarried","P18MaritalStatSeparated","P18MaritalStatWidowed","P18MaritalStatWidowFemale","P18MaritalStatDivorced","P18MaritalStatDivorcedFemale","P21NativeBornPop","P21NatPopBornInState","P21NatPopBornOtherState","P021005","P021006","P021007","P021008","P21NatPopBornOutUS","P21ForeignBornPop","P021014","P021015","P24Pop5YrsPlus","P24ResSameHouseIn95","P24ResDiffHouseIn95","P24ResDiffHouseInUSIn95","P24ResDiffHouseSameCountyIn95","P24ResDiffHouseDiffCountyIn95","P24ResDiffHouseDiffCntySamStIn95","P24ResDiffHouseDiffCntyDifStIn95","P24ResDiffHouseDiffCntyNEStIn95","P24ResDiffHouseDiffCntyMWStIn95","P24ResDiffHouseDiffCntySoStIn95","P24ResDiffHouseDiffCntyWstStIn95","P24ResDiffInPR","P24ResDiffElsewhereIn95","P26Workers16yrsOver","P26WorkedInState","P26WorkedInCnty","P26WorkedOutsideCnty","P26WorkedOutsideState","P30Workers16Over","P30TranspToWrkCar","P30TranspToWrkPublic","P30TranspToWrkOther","P30WrkdAtHome","P31WrkrsNotWrkAtHom","P31TravTim<5min","P31TravTim5to9Min","P31TravTim10to14Min","P31TravTim15to19Min","P31TravTim20to24Min","P31TravTim25to29Min","P31TravTim30to34Min","P31TravTim35to39Min","P31TravTim40to44Min","P31TravTim45to59Min","P31TravTim60to89Min","P31TravTim90MinMore","P31WorkAtHome","P36SchEnrlPop3yrOver","P36NurserSchEnrl","P36KinderSchEnrl","P36ElemSchEnrl","P36HighSchEnrl","P36CollGradSchEnrl","P37Pop25yrsOver","P37EduAtain<9grd","P37EduAtainHSnoDip","P37EduAtainHSgrad","P37EduAtainCollNoDeg","P37EduAtainAssocDeg","P37EduAtainBachDeg","P37EduAtainGradProfDeg","P42NIPop5to15","P42NIPop5to15wDisabl","P42NIPop16to20","P42NIPop16to20wDisab","P42NIPop16to20wDisEmp","P42NIPop16to21NoDis","P42NIPop16to21NoDisEmpl","P42NIPop21to64","P42NIPop21to64wDis","P42NIPop21to64wDisEmp","P42NIPop21to64NoDis","P42NIPop21to64NoDisEmp","P42NIPop65to74","P42NIPop65to74wDis","P42NIPop75Over","P42NIPop75OverwDis","P43Pop16YrsOver","P43Pop16OvrInLaborForce","P43Pop16OvrCivlLabFrc","P43Pop16OvrCivlLbrFrcEmp","P48Families","P48MarriedFam","P48MarrFamNoWorkers","P48MarrFam1Worker","P48MarrFam2Worker","P48MarrFamHusbWifeWorked","P48MarrFamOther","P48MarrFam3PlusWorker","P48MarrFam3WorkHsbWif","P48MarrFam3PlsWrkOther","P48OtherFam","P48MaleHHNoWif","P48MaleHHNoWifNoWorker","P48MaleHHNoWif1Worker","P48MaleHHNoWif2Worker","P48MaleHHNoWif3PlusWorker","P48FemaleHHNoHsb","P48FemaleHHNoHsbNoWorker","P48FemaleHHNoHsb1Worker","P48FemaleHHNoHsb2Worker","P48FemaleHHNoHsb3Worker","P49EmpCivPop16YrOver","P49IndustAgricult","P49IndustConst","P49IndustMnftg","P49IndustWhlslTrd","P49IndustRtlTrd","P49IndustTrspWrhsUtlt","P49IndustInfrm","P49IndustFinInsRE","P49IndustPrfsScntfMngmt","P49IndustEduHlthSocSrv","P49IndustArtsEntRec","P49IndustOthrSrvc","P49IndustPubAdm","P50OccupMngmtProfs","P50OccupService","P50OccupSalesOff","P50OccupFarmFishForest","P50OccupConstExtrctMaint","P50OccupPrdctTrnspMatMv"]
["Atkinson and Gilmanton Grant","0000818","02420",0,0,12,0,0,0,0,0,0,0,0,0,0,0,0,0,0,0,0,0,0,0,0,0,0,0,0,0,0,0,0,0,0,0,0,0,0,0,0,0,0,0,0,0,0,0,0,0,0,0,0,0,0,0,0,0,0,0,0,0,0,0,0,0,0,0,0,0,0,0,0,0,0,0,0,0,0,0,0,0,0,0,0,0,0,0,0,0,0,0,0,0,0,0,0,0,0,0,0,0,0,0,0,0,0,0,0,0,0,0,0,0,0,0,0,0,0,0,0,0,0,0,0,0,0,0,0,0,0,0,0,0,0,0,0,0,0,0,0,0,0,0,0,0,0,0,0,0,0,0,0,0,0,0,0,0,0,0,0,0,0,0,0,0,0,0,0,0,0,0,0]
["Bean's Grant","0000823","04100",0,0,0,0,0,0,0,0,0,0,0,0,0,0,0,0,0,0,0,0,0,0,0,0,0,0,0,0,0,0,0,0,0,0,0,0,0,0,0,0,0,0,0,0,0,0,0,0,0,0,0,0,0,0,0,0,0,0,0,0,0,0,0,0,0,0,0,0,0,0,0,0,0,0,0,0,0,0,0,0,0,0,0,0,0,0,0,0,0,0,0,0,0,0,0,0,0,0,0,0,0,0,0,0,0,0,0,0,0,0,0,0,0,0,0,0,0,0,0,0,0,0,0,0,0,0,0,0,0,0,0,0,0,0,0,0,0,0,0,0,0,0,0,0,0,0,0,0,0,0,0,0,0,0,0,0,0,0,0,0,0,0,0,0,0,0,0,0,0,0,0]
["Bean's Purchase","0000828","04260",0,0,4,0,0,0,0,0,0,0,0,0,0,0,0,0,0,0,0,0,0,0,0,0,0,0,0,0,0,0,0,0,0,0,0,0,0,0,0,0,0,0,0,0,0,0,0,0,0,0,0,0,0,0,0,0,0,0,0,0,0,0,0,0,0,0,0,0,0,0,0,0,0,0,0,0,0,0,0,0,0,0,0,0,0,0,0,0,0,0,0,0,0,0,0,0,0,0,0,0,0,0,0,0,0,0,0,0,0,0,0,0,0,0,0,0,0,0,0,0,0,0,0,0,0,0,0,0,0,0,0,0,0,0,0,0,0,0,0,0,0,0,0,0,0,0,0,0,0,0,0,0,0,0,0,0,0,0,0,0,0,0,0,0,0,0,0,0,0,0,0]
["Berlin","0000833","05140",10331,1706,10331,8964,1367,10241,12,7,0,0,0,71,10288,43,4927,5404,10132,8277,1855,199,4555,2919,103,449,635,635,409,417,186,85,1636,94,122,178,195,144,374,378,151,8532,1863,4560,107,1066,893,936,471,9858,7823,1965,1553,87,213,112,70,473,345,128,9800,6457,3343,3316,2519,797,294,503,295,47,156,5,0,27,4381,4287,4075,212,94,4381,4096,18,19,32,4349,398,1407,1220,609,171,23,120,18,50,119,93,121,32,9972,147,144,996,630,343,7445,938,1100,2987,1316,608,339,157,1393,115,616,70,46,546,296,5434,1454,725,3980,3258,1144,522,1025,572,8407,4844,4837,4492,2919,2161,449,432,1009,945,64,271,243,28,758,270,35,156,79,0,488,57,268,134,29,4492,59,243,997,96,651,168,39,212,172,1018,399,243,195,1036,874,1055,34,515,978]
["Cambridge","0000864","08420",0,0,10,0,0,0,0,0,0,0,0,0,0,0,0,0,0,0,0,0,0,0,0,0,0,0,0,0,0,0,0,0,0,0,0,0,0,0,0,0,0,0,0,0,0,0,0,0,0,0,0,0,0,0,0,0,0,0,0,0,0,0,0,0,0,0,0,0,0,0,0,0,0,0,0,0,0,0,0,0,0,0,0,0,0,0,0,0,0,0,0,0,0,0,0,0,0,0,0,0,0,0,0,0,0,0,0,0,0,0,0,0,0,0,0,0,0,0,0,0,0,0,0,0,0,0,0,0,0,0,0,0,0,0,0,0,0,0,0,0,0,0,0,0,0,0,0,0,0,0,0,0,0,0,0,0,0,0,0,0,0,0,0,0,0,0,0,0,0,0,0]
["Carroll","0000869","10100",670,302,663,0,670,665,0,0,3,0,0,2,670,0,352,318,659,551,108,11,286,192,7,19,42,42,49,31,0,2,94,8,12,18,17,6,17,16,0,572,160,322,0,40,24,50,28,660,238,413,356,22,31,4,9,10,7,3,631,333,298,296,129,167,29,138,105,0,24,9,0,2,374,370,235,135,4,374,328,0,1,31,343,16,44,75,41,49,26,47,14,6,12,6,7,31,647,3,2,54,36,30,488,9,43,166,118,51,67,34,68,6,48,5,5,43,26,410,86,71,324,264,78,20,27,20,563,399,399,383,192,149,22,19,73,73,0,35,35,0,43,24,0,15,9,0,19,0,13,4,2,383,12,29,28,3,53,11,2,18,7,61,114,6,39,116,62,127,8,42,28]
["Chandler's Purchase","0000874","11220",0,0,0,0,0,0,0,0,0,0,0,0,0,0,0,0,0,0,0,0,0,0,0,0,0,0,0,0,0,0,0,0,0,0,0,0,0,0,0,0,0,0,0,0,0,0,0,0,0,0,0,0,0,0,0,0,0,0,0,0,0,0,0,0,0,0,0,0,0,0,0,0,0,0,0,0,0,0,0,0,0,0,0,0,0,0,0,0,0,0,0,0,0,0,0,0,0,0,0,0,0,0,0,0,0,0,0,0,0,0,0,0,0,0,0,0,0,0,0,0,0,0,0,0,0,0,0,0,0,0,0,0,0,0,0,0,0,0,0,0,0,0,0,0,0,0,0,0,0,0,0,0,0,0,0,0,0,0,0,0,0,0,0,0,0,0,0,0,0,0,0]
["Clarksville","0000879","13220",301,129,294,0,301,297,0,2,0,0,2,0,299,2,168,133,301,255,46,0,129,92,0,4,18,29,20,14,7,0,37,0,11,13,3,3,7,0,0,255,60,176,0,5,0,14,2,290,192,93,80,0,9,4,5,11,2,9,287,198,89,81,53,28,10,18,10,0,8,0,0,8,154,123,115,8,31,154,143,0,9,0,154,5,30,43,27,10,5,25,0,0,1,3,5,0,291,4,3,26,14,12,229,17,15,121,30,16,25,5,40,1,18,0,0,18,16,183,31,18,152,121,34,12,12,6,247,163,163,157,92,84,11,21,45,43,2,7,7,0,8,8,0,5,3,0,0,0,0,0,0,157,3,15,42,4,9,11,0,4,0,43,12,9,5,39,26,28,3,18,43]
["Colebrook","0000884","13780",2331,1049,2321,0,2331,2281,0,1,11,0,0,38,2323,8,1141,1190,2289,1773,516,42,1039,611,23,97,151,152,83,74,31,0,428,31,44,58,70,64,64,70,27,1914,482,979,37,173,141,243,120,2198,1511,674,570,34,47,23,13,133,77,56,2219,1339,880,878,570,308,109,199,133,3,37,26,0,2,1167,1041,1006,35,126,1167,1020,0,10,60,1107,139,258,207,205,135,19,59,27,4,13,21,20,60,2286,44,26,241,144,63,1637,186,230,702,202,112,137,68,339,15,141,29,18,112,65,1358,350,221,1008,847,223,112,158,89,1880,1268,1268,1209,611,480,43,111,275,272,3,51,51,0,131,51,2,30,15,4,80,3,53,20,4,1209,56,67,284,42,178,27,9,31,31,233,148,55,48,278,201,280,34,131,285]
["Columbia","0000890","13940",740,346,750,0,740,729,0,0,0,0,0,11,740,0,404,336,740,643,97,0,309,226,3,43,30,59,32,39,17,3,83,0,8,14,15,17,16,10,3,595,127,356,7,26,17,79,50,715,505,206,178,11,17,0,4,25,9,16,707,501,206,203,137,66,44,22,11,0,7,4,0,3,369,303,296,7,66,369,316,0,23,17,352,20,39,66,61,66,6,52,2,14,7,9,10,17,722,4,8,97,36,17,526,49,94,233,58,53,29,10,119,19,32,4,4,28,14,437,118,76,319,265,73,18,46,26,588,404,404,376,226,181,40,22,88,84,4,31,31,0,45,17,0,12,5,0,28,3,20,5,0,376,13,4,124,10,59,8,3,9,8,77,30,24,7,81,75,68,6,39,107]
["Crawford's Purchase","0000895","16100",0,0,0,0,0,0,0,0,0,0,0,0,0,0,0,0,0,0,0,0,0,0,0,0,0,0,0,0,0,0,0,0,0,0,0,0,0,0,0,0,0,0,0,0,0,0,0,0,0,0,0,0,0,0,0,0,0,0,0,0,0,0,0,0,0,0,0,0,0,0,0,0,0,0,0,0,0,0,0,0,0,0,0,0,0,0,0,0,0,0,0,0,0,0,0,0,0,0,0,0,0,0,0,0,0,0,0,0,0,0,0,0,0,0,0,0,0,0,0,0,0,0,0,0,0,0,0,0,0,0,0,0,0,0,0,0,0,0,0,0,0,0,0,0,0,0,0,0,0,0,0,0,0,0,0,0,0,0,0,0,0,0,0,0,0,0,0,0,0,0,0]
["Cutt's Grant","0000900","16660",0,0,0,0,0,0,0,0,0,0,0,0,0,0,0,0,0,0,0,0,0,0,0,0,0,0,0,0,0,0,0,0,0,0,0,0,0,0,0,0,0,0,0,0,0,0,0,0,0,0,0,0,0,0,0,0,0,0,0,0,0,0,0,0,0,0,0,0,0,0,0,0,0,0,0,0,0,0,0,0,0,0,0,0,0,0,0,0,0,0,0,0,0,0,0,0,0,0,0,0,0,0,0,0,0,0,0,0,0,0,0,0,0,0,0,0,0,0,0,0,0,0,0,0,0,0,0,0,0,0,0,0,0,0,0,0,0,0,0,0,0,0,0,0,0,0,0,0,0,0,0,0,0,0,0,0,0,0,0,0,0,0,0,0,0,0,0,0,0,0,0]
["Dalton","0000905","16820",950,345,927,0,950,930,2,9,0,0,0,9,950,0,479,471,950,804,146,0,371,258,7,29,71,63,44,32,10,2,113,11,3,14,14,14,29,19,9,745,136,471,8,51,34,79,45,934,559,371,315,14,23,19,4,16,9,7,898,598,300,300,124,176,87,89,48,0,27,14,0,0,419,398,198,200,21,419,388,0,3,28,391,16,29,30,84,110,25,35,11,0,24,24,3,28,918,13,9,130,54,24,635,33,111,318,72,25,35,41,168,23,75,7,7,68,36,516,112,58,404,317,85,38,54,40,730,474,474,431,258,229,25,66,110,106,4,28,28,0,29,12,0,9,3,0,17,3,8,6,0,431,12,31,86,0,95,34,2,18,4,63,43,28,15,88,53,92,9,70,119]
["Dix's Grant","0000910","18340",0,0,0,0,0,0,0,0,0,0,0,0,0,0,0,0,0,0,0,0,0,0,0,0,0,0,0,0,0,0,0,0,0,0,0,0,0,0,0,0,0,0,0,0,0,0,0,0,0,0,0,0,0,0,0,0,0,0,0,0,0,0,0,0,0,0,0,0,0,0,0,0,0,0,0,0,0,0,0,0,0,0,0,0,0,0,0,0,0,0,0,0,0,0,0,0,0,0,0,0,0,0,0,0,0,0,0,0,0,0,0,0,0,0,0,0,0,0,0,0,0,0,0,0,0,0,0,0,0,0,0,0,0,0,0,0,0,0,0,0,0,0,0,0,0,0,0,0,0,0,0,0,0,0,0,0,0,0,0,0,0,0,0,0,0,0,0,0,0,0,0]
["Dixville","0000915","18420",46,8,75,0,46,46,0,0,0,0,0,0,46,0,11,35,0,0,0,46,0,0,0,0,0,0,0,0,0,0,0,0,0,0,0,0,0,0,0,46,0,32,0,14,14,0,0,46,17,29,29,0,0,0,0,0,0,0,46,0,46,46,22,24,0,24,24,0,0,0,0,0,0,0,0,0,0,0,0,0,0,0,0,0,0,0,0,0,0,0,0,0,0,0,0,0,46,0,0,0,0,0,46,7,18,21,0,0,0,0,0,0,0,0,0,0,0,0,0,0,0,0,0,0,0,0,46,0,0,0,0,0,0,0,0,0,0,0,0,0,0,0,0,0,0,0,0,0,0,0,0,0,0,0,0,0,0,0,0,0,0,0,0,0,0,0,0,0,0,0,0]
["Dummer","0000920","19300",345,152,309,0,345,342,0,0,3,0,0,0,345,0,169,176,345,310,35,0,142,109,0,21,25,31,17,7,8,0,33,0,5,6,4,10,6,0,2,266,36,187,5,18,14,20,9,337,253,84,75,2,7,0,0,8,8,0,323,285,38,38,35,3,0,3,0,0,1,2,0,0,150,141,141,0,9,150,139,0,2,9,141,2,7,15,15,50,17,21,0,0,9,0,5,9,333,3,0,50,17,4,248,25,22,123,22,35,12,9,59,2,12,0,0,12,4,212,38,19,174,126,20,4,20,13,264,171,171,157,109,87,6,26,49,49,0,6,6,0,22,8,0,8,0,0,14,2,9,2,1,157,14,14,32,3,13,9,3,4,5,34,7,11,8,39,11,36,14,20,37]
["Errol","0000925","25140",314,138,298,0,314,305,2,0,2,0,0,5,314,0,146,168,308,258,50,6,133,92,2,14,16,8,32,10,4,6,41,2,2,9,8,4,7,7,2,262,40,179,5,15,7,23,5,297,179,116,108,2,6,0,2,17,8,9,304,236,68,66,39,27,14,13,9,0,0,4,0,2,161,152,149,3,9,161,139,0,3,7,154,18,39,24,12,7,0,13,0,0,19,6,16,7,309,0,0,39,17,2,246,12,41,122,46,4,17,4,49,10,5,0,0,5,2,184,42,28,142,125,29,7,37,9,255,169,169,163,92,81,16,15,48,48,0,2,2,0,11,3,0,3,0,0,8,2,2,4,0,163,15,20,19,3,19,22,3,0,0,18,28,8,8,21,25,43,5,28,41]
["Erving's Location","0000930","25180",0,0,1,0,0,0,0,0,0,0,0,0,0,0,0,0,0,0,0,0,0,0,0,0,0,0,0,0,0,0,0,0,0,0,0,0,0,0,0,0,0,0,0,0,0,0,0,0,0,0,0,0,0,0,0,0,0,0,0,0,0,0,0,0,0,0,0,0,0,0,0,0,0,0,0,0,0,0,0,0,0,0,0,0,0,0,0,0,0,0,0,0,0,0,0,0,0,0,0,0,0,0,0,0,0,0,0,0,0,0,0,0,0,0,0,0,0,0,0,0,0,0,0,0,0,0,0,0,0,0,0,0,0,0,0,0,0,0,0,0,0,0,0,0,0,0,0,0,0,0,0,0,0,0,0,0,0,0,0,0,0,0,0,0,0,0,0,0,0,0,0]
["Gorham","0000935","30260",2900,481,2895,2423,477,2803,0,0,34,0,0,63,2884,16,1423,1477,2895,2342,553,5,1293,801,0,96,223,192,108,102,69,11,492,26,77,35,69,27,83,108,67,2392,518,1395,6,246,184,227,111,2749,1956,780,628,67,74,11,13,151,76,75,2786,1940,846,805,558,247,99,148,94,12,35,7,0,41,1452,1380,1250,130,72,1452,1351,0,12,27,1425,213,234,273,284,193,16,40,16,55,52,19,30,27,2841,21,55,329,149,78,2107,133,301,773,352,265,205,78,428,26,173,16,14,157,88,1596,383,304,1213,1038,284,87,305,191,2358,1568,1568,1521,801,658,114,70,374,362,12,100,98,2,143,60,6,22,32,0,83,6,34,37,6,1521,36,79,236,58,294,54,39,58,47,262,193,68,97,410,261,466,0,166,218]
["Greens Grant","0000957","31780",0,0,0,0,0,0,0,0,0,0,0,0,0,0,0,0,0,0,0,0,0,0,0,0,0,0,0,0,0,0,0,0,0,0,0,0,0,0,0,0,0,0,0,0,0,0,0,0,0,0,0,0,0,0,0,0,0,0,0,0,0,0,0,0,0,0,0,0,0,0,0,0,0,0,0,0,0,0,0,0,0,0,0,0,0,0,0,0,0,0,0,0,0,0,0,0,0,0,0,0,0,0,0,0,0,0,0,0,0,0,0,0,0,0,0,0,0,0,0,0,0,0,0,0,0,0,0,0,0,0,0,0,0,0,0,0,0,0,0,0,0,0,0,0,0,0,0,0,0,0,0,0,0,0,0,0,0,0,0,0,0,0,0,0,0,0,0,0,0,0,0]
["Hadley's Purchase","0000962","32420",0,0,0,0,0,0,0,0,0,0,0,0,0,0,0,0,0,0,0,0,0,0,0,0,0,0,0,0,0,0,0,0,0,0,0,0,0,0,0,0,0,0,0,0,0,0,0,0,0,0,0,0,0,0,0,0,0,0,0,0,0,0,0,0,0,0,0,0,0,0,0,0,0,0,0,0,0,0,0,0,0,0,0,0,0,0,0,0,0,0,0,0,0,0,0,0,0,0,0,0,0,0,0,0,0,0,0,0,0,0,0,0,0,0,0,0,0,0,0,0,0,0,0,0,0,0,0,0,0,0,0,0,0,0,0,0,0,0,0,0,0,0,0,0,0,0,0,0,0,0,0,0,0,0,0,0,0,0,0,0,0,0,0,0,0,0,0,0,0,0,0]
["Jefferson","0000967","38820",1002,435,1006,0,1002,990,2,2,0,0,0,8,1002,0,506,496,1002,852,150,0,413,299,6,38,55,75,65,32,18,10,114,7,13,22,28,11,19,8,6,825,164,512,12,48,40,89,41,979,555,420,332,41,32,15,4,23,20,3,958,583,375,373,189,184,67,117,83,14,8,12,0,2,534,511,409,102,23,534,457,0,12,32,502,43,53,58,62,91,20,66,21,33,14,28,13,32,973,7,18,106,63,31,732,35,89,281,129,42,109,47,154,10,47,4,2,43,24,615,79,43,536,444,73,31,69,36,804,547,547,534,299,257,40,47,147,139,8,23,23,0,42,13,0,13,0,0,29,7,4,18,0,534,29,53,73,9,51,29,5,24,38,105,63,27,28,140,86,100,25,97,86]
["Kilkenny","0000973","39940",0,0,0,0,0,0,0,0,0,0,0,0,0,0,0,0,0,0,0,0,0,0,0,0,0,0,0,0,0,0,0,0,0,0,0,0,0,0,0,0,0,0,0,0,0,0,0,0,0,0,0,0,0,0,0,0,0,0,0,0,0,0,0,0,0,0,0,0,0,0,0,0,0,0,0,0,0,0,0,0,0,0,0,0,0,0,0,0,0,0,0,0,0,0,0,0,0,0,0,0,0,0,0,0,0,0,0,0,0,0,0,0,0,0,0,0,0,0,0,0,0,0,0,0,0,0,0,0,0,0,0,0,0,0,0,0,0,0,0,0,0,0,0,0,0,0,0,0,0,0,0,0,0,0,0,0,0,0,0,0,0,0,0,0,0,0,0,0,0,0,0]
["Lancaster","0000978","40420",3280,457,3280,0,3280,3208,7,12,6,0,0,47,3245,35,1548,1732,3127,2633,494,153,1283,866,20,158,259,178,116,94,29,12,417,0,93,40,86,35,63,74,26,2597,540,1502,5,238,186,312,150,3178,1842,1295,1024,93,97,81,41,102,57,45,3070,1566,1504,1459,919,540,100,440,309,23,62,46,0,45,1518,1439,1174,265,79,1518,1331,0,15,131,1387,233,255,158,180,84,59,151,43,42,79,35,68,131,3163,59,32,393,218,62,2311,93,228,1009,272,146,361,202,557,45,138,10,0,128,54,1795,489,331,1306,1158,240,120,239,106,2513,1663,1663,1594,866,674,81,105,417,409,8,71,66,5,192,60,0,52,8,0,132,18,100,14,0,1594,52,84,257,31,231,93,22,78,69,448,73,57,99,525,235,401,44,162,227]
["Low and Burbank's Grant","0000991","43620",0,0,0,0,0,0,0,0,0,0,0,0,0,0,0,0,0,0,0,0,0,0,0,0,0,0,0,0,0,0,0,0,0,0,0,0,0,0,0,0,0,0,0,0,0,0,0,0,0,0,0,0,0,0,0,0,0,0,0,0,0,0,0,0,0,0,0,0,0,0,0,0,0,0,0,0,0,0,0,0,0,0,0,0,0,0,0,0,0,0,0,0,0,0,0,0,0,0,0,0,0,0,0,0,0,0,0,0,0,0,0,0,0,0,0,0,0,0,0,0,0,0,0,0,0,0,0,0,0,0,0,0,0,0,0,0,0,0,0,0,0,0,0,0,0,0,0,0,0,0,0,0,0,0,0,0,0,0,0,0,0,0,0,0,0,0,0,0,0,0,0]
["Martin's Location","0000996","46020",0,0,0,0,0,0,0,0,0,0,0,0,0,0,0,0,0,0,0,0,0,0,0,0,0,0,0,0,0,0,0,0,0,0,0,0,0,0,0,0,0,0,0,0,0,0,0,0,0,0,0,0,0,0,0,0,0,0,0,0,0,0,0,0,0,0,0,0,0,0,0,0,0,0,0,0,0,0,0,0,0,0,0,0,0,0,0,0,0,0,0,0,0,0,0,0,0,0,0,0,0,0,0,0,0,0,0,0,0,0,0,0,0,0,0,0,0,0,0,0,0,0,0,0,0,0,0,0,0,0,0,0,0,0,0,0,0,0,0,0,0,0,0,0,0,0,0,0,0,0,0,0,0,0,0,0,0,0,0,0,0,0,0,0,0,0,0,0,0,0,0]
["Milan","0001001","47860",1319,502,1331,0,1319,1290,0,4,0,0,8,17,1319,0,700,619,1319,1151,168,0,537,395,4,55,97,130,41,48,20,0,142,2,15,36,26,27,8,22,6,1059,199,686,21,50,38,103,39,1273,975,298,222,30,42,4,0,46,33,13,1253,911,342,330,229,101,25,76,32,13,0,31,0,12,699,693,673,20,6,699,656,3,6,18,681,33,51,98,145,155,59,67,4,8,22,17,22,18,1280,7,13,176,86,39,930,67,114,397,106,115,105,26,231,6,67,16,11,51,39,796,230,173,566,475,89,30,70,54,1022,744,744,712,395,349,45,36,217,204,13,51,51,0,46,23,3,13,7,0,23,2,17,0,4,712,47,45,167,20,70,37,6,16,16,154,52,26,56,191,115,110,35,75,186]
["Millsfield","0001006","48260",19,9,22,0,19,19,0,0,0,0,0,0,19,0,7,12,19,19,0,0,3,3,0,0,2,0,0,0,1,0,0,0,0,0,0,0,0,0,0,16,4,12,0,0,0,0,0,19,15,2,2,0,0,0,2,0,0,0,16,14,2,2,2,0,0,0,0,0,0,0,0,0,8,8,8,0,0,8,8,0,0,0,8,0,4,2,0,0,0,0,0,0,0,2,0,0,16,0,0,0,4,0,12,0,0,12,0,0,0,0,0,0,4,0,0,4,2,8,0,0,8,6,0,0,4,4,16,8,8,8,3,3,0,0,0,0,0,3,2,1,0,0,0,0,0,0,0,0,0,0,0,8,2,0,2,0,0,0,0,0,0,0,4,0,0,0,2,0,0,2,4]
["Northumberland","0001011","56100",2438,1125,2438,0,2438,2402,0,9,5,0,0,22,2422,16,1236,1202,2438,2037,401,0,1002,680,31,104,167,145,109,73,44,7,322,13,30,36,54,42,64,64,19,1936,438,1007,32,189,147,270,136,2359,1694,645,486,60,73,26,20,79,47,32,2322,1457,865,863,611,252,66,186,127,23,18,18,0,2,1080,1032,941,91,48,1080,936,0,22,19,1061,159,241,181,126,75,8,67,26,46,76,34,22,19,2373,27,29,318,176,59,1638,109,333,787,223,120,44,22,431,49,157,29,21,128,44,1356,463,329,893,687,202,77,176,108,1891,1161,1161,1101,680,510,81,139,233,215,18,57,52,5,170,68,2,49,16,1,102,24,53,21,4,1101,27,69,357,27,172,61,11,18,28,175,80,48,28,184,178,246,18,132,343]
["Odell","0001023","57860",0,0,5,0,0,0,0,0,0,0,0,0,0,0,0,0,0,0,0,0,0,0,0,0,0,0,0,0,0,0,0,0,0,0,0,0,0,0,0,0,0,0,0,0,0,0,0,0,0,0,0,0,0,0,0,0,0,0,0,0,0,0,0,0,0,0,0,0,0,0,0,0,0,0,0,0,0,0,0,0,0,0,0,0,0,0,0,0,0,0,0,0,0,0,0,0,0,0,0,0,0,0,0,0,0,0,0,0,0,0,0,0,0,0,0,0,0,0,0,0,0,0,0,0,0,0,0,0,0,0,0,0,0,0,0,0,0,0,0,0,0,0,0,0,0,0,0,0,0,0,0,0,0,0,0,0,0,0,0,0,0,0,0,0,0,0,0,0,0,0,0]
["Pinkham's Grant","0001028","61620",0,0,0,0,0,0,0,0,0,0,0,0,0,0,0,0,0,0,0,0,0,0,0,0,0,0,0,0,0,0,0,0,0,0,0,0,0,0,0,0,0,0,0,0,0,0,0,0,0,0,0,0,0,0,0,0,0,0,0,0,0,0,0,0,0,0,0,0,0,0,0,0,0,0,0,0,0,0,0,0,0,0,0,0,0,0,0,0,0,0,0,0,0,0,0,0,0,0,0,0,0,0,0,0,0,0,0,0,0,0,0,0,0,0,0,0,0,0,0,0,0,0,0,0,0,0,0,0,0,0,0,0,0,0,0,0,0,0,0,0,0,0,0,0,0,0,0,0,0,0,0,0,0,0,0,0,0,0,0,0,0,0,0,0,0,0,0,0,0,0,0]
["Pittsburg","0001033","61780",872,367,867,0,872,860,0,0,2,0,2,8,870,2,429,443,869,732,137,3,383,260,0,37,57,72,42,46,6,0,123,4,7,2,20,31,31,24,4,743,142,472,4,44,36,81,24,834,589,241,218,16,3,4,4,38,23,15,834,622,212,209,69,140,79,61,45,8,6,2,0,3,419,322,311,11,97,419,372,2,8,29,390,32,67,93,74,41,13,33,3,3,6,0,25,29,848,6,7,77,54,12,654,38,105,312,92,38,54,15,102,2,64,6,6,58,21,512,101,66,411,322,115,32,41,16,732,455,455,447,260,222,25,68,102,96,6,27,27,0,38,17,2,10,5,0,21,5,4,8,4,447,21,26,100,5,55,24,10,11,6,90,63,8,28,90,91,92,11,56,107]
["Randolph","0001038","63860",336,147,339,0,336,331,0,0,0,0,0,5,336,0,161,175,336,291,45,0,137,100,4,3,22,37,8,15,9,2,37,2,1,13,7,5,0,9,0,286,59,204,3,7,7,13,2,329,165,162,115,12,25,10,2,7,0,7,326,231,95,95,35,60,12,48,25,0,0,23,0,0,161,149,141,8,12,161,142,0,2,12,149,3,11,32,31,30,8,13,0,5,13,3,0,12,331,0,3,34,32,8,240,4,12,56,39,14,72,43,52,6,23,0,0,23,9,196,17,9,179,139,20,9,35,20,274,165,165,162,100,98,18,18,52,44,8,10,10,0,2,0,0,0,0,0,2,1,1,0,0,162,8,17,23,4,25,4,0,3,6,36,19,11,6,62,21,31,5,19,24]
["Sargent's Purchase","0001043","67860",0,0,0,0,0,0,0,0,0,0,0,0,0,0,0,0,0,0,0,0,0,0,0,0,0,0,0,0,0,0,0,0,0,0,0,0,0,0,0,0,0,0,0,0,0,0,0,0,0,0,0,0,0,0,0,0,0,0,0,0,0,0,0,0,0,0,0,0,0,0,0,0,0,0,0,0,0,0,0,0,0,0,0,0,0,0,0,0,0,0,0,0,0,0,0,0,0,0,0,0,0,0,0,0,0,0,0,0,0,0,0,0,0,0,0,0,0,0,0,0,0,0,0,0,0,0,0,0,0,0,0,0,0,0,0,0,0,0,0,0,0,0,0,0,0,0,0,0,0,0,0,0,0,0,0,0,0,0,0,0,0,0,0,0,0,0,0,0,0,0,0]
["Second College Grant","0001048","68500",0,0,0,0,0,0,0,0,0,0,0,0,0,0,0,0,0,0,0,0,0,0,0,0,0,0,0,0,0,0,0,0,0,0,0,0,0,0,0,0,0,0,0,0,0,0,0,0,0,0,0,0,0,0,0,0,0,0,0,0,0,0,0,0,0,0,0,0,0,0,0,0,0,0,0,0,0,0,0,0,0,0,0,0,0,0,0,0,0,0,0,0,0,0,0,0,0,0,0,0,0,0,0,0,0,0,0,0,0,0,0,0,0,0,0,0,0,0,0,0,0,0,0,0,0,0,0,0,0,0,0,0,0,0,0,0,0,0,0,0,0,0,0,0,0,0,0,0,0,0,0,0,0,0,0,0,0,0,0,0,0,0,0,0,0,0,0,0,0,0,0]
["Shelburne","0001053","68980",378,158,379,0,378,361,0,0,6,0,0,11,378,0,188,190,378,318,60,0,154,105,0,3,27,37,21,14,2,1,49,8,2,5,8,19,3,2,2,312,68,212,6,8,5,18,7,359,203,156,108,12,23,13,0,19,12,7,357,257,100,95,35,60,9,51,26,8,4,13,0,5,210,200,177,23,10,210,202,0,0,0,210,14,36,25,23,27,19,35,0,12,13,3,3,0,361,4,2,36,39,3,261,5,15,79,50,31,46,35,51,0,31,4,4,27,8,234,85,70,149,117,30,5,7,3,306,227,223,210,105,103,13,17,54,54,0,19,19,0,2,0,0,0,0,0,2,0,0,2,0,210,2,10,35,4,33,2,5,3,8,62,16,6,24,83,32,34,0,27,34]
["Stark","0001058","73060",530,228,516,0,530,520,0,0,0,0,2,8,524,6,287,243,529,455,74,1,211,157,2,15,40,51,25,20,4,0,54,0,10,8,14,6,5,6,5,418,89,255,10,29,23,35,16,511,356,146,118,10,13,5,9,19,11,8,504,374,130,124,75,49,22,27,25,0,2,0,0,6,215,207,185,22,8,215,200,0,3,9,206,4,8,36,25,30,23,40,4,4,18,12,2,9,516,0,3,73,38,21,359,27,45,160,61,32,24,10,86,4,43,6,0,37,11,306,93,44,213,157,38,14,27,9,418,235,231,215,157,131,19,49,38,38,0,25,24,1,26,10,0,8,2,0,16,0,9,7,0,215,4,23,66,3,18,9,10,9,8,39,16,2,8,46,29,33,0,49,58]
["Stewartstown","0001063","73380",1012,435,1012,0,1012,995,0,7,0,0,0,10,1010,2,526,486,899,750,149,113,368,245,13,56,60,45,26,24,17,4,123,7,12,19,35,11,13,10,16,816,229,426,7,63,53,91,25,935,709,222,202,7,13,0,4,77,54,23,954,578,376,376,214,162,31,131,87,2,18,24,0,0,414,264,256,8,150,414,338,0,1,33,381,46,124,78,57,33,8,18,4,1,6,0,6,33,976,5,4,125,66,13,691,86,132,314,54,47,39,19,151,9,59,9,5,50,13,556,159,116,397,273,55,13,63,26,803,449,449,433,245,199,21,38,118,111,7,22,22,0,46,23,5,10,6,2,23,8,15,0,0,433,36,12,164,5,39,32,6,11,2,69,23,20,14,63,61,69,20,47,173]
["Stratford","0001068","74180",933,399,942,0,933,893,3,12,2,0,0,23,930,3,416,517,933,735,198,0,393,233,11,26,63,45,44,25,19,0,160,10,11,13,37,39,32,11,7,753,230,358,7,76,61,82,53,911,527,375,336,7,25,7,9,22,17,5,891,583,308,304,179,125,45,80,73,3,2,2,0,4,392,317,312,5,75,392,350,4,7,16,376,10,41,41,25,72,23,63,20,34,35,12,0,16,920,17,11,113,82,21,628,66,161,263,74,21,32,11,152,18,81,14,2,67,33,534,152,50,382,300,74,36,50,33,739,437,437,404,233,171,29,46,72,65,7,24,24,0,62,21,0,20,1,0,41,7,25,3,6,404,16,20,157,3,48,14,5,2,8,72,24,18,17,85,59,72,6,38,144]
["Success","0001073","74500",0,0,2,0,0,0,0,0,0,0,0,0,0,0,0,0,0,0,0,0,0,0,0,0,0,0,0,0,0,0,0,0,0,0,0,0,0,0,0,0,0,0,0,0,0,0,0,0,0,0,0,0,0,0,0,0,0,0,0,0,0,0,0,0,0,0,0,0,0,0,0,0,0,0,0,0,0,0,0,0,0,0,0,0,0,0,0,0,0,0,0,0,0,0,0,0,0,0,0,0,0,0,0,0,0,0,0,0,0,0,0,0,0,0,0,0,0,0,0,0,0,0,0,0,0,0,0,0,0,0,0,0,0,0,0,0,0,0,0,0,0,0,0,0,0,0,0,0,0,0,0,0,0,0,0,0,0,0,0,0,0,0,0,0,0,0,0,0,0,0,0]
["Thompson and Meserves Purchase","0001078","76580",0,0,0,0,0,0,0,0,0,0,0,0,0,0,0,0,0,0,0,0,0,0,0,0,0,0,0,0,0,0,0,0,0,0,0,0,0,0,0,0,0,0,0,0,0,0,0,0,0,0,0,0,0,0,0,0,0,0,0,0,0,0,0,0,0,0,0,0,0,0,0,0,0,0,0,0,0,0,0,0,0,0,0,0,0,0,0,0,0,0,0,0,0,0,0,0,0,0,0,0,0,0,0,0,0,0,0,0,0,0,0,0,0,0,0,0,0,0,0,0,0,0,0,0,0,0,0,0,0,0,0,0,0,0,0,0,0,0,0,0,0,0,0,0,0,0,0,0,0,0,0,0,0,0,0,0,0,0,0,0,0,0,0,0,0,0,0,0,0,0,0]
["Wentworth's Location","0001083","80740",49,23,44,0,49,49,0,0,0,0,0,0,49,0,29,20,49,38,11,0,22,14,0,0,0,6,0,8,0,0,8,0,3,3,2,0,0,0,0,46,8,25,0,2,0,11,3,49,28,21,21,0,0,0,0,0,0,0,49,29,20,20,16,4,3,1,1,0,0,0,0,0,20,16,16,0,4,20,20,0,0,0,20,0,3,3,0,0,0,3,0,0,5,6,0,0,49,0,0,3,2,0,40,2,8,17,9,0,4,0,3,3,3,0,0,3,0,35,10,3,25,17,8,4,0,0,46,25,25,20,14,12,5,2,2,2,0,3,3,0,2,2,2,0,0,0,0,0,0,0,0,20,1,0,5,3,0,0,0,0,0,3,8,0,0,0,9,3,0,2,6]
["Whitefield","0001088","84420",2015,890,2038,0,2015,1971,0,2,15,0,16,11,1976,39,958,1057,1946,1613,333,69,814,540,23,82,140,133,67,56,30,9,274,17,17,34,52,33,64,38,19,1637,324,975,11,130,94,197,103,1969,1103,857,757,39,46,15,9,46,26,20,1899,1052,847,836,357,479,202,277,225,11,34,7,3,8,933,895,523,372,38,933,808,0,10,62,871,63,110,98,130,202,59,94,6,22,45,10,32,62,1949,26,22,213,129,90,1387,83,193,517,271,116,141,66,288,28,153,25,17,128,67,1078,186,91,892,747,167,57,144,76,1611,1013,1013,957,540,449,75,71,223,211,12,80,80,0,91,32,2,23,7,0,59,2,39,16,2,957,21,57,161,27,166,46,24,39,43,150,136,32,55,238,158,259,14,81,207]
[]
[]
[]
[]
["Census 2000 SummaryFile3 Sample Data  -  SF3TownQry2aIncomeChar"]
[]
["TOWN_NAME","LOGRECNO","COUSUB","TotalPop","P52Households1","P52HHInc<10K","P52HHInc10to15K","P52HHInc15to20K","P52HHInc20to25K","P52HHInc25to30K","P52HHInc30to35K","P52HHInc35to40K","P52HHInc40to45K","P52HHInc45to50K","P52HHInc50to60K","P52HHInc60to75K","P52HHInc75to100K","P52HHInc100to125K","P52HHInc125to150K","P52HHInc150to200K","P52HHInc>200K","P53MedianHHInc","P54AggregHHInc","P55Households2","P55HHUnder25yrs","P55HH<25HHInc<10K","P55HH<25HHInc10to15K","P55HH<25HHInc15to20K","P55HH<25HHInc20to25K","P55HH<25HHInc25to30K","P55HH<25HHInc30to35K","P55HH<25HHInc35to40K","P55HH<25HHInc40to45K","P55HH<25HHInc45to50K","P55HH<25HHInc50to60K","P55HH<25HHInc60to75K","P55HH<25HHInc75to100K","P55HH<25HHInc100to125K","P55HH<25HHInc125to150K","P55HH<25HHInc150to200K","P55HH<25HHInc>200K","P55HH25to34yrs","P55HH25to34HHInc<10K","P55HH25to34HHInc10to15K","P55HH25to34HHInc15to20K","P55HH25to34HHInc20to25K","P55HH25to34HHInc25to30K","P55HH25to34HHInc30to35K","P55HH25to34HHInc35to40K","P55HH25to34HHInc40to45K","P55HH25to34HHInc45to50K","P55HH25to34HHInc50to60K","P55HH25to34HHInc60to75K","P55HH25to34HHInc75to100K","P55HH25to34HHInc100to125K","P55HH25to34HHInc125to150K","P55HH25to34HHInc150to200K","P55HH25to34HHInc>200K","P55HH35to44yrs","P55HH35to44HHInc<10K","P55HH35to44HHInc10to15K","P55HH35to44HHInc15to20K","P55HH35to44HHInc20to25K","P55HH35to44HHInc25to30K","P55HH35to44HHInc30to35K","P55HH35to44HHInc35to40K","P55HH35to44HHInc40to45K","P55HH35to44HHInc45to50K","P55HH35to44HHInc50to60K","P55HH35to44HHInc60to75K","P55HH35to44HHInc75to100K","P55HH35to44HHInc100to125K","P55HH35to44HHInc125to150K","P55HH35to44HHInc150to200K","P55HH35to44HHInc>200K","P55HH45to54yrs","P55HH45to55HHInc<10K","P55HH45to55HHInc10to15K","P55HH45to55HHInc15to20K","P55HH45to55HHInc20to25K","P55HH45to55HHInc25to30K","P55HH45to55HHInc30to35K","P55HH45to55HHInc35to40K","P55HH45to55HHInc40to45K","P55HH45to55HHInc45to50K","P55HH45to55HHInc50to60K","P55HH45to55HHInc60to75K","P55HH45to55HHInc75to100K","P55HH45to55HHInc100to125K","P55HH45to55HHInc125to150K","P55HH45to55HHInc150to200K","P55HH45to55HHInc>200K","P55HH55to64yrs","P55HH55to64HHInc<10K","P55HH55to64HHInc10to15K","P55HH55to64HHInc15to20K","P55HH55to64HHInc20to25K","P55HH55to64HHInc25to30K","P55HH55to64HHInc30to35K","P55HH55to64HHInc35to40K","P55HH55to64HHInc40to45K","P55HH55to64HHInc45to50K","P55HH55to64HHInc50to60K","P55HH55to64HHInc60to75K","P55HH55to64HHInc75to100K","P55HH55to64HHInc100to125K","P55HH55to64HHInc125to150K","P55HH55to64HHInc150to200K","P55HH55to64HHInc>200K","P55HH65to74yrs","P55HH65to74HHInc<10K","P55HH65to74HHInc10to15K","P55HH65to74HHInc15to20K","P55HH65to74HHInc20to25K","P55HH65to74HHInc25to30K","P55HH65to74HHInc30to35K","P55HH65to74HHInc35to40K","P55HH65to74HHInc40to45K","P55HH65to74HHInc45to50K","P55HH65to74HHInc50to60K","P55HH65to74HHInc60to75K","P55HH65to74HHInc75to100K","P55HH65to74HHInc100to125K","P55HH65to74HHInc125to150K","P55HH65to74HHInc150to200K","P55HH65to74HHInc>200K","P55HH>75yrs","P55HH>75HHInc<10K","P55HH>75HHInc10to15K","P55HH>75HHInc15to20K","P55HH>75HHInc20to25K","P55HH>75HHInc25to30K","P55HH>75HHInc30to35K","P55HH>75HHInc35to40K","P55HH>75HHInc40to45K","P55HH>75HHInc45to50K","P55HH>75HHInc50to60K","P55HH>75HHInc60to75K","P55HH>75HHInc75to100K","P55HH>75HHInc100to125K","P55HH>75HHInc125to150K","P55HH>75HHInc150to200K","P55HH>75HHInc>200K","P56MedHHInc","P56MedHHIncHH<25y","P56MedHHIncHH25to34y","P56MedHHIncHH35to44y","P56MedHHIncHH45to54y","P56MedHHIncHH55to64y","P56MedHHIncHH65to74y","P56MedHHIncHH>75y","P58Households3","P58HHwithEarnings","P58HHNoEarnings","P59HHwWageSalInc","P59HHNoWageSalInc","P60HHwSelfEmpInc","P60HHNoSelfEmpInc","P61HHwIndDivInc","P61HHNoIndDivInc","P62HHwSocSecInc","P62HHNoSocSecInc","P63HHwSSI","P63HHNoSSI","P64HHwPubAssInc","P64HHNoPubAssInc","P65HHwRetInc","P65HHNoRetInc","P66HHwOtherTypInc","P66HHNoOtherTypInc","P67AggregEarnings","P68AggregWageSalInc","P69AggregSelfEmpInc","P70AggregIntDivInc","P71AggregSocSecInc","P72AggregSSIInc","P73AggregPublicAssInc","P74AggregRetireInc","P76Families1","P76FamInc<10K","P76FamInc10to15K","P76FamInc15to20K","P76FamInc20to25K","P76FamInc25to30K","P76FamInc30to35K","P76FamInc35to40K","P76FamInc40to45K","P76FamInc45to50K","P76FamInc50to60K","P76FamInc60to75K","P76FamInc75to100K","P76FamInc100to125K","P76FamInc125to150K","P76FamInc150to200K","P76FamInc>200K","P77MedFamInc","P78AggregFamInc","P79NonFamHH","P79NonFamHHwInc<10K","P79NonFamHHwInc10to15K","P79NonFamHHwInc15to20K","P79NonFamHHwInc20to25K","P79NonFamHHwInc25to30K","P79NonFamHHwInc30to35K","P79NonFamHHwInc35to40K","P79NonFamHHwInc40to45K","P79NonFamHHwInc45to50K","P79NonFamHHwInc50to60K","P79NonFamHHwInc60to75K","P79NonFamHHwInc75to100K","P79NonFamHHwInc100to125K","P79NonFamHHwInc125to150K","P79NonFamHHwInc150to200K","P79NonFamHHwInc200KorMore","P80MedNonFamInc","P82PerCapitaInc"]
["Atkinson and Gilmanton Grant","0000818","02420",12,0,0,0,0,0,0,0,0,0,0,0,0,0,0,0,0,0,0,0,0,0,0,0,0,0,0,0,0,0,0,0,0,0,0,0,0,0,0,0,0,0,0,0,0,0,0,0,0,0,0,0,0,0,0,0,0,0,0,0,0,0,0,0,0,0,0,0,0,0,0,0,0,0,0,0,0,0,0,0,0,0,0,0,0,0,0,0,0,0,0,0,0,0,0,0,0,0,0,0,0,0,0,0,0,0,0,0,0,0,0,0,0,0,0,0,0,0,0,0,0,0,0,0,0,0,0,0,0,0,0,0,0,0,0,0,0,0,0,0,0,0,0,0,0,0,0,0,0,0,0,0,0,0,0,0,0,0,0,0,0,0,0,0,0,0,0,0,0,0,0,0,0,0,0,0,0,0,0,0,0,0,0,0,0,0,0,0,0,0,0,0,0,0,0,0,0,0,0,0,0,0,0,0,0,0,0,0,0,0,0,0,0]
["Bean's Grant","0000823","04100",0,0,0,0,0,0,0,0,0,0,0,0,0,0,0,0,0,0,0,0,0,0,0,0,0,0,0,0,0,0,0,0,0,0,0,0,0,0,0,0,0,0,0,0,0,0,0,0,0,0,0,0,0,0,0,0,0,0,0,0,0,0,0,0,0,0,0,0,0,0,0,0,0,0,0,0,0,0,0,0,0,0,0,0,0,0,0,0,0,0,0,0,0,0,0,0,0,0,0,0,0,0,0,0,0,0,0,0,0,0,0,0,0,0,0,0,0,0,0,0,0,0,0,0,0,0,0,0,0,0,0,0,0,0,0,0,0,0,0,0,0,0,0,0,0,0,0,0,0,0,0,0,0,0,0,0,0,0,0,0,0,0,0,0,0,0,0,0,0,0,0,0,0,0,0,0,0,0,0,0,0,0,0,0,0,0,0,0,0,0,0,0,0,0,0,0,0,0,0,0,0,0,0,0,0,0,0,0,0,0,0,0,0]
["Bean's Purchase","0000828","04260",4,0,0,0,0,0,0,0,0,0,0,0,0,0,0,0,0,0,0,0,0,0,0,0,0,0,0,0,0,0,0,0,0,0,0,0,0,0,0,0,0,0,0,0,0,0,0,0,0,0,0,0,0,0,0,0,0,0,0,0,0,0,0,0,0,0,0,0,0,0,0,0,0,0,0,0,0,0,0,0,0,0,0,0,0,0,0,0,0,0,0,0,0,0,0,0,0,0,0,0,0,0,0,0,0,0,0,0,0,0,0,0,0,0,0,0,0,0,0,0,0,0,0,0,0,0,0,0,0,0,0,0,0,0,0,0,0,0,0,0,0,0,0,0,0,0,0,0,0,0,0,0,0,0,0,0,0,0,0,0,0,0,0,0,0,0,0,0,0,0,0,0,0,0,0,0,0,0,0,0,0,0,0,0,0,0,0,0,0,0,0,0,0,0,0,0,0,0,0,0,0,0,0,0,0,0,0,0,0,0,0,0,0]
["Berlin","0000833","05140",10331,4555,677,494,415,355,357,314,316,254,283,407,369,185,87,20,14,8,29647,160522700,4555,197,42,23,29,5,32,17,16,8,14,11,0,0,0,0,0,0,571,25,24,41,50,63,80,89,34,43,70,28,5,15,4,0,0,813,82,42,24,38,53,65,34,80,63,126,119,53,12,16,6,0,830,77,38,39,56,32,29,51,62,70,123,135,91,25,0,2,0,553,85,32,47,37,54,34,44,31,59,37,43,31,11,0,0,8,791,155,169,77,95,70,64,55,17,23,32,24,0,10,0,0,0,800,211,166,158,74,53,25,27,22,11,8,20,5,14,0,6,0,29647,24750,35174,44154,47926,33512,19596,15575,4555,2988,1567,2921,1634,309,4246,1763,2792,1936,2619,264,4291,361,4194,978,3577,586,3969,117467500,112269600,5197800,8308100,20131700,1615400,623300,8677100,2919,182,190,212,195,206,262,276,217,233,358,338,154,72,16,8,0,38750,122418600,1636,532,315,197,157,140,67,66,34,46,20,29,9,10,0,6,8,14520,15780]
["Cambridge","0000864","08420",10,0,0,0,0,0,0,0,0,0,0,0,0,0,0,0,0,0,0,0,0,0,0,0,0,0,0,0,0,0,0,0,0,0,0,0,0,0,0,0,0,0,0,0,0,0,0,0,0,0,0,0,0,0,0,0,0,0,0,0,0,0,0,0,0,0,0,0,0,0,0,0,0,0,0,0,0,0,0,0,0,0,0,0,0,0,0,0,0,0,0,0,0,0,0,0,0,0,0,0,0,0,0,0,0,0,0,0,0,0,0,0,0,0,0,0,0,0,0,0,0,0,0,0,0,0,0,0,0,0,0,0,0,0,0,0,0,0,0,0,0,0,0,0,0,0,0,0,0,0,0,0,0,0,0,0,0,0,0,0,0,0,0,0,0,0,0,0,0,0,0,0,0,0,0,0,0,0,0,0,0,0,0,0,0,0,0,0,0,0,0,0,0,0,0,0,0,0,0,0,0,0,0,0,0,0,0,0,0,0,0,0,0]
["Carroll","0000869","10100",663,286,28,11,12,25,21,32,16,21,27,28,39,14,9,2,0,1,39286,12289000,286,15,3,0,2,0,0,6,0,2,2,0,0,0,0,0,0,0,31,6,0,0,4,5,3,0,3,5,3,2,0,0,0,0,0,60,3,0,6,0,2,10,7,3,6,13,8,0,2,0,0,0,59,0,0,2,10,4,7,0,2,7,8,9,5,2,2,0,1,55,2,2,0,0,8,6,6,2,5,4,12,6,2,0,0,0,48,6,9,2,5,0,0,3,7,2,0,8,3,3,0,0,0,18,8,0,0,6,2,0,0,2,0,0,0,0,0,0,0,0,39286,32083,30417,41667,47917,45938,39167,22917,286,237,49,218,68,56,230,85,201,81,205,0,286,8,278,53,233,39,247,9317700,7819700,1498000,807200,987600,0,15500,827200,192,4,4,7,14,16,23,13,14,20,21,35,11,7,2,0,1,45227,9419300,94,24,7,5,14,11,12,0,6,4,5,2,2,2,0,0,0,24250,18734]
["Chandler's Purchase","0000874","11220",0,0,0,0,0,0,0,0,0,0,0,0,0,0,0,0,0,0,0,0,0,0,0,0,0,0,0,0,0,0,0,0,0,0,0,0,0,0,0,0,0,0,0,0,0,0,0,0,0,0,0,0,0,0,0,0,0,0,0,0,0,0,0,0,0,0,0,0,0,0,0,0,0,0,0,0,0,0,0,0,0,0,0,0,0,0,0,0,0,0,0,0,0,0,0,0,0,0,0,0,0,0,0,0,0,0,0,0,0,0,0,0,0,0,0,0,0,0,0,0,0,0,0,0,0,0,0,0,0,0,0,0,0,0,0,0,0,0,0,0,0,0,0,0,0,0,0,0,0,0,0,0,0,0,0,0,0,0,0,0,0,0,0,0,0,0,0,0,0,0,0,0,0,0,0,0,0,0,0,0,0,0,0,0,0,0,0,0,0,0,0,0,0,0,0,0,0,0,0,0,0,0,0,0,0,0,0,0,0,0,0,0,0]
["Clarksville","0000879","13220",294,129,7,4,8,8,12,11,14,14,11,15,14,6,5,0,0,0,40179,5499100,129,0,0,0,0,0,0,0,0,0,0,0,0,0,0,0,0,0,15,0,0,0,0,8,0,3,2,0,0,0,2,0,0,0,0,31,2,0,3,0,2,7,6,3,0,0,8,0,0,0,0,0,32,0,0,0,3,0,0,3,0,4,13,4,0,5,0,0,0,23,3,2,0,0,0,4,2,3,5,2,0,2,0,0,0,0,21,0,2,2,5,2,0,0,6,2,0,2,0,0,0,0,0,7,2,0,3,0,0,0,0,0,0,0,0,2,0,0,0,0,40179,0,29583,36250,54500,40417,26875,18750,129,111,18,108,21,15,114,35,94,36,93,0,129,3,126,20,109,19,110,4433000,4253300,179700,272100,447800,0,15000,255200,92,5,2,5,7,2,6,8,12,11,15,11,6,2,0,0,0,44688,4179100,37,2,2,3,3,10,5,6,3,0,0,3,0,0,0,0,0,28750,18090]
["Colebrook","0000884","13780",2321,1039,139,102,86,74,79,66,82,57,35,96,117,60,18,13,9,6,32244,42684400,1039,54,5,4,12,7,11,8,3,2,2,0,0,0,0,0,0,0,141,13,15,8,14,7,5,16,8,3,19,17,14,2,0,0,0,209,6,13,13,8,30,21,15,18,2,22,39,12,3,7,0,0,222,22,12,9,15,12,15,21,16,10,25,30,19,5,2,7,2,147,11,6,14,10,10,4,17,6,11,17,23,8,4,2,2,2,138,23,32,14,12,9,10,10,4,2,10,5,5,0,2,0,0,128,59,20,16,8,0,3,0,3,5,3,3,2,4,0,0,2,32244,23750,36932,39750,41786,41875,20000,11250,1039,813,226,774,265,166,873,238,801,325,714,46,993,72,967,152,887,148,891,32769600,28822000,3947600,1531300,3274600,319000,95500,3367400,611,19,43,35,49,47,40,49,47,25,70,99,51,16,11,4,6,42260,31168300,428,127,64,53,29,36,34,25,12,8,10,12,12,2,2,2,0,17212,18390]
["Columbia","0000890","13940",750,309,24,47,23,16,29,10,22,23,22,19,34,20,17,3,0,0,36964,12786900,309,3,0,0,0,0,0,2,1,0,0,0,0,0,0,0,0,0,51,0,4,3,6,6,6,4,13,0,2,4,0,3,0,0,0,44,3,4,2,0,8,0,0,2,2,9,7,5,0,2,0,0,74,2,10,2,0,0,2,15,2,9,2,16,8,5,1,0,0,49,10,7,0,2,9,0,2,2,3,3,4,4,3,0,0,0,55,3,13,13,5,6,0,0,0,6,3,3,3,0,0,0,0,33,6,9,3,3,0,0,0,4,2,0,0,0,6,0,0,0,36964,31875,35625,50500,46250,28906,19375,16250,309,229,80,216,93,39,270,57,252,95,214,22,287,27,282,48,261,70,239,9673300,8544400,1128900,578100,1026700,131000,38100,683900,226,6,31,15,10,19,8,18,17,22,14,31,21,11,3,0,0,42143,10468700,83,21,21,12,2,5,0,7,7,0,3,0,2,3,0,0,0,14844,16859]
["Crawford's Purchase","0000895","16100",0,0,0,0,0,0,0,0,0,0,0,0,0,0,0,0,0,0,0,0,0,0,0,0,0,0,0,0,0,0,0,0,0,0,0,0,0,0,0,0,0,0,0,0,0,0,0,0,0,0,0,0,0,0,0,0,0,0,0,0,0,0,0,0,0,0,0,0,0,0,0,0,0,0,0,0,0,0,0,0,0,0,0,0,0,0,0,0,0,0,0,0,0,0,0,0,0,0,0,0,0,0,0,0,0,0,0,0,0,0,0,0,0,0,0,0,0,0,0,0,0,0,0,0,0,0,0,0,0,0,0,0,0,0,0,0,0,0,0,0,0,0,0,0,0,0,0,0,0,0,0,0,0,0,0,0,0,0,0,0,0,0,0,0,0,0,0,0,0,0,0,0,0,0,0,0,0,0,0,0,0,0,0,0,0,0,0,0,0,0,0,0,0,0,0,0,0,0,0,0,0,0,0,0,0,0,0,0,0,0,0,0,0]
["Cutt's Grant","0000900","16660",0,0,0,0,0,0,0,0,0,0,0,0,0,0,0,0,0,0,0,0,0,0,0,0,0,0,0,0,0,0,0,0,0,0,0,0,0,0,0,0,0,0,0,0,0,0,0,0,0,0,0,0,0,0,0,0,0,0,0,0,0,0,0,0,0,0,0,0,0,0,0,0,0,0,0,0,0,0,0,0,0,0,0,0,0,0,0,0,0,0,0,0,0,0,0,0,0,0,0,0,0,0,0,0,0,0,0,0,0,0,0,0,0,0,0,0,0,0,0,0,0,0,0,0,0,0,0,0,0,0,0,0,0,0,0,0,0,0,0,0,0,0,0,0,0,0,0,0,0,0,0,0,0,0,0,0,0,0,0,0,0,0,0,0,0,0,0,0,0,0,0,0,0,0,0,0,0,0,0,0,0,0,0,0,0,0,0,0,0,0,0,0,0,0,0,0,0,0,0,0,0,0,0,0,0,0,0,0,0,0,0,0,0]
["Dalton","0000905","16820",927,371,26,23,44,38,24,27,24,25,28,29,42,25,7,6,3,0,35625,15393100,371,18,0,3,7,6,0,2,0,0,0,0,0,0,0,0,0,0,32,0,0,0,3,5,6,4,6,0,5,0,3,0,0,0,0,85,2,0,2,0,6,5,7,16,12,12,14,4,2,3,0,0,77,2,3,0,3,6,6,3,3,10,7,19,10,5,0,0,0,58,3,2,12,7,3,3,3,0,6,0,9,7,0,3,0,0,61,8,8,21,7,4,2,5,0,0,2,0,1,0,0,3,0,40,11,7,2,12,0,3,2,0,0,3,0,0,0,0,0,0,35625,19500,36250,47656,52083,31667,18523,20000,371,294,77,278,93,44,327,71,300,125,246,10,361,22,349,63,308,55,316,11433000,10427200,1005800,1096600,1239600,87800,64900,1012800,258,4,6,24,22,21,16,22,25,28,19,35,25,5,3,3,0,41667,12265600,113,24,17,21,16,5,8,2,3,0,5,9,0,0,3,0,0,18472,16234]
["Dix's Grant","0000910","18340",0,0,0,0,0,0,0,0,0,0,0,0,0,0,0,0,0,0,0,0,0,0,0,0,0,0,0,0,0,0,0,0,0,0,0,0,0,0,0,0,0,0,0,0,0,0,0,0,0,0,0,0,0,0,0,0,0,0,0,0,0,0,0,0,0,0,0,0,0,0,0,0,0,0,0,0,0,0,0,0,0,0,0,0,0,0,0,0,0,0,0,0,0,0,0,0,0,0,0,0,0,0,0,0,0,0,0,0,0,0,0,0,0,0,0,0,0,0,0,0,0,0,0,0,0,0,0,0,0,0,0,0,0,0,0,0,0,0,0,0,0,0,0,0,0,0,0,0,0,0,0,0,0,0,0,0,0,0,0,0,0,0,0,0,0,0,0,0,0,0,0,0,0,0,0,0,0,0,0,0,0,0,0,0,0,0,0,0,0,0,0,0,0,0,0,0,0,0,0,0,0,0,0,0,0,0,0,0,0,0,0,0,0]
["Dixville","0000915","18420",75,0,0,0,0,0,0,0,0,0,0,0,0,0,0,0,0,0,0,0,0,0,0,0,0,0,0,0,0,0,0,0,0,0,0,0,0,0,0,0,0,0,0,0,0,0,0,0,0,0,0,0,0,0,0,0,0,0,0,0,0,0,0,0,0,0,0,0,0,0,0,0,0,0,0,0,0,0,0,0,0,0,0,0,0,0,0,0,0,0,0,0,0,0,0,0,0,0,0,0,0,0,0,0,0,0,0,0,0,0,0,0,0,0,0,0,0,0,0,0,0,0,0,0,0,0,0,0,0,0,0,0,0,0,0,0,0,0,0,0,0,0,0,0,0,0,0,0,0,0,0,0,0,0,0,0,0,0,0,0,0,0,0,0,0,0,0,0,0,0,0,0,0,0,0,0,0,0,0,0,0,0,0,0,0,0,0,0,0,0,0,0,0,0,0,0,0,0,0,0,0,0,0,0,0,0,0,0,0,0,0,0,4667]
["Dummer","0000920","19300",309,142,16,8,14,6,22,14,3,10,12,8,16,8,3,2,0,0,32750,5568400,142,0,0,0,0,0,0,0,0,0,0,0,0,0,0,0,0,0,26,2,0,3,0,4,0,3,0,8,2,4,0,0,0,0,0,31,5,0,2,0,5,8,0,4,0,2,2,3,0,0,0,0,35,0,4,0,0,5,4,0,2,2,2,10,1,3,2,0,0,27,5,0,5,2,5,2,0,2,2,0,0,4,0,0,0,0,13,2,2,2,4,3,0,0,0,0,0,0,0,0,0,0,0,10,2,2,2,0,0,0,0,2,0,2,0,0,0,0,0,0,32750,0,45417,32750,58125,28250,20313,16250,142,122,20,118,24,25,117,19,123,44,98,4,138,7,135,22,120,21,121,4550100,4122900,427200,128100,398600,49800,4200,303400,109,5,2,9,4,16,14,0,10,12,8,16,8,3,2,0,0,42708,5034600,33,11,6,5,2,6,0,3,0,0,0,0,0,0,0,0,0,14375,16754]
["Errol","0000925","25140",298,133,10,16,13,8,14,4,9,4,11,17,10,9,0,3,2,3,35625,6530100,133,4,0,2,0,0,0,0,0,0,0,0,2,0,0,0,0,0,16,0,5,0,0,2,2,0,0,3,2,2,0,0,0,0,0,25,2,0,3,2,0,0,0,2,5,6,2,3,0,0,0,0,16,0,0,3,0,3,0,5,0,0,5,0,0,0,0,0,0,36,0,2,2,0,3,2,4,2,3,4,4,4,0,3,0,3,17,6,3,2,2,0,0,0,0,0,0,0,2,0,0,2,0,19,2,4,3,4,6,0,0,0,0,0,0,0,0,0,0,0,35625,36250,31250,49250,37500,51250,12083,20313,133,103,30,101,32,13,120,40,93,44,89,3,130,10,123,25,108,19,114,5227100,3885600,1341500,228800,525600,25200,10000,472900,92,2,9,4,8,8,4,6,2,11,17,4,9,0,3,2,3,47500,5476000,41,8,7,9,0,6,0,3,2,0,0,6,0,0,0,0,0,19028,22440]
["Erving's Location","0000930","25180",1,0,0,0,0,0,0,0,0,0,0,0,0,0,0,0,0,0,0,0,0,0,0,0,0,0,0,0,0,0,0,0,0,0,0,0,0,0,0,0,0,0,0,0,0,0,0,0,0,0,0,0,0,0,0,0,0,0,0,0,0,0,0,0,0,0,0,0,0,0,0,0,0,0,0,0,0,0,0,0,0,0,0,0,0,0,0,0,0,0,0,0,0,0,0,0,0,0,0,0,0,0,0,0,0,0,0,0,0,0,0,0,0,0,0,0,0,0,0,0,0,0,0,0,0,0,0,0,0,0,0,0,0,0,0,0,0,0,0,0,0,0,0,0,0,0,0,0,0,0,0,0,0,0,0,0,0,0,0,0,0,0,0,0,0,0,0,0,0,0,0,0,0,0,0,0,0,0,0,0,0,0,0,0,0,0,0,0,0,0,0,0,0,0,0,0,0,0,0,0,0,0,0,0,0,0,0,0,0,0,0,0,0]
["Gorham","0000935","30260",2895,1293,131,134,115,121,105,77,106,72,71,125,131,78,20,7,0,0,32250,48305300,1293,26,0,7,0,6,6,0,7,0,0,0,0,0,0,0,0,0,173,6,0,8,14,17,31,10,13,19,15,34,6,0,0,0,0,258,5,1,7,29,20,7,19,21,15,60,44,17,6,7,0,0,261,0,30,0,18,20,15,27,18,22,32,34,39,6,0,0,0,135,18,7,6,9,6,14,8,14,0,14,15,16,8,0,0,0,185,28,15,52,29,18,5,26,0,8,0,4,0,0,0,0,0,255,74,74,42,16,18,5,9,6,7,4,0,0,0,0,0,0,32250,26250,40250,50893,45625,37344,19760,12090,1293,907,386,896,397,81,1212,349,944,524,769,43,1250,54,1239,241,1052,117,1176,39188800,37615200,1573600,729000,5754900,288300,93200,1704400,801,12,32,59,58,93,45,89,49,40,112,128,65,12,7,0,0,41008,36680800,492,119,102,61,63,13,32,22,17,26,19,11,7,0,0,0,0,17083,16649]
["Greens Grant","0000957","31780",0,0,0,0,0,0,0,0,0,0,0,0,0,0,0,0,0,0,0,0,0,0,0,0,0,0,0,0,0,0,0,0,0,0,0,0,0,0,0,0,0,0,0,0,0,0,0,0,0,0,0,0,0,0,0,0,0,0,0,0,0,0,0,0,0,0,0,0,0,0,0,0,0,0,0,0,0,0,0,0,0,0,0,0,0,0,0,0,0,0,0,0,0,0,0,0,0,0,0,0,0,0,0,0,0,0,0,0,0,0,0,0,0,0,0,0,0,0,0,0,0,0,0,0,0,0,0,0,0,0,0,0,0,0,0,0,0,0,0,0,0,0,0,0,0,0,0,0,0,0,0,0,0,0,0,0,0,0,0,0,0,0,0,0,0,0,0,0,0,0,0,0,0,0,0,0,0,0,0,0,0,0,0,0,0,0,0,0,0,0,0,0,0,0,0,0,0,0,0,0,0,0,0,0,0,0,0,0,0,0,0,0,0]
["Hadley's Purchase","0000962","32420",0,0,0,0,0,0,0,0,0,0,0,0,0,0,0,0,0,0,0,0,0,0,0,0,0,0,0,0,0,0,0,0,0,0,0,0,0,0,0,0,0,0,0,0,0,0,0,0,0,0,0,0,0,0,0,0,0,0,0,0,0,0,0,0,0,0,0,0,0,0,0,0,0,0,0,0,0,0,0,0,0,0,0,0,0,0,0,0,0,0,0,0,0,0,0,0,0,0,0,0,0,0,0,0,0,0,0,0,0,0,0,0,0,0,0,0,0,0,0,0,0,0,0,0,0,0,0,0,0,0,0,0,0,0,0,0,0,0,0,0,0,0,0,0,0,0,0,0,0,0,0,0,0,0,0,0,0,0,0,0,0,0,0,0,0,0,0,0,0,0,0,0,0,0,0,0,0,0,0,0,0,0,0,0,0,0,0,0,0,0,0,0,0,0,0,0,0,0,0,0,0,0,0,0,0,0,0,0,0,0,0,0,0]
["Jefferson","0000967","38820",1006,413,41,24,16,35,20,28,29,42,19,47,64,26,10,2,6,4,41089,19656800,413,13,3,0,0,0,0,0,4,3,3,0,0,0,0,0,0,0,51,0,0,3,5,4,2,7,17,3,2,6,0,2,0,0,0,77,7,0,2,17,4,0,6,3,0,10,14,9,2,0,3,0,103,4,6,4,5,4,2,6,7,2,19,26,11,2,2,3,0,76,9,0,3,2,2,16,4,5,4,14,11,0,4,0,0,2,51,10,6,0,0,6,6,0,7,5,0,5,4,0,0,0,2,42,8,12,4,6,0,2,2,0,2,2,2,2,0,0,0,0,41089,39688,40938,42083,57188,41000,32188,15625,413,332,81,319,94,71,342,99,314,127,286,11,402,17,396,70,343,53,360,15259500,13872900,1386500,801500,1660500,105100,21300,1271000,299,9,9,14,26,20,23,27,32,17,37,44,19,10,2,6,4,42067,15832900,114,32,15,7,11,2,11,4,7,0,6,12,7,0,0,0,0,21500,19556]
["Kilkenny","0000973","39940",0,0,0,0,0,0,0,0,0,0,0,0,0,0,0,0,0,0,0,0,0,0,0,0,0,0,0,0,0,0,0,0,0,0,0,0,0,0,0,0,0,0,0,0,0,0,0,0,0,0,0,0,0,0,0,0,0,0,0,0,0,0,0,0,0,0,0,0,0,0,0,0,0,0,0,0,0,0,0,0,0,0,0,0,0,0,0,0,0,0,0,0,0,0,0,0,0,0,0,0,0,0,0,0,0,0,0,0,0,0,0,0,0,0,0,0,0,0,0,0,0,0,0,0,0,0,0,0,0,0,0,0,0,0,0,0,0,0,0,0,0,0,0,0,0,0,0,0,0,0,0,0,0,0,0,0,0,0,0,0,0,0,0,0,0,0,0,0,0,0,0,0,0,0,0,0,0,0,0,0,0,0,0,0,0,0,0,0,0,0,0,0,0,0,0,0,0,0,0,0,0,0,0,0,0,0,0,0,0,0,0,0,0]
["Lancaster","0000978","40420",3280,1283,117,126,54,85,100,87,62,164,40,99,108,123,81,27,3,7,40305,60887100,1283,20,9,11,0,0,0,0,0,0,0,0,0,0,0,0,0,0,251,5,28,11,22,17,15,9,39,19,24,23,23,10,6,0,0,299,5,15,0,15,30,30,26,54,0,23,53,41,7,0,0,0,264,6,11,7,9,15,15,12,16,15,31,29,32,54,9,3,0,151,14,12,6,19,4,13,8,12,0,21,3,27,0,12,0,0,157,30,24,15,15,28,12,7,21,0,0,0,0,5,0,0,0,141,48,25,15,5,6,2,0,22,6,0,0,0,5,0,0,7,40305,10227,43102,43365,57500,37344,21583,13958,1283,993,290,969,314,211,1072,408,875,398,885,38,1245,54,1229,222,1061,279,1004,46987000,41758100,5228900,5867500,4372600,120300,78000,2112600,866,27,52,26,48,118,35,39,124,38,77,94,106,57,18,0,7,43333,46523900,417,90,74,28,37,10,52,12,46,6,4,12,17,17,9,3,0,21289,19905]
["Low and Burbank's Grant","0000991","43620",0,0,0,0,0,0,0,0,0,0,0,0,0,0,0,0,0,0,0,0,0,0,0,0,0,0,0,0,0,0,0,0,0,0,0,0,0,0,0,0,0,0,0,0,0,0,0,0,0,0,0,0,0,0,0,0,0,0,0,0,0,0,0,0,0,0,0,0,0,0,0,0,0,0,0,0,0,0,0,0,0,0,0,0,0,0,0,0,0,0,0,0,0,0,0,0,0,0,0,0,0,0,0,0,0,0,0,0,0,0,0,0,0,0,0,0,0,0,0,0,0,0,0,0,0,0,0,0,0,0,0,0,0,0,0,0,0,0,0,0,0,0,0,0,0,0,0,0,0,0,0,0,0,0,0,0,0,0,0,0,0,0,0,0,0,0,0,0,0,0,0,0,0,0,0,0,0,0,0,0,0,0,0,0,0,0,0,0,0,0,0,0,0,0,0,0,0,0,0,0,0,0,0,0,0,0,0,0,0,0,0,0,0]
["Martin's Location","0000996","46020",0,0,0,0,0,0,0,0,0,0,0,0,0,0,0,0,0,0,0,0,0,0,0,0,0,0,0,0,0,0,0,0,0,0,0,0,0,0,0,0,0,0,0,0,0,0,0,0,0,0,0,0,0,0,0,0,0,0,0,0,0,0,0,0,0,0,0,0,0,0,0,0,0,0,0,0,0,0,0,0,0,0,0,0,0,0,0,0,0,0,0,0,0,0,0,0,0,0,0,0,0,0,0,0,0,0,0,0,0,0,0,0,0,0,0,0,0,0,0,0,0,0,0,0,0,0,0,0,0,0,0,0,0,0,0,0,0,0,0,0,0,0,0,0,0,0,0,0,0,0,0,0,0,0,0,0,0,0,0,0,0,0,0,0,0,0,0,0,0,0,0,0,0,0,0,0,0,0,0,0,0,0,0,0,0,0,0,0,0,0,0,0,0,0,0,0,0,0,0,0,0,0,0,0,0,0,0,0,0,0,0,0,0]
["Milan","0001001","47860",1331,537,21,32,34,42,47,37,47,32,45,70,69,31,16,6,3,5,40966,26920900,537,6,0,0,0,0,6,0,0,0,0,0,0,0,0,0,0,0,70,0,0,0,6,17,5,10,0,10,10,7,2,3,0,0,0,133,5,6,2,5,6,0,19,14,10,22,29,13,2,0,0,0,156,5,0,9,0,0,10,13,10,15,28,26,16,11,5,3,5,68,0,3,8,9,8,12,3,6,8,5,5,0,0,1,0,0,56,3,7,6,14,6,10,2,2,2,2,2,0,0,0,0,0,48,8,16,9,8,4,0,0,0,0,3,0,0,0,0,0,0,40966,26875,38750,49844,53750,32500,24000,15000,537,445,92,442,95,36,501,84,453,136,401,11,526,14,523,74,463,82,455,22373500,21667400,706100,1414200,1606900,51600,31700,867100,395,8,18,19,28,35,27,32,22,26,69,55,29,16,3,3,5,47361,22117000,142,13,20,21,14,12,10,15,10,9,3,12,0,0,3,0,0,25938,19818]
["Millsfield","0001006","48260",22,3,0,0,0,0,0,0,0,0,0,2,0,1,0,0,0,0,59375,193800,3,0,0,0,0,0,0,0,0,0,0,0,0,0,0,0,0,0,0,0,0,0,0,0,0,0,0,0,0,0,0,0,0,0,0,2,0,0,0,0,0,0,0,0,0,2,0,0,0,0,0,0,0,0,0,0,0,0,0,0,0,0,0,0,0,0,0,0,0,0,0,0,0,0,0,0,0,0,0,0,0,0,0,0,0,0,0,0,0,0,0,0,0,0,0,0,0,0,0,0,0,0,0,1,0,0,0,0,0,0,0,0,0,0,0,1,0,0,0,0,59375,0,0,58750,0,0,0,75487,3,3,0,3,0,0,3,1,2,1,2,0,3,0,3,1,2,0,3,166200,166200,0,0,2600,0,0,25000,3,0,0,0,0,0,0,0,0,0,2,0,1,0,0,0,0,59375,193800,0,0,0,0,0,0,0,0,0,0,0,0,0,0,0,0,0,0,13063]
["Northumberland","0001011","56100",2438,1002,100,119,96,67,92,82,87,62,59,100,77,37,9,11,2,2,31570,36462300,1002,44,0,10,3,3,11,8,4,2,0,2,0,1,0,0,0,0,134,1,6,8,7,18,18,17,7,8,27,10,5,2,0,0,0,203,7,10,10,11,16,17,25,17,28,21,20,13,2,2,2,2,199,8,9,10,1,14,17,21,19,12,40,29,11,2,6,0,0,151,35,13,13,14,11,4,12,7,10,8,16,5,3,0,0,0,137,18,35,29,19,17,9,6,4,0,0,0,0,0,0,0,0,134,31,36,23,12,5,9,2,6,1,2,2,2,0,3,0,0,31570,27917,37250,41719,45208,25156,17750,15000,1002,740,262,700,302,117,885,163,839,332,670,46,956,51,951,196,806,156,846,28853800,26651000,2202800,928100,3670400,311300,128300,1819900,680,41,65,63,51,63,63,54,41,47,78,67,34,7,6,0,0,34444,26031500,322,77,66,36,20,21,19,31,18,8,12,7,5,0,2,0,0,17500,15101]
["Odell","0001023","57860",5,0,0,0,0,0,0,0,0,0,0,0,0,0,0,0,0,0,0,0,0,0,0,0,0,0,0,0,0,0,0,0,0,0,0,0,0,0,0,0,0,0,0,0,0,0,0,0,0,0,0,0,0,0,0,0,0,0,0,0,0,0,0,0,0,0,0,0,0,0,0,0,0,0,0,0,0,0,0,0,0,0,0,0,0,0,0,0,0,0,0,0,0,0,0,0,0,0,0,0,0,0,0,0,0,0,0,0,0,0,0,0,0,0,0,0,0,0,0,0,0,0,0,0,0,0,0,0,0,0,0,0,0,0,0,0,0,0,0,0,0,0,0,0,0,0,0,0,0,0,0,0,0,0,0,0,0,0,0,0,0,0,0,0,0,0,0,0,0,0,0,0,0,0,0,0,0,0,0,0,0,0,0,0,0,0,0,0,0,0,0,0,0,0,0,0,0,0,0,0,0,0,0,0,0,0,0,0,0,0,0,0,0]
["Pinkham's Grant","0001028","61620",0,0,0,0,0,0,0,0,0,0,0,0,0,0,0,0,0,0,0,0,0,0,0,0,0,0,0,0,0,0,0,0,0,0,0,0,0,0,0,0,0,0,0,0,0,0,0,0,0,0,0,0,0,0,0,0,0,0,0,0,0,0,0,0,0,0,0,0,0,0,0,0,0,0,0,0,0,0,0,0,0,0,0,0,0,0,0,0,0,0,0,0,0,0,0,0,0,0,0,0,0,0,0,0,0,0,0,0,0,0,0,0,0,0,0,0,0,0,0,0,0,0,0,0,0,0,0,0,0,0,0,0,0,0,0,0,0,0,0,0,0,0,0,0,0,0,0,0,0,0,0,0,0,0,0,0,0,0,0,0,0,0,0,0,0,0,0,0,0,0,0,0,0,0,0,0,0,0,0,0,0,0,0,0,0,0,0,0,0,0,0,0,0,0,0,0,0,0,0,0,0,0,0,0,0,0,0,0,0,0,0,0,0]
["Pittsburg","0001033","61780",867,383,38,20,37,24,26,25,31,25,42,32,50,20,8,3,2,0,38516,15662400,383,4,0,0,0,0,0,0,4,0,0,0,0,0,0,0,0,0,44,0,0,5,4,2,5,2,0,7,0,19,0,0,0,0,0,59,2,0,0,0,4,6,11,8,12,7,4,5,0,0,0,0,92,8,3,2,7,11,0,7,7,6,10,12,11,3,3,2,0,73,10,4,5,3,6,3,3,8,3,14,5,4,5,0,0,0,77,11,8,17,10,2,8,4,0,9,1,7,0,0,0,0,0,34,7,5,8,0,1,3,0,2,5,0,3,0,0,0,0,0,38516,36250,48500,44063,46250,40781,20893,18750,383,287,96,275,108,58,325,90,293,122,261,14,369,12,371,75,308,56,327,12412300,10960900,1451400,529100,1332000,100800,23400,965000,260,8,8,16,25,18,20,21,23,28,19,44,20,5,3,2,0,42500,12076400,123,32,14,21,8,6,5,10,2,8,12,2,0,3,0,0,0,19083,17703]
["Randolph","0001038","63860",339,137,2,11,4,5,12,8,13,5,8,14,15,18,14,1,2,5,50139,8410600,137,6,0,2,0,0,0,0,0,0,2,0,0,2,0,0,0,0,4,0,0,0,0,0,0,0,0,3,0,1,0,0,0,0,0,35,0,1,2,1,1,0,5,0,0,14,1,4,1,0,2,3,44,0,0,0,4,6,5,0,3,0,0,11,7,8,0,0,0,13,2,2,0,0,0,0,3,0,3,0,2,0,0,1,0,0,15,0,0,0,0,5,0,5,0,0,0,0,3,2,0,0,0,20,0,6,2,0,0,3,0,2,0,0,0,2,3,0,0,2,50139,48750,49167,52083,65833,37083,37917,31667,137,107,30,97,40,32,105,81,56,44,93,4,133,0,137,32,105,28,109,5944400,4640800,1303600,1047700,544700,26000,0,604400,100,2,1,2,5,11,3,11,5,5,11,9,17,13,1,2,2,52083,6410200,37,0,10,2,0,1,5,2,0,3,3,6,1,1,0,0,3,38125,25092]
["Sargent's Purchase","0001043","67860",0,0,0,0,0,0,0,0,0,0,0,0,0,0,0,0,0,0,0,0,0,0,0,0,0,0,0,0,0,0,0,0,0,0,0,0,0,0,0,0,0,0,0,0,0,0,0,0,0,0,0,0,0,0,0,0,0,0,0,0,0,0,0,0,0,0,0,0,0,0,0,0,0,0,0,0,0,0,0,0,0,0,0,0,0,0,0,0,0,0,0,0,0,0,0,0,0,0,0,0,0,0,0,0,0,0,0,0,0,0,0,0,0,0,0,0,0,0,0,0,0,0,0,0,0,0,0,0,0,0,0,0,0,0,0,0,0,0,0,0,0,0,0,0,0,0,0,0,0,0,0,0,0,0,0,0,0,0,0,0,0,0,0,0,0,0,0,0,0,0,0,0,0,0,0,0,0,0,0,0,0,0,0,0,0,0,0,0,0,0,0,0,0,0,0,0,0,0,0,0,0,0,0,0,0,0,0,0,0,0,0,0,0]
["Second College Grant","0001048","68500",0,0,0,0,0,0,0,0,0,0,0,0,0,0,0,0,0,0,0,0,0,0,0,0,0,0,0,0,0,0,0,0,0,0,0,0,0,0,0,0,0,0,0,0,0,0,0,0,0,0,0,0,0,0,0,0,0,0,0,0,0,0,0,0,0,0,0,0,0,0,0,0,0,0,0,0,0,0,0,0,0,0,0,0,0,0,0,0,0,0,0,0,0,0,0,0,0,0,0,0,0,0,0,0,0,0,0,0,0,0,0,0,0,0,0,0,0,0,0,0,0,0,0,0,0,0,0,0,0,0,0,0,0,0,0,0,0,0,0,0,0,0,0,0,0,0,0,0,0,0,0,0,0,0,0,0,0,0,0,0,0,0,0,0,0,0,0,0,0,0,0,0,0,0,0,0,0,0,0,0,0,0,0,0,0,0,0,0,0,0,0,0,0,0,0,0,0,0,0,0,0,0,0,0,0,0,0,0,0,0,0,0,0]
["Shelburne","0001053","68980",379,154,5,5,17,5,10,12,20,4,8,9,22,17,4,5,6,5,44375,9468100,154,8,0,0,8,0,0,0,0,0,0,0,0,0,0,0,0,0,5,0,0,0,0,2,0,0,0,0,0,0,0,0,3,0,0,32,0,0,0,0,0,3,4,0,3,0,11,5,2,0,4,0,45,0,0,0,0,0,9,7,4,2,9,6,2,2,2,0,2,40,0,0,3,5,6,0,7,0,3,0,3,10,0,0,0,3,17,3,3,3,0,2,0,2,0,0,0,2,0,0,0,2,0,7,2,2,3,0,0,0,0,0,0,0,0,0,0,0,0,0,44375,17000,125651,65714,50625,39167,17083,11875,154,128,26,124,30,13,141,38,116,38,116,5,149,2,152,19,135,9,145,8234200,7607000,627200,364400,427800,28100,900,301600,105,3,3,3,5,2,6,13,2,5,11,17,15,4,5,6,5,59375,7904300,49,2,2,14,0,8,6,7,2,3,0,5,0,0,0,0,0,29375,24899]
["Stark","0001058","73060",516,211,9,16,9,19,19,25,20,14,18,18,29,11,0,0,0,4,37946,9328400,211,2,0,0,0,0,0,0,0,2,0,0,0,0,0,0,0,0,25,0,0,0,2,9,6,3,0,4,0,0,1,0,0,0,0,48,0,2,2,4,4,4,7,2,0,5,11,5,0,0,0,2,65,0,0,2,2,0,9,8,4,11,11,12,4,0,0,0,2,31,0,3,3,3,3,6,0,3,3,0,6,1,0,0,0,0,25,0,11,0,6,3,0,0,3,0,2,0,0,0,0,0,0,15,9,0,2,2,0,0,2,0,0,0,0,0,0,0,0,0,37946,41250,33125,41250,47344,31458,21250,9464,211,176,35,170,41,29,182,53,158,66,145,4,207,14,197,59,152,31,180,7575000,6991000,584000,194200,683300,20300,32100,646000,157,2,11,3,19,9,18,16,14,11,15,25,10,0,0,0,4,40089,7579500,54,9,5,6,0,8,7,6,2,7,3,0,1,0,0,0,0,27188,17168]
["Stewartstown","0001063","73380",1012,368,39,53,18,30,37,39,16,29,28,31,15,16,9,0,3,5,30700,14114200,368,20,6,6,0,0,0,0,0,6,0,0,2,0,0,0,0,0,68,2,7,0,3,7,9,6,7,7,9,8,0,3,0,0,0,79,0,10,4,6,7,11,2,8,3,11,5,7,4,0,1,0,80,13,9,2,5,8,3,7,4,8,5,0,9,0,0,2,5,37,3,0,0,7,4,11,0,2,4,4,0,0,2,0,0,0,37,9,8,0,6,2,5,1,2,2,2,0,0,0,0,0,0,47,6,13,12,3,9,0,0,0,4,0,0,0,0,0,0,0,30700,11667,40000,36875,33750,31406,21875,17656,368,294,74,270,98,70,298,66,302,102,266,31,337,13,355,31,337,41,327,12111800,10752400,1359400,94900,1098000,263500,49300,282400,245,14,17,13,19,25,35,16,24,24,25,10,9,9,0,3,2,34911,10341600,123,30,32,5,13,12,4,1,5,3,4,4,7,0,0,0,3,14917,17231]
["Stratford","0001068","74180",942,393,52,63,27,32,27,24,36,30,16,27,41,16,2,0,0,0,28594,12925100,393,21,2,2,3,6,1,3,0,0,0,1,3,0,0,0,0,0,37,2,4,0,4,0,0,7,4,2,7,5,2,0,0,0,0,76,6,2,4,4,4,7,9,10,7,3,11,7,2,0,0,0,82,15,15,0,7,6,2,7,8,0,9,6,7,0,0,0,0,83,11,20,0,4,10,7,5,6,7,4,9,0,0,0,0,0,57,5,12,13,3,6,3,5,2,0,3,5,0,0,0,0,0,37,11,8,7,4,0,2,3,0,0,0,2,0,0,0,0,0,28594,22188,43438,40833,28333,27321,19531,12344,393,286,107,264,129,54,339,68,325,151,242,34,359,50,343,50,343,74,319,9862000,8982800,879200,307100,1514700,163500,148700,559600,233,9,32,14,27,16,26,22,19,5,21,28,12,2,0,0,0,33295,8615400,160,43,37,10,14,13,0,10,6,9,5,9,4,0,0,0,0,15000,13783]
["Success","0001073","74500",2,0,0,0,0,0,0,0,0,0,0,0,0,0,0,0,0,0,0,0,0,0,0,0,0,0,0,0,0,0,0,0,0,0,0,0,0,0,0,0,0,0,0,0,0,0,0,0,0,0,0,0,0,0,0,0,0,0,0,0,0,0,0,0,0,0,0,0,0,0,0,0,0,0,0,0,0,0,0,0,0,0,0,0,0,0,0,0,0,0,0,0,0,0,0,0,0,0,0,0,0,0,0,0,0,0,0,0,0,0,0,0,0,0,0,0,0,0,0,0,0,0,0,0,0,0,0,0,0,0,0,0,0,0,0,0,0,0,0,0,0,0,0,0,0,0,0,0,0,0,0,0,0,0,0,0,0,0,0,0,0,0,0,0,0,0,0,0,0,0,0,0,0,0,0,0,0,0,0,0,0,0,0,0,0,0,0,0,0,0,0,0,0,0,0,0,0,0,0,0,0,0,0,0,0,0,0,0,0,0,0,0,0]
["Thompson and Meserves Purchase","0001078","76580",0,0,0,0,0,0,0,0,0,0,0,0,0,0,0,0,0,0,0,0,0,0,0,0,0,0,0,0,0,0,0,0,0,0,0,0,0,0,0,0,0,0,0,0,0,0,0,0,0,0,0,0,0,0,0,0,0,0,0,0,0,0,0,0,0,0,0,0,0,0,0,0,0,0,0,0,0,0,0,0,0,0,0,0,0,0,0,0,0,0,0,0,0,0,0,0,0,0,0,0,0,0,0,0,0,0,0,0,0,0,0,0,0,0,0,0,0,0,0,0,0,0,0,0,0,0,0,0,0,0,0,0,0,0,0,0,0,0,0,0,0,0,0,0,0,0,0,0,0,0,0,0,0,0,0,0,0,0,0,0,0,0,0,0,0,0,0,0,0,0,0,0,0,0,0,0,0,0,0,0,0,0,0,0,0,0,0,0,0,0,0,0,0,0,0,0,0,0,0,0,0,0,0,0,0,0,0,0,0,0,0,0,0]
["Wentworth's Location","0001083","80740",44,22,0,0,2,3,4,0,4,0,3,0,0,2,0,0,1,3,37500,1804600,22,0,0,0,0,0,0,0,0,0,0,0,0,0,0,0,0,0,3,0,0,0,0,0,0,0,0,0,0,0,0,0,0,0,3,3,0,0,0,0,0,0,0,0,3,0,0,0,0,0,0,0,8,0,0,0,3,0,0,2,0,0,0,0,2,0,0,1,0,0,0,0,0,0,0,0,0,0,0,0,0,0,0,0,0,0,8,0,0,2,0,4,0,2,0,0,0,0,0,0,0,0,0,0,0,0,0,0,0,0,0,0,0,0,0,0,0,0,0,0,37500,0,200001,46250,36250,0,28750,0,22,15,7,15,7,5,17,2,20,8,14,3,19,0,22,7,15,3,19,1536100,1533800,2300,26000,131700,23200,0,79500,14,0,0,2,3,4,0,2,0,0,0,0,2,0,0,1,0,28750,654700,8,0,0,0,0,0,0,2,0,3,0,0,0,0,0,0,3,46667,37237]
["Whitefield","0001088","84420",2038,814,85,61,70,77,67,50,65,51,45,68,84,58,21,2,4,6,34583,33669700,814,40,4,0,9,2,9,0,0,3,2,2,6,0,3,0,0,0,99,4,1,6,6,14,18,13,8,10,12,3,0,2,0,2,0,174,13,2,11,15,6,11,14,16,12,24,31,12,4,1,0,2,185,8,14,2,12,8,9,19,14,10,21,31,27,7,1,0,2,100,7,10,9,4,15,6,11,3,4,4,9,12,4,0,0,2,120,26,11,18,26,9,4,8,2,7,0,2,5,0,0,2,0,96,23,23,15,12,6,2,0,5,0,5,2,2,1,0,0,0,34583,28000,35250,44722,48542,34375,21250,15556,814,603,211,567,247,102,712,161,653,257,557,39,775,43,771,145,669,122,692,26841100,23645500,3195600,1265800,2735000,248400,149700,1979400,540,20,27,47,40,43,38,44,40,37,60,72,48,14,2,2,6,41528,25812000,274,69,36,31,36,22,7,22,13,8,4,15,6,3,0,2,0,20114,17070]
[]
[]
[]
[]
["Census 2000 SummaryFile3 Sample Data  -  SF3TownQry2bPovertyChar"]
[]
["TOWN_NAME","LOGRECNO","COUSUB","TotalPop","P52Households1","P82PerCapitaInc","P87PopForPovStatus","P87PopWIncBelowPovStatus","P87PopUnder5yrBelowPoverty","P87Pop5yrBelowPoverty","P87Pop5to11yrBelowPoverty","P87Pop12to17yrBelowPoverty","P87Pop18to64yrBelowPoverty","P87Pop65to74yrBelowPoverty","P87PopOver75yrBelowPoverty","P87PopWIncAbovePovStatus","P87PopUnder5yrAbovePoverty","P87Pop5yrAbovePoverty","P87Pop5to11yrAbovePoverty","P87Pop12to17yrAbovePoverty","P87Pop18to64yrAbovePoverty","P87Pop65to74yrAbovePoverty","P87PopOver75yrAbovePoverty","P90Families","P90FamWIncBelowPov","P90MarCupFamWIncBelowPov","P90MCFamWRltdChld<18WIncBelowPov","P90MCFamWRltdChld<5WIncBelowPov","P90MaleHhlrWIncBelowPov","P90MaleHhlrWRltdChld<18yrWIncBelowPov","P90MaleHhlrWRltdChld<5yrWIncBelowPov","P90FemaleHhlrWIncBelowPov","P90FemaleHhlrWRltdChld<18yWIncBelowPov","P90FemaleHhlrWRltdChld<5yWIncBelowPov","P90FamWIncAbovePov","P90MarCupFamWIncAbovePov","P90MCFamWRltdChld<18WIncAbovePov","P90MCFamWRltdChld<5WIncAbovePov","P90MaleHhlrWIncAbovePov","P90MaleHhlrWRltdChld<18yrWIncAbovePov","P90MaleHhlrWRltdChld<5yrWIncAbovePov","P90FemaleHhlrWIncAbovePov","P90FemaleHhlrWRltdChld<18yWIncAbovePov","P90FemaleHhlrWRltdChld<5yWIncAbovePov","P92Households","P92HHwIncBelowPov","P92FamHHwIncBelowPov","P92MCFamHHwIncBelowPov","P92MaleFamHHwIncBelowPov","P92FemaleFamHHwIncBelowPov","P92NonFamHHwIncBelowPov","P92NonFamMaleHHwIncBelowPov","P92NonFamFemaleHHwIncBelowPov","P92HHwIncAbovePov","P92FamHHwIncAbovePov","P92MCFamHHwIncAbovePov","P92MaleFamHHwIncAbovePov","P92FemaleFamHHwIncAbovePov","P92NonFamHHwIncAbovePov","P92NonFamMaleHHwIncAbovePov","P92NonFamFemaleHHwIncAbovePov"]
["Atkinson and Gilmanton Grant","0000818","02420",12,0,0,0,0,0,0,0,0,0,0,0,0,0,0,0,0,0,0,0,0,0,0,0,0,0,0,0,0,0,0,0,0,0,0,0,0,0,0,0,0,0,0,0,0,0,0,0,0,0,0,0,0,0,0,0,0,0]
["Bean's Grant","0000823","04100",0,0,0,0,0,0,0,0,0,0,0,0,0,0,0,0,0,0,0,0,0,0,0,0,0,0,0,0,0,0,0,0,0,0,0,0,0,0,0,0,0,0,0,0,0,0,0,0,0,0,0,0,0,0,0,0,0,0]
["Bean's Purchase","0000828","04260",4,0,0,0,0,0,0,0,0,0,0,0,0,0,0,0,0,0,0,0,0,0,0,0,0,0,0,0,0,0,0,0,0,0,0,0,0,0,0,0,0,0,0,0,0,0,0,0,0,0,0,0,0,0,0,0,0,0]
["Berlin","0000833","05140",10331,4555,15780,10093,1249,116,19,84,93,668,119,150,8844,402,117,621,692,5112,1025,875,2919,265,88,35,10,54,41,4,123,108,48,2654,2073,748,133,216,138,31,365,165,31,4555,673,265,88,54,123,408,123,285,3882,2654,2073,216,365,1228,527,701]
["Cambridge","0000864","08420",10,0,0,0,0,0,0,0,0,0,0,0,0,0,0,0,0,0,0,0,0,0,0,0,0,0,0,0,0,0,0,0,0,0,0,0,0,0,0,0,0,0,0,0,0,0,0,0,0,0,0,0,0,0,0,0,0,0]
["Carroll","0000869","10100",663,286,18734,667,46,0,1,3,2,27,7,6,621,39,2,32,46,410,71,21,192,6,2,0,0,0,0,0,4,4,0,186,147,44,11,24,12,3,15,13,6,286,21,6,2,0,4,15,6,9,265,186,147,24,15,79,59,20]
["Chandler's Purchase","0000874","11220",0,0,0,0,0,0,0,0,0,0,0,0,0,0,0,0,0,0,0,0,0,0,0,0,0,0,0,0,0,0,0,0,0,0,0,0,0,0,0,0,0,0,0,0,0,0,0,0,0,0,0,0,0,0,0,0,0,0]
["Clarksville","0000879","13220",294,129,18090,301,11,0,0,0,0,7,0,4,290,14,5,12,26,191,34,8,92,5,5,0,0,0,0,0,0,0,0,87,79,31,2,8,8,0,0,0,0,129,7,5,5,0,0,2,2,0,122,87,79,8,0,35,33,2]
["Colebrook","0000884","13780",2321,1039,18390,2301,277,19,5,26,28,122,51,26,2024,88,23,124,179,1306,172,132,611,40,8,0,0,0,0,0,32,32,7,571,472,184,23,51,31,12,48,30,7,1039,132,40,8,0,32,92,35,57,907,571,472,51,48,336,152,184]
["Columbia","0000890","13940",750,309,16859,730,53,0,0,7,8,26,4,8,677,30,4,71,46,419,69,38,226,9,3,0,0,0,0,0,6,6,0,217,178,59,2,17,12,6,22,20,3,309,27,9,3,0,6,18,5,13,282,217,178,17,22,65,38,27]
["Crawford's Purchase","0000895","16100",0,0,0,0,0,0,0,0,0,0,0,0,0,0,0,0,0,0,0,0,0,0,0,0,0,0,0,0,0,0,0,0,0,0,0,0,0,0,0,0,0,0,0,0,0,0,0,0,0,0,0,0,0,0,0,0,0,0]
["Cutt's Grant","0000900","16660",0,0,0,0,0,0,0,0,0,0,0,0,0,0,0,0,0,0,0,0,0,0,0,0,0,0,0,0,0,0,0,0,0,0,0,0,0,0,0,0,0,0,0,0,0,0,0,0,0,0,0,0,0,0,0,0,0,0]
["Dalton","0000905","16820",927,371,16234,947,53,2,6,8,0,22,5,10,894,50,7,92,90,531,80,44,258,7,2,0,0,0,0,0,5,5,0,251,227,106,8,12,9,2,12,6,3,371,27,7,2,0,5,20,8,12,344,251,227,12,12,93,40,53]
["Dix's Grant","0000910","18340",0,0,0,0,0,0,0,0,0,0,0,0,0,0,0,0,0,0,0,0,0,0,0,0,0,0,0,0,0,0,0,0,0,0,0,0,0,0,0,0,0,0,0,0,0,0,0,0,0,0,0,0,0,0,0,0,0,0]
["Dixville","0000915","18420",75,0,4667,0,0,0,0,0,0,0,0,0,0,0,0,0,0,0,0,0,0,0,0,0,0,0,0,0,0,0,0,0,0,0,0,0,0,0,0,0,0,0,0,0,0,0,0,0,0,0,0,0,0,0,0,0,0,0]
["Dummer","0000920","19300",309,142,16754,345,23,0,0,2,0,17,2,2,322,22,0,38,23,203,18,18,109,5,3,0,0,0,0,0,2,2,0,104,84,29,4,8,5,3,12,6,1,142,16,5,3,0,2,11,4,7,126,104,84,8,12,22,10,12]
["Errol","0000925","25140",298,133,22440,314,41,5,0,2,8,16,8,2,273,5,0,23,19,170,21,35,92,9,5,3,0,0,0,0,4,4,2,83,76,23,2,3,1,0,4,2,0,133,17,9,5,0,4,8,2,6,116,83,76,3,4,33,25,8]
["Erving's Location","0000930","25180",1,0,0,0,0,0,0,0,0,0,0,0,0,0,0,0,0,0,0,0,0,0,0,0,0,0,0,0,0,0,0,0,0,0,0,0,0,0,0,0,0,0,0,0,0,0,0,0,0,0,0,0,0,0,0,0,0,0]
["Gorham","0000935","30260",2895,1293,16649,2896,202,0,0,13,28,98,27,36,2694,114,35,217,217,1585,257,269,801,31,13,6,0,6,6,0,12,6,0,770,645,286,33,54,18,6,71,37,0,1293,117,31,13,6,12,86,28,58,1176,770,645,54,71,406,218,188]
["Greens Grant","0000957","31780",0,0,0,0,0,0,0,0,0,0,0,0,0,0,0,0,0,0,0,0,0,0,0,0,0,0,0,0,0,0,0,0,0,0,0,0,0,0,0,0,0,0,0,0,0,0,0,0,0,0,0,0,0,0,0,0,0,0]
["Hadley's Purchase","0000962","32420",0,0,0,0,0,0,0,0,0,0,0,0,0,0,0,0,0,0,0,0,0,0,0,0,0,0,0,0,0,0,0,0,0,0,0,0,0,0,0,0,0,0,0,0,0,0,0,0,0,0,0,0,0,0,0,0,0,0]
["Jefferson","0000967","38820",1006,413,19556,987,81,8,6,7,4,42,8,6,906,36,13,70,64,595,65,63,299,14,2,2,0,5,5,0,7,5,0,285,255,95,15,8,2,0,22,14,0,413,42,14,2,5,7,28,14,14,371,285,255,8,22,86,53,33]
["Kilkenny","0000973","39940",0,0,0,0,0,0,0,0,0,0,0,0,0,0,0,0,0,0,0,0,0,0,0,0,0,0,0,0,0,0,0,0,0,0,0,0,0,0,0,0,0,0,0,0,0,0,0,0,0,0,0,0,0,0,0,0,0,0]
["Lancaster","0000978","40420",3280,1283,19905,3128,303,43,5,29,27,128,38,33,2825,159,23,233,257,1745,202,206,866,59,25,12,0,0,0,0,34,34,20,807,649,289,40,60,52,12,98,69,5,1283,145,59,25,0,34,86,17,69,1138,807,649,60,98,331,185,146]
["Low and Burbank's Grant","0000991","43620",0,0,0,0,0,0,0,0,0,0,0,0,0,0,0,0,0,0,0,0,0,0,0,0,0,0,0,0,0,0,0,0,0,0,0,0,0,0,0,0,0,0,0,0,0,0,0,0,0,0,0,0,0,0,0,0,0,0]
["Martin's Location","0000996","46020",0,0,0,0,0,0,0,0,0,0,0,0,0,0,0,0,0,0,0,0,0,0,0,0,0,0,0,0,0,0,0,0,0,0,0,0,0,0,0,0,0,0,0,0,0,0,0,0,0,0,0,0,0,0,0,0,0,0]
["Milan","0001001","47860",1331,537,19818,1310,75,5,0,9,9,30,8,14,1235,52,11,121,120,794,81,56,395,12,10,7,0,0,0,0,2,2,0,383,339,134,22,23,13,2,21,19,3,537,30,12,10,0,2,18,5,13,507,383,339,23,21,124,80,44]
["Millsfield","0001006","48260",22,3,13063,19,0,0,0,0,0,0,0,0,19,3,0,0,0,12,0,4,3,0,0,0,0,0,0,0,0,0,0,3,3,1,1,0,0,0,0,0,0,3,0,0,0,0,0,0,0,0,3,3,3,0,0,0,0,0]
["Northumberland","0001011","56100",2438,1002,15101,2394,274,21,7,24,30,154,16,22,2120,81,33,175,217,1274,186,154,680,64,32,13,0,5,5,1,27,25,9,616,478,194,16,63,53,19,75,43,5,1002,114,64,32,5,27,50,10,40,888,616,478,63,75,272,138,134]
["Odell","0001023","57860",5,0,0,0,0,0,0,0,0,0,0,0,0,0,0,0,0,0,0,0,0,0,0,0,0,0,0,0,0,0,0,0,0,0,0,0,0,0,0,0,0,0,0,0,0,0,0,0,0,0,0,0,0,0,0,0,0,0]
["Pinkham's Grant","0001028","61620",0,0,0,0,0,0,0,0,0,0,0,0,0,0,0,0,0,0,0,0,0,0,0,0,0,0,0,0,0,0,0,0,0,0,0,0,0,0,0,0,0,0,0,0,0,0,0,0,0,0,0,0,0,0,0,0,0,0]
["Pittsburg","0001033","61780",867,383,17703,866,64,0,2,3,8,33,15,3,802,38,4,45,66,511,100,38,260,13,11,3,0,0,0,0,2,2,0,247,211,71,7,17,12,2,19,8,0,383,35,13,11,0,2,22,7,15,348,247,211,17,19,101,56,45]
["Randolph","0001038","63860",339,137,25092,336,6,0,0,0,0,6,0,0,330,10,3,22,40,200,20,35,100,2,2,0,0,0,0,0,0,0,0,98,96,42,5,0,0,0,2,2,0,137,2,2,2,0,0,0,0,0,135,98,96,0,2,37,22,15]
["Sargent's Purchase","0001043","67860",0,0,0,0,0,0,0,0,0,0,0,0,0,0,0,0,0,0,0,0,0,0,0,0,0,0,0,0,0,0,0,0,0,0,0,0,0,0,0,0,0,0,0,0,0,0,0,0,0,0,0,0,0,0,0,0,0,0]
["Second College Grant","0001048","68500",0,0,0,0,0,0,0,0,0,0,0,0,0,0,0,0,0,0,0,0,0,0,0,0,0,0,0,0,0,0,0,0,0,0,0,0,0,0,0,0,0,0,0,0,0,0,0,0,0,0,0,0,0,0,0,0,0,0]
["Shelburne","0001053","68980",379,154,24899,378,14,0,0,0,2,7,3,2,364,21,3,20,46,242,27,5,105,3,3,0,0,0,0,0,0,0,0,102,100,49,8,0,0,0,2,2,0,154,8,3,3,0,0,5,2,3,146,102,100,0,2,44,23,21]
["Stark","0001058","73060",516,211,17168,527,27,0,0,0,3,20,0,4,500,26,6,42,52,313,38,23,157,4,2,0,0,2,0,0,0,0,0,153,129,53,10,8,0,0,16,12,0,211,10,4,2,2,0,6,0,6,201,153,129,8,16,48,31,17]
["Stewartstown","0001063","73380",1012,368,17231,940,108,19,0,10,2,60,11,6,832,39,6,71,94,521,44,57,245,22,5,0,0,6,6,2,11,11,10,223,194,97,15,17,3,1,12,8,0,368,53,22,5,6,11,31,17,14,315,223,194,17,12,92,55,37]
["Stratford","0001068","74180",942,393,13783,928,133,8,6,7,23,78,5,6,795,34,3,66,82,497,69,44,233,25,6,6,0,3,3,0,16,14,2,208,165,60,4,18,15,6,25,13,3,393,64,25,6,3,16,39,13,26,329,208,165,18,25,121,55,66]
["Success","0001073","74500",2,0,0,0,0,0,0,0,0,0,0,0,0,0,0,0,0,0,0,0,0,0,0,0,0,0,0,0,0,0,0,0,0,0,0,0,0,0,0,0,0,0,0,0,0,0,0,0,0,0,0,0,0,0,0,0,0,0]
["Thompson and Meserves Purchase","0001078","76580",0,0,0,0,0,0,0,0,0,0,0,0,0,0,0,0,0,0,0,0,0,0,0,0,0,0,0,0,0,0,0,0,0,0,0,0,0,0,0,0,0,0,0,0,0,0,0,0,0,0,0,0,0,0,0,0,0,0]
["Wentworth's Location","0001083","80740",44,22,37237,49,4,0,0,0,0,4,0,0,45,0,0,0,5,32,8,0,14,0,0,0,0,0,0,0,0,0,0,14,12,3,0,2,0,0,0,0,0,22,3,0,0,0,0,3,0,3,19,14,12,2,0,5,5,0]
["Whitefield","0001088","84420",2038,814,17070,1914,187,14,3,6,29,93,21,21,1727,93,22,139,134,1070,146,123,540,33,15,7,0,4,4,0,14,12,4,507,434,182,38,28,17,3,45,37,6,814,95,33,15,4,14,62,22,40,719,507,434,28,45,212,101,111]
[]
[]
[]
[]
["Census 2000 SummaryFile3 Sample Data  -  SF3TownQry7HousingA"]
[]
["TOWN_NAME","LOGRECNO","COUSUB","TotalPop","H1HousingUnitsTotal","H2SampleHU","H2SampleOccHU","H2SampleVacHU","H3HU100pctCount","H5HUTotal","H5HUUrban","H5HUUrbanInUrbanAreas","H5HUUrbanInUrbanClusters","H5HURural","H5HURuralFarm","H5HURuralNonFarm","H7HUOcc","H7HUOwnrOcc","H7HURentrOcc","H8HUVacant","H8HUVacantForRent","H8HUVacantForSale","H8HUVacRentedorSold","H8HUVacSeasonal","H8HUVacForMigrantWrkrs","H8HUOtherVacant","H14OccHUa","H14OwnerOccHU","H14OwnOccHuHh15to24","H14OwnOccHuHh25to34","H14OwnOccHuHh35to44","H14OwnOccHuHh45to54","H14OwnOccHuHh55to59","H14OwnOccHuHh60to64","H14OwnOccHuHh65to74","H14OwnOccHuHh75to84","H14OwnOccHuHh85Over","H14RenterOccHU1","H14RntrOccHuHh15to24","H14RntrOccHuHh25to34","H14RntrOccHuHh35to44","H14RntrOccHuHh45to54","H14RntrOccHuHh55to59","H14RntrOccHuHh60to64","H14RntrOccHuHh65to74","H14RntrOccHuHh75to84","H14RntrOccHuHh85Over","H15PopInOccHU","H15PopInOwnOccHU1","H15PopInRentOccHU1","H17OccupHUb","H17OwnOccHU2","H17OwnOccHU1PersonHH","H17OwnOccHU2PersonHH","H17OwnOccHU3PersonHH","H17OwnOccHU4PersonHH","H17OwnOccHU5PersonHH","H17OwnOccHU6PersonHH","H17OwnOccHU7PlusPersonHH","H17RentOccHU2","H17RntOccHU1PersonHH","H17RntOccHU2PersonHH","H17RntOccHU3PersonHH","H17RntOccHU4PersonHH","H17RntOccHU5PersonHH","H17RntOccHU6PersonHH","H17RntOccHU7PlusPersonHH","H18AvgHHSize","H18AvgHHSizeOwnOcc","H18AvgHHSizeRentOcc","H23TotHU","H23HU1Room","H23HU2Room","H23HU3Room","H23HU4Room","H23HU5Room","H23HU6Room","H23HU7Room","H23HU8Room","H23HU9orMoreRoom","H24MedianNumRooms","H25AggregNumRooms","H30TotalHU","H30Det1HU","H30Att1HU","H30Units2","H30Units3or4","H30Units5to9","H30Units10to19","H30Units20to49","H30Units50orMore","H30UnitsMobileHome","H30UnitsBoatRv","H32OccHUcTotal","H32OwnerOccHU3","H32OwnOccHU1Det","H32OwnOccHU1Att","H32OwnOccHU2Unit","H32OwnOccHU3to4Unit","H32OwnOccHU5to9Unit","H32OwnOccHU10to19Unit","H32OwnOccHU20to49Unit","H32OwnOccHU50plusUnit","H32OwnOccHUMobHom","H32OwnOccHUBoatRVOth","H32RentrOccHU3","H32RntrOccHU1Det","H32RntrOccHU1Att","H32RntrOccHU2Unit","H32RntrOccHU3to4Unit","H32RntrOccHU5to9Unit","H32RntrOccHU10to19Unit","H32RntrOccHU20to49Unit","H32RntrOccHU50PlusUnit","H32RntrOccHUMobHom","H32RntrOccHUBoatRVOth","H33TotPopInOccHU","H33PopInOwnOccHU2","H33PopInOOHU1Det","H33PopInOOHU1Att","H33PopInOOHU2unit","H33PopInOOHU3to4Unit","H33PopInOOHU5to9Unit","H33PopInOOHU10to19Unit","H33PopInOOHU20to49Unit","H33PopInOOHU50PlusUnit","H33PopInOOHUMobilHome","H33PopInOOHUOtherUnit","H33PopInRentOccHU2","H33PopInROHU1Det","H33PopInROHU1Att","H33PopInROHU2Unit","H33PopInROHU3to4Unit","H33PopInROHU5to9Unit","H33PopInROHU10to19Unit","H33PopInROHU20to49Unit","H33PopInROHU50PlusUnit","H33PopInROHUMobilHome","H33PopInROHUOtherUnit","H36OccHousingUnitsdTotal","H36OwnerOccHU4","H36OOHUBuilt99to0300","H36OOHUBuilt95to98","H36OOHUBuilt90to94","H36OOHUBuilt80to89","H36OOHUBuilt70to79","H36OOHUBuilt60to69","H36OOHUBuilt50to59","H36OOHUBuilt40to49","H36OOHUBuilt39Earlier","H36RentOccHU4","H36ROHUBuilt99to0300","H36ROHUBuilt95to98","H36ROHUBuilt90to94","H36ROHUBuilt80to89","H36ROHUBuilt70to79","H36ROHUBuilt60to69","H36ROHUBuilt50to59","H36ROHUBuilt40to49","H36ROHUBuilt39Earlier","H40OccupHousUnitse","H40HeatFuelUtilGas","H40HeatFuelBotGas","H40HeatFuelElect","H40HeatFuelOilKero","H40HeatFuelCoal","H40HeatFuelWood","H40HeatFuelSolar","H40HeatFuelOther","H40HeatFuelNone","H41TotalHU","H41HUNoBdrm","H41HU1Bdrm","H41HU2Bdrm","H41HU3Bdrm","H41HU4Bdrm","H41HU5MoreBdrm","H42OccuHousUnitf","H42OwnerOccHU5","H42OOHUNoBdrm","H42OOHU1Bdrm","H42OOHU2Bdrm","H42OOHU3Bdrm","H42OOHU4Bdrm","H42OOHU5PlusBdrm","H42RentOccHU5","H42ROHUNoBdrm","H42ROHU1Bdrm","H42ROHU2Bdrm","H42ROHU3Bdrm","H42ROHU4Bdrm","H42ROHU5PlusBdrm","H48OccupHousUnitsg","H48OwnerOccHU6","H48OOHUwCompltPlumFacil","H48OOHULackCompltPlumFacil","H48RentOccHU6","H48ROHUwCompltPlumFacil","H48ROHULackCompltPlumFacil","H51OccupHousUnitf","H51OwnerOccHU7","H51OOHUwCompleteKitFacil","H51OOHULackCompleteKitFacil","H51RenterOccHU7","H51ROHUwCompleteKitFacil","H51ROHULackCompleteKitFacil"]
["Atkinson and Gilmanton Grant","0000818","02420",12,6,2,0,2,15,6,0,0,0,6,0,6,0,0,0,6,0,0,0,3,0,3,0,0,0,0,0,0,0,0,0,0,0,0,0,0,0,0,0,0,0,0,0,0,0,0,0,0,0,0,0,0,0,0,0,0,0,0,0,0,0,0,0,0,0,0,6,3,0,0,0,3,0,0,0,0,3,18,6,6,0,0,0,0,0,0,0,0,0,0,0,0,0,0,0,0,0,0,0,0,0,0,0,0,0,0,0,0,0,0,0,0,0,0,0,0,0,0,0,0,0,0,0,0,0,0,0,0,0,0,0,0,0,0,0,0,0,0,0,0,0,0,0,0,0,0,0,0,0,0,0,0,0,0,0,0,0,0,0,0,0,0,0,0,0,0,6,3,0,0,3,0,0,0,0,0,0,0,0,0,0,0,0,0,0,0,0,0,0,0,0,0,0,0,0,0,0,0,0,0,0,0]
["Bean's Grant","0000823","04100",0,0,0,0,0,0,0,0,0,0,0,0,0,0,0,0,0,0,0,0,0,0,0,0,0,0,0,0,0,0,0,0,0,0,0,0,0,0,0,0,0,0,0,0,0,0,0,0,0,0,0,0,0,0,0,0,0,0,0,0,0,0,0,0,0,0,0,0,0,0,0,0,0,0,0,0,0,0,0,0,0,0,0,0,0,0,0,0,0,0,0,0,0,0,0,0,0,0,0,0,0,0,0,0,0,0,0,0,0,0,0,0,0,0,0,0,0,0,0,0,0,0,0,0,0,0,0,0,0,0,0,0,0,0,0,0,0,0,0,0,0,0,0,0,0,0,0,0,0,0,0,0,0,0,0,0,0,0,0,0,0,0,0,0,0,0,0,0,0,0,0,0,0,0,0,0,0,0,0,0,0,0,0,0,0,0,0,0,0,0,0,0,0,0,0,0,0,0,0,0,0,0,0]
["Bean's Purchase","0000828","04260",4,0,0,0,0,3,0,0,0,0,0,0,0,0,0,0,0,0,0,0,0,0,0,0,0,0,0,0,0,0,0,0,0,0,0,0,0,0,0,0,0,0,0,0,0,0,0,0,0,0,0,0,0,0,0,0,0,0,0,0,0,0,0,0,0,0,0,0,0,0,0,0,0,0,0,0,0,0,0,0,0,0,0,0,0,0,0,0,0,0,0,0,0,0,0,0,0,0,0,0,0,0,0,0,0,0,0,0,0,0,0,0,0,0,0,0,0,0,0,0,0,0,0,0,0,0,0,0,0,0,0,0,0,0,0,0,0,0,0,0,0,0,0,0,0,0,0,0,0,0,0,0,0,0,0,0,0,0,0,0,0,0,0,0,0,0,0,0,0,0,0,0,0,0,0,0,0,0,0,0,0,0,0,0,0,0,0,0,0,0,0,0,0,0,0,0,0,0,0,0,0,0,0]
["Berlin","0000833","05140",10331,5111,827,732,95,5111,5111,4497,0,4497,614,0,614,4555,2788,1767,556,219,84,22,60,0,171,4555,2788,20,274,492,597,169,178,561,344,153,1767,188,323,289,207,62,106,242,256,94,10132,6743,3389,4555,2788,605,1179,443,383,112,38,28,1767,848,512,240,118,32,17,0,2,2,2,5111,18,99,475,1059,1417,1017,489,260,277,5,27337,5111,2454,43,1072,824,415,78,33,102,90,0,4555,2788,2146,19,432,107,0,0,0,0,84,0,1767,217,24,481,537,305,70,33,94,6,0,10132,6743,5423,46,895,245,0,0,0,0,134,0,3389,689,52,856,1031,444,134,33,134,16,0,4555,2788,7,7,11,93,236,127,499,255,1553,1767,0,0,0,45,149,152,182,187,1052,4555,0,45,104,4315,6,54,0,22,9,5111,25,726,1776,1851,580,153,4555,2788,0,115,750,1315,489,119,1767,25,475,775,421,56,15,4555,2788,2776,12,1767,1767,0,4555,2788,2782,6,1767,1767,0]
["Cambridge","0000864","08420",10,39,15,0,15,39,39,0,0,0,39,0,39,0,0,0,39,0,0,0,39,0,0,0,0,0,0,0,0,0,0,0,0,0,0,0,0,0,0,0,0,0,0,0,0,0,0,0,0,0,0,0,0,0,0,0,0,0,0,0,0,0,0,0,0,0,0,39,0,5,21,5,8,0,0,0,0,3,133,39,36,0,0,0,0,0,0,0,3,0,0,0,0,0,0,0,0,0,0,0,0,0,0,0,0,0,0,0,0,0,0,0,0,0,0,0,0,0,0,0,0,0,0,0,0,0,0,0,0,0,0,0,0,0,0,0,0,0,0,0,0,0,0,0,0,0,0,0,0,0,0,0,0,0,0,0,0,0,0,0,0,0,0,0,0,0,0,39,0,21,10,8,0,0,0,0,0,0,0,0,0,0,0,0,0,0,0,0,0,0,0,0,0,0,0,0,0,0,0,0,0,0,0]
["Carroll","0000869","10100",663,799,348,130,218,740,799,0,0,0,799,0,799,287,226,61,512,11,8,4,477,0,12,287,226,3,22,38,61,32,22,31,17,0,61,9,10,21,4,8,0,7,0,2,659,529,130,287,226,52,102,29,27,14,0,2,61,26,16,17,2,0,0,0,2,2,2,799,5,12,23,149,207,227,66,62,48,6,4529,799,406,159,17,107,52,27,0,0,31,0,287,226,192,14,6,2,2,0,0,0,10,0,61,35,0,6,4,9,2,0,0,5,0,659,529,452,38,20,3,4,0,0,0,12,0,130,69,0,16,9,17,7,0,0,12,0,287,226,10,17,11,56,38,17,17,11,49,61,2,0,4,10,22,0,9,2,12,287,2,28,6,230,2,19,0,0,0,799,5,47,274,333,83,57,287,226,0,13,86,71,33,23,61,3,4,28,20,6,0,287,226,224,2,61,61,0,287,226,226,0,61,61,0]
["Chandler's Purchase","0000874","11220",0,0,0,0,0,0,0,0,0,0,0,0,0,0,0,0,0,0,0,0,0,0,0,0,0,0,0,0,0,0,0,0,0,0,0,0,0,0,0,0,0,0,0,0,0,0,0,0,0,0,0,0,0,0,0,0,0,0,0,0,0,0,0,0,0,0,0,0,0,0,0,0,0,0,0,0,0,0,0,0,0,0,0,0,0,0,0,0,0,0,0,0,0,0,0,0,0,0,0,0,0,0,0,0,0,0,0,0,0,0,0,0,0,0,0,0,0,0,0,0,0,0,0,0,0,0,0,0,0,0,0,0,0,0,0,0,0,0,0,0,0,0,0,0,0,0,0,0,0,0,0,0,0,0,0,0,0,0,0,0,0,0,0,0,0,0,0,0,0,0,0,0,0,0,0,0,0,0,0,0,0,0,0,0,0,0,0,0,0,0,0,0,0,0,0,0,0,0,0,0,0,0,0]
["Clarksville","0000879","13220",294,353,143,55,88,307,353,0,0,0,353,2,351,128,106,22,225,0,0,6,216,0,3,128,106,0,7,22,25,10,10,23,9,0,22,0,8,8,4,0,2,0,0,0,301,257,44,128,106,18,51,20,8,9,0,0,22,10,8,0,4,0,0,0,2,2,2,353,17,19,78,92,65,39,13,28,2,4,1551,353,262,3,2,0,0,0,0,0,68,18,128,106,91,3,0,0,0,0,0,0,12,0,22,20,0,0,0,0,0,0,0,2,0,301,257,236,3,0,0,0,0,0,0,18,0,44,41,0,0,0,0,0,0,0,3,0,128,106,0,4,14,21,36,12,7,4,8,22,0,0,8,8,2,0,0,0,4,128,0,4,0,99,0,25,0,0,0,353,17,73,133,107,19,4,128,106,0,7,37,49,9,4,22,0,5,5,8,4,0,128,106,106,0,22,22,0,128,106,106,0,22,22,0]
["Colebrook","0000884","13780",2321,1318,587,467,120,1312,1318,0,0,0,1318,21,1297,1044,672,372,274,84,14,5,147,0,24,1044,672,0,76,120,192,70,44,88,68,14,372,60,59,80,52,15,26,34,33,13,2289,1607,682,1044,672,167,296,85,79,36,5,4,372,191,80,47,36,16,2,0,2,2,2,1318,14,46,204,212,293,207,144,72,126,5,7117,1318,771,15,94,125,163,9,2,0,135,4,1044,672,541,3,21,6,4,0,0,0,97,0,372,77,11,60,91,103,9,2,0,19,0,2289,1607,1326,9,41,12,7,0,0,0,212,0,682,198,13,126,156,138,11,2,0,38,0,1044,672,9,41,30,125,134,42,26,41,224,372,4,3,15,53,80,12,4,9,192,1044,3,37,24,913,4,63,0,0,0,1318,14,244,398,462,138,62,1044,672,0,16,183,319,106,48,372,2,163,113,69,16,9,1044,672,672,0,372,370,2,1044,672,672,0,372,370,2]
["Columbia","0000890","13940",750,443,181,134,47,449,443,0,0,0,443,5,438,291,257,34,152,9,3,0,125,0,15,291,257,4,32,39,78,25,23,38,16,2,34,0,12,1,5,3,0,5,6,2,740,674,66,291,257,44,106,43,48,16,0,0,34,11,18,3,0,0,2,0,3,3,2,443,6,16,19,76,114,86,69,18,39,5,2502,443,350,0,8,3,0,0,0,0,72,10,291,257,209,0,2,0,0,0,0,0,46,0,34,15,0,6,3,0,0,0,0,10,0,740,674,540,0,5,0,0,0,0,0,129,0,66,36,0,6,8,0,0,0,0,16,0,291,257,6,17,24,47,68,23,13,6,53,34,0,0,0,7,9,0,3,0,15,291,0,12,0,236,0,43,0,0,0,443,11,33,125,189,76,9,291,257,2,18,54,124,50,9,34,0,3,14,17,0,0,291,257,257,0,34,34,0,291,257,257,0,34,34,0]
["Crawford's Purchase","0000895","16100",0,0,0,0,0,0,0,0,0,0,0,0,0,0,0,0,0,0,0,0,0,0,0,0,0,0,0,0,0,0,0,0,0,0,0,0,0,0,0,0,0,0,0,0,0,0,0,0,0,0,0,0,0,0,0,0,0,0,0,0,0,0,0,0,0,0,0,0,0,0,0,0,0,0,0,0,0,0,0,0,0,0,0,0,0,0,0,0,0,0,0,0,0,0,0,0,0,0,0,0,0,0,0,0,0,0,0,0,0,0,0,0,0,0,0,0,0,0,0,0,0,0,0,0,0,0,0,0,0,0,0,0,0,0,0,0,0,0,0,0,0,0,0,0,0,0,0,0,0,0,0,0,0,0,0,0,0,0,0,0,0,0,0,0,0,0,0,0,0,0,0,0,0,0,0,0,0,0,0,0,0,0,0,0,0,0,0,0,0,0,0,0,0,0,0,0,0,0,0,0,0,0,0]
["Cutt's Grant","0000900","16660",0,0,0,0,0,0,0,0,0,0,0,0,0,0,0,0,0,0,0,0,0,0,0,0,0,0,0,0,0,0,0,0,0,0,0,0,0,0,0,0,0,0,0,0,0,0,0,0,0,0,0,0,0,0,0,0,0,0,0,0,0,0,0,0,0,0,0,0,0,0,0,0,0,0,0,0,0,0,0,0,0,0,0,0,0,0,0,0,0,0,0,0,0,0,0,0,0,0,0,0,0,0,0,0,0,0,0,0,0,0,0,0,0,0,0,0,0,0,0,0,0,0,0,0,0,0,0,0,0,0,0,0,0,0,0,0,0,0,0,0,0,0,0,0,0,0,0,0,0,0,0,0,0,0,0,0,0,0,0,0,0,0,0,0,0,0,0,0,0,0,0,0,0,0,0,0,0,0,0,0,0,0,0,0,0,0,0,0,0,0,0,0,0,0,0,0,0,0,0,0,0,0,0]
["Dalton","0000905","16820",927,520,193,140,53,520,520,0,0,0,520,6,514,377,330,47,143,7,16,5,101,0,14,377,330,5,24,82,69,31,18,68,25,8,47,13,7,5,6,0,3,3,6,4,950,850,100,377,330,71,125,52,49,22,4,7,47,15,23,2,7,0,0,0,3,3,2,520,15,20,25,109,140,73,72,50,16,5,2768,520,356,0,11,2,0,0,0,0,146,5,377,330,228,0,0,0,0,0,0,0,102,0,47,25,0,5,0,0,0,0,0,17,0,950,850,596,0,0,0,0,0,0,0,254,0,100,57,0,9,0,0,0,0,0,34,0,377,330,6,33,27,79,77,26,7,9,66,47,3,0,2,12,6,0,4,3,17,377,0,35,3,303,0,36,0,0,0,520,15,55,182,210,46,12,377,330,0,30,122,142,27,9,47,2,8,18,17,2,0,377,330,326,4,47,47,0,377,330,323,7,47,47,0]
["Dix's Grant","0000910","18340",0,13,5,0,5,16,13,0,0,0,13,0,13,0,0,0,13,0,0,0,13,0,0,0,0,0,0,0,0,0,0,0,0,0,0,0,0,0,0,0,0,0,0,0,0,0,0,0,0,0,0,0,0,0,0,0,0,0,0,0,0,0,0,0,0,0,0,13,0,8,0,2,3,0,0,0,0,2,39,13,13,0,0,0,0,0,0,0,0,0,0,0,0,0,0,0,0,0,0,0,0,0,0,0,0,0,0,0,0,0,0,0,0,0,0,0,0,0,0,0,0,0,0,0,0,0,0,0,0,0,0,0,0,0,0,0,0,0,0,0,0,0,0,0,0,0,0,0,0,0,0,0,0,0,0,0,0,0,0,0,0,0,0,0,0,0,0,13,0,8,2,0,3,0,0,0,0,0,0,0,0,0,0,0,0,0,0,0,0,0,0,0,0,0,0,0,0,0,0,0,0,0,0]
["Dixville","0000915","18420",75,31,12,0,12,36,31,0,0,0,31,0,31,0,0,0,31,0,0,0,31,0,0,0,0,0,0,0,0,0,0,0,0,0,0,0,0,0,0,0,0,0,0,0,0,0,0,0,0,0,0,0,0,0,0,0,0,0,0,0,0,0,0,0,0,0,0,31,0,3,19,4,5,0,0,0,0,3,104,31,21,0,0,0,3,2,0,0,5,0,0,0,0,0,0,0,0,0,0,0,0,0,0,0,0,0,0,0,0,0,0,0,0,0,0,0,0,0,0,0,0,0,0,0,0,0,0,0,0,0,0,0,0,0,0,0,0,0,0,0,0,0,0,0,0,0,0,0,0,0,0,0,0,0,0,0,0,0,0,0,0,0,0,0,0,0,0,31,0,6,21,4,0,0,0,0,0,0,0,0,0,0,0,0,0,0,0,0,0,0,0,0,0,0,0,0,0,0,0,0,0,0,0]
["Dummer","0000920","19300",309,300,125,64,61,252,300,0,0,0,300,3,297,145,129,16,155,2,4,0,144,0,5,145,129,0,15,26,41,6,18,12,9,2,16,0,8,5,0,0,3,0,0,0,345,313,32,145,129,24,62,17,17,6,3,0,16,7,5,4,0,0,0,0,2,2,2,300,30,30,31,40,76,45,31,8,9,5,1364,300,251,0,2,0,0,0,0,0,40,7,145,129,114,0,2,0,0,0,0,0,13,0,16,14,0,0,0,0,0,0,0,2,0,345,313,273,0,5,0,0,0,0,0,35,0,32,30,0,0,0,0,0,0,0,2,0,145,129,6,0,14,27,22,15,9,4,32,16,0,0,0,0,0,2,0,0,14,145,0,15,2,98,0,30,0,0,0,300,30,58,95,94,19,4,145,129,2,12,41,57,13,4,16,0,0,9,4,3,0,145,129,125,4,16,16,0,145,129,127,2,16,16,0]
["Errol","0000925","25140",298,411,168,62,106,447,411,0,0,0,411,2,409,141,128,13,270,0,8,2,238,0,22,141,128,2,12,20,13,23,17,20,10,11,13,3,3,3,4,0,0,0,0,0,308,284,24,141,128,27,69,18,8,6,0,0,13,4,6,0,3,0,0,0,2,2,2,411,29,49,36,67,105,72,11,17,25,5,1923,411,346,3,0,0,0,0,0,0,46,16,141,128,103,0,0,0,0,0,0,0,25,0,13,13,0,0,0,0,0,0,0,0,0,308,284,227,0,0,0,0,0,0,0,57,0,24,24,0,0,0,0,0,0,0,0,0,141,128,6,2,7,13,50,7,8,7,28,13,0,0,0,5,0,0,3,0,5,141,0,11,0,106,0,22,0,2,0,411,29,83,104,141,37,17,141,128,0,11,40,57,16,4,13,0,3,0,7,0,3,141,128,126,2,13,13,0,141,128,126,2,13,13,0]
["Erving's Location","0000930","25180",1,0,0,0,0,1,0,0,0,0,0,0,0,0,0,0,0,0,0,0,0,0,0,0,0,0,0,0,0,0,0,0,0,0,0,0,0,0,0,0,0,0,0,0,0,0,0,0,0,0,0,0,0,0,0,0,0,0,0,0,0,0,0,0,0,0,0,0,0,0,0,0,0,0,0,0,0,0,0,0,0,0,0,0,0,0,0,0,0,0,0,0,0,0,0,0,0,0,0,0,0,0,0,0,0,0,0,0,0,0,0,0,0,0,0,0,0,0,0,0,0,0,0,0,0,0,0,0,0,0,0,0,0,0,0,0,0,0,0,0,0,0,0,0,0,0,0,0,0,0,0,0,0,0,0,0,0,0,0,0,0,0,0,0,0,0,0,0,0,0,0,0,0,0,0,0,0,0,0,0,0,0,0,0,0,0,0,0,0,0,0,0,0,0,0,0,0,0,0,0,0,0,0]
["Gorham","0000935","30260",2895,1484,232,210,22,1482,1484,1257,0,1257,227,0,227,1294,919,375,190,38,26,12,59,0,55,1294,919,5,108,199,187,42,61,140,126,51,375,20,59,53,73,8,0,45,82,35,2895,2335,560,1294,919,213,346,169,132,54,5,0,375,212,103,28,25,7,0,0,2,3,1,1484,14,50,190,248,378,263,160,98,83,5,7878,1484,782,14,177,102,79,35,29,0,266,0,1294,919,659,6,50,7,0,0,0,0,197,0,375,44,8,82,95,65,14,29,0,38,0,2895,2335,1776,12,114,8,0,0,0,0,425,0,560,96,8,150,128,63,23,29,0,63,0,1294,919,11,33,35,112,213,87,88,39,301,375,24,0,14,37,88,21,31,13,147,1294,7,43,28,1161,0,55,0,0,0,1484,14,262,496,546,138,28,1294,919,0,51,300,420,131,17,375,14,164,153,37,7,0,1294,919,919,0,375,375,0,1294,919,919,0,375,375,0]
["Greens Grant","0000957","31780",0,0,0,0,0,0,0,0,0,0,0,0,0,0,0,0,0,0,0,0,0,0,0,0,0,0,0,0,0,0,0,0,0,0,0,0,0,0,0,0,0,0,0,0,0,0,0,0,0,0,0,0,0,0,0,0,0,0,0,0,0,0,0,0,0,0,0,0,0,0,0,0,0,0,0,0,0,0,0,0,0,0,0,0,0,0,0,0,0,0,0,0,0,0,0,0,0,0,0,0,0,0,0,0,0,0,0,0,0,0,0,0,0,0,0,0,0,0,0,0,0,0,0,0,0,0,0,0,0,0,0,0,0,0,0,0,0,0,0,0,0,0,0,0,0,0,0,0,0,0,0,0,0,0,0,0,0,0,0,0,0,0,0,0,0,0,0,0,0,0,0,0,0,0,0,0,0,0,0,0,0,0,0,0,0,0,0,0,0,0,0,0,0,0,0,0,0,0,0,0,0,0,0]
["Hadley's Purchase","0000962","32420",0,0,0,0,0,0,0,0,0,0,0,0,0,0,0,0,0,0,0,0,0,0,0,0,0,0,0,0,0,0,0,0,0,0,0,0,0,0,0,0,0,0,0,0,0,0,0,0,0,0,0,0,0,0,0,0,0,0,0,0,0,0,0,0,0,0,0,0,0,0,0,0,0,0,0,0,0,0,0,0,0,0,0,0,0,0,0,0,0,0,0,0,0,0,0,0,0,0,0,0,0,0,0,0,0,0,0,0,0,0,0,0,0,0,0,0,0,0,0,0,0,0,0,0,0,0,0,0,0,0,0,0,0,0,0,0,0,0,0,0,0,0,0,0,0,0,0,0,0,0,0,0,0,0,0,0,0,0,0,0,0,0,0,0,0,0,0,0,0,0,0,0,0,0,0,0,0,0,0,0,0,0,0,0,0,0,0,0,0,0,0,0,0,0,0,0,0,0,0,0,0,0,0]
["Jefferson","0000967","38820",1006,577,255,181,74,582,577,0,0,0,577,15,562,405,340,65,172,0,15,0,138,0,19,405,340,2,38,52,85,42,34,47,21,19,65,7,12,19,13,2,0,5,7,0,1002,847,155,405,340,57,161,54,37,13,18,0,65,30,21,6,5,0,0,3,2,2,2,577,16,12,46,109,144,88,39,53,70,5,3259,577,441,0,14,5,22,0,0,0,86,9,405,340,284,0,2,0,0,0,0,0,54,0,65,34,0,8,5,16,0,0,0,2,0,1002,847,709,0,5,0,0,0,0,0,133,0,155,93,0,13,18,28,0,0,0,3,0,405,340,2,13,20,86,62,21,6,5,125,65,0,0,1,6,9,2,2,2,43,405,0,16,5,315,0,69,0,0,0,577,18,66,183,195,71,44,405,340,3,18,89,148,48,34,65,8,18,18,10,9,2,405,340,335,5,65,65,0,405,340,335,5,65,65,0]
["Kilkenny","0000973","39940",0,0,0,0,0,0,0,0,0,0,0,0,0,0,0,0,0,0,0,0,0,0,0,0,0,0,0,0,0,0,0,0,0,0,0,0,0,0,0,0,0,0,0,0,0,0,0,0,0,0,0,0,0,0,0,0,0,0,0,0,0,0,0,0,0,0,0,0,0,0,0,0,0,0,0,0,0,0,0,0,0,0,0,0,0,0,0,0,0,0,0,0,0,0,0,0,0,0,0,0,0,0,0,0,0,0,0,0,0,0,0,0,0,0,0,0,0,0,0,0,0,0,0,0,0,0,0,0,0,0,0,0,0,0,0,0,0,0,0,0,0,0,0,0,0,0,0,0,0,0,0,0,0,0,0,0,0,0,0,0,0,0,0,0,0,0,0,0,0,0,0,0,0,0,0,0,0,0,0,0,0,0,0,0,0,0,0,0,0,0,0,0,0,0,0,0,0,0,0,0,0,0,0]
["Lancaster","0000978","40420",3280,1501,224,191,33,1501,1501,0,0,0,1501,15,1486,1286,891,395,215,21,27,56,83,0,28,1286,891,0,94,207,228,94,44,111,87,26,395,18,134,88,63,7,7,37,27,14,3127,2481,646,1286,891,156,393,143,129,63,7,0,395,195,39,84,50,27,0,0,2,3,2,1501,8,24,178,177,250,311,222,195,136,6,8888,1501,992,7,102,66,117,42,48,0,127,0,1286,891,749,0,44,5,0,0,0,0,93,0,395,92,7,47,46,90,42,48,0,23,0,3127,2481,2060,0,105,7,0,0,0,0,309,0,646,197,5,65,50,164,56,52,0,57,0,1286,891,7,28,13,140,69,66,63,42,463,395,0,0,0,64,60,14,18,6,233,1286,0,68,45,1103,0,64,0,6,0,1501,8,202,350,622,248,71,1286,891,8,14,175,434,200,60,395,0,172,93,115,15,0,1286,891,891,0,395,395,0,1286,891,887,4,395,395,0]
["Low and Burbank's Grant","0000991","43620",0,0,0,0,0,0,0,0,0,0,0,0,0,0,0,0,0,0,0,0,0,0,0,0,0,0,0,0,0,0,0,0,0,0,0,0,0,0,0,0,0,0,0,0,0,0,0,0,0,0,0,0,0,0,0,0,0,0,0,0,0,0,0,0,0,0,0,0,0,0,0,0,0,0,0,0,0,0,0,0,0,0,0,0,0,0,0,0,0,0,0,0,0,0,0,0,0,0,0,0,0,0,0,0,0,0,0,0,0,0,0,0,0,0,0,0,0,0,0,0,0,0,0,0,0,0,0,0,0,0,0,0,0,0,0,0,0,0,0,0,0,0,0,0,0,0,0,0,0,0,0,0,0,0,0,0,0,0,0,0,0,0,0,0,0,0,0,0,0,0,0,0,0,0,0,0,0,0,0,0,0,0,0,0,0,0,0,0,0,0,0,0,0,0,0,0,0,0,0,0,0,0,0]
["Martin's Location","0000996","46020",0,0,0,0,0,0,0,0,0,0,0,0,0,0,0,0,0,0,0,0,0,0,0,0,0,0,0,0,0,0,0,0,0,0,0,0,0,0,0,0,0,0,0,0,0,0,0,0,0,0,0,0,0,0,0,0,0,0,0,0,0,0,0,0,0,0,0,0,0,0,0,0,0,0,0,0,0,0,0,0,0,0,0,0,0,0,0,0,0,0,0,0,0,0,0,0,0,0,0,0,0,0,0,0,0,0,0,0,0,0,0,0,0,0,0,0,0,0,0,0,0,0,0,0,0,0,0,0,0,0,0,0,0,0,0,0,0,0,0,0,0,0,0,0,0,0,0,0,0,0,0,0,0,0,0,0,0,0,0,0,0,0,0,0,0,0,0,0,0,0,0,0,0,0,0,0,0,0,0,0,0,0,0,0,0,0,0,0,0,0,0,0,0,0,0,0,0,0,0,0,0,0,0]
["Milan","0001001","47860",1331,755,283,199,84,756,755,0,0,0,755,3,752,530,471,59,225,0,23,7,189,0,6,530,471,0,51,120,140,39,26,56,34,5,59,11,9,9,13,3,0,5,9,0,1319,1186,133,530,471,98,198,65,80,23,2,5,59,18,14,10,9,8,0,0,2,3,2,755,23,24,29,178,163,173,93,40,32,5,4014,755,615,0,16,6,0,0,0,0,112,6,530,471,404,0,6,3,0,0,0,0,58,0,59,33,0,10,3,0,0,0,0,13,0,1319,1186,1008,0,9,3,0,0,0,0,166,0,133,98,0,15,3,0,0,0,0,17,0,530,471,8,26,33,132,93,43,27,4,105,59,0,0,4,16,11,0,0,3,25,530,0,15,0,444,0,71,0,0,0,755,26,60,274,305,75,15,530,471,8,23,170,203,52,15,59,0,3,30,14,12,0,530,471,466,5,59,59,0,530,471,466,5,59,59,0]
["Millsfield","0001006","48260",22,37,15,2,13,62,37,0,0,0,37,0,37,4,4,0,33,0,2,0,31,0,0,4,4,0,0,2,0,0,0,0,2,0,0,0,0,0,0,0,0,0,0,0,19,19,0,4,4,0,0,2,0,0,2,0,0,0,0,0,0,0,0,0,5,5,0,37,11,5,11,2,2,2,2,0,2,3,118,37,37,0,0,0,0,0,0,0,0,0,4,4,4,0,0,0,0,0,0,0,0,0,0,0,0,0,0,0,0,0,0,0,0,19,19,19,0,0,0,0,0,0,0,0,0,0,0,0,0,0,0,0,0,0,0,0,4,4,0,0,0,2,0,0,0,0,2,0,0,0,0,0,0,0,0,0,0,4,0,0,0,4,0,0,0,0,0,37,11,13,9,2,0,2,4,4,0,0,0,2,0,2,0,0,0,0,0,0,0,4,4,4,0,0,0,0,4,4,4,0,0,0,0]
["Northumberland","0001011","56100",2438,1112,507,457,50,1112,1112,0,0,0,1112,5,1107,989,747,242,123,28,16,4,53,0,22,989,747,25,81,156,179,76,39,98,77,16,242,17,70,39,39,12,8,16,30,11,2438,1897,541,989,747,155,291,125,120,40,14,2,242,105,47,39,30,21,0,0,2,3,2,1112,0,24,83,187,313,223,129,71,82,5,6239,1112,747,4,68,84,31,34,6,0,135,3,989,747,599,4,22,9,0,0,0,0,113,0,242,80,0,29,60,31,30,6,0,6,0,2438,1897,1534,14,38,15,0,0,0,0,296,0,541,214,0,71,123,68,41,7,0,17,0,989,747,19,26,45,91,134,62,46,52,272,242,0,10,4,42,7,10,20,20,129,989,0,27,2,909,2,49,0,0,0,1112,6,131,319,458,166,32,989,747,0,37,177,374,139,20,242,0,72,101,52,11,6,989,747,747,0,242,240,2,989,747,747,0,242,242,0]
["Odell","0001023","57860",5,40,13,0,13,73,40,0,0,0,40,0,40,0,0,0,40,0,0,0,40,0,0,0,0,0,0,0,0,0,0,0,0,0,0,0,0,0,0,0,0,0,0,0,0,0,0,0,0,0,0,0,0,0,0,0,0,0,0,0,0,0,0,0,0,0,0,40,9,13,6,12,0,0,0,0,0,2,101,40,40,0,0,0,0,0,0,0,0,0,0,0,0,0,0,0,0,0,0,0,0,0,0,0,0,0,0,0,0,0,0,0,0,0,0,0,0,0,0,0,0,0,0,0,0,0,0,0,0,0,0,0,0,0,0,0,0,0,0,0,0,0,0,0,0,0,0,0,0,0,0,0,0,0,0,0,0,0,0,0,0,0,0,0,0,0,0,40,12,16,9,3,0,0,0,0,0,0,0,0,0,0,0,0,0,0,0,0,0,0,0,0,0,0,0,0,0,0,0,0,0,0,0]
["Pinkham's Grant","0001028","61620",0,2,1,0,1,1,2,0,0,0,2,0,2,0,0,0,2,0,0,0,2,0,0,0,0,0,0,0,0,0,0,0,0,0,0,0,0,0,0,0,0,0,0,0,0,0,0,0,0,0,0,0,0,0,0,0,0,0,0,0,0,0,0,0,0,0,0,2,0,0,2,0,0,0,0,0,0,3,6,2,0,0,2,0,0,0,0,0,0,0,0,0,0,0,0,0,0,0,0,0,0,0,0,0,0,0,0,0,0,0,0,0,0,0,0,0,0,0,0,0,0,0,0,0,0,0,0,0,0,0,0,0,0,0,0,0,0,0,0,0,0,0,0,0,0,0,0,0,0,0,0,0,0,0,0,0,0,0,0,0,0,0,0,0,0,0,0,2,0,2,0,0,0,0,0,0,0,0,0,0,0,0,0,0,0,0,0,0,0,0,0,0,0,0,0,0,0,0,0,0,0,0,0]
["Pittsburg","0001033","61780",867,1244,497,161,336,1281,1244,0,0,0,1244,3,1241,383,336,47,861,3,15,3,799,0,41,383,336,0,33,59,71,32,35,77,26,3,47,3,6,2,18,0,5,2,11,0,869,749,120,383,336,91,149,37,40,13,3,3,47,13,18,11,3,2,0,0,2,2,3,1244,45,168,164,285,217,177,86,32,70,4,5718,1244,1059,2,7,0,5,2,0,0,145,24,383,336,304,2,3,0,0,2,0,0,25,0,47,34,0,4,0,5,0,0,0,4,0,869,749,681,2,9,0,0,3,0,0,54,0,120,99,0,6,0,9,0,0,0,6,0,383,336,6,8,23,97,59,38,20,7,78,47,0,1,2,6,16,0,2,0,20,383,0,49,0,260,0,74,0,0,0,1244,48,264,405,428,69,30,383,336,0,27,98,152,42,17,47,0,14,13,15,5,0,383,336,328,8,47,47,0,383,336,333,3,47,47,0]
["Randolph","0001038","63860",339,244,107,63,44,298,244,0,0,0,244,4,240,140,120,20,104,1,0,0,95,0,8,140,120,4,2,28,43,7,9,12,13,2,20,3,2,9,4,0,0,0,2,0,336,297,39,140,120,20,62,9,23,4,2,0,20,11,4,3,2,0,0,0,2,2,2,244,2,14,14,25,39,64,35,27,24,6,1452,244,224,4,4,0,0,0,0,0,9,3,140,120,114,0,0,0,0,0,0,0,6,0,20,14,2,4,0,0,0,0,0,0,0,336,297,293,0,0,0,0,0,0,0,4,0,39,31,3,5,0,0,0,0,0,0,0,140,120,2,4,4,29,26,10,5,6,34,20,0,2,2,0,0,2,3,0,11,140,0,4,5,105,0,26,0,0,0,244,7,26,60,97,44,10,140,120,0,2,27,58,25,8,20,2,7,4,4,3,0,140,120,118,2,20,20,0,140,120,118,2,20,20,0]
["Sargent's Purchase","0001043","67860",0,0,0,0,0,0,0,0,0,0,0,0,0,0,0,0,0,0,0,0,0,0,0,0,0,0,0,0,0,0,0,0,0,0,0,0,0,0,0,0,0,0,0,0,0,0,0,0,0,0,0,0,0,0,0,0,0,0,0,0,0,0,0,0,0,0,0,0,0,0,0,0,0,0,0,0,0,0,0,0,0,0,0,0,0,0,0,0,0,0,0,0,0,0,0,0,0,0,0,0,0,0,0,0,0,0,0,0,0,0,0,0,0,0,0,0,0,0,0,0,0,0,0,0,0,0,0,0,0,0,0,0,0,0,0,0,0,0,0,0,0,0,0,0,0,0,0,0,0,0,0,0,0,0,0,0,0,0,0,0,0,0,0,0,0,0,0,0,0,0,0,0,0,0,0,0,0,0,0,0,0,0,0,0,0,0,0,0,0,0,0,0,0,0,0,0,0,0,0,0,0,0,0]
["Second College Grant","0001048","68500",0,7,3,0,3,8,7,0,0,0,7,0,7,0,0,0,7,0,0,0,0,0,7,0,0,0,0,0,0,0,0,0,0,0,0,0,0,0,0,0,0,0,0,0,0,0,0,0,0,0,0,0,0,0,0,0,0,0,0,0,0,0,0,0,0,0,0,7,2,3,0,2,0,0,0,0,0,2,16,7,7,0,0,0,0,0,0,0,0,0,0,0,0,0,0,0,0,0,0,0,0,0,0,0,0,0,0,0,0,0,0,0,0,0,0,0,0,0,0,0,0,0,0,0,0,0,0,0,0,0,0,0,0,0,0,0,0,0,0,0,0,0,0,0,0,0,0,0,0,0,0,0,0,0,0,0,0,0,0,0,0,0,0,0,0,0,0,7,2,3,0,2,0,0,0,0,0,0,0,0,0,0,0,0,0,0,0,0,0,0,0,0,0,0,0,0,0,0,0,0,0,0,0]
["Shelburne","0001053","68980",379,197,79,64,15,197,197,0,0,0,197,2,195,158,138,20,39,0,3,0,31,0,5,158,138,0,2,31,43,21,13,17,6,5,20,8,3,3,6,0,0,0,0,0,378,354,24,158,138,26,56,21,24,9,2,0,20,9,11,0,0,0,0,0,2,3,1,197,2,14,9,37,31,39,38,6,21,6,1118,197,168,3,5,0,0,0,0,0,19,2,158,138,129,0,0,0,0,0,0,0,9,0,20,12,3,2,0,0,0,0,0,3,0,378,354,338,0,0,0,0,0,0,0,16,0,24,13,2,5,0,0,0,0,0,4,0,158,138,4,9,3,25,31,8,8,7,43,20,0,0,3,0,3,0,6,0,8,158,0,17,3,114,0,24,0,0,0,197,2,31,52,85,17,10,158,138,0,13,31,69,15,10,20,0,12,5,3,0,0,158,138,131,7,20,17,3,158,138,134,4,20,17,3]
["Stark","0001058","73060",516,436,166,87,79,384,436,0,0,0,436,2,434,196,169,27,240,1,5,6,222,0,6,196,169,3,12,47,56,11,11,16,11,2,27,0,10,6,3,3,0,3,0,2,529,478,51,196,169,25,78,23,19,22,2,0,27,7,8,9,3,0,0,0,3,3,2,436,29,24,76,99,63,64,32,30,19,4,2054,436,334,0,9,5,0,0,0,0,58,30,196,169,147,0,3,2,0,0,0,0,17,0,27,16,0,5,0,0,0,0,0,6,0,529,478,420,0,2,9,0,0,0,0,47,0,51,33,0,9,0,0,0,0,0,9,0,196,169,4,7,17,34,37,13,12,2,43,27,0,0,3,5,3,3,3,0,10,196,0,13,5,140,0,38,0,0,0,436,29,81,146,110,47,23,196,169,0,10,44,69,32,14,27,0,3,5,14,3,2,196,169,165,4,27,27,0,196,169,167,2,27,27,0]
["Stewartstown","0001063","73380",1012,760,356,174,182,760,760,0,0,0,760,14,746,371,285,86,389,21,7,8,341,0,12,371,285,5,53,61,61,20,22,38,16,9,86,14,26,17,14,2,2,5,2,4,899,725,174,371,285,66,115,30,50,21,3,0,86,35,20,23,3,5,0,0,2,3,2,760,26,55,102,188,178,76,66,41,28,5,3610,760,489,5,21,19,38,0,0,2,159,27,371,285,209,3,9,0,0,0,0,0,64,0,86,21,0,12,15,19,0,0,2,17,0,899,725,525,10,12,0,0,0,0,0,178,0,174,45,0,17,29,36,0,0,2,45,0,371,285,3,36,32,37,46,21,12,5,93,86,0,0,4,23,21,0,11,6,21,371,2,4,6,310,2,47,0,0,0,760,26,115,303,232,64,20,371,285,0,9,79,141,41,15,86,0,10,46,19,6,5,371,285,275,10,86,86,0,371,285,280,5,86,86,0]
["Stratford","0001068","74180",942,521,210,169,41,540,521,0,0,0,521,3,518,399,272,127,122,7,6,10,71,0,28,399,272,3,22,70,52,33,20,41,25,6,127,21,17,24,23,14,9,14,5,0,933,691,242,399,272,80,100,43,24,10,5,10,127,53,30,15,23,3,3,0,2,3,2,521,6,26,43,110,148,76,67,11,34,5,2720,521,329,9,18,14,52,3,4,0,92,0,399,272,198,9,2,0,2,0,0,0,61,0,127,35,0,11,14,46,3,4,0,14,0,933,691,482,36,4,0,5,0,0,0,164,0,242,79,0,7,24,82,5,4,0,41,0,399,272,6,14,21,48,59,22,17,6,79,127,0,6,6,29,15,10,22,2,37,399,0,14,4,335,0,46,0,0,0,521,9,74,179,165,76,18,399,272,2,18,90,103,50,9,127,0,38,42,34,10,3,399,272,266,6,127,127,0,399,272,268,4,127,127,0]
["Success","0001073","74500",2,68,25,0,25,71,68,0,0,0,68,0,68,0,0,0,68,0,0,0,68,0,0,0,0,0,0,0,0,0,0,0,0,0,0,0,0,0,0,0,0,0,0,0,0,0,0,0,0,0,0,0,0,0,0,0,0,0,0,0,0,0,0,0,0,0,0,68,0,0,0,8,36,8,16,0,0,5,372,68,68,0,0,0,0,0,0,0,0,0,0,0,0,0,0,0,0,0,0,0,0,0,0,0,0,0,0,0,0,0,0,0,0,0,0,0,0,0,0,0,0,0,0,0,0,0,0,0,0,0,0,0,0,0,0,0,0,0,0,0,0,0,0,0,0,0,0,0,0,0,0,0,0,0,0,0,0,0,0,0,0,0,0,0,0,0,0,68,0,0,26,42,0,0,0,0,0,0,0,0,0,0,0,0,0,0,0,0,0,0,0,0,0,0,0,0,0,0,0,0,0,0,0]
["Thompson and Meserves Purchase","0001078","76580",0,0,0,0,0,0,0,0,0,0,0,0,0,0,0,0,0,0,0,0,0,0,0,0,0,0,0,0,0,0,0,0,0,0,0,0,0,0,0,0,0,0,0,0,0,0,0,0,0,0,0,0,0,0,0,0,0,0,0,0,0,0,0,0,0,0,0,0,0,0,0,0,0,0,0,0,0,0,0,0,0,0,0,0,0,0,0,0,0,0,0,0,0,0,0,0,0,0,0,0,0,0,0,0,0,0,0,0,0,0,0,0,0,0,0,0,0,0,0,0,0,0,0,0,0,0,0,0,0,0,0,0,0,0,0,0,0,0,0,0,0,0,0,0,0,0,0,0,0,0,0,0,0,0,0,0,0,0,0,0,0,0,0,0,0,0,0,0,0,0,0,0,0,0,0,0,0,0,0,0,0,0,0,0,0,0,0,0,0,0,0,0,0,0,0,0,0,0,0,0,0,0,0]
["Wentworth's Location","0001083","80740",44,136,54,10,44,109,136,0,0,0,136,0,136,22,17,5,114,0,0,2,112,0,0,22,17,0,0,0,7,0,0,10,0,0,5,0,2,3,0,0,0,0,0,0,49,40,9,22,17,2,10,2,3,0,0,0,5,3,2,0,0,0,0,0,2,2,2,136,13,19,15,54,26,5,4,0,0,4,500,136,117,0,0,0,0,0,0,0,13,6,22,17,14,0,0,0,0,0,0,0,3,0,5,2,0,0,0,0,0,0,0,3,0,49,40,36,0,0,0,0,0,0,0,4,0,9,6,0,0,0,0,0,0,0,3,0,22,17,0,1,0,2,0,5,0,9,0,5,0,0,0,0,5,0,0,0,0,22,0,7,0,13,0,2,0,0,0,136,13,26,30,62,5,0,22,17,0,2,10,3,2,0,5,0,0,3,2,0,0,22,17,17,0,5,5,0,22,17,17,0,5,5,0]
["Whitefield","0001088","84420",2038,1158,532,380,152,1158,1158,0,0,0,1158,2,1156,816,580,236,342,25,17,13,248,2,37,816,580,8,57,129,149,59,29,85,50,14,236,29,46,49,31,13,4,28,24,12,1946,1470,476,816,580,111,236,103,90,34,6,0,236,110,52,34,24,13,3,0,2,3,2,1158,18,42,155,143,278,186,140,113,83,5,6359,1158,817,6,71,27,86,0,62,0,86,3,816,580,505,3,7,3,0,0,0,0,62,0,236,51,2,50,16,51,0,56,0,10,0,1946,1470,1306,5,13,7,0,0,0,0,139,0,476,133,2,139,26,85,0,64,0,27,0,816,580,8,23,20,120,97,43,21,22,226,236,0,0,11,47,17,8,2,4,147,816,2,36,6,718,0,54,0,0,0,1158,18,210,322,432,124,52,816,580,2,24,165,273,81,35,236,4,114,54,46,10,8,816,580,574,6,236,236,0,816,580,578,2,236,236,0]
[]
[]
[]
[]
[]
["Census 2000 SummaryFile3 Sample Data  -  SF3TownQry8HousingCostA"]
[]
["TOWN_NAME","LOGRECNO","COUSUB","TotalPop","H62RntrOccHU","H62RntrOccHUwRent","H62ROHUGRent<100","H62ROHUGRent100to149","H62ROHUGRent150to199","H62ROHUGRent200to249","H62ROHUGRent250to299","H62ROHUGRent300to349","H62ROHUGRent350to399","H62ROHUGRent400to449","H62ROHUGRent450to499","H62ROHUGRent500to549","H62ROHUGRent550to599","H62ROHUGRent600to649","H62ROHUGRent650to699","H62ROHUGRent700to749","H62ROHUGRent750to799","H62ROHUGRent800to899","H62ROHUGRent900to999","H62ROHUGRent1000to1249","H62ROHUGRent1250to1499","H62ROHUGRent1500to1999","H62ROHUGRent2000>","H62ROHUNoGRent","H63MedianGrossRnt","H69RenterOccHsU","H69GRnt<10PctHHInc","H69GRnt10to15PctHHInc","H69GRnt15to20PctHHInc","H69GRnt20to25PctHHInc","H69GRnt25to30PctHHInc","H69GRnt30to35PctHHInc","H69GRnt35to40PctHHInc","H69GRnt40to50PctHHInc","H69GRnt>50PctHHInc","H69GRntPctNotcomputed","H73RenterOccHU","H73ROHUHhInc<10k","H73ROHUHhInc<10kRnt<20pct","H73ROHUHhInc<10kRnt20to25pct","H73ROHUHhInc<10kRnt25to30pct","H73ROHUHhInc<10kRnt30to35pct","H73ROHUHhInc<10kRnt>35pct","H73ROHUHhInc<10kPctNotComput","H73ROHUHhInc10to20k","H73ROHUHhInc10to20kRnt<20pct","H73ROHUHhInc10to20kRnt20to25pct","H73ROHUHhInc10to20kRnt25to30pct","H73ROHUHhInc10to20kRnt30to35pct","H73ROHUHhInc10to20kRnt>35pct","H73ROHUHhInc10to20kRntPctNC","H73ROHUHhInc20to35k","H73ROHUHhInc20to35kRnt<20pct","H73ROHUHhInc20to35kRnt20to25pct","H73ROHUHhInc20to35kRnt25to30pct","H73ROHUHhInc20to35kRnt30to35pct","H73ROHUHhInc20to35kRnt>35pct","H73ROHUHhInc20to35kRntPctNC","H73ROHUHhInc35to40k","H73ROHUHhInc35to40kRnt<20pct","H73ROHUHhInc35to40kRnt20to25pct","H73ROHUHhInc35to40kRnt25to30pct","H73ROHUHhInc35to40kRnt30to35pct","H73ROHUHhInc35to40kRnt>35pct","H73ROHUHhInc35to40kRntPctNC","H73ROHUHhInc50to75k","H73ROHUHhInc50to75kRnt<20pct","H73ROHUHhInc50to75kRnt20to25pct","H73ROHUHhInc50to75kRnt25to30pct","H73ROHUHhInc50to75kRnt30to35pct","H73ROHUHhInc50to75kRnt>35pct","H73ROHUHhInc50to75kRntPctNC","H73ROHUHhInc75to100k","H73ROHUHhInc75to100kRnt<20pct","H73ROHUHhInc75to100kRnt20to25pct","H73ROHUHhInc75to100kRnt25to30pct","H73ROHUHhInc75to100kRnt30to35pct","H73ROHUHhInc75to100kRnt>35pct","H73ROHUHhInc75to100kRntPctNC","H73ROHUHhInc>100k","H73ROHUHhInc>100kRnt<20pct","H73ROHUHhInc>100kRnt20to25pct","H73ROHUHhInc>100kRnt25to30pct","H73ROHUHhInc>100kRnt30to35pct","H73ROHUHhInc>100kRnt>35pct","H73ROHUHhInc>100kRntPctNC"]
["Atkinson and Gilmanton Grant","0000818","02420",12,0,0,0,0,0,0,0,0,0,0,0,0,0,0,0,0,0,0,0,0,0,0,0,0,0,0,0,0,0,0,0,0,0,0,0,0,0,0,0,0,0,0,0,0,0,0,0,0,0,0,0,0,0,0,0,0,0,0,0,0,0,0,0,0,0,0,0,0,0,0,0,0,0,0,0,0,0,0,0,0,0,0,0,0,0,0]
["Bean's Grant","0000823","04100",0,0,0,0,0,0,0,0,0,0,0,0,0,0,0,0,0,0,0,0,0,0,0,0,0,0,0,0,0,0,0,0,0,0,0,0,0,0,0,0,0,0,0,0,0,0,0,0,0,0,0,0,0,0,0,0,0,0,0,0,0,0,0,0,0,0,0,0,0,0,0,0,0,0,0,0,0,0,0,0,0,0,0,0,0,0,0]
["Bean's Purchase","0000828","04260",4,0,0,0,0,0,0,0,0,0,0,0,0,0,0,0,0,0,0,0,0,0,0,0,0,0,0,0,0,0,0,0,0,0,0,0,0,0,0,0,0,0,0,0,0,0,0,0,0,0,0,0,0,0,0,0,0,0,0,0,0,0,0,0,0,0,0,0,0,0,0,0,0,0,0,0,0,0,0,0,0,0,0,0,0,0,0]
["Berlin","0000833","05140",10331,1754,1655,31,70,82,54,166,253,268,331,155,67,57,48,11,25,11,21,0,5,0,0,0,99,382,1754,110,229,248,190,152,176,111,135,290,113,1754,494,34,7,37,52,350,14,500,54,62,101,77,174,32,450,221,121,10,47,12,39,181,165,0,4,0,0,12,86,80,0,0,0,0,6,17,7,0,0,0,0,10,26,26,0,0,0,0,0]
["Cambridge","0000864","08420",10,0,0,0,0,0,0,0,0,0,0,0,0,0,0,0,0,0,0,0,0,0,0,0,0,0,0,0,0,0,0,0,0,0,0,0,0,0,0,0,0,0,0,0,0,0,0,0,0,0,0,0,0,0,0,0,0,0,0,0,0,0,0,0,0,0,0,0,0,0,0,0,0,0,0,0,0,0,0,0,0,0,0,0,0,0,0]
["Carroll","0000869","10100",663,54,50,0,0,0,0,0,0,7,4,7,4,9,7,1,7,2,2,0,0,0,0,0,4,567,54,0,14,2,2,8,7,2,1,14,4,54,11,0,0,0,0,11,0,9,0,0,0,3,6,0,19,7,0,6,4,0,2,8,4,2,2,0,0,0,7,5,0,0,0,0,2,0,0,0,0,0,0,0,0,0,0,0,0,0,0]
["Chandler's Purchase","0000874","11220",0,0,0,0,0,0,0,0,0,0,0,0,0,0,0,0,0,0,0,0,0,0,0,0,0,0,0,0,0,0,0,0,0,0,0,0,0,0,0,0,0,0,0,0,0,0,0,0,0,0,0,0,0,0,0,0,0,0,0,0,0,0,0,0,0,0,0,0,0,0,0,0,0,0,0,0,0,0,0,0,0,0,0,0,0,0,0]
["Clarksville","0000879","13220",294,15,12,0,0,0,0,0,0,0,0,0,3,0,0,4,5,0,0,0,0,0,0,0,3,688,15,0,0,2,7,0,3,0,0,0,3,15,0,0,0,0,0,0,0,0,0,0,0,0,0,0,6,0,3,0,3,0,0,6,2,4,0,0,0,0,3,0,0,0,0,0,3,0,0,0,0,0,0,0,0,0,0,0,0,0,0]
["Colebrook","0000884","13780",2321,359,347,5,11,29,12,17,48,52,49,38,28,8,16,16,9,0,5,4,0,0,0,0,12,400,359,25,52,75,38,53,17,29,19,39,12,359,80,6,7,20,7,40,0,90,11,8,16,8,45,2,91,57,17,12,0,2,3,47,31,6,5,2,0,3,42,40,0,0,0,0,2,5,3,0,0,0,0,2,4,4,0,0,0,0,0]
["Columbia","0000890","13940",750,28,19,3,0,3,0,3,1,0,0,2,0,5,0,0,0,0,2,0,0,0,0,0,9,325,28,6,0,2,5,1,3,0,0,2,9,28,0,0,0,0,0,0,0,16,3,3,1,0,2,7,5,0,2,0,3,0,0,7,5,0,0,0,0,2,0,0,0,0,0,0,0,0,0,0,0,0,0,0,0,0,0,0,0,0,0]
["Crawford's Purchase","0000895","16100",0,0,0,0,0,0,0,0,0,0,0,0,0,0,0,0,0,0,0,0,0,0,0,0,0,0,0,0,0,0,0,0,0,0,0,0,0,0,0,0,0,0,0,0,0,0,0,0,0,0,0,0,0,0,0,0,0,0,0,0,0,0,0,0,0,0,0,0,0,0,0,0,0,0,0,0,0,0,0,0,0,0,0,0,0,0,0]
["Cutt's Grant","0000900","16660",0,0,0,0,0,0,0,0,0,0,0,0,0,0,0,0,0,0,0,0,0,0,0,0,0,0,0,0,0,0,0,0,0,0,0,0,0,0,0,0,0,0,0,0,0,0,0,0,0,0,0,0,0,0,0,0,0,0,0,0,0,0,0,0,0,0,0,0,0,0,0,0,0,0,0,0,0,0,0,0,0,0,0,0,0,0,0]
["Dalton","0000905","16820",927,39,33,0,0,0,2,0,3,0,12,0,0,3,2,6,5,0,0,0,0,0,0,0,6,448,39,4,5,3,5,9,2,3,2,0,6,39,4,0,0,0,0,0,4,8,0,0,3,0,5,0,18,5,5,6,2,0,0,4,2,0,0,0,0,2,5,5,0,0,0,0,0,0,0,0,0,0,0,0,0,0,0,0,0,0,0]
["Dix's Grant","0000910","18340",0,0,0,0,0,0,0,0,0,0,0,0,0,0,0,0,0,0,0,0,0,0,0,0,0,0,0,0,0,0,0,0,0,0,0,0,0,0,0,0,0,0,0,0,0,0,0,0,0,0,0,0,0,0,0,0,0,0,0,0,0,0,0,0,0,0,0,0,0,0,0,0,0,0,0,0,0,0,0,0,0,0,0,0,0,0,0]
["Dixville","0000915","18420",75,0,0,0,0,0,0,0,0,0,0,0,0,0,0,0,0,0,0,0,0,0,0,0,0,0,0,0,0,0,0,0,0,0,0,0,0,0,0,0,0,0,0,0,0,0,0,0,0,0,0,0,0,0,0,0,0,0,0,0,0,0,0,0,0,0,0,0,0,0,0,0,0,0,0,0,0,0,0,0,0,0,0,0,0,0,0]
["Dummer","0000920","19300",309,16,11,0,0,0,0,2,2,0,2,5,0,0,0,0,0,0,0,0,0,0,0,0,5,438,16,0,2,3,0,2,0,0,0,4,5,16,7,0,0,0,0,4,3,2,0,0,2,0,0,0,5,5,0,0,0,0,0,2,0,0,0,0,0,2,0,0,0,0,0,0,0,0,0,0,0,0,0,0,0,0,0,0,0,0,0]
["Errol","0000925","25140",298,13,10,0,0,0,0,0,0,0,5,0,0,5,0,0,0,0,0,0,0,0,0,0,3,500,13,3,5,0,0,2,0,0,0,0,3,13,0,0,0,0,0,0,0,3,0,0,0,0,0,3,2,0,0,2,0,0,0,2,2,0,0,0,0,0,6,6,0,0,0,0,0,0,0,0,0,0,0,0,0,0,0,0,0,0,0]
["Erving's Location","0000930","25180",1,0,0,0,0,0,0,0,0,0,0,0,0,0,0,0,0,0,0,0,0,0,0,0,0,0,0,0,0,0,0,0,0,0,0,0,0,0,0,0,0,0,0,0,0,0,0,0,0,0,0,0,0,0,0,0,0,0,0,0,0,0,0,0,0,0,0,0,0,0,0,0,0,0,0,0,0,0,0,0,0,0,0,0,0,0,0]
["Gorham","0000935","30260",2895,367,352,0,36,14,14,27,16,61,45,46,48,23,0,0,22,0,0,0,0,0,0,0,15,409,367,42,46,66,86,14,21,16,16,45,15,367,87,0,21,14,0,45,7,62,0,15,0,7,32,8,123,66,43,0,14,0,0,66,59,7,0,0,0,0,29,29,0,0,0,0,0,0,0,0,0,0,0,0,0,0,0,0,0,0,0]
["Greens Grant","0000957","31780",0,0,0,0,0,0,0,0,0,0,0,0,0,0,0,0,0,0,0,0,0,0,0,0,0,0,0,0,0,0,0,0,0,0,0,0,0,0,0,0,0,0,0,0,0,0,0,0,0,0,0,0,0,0,0,0,0,0,0,0,0,0,0,0,0,0,0,0,0,0,0,0,0,0,0,0,0,0,0,0,0,0,0,0,0,0,0]
["Hadley's Purchase","0000962","32420",0,0,0,0,0,0,0,0,0,0,0,0,0,0,0,0,0,0,0,0,0,0,0,0,0,0,0,0,0,0,0,0,0,0,0,0,0,0,0,0,0,0,0,0,0,0,0,0,0,0,0,0,0,0,0,0,0,0,0,0,0,0,0,0,0,0,0,0,0,0,0,0,0,0,0,0,0,0,0,0,0,0,0,0,0,0,0]
["Jefferson","0000967","38820",1006,52,47,0,0,0,6,4,9,4,5,4,0,2,7,2,1,1,0,2,0,0,0,0,5,405,52,2,11,1,8,6,8,3,2,6,5,52,12,0,0,0,2,10,0,6,0,2,4,0,0,0,12,2,3,2,4,1,0,14,5,3,0,2,0,4,7,7,0,0,0,0,0,1,0,0,0,0,0,1,0,0,0,0,0,0,0]
["Kilkenny","0000973","39940",0,0,0,0,0,0,0,0,0,0,0,0,0,0,0,0,0,0,0,0,0,0,0,0,0,0,0,0,0,0,0,0,0,0,0,0,0,0,0,0,0,0,0,0,0,0,0,0,0,0,0,0,0,0,0,0,0,0,0,0,0,0,0,0,0,0,0,0,0,0,0,0,0,0,0,0,0,0,0,0,0,0,0,0,0,0,0]
["Lancaster","0000978","40420",3280,378,378,7,27,7,21,13,31,69,45,44,8,30,0,35,6,0,28,7,0,0,0,0,0,416,378,49,44,42,62,98,14,15,10,44,0,378,61,7,7,7,7,33,0,102,8,15,36,7,36,0,98,19,40,39,0,0,0,63,47,0,16,0,0,0,0,0,0,0,0,0,0,40,40,0,0,0,0,0,14,14,0,0,0,0,0]
["Low and Burbank's Grant","0000991","43620",0,0,0,0,0,0,0,0,0,0,0,0,0,0,0,0,0,0,0,0,0,0,0,0,0,0,0,0,0,0,0,0,0,0,0,0,0,0,0,0,0,0,0,0,0,0,0,0,0,0,0,0,0,0,0,0,0,0,0,0,0,0,0,0,0,0,0,0,0,0,0,0,0,0,0,0,0,0,0,0,0,0,0,0,0,0,0]
["Martin's Location","0000996","46020",0,0,0,0,0,0,0,0,0,0,0,0,0,0,0,0,0,0,0,0,0,0,0,0,0,0,0,0,0,0,0,0,0,0,0,0,0,0,0,0,0,0,0,0,0,0,0,0,0,0,0,0,0,0,0,0,0,0,0,0,0,0,0,0,0,0,0,0,0,0,0,0,0,0,0,0,0,0,0,0,0,0,0,0,0,0,0]
["Milan","0001001","47860",1331,50,47,0,0,0,0,0,5,10,3,3,3,4,3,4,7,3,2,0,0,0,0,0,3,542,50,3,4,6,3,16,10,2,0,3,3,50,0,0,0,0,0,0,0,17,0,3,3,6,5,0,20,3,0,13,4,0,0,10,7,0,0,0,0,3,0,0,0,0,0,0,0,0,0,0,0,0,0,0,3,3,0,0,0,0,0]
["Millsfield","0001006","48260",22,0,0,0,0,0,0,0,0,0,0,0,0,0,0,0,0,0,0,0,0,0,0,0,0,0,0,0,0,0,0,0,0,0,0,0,0,0,0,0,0,0,0,0,0,0,0,0,0,0,0,0,0,0,0,0,0,0,0,0,0,0,0,0,0,0,0,0,0,0,0,0,0,0,0,0,0,0,0,0,0,0,0,0,0,0,0]
["Northumberland","0001011","56100",2438,233,222,2,17,12,11,8,26,30,34,21,19,10,19,4,5,0,0,2,2,0,0,0,11,407,233,9,44,34,42,39,10,9,13,22,11,233,42,4,10,10,0,14,4,65,1,10,16,10,28,0,65,27,20,11,0,2,5,47,43,2,2,0,0,0,14,12,0,0,0,0,2,0,0,0,0,0,0,0,0,0,0,0,0,0,0]
["Odell","0001023","57860",5,0,0,0,0,0,0,0,0,0,0,0,0,0,0,0,0,0,0,0,0,0,0,0,0,0,0,0,0,0,0,0,0,0,0,0,0,0,0,0,0,0,0,0,0,0,0,0,0,0,0,0,0,0,0,0,0,0,0,0,0,0,0,0,0,0,0,0,0,0,0,0,0,0,0,0,0,0,0,0,0,0,0,0,0,0,0]
["Pinkham's Grant","0001028","61620",0,0,0,0,0,0,0,0,0,0,0,0,0,0,0,0,0,0,0,0,0,0,0,0,0,0,0,0,0,0,0,0,0,0,0,0,0,0,0,0,0,0,0,0,0,0,0,0,0,0,0,0,0,0,0,0,0,0,0,0,0,0,0,0,0,0,0,0,0,0,0,0,0,0,0,0,0,0,0,0,0,0,0,0,0,0,0]
["Pittsburg","0001033","61780",867,44,33,0,0,0,0,0,0,5,10,2,8,0,1,0,3,0,4,0,0,0,0,0,11,488,44,5,5,8,4,2,2,4,3,0,11,44,2,0,0,0,0,0,2,6,0,0,2,2,2,0,15,2,4,0,0,5,4,13,11,0,0,0,0,2,5,2,0,0,0,0,3,0,0,0,0,0,0,0,3,3,0,0,0,0,0]
["Randolph","0001038","63860",339,14,14,0,0,0,0,2,0,5,0,0,2,0,0,5,0,0,0,0,0,0,0,0,0,450,14,4,3,2,2,0,0,3,0,0,0,14,0,0,0,0,0,0,0,3,0,0,0,0,3,0,0,0,0,0,0,0,0,4,2,2,0,0,0,0,4,4,0,0,0,0,0,3,3,0,0,0,0,0,0,0,0,0,0,0,0]
["Sargent's Purchase","0001043","67860",0,0,0,0,0,0,0,0,0,0,0,0,0,0,0,0,0,0,0,0,0,0,0,0,0,0,0,0,0,0,0,0,0,0,0,0,0,0,0,0,0,0,0,0,0,0,0,0,0,0,0,0,0,0,0,0,0,0,0,0,0,0,0,0,0,0,0,0,0,0,0,0,0,0,0,0,0,0,0,0,0,0,0,0,0,0,0]
["Second College Grant","0001048","68500",0,0,0,0,0,0,0,0,0,0,0,0,0,0,0,0,0,0,0,0,0,0,0,0,0,0,0,0,0,0,0,0,0,0,0,0,0,0,0,0,0,0,0,0,0,0,0,0,0,0,0,0,0,0,0,0,0,0,0,0,0,0,0,0,0,0,0,0,0,0,0,0,0,0,0,0,0,0,0,0,0,0,0,0,0,0,0]
["Shelburne","0001053","68980",379,20,20,0,0,0,0,0,6,0,5,3,0,3,0,0,0,3,0,0,0,0,0,0,0,440,20,0,9,0,3,6,2,0,0,0,0,20,0,0,0,0,0,0,0,8,0,3,3,2,0,0,3,0,0,3,0,0,0,6,6,0,0,0,0,0,3,3,0,0,0,0,0,0,0,0,0,0,0,0,0,0,0,0,0,0,0]
["Stark","0001058","73060",516,21,16,0,0,0,0,0,0,3,0,5,0,3,0,0,2,0,3,0,0,0,0,0,5,525,21,0,2,5,3,3,0,3,0,0,5,21,2,0,0,0,0,0,2,3,0,0,0,0,3,0,6,0,3,3,0,0,0,10,7,0,0,0,0,3,0,0,0,0,0,0,0,0,0,0,0,0,0,0,0,0,0,0,0,0,0]
["Stewartstown","0001063","73380",1012,86,71,2,2,5,5,6,10,11,11,4,9,2,0,2,0,0,0,0,2,0,0,0,15,375,86,7,8,7,14,4,7,5,5,13,16,86,14,0,0,2,5,4,3,34,4,5,2,2,19,2,21,12,7,0,0,0,2,4,4,0,0,0,0,0,10,2,2,0,0,0,6,3,0,0,0,0,0,3,0,0,0,0,0,0,0]
["Stratford","0001068","74180",942,123,115,5,22,3,6,11,9,3,11,8,25,6,0,0,6,0,0,0,0,0,0,0,8,375,123,15,17,17,21,11,0,16,3,15,8,123,33,5,0,6,0,20,2,31,5,6,3,0,14,3,25,14,9,2,0,0,0,29,20,6,0,0,0,3,5,5,0,0,0,0,0,0,0,0,0,0,0,0,0,0,0,0,0,0,0]
["Success","0001073","74500",2,0,0,0,0,0,0,0,0,0,0,0,0,0,0,0,0,0,0,0,0,0,0,0,0,0,0,0,0,0,0,0,0,0,0,0,0,0,0,0,0,0,0,0,0,0,0,0,0,0,0,0,0,0,0,0,0,0,0,0,0,0,0,0,0,0,0,0,0,0,0,0,0,0,0,0,0,0,0,0,0,0,0,0,0,0,0]
["Thompson and Meserves Purchase","0001078","76580",0,0,0,0,0,0,0,0,0,0,0,0,0,0,0,0,0,0,0,0,0,0,0,0,0,0,0,0,0,0,0,0,0,0,0,0,0,0,0,0,0,0,0,0,0,0,0,0,0,0,0,0,0,0,0,0,0,0,0,0,0,0,0,0,0,0,0,0,0,0,0,0,0,0,0,0,0,0,0,0,0,0,0,0,0,0,0]
["Wentworth's Location","0001083","80740",44,5,3,0,0,0,0,0,0,0,0,0,3,0,0,0,0,0,0,0,0,0,0,0,2,525,5,0,3,0,0,0,0,0,0,0,2,5,0,0,0,0,0,0,0,0,0,0,0,0,0,0,0,0,0,0,0,0,0,3,3,0,0,0,0,0,0,0,0,0,0,0,0,0,0,0,0,0,0,0,2,0,0,0,0,0,2]
["Whitefield","0001088","84420",2038,229,219,2,16,13,19,18,17,28,27,15,26,7,7,7,2,8,5,0,2,0,0,0,10,394,229,16,18,42,42,31,19,11,12,28,10,229,61,4,5,12,10,28,2,59,4,14,17,4,18,2,57,26,16,2,5,5,3,28,18,7,0,0,0,3,18,18,0,0,0,0,0,0,0,0,0,0,0,0,6,6,0,0,0,0,0]
[]
[]
[]
[]
[]
["Census 2000 SummaryFile3 Sample Data  -  SF3TownQry8HousingCostB"]
[]
["TOWN_NAME","LOGRECNO","COUSUB","TotalPop","H74SpecOwnerOccHU","H74OOHU<10k","H74OOHU10to15k","H74OOHU15to20k","H74OOHU20to25k","H74OOHU25to30k","H74OOHU30to35k","H74OOHU35to40k","H74OOHU40to50k","H74OOHU50to60k","H74OOHU60to70k","H74OOHU70to80k","H74OOHU80to90k","H74OOHU90to100k","H74OOHU100to125k","H74OOHU125to150k","H74OOHU150to175k","H74OOHU175to200k","H74OOHU200to250k","H74OOHU250to300k","H74OOHU300to400k","H74OOHU400to500k","H74OOHU500to750k","H74OOHU750to1000k","H74OOHU1000kmore","H76OOHUMedianVal","H84OwnerOccHU","H84AllOOHU<10k","H84AllOOHU10to15k","H84AllOOHU15to20k","H84AllOOHU20to25k","H84AllOOHU25to30k","H84AllOOHU30to35k","H84AllOOHU35to40k","H84AllOOHU40to50k","H84AllOOHU50to60k","H84AllOOHU60to70k","H84AllOOHU70to80k","H84AllOOHU80to90k","H84AllOOHU90to100k","H84AllOOHU100to125k","H84AllOOHU125to150k","H84AllOOHU150to175k","H84AllOOHU175to200k","H84AllOOHU200to250k","H84AllOOHU250to300k","H84AllOOHU300to400k","H84AllOOHU400to500k","H84AllOOHU500to750k","H84AllOOHU750to1000k","H84AllOOHU1000kmore","H85OOHUMedVal","H90SOOHU","H90HUwMorgt","H90HUwMtgHC<200","H90HUwMtgHC200to300","H90HUwMtgHC300to400","H90HUwMtgHC400to500","H90HUwMtgHC500to600","H90HUwMtgHC600to700","H90HUwMtgHC700to800","H90HUwMtgHC800to900","H90HUwMtgHC900to1000","H90HUwMtgHC1000to1250","H90HUwMtgHC1250to1500","H90HUwMtgHC1500to2000","H90HUwMtgHC2000to2500","H90HUwMtgHC2500to3000","H90HUwMtgHC3000orMore","H90HUwOutMorgt","H90HUwOutMtgHC<100","H90HUwOutMtgHC100to150","H90HUwOutMtgHC150to200","H90HUwOutMtgHC200to250","H90HUwOutMtgHC250to300","H90HUwOutMtgHC300to350","H90HUwOutMtgHC350to400","H90HUwOutMtgHC400to500","H90HUwOutMtgHC500to600","H90HUwOutMtgHC600to700","H90HUwOutMtgHC700to800","H90HUwOutMtgHC800to900","H90HUwOutMtgHC900to1000","H90HUwOutMtgHC1000orMore","H91MedianOCHUwMtg","H91MedianOCHUwOutMtg","H94SpecOOHU","H94HUwMortg","H94HUwMtgHC<10pct","H94HUwMtgHC10to15pct","H94HUwMtgHC15to20pct","H94HUwMtgHC20to25pct","H94HUwMtgHC25to30pct","H94HUwMtgHC30to35pct","H94HUwMtgHC35to40pct","H94HUwMtgHC40to50pct","H94HUwMtgHC50pctOrMore","H94HUwMtgHCpctNotComp","H94HUWOutMortg","H94HUWOutMortgHC<10pct","H94HUWOutMortgHC10to15pct","H94HUWOutMortgHC15to20pct","H94HUWOutMortgHC20to25pct","H94HUWOutMortgHC25to30pct","H94HUWOutMortgHC30to35pct","H94HUWOutMortgHC35to40pct","H94HUWOutMortgHC40to50pct","H94HUWOutMortgHC50pctOrMore","H94HUWOutMortgHCpctNotComp","H97SpecifOwnOccHU","H97SOOHUInc<10k","H97SOOHUInc<10kHC<20pct","H97SOOHUInc<10kHC20to25pct","H97SOOHUInc<10kHC25to30pct","H97SOOHUInc<10kHC30to35pct","H97SOOHUInc<10kHC>35pct","H97SOOHUInc<10kHCpctNotComput","H97SOOHUInc10to20k","H97SOOHUInc10to20kHC<20pct","H97SOOHUInc10to20kHC20to25pct","H97SOOHUInc10to20kHC25to30pct","H97SOOHUInc10to20kHC30to35pct","H97SOOHUInc10to20kHC>35pct","H97SOOHUInc10to20kHCpctNotComput","H97SOOHUInc20to35k","H97SOOHUInc20to35kRC<20pct","H97SOOHUInc20to35kRC20to25pct","H97SOOHUInc20to35kRC25to30pct","H97SOOHUInc20to35kRC30to35pct","H97SOOHUInc20to35kRC>35pct","H97SOOHUInc20to35kRCpctNotComput","H97SOOHUInc35to50k","H97SOOHUInc35to50kRC<20pct","H97SOOHUInc35to50kRC20to25pct","H97SOOHUInc35to50kRC25to30pct","H97SOOHUInc35to50kRC30to35pct","H97SOOHUInc35to50kRC>35pct","H97SOOHUInc35to50kRCpctNotCompute","H97SOOHUInc50to75k","H97SOOHUInc50to75kRC<20pct","H97SOOHUInc50to75kRC20to25pct","H97SOOHUInc50to75kRC25to30pct","H97SOOHUInc50to75kRC30to35pct","H97SOOHUInc50to75kRC>35pct","H97SOOHUInc50to75kRCpctNotComput","H97SOOHUInc75to100k","H97SOOHUInc75to100kRC<20pct","H97SOOHUInc75to100kRC20to25pct","H97SOOHUInc75to100kRC25to30pct","H97SOOHUInc75to100kRC30to35pct","H97SOOHUInc75to100kRC>35pct","H97SOOHUInc75to100kRCpctNotCompute","H97SOOHUInc100to150k","H97SOOHUInc100to150kRC<20pct","H97SOOHUInc100to150kRC20to25pct","H97SOOHUInc100to150kRC25to30pct","H97SOOHUInc100to150kRC30to35pct","H97SOOHUInc100to150kRC>35pct","H97SOOHUInc100to150kRCpctNotCompute","H97SOOHUInc>150k","H97SOOHUInc>150kRC<20pct","H97SOOHUInc>150kRC20to25pct","H97SOOHUInc>150kRC25to30pct","H97SOOHUInc>150kRC30to35pct","H97SOOHUInc>150kRC>35pct","H97SOOHUInc>150kRCpctNotCompute"]
["Atkinson and Gilmanton Grant","0000818","02420",12,0,0,0,0,0,0,0,0,0,0,0,0,0,0,0,0,0,0,0,0,0,0,0,0,0,0,0,0,0,0,0,0,0,0,0,0,0,0,0,0,0,0,0,0,0,0,0,0,0,0,0,0,0,0,0,0,0,0,0,0,0,0,0,0,0,0,0,0,0,0,0,0,0,0,0,0,0,0,0,0,0,0,0,0,0,0,0,0,0,0,0,0,0,0,0,0,0,0,0,0,0,0,0,0,0,0,0,0,0,0,0,0,0,0,0,0,0,0,0,0,0,0,0,0,0,0,0,0,0,0,0,0,0,0,0,0,0,0,0,0,0,0,0,0,0,0,0,0,0,0,0,0,0,0,0,0,0,0,0,0,0,0,0,0,0,0]
["Bean's Grant","0000823","04100",0,0,0,0,0,0,0,0,0,0,0,0,0,0,0,0,0,0,0,0,0,0,0,0,0,0,0,0,0,0,0,0,0,0,0,0,0,0,0,0,0,0,0,0,0,0,0,0,0,0,0,0,0,0,0,0,0,0,0,0,0,0,0,0,0,0,0,0,0,0,0,0,0,0,0,0,0,0,0,0,0,0,0,0,0,0,0,0,0,0,0,0,0,0,0,0,0,0,0,0,0,0,0,0,0,0,0,0,0,0,0,0,0,0,0,0,0,0,0,0,0,0,0,0,0,0,0,0,0,0,0,0,0,0,0,0,0,0,0,0,0,0,0,0,0,0,0,0,0,0,0,0,0,0,0,0,0,0,0,0,0,0,0,0,0,0,0]
["Bean's Purchase","0000828","04260",4,0,0,0,0,0,0,0,0,0,0,0,0,0,0,0,0,0,0,0,0,0,0,0,0,0,0,0,0,0,0,0,0,0,0,0,0,0,0,0,0,0,0,0,0,0,0,0,0,0,0,0,0,0,0,0,0,0,0,0,0,0,0,0,0,0,0,0,0,0,0,0,0,0,0,0,0,0,0,0,0,0,0,0,0,0,0,0,0,0,0,0,0,0,0,0,0,0,0,0,0,0,0,0,0,0,0,0,0,0,0,0,0,0,0,0,0,0,0,0,0,0,0,0,0,0,0,0,0,0,0,0,0,0,0,0,0,0,0,0,0,0,0,0,0,0,0,0,0,0,0,0,0,0,0,0,0,0,0,0,0,0,0,0,0,0,0]
["Berlin","0000833","05140",10331,2110,0,0,29,80,49,102,177,314,335,389,294,146,89,64,29,8,0,0,5,0,0,0,0,0,59100,2788,14,31,43,126,81,165,224,387,431,519,349,168,101,71,29,13,6,0,25,0,5,0,0,0,57500,2110,1119,0,0,20,83,172,149,197,215,98,102,59,24,0,0,0,991,0,0,29,46,74,181,240,310,99,7,0,0,0,5,769,384,2110,1119,47,236,366,193,89,45,34,44,51,14,991,213,272,131,115,76,48,29,48,46,13,2110,139,0,8,0,16,88,27,268,37,29,58,43,101,0,384,181,106,63,6,28,0,528,339,103,23,28,35,0,586,508,57,21,0,0,0,135,130,5,0,0,0,0,61,61,0,0,0,0,0,9,9,0,0,0,0,0]
["Cambridge","0000864","08420",10,0,0,0,0,0,0,0,0,0,0,0,0,0,0,0,0,0,0,0,0,0,0,0,0,0,0,0,0,0,0,0,0,0,0,0,0,0,0,0,0,0,0,0,0,0,0,0,0,0,0,0,0,0,0,0,0,0,0,0,0,0,0,0,0,0,0,0,0,0,0,0,0,0,0,0,0,0,0,0,0,0,0,0,0,0,0,0,0,0,0,0,0,0,0,0,0,0,0,0,0,0,0,0,0,0,0,0,0,0,0,0,0,0,0,0,0,0,0,0,0,0,0,0,0,0,0,0,0,0,0,0,0,0,0,0,0,0,0,0,0,0,0,0,0,0,0,0,0,0,0,0,0,0,0,0,0,0,0,0,0,0,0,0,0,0,0]
["Carroll","0000869","10100",663,163,0,0,0,0,0,2,0,4,11,12,17,31,25,7,15,18,13,4,0,2,0,2,0,0,91800,226,0,0,0,6,0,4,0,4,13,14,25,38,25,19,21,20,20,4,5,5,1,2,0,0,93600,163,100,0,2,2,6,12,11,13,20,12,10,6,2,2,0,2,63,0,0,0,11,10,9,16,9,4,4,0,0,0,0,820,355,163,100,5,15,16,22,11,13,4,5,9,0,63,34,14,4,5,0,0,3,0,3,0,163,10,0,0,0,0,10,0,9,0,0,2,0,7,0,43,16,9,2,11,5,0,41,22,10,7,2,0,0,38,32,4,0,0,2,0,16,12,4,0,0,0,0,4,4,0,0,0,0,0,2,2,0,0,0,0,0]
["Chandler's Purchase","0000874","11220",0,0,0,0,0,0,0,0,0,0,0,0,0,0,0,0,0,0,0,0,0,0,0,0,0,0,0,0,0,0,0,0,0,0,0,0,0,0,0,0,0,0,0,0,0,0,0,0,0,0,0,0,0,0,0,0,0,0,0,0,0,0,0,0,0,0,0,0,0,0,0,0,0,0,0,0,0,0,0,0,0,0,0,0,0,0,0,0,0,0,0,0,0,0,0,0,0,0,0,0,0,0,0,0,0,0,0,0,0,0,0,0,0,0,0,0,0,0,0,0,0,0,0,0,0,0,0,0,0,0,0,0,0,0,0,0,0,0,0,0,0,0,0,0,0,0,0,0,0,0,0,0,0,0,0,0,0,0,0,0,0,0,0,0,0,0,0]
["Clarksville","0000879","13220",294,72,0,0,0,0,0,0,0,6,14,6,13,5,13,0,4,5,6,0,0,0,0,0,0,0,77700,106,3,0,3,0,0,4,0,10,14,8,13,11,16,2,9,5,8,0,0,0,0,0,0,0,78500,72,40,0,0,0,0,7,16,7,0,2,6,0,2,0,0,0,32,0,0,5,4,4,7,4,8,0,0,0,0,0,0,681,321,72,40,0,6,19,6,0,2,2,5,0,0,32,19,7,2,0,0,2,0,0,2,0,72,2,0,0,0,0,2,0,7,2,0,0,2,3,0,16,10,4,0,0,2,0,23,21,0,0,2,0,0,17,13,2,0,0,2,0,5,5,0,0,0,0,0,2,2,0,0,0,0,0,0,0,0,0,0,0,0]
["Colebrook","0000884","13780",2321,370,0,0,5,4,0,2,13,31,38,67,42,65,33,20,28,15,2,2,0,0,3,0,0,0,76000,672,11,7,28,14,14,10,24,39,50,84,71,88,41,48,59,41,8,12,7,2,7,4,3,0,77700,370,192,0,0,2,13,29,21,31,25,27,38,2,4,0,0,0,178,0,2,4,22,32,41,34,33,0,8,0,2,0,0,800,335,370,192,12,41,33,40,18,15,13,2,18,0,178,55,33,24,16,14,2,6,6,22,0,370,40,0,0,2,0,38,0,50,10,10,12,5,13,0,72,27,9,8,12,16,0,52,32,14,6,0,0,0,112,85,23,4,0,0,0,24,24,0,0,0,0,0,16,16,0,0,0,0,0,4,4,0,0,0,0,0]
["Columbia","0000890","13940",750,129,0,3,2,0,2,2,0,13,12,10,14,38,8,13,6,2,2,2,0,0,0,0,0,0,81700,257,10,9,7,0,2,5,8,25,14,21,25,51,14,26,9,6,11,14,0,0,0,0,0,0,80500,129,84,0,0,2,8,20,13,10,11,7,11,2,0,0,0,0,45,0,0,8,12,8,11,0,4,2,0,0,0,0,0,692,266,129,84,10,12,12,12,12,6,3,6,11,0,45,17,8,2,8,0,0,3,5,2,0,129,12,0,0,0,0,12,0,21,0,4,0,0,17,0,23,8,6,2,6,1,0,32,16,8,8,0,0,0,22,18,2,2,0,0,0,13,13,0,0,0,0,0,6,6,0,0,0,0,0,0,0,0,0,0,0,0]
["Crawford's Purchase","0000895","16100",0,0,0,0,0,0,0,0,0,0,0,0,0,0,0,0,0,0,0,0,0,0,0,0,0,0,0,0,0,0,0,0,0,0,0,0,0,0,0,0,0,0,0,0,0,0,0,0,0,0,0,0,0,0,0,0,0,0,0,0,0,0,0,0,0,0,0,0,0,0,0,0,0,0,0,0,0,0,0,0,0,0,0,0,0,0,0,0,0,0,0,0,0,0,0,0,0,0,0,0,0,0,0,0,0,0,0,0,0,0,0,0,0,0,0,0,0,0,0,0,0,0,0,0,0,0,0,0,0,0,0,0,0,0,0,0,0,0,0,0,0,0,0,0,0,0,0,0,0,0,0,0,0,0,0,0,0,0,0,0,0,0,0,0,0,0,0]
["Cutt's Grant","0000900","16660",0,0,0,0,0,0,0,0,0,0,0,0,0,0,0,0,0,0,0,0,0,0,0,0,0,0,0,0,0,0,0,0,0,0,0,0,0,0,0,0,0,0,0,0,0,0,0,0,0,0,0,0,0,0,0,0,0,0,0,0,0,0,0,0,0,0,0,0,0,0,0,0,0,0,0,0,0,0,0,0,0,0,0,0,0,0,0,0,0,0,0,0,0,0,0,0,0,0,0,0,0,0,0,0,0,0,0,0,0,0,0,0,0,0,0,0,0,0,0,0,0,0,0,0,0,0,0,0,0,0,0,0,0,0,0,0,0,0,0,0,0,0,0,0,0,0,0,0,0,0,0,0,0,0,0,0,0,0,0,0,0,0,0,0,0,0,0]
["Dalton","0000905","16820",927,141,0,0,3,3,0,6,3,15,12,20,36,14,16,2,3,3,2,0,0,0,0,0,0,3,72400,330,7,8,18,25,18,19,13,24,26,25,40,19,32,20,14,6,5,0,3,2,0,0,3,3,62800,141,86,0,0,6,3,12,15,16,12,8,14,0,0,0,0,0,55,0,0,3,15,10,11,6,8,2,0,0,0,0,0,744,298,141,86,8,20,15,17,11,6,3,0,6,0,55,16,11,14,2,3,4,0,3,2,0,141,11,0,0,0,0,11,0,22,12,0,3,7,0,0,24,10,8,0,3,3,0,32,16,5,11,0,0,0,27,21,6,0,0,0,0,18,18,0,0,0,0,0,7,7,0,0,0,0,0,0,0,0,0,0,0,0]
["Dix's Grant","0000910","18340",0,0,0,0,0,0,0,0,0,0,0,0,0,0,0,0,0,0,0,0,0,0,0,0,0,0,0,0,0,0,0,0,0,0,0,0,0,0,0,0,0,0,0,0,0,0,0,0,0,0,0,0,0,0,0,0,0,0,0,0,0,0,0,0,0,0,0,0,0,0,0,0,0,0,0,0,0,0,0,0,0,0,0,0,0,0,0,0,0,0,0,0,0,0,0,0,0,0,0,0,0,0,0,0,0,0,0,0,0,0,0,0,0,0,0,0,0,0,0,0,0,0,0,0,0,0,0,0,0,0,0,0,0,0,0,0,0,0,0,0,0,0,0,0,0,0,0,0,0,0,0,0,0,0,0,0,0,0,0,0,0,0,0,0,0,0,0]
["Dixville","0000915","18420",75,0,0,0,0,0,0,0,0,0,0,0,0,0,0,0,0,0,0,0,0,0,0,0,0,0,0,0,0,0,0,0,0,0,0,0,0,0,0,0,0,0,0,0,0,0,0,0,0,0,0,0,0,0,0,0,0,0,0,0,0,0,0,0,0,0,0,0,0,0,0,0,0,0,0,0,0,0,0,0,0,0,0,0,0,0,0,0,0,0,0,0,0,0,0,0,0,0,0,0,0,0,0,0,0,0,0,0,0,0,0,0,0,0,0,0,0,0,0,0,0,0,0,0,0,0,0,0,0,0,0,0,0,0,0,0,0,0,0,0,0,0,0,0,0,0,0,0,0,0,0,0,0,0,0,0,0,0,0,0,0,0,0,0,0,0,0]
["Dummer","0000920","19300",309,73,0,0,2,0,0,0,4,6,2,8,15,20,4,10,0,0,0,2,0,0,0,0,0,0,79700,129,0,0,5,0,4,0,6,15,2,10,20,33,6,17,0,0,2,7,0,0,0,2,0,0,80800,73,45,0,0,2,7,4,3,5,13,7,2,0,2,0,0,0,28,0,4,6,9,7,2,0,0,0,0,0,0,0,0,812,222,73,45,3,11,18,2,5,0,4,0,2,0,28,9,6,2,2,5,0,2,0,0,2,73,4,0,0,0,0,2,2,13,6,2,5,0,0,0,12,6,0,0,0,6,0,15,10,0,5,0,0,0,26,24,2,0,0,0,0,3,3,0,0,0,0,0,0,0,0,0,0,0,0,0,0,0,0,0,0,0]
["Errol","0000925","25140",298,75,0,0,0,0,0,2,0,2,13,9,6,5,7,20,9,0,0,2,0,0,0,0,0,0,90700,128,2,7,4,0,2,4,2,7,13,9,10,7,14,22,9,2,0,4,0,5,5,0,0,0,85700,75,28,0,0,0,6,9,3,4,0,4,2,0,0,0,0,0,47,0,2,5,14,13,11,2,0,0,0,0,0,0,0,589,260,75,28,3,0,9,4,0,6,0,2,4,0,47,20,12,2,6,0,0,2,5,0,0,75,9,0,2,0,0,7,0,14,2,4,0,2,6,0,14,12,0,0,2,0,0,14,14,0,0,0,0,0,19,13,4,0,2,0,0,0,0,0,0,0,0,0,0,0,0,0,0,0,0,5,5,0,0,0,0,0]
["Erving's Location","0000930","25180",1,0,0,0,0,0,0,0,0,0,0,0,0,0,0,0,0,0,0,0,0,0,0,0,0,0,0,0,0,0,0,0,0,0,0,0,0,0,0,0,0,0,0,0,0,0,0,0,0,0,0,0,0,0,0,0,0,0,0,0,0,0,0,0,0,0,0,0,0,0,0,0,0,0,0,0,0,0,0,0,0,0,0,0,0,0,0,0,0,0,0,0,0,0,0,0,0,0,0,0,0,0,0,0,0,0,0,0,0,0,0,0,0,0,0,0,0,0,0,0,0,0,0,0,0,0,0,0,0,0,0,0,0,0,0,0,0,0,0,0,0,0,0,0,0,0,0,0,0,0,0,0,0,0,0,0,0,0,0,0,0,0,0,0,0,0,0]
["Gorham","0000935","30260",2895,646,0,6,0,7,0,0,36,45,81,89,64,87,59,89,48,23,6,6,0,0,0,0,0,0,79200,919,46,22,13,26,12,23,42,71,105,115,83,106,65,95,60,23,6,6,0,0,0,0,0,0,68700,646,339,0,0,3,11,6,52,48,54,24,113,17,11,0,0,0,307,0,0,19,27,30,71,53,70,25,6,0,6,0,0,892,356,646,339,25,40,86,68,21,48,11,17,23,0,307,64,50,41,48,24,21,7,17,35,0,646,46,0,0,0,0,46,0,100,6,31,12,21,30,0,113,47,11,6,26,23,0,150,59,41,27,12,11,0,157,116,31,0,10,0,0,53,51,2,0,0,0,0,27,27,0,0,0,0,0,0,0,0,0,0,0,0]
["Greens Grant","0000957","31780",0,0,0,0,0,0,0,0,0,0,0,0,0,0,0,0,0,0,0,0,0,0,0,0,0,0,0,0,0,0,0,0,0,0,0,0,0,0,0,0,0,0,0,0,0,0,0,0,0,0,0,0,0,0,0,0,0,0,0,0,0,0,0,0,0,0,0,0,0,0,0,0,0,0,0,0,0,0,0,0,0,0,0,0,0,0,0,0,0,0,0,0,0,0,0,0,0,0,0,0,0,0,0,0,0,0,0,0,0,0,0,0,0,0,0,0,0,0,0,0,0,0,0,0,0,0,0,0,0,0,0,0,0,0,0,0,0,0,0,0,0,0,0,0,0,0,0,0,0,0,0,0,0,0,0,0,0,0,0,0,0,0,0,0,0,0,0]
["Hadley's Purchase","0000962","32420",0,0,0,0,0,0,0,0,0,0,0,0,0,0,0,0,0,0,0,0,0,0,0,0,0,0,0,0,0,0,0,0,0,0,0,0,0,0,0,0,0,0,0,0,0,0,0,0,0,0,0,0,0,0,0,0,0,0,0,0,0,0,0,0,0,0,0,0,0,0,0,0,0,0,0,0,0,0,0,0,0,0,0,0,0,0,0,0,0,0,0,0,0,0,0,0,0,0,0,0,0,0,0,0,0,0,0,0,0,0,0,0,0,0,0,0,0,0,0,0,0,0,0,0,0,0,0,0,0,0,0,0,0,0,0,0,0,0,0,0,0,0,0,0,0,0,0,0,0,0,0,0,0,0,0,0,0,0,0,0,0,0,0,0,0,0,0]
["Jefferson","0000967","38820",1006,168,0,2,0,0,0,2,2,6,2,9,33,29,32,11,8,9,5,8,5,2,3,0,0,0,89700,340,0,8,0,6,4,4,11,22,15,13,49,36,41,25,24,17,17,16,20,5,5,0,0,2,90500,168,109,0,0,3,8,13,13,8,25,12,19,2,0,2,4,0,59,0,0,2,0,9,6,20,9,11,0,2,0,0,0,838,381,168,109,11,18,42,15,2,8,0,4,7,2,59,18,15,10,5,0,0,0,7,4,0,168,11,0,0,0,0,9,2,11,2,0,0,0,9,0,27,11,5,2,5,4,0,42,30,9,0,3,0,0,49,47,2,0,0,0,0,8,8,0,0,0,0,0,10,10,0,0,0,0,0,10,6,4,0,0,0,0]
["Kilkenny","0000973","39940",0,0,0,0,0,0,0,0,0,0,0,0,0,0,0,0,0,0,0,0,0,0,0,0,0,0,0,0,0,0,0,0,0,0,0,0,0,0,0,0,0,0,0,0,0,0,0,0,0,0,0,0,0,0,0,0,0,0,0,0,0,0,0,0,0,0,0,0,0,0,0,0,0,0,0,0,0,0,0,0,0,0,0,0,0,0,0,0,0,0,0,0,0,0,0,0,0,0,0,0,0,0,0,0,0,0,0,0,0,0,0,0,0,0,0,0,0,0,0,0,0,0,0,0,0,0,0,0,0,0,0,0,0,0,0,0,0,0,0,0,0,0,0,0,0,0,0,0,0,0,0,0,0,0,0,0,0,0,0,0,0,0,0,0,0,0,0]
["Lancaster","0000978","40420",3280,575,0,0,0,0,0,0,5,46,105,105,69,75,37,58,35,34,0,6,0,0,0,0,0,0,73800,891,28,36,16,0,0,6,5,53,105,117,115,90,44,76,70,55,20,6,27,22,0,0,0,0,76900,575,373,0,0,0,10,56,31,73,54,56,51,22,20,0,0,0,202,0,5,0,16,35,33,45,23,24,11,10,0,0,0,831,363,575,373,20,104,54,56,60,36,20,12,11,0,202,44,62,22,28,10,0,10,0,26,0,575,37,0,0,0,0,37,0,48,0,20,4,0,24,0,138,63,4,31,28,12,0,114,42,40,32,0,0,0,120,91,20,3,0,6,0,39,31,0,0,8,0,0,76,76,0,0,0,0,0,3,3,0,0,0,0,0]
["Low and Burbank's Grant","0000991","43620",0,0,0,0,0,0,0,0,0,0,0,0,0,0,0,0,0,0,0,0,0,0,0,0,0,0,0,0,0,0,0,0,0,0,0,0,0,0,0,0,0,0,0,0,0,0,0,0,0,0,0,0,0,0,0,0,0,0,0,0,0,0,0,0,0,0,0,0,0,0,0,0,0,0,0,0,0,0,0,0,0,0,0,0,0,0,0,0,0,0,0,0,0,0,0,0,0,0,0,0,0,0,0,0,0,0,0,0,0,0,0,0,0,0,0,0,0,0,0,0,0,0,0,0,0,0,0,0,0,0,0,0,0,0,0,0,0,0,0,0,0,0,0,0,0,0,0,0,0,0,0,0,0,0,0,0,0,0,0,0,0,0,0,0,0,0,0]
["Martin's Location","0000996","46020",0,0,0,0,0,0,0,0,0,0,0,0,0,0,0,0,0,0,0,0,0,0,0,0,0,0,0,0,0,0,0,0,0,0,0,0,0,0,0,0,0,0,0,0,0,0,0,0,0,0,0,0,0,0,0,0,0,0,0,0,0,0,0,0,0,0,0,0,0,0,0,0,0,0,0,0,0,0,0,0,0,0,0,0,0,0,0,0,0,0,0,0,0,0,0,0,0,0,0,0,0,0,0,0,0,0,0,0,0,0,0,0,0,0,0,0,0,0,0,0,0,0,0,0,0,0,0,0,0,0,0,0,0,0,0,0,0,0,0,0,0,0,0,0,0,0,0,0,0,0,0,0,0,0,0,0,0,0,0,0,0,0,0,0,0,0,0]
["Milan","0001001","47860",1331,329,0,0,3,3,0,6,5,15,34,37,56,36,48,39,16,21,5,2,3,0,0,0,0,0,81500,471,3,9,8,6,7,6,16,23,41,51,61,55,59,52,24,30,9,8,3,0,0,0,0,0,80800,329,182,0,0,3,17,16,28,34,31,21,24,3,5,0,0,0,147,3,2,7,25,12,33,24,34,7,0,0,0,0,0,779,337,329,182,2,41,41,41,22,12,2,6,9,6,147,50,41,24,14,7,2,3,2,2,2,329,18,0,0,0,0,10,8,36,7,11,10,2,6,0,63,37,8,6,4,8,0,85,49,17,13,6,0,0,95,74,19,0,2,0,0,19,19,0,0,0,0,0,7,7,0,0,0,0,0,6,6,0,0,0,0,0]
["Millsfield","0001006","48260",22,2,0,0,0,0,0,0,0,0,0,0,2,0,0,0,0,0,0,0,0,0,0,0,0,0,75000,4,0,0,0,0,0,0,0,0,0,0,2,0,0,0,2,0,0,0,0,0,0,0,0,0,102500,2,2,0,0,0,0,0,2,0,0,0,0,0,0,0,0,0,0,0,0,0,0,0,0,0,0,0,0,0,0,0,0,650,0,2,2,0,2,0,0,0,0,0,0,0,0,0,0,0,0,0,0,0,0,0,0,0,2,0,0,0,0,0,0,0,0,0,0,0,0,0,0,0,0,0,0,0,0,0,0,0,0,0,0,0,0,2,2,0,0,0,0,0,0,0,0,0,0,0,0,0,0,0,0,0,0,0,0,0,0,0,0,0,0]
["Northumberland","0001011","56100",2438,545,10,8,12,13,17,23,32,60,70,61,107,59,24,35,7,5,0,0,0,0,2,0,0,0,64500,747,16,27,27,32,27,36,47,71,85,69,115,73,30,53,16,13,0,4,0,2,4,0,0,0,60800,545,292,0,0,12,35,70,52,49,30,16,17,4,4,3,0,0,253,2,2,6,61,63,52,38,20,7,2,0,0,0,0,656,294,545,292,23,62,92,47,10,28,9,15,6,0,253,75,54,40,26,21,11,4,9,11,2,545,35,2,0,4,3,24,2,80,19,24,17,8,12,0,140,84,21,1,21,13,0,111,80,19,7,5,0,0,133,118,9,2,2,2,0,32,29,0,0,0,3,0,10,10,0,0,0,0,0,4,4,0,0,0,0,0]
["Odell","0001023","57860",5,0,0,0,0,0,0,0,0,0,0,0,0,0,0,0,0,0,0,0,0,0,0,0,0,0,0,0,0,0,0,0,0,0,0,0,0,0,0,0,0,0,0,0,0,0,0,0,0,0,0,0,0,0,0,0,0,0,0,0,0,0,0,0,0,0,0,0,0,0,0,0,0,0,0,0,0,0,0,0,0,0,0,0,0,0,0,0,0,0,0,0,0,0,0,0,0,0,0,0,0,0,0,0,0,0,0,0,0,0,0,0,0,0,0,0,0,0,0,0,0,0,0,0,0,0,0,0,0,0,0,0,0,0,0,0,0,0,0,0,0,0,0,0,0,0,0,0,0,0,0,0,0,0,0,0,0,0,0,0,0,0,0,0,0,0,0]
["Pinkham's Grant","0001028","61620",0,0,0,0,0,0,0,0,0,0,0,0,0,0,0,0,0,0,0,0,0,0,0,0,0,0,0,0,0,0,0,0,0,0,0,0,0,0,0,0,0,0,0,0,0,0,0,0,0,0,0,0,0,0,0,0,0,0,0,0,0,0,0,0,0,0,0,0,0,0,0,0,0,0,0,0,0,0,0,0,0,0,0,0,0,0,0,0,0,0,0,0,0,0,0,0,0,0,0,0,0,0,0,0,0,0,0,0,0,0,0,0,0,0,0,0,0,0,0,0,0,0,0,0,0,0,0,0,0,0,0,0,0,0,0,0,0,0,0,0,0,0,0,0,0,0,0,0,0,0,0,0,0,0,0,0,0,0,0,0,0,0,0,0,0,0,0]
["Pittsburg","0001033","61780",867,236,0,0,5,2,0,5,4,5,38,15,35,52,16,20,8,17,5,0,0,9,0,0,0,0,81700,336,2,3,5,2,0,10,4,13,38,24,42,52,25,42,19,26,10,2,3,12,0,2,0,0,84800,236,113,0,0,0,11,10,33,19,5,5,16,5,9,0,0,0,123,3,2,17,37,19,19,11,8,2,0,3,2,0,0,713,257,236,113,0,39,10,15,16,9,2,9,13,0,123,48,19,14,13,5,9,0,8,2,5,236,28,3,0,0,9,11,5,38,12,9,5,0,12,0,50,25,7,7,3,8,0,58,40,9,9,0,0,0,45,33,3,0,6,3,0,14,14,0,0,0,0,0,3,3,0,0,0,0,0,0,0,0,0,0,0,0]
["Randolph","0001038","63860",339,96,0,0,0,0,0,0,0,0,0,8,7,6,3,15,15,13,5,18,6,0,0,0,0,0,140000,120,0,0,0,0,0,0,0,0,6,8,7,8,3,15,17,13,9,20,10,4,0,0,0,0,144100,96,60,0,0,0,0,7,11,0,3,17,7,10,5,0,0,0,36,0,2,2,2,7,8,9,2,2,2,0,0,0,0,953,331,96,60,7,11,15,12,8,5,2,0,0,0,36,15,6,10,0,0,0,3,0,2,0,96,2,0,0,0,0,2,0,7,4,0,0,0,3,0,19,12,0,5,0,2,0,14,9,0,3,2,0,0,24,9,12,0,3,0,0,15,15,0,0,0,0,0,12,12,0,0,0,0,0,3,3,0,0,0,0,0]
["Sargent's Purchase","0001043","67860",0,0,0,0,0,0,0,0,0,0,0,0,0,0,0,0,0,0,0,0,0,0,0,0,0,0,0,0,0,0,0,0,0,0,0,0,0,0,0,0,0,0,0,0,0,0,0,0,0,0,0,0,0,0,0,0,0,0,0,0,0,0,0,0,0,0,0,0,0,0,0,0,0,0,0,0,0,0,0,0,0,0,0,0,0,0,0,0,0,0,0,0,0,0,0,0,0,0,0,0,0,0,0,0,0,0,0,0,0,0,0,0,0,0,0,0,0,0,0,0,0,0,0,0,0,0,0,0,0,0,0,0,0,0,0,0,0,0,0,0,0,0,0,0,0,0,0,0,0,0,0,0,0,0,0,0,0,0,0,0,0,0,0,0,0,0,0]
["Second College Grant","0001048","68500",0,0,0,0,0,0,0,0,0,0,0,0,0,0,0,0,0,0,0,0,0,0,0,0,0,0,0,0,0,0,0,0,0,0,0,0,0,0,0,0,0,0,0,0,0,0,0,0,0,0,0,0,0,0,0,0,0,0,0,0,0,0,0,0,0,0,0,0,0,0,0,0,0,0,0,0,0,0,0,0,0,0,0,0,0,0,0,0,0,0,0,0,0,0,0,0,0,0,0,0,0,0,0,0,0,0,0,0,0,0,0,0,0,0,0,0,0,0,0,0,0,0,0,0,0,0,0,0,0,0,0,0,0,0,0,0,0,0,0,0,0,0,0,0,0,0,0,0,0,0,0,0,0,0,0,0,0,0,0,0,0,0,0,0,0,0,0]
["Shelburne","0001053","68980",379,111,0,0,0,0,3,0,0,0,2,10,11,7,12,24,20,7,10,5,0,0,0,0,0,0,110900,138,0,0,3,0,3,0,0,2,2,12,13,7,14,29,20,9,17,5,0,2,0,0,0,0,111200,111,71,0,0,0,0,6,17,7,7,15,11,8,0,0,0,0,40,0,0,3,10,12,2,11,2,0,0,0,0,0,0,879,279,111,71,9,21,6,13,13,2,5,0,2,0,40,11,11,4,6,0,3,2,3,0,0,111,3,0,0,0,3,0,0,14,3,6,0,0,5,0,23,10,3,3,0,7,0,24,12,3,7,2,0,0,25,15,7,3,0,0,0,13,13,0,0,0,0,0,7,7,0,0,0,0,0,2,2,0,0,0,0,0]
["Stark","0001058","73060",516,127,0,0,2,0,4,0,2,15,14,24,23,11,9,11,7,0,0,5,0,0,0,0,0,0,71100,169,0,0,4,2,9,3,2,15,23,30,23,11,11,22,9,0,0,5,0,0,0,0,0,0,68800,127,58,0,0,2,3,15,3,12,7,5,5,2,4,0,0,0,69,2,0,3,7,17,17,4,12,2,2,0,0,0,3,750,316,127,58,3,12,12,10,8,4,0,2,7,0,69,31,14,9,8,0,2,2,3,0,0,127,4,2,0,0,0,2,0,14,3,2,0,2,7,0,35,14,13,4,4,0,0,36,26,3,2,0,5,0,26,26,0,0,0,0,0,12,10,0,2,0,0,0,0,0,0,0,0,0,0,0,0,0,0,0,0,0]
["Stewartstown","0001063","73380",1012,132,0,0,0,5,2,5,5,14,26,27,13,11,9,7,2,3,3,0,0,0,0,0,0,0,63300,285,0,8,10,13,6,14,21,24,31,33,27,24,23,22,15,7,3,2,2,0,0,0,0,0,64700,132,67,0,0,0,9,23,11,13,7,1,0,0,1,2,0,0,65,0,2,0,18,20,4,10,5,6,0,0,0,0,0,614,281,132,67,6,14,11,13,8,4,5,0,6,0,65,18,14,9,0,6,2,2,8,6,0,132,17,0,0,0,0,17,0,16,6,0,6,0,4,0,41,14,9,8,6,4,0,30,26,4,0,0,0,0,13,13,0,0,0,0,0,6,4,0,0,0,2,0,6,6,0,0,0,0,0,3,3,0,0,0,0,0]
["Stratford","0001068","74180",942,150,0,2,5,6,7,4,3,21,30,14,26,8,9,9,6,0,0,0,0,0,0,0,0,0,59000,272,12,8,14,6,13,24,3,28,36,20,28,21,16,16,16,7,0,2,0,0,2,0,0,0,57800,150,82,0,5,3,6,12,11,22,7,9,7,0,0,0,0,0,68,2,2,4,13,17,11,6,9,2,2,0,0,0,0,718,288,150,82,7,19,18,10,4,5,2,10,7,0,68,11,21,15,7,4,2,6,2,0,0,150,10,4,0,0,2,4,0,33,5,5,4,3,16,0,35,24,2,2,0,7,0,29,17,8,2,2,0,0,34,32,2,0,0,0,0,9,9,0,0,0,0,0,0,0,0,0,0,0,0,0,0,0,0,0,0,0]
["Success","0001073","74500",2,0,0,0,0,0,0,0,0,0,0,0,0,0,0,0,0,0,0,0,0,0,0,0,0,0,0,0,0,0,0,0,0,0,0,0,0,0,0,0,0,0,0,0,0,0,0,0,0,0,0,0,0,0,0,0,0,0,0,0,0,0,0,0,0,0,0,0,0,0,0,0,0,0,0,0,0,0,0,0,0,0,0,0,0,0,0,0,0,0,0,0,0,0,0,0,0,0,0,0,0,0,0,0,0,0,0,0,0,0,0,0,0,0,0,0,0,0,0,0,0,0,0,0,0,0,0,0,0,0,0,0,0,0,0,0,0,0,0,0,0,0,0,0,0,0,0,0,0,0,0,0,0,0,0,0,0,0,0,0,0,0,0,0,0,0,0]
["Thompson and Meserves Purchase","0001078","76580",0,0,0,0,0,0,0,0,0,0,0,0,0,0,0,0,0,0,0,0,0,0,0,0,0,0,0,0,0,0,0,0,0,0,0,0,0,0,0,0,0,0,0,0,0,0,0,0,0,0,0,0,0,0,0,0,0,0,0,0,0,0,0,0,0,0,0,0,0,0,0,0,0,0,0,0,0,0,0,0,0,0,0,0,0,0,0,0,0,0,0,0,0,0,0,0,0,0,0,0,0,0,0,0,0,0,0,0,0,0,0,0,0,0,0,0,0,0,0,0,0,0,0,0,0,0,0,0,0,0,0,0,0,0,0,0,0,0,0,0,0,0,0,0,0,0,0,0,0,0,0,0,0,0,0,0,0,0,0,0,0,0,0,0,0,0,0]
["Wentworth's Location","0001083","80740",44,11,0,0,0,0,0,0,0,5,0,0,0,2,0,2,2,0,0,0,0,0,0,0,0,0,82500,17,0,0,0,0,0,3,0,5,0,0,0,2,0,2,3,0,0,2,0,0,0,0,0,0,82500,11,7,0,0,0,0,3,2,0,0,0,2,0,0,0,0,0,4,0,0,2,0,2,0,0,0,0,0,0,0,0,0,625,225,11,7,0,0,2,3,0,2,0,0,0,0,4,2,2,0,0,0,0,0,0,0,0,11,0,0,0,0,0,0,0,0,0,0,0,0,0,0,7,2,3,0,2,0,0,2,2,0,0,0,0,0,0,0,0,0,0,0,0,2,2,0,0,0,0,0,0,0,0,0,0,0,0,0,0,0,0,0,0,0]
["Whitefield","0001088","84420",2038,387,0,0,0,0,3,4,12,26,55,33,68,51,46,36,26,17,4,2,2,0,0,2,0,0,78900,580,0,3,6,2,7,16,16,42,64,41,76,64,68,83,42,23,11,4,6,4,0,2,0,0,82700,387,242,0,0,7,7,32,36,45,32,27,42,10,2,0,0,2,145,0,0,7,2,25,29,16,48,12,2,0,4,0,0,787,380,387,242,13,40,48,46,39,13,8,11,24,0,145,36,36,26,7,9,13,2,12,2,2,387,13,0,0,0,2,9,2,41,4,0,4,7,26,0,104,32,17,21,14,20,0,91,51,21,12,3,4,0,99,75,15,9,0,0,0,23,23,0,0,0,0,0,12,10,0,2,0,0,0,4,4,0,0,0,0,0]
[]
[]
[]
[]
[]
["Census 2000 SummaryFile3 Sample Data  -  SF3TownQry9HHIncomeByTenure"]
[]
["TOWN_NAME","LOGRECNO","COUSUB","TotalPop","HCT11OccHU","HCT11OwnOccHU","HCT11OOHUInc<5K","HCT11OOHUInc5to10K","HCT11OOHUInc10to15K","HCT11OOHUInc15to20K","HCT11OOHUInc20to25K","HCT11OOHUInc25to35K","HCT11OOHUInc35to50K","HCT11OOHUInc50to75K","HCT11OOHUInc75to100K","HCT11OOHUInc100to150K","HCT11OOHUInc>150K","HCT11RentOccHU","HCT11ROHUInc<5K","HCT11ROHUInc5to10K","HCT11ROHUInc10to15K","HCT11ROHUInc15to20K","HCT11ROHUInc20to25K","HCT11ROHUInc25to35K","HCT11ROHUInc35to50K","HCT11ROHUInc50to75K","HCT11ROHUInc75to100K","HCT11ROHUInc100to150K","HCT11ROHUInc>150K","HCT12MedHHInc","HCT12MedOwnOccHHInc","HCT12MedRentOccHHInc","SummaryLevel"]
["Atkinson and Gilmanton Grant","0000818","02420",12,0,0,0,0,0,0,0,0,0,0,0,0,0,0,0,0,0,0,0,0,0,0,0,0,0,0,0,0,"060"]
["Bean's Grant","0000823","04100",0,0,0,0,0,0,0,0,0,0,0,0,0,0,0,0,0,0,0,0,0,0,0,0,0,0,0,0,0,"060"]
["Bean's Purchase","0000828","04260",4,0,0,0,0,0,0,0,0,0,0,0,0,0,0,0,0,0,0,0,0,0,0,0,0,0,0,0,0,"060"]
["Berlin","0000833","05140",10331,4555,2788,45,140,221,199,191,365,681,678,158,93,17,1767,92,402,278,222,166,290,181,93,17,19,7,29566,40000,17080,"060"]
["Cambridge","0000864","08420",10,0,0,0,0,0,0,0,0,0,0,0,0,0,0,0,0,0,0,0,0,0,0,0,0,0,0,0,0,"060"]
["Carroll","0000869","10100",663,287,226,0,16,7,4,19,40,56,55,16,11,2,61,1,10,3,8,5,16,8,10,0,0,0,39792,43571,29688,"060",null,null,null,null,null,null,null,null,null,null,null,null,null,null,null,null,null,null,null,null,null,null,null,null,null,null,null,null,null,null,null,null,null,null,null,null,null,null,null,null,null,null,null,null,null,null,null,null,null,null,null,null,null,null,null,null,null,null,null,null,null,null,null,null,null,"PCT026097","PCT026098","PCT026099","PCT026100","PCT026101","CNTY_NAME"]
["Chandler's Purchase","0000874","11220",0,0,0,0,0,0,0,0,0,0,0,0,0,0,0,0,0,0,0,0,0,0,0,0,0,0,0,0,0,"060",null,null,null,null,null,null,null,null,null,null,null,null,null,null,null,null,null,null,null,null,null,null,null,null,null,null,null,null,null,null,null,null,null,null,null,null,null,null,null,null,null,null,null,null,null,null,null,null,null,null,null,null,null,null,null,null,null,null,null,null,null,null,null,null,null,0,0,0,0,0,"Coos"]
["Clarksville","0000879","13220",294,128,106,2,2,4,10,8,19,28,21,7,5,0,22,3,0,0,0,0,6,8,5,0,0,0,39000,40714,36250,"060",null,null,null,null,null,null,null,null,null,null,null,null,null,null,null,null,null,null,null,null,null,null,null,null,null,null,null,null,null,null,null,null,null,null,null,null,null,null,null,null,null,null,null,null,null,null,null,null,null,null,null,null,null,null,null,null,null,null,null,null,null,null,null,null,null,0,0,0,0,0,"Coos"]
["Colebrook","0000884","13780",2321,1044,672,19,42,42,45,42,90,117,175,55,33,12,372,12,71,54,38,37,54,52,45,5,2,2,32391,40119,21447,"060",null,null,null,null,null,null,null,null,null,null,null,null,null,null,null,null,null,null,null,null,null,null,null,null,null,null,null,null,null,null,null,null,null,null,null,null,null,null,null,null,null,null,null,null,null,null,null,null,null,null,null,null,null,null,null,null,null,null,null,null,null,null,null,null,null,0,0,0,0,0,"Coos"]
["Columbia","0000890","13940",750,291,257,9,11,33,11,8,36,58,52,19,20,0,34,0,0,10,9,5,3,7,0,0,0,0,37868,39732,19167,"060",null,null,null,null,null,null,null,null,null,null,null,null,null,null,null,null,null,null,null,null,null,null,null,null,null,null,null,null,null,null,null,null,null,null,null,null,null,null,null,null,null,null,null,null,null,null,null,null,null,null,null,null,null,null,null,null,null,null,null,null,null,null,null,null,null,129,324,94,230,647,"Coos"]
["Crawford's Purchase","0000895","16100",0,0,0,0,0,0,0,0,0,0,0,0,0,0,0,0,0,0,0,0,0,0,0,0,0,0,0,0,0,"060",null,null,null,null,null,null,null,null,null,null,null,null,null,null,null,null,null,null,null,null,null,null,null,null,null,null,null,null,null,null,null,null,null,null,null,null,null,null,null,null,null,null,null,null,null,null,null,null,null,null,null,null,null,null,null,null,null,null,null,null,null,null,null,null,null,0,0,0,0,0,"Coos"]
["Cutt's Grant","0000900","16660",0,0,0,0,0,0,0,0,0,0,0,0,0,0,0,0,0,0,0,0,0,0,0,0,0,0,0,0,0,"060",null,null,null,null,null,null,null,null,null,null,null,null,null,null,null,null,null,null,null,null,null,null,null,null,null,null,null,null,null,null,null,null,null,null,null,null,null,null,null,null,null,null,null,null,null,null,null,null,null,null,null,null,null,null,null,null,null,null,null,null,null,null,null,null,null,0,14,6,8,29,"Coos"]
["Dalton","0000905","16820",927,377,330,8,16,24,38,25,41,75,63,24,13,3,47,0,4,0,11,12,11,4,5,0,0,0,34531,37708,23906,"060",null,null,null,null,null,null,null,null,null,null,null,null,null,null,null,null,null,null,null,null,null,null,null,null,null,null,null,null,null,null,null,null,null,null,null,null,null,null,null,null,null,null,null,null,null,null,null,null,null,null,null,null,null,null,null,null,null,null,null,null,null,null,null,null,null,0,0,0,0,0,"Coos"]
["Dix's Grant","0000910","18340",0,0,0,0,0,0,0,0,0,0,0,0,0,0,0,0,0,0,0,0,0,0,0,0,0,0,0,0,0,"060",null,null,null,null,null,null,null,null,null,null,null,null,null,null,null,null,null,null,null,null,null,null,null,null,null,null,null,null,null,null,null,null,null,null,null,null,null,null,null,null,null,null,null,null,null,null,null,null,null,null,null,null,null,null,null,null,null,null,null,null,null,null,null,null,null,0,3,3,0,10,"Coos"]
["Dixville","0000915","18420",75,0,0,0,0,0,0,0,0,0,0,0,0,0,0,0,0,0,0,0,0,0,0,0,0,0,0,0,0,"060",null,null,null,null,null,null,null,null,null,null,null,null,null,null,null,null,null,null,null,null,null,null,null,null,null,null,null,null,null,null,null,null,null,null,null,null,null,null,null,null,null,null,null,null,null,null,null,null,null,null,null,null,null,null,null,null,null,null,null,null,null,null,null,null,null,2,60,8,52,109,"Coos"]
["Dummer","0000920","19300",309,145,129,2,6,9,11,6,27,25,29,9,5,0,16,2,5,0,2,0,5,2,0,0,0,0,34375,40250,18750,"060",null,null,null,null,null,null,null,null,null,null,null,null,null,null,null,null,null,null,null,null,null,null,null,null,null,null,null,null,null,null,null,null,null,null,null,null,null,null,null,null,null,null,null,null,null,null,null,null,null,null,null,null,null,null,null,null,null,null,null,null,null,null,null,null,null,3,4,0,4,32,"Coos"]
["Errol","0000925","25140",298,141,128,0,11,15,11,10,18,21,25,9,3,5,13,0,0,3,0,0,2,2,6,0,0,0,35179,31875,39375,"060",null,null,null,null,null,null,null,null,null,null,null,null,null,null,null,null,null,null,null,null,null,null,null,null,null,null,null,null,null,null,null,null,null,null,null,null,null,null,null,null,null,null,null,null,null,null,null,null,null,null,null,null,null,null,null,null,null,null,null,null,null,null,null,null,null,0,0,0,0,0,"Coos"]
["Erving's Location","0000930","25180",1,0,0,0,0,0,0,0,0,0,0,0,0,0,0,0,0,0,0,0,0,0,0,0,0,0,0,0,0,"060",null,null,null,null,null,null,null,null,null,null,null,null,null,null,null,null,null,null,null,null,null,null,null,null,null,null,null,null,null,null,null,null,null,null,null,null,null,null,null,null,null,null,null,null,null,null,null,null,null,null,null,null,null,null,null,null,null,null,null,null,null,null,null,null,null,0,0,0,0,0,"Coos"]
["Gorham","0000935","30260",2895,1294,919,6,46,84,104,54,124,186,222,66,27,0,375,0,87,54,8,74,57,66,29,0,0,0,31087,37207,23028,"060",null,null,null,null,null,null,null,null,null,null,null,null,null,null,null,null,null,null,null,null,null,null,null,null,null,null,null,null,null,null,null,null,null,null,null,null,null,null,null,null,null,null,null,null,null,null,null,null,null,null,null,null,null,null,null,null,null,null,null,null,null,null,null,null,null,2,25,6,19,33,"Coos"]
["Greens Grant","0000957","31780",0,0,0,0,0,0,0,0,0,0,0,0,0,0,0,0,0,0,0,0,0,0,0,0,0,0,0,0,0,"060",null,null,null,null,null,null,null,null,null,null,null,null,null,null,null,null,null,null,null,null,null,null,null,null,null,null,null,null,null,null,null,null,null,null,null,null,null,null,null,null,null,null,null,null,null,null,null,null,null,null,null,null,null,null,null,null,null,null,null,null,null,null,null,null,null,0,0,0,0,0,"Coos"]
["Hadley's Purchase","0000962","32420",0,0,0,0,0,0,0,0,0,0,0,0,0,0,0,0,0,0,0,0,0,0,0,0,0,0,0,0,0,"060",null,null,null,null,null,null,null,null,null,null,null,null,null,null,null,null,null,null,null,null,null,null,null,null,null,null,null,null,null,null,null,null,null,null,null,null,null,null,null,null,null,null,null,null,null,null,null,null,null,null,null,null,null,null,null,null,null,null,null,null,null,null,null,null,null,0,0,0,0,0,"Coos"]
["Jefferson","0000967","38820",1006,405,340,9,23,19,11,21,45,69,96,25,12,10,65,0,12,5,4,12,2,18,11,1,0,0,41023,42778,24861,"060",null,null,null,null,null,null,null,null,null,null,null,null,null,null,null,null,null,null,null,null,null,null,null,null,null,null,null,null,null,null,null,null,null,null,null,null,null,null,null,null,null,null,null,null,null,null,null,null,null,null,null,null,null,null,null,null,null,null,null,null,null,null,null,null,null,0,5,3,2,14,"Coos"]
["Kilkenny","0000973","39940",0,0,0,0,0,0,0,0,0,0,0,0,0,0,0,0,0,0,0,0,0,0,0,0,0,0,0,0,0,"060",null,null,null,null,null,null,null,null,null,null,null,null,null,null,null,null,null,null,null,null,null,null,null,null,null,null,null,null,null,null,null,null,null,null,null,null,null,null,null,null,null,null,null,null,null,null,null,null,null,null,null,null,null,null,null,null,null,null,null,null,null,null,null,null,null,0,2,0,2,31,"Coos"]
["Lancaster","0000978","40420",3280,1286,891,21,36,55,33,55,128,184,188,82,98,11,395,22,39,78,24,41,57,75,5,40,14,0,38707,43656,22104,"060",null,null,null,null,null,null,null,null,null,null,null,null,null,null,null,null,null,null,null,null,null,null,null,null,null,null,null,null,null,null,null,null,null,null,null,null,null,null,null,null,null,null,null,null,null,null,null,null,null,null,null,null,null,null,null,null,null,null,null,null,null,null,null,null,null,0,0,0,0,0,"Coos"]
["Low and Burbank's Grant","0000991","43620",0,0,0,0,0,0,0,0,0,0,0,0,0,0,0,0,0,0,0,0,0,0,0,0,0,0,0,0,0,"060",null,null,null,null,null,null,null,null,null,null,null,null,null,null,null,null,null,null,null,null,null,null,null,null,null,null,null,null,null,null,null,null,null,null,null,null,null,null,null,null,null,null,null,null,null,null,null,null,null,null,null,null,null,null,null,null,null,null,null,null,null,null,null,null,null,0,94,34,60,166,"Coos"]
["Martin's Location","0000996","46020",0,0,0,0,0,0,0,0,0,0,0,0,0,0,0,0,0,0,0,0,0,0,0,0,0,0,0,0,0,"060",null,null,null,null,null,null,null,null,null,null,null,null,null,null,null,null,null,null,null,null,null,null,null,null,null,null,null,null,null,null,null,null,null,null,null,null,null,null,null,null,null,null,null,null,null,null,null,null,null,null,null,null,null,null,null,null,null,null,null,null,null,null,null,null,null,0,0,0,0,0,"Coos"]
["Milan","0001001","47860",1331,530,471,11,7,25,24,45,61,118,127,27,17,9,59,0,3,5,12,0,23,13,0,0,3,0,40104,42083,27917,"060",null,null,null,null,null,null,null,null,null,null,null,null,null,null,null,null,null,null,null,null,null,null,null,null,null,null,null,null,null,null,null,null,null,null,null,null,null,null,null,null,null,null,null,null,null,null,null,null,null,null,null,null,null,null,null,null,null,null,null,null,null,null,null,null,null,0,0,0,0,0,"Coos"]
["Millsfield","0001006","48260",22,4,4,0,0,0,0,0,0,0,2,2,0,0,0,0,0,0,0,0,0,0,0,0,0,0,67500,67500,0,"060",null,null,null,null,null,null,null,null,null,null,null,null,null,null,null,null,null,null,null,null,null,null,null,null,null,null,null,null,null,null,null,null,null,null,null,null,null,null,null,null,null,null,null,null,null,null,null,null,null,null,null,null,null,null,null,null,null,null,null,null,null,null,null,null,null,2,13,8,5,37,"Coos"]
["Northumberland","0001011","56100",2438,989,747,10,39,67,58,54,126,166,163,42,18,4,242,8,34,45,25,12,57,47,14,0,0,0,32645,36219,24063,"060",null,null,null,null,null,null,null,null,null,null,null,null,null,null,null,null,null,null,null,null,null,null,null,null,null,null,null,null,null,null,null,null,null,null,null,null,null,null,null,null,null,null,null,null,null,null,null,null,null,null,null,null,null,null,null,null,null,null,null,null,null,null,null,null,null,0,0,0,0,0,"Coos"]
["Odell","0001023","57860",5,0,0,0,0,0,0,0,0,0,0,0,0,0,0,0,0,0,0,0,0,0,0,0,0,0,0,0,0,"060",null,null,null,null,null,null,null,null,null,null,null,null,null,null,null,null,null,null,null,null,null,null,null,null,null,null,null,null,null,null,null,null,null,null,null,null,null,null,null,null,null,null,null,null,null,null,null,null,null,null,null,null,null,null,null,null,null,null,null,null,null,null,null,null,null,0,45,17,28,183,"Coos"]
["Pinkham's Grant","0001028","61620",0,0,0,0,0,0,0,0,0,0,0,0,0,0,0,0,0,0,0,0,0,0,0,0,0,0,0,0,0,"060",null,null,null,null,null,null,null,null,null,null,null,null,null,null,null,null,null,null,null,null,null,null,null,null,null,null,null,null,null,null,null,null,null,null,null,null,null,null,null,null,null,null,null,null,null,null,null,null,null,null,null,null,null,null,null,null,null,null,null,null,null,null,null,null,null,0,0,0,0,0,"Coos"]
["Pittsburg","0001033","61780",867,383,336,18,22,16,31,17,48,80,78,16,8,2,47,0,2,2,4,7,9,13,7,0,3,0,37891,38571,34375,"060",null,null,null,null,null,null,null,null,null,null,null,null,null,null,null,null,null,null,null,null,null,null,null,null,null,null,null,null,null,null,null,null,null,null,null,null,null,null,null,null,null,null,null,null,null,null,null,null,null,null,null,null,null,null,null,null,null,null,null,null,null,null,null,null,null,0,0,0,0,0,"Coos"]
["Randolph","0001038","63860",339,140,120,2,0,10,2,5,17,20,26,15,16,7,20,0,0,3,2,0,2,4,6,3,0,0,50833,51111,38750,"060",null,null,null,null,null,null,null,null,null,null,null,null,null,null,null,null,null,null,null,null,null,null,null,null,null,null,null,null,null,null,null,null,null,null,null,null,null,null,null,null,null,null,null,null,null,null,null,null,null,null,null,null,null,null,null,null,null,null,null,null,null,null,null,null,null,0,23,13,10,38,"Coos"]
["Sargent's Purchase","0001043","67860",0,0,0,0,0,0,0,0,0,0,0,0,0,0,0,0,0,0,0,0,0,0,0,0,0,0,0,0,0,"060",null,null,null,null,null,null,null,null,null,null,null,null,null,null,null,null,null,null,null,null,null,null,null,null,null,null,null,null,null,null,null,null,null,null,null,null,null,null,null,null,null,null,null,null,null,null,null,null,null,null,null,null,null,null,null,null,null,null,null,null,null,null,null,null,null,0,3,3,0,0,"Coos"]
["Second College Grant","0001048","68500",0,0,0,0,0,0,0,0,0,0,0,0,0,0,0,0,0,0,0,0,0,0,0,0,0,0,0,0,0,"060",null,null,null,null,null,null,null,null,null,null,null,null,null,null,null,null,null,null,null,null,null,null,null,null,null,null,null,null,null,null,null,null,null,null,null,null,null,null,null,null,null,null,null,null,null,null,null,null,null,null,null,null,null,null,null,null,null,null,null,null,null,null,null,null,null,2,64,23,41,110,"Coos"]
["Shelburne","0001053","68980",379,158,138,0,6,6,10,4,19,26,29,20,9,9,20,0,0,0,8,0,3,6,3,0,0,0,44167,47500,26667,"060",null,null,null,null,null,null,null,null,null,null,null,null,null,null,null,null,null,null,null,null,null,null,null,null,null,null,null,null,null,null,null,null,null,null,null,null,null,null,null,null,null,null,null,null,null,null,null,null,null,null,null,null,null,null,null,null,null,null,null,null,null,null,null,null,null,0,0,0,0,0,"Coos"]
["Stark","0001058","73060",516,196,169,0,6,11,10,15,31,41,38,12,0,5,27,0,2,3,0,3,6,13,0,0,0,0,38125,38625,34583,"060",null,null,null,null,null,null,null,null,null,null,null,null,null,null,null,null,null,null,null,null,null,null,null,null,null,null,null,null,null,null,null,null,null,null,null,null,null,null,null,null,null,null,null,null,null,null,null,null,null,null,null,null,null,null,null,null,null,null,null,null,null,null,null,null,null,0,0,0,0,0,"Coos"]
["Stewartstown","0001063","73380",1012,371,285,10,17,24,9,25,63,70,38,14,8,7,86,3,11,27,7,8,13,4,10,3,0,0,30880,33854,18214,"060",null,null,null,null,null,null,null,null,null,null,null,null,null,null,null,null,null,null,null,null,null,null,null,null,null,null,null,null,null,null,null,null,null,null,null,null,null,null,null,null,null,null,null,null,null,null,null,null,null,null,null,null,null,null,null,null,null,null,null,null,null,null,null,null,null,0,0,0,0,64,"Coos"]
["Stratford","0001068","74180",942,399,272,4,13,38,25,25,33,57,56,19,2,0,127,2,35,28,3,8,17,29,5,0,0,0,27434,34167,14375,"060",null,null,null,null,null,null,null,null,null,null,null,null,null,null,null,null,null,null,null,null,null,null,null,null,null,null,null,null,null,null,null,null,null,null,null,null,null,null,null,null,null,null,null,null,null,null,null,null,null,null,null,null,null,null,null,null,null,null,null,null,null,null,null,null,null,0,4,2,2,11,"Coos"]
["Success","0001073","74500",2,0,0,0,0,0,0,0,0,0,0,0,0,0,0,0,0,0,0,0,0,0,0,0,0,0,0,0,0,"060",null,null,null,null,null,null,null,null,null,null,null,null,null,null,null,null,null,null,null,null,null,null,null,null,null,null,null,null,null,null,null,null,null,null,null,null,null,null,null,null,null,null,null,null,null,null,null,null,null,null,null,null,null,null,null,null,null,null,null,null,null,null,null,null,null,0,0,0,0,0,"Coos"]
["Thompson and Meserves Purchase","0001078","76580",0,0,0,0,0,0,0,0,0,0,0,0,0,0,0,0,0,0,0,0,0,0,0,0,0,0,0,0,0,"060",null,null,null,null,null,null,null,null,null,null,null,null,null,null,null,null,null,null,null,null,null,null,null,null,null,null,null,null,null,null,null,null,null,null,null,null,null,null,null,null,null,null,null,null,null,null,null,null,null,null,null,null,null,null,null,null,null,null,null,null,null,null,null,null,null,0,0,0,0,0,"Coos"]
["Wentworth's Location","0001083","80740",44,22,17,0,0,0,2,2,5,5,0,2,0,1,5,0,0,0,0,0,0,3,0,0,0,2,37500,29750,47083,"060",null,null,null,null,null,null,null,null,null,null,null,null,null,null,null,null,null,null,null,null,null,null,null,null,null,null,null,null,null,null,null,null,null,null,null,null,null,null,null,null,null,null,null,null,null,null,null,null,null,null,null,null,null,null,null,null,null,null,null,null,null,null,null,null,null,0,2,0,2,15,"Coos"]
["Whitefield","0001088","84420",2038,816,580,11,13,37,30,55,88,121,143,55,19,8,236,11,50,27,34,23,35,30,20,0,4,2,34118,41354,19286,"060",null,null,null,null,null,null,null,null,null,null,null,null,null,null,null,null,null,null,null,null,null,null,null,null,null,null,null,null,null,null,null,null,null,null,null,null,null,null,null,null,null,null,null,null,null,null,null,null,null,null,null,null,null,null,null,null,null,null,null,null,null,null,null,null,null,0,7,3,4,24,"Coos"]
[]
[null,null,null,null,null,null,null,null,null,null,null,null,null,null,null,null,null,null,null,null,null,null,null,null,null,null,null,null,null,null,null,null,null,null,null,null,null,null,null,null,null,null,null,null,null,null,null,null,null,null,null,null,null,null,null,null,null,null,null,null,null,null,null,null,null,null,null,null,null,null,null,null,null,null,null,null,null,null,null,null,null,null,null,null,null,null,null,null,null,null,null,null,null,null,null,null,null,null,null,null,0,7,3,4,28,"Coos"]
[null,null,null,null,null,null,null,null,null,null,null,null,null,null,null,null,null,null,null,null,null,null,null,null,null,null,null,null,null,null,null,null,null,null,null,null,null,null,null,null,null,null,null,null,null,null,null,null,null,null,null,null,null,null,null,null,null,null,null,null,null,null,null,null,null,null,null,null,null,null,null,null,null,null,null,null,null,null,null,null,null,null,null,null,null,null,null,null,null,null,null,null,null,null,null,null,null,null,null,null,3,20,7,13,29,"Coos"]
[null,null,null,null,null,null,null,null,null,null,null,null,null,null,null,null,null,null,null,null,null,null,null,null,null,null,null,null,null,null,null,null,null,null,null,null,null,null,null,null,null,null,null,null,null,null,null,null,null,null,null,null,null,null,null,null,null,null,null,null,null,null,null,null,null,null,null,null,null,null,null,null,null,null,null,null,null,null,null,null,null,null,null,null,null,null,null,null,null,null,null,null,null,null,null,null,null,null,null,null,0,0,0,0,0,"Coos"]
[null,null,null,null,null,null,null,null,null,null,null,null,null,null,null,null,null,null,null,null,null,null,null,null,null,null,null,null,null,null,null,null,null,null,null,null,null,null,null,null,null,null,null,null,null,null,null,null,null,null,null,null,null,null,null,null,null,null,null,null,null,null,null,null,null,null,null,null,null,null,null,null,null,null,null,null,null,null,null,null,null,null,null,null,null,null,null,null,null,null,null,null,null,null,null,null,null,null,null,null,0,0,0,0,0,"Coos"]
["Census 2000 SummaryFile3 Sample Data - SF3TownQry10aDisabil",null,null,null,null,null,null,null,null,null,null,null,null,null,null,null,null,null,null,null,null,null,null,null,null,null,null,null,null,null,null,null,null,null,null,null,null,null,null,null,null,null,null,null,null,null,null,null,null,null,null,null,null,null,null,null,null,null,null,null,null,null,null,null,null,null,null,null,null,null,null,null,null,null,null,null,null,null,null,null,null,null,null,null,null,null,null,null,null,null,null,null,null,null,null,null,null,null,null,null,0,0,0,0,0,"Coos"]
[null,null,null,null,null,null,null,null,null,null,null,null,null,null,null,null,null,null,null,null,null,null,null,null,null,null,null,null,null,null,null,null,null,null,null,null,null,null,null,null,null,null,null,null,null,null,null,null,null,null,null,null,null,null,null,null,null,null,null,null,null,null,null,null,null,null,null,null,null,null,null,null,null,null,null,null,null,null,null,null,null,null,null,null,null,null,null,null,null,null,null,null,null,null,null,null,null,null,null,null,2,38,9,29,98,"Coos"]
["TOWN_NAME","LOGRECNO","COUSUB","TotalPop","PCT026001","PCT026002","PCT026003","PCT026004","PCT026005","PCT026006","PCT026007","PCT026008","PCT026009","PCT026010","PCT026011","PCT026012","PCT026013","PCT026014","PCT026015","PCT026016","PCT026017","PCT026018","PCT026019","PCT026020","PCT026021","PCT026022","PCT026023","PCT026024","PCT026025","PCT026026","PCT026027","PCT026028","PCT026029","PCT026030","PCT026031","PCT026032","PCT026033","PCT026034","PCT026035","PCT026036","PCT026037","PCT026038","PCT026039","PCT026040","PCT026041","PCT026042","PCT026043","PCT026044","PCT026045","PCT026046","PCT026047","PCT026048","PCT026049","PCT026050","PCT026051","PCT026052","PCT026053","PCT026054","PCT026055","PCT026056","PCT026057","PCT026058","PCT026059","PCT026060","PCT026061","PCT026062","PCT026063","PCT026064","PCT026065","PCT026066","PCT026067","PCT026068","PCT026069","PCT026070","PCT026071","PCT026072","PCT026073","PCT026074","PCT026075","PCT026076","PCT026077","PCT026078","PCT026079","PCT026080","PCT026081","PCT026082","PCT026083","PCT026084","PCT026085","PCT026086","PCT026087","PCT026088","PCT026089","PCT026090","PCT026091","PCT026092","PCT026093","PCT026094","PCT026095","PCT026096","PCT026097","PCT026098","PCT026099","PCT026100","PCT026101"]
["Atkinson and Gilmanton Grant","0000818","02420",12,0,0,0,0,0,0,0,0,0,0,0,0,0,0,0,0,0,0,0,0,0,0,0,0,0,0,0,0,0,0,0,0,0,0,0,0,0,0,0,0,0,0,0,0,0,0,0,0,0,0,0,0,0,0,0,0,0,0,0,0,0,0,0,0,0,0,0,0,0,0,0,0,0,0,0,0,0,0,0,0,0,0,0,0,0,0,0,0,0,0,0,0,0,0,0,0,0,0,0,0,0]
["Bean's Grant","0000823","04100",0,0,0,0,0,0,0,0,0,0,0,0,0,0,0,0,0,0,0,0,0,0,0,0,0,0,0,0,0,0,0,0,0,0,0,0,0,0,0,0,0,0,0,0,0,0,0,0,0,0,0,0,0,0,0,0,0,0,0,0,0,0,0,0,0,0,0,0,0,0,0,0,0,0,0,0,0,0,0,0,0,0,0,0,0,0,0,0,0,0,0,0,0,0,0,0,0,0,0,0,0,0]
["Bean's Purchase","0000828","04260",4,0,0,0,0,0,0,0,0,0,0,0,0,0,0,0,0,0,0,0,0,0,0,0,0,0,0,0,0,0,0,0,0,0,0,0,0,0,0,0,0,0,0,0,0,0,0,0,0,0,0,0,0,0,0,0,0,0,0,0,0,0,0,0,0,0,0,0,0,0,0,0,0,0,0,0,0,0,0,0,0,0,0,0,0,0,0,0,0,0,0,0,0,0,0,0,0,0,0,0,0,0]
["Berlin","0000833","05140",10331,9612,4593,750,79,11,0,68,0,0,0,0,671,291,20,5,0,0,0,5,10,17,0,17,0,17,254,2687,433,71,93,16,0,7,246,341,50,291,91,200,1913,865,206,10,104,18,0,74,231,102,129,428,5019,643,36,0,5,31,0,0,0,0,607,325,23,0,6,0,0,0,17,10,5,5,5,0,292,2747,381,12,64,70,0,51,184,299,92,207,61,146,2067,1304,333,71,110,12,11,129,324,94,230,647]
["Cambridge","0000864","08420",10,0,0,0,0,0,0,0,0,0,0,0,0,0,0,0,0,0,0,0,0,0,0,0,0,0,0,0,0,0,0,0,0,0,0,0,0,0,0,0,0,0,0,0,0,0,0,0,0,0,0,0,0,0,0,0,0,0,0,0,0,0,0,0,0,0,0,0,0,0,0,0,0,0,0,0,0,0,0,0,0,0,0,0,0,0,0,0,0,0,0,0,0,0,0,0,0,0,0,0,0,0]
["Carroll","0000869","10100",663,631,331,33,2,0,0,2,0,1,0,1,30,28,4,1,0,0,0,0,3,0,0,0,0,0,24,215,37,4,8,0,0,0,25,15,3,12,0,12,163,55,19,5,14,0,0,0,0,0,0,36,300,35,0,0,0,0,0,3,3,0,32,20,1,0,0,0,0,0,1,0,0,0,0,0,19,195,28,2,8,0,0,0,18,6,2,4,0,4,161,50,7,5,2,0,0,0,14,6,8,29]
["Chandler's Purchase","0000874","11220",0,0,0,0,0,0,0,0,0,0,0,0,0,0,0,0,0,0,0,0,0,0,0,0,0,0,0,0,0,0,0,0,0,0,0,0,0,0,0,0,0,0,0,0,0,0,0,0,0,0,0,0,0,0,0,0,0,0,0,0,0,0,0,0,0,0,0,0,0,0,0,0,0,0,0,0,0,0,0,0,0,0,0,0,0,0,0,0,0,0,0,0,0,0,0,0,0,0,0,0,0,0]
["Clarksville","0000879","13220",294,287,161,31,1,0,0,1,0,0,0,0,30,5,0,0,0,0,0,0,0,0,0,0,0,0,5,97,8,0,4,3,0,0,1,6,2,4,0,4,83,28,10,4,6,0,0,0,0,0,0,18,126,9,0,0,0,0,0,0,0,0,9,13,0,0,0,0,0,0,0,0,0,0,0,0,13,86,11,6,5,0,0,0,0,6,0,6,0,6,69,18,5,3,2,0,0,0,3,3,0,10]
["Colebrook","0000884","13780",2321,2219,1088,181,7,2,0,5,0,0,0,0,174,91,12,1,0,2,0,0,9,4,2,2,0,2,75,664,115,12,23,4,0,0,76,80,10,70,0,70,469,152,36,11,23,2,0,0,45,25,20,71,1131,158,8,2,2,4,0,0,0,0,150,50,10,0,0,0,0,0,10,3,0,3,0,3,37,694,116,12,15,14,0,0,75,39,10,29,0,29,539,229,60,16,36,6,0,2,60,8,52,109]
["Columbia","0000890","13940",750,707,379,73,10,2,0,8,0,3,3,0,60,20,2,0,0,0,0,0,2,2,0,2,0,2,16,215,56,12,17,5,0,0,22,11,2,9,0,9,148,71,13,6,7,0,0,0,15,6,9,43,328,46,6,0,0,6,0,0,0,0,40,12,0,0,0,0,0,0,0,0,0,0,0,0,12,222,32,0,7,4,0,0,21,19,5,14,0,14,171,48,12,2,5,0,2,3,4,0,4,32]
["Crawford's Purchase","0000895","16100",0,0,0,0,0,0,0,0,0,0,0,0,0,0,0,0,0,0,0,0,0,0,0,0,0,0,0,0,0,0,0,0,0,0,0,0,0,0,0,0,0,0,0,0,0,0,0,0,0,0,0,0,0,0,0,0,0,0,0,0,0,0,0,0,0,0,0,0,0,0,0,0,0,0,0,0,0,0,0,0,0,0,0,0,0,0,0,0,0,0,0,0,0,0,0,0,0,0,0,0,0,0]
["Cutt's Grant","0000900","16660",0,0,0,0,0,0,0,0,0,0,0,0,0,0,0,0,0,0,0,0,0,0,0,0,0,0,0,0,0,0,0,0,0,0,0,0,0,0,0,0,0,0,0,0,0,0,0,0,0,0,0,0,0,0,0,0,0,0,0,0,0,0,0,0,0,0,0,0,0,0,0,0,0,0,0,0,0,0,0,0,0,0,0,0,0,0,0,0,0,0,0,0,0,0,0,0,0,0,0,0,0,0]
["Dalton","0000905","16820",927,898,448,80,5,2,0,3,0,2,2,0,73,51,7,0,3,0,0,0,4,0,0,0,0,0,44,260,39,11,17,4,0,0,7,22,4,18,0,18,199,57,20,4,13,0,0,3,9,4,5,28,450,88,13,4,0,9,0,3,0,3,72,24,0,0,0,0,0,0,0,0,0,0,0,0,24,256,28,3,18,0,0,0,7,23,3,20,0,20,205,82,24,5,14,3,0,2,25,6,19,33]
["Dix's Grant","0000910","18340",0,0,0,0,0,0,0,0,0,0,0,0,0,0,0,0,0,0,0,0,0,0,0,0,0,0,0,0,0,0,0,0,0,0,0,0,0,0,0,0,0,0,0,0,0,0,0,0,0,0,0,0,0,0,0,0,0,0,0,0,0,0,0,0,0,0,0,0,0,0,0,0,0,0,0,0,0,0,0,0,0,0,0,0,0,0,0,0,0,0,0,0,0,0,0,0,0,0,0,0,0,0]
["Dixville","0000915","18420",75,0,0,0,0,0,0,0,0,0,0,0,0,0,0,0,0,0,0,0,0,0,0,0,0,0,0,0,0,0,0,0,0,0,0,0,0,0,0,0,0,0,0,0,0,0,0,0,0,0,0,0,0,0,0,0,0,0,0,0,0,0,0,0,0,0,0,0,0,0,0,0,0,0,0,0,0,0,0,0,0,0,0,0,0,0,0,0,0,0,0,0,0,0,0,0,0,0,0,0,0,0]
["Dummer","0000920","19300",309,323,157,32,2,0,0,2,0,0,0,0,30,4,0,0,0,0,0,0,0,0,0,0,0,0,4,104,6,2,0,0,0,0,4,18,4,14,0,14,80,17,6,3,3,0,0,0,2,0,2,9,166,27,0,0,0,0,0,0,0,0,27,8,0,0,0,0,0,0,0,0,0,0,0,0,8,108,11,0,3,0,0,0,8,3,0,3,0,3,94,23,4,2,2,0,0,0,5,3,2,14]
["Errol","0000925","25140",298,304,146,21,7,0,3,4,0,0,0,0,14,3,0,0,0,0,0,0,0,0,0,0,0,0,3,92,21,4,2,0,0,0,15,10,2,8,0,8,61,30,3,2,1,0,0,0,8,0,8,19,158,28,0,0,0,0,0,3,3,0,25,2,0,0,0,0,0,0,0,0,0,0,0,0,2,92,11,0,2,0,0,0,9,0,0,0,0,0,81,36,3,0,3,0,0,0,2,0,2,31]
["Erving's Location","0000930","25180",1,0,0,0,0,0,0,0,0,0,0,0,0,0,0,0,0,0,0,0,0,0,0,0,0,0,0,0,0,0,0,0,0,0,0,0,0,0,0,0,0,0,0,0,0,0,0,0,0,0,0,0,0,0,0,0,0,0,0,0,0,0,0,0,0,0,0,0,0,0,0,0,0,0,0,0,0,0,0,0,0,0,0,0,0,0,0,0,0,0,0,0,0,0,0,0,0,0,0,0,0,0]
["Gorham","0000935","30260",2895,2786,1369,218,14,0,0,14,0,0,0,0,204,83,9,0,0,0,0,0,9,0,0,0,0,0,74,817,187,25,27,6,0,0,129,37,12,25,0,25,593,251,68,43,25,0,0,0,38,19,19,145,1417,210,0,0,0,0,0,12,12,0,198,90,7,0,0,7,0,0,0,0,0,0,0,0,83,779,96,14,11,0,0,0,71,63,16,47,0,47,620,338,78,18,60,0,0,0,94,34,60,166]
["Greens Grant","0000957","31780",0,0,0,0,0,0,0,0,0,0,0,0,0,0,0,0,0,0,0,0,0,0,0,0,0,0,0,0,0,0,0,0,0,0,0,0,0,0,0,0,0,0,0,0,0,0,0,0,0,0,0,0,0,0,0,0,0,0,0,0,0,0,0,0,0,0,0,0,0,0,0,0,0,0,0,0,0,0,0,0,0,0,0,0,0,0,0,0,0,0,0,0,0,0,0,0,0,0,0,0,0,0]
["Hadley's Purchase","0000962","32420",0,0,0,0,0,0,0,0,0,0,0,0,0,0,0,0,0,0,0,0,0,0,0,0,0,0,0,0,0,0,0,0,0,0,0,0,0,0,0,0,0,0,0,0,0,0,0,0,0,0,0,0,0,0,0,0,0,0,0,0,0,0,0,0,0,0,0,0,0,0,0,0,0,0,0,0,0,0,0,0,0,0,0,0,0,0,0,0,0,0,0,0,0,0,0,0,0,0,0,0,0,0]
["Jefferson","0000967","38820",1006,958,482,70,0,0,0,0,0,0,0,0,70,24,0,0,0,0,0,0,0,2,0,2,0,2,22,318,31,5,9,2,0,0,15,15,2,13,2,11,272,70,22,11,8,0,0,3,10,6,4,38,476,84,5,0,0,5,0,5,5,0,74,23,2,0,0,2,0,0,0,0,0,0,0,0,21,297,14,0,9,0,0,0,5,19,7,12,0,12,264,72,22,2,16,0,2,2,13,8,5,37]
["Kilkenny","0000973","39940",0,0,0,0,0,0,0,0,0,0,0,0,0,0,0,0,0,0,0,0,0,0,0,0,0,0,0,0,0,0,0,0,0,0,0,0,0,0,0,0,0,0,0,0,0,0,0,0,0,0,0,0,0,0,0,0,0,0,0,0,0,0,0,0,0,0,0,0,0,0,0,0,0,0,0,0,0,0,0,0,0,0,0,0,0,0,0,0,0,0,0,0,0,0,0,0,0,0,0,0,0,0]
["Lancaster","0000978","40420",3280,2969,1367,272,25,0,0,25,0,0,0,0,247,26,0,0,0,0,0,0,0,0,0,0,0,0,26,889,178,31,26,3,0,0,118,94,21,73,6,67,617,180,105,49,51,0,0,5,5,0,5,70,1602,285,20,0,0,20,0,0,0,0,265,112,7,0,7,0,0,0,0,3,0,3,0,3,102,906,159,4,34,16,0,0,105,58,0,58,0,58,689,299,71,0,71,0,0,0,45,17,28,183]
["Low and Burbank's Grant","0000991","43620",0,0,0,0,0,0,0,0,0,0,0,0,0,0,0,0,0,0,0,0,0,0,0,0,0,0,0,0,0,0,0,0,0,0,0,0,0,0,0,0,0,0,0,0,0,0,0,0,0,0,0,0,0,0,0,0,0,0,0,0,0,0,0,0,0,0,0,0,0,0,0,0,0,0,0,0,0,0,0,0,0,0,0,0,0,0,0,0,0,0,0,0,0,0,0,0,0,0,0,0,0,0]
["Martin's Location","0000996","46020",0,0,0,0,0,0,0,0,0,0,0,0,0,0,0,0,0,0,0,0,0,0,0,0,0,0,0,0,0,0,0,0,0,0,0,0,0,0,0,0,0,0,0,0,0,0,0,0,0,0,0,0,0,0,0,0,0,0,0,0,0,0,0,0,0,0,0,0,0,0,0,0,0,0,0,0,0,0,0,0,0,0,0,0,0,0,0,0,0,0,0,0,0,0,0,0,0,0,0,0,0,0]
["Milan","0001001","47860",1331,1253,665,128,6,0,2,4,0,0,0,0,122,34,6,0,0,0,0,0,6,4,2,2,2,0,24,426,108,21,16,0,0,0,71,29,5,24,7,17,289,77,23,10,8,2,0,3,17,3,14,37,588,103,0,0,0,0,0,0,0,0,103,33,6,0,0,0,0,3,3,0,0,0,0,0,27,370,67,4,5,0,0,0,58,26,5,21,5,16,277,82,21,0,21,0,0,0,23,13,10,38]
["Millsfield","0001006","48260",22,16,7,0,0,0,0,0,0,0,0,0,0,2,0,0,0,0,0,0,0,0,0,0,0,0,2,4,0,0,0,0,0,0,0,0,0,0,0,0,4,1,1,0,1,0,0,0,0,0,0,0,9,0,0,0,0,0,0,0,0,0,0,2,0,0,0,0,0,0,0,0,0,0,0,0,2,4,0,0,0,0,0,0,0,0,0,0,0,0,4,3,0,0,0,0,0,0,3,3,0,0]
["Northumberland","0001011","56100",2438,2322,1170,225,29,6,4,19,0,3,0,3,193,88,22,2,4,1,0,0,15,2,0,2,2,0,64,690,182,30,10,2,0,4,136,68,16,52,0,52,440,167,53,23,24,3,0,3,31,10,21,83,1152,206,17,2,3,12,0,0,0,0,189,69,5,0,0,3,0,0,2,0,0,0,0,0,64,666,156,8,35,1,0,0,112,57,19,38,0,38,453,211,37,16,17,2,0,2,64,23,41,110]
["Odell","0001023","57860",5,0,0,0,0,0,0,0,0,0,0,0,0,0,0,0,0,0,0,0,0,0,0,0,0,0,0,0,0,0,0,0,0,0,0,0,0,0,0,0,0,0,0,0,0,0,0,0,0,0,0,0,0,0,0,0,0,0,0,0,0,0,0,0,0,0,0,0,0,0,0,0,0,0,0,0,0,0,0,0,0,0,0,0,0,0,0,0,0,0,0,0,0,0,0,0,0,0,0,0,0,0]
["Pinkham's Grant","0001028","61620",0,0,0,0,0,0,0,0,0,0,0,0,0,0,0,0,0,0,0,0,0,0,0,0,0,0,0,0,0,0,0,0,0,0,0,0,0,0,0,0,0,0,0,0,0,0,0,0,0,0,0,0,0,0,0,0,0,0,0,0,0,0,0,0,0,0,0,0,0,0,0,0,0,0,0,0,0,0,0,0,0,0,0,0,0,0,0,0,0,0,0,0,0,0,0,0,0,0,0,0,0,0]
["Pittsburg","0001033","61780",867,834,408,48,2,0,0,2,0,0,0,0,46,26,6,0,0,4,0,0,2,0,0,0,0,0,20,258,44,6,7,4,0,0,27,14,2,12,0,12,200,76,21,9,11,1,0,0,11,2,9,44,426,54,0,0,0,0,0,0,0,0,54,38,0,0,0,0,0,0,0,0,0,0,0,0,38,254,29,5,7,2,0,0,15,14,4,10,0,10,211,80,16,4,12,0,0,0,0,0,0,64]
["Randolph","0001038","63860",339,326,157,24,3,0,0,3,0,0,0,0,21,14,0,0,0,0,0,0,0,0,0,0,0,0,14,94,9,4,2,0,0,0,3,2,0,2,2,0,83,25,4,2,2,0,0,0,6,2,4,15,169,28,3,0,0,3,0,0,0,0,25,9,0,0,0,0,0,0,0,0,0,0,0,0,9,102,2,0,2,0,0,0,0,4,0,4,2,2,96,30,15,6,9,0,0,0,4,2,2,11]
["Sargent's Purchase","0001043","67860",0,0,0,0,0,0,0,0,0,0,0,0,0,0,0,0,0,0,0,0,0,0,0,0,0,0,0,0,0,0,0,0,0,0,0,0,0,0,0,0,0,0,0,0,0,0,0,0,0,0,0,0,0,0,0,0,0,0,0,0,0,0,0,0,0,0,0,0,0,0,0,0,0,0,0,0,0,0,0,0,0,0,0,0,0,0,0,0,0,0,0,0,0,0,0,0,0,0,0,0,0,0]
["Second College Grant","0001048","68500",0,0,0,0,0,0,0,0,0,0,0,0,0,0,0,0,0,0,0,0,0,0,0,0,0,0,0,0,0,0,0,0,0,0,0,0,0,0,0,0,0,0,0,0,0,0,0,0,0,0,0,0,0,0,0,0,0,0,0,0,0,0,0,0,0,0,0,0,0,0,0,0,0,0,0,0,0,0,0,0,0,0,0,0,0,0,0,0,0,0,0,0,0,0,0,0,0,0,0,0,0,0]
["Shelburne","0001053","68980",379,353,172,25,0,0,0,0,0,0,0,0,25,19,3,0,0,0,0,0,3,0,0,0,0,0,16,108,39,0,5,0,0,0,34,5,0,5,0,5,64,20,5,0,5,0,0,0,1,0,1,14,181,26,0,0,0,0,0,0,0,0,26,12,1,0,0,0,0,0,1,0,0,0,0,0,11,126,37,0,2,2,0,0,33,4,0,4,0,4,85,17,0,0,0,0,0,0,2,0,2,15]
["Stark","0001058","73060",516,500,267,50,2,0,0,2,0,0,0,0,48,24,6,0,0,6,0,0,0,0,0,0,0,0,18,161,36,3,11,3,0,0,19,22,0,22,0,22,103,32,5,5,0,0,0,0,9,0,9,18,233,36,2,0,0,2,0,0,0,0,34,19,0,0,0,0,0,0,0,0,0,0,0,0,19,145,21,2,10,1,0,0,8,14,5,9,3,6,110,33,2,0,2,0,0,0,7,3,4,24]
["Stewartstown","0001063","73380",1012,884,480,71,0,0,0,0,0,0,0,0,71,38,9,0,0,0,0,0,9,0,0,0,0,0,29,299,66,3,4,9,0,0,50,26,8,18,0,18,207,72,10,0,10,0,0,0,11,3,8,51,404,80,6,0,0,6,0,3,0,3,71,21,0,0,0,0,0,0,0,0,0,0,0,0,21,257,51,2,6,0,0,0,43,16,2,14,0,14,190,46,11,0,9,2,0,0,7,3,4,28]
["Stratford","0001068","74180",942,891,407,61,11,0,2,9,0,0,0,0,50,41,8,3,2,3,0,0,0,3,0,3,0,3,30,245,25,14,6,5,0,0,0,38,14,24,0,24,182,60,16,0,16,0,0,0,18,11,7,26,484,91,7,2,0,5,0,0,0,0,84,40,3,0,0,3,0,0,0,0,0,0,0,0,37,289,26,0,19,3,0,0,4,63,16,47,0,47,200,64,15,4,8,0,0,3,20,7,13,29]
["Success","0001073","74500",2,0,0,0,0,0,0,0,0,0,0,0,0,0,0,0,0,0,0,0,0,0,0,0,0,0,0,0,0,0,0,0,0,0,0,0,0,0,0,0,0,0,0,0,0,0,0,0,0,0,0,0,0,0,0,0,0,0,0,0,0,0,0,0,0,0,0,0,0,0,0,0,0,0,0,0,0,0,0,0,0,0,0,0,0,0,0,0,0,0,0,0,0,0,0,0,0,0,0,0,0,0]
["Thompson and Meserves Purchase","0001078","76580",0,0,0,0,0,0,0,0,0,0,0,0,0,0,0,0,0,0,0,0,0,0,0,0,0,0,0,0,0,0,0,0,0,0,0,0,0,0,0,0,0,0,0,0,0,0,0,0,0,0,0,0,0,0,0,0,0,0,0,0,0,0,0,0,0,0,0,0,0,0,0,0,0,0,0,0,0,0,0,0,0,0,0,0,0,0,0,0,0,0,0,0,0,0,0,0,0,0,0,0,0,0]
["Wentworth's Location","0001083","80740",44,49,29,0,0,0,0,0,0,0,0,0,0,2,0,0,0,0,0,0,0,0,0,0,0,0,2,19,6,0,6,0,0,0,0,2,0,2,0,2,11,8,2,0,2,0,0,0,2,0,2,4,20,3,3,3,0,0,0,0,0,0,0,1,0,0,0,0,0,0,0,0,0,0,0,0,1,16,0,0,0,0,0,0,0,2,0,2,0,2,14,0,0,0,0,0,0,0,0,0,0,0]
["Whitefield","0001088","84420",2038,1830,881,135,10,0,0,10,0,3,3,0,122,73,10,3,3,4,0,0,0,0,0,0,0,0,63,532,44,12,7,4,0,0,21,50,7,43,0,43,438,141,25,13,12,0,0,0,36,8,28,80,949,153,15,0,0,15,0,0,0,0,138,80,10,0,4,4,0,0,2,5,0,5,0,5,65,546,53,4,12,5,0,0,32,39,13,26,0,26,454,170,34,15,17,0,0,2,38,9,29,98]
[]
[]
[]
["2010 Census Demographic Profile Data -  QRY_CountyState"]
["TownName","LOGRECNO","COUNTY","TotalPop","TotalPop1Race","TotalPopWhite","TotalPopAfricanAmerican","TotalPopAmericanIndAlaska","TotalPopAsian","TotalPopNativeHawaiianPIsland","TotalPopSomeOtherRace","TotalPopTwoOrMoreRaces","TotalPopHispanicLatino","TotalNonHispanicLatino","TotPopUnder15yrs","TotPop15to24yrs","TotPop25to34yrs","TotPop35to44yrs","TotPop45to54yrs","TotPop55to64yrs","TotPop65to74yrs","TotPopOver74yrs","MedianAge","MedianAgeMale","MedianAgeFemale","TotalHH","TotalPopInHouseholds","TotalPopInFamilyHH","TotalPopInNonFamilyHH","AvgHHSize","TotalFamilyHH","TotalFamilyHHSpouse","TotalSingleParentHH","TotalNonFamilyHH","AvgFamilyHHSize","AvgNonFamilyHHSize","AverageHHSizeOwnerOccupied","AverageHHSizeRentalOccupied","TotalHousingUnits","TotalOccupiedHU","TotalOwnerOccupiedHUs","TotalRentalOccupiedHU","TotalVacantHU","VacantHUForRent","VacantHURentNotOccupied","VacantHUForSale","VacantHUsSoldNotOccupied","VacantHUSeasonalRecreational","VacantHUsAllOtherVacants","HomeOwnerVacancyRate","HomeRentalVacancyRate","TotalHousingUnits2010","SingFamHU2010","MultiFamHU2010","MobileHom2010"]
["Atkinson and Gilmanton Grant","0000818","02420"]
["Bean's Grant","0000823","04100"]
["Bean's Purchase","0000828","04260"]
["Berlin","0000248","007",10051,9873,9703,81,39,28,0,22,178,152,9899,1464,1160,1178,1270,1663,1305,852,1159,44.7,42.3,47.6,4178,9096,4295,4801,2.1800000000000002,2515,1805,710,1663,2.71,2.8869512928442576,2.31,1.97,4910,4178,2543,1635,732,254,8,121,26,101,222,4.5,13.4,4910,2686,2192,32]
["Carroll","0000064","007",763,747,707,14,2,18,0,6,16,11,752,98,94,71,92,120,142,93,53,47.4,47.8,47.1,309,690,321,369,2.23,197,157,40,112,2.63,3.2946428571428572,2.2799999999999998,2.08,898,309,235,74,589,47,1,6,2,523,10,2.5,38.5]
["Chandler's Purchase","0000874","11220",null,null,null,null,null,null,null,null,null,null,null,null,null,null,null,null,null,null,null,null,null,null,null,null,null,null,null,null,null,null,null,null,null,null,null,null,null,null,null,null,null,null,null,null,null,null,null,null,898,520,336,42]
["Clarksville","0000065","007",265,261,260,0,1,0,0,0,4,0,265,24,24,15,33,40,61,43,25,53.8,50.8,55.5,127,265,125,140,2.09,84,69,15,43,2.4900000000000002,3.2558139534883721,2.11,1.83,439,127,115,12,312,1,0,5,0,303,3,4.2,7.7]
["Colebrook","0000066","007",2301,2273,2241,5,7,15,0,5,28,27,2274,371,221,231,294,382,352,265,185,45.8,44.9,46.9,1073,2298,1061,1237,2.14,612,471,141,461,2.73,2.6832971800433838,2.2999999999999998,1.85,1429,1073,690,383,356,44,3,27,2,245,35,3.8,10.199999999999999,439,374,17,49]
["Columbia","0000067","007",757,746,742,0,1,3,0,0,11,2,755,100,68,54,99,135,135,99,67,50.4,48.9,51.5,327,747,366,381,2.2799999999999998,222,181,41,105,2.65,3.6285714285714286,2.25,2.48,518,327,277,50,191,9,0,9,1,162,10,3.1,15.3,1429,763,435,231]
["Crawford's Purchase","0000895","16100",null,null,null,null,null,null,null,null,null,null,null,null,null,null,null,null,null,null,null,null,null,null,null,null,null,null,null,null,null,null,null,null,null,null,null,null,null,null,null,null,null,null,null,null,null,null,null,null,518,420,4,94]
["Cutt's Grant","0000900","16660"]
["Dalton","0000068","007",979,961,944,4,4,6,0,3,18,14,965,151,70,97,125,184,177,108,67,47.8,47.3,48.4,429,979,493,486,2.2799999999999998,293,233,60,136,2.68,3.5735294117647061,2.29,2.2000000000000002,577,429,373,56,148,2,0,10,1,117,18,2.6,3.4]
["Dix's Grant","0000910","18340",null,null,null,null,null,null,null,null,null,null,null,null,null,null,null,null,null,null,null,null,null,null,null,null,null,null,null,null,null,null,null,null,null,null,null,null,null,null,null,null,null,null,null,null,null,null,null,null,577,407,15,155]
["Dixville","0000915","18420"]
["Dummer","0000069","007",304,298,297,0,1,0,0,0,6,1,303,40,27,20,45,64,48,39,21,48.3,47.8,48.8,129,304,161,143,2.36,92,81,11,37,2.75,3.8648648648648649,2.42,1.75,294,129,117,12,165,2,0,2,1,155,5,1.7,14.3,5,null,null,5]
["Errol","0000070","007",291,284,276,7,1,0,0,0,7,4,287,22,25,22,27,66,56,55,18,53.1,53.1,52.9,151,289,108,181,1.91,78,65,13,73,2.38,2.4794520547945207,2,1.54,507,151,123,28,356,5,1,10,3,325,12,7.4,14.7,294,248,9,37]
["Erving's Location","0000930","25180",null,null,null,null,null,null,null,null,null,null,null,null,null,null,null,null,null,null,null,null,null,null,null,null,null,null,null,null,null,null,null,null,null,null,null,null,null,null,null,null,null,null,null,null,null,null,null,null,507,420,13,74]
["Gorham","0000071","007",2848,2804,2763,3,6,31,0,1,44,25,2823,431,275,234,385,498,490,258,277,47,46,47.7,1301,2848,1389,1459,2.19,802,646,156,499,2.73,2.9238476953907817,2.35,1.81,1487,1301,912,389,186,43,4,49,4,54,32,5.0999999999999996,9.9]
["Greens Grant","0000957","31780",null,null,null,null,null,null,null,null,null,null,null,null,null,null,null,null,null,null,null,null,null,null,null,null,null,null,null,null,null,null,null,null,null,null,null,null,null,null,null,null,null,null,null,null,null,null,null,null,1487,797,521,169]
["Hadley's Purchase","0000962","32420"]
["Jefferson","0000072","007",1107,1101,1090,2,4,2,0,3,6,2,1105,168,95,83,148,180,239,134,60,48.9,49.7,48.5,476,1107,569,538,2.33,332,289,43,144,2.71,3.7361111111111112,2.3199999999999998,2.35,676,476,404,72,200,13,0,12,0,165,10,2.9,15.3]
["Kilkenny","0000973","39940",null,null,null,null,null,null,null,null,null,null,null,null,null,null,null,null,null,null,null,null,null,null,null,null,null,null,null,null,null,null,null,null,null,null,null,null,null,null,null,null,null,null,null,null,null,null,null,null,676,530,48,98]
["Lancaster","0000073","007",3507,3467,3395,11,24,21,1,15,40,60,3447,616,409,314,392,560,537,344,335,45.4,43.8,46.6,1399,3285,1629,1656,2.35,880,677,203,519,2.85,3.1907514450867054,2.46,2.08,1687,1399,982,417,288,48,4,27,28,139,42,2.6,10.199999999999999]
["Low and Burbank's Grant","0000991","43620",null,null,null,null,null,null,null,null,null,null,null,null,null,null,null,null,null,null,null,null,null,null,null,null,null,null,null,null,null,null,null,null,null,null,null,null,null,null,null,null,null,null,null,null,null,null,null,null,1687,1102,351,235]
["Martin's Location","0000996","46020"]
["Milan","0000074","007",1337,1331,1321,1,6,2,0,1,6,7,1330,187,140,98,193,271,264,102,82,47.2,47.4,47,577,1337,687,650,2.3199999999999998,403,335,68,174,2.7,3.735632183908046,2.38,1.84,809,577,513,64,232,7,0,17,0,192,16,3.2,9.9]
["Millsfield","0001006","48260",null,null,null,null,null,null,null,null,null,null,null,null,null,null,null,null,null,null,null,null,null,null,null,null,null,null,null,null,null,null,null,null,null,null,null,null,null,null,null,null,null,null,null,null,null,null,null,null,809,667,26,117]
["Northumberland","0000075","007",2288,2266,2254,3,2,3,0,4,22,15,2273,372,278,247,270,383,352,210,176,44.3,44,45,984,2285,1149,1136,2.3199999999999998,644,487,157,340,2.78,3.3411764705882354,2.39,2.13,1121,984,716,268,137,29,2,22,1,54,29,3,9.6999999999999993,0,null,null,0]
["Odell","0001023","57860",null,null,null,null,null,null,null,null,null,null,null,null,null,null,null,null,null,null,null,null,null,null,null,null,null,null,null,null,null,null,null,null,null,null,null,null,null,null,null,null,null,null,null,null,null,null,null,null,1121,808,231,82]
["Pinkham's Grant","0001028","61620"]
["Pittsburg","0000076","007",869,859,857,0,0,1,0,1,10,5,864,103,58,58,87,129,191,155,88,55,55.6,53.9,414,869,409,460,2.1,267,230,37,147,2.5299999999999998,3.129251700680272,2.14,1.88,1748,414,349,65,1334,23,2,16,2,1276,15,4.4000000000000004,25.6]
["Randolph","0000077","007",310,306,300,0,4,2,0,0,4,1,309,24,20,16,29,57,95,39,30,56.8,57.5,55.2,153,310,145,165,2.0299999999999998,105,96,9,48,2.38,3.4375,2.09,1.64,312,153,131,22,159,6,0,4,0,140,9,3,21.4,1748,1572,49,126]
["Sargent's Purchase","0001043","67860",null,null,null,null,null,null,null,null,null,null,null,null,null,null,null,null,null,null,null,null,null,null,null,null,null,null,null,null,null,null,null,null,null,null,null,null,null,null,null,null,null,null,null,null,null,null,null,null,312,296,6,10]
["Second College Grant","0001048","68500"]
["Shelburne","0000078","007",372,371,369,0,2,0,0,0,1,1,371,42,38,20,31,72,94,39,36,52.8,54.4,51.6,166,372,189,183,2.2400000000000002,116,101,15,50,2.63,3.66,2.31,1.82,217,166,144,22,51,0,0,4,0,40,7,2.7,0]
["Stark","0000079","007",556,546,536,0,6,1,0,3,10,6,550,76,60,43,66,107,95,72,37,48.2,48.4,47.9,233,556,292,264,2.39,166,130,36,67,2.76,3.9402985074626864,2.36,2.5099999999999998,445,233,198,35,212,4,0,3,0,195,10,1.5,10.3,217,191,10,15]
["Stewartstown","0000080","007",1004,994,990,1,3,0,0,0,10,11,993,142,141,83,117,160,146,93,122,46.2,44.1,47.7,381,872,424,448,2.29,251,197,54,130,2.69,3.4461538461538463,2.31,2.2200000000000002,920,381,287,94,539,11,0,19,0,490,19,6.2,10.5,445,366,15,65]
["Stratford","0000081","007",746,733,714,8,4,7,0,0,13,10,736,124,79,60,93,111,140,91,48,46.8,46.3,47.8,345,746,337,409,2.16,187,135,52,158,2.8,2.5886075949367089,2.15,2.19,574,345,256,89,229,13,1,12,0,188,15,4.5,12.6,920,701,100,119]
["Success","0001073","74500",null,null,null,null,null,null,null,null,null,null,null,null,null,null,null,null,null,null,null,null,null,null,null,null,null,null,null,null,null,null,null,null,null,null,null,null,null,null,null,null,null,null,null,null,null,null,null,null,574,421,80,73]
["Thompson and Meserves Purchase","0001078","76580"]
["Wentworth's Location","0001083","80740"]
["Whitefield","0000082","007",2306,2270,2205,8,10,17,0,30,36,46,2260,374,248,254,284,384,348,196,218,44.7,43.2,46.1,976,2248,1098,1150,2.2999999999999998,613,471,142,363,2.79,3.168044077134986,2.46,1.96,1339,976,674,302,363,31,0,25,3,268,36,3.6,9.3000000000000007]
[null,null,null,null,null,null,null,null,null,null,null,null,null,null,null,null,null,null,null,null,null,null,null,null,null,null,null,null,null,null,null,null,null,null,null,null,null,null,null,null,null,null,null,null,null,null,null,null,null,null,null,1339,818,276,245]

{"sheet":"SmallTownEmploymentandWages","index":73,"n_rows":77,"n_cols":14,"rows_kept":77,"cut":false,"hidden":true,"merged":[[66,1,67,3],[35,1,35,2],[73,1,73,2]]}
[]
[null,{"$f":"CntyDataLink!A35","v":"Berlin"}]
[]
[null,"EMPLOYMENT CHARACTERISTICS"]
[]
[]
[]
[]
[]
[]
[]
[]
[]
[]
[]
[]
[]
[]
[]
[]
[]
[]
[]
[]
[]
[]
[]
[]
[null,"Annual Average Covered Private Employment "]
[null,null,null,"Source: NH Department of Employment Security, Covered Private Employment by location of employment"]
[null,null,2009,{"$f":"C31+1","v":2010},{"$f":"D31+1","v":2011},2012,2013,2014,2015,2016,2017,2018,2019,"Total Change  "]
[null,"Goods Producing",{"$f":"IF((CntyDataLink!$BQ$25)=\"n\",NA(),IF(VALUE(CntyDataLink!$BQ$25)=\"\",NA(),VALUE(CntyDataLink!$BQ$25)))","v":556},{"$f":"IF((CntyDataLink!$BY$25)=\"n\",NA(),IF(VALUE(CntyDataLink!$BY$25)=\"\",NA(),VALUE(CntyDataLink!$BY$25)))","v":516},{"$f":"IF((CntyDataLink!$CG$25)=\"n\",NA(),IF(VALUE(CntyDataLink!$CG$25)=\"\",NA(),VALUE(CntyDataLink!$CG$25)))","v":525},{"$f":"IF((CntyDataLink!$CO$25)=\"n\",NA(),IF(VALUE(CntyDataLink!$CO$25)=\"\",NA(),VALUE(CntyDataLink!$CO$25)))","v":573},{"$f":"IF((CntyDataLink!$CW$25)=\"n\",NA(),IF(VALUE(CntyDataLink!$CW$25)=\"\",NA(),VALUE(CntyDataLink!$CW$25)))","v":652},{"$f":"IF((CntyDataLink!$DE$25)=\"n\",NA(),IF(VALUE(CntyDataLink!$DE$25)=\"\",NA(),VALUE(CntyDataLink!$DE$25)))","v":336},{"$f":"IF((CntyDataLink!$DM$25)=\"n\",NA(),IF(VALUE(CntyDataLink!$DM$25)=\"\",NA(),VALUE(CntyDataLink!$DM$25)))","v":273},{"$f":"IF((CntyDataLink!$DU$25)=\"n\",NA(),IF(VALUE(CntyDataLink!$DU$25)=\"\",NA(),VALUE(CntyDataLink!$DU$25)))","v":231},{"$f":"IF((CntyDataLink!$EC$25)=\"n\",NA(),IF(VALUE(CntyDataLink!$EC$25)=\"\",NA(),VALUE(CntyDataLink!$EC$25)))","v":213},{"$f":"IF((CntyDataLink!$EK$25)=\"n\",NA(),IF(VALUE(CntyDataLink!$EK$25)=\"\",NA(),VALUE(CntyDataLink!$EK$25)))","v":216},{"$f":"IF((CntyDataLink!$ET$25)=\"n\",NA(),IF(VALUE(CntyDataLink!$ET$25)=\"\",NA(),VALUE(CntyDataLink!$ET$25)))","v":222},{"$f":"$M32-C32","v":-334}]
[null,"Service Providing",{"$f":"IF((CntyDataLink!$BR$25)=\"n\",NA(),IF(VALUE(CntyDataLink!$BR$25)=\"\",NA(),VALUE(CntyDataLink!$BR$25)))","v":2011},{"$f":"IF((CntyDataLink!$BZ$25)=\"n\",NA(),IF(VALUE(CntyDataLink!$BZ$25)=\"\",NA(),VALUE(CntyDataLink!$BZ$25)))","v":1950},{"$f":"IF((CntyDataLink!$CH$25)=\"n\",NA(),IF(VALUE(CntyDataLink!$CH$25)=\"\",NA(),VALUE(CntyDataLink!$CH$25)))","v":1917},{"$f":"IF((CntyDataLink!$CP$25)=\"n\",NA(),IF(VALUE(CntyDataLink!$CP$25)=\"\",NA(),VALUE(CntyDataLink!$CP$25)))","v":1882},{"$f":"IF((CntyDataLink!$CX$25)=\"n\",NA(),IF(VALUE(CntyDataLink!$CX$25)=\"\",NA(),VALUE(CntyDataLink!$CX$25)))","v":1828},{"$f":"IF((CntyDataLink!$DF$25)=\"n\",NA(),IF(VALUE(CntyDataLink!$DF$25)=\"\",NA(),VALUE(CntyDataLink!$DF$25)))","v":1775},{"$f":"IF((CntyDataLink!$DN$25)=\"n\",NA(),IF(VALUE(CntyDataLink!$DN$25)=\"\",NA(),VALUE(CntyDataLink!$DN$25)))","v":1724},{"$f":"IF((CntyDataLink!$DV$25)=\"n\",NA(),IF(VALUE(CntyDataLink!$DV$25)=\"\",NA(),VALUE(CntyDataLink!$DV$25)))","v":1703},{"$f":"IF((CntyDataLink!$ED$25)=\"n\",NA(),IF(VALUE(CntyDataLink!$ED$25)=\"\",NA(),VALUE(CntyDataLink!$ED$25)))","v":1710},{"$f":"IF((CntyDataLink!$EL$25)=\"n\",NA(),IF(VALUE(CntyDataLink!$EL$25)=\"\",NA(),VALUE(CntyDataLink!$EL$25)))","v":{"$error":"#N/A"}},{"$f":"IF((CntyDataLink!$EU$25)=\"n\",NA(),IF(VALUE(CntyDataLink!$EU$25)=\"\",NA(),VALUE(CntyDataLink!$EU$25)))","v":1740},{"$f":"$M33-C33","v":-271}]
[null,"Total Private Emp",{"$f":"IF((CntyDataLink!$BP$25)=\"n\",NA(),IF(VALUE(CntyDataLink!$BP$25)=\"\",NA(),VALUE(CntyDataLink!$BP$25)))","v":2567},{"$f":"IF((CntyDataLink!$BX$25)=\"n\",NA(),IF(VALUE(CntyDataLink!$BX$25)=\"\",NA(),VALUE(CntyDataLink!$BX$25)))","v":2466},{"$f":"IF((CntyDataLink!$CF$25)=\"n\",NA(),IF(VALUE(CntyDataLink!$CF$25)=\"\",NA(),VALUE(CntyDataLink!$CF$25)))","v":2442},{"$f":"IF((CntyDataLink!$CN$25)=\"n\",NA(),IF(VALUE(CntyDataLink!$CN$25)=\"\",NA(),VALUE(CntyDataLink!$CN$25)))","v":2455},{"$f":"IF((CntyDataLink!$CV$25)=\"n\",NA(),IF(VALUE(CntyDataLink!$CV$25)=\"\",NA(),VALUE(CntyDataLink!$CV$25)))","v":2480},{"$f":"IF((CntyDataLink!$DD$25)=\"n\",NA(),IF(VALUE(CntyDataLink!$DD$25)=\"\",NA(),VALUE(CntyDataLink!$DD$25)))","v":2112},{"$f":"IF((CntyDataLink!$DL$25)=\"n\",NA(),IF(VALUE(CntyDataLink!$DL$25)=\"\",NA(),VALUE(CntyDataLink!$DL$25)))","v":1997},{"$f":"IF((CntyDataLink!$DT$25)=\"n\",NA(),IF(VALUE(CntyDataLink!$DT$25)=\"\",NA(),VALUE(CntyDataLink!$DT$25)))","v":1934},{"$f":"IF((CntyDataLink!$EB$25)=\"n\",NA(),IF(VALUE(CntyDataLink!$EB$25)=\"\",NA(),VALUE(CntyDataLink!$EB$25)))","v":1923},{"$f":"IF((CntyDataLink!$EJ$25)=\"n\",NA(),IF(VALUE(CntyDataLink!$EJ$25)=\"\",NA(),VALUE(CntyDataLink!$EJ$25)))","v":1945},{"$f":"IF((CntyDataLink!$ER$25)=\"n\",NA(),IF(VALUE(CntyDataLink!$ER$25)=\"\",NA(),VALUE(CntyDataLink!$ER$25)))","v":1962},{"$f":"$M34-C34","v":-605}]
[]
[null,"% Change from prior Year",null,"09-10","10-11","11-12","12-13","13-14","14-15","15-16","16-17","17-18","18-19","Total % Change"]
[null,"Goods Producing",null,{"$f":"(D32-C32)/C32","v":-7.1942446043165464E-2},1.7441860465116279E-2,9.1428571428571428E-2,0.13787085514834205,-0.48466257668711654,{"$f":"(I32-H32)/H32","v":-0.1875},-0.15384615384615385,-7.792207792207792E-2,1.4084507042253521E-2,2.7777777777777776E-2,{"$f":"N32/C32","v":-0.60071942446043169}]
[null,"Service Providing",null,-3.0333167578319244E-2,-1.6923076923076923E-2,-1.8257694314032343E-2,{"$f":"(G33-F33)/F33","v":-2.8692879914984058E-2},-2.899343544857768E-2,-2.8732394366197182E-2,-1.2180974477958236E-2,4.1103934233705222E-3,{"$error":"#N/A"},{"$error":"#N/A"},{"$f":"N33/C33","v":-0.13475882645450024}]
[null,"Total Private Emp",null,-3.9345539540319441E-2,-9.7323600973236012E-3,5.3235053235053233E-3,1.0183299389002037E-2,-0.14838709677419354,-5.4450757575757576E-2,-3.1547320981472206E-2,-5.6876938986556358E-3,1.1440457618304731E-2,8.7403598971722372E-3,{"$f":"N34/C34","v":-0.23568367744448773}]
[]
[]
[null,"EMPLOYMENT CHARACTERISTICS"]
[]
[]
[]
[]
[]
[]
[]
[]
[]
[]
[]
[]
[]
[]
[]
[]
[]
[]
[]
[]
[]
[]
[]
[]
[null,"Covered Private Employment Average Wages",null,null,"Source: NH Department of Employment Security, Covered Private Employment"]
[]
[null,null,2009,{"$f":"C69+1","v":2010},{"$f":"D69+1","v":2011},{"$f":"E69+1","v":2012},2013,2014,2015,2016,2017,2018,2019,"Total $ Change"]
[null,"Goods Producing",{"$f":"IF((CntyDataLink!$BU$25)=\"n\",NA(),IF(VALUE(CntyDataLink!$BU$25)=\"\",NA(),VALUE(CntyDataLink!$BU$25)))","v":743.56},{"$f":"IF((CntyDataLink!$CC$25)=\"n\",NA(),IF(VALUE(CntyDataLink!$CC$25)=\"\",NA(),VALUE(CntyDataLink!$CC$25)))","v":801.07},{"$f":"IF((CntyDataLink!$CK$25)=\"n\",NA(),IF(VALUE(CntyDataLink!$CK$25)=\"\",NA(),VALUE(CntyDataLink!$CK$25)))","v":780.07},{"$f":"IF((CntyDataLink!$CS$25)=\"n\",NA(),IF(VALUE(CntyDataLink!$CS$25)=\"\",NA(),VALUE(CntyDataLink!$CS$25)))","v":926.41},{"$f":"IF((CntyDataLink!$DA$25)=\"n\",NA(),IF(VALUE(CntyDataLink!$DA$25)=\"\",NA(),VALUE(CntyDataLink!$DA$25)))","v":953.98},{"$f":"IF((CntyDataLink!$DI$25)=\"n\",NA(),IF(VALUE(CntyDataLink!$DI$25)=\"\",NA(),VALUE(CntyDataLink!$DI$25)))","v":863.87},{"$f":"IF((CntyDataLink!$DQ$25)=\"n\",NA(),IF(VALUE(CntyDataLink!$DQ$25)=\"\",NA(),VALUE(CntyDataLink!$DQ$25)))","v":843.39},{"$f":"IF((CntyDataLink!$DY$25)=\"n\",NA(),IF(VALUE(CntyDataLink!$DY$25)=\"\",NA(),VALUE(CntyDataLink!$DY$25)))","v":869.34},{"$f":"IF((CntyDataLink!$EG$25)=\"n\",NA(),IF(VALUE(CntyDataLink!$EG$25)=\"\",NA(),VALUE(CntyDataLink!$EG$25)))","v":928.37},{"$f":"IF((CntyDataLink!$EO$25)=\"n\",NA(),IF(VALUE(CntyDataLink!$EO$25)=\"\",NA(),VALUE(CntyDataLink!$EO$25)))","v":880.87},{"$f":"IF((CntyDataLink!$EY$25)=\"n\",NA(),IF(VALUE(CntyDataLink!$EY$25)=\"\",NA(),VALUE(CntyDataLink!$EY$25)))","v":945.04},{"$f":"M70-C70","v":201.48000000000002}]
[null,"Service Providing",{"$f":"IF((CntyDataLink!$BV$25)=\"n\",NA(),IF(VALUE(CntyDataLink!$BV$25)=\"\",NA(),VALUE(CntyDataLink!$BV$25)))","v":623.24},{"$f":"IF((CntyDataLink!$CD$25)=\"n\",NA(),IF(VALUE(CntyDataLink!$CD$25)=\"\",NA(),VALUE(CntyDataLink!$CD$25)))","v":657.92},{"$f":"IF((CntyDataLink!$CL$25)=\"n\",NA(),IF(VALUE(CntyDataLink!$CL$25)=\"\",NA(),VALUE(CntyDataLink!$CL$25)))","v":674.15},{"$f":"IF((CntyDataLink!$CT$25)=\"n\",NA(),IF(VALUE(CntyDataLink!$CT$25)=\"\",NA(),VALUE(CntyDataLink!$CT$25)))","v":690.85},{"$f":"IF((CntyDataLink!$DB$25)=\"n\",NA(),IF(VALUE(CntyDataLink!$DB$25)=\"\",NA(),VALUE(CntyDataLink!$DB$25)))","v":733.58},{"$f":"IF((CntyDataLink!$DJ$25)=\"n\",NA(),IF(VALUE(CntyDataLink!$DJ$25)=\"\",NA(),VALUE(CntyDataLink!$DJ$25)))","v":767.76},{"$f":"IF((CntyDataLink!$DR$25)=\"n\",NA(),IF(VALUE(CntyDataLink!$DR$25)=\"\",NA(),VALUE(CntyDataLink!$DR$25)))","v":779.38},{"$f":"IF((CntyDataLink!$DZ$25)=\"n\",NA(),IF(VALUE(CntyDataLink!$DZ$25)=\"\",NA(),VALUE(CntyDataLink!$DZ$25)))","v":787.99},{"$f":"IF((CntyDataLink!EG$25)=\"n\",NA(),IF(VALUE(CntyDataLink!$EH$25)=\"\",NA(),VALUE(CntyDataLink!$EH$25)))","v":810.29},{"$f":"IF((CntyDataLink!EO$25)=\"n\",NA(),IF(VALUE(CntyDataLink!$EP$25)=\"\",NA(),VALUE(CntyDataLink!$EP$25)))","v":{"$error":"#VALUE!"}},{"$f":"IF((CntyDataLink!EZ$25)=\"n\",NA(),IF(VALUE(CntyDataLink!$EZ$25)=\"\",NA(),VALUE(CntyDataLink!$EZ$25)))","v":844.19},{"$f":"M71-C71","v":220.95000000000005}]
[null,"Total Private Emp",{"$f":"IF((CntyDataLink!$BT$25)=\"n\",NA(),IF(VALUE(CntyDataLink!$BT$25)=\"\",NA(),VALUE(CntyDataLink!$BT$25)))","v":649.29999999999995},{"$f":"IF((CntyDataLink!$CB$25)=\"n\",NA(),IF(VALUE(CntyDataLink!$CB$25)=\"\",NA(),VALUE(CntyDataLink!$CB$25)))","v":687.88},{"$f":"IF((CntyDataLink!$CJ$25)=\"n\",NA(),IF(VALUE(CntyDataLink!$CJ$25)=\"\",NA(),VALUE(CntyDataLink!$CJ$25)))","v":696.92},{"$f":"IF((CntyDataLink!$CR$25)=\"n\",NA(),IF(VALUE(CntyDataLink!$CR$25)=\"\",NA(),VALUE(CntyDataLink!$CR$25)))","v":745.79},{"$f":"IF((CntyDataLink!$CZ$25)=\"n\",NA(),IF(VALUE(CntyDataLink!$CZ$25)=\"\",NA(),VALUE(CntyDataLink!$CZ$25)))","v":791.54},{"$f":"IF((CntyDataLink!$DH$25)=\"n\",NA(),IF(VALUE(CntyDataLink!$DH$25)=\"\",NA(),VALUE(CntyDataLink!$DH$25)))","v":783.07},{"$f":"IF((CntyDataLink!$DP$25)=\"n\",NA(),IF(VALUE(CntyDataLink!$DP$25)=\"\",NA(),VALUE(CntyDataLink!$DP$25)))","v":788.12},{"$f":"IF((CntyDataLink!$DX$25)=\"n\",NA(),IF(VALUE(CntyDataLink!$DX$25)=\"\",NA(),VALUE(CntyDataLink!$DX$25)))","v":797.71},{"$f":"IF((CntyDataLink!$EF$25)=\"n\",NA(),IF(VALUE(CntyDataLink!$EF$25)=\"\",NA(),VALUE(CntyDataLink!$EF$25)))","v":823.39},{"$f":"IF((CntyDataLink!$EN$25)=\"n\",NA(),IF(VALUE(CntyDataLink!$EN$25)=\"\",NA(),VALUE(CntyDataLink!$EN$25)))","v":841.61},{"$f":"IF((CntyDataLink!$EW$25)=\"n\",NA(),IF(VALUE(CntyDataLink!$EW$25)=\"\",NA(),VALUE(CntyDataLink!$EW$25)))","v":855.6},{"$f":"M72-C72","v":206.30000000000007}]
[]
[null,"% Change from prior Year",null,{"$f":"D36","v":"09-10"},"10-11","11-12","12-13","13-14","14-15","15-16","16-17","17-18","18-19","Total % Change"]
[null,"Goods Producing",null,{"$f":"(D70-C70)/C70","v":7.734412824788868E-2},-2.6214937521065573E-2,0.18759854884818017,2.9760041450329823E-2,-9.4456906853393169E-2,-2.3707270769907529E-2,3.076868352719388E-2,6.790208664043984E-2,-5.1164945011148572E-2,7.2848433934632764E-2,{"$f":"N70/C70","v":0.27096670073699503}]
[null,"Service Providing",null,5.5644695462422102E-2,2.4668652723735439E-2,2.477193502929622E-2,6.1851342549033822E-2,4.6593418577387538E-2,1.5134938001458795E-2,1.1047242680079054E-2,2.8299851520958329E-2,{"$error":"#VALUE!"},{"$error":"#VALUE!"},{"$f":"N71/C71","v":0.35451832359925556}]
[null,"Total Private Emp",null,5.9417834591098173E-2,1.3141827062859749E-2,7.0122826149342829E-2,6.1344346263693533E-2,-1.0700659473936773E-2,6.4489764644284093E-3,1.2168197736385363E-2,3.2192150029459264E-2,2.2128031673933405E-2,1.6622901343852865E-2,{"$f":"N72/C72","v":0.31772678268904986}]